{"text_format":"1","workbook":"xlsx","n_sheets":15,"sheets":["Portada","Indice","Regional-cuadro","Región CARD-graficos","Región CAPARD-graficos","Comparativo","Proyecciones","Seguimiento proyecciones","Gráficos-pais","Nota Técnica","Gráfico Seguimiento","Datos_Regional (M)","Datos Regional (T)","Saldo Operacional","Datos Gráfico-País"],"not_rendered":{"charts":47,"images":11,"macros":1,"external_links":10,"defined_names":10,"comments":3,"pivot_tables":0},"unopened":[],"bounds":{"document_bytes":16777216,"sheet_cells":100000,"rows_first":2000,"rows_last":500,"rows_between":2000,"halvings":0,"cell_chars":16384,"cell_head_chars":4096},"cells_cut":0,"cells_raw":0,"read":"whole","date_system":"1900"}

{"sheet":"Portada","index":0,"n_rows":0,"n_cols":0,"rows_kept":0,"cut":false,"hidden":false,"merged":[]}

{"sheet":"Indice","index":1,"n_rows":52,"n_cols":19,"rows_kept":52,"cut":false,"hidden":false,"merged":[[50,1,50,10],[8,3,9,9],[2,1,2,10],[3,1,3,10],[4,1,4,10],[51,1,51,10],[14,1,14,10],[13,1,13,10],[12,1,12,10],[46,9,46,10],[17,3,17,8],[16,3,16,8],[46,6,46,7],[46,1,46,5],[45,9,45,10],[15,3,15,8],[47,1,47,7]]}
[null,null,null,null,null,null,null,null,null,null,null,null,null,null,null,null,null,null,238]
[]
[null,"Consejo Monetario Centroamericano"]
[null,"Secretaría Ejecutiva"]
[null,"www.secmca.org"]
[]
[]
[]
[]
[]
[]
[]
[null,"REPORTE EJECUTIVO MENSUAL"]
[null,"DE INDICADORES MACROECONÓMICOS"]
[null,"DE CENTROAMÉRICA, PANAMÁ Y REPÚBLICA DOMINICANA"]
[]
[]
[null,null,null,null,null,null,null,null,null,"Con cifras al mes de:"]
[]
[]
[]
[]
[null,"CONTENIDO"]
[]
[]
[null,"INDICADORES REGIONALES"]
[null,null,null,"Principales indicadores macroeconómicos región CARD y CAPARD"]
[null,null,null,"CARD: evolución de los principales indicadores macroeconómicos"]
[null,null,null,"CAPARD: evolución de los principales indicadores macroeconómicos"]
[]
[null,"INDICADORES POR PAÍS"]
[null,null,null,"Cuadro comparativo por país"]
[null,null,null,"Proyecciones 2020-2021"]
[null,null,null,"Seguimiento de las proyecciones en 2019-2020"]
[null,null,null,"Evolución de indicadores macroeconómicos seleccionados (series mensuales)"]
[null,null,null,"Nota técnica"]
[]
[]
[]
[]
[]
[]
[]
[]
[]
[null,null,null,null,null,null,null,null,null,"Nº238"]
[null,"Elaborado con información recibida al ",null,null,null,null,"2020-03-04",null,null,"REM N° 239"]
[null,null,null,null,null,null,null,null,null,"2020-01-28",2020]
[]
[]
[]
[null,"ADVERTENCIA\n   El Consejo Monetario Centroamericano y su Secretaría Ejecutiva autorizan la reproducción total, gráficos y cifras de esta publicación, siempre que se mencione la fuente. No  obstante, no asumen responsabilidad legal alguna o de cualquier otra índole, por la manipulación, interpretación personal y uso de dicha información.   \nDerechos Reservados © 2019"]

{"sheet":"Regional-cuadro","index":2,"n_rows":95,"n_cols":8,"rows_kept":95,"cut":false,"hidden":false,"merged":[[88,1,88,7],[113,1,113,21],[114,8,115,8],[90,1,90,6],[95,1,95,7],[89,1,89,7],[92,1,92,7],[91,1,91,7],[55,10,55,16],[56,10,56,16],[66,10,66,16],[41,6,41,7],[43,6,43,7],[47,6,47,7],[61,5,61,7],[63,6,63,7],[55,6,55,7],[80,1,80,6],[85,1,85,6],[55,3,55,4],[69,6,69,7],[74,6,74,7],[61,2,61,4],[63,3,63,4],[83,1,83,6],[69,3,69,4],[74,3,74,4],[82,1,82,7],[37,1,38,1],[37,6,37,7],[29,3,29,4],[32,1,33,1],[32,6,32,7],[37,3,37,4],[32,3,32,4],[32,2,33,2],[32,5,33,5],[37,2,38,2],[37,5,38,5],[13,6,13,7],[17,6,17,7],[22,6,22,7],[47,3,47,4],[24,10,24,16],[29,6,29,7],[43,3,43,4],[41,3,41,4],[42,1,42,2],[4,10,4,16],[5,10,5,16],[2,0,2,7],[4,1,5,1],[4,3,5,4],[4,6,5,7],[4,2,5,2],[4,5,5,5],[22,3,22,4],[17,3,17,4],[13,3,13,4],[10,3,10,4],[7,3,7,4],[7,6,7,7],[10,6,10,7]]}
["Consejo Monetario Centroamericano",null,null,null,null,null,{"$f":"CONCATENATE(Indice!$J$47,\",\")","v":"REM N° 239,"},{"$f":"Indice!$J$48","v":"2020-01-28"}]
["Secretaría Ejecutiva"]
["PRINCIPALES INDICADORES MACROECONÓMICOS REGIONALES"]
[]
[null,"Agregados Regionales",null,"Región CARD 1/",null,null,"Región CAPARD 1/"]
[]
[null,"I. SECTOR REAL"]
[null,"1. Indice de Precios al Consumidor (IPC)",null,{"$f":"IF([1]EJECUTIVO!$J$7=[1]EJECUTIVO!$J$5,[1]EJECUTIVO!$G$7,CONCATENATE([1]EJECUTIVO!$G$7,\"\n\",[1]EJECUTIVO!$I$5,\"                 \",[1]EJECUTIVO!$J$5))","v":"DICIEMBRE\n2018                 2019"},null,null,{"$f":"IF([1]EJECUTIVO!$J$7=[1]EJECUTIVO!$J$5,[1]EJECUTIVO!$G$7,CONCATENATE([1]EJECUTIVO!$G$7,\"\n\",[1]EJECUTIVO!$I$5,\"                 \",[1]EJECUTIVO!$J$5))","v":"DICIEMBRE\n2018                 2019"}]
[null,"    1.1 Variación interanual",null,{"$f":"CONCATENATE(ROUND([1]EJECUTIVO!$I$7,1),\" %\")","v":"2.3 %"},{"$f":"CONCATENATE(ROUND([1]EJECUTIVO!$J$7,1),\" %\")","v":"3.3 %"},null,{"$f":"CONCATENATE(ROUND([1]EJECUTIVO!$I$8,1),\" %\")","v":"2 %"},{"$f":"CONCATENATE(ROUND([1]EJECUTIVO!$J$8,1),\" %\")","v":"3.1 %"}]
[]
[null,"2. Índice Mensual de Actividad Económica (IMAE)",null,{"$f":"IF([1]EJECUTIVO!$J$12=[1]EJECUTIVO!$J$10,[1]EJECUTIVO!$G$10,CONCATENATE([1]EJECUTIVO!$G$12,\"\n\",[1]EJECUTIVO!$I$10,\"                 \",[1]EJECUTIVO!$J$10))","v":"OCTUBRE\n2018                 2019"},null,null,{"$f":"IF([1]EJECUTIVO!$J$12=[1]EJECUTIVO!$J$10,[1]EJECUTIVO!$G$10,CONCATENATE([1]EJECUTIVO!$G$12,\"\n\",[1]EJECUTIVO!$I$10,\"                 \",[1]EJECUTIVO!$J$10))","v":"OCTUBRE\n2018                 2019"}]
[null,"    2.1 Variación acumulada de la tendencia-ciclo",null,{"$f":"CONCATENATE(ROUND([1]EJECUTIVO!$I$12,1),\" %\")","v":"4.4 %"},{"$f":"CONCATENATE(ROUND([1]EJECUTIVO!$J$12,1),\" %\")","v":"3.1 %"},null,{"$f":"CONCATENATE(ROUND([1]EJECUTIVO!$I$13,1),\" %\")","v":"4.2 %"},{"$f":"CONCATENATE(ROUND([1]EJECUTIVO!$J$13,1),\" %\")","v":"3.2 %"}]
[]
[null,"3. Producto Interno Bruto Trimestral (PIB)",null,{"$f":" CONCATENATE([1]EJECUTIVO!$G$17,\" TRIMESTRE \",\"\n\",[1]EJECUTIVO!$I$15,\"                 \",[1]EJECUTIVO!$J$15)","v":"III TRIMESTRE \n2018                 2019"},null,null,{"$f":" CONCATENATE([1]EJECUTIVO!$G$17,\" TRIMESTRE \",\"\n\",[1]EJECUTIVO!$I$15,\"                 \",[1]EJECUTIVO!$J$15)","v":"III TRIMESTRE \n2018                 2019"}]
[null,"    3.1 PIB nominal (millones de US$) ",null,{"$f":"[1]EJECUTIVO!$I$17","v":69157.626455093312},"n.d.",null,{"$f":"[1]EJECUTIVO!$I$18","v":85387.379455093309},"n.d."]
[null,"    3.2 PIB real, tasa de variación interanual",null,{"$f":"CONCATENATE(ROUND([1]EJECUTIVO!$I$22,1),\" %\")","v":"3.9 %"},{"$f":"CONCATENATE(ROUND([1]EJECUTIVO!$J$22,1),\" %\")","v":"3.3 %"},null,{"$f":"CONCATENATE(ROUND([1]EJECUTIVO!$I$23,1),\" %\")","v":"3.8 %"},{"$f":"CONCATENATE(ROUND([1]EJECUTIVO!$J$23,1),\" %\")","v":"3.2 %"}]
[]
[null,"4. Producto Interno Bruto anual (PIB)",null,{"$f":"IF([1]EJECUTIVO!$J$5=[1]EJECUTIVO!$J$25-1,\"    ANUAL\",CONCATENATE(\" ANUAL\",\"         \n\",[1]EJECUTIVO!$I$25,\"                \",[1]EJECUTIVO!$J$25))","v":" ANUAL         \n2018                2019"},null,null,{"$f":"IF([1]EJECUTIVO!$J$25-1=[1]EJECUTIVO!$J$5,\"    ANUAL\",CONCATENATE(\" ANUAL\",\"         \n\",[1]EJECUTIVO!$I$25,\"                \",[1]EJECUTIVO!$J$25))","v":" ANUAL         \n2018                2019"}]
[null,"    4.1 PIB nominal (millones de US$) ",null,{"$f":"[1]EJECUTIVO!$I$27","v":282215.10781476315},{"$f":"[1]EJECUTIVO!$J$27","v":288631.53325079131},null,{"$f":"[1]EJECUTIVO!$I$28","v":347343.29381476314},{"$f":"[1]EJECUTIVO!$J$28","v":359201.53325079131}]
[null,"    4.2 PIB real, tasa de variación interanual",null,{"$f":"CONCATENATE(ROUND([1]EJECUTIVO!$I$32,1),\" %\")","v":"3.9 %"},{"$f":"CONCATENATE(ROUND([1]EJECUTIVO!$J$32,1),\" %\")","v":"3.1 %"},null,{"$f":"CONCATENATE(ROUND([1]EJECUTIVO!$I$33,1),\" %\")","v":"3.8 %"},{"$f":"CONCATENATE(ROUND([1]EJECUTIVO!$J$33,1),\" %\")","v":"3.5 %"}]
[]
[null,"II. SECTOR EXTERNO"]
[null,"1. Comercio Exterior 2/",null,{"$f":"CONCATENATE(\"ACUMULADO A \",[1]EJECUTIVO!$G$55,\"\n\",[1]EJECUTIVO!$I$37,\"                 \",[1]EJECUTIVO!$J$37)","v":"ACUMULADO A ABRIL\n2018                 2019"},null,null,{"$f":"CONCATENATE(\"ACUMULADO A \",[1]EJECUTIVO!$G$55,\"\n\",[1]EJECUTIVO!$I$37,\"                 \",[1]EJECUTIVO!$J$37)","v":"ACUMULADO A ABRIL\n2018                 2019"}]
[null,"    1.1 Balanza de bienes (millones de US$)",null,{"$f":"[1]EJECUTIVO!$I$55","v":-10850.920700920788},{"$f":"[1]EJECUTIVO!$J$55","v":-11368.090798155892},null,{"$f":"[1]EJECUTIVO!$I$56","v":-14371.614017620786},{"$f":"[1]EJECUTIVO!$J$56","v":-15294.575949155891}]
[null," 1.2 Exportaciones totales FOB (millones de US$)",null,{"$f":"[1]EJECUTIVO!$I$40","v":16691.031701027532},{"$f":"[1]EJECUTIVO!$J$40","v":16370.177094601171},null,{"$f":"[1]EJECUTIVO!$I$42","v":20777.375374327534},{"$f":"[1]EJECUTIVO!$J$42","v":19703.188969601171}]
[null,"1.2.1 Tasa crecimiento interanual",null,{"$f":"CONCATENATE(ROUND([1]EJECUTIVO!$I$41,1),\" %\")","v":"4 %"},{"$f":"CONCATENATE(ROUND([1]EJECUTIVO!$J$41,1),\" %\")","v":"-1.9 %"},null,{"$f":"CONCATENATE(ROUND([1]EJECUTIVO!$I$43,1),\" %\")","v":"5.5 %"},{"$f":"CONCATENATE(ROUND([1]EJECUTIVO!$J$43,1),\" %\")","v":"-5.2 %"}]
[null," 1.3 Importaciones totales CIF (millones de US$)",null,{"$f":"[1]EJECUTIVO!$I$48","v":27541.952401948314},{"$f":"[1]EJECUTIVO!$J$48","v":27738.267892757067},null,{"$f":"[1]EJECUTIVO!$I$50","v":35148.989391948315},{"$f":"[1]EJECUTIVO!$J$50","v":34997.764918757064}]
[null,"1.3.1 Tasa crecimiento interanual",null,{"$f":"CONCATENATE(ROUND([1]EJECUTIVO!$I$49,1),\" %\")","v":"9.1 %"},{"$f":"CONCATENATE(ROUND([1]EJECUTIVO!$J$49,1),\" %\")","v":"0.7 %"},null,{"$f":"CONCATENATE(ROUND([1]EJECUTIVO!$I$51,1),\" %\")","v":"9.8 %"},{"$f":"CONCATENATE(ROUND([1]EJECUTIVO!$J$51,1),\" %\")","v":"-0.4 %"}]
[]
[null,"2. Ingreso de Remesas familiares ",null,{"$f":"CONCATENATE(\"ACUMULADO A \",[1]EJECUTIVO!$G$72,\"\n\",[1]EJECUTIVO!$I$63,\"                 \",[1]EJECUTIVO!$J$63)","v":"ACUMULADO A JUNIO\n2018                 2019"},null,null,{"$f":"CONCATENATE(\"ACUMULADO A \",[1]EJECUTIVO!$G$70,\"\n\",[1]EJECUTIVO!$I$68,\"                 \",[1]EJECUTIVO!$J$68)","v":"ACUMULADO A JUNIO\n2018                 2019"}]
[null,"    2.1 Ingreso de Remesas familiares (millones de US$)",null,{"$f":"[1]EJECUTIVO!$I$70","v":13585.311856894767},{"$f":"[1]EJECUTIVO!$J$70","v":14745.481776852728},null,{"$f":"[1]EJECUTIVO!$I$71","v":13816.511856894767},{"$f":"[1]EJECUTIVO!$J$71","v":14988.581776852729}]
[]
[null,"3. Inversión Extranjera Directa (IED)",null,{"$f":"CONCATENATE(\"ACUMULADO AL\",\" \",[1]EJECUTIVO!$G$81,\" \",\"TRIMESTRE\")","v":"ACUMULADO AL I TRIMESTRE"},null,null,{"$f":"CONCATENATE(\"ACUMULADO AL\",\" \",[1]EJECUTIVO!$G$81,\" \",\"TRIMESTRE\")","v":"ACUMULADO AL I TRIMESTRE"}]
[null,null,null,{"$f":"[1]EJECUTIVO!$I$84","v":2018},{"$f":"[1]EJECUTIVO!$J$84","v":2019},null,{"$f":"[1]EJECUTIVO!$I$84","v":2018},{"$f":"[1]EJECUTIVO!$J$84","v":2019}]
[null,"3.1. IED en la economía declarante, acumulado (millones de US$)",null,{"$f":"[1]EJECUTIVO!$I$86","v":2331.9382219277782},{"$f":"[1]EJECUTIVO!$J$86","v":2593.1315545961875},null,{"$f":"[1]EJECUTIVO!$I$87","v":3815.294021927778},{"$f":"[1]EJECUTIVO!$J$87","v":3749.6601605961878}]
[null,"3.2. Tasa de Variación interanual",null,{"$f":"CONCATENATE(ROUND((([1]EJECUTIVO!$I$86/[1]EJECUTIVO!$H$86)-1)*100,1),\" %\")","v":"-18.1 %"},{"$f":"CONCATENATE(ROUND((([1]EJECUTIVO!$J$86/[1]EJECUTIVO!$I$86)-1)*100,1),\" %\")","v":"11.2 %"},null,{"$f":"CONCATENATE(ROUND((([1]EJECUTIVO!$I$87/[1]EJECUTIVO!$H$87)-1)*100,1),\" %\")","v":"-7.1 %"},{"$f":"CONCATENATE(ROUND((([1]EJECUTIVO!$J$87/[1]EJECUTIVO!$I$87)-1)*100,1),\" %\")","v":"-1.7 %"}]
[]
[null,"4. Cuenta Corriente ",null,{"$f":"CONCATENATE(\"ACUMULADO AL\",\" \",[1]EJECUTIVO!$G$76,\" \",\"TRIMESTRE\")","v":"ACUMULADO AL I TRIMESTRE"},null,null,{"$f":"CONCATENATE(\"ACUMULADO AL\",\" \",[1]EJECUTIVO!$G$76,\" \",\"TRIMESTRE\")","v":"ACUMULADO AL I TRIMESTRE"}]
[null,null,null,{"$f":"[1]EJECUTIVO!$I$74","v":2018},{"$f":"[1]EJECUTIVO!$J$74","v":2019},null,{"$f":"[1]EJECUTIVO!$I$74","v":2018},{"$f":"[1]EJECUTIVO!$J$74","v":2019}]
[null,"4.1. Cuenta Corriente (millones de US$)",null,{"$f":"[1]EJECUTIVO!$I$76","v":684.39604702967404},{"$f":"[1]EJECUTIVO!$J$76","v":506.65539411074906},null,{"$f":"[1]EJECUTIVO!$I$77","v":-849.19445297032576},{"$f":"[1]EJECUTIVO!$J$77","v":-789.03056159925086}]
[]
[null,"5. Reservas Internacionales Netas del Banco Central (RIN) 3/",null,{"$f":"CONCATENATE(\"SALDO A \",[1]EJECUTIVO!$G$65,\"                              \",[1]EJECUTIVO!$I$63,\"                 \",[1]EJECUTIVO!$J$63)","v":"SALDO A DICIEMBRE                              2018                 2019"},null,null,{"$f":"CONCATENATE(\"SALDO A \",[1]EJECUTIVO!$G$66,\"                           \",[1]EJECUTIVO!$I$63,\"                 \",[1]EJECUTIVO!$J$63)","v":"SALDO A DICIEMBRE                           2018                 2019"}]
[null,"    5.1 RIN del Banco Central (millones de US$)",null,{"$f":"[1]EJECUTIVO!$I$65","v":38123.294928362244},{"$f":"[1]EJECUTIVO!$J$65","v":44436.446929098442},null,{"$f":"[1]EJECUTIVO!$I$66","v":41030.353193532246},{"$f":"[1]EJECUTIVO!$J$66","v":48579.787349228442}]
[null,null,null,{"$f":"CONCATENATE(\"ACUMULADO A \",[1]EJECUTIVO!$G$60,\"\n\",[1]EJECUTIVO!$I$58,\"                 \",[1]EJECUTIVO!$J$58)","v":"ACUMULADO A ABRIL\n2018                 2019"},null,null,{"$f":"CONCATENATE(\"ACUMULADO A \",[1]EJECUTIVO!$G$61,\"\n\",[1]EJECUTIVO!$I$58,\"                 \",[1]EJECUTIVO!$J$58)","v":"ACUMULADO A ABRIL\n2018                 2019"}]
[null,"    5.2 RIN Banco Central/ Importaciones\n          (meses de importación promedio)",null,{"$f":"[1]EJECUTIVO!$I$60","v":5.5745195722082954},{"$f":"[1]EJECUTIVO!$J$60","v":5.6085237518958184},null,{"$f":"[1]EJECUTIVO!$I$61","v":4.7486919120310498},{"$f":"[1]EJECUTIVO!$J$61","v":4.7858364679639562}]
[]
[null,"III. SECTOR FISCAL",null,2017,2018,null,2017,2018]
[null,"1. Resultado del Gobierno Central ",null,{"$f":"CONCATENATE(\"ACUMULADO A \",[1]EJECUTIVO!$G$93,\"\n\",D47,\"                 \",E47)","v":"ACUMULADO A DICIEMBRE\n2017                 2018"},null,null,{"$f":"CONCATENATE(\"ACUMULADO A \",[1]EJECUTIVO!$G$94,\"\n\",[1]EJECUTIVO!$I$91,\"                 \",[1]EJECUTIVO!$J$91)","v":"ACUMULADO A DICIEMBRE\n2017                 2018"}]
[null,"    1.1 Ingresos totales del Gobierno Central, incluye donaciones (millones US$)",null,{"$f":"[1]EJECUTIVO!$I$93","v":39635.714619491904},{"$f":"[1]EJECUTIVO!$J$93","v":40604.073536816621},null,{"$f":"[1]EJECUTIVO!$I$94","v":48310.714619491904},{"$f":"[1]EJECUTIVO!$J$94","v":49661.073536816621}]
[null,"    1.2 Gastos totales del Gobierno Central (millones US$)",null,{"$f":"[1]EJECUTIVO!$I$98","v":47590.38637763873},{"$f":"[1]EJECUTIVO!$J$98","v":48363.112090498682},null,{"$f":"[1]EJECUTIVO!$I$99","v":58212.38637763873},{"$f":"[1]EJECUTIVO!$J$99","v":59229.112090498682}]
[null,"    1.3 Donaciones recibidas (millones US$)",null,{"$f":"[1]EJECUTIVO!$I$103","v":360.77739548271325},{"$f":"[1]EJECUTIVO!$J$103","v":351.49508006493437},null,{"$f":"[1]EJECUTIVO!$I$104","v":364.77739548271325},{"$f":"[1]EJECUTIVO!$J$104","v":351.49508006493437}]
[null,"    1.4 Resultado del Gobierno Central (millones US$)",null,{"$f":"[1]EJECUTIVO!$I$108","v":-7593.8943626641139},{"$f":"[1]EJECUTIVO!$J$108","v":-7407.5434736171255},null,{"$f":"[1]EJECUTIVO!$I$109","v":-9536.8943626641139},{"$f":"[1]EJECUTIVO!$J$109","v":-9216.5434736171264}]
[null,"    1.5 Resultado del Gobierno Central / PIB",null,{"$f":"[1]EJECUTIVO!$I$113","v":-2.7921612963739618E-2},{"$f":"[1]EJECUTIVO!$J$113","v":-2.6247862954520484E-2},null,{"$f":"[1]EJECUTIVO!$I$114","v":-2.8537260451640591E-2},{"$f":"[1]EJECUTIVO!$J$114","v":-2.6534393027700928E-2}]
[]
[]
[null,"2. Deuda Pública",null,{"$f":"IF([1]EJECUTIVO!$J$49=[1]EJECUTIVO!$J$5,[1]EJECUTIVO!$G$118,CONCATENATE([1]EJECUTIVO!$G$118,\"\n\",D47,\"                 \",E47))","v":"DICIEMBRE\n2017                 2018"},null,null,{"$f":"IF([1]EJECUTIVO!$J$49=[1]EJECUTIVO!$J$5,[1]EJECUTIVO!$G$119,CONCATENATE([1]EJECUTIVO!$G$119,\"\n\",G47,\"                 \",H47))","v":"DICIEMBRE\n2017                 2018"}]
[null,"    2.1 Deuda Interna (millones de US$) 4/",null,{"$f":"[1]EJECUTIVO!$I$118","v":67884.090147035226},{"$f":"[1]EJECUTIVO!$J$118","v":71562.294840012124},null,{"$f":"[1]EJECUTIVO!$I$119","v":72867.620147035224},{"$f":"[1]EJECUTIVO!$J$119","v":76674.37594001212}]
[null,"    2.2 Deuda Externa (millones de US$)",null,{"$f":"[1]EJECUTIVO!$I$123","v":60609.451169150008},{"$f":"[1]EJECUTIVO!$J$123","v":64599.687981737145},null,{"$f":"[1]EJECUTIVO!$I$124","v":78999.491169150002},{"$f":"[1]EJECUTIVO!$J$124","v":85174.466681737133}]
[null,"    2.3 Deuda Total (millones de US$) 4/",null,{"$f":"[1]EJECUTIVO!$I$128","v":128493.54131618523},{"$f":"[1]EJECUTIVO!$J$128","v":136161.98282174926},null,{"$f":"[1]EJECUTIVO!$I$129","v":151867.11131618527},{"$f":"[1]EJECUTIVO!$J$129","v":161848.84262174927}]
[null,"    2.4 Deuda Total / PIB 4/",null,{"$f":"IF(ISERROR([1]EJECUTIVO!$I$133/100),\"n.d.\",[1]EJECUTIVO!$I$133/100)","v":0.47245151929031381},{"$f":"[1]EJECUTIVO!$J$133/100","v":0.48247588116764312},null,{"$f":"IF(ISERROR([1]EJECUTIVO!$I$134/100),\"n.d.\",[1]EJECUTIVO!$I$134/100)","v":0.45443213952698275},{"$f":"[1]EJECUTIVO!$J$134/100","v":0.46596219217078838}]
[]
[null,"Agregados Regionales","Región CARD",null,null,"Región CAPARD"]
[null,"IV. SECTOR MONETARIO  ",{"$f":"+[1]EJECUTIVO!$J$138","v":2019},{"$f":"+[1]EJECUTIVO!$I$138","v":2018},{"$f":"+[1]EJECUTIVO!$J$138","v":2019},{"$f":"+[1]EJECUTIVO!$J$146","v":2019},{"$f":"+[1]EJECUTIVO!$I$146","v":2018},{"$f":"+[1]EJECUTIVO!$J$146","v":2019}]
[null,"1. Agregados Monetarios",{"$f":"CONCATENATE(\"Porcentaje respecto a M3 a \",[1]EJECUTIVO!$G$141)","v":"Porcentaje respecto a M3 a NOVIEMBRE"},{"$f":"CONCATENATE(\"Variación Interanual a  \",[1]EJECUTIVO!$G$141)","v":"Variación Interanual a  NOVIEMBRE"},null,{"$f":"CONCATENATE(\"Porcentaje respecto a M3 a \",[1]EJECUTIVO!$G$141)","v":"Porcentaje respecto a M3 a NOVIEMBRE"},{"$f":"CONCATENATE(\"Variación Interanual a  \",[1]EJECUTIVO!$G$141)","v":"Variación Interanual a  NOVIEMBRE"}]
[null,"1.1 M1 5/",{"$f":"INDEX('[1]MONE(M)CARD'!$FA:$FJ,[1]EJECUTIVO!$E$149+6,3)/100","v":0.30726250765883123},{"$f":"INDEX('[1]MONE(M)CARD'!$EQ:$EZ,[1]EJECUTIVO!$E$149-6,3)/100","v":5.6057735589678526E-3},{"$f":"INDEX('[1]MONE(M)CARD'!$EQ:$EZ,[1]EJECUTIVO!$E$149+6,3)/100","v":0.13501555824736067},{"$f":"INDEX('[1]MONE(M)CAPARD'!$FW:$GF,[1]EJECUTIVO!$E$149+6,3)/100","v":0.27802768226434499},{"$f":"INDEX('[1]MONE(M)CAPARD'!$FM:$FV,[1]EJECUTIVO!$E$149-6,3)/100","v":4.9024135132564872E-3},{"$f":"INDEX('[1]MONE(M)CAPARD'!$FM:$FV,[1]EJECUTIVO!$E$149+6,3)/100","v":9.9815920767419186E-2}]
[null,"1.2 M2 6/",{"$f":"INDEX('[1]MONE(M)CARD'!$FA:$FJ,[1]EJECUTIVO!$E$149+6,6)/100","v":0.75845087846793358},{"$f":"INDEX('[1]MONE(M)CARD'!$EQ:$EZ,[1]EJECUTIVO!$E$149-6,6)/100","v":8.2890174481144996E-3},{"$f":"INDEX('[1]MONE(M)CARD'!$EQ:$EZ,[1]EJECUTIVO!$E$149+6,6)/100","v":9.3435612353482522E-2},{"$f":"INDEX('[1]MONE(M)CAPARD'!$FW:$GF,[1]EJECUTIVO!$E$149+6,6)/100","v":0.81654611444407477},{"$f":"INDEX('[1]MONE(M)CAPARD'!$FM:$FV,[1]EJECUTIVO!$E$149-6,6)/100","v":1.4622808123085473E-2},{"$f":"INDEX('[1]MONE(M)CAPARD'!$FM:$FV,[1]EJECUTIVO!$E$149+6,6)/100","v":7.13498668064938E-2}]
[null,"1.3 M3 7/",{"$f":"INDEX('[1]MONE(M)CARD'!$FA:$FJ,[1]EJECUTIVO!$E$149+6,10)/100","v":1},{"$f":"INDEX('[1]MONE(M)CARD'!$EQ:$EZ,[1]EJECUTIVO!$E$149-6,10)/100","v":9.4054936457799165E-3},{"$f":"INDEX('[1]MONE(M)CARD'!$EQ:$EZ,[1]EJECUTIVO!$E$149+6,10)/100","v":7.679453741189457E-2},{"$f":"INDEX('[1]MONE(M)CAPARD'!$FW:$GF,[1]EJECUTIVO!$E$149+6,10)/100","v":1},{"$f":"INDEX('[1]MONE(M)CAPARD'!$FM:$FV,[1]EJECUTIVO!$E$149-6,10)/100","v":1.4260178617882868E-2},{"$f":"INDEX('[1]MONE(M)CAPARD'!$FM:$FV,[1]EJECUTIVO!$E$149+6,10)/100","v":6.3063520107631721E-2}]
[null,"1.4 Base Monetaria Amplia 8/",{"$f":"INDEX('[1]MONE(M)CARD'!$FM:$FM,[1]EJECUTIVO!$E$149+6,1)/100","v":0.31258547927100888},{"$f":"INDEX('[1]MONE(M)CARD'!$FN:$FN,[1]EJECUTIVO!$E$149-6,1)/100","v":-2.8934326477675909E-2},{"$f":"INDEX('[1]MONE(M)CARD'!$FN:$FN,[1]EJECUTIVO!$E$149+6,1)/100","v":7.9371283477782884E-2},{"$f":"INDEX('[1]MONE(M)CAPARD'!$GI:$GI,[1]EJECUTIVO!$E$149+6,1)/100","v":0.2488522434627666},{"$f":"INDEX('[1]MONE(M)CAPARD'!$GJ:$GJ,[1]EJECUTIVO!$E$149-6,1)/100","v":-2.7818619735695327E-2},{"$f":"INDEX('[1]MONE(M)CAPARD'!$GJ:$GJ,[1]EJECUTIVO!$E$149+6,1)/100","v":8.3117900237467554E-2}]
[]
[null,"2. Crédito Neto de las OSD 9/ con el Sector Público",{"$f":"CONCATENATE(\"Saldo en millones de US$ a \",[1]EJECUTIVO!$G$141)","v":"Saldo en millones de US$ a NOVIEMBRE"},{"$f":"CONCATENATE(\"Variación Interanual a  \",[1]EJECUTIVO!$G$141)","v":"Variación Interanual a  NOVIEMBRE"},null,{"$f":"CONCATENATE(\"Saldo en millones de US$ a \",[1]EJECUTIVO!$G$141)","v":"Saldo en millones de US$ a NOVIEMBRE"},{"$f":"CONCATENATE(\"Variación Interanual a  \",[1]EJECUTIVO!$G$141)","v":"Variación Interanual a  NOVIEMBRE"}]
[null,"2.1 Total Activos",{"$f":"INDEX('[1]MONE(M)CARD'!$FO:$FW,[1]EJECUTIVO!$E$149+6,9)","v":22663.309813855041},{"$f":"INDEX('[1]MONE(M)CARD'!$GX:$HE,[1]EJECUTIVO!$E$149-6,8)/100","v":5.084520048893193E-2},{"$f":"INDEX('[1]MONE(M)CARD'!$GX:$HE,[1]EJECUTIVO!$E$149+6,8)/100","v":0.16412070653893096},{"$f":"INDEX('[1]MONE(M)CAPARD'!$GK:$GS,[1]EJECUTIVO!$E$149+6,9)","v":25611.269364085041},{"$f":"INDEX('[1]MONE(M)CAPARD'!$HT:$IA,[1]EJECUTIVO!$E$149-6,8)/100","v":4.228800044533032E-2},{"$f":"INDEX('[1]MONE(M)CAPARD'!$HT:$IA,[1]EJECUTIVO!$E$149+6,8)/100","v":0.15557267986115164}]
[null,"2.2 Total Pasivos",{"$f":"INDEX('[1]MONE(M)CARD'!$FX:$GF,[1]EJECUTIVO!$E$149+6,8)","v":13626.861069361998},{"$f":"INDEX('[1]MONE(M)CARD'!$HF:$HN,[1]EJECUTIVO!$E$149-6,8)/100","v":-9.8766292221795782E-3},{"$f":"INDEX('[1]MONE(M)CARD'!$HF:$HN,[1]EJECUTIVO!$E$149+6,8)/100","v":0.19684456698587602},{"$f":"INDEX('[1]MONE(M)CAPARD'!$GT:$HB,[1]EJECUTIVO!$E$149+6,8)","v":15989.007993781999},{"$f":"INDEX('[1]MONE(M)CAPARD'!$IB:$IJ,[1]EJECUTIVO!$E$149-6,8)/100","v":1.0107330176780671E-3},{"$f":"INDEX('[1]MONE(M)CAPARD'!$IB:$IJ,[1]EJECUTIVO!$E$149+6,8)/100","v":0.20550172828537996}]
[null,"2.3 Crédito neto",{"$f":"INDEX('[1]MONE(M)CARD'!$FX:$GF,[1]EJECUTIVO!$E$149+6,9)","v":9036.4487444930437},{"$f":"INDEX('[1]MONE(M)CARD'!$HF:$HN,[1]EJECUTIVO!$E$149-6,9)/100","v":0.15021282719898754},{"$f":"INDEX('[1]MONE(M)CARD'!$HF:$HN,[1]EJECUTIVO!$E$149+6,9)/100","v":0.11802338360723441},{"$f":"INDEX('[1]MONE(M)CAPARD'!$GT:$HB,[1]EJECUTIVO!$E$149+6,9)","v":9622.261370303042},{"$f":"INDEX('[1]MONE(M)CAPARD'!$IB:$IJ,[1]EJECUTIVO!$E$149-6,9)/100","v":0.11053318232633025},{"$f":"INDEX('[1]MONE(M)CAPARD'!$IB:$IJ,[1]EJECUTIVO!$E$149+6,9)/100","v":8.1164352851624391E-2}]
[]
[null,"3. Crédito 10/ de las OSD 9/ con el Sector Privado",{"$f":"CONCATENATE(\"Saldo en millones de US$ a \",[1]EJECUTIVO!$G$141)","v":"Saldo en millones de US$ a NOVIEMBRE"},{"$f":"CONCATENATE(\"Variación Interanual a  \",[1]EJECUTIVO!$G$141)","v":"Variación Interanual a  NOVIEMBRE"},null,{"$f":"CONCATENATE(\"Saldo en millones de US$ a \",[1]EJECUTIVO!$G$141)","v":"Saldo en millones de US$ a NOVIEMBRE"},{"$f":"CONCATENATE(\"Variación Interanual a  \",[1]EJECUTIVO!$G$141)","v":"Variación Interanual a  NOVIEMBRE"}]
[null,"    3.1 Otras Sociedades No Financieras 11/",{"$f":"INDEX('Datos_Regional (M)'!AF:AK,[1]EJECUTIVO!$E$149-1,5)","v":56053.051784806295},{"$f":"INDEX('Datos_Regional (M)'!AL:AR,[1]EJECUTIVO!$E$149-13,2)/100","v":4.4218910432373804E-2},{"$f":"INDEX('Datos_Regional (M)'!AL:AR,[1]EJECUTIVO!$E$149-1,2)/100","v":2.3194013132826319E-2},{"$f":"INDEX('Datos_Regional (M)'!AW:BB,[1]EJECUTIVO!$E$149-1,5)","v":82149.590243926315},{"$f":"INDEX('Datos_Regional (M)'!BC:BI,[1]EJECUTIVO!$E$149-13,2)/100","v":3.7332615897868626E-2},{"$f":"INDEX('Datos_Regional (M)'!BC:CI,[1]EJECUTIVO!$E$149-1,2)/100","v":1.1256703422117376E-2}]
[null,"    3.2 Hogares e ISFLSH 12/",{"$f":"INDEX('Datos_Regional (M)'!AF:AK,[1]EJECUTIVO!$E$149-1,4)","v":62164.712066648681},{"$f":"INDEX('Datos_Regional (M)'!AL:AR,[1]EJECUTIVO!$E$149-13,5)/100","v":1.5839851390433424E-2},{"$f":"INDEX('Datos_Regional (M)'!AL:AR,[1]EJECUTIVO!$E$149-1,5)/100","v":5.8515272929936302E-2},{"$f":"INDEX('Datos_Regional (M)'!AW:BB,[1]EJECUTIVO!$E$149-1,4)","v":88152.370425748682},{"$f":"INDEX('Datos_Regional (M)'!BC:BI,[1]EJECUTIVO!$E$149-13,5)/100","v":3.1187652663167587E-2},{"$f":"INDEX('Datos_Regional (M)'!BC:CI,[1]EJECUTIVO!$E$149-1,5)/100","v":5.7370417404028817E-2}]
[null,"    3.3 Otros 13/",{"$f":"INDEX('Datos_Regional (M)'!AF:AK,[1]EJECUTIVO!$E$149-1,2)","v":1193.6083970833797},{"$f":"INDEX('Datos_Regional (M)'!AL:AR,[1]EJECUTIVO!$E$149-13,3)/100","v":0.36330646060263305},{"$f":"INDEX('Datos_Regional (M)'!AL:AR,[1]EJECUTIVO!$E$149-1,3)/100","v":-0.18433390164568741},{"$f":"INDEX('Datos_Regional (M)'!AW:BB,[1]EJECUTIVO!$E$149-1,2)","v":1670.4767929733798},{"$f":"INDEX('Datos_Regional (M)'!BC:BI,[1]EJECUTIVO!$E$149-13,3)/100","v":0.22436908537478018},{"$f":"INDEX('Datos_Regional (M)'!BC:CI,[1]EJECUTIVO!$E$149-1,3)/100","v":-0.12317455424235323}]
[null,"    3.4 Total",{"$f":"INDEX('Datos_Regional (M)'!AF:AK,[1]EJECUTIVO!$E$149-1,6)","v":119411.37224853836},{"$f":"INDEX('Datos_Regional (M)'!AL:AR,[1]EJECUTIVO!$E$149-13,6)/100","v":3.2560378306525584E-2},{"$f":"INDEX('Datos_Regional (M)'!AL:AR,[1]EJECUTIVO!$E$149-1,6)/100","v":3.8594605792643621E-2},{"$f":"INDEX('Datos_Regional (M)'!AW:BB,[1]EJECUTIVO!$E$149-1,6)","v":171972.43746264838},{"$f":"INDEX('Datos_Regional (M)'!BC:CI,[1]EJECUTIVO!$E$149-13,6)/100","v":3.6052245295405738E-2},{"$f":"INDEX('Datos_Regional (M)'!BC:CI,[1]EJECUTIVO!$E$149-1,6)/100","v":3.280717767261887E-2}]
[null,"Fuente: Cálculos de la Secretaría Ejecutiva con base en la información proporcionada por los Bancos Centrales de la región."]
[null,"*/ No incluye las remesas de Costa Rica debido a que se compilan trimestralmente.  En 2013 Costa Rica recibió 229 millones de US$ de remesas netas (ingresos-egresos)."]
[null,"Notas:"]
[null,"1/ La región CARD incluye a los países centroamericanos y a la República Dominicana. La región CAPARD incluye a los países centroamericanos, Panamá y la República Dominicana."]
[null,"2/ Incluye comercio intrarregional.  No incluye la maquila en el caso de Honduras. En Panamá incluye: exportación de mercancías generales, reexportaciones \nnacionales y reexportaciones de la Zona Libre de Colón."]
[null,"3/ En Panamá, al no tener banco central, las RIN son administradas por el Banco Nacional de Panamá (BNP)."]
[null,"4/ Incluye la deuda interna consolidada en los casos de Guatemala, Honduras y República Dominicana, tal como lo recomienda la versión del 2001 del Manual de Estadísticas de Finanzas Públicas del FMI. En el resto de países se considera únicamente la deuda interna bruta."]
[null,"5/ M1: incluye billetes y monedas en poder del público más los depósitos transferibles en MN."]
[null,"6/ M2: incluye M1 más otros depósitos en MN, más valores distintos de acciones emitidos por las sociedades de depósito en moneda nacional."]
[null,"7/ M3: incluye M2 más depósitos transferibles en ME, más otros depósitos en ME, más valores distintos de acciones emitidos por las sociedades de depósito en ME."]
[null,"8/ Base Monetaria Amplia: incluye billetes y monedas en circulación, más depósitos transferibles por concepto de encaje en MN, más valores por concepto de encaje en MN, más pasivos frente a OSD de encaje legal en ME, más otros pasivos frente a OSD a corto plazo, más depósitos y valores de otros sectores."]
[null,"9/ OSD corresponde a otras sociedades de depósito, por ejemplo: Bancos comerciales, cooperativas, y otras sociedades de depósito que reciben dinero de público."]
[null,"10/  Incluye valores distintos de acciones y préstamos."]
[null,"11/ Otras sociedades no Financieras abarca las sociedades y cuasisociedades que se dedican principalmente a la producción de bienes y servicios no financieros."]
[null,"12/ ISFLSH corresponde a Instituciones sin fines de lucro que dan servicios a los hogares, en estas podemos encontrar organizaciones del tipo ONG´s."]
[null,"13/ Incluye otros sectores residentes, por ejemplo otras sociedades financieras."]

{"sheet":"Región CARD-graficos","index":3,"n_rows":103,"n_cols":19,"rows_kept":103,"cut":false,"hidden":false,"merged":[[116,1,117,7],[55,1,55,7],[54,1,54,7],[54,10,54,17],[55,10,55,17],[70,1,70,8],[71,1,71,8],[70,10,70,17],[66,9,67,9],[71,10,71,17],[104,1,104,17],[68,1,68,8],[68,10,69,17],[103,1,103,17],[102,1,102,17],[2,1,2,17],[4,10,4,17],[5,10,5,17],[20,1,20,7],[21,1,21,7],[20,10,20,17],[21,10,21,17],[4,1,4,8],[5,1,5,8],[35,10,35,17],[53,10,53,17],[38,1,38,8],[37,10,37,17],[37,1,37,8],[38,10,38,17]]}
[null,"Consejo Monetario Centroamericano",null,null,null,null,null,null,null,null,null,null,null,null,null,{"$f":"CONCATENATE(Indice!$J$47,\",\")","v":"REM N° 239,"},{"$f":"Indice!$J$48","v":"2020-01-28"}]
[null,"Secretaría Ejecutiva"]
[null,"REGIÓN CARD: EVOLUCIÓN DE LOS PRINCIPALES INDICADORES MACROECONÓMICOS"]
[]
[null,"Región CARD: Inflación, serie original y tendencia de largo plazo",null,null,null,null,null,null,null,null,"Región CARD: Ciclo de crecimiento de la Actividad Económica"]
[null,"(cálculos basados en el IPC, variación interanual)",null,null,null,null,null,null,null,null,"(cálculos basados en el IMAE, variación interanual)"]
[]
[]
[]
[]
[]
[]
[]
[]
[]
[]
[]
[]
[]
[]
[null,"Región CARD:",null,null,null,null,null,null,null,null,"Región CARD:"]
[null,"Reservas Internacionales Netas del Banco Central",null,null,null,null,null,null,null,null," Flujos trimestrales de Inversión Extranjera Directa (IED) en la economía declarante"]
[]
[]
[]
[]
[null,null,null,null,null,null,null,null,null,null,null,null,null,null,null,null,null,null," "]
[]
[]
[]
[]
[]
[]
[]
[]
[null,null,null,null,null,null,null,null,null,null,"Los datos de Nicaragua del II y III trimestre de 2019 no están disponibles. \nLos flujos negativos observados en El Salvador y Honduras surgen debido a amortizaciones netas de préstamos con el inversionista directo, mayores a lo registrado por acciones u otras aportaciones de capital, los cuales por metodología deben sumarse al valor de la IED.\n"]
[]
[null,{"$f":"CONCATENATE(\"Región CARD:\")","v":"Región CARD:"},null,null,null,null,null,null,null,null,"Región CARD:"]
[null,"Flujos mensuales de comercio exterior",null,null,null,null,null,null,null,null,"Ingreso de Remesas , sin acumular"]
[]
[]
[]
[]
[]
[]
[]
[]
[]
[]
[]
[]
[]
[]
[null,null,null,null,null,null,null,null,null,null,"Los datos de Nicaragua del III trimestre de 2019 no están disponibles."]
[null,"Región CARD:",null,null,null,null,null,null,null,null,"Región CARD: Saldo Operacional (con donaciones) del Gobierno Central\ncon respecto al PIB"]
[null,"Deuda Pública Bruta Total, Interna y Externa",null,null,null,null,null,null,null,null,{"$f":"CONCATENATE(\"Datos a \",'Saldo Operacional'!C4,\" de cada año\")","v":"Datos a diciembre de cada año"}]
[]
[]
[]
[]
[]
[]
[]
[]
[]
[]
[]
[]
[null,"Incluye la deuda interna consolidada en los casos de Guatemala, Honduras y República Dominicana, tal como lo recomienda la versión del 2001 del Manual de Estadísticas de Finanzas Públicas del FMI. En el resto de países se considera únicamente la deuda interna bruta.",null,null,null,null,null,null,null,null,"En 2015 el saldo operacional disminuyó debido a que en enero de ese año República Dominicana registró dentro de las donaciones la suma de RD$ 93,157.2 millones, correspondiente al descuento generado por la transacción de deuda realizada con Petrocaribe."]
[]
[null,"Región CARD:",null,null,null,null,null,null,null,null,"Región CARD:"]
[null,{"$f":"CONCATENATE(\"Agregados Monetarios (Millones US$)\",\" \",\"y variación interanual\")","v":"Agregados Monetarios (Millones US$) y variación interanual"},null,null,null,null,null,null,null,null,{"$f":"CONCATENATE(\"Crédito Total (Millones US$)\",\" \",\"y variación interanual\")","v":"Crédito Total (Millones US$) y variación interanual"}]
[]
[]
[]
[]
[]
[]
[]
[]
[]
[]
[]
[]
[]
[]
[]
[]
[]
[null,"OJO, REVISAR AÑO DE INICIO DE TODOS ESTOS GRAFICOS PARA ARMONIZAR !!!"]
[]
[null,null,"deuda: a partir de diciembre 2011 mensual"]
[null,null,"remesas: desde 2006"]
[null,null,"ied:2008"]
[null,null,"agregados monetarios:2002"]
[null,null,"crédito osd:2003"]
[]
[null,null,"***la serie mas corta es la de remesas 2008, la extensión se puede evaluar a partir de esta fecha para que se armonizado pero se perdería información en otras series"]
[]
[]
[null,null,null,null,null,null,null,null,null,null,"OSD: Corresponde a Otras Sociedades de Depósito, por ejemplo: bancos comerciales y cooperativas. "]
[]
[null,"La región CARD la conforman los países de Centroamérica y República Dominicana"]

{"sheet":"Región CAPARD-graficos","index":4,"n_rows":103,"n_cols":19,"rows_kept":103,"cut":false,"hidden":false,"merged":[[104,1,104,17],[116,1,117,7],[68,1,68,8],[68,10,69,17],[70,1,70,8],[70,10,70,17],[71,1,71,8],[71,10,71,17],[102,1,102,17],[103,1,103,17],[100,1,100,8],[100,10,100,17],[99,10,99,17],[66,9,67,9],[21,1,21,7],[21,10,21,17],[34,10,35,17],[37,1,37,8],[37,10,37,17],[38,1,38,8],[38,10,38,17],[53,10,53,17],[54,1,54,7],[54,10,54,17],[55,1,55,7],[55,10,55,17],[34,1,35,8],[20,1,20,7],[20,10,20,17],[2,1,2,17],[4,10,4,17],[5,1,5,7],[5,10,5,17],[4,1,4,8]]}
[null,"Consejo Monetario Centroamericano",null,null,null,null,null,null,null,null,null,null,null,null,null,{"$f":"CONCATENATE(Indice!$J$47,\",\")","v":"REM N° 239,"},{"$f":"Indice!$J$48","v":"2020-01-28"}]
[null,"Secretaría Ejecutiva"]
[null,"REGIÓN CAPARD: EVOLUCIÓN DE LOS PRINCIPALES INDICADORES MACROECONÓMICOS"]
[]
[null,"Región CAPARD: Inflación, serie original y tendencia de largo plazo",null,null,null,null,null,null,null,null,"Región CAPARD: Ciclo de crecimiento de la Actividad Económica"]
[null,"(cálculos basados en el IPC, variación interanual)",null,null,null,null,null,null,null,null,"(cálculos basados en el IMAE, variación interanual)"]
[]
[]
[]
[]
[]
[]
[]
[]
[]
[]
[]
[]
[]
[]
[null,"Región CAPARD:",null,null,null,null,null,null,null,null,"Región CAPARD:"]
[null,"Reservas Internacionales Netas del Banco Central",null,null,null,null,null,null,null,null," Flujos trimestrales de Inversión Extranjera Directa (IED) en la economía declarante"]
[]
[]
[]
[]
[null,null,null,null,null,null,null,null,null,null,null,null,null,null,null,null,null,null," "]
[]
[]
[]
[]
[]
[]
[]
[null,"En Panamá, el Banco Nacional de Panamá (BNP) funciona como receptor y gestor de las RIN que corresponden a los activos externos de reserva menos los pasivos de corto plazo frente a no residentes. Los primeros se componen de: billetes y depósitos en moneda extranjera e inversiones en títulos (incluidos los títulos de deuda y participaciones de capital); los pasivos se componen de los depósitos transferibles de no residentes en moneda extranjera. ",null,null,null,null,null,null,null,null,"Los datos de Nicaragua del II y III trimestre de 2019 no están disponibles. \nLos flujos negativos observados en El Salvador y Honduras surgen debido a amortizaciones netas de préstamos con el inversionista directo, mayores a lo registrado por acciones u otras aportaciones de capital, los cuales por metodología deben sumarse al valor de la IED."]
[]
[]
[null,{"$f":"CONCATENATE(\"Región CAPARD:\")","v":"Región CAPARD:"},null,null,null,null,null,null,null,null,"Región CAPARD:"]
[null,"Flujos mensuales de comercio exterior",null,null,null,null,null,null,null,null,"Ingreso de Remesas , sin acumular"]
[]
[]
[]
[]
[]
[]
[]
[]
[]
[]
[]
[]
[]
[]
[null,null,null,null,null,null,null,null,null,null,"Los datos de Nicaragua del III trimestre de 2019 no están disponibles."]
[null,"Región CAPARD:",null,null,null,null,null,null,null,null,"Región CAPARD:\nSaldo Operacional (con donaciones) del Gobierno Central\ncon respecto al PIB"]
[null,"Deuda Pública Bruta Total, Interna y Externa",null,null,null,null,null,null,null,null,{"$f":"CONCATENATE(\"Datos a \",'Saldo Operacional'!G4,\" de cada año\")","v":"Datos a diciembre de cada año"}]
[]
[]
[]
[]
[]
[]
[]
[]
[]
[]
[]
[]
[null,"Incluye la deuda interna consolidada en los casos de Guatemala, Honduras y República Dominicana, tal como lo recomienda la versión del 2001 del Manual de Estadísticas de Finanzas Públicas del FMI. En el resto de países se considera únicamente la deuda interna bruta.",null,null,null,null,null,null,null,null,"En 2015 el saldo operacional disminuyó debido a que en enero de ese año República Dominicana registró dentro de las donaciones la suma de RD$ 93,157.2 millones, correspondiente al descuento generado por la transacción de deuda realizada con Petrocaribe."]
[]
[null,"Región CAPARD:",null,null,null,null,null,null,null,null,"Región CAPARD:"]
[null,{"$f":"CONCATENATE(\"Agregados Monetarios (Millones US$)\",\" \",\"y variación interanual\")","v":"Agregados Monetarios (Millones US$) y variación interanual"},null,null,null,null,null,null,null,null,{"$f":"CONCATENATE(\"Crédito Total (Millones US$)\",\" \",\"y variación interanual\")","v":"Crédito Total (Millones US$) y variación interanual"}]
[]
[]
[]
[]
[]
[]
[]
[]
[]
[]
[]
[]
[]
[]
[]
[]
[]
[null,"OJO, REVISAR AÑO DE INICIO DE TODOS ESTOS GRAFICOS PARA ARMONIZAR !!!"]
[]
[null,null,"deuda: a partir de diciembre 2011 mensual"]
[null,null,"remesas: desde 2006"]
[null,null,"ied:2008"]
[null,null,"agregados monetarios:2002"]
[null,null,"crédito osd:2003"]
[]
[null,null,"***la serie mas corta es la de remesas 2008, la extensión se puede evaluar a partir de esta fecha para que se armonizado pero se perdería información en otras series"]
[]
[null,null,null,null,null,null,null,null,null,null,"OSD: Corresponde a Otras Sociedades de Depósito, por ejemplo: bancos comerciales y cooperativas. "]
[null,"Las disminuciones en créditos y depósitos al cierre de 2013 se deben a que durante los meses de septiembre y octubre de ese año se originó la venta del Banco HSBC Panamá  al grupo Bancolombia; algunas operaciones financieras que mantenía el Banco HSBC no fueron adquiridas o cedidas a Bancolombia (Banistmo, S.A.), saliendo del sistema bancario panameño a otros centros financieros.",null,null,null,null,null,null,null,null,"Las disminuciones en créditos al cierre de 2013 se deben a que durante los meses de septiembre y octubre de ese año se originó la venta del Banco HSBC Panamá al grupo Bancolombia; algunas operaciones financieras que mantenía el Banco HSBC no fueron adquiridas o cedidas a Bancolombia (Banistmo, S.A.), saliendo del sistema bancario panameño a otros centros financieros."]
[]
[null,"La región CAPARD la conforman los países de Centroamérica, Panamá y República Dominicana."]

{"sheet":"Comparativo","index":5,"n_rows":151,"n_cols":15,"rows_kept":151,"cut":false,"hidden":false,"merged":[[3,5,3,6],[16,9,16,10],[16,11,16,12],[22,1,22,2],[22,3,22,4],[4,0,4,12],[5,1,5,2],[5,3,5,4],[5,5,5,6],[5,7,5,8],[5,9,5,10],[5,11,5,12],[8,1,8,2],[8,3,8,4],[8,5,8,6],[8,7,8,8],[8,9,8,10],[8,11,8,12],[7,1,7,2],[7,3,7,4],[7,5,7,6],[7,7,7,8],[7,9,7,10],[7,11,7,12],[18,0,19,0],[43,5,43,6],[43,7,43,8],[43,9,43,10],[43,11,43,12],[32,11,32,12],[13,1,13,2],[13,3,13,4],[13,5,13,6],[13,7,13,8],[13,9,13,10],[13,11,13,12],[23,1,23,2],[23,3,23,4],[23,5,23,6],[23,7,23,8],[23,9,23,10],[23,11,23,12],[16,1,16,2],[16,3,16,4],[16,5,16,6],[43,1,43,2],[34,1,34,2],[16,7,16,8],[41,7,41,8],[22,5,22,6],[22,7,22,8],[22,9,22,10],[22,11,22,12],[66,1,66,2],[66,3,66,4],[66,5,66,6],[66,7,66,8],[66,9,66,10],[66,11,66,12],[54,1,54,2],[54,3,54,4],[54,5,54,6],[54,7,54,8],[54,9,54,10],[54,11,54,12],[46,1,46,2],[46,3,46,4],[46,5,46,6],[46,7,46,8],[46,9,46,10],[43,3,43,4],[29,1,29,2],[91,3,91,4],[91,5,91,6],[91,7,91,8],[91,9,91,10],[91,11,91,12],[92,1,92,2],[92,3,92,4],[92,5,92,6],[92,7,92,8],[92,9,92,10],[92,11,92,12],[41,9,41,10],[136,1,136,2],[136,3,136,4],[136,5,136,6],[136,7,136,8],[136,9,136,10],[136,11,136,12],[125,1,125,2],[125,3,125,4],[125,5,125,6],[125,7,125,8],[125,9,125,10],[125,11,125,12],[117,1,117,2],[117,3,117,4],[117,5,117,6],[117,7,117,8],[117,9,117,10],[41,1,41,2],[117,11,117,12],[41,3,41,4],[91,1,91,2],[41,5,41,6],[46,11,46,12],[29,7,29,8],[29,9,29,10],[29,11,29,12],[38,1,38,2],[38,3,38,4],[38,5,38,6],[38,7,38,8],[38,9,38,10],[38,11,38,12],[32,1,32,2],[32,3,32,4],[32,5,32,6],[32,7,32,8],[32,9,32,10],[34,3,34,4],[34,5,34,6],[34,9,34,10],[34,11,34,12],[34,7,34,8],[29,5,29,6],[29,3,29,4],[150,0,150,14],[2,0,2,14],[117,13,117,14],[125,13,125,14],[136,13,136,14],[34,13,34,14],[38,13,38,14],[41,13,41,14],[43,13,43,14],[46,13,46,14],[54,13,54,14],[66,13,66,14],[91,13,91,14],[92,13,92,14],[5,13,5,14],[7,13,7,14],[8,13,8,14],[13,13,13,14],[16,13,16,14],[22,13,22,14],[23,13,23,14],[29,13,29,14],[32,13,32,14],[41,11,41,12]]}
["Consejo Monetario Centroamericano"]
["Secretaría Ejecutiva"]
["CUADRO COMPARATIVO POR PAIS"]
[null,null,null,null,{"$f":"CONCATENATE(Indice!$J$47,\",\")","v":"REM N° 239,"},{"$f":"Indice!$J$48","v":"2020-01-28"}]
[]
["  Indicadores","Costa Rica",null,"El Salvador",null,"Guatemala",null,"Honduras",null,"Nicaragua",null,"Rep. Dominicana",null,"Panamá"]
[]
["I. SECTOR REAL"]
["1. Precios al Consumidor",{"$f":"IF([2]EJECUTIVO!$J$4=[2]EJECUTIVO!$J$8,[2]EJECUTIVO!$G$10,CONCATENATE([2]EJECUTIVO!$G$5,\"\n\",[2]EJECUTIVO!$I$4,\"          \",[2]EJECUTIVO!$J$4))","v":"ENERO\n2019          2020"},null,{"$f":"IF([3]EJECUTIVO!$J$4=[3]EJECUTIVO!$J$8,[3]EJECUTIVO!$G$10,CONCATENATE([3]EJECUTIVO!$G$5,\"\n\",[3]EJECUTIVO!$I$4,\"          \",[3]EJECUTIVO!$J$4))","v":"ENERO\n2019          2020"},null,{"$f":"IF([4]EJECUTIVO!$J$4=[4]EJECUTIVO!$J$8,[4]EJECUTIVO!$G$10,CONCATENATE([4]EJECUTIVO!$G$5,\"\n\",[4]EJECUTIVO!$I$4,\"          \",[4]EJECUTIVO!$J$4))","v":"ENERO\n2019          2020"},null,{"$f":"IF([5]EJECUTIVO!$J$4=[5]EJECUTIVO!$J$8,[5]EJECUTIVO!$G$10,CONCATENATE([5]EJECUTIVO!$G$5,\"\n\",[5]EJECUTIVO!$I$4,\"          \",[5]EJECUTIVO!$J$4))","v":"ENERO\n2019          2020"},null,{"$f":"IF([6]EJECUTIVO!$J$4=[6]EJECUTIVO!$J$8,[6]EJECUTIVO!$G$10,CONCATENATE([6]EJECUTIVO!$G$5,\"\n\",[6]EJECUTIVO!$I$4,\"          \",[6]EJECUTIVO!$J$4))","v":"DICIEMBRE\n2018          2019"},null,{"$f":"IF([7]EJECUTIVO!$J$4=[7]EJECUTIVO!$J$8,[7]EJECUTIVO!$G$10,CONCATENATE([7]EJECUTIVO!$G$5,\"\n\",[7]EJECUTIVO!$I$4,\"          \",[7]EJECUTIVO!$J$4))","v":"ENERO\n2019          2020"},null,{"$f":"IF([8]EJECUTIVO!$J$4=[8]EJECUTIVO!$J$8,[8]EJECUTIVO!$G$10,CONCATENATE([8]EJECUTIVO!$G$5,\"\n\",[8]EJECUTIVO!$I$4,\"          \",[8]EJECUTIVO!$J$4))","v":"ENERO\n2019          2020"}]
["    1.1  Tasa de variación interanual en el mes indicado",{"$f":"[2]EJECUTIVO!$I$6","v":1.6663756352090169},{"$f":"[2]EJECUTIVO!$J$6","v":1.5827643365524711},{"$f":"[3]EJECUTIVO!$I$6","v":0.25008931761343439},{"$f":"[3]EJECUTIVO!$J$6","v":-8.0185317177467214E-2},{"$f":"[4]EJECUTIVO!$I$6","v":4.1048689138576702},{"$f":"[4]EJECUTIVO!$J$6","v":1.7844294143042296},{"$f":"[5]EJECUTIVO!$I$6","v":3.9549839228295856},{"$f":"[5]EJECUTIVO!$J$6","v":4.2994123105474724},{"$f":"[6]EJECUTIVO!$I$6","v":3.8850547509849016},{"$f":"[6]EJECUTIVO!$J$6","v":6.1297243704681899},{"$f":"[7]EJECUTIVO!$I$6","v":0.70811609991440094},{"$f":"[7]EJECUTIVO!$J$6","v":4.1740071086385537},{"$f":"[8]EJECUTIVO!$I$6","v":-0.30477554918817584},{"$f":"[8]EJECUTIVO!$J$6","v":0.3558122223510457}]
["    1.2  Tasa de variación acumulada al mes indicado respecto a diciembre",{"$f":"[2]EJECUTIVO!$I$7","v":5.1316880797513953E-2},{"$f":"[2]EJECUTIVO!$J$7","v":0.11077781275743437},{"$f":"[3]EJECUTIVO!$I$7","v":-5.3428317008019643E-2},{"$f":"[3]EJECUTIVO!$J$7","v":-0.12467717517142818},{"$f":"[4]EJECUTIVO!$I$7","v":1.3490848100342623},{"$f":"[4]EJECUTIVO!$J$7","v":-0.23977433004231941},{"$f":"[5]EJECUTIVO!$I$7","v":3.0940594059414295E-2},{"$f":"[5]EJECUTIVO!$J$7","v":0.23781212841855748},{"$f":"[6]EJECUTIVO!$I$7","v":3.8850547509849065},{"$f":"[6]EJECUTIVO!$J$7","v":6.1297243704681925},{"$f":"[7]EJECUTIVO!$I$7","v":-0.16970070965751649},{"$f":"[7]EJECUTIVO!$J$7","v":0.32531649555906927},{"$f":"[8]EJECUTIVO!$I$7","v":-0.27191385891245368},{"$f":"[8]EJECUTIVO!$J$7","v":0.14560229445508277}]
[{"$f":"CONCATENATE(\"    1.3  Tasa de variación de los precios en el 2019 y proyectado para el 2020\")","v":"    1.3  Tasa de variación de los precios en el 2019 y proyectado para el 2020"},{"$f":"[2]METAS!$H$7","v":1.5224291162047265},{"$f":"[2]METAS!$K$7","v":"3.0 ± 1"},{"$f":"[3]METAS!$H$7","v":-8.9047195013236546E-3},{"$f":"[3]METAS!$K$7","v":"n.d."},{"$f":"[4]METAS!$H$7","v":3.405527601545999},{"$f":"[4]METAS!$K$7","v":"4.0 ± 1"},{"$f":"[5]METAS!$H$7","v":4.0841584158415767},{"$f":"[5]METAS!$K$7","v":"4.0 ± 1"},{"$f":"[6]METAS!$H$7","v":6.1297243704681925},{"$f":"[6]METAS!$K$7","v":"3.0-4.0"},{"$f":"[7]METAS!$H$7","v":3.6599999999999966},{"$f":"[7]METAS!$K$7","v":"4.0 ± 1"},{"$f":"[8]METAS!$H$7","v":-6.2580315385685203E-2},{"$f":"[8]METAS!$K$7","v":2.1}]
["    1.4 Tasa de variación interanual del índice subyacente de inflación",{"$f":"[2]EJECUTIVO!$I$5","v":2.1644054071537076},{"$f":"[2]EJECUTIVO!$J$5","v":1.3868613418676017},{"$f":"[3]EJECUTIVO!$I$5","v":6.6168825030714779E-2},{"$f":"[3]EJECUTIVO!$J$5","v":2.8339316077839728E-2},{"$f":"[4]EJECUTIVO!$I$5","v":3.0274131721651041},{"$f":"[4]EJECUTIVO!$J$5","v":2.8314811995737545},{"$f":"[5]EJECUTIVO!$I$5","v":4.2519181585677783},{"$f":"[5]EJECUTIVO!$J$5","v":3.557191045691495},{"$f":"[6]EJECUTIVO!$I$5","v":4.0009949901650295},{"$f":"[6]EJECUTIVO!$J$5","v":6.4016668986278846},{"$f":"[7]EJECUTIVO!$I$5","v":2.375999999999999},{"$f":"[7]EJECUTIVO!$J$5","v":2.4068140970540068},{"$f":"[8]EJECUTIVO!$H$5","v":"n.d."},{"$f":"[8]EJECUTIVO!$I$5","v":"n.d."}]
["2. Producción",{"$f":"IF([2]EJECUTIVO!$J$9=[2]EJECUTIVO!$J$2,[2]EJECUTIVO!$G$10,CONCATENATE([2]EJECUTIVO!$G$10,\"\n\",[2]EJECUTIVO!$I$9,\"          \",[2]EJECUTIVO!$J$9))","v":"DICIEMBRE\n2018          2019"},null,{"$f":"IF([3]EJECUTIVO!$J$9=[3]EJECUTIVO!$J$2,[3]EJECUTIVO!$G$10,CONCATENATE([3]EJECUTIVO!$G$10,\"\n\",[3]EJECUTIVO!$I$9,\"          \",[3]EJECUTIVO!$J$9))","v":"DICIEMBRE\n2018          2019"},null,{"$f":"IF([4]EJECUTIVO!$J$9=[4]EJECUTIVO!$J$2,[4]EJECUTIVO!$G$10,CONCATENATE([4]EJECUTIVO!$G$10,\"\n\",[4]EJECUTIVO!$I$9,\"          \",[4]EJECUTIVO!$J$9))","v":"DICIEMBRE\n2018          2019"},null,{"$f":"IF([5]EJECUTIVO!$J$9=[5]EJECUTIVO!$J$2,[5]EJECUTIVO!$G$10,CONCATENATE([5]EJECUTIVO!$G$10,\"\n\",[5]EJECUTIVO!$I$9,\"          \",[5]EJECUTIVO!$J$9))","v":"NOVIEMBRE\n2018          2019"},null,{"$f":"IF([6]EJECUTIVO!$J$9=[6]EJECUTIVO!$J$2,[6]EJECUTIVO!$G$10,CONCATENATE([6]EJECUTIVO!$G$10,\"\n\",[6]EJECUTIVO!$I$9,\"          \",[6]EJECUTIVO!$J$9))","v":"FEBRERO\n2018          2019"},null,{"$f":"IF([7]EJECUTIVO!$J$9=[7]EJECUTIVO!$J$2,[7]EJECUTIVO!$G$10,CONCATENATE([7]EJECUTIVO!$G$10,\"\n\",[7]EJECUTIVO!$I$9,\"          \",[7]EJECUTIVO!$J$9))","v":"DICIEMBRE\n2018          2019"},null,{"$f":"IF([8]EJECUTIVO!$J$9=[8]EJECUTIVO!$J$2,[8]EJECUTIVO!$G$10,CONCATENATE([8]EJECUTIVO!$G$10,\"\n\",[8]EJECUTIVO!$I$9,\"          \",[8]EJECUTIVO!$J$9))","v":"NOVIEMBRE\n2018          2019"}]
["    2.1  IMAE (variación acumulada Tendencia-Ciclo en el mes indicado)",{"$f":"[2]EJECUTIVO!$I$10","v":2.6305364927388331},{"$f":"[2]EJECUTIVO!$J$10","v":1.8689220396219897},{"$f":"[3]EJECUTIVO!$I$10","v":2.4123782984047715},{"$f":"[3]EJECUTIVO!$J$10","v":2.2861850447328802},{"$f":"[4]EJECUTIVO!$I$10","v":3.0478181037425722},{"$f":"[4]EJECUTIVO!$J$10","v":3.5870395603410543},{"$f":"[5]EJECUTIVO!$I$10","v":3.6666486660925424},{"$f":"[5]EJECUTIVO!$J$10","v":2.6393961939488619},{"$f":"[6]EJECUTIVO!$I$10","v":3.3770282428026599},{"$f":"[6]EJECUTIVO!$J$10","v":-7.0152224859737045},{"$f":"[7]EJECUTIVO!$I$10","v":6.9141074293115112},{"$f":"[7]EJECUTIVO!$J$10","v":5.1559572048705204},{"$f":"[8]EJECUTIVO!$I$10","v":3.2292234641948303},{"$f":"[8]EJECUTIVO!$J$10","v":3.4043779991281831}]
["    2.2  Tasa de variación del PIB real estimado para 2019 y 2020",{"$f":"[2]METAS!$H$12","v":2.1},{"$f":"[2]METAS!$K$12","v":2.5},{"$f":"[3]METAS!$H$12","v":2.2999999999999998},{"$f":"[3]METAS!$K$12","v":2.5},{"$f":"[4]METAS!$H$12","v":3.5},{"$f":"[4]METAS!$K$12","v":"3.1 – 4.1"},{"$f":"[5]METAS!$H$12","v":"3.0 -3.4"},{"$f":"[5]METAS!$K$12","v":"3.0 – 3.4"},{"$f":"[6]METAS!$H$12","v":-4.5},{"$f":"[6]METAS!$K$12","v":0.5},{"$f":"[7]METAS!$H$12","v":5},{"$f":"[7]METAS!$K$12","v":"5.0-5.3"},{"$f":"[8]METAS!$H$12","v":5.8},{"$f":"[8]METAS!$K$12","v":5.6}]
["    2.3 Tasa de variación interanual del PIB trimestral, a precios constantes a/",{"$f":"CONCATENATE(\"  \",[2]EJECUTIVO!$G$11,\" \",\"TRIMESTRE             2018          2019\")","v":"  III TRIMESTRE             2018          2019"},null,{"$f":"CONCATENATE(\"  \",[3]EJECUTIVO!$G$11,\" \",\"TRIMESTRE             2018         2019\")","v":"  III TRIMESTRE             2018         2019"},null,{"$f":"CONCATENATE(\"  \",[4]EJECUTIVO!$G$11,\" \",\"TRIMESTRE             2018          2019\")","v":"  III TRIMESTRE             2018          2019"},null,{"$f":"CONCATENATE(\"  \",[5]EJECUTIVO!$G$11,\" \",\"TRIMESTRE             2018          2019\")","v":"  III TRIMESTRE             2018          2019"},null,{"$f":"CONCATENATE(\"  \",[6]EJECUTIVO!$G$11,\" \",\"TRIMESTRE             2017          2018\")","v":"  IV TRIMESTRE             2017          2018"},null,{"$f":"CONCATENATE(\"  \",[7]EJECUTIVO!$G$11,\" \",\"TRIMESTRE               2018          2019\")","v":"  III TRIMESTRE               2018          2019"},null,{"$f":"CONCATENATE(\"  \",[8]EJECUTIVO!$G$11,\" \",\"TRIMESTRE               2018          2019\")","v":"  III TRIMESTRE               2018          2019"}]
[null,{"$f":"[2]EJECUTIVO!I$11","v":2.4882223663488547},{"$f":"[2]EJECUTIVO!J$11","v":2.3767184887530663},{"$f":"[3]EJECUTIVO!I$11","v":2.2328548644338078},{"$f":"[3]EJECUTIVO!J$11","v":2.6429292465816241},{"$f":"[4]EJECUTIVO!I$11","v":3.1395000537591304},{"$f":"[4]EJECUTIVO!J$11","v":3.9591610899292458},{"$f":"[5]EJECUTIVO!I$11","v":3.3418824117929637},{"$f":"[5]EJECUTIVO!J$11","v":2.6441000935471659},{"$f":"[6]EJECUTIVO!I$11","v":4.0635573202909816},{"$f":"[6]EJECUTIVO!J$11","v":-7.6610626847721308},{"$f":"[7]EJECUTIVO!I$11","v":7.5683184066964841},{"$f":"[7]EJECUTIVO!J$11","v":4.8495853959955513},{"$f":"[8]EJECUTIVO!I$11","v":3.3475043490267482},{"$f":"[8]EJECUTIVO!J$11","v":2.6966174776102432}]
["    2.4  PIB a precios corrientes en millones de US dólares b/(estimado)","2019","2020","2019","2020","2019","2020","2019","2020","2019","2020","2019","2020","2019","2020"]
[null,{"$f":"[2]METAS!$H$14","v":60600},{"$f":"[2]METAS!$K$14","v":66409.090909090897},{"$f":"[3]METAS!$H$14","v":26854.2},{"$f":"[3]METAS!$K$14","v":"n.d."},{"$f":"[4]METAS!$H$14","v":75908.395954977372},{"$f":"[4]METAS!$K$14","v":"n.d."},{"$f":"[5]METAS!$H$14","v":24789.47368421053},{"$f":"[5]METAS!$K$14","v":26245.945945945947},{"$f":"[6]METAS!$H$14","v":"n.d."},{"$f":"[6]METAS!$K$14","v":"n.d."},{"$f":"[7]METAS!$H$14","v":87369.382136844783},{"$f":"[7]METAS!$K$14","v":"n.d."},{"$f":"[8]METAS!$H$14","v":70570},{"$f":"[8]METAS!$K$14","v":75663}]
[]
["II. SECTOR EXTERNO"]
["1.Indicadores de Balanza de Pagos y del comercio exterior"]
["     1.1  Comercio exterior, acumulado en millones de US$ c/",{"$f":"IF([2]EJECUTIVO!$J$16=[2]EJECUTIVO!$J$4,[2]EJECUTIVO!$G$16,(CONCATENATE([2]EJECUTIVO!$G$16,\"\n\",[2]EJECUTIVO!$I$15,\"          \",[2]EJECUTIVO!$J$15)))","v":"DICIEMBRE\n2018          2019"},null,{"$f":"IF([3]EJECUTIVO!$J$16=[3]EJECUTIVO!$J$4,[3]EJECUTIVO!$G$16,(CONCATENATE([3]EJECUTIVO!$G$16,\"\n\",[3]EJECUTIVO!$I$15,\"          \",[3]EJECUTIVO!$J$15)))","v":"ENERO\n2019          2020"},null,{"$f":"IF([4]EJECUTIVO!$J$16=[4]EJECUTIVO!$J$4,[4]EJECUTIVO!$G$16,(CONCATENATE([4]EJECUTIVO!$G$16,\"\n\",[4]EJECUTIVO!$I$15,\"          \",[4]EJECUTIVO!$J$15)))","v":"DICIEMBRE\n2018          2019"},null,{"$f":"IF([5]EJECUTIVO!$J$16=[5]EJECUTIVO!$J$4,[5]EJECUTIVO!$G$16,(CONCATENATE([5]EJECUTIVO!$G$16,\"\n\",[5]EJECUTIVO!$I$15,\"         \",[5]EJECUTIVO!$J$15)))","v":"DICIEMBRE\n2018         2019"},null,{"$f":"IF([6]EJECUTIVO!$J$16=[6]EJECUTIVO!$J$4,[6]EJECUTIVO!$G$16,(CONCATENATE([6]EJECUTIVO!$G$16,\"\n\",[6]EJECUTIVO!$I$15,\"          \",[6]EJECUTIVO!$J$15)))","v":"ABRIL\n2018          2019"},null,{"$f":"IF([7]EJECUTIVO!$J$16=[7]EJECUTIVO!$J$4,[7]EJECUTIVO!$G$16,(CONCATENATE([7]EJECUTIVO!$G$16,\"\n\",[7]EJECUTIVO!$I$15,\"          \",[7]EJECUTIVO!$J$15)))","v":"DICIEMBRE\n2018          2019"},null,{"$f":"IF([8]EJECUTIVO!$J$16=[8]EJECUTIVO!$J$4,[8]EJECUTIVO!$G$16,(CONCATENATE([8]EJECUTIVO!$G$16,\"\n\",[8]EJECUTIVO!$I$15,\"          \",[8]EJECUTIVO!$J$15)))","v":"DICIEMBRE\n2018          2019"}]
["         1.1.1  Exportaciones totales de bienes FOB",{"$f":"[2]EJECUTIVO!$I$17","v":11661.338120609933},{"$f":"[2]EJECUTIVO!$J$17","v":11972.11589998994},{"$f":"[3]EJECUTIVO!$I$17","v":483.36},{"$f":"[3]EJECUTIVO!$J$17","v":509.84},{"$f":"[4]EJECUTIVO!$I$17","v":10969.4},{"$f":"[4]EJECUTIVO!$J$17","v":11183.899999999998},{"$f":"[5]EJECUTIVO!$I$17","v":4272.3849282467181},{"$f":"[5]EJECUTIVO!$J$17","v":4159.9843941934123},{"$f":"[6]EJECUTIVO!$I$17","v":1933},{"$f":"[6]EJECUTIVO!$J$17","v":1812.1079991299998},{"$f":"[7]EJECUTIVO!$I$17","v":10907.600000000002},{"$f":"[7]EJECUTIVO!$J$17","v":11218.6},{"$f":"[8]EJECUTIVO!$I$17","v":11626.601832300001},{"$f":"[8]EJECUTIVO!$J$17","v":10684.048229}]
["         1.1.2  Importaciones totales de bienes CIF",{"$f":"[2]EJECUTIVO!$I$18","v":17266.064222219975},{"$f":"[2]EJECUTIVO!$J$18","v":16832.054182773994},{"$f":"[3]EJECUTIVO!$I$18","v":967.46},{"$f":"[3]EJECUTIVO!$J$18","v":1001.54},{"$f":"[4]EJECUTIVO!$I$18","v":19674.400000000001},{"$f":"[4]EJECUTIVO!$J$18","v":19881.400000000001},{"$f":"[5]EJECUTIVO!$I$18","v":10505.389123098341},{"$f":"[5]EJECUTIVO!$J$18","v":10059.383369299303},{"$f":"[6]EJECUTIVO!$I$18","v":2600.9},{"$f":"[6]EJECUTIVO!$J$18","v":2156.8197370799999},{"$f":"[7]EJECUTIVO!$I$18","v":20208.900000000001},{"$f":"[7]EJECUTIVO!$J$18","v":20288},{"$f":"[8]EJECUTIVO!$I$18","v":23005.963231000002},{"$f":"[8]EJECUTIVO!$J$18","v":21491.775852000002}]
["         1.1.3  Saldo acumulado (exportaciones - importaciones)",{"$f":"[2]EJECUTIVO!$I$16","v":-5604.726101610042},{"$f":"[2]EJECUTIVO!$J$16","v":-4859.9382827840545},{"$f":"[3]EJECUTIVO!$I$16","v":-484.1},{"$f":"[3]EJECUTIVO!$J$16","v":-491.7},{"$f":"[4]EJECUTIVO!$I$16","v":-8705.0000000000018},{"$f":"[4]EJECUTIVO!$J$16","v":-8697.5000000000036},{"$f":"[5]EJECUTIVO!$I$16","v":-6233.0041948516227},{"$f":"[5]EJECUTIVO!$J$16","v":-5899.3989751058907},{"$f":"[6]EJECUTIVO!$I$16","v":-667.90000000000009},{"$f":"[6]EJECUTIVO!$J$16","v":-344.71173795000004},{"$f":"[7]EJECUTIVO!$I$16","v":-9301.2999999999993},{"$f":"[7]EJECUTIVO!$J$16","v":-9069.4},{"$f":"[8]EJECUTIVO!$I$16","v":-11379.361398700001},{"$f":"[8]EJECUTIVO!$J$16","v":-10807.727623000002}]
["         1.1.4  Saldo en el 2019 (preliminar o estimado) y proyectado para el 2020",{"$f":"[2]METAS!$H$22","v":-4859.9382827840545},{"$f":"[2]METAS!$K$22","v":-4705},{"$f":"[3]METAS!$H$22","v":-6074.2500000000018},{"$f":"[3]METAS!$K$22","v":"n.d."},{"$f":"[4]METAS!$H$22","v":-8697.5000000000036},{"$f":"[4]METAS!$K$22","v":-9014.3445000000011},{"$f":"[5]METAS!$H$22","v":-5899.3989751058907},{"$f":"[5]METAS!$K$22","v":"n.d."},{"$f":"[6]METAS!$H$22","v":"n.d."},{"$f":"[6]METAS!$K$22","v":"n.d."},{"$f":"[7]METAS!$H$22","v":-9069.4},{"$f":"[7]METAS!$K$22","v":"n.d."},{"$f":"[8]METAS!$H$22","v":-10807.727623000002},{"$f":"[8]METAS!$K$22","v":"n.d."}]
["     2.5  Saldo RIN/ Importaciones (meses de importación promedio)",{"$f":"[2]EJECUTIVO!$I$19","v":5.2090609441991287},{"$f":"[2]EJECUTIVO!$J$19","v":6.3538055925135195},{"$f":"[3]EJECUTIVO!$I$19","v":3.6110536869741385},{"$f":"[3]EJECUTIVO!$J$19","v":-0.35839077997316632},{"$f":"[4]EJECUTIVO!$I$19","v":7.7800187045094127},{"$f":"[4]EJECUTIVO!$J$19","v":8.926333155612781},{"$f":"[5]EJECUTIVO!$I$19","v":5.5435989142550257},{"$f":"[5]EJECUTIVO!$J$19","v":6.9294787354383036},{"$f":"[6]EJECUTIVO!$I$19","v":4.5535714285714288},{"$f":"[6]EJECUTIVO!$J$19","v":3.6043646330673997},{"$f":"[7]EJECUTIVO!$I$19","v":4.5289597456423829},{"$f":"[7]EJECUTIVO!$J$19","v":5.1940457413249206},{"$f":"[7]EJECUTIVO!$I$19","v":4.5289597456423829},{"$f":"[7]EJECUTIVO!$J$19","v":5.1940457413249206}]
["     1.2  Transferencias Corrientes, acumulado en millones de US$ ",{"$f":"IF([2]EJECUTIVO!$J$38=[2]EJECUTIVO!$J$4,CONCATENATE([2]EJECUTIVO!$G$38,\" TRIMESTRE\",\" \"),CONCATENATE([2]EJECUTIVO!$G$38,\" TRIMESTRE                \",[2]EJECUTIVO!$I$37,\"           \",[2]EJECUTIVO!$J$37))","v":"III TRIMESTRE                2018           2019"},null,{"$f":"IF([3]EJECUTIVO!$J$38=[3]EJECUTIVO!$J$4,[3]EJECUTIVO!$G$38,(CONCATENATE([3]EJECUTIVO!$G$38,\"\n\",[3]EJECUTIVO!$I$37,\"          \",[3]EJECUTIVO!$J$37)))","v":"ENERO\n2019          2020"},null,{"$f":"IF([4]EJECUTIVO!$J$38=[4]EJECUTIVO!$J$4,[4]EJECUTIVO!$G$38,(CONCATENATE([4]EJECUTIVO!$G$38,\"\n\",[4]EJECUTIVO!$I$37,\"          \",[4]EJECUTIVO!$J$37)))","v":"ENERO\n2019          2020"},null,{"$f":"IF([5]EJECUTIVO!$J$38=[5]EJECUTIVO!$J$4,[5]EJECUTIVO!$G$38,(CONCATENATE([5]EJECUTIVO!$G$38,\"\n\",[5]EJECUTIVO!$I$37,\"          \",[5]EJECUTIVO!$J$37)))","v":"ENERO\n2019          2020"},null,{"$f":"IF([6]EJECUTIVO!$J$38=[6]EJECUTIVO!$J$4,[6]EJECUTIVO!$G$38,(CONCATENATE([6]EJECUTIVO!$G$38,\"\n\",[6]EJECUTIVO!$I$37,\"          \",[6]EJECUTIVO!$J$37)))","v":"JUNIO\n2018          2019"},null,{"$f":"IF([7]EJECUTIVO!$J$38=[7]EJECUTIVO!$J$4,[7]EJECUTIVO!$G$38,(CONCATENATE([7]EJECUTIVO!$G$38,\"\n\",[7]EJECUTIVO!$I$37,\"          \",[7]EJECUTIVO!$J$37)))","v":"SEPTIEMBRE\n2018          2019"},null,{"$f":"IF([8]EJECUTIVO!$J$38=[8]EJECUTIVO!$J$4,CONCATENATE([8]EJECUTIVO!$G$38,\"    TRIMESTRE\",\" \"),CONCATENATE([8]EJECUTIVO!$G$38,\" TRIMESTRE                  \",[8]EJECUTIVO!$I$37,\"           \",[8]EJECUTIVO!$J$37))","v":"III TRIMESTRE                  2018           2019"}]
["         1.2.1  Ingreso de remesas familiares d/",{"$f":"[2]EJECUTIVO!$I$38","v":368.0018657},{"$f":"[2]EJECUTIVO!$J$38","v":383.34176907},{"$f":"[3]EJECUTIVO!$I$38","v":400.62},{"$f":"[3]EJECUTIVO!$J$38","v":424.53},{"$f":"[4]EJECUTIVO!$I$38","v":688.07640000000004},{"$f":"[4]EJECUTIVO!$J$38","v":834.61040000000003},{"$f":"[5]EJECUTIVO!$I$38","v":386.02539136000019},{"$f":"[5]EJECUTIVO!$J$38","v":420.93406160000006},{"$f":"[6]EJECUTIVO!$I$38","v":724.6},{"$f":"[6]EJECUTIVO!$J$38","v":796.59999999999991},{"$f":"[7]EJECUTIVO!$I$38","v":4866.4344891200735},{"$f":"[7]EJECUTIVO!$J$38","v":5292.9188598657338},{"$f":"[8]EJECUTIVO!$I$38","v":334.7},{"$f":"[8]EJECUTIVO!$J$38","v":365.38498000000004}]
["         1.2.2  Saldo en el 2019 (preliminar o estimado) y proyectado para el 2020",{"$f":"+[2]METAS!$H$27","v":"n.d."},{"$f":"[2]METAS!$K$27","v":"n.d"},{"$f":"+[3]METAS!$H$27","v":5650.21},{"$f":"[3]METAS!$K$27","v":"n.d."},{"$f":"+[4]METAS!$H$27","v":10508.3074},{"$f":"[4]METAS!$K$27","v":11664.213},{"$f":"+[5]METAS!$H$27","v":5523.5709101800012},{"$f":"[5]METAS!$K$27","v":5429},{"$f":"+[6]METAS!$H$27","v":"n.d."},{"$f":"[6]METAS!$K$27","v":"n.d."},{"$f":"+[7]METAS!$H$27","v":"n.d."},{"$f":"+[7]METAS!$K$27","v":"n.d."},{"$f":"+[8]METAS!$H$27","v":"n.d."},{"$f":"[8]METAS!$K$27","v":"n.d."}]
["     1.3  Inversión directa, saldo en millones de US$ ",{"$f":"CONCATENATE([2]EJECUTIVO!$G$44,\" \",\"TRIMESTRE                2018             2019\")","v":"III TRIMESTRE                2018             2019"},null,{"$f":"CONCATENATE([3]EJECUTIVO!$G$44,\" \",\"TRIMESTRE               2018             2019\")","v":"III TRIMESTRE               2018             2019"},null,{"$f":"CONCATENATE([4]EJECUTIVO!$G$44,\" \",\"TRIMESTRE               2018             2019\")","v":"III TRIMESTRE               2018             2019"},null,{"$f":"CONCATENATE([5]EJECUTIVO!$G$44,\" \",\"TRIMESTRE               2018            2019\")","v":"III TRIMESTRE               2018            2019"},null,{"$f":"CONCATENATE([6]EJECUTIVO!$G$44,\" \",\"TRIMESTRE               2018             2019\")","v":"I TRIMESTRE               2018             2019"},null,{"$f":"CONCATENATE([7]EJECUTIVO!$G$44,\" \",\"TRIMESTRE                 2018           2019\")","v":"III TRIMESTRE                 2018           2019"},null,{"$f":"CONCATENATE([8]EJECUTIVO!$G$44,\" \",\"TRIMESTRE              2018           2019\")","v":"III TRIMESTRE              2018           2019"}]
["         1.3.1  Inversión Extranjera Directa en la economía declarante e/",{"$f":"+[2]EJECUTIVO!$I$44","v":1049.2178497880195},{"$f":"+[2]EJECUTIVO!$J$44","v":1694.9652687292889},{"$f":"+[3]EJECUTIVO!$I$44","v":551.01518412514531},{"$f":"+[3]EJECUTIVO!$J$44","v":437.66388217590924},{"$f":"+[4]EJECUTIVO!$I$44","v":632.22731999999996},{"$f":"+[4]EJECUTIVO!$J$44","v":644.39247},{"$f":"+[5]EJECUTIVO!$I$44","v":574.29999999999995},{"$f":"+[5]EJECUTIVO!$J$44","v":183.9},{"$f":"+[6]EJECUTIVO!$I$44","v":419.19999999999993},{"$f":"+[6]EJECUTIVO!$J$44","v":128.80000000000001},{"$f":"+[7]EJECUTIVO!$I$44","v":1706.1999999999998},{"$f":"+[7]EJECUTIVO!$J$44","v":2273.1999999999998},{"$f":"+[8]EJECUTIVO!$I$44","v":4085.6634999999997},{"$f":"+[8]EJECUTIVO!$J$44","v":4735.1845659999999}]
["     1.4  Balanza en cuenta corriente, saldo en millones de US$ ",{"$f":"CONCATENATE([2]EJECUTIVO!$G$41,\" \",\"TRIMESTRE                2018            2019\")","v":"III TRIMESTRE                2018            2019"},null,{"$f":"CONCATENATE([3]EJECUTIVO!$G$41,\" \",\"TRIMESTRE               2018             2019\")","v":"III TRIMESTRE               2018             2019"},null,{"$f":"CONCATENATE([4]EJECUTIVO!$G$41,\" \",\"TRIMESTRE               2018             2019\")","v":"III TRIMESTRE               2018             2019"},null,{"$f":"CONCATENATE([5]EJECUTIVO!$G$41,\" \",\"TRIMESTRE               2018             2019\")","v":"III TRIMESTRE               2018             2019"},null,{"$f":"CONCATENATE([6]EJECUTIVO!$G$41,\" \",\"TRIMESTRE               2018             2019\")","v":"I TRIMESTRE               2018             2019"},null,{"$f":"CONCATENATE([7]EJECUTIVO!$G$41,\" \",\"TRIMESTRE                  2018          2019\")","v":"III TRIMESTRE                  2018          2019"},null,{"$f":"CONCATENATE([8]EJECUTIVO!$G$41,\" \",\"TRIMESTRE               2018           2019\")","v":"III TRIMESTRE               2018           2019"}]
["         1.4.1  Saldo de Balanza en Cuenta Corriente ",{"$f":"[2]EJECUTIVO!$I$41","v":-1022.0215579209066},{"$f":"[2]EJECUTIVO!$J$41","v":-974.03679508324149},{"$f":"[3]EJECUTIVO!$I$41","v":-935.54345024753536},{"$f":"[3]EJECUTIVO!$J$41","v":-469.81063632612199},{"$f":"[4]EJECUTIVO!$I$41","v":659.84802999999988},{"$f":"[4]EJECUTIVO!$J$41","v":1554.3786600000008},{"$f":"[5]EJECUTIVO!$I$41","v":-130.60435705906681},{"$f":"[5]EJECUTIVO!$J$41","v":384.91524524978956},{"$f":"[6]EJECUTIVO!$I$41","v":-8.6000000000002164},{"$f":"[6]EJECUTIVO!$J$41","v":194.80000000000007},{"$f":"[7]EJECUTIVO!$I$41","v":-470.69999999999959},{"$f":"[7]EJECUTIVO!$J$41","v":-709.10000000000093},{"$f":"[8]EJECUTIVO!$I$41","v":-4189.8529199999994},{"$f":"[8]EJECUTIVO!$J$41","v":-3371.0303119199989}]
["         1.4.2  Saldo proyectado en el 2019 y 2020",{"$f":"+[2]METAS!$H$23","v":-1456},{"$f":"+[2]METAS!$K$23","v":-1461},{"$f":"+[3]METAS!$H$23","v":"n.d."},{"$f":"+[3]METAS!$K$23","v":"n.d."},{"$f":"+[4]METAS!$H$23","v":1337.6912766380265},{"$f":"+[4]METAS!$K$23","v":1482.4754717198844},{"$f":"+[5]METAS!$H$23","v":"n.d."},{"$f":"+[5]METAS!$K$23","v":"n.d."},{"$f":"+[6]METAS!$H$23","v":"n.d."},{"$f":"+[6]METAS!$K$23","v":"n.d."},{"$f":"+[7]METAS!$H$23","v":-1397.9101141895167},{"$f":"+[7]METAS!$K$23","v":"n.d."},{"$f":"+[8]METAS!$H$23","v":"n.d."},{"$f":"+[8]METAS!$K$23","v":"n.d."}]
[]
["     1.5  Saldo RIN del Banco Central, en millones de US$",{"$f":"IF([2]EJECUTIVO!$G$22=[2]EJECUTIVO!$J$4,[2]EJECUTIVO!$G$22,(CONCATENATE([2]EJECUTIVO!$G$22,\" \n\",[2]EJECUTIVO!$I$21,\"          \",[2]EJECUTIVO!$J$21)))","v":"ENERO \n2019          2020"},null,{"$f":"IF([3]EJECUTIVO!$G$22=[3]EJECUTIVO!$J$4,[3]EJECUTIVO!$G$22,(CONCATENATE([3]EJECUTIVO!$G$22,\" \n\",[3]EJECUTIVO!$I$21,\"          \",[3]EJECUTIVO!$J$21)))","v":"ENERO \n2019          2020"},null,{"$f":"IF([4]EJECUTIVO!$G$22=[4]EJECUTIVO!$J$4,[4]EJECUTIVO!$G$22,(CONCATENATE([4]EJECUTIVO!$G$22,\" \n\",[4]EJECUTIVO!$I$21,\"          \",[4]EJECUTIVO!$J$21)))","v":"ENERO \n2019          2020"},null,{"$f":"IF([2]EJECUTIVO!$G$22=[5]EJECUTIVO!$J$4,[5]EJECUTIVO!$G$22,(CONCATENATE([5]EJECUTIVO!$G$22,\" \n\",[5]EJECUTIVO!$I$21,\"          \",[5]EJECUTIVO!$J$21)))","v":"ENERO \n2019          2020"},null,{"$f":"IF([2]EJECUTIVO!$G$22=[6]EJECUTIVO!$J$4,[6]EJECUTIVO!$G$22,(CONCATENATE([6]EJECUTIVO!$G$22,\" \n\",[6]EJECUTIVO!$I$21,\"          \",[6]EJECUTIVO!$J$21)))","v":"DICIEMBRE \n2018          2019"},null,{"$f":"IF([2]EJECUTIVO!$G$22=[7]EJECUTIVO!$J$4,[7]EJECUTIVO!$G$22,(CONCATENATE([7]EJECUTIVO!$G$22,\" \n\",[7]EJECUTIVO!$I$21,\"          \",[7]EJECUTIVO!$J$21)))","v":"ENERO \n2019          2020"},null,{"$f":"IF([2]EJECUTIVO!$G$22=[8]EJECUTIVO!$J$4,[8]EJECUTIVO!$G$22,(CONCATENATE([8]EJECUTIVO!$G$22,\" \n\",[8]EJECUTIVO!$I$21,\"          \",[8]EJECUTIVO!$J$21)))","v":"DICIEMBRE \n2018          2019"}]
["      1.5.1  Saldo RIN a fines de mes ",{"$f":"[2]EJECUTIVO!$I$22","v":7571.5874999999996},{"$f":"ROUND([2]EJECUTIVO!$J$22,0)","v":8211},{"$f":"[3]EJECUTIVO!$I$22","v":3493.55},{"$f":"[3]EJECUTIVO!$J$22","v":3948.04},{"$f":"[4]EJECUTIVO!$I$22","v":12452.4},{"$f":"ROUND([4]EJECUTIVO!$J$22,0)","v":14895},{"$f":"[5]EJECUTIVO!$I$22","v":4788.8999999999996},{"$f":"ROUND([5]EJECUTIVO!$J$22,0)","v":5764},{"$f":"[6]EJECUTIVO!$I$22","v":2038.9},{"$f":"ROUND([6]EJECUTIVO!$J$22,0)","v":2208},{"$f":"[7]EJECUTIVO!$I$22","v":7046.5049646461903},{"$f":"ROUND([7]EJECUTIVO!$J$22,0)","v":10408},{"$f":"[8]EJECUTIVO!$I$22","v":2907.0582651700001},{"$f":"ROUND([8]EJECUTIVO!$J$22,0)","v":4143}]
["      1.5.2  Saldo en el 2019 y proyectado para el 2020",{"$f":"+[2]METAS!$H$25","v":8912.2999999999993},{"$f":"[2]METAS!$K$25","v":9031.6363636363621},{"$f":"+[3]METAS!$H$25","v":3936.49},{"$f":"[3]METAS!$K$25","v":"n.d."},{"$f":"+[4]METAS!$H$25","v":14789},{"$f":"[4]METAS!$K$25","v":15789},{"$f":"+[5]METAS!$H$25","v":5808.8569290984369},{"$f":"[5]METAS!$K$25","v":"n.d"},{"$f":"+[6]METAS!$H$25","v":2208.4},{"$f":"[6]METAS!$K$25","v":"n.d."},{"$f":"+[7]METAS!$H$25","v":8781.4},{"$f":"[7]METAS!$K$25","v":"n.d."},{"$f":"+[8]METAS!$H$25","v":4143.34042013},{"$f":"[8]METAS!$K$25","v":"n.d."}]
[null,{"$f":"IF([2]EJECUTIVO!$J$16=[2]EJECUTIVO!$J$4,[2]EJECUTIVO!$G$16,(CONCATENATE([2]EJECUTIVO!$G$16,\" \n\",[2]EJECUTIVO!$I$15,\"          \",[2]EJECUTIVO!$J$15)))","v":"DICIEMBRE \n2018          2019"},null,{"$f":"IF([3]EJECUTIVO!$J$16=[3]EJECUTIVO!$J$4,[3]EJECUTIVO!$G$16,(CONCATENATE([3]EJECUTIVO!$G$16,\"\n\",[3]EJECUTIVO!$I$15,\"          \",[3]EJECUTIVO!$J$15)))","v":"ENERO\n2019          2020"},null,{"$f":"IF([4]EJECUTIVO!$J$16=[4]EJECUTIVO!$J$4,[4]EJECUTIVO!$G$16,(CONCATENATE([4]EJECUTIVO!$G$16,\"\n\",[4]EJECUTIVO!$I$15,\"          \",[4]EJECUTIVO!$J$15)))","v":"DICIEMBRE\n2018          2019"},null,{"$f":"IF([5]EJECUTIVO!$J$16=[5]EJECUTIVO!$J$4,[5]EJECUTIVO!$G$16,(CONCATENATE([5]EJECUTIVO!$G$16,\"\n\",[5]EJECUTIVO!$I$15,\"          \",[5]EJECUTIVO!$J$15)))","v":"DICIEMBRE\n2018          2019"},null,{"$f":"IF([6]EJECUTIVO!$J$16=[6]EJECUTIVO!$J$4,[6]EJECUTIVO!$G$16,(CONCATENATE([6]EJECUTIVO!$G$16,\"\n\",[6]EJECUTIVO!$I$15,\"          \",[6]EJECUTIVO!$J$15)))","v":"ABRIL\n2018          2019"},null,{"$f":"IF([7]EJECUTIVO!$J$16=[7]EJECUTIVO!$J$4,[7]EJECUTIVO!$G$16,(CONCATENATE([7]EJECUTIVO!$G$16,\"\n\",[7]EJECUTIVO!$I$15,\"          \",[7]EJECUTIVO!$J$15)))","v":"DICIEMBRE\n2018          2019"},null,{"$f":"IF([8]EJECUTIVO!$J$16=[8]EJECUTIVO!$J$4,[8]EJECUTIVO!$G$16,(CONCATENATE([8]EJECUTIVO!$G$16,\"\n\",[8]EJECUTIVO!$I$15,\"          \",[8]EJECUTIVO!$J$15)))","v":"DICIEMBRE\n2018          2019"}]
["      1.5.3  Saldo RIN/ Importaciones (importación promedio al mes indicado)",{"$f":"[2]EJECUTIVO!$I$19","v":5.2090609441991287},{"$f":"[2]EJECUTIVO!$J$19","v":6.3538055925135195},{"$f":"[3]EJECUTIVO!$I$19","v":3.6110536869741385},{"$f":"[3]EJECUTIVO!$J$19","v":-0.35839077997316632},{"$f":"[4]EJECUTIVO!$I$19","v":7.7800187045094127},{"$f":"[4]EJECUTIVO!$J$19","v":8.926333155612781},{"$f":"[5]EJECUTIVO!$I$19","v":5.5435989142550257},{"$f":"[5]EJECUTIVO!$J$19","v":6.9294787354383036},{"$f":"[6]EJECUTIVO!$I$19","v":4.5535714285714288},{"$f":"[6]EJECUTIVO!$J$19","v":3.6043646330673997},{"$f":"[7]EJECUTIVO!$I$19","v":4.5289597456423829},{"$f":"[7]EJECUTIVO!$J$19","v":5.1940457413249206},{"$f":"[8]EJECUTIVO!$I$19","v":1.5163329103748928},{"$f":"[8]EJECUTIVO!$J$19","v":2.3134470312714108}]
["         1.5.3  Saldo RIN/ Importaciones (importación promedio al mes indicado)",{"$f":"IF([2]EJECUTIVO!$J$37=[2]EJECUTIVO!$J$4,CONCATENATE([2]EJECUTIVO!$G$38,\" TRIMESTRE\",\" \"),CONCATENATE([2]EJECUTIVO!$G$38,\" TRIMESTRE            \",[2]EJECUTIVO!$I$37,\"           \",[2]EJECUTIVO!$J$37))","v":"III TRIMESTRE            2018           2019"},null,{"$f":"IF([3]EJECUTIVO!$J$37=[3]EJECUTIVO!$J$4,[3]EJECUTIVO!$G$38,(CONCATENATE([3]EJECUTIVO!$G$38,\"\n\",[3]EJECUTIVO!$I$37,\"          \",[3]EJECUTIVO!$J$37)))","v":"ENERO"},null,{"$f":"IF([4]EJECUTIVO!$J$37=[4]EJECUTIVO!$J$4,CONCATENATE([4]EJECUTIVO!$G$38,\" TRIMESTRE\",\" \"),CONCATENATE([4]EJECUTIVO!$G$38,\" TRIMESTRE            \",[4]EJECUTIVO!$I$37,\"           \",[4]EJECUTIVO!$J$37))","v":"ENERO TRIMESTRE "},null,{"$f":"IF([5]EJECUTIVO!$J$37=[5]EJECUTIVO!$J$4,CONCATENATE([5]EJECUTIVO!$G$38,\" TRIMESTRE\",\" \"),CONCATENATE([5]EJECUTIVO!$G$38,\" TRIMESTRE            \",[5]EJECUTIVO!$I$37,\"           \",[5]EJECUTIVO!$J$37))","v":"ENERO TRIMESTRE "},null,{"$f":"IF([6]EJECUTIVO!$J$37=[6]EJECUTIVO!$J$4,CONCATENATE([6]EJECUTIVO!$G$38,\" TRIMESTRE\",\" \"),CONCATENATE([6]EJECUTIVO!$G$38,\" TRIMESTRE            \",[6]EJECUTIVO!$I$37,\"           \",[6]EJECUTIVO!$J$37))","v":"JUNIO TRIMESTRE "},null,{"$f":"IF([7]EJECUTIVO!$J$37=[7]EJECUTIVO!$J$4,CONCATENATE([7]EJECUTIVO!$G$38,\" TRIMESTRE\",\" \"),CONCATENATE([7]EJECUTIVO!$G$38,\" TRIMESTRE            \",[7]EJECUTIVO!$I$37,\"           \",[7]EJECUTIVO!$J$37))","v":"SEPTIEMBRE TRIMESTRE            2018           2019"},null,{"$f":"IF([7]EJECUTIVO!$J$37=[7]EJECUTIVO!$J$4,CONCATENATE([7]EJECUTIVO!$G$38,\" TRIMESTRE\",\" \"),CONCATENATE([7]EJECUTIVO!$G$38,\" TRIMESTRE            \",[7]EJECUTIVO!$I$37,\"           \",[7]EJECUTIVO!$J$37))","v":"SEPTIEMBRE TRIMESTRE            2018           2019"}]
["         1.5.3  Saldo RIN/ Importaciones (importación promedio al mes indicado)",{"$f":"[2]EJECUTIVO!$I$38","v":368.0018657},{"$f":"[2]EJECUTIVO!$J$38","v":383.34176907},{"$f":"[3]EJECUTIVO!$I$38","v":400.62},{"$f":"[3]EJECUTIVO!$J$38","v":424.53},{"$f":"[4]EJECUTIVO!$I$38","v":688.07640000000004},{"$f":"[4]EJECUTIVO!$J$38","v":834.61040000000003},{"$f":"[5]EJECUTIVO!$I$38","v":386.02539136000019},{"$f":"[5]EJECUTIVO!$J$38","v":420.93406160000006},{"$f":"[6]EJECUTIVO!$I$38","v":724.6},{"$f":"[6]EJECUTIVO!$J$38","v":796.59999999999991},{"$f":"[7]EJECUTIVO!$I$38","v":4866.4344891200735},{"$f":"[7]EJECUTIVO!$J$38","v":5292.9188598657338},{"$f":"[7]EJECUTIVO!$I$38","v":4866.4344891200735},{"$f":"[7]EJECUTIVO!$J$38","v":5292.9188598657338}]
["         1.5.3  Saldo RIN/ Importaciones (importación promedio al mes indicado)",{"$f":"[2]METAS!$H$27","v":"n.d."},{"$f":"[2]METAS!$M$27","v":"n.d"},{"$f":"[3]METAS!$H$27","v":5650.21},{"$f":"[3]METAS!$M$27","v":""},{"$f":"[4]METAS!$H$27","v":10508.3074},{"$f":"[4]METAS!$M$27","v":11664.213},{"$f":"[5]METAS!$H$27","v":5523.5709101800012},{"$f":"[5]METAS!$M$27","v":5429},{"$f":"[6]METAS!$H$27","v":"n.d."},{"$f":"[6]METAS!$M$27","v":"n.d."},{"$f":"[7]METAS!$H$27","v":"n.d."},{"$f":"[7]METAS!$M$27","v":"n.d."},{"$f":"[7]METAS!$H$27","v":"n.d."},{"$f":"[7]METAS!$M$27","v":"n.d."}]
["2. Tipo de Cambio ",{"$f":"IF([2]EJECUTIVO!$J$4=[2]EJECUTIVO!$J$8,[2]EJECUTIVO!$G$10,CONCATENATE([2]EJECUTIVO!$G$31,\"\n\",[2]EJECUTIVO!$I$30,\"          \",[2]EJECUTIVO!$J$30))","v":"DICIEMBRE\n2018          2019"},null,{"$f":"IF([3]EJECUTIVO!$J$4=[3]EJECUTIVO!$J$8,[3]EJECUTIVO!$G$10,CONCATENATE([3]EJECUTIVO!$G$31,\"\n\",[3]EJECUTIVO!$I$30,\"          \",[3]EJECUTIVO!$J$30))","v":"DICIEMBRE\n2018          2019"},null,{"$f":"IF([4]EJECUTIVO!$J$4=[4]EJECUTIVO!$J$8,[4]EJECUTIVO!$G$10,CONCATENATE([4]EJECUTIVO!$G$31,\"\n\",[4]EJECUTIVO!$I$30,\"          \",[4]EJECUTIVO!$J$30))","v":"DICIEMBRE\n2018          2019"},null,{"$f":"IF([5]EJECUTIVO!$J$4=[5]EJECUTIVO!$J$8,[5]EJECUTIVO!$G$10,CONCATENATE([5]EJECUTIVO!$G$31,\"\n\",[5]EJECUTIVO!$I$30,\"          \",[5]EJECUTIVO!$J$30))","v":"DICIEMBRE\n2018          2019"},null,{"$f":"IF([6]EJECUTIVO!$J$4=[6]EJECUTIVO!$J$8,[6]EJECUTIVO!$G$10,CONCATENATE([6]EJECUTIVO!$G$31,\"\n\",[6]EJECUTIVO!$I$30,\"          \",[6]EJECUTIVO!$J$30))","v":"DICIEMBRE\n2018          2019"},null,{"$f":"IF([7]EJECUTIVO!$J$4=[7]EJECUTIVO!$J$8,[7]EJECUTIVO!$G$10,CONCATENATE([7]EJECUTIVO!$G$31,\"\n\",[7]EJECUTIVO!$I$30,\"          \",[7]EJECUTIVO!$J$30))","v":"DICIEMBRE\n2018          2019"},null,{"$f":"IF([8]EJECUTIVO!$J$4=[8]EJECUTIVO!$J$8,[8]EJECUTIVO!$G$10,CONCATENATE([8]EJECUTIVO!$G$31,\"\n\",[8]EJECUTIVO!$I$30,\"          \",[8]EJECUTIVO!$J$30))","v":"DICIEMBRE\n2018          2019"}]
["     2.1  Unidades Moneda Nacional por US$, promedio compra  ",{"$f":"[2]EJECUTIVO!$I$31","v":597.92258064516102},{"$f":"[2]EJECUTIVO!$J$31","v":565.09161290322572},{"$f":"[3]EJECUTIVO!$I$31","v":8.75},{"$f":"[3]EJECUTIVO!$J$31","v":8.75},{"$f":"[4]EJECUTIVO!$I$31","v":7.71333},{"$f":"[4]EJECUTIVO!$J$31","v":7.6698399999999998},{"$f":"[5]EJECUTIVO!$I$31","v":24.328657894736846},{"$f":"[5]EJECUTIVO!$J$31","v":24.645414285714288},{"$f":"[6]EJECUTIVO!$I$31","v":32.442911284768371},{"$f":"[6]EJECUTIVO!$J$31","v":33.607836285031119},{"$f":"[7]EJECUTIVO!$I$31","v":50.147174999999997},{"$f":"[7]EJECUTIVO!$J$31","v":52.842100000000002},{"$f":"[8]EJECUTIVO!$I$31","v":1},{"$f":"[8]EJECUTIVO!$J$31","v":1}]
["     2.2  ITCER-USA, 2000=100, tasa de variación interanual  ",{"$f":"[2]EJECUTIVO!$I$32","v":5.9628403346442038},{"$f":"[2]EJECUTIVO!$J$32","v":-4.780826728529652},{"$f":"[3]EJECUTIVO!$I$32","v":1.4654929729783772},{"$f":"[3]EJECUTIVO!$J$32","v":2.2942387551489141},{"$f":"[4]EJECUTIVO!$I$32","v":4.9172780707255503},{"$f":"[4]EJECUTIVO!$J$32","v":-1.6412190324038733},{"$f":"[5]EJECUTIVO!$I$32","v":0.97840346528506039},{"$f":"[5]EJECUTIVO!$J$32","v":-0.44895187855964469},{"$f":"[6]EJECUTIVO!$I$32","v":3.726422590145817},{"$f":"[6]EJECUTIVO!$J$32","v":-3.0080787842834411E-2},{"$f":"[7]EJECUTIVO!$I$32","v":4.9887336986780495},{"$f":"[7]EJECUTIVO!$J$32","v":3.9764276203080318},{"$f":"[8]EJECUTIVO!$I$32","v":1.7490156707031135},{"$f":"[8]EJECUTIVO!$J$32","v":2.3491801798729783}]
["     2.3  ITCER-Global f/, 2000=100, tasa de variación interanual ",{"$f":"[2]EJECUTIVO!$I$33","v":3.828529170804984},{"$f":"[2]EJECUTIVO!$J$33","v":-5.0548617110790728},{"$f":"[3]EJECUTIVO!$I$33","v":-0.4214309693650109},{"$f":"[3]EJECUTIVO!$J$33","v":2.7739534248682807},{"$f":"[4]EJECUTIVO!$I$33","v":2.9145026066341062},{"$f":"[4]EJECUTIVO!$J$33","v":-1.7412023315755754},{"$f":"[5]EJECUTIVO!$I$33","v":-1.0315749560209753},{"$f":"[5]EJECUTIVO!$J$33","v":-1.1883074534901672},{"$f":"[6]EJECUTIVO!$I$33","v":2.2161526234059981},{"$f":"[6]EJECUTIVO!$J$33","v":0.25465679576310851},{"$f":"[7]EJECUTIVO!$I$33","v":3.4670439904083139E-2},{"$f":"[7]EJECUTIVO!$J$33","v":2.9690840437094579},{"$f":"[8]EJECUTIVO!$I$33","v":-0.61508717395475365},{"$f":"[8]EJECUTIVO!$J$33","v":1.4983156366134898}]
["     2.4  ITCER-Región g/, 2000=100, tasa de variación interanual ",{"$f":"[2]EJECUTIVO!$I$34","v":2.9100818497658887},{"$f":"[2]EJECUTIVO!$J$34","v":-5.1211309027872183},{"$f":"[3]EJECUTIVO!$I$34","v":-2.2272662574615576},{"$f":"[3]EJECUTIVO!$J$34","v":3.949554014632306},{"$f":"[4]EJECUTIVO!$I$34","v":2.4799420929987992},{"$f":"[4]EJECUTIVO!$J$34","v":-2.1769335326516037},{"$f":"[5]EJECUTIVO!$I$34","v":-2.5351861829667977},{"$f":"[5]EJECUTIVO!$J$34","v":-2.1813899460922381},{"$f":"[6]EJECUTIVO!$I$34","v":0.32301708943849317},{"$f":"[6]EJECUTIVO!$J$34","v":0.12284109319344871},{"$f":"[7]EJECUTIVO!$I$34","v":1.6915344850828795},{"$f":"[7]EJECUTIVO!$J$34","v":7.4019865264363105},{"$f":"[8]EJECUTIVO!$I$34","v":-2.7909622664194056},{"$f":"[8]EJECUTIVO!$J$34","v":5.8603938043114701}]
["     2.5  ITCER-Global f/, tasa de variación con el año base (2000)",{"$f":"[2]EJECUTIVO!$I$35","v":-14.110299982119457},{"$f":"[2]EJECUTIVO!$J$35","v":-18.451905542083978},{"$f":"[3]EJECUTIVO!$I$35","v":3.9833411510593493},{"$f":"[3]EJECUTIVO!$J$35","v":6.8677906042116348},{"$f":"[4]EJECUTIVO!$I$35","v":-45.087492467077787},{"$f":"[4]EJECUTIVO!$J$35","v":-46.043630328567644},{"$f":"[5]EJECUTIVO!$I$35","v":-15.05367989176068},{"$f":"[5]EJECUTIVO!$J$35","v":-16.063103345072506},{"$f":"[6]EJECUTIVO!$I$35","v":12.946034700588115},{"$f":"[6]EJECUTIVO!$J$35","v":13.23365945349812},{"$f":"[7]EJECUTIVO!$I$35","v":31.436315821138464},{"$f":"[7]EJECUTIVO!$J$35","v":35.338770501823461},{"$f":"[8]EJECUTIVO!$I$35","v":-11.386498355394849},{"$f":"[8]EJECUTIVO!$J$35","v":-10.058788404102984}]
[]
["III. SECTOR FISCAL"]
["1.  Resultado del Gobierno Central, en millones de US$ ",{"$f":"IF([2]EJECUTIVO!$J$49=[2]EJECUTIVO!$J$4,[2]EJECUTIVO!$G$49,(CONCATENATE([2]EJECUTIVO!$G$49,\"\n\",[2]EJECUTIVO!$I$48,\"          \",[2]EJECUTIVO!$J$48)))","v":"DICIEMBRE\n2018          2019"},null,{"$f":"IF([3]EJECUTIVO!$J$49=[3]EJECUTIVO!$J$4,[3]EJECUTIVO!$G$49,(CONCATENATE([3]EJECUTIVO!$G$49,\"\n\",[3]EJECUTIVO!$I$48,\"          \",[3]EJECUTIVO!$J$48)))","v":"ENERO\n2019          2020"},null,{"$f":"IF([4]EJECUTIVO!$J$49=[4]EJECUTIVO!$J$4,[4]EJECUTIVO!$G$49,(CONCATENATE([4]EJECUTIVO!$G$49,\"\n\",[4]EJECUTIVO!$I$48,\"          \",[4]EJECUTIVO!$J$48)))","v":"DICIEMBRE\n2018          2019"},null,{"$f":"IF([5]EJECUTIVO!$J$49=[5]EJECUTIVO!$J$4,[5]EJECUTIVO!$G$49,(CONCATENATE([5]EJECUTIVO!$G$49,\"\n\",[5]EJECUTIVO!$I$48,\"          \",[5]EJECUTIVO!$J$48)))","v":"NOVIEMBRE\n2018          2019"},null,{"$f":"IF([6]EJECUTIVO!$J$49=[6]EJECUTIVO!$J$4,[6]EJECUTIVO!$G$49,(CONCATENATE([6]EJECUTIVO!$G$49,\"\n\",[6]EJECUTIVO!$I$48,\"          \",[6]EJECUTIVO!$J$48)))","v":"DICIEMBRE\n2017          2018"},null,{"$f":"IF([7]EJECUTIVO!$J$49=[7]EJECUTIVO!$J$4,[7]EJECUTIVO!$G$49,(CONCATENATE([7]EJECUTIVO!$G$49,\"\n\",[7]EJECUTIVO!$I$48,\"          \",[7]EJECUTIVO!$J$48)))","v":"NOVIEMBRE\n2018          2019"},null,{"$f":"IF([8]EJECUTIVO!$J$49=[8]EJECUTIVO!$J$4,[8]EJECUTIVO!$G$49,(CONCATENATE([8]EJECUTIVO!$G$49,\"\n\",[8]EJECUTIVO!$I$48,\"          \",[8]EJECUTIVO!$J$48)))","v":"DICIEMBRE\n2018          2019"}]
["     1.1 Ingresos totales, acumulado",{"$f":"[2]EJECUTIVO!$I49","v":8289.7945405880946},{"$f":"[2]EJECUTIVO!$J49","v":9490.4552713650737},{"$f":"[3]EJECUTIVO!$I49","v":457.46},{"$f":"[3]EJECUTIVO!$J49","v":507.09000000000003},{"$f":"[4]EJECUTIVO!$I49","v":8286.8282830038243},{"$f":"[4]EJECUTIVO!$J49","v":8653.8487429125234},{"$f":"[5]EJECUTIVO!$I49","v":4228.2050910584167},{"$f":"[5]EJECUTIVO!$J49","v":4121.7409777450866},{"$f":"[6]EJECUTIVO!$I49","v":2457.7715130912061},{"$f":"[6]EJECUTIVO!$J49","v":2215.982804184951},{"$f":"[7]EJECUTIVO!$I49","v":11167.835819580245},{"$f":"[7]EJECUTIVO!$J49","v":11731.401435862115},{"$f":"[8]EJECUTIVO!$I49","v":9057},{"$f":"[8]EJECUTIVO!$J49","v":3319.2}]
["     1.2 Ingresos tributarios, acumulado",{"$f":"[2]EJECUTIVO!$I50","v":7638.332765742558},{"$f":"[2]EJECUTIVO!$J50","v":8652.70266398682},{"$f":"[3]EJECUTIVO!$I50","v":440.44},{"$f":"[3]EJECUTIVO!$J50","v":461.42},{"$f":"[4]EJECUTIVO!$I50","v":7845.6580372512935},{"$f":"[4]EJECUTIVO!$J50","v":8150.8429234671366},{"$f":"[5]EJECUTIVO!$I50","v":3960.6658654342432},{"$f":"[5]EJECUTIVO!$J50","v":3892.9471561564987},{"$f":"[6]EJECUTIVO!$I50","v":2285.4396656311974},{"$f":"[6]EJECUTIVO!$J50","v":2046.0088931617624},{"$f":"[7]EJECUTIVO!$I50","v":10348.384091414597},{"$f":"[7]EJECUTIVO!$J50","v":10806.256562032064},{"$f":"[8]EJECUTIVO!$I50","v":6015},{"$f":"[8]EJECUTIVO!$J50","v":1437.8}]
["     1.3 Gastos totales, acumulado",{"$f":"[2]EJECUTIVO!$I51","v":11699.1182689366},{"$f":"[2]EJECUTIVO!$J51","v":13945.355701873003},{"$f":"[3]EJECUTIVO!$I51","v":469.36},{"$f":"[3]EJECUTIVO!$J51","v":539.88},{"$f":"[4]EJECUTIVO!$I51","v":9665.3100883863171},{"$f":"[4]EJECUTIVO!$J51","v":10398.573187981307},{"$f":"[5]EJECUTIVO!$I51","v":4458.7465727241433},{"$f":"[5]EJECUTIVO!$J51","v":4710.3142941931437},{"$f":"[6]EJECUTIVO!$I51","v":2659.0155045106558},{"$f":"[6]EJECUTIVO!$J51","v":2547.1533628635907},{"$f":"[7]EJECUTIVO!$I51","v":11936.754619703435},{"$f":"[7]EJECUTIVO!$J51","v":13229.631323476306},{"$f":"[8]EJECUTIVO!$I51","v":10866},{"$f":"[8]EJECUTIVO!$J51","v":2516.1000000000004}]
["     1.4 Donaciones, acumulado",{"$f":"[2]EJECUTIVO!$I52","v":0},{"$f":"[2]EJECUTIVO!$J52","v":0},{"$f":"[3]EJECUTIVO!$I52","v":4.2699999999999996},{"$f":"[3]EJECUTIVO!$J52","v":10.08},{"$f":"[4]EJECUTIVO!$I52","v":26.149423203941048},{"$f":"[4]EJECUTIVO!$J52","v":11.273806970777132},{"$f":"[5]EJECUTIVO!$I52","v":127.87946600878573},{"$f":"[5]EJECUTIVO!$J52","v":124.00802364689527},{"$f":"[6]EJECUTIVO!$I52","v":123.94013250742516},{"$f":"[6]EJECUTIVO!$J52","v":78.606716324953624},{"$f":"[7]EJECUTIVO!$I52","v":7.2975805728366829},{"$f":"[7]EJECUTIVO!$J52","v":14.099715865752614},{"$f":"[8]EJECUTIVO!$I52","v":0},{"$f":"[8]EJECUTIVO!$J52","v":0}]
["     1.5 Déficit (-) superávit (+) con donaciones",{"$f":"[2]EJECUTIVO!$I56","v":-3409.3237283485055},{"$f":"[2]EJECUTIVO!$J56","v":-4454.9004305079297},{"$f":"[3]EJECUTIVO!$I56","v":-7.6300000000000345},{"$f":"[3]EJECUTIVO!$J56","v":-22.709999999999965},{"$f":"[4]EJECUTIVO!$I56","v":-1352.3323821785518},{"$f":"[4]EJECUTIVO!$J56","v":-1733.450638098006},{"$f":"[5]EJECUTIVO!$I56","v":-102.66201565694095},{"$f":"[5]EJECUTIVO!$J56","v":-464.56529280116183},{"$f":"[6]EJECUTIVO!$I56","v":-77.303858912024523},{"$f":"[6]EJECUTIVO!$J56","v":-252.56384235368611},{"$f":"[7]EJECUTIVO!$I56","v":-761.62121955035389},{"$f":"[7]EJECUTIVO!$J56","v":-1484.1301717484378},{"$f":"[8]EJECUTIVO!$I56","v":-1809},{"$f":"[8]EJECUTIVO!$J56","v":803.09999999999945}]
["           1.5.1  Financiamiento interno",{"$f":"[2]EJECUTIVO!$I57","v":3159.1002862491518},{"$f":"[2]EJECUTIVO!$J57","v":2475.6481828725882},{"$f":"[3]EJECUTIVO!$I57","v":13.9},{"$f":"[3]EJECUTIVO!$J57","v":35.51},{"$f":"[4]EJECUTIVO!$I57","v":1291.6343717744944},{"$f":"[4]EJECUTIVO!$J57","v":828.90560348230383},{"$f":"[5]EJECUTIVO!$I57","v":93.943986878519652},{"$f":"[5]EJECUTIVO!$J57","v":468.47399494718343},{"$f":"[6]EJECUTIVO!$I57","v":-247.57515979339945},{"$f":"[6]EJECUTIVO!$J57","v":114.45449466710753},{"$f":"[7]EJECUTIVO!$I57","v":-1718.1261840794898},{"$f":"[7]EJECUTIVO!$J57","v":-212.80420701798221},{"$f":"[8]EJECUTIVO!$I57","v":"n.d."},{"$f":"[8]EJECUTIVO!$J57","v":"n.d."}]
["           1.5.2  Financiamiento externo",{"$f":"[2]EJECUTIVO!$I58","v":250.22311493646913},{"$f":"[2]EJECUTIVO!$J58","v":1979.2526770344323},{"$f":"[3]EJECUTIVO!$I58","v":-6.26},{"$f":"[3]EJECUTIVO!$J58","v":-12.79},{"$f":"[4]EJECUTIVO!$I58","v":60.697348993099425},{"$f":"[4]EJECUTIVO!$J58","v":904.54503461570482},{"$f":"[5]EJECUTIVO!$I58","v":8.7182637404961589},{"$f":"[5]EJECUTIVO!$J58","v":-3.9089672303189342},{"$f":"[6]EJECUTIVO!$I58","v":324.87901870542407},{"$f":"[6]EJECUTIVO!$J58","v":138.10934768657864},{"$f":"[7]EJECUTIVO!$I58","v":2479.7474036298431},{"$f":"[7]EJECUTIVO!$J58","v":1458.2765245396638},{"$f":"[8]EJECUTIVO!$I58","v":"n.d."},{"$f":"[8]EJECUTIVO!$J58","v":"n.d."}]
["     1.6  Déficit (-) superávit (+) en el 2019 y estimado 2020, con donaciones",{"$f":"[2]METAS!$H$39","v":-4454.9004305079297},{"$f":"[2]METAS!$K$39","v":-3918.1363636363631},{"$f":"[3]METAS!$H$39","v":-436.04000000000065},{"$f":"[3]METAS!$K$39","v":"n.d."},{"$f":"[4]METAS!$H$39","v":-1733.450638098006},{"$f":"[4]METAS!$K$39","v":1621.4646313828771},{"$f":"[5]METAS!$H$39","v":"n.d."},"n.d.",{"$f":"[6]METAS!$H$39","v":"n.d."},{"$f":"[6]METAS!$K$39","v":"n.d."},{"$f":"[7]METAS!$H$39","v":"n.d."},{"$f":"[7]METAS!$K$39","v":"n.d."},{"$f":"[8]METAS!$H$39","v":"n.d."},{"$f":"[8]METAS!$K$39","v":"n.d."}]
["     1.7  Ingresos Corrientes, tasa de variación interanual",{"$f":"[2]EJECUTIVO!$I53","v":3.9356862948575655},{"$f":"[2]EJECUTIVO!$J53","v":6.8495017890838339},{"$f":"[3]EJECUTIVO!$I53","v":5.0087227986410854},{"$f":"[3]EJECUTIVO!$J53","v":10.84903598128799},{"$f":"[4]EJECUTIVO!$I53","v":3.8453311924373068},{"$f":"[4]EJECUTIVO!$J53","v":6.9355706812824991},{"$f":"[5]EJECUTIVO!$I53","v":7.0893025423226508},{"$f":"[5]EJECUTIVO!$J53","v":7.2085571142399552E-2},{"$f":"[6]EJECUTIVO!$I53","v":11.721802876991694},{"$f":"[6]EJECUTIVO!$J53","v":-5.4378560420539124},{"$f":"[7]EJECUTIVO!$I53","v":12.806564727329306},{"$f":"[7]EJECUTIVO!$J53","v":8.6311061124450639},{"$f":"[8]EJECUTIVO!$I53","v":15.362776025236592},{"$f":"0.057*100","v":5.7}]
["     1.8  Relación Gasto Capital / Gasto Total, en porcentajes",{"$f":"[2]EJECUTIVO!$I54","v":6.8550115303006569},{"$f":"[2]EJECUTIVO!$J54","v":9.1216770974165922},{"$f":"[3]EJECUTIVO!$I54","v":9.5086926879154596},{"$f":"[3]EJECUTIVO!$J54","v":9.4502482033044384},{"$f":"[4]EJECUTIVO!$I54","v":19.74267815514953},{"$f":"[4]EJECUTIVO!$J54","v":20.398892901402004},{"$f":"[5]EJECUTIVO!$I54","v":22.715396104490925},{"$f":"[5]EJECUTIVO!$J54","v":21.005167990890698},{"$f":"[6]EJECUTIVO!$I54","v":24.757707186031418},{"$f":"[6]EJECUTIVO!$J54","v":23.571294569036887},{"$f":"[7]EJECUTIVO!$I54","v":15.081025168075726},{"$f":"[7]EJECUTIVO!$J54","v":13.071234098025011},{"$f":"[8]EJECUTIVO!$I54","v":26.201696512723842},{"$f":"[8]EJECUTIVO!$J54","v":38.623266165891664}]
["     1.9  Ahorro Corriente, en millones de US$",{"$f":"[2]EJECUTIVO!$I55","v":-2658.7525175365463},{"$f":"[2]EJECUTIVO!$J55","v":-3304.0147271177143},{"$f":"[3]EJECUTIVO!$I55","v":32.70999999999998},{"$f":"[3]EJECUTIVO!$J55","v":18.230000000000018},{"$f":"[4]EJECUTIVO!$I55","v":521.57727340746294},{"$f":"[4]EJECUTIVO!$J55","v":376.29894078049421},{"$f":"[5]EJECUTIVO!$I55","v":781.35482446294884},{"$f":"[5]EJECUTIVO!$J55","v":401.03538064029703},{"$f":"[6]EJECUTIVO!$I55","v":456.97319870685214},{"$f":"[6]EJECUTIVO!$J55","v":269.20379342827971},{"$f":"[7]EJECUTIVO!$I55","v":1029.1789520283887},{"$f":"[7]EJECUTIVO!$J55","v":233.541510018765},{"$f":"[8]EJECUTIVO!$I55","v":1894},{"$f":"[8]EJECUTIVO!$J55","v":1770.8999999999996}]
["2.  Saldo Deuda Pública, en millones de US$",{"$f":"IF([2]EJECUTIVO!$J$62=[2]EJECUTIVO!$J$4,[2]EJECUTIVO!$G$62,CONCATENATE([2]EJECUTIVO!$G$62,\"\n\",[2]EJECUTIVO!$I$61,\"          \",[2]EJECUTIVO!$J$61))","v":"DICIEMBRE\n2018          2019"},null,{"$f":"IF([3]EJECUTIVO!$J$62=[3]EJECUTIVO!$J$4,[3]EJECUTIVO!$G$62,CONCATENATE([3]EJECUTIVO!$G$62,\"\n\",[3]EJECUTIVO!$I$61,\"          \",[3]EJECUTIVO!$J$61))","v":"ENERO\n2019          2020"},null,{"$f":"IF([4]EJECUTIVO!$J$62=[4]EJECUTIVO!$J$4,[4]EJECUTIVO!$G$62,CONCATENATE([4]EJECUTIVO!$G$62,\"\n\",[4]EJECUTIVO!$I$61,\"          \",[4]EJECUTIVO!$J$61))","v":"DICIEMBRE\n2018          2019"},null,{"$f":"IF([5]EJECUTIVO!$J$62=[5]EJECUTIVO!$J$4,[5]EJECUTIVO!$G$62,CONCATENATE([5]EJECUTIVO!$G$62,\"\n\",[5]EJECUTIVO!$I$61,\"          \",[5]EJECUTIVO!$J$61))","v":"DICIEMBRE\n2018          2019"},null,{"$f":"IF([6]EJECUTIVO!$J$62=[6]EJECUTIVO!$J$4,[6]EJECUTIVO!$G$62,CONCATENATE([6]EJECUTIVO!$G$62,\"\n\",[6]EJECUTIVO!$I$61,\"          \",[6]EJECUTIVO!$J$61))","v":"DICIEMBRE\n2017          2018"},null,{"$f":"IF([7]EJECUTIVO!$J$62=[7]EJECUTIVO!$J$4,[7]EJECUTIVO!$G$62,CONCATENATE([7]EJECUTIVO!$G$62,\"\n\",[7]EJECUTIVO!$I$61,\"          \",[7]EJECUTIVO!$J$61))","v":"DICIEMBRE\n2018          2019"},null,{"$f":"IF([8]EJECUTIVO!$J$62=[8]EJECUTIVO!$J$4,[8]EJECUTIVO!$G$62,CONCATENATE([8]EJECUTIVO!$G$62,\"\n\",[8]EJECUTIVO!$I$61,\"          \",[8]EJECUTIVO!$J$61))","v":"DICIEMBRE\n2018          2019"}]
["2.1 Saldo Deuda Pública Total h/",{"$f":"[2]EJECUTIVO!$I$62","v":39840.437641191354},{"$f":"[2]EJECUTIVO!$J62","v":46949.054966408818},{"$f":"[3]EJECUTIVO!$I62","v":19115.150000000001},{"$f":"[3]EJECUTIVO!$J62","v":19854.419999999998},{"$f":"[4]EJECUTIVO!$I62","v":18991.326818912356},{"$f":"[4]EJECUTIVO!$J62","v":21163.097839301103},{"$f":"[5]EJECUTIVO!$I62","v":10496.938009969885},{"$f":"[5]EJECUTIVO!$J62","v":11055.526229253328},{"$f":"[6]EJECUTIVO!$I62","v":6490.0638839460808},{"$f":"[6]EJECUTIVO!$J62","v":6883.1203516756705},{"$f":"[7]EJECUTIVO!$I62","v":40975.49},{"$f":"[7]EJECUTIVO!$J62","v":44928.22028649092},{"$f":"[8]EJECUTIVO!$I62","v":25686.859800000002},{"$f":"[8]EJECUTIVO!$J62","v":31018.48}]
["   2.1.1 Saldo Deuda Interna Bruta",{"$f":"[2]EJECUTIVO!$I$63","v":28214.116641191358},{"$f":"[2]EJECUTIVO!$J63","v":33831.434966408815},{"$f":"[3]EJECUTIVO!$I63","v":9513.18},{"$f":"[3]EJECUTIVO!$J63","v":9877.630000000001},{"$f":"[4]EJECUTIVO!$I63","v":15183.911608669334},{"$f":"[4]EJECUTIVO!$J63","v":17051.917038398798},{"$f":"[5]EJECUTIVO!$I63","v":7864.0821731989672},{"$f":"[5]EJECUTIVO!$J63","v":8465.2964137493727},{"$f":"[6]EJECUTIVO!$I63","v":944.00851479607195},{"$f":"[6]EJECUTIVO!$J63","v":933.56106993852768},{"$f":"[7]EJECUTIVO!$I63","v":21828.85},{"$f":"[7]EJECUTIVO!$J63","v":23753.360286490923},{"$f":"[8]EJECUTIVO!$I63","v":5112.0810999999994},{"$f":"[8]EJECUTIVO!$J63","v":6795.32}]
["2.1.1.1 Sector Público No Financiero",{"$f":"[2]EJECUTIVO!$I$64","v":24782.614127086228},{"$f":"[2]EJECUTIVO!$J64","v":29335.815327404445},{"$f":"[3]EJECUTIVO!$I64","v":4186.25},{"$f":"[3]EJECUTIVO!$J64","v":4259.5600000000004},{"$f":"[4]EJECUTIVO!$I64","v":10686.444981924846},{"$f":"[4]EJECUTIVO!$J64","v":11358.482963029599},{"$f":"[5]EJECUTIVO!$I64","v":6566.1598762903277},{"$f":"[5]EJECUTIVO!$J64","v":7075.6323119024064},{"$f":"[6]EJECUTIVO!$I64","v":658.11880255779374},{"$f":"[6]EJECUTIVO!$J64","v":632.92721539129695},{"$f":"[7]EJECUTIVO!$I64","v":10593.61},{"$f":"[7]EJECUTIVO!$J64","v":12559.34},{"$f":"[8]EJECUTIVO!$I64","v":5112.0810999999994},{"$f":"[8]EJECUTIVO!$J64","v":6795.32}]
["         a) Gobierno Central",{"$f":"[2]EJECUTIVO!$I$65","v":24540.136587749046},{"$f":"[2]EJECUTIVO!$J65","v":29085.123331403815},{"$f":"[3]EJECUTIVO!$I65","v":3795.04},{"$f":"[3]EJECUTIVO!$J65","v":3812.11},{"$f":"[4]EJECUTIVO!$I65","v":10686.444981924846},{"$f":"[4]EJECUTIVO!$J65","v":11358.482963029599},{"$f":"[5]EJECUTIVO!$I65","v":4513.1800905927994},{"$f":"[5]EJECUTIVO!$J65","v":4829.84113110818},{"$f":"[6]EJECUTIVO!$I65","v":658.11880255779374},{"$f":"[6]EJECUTIVO!$J65","v":632.92721539129695},{"$f":"[7]EJECUTIVO!$I65","v":9939.11},{"$f":"[7]EJECUTIVO!$J65","v":11832.5},{"$f":"[8]EJECUTIVO!$I65","v":5007.9359999999997},{"$f":"[8]EJECUTIVO!$J65","v":6791.5}]
["         b) Resto del Sector Público No Financiero",{"$f":"[2]EJECUTIVO!$I$66","v":242.47753933718295},{"$f":"[2]EJECUTIVO!$J66","v":250.69199600063146},{"$f":"[3]EJECUTIVO!$I66","v":391.21000000000004},{"$f":"[3]EJECUTIVO!$J66","v":447.45000000000005},{"$f":"[4]EJECUTIVO!$I66","v":"n.d."},{"$f":"[4]EJECUTIVO!$J66","v":"n.d."},{"$f":"[5]EJECUTIVO!$I66","v":2052.9797856975283},{"$f":"[5]EJECUTIVO!$J66","v":2245.7911807942269},{"$f":"[6]EJECUTIVO!$I66","v":"n.d."},{"$f":"[6]EJECUTIVO!$J66","v":"n.d."},{"$f":"[7]EJECUTIVO!$I66","v":654.5},{"$f":"[7]EJECUTIVO!$J66","v":726.84},{"$f":"[8]EJECUTIVO!$I66","v":104.1451},{"$f":"[8]EJECUTIVO!$J66","v":3.82}]
["2.1.1.2 Sector Público Financiero",{"$f":"[2]EJECUTIVO!$I$67","v":3431.502514105131},{"$f":"[2]EJECUTIVO!$J67","v":4495.6196390043669},{"$f":"[3]EJECUTIVO!$I67","v":5326.93},{"$f":"[3]EJECUTIVO!$J67","v":5618.07},{"$f":"[4]EJECUTIVO!$I67","v":4497.4666267444891},{"$f":"[4]EJECUTIVO!$J67","v":5693.4340753691959},{"$f":"[5]EJECUTIVO!$I67","v":1297.9222969086397},{"$f":"[5]EJECUTIVO!$J67","v":1389.6641018469657},{"$f":"[6]EJECUTIVO!$I67","v":285.88971223827821},{"$f":"[6]EJECUTIVO!$J67","v":300.63385454723073},{"$f":"[7]EJECUTIVO!$I67","v":11235.24},{"$f":"[7]EJECUTIVO!$J67","v":11194.020286490922},{"$f":"[8]EJECUTIVO!$I67","v":"n.d."},{"$f":"[8]EJECUTIVO!$J67","v":"n.d."}]
["         a) Banco Central",{"$f":"[2]EJECUTIVO!$I$68","v":3431.502514105131},{"$f":"[2]EJECUTIVO!$J68","v":4495.6196390043669},{"$f":"[3]EJECUTIVO!$I68","v":0},{"$f":"[3]EJECUTIVO!$J68","v":0},{"$f":"[4]EJECUTIVO!$I68","v":4497.4666267444891},{"$f":"[4]EJECUTIVO!$J68","v":5693.4340753691959},{"$f":"[5]EJECUTIVO!$I68","v":1237.6205893470508},{"$f":"[5]EJECUTIVO!$J68","v":1330.914355551045},{"$f":"[6]EJECUTIVO!$I68","v":285.88971223827821},{"$f":"[6]EJECUTIVO!$J68","v":300.63385454723073},{"$f":"[7]EJECUTIVO!$I68","v":11235.24},{"$f":"[7]EJECUTIVO!$J68","v":11194.020286490922},{"$f":"[8]EJECUTIVO!$I68","v":"n.d."},{"$f":"[8]EJECUTIVO!$J68","v":"n.d."}]
["         b) Resto del Sector Público Financiero",{"$f":"[2]EJECUTIVO!$I$69","v":"n.d."},{"$f":"[2]EJECUTIVO!$J69","v":"n.d."},{"$f":"[3]EJECUTIVO!$I69","v":5326.93},{"$f":"[3]EJECUTIVO!$J69","v":5618.07},{"$f":"[4]EJECUTIVO!$I69","v":"n.d."},{"$f":"[4]EJECUTIVO!$J69","v":"n.d."},{"$f":"[5]EJECUTIVO!$I69","v":60.301707561588906},{"$f":"[5]EJECUTIVO!$J69","v":58.749746295920446},{"$f":"[6]EJECUTIVO!$I69","v":"n.d."},{"$f":"[6]EJECUTIVO!$J69","v":"n.d."},{"$f":"[7]EJECUTIVO!$I69","v":"n.d."},{"$f":"[7]EJECUTIVO!$J69","v":"n.d."},{"$f":"[8]EJECUTIVO!$I69","v":"n.d."},{"$f":"[8]EJECUTIVO!$J69","v":"n.d."}]
["   2.1.2 Deuda  Intragubernamental",{"$f":"[2]EJECUTIVO!$I$70","v":"n.d."},{"$f":"[2]EJECUTIVO!$J70","v":"n.d."},{"$f":"[3]EJECUTIVO!$I70","v":"n.d."},{"$f":"[3]EJECUTIVO!$J70","v":"n.d."},{"$f":"[4]EJECUTIVO!$I70","v":4415.3524897569805},{"$f":"[4]EJECUTIVO!$J70","v":4995.6940990976937},{"$f":"[5]EJECUTIVO!$I70","v":4742.4441632290827},{"$f":"[5]EJECUTIVO!$J70","v":5108.770184496042},{"$f":"[6]EJECUTIVO!$I70","v":"n.d."},{"$f":"[6]EJECUTIVO!$J70","v":"n.d."},{"$f":"[7]EJECUTIVO!$I70","v":2713.6800000000003},{"$f":"[7]EJECUTIVO!$J70","v":2502.02},{"$f":"[8]EJECUTIVO!$I70","v":"n.d."},{"$f":"[8]EJECUTIVO!$J70","v":"n.d."}]
["                     a) Deuda Intragubernamental SPNF",{"$f":"[2]EJECUTIVO!$I$71","v":"n.d."},{"$f":"[2]EJECUTIVO!$J71","v":"n.d."},{"$f":"[3]EJECUTIVO!$I71","v":"n.d."},{"$f":"[3]EJECUTIVO!$J71","v":"n.d."},{"$f":"[4]EJECUTIVO!$I71","v":2408.0578264966598},{"$f":"[4]EJECUTIVO!$J71","v":2479.8230655551738},{"$f":"[5]EJECUTIVO!$I71","v":3388.4086314855294},{"$f":"[5]EJECUTIVO!$J71","v":3542.4783233229145},{"$f":"[6]EJECUTIVO!$I71","v":"n.d."},{"$f":"[6]EJECUTIVO!$J71","v":"n.d."},{"$f":"[7]EJECUTIVO!$I71","v":2713.6800000000003},{"$f":"[7]EJECUTIVO!$J71","v":2502.02},{"$f":"[8]EJECUTIVO!$I71","v":"n.d."},{"$f":"[8]EJECUTIVO!$J71","v":"n.d."}]
["                     b) Deuda Intragubernamental del BC",{"$f":"[2]EJECUTIVO!$I$72","v":"n.d."},{"$f":"[2]EJECUTIVO!$J72","v":"n.d."},{"$f":"[3]EJECUTIVO!$I72","v":"n.d."},{"$f":"[3]EJECUTIVO!$J72","v":"n.d."},{"$f":"[4]EJECUTIVO!$I72","v":2007.2946632603196},{"$f":"[4]EJECUTIVO!$J72","v":2515.8710335425189},{"$f":"[5]EJECUTIVO!$I72","v":1354.0355317435535},{"$f":"[5]EJECUTIVO!$J72","v":1566.2918611731275},{"$f":"[6]EJECUTIVO!$I72","v":"n.d."},{"$f":"[6]EJECUTIVO!$J72","v":"n.d."},{"$f":"[7]EJECUTIVO!$I72","v":"n.d."},{"$f":"[7]EJECUTIVO!$J72","v":"n.d."},{"$f":"[8]EJECUTIVO!$I72","v":"n.d."},{"$f":"[8]EJECUTIVO!$J72","v":"n.d."}]
["   2.1.3 Saldo Deuda Interna Consolidada (2.1.1 - 2.1.2)",{"$f":"[2]EJECUTIVO!$I$73","v":"n.d."},{"$f":"[2]EJECUTIVO!$J73","v":"n.d."},{"$f":"[3]EJECUTIVO!$I73","v":"n.d."},{"$f":"[3]EJECUTIVO!$J73","v":"n.d."},{"$f":"[4]EJECUTIVO!$I73","v":10768.559118912355},{"$f":"[4]EJECUTIVO!$J73","v":12056.222939301104},{"$f":"[5]EJECUTIVO!$I73","v":3121.6380099698849},{"$f":"[5]EJECUTIVO!$J73","v":3356.5262292533298},{"$f":"[6]EJECUTIVO!$I73","v":"n.d."},{"$f":"[6]EJECUTIVO!$J73","v":"n.d."},{"$f":"[7]EJECUTIVO!$I73","v":19115.169999999998},{"$f":"[7]EJECUTIVO!$J73","v":21251.340286490922},{"$f":"[8]EJECUTIVO!$I73","v":"n.d."},{"$f":"[8]EJECUTIVO!$J73","v":"n.d."}]
["   2.1.4  Saldo Deuda Externa",{"$f":"[2]EJECUTIVO!$I74","v":11626.321},{"$f":"[2]EJECUTIVO!$J74","v":13117.619999999999},{"$f":"[3]EJECUTIVO!$I74","v":9601.9699999999993},{"$f":"[3]EJECUTIVO!$J74","v":9976.7899999999991},{"$f":"[4]EJECUTIVO!$I74","v":8222.7677000000003},{"$f":"[4]EJECUTIVO!$J74","v":9106.8748999999989},{"$f":"[5]EJECUTIVO!$I74","v":7375.2999999999993},{"$f":"[5]EJECUTIVO!$J74","v":7698.9999999999982},{"$f":"[6]EJECUTIVO!$I74","v":5546.055369150009},{"$f":"[6]EJECUTIVO!$J74","v":5949.5592817371426},{"$f":"[7]EJECUTIVO!$I74","v":21860.32},{"$f":"[7]EJECUTIVO!$J74","v":23676.880000000001},{"$f":"[8]EJECUTIVO!$I74","v":20574.778700000003},{"$f":"[8]EJECUTIVO!$J74","v":24223.16}]
["2.1.4.1 Sector Público No Financiero",{"$f":"[2]EJECUTIVO!$I75","v":8733.6810000000005},{"$f":"[2]EJECUTIVO!$J75","v":10876.84},{"$f":"[3]EJECUTIVO!$I75","v":9218.66},{"$f":"[3]EJECUTIVO!$J75","v":9654.4},{"$f":"[4]EJECUTIVO!$I75","v":8222.7677000000003},{"$f":"[4]EJECUTIVO!$J75","v":9106.8748999999989},{"$f":"[5]EJECUTIVO!$I75","v":7258.6999999999989},{"$f":"[5]EJECUTIVO!$J75","v":7608.8999999999978},{"$f":"[6]EJECUTIVO!$I75","v":3988.6745518462703},{"$f":"[6]EJECUTIVO!$J75","v":4215.0060594922697},{"$f":"[7]EJECUTIVO!$I75","v":21564.560000000001},{"$f":"[7]EJECUTIVO!$J75","v":23383.170000000002},{"$f":"[8]EJECUTIVO!$I75","v":20574.778700000003},{"$f":"[8]EJECUTIVO!$J75","v":24223.16}]
["         a) Gobierno Central",{"$f":"[2]EJECUTIVO!$I76","v":6142.5010000000002},{"$f":"[2]EJECUTIVO!$J76","v":8083.13},{"$f":"[3]EJECUTIVO!$I76","v":8642.09},{"$f":"[3]EJECUTIVO!$J76","v":9081.24},{"$f":"[4]EJECUTIVO!$I76","v":8171.2636000000002},{"$f":"[4]EJECUTIVO!$J76","v":9063.5653999999995},{"$f":"[5]EJECUTIVO!$I76","v":6967.6999999999989},{"$f":"[5]EJECUTIVO!$J76","v":7327.2999999999975},{"$f":"[6]EJECUTIVO!$I76","v":3931.400050004625},{"$f":"[6]EJECUTIVO!$J76","v":4161.8159010227628},{"$f":"[7]EJECUTIVO!$I76","v":21558.58},{"$f":"[7]EJECUTIVO!$J76","v":23377.200000000001},{"$f":"[8]EJECUTIVO!$I76","v":20553.529900000001},{"$f":"[8]EJECUTIVO!$J76","v":24204.28}]
["         b) Resto del Sector Público No Financiero",{"$f":"[2]EJECUTIVO!$I77","v":2591.1799999999998},{"$f":"[2]EJECUTIVO!$J77","v":2793.71},{"$f":"[3]EJECUTIVO!$I77","v":576.57000000000005},{"$f":"[3]EJECUTIVO!$J77","v":573.16},{"$f":"[4]EJECUTIVO!$I77","v":51.504100000000001},{"$f":"[4]EJECUTIVO!$J77","v":43.3095},{"$f":"[5]EJECUTIVO!$I77","v":291},{"$f":"[5]EJECUTIVO!$J77","v":281.60000000000002},{"$f":"[6]EJECUTIVO!$I77","v":57.274501841645204},{"$f":"[6]EJECUTIVO!$J77","v":53.190158469507203},{"$f":"[7]EJECUTIVO!$I77","v":5.98},{"$f":"[7]EJECUTIVO!$J77","v":5.97},{"$f":"[8]EJECUTIVO!$I77","v":21.248799999999999},{"$f":"[8]EJECUTIVO!$J77","v":18.88}]
["2.1.4.2 Sector Público Financiero",{"$f":"[2]EJECUTIVO!$I78","v":2892.64},{"$f":"[2]EJECUTIVO!$J78","v":2240.7799999999997},{"$f":"[3]EJECUTIVO!$I78","v":383.31},{"$f":"[3]EJECUTIVO!$J78","v":322.39},{"$f":"[4]EJECUTIVO!$I78","v":"n.d."},{"$f":"[4]EJECUTIVO!$J78","v":"n.d."},{"$f":"[5]EJECUTIVO!$I78","v":116.59999999999994},{"$f":"[5]EJECUTIVO!$J78","v":90.099999999999937},{"$f":"[6]EJECUTIVO!$I78","v":1557.3808173037385},{"$f":"[6]EJECUTIVO!$J78","v":1734.5532222448728},{"$f":"[7]EJECUTIVO!$I78","v":295.76},{"$f":"[7]EJECUTIVO!$J78","v":293.70999999999998},{"$f":"[8]EJECUTIVO!$I78","v":0},{"$f":"[8]EJECUTIVO!$J78","v":0}]
["         a) Banco Central",{"$f":"[2]EJECUTIVO!$I79","v":1011.68},{"$f":"[2]EJECUTIVO!$J79","v":634.5},{"$f":"[3]EJECUTIVO!$I79","v":138.63},{"$f":"[3]EJECUTIVO!$J79","v":90.29},{"$f":"[4]EJECUTIVO!$I79","v":0},{"$f":"[4]EJECUTIVO!$J79","v":0},{"$f":"[5]EJECUTIVO!$I79","v":87.899999999999935},{"$f":"[5]EJECUTIVO!$J79","v":63.799999999999933},{"$f":"[6]EJECUTIVO!$I79","v":1557.3808173037385},{"$f":"[6]EJECUTIVO!$J79","v":1734.5532222448728},{"$f":"[7]EJECUTIVO!$I79","v":295.76},{"$f":"[7]EJECUTIVO!$J79","v":293.70999999999998},{"$f":"[8]EJECUTIVO!$I79","v":0},{"$f":"[8]EJECUTIVO!$J79","v":0}]
["         b) Resto del Sector Público Financiero",{"$f":"[2]EJECUTIVO!$I80","v":1880.96},{"$f":"[2]EJECUTIVO!$J80","v":1606.28},{"$f":"[3]EJECUTIVO!$I80","v":244.68},{"$f":"[3]EJECUTIVO!$J80","v":232.1},{"$f":"[4]EJECUTIVO!$I80","v":"n.d."},{"$f":"[4]EJECUTIVO!$J80","v":"n.d."},{"$f":"[5]EJECUTIVO!$I80","v":28.7},{"$f":"[5]EJECUTIVO!$J80","v":26.3},{"$f":"[6]EJECUTIVO!$I80","v":0},{"$f":"[6]EJECUTIVO!$J80","v":0},{"$f":"[7]EJECUTIVO!$I80","v":"n.d."},{"$f":"[7]EJECUTIVO!$J80","v":"n.d."},{"$f":"[8]EJECUTIVO!$I80","v":0},{"$f":"[8]EJECUTIVO!$J80","v":0}]
["2.2 Relación Deuda Pública Total/PIB h/",{"$f":"[2]EJECUTIVO!$I81","v":65.793345751590309},{"$f":"[2]EJECUTIVO!$J81","v":77.473688063380891},{"$f":"[3]EJECUTIVO!$I81","v":71.181230496533132},{"$f":"[3]EJECUTIVO!$J81","v":73.93413320821324},{"$f":"[4]EJECUTIVO!$I81","v":26.041918508136792},{"$f":"[4]EJECUTIVO!$J81","v":29.019966565051643},{"$f":"[5]EJECUTIVO!$I81","v":43.69191167095871},{"$f":"[5]EJECUTIVO!$J81","v":44.597664194440171},{"$f":"[6]EJECUTIVO!$I81","v":46.885919174607864},{"$f":"[6]EJECUTIVO!$J81","v":52.476916669229801},{"$f":"[7]EJECUTIVO!$I81","v":47.903878512435725},{"$f":"[7]EJECUTIVO!$J81","v":51.423300918073124},{"$f":"[8]EJECUTIVO!$I81","v":39.440465607317854},{"$f":"[8]EJECUTIVO!$J81","v":43.954201502054694}]
["   2.2.1.a Deuda Interna/PIB (bruta)",{"$f":"[2]EJECUTIVO!$I82","v":46.593392069828973},{"$f":"[2]EJECUTIVO!$J82","v":55.827450439618509},{"$f":"[3]EJECUTIVO!$I82","v":35.425296601648903},{"$f":"[3]EJECUTIVO!$J82","v":36.782439990764949},{"$f":"[4]EJECUTIVO!$I82","v":20.820988049868376},{"$f":"[4]EJECUTIVO!$J82","v":23.382496555178687},{"$f":"[5]EJECUTIVO!$I82","v":32.733048757478187},{"$f":"[5]EJECUTIVO!$J82","v":34.148754110666253},{"$f":"[6]EJECUTIVO!$I82","v":6.819764445517122},{"$f":"[6]EJECUTIVO!$J82","v":7.1174705612803351},{"$f":"[7]EJECUTIVO!$I82","v":25.519806559145053},{"$f":"[7]EJECUTIVO!$J82","v":27.187281980873511},{"$f":"[8]EJECUTIVO!$I82","v":7.8492606872238069},{"$f":"[8]EJECUTIVO!$J82","v":9.6291908743091952}]
["   2.2.1.b Deuda Interna/PIB (consolidada)",{"$f":"[2]EJECUTIVO!$I83","v":"n.d."},{"$f":"[2]EJECUTIVO!$J83","v":"n.d."},{"$f":"[3]EJECUTIVO!$I83","v":"n.d."},{"$f":"[3]EJECUTIVO!$J83","v":"n.d."},{"$f":"[4]EJECUTIVO!$I83","v":14.766421624923071},{"$f":"[4]EJECUTIVO!$J83","v":16.532134815801662},{"$f":"[5]EJECUTIVO!$I83","v":12.993344542072116},{"$f":"[5]EJECUTIVO!$J83","v":13.540127039450796},{"$f":"[6]EJECUTIVO!$I83","v":"n.d."},{"$f":"[6]EJECUTIVO!$J83","v":"n.d."},{"$f":"[7]EJECUTIVO!$I83","v":22.347280811640225},{"$f":"[7]EJECUTIVO!$J83","v":24.323555651573002},{"$f":"[8]EJECUTIVO!$I83","v":"n.d."},{"$f":"[8]EJECUTIVO!$J83","v":"n.d."}]
["   2.2.2    Deuda Externa/PIB",{"$f":"[2]EJECUTIVO!$I84","v":19.199953681761343},{"$f":"[2]EJECUTIVO!$J84","v":21.646237623762374},{"$f":"[3]EJECUTIVO!$I84","v":35.755933894884222},{"$f":"[3]EJECUTIVO!$J84","v":37.15169321744829},{"$f":"[4]EJECUTIVO!$I84","v":11.275496883213719},{"$f":"[4]EJECUTIVO!$J84","v":12.487831749249981},{"$f":"[5]EJECUTIVO!$I84","v":30.698567128886587},{"$f":"[5]EJECUTIVO!$J84","v":31.057537154989372},{"$f":"[6]EJECUTIVO!$I84","v":40.066154729090748},{"$f":"[6]EJECUTIVO!$J84","v":45.359446107949466},{"$f":"[7]EJECUTIVO!$I84","v":25.556597700795496},{"$f":"[7]EJECUTIVO!$J84","v":27.099745266500125},{"$f":"[8]EJECUTIVO!$I84","v":31.591204920094047},{"$f":"[8]EJECUTIVO!$J84","v":34.325010627745499}]
[]
["IV. SECTOR MONEDA Y CREDITO  i/"]
["1. Principales variables monetarias, tasas de variación",{"$f":"IF([2]EJECUTIVO!$J$100=[2]EJECUTIVO!$J$4,[2]EJECUTIVO!$G$101,CONCATENATE([2]EJECUTIVO!$G$101,\"\n\",[2]EJECUTIVO!$I$99,\"          \",[2]EJECUTIVO!$J$99))","v":"DICIEMBRE\n2018          2019"},null,{"$f":"IF([3]EJECUTIVO!$J$100=[3]EJECUTIVO!$J$4,[3]EJECUTIVO!$G$101,CONCATENATE([3]EJECUTIVO!$G$101,\"\n\",[3]EJECUTIVO!$I$99,\"          \",[3]EJECUTIVO!$J$99))","v":"NOVIEMBRE\n2018          2019"},null,{"$f":"IF([4]EJECUTIVO!$J$100=[4]EJECUTIVO!$J$4,[4]EJECUTIVO!$G$101,CONCATENATE([4]EJECUTIVO!$G$101,\"\n\",[4]EJECUTIVO!$I$99,\"          \",[4]EJECUTIVO!$J$99))","v":"NOVIEMBRE\n2018          2019"},null,{"$f":"IF([5]EJECUTIVO!$J$100=[5]EJECUTIVO!$J$4,[5]EJECUTIVO!$G$101,CONCATENATE([5]EJECUTIVO!$G$101,\"\n\",[5]EJECUTIVO!$I$99,\"          \",[5]EJECUTIVO!$J$99))","v":"NOVIEMBRE\n2018          2019"},null,{"$f":"IF([6]EJECUTIVO!$J$100=[6]EJECUTIVO!$J$4,[6]EJECUTIVO!$G$101,CONCATENATE([6]EJECUTIVO!$G$101,\"\n\",[6]EJECUTIVO!$I$99,\"          \",[6]EJECUTIVO!$J$99))","v":"NOVIEMBRE\n2018          2019"},null,{"$f":"IF([7]EJECUTIVO!$J$100=[7]EJECUTIVO!$J$4,[7]EJECUTIVO!$G$101,CONCATENATE([7]EJECUTIVO!$G$101,\"\n\",[7]EJECUTIVO!$I$99,\"          \",[7]EJECUTIVO!$J$99))","v":"DICIEMBRE\n2018          2019"},null,{"$f":"IF([8]EJECUTIVO!$J$100=[8]EJECUTIVO!$J$4,[8]EJECUTIVO!$G$101,CONCATENATE([8]EJECUTIVO!$G$101,\"\n\",[8]EJECUTIVO!$I$99,\"          \",[8]EJECUTIVO!$J$99))","v":"DICIEMBRE\n2018          2019"}]
["1.1  Base Monetaria Restringida, tasa interanual ponderada para los componentes",{"$f":"[2]EJECUTIVO!$I100","v":2.292609515660593},{"$f":"[2]EJECUTIVO!$J100","v":-5.1591573779979916},{"$f":"[3]EJECUTIVO!$I100","v":4.2824924442434797},{"$f":"[3]EJECUTIVO!$J100","v":17.40699926577518},{"$f":"[4]EJECUTIVO!$I100","v":11.083165978846576},{"$f":"[4]EJECUTIVO!$J100","v":11.871970794591547},{"$f":"[5]EJECUTIVO!$I100","v":2.175257140152298},{"$f":"[5]EJECUTIVO!$J100","v":20.789295051813017},{"$f":"[6]EJECUTIVO!$I100","v":-7.8071199143680436},{"$f":"[6]EJECUTIVO!$J100","v":8.4953004256764331},{"$f":"[7]EJECUTIVO!$I100","v":5.9359517694706598},{"$f":"[7]EJECUTIVO!$J100","v":9.0506165712919575},{"$f":"[8]EJECUTIVO!$I100","v":3.7823357344182407},{"$f":"[8]EJECUTIVO!$J100","v":3.5792603693295177}]
["     1.1.1 Billetes y monedas en circulación",{"$f":"[2]EJECUTIVO!$I101","v":1.4998055757444841},{"$f":"[2]EJECUTIVO!$J101","v":2.4039480751956974},{"$f":"[3]EJECUTIVO!$I101","v":-1.1336998850825286E-2},{"$f":"[3]EJECUTIVO!$J101","v":-1.0000425824583487E-2},{"$f":"[4]EJECUTIVO!$I101","v":7.4102723551121068},{"$f":"[4]EJECUTIVO!$J101","v":10.230931207005492},{"$f":"[5]EJECUTIVO!$I101","v":1.4451438761783533},{"$f":"[5]EJECUTIVO!$J101","v":6.6983732424180653},{"$f":"[6]EJECUTIVO!$I101","v":-4.2110374895888834},{"$f":"[6]EJECUTIVO!$J101","v":8.2868819041646411},{"$f":"[7]EJECUTIVO!$I101","v":5.6822793552316355},{"$f":"[7]EJECUTIVO!$J101","v":8.1905209380466513},{"$f":"[8]EJECUTIVO!$I101","v":3.7823357344182407},{"$f":"[8]EJECUTIVO!$J101","v":3.5792603693295177}]
["     1.1.2 Depósitos transferibles por concepto de encaje en MN",{"$f":"[2]EJECUTIVO!$I102","v":0.79280393991612319},{"$f":"[2]EJECUTIVO!$J102","v":-7.5631054531936943},{"$f":"[3]EJECUTIVO!$I102","v":4.2938294430943218},{"$f":"[3]EJECUTIVO!$J102","v":17.416999691599763},{"$f":"[4]EJECUTIVO!$I102","v":3.5400974469414033},{"$f":"[4]EJECUTIVO!$J102","v":1.467592942412395},{"$f":"[5]EJECUTIVO!$I102","v":2.9399964257337534},{"$f":"[5]EJECUTIVO!$J102","v":12.503110145401916},{"$f":"[6]EJECUTIVO!$I102","v":-3.5960824247791634},{"$f":"[6]EJECUTIVO!$J102","v":0.20841852151180462},{"$f":"[7]EJECUTIVO!$I102","v":0.25367241423903103},{"$f":"[7]EJECUTIVO!$J102","v":0.8600956332453279},{"$f":"[8]EJECUTIVO!$I102","v":"n.a."},{"$f":"[8]EJECUTIVO!$J102","v":"n.a."}]
["     1.1.3 Valores por concepto de encaje en MN  j/",{"$f":"[2]EJECUTIVO!$I103","v":"n.a."},{"$f":"[2]EJECUTIVO!$J103","v":"n.a."},{"$f":"[3]EJECUTIVO!$I103","v":"n.d."},{"$f":"[3]EJECUTIVO!$J103","v":"n.d."},{"$f":"[4]EJECUTIVO!$I103","v":0.13279617679306857},{"$f":"[4]EJECUTIVO!$J103","v":0.17344664517366584},{"$f":"[5]EJECUTIVO!$I103","v":-2.2098831617597972},{"$f":"[5]EJECUTIVO!$J103","v":1.587811663993034},{"$f":"[6]EJECUTIVO!$I103","v":"n.a."},{"$f":"[6]EJECUTIVO!$J103","v":"n.a."},{"$f":"[7]EJECUTIVO!$I103","v":"n.a."},{"$f":"[7]EJECUTIVO!$J103","v":"n.a."},{"$f":"[8]EJECUTIVO!$I103","v":"n.a."},{"$f":"[8]EJECUTIVO!$J103","v":"n.a."}]
["1.2.  Agregados monetarios, tasa interanual ponderada para los componentes"]
["     1.2.1  Agregado Monetario M1, tasa de variación interanual",{"$f":"[2]EJECUTIVO!$I104","v":5.7627899456460741},{"$f":"[2]EJECUTIVO!$J104","v":10.673644903820367},{"$f":"[3]EJECUTIVO!$I104","v":-0.84319738356318785},{"$f":"[3]EJECUTIVO!$J104","v":14.090573758310088},{"$f":"[4]EJECUTIVO!$I104","v":8.041724129021933},{"$f":"[4]EJECUTIVO!$J104","v":13.634394006816187},{"$f":"[5]EJECUTIVO!$I104","v":3.8724844843575079},{"$f":"[5]EJECUTIVO!$J104","v":15.198222575661791},{"$f":"[6]EJECUTIVO!$I104","v":-11.329942136141325},{"$f":"[6]EJECUTIVO!$J104","v":7.7173157644589763},{"$f":"[7]EJECUTIVO!$I104","v":6.6029206788828176},{"$f":"[7]EJECUTIVO!$J104","v":20.727184071532978},{"$f":"[8]EJECUTIVO!$I104","v":4.5375298262999575},{"$f":"[8]EJECUTIVO!$J104","v":-9.3619239538523242}]
["             1.2.1.1 Billetes y monedas en poder del público",{"$f":"[2]EJECUTIVO!$I105","v":0.54156517979621743},{"$f":"[2]EJECUTIVO!$J105","v":0.39087122974941668},{"$f":"[3]EJECUTIVO!$I105","v":-8.8702547951338643E-3},{"$f":"[3]EJECUTIVO!$J105","v":-8.0703344228692502E-3},{"$f":"[4]EJECUTIVO!$I105","v":4.2888063969192878},{"$f":"[4]EJECUTIVO!$J105","v":6.8256415328228357},{"$f":"[5]EJECUTIVO!$I105","v":2.0392813350155881},{"$f":"[5]EJECUTIVO!$J105","v":5.9089316687646019},{"$f":"[6]EJECUTIVO!$I105","v":-5.3522450138573143},{"$f":"[6]EJECUTIVO!$J105","v":10.107682752253346},{"$f":"[7]EJECUTIVO!$I105","v":4.3000661332774142},{"$f":"[7]EJECUTIVO!$J105","v":4.6676144051840778},{"$f":"[8]EJECUTIVO!$I105","v":"n.a."},{"$f":"[8]EJECUTIVO!$J105","v":"n.a."}]
["             1.2.1.2 Depósitos transferibles en MN",{"$f":"[2]EJECUTIVO!$I106","v":5.2212247658498647},{"$f":"[2]EJECUTIVO!$J106","v":10.282773674070937},{"$f":"[3]EJECUTIVO!$I106","v":-0.83432712876804138},{"$f":"[3]EJECUTIVO!$J106","v":14.098644092732968},{"$f":"[4]EJECUTIVO!$I106","v":3.7529177321026563},{"$f":"[4]EJECUTIVO!$J106","v":6.8087524739933443},{"$f":"[5]EJECUTIVO!$I106","v":1.8332031493419174},{"$f":"[5]EJECUTIVO!$J106","v":9.2892909068971932},{"$f":"[6]EJECUTIVO!$I106","v":-5.977697122284007},{"$f":"[6]EJECUTIVO!$J106","v":-2.3903669877943581},{"$f":"[7]EJECUTIVO!$I106","v":2.302854545605391},{"$f":"[7]EJECUTIVO!$J106","v":16.059569666348914},{"$f":"[8]EJECUTIVO!$I106","v":4.5375298262999575},{"$f":"[8]EJECUTIVO!$J106","v":-9.3619239538523242}]
["     1.2.2  Agregado Monetario M2, tasa de variación interanual",{"$f":"[2]EJECUTIVO!$I107","v":-0.18686065879303104},{"$f":"[2]EJECUTIVO!$J107","v":6.0112828002565122},{"$f":"[3]EJECUTIVO!$I107","v":4.337090668150112},{"$f":"[3]EJECUTIVO!$J107","v":11.385755068116898},{"$f":"[4]EJECUTIVO!$I107","v":8.5864705375940709},{"$f":"[4]EJECUTIVO!$J107","v":11.955115874276068},{"$f":"[5]EJECUTIVO!$I107","v":7.7673613393500318},{"$f":"[5]EJECUTIVO!$J107","v":13.625893774953934},{"$f":"[6]EJECUTIVO!$I107","v":-11.329942136141325},{"$f":"[6]EJECUTIVO!$J107","v":7.7173157644589763},{"$f":"[7]EJECUTIVO!$I107","v":4.5239261603256198},{"$f":"[7]EJECUTIVO!$J107","v":10.285080535969371},{"$f":"[8]EJECUTIVO!$I107","v":2.9754168797707869},{"$f":"[8]EJECUTIVO!$J107","v":2.4837527675561244}]
["             1.2.2.1 Otros depósitos en MN",{"$f":"[2]EJECUTIVO!$I108","v":3.7851501306867964E-2},{"$f":"[2]EJECUTIVO!$J108","v":0.21685255637841372},{"$f":"[3]EJECUTIVO!$I108","v":4.0623518137762336},{"$f":"[3]EJECUTIVO!$J108","v":7.0677879171298077},{"$f":"[4]EJECUTIVO!$I108","v":5.0334972569313168},{"$f":"[4]EJECUTIVO!$J108","v":5.9732661635672617},{"$f":"[5]EJECUTIVO!$I108","v":6.4375892695598562},{"$f":"[5]EJECUTIVO!$J108","v":9.5119663774773144},{"$f":"[6]EJECUTIVO!$I108","v":"n.a."},{"$f":"[6]EJECUTIVO!$J108","v":"n.a."},{"$f":"[7]EJECUTIVO!$I108","v":2.3853655009695598},{"$f":"[7]EJECUTIVO!$J108","v":3.2892425540334229},{"$f":"[8]EJECUTIVO!$I108","v":2.0583272495063705},{"$f":"[8]EJECUTIVO!$J108","v":3.5648165276875785}]
["             1.2.2.2 Valores distintos de acciones emitidos por las sociedades de depósitos en MN",{"$f":"[2]EJECUTIVO!$I109","v":-3.3936880236052827},{"$f":"[2]EJECUTIVO!$J109","v":-0.42490654540048534},{"$f":"[3]EJECUTIVO!$I109","v":0.5128584763960371},{"$f":"[3]EJECUTIVO!$J109","v":0.53634264755077532},{"$f":"[4]EJECUTIVO!$I109","v":0.21856316295877704},{"$f":"[4]EJECUTIVO!$J109","v":0.35686335340747932},{"$f":"[5]EJECUTIVO!$I109","v":0.3197752116367269},{"$f":"[5]EJECUTIVO!$J109","v":0.29328485758230138},{"$f":"[6]EJECUTIVO!$I109","v":"n.a."},{"$f":"[6]EJECUTIVO!$J109","v":"n.a."},{"$f":"[7]EJECUTIVO!$I109","v":-6.0870101353992997E-2},{"$f":"[7]EJECUTIVO!$J109","v":-4.570618895502359E-2},{"$f":"[8]EJECUTIVO!$I109","v":-2.9080394188299104E-2},{"$f":"[8]EJECUTIVO!$J109","v":0.90070727335408407}]
["             1.2.2.3 Agregado Monetario M1",{"$f":"[2]EJECUTIVO!$I110","v":3.1689758635053904},{"$f":"[2]EJECUTIVO!$J110","v":6.2193367892785973},{"$f":"[3]EJECUTIVO!$I110","v":-0.23811962202217163},{"$f":"[3]EJECUTIVO!$J110","v":3.7816245034363303},{"$f":"[4]EJECUTIVO!$I110","v":3.3344101177039733},{"$f":"[4]EJECUTIVO!$J110","v":5.6249863573013315},{"$f":"[5]EJECUTIVO!$I110","v":1.0099968581534347},{"$f":"[5]EJECUTIVO!$J110","v":3.8206425398943114},{"$f":"[6]EJECUTIVO!$I110","v":-11.329942136141325},{"$f":"[6]EJECUTIVO!$J110","v":7.7173157644589763},{"$f":"[7]EJECUTIVO!$I110","v":2.1994307607100714},{"$f":"[7]EJECUTIVO!$J110","v":7.0415441708909796},{"$f":"[8]EJECUTIVO!$I110","v":0.94617002445270892},{"$f":"[8]EJECUTIVO!$J110","v":-1.9817710334855156}]
["     1.2.3  Agregado Monetario M3, tasa de variación interanual  k/",{"$f":"[2]EJECUTIVO!$I111","v":2.2923684443572956},{"$f":"[2]EJECUTIVO!$J111","v":4.7132117052242739},{"$f":"[3]EJECUTIVO!$I111","v":4.337090668150112},{"$f":"[3]EJECUTIVO!$J111","v":11.385755068116898},{"$f":"[4]EJECUTIVO!$I111","v":9.1256899681716241},{"$f":"[4]EJECUTIVO!$J111","v":10.11627008280116},{"$f":"[5]EJECUTIVO!$I111","v":6.5200828656476029},{"$f":"[5]EJECUTIVO!$J111","v":11.139432383888771},{"$f":"[6]EJECUTIVO!$I111","v":-17.237082806726043},{"$f":"[6]EJECUTIVO!$J111","v":1.8736643781199769},{"$f":"[7]EJECUTIVO!$I111","v":6.6369402929692622},{"$f":"[7]EJECUTIVO!$J111","v":11.585465037442443},{"$f":"[8]EJECUTIVO!$I111","v":2.9754168797707869},{"$f":"[8]EJECUTIVO!$J111","v":2.4837527675561244}]
["             1.2.3.1 Depósitos transferibles en ME",{"$f":"[2]EJECUTIVO!$I112","v":2.4551459661525126},{"$f":"[2]EJECUTIVO!$J112","v":1.3454923760864712},{"$f":"[3]EJECUTIVO!$I112","v":"n.a."},{"$f":"[3]EJECUTIVO!$J112","v":"n.a."},{"$f":"[4]EJECUTIVO!$I112","v":0.65019315385759291},{"$f":"[4]EJECUTIVO!$J112","v":-0.20649599001919502},{"$f":"[5]EJECUTIVO!$I112","v":1.5146825053893776E-2},{"$f":"[5]EJECUTIVO!$J112","v":0.22932515846739276},{"$f":"[6]EJECUTIVO!$I112","v":-1.9319731128193363},{"$f":"[6]EJECUTIVO!$J112","v":-1.4541316286854213},{"$f":"[7]EJECUTIVO!$I112","v":"n.a."},{"$f":"[7]EJECUTIVO!$J112","v":"n.a."},{"$f":"[8]EJECUTIVO!$I112","v":"n.a."},{"$f":"[8]EJECUTIVO!$J112","v":"n.a."}]
["             1.2.3.2 Otros depósitos en ME",{"$f":"[2]EJECUTIVO!$I113","v":7.3515792368927996E-2},{"$f":"[2]EJECUTIVO!$J113","v":9.3276309543144347E-3},{"$f":"[3]EJECUTIVO!$I113","v":"n.a."},{"$f":"[3]EJECUTIVO!$J113","v":"n.a."},{"$f":"[4]EJECUTIVO!$I113","v":1.8125536136168001},{"$f":"[4]EJECUTIVO!$J113","v":0.96798325503861349},{"$f":"[5]EJECUTIVO!$I113","v":0.80006606388077561},{"$f":"[5]EJECUTIVO!$J113","v":0.71592548959671798},{"$f":"[6]EJECUTIVO!$I113","v":-13.058925427077476},{"$f":"[6]EJECUTIVO!$J113","v":1.6886216127281584},{"$f":"[7]EJECUTIVO!$I113","v":3.1208164509784768},{"$f":"[7]EJECUTIVO!$J113","v":3.750006965728967},{"$f":"[8]EJECUTIVO!$I113","v":"n.a."},{"$f":"[8]EJECUTIVO!$J113","v":"n.a."}]
["             1.2.3.3 Valores distintos de acciones emitidos por las sociedades de depósito en ME",{"$f":"[2]EJECUTIVO!$I114","v":-0.10830173900704469},{"$f":"[2]EJECUTIVO!$J114","v":-0.65928650648382203},{"$f":"[3]EJECUTIVO!$I114","v":"n.a."},{"$f":"[3]EJECUTIVO!$J114","v":"n.a."},{"$f":"[4]EJECUTIVO!$I114","v":-4.483979460817087E-2},{"$f":"[4]EJECUTIVO!$J114","v":6.15498475074596E-2},{"$f":"[5]EJECUTIVO!$I114","v":-1.40418826274485E-2},{"$f":"[5]EJECUTIVO!$J114","v":4.4307833665652802E-2},{"$f":"[6]EJECUTIVO!$I114","v":"n.a."},{"$f":"[6]EJECUTIVO!$J114","v":"n.a."},{"$f":"[7]EJECUTIVO!$I114","v":"n.a."},{"$f":"[7]EJECUTIVO!$J114","v":"n.a."},{"$f":"[8]EJECUTIVO!$I114","v":"n.a."},{"$f":"[8]EJECUTIVO!$J114","v":"n.a."}]
["             1.2.3.4 Agregado Monetario M2",{"$f":"[2]EJECUTIVO!$I115","v":-0.12799157515711432},{"$f":"[2]EJECUTIVO!$J115","v":4.0176782046673312},{"$f":"[3]EJECUTIVO!$I115","v":4.337090668150112},{"$f":"[3]EJECUTIVO!$J115","v":11.385755068116898},{"$f":"[4]EJECUTIVO!$I115","v":6.7077829953054122},{"$f":"[4]EJECUTIVO!$J115","v":9.2932329702742624},{"$f":"[5]EJECUTIVO!$I115","v":5.7189118593403787},{"$f":"[5]EJECUTIVO!$J115","v":10.149873902159026},{"$f":"[6]EJECUTIVO!$I115","v":-2.2461842668292267},{"$f":"[6]EJECUTIVO!$J115","v":1.6391743940772416},{"$f":"[7]EJECUTIVO!$I115","v":3.5161238419907805},{"$f":"[7]EJECUTIVO!$J115","v":7.835458071713485},{"$f":"[8]EJECUTIVO!$I115","v":2.9754168797707869},{"$f":"[8]EJECUTIVO!$J115","v":2.4837527675561244}]
["1.3.  Titulos emitidos por el Banco Central, tasa de variación interanual",{"$f":"[2]EJECUTIVO!$I116","v":-4.9174125399037099},{"$f":"[2]EJECUTIVO!$J116","v":-3.9086367775920783},{"$f":"[3]EJECUTIVO!$I116","v":-2.8811502979050552},{"$f":"[3]EJECUTIVO!$J116","v":76.549226237226776},{"$f":"[4]EJECUTIVO!$I116","v":-2.9645747372361142},{"$f":"[4]EJECUTIVO!$J116","v":25.509149961115753},{"$f":"[5]EJECUTIVO!$I116","v":-9.9290620380112156},{"$f":"[5]EJECUTIVO!$J116","v":10.421284253237584},{"$f":"[6]EJECUTIVO!$I116","v":-2.0224194503692505},{"$f":"[6]EJECUTIVO!$J116","v":-46.679856734162669},{"$f":"[7]EJECUTIVO!$I116","v":15.036001196480342},{"$f":"[7]EJECUTIVO!$J116","v":5.170360450540934},{"$f":"[8]EJECUTIVO!$I116","v":"n.a."},{"$f":"[8]EJECUTIVO!$I116","v":"n.a."}]
["     1.3.1 Títulos emitidos por el BC en MN",{"$f":"[2]EJECUTIVO!$I117","v":-4.9174125399037099},{"$f":"[2]EJECUTIVO!$J117","v":-3.9086367775920783},{"$f":"[3]EJECUTIVO!$I117","v":-5.9963402524184737},{"$f":"[3]EJECUTIVO!$J117","v":0.10348445774762477},{"$f":"[4]EJECUTIVO!$I117","v":-0.84022740435308663},{"$f":"[4]EJECUTIVO!$J117","v":26.78769262200889},{"$f":"[5]EJECUTIVO!$I117","v":-10.799212892894964},{"$f":"[5]EJECUTIVO!$J117","v":9.525075688439772},{"$f":"[6]EJECUTIVO!$I117","v":"n.a."},{"$f":"[6]EJECUTIVO!$J117","v":"n.a."},{"$f":"[7]EJECUTIVO!$I117","v":15.036001196480342},{"$f":"[7]EJECUTIVO!$J117","v":5.170360450540934},{"$f":"[8]EJECUTIVO!$I117","v":"n.a."},{"$f":"[8]EJECUTIVO!$I117","v":"n.a."}]
["     1.3.2 Títulos emitidos por el BC en ME",{"$f":"[2]EJECUTIVO!$I118","v":"n.d."},{"$f":"[2]EJECUTIVO!$J118","v":"n.d."},{"$f":"[3]EJECUTIVO!$I118","v":3.115189954513423},{"$f":"[3]EJECUTIVO!$J118","v":76.445741779479135},{"$f":"[4]EJECUTIVO!$I118","v":-2.1243473328830316},{"$f":"[4]EJECUTIVO!$J118","v":-1.2785426608931416},{"$f":"[5]EJECUTIVO!$I118","v":0.87015085488374089},{"$f":"[5]EJECUTIVO!$J118","v":0.89620856479783517},{"$f":"[6]EJECUTIVO!$I118","v":-2.0224194503692505},{"$f":"[6]EJECUTIVO!$J118","v":-46.679856734162669},{"$f":"[7]EJECUTIVO!$I118","v":"n.d."},{"$f":"[7]EJECUTIVO!$J118","v":"n.d."},{"$f":"[8]EJECUTIVO!$I118","v":"n.a."},{"$f":"[8]EJECUTIVO!$J118","v":"n.a."}]
["1.4.  Saldo de los créditos de las Otras Sociedades de Depósito, tasa de variación interanual",{"$f":"[2]EJECUTIVO!$I119","v":3.7959883945890782},{"$f":"[2]EJECUTIVO!$J119","v":0.27231293074574392},{"$f":"[3]EJECUTIVO!$I119","v":7.0369623704940931},{"$f":"[3]EJECUTIVO!$J119","v":6.002253351369724},{"$f":"[4]EJECUTIVO!$I119","v":6.1568983524134202},{"$f":"[4]EJECUTIVO!$J119","v":7.902492195701849},{"$f":"[5]EJECUTIVO!$I119","v":11.058092285331478},{"$f":"[5]EJECUTIVO!$J119","v":10.990808359883598},{"$f":"[6]EJECUTIVO!$I119","v":-4.4807793085608001},{"$f":"[6]EJECUTIVO!$J119","v":-11.204420671017857},{"$f":"[7]EJECUTIVO!$I119","v":10.895965797423933},{"$f":"[7]EJECUTIVO!$J119","v":12.912419569793787},{"$f":"[8]EJECUTIVO!$I119","v":3.7072356880574864},{"$f":"[8]EJECUTIVO!$J119","v":0.82284643243866196}]
["     1.4.1 Al Sector Público neto",{"$f":"[2]EJECUTIVO!$I120","v":-0.484140479625221},{"$f":"[2]EJECUTIVO!$J120","v":1.5223344932805802},{"$f":"[3]EJECUTIVO!$I120","v":1.3963165776275843},{"$f":"[3]EJECUTIVO!$J120","v":1.6177555149368386},{"$f":"[4]EJECUTIVO!$I120","v":2.5394377850831247},{"$f":"[4]EJECUTIVO!$J120","v":4.2729811844117425},{"$f":"[5]EJECUTIVO!$I120","v":0.21310144974496334},{"$f":"[5]EJECUTIVO!$J120","v":2.7504434315790229},{"$f":"[6]EJECUTIVO!$I120","v":-3.2727603937798087},{"$f":"[6]EJECUTIVO!$J120","v":0.39028163750180039},{"$f":"[7]EJECUTIVO!$I120","v":2.3639532090598832},{"$f":"[7]EJECUTIVO!$J120","v":2.979107387034365},{"$f":"[8]EJECUTIVO!$I120","v":-9.7346135020287008E-2},{"$f":"[8]EJECUTIVO!$J120","v":0.519134084060762}]
["     1.4.2 Al Sector Privado",{"$f":"[2]EJECUTIVO!$I121","v":3.5113992367265947},{"$f":"[2]EJECUTIVO!$J121","v":-0.89087105646060083},{"$f":"[3]EJECUTIVO!$I121","v":5.8548472634617568},{"$f":"[3]EJECUTIVO!$J121","v":4.0440307559963165},{"$f":"[4]EJECUTIVO!$I121","v":3.2660443580656668},{"$f":"[4]EJECUTIVO!$J121","v":2.9031625043238307},{"$f":"[5]EJECUTIVO!$I121","v":10.882612906054046},{"$f":"[5]EJECUTIVO!$J121","v":7.3259074876664902},{"$f":"[6]EJECUTIVO!$I121","v":-5.3829851631543892},{"$f":"[6]EJECUTIVO!$J121","v":-13.862761084019242},{"$f":"[7]EJECUTIVO!$I121","v":8.1194763766402005},{"$f":"[7]EJECUTIVO!$J121","v":9.8710989806132297},{"$f":"[8]EJECUTIVO!$I121","v":2.274311311640473},{"$f":"[8]EJECUTIVO!$J121","v":1.4764810737520224}]
["     1.4.3 A no residentes y otros",{"$f":"[2]EJECUTIVO!$I122","v":0.76872963748771161},{"$f":"[2]EJECUTIVO!$J122","v":-0.35915050607425397},{"$f":"[3]EJECUTIVO!$I122","v":-0.21420147059526487},{"$f":"[3]EJECUTIVO!$J122","v":0.34046708043658208},{"$f":"[4]EJECUTIVO!$I122","v":0.35141620926462563},{"$f":"[4]EJECUTIVO!$J122","v":0.72634850696626596},{"$f":"[5]EJECUTIVO!$I122","v":-3.7622070467513855E-2},{"$f":"[5]EJECUTIVO!$J122","v":0.91445744063808621},{"$f":"[6]EJECUTIVO!$I122","v":4.1749662483734111},{"$f":"[6]EJECUTIVO!$J122","v":2.2680587754995645},{"$f":"[7]EJECUTIVO!$I122","v":0.4125362117238493},{"$f":"[7]EJECUTIVO!$J122","v":6.2213202146195537E-2},{"$f":"[8]EJECUTIVO!$I122","v":1.5302705114373063},{"$f":"[8]EJECUTIVO!$J122","v":-1.1727687253741133}]
["2.  Relaciones Analíticas",{"$f":"IF([2]EJECUTIVO!$J$120=[2]EJECUTIVO!$J$4,[2]EJECUTIVO!$G$121,CONCATENATE([2]EJECUTIVO!$G$121,\"\n\",[2]EJECUTIVO!$I$124,\"          \",[2]EJECUTIVO!$J$124))","v":"DICIEMBRE\n2018          2019"},null,{"$f":"IF([3]EJECUTIVO!$J$121=[3]EJECUTIVO!$J$4,[3]EJECUTIVO!$G$122,CONCATENATE([3]EJECUTIVO!$G$122,\"\n\",[3]EJECUTIVO!$I$124,\"          \",[3]EJECUTIVO!$J$124))","v":"NOVIEMBRE\n2018          2019"},null,{"$f":"IF([4]EJECUTIVO!$J$120=[4]EJECUTIVO!$J$4,[4]EJECUTIVO!$G$121,CONCATENATE([4]EJECUTIVO!$G$121,\"\n\",[4]EJECUTIVO!$I$124,\"          \",[4]EJECUTIVO!$J$124))","v":"NOVIEMBRE\n2018          2019"},null,{"$f":"IF([5]EJECUTIVO!$J$120=[5]EJECUTIVO!$J$4,[5]EJECUTIVO!$G$121,CONCATENATE([5]EJECUTIVO!$G$121,\"\n\",[5]EJECUTIVO!$I$124,\"          \",[5]EJECUTIVO!$J$124))","v":"NOVIEMBRE\n2018          2019"},null,{"$f":"IF([6]EJECUTIVO!$J$120=[6]EJECUTIVO!$J$4,[6]EJECUTIVO!$G$121,CONCATENATE([6]EJECUTIVO!$G$121,\"\n\",[6]EJECUTIVO!$I$124,\"          \",[6]EJECUTIVO!$J$124))","v":"NOVIEMBRE\n2018          2019"},null,{"$f":"IF([7]EJECUTIVO!$J$120=[7]EJECUTIVO!$J$4,[7]EJECUTIVO!$G$121,CONCATENATE([7]EJECUTIVO!$G$121,\"\n\",[7]EJECUTIVO!$I$124,\"          \",[7]EJECUTIVO!$J$124))","v":"DICIEMBRE\n2018          2019"},null,{"$f":"IF([8]EJECUTIVO!$J$120=[8]EJECUTIVO!$J$4,[8]EJECUTIVO!$G$121,CONCATENATE([8]EJECUTIVO!$G$121,\"\n\",[8]EJECUTIVO!$I$124,\"          \",[8]EJECUTIVO!$J$124))","v":"DICIEMBRE\n2018          2019"}]
["     2.1 Multiplicador Monetario (M2/BMAmplia)",{"$f":"[2]EJECUTIVO!$I125","v":1.6540323054894817},{"$f":"[2]EJECUTIVO!$J125","v":1.6942839356293788},{"$f":"[3]EJECUTIVO!$I125","v":4.0925524030853779},{"$f":"[3]EJECUTIVO!$J125","v":3.903795167582365},{"$f":"[4]EJECUTIVO!$I125","v":2.7815544563000882},{"$f":"[4]EJECUTIVO!$J125","v":2.7048223399578166},{"$f":"[5]EJECUTIVO!$I125","v":2.1219098104696039},{"$f":"[5]EJECUTIVO!$J125","v":2.149808089257836},{"$f":"[6]EJECUTIVO!$I125","v":0.48817561099718548},{"$f":"[6]EJECUTIVO!$J125","v":0.568140109017368},{"$f":"[7]EJECUTIVO!$I125","v":2.7587516717834824},{"$f":"[7]EJECUTIVO!$J125","v":2.5074304563011571},{"$f":"[8]EJECUTIVO!$I125","v":22.698197792184828},{"$f":"[8]EJECUTIVO!$J125","v":20.279990064678426}]
["     2.2 Relación RIN / BMAmplia, en porcentajes",{"$f":"[2]EJECUTIVO!$I126","v":68.517783645481785},{"$f":"[2]EJECUTIVO!$J126","v":74.257073164983126},{"$f":"[3]EJECUTIVO!$I126","v":102.34984458900722},{"$f":"[3]EJECUTIVO!$J126","v":101.61804008128723},{"$f":"[4]EJECUTIVO!$I126","v":121.24234876853002},{"$f":"[4]EJECUTIVO!$J126","v":123.32886156918912},{"$f":"[5]EJECUTIVO!$I126","v":93.379420255402025},{"$f":"[5]EJECUTIVO!$J126","v":96.956944408187013},{"$f":"[6]EJECUTIVO!$I126","v":105.31579113571074},{"$f":"[6]EJECUTIVO!$J126","v":127.21999056266353},{"$f":"[7]EJECUTIVO!$I126","v":98.937327768798227},{"$f":"[7]EJECUTIVO!$J126","v":98.925752495713681},{"$f":"[8]EJECUTIVO!$I126","v":160.07850169838505},{"$f":"[8]EJECUTIVO!$J126","v":198.90753386765459}]
["     2.3 Relación Cuasidinero / M2, en porcentajes  L/",{"$f":"[2]EJECUTIVO!$I127","v":41.73183719975038},{"$f":"[2]EJECUTIVO!$J127","v":39.169211157425813},{"$f":"[3]EJECUTIVO!$I127","v":73.162026129659395},{"$f":"[3]EJECUTIVO!$J127","v":72.510310357862366},{"$f":"[4]EJECUTIVO!$I127","v":58.744141070815061},{"$f":"[4]EJECUTIVO!$J127","v":58.125321098204431},{"$f":"[5]EJECUTIVO!$I127","v":74.861254196838573},{"$f":"[5]EJECUTIVO!$J127","v":74.51339005490037},{"$f":"[6]EJECUTIVO!$I127","v":0},{"$f":"[6]EJECUTIVO!$J127","v":0},{"$f":"[7]EJECUTIVO!$I127","v":66.027492463088905},{"$f":"[7]EJECUTIVO!$J127","v":62.810879306176517},{"$f":"[8]EJECUTIVO!$I127","v":78.8315837294316},{"$f":"[8]EJECUTIVO!$J127","v":81.278354159609862}]
["     2.4 Relación Depósitos en ME / Depósitos Totales, en porcentajes  m/",{"$f":"[2]EJECUTIVO!$I128","v":42.340269502226242},{"$f":"[2]EJECUTIVO!$J128","v":40.82596378999969},{"$f":"[3]EJECUTIVO!$I128","v":"n.a."},{"$f":"[3]EJECUTIVO!$J128","v":"n.a."},{"$f":"[4]EJECUTIVO!$I128","v":25.585228176129426},{"$f":"[4]EJECUTIVO!$J128","v":24.306386871090364},{"$f":"[5]EJECUTIVO!$I128","v":27.506430203889309},{"$f":"[5]EJECUTIVO!$J128","v":25.778634258291543},{"$f":"[6]EJECUTIVO!$I128","v":88.271706829061586},{"$f":"[6]EJECUTIVO!$J128","v":88.806466124927169},{"$f":"[7]EJECUTIVO!$I128","v":36.8891451797234},{"$f":"[7]EJECUTIVO!$J128","v":36.767796129879379},{"$f":"[8]EJECUTIVO!$I128","v":"n.a."},{"$f":"[8]EJECUTIVO!$J128","v":"n.a."}]
["     2.5 Relación Créditos en ME / Créditos Totales, en porcentajes  m/  n/",{"$f":"[2]EJECUTIVO!$I129","v":38.47431205086216},{"$f":"[2]EJECUTIVO!$J129","v":36.078588937468702},{"$f":"[3]EJECUTIVO!$I129","v":"n.a."},{"$f":"[3]EJECUTIVO!$J129","v":"n.a."},{"$f":"[4]EJECUTIVO!$I129","v":32.01805422321479},{"$f":"[4]EJECUTIVO!$J129","v":29.6233743595463},{"$f":"[5]EJECUTIVO!$I129","v":25.460175701175462},{"$f":"[5]EJECUTIVO!$J129","v":24.936930074457109},{"$f":"[6]EJECUTIVO!$I129","v":100},{"$f":"[6]EJECUTIVO!$J129","v":100},{"$f":"[7]EJECUTIVO!$I129","v":20.95522717870027},{"$f":"[7]EJECUTIVO!$J129","v":21.443900511359729},{"$f":"[8]EJECUTIVO!$I129","v":"n.a."},{"$f":"[8]EJECUTIVO!$J129","v":"n.a."}]
["     2.6 Relación Crédito-sector privado / PIB, en porcentajes",{"$f":"[2]EJECUTIVO!$I130","v":63.945628529766537},{"$f":"[2]EJECUTIVO!$J130","v":60.89767932000224},{"$f":"[3]EJECUTIVO!$I130","v":49.899873212175635},{"$f":"[3]EJECUTIVO!$J130","v":50.644282864989464},{"$f":"[4]EJECUTIVO!$I130","v":37.364364753357563},{"$f":"[4]EJECUTIVO!$J130","v":36.61771091973916},{"$f":"[5]EJECUTIVO!$I130","v":60.508727339438352},{"$f":"[5]EJECUTIVO!$J130","v":62.862711168262223},{"$f":"[6]EJECUTIVO!$I130","v":36.600405484277857},{"$f":"[6]EJECUTIVO!$J130","v":30.501825208633846},{"$f":"[7]EJECUTIVO!$I130","v":26.586289341039908},{"$f":"[7]EJECUTIVO!$J130","v":27.833772948828955},{"$f":"[8]EJECUTIVO!$I130","v":73.975316658693487},{"$f":"[8]EJECUTIVO!$J130","v":75.591621439804456}]
["     2.7 Relación Saldo de OMA's / M3, en porcentajes",{"$f":"[2]EJECUTIVO!$I131","v":11.82209326019839},{"$f":"[2]EJECUTIVO!$J131","v":10.848688900048584},{"$f":"[3]EJECUTIVO!$I131","v":3.4622914796859674},{"$f":"[3]EJECUTIVO!$J131","v":5.4878191683711011},{"$f":"[4]EJECUTIVO!$I131","v":13.416087260311722},{"$f":"[4]EJECUTIVO!$J131","v":15.291488774363001},{"$f":"[5]EJECUTIVO!$I131","v":12.488727034841164},{"$f":"[5]EJECUTIVO!$J131","v":12.408028800363008},{"$f":"[6]EJECUTIVO!$I131","v":9.5680224230934172},{"$f":"[6]EJECUTIVO!$J131","v":5.0078529076613538},{"$f":"[7]EJECUTIVO!$I131","v":41.136997542071896},{"$f":"[7]EJECUTIVO!$J131","v":38.772010834036493},{"$f":"[8]EJECUTIVO!$I131","v":5.5980851281923587E-3},{"$f":"[8]EJECUTIVO!$J131","v":0.492181061057193}]
["3.  Tasas de Interés y de encaje  ñ/",{"$f":"IF([2]EJECUTIVO!$J$84=[2]EJECUTIVO!$J$4,[2]EJECUTIVO!$G$85,CONCATENATE([2]EJECUTIVO!$G$89,\"\n\",[2]EJECUTIVO!$I$88,\"          \",[2]EJECUTIVO!$J$88))","v":"DICIEMBRE\n2018          2019"},null,{"$f":"IF([3]EJECUTIVO!$J$85=[3]EJECUTIVO!$J$4,[3]EJECUTIVO!$G$86,CONCATENATE([3]EJECUTIVO!$G$89,\"\n\",[3]EJECUTIVO!$I$88,\"          \",[3]EJECUTIVO!$J$88))","v":"DICIEMBRE\n2018          2019"},null,{"$f":"IF([4]EJECUTIVO!$J$84=[4]EJECUTIVO!$J$4,[4]EJECUTIVO!$G$85,CONCATENATE([4]EJECUTIVO!$G$89,\"\n\",[4]EJECUTIVO!$I$88,\"          \",[4]EJECUTIVO!$J$88))","v":"ENERO\n2019          2020"},null,{"$f":"IF([5]EJECUTIVO!$J$84=[5]EJECUTIVO!$J$4,[5]EJECUTIVO!$G$85,CONCATENATE([5]EJECUTIVO!$G$89,\"\n\",[5]EJECUTIVO!$I$88,\"          \",[5]EJECUTIVO!$J$88))","v":"DICIEMBRE\n2018          2019"},null,{"$f":"IF([6]EJECUTIVO!$J$84=[6]EJECUTIVO!$J$4,[6]EJECUTIVO!$G$85,CONCATENATE([6]EJECUTIVO!$G$89,\"\n\",[6]EJECUTIVO!$I$88,\"          \",[6]EJECUTIVO!$J$88))","v":"AGOSTO\n2018          2019"},null,{"$f":"IF([7]EJECUTIVO!$J$84=[7]EJECUTIVO!$J$4,[7]EJECUTIVO!$G$85,CONCATENATE([7]EJECUTIVO!$G$89,\"\n\",[7]EJECUTIVO!$I$88,\"          \",[7]EJECUTIVO!$J$88))","v":"ENERO\n2019          2020"},null,{"$f":"IF([8]EJECUTIVO!$J$84=[8]EJECUTIVO!$J$4,[8]EJECUTIVO!$G$85,CONCATENATE([8]EJECUTIVO!$G$89,\"\n\",[8]EJECUTIVO!$I$88,\"          \",[8]EJECUTIVO!$J$88))","v":"DICIEMBRE\n2018          2019"}]
["     3.1 Tasa interés activa nominal promedio corto plazo en MN",{"$f":"[2]EJECUTIVO!$I91","v":15.887947171905415},{"$f":"[2]EJECUTIVO!$J91","v":10.53},{"$f":"[3]EJECUTIVO!$I91","v":6.5},{"$f":"[3]EJECUTIVO!$J91","v":6.45},{"$f":"[4]EJECUTIVO!$I91","v":12.74},{"$f":"[4]EJECUTIVO!$J91","v":12.64},{"$f":"[5]EJECUTIVO!$I91","v":17.43},{"$f":"[5]EJECUTIVO!$J91","v":17.39},{"$f":"[6]EJECUTIVO!$I91","v":10.17},{"$f":"[6]EJECUTIVO!$J91","v":12.970395748010935},{"$f":"[7]EJECUTIVO!$I91","v":12.622199999999999},{"$f":"[7]EJECUTIVO!J91","v":12.5199},{"$f":"[8]EJECUTIVO!$I91","v":6.56},{"$f":"[8]EJECUTIVO!J91","v":8.4600000000000009}]
["     3.2 Tasa interés activa real promedio corto plazo en MN",{"$f":"[2]EJECUTIVO!$I92","v":13.585275854450815},{"$f":"[2]EJECUTIVO!$J92","v":8.8724934600264778},{"$f":"[3]EJECUTIVO!$I92","v":6.0353072128228007},{"$f":"[3]EJECUTIVO!$J92","v":6.4594799180692757},{"$f":"[4]EJECUTIVO!$I92","v":8.2946467117570961},{"$f":"[4]EJECUTIVO!$J92","v":10.665256609642288},{"$f":"[5]EJECUTIVO!$I92","v":12.670306311881198},{"$f":"[5]EJECUTIVO!$J92","v":12.783733650416174},{"$f":"[6]EJECUTIVO!$I92","v":10.572220186671069},{"$f":"[6]EJECUTIVO!$J92","v":10.714148561672269},{"$f":"[7]EJECUTIVO!$I92","v":11.830311559264414},{"$f":"[7]EJECUTIVO!J92","v":8.0114926198988154},{"$f":"[8]EJECUTIVO!$I92","v":6.3915043639021514},{"$f":"[8]EJECUTIVO!J92","v":8.5279171128107087}]
["     3.3 Tasa interés activa promedio corto plazo en ME ",{"$f":"[2]EJECUTIVO!$I93","v":10.812962593964714},{"$f":"[2]EJECUTIVO!$J93","v":6.95},{"$f":"[3]EJECUTIVO!$I93","v":6.5},{"$f":"[3]EJECUTIVO!$J93","v":6.45},{"$f":"[4]EJECUTIVO!$I93","v":6.55},{"$f":"[4]EJECUTIVO!$J93","v":6.37},{"$f":"[5]EJECUTIVO!$I93","v":8.1199999999999992},{"$f":"[5]EJECUTIVO!$J93","v":8.19},{"$f":"[6]EJECUTIVO!$I93","v":9.89},{"$f":"[6]EJECUTIVO!$J93","v":11.90008179653824},{"$f":"[7]EJECUTIVO!$I93","v":6.1733000000000002},{"$f":"[7]EJECUTIVO!J93","v":5.1388999999999996},{"$f":"[8]EJECUTIVO!$I93","v":6.56},{"$f":"[8]EJECUTIVO!J93","v":8.4600000000000009}]
["     3.4 Tasa interés pasiva nominal promedio 180 días en MN ",{"$f":"[2]EJECUTIVO!$I94","v":6},{"$f":"[2]EJECUTIVO!$J94","v":5.75},{"$f":"[3]EJECUTIVO!$I94","v":4.25},{"$f":"[3]EJECUTIVO!$J94","v":4.25},{"$f":"[4]EJECUTIVO!$I94","v":5.05},{"$f":"[4]EJECUTIVO!$J94","v":4.87},{"$f":"[5]EJECUTIVO!$I94","v":8.2799999999999994},{"$f":"[5]EJECUTIVO!$J94","v":8.5},{"$f":"[6]EJECUTIVO!$I94","v":5.1100000000000003},{"$f":"[6]EJECUTIVO!$J94","v":7.5250311555164835},{"$f":"[7]EJECUTIVO!$I94","v":7.87},{"$f":"[7]EJECUTIVO!J94","v":6.4364999999999997},{"$f":"[8]EJECUTIVO!$I94","v":1.98},{"$f":"[8]EJECUTIVO!J94","v":2.17}]
["     3.5 Tasa interés pasiva real promedio 180 días en MN ",{"$f":"[2]EJECUTIVO!$I95","v":3.8938002992828897},{"$f":"[2]EJECUTIVO!$J95","v":4.1641742820754564},{"$f":"[3]EJECUTIVO!$I95","v":3.7951246660730238},{"$f":"[3]EJECUTIVO!$J95","v":4.2592839967940064},{"$f":"[4]EJECUTIVO!$I95","v":0.90786444092675944},{"$f":"[4]EJECUTIVO!$J95","v":3.0314760356284332},{"$f":"[5]EJECUTIVO!$I95","v":3.8911757425742679},{"$f":"[5]EJECUTIVO!$J95","v":4.2425683709869233},{"$f":"[6]EJECUTIVO!$I95","v":5.493746608160075},{"$f":"[6]EJECUTIVO!$J95","v":5.377538908549802},{"$f":"[7]EJECUTIVO!$I95","v":7.111526039252051},{"$f":"[7]EJECUTIVO!J95","v":2.1718401299491052},{"$f":"[8]EJECUTIVO!$I95","v":1.818746387300501},{"$f":"[8]EJECUTIVO!J95","v":2.2339783460803062}]
["     3.6 Tasa interés pasiva promedio 180 días en ME",{"$f":"[2]EJECUTIVO!$I96","v":3.54401082},{"$f":"[2]EJECUTIVO!$J96","v":3.29},{"$f":"[3]EJECUTIVO!$I96","v":4.25},{"$f":"[3]EJECUTIVO!$J96","v":4.25},{"$f":"[4]EJECUTIVO!$I96","v":3.16},{"$f":"[4]EJECUTIVO!$J96","v":3.21},{"$f":"[5]EJECUTIVO!$I96","v":3.65},{"$f":"[5]EJECUTIVO!$J96","v":3.72},{"$f":"[6]EJECUTIVO!$I96","v":4.8499999999999996},{"$f":"[6]EJECUTIVO!$J96","v":5.9390031513538801},{"$f":"[7]EJECUTIVO!$I96","v":2.2852999999999999},{"$f":"[7]EJECUTIVO!J96","v":1.6912},{"$f":"[8]EJECUTIVO!$I96","v":1.98},{"$f":"[8]EJECUTIVO!J96","v":2.17}]
["     3.7 Tasa de interés de Política Monetaria de fin de mes  o/",{"$f":"[2]EJECUTIVO!$I97","v":5.25},{"$f":"[2]EJECUTIVO!$J97","v":2.75},{"$f":"[3]EJECUTIVO!$I97","v":"n.a."},{"$f":"[3]EJECUTIVO!$J97","v":"n.a."},{"$f":"[4]EJECUTIVO!$I97","v":2.75},{"$f":"[4]EJECUTIVO!$J97","v":2.75},{"$f":"[5]EJECUTIVO!$I97","v":5.5},{"$f":"[5]EJECUTIVO!$J97","v":5.5},{"$f":"[6]EJECUTIVO!$I97","v":"n.a."},{"$f":"[6]EJECUTIVO!$J97","v":"n.a."},{"$f":"[7]EJECUTIVO!$I97","v":5.5},{"$f":"[7]EJECUTIVO!J97","v":4.5},{"$f":"[8]EJECUTIVO!$I97","v":"n.a."},{"$f":"[8]EJECUTIVO!J97","v":"n.a."}]
["     3.8 Tasa de encaje efectivo promedio (Obligaciones MN)",{"$f":"[2]EJECUTIVO!$I89","v":15.685413905823456},{"$f":"[2]EJECUTIVO!$J89","v":12.90547084946207},{"$f":"[3]EJECUTIVO!$I89","v":21.679601686290297},{"$f":"[3]EJECUTIVO!$J89","v":23.022158183051541},{"$f":"[4]EJECUTIVO!$I89","v":14.678795006636403},{"$f":"[4]EJECUTIVO!$J89","v":14.793995644320001},{"$f":"[5]EJECUTIVO!$I89","v":17.479745598320456},{"$f":"[5]EJECUTIVO!$J89","v":17.394656776703936},{"$f":"[6]EJECUTIVO!$I89","v":26.893554319351537},{"$f":"[6]EJECUTIVO!$J89","v":23.341536772149666},{"$f":"[7]EJECUTIVO!$I89","v":12.3087744302461},{"$f":"[7]EJECUTIVO!J89","v":10.807006606504},{"$f":"[8]EJECUTIVO!$I89","v":"n.a."},{"$f":"[8]EJECUTIVO!J89","v":"n.a."}]
["     3.9 Tasa de encaje efectivo promedio (Obligaciones ME)  ",{"$f":"[2]EJECUTIVO!$I90","v":16.139120939007277},{"$f":"[2]EJECUTIVO!$J90","v":16.142264612004485},{"$f":"[3]EJECUTIVO!$I90","v":21.679601686290297},{"$f":"[3]EJECUTIVO!$J90","v":23.022158183051541},{"$f":"[4]EJECUTIVO!$I90","v":15.403803377663944},{"$f":"[4]EJECUTIVO!$J90","v":15.602348827154},{"$f":"[5]EJECUTIVO!$I90","v":28.7},{"$f":"[5]EJECUTIVO!$J90","v":28.2},{"$f":"[6]EJECUTIVO!$I90","v":20.413200879499581},{"$f":"[6]EJECUTIVO!$J90","v":19.092288696640626},{"$f":"[7]EJECUTIVO!$I90","v":24.908524201834201},{"$f":"[7]EJECUTIVO!J90","v":23.327762631317299},{"$f":"[8]EJECUTIVO!$I90","v":"n.a."},{"$f":"[8]EJECUTIVO!J90","v":"n.a."}]
[]
["V. SECTOR BURSÁTIL",{"$f":"IF([2]EJECUTIVO!$J$135=[2]EJECUTIVO!$J$8,[2]EJECUTIVO!$G$136,CONCATENATE([2]EJECUTIVO!$G$136,\"\n\",[2]EJECUTIVO!$I$135,\"    \",[2]EJECUTIVO!$J$135))","v":"ENERO\n2019    2020"},null,{"$f":"IF([3]EJECUTIVO!$J$135=[3]EJECUTIVO!$J$8,[3]EJECUTIVO!$G$136,CONCATENATE([3]EJECUTIVO!$G$136,\"\n\",[3]EJECUTIVO!$I$135,\"     \",[3]EJECUTIVO!$J$135))","v":"ENERO\n2019     2020"},null,{"$f":"IF([4]EJECUTIVO!$J$135=[4]EJECUTIVO!$J$8,[4]EJECUTIVO!$G$136,CONCATENATE([4]EJECUTIVO!$G$136,\"\n\",[4]EJECUTIVO!$I$135,\"     \",[4]EJECUTIVO!$J$135))","v":"ENERO\n2019     2020"},null,{"$f":"IF([5]EJECUTIVO!$J$135=[5]EJECUTIVO!$J$8,[5]EJECUTIVO!$G$136,CONCATENATE([5]EJECUTIVO!$G$136,\"\n\",[5]EJECUTIVO!$I$135,\"     \",[5]EJECUTIVO!$J$135))","v":"ENERO\n2019     2020"},null,{"$f":"IF([6]EJECUTIVO!$J$135=[6]EJECUTIVO!$J$8,[6]EJECUTIVO!$G$136,CONCATENATE([6]EJECUTIVO!$G$136,\"\n\",[6]EJECUTIVO!$I$135,\"     \",[6]EJECUTIVO!$J$135))","v":"ABRIL\n2018     2019"},null,{"$f":"IF([7]EJECUTIVO!$J$135=[7]EJECUTIVO!$J$8,[7]EJECUTIVO!$G$136,CONCATENATE([7]EJECUTIVO!$G$136,\"\n\",[7]EJECUTIVO!$I$135,\"     \",[7]EJECUTIVO!$J$135))","v":"ENERO\n2019     2020"},null,{"$f":"IF([8]EJECUTIVO!$J$135=[8]EJECUTIVO!$J$8,[8]EJECUTIVO!$G$136,CONCATENATE([8]EJECUTIVO!$G$136,\"\n\",[8]EJECUTIVO!$I$135,\"     \",[8]EJECUTIVO!$J$135))","v":"DICIEMBRE\n2018     2019"}]
["1.  Volúmen Total Negociado, en millones de US$ "]
["1.1  Volúmen Total Negociado por tipo de emisor, acumulado",{"$f":"[2]EJECUTIVO!$I136","v":2669.7293740231962},{"$f":"[2]EJECUTIVO!$J136","v":2233.6172539061126},{"$f":"[3]EJECUTIVO!$I136","v":348.95770235000003},{"$f":"[3]EJECUTIVO!$J136","v":366.06711526999999},{"$f":"[4]EJECUTIVO!$I136","v":11610.851383251986},{"$f":"[4]EJECUTIVO!$J136","v":114723.48699944558},{"$f":"[5]EJECUTIVO!$I136","v":1080.1235448647092},{"$f":"[5]EJECUTIVO!$J136","v":11395.591586123213},{"$f":"[6]EJECUTIVO!$I136","v":2245.3224171228198},{"$f":"[6]EJECUTIVO!$J136","v":25.333950009828314},{"$f":"[7]EJECUTIVO!$I136","v":164.80196513618412},{"$f":"[7]EJECUTIVO!$J136","v":109.14583660861808},{"$f":"[8]EJECUTIVO!$I136","v":6099.7507731900005},{"$f":"[8]EJECUTIVO!$J136","v":8529.7083365500002}]
["       1.1.1  Público",{"$f":"[2]EJECUTIVO!$I137","v":2490.5905330262399},{"$f":"[2]EJECUTIVO!$J137","v":2037.5056590131558},{"$f":"[3]EJECUTIVO!$I137","v":295.86288396000003},{"$f":"[3]EJECUTIVO!$J137","v":207.15955719999999},{"$f":"[4]EJECUTIVO!$I137","v":11591.637663123649},{"$f":"[4]EJECUTIVO!$J137","v":114424.40493834988},{"$f":"[5]EJECUTIVO!$I137","v":1069.0694635629609},{"$f":"[5]EJECUTIVO!$J137","v":11125.444887560854},{"$f":"[6]EJECUTIVO!$I137","v":2228.8159840127646},{"$f":"[6]EJECUTIVO!$J137","v":18.278880140867003},{"$f":"[7]EJECUTIVO!$I137","v":139.77194161899428},{"$f":"[7]EJECUTIVO!$J137","v":92.613757315852283},{"$f":"[8]EJECUTIVO!$I137","v":1507.0105726300003},{"$f":"[8]EJECUTIVO!$J137","v":3510.8379945999995}]
["       1.1.2  Privado",{"$f":"[2]EJECUTIVO!$I138","v":179.13884099695647},{"$f":"[2]EJECUTIVO!$J138","v":196.11159489295667},{"$f":"[3]EJECUTIVO!$I138","v":53.09481839},{"$f":"[3]EJECUTIVO!$J138","v":158.90755806999999},{"$f":"[4]EJECUTIVO!$I138","v":19.213720128336711},{"$f":"[4]EJECUTIVO!$J138","v":299.0820610956772},{"$f":"[5]EJECUTIVO!$I138","v":11.054081301748404},{"$f":"[5]EJECUTIVO!$J138","v":270.14669856235776},{"$f":"[6]EJECUTIVO!$I138","v":16.506433110055198},{"$f":"[6]EJECUTIVO!$J138","v":7.0550698689613149},{"$f":"[7]EJECUTIVO!$I138","v":25.030023517189861},{"$f":"[7]EJECUTIVO!$J138","v":16.532079292765815},{"$f":"[8]EJECUTIVO!$I138","v":4592.7402005600006},{"$f":"[8]EJECUTIVO!$J138","v":5018.8703419500007}]
["2.  Relaciones Analíticas"]
["     2.1  Reportos / volúmen total negociado, en porcentajes",{"$f":"[2]EJECUTIVO!$I140","v":77.84170865697763},{"$f":"[2]EJECUTIVO!$J140","v":73.416493575294382},{"$f":"[3]EJECUTIVO!$I140","v":287.28985961925031},{"$f":"[3]EJECUTIVO!$J140","v":108.33334119372435},{"$f":"[4]EJECUTIVO!$I140","v":17.34621881127438},{"$f":"[4]EJECUTIVO!$J140","v":32.989686191420233},{"$f":"[5]EJECUTIVO!$I140","v":0},{"$f":"[5]EJECUTIVO!$J140","v":0},{"$f":"[6]EJECUTIVO!$I140","v":15.920384649782909},{"$f":"[6]EJECUTIVO!$J140","v":237.22096698308718},{"$f":"[7]EJECUTIVO!$I140","v":"n.d."},{"$f":"[7]EJECUTIVO!$J140","v":"n.d."},{"$f":"[8]EJECUTIVO!$I140","v":11.030767232813135},{"$f":"[8]EJECUTIVO!$J140","v":3.6912914485881321}]
["     2.2  Mercado Secundario / Mercado Primario, (número de veces)",{"$f":"[2]EJECUTIVO!$I141","v":3.9261083743842358},{"$f":"[2]EJECUTIVO!$J141","v":7.2508250825082508},{"$f":"[3]EJECUTIVO!$I141","v":0.18637794379706693},{"$f":"[3]EJECUTIVO!$J141","v":4.6697105997927775},{"$f":"[4]EJECUTIVO!$I141","v":0.21681190212602477},{"$f":"[4]EJECUTIVO!$J141","v":0.52923699675902736},{"$f":"[5]EJECUTIVO!$I141","v":1.6237264067802536E-2},{"$f":"[5]EJECUTIVO!$J141","v":1.8935241976305348E-2},{"$f":"[6]EJECUTIVO!$I141","v":8.4633963919526784E-3},{"$f":"[6]EJECUTIVO!$J141","v":0.12123911926002115},{"$f":"[7]EJECUTIVO!$I141","v":""},{"$f":"[7]EJECUTIVO!$J141","v":""},{"$f":"[8]EJECUTIVO!$I141","v":0.3542219579668871},{"$f":"[8]EJECUTIVO!$J141","v":0.19702512238766851}]
["     2.3  Volúmen negociado en MN / Volúmen Total, en porcentajes",{"$f":"[2]EJECUTIVO!$I142","v":45.660000000000004},{"$f":"[2]EJECUTIVO!$J142","v":49.489999999999995},{"$f":"[3]EJECUTIVO!$I142","v":100},{"$f":"[3]EJECUTIVO!$J142","v":100},{"$f":"[4]EJECUTIVO!$I142","v":96.175213244049019},{"$f":"[4]EJECUTIVO!$J142","v":88.7808432408154},{"$f":"[5]EJECUTIVO!$I142","v":100},{"$f":"[5]EJECUTIVO!$J142","v":98.549750484359294},{"$f":"[6]EJECUTIVO!$I142","v":98.201171806882741},{"$f":"[6]EJECUTIVO!$J142","v":8.4623301194830081},{"$f":"[7]EJECUTIVO!$I142","v":76.651186337360272},{"$f":"[7]EJECUTIVO!$J142","v":44.775521217098365},{"$f":"[8]EJECUTIVO!$I142","v":100},{"$f":"[8]EJECUTIVO!$J142","v":100}]
["     2.4  Rendimiento Promedio: Operaciones de Reporto de 1 semana",{"$f":"[2]EJECUTIVO!$I139","v":"n.d."},{"$f":"[2]EJECUTIVO!$J139","v":"n.d."},{"$f":"[3]EJECUTIVO!$I139","v":4.0731439036803829},{"$f":"[3]EJECUTIVO!$J139","v":2.1800000000000002},{"$f":"[4]EJECUTIVO!$I139","v":"n.a."},{"$f":"[4]EJECUTIVO!$J139","v":"n.a."},{"$f":"[5]EJECUTIVO!$I139","v":"n.a."},{"$f":"[5]EJECUTIVO!$J139","v":"n.a."},{"$f":"[6]EJECUTIVO!$I139","v":"n.a."},{"$f":"[6]EJECUTIVO!$J139","v":"n.a."},{"$f":"[7]EJECUTIVO!$I139","v":"n.a."},{"$f":"[7]EJECUTIVO!$J139","v":"n.a."},{"$f":"[8]EJECUTIVO!$I139","v":"n.d."},{"$f":"[8]EJECUTIVO!$J139","v":"n.d."}]
[]
["Notas:"]
["Notación:  n.a.=no aplica ,  n.d.=no disponible, n.o.=No hubo transacción ese mes."]
[]
["a/ En El Salvador corresponde a la nueva serie del PIB año base 2005 divulgada en marzo 2018; b/ Datos estimados de 2018 y 2019; c/ Los datos de Honduras no incluyen la maquila; d/ Las remesas provienen de la Balanza Cambiaria en Guatemala y Honduras y de la Balanza de Pagos para el resto de países;  e/ Los flujos negativos de IED que se pudieran observar en El Salvador surgen debido a que en algunos periodos hay amortizaciones netas de préstamos con el inversionista directo, mayores a lo registrado por acciones u otras aportaciones de capital, los cuales por razones metodológicas deben sumarse al valor de la IED; f/ Incluye dentro de los socios comerciales al resto de países centroamericanos, República Dominicana, Panamá, Brasil, Canadá, China, Colombia, Corea del Sur, Haití, Japón, México, Estados Unidos y Zona Euro. Valores sobre (bajo) 100 significan una depreciación (apreciación) real de la moneda. Ver nota metodológica en http://www.secmca.org/nota/propuesta-de-actualizacion-del-indice-de-tipo-de-cambio-efectivo-real-itcer/;  g/ Incluye dentro de los socios comerciales al resto de países Centroamericanos, República Dominicana y Panamá. Valores sobre (bajo) 100 significan una depreciación (apreciación) real de la moneda; h/ En Guatemala, Honduras y República Dominicana se refiere a la Deuda Pública Consolidada tal como lo recomienda la versión del 2001 del Manual de Estadísticas de Finanzas Públicas del FMI. En el resto de países se compila únicamente la deuda bruta. La Deuda Intragubernamental es la obligación contraída por una institución del gobierno con otra, por ejemplo los bonos emitidos por el Gobierno Central y que son comprados por una institución pública. Se resta de la deuda bruta para obtener la deuda consolidada; i/ Las estadísticas monetarias responden a los conceptos definidos en los cuadros armonizados que fueron aprobados por el CMCA en diciembre de 2007.  Las tasas de variación de los componentes de cada concepto están ponderadas, de modo que la suma de las tasas coincide con la tasa de variación interanual de dicho concepto;  j/ Costa Rica, Nicaragua y República Dominicana no tienen encaje remunerado;  k/ En El Salvador el agregado monetario M3 es igual a M2 debido a que no existen pasivos de las Sociedades de Depósito en otra moneda que no sea el US dólar; L/ Esta relación es cero para Nicaragua debido a que todo el cuasidinero en MN se registra como cuasidinero en ME, dado que los depósitos y valores distintos de acciones en MN poseen cláusulas de mantenimiento de valor; m/ Esta relación no aplica a El Salvador debido a que no existen depósitos en una moneda distinta al US dólar, dada la vigencia de la Ley de Integración Monetaria; n/ Esta relación es 100 en Nicaragua debido a que los créditos en MN están indexados al tipo de cambio (mantenimiento de valor). Para efectos prácticos, están dolarizados; ñ/ En El Salvador desde el 2001 las tasas en MN y ME son las mismas, debido a la Ley de Integración Monetaria que circula el US dólar como la moneda local; o/ Para Costa Rica la Tasa de Política Monetaria (TPM) corresponde a la tasa de interés que utiliza el BCCR como referencia para conducir el costo de las operaciones a un día plazo en el Mercado Integrado de Liquidez dentro de un corredor formado por las tasas de interés de sus facilidades permanentes de crédito y de depósito en este mercado; en República Dominicana corresponde a la tasa de referencia para las operaciones de expansión y contracción al plazo de un día hábil; en Honduras la Tasa de Política Monetaria corresponde a la tasa máxima permitida para las posturas de compra y la tasa mínima para las posturas de venta, en las subastas de Letras del Banco Central de Honduras dirigidas a las instituciones del sistema financiero nacional; en Guatemala corresponde a la tasa de interés de los depósitos a plazo a un día (overnight); en El Salvador no aplica por no tener política monetaria y Nicaragua no define tasa de política monetaria."]

{"sheet":"Proyecciones","index":6,"n_rows":49,"n_cols":16,"rows_kept":49,"cut":false,"hidden":false,"merged":[[48,0,48,8],[47,0,47,14],[46,0,46,14],[1,11,1,12],[3,0,3,14]]}
[]
["Consejo Monetario Centroamericano",null,null,null,null,null,null,null,null,null,{"$f":"CONCATENATE(Indice!$J$47,\",\")","v":"REM N° 239,"},{"$f":"Indice!$J$48","v":"2020-01-28"}]
["Secretaría Ejecutiva"]
["PROYECCIONES/METAS 2020-2021 DE LOS PRINCIPALES INDICADORES MACROECONÓMICOS"]
[]
["Cuadro 1",null,null,null,null,null,null,null,"Cuadro 2"]
["Inflación (IPC)\nporcentajes",2017,{"$f":"B7+1","v":2018},{"$f":" C7+1","v":2019},{"$f":"CONCATENATE(\"Proyección inicial \", D7+1)","v":"Proyección inicial 2020"},{"$f":"CONCATENATE(\"Proyección revisada \", D7+1)","v":"Proyección revisada 2020"},{"$f":"CONCATENATE(\"Proyección\n\",D7+2)","v":"Proyección\n2021"},null,"PIB real\nvariación anual",{"$f":"B7","v":2017},{"$f":"C7","v":2018},{"$f":"+D7","v":2019},{"$f":"CONCATENATE(\"Proyección inicial \", L7+1)","v":"Proyección inicial 2020"},{"$f":"CONCATENATE(\"Proyección revisada \", L7+1)","v":"Proyección revisada 2020"},{"$f":"CONCATENATE(\"Proyección\n\",L7+2)","v":"Proyección\n2021"}]
["Costa Rica",{"$f":"+'[1]Cuadros anuales'!H8","v":2.5741099382925237},{"$f":"+'[1]Cuadros anuales'!I8","v":2.0272621606389096},{"$f":"[1]METAS!H8","v":1.5224291162047265},{"$f":"CONCATENATE([1]METAS!I8,\"\")","v":"3.0 ± 1"},{"$f":"CONCATENATE([1]METAS!L8,\"\")","v":""},{"$f":"CONCATENATE([1]METAS!P8,\"\")","v":"3.0 ± 1"},null,"Costa Rica",{"$f":"+'[1]Cuadros anuales'!H33","v":3.8601984538845224},{"$f":"+'[1]Cuadros anuales'!I33","v":2.6603752939548198},{"$f":"+[1]METAS!$H33","v":2.1},{"$f":"+[1]METAS!I33","v":2.5},{"$f":"+[1]METAS!L33","v":""},{"$f":"[1]METAS!P33","v":3}]
["El Salvador ",{"$f":"+'[1]Cuadros anuales'!H9","v":2.0350428910385077},{"$f":"+'[1]Cuadros anuales'!I9","v":0.43824344870762033},{"$f":"[1]METAS!H9","v":-8.9047195013236546E-3},"n.d.",{"$f":"CONCATENATE([1]METAS!L9,\"\")","v":""},{"$f":"CONCATENATE([1]METAS!P9,\"\")","v":"n.d."},"os ","El Salvador",{"$f":"+'[1]Cuadros anuales'!H34","v":2.3079671311182492},{"$f":"+'[1]Cuadros anuales'!I34","v":2.5375983610373964},{"$f":"+[1]METAS!$H34","v":2.2999999999999998},{"$f":"+[1]METAS!I34","v":2.5},{"$f":"+[1]METAS!L34","v":""},{"$f":"[1]METAS!P34","v":"n.d."}]
["Guatemala",{"$f":"+'[1]Cuadros anuales'!H10","v":5.6768903256327441},{"$f":"+'[1]Cuadros anuales'!I10","v":2.3129150190255965},{"$f":"[1]METAS!H10","v":3.405527601545999},{"$f":"CONCATENATE([1]METAS!I10,\"\")","v":"4.0 ± 1"},{"$f":"CONCATENATE([1]METAS!L10,\"\")","v":""},{"$f":"CONCATENATE([1]METAS!P10,\"\")","v":"4.0 ± 1"},null,"Guatemala",{"$f":"+'[1]Cuadros anuales'!H35","v":3.0025252707853944},{"$f":"+'[1]Cuadros anuales'!I35","v":3.0557677198673305},{"$f":"+[1]METAS!$H35","v":3.5},{"$f":"+[1]METAS!I35","v":"3.1 – 4.1"},{"$f":"+[1]METAS!L35","v":""},{"$f":"[1]METAS!P35","v":"n.d."}]
["Honduras",{"$f":"+'[1]Cuadros anuales'!H11","v":4.7281323877068626},{"$f":"+'[1]Cuadros anuales'!I11","v":4.2244437278297298},{"$f":"[1]METAS!H11","v":4.0841584158415767},{"$f":"CONCATENATE([1]METAS!I11,\"\")","v":"4.0 ± 1"},{"$f":"CONCATENATE([1]METAS!L11,\"\")","v":""},{"$f":"CONCATENATE([1]METAS!P11,\"\")","v":"n.d."},null,"Honduras",{"$f":"+'[1]Cuadros anuales'!H36","v":4.8428101909447685},{"$f":"+'[1]Cuadros anuales'!I36","v":3.6967796493115879},{"$f":"+[1]METAS!$H36","v":"3.0 -3.4"},{"$f":"+[1]METAS!I36","v":"3.0 – 3.4"},{"$f":"+[1]METAS!L36","v":""},{"$f":"[1]METAS!P36","v":"n.d."}]
["Nicaragua",{"$f":"+'[1]Cuadros anuales'!H12","v":5.6784984336508471},{"$f":"+'[1]Cuadros anuales'!I12","v":3.8850547509849065},{"$f":"[1]METAS!H12","v":6.1297243704681925},{"$f":"CONCATENATE([1]METAS!I12,\"\")","v":"3.0-4.0"},{"$f":"CONCATENATE([1]METAS!L12,\"\")","v":""},{"$f":"CONCATENATE([1]METAS!P12,\"\")","v":"n.d."},null,"Nicaragua",{"$f":"+'[1]Cuadros anuales'!H37","v":4.6754753769721935},{"$f":"+'[1]Cuadros anuales'!I37","v":-3.8157101687892103},{"$f":"+[1]METAS!$H37","v":-4.5},{"$f":"+[1]METAS!I37","v":0.5},{"$f":"+[1]METAS!L37","v":""},{"$f":"[1]METAS!P37","v":"n.d."}]
["Rep Dominicana",{"$f":"+'[1]Cuadros anuales'!H13","v":4.2042774660486115},{"$f":"+'[1]Cuadros anuales'!I13","v":1.1705946620883312},{"$f":"[1]METAS!H13","v":3.6599999999999966},{"$f":"CONCATENATE([1]METAS!I13,\"\")","v":"4.0 ± 1"},{"$f":"CONCATENATE([1]METAS!L13,\"\")","v":""},{"$f":"CONCATENATE([1]METAS!P13,\"\")","v":"4.0 ± 1"},null,"Rep Dominicana",{"$f":"+'[1]Cuadros anuales'!H38","v":4.6667046762276065},{"$f":"+'[1]Cuadros anuales'!I38","v":6.9825275843825363},{"$f":"+[1]METAS!$H38","v":5},{"$f":"+[1]METAS!I38","v":"5.0-5.3"},{"$f":"+[1]METAS!L38","v":""},{"$f":"[1]METAS!P38","v":"n.d."}]
["Promedio región CARD",{"$f":"+'[1]Cuadros anuales'!H16","v":4.3975486939818786},{"$f":"+'[1]Cuadros anuales'!I16","v":2.2525026720760177},{"$f":"[1]METAS!H16","v":3.1137338770146012},{"$f":"[1]METAS!I16","v":"n.d."},{"$f":"[1]METAS!L16","v":""},{"$f":"[1]METAS!P16","v":"n.d."},null,"Promedio región CARD",{"$f":"+'[1]Cuadros anuales'!H41","v":3.8851920741640082},{"$f":"+'[1]Cuadros anuales'!I41","v":3.8706658386581703},{"$f":"+[1]METAS!$H41","v":"n.d"},{"$f":"+[1]METAS!I41","v":"n.d."},{"$f":"+[1]METAS!L41","v":""},{"$f":"CONCATENATE([1]METAS!P41,\"\")","v":"n.d."}]
[]
["Cuadro 3",null,null,null,null,null,null,null,"Cuadro 4"]
["Cuenta Corriente/PIB\nporcentajes",{"$f":"B7","v":2017},{"$f":"C7","v":2018},{"$f":"+CONCATENATE(\"Proyectado  \",D7)","v":"Proyectado  2019"},{"$f":"+E7","v":"Proyección inicial 2020"},{"$f":"+F7","v":"Proyección revisada 2020"},"Proyección\n2021",null,"RIN del Banco Central\nen millones de US$",{"$f":"B7","v":2017},{"$f":"C7","v":2018},{"$f":"D7","v":2019},{"$f":"E7","v":"Proyección inicial 2020"},{"$f":"F7","v":"Proyección revisada 2020"},"Proyección\n2021"]
["Costa Rica",{"$f":"+'[1]Cuadros anuales'!H154","v":-3.3534056396875505},{"$f":"+'[1]Cuadros anuales'!I154","v":-3.3003955696330038},{"$f":"+[1]METAS!H154","v":-2.4},{"$f":"[1]METAS!I154","v":-2.2000000000000002},{"$f":"[1]METAS!L154","v":""},{"$f":"[1]METAS!P154","v":-2.2000000000000002},null,"Costa Rica",{"$f":"+'[1]Cuadros anuales'!H118","v":7149.8},{"$f":"+'[1]Cuadros anuales'!I118","v":7494.9984000000004},{"$f":"+[1]METAS!H118","v":8912.2999999999993},{"$f":"+[1]METAS!I118","v":9031.6363636363621},{"$f":"[1]METAS!$L$118","v":""},{"$f":"[1]METAS!P118","v":8934.545454545454}]
["El Salvador",{"$f":"+'[1]Cuadros anuales'!H155","v":-1.8637289250483},{"$f":"+'[1]Cuadros anuales'!I155","v":-4.7655412489044604},{"$f":"+[1]METAS!H155","v":"n.d."},"n.d.",{"$f":"+[1]METAS!L155","v":""},{"$f":"[1]METAS!P155","v":"n.d."},null,"El Salvador",{"$f":"+'[1]Cuadros anuales'!H119","v":3273.16},{"$f":"+'[1]Cuadros anuales'!I119","v":3353.55},{"$f":"+[1]METAS!H119","v":3936.49},"n.d.",{"$f":"[1]METAS!L119","v":""},{"$f":"[1]METAS!P119","v":"n.d."}]
["Guatemala",{"$f":"+'[1]Cuadros anuales'!H156","v":1.1106372582054458},{"$f":"+'[1]Cuadros anuales'!I156","v":0.74426571644402484},{"$f":"+[1]METAS!H156","v":1.7630155958044038},{"$f":"[1]METAS!I156","v":1.8354022129575678},{"$f":"[1]METAS!L156","v":""},{"$f":"[1]METAS!P156","v":1.5276342149851656},null,"Guatemala",{"$f":"+'[1]Cuadros anuales'!H120","v":11769.5},{"$f":"+'[1]Cuadros anuales'!I120","v":12755.6},{"$f":"+[1]METAS!H120","v":14789},{"$f":"+[1]METAS!I120","v":15789},{"$f":"[1]METAS!L120","v":""},{"$f":"[1]METAS!P120","v":15789},{"$f":"+M20","v":15789}]
["Honduras",{"$f":"+'[1]Cuadros anuales'!H157","v":0.53364995281911798},{"$f":"+'[1]Cuadros anuales'!I157","v":-3.0858490964502208},{"$f":"+[1]METAS!H157","v":-3.8},{"$f":"[1]METAS!I157","v":-3.8},{"$f":"[1]METAS!L157","v":""},{"$f":"[1]METAS!P157","v":"n.d."},null,"Honduras",{"$f":"+'[1]Cuadros anuales'!H121","v":4785.6407855964271},{"$f":"+'[1]Cuadros anuales'!I121","v":4853.1386447195428},{"$f":"+[1]METAS!H121","v":5808.8569290984369},{"$f":"+[1]METAS!I121","v":"n.d"},{"$f":"[1]METAS!L121","v":""},{"$f":"[1]METAS!P121","v":"n.d."},{"$f":"+N21","v":""}]
["Nicaragua",{"$f":"+'[1]Cuadros anuales'!H158","v":-4.8770989932894731},{"$f":"+'[1]Cuadros anuales'!I158","v":0.63279208571236212},{"$f":"+[1]METAS!H158","v":"n.d"},{"$f":"[1]METAS!I158","v":"n.d."},{"$f":"[1]METAS!L158","v":""},{"$f":"[1]METAS!P158","v":"n.d."},null,"Nicaragua",{"$f":"+'[1]Cuadros anuales'!H122","v":2716.2},{"$f":"+'[1]Cuadros anuales'!I122","v":2038.9},{"$f":"+[1]METAS!H122","v":2208.4},{"$f":"+[1]METAS!I122","v":"n.d."},{"$f":"[1]METAS!L122","v":""},{"$f":"[1]METAS!P122","v":"n.d."}]
["Rep Dominicana",{"$f":"+'[1]Cuadros anuales'!H159","v":-0.166324018674569},{"$f":"+'[1]Cuadros anuales'!I159","v":-1.3556723183303103},{"$f":"+[1]METAS!H159","v":"n.d."},{"$f":"[1]METAS!I159","v":-1.7},{"$f":"[1]METAS!L159","v":""},{"$f":"[1]METAS!P159","v":"n.d."},null,"Rep Dominicana",{"$f":"+'[1]Cuadros anuales'!H123","v":6780.4030804810109},{"$f":"+'[1]Cuadros anuales'!I123","v":7627.1078836426968},{"$f":"+[1]METAS!H123","v":8781.4},{"$f":"+[1]METAS!I123","v":"n.d."},{"$f":"[1]METAS!L123","v":""},{"$f":"[1]METAS!P123","v":"n.d."},{"$f":"+M23","v":"n.d."}]
["Promedio región CARD",{"$f":"+'[1]Cuadros anuales'!H162","v":-0.44102752806629691},{"$f":"+'[1]Cuadros anuales'!I162","v":-1.4333477675454167},{"$f":"+[1]METAS!H162","v":"n.d"},{"$f":"[1]METAS!I162","v":"n.d"},{"$f":"[1]METAS!L162","v":0},{"$f":"[1]METAS!P162","v":"n.d."},null,"Total región CARD",{"$f":"+'[1]Cuadros anuales'!H126","v":36474.703866077441},{"$f":"+'[1]Cuadros anuales'!I126","v":38123.294928362244},{"$f":"+[1]METAS!H126","v":44436.446929098442},{"$f":"+[1]METAS!I126","v":"n.d."},{"$f":"[1]METAS!L126","v":""},{"$f":"CONCATENATE([1]METAS!P126,\"\")","v":"n.d."},{"$f":"+SUM(P18:P23)","v":15789}]
[]
["Cuadro 5",null,null,null,null,null,null,null,"Cuadro 6"]
["Exportaciones\nvariación anual",{"$f":"B7","v":2017},{"$f":"C7","v":2018},2019,"Proyección inicial 2020","Proyección revisada 2020","Proyección\n2021",null,"Importaciones\nvariación anual",{"$f":"B7","v":2017},{"$f":"C7","v":2018},2019,"Proyección inicial 2020","Proyección revisada 2020","Proyección\n2021"]
["Costa Rica",{"$f":"+'[1]Cuadros anuales'!H70","v":6.6029280876826117},{"$f":"+'[1]Cuadros anuales'!I70","v":5.3955236875138572},{"$f":"[1]METAS!H70","v":2.6650267419203519},{"$f":"[1]METAS!I70","v":3.8},{"$f":"([1]METAS!L70)","v":""},{"$f":"[1]METAS!$P70","v":3.3},{"$f":"+E28","v":3.8},"Costa Rica",{"$f":"+'[1]Cuadros anuales'!H94","v":4.0542855298437326},{"$f":"+'[1]Cuadros anuales'!I94","v":4.0699184080780864},{"$f":"[1]METAS!H94","v":-2.5136593601189436},{"$f":"[1]METAS!I94","v":3.6},{"$f":"[1]METAS!$L94","v":""},{"$f":"[1]METAS!$P94","v":3.8}]
["El Salvador ",{"$f":"+'[1]Cuadros anuales'!H71","v":6.2703061723384153},{"$f":"+'[1]Cuadros anuales'!I71","v":2.5102386975022482},{"$f":"[1]METAS!H71","v":0.65559055651525999},"n.d.",{"$f":"([1]METAS!L71)","v":""},{"$f":"[1]METAS!$P71","v":"n.d."},{"$f":"+E29","v":"n.d."},"El Salvador",{"$f":"+'[1]Cuadros anuales'!H95","v":7.5893134292510114},{"$f":"+'[1]Cuadros anuales'!I95","v":11.902568225890354},{"$f":"[1]METAS!H95","v":1.5873498915449189},"n.d.",{"$f":"[1]METAS!$L95","v":""},{"$f":"[1]METAS!$P95","v":"n.d."}]
["Guatemala",{"$f":"+'[1]Cuadros anuales'!H72","v":5.1017771525365374},{"$f":"+'[1]Cuadros anuales'!I72","v":-0.11837121212121213},{"$f":"[1]METAS!H72","v":1.9554396776487155},{"$f":"[1]METAS!I72","v":"1.0 - 4.0"},{"$f":"([1]METAS!L72)","v":""},{"$f":"[1]METAS!$P72","v":"1.5 - 4.5"},11.9,"Guatemala",{"$f":"+'[1]Cuadros anuales'!H96","v":8.1598324981767796},{"$f":"+'[1]Cuadros anuales'!I96","v":6.9830670683298752},{"$f":"[1]METAS!H96","v":1.0521286544951813},{"$f":"[1]METAS!I96","v":"1.5 - 4.5"},{"$f":"[1]METAS!$L96","v":""},{"$f":"[1]METAS!$P96","v":"2.0 - 5.0"}]
["Honduras",{"$f":"+'[1]Cuadros anuales'!H73","v":16.320992886442447},{"$f":"+'[1]Cuadros anuales'!I73","v":-5.9946205330224496},{"$f":"[1]METAS!H73","v":-2.6308615899792587},{"$f":"[1]METAS!I73","v":3.3},{"$f":"([1]METAS!L73)","v":""},{"$f":"[1]METAS!$P73","v":"n.d."},13.6,"Honduras",{"$f":"+'[1]Cuadros anuales'!H97","v":8.6419308830441359},{"$f":"+'[1]Cuadros anuales'!I97","v":8.4932962939956784},{"$f":"[1]METAS!H97","v":-4.245494846244191},{"$f":"[1]METAS!I97","v":4.4000000000000004},{"$f":"[1]METAS!$L97","v":""},{"$f":"[1]METAS!$P97","v":"n.d."}]
["Nicaragua",{"$f":"+'[1]Cuadros anuales'!H74","v":7.1747396263845227},{"$f":"+'[1]Cuadros anuales'!I74","v":3.8716643529230508},{"$f":"[1]METAS!H74","v":"n.d."},{"$f":"[1]METAS!I74","v":"n.d."},{"$f":"([1]METAS!L74)","v":""},{"$f":"[1]METAS!$P74","v":"n.d."},8.1999999999999993,"Nicaragua",{"$f":"+'[1]Cuadros anuales'!H98","v":3.2110559980781725},{"$f":"+'[1]Cuadros anuales'!I98","v":-9.5318114836741632},{"$f":"[1]METAS!H98","v":"n.d."},{"$f":"[1]METAS!I98","v":"n.d."},{"$f":"[1]METAS!$L98","v":""},{"$f":"[1]METAS!$P98","v":"n.d."}]
["Rep Dominicana",{"$f":"+'[1]Cuadros anuales'!H75","v":2.9980893532257595},{"$f":"+'[1]Cuadros anuales'!I75","v":7.6273360566771435},{"$f":"[1]METAS!H75","v":3.6},{"$f":"[1]METAS!I75","v":4.3},{"$f":"([1]METAS!L75)","v":""},{"$f":"[1]METAS!$P75","v":"n.d."},47,"Rep Dominicana",{"$f":"+'[1]Cuadros anuales'!H99","v":1.7340475670456497},{"$f":"+'[1]Cuadros anuales'!I99","v":14.172641141675554},{"$f":"[1]METAS!H99","v":2.4},{"$f":"[1]METAS!I99","v":"n.d."},{"$f":"[1]METAS!$L99","v":""},{"$f":"[1]METAS!$P99","v":"n.d."}]
["Promedio región CARD",{"$f":"+'[1]Cuadros anuales'!H78","v":5.8654443277019865},{"$f":"+'[1]Cuadros anuales'!I78","v":3.3342745073067293},{"$f":"[1]METAS!H78","v":"n.d"},{"$f":"[1]METAS!I78","v":"n.d."},{"$f":"[1]METAS!L78","v":0},{"$f":"[1]METAS!$P78","v":"n.d."},null,"Promedio región CARD",{"$f":"+'[1]Cuadros anuales'!H102","v":5.0684590343262528},{"$f":"+'[1]Cuadros anuales'!I102","v":8.4593059386520792},{"$f":"[1]METAS!H102","v":"n.d"},{"$f":"[1]METAS!I102","v":"n.d."},{"$f":"[1]METAS!$L102","v":0},{"$f":"[1]METAS!$P102","v":"n.d."}]
[]
["Cuadro 7",null,null,null,null,null,null,null,"Cuadro 8"]
["Remesas (Ingreso)\nen millones de US$",{"$f":"B7","v":2017},{"$f":"C7","v":2018},2019,"Proyección inicial 2020","Proyección revisada 2020","Proyección\n2021",null,"Saldo Operacional del Gobierno Central/PIB",{"$f":"B7","v":2017},{"$f":"C7","v":2018},2019,"Proyección inicial 2020","Proyección revisada 2020","Proyección\n2021"]
["Costa Rica",{"$f":"+'[1]Cuadros anuales'!H130","v":530.88621089999992},{"$f":"+'[1]Cuadros anuales'!I130","v":499.03832125999998},{"$f":"+[1]METAS!H130","v":"n.d."},{"$f":"+[1]METAS!I130","v":"n.d"},{"$f":"[1]METAS!L130","v":""},{"$f":"[1]METAS!P130","v":"n.d."},{"$f":"+E38","v":"n.d"},"Costa Rica",{"$f":"+'[1]Cuadros anuales'!H191","v":-6.0829310907103746},{"$f":"+'[1]Cuadros anuales'!I191","v":-5.8346653577284888},{"$f":"+[1]METAS!H179","v":-6.938883323040244},{"$f":"+[1]METAS!I179","v":-5.9},{"$f":"[1]METAS!L179","v":""},{"$f":"[1]METAS!P179","v":-5.7},{"$f":"+N38","v":""}]
["El Salvador",{"$f":"+'[1]Cuadros anuales'!H131","v":4985.37},{"$f":"+'[1]Cuadros anuales'!I131","v":5390.7799999999988},{"$f":"+[1]METAS!H131","v":5650.21},"n.d.",{"$f":"[1]METAS!L131","v":""},{"$f":"[1]METAS!P131","v":"n.d."},{"$f":"+E39","v":"n.d."},"El Salvador",{"$f":"+'[1]Cuadros anuales'!H192","v":-6.6391286574876474E-2},{"$f":"+'[1]Cuadros anuales'!I192","v":-1.0530779696012027},{"$f":"+[1]METAS!H180","v":-1.6237311109621611},"n.d.",{"$f":"[1]METAS!L180","v":""},{"$f":"[1]METAS!P180","v":"n.d."},{"$f":"+M39","v":"n.d."}]
["Guatemala",{"$f":"+'[1]Cuadros anuales'!H132","v":8192.2160999999996},{"$f":"+'[1]Cuadros anuales'!I132","v":9287.7699999999986},{"$f":"+[1]METAS!H132","v":10508.3074},{"$f":"+[1]METAS!I132","v":11664.213},{"$f":"[1]METAS!L132","v":""},{"$f":"[1]METAS!P132","v":12655.671104999999},{"$f":"+E40","v":11664.213},"Guatemala",{"$f":"+'[1]Cuadros anuales'!H193","v":-1.3988147672078421},{"$f":"+'[1]Cuadros anuales'!I193","v":-1.8543901660171243},{"$f":"+[1]METAS!H181","v":-2.2836085735840692},{"$f":"+[1]METAS!I181","v":2.0074799411149282},{"$f":"[1]METAS!L181","v":""},{"$f":"[1]METAS!P181","v":"n.d."},{"$f":"+M40","v":2.0074799411149282}]
["Honduras",{"$f":"+'[1]Cuadros anuales'!H133","v":4438.3208622900011},{"$f":"+'[1]Cuadros anuales'!I133","v":4884.2484150900009},{"$f":"+[1]METAS!H133","v":5523.5709101800012},{"$f":"+[1]METAS!I133","v":5429},{"$f":"[1]METAS!L133","v":""},{"$f":"[1]METAS!P133","v":"n.d."},{"$f":"+F41","v":""},"Honduras",{"$f":"+'[1]Cuadros anuales'!H194","v":-2.7136692062822343},{"$f":"+'[1]Cuadros anuales'!I194","v":-2.0931417746087946},{"$f":"+[1]METAS!H182","v":-2.4},{"$f":"+[1]METAS!I182","v":-2.2999999999999998},{"$f":"[1]METAS!L182","v":""},{"$f":"[1]METAS!P182","v":"n.d."},-3.7]
["Nicaragua",{"$f":"+'[1]Cuadros anuales'!H134","v":1390.8},{"$f":"+'[1]Cuadros anuales'!I134","v":1501.2000000000003},{"$f":"+[1]METAS!H134","v":"n.d."},{"$f":"+[1]METAS!I134","v":"n.d."},{"$f":"[1]METAS!L134","v":""},{"$f":"[1]METAS!P134","v":"n.d."},null,"Nicaragua",{"$f":"+'[1]Cuadros anuales'!H195","v":-0.5584632979961871},{"$f":"+'[1]Cuadros anuales'!I195","v":-1.9255469949219031},{"$f":"+[1]METAS!H183","v":"n.d."},{"$f":"+[1]METAS!I183","v":"n.d."},{"$f":"[1]METAS!L183","v":""},{"$f":"[1]METAS!P183","v":"n.d."},{"$f":"+M42","v":"n.d."}]
["Rep Dominicana",{"$f":"+'[1]Cuadros anuales'!H135","v":5911.7576805587878},{"$f":"+'[1]Cuadros anuales'!I135","v":6494.0636542460343},{"$f":"+[1]METAS!H135","v":"n.d."},{"$f":"+[1]METAS!I135","v":"n.d."},{"$f":"[1]METAS!L135","v":""},{"$f":"[1]METAS!P135","v":"n.d."},null,"Rep Dominicana",{"$f":"+'[1]Cuadros anuales'!H196","v":-2.8606833470651423},{"$f":"+'[1]Cuadros anuales'!I196","v":-1.8892997187198828},{"$f":"+[1]METAS!H184","v":"n.d."},{"$f":"+[1]METAS!I184","v":"n.d."},{"$f":"[1]METAS!L184","v":""},{"$f":"[1]METAS!P184","v":"n.d."},{"$f":"+M43","v":"n.d."}]
["Total región CARD",{"$f":"+'[1]Cuadros anuales'!H138","v":25449.350853748791},{"$f":"+'[1]Cuadros anuales'!I138","v":28057.100390596035},{"$f":"+[1]METAS!H138","v":"n.d."},{"$f":"+[1]METAS!I138","v":"n.d."},{"$f":"[1]METAS!L138","v":""},{"$f":"CONCATENATE([1]METAS!P138,\"\")","v":"n.d."},null,"Promedio región CARD",{"$f":"+'[1]Cuadros anuales'!H199","v":-2.5378103148284499},{"$f":"+'[1]Cuadros anuales'!I199","v":-2.4325626889934768},{"$f":"+[1]METAS!H187","v":"n.d"},{"$f":"+[1]METAS!I187","v":"n.d"},{"$f":"[1]METAS!L187","v":0},{"$f":"[1]METAS!P187","v":"n.d."}]
[null,null,null,null,null,null,null,null,"Incluye donaciones"]
["Fuente: Bancos Centrales Centroamericanos y de República Dominicana."]
["NOTAS:"]
["La región CARD incluye a los países de Centroamérica y República Dominicana"]
["Los promedios regionales están ponderados conforme al tamaño de cada economía. "]

{"sheet":"Seguimiento proyecciones","index":7,"n_rows":93,"n_cols":14,"rows_kept":93,"cut":false,"hidden":false,"merged":[[92,0,93,7],[27,19,27,25],[28,19,28,25],[27,0,28,6],[5,8,5,16],[6,8,6,16],[28,8,28,16],[24,8,24,16],[71,0,72,6],[49,0,50,6],[49,8,50,16],[1,13,1,14],[48,0,48,7],[48,8,48,14],[24,0,24,6],[25,8,25,14],[4,0,4,15],[5,0,6,6],[3,0,3,16],[1,15,2,16],[27,8,27,16]]}
[]
["CONSEJO MONETARIO CENTROAMERICANO",null,null,null,null,null,null,null,null,null,null,null,{"$f":"CONCATENATE(Indice!$J$47,\",\")","v":"REM N° 239,"},{"$f":"Indice!$J$48","v":"2020-01-28"}]
["SECRETARIA EJECUTIVA"]
["SEGUIMIENTO DE LAS PROYECCIONES EN 2019-2020"]
[]
["Inflación Acumulada en 2020",null,null,null,null,null,null,null,"Resultado operacional del Gobierno Central 2019"]
[null,null,null,null,null,null,null,null,"(incluye las donaciones)"]
[]
[]
[]
[]
[]
[]
[]
[]
[]
[]
[]
[]
[]
[]
[]
[]
[]
["Cuando se especifica un rango en las metas de inflación, se toma el límite superior.\n",null,null,null,null,null,null,null,"El saldo positivo de República Dominicana se debe a que en enero del 2015 se incluye dentro de las donaciones la suma de RD$ 93,157.2 millones, correspondiente al descuento generado por la transacción de deuda realizada con Petrocaribe."]
[]
[]
["Saldo en la Cuenta Corriente 2019",null,null,null,null,null,null,null,"Reservas Internacionales Netas"]
[null,null,null,null,null,null,null,null,"del Banco Central  2020"]
[]
[]
[]
[]
[]
[]
[]
[]
[]
[]
[]
[]
[]
[]
[]
[]
[]
[]
[]
[null,null,null,null,null,null,null,null,"\n"]
["Exportaciones Totales con Maquila 2020",null,null,null,null,null,null,null,"Importaciones Totales con Maquila 2020"]
[]
[]
[]
[]
[]
[]
[]
[]
[]
[]
[]
[]
[]
[]
[]
[]
[]
[]
[]
[]
[]
["Ingresos por Remesas Familiares 2020"]
[]
[]
[]
[]
[]
[]
[]
[]
[]
[]
[]
[]
[]
[]
[]
[]
[]
[]
[]
[]
["Los datos de Costa Rica al mes de junio no están disponibles. Anualmente Costa Rica recibe aproximadamente 500 millones de US dólares por concepto de remesas."]

{"sheet":"Gráficos-pais","index":8,"n_rows":161,"n_cols":19,"rows_kept":161,"cut":false,"hidden":false,"merged":[[182,9,182,16],[181,9,181,16],[80,0,83,7],[2,15,2,16],[9,0,10,7],[84,0,84,7],[57,0,58,7],[57,9,58,16],[33,9,33,16],[34,9,34,16],[33,0,33,7],[34,0,34,7],[80,9,81,16],[85,0,85,7],[85,9,85,16],[84,9,84,16],[9,18,12,21],[9,9,9,16],[10,9,10,16],[1,18,2,21],[4,0,5,16],[82,9,82,16],[106,0,106,7],[106,9,106,16],[136,9,136,16],[108,0,109,7],[130,0,130,7],[108,9,109,16],[156,0,156,7],[131,0,131,7],[131,9,131,16],[159,9,160,17],[159,0,159,7],[160,0,160,7],[133,0,134,7],[133,9,134,16],[157,9,157,16],[158,9,158,16]]}
[]
[null,null,null,null,null,null,null,null,null,null,null,null,null,null,null,null,null,null,"Seleccione el país"]
["CONSEJO MONETARIO CENTROAMERICANO",null,null,null,null,null,null,null,null,null,null,null,null,null,{"$f":"CONCATENATE(Indice!$J$47,\",\")","v":"REM N° 239,"},{"$f":"Indice!$J$48","v":"2020-01-28"}]
["SECRETARIA EJECUTIVA"]
["EVOLUCIÓN POR PAÍS DE INDICADORES MACROECONÓMICOS SELECCIONADOS "]
[]
[]
[]
[]
["Tasa de Inflación Interanual ",null,null,null,null,null,null,null,null,"IMAE",null,null,null,null,null,null,null,null,"Nota: Se le recuerda habilitar las macros para hacer uso de las herramientas dinámicas presentes en este informe. \n"]
[null,null,null,null,null,null,null,null,null,"Variación Interanual de la Tendencia-Ciclo"]
[]
[]
[]
[]
[]
[]
[]
[]
[]
[]
[]
[]
[]
[]
[]
[]
[]
[]
[]
[]
[]
[]
["ITCER bilateral USA\naño base 2000",null,null,null,null,null,null,null,null,"Tipo de Cambio Nominal\nTasa de variación interanual"]
["2000=100",null,null,null,null,null,null,null,null,"Tasa de Variación Interanual"]
[]
[]
[]
[]
[]
[]
[]
[]
[]
[]
[]
[]
[]
[]
[]
[]
[]
[]
[]
[]
[]
[]
["RIN Banco Central",null,null,null,null,null,null,null,null,"RIN Banco Central/ Base Monetaria Amplia"]
[]
[]
[]
[]
[]
[]
[]
[]
[]
[]
[]
[]
[]
[]
[]
[]
[]
[]
[]
[]
[]
[]
["En Panamá, el Banco Nacional de Panamá (BNP) funciona como receptor y gestor de las RIN que corresponden a los activos externos de reserva menos los pasivos de corto plazo frente a no residentes. Los primeros se componen de: billetes y depósitos en moneda extranjera e inversiones en títulos (incluidos los títulos de deuda y participaciones de capital); los pasivos se componen de los depósitos transferibles de no residentes en moneda extranjera.\nEn Costa Rica se dió un aumento en las RIN en marzo de 2018 de US$ 1.000 millones provenientes del FLAR.",null,null,null,null,null,null,null,null,"República Dominicana presenta un incremento de US$1,246 millones en febrero de 2018 debido a la colocación de bonos soberanos en el mercado global de capitales.\nEn El Salvador al cierre de febrero de 2017 las Reservas Internacionales Netas (RIN) alcanzaron un nivel de US$3,510.9 millones, un incremento de US$607 millones respecto al mes de enero de 2017, explicado por la colocación de bonos del Gobierno de El Salvador ($601 millones). \nLa relación RIN a Base Monetaria es alta en Panamá (escala derecha) debido a que la base monetaria es pequeña; esto es consecuencia de que no existe encaje legal debido a la ausencia de Banco Central."]
[]
[]
[]
["Exportaciones totales FOB, del mes                                     ",null,null,null,null,null,null,null,null,"Importaciones totales CIF, del mes"]
["Promedio móvil de los últimos 12 meses",null,null,null,null,null,null,null,null,"Promedio móvil de los últimos 12 meses"]
[]
[]
[]
[]
[]
[]
[]
[]
[]
[]
[]
[]
[]
[]
[]
[]
[]
[]
[]
[]
["Las cifras de Honduras no incluyen la maquila.",null,null,null,null,null,null,null,null,"Las cifras de Honduras no incluyen la maquila."]
[]
["Tasa de interés pasiva real en MN\na 180 días",null,null,null,null,null,null,null,null,"Tasa de interés activa real en MN\nde corto plazo"]
[]
[]
[]
[]
[]
[]
[]
[]
[]
[]
[]
[]
[]
[]
[]
[]
[]
[]
[]
[]
[]
[]
["La tasa real se obtiene deflatando con la tasa de variación interanual del IPC al mes indicado.",null,null,null,null,null,null,null,null,"La tasa real se obtiene deflatando con la tasa de variación interanual del IPC al mes indicado."]
[]
["Tasa de interés pasiva en ME\na 180 días",null,null,null,null,null,null,null,null,"Tasa de interés activa en ME\nde corto plazo"]
[]
[]
[]
[]
[]
[]
[]
[]
[]
[]
[]
[]
[]
[]
[]
[]
[]
[]
[]
[]
[]
[]
[]
[null,null,null,null,null,null,null,null,null,"En Honduras, a partir de enero 2017, la CNBS implementó las Normas Internacionales de Información Financiera (NIIF) en los balances contables de los Bancos Comerciales, Sociedades Financieras y Banhprovi, permitiendo cambios en el cálculo de las tasas de interés activas y pasivas."]
[null,null,null,null,null,null,null,null,null,"En Costa Rica a partir de enero 2019 cambia la metodología de cálculo de tasas de interés para utilizar tasas ponderadas por el monto de la operación."]
["Tasa de interés lider de Política Monetaria",null,null,null,null,null,null,null,null,"Créditos de las OSD al sector Privado, Variación Interanual "]
["evolución mensual"]

{"sheet":"Nota Técnica","index":9,"n_rows":58,"n_cols":13,"rows_kept":58,"cut":false,"hidden":false,"merged":[[8,3,8,12],[0,10,0,14],[1,10,1,14],[31,3,31,5],[31,7,31,9],[31,11,31,13],[30,1,30,14],[4,3,5,12],[6,3,6,12],[7,3,7,12],[11,1,11,14],[22,4,22,14],[23,4,23,14],[24,4,24,14],[25,4,25,14],[21,4,21,14],[50,9,50,10],[43,1,44,14],[50,11,50,12],[45,1,48,14],[19,1,19,14],[20,7,20,14],[26,4,26,14],[27,4,27,14],[27,1,27,3],[28,4,28,14],[50,5,50,6],[50,7,50,8]]}
[null,null,null,null,null,null,null,null,null,null,"Consejo Monetario Centroamericano"]
[null,null,null,null,null,null,null,null,null,null,"Secretaría Ejecutiva"]
[]
[]
[null,null,null,"REPORTE EJECUTIVO MENSUAL"]
[]
[null,null,null,"DE INDICADORES MACROECONÓMICOS"]
[null,null,null,"DE CENTROAMÉRICA, REPÚBLICA DOMINICANA y"]
[null,null,null,"PANAMÁ"]
[]
[]
[null,"Glosario de Términos"]
[null,"PIB",null,"Producto Interno Bruto"]
[null,"IMAE",null,"Índice Mensual de Actividad Económica"]
[null,"IPC",null,"Índice de Precios al Consumidor"]
[null,"ISI",null,"Índice Subyacente de Inflación. En algunos países se utiliza el Indice del Nucleo Inflacionario (INI)"]
[null,"Región CARD",null,"La región incluye los siguientes países: Costa Rica, El Salvador, Guatemala, Honduras, Nicaragua y República Dominicana"]
[null,"Región CAPARD",null,"La región incluye los siguientes países: Costa Rica, El Salvador, Guatemala, Honduras, Nicaragua, Panamá y República Dominicana"]
[]
[null,"Nota Técnica"]
[]
[null,"Variación Interanual",null,null,"Variación porcentual del nivel del mes respecto al mismo mes del año anterior."]
[null,"Variación acumulada",null,null,"Variación porcentual del nivel del mes vigente respecto al mes de diciembre del año anterior."]
[null,"Aceleración",null,null,"Diferencia en valor absoluto entre la variación (interanual) de un mes respecto al mes anterior. Su interpretación se realiza en puntos porcentuales."]
[null,"Metas de Inflación",null,null,"Esquema donde el Banco Central hace explícita su meta de inflación puntual o rango, y los instrumentos de política monetaria se direccionan en la obtención de dicha meta."]
[null,"Inflación Subyacente",null,null,"El Índice subyacente de Inflación (ISI) se define como el componente del cambio total de precios común a todos los bienes y servicios, cuya persistencia se mantendría en el mediano y largo plazo. El ISI constituye una medida alternativa del IPC, al que se le han eliminado algunos de los bienes y servicios cuyos precios son, por lo general, los más volátiles.  El algunos países se denomina índice del nucleo inflacionario."]
[null,"Tendencia-Ciclo",null,null,"Serie de tiempo que excluye los componentes de estacionalidad e irregularidad."]
[null,"RIN/meses de importación promedio",null,null,"Tanto en el cuadro regional como en el compartivo por país se calcula la relación de RIN a importaciones promedio. En ambos casos el denominador corresponde al promedio de importaciones observadas de enero al mes indicado.  En el cálculo regional se suman las importaciones totales y las RIN de todos los países de la región."]
[]
[]
[null,"Periodos base de los principales indicadores del sector real"]
[null,null,null,"Año Base del Indicador Mensual de Actividad Económica IMAE",null,null,null,"Año Base del Producto Interno Bruto en términos constantes ",null,null,null,"Periodo base de los Índices de los Precios al Consumidor "]
[null,"País"]
[null,"Costa Rica",null,null,2012,null,null,null,2012,null,null,null,"Junio 2015"]
[null,"El Salvador",null,null,1990,null,null,null,1990,null,null,null,"Diciembre 2009"]
[null,"Guatemala",null,null,2001,null,null,null,2001,null,null,null,"Diciembre 2010"]
[null,"Honduras",null,null,2000,null,null,null,2000,null,null,null,"Diciembre 1999"]
[null,"Nicaragua",null,null,2006,null,null,null,2006,null,null,null,2006]
[null,"República Dominicana",null,null,2007,null,null,null,2007,null,null,null,"Diciembre 2010"]
[null,"Panamá",null,null,1996,null,null,null,2007,null,null,null,2013]
[]
[]
[]
[null,"Nota Técnica Ponderadores"]
[]
[null,"Para los cálculos regionales se utiliza como ponderador el peso de cada economía con respecto a la región. Para esto se utiliza el Ingreso Nacional Bruto (INB) por Paridad del Poder Adquisitivo (PPA), publicado anualmente por el Banco Mundial en el cuadro 1.1 “Size of the economy” del “World development indicators” (http://datos.bancomundial.org/indicador/NY.GNP.MKTP.PP.CD). Los pesos son actualizados anualmente basados en los últimos resultados disponibles.  Para 2015 y 2016 los ponderadores que se utilizan corresponden a las cifras del año 2015 y que vienen dados en la siguiente tabla:"]
[]
[]
[]
[]
[null,null,null,"País",null,"INB PPA \n(en miles de millones de US$ )",null,"Ponderador CA",null,"Ponderador Región CARD",null,"Ponderador Región CAPARD"]
[null,null,null,"Costa Rica",null,{"$f":"[1]Ponderadores!$C$28","v":72.341900700904489},null,{"$f":"[1]Ponderadores!$M$28","v":0.23266110616449268},null,{"$f":"[1]Ponderadores!$S$28","v":0.15894786971143815},null,{"$f":"[1]Ponderadores!Z$28","v":0.13530666515968703}]
[null,null,null,"El Salvador",null,{"$f":"[1]Ponderadores!$D$28","v":44.945203952487645},null,{"$f":"[1]Ponderadores!$N$28","v":0.14454971139905037},null,{"$f":"[1]Ponderadores!$T$28","v":9.8752512068081472E-2},null,{"$f":"[1]Ponderadores!AA$28","v":8.4064499312457963E-2}]
[null,null,null,"Guatemala",null,{"$f":"[1]Ponderadores!$E$28","v":123.80571566350457},null,{"$f":"[1]Ponderadores!$O$28","v":0.39817553142334683},null,{"$f":"[1]Ponderadores!$U$28","v":0.27202291579502336},null,{"$f":"[1]Ponderadores!AB$28","v":0.23156342799723792}]
[null,null,null,"Honduras",null,{"$f":"[1]Ponderadores!$F$28","v":38.507393808575934},null,{"$f":"[1]Ponderadores!$P$28","v":0.12384486379555405},null,{"$f":"[1]Ponderadores!$V$28","v":8.460751175613003E-2},null,{"$f":"[1]Ponderadores!AC$28","v":7.2023363911477165E-2}]
[null,null,null,"Nicaragua",null,{"$f":"[1]Ponderadores!$G$28","v":31.332291498214939},null,{"$f":"[1]Ponderadores!$Q$28","v":0.1007687872175561},null,{"$f":"[1]Ponderadores!$W$28","v":6.8842550977607955E-2},null,{"$f":"[1]Ponderadores!AD$28","v":5.8603213813286925E-2}]
[null,null,null,"Rep. Dominicana",null,{"$f":"[1]Ponderadores!$H$28","v":144.19722233200986},null,null,null,{"$f":"[1]Ponderadores!$X$28","v":0.31682663969171904},null,{"$f":"[1]Ponderadores!AE$28","v":0.26970324376326843}]
[null,null,null,"Panamá",null,{"$f":"[1]Ponderadores!$I$28","v":79.521692323766217},null,null,null,null,null,{"$f":"[1]Ponderadores!AF$28","v":0.14873558604258458}]

{"sheet":"Gráfico Seguimiento","index":10,"n_rows":10,"n_cols":17,"rows_kept":10,"cut":false,"hidden":true,"merged":[[9,16,14,16],[9,8,16,8],[9,10,14,10],[9,12,14,12],[9,2,14,2],[9,14,14,14],[0,11,0,12],[0,13,0,14],[0,1,0,2],[0,3,0,4],[0,5,0,6],[0,7,0,8],[0,9,0,10]]}
[null,"INFLACIÓN",null,"RIN",null,"RESULTADO OPERACIONAL GC",null,"CUENTA CORRIENTE",null,"Exportaciones",null,"Importaciones ",null,"Remesas acumuladas",null,"Remesas sin CR a",{"$f":"+[1]EJECUTIVO!$G$72","v":"JUNIO"}]
[null,{"$f":"[1]METAS!O7","v":"Proy.dic/20"},{"$f":"[1]METAS!S19","v":"ENE.20"},{"$f":"[1]METAS!O117","v":"Proy.dic/20"},{"$f":"+[1]METAS!$S117","v":"ENE.20"},"Proy.dic/19",{"$f":"+[1]METAS!$S$166","v":"NOV.19"},"Proy.dic/19",{"$f":"[1]METAS!S141","v":"III TRIM19"},{"$f":"+[1]METAS!$M57","v":"Proy.dic/20"},{"$f":"+[1]METAS!$S57","v":"ENE.20"},{"$f":"+[1]METAS!$M81","v":"Proy.dic/20"},{"$f":"+[1]METAS!$S81","v":"ENE.20"},{"$f":"+[1]METAS!$M129","v":"Proy.dic/20"},{"$f":"+[1]METAS!$S129","v":"ENE.20"},{"$f":"+[1]METAS!$M129","v":"Proy.dic/20"},{"$f":"+[1]METAS!$V129","v":"ENE.20"}]
["CR",{"$f":"+[1]METAS!$O8","v":4},{"$f":"[1]METAS!S20","v":0.11077781275743437},{"$f":"+[1]METAS!$M118","v":9031.6363636363621},{"$f":"+[1]METAS!$S118","v":8211},{"$f":"+'[2]HIST METAS'!$AF$39","v":-3821.9999999999995},{"$f":"+[1]METAS!$S167","v":-3769.5953468643634},{"$f":"+'[2]HIST METAS'!$AF$23","v":-1456},{"$f":"[1]METAS!S142","v":-974.03679508324149},{"$f":"+[1]METAS!$M58","v":12243},null,{"$f":"+[1]METAS!$M82","v":16948},null,null,null,{"$f":"+[1]METAS!$M130","v":"n.d"},{"$f":"+[1]METAS!$V130","v":0}]
["ES",null,{"$f":"[1]METAS!S21","v":-0.12467717517142818},null,{"$f":"+[1]METAS!$S119","v":3948},null,{"$f":"+[1]METAS!$S168","v":-276.88000000000108},null,{"$f":"[1]METAS!S143","v":-469.81063632612199},null,{"$f":"+[1]METAS!$S59","v":509.84},null,{"$f":"+[1]METAS!$S83","v":1001.54},null,{"$f":"+[1]METAS!$S131","v":424.53},{"$f":"+[1]METAS!$M131","v":"n.d."},{"$f":"+[1]METAS!$V131","v":424.53}]
["GT",{"$f":"+[1]METAS!$O10","v":5},{"$f":"[1]METAS!S22","v":-0.23977433004231941},{"$f":"+[1]METAS!$M120","v":15789},{"$f":"+[1]METAS!$S120","v":14895},{"$f":"+'[4]HIST METAS'!$AF$39","v":-1671.9440346586043},{"$f":"+[1]METAS!$S169","v":-1182.149882547694},{"$f":"+'[4]HIST METAS'!$AF$23","v":1337.6912766380265},{"$f":"[1]METAS!S144","v":1554.3786600000008},{"$f":"+[1]METAS!$M60","v":11463.497499999999},null,{"$f":"+[1]METAS!$M84","v":20477.842000000001},null,{"$f":"+[1]METAS!$M132","v":11664.213},{"$f":"+[1]METAS!$S132","v":834.61040000000003},{"$f":"+[1]METAS!$M132","v":11664.213},{"$f":"+[1]METAS!$V132","v":834.61040000000003}]
["HO",{"$f":"+[1]METAS!$O11","v":5},{"$f":"[1]METAS!S23","v":0.23781212841855748},null,{"$f":"+[1]METAS!$S121","v":5764},null,{"$f":"+[1]METAS!$S170","v":-464.56529280116183},{"$f":"+'[5]HIST METAS'!$AF$23","v":-942},{"$f":"[1]METAS!S145","v":384.91524524978956},null,null,null,null,{"$f":"+[1]METAS!$M133","v":5429},{"$f":"+[1]METAS!$S133","v":420.93406160000006},{"$f":"+[1]METAS!$M133","v":5429},{"$f":"+[1]METAS!$V133","v":420.93406160000006}]
["NI",4,null,null,null,null,null,null,null,null,null,null,null,null,null,{"$f":"+[1]METAS!$M134","v":"n.d."},{"$f":"+[1]METAS!$V134","v":0}]
["RD",{"$f":"+[1]METAS!$O13","v":5},{"$f":"[1]METAS!S25","v":0.32531649555906927},null,{"$f":"+[1]METAS!$S123","v":10408},null,{"$f":"+[1]METAS!$S172","v":-1484.1301717484378},{"$f":"+'[7]HIST METAS'!$AF$23","v":-1397.9101141895167},{"$f":"[1]METAS!S147","v":-709.10000000000093},null,null,null,null,null,null,{"$f":"+[1]METAS!$M135","v":"n.d."},{"$f":"+[1]METAS!$V135","v":"n.d."}]
[]
[null,"ver DO","poner datos de ENE 20",null,null,"cambiar a 2020 el próx REM",null,null,null,null,null,null,null,null,null,null,"poner datos de ENE 20"]

{"sheet":"Datos_Regional (M)","index":11,"n_rows":374,"n_cols":112,"rows_kept":374,"cut":false,"hidden":true,"merged":[[0,96,0,103],[0,104,0,111],[0,73,0,75],[0,76,0,89],[0,44,0,47],[0,48,0,53],[0,54,0,60],[0,12,1,12],[0,0,1,2],[0,3,1,3],[0,4,1,4],[0,7,1,7],[0,8,1,8],[0,11,1,11],[0,5,1,5],[0,6,1,6],[0,9,1,9],[0,10,1,10],[0,13,1,13],[0,14,1,14],[0,61,0,67],[0,69,1,69],[0,70,0,72],[0,27,0,30],[0,15,0,20],[0,21,0,26],[0,68,1,68],[0,31,0,36],[0,37,0,43]]}
["Variables Mensuales Regional",null,null,"IPC CARD","IPC CARD_T","IPC CAPARD","IPC CAPARD_T","IMAER_TC","IMAER_T","IMAER CARD_TC","IMAER CAPARD_T","RIN_CARD","RIN\nDiciembres","RIN_CAPARD","RIN\nDiciembres","CARD",null,null,null,null,null,"CAPARD",null,null,null,null,null,"Crédito de las OSD con SPNF",null,null,null,"Créditos de las OSD con el sector privado, saldo en millones de USD",null,null,null,null,null,"Tasa de variación Interanual",null,null,null,null,null,null,"Crédito de las OSD con SPNF",null,null,null,"Créditos de las OSD con el sector privado, saldo en millones de USD",null,null,null,null,null,"Tasa de variación Interanual",null,null,null,null,null,null,"Tasa de Política Monetaria",null,null,null,null,null,null,"CARD Saldo operacional GC","CAPARD Saldo operacional GC","CARD",null,null,"CAPARD",null,null,"Crédito de las OSD con el Sector Privado MN",null,null,null,null,null,null,null,null,null,null,null,null,null,"Mill-US$","Mill-US$","%","Mill-US$","Mill-US$","%","CARD",null,null,null,null,null,null,null,"CAPARD"]
[null,null,null,null,null,null,null,null,null,null,null,null,null,null,null,"M1","M2","M3","M1_%","M2_%","M3_%","M1","M2","M3","M1_%","M2_%","M3_%","Activos","Pasivos","Crédito Neto","%Interanual","Otras sociedades no financieras","Otros sectores 1/","Otras sociedades no financieras","Hogares e ISFLSH",null,"TOTAL","Otras sociedades no financieras",null,"Otros sectores 1/","Otras sociedades no financieras","Hogares e ISFLSH","TOTAL","Aceleración","Activos","Pasivos","Crédito Neto","%Interanual","Otras sociedades no financieras","Otros sectores 1/","Otras sociedades no financieras","Hogares e ISFLSH",null,"TOTAL","Otras sociedades no financieras",null,"Otros sectores 1/","Otras sociedades no financieras","Hogares e ISFLSH","TOTAL","Aceleración","CR","SV","GT","HO","NI ","RD","PA",null,null,"Deuda Pública total","Deuda Interna","Deuda Externa","Deuda Pública total","Deuda Interna","Deuda Externa","CR","SV","GT","HO","NI","RD","PA","CR %","SV %","GT %","HO %","NI %","RD %","PA %","CARD Saldo Operacional con donaciones","CARD PIB a precios corrientes","CARD Saldo operacional/PIB","CAPARD Saldo Operacional con donaciones","CAPARD PIB a precios corrientes","CAPARD Saldo operacional/PIB","Credito TOTAL","Créditos de las OSD a sector Público","Créditos de las OSD a sector Privado","Créditos de las OSD a no residentes y otros","Credito TOTAL %","Créditos de las OSD a sector Público %","Créditos de las OSD a sector Privado %","Créditos de las OSD a no residentes y otros %","Credito TOTAL","Créditos de las OSD a sector Público","Créditos de las OSD a sector Privado","Créditos de las OSD a no residentes y otros","Credito TOTAL %","Créditos de las OSD a sector Público %","Créditos de las OSD a sector Privado %","Créditos de las OSD a no residentes y otros %"]
[1990,"enero",{"$f":"A3&\"-\"&B3","v":"1990-enero"},{"$f":"IF('[1]REAL IPC(M)'!$AL10=\"\",\"\",+'[1]REAL IPC(M)'!$AL10)","v":"n.d."},{"$f":"IF('[1]REAL IPC(M)'!$BE10=\"\",\"\",+'[1]REAL IPC(M)'!$BE10)","v":"n.d."},{"$f":"IF('[1]REAL IPC(M)'!$AM10=\"\",\"\",+'[1]REAL IPC(M)'!$AM10)","v":"n.d."},{"$f":"IF('[1]REAL IPC(M)'!$BI10=\"\",\"\",+'[1]REAL IPC(M)'!$BI10)","v":"n.d."},{"$f":"IF('[1]REAL IMAE(M)'!BJ10=\"\",\"\",'[1]REAL IMAE(M)'!BJ10)","v":"n.d."},{"$f":"IF('[1]REAL IMAE(M)'!BK10=\"\",\"\",'[1]REAL IMAE(M)'!BK10)","v":"n.d."},{"$f":"IF('[1]REAL IMAE(M)'!BN10=\"\",\"\",'[1]REAL IMAE(M)'!BN10)","v":"n.d."},{"$f":"IF('[1]REAL IMAE(M)'!BO10=\"\",\"\",'[1]REAL IMAE(M)'!BO10)","v":"n.d."},{"$f":"IF('[1]EXT RIN(M)'!$K10=\"\",\"\",'[1]EXT RIN(M)'!$K10)","v":"n.d."},{"$f":"IF(B3<>\"diciembre\",\"\",L3)","v":""},{"$f":"IF('[1]EXT RIN(M)'!$L10=\"\",\"\",'[1]EXT RIN(M)'!$L10)","v":"n.d."},{"$f":"IF(B3<>\"diciembre\",\"\",N3)","v":""},{"$f":"IF('[1]MONE(M)CARD'!EG10=\"\",\"\",'[1]MONE(M)CARD'!EG10)","v":"n.d."},{"$f":"IF('[1]MONE(M)CARD'!EK10=\"\",\"\",'[1]MONE(M)CARD'!EK10)","v":"n.d."},{"$f":"IF('[1]MONE(M)CARD'!EP10=\"\",\"\",'[1]MONE(M)CARD'!EP10)","v":"n.d."},{"$f":"IF('[1]MONE(M)CARD'!ES10=\"\",\"\",'[1]MONE(M)CARD'!ES10)","v":"n.d."},{"$f":"IF('[1]MONE(M)CARD'!EV10=\"\",\"\",'[1]MONE(M)CARD'!EV10)","v":"n.d."},{"$f":"IF('[1]MONE(M)CARD'!EZ10=\"\",\"\",'[1]MONE(M)CARD'!EZ10)","v":"n.d."},{"$f":"IF('[1]MONE(M)CAPARD'!FC10=\"\",\"\",'[1]MONE(M)CAPARD'!FC10)","v":"n.d."},{"$f":"IF('[1]MONE(M)CAPARD'!FG10=\"\",\"\",'[1]MONE(M)CAPARD'!FG10)","v":"n.d."},{"$f":"IF('[1]MONE(M)CAPARD'!FL10=\"\",\"\",'[1]MONE(M)CAPARD'!FL10)","v":"n.d."},{"$f":"IF('[1]MONE(M)CAPARD'!FO10=\"\",\"\",'[1]MONE(M)CAPARD'!FO10)","v":"n.d."},{"$f":"IF('[1]MONE(M)CAPARD'!FR10=\"\",\"\",'[1]MONE(M)CAPARD'!FR10)","v":"n.d."},{"$f":"IF('[1]MONE(M)CAPARD'!FV10=\"\",\"\",'[1]MONE(M)CAPARD'!FV10)","v":"n.d."},{"$f":"IF('[1]MONE(M)CARD'!FV10=\"\",\"\",'[1]MONE(M)CARD'!FV10)","v":""},{"$f":"IF('[1]MONE(M)CARD'!GD10=\"\",\"\",'[1]MONE(M)CARD'!GD10)","v":"n.d."},{"$f":"IF('[1]MONE(M)CARD'!GE10=\"\",\"\",'[1]MONE(M)CARD'!GE10)","v":"n.d."},"n.d.","n.d.","n.d.","n.d.","n.d.",null,"n.d.","n.d.",null,"n.d.","n.d.","n.d.","n.d.","n.d.",{"$f":"IF('[1]MONE(M)CAPARD'!GS10=\"\",\"\",'[1]MONE(M)CAPARD'!GS10)","v":"n.d."},{"$f":"IF('[1]MONE(M)CARD'!HA10=\"\",\"\",'[1]MONE(M)CAPARD'!HA10)","v":"n.d."},{"$f":"IF('[1]MONE(M)CAPARD'!HB10=\"\",\"\",'[1]MONE(M)CAPARD'!HB10)","v":"n.d."},"n.d.","n.d.","n.d.","n.d.","n.d.","n.d.","n.d.","n.d.","n.d.","n.d.","n.d.","n.d.","n.d.","n.d.",{"$f":"IF('[1]MONE(M)CAPARD'!AS10=\"\",\"\",'[1]MONE(M)CAPARD'!AS10)","v":"n.d."},{"$f":"IF('[1]MONE(M)CAPARD'!AT10=\"\",\"\",'[1]MONE(M)CAPARD'!AT10)","v":"n.a."},{"$f":"IF('[1]MONE(M)CAPARD'!AU10=\"\",\"\",'[1]MONE(M)CAPARD'!AU10)","v":"n.d."},{"$f":"IF('[1]MONE(M)CAPARD'!AV10=\"\",\"\",'[1]MONE(M)CAPARD'!AV10)","v":"n.d."},{"$f":"IF('[1]MONE(M)CAPARD'!AW10=\"\",\"\",'[1]MONE(M)CAPARD'!AW10)","v":"n.a."},{"$f":"IF('[1]MONE(M)CAPARD'!AX10=\"\",\"\",'[1]MONE(M)CAPARD'!AX10)","v":"n.d."},{"$f":"IF('[1]MONE(M)CAPARD'!AY10=\"\",\"\",'[1]MONE(M)CAPARD'!AY10)","v":"n.a."},{"$f":"IF('[1]FISCAL(M)'!$K10=\"\",\"\",'[1]FISCAL(M)'!$K10)","v":"n.d."},{"$f":"IF('[1]FISCAL(M)'!$L10=\"\",\"\",'[1]FISCAL(M)'!$L10)","v":"n.d."},{"$f":"IF('[1]FISCAL(M)'!$AY10=\"\",\"\",'[1]FISCAL(M)'!$AY10)","v":"n.d."},{"$f":"IF('[1]FISCAL(M)'!$BI10=\"\",\"\",'[1]FISCAL(M)'!$BI10)","v":"n.d."},{"$f":"IF('[1]FISCAL(M)'!$BS10=\"\",\"\",'[1]FISCAL(M)'!$BS10)","v":"n.d."},{"$f":"IF('[1]FISCAL(M)'!$AZ10=\"\",\"\",'[1]FISCAL(M)'!$AZ10)","v":"n.d."},{"$f":"IF('[1]FISCAL(M)'!$BJ10=\"\",\"\",'[1]FISCAL(M)'!$BJ10)","v":"n.d."},{"$f":"IF('[1]FISCAL(M)'!$BT10=\"\",\"\",'[1]FISCAL(M)'!$BT10)","v":"n.d."},{"$f":"IF('[2]MONE(M)'!$AO10=\"\",\"\",'[2]MONE(M)'!$AO10)","v":"n.d."},{"$f":"IF('[3]MONE(M)'!$AO10=\"\",\"\",'[3]MONE(M)'!$AO10)","v":"n.d."},{"$f":"IF('[4]MONE(M)'!$AO10=\"\",\"\",'[4]MONE(M)'!$AO10)","v":"n.d."},{"$f":"IF('[5]MONE(M)'!$AO10=\"\",\"\",'[5]MONE(M)'!$AO10)","v":"n.d."},{"$f":"IF('[6]MONE(M)'!$AO10=\"\",\"\",'[6]MONE(M)'!$AO10)","v":"n.d."},{"$f":"IF('[7]MONE(M)'!$AO10=\"\",\"\",'[7]MONE(M)'!$AO10)","v":"n.d."},{"$f":"IF('[8]MONE(M)'!$AO10=\"\",\"\",'[8]MONE(M)'!$AO10)","v":"n.d."},"n.d.","n.d.","n.d.","n.d.","n.d.","n.d.","n.d.",{"$f":"'[1]FISCAL(M)'!$K10","v":"n.d."},"n.d.",{"$f":"IF(OR(CM3=\"n.d.\",CM3=\"\",CN3=\"\",CN3=\"n.d.\"),\"n.d.\",(CM3/CN3)*100)","v":"n.d."},{"$f":"IF('[1]FISCAL(M)'!$L10=\"\",\"\",'[1]FISCAL(M)'!$L10)","v":"n.d."},"n.d.",{"$f":"IF(OR(CP3=\"n.d.\",CP3=\"\",CQ3=\"\",CQ3=\"n.d.\"),\"n.d.\",(CP3/CQ3)*100)","v":"n.d."},"n.d.","n.d.","n.d.","n.d.","n.d.","n.d.","n.d.","n.d.","n.d.","n.d.","n.d.","n.d.","n.d.","n.d.","n.d.","n.d."]
[1990,"febrero",{"$f":"A4&\"-\"&B4","v":"1990-febrero"},{"$f":"IF('[1]REAL IPC(M)'!$AL11=\"\",\"\",+'[1]REAL IPC(M)'!$AL11)","v":"n.d."},{"$f":"IF('[1]REAL IPC(M)'!$BE11=\"\",\"\",+'[1]REAL IPC(M)'!$BE11)","v":"n.d."},{"$f":"IF('[1]REAL IPC(M)'!$AM11=\"\",\"\",+'[1]REAL IPC(M)'!$AM11)","v":"n.d."},{"$f":"IF('[1]REAL IPC(M)'!$BI11=\"\",\"\",+'[1]REAL IPC(M)'!$BI11)","v":"n.d."},{"$f":"IF('[1]REAL IMAE(M)'!BJ11=\"\",\"\",'[1]REAL IMAE(M)'!BJ11)","v":"n.d."},{"$f":"IF('[1]REAL IMAE(M)'!BK11=\"\",\"\",'[1]REAL IMAE(M)'!BK11)","v":"n.d."},{"$f":"IF('[1]REAL IMAE(M)'!BN11=\"\",\"\",'[1]REAL IMAE(M)'!BN11)","v":"n.d."},{"$f":"IF('[1]REAL IMAE(M)'!BO11=\"\",\"\",'[1]REAL IMAE(M)'!BO11)","v":"n.d."},{"$f":"IF('[1]EXT RIN(M)'!$K11=\"\",\"\",'[1]EXT RIN(M)'!$K11)","v":"n.d."},{"$f":"IF(B4<>\"diciembre\",\"\",L4)","v":""},{"$f":"IF('[1]EXT RIN(M)'!$L11=\"\",\"\",'[1]EXT RIN(M)'!$L11)","v":"n.d."},{"$f":"IF(B4<>\"diciembre\",\"\",N4)","v":""},{"$f":"IF('[1]MONE(M)CARD'!EG11=\"\",\"\",'[1]MONE(M)CARD'!EG11)","v":"n.d."},{"$f":"IF('[1]MONE(M)CARD'!EK11=\"\",\"\",'[1]MONE(M)CARD'!EK11)","v":"n.d."},{"$f":"IF('[1]MONE(M)CARD'!EP11=\"\",\"\",'[1]MONE(M)CARD'!EP11)","v":"n.d."},{"$f":"IF('[1]MONE(M)CARD'!ES11=\"\",\"\",'[1]MONE(M)CARD'!ES11)","v":"n.d."},{"$f":"IF('[1]MONE(M)CARD'!EV11=\"\",\"\",'[1]MONE(M)CARD'!EV11)","v":"n.d."},{"$f":"IF('[1]MONE(M)CARD'!EZ11=\"\",\"\",'[1]MONE(M)CARD'!EZ11)","v":"n.d."},{"$f":"IF('[1]MONE(M)CAPARD'!FC11=\"\",\"\",'[1]MONE(M)CAPARD'!FC11)","v":"n.d."},{"$f":"IF('[1]MONE(M)CAPARD'!FG11=\"\",\"\",'[1]MONE(M)CAPARD'!FG11)","v":"n.d."},{"$f":"IF('[1]MONE(M)CAPARD'!FL11=\"\",\"\",'[1]MONE(M)CAPARD'!FL11)","v":"n.d."},{"$f":"IF('[1]MONE(M)CAPARD'!FO11=\"\",\"\",'[1]MONE(M)CAPARD'!FO11)","v":"n.d."},{"$f":"IF('[1]MONE(M)CAPARD'!FR11=\"\",\"\",'[1]MONE(M)CAPARD'!FR11)","v":"n.d."},{"$f":"IF('[1]MONE(M)CAPARD'!FV11=\"\",\"\",'[1]MONE(M)CAPARD'!FV11)","v":"n.d."},{"$f":"IF('[1]MONE(M)CARD'!FV11=\"\",\"\",'[1]MONE(M)CARD'!FV11)","v":""},{"$f":"IF('[1]MONE(M)CARD'!GD11=\"\",\"\",'[1]MONE(M)CARD'!GD11)","v":"n.d."},{"$f":"IF('[1]MONE(M)CARD'!GE11=\"\",\"\",'[1]MONE(M)CARD'!GE11)","v":"n.d."},"n.d.","n.d.","n.d.","n.d.","n.d.",{"$f":"IFERROR(+AF4+AH4,\"\")","v":""},"n.d.","n.d.",null,"n.d.","n.d.","n.d.","n.d.","n.d.",{"$f":"IF('[1]MONE(M)CAPARD'!GS11=\"\",\"\",'[1]MONE(M)CAPARD'!GS11)","v":"n.d."},{"$f":"IF('[1]MONE(M)CARD'!HA11=\"\",\"\",'[1]MONE(M)CAPARD'!HA11)","v":"n.d."},{"$f":"IF('[1]MONE(M)CAPARD'!HB11=\"\",\"\",'[1]MONE(M)CAPARD'!HB11)","v":"n.d."},"n.d.","n.d.","n.d.","n.d.","n.d.","n.d.","n.d.","n.d.","n.d.","n.d.","n.d.","n.d.","n.d.","n.d.",{"$f":"IF('[1]MONE(M)CAPARD'!AS11=\"\",\"\",'[1]MONE(M)CAPARD'!AS11)","v":"n.d."},{"$f":"IF('[1]MONE(M)CAPARD'!AT11=\"\",\"\",'[1]MONE(M)CAPARD'!AT11)","v":"n.a."},{"$f":"IF('[1]MONE(M)CAPARD'!AU11=\"\",\"\",'[1]MONE(M)CAPARD'!AU11)","v":"n.d."},{"$f":"IF('[1]MONE(M)CAPARD'!AV11=\"\",\"\",'[1]MONE(M)CAPARD'!AV11)","v":"n.d."},{"$f":"IF('[1]MONE(M)CAPARD'!AW11=\"\",\"\",'[1]MONE(M)CAPARD'!AW11)","v":"n.a."},{"$f":"IF('[1]MONE(M)CAPARD'!AX11=\"\",\"\",'[1]MONE(M)CAPARD'!AX11)","v":"n.d."},{"$f":"IF('[1]MONE(M)CAPARD'!AY11=\"\",\"\",'[1]MONE(M)CAPARD'!AY11)","v":"n.a."},{"$f":"IF('[1]FISCAL(M)'!$K11=\"\",\"\",'[1]FISCAL(M)'!$K11)","v":"n.d."},{"$f":"IF('[1]FISCAL(M)'!$L11=\"\",\"\",'[1]FISCAL(M)'!$L11)","v":"n.d."},{"$f":"IF('[1]FISCAL(M)'!$AY11=\"\",\"\",'[1]FISCAL(M)'!$AY11)","v":"n.d."},{"$f":"IF('[1]FISCAL(M)'!$BI11=\"\",\"\",'[1]FISCAL(M)'!$BI11)","v":"n.d."},{"$f":"IF('[1]FISCAL(M)'!$BS11=\"\",\"\",'[1]FISCAL(M)'!$BS11)","v":"n.d."},{"$f":"IF('[1]FISCAL(M)'!$AZ11=\"\",\"\",'[1]FISCAL(M)'!$AZ11)","v":"n.d."},{"$f":"IF('[1]FISCAL(M)'!$BJ11=\"\",\"\",'[1]FISCAL(M)'!$BJ11)","v":"n.d."},{"$f":"IF('[1]FISCAL(M)'!$BT11=\"\",\"\",'[1]FISCAL(M)'!$BT11)","v":"n.d."},{"$f":"IF('[2]MONE(M)'!$AO11=\"\",\"\",'[2]MONE(M)'!$AO11)","v":"n.d."},{"$f":"IF('[3]MONE(M)'!$AO11=\"\",\"\",'[3]MONE(M)'!$AO11)","v":"n.d."},{"$f":"IF('[4]MONE(M)'!$AO11=\"\",\"\",'[4]MONE(M)'!$AO11)","v":"n.d."},{"$f":"IF('[5]MONE(M)'!$AO11=\"\",\"\",'[5]MONE(M)'!$AO11)","v":"n.d."},{"$f":"IF('[6]MONE(M)'!$AO11=\"\",\"\",'[6]MONE(M)'!$AO11)","v":"n.d."},{"$f":"IF('[7]MONE(M)'!$AO11=\"\",\"\",'[7]MONE(M)'!$AO11)","v":"n.d."},{"$f":"IF('[8]MONE(M)'!$AO11=\"\",\"\",'[8]MONE(M)'!$AO11)","v":"n.d."},"n.d.","n.d.","n.d.","n.d.","n.d.","n.d.","n.d.",{"$f":"'[1]FISCAL(M)'!$K11","v":"n.d."},"n.d.","n.d.",{"$f":"IF('[1]FISCAL(M)'!$L11=\"\",\"\",'[1]FISCAL(M)'!$L11)","v":"n.d."},"n.d.",{"$f":"IF(OR(CP4=\"n.d.\",CP4=\"\",CQ4=\"\",CQ4=\"n.d.\"),\"n.d.\",(CP4/CQ4)*100)","v":"n.d."},"n.d.","n.d.","n.d.","n.d.","n.d.","n.d.","n.d.","n.d.","n.d.","n.d.","n.d.","n.d.","n.d.","n.d.","n.d.","n.d."]
[1990,"marzo","1990-marzo",{"$f":"IF('[1]REAL IPC(M)'!$AL12=\"\",\"\",+'[1]REAL IPC(M)'!$AL12)","v":"n.d."},{"$f":"IF('[1]REAL IPC(M)'!$BE12=\"\",\"\",+'[1]REAL IPC(M)'!$BE12)","v":"n.d."},{"$f":"IF('[1]REAL IPC(M)'!$AM12=\"\",\"\",+'[1]REAL IPC(M)'!$AM12)","v":"n.d."},{"$f":"IF('[1]REAL IPC(M)'!$BI12=\"\",\"\",+'[1]REAL IPC(M)'!$BI12)","v":"n.d."},{"$f":"IF('[1]REAL IMAE(M)'!BJ12=\"\",\"\",'[1]REAL IMAE(M)'!BJ12)","v":"n.d."},{"$f":"IF('[1]REAL IMAE(M)'!BK12=\"\",\"\",'[1]REAL IMAE(M)'!BK12)","v":"n.d."},{"$f":"IF('[1]REAL IMAE(M)'!BN12=\"\",\"\",'[1]REAL IMAE(M)'!BN12)","v":"n.d."},{"$f":"IF('[1]REAL IMAE(M)'!BO12=\"\",\"\",'[1]REAL IMAE(M)'!BO12)","v":"n.d."},{"$f":"IF('[1]EXT RIN(M)'!$K12=\"\",\"\",'[1]EXT RIN(M)'!$K12)","v":"n.d."},"",{"$f":"IF('[1]EXT RIN(M)'!$L12=\"\",\"\",'[1]EXT RIN(M)'!$L12)","v":"n.d."},"",{"$f":"IF('[1]MONE(M)CARD'!EG12=\"\",\"\",'[1]MONE(M)CARD'!EG12)","v":"n.d."},{"$f":"IF('[1]MONE(M)CARD'!EK12=\"\",\"\",'[1]MONE(M)CARD'!EK12)","v":"n.d."},{"$f":"IF('[1]MONE(M)CARD'!EP12=\"\",\"\",'[1]MONE(M)CARD'!EP12)","v":"n.d."},{"$f":"IF('[1]MONE(M)CARD'!ES12=\"\",\"\",'[1]MONE(M)CARD'!ES12)","v":"n.d."},{"$f":"IF('[1]MONE(M)CARD'!EV12=\"\",\"\",'[1]MONE(M)CARD'!EV12)","v":"n.d."},{"$f":"IF('[1]MONE(M)CARD'!EZ12=\"\",\"\",'[1]MONE(M)CARD'!EZ12)","v":"n.d."},{"$f":"IF('[1]MONE(M)CAPARD'!FC12=\"\",\"\",'[1]MONE(M)CAPARD'!FC12)","v":"n.d."},{"$f":"IF('[1]MONE(M)CAPARD'!FG12=\"\",\"\",'[1]MONE(M)CAPARD'!FG12)","v":"n.d."},{"$f":"IF('[1]MONE(M)CAPARD'!FL12=\"\",\"\",'[1]MONE(M)CAPARD'!FL12)","v":"n.d."},{"$f":"IF('[1]MONE(M)CAPARD'!FO12=\"\",\"\",'[1]MONE(M)CAPARD'!FO12)","v":"n.d."},{"$f":"IF('[1]MONE(M)CAPARD'!FR12=\"\",\"\",'[1]MONE(M)CAPARD'!FR12)","v":"n.d."},{"$f":"IF('[1]MONE(M)CAPARD'!FV12=\"\",\"\",'[1]MONE(M)CAPARD'!FV12)","v":"n.d."},{"$f":"IF('[1]MONE(M)CARD'!FV12=\"\",\"\",'[1]MONE(M)CARD'!FV12)","v":""},{"$f":"IF('[1]MONE(M)CARD'!GD12=\"\",\"\",'[1]MONE(M)CARD'!GD12)","v":"n.d."},{"$f":"IF('[1]MONE(M)CARD'!GE12=\"\",\"\",'[1]MONE(M)CARD'!GE12)","v":"n.d."},"n.d.","n.d.","n.d.","n.d.","n.d.","","n.d.","n.d.",null,"n.d.","n.d.","n.d.","n.d.","n.d.",{"$f":"IF('[1]MONE(M)CAPARD'!GS12=\"\",\"\",'[1]MONE(M)CAPARD'!GS12)","v":"n.d."},{"$f":"IF('[1]MONE(M)CARD'!HA12=\"\",\"\",'[1]MONE(M)CAPARD'!HA12)","v":"n.d."},{"$f":"IF('[1]MONE(M)CAPARD'!HB12=\"\",\"\",'[1]MONE(M)CAPARD'!HB12)","v":"n.d."},"n.d.","n.d.","n.d.","n.d.","n.d.","n.d.","n.d.","n.d.","n.d.","n.d.","n.d.","n.d.","n.d.","n.d.",{"$f":"IF('[1]MONE(M)CAPARD'!AS12=\"\",\"\",'[1]MONE(M)CAPARD'!AS12)","v":"n.d."},{"$f":"IF('[1]MONE(M)CAPARD'!AT12=\"\",\"\",'[1]MONE(M)CAPARD'!AT12)","v":"n.a."},{"$f":"IF('[1]MONE(M)CAPARD'!AU12=\"\",\"\",'[1]MONE(M)CAPARD'!AU12)","v":"n.d."},{"$f":"IF('[1]MONE(M)CAPARD'!AV12=\"\",\"\",'[1]MONE(M)CAPARD'!AV12)","v":"n.d."},{"$f":"IF('[1]MONE(M)CAPARD'!AW12=\"\",\"\",'[1]MONE(M)CAPARD'!AW12)","v":"n.a."},{"$f":"IF('[1]MONE(M)CAPARD'!AX12=\"\",\"\",'[1]MONE(M)CAPARD'!AX12)","v":"n.d."},{"$f":"IF('[1]MONE(M)CAPARD'!AY12=\"\",\"\",'[1]MONE(M)CAPARD'!AY12)","v":"n.a."},{"$f":"IF('[1]FISCAL(M)'!$K12=\"\",\"\",'[1]FISCAL(M)'!$K12)","v":"n.d."},{"$f":"IF('[1]FISCAL(M)'!$L12=\"\",\"\",'[1]FISCAL(M)'!$L12)","v":"n.d."},{"$f":"IF('[1]FISCAL(M)'!$AY12=\"\",\"\",'[1]FISCAL(M)'!$AY12)","v":"n.d."},{"$f":"IF('[1]FISCAL(M)'!$BI12=\"\",\"\",'[1]FISCAL(M)'!$BI12)","v":"n.d."},{"$f":"IF('[1]FISCAL(M)'!$BS12=\"\",\"\",'[1]FISCAL(M)'!$BS12)","v":"n.d."},{"$f":"IF('[1]FISCAL(M)'!$AZ12=\"\",\"\",'[1]FISCAL(M)'!$AZ12)","v":"n.d."},{"$f":"IF('[1]FISCAL(M)'!$BJ12=\"\",\"\",'[1]FISCAL(M)'!$BJ12)","v":"n.d."},{"$f":"IF('[1]FISCAL(M)'!$BT12=\"\",\"\",'[1]FISCAL(M)'!$BT12)","v":"n.d."},{"$f":"IF('[2]MONE(M)'!$AO12=\"\",\"\",'[2]MONE(M)'!$AO12)","v":"n.d."},{"$f":"IF('[3]MONE(M)'!$AO12=\"\",\"\",'[3]MONE(M)'!$AO12)","v":"n.d."},{"$f":"IF('[4]MONE(M)'!$AO12=\"\",\"\",'[4]MONE(M)'!$AO12)","v":"n.d."},{"$f":"IF('[5]MONE(M)'!$AO12=\"\",\"\",'[5]MONE(M)'!$AO12)","v":"n.d."},{"$f":"IF('[6]MONE(M)'!$AO12=\"\",\"\",'[6]MONE(M)'!$AO12)","v":"n.d."},{"$f":"IF('[7]MONE(M)'!$AO12=\"\",\"\",'[7]MONE(M)'!$AO12)","v":"n.d."},{"$f":"IF('[8]MONE(M)'!$AO12=\"\",\"\",'[8]MONE(M)'!$AO12)","v":"n.d."},"n.d.","n.d.","n.d.","n.d.","n.d.","n.d.","n.d.",{"$f":"IF('[1]FISCAL(M)'!$K12=\"\",\"\",'[1]FISCAL(M)'!$K12)","v":"n.d."},"n.d.","n.d.",{"$f":"IF('[1]FISCAL(M)'!$L12=\"\",\"\",'[1]FISCAL(M)'!$L12)","v":"n.d."},"n.d.","n.d.","n.d.","n.d.","n.d.","n.d.","n.d.","n.d.","n.d.","n.d.","n.d.","n.d.","n.d.","n.d.","n.d.","n.d.","n.d.","n.d."]
[1990,"abril","1990-abril",{"$f":"IF('[1]REAL IPC(M)'!$AL13=\"\",\"\",+'[1]REAL IPC(M)'!$AL13)","v":"n.d."},{"$f":"IF('[1]REAL IPC(M)'!$BE13=\"\",\"\",+'[1]REAL IPC(M)'!$BE13)","v":"n.d."},{"$f":"IF('[1]REAL IPC(M)'!$AM13=\"\",\"\",+'[1]REAL IPC(M)'!$AM13)","v":"n.d."},{"$f":"IF('[1]REAL IPC(M)'!$BI13=\"\",\"\",+'[1]REAL IPC(M)'!$BI13)","v":"n.d."},{"$f":"IF('[1]REAL IMAE(M)'!BJ13=\"\",\"\",'[1]REAL IMAE(M)'!BJ13)","v":"n.d."},{"$f":"IF('[1]REAL IMAE(M)'!BK13=\"\",\"\",'[1]REAL IMAE(M)'!BK13)","v":"n.d."},{"$f":"IF('[1]REAL IMAE(M)'!BN13=\"\",\"\",'[1]REAL IMAE(M)'!BN13)","v":"n.d."},{"$f":"IF('[1]REAL IMAE(M)'!BO13=\"\",\"\",'[1]REAL IMAE(M)'!BO13)","v":"n.d."},{"$f":"IF('[1]EXT RIN(M)'!$K13=\"\",\"\",'[1]EXT RIN(M)'!$K13)","v":"n.d."},"",{"$f":"IF('[1]EXT RIN(M)'!$L13=\"\",\"\",'[1]EXT RIN(M)'!$L13)","v":"n.d."},"",{"$f":"IF('[1]MONE(M)CARD'!EG13=\"\",\"\",'[1]MONE(M)CARD'!EG13)","v":"n.d."},{"$f":"IF('[1]MONE(M)CARD'!EK13=\"\",\"\",'[1]MONE(M)CARD'!EK13)","v":"n.d."},{"$f":"IF('[1]MONE(M)CARD'!EP13=\"\",\"\",'[1]MONE(M)CARD'!EP13)","v":"n.d."},{"$f":"IF('[1]MONE(M)CARD'!ES13=\"\",\"\",'[1]MONE(M)CARD'!ES13)","v":"n.d."},{"$f":"IF('[1]MONE(M)CARD'!EV13=\"\",\"\",'[1]MONE(M)CARD'!EV13)","v":"n.d."},{"$f":"IF('[1]MONE(M)CARD'!EZ13=\"\",\"\",'[1]MONE(M)CARD'!EZ13)","v":"n.d."},{"$f":"IF('[1]MONE(M)CAPARD'!FC13=\"\",\"\",'[1]MONE(M)CAPARD'!FC13)","v":"n.d."},{"$f":"IF('[1]MONE(M)CAPARD'!FG13=\"\",\"\",'[1]MONE(M)CAPARD'!FG13)","v":"n.d."},{"$f":"IF('[1]MONE(M)CAPARD'!FL13=\"\",\"\",'[1]MONE(M)CAPARD'!FL13)","v":"n.d."},{"$f":"IF('[1]MONE(M)CAPARD'!FO13=\"\",\"\",'[1]MONE(M)CAPARD'!FO13)","v":"n.d."},{"$f":"IF('[1]MONE(M)CAPARD'!FR13=\"\",\"\",'[1]MONE(M)CAPARD'!FR13)","v":"n.d."},{"$f":"IF('[1]MONE(M)CAPARD'!FV13=\"\",\"\",'[1]MONE(M)CAPARD'!FV13)","v":"n.d."},{"$f":"IF('[1]MONE(M)CARD'!FV13=\"\",\"\",'[1]MONE(M)CARD'!FV13)","v":""},{"$f":"IF('[1]MONE(M)CARD'!GD13=\"\",\"\",'[1]MONE(M)CARD'!GD13)","v":"n.d."},{"$f":"IF('[1]MONE(M)CARD'!GE13=\"\",\"\",'[1]MONE(M)CARD'!GE13)","v":"n.d."},"n.d.","n.d.","n.d.","n.d.","n.d.",{"$f":"IFERROR(+AF6+AH6,\"n.d.\")","v":"n.d."},"n.d.","n.d.",null,"n.d.","n.d.","n.d.","n.d.","n.d.",{"$f":"IF('[1]MONE(M)CAPARD'!GS13=\"\",\"\",'[1]MONE(M)CAPARD'!GS13)","v":"n.d."},{"$f":"IF('[1]MONE(M)CARD'!HA13=\"\",\"\",'[1]MONE(M)CAPARD'!HA13)","v":"n.d."},{"$f":"IF('[1]MONE(M)CAPARD'!HB13=\"\",\"\",'[1]MONE(M)CAPARD'!HB13)","v":"n.d."},"n.d.","n.d.","n.d.","n.d.","n.d.","n.d.","n.d.","n.d.","n.d.","n.d.","n.d.","n.d.","n.d.","n.d.",{"$f":"IF('[1]MONE(M)CAPARD'!AS13=\"\",\"\",'[1]MONE(M)CAPARD'!AS13)","v":"n.d."},{"$f":"IF('[1]MONE(M)CAPARD'!AT13=\"\",\"\",'[1]MONE(M)CAPARD'!AT13)","v":"n.a."},{"$f":"IF('[1]MONE(M)CAPARD'!AU13=\"\",\"\",'[1]MONE(M)CAPARD'!AU13)","v":"n.d."},{"$f":"IF('[1]MONE(M)CAPARD'!AV13=\"\",\"\",'[1]MONE(M)CAPARD'!AV13)","v":"n.d."},{"$f":"IF('[1]MONE(M)CAPARD'!AW13=\"\",\"\",'[1]MONE(M)CAPARD'!AW13)","v":"n.a."},{"$f":"IF('[1]MONE(M)CAPARD'!AX13=\"\",\"\",'[1]MONE(M)CAPARD'!AX13)","v":"n.d."},{"$f":"IF('[1]MONE(M)CAPARD'!AY13=\"\",\"\",'[1]MONE(M)CAPARD'!AY13)","v":"n.a."},{"$f":"IF('[1]FISCAL(M)'!$K13=\"\",\"\",'[1]FISCAL(M)'!$K13)","v":"n.d."},{"$f":"IF('[1]FISCAL(M)'!$L13=\"\",\"\",'[1]FISCAL(M)'!$L13)","v":"n.d."},{"$f":"IF('[1]FISCAL(M)'!$AY13=\"\",\"\",'[1]FISCAL(M)'!$AY13)","v":"n.d."},{"$f":"IF('[1]FISCAL(M)'!$BI13=\"\",\"\",'[1]FISCAL(M)'!$BI13)","v":"n.d."},{"$f":"IF('[1]FISCAL(M)'!$BS13=\"\",\"\",'[1]FISCAL(M)'!$BS13)","v":"n.d."},{"$f":"IF('[1]FISCAL(M)'!$AZ13=\"\",\"\",'[1]FISCAL(M)'!$AZ13)","v":"n.d."},{"$f":"IF('[1]FISCAL(M)'!$BJ13=\"\",\"\",'[1]FISCAL(M)'!$BJ13)","v":"n.d."},{"$f":"IF('[1]FISCAL(M)'!$BT13=\"\",\"\",'[1]FISCAL(M)'!$BT13)","v":"n.d."},{"$f":"IF('[2]MONE(M)'!$AO13=\"\",\"\",'[2]MONE(M)'!$AO13)","v":"n.d."},{"$f":"IF('[3]MONE(M)'!$AO13=\"\",\"\",'[3]MONE(M)'!$AO13)","v":"n.d."},{"$f":"IF('[4]MONE(M)'!$AO13=\"\",\"\",'[4]MONE(M)'!$AO13)","v":"n.d."},{"$f":"IF('[5]MONE(M)'!$AO13=\"\",\"\",'[5]MONE(M)'!$AO13)","v":"n.d."},{"$f":"IF('[6]MONE(M)'!$AO13=\"\",\"\",'[6]MONE(M)'!$AO13)","v":"n.d."},{"$f":"IF('[7]MONE(M)'!$AO13=\"\",\"\",'[7]MONE(M)'!$AO13)","v":"n.d."},{"$f":"IF('[8]MONE(M)'!$AO13=\"\",\"\",'[8]MONE(M)'!$AO13)","v":"n.d."},"n.d.","n.d.","n.d.","n.d.","n.d.","n.d.","n.d.",{"$f":"IF('[1]FISCAL(M)'!$K13=\"\",\"\",'[1]FISCAL(M)'!$K13)","v":"n.d."},"n.d.","n.d.",{"$f":"IF('[1]FISCAL(M)'!$L13=\"\",\"\",'[1]FISCAL(M)'!$L13)","v":"n.d."},"n.d.","n.d.","n.d.","n.d.","n.d.","n.d.","n.d.","n.d.","n.d.","n.d.","n.d.","n.d.","n.d.","n.d.","n.d.","n.d.","n.d.","n.d."]
[1990,"mayo ","1990-mayo ",{"$f":"IF('[1]REAL IPC(M)'!$AL14=\"\",\"\",+'[1]REAL IPC(M)'!$AL14)","v":"n.d."},{"$f":"IF('[1]REAL IPC(M)'!$BE14=\"\",\"\",+'[1]REAL IPC(M)'!$BE14)","v":"n.d."},{"$f":"IF('[1]REAL IPC(M)'!$AM14=\"\",\"\",+'[1]REAL IPC(M)'!$AM14)","v":"n.d."},{"$f":"IF('[1]REAL IPC(M)'!$BI14=\"\",\"\",+'[1]REAL IPC(M)'!$BI14)","v":"n.d."},{"$f":"IF('[1]REAL IMAE(M)'!BJ14=\"\",\"\",'[1]REAL IMAE(M)'!BJ14)","v":"n.d."},{"$f":"IF('[1]REAL IMAE(M)'!BK14=\"\",\"\",'[1]REAL IMAE(M)'!BK14)","v":"n.d."},{"$f":"IF('[1]REAL IMAE(M)'!BN14=\"\",\"\",'[1]REAL IMAE(M)'!BN14)","v":"n.d."},{"$f":"IF('[1]REAL IMAE(M)'!BO14=\"\",\"\",'[1]REAL IMAE(M)'!BO14)","v":"n.d."},{"$f":"IF('[1]EXT RIN(M)'!$K14=\"\",\"\",'[1]EXT RIN(M)'!$K14)","v":"n.d."},"",{"$f":"IF('[1]EXT RIN(M)'!$L14=\"\",\"\",'[1]EXT RIN(M)'!$L14)","v":"n.d."},"",{"$f":"IF('[1]MONE(M)CARD'!EG14=\"\",\"\",'[1]MONE(M)CARD'!EG14)","v":"n.d."},{"$f":"IF('[1]MONE(M)CARD'!EK14=\"\",\"\",'[1]MONE(M)CARD'!EK14)","v":"n.d."},{"$f":"IF('[1]MONE(M)CARD'!EP14=\"\",\"\",'[1]MONE(M)CARD'!EP14)","v":"n.d."},{"$f":"IF('[1]MONE(M)CARD'!ES14=\"\",\"\",'[1]MONE(M)CARD'!ES14)","v":"n.d."},{"$f":"IF('[1]MONE(M)CARD'!EV14=\"\",\"\",'[1]MONE(M)CARD'!EV14)","v":"n.d."},{"$f":"IF('[1]MONE(M)CARD'!EZ14=\"\",\"\",'[1]MONE(M)CARD'!EZ14)","v":"n.d."},{"$f":"IF('[1]MONE(M)CAPARD'!FC14=\"\",\"\",'[1]MONE(M)CAPARD'!FC14)","v":"n.d."},{"$f":"IF('[1]MONE(M)CAPARD'!FG14=\"\",\"\",'[1]MONE(M)CAPARD'!FG14)","v":"n.d."},{"$f":"IF('[1]MONE(M)CAPARD'!FL14=\"\",\"\",'[1]MONE(M)CAPARD'!FL14)","v":"n.d."},{"$f":"IF('[1]MONE(M)CAPARD'!FO14=\"\",\"\",'[1]MONE(M)CAPARD'!FO14)","v":"n.d."},{"$f":"IF('[1]MONE(M)CAPARD'!FR14=\"\",\"\",'[1]MONE(M)CAPARD'!FR14)","v":"n.d."},{"$f":"IF('[1]MONE(M)CAPARD'!FV14=\"\",\"\",'[1]MONE(M)CAPARD'!FV14)","v":"n.d."},{"$f":"IF('[1]MONE(M)CARD'!FV14=\"\",\"\",'[1]MONE(M)CARD'!FV14)","v":""},{"$f":"IF('[1]MONE(M)CARD'!GD14=\"\",\"\",'[1]MONE(M)CARD'!GD14)","v":"n.d."},{"$f":"IF('[1]MONE(M)CARD'!GE14=\"\",\"\",'[1]MONE(M)CARD'!GE14)","v":"n.d."},"n.d.","n.d.","n.d.","n.d.","n.d.",{"$f":"IFERROR(+AF7+AH7,\"n.d.\")","v":"n.d."},"n.d.","n.d.",null,"n.d.","n.d.","n.d.","n.d.","n.d.",{"$f":"IF('[1]MONE(M)CAPARD'!GS14=\"\",\"\",'[1]MONE(M)CAPARD'!GS14)","v":"n.d."},{"$f":"IF('[1]MONE(M)CARD'!HA14=\"\",\"\",'[1]MONE(M)CAPARD'!HA14)","v":"n.d."},{"$f":"IF('[1]MONE(M)CAPARD'!HB14=\"\",\"\",'[1]MONE(M)CAPARD'!HB14)","v":"n.d."},"n.d.","n.d.","n.d.","n.d.","n.d.","n.d.","n.d.","n.d.","n.d.","n.d.","n.d.","n.d.","n.d.","n.d.",{"$f":"IF('[1]MONE(M)CAPARD'!AS14=\"\",\"\",'[1]MONE(M)CAPARD'!AS14)","v":"n.d."},{"$f":"IF('[1]MONE(M)CAPARD'!AT14=\"\",\"\",'[1]MONE(M)CAPARD'!AT14)","v":"n.a."},{"$f":"IF('[1]MONE(M)CAPARD'!AU14=\"\",\"\",'[1]MONE(M)CAPARD'!AU14)","v":"n.d."},{"$f":"IF('[1]MONE(M)CAPARD'!AV14=\"\",\"\",'[1]MONE(M)CAPARD'!AV14)","v":"n.d."},{"$f":"IF('[1]MONE(M)CAPARD'!AW14=\"\",\"\",'[1]MONE(M)CAPARD'!AW14)","v":"n.a."},{"$f":"IF('[1]MONE(M)CAPARD'!AX14=\"\",\"\",'[1]MONE(M)CAPARD'!AX14)","v":"n.d."},{"$f":"IF('[1]MONE(M)CAPARD'!AY14=\"\",\"\",'[1]MONE(M)CAPARD'!AY14)","v":"n.a."},{"$f":"IF('[1]FISCAL(M)'!$K14=\"\",\"\",'[1]FISCAL(M)'!$K14)","v":"n.d."},{"$f":"IF('[1]FISCAL(M)'!$L14=\"\",\"\",'[1]FISCAL(M)'!$L14)","v":"n.d."},{"$f":"IF('[1]FISCAL(M)'!$AY14=\"\",\"\",'[1]FISCAL(M)'!$AY14)","v":"n.d."},{"$f":"IF('[1]FISCAL(M)'!$BI14=\"\",\"\",'[1]FISCAL(M)'!$BI14)","v":"n.d."},{"$f":"IF('[1]FISCAL(M)'!$BS14=\"\",\"\",'[1]FISCAL(M)'!$BS14)","v":"n.d."},{"$f":"IF('[1]FISCAL(M)'!$AZ14=\"\",\"\",'[1]FISCAL(M)'!$AZ14)","v":"n.d."},{"$f":"IF('[1]FISCAL(M)'!$BJ14=\"\",\"\",'[1]FISCAL(M)'!$BJ14)","v":"n.d."},{"$f":"IF('[1]FISCAL(M)'!$BT14=\"\",\"\",'[1]FISCAL(M)'!$BT14)","v":"n.d."},{"$f":"IF('[2]MONE(M)'!$AO14=\"\",\"\",'[2]MONE(M)'!$AO14)","v":"n.d."},{"$f":"IF('[3]MONE(M)'!$AO14=\"\",\"\",'[3]MONE(M)'!$AO14)","v":"n.d."},{"$f":"IF('[4]MONE(M)'!$AO14=\"\",\"\",'[4]MONE(M)'!$AO14)","v":"n.d."},{"$f":"IF('[5]MONE(M)'!$AO14=\"\",\"\",'[5]MONE(M)'!$AO14)","v":"n.d."},{"$f":"IF('[6]MONE(M)'!$AO14=\"\",\"\",'[6]MONE(M)'!$AO14)","v":"n.d."},{"$f":"IF('[7]MONE(M)'!$AO14=\"\",\"\",'[7]MONE(M)'!$AO14)","v":"n.d."},{"$f":"IF('[8]MONE(M)'!$AO14=\"\",\"\",'[8]MONE(M)'!$AO14)","v":"n.d."},"n.d.","n.d.","n.d.","n.d.","n.d.","n.d.","n.d.",{"$f":"IF('[1]FISCAL(M)'!$K14=\"\",\"\",'[1]FISCAL(M)'!$K14)","v":"n.d."},"n.d.","n.d.",{"$f":"IF('[1]FISCAL(M)'!$L14=\"\",\"\",'[1]FISCAL(M)'!$L14)","v":"n.d."},"n.d.","n.d.","n.d.","n.d.","n.d.","n.d.","n.d.","n.d.","n.d.","n.d.","n.d.","n.d.","n.d.","n.d.","n.d.","n.d.","n.d.","n.d."]
[1990,"junio ","1990-junio ",{"$f":"IF('[1]REAL IPC(M)'!$AL15=\"\",\"\",+'[1]REAL IPC(M)'!$AL15)","v":"n.d."},{"$f":"IF('[1]REAL IPC(M)'!$BE15=\"\",\"\",+'[1]REAL IPC(M)'!$BE15)","v":"n.d."},{"$f":"IF('[1]REAL IPC(M)'!$AM15=\"\",\"\",+'[1]REAL IPC(M)'!$AM15)","v":"n.d."},{"$f":"IF('[1]REAL IPC(M)'!$BI15=\"\",\"\",+'[1]REAL IPC(M)'!$BI15)","v":"n.d."},{"$f":"IF('[1]REAL IMAE(M)'!BJ15=\"\",\"\",'[1]REAL IMAE(M)'!BJ15)","v":"n.d."},{"$f":"IF('[1]REAL IMAE(M)'!BK15=\"\",\"\",'[1]REAL IMAE(M)'!BK15)","v":"n.d."},{"$f":"IF('[1]REAL IMAE(M)'!BN15=\"\",\"\",'[1]REAL IMAE(M)'!BN15)","v":"n.d."},{"$f":"IF('[1]REAL IMAE(M)'!BO15=\"\",\"\",'[1]REAL IMAE(M)'!BO15)","v":"n.d."},{"$f":"IF('[1]EXT RIN(M)'!$K15=\"\",\"\",'[1]EXT RIN(M)'!$K15)","v":"n.d."},"",{"$f":"IF('[1]EXT RIN(M)'!$L15=\"\",\"\",'[1]EXT RIN(M)'!$L15)","v":"n.d."},"",{"$f":"IF('[1]MONE(M)CARD'!EG15=\"\",\"\",'[1]MONE(M)CARD'!EG15)","v":"n.d."},{"$f":"IF('[1]MONE(M)CARD'!EK15=\"\",\"\",'[1]MONE(M)CARD'!EK15)","v":"n.d."},{"$f":"IF('[1]MONE(M)CARD'!EP15=\"\",\"\",'[1]MONE(M)CARD'!EP15)","v":"n.d."},{"$f":"IF('[1]MONE(M)CARD'!ES15=\"\",\"\",'[1]MONE(M)CARD'!ES15)","v":"n.d."},{"$f":"IF('[1]MONE(M)CARD'!EV15=\"\",\"\",'[1]MONE(M)CARD'!EV15)","v":"n.d."},{"$f":"IF('[1]MONE(M)CARD'!EZ15=\"\",\"\",'[1]MONE(M)CARD'!EZ15)","v":"n.d."},{"$f":"IF('[1]MONE(M)CAPARD'!FC15=\"\",\"\",'[1]MONE(M)CAPARD'!FC15)","v":"n.d."},{"$f":"IF('[1]MONE(M)CAPARD'!FG15=\"\",\"\",'[1]MONE(M)CAPARD'!FG15)","v":"n.d."},{"$f":"IF('[1]MONE(M)CAPARD'!FL15=\"\",\"\",'[1]MONE(M)CAPARD'!FL15)","v":"n.d."},{"$f":"IF('[1]MONE(M)CAPARD'!FO15=\"\",\"\",'[1]MONE(M)CAPARD'!FO15)","v":"n.d."},{"$f":"IF('[1]MONE(M)CAPARD'!FR15=\"\",\"\",'[1]MONE(M)CAPARD'!FR15)","v":"n.d."},{"$f":"IF('[1]MONE(M)CAPARD'!FV15=\"\",\"\",'[1]MONE(M)CAPARD'!FV15)","v":"n.d."},{"$f":"IF('[1]MONE(M)CARD'!FV15=\"\",\"\",'[1]MONE(M)CARD'!FV15)","v":""},{"$f":"IF('[1]MONE(M)CARD'!GD15=\"\",\"\",'[1]MONE(M)CARD'!GD15)","v":"n.d."},{"$f":"IF('[1]MONE(M)CARD'!GE15=\"\",\"\",'[1]MONE(M)CARD'!GE15)","v":"n.d."},"n.d.","n.d.","n.d.","n.d.","n.d.","n.d.","n.d.","n.d.",null,"n.d.","n.d.","n.d.","n.d.","n.d.",{"$f":"IF('[1]MONE(M)CAPARD'!GS15=\"\",\"\",'[1]MONE(M)CAPARD'!GS15)","v":"n.d."},{"$f":"IF('[1]MONE(M)CARD'!HA15=\"\",\"\",'[1]MONE(M)CAPARD'!HA15)","v":"n.d."},{"$f":"IF('[1]MONE(M)CAPARD'!HB15=\"\",\"\",'[1]MONE(M)CAPARD'!HB15)","v":"n.d."},"n.d.","n.d.","n.d.","n.d.","n.d.","n.d.","n.d.","n.d.","n.d.","n.d.","n.d.","n.d.","n.d.","n.d.",{"$f":"IF('[1]MONE(M)CAPARD'!AS15=\"\",\"\",'[1]MONE(M)CAPARD'!AS15)","v":"n.d."},{"$f":"IF('[1]MONE(M)CAPARD'!AT15=\"\",\"\",'[1]MONE(M)CAPARD'!AT15)","v":"n.a."},{"$f":"IF('[1]MONE(M)CAPARD'!AU15=\"\",\"\",'[1]MONE(M)CAPARD'!AU15)","v":"n.d."},{"$f":"IF('[1]MONE(M)CAPARD'!AV15=\"\",\"\",'[1]MONE(M)CAPARD'!AV15)","v":"n.d."},{"$f":"IF('[1]MONE(M)CAPARD'!AW15=\"\",\"\",'[1]MONE(M)CAPARD'!AW15)","v":"n.a."},{"$f":"IF('[1]MONE(M)CAPARD'!AX15=\"\",\"\",'[1]MONE(M)CAPARD'!AX15)","v":"n.d."},{"$f":"IF('[1]MONE(M)CAPARD'!AY15=\"\",\"\",'[1]MONE(M)CAPARD'!AY15)","v":"n.a."},{"$f":"IF('[1]FISCAL(M)'!$K15=\"\",\"\",'[1]FISCAL(M)'!$K15)","v":"n.d."},{"$f":"IF('[1]FISCAL(M)'!$L15=\"\",\"\",'[1]FISCAL(M)'!$L15)","v":"n.d."},{"$f":"IF('[1]FISCAL(M)'!$AY15=\"\",\"\",'[1]FISCAL(M)'!$AY15)","v":"n.d."},{"$f":"IF('[1]FISCAL(M)'!$BI15=\"\",\"\",'[1]FISCAL(M)'!$BI15)","v":"n.d."},{"$f":"IF('[1]FISCAL(M)'!$BS15=\"\",\"\",'[1]FISCAL(M)'!$BS15)","v":"n.d."},{"$f":"IF('[1]FISCAL(M)'!$AZ15=\"\",\"\",'[1]FISCAL(M)'!$AZ15)","v":"n.d."},{"$f":"IF('[1]FISCAL(M)'!$BJ15=\"\",\"\",'[1]FISCAL(M)'!$BJ15)","v":"n.d."},{"$f":"IF('[1]FISCAL(M)'!$BT15=\"\",\"\",'[1]FISCAL(M)'!$BT15)","v":"n.d."},{"$f":"IF('[2]MONE(M)'!$AO15=\"\",\"\",'[2]MONE(M)'!$AO15)","v":"n.d."},{"$f":"IF('[3]MONE(M)'!$AO15=\"\",\"\",'[3]MONE(M)'!$AO15)","v":"n.d."},{"$f":"IF('[4]MONE(M)'!$AO15=\"\",\"\",'[4]MONE(M)'!$AO15)","v":"n.d."},{"$f":"IF('[5]MONE(M)'!$AO15=\"\",\"\",'[5]MONE(M)'!$AO15)","v":"n.d."},{"$f":"IF('[6]MONE(M)'!$AO15=\"\",\"\",'[6]MONE(M)'!$AO15)","v":"n.d."},{"$f":"IF('[7]MONE(M)'!$AO15=\"\",\"\",'[7]MONE(M)'!$AO15)","v":"n.d."},{"$f":"IF('[8]MONE(M)'!$AO15=\"\",\"\",'[8]MONE(M)'!$AO15)","v":"n.d."},"n.d.","n.d.","n.d.","n.d.","n.d.","n.d.","n.d.",{"$f":"IF('[1]FISCAL(M)'!$K15=\"\",\"\",'[1]FISCAL(M)'!$K15)","v":"n.d."},"n.d.","n.d.",{"$f":"IF('[1]FISCAL(M)'!$L15=\"\",\"\",'[1]FISCAL(M)'!$L15)","v":"n.d."},"n.d.","n.d.","n.d.","n.d.","n.d.","n.d.","n.d.","n.d.","n.d.","n.d.","n.d.","n.d.","n.d.","n.d.","n.d.","n.d.","n.d.","n.d."]
[1990,"julio","1990-julio",{"$f":"IF('[1]REAL IPC(M)'!$AL16=\"\",\"\",+'[1]REAL IPC(M)'!$AL16)","v":"n.d."},{"$f":"IF('[1]REAL IPC(M)'!$BE16=\"\",\"\",+'[1]REAL IPC(M)'!$BE16)","v":"n.d."},{"$f":"IF('[1]REAL IPC(M)'!$AM16=\"\",\"\",+'[1]REAL IPC(M)'!$AM16)","v":"n.d."},{"$f":"IF('[1]REAL IPC(M)'!$BI16=\"\",\"\",+'[1]REAL IPC(M)'!$BI16)","v":"n.d."},{"$f":"IF('[1]REAL IMAE(M)'!BJ16=\"\",\"\",'[1]REAL IMAE(M)'!BJ16)","v":"n.d."},{"$f":"IF('[1]REAL IMAE(M)'!BK16=\"\",\"\",'[1]REAL IMAE(M)'!BK16)","v":"n.d."},{"$f":"IF('[1]REAL IMAE(M)'!BN16=\"\",\"\",'[1]REAL IMAE(M)'!BN16)","v":"n.d."},{"$f":"IF('[1]REAL IMAE(M)'!BO16=\"\",\"\",'[1]REAL IMAE(M)'!BO16)","v":"n.d."},{"$f":"IF('[1]EXT RIN(M)'!$K16=\"\",\"\",'[1]EXT RIN(M)'!$K16)","v":"n.d."},"",{"$f":"IF('[1]EXT RIN(M)'!$L16=\"\",\"\",'[1]EXT RIN(M)'!$L16)","v":"n.d."},"",{"$f":"IF('[1]MONE(M)CARD'!EG16=\"\",\"\",'[1]MONE(M)CARD'!EG16)","v":"n.d."},{"$f":"IF('[1]MONE(M)CARD'!EK16=\"\",\"\",'[1]MONE(M)CARD'!EK16)","v":"n.d."},{"$f":"IF('[1]MONE(M)CARD'!EP16=\"\",\"\",'[1]MONE(M)CARD'!EP16)","v":"n.d."},{"$f":"IF('[1]MONE(M)CARD'!ES16=\"\",\"\",'[1]MONE(M)CARD'!ES16)","v":"n.d."},{"$f":"IF('[1]MONE(M)CARD'!EV16=\"\",\"\",'[1]MONE(M)CARD'!EV16)","v":"n.d."},{"$f":"IF('[1]MONE(M)CARD'!EZ16=\"\",\"\",'[1]MONE(M)CARD'!EZ16)","v":"n.d."},{"$f":"IF('[1]MONE(M)CAPARD'!FC16=\"\",\"\",'[1]MONE(M)CAPARD'!FC16)","v":"n.d."},{"$f":"IF('[1]MONE(M)CAPARD'!FG16=\"\",\"\",'[1]MONE(M)CAPARD'!FG16)","v":"n.d."},{"$f":"IF('[1]MONE(M)CAPARD'!FL16=\"\",\"\",'[1]MONE(M)CAPARD'!FL16)","v":"n.d."},{"$f":"IF('[1]MONE(M)CAPARD'!FO16=\"\",\"\",'[1]MONE(M)CAPARD'!FO16)","v":"n.d."},{"$f":"IF('[1]MONE(M)CAPARD'!FR16=\"\",\"\",'[1]MONE(M)CAPARD'!FR16)","v":"n.d."},{"$f":"IF('[1]MONE(M)CAPARD'!FV16=\"\",\"\",'[1]MONE(M)CAPARD'!FV16)","v":"n.d."},{"$f":"IF('[1]MONE(M)CARD'!FV16=\"\",\"\",'[1]MONE(M)CARD'!FV16)","v":""},{"$f":"IF('[1]MONE(M)CARD'!GD16=\"\",\"\",'[1]MONE(M)CARD'!GD16)","v":"n.d."},{"$f":"IF('[1]MONE(M)CARD'!GE16=\"\",\"\",'[1]MONE(M)CARD'!GE16)","v":"n.d."},"n.d.","n.d.","n.d.","n.d.","n.d.","n.d.","n.d.","n.d.",null,"n.d.","n.d.","n.d.","n.d.","n.d.",{"$f":"IF('[1]MONE(M)CAPARD'!GS16=\"\",\"\",'[1]MONE(M)CAPARD'!GS16)","v":"n.d."},{"$f":"IF('[1]MONE(M)CARD'!HA16=\"\",\"\",'[1]MONE(M)CAPARD'!HA16)","v":"n.d."},{"$f":"IF('[1]MONE(M)CAPARD'!HB16=\"\",\"\",'[1]MONE(M)CAPARD'!HB16)","v":"n.d."},"n.d.","n.d.","n.d.","n.d.","n.d.","n.d.","n.d.","n.d.","n.d.","n.d.","n.d.","n.d.","n.d.","n.d.",{"$f":"IF('[1]MONE(M)CAPARD'!AS16=\"\",\"\",'[1]MONE(M)CAPARD'!AS16)","v":"n.d."},{"$f":"IF('[1]MONE(M)CAPARD'!AT16=\"\",\"\",'[1]MONE(M)CAPARD'!AT16)","v":"n.a."},{"$f":"IF('[1]MONE(M)CAPARD'!AU16=\"\",\"\",'[1]MONE(M)CAPARD'!AU16)","v":"n.d."},{"$f":"IF('[1]MONE(M)CAPARD'!AV16=\"\",\"\",'[1]MONE(M)CAPARD'!AV16)","v":"n.d."},{"$f":"IF('[1]MONE(M)CAPARD'!AW16=\"\",\"\",'[1]MONE(M)CAPARD'!AW16)","v":"n.a."},{"$f":"IF('[1]MONE(M)CAPARD'!AX16=\"\",\"\",'[1]MONE(M)CAPARD'!AX16)","v":"n.d."},{"$f":"IF('[1]MONE(M)CAPARD'!AY16=\"\",\"\",'[1]MONE(M)CAPARD'!AY16)","v":"n.a."},{"$f":"IF('[1]FISCAL(M)'!$K16=\"\",\"\",'[1]FISCAL(M)'!$K16)","v":"n.d."},{"$f":"IF('[1]FISCAL(M)'!$L16=\"\",\"\",'[1]FISCAL(M)'!$L16)","v":"n.d."},{"$f":"IF('[1]FISCAL(M)'!$AY16=\"\",\"\",'[1]FISCAL(M)'!$AY16)","v":"n.d."},{"$f":"IF('[1]FISCAL(M)'!$BI16=\"\",\"\",'[1]FISCAL(M)'!$BI16)","v":"n.d."},{"$f":"IF('[1]FISCAL(M)'!$BS16=\"\",\"\",'[1]FISCAL(M)'!$BS16)","v":"n.d."},{"$f":"IF('[1]FISCAL(M)'!$AZ16=\"\",\"\",'[1]FISCAL(M)'!$AZ16)","v":"n.d."},{"$f":"IF('[1]FISCAL(M)'!$BJ16=\"\",\"\",'[1]FISCAL(M)'!$BJ16)","v":"n.d."},{"$f":"IF('[1]FISCAL(M)'!$BT16=\"\",\"\",'[1]FISCAL(M)'!$BT16)","v":"n.d."},{"$f":"IF('[2]MONE(M)'!$AO16=\"\",\"\",'[2]MONE(M)'!$AO16)","v":"n.d."},{"$f":"IF('[3]MONE(M)'!$AO16=\"\",\"\",'[3]MONE(M)'!$AO16)","v":"n.d."},{"$f":"IF('[4]MONE(M)'!$AO16=\"\",\"\",'[4]MONE(M)'!$AO16)","v":"n.d."},{"$f":"IF('[5]MONE(M)'!$AO16=\"\",\"\",'[5]MONE(M)'!$AO16)","v":"n.d."},{"$f":"IF('[6]MONE(M)'!$AO16=\"\",\"\",'[6]MONE(M)'!$AO16)","v":"n.d."},{"$f":"IF('[7]MONE(M)'!$AO16=\"\",\"\",'[7]MONE(M)'!$AO16)","v":"n.d."},{"$f":"IF('[8]MONE(M)'!$AO16=\"\",\"\",'[8]MONE(M)'!$AO16)","v":"n.d."},"n.d.","n.d.","n.d.","n.d.","n.d.","n.d.","n.d.",{"$f":"IF('[1]FISCAL(M)'!$K16=\"\",\"\",'[1]FISCAL(M)'!$K16)","v":"n.d."},"n.d.","n.d.",{"$f":"IF('[1]FISCAL(M)'!$L16=\"\",\"\",'[1]FISCAL(M)'!$L16)","v":"n.d."},"n.d.","n.d.","n.d.","n.d.","n.d.","n.d.","n.d.","n.d.","n.d.","n.d.","n.d.","n.d.","n.d.","n.d.","n.d.","n.d.","n.d.","n.d."]
[1990,"agosto","1990-agosto",{"$f":"IF('[1]REAL IPC(M)'!$AL17=\"\",\"\",+'[1]REAL IPC(M)'!$AL17)","v":"n.d."},{"$f":"IF('[1]REAL IPC(M)'!$BE17=\"\",\"\",+'[1]REAL IPC(M)'!$BE17)","v":"n.d."},{"$f":"IF('[1]REAL IPC(M)'!$AM17=\"\",\"\",+'[1]REAL IPC(M)'!$AM17)","v":"n.d."},{"$f":"IF('[1]REAL IPC(M)'!$BI17=\"\",\"\",+'[1]REAL IPC(M)'!$BI17)","v":"n.d."},{"$f":"IF('[1]REAL IMAE(M)'!BJ17=\"\",\"\",'[1]REAL IMAE(M)'!BJ17)","v":"n.d."},{"$f":"IF('[1]REAL IMAE(M)'!BK17=\"\",\"\",'[1]REAL IMAE(M)'!BK17)","v":"n.d."},{"$f":"IF('[1]REAL IMAE(M)'!BN17=\"\",\"\",'[1]REAL IMAE(M)'!BN17)","v":"n.d."},{"$f":"IF('[1]REAL IMAE(M)'!BO17=\"\",\"\",'[1]REAL IMAE(M)'!BO17)","v":"n.d."},{"$f":"IF('[1]EXT RIN(M)'!$K17=\"\",\"\",'[1]EXT RIN(M)'!$K17)","v":"n.d."},"",{"$f":"IF('[1]EXT RIN(M)'!$L17=\"\",\"\",'[1]EXT RIN(M)'!$L17)","v":"n.d."},"",{"$f":"IF('[1]MONE(M)CARD'!EG17=\"\",\"\",'[1]MONE(M)CARD'!EG17)","v":"n.d."},{"$f":"IF('[1]MONE(M)CARD'!EK17=\"\",\"\",'[1]MONE(M)CARD'!EK17)","v":"n.d."},{"$f":"IF('[1]MONE(M)CARD'!EP17=\"\",\"\",'[1]MONE(M)CARD'!EP17)","v":"n.d."},{"$f":"IF('[1]MONE(M)CARD'!ES17=\"\",\"\",'[1]MONE(M)CARD'!ES17)","v":"n.d."},{"$f":"IF('[1]MONE(M)CARD'!EV17=\"\",\"\",'[1]MONE(M)CARD'!EV17)","v":"n.d."},{"$f":"IF('[1]MONE(M)CARD'!EZ17=\"\",\"\",'[1]MONE(M)CARD'!EZ17)","v":"n.d."},{"$f":"IF('[1]MONE(M)CAPARD'!FC17=\"\",\"\",'[1]MONE(M)CAPARD'!FC17)","v":"n.d."},{"$f":"IF('[1]MONE(M)CAPARD'!FG17=\"\",\"\",'[1]MONE(M)CAPARD'!FG17)","v":"n.d."},{"$f":"IF('[1]MONE(M)CAPARD'!FL17=\"\",\"\",'[1]MONE(M)CAPARD'!FL17)","v":"n.d."},{"$f":"IF('[1]MONE(M)CAPARD'!FO17=\"\",\"\",'[1]MONE(M)CAPARD'!FO17)","v":"n.d."},{"$f":"IF('[1]MONE(M)CAPARD'!FR17=\"\",\"\",'[1]MONE(M)CAPARD'!FR17)","v":"n.d."},{"$f":"IF('[1]MONE(M)CAPARD'!FV17=\"\",\"\",'[1]MONE(M)CAPARD'!FV17)","v":"n.d."},{"$f":"IF('[1]MONE(M)CARD'!FV17=\"\",\"\",'[1]MONE(M)CARD'!FV17)","v":""},{"$f":"IF('[1]MONE(M)CARD'!GD17=\"\",\"\",'[1]MONE(M)CARD'!GD17)","v":"n.d."},{"$f":"IF('[1]MONE(M)CARD'!GE17=\"\",\"\",'[1]MONE(M)CARD'!GE17)","v":"n.d."},"n.d.","n.d.","n.d.","n.d.","n.d.","n.d.","n.d.","n.d.",null,"n.d.","n.d.","n.d.","n.d.","n.d.",{"$f":"IF('[1]MONE(M)CAPARD'!GS17=\"\",\"\",'[1]MONE(M)CAPARD'!GS17)","v":"n.d."},{"$f":"IF('[1]MONE(M)CARD'!HA17=\"\",\"\",'[1]MONE(M)CAPARD'!HA17)","v":"n.d."},{"$f":"IF('[1]MONE(M)CAPARD'!HB17=\"\",\"\",'[1]MONE(M)CAPARD'!HB17)","v":"n.d."},"n.d.","n.d.","n.d.","n.d.","n.d.","n.d.","n.d.","n.d.","n.d.","n.d.","n.d.","n.d.","n.d.","n.d.",{"$f":"IF('[1]MONE(M)CAPARD'!AS17=\"\",\"\",'[1]MONE(M)CAPARD'!AS17)","v":"n.d."},{"$f":"IF('[1]MONE(M)CAPARD'!AT17=\"\",\"\",'[1]MONE(M)CAPARD'!AT17)","v":"n.a."},{"$f":"IF('[1]MONE(M)CAPARD'!AU17=\"\",\"\",'[1]MONE(M)CAPARD'!AU17)","v":"n.d."},{"$f":"IF('[1]MONE(M)CAPARD'!AV17=\"\",\"\",'[1]MONE(M)CAPARD'!AV17)","v":"n.d."},{"$f":"IF('[1]MONE(M)CAPARD'!AW17=\"\",\"\",'[1]MONE(M)CAPARD'!AW17)","v":"n.a."},{"$f":"IF('[1]MONE(M)CAPARD'!AX17=\"\",\"\",'[1]MONE(M)CAPARD'!AX17)","v":"n.d."},{"$f":"IF('[1]MONE(M)CAPARD'!AY17=\"\",\"\",'[1]MONE(M)CAPARD'!AY17)","v":"n.a."},{"$f":"IF('[1]FISCAL(M)'!$K17=\"\",\"\",'[1]FISCAL(M)'!$K17)","v":"n.d."},{"$f":"IF('[1]FISCAL(M)'!$L17=\"\",\"\",'[1]FISCAL(M)'!$L17)","v":"n.d."},{"$f":"IF('[1]FISCAL(M)'!$AY17=\"\",\"\",'[1]FISCAL(M)'!$AY17)","v":"n.d."},{"$f":"IF('[1]FISCAL(M)'!$BI17=\"\",\"\",'[1]FISCAL(M)'!$BI17)","v":"n.d."},{"$f":"IF('[1]FISCAL(M)'!$BS17=\"\",\"\",'[1]FISCAL(M)'!$BS17)","v":"n.d."},{"$f":"IF('[1]FISCAL(M)'!$AZ17=\"\",\"\",'[1]FISCAL(M)'!$AZ17)","v":"n.d."},{"$f":"IF('[1]FISCAL(M)'!$BJ17=\"\",\"\",'[1]FISCAL(M)'!$BJ17)","v":"n.d."},{"$f":"IF('[1]FISCAL(M)'!$BT17=\"\",\"\",'[1]FISCAL(M)'!$BT17)","v":"n.d."},{"$f":"IF('[2]MONE(M)'!$AO17=\"\",\"\",'[2]MONE(M)'!$AO17)","v":"n.d."},{"$f":"IF('[3]MONE(M)'!$AO17=\"\",\"\",'[3]MONE(M)'!$AO17)","v":"n.d."},{"$f":"IF('[4]MONE(M)'!$AO17=\"\",\"\",'[4]MONE(M)'!$AO17)","v":"n.d."},{"$f":"IF('[5]MONE(M)'!$AO17=\"\",\"\",'[5]MONE(M)'!$AO17)","v":"n.d."},{"$f":"IF('[6]MONE(M)'!$AO17=\"\",\"\",'[6]MONE(M)'!$AO17)","v":"n.d."},{"$f":"IF('[7]MONE(M)'!$AO17=\"\",\"\",'[7]MONE(M)'!$AO17)","v":"n.d."},{"$f":"IF('[8]MONE(M)'!$AO17=\"\",\"\",'[8]MONE(M)'!$AO17)","v":"n.d."},"n.d.","n.d.","n.d.","n.d.","n.d.","n.d.","n.d.",{"$f":"IF('[1]FISCAL(M)'!$K17=\"\",\"\",'[1]FISCAL(M)'!$K17)","v":"n.d."},"n.d.","n.d.",{"$f":"IF('[1]FISCAL(M)'!$L17=\"\",\"\",'[1]FISCAL(M)'!$L17)","v":"n.d."},"n.d.","n.d.","n.d.","n.d.","n.d.","n.d.","n.d.","n.d.","n.d.","n.d.","n.d.","n.d.","n.d.","n.d.","n.d.","n.d.","n.d.","n.d."]
[1990,"septiembre","1990-septiembre",{"$f":"IF('[1]REAL IPC(M)'!$AL18=\"\",\"\",+'[1]REAL IPC(M)'!$AL18)","v":"n.d."},{"$f":"IF('[1]REAL IPC(M)'!$BE18=\"\",\"\",+'[1]REAL IPC(M)'!$BE18)","v":"n.d."},{"$f":"IF('[1]REAL IPC(M)'!$AM18=\"\",\"\",+'[1]REAL IPC(M)'!$AM18)","v":"n.d."},{"$f":"IF('[1]REAL IPC(M)'!$BI18=\"\",\"\",+'[1]REAL IPC(M)'!$BI18)","v":"n.d."},{"$f":"IF('[1]REAL IMAE(M)'!BJ18=\"\",\"\",'[1]REAL IMAE(M)'!BJ18)","v":"n.d."},{"$f":"IF('[1]REAL IMAE(M)'!BK18=\"\",\"\",'[1]REAL IMAE(M)'!BK18)","v":"n.d."},{"$f":"IF('[1]REAL IMAE(M)'!BN18=\"\",\"\",'[1]REAL IMAE(M)'!BN18)","v":"n.d."},{"$f":"IF('[1]REAL IMAE(M)'!BO18=\"\",\"\",'[1]REAL IMAE(M)'!BO18)","v":"n.d."},{"$f":"IF('[1]EXT RIN(M)'!$K18=\"\",\"\",'[1]EXT RIN(M)'!$K18)","v":"n.d."},"",{"$f":"IF('[1]EXT RIN(M)'!$L18=\"\",\"\",'[1]EXT RIN(M)'!$L18)","v":"n.d."},"",{"$f":"IF('[1]MONE(M)CARD'!EG18=\"\",\"\",'[1]MONE(M)CARD'!EG18)","v":"n.d."},{"$f":"IF('[1]MONE(M)CARD'!EK18=\"\",\"\",'[1]MONE(M)CARD'!EK18)","v":"n.d."},{"$f":"IF('[1]MONE(M)CARD'!EP18=\"\",\"\",'[1]MONE(M)CARD'!EP18)","v":"n.d."},{"$f":"IF('[1]MONE(M)CARD'!ES18=\"\",\"\",'[1]MONE(M)CARD'!ES18)","v":"n.d."},{"$f":"IF('[1]MONE(M)CARD'!EV18=\"\",\"\",'[1]MONE(M)CARD'!EV18)","v":"n.d."},{"$f":"IF('[1]MONE(M)CARD'!EZ18=\"\",\"\",'[1]MONE(M)CARD'!EZ18)","v":"n.d."},{"$f":"IF('[1]MONE(M)CAPARD'!FC18=\"\",\"\",'[1]MONE(M)CAPARD'!FC18)","v":"n.d."},{"$f":"IF('[1]MONE(M)CAPARD'!FG18=\"\",\"\",'[1]MONE(M)CAPARD'!FG18)","v":"n.d."},{"$f":"IF('[1]MONE(M)CAPARD'!FL18=\"\",\"\",'[1]MONE(M)CAPARD'!FL18)","v":"n.d."},{"$f":"IF('[1]MONE(M)CAPARD'!FO18=\"\",\"\",'[1]MONE(M)CAPARD'!FO18)","v":"n.d."},{"$f":"IF('[1]MONE(M)CAPARD'!FR18=\"\",\"\",'[1]MONE(M)CAPARD'!FR18)","v":"n.d."},{"$f":"IF('[1]MONE(M)CAPARD'!FV18=\"\",\"\",'[1]MONE(M)CAPARD'!FV18)","v":"n.d."},{"$f":"IF('[1]MONE(M)CARD'!FV18=\"\",\"\",'[1]MONE(M)CARD'!FV18)","v":""},{"$f":"IF('[1]MONE(M)CARD'!GD18=\"\",\"\",'[1]MONE(M)CARD'!GD18)","v":"n.d."},{"$f":"IF('[1]MONE(M)CARD'!GE18=\"\",\"\",'[1]MONE(M)CARD'!GE18)","v":"n.d."},"n.d.","n.d.","n.d.","n.d.","n.d.","n.d.","n.d.","n.d.",null,"n.d.","n.d.","n.d.","n.d.","n.d.",{"$f":"IF('[1]MONE(M)CAPARD'!GS18=\"\",\"\",'[1]MONE(M)CAPARD'!GS18)","v":"n.d."},{"$f":"IF('[1]MONE(M)CARD'!HA18=\"\",\"\",'[1]MONE(M)CAPARD'!HA18)","v":"n.d."},{"$f":"IF('[1]MONE(M)CAPARD'!HB18=\"\",\"\",'[1]MONE(M)CAPARD'!HB18)","v":"n.d."},"n.d.","n.d.","n.d.","n.d.","n.d.","n.d.","n.d.","n.d.","n.d.","n.d.","n.d.","n.d.","n.d.","n.d.",{"$f":"IF('[1]MONE(M)CAPARD'!AS18=\"\",\"\",'[1]MONE(M)CAPARD'!AS18)","v":"n.d."},{"$f":"IF('[1]MONE(M)CAPARD'!AT18=\"\",\"\",'[1]MONE(M)CAPARD'!AT18)","v":"n.a."},{"$f":"IF('[1]MONE(M)CAPARD'!AU18=\"\",\"\",'[1]MONE(M)CAPARD'!AU18)","v":"n.d."},{"$f":"IF('[1]MONE(M)CAPARD'!AV18=\"\",\"\",'[1]MONE(M)CAPARD'!AV18)","v":"n.d."},{"$f":"IF('[1]MONE(M)CAPARD'!AW18=\"\",\"\",'[1]MONE(M)CAPARD'!AW18)","v":"n.a."},{"$f":"IF('[1]MONE(M)CAPARD'!AX18=\"\",\"\",'[1]MONE(M)CAPARD'!AX18)","v":"n.d."},{"$f":"IF('[1]MONE(M)CAPARD'!AY18=\"\",\"\",'[1]MONE(M)CAPARD'!AY18)","v":"n.a."},{"$f":"IF('[1]FISCAL(M)'!$K18=\"\",\"\",'[1]FISCAL(M)'!$K18)","v":"n.d."},{"$f":"IF('[1]FISCAL(M)'!$L18=\"\",\"\",'[1]FISCAL(M)'!$L18)","v":"n.d."},{"$f":"IF('[1]FISCAL(M)'!$AY18=\"\",\"\",'[1]FISCAL(M)'!$AY18)","v":"n.d."},{"$f":"IF('[1]FISCAL(M)'!$BI18=\"\",\"\",'[1]FISCAL(M)'!$BI18)","v":"n.d."},{"$f":"IF('[1]FISCAL(M)'!$BS18=\"\",\"\",'[1]FISCAL(M)'!$BS18)","v":"n.d."},{"$f":"IF('[1]FISCAL(M)'!$AZ18=\"\",\"\",'[1]FISCAL(M)'!$AZ18)","v":"n.d."},{"$f":"IF('[1]FISCAL(M)'!$BJ18=\"\",\"\",'[1]FISCAL(M)'!$BJ18)","v":"n.d."},{"$f":"IF('[1]FISCAL(M)'!$BT18=\"\",\"\",'[1]FISCAL(M)'!$BT18)","v":"n.d."},{"$f":"IF('[2]MONE(M)'!$AO18=\"\",\"\",'[2]MONE(M)'!$AO18)","v":"n.d."},{"$f":"IF('[3]MONE(M)'!$AO18=\"\",\"\",'[3]MONE(M)'!$AO18)","v":"n.d."},{"$f":"IF('[4]MONE(M)'!$AO18=\"\",\"\",'[4]MONE(M)'!$AO18)","v":"n.d."},{"$f":"IF('[5]MONE(M)'!$AO18=\"\",\"\",'[5]MONE(M)'!$AO18)","v":"n.d."},{"$f":"IF('[6]MONE(M)'!$AO18=\"\",\"\",'[6]MONE(M)'!$AO18)","v":"n.d."},{"$f":"IF('[7]MONE(M)'!$AO18=\"\",\"\",'[7]MONE(M)'!$AO18)","v":"n.d."},{"$f":"IF('[8]MONE(M)'!$AO18=\"\",\"\",'[8]MONE(M)'!$AO18)","v":"n.d."},"n.d.","n.d.","n.d.","n.d.","n.d.","n.d.","n.d.",{"$f":"IF('[1]FISCAL(M)'!$K18=\"\",\"\",'[1]FISCAL(M)'!$K18)","v":"n.d."},"n.d.","n.d.",{"$f":"IF('[1]FISCAL(M)'!$L18=\"\",\"\",'[1]FISCAL(M)'!$L18)","v":"n.d."},"n.d.","n.d.","n.d.","n.d.","n.d.","n.d.","n.d.","n.d.","n.d.","n.d.","n.d.","n.d.","n.d.","n.d.","n.d.","n.d.","n.d.","n.d."]
[1990,"octubre","1990-octubre",{"$f":"IF('[1]REAL IPC(M)'!$AL19=\"\",\"\",+'[1]REAL IPC(M)'!$AL19)","v":"n.d."},{"$f":"IF('[1]REAL IPC(M)'!$BE19=\"\",\"\",+'[1]REAL IPC(M)'!$BE19)","v":"n.d."},{"$f":"IF('[1]REAL IPC(M)'!$AM19=\"\",\"\",+'[1]REAL IPC(M)'!$AM19)","v":"n.d."},{"$f":"IF('[1]REAL IPC(M)'!$BI19=\"\",\"\",+'[1]REAL IPC(M)'!$BI19)","v":"n.d."},{"$f":"IF('[1]REAL IMAE(M)'!BJ19=\"\",\"\",'[1]REAL IMAE(M)'!BJ19)","v":"n.d."},{"$f":"IF('[1]REAL IMAE(M)'!BK19=\"\",\"\",'[1]REAL IMAE(M)'!BK19)","v":"n.d."},{"$f":"IF('[1]REAL IMAE(M)'!BN19=\"\",\"\",'[1]REAL IMAE(M)'!BN19)","v":"n.d."},{"$f":"IF('[1]REAL IMAE(M)'!BO19=\"\",\"\",'[1]REAL IMAE(M)'!BO19)","v":"n.d."},{"$f":"IF('[1]EXT RIN(M)'!$K19=\"\",\"\",'[1]EXT RIN(M)'!$K19)","v":"n.d."},"",{"$f":"IF('[1]EXT RIN(M)'!$L19=\"\",\"\",'[1]EXT RIN(M)'!$L19)","v":"n.d."},"",{"$f":"IF('[1]MONE(M)CARD'!EG19=\"\",\"\",'[1]MONE(M)CARD'!EG19)","v":"n.d."},{"$f":"IF('[1]MONE(M)CARD'!EK19=\"\",\"\",'[1]MONE(M)CARD'!EK19)","v":"n.d."},{"$f":"IF('[1]MONE(M)CARD'!EP19=\"\",\"\",'[1]MONE(M)CARD'!EP19)","v":"n.d."},{"$f":"IF('[1]MONE(M)CARD'!ES19=\"\",\"\",'[1]MONE(M)CARD'!ES19)","v":"n.d."},{"$f":"IF('[1]MONE(M)CARD'!EV19=\"\",\"\",'[1]MONE(M)CARD'!EV19)","v":"n.d."},{"$f":"IF('[1]MONE(M)CARD'!EZ19=\"\",\"\",'[1]MONE(M)CARD'!EZ19)","v":"n.d."},{"$f":"IF('[1]MONE(M)CAPARD'!FC19=\"\",\"\",'[1]MONE(M)CAPARD'!FC19)","v":"n.d."},{"$f":"IF('[1]MONE(M)CAPARD'!FG19=\"\",\"\",'[1]MONE(M)CAPARD'!FG19)","v":"n.d."},{"$f":"IF('[1]MONE(M)CAPARD'!FL19=\"\",\"\",'[1]MONE(M)CAPARD'!FL19)","v":"n.d."},{"$f":"IF('[1]MONE(M)CAPARD'!FO19=\"\",\"\",'[1]MONE(M)CAPARD'!FO19)","v":"n.d."},{"$f":"IF('[1]MONE(M)CAPARD'!FR19=\"\",\"\",'[1]MONE(M)CAPARD'!FR19)","v":"n.d."},{"$f":"IF('[1]MONE(M)CAPARD'!FV19=\"\",\"\",'[1]MONE(M)CAPARD'!FV19)","v":"n.d."},{"$f":"IF('[1]MONE(M)CARD'!FV19=\"\",\"\",'[1]MONE(M)CARD'!FV19)","v":""},{"$f":"IF('[1]MONE(M)CARD'!GD19=\"\",\"\",'[1]MONE(M)CARD'!GD19)","v":"n.d."},{"$f":"IF('[1]MONE(M)CARD'!GE19=\"\",\"\",'[1]MONE(M)CARD'!GE19)","v":"n.d."},"n.d.","n.d.","n.d.","n.d.","n.d.","n.d.","n.d.","n.d.",null,"n.d.","n.d.","n.d.","n.d.","n.d.",{"$f":"IF('[1]MONE(M)CAPARD'!GS19=\"\",\"\",'[1]MONE(M)CAPARD'!GS19)","v":"n.d."},{"$f":"IF('[1]MONE(M)CARD'!HA19=\"\",\"\",'[1]MONE(M)CAPARD'!HA19)","v":"n.d."},{"$f":"IF('[1]MONE(M)CAPARD'!HB19=\"\",\"\",'[1]MONE(M)CAPARD'!HB19)","v":"n.d."},"n.d.","n.d.","n.d.","n.d.","n.d.","n.d.","n.d.","n.d.","n.d.","n.d.","n.d.","n.d.","n.d.","n.d.",{"$f":"IF('[1]MONE(M)CAPARD'!AS19=\"\",\"\",'[1]MONE(M)CAPARD'!AS19)","v":"n.d."},{"$f":"IF('[1]MONE(M)CAPARD'!AT19=\"\",\"\",'[1]MONE(M)CAPARD'!AT19)","v":"n.a."},{"$f":"IF('[1]MONE(M)CAPARD'!AU19=\"\",\"\",'[1]MONE(M)CAPARD'!AU19)","v":"n.d."},{"$f":"IF('[1]MONE(M)CAPARD'!AV19=\"\",\"\",'[1]MONE(M)CAPARD'!AV19)","v":"n.d."},{"$f":"IF('[1]MONE(M)CAPARD'!AW19=\"\",\"\",'[1]MONE(M)CAPARD'!AW19)","v":"n.a."},{"$f":"IF('[1]MONE(M)CAPARD'!AX19=\"\",\"\",'[1]MONE(M)CAPARD'!AX19)","v":"n.d."},{"$f":"IF('[1]MONE(M)CAPARD'!AY19=\"\",\"\",'[1]MONE(M)CAPARD'!AY19)","v":"n.a."},{"$f":"IF('[1]FISCAL(M)'!$K19=\"\",\"\",'[1]FISCAL(M)'!$K19)","v":"n.d."},{"$f":"IF('[1]FISCAL(M)'!$L19=\"\",\"\",'[1]FISCAL(M)'!$L19)","v":"n.d."},{"$f":"IF('[1]FISCAL(M)'!$AY19=\"\",\"\",'[1]FISCAL(M)'!$AY19)","v":"n.d."},{"$f":"IF('[1]FISCAL(M)'!$BI19=\"\",\"\",'[1]FISCAL(M)'!$BI19)","v":"n.d."},{"$f":"IF('[1]FISCAL(M)'!$BS19=\"\",\"\",'[1]FISCAL(M)'!$BS19)","v":"n.d."},{"$f":"IF('[1]FISCAL(M)'!$AZ19=\"\",\"\",'[1]FISCAL(M)'!$AZ19)","v":"n.d."},{"$f":"IF('[1]FISCAL(M)'!$BJ19=\"\",\"\",'[1]FISCAL(M)'!$BJ19)","v":"n.d."},{"$f":"IF('[1]FISCAL(M)'!$BT19=\"\",\"\",'[1]FISCAL(M)'!$BT19)","v":"n.d."},{"$f":"IF('[2]MONE(M)'!$AO19=\"\",\"\",'[2]MONE(M)'!$AO19)","v":"n.d."},{"$f":"IF('[3]MONE(M)'!$AO19=\"\",\"\",'[3]MONE(M)'!$AO19)","v":"n.d."},{"$f":"IF('[4]MONE(M)'!$AO19=\"\",\"\",'[4]MONE(M)'!$AO19)","v":"n.d."},{"$f":"IF('[5]MONE(M)'!$AO19=\"\",\"\",'[5]MONE(M)'!$AO19)","v":"n.d."},{"$f":"IF('[6]MONE(M)'!$AO19=\"\",\"\",'[6]MONE(M)'!$AO19)","v":"n.d."},{"$f":"IF('[7]MONE(M)'!$AO19=\"\",\"\",'[7]MONE(M)'!$AO19)","v":"n.d."},{"$f":"IF('[8]MONE(M)'!$AO19=\"\",\"\",'[8]MONE(M)'!$AO19)","v":"n.d."},"n.d.","n.d.","n.d.","n.d.","n.d.","n.d.","n.d.",{"$f":"IF('[1]FISCAL(M)'!$K19=\"\",\"\",'[1]FISCAL(M)'!$K19)","v":"n.d."},"n.d.","n.d.",{"$f":"IF('[1]FISCAL(M)'!$L19=\"\",\"\",'[1]FISCAL(M)'!$L19)","v":"n.d."},"n.d.","n.d.","n.d.","n.d.","n.d.","n.d.","n.d.","n.d.","n.d.","n.d.","n.d.","n.d.","n.d.","n.d.","n.d.","n.d.","n.d.","n.d."]
[1990,"noviembre","1990-noviembre",{"$f":"IF('[1]REAL IPC(M)'!$AL20=\"\",\"\",+'[1]REAL IPC(M)'!$AL20)","v":"n.d."},{"$f":"IF('[1]REAL IPC(M)'!$BE20=\"\",\"\",+'[1]REAL IPC(M)'!$BE20)","v":"n.d."},{"$f":"IF('[1]REAL IPC(M)'!$AM20=\"\",\"\",+'[1]REAL IPC(M)'!$AM20)","v":"n.d."},{"$f":"IF('[1]REAL IPC(M)'!$BI20=\"\",\"\",+'[1]REAL IPC(M)'!$BI20)","v":"n.d."},{"$f":"IF('[1]REAL IMAE(M)'!BJ20=\"\",\"\",'[1]REAL IMAE(M)'!BJ20)","v":"n.d."},{"$f":"IF('[1]REAL IMAE(M)'!BK20=\"\",\"\",'[1]REAL IMAE(M)'!BK20)","v":"n.d."},{"$f":"IF('[1]REAL IMAE(M)'!BN20=\"\",\"\",'[1]REAL IMAE(M)'!BN20)","v":"n.d."},{"$f":"IF('[1]REAL IMAE(M)'!BO20=\"\",\"\",'[1]REAL IMAE(M)'!BO20)","v":"n.d."},{"$f":"IF('[1]EXT RIN(M)'!$K20=\"\",\"\",'[1]EXT RIN(M)'!$K20)","v":"n.d."},"",{"$f":"IF('[1]EXT RIN(M)'!$L20=\"\",\"\",'[1]EXT RIN(M)'!$L20)","v":"n.d."},"",{"$f":"IF('[1]MONE(M)CARD'!EG20=\"\",\"\",'[1]MONE(M)CARD'!EG20)","v":"n.d."},{"$f":"IF('[1]MONE(M)CARD'!EK20=\"\",\"\",'[1]MONE(M)CARD'!EK20)","v":"n.d."},{"$f":"IF('[1]MONE(M)CARD'!EP20=\"\",\"\",'[1]MONE(M)CARD'!EP20)","v":"n.d."},{"$f":"IF('[1]MONE(M)CARD'!ES20=\"\",\"\",'[1]MONE(M)CARD'!ES20)","v":"n.d."},{"$f":"IF('[1]MONE(M)CARD'!EV20=\"\",\"\",'[1]MONE(M)CARD'!EV20)","v":"n.d."},{"$f":"IF('[1]MONE(M)CARD'!EZ20=\"\",\"\",'[1]MONE(M)CARD'!EZ20)","v":"n.d."},{"$f":"IF('[1]MONE(M)CAPARD'!FC20=\"\",\"\",'[1]MONE(M)CAPARD'!FC20)","v":"n.d."},{"$f":"IF('[1]MONE(M)CAPARD'!FG20=\"\",\"\",'[1]MONE(M)CAPARD'!FG20)","v":"n.d."},{"$f":"IF('[1]MONE(M)CAPARD'!FL20=\"\",\"\",'[1]MONE(M)CAPARD'!FL20)","v":"n.d."},{"$f":"IF('[1]MONE(M)CAPARD'!FO20=\"\",\"\",'[1]MONE(M)CAPARD'!FO20)","v":"n.d."},{"$f":"IF('[1]MONE(M)CAPARD'!FR20=\"\",\"\",'[1]MONE(M)CAPARD'!FR20)","v":"n.d."},{"$f":"IF('[1]MONE(M)CAPARD'!FV20=\"\",\"\",'[1]MONE(M)CAPARD'!FV20)","v":"n.d."},{"$f":"IF('[1]MONE(M)CARD'!FV20=\"\",\"\",'[1]MONE(M)CARD'!FV20)","v":""},{"$f":"IF('[1]MONE(M)CARD'!GD20=\"\",\"\",'[1]MONE(M)CARD'!GD20)","v":"n.d."},{"$f":"IF('[1]MONE(M)CARD'!GE20=\"\",\"\",'[1]MONE(M)CARD'!GE20)","v":"n.d."},"n.d.","n.d.","n.d.","n.d.","n.d.","n.d.","n.d.","n.d.",null,"n.d.","n.d.","n.d.","n.d.","n.d.",{"$f":"IF('[1]MONE(M)CAPARD'!GS20=\"\",\"\",'[1]MONE(M)CAPARD'!GS20)","v":"n.d."},{"$f":"IF('[1]MONE(M)CARD'!HA20=\"\",\"\",'[1]MONE(M)CAPARD'!HA20)","v":"n.d."},{"$f":"IF('[1]MONE(M)CAPARD'!HB20=\"\",\"\",'[1]MONE(M)CAPARD'!HB20)","v":"n.d."},"n.d.","n.d.","n.d.","n.d.","n.d.","n.d.","n.d.","n.d.","n.d.","n.d.","n.d.","n.d.","n.d.","n.d.",{"$f":"IF('[1]MONE(M)CAPARD'!AS20=\"\",\"\",'[1]MONE(M)CAPARD'!AS20)","v":"n.d."},{"$f":"IF('[1]MONE(M)CAPARD'!AT20=\"\",\"\",'[1]MONE(M)CAPARD'!AT20)","v":"n.a."},{"$f":"IF('[1]MONE(M)CAPARD'!AU20=\"\",\"\",'[1]MONE(M)CAPARD'!AU20)","v":"n.d."},{"$f":"IF('[1]MONE(M)CAPARD'!AV20=\"\",\"\",'[1]MONE(M)CAPARD'!AV20)","v":"n.d."},{"$f":"IF('[1]MONE(M)CAPARD'!AW20=\"\",\"\",'[1]MONE(M)CAPARD'!AW20)","v":"n.a."},{"$f":"IF('[1]MONE(M)CAPARD'!AX20=\"\",\"\",'[1]MONE(M)CAPARD'!AX20)","v":"n.d."},{"$f":"IF('[1]MONE(M)CAPARD'!AY20=\"\",\"\",'[1]MONE(M)CAPARD'!AY20)","v":"n.a."},{"$f":"IF('[1]FISCAL(M)'!$K20=\"\",\"\",'[1]FISCAL(M)'!$K20)","v":"n.d."},{"$f":"IF('[1]FISCAL(M)'!$L20=\"\",\"\",'[1]FISCAL(M)'!$L20)","v":"n.d."},{"$f":"IF('[1]FISCAL(M)'!$AY20=\"\",\"\",'[1]FISCAL(M)'!$AY20)","v":"n.d."},{"$f":"IF('[1]FISCAL(M)'!$BI20=\"\",\"\",'[1]FISCAL(M)'!$BI20)","v":"n.d."},{"$f":"IF('[1]FISCAL(M)'!$BS20=\"\",\"\",'[1]FISCAL(M)'!$BS20)","v":"n.d."},{"$f":"IF('[1]FISCAL(M)'!$AZ20=\"\",\"\",'[1]FISCAL(M)'!$AZ20)","v":"n.d."},{"$f":"IF('[1]FISCAL(M)'!$BJ20=\"\",\"\",'[1]FISCAL(M)'!$BJ20)","v":"n.d."},{"$f":"IF('[1]FISCAL(M)'!$BT20=\"\",\"\",'[1]FISCAL(M)'!$BT20)","v":"n.d."},{"$f":"IF('[2]MONE(M)'!$AO20=\"\",\"\",'[2]MONE(M)'!$AO20)","v":"n.d."},{"$f":"IF('[3]MONE(M)'!$AO20=\"\",\"\",'[3]MONE(M)'!$AO20)","v":"n.d."},{"$f":"IF('[4]MONE(M)'!$AO20=\"\",\"\",'[4]MONE(M)'!$AO20)","v":"n.d."},{"$f":"IF('[5]MONE(M)'!$AO20=\"\",\"\",'[5]MONE(M)'!$AO20)","v":"n.d."},{"$f":"IF('[6]MONE(M)'!$AO20=\"\",\"\",'[6]MONE(M)'!$AO20)","v":"n.d."},{"$f":"IF('[7]MONE(M)'!$AO20=\"\",\"\",'[7]MONE(M)'!$AO20)","v":"n.d."},{"$f":"IF('[8]MONE(M)'!$AO20=\"\",\"\",'[8]MONE(M)'!$AO20)","v":"n.d."},"n.d.","n.d.","n.d.","n.d.","n.d.","n.d.","n.d.",{"$f":"IF('[1]FISCAL(M)'!$K20=\"\",\"\",'[1]FISCAL(M)'!$K20)","v":"n.d."},"n.d.","n.d.",{"$f":"IF('[1]FISCAL(M)'!$L20=\"\",\"\",'[1]FISCAL(M)'!$L20)","v":"n.d."},"n.d.","n.d.","n.d.","n.d.","n.d.","n.d.","n.d.","n.d.","n.d.","n.d.","n.d.","n.d.","n.d.","n.d.","n.d.","n.d.","n.d.","n.d."]
[1990,"diciembre","1990-diciembre",{"$f":"IF('[1]REAL IPC(M)'!$AL21=\"\",\"\",+'[1]REAL IPC(M)'!$AL21)","v":"n.d."},{"$f":"IF('[1]REAL IPC(M)'!$BE21=\"\",\"\",+'[1]REAL IPC(M)'!$BE21)","v":"n.d."},{"$f":"IF('[1]REAL IPC(M)'!$AM21=\"\",\"\",+'[1]REAL IPC(M)'!$AM21)","v":"n.d."},{"$f":"IF('[1]REAL IPC(M)'!$BI21=\"\",\"\",+'[1]REAL IPC(M)'!$BI21)","v":"n.d."},{"$f":"IF('[1]REAL IMAE(M)'!BJ21=\"\",\"\",'[1]REAL IMAE(M)'!BJ21)","v":"n.d."},{"$f":"IF('[1]REAL IMAE(M)'!BK21=\"\",\"\",'[1]REAL IMAE(M)'!BK21)","v":"n.d."},{"$f":"IF('[1]REAL IMAE(M)'!BN21=\"\",\"\",'[1]REAL IMAE(M)'!BN21)","v":"n.d."},{"$f":"IF('[1]REAL IMAE(M)'!BO21=\"\",\"\",'[1]REAL IMAE(M)'!BO21)","v":"n.d."},{"$f":"IF('[1]EXT RIN(M)'!$K21=\"\",\"\",'[1]EXT RIN(M)'!$K21)","v":"n.d."},"n.d.",{"$f":"IF('[1]EXT RIN(M)'!$L21=\"\",\"\",'[1]EXT RIN(M)'!$L21)","v":"n.d."},"n.d.",{"$f":"IF('[1]MONE(M)CARD'!EG21=\"\",\"\",'[1]MONE(M)CARD'!EG21)","v":"n.d."},{"$f":"IF('[1]MONE(M)CARD'!EK21=\"\",\"\",'[1]MONE(M)CARD'!EK21)","v":"n.d."},{"$f":"IF('[1]MONE(M)CARD'!EP21=\"\",\"\",'[1]MONE(M)CARD'!EP21)","v":"n.d."},{"$f":"IF('[1]MONE(M)CARD'!ES21=\"\",\"\",'[1]MONE(M)CARD'!ES21)","v":"n.d."},{"$f":"IF('[1]MONE(M)CARD'!EV21=\"\",\"\",'[1]MONE(M)CARD'!EV21)","v":"n.d."},{"$f":"IF('[1]MONE(M)CARD'!EZ21=\"\",\"\",'[1]MONE(M)CARD'!EZ21)","v":"n.d."},{"$f":"IF('[1]MONE(M)CAPARD'!FC21=\"\",\"\",'[1]MONE(M)CAPARD'!FC21)","v":"n.d."},{"$f":"IF('[1]MONE(M)CAPARD'!FG21=\"\",\"\",'[1]MONE(M)CAPARD'!FG21)","v":"n.d."},{"$f":"IF('[1]MONE(M)CAPARD'!FL21=\"\",\"\",'[1]MONE(M)CAPARD'!FL21)","v":"n.d."},{"$f":"IF('[1]MONE(M)CAPARD'!FO21=\"\",\"\",'[1]MONE(M)CAPARD'!FO21)","v":"n.d."},{"$f":"IF('[1]MONE(M)CAPARD'!FR21=\"\",\"\",'[1]MONE(M)CAPARD'!FR21)","v":"n.d."},{"$f":"IF('[1]MONE(M)CAPARD'!FV21=\"\",\"\",'[1]MONE(M)CAPARD'!FV21)","v":"n.d."},{"$f":"IF('[1]MONE(M)CARD'!FV21=\"\",\"\",'[1]MONE(M)CARD'!FV21)","v":""},{"$f":"IF('[1]MONE(M)CARD'!GD21=\"\",\"\",'[1]MONE(M)CARD'!GD21)","v":"n.d."},{"$f":"IF('[1]MONE(M)CARD'!GE21=\"\",\"\",'[1]MONE(M)CARD'!GE21)","v":"n.d."},"n.d.","n.d.","n.d.","n.d.","n.d.","n.d.","n.d.","n.d.",null,"n.d.","n.d.","n.d.","n.d.","n.d.",{"$f":"IF('[1]MONE(M)CAPARD'!GS21=\"\",\"\",'[1]MONE(M)CAPARD'!GS21)","v":"n.d."},{"$f":"IF('[1]MONE(M)CARD'!HA21=\"\",\"\",'[1]MONE(M)CAPARD'!HA21)","v":"n.d."},{"$f":"IF('[1]MONE(M)CAPARD'!HB21=\"\",\"\",'[1]MONE(M)CAPARD'!HB21)","v":"n.d."},"n.d.","n.d.","n.d.","n.d.","n.d.","n.d.","n.d.","n.d.","n.d.","n.d.","n.d.","n.d.","n.d.","n.d.",{"$f":"IF('[1]MONE(M)CAPARD'!AS21=\"\",\"\",'[1]MONE(M)CAPARD'!AS21)","v":"n.d."},{"$f":"IF('[1]MONE(M)CAPARD'!AT21=\"\",\"\",'[1]MONE(M)CAPARD'!AT21)","v":"n.a."},{"$f":"IF('[1]MONE(M)CAPARD'!AU21=\"\",\"\",'[1]MONE(M)CAPARD'!AU21)","v":"n.d."},{"$f":"IF('[1]MONE(M)CAPARD'!AV21=\"\",\"\",'[1]MONE(M)CAPARD'!AV21)","v":"n.d."},{"$f":"IF('[1]MONE(M)CAPARD'!AW21=\"\",\"\",'[1]MONE(M)CAPARD'!AW21)","v":"n.a."},{"$f":"IF('[1]MONE(M)CAPARD'!AX21=\"\",\"\",'[1]MONE(M)CAPARD'!AX21)","v":"n.d."},{"$f":"IF('[1]MONE(M)CAPARD'!AY21=\"\",\"\",'[1]MONE(M)CAPARD'!AY21)","v":"n.a."},{"$f":"IF('[1]FISCAL(M)'!$K21=\"\",\"\",'[1]FISCAL(M)'!$K21)","v":"n.d."},{"$f":"IF('[1]FISCAL(M)'!$L21=\"\",\"\",'[1]FISCAL(M)'!$L21)","v":"n.d."},{"$f":"IF('[1]FISCAL(M)'!$AY21=\"\",\"\",'[1]FISCAL(M)'!$AY21)","v":"n.d."},{"$f":"IF('[1]FISCAL(M)'!$BI21=\"\",\"\",'[1]FISCAL(M)'!$BI21)","v":"n.d."},{"$f":"IF('[1]FISCAL(M)'!$BS21=\"\",\"\",'[1]FISCAL(M)'!$BS21)","v":"n.d."},{"$f":"IF('[1]FISCAL(M)'!$AZ21=\"\",\"\",'[1]FISCAL(M)'!$AZ21)","v":"n.d."},{"$f":"IF('[1]FISCAL(M)'!$BJ21=\"\",\"\",'[1]FISCAL(M)'!$BJ21)","v":"n.d."},{"$f":"IF('[1]FISCAL(M)'!$BT21=\"\",\"\",'[1]FISCAL(M)'!$BT21)","v":"n.d."},{"$f":"IF('[2]MONE(M)'!$AO21=\"\",\"\",'[2]MONE(M)'!$AO21)","v":"n.d."},{"$f":"IF('[3]MONE(M)'!$AO21=\"\",\"\",'[3]MONE(M)'!$AO21)","v":"n.d."},{"$f":"IF('[4]MONE(M)'!$AO21=\"\",\"\",'[4]MONE(M)'!$AO21)","v":"n.d."},{"$f":"IF('[5]MONE(M)'!$AO21=\"\",\"\",'[5]MONE(M)'!$AO21)","v":"n.d."},{"$f":"IF('[6]MONE(M)'!$AO21=\"\",\"\",'[6]MONE(M)'!$AO21)","v":"n.d."},{"$f":"IF('[7]MONE(M)'!$AO21=\"\",\"\",'[7]MONE(M)'!$AO21)","v":"n.d."},{"$f":"IF('[8]MONE(M)'!$AO21=\"\",\"\",'[8]MONE(M)'!$AO21)","v":"n.d."},"n.d.","n.d.","n.d.","n.d.","n.d.","n.d.","n.d.",{"$f":"IF('[1]FISCAL(M)'!$K21=\"\",\"\",'[1]FISCAL(M)'!$K21)","v":"n.d."},"n.d.","n.d.",{"$f":"IF('[1]FISCAL(M)'!$L21=\"\",\"\",'[1]FISCAL(M)'!$L21)","v":"n.d."},"n.d.","n.d.","n.d.","n.d.","n.d.","n.d.","n.d.","n.d.","n.d.","n.d.","n.d.","n.d.","n.d.","n.d.","n.d.","n.d.","n.d.","n.d."]
[1991,"enero","1991-enero",{"$f":"IF('[1]REAL IPC(M)'!$AL22=\"\",\"\",+'[1]REAL IPC(M)'!$AL22)","v":"n.d."},{"$f":"IF('[1]REAL IPC(M)'!$BE22=\"\",\"\",+'[1]REAL IPC(M)'!$BE22)","v":"n.d."},{"$f":"IF('[1]REAL IPC(M)'!$AM22=\"\",\"\",+'[1]REAL IPC(M)'!$AM22)","v":"n.d."},{"$f":"IF('[1]REAL IPC(M)'!$BI22=\"\",\"\",+'[1]REAL IPC(M)'!$BI22)","v":"n.d."},{"$f":"IF('[1]REAL IMAE(M)'!BJ22=\"\",\"\",'[1]REAL IMAE(M)'!BJ22)","v":"n.d."},{"$f":"IF('[1]REAL IMAE(M)'!BK22=\"\",\"\",'[1]REAL IMAE(M)'!BK22)","v":"n.d."},{"$f":"IF('[1]REAL IMAE(M)'!BN22=\"\",\"\",'[1]REAL IMAE(M)'!BN22)","v":"n.d."},{"$f":"IF('[1]REAL IMAE(M)'!BO22=\"\",\"\",'[1]REAL IMAE(M)'!BO22)","v":"n.d."},{"$f":"IF('[1]EXT RIN(M)'!$K22=\"\",\"\",'[1]EXT RIN(M)'!$K22)","v":"n.d."},"",{"$f":"IF('[1]EXT RIN(M)'!$L22=\"\",\"\",'[1]EXT RIN(M)'!$L22)","v":"n.d."},"",{"$f":"IF('[1]MONE(M)CARD'!EG22=\"\",\"\",'[1]MONE(M)CARD'!EG22)","v":"n.d."},{"$f":"IF('[1]MONE(M)CARD'!EK22=\"\",\"\",'[1]MONE(M)CARD'!EK22)","v":"n.d."},{"$f":"IF('[1]MONE(M)CARD'!EP22=\"\",\"\",'[1]MONE(M)CARD'!EP22)","v":"n.d."},{"$f":"IF('[1]MONE(M)CARD'!ES22=\"\",\"\",'[1]MONE(M)CARD'!ES22)","v":"n.d."},{"$f":"IF('[1]MONE(M)CARD'!EV22=\"\",\"\",'[1]MONE(M)CARD'!EV22)","v":"n.d."},{"$f":"IF('[1]MONE(M)CARD'!EZ22=\"\",\"\",'[1]MONE(M)CARD'!EZ22)","v":"n.d."},{"$f":"IF('[1]MONE(M)CAPARD'!FC22=\"\",\"\",'[1]MONE(M)CAPARD'!FC22)","v":"n.d."},{"$f":"IF('[1]MONE(M)CAPARD'!FG22=\"\",\"\",'[1]MONE(M)CAPARD'!FG22)","v":"n.d."},{"$f":"IF('[1]MONE(M)CAPARD'!FL22=\"\",\"\",'[1]MONE(M)CAPARD'!FL22)","v":"n.d."},{"$f":"IF('[1]MONE(M)CAPARD'!FO22=\"\",\"\",'[1]MONE(M)CAPARD'!FO22)","v":"n.d."},{"$f":"IF('[1]MONE(M)CAPARD'!FR22=\"\",\"\",'[1]MONE(M)CAPARD'!FR22)","v":"n.d."},{"$f":"IF('[1]MONE(M)CAPARD'!FV22=\"\",\"\",'[1]MONE(M)CAPARD'!FV22)","v":"n.d."},{"$f":"IF('[1]MONE(M)CARD'!FV22=\"\",\"\",'[1]MONE(M)CARD'!FV22)","v":""},{"$f":"IF('[1]MONE(M)CARD'!GD22=\"\",\"\",'[1]MONE(M)CARD'!GD22)","v":"n.d."},{"$f":"IF('[1]MONE(M)CARD'!GE22=\"\",\"\",'[1]MONE(M)CARD'!GE22)","v":"n.d."},"n.d.","n.d.","n.d.","n.d.","n.d.","n.d.","n.d.","n.d.",null,"n.d.","n.d.","n.d.","n.d.","n.d.",{"$f":"IF('[1]MONE(M)CAPARD'!GS22=\"\",\"\",'[1]MONE(M)CAPARD'!GS22)","v":"n.d."},{"$f":"IF('[1]MONE(M)CARD'!HA22=\"\",\"\",'[1]MONE(M)CAPARD'!HA22)","v":"n.d."},{"$f":"IF('[1]MONE(M)CAPARD'!HB22=\"\",\"\",'[1]MONE(M)CAPARD'!HB22)","v":"n.d."},"n.d.","n.d.","n.d.","n.d.","n.d.","n.d.","n.d.","n.d.","n.d.","n.d.","n.d.","n.d.","n.d.","n.d.",{"$f":"IF('[1]MONE(M)CAPARD'!AS22=\"\",\"\",'[1]MONE(M)CAPARD'!AS22)","v":"n.d."},{"$f":"IF('[1]MONE(M)CAPARD'!AT22=\"\",\"\",'[1]MONE(M)CAPARD'!AT22)","v":"n.a."},{"$f":"IF('[1]MONE(M)CAPARD'!AU22=\"\",\"\",'[1]MONE(M)CAPARD'!AU22)","v":"n.d."},{"$f":"IF('[1]MONE(M)CAPARD'!AV22=\"\",\"\",'[1]MONE(M)CAPARD'!AV22)","v":"n.d."},{"$f":"IF('[1]MONE(M)CAPARD'!AW22=\"\",\"\",'[1]MONE(M)CAPARD'!AW22)","v":"n.a."},{"$f":"IF('[1]MONE(M)CAPARD'!AX22=\"\",\"\",'[1]MONE(M)CAPARD'!AX22)","v":"n.d."},{"$f":"IF('[1]MONE(M)CAPARD'!AY22=\"\",\"\",'[1]MONE(M)CAPARD'!AY22)","v":"n.a."},{"$f":"IF('[1]FISCAL(M)'!$K22=\"\",\"\",'[1]FISCAL(M)'!$K22)","v":"n.d."},{"$f":"IF('[1]FISCAL(M)'!$L22=\"\",\"\",'[1]FISCAL(M)'!$L22)","v":"n.d."},{"$f":"IF('[1]FISCAL(M)'!$AY22=\"\",\"\",'[1]FISCAL(M)'!$AY22)","v":"n.d."},{"$f":"IF('[1]FISCAL(M)'!$BI22=\"\",\"\",'[1]FISCAL(M)'!$BI22)","v":"n.d."},{"$f":"IF('[1]FISCAL(M)'!$BS22=\"\",\"\",'[1]FISCAL(M)'!$BS22)","v":"n.d."},{"$f":"IF('[1]FISCAL(M)'!$AZ22=\"\",\"\",'[1]FISCAL(M)'!$AZ22)","v":"n.d."},{"$f":"IF('[1]FISCAL(M)'!$BJ22=\"\",\"\",'[1]FISCAL(M)'!$BJ22)","v":"n.d."},{"$f":"IF('[1]FISCAL(M)'!$BT22=\"\",\"\",'[1]FISCAL(M)'!$BT22)","v":"n.d."},{"$f":"IF('[2]MONE(M)'!$AO22=\"\",\"\",'[2]MONE(M)'!$AO22)","v":"n.d."},{"$f":"IF('[3]MONE(M)'!$AO22=\"\",\"\",'[3]MONE(M)'!$AO22)","v":"n.d."},{"$f":"IF('[4]MONE(M)'!$AO22=\"\",\"\",'[4]MONE(M)'!$AO22)","v":"n.d."},{"$f":"IF('[5]MONE(M)'!$AO22=\"\",\"\",'[5]MONE(M)'!$AO22)","v":"n.d."},{"$f":"IF('[6]MONE(M)'!$AO22=\"\",\"\",'[6]MONE(M)'!$AO22)","v":"n.d."},{"$f":"IF('[7]MONE(M)'!$AO22=\"\",\"\",'[7]MONE(M)'!$AO22)","v":"n.d."},{"$f":"IF('[8]MONE(M)'!$AO22=\"\",\"\",'[8]MONE(M)'!$AO22)","v":"n.d."},"n.d.","n.d.","n.d.","n.d.","n.d.","n.d.","n.d.",{"$f":"IF('[1]FISCAL(M)'!$K22=\"\",\"\",'[1]FISCAL(M)'!$K22)","v":"n.d."},"n.d.","n.d.",{"$f":"IF('[1]FISCAL(M)'!$L22=\"\",\"\",'[1]FISCAL(M)'!$L22)","v":"n.d."},"n.d.","n.d.","n.d.","n.d.","n.d.","n.d.","n.d.","n.d.","n.d.","n.d.","n.d.","n.d.","n.d.","n.d.","n.d.","n.d.","n.d.","n.d."]
[1991,"febrero","1991-febrero",{"$f":"IF('[1]REAL IPC(M)'!$AL23=\"\",\"\",+'[1]REAL IPC(M)'!$AL23)","v":"n.d."},{"$f":"IF('[1]REAL IPC(M)'!$BE23=\"\",\"\",+'[1]REAL IPC(M)'!$BE23)","v":"n.d."},{"$f":"IF('[1]REAL IPC(M)'!$AM23=\"\",\"\",+'[1]REAL IPC(M)'!$AM23)","v":"n.d."},{"$f":"IF('[1]REAL IPC(M)'!$BI23=\"\",\"\",+'[1]REAL IPC(M)'!$BI23)","v":"n.d."},{"$f":"IF('[1]REAL IMAE(M)'!BJ23=\"\",\"\",'[1]REAL IMAE(M)'!BJ23)","v":"n.d."},{"$f":"IF('[1]REAL IMAE(M)'!BK23=\"\",\"\",'[1]REAL IMAE(M)'!BK23)","v":"n.d."},{"$f":"IF('[1]REAL IMAE(M)'!BN23=\"\",\"\",'[1]REAL IMAE(M)'!BN23)","v":"n.d."},{"$f":"IF('[1]REAL IMAE(M)'!BO23=\"\",\"\",'[1]REAL IMAE(M)'!BO23)","v":"n.d."},{"$f":"IF('[1]EXT RIN(M)'!$K23=\"\",\"\",'[1]EXT RIN(M)'!$K23)","v":"n.d."},"",{"$f":"IF('[1]EXT RIN(M)'!$L23=\"\",\"\",'[1]EXT RIN(M)'!$L23)","v":"n.d."},"",{"$f":"IF('[1]MONE(M)CARD'!EG23=\"\",\"\",'[1]MONE(M)CARD'!EG23)","v":"n.d."},{"$f":"IF('[1]MONE(M)CARD'!EK23=\"\",\"\",'[1]MONE(M)CARD'!EK23)","v":"n.d."},{"$f":"IF('[1]MONE(M)CARD'!EP23=\"\",\"\",'[1]MONE(M)CARD'!EP23)","v":"n.d."},{"$f":"IF('[1]MONE(M)CARD'!ES23=\"\",\"\",'[1]MONE(M)CARD'!ES23)","v":"n.d."},{"$f":"IF('[1]MONE(M)CARD'!EV23=\"\",\"\",'[1]MONE(M)CARD'!EV23)","v":"n.d."},{"$f":"IF('[1]MONE(M)CARD'!EZ23=\"\",\"\",'[1]MONE(M)CARD'!EZ23)","v":"n.d."},{"$f":"IF('[1]MONE(M)CAPARD'!FC23=\"\",\"\",'[1]MONE(M)CAPARD'!FC23)","v":"n.d."},{"$f":"IF('[1]MONE(M)CAPARD'!FG23=\"\",\"\",'[1]MONE(M)CAPARD'!FG23)","v":"n.d."},{"$f":"IF('[1]MONE(M)CAPARD'!FL23=\"\",\"\",'[1]MONE(M)CAPARD'!FL23)","v":"n.d."},{"$f":"IF('[1]MONE(M)CAPARD'!FO23=\"\",\"\",'[1]MONE(M)CAPARD'!FO23)","v":"n.d."},{"$f":"IF('[1]MONE(M)CAPARD'!FR23=\"\",\"\",'[1]MONE(M)CAPARD'!FR23)","v":"n.d."},{"$f":"IF('[1]MONE(M)CAPARD'!FV23=\"\",\"\",'[1]MONE(M)CAPARD'!FV23)","v":"n.d."},{"$f":"IF('[1]MONE(M)CARD'!FV23=\"\",\"\",'[1]MONE(M)CARD'!FV23)","v":""},{"$f":"IF('[1]MONE(M)CARD'!GD23=\"\",\"\",'[1]MONE(M)CARD'!GD23)","v":"n.d."},{"$f":"IF('[1]MONE(M)CARD'!GE23=\"\",\"\",'[1]MONE(M)CARD'!GE23)","v":"n.d."},"n.d.","n.d.","n.d.","n.d.","n.d.","n.d.","n.d.","n.d.",null,"n.d.","n.d.","n.d.","n.d.","n.d.",{"$f":"IF('[1]MONE(M)CAPARD'!GS23=\"\",\"\",'[1]MONE(M)CAPARD'!GS23)","v":"n.d."},{"$f":"IF('[1]MONE(M)CARD'!HA23=\"\",\"\",'[1]MONE(M)CAPARD'!HA23)","v":"n.d."},{"$f":"IF('[1]MONE(M)CAPARD'!HB23=\"\",\"\",'[1]MONE(M)CAPARD'!HB23)","v":"n.d."},"n.d.","n.d.","n.d.","n.d.","n.d.","n.d.","n.d.","n.d.","n.d.","n.d.","n.d.","n.d.","n.d.","n.d.",{"$f":"IF('[1]MONE(M)CAPARD'!AS23=\"\",\"\",'[1]MONE(M)CAPARD'!AS23)","v":"n.d."},{"$f":"IF('[1]MONE(M)CAPARD'!AT23=\"\",\"\",'[1]MONE(M)CAPARD'!AT23)","v":"n.a."},{"$f":"IF('[1]MONE(M)CAPARD'!AU23=\"\",\"\",'[1]MONE(M)CAPARD'!AU23)","v":"n.d."},{"$f":"IF('[1]MONE(M)CAPARD'!AV23=\"\",\"\",'[1]MONE(M)CAPARD'!AV23)","v":"n.d."},{"$f":"IF('[1]MONE(M)CAPARD'!AW23=\"\",\"\",'[1]MONE(M)CAPARD'!AW23)","v":"n.a."},{"$f":"IF('[1]MONE(M)CAPARD'!AX23=\"\",\"\",'[1]MONE(M)CAPARD'!AX23)","v":"n.d."},{"$f":"IF('[1]MONE(M)CAPARD'!AY23=\"\",\"\",'[1]MONE(M)CAPARD'!AY23)","v":"n.a."},{"$f":"IF('[1]FISCAL(M)'!$K23=\"\",\"\",'[1]FISCAL(M)'!$K23)","v":"n.d."},{"$f":"IF('[1]FISCAL(M)'!$L23=\"\",\"\",'[1]FISCAL(M)'!$L23)","v":"n.d."},{"$f":"IF('[1]FISCAL(M)'!$AY23=\"\",\"\",'[1]FISCAL(M)'!$AY23)","v":"n.d."},{"$f":"IF('[1]FISCAL(M)'!$BI23=\"\",\"\",'[1]FISCAL(M)'!$BI23)","v":"n.d."},{"$f":"IF('[1]FISCAL(M)'!$BS23=\"\",\"\",'[1]FISCAL(M)'!$BS23)","v":"n.d."},{"$f":"IF('[1]FISCAL(M)'!$AZ23=\"\",\"\",'[1]FISCAL(M)'!$AZ23)","v":"n.d."},{"$f":"IF('[1]FISCAL(M)'!$BJ23=\"\",\"\",'[1]FISCAL(M)'!$BJ23)","v":"n.d."},{"$f":"IF('[1]FISCAL(M)'!$BT23=\"\",\"\",'[1]FISCAL(M)'!$BT23)","v":"n.d."},{"$f":"IF('[2]MONE(M)'!$AO23=\"\",\"\",'[2]MONE(M)'!$AO23)","v":"n.d."},{"$f":"IF('[3]MONE(M)'!$AO23=\"\",\"\",'[3]MONE(M)'!$AO23)","v":"n.d."},{"$f":"IF('[4]MONE(M)'!$AO23=\"\",\"\",'[4]MONE(M)'!$AO23)","v":"n.d."},{"$f":"IF('[5]MONE(M)'!$AO23=\"\",\"\",'[5]MONE(M)'!$AO23)","v":"n.d."},{"$f":"IF('[6]MONE(M)'!$AO23=\"\",\"\",'[6]MONE(M)'!$AO23)","v":"n.d."},{"$f":"IF('[7]MONE(M)'!$AO23=\"\",\"\",'[7]MONE(M)'!$AO23)","v":"n.d."},{"$f":"IF('[8]MONE(M)'!$AO23=\"\",\"\",'[8]MONE(M)'!$AO23)","v":"n.d."},"n.d.","n.d.","n.d.","n.d.","n.d.","n.d.","n.d.",{"$f":"IF('[1]FISCAL(M)'!$K23=\"\",\"\",'[1]FISCAL(M)'!$K23)","v":"n.d."},"n.d.","n.d.",{"$f":"IF('[1]FISCAL(M)'!$L23=\"\",\"\",'[1]FISCAL(M)'!$L23)","v":"n.d."},"n.d.","n.d.","n.d.","n.d.","n.d.","n.d.","n.d.","n.d.","n.d.","n.d.","n.d.","n.d.","n.d.","n.d.","n.d.","n.d.","n.d.","n.d."]
[1991,"marzo","1991-marzo",{"$f":"IF('[1]REAL IPC(M)'!$AL24=\"\",\"\",+'[1]REAL IPC(M)'!$AL24)","v":"n.d."},{"$f":"IF('[1]REAL IPC(M)'!$BE24=\"\",\"\",+'[1]REAL IPC(M)'!$BE24)","v":"n.d."},{"$f":"IF('[1]REAL IPC(M)'!$AM24=\"\",\"\",+'[1]REAL IPC(M)'!$AM24)","v":"n.d."},{"$f":"IF('[1]REAL IPC(M)'!$BI24=\"\",\"\",+'[1]REAL IPC(M)'!$BI24)","v":"n.d."},{"$f":"IF('[1]REAL IMAE(M)'!BJ24=\"\",\"\",'[1]REAL IMAE(M)'!BJ24)","v":"n.d."},{"$f":"IF('[1]REAL IMAE(M)'!BK24=\"\",\"\",'[1]REAL IMAE(M)'!BK24)","v":"n.d."},{"$f":"IF('[1]REAL IMAE(M)'!BN24=\"\",\"\",'[1]REAL IMAE(M)'!BN24)","v":"n.d."},{"$f":"IF('[1]REAL IMAE(M)'!BO24=\"\",\"\",'[1]REAL IMAE(M)'!BO24)","v":"n.d."},{"$f":"IF('[1]EXT RIN(M)'!$K24=\"\",\"\",'[1]EXT RIN(M)'!$K24)","v":"n.d."},"",{"$f":"IF('[1]EXT RIN(M)'!$L24=\"\",\"\",'[1]EXT RIN(M)'!$L24)","v":"n.d."},"",{"$f":"IF('[1]MONE(M)CARD'!EG24=\"\",\"\",'[1]MONE(M)CARD'!EG24)","v":"n.d."},{"$f":"IF('[1]MONE(M)CARD'!EK24=\"\",\"\",'[1]MONE(M)CARD'!EK24)","v":"n.d."},{"$f":"IF('[1]MONE(M)CARD'!EP24=\"\",\"\",'[1]MONE(M)CARD'!EP24)","v":"n.d."},{"$f":"IF('[1]MONE(M)CARD'!ES24=\"\",\"\",'[1]MONE(M)CARD'!ES24)","v":"n.d."},{"$f":"IF('[1]MONE(M)CARD'!EV24=\"\",\"\",'[1]MONE(M)CARD'!EV24)","v":"n.d."},{"$f":"IF('[1]MONE(M)CARD'!EZ24=\"\",\"\",'[1]MONE(M)CARD'!EZ24)","v":"n.d."},{"$f":"IF('[1]MONE(M)CAPARD'!FC24=\"\",\"\",'[1]MONE(M)CAPARD'!FC24)","v":"n.d."},{"$f":"IF('[1]MONE(M)CAPARD'!FG24=\"\",\"\",'[1]MONE(M)CAPARD'!FG24)","v":"n.d."},{"$f":"IF('[1]MONE(M)CAPARD'!FL24=\"\",\"\",'[1]MONE(M)CAPARD'!FL24)","v":"n.d."},{"$f":"IF('[1]MONE(M)CAPARD'!FO24=\"\",\"\",'[1]MONE(M)CAPARD'!FO24)","v":"n.d."},{"$f":"IF('[1]MONE(M)CAPARD'!FR24=\"\",\"\",'[1]MONE(M)CAPARD'!FR24)","v":"n.d."},{"$f":"IF('[1]MONE(M)CAPARD'!FV24=\"\",\"\",'[1]MONE(M)CAPARD'!FV24)","v":"n.d."},{"$f":"IF('[1]MONE(M)CARD'!FV24=\"\",\"\",'[1]MONE(M)CARD'!FV24)","v":""},{"$f":"IF('[1]MONE(M)CARD'!GD24=\"\",\"\",'[1]MONE(M)CARD'!GD24)","v":"n.d."},{"$f":"IF('[1]MONE(M)CARD'!GE24=\"\",\"\",'[1]MONE(M)CARD'!GE24)","v":"n.d."},"n.d.","n.d.","n.d.","n.d.","n.d.","n.d.","n.d.","n.d.",null,"n.d.","n.d.","n.d.","n.d.","n.d.",{"$f":"IF('[1]MONE(M)CAPARD'!GS24=\"\",\"\",'[1]MONE(M)CAPARD'!GS24)","v":"n.d."},{"$f":"IF('[1]MONE(M)CARD'!HA24=\"\",\"\",'[1]MONE(M)CAPARD'!HA24)","v":"n.d."},{"$f":"IF('[1]MONE(M)CAPARD'!HB24=\"\",\"\",'[1]MONE(M)CAPARD'!HB24)","v":"n.d."},"n.d.","n.d.","n.d.","n.d.","n.d.","n.d.","n.d.","n.d.","n.d.","n.d.","n.d.","n.d.","n.d.","n.d.",{"$f":"IF('[1]MONE(M)CAPARD'!AS24=\"\",\"\",'[1]MONE(M)CAPARD'!AS24)","v":"n.d."},{"$f":"IF('[1]MONE(M)CAPARD'!AT24=\"\",\"\",'[1]MONE(M)CAPARD'!AT24)","v":"n.a."},{"$f":"IF('[1]MONE(M)CAPARD'!AU24=\"\",\"\",'[1]MONE(M)CAPARD'!AU24)","v":"n.d."},{"$f":"IF('[1]MONE(M)CAPARD'!AV24=\"\",\"\",'[1]MONE(M)CAPARD'!AV24)","v":"n.d."},{"$f":"IF('[1]MONE(M)CAPARD'!AW24=\"\",\"\",'[1]MONE(M)CAPARD'!AW24)","v":"n.a."},{"$f":"IF('[1]MONE(M)CAPARD'!AX24=\"\",\"\",'[1]MONE(M)CAPARD'!AX24)","v":"n.d."},{"$f":"IF('[1]MONE(M)CAPARD'!AY24=\"\",\"\",'[1]MONE(M)CAPARD'!AY24)","v":"n.a."},{"$f":"IF('[1]FISCAL(M)'!$K24=\"\",\"\",'[1]FISCAL(M)'!$K24)","v":"n.d."},{"$f":"IF('[1]FISCAL(M)'!$L24=\"\",\"\",'[1]FISCAL(M)'!$L24)","v":"n.d."},{"$f":"IF('[1]FISCAL(M)'!$AY24=\"\",\"\",'[1]FISCAL(M)'!$AY24)","v":"n.d."},{"$f":"IF('[1]FISCAL(M)'!$BI24=\"\",\"\",'[1]FISCAL(M)'!$BI24)","v":"n.d."},{"$f":"IF('[1]FISCAL(M)'!$BS24=\"\",\"\",'[1]FISCAL(M)'!$BS24)","v":"n.d."},{"$f":"IF('[1]FISCAL(M)'!$AZ24=\"\",\"\",'[1]FISCAL(M)'!$AZ24)","v":"n.d."},{"$f":"IF('[1]FISCAL(M)'!$BJ24=\"\",\"\",'[1]FISCAL(M)'!$BJ24)","v":"n.d."},{"$f":"IF('[1]FISCAL(M)'!$BT24=\"\",\"\",'[1]FISCAL(M)'!$BT24)","v":"n.d."},{"$f":"IF('[2]MONE(M)'!$AO24=\"\",\"\",'[2]MONE(M)'!$AO24)","v":"n.d."},{"$f":"IF('[3]MONE(M)'!$AO24=\"\",\"\",'[3]MONE(M)'!$AO24)","v":"n.d."},{"$f":"IF('[4]MONE(M)'!$AO24=\"\",\"\",'[4]MONE(M)'!$AO24)","v":"n.d."},{"$f":"IF('[5]MONE(M)'!$AO24=\"\",\"\",'[5]MONE(M)'!$AO24)","v":"n.d."},{"$f":"IF('[6]MONE(M)'!$AO24=\"\",\"\",'[6]MONE(M)'!$AO24)","v":"n.d."},{"$f":"IF('[7]MONE(M)'!$AO24=\"\",\"\",'[7]MONE(M)'!$AO24)","v":"n.d."},{"$f":"IF('[8]MONE(M)'!$AO24=\"\",\"\",'[8]MONE(M)'!$AO24)","v":"n.d."},"n.d.","n.d.","n.d.","n.d.","n.d.","n.d.","n.d.",{"$f":"IF('[1]FISCAL(M)'!$K24=\"\",\"\",'[1]FISCAL(M)'!$K24)","v":"n.d."},"n.d.","n.d.",{"$f":"IF('[1]FISCAL(M)'!$L24=\"\",\"\",'[1]FISCAL(M)'!$L24)","v":"n.d."},"n.d.","n.d.","n.d.","n.d.","n.d.","n.d.","n.d.","n.d.","n.d.","n.d.","n.d.","n.d.","n.d.","n.d.","n.d.","n.d.","n.d.","n.d."]
[1991,"abril","1991-abril",{"$f":"IF('[1]REAL IPC(M)'!$AL25=\"\",\"\",+'[1]REAL IPC(M)'!$AL25)","v":"n.d."},{"$f":"IF('[1]REAL IPC(M)'!$BE25=\"\",\"\",+'[1]REAL IPC(M)'!$BE25)","v":"n.d."},{"$f":"IF('[1]REAL IPC(M)'!$AM25=\"\",\"\",+'[1]REAL IPC(M)'!$AM25)","v":"n.d."},{"$f":"IF('[1]REAL IPC(M)'!$BI25=\"\",\"\",+'[1]REAL IPC(M)'!$BI25)","v":"n.d."},{"$f":"IF('[1]REAL IMAE(M)'!BJ25=\"\",\"\",'[1]REAL IMAE(M)'!BJ25)","v":"n.d."},{"$f":"IF('[1]REAL IMAE(M)'!BK25=\"\",\"\",'[1]REAL IMAE(M)'!BK25)","v":"n.d."},{"$f":"IF('[1]REAL IMAE(M)'!BN25=\"\",\"\",'[1]REAL IMAE(M)'!BN25)","v":"n.d."},{"$f":"IF('[1]REAL IMAE(M)'!BO25=\"\",\"\",'[1]REAL IMAE(M)'!BO25)","v":"n.d."},{"$f":"IF('[1]EXT RIN(M)'!$K25=\"\",\"\",'[1]EXT RIN(M)'!$K25)","v":"n.d."},"",{"$f":"IF('[1]EXT RIN(M)'!$L25=\"\",\"\",'[1]EXT RIN(M)'!$L25)","v":"n.d."},"",{"$f":"IF('[1]MONE(M)CARD'!EG25=\"\",\"\",'[1]MONE(M)CARD'!EG25)","v":"n.d."},{"$f":"IF('[1]MONE(M)CARD'!EK25=\"\",\"\",'[1]MONE(M)CARD'!EK25)","v":"n.d."},{"$f":"IF('[1]MONE(M)CARD'!EP25=\"\",\"\",'[1]MONE(M)CARD'!EP25)","v":"n.d."},{"$f":"IF('[1]MONE(M)CARD'!ES25=\"\",\"\",'[1]MONE(M)CARD'!ES25)","v":"n.d."},{"$f":"IF('[1]MONE(M)CARD'!EV25=\"\",\"\",'[1]MONE(M)CARD'!EV25)","v":"n.d."},{"$f":"IF('[1]MONE(M)CARD'!EZ25=\"\",\"\",'[1]MONE(M)CARD'!EZ25)","v":"n.d."},{"$f":"IF('[1]MONE(M)CAPARD'!FC25=\"\",\"\",'[1]MONE(M)CAPARD'!FC25)","v":"n.d."},{"$f":"IF('[1]MONE(M)CAPARD'!FG25=\"\",\"\",'[1]MONE(M)CAPARD'!FG25)","v":"n.d."},{"$f":"IF('[1]MONE(M)CAPARD'!FL25=\"\",\"\",'[1]MONE(M)CAPARD'!FL25)","v":"n.d."},{"$f":"IF('[1]MONE(M)CAPARD'!FO25=\"\",\"\",'[1]MONE(M)CAPARD'!FO25)","v":"n.d."},{"$f":"IF('[1]MONE(M)CAPARD'!FR25=\"\",\"\",'[1]MONE(M)CAPARD'!FR25)","v":"n.d."},{"$f":"IF('[1]MONE(M)CAPARD'!FV25=\"\",\"\",'[1]MONE(M)CAPARD'!FV25)","v":"n.d."},{"$f":"IF('[1]MONE(M)CARD'!FV25=\"\",\"\",'[1]MONE(M)CARD'!FV25)","v":""},{"$f":"IF('[1]MONE(M)CARD'!GD25=\"\",\"\",'[1]MONE(M)CARD'!GD25)","v":"n.d."},{"$f":"IF('[1]MONE(M)CARD'!GE25=\"\",\"\",'[1]MONE(M)CARD'!GE25)","v":"n.d."},"n.d.","n.d.","n.d.","n.d.","n.d.","n.d.","n.d.","n.d.",null,"n.d.","n.d.","n.d.","n.d.","n.d.",{"$f":"IF('[1]MONE(M)CAPARD'!GS25=\"\",\"\",'[1]MONE(M)CAPARD'!GS25)","v":"n.d."},{"$f":"IF('[1]MONE(M)CARD'!HA25=\"\",\"\",'[1]MONE(M)CAPARD'!HA25)","v":"n.d."},{"$f":"IF('[1]MONE(M)CAPARD'!HB25=\"\",\"\",'[1]MONE(M)CAPARD'!HB25)","v":"n.d."},"n.d.","n.d.","n.d.","n.d.","n.d.","n.d.","n.d.","n.d.","n.d.","n.d.","n.d.","n.d.","n.d.","n.d.",{"$f":"IF('[1]MONE(M)CAPARD'!AS25=\"\",\"\",'[1]MONE(M)CAPARD'!AS25)","v":"n.d."},{"$f":"IF('[1]MONE(M)CAPARD'!AT25=\"\",\"\",'[1]MONE(M)CAPARD'!AT25)","v":"n.a."},{"$f":"IF('[1]MONE(M)CAPARD'!AU25=\"\",\"\",'[1]MONE(M)CAPARD'!AU25)","v":"n.d."},{"$f":"IF('[1]MONE(M)CAPARD'!AV25=\"\",\"\",'[1]MONE(M)CAPARD'!AV25)","v":"n.d."},{"$f":"IF('[1]MONE(M)CAPARD'!AW25=\"\",\"\",'[1]MONE(M)CAPARD'!AW25)","v":"n.a."},{"$f":"IF('[1]MONE(M)CAPARD'!AX25=\"\",\"\",'[1]MONE(M)CAPARD'!AX25)","v":"n.d."},{"$f":"IF('[1]MONE(M)CAPARD'!AY25=\"\",\"\",'[1]MONE(M)CAPARD'!AY25)","v":"n.a."},{"$f":"IF('[1]FISCAL(M)'!$K25=\"\",\"\",'[1]FISCAL(M)'!$K25)","v":"n.d."},{"$f":"IF('[1]FISCAL(M)'!$L25=\"\",\"\",'[1]FISCAL(M)'!$L25)","v":"n.d."},{"$f":"IF('[1]FISCAL(M)'!$AY25=\"\",\"\",'[1]FISCAL(M)'!$AY25)","v":"n.d."},{"$f":"IF('[1]FISCAL(M)'!$BI25=\"\",\"\",'[1]FISCAL(M)'!$BI25)","v":"n.d."},{"$f":"IF('[1]FISCAL(M)'!$BS25=\"\",\"\",'[1]FISCAL(M)'!$BS25)","v":"n.d."},{"$f":"IF('[1]FISCAL(M)'!$AZ25=\"\",\"\",'[1]FISCAL(M)'!$AZ25)","v":"n.d."},{"$f":"IF('[1]FISCAL(M)'!$BJ25=\"\",\"\",'[1]FISCAL(M)'!$BJ25)","v":"n.d."},{"$f":"IF('[1]FISCAL(M)'!$BT25=\"\",\"\",'[1]FISCAL(M)'!$BT25)","v":"n.d."},{"$f":"IF('[2]MONE(M)'!$AO25=\"\",\"\",'[2]MONE(M)'!$AO25)","v":"n.d."},{"$f":"IF('[3]MONE(M)'!$AO25=\"\",\"\",'[3]MONE(M)'!$AO25)","v":"n.d."},{"$f":"IF('[4]MONE(M)'!$AO25=\"\",\"\",'[4]MONE(M)'!$AO25)","v":"n.d."},{"$f":"IF('[5]MONE(M)'!$AO25=\"\",\"\",'[5]MONE(M)'!$AO25)","v":"n.d."},{"$f":"IF('[6]MONE(M)'!$AO25=\"\",\"\",'[6]MONE(M)'!$AO25)","v":"n.d."},{"$f":"IF('[7]MONE(M)'!$AO25=\"\",\"\",'[7]MONE(M)'!$AO25)","v":"n.d."},{"$f":"IF('[8]MONE(M)'!$AO25=\"\",\"\",'[8]MONE(M)'!$AO25)","v":"n.d."},"n.d.","n.d.","n.d.","n.d.","n.d.","n.d.","n.d.",{"$f":"IF('[1]FISCAL(M)'!$K25=\"\",\"\",'[1]FISCAL(M)'!$K25)","v":"n.d."},"n.d.","n.d.",{"$f":"IF('[1]FISCAL(M)'!$L25=\"\",\"\",'[1]FISCAL(M)'!$L25)","v":"n.d."},"n.d.","n.d.","n.d.","n.d.","n.d.","n.d.","n.d.","n.d.","n.d.","n.d.","n.d.","n.d.","n.d.","n.d.","n.d.","n.d.","n.d.","n.d."]
[1991,"mayo ","1991-mayo ",{"$f":"IF('[1]REAL IPC(M)'!$AL26=\"\",\"\",+'[1]REAL IPC(M)'!$AL26)","v":"n.d."},{"$f":"IF('[1]REAL IPC(M)'!$BE26=\"\",\"\",+'[1]REAL IPC(M)'!$BE26)","v":"n.d."},{"$f":"IF('[1]REAL IPC(M)'!$AM26=\"\",\"\",+'[1]REAL IPC(M)'!$AM26)","v":"n.d."},{"$f":"IF('[1]REAL IPC(M)'!$BI26=\"\",\"\",+'[1]REAL IPC(M)'!$BI26)","v":"n.d."},{"$f":"IF('[1]REAL IMAE(M)'!BJ26=\"\",\"\",'[1]REAL IMAE(M)'!BJ26)","v":"n.d."},{"$f":"IF('[1]REAL IMAE(M)'!BK26=\"\",\"\",'[1]REAL IMAE(M)'!BK26)","v":"n.d."},{"$f":"IF('[1]REAL IMAE(M)'!BN26=\"\",\"\",'[1]REAL IMAE(M)'!BN26)","v":"n.d."},{"$f":"IF('[1]REAL IMAE(M)'!BO26=\"\",\"\",'[1]REAL IMAE(M)'!BO26)","v":"n.d."},{"$f":"IF('[1]EXT RIN(M)'!$K26=\"\",\"\",'[1]EXT RIN(M)'!$K26)","v":"n.d."},"",{"$f":"IF('[1]EXT RIN(M)'!$L26=\"\",\"\",'[1]EXT RIN(M)'!$L26)","v":"n.d."},"",{"$f":"IF('[1]MONE(M)CARD'!EG26=\"\",\"\",'[1]MONE(M)CARD'!EG26)","v":"n.d."},{"$f":"IF('[1]MONE(M)CARD'!EK26=\"\",\"\",'[1]MONE(M)CARD'!EK26)","v":"n.d."},{"$f":"IF('[1]MONE(M)CARD'!EP26=\"\",\"\",'[1]MONE(M)CARD'!EP26)","v":"n.d."},{"$f":"IF('[1]MONE(M)CARD'!ES26=\"\",\"\",'[1]MONE(M)CARD'!ES26)","v":"n.d."},{"$f":"IF('[1]MONE(M)CARD'!EV26=\"\",\"\",'[1]MONE(M)CARD'!EV26)","v":"n.d."},{"$f":"IF('[1]MONE(M)CARD'!EZ26=\"\",\"\",'[1]MONE(M)CARD'!EZ26)","v":"n.d."},{"$f":"IF('[1]MONE(M)CAPARD'!FC26=\"\",\"\",'[1]MONE(M)CAPARD'!FC26)","v":"n.d."},{"$f":"IF('[1]MONE(M)CAPARD'!FG26=\"\",\"\",'[1]MONE(M)CAPARD'!FG26)","v":"n.d."},{"$f":"IF('[1]MONE(M)CAPARD'!FL26=\"\",\"\",'[1]MONE(M)CAPARD'!FL26)","v":"n.d."},{"$f":"IF('[1]MONE(M)CAPARD'!FO26=\"\",\"\",'[1]MONE(M)CAPARD'!FO26)","v":"n.d."},{"$f":"IF('[1]MONE(M)CAPARD'!FR26=\"\",\"\",'[1]MONE(M)CAPARD'!FR26)","v":"n.d."},{"$f":"IF('[1]MONE(M)CAPARD'!FV26=\"\",\"\",'[1]MONE(M)CAPARD'!FV26)","v":"n.d."},{"$f":"IF('[1]MONE(M)CARD'!FV26=\"\",\"\",'[1]MONE(M)CARD'!FV26)","v":""},{"$f":"IF('[1]MONE(M)CARD'!GD26=\"\",\"\",'[1]MONE(M)CARD'!GD26)","v":"n.d."},{"$f":"IF('[1]MONE(M)CARD'!GE26=\"\",\"\",'[1]MONE(M)CARD'!GE26)","v":"n.d."},"n.d.","n.d.","n.d.","n.d.","n.d.","n.d.","n.d.","n.d.",null,"n.d.","n.d.","n.d.","n.d.","n.d.",{"$f":"IF('[1]MONE(M)CAPARD'!GS26=\"\",\"\",'[1]MONE(M)CAPARD'!GS26)","v":"n.d."},{"$f":"IF('[1]MONE(M)CARD'!HA26=\"\",\"\",'[1]MONE(M)CAPARD'!HA26)","v":"n.d."},{"$f":"IF('[1]MONE(M)CAPARD'!HB26=\"\",\"\",'[1]MONE(M)CAPARD'!HB26)","v":"n.d."},"n.d.","n.d.","n.d.","n.d.","n.d.","n.d.","n.d.","n.d.","n.d.","n.d.","n.d.","n.d.","n.d.","n.d.",{"$f":"IF('[1]MONE(M)CAPARD'!AS26=\"\",\"\",'[1]MONE(M)CAPARD'!AS26)","v":"n.d."},{"$f":"IF('[1]MONE(M)CAPARD'!AT26=\"\",\"\",'[1]MONE(M)CAPARD'!AT26)","v":"n.a."},{"$f":"IF('[1]MONE(M)CAPARD'!AU26=\"\",\"\",'[1]MONE(M)CAPARD'!AU26)","v":"n.d."},{"$f":"IF('[1]MONE(M)CAPARD'!AV26=\"\",\"\",'[1]MONE(M)CAPARD'!AV26)","v":"n.d."},{"$f":"IF('[1]MONE(M)CAPARD'!AW26=\"\",\"\",'[1]MONE(M)CAPARD'!AW26)","v":"n.a."},{"$f":"IF('[1]MONE(M)CAPARD'!AX26=\"\",\"\",'[1]MONE(M)CAPARD'!AX26)","v":"n.d."},{"$f":"IF('[1]MONE(M)CAPARD'!AY26=\"\",\"\",'[1]MONE(M)CAPARD'!AY26)","v":"n.a."},{"$f":"IF('[1]FISCAL(M)'!$K26=\"\",\"\",'[1]FISCAL(M)'!$K26)","v":"n.d."},{"$f":"IF('[1]FISCAL(M)'!$L26=\"\",\"\",'[1]FISCAL(M)'!$L26)","v":"n.d."},{"$f":"IF('[1]FISCAL(M)'!$AY26=\"\",\"\",'[1]FISCAL(M)'!$AY26)","v":"n.d."},{"$f":"IF('[1]FISCAL(M)'!$BI26=\"\",\"\",'[1]FISCAL(M)'!$BI26)","v":"n.d."},{"$f":"IF('[1]FISCAL(M)'!$BS26=\"\",\"\",'[1]FISCAL(M)'!$BS26)","v":"n.d."},{"$f":"IF('[1]FISCAL(M)'!$AZ26=\"\",\"\",'[1]FISCAL(M)'!$AZ26)","v":"n.d."},{"$f":"IF('[1]FISCAL(M)'!$BJ26=\"\",\"\",'[1]FISCAL(M)'!$BJ26)","v":"n.d."},{"$f":"IF('[1]FISCAL(M)'!$BT26=\"\",\"\",'[1]FISCAL(M)'!$BT26)","v":"n.d."},{"$f":"IF('[2]MONE(M)'!$AO26=\"\",\"\",'[2]MONE(M)'!$AO26)","v":"n.d."},{"$f":"IF('[3]MONE(M)'!$AO26=\"\",\"\",'[3]MONE(M)'!$AO26)","v":"n.d."},{"$f":"IF('[4]MONE(M)'!$AO26=\"\",\"\",'[4]MONE(M)'!$AO26)","v":"n.d."},{"$f":"IF('[5]MONE(M)'!$AO26=\"\",\"\",'[5]MONE(M)'!$AO26)","v":"n.d."},{"$f":"IF('[6]MONE(M)'!$AO26=\"\",\"\",'[6]MONE(M)'!$AO26)","v":"n.d."},{"$f":"IF('[7]MONE(M)'!$AO26=\"\",\"\",'[7]MONE(M)'!$AO26)","v":"n.d."},{"$f":"IF('[8]MONE(M)'!$AO26=\"\",\"\",'[8]MONE(M)'!$AO26)","v":"n.d."},"n.d.","n.d.","n.d.","n.d.","n.d.","n.d.","n.d.",{"$f":"IF('[1]FISCAL(M)'!$K26=\"\",\"\",'[1]FISCAL(M)'!$K26)","v":"n.d."},"n.d.","n.d.",{"$f":"IF('[1]FISCAL(M)'!$L26=\"\",\"\",'[1]FISCAL(M)'!$L26)","v":"n.d."},"n.d.","n.d.","n.d.","n.d.","n.d.","n.d.","n.d.","n.d.","n.d.","n.d.","n.d.","n.d.","n.d.","n.d.","n.d.","n.d.","n.d.","n.d."]
[1991,"junio ","1991-junio ",{"$f":"IF('[1]REAL IPC(M)'!$AL27=\"\",\"\",+'[1]REAL IPC(M)'!$AL27)","v":"n.d."},{"$f":"IF('[1]REAL IPC(M)'!$BE27=\"\",\"\",+'[1]REAL IPC(M)'!$BE27)","v":"n.d."},{"$f":"IF('[1]REAL IPC(M)'!$AM27=\"\",\"\",+'[1]REAL IPC(M)'!$AM27)","v":"n.d."},{"$f":"IF('[1]REAL IPC(M)'!$BI27=\"\",\"\",+'[1]REAL IPC(M)'!$BI27)","v":"n.d."},{"$f":"IF('[1]REAL IMAE(M)'!BJ27=\"\",\"\",'[1]REAL IMAE(M)'!BJ27)","v":"n.d."},{"$f":"IF('[1]REAL IMAE(M)'!BK27=\"\",\"\",'[1]REAL IMAE(M)'!BK27)","v":"n.d."},{"$f":"IF('[1]REAL IMAE(M)'!BN27=\"\",\"\",'[1]REAL IMAE(M)'!BN27)","v":"n.d."},{"$f":"IF('[1]REAL IMAE(M)'!BO27=\"\",\"\",'[1]REAL IMAE(M)'!BO27)","v":"n.d."},{"$f":"IF('[1]EXT RIN(M)'!$K27=\"\",\"\",'[1]EXT RIN(M)'!$K27)","v":"n.d."},"",{"$f":"IF('[1]EXT RIN(M)'!$L27=\"\",\"\",'[1]EXT RIN(M)'!$L27)","v":"n.d."},"",{"$f":"IF('[1]MONE(M)CARD'!EG27=\"\",\"\",'[1]MONE(M)CARD'!EG27)","v":"n.d."},{"$f":"IF('[1]MONE(M)CARD'!EK27=\"\",\"\",'[1]MONE(M)CARD'!EK27)","v":"n.d."},{"$f":"IF('[1]MONE(M)CARD'!EP27=\"\",\"\",'[1]MONE(M)CARD'!EP27)","v":"n.d."},{"$f":"IF('[1]MONE(M)CARD'!ES27=\"\",\"\",'[1]MONE(M)CARD'!ES27)","v":"n.d."},{"$f":"IF('[1]MONE(M)CARD'!EV27=\"\",\"\",'[1]MONE(M)CARD'!EV27)","v":"n.d."},{"$f":"IF('[1]MONE(M)CARD'!EZ27=\"\",\"\",'[1]MONE(M)CARD'!EZ27)","v":"n.d."},{"$f":"IF('[1]MONE(M)CAPARD'!FC27=\"\",\"\",'[1]MONE(M)CAPARD'!FC27)","v":"n.d."},{"$f":"IF('[1]MONE(M)CAPARD'!FG27=\"\",\"\",'[1]MONE(M)CAPARD'!FG27)","v":"n.d."},{"$f":"IF('[1]MONE(M)CAPARD'!FL27=\"\",\"\",'[1]MONE(M)CAPARD'!FL27)","v":"n.d."},{"$f":"IF('[1]MONE(M)CAPARD'!FO27=\"\",\"\",'[1]MONE(M)CAPARD'!FO27)","v":"n.d."},{"$f":"IF('[1]MONE(M)CAPARD'!FR27=\"\",\"\",'[1]MONE(M)CAPARD'!FR27)","v":"n.d."},{"$f":"IF('[1]MONE(M)CAPARD'!FV27=\"\",\"\",'[1]MONE(M)CAPARD'!FV27)","v":"n.d."},{"$f":"IF('[1]MONE(M)CARD'!FV27=\"\",\"\",'[1]MONE(M)CARD'!FV27)","v":""},{"$f":"IF('[1]MONE(M)CARD'!GD27=\"\",\"\",'[1]MONE(M)CARD'!GD27)","v":"n.d."},{"$f":"IF('[1]MONE(M)CARD'!GE27=\"\",\"\",'[1]MONE(M)CARD'!GE27)","v":"n.d."},"n.d.","n.d.","n.d.","n.d.","n.d.","n.d.","n.d.","n.d.",null,"n.d.","n.d.","n.d.","n.d.","n.d.",{"$f":"IF('[1]MONE(M)CAPARD'!GS27=\"\",\"\",'[1]MONE(M)CAPARD'!GS27)","v":"n.d."},{"$f":"IF('[1]MONE(M)CARD'!HA27=\"\",\"\",'[1]MONE(M)CAPARD'!HA27)","v":"n.d."},{"$f":"IF('[1]MONE(M)CAPARD'!HB27=\"\",\"\",'[1]MONE(M)CAPARD'!HB27)","v":"n.d."},"n.d.","n.d.","n.d.","n.d.","n.d.","n.d.","n.d.","n.d.","n.d.","n.d.","n.d.","n.d.","n.d.","n.d.",{"$f":"IF('[1]MONE(M)CAPARD'!AS27=\"\",\"\",'[1]MONE(M)CAPARD'!AS27)","v":"n.d."},{"$f":"IF('[1]MONE(M)CAPARD'!AT27=\"\",\"\",'[1]MONE(M)CAPARD'!AT27)","v":"n.a."},{"$f":"IF('[1]MONE(M)CAPARD'!AU27=\"\",\"\",'[1]MONE(M)CAPARD'!AU27)","v":"n.d."},{"$f":"IF('[1]MONE(M)CAPARD'!AV27=\"\",\"\",'[1]MONE(M)CAPARD'!AV27)","v":"n.d."},{"$f":"IF('[1]MONE(M)CAPARD'!AW27=\"\",\"\",'[1]MONE(M)CAPARD'!AW27)","v":"n.a."},{"$f":"IF('[1]MONE(M)CAPARD'!AX27=\"\",\"\",'[1]MONE(M)CAPARD'!AX27)","v":"n.d."},{"$f":"IF('[1]MONE(M)CAPARD'!AY27=\"\",\"\",'[1]MONE(M)CAPARD'!AY27)","v":"n.a."},{"$f":"IF('[1]FISCAL(M)'!$K27=\"\",\"\",'[1]FISCAL(M)'!$K27)","v":"n.d."},{"$f":"IF('[1]FISCAL(M)'!$L27=\"\",\"\",'[1]FISCAL(M)'!$L27)","v":"n.d."},{"$f":"IF('[1]FISCAL(M)'!$AY27=\"\",\"\",'[1]FISCAL(M)'!$AY27)","v":"n.d."},{"$f":"IF('[1]FISCAL(M)'!$BI27=\"\",\"\",'[1]FISCAL(M)'!$BI27)","v":"n.d."},{"$f":"IF('[1]FISCAL(M)'!$BS27=\"\",\"\",'[1]FISCAL(M)'!$BS27)","v":"n.d."},{"$f":"IF('[1]FISCAL(M)'!$AZ27=\"\",\"\",'[1]FISCAL(M)'!$AZ27)","v":"n.d."},{"$f":"IF('[1]FISCAL(M)'!$BJ27=\"\",\"\",'[1]FISCAL(M)'!$BJ27)","v":"n.d."},{"$f":"IF('[1]FISCAL(M)'!$BT27=\"\",\"\",'[1]FISCAL(M)'!$BT27)","v":"n.d."},{"$f":"IF('[2]MONE(M)'!$AO27=\"\",\"\",'[2]MONE(M)'!$AO27)","v":"n.d."},{"$f":"IF('[3]MONE(M)'!$AO27=\"\",\"\",'[3]MONE(M)'!$AO27)","v":"n.d."},{"$f":"IF('[4]MONE(M)'!$AO27=\"\",\"\",'[4]MONE(M)'!$AO27)","v":"n.d."},{"$f":"IF('[5]MONE(M)'!$AO27=\"\",\"\",'[5]MONE(M)'!$AO27)","v":"n.d."},{"$f":"IF('[6]MONE(M)'!$AO27=\"\",\"\",'[6]MONE(M)'!$AO27)","v":"n.d."},{"$f":"IF('[7]MONE(M)'!$AO27=\"\",\"\",'[7]MONE(M)'!$AO27)","v":"n.d."},{"$f":"IF('[8]MONE(M)'!$AO27=\"\",\"\",'[8]MONE(M)'!$AO27)","v":"n.d."},"n.d.","n.d.","n.d.","n.d.","n.d.","n.d.","n.d.",{"$f":"IF('[1]FISCAL(M)'!$K27=\"\",\"\",'[1]FISCAL(M)'!$K27)","v":"n.d."},"n.d.","n.d.",{"$f":"IF('[1]FISCAL(M)'!$L27=\"\",\"\",'[1]FISCAL(M)'!$L27)","v":"n.d."},"n.d.","n.d.","n.d.","n.d.","n.d.","n.d.","n.d.","n.d.","n.d.","n.d.","n.d.","n.d.","n.d.","n.d.","n.d.","n.d.","n.d.","n.d."]
[1991,"julio","1991-julio",{"$f":"IF('[1]REAL IPC(M)'!$AL28=\"\",\"\",+'[1]REAL IPC(M)'!$AL28)","v":"n.d."},{"$f":"IF('[1]REAL IPC(M)'!$BE28=\"\",\"\",+'[1]REAL IPC(M)'!$BE28)","v":"n.d."},{"$f":"IF('[1]REAL IPC(M)'!$AM28=\"\",\"\",+'[1]REAL IPC(M)'!$AM28)","v":"n.d."},{"$f":"IF('[1]REAL IPC(M)'!$BI28=\"\",\"\",+'[1]REAL IPC(M)'!$BI28)","v":"n.d."},{"$f":"IF('[1]REAL IMAE(M)'!BJ28=\"\",\"\",'[1]REAL IMAE(M)'!BJ28)","v":"n.d."},{"$f":"IF('[1]REAL IMAE(M)'!BK28=\"\",\"\",'[1]REAL IMAE(M)'!BK28)","v":"n.d."},{"$f":"IF('[1]REAL IMAE(M)'!BN28=\"\",\"\",'[1]REAL IMAE(M)'!BN28)","v":"n.d."},{"$f":"IF('[1]REAL IMAE(M)'!BO28=\"\",\"\",'[1]REAL IMAE(M)'!BO28)","v":"n.d."},{"$f":"IF('[1]EXT RIN(M)'!$K28=\"\",\"\",'[1]EXT RIN(M)'!$K28)","v":"n.d."},"",{"$f":"IF('[1]EXT RIN(M)'!$L28=\"\",\"\",'[1]EXT RIN(M)'!$L28)","v":"n.d."},"",{"$f":"IF('[1]MONE(M)CARD'!EG28=\"\",\"\",'[1]MONE(M)CARD'!EG28)","v":"n.d."},{"$f":"IF('[1]MONE(M)CARD'!EK28=\"\",\"\",'[1]MONE(M)CARD'!EK28)","v":"n.d."},{"$f":"IF('[1]MONE(M)CARD'!EP28=\"\",\"\",'[1]MONE(M)CARD'!EP28)","v":"n.d."},{"$f":"IF('[1]MONE(M)CARD'!ES28=\"\",\"\",'[1]MONE(M)CARD'!ES28)","v":"n.d."},{"$f":"IF('[1]MONE(M)CARD'!EV28=\"\",\"\",'[1]MONE(M)CARD'!EV28)","v":"n.d."},{"$f":"IF('[1]MONE(M)CARD'!EZ28=\"\",\"\",'[1]MONE(M)CARD'!EZ28)","v":"n.d."},{"$f":"IF('[1]MONE(M)CAPARD'!FC28=\"\",\"\",'[1]MONE(M)CAPARD'!FC28)","v":"n.d."},{"$f":"IF('[1]MONE(M)CAPARD'!FG28=\"\",\"\",'[1]MONE(M)CAPARD'!FG28)","v":"n.d."},{"$f":"IF('[1]MONE(M)CAPARD'!FL28=\"\",\"\",'[1]MONE(M)CAPARD'!FL28)","v":"n.d."},{"$f":"IF('[1]MONE(M)CAPARD'!FO28=\"\",\"\",'[1]MONE(M)CAPARD'!FO28)","v":"n.d."},{"$f":"IF('[1]MONE(M)CAPARD'!FR28=\"\",\"\",'[1]MONE(M)CAPARD'!FR28)","v":"n.d."},{"$f":"IF('[1]MONE(M)CAPARD'!FV28=\"\",\"\",'[1]MONE(M)CAPARD'!FV28)","v":"n.d."},{"$f":"IF('[1]MONE(M)CARD'!FV28=\"\",\"\",'[1]MONE(M)CARD'!FV28)","v":""},{"$f":"IF('[1]MONE(M)CARD'!GD28=\"\",\"\",'[1]MONE(M)CARD'!GD28)","v":"n.d."},{"$f":"IF('[1]MONE(M)CARD'!GE28=\"\",\"\",'[1]MONE(M)CARD'!GE28)","v":"n.d."},"n.d.","n.d.","n.d.","n.d.","n.d.","n.d.","n.d.","n.d.",null,"n.d.","n.d.","n.d.","n.d.","n.d.",{"$f":"IF('[1]MONE(M)CAPARD'!GS28=\"\",\"\",'[1]MONE(M)CAPARD'!GS28)","v":"n.d."},{"$f":"IF('[1]MONE(M)CARD'!HA28=\"\",\"\",'[1]MONE(M)CAPARD'!HA28)","v":"n.d."},{"$f":"IF('[1]MONE(M)CAPARD'!HB28=\"\",\"\",'[1]MONE(M)CAPARD'!HB28)","v":"n.d."},"n.d.","n.d.","n.d.","n.d.","n.d.","n.d.","n.d.","n.d.","n.d.","n.d.","n.d.","n.d.","n.d.","n.d.",{"$f":"IF('[1]MONE(M)CAPARD'!AS28=\"\",\"\",'[1]MONE(M)CAPARD'!AS28)","v":"n.d."},{"$f":"IF('[1]MONE(M)CAPARD'!AT28=\"\",\"\",'[1]MONE(M)CAPARD'!AT28)","v":"n.a."},{"$f":"IF('[1]MONE(M)CAPARD'!AU28=\"\",\"\",'[1]MONE(M)CAPARD'!AU28)","v":"n.d."},{"$f":"IF('[1]MONE(M)CAPARD'!AV28=\"\",\"\",'[1]MONE(M)CAPARD'!AV28)","v":"n.d."},{"$f":"IF('[1]MONE(M)CAPARD'!AW28=\"\",\"\",'[1]MONE(M)CAPARD'!AW28)","v":"n.a."},{"$f":"IF('[1]MONE(M)CAPARD'!AX28=\"\",\"\",'[1]MONE(M)CAPARD'!AX28)","v":"n.d."},{"$f":"IF('[1]MONE(M)CAPARD'!AY28=\"\",\"\",'[1]MONE(M)CAPARD'!AY28)","v":"n.a."},{"$f":"IF('[1]FISCAL(M)'!$K28=\"\",\"\",'[1]FISCAL(M)'!$K28)","v":"n.d."},{"$f":"IF('[1]FISCAL(M)'!$L28=\"\",\"\",'[1]FISCAL(M)'!$L28)","v":"n.d."},{"$f":"IF('[1]FISCAL(M)'!$AY28=\"\",\"\",'[1]FISCAL(M)'!$AY28)","v":"n.d."},{"$f":"IF('[1]FISCAL(M)'!$BI28=\"\",\"\",'[1]FISCAL(M)'!$BI28)","v":"n.d."},{"$f":"IF('[1]FISCAL(M)'!$BS28=\"\",\"\",'[1]FISCAL(M)'!$BS28)","v":"n.d."},{"$f":"IF('[1]FISCAL(M)'!$AZ28=\"\",\"\",'[1]FISCAL(M)'!$AZ28)","v":"n.d."},{"$f":"IF('[1]FISCAL(M)'!$BJ28=\"\",\"\",'[1]FISCAL(M)'!$BJ28)","v":"n.d."},{"$f":"IF('[1]FISCAL(M)'!$BT28=\"\",\"\",'[1]FISCAL(M)'!$BT28)","v":"n.d."},{"$f":"IF('[2]MONE(M)'!$AO28=\"\",\"\",'[2]MONE(M)'!$AO28)","v":"n.d."},{"$f":"IF('[3]MONE(M)'!$AO28=\"\",\"\",'[3]MONE(M)'!$AO28)","v":"n.d."},{"$f":"IF('[4]MONE(M)'!$AO28=\"\",\"\",'[4]MONE(M)'!$AO28)","v":"n.d."},{"$f":"IF('[5]MONE(M)'!$AO28=\"\",\"\",'[5]MONE(M)'!$AO28)","v":"n.d."},{"$f":"IF('[6]MONE(M)'!$AO28=\"\",\"\",'[6]MONE(M)'!$AO28)","v":"n.d."},{"$f":"IF('[7]MONE(M)'!$AO28=\"\",\"\",'[7]MONE(M)'!$AO28)","v":"n.d."},{"$f":"IF('[8]MONE(M)'!$AO28=\"\",\"\",'[8]MONE(M)'!$AO28)","v":"n.d."},"n.d.","n.d.","n.d.","n.d.","n.d.","n.d.","n.d.",{"$f":"IF('[1]FISCAL(M)'!$K28=\"\",\"\",'[1]FISCAL(M)'!$K28)","v":"n.d."},"n.d.","n.d.",{"$f":"IF('[1]FISCAL(M)'!$L28=\"\",\"\",'[1]FISCAL(M)'!$L28)","v":"n.d."},"n.d.","n.d.","n.d.","n.d.","n.d.","n.d.","n.d.","n.d.","n.d.","n.d.","n.d.","n.d.","n.d.","n.d.","n.d.","n.d.","n.d.","n.d."]
[1991,"agosto","1991-agosto",{"$f":"IF('[1]REAL IPC(M)'!$AL29=\"\",\"\",+'[1]REAL IPC(M)'!$AL29)","v":"n.d."},{"$f":"IF('[1]REAL IPC(M)'!$BE29=\"\",\"\",+'[1]REAL IPC(M)'!$BE29)","v":"n.d."},{"$f":"IF('[1]REAL IPC(M)'!$AM29=\"\",\"\",+'[1]REAL IPC(M)'!$AM29)","v":"n.d."},{"$f":"IF('[1]REAL IPC(M)'!$BI29=\"\",\"\",+'[1]REAL IPC(M)'!$BI29)","v":"n.d."},{"$f":"IF('[1]REAL IMAE(M)'!BJ29=\"\",\"\",'[1]REAL IMAE(M)'!BJ29)","v":"n.d."},{"$f":"IF('[1]REAL IMAE(M)'!BK29=\"\",\"\",'[1]REAL IMAE(M)'!BK29)","v":"n.d."},{"$f":"IF('[1]REAL IMAE(M)'!BN29=\"\",\"\",'[1]REAL IMAE(M)'!BN29)","v":"n.d."},{"$f":"IF('[1]REAL IMAE(M)'!BO29=\"\",\"\",'[1]REAL IMAE(M)'!BO29)","v":"n.d."},{"$f":"IF('[1]EXT RIN(M)'!$K29=\"\",\"\",'[1]EXT RIN(M)'!$K29)","v":"n.d."},"",{"$f":"IF('[1]EXT RIN(M)'!$L29=\"\",\"\",'[1]EXT RIN(M)'!$L29)","v":"n.d."},"",{"$f":"IF('[1]MONE(M)CARD'!EG29=\"\",\"\",'[1]MONE(M)CARD'!EG29)","v":"n.d."},{"$f":"IF('[1]MONE(M)CARD'!EK29=\"\",\"\",'[1]MONE(M)CARD'!EK29)","v":"n.d."},{"$f":"IF('[1]MONE(M)CARD'!EP29=\"\",\"\",'[1]MONE(M)CARD'!EP29)","v":"n.d."},{"$f":"IF('[1]MONE(M)CARD'!ES29=\"\",\"\",'[1]MONE(M)CARD'!ES29)","v":"n.d."},{"$f":"IF('[1]MONE(M)CARD'!EV29=\"\",\"\",'[1]MONE(M)CARD'!EV29)","v":"n.d."},{"$f":"IF('[1]MONE(M)CARD'!EZ29=\"\",\"\",'[1]MONE(M)CARD'!EZ29)","v":"n.d."},{"$f":"IF('[1]MONE(M)CAPARD'!FC29=\"\",\"\",'[1]MONE(M)CAPARD'!FC29)","v":"n.d."},{"$f":"IF('[1]MONE(M)CAPARD'!FG29=\"\",\"\",'[1]MONE(M)CAPARD'!FG29)","v":"n.d."},{"$f":"IF('[1]MONE(M)CAPARD'!FL29=\"\",\"\",'[1]MONE(M)CAPARD'!FL29)","v":"n.d."},{"$f":"IF('[1]MONE(M)CAPARD'!FO29=\"\",\"\",'[1]MONE(M)CAPARD'!FO29)","v":"n.d."},{"$f":"IF('[1]MONE(M)CAPARD'!FR29=\"\",\"\",'[1]MONE(M)CAPARD'!FR29)","v":"n.d."},{"$f":"IF('[1]MONE(M)CAPARD'!FV29=\"\",\"\",'[1]MONE(M)CAPARD'!FV29)","v":"n.d."},{"$f":"IF('[1]MONE(M)CARD'!FV29=\"\",\"\",'[1]MONE(M)CARD'!FV29)","v":""},{"$f":"IF('[1]MONE(M)CARD'!GD29=\"\",\"\",'[1]MONE(M)CARD'!GD29)","v":"n.d."},{"$f":"IF('[1]MONE(M)CARD'!GE29=\"\",\"\",'[1]MONE(M)CARD'!GE29)","v":"n.d."},"n.d.","n.d.","n.d.","n.d.","n.d.","n.d.","n.d.","n.d.",null,"n.d.","n.d.","n.d.","n.d.","n.d.",{"$f":"IF('[1]MONE(M)CAPARD'!GS29=\"\",\"\",'[1]MONE(M)CAPARD'!GS29)","v":"n.d."},{"$f":"IF('[1]MONE(M)CARD'!HA29=\"\",\"\",'[1]MONE(M)CAPARD'!HA29)","v":"n.d."},{"$f":"IF('[1]MONE(M)CAPARD'!HB29=\"\",\"\",'[1]MONE(M)CAPARD'!HB29)","v":"n.d."},"n.d.","n.d.","n.d.","n.d.","n.d.","n.d.","n.d.","n.d.","n.d.","n.d.","n.d.","n.d.","n.d.","n.d.",{"$f":"IF('[1]MONE(M)CAPARD'!AS29=\"\",\"\",'[1]MONE(M)CAPARD'!AS29)","v":"n.d."},{"$f":"IF('[1]MONE(M)CAPARD'!AT29=\"\",\"\",'[1]MONE(M)CAPARD'!AT29)","v":"n.a."},{"$f":"IF('[1]MONE(M)CAPARD'!AU29=\"\",\"\",'[1]MONE(M)CAPARD'!AU29)","v":"n.d."},{"$f":"IF('[1]MONE(M)CAPARD'!AV29=\"\",\"\",'[1]MONE(M)CAPARD'!AV29)","v":"n.d."},{"$f":"IF('[1]MONE(M)CAPARD'!AW29=\"\",\"\",'[1]MONE(M)CAPARD'!AW29)","v":"n.a."},{"$f":"IF('[1]MONE(M)CAPARD'!AX29=\"\",\"\",'[1]MONE(M)CAPARD'!AX29)","v":"n.d."},{"$f":"IF('[1]MONE(M)CAPARD'!AY29=\"\",\"\",'[1]MONE(M)CAPARD'!AY29)","v":"n.a."},{"$f":"IF('[1]FISCAL(M)'!$K29=\"\",\"\",'[1]FISCAL(M)'!$K29)","v":"n.d."},{"$f":"IF('[1]FISCAL(M)'!$L29=\"\",\"\",'[1]FISCAL(M)'!$L29)","v":"n.d."},{"$f":"IF('[1]FISCAL(M)'!$AY29=\"\",\"\",'[1]FISCAL(M)'!$AY29)","v":"n.d."},{"$f":"IF('[1]FISCAL(M)'!$BI29=\"\",\"\",'[1]FISCAL(M)'!$BI29)","v":"n.d."},{"$f":"IF('[1]FISCAL(M)'!$BS29=\"\",\"\",'[1]FISCAL(M)'!$BS29)","v":"n.d."},{"$f":"IF('[1]FISCAL(M)'!$AZ29=\"\",\"\",'[1]FISCAL(M)'!$AZ29)","v":"n.d."},{"$f":"IF('[1]FISCAL(M)'!$BJ29=\"\",\"\",'[1]FISCAL(M)'!$BJ29)","v":"n.d."},{"$f":"IF('[1]FISCAL(M)'!$BT29=\"\",\"\",'[1]FISCAL(M)'!$BT29)","v":"n.d."},{"$f":"IF('[2]MONE(M)'!$AO29=\"\",\"\",'[2]MONE(M)'!$AO29)","v":"n.d."},{"$f":"IF('[3]MONE(M)'!$AO29=\"\",\"\",'[3]MONE(M)'!$AO29)","v":"n.d."},{"$f":"IF('[4]MONE(M)'!$AO29=\"\",\"\",'[4]MONE(M)'!$AO29)","v":"n.d."},{"$f":"IF('[5]MONE(M)'!$AO29=\"\",\"\",'[5]MONE(M)'!$AO29)","v":"n.d."},{"$f":"IF('[6]MONE(M)'!$AO29=\"\",\"\",'[6]MONE(M)'!$AO29)","v":"n.d."},{"$f":"IF('[7]MONE(M)'!$AO29=\"\",\"\",'[7]MONE(M)'!$AO29)","v":"n.d."},{"$f":"IF('[8]MONE(M)'!$AO29=\"\",\"\",'[8]MONE(M)'!$AO29)","v":"n.d."},"n.d.","n.d.","n.d.","n.d.","n.d.","n.d.","n.d.",{"$f":"IF('[1]FISCAL(M)'!$K29=\"\",\"\",'[1]FISCAL(M)'!$K29)","v":"n.d."},"n.d.","n.d.",{"$f":"IF('[1]FISCAL(M)'!$L29=\"\",\"\",'[1]FISCAL(M)'!$L29)","v":"n.d."},"n.d.","n.d.","n.d.","n.d.","n.d.","n.d.","n.d.","n.d.","n.d.","n.d.","n.d.","n.d.","n.d.","n.d.","n.d.","n.d.","n.d.","n.d."]
[1991,"septiembre","1991-septiembre",{"$f":"IF('[1]REAL IPC(M)'!$AL30=\"\",\"\",+'[1]REAL IPC(M)'!$AL30)","v":"n.d."},{"$f":"IF('[1]REAL IPC(M)'!$BE30=\"\",\"\",+'[1]REAL IPC(M)'!$BE30)","v":"n.d."},{"$f":"IF('[1]REAL IPC(M)'!$AM30=\"\",\"\",+'[1]REAL IPC(M)'!$AM30)","v":"n.d."},{"$f":"IF('[1]REAL IPC(M)'!$BI30=\"\",\"\",+'[1]REAL IPC(M)'!$BI30)","v":"n.d."},{"$f":"IF('[1]REAL IMAE(M)'!BJ30=\"\",\"\",'[1]REAL IMAE(M)'!BJ30)","v":"n.d."},{"$f":"IF('[1]REAL IMAE(M)'!BK30=\"\",\"\",'[1]REAL IMAE(M)'!BK30)","v":"n.d."},{"$f":"IF('[1]REAL IMAE(M)'!BN30=\"\",\"\",'[1]REAL IMAE(M)'!BN30)","v":"n.d."},{"$f":"IF('[1]REAL IMAE(M)'!BO30=\"\",\"\",'[1]REAL IMAE(M)'!BO30)","v":"n.d."},{"$f":"IF('[1]EXT RIN(M)'!$K30=\"\",\"\",'[1]EXT RIN(M)'!$K30)","v":"n.d."},"",{"$f":"IF('[1]EXT RIN(M)'!$L30=\"\",\"\",'[1]EXT RIN(M)'!$L30)","v":"n.d."},"",{"$f":"IF('[1]MONE(M)CARD'!EG30=\"\",\"\",'[1]MONE(M)CARD'!EG30)","v":"n.d."},{"$f":"IF('[1]MONE(M)CARD'!EK30=\"\",\"\",'[1]MONE(M)CARD'!EK30)","v":"n.d."},{"$f":"IF('[1]MONE(M)CARD'!EP30=\"\",\"\",'[1]MONE(M)CARD'!EP30)","v":"n.d."},{"$f":"IF('[1]MONE(M)CARD'!ES30=\"\",\"\",'[1]MONE(M)CARD'!ES30)","v":"n.d."},{"$f":"IF('[1]MONE(M)CARD'!EV30=\"\",\"\",'[1]MONE(M)CARD'!EV30)","v":"n.d."},{"$f":"IF('[1]MONE(M)CARD'!EZ30=\"\",\"\",'[1]MONE(M)CARD'!EZ30)","v":"n.d."},{"$f":"IF('[1]MONE(M)CAPARD'!FC30=\"\",\"\",'[1]MONE(M)CAPARD'!FC30)","v":"n.d."},{"$f":"IF('[1]MONE(M)CAPARD'!FG30=\"\",\"\",'[1]MONE(M)CAPARD'!FG30)","v":"n.d."},{"$f":"IF('[1]MONE(M)CAPARD'!FL30=\"\",\"\",'[1]MONE(M)CAPARD'!FL30)","v":"n.d."},{"$f":"IF('[1]MONE(M)CAPARD'!FO30=\"\",\"\",'[1]MONE(M)CAPARD'!FO30)","v":"n.d."},{"$f":"IF('[1]MONE(M)CAPARD'!FR30=\"\",\"\",'[1]MONE(M)CAPARD'!FR30)","v":"n.d."},{"$f":"IF('[1]MONE(M)CAPARD'!FV30=\"\",\"\",'[1]MONE(M)CAPARD'!FV30)","v":"n.d."},{"$f":"IF('[1]MONE(M)CARD'!FV30=\"\",\"\",'[1]MONE(M)CARD'!FV30)","v":""},{"$f":"IF('[1]MONE(M)CARD'!GD30=\"\",\"\",'[1]MONE(M)CARD'!GD30)","v":"n.d."},{"$f":"IF('[1]MONE(M)CARD'!GE30=\"\",\"\",'[1]MONE(M)CARD'!GE30)","v":"n.d."},"n.d.","n.d.","n.d.","n.d.","n.d.","n.d.","n.d.","n.d.",null,"n.d.","n.d.","n.d.","n.d.","n.d.",{"$f":"IF('[1]MONE(M)CAPARD'!GS30=\"\",\"\",'[1]MONE(M)CAPARD'!GS30)","v":"n.d."},{"$f":"IF('[1]MONE(M)CARD'!HA30=\"\",\"\",'[1]MONE(M)CAPARD'!HA30)","v":"n.d."},{"$f":"IF('[1]MONE(M)CAPARD'!HB30=\"\",\"\",'[1]MONE(M)CAPARD'!HB30)","v":"n.d."},"n.d.","n.d.","n.d.","n.d.","n.d.","n.d.","n.d.","n.d.","n.d.","n.d.","n.d.","n.d.","n.d.","n.d.",{"$f":"IF('[1]MONE(M)CAPARD'!AS30=\"\",\"\",'[1]MONE(M)CAPARD'!AS30)","v":"n.d."},{"$f":"IF('[1]MONE(M)CAPARD'!AT30=\"\",\"\",'[1]MONE(M)CAPARD'!AT30)","v":"n.a."},{"$f":"IF('[1]MONE(M)CAPARD'!AU30=\"\",\"\",'[1]MONE(M)CAPARD'!AU30)","v":"n.d."},{"$f":"IF('[1]MONE(M)CAPARD'!AV30=\"\",\"\",'[1]MONE(M)CAPARD'!AV30)","v":"n.d."},{"$f":"IF('[1]MONE(M)CAPARD'!AW30=\"\",\"\",'[1]MONE(M)CAPARD'!AW30)","v":"n.a."},{"$f":"IF('[1]MONE(M)CAPARD'!AX30=\"\",\"\",'[1]MONE(M)CAPARD'!AX30)","v":"n.d."},{"$f":"IF('[1]MONE(M)CAPARD'!AY30=\"\",\"\",'[1]MONE(M)CAPARD'!AY30)","v":"n.a."},{"$f":"IF('[1]FISCAL(M)'!$K30=\"\",\"\",'[1]FISCAL(M)'!$K30)","v":"n.d."},{"$f":"IF('[1]FISCAL(M)'!$L30=\"\",\"\",'[1]FISCAL(M)'!$L30)","v":"n.d."},{"$f":"IF('[1]FISCAL(M)'!$AY30=\"\",\"\",'[1]FISCAL(M)'!$AY30)","v":"n.d."},{"$f":"IF('[1]FISCAL(M)'!$BI30=\"\",\"\",'[1]FISCAL(M)'!$BI30)","v":"n.d."},{"$f":"IF('[1]FISCAL(M)'!$BS30=\"\",\"\",'[1]FISCAL(M)'!$BS30)","v":"n.d."},{"$f":"IF('[1]FISCAL(M)'!$AZ30=\"\",\"\",'[1]FISCAL(M)'!$AZ30)","v":"n.d."},{"$f":"IF('[1]FISCAL(M)'!$BJ30=\"\",\"\",'[1]FISCAL(M)'!$BJ30)","v":"n.d."},{"$f":"IF('[1]FISCAL(M)'!$BT30=\"\",\"\",'[1]FISCAL(M)'!$BT30)","v":"n.d."},{"$f":"IF('[2]MONE(M)'!$AO30=\"\",\"\",'[2]MONE(M)'!$AO30)","v":"n.d."},{"$f":"IF('[3]MONE(M)'!$AO30=\"\",\"\",'[3]MONE(M)'!$AO30)","v":"n.d."},{"$f":"IF('[4]MONE(M)'!$AO30=\"\",\"\",'[4]MONE(M)'!$AO30)","v":"n.d."},{"$f":"IF('[5]MONE(M)'!$AO30=\"\",\"\",'[5]MONE(M)'!$AO30)","v":"n.d."},{"$f":"IF('[6]MONE(M)'!$AO30=\"\",\"\",'[6]MONE(M)'!$AO30)","v":"n.d."},{"$f":"IF('[7]MONE(M)'!$AO30=\"\",\"\",'[7]MONE(M)'!$AO30)","v":"n.d."},{"$f":"IF('[8]MONE(M)'!$AO30=\"\",\"\",'[8]MONE(M)'!$AO30)","v":"n.d."},"n.d.","n.d.","n.d.","n.d.","n.d.","n.d.","n.d.",{"$f":"IF('[1]FISCAL(M)'!$K30=\"\",\"\",'[1]FISCAL(M)'!$K30)","v":"n.d."},"n.d.","n.d.",{"$f":"IF('[1]FISCAL(M)'!$L30=\"\",\"\",'[1]FISCAL(M)'!$L30)","v":"n.d."},"n.d.","n.d.","n.d.","n.d.","n.d.","n.d.","n.d.","n.d.","n.d.","n.d.","n.d.","n.d.","n.d.","n.d.","n.d.","n.d.","n.d.","n.d."]
[1991,"octubre","1991-octubre",{"$f":"IF('[1]REAL IPC(M)'!$AL31=\"\",\"\",+'[1]REAL IPC(M)'!$AL31)","v":"n.d."},{"$f":"IF('[1]REAL IPC(M)'!$BE31=\"\",\"\",+'[1]REAL IPC(M)'!$BE31)","v":"n.d."},{"$f":"IF('[1]REAL IPC(M)'!$AM31=\"\",\"\",+'[1]REAL IPC(M)'!$AM31)","v":"n.d."},{"$f":"IF('[1]REAL IPC(M)'!$BI31=\"\",\"\",+'[1]REAL IPC(M)'!$BI31)","v":"n.d."},{"$f":"IF('[1]REAL IMAE(M)'!BJ31=\"\",\"\",'[1]REAL IMAE(M)'!BJ31)","v":"n.d."},{"$f":"IF('[1]REAL IMAE(M)'!BK31=\"\",\"\",'[1]REAL IMAE(M)'!BK31)","v":"n.d."},{"$f":"IF('[1]REAL IMAE(M)'!BN31=\"\",\"\",'[1]REAL IMAE(M)'!BN31)","v":"n.d."},{"$f":"IF('[1]REAL IMAE(M)'!BO31=\"\",\"\",'[1]REAL IMAE(M)'!BO31)","v":"n.d."},{"$f":"IF('[1]EXT RIN(M)'!$K31=\"\",\"\",'[1]EXT RIN(M)'!$K31)","v":"n.d."},"",{"$f":"IF('[1]EXT RIN(M)'!$L31=\"\",\"\",'[1]EXT RIN(M)'!$L31)","v":"n.d."},"",{"$f":"IF('[1]MONE(M)CARD'!EG31=\"\",\"\",'[1]MONE(M)CARD'!EG31)","v":"n.d."},{"$f":"IF('[1]MONE(M)CARD'!EK31=\"\",\"\",'[1]MONE(M)CARD'!EK31)","v":"n.d."},{"$f":"IF('[1]MONE(M)CARD'!EP31=\"\",\"\",'[1]MONE(M)CARD'!EP31)","v":"n.d."},{"$f":"IF('[1]MONE(M)CARD'!ES31=\"\",\"\",'[1]MONE(M)CARD'!ES31)","v":"n.d."},{"$f":"IF('[1]MONE(M)CARD'!EV31=\"\",\"\",'[1]MONE(M)CARD'!EV31)","v":"n.d."},{"$f":"IF('[1]MONE(M)CARD'!EZ31=\"\",\"\",'[1]MONE(M)CARD'!EZ31)","v":"n.d."},{"$f":"IF('[1]MONE(M)CAPARD'!FC31=\"\",\"\",'[1]MONE(M)CAPARD'!FC31)","v":"n.d."},{"$f":"IF('[1]MONE(M)CAPARD'!FG31=\"\",\"\",'[1]MONE(M)CAPARD'!FG31)","v":"n.d."},{"$f":"IF('[1]MONE(M)CAPARD'!FL31=\"\",\"\",'[1]MONE(M)CAPARD'!FL31)","v":"n.d."},{"$f":"IF('[1]MONE(M)CAPARD'!FO31=\"\",\"\",'[1]MONE(M)CAPARD'!FO31)","v":"n.d."},{"$f":"IF('[1]MONE(M)CAPARD'!FR31=\"\",\"\",'[1]MONE(M)CAPARD'!FR31)","v":"n.d."},{"$f":"IF('[1]MONE(M)CAPARD'!FV31=\"\",\"\",'[1]MONE(M)CAPARD'!FV31)","v":"n.d."},{"$f":"IF('[1]MONE(M)CARD'!FV31=\"\",\"\",'[1]MONE(M)CARD'!FV31)","v":""},{"$f":"IF('[1]MONE(M)CARD'!GD31=\"\",\"\",'[1]MONE(M)CARD'!GD31)","v":"n.d."},{"$f":"IF('[1]MONE(M)CARD'!GE31=\"\",\"\",'[1]MONE(M)CARD'!GE31)","v":"n.d."},"n.d.","n.d.","n.d.","n.d.","n.d.","n.d.","n.d.","n.d.",null,"n.d.","n.d.","n.d.","n.d.","n.d.",{"$f":"IF('[1]MONE(M)CAPARD'!GS31=\"\",\"\",'[1]MONE(M)CAPARD'!GS31)","v":"n.d."},{"$f":"IF('[1]MONE(M)CARD'!HA31=\"\",\"\",'[1]MONE(M)CAPARD'!HA31)","v":"n.d."},{"$f":"IF('[1]MONE(M)CAPARD'!HB31=\"\",\"\",'[1]MONE(M)CAPARD'!HB31)","v":"n.d."},"n.d.","n.d.","n.d.","n.d.","n.d.","n.d.","n.d.","n.d.","n.d.","n.d.","n.d.","n.d.","n.d.","n.d.",{"$f":"IF('[1]MONE(M)CAPARD'!AS31=\"\",\"\",'[1]MONE(M)CAPARD'!AS31)","v":"n.d."},{"$f":"IF('[1]MONE(M)CAPARD'!AT31=\"\",\"\",'[1]MONE(M)CAPARD'!AT31)","v":"n.a."},{"$f":"IF('[1]MONE(M)CAPARD'!AU31=\"\",\"\",'[1]MONE(M)CAPARD'!AU31)","v":"n.d."},{"$f":"IF('[1]MONE(M)CAPARD'!AV31=\"\",\"\",'[1]MONE(M)CAPARD'!AV31)","v":"n.d."},{"$f":"IF('[1]MONE(M)CAPARD'!AW31=\"\",\"\",'[1]MONE(M)CAPARD'!AW31)","v":"n.a."},{"$f":"IF('[1]MONE(M)CAPARD'!AX31=\"\",\"\",'[1]MONE(M)CAPARD'!AX31)","v":"n.d."},{"$f":"IF('[1]MONE(M)CAPARD'!AY31=\"\",\"\",'[1]MONE(M)CAPARD'!AY31)","v":"n.a."},{"$f":"IF('[1]FISCAL(M)'!$K31=\"\",\"\",'[1]FISCAL(M)'!$K31)","v":"n.d."},{"$f":"IF('[1]FISCAL(M)'!$L31=\"\",\"\",'[1]FISCAL(M)'!$L31)","v":"n.d."},{"$f":"IF('[1]FISCAL(M)'!$AY31=\"\",\"\",'[1]FISCAL(M)'!$AY31)","v":"n.d."},{"$f":"IF('[1]FISCAL(M)'!$BI31=\"\",\"\",'[1]FISCAL(M)'!$BI31)","v":"n.d."},{"$f":"IF('[1]FISCAL(M)'!$BS31=\"\",\"\",'[1]FISCAL(M)'!$BS31)","v":"n.d."},{"$f":"IF('[1]FISCAL(M)'!$AZ31=\"\",\"\",'[1]FISCAL(M)'!$AZ31)","v":"n.d."},{"$f":"IF('[1]FISCAL(M)'!$BJ31=\"\",\"\",'[1]FISCAL(M)'!$BJ31)","v":"n.d."},{"$f":"IF('[1]FISCAL(M)'!$BT31=\"\",\"\",'[1]FISCAL(M)'!$BT31)","v":"n.d."},{"$f":"IF('[2]MONE(M)'!$AO31=\"\",\"\",'[2]MONE(M)'!$AO31)","v":"n.d."},{"$f":"IF('[3]MONE(M)'!$AO31=\"\",\"\",'[3]MONE(M)'!$AO31)","v":"n.d."},{"$f":"IF('[4]MONE(M)'!$AO31=\"\",\"\",'[4]MONE(M)'!$AO31)","v":"n.d."},{"$f":"IF('[5]MONE(M)'!$AO31=\"\",\"\",'[5]MONE(M)'!$AO31)","v":"n.d."},{"$f":"IF('[6]MONE(M)'!$AO31=\"\",\"\",'[6]MONE(M)'!$AO31)","v":"n.d."},{"$f":"IF('[7]MONE(M)'!$AO31=\"\",\"\",'[7]MONE(M)'!$AO31)","v":"n.d."},{"$f":"IF('[8]MONE(M)'!$AO31=\"\",\"\",'[8]MONE(M)'!$AO31)","v":"n.d."},"n.d.","n.d.","n.d.","n.d.","n.d.","n.d.","n.d.",{"$f":"IF('[1]FISCAL(M)'!$K31=\"\",\"\",'[1]FISCAL(M)'!$K31)","v":"n.d."},"n.d.","n.d.",{"$f":"IF('[1]FISCAL(M)'!$L31=\"\",\"\",'[1]FISCAL(M)'!$L31)","v":"n.d."},"n.d.","n.d.","n.d.","n.d.","n.d.","n.d.","n.d.","n.d.","n.d.","n.d.","n.d.","n.d.","n.d.","n.d.","n.d.","n.d.","n.d.","n.d."]
[1991,"noviembre","1991-noviembre",{"$f":"IF('[1]REAL IPC(M)'!$AL32=\"\",\"\",+'[1]REAL IPC(M)'!$AL32)","v":"n.d."},{"$f":"IF('[1]REAL IPC(M)'!$BE32=\"\",\"\",+'[1]REAL IPC(M)'!$BE32)","v":"n.d."},{"$f":"IF('[1]REAL IPC(M)'!$AM32=\"\",\"\",+'[1]REAL IPC(M)'!$AM32)","v":"n.d."},{"$f":"IF('[1]REAL IPC(M)'!$BI32=\"\",\"\",+'[1]REAL IPC(M)'!$BI32)","v":"n.d."},{"$f":"IF('[1]REAL IMAE(M)'!BJ32=\"\",\"\",'[1]REAL IMAE(M)'!BJ32)","v":"n.d."},{"$f":"IF('[1]REAL IMAE(M)'!BK32=\"\",\"\",'[1]REAL IMAE(M)'!BK32)","v":"n.d."},{"$f":"IF('[1]REAL IMAE(M)'!BN32=\"\",\"\",'[1]REAL IMAE(M)'!BN32)","v":"n.d."},{"$f":"IF('[1]REAL IMAE(M)'!BO32=\"\",\"\",'[1]REAL IMAE(M)'!BO32)","v":"n.d."},{"$f":"IF('[1]EXT RIN(M)'!$K32=\"\",\"\",'[1]EXT RIN(M)'!$K32)","v":"n.d."},"",{"$f":"IF('[1]EXT RIN(M)'!$L32=\"\",\"\",'[1]EXT RIN(M)'!$L32)","v":"n.d."},"",{"$f":"IF('[1]MONE(M)CARD'!EG32=\"\",\"\",'[1]MONE(M)CARD'!EG32)","v":"n.d."},{"$f":"IF('[1]MONE(M)CARD'!EK32=\"\",\"\",'[1]MONE(M)CARD'!EK32)","v":"n.d."},{"$f":"IF('[1]MONE(M)CARD'!EP32=\"\",\"\",'[1]MONE(M)CARD'!EP32)","v":"n.d."},{"$f":"IF('[1]MONE(M)CARD'!ES32=\"\",\"\",'[1]MONE(M)CARD'!ES32)","v":"n.d."},{"$f":"IF('[1]MONE(M)CARD'!EV32=\"\",\"\",'[1]MONE(M)CARD'!EV32)","v":"n.d."},{"$f":"IF('[1]MONE(M)CARD'!EZ32=\"\",\"\",'[1]MONE(M)CARD'!EZ32)","v":"n.d."},{"$f":"IF('[1]MONE(M)CAPARD'!FC32=\"\",\"\",'[1]MONE(M)CAPARD'!FC32)","v":"n.d."},{"$f":"IF('[1]MONE(M)CAPARD'!FG32=\"\",\"\",'[1]MONE(M)CAPARD'!FG32)","v":"n.d."},{"$f":"IF('[1]MONE(M)CAPARD'!FL32=\"\",\"\",'[1]MONE(M)CAPARD'!FL32)","v":"n.d."},{"$f":"IF('[1]MONE(M)CAPARD'!FO32=\"\",\"\",'[1]MONE(M)CAPARD'!FO32)","v":"n.d."},{"$f":"IF('[1]MONE(M)CAPARD'!FR32=\"\",\"\",'[1]MONE(M)CAPARD'!FR32)","v":"n.d."},{"$f":"IF('[1]MONE(M)CAPARD'!FV32=\"\",\"\",'[1]MONE(M)CAPARD'!FV32)","v":"n.d."},{"$f":"IF('[1]MONE(M)CARD'!FV32=\"\",\"\",'[1]MONE(M)CARD'!FV32)","v":""},{"$f":"IF('[1]MONE(M)CARD'!GD32=\"\",\"\",'[1]MONE(M)CARD'!GD32)","v":"n.d."},{"$f":"IF('[1]MONE(M)CARD'!GE32=\"\",\"\",'[1]MONE(M)CARD'!GE32)","v":"n.d."},"n.d.","n.d.","n.d.","n.d.","n.d.","n.d.","n.d.","n.d.",null,"n.d.","n.d.","n.d.","n.d.","n.d.",{"$f":"IF('[1]MONE(M)CAPARD'!GS32=\"\",\"\",'[1]MONE(M)CAPARD'!GS32)","v":"n.d."},{"$f":"IF('[1]MONE(M)CARD'!HA32=\"\",\"\",'[1]MONE(M)CAPARD'!HA32)","v":"n.d."},{"$f":"IF('[1]MONE(M)CAPARD'!HB32=\"\",\"\",'[1]MONE(M)CAPARD'!HB32)","v":"n.d."},"n.d.","n.d.","n.d.","n.d.","n.d.","n.d.","n.d.","n.d.","n.d.","n.d.","n.d.","n.d.","n.d.","n.d.",{"$f":"IF('[1]MONE(M)CAPARD'!AS32=\"\",\"\",'[1]MONE(M)CAPARD'!AS32)","v":"n.d."},{"$f":"IF('[1]MONE(M)CAPARD'!AT32=\"\",\"\",'[1]MONE(M)CAPARD'!AT32)","v":"n.a."},{"$f":"IF('[1]MONE(M)CAPARD'!AU32=\"\",\"\",'[1]MONE(M)CAPARD'!AU32)","v":"n.d."},{"$f":"IF('[1]MONE(M)CAPARD'!AV32=\"\",\"\",'[1]MONE(M)CAPARD'!AV32)","v":"n.d."},{"$f":"IF('[1]MONE(M)CAPARD'!AW32=\"\",\"\",'[1]MONE(M)CAPARD'!AW32)","v":"n.a."},{"$f":"IF('[1]MONE(M)CAPARD'!AX32=\"\",\"\",'[1]MONE(M)CAPARD'!AX32)","v":"n.d."},{"$f":"IF('[1]MONE(M)CAPARD'!AY32=\"\",\"\",'[1]MONE(M)CAPARD'!AY32)","v":"n.a."},{"$f":"IF('[1]FISCAL(M)'!$K32=\"\",\"\",'[1]FISCAL(M)'!$K32)","v":"n.d."},{"$f":"IF('[1]FISCAL(M)'!$L32=\"\",\"\",'[1]FISCAL(M)'!$L32)","v":"n.d."},{"$f":"IF('[1]FISCAL(M)'!$AY32=\"\",\"\",'[1]FISCAL(M)'!$AY32)","v":"n.d."},{"$f":"IF('[1]FISCAL(M)'!$BI32=\"\",\"\",'[1]FISCAL(M)'!$BI32)","v":"n.d."},{"$f":"IF('[1]FISCAL(M)'!$BS32=\"\",\"\",'[1]FISCAL(M)'!$BS32)","v":"n.d."},{"$f":"IF('[1]FISCAL(M)'!$AZ32=\"\",\"\",'[1]FISCAL(M)'!$AZ32)","v":"n.d."},{"$f":"IF('[1]FISCAL(M)'!$BJ32=\"\",\"\",'[1]FISCAL(M)'!$BJ32)","v":"n.d."},{"$f":"IF('[1]FISCAL(M)'!$BT32=\"\",\"\",'[1]FISCAL(M)'!$BT32)","v":"n.d."},{"$f":"IF('[2]MONE(M)'!$AO32=\"\",\"\",'[2]MONE(M)'!$AO32)","v":"n.d."},{"$f":"IF('[3]MONE(M)'!$AO32=\"\",\"\",'[3]MONE(M)'!$AO32)","v":"n.d."},{"$f":"IF('[4]MONE(M)'!$AO32=\"\",\"\",'[4]MONE(M)'!$AO32)","v":"n.d."},{"$f":"IF('[5]MONE(M)'!$AO32=\"\",\"\",'[5]MONE(M)'!$AO32)","v":"n.d."},{"$f":"IF('[6]MONE(M)'!$AO32=\"\",\"\",'[6]MONE(M)'!$AO32)","v":"n.d."},{"$f":"IF('[7]MONE(M)'!$AO32=\"\",\"\",'[7]MONE(M)'!$AO32)","v":"n.d."},{"$f":"IF('[8]MONE(M)'!$AO32=\"\",\"\",'[8]MONE(M)'!$AO32)","v":"n.d."},"n.d.","n.d.","n.d.","n.d.","n.d.","n.d.","n.d.",{"$f":"IF('[1]FISCAL(M)'!$K32=\"\",\"\",'[1]FISCAL(M)'!$K32)","v":"n.d."},"n.d.","n.d.",{"$f":"IF('[1]FISCAL(M)'!$L32=\"\",\"\",'[1]FISCAL(M)'!$L32)","v":"n.d."},"n.d.","n.d.","n.d.","n.d.","n.d.","n.d.","n.d.","n.d.","n.d.","n.d.","n.d.","n.d.","n.d.","n.d.","n.d.","n.d.","n.d.","n.d."]
[1991,"diciembre","1991-diciembre",{"$f":"IF('[1]REAL IPC(M)'!$AL33=\"\",\"\",+'[1]REAL IPC(M)'!$AL33)","v":"n.d."},{"$f":"IF('[1]REAL IPC(M)'!$BE33=\"\",\"\",+'[1]REAL IPC(M)'!$BE33)","v":"n.d."},{"$f":"IF('[1]REAL IPC(M)'!$AM33=\"\",\"\",+'[1]REAL IPC(M)'!$AM33)","v":"n.d."},{"$f":"IF('[1]REAL IPC(M)'!$BI33=\"\",\"\",+'[1]REAL IPC(M)'!$BI33)","v":"n.d."},{"$f":"IF('[1]REAL IMAE(M)'!BJ33=\"\",\"\",'[1]REAL IMAE(M)'!BJ33)","v":"n.d."},{"$f":"IF('[1]REAL IMAE(M)'!BK33=\"\",\"\",'[1]REAL IMAE(M)'!BK33)","v":"n.d."},{"$f":"IF('[1]REAL IMAE(M)'!BN33=\"\",\"\",'[1]REAL IMAE(M)'!BN33)","v":"n.d."},{"$f":"IF('[1]REAL IMAE(M)'!BO33=\"\",\"\",'[1]REAL IMAE(M)'!BO33)","v":"n.d."},{"$f":"IF('[1]EXT RIN(M)'!$K33=\"\",\"\",'[1]EXT RIN(M)'!$K33)","v":"n.d."},"n.d.",{"$f":"IF('[1]EXT RIN(M)'!$L33=\"\",\"\",'[1]EXT RIN(M)'!$L33)","v":"n.d."},"n.d.",{"$f":"IF('[1]MONE(M)CARD'!EG33=\"\",\"\",'[1]MONE(M)CARD'!EG33)","v":"n.d."},{"$f":"IF('[1]MONE(M)CARD'!EK33=\"\",\"\",'[1]MONE(M)CARD'!EK33)","v":"n.d."},{"$f":"IF('[1]MONE(M)CARD'!EP33=\"\",\"\",'[1]MONE(M)CARD'!EP33)","v":"n.d."},{"$f":"IF('[1]MONE(M)CARD'!ES33=\"\",\"\",'[1]MONE(M)CARD'!ES33)","v":"n.d."},{"$f":"IF('[1]MONE(M)CARD'!EV33=\"\",\"\",'[1]MONE(M)CARD'!EV33)","v":"n.d."},{"$f":"IF('[1]MONE(M)CARD'!EZ33=\"\",\"\",'[1]MONE(M)CARD'!EZ33)","v":"n.d."},{"$f":"IF('[1]MONE(M)CAPARD'!FC33=\"\",\"\",'[1]MONE(M)CAPARD'!FC33)","v":"n.d."},{"$f":"IF('[1]MONE(M)CAPARD'!FG33=\"\",\"\",'[1]MONE(M)CAPARD'!FG33)","v":"n.d."},{"$f":"IF('[1]MONE(M)CAPARD'!FL33=\"\",\"\",'[1]MONE(M)CAPARD'!FL33)","v":"n.d."},{"$f":"IF('[1]MONE(M)CAPARD'!FO33=\"\",\"\",'[1]MONE(M)CAPARD'!FO33)","v":"n.d."},{"$f":"IF('[1]MONE(M)CAPARD'!FR33=\"\",\"\",'[1]MONE(M)CAPARD'!FR33)","v":"n.d."},{"$f":"IF('[1]MONE(M)CAPARD'!FV33=\"\",\"\",'[1]MONE(M)CAPARD'!FV33)","v":"n.d."},{"$f":"IF('[1]MONE(M)CARD'!FV33=\"\",\"\",'[1]MONE(M)CARD'!FV33)","v":""},{"$f":"IF('[1]MONE(M)CARD'!GD33=\"\",\"\",'[1]MONE(M)CARD'!GD33)","v":"n.d."},{"$f":"IF('[1]MONE(M)CARD'!GE33=\"\",\"\",'[1]MONE(M)CARD'!GE33)","v":"n.d."},"n.d.","n.d.","n.d.","n.d.","n.d.","n.d.","n.d.","n.d.",null,"n.d.","n.d.","n.d.","n.d.","n.d.",{"$f":"IF('[1]MONE(M)CAPARD'!GS33=\"\",\"\",'[1]MONE(M)CAPARD'!GS33)","v":"n.d."},{"$f":"IF('[1]MONE(M)CARD'!HA33=\"\",\"\",'[1]MONE(M)CAPARD'!HA33)","v":"n.d."},{"$f":"IF('[1]MONE(M)CAPARD'!HB33=\"\",\"\",'[1]MONE(M)CAPARD'!HB33)","v":"n.d."},"n.d.","n.d.","n.d.","n.d.","n.d.","n.d.","n.d.","n.d.","n.d.","n.d.","n.d.","n.d.","n.d.","n.d.",{"$f":"IF('[1]MONE(M)CAPARD'!AS33=\"\",\"\",'[1]MONE(M)CAPARD'!AS33)","v":"n.d."},{"$f":"IF('[1]MONE(M)CAPARD'!AT33=\"\",\"\",'[1]MONE(M)CAPARD'!AT33)","v":"n.a."},{"$f":"IF('[1]MONE(M)CAPARD'!AU33=\"\",\"\",'[1]MONE(M)CAPARD'!AU33)","v":"n.d."},{"$f":"IF('[1]MONE(M)CAPARD'!AV33=\"\",\"\",'[1]MONE(M)CAPARD'!AV33)","v":"n.d."},{"$f":"IF('[1]MONE(M)CAPARD'!AW33=\"\",\"\",'[1]MONE(M)CAPARD'!AW33)","v":"n.a."},{"$f":"IF('[1]MONE(M)CAPARD'!AX33=\"\",\"\",'[1]MONE(M)CAPARD'!AX33)","v":"n.d."},{"$f":"IF('[1]MONE(M)CAPARD'!AY33=\"\",\"\",'[1]MONE(M)CAPARD'!AY33)","v":"n.a."},{"$f":"IF('[1]FISCAL(M)'!$K33=\"\",\"\",'[1]FISCAL(M)'!$K33)","v":"n.d."},{"$f":"IF('[1]FISCAL(M)'!$L33=\"\",\"\",'[1]FISCAL(M)'!$L33)","v":"n.d."},{"$f":"IF('[1]FISCAL(M)'!$AY33=\"\",\"\",'[1]FISCAL(M)'!$AY33)","v":"n.d."},{"$f":"IF('[1]FISCAL(M)'!$BI33=\"\",\"\",'[1]FISCAL(M)'!$BI33)","v":"n.d."},{"$f":"IF('[1]FISCAL(M)'!$BS33=\"\",\"\",'[1]FISCAL(M)'!$BS33)","v":"n.d."},{"$f":"IF('[1]FISCAL(M)'!$AZ33=\"\",\"\",'[1]FISCAL(M)'!$AZ33)","v":"n.d."},{"$f":"IF('[1]FISCAL(M)'!$BJ33=\"\",\"\",'[1]FISCAL(M)'!$BJ33)","v":"n.d."},{"$f":"IF('[1]FISCAL(M)'!$BT33=\"\",\"\",'[1]FISCAL(M)'!$BT33)","v":"n.d."},{"$f":"IF('[2]MONE(M)'!$AO33=\"\",\"\",'[2]MONE(M)'!$AO33)","v":"n.d."},{"$f":"IF('[3]MONE(M)'!$AO33=\"\",\"\",'[3]MONE(M)'!$AO33)","v":"n.d."},{"$f":"IF('[4]MONE(M)'!$AO33=\"\",\"\",'[4]MONE(M)'!$AO33)","v":"n.d."},{"$f":"IF('[5]MONE(M)'!$AO33=\"\",\"\",'[5]MONE(M)'!$AO33)","v":"n.d."},{"$f":"IF('[6]MONE(M)'!$AO33=\"\",\"\",'[6]MONE(M)'!$AO33)","v":"n.d."},{"$f":"IF('[7]MONE(M)'!$AO33=\"\",\"\",'[7]MONE(M)'!$AO33)","v":"n.d."},{"$f":"IF('[8]MONE(M)'!$AO33=\"\",\"\",'[8]MONE(M)'!$AO33)","v":"n.d."},"n.d.","n.d.","n.d.","n.d.","n.d.","n.d.","n.d.",{"$f":"IF('[1]FISCAL(M)'!$K33=\"\",\"\",'[1]FISCAL(M)'!$K33)","v":"n.d."},"n.d.","n.d.",{"$f":"IF('[1]FISCAL(M)'!$L33=\"\",\"\",'[1]FISCAL(M)'!$L33)","v":"n.d."},"n.d.","n.d.","n.d.","n.d.","n.d.","n.d.","n.d.","n.d.","n.d.","n.d.","n.d.","n.d.","n.d.","n.d.","n.d.","n.d.","n.d.","n.d."]
[1992,"enero","1992-enero",{"$f":"IF('[1]REAL IPC(M)'!$AL34=\"\",\"\",+'[1]REAL IPC(M)'!$AL34)","v":"n.d."},{"$f":"IF('[1]REAL IPC(M)'!$BE34=\"\",\"\",+'[1]REAL IPC(M)'!$BE34)","v":"n.d."},{"$f":"IF('[1]REAL IPC(M)'!$AM34=\"\",\"\",+'[1]REAL IPC(M)'!$AM34)","v":"n.d."},{"$f":"IF('[1]REAL IPC(M)'!$BI34=\"\",\"\",+'[1]REAL IPC(M)'!$BI34)","v":"n.d."},{"$f":"IF('[1]REAL IMAE(M)'!BJ34=\"\",\"\",'[1]REAL IMAE(M)'!BJ34)","v":"n.d."},{"$f":"IF('[1]REAL IMAE(M)'!BK34=\"\",\"\",'[1]REAL IMAE(M)'!BK34)","v":"n.d."},{"$f":"IF('[1]REAL IMAE(M)'!BN34=\"\",\"\",'[1]REAL IMAE(M)'!BN34)","v":"n.d."},{"$f":"IF('[1]REAL IMAE(M)'!BO34=\"\",\"\",'[1]REAL IMAE(M)'!BO34)","v":"n.d."},{"$f":"IF('[1]EXT RIN(M)'!$K34=\"\",\"\",'[1]EXT RIN(M)'!$K34)","v":"n.d."},"",{"$f":"IF('[1]EXT RIN(M)'!$L34=\"\",\"\",'[1]EXT RIN(M)'!$L34)","v":"n.d."},"",{"$f":"IF('[1]MONE(M)CARD'!EG34=\"\",\"\",'[1]MONE(M)CARD'!EG34)","v":"n.d."},{"$f":"IF('[1]MONE(M)CARD'!EK34=\"\",\"\",'[1]MONE(M)CARD'!EK34)","v":"n.d."},{"$f":"IF('[1]MONE(M)CARD'!EP34=\"\",\"\",'[1]MONE(M)CARD'!EP34)","v":"n.d."},{"$f":"IF('[1]MONE(M)CARD'!ES34=\"\",\"\",'[1]MONE(M)CARD'!ES34)","v":"n.d."},{"$f":"IF('[1]MONE(M)CARD'!EV34=\"\",\"\",'[1]MONE(M)CARD'!EV34)","v":"n.d."},{"$f":"IF('[1]MONE(M)CARD'!EZ34=\"\",\"\",'[1]MONE(M)CARD'!EZ34)","v":"n.d."},{"$f":"IF('[1]MONE(M)CAPARD'!FC34=\"\",\"\",'[1]MONE(M)CAPARD'!FC34)","v":"n.d."},{"$f":"IF('[1]MONE(M)CAPARD'!FG34=\"\",\"\",'[1]MONE(M)CAPARD'!FG34)","v":"n.d."},{"$f":"IF('[1]MONE(M)CAPARD'!FL34=\"\",\"\",'[1]MONE(M)CAPARD'!FL34)","v":"n.d."},{"$f":"IF('[1]MONE(M)CAPARD'!FO34=\"\",\"\",'[1]MONE(M)CAPARD'!FO34)","v":"n.d."},{"$f":"IF('[1]MONE(M)CAPARD'!FR34=\"\",\"\",'[1]MONE(M)CAPARD'!FR34)","v":"n.d."},{"$f":"IF('[1]MONE(M)CAPARD'!FV34=\"\",\"\",'[1]MONE(M)CAPARD'!FV34)","v":"n.d."},{"$f":"IF('[1]MONE(M)CARD'!FV34=\"\",\"\",'[1]MONE(M)CARD'!FV34)","v":""},{"$f":"IF('[1]MONE(M)CARD'!GD34=\"\",\"\",'[1]MONE(M)CARD'!GD34)","v":"n.d."},{"$f":"IF('[1]MONE(M)CARD'!GE34=\"\",\"\",'[1]MONE(M)CARD'!GE34)","v":"n.d."},"n.d.","n.d.","n.d.","n.d.","n.d.","n.d.","n.d.","n.d.",null,"n.d.","n.d.","n.d.","n.d.","n.d.",{"$f":"IF('[1]MONE(M)CAPARD'!GS34=\"\",\"\",'[1]MONE(M)CAPARD'!GS34)","v":"n.d."},{"$f":"IF('[1]MONE(M)CARD'!HA34=\"\",\"\",'[1]MONE(M)CAPARD'!HA34)","v":"n.d."},{"$f":"IF('[1]MONE(M)CAPARD'!HB34=\"\",\"\",'[1]MONE(M)CAPARD'!HB34)","v":"n.d."},"n.d.","n.d.","n.d.","n.d.","n.d.","n.d.","n.d.","n.d.","n.d.","n.d.","n.d.","n.d.","n.d.","n.d.",{"$f":"IF('[1]MONE(M)CAPARD'!AS34=\"\",\"\",'[1]MONE(M)CAPARD'!AS34)","v":"n.d."},{"$f":"IF('[1]MONE(M)CAPARD'!AT34=\"\",\"\",'[1]MONE(M)CAPARD'!AT34)","v":"n.a."},{"$f":"IF('[1]MONE(M)CAPARD'!AU34=\"\",\"\",'[1]MONE(M)CAPARD'!AU34)","v":"n.d."},{"$f":"IF('[1]MONE(M)CAPARD'!AV34=\"\",\"\",'[1]MONE(M)CAPARD'!AV34)","v":"n.d."},{"$f":"IF('[1]MONE(M)CAPARD'!AW34=\"\",\"\",'[1]MONE(M)CAPARD'!AW34)","v":"n.a."},{"$f":"IF('[1]MONE(M)CAPARD'!AX34=\"\",\"\",'[1]MONE(M)CAPARD'!AX34)","v":"n.d."},{"$f":"IF('[1]MONE(M)CAPARD'!AY34=\"\",\"\",'[1]MONE(M)CAPARD'!AY34)","v":"n.a."},{"$f":"IF('[1]FISCAL(M)'!$K34=\"\",\"\",'[1]FISCAL(M)'!$K34)","v":"n.d."},{"$f":"IF('[1]FISCAL(M)'!$L34=\"\",\"\",'[1]FISCAL(M)'!$L34)","v":"n.d."},{"$f":"IF('[1]FISCAL(M)'!$AY34=\"\",\"\",'[1]FISCAL(M)'!$AY34)","v":"n.d."},{"$f":"IF('[1]FISCAL(M)'!$BI34=\"\",\"\",'[1]FISCAL(M)'!$BI34)","v":"n.d."},{"$f":"IF('[1]FISCAL(M)'!$BS34=\"\",\"\",'[1]FISCAL(M)'!$BS34)","v":"n.d."},{"$f":"IF('[1]FISCAL(M)'!$AZ34=\"\",\"\",'[1]FISCAL(M)'!$AZ34)","v":"n.d."},{"$f":"IF('[1]FISCAL(M)'!$BJ34=\"\",\"\",'[1]FISCAL(M)'!$BJ34)","v":"n.d."},{"$f":"IF('[1]FISCAL(M)'!$BT34=\"\",\"\",'[1]FISCAL(M)'!$BT34)","v":"n.d."},{"$f":"IF('[2]MONE(M)'!$AO34=\"\",\"\",'[2]MONE(M)'!$AO34)","v":"n.d."},{"$f":"IF('[3]MONE(M)'!$AO34=\"\",\"\",'[3]MONE(M)'!$AO34)","v":"n.d."},{"$f":"IF('[4]MONE(M)'!$AO34=\"\",\"\",'[4]MONE(M)'!$AO34)","v":"n.d."},{"$f":"IF('[5]MONE(M)'!$AO34=\"\",\"\",'[5]MONE(M)'!$AO34)","v":"n.d."},{"$f":"IF('[6]MONE(M)'!$AO34=\"\",\"\",'[6]MONE(M)'!$AO34)","v":"n.d."},{"$f":"IF('[7]MONE(M)'!$AO34=\"\",\"\",'[7]MONE(M)'!$AO34)","v":"n.d."},{"$f":"IF('[8]MONE(M)'!$AO34=\"\",\"\",'[8]MONE(M)'!$AO34)","v":"n.d."},"n.d.","n.d.","n.d.","n.d.","n.d.","n.d.","n.d.",{"$f":"IF('[1]FISCAL(M)'!$K34=\"\",\"\",'[1]FISCAL(M)'!$K34)","v":"n.d."},"n.d.","n.d.",{"$f":"IF('[1]FISCAL(M)'!$L34=\"\",\"\",'[1]FISCAL(M)'!$L34)","v":"n.d."},"n.d.","n.d.","n.d.","n.d.","n.d.","n.d.","n.d.","n.d.","n.d.","n.d.","n.d.","n.d.","n.d.","n.d.","n.d.","n.d.","n.d.","n.d."]
[1992,"febrero","1992-febrero",{"$f":"IF('[1]REAL IPC(M)'!$AL35=\"\",\"\",+'[1]REAL IPC(M)'!$AL35)","v":"n.d."},{"$f":"IF('[1]REAL IPC(M)'!$BE35=\"\",\"\",+'[1]REAL IPC(M)'!$BE35)","v":"n.d."},{"$f":"IF('[1]REAL IPC(M)'!$AM35=\"\",\"\",+'[1]REAL IPC(M)'!$AM35)","v":"n.d."},{"$f":"IF('[1]REAL IPC(M)'!$BI35=\"\",\"\",+'[1]REAL IPC(M)'!$BI35)","v":"n.d."},{"$f":"IF('[1]REAL IMAE(M)'!BJ35=\"\",\"\",'[1]REAL IMAE(M)'!BJ35)","v":"n.d."},{"$f":"IF('[1]REAL IMAE(M)'!BK35=\"\",\"\",'[1]REAL IMAE(M)'!BK35)","v":"n.d."},{"$f":"IF('[1]REAL IMAE(M)'!BN35=\"\",\"\",'[1]REAL IMAE(M)'!BN35)","v":"n.d."},{"$f":"IF('[1]REAL IMAE(M)'!BO35=\"\",\"\",'[1]REAL IMAE(M)'!BO35)","v":"n.d."},{"$f":"IF('[1]EXT RIN(M)'!$K35=\"\",\"\",'[1]EXT RIN(M)'!$K35)","v":"n.d."},"",{"$f":"IF('[1]EXT RIN(M)'!$L35=\"\",\"\",'[1]EXT RIN(M)'!$L35)","v":"n.d."},"",{"$f":"IF('[1]MONE(M)CARD'!EG35=\"\",\"\",'[1]MONE(M)CARD'!EG35)","v":"n.d."},{"$f":"IF('[1]MONE(M)CARD'!EK35=\"\",\"\",'[1]MONE(M)CARD'!EK35)","v":"n.d."},{"$f":"IF('[1]MONE(M)CARD'!EP35=\"\",\"\",'[1]MONE(M)CARD'!EP35)","v":"n.d."},{"$f":"IF('[1]MONE(M)CARD'!ES35=\"\",\"\",'[1]MONE(M)CARD'!ES35)","v":"n.d."},{"$f":"IF('[1]MONE(M)CARD'!EV35=\"\",\"\",'[1]MONE(M)CARD'!EV35)","v":"n.d."},{"$f":"IF('[1]MONE(M)CARD'!EZ35=\"\",\"\",'[1]MONE(M)CARD'!EZ35)","v":"n.d."},{"$f":"IF('[1]MONE(M)CAPARD'!FC35=\"\",\"\",'[1]MONE(M)CAPARD'!FC35)","v":"n.d."},{"$f":"IF('[1]MONE(M)CAPARD'!FG35=\"\",\"\",'[1]MONE(M)CAPARD'!FG35)","v":"n.d."},{"$f":"IF('[1]MONE(M)CAPARD'!FL35=\"\",\"\",'[1]MONE(M)CAPARD'!FL35)","v":"n.d."},{"$f":"IF('[1]MONE(M)CAPARD'!FO35=\"\",\"\",'[1]MONE(M)CAPARD'!FO35)","v":"n.d."},{"$f":"IF('[1]MONE(M)CAPARD'!FR35=\"\",\"\",'[1]MONE(M)CAPARD'!FR35)","v":"n.d."},{"$f":"IF('[1]MONE(M)CAPARD'!FV35=\"\",\"\",'[1]MONE(M)CAPARD'!FV35)","v":"n.d."},{"$f":"IF('[1]MONE(M)CARD'!FV35=\"\",\"\",'[1]MONE(M)CARD'!FV35)","v":""},{"$f":"IF('[1]MONE(M)CARD'!GD35=\"\",\"\",'[1]MONE(M)CARD'!GD35)","v":"n.d."},{"$f":"IF('[1]MONE(M)CARD'!GE35=\"\",\"\",'[1]MONE(M)CARD'!GE35)","v":"n.d."},"n.d.","n.d.","n.d.","n.d.","n.d.","n.d.","n.d.","n.d.",null,"n.d.","n.d.","n.d.","n.d.","n.d.",{"$f":"IF('[1]MONE(M)CAPARD'!GS35=\"\",\"\",'[1]MONE(M)CAPARD'!GS35)","v":"n.d."},{"$f":"IF('[1]MONE(M)CARD'!HA35=\"\",\"\",'[1]MONE(M)CAPARD'!HA35)","v":"n.d."},{"$f":"IF('[1]MONE(M)CAPARD'!HB35=\"\",\"\",'[1]MONE(M)CAPARD'!HB35)","v":"n.d."},"n.d.","n.d.","n.d.","n.d.","n.d.","n.d.","n.d.","n.d.","n.d.","n.d.","n.d.","n.d.","n.d.","n.d.",{"$f":"IF('[1]MONE(M)CAPARD'!AS35=\"\",\"\",'[1]MONE(M)CAPARD'!AS35)","v":"n.d."},{"$f":"IF('[1]MONE(M)CAPARD'!AT35=\"\",\"\",'[1]MONE(M)CAPARD'!AT35)","v":"n.a."},{"$f":"IF('[1]MONE(M)CAPARD'!AU35=\"\",\"\",'[1]MONE(M)CAPARD'!AU35)","v":"n.d."},{"$f":"IF('[1]MONE(M)CAPARD'!AV35=\"\",\"\",'[1]MONE(M)CAPARD'!AV35)","v":"n.d."},{"$f":"IF('[1]MONE(M)CAPARD'!AW35=\"\",\"\",'[1]MONE(M)CAPARD'!AW35)","v":"n.a."},{"$f":"IF('[1]MONE(M)CAPARD'!AX35=\"\",\"\",'[1]MONE(M)CAPARD'!AX35)","v":"n.d."},{"$f":"IF('[1]MONE(M)CAPARD'!AY35=\"\",\"\",'[1]MONE(M)CAPARD'!AY35)","v":"n.a."},{"$f":"IF('[1]FISCAL(M)'!$K35=\"\",\"\",'[1]FISCAL(M)'!$K35)","v":"n.d."},{"$f":"IF('[1]FISCAL(M)'!$L35=\"\",\"\",'[1]FISCAL(M)'!$L35)","v":"n.d."},{"$f":"IF('[1]FISCAL(M)'!$AY35=\"\",\"\",'[1]FISCAL(M)'!$AY35)","v":"n.d."},{"$f":"IF('[1]FISCAL(M)'!$BI35=\"\",\"\",'[1]FISCAL(M)'!$BI35)","v":"n.d."},{"$f":"IF('[1]FISCAL(M)'!$BS35=\"\",\"\",'[1]FISCAL(M)'!$BS35)","v":"n.d."},{"$f":"IF('[1]FISCAL(M)'!$AZ35=\"\",\"\",'[1]FISCAL(M)'!$AZ35)","v":"n.d."},{"$f":"IF('[1]FISCAL(M)'!$BJ35=\"\",\"\",'[1]FISCAL(M)'!$BJ35)","v":"n.d."},{"$f":"IF('[1]FISCAL(M)'!$BT35=\"\",\"\",'[1]FISCAL(M)'!$BT35)","v":"n.d."},{"$f":"IF('[2]MONE(M)'!$AO35=\"\",\"\",'[2]MONE(M)'!$AO35)","v":"n.d."},{"$f":"IF('[3]MONE(M)'!$AO35=\"\",\"\",'[3]MONE(M)'!$AO35)","v":"n.d."},{"$f":"IF('[4]MONE(M)'!$AO35=\"\",\"\",'[4]MONE(M)'!$AO35)","v":"n.d."},{"$f":"IF('[5]MONE(M)'!$AO35=\"\",\"\",'[5]MONE(M)'!$AO35)","v":"n.d."},{"$f":"IF('[6]MONE(M)'!$AO35=\"\",\"\",'[6]MONE(M)'!$AO35)","v":"n.d."},{"$f":"IF('[7]MONE(M)'!$AO35=\"\",\"\",'[7]MONE(M)'!$AO35)","v":"n.d."},{"$f":"IF('[8]MONE(M)'!$AO35=\"\",\"\",'[8]MONE(M)'!$AO35)","v":"n.d."},"n.d.","n.d.","n.d.","n.d.","n.d.","n.d.","n.d.",{"$f":"IF('[1]FISCAL(M)'!$K35=\"\",\"\",'[1]FISCAL(M)'!$K35)","v":"n.d."},"n.d.","n.d.",{"$f":"IF('[1]FISCAL(M)'!$L35=\"\",\"\",'[1]FISCAL(M)'!$L35)","v":"n.d."},"n.d.","n.d.","n.d.","n.d.","n.d.","n.d.","n.d.","n.d.","n.d.","n.d.","n.d.","n.d.","n.d.","n.d.","n.d.","n.d.","n.d.","n.d."]
[1992,"marzo","1992-marzo",{"$f":"IF('[1]REAL IPC(M)'!$AL36=\"\",\"\",+'[1]REAL IPC(M)'!$AL36)","v":"n.d."},{"$f":"IF('[1]REAL IPC(M)'!$BE36=\"\",\"\",+'[1]REAL IPC(M)'!$BE36)","v":"n.d."},{"$f":"IF('[1]REAL IPC(M)'!$AM36=\"\",\"\",+'[1]REAL IPC(M)'!$AM36)","v":"n.d."},{"$f":"IF('[1]REAL IPC(M)'!$BI36=\"\",\"\",+'[1]REAL IPC(M)'!$BI36)","v":"n.d."},{"$f":"IF('[1]REAL IMAE(M)'!BJ36=\"\",\"\",'[1]REAL IMAE(M)'!BJ36)","v":"n.d."},{"$f":"IF('[1]REAL IMAE(M)'!BK36=\"\",\"\",'[1]REAL IMAE(M)'!BK36)","v":"n.d."},{"$f":"IF('[1]REAL IMAE(M)'!BN36=\"\",\"\",'[1]REAL IMAE(M)'!BN36)","v":"n.d."},{"$f":"IF('[1]REAL IMAE(M)'!BO36=\"\",\"\",'[1]REAL IMAE(M)'!BO36)","v":"n.d."},{"$f":"IF('[1]EXT RIN(M)'!$K36=\"\",\"\",'[1]EXT RIN(M)'!$K36)","v":"n.d."},"",{"$f":"IF('[1]EXT RIN(M)'!$L36=\"\",\"\",'[1]EXT RIN(M)'!$L36)","v":"n.d."},"",{"$f":"IF('[1]MONE(M)CARD'!EG36=\"\",\"\",'[1]MONE(M)CARD'!EG36)","v":"n.d."},{"$f":"IF('[1]MONE(M)CARD'!EK36=\"\",\"\",'[1]MONE(M)CARD'!EK36)","v":"n.d."},{"$f":"IF('[1]MONE(M)CARD'!EP36=\"\",\"\",'[1]MONE(M)CARD'!EP36)","v":"n.d."},{"$f":"IF('[1]MONE(M)CARD'!ES36=\"\",\"\",'[1]MONE(M)CARD'!ES36)","v":"n.d."},{"$f":"IF('[1]MONE(M)CARD'!EV36=\"\",\"\",'[1]MONE(M)CARD'!EV36)","v":"n.d."},{"$f":"IF('[1]MONE(M)CARD'!EZ36=\"\",\"\",'[1]MONE(M)CARD'!EZ36)","v":"n.d."},{"$f":"IF('[1]MONE(M)CAPARD'!FC36=\"\",\"\",'[1]MONE(M)CAPARD'!FC36)","v":"n.d."},{"$f":"IF('[1]MONE(M)CAPARD'!FG36=\"\",\"\",'[1]MONE(M)CAPARD'!FG36)","v":"n.d."},{"$f":"IF('[1]MONE(M)CAPARD'!FL36=\"\",\"\",'[1]MONE(M)CAPARD'!FL36)","v":"n.d."},{"$f":"IF('[1]MONE(M)CAPARD'!FO36=\"\",\"\",'[1]MONE(M)CAPARD'!FO36)","v":"n.d."},{"$f":"IF('[1]MONE(M)CAPARD'!FR36=\"\",\"\",'[1]MONE(M)CAPARD'!FR36)","v":"n.d."},{"$f":"IF('[1]MONE(M)CAPARD'!FV36=\"\",\"\",'[1]MONE(M)CAPARD'!FV36)","v":"n.d."},{"$f":"IF('[1]MONE(M)CARD'!FV36=\"\",\"\",'[1]MONE(M)CARD'!FV36)","v":""},{"$f":"IF('[1]MONE(M)CARD'!GD36=\"\",\"\",'[1]MONE(M)CARD'!GD36)","v":"n.d."},{"$f":"IF('[1]MONE(M)CARD'!GE36=\"\",\"\",'[1]MONE(M)CARD'!GE36)","v":"n.d."},"n.d.","n.d.","n.d.","n.d.","n.d.","n.d.","n.d.","n.d.",null,"n.d.","n.d.","n.d.","n.d.","n.d.",{"$f":"IF('[1]MONE(M)CAPARD'!GS36=\"\",\"\",'[1]MONE(M)CAPARD'!GS36)","v":"n.d."},{"$f":"IF('[1]MONE(M)CARD'!HA36=\"\",\"\",'[1]MONE(M)CAPARD'!HA36)","v":"n.d."},{"$f":"IF('[1]MONE(M)CAPARD'!HB36=\"\",\"\",'[1]MONE(M)CAPARD'!HB36)","v":"n.d."},"n.d.","n.d.","n.d.","n.d.","n.d.","n.d.","n.d.","n.d.","n.d.","n.d.","n.d.","n.d.","n.d.","n.d.",{"$f":"IF('[1]MONE(M)CAPARD'!AS36=\"\",\"\",'[1]MONE(M)CAPARD'!AS36)","v":"n.d."},{"$f":"IF('[1]MONE(M)CAPARD'!AT36=\"\",\"\",'[1]MONE(M)CAPARD'!AT36)","v":"n.a."},{"$f":"IF('[1]MONE(M)CAPARD'!AU36=\"\",\"\",'[1]MONE(M)CAPARD'!AU36)","v":"n.d."},{"$f":"IF('[1]MONE(M)CAPARD'!AV36=\"\",\"\",'[1]MONE(M)CAPARD'!AV36)","v":"n.d."},{"$f":"IF('[1]MONE(M)CAPARD'!AW36=\"\",\"\",'[1]MONE(M)CAPARD'!AW36)","v":"n.a."},{"$f":"IF('[1]MONE(M)CAPARD'!AX36=\"\",\"\",'[1]MONE(M)CAPARD'!AX36)","v":"n.d."},{"$f":"IF('[1]MONE(M)CAPARD'!AY36=\"\",\"\",'[1]MONE(M)CAPARD'!AY36)","v":"n.a."},{"$f":"IF('[1]FISCAL(M)'!$K36=\"\",\"\",'[1]FISCAL(M)'!$K36)","v":"n.d."},{"$f":"IF('[1]FISCAL(M)'!$L36=\"\",\"\",'[1]FISCAL(M)'!$L36)","v":"n.d."},{"$f":"IF('[1]FISCAL(M)'!$AY36=\"\",\"\",'[1]FISCAL(M)'!$AY36)","v":"n.d."},{"$f":"IF('[1]FISCAL(M)'!$BI36=\"\",\"\",'[1]FISCAL(M)'!$BI36)","v":"n.d."},{"$f":"IF('[1]FISCAL(M)'!$BS36=\"\",\"\",'[1]FISCAL(M)'!$BS36)","v":"n.d."},{"$f":"IF('[1]FISCAL(M)'!$AZ36=\"\",\"\",'[1]FISCAL(M)'!$AZ36)","v":"n.d."},{"$f":"IF('[1]FISCAL(M)'!$BJ36=\"\",\"\",'[1]FISCAL(M)'!$BJ36)","v":"n.d."},{"$f":"IF('[1]FISCAL(M)'!$BT36=\"\",\"\",'[1]FISCAL(M)'!$BT36)","v":"n.d."},{"$f":"IF('[2]MONE(M)'!$AO36=\"\",\"\",'[2]MONE(M)'!$AO36)","v":"n.d."},{"$f":"IF('[3]MONE(M)'!$AO36=\"\",\"\",'[3]MONE(M)'!$AO36)","v":"n.d."},{"$f":"IF('[4]MONE(M)'!$AO36=\"\",\"\",'[4]MONE(M)'!$AO36)","v":"n.d."},{"$f":"IF('[5]MONE(M)'!$AO36=\"\",\"\",'[5]MONE(M)'!$AO36)","v":"n.d."},{"$f":"IF('[6]MONE(M)'!$AO36=\"\",\"\",'[6]MONE(M)'!$AO36)","v":"n.d."},{"$f":"IF('[7]MONE(M)'!$AO36=\"\",\"\",'[7]MONE(M)'!$AO36)","v":"n.d."},{"$f":"IF('[8]MONE(M)'!$AO36=\"\",\"\",'[8]MONE(M)'!$AO36)","v":"n.d."},"n.d.","n.d.","n.d.","n.d.","n.d.","n.d.","n.d.",{"$f":"IF('[1]FISCAL(M)'!$K36=\"\",\"\",'[1]FISCAL(M)'!$K36)","v":"n.d."},"n.d.","n.d.",{"$f":"IF('[1]FISCAL(M)'!$L36=\"\",\"\",'[1]FISCAL(M)'!$L36)","v":"n.d."},"n.d.","n.d.","n.d.","n.d.","n.d.","n.d.","n.d.","n.d.","n.d.","n.d.","n.d.","n.d.","n.d.","n.d.","n.d.","n.d.","n.d.","n.d."]
[1992,"abril","1992-abril",{"$f":"IF('[1]REAL IPC(M)'!$AL37=\"\",\"\",+'[1]REAL IPC(M)'!$AL37)","v":"n.d."},{"$f":"IF('[1]REAL IPC(M)'!$BE37=\"\",\"\",+'[1]REAL IPC(M)'!$BE37)","v":"n.d."},{"$f":"IF('[1]REAL IPC(M)'!$AM37=\"\",\"\",+'[1]REAL IPC(M)'!$AM37)","v":"n.d."},{"$f":"IF('[1]REAL IPC(M)'!$BI37=\"\",\"\",+'[1]REAL IPC(M)'!$BI37)","v":"n.d."},{"$f":"IF('[1]REAL IMAE(M)'!BJ37=\"\",\"\",'[1]REAL IMAE(M)'!BJ37)","v":"n.d."},{"$f":"IF('[1]REAL IMAE(M)'!BK37=\"\",\"\",'[1]REAL IMAE(M)'!BK37)","v":"n.d."},{"$f":"IF('[1]REAL IMAE(M)'!BN37=\"\",\"\",'[1]REAL IMAE(M)'!BN37)","v":"n.d."},{"$f":"IF('[1]REAL IMAE(M)'!BO37=\"\",\"\",'[1]REAL IMAE(M)'!BO37)","v":"n.d."},{"$f":"IF('[1]EXT RIN(M)'!$K37=\"\",\"\",'[1]EXT RIN(M)'!$K37)","v":"n.d."},"",{"$f":"IF('[1]EXT RIN(M)'!$L37=\"\",\"\",'[1]EXT RIN(M)'!$L37)","v":"n.d."},"",{"$f":"IF('[1]MONE(M)CARD'!EG37=\"\",\"\",'[1]MONE(M)CARD'!EG37)","v":"n.d."},{"$f":"IF('[1]MONE(M)CARD'!EK37=\"\",\"\",'[1]MONE(M)CARD'!EK37)","v":"n.d."},{"$f":"IF('[1]MONE(M)CARD'!EP37=\"\",\"\",'[1]MONE(M)CARD'!EP37)","v":"n.d."},{"$f":"IF('[1]MONE(M)CARD'!ES37=\"\",\"\",'[1]MONE(M)CARD'!ES37)","v":"n.d."},{"$f":"IF('[1]MONE(M)CARD'!EV37=\"\",\"\",'[1]MONE(M)CARD'!EV37)","v":"n.d."},{"$f":"IF('[1]MONE(M)CARD'!EZ37=\"\",\"\",'[1]MONE(M)CARD'!EZ37)","v":"n.d."},{"$f":"IF('[1]MONE(M)CAPARD'!FC37=\"\",\"\",'[1]MONE(M)CAPARD'!FC37)","v":"n.d."},{"$f":"IF('[1]MONE(M)CAPARD'!FG37=\"\",\"\",'[1]MONE(M)CAPARD'!FG37)","v":"n.d."},{"$f":"IF('[1]MONE(M)CAPARD'!FL37=\"\",\"\",'[1]MONE(M)CAPARD'!FL37)","v":"n.d."},{"$f":"IF('[1]MONE(M)CAPARD'!FO37=\"\",\"\",'[1]MONE(M)CAPARD'!FO37)","v":"n.d."},{"$f":"IF('[1]MONE(M)CAPARD'!FR37=\"\",\"\",'[1]MONE(M)CAPARD'!FR37)","v":"n.d."},{"$f":"IF('[1]MONE(M)CAPARD'!FV37=\"\",\"\",'[1]MONE(M)CAPARD'!FV37)","v":"n.d."},{"$f":"IF('[1]MONE(M)CARD'!FV37=\"\",\"\",'[1]MONE(M)CARD'!FV37)","v":""},{"$f":"IF('[1]MONE(M)CARD'!GD37=\"\",\"\",'[1]MONE(M)CARD'!GD37)","v":"n.d."},{"$f":"IF('[1]MONE(M)CARD'!GE37=\"\",\"\",'[1]MONE(M)CARD'!GE37)","v":"n.d."},"n.d.","n.d.","n.d.","n.d.","n.d.","n.d.","n.d.","n.d.",null,"n.d.","n.d.","n.d.","n.d.","n.d.",{"$f":"IF('[1]MONE(M)CAPARD'!GS37=\"\",\"\",'[1]MONE(M)CAPARD'!GS37)","v":"n.d."},{"$f":"IF('[1]MONE(M)CARD'!HA37=\"\",\"\",'[1]MONE(M)CAPARD'!HA37)","v":"n.d."},{"$f":"IF('[1]MONE(M)CAPARD'!HB37=\"\",\"\",'[1]MONE(M)CAPARD'!HB37)","v":"n.d."},"n.d.","n.d.","n.d.","n.d.","n.d.","n.d.","n.d.","n.d.","n.d.","n.d.","n.d.","n.d.","n.d.","n.d.",{"$f":"IF('[1]MONE(M)CAPARD'!AS37=\"\",\"\",'[1]MONE(M)CAPARD'!AS37)","v":"n.d."},{"$f":"IF('[1]MONE(M)CAPARD'!AT37=\"\",\"\",'[1]MONE(M)CAPARD'!AT37)","v":"n.a."},{"$f":"IF('[1]MONE(M)CAPARD'!AU37=\"\",\"\",'[1]MONE(M)CAPARD'!AU37)","v":"n.d."},{"$f":"IF('[1]MONE(M)CAPARD'!AV37=\"\",\"\",'[1]MONE(M)CAPARD'!AV37)","v":"n.d."},{"$f":"IF('[1]MONE(M)CAPARD'!AW37=\"\",\"\",'[1]MONE(M)CAPARD'!AW37)","v":"n.a."},{"$f":"IF('[1]MONE(M)CAPARD'!AX37=\"\",\"\",'[1]MONE(M)CAPARD'!AX37)","v":"n.d."},{"$f":"IF('[1]MONE(M)CAPARD'!AY37=\"\",\"\",'[1]MONE(M)CAPARD'!AY37)","v":"n.a."},{"$f":"IF('[1]FISCAL(M)'!$K37=\"\",\"\",'[1]FISCAL(M)'!$K37)","v":"n.d."},{"$f":"IF('[1]FISCAL(M)'!$L37=\"\",\"\",'[1]FISCAL(M)'!$L37)","v":"n.d."},{"$f":"IF('[1]FISCAL(M)'!$AY37=\"\",\"\",'[1]FISCAL(M)'!$AY37)","v":"n.d."},{"$f":"IF('[1]FISCAL(M)'!$BI37=\"\",\"\",'[1]FISCAL(M)'!$BI37)","v":"n.d."},{"$f":"IF('[1]FISCAL(M)'!$BS37=\"\",\"\",'[1]FISCAL(M)'!$BS37)","v":"n.d."},{"$f":"IF('[1]FISCAL(M)'!$AZ37=\"\",\"\",'[1]FISCAL(M)'!$AZ37)","v":"n.d."},{"$f":"IF('[1]FISCAL(M)'!$BJ37=\"\",\"\",'[1]FISCAL(M)'!$BJ37)","v":"n.d."},{"$f":"IF('[1]FISCAL(M)'!$BT37=\"\",\"\",'[1]FISCAL(M)'!$BT37)","v":"n.d."},{"$f":"IF('[2]MONE(M)'!$AO37=\"\",\"\",'[2]MONE(M)'!$AO37)","v":"n.d."},{"$f":"IF('[3]MONE(M)'!$AO37=\"\",\"\",'[3]MONE(M)'!$AO37)","v":"n.d."},{"$f":"IF('[4]MONE(M)'!$AO37=\"\",\"\",'[4]MONE(M)'!$AO37)","v":"n.d."},{"$f":"IF('[5]MONE(M)'!$AO37=\"\",\"\",'[5]MONE(M)'!$AO37)","v":"n.d."},{"$f":"IF('[6]MONE(M)'!$AO37=\"\",\"\",'[6]MONE(M)'!$AO37)","v":"n.d."},{"$f":"IF('[7]MONE(M)'!$AO37=\"\",\"\",'[7]MONE(M)'!$AO37)","v":"n.d."},{"$f":"IF('[8]MONE(M)'!$AO37=\"\",\"\",'[8]MONE(M)'!$AO37)","v":"n.d."},"n.d.","n.d.","n.d.","n.d.","n.d.","n.d.","n.d.",{"$f":"IF('[1]FISCAL(M)'!$K37=\"\",\"\",'[1]FISCAL(M)'!$K37)","v":"n.d."},"n.d.","n.d.",{"$f":"IF('[1]FISCAL(M)'!$L37=\"\",\"\",'[1]FISCAL(M)'!$L37)","v":"n.d."},"n.d.","n.d.","n.d.","n.d.","n.d.","n.d.","n.d.","n.d.","n.d.","n.d.","n.d.","n.d.","n.d.","n.d.","n.d.","n.d.","n.d.","n.d."]
[1992,"mayo ","1992-mayo ",{"$f":"IF('[1]REAL IPC(M)'!$AL38=\"\",\"\",+'[1]REAL IPC(M)'!$AL38)","v":"n.d."},{"$f":"IF('[1]REAL IPC(M)'!$BE38=\"\",\"\",+'[1]REAL IPC(M)'!$BE38)","v":"n.d."},{"$f":"IF('[1]REAL IPC(M)'!$AM38=\"\",\"\",+'[1]REAL IPC(M)'!$AM38)","v":"n.d."},{"$f":"IF('[1]REAL IPC(M)'!$BI38=\"\",\"\",+'[1]REAL IPC(M)'!$BI38)","v":"n.d."},{"$f":"IF('[1]REAL IMAE(M)'!BJ38=\"\",\"\",'[1]REAL IMAE(M)'!BJ38)","v":"n.d."},{"$f":"IF('[1]REAL IMAE(M)'!BK38=\"\",\"\",'[1]REAL IMAE(M)'!BK38)","v":"n.d."},{"$f":"IF('[1]REAL IMAE(M)'!BN38=\"\",\"\",'[1]REAL IMAE(M)'!BN38)","v":"n.d."},{"$f":"IF('[1]REAL IMAE(M)'!BO38=\"\",\"\",'[1]REAL IMAE(M)'!BO38)","v":"n.d."},{"$f":"IF('[1]EXT RIN(M)'!$K38=\"\",\"\",'[1]EXT RIN(M)'!$K38)","v":"n.d."},"",{"$f":"IF('[1]EXT RIN(M)'!$L38=\"\",\"\",'[1]EXT RIN(M)'!$L38)","v":"n.d."},"",{"$f":"IF('[1]MONE(M)CARD'!EG38=\"\",\"\",'[1]MONE(M)CARD'!EG38)","v":"n.d."},{"$f":"IF('[1]MONE(M)CARD'!EK38=\"\",\"\",'[1]MONE(M)CARD'!EK38)","v":"n.d."},{"$f":"IF('[1]MONE(M)CARD'!EP38=\"\",\"\",'[1]MONE(M)CARD'!EP38)","v":"n.d."},{"$f":"IF('[1]MONE(M)CARD'!ES38=\"\",\"\",'[1]MONE(M)CARD'!ES38)","v":"n.d."},{"$f":"IF('[1]MONE(M)CARD'!EV38=\"\",\"\",'[1]MONE(M)CARD'!EV38)","v":"n.d."},{"$f":"IF('[1]MONE(M)CARD'!EZ38=\"\",\"\",'[1]MONE(M)CARD'!EZ38)","v":"n.d."},{"$f":"IF('[1]MONE(M)CAPARD'!FC38=\"\",\"\",'[1]MONE(M)CAPARD'!FC38)","v":"n.d."},{"$f":"IF('[1]MONE(M)CAPARD'!FG38=\"\",\"\",'[1]MONE(M)CAPARD'!FG38)","v":"n.d."},{"$f":"IF('[1]MONE(M)CAPARD'!FL38=\"\",\"\",'[1]MONE(M)CAPARD'!FL38)","v":"n.d."},{"$f":"IF('[1]MONE(M)CAPARD'!FO38=\"\",\"\",'[1]MONE(M)CAPARD'!FO38)","v":"n.d."},{"$f":"IF('[1]MONE(M)CAPARD'!FR38=\"\",\"\",'[1]MONE(M)CAPARD'!FR38)","v":"n.d."},{"$f":"IF('[1]MONE(M)CAPARD'!FV38=\"\",\"\",'[1]MONE(M)CAPARD'!FV38)","v":"n.d."},{"$f":"IF('[1]MONE(M)CARD'!FV38=\"\",\"\",'[1]MONE(M)CARD'!FV38)","v":""},{"$f":"IF('[1]MONE(M)CARD'!GD38=\"\",\"\",'[1]MONE(M)CARD'!GD38)","v":"n.d."},{"$f":"IF('[1]MONE(M)CARD'!GE38=\"\",\"\",'[1]MONE(M)CARD'!GE38)","v":"n.d."},"n.d.","n.d.","n.d.","n.d.","n.d.","n.d.","n.d.","n.d.",null,"n.d.","n.d.","n.d.","n.d.","n.d.",{"$f":"IF('[1]MONE(M)CAPARD'!GS38=\"\",\"\",'[1]MONE(M)CAPARD'!GS38)","v":"n.d."},{"$f":"IF('[1]MONE(M)CARD'!HA38=\"\",\"\",'[1]MONE(M)CAPARD'!HA38)","v":"n.d."},{"$f":"IF('[1]MONE(M)CAPARD'!HB38=\"\",\"\",'[1]MONE(M)CAPARD'!HB38)","v":"n.d."},"n.d.","n.d.","n.d.","n.d.","n.d.","n.d.","n.d.","n.d.","n.d.","n.d.","n.d.","n.d.","n.d.","n.d.",{"$f":"IF('[1]MONE(M)CAPARD'!AS38=\"\",\"\",'[1]MONE(M)CAPARD'!AS38)","v":"n.d."},{"$f":"IF('[1]MONE(M)CAPARD'!AT38=\"\",\"\",'[1]MONE(M)CAPARD'!AT38)","v":"n.a."},{"$f":"IF('[1]MONE(M)CAPARD'!AU38=\"\",\"\",'[1]MONE(M)CAPARD'!AU38)","v":"n.d."},{"$f":"IF('[1]MONE(M)CAPARD'!AV38=\"\",\"\",'[1]MONE(M)CAPARD'!AV38)","v":"n.d."},{"$f":"IF('[1]MONE(M)CAPARD'!AW38=\"\",\"\",'[1]MONE(M)CAPARD'!AW38)","v":"n.a."},{"$f":"IF('[1]MONE(M)CAPARD'!AX38=\"\",\"\",'[1]MONE(M)CAPARD'!AX38)","v":"n.d."},{"$f":"IF('[1]MONE(M)CAPARD'!AY38=\"\",\"\",'[1]MONE(M)CAPARD'!AY38)","v":"n.a."},{"$f":"IF('[1]FISCAL(M)'!$K38=\"\",\"\",'[1]FISCAL(M)'!$K38)","v":"n.d."},{"$f":"IF('[1]FISCAL(M)'!$L38=\"\",\"\",'[1]FISCAL(M)'!$L38)","v":"n.d."},{"$f":"IF('[1]FISCAL(M)'!$AY38=\"\",\"\",'[1]FISCAL(M)'!$AY38)","v":"n.d."},{"$f":"IF('[1]FISCAL(M)'!$BI38=\"\",\"\",'[1]FISCAL(M)'!$BI38)","v":"n.d."},{"$f":"IF('[1]FISCAL(M)'!$BS38=\"\",\"\",'[1]FISCAL(M)'!$BS38)","v":"n.d."},{"$f":"IF('[1]FISCAL(M)'!$AZ38=\"\",\"\",'[1]FISCAL(M)'!$AZ38)","v":"n.d."},{"$f":"IF('[1]FISCAL(M)'!$BJ38=\"\",\"\",'[1]FISCAL(M)'!$BJ38)","v":"n.d."},{"$f":"IF('[1]FISCAL(M)'!$BT38=\"\",\"\",'[1]FISCAL(M)'!$BT38)","v":"n.d."},{"$f":"IF('[2]MONE(M)'!$AO38=\"\",\"\",'[2]MONE(M)'!$AO38)","v":"n.d."},{"$f":"IF('[3]MONE(M)'!$AO38=\"\",\"\",'[3]MONE(M)'!$AO38)","v":"n.d."},{"$f":"IF('[4]MONE(M)'!$AO38=\"\",\"\",'[4]MONE(M)'!$AO38)","v":"n.d."},{"$f":"IF('[5]MONE(M)'!$AO38=\"\",\"\",'[5]MONE(M)'!$AO38)","v":"n.d."},{"$f":"IF('[6]MONE(M)'!$AO38=\"\",\"\",'[6]MONE(M)'!$AO38)","v":"n.d."},{"$f":"IF('[7]MONE(M)'!$AO38=\"\",\"\",'[7]MONE(M)'!$AO38)","v":"n.d."},{"$f":"IF('[8]MONE(M)'!$AO38=\"\",\"\",'[8]MONE(M)'!$AO38)","v":"n.d."},"n.d.","n.d.","n.d.","n.d.","n.d.","n.d.","n.d.",{"$f":"IF('[1]FISCAL(M)'!$K38=\"\",\"\",'[1]FISCAL(M)'!$K38)","v":"n.d."},"n.d.","n.d.",{"$f":"IF('[1]FISCAL(M)'!$L38=\"\",\"\",'[1]FISCAL(M)'!$L38)","v":"n.d."},"n.d.","n.d.","n.d.","n.d.","n.d.","n.d.","n.d.","n.d.","n.d.","n.d.","n.d.","n.d.","n.d.","n.d.","n.d.","n.d.","n.d.","n.d."]
[1992,"junio ","1992-junio ",{"$f":"IF('[1]REAL IPC(M)'!$AL39=\"\",\"\",+'[1]REAL IPC(M)'!$AL39)","v":"n.d."},{"$f":"IF('[1]REAL IPC(M)'!$BE39=\"\",\"\",+'[1]REAL IPC(M)'!$BE39)","v":"n.d."},{"$f":"IF('[1]REAL IPC(M)'!$AM39=\"\",\"\",+'[1]REAL IPC(M)'!$AM39)","v":"n.d."},{"$f":"IF('[1]REAL IPC(M)'!$BI39=\"\",\"\",+'[1]REAL IPC(M)'!$BI39)","v":"n.d."},{"$f":"IF('[1]REAL IMAE(M)'!BJ39=\"\",\"\",'[1]REAL IMAE(M)'!BJ39)","v":"n.d."},{"$f":"IF('[1]REAL IMAE(M)'!BK39=\"\",\"\",'[1]REAL IMAE(M)'!BK39)","v":"n.d."},{"$f":"IF('[1]REAL IMAE(M)'!BN39=\"\",\"\",'[1]REAL IMAE(M)'!BN39)","v":"n.d."},{"$f":"IF('[1]REAL IMAE(M)'!BO39=\"\",\"\",'[1]REAL IMAE(M)'!BO39)","v":"n.d."},{"$f":"IF('[1]EXT RIN(M)'!$K39=\"\",\"\",'[1]EXT RIN(M)'!$K39)","v":"n.d."},"",{"$f":"IF('[1]EXT RIN(M)'!$L39=\"\",\"\",'[1]EXT RIN(M)'!$L39)","v":"n.d."},"",{"$f":"IF('[1]MONE(M)CARD'!EG39=\"\",\"\",'[1]MONE(M)CARD'!EG39)","v":"n.d."},{"$f":"IF('[1]MONE(M)CARD'!EK39=\"\",\"\",'[1]MONE(M)CARD'!EK39)","v":"n.d."},{"$f":"IF('[1]MONE(M)CARD'!EP39=\"\",\"\",'[1]MONE(M)CARD'!EP39)","v":"n.d."},{"$f":"IF('[1]MONE(M)CARD'!ES39=\"\",\"\",'[1]MONE(M)CARD'!ES39)","v":"n.d."},{"$f":"IF('[1]MONE(M)CARD'!EV39=\"\",\"\",'[1]MONE(M)CARD'!EV39)","v":"n.d."},{"$f":"IF('[1]MONE(M)CARD'!EZ39=\"\",\"\",'[1]MONE(M)CARD'!EZ39)","v":"n.d."},{"$f":"IF('[1]MONE(M)CAPARD'!FC39=\"\",\"\",'[1]MONE(M)CAPARD'!FC39)","v":"n.d."},{"$f":"IF('[1]MONE(M)CAPARD'!FG39=\"\",\"\",'[1]MONE(M)CAPARD'!FG39)","v":"n.d."},{"$f":"IF('[1]MONE(M)CAPARD'!FL39=\"\",\"\",'[1]MONE(M)CAPARD'!FL39)","v":"n.d."},{"$f":"IF('[1]MONE(M)CAPARD'!FO39=\"\",\"\",'[1]MONE(M)CAPARD'!FO39)","v":"n.d."},{"$f":"IF('[1]MONE(M)CAPARD'!FR39=\"\",\"\",'[1]MONE(M)CAPARD'!FR39)","v":"n.d."},{"$f":"IF('[1]MONE(M)CAPARD'!FV39=\"\",\"\",'[1]MONE(M)CAPARD'!FV39)","v":"n.d."},{"$f":"IF('[1]MONE(M)CARD'!FV39=\"\",\"\",'[1]MONE(M)CARD'!FV39)","v":""},{"$f":"IF('[1]MONE(M)CARD'!GD39=\"\",\"\",'[1]MONE(M)CARD'!GD39)","v":"n.d."},{"$f":"IF('[1]MONE(M)CARD'!GE39=\"\",\"\",'[1]MONE(M)CARD'!GE39)","v":"n.d."},"n.d.","n.d.","n.d.","n.d.","n.d.","n.d.","n.d.","n.d.",null,"n.d.","n.d.","n.d.","n.d.","n.d.",{"$f":"IF('[1]MONE(M)CAPARD'!GS39=\"\",\"\",'[1]MONE(M)CAPARD'!GS39)","v":"n.d."},{"$f":"IF('[1]MONE(M)CARD'!HA39=\"\",\"\",'[1]MONE(M)CAPARD'!HA39)","v":"n.d."},{"$f":"IF('[1]MONE(M)CAPARD'!HB39=\"\",\"\",'[1]MONE(M)CAPARD'!HB39)","v":"n.d."},"n.d.","n.d.","n.d.","n.d.","n.d.","n.d.","n.d.","n.d.","n.d.","n.d.","n.d.","n.d.","n.d.","n.d.",{"$f":"IF('[1]MONE(M)CAPARD'!AS39=\"\",\"\",'[1]MONE(M)CAPARD'!AS39)","v":"n.d."},{"$f":"IF('[1]MONE(M)CAPARD'!AT39=\"\",\"\",'[1]MONE(M)CAPARD'!AT39)","v":"n.a."},{"$f":"IF('[1]MONE(M)CAPARD'!AU39=\"\",\"\",'[1]MONE(M)CAPARD'!AU39)","v":"n.d."},{"$f":"IF('[1]MONE(M)CAPARD'!AV39=\"\",\"\",'[1]MONE(M)CAPARD'!AV39)","v":"n.d."},{"$f":"IF('[1]MONE(M)CAPARD'!AW39=\"\",\"\",'[1]MONE(M)CAPARD'!AW39)","v":"n.a."},{"$f":"IF('[1]MONE(M)CAPARD'!AX39=\"\",\"\",'[1]MONE(M)CAPARD'!AX39)","v":"n.d."},{"$f":"IF('[1]MONE(M)CAPARD'!AY39=\"\",\"\",'[1]MONE(M)CAPARD'!AY39)","v":"n.a."},{"$f":"IF('[1]FISCAL(M)'!$K39=\"\",\"\",'[1]FISCAL(M)'!$K39)","v":"n.d."},{"$f":"IF('[1]FISCAL(M)'!$L39=\"\",\"\",'[1]FISCAL(M)'!$L39)","v":"n.d."},{"$f":"IF('[1]FISCAL(M)'!$AY39=\"\",\"\",'[1]FISCAL(M)'!$AY39)","v":"n.d."},{"$f":"IF('[1]FISCAL(M)'!$BI39=\"\",\"\",'[1]FISCAL(M)'!$BI39)","v":"n.d."},{"$f":"IF('[1]FISCAL(M)'!$BS39=\"\",\"\",'[1]FISCAL(M)'!$BS39)","v":"n.d."},{"$f":"IF('[1]FISCAL(M)'!$AZ39=\"\",\"\",'[1]FISCAL(M)'!$AZ39)","v":"n.d."},{"$f":"IF('[1]FISCAL(M)'!$BJ39=\"\",\"\",'[1]FISCAL(M)'!$BJ39)","v":"n.d."},{"$f":"IF('[1]FISCAL(M)'!$BT39=\"\",\"\",'[1]FISCAL(M)'!$BT39)","v":"n.d."},{"$f":"IF('[2]MONE(M)'!$AO39=\"\",\"\",'[2]MONE(M)'!$AO39)","v":"n.d."},{"$f":"IF('[3]MONE(M)'!$AO39=\"\",\"\",'[3]MONE(M)'!$AO39)","v":"n.d."},{"$f":"IF('[4]MONE(M)'!$AO39=\"\",\"\",'[4]MONE(M)'!$AO39)","v":"n.d."},{"$f":"IF('[5]MONE(M)'!$AO39=\"\",\"\",'[5]MONE(M)'!$AO39)","v":"n.d."},{"$f":"IF('[6]MONE(M)'!$AO39=\"\",\"\",'[6]MONE(M)'!$AO39)","v":"n.d."},{"$f":"IF('[7]MONE(M)'!$AO39=\"\",\"\",'[7]MONE(M)'!$AO39)","v":"n.d."},{"$f":"IF('[8]MONE(M)'!$AO39=\"\",\"\",'[8]MONE(M)'!$AO39)","v":"n.d."},"n.d.","n.d.","n.d.","n.d.","n.d.","n.d.","n.d.",{"$f":"IF('[1]FISCAL(M)'!$K39=\"\",\"\",'[1]FISCAL(M)'!$K39)","v":"n.d."},"n.d.","n.d.",{"$f":"IF('[1]FISCAL(M)'!$L39=\"\",\"\",'[1]FISCAL(M)'!$L39)","v":"n.d."},"n.d.","n.d.","n.d.","n.d.","n.d.","n.d.","n.d.","n.d.","n.d.","n.d.","n.d.","n.d.","n.d.","n.d.","n.d.","n.d.","n.d.","n.d."]
[1992,"julio","1992-julio",{"$f":"IF('[1]REAL IPC(M)'!$AL40=\"\",\"\",+'[1]REAL IPC(M)'!$AL40)","v":"n.d."},{"$f":"IF('[1]REAL IPC(M)'!$BE40=\"\",\"\",+'[1]REAL IPC(M)'!$BE40)","v":"n.d."},{"$f":"IF('[1]REAL IPC(M)'!$AM40=\"\",\"\",+'[1]REAL IPC(M)'!$AM40)","v":"n.d."},{"$f":"IF('[1]REAL IPC(M)'!$BI40=\"\",\"\",+'[1]REAL IPC(M)'!$BI40)","v":"n.d."},{"$f":"IF('[1]REAL IMAE(M)'!BJ40=\"\",\"\",'[1]REAL IMAE(M)'!BJ40)","v":"n.d."},{"$f":"IF('[1]REAL IMAE(M)'!BK40=\"\",\"\",'[1]REAL IMAE(M)'!BK40)","v":"n.d."},{"$f":"IF('[1]REAL IMAE(M)'!BN40=\"\",\"\",'[1]REAL IMAE(M)'!BN40)","v":"n.d."},{"$f":"IF('[1]REAL IMAE(M)'!BO40=\"\",\"\",'[1]REAL IMAE(M)'!BO40)","v":"n.d."},{"$f":"IF('[1]EXT RIN(M)'!$K40=\"\",\"\",'[1]EXT RIN(M)'!$K40)","v":"n.d."},"",{"$f":"IF('[1]EXT RIN(M)'!$L40=\"\",\"\",'[1]EXT RIN(M)'!$L40)","v":"n.d."},"",{"$f":"IF('[1]MONE(M)CARD'!EG40=\"\",\"\",'[1]MONE(M)CARD'!EG40)","v":"n.d."},{"$f":"IF('[1]MONE(M)CARD'!EK40=\"\",\"\",'[1]MONE(M)CARD'!EK40)","v":"n.d."},{"$f":"IF('[1]MONE(M)CARD'!EP40=\"\",\"\",'[1]MONE(M)CARD'!EP40)","v":"n.d."},{"$f":"IF('[1]MONE(M)CARD'!ES40=\"\",\"\",'[1]MONE(M)CARD'!ES40)","v":"n.d."},{"$f":"IF('[1]MONE(M)CARD'!EV40=\"\",\"\",'[1]MONE(M)CARD'!EV40)","v":"n.d."},{"$f":"IF('[1]MONE(M)CARD'!EZ40=\"\",\"\",'[1]MONE(M)CARD'!EZ40)","v":"n.d."},{"$f":"IF('[1]MONE(M)CAPARD'!FC40=\"\",\"\",'[1]MONE(M)CAPARD'!FC40)","v":"n.d."},{"$f":"IF('[1]MONE(M)CAPARD'!FG40=\"\",\"\",'[1]MONE(M)CAPARD'!FG40)","v":"n.d."},{"$f":"IF('[1]MONE(M)CAPARD'!FL40=\"\",\"\",'[1]MONE(M)CAPARD'!FL40)","v":"n.d."},{"$f":"IF('[1]MONE(M)CAPARD'!FO40=\"\",\"\",'[1]MONE(M)CAPARD'!FO40)","v":"n.d."},{"$f":"IF('[1]MONE(M)CAPARD'!FR40=\"\",\"\",'[1]MONE(M)CAPARD'!FR40)","v":"n.d."},{"$f":"IF('[1]MONE(M)CAPARD'!FV40=\"\",\"\",'[1]MONE(M)CAPARD'!FV40)","v":"n.d."},{"$f":"IF('[1]MONE(M)CARD'!FV40=\"\",\"\",'[1]MONE(M)CARD'!FV40)","v":""},{"$f":"IF('[1]MONE(M)CARD'!GD40=\"\",\"\",'[1]MONE(M)CARD'!GD40)","v":"n.d."},{"$f":"IF('[1]MONE(M)CARD'!GE40=\"\",\"\",'[1]MONE(M)CARD'!GE40)","v":"n.d."},"n.d.","n.d.","n.d.","n.d.","n.d.","n.d.","n.d.","n.d.",null,"n.d.","n.d.","n.d.","n.d.","n.d.",{"$f":"IF('[1]MONE(M)CAPARD'!GS40=\"\",\"\",'[1]MONE(M)CAPARD'!GS40)","v":"n.d."},{"$f":"IF('[1]MONE(M)CARD'!HA40=\"\",\"\",'[1]MONE(M)CAPARD'!HA40)","v":"n.d."},{"$f":"IF('[1]MONE(M)CAPARD'!HB40=\"\",\"\",'[1]MONE(M)CAPARD'!HB40)","v":"n.d."},"n.d.","n.d.","n.d.","n.d.","n.d.","n.d.","n.d.","n.d.","n.d.","n.d.","n.d.","n.d.","n.d.","n.d.",{"$f":"IF('[1]MONE(M)CAPARD'!AS40=\"\",\"\",'[1]MONE(M)CAPARD'!AS40)","v":"n.d."},{"$f":"IF('[1]MONE(M)CAPARD'!AT40=\"\",\"\",'[1]MONE(M)CAPARD'!AT40)","v":"n.a."},{"$f":"IF('[1]MONE(M)CAPARD'!AU40=\"\",\"\",'[1]MONE(M)CAPARD'!AU40)","v":"n.d."},{"$f":"IF('[1]MONE(M)CAPARD'!AV40=\"\",\"\",'[1]MONE(M)CAPARD'!AV40)","v":"n.d."},{"$f":"IF('[1]MONE(M)CAPARD'!AW40=\"\",\"\",'[1]MONE(M)CAPARD'!AW40)","v":"n.a."},{"$f":"IF('[1]MONE(M)CAPARD'!AX40=\"\",\"\",'[1]MONE(M)CAPARD'!AX40)","v":"n.d."},{"$f":"IF('[1]MONE(M)CAPARD'!AY40=\"\",\"\",'[1]MONE(M)CAPARD'!AY40)","v":"n.a."},{"$f":"IF('[1]FISCAL(M)'!$K40=\"\",\"\",'[1]FISCAL(M)'!$K40)","v":"n.d."},{"$f":"IF('[1]FISCAL(M)'!$L40=\"\",\"\",'[1]FISCAL(M)'!$L40)","v":"n.d."},{"$f":"IF('[1]FISCAL(M)'!$AY40=\"\",\"\",'[1]FISCAL(M)'!$AY40)","v":"n.d."},{"$f":"IF('[1]FISCAL(M)'!$BI40=\"\",\"\",'[1]FISCAL(M)'!$BI40)","v":"n.d."},{"$f":"IF('[1]FISCAL(M)'!$BS40=\"\",\"\",'[1]FISCAL(M)'!$BS40)","v":"n.d."},{"$f":"IF('[1]FISCAL(M)'!$AZ40=\"\",\"\",'[1]FISCAL(M)'!$AZ40)","v":"n.d."},{"$f":"IF('[1]FISCAL(M)'!$BJ40=\"\",\"\",'[1]FISCAL(M)'!$BJ40)","v":"n.d."},{"$f":"IF('[1]FISCAL(M)'!$BT40=\"\",\"\",'[1]FISCAL(M)'!$BT40)","v":"n.d."},{"$f":"IF('[2]MONE(M)'!$AO40=\"\",\"\",'[2]MONE(M)'!$AO40)","v":"n.d."},{"$f":"IF('[3]MONE(M)'!$AO40=\"\",\"\",'[3]MONE(M)'!$AO40)","v":"n.d."},{"$f":"IF('[4]MONE(M)'!$AO40=\"\",\"\",'[4]MONE(M)'!$AO40)","v":"n.d."},{"$f":"IF('[5]MONE(M)'!$AO40=\"\",\"\",'[5]MONE(M)'!$AO40)","v":"n.d."},{"$f":"IF('[6]MONE(M)'!$AO40=\"\",\"\",'[6]MONE(M)'!$AO40)","v":"n.d."},{"$f":"IF('[7]MONE(M)'!$AO40=\"\",\"\",'[7]MONE(M)'!$AO40)","v":"n.d."},{"$f":"IF('[8]MONE(M)'!$AO40=\"\",\"\",'[8]MONE(M)'!$AO40)","v":"n.d."},"n.d.","n.d.","n.d.","n.d.","n.d.","n.d.","n.d.",{"$f":"IF('[1]FISCAL(M)'!$K40=\"\",\"\",'[1]FISCAL(M)'!$K40)","v":"n.d."},"n.d.","n.d.",{"$f":"IF('[1]FISCAL(M)'!$L40=\"\",\"\",'[1]FISCAL(M)'!$L40)","v":"n.d."},"n.d.","n.d.","n.d.","n.d.","n.d.","n.d.","n.d.","n.d.","n.d.","n.d.","n.d.","n.d.","n.d.","n.d.","n.d.","n.d.","n.d.","n.d."]
[1992,"agosto","1992-agosto",{"$f":"IF('[1]REAL IPC(M)'!$AL41=\"\",\"\",+'[1]REAL IPC(M)'!$AL41)","v":"n.d."},{"$f":"IF('[1]REAL IPC(M)'!$BE41=\"\",\"\",+'[1]REAL IPC(M)'!$BE41)","v":"n.d."},{"$f":"IF('[1]REAL IPC(M)'!$AM41=\"\",\"\",+'[1]REAL IPC(M)'!$AM41)","v":"n.d."},{"$f":"IF('[1]REAL IPC(M)'!$BI41=\"\",\"\",+'[1]REAL IPC(M)'!$BI41)","v":"n.d."},{"$f":"IF('[1]REAL IMAE(M)'!BJ41=\"\",\"\",'[1]REAL IMAE(M)'!BJ41)","v":"n.d."},{"$f":"IF('[1]REAL IMAE(M)'!BK41=\"\",\"\",'[1]REAL IMAE(M)'!BK41)","v":"n.d."},{"$f":"IF('[1]REAL IMAE(M)'!BN41=\"\",\"\",'[1]REAL IMAE(M)'!BN41)","v":"n.d."},{"$f":"IF('[1]REAL IMAE(M)'!BO41=\"\",\"\",'[1]REAL IMAE(M)'!BO41)","v":"n.d."},{"$f":"IF('[1]EXT RIN(M)'!$K41=\"\",\"\",'[1]EXT RIN(M)'!$K41)","v":"n.d."},"",{"$f":"IF('[1]EXT RIN(M)'!$L41=\"\",\"\",'[1]EXT RIN(M)'!$L41)","v":"n.d."},"",{"$f":"IF('[1]MONE(M)CARD'!EG41=\"\",\"\",'[1]MONE(M)CARD'!EG41)","v":"n.d."},{"$f":"IF('[1]MONE(M)CARD'!EK41=\"\",\"\",'[1]MONE(M)CARD'!EK41)","v":"n.d."},{"$f":"IF('[1]MONE(M)CARD'!EP41=\"\",\"\",'[1]MONE(M)CARD'!EP41)","v":"n.d."},{"$f":"IF('[1]MONE(M)CARD'!ES41=\"\",\"\",'[1]MONE(M)CARD'!ES41)","v":"n.d."},{"$f":"IF('[1]MONE(M)CARD'!EV41=\"\",\"\",'[1]MONE(M)CARD'!EV41)","v":"n.d."},{"$f":"IF('[1]MONE(M)CARD'!EZ41=\"\",\"\",'[1]MONE(M)CARD'!EZ41)","v":"n.d."},{"$f":"IF('[1]MONE(M)CAPARD'!FC41=\"\",\"\",'[1]MONE(M)CAPARD'!FC41)","v":"n.d."},{"$f":"IF('[1]MONE(M)CAPARD'!FG41=\"\",\"\",'[1]MONE(M)CAPARD'!FG41)","v":"n.d."},{"$f":"IF('[1]MONE(M)CAPARD'!FL41=\"\",\"\",'[1]MONE(M)CAPARD'!FL41)","v":"n.d."},{"$f":"IF('[1]MONE(M)CAPARD'!FO41=\"\",\"\",'[1]MONE(M)CAPARD'!FO41)","v":"n.d."},{"$f":"IF('[1]MONE(M)CAPARD'!FR41=\"\",\"\",'[1]MONE(M)CAPARD'!FR41)","v":"n.d."},{"$f":"IF('[1]MONE(M)CAPARD'!FV41=\"\",\"\",'[1]MONE(M)CAPARD'!FV41)","v":"n.d."},{"$f":"IF('[1]MONE(M)CARD'!FV41=\"\",\"\",'[1]MONE(M)CARD'!FV41)","v":""},{"$f":"IF('[1]MONE(M)CARD'!GD41=\"\",\"\",'[1]MONE(M)CARD'!GD41)","v":"n.d."},{"$f":"IF('[1]MONE(M)CARD'!GE41=\"\",\"\",'[1]MONE(M)CARD'!GE41)","v":"n.d."},"n.d.","n.d.","n.d.","n.d.","n.d.","n.d.","n.d.","n.d.",null,"n.d.","n.d.","n.d.","n.d.","n.d.",{"$f":"IF('[1]MONE(M)CAPARD'!GS41=\"\",\"\",'[1]MONE(M)CAPARD'!GS41)","v":"n.d."},{"$f":"IF('[1]MONE(M)CARD'!HA41=\"\",\"\",'[1]MONE(M)CAPARD'!HA41)","v":"n.d."},{"$f":"IF('[1]MONE(M)CAPARD'!HB41=\"\",\"\",'[1]MONE(M)CAPARD'!HB41)","v":"n.d."},"n.d.","n.d.","n.d.","n.d.","n.d.","n.d.","n.d.","n.d.","n.d.","n.d.","n.d.","n.d.","n.d.","n.d.",{"$f":"IF('[1]MONE(M)CAPARD'!AS41=\"\",\"\",'[1]MONE(M)CAPARD'!AS41)","v":"n.d."},{"$f":"IF('[1]MONE(M)CAPARD'!AT41=\"\",\"\",'[1]MONE(M)CAPARD'!AT41)","v":"n.a."},{"$f":"IF('[1]MONE(M)CAPARD'!AU41=\"\",\"\",'[1]MONE(M)CAPARD'!AU41)","v":"n.d."},{"$f":"IF('[1]MONE(M)CAPARD'!AV41=\"\",\"\",'[1]MONE(M)CAPARD'!AV41)","v":"n.d."},{"$f":"IF('[1]MONE(M)CAPARD'!AW41=\"\",\"\",'[1]MONE(M)CAPARD'!AW41)","v":"n.a."},{"$f":"IF('[1]MONE(M)CAPARD'!AX41=\"\",\"\",'[1]MONE(M)CAPARD'!AX41)","v":"n.d."},{"$f":"IF('[1]MONE(M)CAPARD'!AY41=\"\",\"\",'[1]MONE(M)CAPARD'!AY41)","v":"n.a."},{"$f":"IF('[1]FISCAL(M)'!$K41=\"\",\"\",'[1]FISCAL(M)'!$K41)","v":"n.d."},{"$f":"IF('[1]FISCAL(M)'!$L41=\"\",\"\",'[1]FISCAL(M)'!$L41)","v":"n.d."},{"$f":"IF('[1]FISCAL(M)'!$AY41=\"\",\"\",'[1]FISCAL(M)'!$AY41)","v":"n.d."},{"$f":"IF('[1]FISCAL(M)'!$BI41=\"\",\"\",'[1]FISCAL(M)'!$BI41)","v":"n.d."},{"$f":"IF('[1]FISCAL(M)'!$BS41=\"\",\"\",'[1]FISCAL(M)'!$BS41)","v":"n.d."},{"$f":"IF('[1]FISCAL(M)'!$AZ41=\"\",\"\",'[1]FISCAL(M)'!$AZ41)","v":"n.d."},{"$f":"IF('[1]FISCAL(M)'!$BJ41=\"\",\"\",'[1]FISCAL(M)'!$BJ41)","v":"n.d."},{"$f":"IF('[1]FISCAL(M)'!$BT41=\"\",\"\",'[1]FISCAL(M)'!$BT41)","v":"n.d."},{"$f":"IF('[2]MONE(M)'!$AO41=\"\",\"\",'[2]MONE(M)'!$AO41)","v":"n.d."},{"$f":"IF('[3]MONE(M)'!$AO41=\"\",\"\",'[3]MONE(M)'!$AO41)","v":"n.d."},{"$f":"IF('[4]MONE(M)'!$AO41=\"\",\"\",'[4]MONE(M)'!$AO41)","v":"n.d."},{"$f":"IF('[5]MONE(M)'!$AO41=\"\",\"\",'[5]MONE(M)'!$AO41)","v":"n.d."},{"$f":"IF('[6]MONE(M)'!$AO41=\"\",\"\",'[6]MONE(M)'!$AO41)","v":"n.d."},{"$f":"IF('[7]MONE(M)'!$AO41=\"\",\"\",'[7]MONE(M)'!$AO41)","v":"n.d."},{"$f":"IF('[8]MONE(M)'!$AO41=\"\",\"\",'[8]MONE(M)'!$AO41)","v":"n.d."},"n.d.","n.d.","n.d.","n.d.","n.d.","n.d.","n.d.",{"$f":"IF('[1]FISCAL(M)'!$K41=\"\",\"\",'[1]FISCAL(M)'!$K41)","v":"n.d."},"n.d.","n.d.",{"$f":"IF('[1]FISCAL(M)'!$L41=\"\",\"\",'[1]FISCAL(M)'!$L41)","v":"n.d."},"n.d.","n.d.","n.d.","n.d.","n.d.","n.d.","n.d.","n.d.","n.d.","n.d.","n.d.","n.d.","n.d.","n.d.","n.d.","n.d.","n.d.","n.d."]
[1992,"septiembre","1992-septiembre",{"$f":"IF('[1]REAL IPC(M)'!$AL42=\"\",\"\",+'[1]REAL IPC(M)'!$AL42)","v":"n.d."},{"$f":"IF('[1]REAL IPC(M)'!$BE42=\"\",\"\",+'[1]REAL IPC(M)'!$BE42)","v":"n.d."},{"$f":"IF('[1]REAL IPC(M)'!$AM42=\"\",\"\",+'[1]REAL IPC(M)'!$AM42)","v":"n.d."},{"$f":"IF('[1]REAL IPC(M)'!$BI42=\"\",\"\",+'[1]REAL IPC(M)'!$BI42)","v":"n.d."},{"$f":"IF('[1]REAL IMAE(M)'!BJ42=\"\",\"\",'[1]REAL IMAE(M)'!BJ42)","v":"n.d."},{"$f":"IF('[1]REAL IMAE(M)'!BK42=\"\",\"\",'[1]REAL IMAE(M)'!BK42)","v":"n.d."},{"$f":"IF('[1]REAL IMAE(M)'!BN42=\"\",\"\",'[1]REAL IMAE(M)'!BN42)","v":"n.d."},{"$f":"IF('[1]REAL IMAE(M)'!BO42=\"\",\"\",'[1]REAL IMAE(M)'!BO42)","v":"n.d."},{"$f":"IF('[1]EXT RIN(M)'!$K42=\"\",\"\",'[1]EXT RIN(M)'!$K42)","v":"n.d."},"",{"$f":"IF('[1]EXT RIN(M)'!$L42=\"\",\"\",'[1]EXT RIN(M)'!$L42)","v":"n.d."},"",{"$f":"IF('[1]MONE(M)CARD'!EG42=\"\",\"\",'[1]MONE(M)CARD'!EG42)","v":"n.d."},{"$f":"IF('[1]MONE(M)CARD'!EK42=\"\",\"\",'[1]MONE(M)CARD'!EK42)","v":"n.d."},{"$f":"IF('[1]MONE(M)CARD'!EP42=\"\",\"\",'[1]MONE(M)CARD'!EP42)","v":"n.d."},{"$f":"IF('[1]MONE(M)CARD'!ES42=\"\",\"\",'[1]MONE(M)CARD'!ES42)","v":"n.d."},{"$f":"IF('[1]MONE(M)CARD'!EV42=\"\",\"\",'[1]MONE(M)CARD'!EV42)","v":"n.d."},{"$f":"IF('[1]MONE(M)CARD'!EZ42=\"\",\"\",'[1]MONE(M)CARD'!EZ42)","v":"n.d."},{"$f":"IF('[1]MONE(M)CAPARD'!FC42=\"\",\"\",'[1]MONE(M)CAPARD'!FC42)","v":"n.d."},{"$f":"IF('[1]MONE(M)CAPARD'!FG42=\"\",\"\",'[1]MONE(M)CAPARD'!FG42)","v":"n.d."},{"$f":"IF('[1]MONE(M)CAPARD'!FL42=\"\",\"\",'[1]MONE(M)CAPARD'!FL42)","v":"n.d."},{"$f":"IF('[1]MONE(M)CAPARD'!FO42=\"\",\"\",'[1]MONE(M)CAPARD'!FO42)","v":"n.d."},{"$f":"IF('[1]MONE(M)CAPARD'!FR42=\"\",\"\",'[1]MONE(M)CAPARD'!FR42)","v":"n.d."},{"$f":"IF('[1]MONE(M)CAPARD'!FV42=\"\",\"\",'[1]MONE(M)CAPARD'!FV42)","v":"n.d."},{"$f":"IF('[1]MONE(M)CARD'!FV42=\"\",\"\",'[1]MONE(M)CARD'!FV42)","v":""},{"$f":"IF('[1]MONE(M)CARD'!GD42=\"\",\"\",'[1]MONE(M)CARD'!GD42)","v":"n.d."},{"$f":"IF('[1]MONE(M)CARD'!GE42=\"\",\"\",'[1]MONE(M)CARD'!GE42)","v":"n.d."},"n.d.","n.d.","n.d.","n.d.","n.d.","n.d.","n.d.","n.d.",null,"n.d.","n.d.","n.d.","n.d.","n.d.",{"$f":"IF('[1]MONE(M)CAPARD'!GS42=\"\",\"\",'[1]MONE(M)CAPARD'!GS42)","v":"n.d."},{"$f":"IF('[1]MONE(M)CARD'!HA42=\"\",\"\",'[1]MONE(M)CAPARD'!HA42)","v":"n.d."},{"$f":"IF('[1]MONE(M)CAPARD'!HB42=\"\",\"\",'[1]MONE(M)CAPARD'!HB42)","v":"n.d."},"n.d.","n.d.","n.d.","n.d.","n.d.","n.d.","n.d.","n.d.","n.d.","n.d.","n.d.","n.d.","n.d.","n.d.",{"$f":"IF('[1]MONE(M)CAPARD'!AS42=\"\",\"\",'[1]MONE(M)CAPARD'!AS42)","v":"n.d."},{"$f":"IF('[1]MONE(M)CAPARD'!AT42=\"\",\"\",'[1]MONE(M)CAPARD'!AT42)","v":"n.a."},{"$f":"IF('[1]MONE(M)CAPARD'!AU42=\"\",\"\",'[1]MONE(M)CAPARD'!AU42)","v":"n.d."},{"$f":"IF('[1]MONE(M)CAPARD'!AV42=\"\",\"\",'[1]MONE(M)CAPARD'!AV42)","v":"n.d."},{"$f":"IF('[1]MONE(M)CAPARD'!AW42=\"\",\"\",'[1]MONE(M)CAPARD'!AW42)","v":"n.a."},{"$f":"IF('[1]MONE(M)CAPARD'!AX42=\"\",\"\",'[1]MONE(M)CAPARD'!AX42)","v":"n.d."},{"$f":"IF('[1]MONE(M)CAPARD'!AY42=\"\",\"\",'[1]MONE(M)CAPARD'!AY42)","v":"n.a."},{"$f":"IF('[1]FISCAL(M)'!$K42=\"\",\"\",'[1]FISCAL(M)'!$K42)","v":"n.d."},{"$f":"IF('[1]FISCAL(M)'!$L42=\"\",\"\",'[1]FISCAL(M)'!$L42)","v":"n.d."},{"$f":"IF('[1]FISCAL(M)'!$AY42=\"\",\"\",'[1]FISCAL(M)'!$AY42)","v":"n.d."},{"$f":"IF('[1]FISCAL(M)'!$BI42=\"\",\"\",'[1]FISCAL(M)'!$BI42)","v":"n.d."},{"$f":"IF('[1]FISCAL(M)'!$BS42=\"\",\"\",'[1]FISCAL(M)'!$BS42)","v":"n.d."},{"$f":"IF('[1]FISCAL(M)'!$AZ42=\"\",\"\",'[1]FISCAL(M)'!$AZ42)","v":"n.d."},{"$f":"IF('[1]FISCAL(M)'!$BJ42=\"\",\"\",'[1]FISCAL(M)'!$BJ42)","v":"n.d."},{"$f":"IF('[1]FISCAL(M)'!$BT42=\"\",\"\",'[1]FISCAL(M)'!$BT42)","v":"n.d."},{"$f":"IF('[2]MONE(M)'!$AO42=\"\",\"\",'[2]MONE(M)'!$AO42)","v":"n.d."},{"$f":"IF('[3]MONE(M)'!$AO42=\"\",\"\",'[3]MONE(M)'!$AO42)","v":"n.d."},{"$f":"IF('[4]MONE(M)'!$AO42=\"\",\"\",'[4]MONE(M)'!$AO42)","v":"n.d."},{"$f":"IF('[5]MONE(M)'!$AO42=\"\",\"\",'[5]MONE(M)'!$AO42)","v":"n.d."},{"$f":"IF('[6]MONE(M)'!$AO42=\"\",\"\",'[6]MONE(M)'!$AO42)","v":"n.d."},{"$f":"IF('[7]MONE(M)'!$AO42=\"\",\"\",'[7]MONE(M)'!$AO42)","v":"n.d."},{"$f":"IF('[8]MONE(M)'!$AO42=\"\",\"\",'[8]MONE(M)'!$AO42)","v":"n.d."},"n.d.","n.d.","n.d.","n.d.","n.d.","n.d.","n.d.",{"$f":"IF('[1]FISCAL(M)'!$K42=\"\",\"\",'[1]FISCAL(M)'!$K42)","v":"n.d."},"n.d.","n.d.",{"$f":"IF('[1]FISCAL(M)'!$L42=\"\",\"\",'[1]FISCAL(M)'!$L42)","v":"n.d."},"n.d.","n.d.","n.d.","n.d.","n.d.","n.d.","n.d.","n.d.","n.d.","n.d.","n.d.","n.d.","n.d.","n.d.","n.d.","n.d.","n.d.","n.d."]
[1992,"octubre","1992-octubre",{"$f":"IF('[1]REAL IPC(M)'!$AL43=\"\",\"\",+'[1]REAL IPC(M)'!$AL43)","v":"n.d."},{"$f":"IF('[1]REAL IPC(M)'!$BE43=\"\",\"\",+'[1]REAL IPC(M)'!$BE43)","v":"n.d."},{"$f":"IF('[1]REAL IPC(M)'!$AM43=\"\",\"\",+'[1]REAL IPC(M)'!$AM43)","v":"n.d."},{"$f":"IF('[1]REAL IPC(M)'!$BI43=\"\",\"\",+'[1]REAL IPC(M)'!$BI43)","v":"n.d."},{"$f":"IF('[1]REAL IMAE(M)'!BJ43=\"\",\"\",'[1]REAL IMAE(M)'!BJ43)","v":"n.d."},{"$f":"IF('[1]REAL IMAE(M)'!BK43=\"\",\"\",'[1]REAL IMAE(M)'!BK43)","v":"n.d."},{"$f":"IF('[1]REAL IMAE(M)'!BN43=\"\",\"\",'[1]REAL IMAE(M)'!BN43)","v":"n.d."},{"$f":"IF('[1]REAL IMAE(M)'!BO43=\"\",\"\",'[1]REAL IMAE(M)'!BO43)","v":"n.d."},{"$f":"IF('[1]EXT RIN(M)'!$K43=\"\",\"\",'[1]EXT RIN(M)'!$K43)","v":"n.d."},"",{"$f":"IF('[1]EXT RIN(M)'!$L43=\"\",\"\",'[1]EXT RIN(M)'!$L43)","v":"n.d."},"",{"$f":"IF('[1]MONE(M)CARD'!EG43=\"\",\"\",'[1]MONE(M)CARD'!EG43)","v":"n.d."},{"$f":"IF('[1]MONE(M)CARD'!EK43=\"\",\"\",'[1]MONE(M)CARD'!EK43)","v":"n.d."},{"$f":"IF('[1]MONE(M)CARD'!EP43=\"\",\"\",'[1]MONE(M)CARD'!EP43)","v":"n.d."},{"$f":"IF('[1]MONE(M)CARD'!ES43=\"\",\"\",'[1]MONE(M)CARD'!ES43)","v":"n.d."},{"$f":"IF('[1]MONE(M)CARD'!EV43=\"\",\"\",'[1]MONE(M)CARD'!EV43)","v":"n.d."},{"$f":"IF('[1]MONE(M)CARD'!EZ43=\"\",\"\",'[1]MONE(M)CARD'!EZ43)","v":"n.d."},{"$f":"IF('[1]MONE(M)CAPARD'!FC43=\"\",\"\",'[1]MONE(M)CAPARD'!FC43)","v":"n.d."},{"$f":"IF('[1]MONE(M)CAPARD'!FG43=\"\",\"\",'[1]MONE(M)CAPARD'!FG43)","v":"n.d."},{"$f":"IF('[1]MONE(M)CAPARD'!FL43=\"\",\"\",'[1]MONE(M)CAPARD'!FL43)","v":"n.d."},{"$f":"IF('[1]MONE(M)CAPARD'!FO43=\"\",\"\",'[1]MONE(M)CAPARD'!FO43)","v":"n.d."},{"$f":"IF('[1]MONE(M)CAPARD'!FR43=\"\",\"\",'[1]MONE(M)CAPARD'!FR43)","v":"n.d."},{"$f":"IF('[1]MONE(M)CAPARD'!FV43=\"\",\"\",'[1]MONE(M)CAPARD'!FV43)","v":"n.d."},{"$f":"IF('[1]MONE(M)CARD'!FV43=\"\",\"\",'[1]MONE(M)CARD'!FV43)","v":""},{"$f":"IF('[1]MONE(M)CARD'!GD43=\"\",\"\",'[1]MONE(M)CARD'!GD43)","v":"n.d."},{"$f":"IF('[1]MONE(M)CARD'!GE43=\"\",\"\",'[1]MONE(M)CARD'!GE43)","v":"n.d."},"n.d.","n.d.","n.d.","n.d.","n.d.","n.d.","n.d.","n.d.",null,"n.d.","n.d.","n.d.","n.d.","n.d.",{"$f":"IF('[1]MONE(M)CAPARD'!GS43=\"\",\"\",'[1]MONE(M)CAPARD'!GS43)","v":"n.d."},{"$f":"IF('[1]MONE(M)CARD'!HA43=\"\",\"\",'[1]MONE(M)CAPARD'!HA43)","v":"n.d."},{"$f":"IF('[1]MONE(M)CAPARD'!HB43=\"\",\"\",'[1]MONE(M)CAPARD'!HB43)","v":"n.d."},"n.d.","n.d.","n.d.","n.d.","n.d.","n.d.","n.d.","n.d.","n.d.","n.d.","n.d.","n.d.","n.d.","n.d.",{"$f":"IF('[1]MONE(M)CAPARD'!AS43=\"\",\"\",'[1]MONE(M)CAPARD'!AS43)","v":"n.d."},{"$f":"IF('[1]MONE(M)CAPARD'!AT43=\"\",\"\",'[1]MONE(M)CAPARD'!AT43)","v":"n.a."},{"$f":"IF('[1]MONE(M)CAPARD'!AU43=\"\",\"\",'[1]MONE(M)CAPARD'!AU43)","v":"n.d."},{"$f":"IF('[1]MONE(M)CAPARD'!AV43=\"\",\"\",'[1]MONE(M)CAPARD'!AV43)","v":"n.d."},{"$f":"IF('[1]MONE(M)CAPARD'!AW43=\"\",\"\",'[1]MONE(M)CAPARD'!AW43)","v":"n.a."},{"$f":"IF('[1]MONE(M)CAPARD'!AX43=\"\",\"\",'[1]MONE(M)CAPARD'!AX43)","v":"n.d."},{"$f":"IF('[1]MONE(M)CAPARD'!AY43=\"\",\"\",'[1]MONE(M)CAPARD'!AY43)","v":"n.a."},{"$f":"IF('[1]FISCAL(M)'!$K43=\"\",\"\",'[1]FISCAL(M)'!$K43)","v":"n.d."},{"$f":"IF('[1]FISCAL(M)'!$L43=\"\",\"\",'[1]FISCAL(M)'!$L43)","v":"n.d."},{"$f":"IF('[1]FISCAL(M)'!$AY43=\"\",\"\",'[1]FISCAL(M)'!$AY43)","v":"n.d."},{"$f":"IF('[1]FISCAL(M)'!$BI43=\"\",\"\",'[1]FISCAL(M)'!$BI43)","v":"n.d."},{"$f":"IF('[1]FISCAL(M)'!$BS43=\"\",\"\",'[1]FISCAL(M)'!$BS43)","v":"n.d."},{"$f":"IF('[1]FISCAL(M)'!$AZ43=\"\",\"\",'[1]FISCAL(M)'!$AZ43)","v":"n.d."},{"$f":"IF('[1]FISCAL(M)'!$BJ43=\"\",\"\",'[1]FISCAL(M)'!$BJ43)","v":"n.d."},{"$f":"IF('[1]FISCAL(M)'!$BT43=\"\",\"\",'[1]FISCAL(M)'!$BT43)","v":"n.d."},{"$f":"IF('[2]MONE(M)'!$AO43=\"\",\"\",'[2]MONE(M)'!$AO43)","v":"n.d."},{"$f":"IF('[3]MONE(M)'!$AO43=\"\",\"\",'[3]MONE(M)'!$AO43)","v":"n.d."},{"$f":"IF('[4]MONE(M)'!$AO43=\"\",\"\",'[4]MONE(M)'!$AO43)","v":"n.d."},{"$f":"IF('[5]MONE(M)'!$AO43=\"\",\"\",'[5]MONE(M)'!$AO43)","v":"n.d."},{"$f":"IF('[6]MONE(M)'!$AO43=\"\",\"\",'[6]MONE(M)'!$AO43)","v":"n.d."},{"$f":"IF('[7]MONE(M)'!$AO43=\"\",\"\",'[7]MONE(M)'!$AO43)","v":"n.d."},{"$f":"IF('[8]MONE(M)'!$AO43=\"\",\"\",'[8]MONE(M)'!$AO43)","v":"n.d."},"n.d.","n.d.","n.d.","n.d.","n.d.","n.d.","n.d.",{"$f":"IF('[1]FISCAL(M)'!$K43=\"\",\"\",'[1]FISCAL(M)'!$K43)","v":"n.d."},"n.d.","n.d.",{"$f":"IF('[1]FISCAL(M)'!$L43=\"\",\"\",'[1]FISCAL(M)'!$L43)","v":"n.d."},"n.d.","n.d.","n.d.","n.d.","n.d.","n.d.","n.d.","n.d.","n.d.","n.d.","n.d.","n.d.","n.d.","n.d.","n.d.","n.d.","n.d.","n.d."]
[1992,"noviembre","1992-noviembre",{"$f":"IF('[1]REAL IPC(M)'!$AL44=\"\",\"\",+'[1]REAL IPC(M)'!$AL44)","v":"n.d."},{"$f":"IF('[1]REAL IPC(M)'!$BE44=\"\",\"\",+'[1]REAL IPC(M)'!$BE44)","v":"n.d."},{"$f":"IF('[1]REAL IPC(M)'!$AM44=\"\",\"\",+'[1]REAL IPC(M)'!$AM44)","v":"n.d."},{"$f":"IF('[1]REAL IPC(M)'!$BI44=\"\",\"\",+'[1]REAL IPC(M)'!$BI44)","v":"n.d."},{"$f":"IF('[1]REAL IMAE(M)'!BJ44=\"\",\"\",'[1]REAL IMAE(M)'!BJ44)","v":"n.d."},{"$f":"IF('[1]REAL IMAE(M)'!BK44=\"\",\"\",'[1]REAL IMAE(M)'!BK44)","v":"n.d."},{"$f":"IF('[1]REAL IMAE(M)'!BN44=\"\",\"\",'[1]REAL IMAE(M)'!BN44)","v":"n.d."},{"$f":"IF('[1]REAL IMAE(M)'!BO44=\"\",\"\",'[1]REAL IMAE(M)'!BO44)","v":"n.d."},{"$f":"IF('[1]EXT RIN(M)'!$K44=\"\",\"\",'[1]EXT RIN(M)'!$K44)","v":"n.d."},"",{"$f":"IF('[1]EXT RIN(M)'!$L44=\"\",\"\",'[1]EXT RIN(M)'!$L44)","v":"n.d."},"",{"$f":"IF('[1]MONE(M)CARD'!EG44=\"\",\"\",'[1]MONE(M)CARD'!EG44)","v":"n.d."},{"$f":"IF('[1]MONE(M)CARD'!EK44=\"\",\"\",'[1]MONE(M)CARD'!EK44)","v":"n.d."},{"$f":"IF('[1]MONE(M)CARD'!EP44=\"\",\"\",'[1]MONE(M)CARD'!EP44)","v":"n.d."},{"$f":"IF('[1]MONE(M)CARD'!ES44=\"\",\"\",'[1]MONE(M)CARD'!ES44)","v":"n.d."},{"$f":"IF('[1]MONE(M)CARD'!EV44=\"\",\"\",'[1]MONE(M)CARD'!EV44)","v":"n.d."},{"$f":"IF('[1]MONE(M)CARD'!EZ44=\"\",\"\",'[1]MONE(M)CARD'!EZ44)","v":"n.d."},{"$f":"IF('[1]MONE(M)CAPARD'!FC44=\"\",\"\",'[1]MONE(M)CAPARD'!FC44)","v":"n.d."},{"$f":"IF('[1]MONE(M)CAPARD'!FG44=\"\",\"\",'[1]MONE(M)CAPARD'!FG44)","v":"n.d."},{"$f":"IF('[1]MONE(M)CAPARD'!FL44=\"\",\"\",'[1]MONE(M)CAPARD'!FL44)","v":"n.d."},{"$f":"IF('[1]MONE(M)CAPARD'!FO44=\"\",\"\",'[1]MONE(M)CAPARD'!FO44)","v":"n.d."},{"$f":"IF('[1]MONE(M)CAPARD'!FR44=\"\",\"\",'[1]MONE(M)CAPARD'!FR44)","v":"n.d."},{"$f":"IF('[1]MONE(M)CAPARD'!FV44=\"\",\"\",'[1]MONE(M)CAPARD'!FV44)","v":"n.d."},{"$f":"IF('[1]MONE(M)CARD'!FV44=\"\",\"\",'[1]MONE(M)CARD'!FV44)","v":""},{"$f":"IF('[1]MONE(M)CARD'!GD44=\"\",\"\",'[1]MONE(M)CARD'!GD44)","v":"n.d."},{"$f":"IF('[1]MONE(M)CARD'!GE44=\"\",\"\",'[1]MONE(M)CARD'!GE44)","v":"n.d."},"n.d.","n.d.","n.d.","n.d.","n.d.","n.d.","n.d.","n.d.",null,"n.d.","n.d.","n.d.","n.d.","n.d.",{"$f":"IF('[1]MONE(M)CAPARD'!GS44=\"\",\"\",'[1]MONE(M)CAPARD'!GS44)","v":"n.d."},{"$f":"IF('[1]MONE(M)CARD'!HA44=\"\",\"\",'[1]MONE(M)CAPARD'!HA44)","v":"n.d."},{"$f":"IF('[1]MONE(M)CAPARD'!HB44=\"\",\"\",'[1]MONE(M)CAPARD'!HB44)","v":"n.d."},"n.d.","n.d.","n.d.","n.d.","n.d.","n.d.","n.d.","n.d.","n.d.","n.d.","n.d.","n.d.","n.d.","n.d.",{"$f":"IF('[1]MONE(M)CAPARD'!AS44=\"\",\"\",'[1]MONE(M)CAPARD'!AS44)","v":"n.d."},{"$f":"IF('[1]MONE(M)CAPARD'!AT44=\"\",\"\",'[1]MONE(M)CAPARD'!AT44)","v":"n.a."},{"$f":"IF('[1]MONE(M)CAPARD'!AU44=\"\",\"\",'[1]MONE(M)CAPARD'!AU44)","v":"n.d."},{"$f":"IF('[1]MONE(M)CAPARD'!AV44=\"\",\"\",'[1]MONE(M)CAPARD'!AV44)","v":"n.d."},{"$f":"IF('[1]MONE(M)CAPARD'!AW44=\"\",\"\",'[1]MONE(M)CAPARD'!AW44)","v":"n.a."},{"$f":"IF('[1]MONE(M)CAPARD'!AX44=\"\",\"\",'[1]MONE(M)CAPARD'!AX44)","v":"n.d."},{"$f":"IF('[1]MONE(M)CAPARD'!AY44=\"\",\"\",'[1]MONE(M)CAPARD'!AY44)","v":"n.a."},{"$f":"IF('[1]FISCAL(M)'!$K44=\"\",\"\",'[1]FISCAL(M)'!$K44)","v":"n.d."},{"$f":"IF('[1]FISCAL(M)'!$L44=\"\",\"\",'[1]FISCAL(M)'!$L44)","v":"n.d."},{"$f":"IF('[1]FISCAL(M)'!$AY44=\"\",\"\",'[1]FISCAL(M)'!$AY44)","v":"n.d."},{"$f":"IF('[1]FISCAL(M)'!$BI44=\"\",\"\",'[1]FISCAL(M)'!$BI44)","v":"n.d."},{"$f":"IF('[1]FISCAL(M)'!$BS44=\"\",\"\",'[1]FISCAL(M)'!$BS44)","v":"n.d."},{"$f":"IF('[1]FISCAL(M)'!$AZ44=\"\",\"\",'[1]FISCAL(M)'!$AZ44)","v":"n.d."},{"$f":"IF('[1]FISCAL(M)'!$BJ44=\"\",\"\",'[1]FISCAL(M)'!$BJ44)","v":"n.d."},{"$f":"IF('[1]FISCAL(M)'!$BT44=\"\",\"\",'[1]FISCAL(M)'!$BT44)","v":"n.d."},{"$f":"IF('[2]MONE(M)'!$AO44=\"\",\"\",'[2]MONE(M)'!$AO44)","v":"n.d."},{"$f":"IF('[3]MONE(M)'!$AO44=\"\",\"\",'[3]MONE(M)'!$AO44)","v":"n.d."},{"$f":"IF('[4]MONE(M)'!$AO44=\"\",\"\",'[4]MONE(M)'!$AO44)","v":"n.d."},{"$f":"IF('[5]MONE(M)'!$AO44=\"\",\"\",'[5]MONE(M)'!$AO44)","v":"n.d."},{"$f":"IF('[6]MONE(M)'!$AO44=\"\",\"\",'[6]MONE(M)'!$AO44)","v":"n.d."},{"$f":"IF('[7]MONE(M)'!$AO44=\"\",\"\",'[7]MONE(M)'!$AO44)","v":"n.d."},{"$f":"IF('[8]MONE(M)'!$AO44=\"\",\"\",'[8]MONE(M)'!$AO44)","v":"n.d."},"n.d.","n.d.","n.d.","n.d.","n.d.","n.d.","n.d.",{"$f":"IF('[1]FISCAL(M)'!$K44=\"\",\"\",'[1]FISCAL(M)'!$K44)","v":"n.d."},"n.d.","n.d.",{"$f":"IF('[1]FISCAL(M)'!$L44=\"\",\"\",'[1]FISCAL(M)'!$L44)","v":"n.d."},"n.d.","n.d.","n.d.","n.d.","n.d.","n.d.","n.d.","n.d.","n.d.","n.d.","n.d.","n.d.","n.d.","n.d.","n.d.","n.d.","n.d.","n.d."]
[1992,"diciembre","1992-diciembre",{"$f":"IF('[1]REAL IPC(M)'!$AL45=\"\",\"\",+'[1]REAL IPC(M)'!$AL45)","v":"n.d."},{"$f":"IF('[1]REAL IPC(M)'!$BE45=\"\",\"\",+'[1]REAL IPC(M)'!$BE45)","v":"n.d."},{"$f":"IF('[1]REAL IPC(M)'!$AM45=\"\",\"\",+'[1]REAL IPC(M)'!$AM45)","v":"n.d."},{"$f":"IF('[1]REAL IPC(M)'!$BI45=\"\",\"\",+'[1]REAL IPC(M)'!$BI45)","v":"n.d."},{"$f":"IF('[1]REAL IMAE(M)'!BJ45=\"\",\"\",'[1]REAL IMAE(M)'!BJ45)","v":"n.d."},{"$f":"IF('[1]REAL IMAE(M)'!BK45=\"\",\"\",'[1]REAL IMAE(M)'!BK45)","v":"n.d."},{"$f":"IF('[1]REAL IMAE(M)'!BN45=\"\",\"\",'[1]REAL IMAE(M)'!BN45)","v":"n.d."},{"$f":"IF('[1]REAL IMAE(M)'!BO45=\"\",\"\",'[1]REAL IMAE(M)'!BO45)","v":"n.d."},{"$f":"IF('[1]EXT RIN(M)'!$K45=\"\",\"\",'[1]EXT RIN(M)'!$K45)","v":"n.d."},"n.d.",{"$f":"IF('[1]EXT RIN(M)'!$L45=\"\",\"\",'[1]EXT RIN(M)'!$L45)","v":"n.d."},"n.d.",{"$f":"IF('[1]MONE(M)CARD'!EG45=\"\",\"\",'[1]MONE(M)CARD'!EG45)","v":"n.d."},{"$f":"IF('[1]MONE(M)CARD'!EK45=\"\",\"\",'[1]MONE(M)CARD'!EK45)","v":"n.d."},{"$f":"IF('[1]MONE(M)CARD'!EP45=\"\",\"\",'[1]MONE(M)CARD'!EP45)","v":"n.d."},{"$f":"IF('[1]MONE(M)CARD'!ES45=\"\",\"\",'[1]MONE(M)CARD'!ES45)","v":"n.d."},{"$f":"IF('[1]MONE(M)CARD'!EV45=\"\",\"\",'[1]MONE(M)CARD'!EV45)","v":"n.d."},{"$f":"IF('[1]MONE(M)CARD'!EZ45=\"\",\"\",'[1]MONE(M)CARD'!EZ45)","v":"n.d."},{"$f":"IF('[1]MONE(M)CAPARD'!FC45=\"\",\"\",'[1]MONE(M)CAPARD'!FC45)","v":"n.d."},{"$f":"IF('[1]MONE(M)CAPARD'!FG45=\"\",\"\",'[1]MONE(M)CAPARD'!FG45)","v":"n.d."},{"$f":"IF('[1]MONE(M)CAPARD'!FL45=\"\",\"\",'[1]MONE(M)CAPARD'!FL45)","v":"n.d."},{"$f":"IF('[1]MONE(M)CAPARD'!FO45=\"\",\"\",'[1]MONE(M)CAPARD'!FO45)","v":"n.d."},{"$f":"IF('[1]MONE(M)CAPARD'!FR45=\"\",\"\",'[1]MONE(M)CAPARD'!FR45)","v":"n.d."},{"$f":"IF('[1]MONE(M)CAPARD'!FV45=\"\",\"\",'[1]MONE(M)CAPARD'!FV45)","v":"n.d."},{"$f":"IF('[1]MONE(M)CARD'!FV45=\"\",\"\",'[1]MONE(M)CARD'!FV45)","v":""},{"$f":"IF('[1]MONE(M)CARD'!GD45=\"\",\"\",'[1]MONE(M)CARD'!GD45)","v":"n.d."},{"$f":"IF('[1]MONE(M)CARD'!GE45=\"\",\"\",'[1]MONE(M)CARD'!GE45)","v":"n.d."},"n.d.","n.d.","n.d.","n.d.","n.d.","n.d.","n.d.","n.d.",null,"n.d.","n.d.","n.d.","n.d.","n.d.",{"$f":"IF('[1]MONE(M)CAPARD'!GS45=\"\",\"\",'[1]MONE(M)CAPARD'!GS45)","v":"n.d."},{"$f":"IF('[1]MONE(M)CARD'!HA45=\"\",\"\",'[1]MONE(M)CAPARD'!HA45)","v":"n.d."},{"$f":"IF('[1]MONE(M)CAPARD'!HB45=\"\",\"\",'[1]MONE(M)CAPARD'!HB45)","v":"n.d."},"n.d.","n.d.","n.d.","n.d.","n.d.","n.d.","n.d.","n.d.","n.d.","n.d.","n.d.","n.d.","n.d.","n.d.",{"$f":"IF('[1]MONE(M)CAPARD'!AS45=\"\",\"\",'[1]MONE(M)CAPARD'!AS45)","v":"n.d."},{"$f":"IF('[1]MONE(M)CAPARD'!AT45=\"\",\"\",'[1]MONE(M)CAPARD'!AT45)","v":"n.a."},{"$f":"IF('[1]MONE(M)CAPARD'!AU45=\"\",\"\",'[1]MONE(M)CAPARD'!AU45)","v":"n.d."},{"$f":"IF('[1]MONE(M)CAPARD'!AV45=\"\",\"\",'[1]MONE(M)CAPARD'!AV45)","v":"n.d."},{"$f":"IF('[1]MONE(M)CAPARD'!AW45=\"\",\"\",'[1]MONE(M)CAPARD'!AW45)","v":"n.a."},{"$f":"IF('[1]MONE(M)CAPARD'!AX45=\"\",\"\",'[1]MONE(M)CAPARD'!AX45)","v":"n.d."},{"$f":"IF('[1]MONE(M)CAPARD'!AY45=\"\",\"\",'[1]MONE(M)CAPARD'!AY45)","v":"n.a."},{"$f":"IF('[1]FISCAL(M)'!$K45=\"\",\"\",'[1]FISCAL(M)'!$K45)","v":"n.d."},{"$f":"IF('[1]FISCAL(M)'!$L45=\"\",\"\",'[1]FISCAL(M)'!$L45)","v":"n.d."},{"$f":"IF('[1]FISCAL(M)'!$AY45=\"\",\"\",'[1]FISCAL(M)'!$AY45)","v":"n.d."},{"$f":"IF('[1]FISCAL(M)'!$BI45=\"\",\"\",'[1]FISCAL(M)'!$BI45)","v":"n.d."},{"$f":"IF('[1]FISCAL(M)'!$BS45=\"\",\"\",'[1]FISCAL(M)'!$BS45)","v":"n.d."},{"$f":"IF('[1]FISCAL(M)'!$AZ45=\"\",\"\",'[1]FISCAL(M)'!$AZ45)","v":"n.d."},{"$f":"IF('[1]FISCAL(M)'!$BJ45=\"\",\"\",'[1]FISCAL(M)'!$BJ45)","v":"n.d."},{"$f":"IF('[1]FISCAL(M)'!$BT45=\"\",\"\",'[1]FISCAL(M)'!$BT45)","v":"n.d."},{"$f":"IF('[2]MONE(M)'!$AO45=\"\",\"\",'[2]MONE(M)'!$AO45)","v":"n.d."},{"$f":"IF('[3]MONE(M)'!$AO45=\"\",\"\",'[3]MONE(M)'!$AO45)","v":"n.d."},{"$f":"IF('[4]MONE(M)'!$AO45=\"\",\"\",'[4]MONE(M)'!$AO45)","v":"n.d."},{"$f":"IF('[5]MONE(M)'!$AO45=\"\",\"\",'[5]MONE(M)'!$AO45)","v":"n.d."},{"$f":"IF('[6]MONE(M)'!$AO45=\"\",\"\",'[6]MONE(M)'!$AO45)","v":"n.d."},{"$f":"IF('[7]MONE(M)'!$AO45=\"\",\"\",'[7]MONE(M)'!$AO45)","v":"n.d."},{"$f":"IF('[8]MONE(M)'!$AO45=\"\",\"\",'[8]MONE(M)'!$AO45)","v":"n.d."},"n.d.","n.d.","n.d.","n.d.","n.d.","n.d.","n.d.",{"$f":"IF('[1]FISCAL(M)'!$K45=\"\",\"\",'[1]FISCAL(M)'!$K45)","v":"n.d."},"n.d.","n.d.",{"$f":"IF('[1]FISCAL(M)'!$L45=\"\",\"\",'[1]FISCAL(M)'!$L45)","v":"n.d."},"n.d.","n.d.","n.d.","n.d.","n.d.","n.d.","n.d.","n.d.","n.d.","n.d.","n.d.","n.d.","n.d.","n.d.","n.d.","n.d.","n.d.","n.d."]
[1993,"enero","1993-enero",{"$f":"IF('[1]REAL IPC(M)'!$AL46=\"\",\"\",+'[1]REAL IPC(M)'!$AL46)","v":12.512361596967114},{"$f":"IF('[1]REAL IPC(M)'!$BE46=\"\",\"\",+'[1]REAL IPC(M)'!$BE46)","v":"n.d."},{"$f":"IF('[1]REAL IPC(M)'!$AM46=\"\",\"\",+'[1]REAL IPC(M)'!$AM46)","v":10.90628785663268},{"$f":"IF('[1]REAL IPC(M)'!$BI46=\"\",\"\",+'[1]REAL IPC(M)'!$BI46)","v":"n.d."},{"$f":"IF('[1]REAL IMAE(M)'!BJ46=\"\",\"\",'[1]REAL IMAE(M)'!BJ46)","v":"n.d."},{"$f":"IF('[1]REAL IMAE(M)'!BK46=\"\",\"\",'[1]REAL IMAE(M)'!BK46)","v":"n.d."},{"$f":"IF('[1]REAL IMAE(M)'!BN46=\"\",\"\",'[1]REAL IMAE(M)'!BN46)","v":"n.d."},{"$f":"IF('[1]REAL IMAE(M)'!BO46=\"\",\"\",'[1]REAL IMAE(M)'!BO46)","v":"n.d."},{"$f":"IF('[1]EXT RIN(M)'!$K46=\"\",\"\",'[1]EXT RIN(M)'!$K46)","v":"n.d."},"",{"$f":"IF('[1]EXT RIN(M)'!$L46=\"\",\"\",'[1]EXT RIN(M)'!$L46)","v":"n.d."},"",{"$f":"IF('[1]MONE(M)CARD'!EG46=\"\",\"\",'[1]MONE(M)CARD'!EG46)","v":"n.d."},{"$f":"IF('[1]MONE(M)CARD'!EK46=\"\",\"\",'[1]MONE(M)CARD'!EK46)","v":"n.d."},{"$f":"IF('[1]MONE(M)CARD'!EP46=\"\",\"\",'[1]MONE(M)CARD'!EP46)","v":"n.d."},{"$f":"IF('[1]MONE(M)CARD'!ES46=\"\",\"\",'[1]MONE(M)CARD'!ES46)","v":"n.d."},{"$f":"IF('[1]MONE(M)CARD'!EV46=\"\",\"\",'[1]MONE(M)CARD'!EV46)","v":"n.d."},{"$f":"IF('[1]MONE(M)CARD'!EZ46=\"\",\"\",'[1]MONE(M)CARD'!EZ46)","v":"n.d."},{"$f":"IF('[1]MONE(M)CAPARD'!FC46=\"\",\"\",'[1]MONE(M)CAPARD'!FC46)","v":"n.d."},{"$f":"IF('[1]MONE(M)CAPARD'!FG46=\"\",\"\",'[1]MONE(M)CAPARD'!FG46)","v":"n.d."},{"$f":"IF('[1]MONE(M)CAPARD'!FL46=\"\",\"\",'[1]MONE(M)CAPARD'!FL46)","v":"n.d."},{"$f":"IF('[1]MONE(M)CAPARD'!FO46=\"\",\"\",'[1]MONE(M)CAPARD'!FO46)","v":"n.d."},{"$f":"IF('[1]MONE(M)CAPARD'!FR46=\"\",\"\",'[1]MONE(M)CAPARD'!FR46)","v":"n.d."},{"$f":"IF('[1]MONE(M)CAPARD'!FV46=\"\",\"\",'[1]MONE(M)CAPARD'!FV46)","v":"n.d."},{"$f":"IF('[1]MONE(M)CARD'!FV46=\"\",\"\",'[1]MONE(M)CARD'!FV46)","v":""},{"$f":"IF('[1]MONE(M)CARD'!GD46=\"\",\"\",'[1]MONE(M)CARD'!GD46)","v":"n.d."},{"$f":"IF('[1]MONE(M)CARD'!GE46=\"\",\"\",'[1]MONE(M)CARD'!GE46)","v":"n.d."},"n.d.","n.d.","n.d.","n.d.","n.d.","n.d.","n.d.","n.d.",null,"n.d.","n.d.","n.d.","n.d.","n.d.",{"$f":"IF('[1]MONE(M)CAPARD'!GS46=\"\",\"\",'[1]MONE(M)CAPARD'!GS46)","v":"n.d."},{"$f":"IF('[1]MONE(M)CARD'!HA46=\"\",\"\",'[1]MONE(M)CAPARD'!HA46)","v":"n.d."},{"$f":"IF('[1]MONE(M)CAPARD'!HB46=\"\",\"\",'[1]MONE(M)CAPARD'!HB46)","v":"n.d."},"n.d.","n.d.","n.d.","n.d.","n.d.","n.d.","n.d.","n.d.","n.d.","n.d.","n.d.","n.d.","n.d.","n.d.",{"$f":"IF('[1]MONE(M)CAPARD'!AS46=\"\",\"\",'[1]MONE(M)CAPARD'!AS46)","v":"n.d."},{"$f":"IF('[1]MONE(M)CAPARD'!AT46=\"\",\"\",'[1]MONE(M)CAPARD'!AT46)","v":"n.a."},{"$f":"IF('[1]MONE(M)CAPARD'!AU46=\"\",\"\",'[1]MONE(M)CAPARD'!AU46)","v":"n.d."},{"$f":"IF('[1]MONE(M)CAPARD'!AV46=\"\",\"\",'[1]MONE(M)CAPARD'!AV46)","v":"n.d."},{"$f":"IF('[1]MONE(M)CAPARD'!AW46=\"\",\"\",'[1]MONE(M)CAPARD'!AW46)","v":"n.a."},{"$f":"IF('[1]MONE(M)CAPARD'!AX46=\"\",\"\",'[1]MONE(M)CAPARD'!AX46)","v":"n.d."},{"$f":"IF('[1]MONE(M)CAPARD'!AY46=\"\",\"\",'[1]MONE(M)CAPARD'!AY46)","v":"n.a."},{"$f":"IF('[1]FISCAL(M)'!$K46=\"\",\"\",'[1]FISCAL(M)'!$K46)","v":"n.d."},{"$f":"IF('[1]FISCAL(M)'!$L46=\"\",\"\",'[1]FISCAL(M)'!$L46)","v":"n.d."},{"$f":"IF('[1]FISCAL(M)'!$AY46=\"\",\"\",'[1]FISCAL(M)'!$AY46)","v":"n.d."},{"$f":"IF('[1]FISCAL(M)'!$BI46=\"\",\"\",'[1]FISCAL(M)'!$BI46)","v":"n.d."},{"$f":"IF('[1]FISCAL(M)'!$BS46=\"\",\"\",'[1]FISCAL(M)'!$BS46)","v":"n.d."},{"$f":"IF('[1]FISCAL(M)'!$AZ46=\"\",\"\",'[1]FISCAL(M)'!$AZ46)","v":"n.d."},{"$f":"IF('[1]FISCAL(M)'!$BJ46=\"\",\"\",'[1]FISCAL(M)'!$BJ46)","v":"n.d."},{"$f":"IF('[1]FISCAL(M)'!$BT46=\"\",\"\",'[1]FISCAL(M)'!$BT46)","v":"n.d."},{"$f":"IF('[2]MONE(M)'!$AO46=\"\",\"\",'[2]MONE(M)'!$AO46)","v":"n.d."},{"$f":"IF('[3]MONE(M)'!$AO46=\"\",\"\",'[3]MONE(M)'!$AO46)","v":"n.d."},{"$f":"IF('[4]MONE(M)'!$AO46=\"\",\"\",'[4]MONE(M)'!$AO46)","v":"n.d."},{"$f":"IF('[5]MONE(M)'!$AO46=\"\",\"\",'[5]MONE(M)'!$AO46)","v":"n.d."},{"$f":"IF('[6]MONE(M)'!$AO46=\"\",\"\",'[6]MONE(M)'!$AO46)","v":"n.d."},{"$f":"IF('[7]MONE(M)'!$AO46=\"\",\"\",'[7]MONE(M)'!$AO46)","v":"n.d."},{"$f":"IF('[8]MONE(M)'!$AO46=\"\",\"\",'[8]MONE(M)'!$AO46)","v":"n.d."},"n.d.","n.d.","n.d.","n.d.","n.d.","n.d.","n.d.",{"$f":"IF('[1]FISCAL(M)'!$K46=\"\",\"\",'[1]FISCAL(M)'!$K46)","v":"n.d."},"n.d.","n.d.",{"$f":"IF('[1]FISCAL(M)'!$L46=\"\",\"\",'[1]FISCAL(M)'!$L46)","v":"n.d."},"n.d.","n.d.","n.d.","n.d.","n.d.","n.d.","n.d.","n.d.","n.d.","n.d.","n.d.","n.d.","n.d.","n.d.","n.d.","n.d.","n.d.","n.d."]
[1993,"febrero","1993-febrero",{"$f":"IF('[1]REAL IPC(M)'!$AL47=\"\",\"\",+'[1]REAL IPC(M)'!$AL47)","v":12.8539508373263},{"$f":"IF('[1]REAL IPC(M)'!$BE47=\"\",\"\",+'[1]REAL IPC(M)'!$BE47)","v":"n.d."},{"$f":"IF('[1]REAL IPC(M)'!$AM47=\"\",\"\",+'[1]REAL IPC(M)'!$AM47)","v":11.160350532415709},{"$f":"IF('[1]REAL IPC(M)'!$BI47=\"\",\"\",+'[1]REAL IPC(M)'!$BI47)","v":"n.d."},{"$f":"IF('[1]REAL IMAE(M)'!BJ47=\"\",\"\",'[1]REAL IMAE(M)'!BJ47)","v":"n.d."},{"$f":"IF('[1]REAL IMAE(M)'!BK47=\"\",\"\",'[1]REAL IMAE(M)'!BK47)","v":"n.d."},{"$f":"IF('[1]REAL IMAE(M)'!BN47=\"\",\"\",'[1]REAL IMAE(M)'!BN47)","v":"n.d."},{"$f":"IF('[1]REAL IMAE(M)'!BO47=\"\",\"\",'[1]REAL IMAE(M)'!BO47)","v":"n.d."},{"$f":"IF('[1]EXT RIN(M)'!$K47=\"\",\"\",'[1]EXT RIN(M)'!$K47)","v":"n.d."},"",{"$f":"IF('[1]EXT RIN(M)'!$L47=\"\",\"\",'[1]EXT RIN(M)'!$L47)","v":"n.d."},"",{"$f":"IF('[1]MONE(M)CARD'!EG47=\"\",\"\",'[1]MONE(M)CARD'!EG47)","v":"n.d."},{"$f":"IF('[1]MONE(M)CARD'!EK47=\"\",\"\",'[1]MONE(M)CARD'!EK47)","v":"n.d."},{"$f":"IF('[1]MONE(M)CARD'!EP47=\"\",\"\",'[1]MONE(M)CARD'!EP47)","v":"n.d."},{"$f":"IF('[1]MONE(M)CARD'!ES47=\"\",\"\",'[1]MONE(M)CARD'!ES47)","v":"n.d."},{"$f":"IF('[1]MONE(M)CARD'!EV47=\"\",\"\",'[1]MONE(M)CARD'!EV47)","v":"n.d."},{"$f":"IF('[1]MONE(M)CARD'!EZ47=\"\",\"\",'[1]MONE(M)CARD'!EZ47)","v":"n.d."},{"$f":"IF('[1]MONE(M)CAPARD'!FC47=\"\",\"\",'[1]MONE(M)CAPARD'!FC47)","v":"n.d."},{"$f":"IF('[1]MONE(M)CAPARD'!FG47=\"\",\"\",'[1]MONE(M)CAPARD'!FG47)","v":"n.d."},{"$f":"IF('[1]MONE(M)CAPARD'!FL47=\"\",\"\",'[1]MONE(M)CAPARD'!FL47)","v":"n.d."},{"$f":"IF('[1]MONE(M)CAPARD'!FO47=\"\",\"\",'[1]MONE(M)CAPARD'!FO47)","v":"n.d."},{"$f":"IF('[1]MONE(M)CAPARD'!FR47=\"\",\"\",'[1]MONE(M)CAPARD'!FR47)","v":"n.d."},{"$f":"IF('[1]MONE(M)CAPARD'!FV47=\"\",\"\",'[1]MONE(M)CAPARD'!FV47)","v":"n.d."},{"$f":"IF('[1]MONE(M)CARD'!FV47=\"\",\"\",'[1]MONE(M)CARD'!FV47)","v":""},{"$f":"IF('[1]MONE(M)CARD'!GD47=\"\",\"\",'[1]MONE(M)CARD'!GD47)","v":"n.d."},{"$f":"IF('[1]MONE(M)CARD'!GE47=\"\",\"\",'[1]MONE(M)CARD'!GE47)","v":"n.d."},"n.d.","n.d.","n.d.","n.d.","n.d.","n.d.","n.d.","n.d.",null,"n.d.","n.d.","n.d.","n.d.","n.d.",{"$f":"IF('[1]MONE(M)CAPARD'!GS47=\"\",\"\",'[1]MONE(M)CAPARD'!GS47)","v":"n.d."},{"$f":"IF('[1]MONE(M)CARD'!HA47=\"\",\"\",'[1]MONE(M)CAPARD'!HA47)","v":"n.d."},{"$f":"IF('[1]MONE(M)CAPARD'!HB47=\"\",\"\",'[1]MONE(M)CAPARD'!HB47)","v":"n.d."},"n.d.","n.d.","n.d.","n.d.","n.d.","n.d.","n.d.","n.d.","n.d.","n.d.","n.d.","n.d.","n.d.","n.d.",{"$f":"IF('[1]MONE(M)CAPARD'!AS47=\"\",\"\",'[1]MONE(M)CAPARD'!AS47)","v":"n.d."},{"$f":"IF('[1]MONE(M)CAPARD'!AT47=\"\",\"\",'[1]MONE(M)CAPARD'!AT47)","v":"n.a."},{"$f":"IF('[1]MONE(M)CAPARD'!AU47=\"\",\"\",'[1]MONE(M)CAPARD'!AU47)","v":"n.d."},{"$f":"IF('[1]MONE(M)CAPARD'!AV47=\"\",\"\",'[1]MONE(M)CAPARD'!AV47)","v":"n.d."},{"$f":"IF('[1]MONE(M)CAPARD'!AW47=\"\",\"\",'[1]MONE(M)CAPARD'!AW47)","v":"n.a."},{"$f":"IF('[1]MONE(M)CAPARD'!AX47=\"\",\"\",'[1]MONE(M)CAPARD'!AX47)","v":"n.d."},{"$f":"IF('[1]MONE(M)CAPARD'!AY47=\"\",\"\",'[1]MONE(M)CAPARD'!AY47)","v":"n.a."},{"$f":"IF('[1]FISCAL(M)'!$K47=\"\",\"\",'[1]FISCAL(M)'!$K47)","v":"n.d."},{"$f":"IF('[1]FISCAL(M)'!$L47=\"\",\"\",'[1]FISCAL(M)'!$L47)","v":"n.d."},{"$f":"IF('[1]FISCAL(M)'!$AY47=\"\",\"\",'[1]FISCAL(M)'!$AY47)","v":"n.d."},{"$f":"IF('[1]FISCAL(M)'!$BI47=\"\",\"\",'[1]FISCAL(M)'!$BI47)","v":"n.d."},{"$f":"IF('[1]FISCAL(M)'!$BS47=\"\",\"\",'[1]FISCAL(M)'!$BS47)","v":"n.d."},{"$f":"IF('[1]FISCAL(M)'!$AZ47=\"\",\"\",'[1]FISCAL(M)'!$AZ47)","v":"n.d."},{"$f":"IF('[1]FISCAL(M)'!$BJ47=\"\",\"\",'[1]FISCAL(M)'!$BJ47)","v":"n.d."},{"$f":"IF('[1]FISCAL(M)'!$BT47=\"\",\"\",'[1]FISCAL(M)'!$BT47)","v":"n.d."},{"$f":"IF('[2]MONE(M)'!$AO47=\"\",\"\",'[2]MONE(M)'!$AO47)","v":"n.d."},{"$f":"IF('[3]MONE(M)'!$AO47=\"\",\"\",'[3]MONE(M)'!$AO47)","v":"n.d."},{"$f":"IF('[4]MONE(M)'!$AO47=\"\",\"\",'[4]MONE(M)'!$AO47)","v":"n.d."},{"$f":"IF('[5]MONE(M)'!$AO47=\"\",\"\",'[5]MONE(M)'!$AO47)","v":"n.d."},{"$f":"IF('[6]MONE(M)'!$AO47=\"\",\"\",'[6]MONE(M)'!$AO47)","v":"n.d."},{"$f":"IF('[7]MONE(M)'!$AO47=\"\",\"\",'[7]MONE(M)'!$AO47)","v":"n.d."},{"$f":"IF('[8]MONE(M)'!$AO47=\"\",\"\",'[8]MONE(M)'!$AO47)","v":"n.d."},"n.d.","n.d.","n.d.","n.d.","n.d.","n.d.","n.d.",{"$f":"IF('[1]FISCAL(M)'!$K47=\"\",\"\",'[1]FISCAL(M)'!$K47)","v":"n.d."},"n.d.","n.d.",{"$f":"IF('[1]FISCAL(M)'!$L47=\"\",\"\",'[1]FISCAL(M)'!$L47)","v":"n.d."},"n.d.","n.d.","n.d.","n.d.","n.d.","n.d.","n.d.","n.d.","n.d.","n.d.","n.d.","n.d.","n.d.","n.d.","n.d.","n.d.","n.d.","n.d."]
[1993,"marzo","1993-marzo",{"$f":"IF('[1]REAL IPC(M)'!$AL48=\"\",\"\",+'[1]REAL IPC(M)'!$AL48)","v":12.386322409758899},{"$f":"IF('[1]REAL IPC(M)'!$BE48=\"\",\"\",+'[1]REAL IPC(M)'!$BE48)","v":"n.d."},{"$f":"IF('[1]REAL IPC(M)'!$AM48=\"\",\"\",+'[1]REAL IPC(M)'!$AM48)","v":10.748874731232894},{"$f":"IF('[1]REAL IPC(M)'!$BI48=\"\",\"\",+'[1]REAL IPC(M)'!$BI48)","v":"n.d."},{"$f":"IF('[1]REAL IMAE(M)'!BJ48=\"\",\"\",'[1]REAL IMAE(M)'!BJ48)","v":"n.d."},{"$f":"IF('[1]REAL IMAE(M)'!BK48=\"\",\"\",'[1]REAL IMAE(M)'!BK48)","v":"n.d."},{"$f":"IF('[1]REAL IMAE(M)'!BN48=\"\",\"\",'[1]REAL IMAE(M)'!BN48)","v":"n.d."},{"$f":"IF('[1]REAL IMAE(M)'!BO48=\"\",\"\",'[1]REAL IMAE(M)'!BO48)","v":"n.d."},{"$f":"IF('[1]EXT RIN(M)'!$K48=\"\",\"\",'[1]EXT RIN(M)'!$K48)","v":"n.d."},"",{"$f":"IF('[1]EXT RIN(M)'!$L48=\"\",\"\",'[1]EXT RIN(M)'!$L48)","v":"n.d."},"",{"$f":"IF('[1]MONE(M)CARD'!EG48=\"\",\"\",'[1]MONE(M)CARD'!EG48)","v":"n.d."},{"$f":"IF('[1]MONE(M)CARD'!EK48=\"\",\"\",'[1]MONE(M)CARD'!EK48)","v":"n.d."},{"$f":"IF('[1]MONE(M)CARD'!EP48=\"\",\"\",'[1]MONE(M)CARD'!EP48)","v":"n.d."},{"$f":"IF('[1]MONE(M)CARD'!ES48=\"\",\"\",'[1]MONE(M)CARD'!ES48)","v":"n.d."},{"$f":"IF('[1]MONE(M)CARD'!EV48=\"\",\"\",'[1]MONE(M)CARD'!EV48)","v":"n.d."},{"$f":"IF('[1]MONE(M)CARD'!EZ48=\"\",\"\",'[1]MONE(M)CARD'!EZ48)","v":"n.d."},{"$f":"IF('[1]MONE(M)CAPARD'!FC48=\"\",\"\",'[1]MONE(M)CAPARD'!FC48)","v":"n.d."},{"$f":"IF('[1]MONE(M)CAPARD'!FG48=\"\",\"\",'[1]MONE(M)CAPARD'!FG48)","v":"n.d."},{"$f":"IF('[1]MONE(M)CAPARD'!FL48=\"\",\"\",'[1]MONE(M)CAPARD'!FL48)","v":"n.d."},{"$f":"IF('[1]MONE(M)CAPARD'!FO48=\"\",\"\",'[1]MONE(M)CAPARD'!FO48)","v":"n.d."},{"$f":"IF('[1]MONE(M)CAPARD'!FR48=\"\",\"\",'[1]MONE(M)CAPARD'!FR48)","v":"n.d."},{"$f":"IF('[1]MONE(M)CAPARD'!FV48=\"\",\"\",'[1]MONE(M)CAPARD'!FV48)","v":"n.d."},{"$f":"IF('[1]MONE(M)CARD'!FV48=\"\",\"\",'[1]MONE(M)CARD'!FV48)","v":""},{"$f":"IF('[1]MONE(M)CARD'!GD48=\"\",\"\",'[1]MONE(M)CARD'!GD48)","v":"n.d."},{"$f":"IF('[1]MONE(M)CARD'!GE48=\"\",\"\",'[1]MONE(M)CARD'!GE48)","v":"n.d."},"n.d.","n.d.","n.d.","n.d.","n.d.","n.d.","n.d.","n.d.",null,"n.d.","n.d.","n.d.","n.d.","n.d.",{"$f":"IF('[1]MONE(M)CAPARD'!GS48=\"\",\"\",'[1]MONE(M)CAPARD'!GS48)","v":"n.d."},{"$f":"IF('[1]MONE(M)CARD'!HA48=\"\",\"\",'[1]MONE(M)CAPARD'!HA48)","v":"n.d."},{"$f":"IF('[1]MONE(M)CAPARD'!HB48=\"\",\"\",'[1]MONE(M)CAPARD'!HB48)","v":"n.d."},"n.d.","n.d.","n.d.","n.d.","n.d.","n.d.","n.d.","n.d.","n.d.","n.d.","n.d.","n.d.","n.d.","n.d.",{"$f":"IF('[1]MONE(M)CAPARD'!AS48=\"\",\"\",'[1]MONE(M)CAPARD'!AS48)","v":"n.d."},{"$f":"IF('[1]MONE(M)CAPARD'!AT48=\"\",\"\",'[1]MONE(M)CAPARD'!AT48)","v":"n.a."},{"$f":"IF('[1]MONE(M)CAPARD'!AU48=\"\",\"\",'[1]MONE(M)CAPARD'!AU48)","v":"n.d."},{"$f":"IF('[1]MONE(M)CAPARD'!AV48=\"\",\"\",'[1]MONE(M)CAPARD'!AV48)","v":"n.d."},{"$f":"IF('[1]MONE(M)CAPARD'!AW48=\"\",\"\",'[1]MONE(M)CAPARD'!AW48)","v":"n.a."},{"$f":"IF('[1]MONE(M)CAPARD'!AX48=\"\",\"\",'[1]MONE(M)CAPARD'!AX48)","v":"n.d."},{"$f":"IF('[1]MONE(M)CAPARD'!AY48=\"\",\"\",'[1]MONE(M)CAPARD'!AY48)","v":"n.a."},{"$f":"IF('[1]FISCAL(M)'!$K48=\"\",\"\",'[1]FISCAL(M)'!$K48)","v":"n.d."},{"$f":"IF('[1]FISCAL(M)'!$L48=\"\",\"\",'[1]FISCAL(M)'!$L48)","v":"n.d."},{"$f":"IF('[1]FISCAL(M)'!$AY48=\"\",\"\",'[1]FISCAL(M)'!$AY48)","v":"n.d."},{"$f":"IF('[1]FISCAL(M)'!$BI48=\"\",\"\",'[1]FISCAL(M)'!$BI48)","v":"n.d."},{"$f":"IF('[1]FISCAL(M)'!$BS48=\"\",\"\",'[1]FISCAL(M)'!$BS48)","v":"n.d."},{"$f":"IF('[1]FISCAL(M)'!$AZ48=\"\",\"\",'[1]FISCAL(M)'!$AZ48)","v":"n.d."},{"$f":"IF('[1]FISCAL(M)'!$BJ48=\"\",\"\",'[1]FISCAL(M)'!$BJ48)","v":"n.d."},{"$f":"IF('[1]FISCAL(M)'!$BT48=\"\",\"\",'[1]FISCAL(M)'!$BT48)","v":"n.d."},{"$f":"IF('[2]MONE(M)'!$AO48=\"\",\"\",'[2]MONE(M)'!$AO48)","v":"n.d."},{"$f":"IF('[3]MONE(M)'!$AO48=\"\",\"\",'[3]MONE(M)'!$AO48)","v":"n.d."},{"$f":"IF('[4]MONE(M)'!$AO48=\"\",\"\",'[4]MONE(M)'!$AO48)","v":"n.d."},{"$f":"IF('[5]MONE(M)'!$AO48=\"\",\"\",'[5]MONE(M)'!$AO48)","v":"n.d."},{"$f":"IF('[6]MONE(M)'!$AO48=\"\",\"\",'[6]MONE(M)'!$AO48)","v":"n.d."},{"$f":"IF('[7]MONE(M)'!$AO48=\"\",\"\",'[7]MONE(M)'!$AO48)","v":"n.d."},{"$f":"IF('[8]MONE(M)'!$AO48=\"\",\"\",'[8]MONE(M)'!$AO48)","v":"n.d."},"n.d.","n.d.","n.d.","n.d.","n.d.","n.d.","n.d.",{"$f":"IF('[1]FISCAL(M)'!$K48=\"\",\"\",'[1]FISCAL(M)'!$K48)","v":"n.d."},"n.d.","n.d.",{"$f":"IF('[1]FISCAL(M)'!$L48=\"\",\"\",'[1]FISCAL(M)'!$L48)","v":"n.d."},"n.d.","n.d.","n.d.","n.d.","n.d.","n.d.","n.d.","n.d.","n.d.","n.d.","n.d.","n.d.","n.d.","n.d.","n.d.","n.d.","n.d.","n.d."]
[1993,"abril","1993-abril",{"$f":"IF('[1]REAL IPC(M)'!$AL49=\"\",\"\",+'[1]REAL IPC(M)'!$AL49)","v":12.087907909608919},{"$f":"IF('[1]REAL IPC(M)'!$BE49=\"\",\"\",+'[1]REAL IPC(M)'!$BE49)","v":"n.d."},{"$f":"IF('[1]REAL IPC(M)'!$AM49=\"\",\"\",+'[1]REAL IPC(M)'!$AM49)","v":10.515624809204937},{"$f":"IF('[1]REAL IPC(M)'!$BI49=\"\",\"\",+'[1]REAL IPC(M)'!$BI49)","v":"n.d."},{"$f":"IF('[1]REAL IMAE(M)'!BJ49=\"\",\"\",'[1]REAL IMAE(M)'!BJ49)","v":"n.d."},{"$f":"IF('[1]REAL IMAE(M)'!BK49=\"\",\"\",'[1]REAL IMAE(M)'!BK49)","v":"n.d."},{"$f":"IF('[1]REAL IMAE(M)'!BN49=\"\",\"\",'[1]REAL IMAE(M)'!BN49)","v":"n.d."},{"$f":"IF('[1]REAL IMAE(M)'!BO49=\"\",\"\",'[1]REAL IMAE(M)'!BO49)","v":"n.d."},{"$f":"IF('[1]EXT RIN(M)'!$K49=\"\",\"\",'[1]EXT RIN(M)'!$K49)","v":"n.d."},"",{"$f":"IF('[1]EXT RIN(M)'!$L49=\"\",\"\",'[1]EXT RIN(M)'!$L49)","v":"n.d."},"",{"$f":"IF('[1]MONE(M)CARD'!EG49=\"\",\"\",'[1]MONE(M)CARD'!EG49)","v":"n.d."},{"$f":"IF('[1]MONE(M)CARD'!EK49=\"\",\"\",'[1]MONE(M)CARD'!EK49)","v":"n.d."},{"$f":"IF('[1]MONE(M)CARD'!EP49=\"\",\"\",'[1]MONE(M)CARD'!EP49)","v":"n.d."},{"$f":"IF('[1]MONE(M)CARD'!ES49=\"\",\"\",'[1]MONE(M)CARD'!ES49)","v":"n.d."},{"$f":"IF('[1]MONE(M)CARD'!EV49=\"\",\"\",'[1]MONE(M)CARD'!EV49)","v":"n.d."},{"$f":"IF('[1]MONE(M)CARD'!EZ49=\"\",\"\",'[1]MONE(M)CARD'!EZ49)","v":"n.d."},{"$f":"IF('[1]MONE(M)CAPARD'!FC49=\"\",\"\",'[1]MONE(M)CAPARD'!FC49)","v":"n.d."},{"$f":"IF('[1]MONE(M)CAPARD'!FG49=\"\",\"\",'[1]MONE(M)CAPARD'!FG49)","v":"n.d."},{"$f":"IF('[1]MONE(M)CAPARD'!FL49=\"\",\"\",'[1]MONE(M)CAPARD'!FL49)","v":"n.d."},{"$f":"IF('[1]MONE(M)CAPARD'!FO49=\"\",\"\",'[1]MONE(M)CAPARD'!FO49)","v":"n.d."},{"$f":"IF('[1]MONE(M)CAPARD'!FR49=\"\",\"\",'[1]MONE(M)CAPARD'!FR49)","v":"n.d."},{"$f":"IF('[1]MONE(M)CAPARD'!FV49=\"\",\"\",'[1]MONE(M)CAPARD'!FV49)","v":"n.d."},{"$f":"IF('[1]MONE(M)CARD'!FV49=\"\",\"\",'[1]MONE(M)CARD'!FV49)","v":""},{"$f":"IF('[1]MONE(M)CARD'!GD49=\"\",\"\",'[1]MONE(M)CARD'!GD49)","v":"n.d."},{"$f":"IF('[1]MONE(M)CARD'!GE49=\"\",\"\",'[1]MONE(M)CARD'!GE49)","v":"n.d."},"n.d.","n.d.","n.d.","n.d.","n.d.","n.d.","n.d.","n.d.",null,"n.d.","n.d.","n.d.","n.d.","n.d.",{"$f":"IF('[1]MONE(M)CAPARD'!GS49=\"\",\"\",'[1]MONE(M)CAPARD'!GS49)","v":"n.d."},{"$f":"IF('[1]MONE(M)CARD'!HA49=\"\",\"\",'[1]MONE(M)CAPARD'!HA49)","v":"n.d."},{"$f":"IF('[1]MONE(M)CAPARD'!HB49=\"\",\"\",'[1]MONE(M)CAPARD'!HB49)","v":"n.d."},"n.d.","n.d.","n.d.","n.d.","n.d.","n.d.","n.d.","n.d.","n.d.","n.d.","n.d.","n.d.","n.d.","n.d.",{"$f":"IF('[1]MONE(M)CAPARD'!AS49=\"\",\"\",'[1]MONE(M)CAPARD'!AS49)","v":"n.d."},{"$f":"IF('[1]MONE(M)CAPARD'!AT49=\"\",\"\",'[1]MONE(M)CAPARD'!AT49)","v":"n.a."},{"$f":"IF('[1]MONE(M)CAPARD'!AU49=\"\",\"\",'[1]MONE(M)CAPARD'!AU49)","v":"n.d."},{"$f":"IF('[1]MONE(M)CAPARD'!AV49=\"\",\"\",'[1]MONE(M)CAPARD'!AV49)","v":"n.d."},{"$f":"IF('[1]MONE(M)CAPARD'!AW49=\"\",\"\",'[1]MONE(M)CAPARD'!AW49)","v":"n.a."},{"$f":"IF('[1]MONE(M)CAPARD'!AX49=\"\",\"\",'[1]MONE(M)CAPARD'!AX49)","v":"n.d."},{"$f":"IF('[1]MONE(M)CAPARD'!AY49=\"\",\"\",'[1]MONE(M)CAPARD'!AY49)","v":"n.a."},{"$f":"IF('[1]FISCAL(M)'!$K49=\"\",\"\",'[1]FISCAL(M)'!$K49)","v":"n.d."},{"$f":"IF('[1]FISCAL(M)'!$L49=\"\",\"\",'[1]FISCAL(M)'!$L49)","v":"n.d."},{"$f":"IF('[1]FISCAL(M)'!$AY49=\"\",\"\",'[1]FISCAL(M)'!$AY49)","v":"n.d."},{"$f":"IF('[1]FISCAL(M)'!$BI49=\"\",\"\",'[1]FISCAL(M)'!$BI49)","v":"n.d."},{"$f":"IF('[1]FISCAL(M)'!$BS49=\"\",\"\",'[1]FISCAL(M)'!$BS49)","v":"n.d."},{"$f":"IF('[1]FISCAL(M)'!$AZ49=\"\",\"\",'[1]FISCAL(M)'!$AZ49)","v":"n.d."},{"$f":"IF('[1]FISCAL(M)'!$BJ49=\"\",\"\",'[1]FISCAL(M)'!$BJ49)","v":"n.d."},{"$f":"IF('[1]FISCAL(M)'!$BT49=\"\",\"\",'[1]FISCAL(M)'!$BT49)","v":"n.d."},{"$f":"IF('[2]MONE(M)'!$AO49=\"\",\"\",'[2]MONE(M)'!$AO49)","v":"n.d."},{"$f":"IF('[3]MONE(M)'!$AO49=\"\",\"\",'[3]MONE(M)'!$AO49)","v":"n.d."},{"$f":"IF('[4]MONE(M)'!$AO49=\"\",\"\",'[4]MONE(M)'!$AO49)","v":"n.d."},{"$f":"IF('[5]MONE(M)'!$AO49=\"\",\"\",'[5]MONE(M)'!$AO49)","v":"n.d."},{"$f":"IF('[6]MONE(M)'!$AO49=\"\",\"\",'[6]MONE(M)'!$AO49)","v":"n.d."},{"$f":"IF('[7]MONE(M)'!$AO49=\"\",\"\",'[7]MONE(M)'!$AO49)","v":"n.d."},{"$f":"IF('[8]MONE(M)'!$AO49=\"\",\"\",'[8]MONE(M)'!$AO49)","v":"n.d."},"n.d.","n.d.","n.d.","n.d.","n.d.","n.d.","n.d.",{"$f":"IF('[1]FISCAL(M)'!$K49=\"\",\"\",'[1]FISCAL(M)'!$K49)","v":"n.d."},"n.d.","n.d.",{"$f":"IF('[1]FISCAL(M)'!$L49=\"\",\"\",'[1]FISCAL(M)'!$L49)","v":"n.d."},"n.d.","n.d.","n.d.","n.d.","n.d.","n.d.","n.d.","n.d.","n.d.","n.d.","n.d.","n.d.","n.d.","n.d.","n.d.","n.d.","n.d.","n.d."]
[1993,"mayo ","1993-mayo ",{"$f":"IF('[1]REAL IPC(M)'!$AL50=\"\",\"\",+'[1]REAL IPC(M)'!$AL50)","v":12.251339703469366},{"$f":"IF('[1]REAL IPC(M)'!$BE50=\"\",\"\",+'[1]REAL IPC(M)'!$BE50)","v":"n.d."},{"$f":"IF('[1]REAL IPC(M)'!$AM50=\"\",\"\",+'[1]REAL IPC(M)'!$AM50)","v":10.593651045767928},{"$f":"IF('[1]REAL IPC(M)'!$BI50=\"\",\"\",+'[1]REAL IPC(M)'!$BI50)","v":"n.d."},{"$f":"IF('[1]REAL IMAE(M)'!BJ50=\"\",\"\",'[1]REAL IMAE(M)'!BJ50)","v":"n.d."},{"$f":"IF('[1]REAL IMAE(M)'!BK50=\"\",\"\",'[1]REAL IMAE(M)'!BK50)","v":"n.d."},{"$f":"IF('[1]REAL IMAE(M)'!BN50=\"\",\"\",'[1]REAL IMAE(M)'!BN50)","v":"n.d."},{"$f":"IF('[1]REAL IMAE(M)'!BO50=\"\",\"\",'[1]REAL IMAE(M)'!BO50)","v":"n.d."},{"$f":"IF('[1]EXT RIN(M)'!$K50=\"\",\"\",'[1]EXT RIN(M)'!$K50)","v":"n.d."},"",{"$f":"IF('[1]EXT RIN(M)'!$L50=\"\",\"\",'[1]EXT RIN(M)'!$L50)","v":"n.d."},"",{"$f":"IF('[1]MONE(M)CARD'!EG50=\"\",\"\",'[1]MONE(M)CARD'!EG50)","v":"n.d."},{"$f":"IF('[1]MONE(M)CARD'!EK50=\"\",\"\",'[1]MONE(M)CARD'!EK50)","v":"n.d."},{"$f":"IF('[1]MONE(M)CARD'!EP50=\"\",\"\",'[1]MONE(M)CARD'!EP50)","v":"n.d."},{"$f":"IF('[1]MONE(M)CARD'!ES50=\"\",\"\",'[1]MONE(M)CARD'!ES50)","v":"n.d."},{"$f":"IF('[1]MONE(M)CARD'!EV50=\"\",\"\",'[1]MONE(M)CARD'!EV50)","v":"n.d."},{"$f":"IF('[1]MONE(M)CARD'!EZ50=\"\",\"\",'[1]MONE(M)CARD'!EZ50)","v":"n.d."},{"$f":"IF('[1]MONE(M)CAPARD'!FC50=\"\",\"\",'[1]MONE(M)CAPARD'!FC50)","v":"n.d."},{"$f":"IF('[1]MONE(M)CAPARD'!FG50=\"\",\"\",'[1]MONE(M)CAPARD'!FG50)","v":"n.d."},{"$f":"IF('[1]MONE(M)CAPARD'!FL50=\"\",\"\",'[1]MONE(M)CAPARD'!FL50)","v":"n.d."},{"$f":"IF('[1]MONE(M)CAPARD'!FO50=\"\",\"\",'[1]MONE(M)CAPARD'!FO50)","v":"n.d."},{"$f":"IF('[1]MONE(M)CAPARD'!FR50=\"\",\"\",'[1]MONE(M)CAPARD'!FR50)","v":"n.d."},{"$f":"IF('[1]MONE(M)CAPARD'!FV50=\"\",\"\",'[1]MONE(M)CAPARD'!FV50)","v":"n.d."},{"$f":"IF('[1]MONE(M)CARD'!FV50=\"\",\"\",'[1]MONE(M)CARD'!FV50)","v":""},{"$f":"IF('[1]MONE(M)CARD'!GD50=\"\",\"\",'[1]MONE(M)CARD'!GD50)","v":"n.d."},{"$f":"IF('[1]MONE(M)CARD'!GE50=\"\",\"\",'[1]MONE(M)CARD'!GE50)","v":"n.d."},"n.d.","n.d.","n.d.","n.d.","n.d.","n.d.","n.d.","n.d.",null,"n.d.","n.d.","n.d.","n.d.","n.d.",{"$f":"IF('[1]MONE(M)CAPARD'!GS50=\"\",\"\",'[1]MONE(M)CAPARD'!GS50)","v":"n.d."},{"$f":"IF('[1]MONE(M)CARD'!HA50=\"\",\"\",'[1]MONE(M)CAPARD'!HA50)","v":"n.d."},{"$f":"IF('[1]MONE(M)CAPARD'!HB50=\"\",\"\",'[1]MONE(M)CAPARD'!HB50)","v":"n.d."},"n.d.","n.d.","n.d.","n.d.","n.d.","n.d.","n.d.","n.d.","n.d.","n.d.","n.d.","n.d.","n.d.","n.d.",{"$f":"IF('[1]MONE(M)CAPARD'!AS50=\"\",\"\",'[1]MONE(M)CAPARD'!AS50)","v":"n.d."},{"$f":"IF('[1]MONE(M)CAPARD'!AT50=\"\",\"\",'[1]MONE(M)CAPARD'!AT50)","v":"n.a."},{"$f":"IF('[1]MONE(M)CAPARD'!AU50=\"\",\"\",'[1]MONE(M)CAPARD'!AU50)","v":"n.d."},{"$f":"IF('[1]MONE(M)CAPARD'!AV50=\"\",\"\",'[1]MONE(M)CAPARD'!AV50)","v":"n.d."},{"$f":"IF('[1]MONE(M)CAPARD'!AW50=\"\",\"\",'[1]MONE(M)CAPARD'!AW50)","v":"n.a."},{"$f":"IF('[1]MONE(M)CAPARD'!AX50=\"\",\"\",'[1]MONE(M)CAPARD'!AX50)","v":"n.d."},{"$f":"IF('[1]MONE(M)CAPARD'!AY50=\"\",\"\",'[1]MONE(M)CAPARD'!AY50)","v":"n.a."},{"$f":"IF('[1]FISCAL(M)'!$K50=\"\",\"\",'[1]FISCAL(M)'!$K50)","v":"n.d."},{"$f":"IF('[1]FISCAL(M)'!$L50=\"\",\"\",'[1]FISCAL(M)'!$L50)","v":"n.d."},{"$f":"IF('[1]FISCAL(M)'!$AY50=\"\",\"\",'[1]FISCAL(M)'!$AY50)","v":"n.d."},{"$f":"IF('[1]FISCAL(M)'!$BI50=\"\",\"\",'[1]FISCAL(M)'!$BI50)","v":"n.d."},{"$f":"IF('[1]FISCAL(M)'!$BS50=\"\",\"\",'[1]FISCAL(M)'!$BS50)","v":"n.d."},{"$f":"IF('[1]FISCAL(M)'!$AZ50=\"\",\"\",'[1]FISCAL(M)'!$AZ50)","v":"n.d."},{"$f":"IF('[1]FISCAL(M)'!$BJ50=\"\",\"\",'[1]FISCAL(M)'!$BJ50)","v":"n.d."},{"$f":"IF('[1]FISCAL(M)'!$BT50=\"\",\"\",'[1]FISCAL(M)'!$BT50)","v":"n.d."},{"$f":"IF('[2]MONE(M)'!$AO50=\"\",\"\",'[2]MONE(M)'!$AO50)","v":"n.d."},{"$f":"IF('[3]MONE(M)'!$AO50=\"\",\"\",'[3]MONE(M)'!$AO50)","v":"n.d."},{"$f":"IF('[4]MONE(M)'!$AO50=\"\",\"\",'[4]MONE(M)'!$AO50)","v":"n.d."},{"$f":"IF('[5]MONE(M)'!$AO50=\"\",\"\",'[5]MONE(M)'!$AO50)","v":"n.d."},{"$f":"IF('[6]MONE(M)'!$AO50=\"\",\"\",'[6]MONE(M)'!$AO50)","v":"n.d."},{"$f":"IF('[7]MONE(M)'!$AO50=\"\",\"\",'[7]MONE(M)'!$AO50)","v":"n.d."},{"$f":"IF('[8]MONE(M)'!$AO50=\"\",\"\",'[8]MONE(M)'!$AO50)","v":"n.d."},"n.d.","n.d.","n.d.","n.d.","n.d.","n.d.","n.d.",{"$f":"IF('[1]FISCAL(M)'!$K50=\"\",\"\",'[1]FISCAL(M)'!$K50)","v":"n.d."},"n.d.","n.d.",{"$f":"IF('[1]FISCAL(M)'!$L50=\"\",\"\",'[1]FISCAL(M)'!$L50)","v":"n.d."},"n.d.","n.d.","n.d.","n.d.","n.d.","n.d.","n.d.","n.d.","n.d.","n.d.","n.d.","n.d.","n.d.","n.d.","n.d.","n.d.","n.d.","n.d."]
[1993,"junio ","1993-junio ",{"$f":"IF('[1]REAL IPC(M)'!$AL51=\"\",\"\",+'[1]REAL IPC(M)'!$AL51)","v":12.50697206784559},{"$f":"IF('[1]REAL IPC(M)'!$BE51=\"\",\"\",+'[1]REAL IPC(M)'!$BE51)","v":"n.d."},{"$f":"IF('[1]REAL IPC(M)'!$AM51=\"\",\"\",+'[1]REAL IPC(M)'!$AM51)","v":10.803522044665058},{"$f":"IF('[1]REAL IPC(M)'!$BI51=\"\",\"\",+'[1]REAL IPC(M)'!$BI51)","v":"n.d."},{"$f":"IF('[1]REAL IMAE(M)'!BJ51=\"\",\"\",'[1]REAL IMAE(M)'!BJ51)","v":"n.d."},{"$f":"IF('[1]REAL IMAE(M)'!BK51=\"\",\"\",'[1]REAL IMAE(M)'!BK51)","v":"n.d."},{"$f":"IF('[1]REAL IMAE(M)'!BN51=\"\",\"\",'[1]REAL IMAE(M)'!BN51)","v":"n.d."},{"$f":"IF('[1]REAL IMAE(M)'!BO51=\"\",\"\",'[1]REAL IMAE(M)'!BO51)","v":"n.d."},{"$f":"IF('[1]EXT RIN(M)'!$K51=\"\",\"\",'[1]EXT RIN(M)'!$K51)","v":"n.d."},"",{"$f":"IF('[1]EXT RIN(M)'!$L51=\"\",\"\",'[1]EXT RIN(M)'!$L51)","v":"n.d."},"",{"$f":"IF('[1]MONE(M)CARD'!EG51=\"\",\"\",'[1]MONE(M)CARD'!EG51)","v":"n.d."},{"$f":"IF('[1]MONE(M)CARD'!EK51=\"\",\"\",'[1]MONE(M)CARD'!EK51)","v":"n.d."},{"$f":"IF('[1]MONE(M)CARD'!EP51=\"\",\"\",'[1]MONE(M)CARD'!EP51)","v":"n.d."},{"$f":"IF('[1]MONE(M)CARD'!ES51=\"\",\"\",'[1]MONE(M)CARD'!ES51)","v":"n.d."},{"$f":"IF('[1]MONE(M)CARD'!EV51=\"\",\"\",'[1]MONE(M)CARD'!EV51)","v":"n.d."},{"$f":"IF('[1]MONE(M)CARD'!EZ51=\"\",\"\",'[1]MONE(M)CARD'!EZ51)","v":"n.d."},{"$f":"IF('[1]MONE(M)CAPARD'!FC51=\"\",\"\",'[1]MONE(M)CAPARD'!FC51)","v":"n.d."},{"$f":"IF('[1]MONE(M)CAPARD'!FG51=\"\",\"\",'[1]MONE(M)CAPARD'!FG51)","v":"n.d."},{"$f":"IF('[1]MONE(M)CAPARD'!FL51=\"\",\"\",'[1]MONE(M)CAPARD'!FL51)","v":"n.d."},{"$f":"IF('[1]MONE(M)CAPARD'!FO51=\"\",\"\",'[1]MONE(M)CAPARD'!FO51)","v":"n.d."},{"$f":"IF('[1]MONE(M)CAPARD'!FR51=\"\",\"\",'[1]MONE(M)CAPARD'!FR51)","v":"n.d."},{"$f":"IF('[1]MONE(M)CAPARD'!FV51=\"\",\"\",'[1]MONE(M)CAPARD'!FV51)","v":"n.d."},{"$f":"IF('[1]MONE(M)CARD'!FV51=\"\",\"\",'[1]MONE(M)CARD'!FV51)","v":""},{"$f":"IF('[1]MONE(M)CARD'!GD51=\"\",\"\",'[1]MONE(M)CARD'!GD51)","v":"n.d."},{"$f":"IF('[1]MONE(M)CARD'!GE51=\"\",\"\",'[1]MONE(M)CARD'!GE51)","v":"n.d."},"n.d.","n.d.","n.d.","n.d.","n.d.","n.d.","n.d.","n.d.",null,"n.d.","n.d.","n.d.","n.d.","n.d.",{"$f":"IF('[1]MONE(M)CAPARD'!GS51=\"\",\"\",'[1]MONE(M)CAPARD'!GS51)","v":"n.d."},{"$f":"IF('[1]MONE(M)CARD'!HA51=\"\",\"\",'[1]MONE(M)CAPARD'!HA51)","v":"n.d."},{"$f":"IF('[1]MONE(M)CAPARD'!HB51=\"\",\"\",'[1]MONE(M)CAPARD'!HB51)","v":"n.d."},"n.d.","n.d.","n.d.","n.d.","n.d.","n.d.","n.d.","n.d.","n.d.","n.d.","n.d.","n.d.","n.d.","n.d.",{"$f":"IF('[1]MONE(M)CAPARD'!AS51=\"\",\"\",'[1]MONE(M)CAPARD'!AS51)","v":"n.d."},{"$f":"IF('[1]MONE(M)CAPARD'!AT51=\"\",\"\",'[1]MONE(M)CAPARD'!AT51)","v":"n.a."},{"$f":"IF('[1]MONE(M)CAPARD'!AU51=\"\",\"\",'[1]MONE(M)CAPARD'!AU51)","v":"n.d."},{"$f":"IF('[1]MONE(M)CAPARD'!AV51=\"\",\"\",'[1]MONE(M)CAPARD'!AV51)","v":"n.d."},{"$f":"IF('[1]MONE(M)CAPARD'!AW51=\"\",\"\",'[1]MONE(M)CAPARD'!AW51)","v":"n.a."},{"$f":"IF('[1]MONE(M)CAPARD'!AX51=\"\",\"\",'[1]MONE(M)CAPARD'!AX51)","v":"n.d."},{"$f":"IF('[1]MONE(M)CAPARD'!AY51=\"\",\"\",'[1]MONE(M)CAPARD'!AY51)","v":"n.a."},{"$f":"IF('[1]FISCAL(M)'!$K51=\"\",\"\",'[1]FISCAL(M)'!$K51)","v":"n.d."},{"$f":"IF('[1]FISCAL(M)'!$L51=\"\",\"\",'[1]FISCAL(M)'!$L51)","v":"n.d."},{"$f":"IF('[1]FISCAL(M)'!$AY51=\"\",\"\",'[1]FISCAL(M)'!$AY51)","v":"n.d."},{"$f":"IF('[1]FISCAL(M)'!$BI51=\"\",\"\",'[1]FISCAL(M)'!$BI51)","v":"n.d."},{"$f":"IF('[1]FISCAL(M)'!$BS51=\"\",\"\",'[1]FISCAL(M)'!$BS51)","v":"n.d."},{"$f":"IF('[1]FISCAL(M)'!$AZ51=\"\",\"\",'[1]FISCAL(M)'!$AZ51)","v":"n.d."},{"$f":"IF('[1]FISCAL(M)'!$BJ51=\"\",\"\",'[1]FISCAL(M)'!$BJ51)","v":"n.d."},{"$f":"IF('[1]FISCAL(M)'!$BT51=\"\",\"\",'[1]FISCAL(M)'!$BT51)","v":"n.d."},{"$f":"IF('[2]MONE(M)'!$AO51=\"\",\"\",'[2]MONE(M)'!$AO51)","v":"n.d."},{"$f":"IF('[3]MONE(M)'!$AO51=\"\",\"\",'[3]MONE(M)'!$AO51)","v":"n.d."},{"$f":"IF('[4]MONE(M)'!$AO51=\"\",\"\",'[4]MONE(M)'!$AO51)","v":"n.d."},{"$f":"IF('[5]MONE(M)'!$AO51=\"\",\"\",'[5]MONE(M)'!$AO51)","v":"n.d."},{"$f":"IF('[6]MONE(M)'!$AO51=\"\",\"\",'[6]MONE(M)'!$AO51)","v":"n.d."},{"$f":"IF('[7]MONE(M)'!$AO51=\"\",\"\",'[7]MONE(M)'!$AO51)","v":"n.d."},{"$f":"IF('[8]MONE(M)'!$AO51=\"\",\"\",'[8]MONE(M)'!$AO51)","v":"n.d."},"n.d.","n.d.","n.d.","n.d.","n.d.","n.d.","n.d.",{"$f":"IF('[1]FISCAL(M)'!$K51=\"\",\"\",'[1]FISCAL(M)'!$K51)","v":"n.d."},"n.d.","n.d.",{"$f":"IF('[1]FISCAL(M)'!$L51=\"\",\"\",'[1]FISCAL(M)'!$L51)","v":"n.d."},"n.d.","n.d.","n.d.","n.d.","n.d.","n.d.","n.d.","n.d.","n.d.","n.d.","n.d.","n.d.","n.d.","n.d.","n.d.","n.d.","n.d.","n.d."]
[1993,"julio","1993-julio",{"$f":"IF('[1]REAL IPC(M)'!$AL52=\"\",\"\",+'[1]REAL IPC(M)'!$AL52)","v":13.554260625627323},{"$f":"IF('[1]REAL IPC(M)'!$BE52=\"\",\"\",+'[1]REAL IPC(M)'!$BE52)","v":"n.d."},{"$f":"IF('[1]REAL IPC(M)'!$AM52=\"\",\"\",+'[1]REAL IPC(M)'!$AM52)","v":11.73318824557148},{"$f":"IF('[1]REAL IPC(M)'!$BI52=\"\",\"\",+'[1]REAL IPC(M)'!$BI52)","v":"n.d."},{"$f":"IF('[1]REAL IMAE(M)'!BJ52=\"\",\"\",'[1]REAL IMAE(M)'!BJ52)","v":"n.d."},{"$f":"IF('[1]REAL IMAE(M)'!BK52=\"\",\"\",'[1]REAL IMAE(M)'!BK52)","v":"n.d."},{"$f":"IF('[1]REAL IMAE(M)'!BN52=\"\",\"\",'[1]REAL IMAE(M)'!BN52)","v":"n.d."},{"$f":"IF('[1]REAL IMAE(M)'!BO52=\"\",\"\",'[1]REAL IMAE(M)'!BO52)","v":"n.d."},{"$f":"IF('[1]EXT RIN(M)'!$K52=\"\",\"\",'[1]EXT RIN(M)'!$K52)","v":"n.d."},"",{"$f":"IF('[1]EXT RIN(M)'!$L52=\"\",\"\",'[1]EXT RIN(M)'!$L52)","v":"n.d."},"",{"$f":"IF('[1]MONE(M)CARD'!EG52=\"\",\"\",'[1]MONE(M)CARD'!EG52)","v":"n.d."},{"$f":"IF('[1]MONE(M)CARD'!EK52=\"\",\"\",'[1]MONE(M)CARD'!EK52)","v":"n.d."},{"$f":"IF('[1]MONE(M)CARD'!EP52=\"\",\"\",'[1]MONE(M)CARD'!EP52)","v":"n.d."},{"$f":"IF('[1]MONE(M)CARD'!ES52=\"\",\"\",'[1]MONE(M)CARD'!ES52)","v":"n.d."},{"$f":"IF('[1]MONE(M)CARD'!EV52=\"\",\"\",'[1]MONE(M)CARD'!EV52)","v":"n.d."},{"$f":"IF('[1]MONE(M)CARD'!EZ52=\"\",\"\",'[1]MONE(M)CARD'!EZ52)","v":"n.d."},{"$f":"IF('[1]MONE(M)CAPARD'!FC52=\"\",\"\",'[1]MONE(M)CAPARD'!FC52)","v":"n.d."},{"$f":"IF('[1]MONE(M)CAPARD'!FG52=\"\",\"\",'[1]MONE(M)CAPARD'!FG52)","v":"n.d."},{"$f":"IF('[1]MONE(M)CAPARD'!FL52=\"\",\"\",'[1]MONE(M)CAPARD'!FL52)","v":"n.d."},{"$f":"IF('[1]MONE(M)CAPARD'!FO52=\"\",\"\",'[1]MONE(M)CAPARD'!FO52)","v":"n.d."},{"$f":"IF('[1]MONE(M)CAPARD'!FR52=\"\",\"\",'[1]MONE(M)CAPARD'!FR52)","v":"n.d."},{"$f":"IF('[1]MONE(M)CAPARD'!FV52=\"\",\"\",'[1]MONE(M)CAPARD'!FV52)","v":"n.d."},{"$f":"IF('[1]MONE(M)CARD'!FV52=\"\",\"\",'[1]MONE(M)CARD'!FV52)","v":""},{"$f":"IF('[1]MONE(M)CARD'!GD52=\"\",\"\",'[1]MONE(M)CARD'!GD52)","v":"n.d."},{"$f":"IF('[1]MONE(M)CARD'!GE52=\"\",\"\",'[1]MONE(M)CARD'!GE52)","v":"n.d."},"n.d.","n.d.","n.d.","n.d.","n.d.","n.d.","n.d.","n.d.",null,"n.d.","n.d.","n.d.","n.d.","n.d.",{"$f":"IF('[1]MONE(M)CAPARD'!GS52=\"\",\"\",'[1]MONE(M)CAPARD'!GS52)","v":"n.d."},{"$f":"IF('[1]MONE(M)CARD'!HA52=\"\",\"\",'[1]MONE(M)CAPARD'!HA52)","v":"n.d."},{"$f":"IF('[1]MONE(M)CAPARD'!HB52=\"\",\"\",'[1]MONE(M)CAPARD'!HB52)","v":"n.d."},"n.d.","n.d.","n.d.","n.d.","n.d.","n.d.","n.d.","n.d.","n.d.","n.d.","n.d.","n.d.","n.d.","n.d.",{"$f":"IF('[1]MONE(M)CAPARD'!AS52=\"\",\"\",'[1]MONE(M)CAPARD'!AS52)","v":"n.d."},{"$f":"IF('[1]MONE(M)CAPARD'!AT52=\"\",\"\",'[1]MONE(M)CAPARD'!AT52)","v":"n.a."},{"$f":"IF('[1]MONE(M)CAPARD'!AU52=\"\",\"\",'[1]MONE(M)CAPARD'!AU52)","v":"n.d."},{"$f":"IF('[1]MONE(M)CAPARD'!AV52=\"\",\"\",'[1]MONE(M)CAPARD'!AV52)","v":"n.d."},{"$f":"IF('[1]MONE(M)CAPARD'!AW52=\"\",\"\",'[1]MONE(M)CAPARD'!AW52)","v":"n.a."},{"$f":"IF('[1]MONE(M)CAPARD'!AX52=\"\",\"\",'[1]MONE(M)CAPARD'!AX52)","v":"n.d."},{"$f":"IF('[1]MONE(M)CAPARD'!AY52=\"\",\"\",'[1]MONE(M)CAPARD'!AY52)","v":"n.a."},{"$f":"IF('[1]FISCAL(M)'!$K52=\"\",\"\",'[1]FISCAL(M)'!$K52)","v":"n.d."},{"$f":"IF('[1]FISCAL(M)'!$L52=\"\",\"\",'[1]FISCAL(M)'!$L52)","v":"n.d."},{"$f":"IF('[1]FISCAL(M)'!$AY52=\"\",\"\",'[1]FISCAL(M)'!$AY52)","v":"n.d."},{"$f":"IF('[1]FISCAL(M)'!$BI52=\"\",\"\",'[1]FISCAL(M)'!$BI52)","v":"n.d."},{"$f":"IF('[1]FISCAL(M)'!$BS52=\"\",\"\",'[1]FISCAL(M)'!$BS52)","v":"n.d."},{"$f":"IF('[1]FISCAL(M)'!$AZ52=\"\",\"\",'[1]FISCAL(M)'!$AZ52)","v":"n.d."},{"$f":"IF('[1]FISCAL(M)'!$BJ52=\"\",\"\",'[1]FISCAL(M)'!$BJ52)","v":"n.d."},{"$f":"IF('[1]FISCAL(M)'!$BT52=\"\",\"\",'[1]FISCAL(M)'!$BT52)","v":"n.d."},{"$f":"IF('[2]MONE(M)'!$AO52=\"\",\"\",'[2]MONE(M)'!$AO52)","v":"n.d."},{"$f":"IF('[3]MONE(M)'!$AO52=\"\",\"\",'[3]MONE(M)'!$AO52)","v":"n.d."},{"$f":"IF('[4]MONE(M)'!$AO52=\"\",\"\",'[4]MONE(M)'!$AO52)","v":"n.d."},{"$f":"IF('[5]MONE(M)'!$AO52=\"\",\"\",'[5]MONE(M)'!$AO52)","v":"n.d."},{"$f":"IF('[6]MONE(M)'!$AO52=\"\",\"\",'[6]MONE(M)'!$AO52)","v":"n.d."},{"$f":"IF('[7]MONE(M)'!$AO52=\"\",\"\",'[7]MONE(M)'!$AO52)","v":"n.d."},{"$f":"IF('[8]MONE(M)'!$AO52=\"\",\"\",'[8]MONE(M)'!$AO52)","v":"n.d."},"n.d.","n.d.","n.d.","n.d.","n.d.","n.d.","n.d.",{"$f":"IF('[1]FISCAL(M)'!$K52=\"\",\"\",'[1]FISCAL(M)'!$K52)","v":"n.d."},"n.d.","n.d.",{"$f":"IF('[1]FISCAL(M)'!$L52=\"\",\"\",'[1]FISCAL(M)'!$L52)","v":"n.d."},"n.d.","n.d.","n.d.","n.d.","n.d.","n.d.","n.d.","n.d.","n.d.","n.d.","n.d.","n.d.","n.d.","n.d.","n.d.","n.d.","n.d.","n.d."]
[1993,"agosto","1993-agosto",{"$f":"IF('[1]REAL IPC(M)'!$AL53=\"\",\"\",+'[1]REAL IPC(M)'!$AL53)","v":12.779836863478078},{"$f":"IF('[1]REAL IPC(M)'!$BE53=\"\",\"\",+'[1]REAL IPC(M)'!$BE53)","v":"n.d."},{"$f":"IF('[1]REAL IPC(M)'!$AM53=\"\",\"\",+'[1]REAL IPC(M)'!$AM53)","v":11.037004268755179},{"$f":"IF('[1]REAL IPC(M)'!$BI53=\"\",\"\",+'[1]REAL IPC(M)'!$BI53)","v":"n.d."},{"$f":"IF('[1]REAL IMAE(M)'!BJ53=\"\",\"\",'[1]REAL IMAE(M)'!BJ53)","v":"n.d."},{"$f":"IF('[1]REAL IMAE(M)'!BK53=\"\",\"\",'[1]REAL IMAE(M)'!BK53)","v":"n.d."},{"$f":"IF('[1]REAL IMAE(M)'!BN53=\"\",\"\",'[1]REAL IMAE(M)'!BN53)","v":"n.d."},{"$f":"IF('[1]REAL IMAE(M)'!BO53=\"\",\"\",'[1]REAL IMAE(M)'!BO53)","v":"n.d."},{"$f":"IF('[1]EXT RIN(M)'!$K53=\"\",\"\",'[1]EXT RIN(M)'!$K53)","v":"n.d."},"",{"$f":"IF('[1]EXT RIN(M)'!$L53=\"\",\"\",'[1]EXT RIN(M)'!$L53)","v":"n.d."},"",{"$f":"IF('[1]MONE(M)CARD'!EG53=\"\",\"\",'[1]MONE(M)CARD'!EG53)","v":"n.d."},{"$f":"IF('[1]MONE(M)CARD'!EK53=\"\",\"\",'[1]MONE(M)CARD'!EK53)","v":"n.d."},{"$f":"IF('[1]MONE(M)CARD'!EP53=\"\",\"\",'[1]MONE(M)CARD'!EP53)","v":"n.d."},{"$f":"IF('[1]MONE(M)CARD'!ES53=\"\",\"\",'[1]MONE(M)CARD'!ES53)","v":"n.d."},{"$f":"IF('[1]MONE(M)CARD'!EV53=\"\",\"\",'[1]MONE(M)CARD'!EV53)","v":"n.d."},{"$f":"IF('[1]MONE(M)CARD'!EZ53=\"\",\"\",'[1]MONE(M)CARD'!EZ53)","v":"n.d."},{"$f":"IF('[1]MONE(M)CAPARD'!FC53=\"\",\"\",'[1]MONE(M)CAPARD'!FC53)","v":"n.d."},{"$f":"IF('[1]MONE(M)CAPARD'!FG53=\"\",\"\",'[1]MONE(M)CAPARD'!FG53)","v":"n.d."},{"$f":"IF('[1]MONE(M)CAPARD'!FL53=\"\",\"\",'[1]MONE(M)CAPARD'!FL53)","v":"n.d."},{"$f":"IF('[1]MONE(M)CAPARD'!FO53=\"\",\"\",'[1]MONE(M)CAPARD'!FO53)","v":"n.d."},{"$f":"IF('[1]MONE(M)CAPARD'!FR53=\"\",\"\",'[1]MONE(M)CAPARD'!FR53)","v":"n.d."},{"$f":"IF('[1]MONE(M)CAPARD'!FV53=\"\",\"\",'[1]MONE(M)CAPARD'!FV53)","v":"n.d."},{"$f":"IF('[1]MONE(M)CARD'!FV53=\"\",\"\",'[1]MONE(M)CARD'!FV53)","v":""},{"$f":"IF('[1]MONE(M)CARD'!GD53=\"\",\"\",'[1]MONE(M)CARD'!GD53)","v":"n.d."},{"$f":"IF('[1]MONE(M)CARD'!GE53=\"\",\"\",'[1]MONE(M)CARD'!GE53)","v":"n.d."},"n.d.","n.d.","n.d.","n.d.","n.d.","n.d.","n.d.","n.d.",null,"n.d.","n.d.","n.d.","n.d.","n.d.",{"$f":"IF('[1]MONE(M)CAPARD'!GS53=\"\",\"\",'[1]MONE(M)CAPARD'!GS53)","v":"n.d."},{"$f":"IF('[1]MONE(M)CARD'!HA53=\"\",\"\",'[1]MONE(M)CAPARD'!HA53)","v":"n.d."},{"$f":"IF('[1]MONE(M)CAPARD'!HB53=\"\",\"\",'[1]MONE(M)CAPARD'!HB53)","v":"n.d."},"n.d.","n.d.","n.d.","n.d.","n.d.","n.d.","n.d.","n.d.","n.d.","n.d.","n.d.","n.d.","n.d.","n.d.",{"$f":"IF('[1]MONE(M)CAPARD'!AS53=\"\",\"\",'[1]MONE(M)CAPARD'!AS53)","v":"n.d."},{"$f":"IF('[1]MONE(M)CAPARD'!AT53=\"\",\"\",'[1]MONE(M)CAPARD'!AT53)","v":"n.a."},{"$f":"IF('[1]MONE(M)CAPARD'!AU53=\"\",\"\",'[1]MONE(M)CAPARD'!AU53)","v":"n.d."},{"$f":"IF('[1]MONE(M)CAPARD'!AV53=\"\",\"\",'[1]MONE(M)CAPARD'!AV53)","v":"n.d."},{"$f":"IF('[1]MONE(M)CAPARD'!AW53=\"\",\"\",'[1]MONE(M)CAPARD'!AW53)","v":"n.a."},{"$f":"IF('[1]MONE(M)CAPARD'!AX53=\"\",\"\",'[1]MONE(M)CAPARD'!AX53)","v":"n.d."},{"$f":"IF('[1]MONE(M)CAPARD'!AY53=\"\",\"\",'[1]MONE(M)CAPARD'!AY53)","v":"n.a."},{"$f":"IF('[1]FISCAL(M)'!$K53=\"\",\"\",'[1]FISCAL(M)'!$K53)","v":"n.d."},{"$f":"IF('[1]FISCAL(M)'!$L53=\"\",\"\",'[1]FISCAL(M)'!$L53)","v":"n.d."},{"$f":"IF('[1]FISCAL(M)'!$AY53=\"\",\"\",'[1]FISCAL(M)'!$AY53)","v":"n.d."},{"$f":"IF('[1]FISCAL(M)'!$BI53=\"\",\"\",'[1]FISCAL(M)'!$BI53)","v":"n.d."},{"$f":"IF('[1]FISCAL(M)'!$BS53=\"\",\"\",'[1]FISCAL(M)'!$BS53)","v":"n.d."},{"$f":"IF('[1]FISCAL(M)'!$AZ53=\"\",\"\",'[1]FISCAL(M)'!$AZ53)","v":"n.d."},{"$f":"IF('[1]FISCAL(M)'!$BJ53=\"\",\"\",'[1]FISCAL(M)'!$BJ53)","v":"n.d."},{"$f":"IF('[1]FISCAL(M)'!$BT53=\"\",\"\",'[1]FISCAL(M)'!$BT53)","v":"n.d."},{"$f":"IF('[2]MONE(M)'!$AO53=\"\",\"\",'[2]MONE(M)'!$AO53)","v":"n.d."},{"$f":"IF('[3]MONE(M)'!$AO53=\"\",\"\",'[3]MONE(M)'!$AO53)","v":"n.d."},{"$f":"IF('[4]MONE(M)'!$AO53=\"\",\"\",'[4]MONE(M)'!$AO53)","v":"n.d."},{"$f":"IF('[5]MONE(M)'!$AO53=\"\",\"\",'[5]MONE(M)'!$AO53)","v":"n.d."},{"$f":"IF('[6]MONE(M)'!$AO53=\"\",\"\",'[6]MONE(M)'!$AO53)","v":"n.d."},{"$f":"IF('[7]MONE(M)'!$AO53=\"\",\"\",'[7]MONE(M)'!$AO53)","v":"n.d."},{"$f":"IF('[8]MONE(M)'!$AO53=\"\",\"\",'[8]MONE(M)'!$AO53)","v":"n.d."},"n.d.","n.d.","n.d.","n.d.","n.d.","n.d.","n.d.",{"$f":"IF('[1]FISCAL(M)'!$K53=\"\",\"\",'[1]FISCAL(M)'!$K53)","v":"n.d."},"n.d.","n.d.",{"$f":"IF('[1]FISCAL(M)'!$L53=\"\",\"\",'[1]FISCAL(M)'!$L53)","v":"n.d."},"n.d.","n.d.","n.d.","n.d.","n.d.","n.d.","n.d.","n.d.","n.d.","n.d.","n.d.","n.d.","n.d.","n.d.","n.d.","n.d.","n.d.","n.d."]
[1993,"septiembre","1993-septiembre",{"$f":"IF('[1]REAL IPC(M)'!$AL54=\"\",\"\",+'[1]REAL IPC(M)'!$AL54)","v":11.52450848163773},{"$f":"IF('[1]REAL IPC(M)'!$BE54=\"\",\"\",+'[1]REAL IPC(M)'!$BE54)","v":"n.d."},{"$f":"IF('[1]REAL IPC(M)'!$AM54=\"\",\"\",+'[1]REAL IPC(M)'!$AM54)","v":10.048407168601937},{"$f":"IF('[1]REAL IPC(M)'!$BI54=\"\",\"\",+'[1]REAL IPC(M)'!$BI54)","v":"n.d."},{"$f":"IF('[1]REAL IMAE(M)'!BJ54=\"\",\"\",'[1]REAL IMAE(M)'!BJ54)","v":"n.d."},{"$f":"IF('[1]REAL IMAE(M)'!BK54=\"\",\"\",'[1]REAL IMAE(M)'!BK54)","v":"n.d."},{"$f":"IF('[1]REAL IMAE(M)'!BN54=\"\",\"\",'[1]REAL IMAE(M)'!BN54)","v":"n.d."},{"$f":"IF('[1]REAL IMAE(M)'!BO54=\"\",\"\",'[1]REAL IMAE(M)'!BO54)","v":"n.d."},{"$f":"IF('[1]EXT RIN(M)'!$K54=\"\",\"\",'[1]EXT RIN(M)'!$K54)","v":"n.d."},"",{"$f":"IF('[1]EXT RIN(M)'!$L54=\"\",\"\",'[1]EXT RIN(M)'!$L54)","v":"n.d."},"",{"$f":"IF('[1]MONE(M)CARD'!EG54=\"\",\"\",'[1]MONE(M)CARD'!EG54)","v":"n.d."},{"$f":"IF('[1]MONE(M)CARD'!EK54=\"\",\"\",'[1]MONE(M)CARD'!EK54)","v":"n.d."},{"$f":"IF('[1]MONE(M)CARD'!EP54=\"\",\"\",'[1]MONE(M)CARD'!EP54)","v":"n.d."},{"$f":"IF('[1]MONE(M)CARD'!ES54=\"\",\"\",'[1]MONE(M)CARD'!ES54)","v":"n.d."},{"$f":"IF('[1]MONE(M)CARD'!EV54=\"\",\"\",'[1]MONE(M)CARD'!EV54)","v":"n.d."},{"$f":"IF('[1]MONE(M)CARD'!EZ54=\"\",\"\",'[1]MONE(M)CARD'!EZ54)","v":"n.d."},{"$f":"IF('[1]MONE(M)CAPARD'!FC54=\"\",\"\",'[1]MONE(M)CAPARD'!FC54)","v":"n.d."},{"$f":"IF('[1]MONE(M)CAPARD'!FG54=\"\",\"\",'[1]MONE(M)CAPARD'!FG54)","v":"n.d."},{"$f":"IF('[1]MONE(M)CAPARD'!FL54=\"\",\"\",'[1]MONE(M)CAPARD'!FL54)","v":"n.d."},{"$f":"IF('[1]MONE(M)CAPARD'!FO54=\"\",\"\",'[1]MONE(M)CAPARD'!FO54)","v":"n.d."},{"$f":"IF('[1]MONE(M)CAPARD'!FR54=\"\",\"\",'[1]MONE(M)CAPARD'!FR54)","v":"n.d."},{"$f":"IF('[1]MONE(M)CAPARD'!FV54=\"\",\"\",'[1]MONE(M)CAPARD'!FV54)","v":"n.d."},{"$f":"IF('[1]MONE(M)CARD'!FV54=\"\",\"\",'[1]MONE(M)CARD'!FV54)","v":""},{"$f":"IF('[1]MONE(M)CARD'!GD54=\"\",\"\",'[1]MONE(M)CARD'!GD54)","v":"n.d."},{"$f":"IF('[1]MONE(M)CARD'!GE54=\"\",\"\",'[1]MONE(M)CARD'!GE54)","v":"n.d."},"n.d.","n.d.","n.d.","n.d.","n.d.","n.d.","n.d.","n.d.",null,"n.d.","n.d.","n.d.","n.d.","n.d.",{"$f":"IF('[1]MONE(M)CAPARD'!GS54=\"\",\"\",'[1]MONE(M)CAPARD'!GS54)","v":"n.d."},{"$f":"IF('[1]MONE(M)CARD'!HA54=\"\",\"\",'[1]MONE(M)CAPARD'!HA54)","v":"n.d."},{"$f":"IF('[1]MONE(M)CAPARD'!HB54=\"\",\"\",'[1]MONE(M)CAPARD'!HB54)","v":"n.d."},"n.d.","n.d.","n.d.","n.d.","n.d.","n.d.","n.d.","n.d.","n.d.","n.d.","n.d.","n.d.","n.d.","n.d.",{"$f":"IF('[1]MONE(M)CAPARD'!AS54=\"\",\"\",'[1]MONE(M)CAPARD'!AS54)","v":"n.d."},{"$f":"IF('[1]MONE(M)CAPARD'!AT54=\"\",\"\",'[1]MONE(M)CAPARD'!AT54)","v":"n.a."},{"$f":"IF('[1]MONE(M)CAPARD'!AU54=\"\",\"\",'[1]MONE(M)CAPARD'!AU54)","v":"n.d."},{"$f":"IF('[1]MONE(M)CAPARD'!AV54=\"\",\"\",'[1]MONE(M)CAPARD'!AV54)","v":"n.d."},{"$f":"IF('[1]MONE(M)CAPARD'!AW54=\"\",\"\",'[1]MONE(M)CAPARD'!AW54)","v":"n.a."},{"$f":"IF('[1]MONE(M)CAPARD'!AX54=\"\",\"\",'[1]MONE(M)CAPARD'!AX54)","v":"n.d."},{"$f":"IF('[1]MONE(M)CAPARD'!AY54=\"\",\"\",'[1]MONE(M)CAPARD'!AY54)","v":"n.a."},{"$f":"IF('[1]FISCAL(M)'!$K54=\"\",\"\",'[1]FISCAL(M)'!$K54)","v":"n.d."},{"$f":"IF('[1]FISCAL(M)'!$L54=\"\",\"\",'[1]FISCAL(M)'!$L54)","v":"n.d."},{"$f":"IF('[1]FISCAL(M)'!$AY54=\"\",\"\",'[1]FISCAL(M)'!$AY54)","v":"n.d."},{"$f":"IF('[1]FISCAL(M)'!$BI54=\"\",\"\",'[1]FISCAL(M)'!$BI54)","v":"n.d."},{"$f":"IF('[1]FISCAL(M)'!$BS54=\"\",\"\",'[1]FISCAL(M)'!$BS54)","v":"n.d."},{"$f":"IF('[1]FISCAL(M)'!$AZ54=\"\",\"\",'[1]FISCAL(M)'!$AZ54)","v":"n.d."},{"$f":"IF('[1]FISCAL(M)'!$BJ54=\"\",\"\",'[1]FISCAL(M)'!$BJ54)","v":"n.d."},{"$f":"IF('[1]FISCAL(M)'!$BT54=\"\",\"\",'[1]FISCAL(M)'!$BT54)","v":"n.d."},{"$f":"IF('[2]MONE(M)'!$AO54=\"\",\"\",'[2]MONE(M)'!$AO54)","v":"n.d."},{"$f":"IF('[3]MONE(M)'!$AO54=\"\",\"\",'[3]MONE(M)'!$AO54)","v":"n.d."},{"$f":"IF('[4]MONE(M)'!$AO54=\"\",\"\",'[4]MONE(M)'!$AO54)","v":"n.d."},{"$f":"IF('[5]MONE(M)'!$AO54=\"\",\"\",'[5]MONE(M)'!$AO54)","v":"n.d."},{"$f":"IF('[6]MONE(M)'!$AO54=\"\",\"\",'[6]MONE(M)'!$AO54)","v":"n.d."},{"$f":"IF('[7]MONE(M)'!$AO54=\"\",\"\",'[7]MONE(M)'!$AO54)","v":"n.d."},{"$f":"IF('[8]MONE(M)'!$AO54=\"\",\"\",'[8]MONE(M)'!$AO54)","v":"n.d."},"n.d.","n.d.","n.d.","n.d.","n.d.","n.d.","n.d.",{"$f":"IF('[1]FISCAL(M)'!$K54=\"\",\"\",'[1]FISCAL(M)'!$K54)","v":"n.d."},"n.d.","n.d.",{"$f":"IF('[1]FISCAL(M)'!$L54=\"\",\"\",'[1]FISCAL(M)'!$L54)","v":"n.d."},"n.d.","n.d.","n.d.","n.d.","n.d.","n.d.","n.d.","n.d.","n.d.","n.d.","n.d.","n.d.","n.d.","n.d.","n.d.","n.d.","n.d.","n.d."]
[1993,"octubre","1993-octubre",{"$f":"IF('[1]REAL IPC(M)'!$AL55=\"\",\"\",+'[1]REAL IPC(M)'!$AL55)","v":11.359862043669988},{"$f":"IF('[1]REAL IPC(M)'!$BE55=\"\",\"\",+'[1]REAL IPC(M)'!$BE55)","v":"n.d."},{"$f":"IF('[1]REAL IPC(M)'!$AM55=\"\",\"\",+'[1]REAL IPC(M)'!$AM55)","v":10.108279137724296},{"$f":"IF('[1]REAL IPC(M)'!$BI55=\"\",\"\",+'[1]REAL IPC(M)'!$BI55)","v":"n.d."},{"$f":"IF('[1]REAL IMAE(M)'!BJ55=\"\",\"\",'[1]REAL IMAE(M)'!BJ55)","v":"n.d."},{"$f":"IF('[1]REAL IMAE(M)'!BK55=\"\",\"\",'[1]REAL IMAE(M)'!BK55)","v":"n.d."},{"$f":"IF('[1]REAL IMAE(M)'!BN55=\"\",\"\",'[1]REAL IMAE(M)'!BN55)","v":"n.d."},{"$f":"IF('[1]REAL IMAE(M)'!BO55=\"\",\"\",'[1]REAL IMAE(M)'!BO55)","v":"n.d."},{"$f":"IF('[1]EXT RIN(M)'!$K55=\"\",\"\",'[1]EXT RIN(M)'!$K55)","v":"n.d."},"",{"$f":"IF('[1]EXT RIN(M)'!$L55=\"\",\"\",'[1]EXT RIN(M)'!$L55)","v":"n.d."},"",{"$f":"IF('[1]MONE(M)CARD'!EG55=\"\",\"\",'[1]MONE(M)CARD'!EG55)","v":"n.d."},{"$f":"IF('[1]MONE(M)CARD'!EK55=\"\",\"\",'[1]MONE(M)CARD'!EK55)","v":"n.d."},{"$f":"IF('[1]MONE(M)CARD'!EP55=\"\",\"\",'[1]MONE(M)CARD'!EP55)","v":"n.d."},{"$f":"IF('[1]MONE(M)CARD'!ES55=\"\",\"\",'[1]MONE(M)CARD'!ES55)","v":"n.d."},{"$f":"IF('[1]MONE(M)CARD'!EV55=\"\",\"\",'[1]MONE(M)CARD'!EV55)","v":"n.d."},{"$f":"IF('[1]MONE(M)CARD'!EZ55=\"\",\"\",'[1]MONE(M)CARD'!EZ55)","v":"n.d."},{"$f":"IF('[1]MONE(M)CAPARD'!FC55=\"\",\"\",'[1]MONE(M)CAPARD'!FC55)","v":"n.d."},{"$f":"IF('[1]MONE(M)CAPARD'!FG55=\"\",\"\",'[1]MONE(M)CAPARD'!FG55)","v":"n.d."},{"$f":"IF('[1]MONE(M)CAPARD'!FL55=\"\",\"\",'[1]MONE(M)CAPARD'!FL55)","v":"n.d."},{"$f":"IF('[1]MONE(M)CAPARD'!FO55=\"\",\"\",'[1]MONE(M)CAPARD'!FO55)","v":"n.d."},{"$f":"IF('[1]MONE(M)CAPARD'!FR55=\"\",\"\",'[1]MONE(M)CAPARD'!FR55)","v":"n.d."},{"$f":"IF('[1]MONE(M)CAPARD'!FV55=\"\",\"\",'[1]MONE(M)CAPARD'!FV55)","v":"n.d."},{"$f":"IF('[1]MONE(M)CARD'!FV55=\"\",\"\",'[1]MONE(M)CARD'!FV55)","v":""},{"$f":"IF('[1]MONE(M)CARD'!GD55=\"\",\"\",'[1]MONE(M)CARD'!GD55)","v":"n.d."},{"$f":"IF('[1]MONE(M)CARD'!GE55=\"\",\"\",'[1]MONE(M)CARD'!GE55)","v":"n.d."},"n.d.","n.d.","n.d.","n.d.","n.d.","n.d.","n.d.","n.d.",null,"n.d.","n.d.","n.d.","n.d.","n.d.",{"$f":"IF('[1]MONE(M)CAPARD'!GS55=\"\",\"\",'[1]MONE(M)CAPARD'!GS55)","v":"n.d."},{"$f":"IF('[1]MONE(M)CARD'!HA55=\"\",\"\",'[1]MONE(M)CAPARD'!HA55)","v":"n.d."},{"$f":"IF('[1]MONE(M)CAPARD'!HB55=\"\",\"\",'[1]MONE(M)CAPARD'!HB55)","v":"n.d."},"n.d.","n.d.","n.d.","n.d.","n.d.","n.d.","n.d.","n.d.","n.d.","n.d.","n.d.","n.d.","n.d.","n.d.",{"$f":"IF('[1]MONE(M)CAPARD'!AS55=\"\",\"\",'[1]MONE(M)CAPARD'!AS55)","v":"n.d."},{"$f":"IF('[1]MONE(M)CAPARD'!AT55=\"\",\"\",'[1]MONE(M)CAPARD'!AT55)","v":"n.a."},{"$f":"IF('[1]MONE(M)CAPARD'!AU55=\"\",\"\",'[1]MONE(M)CAPARD'!AU55)","v":"n.d."},{"$f":"IF('[1]MONE(M)CAPARD'!AV55=\"\",\"\",'[1]MONE(M)CAPARD'!AV55)","v":"n.d."},{"$f":"IF('[1]MONE(M)CAPARD'!AW55=\"\",\"\",'[1]MONE(M)CAPARD'!AW55)","v":"n.a."},{"$f":"IF('[1]MONE(M)CAPARD'!AX55=\"\",\"\",'[1]MONE(M)CAPARD'!AX55)","v":"n.d."},{"$f":"IF('[1]MONE(M)CAPARD'!AY55=\"\",\"\",'[1]MONE(M)CAPARD'!AY55)","v":"n.a."},{"$f":"IF('[1]FISCAL(M)'!$K55=\"\",\"\",'[1]FISCAL(M)'!$K55)","v":"n.d."},{"$f":"IF('[1]FISCAL(M)'!$L55=\"\",\"\",'[1]FISCAL(M)'!$L55)","v":"n.d."},{"$f":"IF('[1]FISCAL(M)'!$AY55=\"\",\"\",'[1]FISCAL(M)'!$AY55)","v":"n.d."},{"$f":"IF('[1]FISCAL(M)'!$BI55=\"\",\"\",'[1]FISCAL(M)'!$BI55)","v":"n.d."},{"$f":"IF('[1]FISCAL(M)'!$BS55=\"\",\"\",'[1]FISCAL(M)'!$BS55)","v":"n.d."},{"$f":"IF('[1]FISCAL(M)'!$AZ55=\"\",\"\",'[1]FISCAL(M)'!$AZ55)","v":"n.d."},{"$f":"IF('[1]FISCAL(M)'!$BJ55=\"\",\"\",'[1]FISCAL(M)'!$BJ55)","v":"n.d."},{"$f":"IF('[1]FISCAL(M)'!$BT55=\"\",\"\",'[1]FISCAL(M)'!$BT55)","v":"n.d."},{"$f":"IF('[2]MONE(M)'!$AO55=\"\",\"\",'[2]MONE(M)'!$AO55)","v":"n.d."},{"$f":"IF('[3]MONE(M)'!$AO55=\"\",\"\",'[3]MONE(M)'!$AO55)","v":"n.d."},{"$f":"IF('[4]MONE(M)'!$AO55=\"\",\"\",'[4]MONE(M)'!$AO55)","v":"n.d."},{"$f":"IF('[5]MONE(M)'!$AO55=\"\",\"\",'[5]MONE(M)'!$AO55)","v":"n.d."},{"$f":"IF('[6]MONE(M)'!$AO55=\"\",\"\",'[6]MONE(M)'!$AO55)","v":"n.d."},{"$f":"IF('[7]MONE(M)'!$AO55=\"\",\"\",'[7]MONE(M)'!$AO55)","v":"n.d."},{"$f":"IF('[8]MONE(M)'!$AO55=\"\",\"\",'[8]MONE(M)'!$AO55)","v":"n.d."},"n.d.","n.d.","n.d.","n.d.","n.d.","n.d.","n.d.",{"$f":"IF('[1]FISCAL(M)'!$K55=\"\",\"\",'[1]FISCAL(M)'!$K55)","v":"n.d."},"n.d.","n.d.",{"$f":"IF('[1]FISCAL(M)'!$L55=\"\",\"\",'[1]FISCAL(M)'!$L55)","v":"n.d."},"n.d.","n.d.","n.d.","n.d.","n.d.","n.d.","n.d.","n.d.","n.d.","n.d.","n.d.","n.d.","n.d.","n.d.","n.d.","n.d.","n.d.","n.d."]
[1993,"noviembre","1993-noviembre",{"$f":"IF('[1]REAL IPC(M)'!$AL56=\"\",\"\",+'[1]REAL IPC(M)'!$AL56)","v":10.658305658212752},{"$f":"IF('[1]REAL IPC(M)'!$BE56=\"\",\"\",+'[1]REAL IPC(M)'!$BE56)","v":"n.d."},{"$f":"IF('[1]REAL IPC(M)'!$AM56=\"\",\"\",+'[1]REAL IPC(M)'!$AM56)","v":9.4572598592549184},{"$f":"IF('[1]REAL IPC(M)'!$BI56=\"\",\"\",+'[1]REAL IPC(M)'!$BI56)","v":"n.d."},{"$f":"IF('[1]REAL IMAE(M)'!BJ56=\"\",\"\",'[1]REAL IMAE(M)'!BJ56)","v":"n.d."},{"$f":"IF('[1]REAL IMAE(M)'!BK56=\"\",\"\",'[1]REAL IMAE(M)'!BK56)","v":"n.d."},{"$f":"IF('[1]REAL IMAE(M)'!BN56=\"\",\"\",'[1]REAL IMAE(M)'!BN56)","v":"n.d."},{"$f":"IF('[1]REAL IMAE(M)'!BO56=\"\",\"\",'[1]REAL IMAE(M)'!BO56)","v":"n.d."},{"$f":"IF('[1]EXT RIN(M)'!$K56=\"\",\"\",'[1]EXT RIN(M)'!$K56)","v":"n.d."},"",{"$f":"IF('[1]EXT RIN(M)'!$L56=\"\",\"\",'[1]EXT RIN(M)'!$L56)","v":"n.d."},"",{"$f":"IF('[1]MONE(M)CARD'!EG56=\"\",\"\",'[1]MONE(M)CARD'!EG56)","v":"n.d."},{"$f":"IF('[1]MONE(M)CARD'!EK56=\"\",\"\",'[1]MONE(M)CARD'!EK56)","v":"n.d."},{"$f":"IF('[1]MONE(M)CARD'!EP56=\"\",\"\",'[1]MONE(M)CARD'!EP56)","v":"n.d."},{"$f":"IF('[1]MONE(M)CARD'!ES56=\"\",\"\",'[1]MONE(M)CARD'!ES56)","v":"n.d."},{"$f":"IF('[1]MONE(M)CARD'!EV56=\"\",\"\",'[1]MONE(M)CARD'!EV56)","v":"n.d."},{"$f":"IF('[1]MONE(M)CARD'!EZ56=\"\",\"\",'[1]MONE(M)CARD'!EZ56)","v":"n.d."},{"$f":"IF('[1]MONE(M)CAPARD'!FC56=\"\",\"\",'[1]MONE(M)CAPARD'!FC56)","v":"n.d."},{"$f":"IF('[1]MONE(M)CAPARD'!FG56=\"\",\"\",'[1]MONE(M)CAPARD'!FG56)","v":"n.d."},{"$f":"IF('[1]MONE(M)CAPARD'!FL56=\"\",\"\",'[1]MONE(M)CAPARD'!FL56)","v":"n.d."},{"$f":"IF('[1]MONE(M)CAPARD'!FO56=\"\",\"\",'[1]MONE(M)CAPARD'!FO56)","v":"n.d."},{"$f":"IF('[1]MONE(M)CAPARD'!FR56=\"\",\"\",'[1]MONE(M)CAPARD'!FR56)","v":"n.d."},{"$f":"IF('[1]MONE(M)CAPARD'!FV56=\"\",\"\",'[1]MONE(M)CAPARD'!FV56)","v":"n.d."},{"$f":"IF('[1]MONE(M)CARD'!FV56=\"\",\"\",'[1]MONE(M)CARD'!FV56)","v":""},{"$f":"IF('[1]MONE(M)CARD'!GD56=\"\",\"\",'[1]MONE(M)CARD'!GD56)","v":"n.d."},{"$f":"IF('[1]MONE(M)CARD'!GE56=\"\",\"\",'[1]MONE(M)CARD'!GE56)","v":"n.d."},"n.d.","n.d.","n.d.","n.d.","n.d.","n.d.","n.d.","n.d.",null,"n.d.","n.d.","n.d.","n.d.","n.d.",{"$f":"IF('[1]MONE(M)CAPARD'!GS56=\"\",\"\",'[1]MONE(M)CAPARD'!GS56)","v":"n.d."},{"$f":"IF('[1]MONE(M)CARD'!HA56=\"\",\"\",'[1]MONE(M)CAPARD'!HA56)","v":"n.d."},{"$f":"IF('[1]MONE(M)CAPARD'!HB56=\"\",\"\",'[1]MONE(M)CAPARD'!HB56)","v":"n.d."},"n.d.","n.d.","n.d.","n.d.","n.d.","n.d.","n.d.","n.d.","n.d.","n.d.","n.d.","n.d.","n.d.","n.d.",{"$f":"IF('[1]MONE(M)CAPARD'!AS56=\"\",\"\",'[1]MONE(M)CAPARD'!AS56)","v":"n.d."},{"$f":"IF('[1]MONE(M)CAPARD'!AT56=\"\",\"\",'[1]MONE(M)CAPARD'!AT56)","v":"n.a."},{"$f":"IF('[1]MONE(M)CAPARD'!AU56=\"\",\"\",'[1]MONE(M)CAPARD'!AU56)","v":"n.d."},{"$f":"IF('[1]MONE(M)CAPARD'!AV56=\"\",\"\",'[1]MONE(M)CAPARD'!AV56)","v":"n.d."},{"$f":"IF('[1]MONE(M)CAPARD'!AW56=\"\",\"\",'[1]MONE(M)CAPARD'!AW56)","v":"n.a."},{"$f":"IF('[1]MONE(M)CAPARD'!AX56=\"\",\"\",'[1]MONE(M)CAPARD'!AX56)","v":"n.d."},{"$f":"IF('[1]MONE(M)CAPARD'!AY56=\"\",\"\",'[1]MONE(M)CAPARD'!AY56)","v":"n.a."},{"$f":"IF('[1]FISCAL(M)'!$K56=\"\",\"\",'[1]FISCAL(M)'!$K56)","v":"n.d."},{"$f":"IF('[1]FISCAL(M)'!$L56=\"\",\"\",'[1]FISCAL(M)'!$L56)","v":"n.d."},{"$f":"IF('[1]FISCAL(M)'!$AY56=\"\",\"\",'[1]FISCAL(M)'!$AY56)","v":"n.d."},{"$f":"IF('[1]FISCAL(M)'!$BI56=\"\",\"\",'[1]FISCAL(M)'!$BI56)","v":"n.d."},{"$f":"IF('[1]FISCAL(M)'!$BS56=\"\",\"\",'[1]FISCAL(M)'!$BS56)","v":"n.d."},{"$f":"IF('[1]FISCAL(M)'!$AZ56=\"\",\"\",'[1]FISCAL(M)'!$AZ56)","v":"n.d."},{"$f":"IF('[1]FISCAL(M)'!$BJ56=\"\",\"\",'[1]FISCAL(M)'!$BJ56)","v":"n.d."},{"$f":"IF('[1]FISCAL(M)'!$BT56=\"\",\"\",'[1]FISCAL(M)'!$BT56)","v":"n.d."},{"$f":"IF('[2]MONE(M)'!$AO56=\"\",\"\",'[2]MONE(M)'!$AO56)","v":"n.d."},{"$f":"IF('[3]MONE(M)'!$AO56=\"\",\"\",'[3]MONE(M)'!$AO56)","v":"n.d."},{"$f":"IF('[4]MONE(M)'!$AO56=\"\",\"\",'[4]MONE(M)'!$AO56)","v":"n.d."},{"$f":"IF('[5]MONE(M)'!$AO56=\"\",\"\",'[5]MONE(M)'!$AO56)","v":"n.d."},{"$f":"IF('[6]MONE(M)'!$AO56=\"\",\"\",'[6]MONE(M)'!$AO56)","v":"n.d."},{"$f":"IF('[7]MONE(M)'!$AO56=\"\",\"\",'[7]MONE(M)'!$AO56)","v":"n.d."},{"$f":"IF('[8]MONE(M)'!$AO56=\"\",\"\",'[8]MONE(M)'!$AO56)","v":"n.d."},"n.d.","n.d.","n.d.","n.d.","n.d.","n.d.","n.d.",{"$f":"IF('[1]FISCAL(M)'!$K56=\"\",\"\",'[1]FISCAL(M)'!$K56)","v":"n.d."},"n.d.","n.d.",{"$f":"IF('[1]FISCAL(M)'!$L56=\"\",\"\",'[1]FISCAL(M)'!$L56)","v":"n.d."},"n.d.","n.d.","n.d.","n.d.","n.d.","n.d.","n.d.","n.d.","n.d.","n.d.","n.d.","n.d.","n.d.","n.d.","n.d.","n.d.","n.d.","n.d."]
[1993,"diciembre","1993-diciembre",{"$f":"IF('[1]REAL IPC(M)'!$AL57=\"\",\"\",+'[1]REAL IPC(M)'!$AL57)","v":10.024958195417067},{"$f":"IF('[1]REAL IPC(M)'!$BE57=\"\",\"\",+'[1]REAL IPC(M)'!$BE57)","v":"n.d."},{"$f":"IF('[1]REAL IPC(M)'!$AM57=\"\",\"\",+'[1]REAL IPC(M)'!$AM57)","v":8.8770388620624807},{"$f":"IF('[1]REAL IPC(M)'!$BI57=\"\",\"\",+'[1]REAL IPC(M)'!$BI57)","v":"n.d."},{"$f":"IF('[1]REAL IMAE(M)'!BJ57=\"\",\"\",'[1]REAL IMAE(M)'!BJ57)","v":"n.d."},{"$f":"IF('[1]REAL IMAE(M)'!BK57=\"\",\"\",'[1]REAL IMAE(M)'!BK57)","v":"n.d."},{"$f":"IF('[1]REAL IMAE(M)'!BN57=\"\",\"\",'[1]REAL IMAE(M)'!BN57)","v":"n.d."},{"$f":"IF('[1]REAL IMAE(M)'!BO57=\"\",\"\",'[1]REAL IMAE(M)'!BO57)","v":"n.d."},{"$f":"IF('[1]EXT RIN(M)'!$K57=\"\",\"\",'[1]EXT RIN(M)'!$K57)","v":"n.d."},"n.d.",{"$f":"IF('[1]EXT RIN(M)'!$L57=\"\",\"\",'[1]EXT RIN(M)'!$L57)","v":"n.d."},"n.d.",{"$f":"IF('[1]MONE(M)CARD'!EG57=\"\",\"\",'[1]MONE(M)CARD'!EG57)","v":"n.d."},{"$f":"IF('[1]MONE(M)CARD'!EK57=\"\",\"\",'[1]MONE(M)CARD'!EK57)","v":"n.d."},{"$f":"IF('[1]MONE(M)CARD'!EP57=\"\",\"\",'[1]MONE(M)CARD'!EP57)","v":"n.d."},{"$f":"IF('[1]MONE(M)CARD'!ES57=\"\",\"\",'[1]MONE(M)CARD'!ES57)","v":"n.d."},{"$f":"IF('[1]MONE(M)CARD'!EV57=\"\",\"\",'[1]MONE(M)CARD'!EV57)","v":"n.d."},{"$f":"IF('[1]MONE(M)CARD'!EZ57=\"\",\"\",'[1]MONE(M)CARD'!EZ57)","v":"n.d."},{"$f":"IF('[1]MONE(M)CAPARD'!FC57=\"\",\"\",'[1]MONE(M)CAPARD'!FC57)","v":"n.d."},{"$f":"IF('[1]MONE(M)CAPARD'!FG57=\"\",\"\",'[1]MONE(M)CAPARD'!FG57)","v":"n.d."},{"$f":"IF('[1]MONE(M)CAPARD'!FL57=\"\",\"\",'[1]MONE(M)CAPARD'!FL57)","v":"n.d."},{"$f":"IF('[1]MONE(M)CAPARD'!FO57=\"\",\"\",'[1]MONE(M)CAPARD'!FO57)","v":"n.d."},{"$f":"IF('[1]MONE(M)CAPARD'!FR57=\"\",\"\",'[1]MONE(M)CAPARD'!FR57)","v":"n.d."},{"$f":"IF('[1]MONE(M)CAPARD'!FV57=\"\",\"\",'[1]MONE(M)CAPARD'!FV57)","v":"n.d."},{"$f":"IF('[1]MONE(M)CARD'!FV57=\"\",\"\",'[1]MONE(M)CARD'!FV57)","v":""},{"$f":"IF('[1]MONE(M)CARD'!GD57=\"\",\"\",'[1]MONE(M)CARD'!GD57)","v":"n.d."},{"$f":"IF('[1]MONE(M)CARD'!GE57=\"\",\"\",'[1]MONE(M)CARD'!GE57)","v":"n.d."},"n.d.","n.d.","n.d.","n.d.","n.d.","n.d.","n.d.","n.d.",null,"n.d.","n.d.","n.d.","n.d.","n.d.",{"$f":"IF('[1]MONE(M)CAPARD'!GS57=\"\",\"\",'[1]MONE(M)CAPARD'!GS57)","v":"n.d."},{"$f":"IF('[1]MONE(M)CARD'!HA57=\"\",\"\",'[1]MONE(M)CAPARD'!HA57)","v":"n.d."},{"$f":"IF('[1]MONE(M)CAPARD'!HB57=\"\",\"\",'[1]MONE(M)CAPARD'!HB57)","v":"n.d."},"n.d.","n.d.","n.d.","n.d.","n.d.","n.d.","n.d.","n.d.","n.d.","n.d.","n.d.","n.d.","n.d.","n.d.",{"$f":"IF('[1]MONE(M)CAPARD'!AS57=\"\",\"\",'[1]MONE(M)CAPARD'!AS57)","v":"n.d."},{"$f":"IF('[1]MONE(M)CAPARD'!AT57=\"\",\"\",'[1]MONE(M)CAPARD'!AT57)","v":"n.a."},{"$f":"IF('[1]MONE(M)CAPARD'!AU57=\"\",\"\",'[1]MONE(M)CAPARD'!AU57)","v":"n.d."},{"$f":"IF('[1]MONE(M)CAPARD'!AV57=\"\",\"\",'[1]MONE(M)CAPARD'!AV57)","v":"n.d."},{"$f":"IF('[1]MONE(M)CAPARD'!AW57=\"\",\"\",'[1]MONE(M)CAPARD'!AW57)","v":"n.a."},{"$f":"IF('[1]MONE(M)CAPARD'!AX57=\"\",\"\",'[1]MONE(M)CAPARD'!AX57)","v":"n.d."},{"$f":"IF('[1]MONE(M)CAPARD'!AY57=\"\",\"\",'[1]MONE(M)CAPARD'!AY57)","v":"n.a."},{"$f":"IF('[1]FISCAL(M)'!$K57=\"\",\"\",'[1]FISCAL(M)'!$K57)","v":"n.d."},{"$f":"IF('[1]FISCAL(M)'!$L57=\"\",\"\",'[1]FISCAL(M)'!$L57)","v":"n.d."},{"$f":"IF('[1]FISCAL(M)'!$AY57=\"\",\"\",'[1]FISCAL(M)'!$AY57)","v":"n.d."},{"$f":"IF('[1]FISCAL(M)'!$BI57=\"\",\"\",'[1]FISCAL(M)'!$BI57)","v":"n.d."},{"$f":"IF('[1]FISCAL(M)'!$BS57=\"\",\"\",'[1]FISCAL(M)'!$BS57)","v":"n.d."},{"$f":"IF('[1]FISCAL(M)'!$AZ57=\"\",\"\",'[1]FISCAL(M)'!$AZ57)","v":"n.d."},{"$f":"IF('[1]FISCAL(M)'!$BJ57=\"\",\"\",'[1]FISCAL(M)'!$BJ57)","v":"n.d."},{"$f":"IF('[1]FISCAL(M)'!$BT57=\"\",\"\",'[1]FISCAL(M)'!$BT57)","v":"n.d."},{"$f":"IF('[2]MONE(M)'!$AO57=\"\",\"\",'[2]MONE(M)'!$AO57)","v":"n.d."},{"$f":"IF('[3]MONE(M)'!$AO57=\"\",\"\",'[3]MONE(M)'!$AO57)","v":"n.d."},{"$f":"IF('[4]MONE(M)'!$AO57=\"\",\"\",'[4]MONE(M)'!$AO57)","v":"n.d."},{"$f":"IF('[5]MONE(M)'!$AO57=\"\",\"\",'[5]MONE(M)'!$AO57)","v":"n.d."},{"$f":"IF('[6]MONE(M)'!$AO57=\"\",\"\",'[6]MONE(M)'!$AO57)","v":"n.d."},{"$f":"IF('[7]MONE(M)'!$AO57=\"\",\"\",'[7]MONE(M)'!$AO57)","v":"n.d."},{"$f":"IF('[8]MONE(M)'!$AO57=\"\",\"\",'[8]MONE(M)'!$AO57)","v":"n.d."},"n.d.","n.d.","n.d.","n.d.","n.d.","n.d.","n.d.",{"$f":"IF('[1]FISCAL(M)'!$K57=\"\",\"\",'[1]FISCAL(M)'!$K57)","v":"n.d."},"n.d.","n.d.",{"$f":"IF('[1]FISCAL(M)'!$L57=\"\",\"\",'[1]FISCAL(M)'!$L57)","v":"n.d."},"n.d.","n.d.","n.d.","n.d.","n.d.","n.d.","n.d.","n.d.","n.d.","n.d.","n.d.","n.d.","n.d.","n.d.","n.d.","n.d.","n.d.","n.d."]
[1994,"enero","1994-enero",{"$f":"IF('[1]REAL IPC(M)'!$AL58=\"\",\"\",+'[1]REAL IPC(M)'!$AL58)","v":9.6359752231638396},{"$f":"IF('[1]REAL IPC(M)'!$BE58=\"\",\"\",+'[1]REAL IPC(M)'!$BE58)","v":"n.d."},{"$f":"IF('[1]REAL IPC(M)'!$AM58=\"\",\"\",+'[1]REAL IPC(M)'!$AM58)","v":8.5929172262083178},{"$f":"IF('[1]REAL IPC(M)'!$BI58=\"\",\"\",+'[1]REAL IPC(M)'!$BI58)","v":"n.d."},{"$f":"IF('[1]REAL IMAE(M)'!BJ58=\"\",\"\",'[1]REAL IMAE(M)'!BJ58)","v":"n.d."},{"$f":"IF('[1]REAL IMAE(M)'!BK58=\"\",\"\",'[1]REAL IMAE(M)'!BK58)","v":"n.d."},{"$f":"IF('[1]REAL IMAE(M)'!BN58=\"\",\"\",'[1]REAL IMAE(M)'!BN58)","v":"n.d."},{"$f":"IF('[1]REAL IMAE(M)'!BO58=\"\",\"\",'[1]REAL IMAE(M)'!BO58)","v":"n.d."},{"$f":"IF('[1]EXT RIN(M)'!$K58=\"\",\"\",'[1]EXT RIN(M)'!$K58)","v":"n.d."},"",{"$f":"IF('[1]EXT RIN(M)'!$L58=\"\",\"\",'[1]EXT RIN(M)'!$L58)","v":"n.d."},"",{"$f":"IF('[1]MONE(M)CARD'!EG58=\"\",\"\",'[1]MONE(M)CARD'!EG58)","v":"n.d."},{"$f":"IF('[1]MONE(M)CARD'!EK58=\"\",\"\",'[1]MONE(M)CARD'!EK58)","v":"n.d."},{"$f":"IF('[1]MONE(M)CARD'!EP58=\"\",\"\",'[1]MONE(M)CARD'!EP58)","v":"n.d."},{"$f":"IF('[1]MONE(M)CARD'!ES58=\"\",\"\",'[1]MONE(M)CARD'!ES58)","v":"n.d."},{"$f":"IF('[1]MONE(M)CARD'!EV58=\"\",\"\",'[1]MONE(M)CARD'!EV58)","v":"n.d."},{"$f":"IF('[1]MONE(M)CARD'!EZ58=\"\",\"\",'[1]MONE(M)CARD'!EZ58)","v":"n.d."},{"$f":"IF('[1]MONE(M)CAPARD'!FC58=\"\",\"\",'[1]MONE(M)CAPARD'!FC58)","v":"n.d."},{"$f":"IF('[1]MONE(M)CAPARD'!FG58=\"\",\"\",'[1]MONE(M)CAPARD'!FG58)","v":"n.d."},{"$f":"IF('[1]MONE(M)CAPARD'!FL58=\"\",\"\",'[1]MONE(M)CAPARD'!FL58)","v":"n.d."},{"$f":"IF('[1]MONE(M)CAPARD'!FO58=\"\",\"\",'[1]MONE(M)CAPARD'!FO58)","v":"n.d."},{"$f":"IF('[1]MONE(M)CAPARD'!FR58=\"\",\"\",'[1]MONE(M)CAPARD'!FR58)","v":"n.d."},{"$f":"IF('[1]MONE(M)CAPARD'!FV58=\"\",\"\",'[1]MONE(M)CAPARD'!FV58)","v":"n.d."},{"$f":"IF('[1]MONE(M)CARD'!FV58=\"\",\"\",'[1]MONE(M)CARD'!FV58)","v":""},{"$f":"IF('[1]MONE(M)CARD'!GD58=\"\",\"\",'[1]MONE(M)CARD'!GD58)","v":"n.d."},{"$f":"IF('[1]MONE(M)CARD'!GE58=\"\",\"\",'[1]MONE(M)CARD'!GE58)","v":"n.d."},"n.d.","n.d.","n.d.","n.d.","n.d.","n.d.","n.d.","n.d.",null,"n.d.","n.d.","n.d.","n.d.","n.d.",{"$f":"IF('[1]MONE(M)CAPARD'!GS58=\"\",\"\",'[1]MONE(M)CAPARD'!GS58)","v":"n.d."},{"$f":"IF('[1]MONE(M)CARD'!HA58=\"\",\"\",'[1]MONE(M)CAPARD'!HA58)","v":"n.d."},{"$f":"IF('[1]MONE(M)CAPARD'!HB58=\"\",\"\",'[1]MONE(M)CAPARD'!HB58)","v":"n.d."},"n.d.","n.d.","n.d.","n.d.","n.d.","n.d.","n.d.","n.d.","n.d.","n.d.","n.d.","n.d.","n.d.","n.d.",{"$f":"IF('[1]MONE(M)CAPARD'!AS58=\"\",\"\",'[1]MONE(M)CAPARD'!AS58)","v":"n.d."},{"$f":"IF('[1]MONE(M)CAPARD'!AT58=\"\",\"\",'[1]MONE(M)CAPARD'!AT58)","v":"n.a."},{"$f":"IF('[1]MONE(M)CAPARD'!AU58=\"\",\"\",'[1]MONE(M)CAPARD'!AU58)","v":"n.d."},{"$f":"IF('[1]MONE(M)CAPARD'!AV58=\"\",\"\",'[1]MONE(M)CAPARD'!AV58)","v":"n.d."},{"$f":"IF('[1]MONE(M)CAPARD'!AW58=\"\",\"\",'[1]MONE(M)CAPARD'!AW58)","v":"n.a."},{"$f":"IF('[1]MONE(M)CAPARD'!AX58=\"\",\"\",'[1]MONE(M)CAPARD'!AX58)","v":"n.d."},{"$f":"IF('[1]MONE(M)CAPARD'!AY58=\"\",\"\",'[1]MONE(M)CAPARD'!AY58)","v":"n.a."},{"$f":"IF('[1]FISCAL(M)'!$K58=\"\",\"\",'[1]FISCAL(M)'!$K58)","v":"n.d."},{"$f":"IF('[1]FISCAL(M)'!$L58=\"\",\"\",'[1]FISCAL(M)'!$L58)","v":"n.d."},{"$f":"IF('[1]FISCAL(M)'!$AY58=\"\",\"\",'[1]FISCAL(M)'!$AY58)","v":"n.d."},{"$f":"IF('[1]FISCAL(M)'!$BI58=\"\",\"\",'[1]FISCAL(M)'!$BI58)","v":"n.d."},{"$f":"IF('[1]FISCAL(M)'!$BS58=\"\",\"\",'[1]FISCAL(M)'!$BS58)","v":"n.d."},{"$f":"IF('[1]FISCAL(M)'!$AZ58=\"\",\"\",'[1]FISCAL(M)'!$AZ58)","v":"n.d."},{"$f":"IF('[1]FISCAL(M)'!$BJ58=\"\",\"\",'[1]FISCAL(M)'!$BJ58)","v":"n.d."},{"$f":"IF('[1]FISCAL(M)'!$BT58=\"\",\"\",'[1]FISCAL(M)'!$BT58)","v":"n.d."},{"$f":"IF('[2]MONE(M)'!$AO58=\"\",\"\",'[2]MONE(M)'!$AO58)","v":"n.d."},{"$f":"IF('[3]MONE(M)'!$AO58=\"\",\"\",'[3]MONE(M)'!$AO58)","v":"n.d."},{"$f":"IF('[4]MONE(M)'!$AO58=\"\",\"\",'[4]MONE(M)'!$AO58)","v":"n.d."},{"$f":"IF('[5]MONE(M)'!$AO58=\"\",\"\",'[5]MONE(M)'!$AO58)","v":"n.d."},{"$f":"IF('[6]MONE(M)'!$AO58=\"\",\"\",'[6]MONE(M)'!$AO58)","v":"n.d."},{"$f":"IF('[7]MONE(M)'!$AO58=\"\",\"\",'[7]MONE(M)'!$AO58)","v":"n.d."},{"$f":"IF('[8]MONE(M)'!$AO58=\"\",\"\",'[8]MONE(M)'!$AO58)","v":"n.d."},"n.d.","n.d.","n.d.","n.d.","n.d.","n.d.","n.d.",{"$f":"IF('[1]FISCAL(M)'!$K58=\"\",\"\",'[1]FISCAL(M)'!$K58)","v":"n.d."},"n.d.","n.d.",{"$f":"IF('[1]FISCAL(M)'!$L58=\"\",\"\",'[1]FISCAL(M)'!$L58)","v":"n.d."},"n.d.","n.d.","n.d.","n.d.","n.d.","n.d.","n.d.","n.d.","n.d.","n.d.","n.d.","n.d.","n.d.","n.d.","n.d.","n.d.","n.d.","n.d."]
[1994,"febrero","1994-febrero",{"$f":"IF('[1]REAL IPC(M)'!$AL59=\"\",\"\",+'[1]REAL IPC(M)'!$AL59)","v":9.5618084657066671},{"$f":"IF('[1]REAL IPC(M)'!$BE59=\"\",\"\",+'[1]REAL IPC(M)'!$BE59)","v":"n.d."},{"$f":"IF('[1]REAL IPC(M)'!$AM59=\"\",\"\",+'[1]REAL IPC(M)'!$AM59)","v":8.5089177792595727},{"$f":"IF('[1]REAL IPC(M)'!$BI59=\"\",\"\",+'[1]REAL IPC(M)'!$BI59)","v":"n.d."},{"$f":"IF('[1]REAL IMAE(M)'!BJ59=\"\",\"\",'[1]REAL IMAE(M)'!BJ59)","v":"n.d."},{"$f":"IF('[1]REAL IMAE(M)'!BK59=\"\",\"\",'[1]REAL IMAE(M)'!BK59)","v":"n.d."},{"$f":"IF('[1]REAL IMAE(M)'!BN59=\"\",\"\",'[1]REAL IMAE(M)'!BN59)","v":"n.d."},{"$f":"IF('[1]REAL IMAE(M)'!BO59=\"\",\"\",'[1]REAL IMAE(M)'!BO59)","v":"n.d."},{"$f":"IF('[1]EXT RIN(M)'!$K59=\"\",\"\",'[1]EXT RIN(M)'!$K59)","v":"n.d."},"",{"$f":"IF('[1]EXT RIN(M)'!$L59=\"\",\"\",'[1]EXT RIN(M)'!$L59)","v":"n.d."},"",{"$f":"IF('[1]MONE(M)CARD'!EG59=\"\",\"\",'[1]MONE(M)CARD'!EG59)","v":"n.d."},{"$f":"IF('[1]MONE(M)CARD'!EK59=\"\",\"\",'[1]MONE(M)CARD'!EK59)","v":"n.d."},{"$f":"IF('[1]MONE(M)CARD'!EP59=\"\",\"\",'[1]MONE(M)CARD'!EP59)","v":"n.d."},{"$f":"IF('[1]MONE(M)CARD'!ES59=\"\",\"\",'[1]MONE(M)CARD'!ES59)","v":"n.d."},{"$f":"IF('[1]MONE(M)CARD'!EV59=\"\",\"\",'[1]MONE(M)CARD'!EV59)","v":"n.d."},{"$f":"IF('[1]MONE(M)CARD'!EZ59=\"\",\"\",'[1]MONE(M)CARD'!EZ59)","v":"n.d."},{"$f":"IF('[1]MONE(M)CAPARD'!FC59=\"\",\"\",'[1]MONE(M)CAPARD'!FC59)","v":"n.d."},{"$f":"IF('[1]MONE(M)CAPARD'!FG59=\"\",\"\",'[1]MONE(M)CAPARD'!FG59)","v":"n.d."},{"$f":"IF('[1]MONE(M)CAPARD'!FL59=\"\",\"\",'[1]MONE(M)CAPARD'!FL59)","v":"n.d."},{"$f":"IF('[1]MONE(M)CAPARD'!FO59=\"\",\"\",'[1]MONE(M)CAPARD'!FO59)","v":"n.d."},{"$f":"IF('[1]MONE(M)CAPARD'!FR59=\"\",\"\",'[1]MONE(M)CAPARD'!FR59)","v":"n.d."},{"$f":"IF('[1]MONE(M)CAPARD'!FV59=\"\",\"\",'[1]MONE(M)CAPARD'!FV59)","v":"n.d."},{"$f":"IF('[1]MONE(M)CARD'!FV59=\"\",\"\",'[1]MONE(M)CARD'!FV59)","v":""},{"$f":"IF('[1]MONE(M)CARD'!GD59=\"\",\"\",'[1]MONE(M)CARD'!GD59)","v":"n.d."},{"$f":"IF('[1]MONE(M)CARD'!GE59=\"\",\"\",'[1]MONE(M)CARD'!GE59)","v":"n.d."},"n.d.","n.d.","n.d.","n.d.","n.d.","n.d.","n.d.","n.d.",null,"n.d.","n.d.","n.d.","n.d.","n.d.",{"$f":"IF('[1]MONE(M)CAPARD'!GS59=\"\",\"\",'[1]MONE(M)CAPARD'!GS59)","v":"n.d."},{"$f":"IF('[1]MONE(M)CARD'!HA59=\"\",\"\",'[1]MONE(M)CAPARD'!HA59)","v":"n.d."},{"$f":"IF('[1]MONE(M)CAPARD'!HB59=\"\",\"\",'[1]MONE(M)CAPARD'!HB59)","v":"n.d."},"n.d.","n.d.","n.d.","n.d.","n.d.","n.d.","n.d.","n.d.","n.d.","n.d.","n.d.","n.d.","n.d.","n.d.",{"$f":"IF('[1]MONE(M)CAPARD'!AS59=\"\",\"\",'[1]MONE(M)CAPARD'!AS59)","v":"n.d."},{"$f":"IF('[1]MONE(M)CAPARD'!AT59=\"\",\"\",'[1]MONE(M)CAPARD'!AT59)","v":"n.a."},{"$f":"IF('[1]MONE(M)CAPARD'!AU59=\"\",\"\",'[1]MONE(M)CAPARD'!AU59)","v":"n.d."},{"$f":"IF('[1]MONE(M)CAPARD'!AV59=\"\",\"\",'[1]MONE(M)CAPARD'!AV59)","v":"n.d."},{"$f":"IF('[1]MONE(M)CAPARD'!AW59=\"\",\"\",'[1]MONE(M)CAPARD'!AW59)","v":"n.a."},{"$f":"IF('[1]MONE(M)CAPARD'!AX59=\"\",\"\",'[1]MONE(M)CAPARD'!AX59)","v":"n.d."},{"$f":"IF('[1]MONE(M)CAPARD'!AY59=\"\",\"\",'[1]MONE(M)CAPARD'!AY59)","v":"n.a."},{"$f":"IF('[1]FISCAL(M)'!$K59=\"\",\"\",'[1]FISCAL(M)'!$K59)","v":"n.d."},{"$f":"IF('[1]FISCAL(M)'!$L59=\"\",\"\",'[1]FISCAL(M)'!$L59)","v":"n.d."},{"$f":"IF('[1]FISCAL(M)'!$AY59=\"\",\"\",'[1]FISCAL(M)'!$AY59)","v":"n.d."},{"$f":"IF('[1]FISCAL(M)'!$BI59=\"\",\"\",'[1]FISCAL(M)'!$BI59)","v":"n.d."},{"$f":"IF('[1]FISCAL(M)'!$BS59=\"\",\"\",'[1]FISCAL(M)'!$BS59)","v":"n.d."},{"$f":"IF('[1]FISCAL(M)'!$AZ59=\"\",\"\",'[1]FISCAL(M)'!$AZ59)","v":"n.d."},{"$f":"IF('[1]FISCAL(M)'!$BJ59=\"\",\"\",'[1]FISCAL(M)'!$BJ59)","v":"n.d."},{"$f":"IF('[1]FISCAL(M)'!$BT59=\"\",\"\",'[1]FISCAL(M)'!$BT59)","v":"n.d."},{"$f":"IF('[2]MONE(M)'!$AO59=\"\",\"\",'[2]MONE(M)'!$AO59)","v":"n.d."},{"$f":"IF('[3]MONE(M)'!$AO59=\"\",\"\",'[3]MONE(M)'!$AO59)","v":"n.d."},{"$f":"IF('[4]MONE(M)'!$AO59=\"\",\"\",'[4]MONE(M)'!$AO59)","v":"n.d."},{"$f":"IF('[5]MONE(M)'!$AO59=\"\",\"\",'[5]MONE(M)'!$AO59)","v":"n.d."},{"$f":"IF('[6]MONE(M)'!$AO59=\"\",\"\",'[6]MONE(M)'!$AO59)","v":"n.d."},{"$f":"IF('[7]MONE(M)'!$AO59=\"\",\"\",'[7]MONE(M)'!$AO59)","v":"n.d."},{"$f":"IF('[8]MONE(M)'!$AO59=\"\",\"\",'[8]MONE(M)'!$AO59)","v":"n.d."},"n.d.","n.d.","n.d.","n.d.","n.d.","n.d.","n.d.",{"$f":"IF('[1]FISCAL(M)'!$K59=\"\",\"\",'[1]FISCAL(M)'!$K59)","v":"n.d."},"n.d.","n.d.",{"$f":"IF('[1]FISCAL(M)'!$L59=\"\",\"\",'[1]FISCAL(M)'!$L59)","v":"n.d."},"n.d.","n.d.","n.d.","n.d.","n.d.","n.d.","n.d.","n.d.","n.d.","n.d.","n.d.","n.d.","n.d.","n.d.","n.d.","n.d.","n.d.","n.d."]
[1994,"marzo","1994-marzo",{"$f":"IF('[1]REAL IPC(M)'!$AL60=\"\",\"\",+'[1]REAL IPC(M)'!$AL60)","v":10.269892686342974},{"$f":"IF('[1]REAL IPC(M)'!$BE60=\"\",\"\",+'[1]REAL IPC(M)'!$BE60)","v":"n.d."},{"$f":"IF('[1]REAL IPC(M)'!$AM60=\"\",\"\",+'[1]REAL IPC(M)'!$AM60)","v":9.1180112593789886},{"$f":"IF('[1]REAL IPC(M)'!$BI60=\"\",\"\",+'[1]REAL IPC(M)'!$BI60)","v":"n.d."},{"$f":"IF('[1]REAL IMAE(M)'!BJ60=\"\",\"\",'[1]REAL IMAE(M)'!BJ60)","v":"n.d."},{"$f":"IF('[1]REAL IMAE(M)'!BK60=\"\",\"\",'[1]REAL IMAE(M)'!BK60)","v":"n.d."},{"$f":"IF('[1]REAL IMAE(M)'!BN60=\"\",\"\",'[1]REAL IMAE(M)'!BN60)","v":"n.d."},{"$f":"IF('[1]REAL IMAE(M)'!BO60=\"\",\"\",'[1]REAL IMAE(M)'!BO60)","v":"n.d."},{"$f":"IF('[1]EXT RIN(M)'!$K60=\"\",\"\",'[1]EXT RIN(M)'!$K60)","v":"n.d."},"",{"$f":"IF('[1]EXT RIN(M)'!$L60=\"\",\"\",'[1]EXT RIN(M)'!$L60)","v":"n.d."},"",{"$f":"IF('[1]MONE(M)CARD'!EG60=\"\",\"\",'[1]MONE(M)CARD'!EG60)","v":"n.d."},{"$f":"IF('[1]MONE(M)CARD'!EK60=\"\",\"\",'[1]MONE(M)CARD'!EK60)","v":"n.d."},{"$f":"IF('[1]MONE(M)CARD'!EP60=\"\",\"\",'[1]MONE(M)CARD'!EP60)","v":"n.d."},{"$f":"IF('[1]MONE(M)CARD'!ES60=\"\",\"\",'[1]MONE(M)CARD'!ES60)","v":"n.d."},{"$f":"IF('[1]MONE(M)CARD'!EV60=\"\",\"\",'[1]MONE(M)CARD'!EV60)","v":"n.d."},{"$f":"IF('[1]MONE(M)CARD'!EZ60=\"\",\"\",'[1]MONE(M)CARD'!EZ60)","v":"n.d."},{"$f":"IF('[1]MONE(M)CAPARD'!FC60=\"\",\"\",'[1]MONE(M)CAPARD'!FC60)","v":"n.d."},{"$f":"IF('[1]MONE(M)CAPARD'!FG60=\"\",\"\",'[1]MONE(M)CAPARD'!FG60)","v":"n.d."},{"$f":"IF('[1]MONE(M)CAPARD'!FL60=\"\",\"\",'[1]MONE(M)CAPARD'!FL60)","v":"n.d."},{"$f":"IF('[1]MONE(M)CAPARD'!FO60=\"\",\"\",'[1]MONE(M)CAPARD'!FO60)","v":"n.d."},{"$f":"IF('[1]MONE(M)CAPARD'!FR60=\"\",\"\",'[1]MONE(M)CAPARD'!FR60)","v":"n.d."},{"$f":"IF('[1]MONE(M)CAPARD'!FV60=\"\",\"\",'[1]MONE(M)CAPARD'!FV60)","v":"n.d."},{"$f":"IF('[1]MONE(M)CARD'!FV60=\"\",\"\",'[1]MONE(M)CARD'!FV60)","v":""},{"$f":"IF('[1]MONE(M)CARD'!GD60=\"\",\"\",'[1]MONE(M)CARD'!GD60)","v":"n.d."},{"$f":"IF('[1]MONE(M)CARD'!GE60=\"\",\"\",'[1]MONE(M)CARD'!GE60)","v":"n.d."},"n.d.","n.d.","n.d.","n.d.","n.d.","n.d.","n.d.","n.d.",null,"n.d.","n.d.","n.d.","n.d.","n.d.",{"$f":"IF('[1]MONE(M)CAPARD'!GS60=\"\",\"\",'[1]MONE(M)CAPARD'!GS60)","v":"n.d."},{"$f":"IF('[1]MONE(M)CARD'!HA60=\"\",\"\",'[1]MONE(M)CAPARD'!HA60)","v":"n.d."},{"$f":"IF('[1]MONE(M)CAPARD'!HB60=\"\",\"\",'[1]MONE(M)CAPARD'!HB60)","v":"n.d."},"n.d.","n.d.","n.d.","n.d.","n.d.","n.d.","n.d.","n.d.","n.d.","n.d.","n.d.","n.d.","n.d.","n.d.",{"$f":"IF('[1]MONE(M)CAPARD'!AS60=\"\",\"\",'[1]MONE(M)CAPARD'!AS60)","v":"n.d."},{"$f":"IF('[1]MONE(M)CAPARD'!AT60=\"\",\"\",'[1]MONE(M)CAPARD'!AT60)","v":"n.a."},{"$f":"IF('[1]MONE(M)CAPARD'!AU60=\"\",\"\",'[1]MONE(M)CAPARD'!AU60)","v":"n.d."},{"$f":"IF('[1]MONE(M)CAPARD'!AV60=\"\",\"\",'[1]MONE(M)CAPARD'!AV60)","v":"n.d."},{"$f":"IF('[1]MONE(M)CAPARD'!AW60=\"\",\"\",'[1]MONE(M)CAPARD'!AW60)","v":"n.a."},{"$f":"IF('[1]MONE(M)CAPARD'!AX60=\"\",\"\",'[1]MONE(M)CAPARD'!AX60)","v":"n.d."},{"$f":"IF('[1]MONE(M)CAPARD'!AY60=\"\",\"\",'[1]MONE(M)CAPARD'!AY60)","v":"n.a."},{"$f":"IF('[1]FISCAL(M)'!$K60=\"\",\"\",'[1]FISCAL(M)'!$K60)","v":"n.d."},{"$f":"IF('[1]FISCAL(M)'!$L60=\"\",\"\",'[1]FISCAL(M)'!$L60)","v":"n.d."},{"$f":"IF('[1]FISCAL(M)'!$AY60=\"\",\"\",'[1]FISCAL(M)'!$AY60)","v":"n.d."},{"$f":"IF('[1]FISCAL(M)'!$BI60=\"\",\"\",'[1]FISCAL(M)'!$BI60)","v":"n.d."},{"$f":"IF('[1]FISCAL(M)'!$BS60=\"\",\"\",'[1]FISCAL(M)'!$BS60)","v":"n.d."},{"$f":"IF('[1]FISCAL(M)'!$AZ60=\"\",\"\",'[1]FISCAL(M)'!$AZ60)","v":"n.d."},{"$f":"IF('[1]FISCAL(M)'!$BJ60=\"\",\"\",'[1]FISCAL(M)'!$BJ60)","v":"n.d."},{"$f":"IF('[1]FISCAL(M)'!$BT60=\"\",\"\",'[1]FISCAL(M)'!$BT60)","v":"n.d."},{"$f":"IF('[2]MONE(M)'!$AO60=\"\",\"\",'[2]MONE(M)'!$AO60)","v":"n.d."},{"$f":"IF('[3]MONE(M)'!$AO60=\"\",\"\",'[3]MONE(M)'!$AO60)","v":"n.d."},{"$f":"IF('[4]MONE(M)'!$AO60=\"\",\"\",'[4]MONE(M)'!$AO60)","v":"n.d."},{"$f":"IF('[5]MONE(M)'!$AO60=\"\",\"\",'[5]MONE(M)'!$AO60)","v":"n.d."},{"$f":"IF('[6]MONE(M)'!$AO60=\"\",\"\",'[6]MONE(M)'!$AO60)","v":"n.d."},{"$f":"IF('[7]MONE(M)'!$AO60=\"\",\"\",'[7]MONE(M)'!$AO60)","v":"n.d."},{"$f":"IF('[8]MONE(M)'!$AO60=\"\",\"\",'[8]MONE(M)'!$AO60)","v":"n.d."},"n.d.","n.d.","n.d.","n.d.","n.d.","n.d.","n.d.",{"$f":"IF('[1]FISCAL(M)'!$K60=\"\",\"\",'[1]FISCAL(M)'!$K60)","v":"n.d."},"n.d.","n.d.",{"$f":"IF('[1]FISCAL(M)'!$L60=\"\",\"\",'[1]FISCAL(M)'!$L60)","v":"n.d."},"n.d.","n.d.","n.d.","n.d.","n.d.","n.d.","n.d.","n.d.","n.d.","n.d.","n.d.","n.d.","n.d.","n.d.","n.d.","n.d.","n.d.","n.d."]
[1994,"abril","1994-abril",{"$f":"IF('[1]REAL IPC(M)'!$AL61=\"\",\"\",+'[1]REAL IPC(M)'!$AL61)","v":10.836299685522132},{"$f":"IF('[1]REAL IPC(M)'!$BE61=\"\",\"\",+'[1]REAL IPC(M)'!$BE61)","v":"n.d."},{"$f":"IF('[1]REAL IPC(M)'!$AM61=\"\",\"\",+'[1]REAL IPC(M)'!$AM61)","v":9.6427324794642999},{"$f":"IF('[1]REAL IPC(M)'!$BI61=\"\",\"\",+'[1]REAL IPC(M)'!$BI61)","v":"n.d."},{"$f":"IF('[1]REAL IMAE(M)'!BJ61=\"\",\"\",'[1]REAL IMAE(M)'!BJ61)","v":"n.d."},{"$f":"IF('[1]REAL IMAE(M)'!BK61=\"\",\"\",'[1]REAL IMAE(M)'!BK61)","v":"n.d."},{"$f":"IF('[1]REAL IMAE(M)'!BN61=\"\",\"\",'[1]REAL IMAE(M)'!BN61)","v":"n.d."},{"$f":"IF('[1]REAL IMAE(M)'!BO61=\"\",\"\",'[1]REAL IMAE(M)'!BO61)","v":"n.d."},{"$f":"IF('[1]EXT RIN(M)'!$K61=\"\",\"\",'[1]EXT RIN(M)'!$K61)","v":"n.d."},"",{"$f":"IF('[1]EXT RIN(M)'!$L61=\"\",\"\",'[1]EXT RIN(M)'!$L61)","v":"n.d."},"",{"$f":"IF('[1]MONE(M)CARD'!EG61=\"\",\"\",'[1]MONE(M)CARD'!EG61)","v":"n.d."},{"$f":"IF('[1]MONE(M)CARD'!EK61=\"\",\"\",'[1]MONE(M)CARD'!EK61)","v":"n.d."},{"$f":"IF('[1]MONE(M)CARD'!EP61=\"\",\"\",'[1]MONE(M)CARD'!EP61)","v":"n.d."},{"$f":"IF('[1]MONE(M)CARD'!ES61=\"\",\"\",'[1]MONE(M)CARD'!ES61)","v":"n.d."},{"$f":"IF('[1]MONE(M)CARD'!EV61=\"\",\"\",'[1]MONE(M)CARD'!EV61)","v":"n.d."},{"$f":"IF('[1]MONE(M)CARD'!EZ61=\"\",\"\",'[1]MONE(M)CARD'!EZ61)","v":"n.d."},{"$f":"IF('[1]MONE(M)CAPARD'!FC61=\"\",\"\",'[1]MONE(M)CAPARD'!FC61)","v":"n.d."},{"$f":"IF('[1]MONE(M)CAPARD'!FG61=\"\",\"\",'[1]MONE(M)CAPARD'!FG61)","v":"n.d."},{"$f":"IF('[1]MONE(M)CAPARD'!FL61=\"\",\"\",'[1]MONE(M)CAPARD'!FL61)","v":"n.d."},{"$f":"IF('[1]MONE(M)CAPARD'!FO61=\"\",\"\",'[1]MONE(M)CAPARD'!FO61)","v":"n.d."},{"$f":"IF('[1]MONE(M)CAPARD'!FR61=\"\",\"\",'[1]MONE(M)CAPARD'!FR61)","v":"n.d."},{"$f":"IF('[1]MONE(M)CAPARD'!FV61=\"\",\"\",'[1]MONE(M)CAPARD'!FV61)","v":"n.d."},{"$f":"IF('[1]MONE(M)CARD'!FV61=\"\",\"\",'[1]MONE(M)CARD'!FV61)","v":""},{"$f":"IF('[1]MONE(M)CARD'!GD61=\"\",\"\",'[1]MONE(M)CARD'!GD61)","v":"n.d."},{"$f":"IF('[1]MONE(M)CARD'!GE61=\"\",\"\",'[1]MONE(M)CARD'!GE61)","v":"n.d."},"n.d.","n.d.","n.d.","n.d.","n.d.","n.d.","n.d.","n.d.",null,"n.d.","n.d.","n.d.","n.d.","n.d.",{"$f":"IF('[1]MONE(M)CAPARD'!GS61=\"\",\"\",'[1]MONE(M)CAPARD'!GS61)","v":"n.d."},{"$f":"IF('[1]MONE(M)CARD'!HA61=\"\",\"\",'[1]MONE(M)CAPARD'!HA61)","v":"n.d."},{"$f":"IF('[1]MONE(M)CAPARD'!HB61=\"\",\"\",'[1]MONE(M)CAPARD'!HB61)","v":"n.d."},"n.d.","n.d.","n.d.","n.d.","n.d.","n.d.","n.d.","n.d.","n.d.","n.d.","n.d.","n.d.","n.d.","n.d.",{"$f":"IF('[1]MONE(M)CAPARD'!AS61=\"\",\"\",'[1]MONE(M)CAPARD'!AS61)","v":"n.d."},{"$f":"IF('[1]MONE(M)CAPARD'!AT61=\"\",\"\",'[1]MONE(M)CAPARD'!AT61)","v":"n.a."},{"$f":"IF('[1]MONE(M)CAPARD'!AU61=\"\",\"\",'[1]MONE(M)CAPARD'!AU61)","v":"n.d."},{"$f":"IF('[1]MONE(M)CAPARD'!AV61=\"\",\"\",'[1]MONE(M)CAPARD'!AV61)","v":"n.d."},{"$f":"IF('[1]MONE(M)CAPARD'!AW61=\"\",\"\",'[1]MONE(M)CAPARD'!AW61)","v":"n.a."},{"$f":"IF('[1]MONE(M)CAPARD'!AX61=\"\",\"\",'[1]MONE(M)CAPARD'!AX61)","v":"n.d."},{"$f":"IF('[1]MONE(M)CAPARD'!AY61=\"\",\"\",'[1]MONE(M)CAPARD'!AY61)","v":"n.a."},{"$f":"IF('[1]FISCAL(M)'!$K61=\"\",\"\",'[1]FISCAL(M)'!$K61)","v":"n.d."},{"$f":"IF('[1]FISCAL(M)'!$L61=\"\",\"\",'[1]FISCAL(M)'!$L61)","v":"n.d."},{"$f":"IF('[1]FISCAL(M)'!$AY61=\"\",\"\",'[1]FISCAL(M)'!$AY61)","v":"n.d."},{"$f":"IF('[1]FISCAL(M)'!$BI61=\"\",\"\",'[1]FISCAL(M)'!$BI61)","v":"n.d."},{"$f":"IF('[1]FISCAL(M)'!$BS61=\"\",\"\",'[1]FISCAL(M)'!$BS61)","v":"n.d."},{"$f":"IF('[1]FISCAL(M)'!$AZ61=\"\",\"\",'[1]FISCAL(M)'!$AZ61)","v":"n.d."},{"$f":"IF('[1]FISCAL(M)'!$BJ61=\"\",\"\",'[1]FISCAL(M)'!$BJ61)","v":"n.d."},{"$f":"IF('[1]FISCAL(M)'!$BT61=\"\",\"\",'[1]FISCAL(M)'!$BT61)","v":"n.d."},{"$f":"IF('[2]MONE(M)'!$AO61=\"\",\"\",'[2]MONE(M)'!$AO61)","v":"n.d."},{"$f":"IF('[3]MONE(M)'!$AO61=\"\",\"\",'[3]MONE(M)'!$AO61)","v":"n.d."},{"$f":"IF('[4]MONE(M)'!$AO61=\"\",\"\",'[4]MONE(M)'!$AO61)","v":"n.d."},{"$f":"IF('[5]MONE(M)'!$AO61=\"\",\"\",'[5]MONE(M)'!$AO61)","v":"n.d."},{"$f":"IF('[6]MONE(M)'!$AO61=\"\",\"\",'[6]MONE(M)'!$AO61)","v":"n.d."},{"$f":"IF('[7]MONE(M)'!$AO61=\"\",\"\",'[7]MONE(M)'!$AO61)","v":"n.d."},{"$f":"IF('[8]MONE(M)'!$AO61=\"\",\"\",'[8]MONE(M)'!$AO61)","v":"n.d."},"n.d.","n.d.","n.d.","n.d.","n.d.","n.d.","n.d.",{"$f":"IF('[1]FISCAL(M)'!$K61=\"\",\"\",'[1]FISCAL(M)'!$K61)","v":"n.d."},"n.d.","n.d.",{"$f":"IF('[1]FISCAL(M)'!$L61=\"\",\"\",'[1]FISCAL(M)'!$L61)","v":"n.d."},"n.d.","n.d.","n.d.","n.d.","n.d.","n.d.","n.d.","n.d.","n.d.","n.d.","n.d.","n.d.","n.d.","n.d.","n.d.","n.d.","n.d.","n.d."]
[1994,"mayo ","1994-mayo ",{"$f":"IF('[1]REAL IPC(M)'!$AL62=\"\",\"\",+'[1]REAL IPC(M)'!$AL62)","v":11.247861140934523},{"$f":"IF('[1]REAL IPC(M)'!$BE62=\"\",\"\",+'[1]REAL IPC(M)'!$BE62)","v":"n.d."},{"$f":"IF('[1]REAL IPC(M)'!$AM62=\"\",\"\",+'[1]REAL IPC(M)'!$AM62)","v":10.034859961043763},{"$f":"IF('[1]REAL IPC(M)'!$BI62=\"\",\"\",+'[1]REAL IPC(M)'!$BI62)","v":"n.d."},{"$f":"IF('[1]REAL IMAE(M)'!BJ62=\"\",\"\",'[1]REAL IMAE(M)'!BJ62)","v":"n.d."},{"$f":"IF('[1]REAL IMAE(M)'!BK62=\"\",\"\",'[1]REAL IMAE(M)'!BK62)","v":"n.d."},{"$f":"IF('[1]REAL IMAE(M)'!BN62=\"\",\"\",'[1]REAL IMAE(M)'!BN62)","v":"n.d."},{"$f":"IF('[1]REAL IMAE(M)'!BO62=\"\",\"\",'[1]REAL IMAE(M)'!BO62)","v":"n.d."},{"$f":"IF('[1]EXT RIN(M)'!$K62=\"\",\"\",'[1]EXT RIN(M)'!$K62)","v":"n.d."},"",{"$f":"IF('[1]EXT RIN(M)'!$L62=\"\",\"\",'[1]EXT RIN(M)'!$L62)","v":"n.d."},"",{"$f":"IF('[1]MONE(M)CARD'!EG62=\"\",\"\",'[1]MONE(M)CARD'!EG62)","v":"n.d."},{"$f":"IF('[1]MONE(M)CARD'!EK62=\"\",\"\",'[1]MONE(M)CARD'!EK62)","v":"n.d."},{"$f":"IF('[1]MONE(M)CARD'!EP62=\"\",\"\",'[1]MONE(M)CARD'!EP62)","v":"n.d."},{"$f":"IF('[1]MONE(M)CARD'!ES62=\"\",\"\",'[1]MONE(M)CARD'!ES62)","v":"n.d."},{"$f":"IF('[1]MONE(M)CARD'!EV62=\"\",\"\",'[1]MONE(M)CARD'!EV62)","v":"n.d."},{"$f":"IF('[1]MONE(M)CARD'!EZ62=\"\",\"\",'[1]MONE(M)CARD'!EZ62)","v":"n.d."},{"$f":"IF('[1]MONE(M)CAPARD'!FC62=\"\",\"\",'[1]MONE(M)CAPARD'!FC62)","v":"n.d."},{"$f":"IF('[1]MONE(M)CAPARD'!FG62=\"\",\"\",'[1]MONE(M)CAPARD'!FG62)","v":"n.d."},{"$f":"IF('[1]MONE(M)CAPARD'!FL62=\"\",\"\",'[1]MONE(M)CAPARD'!FL62)","v":"n.d."},{"$f":"IF('[1]MONE(M)CAPARD'!FO62=\"\",\"\",'[1]MONE(M)CAPARD'!FO62)","v":"n.d."},{"$f":"IF('[1]MONE(M)CAPARD'!FR62=\"\",\"\",'[1]MONE(M)CAPARD'!FR62)","v":"n.d."},{"$f":"IF('[1]MONE(M)CAPARD'!FV62=\"\",\"\",'[1]MONE(M)CAPARD'!FV62)","v":"n.d."},{"$f":"IF('[1]MONE(M)CARD'!FV62=\"\",\"\",'[1]MONE(M)CARD'!FV62)","v":""},{"$f":"IF('[1]MONE(M)CARD'!GD62=\"\",\"\",'[1]MONE(M)CARD'!GD62)","v":"n.d."},{"$f":"IF('[1]MONE(M)CARD'!GE62=\"\",\"\",'[1]MONE(M)CARD'!GE62)","v":"n.d."},"n.d.","n.d.","n.d.","n.d.","n.d.","n.d.","n.d.","n.d.",null,"n.d.","n.d.","n.d.","n.d.","n.d.",{"$f":"IF('[1]MONE(M)CAPARD'!GS62=\"\",\"\",'[1]MONE(M)CAPARD'!GS62)","v":"n.d."},{"$f":"IF('[1]MONE(M)CARD'!HA62=\"\",\"\",'[1]MONE(M)CAPARD'!HA62)","v":"n.d."},{"$f":"IF('[1]MONE(M)CAPARD'!HB62=\"\",\"\",'[1]MONE(M)CAPARD'!HB62)","v":"n.d."},"n.d.","n.d.","n.d.","n.d.","n.d.","n.d.","n.d.","n.d.","n.d.","n.d.","n.d.","n.d.","n.d.","n.d.",{"$f":"IF('[1]MONE(M)CAPARD'!AS62=\"\",\"\",'[1]MONE(M)CAPARD'!AS62)","v":"n.d."},{"$f":"IF('[1]MONE(M)CAPARD'!AT62=\"\",\"\",'[1]MONE(M)CAPARD'!AT62)","v":"n.a."},{"$f":"IF('[1]MONE(M)CAPARD'!AU62=\"\",\"\",'[1]MONE(M)CAPARD'!AU62)","v":"n.d."},{"$f":"IF('[1]MONE(M)CAPARD'!AV62=\"\",\"\",'[1]MONE(M)CAPARD'!AV62)","v":"n.d."},{"$f":"IF('[1]MONE(M)CAPARD'!AW62=\"\",\"\",'[1]MONE(M)CAPARD'!AW62)","v":"n.a."},{"$f":"IF('[1]MONE(M)CAPARD'!AX62=\"\",\"\",'[1]MONE(M)CAPARD'!AX62)","v":"n.d."},{"$f":"IF('[1]MONE(M)CAPARD'!AY62=\"\",\"\",'[1]MONE(M)CAPARD'!AY62)","v":"n.a."},{"$f":"IF('[1]FISCAL(M)'!$K62=\"\",\"\",'[1]FISCAL(M)'!$K62)","v":"n.d."},{"$f":"IF('[1]FISCAL(M)'!$L62=\"\",\"\",'[1]FISCAL(M)'!$L62)","v":"n.d."},{"$f":"IF('[1]FISCAL(M)'!$AY62=\"\",\"\",'[1]FISCAL(M)'!$AY62)","v":"n.d."},{"$f":"IF('[1]FISCAL(M)'!$BI62=\"\",\"\",'[1]FISCAL(M)'!$BI62)","v":"n.d."},{"$f":"IF('[1]FISCAL(M)'!$BS62=\"\",\"\",'[1]FISCAL(M)'!$BS62)","v":"n.d."},{"$f":"IF('[1]FISCAL(M)'!$AZ62=\"\",\"\",'[1]FISCAL(M)'!$AZ62)","v":"n.d."},{"$f":"IF('[1]FISCAL(M)'!$BJ62=\"\",\"\",'[1]FISCAL(M)'!$BJ62)","v":"n.d."},{"$f":"IF('[1]FISCAL(M)'!$BT62=\"\",\"\",'[1]FISCAL(M)'!$BT62)","v":"n.d."},{"$f":"IF('[2]MONE(M)'!$AO62=\"\",\"\",'[2]MONE(M)'!$AO62)","v":"n.d."},{"$f":"IF('[3]MONE(M)'!$AO62=\"\",\"\",'[3]MONE(M)'!$AO62)","v":"n.d."},{"$f":"IF('[4]MONE(M)'!$AO62=\"\",\"\",'[4]MONE(M)'!$AO62)","v":"n.d."},{"$f":"IF('[5]MONE(M)'!$AO62=\"\",\"\",'[5]MONE(M)'!$AO62)","v":"n.d."},{"$f":"IF('[6]MONE(M)'!$AO62=\"\",\"\",'[6]MONE(M)'!$AO62)","v":"n.d."},{"$f":"IF('[7]MONE(M)'!$AO62=\"\",\"\",'[7]MONE(M)'!$AO62)","v":"n.d."},{"$f":"IF('[8]MONE(M)'!$AO62=\"\",\"\",'[8]MONE(M)'!$AO62)","v":"n.d."},"n.d.","n.d.","n.d.","n.d.","n.d.","n.d.","n.d.",{"$f":"IF('[1]FISCAL(M)'!$K62=\"\",\"\",'[1]FISCAL(M)'!$K62)","v":"n.d."},"n.d.","n.d.",{"$f":"IF('[1]FISCAL(M)'!$L62=\"\",\"\",'[1]FISCAL(M)'!$L62)","v":"n.d."},"n.d.","n.d.","n.d.","n.d.","n.d.","n.d.","n.d.","n.d.","n.d.","n.d.","n.d.","n.d.","n.d.","n.d.","n.d.","n.d.","n.d.","n.d."]
[1994,"junio ","1994-junio ",{"$f":"IF('[1]REAL IPC(M)'!$AL63=\"\",\"\",+'[1]REAL IPC(M)'!$AL63)","v":10.721531406668539},{"$f":"IF('[1]REAL IPC(M)'!$BE63=\"\",\"\",+'[1]REAL IPC(M)'!$BE63)","v":"n.d."},{"$f":"IF('[1]REAL IPC(M)'!$AM63=\"\",\"\",+'[1]REAL IPC(M)'!$AM63)","v":9.5753009207421016},{"$f":"IF('[1]REAL IPC(M)'!$BI63=\"\",\"\",+'[1]REAL IPC(M)'!$BI63)","v":"n.d."},{"$f":"IF('[1]REAL IMAE(M)'!BJ63=\"\",\"\",'[1]REAL IMAE(M)'!BJ63)","v":"n.d."},{"$f":"IF('[1]REAL IMAE(M)'!BK63=\"\",\"\",'[1]REAL IMAE(M)'!BK63)","v":"n.d."},{"$f":"IF('[1]REAL IMAE(M)'!BN63=\"\",\"\",'[1]REAL IMAE(M)'!BN63)","v":"n.d."},{"$f":"IF('[1]REAL IMAE(M)'!BO63=\"\",\"\",'[1]REAL IMAE(M)'!BO63)","v":"n.d."},{"$f":"IF('[1]EXT RIN(M)'!$K63=\"\",\"\",'[1]EXT RIN(M)'!$K63)","v":"n.d."},"",{"$f":"IF('[1]EXT RIN(M)'!$L63=\"\",\"\",'[1]EXT RIN(M)'!$L63)","v":"n.d."},"",{"$f":"IF('[1]MONE(M)CARD'!EG63=\"\",\"\",'[1]MONE(M)CARD'!EG63)","v":"n.d."},{"$f":"IF('[1]MONE(M)CARD'!EK63=\"\",\"\",'[1]MONE(M)CARD'!EK63)","v":"n.d."},{"$f":"IF('[1]MONE(M)CARD'!EP63=\"\",\"\",'[1]MONE(M)CARD'!EP63)","v":"n.d."},{"$f":"IF('[1]MONE(M)CARD'!ES63=\"\",\"\",'[1]MONE(M)CARD'!ES63)","v":"n.d."},{"$f":"IF('[1]MONE(M)CARD'!EV63=\"\",\"\",'[1]MONE(M)CARD'!EV63)","v":"n.d."},{"$f":"IF('[1]MONE(M)CARD'!EZ63=\"\",\"\",'[1]MONE(M)CARD'!EZ63)","v":"n.d."},{"$f":"IF('[1]MONE(M)CAPARD'!FC63=\"\",\"\",'[1]MONE(M)CAPARD'!FC63)","v":"n.d."},{"$f":"IF('[1]MONE(M)CAPARD'!FG63=\"\",\"\",'[1]MONE(M)CAPARD'!FG63)","v":"n.d."},{"$f":"IF('[1]MONE(M)CAPARD'!FL63=\"\",\"\",'[1]MONE(M)CAPARD'!FL63)","v":"n.d."},{"$f":"IF('[1]MONE(M)CAPARD'!FO63=\"\",\"\",'[1]MONE(M)CAPARD'!FO63)","v":"n.d."},{"$f":"IF('[1]MONE(M)CAPARD'!FR63=\"\",\"\",'[1]MONE(M)CAPARD'!FR63)","v":"n.d."},{"$f":"IF('[1]MONE(M)CAPARD'!FV63=\"\",\"\",'[1]MONE(M)CAPARD'!FV63)","v":"n.d."},{"$f":"IF('[1]MONE(M)CARD'!FV63=\"\",\"\",'[1]MONE(M)CARD'!FV63)","v":""},{"$f":"IF('[1]MONE(M)CARD'!GD63=\"\",\"\",'[1]MONE(M)CARD'!GD63)","v":"n.d."},{"$f":"IF('[1]MONE(M)CARD'!GE63=\"\",\"\",'[1]MONE(M)CARD'!GE63)","v":"n.d."},"n.d.","n.d.","n.d.","n.d.","n.d.","n.d.","n.d.","n.d.",null,"n.d.","n.d.","n.d.","n.d.","n.d.",{"$f":"IF('[1]MONE(M)CAPARD'!GS63=\"\",\"\",'[1]MONE(M)CAPARD'!GS63)","v":"n.d."},{"$f":"IF('[1]MONE(M)CARD'!HA63=\"\",\"\",'[1]MONE(M)CAPARD'!HA63)","v":"n.d."},{"$f":"IF('[1]MONE(M)CAPARD'!HB63=\"\",\"\",'[1]MONE(M)CAPARD'!HB63)","v":"n.d."},"n.d.","n.d.","n.d.","n.d.","n.d.","n.d.","n.d.","n.d.","n.d.","n.d.","n.d.","n.d.","n.d.","n.d.",{"$f":"IF('[1]MONE(M)CAPARD'!AS63=\"\",\"\",'[1]MONE(M)CAPARD'!AS63)","v":"n.d."},{"$f":"IF('[1]MONE(M)CAPARD'!AT63=\"\",\"\",'[1]MONE(M)CAPARD'!AT63)","v":"n.a."},{"$f":"IF('[1]MONE(M)CAPARD'!AU63=\"\",\"\",'[1]MONE(M)CAPARD'!AU63)","v":"n.d."},{"$f":"IF('[1]MONE(M)CAPARD'!AV63=\"\",\"\",'[1]MONE(M)CAPARD'!AV63)","v":"n.d."},{"$f":"IF('[1]MONE(M)CAPARD'!AW63=\"\",\"\",'[1]MONE(M)CAPARD'!AW63)","v":"n.a."},{"$f":"IF('[1]MONE(M)CAPARD'!AX63=\"\",\"\",'[1]MONE(M)CAPARD'!AX63)","v":"n.d."},{"$f":"IF('[1]MONE(M)CAPARD'!AY63=\"\",\"\",'[1]MONE(M)CAPARD'!AY63)","v":"n.a."},{"$f":"IF('[1]FISCAL(M)'!$K63=\"\",\"\",'[1]FISCAL(M)'!$K63)","v":"n.d."},{"$f":"IF('[1]FISCAL(M)'!$L63=\"\",\"\",'[1]FISCAL(M)'!$L63)","v":"n.d."},{"$f":"IF('[1]FISCAL(M)'!$AY63=\"\",\"\",'[1]FISCAL(M)'!$AY63)","v":"n.d."},{"$f":"IF('[1]FISCAL(M)'!$BI63=\"\",\"\",'[1]FISCAL(M)'!$BI63)","v":"n.d."},{"$f":"IF('[1]FISCAL(M)'!$BS63=\"\",\"\",'[1]FISCAL(M)'!$BS63)","v":"n.d."},{"$f":"IF('[1]FISCAL(M)'!$AZ63=\"\",\"\",'[1]FISCAL(M)'!$AZ63)","v":"n.d."},{"$f":"IF('[1]FISCAL(M)'!$BJ63=\"\",\"\",'[1]FISCAL(M)'!$BJ63)","v":"n.d."},{"$f":"IF('[1]FISCAL(M)'!$BT63=\"\",\"\",'[1]FISCAL(M)'!$BT63)","v":"n.d."},{"$f":"IF('[2]MONE(M)'!$AO63=\"\",\"\",'[2]MONE(M)'!$AO63)","v":"n.d."},{"$f":"IF('[3]MONE(M)'!$AO63=\"\",\"\",'[3]MONE(M)'!$AO63)","v":"n.d."},{"$f":"IF('[4]MONE(M)'!$AO63=\"\",\"\",'[4]MONE(M)'!$AO63)","v":"n.d."},{"$f":"IF('[5]MONE(M)'!$AO63=\"\",\"\",'[5]MONE(M)'!$AO63)","v":"n.d."},{"$f":"IF('[6]MONE(M)'!$AO63=\"\",\"\",'[6]MONE(M)'!$AO63)","v":"n.d."},{"$f":"IF('[7]MONE(M)'!$AO63=\"\",\"\",'[7]MONE(M)'!$AO63)","v":"n.d."},{"$f":"IF('[8]MONE(M)'!$AO63=\"\",\"\",'[8]MONE(M)'!$AO63)","v":"n.d."},"n.d.","n.d.","n.d.","n.d.","n.d.","n.d.","n.d.",{"$f":"IF('[1]FISCAL(M)'!$K63=\"\",\"\",'[1]FISCAL(M)'!$K63)","v":"n.d."},"n.d.","n.d.",{"$f":"IF('[1]FISCAL(M)'!$L63=\"\",\"\",'[1]FISCAL(M)'!$L63)","v":"n.d."},"n.d.","n.d.","n.d.","n.d.","n.d.","n.d.","n.d.","n.d.","n.d.","n.d.","n.d.","n.d.","n.d.","n.d.","n.d.","n.d.","n.d.","n.d."]
[1994,"julio","1994-julio",{"$f":"IF('[1]REAL IPC(M)'!$AL64=\"\",\"\",+'[1]REAL IPC(M)'!$AL64)","v":9.6631881452988502},{"$f":"IF('[1]REAL IPC(M)'!$BE64=\"\",\"\",+'[1]REAL IPC(M)'!$BE64)","v":"n.d."},{"$f":"IF('[1]REAL IPC(M)'!$AM64=\"\",\"\",+'[1]REAL IPC(M)'!$AM64)","v":8.6463543470739701},{"$f":"IF('[1]REAL IPC(M)'!$BI64=\"\",\"\",+'[1]REAL IPC(M)'!$BI64)","v":"n.d."},{"$f":"IF('[1]REAL IMAE(M)'!BJ64=\"\",\"\",'[1]REAL IMAE(M)'!BJ64)","v":"n.d."},{"$f":"IF('[1]REAL IMAE(M)'!BK64=\"\",\"\",'[1]REAL IMAE(M)'!BK64)","v":"n.d."},{"$f":"IF('[1]REAL IMAE(M)'!BN64=\"\",\"\",'[1]REAL IMAE(M)'!BN64)","v":"n.d."},{"$f":"IF('[1]REAL IMAE(M)'!BO64=\"\",\"\",'[1]REAL IMAE(M)'!BO64)","v":"n.d."},{"$f":"IF('[1]EXT RIN(M)'!$K64=\"\",\"\",'[1]EXT RIN(M)'!$K64)","v":"n.d."},"",{"$f":"IF('[1]EXT RIN(M)'!$L64=\"\",\"\",'[1]EXT RIN(M)'!$L64)","v":"n.d."},"",{"$f":"IF('[1]MONE(M)CARD'!EG64=\"\",\"\",'[1]MONE(M)CARD'!EG64)","v":"n.d."},{"$f":"IF('[1]MONE(M)CARD'!EK64=\"\",\"\",'[1]MONE(M)CARD'!EK64)","v":"n.d."},{"$f":"IF('[1]MONE(M)CARD'!EP64=\"\",\"\",'[1]MONE(M)CARD'!EP64)","v":"n.d."},{"$f":"IF('[1]MONE(M)CARD'!ES64=\"\",\"\",'[1]MONE(M)CARD'!ES64)","v":"n.d."},{"$f":"IF('[1]MONE(M)CARD'!EV64=\"\",\"\",'[1]MONE(M)CARD'!EV64)","v":"n.d."},{"$f":"IF('[1]MONE(M)CARD'!EZ64=\"\",\"\",'[1]MONE(M)CARD'!EZ64)","v":"n.d."},{"$f":"IF('[1]MONE(M)CAPARD'!FC64=\"\",\"\",'[1]MONE(M)CAPARD'!FC64)","v":"n.d."},{"$f":"IF('[1]MONE(M)CAPARD'!FG64=\"\",\"\",'[1]MONE(M)CAPARD'!FG64)","v":"n.d."},{"$f":"IF('[1]MONE(M)CAPARD'!FL64=\"\",\"\",'[1]MONE(M)CAPARD'!FL64)","v":"n.d."},{"$f":"IF('[1]MONE(M)CAPARD'!FO64=\"\",\"\",'[1]MONE(M)CAPARD'!FO64)","v":"n.d."},{"$f":"IF('[1]MONE(M)CAPARD'!FR64=\"\",\"\",'[1]MONE(M)CAPARD'!FR64)","v":"n.d."},{"$f":"IF('[1]MONE(M)CAPARD'!FV64=\"\",\"\",'[1]MONE(M)CAPARD'!FV64)","v":"n.d."},{"$f":"IF('[1]MONE(M)CARD'!FV64=\"\",\"\",'[1]MONE(M)CARD'!FV64)","v":""},{"$f":"IF('[1]MONE(M)CARD'!GD64=\"\",\"\",'[1]MONE(M)CARD'!GD64)","v":"n.d."},{"$f":"IF('[1]MONE(M)CARD'!GE64=\"\",\"\",'[1]MONE(M)CARD'!GE64)","v":"n.d."},"n.d.","n.d.","n.d.","n.d.","n.d.","n.d.","n.d.","n.d.",null,"n.d.","n.d.","n.d.","n.d.","n.d.",{"$f":"IF('[1]MONE(M)CAPARD'!GS64=\"\",\"\",'[1]MONE(M)CAPARD'!GS64)","v":"n.d."},{"$f":"IF('[1]MONE(M)CARD'!HA64=\"\",\"\",'[1]MONE(M)CAPARD'!HA64)","v":"n.d."},{"$f":"IF('[1]MONE(M)CAPARD'!HB64=\"\",\"\",'[1]MONE(M)CAPARD'!HB64)","v":"n.d."},"n.d.","n.d.","n.d.","n.d.","n.d.","n.d.","n.d.","n.d.","n.d.","n.d.","n.d.","n.d.","n.d.","n.d.",{"$f":"IF('[1]MONE(M)CAPARD'!AS64=\"\",\"\",'[1]MONE(M)CAPARD'!AS64)","v":"n.d."},{"$f":"IF('[1]MONE(M)CAPARD'!AT64=\"\",\"\",'[1]MONE(M)CAPARD'!AT64)","v":"n.a."},{"$f":"IF('[1]MONE(M)CAPARD'!AU64=\"\",\"\",'[1]MONE(M)CAPARD'!AU64)","v":"n.d."},{"$f":"IF('[1]MONE(M)CAPARD'!AV64=\"\",\"\",'[1]MONE(M)CAPARD'!AV64)","v":"n.d."},{"$f":"IF('[1]MONE(M)CAPARD'!AW64=\"\",\"\",'[1]MONE(M)CAPARD'!AW64)","v":"n.a."},{"$f":"IF('[1]MONE(M)CAPARD'!AX64=\"\",\"\",'[1]MONE(M)CAPARD'!AX64)","v":"n.d."},{"$f":"IF('[1]MONE(M)CAPARD'!AY64=\"\",\"\",'[1]MONE(M)CAPARD'!AY64)","v":"n.a."},{"$f":"IF('[1]FISCAL(M)'!$K64=\"\",\"\",'[1]FISCAL(M)'!$K64)","v":"n.d."},{"$f":"IF('[1]FISCAL(M)'!$L64=\"\",\"\",'[1]FISCAL(M)'!$L64)","v":"n.d."},{"$f":"IF('[1]FISCAL(M)'!$AY64=\"\",\"\",'[1]FISCAL(M)'!$AY64)","v":"n.d."},{"$f":"IF('[1]FISCAL(M)'!$BI64=\"\",\"\",'[1]FISCAL(M)'!$BI64)","v":"n.d."},{"$f":"IF('[1]FISCAL(M)'!$BS64=\"\",\"\",'[1]FISCAL(M)'!$BS64)","v":"n.d."},{"$f":"IF('[1]FISCAL(M)'!$AZ64=\"\",\"\",'[1]FISCAL(M)'!$AZ64)","v":"n.d."},{"$f":"IF('[1]FISCAL(M)'!$BJ64=\"\",\"\",'[1]FISCAL(M)'!$BJ64)","v":"n.d."},{"$f":"IF('[1]FISCAL(M)'!$BT64=\"\",\"\",'[1]FISCAL(M)'!$BT64)","v":"n.d."},{"$f":"IF('[2]MONE(M)'!$AO64=\"\",\"\",'[2]MONE(M)'!$AO64)","v":"n.d."},{"$f":"IF('[3]MONE(M)'!$AO64=\"\",\"\",'[3]MONE(M)'!$AO64)","v":"n.d."},{"$f":"IF('[4]MONE(M)'!$AO64=\"\",\"\",'[4]MONE(M)'!$AO64)","v":"n.d."},{"$f":"IF('[5]MONE(M)'!$AO64=\"\",\"\",'[5]MONE(M)'!$AO64)","v":"n.d."},{"$f":"IF('[6]MONE(M)'!$AO64=\"\",\"\",'[6]MONE(M)'!$AO64)","v":"n.d."},{"$f":"IF('[7]MONE(M)'!$AO64=\"\",\"\",'[7]MONE(M)'!$AO64)","v":"n.d."},{"$f":"IF('[8]MONE(M)'!$AO64=\"\",\"\",'[8]MONE(M)'!$AO64)","v":"n.d."},"n.d.","n.d.","n.d.","n.d.","n.d.","n.d.","n.d.",{"$f":"IF('[1]FISCAL(M)'!$K64=\"\",\"\",'[1]FISCAL(M)'!$K64)","v":"n.d."},"n.d.","n.d.",{"$f":"IF('[1]FISCAL(M)'!$L64=\"\",\"\",'[1]FISCAL(M)'!$L64)","v":"n.d."},"n.d.","n.d.","n.d.","n.d.","n.d.","n.d.","n.d.","n.d.","n.d.","n.d.","n.d.","n.d.","n.d.","n.d.","n.d.","n.d.","n.d.","n.d."]
[1994,"agosto","1994-agosto",{"$f":"IF('[1]REAL IPC(M)'!$AL65=\"\",\"\",+'[1]REAL IPC(M)'!$AL65)","v":10.947779256711287},{"$f":"IF('[1]REAL IPC(M)'!$BE65=\"\",\"\",+'[1]REAL IPC(M)'!$BE65)","v":"n.d."},{"$f":"IF('[1]REAL IPC(M)'!$AM65=\"\",\"\",+'[1]REAL IPC(M)'!$AM65)","v":9.8277830926203116},{"$f":"IF('[1]REAL IPC(M)'!$BI65=\"\",\"\",+'[1]REAL IPC(M)'!$BI65)","v":"n.d."},{"$f":"IF('[1]REAL IMAE(M)'!BJ65=\"\",\"\",'[1]REAL IMAE(M)'!BJ65)","v":"n.d."},{"$f":"IF('[1]REAL IMAE(M)'!BK65=\"\",\"\",'[1]REAL IMAE(M)'!BK65)","v":"n.d."},{"$f":"IF('[1]REAL IMAE(M)'!BN65=\"\",\"\",'[1]REAL IMAE(M)'!BN65)","v":"n.d."},{"$f":"IF('[1]REAL IMAE(M)'!BO65=\"\",\"\",'[1]REAL IMAE(M)'!BO65)","v":"n.d."},{"$f":"IF('[1]EXT RIN(M)'!$K65=\"\",\"\",'[1]EXT RIN(M)'!$K65)","v":"n.d."},"",{"$f":"IF('[1]EXT RIN(M)'!$L65=\"\",\"\",'[1]EXT RIN(M)'!$L65)","v":"n.d."},"",{"$f":"IF('[1]MONE(M)CARD'!EG65=\"\",\"\",'[1]MONE(M)CARD'!EG65)","v":"n.d."},{"$f":"IF('[1]MONE(M)CARD'!EK65=\"\",\"\",'[1]MONE(M)CARD'!EK65)","v":"n.d."},{"$f":"IF('[1]MONE(M)CARD'!EP65=\"\",\"\",'[1]MONE(M)CARD'!EP65)","v":"n.d."},{"$f":"IF('[1]MONE(M)CARD'!ES65=\"\",\"\",'[1]MONE(M)CARD'!ES65)","v":"n.d."},{"$f":"IF('[1]MONE(M)CARD'!EV65=\"\",\"\",'[1]MONE(M)CARD'!EV65)","v":"n.d."},{"$f":"IF('[1]MONE(M)CARD'!EZ65=\"\",\"\",'[1]MONE(M)CARD'!EZ65)","v":"n.d."},{"$f":"IF('[1]MONE(M)CAPARD'!FC65=\"\",\"\",'[1]MONE(M)CAPARD'!FC65)","v":"n.d."},{"$f":"IF('[1]MONE(M)CAPARD'!FG65=\"\",\"\",'[1]MONE(M)CAPARD'!FG65)","v":"n.d."},{"$f":"IF('[1]MONE(M)CAPARD'!FL65=\"\",\"\",'[1]MONE(M)CAPARD'!FL65)","v":"n.d."},{"$f":"IF('[1]MONE(M)CAPARD'!FO65=\"\",\"\",'[1]MONE(M)CAPARD'!FO65)","v":"n.d."},{"$f":"IF('[1]MONE(M)CAPARD'!FR65=\"\",\"\",'[1]MONE(M)CAPARD'!FR65)","v":"n.d."},{"$f":"IF('[1]MONE(M)CAPARD'!FV65=\"\",\"\",'[1]MONE(M)CAPARD'!FV65)","v":"n.d."},{"$f":"IF('[1]MONE(M)CARD'!FV65=\"\",\"\",'[1]MONE(M)CARD'!FV65)","v":""},{"$f":"IF('[1]MONE(M)CARD'!GD65=\"\",\"\",'[1]MONE(M)CARD'!GD65)","v":"n.d."},{"$f":"IF('[1]MONE(M)CARD'!GE65=\"\",\"\",'[1]MONE(M)CARD'!GE65)","v":"n.d."},"n.d.","n.d.","n.d.","n.d.","n.d.","n.d.","n.d.","n.d.",null,"n.d.","n.d.","n.d.","n.d.","n.d.",{"$f":"IF('[1]MONE(M)CAPARD'!GS65=\"\",\"\",'[1]MONE(M)CAPARD'!GS65)","v":"n.d."},{"$f":"IF('[1]MONE(M)CARD'!HA65=\"\",\"\",'[1]MONE(M)CAPARD'!HA65)","v":"n.d."},{"$f":"IF('[1]MONE(M)CAPARD'!HB65=\"\",\"\",'[1]MONE(M)CAPARD'!HB65)","v":"n.d."},"n.d.","n.d.","n.d.","n.d.","n.d.","n.d.","n.d.","n.d.","n.d.","n.d.","n.d.","n.d.","n.d.","n.d.",{"$f":"IF('[1]MONE(M)CAPARD'!AS65=\"\",\"\",'[1]MONE(M)CAPARD'!AS65)","v":"n.d."},{"$f":"IF('[1]MONE(M)CAPARD'!AT65=\"\",\"\",'[1]MONE(M)CAPARD'!AT65)","v":"n.a."},{"$f":"IF('[1]MONE(M)CAPARD'!AU65=\"\",\"\",'[1]MONE(M)CAPARD'!AU65)","v":"n.d."},{"$f":"IF('[1]MONE(M)CAPARD'!AV65=\"\",\"\",'[1]MONE(M)CAPARD'!AV65)","v":"n.d."},{"$f":"IF('[1]MONE(M)CAPARD'!AW65=\"\",\"\",'[1]MONE(M)CAPARD'!AW65)","v":"n.a."},{"$f":"IF('[1]MONE(M)CAPARD'!AX65=\"\",\"\",'[1]MONE(M)CAPARD'!AX65)","v":"n.d."},{"$f":"IF('[1]MONE(M)CAPARD'!AY65=\"\",\"\",'[1]MONE(M)CAPARD'!AY65)","v":"n.a."},{"$f":"IF('[1]FISCAL(M)'!$K65=\"\",\"\",'[1]FISCAL(M)'!$K65)","v":"n.d."},{"$f":"IF('[1]FISCAL(M)'!$L65=\"\",\"\",'[1]FISCAL(M)'!$L65)","v":"n.d."},{"$f":"IF('[1]FISCAL(M)'!$AY65=\"\",\"\",'[1]FISCAL(M)'!$AY65)","v":"n.d."},{"$f":"IF('[1]FISCAL(M)'!$BI65=\"\",\"\",'[1]FISCAL(M)'!$BI65)","v":"n.d."},{"$f":"IF('[1]FISCAL(M)'!$BS65=\"\",\"\",'[1]FISCAL(M)'!$BS65)","v":"n.d."},{"$f":"IF('[1]FISCAL(M)'!$AZ65=\"\",\"\",'[1]FISCAL(M)'!$AZ65)","v":"n.d."},{"$f":"IF('[1]FISCAL(M)'!$BJ65=\"\",\"\",'[1]FISCAL(M)'!$BJ65)","v":"n.d."},{"$f":"IF('[1]FISCAL(M)'!$BT65=\"\",\"\",'[1]FISCAL(M)'!$BT65)","v":"n.d."},{"$f":"IF('[2]MONE(M)'!$AO65=\"\",\"\",'[2]MONE(M)'!$AO65)","v":"n.d."},{"$f":"IF('[3]MONE(M)'!$AO65=\"\",\"\",'[3]MONE(M)'!$AO65)","v":"n.d."},{"$f":"IF('[4]MONE(M)'!$AO65=\"\",\"\",'[4]MONE(M)'!$AO65)","v":"n.d."},{"$f":"IF('[5]MONE(M)'!$AO65=\"\",\"\",'[5]MONE(M)'!$AO65)","v":"n.d."},{"$f":"IF('[6]MONE(M)'!$AO65=\"\",\"\",'[6]MONE(M)'!$AO65)","v":"n.d."},{"$f":"IF('[7]MONE(M)'!$AO65=\"\",\"\",'[7]MONE(M)'!$AO65)","v":"n.d."},{"$f":"IF('[8]MONE(M)'!$AO65=\"\",\"\",'[8]MONE(M)'!$AO65)","v":"n.d."},"n.d.","n.d.","n.d.","n.d.","n.d.","n.d.","n.d.",{"$f":"IF('[1]FISCAL(M)'!$K65=\"\",\"\",'[1]FISCAL(M)'!$K65)","v":"n.d."},"n.d.","n.d.",{"$f":"IF('[1]FISCAL(M)'!$L65=\"\",\"\",'[1]FISCAL(M)'!$L65)","v":"n.d."},"n.d.","n.d.","n.d.","n.d.","n.d.","n.d.","n.d.","n.d.","n.d.","n.d.","n.d.","n.d.","n.d.","n.d.","n.d.","n.d.","n.d.","n.d."]
[1994,"septiembre","1994-septiembre",{"$f":"IF('[1]REAL IPC(M)'!$AL66=\"\",\"\",+'[1]REAL IPC(M)'!$AL66)","v":12.129317114912386},{"$f":"IF('[1]REAL IPC(M)'!$BE66=\"\",\"\",+'[1]REAL IPC(M)'!$BE66)","v":"n.d."},{"$f":"IF('[1]REAL IPC(M)'!$AM66=\"\",\"\",+'[1]REAL IPC(M)'!$AM66)","v":10.906022350178146},{"$f":"IF('[1]REAL IPC(M)'!$BI66=\"\",\"\",+'[1]REAL IPC(M)'!$BI66)","v":"n.d."},{"$f":"IF('[1]REAL IMAE(M)'!BJ66=\"\",\"\",'[1]REAL IMAE(M)'!BJ66)","v":"n.d."},{"$f":"IF('[1]REAL IMAE(M)'!BK66=\"\",\"\",'[1]REAL IMAE(M)'!BK66)","v":"n.d."},{"$f":"IF('[1]REAL IMAE(M)'!BN66=\"\",\"\",'[1]REAL IMAE(M)'!BN66)","v":"n.d."},{"$f":"IF('[1]REAL IMAE(M)'!BO66=\"\",\"\",'[1]REAL IMAE(M)'!BO66)","v":"n.d."},{"$f":"IF('[1]EXT RIN(M)'!$K66=\"\",\"\",'[1]EXT RIN(M)'!$K66)","v":"n.d."},"",{"$f":"IF('[1]EXT RIN(M)'!$L66=\"\",\"\",'[1]EXT RIN(M)'!$L66)","v":"n.d."},"",{"$f":"IF('[1]MONE(M)CARD'!EG66=\"\",\"\",'[1]MONE(M)CARD'!EG66)","v":"n.d."},{"$f":"IF('[1]MONE(M)CARD'!EK66=\"\",\"\",'[1]MONE(M)CARD'!EK66)","v":"n.d."},{"$f":"IF('[1]MONE(M)CARD'!EP66=\"\",\"\",'[1]MONE(M)CARD'!EP66)","v":"n.d."},{"$f":"IF('[1]MONE(M)CARD'!ES66=\"\",\"\",'[1]MONE(M)CARD'!ES66)","v":"n.d."},{"$f":"IF('[1]MONE(M)CARD'!EV66=\"\",\"\",'[1]MONE(M)CARD'!EV66)","v":"n.d."},{"$f":"IF('[1]MONE(M)CARD'!EZ66=\"\",\"\",'[1]MONE(M)CARD'!EZ66)","v":"n.d."},{"$f":"IF('[1]MONE(M)CAPARD'!FC66=\"\",\"\",'[1]MONE(M)CAPARD'!FC66)","v":"n.d."},{"$f":"IF('[1]MONE(M)CAPARD'!FG66=\"\",\"\",'[1]MONE(M)CAPARD'!FG66)","v":"n.d."},{"$f":"IF('[1]MONE(M)CAPARD'!FL66=\"\",\"\",'[1]MONE(M)CAPARD'!FL66)","v":"n.d."},{"$f":"IF('[1]MONE(M)CAPARD'!FO66=\"\",\"\",'[1]MONE(M)CAPARD'!FO66)","v":"n.d."},{"$f":"IF('[1]MONE(M)CAPARD'!FR66=\"\",\"\",'[1]MONE(M)CAPARD'!FR66)","v":"n.d."},{"$f":"IF('[1]MONE(M)CAPARD'!FV66=\"\",\"\",'[1]MONE(M)CAPARD'!FV66)","v":"n.d."},{"$f":"IF('[1]MONE(M)CARD'!FV66=\"\",\"\",'[1]MONE(M)CARD'!FV66)","v":""},{"$f":"IF('[1]MONE(M)CARD'!GD66=\"\",\"\",'[1]MONE(M)CARD'!GD66)","v":"n.d."},{"$f":"IF('[1]MONE(M)CARD'!GE66=\"\",\"\",'[1]MONE(M)CARD'!GE66)","v":"n.d."},"n.d.","n.d.","n.d.","n.d.","n.d.","n.d.","n.d.","n.d.",null,"n.d.","n.d.","n.d.","n.d.","n.d.",{"$f":"IF('[1]MONE(M)CAPARD'!GS66=\"\",\"\",'[1]MONE(M)CAPARD'!GS66)","v":"n.d."},{"$f":"IF('[1]MONE(M)CARD'!HA66=\"\",\"\",'[1]MONE(M)CAPARD'!HA66)","v":"n.d."},{"$f":"IF('[1]MONE(M)CAPARD'!HB66=\"\",\"\",'[1]MONE(M)CAPARD'!HB66)","v":"n.d."},"n.d.","n.d.","n.d.","n.d.","n.d.","n.d.","n.d.","n.d.","n.d.","n.d.","n.d.","n.d.","n.d.","n.d.",{"$f":"IF('[1]MONE(M)CAPARD'!AS66=\"\",\"\",'[1]MONE(M)CAPARD'!AS66)","v":"n.d."},{"$f":"IF('[1]MONE(M)CAPARD'!AT66=\"\",\"\",'[1]MONE(M)CAPARD'!AT66)","v":"n.a."},{"$f":"IF('[1]MONE(M)CAPARD'!AU66=\"\",\"\",'[1]MONE(M)CAPARD'!AU66)","v":"n.d."},{"$f":"IF('[1]MONE(M)CAPARD'!AV66=\"\",\"\",'[1]MONE(M)CAPARD'!AV66)","v":"n.d."},{"$f":"IF('[1]MONE(M)CAPARD'!AW66=\"\",\"\",'[1]MONE(M)CAPARD'!AW66)","v":"n.a."},{"$f":"IF('[1]MONE(M)CAPARD'!AX66=\"\",\"\",'[1]MONE(M)CAPARD'!AX66)","v":"n.d."},{"$f":"IF('[1]MONE(M)CAPARD'!AY66=\"\",\"\",'[1]MONE(M)CAPARD'!AY66)","v":"n.a."},{"$f":"IF('[1]FISCAL(M)'!$K66=\"\",\"\",'[1]FISCAL(M)'!$K66)","v":"n.d."},{"$f":"IF('[1]FISCAL(M)'!$L66=\"\",\"\",'[1]FISCAL(M)'!$L66)","v":"n.d."},{"$f":"IF('[1]FISCAL(M)'!$AY66=\"\",\"\",'[1]FISCAL(M)'!$AY66)","v":"n.d."},{"$f":"IF('[1]FISCAL(M)'!$BI66=\"\",\"\",'[1]FISCAL(M)'!$BI66)","v":"n.d."},{"$f":"IF('[1]FISCAL(M)'!$BS66=\"\",\"\",'[1]FISCAL(M)'!$BS66)","v":"n.d."},{"$f":"IF('[1]FISCAL(M)'!$AZ66=\"\",\"\",'[1]FISCAL(M)'!$AZ66)","v":"n.d."},{"$f":"IF('[1]FISCAL(M)'!$BJ66=\"\",\"\",'[1]FISCAL(M)'!$BJ66)","v":"n.d."},{"$f":"IF('[1]FISCAL(M)'!$BT66=\"\",\"\",'[1]FISCAL(M)'!$BT66)","v":"n.d."},{"$f":"IF('[2]MONE(M)'!$AO66=\"\",\"\",'[2]MONE(M)'!$AO66)","v":"n.d."},{"$f":"IF('[3]MONE(M)'!$AO66=\"\",\"\",'[3]MONE(M)'!$AO66)","v":"n.d."},{"$f":"IF('[4]MONE(M)'!$AO66=\"\",\"\",'[4]MONE(M)'!$AO66)","v":"n.d."},{"$f":"IF('[5]MONE(M)'!$AO66=\"\",\"\",'[5]MONE(M)'!$AO66)","v":"n.d."},{"$f":"IF('[6]MONE(M)'!$AO66=\"\",\"\",'[6]MONE(M)'!$AO66)","v":"n.d."},{"$f":"IF('[7]MONE(M)'!$AO66=\"\",\"\",'[7]MONE(M)'!$AO66)","v":"n.d."},{"$f":"IF('[8]MONE(M)'!$AO66=\"\",\"\",'[8]MONE(M)'!$AO66)","v":"n.d."},"n.d.","n.d.","n.d.","n.d.","n.d.","n.d.","n.d.",{"$f":"IF('[1]FISCAL(M)'!$K66=\"\",\"\",'[1]FISCAL(M)'!$K66)","v":"n.d."},"n.d.","n.d.",{"$f":"IF('[1]FISCAL(M)'!$L66=\"\",\"\",'[1]FISCAL(M)'!$L66)","v":"n.d."},"n.d.","n.d.","n.d.","n.d.","n.d.","n.d.","n.d.","n.d.","n.d.","n.d.","n.d.","n.d.","n.d.","n.d.","n.d.","n.d.","n.d.","n.d."]
[1994,"octubre","1994-octubre",{"$f":"IF('[1]REAL IPC(M)'!$AL67=\"\",\"\",+'[1]REAL IPC(M)'!$AL67)","v":12.755897317609932},{"$f":"IF('[1]REAL IPC(M)'!$BE67=\"\",\"\",+'[1]REAL IPC(M)'!$BE67)","v":"n.d."},{"$f":"IF('[1]REAL IPC(M)'!$AM67=\"\",\"\",+'[1]REAL IPC(M)'!$AM67)","v":11.364244265472067},{"$f":"IF('[1]REAL IPC(M)'!$BI67=\"\",\"\",+'[1]REAL IPC(M)'!$BI67)","v":"n.d."},{"$f":"IF('[1]REAL IMAE(M)'!BJ67=\"\",\"\",'[1]REAL IMAE(M)'!BJ67)","v":"n.d."},{"$f":"IF('[1]REAL IMAE(M)'!BK67=\"\",\"\",'[1]REAL IMAE(M)'!BK67)","v":"n.d."},{"$f":"IF('[1]REAL IMAE(M)'!BN67=\"\",\"\",'[1]REAL IMAE(M)'!BN67)","v":"n.d."},{"$f":"IF('[1]REAL IMAE(M)'!BO67=\"\",\"\",'[1]REAL IMAE(M)'!BO67)","v":"n.d."},{"$f":"IF('[1]EXT RIN(M)'!$K67=\"\",\"\",'[1]EXT RIN(M)'!$K67)","v":"n.d."},"",{"$f":"IF('[1]EXT RIN(M)'!$L67=\"\",\"\",'[1]EXT RIN(M)'!$L67)","v":"n.d."},"",{"$f":"IF('[1]MONE(M)CARD'!EG67=\"\",\"\",'[1]MONE(M)CARD'!EG67)","v":"n.d."},{"$f":"IF('[1]MONE(M)CARD'!EK67=\"\",\"\",'[1]MONE(M)CARD'!EK67)","v":"n.d."},{"$f":"IF('[1]MONE(M)CARD'!EP67=\"\",\"\",'[1]MONE(M)CARD'!EP67)","v":"n.d."},{"$f":"IF('[1]MONE(M)CARD'!ES67=\"\",\"\",'[1]MONE(M)CARD'!ES67)","v":"n.d."},{"$f":"IF('[1]MONE(M)CARD'!EV67=\"\",\"\",'[1]MONE(M)CARD'!EV67)","v":"n.d."},{"$f":"IF('[1]MONE(M)CARD'!EZ67=\"\",\"\",'[1]MONE(M)CARD'!EZ67)","v":"n.d."},{"$f":"IF('[1]MONE(M)CAPARD'!FC67=\"\",\"\",'[1]MONE(M)CAPARD'!FC67)","v":"n.d."},{"$f":"IF('[1]MONE(M)CAPARD'!FG67=\"\",\"\",'[1]MONE(M)CAPARD'!FG67)","v":"n.d."},{"$f":"IF('[1]MONE(M)CAPARD'!FL67=\"\",\"\",'[1]MONE(M)CAPARD'!FL67)","v":"n.d."},{"$f":"IF('[1]MONE(M)CAPARD'!FO67=\"\",\"\",'[1]MONE(M)CAPARD'!FO67)","v":"n.d."},{"$f":"IF('[1]MONE(M)CAPARD'!FR67=\"\",\"\",'[1]MONE(M)CAPARD'!FR67)","v":"n.d."},{"$f":"IF('[1]MONE(M)CAPARD'!FV67=\"\",\"\",'[1]MONE(M)CAPARD'!FV67)","v":"n.d."},{"$f":"IF('[1]MONE(M)CARD'!FV67=\"\",\"\",'[1]MONE(M)CARD'!FV67)","v":""},{"$f":"IF('[1]MONE(M)CARD'!GD67=\"\",\"\",'[1]MONE(M)CARD'!GD67)","v":"n.d."},{"$f":"IF('[1]MONE(M)CARD'!GE67=\"\",\"\",'[1]MONE(M)CARD'!GE67)","v":"n.d."},"n.d.","n.d.","n.d.","n.d.","n.d.","n.d.","n.d.","n.d.",null,"n.d.","n.d.","n.d.","n.d.","n.d.",{"$f":"IF('[1]MONE(M)CAPARD'!GS67=\"\",\"\",'[1]MONE(M)CAPARD'!GS67)","v":"n.d."},{"$f":"IF('[1]MONE(M)CARD'!HA67=\"\",\"\",'[1]MONE(M)CAPARD'!HA67)","v":"n.d."},{"$f":"IF('[1]MONE(M)CAPARD'!HB67=\"\",\"\",'[1]MONE(M)CAPARD'!HB67)","v":"n.d."},"n.d.","n.d.","n.d.","n.d.","n.d.","n.d.","n.d.","n.d.","n.d.","n.d.","n.d.","n.d.","n.d.","n.d.",{"$f":"IF('[1]MONE(M)CAPARD'!AS67=\"\",\"\",'[1]MONE(M)CAPARD'!AS67)","v":"n.d."},{"$f":"IF('[1]MONE(M)CAPARD'!AT67=\"\",\"\",'[1]MONE(M)CAPARD'!AT67)","v":"n.a."},{"$f":"IF('[1]MONE(M)CAPARD'!AU67=\"\",\"\",'[1]MONE(M)CAPARD'!AU67)","v":"n.d."},{"$f":"IF('[1]MONE(M)CAPARD'!AV67=\"\",\"\",'[1]MONE(M)CAPARD'!AV67)","v":"n.d."},{"$f":"IF('[1]MONE(M)CAPARD'!AW67=\"\",\"\",'[1]MONE(M)CAPARD'!AW67)","v":"n.a."},{"$f":"IF('[1]MONE(M)CAPARD'!AX67=\"\",\"\",'[1]MONE(M)CAPARD'!AX67)","v":"n.d."},{"$f":"IF('[1]MONE(M)CAPARD'!AY67=\"\",\"\",'[1]MONE(M)CAPARD'!AY67)","v":"n.a."},{"$f":"IF('[1]FISCAL(M)'!$K67=\"\",\"\",'[1]FISCAL(M)'!$K67)","v":"n.d."},{"$f":"IF('[1]FISCAL(M)'!$L67=\"\",\"\",'[1]FISCAL(M)'!$L67)","v":"n.d."},{"$f":"IF('[1]FISCAL(M)'!$AY67=\"\",\"\",'[1]FISCAL(M)'!$AY67)","v":"n.d."},{"$f":"IF('[1]FISCAL(M)'!$BI67=\"\",\"\",'[1]FISCAL(M)'!$BI67)","v":"n.d."},{"$f":"IF('[1]FISCAL(M)'!$BS67=\"\",\"\",'[1]FISCAL(M)'!$BS67)","v":"n.d."},{"$f":"IF('[1]FISCAL(M)'!$AZ67=\"\",\"\",'[1]FISCAL(M)'!$AZ67)","v":"n.d."},{"$f":"IF('[1]FISCAL(M)'!$BJ67=\"\",\"\",'[1]FISCAL(M)'!$BJ67)","v":"n.d."},{"$f":"IF('[1]FISCAL(M)'!$BT67=\"\",\"\",'[1]FISCAL(M)'!$BT67)","v":"n.d."},{"$f":"IF('[2]MONE(M)'!$AO67=\"\",\"\",'[2]MONE(M)'!$AO67)","v":"n.d."},{"$f":"IF('[3]MONE(M)'!$AO67=\"\",\"\",'[3]MONE(M)'!$AO67)","v":"n.d."},{"$f":"IF('[4]MONE(M)'!$AO67=\"\",\"\",'[4]MONE(M)'!$AO67)","v":"n.d."},{"$f":"IF('[5]MONE(M)'!$AO67=\"\",\"\",'[5]MONE(M)'!$AO67)","v":"n.d."},{"$f":"IF('[6]MONE(M)'!$AO67=\"\",\"\",'[6]MONE(M)'!$AO67)","v":"n.d."},{"$f":"IF('[7]MONE(M)'!$AO67=\"\",\"\",'[7]MONE(M)'!$AO67)","v":"n.d."},{"$f":"IF('[8]MONE(M)'!$AO67=\"\",\"\",'[8]MONE(M)'!$AO67)","v":"n.d."},"n.d.","n.d.","n.d.","n.d.","n.d.","n.d.","n.d.",{"$f":"IF('[1]FISCAL(M)'!$K67=\"\",\"\",'[1]FISCAL(M)'!$K67)","v":"n.d."},"n.d.","n.d.",{"$f":"IF('[1]FISCAL(M)'!$L67=\"\",\"\",'[1]FISCAL(M)'!$L67)","v":"n.d."},"n.d.","n.d.","n.d.","n.d.","n.d.","n.d.","n.d.","n.d.","n.d.","n.d.","n.d.","n.d.","n.d.","n.d.","n.d.","n.d.","n.d.","n.d."]
[1994,"noviembre","1994-noviembre",{"$f":"IF('[1]REAL IPC(M)'!$AL68=\"\",\"\",+'[1]REAL IPC(M)'!$AL68)","v":13.337594509435725},{"$f":"IF('[1]REAL IPC(M)'!$BE68=\"\",\"\",+'[1]REAL IPC(M)'!$BE68)","v":"n.d."},{"$f":"IF('[1]REAL IPC(M)'!$AM68=\"\",\"\",+'[1]REAL IPC(M)'!$AM68)","v":11.930970396754525},{"$f":"IF('[1]REAL IPC(M)'!$BI68=\"\",\"\",+'[1]REAL IPC(M)'!$BI68)","v":"n.d."},{"$f":"IF('[1]REAL IMAE(M)'!BJ68=\"\",\"\",'[1]REAL IMAE(M)'!BJ68)","v":"n.d."},{"$f":"IF('[1]REAL IMAE(M)'!BK68=\"\",\"\",'[1]REAL IMAE(M)'!BK68)","v":"n.d."},{"$f":"IF('[1]REAL IMAE(M)'!BN68=\"\",\"\",'[1]REAL IMAE(M)'!BN68)","v":"n.d."},{"$f":"IF('[1]REAL IMAE(M)'!BO68=\"\",\"\",'[1]REAL IMAE(M)'!BO68)","v":"n.d."},{"$f":"IF('[1]EXT RIN(M)'!$K68=\"\",\"\",'[1]EXT RIN(M)'!$K68)","v":"n.d."},"",{"$f":"IF('[1]EXT RIN(M)'!$L68=\"\",\"\",'[1]EXT RIN(M)'!$L68)","v":"n.d."},"",{"$f":"IF('[1]MONE(M)CARD'!EG68=\"\",\"\",'[1]MONE(M)CARD'!EG68)","v":"n.d."},{"$f":"IF('[1]MONE(M)CARD'!EK68=\"\",\"\",'[1]MONE(M)CARD'!EK68)","v":"n.d."},{"$f":"IF('[1]MONE(M)CARD'!EP68=\"\",\"\",'[1]MONE(M)CARD'!EP68)","v":"n.d."},{"$f":"IF('[1]MONE(M)CARD'!ES68=\"\",\"\",'[1]MONE(M)CARD'!ES68)","v":"n.d."},{"$f":"IF('[1]MONE(M)CARD'!EV68=\"\",\"\",'[1]MONE(M)CARD'!EV68)","v":"n.d."},{"$f":"IF('[1]MONE(M)CARD'!EZ68=\"\",\"\",'[1]MONE(M)CARD'!EZ68)","v":"n.d."},{"$f":"IF('[1]MONE(M)CAPARD'!FC68=\"\",\"\",'[1]MONE(M)CAPARD'!FC68)","v":"n.d."},{"$f":"IF('[1]MONE(M)CAPARD'!FG68=\"\",\"\",'[1]MONE(M)CAPARD'!FG68)","v":"n.d."},{"$f":"IF('[1]MONE(M)CAPARD'!FL68=\"\",\"\",'[1]MONE(M)CAPARD'!FL68)","v":"n.d."},{"$f":"IF('[1]MONE(M)CAPARD'!FO68=\"\",\"\",'[1]MONE(M)CAPARD'!FO68)","v":"n.d."},{"$f":"IF('[1]MONE(M)CAPARD'!FR68=\"\",\"\",'[1]MONE(M)CAPARD'!FR68)","v":"n.d."},{"$f":"IF('[1]MONE(M)CAPARD'!FV68=\"\",\"\",'[1]MONE(M)CAPARD'!FV68)","v":"n.d."},{"$f":"IF('[1]MONE(M)CARD'!FV68=\"\",\"\",'[1]MONE(M)CARD'!FV68)","v":""},{"$f":"IF('[1]MONE(M)CARD'!GD68=\"\",\"\",'[1]MONE(M)CARD'!GD68)","v":"n.d."},{"$f":"IF('[1]MONE(M)CARD'!GE68=\"\",\"\",'[1]MONE(M)CARD'!GE68)","v":"n.d."},"n.d.","n.d.","n.d.","n.d.","n.d.","n.d.","n.d.","n.d.",null,"n.d.","n.d.","n.d.","n.d.","n.d.",{"$f":"IF('[1]MONE(M)CAPARD'!GS68=\"\",\"\",'[1]MONE(M)CAPARD'!GS68)","v":"n.d."},{"$f":"IF('[1]MONE(M)CARD'!HA68=\"\",\"\",'[1]MONE(M)CAPARD'!HA68)","v":"n.d."},{"$f":"IF('[1]MONE(M)CAPARD'!HB68=\"\",\"\",'[1]MONE(M)CAPARD'!HB68)","v":"n.d."},"n.d.","n.d.","n.d.","n.d.","n.d.","n.d.","n.d.","n.d.","n.d.","n.d.","n.d.","n.d.","n.d.","n.d.",{"$f":"IF('[1]MONE(M)CAPARD'!AS68=\"\",\"\",'[1]MONE(M)CAPARD'!AS68)","v":"n.d."},{"$f":"IF('[1]MONE(M)CAPARD'!AT68=\"\",\"\",'[1]MONE(M)CAPARD'!AT68)","v":"n.a."},{"$f":"IF('[1]MONE(M)CAPARD'!AU68=\"\",\"\",'[1]MONE(M)CAPARD'!AU68)","v":"n.d."},{"$f":"IF('[1]MONE(M)CAPARD'!AV68=\"\",\"\",'[1]MONE(M)CAPARD'!AV68)","v":"n.d."},{"$f":"IF('[1]MONE(M)CAPARD'!AW68=\"\",\"\",'[1]MONE(M)CAPARD'!AW68)","v":"n.a."},{"$f":"IF('[1]MONE(M)CAPARD'!AX68=\"\",\"\",'[1]MONE(M)CAPARD'!AX68)","v":"n.d."},{"$f":"IF('[1]MONE(M)CAPARD'!AY68=\"\",\"\",'[1]MONE(M)CAPARD'!AY68)","v":"n.a."},{"$f":"IF('[1]FISCAL(M)'!$K68=\"\",\"\",'[1]FISCAL(M)'!$K68)","v":"n.d."},{"$f":"IF('[1]FISCAL(M)'!$L68=\"\",\"\",'[1]FISCAL(M)'!$L68)","v":"n.d."},{"$f":"IF('[1]FISCAL(M)'!$AY68=\"\",\"\",'[1]FISCAL(M)'!$AY68)","v":"n.d."},{"$f":"IF('[1]FISCAL(M)'!$BI68=\"\",\"\",'[1]FISCAL(M)'!$BI68)","v":"n.d."},{"$f":"IF('[1]FISCAL(M)'!$BS68=\"\",\"\",'[1]FISCAL(M)'!$BS68)","v":"n.d."},{"$f":"IF('[1]FISCAL(M)'!$AZ68=\"\",\"\",'[1]FISCAL(M)'!$AZ68)","v":"n.d."},{"$f":"IF('[1]FISCAL(M)'!$BJ68=\"\",\"\",'[1]FISCAL(M)'!$BJ68)","v":"n.d."},{"$f":"IF('[1]FISCAL(M)'!$BT68=\"\",\"\",'[1]FISCAL(M)'!$BT68)","v":"n.d."},{"$f":"IF('[2]MONE(M)'!$AO68=\"\",\"\",'[2]MONE(M)'!$AO68)","v":"n.d."},{"$f":"IF('[3]MONE(M)'!$AO68=\"\",\"\",'[3]MONE(M)'!$AO68)","v":"n.d."},{"$f":"IF('[4]MONE(M)'!$AO68=\"\",\"\",'[4]MONE(M)'!$AO68)","v":"n.d."},{"$f":"IF('[5]MONE(M)'!$AO68=\"\",\"\",'[5]MONE(M)'!$AO68)","v":"n.d."},{"$f":"IF('[6]MONE(M)'!$AO68=\"\",\"\",'[6]MONE(M)'!$AO68)","v":"n.d."},{"$f":"IF('[7]MONE(M)'!$AO68=\"\",\"\",'[7]MONE(M)'!$AO68)","v":"n.d."},{"$f":"IF('[8]MONE(M)'!$AO68=\"\",\"\",'[8]MONE(M)'!$AO68)","v":"n.d."},"n.d.","n.d.","n.d.","n.d.","n.d.","n.d.","n.d.",{"$f":"IF('[1]FISCAL(M)'!$K68=\"\",\"\",'[1]FISCAL(M)'!$K68)","v":"n.d."},"n.d.","n.d.",{"$f":"IF('[1]FISCAL(M)'!$L68=\"\",\"\",'[1]FISCAL(M)'!$L68)","v":"n.d."},"n.d.","n.d.","n.d.","n.d.","n.d.","n.d.","n.d.","n.d.","n.d.","n.d.","n.d.","n.d.","n.d.","n.d.","n.d.","n.d.","n.d.","n.d."]
[1994,"diciembre","1994-diciembre",{"$f":"IF('[1]REAL IPC(M)'!$AL69=\"\",\"\",+'[1]REAL IPC(M)'!$AL69)","v":14.228419567914452},{"$f":"IF('[1]REAL IPC(M)'!$BE69=\"\",\"\",+'[1]REAL IPC(M)'!$BE69)","v":"n.d."},{"$f":"IF('[1]REAL IPC(M)'!$AM69=\"\",\"\",+'[1]REAL IPC(M)'!$AM69)","v":12.714093287835482},{"$f":"IF('[1]REAL IPC(M)'!$BI69=\"\",\"\",+'[1]REAL IPC(M)'!$BI69)","v":"n.d."},{"$f":"IF('[1]REAL IMAE(M)'!BJ69=\"\",\"\",'[1]REAL IMAE(M)'!BJ69)","v":"n.d."},{"$f":"IF('[1]REAL IMAE(M)'!BK69=\"\",\"\",'[1]REAL IMAE(M)'!BK69)","v":"n.d."},{"$f":"IF('[1]REAL IMAE(M)'!BN69=\"\",\"\",'[1]REAL IMAE(M)'!BN69)","v":"n.d."},{"$f":"IF('[1]REAL IMAE(M)'!BO69=\"\",\"\",'[1]REAL IMAE(M)'!BO69)","v":"n.d."},{"$f":"IF('[1]EXT RIN(M)'!$K69=\"\",\"\",'[1]EXT RIN(M)'!$K69)","v":"n.d."},"n.d.",{"$f":"IF('[1]EXT RIN(M)'!$L69=\"\",\"\",'[1]EXT RIN(M)'!$L69)","v":"n.d."},"n.d.",{"$f":"IF('[1]MONE(M)CARD'!EG69=\"\",\"\",'[1]MONE(M)CARD'!EG69)","v":"n.d."},{"$f":"IF('[1]MONE(M)CARD'!EK69=\"\",\"\",'[1]MONE(M)CARD'!EK69)","v":"n.d."},{"$f":"IF('[1]MONE(M)CARD'!EP69=\"\",\"\",'[1]MONE(M)CARD'!EP69)","v":"n.d."},{"$f":"IF('[1]MONE(M)CARD'!ES69=\"\",\"\",'[1]MONE(M)CARD'!ES69)","v":"n.d."},{"$f":"IF('[1]MONE(M)CARD'!EV69=\"\",\"\",'[1]MONE(M)CARD'!EV69)","v":"n.d."},{"$f":"IF('[1]MONE(M)CARD'!EZ69=\"\",\"\",'[1]MONE(M)CARD'!EZ69)","v":"n.d."},{"$f":"IF('[1]MONE(M)CAPARD'!FC69=\"\",\"\",'[1]MONE(M)CAPARD'!FC69)","v":"n.d."},{"$f":"IF('[1]MONE(M)CAPARD'!FG69=\"\",\"\",'[1]MONE(M)CAPARD'!FG69)","v":"n.d."},{"$f":"IF('[1]MONE(M)CAPARD'!FL69=\"\",\"\",'[1]MONE(M)CAPARD'!FL69)","v":"n.d."},{"$f":"IF('[1]MONE(M)CAPARD'!FO69=\"\",\"\",'[1]MONE(M)CAPARD'!FO69)","v":"n.d."},{"$f":"IF('[1]MONE(M)CAPARD'!FR69=\"\",\"\",'[1]MONE(M)CAPARD'!FR69)","v":"n.d."},{"$f":"IF('[1]MONE(M)CAPARD'!FV69=\"\",\"\",'[1]MONE(M)CAPARD'!FV69)","v":"n.d."},{"$f":"IF('[1]MONE(M)CARD'!FV69=\"\",\"\",'[1]MONE(M)CARD'!FV69)","v":""},{"$f":"IF('[1]MONE(M)CARD'!GD69=\"\",\"\",'[1]MONE(M)CARD'!GD69)","v":"n.d."},{"$f":"IF('[1]MONE(M)CARD'!GE69=\"\",\"\",'[1]MONE(M)CARD'!GE69)","v":"n.d."},"n.d.","n.d.","n.d.","n.d.","n.d.","n.d.","n.d.","n.d.",null,"n.d.","n.d.","n.d.","n.d.","n.d.",{"$f":"IF('[1]MONE(M)CAPARD'!GS69=\"\",\"\",'[1]MONE(M)CAPARD'!GS69)","v":"n.d."},{"$f":"IF('[1]MONE(M)CARD'!HA69=\"\",\"\",'[1]MONE(M)CAPARD'!HA69)","v":"n.d."},{"$f":"IF('[1]MONE(M)CAPARD'!HB69=\"\",\"\",'[1]MONE(M)CAPARD'!HB69)","v":"n.d."},"n.d.","n.d.","n.d.","n.d.","n.d.","n.d.","n.d.","n.d.","n.d.","n.d.","n.d.","n.d.","n.d.","n.d.",{"$f":"IF('[1]MONE(M)CAPARD'!AS69=\"\",\"\",'[1]MONE(M)CAPARD'!AS69)","v":"n.d."},{"$f":"IF('[1]MONE(M)CAPARD'!AT69=\"\",\"\",'[1]MONE(M)CAPARD'!AT69)","v":"n.a."},{"$f":"IF('[1]MONE(M)CAPARD'!AU69=\"\",\"\",'[1]MONE(M)CAPARD'!AU69)","v":"n.d."},{"$f":"IF('[1]MONE(M)CAPARD'!AV69=\"\",\"\",'[1]MONE(M)CAPARD'!AV69)","v":"n.d."},{"$f":"IF('[1]MONE(M)CAPARD'!AW69=\"\",\"\",'[1]MONE(M)CAPARD'!AW69)","v":"n.a."},{"$f":"IF('[1]MONE(M)CAPARD'!AX69=\"\",\"\",'[1]MONE(M)CAPARD'!AX69)","v":"n.d."},{"$f":"IF('[1]MONE(M)CAPARD'!AY69=\"\",\"\",'[1]MONE(M)CAPARD'!AY69)","v":"n.a."},{"$f":"IF('[1]FISCAL(M)'!$K69=\"\",\"\",'[1]FISCAL(M)'!$K69)","v":"n.d."},{"$f":"IF('[1]FISCAL(M)'!$L69=\"\",\"\",'[1]FISCAL(M)'!$L69)","v":"n.d."},{"$f":"IF('[1]FISCAL(M)'!$AY69=\"\",\"\",'[1]FISCAL(M)'!$AY69)","v":"n.d."},{"$f":"IF('[1]FISCAL(M)'!$BI69=\"\",\"\",'[1]FISCAL(M)'!$BI69)","v":"n.d."},{"$f":"IF('[1]FISCAL(M)'!$BS69=\"\",\"\",'[1]FISCAL(M)'!$BS69)","v":"n.d."},{"$f":"IF('[1]FISCAL(M)'!$AZ69=\"\",\"\",'[1]FISCAL(M)'!$AZ69)","v":"n.d."},{"$f":"IF('[1]FISCAL(M)'!$BJ69=\"\",\"\",'[1]FISCAL(M)'!$BJ69)","v":"n.d."},{"$f":"IF('[1]FISCAL(M)'!$BT69=\"\",\"\",'[1]FISCAL(M)'!$BT69)","v":"n.d."},{"$f":"IF('[2]MONE(M)'!$AO69=\"\",\"\",'[2]MONE(M)'!$AO69)","v":"n.d."},{"$f":"IF('[3]MONE(M)'!$AO69=\"\",\"\",'[3]MONE(M)'!$AO69)","v":"n.d."},{"$f":"IF('[4]MONE(M)'!$AO69=\"\",\"\",'[4]MONE(M)'!$AO69)","v":"n.d."},{"$f":"IF('[5]MONE(M)'!$AO69=\"\",\"\",'[5]MONE(M)'!$AO69)","v":"n.d."},{"$f":"IF('[6]MONE(M)'!$AO69=\"\",\"\",'[6]MONE(M)'!$AO69)","v":"n.d."},{"$f":"IF('[7]MONE(M)'!$AO69=\"\",\"\",'[7]MONE(M)'!$AO69)","v":"n.d."},{"$f":"IF('[8]MONE(M)'!$AO69=\"\",\"\",'[8]MONE(M)'!$AO69)","v":"n.d."},"n.d.","n.d.","n.d.","n.d.","n.d.","n.d.","n.d.",{"$f":"IF('[1]FISCAL(M)'!$K69=\"\",\"\",'[1]FISCAL(M)'!$K69)","v":"n.d."},"n.d.","n.d.",{"$f":"IF('[1]FISCAL(M)'!$L69=\"\",\"\",'[1]FISCAL(M)'!$L69)","v":"n.d."},"n.d.","n.d.","n.d.","n.d.","n.d.","n.d.","n.d.","n.d.","n.d.","n.d.","n.d.","n.d.","n.d.","n.d.","n.d.","n.d.","n.d.","n.d."]
[1995,"enero","1995-enero",{"$f":"IF('[1]REAL IPC(M)'!$AL70=\"\",\"\",+'[1]REAL IPC(M)'!$AL70)","v":14.33053578726069},{"$f":"IF('[1]REAL IPC(M)'!$BE70=\"\",\"\",+'[1]REAL IPC(M)'!$BE70)","v":14.789026359430203},{"$f":"IF('[1]REAL IPC(M)'!$AM70=\"\",\"\",+'[1]REAL IPC(M)'!$AM70)","v":12.840261163555278},{"$f":"IF('[1]REAL IPC(M)'!$BI70=\"\",\"\",+'[1]REAL IPC(M)'!$BI70)","v":13.306071969026068},{"$f":"IF('[1]REAL IMAE(M)'!BJ70=\"\",\"\",'[1]REAL IMAE(M)'!BJ70)","v":"n.d."},{"$f":"IF('[1]REAL IMAE(M)'!BK70=\"\",\"\",'[1]REAL IMAE(M)'!BK70)","v":"n.d."},{"$f":"IF('[1]REAL IMAE(M)'!BN70=\"\",\"\",'[1]REAL IMAE(M)'!BN70)","v":"n.d."},{"$f":"IF('[1]REAL IMAE(M)'!BO70=\"\",\"\",'[1]REAL IMAE(M)'!BO70)","v":"n.d."},{"$f":"IF('[1]EXT RIN(M)'!$K70=\"\",\"\",'[1]EXT RIN(M)'!$K70)","v":"n.d."},"",{"$f":"IF('[1]EXT RIN(M)'!$L70=\"\",\"\",'[1]EXT RIN(M)'!$L70)","v":"n.d."},"",{"$f":"IF('[1]MONE(M)CARD'!EG70=\"\",\"\",'[1]MONE(M)CARD'!EG70)","v":"n.d."},{"$f":"IF('[1]MONE(M)CARD'!EK70=\"\",\"\",'[1]MONE(M)CARD'!EK70)","v":"n.d."},{"$f":"IF('[1]MONE(M)CARD'!EP70=\"\",\"\",'[1]MONE(M)CARD'!EP70)","v":"n.d."},{"$f":"IF('[1]MONE(M)CARD'!ES70=\"\",\"\",'[1]MONE(M)CARD'!ES70)","v":"n.d."},{"$f":"IF('[1]MONE(M)CARD'!EV70=\"\",\"\",'[1]MONE(M)CARD'!EV70)","v":"n.d."},{"$f":"IF('[1]MONE(M)CARD'!EZ70=\"\",\"\",'[1]MONE(M)CARD'!EZ70)","v":"n.d."},{"$f":"IF('[1]MONE(M)CAPARD'!FC70=\"\",\"\",'[1]MONE(M)CAPARD'!FC70)","v":"n.d."},{"$f":"IF('[1]MONE(M)CAPARD'!FG70=\"\",\"\",'[1]MONE(M)CAPARD'!FG70)","v":"n.d."},{"$f":"IF('[1]MONE(M)CAPARD'!FL70=\"\",\"\",'[1]MONE(M)CAPARD'!FL70)","v":"n.d."},{"$f":"IF('[1]MONE(M)CAPARD'!FO70=\"\",\"\",'[1]MONE(M)CAPARD'!FO70)","v":"n.d."},{"$f":"IF('[1]MONE(M)CAPARD'!FR70=\"\",\"\",'[1]MONE(M)CAPARD'!FR70)","v":"n.d."},{"$f":"IF('[1]MONE(M)CAPARD'!FV70=\"\",\"\",'[1]MONE(M)CAPARD'!FV70)","v":"n.d."},{"$f":"IF('[1]MONE(M)CARD'!FV70=\"\",\"\",'[1]MONE(M)CARD'!FV70)","v":""},{"$f":"IF('[1]MONE(M)CARD'!GD70=\"\",\"\",'[1]MONE(M)CARD'!GD70)","v":"n.d."},{"$f":"IF('[1]MONE(M)CARD'!GE70=\"\",\"\",'[1]MONE(M)CARD'!GE70)","v":"n.d."},"n.d.","n.d.","n.d.","n.d.","n.d.","n.d.","n.d.","n.d.",null,"n.d.","n.d.","n.d.","n.d.","n.d.",{"$f":"IF('[1]MONE(M)CAPARD'!GS70=\"\",\"\",'[1]MONE(M)CAPARD'!GS70)","v":"n.d."},{"$f":"IF('[1]MONE(M)CARD'!HA70=\"\",\"\",'[1]MONE(M)CAPARD'!HA70)","v":"n.d."},{"$f":"IF('[1]MONE(M)CAPARD'!HB70=\"\",\"\",'[1]MONE(M)CAPARD'!HB70)","v":"n.d."},"n.d.","n.d.","n.d.","n.d.","n.d.","n.d.","n.d.","n.d.","n.d.","n.d.","n.d.","n.d.","n.d.","n.d.",{"$f":"IF('[1]MONE(M)CAPARD'!AS70=\"\",\"\",'[1]MONE(M)CAPARD'!AS70)","v":"n.d."},{"$f":"IF('[1]MONE(M)CAPARD'!AT70=\"\",\"\",'[1]MONE(M)CAPARD'!AT70)","v":"n.a."},{"$f":"IF('[1]MONE(M)CAPARD'!AU70=\"\",\"\",'[1]MONE(M)CAPARD'!AU70)","v":"n.d."},{"$f":"IF('[1]MONE(M)CAPARD'!AV70=\"\",\"\",'[1]MONE(M)CAPARD'!AV70)","v":"n.d."},{"$f":"IF('[1]MONE(M)CAPARD'!AW70=\"\",\"\",'[1]MONE(M)CAPARD'!AW70)","v":"n.a."},{"$f":"IF('[1]MONE(M)CAPARD'!AX70=\"\",\"\",'[1]MONE(M)CAPARD'!AX70)","v":"n.d."},{"$f":"IF('[1]MONE(M)CAPARD'!AY70=\"\",\"\",'[1]MONE(M)CAPARD'!AY70)","v":"n.a."},{"$f":"IF('[1]FISCAL(M)'!$K70=\"\",\"\",'[1]FISCAL(M)'!$K70)","v":"n.d."},{"$f":"IF('[1]FISCAL(M)'!$L70=\"\",\"\",'[1]FISCAL(M)'!$L70)","v":"n.d."},{"$f":"IF('[1]FISCAL(M)'!$AY70=\"\",\"\",'[1]FISCAL(M)'!$AY70)","v":"n.d."},{"$f":"IF('[1]FISCAL(M)'!$BI70=\"\",\"\",'[1]FISCAL(M)'!$BI70)","v":"n.d."},{"$f":"IF('[1]FISCAL(M)'!$BS70=\"\",\"\",'[1]FISCAL(M)'!$BS70)","v":"n.d."},{"$f":"IF('[1]FISCAL(M)'!$AZ70=\"\",\"\",'[1]FISCAL(M)'!$AZ70)","v":"n.d."},{"$f":"IF('[1]FISCAL(M)'!$BJ70=\"\",\"\",'[1]FISCAL(M)'!$BJ70)","v":"n.d."},{"$f":"IF('[1]FISCAL(M)'!$BT70=\"\",\"\",'[1]FISCAL(M)'!$BT70)","v":"n.d."},{"$f":"IF('[2]MONE(M)'!$AO70=\"\",\"\",'[2]MONE(M)'!$AO70)","v":"n.d."},{"$f":"IF('[3]MONE(M)'!$AO70=\"\",\"\",'[3]MONE(M)'!$AO70)","v":"n.d."},{"$f":"IF('[4]MONE(M)'!$AO70=\"\",\"\",'[4]MONE(M)'!$AO70)","v":"n.d."},{"$f":"IF('[5]MONE(M)'!$AO70=\"\",\"\",'[5]MONE(M)'!$AO70)","v":"n.d."},{"$f":"IF('[6]MONE(M)'!$AO70=\"\",\"\",'[6]MONE(M)'!$AO70)","v":"n.d."},{"$f":"IF('[7]MONE(M)'!$AO70=\"\",\"\",'[7]MONE(M)'!$AO70)","v":"n.d."},{"$f":"IF('[8]MONE(M)'!$AO70=\"\",\"\",'[8]MONE(M)'!$AO70)","v":"n.d."},"n.d.","n.d.","n.d.","n.d.","n.d.","n.d.","n.d.",{"$f":"IF('[1]FISCAL(M)'!$K70=\"\",\"\",'[1]FISCAL(M)'!$K70)","v":"n.d."},"n.d.","n.d.",{"$f":"IF('[1]FISCAL(M)'!$L70=\"\",\"\",'[1]FISCAL(M)'!$L70)","v":"n.d."},"n.d.","n.d.","n.d.","n.d.","n.d.","n.d.","n.d.","n.d.","n.d.","n.d.","n.d.","n.d.","n.d.","n.d.","n.d.","n.d.","n.d.","n.d."]
[1995,"febrero","1995-febrero",{"$f":"IF('[1]REAL IPC(M)'!$AL71=\"\",\"\",+'[1]REAL IPC(M)'!$AL71)","v":14.792831909467852},{"$f":"IF('[1]REAL IPC(M)'!$BE71=\"\",\"\",+'[1]REAL IPC(M)'!$BE71)","v":14.606201959978993},{"$f":"IF('[1]REAL IPC(M)'!$AM71=\"\",\"\",+'[1]REAL IPC(M)'!$AM71)","v":13.274705820710398},{"$f":"IF('[1]REAL IPC(M)'!$BI71=\"\",\"\",+'[1]REAL IPC(M)'!$BI71)","v":13.158481081611262},{"$f":"IF('[1]REAL IMAE(M)'!BJ71=\"\",\"\",'[1]REAL IMAE(M)'!BJ71)","v":"n.d."},{"$f":"IF('[1]REAL IMAE(M)'!BK71=\"\",\"\",'[1]REAL IMAE(M)'!BK71)","v":"n.d."},{"$f":"IF('[1]REAL IMAE(M)'!BN71=\"\",\"\",'[1]REAL IMAE(M)'!BN71)","v":"n.d."},{"$f":"IF('[1]REAL IMAE(M)'!BO71=\"\",\"\",'[1]REAL IMAE(M)'!BO71)","v":"n.d."},{"$f":"IF('[1]EXT RIN(M)'!$K71=\"\",\"\",'[1]EXT RIN(M)'!$K71)","v":"n.d."},"",{"$f":"IF('[1]EXT RIN(M)'!$L71=\"\",\"\",'[1]EXT RIN(M)'!$L71)","v":"n.d."},"",{"$f":"IF('[1]MONE(M)CARD'!EG71=\"\",\"\",'[1]MONE(M)CARD'!EG71)","v":"n.d."},{"$f":"IF('[1]MONE(M)CARD'!EK71=\"\",\"\",'[1]MONE(M)CARD'!EK71)","v":"n.d."},{"$f":"IF('[1]MONE(M)CARD'!EP71=\"\",\"\",'[1]MONE(M)CARD'!EP71)","v":"n.d."},{"$f":"IF('[1]MONE(M)CARD'!ES71=\"\",\"\",'[1]MONE(M)CARD'!ES71)","v":"n.d."},{"$f":"IF('[1]MONE(M)CARD'!EV71=\"\",\"\",'[1]MONE(M)CARD'!EV71)","v":"n.d."},{"$f":"IF('[1]MONE(M)CARD'!EZ71=\"\",\"\",'[1]MONE(M)CARD'!EZ71)","v":"n.d."},{"$f":"IF('[1]MONE(M)CAPARD'!FC71=\"\",\"\",'[1]MONE(M)CAPARD'!FC71)","v":"n.d."},{"$f":"IF('[1]MONE(M)CAPARD'!FG71=\"\",\"\",'[1]MONE(M)CAPARD'!FG71)","v":"n.d."},{"$f":"IF('[1]MONE(M)CAPARD'!FL71=\"\",\"\",'[1]MONE(M)CAPARD'!FL71)","v":"n.d."},{"$f":"IF('[1]MONE(M)CAPARD'!FO71=\"\",\"\",'[1]MONE(M)CAPARD'!FO71)","v":"n.d."},{"$f":"IF('[1]MONE(M)CAPARD'!FR71=\"\",\"\",'[1]MONE(M)CAPARD'!FR71)","v":"n.d."},{"$f":"IF('[1]MONE(M)CAPARD'!FV71=\"\",\"\",'[1]MONE(M)CAPARD'!FV71)","v":"n.d."},{"$f":"IF('[1]MONE(M)CARD'!FV71=\"\",\"\",'[1]MONE(M)CARD'!FV71)","v":""},{"$f":"IF('[1]MONE(M)CARD'!GD71=\"\",\"\",'[1]MONE(M)CARD'!GD71)","v":"n.d."},{"$f":"IF('[1]MONE(M)CARD'!GE71=\"\",\"\",'[1]MONE(M)CARD'!GE71)","v":"n.d."},"n.d.","n.d.","n.d.","n.d.","n.d.","n.d.","n.d.","n.d.",null,"n.d.","n.d.","n.d.","n.d.","n.d.",{"$f":"IF('[1]MONE(M)CAPARD'!GS71=\"\",\"\",'[1]MONE(M)CAPARD'!GS71)","v":"n.d."},{"$f":"IF('[1]MONE(M)CARD'!HA71=\"\",\"\",'[1]MONE(M)CAPARD'!HA71)","v":"n.d."},{"$f":"IF('[1]MONE(M)CAPARD'!HB71=\"\",\"\",'[1]MONE(M)CAPARD'!HB71)","v":"n.d."},"n.d.","n.d.","n.d.","n.d.","n.d.","n.d.","n.d.","n.d.","n.d.","n.d.","n.d.","n.d.","n.d.","n.d.",{"$f":"IF('[1]MONE(M)CAPARD'!AS71=\"\",\"\",'[1]MONE(M)CAPARD'!AS71)","v":"n.d."},{"$f":"IF('[1]MONE(M)CAPARD'!AT71=\"\",\"\",'[1]MONE(M)CAPARD'!AT71)","v":"n.a."},{"$f":"IF('[1]MONE(M)CAPARD'!AU71=\"\",\"\",'[1]MONE(M)CAPARD'!AU71)","v":"n.d."},{"$f":"IF('[1]MONE(M)CAPARD'!AV71=\"\",\"\",'[1]MONE(M)CAPARD'!AV71)","v":"n.d."},{"$f":"IF('[1]MONE(M)CAPARD'!AW71=\"\",\"\",'[1]MONE(M)CAPARD'!AW71)","v":"n.a."},{"$f":"IF('[1]MONE(M)CAPARD'!AX71=\"\",\"\",'[1]MONE(M)CAPARD'!AX71)","v":"n.d."},{"$f":"IF('[1]MONE(M)CAPARD'!AY71=\"\",\"\",'[1]MONE(M)CAPARD'!AY71)","v":"n.a."},{"$f":"IF('[1]FISCAL(M)'!$K71=\"\",\"\",'[1]FISCAL(M)'!$K71)","v":"n.d."},{"$f":"IF('[1]FISCAL(M)'!$L71=\"\",\"\",'[1]FISCAL(M)'!$L71)","v":"n.d."},{"$f":"IF('[1]FISCAL(M)'!$AY71=\"\",\"\",'[1]FISCAL(M)'!$AY71)","v":"n.d."},{"$f":"IF('[1]FISCAL(M)'!$BI71=\"\",\"\",'[1]FISCAL(M)'!$BI71)","v":"n.d."},{"$f":"IF('[1]FISCAL(M)'!$BS71=\"\",\"\",'[1]FISCAL(M)'!$BS71)","v":"n.d."},{"$f":"IF('[1]FISCAL(M)'!$AZ71=\"\",\"\",'[1]FISCAL(M)'!$AZ71)","v":"n.d."},{"$f":"IF('[1]FISCAL(M)'!$BJ71=\"\",\"\",'[1]FISCAL(M)'!$BJ71)","v":"n.d."},{"$f":"IF('[1]FISCAL(M)'!$BT71=\"\",\"\",'[1]FISCAL(M)'!$BT71)","v":"n.d."},{"$f":"IF('[2]MONE(M)'!$AO71=\"\",\"\",'[2]MONE(M)'!$AO71)","v":"n.d."},{"$f":"IF('[3]MONE(M)'!$AO71=\"\",\"\",'[3]MONE(M)'!$AO71)","v":"n.d."},{"$f":"IF('[4]MONE(M)'!$AO71=\"\",\"\",'[4]MONE(M)'!$AO71)","v":"n.d."},{"$f":"IF('[5]MONE(M)'!$AO71=\"\",\"\",'[5]MONE(M)'!$AO71)","v":"n.d."},{"$f":"IF('[6]MONE(M)'!$AO71=\"\",\"\",'[6]MONE(M)'!$AO71)","v":"n.d."},{"$f":"IF('[7]MONE(M)'!$AO71=\"\",\"\",'[7]MONE(M)'!$AO71)","v":"n.d."},{"$f":"IF('[8]MONE(M)'!$AO71=\"\",\"\",'[8]MONE(M)'!$AO71)","v":"n.d."},"n.d.","n.d.","n.d.","n.d.","n.d.","n.d.","n.d.",{"$f":"IF('[1]FISCAL(M)'!$K71=\"\",\"\",'[1]FISCAL(M)'!$K71)","v":"n.d."},"n.d.","n.d.",{"$f":"IF('[1]FISCAL(M)'!$L71=\"\",\"\",'[1]FISCAL(M)'!$L71)","v":"n.d."},"n.d.","n.d.","n.d.","n.d.","n.d.","n.d.","n.d.","n.d.","n.d.","n.d.","n.d.","n.d.","n.d.","n.d.","n.d.","n.d.","n.d.","n.d."]
[1995,"marzo","1995-marzo",{"$f":"IF('[1]REAL IPC(M)'!$AL72=\"\",\"\",+'[1]REAL IPC(M)'!$AL72)","v":14.688882327435127},{"$f":"IF('[1]REAL IPC(M)'!$BE72=\"\",\"\",+'[1]REAL IPC(M)'!$BE72)","v":14.426267467299937},{"$f":"IF('[1]REAL IPC(M)'!$AM72=\"\",\"\",+'[1]REAL IPC(M)'!$AM72)","v":13.21835225950112},{"$f":"IF('[1]REAL IPC(M)'!$BI72=\"\",\"\",+'[1]REAL IPC(M)'!$BI72)","v":13.012792212912117},{"$f":"IF('[1]REAL IMAE(M)'!BJ72=\"\",\"\",'[1]REAL IMAE(M)'!BJ72)","v":"n.d."},{"$f":"IF('[1]REAL IMAE(M)'!BK72=\"\",\"\",'[1]REAL IMAE(M)'!BK72)","v":"n.d."},{"$f":"IF('[1]REAL IMAE(M)'!BN72=\"\",\"\",'[1]REAL IMAE(M)'!BN72)","v":"n.d."},{"$f":"IF('[1]REAL IMAE(M)'!BO72=\"\",\"\",'[1]REAL IMAE(M)'!BO72)","v":"n.d."},{"$f":"IF('[1]EXT RIN(M)'!$K72=\"\",\"\",'[1]EXT RIN(M)'!$K72)","v":"n.d."},"",{"$f":"IF('[1]EXT RIN(M)'!$L72=\"\",\"\",'[1]EXT RIN(M)'!$L72)","v":"n.d."},"",{"$f":"IF('[1]MONE(M)CARD'!EG72=\"\",\"\",'[1]MONE(M)CARD'!EG72)","v":"n.d."},{"$f":"IF('[1]MONE(M)CARD'!EK72=\"\",\"\",'[1]MONE(M)CARD'!EK72)","v":"n.d."},{"$f":"IF('[1]MONE(M)CARD'!EP72=\"\",\"\",'[1]MONE(M)CARD'!EP72)","v":"n.d."},{"$f":"IF('[1]MONE(M)CARD'!ES72=\"\",\"\",'[1]MONE(M)CARD'!ES72)","v":"n.d."},{"$f":"IF('[1]MONE(M)CARD'!EV72=\"\",\"\",'[1]MONE(M)CARD'!EV72)","v":"n.d."},{"$f":"IF('[1]MONE(M)CARD'!EZ72=\"\",\"\",'[1]MONE(M)CARD'!EZ72)","v":"n.d."},{"$f":"IF('[1]MONE(M)CAPARD'!FC72=\"\",\"\",'[1]MONE(M)CAPARD'!FC72)","v":"n.d."},{"$f":"IF('[1]MONE(M)CAPARD'!FG72=\"\",\"\",'[1]MONE(M)CAPARD'!FG72)","v":"n.d."},{"$f":"IF('[1]MONE(M)CAPARD'!FL72=\"\",\"\",'[1]MONE(M)CAPARD'!FL72)","v":"n.d."},{"$f":"IF('[1]MONE(M)CAPARD'!FO72=\"\",\"\",'[1]MONE(M)CAPARD'!FO72)","v":"n.d."},{"$f":"IF('[1]MONE(M)CAPARD'!FR72=\"\",\"\",'[1]MONE(M)CAPARD'!FR72)","v":"n.d."},{"$f":"IF('[1]MONE(M)CAPARD'!FV72=\"\",\"\",'[1]MONE(M)CAPARD'!FV72)","v":"n.d."},{"$f":"IF('[1]MONE(M)CARD'!FV72=\"\",\"\",'[1]MONE(M)CARD'!FV72)","v":""},{"$f":"IF('[1]MONE(M)CARD'!GD72=\"\",\"\",'[1]MONE(M)CARD'!GD72)","v":"n.d."},{"$f":"IF('[1]MONE(M)CARD'!GE72=\"\",\"\",'[1]MONE(M)CARD'!GE72)","v":"n.d."},"n.d.","n.d.","n.d.","n.d.","n.d.","n.d.","n.d.","n.d.",null,"n.d.","n.d.","n.d.","n.d.","n.d.",{"$f":"IF('[1]MONE(M)CAPARD'!GS72=\"\",\"\",'[1]MONE(M)CAPARD'!GS72)","v":"n.d."},{"$f":"IF('[1]MONE(M)CARD'!HA72=\"\",\"\",'[1]MONE(M)CAPARD'!HA72)","v":"n.d."},{"$f":"IF('[1]MONE(M)CAPARD'!HB72=\"\",\"\",'[1]MONE(M)CAPARD'!HB72)","v":"n.d."},"n.d.","n.d.","n.d.","n.d.","n.d.","n.d.","n.d.","n.d.","n.d.","n.d.","n.d.","n.d.","n.d.","n.d.",{"$f":"IF('[1]MONE(M)CAPARD'!AS72=\"\",\"\",'[1]MONE(M)CAPARD'!AS72)","v":"n.d."},{"$f":"IF('[1]MONE(M)CAPARD'!AT72=\"\",\"\",'[1]MONE(M)CAPARD'!AT72)","v":"n.a."},{"$f":"IF('[1]MONE(M)CAPARD'!AU72=\"\",\"\",'[1]MONE(M)CAPARD'!AU72)","v":"n.d."},{"$f":"IF('[1]MONE(M)CAPARD'!AV72=\"\",\"\",'[1]MONE(M)CAPARD'!AV72)","v":"n.d."},{"$f":"IF('[1]MONE(M)CAPARD'!AW72=\"\",\"\",'[1]MONE(M)CAPARD'!AW72)","v":"n.a."},{"$f":"IF('[1]MONE(M)CAPARD'!AX72=\"\",\"\",'[1]MONE(M)CAPARD'!AX72)","v":"n.d."},{"$f":"IF('[1]MONE(M)CAPARD'!AY72=\"\",\"\",'[1]MONE(M)CAPARD'!AY72)","v":"n.a."},{"$f":"IF('[1]FISCAL(M)'!$K72=\"\",\"\",'[1]FISCAL(M)'!$K72)","v":"n.d."},{"$f":"IF('[1]FISCAL(M)'!$L72=\"\",\"\",'[1]FISCAL(M)'!$L72)","v":"n.d."},{"$f":"IF('[1]FISCAL(M)'!$AY72=\"\",\"\",'[1]FISCAL(M)'!$AY72)","v":"n.d."},{"$f":"IF('[1]FISCAL(M)'!$BI72=\"\",\"\",'[1]FISCAL(M)'!$BI72)","v":"n.d."},{"$f":"IF('[1]FISCAL(M)'!$BS72=\"\",\"\",'[1]FISCAL(M)'!$BS72)","v":"n.d."},{"$f":"IF('[1]FISCAL(M)'!$AZ72=\"\",\"\",'[1]FISCAL(M)'!$AZ72)","v":"n.d."},{"$f":"IF('[1]FISCAL(M)'!$BJ72=\"\",\"\",'[1]FISCAL(M)'!$BJ72)","v":"n.d."},{"$f":"IF('[1]FISCAL(M)'!$BT72=\"\",\"\",'[1]FISCAL(M)'!$BT72)","v":"n.d."},{"$f":"IF('[2]MONE(M)'!$AO72=\"\",\"\",'[2]MONE(M)'!$AO72)","v":"n.d."},{"$f":"IF('[3]MONE(M)'!$AO72=\"\",\"\",'[3]MONE(M)'!$AO72)","v":"n.d."},{"$f":"IF('[4]MONE(M)'!$AO72=\"\",\"\",'[4]MONE(M)'!$AO72)","v":"n.d."},{"$f":"IF('[5]MONE(M)'!$AO72=\"\",\"\",'[5]MONE(M)'!$AO72)","v":"n.d."},{"$f":"IF('[6]MONE(M)'!$AO72=\"\",\"\",'[6]MONE(M)'!$AO72)","v":"n.d."},{"$f":"IF('[7]MONE(M)'!$AO72=\"\",\"\",'[7]MONE(M)'!$AO72)","v":"n.d."},{"$f":"IF('[8]MONE(M)'!$AO72=\"\",\"\",'[8]MONE(M)'!$AO72)","v":"n.d."},"n.d.","n.d.","n.d.","n.d.","n.d.","n.d.","n.d.",{"$f":"IF('[1]FISCAL(M)'!$K72=\"\",\"\",'[1]FISCAL(M)'!$K72)","v":"n.d."},"n.d.","n.d.",{"$f":"IF('[1]FISCAL(M)'!$L72=\"\",\"\",'[1]FISCAL(M)'!$L72)","v":"n.d."},"n.d.","n.d.","n.d.","n.d.","n.d.","n.d.","n.d.","n.d.","n.d.","n.d.","n.d.","n.d.","n.d.","n.d.","n.d.","n.d.","n.d.","n.d."]
[1995,"abril","1995-abril",{"$f":"IF('[1]REAL IPC(M)'!$AL73=\"\",\"\",+'[1]REAL IPC(M)'!$AL73)","v":14.05523122140524},{"$f":"IF('[1]REAL IPC(M)'!$BE73=\"\",\"\",+'[1]REAL IPC(M)'!$BE73)","v":14.248817050603634},{"$f":"IF('[1]REAL IPC(M)'!$AM73=\"\",\"\",+'[1]REAL IPC(M)'!$AM73)","v":12.647775512707993},{"$f":"IF('[1]REAL IPC(M)'!$BI73=\"\",\"\",+'[1]REAL IPC(M)'!$BI73)","v":12.868649787696462},{"$f":"IF('[1]REAL IMAE(M)'!BJ73=\"\",\"\",'[1]REAL IMAE(M)'!BJ73)","v":"n.d."},{"$f":"IF('[1]REAL IMAE(M)'!BK73=\"\",\"\",'[1]REAL IMAE(M)'!BK73)","v":"n.d."},{"$f":"IF('[1]REAL IMAE(M)'!BN73=\"\",\"\",'[1]REAL IMAE(M)'!BN73)","v":"n.d."},{"$f":"IF('[1]REAL IMAE(M)'!BO73=\"\",\"\",'[1]REAL IMAE(M)'!BO73)","v":"n.d."},{"$f":"IF('[1]EXT RIN(M)'!$K73=\"\",\"\",'[1]EXT RIN(M)'!$K73)","v":"n.d."},"",{"$f":"IF('[1]EXT RIN(M)'!$L73=\"\",\"\",'[1]EXT RIN(M)'!$L73)","v":"n.d."},"",{"$f":"IF('[1]MONE(M)CARD'!EG73=\"\",\"\",'[1]MONE(M)CARD'!EG73)","v":"n.d."},{"$f":"IF('[1]MONE(M)CARD'!EK73=\"\",\"\",'[1]MONE(M)CARD'!EK73)","v":"n.d."},{"$f":"IF('[1]MONE(M)CARD'!EP73=\"\",\"\",'[1]MONE(M)CARD'!EP73)","v":"n.d."},{"$f":"IF('[1]MONE(M)CARD'!ES73=\"\",\"\",'[1]MONE(M)CARD'!ES73)","v":"n.d."},{"$f":"IF('[1]MONE(M)CARD'!EV73=\"\",\"\",'[1]MONE(M)CARD'!EV73)","v":"n.d."},{"$f":"IF('[1]MONE(M)CARD'!EZ73=\"\",\"\",'[1]MONE(M)CARD'!EZ73)","v":"n.d."},{"$f":"IF('[1]MONE(M)CAPARD'!FC73=\"\",\"\",'[1]MONE(M)CAPARD'!FC73)","v":"n.d."},{"$f":"IF('[1]MONE(M)CAPARD'!FG73=\"\",\"\",'[1]MONE(M)CAPARD'!FG73)","v":"n.d."},{"$f":"IF('[1]MONE(M)CAPARD'!FL73=\"\",\"\",'[1]MONE(M)CAPARD'!FL73)","v":"n.d."},{"$f":"IF('[1]MONE(M)CAPARD'!FO73=\"\",\"\",'[1]MONE(M)CAPARD'!FO73)","v":"n.d."},{"$f":"IF('[1]MONE(M)CAPARD'!FR73=\"\",\"\",'[1]MONE(M)CAPARD'!FR73)","v":"n.d."},{"$f":"IF('[1]MONE(M)CAPARD'!FV73=\"\",\"\",'[1]MONE(M)CAPARD'!FV73)","v":"n.d."},{"$f":"IF('[1]MONE(M)CARD'!FV73=\"\",\"\",'[1]MONE(M)CARD'!FV73)","v":""},{"$f":"IF('[1]MONE(M)CARD'!GD73=\"\",\"\",'[1]MONE(M)CARD'!GD73)","v":"n.d."},{"$f":"IF('[1]MONE(M)CARD'!GE73=\"\",\"\",'[1]MONE(M)CARD'!GE73)","v":"n.d."},"n.d.","n.d.","n.d.","n.d.","n.d.","n.d.","n.d.","n.d.",null,"n.d.","n.d.","n.d.","n.d.","n.d.",{"$f":"IF('[1]MONE(M)CAPARD'!GS73=\"\",\"\",'[1]MONE(M)CAPARD'!GS73)","v":"n.d."},{"$f":"IF('[1]MONE(M)CARD'!HA73=\"\",\"\",'[1]MONE(M)CAPARD'!HA73)","v":"n.d."},{"$f":"IF('[1]MONE(M)CAPARD'!HB73=\"\",\"\",'[1]MONE(M)CAPARD'!HB73)","v":"n.d."},"n.d.","n.d.","n.d.","n.d.","n.d.","n.d.","n.d.","n.d.","n.d.","n.d.","n.d.","n.d.","n.d.","n.d.",{"$f":"IF('[1]MONE(M)CAPARD'!AS73=\"\",\"\",'[1]MONE(M)CAPARD'!AS73)","v":"n.d."},{"$f":"IF('[1]MONE(M)CAPARD'!AT73=\"\",\"\",'[1]MONE(M)CAPARD'!AT73)","v":"n.a."},{"$f":"IF('[1]MONE(M)CAPARD'!AU73=\"\",\"\",'[1]MONE(M)CAPARD'!AU73)","v":"n.d."},{"$f":"IF('[1]MONE(M)CAPARD'!AV73=\"\",\"\",'[1]MONE(M)CAPARD'!AV73)","v":"n.d."},{"$f":"IF('[1]MONE(M)CAPARD'!AW73=\"\",\"\",'[1]MONE(M)CAPARD'!AW73)","v":"n.a."},{"$f":"IF('[1]MONE(M)CAPARD'!AX73=\"\",\"\",'[1]MONE(M)CAPARD'!AX73)","v":"n.d."},{"$f":"IF('[1]MONE(M)CAPARD'!AY73=\"\",\"\",'[1]MONE(M)CAPARD'!AY73)","v":"n.a."},{"$f":"IF('[1]FISCAL(M)'!$K73=\"\",\"\",'[1]FISCAL(M)'!$K73)","v":"n.d."},{"$f":"IF('[1]FISCAL(M)'!$L73=\"\",\"\",'[1]FISCAL(M)'!$L73)","v":"n.d."},{"$f":"IF('[1]FISCAL(M)'!$AY73=\"\",\"\",'[1]FISCAL(M)'!$AY73)","v":"n.d."},{"$f":"IF('[1]FISCAL(M)'!$BI73=\"\",\"\",'[1]FISCAL(M)'!$BI73)","v":"n.d."},{"$f":"IF('[1]FISCAL(M)'!$BS73=\"\",\"\",'[1]FISCAL(M)'!$BS73)","v":"n.d."},{"$f":"IF('[1]FISCAL(M)'!$AZ73=\"\",\"\",'[1]FISCAL(M)'!$AZ73)","v":"n.d."},{"$f":"IF('[1]FISCAL(M)'!$BJ73=\"\",\"\",'[1]FISCAL(M)'!$BJ73)","v":"n.d."},{"$f":"IF('[1]FISCAL(M)'!$BT73=\"\",\"\",'[1]FISCAL(M)'!$BT73)","v":"n.d."},{"$f":"IF('[2]MONE(M)'!$AO73=\"\",\"\",'[2]MONE(M)'!$AO73)","v":"n.d."},{"$f":"IF('[3]MONE(M)'!$AO73=\"\",\"\",'[3]MONE(M)'!$AO73)","v":"n.d."},{"$f":"IF('[4]MONE(M)'!$AO73=\"\",\"\",'[4]MONE(M)'!$AO73)","v":"n.d."},{"$f":"IF('[5]MONE(M)'!$AO73=\"\",\"\",'[5]MONE(M)'!$AO73)","v":"n.d."},{"$f":"IF('[6]MONE(M)'!$AO73=\"\",\"\",'[6]MONE(M)'!$AO73)","v":"n.d."},{"$f":"IF('[7]MONE(M)'!$AO73=\"\",\"\",'[7]MONE(M)'!$AO73)","v":"n.d."},{"$f":"IF('[8]MONE(M)'!$AO73=\"\",\"\",'[8]MONE(M)'!$AO73)","v":"n.d."},"n.d.","n.d.","n.d.","n.d.","n.d.","n.d.","n.d.",{"$f":"IF('[1]FISCAL(M)'!$K73=\"\",\"\",'[1]FISCAL(M)'!$K73)","v":"n.d."},"n.d.","n.d.",{"$f":"IF('[1]FISCAL(M)'!$L73=\"\",\"\",'[1]FISCAL(M)'!$L73)","v":"n.d."},"n.d.","n.d.","n.d.","n.d.","n.d.","n.d.","n.d.","n.d.","n.d.","n.d.","n.d.","n.d.","n.d.","n.d.","n.d.","n.d.","n.d.","n.d."]
[1995,"mayo ","1995-mayo ",{"$f":"IF('[1]REAL IPC(M)'!$AL74=\"\",\"\",+'[1]REAL IPC(M)'!$AL74)","v":13.932272955164461},{"$f":"IF('[1]REAL IPC(M)'!$BE74=\"\",\"\",+'[1]REAL IPC(M)'!$BE74)","v":14.073476406520435},{"$f":"IF('[1]REAL IPC(M)'!$AM74=\"\",\"\",+'[1]REAL IPC(M)'!$AM74)","v":12.564800176923651},{"$f":"IF('[1]REAL IPC(M)'!$BI74=\"\",\"\",+'[1]REAL IPC(M)'!$BI74)","v":12.725721983757431},{"$f":"IF('[1]REAL IMAE(M)'!BJ74=\"\",\"\",'[1]REAL IMAE(M)'!BJ74)","v":"n.d."},{"$f":"IF('[1]REAL IMAE(M)'!BK74=\"\",\"\",'[1]REAL IMAE(M)'!BK74)","v":"n.d."},{"$f":"IF('[1]REAL IMAE(M)'!BN74=\"\",\"\",'[1]REAL IMAE(M)'!BN74)","v":"n.d."},{"$f":"IF('[1]REAL IMAE(M)'!BO74=\"\",\"\",'[1]REAL IMAE(M)'!BO74)","v":"n.d."},{"$f":"IF('[1]EXT RIN(M)'!$K74=\"\",\"\",'[1]EXT RIN(M)'!$K74)","v":"n.d."},"",{"$f":"IF('[1]EXT RIN(M)'!$L74=\"\",\"\",'[1]EXT RIN(M)'!$L74)","v":"n.d."},"",{"$f":"IF('[1]MONE(M)CARD'!EG74=\"\",\"\",'[1]MONE(M)CARD'!EG74)","v":"n.d."},{"$f":"IF('[1]MONE(M)CARD'!EK74=\"\",\"\",'[1]MONE(M)CARD'!EK74)","v":"n.d."},{"$f":"IF('[1]MONE(M)CARD'!EP74=\"\",\"\",'[1]MONE(M)CARD'!EP74)","v":"n.d."},{"$f":"IF('[1]MONE(M)CARD'!ES74=\"\",\"\",'[1]MONE(M)CARD'!ES74)","v":"n.d."},{"$f":"IF('[1]MONE(M)CARD'!EV74=\"\",\"\",'[1]MONE(M)CARD'!EV74)","v":"n.d."},{"$f":"IF('[1]MONE(M)CARD'!EZ74=\"\",\"\",'[1]MONE(M)CARD'!EZ74)","v":"n.d."},{"$f":"IF('[1]MONE(M)CAPARD'!FC74=\"\",\"\",'[1]MONE(M)CAPARD'!FC74)","v":"n.d."},{"$f":"IF('[1]MONE(M)CAPARD'!FG74=\"\",\"\",'[1]MONE(M)CAPARD'!FG74)","v":"n.d."},{"$f":"IF('[1]MONE(M)CAPARD'!FL74=\"\",\"\",'[1]MONE(M)CAPARD'!FL74)","v":"n.d."},{"$f":"IF('[1]MONE(M)CAPARD'!FO74=\"\",\"\",'[1]MONE(M)CAPARD'!FO74)","v":"n.d."},{"$f":"IF('[1]MONE(M)CAPARD'!FR74=\"\",\"\",'[1]MONE(M)CAPARD'!FR74)","v":"n.d."},{"$f":"IF('[1]MONE(M)CAPARD'!FV74=\"\",\"\",'[1]MONE(M)CAPARD'!FV74)","v":"n.d."},{"$f":"IF('[1]MONE(M)CARD'!FV74=\"\",\"\",'[1]MONE(M)CARD'!FV74)","v":""},{"$f":"IF('[1]MONE(M)CARD'!GD74=\"\",\"\",'[1]MONE(M)CARD'!GD74)","v":"n.d."},{"$f":"IF('[1]MONE(M)CARD'!GE74=\"\",\"\",'[1]MONE(M)CARD'!GE74)","v":"n.d."},"n.d.","n.d.","n.d.","n.d.","n.d.","n.d.","n.d.","n.d.",null,"n.d.","n.d.","n.d.","n.d.","n.d.",{"$f":"IF('[1]MONE(M)CAPARD'!GS74=\"\",\"\",'[1]MONE(M)CAPARD'!GS74)","v":"n.d."},{"$f":"IF('[1]MONE(M)CARD'!HA74=\"\",\"\",'[1]MONE(M)CAPARD'!HA74)","v":"n.d."},{"$f":"IF('[1]MONE(M)CAPARD'!HB74=\"\",\"\",'[1]MONE(M)CAPARD'!HB74)","v":"n.d."},"n.d.","n.d.","n.d.","n.d.","n.d.","n.d.","n.d.","n.d.","n.d.","n.d.","n.d.","n.d.","n.d.","n.d.",{"$f":"IF('[1]MONE(M)CAPARD'!AS74=\"\",\"\",'[1]MONE(M)CAPARD'!AS74)","v":"n.d."},{"$f":"IF('[1]MONE(M)CAPARD'!AT74=\"\",\"\",'[1]MONE(M)CAPARD'!AT74)","v":"n.a."},{"$f":"IF('[1]MONE(M)CAPARD'!AU74=\"\",\"\",'[1]MONE(M)CAPARD'!AU74)","v":"n.d."},{"$f":"IF('[1]MONE(M)CAPARD'!AV74=\"\",\"\",'[1]MONE(M)CAPARD'!AV74)","v":"n.d."},{"$f":"IF('[1]MONE(M)CAPARD'!AW74=\"\",\"\",'[1]MONE(M)CAPARD'!AW74)","v":"n.a."},{"$f":"IF('[1]MONE(M)CAPARD'!AX74=\"\",\"\",'[1]MONE(M)CAPARD'!AX74)","v":"n.d."},{"$f":"IF('[1]MONE(M)CAPARD'!AY74=\"\",\"\",'[1]MONE(M)CAPARD'!AY74)","v":"n.a."},{"$f":"IF('[1]FISCAL(M)'!$K74=\"\",\"\",'[1]FISCAL(M)'!$K74)","v":"n.d."},{"$f":"IF('[1]FISCAL(M)'!$L74=\"\",\"\",'[1]FISCAL(M)'!$L74)","v":"n.d."},{"$f":"IF('[1]FISCAL(M)'!$AY74=\"\",\"\",'[1]FISCAL(M)'!$AY74)","v":"n.d."},{"$f":"IF('[1]FISCAL(M)'!$BI74=\"\",\"\",'[1]FISCAL(M)'!$BI74)","v":"n.d."},{"$f":"IF('[1]FISCAL(M)'!$BS74=\"\",\"\",'[1]FISCAL(M)'!$BS74)","v":"n.d."},{"$f":"IF('[1]FISCAL(M)'!$AZ74=\"\",\"\",'[1]FISCAL(M)'!$AZ74)","v":"n.d."},{"$f":"IF('[1]FISCAL(M)'!$BJ74=\"\",\"\",'[1]FISCAL(M)'!$BJ74)","v":"n.d."},{"$f":"IF('[1]FISCAL(M)'!$BT74=\"\",\"\",'[1]FISCAL(M)'!$BT74)","v":"n.d."},{"$f":"IF('[2]MONE(M)'!$AO74=\"\",\"\",'[2]MONE(M)'!$AO74)","v":"n.d."},{"$f":"IF('[3]MONE(M)'!$AO74=\"\",\"\",'[3]MONE(M)'!$AO74)","v":"n.d."},{"$f":"IF('[4]MONE(M)'!$AO74=\"\",\"\",'[4]MONE(M)'!$AO74)","v":"n.d."},{"$f":"IF('[5]MONE(M)'!$AO74=\"\",\"\",'[5]MONE(M)'!$AO74)","v":"n.d."},{"$f":"IF('[6]MONE(M)'!$AO74=\"\",\"\",'[6]MONE(M)'!$AO74)","v":"n.d."},{"$f":"IF('[7]MONE(M)'!$AO74=\"\",\"\",'[7]MONE(M)'!$AO74)","v":"n.d."},{"$f":"IF('[8]MONE(M)'!$AO74=\"\",\"\",'[8]MONE(M)'!$AO74)","v":"n.d."},"n.d.","n.d.","n.d.","n.d.","n.d.","n.d.","n.d.",{"$f":"IF('[1]FISCAL(M)'!$K74=\"\",\"\",'[1]FISCAL(M)'!$K74)","v":"n.d."},"n.d.",{"$f":"IF(OR(CM67=\"n.d.\",CM67=\"\",CN67=\"\",CN67=\"n.d.\"),\"n.d.\",(CM67/CN67)*100)","v":"n.d."},{"$f":"IF('[1]FISCAL(M)'!$L74=\"\",\"\",'[1]FISCAL(M)'!$L74)","v":"n.d."},"n.d.","n.d.","n.d.","n.d.","n.d.","n.d.","n.d.","n.d.","n.d.","n.d.","n.d.","n.d.","n.d.","n.d.","n.d.","n.d.","n.d.","n.d."]
[1995,"junio ",{"$f":"A68&\"-\"&B68","v":"1995-junio "},{"$f":"IF('[1]REAL IPC(M)'!$AL75=\"\",\"\",+'[1]REAL IPC(M)'!$AL75)","v":14.007156406803368},{"$f":"IF('[1]REAL IPC(M)'!$BE75=\"\",\"\",+'[1]REAL IPC(M)'!$BE75)","v":13.899882054582369},{"$f":"IF('[1]REAL IPC(M)'!$AM75=\"\",\"\",+'[1]REAL IPC(M)'!$AM75)","v":12.670260170955739},{"$f":"IF('[1]REAL IPC(M)'!$BI75=\"\",\"\",+'[1]REAL IPC(M)'!$BI75)","v":12.583680742781223},{"$f":"IF('[1]REAL IMAE(M)'!BJ75=\"\",\"\",'[1]REAL IMAE(M)'!BJ75)","v":"n.d."},{"$f":"IF('[1]REAL IMAE(M)'!BK75=\"\",\"\",'[1]REAL IMAE(M)'!BK75)","v":"n.d."},{"$f":"IF('[1]REAL IMAE(M)'!BN75=\"\",\"\",'[1]REAL IMAE(M)'!BN75)","v":"n.d."},{"$f":"IF('[1]REAL IMAE(M)'!BO75=\"\",\"\",'[1]REAL IMAE(M)'!BO75)","v":"n.d."},{"$f":"IF('[1]EXT RIN(M)'!$K75=\"\",\"\",'[1]EXT RIN(M)'!$K75)","v":"n.d."},{"$f":"IF(B68<>\"diciembre\",\"\",L68)","v":""},{"$f":"IF('[1]EXT RIN(M)'!$L75=\"\",\"\",'[1]EXT RIN(M)'!$L75)","v":"n.d."},{"$f":"IF(B68<>\"diciembre\",\"\",N68)","v":""},{"$f":"IF('[1]MONE(M)CARD'!EG75=\"\",\"\",'[1]MONE(M)CARD'!EG75)","v":"n.d."},{"$f":"IF('[1]MONE(M)CARD'!EK75=\"\",\"\",'[1]MONE(M)CARD'!EK75)","v":"n.d."},{"$f":"IF('[1]MONE(M)CARD'!EP75=\"\",\"\",'[1]MONE(M)CARD'!EP75)","v":"n.d."},{"$f":"IF('[1]MONE(M)CARD'!ES75=\"\",\"\",'[1]MONE(M)CARD'!ES75)","v":"n.d."},{"$f":"IF('[1]MONE(M)CARD'!EV75=\"\",\"\",'[1]MONE(M)CARD'!EV75)","v":"n.d."},{"$f":"IF('[1]MONE(M)CARD'!EZ75=\"\",\"\",'[1]MONE(M)CARD'!EZ75)","v":"n.d."},{"$f":"IF('[1]MONE(M)CAPARD'!FC75=\"\",\"\",'[1]MONE(M)CAPARD'!FC75)","v":"n.d."},{"$f":"IF('[1]MONE(M)CAPARD'!FG75=\"\",\"\",'[1]MONE(M)CAPARD'!FG75)","v":"n.d."},{"$f":"IF('[1]MONE(M)CAPARD'!FL75=\"\",\"\",'[1]MONE(M)CAPARD'!FL75)","v":"n.d."},{"$f":"IF('[1]MONE(M)CAPARD'!FO75=\"\",\"\",'[1]MONE(M)CAPARD'!FO75)","v":"n.d."},{"$f":"IF('[1]MONE(M)CAPARD'!FR75=\"\",\"\",'[1]MONE(M)CAPARD'!FR75)","v":"n.d."},{"$f":"IF('[1]MONE(M)CAPARD'!FV75=\"\",\"\",'[1]MONE(M)CAPARD'!FV75)","v":"n.d."},{"$f":"IF('[1]MONE(M)CARD'!FV75=\"\",\"\",'[1]MONE(M)CARD'!FV75)","v":""},{"$f":"IF('[1]MONE(M)CARD'!GD75=\"\",\"\",'[1]MONE(M)CARD'!GD75)","v":"n.d."},{"$f":"IF('[1]MONE(M)CARD'!GE75=\"\",\"\",'[1]MONE(M)CARD'!GE75)","v":"n.d."},"n.d.","n.d.","n.d.","n.d.","n.d.","n.d.","n.d.","n.d.",null,"n.d.","n.d.","n.d.","n.d.","n.d.",{"$f":"IF('[1]MONE(M)CAPARD'!GS75=\"\",\"\",'[1]MONE(M)CAPARD'!GS75)","v":"n.d."},{"$f":"IF('[1]MONE(M)CARD'!HA75=\"\",\"\",'[1]MONE(M)CAPARD'!HA75)","v":"n.d."},{"$f":"IF('[1]MONE(M)CAPARD'!HB75=\"\",\"\",'[1]MONE(M)CAPARD'!HB75)","v":"n.d."},"n.d.","n.d.","n.d.","n.d.","n.d.","n.d.","n.d.","n.d.","n.d.","n.d.","n.d.","n.d.","n.d.","n.d.",{"$f":"IF('[1]MONE(M)CAPARD'!AS75=\"\",\"\",'[1]MONE(M)CAPARD'!AS75)","v":"n.d."},{"$f":"IF('[1]MONE(M)CAPARD'!AT75=\"\",\"\",'[1]MONE(M)CAPARD'!AT75)","v":"n.a."},{"$f":"IF('[1]MONE(M)CAPARD'!AU75=\"\",\"\",'[1]MONE(M)CAPARD'!AU75)","v":"n.d."},{"$f":"IF('[1]MONE(M)CAPARD'!AV75=\"\",\"\",'[1]MONE(M)CAPARD'!AV75)","v":"n.d."},{"$f":"IF('[1]MONE(M)CAPARD'!AW75=\"\",\"\",'[1]MONE(M)CAPARD'!AW75)","v":"n.a."},{"$f":"IF('[1]MONE(M)CAPARD'!AX75=\"\",\"\",'[1]MONE(M)CAPARD'!AX75)","v":"n.d."},{"$f":"IF('[1]MONE(M)CAPARD'!AY75=\"\",\"\",'[1]MONE(M)CAPARD'!AY75)","v":"n.a."},{"$f":"IF('[1]FISCAL(M)'!$K75=\"\",\"\",'[1]FISCAL(M)'!$K75)","v":"n.d."},{"$f":"IF('[1]FISCAL(M)'!$L75=\"\",\"\",'[1]FISCAL(M)'!$L75)","v":"n.d."},{"$f":"IF('[1]FISCAL(M)'!$AY75=\"\",\"\",'[1]FISCAL(M)'!$AY75)","v":"n.d."},{"$f":"IF('[1]FISCAL(M)'!$BI75=\"\",\"\",'[1]FISCAL(M)'!$BI75)","v":"n.d."},{"$f":"IF('[1]FISCAL(M)'!$BS75=\"\",\"\",'[1]FISCAL(M)'!$BS75)","v":"n.d."},{"$f":"IF('[1]FISCAL(M)'!$AZ75=\"\",\"\",'[1]FISCAL(M)'!$AZ75)","v":"n.d."},{"$f":"IF('[1]FISCAL(M)'!$BJ75=\"\",\"\",'[1]FISCAL(M)'!$BJ75)","v":"n.d."},{"$f":"IF('[1]FISCAL(M)'!$BT75=\"\",\"\",'[1]FISCAL(M)'!$BT75)","v":"n.d."},{"$f":"IF('[2]MONE(M)'!$AO75=\"\",\"\",'[2]MONE(M)'!$AO75)","v":"n.d."},{"$f":"IF('[3]MONE(M)'!$AO75=\"\",\"\",'[3]MONE(M)'!$AO75)","v":"n.d."},{"$f":"IF('[4]MONE(M)'!$AO75=\"\",\"\",'[4]MONE(M)'!$AO75)","v":"n.d."},{"$f":"IF('[5]MONE(M)'!$AO75=\"\",\"\",'[5]MONE(M)'!$AO75)","v":"n.d."},{"$f":"IF('[6]MONE(M)'!$AO75=\"\",\"\",'[6]MONE(M)'!$AO75)","v":"n.d."},{"$f":"IF('[7]MONE(M)'!$AO75=\"\",\"\",'[7]MONE(M)'!$AO75)","v":"n.d."},{"$f":"IF('[8]MONE(M)'!$AO75=\"\",\"\",'[8]MONE(M)'!$AO75)","v":"n.d."},"n.d.","n.d.","n.d.","n.d.","n.d.","n.d.","n.d.",{"$f":"IF('[1]FISCAL(M)'!$K75=\"\",\"\",'[1]FISCAL(M)'!$K75)","v":"n.d."},"n.d.","n.d.",{"$f":"IF('[1]FISCAL(M)'!$L75=\"\",\"\",'[1]FISCAL(M)'!$L75)","v":"n.d."},"n.d.",{"$f":"IF(OR(CP68=\"n.d.\",CP68=\"\",CQ68=\"\",CQ68=\"n.d.\"),\"n.d.\",(CP68/CQ68)*100)","v":"n.d."},"n.d.","n.d.","n.d.","n.d.","n.d.","n.d.","n.d.","n.d.","n.d.","n.d.","n.d.","n.d.","n.d.","n.d.","n.d.","n.d."]
[1995,"julio","1995-julio",{"$f":"IF('[1]REAL IPC(M)'!$AL76=\"\",\"\",+'[1]REAL IPC(M)'!$AL76)","v":14.439151483651269},{"$f":"IF('[1]REAL IPC(M)'!$BE76=\"\",\"\",+'[1]REAL IPC(M)'!$BE76)","v":13.727675621182179},{"$f":"IF('[1]REAL IPC(M)'!$AM76=\"\",\"\",+'[1]REAL IPC(M)'!$AM76)","v":13.067368989521855},{"$f":"IF('[1]REAL IPC(M)'!$BI76=\"\",\"\",+'[1]REAL IPC(M)'!$BI76)","v":12.442198220393319},{"$f":"IF('[1]REAL IMAE(M)'!BJ76=\"\",\"\",'[1]REAL IMAE(M)'!BJ76)","v":"n.d."},{"$f":"IF('[1]REAL IMAE(M)'!BK76=\"\",\"\",'[1]REAL IMAE(M)'!BK76)","v":"n.d."},{"$f":"IF('[1]REAL IMAE(M)'!BN76=\"\",\"\",'[1]REAL IMAE(M)'!BN76)","v":"n.d."},{"$f":"IF('[1]REAL IMAE(M)'!BO76=\"\",\"\",'[1]REAL IMAE(M)'!BO76)","v":"n.d."},{"$f":"IF('[1]EXT RIN(M)'!$K76=\"\",\"\",'[1]EXT RIN(M)'!$K76)","v":"n.d."},"",{"$f":"IF('[1]EXT RIN(M)'!$L76=\"\",\"\",'[1]EXT RIN(M)'!$L76)","v":"n.d."},"",{"$f":"IF('[1]MONE(M)CARD'!EG76=\"\",\"\",'[1]MONE(M)CARD'!EG76)","v":"n.d."},{"$f":"IF('[1]MONE(M)CARD'!EK76=\"\",\"\",'[1]MONE(M)CARD'!EK76)","v":"n.d."},{"$f":"IF('[1]MONE(M)CARD'!EP76=\"\",\"\",'[1]MONE(M)CARD'!EP76)","v":"n.d."},{"$f":"IF('[1]MONE(M)CARD'!ES76=\"\",\"\",'[1]MONE(M)CARD'!ES76)","v":"n.d."},{"$f":"IF('[1]MONE(M)CARD'!EV76=\"\",\"\",'[1]MONE(M)CARD'!EV76)","v":"n.d."},{"$f":"IF('[1]MONE(M)CARD'!EZ76=\"\",\"\",'[1]MONE(M)CARD'!EZ76)","v":"n.d."},{"$f":"IF('[1]MONE(M)CAPARD'!FC76=\"\",\"\",'[1]MONE(M)CAPARD'!FC76)","v":"n.d."},{"$f":"IF('[1]MONE(M)CAPARD'!FG76=\"\",\"\",'[1]MONE(M)CAPARD'!FG76)","v":"n.d."},{"$f":"IF('[1]MONE(M)CAPARD'!FL76=\"\",\"\",'[1]MONE(M)CAPARD'!FL76)","v":"n.d."},{"$f":"IF('[1]MONE(M)CAPARD'!FO76=\"\",\"\",'[1]MONE(M)CAPARD'!FO76)","v":"n.d."},{"$f":"IF('[1]MONE(M)CAPARD'!FR76=\"\",\"\",'[1]MONE(M)CAPARD'!FR76)","v":"n.d."},{"$f":"IF('[1]MONE(M)CAPARD'!FV76=\"\",\"\",'[1]MONE(M)CAPARD'!FV76)","v":"n.d."},{"$f":"IF('[1]MONE(M)CARD'!FV76=\"\",\"\",'[1]MONE(M)CARD'!FV76)","v":""},{"$f":"IF('[1]MONE(M)CARD'!GD76=\"\",\"\",'[1]MONE(M)CARD'!GD76)","v":"n.d."},{"$f":"IF('[1]MONE(M)CARD'!GE76=\"\",\"\",'[1]MONE(M)CARD'!GE76)","v":"n.d."},"n.d.","n.d.","n.d.","n.d.","n.d.","n.d.","n.d.","n.d.",null,"n.d.","n.d.","n.d.","n.d.","n.d.",{"$f":"IF('[1]MONE(M)CAPARD'!GS76=\"\",\"\",'[1]MONE(M)CAPARD'!GS76)","v":"n.d."},{"$f":"IF('[1]MONE(M)CARD'!HA76=\"\",\"\",'[1]MONE(M)CAPARD'!HA76)","v":"n.d."},{"$f":"IF('[1]MONE(M)CAPARD'!HB76=\"\",\"\",'[1]MONE(M)CAPARD'!HB76)","v":"n.d."},"n.d.","n.d.","n.d.","n.d.","n.d.","n.d.","n.d.","n.d.","n.d.","n.d.","n.d.","n.d.","n.d.","n.d.",{"$f":"IF('[1]MONE(M)CAPARD'!AS76=\"\",\"\",'[1]MONE(M)CAPARD'!AS76)","v":"n.d."},{"$f":"IF('[1]MONE(M)CAPARD'!AT76=\"\",\"\",'[1]MONE(M)CAPARD'!AT76)","v":"n.a."},{"$f":"IF('[1]MONE(M)CAPARD'!AU76=\"\",\"\",'[1]MONE(M)CAPARD'!AU76)","v":"n.d."},{"$f":"IF('[1]MONE(M)CAPARD'!AV76=\"\",\"\",'[1]MONE(M)CAPARD'!AV76)","v":"n.d."},{"$f":"IF('[1]MONE(M)CAPARD'!AW76=\"\",\"\",'[1]MONE(M)CAPARD'!AW76)","v":"n.a."},{"$f":"IF('[1]MONE(M)CAPARD'!AX76=\"\",\"\",'[1]MONE(M)CAPARD'!AX76)","v":"n.d."},{"$f":"IF('[1]MONE(M)CAPARD'!AY76=\"\",\"\",'[1]MONE(M)CAPARD'!AY76)","v":"n.a."},{"$f":"IF('[1]FISCAL(M)'!$K76=\"\",\"\",'[1]FISCAL(M)'!$K76)","v":"n.d."},{"$f":"IF('[1]FISCAL(M)'!$L76=\"\",\"\",'[1]FISCAL(M)'!$L76)","v":"n.d."},{"$f":"IF('[1]FISCAL(M)'!$AY76=\"\",\"\",'[1]FISCAL(M)'!$AY76)","v":"n.d."},{"$f":"IF('[1]FISCAL(M)'!$BI76=\"\",\"\",'[1]FISCAL(M)'!$BI76)","v":"n.d."},{"$f":"IF('[1]FISCAL(M)'!$BS76=\"\",\"\",'[1]FISCAL(M)'!$BS76)","v":"n.d."},{"$f":"IF('[1]FISCAL(M)'!$AZ76=\"\",\"\",'[1]FISCAL(M)'!$AZ76)","v":"n.d."},{"$f":"IF('[1]FISCAL(M)'!$BJ76=\"\",\"\",'[1]FISCAL(M)'!$BJ76)","v":"n.d."},{"$f":"IF('[1]FISCAL(M)'!$BT76=\"\",\"\",'[1]FISCAL(M)'!$BT76)","v":"n.d."},{"$f":"IF('[2]MONE(M)'!$AO76=\"\",\"\",'[2]MONE(M)'!$AO76)","v":"n.d."},{"$f":"IF('[3]MONE(M)'!$AO76=\"\",\"\",'[3]MONE(M)'!$AO76)","v":"n.d."},{"$f":"IF('[4]MONE(M)'!$AO76=\"\",\"\",'[4]MONE(M)'!$AO76)","v":"n.d."},{"$f":"IF('[5]MONE(M)'!$AO76=\"\",\"\",'[5]MONE(M)'!$AO76)","v":"n.d."},{"$f":"IF('[6]MONE(M)'!$AO76=\"\",\"\",'[6]MONE(M)'!$AO76)","v":"n.d."},{"$f":"IF('[7]MONE(M)'!$AO76=\"\",\"\",'[7]MONE(M)'!$AO76)","v":"n.d."},{"$f":"IF('[8]MONE(M)'!$AO76=\"\",\"\",'[8]MONE(M)'!$AO76)","v":"n.d."},"n.d.","n.d.","n.d.","n.d.","n.d.","n.d.","n.d.",{"$f":"IF('[1]FISCAL(M)'!$K76=\"\",\"\",'[1]FISCAL(M)'!$K76)","v":"n.d."},"n.d.","n.d.",{"$f":"IF('[1]FISCAL(M)'!$L76=\"\",\"\",'[1]FISCAL(M)'!$L76)","v":"n.d."},"n.d.","n.d.","n.d.","n.d.","n.d.","n.d.","n.d.","n.d.","n.d.","n.d.","n.d.","n.d.","n.d.","n.d.","n.d.","n.d.","n.d.","n.d."]
[1995,"agosto","1995-agosto",{"$f":"IF('[1]REAL IPC(M)'!$AL77=\"\",\"\",+'[1]REAL IPC(M)'!$AL77)","v":13.690342762200757},{"$f":"IF('[1]REAL IPC(M)'!$BE77=\"\",\"\",+'[1]REAL IPC(M)'!$BE77)","v":13.556527320380507},{"$f":"IF('[1]REAL IPC(M)'!$AM77=\"\",\"\",+'[1]REAL IPC(M)'!$AM77)","v":12.419061777664474},{"$f":"IF('[1]REAL IPC(M)'!$BI77=\"\",\"\",+'[1]REAL IPC(M)'!$BI77)","v":12.300973972349105},{"$f":"IF('[1]REAL IMAE(M)'!BJ77=\"\",\"\",'[1]REAL IMAE(M)'!BJ77)","v":"n.d."},{"$f":"IF('[1]REAL IMAE(M)'!BK77=\"\",\"\",'[1]REAL IMAE(M)'!BK77)","v":"n.d."},{"$f":"IF('[1]REAL IMAE(M)'!BN77=\"\",\"\",'[1]REAL IMAE(M)'!BN77)","v":"n.d."},{"$f":"IF('[1]REAL IMAE(M)'!BO77=\"\",\"\",'[1]REAL IMAE(M)'!BO77)","v":"n.d."},{"$f":"IF('[1]EXT RIN(M)'!$K77=\"\",\"\",'[1]EXT RIN(M)'!$K77)","v":"n.d."},"",{"$f":"IF('[1]EXT RIN(M)'!$L77=\"\",\"\",'[1]EXT RIN(M)'!$L77)","v":"n.d."},"",{"$f":"IF('[1]MONE(M)CARD'!EG77=\"\",\"\",'[1]MONE(M)CARD'!EG77)","v":"n.d."},{"$f":"IF('[1]MONE(M)CARD'!EK77=\"\",\"\",'[1]MONE(M)CARD'!EK77)","v":"n.d."},{"$f":"IF('[1]MONE(M)CARD'!EP77=\"\",\"\",'[1]MONE(M)CARD'!EP77)","v":"n.d."},{"$f":"IF('[1]MONE(M)CARD'!ES77=\"\",\"\",'[1]MONE(M)CARD'!ES77)","v":"n.d."},{"$f":"IF('[1]MONE(M)CARD'!EV77=\"\",\"\",'[1]MONE(M)CARD'!EV77)","v":"n.d."},{"$f":"IF('[1]MONE(M)CARD'!EZ77=\"\",\"\",'[1]MONE(M)CARD'!EZ77)","v":"n.d."},{"$f":"IF('[1]MONE(M)CAPARD'!FC77=\"\",\"\",'[1]MONE(M)CAPARD'!FC77)","v":"n.d."},{"$f":"IF('[1]MONE(M)CAPARD'!FG77=\"\",\"\",'[1]MONE(M)CAPARD'!FG77)","v":"n.d."},{"$f":"IF('[1]MONE(M)CAPARD'!FL77=\"\",\"\",'[1]MONE(M)CAPARD'!FL77)","v":"n.d."},{"$f":"IF('[1]MONE(M)CAPARD'!FO77=\"\",\"\",'[1]MONE(M)CAPARD'!FO77)","v":"n.d."},{"$f":"IF('[1]MONE(M)CAPARD'!FR77=\"\",\"\",'[1]MONE(M)CAPARD'!FR77)","v":"n.d."},{"$f":"IF('[1]MONE(M)CAPARD'!FV77=\"\",\"\",'[1]MONE(M)CAPARD'!FV77)","v":"n.d."},{"$f":"IF('[1]MONE(M)CARD'!FV77=\"\",\"\",'[1]MONE(M)CARD'!FV77)","v":""},{"$f":"IF('[1]MONE(M)CARD'!GD77=\"\",\"\",'[1]MONE(M)CARD'!GD77)","v":"n.d."},{"$f":"IF('[1]MONE(M)CARD'!GE77=\"\",\"\",'[1]MONE(M)CARD'!GE77)","v":"n.d."},"n.d.","n.d.","n.d.","n.d.","n.d.","n.d.","n.d.","n.d.",null,"n.d.","n.d.","n.d.","n.d.","n.d.",{"$f":"IF('[1]MONE(M)CAPARD'!GS77=\"\",\"\",'[1]MONE(M)CAPARD'!GS77)","v":"n.d."},{"$f":"IF('[1]MONE(M)CARD'!HA77=\"\",\"\",'[1]MONE(M)CAPARD'!HA77)","v":"n.d."},{"$f":"IF('[1]MONE(M)CAPARD'!HB77=\"\",\"\",'[1]MONE(M)CAPARD'!HB77)","v":"n.d."},"n.d.","n.d.","n.d.","n.d.","n.d.","n.d.","n.d.","n.d.","n.d.","n.d.","n.d.","n.d.","n.d.","n.d.",{"$f":"IF('[1]MONE(M)CAPARD'!AS77=\"\",\"\",'[1]MONE(M)CAPARD'!AS77)","v":"n.d."},{"$f":"IF('[1]MONE(M)CAPARD'!AT77=\"\",\"\",'[1]MONE(M)CAPARD'!AT77)","v":"n.a."},{"$f":"IF('[1]MONE(M)CAPARD'!AU77=\"\",\"\",'[1]MONE(M)CAPARD'!AU77)","v":"n.d."},{"$f":"IF('[1]MONE(M)CAPARD'!AV77=\"\",\"\",'[1]MONE(M)CAPARD'!AV77)","v":"n.d."},{"$f":"IF('[1]MONE(M)CAPARD'!AW77=\"\",\"\",'[1]MONE(M)CAPARD'!AW77)","v":"n.a."},{"$f":"IF('[1]MONE(M)CAPARD'!AX77=\"\",\"\",'[1]MONE(M)CAPARD'!AX77)","v":"n.d."},{"$f":"IF('[1]MONE(M)CAPARD'!AY77=\"\",\"\",'[1]MONE(M)CAPARD'!AY77)","v":"n.a."},{"$f":"IF('[1]FISCAL(M)'!$K77=\"\",\"\",'[1]FISCAL(M)'!$K77)","v":"n.d."},{"$f":"IF('[1]FISCAL(M)'!$L77=\"\",\"\",'[1]FISCAL(M)'!$L77)","v":"n.d."},{"$f":"IF('[1]FISCAL(M)'!$AY77=\"\",\"\",'[1]FISCAL(M)'!$AY77)","v":"n.d."},{"$f":"IF('[1]FISCAL(M)'!$BI77=\"\",\"\",'[1]FISCAL(M)'!$BI77)","v":"n.d."},{"$f":"IF('[1]FISCAL(M)'!$BS77=\"\",\"\",'[1]FISCAL(M)'!$BS77)","v":"n.d."},{"$f":"IF('[1]FISCAL(M)'!$AZ77=\"\",\"\",'[1]FISCAL(M)'!$AZ77)","v":"n.d."},{"$f":"IF('[1]FISCAL(M)'!$BJ77=\"\",\"\",'[1]FISCAL(M)'!$BJ77)","v":"n.d."},{"$f":"IF('[1]FISCAL(M)'!$BT77=\"\",\"\",'[1]FISCAL(M)'!$BT77)","v":"n.d."},{"$f":"IF('[2]MONE(M)'!$AO77=\"\",\"\",'[2]MONE(M)'!$AO77)","v":"n.d."},{"$f":"IF('[3]MONE(M)'!$AO77=\"\",\"\",'[3]MONE(M)'!$AO77)","v":"n.d."},{"$f":"IF('[4]MONE(M)'!$AO77=\"\",\"\",'[4]MONE(M)'!$AO77)","v":"n.d."},{"$f":"IF('[5]MONE(M)'!$AO77=\"\",\"\",'[5]MONE(M)'!$AO77)","v":"n.d."},{"$f":"IF('[6]MONE(M)'!$AO77=\"\",\"\",'[6]MONE(M)'!$AO77)","v":"n.d."},{"$f":"IF('[7]MONE(M)'!$AO77=\"\",\"\",'[7]MONE(M)'!$AO77)","v":"n.d."},{"$f":"IF('[8]MONE(M)'!$AO77=\"\",\"\",'[8]MONE(M)'!$AO77)","v":"n.d."},"n.d.","n.d.","n.d.","n.d.","n.d.","n.d.","n.d.",{"$f":"IF('[1]FISCAL(M)'!$K77=\"\",\"\",'[1]FISCAL(M)'!$K77)","v":"n.d."},"n.d.","n.d.",{"$f":"IF('[1]FISCAL(M)'!$L77=\"\",\"\",'[1]FISCAL(M)'!$L77)","v":"n.d."},"n.d.","n.d.","n.d.","n.d.","n.d.","n.d.","n.d.","n.d.","n.d.","n.d.","n.d.","n.d.","n.d.","n.d.","n.d.","n.d.","n.d.","n.d."]
[1995,"septiembre","1995-septiembre",{"$f":"IF('[1]REAL IPC(M)'!$AL78=\"\",\"\",+'[1]REAL IPC(M)'!$AL78)","v":14.049165426827969},{"$f":"IF('[1]REAL IPC(M)'!$BE78=\"\",\"\",+'[1]REAL IPC(M)'!$BE78)","v":13.386151979453786},{"$f":"IF('[1]REAL IPC(M)'!$AM78=\"\",\"\",+'[1]REAL IPC(M)'!$AM78)","v":12.748557707319353},{"$f":"IF('[1]REAL IPC(M)'!$BI78=\"\",\"\",+'[1]REAL IPC(M)'!$BI78)","v":12.159752150763548},{"$f":"IF('[1]REAL IMAE(M)'!BJ78=\"\",\"\",'[1]REAL IMAE(M)'!BJ78)","v":"n.d."},{"$f":"IF('[1]REAL IMAE(M)'!BK78=\"\",\"\",'[1]REAL IMAE(M)'!BK78)","v":"n.d."},{"$f":"IF('[1]REAL IMAE(M)'!BN78=\"\",\"\",'[1]REAL IMAE(M)'!BN78)","v":"n.d."},{"$f":"IF('[1]REAL IMAE(M)'!BO78=\"\",\"\",'[1]REAL IMAE(M)'!BO78)","v":"n.d."},{"$f":"IF('[1]EXT RIN(M)'!$K78=\"\",\"\",'[1]EXT RIN(M)'!$K78)","v":"n.d."},"",{"$f":"IF('[1]EXT RIN(M)'!$L78=\"\",\"\",'[1]EXT RIN(M)'!$L78)","v":"n.d."},"",{"$f":"IF('[1]MONE(M)CARD'!EG78=\"\",\"\",'[1]MONE(M)CARD'!EG78)","v":"n.d."},{"$f":"IF('[1]MONE(M)CARD'!EK78=\"\",\"\",'[1]MONE(M)CARD'!EK78)","v":"n.d."},{"$f":"IF('[1]MONE(M)CARD'!EP78=\"\",\"\",'[1]MONE(M)CARD'!EP78)","v":"n.d."},{"$f":"IF('[1]MONE(M)CARD'!ES78=\"\",\"\",'[1]MONE(M)CARD'!ES78)","v":"n.d."},{"$f":"IF('[1]MONE(M)CARD'!EV78=\"\",\"\",'[1]MONE(M)CARD'!EV78)","v":"n.d."},{"$f":"IF('[1]MONE(M)CARD'!EZ78=\"\",\"\",'[1]MONE(M)CARD'!EZ78)","v":"n.d."},{"$f":"IF('[1]MONE(M)CAPARD'!FC78=\"\",\"\",'[1]MONE(M)CAPARD'!FC78)","v":"n.d."},{"$f":"IF('[1]MONE(M)CAPARD'!FG78=\"\",\"\",'[1]MONE(M)CAPARD'!FG78)","v":"n.d."},{"$f":"IF('[1]MONE(M)CAPARD'!FL78=\"\",\"\",'[1]MONE(M)CAPARD'!FL78)","v":"n.d."},{"$f":"IF('[1]MONE(M)CAPARD'!FO78=\"\",\"\",'[1]MONE(M)CAPARD'!FO78)","v":"n.d."},{"$f":"IF('[1]MONE(M)CAPARD'!FR78=\"\",\"\",'[1]MONE(M)CAPARD'!FR78)","v":"n.d."},{"$f":"IF('[1]MONE(M)CAPARD'!FV78=\"\",\"\",'[1]MONE(M)CAPARD'!FV78)","v":"n.d."},{"$f":"IF('[1]MONE(M)CARD'!FV78=\"\",\"\",'[1]MONE(M)CARD'!FV78)","v":""},{"$f":"IF('[1]MONE(M)CARD'!GD78=\"\",\"\",'[1]MONE(M)CARD'!GD78)","v":"n.d."},{"$f":"IF('[1]MONE(M)CARD'!GE78=\"\",\"\",'[1]MONE(M)CARD'!GE78)","v":"n.d."},"n.d.","n.d.","n.d.","n.d.","n.d.",{"$f":"IFERROR(+AF71+AH71,\"n.d.\")","v":"n.d."},"n.d.","n.d.",null,"n.d.","n.d.","n.d.","n.d.","n.d.",{"$f":"IF('[1]MONE(M)CAPARD'!GS78=\"\",\"\",'[1]MONE(M)CAPARD'!GS78)","v":"n.d."},{"$f":"IF('[1]MONE(M)CARD'!HA78=\"\",\"\",'[1]MONE(M)CAPARD'!HA78)","v":"n.d."},{"$f":"IF('[1]MONE(M)CAPARD'!HB78=\"\",\"\",'[1]MONE(M)CAPARD'!HB78)","v":"n.d."},"n.d.","n.d.","n.d.","n.d.","n.d.","n.d.","n.d.","n.d.","n.d.","n.d.","n.d.","n.d.","n.d.","n.d.",{"$f":"IF('[1]MONE(M)CAPARD'!AS78=\"\",\"\",'[1]MONE(M)CAPARD'!AS78)","v":"n.d."},{"$f":"IF('[1]MONE(M)CAPARD'!AT78=\"\",\"\",'[1]MONE(M)CAPARD'!AT78)","v":"n.a."},{"$f":"IF('[1]MONE(M)CAPARD'!AU78=\"\",\"\",'[1]MONE(M)CAPARD'!AU78)","v":"n.d."},{"$f":"IF('[1]MONE(M)CAPARD'!AV78=\"\",\"\",'[1]MONE(M)CAPARD'!AV78)","v":"n.d."},{"$f":"IF('[1]MONE(M)CAPARD'!AW78=\"\",\"\",'[1]MONE(M)CAPARD'!AW78)","v":"n.a."},{"$f":"IF('[1]MONE(M)CAPARD'!AX78=\"\",\"\",'[1]MONE(M)CAPARD'!AX78)","v":"n.d."},{"$f":"IF('[1]MONE(M)CAPARD'!AY78=\"\",\"\",'[1]MONE(M)CAPARD'!AY78)","v":"n.a."},{"$f":"IF('[1]FISCAL(M)'!$K78=\"\",\"\",'[1]FISCAL(M)'!$K78)","v":"n.d."},{"$f":"IF('[1]FISCAL(M)'!$L78=\"\",\"\",'[1]FISCAL(M)'!$L78)","v":"n.d."},{"$f":"IF('[1]FISCAL(M)'!$AY78=\"\",\"\",'[1]FISCAL(M)'!$AY78)","v":"n.d."},{"$f":"IF('[1]FISCAL(M)'!$BI78=\"\",\"\",'[1]FISCAL(M)'!$BI78)","v":"n.d."},{"$f":"IF('[1]FISCAL(M)'!$BS78=\"\",\"\",'[1]FISCAL(M)'!$BS78)","v":"n.d."},{"$f":"IF('[1]FISCAL(M)'!$AZ78=\"\",\"\",'[1]FISCAL(M)'!$AZ78)","v":"n.d."},{"$f":"IF('[1]FISCAL(M)'!$BJ78=\"\",\"\",'[1]FISCAL(M)'!$BJ78)","v":"n.d."},{"$f":"IF('[1]FISCAL(M)'!$BT78=\"\",\"\",'[1]FISCAL(M)'!$BT78)","v":"n.d."},{"$f":"IF('[2]MONE(M)'!$AO78=\"\",\"\",'[2]MONE(M)'!$AO78)","v":"n.d."},{"$f":"IF('[3]MONE(M)'!$AO78=\"\",\"\",'[3]MONE(M)'!$AO78)","v":"n.d."},{"$f":"IF('[4]MONE(M)'!$AO78=\"\",\"\",'[4]MONE(M)'!$AO78)","v":"n.d."},{"$f":"IF('[5]MONE(M)'!$AO78=\"\",\"\",'[5]MONE(M)'!$AO78)","v":"n.d."},{"$f":"IF('[6]MONE(M)'!$AO78=\"\",\"\",'[6]MONE(M)'!$AO78)","v":"n.d."},{"$f":"IF('[7]MONE(M)'!$AO78=\"\",\"\",'[7]MONE(M)'!$AO78)","v":"n.d."},{"$f":"IF('[8]MONE(M)'!$AO78=\"\",\"\",'[8]MONE(M)'!$AO78)","v":"n.d."},"n.d.","n.d.","n.d.","n.d.","n.d.","n.d.","n.d.",{"$f":"IF('[1]FISCAL(M)'!$K78=\"\",\"\",'[1]FISCAL(M)'!$K78)","v":"n.d."},"n.d.","n.d.",{"$f":"IF('[1]FISCAL(M)'!$L78=\"\",\"\",'[1]FISCAL(M)'!$L78)","v":"n.d."},"n.d.","n.d.","n.d.","n.d.","n.d.","n.d.","n.d.","n.d.","n.d.","n.d.","n.d.","n.d.","n.d.","n.d.","n.d.","n.d.","n.d.","n.d."]
[1995,"octubre","1995-octubre",{"$f":"IF('[1]REAL IPC(M)'!$AL79=\"\",\"\",+'[1]REAL IPC(M)'!$AL79)","v":14.45068758001824},{"$f":"IF('[1]REAL IPC(M)'!$BE79=\"\",\"\",+'[1]REAL IPC(M)'!$BE79)","v":13.216294433683951},{"$f":"IF('[1]REAL IPC(M)'!$AM79=\"\",\"\",+'[1]REAL IPC(M)'!$AM79)","v":13.099654384188252},{"$f":"IF('[1]REAL IPC(M)'!$BI79=\"\",\"\",+'[1]REAL IPC(M)'!$BI79)","v":12.018305216741766},{"$f":"IF('[1]REAL IMAE(M)'!BJ79=\"\",\"\",'[1]REAL IMAE(M)'!BJ79)","v":"n.d."},{"$f":"IF('[1]REAL IMAE(M)'!BK79=\"\",\"\",'[1]REAL IMAE(M)'!BK79)","v":"n.d."},{"$f":"IF('[1]REAL IMAE(M)'!BN79=\"\",\"\",'[1]REAL IMAE(M)'!BN79)","v":"n.d."},{"$f":"IF('[1]REAL IMAE(M)'!BO79=\"\",\"\",'[1]REAL IMAE(M)'!BO79)","v":"n.d."},{"$f":"IF('[1]EXT RIN(M)'!$K79=\"\",\"\",'[1]EXT RIN(M)'!$K79)","v":"n.d."},"",{"$f":"IF('[1]EXT RIN(M)'!$L79=\"\",\"\",'[1]EXT RIN(M)'!$L79)","v":"n.d."},"",{"$f":"IF('[1]MONE(M)CARD'!EG79=\"\",\"\",'[1]MONE(M)CARD'!EG79)","v":"n.d."},{"$f":"IF('[1]MONE(M)CARD'!EK79=\"\",\"\",'[1]MONE(M)CARD'!EK79)","v":"n.d."},{"$f":"IF('[1]MONE(M)CARD'!EP79=\"\",\"\",'[1]MONE(M)CARD'!EP79)","v":"n.d."},{"$f":"IF('[1]MONE(M)CARD'!ES79=\"\",\"\",'[1]MONE(M)CARD'!ES79)","v":"n.d."},{"$f":"IF('[1]MONE(M)CARD'!EV79=\"\",\"\",'[1]MONE(M)CARD'!EV79)","v":"n.d."},{"$f":"IF('[1]MONE(M)CARD'!EZ79=\"\",\"\",'[1]MONE(M)CARD'!EZ79)","v":"n.d."},{"$f":"IF('[1]MONE(M)CAPARD'!FC79=\"\",\"\",'[1]MONE(M)CAPARD'!FC79)","v":"n.d."},{"$f":"IF('[1]MONE(M)CAPARD'!FG79=\"\",\"\",'[1]MONE(M)CAPARD'!FG79)","v":"n.d."},{"$f":"IF('[1]MONE(M)CAPARD'!FL79=\"\",\"\",'[1]MONE(M)CAPARD'!FL79)","v":"n.d."},{"$f":"IF('[1]MONE(M)CAPARD'!FO79=\"\",\"\",'[1]MONE(M)CAPARD'!FO79)","v":"n.d."},{"$f":"IF('[1]MONE(M)CAPARD'!FR79=\"\",\"\",'[1]MONE(M)CAPARD'!FR79)","v":"n.d."},{"$f":"IF('[1]MONE(M)CAPARD'!FV79=\"\",\"\",'[1]MONE(M)CAPARD'!FV79)","v":"n.d."},{"$f":"IF('[1]MONE(M)CARD'!FV79=\"\",\"\",'[1]MONE(M)CARD'!FV79)","v":""},{"$f":"IF('[1]MONE(M)CARD'!GD79=\"\",\"\",'[1]MONE(M)CARD'!GD79)","v":"n.d."},{"$f":"IF('[1]MONE(M)CARD'!GE79=\"\",\"\",'[1]MONE(M)CARD'!GE79)","v":"n.d."},"n.d.","n.d.","n.d.","n.d.","n.d.","n.d.","n.d.","n.d.",null,"n.d.","n.d.","n.d.","n.d.","n.d.",{"$f":"IF('[1]MONE(M)CAPARD'!GS79=\"\",\"\",'[1]MONE(M)CAPARD'!GS79)","v":"n.d."},{"$f":"IF('[1]MONE(M)CARD'!HA79=\"\",\"\",'[1]MONE(M)CAPARD'!HA79)","v":"n.d."},{"$f":"IF('[1]MONE(M)CAPARD'!HB79=\"\",\"\",'[1]MONE(M)CAPARD'!HB79)","v":"n.d."},"n.d.","n.d.","n.d.","n.d.","n.d.","n.d.","n.d.","n.d.","n.d.","n.d.","n.d.","n.d.","n.d.","n.d.",{"$f":"IF('[1]MONE(M)CAPARD'!AS79=\"\",\"\",'[1]MONE(M)CAPARD'!AS79)","v":"n.d."},{"$f":"IF('[1]MONE(M)CAPARD'!AT79=\"\",\"\",'[1]MONE(M)CAPARD'!AT79)","v":"n.a."},{"$f":"IF('[1]MONE(M)CAPARD'!AU79=\"\",\"\",'[1]MONE(M)CAPARD'!AU79)","v":"n.d."},{"$f":"IF('[1]MONE(M)CAPARD'!AV79=\"\",\"\",'[1]MONE(M)CAPARD'!AV79)","v":"n.d."},{"$f":"IF('[1]MONE(M)CAPARD'!AW79=\"\",\"\",'[1]MONE(M)CAPARD'!AW79)","v":"n.a."},{"$f":"IF('[1]MONE(M)CAPARD'!AX79=\"\",\"\",'[1]MONE(M)CAPARD'!AX79)","v":"n.d."},{"$f":"IF('[1]MONE(M)CAPARD'!AY79=\"\",\"\",'[1]MONE(M)CAPARD'!AY79)","v":"n.a."},{"$f":"IF('[1]FISCAL(M)'!$K79=\"\",\"\",'[1]FISCAL(M)'!$K79)","v":"n.d."},{"$f":"IF('[1]FISCAL(M)'!$L79=\"\",\"\",'[1]FISCAL(M)'!$L79)","v":"n.d."},{"$f":"IF('[1]FISCAL(M)'!$AY79=\"\",\"\",'[1]FISCAL(M)'!$AY79)","v":"n.d."},{"$f":"IF('[1]FISCAL(M)'!$BI79=\"\",\"\",'[1]FISCAL(M)'!$BI79)","v":"n.d."},{"$f":"IF('[1]FISCAL(M)'!$BS79=\"\",\"\",'[1]FISCAL(M)'!$BS79)","v":"n.d."},{"$f":"IF('[1]FISCAL(M)'!$AZ79=\"\",\"\",'[1]FISCAL(M)'!$AZ79)","v":"n.d."},{"$f":"IF('[1]FISCAL(M)'!$BJ79=\"\",\"\",'[1]FISCAL(M)'!$BJ79)","v":"n.d."},{"$f":"IF('[1]FISCAL(M)'!$BT79=\"\",\"\",'[1]FISCAL(M)'!$BT79)","v":"n.d."},{"$f":"IF('[2]MONE(M)'!$AO79=\"\",\"\",'[2]MONE(M)'!$AO79)","v":"n.d."},{"$f":"IF('[3]MONE(M)'!$AO79=\"\",\"\",'[3]MONE(M)'!$AO79)","v":"n.d."},{"$f":"IF('[4]MONE(M)'!$AO79=\"\",\"\",'[4]MONE(M)'!$AO79)","v":"n.d."},{"$f":"IF('[5]MONE(M)'!$AO79=\"\",\"\",'[5]MONE(M)'!$AO79)","v":"n.d."},{"$f":"IF('[6]MONE(M)'!$AO79=\"\",\"\",'[6]MONE(M)'!$AO79)","v":"n.d."},{"$f":"IF('[7]MONE(M)'!$AO79=\"\",\"\",'[7]MONE(M)'!$AO79)","v":"n.d."},{"$f":"IF('[8]MONE(M)'!$AO79=\"\",\"\",'[8]MONE(M)'!$AO79)","v":"n.d."},"n.d.","n.d.","n.d.","n.d.","n.d.","n.d.","n.d.",{"$f":"IF('[1]FISCAL(M)'!$K79=\"\",\"\",'[1]FISCAL(M)'!$K79)","v":"n.d."},"n.d.","n.d.",{"$f":"IF('[1]FISCAL(M)'!$L79=\"\",\"\",'[1]FISCAL(M)'!$L79)","v":"n.d."},"n.d.","n.d.","n.d.","n.d.","n.d.","n.d.","n.d.","n.d.","n.d.","n.d.","n.d.","n.d.","n.d.","n.d.","n.d.","n.d.","n.d.","n.d."]
[1995,"noviembre","1995-noviembre",{"$f":"IF('[1]REAL IPC(M)'!$AL80=\"\",\"\",+'[1]REAL IPC(M)'!$AL80)","v":14.593158000533224},{"$f":"IF('[1]REAL IPC(M)'!$BE80=\"\",\"\",+'[1]REAL IPC(M)'!$BE80)","v":13.046744207655037},{"$f":"IF('[1]REAL IPC(M)'!$AM80=\"\",\"\",+'[1]REAL IPC(M)'!$AM80)","v":13.205200521032911},{"$f":"IF('[1]REAL IPC(M)'!$BI80=\"\",\"\",+'[1]REAL IPC(M)'!$BI80)","v":11.876447710398841},{"$f":"IF('[1]REAL IMAE(M)'!BJ80=\"\",\"\",'[1]REAL IMAE(M)'!BJ80)","v":"n.d."},{"$f":"IF('[1]REAL IMAE(M)'!BK80=\"\",\"\",'[1]REAL IMAE(M)'!BK80)","v":"n.d."},{"$f":"IF('[1]REAL IMAE(M)'!BN80=\"\",\"\",'[1]REAL IMAE(M)'!BN80)","v":"n.d."},{"$f":"IF('[1]REAL IMAE(M)'!BO80=\"\",\"\",'[1]REAL IMAE(M)'!BO80)","v":"n.d."},{"$f":"IF('[1]EXT RIN(M)'!$K80=\"\",\"\",'[1]EXT RIN(M)'!$K80)","v":"n.d."},"",{"$f":"IF('[1]EXT RIN(M)'!$L80=\"\",\"\",'[1]EXT RIN(M)'!$L80)","v":"n.d."},"",{"$f":"IF('[1]MONE(M)CARD'!EG80=\"\",\"\",'[1]MONE(M)CARD'!EG80)","v":"n.d."},{"$f":"IF('[1]MONE(M)CARD'!EK80=\"\",\"\",'[1]MONE(M)CARD'!EK80)","v":"n.d."},{"$f":"IF('[1]MONE(M)CARD'!EP80=\"\",\"\",'[1]MONE(M)CARD'!EP80)","v":"n.d."},{"$f":"IF('[1]MONE(M)CARD'!ES80=\"\",\"\",'[1]MONE(M)CARD'!ES80)","v":"n.d."},{"$f":"IF('[1]MONE(M)CARD'!EV80=\"\",\"\",'[1]MONE(M)CARD'!EV80)","v":"n.d."},{"$f":"IF('[1]MONE(M)CARD'!EZ80=\"\",\"\",'[1]MONE(M)CARD'!EZ80)","v":"n.d."},{"$f":"IF('[1]MONE(M)CAPARD'!FC80=\"\",\"\",'[1]MONE(M)CAPARD'!FC80)","v":"n.d."},{"$f":"IF('[1]MONE(M)CAPARD'!FG80=\"\",\"\",'[1]MONE(M)CAPARD'!FG80)","v":"n.d."},{"$f":"IF('[1]MONE(M)CAPARD'!FL80=\"\",\"\",'[1]MONE(M)CAPARD'!FL80)","v":"n.d."},{"$f":"IF('[1]MONE(M)CAPARD'!FO80=\"\",\"\",'[1]MONE(M)CAPARD'!FO80)","v":"n.d."},{"$f":"IF('[1]MONE(M)CAPARD'!FR80=\"\",\"\",'[1]MONE(M)CAPARD'!FR80)","v":"n.d."},{"$f":"IF('[1]MONE(M)CAPARD'!FV80=\"\",\"\",'[1]MONE(M)CAPARD'!FV80)","v":"n.d."},{"$f":"IF('[1]MONE(M)CARD'!FV80=\"\",\"\",'[1]MONE(M)CARD'!FV80)","v":""},{"$f":"IF('[1]MONE(M)CARD'!GD80=\"\",\"\",'[1]MONE(M)CARD'!GD80)","v":"n.d."},{"$f":"IF('[1]MONE(M)CARD'!GE80=\"\",\"\",'[1]MONE(M)CARD'!GE80)","v":"n.d."},"n.d.","n.d.","n.d.","n.d.","n.d.","n.d.","n.d.","n.d.",null,"n.d.","n.d.","n.d.","n.d.","n.d.",{"$f":"IF('[1]MONE(M)CAPARD'!GS80=\"\",\"\",'[1]MONE(M)CAPARD'!GS80)","v":"n.d."},{"$f":"IF('[1]MONE(M)CARD'!HA80=\"\",\"\",'[1]MONE(M)CAPARD'!HA80)","v":"n.d."},{"$f":"IF('[1]MONE(M)CAPARD'!HB80=\"\",\"\",'[1]MONE(M)CAPARD'!HB80)","v":"n.d."},"n.d.","n.d.","n.d.","n.d.","n.d.","n.d.","n.d.","n.d.","n.d.","n.d.","n.d.","n.d.","n.d.","n.d.",{"$f":"IF('[1]MONE(M)CAPARD'!AS80=\"\",\"\",'[1]MONE(M)CAPARD'!AS80)","v":"n.d."},{"$f":"IF('[1]MONE(M)CAPARD'!AT80=\"\",\"\",'[1]MONE(M)CAPARD'!AT80)","v":"n.a."},{"$f":"IF('[1]MONE(M)CAPARD'!AU80=\"\",\"\",'[1]MONE(M)CAPARD'!AU80)","v":"n.d."},{"$f":"IF('[1]MONE(M)CAPARD'!AV80=\"\",\"\",'[1]MONE(M)CAPARD'!AV80)","v":"n.d."},{"$f":"IF('[1]MONE(M)CAPARD'!AW80=\"\",\"\",'[1]MONE(M)CAPARD'!AW80)","v":"n.a."},{"$f":"IF('[1]MONE(M)CAPARD'!AX80=\"\",\"\",'[1]MONE(M)CAPARD'!AX80)","v":"n.d."},{"$f":"IF('[1]MONE(M)CAPARD'!AY80=\"\",\"\",'[1]MONE(M)CAPARD'!AY80)","v":"n.a."},{"$f":"IF('[1]FISCAL(M)'!$K80=\"\",\"\",'[1]FISCAL(M)'!$K80)","v":"n.d."},{"$f":"IF('[1]FISCAL(M)'!$L80=\"\",\"\",'[1]FISCAL(M)'!$L80)","v":"n.d."},{"$f":"IF('[1]FISCAL(M)'!$AY80=\"\",\"\",'[1]FISCAL(M)'!$AY80)","v":"n.d."},{"$f":"IF('[1]FISCAL(M)'!$BI80=\"\",\"\",'[1]FISCAL(M)'!$BI80)","v":"n.d."},{"$f":"IF('[1]FISCAL(M)'!$BS80=\"\",\"\",'[1]FISCAL(M)'!$BS80)","v":"n.d."},{"$f":"IF('[1]FISCAL(M)'!$AZ80=\"\",\"\",'[1]FISCAL(M)'!$AZ80)","v":"n.d."},{"$f":"IF('[1]FISCAL(M)'!$BJ80=\"\",\"\",'[1]FISCAL(M)'!$BJ80)","v":"n.d."},{"$f":"IF('[1]FISCAL(M)'!$BT80=\"\",\"\",'[1]FISCAL(M)'!$BT80)","v":"n.d."},{"$f":"IF('[2]MONE(M)'!$AO80=\"\",\"\",'[2]MONE(M)'!$AO80)","v":"n.d."},{"$f":"IF('[3]MONE(M)'!$AO80=\"\",\"\",'[3]MONE(M)'!$AO80)","v":"n.d."},{"$f":"IF('[4]MONE(M)'!$AO80=\"\",\"\",'[4]MONE(M)'!$AO80)","v":"n.d."},{"$f":"IF('[5]MONE(M)'!$AO80=\"\",\"\",'[5]MONE(M)'!$AO80)","v":"n.d."},{"$f":"IF('[6]MONE(M)'!$AO80=\"\",\"\",'[6]MONE(M)'!$AO80)","v":"n.d."},{"$f":"IF('[7]MONE(M)'!$AO80=\"\",\"\",'[7]MONE(M)'!$AO80)","v":"n.d."},{"$f":"IF('[8]MONE(M)'!$AO80=\"\",\"\",'[8]MONE(M)'!$AO80)","v":"n.d."},"n.d.","n.d.","n.d.","n.d.","n.d.","n.d.","n.d.",{"$f":"IF('[1]FISCAL(M)'!$K80=\"\",\"\",'[1]FISCAL(M)'!$K80)","v":"n.d."},"n.d.","n.d.",{"$f":"IF('[1]FISCAL(M)'!$L80=\"\",\"\",'[1]FISCAL(M)'!$L80)","v":"n.d."},"n.d.","n.d.","n.d.","n.d.","n.d.","n.d.","n.d.","n.d.","n.d.","n.d.","n.d.","n.d.","n.d.","n.d.","n.d.","n.d.","n.d.","n.d."]
[1995,"diciembre","1995-diciembre",{"$f":"IF('[1]REAL IPC(M)'!$AL81=\"\",\"\",+'[1]REAL IPC(M)'!$AL81)","v":13.440989818722638},{"$f":"IF('[1]REAL IPC(M)'!$BE81=\"\",\"\",+'[1]REAL IPC(M)'!$BE81)","v":12.877374738295888},{"$f":"IF('[1]REAL IPC(M)'!$AM81=\"\",\"\",+'[1]REAL IPC(M)'!$AM81)","v":12.23414097124882},{"$f":"IF('[1]REAL IPC(M)'!$BI81=\"\",\"\",+'[1]REAL IPC(M)'!$BI81)","v":11.734075733449977},{"$f":"IF('[1]REAL IMAE(M)'!BJ81=\"\",\"\",'[1]REAL IMAE(M)'!BJ81)","v":"n.d."},{"$f":"IF('[1]REAL IMAE(M)'!BK81=\"\",\"\",'[1]REAL IMAE(M)'!BK81)","v":"n.d."},{"$f":"IF('[1]REAL IMAE(M)'!BN81=\"\",\"\",'[1]REAL IMAE(M)'!BN81)","v":"n.d."},{"$f":"IF('[1]REAL IMAE(M)'!BO81=\"\",\"\",'[1]REAL IMAE(M)'!BO81)","v":"n.d."},{"$f":"IF('[1]EXT RIN(M)'!$K81=\"\",\"\",'[1]EXT RIN(M)'!$K81)","v":"n.d."},"n.d.",{"$f":"IF('[1]EXT RIN(M)'!$L81=\"\",\"\",'[1]EXT RIN(M)'!$L81)","v":"n.d."},"n.d.",{"$f":"IF('[1]MONE(M)CARD'!EG81=\"\",\"\",'[1]MONE(M)CARD'!EG81)","v":"n.d."},{"$f":"IF('[1]MONE(M)CARD'!EK81=\"\",\"\",'[1]MONE(M)CARD'!EK81)","v":"n.d."},{"$f":"IF('[1]MONE(M)CARD'!EP81=\"\",\"\",'[1]MONE(M)CARD'!EP81)","v":"n.d."},{"$f":"IF('[1]MONE(M)CARD'!ES81=\"\",\"\",'[1]MONE(M)CARD'!ES81)","v":"n.d."},{"$f":"IF('[1]MONE(M)CARD'!EV81=\"\",\"\",'[1]MONE(M)CARD'!EV81)","v":"n.d."},{"$f":"IF('[1]MONE(M)CARD'!EZ81=\"\",\"\",'[1]MONE(M)CARD'!EZ81)","v":"n.d."},{"$f":"IF('[1]MONE(M)CAPARD'!FC81=\"\",\"\",'[1]MONE(M)CAPARD'!FC81)","v":"n.d."},{"$f":"IF('[1]MONE(M)CAPARD'!FG81=\"\",\"\",'[1]MONE(M)CAPARD'!FG81)","v":"n.d."},{"$f":"IF('[1]MONE(M)CAPARD'!FL81=\"\",\"\",'[1]MONE(M)CAPARD'!FL81)","v":"n.d."},{"$f":"IF('[1]MONE(M)CAPARD'!FO81=\"\",\"\",'[1]MONE(M)CAPARD'!FO81)","v":"n.d."},{"$f":"IF('[1]MONE(M)CAPARD'!FR81=\"\",\"\",'[1]MONE(M)CAPARD'!FR81)","v":"n.d."},{"$f":"IF('[1]MONE(M)CAPARD'!FV81=\"\",\"\",'[1]MONE(M)CAPARD'!FV81)","v":"n.d."},{"$f":"IF('[1]MONE(M)CARD'!FV81=\"\",\"\",'[1]MONE(M)CARD'!FV81)","v":""},{"$f":"IF('[1]MONE(M)CARD'!GD81=\"\",\"\",'[1]MONE(M)CARD'!GD81)","v":"n.d."},{"$f":"IF('[1]MONE(M)CARD'!GE81=\"\",\"\",'[1]MONE(M)CARD'!GE81)","v":"n.d."},"n.d.","n.d.","n.d.","n.d.","n.d.","n.d.","n.d.","n.d.",null,"n.d.","n.d.","n.d.","n.d.","n.d.",{"$f":"IF('[1]MONE(M)CAPARD'!GS81=\"\",\"\",'[1]MONE(M)CAPARD'!GS81)","v":"n.d."},{"$f":"IF('[1]MONE(M)CARD'!HA81=\"\",\"\",'[1]MONE(M)CAPARD'!HA81)","v":"n.d."},{"$f":"IF('[1]MONE(M)CAPARD'!HB81=\"\",\"\",'[1]MONE(M)CAPARD'!HB81)","v":"n.d."},"n.d.","n.d.","n.d.","n.d.","n.d.","n.d.","n.d.","n.d.","n.d.","n.d.","n.d.","n.d.","n.d.","n.d.",{"$f":"IF('[1]MONE(M)CAPARD'!AS81=\"\",\"\",'[1]MONE(M)CAPARD'!AS81)","v":"n.d."},{"$f":"IF('[1]MONE(M)CAPARD'!AT81=\"\",\"\",'[1]MONE(M)CAPARD'!AT81)","v":"n.a."},{"$f":"IF('[1]MONE(M)CAPARD'!AU81=\"\",\"\",'[1]MONE(M)CAPARD'!AU81)","v":"n.d."},{"$f":"IF('[1]MONE(M)CAPARD'!AV81=\"\",\"\",'[1]MONE(M)CAPARD'!AV81)","v":"n.d."},{"$f":"IF('[1]MONE(M)CAPARD'!AW81=\"\",\"\",'[1]MONE(M)CAPARD'!AW81)","v":"n.a."},{"$f":"IF('[1]MONE(M)CAPARD'!AX81=\"\",\"\",'[1]MONE(M)CAPARD'!AX81)","v":"n.d."},{"$f":"IF('[1]MONE(M)CAPARD'!AY81=\"\",\"\",'[1]MONE(M)CAPARD'!AY81)","v":"n.a."},{"$f":"IF('[1]FISCAL(M)'!$K81=\"\",\"\",'[1]FISCAL(M)'!$K81)","v":"n.d."},{"$f":"IF('[1]FISCAL(M)'!$L81=\"\",\"\",'[1]FISCAL(M)'!$L81)","v":"n.d."},{"$f":"IF('[1]FISCAL(M)'!$AY81=\"\",\"\",'[1]FISCAL(M)'!$AY81)","v":"n.d."},{"$f":"IF('[1]FISCAL(M)'!$BI81=\"\",\"\",'[1]FISCAL(M)'!$BI81)","v":"n.d."},{"$f":"IF('[1]FISCAL(M)'!$BS81=\"\",\"\",'[1]FISCAL(M)'!$BS81)","v":"n.d."},{"$f":"IF('[1]FISCAL(M)'!$AZ81=\"\",\"\",'[1]FISCAL(M)'!$AZ81)","v":"n.d."},{"$f":"IF('[1]FISCAL(M)'!$BJ81=\"\",\"\",'[1]FISCAL(M)'!$BJ81)","v":"n.d."},{"$f":"IF('[1]FISCAL(M)'!$BT81=\"\",\"\",'[1]FISCAL(M)'!$BT81)","v":"n.d."},{"$f":"IF('[2]MONE(M)'!$AO81=\"\",\"\",'[2]MONE(M)'!$AO81)","v":"n.d."},{"$f":"IF('[3]MONE(M)'!$AO81=\"\",\"\",'[3]MONE(M)'!$AO81)","v":"n.d."},{"$f":"IF('[4]MONE(M)'!$AO81=\"\",\"\",'[4]MONE(M)'!$AO81)","v":"n.d."},{"$f":"IF('[5]MONE(M)'!$AO81=\"\",\"\",'[5]MONE(M)'!$AO81)","v":"n.d."},{"$f":"IF('[6]MONE(M)'!$AO81=\"\",\"\",'[6]MONE(M)'!$AO81)","v":"n.d."},{"$f":"IF('[7]MONE(M)'!$AO81=\"\",\"\",'[7]MONE(M)'!$AO81)","v":"n.d."},{"$f":"IF('[8]MONE(M)'!$AO81=\"\",\"\",'[8]MONE(M)'!$AO81)","v":"n.d."},"n.d.","n.d.","n.d.","n.d.","n.d.","n.d.","n.d.",{"$f":"IF('[1]FISCAL(M)'!$K81=\"\",\"\",'[1]FISCAL(M)'!$K81)","v":"n.d."},"n.d.","n.d.",{"$f":"IF('[1]FISCAL(M)'!$L81=\"\",\"\",'[1]FISCAL(M)'!$L81)","v":"n.d."},"n.d.","n.d.","n.d.","n.d.","n.d.","n.d.","n.d.","n.d.","n.d.","n.d.","n.d.","n.d.","n.d.","n.d.","n.d.","n.d.","n.d.","n.d."]
[1996,"enero","1996-enero",{"$f":"IF('[1]REAL IPC(M)'!$AL82=\"\",\"\",+'[1]REAL IPC(M)'!$AL82)","v":12.578133337380425},{"$f":"IF('[1]REAL IPC(M)'!$BE82=\"\",\"\",+'[1]REAL IPC(M)'!$BE82)","v":12.708146467117377},{"$f":"IF('[1]REAL IPC(M)'!$AM82=\"\",\"\",+'[1]REAL IPC(M)'!$AM82)","v":11.439544300285242},{"$f":"IF('[1]REAL IPC(M)'!$BI82=\"\",\"\",+'[1]REAL IPC(M)'!$BI82)","v":11.591169494972476},{"$f":"IF('[1]REAL IMAE(M)'!BJ82=\"\",\"\",'[1]REAL IMAE(M)'!BJ82)","v":"n.d."},{"$f":"IF('[1]REAL IMAE(M)'!BK82=\"\",\"\",'[1]REAL IMAE(M)'!BK82)","v":"n.d."},{"$f":"IF('[1]REAL IMAE(M)'!BN82=\"\",\"\",'[1]REAL IMAE(M)'!BN82)","v":"n.d."},{"$f":"IF('[1]REAL IMAE(M)'!BO82=\"\",\"\",'[1]REAL IMAE(M)'!BO82)","v":"n.d."},{"$f":"IF('[1]EXT RIN(M)'!$K82=\"\",\"\",'[1]EXT RIN(M)'!$K82)","v":"n.d."},"",{"$f":"IF('[1]EXT RIN(M)'!$L82=\"\",\"\",'[1]EXT RIN(M)'!$L82)","v":"n.d."},"",{"$f":"IF('[1]MONE(M)CARD'!EG82=\"\",\"\",'[1]MONE(M)CARD'!EG82)","v":"n.d."},{"$f":"IF('[1]MONE(M)CARD'!EK82=\"\",\"\",'[1]MONE(M)CARD'!EK82)","v":"n.d."},{"$f":"IF('[1]MONE(M)CARD'!EP82=\"\",\"\",'[1]MONE(M)CARD'!EP82)","v":"n.d."},{"$f":"IF('[1]MONE(M)CARD'!ES82=\"\",\"\",'[1]MONE(M)CARD'!ES82)","v":"n.d."},{"$f":"IF('[1]MONE(M)CARD'!EV82=\"\",\"\",'[1]MONE(M)CARD'!EV82)","v":"n.d."},{"$f":"IF('[1]MONE(M)CARD'!EZ82=\"\",\"\",'[1]MONE(M)CARD'!EZ82)","v":"n.d."},{"$f":"IF('[1]MONE(M)CAPARD'!FC82=\"\",\"\",'[1]MONE(M)CAPARD'!FC82)","v":"n.d."},{"$f":"IF('[1]MONE(M)CAPARD'!FG82=\"\",\"\",'[1]MONE(M)CAPARD'!FG82)","v":"n.d."},{"$f":"IF('[1]MONE(M)CAPARD'!FL82=\"\",\"\",'[1]MONE(M)CAPARD'!FL82)","v":"n.d."},{"$f":"IF('[1]MONE(M)CAPARD'!FO82=\"\",\"\",'[1]MONE(M)CAPARD'!FO82)","v":"n.d."},{"$f":"IF('[1]MONE(M)CAPARD'!FR82=\"\",\"\",'[1]MONE(M)CAPARD'!FR82)","v":"n.d."},{"$f":"IF('[1]MONE(M)CAPARD'!FV82=\"\",\"\",'[1]MONE(M)CAPARD'!FV82)","v":"n.d."},{"$f":"IF('[1]MONE(M)CARD'!FV82=\"\",\"\",'[1]MONE(M)CARD'!FV82)","v":""},{"$f":"IF('[1]MONE(M)CARD'!GD82=\"\",\"\",'[1]MONE(M)CARD'!GD82)","v":"n.d."},{"$f":"IF('[1]MONE(M)CARD'!GE82=\"\",\"\",'[1]MONE(M)CARD'!GE82)","v":"n.d."},"n.d.","n.d.","n.d.","n.d.","n.d.","n.d.","n.d.","n.d.",null,"n.d.","n.d.","n.d.","n.d.","n.d.",{"$f":"IF('[1]MONE(M)CAPARD'!GS82=\"\",\"\",'[1]MONE(M)CAPARD'!GS82)","v":"n.d."},{"$f":"IF('[1]MONE(M)CARD'!HA82=\"\",\"\",'[1]MONE(M)CAPARD'!HA82)","v":"n.d."},{"$f":"IF('[1]MONE(M)CAPARD'!HB82=\"\",\"\",'[1]MONE(M)CAPARD'!HB82)","v":"n.d."},"n.d.","n.d.","n.d.","n.d.","n.d.","n.d.","n.d.","n.d.","n.d.","n.d.","n.d.","n.d.","n.d.","n.d.",{"$f":"IF('[1]MONE(M)CAPARD'!AS82=\"\",\"\",'[1]MONE(M)CAPARD'!AS82)","v":"n.d."},{"$f":"IF('[1]MONE(M)CAPARD'!AT82=\"\",\"\",'[1]MONE(M)CAPARD'!AT82)","v":"n.a."},{"$f":"IF('[1]MONE(M)CAPARD'!AU82=\"\",\"\",'[1]MONE(M)CAPARD'!AU82)","v":"n.d."},{"$f":"IF('[1]MONE(M)CAPARD'!AV82=\"\",\"\",'[1]MONE(M)CAPARD'!AV82)","v":"n.d."},{"$f":"IF('[1]MONE(M)CAPARD'!AW82=\"\",\"\",'[1]MONE(M)CAPARD'!AW82)","v":"n.a."},{"$f":"IF('[1]MONE(M)CAPARD'!AX82=\"\",\"\",'[1]MONE(M)CAPARD'!AX82)","v":"n.d."},{"$f":"IF('[1]MONE(M)CAPARD'!AY82=\"\",\"\",'[1]MONE(M)CAPARD'!AY82)","v":"n.a."},{"$f":"IF('[1]FISCAL(M)'!$K82=\"\",\"\",'[1]FISCAL(M)'!$K82)","v":"n.d."},{"$f":"IF('[1]FISCAL(M)'!$L82=\"\",\"\",'[1]FISCAL(M)'!$L82)","v":"n.d."},{"$f":"IF('[1]FISCAL(M)'!$AY82=\"\",\"\",'[1]FISCAL(M)'!$AY82)","v":"n.d."},{"$f":"IF('[1]FISCAL(M)'!$BI82=\"\",\"\",'[1]FISCAL(M)'!$BI82)","v":"n.d."},{"$f":"IF('[1]FISCAL(M)'!$BS82=\"\",\"\",'[1]FISCAL(M)'!$BS82)","v":"n.d."},{"$f":"IF('[1]FISCAL(M)'!$AZ82=\"\",\"\",'[1]FISCAL(M)'!$AZ82)","v":"n.d."},{"$f":"IF('[1]FISCAL(M)'!$BJ82=\"\",\"\",'[1]FISCAL(M)'!$BJ82)","v":"n.d."},{"$f":"IF('[1]FISCAL(M)'!$BT82=\"\",\"\",'[1]FISCAL(M)'!$BT82)","v":"n.d."},{"$f":"IF('[2]MONE(M)'!$AO82=\"\",\"\",'[2]MONE(M)'!$AO82)","v":"n.d."},{"$f":"IF('[3]MONE(M)'!$AO82=\"\",\"\",'[3]MONE(M)'!$AO82)","v":"n.d."},{"$f":"IF('[4]MONE(M)'!$AO82=\"\",\"\",'[4]MONE(M)'!$AO82)","v":"n.d."},{"$f":"IF('[5]MONE(M)'!$AO82=\"\",\"\",'[5]MONE(M)'!$AO82)","v":"n.d."},{"$f":"IF('[6]MONE(M)'!$AO82=\"\",\"\",'[6]MONE(M)'!$AO82)","v":"n.d."},{"$f":"IF('[7]MONE(M)'!$AO82=\"\",\"\",'[7]MONE(M)'!$AO82)","v":"n.d."},{"$f":"IF('[8]MONE(M)'!$AO82=\"\",\"\",'[8]MONE(M)'!$AO82)","v":"n.d."},"n.d.","n.d.","n.d.","n.d.","n.d.","n.d.","n.d.",{"$f":"IF('[1]FISCAL(M)'!$K82=\"\",\"\",'[1]FISCAL(M)'!$K82)","v":"n.d."},"n.d.","n.d.",{"$f":"IF('[1]FISCAL(M)'!$L82=\"\",\"\",'[1]FISCAL(M)'!$L82)","v":"n.d."},"n.d.","n.d.","n.d.","n.d.","n.d.","n.d.","n.d.","n.d.","n.d.","n.d.","n.d.","n.d.","n.d.","n.d.","n.d.","n.d.","n.d.","n.d."]
[1996,"febrero","1996-febrero",{"$f":"IF('[1]REAL IPC(M)'!$AL83=\"\",\"\",+'[1]REAL IPC(M)'!$AL83)","v":12.392030406320242},{"$f":"IF('[1]REAL IPC(M)'!$BE83=\"\",\"\",+'[1]REAL IPC(M)'!$BE83)","v":12.53905587509232},{"$f":"IF('[1]REAL IPC(M)'!$AM83=\"\",\"\",+'[1]REAL IPC(M)'!$AM83)","v":11.280487121197446},{"$f":"IF('[1]REAL IPC(M)'!$BI83=\"\",\"\",+'[1]REAL IPC(M)'!$BI83)","v":11.447743982775682},{"$f":"IF('[1]REAL IMAE(M)'!BJ83=\"\",\"\",'[1]REAL IMAE(M)'!BJ83)","v":"n.d."},{"$f":"IF('[1]REAL IMAE(M)'!BK83=\"\",\"\",'[1]REAL IMAE(M)'!BK83)","v":"n.d."},{"$f":"IF('[1]REAL IMAE(M)'!BN83=\"\",\"\",'[1]REAL IMAE(M)'!BN83)","v":"n.d."},{"$f":"IF('[1]REAL IMAE(M)'!BO83=\"\",\"\",'[1]REAL IMAE(M)'!BO83)","v":"n.d."},{"$f":"IF('[1]EXT RIN(M)'!$K83=\"\",\"\",'[1]EXT RIN(M)'!$K83)","v":"n.d."},"",{"$f":"IF('[1]EXT RIN(M)'!$L83=\"\",\"\",'[1]EXT RIN(M)'!$L83)","v":"n.d."},"",{"$f":"IF('[1]MONE(M)CARD'!EG83=\"\",\"\",'[1]MONE(M)CARD'!EG83)","v":"n.d."},{"$f":"IF('[1]MONE(M)CARD'!EK83=\"\",\"\",'[1]MONE(M)CARD'!EK83)","v":"n.d."},{"$f":"IF('[1]MONE(M)CARD'!EP83=\"\",\"\",'[1]MONE(M)CARD'!EP83)","v":"n.d."},{"$f":"IF('[1]MONE(M)CARD'!ES83=\"\",\"\",'[1]MONE(M)CARD'!ES83)","v":"n.d."},{"$f":"IF('[1]MONE(M)CARD'!EV83=\"\",\"\",'[1]MONE(M)CARD'!EV83)","v":"n.d."},{"$f":"IF('[1]MONE(M)CARD'!EZ83=\"\",\"\",'[1]MONE(M)CARD'!EZ83)","v":"n.d."},{"$f":"IF('[1]MONE(M)CAPARD'!FC83=\"\",\"\",'[1]MONE(M)CAPARD'!FC83)","v":"n.d."},{"$f":"IF('[1]MONE(M)CAPARD'!FG83=\"\",\"\",'[1]MONE(M)CAPARD'!FG83)","v":"n.d."},{"$f":"IF('[1]MONE(M)CAPARD'!FL83=\"\",\"\",'[1]MONE(M)CAPARD'!FL83)","v":"n.d."},{"$f":"IF('[1]MONE(M)CAPARD'!FO83=\"\",\"\",'[1]MONE(M)CAPARD'!FO83)","v":"n.d."},{"$f":"IF('[1]MONE(M)CAPARD'!FR83=\"\",\"\",'[1]MONE(M)CAPARD'!FR83)","v":"n.d."},{"$f":"IF('[1]MONE(M)CAPARD'!FV83=\"\",\"\",'[1]MONE(M)CAPARD'!FV83)","v":"n.d."},{"$f":"IF('[1]MONE(M)CARD'!FV83=\"\",\"\",'[1]MONE(M)CARD'!FV83)","v":""},{"$f":"IF('[1]MONE(M)CARD'!GD83=\"\",\"\",'[1]MONE(M)CARD'!GD83)","v":"n.d."},{"$f":"IF('[1]MONE(M)CARD'!GE83=\"\",\"\",'[1]MONE(M)CARD'!GE83)","v":"n.d."},"n.d.","n.d.","n.d.","n.d.","n.d.","n.d.","n.d.","n.d.",null,"n.d.","n.d.","n.d.","n.d.","n.d.",{"$f":"IF('[1]MONE(M)CAPARD'!GS83=\"\",\"\",'[1]MONE(M)CAPARD'!GS83)","v":"n.d."},{"$f":"IF('[1]MONE(M)CARD'!HA83=\"\",\"\",'[1]MONE(M)CAPARD'!HA83)","v":"n.d."},{"$f":"IF('[1]MONE(M)CAPARD'!HB83=\"\",\"\",'[1]MONE(M)CAPARD'!HB83)","v":"n.d."},"n.d.","n.d.","n.d.","n.d.","n.d.","n.d.","n.d.","n.d.","n.d.","n.d.","n.d.","n.d.","n.d.","n.d.",{"$f":"IF('[1]MONE(M)CAPARD'!AS83=\"\",\"\",'[1]MONE(M)CAPARD'!AS83)","v":"n.d."},{"$f":"IF('[1]MONE(M)CAPARD'!AT83=\"\",\"\",'[1]MONE(M)CAPARD'!AT83)","v":"n.a."},{"$f":"IF('[1]MONE(M)CAPARD'!AU83=\"\",\"\",'[1]MONE(M)CAPARD'!AU83)","v":"n.d."},{"$f":"IF('[1]MONE(M)CAPARD'!AV83=\"\",\"\",'[1]MONE(M)CAPARD'!AV83)","v":"n.d."},{"$f":"IF('[1]MONE(M)CAPARD'!AW83=\"\",\"\",'[1]MONE(M)CAPARD'!AW83)","v":"n.a."},{"$f":"IF('[1]MONE(M)CAPARD'!AX83=\"\",\"\",'[1]MONE(M)CAPARD'!AX83)","v":"n.d."},{"$f":"IF('[1]MONE(M)CAPARD'!AY83=\"\",\"\",'[1]MONE(M)CAPARD'!AY83)","v":"n.a."},{"$f":"IF('[1]FISCAL(M)'!$K83=\"\",\"\",'[1]FISCAL(M)'!$K83)","v":"n.d."},{"$f":"IF('[1]FISCAL(M)'!$L83=\"\",\"\",'[1]FISCAL(M)'!$L83)","v":"n.d."},{"$f":"IF('[1]FISCAL(M)'!$AY83=\"\",\"\",'[1]FISCAL(M)'!$AY83)","v":"n.d."},{"$f":"IF('[1]FISCAL(M)'!$BI83=\"\",\"\",'[1]FISCAL(M)'!$BI83)","v":"n.d."},{"$f":"IF('[1]FISCAL(M)'!$BS83=\"\",\"\",'[1]FISCAL(M)'!$BS83)","v":"n.d."},{"$f":"IF('[1]FISCAL(M)'!$AZ83=\"\",\"\",'[1]FISCAL(M)'!$AZ83)","v":"n.d."},{"$f":"IF('[1]FISCAL(M)'!$BJ83=\"\",\"\",'[1]FISCAL(M)'!$BJ83)","v":"n.d."},{"$f":"IF('[1]FISCAL(M)'!$BT83=\"\",\"\",'[1]FISCAL(M)'!$BT83)","v":"n.d."},{"$f":"IF('[2]MONE(M)'!$AO83=\"\",\"\",'[2]MONE(M)'!$AO83)","v":"n.d."},{"$f":"IF('[3]MONE(M)'!$AO83=\"\",\"\",'[3]MONE(M)'!$AO83)","v":"n.d."},{"$f":"IF('[4]MONE(M)'!$AO83=\"\",\"\",'[4]MONE(M)'!$AO83)","v":"n.d."},{"$f":"IF('[5]MONE(M)'!$AO83=\"\",\"\",'[5]MONE(M)'!$AO83)","v":"n.d."},{"$f":"IF('[6]MONE(M)'!$AO83=\"\",\"\",'[6]MONE(M)'!$AO83)","v":"n.d."},{"$f":"IF('[7]MONE(M)'!$AO83=\"\",\"\",'[7]MONE(M)'!$AO83)","v":"n.d."},{"$f":"IF('[8]MONE(M)'!$AO83=\"\",\"\",'[8]MONE(M)'!$AO83)","v":"n.d."},"n.d.","n.d.","n.d.","n.d.","n.d.","n.d.","n.d.",{"$f":"IF('[1]FISCAL(M)'!$K83=\"\",\"\",'[1]FISCAL(M)'!$K83)","v":"n.d."},"n.d.","n.d.",{"$f":"IF('[1]FISCAL(M)'!$L83=\"\",\"\",'[1]FISCAL(M)'!$L83)","v":"n.d."},"n.d.","n.d.","n.d.","n.d.","n.d.","n.d.","n.d.","n.d.","n.d.","n.d.","n.d.","n.d.","n.d.","n.d.","n.d.","n.d.","n.d.","n.d."]
[1996,"marzo","1996-marzo",{"$f":"IF('[1]REAL IPC(M)'!$AL84=\"\",\"\",+'[1]REAL IPC(M)'!$AL84)","v":12.275840173685705},{"$f":"IF('[1]REAL IPC(M)'!$BE84=\"\",\"\",+'[1]REAL IPC(M)'!$BE84)","v":12.370092665801714},{"$f":"IF('[1]REAL IPC(M)'!$AM84=\"\",\"\",+'[1]REAL IPC(M)'!$AM84)","v":11.180041566581856},{"$f":"IF('[1]REAL IPC(M)'!$BI84=\"\",\"\",+'[1]REAL IPC(M)'!$BI84)","v":11.303806204068145},{"$f":"IF('[1]REAL IMAE(M)'!BJ84=\"\",\"\",'[1]REAL IMAE(M)'!BJ84)","v":"n.d."},{"$f":"IF('[1]REAL IMAE(M)'!BK84=\"\",\"\",'[1]REAL IMAE(M)'!BK84)","v":"n.d."},{"$f":"IF('[1]REAL IMAE(M)'!BN84=\"\",\"\",'[1]REAL IMAE(M)'!BN84)","v":"n.d."},{"$f":"IF('[1]REAL IMAE(M)'!BO84=\"\",\"\",'[1]REAL IMAE(M)'!BO84)","v":"n.d."},{"$f":"IF('[1]EXT RIN(M)'!$K84=\"\",\"\",'[1]EXT RIN(M)'!$K84)","v":"n.d."},"",{"$f":"IF('[1]EXT RIN(M)'!$L84=\"\",\"\",'[1]EXT RIN(M)'!$L84)","v":"n.d."},"",{"$f":"IF('[1]MONE(M)CARD'!EG84=\"\",\"\",'[1]MONE(M)CARD'!EG84)","v":"n.d."},{"$f":"IF('[1]MONE(M)CARD'!EK84=\"\",\"\",'[1]MONE(M)CARD'!EK84)","v":"n.d."},{"$f":"IF('[1]MONE(M)CARD'!EP84=\"\",\"\",'[1]MONE(M)CARD'!EP84)","v":"n.d."},{"$f":"IF('[1]MONE(M)CARD'!ES84=\"\",\"\",'[1]MONE(M)CARD'!ES84)","v":"n.d."},{"$f":"IF('[1]MONE(M)CARD'!EV84=\"\",\"\",'[1]MONE(M)CARD'!EV84)","v":"n.d."},{"$f":"IF('[1]MONE(M)CARD'!EZ84=\"\",\"\",'[1]MONE(M)CARD'!EZ84)","v":"n.d."},{"$f":"IF('[1]MONE(M)CAPARD'!FC84=\"\",\"\",'[1]MONE(M)CAPARD'!FC84)","v":"n.d."},{"$f":"IF('[1]MONE(M)CAPARD'!FG84=\"\",\"\",'[1]MONE(M)CAPARD'!FG84)","v":"n.d."},{"$f":"IF('[1]MONE(M)CAPARD'!FL84=\"\",\"\",'[1]MONE(M)CAPARD'!FL84)","v":"n.d."},{"$f":"IF('[1]MONE(M)CAPARD'!FO84=\"\",\"\",'[1]MONE(M)CAPARD'!FO84)","v":"n.d."},{"$f":"IF('[1]MONE(M)CAPARD'!FR84=\"\",\"\",'[1]MONE(M)CAPARD'!FR84)","v":"n.d."},{"$f":"IF('[1]MONE(M)CAPARD'!FV84=\"\",\"\",'[1]MONE(M)CAPARD'!FV84)","v":"n.d."},{"$f":"IF('[1]MONE(M)CARD'!FV84=\"\",\"\",'[1]MONE(M)CARD'!FV84)","v":""},{"$f":"IF('[1]MONE(M)CARD'!GD84=\"\",\"\",'[1]MONE(M)CARD'!GD84)","v":"n.d."},{"$f":"IF('[1]MONE(M)CARD'!GE84=\"\",\"\",'[1]MONE(M)CARD'!GE84)","v":"n.d."},"n.d.","n.d.","n.d.","n.d.","n.d.","n.d.","n.d.","n.d.",null,"n.d.","n.d.","n.d.","n.d.","n.d.",{"$f":"IF('[1]MONE(M)CAPARD'!GS84=\"\",\"\",'[1]MONE(M)CAPARD'!GS84)","v":"n.d."},{"$f":"IF('[1]MONE(M)CARD'!HA84=\"\",\"\",'[1]MONE(M)CAPARD'!HA84)","v":"n.d."},{"$f":"IF('[1]MONE(M)CAPARD'!HB84=\"\",\"\",'[1]MONE(M)CAPARD'!HB84)","v":"n.d."},"n.d.","n.d.","n.d.","n.d.","n.d.","n.d.","n.d.","n.d.","n.d.","n.d.","n.d.","n.d.","n.d.","n.d.",{"$f":"IF('[1]MONE(M)CAPARD'!AS84=\"\",\"\",'[1]MONE(M)CAPARD'!AS84)","v":"n.d."},{"$f":"IF('[1]MONE(M)CAPARD'!AT84=\"\",\"\",'[1]MONE(M)CAPARD'!AT84)","v":"n.a."},{"$f":"IF('[1]MONE(M)CAPARD'!AU84=\"\",\"\",'[1]MONE(M)CAPARD'!AU84)","v":"n.d."},{"$f":"IF('[1]MONE(M)CAPARD'!AV84=\"\",\"\",'[1]MONE(M)CAPARD'!AV84)","v":"n.d."},{"$f":"IF('[1]MONE(M)CAPARD'!AW84=\"\",\"\",'[1]MONE(M)CAPARD'!AW84)","v":"n.a."},{"$f":"IF('[1]MONE(M)CAPARD'!AX84=\"\",\"\",'[1]MONE(M)CAPARD'!AX84)","v":"n.d."},{"$f":"IF('[1]MONE(M)CAPARD'!AY84=\"\",\"\",'[1]MONE(M)CAPARD'!AY84)","v":"n.a."},{"$f":"IF('[1]FISCAL(M)'!$K84=\"\",\"\",'[1]FISCAL(M)'!$K84)","v":"n.d."},{"$f":"IF('[1]FISCAL(M)'!$L84=\"\",\"\",'[1]FISCAL(M)'!$L84)","v":"n.d."},{"$f":"IF('[1]FISCAL(M)'!$AY84=\"\",\"\",'[1]FISCAL(M)'!$AY84)","v":"n.d."},{"$f":"IF('[1]FISCAL(M)'!$BI84=\"\",\"\",'[1]FISCAL(M)'!$BI84)","v":"n.d."},{"$f":"IF('[1]FISCAL(M)'!$BS84=\"\",\"\",'[1]FISCAL(M)'!$BS84)","v":"n.d."},{"$f":"IF('[1]FISCAL(M)'!$AZ84=\"\",\"\",'[1]FISCAL(M)'!$AZ84)","v":"n.d."},{"$f":"IF('[1]FISCAL(M)'!$BJ84=\"\",\"\",'[1]FISCAL(M)'!$BJ84)","v":"n.d."},{"$f":"IF('[1]FISCAL(M)'!$BT84=\"\",\"\",'[1]FISCAL(M)'!$BT84)","v":"n.d."},{"$f":"IF('[2]MONE(M)'!$AO84=\"\",\"\",'[2]MONE(M)'!$AO84)","v":"n.d."},{"$f":"IF('[3]MONE(M)'!$AO84=\"\",\"\",'[3]MONE(M)'!$AO84)","v":"n.d."},{"$f":"IF('[4]MONE(M)'!$AO84=\"\",\"\",'[4]MONE(M)'!$AO84)","v":"n.d."},{"$f":"IF('[5]MONE(M)'!$AO84=\"\",\"\",'[5]MONE(M)'!$AO84)","v":"n.d."},{"$f":"IF('[6]MONE(M)'!$AO84=\"\",\"\",'[6]MONE(M)'!$AO84)","v":"n.d."},{"$f":"IF('[7]MONE(M)'!$AO84=\"\",\"\",'[7]MONE(M)'!$AO84)","v":"n.d."},{"$f":"IF('[8]MONE(M)'!$AO84=\"\",\"\",'[8]MONE(M)'!$AO84)","v":"n.d."},"n.d.","n.d.","n.d.","n.d.","n.d.","n.d.","n.d.",{"$f":"IF('[1]FISCAL(M)'!$K84=\"\",\"\",'[1]FISCAL(M)'!$K84)","v":"n.d."},"n.d.","n.d.",{"$f":"IF('[1]FISCAL(M)'!$L84=\"\",\"\",'[1]FISCAL(M)'!$L84)","v":"n.d."},"n.d.","n.d.","n.d.","n.d.","n.d.","n.d.","n.d.","n.d.","n.d.","n.d.","n.d.","n.d.","n.d.","n.d.","n.d.","n.d.","n.d.","n.d."]
[1996,"abril","1996-abril",{"$f":"IF('[1]REAL IPC(M)'!$AL85=\"\",\"\",+'[1]REAL IPC(M)'!$AL85)","v":12.491510547770623},{"$f":"IF('[1]REAL IPC(M)'!$BE85=\"\",\"\",+'[1]REAL IPC(M)'!$BE85)","v":12.201235339664107},{"$f":"IF('[1]REAL IPC(M)'!$AM85=\"\",\"\",+'[1]REAL IPC(M)'!$AM85)","v":11.378107606397524},{"$f":"IF('[1]REAL IPC(M)'!$BI85=\"\",\"\",+'[1]REAL IPC(M)'!$BI85)","v":11.15935085328319},{"$f":"IF('[1]REAL IMAE(M)'!BJ85=\"\",\"\",'[1]REAL IMAE(M)'!BJ85)","v":"n.d."},{"$f":"IF('[1]REAL IMAE(M)'!BK85=\"\",\"\",'[1]REAL IMAE(M)'!BK85)","v":"n.d."},{"$f":"IF('[1]REAL IMAE(M)'!BN85=\"\",\"\",'[1]REAL IMAE(M)'!BN85)","v":"n.d."},{"$f":"IF('[1]REAL IMAE(M)'!BO85=\"\",\"\",'[1]REAL IMAE(M)'!BO85)","v":"n.d."},{"$f":"IF('[1]EXT RIN(M)'!$K85=\"\",\"\",'[1]EXT RIN(M)'!$K85)","v":"n.d."},"",{"$f":"IF('[1]EXT RIN(M)'!$L85=\"\",\"\",'[1]EXT RIN(M)'!$L85)","v":"n.d."},"",{"$f":"IF('[1]MONE(M)CARD'!EG85=\"\",\"\",'[1]MONE(M)CARD'!EG85)","v":"n.d."},{"$f":"IF('[1]MONE(M)CARD'!EK85=\"\",\"\",'[1]MONE(M)CARD'!EK85)","v":"n.d."},{"$f":"IF('[1]MONE(M)CARD'!EP85=\"\",\"\",'[1]MONE(M)CARD'!EP85)","v":"n.d."},{"$f":"IF('[1]MONE(M)CARD'!ES85=\"\",\"\",'[1]MONE(M)CARD'!ES85)","v":"n.d."},{"$f":"IF('[1]MONE(M)CARD'!EV85=\"\",\"\",'[1]MONE(M)CARD'!EV85)","v":"n.d."},{"$f":"IF('[1]MONE(M)CARD'!EZ85=\"\",\"\",'[1]MONE(M)CARD'!EZ85)","v":"n.d."},{"$f":"IF('[1]MONE(M)CAPARD'!FC85=\"\",\"\",'[1]MONE(M)CAPARD'!FC85)","v":"n.d."},{"$f":"IF('[1]MONE(M)CAPARD'!FG85=\"\",\"\",'[1]MONE(M)CAPARD'!FG85)","v":"n.d."},{"$f":"IF('[1]MONE(M)CAPARD'!FL85=\"\",\"\",'[1]MONE(M)CAPARD'!FL85)","v":"n.d."},{"$f":"IF('[1]MONE(M)CAPARD'!FO85=\"\",\"\",'[1]MONE(M)CAPARD'!FO85)","v":"n.d."},{"$f":"IF('[1]MONE(M)CAPARD'!FR85=\"\",\"\",'[1]MONE(M)CAPARD'!FR85)","v":"n.d."},{"$f":"IF('[1]MONE(M)CAPARD'!FV85=\"\",\"\",'[1]MONE(M)CAPARD'!FV85)","v":"n.d."},{"$f":"IF('[1]MONE(M)CARD'!FV85=\"\",\"\",'[1]MONE(M)CARD'!FV85)","v":""},{"$f":"IF('[1]MONE(M)CARD'!GD85=\"\",\"\",'[1]MONE(M)CARD'!GD85)","v":"n.d."},{"$f":"IF('[1]MONE(M)CARD'!GE85=\"\",\"\",'[1]MONE(M)CARD'!GE85)","v":"n.d."},"n.d.","n.d.","n.d.","n.d.","n.d.","n.d.","n.d.","n.d.",null,"n.d.","n.d.","n.d.","n.d.","n.d.",{"$f":"IF('[1]MONE(M)CAPARD'!GS85=\"\",\"\",'[1]MONE(M)CAPARD'!GS85)","v":"n.d."},{"$f":"IF('[1]MONE(M)CARD'!HA85=\"\",\"\",'[1]MONE(M)CAPARD'!HA85)","v":"n.d."},{"$f":"IF('[1]MONE(M)CAPARD'!HB85=\"\",\"\",'[1]MONE(M)CAPARD'!HB85)","v":"n.d."},"n.d.","n.d.","n.d.","n.d.","n.d.","n.d.","n.d.","n.d.","n.d.","n.d.","n.d.","n.d.","n.d.","n.d.",{"$f":"IF('[1]MONE(M)CAPARD'!AS85=\"\",\"\",'[1]MONE(M)CAPARD'!AS85)","v":"n.d."},{"$f":"IF('[1]MONE(M)CAPARD'!AT85=\"\",\"\",'[1]MONE(M)CAPARD'!AT85)","v":"n.a."},{"$f":"IF('[1]MONE(M)CAPARD'!AU85=\"\",\"\",'[1]MONE(M)CAPARD'!AU85)","v":"n.d."},{"$f":"IF('[1]MONE(M)CAPARD'!AV85=\"\",\"\",'[1]MONE(M)CAPARD'!AV85)","v":"n.d."},{"$f":"IF('[1]MONE(M)CAPARD'!AW85=\"\",\"\",'[1]MONE(M)CAPARD'!AW85)","v":"n.a."},{"$f":"IF('[1]MONE(M)CAPARD'!AX85=\"\",\"\",'[1]MONE(M)CAPARD'!AX85)","v":"n.d."},{"$f":"IF('[1]MONE(M)CAPARD'!AY85=\"\",\"\",'[1]MONE(M)CAPARD'!AY85)","v":"n.a."},{"$f":"IF('[1]FISCAL(M)'!$K85=\"\",\"\",'[1]FISCAL(M)'!$K85)","v":"n.d."},{"$f":"IF('[1]FISCAL(M)'!$L85=\"\",\"\",'[1]FISCAL(M)'!$L85)","v":"n.d."},{"$f":"IF('[1]FISCAL(M)'!$AY85=\"\",\"\",'[1]FISCAL(M)'!$AY85)","v":"n.d."},{"$f":"IF('[1]FISCAL(M)'!$BI85=\"\",\"\",'[1]FISCAL(M)'!$BI85)","v":"n.d."},{"$f":"IF('[1]FISCAL(M)'!$BS85=\"\",\"\",'[1]FISCAL(M)'!$BS85)","v":"n.d."},{"$f":"IF('[1]FISCAL(M)'!$AZ85=\"\",\"\",'[1]FISCAL(M)'!$AZ85)","v":"n.d."},{"$f":"IF('[1]FISCAL(M)'!$BJ85=\"\",\"\",'[1]FISCAL(M)'!$BJ85)","v":"n.d."},{"$f":"IF('[1]FISCAL(M)'!$BT85=\"\",\"\",'[1]FISCAL(M)'!$BT85)","v":"n.d."},{"$f":"IF('[2]MONE(M)'!$AO85=\"\",\"\",'[2]MONE(M)'!$AO85)","v":"n.d."},{"$f":"IF('[3]MONE(M)'!$AO85=\"\",\"\",'[3]MONE(M)'!$AO85)","v":"n.d."},{"$f":"IF('[4]MONE(M)'!$AO85=\"\",\"\",'[4]MONE(M)'!$AO85)","v":"n.d."},{"$f":"IF('[5]MONE(M)'!$AO85=\"\",\"\",'[5]MONE(M)'!$AO85)","v":"n.d."},{"$f":"IF('[6]MONE(M)'!$AO85=\"\",\"\",'[6]MONE(M)'!$AO85)","v":"n.d."},{"$f":"IF('[7]MONE(M)'!$AO85=\"\",\"\",'[7]MONE(M)'!$AO85)","v":"n.d."},{"$f":"IF('[8]MONE(M)'!$AO85=\"\",\"\",'[8]MONE(M)'!$AO85)","v":"n.d."},"n.d.","n.d.","n.d.","n.d.","n.d.","n.d.","n.d.",{"$f":"IF('[1]FISCAL(M)'!$K85=\"\",\"\",'[1]FISCAL(M)'!$K85)","v":"n.d."},"n.d.","n.d.",{"$f":"IF('[1]FISCAL(M)'!$L85=\"\",\"\",'[1]FISCAL(M)'!$L85)","v":"n.d."},"n.d.","n.d.","n.d.","n.d.","n.d.","n.d.","n.d.","n.d.","n.d.","n.d.","n.d.","n.d.","n.d.","n.d.","n.d.","n.d.","n.d.","n.d."]
[1996,"mayo ","1996-mayo ",{"$f":"IF('[1]REAL IPC(M)'!$AL86=\"\",\"\",+'[1]REAL IPC(M)'!$AL86)","v":12.460849125685435},{"$f":"IF('[1]REAL IPC(M)'!$BE86=\"\",\"\",+'[1]REAL IPC(M)'!$BE86)","v":12.032459243073435},{"$f":"IF('[1]REAL IPC(M)'!$AM86=\"\",\"\",+'[1]REAL IPC(M)'!$AM86)","v":11.311038714860388},{"$f":"IF('[1]REAL IPC(M)'!$BI86=\"\",\"\",+'[1]REAL IPC(M)'!$BI86)","v":11.0143687525883},{"$f":"IF('[1]REAL IMAE(M)'!BJ86=\"\",\"\",'[1]REAL IMAE(M)'!BJ86)","v":"n.d."},{"$f":"IF('[1]REAL IMAE(M)'!BK86=\"\",\"\",'[1]REAL IMAE(M)'!BK86)","v":"n.d."},{"$f":"IF('[1]REAL IMAE(M)'!BN86=\"\",\"\",'[1]REAL IMAE(M)'!BN86)","v":"n.d."},{"$f":"IF('[1]REAL IMAE(M)'!BO86=\"\",\"\",'[1]REAL IMAE(M)'!BO86)","v":"n.d."},{"$f":"IF('[1]EXT RIN(M)'!$K86=\"\",\"\",'[1]EXT RIN(M)'!$K86)","v":"n.d."},"",{"$f":"IF('[1]EXT RIN(M)'!$L86=\"\",\"\",'[1]EXT RIN(M)'!$L86)","v":"n.d."},"",{"$f":"IF('[1]MONE(M)CARD'!EG86=\"\",\"\",'[1]MONE(M)CARD'!EG86)","v":"n.d."},{"$f":"IF('[1]MONE(M)CARD'!EK86=\"\",\"\",'[1]MONE(M)CARD'!EK86)","v":"n.d."},{"$f":"IF('[1]MONE(M)CARD'!EP86=\"\",\"\",'[1]MONE(M)CARD'!EP86)","v":"n.d."},{"$f":"IF('[1]MONE(M)CARD'!ES86=\"\",\"\",'[1]MONE(M)CARD'!ES86)","v":"n.d."},{"$f":"IF('[1]MONE(M)CARD'!EV86=\"\",\"\",'[1]MONE(M)CARD'!EV86)","v":"n.d."},{"$f":"IF('[1]MONE(M)CARD'!EZ86=\"\",\"\",'[1]MONE(M)CARD'!EZ86)","v":"n.d."},{"$f":"IF('[1]MONE(M)CAPARD'!FC86=\"\",\"\",'[1]MONE(M)CAPARD'!FC86)","v":"n.d."},{"$f":"IF('[1]MONE(M)CAPARD'!FG86=\"\",\"\",'[1]MONE(M)CAPARD'!FG86)","v":"n.d."},{"$f":"IF('[1]MONE(M)CAPARD'!FL86=\"\",\"\",'[1]MONE(M)CAPARD'!FL86)","v":"n.d."},{"$f":"IF('[1]MONE(M)CAPARD'!FO86=\"\",\"\",'[1]MONE(M)CAPARD'!FO86)","v":"n.d."},{"$f":"IF('[1]MONE(M)CAPARD'!FR86=\"\",\"\",'[1]MONE(M)CAPARD'!FR86)","v":"n.d."},{"$f":"IF('[1]MONE(M)CAPARD'!FV86=\"\",\"\",'[1]MONE(M)CAPARD'!FV86)","v":"n.d."},{"$f":"IF('[1]MONE(M)CARD'!FV86=\"\",\"\",'[1]MONE(M)CARD'!FV86)","v":""},{"$f":"IF('[1]MONE(M)CARD'!GD86=\"\",\"\",'[1]MONE(M)CARD'!GD86)","v":"n.d."},{"$f":"IF('[1]MONE(M)CARD'!GE86=\"\",\"\",'[1]MONE(M)CARD'!GE86)","v":"n.d."},"n.d.","n.d.","n.d.","n.d.","n.d.","n.d.","n.d.","n.d.",null,"n.d.","n.d.","n.d.","n.d.","n.d.",{"$f":"IF('[1]MONE(M)CAPARD'!GS86=\"\",\"\",'[1]MONE(M)CAPARD'!GS86)","v":"n.d."},{"$f":"IF('[1]MONE(M)CARD'!HA86=\"\",\"\",'[1]MONE(M)CAPARD'!HA86)","v":"n.d."},{"$f":"IF('[1]MONE(M)CAPARD'!HB86=\"\",\"\",'[1]MONE(M)CAPARD'!HB86)","v":"n.d."},"n.d.","n.d.","n.d.","n.d.","n.d.","n.d.","n.d.","n.d.","n.d.","n.d.","n.d.","n.d.","n.d.","n.d.",{"$f":"IF('[1]MONE(M)CAPARD'!AS86=\"\",\"\",'[1]MONE(M)CAPARD'!AS86)","v":"n.d."},{"$f":"IF('[1]MONE(M)CAPARD'!AT86=\"\",\"\",'[1]MONE(M)CAPARD'!AT86)","v":"n.a."},{"$f":"IF('[1]MONE(M)CAPARD'!AU86=\"\",\"\",'[1]MONE(M)CAPARD'!AU86)","v":"n.d."},{"$f":"IF('[1]MONE(M)CAPARD'!AV86=\"\",\"\",'[1]MONE(M)CAPARD'!AV86)","v":"n.d."},{"$f":"IF('[1]MONE(M)CAPARD'!AW86=\"\",\"\",'[1]MONE(M)CAPARD'!AW86)","v":"n.a."},{"$f":"IF('[1]MONE(M)CAPARD'!AX86=\"\",\"\",'[1]MONE(M)CAPARD'!AX86)","v":"n.d."},{"$f":"IF('[1]MONE(M)CAPARD'!AY86=\"\",\"\",'[1]MONE(M)CAPARD'!AY86)","v":"n.a."},{"$f":"IF('[1]FISCAL(M)'!$K86=\"\",\"\",'[1]FISCAL(M)'!$K86)","v":"n.d."},{"$f":"IF('[1]FISCAL(M)'!$L86=\"\",\"\",'[1]FISCAL(M)'!$L86)","v":"n.d."},{"$f":"IF('[1]FISCAL(M)'!$AY86=\"\",\"\",'[1]FISCAL(M)'!$AY86)","v":"n.d."},{"$f":"IF('[1]FISCAL(M)'!$BI86=\"\",\"\",'[1]FISCAL(M)'!$BI86)","v":"n.d."},{"$f":"IF('[1]FISCAL(M)'!$BS86=\"\",\"\",'[1]FISCAL(M)'!$BS86)","v":"n.d."},{"$f":"IF('[1]FISCAL(M)'!$AZ86=\"\",\"\",'[1]FISCAL(M)'!$AZ86)","v":"n.d."},{"$f":"IF('[1]FISCAL(M)'!$BJ86=\"\",\"\",'[1]FISCAL(M)'!$BJ86)","v":"n.d."},{"$f":"IF('[1]FISCAL(M)'!$BT86=\"\",\"\",'[1]FISCAL(M)'!$BT86)","v":"n.d."},{"$f":"IF('[2]MONE(M)'!$AO86=\"\",\"\",'[2]MONE(M)'!$AO86)","v":"n.d."},{"$f":"IF('[3]MONE(M)'!$AO86=\"\",\"\",'[3]MONE(M)'!$AO86)","v":"n.d."},{"$f":"IF('[4]MONE(M)'!$AO86=\"\",\"\",'[4]MONE(M)'!$AO86)","v":"n.d."},{"$f":"IF('[5]MONE(M)'!$AO86=\"\",\"\",'[5]MONE(M)'!$AO86)","v":"n.d."},{"$f":"IF('[6]MONE(M)'!$AO86=\"\",\"\",'[6]MONE(M)'!$AO86)","v":"n.d."},{"$f":"IF('[7]MONE(M)'!$AO86=\"\",\"\",'[7]MONE(M)'!$AO86)","v":"n.d."},{"$f":"IF('[8]MONE(M)'!$AO86=\"\",\"\",'[8]MONE(M)'!$AO86)","v":"n.d."},"n.d.","n.d.","n.d.","n.d.","n.d.","n.d.","n.d.",{"$f":"IF('[1]FISCAL(M)'!$K86=\"\",\"\",'[1]FISCAL(M)'!$K86)","v":"n.d."},"n.d.","n.d.",{"$f":"IF('[1]FISCAL(M)'!$L86=\"\",\"\",'[1]FISCAL(M)'!$L86)","v":"n.d."},"n.d.","n.d.","n.d.","n.d.","n.d.","n.d.","n.d.","n.d.","n.d.","n.d.","n.d.","n.d.","n.d.","n.d.","n.d.","n.d.","n.d.","n.d."]
[1996,"junio ","1996-junio ",{"$f":"IF('[1]REAL IPC(M)'!$AL87=\"\",\"\",+'[1]REAL IPC(M)'!$AL87)","v":12.392033711663597},{"$f":"IF('[1]REAL IPC(M)'!$BE87=\"\",\"\",+'[1]REAL IPC(M)'!$BE87)","v":11.863753023245692},{"$f":"IF('[1]REAL IPC(M)'!$AM87=\"\",\"\",+'[1]REAL IPC(M)'!$AM87)","v":11.2300236300783},{"$f":"IF('[1]REAL IPC(M)'!$BI87=\"\",\"\",+'[1]REAL IPC(M)'!$BI87)","v":10.868862148775094},{"$f":"IF('[1]REAL IMAE(M)'!BJ87=\"\",\"\",'[1]REAL IMAE(M)'!BJ87)","v":"n.d."},{"$f":"IF('[1]REAL IMAE(M)'!BK87=\"\",\"\",'[1]REAL IMAE(M)'!BK87)","v":"n.d."},{"$f":"IF('[1]REAL IMAE(M)'!BN87=\"\",\"\",'[1]REAL IMAE(M)'!BN87)","v":"n.d."},{"$f":"IF('[1]REAL IMAE(M)'!BO87=\"\",\"\",'[1]REAL IMAE(M)'!BO87)","v":"n.d."},{"$f":"IF('[1]EXT RIN(M)'!$K87=\"\",\"\",'[1]EXT RIN(M)'!$K87)","v":"n.d."},"",{"$f":"IF('[1]EXT RIN(M)'!$L87=\"\",\"\",'[1]EXT RIN(M)'!$L87)","v":"n.d."},"",{"$f":"IF('[1]MONE(M)CARD'!EG87=\"\",\"\",'[1]MONE(M)CARD'!EG87)","v":"n.d."},{"$f":"IF('[1]MONE(M)CARD'!EK87=\"\",\"\",'[1]MONE(M)CARD'!EK87)","v":"n.d."},{"$f":"IF('[1]MONE(M)CARD'!EP87=\"\",\"\",'[1]MONE(M)CARD'!EP87)","v":"n.d."},{"$f":"IF('[1]MONE(M)CARD'!ES87=\"\",\"\",'[1]MONE(M)CARD'!ES87)","v":"n.d."},{"$f":"IF('[1]MONE(M)CARD'!EV87=\"\",\"\",'[1]MONE(M)CARD'!EV87)","v":"n.d."},{"$f":"IF('[1]MONE(M)CARD'!EZ87=\"\",\"\",'[1]MONE(M)CARD'!EZ87)","v":"n.d."},{"$f":"IF('[1]MONE(M)CAPARD'!FC87=\"\",\"\",'[1]MONE(M)CAPARD'!FC87)","v":"n.d."},{"$f":"IF('[1]MONE(M)CAPARD'!FG87=\"\",\"\",'[1]MONE(M)CAPARD'!FG87)","v":"n.d."},{"$f":"IF('[1]MONE(M)CAPARD'!FL87=\"\",\"\",'[1]MONE(M)CAPARD'!FL87)","v":"n.d."},{"$f":"IF('[1]MONE(M)CAPARD'!FO87=\"\",\"\",'[1]MONE(M)CAPARD'!FO87)","v":"n.d."},{"$f":"IF('[1]MONE(M)CAPARD'!FR87=\"\",\"\",'[1]MONE(M)CAPARD'!FR87)","v":"n.d."},{"$f":"IF('[1]MONE(M)CAPARD'!FV87=\"\",\"\",'[1]MONE(M)CAPARD'!FV87)","v":"n.d."},{"$f":"IF('[1]MONE(M)CARD'!FV87=\"\",\"\",'[1]MONE(M)CARD'!FV87)","v":""},{"$f":"IF('[1]MONE(M)CARD'!GD87=\"\",\"\",'[1]MONE(M)CARD'!GD87)","v":"n.d."},{"$f":"IF('[1]MONE(M)CARD'!GE87=\"\",\"\",'[1]MONE(M)CARD'!GE87)","v":"n.d."},"n.d.","n.d.","n.d.","n.d.","n.d.","n.d.","n.d.","n.d.",null,"n.d.","n.d.","n.d.","n.d.","n.d.",{"$f":"IF('[1]MONE(M)CAPARD'!GS87=\"\",\"\",'[1]MONE(M)CAPARD'!GS87)","v":"n.d."},{"$f":"IF('[1]MONE(M)CARD'!HA87=\"\",\"\",'[1]MONE(M)CAPARD'!HA87)","v":"n.d."},{"$f":"IF('[1]MONE(M)CAPARD'!HB87=\"\",\"\",'[1]MONE(M)CAPARD'!HB87)","v":"n.d."},"n.d.","n.d.","n.d.","n.d.","n.d.","n.d.","n.d.","n.d.","n.d.","n.d.","n.d.","n.d.","n.d.","n.d.",{"$f":"IF('[1]MONE(M)CAPARD'!AS87=\"\",\"\",'[1]MONE(M)CAPARD'!AS87)","v":"n.d."},{"$f":"IF('[1]MONE(M)CAPARD'!AT87=\"\",\"\",'[1]MONE(M)CAPARD'!AT87)","v":"n.a."},{"$f":"IF('[1]MONE(M)CAPARD'!AU87=\"\",\"\",'[1]MONE(M)CAPARD'!AU87)","v":"n.d."},{"$f":"IF('[1]MONE(M)CAPARD'!AV87=\"\",\"\",'[1]MONE(M)CAPARD'!AV87)","v":"n.d."},{"$f":"IF('[1]MONE(M)CAPARD'!AW87=\"\",\"\",'[1]MONE(M)CAPARD'!AW87)","v":"n.a."},{"$f":"IF('[1]MONE(M)CAPARD'!AX87=\"\",\"\",'[1]MONE(M)CAPARD'!AX87)","v":"n.d."},{"$f":"IF('[1]MONE(M)CAPARD'!AY87=\"\",\"\",'[1]MONE(M)CAPARD'!AY87)","v":"n.a."},{"$f":"IF('[1]FISCAL(M)'!$K87=\"\",\"\",'[1]FISCAL(M)'!$K87)","v":"n.d."},{"$f":"IF('[1]FISCAL(M)'!$L87=\"\",\"\",'[1]FISCAL(M)'!$L87)","v":"n.d."},{"$f":"IF('[1]FISCAL(M)'!$AY87=\"\",\"\",'[1]FISCAL(M)'!$AY87)","v":"n.d."},{"$f":"IF('[1]FISCAL(M)'!$BI87=\"\",\"\",'[1]FISCAL(M)'!$BI87)","v":"n.d."},{"$f":"IF('[1]FISCAL(M)'!$BS87=\"\",\"\",'[1]FISCAL(M)'!$BS87)","v":"n.d."},{"$f":"IF('[1]FISCAL(M)'!$AZ87=\"\",\"\",'[1]FISCAL(M)'!$AZ87)","v":"n.d."},{"$f":"IF('[1]FISCAL(M)'!$BJ87=\"\",\"\",'[1]FISCAL(M)'!$BJ87)","v":"n.d."},{"$f":"IF('[1]FISCAL(M)'!$BT87=\"\",\"\",'[1]FISCAL(M)'!$BT87)","v":"n.d."},{"$f":"IF('[2]MONE(M)'!$AO87=\"\",\"\",'[2]MONE(M)'!$AO87)","v":"n.d."},{"$f":"IF('[3]MONE(M)'!$AO87=\"\",\"\",'[3]MONE(M)'!$AO87)","v":"n.d."},{"$f":"IF('[4]MONE(M)'!$AO87=\"\",\"\",'[4]MONE(M)'!$AO87)","v":"n.d."},{"$f":"IF('[5]MONE(M)'!$AO87=\"\",\"\",'[5]MONE(M)'!$AO87)","v":"n.d."},{"$f":"IF('[6]MONE(M)'!$AO87=\"\",\"\",'[6]MONE(M)'!$AO87)","v":"n.d."},{"$f":"IF('[7]MONE(M)'!$AO87=\"\",\"\",'[7]MONE(M)'!$AO87)","v":"n.d."},{"$f":"IF('[8]MONE(M)'!$AO87=\"\",\"\",'[8]MONE(M)'!$AO87)","v":"n.d."},"n.d.","n.d.","n.d.","n.d.","n.d.","n.d.","n.d.",{"$f":"IF('[1]FISCAL(M)'!$K87=\"\",\"\",'[1]FISCAL(M)'!$K87)","v":"n.d."},"n.d.","n.d.",{"$f":"IF('[1]FISCAL(M)'!$L87=\"\",\"\",'[1]FISCAL(M)'!$L87)","v":"n.d."},"n.d.","n.d.","n.d.","n.d.","n.d.","n.d.","n.d.","n.d.","n.d.","n.d.","n.d.","n.d.","n.d.","n.d.","n.d.","n.d.","n.d.","n.d."]
[1996,"julio","1996-julio",{"$f":"IF('[1]REAL IPC(M)'!$AL88=\"\",\"\",+'[1]REAL IPC(M)'!$AL88)","v":12.211748599024496},{"$f":"IF('[1]REAL IPC(M)'!$BE88=\"\",\"\",+'[1]REAL IPC(M)'!$BE88)","v":11.695131584774687},{"$f":"IF('[1]REAL IPC(M)'!$AM88=\"\",\"\",+'[1]REAL IPC(M)'!$AM88)","v":11.093872128795335},{"$f":"IF('[1]REAL IPC(M)'!$BI88=\"\",\"\",+'[1]REAL IPC(M)'!$BI88)","v":10.72285429081148},{"$f":"IF('[1]REAL IMAE(M)'!BJ88=\"\",\"\",'[1]REAL IMAE(M)'!BJ88)","v":"n.d."},{"$f":"IF('[1]REAL IMAE(M)'!BK88=\"\",\"\",'[1]REAL IMAE(M)'!BK88)","v":"n.d."},{"$f":"IF('[1]REAL IMAE(M)'!BN88=\"\",\"\",'[1]REAL IMAE(M)'!BN88)","v":"n.d."},{"$f":"IF('[1]REAL IMAE(M)'!BO88=\"\",\"\",'[1]REAL IMAE(M)'!BO88)","v":"n.d."},{"$f":"IF('[1]EXT RIN(M)'!$K88=\"\",\"\",'[1]EXT RIN(M)'!$K88)","v":"n.d."},"",{"$f":"IF('[1]EXT RIN(M)'!$L88=\"\",\"\",'[1]EXT RIN(M)'!$L88)","v":"n.d."},"",{"$f":"IF('[1]MONE(M)CARD'!EG88=\"\",\"\",'[1]MONE(M)CARD'!EG88)","v":"n.d."},{"$f":"IF('[1]MONE(M)CARD'!EK88=\"\",\"\",'[1]MONE(M)CARD'!EK88)","v":"n.d."},{"$f":"IF('[1]MONE(M)CARD'!EP88=\"\",\"\",'[1]MONE(M)CARD'!EP88)","v":"n.d."},{"$f":"IF('[1]MONE(M)CARD'!ES88=\"\",\"\",'[1]MONE(M)CARD'!ES88)","v":"n.d."},{"$f":"IF('[1]MONE(M)CARD'!EV88=\"\",\"\",'[1]MONE(M)CARD'!EV88)","v":"n.d."},{"$f":"IF('[1]MONE(M)CARD'!EZ88=\"\",\"\",'[1]MONE(M)CARD'!EZ88)","v":"n.d."},{"$f":"IF('[1]MONE(M)CAPARD'!FC88=\"\",\"\",'[1]MONE(M)CAPARD'!FC88)","v":"n.d."},{"$f":"IF('[1]MONE(M)CAPARD'!FG88=\"\",\"\",'[1]MONE(M)CAPARD'!FG88)","v":"n.d."},{"$f":"IF('[1]MONE(M)CAPARD'!FL88=\"\",\"\",'[1]MONE(M)CAPARD'!FL88)","v":"n.d."},{"$f":"IF('[1]MONE(M)CAPARD'!FO88=\"\",\"\",'[1]MONE(M)CAPARD'!FO88)","v":"n.d."},{"$f":"IF('[1]MONE(M)CAPARD'!FR88=\"\",\"\",'[1]MONE(M)CAPARD'!FR88)","v":"n.d."},{"$f":"IF('[1]MONE(M)CAPARD'!FV88=\"\",\"\",'[1]MONE(M)CAPARD'!FV88)","v":"n.d."},{"$f":"IF('[1]MONE(M)CARD'!FV88=\"\",\"\",'[1]MONE(M)CARD'!FV88)","v":""},{"$f":"IF('[1]MONE(M)CARD'!GD88=\"\",\"\",'[1]MONE(M)CARD'!GD88)","v":"n.d."},{"$f":"IF('[1]MONE(M)CARD'!GE88=\"\",\"\",'[1]MONE(M)CARD'!GE88)","v":"n.d."},"n.d.","n.d.","n.d.","n.d.","n.d.","n.d.","n.d.","n.d.",null,"n.d.","n.d.","n.d.","n.d.","n.d.",{"$f":"IF('[1]MONE(M)CAPARD'!GS88=\"\",\"\",'[1]MONE(M)CAPARD'!GS88)","v":"n.d."},{"$f":"IF('[1]MONE(M)CARD'!HA88=\"\",\"\",'[1]MONE(M)CAPARD'!HA88)","v":"n.d."},{"$f":"IF('[1]MONE(M)CAPARD'!HB88=\"\",\"\",'[1]MONE(M)CAPARD'!HB88)","v":"n.d."},"n.d.","n.d.","n.d.","n.d.","n.d.","n.d.","n.d.","n.d.","n.d.","n.d.","n.d.","n.d.","n.d.","n.d.",{"$f":"IF('[1]MONE(M)CAPARD'!AS88=\"\",\"\",'[1]MONE(M)CAPARD'!AS88)","v":"n.d."},{"$f":"IF('[1]MONE(M)CAPARD'!AT88=\"\",\"\",'[1]MONE(M)CAPARD'!AT88)","v":"n.a."},{"$f":"IF('[1]MONE(M)CAPARD'!AU88=\"\",\"\",'[1]MONE(M)CAPARD'!AU88)","v":"n.d."},{"$f":"IF('[1]MONE(M)CAPARD'!AV88=\"\",\"\",'[1]MONE(M)CAPARD'!AV88)","v":"n.d."},{"$f":"IF('[1]MONE(M)CAPARD'!AW88=\"\",\"\",'[1]MONE(M)CAPARD'!AW88)","v":"n.a."},{"$f":"IF('[1]MONE(M)CAPARD'!AX88=\"\",\"\",'[1]MONE(M)CAPARD'!AX88)","v":"n.d."},{"$f":"IF('[1]MONE(M)CAPARD'!AY88=\"\",\"\",'[1]MONE(M)CAPARD'!AY88)","v":"n.a."},{"$f":"IF('[1]FISCAL(M)'!$K88=\"\",\"\",'[1]FISCAL(M)'!$K88)","v":"n.d."},{"$f":"IF('[1]FISCAL(M)'!$L88=\"\",\"\",'[1]FISCAL(M)'!$L88)","v":"n.d."},{"$f":"IF('[1]FISCAL(M)'!$AY88=\"\",\"\",'[1]FISCAL(M)'!$AY88)","v":"n.d."},{"$f":"IF('[1]FISCAL(M)'!$BI88=\"\",\"\",'[1]FISCAL(M)'!$BI88)","v":"n.d."},{"$f":"IF('[1]FISCAL(M)'!$BS88=\"\",\"\",'[1]FISCAL(M)'!$BS88)","v":"n.d."},{"$f":"IF('[1]FISCAL(M)'!$AZ88=\"\",\"\",'[1]FISCAL(M)'!$AZ88)","v":"n.d."},{"$f":"IF('[1]FISCAL(M)'!$BJ88=\"\",\"\",'[1]FISCAL(M)'!$BJ88)","v":"n.d."},{"$f":"IF('[1]FISCAL(M)'!$BT88=\"\",\"\",'[1]FISCAL(M)'!$BT88)","v":"n.d."},{"$f":"IF('[2]MONE(M)'!$AO88=\"\",\"\",'[2]MONE(M)'!$AO88)","v":"n.d."},{"$f":"IF('[3]MONE(M)'!$AO88=\"\",\"\",'[3]MONE(M)'!$AO88)","v":"n.d."},{"$f":"IF('[4]MONE(M)'!$AO88=\"\",\"\",'[4]MONE(M)'!$AO88)","v":"n.d."},{"$f":"IF('[5]MONE(M)'!$AO88=\"\",\"\",'[5]MONE(M)'!$AO88)","v":"n.d."},{"$f":"IF('[6]MONE(M)'!$AO88=\"\",\"\",'[6]MONE(M)'!$AO88)","v":"n.d."},{"$f":"IF('[7]MONE(M)'!$AO88=\"\",\"\",'[7]MONE(M)'!$AO88)","v":"n.d."},{"$f":"IF('[8]MONE(M)'!$AO88=\"\",\"\",'[8]MONE(M)'!$AO88)","v":"n.d."},"n.d.","n.d.","n.d.","n.d.","n.d.","n.d.","n.d.",{"$f":"IF('[1]FISCAL(M)'!$K88=\"\",\"\",'[1]FISCAL(M)'!$K88)","v":"n.d."},"n.d.","n.d.",{"$f":"IF('[1]FISCAL(M)'!$L88=\"\",\"\",'[1]FISCAL(M)'!$L88)","v":"n.d."},"n.d.","n.d.","n.d.","n.d.","n.d.","n.d.","n.d.","n.d.","n.d.","n.d.","n.d.","n.d.","n.d.","n.d.","n.d.","n.d.","n.d.","n.d."]
[1996,"agosto","1996-agosto",{"$f":"IF('[1]REAL IPC(M)'!$AL89=\"\",\"\",+'[1]REAL IPC(M)'!$AL89)","v":12.64120969459055},{"$f":"IF('[1]REAL IPC(M)'!$BE89=\"\",\"\",+'[1]REAL IPC(M)'!$BE89)","v":11.526635135806318},{"$f":"IF('[1]REAL IPC(M)'!$AM89=\"\",\"\",+'[1]REAL IPC(M)'!$AM89)","v":11.487350836168964},{"$f":"IF('[1]REAL IPC(M)'!$BI89=\"\",\"\",+'[1]REAL IPC(M)'!$BI89)","v":10.576385825664048},{"$f":"IF('[1]REAL IMAE(M)'!BJ89=\"\",\"\",'[1]REAL IMAE(M)'!BJ89)","v":"n.d."},{"$f":"IF('[1]REAL IMAE(M)'!BK89=\"\",\"\",'[1]REAL IMAE(M)'!BK89)","v":"n.d."},{"$f":"IF('[1]REAL IMAE(M)'!BN89=\"\",\"\",'[1]REAL IMAE(M)'!BN89)","v":"n.d."},{"$f":"IF('[1]REAL IMAE(M)'!BO89=\"\",\"\",'[1]REAL IMAE(M)'!BO89)","v":"n.d."},{"$f":"IF('[1]EXT RIN(M)'!$K89=\"\",\"\",'[1]EXT RIN(M)'!$K89)","v":"n.d."},"",{"$f":"IF('[1]EXT RIN(M)'!$L89=\"\",\"\",'[1]EXT RIN(M)'!$L89)","v":"n.d."},"",{"$f":"IF('[1]MONE(M)CARD'!EG89=\"\",\"\",'[1]MONE(M)CARD'!EG89)","v":"n.d."},{"$f":"IF('[1]MONE(M)CARD'!EK89=\"\",\"\",'[1]MONE(M)CARD'!EK89)","v":"n.d."},{"$f":"IF('[1]MONE(M)CARD'!EP89=\"\",\"\",'[1]MONE(M)CARD'!EP89)","v":"n.d."},{"$f":"IF('[1]MONE(M)CARD'!ES89=\"\",\"\",'[1]MONE(M)CARD'!ES89)","v":"n.d."},{"$f":"IF('[1]MONE(M)CARD'!EV89=\"\",\"\",'[1]MONE(M)CARD'!EV89)","v":"n.d."},{"$f":"IF('[1]MONE(M)CARD'!EZ89=\"\",\"\",'[1]MONE(M)CARD'!EZ89)","v":"n.d."},{"$f":"IF('[1]MONE(M)CAPARD'!FC89=\"\",\"\",'[1]MONE(M)CAPARD'!FC89)","v":"n.d."},{"$f":"IF('[1]MONE(M)CAPARD'!FG89=\"\",\"\",'[1]MONE(M)CAPARD'!FG89)","v":"n.d."},{"$f":"IF('[1]MONE(M)CAPARD'!FL89=\"\",\"\",'[1]MONE(M)CAPARD'!FL89)","v":"n.d."},{"$f":"IF('[1]MONE(M)CAPARD'!FO89=\"\",\"\",'[1]MONE(M)CAPARD'!FO89)","v":"n.d."},{"$f":"IF('[1]MONE(M)CAPARD'!FR89=\"\",\"\",'[1]MONE(M)CAPARD'!FR89)","v":"n.d."},{"$f":"IF('[1]MONE(M)CAPARD'!FV89=\"\",\"\",'[1]MONE(M)CAPARD'!FV89)","v":"n.d."},{"$f":"IF('[1]MONE(M)CARD'!FV89=\"\",\"\",'[1]MONE(M)CARD'!FV89)","v":""},{"$f":"IF('[1]MONE(M)CARD'!GD89=\"\",\"\",'[1]MONE(M)CARD'!GD89)","v":"n.d."},{"$f":"IF('[1]MONE(M)CARD'!GE89=\"\",\"\",'[1]MONE(M)CARD'!GE89)","v":"n.d."},"n.d.","n.d.","n.d.","n.d.","n.d.","n.d.","n.d.","n.d.",null,"n.d.","n.d.","n.d.","n.d.","n.d.",{"$f":"IF('[1]MONE(M)CAPARD'!GS89=\"\",\"\",'[1]MONE(M)CAPARD'!GS89)","v":"n.d."},{"$f":"IF('[1]MONE(M)CARD'!HA89=\"\",\"\",'[1]MONE(M)CAPARD'!HA89)","v":"n.d."},{"$f":"IF('[1]MONE(M)CAPARD'!HB89=\"\",\"\",'[1]MONE(M)CAPARD'!HB89)","v":"n.d."},"n.d.","n.d.","n.d.","n.d.","n.d.","n.d.","n.d.","n.d.","n.d.","n.d.","n.d.","n.d.","n.d.","n.d.",{"$f":"IF('[1]MONE(M)CAPARD'!AS89=\"\",\"\",'[1]MONE(M)CAPARD'!AS89)","v":"n.d."},{"$f":"IF('[1]MONE(M)CAPARD'!AT89=\"\",\"\",'[1]MONE(M)CAPARD'!AT89)","v":"n.a."},{"$f":"IF('[1]MONE(M)CAPARD'!AU89=\"\",\"\",'[1]MONE(M)CAPARD'!AU89)","v":"n.d."},{"$f":"IF('[1]MONE(M)CAPARD'!AV89=\"\",\"\",'[1]MONE(M)CAPARD'!AV89)","v":"n.d."},{"$f":"IF('[1]MONE(M)CAPARD'!AW89=\"\",\"\",'[1]MONE(M)CAPARD'!AW89)","v":"n.a."},{"$f":"IF('[1]MONE(M)CAPARD'!AX89=\"\",\"\",'[1]MONE(M)CAPARD'!AX89)","v":"n.d."},{"$f":"IF('[1]MONE(M)CAPARD'!AY89=\"\",\"\",'[1]MONE(M)CAPARD'!AY89)","v":"n.a."},{"$f":"IF('[1]FISCAL(M)'!$K89=\"\",\"\",'[1]FISCAL(M)'!$K89)","v":"n.d."},{"$f":"IF('[1]FISCAL(M)'!$L89=\"\",\"\",'[1]FISCAL(M)'!$L89)","v":"n.d."},{"$f":"IF('[1]FISCAL(M)'!$AY89=\"\",\"\",'[1]FISCAL(M)'!$AY89)","v":"n.d."},{"$f":"IF('[1]FISCAL(M)'!$BI89=\"\",\"\",'[1]FISCAL(M)'!$BI89)","v":"n.d."},{"$f":"IF('[1]FISCAL(M)'!$BS89=\"\",\"\",'[1]FISCAL(M)'!$BS89)","v":"n.d."},{"$f":"IF('[1]FISCAL(M)'!$AZ89=\"\",\"\",'[1]FISCAL(M)'!$AZ89)","v":"n.d."},{"$f":"IF('[1]FISCAL(M)'!$BJ89=\"\",\"\",'[1]FISCAL(M)'!$BJ89)","v":"n.d."},{"$f":"IF('[1]FISCAL(M)'!$BT89=\"\",\"\",'[1]FISCAL(M)'!$BT89)","v":"n.d."},{"$f":"IF('[2]MONE(M)'!$AO89=\"\",\"\",'[2]MONE(M)'!$AO89)","v":"n.d."},{"$f":"IF('[3]MONE(M)'!$AO89=\"\",\"\",'[3]MONE(M)'!$AO89)","v":"n.d."},{"$f":"IF('[4]MONE(M)'!$AO89=\"\",\"\",'[4]MONE(M)'!$AO89)","v":"n.d."},{"$f":"IF('[5]MONE(M)'!$AO89=\"\",\"\",'[5]MONE(M)'!$AO89)","v":"n.d."},{"$f":"IF('[6]MONE(M)'!$AO89=\"\",\"\",'[6]MONE(M)'!$AO89)","v":"n.d."},{"$f":"IF('[7]MONE(M)'!$AO89=\"\",\"\",'[7]MONE(M)'!$AO89)","v":"n.d."},{"$f":"IF('[8]MONE(M)'!$AO89=\"\",\"\",'[8]MONE(M)'!$AO89)","v":"n.d."},"n.d.","n.d.","n.d.","n.d.","n.d.","n.d.","n.d.",{"$f":"IF('[1]FISCAL(M)'!$K89=\"\",\"\",'[1]FISCAL(M)'!$K89)","v":"n.d."},"n.d.","n.d.",{"$f":"IF('[1]FISCAL(M)'!$L89=\"\",\"\",'[1]FISCAL(M)'!$L89)","v":"n.d."},"n.d.","n.d.","n.d.","n.d.","n.d.","n.d.","n.d.","n.d.","n.d.","n.d.","n.d.","n.d.","n.d.","n.d.","n.d.","n.d.","n.d.","n.d."]
[1996,"septiembre","1996-septiembre",{"$f":"IF('[1]REAL IPC(M)'!$AL90=\"\",\"\",+'[1]REAL IPC(M)'!$AL90)","v":11.794068956540027},{"$f":"IF('[1]REAL IPC(M)'!$BE90=\"\",\"\",+'[1]REAL IPC(M)'!$BE90)","v":11.35833814522098},{"$f":"IF('[1]REAL IPC(M)'!$AM90=\"\",\"\",+'[1]REAL IPC(M)'!$AM90)","v":10.767980005376444},{"$f":"IF('[1]REAL IPC(M)'!$BI90=\"\",\"\",+'[1]REAL IPC(M)'!$BI90)","v":10.429524476377372},{"$f":"IF('[1]REAL IMAE(M)'!BJ90=\"\",\"\",'[1]REAL IMAE(M)'!BJ90)","v":"n.d."},{"$f":"IF('[1]REAL IMAE(M)'!BK90=\"\",\"\",'[1]REAL IMAE(M)'!BK90)","v":"n.d."},{"$f":"IF('[1]REAL IMAE(M)'!BN90=\"\",\"\",'[1]REAL IMAE(M)'!BN90)","v":"n.d."},{"$f":"IF('[1]REAL IMAE(M)'!BO90=\"\",\"\",'[1]REAL IMAE(M)'!BO90)","v":"n.d."},{"$f":"IF('[1]EXT RIN(M)'!$K90=\"\",\"\",'[1]EXT RIN(M)'!$K90)","v":"n.d."},"",{"$f":"IF('[1]EXT RIN(M)'!$L90=\"\",\"\",'[1]EXT RIN(M)'!$L90)","v":"n.d."},"",{"$f":"IF('[1]MONE(M)CARD'!EG90=\"\",\"\",'[1]MONE(M)CARD'!EG90)","v":"n.d."},{"$f":"IF('[1]MONE(M)CARD'!EK90=\"\",\"\",'[1]MONE(M)CARD'!EK90)","v":"n.d."},{"$f":"IF('[1]MONE(M)CARD'!EP90=\"\",\"\",'[1]MONE(M)CARD'!EP90)","v":"n.d."},{"$f":"IF('[1]MONE(M)CARD'!ES90=\"\",\"\",'[1]MONE(M)CARD'!ES90)","v":"n.d."},{"$f":"IF('[1]MONE(M)CARD'!EV90=\"\",\"\",'[1]MONE(M)CARD'!EV90)","v":"n.d."},{"$f":"IF('[1]MONE(M)CARD'!EZ90=\"\",\"\",'[1]MONE(M)CARD'!EZ90)","v":"n.d."},{"$f":"IF('[1]MONE(M)CAPARD'!FC90=\"\",\"\",'[1]MONE(M)CAPARD'!FC90)","v":"n.d."},{"$f":"IF('[1]MONE(M)CAPARD'!FG90=\"\",\"\",'[1]MONE(M)CAPARD'!FG90)","v":"n.d."},{"$f":"IF('[1]MONE(M)CAPARD'!FL90=\"\",\"\",'[1]MONE(M)CAPARD'!FL90)","v":"n.d."},{"$f":"IF('[1]MONE(M)CAPARD'!FO90=\"\",\"\",'[1]MONE(M)CAPARD'!FO90)","v":"n.d."},{"$f":"IF('[1]MONE(M)CAPARD'!FR90=\"\",\"\",'[1]MONE(M)CAPARD'!FR90)","v":"n.d."},{"$f":"IF('[1]MONE(M)CAPARD'!FV90=\"\",\"\",'[1]MONE(M)CAPARD'!FV90)","v":"n.d."},{"$f":"IF('[1]MONE(M)CARD'!FV90=\"\",\"\",'[1]MONE(M)CARD'!FV90)","v":""},{"$f":"IF('[1]MONE(M)CARD'!GD90=\"\",\"\",'[1]MONE(M)CARD'!GD90)","v":"n.d."},{"$f":"IF('[1]MONE(M)CARD'!GE90=\"\",\"\",'[1]MONE(M)CARD'!GE90)","v":"n.d."},"n.d.","n.d.","n.d.","n.d.","n.d.","n.d.","n.d.","n.d.",null,"n.d.","n.d.","n.d.","n.d.","n.d.",{"$f":"IF('[1]MONE(M)CAPARD'!GS90=\"\",\"\",'[1]MONE(M)CAPARD'!GS90)","v":"n.d."},{"$f":"IF('[1]MONE(M)CARD'!HA90=\"\",\"\",'[1]MONE(M)CAPARD'!HA90)","v":"n.d."},{"$f":"IF('[1]MONE(M)CAPARD'!HB90=\"\",\"\",'[1]MONE(M)CAPARD'!HB90)","v":"n.d."},"n.d.","n.d.","n.d.","n.d.","n.d.","n.d.","n.d.","n.d.","n.d.","n.d.","n.d.","n.d.","n.d.","n.d.",{"$f":"IF('[1]MONE(M)CAPARD'!AS90=\"\",\"\",'[1]MONE(M)CAPARD'!AS90)","v":"n.d."},{"$f":"IF('[1]MONE(M)CAPARD'!AT90=\"\",\"\",'[1]MONE(M)CAPARD'!AT90)","v":"n.a."},{"$f":"IF('[1]MONE(M)CAPARD'!AU90=\"\",\"\",'[1]MONE(M)CAPARD'!AU90)","v":"n.d."},{"$f":"IF('[1]MONE(M)CAPARD'!AV90=\"\",\"\",'[1]MONE(M)CAPARD'!AV90)","v":"n.d."},{"$f":"IF('[1]MONE(M)CAPARD'!AW90=\"\",\"\",'[1]MONE(M)CAPARD'!AW90)","v":"n.a."},{"$f":"IF('[1]MONE(M)CAPARD'!AX90=\"\",\"\",'[1]MONE(M)CAPARD'!AX90)","v":"n.d."},{"$f":"IF('[1]MONE(M)CAPARD'!AY90=\"\",\"\",'[1]MONE(M)CAPARD'!AY90)","v":"n.a."},{"$f":"IF('[1]FISCAL(M)'!$K90=\"\",\"\",'[1]FISCAL(M)'!$K90)","v":"n.d."},{"$f":"IF('[1]FISCAL(M)'!$L90=\"\",\"\",'[1]FISCAL(M)'!$L90)","v":"n.d."},{"$f":"IF('[1]FISCAL(M)'!$AY90=\"\",\"\",'[1]FISCAL(M)'!$AY90)","v":"n.d."},{"$f":"IF('[1]FISCAL(M)'!$BI90=\"\",\"\",'[1]FISCAL(M)'!$BI90)","v":"n.d."},{"$f":"IF('[1]FISCAL(M)'!$BS90=\"\",\"\",'[1]FISCAL(M)'!$BS90)","v":"n.d."},{"$f":"IF('[1]FISCAL(M)'!$AZ90=\"\",\"\",'[1]FISCAL(M)'!$AZ90)","v":"n.d."},{"$f":"IF('[1]FISCAL(M)'!$BJ90=\"\",\"\",'[1]FISCAL(M)'!$BJ90)","v":"n.d."},{"$f":"IF('[1]FISCAL(M)'!$BT90=\"\",\"\",'[1]FISCAL(M)'!$BT90)","v":"n.d."},{"$f":"IF('[2]MONE(M)'!$AO90=\"\",\"\",'[2]MONE(M)'!$AO90)","v":"n.d."},{"$f":"IF('[3]MONE(M)'!$AO90=\"\",\"\",'[3]MONE(M)'!$AO90)","v":"n.d."},{"$f":"IF('[4]MONE(M)'!$AO90=\"\",\"\",'[4]MONE(M)'!$AO90)","v":"n.d."},{"$f":"IF('[5]MONE(M)'!$AO90=\"\",\"\",'[5]MONE(M)'!$AO90)","v":"n.d."},{"$f":"IF('[6]MONE(M)'!$AO90=\"\",\"\",'[6]MONE(M)'!$AO90)","v":"n.d."},{"$f":"IF('[7]MONE(M)'!$AO90=\"\",\"\",'[7]MONE(M)'!$AO90)","v":"n.d."},{"$f":"IF('[8]MONE(M)'!$AO90=\"\",\"\",'[8]MONE(M)'!$AO90)","v":"n.d."},"n.d.","n.d.","n.d.","n.d.","n.d.","n.d.","n.d.",{"$f":"IF('[1]FISCAL(M)'!$K90=\"\",\"\",'[1]FISCAL(M)'!$K90)","v":"n.d."},"n.d.","n.d.",{"$f":"IF('[1]FISCAL(M)'!$L90=\"\",\"\",'[1]FISCAL(M)'!$L90)","v":"n.d."},"n.d.","n.d.","n.d.","n.d.","n.d.","n.d.","n.d.","n.d.","n.d.","n.d.","n.d.","n.d.","n.d.","n.d.","n.d.","n.d.","n.d.","n.d."]
[1996,"octubre","1996-octubre",{"$f":"IF('[1]REAL IPC(M)'!$AL91=\"\",\"\",+'[1]REAL IPC(M)'!$AL91)","v":10.86835682110523},{"$f":"IF('[1]REAL IPC(M)'!$BE91=\"\",\"\",+'[1]REAL IPC(M)'!$BE91)","v":11.190366386855398},{"$f":"IF('[1]REAL IPC(M)'!$AM91=\"\",\"\",+'[1]REAL IPC(M)'!$AM91)","v":10.002525339160062},{"$f":"IF('[1]REAL IPC(M)'!$BI91=\"\",\"\",+'[1]REAL IPC(M)'!$BI91)","v":10.282384834332259},{"$f":"IF('[1]REAL IMAE(M)'!BJ91=\"\",\"\",'[1]REAL IMAE(M)'!BJ91)","v":"n.d."},{"$f":"IF('[1]REAL IMAE(M)'!BK91=\"\",\"\",'[1]REAL IMAE(M)'!BK91)","v":"n.d."},{"$f":"IF('[1]REAL IMAE(M)'!BN91=\"\",\"\",'[1]REAL IMAE(M)'!BN91)","v":"n.d."},{"$f":"IF('[1]REAL IMAE(M)'!BO91=\"\",\"\",'[1]REAL IMAE(M)'!BO91)","v":"n.d."},{"$f":"IF('[1]EXT RIN(M)'!$K91=\"\",\"\",'[1]EXT RIN(M)'!$K91)","v":"n.d."},"",{"$f":"IF('[1]EXT RIN(M)'!$L91=\"\",\"\",'[1]EXT RIN(M)'!$L91)","v":"n.d."},"",{"$f":"IF('[1]MONE(M)CARD'!EG91=\"\",\"\",'[1]MONE(M)CARD'!EG91)","v":"n.d."},{"$f":"IF('[1]MONE(M)CARD'!EK91=\"\",\"\",'[1]MONE(M)CARD'!EK91)","v":"n.d."},{"$f":"IF('[1]MONE(M)CARD'!EP91=\"\",\"\",'[1]MONE(M)CARD'!EP91)","v":"n.d."},{"$f":"IF('[1]MONE(M)CARD'!ES91=\"\",\"\",'[1]MONE(M)CARD'!ES91)","v":"n.d."},{"$f":"IF('[1]MONE(M)CARD'!EV91=\"\",\"\",'[1]MONE(M)CARD'!EV91)","v":"n.d."},{"$f":"IF('[1]MONE(M)CARD'!EZ91=\"\",\"\",'[1]MONE(M)CARD'!EZ91)","v":"n.d."},{"$f":"IF('[1]MONE(M)CAPARD'!FC91=\"\",\"\",'[1]MONE(M)CAPARD'!FC91)","v":"n.d."},{"$f":"IF('[1]MONE(M)CAPARD'!FG91=\"\",\"\",'[1]MONE(M)CAPARD'!FG91)","v":"n.d."},{"$f":"IF('[1]MONE(M)CAPARD'!FL91=\"\",\"\",'[1]MONE(M)CAPARD'!FL91)","v":"n.d."},{"$f":"IF('[1]MONE(M)CAPARD'!FO91=\"\",\"\",'[1]MONE(M)CAPARD'!FO91)","v":"n.d."},{"$f":"IF('[1]MONE(M)CAPARD'!FR91=\"\",\"\",'[1]MONE(M)CAPARD'!FR91)","v":"n.d."},{"$f":"IF('[1]MONE(M)CAPARD'!FV91=\"\",\"\",'[1]MONE(M)CAPARD'!FV91)","v":"n.d."},{"$f":"IF('[1]MONE(M)CARD'!FV91=\"\",\"\",'[1]MONE(M)CARD'!FV91)","v":""},{"$f":"IF('[1]MONE(M)CARD'!GD91=\"\",\"\",'[1]MONE(M)CARD'!GD91)","v":"n.d."},{"$f":"IF('[1]MONE(M)CARD'!GE91=\"\",\"\",'[1]MONE(M)CARD'!GE91)","v":"n.d."},"n.d.","n.d.","n.d.","n.d.","n.d.","n.d.","n.d.","n.d.",null,"n.d.","n.d.","n.d.","n.d.","n.d.",{"$f":"IF('[1]MONE(M)CAPARD'!GS91=\"\",\"\",'[1]MONE(M)CAPARD'!GS91)","v":"n.d."},{"$f":"IF('[1]MONE(M)CARD'!HA91=\"\",\"\",'[1]MONE(M)CAPARD'!HA91)","v":"n.d."},{"$f":"IF('[1]MONE(M)CAPARD'!HB91=\"\",\"\",'[1]MONE(M)CAPARD'!HB91)","v":"n.d."},"n.d.","n.d.","n.d.","n.d.","n.d.","n.d.","n.d.","n.d.","n.d.","n.d.","n.d.","n.d.","n.d.","n.d.",{"$f":"IF('[1]MONE(M)CAPARD'!AS91=\"\",\"\",'[1]MONE(M)CAPARD'!AS91)","v":"n.d."},{"$f":"IF('[1]MONE(M)CAPARD'!AT91=\"\",\"\",'[1]MONE(M)CAPARD'!AT91)","v":"n.a."},{"$f":"IF('[1]MONE(M)CAPARD'!AU91=\"\",\"\",'[1]MONE(M)CAPARD'!AU91)","v":"n.d."},{"$f":"IF('[1]MONE(M)CAPARD'!AV91=\"\",\"\",'[1]MONE(M)CAPARD'!AV91)","v":"n.d."},{"$f":"IF('[1]MONE(M)CAPARD'!AW91=\"\",\"\",'[1]MONE(M)CAPARD'!AW91)","v":"n.a."},{"$f":"IF('[1]MONE(M)CAPARD'!AX91=\"\",\"\",'[1]MONE(M)CAPARD'!AX91)","v":"n.d."},{"$f":"IF('[1]MONE(M)CAPARD'!AY91=\"\",\"\",'[1]MONE(M)CAPARD'!AY91)","v":"n.a."},{"$f":"IF('[1]FISCAL(M)'!$K91=\"\",\"\",'[1]FISCAL(M)'!$K91)","v":"n.d."},{"$f":"IF('[1]FISCAL(M)'!$L91=\"\",\"\",'[1]FISCAL(M)'!$L91)","v":"n.d."},{"$f":"IF('[1]FISCAL(M)'!$AY91=\"\",\"\",'[1]FISCAL(M)'!$AY91)","v":"n.d."},{"$f":"IF('[1]FISCAL(M)'!$BI91=\"\",\"\",'[1]FISCAL(M)'!$BI91)","v":"n.d."},{"$f":"IF('[1]FISCAL(M)'!$BS91=\"\",\"\",'[1]FISCAL(M)'!$BS91)","v":"n.d."},{"$f":"IF('[1]FISCAL(M)'!$AZ91=\"\",\"\",'[1]FISCAL(M)'!$AZ91)","v":"n.d."},{"$f":"IF('[1]FISCAL(M)'!$BJ91=\"\",\"\",'[1]FISCAL(M)'!$BJ91)","v":"n.d."},{"$f":"IF('[1]FISCAL(M)'!$BT91=\"\",\"\",'[1]FISCAL(M)'!$BT91)","v":"n.d."},{"$f":"IF('[2]MONE(M)'!$AO91=\"\",\"\",'[2]MONE(M)'!$AO91)","v":"n.d."},{"$f":"IF('[3]MONE(M)'!$AO91=\"\",\"\",'[3]MONE(M)'!$AO91)","v":"n.d."},{"$f":"IF('[4]MONE(M)'!$AO91=\"\",\"\",'[4]MONE(M)'!$AO91)","v":"n.d."},{"$f":"IF('[5]MONE(M)'!$AO91=\"\",\"\",'[5]MONE(M)'!$AO91)","v":"n.d."},{"$f":"IF('[6]MONE(M)'!$AO91=\"\",\"\",'[6]MONE(M)'!$AO91)","v":"n.d."},{"$f":"IF('[7]MONE(M)'!$AO91=\"\",\"\",'[7]MONE(M)'!$AO91)","v":"n.d."},{"$f":"IF('[8]MONE(M)'!$AO91=\"\",\"\",'[8]MONE(M)'!$AO91)","v":"n.d."},"n.d.","n.d.","n.d.","n.d.","n.d.","n.d.","n.d.",{"$f":"IF('[1]FISCAL(M)'!$K91=\"\",\"\",'[1]FISCAL(M)'!$K91)","v":"n.d."},"n.d.","n.d.",{"$f":"IF('[1]FISCAL(M)'!$L91=\"\",\"\",'[1]FISCAL(M)'!$L91)","v":"n.d."},"n.d.","n.d.","n.d.","n.d.","n.d.","n.d.","n.d.","n.d.","n.d.","n.d.","n.d.","n.d.","n.d.","n.d.","n.d.","n.d.","n.d.","n.d."]
[1996,"noviembre","1996-noviembre",{"$f":"IF('[1]REAL IPC(M)'!$AL92=\"\",\"\",+'[1]REAL IPC(M)'!$AL92)","v":10.339756008162059},{"$f":"IF('[1]REAL IPC(M)'!$BE92=\"\",\"\",+'[1]REAL IPC(M)'!$BE92)","v":11.022867570797001},{"$f":"IF('[1]REAL IPC(M)'!$AM92=\"\",\"\",+'[1]REAL IPC(M)'!$AM92)","v":9.5399481281992493},{"$f":"IF('[1]REAL IPC(M)'!$BI92=\"\",\"\",+'[1]REAL IPC(M)'!$BI92)","v":10.13510290743862},{"$f":"IF('[1]REAL IMAE(M)'!BJ92=\"\",\"\",'[1]REAL IMAE(M)'!BJ92)","v":"n.d."},{"$f":"IF('[1]REAL IMAE(M)'!BK92=\"\",\"\",'[1]REAL IMAE(M)'!BK92)","v":"n.d."},{"$f":"IF('[1]REAL IMAE(M)'!BN92=\"\",\"\",'[1]REAL IMAE(M)'!BN92)","v":"n.d."},{"$f":"IF('[1]REAL IMAE(M)'!BO92=\"\",\"\",'[1]REAL IMAE(M)'!BO92)","v":"n.d."},{"$f":"IF('[1]EXT RIN(M)'!$K92=\"\",\"\",'[1]EXT RIN(M)'!$K92)","v":"n.d."},"",{"$f":"IF('[1]EXT RIN(M)'!$L92=\"\",\"\",'[1]EXT RIN(M)'!$L92)","v":"n.d."},"",{"$f":"IF('[1]MONE(M)CARD'!EG92=\"\",\"\",'[1]MONE(M)CARD'!EG92)","v":"n.d."},{"$f":"IF('[1]MONE(M)CARD'!EK92=\"\",\"\",'[1]MONE(M)CARD'!EK92)","v":"n.d."},{"$f":"IF('[1]MONE(M)CARD'!EP92=\"\",\"\",'[1]MONE(M)CARD'!EP92)","v":"n.d."},{"$f":"IF('[1]MONE(M)CARD'!ES92=\"\",\"\",'[1]MONE(M)CARD'!ES92)","v":"n.d."},{"$f":"IF('[1]MONE(M)CARD'!EV92=\"\",\"\",'[1]MONE(M)CARD'!EV92)","v":"n.d."},{"$f":"IF('[1]MONE(M)CARD'!EZ92=\"\",\"\",'[1]MONE(M)CARD'!EZ92)","v":"n.d."},{"$f":"IF('[1]MONE(M)CAPARD'!FC92=\"\",\"\",'[1]MONE(M)CAPARD'!FC92)","v":"n.d."},{"$f":"IF('[1]MONE(M)CAPARD'!FG92=\"\",\"\",'[1]MONE(M)CAPARD'!FG92)","v":"n.d."},{"$f":"IF('[1]MONE(M)CAPARD'!FL92=\"\",\"\",'[1]MONE(M)CAPARD'!FL92)","v":"n.d."},{"$f":"IF('[1]MONE(M)CAPARD'!FO92=\"\",\"\",'[1]MONE(M)CAPARD'!FO92)","v":"n.d."},{"$f":"IF('[1]MONE(M)CAPARD'!FR92=\"\",\"\",'[1]MONE(M)CAPARD'!FR92)","v":"n.d."},{"$f":"IF('[1]MONE(M)CAPARD'!FV92=\"\",\"\",'[1]MONE(M)CAPARD'!FV92)","v":"n.d."},{"$f":"IF('[1]MONE(M)CARD'!FV92=\"\",\"\",'[1]MONE(M)CARD'!FV92)","v":""},{"$f":"IF('[1]MONE(M)CARD'!GD92=\"\",\"\",'[1]MONE(M)CARD'!GD92)","v":"n.d."},{"$f":"IF('[1]MONE(M)CARD'!GE92=\"\",\"\",'[1]MONE(M)CARD'!GE92)","v":"n.d."},"n.d.","n.d.","n.d.","n.d.","n.d.","n.d.","n.d.","n.d.",null,"n.d.","n.d.","n.d.","n.d.","n.d.",{"$f":"IF('[1]MONE(M)CAPARD'!GS92=\"\",\"\",'[1]MONE(M)CAPARD'!GS92)","v":"n.d."},{"$f":"IF('[1]MONE(M)CARD'!HA92=\"\",\"\",'[1]MONE(M)CAPARD'!HA92)","v":"n.d."},{"$f":"IF('[1]MONE(M)CAPARD'!HB92=\"\",\"\",'[1]MONE(M)CAPARD'!HB92)","v":"n.d."},"n.d.","n.d.","n.d.","n.d.","n.d.","n.d.","n.d.","n.d.","n.d.","n.d.","n.d.","n.d.","n.d.","n.d.",{"$f":"IF('[1]MONE(M)CAPARD'!AS92=\"\",\"\",'[1]MONE(M)CAPARD'!AS92)","v":"n.d."},{"$f":"IF('[1]MONE(M)CAPARD'!AT92=\"\",\"\",'[1]MONE(M)CAPARD'!AT92)","v":"n.a."},{"$f":"IF('[1]MONE(M)CAPARD'!AU92=\"\",\"\",'[1]MONE(M)CAPARD'!AU92)","v":"n.d."},{"$f":"IF('[1]MONE(M)CAPARD'!AV92=\"\",\"\",'[1]MONE(M)CAPARD'!AV92)","v":"n.d."},{"$f":"IF('[1]MONE(M)CAPARD'!AW92=\"\",\"\",'[1]MONE(M)CAPARD'!AW92)","v":"n.a."},{"$f":"IF('[1]MONE(M)CAPARD'!AX92=\"\",\"\",'[1]MONE(M)CAPARD'!AX92)","v":"n.d."},{"$f":"IF('[1]MONE(M)CAPARD'!AY92=\"\",\"\",'[1]MONE(M)CAPARD'!AY92)","v":"n.a."},{"$f":"IF('[1]FISCAL(M)'!$K92=\"\",\"\",'[1]FISCAL(M)'!$K92)","v":"n.d."},{"$f":"IF('[1]FISCAL(M)'!$L92=\"\",\"\",'[1]FISCAL(M)'!$L92)","v":"n.d."},{"$f":"IF('[1]FISCAL(M)'!$AY92=\"\",\"\",'[1]FISCAL(M)'!$AY92)","v":"n.d."},{"$f":"IF('[1]FISCAL(M)'!$BI92=\"\",\"\",'[1]FISCAL(M)'!$BI92)","v":"n.d."},{"$f":"IF('[1]FISCAL(M)'!$BS92=\"\",\"\",'[1]FISCAL(M)'!$BS92)","v":"n.d."},{"$f":"IF('[1]FISCAL(M)'!$AZ92=\"\",\"\",'[1]FISCAL(M)'!$AZ92)","v":"n.d."},{"$f":"IF('[1]FISCAL(M)'!$BJ92=\"\",\"\",'[1]FISCAL(M)'!$BJ92)","v":"n.d."},{"$f":"IF('[1]FISCAL(M)'!$BT92=\"\",\"\",'[1]FISCAL(M)'!$BT92)","v":"n.d."},{"$f":"IF('[2]MONE(M)'!$AO92=\"\",\"\",'[2]MONE(M)'!$AO92)","v":"n.d."},{"$f":"IF('[3]MONE(M)'!$AO92=\"\",\"\",'[3]MONE(M)'!$AO92)","v":"n.d."},{"$f":"IF('[4]MONE(M)'!$AO92=\"\",\"\",'[4]MONE(M)'!$AO92)","v":"n.d."},{"$f":"IF('[5]MONE(M)'!$AO92=\"\",\"\",'[5]MONE(M)'!$AO92)","v":"n.d."},{"$f":"IF('[6]MONE(M)'!$AO92=\"\",\"\",'[6]MONE(M)'!$AO92)","v":"n.d."},{"$f":"IF('[7]MONE(M)'!$AO92=\"\",\"\",'[7]MONE(M)'!$AO92)","v":"n.d."},{"$f":"IF('[8]MONE(M)'!$AO92=\"\",\"\",'[8]MONE(M)'!$AO92)","v":"n.d."},"n.d.","n.d.","n.d.","n.d.","n.d.","n.d.","n.d.",{"$f":"IF('[1]FISCAL(M)'!$K92=\"\",\"\",'[1]FISCAL(M)'!$K92)","v":"n.d."},"n.d.","n.d.",{"$f":"IF('[1]FISCAL(M)'!$L92=\"\",\"\",'[1]FISCAL(M)'!$L92)","v":"n.d."},"n.d.","n.d.","n.d.","n.d.","n.d.","n.d.","n.d.","n.d.","n.d.","n.d.","n.d.","n.d.","n.d.","n.d.","n.d.","n.d.","n.d.","n.d."]
[1996,"diciembre","1996-diciembre",{"$f":"IF('[1]REAL IPC(M)'!$AL93=\"\",\"\",+'[1]REAL IPC(M)'!$AL93)","v":10.851994576668012},{"$f":"IF('[1]REAL IPC(M)'!$BE93=\"\",\"\",+'[1]REAL IPC(M)'!$BE93)","v":10.855961164966853},{"$f":"IF('[1]REAL IPC(M)'!$AM93=\"\",\"\",+'[1]REAL IPC(M)'!$AM93)","v":10.047809497039006},{"$f":"IF('[1]REAL IPC(M)'!$BI93=\"\",\"\",+'[1]REAL IPC(M)'!$BI93)","v":9.9877894686462465},{"$f":"IF('[1]REAL IMAE(M)'!BJ93=\"\",\"\",'[1]REAL IMAE(M)'!BJ93)","v":"n.d."},{"$f":"IF('[1]REAL IMAE(M)'!BK93=\"\",\"\",'[1]REAL IMAE(M)'!BK93)","v":"n.d."},{"$f":"IF('[1]REAL IMAE(M)'!BN93=\"\",\"\",'[1]REAL IMAE(M)'!BN93)","v":"n.d."},{"$f":"IF('[1]REAL IMAE(M)'!BO93=\"\",\"\",'[1]REAL IMAE(M)'!BO93)","v":"n.d."},{"$f":"IF('[1]EXT RIN(M)'!$K93=\"\",\"\",'[1]EXT RIN(M)'!$K93)","v":"n.d."},"n.d.",{"$f":"IF('[1]EXT RIN(M)'!$L93=\"\",\"\",'[1]EXT RIN(M)'!$L93)","v":"n.d."},"n.d.",{"$f":"IF('[1]MONE(M)CARD'!EG93=\"\",\"\",'[1]MONE(M)CARD'!EG93)","v":"n.d."},{"$f":"IF('[1]MONE(M)CARD'!EK93=\"\",\"\",'[1]MONE(M)CARD'!EK93)","v":"n.d."},{"$f":"IF('[1]MONE(M)CARD'!EP93=\"\",\"\",'[1]MONE(M)CARD'!EP93)","v":"n.d."},{"$f":"IF('[1]MONE(M)CARD'!ES93=\"\",\"\",'[1]MONE(M)CARD'!ES93)","v":"n.d."},{"$f":"IF('[1]MONE(M)CARD'!EV93=\"\",\"\",'[1]MONE(M)CARD'!EV93)","v":"n.d."},{"$f":"IF('[1]MONE(M)CARD'!EZ93=\"\",\"\",'[1]MONE(M)CARD'!EZ93)","v":"n.d."},{"$f":"IF('[1]MONE(M)CAPARD'!FC93=\"\",\"\",'[1]MONE(M)CAPARD'!FC93)","v":"n.d."},{"$f":"IF('[1]MONE(M)CAPARD'!FG93=\"\",\"\",'[1]MONE(M)CAPARD'!FG93)","v":"n.d."},{"$f":"IF('[1]MONE(M)CAPARD'!FL93=\"\",\"\",'[1]MONE(M)CAPARD'!FL93)","v":"n.d."},{"$f":"IF('[1]MONE(M)CAPARD'!FO93=\"\",\"\",'[1]MONE(M)CAPARD'!FO93)","v":"n.d."},{"$f":"IF('[1]MONE(M)CAPARD'!FR93=\"\",\"\",'[1]MONE(M)CAPARD'!FR93)","v":"n.d."},{"$f":"IF('[1]MONE(M)CAPARD'!FV93=\"\",\"\",'[1]MONE(M)CAPARD'!FV93)","v":"n.d."},{"$f":"IF('[1]MONE(M)CARD'!FV93=\"\",\"\",'[1]MONE(M)CARD'!FV93)","v":""},{"$f":"IF('[1]MONE(M)CARD'!GD93=\"\",\"\",'[1]MONE(M)CARD'!GD93)","v":"n.d."},{"$f":"IF('[1]MONE(M)CARD'!GE93=\"\",\"\",'[1]MONE(M)CARD'!GE93)","v":"n.d."},"n.d.","n.d.","n.d.","n.d.","n.d.","n.d.","n.d.","n.d.",null,"n.d.","n.d.","n.d.","n.d.","n.d.",{"$f":"IF('[1]MONE(M)CAPARD'!GS93=\"\",\"\",'[1]MONE(M)CAPARD'!GS93)","v":"n.d."},{"$f":"IF('[1]MONE(M)CARD'!HA93=\"\",\"\",'[1]MONE(M)CAPARD'!HA93)","v":"n.d."},{"$f":"IF('[1]MONE(M)CAPARD'!HB93=\"\",\"\",'[1]MONE(M)CAPARD'!HB93)","v":"n.d."},"n.d.","n.d.","n.d.","n.d.","n.d.","n.d.","n.d.","n.d.","n.d.","n.d.","n.d.","n.d.","n.d.","n.d.",{"$f":"IF('[1]MONE(M)CAPARD'!AS93=\"\",\"\",'[1]MONE(M)CAPARD'!AS93)","v":"n.d."},{"$f":"IF('[1]MONE(M)CAPARD'!AT93=\"\",\"\",'[1]MONE(M)CAPARD'!AT93)","v":"n.a."},{"$f":"IF('[1]MONE(M)CAPARD'!AU93=\"\",\"\",'[1]MONE(M)CAPARD'!AU93)","v":"n.d."},{"$f":"IF('[1]MONE(M)CAPARD'!AV93=\"\",\"\",'[1]MONE(M)CAPARD'!AV93)","v":"n.d."},{"$f":"IF('[1]MONE(M)CAPARD'!AW93=\"\",\"\",'[1]MONE(M)CAPARD'!AW93)","v":"n.a."},{"$f":"IF('[1]MONE(M)CAPARD'!AX93=\"\",\"\",'[1]MONE(M)CAPARD'!AX93)","v":"n.d."},{"$f":"IF('[1]MONE(M)CAPARD'!AY93=\"\",\"\",'[1]MONE(M)CAPARD'!AY93)","v":"n.a."},{"$f":"IF('[1]FISCAL(M)'!$K93=\"\",\"\",'[1]FISCAL(M)'!$K93)","v":"n.d."},{"$f":"IF('[1]FISCAL(M)'!$L93=\"\",\"\",'[1]FISCAL(M)'!$L93)","v":"n.d."},{"$f":"IF('[1]FISCAL(M)'!$AY93=\"\",\"\",'[1]FISCAL(M)'!$AY93)","v":"n.d."},{"$f":"IF('[1]FISCAL(M)'!$BI93=\"\",\"\",'[1]FISCAL(M)'!$BI93)","v":"n.d."},{"$f":"IF('[1]FISCAL(M)'!$BS93=\"\",\"\",'[1]FISCAL(M)'!$BS93)","v":"n.d."},{"$f":"IF('[1]FISCAL(M)'!$AZ93=\"\",\"\",'[1]FISCAL(M)'!$AZ93)","v":"n.d."},{"$f":"IF('[1]FISCAL(M)'!$BJ93=\"\",\"\",'[1]FISCAL(M)'!$BJ93)","v":"n.d."},{"$f":"IF('[1]FISCAL(M)'!$BT93=\"\",\"\",'[1]FISCAL(M)'!$BT93)","v":"n.d."},{"$f":"IF('[2]MONE(M)'!$AO93=\"\",\"\",'[2]MONE(M)'!$AO93)","v":"n.d."},{"$f":"IF('[3]MONE(M)'!$AO93=\"\",\"\",'[3]MONE(M)'!$AO93)","v":"n.d."},{"$f":"IF('[4]MONE(M)'!$AO93=\"\",\"\",'[4]MONE(M)'!$AO93)","v":"n.d."},{"$f":"IF('[5]MONE(M)'!$AO93=\"\",\"\",'[5]MONE(M)'!$AO93)","v":"n.d."},{"$f":"IF('[6]MONE(M)'!$AO93=\"\",\"\",'[6]MONE(M)'!$AO93)","v":"n.d."},{"$f":"IF('[7]MONE(M)'!$AO93=\"\",\"\",'[7]MONE(M)'!$AO93)","v":"n.d."},{"$f":"IF('[8]MONE(M)'!$AO93=\"\",\"\",'[8]MONE(M)'!$AO93)","v":"n.d."},"n.d.","n.d.","n.d.","n.d.","n.d.","n.d.","n.d.",{"$f":"IF('[1]FISCAL(M)'!$K93=\"\",\"\",'[1]FISCAL(M)'!$K93)","v":"n.d."},"n.d.","n.d.",{"$f":"IF('[1]FISCAL(M)'!$L93=\"\",\"\",'[1]FISCAL(M)'!$L93)","v":"n.d."},"n.d.","n.d.","n.d.","n.d.","n.d.","n.d.","n.d.","n.d.","n.d.","n.d.","n.d.","n.d.","n.d.","n.d.","n.d.","n.d.","n.d.","n.d."]
[1997,"enero","1997-enero",{"$f":"IF('[1]REAL IPC(M)'!$AL94=\"\",\"\",+'[1]REAL IPC(M)'!$AL94)","v":11.87966683556574},{"$f":"IF('[1]REAL IPC(M)'!$BE94=\"\",\"\",+'[1]REAL IPC(M)'!$BE94)","v":10.689724193994167},{"$f":"IF('[1]REAL IPC(M)'!$AM94=\"\",\"\",+'[1]REAL IPC(M)'!$AM94)","v":10.999817145169732},{"$f":"IF('[1]REAL IPC(M)'!$BI94=\"\",\"\",+'[1]REAL IPC(M)'!$BI94)","v":9.8405168675021351},{"$f":"IF('[1]REAL IMAE(M)'!BJ94=\"\",\"\",'[1]REAL IMAE(M)'!BJ94)","v":"n.d."},{"$f":"IF('[1]REAL IMAE(M)'!BK94=\"\",\"\",'[1]REAL IMAE(M)'!BK94)","v":"n.d."},{"$f":"IF('[1]REAL IMAE(M)'!BN94=\"\",\"\",'[1]REAL IMAE(M)'!BN94)","v":"n.d."},{"$f":"IF('[1]REAL IMAE(M)'!BO94=\"\",\"\",'[1]REAL IMAE(M)'!BO94)","v":"n.d."},{"$f":"IF('[1]EXT RIN(M)'!$K94=\"\",\"\",'[1]EXT RIN(M)'!$K94)","v":"n.d."},"",{"$f":"IF('[1]EXT RIN(M)'!$L94=\"\",\"\",'[1]EXT RIN(M)'!$L94)","v":"n.d."},"",{"$f":"IF('[1]MONE(M)CARD'!EG94=\"\",\"\",'[1]MONE(M)CARD'!EG94)","v":"n.d."},{"$f":"IF('[1]MONE(M)CARD'!EK94=\"\",\"\",'[1]MONE(M)CARD'!EK94)","v":"n.d."},{"$f":"IF('[1]MONE(M)CARD'!EP94=\"\",\"\",'[1]MONE(M)CARD'!EP94)","v":"n.d."},{"$f":"IF('[1]MONE(M)CARD'!ES94=\"\",\"\",'[1]MONE(M)CARD'!ES94)","v":"n.d."},{"$f":"IF('[1]MONE(M)CARD'!EV94=\"\",\"\",'[1]MONE(M)CARD'!EV94)","v":"n.d."},{"$f":"IF('[1]MONE(M)CARD'!EZ94=\"\",\"\",'[1]MONE(M)CARD'!EZ94)","v":"n.d."},{"$f":"IF('[1]MONE(M)CAPARD'!FC94=\"\",\"\",'[1]MONE(M)CAPARD'!FC94)","v":"n.d."},{"$f":"IF('[1]MONE(M)CAPARD'!FG94=\"\",\"\",'[1]MONE(M)CAPARD'!FG94)","v":"n.d."},{"$f":"IF('[1]MONE(M)CAPARD'!FL94=\"\",\"\",'[1]MONE(M)CAPARD'!FL94)","v":"n.d."},{"$f":"IF('[1]MONE(M)CAPARD'!FO94=\"\",\"\",'[1]MONE(M)CAPARD'!FO94)","v":"n.d."},{"$f":"IF('[1]MONE(M)CAPARD'!FR94=\"\",\"\",'[1]MONE(M)CAPARD'!FR94)","v":"n.d."},{"$f":"IF('[1]MONE(M)CAPARD'!FV94=\"\",\"\",'[1]MONE(M)CAPARD'!FV94)","v":"n.d."},{"$f":"IF('[1]MONE(M)CARD'!FV94=\"\",\"\",'[1]MONE(M)CARD'!FV94)","v":""},{"$f":"IF('[1]MONE(M)CARD'!GD94=\"\",\"\",'[1]MONE(M)CARD'!GD94)","v":"n.d."},{"$f":"IF('[1]MONE(M)CARD'!GE94=\"\",\"\",'[1]MONE(M)CARD'!GE94)","v":"n.d."},"n.d.","n.d.","n.d.","n.d.","n.d.","n.d.","n.d.","n.d.",null,"n.d.","n.d.","n.d.","n.d.","n.d.",{"$f":"IF('[1]MONE(M)CAPARD'!GS94=\"\",\"\",'[1]MONE(M)CAPARD'!GS94)","v":"n.d."},{"$f":"IF('[1]MONE(M)CARD'!HA94=\"\",\"\",'[1]MONE(M)CAPARD'!HA94)","v":"n.d."},{"$f":"IF('[1]MONE(M)CAPARD'!HB94=\"\",\"\",'[1]MONE(M)CAPARD'!HB94)","v":"n.d."},"n.d.","n.d.","n.d.","n.d.","n.d.","n.d.","n.d.","n.d.","n.d.","n.d.","n.d.","n.d.","n.d.","n.d.",{"$f":"IF('[1]MONE(M)CAPARD'!AS94=\"\",\"\",'[1]MONE(M)CAPARD'!AS94)","v":"n.d."},{"$f":"IF('[1]MONE(M)CAPARD'!AT94=\"\",\"\",'[1]MONE(M)CAPARD'!AT94)","v":"n.a."},{"$f":"IF('[1]MONE(M)CAPARD'!AU94=\"\",\"\",'[1]MONE(M)CAPARD'!AU94)","v":"n.d."},{"$f":"IF('[1]MONE(M)CAPARD'!AV94=\"\",\"\",'[1]MONE(M)CAPARD'!AV94)","v":"n.d."},{"$f":"IF('[1]MONE(M)CAPARD'!AW94=\"\",\"\",'[1]MONE(M)CAPARD'!AW94)","v":"n.a."},{"$f":"IF('[1]MONE(M)CAPARD'!AX94=\"\",\"\",'[1]MONE(M)CAPARD'!AX94)","v":"n.d."},{"$f":"IF('[1]MONE(M)CAPARD'!AY94=\"\",\"\",'[1]MONE(M)CAPARD'!AY94)","v":"n.a."},{"$f":"IF('[1]FISCAL(M)'!$K94=\"\",\"\",'[1]FISCAL(M)'!$K94)","v":"n.d."},{"$f":"IF('[1]FISCAL(M)'!$L94=\"\",\"\",'[1]FISCAL(M)'!$L94)","v":"n.d."},{"$f":"IF('[1]FISCAL(M)'!$AY94=\"\",\"\",'[1]FISCAL(M)'!$AY94)","v":"n.d."},{"$f":"IF('[1]FISCAL(M)'!$BI94=\"\",\"\",'[1]FISCAL(M)'!$BI94)","v":"n.d."},{"$f":"IF('[1]FISCAL(M)'!$BS94=\"\",\"\",'[1]FISCAL(M)'!$BS94)","v":"n.d."},{"$f":"IF('[1]FISCAL(M)'!$AZ94=\"\",\"\",'[1]FISCAL(M)'!$AZ94)","v":"n.d."},{"$f":"IF('[1]FISCAL(M)'!$BJ94=\"\",\"\",'[1]FISCAL(M)'!$BJ94)","v":"n.d."},{"$f":"IF('[1]FISCAL(M)'!$BT94=\"\",\"\",'[1]FISCAL(M)'!$BT94)","v":"n.d."},{"$f":"IF('[2]MONE(M)'!$AO94=\"\",\"\",'[2]MONE(M)'!$AO94)","v":"n.d."},{"$f":"IF('[3]MONE(M)'!$AO94=\"\",\"\",'[3]MONE(M)'!$AO94)","v":"n.d."},{"$f":"IF('[4]MONE(M)'!$AO94=\"\",\"\",'[4]MONE(M)'!$AO94)","v":"n.d."},{"$f":"IF('[5]MONE(M)'!$AO94=\"\",\"\",'[5]MONE(M)'!$AO94)","v":"n.d."},{"$f":"IF('[6]MONE(M)'!$AO94=\"\",\"\",'[6]MONE(M)'!$AO94)","v":"n.d."},{"$f":"IF('[7]MONE(M)'!$AO94=\"\",\"\",'[7]MONE(M)'!$AO94)","v":"n.d."},{"$f":"IF('[8]MONE(M)'!$AO94=\"\",\"\",'[8]MONE(M)'!$AO94)","v":"n.d."},"n.d.","n.d.","n.d.","n.d.","n.d.","n.d.","n.d.",{"$f":"IF('[1]FISCAL(M)'!$K94=\"\",\"\",'[1]FISCAL(M)'!$K94)","v":"n.d."},"n.d.","n.d.",{"$f":"IF('[1]FISCAL(M)'!$L94=\"\",\"\",'[1]FISCAL(M)'!$L94)","v":"n.d."},"n.d.","n.d.","n.d.","n.d.","n.d.","n.d.","n.d.","n.d.","n.d.","n.d.","n.d.","n.d.","n.d.","n.d.","n.d.","n.d.","n.d.","n.d."]
[1997,"febrero","1997-febrero",{"$f":"IF('[1]REAL IPC(M)'!$AL95=\"\",\"\",+'[1]REAL IPC(M)'!$AL95)","v":12.297524017774197},{"$f":"IF('[1]REAL IPC(M)'!$BE95=\"\",\"\",+'[1]REAL IPC(M)'!$BE95)","v":10.524230378254362},{"$f":"IF('[1]REAL IPC(M)'!$AM95=\"\",\"\",+'[1]REAL IPC(M)'!$AM95)","v":11.386912442514241},{"$f":"IF('[1]REAL IPC(M)'!$BI95=\"\",\"\",+'[1]REAL IPC(M)'!$BI95)","v":9.6933606919328508},{"$f":"IF('[1]REAL IMAE(M)'!BJ95=\"\",\"\",'[1]REAL IMAE(M)'!BJ95)","v":"n.d."},{"$f":"IF('[1]REAL IMAE(M)'!BK95=\"\",\"\",'[1]REAL IMAE(M)'!BK95)","v":"n.d."},{"$f":"IF('[1]REAL IMAE(M)'!BN95=\"\",\"\",'[1]REAL IMAE(M)'!BN95)","v":"n.d."},{"$f":"IF('[1]REAL IMAE(M)'!BO95=\"\",\"\",'[1]REAL IMAE(M)'!BO95)","v":"n.d."},{"$f":"IF('[1]EXT RIN(M)'!$K95=\"\",\"\",'[1]EXT RIN(M)'!$K95)","v":"n.d."},"",{"$f":"IF('[1]EXT RIN(M)'!$L95=\"\",\"\",'[1]EXT RIN(M)'!$L95)","v":"n.d."},"",{"$f":"IF('[1]MONE(M)CARD'!EG95=\"\",\"\",'[1]MONE(M)CARD'!EG95)","v":"n.d."},{"$f":"IF('[1]MONE(M)CARD'!EK95=\"\",\"\",'[1]MONE(M)CARD'!EK95)","v":"n.d."},{"$f":"IF('[1]MONE(M)CARD'!EP95=\"\",\"\",'[1]MONE(M)CARD'!EP95)","v":"n.d."},{"$f":"IF('[1]MONE(M)CARD'!ES95=\"\",\"\",'[1]MONE(M)CARD'!ES95)","v":"n.d."},{"$f":"IF('[1]MONE(M)CARD'!EV95=\"\",\"\",'[1]MONE(M)CARD'!EV95)","v":"n.d."},{"$f":"IF('[1]MONE(M)CARD'!EZ95=\"\",\"\",'[1]MONE(M)CARD'!EZ95)","v":"n.d."},{"$f":"IF('[1]MONE(M)CAPARD'!FC95=\"\",\"\",'[1]MONE(M)CAPARD'!FC95)","v":"n.d."},{"$f":"IF('[1]MONE(M)CAPARD'!FG95=\"\",\"\",'[1]MONE(M)CAPARD'!FG95)","v":"n.d."},{"$f":"IF('[1]MONE(M)CAPARD'!FL95=\"\",\"\",'[1]MONE(M)CAPARD'!FL95)","v":"n.d."},{"$f":"IF('[1]MONE(M)CAPARD'!FO95=\"\",\"\",'[1]MONE(M)CAPARD'!FO95)","v":"n.d."},{"$f":"IF('[1]MONE(M)CAPARD'!FR95=\"\",\"\",'[1]MONE(M)CAPARD'!FR95)","v":"n.d."},{"$f":"IF('[1]MONE(M)CAPARD'!FV95=\"\",\"\",'[1]MONE(M)CAPARD'!FV95)","v":"n.d."},{"$f":"IF('[1]MONE(M)CARD'!FV95=\"\",\"\",'[1]MONE(M)CARD'!FV95)","v":""},{"$f":"IF('[1]MONE(M)CARD'!GD95=\"\",\"\",'[1]MONE(M)CARD'!GD95)","v":"n.d."},{"$f":"IF('[1]MONE(M)CARD'!GE95=\"\",\"\",'[1]MONE(M)CARD'!GE95)","v":"n.d."},"n.d.","n.d.","n.d.","n.d.","n.d.","n.d.","n.d.","n.d.",null,"n.d.","n.d.","n.d.","n.d.","n.d.",{"$f":"IF('[1]MONE(M)CAPARD'!GS95=\"\",\"\",'[1]MONE(M)CAPARD'!GS95)","v":"n.d."},{"$f":"IF('[1]MONE(M)CARD'!HA95=\"\",\"\",'[1]MONE(M)CAPARD'!HA95)","v":"n.d."},{"$f":"IF('[1]MONE(M)CAPARD'!HB95=\"\",\"\",'[1]MONE(M)CAPARD'!HB95)","v":"n.d."},"n.d.","n.d.","n.d.","n.d.","n.d.","n.d.","n.d.","n.d.","n.d.","n.d.","n.d.","n.d.","n.d.","n.d.",{"$f":"IF('[1]MONE(M)CAPARD'!AS95=\"\",\"\",'[1]MONE(M)CAPARD'!AS95)","v":"n.d."},{"$f":"IF('[1]MONE(M)CAPARD'!AT95=\"\",\"\",'[1]MONE(M)CAPARD'!AT95)","v":"n.a."},{"$f":"IF('[1]MONE(M)CAPARD'!AU95=\"\",\"\",'[1]MONE(M)CAPARD'!AU95)","v":"n.d."},{"$f":"IF('[1]MONE(M)CAPARD'!AV95=\"\",\"\",'[1]MONE(M)CAPARD'!AV95)","v":"n.d."},{"$f":"IF('[1]MONE(M)CAPARD'!AW95=\"\",\"\",'[1]MONE(M)CAPARD'!AW95)","v":"n.a."},{"$f":"IF('[1]MONE(M)CAPARD'!AX95=\"\",\"\",'[1]MONE(M)CAPARD'!AX95)","v":"n.d."},{"$f":"IF('[1]MONE(M)CAPARD'!AY95=\"\",\"\",'[1]MONE(M)CAPARD'!AY95)","v":"n.a."},{"$f":"IF('[1]FISCAL(M)'!$K95=\"\",\"\",'[1]FISCAL(M)'!$K95)","v":"n.d."},{"$f":"IF('[1]FISCAL(M)'!$L95=\"\",\"\",'[1]FISCAL(M)'!$L95)","v":"n.d."},{"$f":"IF('[1]FISCAL(M)'!$AY95=\"\",\"\",'[1]FISCAL(M)'!$AY95)","v":"n.d."},{"$f":"IF('[1]FISCAL(M)'!$BI95=\"\",\"\",'[1]FISCAL(M)'!$BI95)","v":"n.d."},{"$f":"IF('[1]FISCAL(M)'!$BS95=\"\",\"\",'[1]FISCAL(M)'!$BS95)","v":"n.d."},{"$f":"IF('[1]FISCAL(M)'!$AZ95=\"\",\"\",'[1]FISCAL(M)'!$AZ95)","v":"n.d."},{"$f":"IF('[1]FISCAL(M)'!$BJ95=\"\",\"\",'[1]FISCAL(M)'!$BJ95)","v":"n.d."},{"$f":"IF('[1]FISCAL(M)'!$BT95=\"\",\"\",'[1]FISCAL(M)'!$BT95)","v":"n.d."},{"$f":"IF('[2]MONE(M)'!$AO95=\"\",\"\",'[2]MONE(M)'!$AO95)","v":"n.d."},{"$f":"IF('[3]MONE(M)'!$AO95=\"\",\"\",'[3]MONE(M)'!$AO95)","v":"n.d."},{"$f":"IF('[4]MONE(M)'!$AO95=\"\",\"\",'[4]MONE(M)'!$AO95)","v":"n.d."},{"$f":"IF('[5]MONE(M)'!$AO95=\"\",\"\",'[5]MONE(M)'!$AO95)","v":"n.d."},{"$f":"IF('[6]MONE(M)'!$AO95=\"\",\"\",'[6]MONE(M)'!$AO95)","v":"n.d."},{"$f":"IF('[7]MONE(M)'!$AO95=\"\",\"\",'[7]MONE(M)'!$AO95)","v":"n.d."},{"$f":"IF('[8]MONE(M)'!$AO95=\"\",\"\",'[8]MONE(M)'!$AO95)","v":"n.d."},"n.d.","n.d.","n.d.","n.d.","n.d.","n.d.","n.d.",{"$f":"IF('[1]FISCAL(M)'!$K95=\"\",\"\",'[1]FISCAL(M)'!$K95)","v":"n.d."},"n.d.","n.d.",{"$f":"IF('[1]FISCAL(M)'!$L95=\"\",\"\",'[1]FISCAL(M)'!$L95)","v":"n.d."},"n.d.","n.d.","n.d.","n.d.","n.d.","n.d.","n.d.","n.d.","n.d.","n.d.","n.d.","n.d.","n.d.","n.d.","n.d.","n.d.","n.d.","n.d."]
[1997,"marzo","1997-marzo",{"$f":"IF('[1]REAL IPC(M)'!$AL96=\"\",\"\",+'[1]REAL IPC(M)'!$AL96)","v":11.899617836022379},{"$f":"IF('[1]REAL IPC(M)'!$BE96=\"\",\"\",+'[1]REAL IPC(M)'!$BE96)","v":10.359618901927071},{"$f":"IF('[1]REAL IPC(M)'!$AM96=\"\",\"\",+'[1]REAL IPC(M)'!$AM96)","v":10.994813046867048},{"$f":"IF('[1]REAL IPC(M)'!$BI96=\"\",\"\",+'[1]REAL IPC(M)'!$BI96)","v":9.5464692240114335},{"$f":"IF('[1]REAL IMAE(M)'!BJ96=\"\",\"\",'[1]REAL IMAE(M)'!BJ96)","v":"n.d."},{"$f":"IF('[1]REAL IMAE(M)'!BK96=\"\",\"\",'[1]REAL IMAE(M)'!BK96)","v":"n.d."},{"$f":"IF('[1]REAL IMAE(M)'!BN96=\"\",\"\",'[1]REAL IMAE(M)'!BN96)","v":"n.d."},{"$f":"IF('[1]REAL IMAE(M)'!BO96=\"\",\"\",'[1]REAL IMAE(M)'!BO96)","v":"n.d."},{"$f":"IF('[1]EXT RIN(M)'!$K96=\"\",\"\",'[1]EXT RIN(M)'!$K96)","v":"n.d."},"",{"$f":"IF('[1]EXT RIN(M)'!$L96=\"\",\"\",'[1]EXT RIN(M)'!$L96)","v":"n.d."},"",{"$f":"IF('[1]MONE(M)CARD'!EG96=\"\",\"\",'[1]MONE(M)CARD'!EG96)","v":"n.d."},{"$f":"IF('[1]MONE(M)CARD'!EK96=\"\",\"\",'[1]MONE(M)CARD'!EK96)","v":"n.d."},{"$f":"IF('[1]MONE(M)CARD'!EP96=\"\",\"\",'[1]MONE(M)CARD'!EP96)","v":"n.d."},{"$f":"IF('[1]MONE(M)CARD'!ES96=\"\",\"\",'[1]MONE(M)CARD'!ES96)","v":"n.d."},{"$f":"IF('[1]MONE(M)CARD'!EV96=\"\",\"\",'[1]MONE(M)CARD'!EV96)","v":"n.d."},{"$f":"IF('[1]MONE(M)CARD'!EZ96=\"\",\"\",'[1]MONE(M)CARD'!EZ96)","v":"n.d."},{"$f":"IF('[1]MONE(M)CAPARD'!FC96=\"\",\"\",'[1]MONE(M)CAPARD'!FC96)","v":"n.d."},{"$f":"IF('[1]MONE(M)CAPARD'!FG96=\"\",\"\",'[1]MONE(M)CAPARD'!FG96)","v":"n.d."},{"$f":"IF('[1]MONE(M)CAPARD'!FL96=\"\",\"\",'[1]MONE(M)CAPARD'!FL96)","v":"n.d."},{"$f":"IF('[1]MONE(M)CAPARD'!FO96=\"\",\"\",'[1]MONE(M)CAPARD'!FO96)","v":"n.d."},{"$f":"IF('[1]MONE(M)CAPARD'!FR96=\"\",\"\",'[1]MONE(M)CAPARD'!FR96)","v":"n.d."},{"$f":"IF('[1]MONE(M)CAPARD'!FV96=\"\",\"\",'[1]MONE(M)CAPARD'!FV96)","v":"n.d."},{"$f":"IF('[1]MONE(M)CARD'!FV96=\"\",\"\",'[1]MONE(M)CARD'!FV96)","v":""},{"$f":"IF('[1]MONE(M)CARD'!GD96=\"\",\"\",'[1]MONE(M)CARD'!GD96)","v":"n.d."},{"$f":"IF('[1]MONE(M)CARD'!GE96=\"\",\"\",'[1]MONE(M)CARD'!GE96)","v":"n.d."},"n.d.","n.d.","n.d.","n.d.","n.d.","n.d.","n.d.","n.d.",null,"n.d.","n.d.","n.d.","n.d.","n.d.",{"$f":"IF('[1]MONE(M)CAPARD'!GS96=\"\",\"\",'[1]MONE(M)CAPARD'!GS96)","v":"n.d."},{"$f":"IF('[1]MONE(M)CARD'!HA96=\"\",\"\",'[1]MONE(M)CAPARD'!HA96)","v":"n.d."},{"$f":"IF('[1]MONE(M)CAPARD'!HB96=\"\",\"\",'[1]MONE(M)CAPARD'!HB96)","v":"n.d."},"n.d.","n.d.","n.d.","n.d.","n.d.","n.d.","n.d.","n.d.","n.d.","n.d.","n.d.","n.d.","n.d.","n.d.",{"$f":"IF('[1]MONE(M)CAPARD'!AS96=\"\",\"\",'[1]MONE(M)CAPARD'!AS96)","v":"n.d."},{"$f":"IF('[1]MONE(M)CAPARD'!AT96=\"\",\"\",'[1]MONE(M)CAPARD'!AT96)","v":"n.a."},{"$f":"IF('[1]MONE(M)CAPARD'!AU96=\"\",\"\",'[1]MONE(M)CAPARD'!AU96)","v":"n.d."},{"$f":"IF('[1]MONE(M)CAPARD'!AV96=\"\",\"\",'[1]MONE(M)CAPARD'!AV96)","v":"n.d."},{"$f":"IF('[1]MONE(M)CAPARD'!AW96=\"\",\"\",'[1]MONE(M)CAPARD'!AW96)","v":"n.a."},{"$f":"IF('[1]MONE(M)CAPARD'!AX96=\"\",\"\",'[1]MONE(M)CAPARD'!AX96)","v":"n.d."},{"$f":"IF('[1]MONE(M)CAPARD'!AY96=\"\",\"\",'[1]MONE(M)CAPARD'!AY96)","v":"n.a."},{"$f":"IF('[1]FISCAL(M)'!$K96=\"\",\"\",'[1]FISCAL(M)'!$K96)","v":"n.d."},{"$f":"IF('[1]FISCAL(M)'!$L96=\"\",\"\",'[1]FISCAL(M)'!$L96)","v":"n.d."},{"$f":"IF('[1]FISCAL(M)'!$AY96=\"\",\"\",'[1]FISCAL(M)'!$AY96)","v":"n.d."},{"$f":"IF('[1]FISCAL(M)'!$BI96=\"\",\"\",'[1]FISCAL(M)'!$BI96)","v":"n.d."},{"$f":"IF('[1]FISCAL(M)'!$BS96=\"\",\"\",'[1]FISCAL(M)'!$BS96)","v":"n.d."},{"$f":"IF('[1]FISCAL(M)'!$AZ96=\"\",\"\",'[1]FISCAL(M)'!$AZ96)","v":"n.d."},{"$f":"IF('[1]FISCAL(M)'!$BJ96=\"\",\"\",'[1]FISCAL(M)'!$BJ96)","v":"n.d."},{"$f":"IF('[1]FISCAL(M)'!$BT96=\"\",\"\",'[1]FISCAL(M)'!$BT96)","v":"n.d."},{"$f":"IF('[2]MONE(M)'!$AO96=\"\",\"\",'[2]MONE(M)'!$AO96)","v":"n.d."},{"$f":"IF('[3]MONE(M)'!$AO96=\"\",\"\",'[3]MONE(M)'!$AO96)","v":"n.d."},{"$f":"IF('[4]MONE(M)'!$AO96=\"\",\"\",'[4]MONE(M)'!$AO96)","v":"n.d."},{"$f":"IF('[5]MONE(M)'!$AO96=\"\",\"\",'[5]MONE(M)'!$AO96)","v":"n.d."},{"$f":"IF('[6]MONE(M)'!$AO96=\"\",\"\",'[6]MONE(M)'!$AO96)","v":"n.d."},{"$f":"IF('[7]MONE(M)'!$AO96=\"\",\"\",'[7]MONE(M)'!$AO96)","v":"n.d."},{"$f":"IF('[8]MONE(M)'!$AO96=\"\",\"\",'[8]MONE(M)'!$AO96)","v":"n.d."},"n.d.","n.d.","n.d.","n.d.","n.d.","n.d.","n.d.",{"$f":"IF('[1]FISCAL(M)'!$K96=\"\",\"\",'[1]FISCAL(M)'!$K96)","v":"n.d."},"n.d.","n.d.",{"$f":"IF('[1]FISCAL(M)'!$L96=\"\",\"\",'[1]FISCAL(M)'!$L96)","v":"n.d."},"n.d.","n.d.","n.d.","n.d.","n.d.","n.d.","n.d.","n.d.","n.d.","n.d.","n.d.","n.d.","n.d.","n.d.","n.d.","n.d.","n.d.","n.d."]
[1997,"abril","1997-abril",{"$f":"IF('[1]REAL IPC(M)'!$AL97=\"\",\"\",+'[1]REAL IPC(M)'!$AL97)","v":11.584396042720879},{"$f":"IF('[1]REAL IPC(M)'!$BE97=\"\",\"\",+'[1]REAL IPC(M)'!$BE97)","v":10.196124330272237},{"$f":"IF('[1]REAL IPC(M)'!$AM97=\"\",\"\",+'[1]REAL IPC(M)'!$AM97)","v":10.671912542313656},{"$f":"IF('[1]REAL IPC(M)'!$BI97=\"\",\"\",+'[1]REAL IPC(M)'!$BI97)","v":9.4000925665573831},{"$f":"IF('[1]REAL IMAE(M)'!BJ97=\"\",\"\",'[1]REAL IMAE(M)'!BJ97)","v":"n.d."},{"$f":"IF('[1]REAL IMAE(M)'!BK97=\"\",\"\",'[1]REAL IMAE(M)'!BK97)","v":"n.d."},{"$f":"IF('[1]REAL IMAE(M)'!BN97=\"\",\"\",'[1]REAL IMAE(M)'!BN97)","v":"n.d."},{"$f":"IF('[1]REAL IMAE(M)'!BO97=\"\",\"\",'[1]REAL IMAE(M)'!BO97)","v":"n.d."},{"$f":"IF('[1]EXT RIN(M)'!$K97=\"\",\"\",'[1]EXT RIN(M)'!$K97)","v":"n.d."},"",{"$f":"IF('[1]EXT RIN(M)'!$L97=\"\",\"\",'[1]EXT RIN(M)'!$L97)","v":"n.d."},"",{"$f":"IF('[1]MONE(M)CARD'!EG97=\"\",\"\",'[1]MONE(M)CARD'!EG97)","v":"n.d."},{"$f":"IF('[1]MONE(M)CARD'!EK97=\"\",\"\",'[1]MONE(M)CARD'!EK97)","v":"n.d."},{"$f":"IF('[1]MONE(M)CARD'!EP97=\"\",\"\",'[1]MONE(M)CARD'!EP97)","v":"n.d."},{"$f":"IF('[1]MONE(M)CARD'!ES97=\"\",\"\",'[1]MONE(M)CARD'!ES97)","v":"n.d."},{"$f":"IF('[1]MONE(M)CARD'!EV97=\"\",\"\",'[1]MONE(M)CARD'!EV97)","v":"n.d."},{"$f":"IF('[1]MONE(M)CARD'!EZ97=\"\",\"\",'[1]MONE(M)CARD'!EZ97)","v":"n.d."},{"$f":"IF('[1]MONE(M)CAPARD'!FC97=\"\",\"\",'[1]MONE(M)CAPARD'!FC97)","v":"n.d."},{"$f":"IF('[1]MONE(M)CAPARD'!FG97=\"\",\"\",'[1]MONE(M)CAPARD'!FG97)","v":"n.d."},{"$f":"IF('[1]MONE(M)CAPARD'!FL97=\"\",\"\",'[1]MONE(M)CAPARD'!FL97)","v":"n.d."},{"$f":"IF('[1]MONE(M)CAPARD'!FO97=\"\",\"\",'[1]MONE(M)CAPARD'!FO97)","v":"n.d."},{"$f":"IF('[1]MONE(M)CAPARD'!FR97=\"\",\"\",'[1]MONE(M)CAPARD'!FR97)","v":"n.d."},{"$f":"IF('[1]MONE(M)CAPARD'!FV97=\"\",\"\",'[1]MONE(M)CAPARD'!FV97)","v":"n.d."},{"$f":"IF('[1]MONE(M)CARD'!FV97=\"\",\"\",'[1]MONE(M)CARD'!FV97)","v":""},{"$f":"IF('[1]MONE(M)CARD'!GD97=\"\",\"\",'[1]MONE(M)CARD'!GD97)","v":"n.d."},{"$f":"IF('[1]MONE(M)CARD'!GE97=\"\",\"\",'[1]MONE(M)CARD'!GE97)","v":"n.d."},"n.d.","n.d.","n.d.","n.d.","n.d.","n.d.","n.d.","n.d.",null,"n.d.","n.d.","n.d.","n.d.","n.d.",{"$f":"IF('[1]MONE(M)CAPARD'!GS97=\"\",\"\",'[1]MONE(M)CAPARD'!GS97)","v":"n.d."},{"$f":"IF('[1]MONE(M)CARD'!HA97=\"\",\"\",'[1]MONE(M)CAPARD'!HA97)","v":"n.d."},{"$f":"IF('[1]MONE(M)CAPARD'!HB97=\"\",\"\",'[1]MONE(M)CAPARD'!HB97)","v":"n.d."},"n.d.","n.d.","n.d.","n.d.","n.d.","n.d.","n.d.","n.d.","n.d.","n.d.","n.d.","n.d.","n.d.","n.d.",{"$f":"IF('[1]MONE(M)CAPARD'!AS97=\"\",\"\",'[1]MONE(M)CAPARD'!AS97)","v":"n.d."},{"$f":"IF('[1]MONE(M)CAPARD'!AT97=\"\",\"\",'[1]MONE(M)CAPARD'!AT97)","v":"n.a."},{"$f":"IF('[1]MONE(M)CAPARD'!AU97=\"\",\"\",'[1]MONE(M)CAPARD'!AU97)","v":"n.d."},{"$f":"IF('[1]MONE(M)CAPARD'!AV97=\"\",\"\",'[1]MONE(M)CAPARD'!AV97)","v":"n.d."},{"$f":"IF('[1]MONE(M)CAPARD'!AW97=\"\",\"\",'[1]MONE(M)CAPARD'!AW97)","v":"n.a."},{"$f":"IF('[1]MONE(M)CAPARD'!AX97=\"\",\"\",'[1]MONE(M)CAPARD'!AX97)","v":"n.d."},{"$f":"IF('[1]MONE(M)CAPARD'!AY97=\"\",\"\",'[1]MONE(M)CAPARD'!AY97)","v":"n.a."},{"$f":"IF('[1]FISCAL(M)'!$K97=\"\",\"\",'[1]FISCAL(M)'!$K97)","v":"n.d."},{"$f":"IF('[1]FISCAL(M)'!$L97=\"\",\"\",'[1]FISCAL(M)'!$L97)","v":"n.d."},{"$f":"IF('[1]FISCAL(M)'!$AY97=\"\",\"\",'[1]FISCAL(M)'!$AY97)","v":"n.d."},{"$f":"IF('[1]FISCAL(M)'!$BI97=\"\",\"\",'[1]FISCAL(M)'!$BI97)","v":"n.d."},{"$f":"IF('[1]FISCAL(M)'!$BS97=\"\",\"\",'[1]FISCAL(M)'!$BS97)","v":"n.d."},{"$f":"IF('[1]FISCAL(M)'!$AZ97=\"\",\"\",'[1]FISCAL(M)'!$AZ97)","v":"n.d."},{"$f":"IF('[1]FISCAL(M)'!$BJ97=\"\",\"\",'[1]FISCAL(M)'!$BJ97)","v":"n.d."},{"$f":"IF('[1]FISCAL(M)'!$BT97=\"\",\"\",'[1]FISCAL(M)'!$BT97)","v":"n.d."},{"$f":"IF('[2]MONE(M)'!$AO97=\"\",\"\",'[2]MONE(M)'!$AO97)","v":"n.d."},{"$f":"IF('[3]MONE(M)'!$AO97=\"\",\"\",'[3]MONE(M)'!$AO97)","v":"n.d."},{"$f":"IF('[4]MONE(M)'!$AO97=\"\",\"\",'[4]MONE(M)'!$AO97)","v":"n.d."},{"$f":"IF('[5]MONE(M)'!$AO97=\"\",\"\",'[5]MONE(M)'!$AO97)","v":"n.d."},{"$f":"IF('[6]MONE(M)'!$AO97=\"\",\"\",'[6]MONE(M)'!$AO97)","v":"n.d."},{"$f":"IF('[7]MONE(M)'!$AO97=\"\",\"\",'[7]MONE(M)'!$AO97)","v":"n.d."},{"$f":"IF('[8]MONE(M)'!$AO97=\"\",\"\",'[8]MONE(M)'!$AO97)","v":"n.d."},"n.d.","n.d.","n.d.","n.d.","n.d.","n.d.","n.d.",{"$f":"IF('[1]FISCAL(M)'!$K97=\"\",\"\",'[1]FISCAL(M)'!$K97)","v":"n.d."},"n.d.","n.d.",{"$f":"IF('[1]FISCAL(M)'!$L97=\"\",\"\",'[1]FISCAL(M)'!$L97)","v":"n.d."},"n.d.","n.d.","n.d.","n.d.","n.d.","n.d.","n.d.","n.d.","n.d.","n.d.","n.d.","n.d.","n.d.","n.d.","n.d.","n.d.","n.d.","n.d."]
[1997,"mayo ","1997-mayo ",{"$f":"IF('[1]REAL IPC(M)'!$AL98=\"\",\"\",+'[1]REAL IPC(M)'!$AL98)","v":10.91184769936886},{"$f":"IF('[1]REAL IPC(M)'!$BE98=\"\",\"\",+'[1]REAL IPC(M)'!$BE98)","v":10.03406552443602},{"$f":"IF('[1]REAL IPC(M)'!$AM98=\"\",\"\",+'[1]REAL IPC(M)'!$AM98)","v":10.109237579983855},{"$f":"IF('[1]REAL IPC(M)'!$BI98=\"\",\"\",+'[1]REAL IPC(M)'!$BI98)","v":9.2545696508083317},{"$f":"IF('[1]REAL IMAE(M)'!BJ98=\"\",\"\",'[1]REAL IMAE(M)'!BJ98)","v":"n.d."},{"$f":"IF('[1]REAL IMAE(M)'!BK98=\"\",\"\",'[1]REAL IMAE(M)'!BK98)","v":"n.d."},{"$f":"IF('[1]REAL IMAE(M)'!BN98=\"\",\"\",'[1]REAL IMAE(M)'!BN98)","v":"n.d."},{"$f":"IF('[1]REAL IMAE(M)'!BO98=\"\",\"\",'[1]REAL IMAE(M)'!BO98)","v":"n.d."},{"$f":"IF('[1]EXT RIN(M)'!$K98=\"\",\"\",'[1]EXT RIN(M)'!$K98)","v":"n.d."},"",{"$f":"IF('[1]EXT RIN(M)'!$L98=\"\",\"\",'[1]EXT RIN(M)'!$L98)","v":"n.d."},"",{"$f":"IF('[1]MONE(M)CARD'!EG98=\"\",\"\",'[1]MONE(M)CARD'!EG98)","v":"n.d."},{"$f":"IF('[1]MONE(M)CARD'!EK98=\"\",\"\",'[1]MONE(M)CARD'!EK98)","v":"n.d."},{"$f":"IF('[1]MONE(M)CARD'!EP98=\"\",\"\",'[1]MONE(M)CARD'!EP98)","v":"n.d."},{"$f":"IF('[1]MONE(M)CARD'!ES98=\"\",\"\",'[1]MONE(M)CARD'!ES98)","v":"n.d."},{"$f":"IF('[1]MONE(M)CARD'!EV98=\"\",\"\",'[1]MONE(M)CARD'!EV98)","v":"n.d."},{"$f":"IF('[1]MONE(M)CARD'!EZ98=\"\",\"\",'[1]MONE(M)CARD'!EZ98)","v":"n.d."},{"$f":"IF('[1]MONE(M)CAPARD'!FC98=\"\",\"\",'[1]MONE(M)CAPARD'!FC98)","v":"n.d."},{"$f":"IF('[1]MONE(M)CAPARD'!FG98=\"\",\"\",'[1]MONE(M)CAPARD'!FG98)","v":"n.d."},{"$f":"IF('[1]MONE(M)CAPARD'!FL98=\"\",\"\",'[1]MONE(M)CAPARD'!FL98)","v":"n.d."},{"$f":"IF('[1]MONE(M)CAPARD'!FO98=\"\",\"\",'[1]MONE(M)CAPARD'!FO98)","v":"n.d."},{"$f":"IF('[1]MONE(M)CAPARD'!FR98=\"\",\"\",'[1]MONE(M)CAPARD'!FR98)","v":"n.d."},{"$f":"IF('[1]MONE(M)CAPARD'!FV98=\"\",\"\",'[1]MONE(M)CAPARD'!FV98)","v":"n.d."},{"$f":"IF('[1]MONE(M)CARD'!FV98=\"\",\"\",'[1]MONE(M)CARD'!FV98)","v":""},{"$f":"IF('[1]MONE(M)CARD'!GD98=\"\",\"\",'[1]MONE(M)CARD'!GD98)","v":"n.d."},{"$f":"IF('[1]MONE(M)CARD'!GE98=\"\",\"\",'[1]MONE(M)CARD'!GE98)","v":"n.d."},"n.d.","n.d.","n.d.","n.d.","n.d.","n.d.","n.d.","n.d.",null,"n.d.","n.d.","n.d.","n.d.","n.d.",{"$f":"IF('[1]MONE(M)CAPARD'!GS98=\"\",\"\",'[1]MONE(M)CAPARD'!GS98)","v":"n.d."},{"$f":"IF('[1]MONE(M)CARD'!HA98=\"\",\"\",'[1]MONE(M)CAPARD'!HA98)","v":"n.d."},{"$f":"IF('[1]MONE(M)CAPARD'!HB98=\"\",\"\",'[1]MONE(M)CAPARD'!HB98)","v":"n.d."},"n.d.","n.d.","n.d.","n.d.","n.d.","n.d.","n.d.","n.d.","n.d.","n.d.","n.d.","n.d.","n.d.","n.d.",{"$f":"IF('[1]MONE(M)CAPARD'!AS98=\"\",\"\",'[1]MONE(M)CAPARD'!AS98)","v":"n.d."},{"$f":"IF('[1]MONE(M)CAPARD'!AT98=\"\",\"\",'[1]MONE(M)CAPARD'!AT98)","v":"n.a."},{"$f":"IF('[1]MONE(M)CAPARD'!AU98=\"\",\"\",'[1]MONE(M)CAPARD'!AU98)","v":"n.d."},{"$f":"IF('[1]MONE(M)CAPARD'!AV98=\"\",\"\",'[1]MONE(M)CAPARD'!AV98)","v":"n.d."},{"$f":"IF('[1]MONE(M)CAPARD'!AW98=\"\",\"\",'[1]MONE(M)CAPARD'!AW98)","v":"n.a."},{"$f":"IF('[1]MONE(M)CAPARD'!AX98=\"\",\"\",'[1]MONE(M)CAPARD'!AX98)","v":"n.d."},{"$f":"IF('[1]MONE(M)CAPARD'!AY98=\"\",\"\",'[1]MONE(M)CAPARD'!AY98)","v":"n.a."},{"$f":"IF('[1]FISCAL(M)'!$K98=\"\",\"\",'[1]FISCAL(M)'!$K98)","v":"n.d."},{"$f":"IF('[1]FISCAL(M)'!$L98=\"\",\"\",'[1]FISCAL(M)'!$L98)","v":"n.d."},{"$f":"IF('[1]FISCAL(M)'!$AY98=\"\",\"\",'[1]FISCAL(M)'!$AY98)","v":"n.d."},{"$f":"IF('[1]FISCAL(M)'!$BI98=\"\",\"\",'[1]FISCAL(M)'!$BI98)","v":"n.d."},{"$f":"IF('[1]FISCAL(M)'!$BS98=\"\",\"\",'[1]FISCAL(M)'!$BS98)","v":"n.d."},{"$f":"IF('[1]FISCAL(M)'!$AZ98=\"\",\"\",'[1]FISCAL(M)'!$AZ98)","v":"n.d."},{"$f":"IF('[1]FISCAL(M)'!$BJ98=\"\",\"\",'[1]FISCAL(M)'!$BJ98)","v":"n.d."},{"$f":"IF('[1]FISCAL(M)'!$BT98=\"\",\"\",'[1]FISCAL(M)'!$BT98)","v":"n.d."},{"$f":"IF('[2]MONE(M)'!$AO98=\"\",\"\",'[2]MONE(M)'!$AO98)","v":"n.d."},{"$f":"IF('[3]MONE(M)'!$AO98=\"\",\"\",'[3]MONE(M)'!$AO98)","v":"n.d."},{"$f":"IF('[4]MONE(M)'!$AO98=\"\",\"\",'[4]MONE(M)'!$AO98)","v":"n.d."},{"$f":"IF('[5]MONE(M)'!$AO98=\"\",\"\",'[5]MONE(M)'!$AO98)","v":"n.d."},{"$f":"IF('[6]MONE(M)'!$AO98=\"\",\"\",'[6]MONE(M)'!$AO98)","v":"n.d."},{"$f":"IF('[7]MONE(M)'!$AO98=\"\",\"\",'[7]MONE(M)'!$AO98)","v":"n.d."},{"$f":"IF('[8]MONE(M)'!$AO98=\"\",\"\",'[8]MONE(M)'!$AO98)","v":"n.d."},"n.d.","n.d.","n.d.","n.d.","n.d.","n.d.","n.d.",{"$f":"IF('[1]FISCAL(M)'!$K98=\"\",\"\",'[1]FISCAL(M)'!$K98)","v":"n.d."},"n.d.","n.d.",{"$f":"IF('[1]FISCAL(M)'!$L98=\"\",\"\",'[1]FISCAL(M)'!$L98)","v":"n.d."},"n.d.","n.d.","n.d.","n.d.","n.d.","n.d.","n.d.","n.d.","n.d.","n.d.","n.d.","n.d.","n.d.","n.d.","n.d.","n.d.","n.d.","n.d."]
[1997,"junio ","1997-junio ",{"$f":"IF('[1]REAL IPC(M)'!$AL99=\"\",\"\",+'[1]REAL IPC(M)'!$AL99)","v":10.440696806456273},{"$f":"IF('[1]REAL IPC(M)'!$BE99=\"\",\"\",+'[1]REAL IPC(M)'!$BE99)","v":9.8738292695412113},{"$f":"IF('[1]REAL IPC(M)'!$AM99=\"\",\"\",+'[1]REAL IPC(M)'!$AM99)","v":9.7039130467875054},{"$f":"IF('[1]REAL IPC(M)'!$BI99=\"\",\"\",+'[1]REAL IPC(M)'!$BI99)","v":9.1103113035224439},{"$f":"IF('[1]REAL IMAE(M)'!BJ99=\"\",\"\",'[1]REAL IMAE(M)'!BJ99)","v":"n.d."},{"$f":"IF('[1]REAL IMAE(M)'!BK99=\"\",\"\",'[1]REAL IMAE(M)'!BK99)","v":"n.d."},{"$f":"IF('[1]REAL IMAE(M)'!BN99=\"\",\"\",'[1]REAL IMAE(M)'!BN99)","v":"n.d."},{"$f":"IF('[1]REAL IMAE(M)'!BO99=\"\",\"\",'[1]REAL IMAE(M)'!BO99)","v":"n.d."},{"$f":"IF('[1]EXT RIN(M)'!$K99=\"\",\"\",'[1]EXT RIN(M)'!$K99)","v":"n.d."},"",{"$f":"IF('[1]EXT RIN(M)'!$L99=\"\",\"\",'[1]EXT RIN(M)'!$L99)","v":"n.d."},"",{"$f":"IF('[1]MONE(M)CARD'!EG99=\"\",\"\",'[1]MONE(M)CARD'!EG99)","v":"n.d."},{"$f":"IF('[1]MONE(M)CARD'!EK99=\"\",\"\",'[1]MONE(M)CARD'!EK99)","v":"n.d."},{"$f":"IF('[1]MONE(M)CARD'!EP99=\"\",\"\",'[1]MONE(M)CARD'!EP99)","v":"n.d."},{"$f":"IF('[1]MONE(M)CARD'!ES99=\"\",\"\",'[1]MONE(M)CARD'!ES99)","v":"n.d."},{"$f":"IF('[1]MONE(M)CARD'!EV99=\"\",\"\",'[1]MONE(M)CARD'!EV99)","v":"n.d."},{"$f":"IF('[1]MONE(M)CARD'!EZ99=\"\",\"\",'[1]MONE(M)CARD'!EZ99)","v":"n.d."},{"$f":"IF('[1]MONE(M)CAPARD'!FC99=\"\",\"\",'[1]MONE(M)CAPARD'!FC99)","v":"n.d."},{"$f":"IF('[1]MONE(M)CAPARD'!FG99=\"\",\"\",'[1]MONE(M)CAPARD'!FG99)","v":"n.d."},{"$f":"IF('[1]MONE(M)CAPARD'!FL99=\"\",\"\",'[1]MONE(M)CAPARD'!FL99)","v":"n.d."},{"$f":"IF('[1]MONE(M)CAPARD'!FO99=\"\",\"\",'[1]MONE(M)CAPARD'!FO99)","v":"n.d."},{"$f":"IF('[1]MONE(M)CAPARD'!FR99=\"\",\"\",'[1]MONE(M)CAPARD'!FR99)","v":"n.d."},{"$f":"IF('[1]MONE(M)CAPARD'!FV99=\"\",\"\",'[1]MONE(M)CAPARD'!FV99)","v":"n.d."},{"$f":"IF('[1]MONE(M)CARD'!FV99=\"\",\"\",'[1]MONE(M)CARD'!FV99)","v":""},{"$f":"IF('[1]MONE(M)CARD'!GD99=\"\",\"\",'[1]MONE(M)CARD'!GD99)","v":"n.d."},{"$f":"IF('[1]MONE(M)CARD'!GE99=\"\",\"\",'[1]MONE(M)CARD'!GE99)","v":"n.d."},"n.d.","n.d.","n.d.","n.d.","n.d.","n.d.","n.d.","n.d.",null,"n.d.","n.d.","n.d.","n.d.","n.d.",{"$f":"IF('[1]MONE(M)CAPARD'!GS99=\"\",\"\",'[1]MONE(M)CAPARD'!GS99)","v":"n.d."},{"$f":"IF('[1]MONE(M)CARD'!HA99=\"\",\"\",'[1]MONE(M)CAPARD'!HA99)","v":"n.d."},{"$f":"IF('[1]MONE(M)CAPARD'!HB99=\"\",\"\",'[1]MONE(M)CAPARD'!HB99)","v":"n.d."},"n.d.","n.d.","n.d.","n.d.","n.d.","n.d.","n.d.","n.d.","n.d.","n.d.","n.d.","n.d.","n.d.","n.d.",{"$f":"IF('[1]MONE(M)CAPARD'!AS99=\"\",\"\",'[1]MONE(M)CAPARD'!AS99)","v":"n.d."},{"$f":"IF('[1]MONE(M)CAPARD'!AT99=\"\",\"\",'[1]MONE(M)CAPARD'!AT99)","v":"n.a."},{"$f":"IF('[1]MONE(M)CAPARD'!AU99=\"\",\"\",'[1]MONE(M)CAPARD'!AU99)","v":"n.d."},{"$f":"IF('[1]MONE(M)CAPARD'!AV99=\"\",\"\",'[1]MONE(M)CAPARD'!AV99)","v":"n.d."},{"$f":"IF('[1]MONE(M)CAPARD'!AW99=\"\",\"\",'[1]MONE(M)CAPARD'!AW99)","v":"n.a."},{"$f":"IF('[1]MONE(M)CAPARD'!AX99=\"\",\"\",'[1]MONE(M)CAPARD'!AX99)","v":"n.d."},{"$f":"IF('[1]MONE(M)CAPARD'!AY99=\"\",\"\",'[1]MONE(M)CAPARD'!AY99)","v":"n.a."},{"$f":"IF('[1]FISCAL(M)'!$K99=\"\",\"\",'[1]FISCAL(M)'!$K99)","v":"n.d."},{"$f":"IF('[1]FISCAL(M)'!$L99=\"\",\"\",'[1]FISCAL(M)'!$L99)","v":"n.d."},{"$f":"IF('[1]FISCAL(M)'!$AY99=\"\",\"\",'[1]FISCAL(M)'!$AY99)","v":"n.d."},{"$f":"IF('[1]FISCAL(M)'!$BI99=\"\",\"\",'[1]FISCAL(M)'!$BI99)","v":"n.d."},{"$f":"IF('[1]FISCAL(M)'!$BS99=\"\",\"\",'[1]FISCAL(M)'!$BS99)","v":"n.d."},{"$f":"IF('[1]FISCAL(M)'!$AZ99=\"\",\"\",'[1]FISCAL(M)'!$AZ99)","v":"n.d."},{"$f":"IF('[1]FISCAL(M)'!$BJ99=\"\",\"\",'[1]FISCAL(M)'!$BJ99)","v":"n.d."},{"$f":"IF('[1]FISCAL(M)'!$BT99=\"\",\"\",'[1]FISCAL(M)'!$BT99)","v":"n.d."},{"$f":"IF('[2]MONE(M)'!$AO99=\"\",\"\",'[2]MONE(M)'!$AO99)","v":"n.d."},{"$f":"IF('[3]MONE(M)'!$AO99=\"\",\"\",'[3]MONE(M)'!$AO99)","v":"n.d."},{"$f":"IF('[4]MONE(M)'!$AO99=\"\",\"\",'[4]MONE(M)'!$AO99)","v":"n.d."},{"$f":"IF('[5]MONE(M)'!$AO99=\"\",\"\",'[5]MONE(M)'!$AO99)","v":"n.d."},{"$f":"IF('[6]MONE(M)'!$AO99=\"\",\"\",'[6]MONE(M)'!$AO99)","v":"n.d."},{"$f":"IF('[7]MONE(M)'!$AO99=\"\",\"\",'[7]MONE(M)'!$AO99)","v":"n.d."},{"$f":"IF('[8]MONE(M)'!$AO99=\"\",\"\",'[8]MONE(M)'!$AO99)","v":"n.d."},"n.d.","n.d.","n.d.","n.d.","n.d.","n.d.","n.d.",{"$f":"IF('[1]FISCAL(M)'!$K99=\"\",\"\",'[1]FISCAL(M)'!$K99)","v":"n.d."},"n.d.","n.d.",{"$f":"IF('[1]FISCAL(M)'!$L99=\"\",\"\",'[1]FISCAL(M)'!$L99)","v":"n.d."},"n.d.","n.d.","n.d.","n.d.","n.d.","n.d.","n.d.","n.d.","n.d.","n.d.","n.d.","n.d.","n.d.","n.d.","n.d.","n.d.","n.d.","n.d."]
[1997,"julio","1997-julio",{"$f":"IF('[1]REAL IPC(M)'!$AL100=\"\",\"\",+'[1]REAL IPC(M)'!$AL100)","v":10.64690352748725},{"$f":"IF('[1]REAL IPC(M)'!$BE100=\"\",\"\",+'[1]REAL IPC(M)'!$BE100)","v":9.7158399599735379},{"$f":"IF('[1]REAL IPC(M)'!$AM100=\"\",\"\",+'[1]REAL IPC(M)'!$AM100)","v":9.8885002809142364},{"$f":"IF('[1]REAL IPC(M)'!$BI100=\"\",\"\",+'[1]REAL IPC(M)'!$BI100)","v":8.9677729156190988},{"$f":"IF('[1]REAL IMAE(M)'!BJ100=\"\",\"\",'[1]REAL IMAE(M)'!BJ100)","v":"n.d."},{"$f":"IF('[1]REAL IMAE(M)'!BK100=\"\",\"\",'[1]REAL IMAE(M)'!BK100)","v":"n.d."},{"$f":"IF('[1]REAL IMAE(M)'!BN100=\"\",\"\",'[1]REAL IMAE(M)'!BN100)","v":"n.d."},{"$f":"IF('[1]REAL IMAE(M)'!BO100=\"\",\"\",'[1]REAL IMAE(M)'!BO100)","v":"n.d."},{"$f":"IF('[1]EXT RIN(M)'!$K100=\"\",\"\",'[1]EXT RIN(M)'!$K100)","v":"n.d."},"",{"$f":"IF('[1]EXT RIN(M)'!$L100=\"\",\"\",'[1]EXT RIN(M)'!$L100)","v":"n.d."},"",{"$f":"IF('[1]MONE(M)CARD'!EG100=\"\",\"\",'[1]MONE(M)CARD'!EG100)","v":"n.d."},{"$f":"IF('[1]MONE(M)CARD'!EK100=\"\",\"\",'[1]MONE(M)CARD'!EK100)","v":"n.d."},{"$f":"IF('[1]MONE(M)CARD'!EP100=\"\",\"\",'[1]MONE(M)CARD'!EP100)","v":"n.d."},{"$f":"IF('[1]MONE(M)CARD'!ES100=\"\",\"\",'[1]MONE(M)CARD'!ES100)","v":"n.d."},{"$f":"IF('[1]MONE(M)CARD'!EV100=\"\",\"\",'[1]MONE(M)CARD'!EV100)","v":"n.d."},{"$f":"IF('[1]MONE(M)CARD'!EZ100=\"\",\"\",'[1]MONE(M)CARD'!EZ100)","v":"n.d."},{"$f":"IF('[1]MONE(M)CAPARD'!FC100=\"\",\"\",'[1]MONE(M)CAPARD'!FC100)","v":"n.d."},{"$f":"IF('[1]MONE(M)CAPARD'!FG100=\"\",\"\",'[1]MONE(M)CAPARD'!FG100)","v":"n.d."},{"$f":"IF('[1]MONE(M)CAPARD'!FL100=\"\",\"\",'[1]MONE(M)CAPARD'!FL100)","v":"n.d."},{"$f":"IF('[1]MONE(M)CAPARD'!FO100=\"\",\"\",'[1]MONE(M)CAPARD'!FO100)","v":"n.d."},{"$f":"IF('[1]MONE(M)CAPARD'!FR100=\"\",\"\",'[1]MONE(M)CAPARD'!FR100)","v":"n.d."},{"$f":"IF('[1]MONE(M)CAPARD'!FV100=\"\",\"\",'[1]MONE(M)CAPARD'!FV100)","v":"n.d."},{"$f":"IF('[1]MONE(M)CARD'!FV100=\"\",\"\",'[1]MONE(M)CARD'!FV100)","v":""},{"$f":"IF('[1]MONE(M)CARD'!GD100=\"\",\"\",'[1]MONE(M)CARD'!GD100)","v":"n.d."},{"$f":"IF('[1]MONE(M)CARD'!GE100=\"\",\"\",'[1]MONE(M)CARD'!GE100)","v":"n.d."},"n.d.","n.d.","n.d.","n.d.","n.d.","n.d.","n.d.","n.d.",null,"n.d.","n.d.","n.d.","n.d.","n.d.",{"$f":"IF('[1]MONE(M)CAPARD'!GS100=\"\",\"\",'[1]MONE(M)CAPARD'!GS100)","v":"n.d."},{"$f":"IF('[1]MONE(M)CARD'!HA100=\"\",\"\",'[1]MONE(M)CAPARD'!HA100)","v":"n.d."},{"$f":"IF('[1]MONE(M)CAPARD'!HB100=\"\",\"\",'[1]MONE(M)CAPARD'!HB100)","v":"n.d."},"n.d.","n.d.","n.d.","n.d.","n.d.","n.d.","n.d.","n.d.","n.d.","n.d.","n.d.","n.d.","n.d.","n.d.",{"$f":"IF('[1]MONE(M)CAPARD'!AS100=\"\",\"\",'[1]MONE(M)CAPARD'!AS100)","v":"n.d."},{"$f":"IF('[1]MONE(M)CAPARD'!AT100=\"\",\"\",'[1]MONE(M)CAPARD'!AT100)","v":"n.a."},{"$f":"IF('[1]MONE(M)CAPARD'!AU100=\"\",\"\",'[1]MONE(M)CAPARD'!AU100)","v":"n.d."},{"$f":"IF('[1]MONE(M)CAPARD'!AV100=\"\",\"\",'[1]MONE(M)CAPARD'!AV100)","v":"n.d."},{"$f":"IF('[1]MONE(M)CAPARD'!AW100=\"\",\"\",'[1]MONE(M)CAPARD'!AW100)","v":"n.a."},{"$f":"IF('[1]MONE(M)CAPARD'!AX100=\"\",\"\",'[1]MONE(M)CAPARD'!AX100)","v":"n.d."},{"$f":"IF('[1]MONE(M)CAPARD'!AY100=\"\",\"\",'[1]MONE(M)CAPARD'!AY100)","v":"n.a."},{"$f":"IF('[1]FISCAL(M)'!$K100=\"\",\"\",'[1]FISCAL(M)'!$K100)","v":"n.d."},{"$f":"IF('[1]FISCAL(M)'!$L100=\"\",\"\",'[1]FISCAL(M)'!$L100)","v":"n.d."},{"$f":"IF('[1]FISCAL(M)'!$AY100=\"\",\"\",'[1]FISCAL(M)'!$AY100)","v":"n.d."},{"$f":"IF('[1]FISCAL(M)'!$BI100=\"\",\"\",'[1]FISCAL(M)'!$BI100)","v":"n.d."},{"$f":"IF('[1]FISCAL(M)'!$BS100=\"\",\"\",'[1]FISCAL(M)'!$BS100)","v":"n.d."},{"$f":"IF('[1]FISCAL(M)'!$AZ100=\"\",\"\",'[1]FISCAL(M)'!$AZ100)","v":"n.d."},{"$f":"IF('[1]FISCAL(M)'!$BJ100=\"\",\"\",'[1]FISCAL(M)'!$BJ100)","v":"n.d."},{"$f":"IF('[1]FISCAL(M)'!$BT100=\"\",\"\",'[1]FISCAL(M)'!$BT100)","v":"n.d."},{"$f":"IF('[2]MONE(M)'!$AO100=\"\",\"\",'[2]MONE(M)'!$AO100)","v":"n.d."},{"$f":"IF('[3]MONE(M)'!$AO100=\"\",\"\",'[3]MONE(M)'!$AO100)","v":"n.d."},{"$f":"IF('[4]MONE(M)'!$AO100=\"\",\"\",'[4]MONE(M)'!$AO100)","v":"n.d."},{"$f":"IF('[5]MONE(M)'!$AO100=\"\",\"\",'[5]MONE(M)'!$AO100)","v":"n.d."},{"$f":"IF('[6]MONE(M)'!$AO100=\"\",\"\",'[6]MONE(M)'!$AO100)","v":"n.d."},{"$f":"IF('[7]MONE(M)'!$AO100=\"\",\"\",'[7]MONE(M)'!$AO100)","v":"n.d."},{"$f":"IF('[8]MONE(M)'!$AO100=\"\",\"\",'[8]MONE(M)'!$AO100)","v":"n.d."},"n.d.","n.d.","n.d.","n.d.","n.d.","n.d.","n.d.",{"$f":"IF('[1]FISCAL(M)'!$K100=\"\",\"\",'[1]FISCAL(M)'!$K100)","v":"n.d."},"n.d.","n.d.",{"$f":"IF('[1]FISCAL(M)'!$L100=\"\",\"\",'[1]FISCAL(M)'!$L100)","v":"n.d."},"n.d.","n.d.","n.d.","n.d.","n.d.","n.d.","n.d.","n.d.","n.d.","n.d.","n.d.","n.d.","n.d.","n.d.","n.d.","n.d.","n.d.","n.d."]
[1997,"agosto","1997-agosto",{"$f":"IF('[1]REAL IPC(M)'!$AL101=\"\",\"\",+'[1]REAL IPC(M)'!$AL101)","v":10.119011416723268},{"$f":"IF('[1]REAL IPC(M)'!$BE101=\"\",\"\",+'[1]REAL IPC(M)'!$BE101)","v":9.5605455746818446},{"$f":"IF('[1]REAL IPC(M)'!$AM101=\"\",\"\",+'[1]REAL IPC(M)'!$AM101)","v":9.3968850741019239},{"$f":"IF('[1]REAL IPC(M)'!$BI101=\"\",\"\",+'[1]REAL IPC(M)'!$BI101)","v":8.8274410579380458},{"$f":"IF('[1]REAL IMAE(M)'!BJ101=\"\",\"\",'[1]REAL IMAE(M)'!BJ101)","v":"n.d."},{"$f":"IF('[1]REAL IMAE(M)'!BK101=\"\",\"\",'[1]REAL IMAE(M)'!BK101)","v":"n.d."},{"$f":"IF('[1]REAL IMAE(M)'!BN101=\"\",\"\",'[1]REAL IMAE(M)'!BN101)","v":"n.d."},{"$f":"IF('[1]REAL IMAE(M)'!BO101=\"\",\"\",'[1]REAL IMAE(M)'!BO101)","v":"n.d."},{"$f":"IF('[1]EXT RIN(M)'!$K101=\"\",\"\",'[1]EXT RIN(M)'!$K101)","v":"n.d."},"",{"$f":"IF('[1]EXT RIN(M)'!$L101=\"\",\"\",'[1]EXT RIN(M)'!$L101)","v":"n.d."},"",{"$f":"IF('[1]MONE(M)CARD'!EG101=\"\",\"\",'[1]MONE(M)CARD'!EG101)","v":"n.d."},{"$f":"IF('[1]MONE(M)CARD'!EK101=\"\",\"\",'[1]MONE(M)CARD'!EK101)","v":"n.d."},{"$f":"IF('[1]MONE(M)CARD'!EP101=\"\",\"\",'[1]MONE(M)CARD'!EP101)","v":"n.d."},{"$f":"IF('[1]MONE(M)CARD'!ES101=\"\",\"\",'[1]MONE(M)CARD'!ES101)","v":"n.d."},{"$f":"IF('[1]MONE(M)CARD'!EV101=\"\",\"\",'[1]MONE(M)CARD'!EV101)","v":"n.d."},{"$f":"IF('[1]MONE(M)CARD'!EZ101=\"\",\"\",'[1]MONE(M)CARD'!EZ101)","v":"n.d."},{"$f":"IF('[1]MONE(M)CAPARD'!FC101=\"\",\"\",'[1]MONE(M)CAPARD'!FC101)","v":"n.d."},{"$f":"IF('[1]MONE(M)CAPARD'!FG101=\"\",\"\",'[1]MONE(M)CAPARD'!FG101)","v":"n.d."},{"$f":"IF('[1]MONE(M)CAPARD'!FL101=\"\",\"\",'[1]MONE(M)CAPARD'!FL101)","v":"n.d."},{"$f":"IF('[1]MONE(M)CAPARD'!FO101=\"\",\"\",'[1]MONE(M)CAPARD'!FO101)","v":"n.d."},{"$f":"IF('[1]MONE(M)CAPARD'!FR101=\"\",\"\",'[1]MONE(M)CAPARD'!FR101)","v":"n.d."},{"$f":"IF('[1]MONE(M)CAPARD'!FV101=\"\",\"\",'[1]MONE(M)CAPARD'!FV101)","v":"n.d."},{"$f":"IF('[1]MONE(M)CARD'!FV101=\"\",\"\",'[1]MONE(M)CARD'!FV101)","v":""},{"$f":"IF('[1]MONE(M)CARD'!GD101=\"\",\"\",'[1]MONE(M)CARD'!GD101)","v":"n.d."},{"$f":"IF('[1]MONE(M)CARD'!GE101=\"\",\"\",'[1]MONE(M)CARD'!GE101)","v":"n.d."},"n.d.","n.d.","n.d.","n.d.","n.d.","n.d.","n.d.","n.d.",null,"n.d.","n.d.","n.d.","n.d.","n.d.",{"$f":"IF('[1]MONE(M)CAPARD'!GS101=\"\",\"\",'[1]MONE(M)CAPARD'!GS101)","v":"n.d."},{"$f":"IF('[1]MONE(M)CARD'!HA101=\"\",\"\",'[1]MONE(M)CAPARD'!HA101)","v":"n.d."},{"$f":"IF('[1]MONE(M)CAPARD'!HB101=\"\",\"\",'[1]MONE(M)CAPARD'!HB101)","v":"n.d."},"n.d.","n.d.","n.d.","n.d.","n.d.","n.d.","n.d.","n.d.","n.d.","n.d.","n.d.","n.d.","n.d.","n.d.",{"$f":"IF('[1]MONE(M)CAPARD'!AS101=\"\",\"\",'[1]MONE(M)CAPARD'!AS101)","v":"n.d."},{"$f":"IF('[1]MONE(M)CAPARD'!AT101=\"\",\"\",'[1]MONE(M)CAPARD'!AT101)","v":"n.a."},{"$f":"IF('[1]MONE(M)CAPARD'!AU101=\"\",\"\",'[1]MONE(M)CAPARD'!AU101)","v":"n.d."},{"$f":"IF('[1]MONE(M)CAPARD'!AV101=\"\",\"\",'[1]MONE(M)CAPARD'!AV101)","v":"n.d."},{"$f":"IF('[1]MONE(M)CAPARD'!AW101=\"\",\"\",'[1]MONE(M)CAPARD'!AW101)","v":"n.a."},{"$f":"IF('[1]MONE(M)CAPARD'!AX101=\"\",\"\",'[1]MONE(M)CAPARD'!AX101)","v":"n.d."},{"$f":"IF('[1]MONE(M)CAPARD'!AY101=\"\",\"\",'[1]MONE(M)CAPARD'!AY101)","v":"n.a."},{"$f":"IF('[1]FISCAL(M)'!$K101=\"\",\"\",'[1]FISCAL(M)'!$K101)","v":"n.d."},{"$f":"IF('[1]FISCAL(M)'!$L101=\"\",\"\",'[1]FISCAL(M)'!$L101)","v":"n.d."},{"$f":"IF('[1]FISCAL(M)'!$AY101=\"\",\"\",'[1]FISCAL(M)'!$AY101)","v":"n.d."},{"$f":"IF('[1]FISCAL(M)'!$BI101=\"\",\"\",'[1]FISCAL(M)'!$BI101)","v":"n.d."},{"$f":"IF('[1]FISCAL(M)'!$BS101=\"\",\"\",'[1]FISCAL(M)'!$BS101)","v":"n.d."},{"$f":"IF('[1]FISCAL(M)'!$AZ101=\"\",\"\",'[1]FISCAL(M)'!$AZ101)","v":"n.d."},{"$f":"IF('[1]FISCAL(M)'!$BJ101=\"\",\"\",'[1]FISCAL(M)'!$BJ101)","v":"n.d."},{"$f":"IF('[1]FISCAL(M)'!$BT101=\"\",\"\",'[1]FISCAL(M)'!$BT101)","v":"n.d."},{"$f":"IF('[2]MONE(M)'!$AO101=\"\",\"\",'[2]MONE(M)'!$AO101)","v":"n.d."},{"$f":"IF('[3]MONE(M)'!$AO101=\"\",\"\",'[3]MONE(M)'!$AO101)","v":"n.d."},{"$f":"IF('[4]MONE(M)'!$AO101=\"\",\"\",'[4]MONE(M)'!$AO101)","v":"n.d."},{"$f":"IF('[5]MONE(M)'!$AO101=\"\",\"\",'[5]MONE(M)'!$AO101)","v":"n.d."},{"$f":"IF('[6]MONE(M)'!$AO101=\"\",\"\",'[6]MONE(M)'!$AO101)","v":"n.d."},{"$f":"IF('[7]MONE(M)'!$AO101=\"\",\"\",'[7]MONE(M)'!$AO101)","v":"n.d."},{"$f":"IF('[8]MONE(M)'!$AO101=\"\",\"\",'[8]MONE(M)'!$AO101)","v":"n.d."},"n.d.","n.d.","n.d.","n.d.","n.d.","n.d.","n.d.",{"$f":"IF('[1]FISCAL(M)'!$K101=\"\",\"\",'[1]FISCAL(M)'!$K101)","v":"n.d."},"n.d.","n.d.",{"$f":"IF('[1]FISCAL(M)'!$L101=\"\",\"\",'[1]FISCAL(M)'!$L101)","v":"n.d."},"n.d.","n.d.","n.d.","n.d.","n.d.","n.d.","n.d.","n.d.","n.d.","n.d.","n.d.","n.d.","n.d.","n.d.","n.d.","n.d.","n.d.","n.d."]
[1997,"septiembre","1997-septiembre",{"$f":"IF('[1]REAL IPC(M)'!$AL102=\"\",\"\",+'[1]REAL IPC(M)'!$AL102)","v":9.6947350050731842},{"$f":"IF('[1]REAL IPC(M)'!$BE102=\"\",\"\",+'[1]REAL IPC(M)'!$BE102)","v":9.4084276143249426},{"$f":"IF('[1]REAL IPC(M)'!$AM102=\"\",\"\",+'[1]REAL IPC(M)'!$AM102)","v":8.9948978770328925},{"$f":"IF('[1]REAL IPC(M)'!$BI102=\"\",\"\",+'[1]REAL IPC(M)'!$BI102)","v":8.6898427860504501},{"$f":"IF('[1]REAL IMAE(M)'!BJ102=\"\",\"\",'[1]REAL IMAE(M)'!BJ102)","v":"n.d."},{"$f":"IF('[1]REAL IMAE(M)'!BK102=\"\",\"\",'[1]REAL IMAE(M)'!BK102)","v":"n.d."},{"$f":"IF('[1]REAL IMAE(M)'!BN102=\"\",\"\",'[1]REAL IMAE(M)'!BN102)","v":"n.d."},{"$f":"IF('[1]REAL IMAE(M)'!BO102=\"\",\"\",'[1]REAL IMAE(M)'!BO102)","v":"n.d."},{"$f":"IF('[1]EXT RIN(M)'!$K102=\"\",\"\",'[1]EXT RIN(M)'!$K102)","v":"n.d."},"",{"$f":"IF('[1]EXT RIN(M)'!$L102=\"\",\"\",'[1]EXT RIN(M)'!$L102)","v":"n.d."},"",{"$f":"IF('[1]MONE(M)CARD'!EG102=\"\",\"\",'[1]MONE(M)CARD'!EG102)","v":"n.d."},{"$f":"IF('[1]MONE(M)CARD'!EK102=\"\",\"\",'[1]MONE(M)CARD'!EK102)","v":"n.d."},{"$f":"IF('[1]MONE(M)CARD'!EP102=\"\",\"\",'[1]MONE(M)CARD'!EP102)","v":"n.d."},{"$f":"IF('[1]MONE(M)CARD'!ES102=\"\",\"\",'[1]MONE(M)CARD'!ES102)","v":"n.d."},{"$f":"IF('[1]MONE(M)CARD'!EV102=\"\",\"\",'[1]MONE(M)CARD'!EV102)","v":"n.d."},{"$f":"IF('[1]MONE(M)CARD'!EZ102=\"\",\"\",'[1]MONE(M)CARD'!EZ102)","v":"n.d."},{"$f":"IF('[1]MONE(M)CAPARD'!FC102=\"\",\"\",'[1]MONE(M)CAPARD'!FC102)","v":"n.d."},{"$f":"IF('[1]MONE(M)CAPARD'!FG102=\"\",\"\",'[1]MONE(M)CAPARD'!FG102)","v":"n.d."},{"$f":"IF('[1]MONE(M)CAPARD'!FL102=\"\",\"\",'[1]MONE(M)CAPARD'!FL102)","v":"n.d."},{"$f":"IF('[1]MONE(M)CAPARD'!FO102=\"\",\"\",'[1]MONE(M)CAPARD'!FO102)","v":"n.d."},{"$f":"IF('[1]MONE(M)CAPARD'!FR102=\"\",\"\",'[1]MONE(M)CAPARD'!FR102)","v":"n.d."},{"$f":"IF('[1]MONE(M)CAPARD'!FV102=\"\",\"\",'[1]MONE(M)CAPARD'!FV102)","v":"n.d."},{"$f":"IF('[1]MONE(M)CARD'!FV102=\"\",\"\",'[1]MONE(M)CARD'!FV102)","v":""},{"$f":"IF('[1]MONE(M)CARD'!GD102=\"\",\"\",'[1]MONE(M)CARD'!GD102)","v":"n.d."},{"$f":"IF('[1]MONE(M)CARD'!GE102=\"\",\"\",'[1]MONE(M)CARD'!GE102)","v":"n.d."},"n.d.","n.d.","n.d.","n.d.","n.d.","n.d.","n.d.","n.d.",null,"n.d.","n.d.","n.d.","n.d.","n.d.",{"$f":"IF('[1]MONE(M)CAPARD'!GS102=\"\",\"\",'[1]MONE(M)CAPARD'!GS102)","v":"n.d."},{"$f":"IF('[1]MONE(M)CARD'!HA102=\"\",\"\",'[1]MONE(M)CAPARD'!HA102)","v":"n.d."},{"$f":"IF('[1]MONE(M)CAPARD'!HB102=\"\",\"\",'[1]MONE(M)CAPARD'!HB102)","v":"n.d."},"n.d.","n.d.","n.d.","n.d.","n.d.","n.d.","n.d.","n.d.","n.d.","n.d.","n.d.","n.d.","n.d.","n.d.",{"$f":"IF('[1]MONE(M)CAPARD'!AS102=\"\",\"\",'[1]MONE(M)CAPARD'!AS102)","v":"n.d."},{"$f":"IF('[1]MONE(M)CAPARD'!AT102=\"\",\"\",'[1]MONE(M)CAPARD'!AT102)","v":"n.a."},{"$f":"IF('[1]MONE(M)CAPARD'!AU102=\"\",\"\",'[1]MONE(M)CAPARD'!AU102)","v":"n.d."},{"$f":"IF('[1]MONE(M)CAPARD'!AV102=\"\",\"\",'[1]MONE(M)CAPARD'!AV102)","v":"n.d."},{"$f":"IF('[1]MONE(M)CAPARD'!AW102=\"\",\"\",'[1]MONE(M)CAPARD'!AW102)","v":"n.a."},{"$f":"IF('[1]MONE(M)CAPARD'!AX102=\"\",\"\",'[1]MONE(M)CAPARD'!AX102)","v":"n.d."},{"$f":"IF('[1]MONE(M)CAPARD'!AY102=\"\",\"\",'[1]MONE(M)CAPARD'!AY102)","v":"n.a."},{"$f":"IF('[1]FISCAL(M)'!$K102=\"\",\"\",'[1]FISCAL(M)'!$K102)","v":"n.d."},{"$f":"IF('[1]FISCAL(M)'!$L102=\"\",\"\",'[1]FISCAL(M)'!$L102)","v":"n.d."},{"$f":"IF('[1]FISCAL(M)'!$AY102=\"\",\"\",'[1]FISCAL(M)'!$AY102)","v":"n.d."},{"$f":"IF('[1]FISCAL(M)'!$BI102=\"\",\"\",'[1]FISCAL(M)'!$BI102)","v":"n.d."},{"$f":"IF('[1]FISCAL(M)'!$BS102=\"\",\"\",'[1]FISCAL(M)'!$BS102)","v":"n.d."},{"$f":"IF('[1]FISCAL(M)'!$AZ102=\"\",\"\",'[1]FISCAL(M)'!$AZ102)","v":"n.d."},{"$f":"IF('[1]FISCAL(M)'!$BJ102=\"\",\"\",'[1]FISCAL(M)'!$BJ102)","v":"n.d."},{"$f":"IF('[1]FISCAL(M)'!$BT102=\"\",\"\",'[1]FISCAL(M)'!$BT102)","v":"n.d."},{"$f":"IF('[2]MONE(M)'!$AO102=\"\",\"\",'[2]MONE(M)'!$AO102)","v":"n.d."},{"$f":"IF('[3]MONE(M)'!$AO102=\"\",\"\",'[3]MONE(M)'!$AO102)","v":"n.d."},{"$f":"IF('[4]MONE(M)'!$AO102=\"\",\"\",'[4]MONE(M)'!$AO102)","v":"n.d."},{"$f":"IF('[5]MONE(M)'!$AO102=\"\",\"\",'[5]MONE(M)'!$AO102)","v":"n.d."},{"$f":"IF('[6]MONE(M)'!$AO102=\"\",\"\",'[6]MONE(M)'!$AO102)","v":"n.d."},{"$f":"IF('[7]MONE(M)'!$AO102=\"\",\"\",'[7]MONE(M)'!$AO102)","v":"n.d."},{"$f":"IF('[8]MONE(M)'!$AO102=\"\",\"\",'[8]MONE(M)'!$AO102)","v":"n.d."},"n.d.","n.d.","n.d.","n.d.","n.d.","n.d.","n.d.",{"$f":"IF('[1]FISCAL(M)'!$K102=\"\",\"\",'[1]FISCAL(M)'!$K102)","v":"n.d."},"n.d.","n.d.",{"$f":"IF('[1]FISCAL(M)'!$L102=\"\",\"\",'[1]FISCAL(M)'!$L102)","v":"n.d."},"n.d.","n.d.","n.d.","n.d.","n.d.","n.d.","n.d.","n.d.","n.d.","n.d.","n.d.","n.d.","n.d.","n.d.","n.d.","n.d.","n.d.","n.d."]
[1997,"octubre","1997-octubre",{"$f":"IF('[1]REAL IPC(M)'!$AL103=\"\",\"\",+'[1]REAL IPC(M)'!$AL103)","v":9.1174599326849339},{"$f":"IF('[1]REAL IPC(M)'!$BE103=\"\",\"\",+'[1]REAL IPC(M)'!$BE103)","v":9.2599891519042679},{"$f":"IF('[1]REAL IPC(M)'!$AM103=\"\",\"\",+'[1]REAL IPC(M)'!$AM103)","v":8.3902982963940396},{"$f":"IF('[1]REAL IPC(M)'!$BI103=\"\",\"\",+'[1]REAL IPC(M)'!$BI103)","v":8.5555318316034032},{"$f":"IF('[1]REAL IMAE(M)'!BJ103=\"\",\"\",'[1]REAL IMAE(M)'!BJ103)","v":"n.d."},{"$f":"IF('[1]REAL IMAE(M)'!BK103=\"\",\"\",'[1]REAL IMAE(M)'!BK103)","v":"n.d."},{"$f":"IF('[1]REAL IMAE(M)'!BN103=\"\",\"\",'[1]REAL IMAE(M)'!BN103)","v":"n.d."},{"$f":"IF('[1]REAL IMAE(M)'!BO103=\"\",\"\",'[1]REAL IMAE(M)'!BO103)","v":"n.d."},{"$f":"IF('[1]EXT RIN(M)'!$K103=\"\",\"\",'[1]EXT RIN(M)'!$K103)","v":"n.d."},"",{"$f":"IF('[1]EXT RIN(M)'!$L103=\"\",\"\",'[1]EXT RIN(M)'!$L103)","v":"n.d."},"",{"$f":"IF('[1]MONE(M)CARD'!EG103=\"\",\"\",'[1]MONE(M)CARD'!EG103)","v":"n.d."},{"$f":"IF('[1]MONE(M)CARD'!EK103=\"\",\"\",'[1]MONE(M)CARD'!EK103)","v":"n.d."},{"$f":"IF('[1]MONE(M)CARD'!EP103=\"\",\"\",'[1]MONE(M)CARD'!EP103)","v":"n.d."},{"$f":"IF('[1]MONE(M)CARD'!ES103=\"\",\"\",'[1]MONE(M)CARD'!ES103)","v":"n.d."},{"$f":"IF('[1]MONE(M)CARD'!EV103=\"\",\"\",'[1]MONE(M)CARD'!EV103)","v":"n.d."},{"$f":"IF('[1]MONE(M)CARD'!EZ103=\"\",\"\",'[1]MONE(M)CARD'!EZ103)","v":"n.d."},{"$f":"IF('[1]MONE(M)CAPARD'!FC103=\"\",\"\",'[1]MONE(M)CAPARD'!FC103)","v":"n.d."},{"$f":"IF('[1]MONE(M)CAPARD'!FG103=\"\",\"\",'[1]MONE(M)CAPARD'!FG103)","v":"n.d."},{"$f":"IF('[1]MONE(M)CAPARD'!FL103=\"\",\"\",'[1]MONE(M)CAPARD'!FL103)","v":"n.d."},{"$f":"IF('[1]MONE(M)CAPARD'!FO103=\"\",\"\",'[1]MONE(M)CAPARD'!FO103)","v":"n.d."},{"$f":"IF('[1]MONE(M)CAPARD'!FR103=\"\",\"\",'[1]MONE(M)CAPARD'!FR103)","v":"n.d."},{"$f":"IF('[1]MONE(M)CAPARD'!FV103=\"\",\"\",'[1]MONE(M)CAPARD'!FV103)","v":"n.d."},{"$f":"IF('[1]MONE(M)CARD'!FV103=\"\",\"\",'[1]MONE(M)CARD'!FV103)","v":""},{"$f":"IF('[1]MONE(M)CARD'!GD103=\"\",\"\",'[1]MONE(M)CARD'!GD103)","v":"n.d."},{"$f":"IF('[1]MONE(M)CARD'!GE103=\"\",\"\",'[1]MONE(M)CARD'!GE103)","v":"n.d."},"n.d.","n.d.","n.d.","n.d.","n.d.","n.d.","n.d.","n.d.",null,"n.d.","n.d.","n.d.","n.d.","n.d.",{"$f":"IF('[1]MONE(M)CAPARD'!GS103=\"\",\"\",'[1]MONE(M)CAPARD'!GS103)","v":"n.d."},{"$f":"IF('[1]MONE(M)CARD'!HA103=\"\",\"\",'[1]MONE(M)CAPARD'!HA103)","v":"n.d."},{"$f":"IF('[1]MONE(M)CAPARD'!HB103=\"\",\"\",'[1]MONE(M)CAPARD'!HB103)","v":"n.d."},"n.d.","n.d.","n.d.","n.d.","n.d.","n.d.","n.d.","n.d.","n.d.","n.d.","n.d.","n.d.","n.d.","n.d.",{"$f":"IF('[1]MONE(M)CAPARD'!AS103=\"\",\"\",'[1]MONE(M)CAPARD'!AS103)","v":"n.d."},{"$f":"IF('[1]MONE(M)CAPARD'!AT103=\"\",\"\",'[1]MONE(M)CAPARD'!AT103)","v":"n.a."},{"$f":"IF('[1]MONE(M)CAPARD'!AU103=\"\",\"\",'[1]MONE(M)CAPARD'!AU103)","v":"n.d."},{"$f":"IF('[1]MONE(M)CAPARD'!AV103=\"\",\"\",'[1]MONE(M)CAPARD'!AV103)","v":"n.d."},{"$f":"IF('[1]MONE(M)CAPARD'!AW103=\"\",\"\",'[1]MONE(M)CAPARD'!AW103)","v":"n.a."},{"$f":"IF('[1]MONE(M)CAPARD'!AX103=\"\",\"\",'[1]MONE(M)CAPARD'!AX103)","v":"n.d."},{"$f":"IF('[1]MONE(M)CAPARD'!AY103=\"\",\"\",'[1]MONE(M)CAPARD'!AY103)","v":"n.a."},{"$f":"IF('[1]FISCAL(M)'!$K103=\"\",\"\",'[1]FISCAL(M)'!$K103)","v":"n.d."},{"$f":"IF('[1]FISCAL(M)'!$L103=\"\",\"\",'[1]FISCAL(M)'!$L103)","v":"n.d."},{"$f":"IF('[1]FISCAL(M)'!$AY103=\"\",\"\",'[1]FISCAL(M)'!$AY103)","v":"n.d."},{"$f":"IF('[1]FISCAL(M)'!$BI103=\"\",\"\",'[1]FISCAL(M)'!$BI103)","v":"n.d."},{"$f":"IF('[1]FISCAL(M)'!$BS103=\"\",\"\",'[1]FISCAL(M)'!$BS103)","v":"n.d."},{"$f":"IF('[1]FISCAL(M)'!$AZ103=\"\",\"\",'[1]FISCAL(M)'!$AZ103)","v":"n.d."},{"$f":"IF('[1]FISCAL(M)'!$BJ103=\"\",\"\",'[1]FISCAL(M)'!$BJ103)","v":"n.d."},{"$f":"IF('[1]FISCAL(M)'!$BT103=\"\",\"\",'[1]FISCAL(M)'!$BT103)","v":"n.d."},{"$f":"IF('[2]MONE(M)'!$AO103=\"\",\"\",'[2]MONE(M)'!$AO103)","v":"n.d."},{"$f":"IF('[3]MONE(M)'!$AO103=\"\",\"\",'[3]MONE(M)'!$AO103)","v":"n.d."},{"$f":"IF('[4]MONE(M)'!$AO103=\"\",\"\",'[4]MONE(M)'!$AO103)","v":"n.d."},{"$f":"IF('[5]MONE(M)'!$AO103=\"\",\"\",'[5]MONE(M)'!$AO103)","v":"n.d."},{"$f":"IF('[6]MONE(M)'!$AO103=\"\",\"\",'[6]MONE(M)'!$AO103)","v":"n.d."},{"$f":"IF('[7]MONE(M)'!$AO103=\"\",\"\",'[7]MONE(M)'!$AO103)","v":"n.d."},{"$f":"IF('[8]MONE(M)'!$AO103=\"\",\"\",'[8]MONE(M)'!$AO103)","v":"n.d."},"n.d.","n.d.","n.d.","n.d.","n.d.","n.d.","n.d.",{"$f":"IF('[1]FISCAL(M)'!$K103=\"\",\"\",'[1]FISCAL(M)'!$K103)","v":"n.d."},"n.d.","n.d.",{"$f":"IF('[1]FISCAL(M)'!$L103=\"\",\"\",'[1]FISCAL(M)'!$L103)","v":"n.d."},"n.d.","n.d.","n.d.","n.d.","n.d.","n.d.","n.d.","n.d.","n.d.","n.d.","n.d.","n.d.","n.d.","n.d.","n.d.","n.d.","n.d.","n.d."]
[1997,"noviembre","1997-noviembre",{"$f":"IF('[1]REAL IPC(M)'!$AL104=\"\",\"\",+'[1]REAL IPC(M)'!$AL104)","v":8.9098653236094449},{"$f":"IF('[1]REAL IPC(M)'!$BE104=\"\",\"\",+'[1]REAL IPC(M)'!$BE104)","v":9.1157306314842312},{"$f":"IF('[1]REAL IPC(M)'!$AM104=\"\",\"\",+'[1]REAL IPC(M)'!$AM104)","v":8.1905113037427526},{"$f":"IF('[1]REAL IPC(M)'!$BI104=\"\",\"\",+'[1]REAL IPC(M)'!$BI104)","v":8.4250597384729389},{"$f":"IF('[1]REAL IMAE(M)'!BJ104=\"\",\"\",'[1]REAL IMAE(M)'!BJ104)","v":"n.d."},{"$f":"IF('[1]REAL IMAE(M)'!BK104=\"\",\"\",'[1]REAL IMAE(M)'!BK104)","v":"n.d."},{"$f":"IF('[1]REAL IMAE(M)'!BN104=\"\",\"\",'[1]REAL IMAE(M)'!BN104)","v":"n.d."},{"$f":"IF('[1]REAL IMAE(M)'!BO104=\"\",\"\",'[1]REAL IMAE(M)'!BO104)","v":"n.d."},{"$f":"IF('[1]EXT RIN(M)'!$K104=\"\",\"\",'[1]EXT RIN(M)'!$K104)","v":"n.d."},"",{"$f":"IF('[1]EXT RIN(M)'!$L104=\"\",\"\",'[1]EXT RIN(M)'!$L104)","v":"n.d."},"",{"$f":"IF('[1]MONE(M)CARD'!EG104=\"\",\"\",'[1]MONE(M)CARD'!EG104)","v":"n.d."},{"$f":"IF('[1]MONE(M)CARD'!EK104=\"\",\"\",'[1]MONE(M)CARD'!EK104)","v":"n.d."},{"$f":"IF('[1]MONE(M)CARD'!EP104=\"\",\"\",'[1]MONE(M)CARD'!EP104)","v":"n.d."},{"$f":"IF('[1]MONE(M)CARD'!ES104=\"\",\"\",'[1]MONE(M)CARD'!ES104)","v":"n.d."},{"$f":"IF('[1]MONE(M)CARD'!EV104=\"\",\"\",'[1]MONE(M)CARD'!EV104)","v":"n.d."},{"$f":"IF('[1]MONE(M)CARD'!EZ104=\"\",\"\",'[1]MONE(M)CARD'!EZ104)","v":"n.d."},{"$f":"IF('[1]MONE(M)CAPARD'!FC104=\"\",\"\",'[1]MONE(M)CAPARD'!FC104)","v":"n.d."},{"$f":"IF('[1]MONE(M)CAPARD'!FG104=\"\",\"\",'[1]MONE(M)CAPARD'!FG104)","v":"n.d."},{"$f":"IF('[1]MONE(M)CAPARD'!FL104=\"\",\"\",'[1]MONE(M)CAPARD'!FL104)","v":"n.d."},{"$f":"IF('[1]MONE(M)CAPARD'!FO104=\"\",\"\",'[1]MONE(M)CAPARD'!FO104)","v":"n.d."},{"$f":"IF('[1]MONE(M)CAPARD'!FR104=\"\",\"\",'[1]MONE(M)CAPARD'!FR104)","v":"n.d."},{"$f":"IF('[1]MONE(M)CAPARD'!FV104=\"\",\"\",'[1]MONE(M)CAPARD'!FV104)","v":"n.d."},{"$f":"IF('[1]MONE(M)CARD'!FV104=\"\",\"\",'[1]MONE(M)CARD'!FV104)","v":""},{"$f":"IF('[1]MONE(M)CARD'!GD104=\"\",\"\",'[1]MONE(M)CARD'!GD104)","v":"n.d."},{"$f":"IF('[1]MONE(M)CARD'!GE104=\"\",\"\",'[1]MONE(M)CARD'!GE104)","v":"n.d."},"n.d.","n.d.","n.d.","n.d.","n.d.","n.d.","n.d.","n.d.",null,"n.d.","n.d.","n.d.","n.d.","n.d.",{"$f":"IF('[1]MONE(M)CAPARD'!GS104=\"\",\"\",'[1]MONE(M)CAPARD'!GS104)","v":"n.d."},{"$f":"IF('[1]MONE(M)CARD'!HA104=\"\",\"\",'[1]MONE(M)CAPARD'!HA104)","v":"n.d."},{"$f":"IF('[1]MONE(M)CAPARD'!HB104=\"\",\"\",'[1]MONE(M)CAPARD'!HB104)","v":"n.d."},"n.d.","n.d.","n.d.","n.d.","n.d.","n.d.","n.d.","n.d.","n.d.","n.d.","n.d.","n.d.","n.d.","n.d.",{"$f":"IF('[1]MONE(M)CAPARD'!AS104=\"\",\"\",'[1]MONE(M)CAPARD'!AS104)","v":"n.d."},{"$f":"IF('[1]MONE(M)CAPARD'!AT104=\"\",\"\",'[1]MONE(M)CAPARD'!AT104)","v":"n.a."},{"$f":"IF('[1]MONE(M)CAPARD'!AU104=\"\",\"\",'[1]MONE(M)CAPARD'!AU104)","v":"n.d."},{"$f":"IF('[1]MONE(M)CAPARD'!AV104=\"\",\"\",'[1]MONE(M)CAPARD'!AV104)","v":"n.d."},{"$f":"IF('[1]MONE(M)CAPARD'!AW104=\"\",\"\",'[1]MONE(M)CAPARD'!AW104)","v":"n.a."},{"$f":"IF('[1]MONE(M)CAPARD'!AX104=\"\",\"\",'[1]MONE(M)CAPARD'!AX104)","v":"n.d."},{"$f":"IF('[1]MONE(M)CAPARD'!AY104=\"\",\"\",'[1]MONE(M)CAPARD'!AY104)","v":"n.a."},{"$f":"IF('[1]FISCAL(M)'!$K104=\"\",\"\",'[1]FISCAL(M)'!$K104)","v":"n.d."},{"$f":"IF('[1]FISCAL(M)'!$L104=\"\",\"\",'[1]FISCAL(M)'!$L104)","v":"n.d."},{"$f":"IF('[1]FISCAL(M)'!$AY104=\"\",\"\",'[1]FISCAL(M)'!$AY104)","v":"n.d."},{"$f":"IF('[1]FISCAL(M)'!$BI104=\"\",\"\",'[1]FISCAL(M)'!$BI104)","v":"n.d."},{"$f":"IF('[1]FISCAL(M)'!$BS104=\"\",\"\",'[1]FISCAL(M)'!$BS104)","v":"n.d."},{"$f":"IF('[1]FISCAL(M)'!$AZ104=\"\",\"\",'[1]FISCAL(M)'!$AZ104)","v":"n.d."},{"$f":"IF('[1]FISCAL(M)'!$BJ104=\"\",\"\",'[1]FISCAL(M)'!$BJ104)","v":"n.d."},{"$f":"IF('[1]FISCAL(M)'!$BT104=\"\",\"\",'[1]FISCAL(M)'!$BT104)","v":"n.d."},{"$f":"IF('[2]MONE(M)'!$AO104=\"\",\"\",'[2]MONE(M)'!$AO104)","v":"n.d."},{"$f":"IF('[3]MONE(M)'!$AO104=\"\",\"\",'[3]MONE(M)'!$AO104)","v":"n.d."},{"$f":"IF('[4]MONE(M)'!$AO104=\"\",\"\",'[4]MONE(M)'!$AO104)","v":"n.d."},{"$f":"IF('[5]MONE(M)'!$AO104=\"\",\"\",'[5]MONE(M)'!$AO104)","v":"n.d."},{"$f":"IF('[6]MONE(M)'!$AO104=\"\",\"\",'[6]MONE(M)'!$AO104)","v":"n.d."},{"$f":"IF('[7]MONE(M)'!$AO104=\"\",\"\",'[7]MONE(M)'!$AO104)","v":"n.d."},{"$f":"IF('[8]MONE(M)'!$AO104=\"\",\"\",'[8]MONE(M)'!$AO104)","v":"n.d."},"n.d.","n.d.","n.d.","n.d.","n.d.","n.d.","n.d.",{"$f":"IF('[1]FISCAL(M)'!$K104=\"\",\"\",'[1]FISCAL(M)'!$K104)","v":"n.d."},"n.d.","n.d.",{"$f":"IF('[1]FISCAL(M)'!$L104=\"\",\"\",'[1]FISCAL(M)'!$L104)","v":"n.d."},"n.d.","n.d.","n.d.","n.d.","n.d.","n.d.","n.d.","n.d.","n.d.","n.d.","n.d.","n.d.","n.d.","n.d.","n.d.","n.d.","n.d.","n.d."]
[1997,"diciembre","1997-diciembre",{"$f":"IF('[1]REAL IPC(M)'!$AL105=\"\",\"\",+'[1]REAL IPC(M)'!$AL105)","v":8.2339324699311831},{"$f":"IF('[1]REAL IPC(M)'!$BE105=\"\",\"\",+'[1]REAL IPC(M)'!$BE105)","v":8.9761325867002242},{"$f":"IF('[1]REAL IPC(M)'!$AM105=\"\",\"\",+'[1]REAL IPC(M)'!$AM105)","v":7.5114740931111035},{"$f":"IF('[1]REAL IPC(M)'!$BI105=\"\",\"\",+'[1]REAL IPC(M)'!$BI105)","v":8.2989551393324756},{"$f":"IF('[1]REAL IMAE(M)'!BJ105=\"\",\"\",'[1]REAL IMAE(M)'!BJ105)","v":"n.d."},{"$f":"IF('[1]REAL IMAE(M)'!BK105=\"\",\"\",'[1]REAL IMAE(M)'!BK105)","v":"n.d."},{"$f":"IF('[1]REAL IMAE(M)'!BN105=\"\",\"\",'[1]REAL IMAE(M)'!BN105)","v":"n.d."},{"$f":"IF('[1]REAL IMAE(M)'!BO105=\"\",\"\",'[1]REAL IMAE(M)'!BO105)","v":"n.d."},{"$f":"IF('[1]EXT RIN(M)'!$K105=\"\",\"\",'[1]EXT RIN(M)'!$K105)","v":"n.d."},"n.d.",{"$f":"IF('[1]EXT RIN(M)'!$L105=\"\",\"\",'[1]EXT RIN(M)'!$L105)","v":"n.d."},"n.d.",{"$f":"IF('[1]MONE(M)CARD'!EG105=\"\",\"\",'[1]MONE(M)CARD'!EG105)","v":"n.d."},{"$f":"IF('[1]MONE(M)CARD'!EK105=\"\",\"\",'[1]MONE(M)CARD'!EK105)","v":"n.d."},{"$f":"IF('[1]MONE(M)CARD'!EP105=\"\",\"\",'[1]MONE(M)CARD'!EP105)","v":"n.d."},{"$f":"IF('[1]MONE(M)CARD'!ES105=\"\",\"\",'[1]MONE(M)CARD'!ES105)","v":"n.d."},{"$f":"IF('[1]MONE(M)CARD'!EV105=\"\",\"\",'[1]MONE(M)CARD'!EV105)","v":"n.d."},{"$f":"IF('[1]MONE(M)CARD'!EZ105=\"\",\"\",'[1]MONE(M)CARD'!EZ105)","v":"n.d."},{"$f":"IF('[1]MONE(M)CAPARD'!FC105=\"\",\"\",'[1]MONE(M)CAPARD'!FC105)","v":"n.d."},{"$f":"IF('[1]MONE(M)CAPARD'!FG105=\"\",\"\",'[1]MONE(M)CAPARD'!FG105)","v":"n.d."},{"$f":"IF('[1]MONE(M)CAPARD'!FL105=\"\",\"\",'[1]MONE(M)CAPARD'!FL105)","v":"n.d."},{"$f":"IF('[1]MONE(M)CAPARD'!FO105=\"\",\"\",'[1]MONE(M)CAPARD'!FO105)","v":"n.d."},{"$f":"IF('[1]MONE(M)CAPARD'!FR105=\"\",\"\",'[1]MONE(M)CAPARD'!FR105)","v":"n.d."},{"$f":"IF('[1]MONE(M)CAPARD'!FV105=\"\",\"\",'[1]MONE(M)CAPARD'!FV105)","v":"n.d."},{"$f":"IF('[1]MONE(M)CARD'!FV105=\"\",\"\",'[1]MONE(M)CARD'!FV105)","v":""},{"$f":"IF('[1]MONE(M)CARD'!GD105=\"\",\"\",'[1]MONE(M)CARD'!GD105)","v":"n.d."},{"$f":"IF('[1]MONE(M)CARD'!GE105=\"\",\"\",'[1]MONE(M)CARD'!GE105)","v":"n.d."},"n.d.","n.d.","n.d.","n.d.","n.d.","n.d.","n.d.","n.d.",null,"n.d.","n.d.","n.d.","n.d.","n.d.",{"$f":"IF('[1]MONE(M)CAPARD'!GS105=\"\",\"\",'[1]MONE(M)CAPARD'!GS105)","v":"n.d."},{"$f":"IF('[1]MONE(M)CARD'!HA105=\"\",\"\",'[1]MONE(M)CAPARD'!HA105)","v":"n.d."},{"$f":"IF('[1]MONE(M)CAPARD'!HB105=\"\",\"\",'[1]MONE(M)CAPARD'!HB105)","v":"n.d."},"n.d.","n.d.","n.d.","n.d.","n.d.","n.d.","n.d.","n.d.","n.d.","n.d.","n.d.","n.d.","n.d.","n.d.",{"$f":"IF('[1]MONE(M)CAPARD'!AS105=\"\",\"\",'[1]MONE(M)CAPARD'!AS105)","v":"n.d."},{"$f":"IF('[1]MONE(M)CAPARD'!AT105=\"\",\"\",'[1]MONE(M)CAPARD'!AT105)","v":"n.a."},{"$f":"IF('[1]MONE(M)CAPARD'!AU105=\"\",\"\",'[1]MONE(M)CAPARD'!AU105)","v":"n.d."},{"$f":"IF('[1]MONE(M)CAPARD'!AV105=\"\",\"\",'[1]MONE(M)CAPARD'!AV105)","v":"n.d."},{"$f":"IF('[1]MONE(M)CAPARD'!AW105=\"\",\"\",'[1]MONE(M)CAPARD'!AW105)","v":"n.a."},{"$f":"IF('[1]MONE(M)CAPARD'!AX105=\"\",\"\",'[1]MONE(M)CAPARD'!AX105)","v":"n.d."},{"$f":"IF('[1]MONE(M)CAPARD'!AY105=\"\",\"\",'[1]MONE(M)CAPARD'!AY105)","v":"n.a."},{"$f":"IF('[1]FISCAL(M)'!$K105=\"\",\"\",'[1]FISCAL(M)'!$K105)","v":"n.d."},{"$f":"IF('[1]FISCAL(M)'!$L105=\"\",\"\",'[1]FISCAL(M)'!$L105)","v":"n.d."},{"$f":"IF('[1]FISCAL(M)'!$AY105=\"\",\"\",'[1]FISCAL(M)'!$AY105)","v":"n.d."},{"$f":"IF('[1]FISCAL(M)'!$BI105=\"\",\"\",'[1]FISCAL(M)'!$BI105)","v":"n.d."},{"$f":"IF('[1]FISCAL(M)'!$BS105=\"\",\"\",'[1]FISCAL(M)'!$BS105)","v":"n.d."},{"$f":"IF('[1]FISCAL(M)'!$AZ105=\"\",\"\",'[1]FISCAL(M)'!$AZ105)","v":"n.d."},{"$f":"IF('[1]FISCAL(M)'!$BJ105=\"\",\"\",'[1]FISCAL(M)'!$BJ105)","v":"n.d."},{"$f":"IF('[1]FISCAL(M)'!$BT105=\"\",\"\",'[1]FISCAL(M)'!$BT105)","v":"n.d."},{"$f":"IF('[2]MONE(M)'!$AO105=\"\",\"\",'[2]MONE(M)'!$AO105)","v":"n.d."},{"$f":"IF('[3]MONE(M)'!$AO105=\"\",\"\",'[3]MONE(M)'!$AO105)","v":"n.d."},{"$f":"IF('[4]MONE(M)'!$AO105=\"\",\"\",'[4]MONE(M)'!$AO105)","v":"n.d."},{"$f":"IF('[5]MONE(M)'!$AO105=\"\",\"\",'[5]MONE(M)'!$AO105)","v":"n.d."},{"$f":"IF('[6]MONE(M)'!$AO105=\"\",\"\",'[6]MONE(M)'!$AO105)","v":"n.d."},{"$f":"IF('[7]MONE(M)'!$AO105=\"\",\"\",'[7]MONE(M)'!$AO105)","v":"n.d."},{"$f":"IF('[8]MONE(M)'!$AO105=\"\",\"\",'[8]MONE(M)'!$AO105)","v":"n.d."},"n.d.","n.d.","n.d.","n.d.","n.d.","n.d.","n.d.",{"$f":"IF('[1]FISCAL(M)'!$K105=\"\",\"\",'[1]FISCAL(M)'!$K105)","v":"n.d."},"n.d.","n.d.",{"$f":"IF('[1]FISCAL(M)'!$L105=\"\",\"\",'[1]FISCAL(M)'!$L105)","v":"n.d."},"n.d.","n.d.","n.d.","n.d.","n.d.","n.d.","n.d.","n.d.","n.d.","n.d.","n.d.","n.d.","n.d.","n.d.","n.d.","n.d.","n.d.","n.d."]
[1998,"enero","1998-enero",{"$f":"IF('[1]REAL IPC(M)'!$AL106=\"\",\"\",+'[1]REAL IPC(M)'!$AL106)","v":7.427489203039439},{"$f":"IF('[1]REAL IPC(M)'!$BE106=\"\",\"\",+'[1]REAL IPC(M)'!$BE106)","v":8.8416448814898843},{"$f":"IF('[1]REAL IPC(M)'!$AM106=\"\",\"\",+'[1]REAL IPC(M)'!$AM106)","v":6.7675848221964596},{"$f":"IF('[1]REAL IPC(M)'!$BI106=\"\",\"\",+'[1]REAL IPC(M)'!$BI106)","v":8.1777110529384736},{"$f":"IF('[1]REAL IMAE(M)'!BJ106=\"\",\"\",'[1]REAL IMAE(M)'!BJ106)","v":"n.d."},{"$f":"IF('[1]REAL IMAE(M)'!BK106=\"\",\"\",'[1]REAL IMAE(M)'!BK106)","v":"n.d."},{"$f":"IF('[1]REAL IMAE(M)'!BN106=\"\",\"\",'[1]REAL IMAE(M)'!BN106)","v":"n.d."},{"$f":"IF('[1]REAL IMAE(M)'!BO106=\"\",\"\",'[1]REAL IMAE(M)'!BO106)","v":"n.d."},{"$f":"IF('[1]EXT RIN(M)'!$K106=\"\",\"\",'[1]EXT RIN(M)'!$K106)","v":"n.d."},"",{"$f":"IF('[1]EXT RIN(M)'!$L106=\"\",\"\",'[1]EXT RIN(M)'!$L106)","v":"n.d."},"",{"$f":"IF('[1]MONE(M)CARD'!EG106=\"\",\"\",'[1]MONE(M)CARD'!EG106)","v":"n.d."},{"$f":"IF('[1]MONE(M)CARD'!EK106=\"\",\"\",'[1]MONE(M)CARD'!EK106)","v":"n.d."},{"$f":"IF('[1]MONE(M)CARD'!EP106=\"\",\"\",'[1]MONE(M)CARD'!EP106)","v":"n.d."},{"$f":"IF('[1]MONE(M)CARD'!ES106=\"\",\"\",'[1]MONE(M)CARD'!ES106)","v":"n.d."},{"$f":"IF('[1]MONE(M)CARD'!EV106=\"\",\"\",'[1]MONE(M)CARD'!EV106)","v":"n.d."},{"$f":"IF('[1]MONE(M)CARD'!EZ106=\"\",\"\",'[1]MONE(M)CARD'!EZ106)","v":"n.d."},{"$f":"IF('[1]MONE(M)CAPARD'!FC106=\"\",\"\",'[1]MONE(M)CAPARD'!FC106)","v":"n.d."},{"$f":"IF('[1]MONE(M)CAPARD'!FG106=\"\",\"\",'[1]MONE(M)CAPARD'!FG106)","v":"n.d."},{"$f":"IF('[1]MONE(M)CAPARD'!FL106=\"\",\"\",'[1]MONE(M)CAPARD'!FL106)","v":"n.d."},{"$f":"IF('[1]MONE(M)CAPARD'!FO106=\"\",\"\",'[1]MONE(M)CAPARD'!FO106)","v":"n.d."},{"$f":"IF('[1]MONE(M)CAPARD'!FR106=\"\",\"\",'[1]MONE(M)CAPARD'!FR106)","v":"n.d."},{"$f":"IF('[1]MONE(M)CAPARD'!FV106=\"\",\"\",'[1]MONE(M)CAPARD'!FV106)","v":"n.d."},{"$f":"IF('[1]MONE(M)CARD'!FV106=\"\",\"\",'[1]MONE(M)CARD'!FV106)","v":""},{"$f":"IF('[1]MONE(M)CARD'!GD106=\"\",\"\",'[1]MONE(M)CARD'!GD106)","v":"n.d."},{"$f":"IF('[1]MONE(M)CARD'!GE106=\"\",\"\",'[1]MONE(M)CARD'!GE106)","v":"n.d."},"n.d.","n.d.","n.d.","n.d.","n.d.","n.d.","n.d.","n.d.",null,"n.d.","n.d.","n.d.","n.d.","n.d.",{"$f":"IF('[1]MONE(M)CAPARD'!GS106=\"\",\"\",'[1]MONE(M)CAPARD'!GS106)","v":"n.d."},{"$f":"IF('[1]MONE(M)CARD'!HA106=\"\",\"\",'[1]MONE(M)CAPARD'!HA106)","v":"n.d."},{"$f":"IF('[1]MONE(M)CAPARD'!HB106=\"\",\"\",'[1]MONE(M)CAPARD'!HB106)","v":"n.d."},"n.d.","n.d.","n.d.","n.d.","n.d.","n.d.","n.d.","n.d.","n.d.","n.d.","n.d.","n.d.","n.d.","n.d.",{"$f":"IF('[1]MONE(M)CAPARD'!AS106=\"\",\"\",'[1]MONE(M)CAPARD'!AS106)","v":"n.d."},{"$f":"IF('[1]MONE(M)CAPARD'!AT106=\"\",\"\",'[1]MONE(M)CAPARD'!AT106)","v":"n.a."},{"$f":"IF('[1]MONE(M)CAPARD'!AU106=\"\",\"\",'[1]MONE(M)CAPARD'!AU106)","v":"n.d."},{"$f":"IF('[1]MONE(M)CAPARD'!AV106=\"\",\"\",'[1]MONE(M)CAPARD'!AV106)","v":"n.d."},{"$f":"IF('[1]MONE(M)CAPARD'!AW106=\"\",\"\",'[1]MONE(M)CAPARD'!AW106)","v":"n.a."},{"$f":"IF('[1]MONE(M)CAPARD'!AX106=\"\",\"\",'[1]MONE(M)CAPARD'!AX106)","v":"n.d."},{"$f":"IF('[1]MONE(M)CAPARD'!AY106=\"\",\"\",'[1]MONE(M)CAPARD'!AY106)","v":"n.a."},{"$f":"IF('[1]FISCAL(M)'!$K106=\"\",\"\",'[1]FISCAL(M)'!$K106)","v":"n.d."},{"$f":"IF('[1]FISCAL(M)'!$L106=\"\",\"\",'[1]FISCAL(M)'!$L106)","v":"n.d."},{"$f":"IF('[1]FISCAL(M)'!$AY106=\"\",\"\",'[1]FISCAL(M)'!$AY106)","v":"n.d."},{"$f":"IF('[1]FISCAL(M)'!$BI106=\"\",\"\",'[1]FISCAL(M)'!$BI106)","v":"n.d."},{"$f":"IF('[1]FISCAL(M)'!$BS106=\"\",\"\",'[1]FISCAL(M)'!$BS106)","v":"n.d."},{"$f":"IF('[1]FISCAL(M)'!$AZ106=\"\",\"\",'[1]FISCAL(M)'!$AZ106)","v":"n.d."},{"$f":"IF('[1]FISCAL(M)'!$BJ106=\"\",\"\",'[1]FISCAL(M)'!$BJ106)","v":"n.d."},{"$f":"IF('[1]FISCAL(M)'!$BT106=\"\",\"\",'[1]FISCAL(M)'!$BT106)","v":"n.d."},{"$f":"IF('[2]MONE(M)'!$AO106=\"\",\"\",'[2]MONE(M)'!$AO106)","v":"n.d."},{"$f":"IF('[3]MONE(M)'!$AO106=\"\",\"\",'[3]MONE(M)'!$AO106)","v":"n.d."},{"$f":"IF('[4]MONE(M)'!$AO106=\"\",\"\",'[4]MONE(M)'!$AO106)","v":"n.d."},{"$f":"IF('[5]MONE(M)'!$AO106=\"\",\"\",'[5]MONE(M)'!$AO106)","v":"n.d."},{"$f":"IF('[6]MONE(M)'!$AO106=\"\",\"\",'[6]MONE(M)'!$AO106)","v":"n.d."},{"$f":"IF('[7]MONE(M)'!$AO106=\"\",\"\",'[7]MONE(M)'!$AO106)","v":"n.d."},{"$f":"IF('[8]MONE(M)'!$AO106=\"\",\"\",'[8]MONE(M)'!$AO106)","v":"n.d."},"n.d.","n.d.","n.d.","n.d.","n.d.","n.d.","n.d.",{"$f":"IF('[1]FISCAL(M)'!$K106=\"\",\"\",'[1]FISCAL(M)'!$K106)","v":"n.d."},"n.d.","n.d.",{"$f":"IF('[1]FISCAL(M)'!$L106=\"\",\"\",'[1]FISCAL(M)'!$L106)","v":"n.d."},"n.d.","n.d.","n.d.","n.d.","n.d.","n.d.","n.d.","n.d.","n.d.","n.d.","n.d.","n.d.","n.d.","n.d.","n.d.","n.d.","n.d.","n.d."]
[1998,"febrero","1998-febrero",{"$f":"IF('[1]REAL IPC(M)'!$AL107=\"\",\"\",+'[1]REAL IPC(M)'!$AL107)","v":6.9952638979187798},{"$f":"IF('[1]REAL IPC(M)'!$BE107=\"\",\"\",+'[1]REAL IPC(M)'!$BE107)","v":8.712660902275049},{"$f":"IF('[1]REAL IPC(M)'!$AM107=\"\",\"\",+'[1]REAL IPC(M)'!$AM107)","v":6.3538701994757085},{"$f":"IF('[1]REAL IPC(M)'!$BI107=\"\",\"\",+'[1]REAL IPC(M)'!$BI107)","v":8.0617559591655841},{"$f":"IF('[1]REAL IMAE(M)'!BJ107=\"\",\"\",'[1]REAL IMAE(M)'!BJ107)","v":"n.d."},{"$f":"IF('[1]REAL IMAE(M)'!BK107=\"\",\"\",'[1]REAL IMAE(M)'!BK107)","v":"n.d."},{"$f":"IF('[1]REAL IMAE(M)'!BN107=\"\",\"\",'[1]REAL IMAE(M)'!BN107)","v":"n.d."},{"$f":"IF('[1]REAL IMAE(M)'!BO107=\"\",\"\",'[1]REAL IMAE(M)'!BO107)","v":"n.d."},{"$f":"IF('[1]EXT RIN(M)'!$K107=\"\",\"\",'[1]EXT RIN(M)'!$K107)","v":"n.d."},"",{"$f":"IF('[1]EXT RIN(M)'!$L107=\"\",\"\",'[1]EXT RIN(M)'!$L107)","v":"n.d."},"",{"$f":"IF('[1]MONE(M)CARD'!EG107=\"\",\"\",'[1]MONE(M)CARD'!EG107)","v":"n.d."},{"$f":"IF('[1]MONE(M)CARD'!EK107=\"\",\"\",'[1]MONE(M)CARD'!EK107)","v":"n.d."},{"$f":"IF('[1]MONE(M)CARD'!EP107=\"\",\"\",'[1]MONE(M)CARD'!EP107)","v":"n.d."},{"$f":"IF('[1]MONE(M)CARD'!ES107=\"\",\"\",'[1]MONE(M)CARD'!ES107)","v":"n.d."},{"$f":"IF('[1]MONE(M)CARD'!EV107=\"\",\"\",'[1]MONE(M)CARD'!EV107)","v":"n.d."},{"$f":"IF('[1]MONE(M)CARD'!EZ107=\"\",\"\",'[1]MONE(M)CARD'!EZ107)","v":"n.d."},{"$f":"IF('[1]MONE(M)CAPARD'!FC107=\"\",\"\",'[1]MONE(M)CAPARD'!FC107)","v":"n.d."},{"$f":"IF('[1]MONE(M)CAPARD'!FG107=\"\",\"\",'[1]MONE(M)CAPARD'!FG107)","v":"n.d."},{"$f":"IF('[1]MONE(M)CAPARD'!FL107=\"\",\"\",'[1]MONE(M)CAPARD'!FL107)","v":"n.d."},{"$f":"IF('[1]MONE(M)CAPARD'!FO107=\"\",\"\",'[1]MONE(M)CAPARD'!FO107)","v":"n.d."},{"$f":"IF('[1]MONE(M)CAPARD'!FR107=\"\",\"\",'[1]MONE(M)CAPARD'!FR107)","v":"n.d."},{"$f":"IF('[1]MONE(M)CAPARD'!FV107=\"\",\"\",'[1]MONE(M)CAPARD'!FV107)","v":"n.d."},{"$f":"IF('[1]MONE(M)CARD'!FV107=\"\",\"\",'[1]MONE(M)CARD'!FV107)","v":""},{"$f":"IF('[1]MONE(M)CARD'!GD107=\"\",\"\",'[1]MONE(M)CARD'!GD107)","v":"n.d."},{"$f":"IF('[1]MONE(M)CARD'!GE107=\"\",\"\",'[1]MONE(M)CARD'!GE107)","v":"n.d."},"n.d.","n.d.","n.d.","n.d.","n.d.","n.d.","n.d.","n.d.",null,"n.d.","n.d.","n.d.","n.d.","n.d.",{"$f":"IF('[1]MONE(M)CAPARD'!GS107=\"\",\"\",'[1]MONE(M)CAPARD'!GS107)","v":"n.d."},{"$f":"IF('[1]MONE(M)CARD'!HA107=\"\",\"\",'[1]MONE(M)CAPARD'!HA107)","v":"n.d."},{"$f":"IF('[1]MONE(M)CAPARD'!HB107=\"\",\"\",'[1]MONE(M)CAPARD'!HB107)","v":"n.d."},"n.d.","n.d.","n.d.","n.d.","n.d.","n.d.","n.d.","n.d.","n.d.","n.d.","n.d.","n.d.","n.d.","n.d.",{"$f":"IF('[1]MONE(M)CAPARD'!AS107=\"\",\"\",'[1]MONE(M)CAPARD'!AS107)","v":"n.d."},{"$f":"IF('[1]MONE(M)CAPARD'!AT107=\"\",\"\",'[1]MONE(M)CAPARD'!AT107)","v":"n.a."},{"$f":"IF('[1]MONE(M)CAPARD'!AU107=\"\",\"\",'[1]MONE(M)CAPARD'!AU107)","v":"n.d."},{"$f":"IF('[1]MONE(M)CAPARD'!AV107=\"\",\"\",'[1]MONE(M)CAPARD'!AV107)","v":"n.d."},{"$f":"IF('[1]MONE(M)CAPARD'!AW107=\"\",\"\",'[1]MONE(M)CAPARD'!AW107)","v":"n.a."},{"$f":"IF('[1]MONE(M)CAPARD'!AX107=\"\",\"\",'[1]MONE(M)CAPARD'!AX107)","v":"n.d."},{"$f":"IF('[1]MONE(M)CAPARD'!AY107=\"\",\"\",'[1]MONE(M)CAPARD'!AY107)","v":"n.a."},{"$f":"IF('[1]FISCAL(M)'!$K107=\"\",\"\",'[1]FISCAL(M)'!$K107)","v":"n.d."},{"$f":"IF('[1]FISCAL(M)'!$L107=\"\",\"\",'[1]FISCAL(M)'!$L107)","v":"n.d."},{"$f":"IF('[1]FISCAL(M)'!$AY107=\"\",\"\",'[1]FISCAL(M)'!$AY107)","v":"n.d."},{"$f":"IF('[1]FISCAL(M)'!$BI107=\"\",\"\",'[1]FISCAL(M)'!$BI107)","v":"n.d."},{"$f":"IF('[1]FISCAL(M)'!$BS107=\"\",\"\",'[1]FISCAL(M)'!$BS107)","v":"n.d."},{"$f":"IF('[1]FISCAL(M)'!$AZ107=\"\",\"\",'[1]FISCAL(M)'!$AZ107)","v":"n.d."},{"$f":"IF('[1]FISCAL(M)'!$BJ107=\"\",\"\",'[1]FISCAL(M)'!$BJ107)","v":"n.d."},{"$f":"IF('[1]FISCAL(M)'!$BT107=\"\",\"\",'[1]FISCAL(M)'!$BT107)","v":"n.d."},{"$f":"IF('[2]MONE(M)'!$AO107=\"\",\"\",'[2]MONE(M)'!$AO107)","v":"n.d."},{"$f":"IF('[3]MONE(M)'!$AO107=\"\",\"\",'[3]MONE(M)'!$AO107)","v":"n.d."},{"$f":"IF('[4]MONE(M)'!$AO107=\"\",\"\",'[4]MONE(M)'!$AO107)","v":"n.d."},{"$f":"IF('[5]MONE(M)'!$AO107=\"\",\"\",'[5]MONE(M)'!$AO107)","v":"n.d."},{"$f":"IF('[6]MONE(M)'!$AO107=\"\",\"\",'[6]MONE(M)'!$AO107)","v":"n.d."},{"$f":"IF('[7]MONE(M)'!$AO107=\"\",\"\",'[7]MONE(M)'!$AO107)","v":"n.d."},{"$f":"IF('[8]MONE(M)'!$AO107=\"\",\"\",'[8]MONE(M)'!$AO107)","v":"n.d."},"n.d.","n.d.","n.d.","n.d.","n.d.","n.d.","n.d.",{"$f":"IF('[1]FISCAL(M)'!$K107=\"\",\"\",'[1]FISCAL(M)'!$K107)","v":"n.d."},"n.d.","n.d.",{"$f":"IF('[1]FISCAL(M)'!$L107=\"\",\"\",'[1]FISCAL(M)'!$L107)","v":"n.d."},"n.d.","n.d.","n.d.","n.d.","n.d.","n.d.","n.d.","n.d.","n.d.","n.d.","n.d.","n.d.","n.d.","n.d.","n.d.","n.d.","n.d.","n.d."]
[1998,"marzo","1998-marzo",{"$f":"IF('[1]REAL IPC(M)'!$AL108=\"\",\"\",+'[1]REAL IPC(M)'!$AL108)","v":7.3331672790917235},{"$f":"IF('[1]REAL IPC(M)'!$BE108=\"\",\"\",+'[1]REAL IPC(M)'!$BE108)","v":8.5894776723122632},{"$f":"IF('[1]REAL IPC(M)'!$AM108=\"\",\"\",+'[1]REAL IPC(M)'!$AM108)","v":6.6879689058282565},{"$f":"IF('[1]REAL IPC(M)'!$BI108=\"\",\"\",+'[1]REAL IPC(M)'!$BI108)","v":7.9514113588228907},{"$f":"IF('[1]REAL IMAE(M)'!BJ108=\"\",\"\",'[1]REAL IMAE(M)'!BJ108)","v":"n.d."},{"$f":"IF('[1]REAL IMAE(M)'!BK108=\"\",\"\",'[1]REAL IMAE(M)'!BK108)","v":"n.d."},{"$f":"IF('[1]REAL IMAE(M)'!BN108=\"\",\"\",'[1]REAL IMAE(M)'!BN108)","v":"n.d."},{"$f":"IF('[1]REAL IMAE(M)'!BO108=\"\",\"\",'[1]REAL IMAE(M)'!BO108)","v":"n.d."},{"$f":"IF('[1]EXT RIN(M)'!$K108=\"\",\"\",'[1]EXT RIN(M)'!$K108)","v":"n.d."},"",{"$f":"IF('[1]EXT RIN(M)'!$L108=\"\",\"\",'[1]EXT RIN(M)'!$L108)","v":"n.d."},"",{"$f":"IF('[1]MONE(M)CARD'!EG108=\"\",\"\",'[1]MONE(M)CARD'!EG108)","v":"n.d."},{"$f":"IF('[1]MONE(M)CARD'!EK108=\"\",\"\",'[1]MONE(M)CARD'!EK108)","v":"n.d."},{"$f":"IF('[1]MONE(M)CARD'!EP108=\"\",\"\",'[1]MONE(M)CARD'!EP108)","v":"n.d."},{"$f":"IF('[1]MONE(M)CARD'!ES108=\"\",\"\",'[1]MONE(M)CARD'!ES108)","v":"n.d."},{"$f":"IF('[1]MONE(M)CARD'!EV108=\"\",\"\",'[1]MONE(M)CARD'!EV108)","v":"n.d."},{"$f":"IF('[1]MONE(M)CARD'!EZ108=\"\",\"\",'[1]MONE(M)CARD'!EZ108)","v":"n.d."},{"$f":"IF('[1]MONE(M)CAPARD'!FC108=\"\",\"\",'[1]MONE(M)CAPARD'!FC108)","v":"n.d."},{"$f":"IF('[1]MONE(M)CAPARD'!FG108=\"\",\"\",'[1]MONE(M)CAPARD'!FG108)","v":"n.d."},{"$f":"IF('[1]MONE(M)CAPARD'!FL108=\"\",\"\",'[1]MONE(M)CAPARD'!FL108)","v":"n.d."},{"$f":"IF('[1]MONE(M)CAPARD'!FO108=\"\",\"\",'[1]MONE(M)CAPARD'!FO108)","v":"n.d."},{"$f":"IF('[1]MONE(M)CAPARD'!FR108=\"\",\"\",'[1]MONE(M)CAPARD'!FR108)","v":"n.d."},{"$f":"IF('[1]MONE(M)CAPARD'!FV108=\"\",\"\",'[1]MONE(M)CAPARD'!FV108)","v":"n.d."},{"$f":"IF('[1]MONE(M)CARD'!FV108=\"\",\"\",'[1]MONE(M)CARD'!FV108)","v":""},{"$f":"IF('[1]MONE(M)CARD'!GD108=\"\",\"\",'[1]MONE(M)CARD'!GD108)","v":"n.d."},{"$f":"IF('[1]MONE(M)CARD'!GE108=\"\",\"\",'[1]MONE(M)CARD'!GE108)","v":"n.d."},"n.d.","n.d.","n.d.","n.d.","n.d.","n.d.","n.d.","n.d.",null,"n.d.","n.d.","n.d.","n.d.","n.d.",{"$f":"IF('[1]MONE(M)CAPARD'!GS108=\"\",\"\",'[1]MONE(M)CAPARD'!GS108)","v":"n.d."},{"$f":"IF('[1]MONE(M)CARD'!HA108=\"\",\"\",'[1]MONE(M)CAPARD'!HA108)","v":"n.d."},{"$f":"IF('[1]MONE(M)CAPARD'!HB108=\"\",\"\",'[1]MONE(M)CAPARD'!HB108)","v":"n.d."},"n.d.","n.d.","n.d.","n.d.","n.d.","n.d.","n.d.","n.d.","n.d.","n.d.","n.d.","n.d.","n.d.","n.d.",{"$f":"IF('[1]MONE(M)CAPARD'!AS108=\"\",\"\",'[1]MONE(M)CAPARD'!AS108)","v":"n.d."},{"$f":"IF('[1]MONE(M)CAPARD'!AT108=\"\",\"\",'[1]MONE(M)CAPARD'!AT108)","v":"n.a."},{"$f":"IF('[1]MONE(M)CAPARD'!AU108=\"\",\"\",'[1]MONE(M)CAPARD'!AU108)","v":"n.d."},{"$f":"IF('[1]MONE(M)CAPARD'!AV108=\"\",\"\",'[1]MONE(M)CAPARD'!AV108)","v":"n.d."},{"$f":"IF('[1]MONE(M)CAPARD'!AW108=\"\",\"\",'[1]MONE(M)CAPARD'!AW108)","v":"n.a."},{"$f":"IF('[1]MONE(M)CAPARD'!AX108=\"\",\"\",'[1]MONE(M)CAPARD'!AX108)","v":"n.d."},{"$f":"IF('[1]MONE(M)CAPARD'!AY108=\"\",\"\",'[1]MONE(M)CAPARD'!AY108)","v":"n.a."},{"$f":"IF('[1]FISCAL(M)'!$K108=\"\",\"\",'[1]FISCAL(M)'!$K108)","v":"n.d."},{"$f":"IF('[1]FISCAL(M)'!$L108=\"\",\"\",'[1]FISCAL(M)'!$L108)","v":"n.d."},{"$f":"IF('[1]FISCAL(M)'!$AY108=\"\",\"\",'[1]FISCAL(M)'!$AY108)","v":"n.d."},{"$f":"IF('[1]FISCAL(M)'!$BI108=\"\",\"\",'[1]FISCAL(M)'!$BI108)","v":"n.d."},{"$f":"IF('[1]FISCAL(M)'!$BS108=\"\",\"\",'[1]FISCAL(M)'!$BS108)","v":"n.d."},{"$f":"IF('[1]FISCAL(M)'!$AZ108=\"\",\"\",'[1]FISCAL(M)'!$AZ108)","v":"n.d."},{"$f":"IF('[1]FISCAL(M)'!$BJ108=\"\",\"\",'[1]FISCAL(M)'!$BJ108)","v":"n.d."},{"$f":"IF('[1]FISCAL(M)'!$BT108=\"\",\"\",'[1]FISCAL(M)'!$BT108)","v":"n.d."},{"$f":"IF('[2]MONE(M)'!$AO108=\"\",\"\",'[2]MONE(M)'!$AO108)","v":"n.d."},{"$f":"IF('[3]MONE(M)'!$AO108=\"\",\"\",'[3]MONE(M)'!$AO108)","v":"n.d."},{"$f":"IF('[4]MONE(M)'!$AO108=\"\",\"\",'[4]MONE(M)'!$AO108)","v":"n.d."},{"$f":"IF('[5]MONE(M)'!$AO108=\"\",\"\",'[5]MONE(M)'!$AO108)","v":"n.d."},{"$f":"IF('[6]MONE(M)'!$AO108=\"\",\"\",'[6]MONE(M)'!$AO108)","v":"n.d."},{"$f":"IF('[7]MONE(M)'!$AO108=\"\",\"\",'[7]MONE(M)'!$AO108)","v":"n.d."},{"$f":"IF('[8]MONE(M)'!$AO108=\"\",\"\",'[8]MONE(M)'!$AO108)","v":"n.d."},"n.d.","n.d.","n.d.","n.d.","n.d.","n.d.","n.d.",{"$f":"IF('[1]FISCAL(M)'!$K108=\"\",\"\",'[1]FISCAL(M)'!$K108)","v":"n.d."},"n.d.","n.d.",{"$f":"IF('[1]FISCAL(M)'!$L108=\"\",\"\",'[1]FISCAL(M)'!$L108)","v":"n.d."},"n.d.","n.d.","n.d.","n.d.","n.d.","n.d.","n.d.","n.d.","n.d.","n.d.","n.d.","n.d.","n.d.","n.d.","n.d.","n.d.","n.d.","n.d."]
[1998,"abril","1998-abril",{"$f":"IF('[1]REAL IPC(M)'!$AL109=\"\",\"\",+'[1]REAL IPC(M)'!$AL109)","v":7.6321105469459249},{"$f":"IF('[1]REAL IPC(M)'!$BE109=\"\",\"\",+'[1]REAL IPC(M)'!$BE109)","v":8.4722856429116469},{"$f":"IF('[1]REAL IPC(M)'!$AM109=\"\",\"\",+'[1]REAL IPC(M)'!$AM109)","v":6.9805098400181009},{"$f":"IF('[1]REAL IPC(M)'!$BI109=\"\",\"\",+'[1]REAL IPC(M)'!$BI109)","v":7.8468806450282313},{"$f":"IF('[1]REAL IMAE(M)'!BJ109=\"\",\"\",'[1]REAL IMAE(M)'!BJ109)","v":"n.d."},{"$f":"IF('[1]REAL IMAE(M)'!BK109=\"\",\"\",'[1]REAL IMAE(M)'!BK109)","v":"n.d."},{"$f":"IF('[1]REAL IMAE(M)'!BN109=\"\",\"\",'[1]REAL IMAE(M)'!BN109)","v":"n.d."},{"$f":"IF('[1]REAL IMAE(M)'!BO109=\"\",\"\",'[1]REAL IMAE(M)'!BO109)","v":"n.d."},{"$f":"IF('[1]EXT RIN(M)'!$K109=\"\",\"\",'[1]EXT RIN(M)'!$K109)","v":"n.d."},"",{"$f":"IF('[1]EXT RIN(M)'!$L109=\"\",\"\",'[1]EXT RIN(M)'!$L109)","v":"n.d."},"",{"$f":"IF('[1]MONE(M)CARD'!EG109=\"\",\"\",'[1]MONE(M)CARD'!EG109)","v":"n.d."},{"$f":"IF('[1]MONE(M)CARD'!EK109=\"\",\"\",'[1]MONE(M)CARD'!EK109)","v":"n.d."},{"$f":"IF('[1]MONE(M)CARD'!EP109=\"\",\"\",'[1]MONE(M)CARD'!EP109)","v":"n.d."},{"$f":"IF('[1]MONE(M)CARD'!ES109=\"\",\"\",'[1]MONE(M)CARD'!ES109)","v":"n.d."},{"$f":"IF('[1]MONE(M)CARD'!EV109=\"\",\"\",'[1]MONE(M)CARD'!EV109)","v":"n.d."},{"$f":"IF('[1]MONE(M)CARD'!EZ109=\"\",\"\",'[1]MONE(M)CARD'!EZ109)","v":"n.d."},{"$f":"IF('[1]MONE(M)CAPARD'!FC109=\"\",\"\",'[1]MONE(M)CAPARD'!FC109)","v":"n.d."},{"$f":"IF('[1]MONE(M)CAPARD'!FG109=\"\",\"\",'[1]MONE(M)CAPARD'!FG109)","v":"n.d."},{"$f":"IF('[1]MONE(M)CAPARD'!FL109=\"\",\"\",'[1]MONE(M)CAPARD'!FL109)","v":"n.d."},{"$f":"IF('[1]MONE(M)CAPARD'!FO109=\"\",\"\",'[1]MONE(M)CAPARD'!FO109)","v":"n.d."},{"$f":"IF('[1]MONE(M)CAPARD'!FR109=\"\",\"\",'[1]MONE(M)CAPARD'!FR109)","v":"n.d."},{"$f":"IF('[1]MONE(M)CAPARD'!FV109=\"\",\"\",'[1]MONE(M)CAPARD'!FV109)","v":"n.d."},{"$f":"IF('[1]MONE(M)CARD'!FV109=\"\",\"\",'[1]MONE(M)CARD'!FV109)","v":""},{"$f":"IF('[1]MONE(M)CARD'!GD109=\"\",\"\",'[1]MONE(M)CARD'!GD109)","v":"n.d."},{"$f":"IF('[1]MONE(M)CARD'!GE109=\"\",\"\",'[1]MONE(M)CARD'!GE109)","v":"n.d."},"n.d.","n.d.","n.d.","n.d.","n.d.","n.d.","n.d.","n.d.",null,"n.d.","n.d.","n.d.","n.d.","n.d.",{"$f":"IF('[1]MONE(M)CAPARD'!GS109=\"\",\"\",'[1]MONE(M)CAPARD'!GS109)","v":"n.d."},{"$f":"IF('[1]MONE(M)CARD'!HA109=\"\",\"\",'[1]MONE(M)CAPARD'!HA109)","v":"n.d."},{"$f":"IF('[1]MONE(M)CAPARD'!HB109=\"\",\"\",'[1]MONE(M)CAPARD'!HB109)","v":"n.d."},"n.d.","n.d.","n.d.","n.d.","n.d.","n.d.","n.d.","n.d.","n.d.","n.d.","n.d.","n.d.","n.d.","n.d.",{"$f":"IF('[1]MONE(M)CAPARD'!AS109=\"\",\"\",'[1]MONE(M)CAPARD'!AS109)","v":"n.d."},{"$f":"IF('[1]MONE(M)CAPARD'!AT109=\"\",\"\",'[1]MONE(M)CAPARD'!AT109)","v":"n.a."},{"$f":"IF('[1]MONE(M)CAPARD'!AU109=\"\",\"\",'[1]MONE(M)CAPARD'!AU109)","v":"n.d."},{"$f":"IF('[1]MONE(M)CAPARD'!AV109=\"\",\"\",'[1]MONE(M)CAPARD'!AV109)","v":"n.d."},{"$f":"IF('[1]MONE(M)CAPARD'!AW109=\"\",\"\",'[1]MONE(M)CAPARD'!AW109)","v":"n.a."},{"$f":"IF('[1]MONE(M)CAPARD'!AX109=\"\",\"\",'[1]MONE(M)CAPARD'!AX109)","v":"n.d."},{"$f":"IF('[1]MONE(M)CAPARD'!AY109=\"\",\"\",'[1]MONE(M)CAPARD'!AY109)","v":"n.a."},{"$f":"IF('[1]FISCAL(M)'!$K109=\"\",\"\",'[1]FISCAL(M)'!$K109)","v":"n.d."},{"$f":"IF('[1]FISCAL(M)'!$L109=\"\",\"\",'[1]FISCAL(M)'!$L109)","v":"n.d."},{"$f":"IF('[1]FISCAL(M)'!$AY109=\"\",\"\",'[1]FISCAL(M)'!$AY109)","v":"n.d."},{"$f":"IF('[1]FISCAL(M)'!$BI109=\"\",\"\",'[1]FISCAL(M)'!$BI109)","v":"n.d."},{"$f":"IF('[1]FISCAL(M)'!$BS109=\"\",\"\",'[1]FISCAL(M)'!$BS109)","v":"n.d."},{"$f":"IF('[1]FISCAL(M)'!$AZ109=\"\",\"\",'[1]FISCAL(M)'!$AZ109)","v":"n.d."},{"$f":"IF('[1]FISCAL(M)'!$BJ109=\"\",\"\",'[1]FISCAL(M)'!$BJ109)","v":"n.d."},{"$f":"IF('[1]FISCAL(M)'!$BT109=\"\",\"\",'[1]FISCAL(M)'!$BT109)","v":"n.d."},{"$f":"IF('[2]MONE(M)'!$AO109=\"\",\"\",'[2]MONE(M)'!$AO109)","v":"n.d."},{"$f":"IF('[3]MONE(M)'!$AO109=\"\",\"\",'[3]MONE(M)'!$AO109)","v":"n.d."},{"$f":"IF('[4]MONE(M)'!$AO109=\"\",\"\",'[4]MONE(M)'!$AO109)","v":"n.d."},{"$f":"IF('[5]MONE(M)'!$AO109=\"\",\"\",'[5]MONE(M)'!$AO109)","v":"n.d."},{"$f":"IF('[6]MONE(M)'!$AO109=\"\",\"\",'[6]MONE(M)'!$AO109)","v":"n.d."},{"$f":"IF('[7]MONE(M)'!$AO109=\"\",\"\",'[7]MONE(M)'!$AO109)","v":"n.d."},{"$f":"IF('[8]MONE(M)'!$AO109=\"\",\"\",'[8]MONE(M)'!$AO109)","v":"n.d."},"n.d.","n.d.","n.d.","n.d.","n.d.","n.d.","n.d.",{"$f":"IF('[1]FISCAL(M)'!$K109=\"\",\"\",'[1]FISCAL(M)'!$K109)","v":"n.d."},"n.d.","n.d.",{"$f":"IF('[1]FISCAL(M)'!$L109=\"\",\"\",'[1]FISCAL(M)'!$L109)","v":"n.d."},"n.d.","n.d.","n.d.","n.d.","n.d.","n.d.","n.d.","n.d.","n.d.","n.d.","n.d.","n.d.","n.d.","n.d.","n.d.","n.d.","n.d.","n.d."]
[1998,"mayo ","1998-mayo ",{"$f":"IF('[1]REAL IPC(M)'!$AL110=\"\",\"\",+'[1]REAL IPC(M)'!$AL110)","v":8.0295973029373755},{"$f":"IF('[1]REAL IPC(M)'!$BE110=\"\",\"\",+'[1]REAL IPC(M)'!$BE110)","v":8.3611939009708749},{"$f":"IF('[1]REAL IPC(M)'!$AM110=\"\",\"\",+'[1]REAL IPC(M)'!$AM110)","v":7.3378801792874926},{"$f":"IF('[1]REAL IPC(M)'!$BI110=\"\",\"\",+'[1]REAL IPC(M)'!$BI110)","v":7.7482760860400957},{"$f":"IF('[1]REAL IMAE(M)'!BJ110=\"\",\"\",'[1]REAL IMAE(M)'!BJ110)","v":"n.d."},{"$f":"IF('[1]REAL IMAE(M)'!BK110=\"\",\"\",'[1]REAL IMAE(M)'!BK110)","v":"n.d."},{"$f":"IF('[1]REAL IMAE(M)'!BN110=\"\",\"\",'[1]REAL IMAE(M)'!BN110)","v":"n.d."},{"$f":"IF('[1]REAL IMAE(M)'!BO110=\"\",\"\",'[1]REAL IMAE(M)'!BO110)","v":"n.d."},{"$f":"IF('[1]EXT RIN(M)'!$K110=\"\",\"\",'[1]EXT RIN(M)'!$K110)","v":"n.d."},"",{"$f":"IF('[1]EXT RIN(M)'!$L110=\"\",\"\",'[1]EXT RIN(M)'!$L110)","v":"n.d."},"",{"$f":"IF('[1]MONE(M)CARD'!EG110=\"\",\"\",'[1]MONE(M)CARD'!EG110)","v":"n.d."},{"$f":"IF('[1]MONE(M)CARD'!EK110=\"\",\"\",'[1]MONE(M)CARD'!EK110)","v":"n.d."},{"$f":"IF('[1]MONE(M)CARD'!EP110=\"\",\"\",'[1]MONE(M)CARD'!EP110)","v":"n.d."},{"$f":"IF('[1]MONE(M)CARD'!ES110=\"\",\"\",'[1]MONE(M)CARD'!ES110)","v":"n.d."},{"$f":"IF('[1]MONE(M)CARD'!EV110=\"\",\"\",'[1]MONE(M)CARD'!EV110)","v":"n.d."},{"$f":"IF('[1]MONE(M)CARD'!EZ110=\"\",\"\",'[1]MONE(M)CARD'!EZ110)","v":"n.d."},{"$f":"IF('[1]MONE(M)CAPARD'!FC110=\"\",\"\",'[1]MONE(M)CAPARD'!FC110)","v":"n.d."},{"$f":"IF('[1]MONE(M)CAPARD'!FG110=\"\",\"\",'[1]MONE(M)CAPARD'!FG110)","v":"n.d."},{"$f":"IF('[1]MONE(M)CAPARD'!FL110=\"\",\"\",'[1]MONE(M)CAPARD'!FL110)","v":"n.d."},{"$f":"IF('[1]MONE(M)CAPARD'!FO110=\"\",\"\",'[1]MONE(M)CAPARD'!FO110)","v":"n.d."},{"$f":"IF('[1]MONE(M)CAPARD'!FR110=\"\",\"\",'[1]MONE(M)CAPARD'!FR110)","v":"n.d."},{"$f":"IF('[1]MONE(M)CAPARD'!FV110=\"\",\"\",'[1]MONE(M)CAPARD'!FV110)","v":"n.d."},{"$f":"IF('[1]MONE(M)CARD'!FV110=\"\",\"\",'[1]MONE(M)CARD'!FV110)","v":""},{"$f":"IF('[1]MONE(M)CARD'!GD110=\"\",\"\",'[1]MONE(M)CARD'!GD110)","v":"n.d."},{"$f":"IF('[1]MONE(M)CARD'!GE110=\"\",\"\",'[1]MONE(M)CARD'!GE110)","v":"n.d."},"n.d.","n.d.","n.d.","n.d.","n.d.","n.d.","n.d.","n.d.",null,"n.d.","n.d.","n.d.","n.d.","n.d.",{"$f":"IF('[1]MONE(M)CAPARD'!GS110=\"\",\"\",'[1]MONE(M)CAPARD'!GS110)","v":"n.d."},{"$f":"IF('[1]MONE(M)CARD'!HA110=\"\",\"\",'[1]MONE(M)CAPARD'!HA110)","v":"n.d."},{"$f":"IF('[1]MONE(M)CAPARD'!HB110=\"\",\"\",'[1]MONE(M)CAPARD'!HB110)","v":"n.d."},"n.d.","n.d.","n.d.","n.d.","n.d.","n.d.","n.d.","n.d.","n.d.","n.d.","n.d.","n.d.","n.d.","n.d.",{"$f":"IF('[1]MONE(M)CAPARD'!AS110=\"\",\"\",'[1]MONE(M)CAPARD'!AS110)","v":"n.d."},{"$f":"IF('[1]MONE(M)CAPARD'!AT110=\"\",\"\",'[1]MONE(M)CAPARD'!AT110)","v":"n.a."},{"$f":"IF('[1]MONE(M)CAPARD'!AU110=\"\",\"\",'[1]MONE(M)CAPARD'!AU110)","v":"n.d."},{"$f":"IF('[1]MONE(M)CAPARD'!AV110=\"\",\"\",'[1]MONE(M)CAPARD'!AV110)","v":"n.d."},{"$f":"IF('[1]MONE(M)CAPARD'!AW110=\"\",\"\",'[1]MONE(M)CAPARD'!AW110)","v":"n.a."},{"$f":"IF('[1]MONE(M)CAPARD'!AX110=\"\",\"\",'[1]MONE(M)CAPARD'!AX110)","v":"n.d."},{"$f":"IF('[1]MONE(M)CAPARD'!AY110=\"\",\"\",'[1]MONE(M)CAPARD'!AY110)","v":"n.a."},{"$f":"IF('[1]FISCAL(M)'!$K110=\"\",\"\",'[1]FISCAL(M)'!$K110)","v":"n.d."},{"$f":"IF('[1]FISCAL(M)'!$L110=\"\",\"\",'[1]FISCAL(M)'!$L110)","v":"n.d."},{"$f":"IF('[1]FISCAL(M)'!$AY110=\"\",\"\",'[1]FISCAL(M)'!$AY110)","v":"n.d."},{"$f":"IF('[1]FISCAL(M)'!$BI110=\"\",\"\",'[1]FISCAL(M)'!$BI110)","v":"n.d."},{"$f":"IF('[1]FISCAL(M)'!$BS110=\"\",\"\",'[1]FISCAL(M)'!$BS110)","v":"n.d."},{"$f":"IF('[1]FISCAL(M)'!$AZ110=\"\",\"\",'[1]FISCAL(M)'!$AZ110)","v":"n.d."},{"$f":"IF('[1]FISCAL(M)'!$BJ110=\"\",\"\",'[1]FISCAL(M)'!$BJ110)","v":"n.d."},{"$f":"IF('[1]FISCAL(M)'!$BT110=\"\",\"\",'[1]FISCAL(M)'!$BT110)","v":"n.d."},{"$f":"IF('[2]MONE(M)'!$AO110=\"\",\"\",'[2]MONE(M)'!$AO110)","v":"n.d."},{"$f":"IF('[3]MONE(M)'!$AO110=\"\",\"\",'[3]MONE(M)'!$AO110)","v":"n.d."},{"$f":"IF('[4]MONE(M)'!$AO110=\"\",\"\",'[4]MONE(M)'!$AO110)","v":"n.d."},{"$f":"IF('[5]MONE(M)'!$AO110=\"\",\"\",'[5]MONE(M)'!$AO110)","v":"n.d."},{"$f":"IF('[6]MONE(M)'!$AO110=\"\",\"\",'[6]MONE(M)'!$AO110)","v":"n.d."},{"$f":"IF('[7]MONE(M)'!$AO110=\"\",\"\",'[7]MONE(M)'!$AO110)","v":"n.d."},{"$f":"IF('[8]MONE(M)'!$AO110=\"\",\"\",'[8]MONE(M)'!$AO110)","v":"n.d."},"n.d.","n.d.","n.d.","n.d.","n.d.","n.d.","n.d.",{"$f":"IF('[1]FISCAL(M)'!$K110=\"\",\"\",'[1]FISCAL(M)'!$K110)","v":"n.d."},"n.d.","n.d.",{"$f":"IF('[1]FISCAL(M)'!$L110=\"\",\"\",'[1]FISCAL(M)'!$L110)","v":"n.d."},"n.d.","n.d.","n.d.","n.d.","n.d.","n.d.","n.d.","n.d.","n.d.","n.d.","n.d.","n.d.","n.d.","n.d.","n.d.","n.d.","n.d.","n.d."]
[1998,"junio ","1998-junio ",{"$f":"IF('[1]REAL IPC(M)'!$AL111=\"\",\"\",+'[1]REAL IPC(M)'!$AL111)","v":8.1225874555696862},{"$f":"IF('[1]REAL IPC(M)'!$BE111=\"\",\"\",+'[1]REAL IPC(M)'!$BE111)","v":8.2562623688786871},{"$f":"IF('[1]REAL IPC(M)'!$AM111=\"\",\"\",+'[1]REAL IPC(M)'!$AM111)","v":7.4403556317661046},{"$f":"IF('[1]REAL IPC(M)'!$BI111=\"\",\"\",+'[1]REAL IPC(M)'!$BI111)","v":7.6556509197528655},{"$f":"IF('[1]REAL IMAE(M)'!BJ111=\"\",\"\",'[1]REAL IMAE(M)'!BJ111)","v":"n.d."},{"$f":"IF('[1]REAL IMAE(M)'!BK111=\"\",\"\",'[1]REAL IMAE(M)'!BK111)","v":"n.d."},{"$f":"IF('[1]REAL IMAE(M)'!BN111=\"\",\"\",'[1]REAL IMAE(M)'!BN111)","v":"n.d."},{"$f":"IF('[1]REAL IMAE(M)'!BO111=\"\",\"\",'[1]REAL IMAE(M)'!BO111)","v":"n.d."},{"$f":"IF('[1]EXT RIN(M)'!$K111=\"\",\"\",'[1]EXT RIN(M)'!$K111)","v":"n.d."},"",{"$f":"IF('[1]EXT RIN(M)'!$L111=\"\",\"\",'[1]EXT RIN(M)'!$L111)","v":"n.d."},"",{"$f":"IF('[1]MONE(M)CARD'!EG111=\"\",\"\",'[1]MONE(M)CARD'!EG111)","v":"n.d."},{"$f":"IF('[1]MONE(M)CARD'!EK111=\"\",\"\",'[1]MONE(M)CARD'!EK111)","v":"n.d."},{"$f":"IF('[1]MONE(M)CARD'!EP111=\"\",\"\",'[1]MONE(M)CARD'!EP111)","v":"n.d."},{"$f":"IF('[1]MONE(M)CARD'!ES111=\"\",\"\",'[1]MONE(M)CARD'!ES111)","v":"n.d."},{"$f":"IF('[1]MONE(M)CARD'!EV111=\"\",\"\",'[1]MONE(M)CARD'!EV111)","v":"n.d."},{"$f":"IF('[1]MONE(M)CARD'!EZ111=\"\",\"\",'[1]MONE(M)CARD'!EZ111)","v":"n.d."},{"$f":"IF('[1]MONE(M)CAPARD'!FC111=\"\",\"\",'[1]MONE(M)CAPARD'!FC111)","v":"n.d."},{"$f":"IF('[1]MONE(M)CAPARD'!FG111=\"\",\"\",'[1]MONE(M)CAPARD'!FG111)","v":"n.d."},{"$f":"IF('[1]MONE(M)CAPARD'!FL111=\"\",\"\",'[1]MONE(M)CAPARD'!FL111)","v":"n.d."},{"$f":"IF('[1]MONE(M)CAPARD'!FO111=\"\",\"\",'[1]MONE(M)CAPARD'!FO111)","v":"n.d."},{"$f":"IF('[1]MONE(M)CAPARD'!FR111=\"\",\"\",'[1]MONE(M)CAPARD'!FR111)","v":"n.d."},{"$f":"IF('[1]MONE(M)CAPARD'!FV111=\"\",\"\",'[1]MONE(M)CAPARD'!FV111)","v":"n.d."},{"$f":"IF('[1]MONE(M)CARD'!FV111=\"\",\"\",'[1]MONE(M)CARD'!FV111)","v":""},{"$f":"IF('[1]MONE(M)CARD'!GD111=\"\",\"\",'[1]MONE(M)CARD'!GD111)","v":"n.d."},{"$f":"IF('[1]MONE(M)CARD'!GE111=\"\",\"\",'[1]MONE(M)CARD'!GE111)","v":"n.d."},"n.d.","n.d.","n.d.","n.d.","n.d.","n.d.","n.d.","n.d.",null,"n.d.","n.d.","n.d.","n.d.","n.d.",{"$f":"IF('[1]MONE(M)CAPARD'!GS111=\"\",\"\",'[1]MONE(M)CAPARD'!GS111)","v":"n.d."},{"$f":"IF('[1]MONE(M)CARD'!HA111=\"\",\"\",'[1]MONE(M)CAPARD'!HA111)","v":"n.d."},{"$f":"IF('[1]MONE(M)CAPARD'!HB111=\"\",\"\",'[1]MONE(M)CAPARD'!HB111)","v":"n.d."},"n.d.","n.d.","n.d.","n.d.","n.d.","n.d.","n.d.","n.d.","n.d.","n.d.","n.d.","n.d.","n.d.","n.d.",{"$f":"IF('[1]MONE(M)CAPARD'!AS111=\"\",\"\",'[1]MONE(M)CAPARD'!AS111)","v":"n.d."},{"$f":"IF('[1]MONE(M)CAPARD'!AT111=\"\",\"\",'[1]MONE(M)CAPARD'!AT111)","v":"n.a."},{"$f":"IF('[1]MONE(M)CAPARD'!AU111=\"\",\"\",'[1]MONE(M)CAPARD'!AU111)","v":"n.d."},{"$f":"IF('[1]MONE(M)CAPARD'!AV111=\"\",\"\",'[1]MONE(M)CAPARD'!AV111)","v":"n.d."},{"$f":"IF('[1]MONE(M)CAPARD'!AW111=\"\",\"\",'[1]MONE(M)CAPARD'!AW111)","v":"n.a."},{"$f":"IF('[1]MONE(M)CAPARD'!AX111=\"\",\"\",'[1]MONE(M)CAPARD'!AX111)","v":"n.d."},{"$f":"IF('[1]MONE(M)CAPARD'!AY111=\"\",\"\",'[1]MONE(M)CAPARD'!AY111)","v":"n.a."},{"$f":"IF('[1]FISCAL(M)'!$K111=\"\",\"\",'[1]FISCAL(M)'!$K111)","v":"n.d."},{"$f":"IF('[1]FISCAL(M)'!$L111=\"\",\"\",'[1]FISCAL(M)'!$L111)","v":"n.d."},{"$f":"IF('[1]FISCAL(M)'!$AY111=\"\",\"\",'[1]FISCAL(M)'!$AY111)","v":"n.d."},{"$f":"IF('[1]FISCAL(M)'!$BI111=\"\",\"\",'[1]FISCAL(M)'!$BI111)","v":"n.d."},{"$f":"IF('[1]FISCAL(M)'!$BS111=\"\",\"\",'[1]FISCAL(M)'!$BS111)","v":"n.d."},{"$f":"IF('[1]FISCAL(M)'!$AZ111=\"\",\"\",'[1]FISCAL(M)'!$AZ111)","v":"n.d."},{"$f":"IF('[1]FISCAL(M)'!$BJ111=\"\",\"\",'[1]FISCAL(M)'!$BJ111)","v":"n.d."},{"$f":"IF('[1]FISCAL(M)'!$BT111=\"\",\"\",'[1]FISCAL(M)'!$BT111)","v":"n.d."},{"$f":"IF('[2]MONE(M)'!$AO111=\"\",\"\",'[2]MONE(M)'!$AO111)","v":"n.d."},{"$f":"IF('[3]MONE(M)'!$AO111=\"\",\"\",'[3]MONE(M)'!$AO111)","v":"n.d."},{"$f":"IF('[4]MONE(M)'!$AO111=\"\",\"\",'[4]MONE(M)'!$AO111)","v":"n.d."},{"$f":"IF('[5]MONE(M)'!$AO111=\"\",\"\",'[5]MONE(M)'!$AO111)","v":"n.d."},{"$f":"IF('[6]MONE(M)'!$AO111=\"\",\"\",'[6]MONE(M)'!$AO111)","v":"n.d."},{"$f":"IF('[7]MONE(M)'!$AO111=\"\",\"\",'[7]MONE(M)'!$AO111)","v":"n.d."},{"$f":"IF('[8]MONE(M)'!$AO111=\"\",\"\",'[8]MONE(M)'!$AO111)","v":"n.d."},"n.d.","n.d.","n.d.","n.d.","n.d.","n.d.","n.d.",{"$f":"IF('[1]FISCAL(M)'!$K111=\"\",\"\",'[1]FISCAL(M)'!$K111)","v":"n.d."},"n.d.","n.d.",{"$f":"IF('[1]FISCAL(M)'!$L111=\"\",\"\",'[1]FISCAL(M)'!$L111)","v":"n.d."},"n.d.","n.d.","n.d.","n.d.","n.d.","n.d.","n.d.","n.d.","n.d.","n.d.","n.d.","n.d.","n.d.","n.d.","n.d.","n.d.","n.d.","n.d."]
[1998,"julio","1998-julio",{"$f":"IF('[1]REAL IPC(M)'!$AL112=\"\",\"\",+'[1]REAL IPC(M)'!$AL112)","v":7.7945729123801488},{"$f":"IF('[1]REAL IPC(M)'!$BE112=\"\",\"\",+'[1]REAL IPC(M)'!$BE112)","v":8.1575311483910617},{"$f":"IF('[1]REAL IPC(M)'!$AM112=\"\",\"\",+'[1]REAL IPC(M)'!$AM112)","v":7.1358635373195423},{"$f":"IF('[1]REAL IPC(M)'!$BI112=\"\",\"\",+'[1]REAL IPC(M)'!$BI112)","v":7.5690278152418466},{"$f":"IF('[1]REAL IMAE(M)'!BJ112=\"\",\"\",'[1]REAL IMAE(M)'!BJ112)","v":"n.d."},{"$f":"IF('[1]REAL IMAE(M)'!BK112=\"\",\"\",'[1]REAL IMAE(M)'!BK112)","v":"n.d."},{"$f":"IF('[1]REAL IMAE(M)'!BN112=\"\",\"\",'[1]REAL IMAE(M)'!BN112)","v":"n.d."},{"$f":"IF('[1]REAL IMAE(M)'!BO112=\"\",\"\",'[1]REAL IMAE(M)'!BO112)","v":"n.d."},{"$f":"IF('[1]EXT RIN(M)'!$K112=\"\",\"\",'[1]EXT RIN(M)'!$K112)","v":"n.d."},"",{"$f":"IF('[1]EXT RIN(M)'!$L112=\"\",\"\",'[1]EXT RIN(M)'!$L112)","v":"n.d."},"",{"$f":"IF('[1]MONE(M)CARD'!EG112=\"\",\"\",'[1]MONE(M)CARD'!EG112)","v":"n.d."},{"$f":"IF('[1]MONE(M)CARD'!EK112=\"\",\"\",'[1]MONE(M)CARD'!EK112)","v":"n.d."},{"$f":"IF('[1]MONE(M)CARD'!EP112=\"\",\"\",'[1]MONE(M)CARD'!EP112)","v":"n.d."},{"$f":"IF('[1]MONE(M)CARD'!ES112=\"\",\"\",'[1]MONE(M)CARD'!ES112)","v":"n.d."},{"$f":"IF('[1]MONE(M)CARD'!EV112=\"\",\"\",'[1]MONE(M)CARD'!EV112)","v":"n.d."},{"$f":"IF('[1]MONE(M)CARD'!EZ112=\"\",\"\",'[1]MONE(M)CARD'!EZ112)","v":"n.d."},{"$f":"IF('[1]MONE(M)CAPARD'!FC112=\"\",\"\",'[1]MONE(M)CAPARD'!FC112)","v":"n.d."},{"$f":"IF('[1]MONE(M)CAPARD'!FG112=\"\",\"\",'[1]MONE(M)CAPARD'!FG112)","v":"n.d."},{"$f":"IF('[1]MONE(M)CAPARD'!FL112=\"\",\"\",'[1]MONE(M)CAPARD'!FL112)","v":"n.d."},{"$f":"IF('[1]MONE(M)CAPARD'!FO112=\"\",\"\",'[1]MONE(M)CAPARD'!FO112)","v":"n.d."},{"$f":"IF('[1]MONE(M)CAPARD'!FR112=\"\",\"\",'[1]MONE(M)CAPARD'!FR112)","v":"n.d."},{"$f":"IF('[1]MONE(M)CAPARD'!FV112=\"\",\"\",'[1]MONE(M)CAPARD'!FV112)","v":"n.d."},{"$f":"IF('[1]MONE(M)CARD'!FV112=\"\",\"\",'[1]MONE(M)CARD'!FV112)","v":""},{"$f":"IF('[1]MONE(M)CARD'!GD112=\"\",\"\",'[1]MONE(M)CARD'!GD112)","v":"n.d."},{"$f":"IF('[1]MONE(M)CARD'!GE112=\"\",\"\",'[1]MONE(M)CARD'!GE112)","v":"n.d."},"n.d.","n.d.","n.d.","n.d.","n.d.","n.d.","n.d.","n.d.",null,"n.d.","n.d.","n.d.","n.d.","n.d.",{"$f":"IF('[1]MONE(M)CAPARD'!GS112=\"\",\"\",'[1]MONE(M)CAPARD'!GS112)","v":"n.d."},{"$f":"IF('[1]MONE(M)CARD'!HA112=\"\",\"\",'[1]MONE(M)CAPARD'!HA112)","v":"n.d."},{"$f":"IF('[1]MONE(M)CAPARD'!HB112=\"\",\"\",'[1]MONE(M)CAPARD'!HB112)","v":"n.d."},"n.d.","n.d.","n.d.","n.d.","n.d.","n.d.","n.d.","n.d.","n.d.","n.d.","n.d.","n.d.","n.d.","n.d.",{"$f":"IF('[1]MONE(M)CAPARD'!AS112=\"\",\"\",'[1]MONE(M)CAPARD'!AS112)","v":"n.d."},{"$f":"IF('[1]MONE(M)CAPARD'!AT112=\"\",\"\",'[1]MONE(M)CAPARD'!AT112)","v":"n.a."},{"$f":"IF('[1]MONE(M)CAPARD'!AU112=\"\",\"\",'[1]MONE(M)CAPARD'!AU112)","v":"n.d."},{"$f":"IF('[1]MONE(M)CAPARD'!AV112=\"\",\"\",'[1]MONE(M)CAPARD'!AV112)","v":"n.d."},{"$f":"IF('[1]MONE(M)CAPARD'!AW112=\"\",\"\",'[1]MONE(M)CAPARD'!AW112)","v":"n.a."},{"$f":"IF('[1]MONE(M)CAPARD'!AX112=\"\",\"\",'[1]MONE(M)CAPARD'!AX112)","v":"n.d."},{"$f":"IF('[1]MONE(M)CAPARD'!AY112=\"\",\"\",'[1]MONE(M)CAPARD'!AY112)","v":"n.a."},{"$f":"IF('[1]FISCAL(M)'!$K112=\"\",\"\",'[1]FISCAL(M)'!$K112)","v":"n.d."},{"$f":"IF('[1]FISCAL(M)'!$L112=\"\",\"\",'[1]FISCAL(M)'!$L112)","v":"n.d."},{"$f":"IF('[1]FISCAL(M)'!$AY112=\"\",\"\",'[1]FISCAL(M)'!$AY112)","v":"n.d."},{"$f":"IF('[1]FISCAL(M)'!$BI112=\"\",\"\",'[1]FISCAL(M)'!$BI112)","v":"n.d."},{"$f":"IF('[1]FISCAL(M)'!$BS112=\"\",\"\",'[1]FISCAL(M)'!$BS112)","v":"n.d."},{"$f":"IF('[1]FISCAL(M)'!$AZ112=\"\",\"\",'[1]FISCAL(M)'!$AZ112)","v":"n.d."},{"$f":"IF('[1]FISCAL(M)'!$BJ112=\"\",\"\",'[1]FISCAL(M)'!$BJ112)","v":"n.d."},{"$f":"IF('[1]FISCAL(M)'!$BT112=\"\",\"\",'[1]FISCAL(M)'!$BT112)","v":"n.d."},{"$f":"IF('[2]MONE(M)'!$AO112=\"\",\"\",'[2]MONE(M)'!$AO112)","v":"n.d."},{"$f":"IF('[3]MONE(M)'!$AO112=\"\",\"\",'[3]MONE(M)'!$AO112)","v":"n.d."},{"$f":"IF('[4]MONE(M)'!$AO112=\"\",\"\",'[4]MONE(M)'!$AO112)","v":"n.d."},{"$f":"IF('[5]MONE(M)'!$AO112=\"\",\"\",'[5]MONE(M)'!$AO112)","v":"n.d."},{"$f":"IF('[6]MONE(M)'!$AO112=\"\",\"\",'[6]MONE(M)'!$AO112)","v":"n.d."},{"$f":"IF('[7]MONE(M)'!$AO112=\"\",\"\",'[7]MONE(M)'!$AO112)","v":"n.d."},{"$f":"IF('[8]MONE(M)'!$AO112=\"\",\"\",'[8]MONE(M)'!$AO112)","v":"n.d."},"n.d.","n.d.","n.d.","n.d.","n.d.","n.d.","n.d.",{"$f":"IF('[1]FISCAL(M)'!$K112=\"\",\"\",'[1]FISCAL(M)'!$K112)","v":"n.d."},"n.d.","n.d.",{"$f":"IF('[1]FISCAL(M)'!$L112=\"\",\"\",'[1]FISCAL(M)'!$L112)","v":"n.d."},"n.d.","n.d.","n.d.","n.d.","n.d.","n.d.","n.d.","n.d.","n.d.","n.d.","n.d.","n.d.","n.d.","n.d.","n.d.","n.d.","n.d.","n.d."]
[1998,"agosto","1998-agosto",{"$f":"IF('[1]REAL IPC(M)'!$AL113=\"\",\"\",+'[1]REAL IPC(M)'!$AL113)","v":7.4239905567296205},{"$f":"IF('[1]REAL IPC(M)'!$BE113=\"\",\"\",+'[1]REAL IPC(M)'!$BE113)","v":8.0650324961115913},{"$f":"IF('[1]REAL IPC(M)'!$AM113=\"\",\"\",+'[1]REAL IPC(M)'!$AM113)","v":6.7982525827717355},{"$f":"IF('[1]REAL IPC(M)'!$BI113=\"\",\"\",+'[1]REAL IPC(M)'!$BI113)","v":7.488412816418033},{"$f":"IF('[1]REAL IMAE(M)'!BJ113=\"\",\"\",'[1]REAL IMAE(M)'!BJ113)","v":"n.d."},{"$f":"IF('[1]REAL IMAE(M)'!BK113=\"\",\"\",'[1]REAL IMAE(M)'!BK113)","v":"n.d."},{"$f":"IF('[1]REAL IMAE(M)'!BN113=\"\",\"\",'[1]REAL IMAE(M)'!BN113)","v":"n.d."},{"$f":"IF('[1]REAL IMAE(M)'!BO113=\"\",\"\",'[1]REAL IMAE(M)'!BO113)","v":"n.d."},{"$f":"IF('[1]EXT RIN(M)'!$K113=\"\",\"\",'[1]EXT RIN(M)'!$K113)","v":"n.d."},"",{"$f":"IF('[1]EXT RIN(M)'!$L113=\"\",\"\",'[1]EXT RIN(M)'!$L113)","v":"n.d."},"",{"$f":"IF('[1]MONE(M)CARD'!EG113=\"\",\"\",'[1]MONE(M)CARD'!EG113)","v":"n.d."},{"$f":"IF('[1]MONE(M)CARD'!EK113=\"\",\"\",'[1]MONE(M)CARD'!EK113)","v":"n.d."},{"$f":"IF('[1]MONE(M)CARD'!EP113=\"\",\"\",'[1]MONE(M)CARD'!EP113)","v":"n.d."},{"$f":"IF('[1]MONE(M)CARD'!ES113=\"\",\"\",'[1]MONE(M)CARD'!ES113)","v":"n.d."},{"$f":"IF('[1]MONE(M)CARD'!EV113=\"\",\"\",'[1]MONE(M)CARD'!EV113)","v":"n.d."},{"$f":"IF('[1]MONE(M)CARD'!EZ113=\"\",\"\",'[1]MONE(M)CARD'!EZ113)","v":"n.d."},{"$f":"IF('[1]MONE(M)CAPARD'!FC113=\"\",\"\",'[1]MONE(M)CAPARD'!FC113)","v":"n.d."},{"$f":"IF('[1]MONE(M)CAPARD'!FG113=\"\",\"\",'[1]MONE(M)CAPARD'!FG113)","v":"n.d."},{"$f":"IF('[1]MONE(M)CAPARD'!FL113=\"\",\"\",'[1]MONE(M)CAPARD'!FL113)","v":"n.d."},{"$f":"IF('[1]MONE(M)CAPARD'!FO113=\"\",\"\",'[1]MONE(M)CAPARD'!FO113)","v":"n.d."},{"$f":"IF('[1]MONE(M)CAPARD'!FR113=\"\",\"\",'[1]MONE(M)CAPARD'!FR113)","v":"n.d."},{"$f":"IF('[1]MONE(M)CAPARD'!FV113=\"\",\"\",'[1]MONE(M)CAPARD'!FV113)","v":"n.d."},{"$f":"IF('[1]MONE(M)CARD'!FV113=\"\",\"\",'[1]MONE(M)CARD'!FV113)","v":""},{"$f":"IF('[1]MONE(M)CARD'!GD113=\"\",\"\",'[1]MONE(M)CARD'!GD113)","v":"n.d."},{"$f":"IF('[1]MONE(M)CARD'!GE113=\"\",\"\",'[1]MONE(M)CARD'!GE113)","v":"n.d."},"n.d.","n.d.","n.d.","n.d.","n.d.","n.d.","n.d.","n.d.",null,"n.d.","n.d.","n.d.","n.d.","n.d.",{"$f":"IF('[1]MONE(M)CAPARD'!GS113=\"\",\"\",'[1]MONE(M)CAPARD'!GS113)","v":"n.d."},{"$f":"IF('[1]MONE(M)CARD'!HA113=\"\",\"\",'[1]MONE(M)CAPARD'!HA113)","v":"n.d."},{"$f":"IF('[1]MONE(M)CAPARD'!HB113=\"\",\"\",'[1]MONE(M)CAPARD'!HB113)","v":"n.d."},"n.d.","n.d.","n.d.","n.d.","n.d.","n.d.","n.d.","n.d.","n.d.","n.d.","n.d.","n.d.","n.d.","n.d.",{"$f":"IF('[1]MONE(M)CAPARD'!AS113=\"\",\"\",'[1]MONE(M)CAPARD'!AS113)","v":"n.d."},{"$f":"IF('[1]MONE(M)CAPARD'!AT113=\"\",\"\",'[1]MONE(M)CAPARD'!AT113)","v":"n.a."},{"$f":"IF('[1]MONE(M)CAPARD'!AU113=\"\",\"\",'[1]MONE(M)CAPARD'!AU113)","v":"n.d."},{"$f":"IF('[1]MONE(M)CAPARD'!AV113=\"\",\"\",'[1]MONE(M)CAPARD'!AV113)","v":"n.d."},{"$f":"IF('[1]MONE(M)CAPARD'!AW113=\"\",\"\",'[1]MONE(M)CAPARD'!AW113)","v":"n.a."},{"$f":"IF('[1]MONE(M)CAPARD'!AX113=\"\",\"\",'[1]MONE(M)CAPARD'!AX113)","v":"n.d."},{"$f":"IF('[1]MONE(M)CAPARD'!AY113=\"\",\"\",'[1]MONE(M)CAPARD'!AY113)","v":"n.a."},{"$f":"IF('[1]FISCAL(M)'!$K113=\"\",\"\",'[1]FISCAL(M)'!$K113)","v":"n.d."},{"$f":"IF('[1]FISCAL(M)'!$L113=\"\",\"\",'[1]FISCAL(M)'!$L113)","v":"n.d."},{"$f":"IF('[1]FISCAL(M)'!$AY113=\"\",\"\",'[1]FISCAL(M)'!$AY113)","v":"n.d."},{"$f":"IF('[1]FISCAL(M)'!$BI113=\"\",\"\",'[1]FISCAL(M)'!$BI113)","v":"n.d."},{"$f":"IF('[1]FISCAL(M)'!$BS113=\"\",\"\",'[1]FISCAL(M)'!$BS113)","v":"n.d."},{"$f":"IF('[1]FISCAL(M)'!$AZ113=\"\",\"\",'[1]FISCAL(M)'!$AZ113)","v":"n.d."},{"$f":"IF('[1]FISCAL(M)'!$BJ113=\"\",\"\",'[1]FISCAL(M)'!$BJ113)","v":"n.d."},{"$f":"IF('[1]FISCAL(M)'!$BT113=\"\",\"\",'[1]FISCAL(M)'!$BT113)","v":"n.d."},{"$f":"IF('[2]MONE(M)'!$AO113=\"\",\"\",'[2]MONE(M)'!$AO113)","v":"n.d."},{"$f":"IF('[3]MONE(M)'!$AO113=\"\",\"\",'[3]MONE(M)'!$AO113)","v":"n.d."},{"$f":"IF('[4]MONE(M)'!$AO113=\"\",\"\",'[4]MONE(M)'!$AO113)","v":"n.d."},{"$f":"IF('[5]MONE(M)'!$AO113=\"\",\"\",'[5]MONE(M)'!$AO113)","v":"n.d."},{"$f":"IF('[6]MONE(M)'!$AO113=\"\",\"\",'[6]MONE(M)'!$AO113)","v":"n.d."},{"$f":"IF('[7]MONE(M)'!$AO113=\"\",\"\",'[7]MONE(M)'!$AO113)","v":"n.d."},{"$f":"IF('[8]MONE(M)'!$AO113=\"\",\"\",'[8]MONE(M)'!$AO113)","v":"n.d."},"n.d.","n.d.","n.d.","n.d.","n.d.","n.d.","n.d.",{"$f":"IF('[1]FISCAL(M)'!$K113=\"\",\"\",'[1]FISCAL(M)'!$K113)","v":"n.d."},"n.d.","n.d.",{"$f":"IF('[1]FISCAL(M)'!$L113=\"\",\"\",'[1]FISCAL(M)'!$L113)","v":"n.d."},"n.d.","n.d.","n.d.","n.d.","n.d.","n.d.","n.d.","n.d.","n.d.","n.d.","n.d.","n.d.","n.d.","n.d.","n.d.","n.d.","n.d.","n.d."]
[1998,"septiembre","1998-septiembre",{"$f":"IF('[1]REAL IPC(M)'!$AL114=\"\",\"\",+'[1]REAL IPC(M)'!$AL114)","v":7.2007722729807266},{"$f":"IF('[1]REAL IPC(M)'!$BE114=\"\",\"\",+'[1]REAL IPC(M)'!$BE114)","v":7.9787804376380445},{"$f":"IF('[1]REAL IPC(M)'!$AM114=\"\",\"\",+'[1]REAL IPC(M)'!$AM114)","v":6.630003176032595},{"$f":"IF('[1]REAL IPC(M)'!$BI114=\"\",\"\",+'[1]REAL IPC(M)'!$BI114)","v":7.4137860163075331},{"$f":"IF('[1]REAL IMAE(M)'!BJ114=\"\",\"\",'[1]REAL IMAE(M)'!BJ114)","v":"n.d."},{"$f":"IF('[1]REAL IMAE(M)'!BK114=\"\",\"\",'[1]REAL IMAE(M)'!BK114)","v":"n.d."},{"$f":"IF('[1]REAL IMAE(M)'!BN114=\"\",\"\",'[1]REAL IMAE(M)'!BN114)","v":"n.d."},{"$f":"IF('[1]REAL IMAE(M)'!BO114=\"\",\"\",'[1]REAL IMAE(M)'!BO114)","v":"n.d."},{"$f":"IF('[1]EXT RIN(M)'!$K114=\"\",\"\",'[1]EXT RIN(M)'!$K114)","v":"n.d."},"",{"$f":"IF('[1]EXT RIN(M)'!$L114=\"\",\"\",'[1]EXT RIN(M)'!$L114)","v":"n.d."},"",{"$f":"IF('[1]MONE(M)CARD'!EG114=\"\",\"\",'[1]MONE(M)CARD'!EG114)","v":"n.d."},{"$f":"IF('[1]MONE(M)CARD'!EK114=\"\",\"\",'[1]MONE(M)CARD'!EK114)","v":"n.d."},{"$f":"IF('[1]MONE(M)CARD'!EP114=\"\",\"\",'[1]MONE(M)CARD'!EP114)","v":"n.d."},{"$f":"IF('[1]MONE(M)CARD'!ES114=\"\",\"\",'[1]MONE(M)CARD'!ES114)","v":"n.d."},{"$f":"IF('[1]MONE(M)CARD'!EV114=\"\",\"\",'[1]MONE(M)CARD'!EV114)","v":"n.d."},{"$f":"IF('[1]MONE(M)CARD'!EZ114=\"\",\"\",'[1]MONE(M)CARD'!EZ114)","v":"n.d."},{"$f":"IF('[1]MONE(M)CAPARD'!FC114=\"\",\"\",'[1]MONE(M)CAPARD'!FC114)","v":"n.d."},{"$f":"IF('[1]MONE(M)CAPARD'!FG114=\"\",\"\",'[1]MONE(M)CAPARD'!FG114)","v":"n.d."},{"$f":"IF('[1]MONE(M)CAPARD'!FL114=\"\",\"\",'[1]MONE(M)CAPARD'!FL114)","v":"n.d."},{"$f":"IF('[1]MONE(M)CAPARD'!FO114=\"\",\"\",'[1]MONE(M)CAPARD'!FO114)","v":"n.d."},{"$f":"IF('[1]MONE(M)CAPARD'!FR114=\"\",\"\",'[1]MONE(M)CAPARD'!FR114)","v":"n.d."},{"$f":"IF('[1]MONE(M)CAPARD'!FV114=\"\",\"\",'[1]MONE(M)CAPARD'!FV114)","v":"n.d."},{"$f":"IF('[1]MONE(M)CARD'!FV114=\"\",\"\",'[1]MONE(M)CARD'!FV114)","v":""},{"$f":"IF('[1]MONE(M)CARD'!GD114=\"\",\"\",'[1]MONE(M)CARD'!GD114)","v":"n.d."},{"$f":"IF('[1]MONE(M)CARD'!GE114=\"\",\"\",'[1]MONE(M)CARD'!GE114)","v":"n.d."},"n.d.","n.d.","n.d.","n.d.","n.d.","n.d.","n.d.","n.d.",null,"n.d.","n.d.","n.d.","n.d.","n.d.",{"$f":"IF('[1]MONE(M)CAPARD'!GS114=\"\",\"\",'[1]MONE(M)CAPARD'!GS114)","v":"n.d."},{"$f":"IF('[1]MONE(M)CARD'!HA114=\"\",\"\",'[1]MONE(M)CAPARD'!HA114)","v":"n.d."},{"$f":"IF('[1]MONE(M)CAPARD'!HB114=\"\",\"\",'[1]MONE(M)CAPARD'!HB114)","v":"n.d."},"n.d.","n.d.","n.d.","n.d.","n.d.","n.d.","n.d.","n.d.","n.d.","n.d.","n.d.","n.d.","n.d.","n.d.",{"$f":"IF('[1]MONE(M)CAPARD'!AS114=\"\",\"\",'[1]MONE(M)CAPARD'!AS114)","v":"n.d."},{"$f":"IF('[1]MONE(M)CAPARD'!AT114=\"\",\"\",'[1]MONE(M)CAPARD'!AT114)","v":"n.a."},{"$f":"IF('[1]MONE(M)CAPARD'!AU114=\"\",\"\",'[1]MONE(M)CAPARD'!AU114)","v":"n.d."},{"$f":"IF('[1]MONE(M)CAPARD'!AV114=\"\",\"\",'[1]MONE(M)CAPARD'!AV114)","v":"n.d."},{"$f":"IF('[1]MONE(M)CAPARD'!AW114=\"\",\"\",'[1]MONE(M)CAPARD'!AW114)","v":"n.a."},{"$f":"IF('[1]MONE(M)CAPARD'!AX114=\"\",\"\",'[1]MONE(M)CAPARD'!AX114)","v":"n.d."},{"$f":"IF('[1]MONE(M)CAPARD'!AY114=\"\",\"\",'[1]MONE(M)CAPARD'!AY114)","v":"n.a."},{"$f":"IF('[1]FISCAL(M)'!$K114=\"\",\"\",'[1]FISCAL(M)'!$K114)","v":"n.d."},{"$f":"IF('[1]FISCAL(M)'!$L114=\"\",\"\",'[1]FISCAL(M)'!$L114)","v":"n.d."},{"$f":"IF('[1]FISCAL(M)'!$AY114=\"\",\"\",'[1]FISCAL(M)'!$AY114)","v":"n.d."},{"$f":"IF('[1]FISCAL(M)'!$BI114=\"\",\"\",'[1]FISCAL(M)'!$BI114)","v":"n.d."},{"$f":"IF('[1]FISCAL(M)'!$BS114=\"\",\"\",'[1]FISCAL(M)'!$BS114)","v":"n.d."},{"$f":"IF('[1]FISCAL(M)'!$AZ114=\"\",\"\",'[1]FISCAL(M)'!$AZ114)","v":"n.d."},{"$f":"IF('[1]FISCAL(M)'!$BJ114=\"\",\"\",'[1]FISCAL(M)'!$BJ114)","v":"n.d."},{"$f":"IF('[1]FISCAL(M)'!$BT114=\"\",\"\",'[1]FISCAL(M)'!$BT114)","v":"n.d."},{"$f":"IF('[2]MONE(M)'!$AO114=\"\",\"\",'[2]MONE(M)'!$AO114)","v":"n.d."},{"$f":"IF('[3]MONE(M)'!$AO114=\"\",\"\",'[3]MONE(M)'!$AO114)","v":"n.d."},{"$f":"IF('[4]MONE(M)'!$AO114=\"\",\"\",'[4]MONE(M)'!$AO114)","v":"n.d."},{"$f":"IF('[5]MONE(M)'!$AO114=\"\",\"\",'[5]MONE(M)'!$AO114)","v":"n.d."},{"$f":"IF('[6]MONE(M)'!$AO114=\"\",\"\",'[6]MONE(M)'!$AO114)","v":"n.d."},{"$f":"IF('[7]MONE(M)'!$AO114=\"\",\"\",'[7]MONE(M)'!$AO114)","v":"n.d."},{"$f":"IF('[8]MONE(M)'!$AO114=\"\",\"\",'[8]MONE(M)'!$AO114)","v":"n.d."},"n.d.","n.d.","n.d.","n.d.","n.d.","n.d.","n.d.",{"$f":"IF('[1]FISCAL(M)'!$K114=\"\",\"\",'[1]FISCAL(M)'!$K114)","v":"n.d."},"n.d.","n.d.",{"$f":"IF('[1]FISCAL(M)'!$L114=\"\",\"\",'[1]FISCAL(M)'!$L114)","v":"n.d."},"n.d.","n.d.","n.d.","n.d.","n.d.","n.d.","n.d.","n.d.","n.d.","n.d.","n.d.","n.d.","n.d.","n.d.","n.d.","n.d.","n.d.","n.d."]
[1998,"octubre","1998-octubre",{"$f":"IF('[1]REAL IPC(M)'!$AL115=\"\",\"\",+'[1]REAL IPC(M)'!$AL115)","v":7.8597827060489456},{"$f":"IF('[1]REAL IPC(M)'!$BE115=\"\",\"\",+'[1]REAL IPC(M)'!$BE115)","v":7.8987504101979855},{"$f":"IF('[1]REAL IPC(M)'!$AM115=\"\",\"\",+'[1]REAL IPC(M)'!$AM115)","v":7.2893670503553887},{"$f":"IF('[1]REAL IPC(M)'!$BI115=\"\",\"\",+'[1]REAL IPC(M)'!$BI115)","v":7.3450822939724159},{"$f":"IF('[1]REAL IMAE(M)'!BJ115=\"\",\"\",'[1]REAL IMAE(M)'!BJ115)","v":"n.d."},{"$f":"IF('[1]REAL IMAE(M)'!BK115=\"\",\"\",'[1]REAL IMAE(M)'!BK115)","v":"n.d."},{"$f":"IF('[1]REAL IMAE(M)'!BN115=\"\",\"\",'[1]REAL IMAE(M)'!BN115)","v":"n.d."},{"$f":"IF('[1]REAL IMAE(M)'!BO115=\"\",\"\",'[1]REAL IMAE(M)'!BO115)","v":"n.d."},{"$f":"IF('[1]EXT RIN(M)'!$K115=\"\",\"\",'[1]EXT RIN(M)'!$K115)","v":"n.d."},"",{"$f":"IF('[1]EXT RIN(M)'!$L115=\"\",\"\",'[1]EXT RIN(M)'!$L115)","v":"n.d."},"",{"$f":"IF('[1]MONE(M)CARD'!EG115=\"\",\"\",'[1]MONE(M)CARD'!EG115)","v":"n.d."},{"$f":"IF('[1]MONE(M)CARD'!EK115=\"\",\"\",'[1]MONE(M)CARD'!EK115)","v":"n.d."},{"$f":"IF('[1]MONE(M)CARD'!EP115=\"\",\"\",'[1]MONE(M)CARD'!EP115)","v":"n.d."},{"$f":"IF('[1]MONE(M)CARD'!ES115=\"\",\"\",'[1]MONE(M)CARD'!ES115)","v":"n.d."},{"$f":"IF('[1]MONE(M)CARD'!EV115=\"\",\"\",'[1]MONE(M)CARD'!EV115)","v":"n.d."},{"$f":"IF('[1]MONE(M)CARD'!EZ115=\"\",\"\",'[1]MONE(M)CARD'!EZ115)","v":"n.d."},{"$f":"IF('[1]MONE(M)CAPARD'!FC115=\"\",\"\",'[1]MONE(M)CAPARD'!FC115)","v":"n.d."},{"$f":"IF('[1]MONE(M)CAPARD'!FG115=\"\",\"\",'[1]MONE(M)CAPARD'!FG115)","v":"n.d."},{"$f":"IF('[1]MONE(M)CAPARD'!FL115=\"\",\"\",'[1]MONE(M)CAPARD'!FL115)","v":"n.d."},{"$f":"IF('[1]MONE(M)CAPARD'!FO115=\"\",\"\",'[1]MONE(M)CAPARD'!FO115)","v":"n.d."},{"$f":"IF('[1]MONE(M)CAPARD'!FR115=\"\",\"\",'[1]MONE(M)CAPARD'!FR115)","v":"n.d."},{"$f":"IF('[1]MONE(M)CAPARD'!FV115=\"\",\"\",'[1]MONE(M)CAPARD'!FV115)","v":"n.d."},{"$f":"IF('[1]MONE(M)CARD'!FV115=\"\",\"\",'[1]MONE(M)CARD'!FV115)","v":""},{"$f":"IF('[1]MONE(M)CARD'!GD115=\"\",\"\",'[1]MONE(M)CARD'!GD115)","v":"n.d."},{"$f":"IF('[1]MONE(M)CARD'!GE115=\"\",\"\",'[1]MONE(M)CARD'!GE115)","v":"n.d."},"n.d.","n.d.","n.d.","n.d.","n.d.","n.d.","n.d.","n.d.",null,"n.d.","n.d.","n.d.","n.d.","n.d.",{"$f":"IF('[1]MONE(M)CAPARD'!GS115=\"\",\"\",'[1]MONE(M)CAPARD'!GS115)","v":"n.d."},{"$f":"IF('[1]MONE(M)CARD'!HA115=\"\",\"\",'[1]MONE(M)CAPARD'!HA115)","v":"n.d."},{"$f":"IF('[1]MONE(M)CAPARD'!HB115=\"\",\"\",'[1]MONE(M)CAPARD'!HB115)","v":"n.d."},"n.d.","n.d.","n.d.","n.d.","n.d.","n.d.","n.d.","n.d.","n.d.","n.d.","n.d.","n.d.","n.d.","n.d.",{"$f":"IF('[1]MONE(M)CAPARD'!AS115=\"\",\"\",'[1]MONE(M)CAPARD'!AS115)","v":"n.d."},{"$f":"IF('[1]MONE(M)CAPARD'!AT115=\"\",\"\",'[1]MONE(M)CAPARD'!AT115)","v":"n.a."},{"$f":"IF('[1]MONE(M)CAPARD'!AU115=\"\",\"\",'[1]MONE(M)CAPARD'!AU115)","v":"n.d."},{"$f":"IF('[1]MONE(M)CAPARD'!AV115=\"\",\"\",'[1]MONE(M)CAPARD'!AV115)","v":"n.d."},{"$f":"IF('[1]MONE(M)CAPARD'!AW115=\"\",\"\",'[1]MONE(M)CAPARD'!AW115)","v":"n.a."},{"$f":"IF('[1]MONE(M)CAPARD'!AX115=\"\",\"\",'[1]MONE(M)CAPARD'!AX115)","v":"n.d."},{"$f":"IF('[1]MONE(M)CAPARD'!AY115=\"\",\"\",'[1]MONE(M)CAPARD'!AY115)","v":"n.a."},{"$f":"IF('[1]FISCAL(M)'!$K115=\"\",\"\",'[1]FISCAL(M)'!$K115)","v":"n.d."},{"$f":"IF('[1]FISCAL(M)'!$L115=\"\",\"\",'[1]FISCAL(M)'!$L115)","v":"n.d."},{"$f":"IF('[1]FISCAL(M)'!$AY115=\"\",\"\",'[1]FISCAL(M)'!$AY115)","v":"n.d."},{"$f":"IF('[1]FISCAL(M)'!$BI115=\"\",\"\",'[1]FISCAL(M)'!$BI115)","v":"n.d."},{"$f":"IF('[1]FISCAL(M)'!$BS115=\"\",\"\",'[1]FISCAL(M)'!$BS115)","v":"n.d."},{"$f":"IF('[1]FISCAL(M)'!$AZ115=\"\",\"\",'[1]FISCAL(M)'!$AZ115)","v":"n.d."},{"$f":"IF('[1]FISCAL(M)'!$BJ115=\"\",\"\",'[1]FISCAL(M)'!$BJ115)","v":"n.d."},{"$f":"IF('[1]FISCAL(M)'!$BT115=\"\",\"\",'[1]FISCAL(M)'!$BT115)","v":"n.d."},{"$f":"IF('[2]MONE(M)'!$AO115=\"\",\"\",'[2]MONE(M)'!$AO115)","v":"n.d."},{"$f":"IF('[3]MONE(M)'!$AO115=\"\",\"\",'[3]MONE(M)'!$AO115)","v":"n.d."},{"$f":"IF('[4]MONE(M)'!$AO115=\"\",\"\",'[4]MONE(M)'!$AO115)","v":"n.d."},{"$f":"IF('[5]MONE(M)'!$AO115=\"\",\"\",'[5]MONE(M)'!$AO115)","v":"n.d."},{"$f":"IF('[6]MONE(M)'!$AO115=\"\",\"\",'[6]MONE(M)'!$AO115)","v":"n.d."},{"$f":"IF('[7]MONE(M)'!$AO115=\"\",\"\",'[7]MONE(M)'!$AO115)","v":"n.d."},{"$f":"IF('[8]MONE(M)'!$AO115=\"\",\"\",'[8]MONE(M)'!$AO115)","v":"n.d."},"n.d.","n.d.","n.d.","n.d.","n.d.","n.d.","n.d.",{"$f":"IF('[1]FISCAL(M)'!$K115=\"\",\"\",'[1]FISCAL(M)'!$K115)","v":"n.d."},"n.d.","n.d.",{"$f":"IF('[1]FISCAL(M)'!$L115=\"\",\"\",'[1]FISCAL(M)'!$L115)","v":"n.d."},"n.d.","n.d.","n.d.","n.d.","n.d.","n.d.","n.d.","n.d.","n.d.","n.d.","n.d.","n.d.","n.d.","n.d.","n.d.","n.d.","n.d.","n.d."]
[1998,"noviembre","1998-noviembre",{"$f":"IF('[1]REAL IPC(M)'!$AL116=\"\",\"\",+'[1]REAL IPC(M)'!$AL116)","v":9.4262365000062012},{"$f":"IF('[1]REAL IPC(M)'!$BE116=\"\",\"\",+'[1]REAL IPC(M)'!$BE116)","v":7.8248816267830756},{"$f":"IF('[1]REAL IPC(M)'!$AM116=\"\",\"\",+'[1]REAL IPC(M)'!$AM116)","v":8.7403351101575275},{"$f":"IF('[1]REAL IPC(M)'!$BI116=\"\",\"\",+'[1]REAL IPC(M)'!$BI116)","v":7.2821974154460234},{"$f":"IF('[1]REAL IMAE(M)'!BJ116=\"\",\"\",'[1]REAL IMAE(M)'!BJ116)","v":"n.d."},{"$f":"IF('[1]REAL IMAE(M)'!BK116=\"\",\"\",'[1]REAL IMAE(M)'!BK116)","v":"n.d."},{"$f":"IF('[1]REAL IMAE(M)'!BN116=\"\",\"\",'[1]REAL IMAE(M)'!BN116)","v":"n.d."},{"$f":"IF('[1]REAL IMAE(M)'!BO116=\"\",\"\",'[1]REAL IMAE(M)'!BO116)","v":"n.d."},{"$f":"IF('[1]EXT RIN(M)'!$K116=\"\",\"\",'[1]EXT RIN(M)'!$K116)","v":"n.d."},"",{"$f":"IF('[1]EXT RIN(M)'!$L116=\"\",\"\",'[1]EXT RIN(M)'!$L116)","v":"n.d."},"",{"$f":"IF('[1]MONE(M)CARD'!EG116=\"\",\"\",'[1]MONE(M)CARD'!EG116)","v":"n.d."},{"$f":"IF('[1]MONE(M)CARD'!EK116=\"\",\"\",'[1]MONE(M)CARD'!EK116)","v":"n.d."},{"$f":"IF('[1]MONE(M)CARD'!EP116=\"\",\"\",'[1]MONE(M)CARD'!EP116)","v":"n.d."},{"$f":"IF('[1]MONE(M)CARD'!ES116=\"\",\"\",'[1]MONE(M)CARD'!ES116)","v":"n.d."},{"$f":"IF('[1]MONE(M)CARD'!EV116=\"\",\"\",'[1]MONE(M)CARD'!EV116)","v":"n.d."},{"$f":"IF('[1]MONE(M)CARD'!EZ116=\"\",\"\",'[1]MONE(M)CARD'!EZ116)","v":"n.d."},{"$f":"IF('[1]MONE(M)CAPARD'!FC116=\"\",\"\",'[1]MONE(M)CAPARD'!FC116)","v":"n.d."},{"$f":"IF('[1]MONE(M)CAPARD'!FG116=\"\",\"\",'[1]MONE(M)CAPARD'!FG116)","v":"n.d."},{"$f":"IF('[1]MONE(M)CAPARD'!FL116=\"\",\"\",'[1]MONE(M)CAPARD'!FL116)","v":"n.d."},{"$f":"IF('[1]MONE(M)CAPARD'!FO116=\"\",\"\",'[1]MONE(M)CAPARD'!FO116)","v":"n.d."},{"$f":"IF('[1]MONE(M)CAPARD'!FR116=\"\",\"\",'[1]MONE(M)CAPARD'!FR116)","v":"n.d."},{"$f":"IF('[1]MONE(M)CAPARD'!FV116=\"\",\"\",'[1]MONE(M)CAPARD'!FV116)","v":"n.d."},{"$f":"IF('[1]MONE(M)CARD'!FV116=\"\",\"\",'[1]MONE(M)CARD'!FV116)","v":""},{"$f":"IF('[1]MONE(M)CARD'!GD116=\"\",\"\",'[1]MONE(M)CARD'!GD116)","v":"n.d."},{"$f":"IF('[1]MONE(M)CARD'!GE116=\"\",\"\",'[1]MONE(M)CARD'!GE116)","v":"n.d."},"n.d.","n.d.","n.d.","n.d.","n.d.","n.d.","n.d.","n.d.",null,"n.d.","n.d.","n.d.","n.d.","n.d.",{"$f":"IF('[1]MONE(M)CAPARD'!GS116=\"\",\"\",'[1]MONE(M)CAPARD'!GS116)","v":"n.d."},{"$f":"IF('[1]MONE(M)CARD'!HA116=\"\",\"\",'[1]MONE(M)CAPARD'!HA116)","v":"n.d."},{"$f":"IF('[1]MONE(M)CAPARD'!HB116=\"\",\"\",'[1]MONE(M)CAPARD'!HB116)","v":"n.d."},"n.d.","n.d.","n.d.","n.d.","n.d.","n.d.","n.d.","n.d.","n.d.","n.d.","n.d.","n.d.","n.d.","n.d.",{"$f":"IF('[1]MONE(M)CAPARD'!AS116=\"\",\"\",'[1]MONE(M)CAPARD'!AS116)","v":"n.d."},{"$f":"IF('[1]MONE(M)CAPARD'!AT116=\"\",\"\",'[1]MONE(M)CAPARD'!AT116)","v":"n.a."},{"$f":"IF('[1]MONE(M)CAPARD'!AU116=\"\",\"\",'[1]MONE(M)CAPARD'!AU116)","v":"n.d."},{"$f":"IF('[1]MONE(M)CAPARD'!AV116=\"\",\"\",'[1]MONE(M)CAPARD'!AV116)","v":"n.d."},{"$f":"IF('[1]MONE(M)CAPARD'!AW116=\"\",\"\",'[1]MONE(M)CAPARD'!AW116)","v":"n.a."},{"$f":"IF('[1]MONE(M)CAPARD'!AX116=\"\",\"\",'[1]MONE(M)CAPARD'!AX116)","v":"n.d."},{"$f":"IF('[1]MONE(M)CAPARD'!AY116=\"\",\"\",'[1]MONE(M)CAPARD'!AY116)","v":"n.a."},{"$f":"IF('[1]FISCAL(M)'!$K116=\"\",\"\",'[1]FISCAL(M)'!$K116)","v":"n.d."},{"$f":"IF('[1]FISCAL(M)'!$L116=\"\",\"\",'[1]FISCAL(M)'!$L116)","v":"n.d."},{"$f":"IF('[1]FISCAL(M)'!$AY116=\"\",\"\",'[1]FISCAL(M)'!$AY116)","v":"n.d."},{"$f":"IF('[1]FISCAL(M)'!$BI116=\"\",\"\",'[1]FISCAL(M)'!$BI116)","v":"n.d."},{"$f":"IF('[1]FISCAL(M)'!$BS116=\"\",\"\",'[1]FISCAL(M)'!$BS116)","v":"n.d."},{"$f":"IF('[1]FISCAL(M)'!$AZ116=\"\",\"\",'[1]FISCAL(M)'!$AZ116)","v":"n.d."},{"$f":"IF('[1]FISCAL(M)'!$BJ116=\"\",\"\",'[1]FISCAL(M)'!$BJ116)","v":"n.d."},{"$f":"IF('[1]FISCAL(M)'!$BT116=\"\",\"\",'[1]FISCAL(M)'!$BT116)","v":"n.d."},{"$f":"IF('[2]MONE(M)'!$AO116=\"\",\"\",'[2]MONE(M)'!$AO116)","v":"n.d."},{"$f":"IF('[3]MONE(M)'!$AO116=\"\",\"\",'[3]MONE(M)'!$AO116)","v":"n.d."},{"$f":"IF('[4]MONE(M)'!$AO116=\"\",\"\",'[4]MONE(M)'!$AO116)","v":"n.d."},{"$f":"IF('[5]MONE(M)'!$AO116=\"\",\"\",'[5]MONE(M)'!$AO116)","v":"n.d."},{"$f":"IF('[6]MONE(M)'!$AO116=\"\",\"\",'[6]MONE(M)'!$AO116)","v":"n.d."},{"$f":"IF('[7]MONE(M)'!$AO116=\"\",\"\",'[7]MONE(M)'!$AO116)","v":"n.d."},{"$f":"IF('[8]MONE(M)'!$AO116=\"\",\"\",'[8]MONE(M)'!$AO116)","v":"n.d."},"n.d.","n.d.","n.d.","n.d.","n.d.","n.d.","n.d.",{"$f":"IF('[1]FISCAL(M)'!$K116=\"\",\"\",'[1]FISCAL(M)'!$K116)","v":"n.d."},"n.d.","n.d.",{"$f":"IF('[1]FISCAL(M)'!$L116=\"\",\"\",'[1]FISCAL(M)'!$L116)","v":"n.d."},"n.d.","n.d.","n.d.","n.d.","n.d.","n.d.","n.d.","n.d.","n.d.","n.d.","n.d.","n.d.","n.d.","n.d.","n.d.","n.d.","n.d.","n.d."]
[1998,"diciembre","1998-diciembre",{"$f":"IF('[1]REAL IPC(M)'!$AL117=\"\",\"\",+'[1]REAL IPC(M)'!$AL117)","v":9.8489103854324291},{"$f":"IF('[1]REAL IPC(M)'!$BE117=\"\",\"\",+'[1]REAL IPC(M)'!$BE117)","v":7.7571086414325086},{"$f":"IF('[1]REAL IPC(M)'!$AM117=\"\",\"\",+'[1]REAL IPC(M)'!$AM117)","v":9.1158735350488342},{"$f":"IF('[1]REAL IPC(M)'!$BI117=\"\",\"\",+'[1]REAL IPC(M)'!$BI117)","v":7.225020905556101},{"$f":"IF('[1]REAL IMAE(M)'!BJ117=\"\",\"\",'[1]REAL IMAE(M)'!BJ117)","v":"n.d."},{"$f":"IF('[1]REAL IMAE(M)'!BK117=\"\",\"\",'[1]REAL IMAE(M)'!BK117)","v":"n.d."},{"$f":"IF('[1]REAL IMAE(M)'!BN117=\"\",\"\",'[1]REAL IMAE(M)'!BN117)","v":"n.d."},{"$f":"IF('[1]REAL IMAE(M)'!BO117=\"\",\"\",'[1]REAL IMAE(M)'!BO117)","v":"n.d."},{"$f":"IF('[1]EXT RIN(M)'!$K117=\"\",\"\",'[1]EXT RIN(M)'!$K117)","v":"n.d."},"n.d.",{"$f":"IF('[1]EXT RIN(M)'!$L117=\"\",\"\",'[1]EXT RIN(M)'!$L117)","v":"n.d."},"n.d.",{"$f":"IF('[1]MONE(M)CARD'!EG117=\"\",\"\",'[1]MONE(M)CARD'!EG117)","v":"n.d."},{"$f":"IF('[1]MONE(M)CARD'!EK117=\"\",\"\",'[1]MONE(M)CARD'!EK117)","v":"n.d."},{"$f":"IF('[1]MONE(M)CARD'!EP117=\"\",\"\",'[1]MONE(M)CARD'!EP117)","v":"n.d."},{"$f":"IF('[1]MONE(M)CARD'!ES117=\"\",\"\",'[1]MONE(M)CARD'!ES117)","v":"n.d."},{"$f":"IF('[1]MONE(M)CARD'!EV117=\"\",\"\",'[1]MONE(M)CARD'!EV117)","v":"n.d."},{"$f":"IF('[1]MONE(M)CARD'!EZ117=\"\",\"\",'[1]MONE(M)CARD'!EZ117)","v":"n.d."},{"$f":"IF('[1]MONE(M)CAPARD'!FC117=\"\",\"\",'[1]MONE(M)CAPARD'!FC117)","v":"n.d."},{"$f":"IF('[1]MONE(M)CAPARD'!FG117=\"\",\"\",'[1]MONE(M)CAPARD'!FG117)","v":"n.d."},{"$f":"IF('[1]MONE(M)CAPARD'!FL117=\"\",\"\",'[1]MONE(M)CAPARD'!FL117)","v":"n.d."},{"$f":"IF('[1]MONE(M)CAPARD'!FO117=\"\",\"\",'[1]MONE(M)CAPARD'!FO117)","v":"n.d."},{"$f":"IF('[1]MONE(M)CAPARD'!FR117=\"\",\"\",'[1]MONE(M)CAPARD'!FR117)","v":"n.d."},{"$f":"IF('[1]MONE(M)CAPARD'!FV117=\"\",\"\",'[1]MONE(M)CAPARD'!FV117)","v":"n.d."},{"$f":"IF('[1]MONE(M)CARD'!FV117=\"\",\"\",'[1]MONE(M)CARD'!FV117)","v":""},{"$f":"IF('[1]MONE(M)CARD'!GD117=\"\",\"\",'[1]MONE(M)CARD'!GD117)","v":"n.d."},{"$f":"IF('[1]MONE(M)CARD'!GE117=\"\",\"\",'[1]MONE(M)CARD'!GE117)","v":"n.d."},"n.d.","n.d.","n.d.","n.d.","n.d.","n.d.","n.d.","n.d.",null,"n.d.","n.d.","n.d.","n.d.","n.d.",{"$f":"IF('[1]MONE(M)CAPARD'!GS117=\"\",\"\",'[1]MONE(M)CAPARD'!GS117)","v":"n.d."},{"$f":"IF('[1]MONE(M)CARD'!HA117=\"\",\"\",'[1]MONE(M)CAPARD'!HA117)","v":"n.d."},{"$f":"IF('[1]MONE(M)CAPARD'!HB117=\"\",\"\",'[1]MONE(M)CAPARD'!HB117)","v":"n.d."},"n.d.","n.d.","n.d.","n.d.","n.d.","n.d.","n.d.","n.d.","n.d.","n.d.","n.d.","n.d.","n.d.","n.d.",{"$f":"IF('[1]MONE(M)CAPARD'!AS117=\"\",\"\",'[1]MONE(M)CAPARD'!AS117)","v":"n.d."},{"$f":"IF('[1]MONE(M)CAPARD'!AT117=\"\",\"\",'[1]MONE(M)CAPARD'!AT117)","v":"n.a."},{"$f":"IF('[1]MONE(M)CAPARD'!AU117=\"\",\"\",'[1]MONE(M)CAPARD'!AU117)","v":"n.d."},{"$f":"IF('[1]MONE(M)CAPARD'!AV117=\"\",\"\",'[1]MONE(M)CAPARD'!AV117)","v":"n.d."},{"$f":"IF('[1]MONE(M)CAPARD'!AW117=\"\",\"\",'[1]MONE(M)CAPARD'!AW117)","v":"n.a."},{"$f":"IF('[1]MONE(M)CAPARD'!AX117=\"\",\"\",'[1]MONE(M)CAPARD'!AX117)","v":"n.d."},{"$f":"IF('[1]MONE(M)CAPARD'!AY117=\"\",\"\",'[1]MONE(M)CAPARD'!AY117)","v":"n.a."},{"$f":"IF('[1]FISCAL(M)'!$K117=\"\",\"\",'[1]FISCAL(M)'!$K117)","v":"n.d."},{"$f":"IF('[1]FISCAL(M)'!$L117=\"\",\"\",'[1]FISCAL(M)'!$L117)","v":"n.d."},{"$f":"IF('[1]FISCAL(M)'!$AY117=\"\",\"\",'[1]FISCAL(M)'!$AY117)","v":"n.d."},{"$f":"IF('[1]FISCAL(M)'!$BI117=\"\",\"\",'[1]FISCAL(M)'!$BI117)","v":"n.d."},{"$f":"IF('[1]FISCAL(M)'!$BS117=\"\",\"\",'[1]FISCAL(M)'!$BS117)","v":"n.d."},{"$f":"IF('[1]FISCAL(M)'!$AZ117=\"\",\"\",'[1]FISCAL(M)'!$AZ117)","v":"n.d."},{"$f":"IF('[1]FISCAL(M)'!$BJ117=\"\",\"\",'[1]FISCAL(M)'!$BJ117)","v":"n.d."},{"$f":"IF('[1]FISCAL(M)'!$BT117=\"\",\"\",'[1]FISCAL(M)'!$BT117)","v":"n.d."},{"$f":"IF('[2]MONE(M)'!$AO117=\"\",\"\",'[2]MONE(M)'!$AO117)","v":"n.d."},{"$f":"IF('[3]MONE(M)'!$AO117=\"\",\"\",'[3]MONE(M)'!$AO117)","v":"n.d."},{"$f":"IF('[4]MONE(M)'!$AO117=\"\",\"\",'[4]MONE(M)'!$AO117)","v":"n.d."},{"$f":"IF('[5]MONE(M)'!$AO117=\"\",\"\",'[5]MONE(M)'!$AO117)","v":"n.d."},{"$f":"IF('[6]MONE(M)'!$AO117=\"\",\"\",'[6]MONE(M)'!$AO117)","v":"n.d."},{"$f":"IF('[7]MONE(M)'!$AO117=\"\",\"\",'[7]MONE(M)'!$AO117)","v":"n.d."},{"$f":"IF('[8]MONE(M)'!$AO117=\"\",\"\",'[8]MONE(M)'!$AO117)","v":"n.d."},"n.d.","n.d.","n.d.","n.d.","n.d.","n.d.","n.d.",{"$f":"IF('[1]FISCAL(M)'!$K117=\"\",\"\",'[1]FISCAL(M)'!$K117)","v":"n.d."},"n.d.","n.d.",{"$f":"IF('[1]FISCAL(M)'!$L117=\"\",\"\",'[1]FISCAL(M)'!$L117)","v":"n.d."},"n.d.","n.d.","n.d.","n.d.","n.d.","n.d.","n.d.","n.d.","n.d.","n.d.","n.d.","n.d.","n.d.","n.d.","n.d.","n.d.","n.d.","n.d."]
[1999,"enero","1999-enero",{"$f":"IF('[1]REAL IPC(M)'!$AL118=\"\",\"\",+'[1]REAL IPC(M)'!$AL118)","v":9.1338921527576176},{"$f":"IF('[1]REAL IPC(M)'!$BE118=\"\",\"\",+'[1]REAL IPC(M)'!$BE118)","v":7.6953990124257299},{"$f":"IF('[1]REAL IPC(M)'!$AM118=\"\",\"\",+'[1]REAL IPC(M)'!$AM118)","v":8.5336972339614228},{"$f":"IF('[1]REAL IPC(M)'!$BI118=\"\",\"\",+'[1]REAL IPC(M)'!$BI118)","v":7.1734721560594128},{"$f":"IF('[1]REAL IMAE(M)'!BJ118=\"\",\"\",'[1]REAL IMAE(M)'!BJ118)","v":"n.d."},{"$f":"IF('[1]REAL IMAE(M)'!BK118=\"\",\"\",'[1]REAL IMAE(M)'!BK118)","v":"n.d."},{"$f":"IF('[1]REAL IMAE(M)'!BN118=\"\",\"\",'[1]REAL IMAE(M)'!BN118)","v":"n.d."},{"$f":"IF('[1]REAL IMAE(M)'!BO118=\"\",\"\",'[1]REAL IMAE(M)'!BO118)","v":"n.d."},{"$f":"IF('[1]EXT RIN(M)'!$K118=\"\",\"\",'[1]EXT RIN(M)'!$K118)","v":"n.d."},"",{"$f":"IF('[1]EXT RIN(M)'!$L118=\"\",\"\",'[1]EXT RIN(M)'!$L118)","v":"n.d."},"",{"$f":"IF('[1]MONE(M)CARD'!EG118=\"\",\"\",'[1]MONE(M)CARD'!EG118)","v":"n.d."},{"$f":"IF('[1]MONE(M)CARD'!EK118=\"\",\"\",'[1]MONE(M)CARD'!EK118)","v":"n.d."},{"$f":"IF('[1]MONE(M)CARD'!EP118=\"\",\"\",'[1]MONE(M)CARD'!EP118)","v":"n.d."},{"$f":"IF('[1]MONE(M)CARD'!ES118=\"\",\"\",'[1]MONE(M)CARD'!ES118)","v":"n.d."},{"$f":"IF('[1]MONE(M)CARD'!EV118=\"\",\"\",'[1]MONE(M)CARD'!EV118)","v":"n.d."},{"$f":"IF('[1]MONE(M)CARD'!EZ118=\"\",\"\",'[1]MONE(M)CARD'!EZ118)","v":"n.d."},{"$f":"IF('[1]MONE(M)CAPARD'!FC118=\"\",\"\",'[1]MONE(M)CAPARD'!FC118)","v":"n.d."},{"$f":"IF('[1]MONE(M)CAPARD'!FG118=\"\",\"\",'[1]MONE(M)CAPARD'!FG118)","v":"n.d."},{"$f":"IF('[1]MONE(M)CAPARD'!FL118=\"\",\"\",'[1]MONE(M)CAPARD'!FL118)","v":"n.d."},{"$f":"IF('[1]MONE(M)CAPARD'!FO118=\"\",\"\",'[1]MONE(M)CAPARD'!FO118)","v":"n.d."},{"$f":"IF('[1]MONE(M)CAPARD'!FR118=\"\",\"\",'[1]MONE(M)CAPARD'!FR118)","v":"n.d."},{"$f":"IF('[1]MONE(M)CAPARD'!FV118=\"\",\"\",'[1]MONE(M)CAPARD'!FV118)","v":"n.d."},{"$f":"IF('[1]MONE(M)CARD'!FV118=\"\",\"\",'[1]MONE(M)CARD'!FV118)","v":""},{"$f":"IF('[1]MONE(M)CARD'!GD118=\"\",\"\",'[1]MONE(M)CARD'!GD118)","v":"n.d."},{"$f":"IF('[1]MONE(M)CARD'!GE118=\"\",\"\",'[1]MONE(M)CARD'!GE118)","v":"n.d."},"n.d.","n.d.","n.d.","n.d.","n.d.","n.d.","n.d.","n.d.",null,"n.d.","n.d.","n.d.","n.d.","n.d.",{"$f":"IF('[1]MONE(M)CAPARD'!GS118=\"\",\"\",'[1]MONE(M)CAPARD'!GS118)","v":"n.d."},{"$f":"IF('[1]MONE(M)CARD'!HA118=\"\",\"\",'[1]MONE(M)CAPARD'!HA118)","v":"n.d."},{"$f":"IF('[1]MONE(M)CAPARD'!HB118=\"\",\"\",'[1]MONE(M)CAPARD'!HB118)","v":"n.d."},"n.d.","n.d.","n.d.","n.d.","n.d.","n.d.","n.d.","n.d.","n.d.","n.d.","n.d.","n.d.","n.d.","n.d.",{"$f":"IF('[1]MONE(M)CAPARD'!AS118=\"\",\"\",'[1]MONE(M)CAPARD'!AS118)","v":"n.d."},{"$f":"IF('[1]MONE(M)CAPARD'!AT118=\"\",\"\",'[1]MONE(M)CAPARD'!AT118)","v":"n.a."},{"$f":"IF('[1]MONE(M)CAPARD'!AU118=\"\",\"\",'[1]MONE(M)CAPARD'!AU118)","v":"n.d."},{"$f":"IF('[1]MONE(M)CAPARD'!AV118=\"\",\"\",'[1]MONE(M)CAPARD'!AV118)","v":"n.d."},{"$f":"IF('[1]MONE(M)CAPARD'!AW118=\"\",\"\",'[1]MONE(M)CAPARD'!AW118)","v":"n.a."},{"$f":"IF('[1]MONE(M)CAPARD'!AX118=\"\",\"\",'[1]MONE(M)CAPARD'!AX118)","v":"n.d."},{"$f":"IF('[1]MONE(M)CAPARD'!AY118=\"\",\"\",'[1]MONE(M)CAPARD'!AY118)","v":"n.a."},{"$f":"IF('[1]FISCAL(M)'!$K118=\"\",\"\",'[1]FISCAL(M)'!$K118)","v":"n.d."},{"$f":"IF('[1]FISCAL(M)'!$L118=\"\",\"\",'[1]FISCAL(M)'!$L118)","v":"n.d."},{"$f":"IF('[1]FISCAL(M)'!$AY118=\"\",\"\",'[1]FISCAL(M)'!$AY118)","v":"n.d."},{"$f":"IF('[1]FISCAL(M)'!$BI118=\"\",\"\",'[1]FISCAL(M)'!$BI118)","v":"n.d."},{"$f":"IF('[1]FISCAL(M)'!$BS118=\"\",\"\",'[1]FISCAL(M)'!$BS118)","v":"n.d."},{"$f":"IF('[1]FISCAL(M)'!$AZ118=\"\",\"\",'[1]FISCAL(M)'!$AZ118)","v":"n.d."},{"$f":"IF('[1]FISCAL(M)'!$BJ118=\"\",\"\",'[1]FISCAL(M)'!$BJ118)","v":"n.d."},{"$f":"IF('[1]FISCAL(M)'!$BT118=\"\",\"\",'[1]FISCAL(M)'!$BT118)","v":"n.d."},{"$f":"IF('[2]MONE(M)'!$AO118=\"\",\"\",'[2]MONE(M)'!$AO118)","v":"n.d."},{"$f":"IF('[3]MONE(M)'!$AO118=\"\",\"\",'[3]MONE(M)'!$AO118)","v":"n.d."},{"$f":"IF('[4]MONE(M)'!$AO118=\"\",\"\",'[4]MONE(M)'!$AO118)","v":"n.d."},{"$f":"IF('[5]MONE(M)'!$AO118=\"\",\"\",'[5]MONE(M)'!$AO118)","v":"n.d."},{"$f":"IF('[6]MONE(M)'!$AO118=\"\",\"\",'[6]MONE(M)'!$AO118)","v":"n.d."},{"$f":"IF('[7]MONE(M)'!$AO118=\"\",\"\",'[7]MONE(M)'!$AO118)","v":"n.d."},{"$f":"IF('[8]MONE(M)'!$AO118=\"\",\"\",'[8]MONE(M)'!$AO118)","v":"n.d."},"n.d.","n.d.","n.d.","n.d.","n.d.","n.d.","n.d.",{"$f":"IF('[1]FISCAL(M)'!$K118=\"\",\"\",'[1]FISCAL(M)'!$K118)","v":"n.d."},"n.d.","n.d.",{"$f":"IF('[1]FISCAL(M)'!$L118=\"\",\"\",'[1]FISCAL(M)'!$L118)","v":"n.d."},"n.d.","n.d.","n.d.","n.d.","n.d.","n.d.","n.d.","n.d.","n.d.","n.d.","n.d.","n.d.","n.d.","n.d.","n.d.","n.d.","n.d.","n.d."]
[1999,"febrero","1999-febrero",{"$f":"IF('[1]REAL IPC(M)'!$AL119=\"\",\"\",+'[1]REAL IPC(M)'!$AL119)","v":8.3181551576742905},{"$f":"IF('[1]REAL IPC(M)'!$BE119=\"\",\"\",+'[1]REAL IPC(M)'!$BE119)","v":7.6397866096703959},{"$f":"IF('[1]REAL IPC(M)'!$AM119=\"\",\"\",+'[1]REAL IPC(M)'!$AM119)","v":7.8092038233172678},{"$f":"IF('[1]REAL IPC(M)'!$BI119=\"\",\"\",+'[1]REAL IPC(M)'!$BI119)","v":7.1275335901054948},{"$f":"IF('[1]REAL IMAE(M)'!BJ119=\"\",\"\",'[1]REAL IMAE(M)'!BJ119)","v":"n.d."},{"$f":"IF('[1]REAL IMAE(M)'!BK119=\"\",\"\",'[1]REAL IMAE(M)'!BK119)","v":"n.d."},{"$f":"IF('[1]REAL IMAE(M)'!BN119=\"\",\"\",'[1]REAL IMAE(M)'!BN119)","v":"n.d."},{"$f":"IF('[1]REAL IMAE(M)'!BO119=\"\",\"\",'[1]REAL IMAE(M)'!BO119)","v":"n.d."},{"$f":"IF('[1]EXT RIN(M)'!$K119=\"\",\"\",'[1]EXT RIN(M)'!$K119)","v":"n.d."},"",{"$f":"IF('[1]EXT RIN(M)'!$L119=\"\",\"\",'[1]EXT RIN(M)'!$L119)","v":"n.d."},"",{"$f":"IF('[1]MONE(M)CARD'!EG119=\"\",\"\",'[1]MONE(M)CARD'!EG119)","v":"n.d."},{"$f":"IF('[1]MONE(M)CARD'!EK119=\"\",\"\",'[1]MONE(M)CARD'!EK119)","v":"n.d."},{"$f":"IF('[1]MONE(M)CARD'!EP119=\"\",\"\",'[1]MONE(M)CARD'!EP119)","v":"n.d."},{"$f":"IF('[1]MONE(M)CARD'!ES119=\"\",\"\",'[1]MONE(M)CARD'!ES119)","v":"n.d."},{"$f":"IF('[1]MONE(M)CARD'!EV119=\"\",\"\",'[1]MONE(M)CARD'!EV119)","v":"n.d."},{"$f":"IF('[1]MONE(M)CARD'!EZ119=\"\",\"\",'[1]MONE(M)CARD'!EZ119)","v":"n.d."},{"$f":"IF('[1]MONE(M)CAPARD'!FC119=\"\",\"\",'[1]MONE(M)CAPARD'!FC119)","v":"n.d."},{"$f":"IF('[1]MONE(M)CAPARD'!FG119=\"\",\"\",'[1]MONE(M)CAPARD'!FG119)","v":"n.d."},{"$f":"IF('[1]MONE(M)CAPARD'!FL119=\"\",\"\",'[1]MONE(M)CAPARD'!FL119)","v":"n.d."},{"$f":"IF('[1]MONE(M)CAPARD'!FO119=\"\",\"\",'[1]MONE(M)CAPARD'!FO119)","v":"n.d."},{"$f":"IF('[1]MONE(M)CAPARD'!FR119=\"\",\"\",'[1]MONE(M)CAPARD'!FR119)","v":"n.d."},{"$f":"IF('[1]MONE(M)CAPARD'!FV119=\"\",\"\",'[1]MONE(M)CAPARD'!FV119)","v":"n.d."},{"$f":"IF('[1]MONE(M)CARD'!FV119=\"\",\"\",'[1]MONE(M)CARD'!FV119)","v":""},{"$f":"IF('[1]MONE(M)CARD'!GD119=\"\",\"\",'[1]MONE(M)CARD'!GD119)","v":"n.d."},{"$f":"IF('[1]MONE(M)CARD'!GE119=\"\",\"\",'[1]MONE(M)CARD'!GE119)","v":"n.d."},"n.d.","n.d.","n.d.","n.d.","n.d.","n.d.","n.d.","n.d.",null,"n.d.","n.d.","n.d.","n.d.","n.d.",{"$f":"IF('[1]MONE(M)CAPARD'!GS119=\"\",\"\",'[1]MONE(M)CAPARD'!GS119)","v":"n.d."},{"$f":"IF('[1]MONE(M)CARD'!HA119=\"\",\"\",'[1]MONE(M)CAPARD'!HA119)","v":"n.d."},{"$f":"IF('[1]MONE(M)CAPARD'!HB119=\"\",\"\",'[1]MONE(M)CAPARD'!HB119)","v":"n.d."},"n.d.","n.d.","n.d.","n.d.","n.d.","n.d.","n.d.","n.d.","n.d.","n.d.","n.d.","n.d.","n.d.","n.d.",{"$f":"IF('[1]MONE(M)CAPARD'!AS119=\"\",\"\",'[1]MONE(M)CAPARD'!AS119)","v":"n.d."},{"$f":"IF('[1]MONE(M)CAPARD'!AT119=\"\",\"\",'[1]MONE(M)CAPARD'!AT119)","v":"n.a."},{"$f":"IF('[1]MONE(M)CAPARD'!AU119=\"\",\"\",'[1]MONE(M)CAPARD'!AU119)","v":"n.d."},{"$f":"IF('[1]MONE(M)CAPARD'!AV119=\"\",\"\",'[1]MONE(M)CAPARD'!AV119)","v":"n.d."},{"$f":"IF('[1]MONE(M)CAPARD'!AW119=\"\",\"\",'[1]MONE(M)CAPARD'!AW119)","v":"n.a."},{"$f":"IF('[1]MONE(M)CAPARD'!AX119=\"\",\"\",'[1]MONE(M)CAPARD'!AX119)","v":"n.d."},{"$f":"IF('[1]MONE(M)CAPARD'!AY119=\"\",\"\",'[1]MONE(M)CAPARD'!AY119)","v":"n.a."},{"$f":"IF('[1]FISCAL(M)'!$K119=\"\",\"\",'[1]FISCAL(M)'!$K119)","v":"n.d."},{"$f":"IF('[1]FISCAL(M)'!$L119=\"\",\"\",'[1]FISCAL(M)'!$L119)","v":"n.d."},{"$f":"IF('[1]FISCAL(M)'!$AY119=\"\",\"\",'[1]FISCAL(M)'!$AY119)","v":"n.d."},{"$f":"IF('[1]FISCAL(M)'!$BI119=\"\",\"\",'[1]FISCAL(M)'!$BI119)","v":"n.d."},{"$f":"IF('[1]FISCAL(M)'!$BS119=\"\",\"\",'[1]FISCAL(M)'!$BS119)","v":"n.d."},{"$f":"IF('[1]FISCAL(M)'!$AZ119=\"\",\"\",'[1]FISCAL(M)'!$AZ119)","v":"n.d."},{"$f":"IF('[1]FISCAL(M)'!$BJ119=\"\",\"\",'[1]FISCAL(M)'!$BJ119)","v":"n.d."},{"$f":"IF('[1]FISCAL(M)'!$BT119=\"\",\"\",'[1]FISCAL(M)'!$BT119)","v":"n.d."},{"$f":"IF('[2]MONE(M)'!$AO119=\"\",\"\",'[2]MONE(M)'!$AO119)","v":"n.d."},{"$f":"IF('[3]MONE(M)'!$AO119=\"\",\"\",'[3]MONE(M)'!$AO119)","v":"n.d."},{"$f":"IF('[4]MONE(M)'!$AO119=\"\",\"\",'[4]MONE(M)'!$AO119)","v":"n.d."},{"$f":"IF('[5]MONE(M)'!$AO119=\"\",\"\",'[5]MONE(M)'!$AO119)","v":"n.d."},{"$f":"IF('[6]MONE(M)'!$AO119=\"\",\"\",'[6]MONE(M)'!$AO119)","v":"n.d."},{"$f":"IF('[7]MONE(M)'!$AO119=\"\",\"\",'[7]MONE(M)'!$AO119)","v":"n.d."},{"$f":"IF('[8]MONE(M)'!$AO119=\"\",\"\",'[8]MONE(M)'!$AO119)","v":"n.d."},"n.d.","n.d.","n.d.","n.d.","n.d.","n.d.","n.d.",{"$f":"IF('[1]FISCAL(M)'!$K119=\"\",\"\",'[1]FISCAL(M)'!$K119)","v":"n.d."},"n.d.","n.d.",{"$f":"IF('[1]FISCAL(M)'!$L119=\"\",\"\",'[1]FISCAL(M)'!$L119)","v":"n.d."},"n.d.","n.d.","n.d.","n.d.","n.d.","n.d.","n.d.","n.d.","n.d.","n.d.","n.d.","n.d.","n.d.","n.d.","n.d.","n.d.","n.d.","n.d."]
[1999,"marzo","1999-marzo",{"$f":"IF('[1]REAL IPC(M)'!$AL120=\"\",\"\",+'[1]REAL IPC(M)'!$AL120)","v":7.4003668635954645},{"$f":"IF('[1]REAL IPC(M)'!$BE120=\"\",\"\",+'[1]REAL IPC(M)'!$BE120)","v":7.5903592497351902},{"$f":"IF('[1]REAL IPC(M)'!$AM120=\"\",\"\",+'[1]REAL IPC(M)'!$AM120)","v":6.964718703508499},{"$f":"IF('[1]REAL IPC(M)'!$BI120=\"\",\"\",+'[1]REAL IPC(M)'!$BI120)","v":7.0872426683850298},{"$f":"IF('[1]REAL IMAE(M)'!BJ120=\"\",\"\",'[1]REAL IMAE(M)'!BJ120)","v":"n.d."},{"$f":"IF('[1]REAL IMAE(M)'!BK120=\"\",\"\",'[1]REAL IMAE(M)'!BK120)","v":"n.d."},{"$f":"IF('[1]REAL IMAE(M)'!BN120=\"\",\"\",'[1]REAL IMAE(M)'!BN120)","v":"n.d."},{"$f":"IF('[1]REAL IMAE(M)'!BO120=\"\",\"\",'[1]REAL IMAE(M)'!BO120)","v":"n.d."},{"$f":"IF('[1]EXT RIN(M)'!$K120=\"\",\"\",'[1]EXT RIN(M)'!$K120)","v":"n.d."},"",{"$f":"IF('[1]EXT RIN(M)'!$L120=\"\",\"\",'[1]EXT RIN(M)'!$L120)","v":"n.d."},"",{"$f":"IF('[1]MONE(M)CARD'!EG120=\"\",\"\",'[1]MONE(M)CARD'!EG120)","v":"n.d."},{"$f":"IF('[1]MONE(M)CARD'!EK120=\"\",\"\",'[1]MONE(M)CARD'!EK120)","v":"n.d."},{"$f":"IF('[1]MONE(M)CARD'!EP120=\"\",\"\",'[1]MONE(M)CARD'!EP120)","v":"n.d."},{"$f":"IF('[1]MONE(M)CARD'!ES120=\"\",\"\",'[1]MONE(M)CARD'!ES120)","v":"n.d."},{"$f":"IF('[1]MONE(M)CARD'!EV120=\"\",\"\",'[1]MONE(M)CARD'!EV120)","v":"n.d."},{"$f":"IF('[1]MONE(M)CARD'!EZ120=\"\",\"\",'[1]MONE(M)CARD'!EZ120)","v":"n.d."},{"$f":"IF('[1]MONE(M)CAPARD'!FC120=\"\",\"\",'[1]MONE(M)CAPARD'!FC120)","v":"n.d."},{"$f":"IF('[1]MONE(M)CAPARD'!FG120=\"\",\"\",'[1]MONE(M)CAPARD'!FG120)","v":"n.d."},{"$f":"IF('[1]MONE(M)CAPARD'!FL120=\"\",\"\",'[1]MONE(M)CAPARD'!FL120)","v":"n.d."},{"$f":"IF('[1]MONE(M)CAPARD'!FO120=\"\",\"\",'[1]MONE(M)CAPARD'!FO120)","v":"n.d."},{"$f":"IF('[1]MONE(M)CAPARD'!FR120=\"\",\"\",'[1]MONE(M)CAPARD'!FR120)","v":"n.d."},{"$f":"IF('[1]MONE(M)CAPARD'!FV120=\"\",\"\",'[1]MONE(M)CAPARD'!FV120)","v":"n.d."},{"$f":"IF('[1]MONE(M)CARD'!FV120=\"\",\"\",'[1]MONE(M)CARD'!FV120)","v":""},{"$f":"IF('[1]MONE(M)CARD'!GD120=\"\",\"\",'[1]MONE(M)CARD'!GD120)","v":"n.d."},{"$f":"IF('[1]MONE(M)CARD'!GE120=\"\",\"\",'[1]MONE(M)CARD'!GE120)","v":"n.d."},"n.d.","n.d.","n.d.","n.d.","n.d.","n.d.","n.d.","n.d.",null,"n.d.","n.d.","n.d.","n.d.","n.d.",{"$f":"IF('[1]MONE(M)CAPARD'!GS120=\"\",\"\",'[1]MONE(M)CAPARD'!GS120)","v":"n.d."},{"$f":"IF('[1]MONE(M)CARD'!HA120=\"\",\"\",'[1]MONE(M)CAPARD'!HA120)","v":"n.d."},{"$f":"IF('[1]MONE(M)CAPARD'!HB120=\"\",\"\",'[1]MONE(M)CAPARD'!HB120)","v":"n.d."},"n.d.","n.d.","n.d.","n.d.","n.d.","n.d.","n.d.","n.d.","n.d.","n.d.","n.d.","n.d.","n.d.","n.d.",{"$f":"IF('[1]MONE(M)CAPARD'!AS120=\"\",\"\",'[1]MONE(M)CAPARD'!AS120)","v":"n.d."},{"$f":"IF('[1]MONE(M)CAPARD'!AT120=\"\",\"\",'[1]MONE(M)CAPARD'!AT120)","v":"n.a."},{"$f":"IF('[1]MONE(M)CAPARD'!AU120=\"\",\"\",'[1]MONE(M)CAPARD'!AU120)","v":"n.d."},{"$f":"IF('[1]MONE(M)CAPARD'!AV120=\"\",\"\",'[1]MONE(M)CAPARD'!AV120)","v":"n.d."},{"$f":"IF('[1]MONE(M)CAPARD'!AW120=\"\",\"\",'[1]MONE(M)CAPARD'!AW120)","v":"n.a."},{"$f":"IF('[1]MONE(M)CAPARD'!AX120=\"\",\"\",'[1]MONE(M)CAPARD'!AX120)","v":"n.d."},{"$f":"IF('[1]MONE(M)CAPARD'!AY120=\"\",\"\",'[1]MONE(M)CAPARD'!AY120)","v":"n.a."},{"$f":"IF('[1]FISCAL(M)'!$K120=\"\",\"\",'[1]FISCAL(M)'!$K120)","v":"n.d."},{"$f":"IF('[1]FISCAL(M)'!$L120=\"\",\"\",'[1]FISCAL(M)'!$L120)","v":"n.d."},{"$f":"IF('[1]FISCAL(M)'!$AY120=\"\",\"\",'[1]FISCAL(M)'!$AY120)","v":"n.d."},{"$f":"IF('[1]FISCAL(M)'!$BI120=\"\",\"\",'[1]FISCAL(M)'!$BI120)","v":"n.d."},{"$f":"IF('[1]FISCAL(M)'!$BS120=\"\",\"\",'[1]FISCAL(M)'!$BS120)","v":"n.d."},{"$f":"IF('[1]FISCAL(M)'!$AZ120=\"\",\"\",'[1]FISCAL(M)'!$AZ120)","v":"n.d."},{"$f":"IF('[1]FISCAL(M)'!$BJ120=\"\",\"\",'[1]FISCAL(M)'!$BJ120)","v":"n.d."},{"$f":"IF('[1]FISCAL(M)'!$BT120=\"\",\"\",'[1]FISCAL(M)'!$BT120)","v":"n.d."},{"$f":"IF('[2]MONE(M)'!$AO120=\"\",\"\",'[2]MONE(M)'!$AO120)","v":"n.d."},{"$f":"IF('[3]MONE(M)'!$AO120=\"\",\"\",'[3]MONE(M)'!$AO120)","v":"n.d."},{"$f":"IF('[4]MONE(M)'!$AO120=\"\",\"\",'[4]MONE(M)'!$AO120)","v":"n.d."},{"$f":"IF('[5]MONE(M)'!$AO120=\"\",\"\",'[5]MONE(M)'!$AO120)","v":"n.d."},{"$f":"IF('[6]MONE(M)'!$AO120=\"\",\"\",'[6]MONE(M)'!$AO120)","v":"n.d."},{"$f":"IF('[7]MONE(M)'!$AO120=\"\",\"\",'[7]MONE(M)'!$AO120)","v":"n.d."},{"$f":"IF('[8]MONE(M)'!$AO120=\"\",\"\",'[8]MONE(M)'!$AO120)","v":"n.d."},"n.d.","n.d.","n.d.","n.d.","n.d.","n.d.","n.d.",{"$f":"IF('[1]FISCAL(M)'!$K120=\"\",\"\",'[1]FISCAL(M)'!$K120)","v":"n.d."},"n.d.","n.d.",{"$f":"IF('[1]FISCAL(M)'!$L120=\"\",\"\",'[1]FISCAL(M)'!$L120)","v":"n.d."},"n.d.","n.d.","n.d.","n.d.","n.d.","n.d.","n.d.","n.d.","n.d.","n.d.","n.d.","n.d.","n.d.","n.d.","n.d.","n.d.","n.d.","n.d."]
[1999,"abril","1999-abril",{"$f":"IF('[1]REAL IPC(M)'!$AL121=\"\",\"\",+'[1]REAL IPC(M)'!$AL121)","v":6.6964324528141717},{"$f":"IF('[1]REAL IPC(M)'!$BE121=\"\",\"\",+'[1]REAL IPC(M)'!$BE121)","v":7.5472168856293376},{"$f":"IF('[1]REAL IPC(M)'!$AM121=\"\",\"\",+'[1]REAL IPC(M)'!$AM121)","v":6.333089038430284},{"$f":"IF('[1]REAL IPC(M)'!$BI121=\"\",\"\",+'[1]REAL IPC(M)'!$BI121)","v":7.052652178721619},{"$f":"IF('[1]REAL IMAE(M)'!BJ121=\"\",\"\",'[1]REAL IMAE(M)'!BJ121)","v":"n.d."},{"$f":"IF('[1]REAL IMAE(M)'!BK121=\"\",\"\",'[1]REAL IMAE(M)'!BK121)","v":"n.d."},{"$f":"IF('[1]REAL IMAE(M)'!BN121=\"\",\"\",'[1]REAL IMAE(M)'!BN121)","v":"n.d."},{"$f":"IF('[1]REAL IMAE(M)'!BO121=\"\",\"\",'[1]REAL IMAE(M)'!BO121)","v":"n.d."},{"$f":"IF('[1]EXT RIN(M)'!$K121=\"\",\"\",'[1]EXT RIN(M)'!$K121)","v":"n.d."},"",{"$f":"IF('[1]EXT RIN(M)'!$L121=\"\",\"\",'[1]EXT RIN(M)'!$L121)","v":"n.d."},"",{"$f":"IF('[1]MONE(M)CARD'!EG121=\"\",\"\",'[1]MONE(M)CARD'!EG121)","v":"n.d."},{"$f":"IF('[1]MONE(M)CARD'!EK121=\"\",\"\",'[1]MONE(M)CARD'!EK121)","v":"n.d."},{"$f":"IF('[1]MONE(M)CARD'!EP121=\"\",\"\",'[1]MONE(M)CARD'!EP121)","v":"n.d."},{"$f":"IF('[1]MONE(M)CARD'!ES121=\"\",\"\",'[1]MONE(M)CARD'!ES121)","v":"n.d."},{"$f":"IF('[1]MONE(M)CARD'!EV121=\"\",\"\",'[1]MONE(M)CARD'!EV121)","v":"n.d."},{"$f":"IF('[1]MONE(M)CARD'!EZ121=\"\",\"\",'[1]MONE(M)CARD'!EZ121)","v":"n.d."},{"$f":"IF('[1]MONE(M)CAPARD'!FC121=\"\",\"\",'[1]MONE(M)CAPARD'!FC121)","v":"n.d."},{"$f":"IF('[1]MONE(M)CAPARD'!FG121=\"\",\"\",'[1]MONE(M)CAPARD'!FG121)","v":"n.d."},{"$f":"IF('[1]MONE(M)CAPARD'!FL121=\"\",\"\",'[1]MONE(M)CAPARD'!FL121)","v":"n.d."},{"$f":"IF('[1]MONE(M)CAPARD'!FO121=\"\",\"\",'[1]MONE(M)CAPARD'!FO121)","v":"n.d."},{"$f":"IF('[1]MONE(M)CAPARD'!FR121=\"\",\"\",'[1]MONE(M)CAPARD'!FR121)","v":"n.d."},{"$f":"IF('[1]MONE(M)CAPARD'!FV121=\"\",\"\",'[1]MONE(M)CAPARD'!FV121)","v":"n.d."},{"$f":"IF('[1]MONE(M)CARD'!FV121=\"\",\"\",'[1]MONE(M)CARD'!FV121)","v":""},{"$f":"IF('[1]MONE(M)CARD'!GD121=\"\",\"\",'[1]MONE(M)CARD'!GD121)","v":"n.d."},{"$f":"IF('[1]MONE(M)CARD'!GE121=\"\",\"\",'[1]MONE(M)CARD'!GE121)","v":"n.d."},"n.d.","n.d.","n.d.","n.d.","n.d.","n.d.","n.d.","n.d.",null,"n.d.","n.d.","n.d.","n.d.","n.d.",{"$f":"IF('[1]MONE(M)CAPARD'!GS121=\"\",\"\",'[1]MONE(M)CAPARD'!GS121)","v":"n.d."},{"$f":"IF('[1]MONE(M)CARD'!HA121=\"\",\"\",'[1]MONE(M)CAPARD'!HA121)","v":"n.d."},{"$f":"IF('[1]MONE(M)CAPARD'!HB121=\"\",\"\",'[1]MONE(M)CAPARD'!HB121)","v":"n.d."},"n.d.","n.d.","n.d.","n.d.","n.d.","n.d.","n.d.","n.d.","n.d.","n.d.","n.d.","n.d.","n.d.","n.d.",{"$f":"IF('[1]MONE(M)CAPARD'!AS121=\"\",\"\",'[1]MONE(M)CAPARD'!AS121)","v":"n.d."},{"$f":"IF('[1]MONE(M)CAPARD'!AT121=\"\",\"\",'[1]MONE(M)CAPARD'!AT121)","v":"n.a."},{"$f":"IF('[1]MONE(M)CAPARD'!AU121=\"\",\"\",'[1]MONE(M)CAPARD'!AU121)","v":"n.d."},{"$f":"IF('[1]MONE(M)CAPARD'!AV121=\"\",\"\",'[1]MONE(M)CAPARD'!AV121)","v":"n.d."},{"$f":"IF('[1]MONE(M)CAPARD'!AW121=\"\",\"\",'[1]MONE(M)CAPARD'!AW121)","v":"n.a."},{"$f":"IF('[1]MONE(M)CAPARD'!AX121=\"\",\"\",'[1]MONE(M)CAPARD'!AX121)","v":"n.d."},{"$f":"IF('[1]MONE(M)CAPARD'!AY121=\"\",\"\",'[1]MONE(M)CAPARD'!AY121)","v":"n.a."},{"$f":"IF('[1]FISCAL(M)'!$K121=\"\",\"\",'[1]FISCAL(M)'!$K121)","v":"n.d."},{"$f":"IF('[1]FISCAL(M)'!$L121=\"\",\"\",'[1]FISCAL(M)'!$L121)","v":"n.d."},{"$f":"IF('[1]FISCAL(M)'!$AY121=\"\",\"\",'[1]FISCAL(M)'!$AY121)","v":"n.d."},{"$f":"IF('[1]FISCAL(M)'!$BI121=\"\",\"\",'[1]FISCAL(M)'!$BI121)","v":"n.d."},{"$f":"IF('[1]FISCAL(M)'!$BS121=\"\",\"\",'[1]FISCAL(M)'!$BS121)","v":"n.d."},{"$f":"IF('[1]FISCAL(M)'!$AZ121=\"\",\"\",'[1]FISCAL(M)'!$AZ121)","v":"n.d."},{"$f":"IF('[1]FISCAL(M)'!$BJ121=\"\",\"\",'[1]FISCAL(M)'!$BJ121)","v":"n.d."},{"$f":"IF('[1]FISCAL(M)'!$BT121=\"\",\"\",'[1]FISCAL(M)'!$BT121)","v":"n.d."},{"$f":"IF('[2]MONE(M)'!$AO121=\"\",\"\",'[2]MONE(M)'!$AO121)","v":"n.d."},{"$f":"IF('[3]MONE(M)'!$AO121=\"\",\"\",'[3]MONE(M)'!$AO121)","v":"n.d."},{"$f":"IF('[4]MONE(M)'!$AO121=\"\",\"\",'[4]MONE(M)'!$AO121)","v":"n.d."},{"$f":"IF('[5]MONE(M)'!$AO121=\"\",\"\",'[5]MONE(M)'!$AO121)","v":"n.d."},{"$f":"IF('[6]MONE(M)'!$AO121=\"\",\"\",'[6]MONE(M)'!$AO121)","v":"n.d."},{"$f":"IF('[7]MONE(M)'!$AO121=\"\",\"\",'[7]MONE(M)'!$AO121)","v":"n.d."},{"$f":"IF('[8]MONE(M)'!$AO121=\"\",\"\",'[8]MONE(M)'!$AO121)","v":"n.d."},"n.d.","n.d.","n.d.","n.d.","n.d.","n.d.","n.d.",{"$f":"IF('[1]FISCAL(M)'!$K121=\"\",\"\",'[1]FISCAL(M)'!$K121)","v":"n.d."},"n.d.","n.d.",{"$f":"IF('[1]FISCAL(M)'!$L121=\"\",\"\",'[1]FISCAL(M)'!$L121)","v":"n.d."},"n.d.","n.d.","n.d.","n.d.","n.d.","n.d.","n.d.","n.d.","n.d.","n.d.","n.d.","n.d.","n.d.","n.d.","n.d.","n.d.","n.d.","n.d."]
[1999,"mayo ","1999-mayo ",{"$f":"IF('[1]REAL IPC(M)'!$AL122=\"\",\"\",+'[1]REAL IPC(M)'!$AL122)","v":6.4178473627471311},{"$f":"IF('[1]REAL IPC(M)'!$BE122=\"\",\"\",+'[1]REAL IPC(M)'!$BE122)","v":7.5104309187343121},{"$f":"IF('[1]REAL IPC(M)'!$AM122=\"\",\"\",+'[1]REAL IPC(M)'!$AM122)","v":6.064007452909137},{"$f":"IF('[1]REAL IPC(M)'!$BI122=\"\",\"\",+'[1]REAL IPC(M)'!$BI122)","v":7.0237879288053362},{"$f":"IF('[1]REAL IMAE(M)'!BJ122=\"\",\"\",'[1]REAL IMAE(M)'!BJ122)","v":"n.d."},{"$f":"IF('[1]REAL IMAE(M)'!BK122=\"\",\"\",'[1]REAL IMAE(M)'!BK122)","v":"n.d."},{"$f":"IF('[1]REAL IMAE(M)'!BN122=\"\",\"\",'[1]REAL IMAE(M)'!BN122)","v":"n.d."},{"$f":"IF('[1]REAL IMAE(M)'!BO122=\"\",\"\",'[1]REAL IMAE(M)'!BO122)","v":"n.d."},{"$f":"IF('[1]EXT RIN(M)'!$K122=\"\",\"\",'[1]EXT RIN(M)'!$K122)","v":"n.d."},"",{"$f":"IF('[1]EXT RIN(M)'!$L122=\"\",\"\",'[1]EXT RIN(M)'!$L122)","v":"n.d."},"",{"$f":"IF('[1]MONE(M)CARD'!EG122=\"\",\"\",'[1]MONE(M)CARD'!EG122)","v":"n.d."},{"$f":"IF('[1]MONE(M)CARD'!EK122=\"\",\"\",'[1]MONE(M)CARD'!EK122)","v":"n.d."},{"$f":"IF('[1]MONE(M)CARD'!EP122=\"\",\"\",'[1]MONE(M)CARD'!EP122)","v":"n.d."},{"$f":"IF('[1]MONE(M)CARD'!ES122=\"\",\"\",'[1]MONE(M)CARD'!ES122)","v":"n.d."},{"$f":"IF('[1]MONE(M)CARD'!EV122=\"\",\"\",'[1]MONE(M)CARD'!EV122)","v":"n.d."},{"$f":"IF('[1]MONE(M)CARD'!EZ122=\"\",\"\",'[1]MONE(M)CARD'!EZ122)","v":"n.d."},{"$f":"IF('[1]MONE(M)CAPARD'!FC122=\"\",\"\",'[1]MONE(M)CAPARD'!FC122)","v":"n.d."},{"$f":"IF('[1]MONE(M)CAPARD'!FG122=\"\",\"\",'[1]MONE(M)CAPARD'!FG122)","v":"n.d."},{"$f":"IF('[1]MONE(M)CAPARD'!FL122=\"\",\"\",'[1]MONE(M)CAPARD'!FL122)","v":"n.d."},{"$f":"IF('[1]MONE(M)CAPARD'!FO122=\"\",\"\",'[1]MONE(M)CAPARD'!FO122)","v":"n.d."},{"$f":"IF('[1]MONE(M)CAPARD'!FR122=\"\",\"\",'[1]MONE(M)CAPARD'!FR122)","v":"n.d."},{"$f":"IF('[1]MONE(M)CAPARD'!FV122=\"\",\"\",'[1]MONE(M)CAPARD'!FV122)","v":"n.d."},{"$f":"IF('[1]MONE(M)CARD'!FV122=\"\",\"\",'[1]MONE(M)CARD'!FV122)","v":""},{"$f":"IF('[1]MONE(M)CARD'!GD122=\"\",\"\",'[1]MONE(M)CARD'!GD122)","v":"n.d."},{"$f":"IF('[1]MONE(M)CARD'!GE122=\"\",\"\",'[1]MONE(M)CARD'!GE122)","v":"n.d."},"n.d.","n.d.","n.d.","n.d.","n.d.","n.d.","n.d.","n.d.",null,"n.d.","n.d.","n.d.","n.d.","n.d.",{"$f":"IF('[1]MONE(M)CAPARD'!GS122=\"\",\"\",'[1]MONE(M)CAPARD'!GS122)","v":"n.d."},{"$f":"IF('[1]MONE(M)CARD'!HA122=\"\",\"\",'[1]MONE(M)CAPARD'!HA122)","v":"n.d."},{"$f":"IF('[1]MONE(M)CAPARD'!HB122=\"\",\"\",'[1]MONE(M)CAPARD'!HB122)","v":"n.d."},"n.d.","n.d.","n.d.","n.d.","n.d.","n.d.","n.d.","n.d.","n.d.","n.d.","n.d.","n.d.","n.d.","n.d.",{"$f":"IF('[1]MONE(M)CAPARD'!AS122=\"\",\"\",'[1]MONE(M)CAPARD'!AS122)","v":"n.d."},{"$f":"IF('[1]MONE(M)CAPARD'!AT122=\"\",\"\",'[1]MONE(M)CAPARD'!AT122)","v":"n.a."},{"$f":"IF('[1]MONE(M)CAPARD'!AU122=\"\",\"\",'[1]MONE(M)CAPARD'!AU122)","v":"n.d."},{"$f":"IF('[1]MONE(M)CAPARD'!AV122=\"\",\"\",'[1]MONE(M)CAPARD'!AV122)","v":"n.d."},{"$f":"IF('[1]MONE(M)CAPARD'!AW122=\"\",\"\",'[1]MONE(M)CAPARD'!AW122)","v":"n.a."},{"$f":"IF('[1]MONE(M)CAPARD'!AX122=\"\",\"\",'[1]MONE(M)CAPARD'!AX122)","v":"n.d."},{"$f":"IF('[1]MONE(M)CAPARD'!AY122=\"\",\"\",'[1]MONE(M)CAPARD'!AY122)","v":"n.a."},{"$f":"IF('[1]FISCAL(M)'!$K122=\"\",\"\",'[1]FISCAL(M)'!$K122)","v":"n.d."},{"$f":"IF('[1]FISCAL(M)'!$L122=\"\",\"\",'[1]FISCAL(M)'!$L122)","v":"n.d."},{"$f":"IF('[1]FISCAL(M)'!$AY122=\"\",\"\",'[1]FISCAL(M)'!$AY122)","v":"n.d."},{"$f":"IF('[1]FISCAL(M)'!$BI122=\"\",\"\",'[1]FISCAL(M)'!$BI122)","v":"n.d."},{"$f":"IF('[1]FISCAL(M)'!$BS122=\"\",\"\",'[1]FISCAL(M)'!$BS122)","v":"n.d."},{"$f":"IF('[1]FISCAL(M)'!$AZ122=\"\",\"\",'[1]FISCAL(M)'!$AZ122)","v":"n.d."},{"$f":"IF('[1]FISCAL(M)'!$BJ122=\"\",\"\",'[1]FISCAL(M)'!$BJ122)","v":"n.d."},{"$f":"IF('[1]FISCAL(M)'!$BT122=\"\",\"\",'[1]FISCAL(M)'!$BT122)","v":"n.d."},{"$f":"IF('[2]MONE(M)'!$AO122=\"\",\"\",'[2]MONE(M)'!$AO122)","v":"n.d."},{"$f":"IF('[3]MONE(M)'!$AO122=\"\",\"\",'[3]MONE(M)'!$AO122)","v":"n.d."},{"$f":"IF('[4]MONE(M)'!$AO122=\"\",\"\",'[4]MONE(M)'!$AO122)","v":"n.d."},{"$f":"IF('[5]MONE(M)'!$AO122=\"\",\"\",'[5]MONE(M)'!$AO122)","v":"n.d."},{"$f":"IF('[6]MONE(M)'!$AO122=\"\",\"\",'[6]MONE(M)'!$AO122)","v":"n.d."},{"$f":"IF('[7]MONE(M)'!$AO122=\"\",\"\",'[7]MONE(M)'!$AO122)","v":"n.d."},{"$f":"IF('[8]MONE(M)'!$AO122=\"\",\"\",'[8]MONE(M)'!$AO122)","v":"n.d."},"n.d.","n.d.","n.d.","n.d.","n.d.","n.d.","n.d.",{"$f":"IF('[1]FISCAL(M)'!$K122=\"\",\"\",'[1]FISCAL(M)'!$K122)","v":"n.d."},"n.d.","n.d.",{"$f":"IF('[1]FISCAL(M)'!$L122=\"\",\"\",'[1]FISCAL(M)'!$L122)","v":"n.d."},"n.d.","n.d.","n.d.","n.d.","n.d.","n.d.","n.d.","n.d.","n.d.","n.d.","n.d.","n.d.","n.d.","n.d.","n.d.","n.d.","n.d.","n.d."]
[1999,"junio ","1999-junio ",{"$f":"IF('[1]REAL IPC(M)'!$AL123=\"\",\"\",+'[1]REAL IPC(M)'!$AL123)","v":6.2260654524935566},{"$f":"IF('[1]REAL IPC(M)'!$BE123=\"\",\"\",+'[1]REAL IPC(M)'!$BE123)","v":7.4800097713581426},{"$f":"IF('[1]REAL IPC(M)'!$AM123=\"\",\"\",+'[1]REAL IPC(M)'!$AM123)","v":5.8813480439174226},{"$f":"IF('[1]REAL IPC(M)'!$BI123=\"\",\"\",+'[1]REAL IPC(M)'!$BI123)","v":7.0006156673283026},{"$f":"IF('[1]REAL IMAE(M)'!BJ123=\"\",\"\",'[1]REAL IMAE(M)'!BJ123)","v":"n.d."},{"$f":"IF('[1]REAL IMAE(M)'!BK123=\"\",\"\",'[1]REAL IMAE(M)'!BK123)","v":"n.d."},{"$f":"IF('[1]REAL IMAE(M)'!BN123=\"\",\"\",'[1]REAL IMAE(M)'!BN123)","v":"n.d."},{"$f":"IF('[1]REAL IMAE(M)'!BO123=\"\",\"\",'[1]REAL IMAE(M)'!BO123)","v":"n.d."},{"$f":"IF('[1]EXT RIN(M)'!$K123=\"\",\"\",'[1]EXT RIN(M)'!$K123)","v":"n.d."},"",{"$f":"IF('[1]EXT RIN(M)'!$L123=\"\",\"\",'[1]EXT RIN(M)'!$L123)","v":"n.d."},"",{"$f":"IF('[1]MONE(M)CARD'!EG123=\"\",\"\",'[1]MONE(M)CARD'!EG123)","v":"n.d."},{"$f":"IF('[1]MONE(M)CARD'!EK123=\"\",\"\",'[1]MONE(M)CARD'!EK123)","v":"n.d."},{"$f":"IF('[1]MONE(M)CARD'!EP123=\"\",\"\",'[1]MONE(M)CARD'!EP123)","v":"n.d."},{"$f":"IF('[1]MONE(M)CARD'!ES123=\"\",\"\",'[1]MONE(M)CARD'!ES123)","v":"n.d."},{"$f":"IF('[1]MONE(M)CARD'!EV123=\"\",\"\",'[1]MONE(M)CARD'!EV123)","v":"n.d."},{"$f":"IF('[1]MONE(M)CARD'!EZ123=\"\",\"\",'[1]MONE(M)CARD'!EZ123)","v":"n.d."},{"$f":"IF('[1]MONE(M)CAPARD'!FC123=\"\",\"\",'[1]MONE(M)CAPARD'!FC123)","v":"n.d."},{"$f":"IF('[1]MONE(M)CAPARD'!FG123=\"\",\"\",'[1]MONE(M)CAPARD'!FG123)","v":"n.d."},{"$f":"IF('[1]MONE(M)CAPARD'!FL123=\"\",\"\",'[1]MONE(M)CAPARD'!FL123)","v":"n.d."},{"$f":"IF('[1]MONE(M)CAPARD'!FO123=\"\",\"\",'[1]MONE(M)CAPARD'!FO123)","v":"n.d."},{"$f":"IF('[1]MONE(M)CAPARD'!FR123=\"\",\"\",'[1]MONE(M)CAPARD'!FR123)","v":"n.d."},{"$f":"IF('[1]MONE(M)CAPARD'!FV123=\"\",\"\",'[1]MONE(M)CAPARD'!FV123)","v":"n.d."},{"$f":"IF('[1]MONE(M)CARD'!FV123=\"\",\"\",'[1]MONE(M)CARD'!FV123)","v":""},{"$f":"IF('[1]MONE(M)CARD'!GD123=\"\",\"\",'[1]MONE(M)CARD'!GD123)","v":"n.d."},{"$f":"IF('[1]MONE(M)CARD'!GE123=\"\",\"\",'[1]MONE(M)CARD'!GE123)","v":"n.d."},"n.d.","n.d.","n.d.","n.d.","n.d.","n.d.","n.d.","n.d.",null,"n.d.","n.d.","n.d.","n.d.","n.d.",{"$f":"IF('[1]MONE(M)CAPARD'!GS123=\"\",\"\",'[1]MONE(M)CAPARD'!GS123)","v":"n.d."},{"$f":"IF('[1]MONE(M)CARD'!HA123=\"\",\"\",'[1]MONE(M)CAPARD'!HA123)","v":"n.d."},{"$f":"IF('[1]MONE(M)CAPARD'!HB123=\"\",\"\",'[1]MONE(M)CAPARD'!HB123)","v":"n.d."},"n.d.","n.d.","n.d.","n.d.","n.d.","n.d.","n.d.","n.d.","n.d.","n.d.","n.d.","n.d.","n.d.","n.d.",{"$f":"IF('[1]MONE(M)CAPARD'!AS123=\"\",\"\",'[1]MONE(M)CAPARD'!AS123)","v":"n.d."},{"$f":"IF('[1]MONE(M)CAPARD'!AT123=\"\",\"\",'[1]MONE(M)CAPARD'!AT123)","v":"n.a."},{"$f":"IF('[1]MONE(M)CAPARD'!AU123=\"\",\"\",'[1]MONE(M)CAPARD'!AU123)","v":"n.d."},{"$f":"IF('[1]MONE(M)CAPARD'!AV123=\"\",\"\",'[1]MONE(M)CAPARD'!AV123)","v":"n.d."},{"$f":"IF('[1]MONE(M)CAPARD'!AW123=\"\",\"\",'[1]MONE(M)CAPARD'!AW123)","v":"n.a."},{"$f":"IF('[1]MONE(M)CAPARD'!AX123=\"\",\"\",'[1]MONE(M)CAPARD'!AX123)","v":"n.d."},{"$f":"IF('[1]MONE(M)CAPARD'!AY123=\"\",\"\",'[1]MONE(M)CAPARD'!AY123)","v":"n.a."},{"$f":"IF('[1]FISCAL(M)'!$K123=\"\",\"\",'[1]FISCAL(M)'!$K123)","v":"n.d."},{"$f":"IF('[1]FISCAL(M)'!$L123=\"\",\"\",'[1]FISCAL(M)'!$L123)","v":"n.d."},{"$f":"IF('[1]FISCAL(M)'!$AY123=\"\",\"\",'[1]FISCAL(M)'!$AY123)","v":"n.d."},{"$f":"IF('[1]FISCAL(M)'!$BI123=\"\",\"\",'[1]FISCAL(M)'!$BI123)","v":"n.d."},{"$f":"IF('[1]FISCAL(M)'!$BS123=\"\",\"\",'[1]FISCAL(M)'!$BS123)","v":"n.d."},{"$f":"IF('[1]FISCAL(M)'!$AZ123=\"\",\"\",'[1]FISCAL(M)'!$AZ123)","v":"n.d."},{"$f":"IF('[1]FISCAL(M)'!$BJ123=\"\",\"\",'[1]FISCAL(M)'!$BJ123)","v":"n.d."},{"$f":"IF('[1]FISCAL(M)'!$BT123=\"\",\"\",'[1]FISCAL(M)'!$BT123)","v":"n.d."},{"$f":"IF('[2]MONE(M)'!$AO123=\"\",\"\",'[2]MONE(M)'!$AO123)","v":"n.d."},{"$f":"IF('[3]MONE(M)'!$AO123=\"\",\"\",'[3]MONE(M)'!$AO123)","v":"n.d."},{"$f":"IF('[4]MONE(M)'!$AO123=\"\",\"\",'[4]MONE(M)'!$AO123)","v":"n.d."},{"$f":"IF('[5]MONE(M)'!$AO123=\"\",\"\",'[5]MONE(M)'!$AO123)","v":"n.d."},{"$f":"IF('[6]MONE(M)'!$AO123=\"\",\"\",'[6]MONE(M)'!$AO123)","v":"n.d."},{"$f":"IF('[7]MONE(M)'!$AO123=\"\",\"\",'[7]MONE(M)'!$AO123)","v":"n.d."},{"$f":"IF('[8]MONE(M)'!$AO123=\"\",\"\",'[8]MONE(M)'!$AO123)","v":"n.d."},"n.d.","n.d.","n.d.","n.d.","n.d.","n.d.","n.d.",{"$f":"IF('[1]FISCAL(M)'!$K123=\"\",\"\",'[1]FISCAL(M)'!$K123)","v":"n.d."},"n.d.","n.d.",{"$f":"IF('[1]FISCAL(M)'!$L123=\"\",\"\",'[1]FISCAL(M)'!$L123)","v":"n.d."},"n.d.","n.d.","n.d.","n.d.","n.d.","n.d.","n.d.","n.d.","n.d.","n.d.","n.d.","n.d.","n.d.","n.d.","n.d.","n.d.","n.d.","n.d."]
[1999,"julio","1999-julio",{"$f":"IF('[1]REAL IPC(M)'!$AL124=\"\",\"\",+'[1]REAL IPC(M)'!$AL124)","v":5.9380729240865016},{"$f":"IF('[1]REAL IPC(M)'!$BE124=\"\",\"\",+'[1]REAL IPC(M)'!$BE124)","v":7.4558890052282001},{"$f":"IF('[1]REAL IPC(M)'!$AM124=\"\",\"\",+'[1]REAL IPC(M)'!$AM124)","v":5.6246827374064612},{"$f":"IF('[1]REAL IPC(M)'!$BI124=\"\",\"\",+'[1]REAL IPC(M)'!$BI124)","v":6.9830301188519517},{"$f":"IF('[1]REAL IMAE(M)'!BJ124=\"\",\"\",'[1]REAL IMAE(M)'!BJ124)","v":"n.d."},{"$f":"IF('[1]REAL IMAE(M)'!BK124=\"\",\"\",'[1]REAL IMAE(M)'!BK124)","v":"n.d."},{"$f":"IF('[1]REAL IMAE(M)'!BN124=\"\",\"\",'[1]REAL IMAE(M)'!BN124)","v":"n.d."},{"$f":"IF('[1]REAL IMAE(M)'!BO124=\"\",\"\",'[1]REAL IMAE(M)'!BO124)","v":"n.d."},{"$f":"IF('[1]EXT RIN(M)'!$K124=\"\",\"\",'[1]EXT RIN(M)'!$K124)","v":"n.d."},"",{"$f":"IF('[1]EXT RIN(M)'!$L124=\"\",\"\",'[1]EXT RIN(M)'!$L124)","v":"n.d."},"",{"$f":"IF('[1]MONE(M)CARD'!EG124=\"\",\"\",'[1]MONE(M)CARD'!EG124)","v":"n.d."},{"$f":"IF('[1]MONE(M)CARD'!EK124=\"\",\"\",'[1]MONE(M)CARD'!EK124)","v":"n.d."},{"$f":"IF('[1]MONE(M)CARD'!EP124=\"\",\"\",'[1]MONE(M)CARD'!EP124)","v":"n.d."},{"$f":"IF('[1]MONE(M)CARD'!ES124=\"\",\"\",'[1]MONE(M)CARD'!ES124)","v":"n.d."},{"$f":"IF('[1]MONE(M)CARD'!EV124=\"\",\"\",'[1]MONE(M)CARD'!EV124)","v":"n.d."},{"$f":"IF('[1]MONE(M)CARD'!EZ124=\"\",\"\",'[1]MONE(M)CARD'!EZ124)","v":"n.d."},{"$f":"IF('[1]MONE(M)CAPARD'!FC124=\"\",\"\",'[1]MONE(M)CAPARD'!FC124)","v":"n.d."},{"$f":"IF('[1]MONE(M)CAPARD'!FG124=\"\",\"\",'[1]MONE(M)CAPARD'!FG124)","v":"n.d."},{"$f":"IF('[1]MONE(M)CAPARD'!FL124=\"\",\"\",'[1]MONE(M)CAPARD'!FL124)","v":"n.d."},{"$f":"IF('[1]MONE(M)CAPARD'!FO124=\"\",\"\",'[1]MONE(M)CAPARD'!FO124)","v":"n.d."},{"$f":"IF('[1]MONE(M)CAPARD'!FR124=\"\",\"\",'[1]MONE(M)CAPARD'!FR124)","v":"n.d."},{"$f":"IF('[1]MONE(M)CAPARD'!FV124=\"\",\"\",'[1]MONE(M)CAPARD'!FV124)","v":"n.d."},{"$f":"IF('[1]MONE(M)CARD'!FV124=\"\",\"\",'[1]MONE(M)CARD'!FV124)","v":""},{"$f":"IF('[1]MONE(M)CARD'!GD124=\"\",\"\",'[1]MONE(M)CARD'!GD124)","v":"n.d."},{"$f":"IF('[1]MONE(M)CARD'!GE124=\"\",\"\",'[1]MONE(M)CARD'!GE124)","v":"n.d."},"n.d.","n.d.","n.d.","n.d.","n.d.","n.d.","n.d.","n.d.",null,"n.d.","n.d.","n.d.","n.d.","n.d.",{"$f":"IF('[1]MONE(M)CAPARD'!GS124=\"\",\"\",'[1]MONE(M)CAPARD'!GS124)","v":"n.d."},{"$f":"IF('[1]MONE(M)CARD'!HA124=\"\",\"\",'[1]MONE(M)CAPARD'!HA124)","v":"n.d."},{"$f":"IF('[1]MONE(M)CAPARD'!HB124=\"\",\"\",'[1]MONE(M)CAPARD'!HB124)","v":"n.d."},"n.d.","n.d.","n.d.","n.d.","n.d.","n.d.","n.d.","n.d.","n.d.","n.d.","n.d.","n.d.","n.d.","n.d.",{"$f":"IF('[1]MONE(M)CAPARD'!AS124=\"\",\"\",'[1]MONE(M)CAPARD'!AS124)","v":"n.d."},{"$f":"IF('[1]MONE(M)CAPARD'!AT124=\"\",\"\",'[1]MONE(M)CAPARD'!AT124)","v":"n.a."},{"$f":"IF('[1]MONE(M)CAPARD'!AU124=\"\",\"\",'[1]MONE(M)CAPARD'!AU124)","v":"n.d."},{"$f":"IF('[1]MONE(M)CAPARD'!AV124=\"\",\"\",'[1]MONE(M)CAPARD'!AV124)","v":"n.d."},{"$f":"IF('[1]MONE(M)CAPARD'!AW124=\"\",\"\",'[1]MONE(M)CAPARD'!AW124)","v":"n.a."},{"$f":"IF('[1]MONE(M)CAPARD'!AX124=\"\",\"\",'[1]MONE(M)CAPARD'!AX124)","v":"n.d."},{"$f":"IF('[1]MONE(M)CAPARD'!AY124=\"\",\"\",'[1]MONE(M)CAPARD'!AY124)","v":"n.a."},{"$f":"IF('[1]FISCAL(M)'!$K124=\"\",\"\",'[1]FISCAL(M)'!$K124)","v":"n.d."},{"$f":"IF('[1]FISCAL(M)'!$L124=\"\",\"\",'[1]FISCAL(M)'!$L124)","v":"n.d."},{"$f":"IF('[1]FISCAL(M)'!$AY124=\"\",\"\",'[1]FISCAL(M)'!$AY124)","v":"n.d."},{"$f":"IF('[1]FISCAL(M)'!$BI124=\"\",\"\",'[1]FISCAL(M)'!$BI124)","v":"n.d."},{"$f":"IF('[1]FISCAL(M)'!$BS124=\"\",\"\",'[1]FISCAL(M)'!$BS124)","v":"n.d."},{"$f":"IF('[1]FISCAL(M)'!$AZ124=\"\",\"\",'[1]FISCAL(M)'!$AZ124)","v":"n.d."},{"$f":"IF('[1]FISCAL(M)'!$BJ124=\"\",\"\",'[1]FISCAL(M)'!$BJ124)","v":"n.d."},{"$f":"IF('[1]FISCAL(M)'!$BT124=\"\",\"\",'[1]FISCAL(M)'!$BT124)","v":"n.d."},{"$f":"IF('[2]MONE(M)'!$AO124=\"\",\"\",'[2]MONE(M)'!$AO124)","v":"n.d."},{"$f":"IF('[3]MONE(M)'!$AO124=\"\",\"\",'[3]MONE(M)'!$AO124)","v":"n.d."},{"$f":"IF('[4]MONE(M)'!$AO124=\"\",\"\",'[4]MONE(M)'!$AO124)","v":"n.d."},{"$f":"IF('[5]MONE(M)'!$AO124=\"\",\"\",'[5]MONE(M)'!$AO124)","v":"n.d."},{"$f":"IF('[6]MONE(M)'!$AO124=\"\",\"\",'[6]MONE(M)'!$AO124)","v":"n.d."},{"$f":"IF('[7]MONE(M)'!$AO124=\"\",\"\",'[7]MONE(M)'!$AO124)","v":"n.d."},{"$f":"IF('[8]MONE(M)'!$AO124=\"\",\"\",'[8]MONE(M)'!$AO124)","v":"n.d."},"n.d.","n.d.","n.d.","n.d.","n.d.","n.d.","n.d.",{"$f":"IF('[1]FISCAL(M)'!$K124=\"\",\"\",'[1]FISCAL(M)'!$K124)","v":"n.d."},"n.d.","n.d.",{"$f":"IF('[1]FISCAL(M)'!$L124=\"\",\"\",'[1]FISCAL(M)'!$L124)","v":"n.d."},"n.d.","n.d.","n.d.","n.d.","n.d.","n.d.","n.d.","n.d.","n.d.","n.d.","n.d.","n.d.","n.d.","n.d.","n.d.","n.d.","n.d.","n.d."]
[1999,"agosto","1999-agosto",{"$f":"IF('[1]REAL IPC(M)'!$AL125=\"\",\"\",+'[1]REAL IPC(M)'!$AL125)","v":6.2749724309617783},{"$f":"IF('[1]REAL IPC(M)'!$BE125=\"\",\"\",+'[1]REAL IPC(M)'!$BE125)","v":7.4379229797182589},{"$f":"IF('[1]REAL IPC(M)'!$AM125=\"\",\"\",+'[1]REAL IPC(M)'!$AM125)","v":5.9443442487379317},{"$f":"IF('[1]REAL IPC(M)'!$BI125=\"\",\"\",+'[1]REAL IPC(M)'!$BI125)","v":6.9708458032577747},{"$f":"IF('[1]REAL IMAE(M)'!BJ125=\"\",\"\",'[1]REAL IMAE(M)'!BJ125)","v":"n.d."},{"$f":"IF('[1]REAL IMAE(M)'!BK125=\"\",\"\",'[1]REAL IMAE(M)'!BK125)","v":"n.d."},{"$f":"IF('[1]REAL IMAE(M)'!BN125=\"\",\"\",'[1]REAL IMAE(M)'!BN125)","v":"n.d."},{"$f":"IF('[1]REAL IMAE(M)'!BO125=\"\",\"\",'[1]REAL IMAE(M)'!BO125)","v":"n.d."},{"$f":"IF('[1]EXT RIN(M)'!$K125=\"\",\"\",'[1]EXT RIN(M)'!$K125)","v":"n.d."},"",{"$f":"IF('[1]EXT RIN(M)'!$L125=\"\",\"\",'[1]EXT RIN(M)'!$L125)","v":"n.d."},"",{"$f":"IF('[1]MONE(M)CARD'!EG125=\"\",\"\",'[1]MONE(M)CARD'!EG125)","v":"n.d."},{"$f":"IF('[1]MONE(M)CARD'!EK125=\"\",\"\",'[1]MONE(M)CARD'!EK125)","v":"n.d."},{"$f":"IF('[1]MONE(M)CARD'!EP125=\"\",\"\",'[1]MONE(M)CARD'!EP125)","v":"n.d."},{"$f":"IF('[1]MONE(M)CARD'!ES125=\"\",\"\",'[1]MONE(M)CARD'!ES125)","v":"n.d."},{"$f":"IF('[1]MONE(M)CARD'!EV125=\"\",\"\",'[1]MONE(M)CARD'!EV125)","v":"n.d."},{"$f":"IF('[1]MONE(M)CARD'!EZ125=\"\",\"\",'[1]MONE(M)CARD'!EZ125)","v":"n.d."},{"$f":"IF('[1]MONE(M)CAPARD'!FC125=\"\",\"\",'[1]MONE(M)CAPARD'!FC125)","v":"n.d."},{"$f":"IF('[1]MONE(M)CAPARD'!FG125=\"\",\"\",'[1]MONE(M)CAPARD'!FG125)","v":"n.d."},{"$f":"IF('[1]MONE(M)CAPARD'!FL125=\"\",\"\",'[1]MONE(M)CAPARD'!FL125)","v":"n.d."},{"$f":"IF('[1]MONE(M)CAPARD'!FO125=\"\",\"\",'[1]MONE(M)CAPARD'!FO125)","v":"n.d."},{"$f":"IF('[1]MONE(M)CAPARD'!FR125=\"\",\"\",'[1]MONE(M)CAPARD'!FR125)","v":"n.d."},{"$f":"IF('[1]MONE(M)CAPARD'!FV125=\"\",\"\",'[1]MONE(M)CAPARD'!FV125)","v":"n.d."},{"$f":"IF('[1]MONE(M)CARD'!FV125=\"\",\"\",'[1]MONE(M)CARD'!FV125)","v":""},{"$f":"IF('[1]MONE(M)CARD'!GD125=\"\",\"\",'[1]MONE(M)CARD'!GD125)","v":"n.d."},{"$f":"IF('[1]MONE(M)CARD'!GE125=\"\",\"\",'[1]MONE(M)CARD'!GE125)","v":"n.d."},"n.d.","n.d.","n.d.","n.d.","n.d.","n.d.","n.d.","n.d.",null,"n.d.","n.d.","n.d.","n.d.","n.d.",{"$f":"IF('[1]MONE(M)CAPARD'!GS125=\"\",\"\",'[1]MONE(M)CAPARD'!GS125)","v":"n.d."},{"$f":"IF('[1]MONE(M)CARD'!HA125=\"\",\"\",'[1]MONE(M)CAPARD'!HA125)","v":"n.d."},{"$f":"IF('[1]MONE(M)CAPARD'!HB125=\"\",\"\",'[1]MONE(M)CAPARD'!HB125)","v":"n.d."},"n.d.","n.d.","n.d.","n.d.","n.d.","n.d.","n.d.","n.d.","n.d.","n.d.","n.d.","n.d.","n.d.","n.d.",{"$f":"IF('[1]MONE(M)CAPARD'!AS125=\"\",\"\",'[1]MONE(M)CAPARD'!AS125)","v":"n.d."},{"$f":"IF('[1]MONE(M)CAPARD'!AT125=\"\",\"\",'[1]MONE(M)CAPARD'!AT125)","v":"n.a."},{"$f":"IF('[1]MONE(M)CAPARD'!AU125=\"\",\"\",'[1]MONE(M)CAPARD'!AU125)","v":"n.d."},{"$f":"IF('[1]MONE(M)CAPARD'!AV125=\"\",\"\",'[1]MONE(M)CAPARD'!AV125)","v":"n.d."},{"$f":"IF('[1]MONE(M)CAPARD'!AW125=\"\",\"\",'[1]MONE(M)CAPARD'!AW125)","v":"n.a."},{"$f":"IF('[1]MONE(M)CAPARD'!AX125=\"\",\"\",'[1]MONE(M)CAPARD'!AX125)","v":"n.d."},{"$f":"IF('[1]MONE(M)CAPARD'!AY125=\"\",\"\",'[1]MONE(M)CAPARD'!AY125)","v":"n.a."},{"$f":"IF('[1]FISCAL(M)'!$K125=\"\",\"\",'[1]FISCAL(M)'!$K125)","v":"n.d."},{"$f":"IF('[1]FISCAL(M)'!$L125=\"\",\"\",'[1]FISCAL(M)'!$L125)","v":"n.d."},{"$f":"IF('[1]FISCAL(M)'!$AY125=\"\",\"\",'[1]FISCAL(M)'!$AY125)","v":"n.d."},{"$f":"IF('[1]FISCAL(M)'!$BI125=\"\",\"\",'[1]FISCAL(M)'!$BI125)","v":"n.d."},{"$f":"IF('[1]FISCAL(M)'!$BS125=\"\",\"\",'[1]FISCAL(M)'!$BS125)","v":"n.d."},{"$f":"IF('[1]FISCAL(M)'!$AZ125=\"\",\"\",'[1]FISCAL(M)'!$AZ125)","v":"n.d."},{"$f":"IF('[1]FISCAL(M)'!$BJ125=\"\",\"\",'[1]FISCAL(M)'!$BJ125)","v":"n.d."},{"$f":"IF('[1]FISCAL(M)'!$BT125=\"\",\"\",'[1]FISCAL(M)'!$BT125)","v":"n.d."},{"$f":"IF('[2]MONE(M)'!$AO125=\"\",\"\",'[2]MONE(M)'!$AO125)","v":"n.d."},{"$f":"IF('[3]MONE(M)'!$AO125=\"\",\"\",'[3]MONE(M)'!$AO125)","v":"n.d."},{"$f":"IF('[4]MONE(M)'!$AO125=\"\",\"\",'[4]MONE(M)'!$AO125)","v":"n.d."},{"$f":"IF('[5]MONE(M)'!$AO125=\"\",\"\",'[5]MONE(M)'!$AO125)","v":"n.d."},{"$f":"IF('[6]MONE(M)'!$AO125=\"\",\"\",'[6]MONE(M)'!$AO125)","v":"n.d."},{"$f":"IF('[7]MONE(M)'!$AO125=\"\",\"\",'[7]MONE(M)'!$AO125)","v":"n.d."},{"$f":"IF('[8]MONE(M)'!$AO125=\"\",\"\",'[8]MONE(M)'!$AO125)","v":"n.d."},"n.d.","n.d.","n.d.","n.d.","n.d.","n.d.","n.d.",{"$f":"IF('[1]FISCAL(M)'!$K125=\"\",\"\",'[1]FISCAL(M)'!$K125)","v":"n.d."},"n.d.","n.d.",{"$f":"IF('[1]FISCAL(M)'!$L125=\"\",\"\",'[1]FISCAL(M)'!$L125)","v":"n.d."},"n.d.","n.d.","n.d.","n.d.","n.d.","n.d.","n.d.","n.d.","n.d.","n.d.","n.d.","n.d.","n.d.","n.d.","n.d.","n.d.","n.d.","n.d."]
[1999,"septiembre","1999-septiembre",{"$f":"IF('[1]REAL IPC(M)'!$AL126=\"\",\"\",+'[1]REAL IPC(M)'!$AL126)","v":6.918695213035031},{"$f":"IF('[1]REAL IPC(M)'!$BE126=\"\",\"\",+'[1]REAL IPC(M)'!$BE126)","v":7.4258784481524787},{"$f":"IF('[1]REAL IPC(M)'!$AM126=\"\",\"\",+'[1]REAL IPC(M)'!$AM126)","v":6.4959245279801348},{"$f":"IF('[1]REAL IPC(M)'!$BI126=\"\",\"\",+'[1]REAL IPC(M)'!$BI126)","v":6.9637902109700223},{"$f":"IF('[1]REAL IMAE(M)'!BJ126=\"\",\"\",'[1]REAL IMAE(M)'!BJ126)","v":"n.d."},{"$f":"IF('[1]REAL IMAE(M)'!BK126=\"\",\"\",'[1]REAL IMAE(M)'!BK126)","v":"n.d."},{"$f":"IF('[1]REAL IMAE(M)'!BN126=\"\",\"\",'[1]REAL IMAE(M)'!BN126)","v":"n.d."},{"$f":"IF('[1]REAL IMAE(M)'!BO126=\"\",\"\",'[1]REAL IMAE(M)'!BO126)","v":"n.d."},{"$f":"IF('[1]EXT RIN(M)'!$K126=\"\",\"\",'[1]EXT RIN(M)'!$K126)","v":"n.d."},"",{"$f":"IF('[1]EXT RIN(M)'!$L126=\"\",\"\",'[1]EXT RIN(M)'!$L126)","v":"n.d."},"",{"$f":"IF('[1]MONE(M)CARD'!EG126=\"\",\"\",'[1]MONE(M)CARD'!EG126)","v":"n.d."},{"$f":"IF('[1]MONE(M)CARD'!EK126=\"\",\"\",'[1]MONE(M)CARD'!EK126)","v":"n.d."},{"$f":"IF('[1]MONE(M)CARD'!EP126=\"\",\"\",'[1]MONE(M)CARD'!EP126)","v":"n.d."},{"$f":"IF('[1]MONE(M)CARD'!ES126=\"\",\"\",'[1]MONE(M)CARD'!ES126)","v":"n.d."},{"$f":"IF('[1]MONE(M)CARD'!EV126=\"\",\"\",'[1]MONE(M)CARD'!EV126)","v":"n.d."},{"$f":"IF('[1]MONE(M)CARD'!EZ126=\"\",\"\",'[1]MONE(M)CARD'!EZ126)","v":"n.d."},{"$f":"IF('[1]MONE(M)CAPARD'!FC126=\"\",\"\",'[1]MONE(M)CAPARD'!FC126)","v":"n.d."},{"$f":"IF('[1]MONE(M)CAPARD'!FG126=\"\",\"\",'[1]MONE(M)CAPARD'!FG126)","v":"n.d."},{"$f":"IF('[1]MONE(M)CAPARD'!FL126=\"\",\"\",'[1]MONE(M)CAPARD'!FL126)","v":"n.d."},{"$f":"IF('[1]MONE(M)CAPARD'!FO126=\"\",\"\",'[1]MONE(M)CAPARD'!FO126)","v":"n.d."},{"$f":"IF('[1]MONE(M)CAPARD'!FR126=\"\",\"\",'[1]MONE(M)CAPARD'!FR126)","v":"n.d."},{"$f":"IF('[1]MONE(M)CAPARD'!FV126=\"\",\"\",'[1]MONE(M)CAPARD'!FV126)","v":"n.d."},{"$f":"IF('[1]MONE(M)CARD'!FV126=\"\",\"\",'[1]MONE(M)CARD'!FV126)","v":""},{"$f":"IF('[1]MONE(M)CARD'!GD126=\"\",\"\",'[1]MONE(M)CARD'!GD126)","v":"n.d."},{"$f":"IF('[1]MONE(M)CARD'!GE126=\"\",\"\",'[1]MONE(M)CARD'!GE126)","v":"n.d."},"n.d.","n.d.","n.d.","n.d.","n.d.","n.d.","n.d.","n.d.",null,"n.d.","n.d.","n.d.","n.d.","n.d.",{"$f":"IF('[1]MONE(M)CAPARD'!GS126=\"\",\"\",'[1]MONE(M)CAPARD'!GS126)","v":"n.d."},{"$f":"IF('[1]MONE(M)CARD'!HA126=\"\",\"\",'[1]MONE(M)CAPARD'!HA126)","v":"n.d."},{"$f":"IF('[1]MONE(M)CAPARD'!HB126=\"\",\"\",'[1]MONE(M)CAPARD'!HB126)","v":"n.d."},"n.d.","n.d.","n.d.","n.d.","n.d.","n.d.","n.d.","n.d.","n.d.","n.d.","n.d.","n.d.","n.d.","n.d.",{"$f":"IF('[1]MONE(M)CAPARD'!AS126=\"\",\"\",'[1]MONE(M)CAPARD'!AS126)","v":"n.d."},{"$f":"IF('[1]MONE(M)CAPARD'!AT126=\"\",\"\",'[1]MONE(M)CAPARD'!AT126)","v":"n.a."},{"$f":"IF('[1]MONE(M)CAPARD'!AU126=\"\",\"\",'[1]MONE(M)CAPARD'!AU126)","v":"n.d."},{"$f":"IF('[1]MONE(M)CAPARD'!AV126=\"\",\"\",'[1]MONE(M)CAPARD'!AV126)","v":"n.d."},{"$f":"IF('[1]MONE(M)CAPARD'!AW126=\"\",\"\",'[1]MONE(M)CAPARD'!AW126)","v":"n.a."},{"$f":"IF('[1]MONE(M)CAPARD'!AX126=\"\",\"\",'[1]MONE(M)CAPARD'!AX126)","v":"n.d."},{"$f":"IF('[1]MONE(M)CAPARD'!AY126=\"\",\"\",'[1]MONE(M)CAPARD'!AY126)","v":"n.a."},{"$f":"IF('[1]FISCAL(M)'!$K126=\"\",\"\",'[1]FISCAL(M)'!$K126)","v":"n.d."},{"$f":"IF('[1]FISCAL(M)'!$L126=\"\",\"\",'[1]FISCAL(M)'!$L126)","v":"n.d."},{"$f":"IF('[1]FISCAL(M)'!$AY126=\"\",\"\",'[1]FISCAL(M)'!$AY126)","v":"n.d."},{"$f":"IF('[1]FISCAL(M)'!$BI126=\"\",\"\",'[1]FISCAL(M)'!$BI126)","v":"n.d."},{"$f":"IF('[1]FISCAL(M)'!$BS126=\"\",\"\",'[1]FISCAL(M)'!$BS126)","v":"n.d."},{"$f":"IF('[1]FISCAL(M)'!$AZ126=\"\",\"\",'[1]FISCAL(M)'!$AZ126)","v":"n.d."},{"$f":"IF('[1]FISCAL(M)'!$BJ126=\"\",\"\",'[1]FISCAL(M)'!$BJ126)","v":"n.d."},{"$f":"IF('[1]FISCAL(M)'!$BT126=\"\",\"\",'[1]FISCAL(M)'!$BT126)","v":"n.d."},{"$f":"IF('[2]MONE(M)'!$AO126=\"\",\"\",'[2]MONE(M)'!$AO126)","v":"n.d."},{"$f":"IF('[3]MONE(M)'!$AO126=\"\",\"\",'[3]MONE(M)'!$AO126)","v":"n.d."},{"$f":"IF('[4]MONE(M)'!$AO126=\"\",\"\",'[4]MONE(M)'!$AO126)","v":"n.d."},{"$f":"IF('[5]MONE(M)'!$AO126=\"\",\"\",'[5]MONE(M)'!$AO126)","v":"n.d."},{"$f":"IF('[6]MONE(M)'!$AO126=\"\",\"\",'[6]MONE(M)'!$AO126)","v":"n.d."},{"$f":"IF('[7]MONE(M)'!$AO126=\"\",\"\",'[7]MONE(M)'!$AO126)","v":"n.d."},{"$f":"IF('[8]MONE(M)'!$AO126=\"\",\"\",'[8]MONE(M)'!$AO126)","v":"n.d."},"n.d.","n.d.","n.d.","n.d.","n.d.","n.d.","n.d.",{"$f":"IF('[1]FISCAL(M)'!$K126=\"\",\"\",'[1]FISCAL(M)'!$K126)","v":"n.d."},"n.d.","n.d.",{"$f":"IF('[1]FISCAL(M)'!$L126=\"\",\"\",'[1]FISCAL(M)'!$L126)","v":"n.d."},"n.d.","n.d.","n.d.","n.d.","n.d.","n.d.","n.d.","n.d.","n.d.","n.d.","n.d.","n.d.","n.d.","n.d.","n.d.","n.d.","n.d.","n.d."]
[1999,"octubre","1999-octubre",{"$f":"IF('[1]REAL IPC(M)'!$AL127=\"\",\"\",+'[1]REAL IPC(M)'!$AL127)","v":7.766232439586318},{"$f":"IF('[1]REAL IPC(M)'!$BE127=\"\",\"\",+'[1]REAL IPC(M)'!$BE127)","v":7.4194544511952953},{"$f":"IF('[1]REAL IPC(M)'!$AM127=\"\",\"\",+'[1]REAL IPC(M)'!$AM127)","v":7.2761369608556503},{"$f":"IF('[1]REAL IPC(M)'!$BI127=\"\",\"\",+'[1]REAL IPC(M)'!$BI127)","v":6.9615217824156916},{"$f":"IF('[1]REAL IMAE(M)'!BJ127=\"\",\"\",'[1]REAL IMAE(M)'!BJ127)","v":"n.d."},{"$f":"IF('[1]REAL IMAE(M)'!BK127=\"\",\"\",'[1]REAL IMAE(M)'!BK127)","v":"n.d."},{"$f":"IF('[1]REAL IMAE(M)'!BN127=\"\",\"\",'[1]REAL IMAE(M)'!BN127)","v":"n.d."},{"$f":"IF('[1]REAL IMAE(M)'!BO127=\"\",\"\",'[1]REAL IMAE(M)'!BO127)","v":"n.d."},{"$f":"IF('[1]EXT RIN(M)'!$K127=\"\",\"\",'[1]EXT RIN(M)'!$K127)","v":"n.d."},"",{"$f":"IF('[1]EXT RIN(M)'!$L127=\"\",\"\",'[1]EXT RIN(M)'!$L127)","v":"n.d."},"",{"$f":"IF('[1]MONE(M)CARD'!EG127=\"\",\"\",'[1]MONE(M)CARD'!EG127)","v":"n.d."},{"$f":"IF('[1]MONE(M)CARD'!EK127=\"\",\"\",'[1]MONE(M)CARD'!EK127)","v":"n.d."},{"$f":"IF('[1]MONE(M)CARD'!EP127=\"\",\"\",'[1]MONE(M)CARD'!EP127)","v":"n.d."},{"$f":"IF('[1]MONE(M)CARD'!ES127=\"\",\"\",'[1]MONE(M)CARD'!ES127)","v":"n.d."},{"$f":"IF('[1]MONE(M)CARD'!EV127=\"\",\"\",'[1]MONE(M)CARD'!EV127)","v":"n.d."},{"$f":"IF('[1]MONE(M)CARD'!EZ127=\"\",\"\",'[1]MONE(M)CARD'!EZ127)","v":"n.d."},{"$f":"IF('[1]MONE(M)CAPARD'!FC127=\"\",\"\",'[1]MONE(M)CAPARD'!FC127)","v":"n.d."},{"$f":"IF('[1]MONE(M)CAPARD'!FG127=\"\",\"\",'[1]MONE(M)CAPARD'!FG127)","v":"n.d."},{"$f":"IF('[1]MONE(M)CAPARD'!FL127=\"\",\"\",'[1]MONE(M)CAPARD'!FL127)","v":"n.d."},{"$f":"IF('[1]MONE(M)CAPARD'!FO127=\"\",\"\",'[1]MONE(M)CAPARD'!FO127)","v":"n.d."},{"$f":"IF('[1]MONE(M)CAPARD'!FR127=\"\",\"\",'[1]MONE(M)CAPARD'!FR127)","v":"n.d."},{"$f":"IF('[1]MONE(M)CAPARD'!FV127=\"\",\"\",'[1]MONE(M)CAPARD'!FV127)","v":"n.d."},{"$f":"IF('[1]MONE(M)CARD'!FV127=\"\",\"\",'[1]MONE(M)CARD'!FV127)","v":""},{"$f":"IF('[1]MONE(M)CARD'!GD127=\"\",\"\",'[1]MONE(M)CARD'!GD127)","v":"n.d."},{"$f":"IF('[1]MONE(M)CARD'!GE127=\"\",\"\",'[1]MONE(M)CARD'!GE127)","v":"n.d."},"n.d.","n.d.","n.d.","n.d.","n.d.","n.d.","n.d.","n.d.",null,"n.d.","n.d.","n.d.","n.d.","n.d.",{"$f":"IF('[1]MONE(M)CAPARD'!GS127=\"\",\"\",'[1]MONE(M)CAPARD'!GS127)","v":"n.d."},{"$f":"IF('[1]MONE(M)CARD'!HA127=\"\",\"\",'[1]MONE(M)CAPARD'!HA127)","v":"n.d."},{"$f":"IF('[1]MONE(M)CAPARD'!HB127=\"\",\"\",'[1]MONE(M)CAPARD'!HB127)","v":"n.d."},"n.d.","n.d.","n.d.","n.d.","n.d.","n.d.","n.d.","n.d.","n.d.","n.d.","n.d.","n.d.","n.d.","n.d.",{"$f":"IF('[1]MONE(M)CAPARD'!AS127=\"\",\"\",'[1]MONE(M)CAPARD'!AS127)","v":"n.d."},{"$f":"IF('[1]MONE(M)CAPARD'!AT127=\"\",\"\",'[1]MONE(M)CAPARD'!AT127)","v":"n.a."},{"$f":"IF('[1]MONE(M)CAPARD'!AU127=\"\",\"\",'[1]MONE(M)CAPARD'!AU127)","v":"n.d."},{"$f":"IF('[1]MONE(M)CAPARD'!AV127=\"\",\"\",'[1]MONE(M)CAPARD'!AV127)","v":"n.d."},{"$f":"IF('[1]MONE(M)CAPARD'!AW127=\"\",\"\",'[1]MONE(M)CAPARD'!AW127)","v":"n.a."},{"$f":"IF('[1]MONE(M)CAPARD'!AX127=\"\",\"\",'[1]MONE(M)CAPARD'!AX127)","v":"n.d."},{"$f":"IF('[1]MONE(M)CAPARD'!AY127=\"\",\"\",'[1]MONE(M)CAPARD'!AY127)","v":"n.a."},{"$f":"IF('[1]FISCAL(M)'!$K127=\"\",\"\",'[1]FISCAL(M)'!$K127)","v":"n.d."},{"$f":"IF('[1]FISCAL(M)'!$L127=\"\",\"\",'[1]FISCAL(M)'!$L127)","v":"n.d."},{"$f":"IF('[1]FISCAL(M)'!$AY127=\"\",\"\",'[1]FISCAL(M)'!$AY127)","v":"n.d."},{"$f":"IF('[1]FISCAL(M)'!$BI127=\"\",\"\",'[1]FISCAL(M)'!$BI127)","v":"n.d."},{"$f":"IF('[1]FISCAL(M)'!$BS127=\"\",\"\",'[1]FISCAL(M)'!$BS127)","v":"n.d."},{"$f":"IF('[1]FISCAL(M)'!$AZ127=\"\",\"\",'[1]FISCAL(M)'!$AZ127)","v":"n.d."},{"$f":"IF('[1]FISCAL(M)'!$BJ127=\"\",\"\",'[1]FISCAL(M)'!$BJ127)","v":"n.d."},{"$f":"IF('[1]FISCAL(M)'!$BT127=\"\",\"\",'[1]FISCAL(M)'!$BT127)","v":"n.d."},{"$f":"IF('[2]MONE(M)'!$AO127=\"\",\"\",'[2]MONE(M)'!$AO127)","v":"n.d."},{"$f":"IF('[3]MONE(M)'!$AO127=\"\",\"\",'[3]MONE(M)'!$AO127)","v":"n.d."},{"$f":"IF('[4]MONE(M)'!$AO127=\"\",\"\",'[4]MONE(M)'!$AO127)","v":"n.d."},{"$f":"IF('[5]MONE(M)'!$AO127=\"\",\"\",'[5]MONE(M)'!$AO127)","v":"n.d."},{"$f":"IF('[6]MONE(M)'!$AO127=\"\",\"\",'[6]MONE(M)'!$AO127)","v":"n.d."},{"$f":"IF('[7]MONE(M)'!$AO127=\"\",\"\",'[7]MONE(M)'!$AO127)","v":"n.d."},{"$f":"IF('[8]MONE(M)'!$AO127=\"\",\"\",'[8]MONE(M)'!$AO127)","v":"n.d."},"n.d.","n.d.","n.d.","n.d.","n.d.","n.d.","n.d.",{"$f":"IF('[1]FISCAL(M)'!$K127=\"\",\"\",'[1]FISCAL(M)'!$K127)","v":"n.d."},"n.d.","n.d.",{"$f":"IF('[1]FISCAL(M)'!$L127=\"\",\"\",'[1]FISCAL(M)'!$L127)","v":"n.d."},"n.d.","n.d.","n.d.","n.d.","n.d.","n.d.","n.d.","n.d.","n.d.","n.d.","n.d.","n.d.","n.d.","n.d.","n.d.","n.d.","n.d.","n.d."]
[1999,"noviembre","1999-noviembre",{"$f":"IF('[1]REAL IPC(M)'!$AL128=\"\",\"\",+'[1]REAL IPC(M)'!$AL128)","v":6.2906428145392157},{"$f":"IF('[1]REAL IPC(M)'!$BE128=\"\",\"\",+'[1]REAL IPC(M)'!$BE128)","v":7.418328023892129},{"$f":"IF('[1]REAL IPC(M)'!$AM128=\"\",\"\",+'[1]REAL IPC(M)'!$AM128)","v":5.9338730501815151},{"$f":"IF('[1]REAL IPC(M)'!$BI128=\"\",\"\",+'[1]REAL IPC(M)'!$BI128)","v":6.9636748747315291},{"$f":"IF('[1]REAL IMAE(M)'!BJ128=\"\",\"\",'[1]REAL IMAE(M)'!BJ128)","v":"n.d."},{"$f":"IF('[1]REAL IMAE(M)'!BK128=\"\",\"\",'[1]REAL IMAE(M)'!BK128)","v":"n.d."},{"$f":"IF('[1]REAL IMAE(M)'!BN128=\"\",\"\",'[1]REAL IMAE(M)'!BN128)","v":"n.d."},{"$f":"IF('[1]REAL IMAE(M)'!BO128=\"\",\"\",'[1]REAL IMAE(M)'!BO128)","v":"n.d."},{"$f":"IF('[1]EXT RIN(M)'!$K128=\"\",\"\",'[1]EXT RIN(M)'!$K128)","v":"n.d."},"",{"$f":"IF('[1]EXT RIN(M)'!$L128=\"\",\"\",'[1]EXT RIN(M)'!$L128)","v":"n.d."},"",{"$f":"IF('[1]MONE(M)CARD'!EG128=\"\",\"\",'[1]MONE(M)CARD'!EG128)","v":"n.d."},{"$f":"IF('[1]MONE(M)CARD'!EK128=\"\",\"\",'[1]MONE(M)CARD'!EK128)","v":"n.d."},{"$f":"IF('[1]MONE(M)CARD'!EP128=\"\",\"\",'[1]MONE(M)CARD'!EP128)","v":"n.d."},{"$f":"IF('[1]MONE(M)CARD'!ES128=\"\",\"\",'[1]MONE(M)CARD'!ES128)","v":"n.d."},{"$f":"IF('[1]MONE(M)CARD'!EV128=\"\",\"\",'[1]MONE(M)CARD'!EV128)","v":"n.d."},{"$f":"IF('[1]MONE(M)CARD'!EZ128=\"\",\"\",'[1]MONE(M)CARD'!EZ128)","v":"n.d."},{"$f":"IF('[1]MONE(M)CAPARD'!FC128=\"\",\"\",'[1]MONE(M)CAPARD'!FC128)","v":"n.d."},{"$f":"IF('[1]MONE(M)CAPARD'!FG128=\"\",\"\",'[1]MONE(M)CAPARD'!FG128)","v":"n.d."},{"$f":"IF('[1]MONE(M)CAPARD'!FL128=\"\",\"\",'[1]MONE(M)CAPARD'!FL128)","v":"n.d."},{"$f":"IF('[1]MONE(M)CAPARD'!FO128=\"\",\"\",'[1]MONE(M)CAPARD'!FO128)","v":"n.d."},{"$f":"IF('[1]MONE(M)CAPARD'!FR128=\"\",\"\",'[1]MONE(M)CAPARD'!FR128)","v":"n.d."},{"$f":"IF('[1]MONE(M)CAPARD'!FV128=\"\",\"\",'[1]MONE(M)CAPARD'!FV128)","v":"n.d."},{"$f":"IF('[1]MONE(M)CARD'!FV128=\"\",\"\",'[1]MONE(M)CARD'!FV128)","v":""},{"$f":"IF('[1]MONE(M)CARD'!GD128=\"\",\"\",'[1]MONE(M)CARD'!GD128)","v":"n.d."},{"$f":"IF('[1]MONE(M)CARD'!GE128=\"\",\"\",'[1]MONE(M)CARD'!GE128)","v":"n.d."},"n.d.","n.d.","n.d.","n.d.","n.d.","n.d.","n.d.","n.d.",null,"n.d.","n.d.","n.d.","n.d.","n.d.",{"$f":"IF('[1]MONE(M)CAPARD'!GS128=\"\",\"\",'[1]MONE(M)CAPARD'!GS128)","v":"n.d."},{"$f":"IF('[1]MONE(M)CARD'!HA128=\"\",\"\",'[1]MONE(M)CAPARD'!HA128)","v":"n.d."},{"$f":"IF('[1]MONE(M)CAPARD'!HB128=\"\",\"\",'[1]MONE(M)CAPARD'!HB128)","v":"n.d."},"n.d.","n.d.","n.d.","n.d.","n.d.","n.d.","n.d.","n.d.","n.d.","n.d.","n.d.","n.d.","n.d.","n.d.",{"$f":"IF('[1]MONE(M)CAPARD'!AS128=\"\",\"\",'[1]MONE(M)CAPARD'!AS128)","v":"n.d."},{"$f":"IF('[1]MONE(M)CAPARD'!AT128=\"\",\"\",'[1]MONE(M)CAPARD'!AT128)","v":"n.a."},{"$f":"IF('[1]MONE(M)CAPARD'!AU128=\"\",\"\",'[1]MONE(M)CAPARD'!AU128)","v":"n.d."},{"$f":"IF('[1]MONE(M)CAPARD'!AV128=\"\",\"\",'[1]MONE(M)CAPARD'!AV128)","v":"n.d."},{"$f":"IF('[1]MONE(M)CAPARD'!AW128=\"\",\"\",'[1]MONE(M)CAPARD'!AW128)","v":"n.a."},{"$f":"IF('[1]MONE(M)CAPARD'!AX128=\"\",\"\",'[1]MONE(M)CAPARD'!AX128)","v":"n.d."},{"$f":"IF('[1]MONE(M)CAPARD'!AY128=\"\",\"\",'[1]MONE(M)CAPARD'!AY128)","v":"n.a."},{"$f":"IF('[1]FISCAL(M)'!$K128=\"\",\"\",'[1]FISCAL(M)'!$K128)","v":"n.d."},{"$f":"IF('[1]FISCAL(M)'!$L128=\"\",\"\",'[1]FISCAL(M)'!$L128)","v":"n.d."},{"$f":"IF('[1]FISCAL(M)'!$AY128=\"\",\"\",'[1]FISCAL(M)'!$AY128)","v":"n.d."},{"$f":"IF('[1]FISCAL(M)'!$BI128=\"\",\"\",'[1]FISCAL(M)'!$BI128)","v":"n.d."},{"$f":"IF('[1]FISCAL(M)'!$BS128=\"\",\"\",'[1]FISCAL(M)'!$BS128)","v":"n.d."},{"$f":"IF('[1]FISCAL(M)'!$AZ128=\"\",\"\",'[1]FISCAL(M)'!$AZ128)","v":"n.d."},{"$f":"IF('[1]FISCAL(M)'!$BJ128=\"\",\"\",'[1]FISCAL(M)'!$BJ128)","v":"n.d."},{"$f":"IF('[1]FISCAL(M)'!$BT128=\"\",\"\",'[1]FISCAL(M)'!$BT128)","v":"n.d."},{"$f":"IF('[2]MONE(M)'!$AO128=\"\",\"\",'[2]MONE(M)'!$AO128)","v":"n.d."},{"$f":"IF('[3]MONE(M)'!$AO128=\"\",\"\",'[3]MONE(M)'!$AO128)","v":"n.d."},{"$f":"IF('[4]MONE(M)'!$AO128=\"\",\"\",'[4]MONE(M)'!$AO128)","v":"n.d."},{"$f":"IF('[5]MONE(M)'!$AO128=\"\",\"\",'[5]MONE(M)'!$AO128)","v":"n.d."},{"$f":"IF('[6]MONE(M)'!$AO128=\"\",\"\",'[6]MONE(M)'!$AO128)","v":"n.d."},{"$f":"IF('[7]MONE(M)'!$AO128=\"\",\"\",'[7]MONE(M)'!$AO128)","v":"n.d."},{"$f":"IF('[8]MONE(M)'!$AO128=\"\",\"\",'[8]MONE(M)'!$AO128)","v":"n.d."},"n.d.","n.d.","n.d.","n.d.","n.d.","n.d.","n.d.",{"$f":"IF('[1]FISCAL(M)'!$K128=\"\",\"\",'[1]FISCAL(M)'!$K128)","v":"n.d."},"n.d.","n.d.",{"$f":"IF('[1]FISCAL(M)'!$L128=\"\",\"\",'[1]FISCAL(M)'!$L128)","v":"n.d."},"n.d.","n.d.","n.d.","n.d.","n.d.","n.d.","n.d.","n.d.","n.d.","n.d.","n.d.","n.d.","n.d.","n.d.","n.d.","n.d.","n.d.","n.d."]
[1999,"diciembre","1999-diciembre",{"$f":"IF('[1]REAL IPC(M)'!$AL129=\"\",\"\",+'[1]REAL IPC(M)'!$AL129)","v":6.0661424021861032},{"$f":"IF('[1]REAL IPC(M)'!$BE129=\"\",\"\",+'[1]REAL IPC(M)'!$BE129)","v":7.4221976033610693},{"$f":"IF('[1]REAL IPC(M)'!$AM129=\"\",\"\",+'[1]REAL IPC(M)'!$AM129)","v":5.7687146664891609},{"$f":"IF('[1]REAL IPC(M)'!$BI129=\"\",\"\",+'[1]REAL IPC(M)'!$BI129)","v":6.9699049528854085},{"$f":"IF('[1]REAL IMAE(M)'!BJ129=\"\",\"\",'[1]REAL IMAE(M)'!BJ129)","v":"n.d."},{"$f":"IF('[1]REAL IMAE(M)'!BK129=\"\",\"\",'[1]REAL IMAE(M)'!BK129)","v":"n.d."},{"$f":"IF('[1]REAL IMAE(M)'!BN129=\"\",\"\",'[1]REAL IMAE(M)'!BN129)","v":"n.d."},{"$f":"IF('[1]REAL IMAE(M)'!BO129=\"\",\"\",'[1]REAL IMAE(M)'!BO129)","v":"n.d."},{"$f":"IF('[1]EXT RIN(M)'!$K129=\"\",\"\",'[1]EXT RIN(M)'!$K129)","v":"n.d."},"n.d.",{"$f":"IF('[1]EXT RIN(M)'!$L129=\"\",\"\",'[1]EXT RIN(M)'!$L129)","v":"n.d."},"n.d.",{"$f":"IF('[1]MONE(M)CARD'!EG129=\"\",\"\",'[1]MONE(M)CARD'!EG129)","v":"n.d."},{"$f":"IF('[1]MONE(M)CARD'!EK129=\"\",\"\",'[1]MONE(M)CARD'!EK129)","v":"n.d."},{"$f":"IF('[1]MONE(M)CARD'!EP129=\"\",\"\",'[1]MONE(M)CARD'!EP129)","v":"n.d."},{"$f":"IF('[1]MONE(M)CARD'!ES129=\"\",\"\",'[1]MONE(M)CARD'!ES129)","v":"n.d."},{"$f":"IF('[1]MONE(M)CARD'!EV129=\"\",\"\",'[1]MONE(M)CARD'!EV129)","v":"n.d."},{"$f":"IF('[1]MONE(M)CARD'!EZ129=\"\",\"\",'[1]MONE(M)CARD'!EZ129)","v":"n.d."},{"$f":"IF('[1]MONE(M)CAPARD'!FC129=\"\",\"\",'[1]MONE(M)CAPARD'!FC129)","v":"n.d."},{"$f":"IF('[1]MONE(M)CAPARD'!FG129=\"\",\"\",'[1]MONE(M)CAPARD'!FG129)","v":"n.d."},{"$f":"IF('[1]MONE(M)CAPARD'!FL129=\"\",\"\",'[1]MONE(M)CAPARD'!FL129)","v":"n.d."},{"$f":"IF('[1]MONE(M)CAPARD'!FO129=\"\",\"\",'[1]MONE(M)CAPARD'!FO129)","v":"n.d."},{"$f":"IF('[1]MONE(M)CAPARD'!FR129=\"\",\"\",'[1]MONE(M)CAPARD'!FR129)","v":"n.d."},{"$f":"IF('[1]MONE(M)CAPARD'!FV129=\"\",\"\",'[1]MONE(M)CAPARD'!FV129)","v":"n.d."},{"$f":"IF('[1]MONE(M)CARD'!FV129=\"\",\"\",'[1]MONE(M)CARD'!FV129)","v":""},{"$f":"IF('[1]MONE(M)CARD'!GD129=\"\",\"\",'[1]MONE(M)CARD'!GD129)","v":"n.d."},{"$f":"IF('[1]MONE(M)CARD'!GE129=\"\",\"\",'[1]MONE(M)CARD'!GE129)","v":"n.d."},"n.d.","n.d.","n.d.","n.d.","n.d.","n.d.","n.d.","n.d.",null,"n.d.","n.d.","n.d.","n.d.","n.d.",{"$f":"IF('[1]MONE(M)CAPARD'!GS129=\"\",\"\",'[1]MONE(M)CAPARD'!GS129)","v":"n.d."},{"$f":"IF('[1]MONE(M)CARD'!HA129=\"\",\"\",'[1]MONE(M)CAPARD'!HA129)","v":"n.d."},{"$f":"IF('[1]MONE(M)CAPARD'!HB129=\"\",\"\",'[1]MONE(M)CAPARD'!HB129)","v":"n.d."},"n.d.","n.d.","n.d.","n.d.","n.d.","n.d.","n.d.","n.d.","n.d.","n.d.","n.d.","n.d.","n.d.","n.d.",{"$f":"IF('[1]MONE(M)CAPARD'!AS129=\"\",\"\",'[1]MONE(M)CAPARD'!AS129)","v":"n.d."},{"$f":"IF('[1]MONE(M)CAPARD'!AT129=\"\",\"\",'[1]MONE(M)CAPARD'!AT129)","v":"n.a."},{"$f":"IF('[1]MONE(M)CAPARD'!AU129=\"\",\"\",'[1]MONE(M)CAPARD'!AU129)","v":"n.d."},{"$f":"IF('[1]MONE(M)CAPARD'!AV129=\"\",\"\",'[1]MONE(M)CAPARD'!AV129)","v":"n.d."},{"$f":"IF('[1]MONE(M)CAPARD'!AW129=\"\",\"\",'[1]MONE(M)CAPARD'!AW129)","v":"n.a."},{"$f":"IF('[1]MONE(M)CAPARD'!AX129=\"\",\"\",'[1]MONE(M)CAPARD'!AX129)","v":"n.d."},{"$f":"IF('[1]MONE(M)CAPARD'!AY129=\"\",\"\",'[1]MONE(M)CAPARD'!AY129)","v":"n.a."},{"$f":"IF('[1]FISCAL(M)'!$K129=\"\",\"\",'[1]FISCAL(M)'!$K129)","v":"n.d."},{"$f":"IF('[1]FISCAL(M)'!$L129=\"\",\"\",'[1]FISCAL(M)'!$L129)","v":"n.d."},{"$f":"IF('[1]FISCAL(M)'!$AY129=\"\",\"\",'[1]FISCAL(M)'!$AY129)","v":"n.d."},{"$f":"IF('[1]FISCAL(M)'!$BI129=\"\",\"\",'[1]FISCAL(M)'!$BI129)","v":"n.d."},{"$f":"IF('[1]FISCAL(M)'!$BS129=\"\",\"\",'[1]FISCAL(M)'!$BS129)","v":"n.d."},{"$f":"IF('[1]FISCAL(M)'!$AZ129=\"\",\"\",'[1]FISCAL(M)'!$AZ129)","v":"n.d."},{"$f":"IF('[1]FISCAL(M)'!$BJ129=\"\",\"\",'[1]FISCAL(M)'!$BJ129)","v":"n.d."},{"$f":"IF('[1]FISCAL(M)'!$BT129=\"\",\"\",'[1]FISCAL(M)'!$BT129)","v":"n.d."},{"$f":"IF('[2]MONE(M)'!$AO129=\"\",\"\",'[2]MONE(M)'!$AO129)","v":"n.d."},{"$f":"IF('[3]MONE(M)'!$AO129=\"\",\"\",'[3]MONE(M)'!$AO129)","v":"n.d."},{"$f":"IF('[4]MONE(M)'!$AO129=\"\",\"\",'[4]MONE(M)'!$AO129)","v":"n.d."},{"$f":"IF('[5]MONE(M)'!$AO129=\"\",\"\",'[5]MONE(M)'!$AO129)","v":"n.d."},{"$f":"IF('[6]MONE(M)'!$AO129=\"\",\"\",'[6]MONE(M)'!$AO129)","v":"n.d."},{"$f":"IF('[7]MONE(M)'!$AO129=\"\",\"\",'[7]MONE(M)'!$AO129)","v":"n.d."},{"$f":"IF('[8]MONE(M)'!$AO129=\"\",\"\",'[8]MONE(M)'!$AO129)","v":"n.d."},"n.d.","n.d.","n.d.","n.d.","n.d.","n.d.","n.d.",{"$f":"IF('[1]FISCAL(M)'!$K129=\"\",\"\",'[1]FISCAL(M)'!$K129)","v":"n.d."},"n.d.","n.d.",{"$f":"IF('[1]FISCAL(M)'!$L129=\"\",\"\",'[1]FISCAL(M)'!$L129)","v":"n.d."},"n.d.","n.d.","n.d.","n.d.","n.d.","n.d.","n.d.","n.d.","n.d.","n.d.","n.d.","n.d.","n.d.","n.d.","n.d.","n.d.","n.d.","n.d."]
[2000,"enero","2000-enero",{"$f":"IF('[1]REAL IPC(M)'!$AL130=\"\",\"\",+'[1]REAL IPC(M)'!$AL130)","v":6.7344896351579031},{"$f":"IF('[1]REAL IPC(M)'!$BE130=\"\",\"\",+'[1]REAL IPC(M)'!$BE130)","v":7.4307716814249192},{"$f":"IF('[1]REAL IPC(M)'!$AM130=\"\",\"\",+'[1]REAL IPC(M)'!$AM130)","v":6.3253750124034891},{"$f":"IF('[1]REAL IPC(M)'!$BI130=\"\",\"\",+'[1]REAL IPC(M)'!$BI130)","v":6.9798819087339981},{"$f":"IF('[1]REAL IMAE(M)'!BJ130=\"\",\"\",'[1]REAL IMAE(M)'!BJ130)","v":"n.d."},{"$f":"IF('[1]REAL IMAE(M)'!BK130=\"\",\"\",'[1]REAL IMAE(M)'!BK130)","v":"n.d."},{"$f":"IF('[1]REAL IMAE(M)'!BN130=\"\",\"\",'[1]REAL IMAE(M)'!BN130)","v":"n.d."},{"$f":"IF('[1]REAL IMAE(M)'!BO130=\"\",\"\",'[1]REAL IMAE(M)'!BO130)","v":"n.d."},{"$f":"IF('[1]EXT RIN(M)'!$K130=\"\",\"\",'[1]EXT RIN(M)'!$K130)","v":"n.d."},"",{"$f":"IF('[1]EXT RIN(M)'!$L130=\"\",\"\",'[1]EXT RIN(M)'!$L130)","v":"n.d."},"",{"$f":"IF('[1]MONE(M)CARD'!EG130=\"\",\"\",'[1]MONE(M)CARD'!EG130)","v":"n.d."},{"$f":"IF('[1]MONE(M)CARD'!EK130=\"\",\"\",'[1]MONE(M)CARD'!EK130)","v":"n.d."},{"$f":"IF('[1]MONE(M)CARD'!EP130=\"\",\"\",'[1]MONE(M)CARD'!EP130)","v":"n.d."},{"$f":"IF('[1]MONE(M)CARD'!ES130=\"\",\"\",'[1]MONE(M)CARD'!ES130)","v":"n.d."},{"$f":"IF('[1]MONE(M)CARD'!EV130=\"\",\"\",'[1]MONE(M)CARD'!EV130)","v":"n.d."},{"$f":"IF('[1]MONE(M)CARD'!EZ130=\"\",\"\",'[1]MONE(M)CARD'!EZ130)","v":"n.d."},{"$f":"IF('[1]MONE(M)CAPARD'!FC130=\"\",\"\",'[1]MONE(M)CAPARD'!FC130)","v":"n.d."},{"$f":"IF('[1]MONE(M)CAPARD'!FG130=\"\",\"\",'[1]MONE(M)CAPARD'!FG130)","v":"n.d."},{"$f":"IF('[1]MONE(M)CAPARD'!FL130=\"\",\"\",'[1]MONE(M)CAPARD'!FL130)","v":"n.d."},{"$f":"IF('[1]MONE(M)CAPARD'!FO130=\"\",\"\",'[1]MONE(M)CAPARD'!FO130)","v":"n.d."},{"$f":"IF('[1]MONE(M)CAPARD'!FR130=\"\",\"\",'[1]MONE(M)CAPARD'!FR130)","v":"n.d."},{"$f":"IF('[1]MONE(M)CAPARD'!FV130=\"\",\"\",'[1]MONE(M)CAPARD'!FV130)","v":"n.d."},{"$f":"IF('[1]MONE(M)CARD'!FV130=\"\",\"\",'[1]MONE(M)CARD'!FV130)","v":""},{"$f":"IF('[1]MONE(M)CARD'!GD130=\"\",\"\",'[1]MONE(M)CARD'!GD130)","v":"n.d."},{"$f":"IF('[1]MONE(M)CARD'!GE130=\"\",\"\",'[1]MONE(M)CARD'!GE130)","v":"n.d."},"n.d.","n.d.","n.d.","n.d.","n.d.","n.d.","n.d.","n.d.",null,"n.d.","n.d.","n.d.","n.d.","n.d.",{"$f":"IF('[1]MONE(M)CAPARD'!GS130=\"\",\"\",'[1]MONE(M)CAPARD'!GS130)","v":"n.d."},{"$f":"IF('[1]MONE(M)CARD'!HA130=\"\",\"\",'[1]MONE(M)CAPARD'!HA130)","v":"n.d."},{"$f":"IF('[1]MONE(M)CAPARD'!HB130=\"\",\"\",'[1]MONE(M)CAPARD'!HB130)","v":"n.d."},"n.d.","n.d.","n.d.","n.d.","n.d.","n.d.","n.d.","n.d.","n.d.","n.d.","n.d.","n.d.","n.d.","n.d.",{"$f":"IF('[1]MONE(M)CAPARD'!AS130=\"\",\"\",'[1]MONE(M)CAPARD'!AS130)","v":"n.d."},{"$f":"IF('[1]MONE(M)CAPARD'!AT130=\"\",\"\",'[1]MONE(M)CAPARD'!AT130)","v":"n.a."},{"$f":"IF('[1]MONE(M)CAPARD'!AU130=\"\",\"\",'[1]MONE(M)CAPARD'!AU130)","v":"n.d."},{"$f":"IF('[1]MONE(M)CAPARD'!AV130=\"\",\"\",'[1]MONE(M)CAPARD'!AV130)","v":"n.d."},{"$f":"IF('[1]MONE(M)CAPARD'!AW130=\"\",\"\",'[1]MONE(M)CAPARD'!AW130)","v":"n.a."},{"$f":"IF('[1]MONE(M)CAPARD'!AX130=\"\",\"\",'[1]MONE(M)CAPARD'!AX130)","v":"n.d."},{"$f":"IF('[1]MONE(M)CAPARD'!AY130=\"\",\"\",'[1]MONE(M)CAPARD'!AY130)","v":"n.a."},{"$f":"IF('[1]FISCAL(M)'!$K130=\"\",\"\",'[1]FISCAL(M)'!$K130)","v":"n.d."},{"$f":"IF('[1]FISCAL(M)'!$L130=\"\",\"\",'[1]FISCAL(M)'!$L130)","v":"n.d."},{"$f":"IF('[1]FISCAL(M)'!$AY130=\"\",\"\",'[1]FISCAL(M)'!$AY130)","v":"n.d."},{"$f":"IF('[1]FISCAL(M)'!$BI130=\"\",\"\",'[1]FISCAL(M)'!$BI130)","v":"n.d."},{"$f":"IF('[1]FISCAL(M)'!$BS130=\"\",\"\",'[1]FISCAL(M)'!$BS130)","v":"n.d."},{"$f":"IF('[1]FISCAL(M)'!$AZ130=\"\",\"\",'[1]FISCAL(M)'!$AZ130)","v":"n.d."},{"$f":"IF('[1]FISCAL(M)'!$BJ130=\"\",\"\",'[1]FISCAL(M)'!$BJ130)","v":"n.d."},{"$f":"IF('[1]FISCAL(M)'!$BT130=\"\",\"\",'[1]FISCAL(M)'!$BT130)","v":"n.d."},{"$f":"IF('[2]MONE(M)'!$AO130=\"\",\"\",'[2]MONE(M)'!$AO130)","v":"n.d."},{"$f":"IF('[3]MONE(M)'!$AO130=\"\",\"\",'[3]MONE(M)'!$AO130)","v":"n.d."},{"$f":"IF('[4]MONE(M)'!$AO130=\"\",\"\",'[4]MONE(M)'!$AO130)","v":"n.d."},{"$f":"IF('[5]MONE(M)'!$AO130=\"\",\"\",'[5]MONE(M)'!$AO130)","v":"n.d."},{"$f":"IF('[6]MONE(M)'!$AO130=\"\",\"\",'[6]MONE(M)'!$AO130)","v":"n.d."},{"$f":"IF('[7]MONE(M)'!$AO130=\"\",\"\",'[7]MONE(M)'!$AO130)","v":"n.d."},{"$f":"IF('[8]MONE(M)'!$AO130=\"\",\"\",'[8]MONE(M)'!$AO130)","v":"n.d."},"n.d.","n.d.","n.d.","n.d.","n.d.","n.d.","n.d.",{"$f":"IF('[1]FISCAL(M)'!$K130=\"\",\"\",'[1]FISCAL(M)'!$K130)","v":"n.d."},{"$f":"+'[1]REAL(A)'!$AO$20","v":"n.d."},"n.d.",{"$f":"IF('[1]FISCAL(M)'!$L130=\"\",\"\",'[1]FISCAL(M)'!$L130)","v":"n.d."},{"$f":"+'[1]REAL(A)'!$AP$20","v":"n.d."},"n.d.","n.d.","n.d.","n.d.","n.d.","n.d.","n.d.","n.d.","n.d.","n.d.","n.d.","n.d.","n.d.","n.d.","n.d.","n.d.","n.d."]
[2000,"febrero","2000-febrero",{"$f":"IF('[1]REAL IPC(M)'!$AL131=\"\",\"\",+'[1]REAL IPC(M)'!$AL131)","v":7.6893444412195144},{"$f":"IF('[1]REAL IPC(M)'!$BE131=\"\",\"\",+'[1]REAL IPC(M)'!$BE131)","v":7.4437387582059866},{"$f":"IF('[1]REAL IPC(M)'!$AM131=\"\",\"\",+'[1]REAL IPC(M)'!$AM131)","v":7.2036237704601103},{"$f":"IF('[1]REAL IPC(M)'!$BI131=\"\",\"\",+'[1]REAL IPC(M)'!$BI131)","v":6.9932606222302907},{"$f":"IF('[1]REAL IMAE(M)'!BJ131=\"\",\"\",'[1]REAL IMAE(M)'!BJ131)","v":"n.d."},{"$f":"IF('[1]REAL IMAE(M)'!BK131=\"\",\"\",'[1]REAL IMAE(M)'!BK131)","v":"n.d."},{"$f":"IF('[1]REAL IMAE(M)'!BN131=\"\",\"\",'[1]REAL IMAE(M)'!BN131)","v":"n.d."},{"$f":"IF('[1]REAL IMAE(M)'!BO131=\"\",\"\",'[1]REAL IMAE(M)'!BO131)","v":"n.d."},{"$f":"IF('[1]EXT RIN(M)'!$K131=\"\",\"\",'[1]EXT RIN(M)'!$K131)","v":"n.d."},"",{"$f":"IF('[1]EXT RIN(M)'!$L131=\"\",\"\",'[1]EXT RIN(M)'!$L131)","v":"n.d."},"",{"$f":"IF('[1]MONE(M)CARD'!EG131=\"\",\"\",'[1]MONE(M)CARD'!EG131)","v":"n.d."},{"$f":"IF('[1]MONE(M)CARD'!EK131=\"\",\"\",'[1]MONE(M)CARD'!EK131)","v":"n.d."},{"$f":"IF('[1]MONE(M)CARD'!EP131=\"\",\"\",'[1]MONE(M)CARD'!EP131)","v":"n.d."},{"$f":"IF('[1]MONE(M)CARD'!ES131=\"\",\"\",'[1]MONE(M)CARD'!ES131)","v":"n.d."},{"$f":"IF('[1]MONE(M)CARD'!EV131=\"\",\"\",'[1]MONE(M)CARD'!EV131)","v":"n.d."},{"$f":"IF('[1]MONE(M)CARD'!EZ131=\"\",\"\",'[1]MONE(M)CARD'!EZ131)","v":"n.d."},{"$f":"IF('[1]MONE(M)CAPARD'!FC131=\"\",\"\",'[1]MONE(M)CAPARD'!FC131)","v":"n.d."},{"$f":"IF('[1]MONE(M)CAPARD'!FG131=\"\",\"\",'[1]MONE(M)CAPARD'!FG131)","v":"n.d."},{"$f":"IF('[1]MONE(M)CAPARD'!FL131=\"\",\"\",'[1]MONE(M)CAPARD'!FL131)","v":"n.d."},{"$f":"IF('[1]MONE(M)CAPARD'!FO131=\"\",\"\",'[1]MONE(M)CAPARD'!FO131)","v":"n.d."},{"$f":"IF('[1]MONE(M)CAPARD'!FR131=\"\",\"\",'[1]MONE(M)CAPARD'!FR131)","v":"n.d."},{"$f":"IF('[1]MONE(M)CAPARD'!FV131=\"\",\"\",'[1]MONE(M)CAPARD'!FV131)","v":"n.d."},{"$f":"IF('[1]MONE(M)CARD'!FV131=\"\",\"\",'[1]MONE(M)CARD'!FV131)","v":""},{"$f":"IF('[1]MONE(M)CARD'!GD131=\"\",\"\",'[1]MONE(M)CARD'!GD131)","v":"n.d."},{"$f":"IF('[1]MONE(M)CARD'!GE131=\"\",\"\",'[1]MONE(M)CARD'!GE131)","v":"n.d."},"n.d.","n.d.","n.d.","n.d.","n.d.","n.d.","n.d.","n.d.",null,"n.d.","n.d.","n.d.","n.d.","n.d.",{"$f":"IF('[1]MONE(M)CAPARD'!GS131=\"\",\"\",'[1]MONE(M)CAPARD'!GS131)","v":"n.d."},{"$f":"IF('[1]MONE(M)CARD'!HA131=\"\",\"\",'[1]MONE(M)CAPARD'!HA131)","v":"n.d."},{"$f":"IF('[1]MONE(M)CAPARD'!HB131=\"\",\"\",'[1]MONE(M)CAPARD'!HB131)","v":"n.d."},"n.d.","n.d.","n.d.","n.d.","n.d.","n.d.","n.d.","n.d.","n.d.","n.d.","n.d.","n.d.","n.d.","n.d.",{"$f":"IF('[1]MONE(M)CAPARD'!AS131=\"\",\"\",'[1]MONE(M)CAPARD'!AS131)","v":"n.d."},{"$f":"IF('[1]MONE(M)CAPARD'!AT131=\"\",\"\",'[1]MONE(M)CAPARD'!AT131)","v":"n.a."},{"$f":"IF('[1]MONE(M)CAPARD'!AU131=\"\",\"\",'[1]MONE(M)CAPARD'!AU131)","v":"n.d."},{"$f":"IF('[1]MONE(M)CAPARD'!AV131=\"\",\"\",'[1]MONE(M)CAPARD'!AV131)","v":"n.d."},{"$f":"IF('[1]MONE(M)CAPARD'!AW131=\"\",\"\",'[1]MONE(M)CAPARD'!AW131)","v":"n.a."},{"$f":"IF('[1]MONE(M)CAPARD'!AX131=\"\",\"\",'[1]MONE(M)CAPARD'!AX131)","v":"n.d."},{"$f":"IF('[1]MONE(M)CAPARD'!AY131=\"\",\"\",'[1]MONE(M)CAPARD'!AY131)","v":"n.a."},{"$f":"IF('[1]FISCAL(M)'!$K131=\"\",\"\",'[1]FISCAL(M)'!$K131)","v":"n.d."},{"$f":"IF('[1]FISCAL(M)'!$L131=\"\",\"\",'[1]FISCAL(M)'!$L131)","v":"n.d."},{"$f":"IF('[1]FISCAL(M)'!$AY131=\"\",\"\",'[1]FISCAL(M)'!$AY131)","v":"n.d."},{"$f":"IF('[1]FISCAL(M)'!$BI131=\"\",\"\",'[1]FISCAL(M)'!$BI131)","v":"n.d."},{"$f":"IF('[1]FISCAL(M)'!$BS131=\"\",\"\",'[1]FISCAL(M)'!$BS131)","v":"n.d."},{"$f":"IF('[1]FISCAL(M)'!$AZ131=\"\",\"\",'[1]FISCAL(M)'!$AZ131)","v":"n.d."},{"$f":"IF('[1]FISCAL(M)'!$BJ131=\"\",\"\",'[1]FISCAL(M)'!$BJ131)","v":"n.d."},{"$f":"IF('[1]FISCAL(M)'!$BT131=\"\",\"\",'[1]FISCAL(M)'!$BT131)","v":"n.d."},{"$f":"IF('[2]MONE(M)'!$AO131=\"\",\"\",'[2]MONE(M)'!$AO131)","v":"n.d."},{"$f":"IF('[3]MONE(M)'!$AO131=\"\",\"\",'[3]MONE(M)'!$AO131)","v":"n.d."},{"$f":"IF('[4]MONE(M)'!$AO131=\"\",\"\",'[4]MONE(M)'!$AO131)","v":"n.d."},{"$f":"IF('[5]MONE(M)'!$AO131=\"\",\"\",'[5]MONE(M)'!$AO131)","v":"n.d."},{"$f":"IF('[6]MONE(M)'!$AO131=\"\",\"\",'[6]MONE(M)'!$AO131)","v":"n.d."},{"$f":"IF('[7]MONE(M)'!$AO131=\"\",\"\",'[7]MONE(M)'!$AO131)","v":"n.d."},{"$f":"IF('[8]MONE(M)'!$AO131=\"\",\"\",'[8]MONE(M)'!$AO131)","v":"n.d."},"n.d.","n.d.","n.d.","n.d.","n.d.","n.d.","n.d.",{"$f":"IF('[1]FISCAL(M)'!$K131=\"\",\"\",'[1]FISCAL(M)'!$K131)","v":"n.d."},{"$f":"+'[1]REAL(A)'!$AO$20","v":"n.d."},"n.d.",{"$f":"IF('[1]FISCAL(M)'!$L131=\"\",\"\",'[1]FISCAL(M)'!$L131)","v":"n.d."},{"$f":"+'[1]REAL(A)'!$AP$20","v":"n.d."},"n.d.","n.d.","n.d.","n.d.","n.d.","n.d.","n.d.","n.d.","n.d.","n.d.","n.d.","n.d.","n.d.","n.d.","n.d.","n.d.","n.d."]
[2000,"marzo","2000-marzo",{"$f":"IF('[1]REAL IPC(M)'!$AL132=\"\",\"\",+'[1]REAL IPC(M)'!$AL132)","v":8.5426057967703741},{"$f":"IF('[1]REAL IPC(M)'!$BE132=\"\",\"\",+'[1]REAL IPC(M)'!$BE132)","v":7.4607872787296747},{"$f":"IF('[1]REAL IPC(M)'!$AM132=\"\",\"\",+'[1]REAL IPC(M)'!$AM132)","v":8.0251818898992013},{"$f":"IF('[1]REAL IPC(M)'!$BI132=\"\",\"\",+'[1]REAL IPC(M)'!$BI132)","v":7.0096984942422669},{"$f":"IF('[1]REAL IMAE(M)'!BJ132=\"\",\"\",'[1]REAL IMAE(M)'!BJ132)","v":"n.d."},{"$f":"IF('[1]REAL IMAE(M)'!BK132=\"\",\"\",'[1]REAL IMAE(M)'!BK132)","v":"n.d."},{"$f":"IF('[1]REAL IMAE(M)'!BN132=\"\",\"\",'[1]REAL IMAE(M)'!BN132)","v":"n.d."},{"$f":"IF('[1]REAL IMAE(M)'!BO132=\"\",\"\",'[1]REAL IMAE(M)'!BO132)","v":"n.d."},{"$f":"IF('[1]EXT RIN(M)'!$K132=\"\",\"\",'[1]EXT RIN(M)'!$K132)","v":"n.d."},"",{"$f":"IF('[1]EXT RIN(M)'!$L132=\"\",\"\",'[1]EXT RIN(M)'!$L132)","v":"n.d."},"",{"$f":"IF('[1]MONE(M)CARD'!EG132=\"\",\"\",'[1]MONE(M)CARD'!EG132)","v":"n.d."},{"$f":"IF('[1]MONE(M)CARD'!EK132=\"\",\"\",'[1]MONE(M)CARD'!EK132)","v":"n.d."},{"$f":"IF('[1]MONE(M)CARD'!EP132=\"\",\"\",'[1]MONE(M)CARD'!EP132)","v":"n.d."},{"$f":"IF('[1]MONE(M)CARD'!ES132=\"\",\"\",'[1]MONE(M)CARD'!ES132)","v":"n.d."},{"$f":"IF('[1]MONE(M)CARD'!EV132=\"\",\"\",'[1]MONE(M)CARD'!EV132)","v":"n.d."},{"$f":"IF('[1]MONE(M)CARD'!EZ132=\"\",\"\",'[1]MONE(M)CARD'!EZ132)","v":"n.d."},{"$f":"IF('[1]MONE(M)CAPARD'!FC132=\"\",\"\",'[1]MONE(M)CAPARD'!FC132)","v":"n.d."},{"$f":"IF('[1]MONE(M)CAPARD'!FG132=\"\",\"\",'[1]MONE(M)CAPARD'!FG132)","v":"n.d."},{"$f":"IF('[1]MONE(M)CAPARD'!FL132=\"\",\"\",'[1]MONE(M)CAPARD'!FL132)","v":"n.d."},{"$f":"IF('[1]MONE(M)CAPARD'!FO132=\"\",\"\",'[1]MONE(M)CAPARD'!FO132)","v":"n.d."},{"$f":"IF('[1]MONE(M)CAPARD'!FR132=\"\",\"\",'[1]MONE(M)CAPARD'!FR132)","v":"n.d."},{"$f":"IF('[1]MONE(M)CAPARD'!FV132=\"\",\"\",'[1]MONE(M)CAPARD'!FV132)","v":"n.d."},{"$f":"IF('[1]MONE(M)CARD'!FV132=\"\",\"\",'[1]MONE(M)CARD'!FV132)","v":""},{"$f":"IF('[1]MONE(M)CARD'!GD132=\"\",\"\",'[1]MONE(M)CARD'!GD132)","v":"n.d."},{"$f":"IF('[1]MONE(M)CARD'!GE132=\"\",\"\",'[1]MONE(M)CARD'!GE132)","v":"n.d."},"n.d.","n.d.","n.d.","n.d.","n.d.","n.d.","n.d.","n.d.",null,"n.d.","n.d.","n.d.","n.d.","n.d.",{"$f":"IF('[1]MONE(M)CAPARD'!GS132=\"\",\"\",'[1]MONE(M)CAPARD'!GS132)","v":"n.d."},{"$f":"IF('[1]MONE(M)CARD'!HA132=\"\",\"\",'[1]MONE(M)CAPARD'!HA132)","v":"n.d."},{"$f":"IF('[1]MONE(M)CAPARD'!HB132=\"\",\"\",'[1]MONE(M)CAPARD'!HB132)","v":"n.d."},"n.d.","n.d.","n.d.","n.d.","n.d.","n.d.","n.d.","n.d.","n.d.","n.d.","n.d.","n.d.","n.d.","n.d.",{"$f":"IF('[1]MONE(M)CAPARD'!AS132=\"\",\"\",'[1]MONE(M)CAPARD'!AS132)","v":"n.d."},{"$f":"IF('[1]MONE(M)CAPARD'!AT132=\"\",\"\",'[1]MONE(M)CAPARD'!AT132)","v":"n.a."},{"$f":"IF('[1]MONE(M)CAPARD'!AU132=\"\",\"\",'[1]MONE(M)CAPARD'!AU132)","v":"n.d."},{"$f":"IF('[1]MONE(M)CAPARD'!AV132=\"\",\"\",'[1]MONE(M)CAPARD'!AV132)","v":"n.d."},{"$f":"IF('[1]MONE(M)CAPARD'!AW132=\"\",\"\",'[1]MONE(M)CAPARD'!AW132)","v":"n.a."},{"$f":"IF('[1]MONE(M)CAPARD'!AX132=\"\",\"\",'[1]MONE(M)CAPARD'!AX132)","v":"n.d."},{"$f":"IF('[1]MONE(M)CAPARD'!AY132=\"\",\"\",'[1]MONE(M)CAPARD'!AY132)","v":"n.a."},{"$f":"IF('[1]FISCAL(M)'!$K132=\"\",\"\",'[1]FISCAL(M)'!$K132)","v":"n.d."},{"$f":"IF('[1]FISCAL(M)'!$L132=\"\",\"\",'[1]FISCAL(M)'!$L132)","v":"n.d."},{"$f":"IF('[1]FISCAL(M)'!$AY132=\"\",\"\",'[1]FISCAL(M)'!$AY132)","v":"n.d."},{"$f":"IF('[1]FISCAL(M)'!$BI132=\"\",\"\",'[1]FISCAL(M)'!$BI132)","v":"n.d."},{"$f":"IF('[1]FISCAL(M)'!$BS132=\"\",\"\",'[1]FISCAL(M)'!$BS132)","v":"n.d."},{"$f":"IF('[1]FISCAL(M)'!$AZ132=\"\",\"\",'[1]FISCAL(M)'!$AZ132)","v":"n.d."},{"$f":"IF('[1]FISCAL(M)'!$BJ132=\"\",\"\",'[1]FISCAL(M)'!$BJ132)","v":"n.d."},{"$f":"IF('[1]FISCAL(M)'!$BT132=\"\",\"\",'[1]FISCAL(M)'!$BT132)","v":"n.d."},{"$f":"IF('[2]MONE(M)'!$AO132=\"\",\"\",'[2]MONE(M)'!$AO132)","v":"n.d."},{"$f":"IF('[3]MONE(M)'!$AO132=\"\",\"\",'[3]MONE(M)'!$AO132)","v":"n.d."},{"$f":"IF('[4]MONE(M)'!$AO132=\"\",\"\",'[4]MONE(M)'!$AO132)","v":"n.d."},{"$f":"IF('[5]MONE(M)'!$AO132=\"\",\"\",'[5]MONE(M)'!$AO132)","v":"n.d."},{"$f":"IF('[6]MONE(M)'!$AO132=\"\",\"\",'[6]MONE(M)'!$AO132)","v":"n.d."},{"$f":"IF('[7]MONE(M)'!$AO132=\"\",\"\",'[7]MONE(M)'!$AO132)","v":"n.d."},{"$f":"IF('[8]MONE(M)'!$AO132=\"\",\"\",'[8]MONE(M)'!$AO132)","v":"n.d."},"n.d.","n.d.","n.d.","n.d.","n.d.","n.d.","n.d.",{"$f":"IF('[1]FISCAL(M)'!$K132=\"\",\"\",'[1]FISCAL(M)'!$K132)","v":"n.d."},{"$f":"+'[1]REAL(A)'!$AO$20","v":"n.d."},"n.d.",{"$f":"IF('[1]FISCAL(M)'!$L132=\"\",\"\",'[1]FISCAL(M)'!$L132)","v":"n.d."},{"$f":"+'[1]REAL(A)'!$AP$20","v":"n.d."},"n.d.","n.d.","n.d.","n.d.","n.d.","n.d.","n.d.","n.d.","n.d.","n.d.","n.d.","n.d.","n.d.","n.d.","n.d.","n.d.","n.d."]
[2000,"abril","2000-abril",{"$f":"IF('[1]REAL IPC(M)'!$AL133=\"\",\"\",+'[1]REAL IPC(M)'!$AL133)","v":8.831574499506246},{"$f":"IF('[1]REAL IPC(M)'!$BE133=\"\",\"\",+'[1]REAL IPC(M)'!$BE133)","v":7.4816518779371677},{"$f":"IF('[1]REAL IPC(M)'!$AM133=\"\",\"\",+'[1]REAL IPC(M)'!$AM133)","v":8.2798662461722294},{"$f":"IF('[1]REAL IPC(M)'!$BI133=\"\",\"\",+'[1]REAL IPC(M)'!$BI133)","v":7.0289022760834374},{"$f":"IF('[1]REAL IMAE(M)'!BJ133=\"\",\"\",'[1]REAL IMAE(M)'!BJ133)","v":"n.d."},{"$f":"IF('[1]REAL IMAE(M)'!BK133=\"\",\"\",'[1]REAL IMAE(M)'!BK133)","v":"n.d."},{"$f":"IF('[1]REAL IMAE(M)'!BN133=\"\",\"\",'[1]REAL IMAE(M)'!BN133)","v":"n.d."},{"$f":"IF('[1]REAL IMAE(M)'!BO133=\"\",\"\",'[1]REAL IMAE(M)'!BO133)","v":"n.d."},{"$f":"IF('[1]EXT RIN(M)'!$K133=\"\",\"\",'[1]EXT RIN(M)'!$K133)","v":"n.d."},"",{"$f":"IF('[1]EXT RIN(M)'!$L133=\"\",\"\",'[1]EXT RIN(M)'!$L133)","v":"n.d."},"",{"$f":"IF('[1]MONE(M)CARD'!EG133=\"\",\"\",'[1]MONE(M)CARD'!EG133)","v":"n.d."},{"$f":"IF('[1]MONE(M)CARD'!EK133=\"\",\"\",'[1]MONE(M)CARD'!EK133)","v":"n.d."},{"$f":"IF('[1]MONE(M)CARD'!EP133=\"\",\"\",'[1]MONE(M)CARD'!EP133)","v":"n.d."},{"$f":"IF('[1]MONE(M)CARD'!ES133=\"\",\"\",'[1]MONE(M)CARD'!ES133)","v":"n.d."},{"$f":"IF('[1]MONE(M)CARD'!EV133=\"\",\"\",'[1]MONE(M)CARD'!EV133)","v":"n.d."},{"$f":"IF('[1]MONE(M)CARD'!EZ133=\"\",\"\",'[1]MONE(M)CARD'!EZ133)","v":"n.d."},{"$f":"IF('[1]MONE(M)CAPARD'!FC133=\"\",\"\",'[1]MONE(M)CAPARD'!FC133)","v":"n.d."},{"$f":"IF('[1]MONE(M)CAPARD'!FG133=\"\",\"\",'[1]MONE(M)CAPARD'!FG133)","v":"n.d."},{"$f":"IF('[1]MONE(M)CAPARD'!FL133=\"\",\"\",'[1]MONE(M)CAPARD'!FL133)","v":"n.d."},{"$f":"IF('[1]MONE(M)CAPARD'!FO133=\"\",\"\",'[1]MONE(M)CAPARD'!FO133)","v":"n.d."},{"$f":"IF('[1]MONE(M)CAPARD'!FR133=\"\",\"\",'[1]MONE(M)CAPARD'!FR133)","v":"n.d."},{"$f":"IF('[1]MONE(M)CAPARD'!FV133=\"\",\"\",'[1]MONE(M)CAPARD'!FV133)","v":"n.d."},{"$f":"IF('[1]MONE(M)CARD'!FV133=\"\",\"\",'[1]MONE(M)CARD'!FV133)","v":""},{"$f":"IF('[1]MONE(M)CARD'!GD133=\"\",\"\",'[1]MONE(M)CARD'!GD133)","v":"n.d."},{"$f":"IF('[1]MONE(M)CARD'!GE133=\"\",\"\",'[1]MONE(M)CARD'!GE133)","v":"n.d."},"n.d.","n.d.","n.d.","n.d.","n.d.","n.d.","n.d.","n.d.",null,"n.d.","n.d.","n.d.","n.d.","n.d.",{"$f":"IF('[1]MONE(M)CAPARD'!GS133=\"\",\"\",'[1]MONE(M)CAPARD'!GS133)","v":"n.d."},{"$f":"IF('[1]MONE(M)CARD'!HA133=\"\",\"\",'[1]MONE(M)CAPARD'!HA133)","v":"n.d."},{"$f":"IF('[1]MONE(M)CAPARD'!HB133=\"\",\"\",'[1]MONE(M)CAPARD'!HB133)","v":"n.d."},"n.d.","n.d.","n.d.","n.d.","n.d.","n.d.","n.d.","n.d.","n.d.","n.d.","n.d.","n.d.","n.d.","n.d.",{"$f":"IF('[1]MONE(M)CAPARD'!AS133=\"\",\"\",'[1]MONE(M)CAPARD'!AS133)","v":"n.d."},{"$f":"IF('[1]MONE(M)CAPARD'!AT133=\"\",\"\",'[1]MONE(M)CAPARD'!AT133)","v":"n.a."},{"$f":"IF('[1]MONE(M)CAPARD'!AU133=\"\",\"\",'[1]MONE(M)CAPARD'!AU133)","v":"n.d."},{"$f":"IF('[1]MONE(M)CAPARD'!AV133=\"\",\"\",'[1]MONE(M)CAPARD'!AV133)","v":"n.d."},{"$f":"IF('[1]MONE(M)CAPARD'!AW133=\"\",\"\",'[1]MONE(M)CAPARD'!AW133)","v":"n.a."},{"$f":"IF('[1]MONE(M)CAPARD'!AX133=\"\",\"\",'[1]MONE(M)CAPARD'!AX133)","v":"n.d."},{"$f":"IF('[1]MONE(M)CAPARD'!AY133=\"\",\"\",'[1]MONE(M)CAPARD'!AY133)","v":"n.a."},{"$f":"IF('[1]FISCAL(M)'!$K133=\"\",\"\",'[1]FISCAL(M)'!$K133)","v":"n.d."},{"$f":"IF('[1]FISCAL(M)'!$L133=\"\",\"\",'[1]FISCAL(M)'!$L133)","v":"n.d."},{"$f":"IF('[1]FISCAL(M)'!$AY133=\"\",\"\",'[1]FISCAL(M)'!$AY133)","v":"n.d."},{"$f":"IF('[1]FISCAL(M)'!$BI133=\"\",\"\",'[1]FISCAL(M)'!$BI133)","v":"n.d."},{"$f":"IF('[1]FISCAL(M)'!$BS133=\"\",\"\",'[1]FISCAL(M)'!$BS133)","v":"n.d."},{"$f":"IF('[1]FISCAL(M)'!$AZ133=\"\",\"\",'[1]FISCAL(M)'!$AZ133)","v":"n.d."},{"$f":"IF('[1]FISCAL(M)'!$BJ133=\"\",\"\",'[1]FISCAL(M)'!$BJ133)","v":"n.d."},{"$f":"IF('[1]FISCAL(M)'!$BT133=\"\",\"\",'[1]FISCAL(M)'!$BT133)","v":"n.d."},{"$f":"IF('[2]MONE(M)'!$AO133=\"\",\"\",'[2]MONE(M)'!$AO133)","v":"n.d."},{"$f":"IF('[3]MONE(M)'!$AO133=\"\",\"\",'[3]MONE(M)'!$AO133)","v":"n.d."},{"$f":"IF('[4]MONE(M)'!$AO133=\"\",\"\",'[4]MONE(M)'!$AO133)","v":"n.d."},{"$f":"IF('[5]MONE(M)'!$AO133=\"\",\"\",'[5]MONE(M)'!$AO133)","v":"n.d."},{"$f":"IF('[6]MONE(M)'!$AO133=\"\",\"\",'[6]MONE(M)'!$AO133)","v":"n.d."},{"$f":"IF('[7]MONE(M)'!$AO133=\"\",\"\",'[7]MONE(M)'!$AO133)","v":"n.d."},{"$f":"IF('[8]MONE(M)'!$AO133=\"\",\"\",'[8]MONE(M)'!$AO133)","v":"n.d."},"n.d.","n.d.","n.d.","n.d.","n.d.","n.d.","n.d.",{"$f":"IF('[1]FISCAL(M)'!$K133=\"\",\"\",'[1]FISCAL(M)'!$K133)","v":"n.d."},{"$f":"+'[1]REAL(A)'!$AO$20","v":"n.d."},"n.d.",{"$f":"IF('[1]FISCAL(M)'!$L133=\"\",\"\",'[1]FISCAL(M)'!$L133)","v":"n.d."},{"$f":"+'[1]REAL(A)'!$AP$20","v":"n.d."},"n.d.","n.d.","n.d.","n.d.","n.d.","n.d.","n.d.","n.d.","n.d.","n.d.","n.d.","n.d.","n.d.","n.d.","n.d.","n.d.","n.d."]
[2000,"mayo ","2000-mayo ",{"$f":"IF('[1]REAL IPC(M)'!$AL134=\"\",\"\",+'[1]REAL IPC(M)'!$AL134)","v":8.37450660963035},{"$f":"IF('[1]REAL IPC(M)'!$BE134=\"\",\"\",+'[1]REAL IPC(M)'!$BE134)","v":7.5061541339792148},{"$f":"IF('[1]REAL IPC(M)'!$AM134=\"\",\"\",+'[1]REAL IPC(M)'!$AM134)","v":7.8650526962152023},{"$f":"IF('[1]REAL IPC(M)'!$BI134=\"\",\"\",+'[1]REAL IPC(M)'!$BI134)","v":7.0506721235485292},{"$f":"IF('[1]REAL IMAE(M)'!BJ134=\"\",\"\",'[1]REAL IMAE(M)'!BJ134)","v":"n.d."},{"$f":"IF('[1]REAL IMAE(M)'!BK134=\"\",\"\",'[1]REAL IMAE(M)'!BK134)","v":"n.d."},{"$f":"IF('[1]REAL IMAE(M)'!BN134=\"\",\"\",'[1]REAL IMAE(M)'!BN134)","v":"n.d."},{"$f":"IF('[1]REAL IMAE(M)'!BO134=\"\",\"\",'[1]REAL IMAE(M)'!BO134)","v":"n.d."},{"$f":"IF('[1]EXT RIN(M)'!$K134=\"\",\"\",'[1]EXT RIN(M)'!$K134)","v":"n.d."},"",{"$f":"IF('[1]EXT RIN(M)'!$L134=\"\",\"\",'[1]EXT RIN(M)'!$L134)","v":"n.d."},"",{"$f":"IF('[1]MONE(M)CARD'!EG134=\"\",\"\",'[1]MONE(M)CARD'!EG134)","v":"n.d."},{"$f":"IF('[1]MONE(M)CARD'!EK134=\"\",\"\",'[1]MONE(M)CARD'!EK134)","v":"n.d."},{"$f":"IF('[1]MONE(M)CARD'!EP134=\"\",\"\",'[1]MONE(M)CARD'!EP134)","v":"n.d."},{"$f":"IF('[1]MONE(M)CARD'!ES134=\"\",\"\",'[1]MONE(M)CARD'!ES134)","v":"n.d."},{"$f":"IF('[1]MONE(M)CARD'!EV134=\"\",\"\",'[1]MONE(M)CARD'!EV134)","v":"n.d."},{"$f":"IF('[1]MONE(M)CARD'!EZ134=\"\",\"\",'[1]MONE(M)CARD'!EZ134)","v":"n.d."},{"$f":"IF('[1]MONE(M)CAPARD'!FC134=\"\",\"\",'[1]MONE(M)CAPARD'!FC134)","v":"n.d."},{"$f":"IF('[1]MONE(M)CAPARD'!FG134=\"\",\"\",'[1]MONE(M)CAPARD'!FG134)","v":"n.d."},{"$f":"IF('[1]MONE(M)CAPARD'!FL134=\"\",\"\",'[1]MONE(M)CAPARD'!FL134)","v":"n.d."},{"$f":"IF('[1]MONE(M)CAPARD'!FO134=\"\",\"\",'[1]MONE(M)CAPARD'!FO134)","v":"n.d."},{"$f":"IF('[1]MONE(M)CAPARD'!FR134=\"\",\"\",'[1]MONE(M)CAPARD'!FR134)","v":"n.d."},{"$f":"IF('[1]MONE(M)CAPARD'!FV134=\"\",\"\",'[1]MONE(M)CAPARD'!FV134)","v":"n.d."},{"$f":"IF('[1]MONE(M)CARD'!FV134=\"\",\"\",'[1]MONE(M)CARD'!FV134)","v":""},{"$f":"IF('[1]MONE(M)CARD'!GD134=\"\",\"\",'[1]MONE(M)CARD'!GD134)","v":"n.d."},{"$f":"IF('[1]MONE(M)CARD'!GE134=\"\",\"\",'[1]MONE(M)CARD'!GE134)","v":"n.d."},"n.d.","n.d.","n.d.","n.d.","n.d.","n.d.","n.d.","n.d.",null,"n.d.","n.d.","n.d.","n.d.","n.d.",{"$f":"IF('[1]MONE(M)CAPARD'!GS134=\"\",\"\",'[1]MONE(M)CAPARD'!GS134)","v":"n.d."},{"$f":"IF('[1]MONE(M)CARD'!HA134=\"\",\"\",'[1]MONE(M)CAPARD'!HA134)","v":"n.d."},{"$f":"IF('[1]MONE(M)CAPARD'!HB134=\"\",\"\",'[1]MONE(M)CAPARD'!HB134)","v":"n.d."},"n.d.","n.d.","n.d.","n.d.","n.d.","n.d.","n.d.","n.d.","n.d.","n.d.","n.d.","n.d.","n.d.","n.d.",{"$f":"IF('[1]MONE(M)CAPARD'!AS134=\"\",\"\",'[1]MONE(M)CAPARD'!AS134)","v":"n.d."},{"$f":"IF('[1]MONE(M)CAPARD'!AT134=\"\",\"\",'[1]MONE(M)CAPARD'!AT134)","v":"n.a."},{"$f":"IF('[1]MONE(M)CAPARD'!AU134=\"\",\"\",'[1]MONE(M)CAPARD'!AU134)","v":"n.d."},{"$f":"IF('[1]MONE(M)CAPARD'!AV134=\"\",\"\",'[1]MONE(M)CAPARD'!AV134)","v":"n.d."},{"$f":"IF('[1]MONE(M)CAPARD'!AW134=\"\",\"\",'[1]MONE(M)CAPARD'!AW134)","v":"n.a."},{"$f":"IF('[1]MONE(M)CAPARD'!AX134=\"\",\"\",'[1]MONE(M)CAPARD'!AX134)","v":"n.d."},{"$f":"IF('[1]MONE(M)CAPARD'!AY134=\"\",\"\",'[1]MONE(M)CAPARD'!AY134)","v":"n.a."},{"$f":"IF('[1]FISCAL(M)'!$K134=\"\",\"\",'[1]FISCAL(M)'!$K134)","v":"n.d."},{"$f":"IF('[1]FISCAL(M)'!$L134=\"\",\"\",'[1]FISCAL(M)'!$L134)","v":"n.d."},{"$f":"IF('[1]FISCAL(M)'!$AY134=\"\",\"\",'[1]FISCAL(M)'!$AY134)","v":"n.d."},{"$f":"IF('[1]FISCAL(M)'!$BI134=\"\",\"\",'[1]FISCAL(M)'!$BI134)","v":"n.d."},{"$f":"IF('[1]FISCAL(M)'!$BS134=\"\",\"\",'[1]FISCAL(M)'!$BS134)","v":"n.d."},{"$f":"IF('[1]FISCAL(M)'!$AZ134=\"\",\"\",'[1]FISCAL(M)'!$AZ134)","v":"n.d."},{"$f":"IF('[1]FISCAL(M)'!$BJ134=\"\",\"\",'[1]FISCAL(M)'!$BJ134)","v":"n.d."},{"$f":"IF('[1]FISCAL(M)'!$BT134=\"\",\"\",'[1]FISCAL(M)'!$BT134)","v":"n.d."},{"$f":"IF('[2]MONE(M)'!$AO134=\"\",\"\",'[2]MONE(M)'!$AO134)","v":"n.d."},{"$f":"IF('[3]MONE(M)'!$AO134=\"\",\"\",'[3]MONE(M)'!$AO134)","v":"n.d."},{"$f":"IF('[4]MONE(M)'!$AO134=\"\",\"\",'[4]MONE(M)'!$AO134)","v":"n.d."},{"$f":"IF('[5]MONE(M)'!$AO134=\"\",\"\",'[5]MONE(M)'!$AO134)","v":"n.d."},{"$f":"IF('[6]MONE(M)'!$AO134=\"\",\"\",'[6]MONE(M)'!$AO134)","v":"n.d."},{"$f":"IF('[7]MONE(M)'!$AO134=\"\",\"\",'[7]MONE(M)'!$AO134)","v":"n.d."},{"$f":"IF('[8]MONE(M)'!$AO134=\"\",\"\",'[8]MONE(M)'!$AO134)","v":"n.d."},"n.d.","n.d.","n.d.","n.d.","n.d.","n.d.","n.d.",{"$f":"IF('[1]FISCAL(M)'!$K134=\"\",\"\",'[1]FISCAL(M)'!$K134)","v":"n.d."},{"$f":"+'[1]REAL(A)'!$AO$20","v":"n.d."},"n.d.",{"$f":"IF('[1]FISCAL(M)'!$L134=\"\",\"\",'[1]FISCAL(M)'!$L134)","v":"n.d."},{"$f":"+'[1]REAL(A)'!$AP$20","v":"n.d."},"n.d.","n.d.","n.d.","n.d.","n.d.","n.d.","n.d.","n.d.","n.d.","n.d.","n.d.","n.d.","n.d.","n.d.","n.d.","n.d.","n.d."]
[2000,"junio ","2000-junio ",{"$f":"IF('[1]REAL IPC(M)'!$AL135=\"\",\"\",+'[1]REAL IPC(M)'!$AL135)","v":8.8160216079661744},{"$f":"IF('[1]REAL IPC(M)'!$BE135=\"\",\"\",+'[1]REAL IPC(M)'!$BE135)","v":7.534205834787433},{"$f":"IF('[1]REAL IPC(M)'!$AM135=\"\",\"\",+'[1]REAL IPC(M)'!$AM135)","v":8.2818843027665068},{"$f":"IF('[1]REAL IPC(M)'!$BI135=\"\",\"\",+'[1]REAL IPC(M)'!$BI135)","v":7.0749024693009588},{"$f":"IF('[1]REAL IMAE(M)'!BJ135=\"\",\"\",'[1]REAL IMAE(M)'!BJ135)","v":"n.d."},{"$f":"IF('[1]REAL IMAE(M)'!BK135=\"\",\"\",'[1]REAL IMAE(M)'!BK135)","v":"n.d."},{"$f":"IF('[1]REAL IMAE(M)'!BN135=\"\",\"\",'[1]REAL IMAE(M)'!BN135)","v":"n.d."},{"$f":"IF('[1]REAL IMAE(M)'!BO135=\"\",\"\",'[1]REAL IMAE(M)'!BO135)","v":"n.d."},{"$f":"IF('[1]EXT RIN(M)'!$K135=\"\",\"\",'[1]EXT RIN(M)'!$K135)","v":"n.d."},"",{"$f":"IF('[1]EXT RIN(M)'!$L135=\"\",\"\",'[1]EXT RIN(M)'!$L135)","v":"n.d."},"",{"$f":"IF('[1]MONE(M)CARD'!EG135=\"\",\"\",'[1]MONE(M)CARD'!EG135)","v":"n.d."},{"$f":"IF('[1]MONE(M)CARD'!EK135=\"\",\"\",'[1]MONE(M)CARD'!EK135)","v":"n.d."},{"$f":"IF('[1]MONE(M)CARD'!EP135=\"\",\"\",'[1]MONE(M)CARD'!EP135)","v":"n.d."},{"$f":"IF('[1]MONE(M)CARD'!ES135=\"\",\"\",'[1]MONE(M)CARD'!ES135)","v":"n.d."},{"$f":"IF('[1]MONE(M)CARD'!EV135=\"\",\"\",'[1]MONE(M)CARD'!EV135)","v":"n.d."},{"$f":"IF('[1]MONE(M)CARD'!EZ135=\"\",\"\",'[1]MONE(M)CARD'!EZ135)","v":"n.d."},{"$f":"IF('[1]MONE(M)CAPARD'!FC135=\"\",\"\",'[1]MONE(M)CAPARD'!FC135)","v":"n.d."},{"$f":"IF('[1]MONE(M)CAPARD'!FG135=\"\",\"\",'[1]MONE(M)CAPARD'!FG135)","v":"n.d."},{"$f":"IF('[1]MONE(M)CAPARD'!FL135=\"\",\"\",'[1]MONE(M)CAPARD'!FL135)","v":"n.d."},{"$f":"IF('[1]MONE(M)CAPARD'!FO135=\"\",\"\",'[1]MONE(M)CAPARD'!FO135)","v":"n.d."},{"$f":"IF('[1]MONE(M)CAPARD'!FR135=\"\",\"\",'[1]MONE(M)CAPARD'!FR135)","v":"n.d."},{"$f":"IF('[1]MONE(M)CAPARD'!FV135=\"\",\"\",'[1]MONE(M)CAPARD'!FV135)","v":"n.d."},{"$f":"IF('[1]MONE(M)CARD'!FV135=\"\",\"\",'[1]MONE(M)CARD'!FV135)","v":""},{"$f":"IF('[1]MONE(M)CARD'!GD135=\"\",\"\",'[1]MONE(M)CARD'!GD135)","v":"n.d."},{"$f":"IF('[1]MONE(M)CARD'!GE135=\"\",\"\",'[1]MONE(M)CARD'!GE135)","v":"n.d."},"n.d.","n.d.","n.d.","n.d.","n.d.","n.d.","n.d.","n.d.",null,"n.d.","n.d.","n.d.","n.d.","n.d.",{"$f":"IF('[1]MONE(M)CAPARD'!GS135=\"\",\"\",'[1]MONE(M)CAPARD'!GS135)","v":"n.d."},{"$f":"IF('[1]MONE(M)CARD'!HA135=\"\",\"\",'[1]MONE(M)CAPARD'!HA135)","v":"n.d."},{"$f":"IF('[1]MONE(M)CAPARD'!HB135=\"\",\"\",'[1]MONE(M)CAPARD'!HB135)","v":"n.d."},"n.d.","n.d.","n.d.","n.d.","n.d.","n.d.","n.d.","n.d.","n.d.","n.d.","n.d.","n.d.","n.d.","n.d.",{"$f":"IF('[1]MONE(M)CAPARD'!AS135=\"\",\"\",'[1]MONE(M)CAPARD'!AS135)","v":"n.d."},{"$f":"IF('[1]MONE(M)CAPARD'!AT135=\"\",\"\",'[1]MONE(M)CAPARD'!AT135)","v":"n.a."},{"$f":"IF('[1]MONE(M)CAPARD'!AU135=\"\",\"\",'[1]MONE(M)CAPARD'!AU135)","v":"n.d."},{"$f":"IF('[1]MONE(M)CAPARD'!AV135=\"\",\"\",'[1]MONE(M)CAPARD'!AV135)","v":"n.d."},{"$f":"IF('[1]MONE(M)CAPARD'!AW135=\"\",\"\",'[1]MONE(M)CAPARD'!AW135)","v":"n.a."},{"$f":"IF('[1]MONE(M)CAPARD'!AX135=\"\",\"\",'[1]MONE(M)CAPARD'!AX135)","v":"n.d."},{"$f":"IF('[1]MONE(M)CAPARD'!AY135=\"\",\"\",'[1]MONE(M)CAPARD'!AY135)","v":"n.a."},{"$f":"IF('[1]FISCAL(M)'!$K135=\"\",\"\",'[1]FISCAL(M)'!$K135)","v":"n.d."},{"$f":"IF('[1]FISCAL(M)'!$L135=\"\",\"\",'[1]FISCAL(M)'!$L135)","v":"n.d."},{"$f":"IF('[1]FISCAL(M)'!$AY135=\"\",\"\",'[1]FISCAL(M)'!$AY135)","v":"n.d."},{"$f":"IF('[1]FISCAL(M)'!$BI135=\"\",\"\",'[1]FISCAL(M)'!$BI135)","v":"n.d."},{"$f":"IF('[1]FISCAL(M)'!$BS135=\"\",\"\",'[1]FISCAL(M)'!$BS135)","v":"n.d."},{"$f":"IF('[1]FISCAL(M)'!$AZ135=\"\",\"\",'[1]FISCAL(M)'!$AZ135)","v":"n.d."},{"$f":"IF('[1]FISCAL(M)'!$BJ135=\"\",\"\",'[1]FISCAL(M)'!$BJ135)","v":"n.d."},{"$f":"IF('[1]FISCAL(M)'!$BT135=\"\",\"\",'[1]FISCAL(M)'!$BT135)","v":"n.d."},{"$f":"IF('[2]MONE(M)'!$AO135=\"\",\"\",'[2]MONE(M)'!$AO135)","v":"n.d."},{"$f":"IF('[3]MONE(M)'!$AO135=\"\",\"\",'[3]MONE(M)'!$AO135)","v":"n.d."},{"$f":"IF('[4]MONE(M)'!$AO135=\"\",\"\",'[4]MONE(M)'!$AO135)","v":"n.d."},{"$f":"IF('[5]MONE(M)'!$AO135=\"\",\"\",'[5]MONE(M)'!$AO135)","v":"n.d."},{"$f":"IF('[6]MONE(M)'!$AO135=\"\",\"\",'[6]MONE(M)'!$AO135)","v":"n.d."},{"$f":"IF('[7]MONE(M)'!$AO135=\"\",\"\",'[7]MONE(M)'!$AO135)","v":"n.d."},{"$f":"IF('[8]MONE(M)'!$AO135=\"\",\"\",'[8]MONE(M)'!$AO135)","v":"n.d."},"n.d.","n.d.","n.d.","n.d.","n.d.","n.d.","n.d.",{"$f":"IF('[1]FISCAL(M)'!$K135=\"\",\"\",'[1]FISCAL(M)'!$K135)","v":"n.d."},{"$f":"+'[1]REAL(A)'!$AO$20","v":"n.d."},"n.d.",{"$f":"IF('[1]FISCAL(M)'!$L135=\"\",\"\",'[1]FISCAL(M)'!$L135)","v":"n.d."},{"$f":"+'[1]REAL(A)'!$AP$20","v":"n.d."},"n.d.","n.d.","n.d.","n.d.","n.d.","n.d.","n.d.","n.d.","n.d.","n.d.","n.d.","n.d.","n.d.","n.d.","n.d.","n.d.","n.d."]
[2000,"julio","2000-julio",{"$f":"IF('[1]REAL IPC(M)'!$AL136=\"\",\"\",+'[1]REAL IPC(M)'!$AL136)","v":8.7648420057628851},{"$f":"IF('[1]REAL IPC(M)'!$BE136=\"\",\"\",+'[1]REAL IPC(M)'!$BE136)","v":7.5657867121715405},{"$f":"IF('[1]REAL IPC(M)'!$AM136=\"\",\"\",+'[1]REAL IPC(M)'!$AM136)","v":8.235763194120004},{"$f":"IF('[1]REAL IPC(M)'!$BI136=\"\",\"\",+'[1]REAL IPC(M)'!$BI136)","v":7.1015604971674584},{"$f":"IF('[1]REAL IMAE(M)'!BJ136=\"\",\"\",'[1]REAL IMAE(M)'!BJ136)","v":"n.d."},{"$f":"IF('[1]REAL IMAE(M)'!BK136=\"\",\"\",'[1]REAL IMAE(M)'!BK136)","v":"n.d."},{"$f":"IF('[1]REAL IMAE(M)'!BN136=\"\",\"\",'[1]REAL IMAE(M)'!BN136)","v":"n.d."},{"$f":"IF('[1]REAL IMAE(M)'!BO136=\"\",\"\",'[1]REAL IMAE(M)'!BO136)","v":"n.d."},{"$f":"IF('[1]EXT RIN(M)'!$K136=\"\",\"\",'[1]EXT RIN(M)'!$K136)","v":"n.d."},"",{"$f":"IF('[1]EXT RIN(M)'!$L136=\"\",\"\",'[1]EXT RIN(M)'!$L136)","v":"n.d."},"",{"$f":"IF('[1]MONE(M)CARD'!EG136=\"\",\"\",'[1]MONE(M)CARD'!EG136)","v":"n.d."},{"$f":"IF('[1]MONE(M)CARD'!EK136=\"\",\"\",'[1]MONE(M)CARD'!EK136)","v":"n.d."},{"$f":"IF('[1]MONE(M)CARD'!EP136=\"\",\"\",'[1]MONE(M)CARD'!EP136)","v":"n.d."},{"$f":"IF('[1]MONE(M)CARD'!ES136=\"\",\"\",'[1]MONE(M)CARD'!ES136)","v":"n.d."},{"$f":"IF('[1]MONE(M)CARD'!EV136=\"\",\"\",'[1]MONE(M)CARD'!EV136)","v":"n.d."},{"$f":"IF('[1]MONE(M)CARD'!EZ136=\"\",\"\",'[1]MONE(M)CARD'!EZ136)","v":"n.d."},{"$f":"IF('[1]MONE(M)CAPARD'!FC136=\"\",\"\",'[1]MONE(M)CAPARD'!FC136)","v":"n.d."},{"$f":"IF('[1]MONE(M)CAPARD'!FG136=\"\",\"\",'[1]MONE(M)CAPARD'!FG136)","v":"n.d."},{"$f":"IF('[1]MONE(M)CAPARD'!FL136=\"\",\"\",'[1]MONE(M)CAPARD'!FL136)","v":"n.d."},{"$f":"IF('[1]MONE(M)CAPARD'!FO136=\"\",\"\",'[1]MONE(M)CAPARD'!FO136)","v":"n.d."},{"$f":"IF('[1]MONE(M)CAPARD'!FR136=\"\",\"\",'[1]MONE(M)CAPARD'!FR136)","v":"n.d."},{"$f":"IF('[1]MONE(M)CAPARD'!FV136=\"\",\"\",'[1]MONE(M)CAPARD'!FV136)","v":"n.d."},{"$f":"IF('[1]MONE(M)CARD'!FV136=\"\",\"\",'[1]MONE(M)CARD'!FV136)","v":""},{"$f":"IF('[1]MONE(M)CARD'!GD136=\"\",\"\",'[1]MONE(M)CARD'!GD136)","v":"n.d."},{"$f":"IF('[1]MONE(M)CARD'!GE136=\"\",\"\",'[1]MONE(M)CARD'!GE136)","v":"n.d."},"n.d.","n.d.","n.d.","n.d.","n.d.","n.d.","n.d.","n.d.",null,"n.d.","n.d.","n.d.","n.d.","n.d.",{"$f":"IF('[1]MONE(M)CAPARD'!GS136=\"\",\"\",'[1]MONE(M)CAPARD'!GS136)","v":"n.d."},{"$f":"IF('[1]MONE(M)CARD'!HA136=\"\",\"\",'[1]MONE(M)CAPARD'!HA136)","v":"n.d."},{"$f":"IF('[1]MONE(M)CAPARD'!HB136=\"\",\"\",'[1]MONE(M)CAPARD'!HB136)","v":"n.d."},"n.d.","n.d.","n.d.","n.d.","n.d.","n.d.","n.d.","n.d.","n.d.","n.d.","n.d.","n.d.","n.d.","n.d.",{"$f":"IF('[1]MONE(M)CAPARD'!AS136=\"\",\"\",'[1]MONE(M)CAPARD'!AS136)","v":"n.d."},{"$f":"IF('[1]MONE(M)CAPARD'!AT136=\"\",\"\",'[1]MONE(M)CAPARD'!AT136)","v":"n.a."},{"$f":"IF('[1]MONE(M)CAPARD'!AU136=\"\",\"\",'[1]MONE(M)CAPARD'!AU136)","v":"n.d."},{"$f":"IF('[1]MONE(M)CAPARD'!AV136=\"\",\"\",'[1]MONE(M)CAPARD'!AV136)","v":"n.d."},{"$f":"IF('[1]MONE(M)CAPARD'!AW136=\"\",\"\",'[1]MONE(M)CAPARD'!AW136)","v":"n.a."},{"$f":"IF('[1]MONE(M)CAPARD'!AX136=\"\",\"\",'[1]MONE(M)CAPARD'!AX136)","v":"n.d."},{"$f":"IF('[1]MONE(M)CAPARD'!AY136=\"\",\"\",'[1]MONE(M)CAPARD'!AY136)","v":"n.a."},{"$f":"IF('[1]FISCAL(M)'!$K136=\"\",\"\",'[1]FISCAL(M)'!$K136)","v":"n.d."},{"$f":"IF('[1]FISCAL(M)'!$L136=\"\",\"\",'[1]FISCAL(M)'!$L136)","v":"n.d."},{"$f":"IF('[1]FISCAL(M)'!$AY136=\"\",\"\",'[1]FISCAL(M)'!$AY136)","v":"n.d."},{"$f":"IF('[1]FISCAL(M)'!$BI136=\"\",\"\",'[1]FISCAL(M)'!$BI136)","v":"n.d."},{"$f":"IF('[1]FISCAL(M)'!$BS136=\"\",\"\",'[1]FISCAL(M)'!$BS136)","v":"n.d."},{"$f":"IF('[1]FISCAL(M)'!$AZ136=\"\",\"\",'[1]FISCAL(M)'!$AZ136)","v":"n.d."},{"$f":"IF('[1]FISCAL(M)'!$BJ136=\"\",\"\",'[1]FISCAL(M)'!$BJ136)","v":"n.d."},{"$f":"IF('[1]FISCAL(M)'!$BT136=\"\",\"\",'[1]FISCAL(M)'!$BT136)","v":"n.d."},{"$f":"IF('[2]MONE(M)'!$AO136=\"\",\"\",'[2]MONE(M)'!$AO136)","v":"n.d."},{"$f":"IF('[3]MONE(M)'!$AO136=\"\",\"\",'[3]MONE(M)'!$AO136)","v":"n.d."},{"$f":"IF('[4]MONE(M)'!$AO136=\"\",\"\",'[4]MONE(M)'!$AO136)","v":"n.d."},{"$f":"IF('[5]MONE(M)'!$AO136=\"\",\"\",'[5]MONE(M)'!$AO136)","v":"n.d."},{"$f":"IF('[6]MONE(M)'!$AO136=\"\",\"\",'[6]MONE(M)'!$AO136)","v":"n.d."},{"$f":"IF('[7]MONE(M)'!$AO136=\"\",\"\",'[7]MONE(M)'!$AO136)","v":"n.d."},{"$f":"IF('[8]MONE(M)'!$AO136=\"\",\"\",'[8]MONE(M)'!$AO136)","v":"n.d."},"n.d.","n.d.","n.d.","n.d.","n.d.","n.d.","n.d.",{"$f":"IF('[1]FISCAL(M)'!$K136=\"\",\"\",'[1]FISCAL(M)'!$K136)","v":"n.d."},{"$f":"+'[1]REAL(A)'!$AO$20","v":"n.d."},"n.d.",{"$f":"IF('[1]FISCAL(M)'!$L136=\"\",\"\",'[1]FISCAL(M)'!$L136)","v":"n.d."},{"$f":"+'[1]REAL(A)'!$AP$20","v":"n.d."},"n.d.","n.d.","n.d.","n.d.","n.d.","n.d.","n.d.","n.d.","n.d.","n.d.","n.d.","n.d.","n.d.","n.d.","n.d.","n.d.","n.d."]
[2000,"agosto","2000-agosto",{"$f":"IF('[1]REAL IPC(M)'!$AL137=\"\",\"\",+'[1]REAL IPC(M)'!$AL137)","v":8.5095777213227475},{"$f":"IF('[1]REAL IPC(M)'!$BE137=\"\",\"\",+'[1]REAL IPC(M)'!$BE137)","v":7.600954369668278},{"$f":"IF('[1]REAL IPC(M)'!$AM137=\"\",\"\",+'[1]REAL IPC(M)'!$AM137)","v":7.9755796610164742},{"$f":"IF('[1]REAL IPC(M)'!$BI137=\"\",\"\",+'[1]REAL IPC(M)'!$BI137)","v":7.1306984227733849},{"$f":"IF('[1]REAL IMAE(M)'!BJ137=\"\",\"\",'[1]REAL IMAE(M)'!BJ137)","v":"n.d."},{"$f":"IF('[1]REAL IMAE(M)'!BK137=\"\",\"\",'[1]REAL IMAE(M)'!BK137)","v":"n.d."},{"$f":"IF('[1]REAL IMAE(M)'!BN137=\"\",\"\",'[1]REAL IMAE(M)'!BN137)","v":"n.d."},{"$f":"IF('[1]REAL IMAE(M)'!BO137=\"\",\"\",'[1]REAL IMAE(M)'!BO137)","v":"n.d."},{"$f":"IF('[1]EXT RIN(M)'!$K137=\"\",\"\",'[1]EXT RIN(M)'!$K137)","v":"n.d."},"",{"$f":"IF('[1]EXT RIN(M)'!$L137=\"\",\"\",'[1]EXT RIN(M)'!$L137)","v":"n.d."},"",{"$f":"IF('[1]MONE(M)CARD'!EG137=\"\",\"\",'[1]MONE(M)CARD'!EG137)","v":"n.d."},{"$f":"IF('[1]MONE(M)CARD'!EK137=\"\",\"\",'[1]MONE(M)CARD'!EK137)","v":"n.d."},{"$f":"IF('[1]MONE(M)CARD'!EP137=\"\",\"\",'[1]MONE(M)CARD'!EP137)","v":"n.d."},{"$f":"IF('[1]MONE(M)CARD'!ES137=\"\",\"\",'[1]MONE(M)CARD'!ES137)","v":"n.d."},{"$f":"IF('[1]MONE(M)CARD'!EV137=\"\",\"\",'[1]MONE(M)CARD'!EV137)","v":"n.d."},{"$f":"IF('[1]MONE(M)CARD'!EZ137=\"\",\"\",'[1]MONE(M)CARD'!EZ137)","v":"n.d."},{"$f":"IF('[1]MONE(M)CAPARD'!FC137=\"\",\"\",'[1]MONE(M)CAPARD'!FC137)","v":"n.d."},{"$f":"IF('[1]MONE(M)CAPARD'!FG137=\"\",\"\",'[1]MONE(M)CAPARD'!FG137)","v":"n.d."},{"$f":"IF('[1]MONE(M)CAPARD'!FL137=\"\",\"\",'[1]MONE(M)CAPARD'!FL137)","v":"n.d."},{"$f":"IF('[1]MONE(M)CAPARD'!FO137=\"\",\"\",'[1]MONE(M)CAPARD'!FO137)","v":"n.d."},{"$f":"IF('[1]MONE(M)CAPARD'!FR137=\"\",\"\",'[1]MONE(M)CAPARD'!FR137)","v":"n.d."},{"$f":"IF('[1]MONE(M)CAPARD'!FV137=\"\",\"\",'[1]MONE(M)CAPARD'!FV137)","v":"n.d."},{"$f":"IF('[1]MONE(M)CARD'!FV137=\"\",\"\",'[1]MONE(M)CARD'!FV137)","v":""},{"$f":"IF('[1]MONE(M)CARD'!GD137=\"\",\"\",'[1]MONE(M)CARD'!GD137)","v":"n.d."},{"$f":"IF('[1]MONE(M)CARD'!GE137=\"\",\"\",'[1]MONE(M)CARD'!GE137)","v":"n.d."},"n.d.","n.d.","n.d.","n.d.","n.d.","n.d.","n.d.","n.d.",null,"n.d.","n.d.","n.d.","n.d.","n.d.",{"$f":"IF('[1]MONE(M)CAPARD'!GS137=\"\",\"\",'[1]MONE(M)CAPARD'!GS137)","v":"n.d."},{"$f":"IF('[1]MONE(M)CARD'!HA137=\"\",\"\",'[1]MONE(M)CAPARD'!HA137)","v":"n.d."},{"$f":"IF('[1]MONE(M)CAPARD'!HB137=\"\",\"\",'[1]MONE(M)CAPARD'!HB137)","v":"n.d."},"n.d.","n.d.","n.d.","n.d.","n.d.","n.d.","n.d.","n.d.","n.d.","n.d.","n.d.","n.d.","n.d.","n.d.",{"$f":"IF('[1]MONE(M)CAPARD'!AS137=\"\",\"\",'[1]MONE(M)CAPARD'!AS137)","v":"n.d."},{"$f":"IF('[1]MONE(M)CAPARD'!AT137=\"\",\"\",'[1]MONE(M)CAPARD'!AT137)","v":"n.a."},{"$f":"IF('[1]MONE(M)CAPARD'!AU137=\"\",\"\",'[1]MONE(M)CAPARD'!AU137)","v":"n.d."},{"$f":"IF('[1]MONE(M)CAPARD'!AV137=\"\",\"\",'[1]MONE(M)CAPARD'!AV137)","v":"n.d."},{"$f":"IF('[1]MONE(M)CAPARD'!AW137=\"\",\"\",'[1]MONE(M)CAPARD'!AW137)","v":"n.a."},{"$f":"IF('[1]MONE(M)CAPARD'!AX137=\"\",\"\",'[1]MONE(M)CAPARD'!AX137)","v":"n.d."},{"$f":"IF('[1]MONE(M)CAPARD'!AY137=\"\",\"\",'[1]MONE(M)CAPARD'!AY137)","v":"n.a."},{"$f":"IF('[1]FISCAL(M)'!$K137=\"\",\"\",'[1]FISCAL(M)'!$K137)","v":"n.d."},{"$f":"IF('[1]FISCAL(M)'!$L137=\"\",\"\",'[1]FISCAL(M)'!$L137)","v":"n.d."},{"$f":"IF('[1]FISCAL(M)'!$AY137=\"\",\"\",'[1]FISCAL(M)'!$AY137)","v":"n.d."},{"$f":"IF('[1]FISCAL(M)'!$BI137=\"\",\"\",'[1]FISCAL(M)'!$BI137)","v":"n.d."},{"$f":"IF('[1]FISCAL(M)'!$BS137=\"\",\"\",'[1]FISCAL(M)'!$BS137)","v":"n.d."},{"$f":"IF('[1]FISCAL(M)'!$AZ137=\"\",\"\",'[1]FISCAL(M)'!$AZ137)","v":"n.d."},{"$f":"IF('[1]FISCAL(M)'!$BJ137=\"\",\"\",'[1]FISCAL(M)'!$BJ137)","v":"n.d."},{"$f":"IF('[1]FISCAL(M)'!$BT137=\"\",\"\",'[1]FISCAL(M)'!$BT137)","v":"n.d."},{"$f":"IF('[2]MONE(M)'!$AO137=\"\",\"\",'[2]MONE(M)'!$AO137)","v":"n.d."},{"$f":"IF('[3]MONE(M)'!$AO137=\"\",\"\",'[3]MONE(M)'!$AO137)","v":"n.d."},{"$f":"IF('[4]MONE(M)'!$AO137=\"\",\"\",'[4]MONE(M)'!$AO137)","v":"n.d."},{"$f":"IF('[5]MONE(M)'!$AO137=\"\",\"\",'[5]MONE(M)'!$AO137)","v":"n.d."},{"$f":"IF('[6]MONE(M)'!$AO137=\"\",\"\",'[6]MONE(M)'!$AO137)","v":"n.d."},{"$f":"IF('[7]MONE(M)'!$AO137=\"\",\"\",'[7]MONE(M)'!$AO137)","v":"n.d."},{"$f":"IF('[8]MONE(M)'!$AO137=\"\",\"\",'[8]MONE(M)'!$AO137)","v":"n.d."},"n.d.","n.d.","n.d.","n.d.","n.d.","n.d.","n.d.",{"$f":"IF('[1]FISCAL(M)'!$K137=\"\",\"\",'[1]FISCAL(M)'!$K137)","v":"n.d."},{"$f":"+'[1]REAL(A)'!$AO$20","v":"n.d."},"n.d.",{"$f":"IF('[1]FISCAL(M)'!$L137=\"\",\"\",'[1]FISCAL(M)'!$L137)","v":"n.d."},{"$f":"+'[1]REAL(A)'!$AP$20","v":"n.d."},"n.d.","n.d.","n.d.","n.d.","n.d.","n.d.","n.d.","n.d.","n.d.","n.d.","n.d.","n.d.","n.d.","n.d.","n.d.","n.d.","n.d."]
[2000,"septiembre","2000-septiembre",{"$f":"IF('[1]REAL IPC(M)'!$AL138=\"\",\"\",+'[1]REAL IPC(M)'!$AL138)","v":9.0771547675834174},{"$f":"IF('[1]REAL IPC(M)'!$BE138=\"\",\"\",+'[1]REAL IPC(M)'!$BE138)","v":7.6398355850240129},{"$f":"IF('[1]REAL IPC(M)'!$AM138=\"\",\"\",+'[1]REAL IPC(M)'!$AM138)","v":8.536738293899182},{"$f":"IF('[1]REAL IPC(M)'!$BI138=\"\",\"\",+'[1]REAL IPC(M)'!$BI138)","v":7.1624431486597695},{"$f":"IF('[1]REAL IMAE(M)'!BJ138=\"\",\"\",'[1]REAL IMAE(M)'!BJ138)","v":"n.d."},{"$f":"IF('[1]REAL IMAE(M)'!BK138=\"\",\"\",'[1]REAL IMAE(M)'!BK138)","v":"n.d."},{"$f":"IF('[1]REAL IMAE(M)'!BN138=\"\",\"\",'[1]REAL IMAE(M)'!BN138)","v":"n.d."},{"$f":"IF('[1]REAL IMAE(M)'!BO138=\"\",\"\",'[1]REAL IMAE(M)'!BO138)","v":"n.d."},{"$f":"IF('[1]EXT RIN(M)'!$K138=\"\",\"\",'[1]EXT RIN(M)'!$K138)","v":"n.d."},"",{"$f":"IF('[1]EXT RIN(M)'!$L138=\"\",\"\",'[1]EXT RIN(M)'!$L138)","v":"n.d."},"",{"$f":"IF('[1]MONE(M)CARD'!EG138=\"\",\"\",'[1]MONE(M)CARD'!EG138)","v":"n.d."},{"$f":"IF('[1]MONE(M)CARD'!EK138=\"\",\"\",'[1]MONE(M)CARD'!EK138)","v":"n.d."},{"$f":"IF('[1]MONE(M)CARD'!EP138=\"\",\"\",'[1]MONE(M)CARD'!EP138)","v":"n.d."},{"$f":"IF('[1]MONE(M)CARD'!ES138=\"\",\"\",'[1]MONE(M)CARD'!ES138)","v":"n.d."},{"$f":"IF('[1]MONE(M)CARD'!EV138=\"\",\"\",'[1]MONE(M)CARD'!EV138)","v":"n.d."},{"$f":"IF('[1]MONE(M)CARD'!EZ138=\"\",\"\",'[1]MONE(M)CARD'!EZ138)","v":"n.d."},{"$f":"IF('[1]MONE(M)CAPARD'!FC138=\"\",\"\",'[1]MONE(M)CAPARD'!FC138)","v":"n.d."},{"$f":"IF('[1]MONE(M)CAPARD'!FG138=\"\",\"\",'[1]MONE(M)CAPARD'!FG138)","v":"n.d."},{"$f":"IF('[1]MONE(M)CAPARD'!FL138=\"\",\"\",'[1]MONE(M)CAPARD'!FL138)","v":"n.d."},{"$f":"IF('[1]MONE(M)CAPARD'!FO138=\"\",\"\",'[1]MONE(M)CAPARD'!FO138)","v":"n.d."},{"$f":"IF('[1]MONE(M)CAPARD'!FR138=\"\",\"\",'[1]MONE(M)CAPARD'!FR138)","v":"n.d."},{"$f":"IF('[1]MONE(M)CAPARD'!FV138=\"\",\"\",'[1]MONE(M)CAPARD'!FV138)","v":"n.d."},{"$f":"IF('[1]MONE(M)CARD'!FV138=\"\",\"\",'[1]MONE(M)CARD'!FV138)","v":""},{"$f":"IF('[1]MONE(M)CARD'!GD138=\"\",\"\",'[1]MONE(M)CARD'!GD138)","v":"n.d."},{"$f":"IF('[1]MONE(M)CARD'!GE138=\"\",\"\",'[1]MONE(M)CARD'!GE138)","v":"n.d."},"n.d.","n.d.","n.d.","n.d.","n.d.","n.d.","n.d.","n.d.",null,"n.d.","n.d.","n.d.","n.d.","n.d.",{"$f":"IF('[1]MONE(M)CAPARD'!GS138=\"\",\"\",'[1]MONE(M)CAPARD'!GS138)","v":"n.d."},{"$f":"IF('[1]MONE(M)CARD'!HA138=\"\",\"\",'[1]MONE(M)CAPARD'!HA138)","v":"n.d."},{"$f":"IF('[1]MONE(M)CAPARD'!HB138=\"\",\"\",'[1]MONE(M)CAPARD'!HB138)","v":"n.d."},"n.d.","n.d.","n.d.","n.d.","n.d.","n.d.","n.d.","n.d.","n.d.","n.d.","n.d.","n.d.","n.d.","n.d.",{"$f":"IF('[1]MONE(M)CAPARD'!AS138=\"\",\"\",'[1]MONE(M)CAPARD'!AS138)","v":"n.d."},{"$f":"IF('[1]MONE(M)CAPARD'!AT138=\"\",\"\",'[1]MONE(M)CAPARD'!AT138)","v":"n.a."},{"$f":"IF('[1]MONE(M)CAPARD'!AU138=\"\",\"\",'[1]MONE(M)CAPARD'!AU138)","v":"n.d."},{"$f":"IF('[1]MONE(M)CAPARD'!AV138=\"\",\"\",'[1]MONE(M)CAPARD'!AV138)","v":"n.d."},{"$f":"IF('[1]MONE(M)CAPARD'!AW138=\"\",\"\",'[1]MONE(M)CAPARD'!AW138)","v":"n.a."},{"$f":"IF('[1]MONE(M)CAPARD'!AX138=\"\",\"\",'[1]MONE(M)CAPARD'!AX138)","v":"n.d."},{"$f":"IF('[1]MONE(M)CAPARD'!AY138=\"\",\"\",'[1]MONE(M)CAPARD'!AY138)","v":"n.a."},{"$f":"IF('[1]FISCAL(M)'!$K138=\"\",\"\",'[1]FISCAL(M)'!$K138)","v":"n.d."},{"$f":"IF('[1]FISCAL(M)'!$L138=\"\",\"\",'[1]FISCAL(M)'!$L138)","v":"n.d."},{"$f":"IF('[1]FISCAL(M)'!$AY138=\"\",\"\",'[1]FISCAL(M)'!$AY138)","v":"n.d."},{"$f":"IF('[1]FISCAL(M)'!$BI138=\"\",\"\",'[1]FISCAL(M)'!$BI138)","v":"n.d."},{"$f":"IF('[1]FISCAL(M)'!$BS138=\"\",\"\",'[1]FISCAL(M)'!$BS138)","v":"n.d."},{"$f":"IF('[1]FISCAL(M)'!$AZ138=\"\",\"\",'[1]FISCAL(M)'!$AZ138)","v":"n.d."},{"$f":"IF('[1]FISCAL(M)'!$BJ138=\"\",\"\",'[1]FISCAL(M)'!$BJ138)","v":"n.d."},{"$f":"IF('[1]FISCAL(M)'!$BT138=\"\",\"\",'[1]FISCAL(M)'!$BT138)","v":"n.d."},{"$f":"IF('[2]MONE(M)'!$AO138=\"\",\"\",'[2]MONE(M)'!$AO138)","v":"n.d."},{"$f":"IF('[3]MONE(M)'!$AO138=\"\",\"\",'[3]MONE(M)'!$AO138)","v":"n.d."},{"$f":"IF('[4]MONE(M)'!$AO138=\"\",\"\",'[4]MONE(M)'!$AO138)","v":"n.d."},{"$f":"IF('[5]MONE(M)'!$AO138=\"\",\"\",'[5]MONE(M)'!$AO138)","v":"n.d."},{"$f":"IF('[6]MONE(M)'!$AO138=\"\",\"\",'[6]MONE(M)'!$AO138)","v":"n.d."},{"$f":"IF('[7]MONE(M)'!$AO138=\"\",\"\",'[7]MONE(M)'!$AO138)","v":"n.d."},{"$f":"IF('[8]MONE(M)'!$AO138=\"\",\"\",'[8]MONE(M)'!$AO138)","v":"n.d."},"n.d.","n.d.","n.d.","n.d.","n.d.","n.d.","n.d.",{"$f":"IF('[1]FISCAL(M)'!$K138=\"\",\"\",'[1]FISCAL(M)'!$K138)","v":"n.d."},{"$f":"+'[1]REAL(A)'!$AO$20","v":"n.d."},{"$f":"IF(OR(CM131=\"n.d.\",CM131=\"\",CN131=\"\",CN131=\"n.d.\"),\"n.d.\",(CM131/CN131)*100)","v":"n.d."},{"$f":"IF('[1]FISCAL(M)'!$L138=\"\",\"\",'[1]FISCAL(M)'!$L138)","v":"n.d."},{"$f":"+'[1]REAL(A)'!$AP$20","v":"n.d."},"n.d.","n.d.","n.d.","n.d.","n.d.","n.d.","n.d.","n.d.","n.d.","n.d.","n.d.","n.d.","n.d.","n.d.","n.d.","n.d.","n.d."]
[2000,"octubre",{"$f":"A132&\"-\"&B132","v":"2000-octubre"},{"$f":"IF('[1]REAL IPC(M)'!$AL139=\"\",\"\",+'[1]REAL IPC(M)'!$AL139)","v":7.7932002887763474},{"$f":"IF('[1]REAL IPC(M)'!$BE139=\"\",\"\",+'[1]REAL IPC(M)'!$BE139)","v":7.682619929802037},{"$f":"IF('[1]REAL IPC(M)'!$AM139=\"\",\"\",+'[1]REAL IPC(M)'!$AM139)","v":7.325640361958019},{"$f":"IF('[1]REAL IPC(M)'!$BI139=\"\",\"\",+'[1]REAL IPC(M)'!$BI139)","v":7.1969892836375449},{"$f":"IF('[1]REAL IMAE(M)'!BJ139=\"\",\"\",'[1]REAL IMAE(M)'!BJ139)","v":"n.d."},{"$f":"IF('[1]REAL IMAE(M)'!BK139=\"\",\"\",'[1]REAL IMAE(M)'!BK139)","v":"n.d."},{"$f":"IF('[1]REAL IMAE(M)'!BN139=\"\",\"\",'[1]REAL IMAE(M)'!BN139)","v":"n.d."},{"$f":"IF('[1]REAL IMAE(M)'!BO139=\"\",\"\",'[1]REAL IMAE(M)'!BO139)","v":"n.d."},{"$f":"IF('[1]EXT RIN(M)'!$K139=\"\",\"\",'[1]EXT RIN(M)'!$K139)","v":"n.d."},{"$f":"IF(B132<>\"diciembre\",\"\",L132)","v":""},{"$f":"IF('[1]EXT RIN(M)'!$L139=\"\",\"\",'[1]EXT RIN(M)'!$L139)","v":"n.d."},{"$f":"IF(B132<>\"diciembre\",\"\",N132)","v":""},{"$f":"IF('[1]MONE(M)CARD'!EG139=\"\",\"\",'[1]MONE(M)CARD'!EG139)","v":"n.d."},{"$f":"IF('[1]MONE(M)CARD'!EK139=\"\",\"\",'[1]MONE(M)CARD'!EK139)","v":"n.d."},{"$f":"IF('[1]MONE(M)CARD'!EP139=\"\",\"\",'[1]MONE(M)CARD'!EP139)","v":"n.d."},{"$f":"IF('[1]MONE(M)CARD'!ES139=\"\",\"\",'[1]MONE(M)CARD'!ES139)","v":"n.d."},{"$f":"IF('[1]MONE(M)CARD'!EV139=\"\",\"\",'[1]MONE(M)CARD'!EV139)","v":"n.d."},{"$f":"IF('[1]MONE(M)CARD'!EZ139=\"\",\"\",'[1]MONE(M)CARD'!EZ139)","v":"n.d."},{"$f":"IF('[1]MONE(M)CAPARD'!FC139=\"\",\"\",'[1]MONE(M)CAPARD'!FC139)","v":"n.d."},{"$f":"IF('[1]MONE(M)CAPARD'!FG139=\"\",\"\",'[1]MONE(M)CAPARD'!FG139)","v":"n.d."},{"$f":"IF('[1]MONE(M)CAPARD'!FL139=\"\",\"\",'[1]MONE(M)CAPARD'!FL139)","v":"n.d."},{"$f":"IF('[1]MONE(M)CAPARD'!FO139=\"\",\"\",'[1]MONE(M)CAPARD'!FO139)","v":"n.d."},{"$f":"IF('[1]MONE(M)CAPARD'!FR139=\"\",\"\",'[1]MONE(M)CAPARD'!FR139)","v":"n.d."},{"$f":"IF('[1]MONE(M)CAPARD'!FV139=\"\",\"\",'[1]MONE(M)CAPARD'!FV139)","v":"n.d."},{"$f":"IF('[1]MONE(M)CARD'!FV139=\"\",\"\",'[1]MONE(M)CARD'!FV139)","v":""},{"$f":"IF('[1]MONE(M)CARD'!GD139=\"\",\"\",'[1]MONE(M)CARD'!GD139)","v":"n.d."},{"$f":"IF('[1]MONE(M)CARD'!GE139=\"\",\"\",'[1]MONE(M)CARD'!GE139)","v":"n.d."},"n.d.","n.d.","n.d.","n.d.","n.d.","n.d.","n.d.","n.d.",null,"n.d.","n.d.","n.d.","n.d.","n.d.",{"$f":"IF('[1]MONE(M)CAPARD'!GS139=\"\",\"\",'[1]MONE(M)CAPARD'!GS139)","v":"n.d."},{"$f":"IF('[1]MONE(M)CARD'!HA139=\"\",\"\",'[1]MONE(M)CAPARD'!HA139)","v":"n.d."},{"$f":"IF('[1]MONE(M)CAPARD'!HB139=\"\",\"\",'[1]MONE(M)CAPARD'!HB139)","v":"n.d."},"n.d.","n.d.","n.d.","n.d.","n.d.","n.d.","n.d.","n.d.","n.d.","n.d.","n.d.","n.d.","n.d.","n.d.",{"$f":"IF('[1]MONE(M)CAPARD'!AS139=\"\",\"\",'[1]MONE(M)CAPARD'!AS139)","v":"n.d."},{"$f":"IF('[1]MONE(M)CAPARD'!AT139=\"\",\"\",'[1]MONE(M)CAPARD'!AT139)","v":"n.a."},{"$f":"IF('[1]MONE(M)CAPARD'!AU139=\"\",\"\",'[1]MONE(M)CAPARD'!AU139)","v":"n.d."},{"$f":"IF('[1]MONE(M)CAPARD'!AV139=\"\",\"\",'[1]MONE(M)CAPARD'!AV139)","v":"n.d."},{"$f":"IF('[1]MONE(M)CAPARD'!AW139=\"\",\"\",'[1]MONE(M)CAPARD'!AW139)","v":"n.a."},{"$f":"IF('[1]MONE(M)CAPARD'!AX139=\"\",\"\",'[1]MONE(M)CAPARD'!AX139)","v":"n.d."},{"$f":"IF('[1]MONE(M)CAPARD'!AY139=\"\",\"\",'[1]MONE(M)CAPARD'!AY139)","v":"n.a."},{"$f":"IF('[1]FISCAL(M)'!$K139=\"\",\"\",'[1]FISCAL(M)'!$K139)","v":"n.d."},{"$f":"IF('[1]FISCAL(M)'!$L139=\"\",\"\",'[1]FISCAL(M)'!$L139)","v":"n.d."},{"$f":"IF('[1]FISCAL(M)'!$AY139=\"\",\"\",'[1]FISCAL(M)'!$AY139)","v":"n.d."},{"$f":"IF('[1]FISCAL(M)'!$BI139=\"\",\"\",'[1]FISCAL(M)'!$BI139)","v":"n.d."},{"$f":"IF('[1]FISCAL(M)'!$BS139=\"\",\"\",'[1]FISCAL(M)'!$BS139)","v":"n.d."},{"$f":"IF('[1]FISCAL(M)'!$AZ139=\"\",\"\",'[1]FISCAL(M)'!$AZ139)","v":"n.d."},{"$f":"IF('[1]FISCAL(M)'!$BJ139=\"\",\"\",'[1]FISCAL(M)'!$BJ139)","v":"n.d."},{"$f":"IF('[1]FISCAL(M)'!$BT139=\"\",\"\",'[1]FISCAL(M)'!$BT139)","v":"n.d."},{"$f":"IF('[2]MONE(M)'!$AO139=\"\",\"\",'[2]MONE(M)'!$AO139)","v":"n.d."},{"$f":"IF('[3]MONE(M)'!$AO139=\"\",\"\",'[3]MONE(M)'!$AO139)","v":"n.d."},{"$f":"IF('[4]MONE(M)'!$AO139=\"\",\"\",'[4]MONE(M)'!$AO139)","v":"n.d."},{"$f":"IF('[5]MONE(M)'!$AO139=\"\",\"\",'[5]MONE(M)'!$AO139)","v":"n.d."},{"$f":"IF('[6]MONE(M)'!$AO139=\"\",\"\",'[6]MONE(M)'!$AO139)","v":"n.d."},{"$f":"IF('[7]MONE(M)'!$AO139=\"\",\"\",'[7]MONE(M)'!$AO139)","v":"n.d."},{"$f":"IF('[8]MONE(M)'!$AO139=\"\",\"\",'[8]MONE(M)'!$AO139)","v":"n.d."},"n.d.","n.d.","n.d.","n.d.","n.d.","n.d.","n.d.",{"$f":"IF('[1]FISCAL(M)'!$K139=\"\",\"\",'[1]FISCAL(M)'!$K139)","v":"n.d."},{"$f":"+'[1]REAL(A)'!$AO$20","v":"n.d."},"n.d.",{"$f":"IF('[1]FISCAL(M)'!$L139=\"\",\"\",'[1]FISCAL(M)'!$L139)","v":"n.d."},{"$f":"+'[1]REAL(A)'!$AP$20","v":"n.d."},{"$f":"IF(OR(CP132=\"n.d.\",CP132=\"\",CQ132=\"\",CQ132=\"n.d.\"),\"n.d.\",(CP132/CQ132)*100)","v":"n.d."},"n.d.","n.d.","n.d.","n.d.","n.d.","n.d.","n.d.","n.d.","n.d.","n.d.","n.d.","n.d.","n.d.","n.d.","n.d.","n.d."]
[2000,"noviembre","2000-noviembre",{"$f":"IF('[1]REAL IPC(M)'!$AL140=\"\",\"\",+'[1]REAL IPC(M)'!$AL140)","v":7.7111813326759648},{"$f":"IF('[1]REAL IPC(M)'!$BE140=\"\",\"\",+'[1]REAL IPC(M)'!$BE140)","v":7.7295624989520029},{"$f":"IF('[1]REAL IPC(M)'!$AM140=\"\",\"\",+'[1]REAL IPC(M)'!$AM140)","v":7.2201823266048404},{"$f":"IF('[1]REAL IPC(M)'!$BI140=\"\",\"\",+'[1]REAL IPC(M)'!$BI140)","v":7.2346045608222553},{"$f":"IF('[1]REAL IMAE(M)'!BJ140=\"\",\"\",'[1]REAL IMAE(M)'!BJ140)","v":"n.d."},{"$f":"IF('[1]REAL IMAE(M)'!BK140=\"\",\"\",'[1]REAL IMAE(M)'!BK140)","v":"n.d."},{"$f":"IF('[1]REAL IMAE(M)'!BN140=\"\",\"\",'[1]REAL IMAE(M)'!BN140)","v":"n.d."},{"$f":"IF('[1]REAL IMAE(M)'!BO140=\"\",\"\",'[1]REAL IMAE(M)'!BO140)","v":"n.d."},{"$f":"IF('[1]EXT RIN(M)'!$K140=\"\",\"\",'[1]EXT RIN(M)'!$K140)","v":"n.d."},"",{"$f":"IF('[1]EXT RIN(M)'!$L140=\"\",\"\",'[1]EXT RIN(M)'!$L140)","v":"n.d."},"",{"$f":"IF('[1]MONE(M)CARD'!EG140=\"\",\"\",'[1]MONE(M)CARD'!EG140)","v":"n.d."},{"$f":"IF('[1]MONE(M)CARD'!EK140=\"\",\"\",'[1]MONE(M)CARD'!EK140)","v":"n.d."},{"$f":"IF('[1]MONE(M)CARD'!EP140=\"\",\"\",'[1]MONE(M)CARD'!EP140)","v":"n.d."},{"$f":"IF('[1]MONE(M)CARD'!ES140=\"\",\"\",'[1]MONE(M)CARD'!ES140)","v":"n.d."},{"$f":"IF('[1]MONE(M)CARD'!EV140=\"\",\"\",'[1]MONE(M)CARD'!EV140)","v":"n.d."},{"$f":"IF('[1]MONE(M)CARD'!EZ140=\"\",\"\",'[1]MONE(M)CARD'!EZ140)","v":"n.d."},{"$f":"IF('[1]MONE(M)CAPARD'!FC140=\"\",\"\",'[1]MONE(M)CAPARD'!FC140)","v":"n.d."},{"$f":"IF('[1]MONE(M)CAPARD'!FG140=\"\",\"\",'[1]MONE(M)CAPARD'!FG140)","v":"n.d."},{"$f":"IF('[1]MONE(M)CAPARD'!FL140=\"\",\"\",'[1]MONE(M)CAPARD'!FL140)","v":"n.d."},{"$f":"IF('[1]MONE(M)CAPARD'!FO140=\"\",\"\",'[1]MONE(M)CAPARD'!FO140)","v":"n.d."},{"$f":"IF('[1]MONE(M)CAPARD'!FR140=\"\",\"\",'[1]MONE(M)CAPARD'!FR140)","v":"n.d."},{"$f":"IF('[1]MONE(M)CAPARD'!FV140=\"\",\"\",'[1]MONE(M)CAPARD'!FV140)","v":"n.d."},{"$f":"IF('[1]MONE(M)CARD'!FV140=\"\",\"\",'[1]MONE(M)CARD'!FV140)","v":""},{"$f":"IF('[1]MONE(M)CARD'!GD140=\"\",\"\",'[1]MONE(M)CARD'!GD140)","v":"n.d."},{"$f":"IF('[1]MONE(M)CARD'!GE140=\"\",\"\",'[1]MONE(M)CARD'!GE140)","v":"n.d."},"n.d.","n.d.","n.d.","n.d.","n.d.","n.d.","n.d.","n.d.",null,"n.d.","n.d.","n.d.","n.d.","n.d.",{"$f":"IF('[1]MONE(M)CAPARD'!GS140=\"\",\"\",'[1]MONE(M)CAPARD'!GS140)","v":"n.d."},{"$f":"IF('[1]MONE(M)CARD'!HA140=\"\",\"\",'[1]MONE(M)CAPARD'!HA140)","v":"n.d."},{"$f":"IF('[1]MONE(M)CAPARD'!HB140=\"\",\"\",'[1]MONE(M)CAPARD'!HB140)","v":"n.d."},"n.d.","n.d.","n.d.","n.d.","n.d.","n.d.","n.d.","n.d.","n.d.","n.d.","n.d.","n.d.","n.d.","n.d.",{"$f":"IF('[1]MONE(M)CAPARD'!AS140=\"\",\"\",'[1]MONE(M)CAPARD'!AS140)","v":"n.d."},{"$f":"IF('[1]MONE(M)CAPARD'!AT140=\"\",\"\",'[1]MONE(M)CAPARD'!AT140)","v":"n.a."},{"$f":"IF('[1]MONE(M)CAPARD'!AU140=\"\",\"\",'[1]MONE(M)CAPARD'!AU140)","v":"n.d."},{"$f":"IF('[1]MONE(M)CAPARD'!AV140=\"\",\"\",'[1]MONE(M)CAPARD'!AV140)","v":"n.d."},{"$f":"IF('[1]MONE(M)CAPARD'!AW140=\"\",\"\",'[1]MONE(M)CAPARD'!AW140)","v":"n.a."},{"$f":"IF('[1]MONE(M)CAPARD'!AX140=\"\",\"\",'[1]MONE(M)CAPARD'!AX140)","v":"n.d."},{"$f":"IF('[1]MONE(M)CAPARD'!AY140=\"\",\"\",'[1]MONE(M)CAPARD'!AY140)","v":"n.a."},{"$f":"IF('[1]FISCAL(M)'!$K140=\"\",\"\",'[1]FISCAL(M)'!$K140)","v":"n.d."},{"$f":"IF('[1]FISCAL(M)'!$L140=\"\",\"\",'[1]FISCAL(M)'!$L140)","v":"n.d."},{"$f":"IF('[1]FISCAL(M)'!$AY140=\"\",\"\",'[1]FISCAL(M)'!$AY140)","v":"n.d."},{"$f":"IF('[1]FISCAL(M)'!$BI140=\"\",\"\",'[1]FISCAL(M)'!$BI140)","v":"n.d."},{"$f":"IF('[1]FISCAL(M)'!$BS140=\"\",\"\",'[1]FISCAL(M)'!$BS140)","v":"n.d."},{"$f":"IF('[1]FISCAL(M)'!$AZ140=\"\",\"\",'[1]FISCAL(M)'!$AZ140)","v":"n.d."},{"$f":"IF('[1]FISCAL(M)'!$BJ140=\"\",\"\",'[1]FISCAL(M)'!$BJ140)","v":"n.d."},{"$f":"IF('[1]FISCAL(M)'!$BT140=\"\",\"\",'[1]FISCAL(M)'!$BT140)","v":"n.d."},{"$f":"IF('[2]MONE(M)'!$AO140=\"\",\"\",'[2]MONE(M)'!$AO140)","v":"n.d."},{"$f":"IF('[3]MONE(M)'!$AO140=\"\",\"\",'[3]MONE(M)'!$AO140)","v":"n.d."},{"$f":"IF('[4]MONE(M)'!$AO140=\"\",\"\",'[4]MONE(M)'!$AO140)","v":"n.d."},{"$f":"IF('[5]MONE(M)'!$AO140=\"\",\"\",'[5]MONE(M)'!$AO140)","v":"n.d."},{"$f":"IF('[6]MONE(M)'!$AO140=\"\",\"\",'[6]MONE(M)'!$AO140)","v":"n.d."},{"$f":"IF('[7]MONE(M)'!$AO140=\"\",\"\",'[7]MONE(M)'!$AO140)","v":"n.d."},{"$f":"IF('[8]MONE(M)'!$AO140=\"\",\"\",'[8]MONE(M)'!$AO140)","v":"n.d."},"n.d.","n.d.","n.d.","n.d.","n.d.","n.d.","n.d.",{"$f":"IF('[1]FISCAL(M)'!$K140=\"\",\"\",'[1]FISCAL(M)'!$K140)","v":"n.d."},{"$f":"+'[1]REAL(A)'!$AO$20","v":"n.d."},"n.d.",{"$f":"IF('[1]FISCAL(M)'!$L140=\"\",\"\",'[1]FISCAL(M)'!$L140)","v":"n.d."},{"$f":"+'[1]REAL(A)'!$AP$20","v":"n.d."},"n.d.","n.d.","n.d.","n.d.","n.d.","n.d.","n.d.","n.d.","n.d.","n.d.","n.d.","n.d.","n.d.","n.d.","n.d.","n.d.","n.d."]
[2000,"diciembre","2000-diciembre",{"$f":"IF('[1]REAL IPC(M)'!$AL141=\"\",\"\",+'[1]REAL IPC(M)'!$AL141)","v":8.1942365594667841},{"$f":"IF('[1]REAL IPC(M)'!$BE141=\"\",\"\",+'[1]REAL IPC(M)'!$BE141)","v":7.7809308596496374},{"$f":"IF('[1]REAL IPC(M)'!$AM141=\"\",\"\",+'[1]REAL IPC(M)'!$AM141)","v":7.6441579723359965},{"$f":"IF('[1]REAL IPC(M)'!$BI141=\"\",\"\",+'[1]REAL IPC(M)'!$BI141)","v":7.2755762795184253},{"$f":"IF('[1]REAL IMAE(M)'!BJ141=\"\",\"\",'[1]REAL IMAE(M)'!BJ141)","v":"n.d."},{"$f":"IF('[1]REAL IMAE(M)'!BK141=\"\",\"\",'[1]REAL IMAE(M)'!BK141)","v":"n.d."},{"$f":"IF('[1]REAL IMAE(M)'!BN141=\"\",\"\",'[1]REAL IMAE(M)'!BN141)","v":"n.d."},{"$f":"IF('[1]REAL IMAE(M)'!BO141=\"\",\"\",'[1]REAL IMAE(M)'!BO141)","v":"n.d."},{"$f":"IF('[1]EXT RIN(M)'!$K141=\"\",\"\",'[1]EXT RIN(M)'!$K141)","v":"n.d."},"n.d.",{"$f":"IF('[1]EXT RIN(M)'!$L141=\"\",\"\",'[1]EXT RIN(M)'!$L141)","v":"n.d."},"n.d.",{"$f":"IF('[1]MONE(M)CARD'!EG141=\"\",\"\",'[1]MONE(M)CARD'!EG141)","v":"n.d."},{"$f":"IF('[1]MONE(M)CARD'!EK141=\"\",\"\",'[1]MONE(M)CARD'!EK141)","v":"n.d."},{"$f":"IF('[1]MONE(M)CARD'!EP141=\"\",\"\",'[1]MONE(M)CARD'!EP141)","v":"n.d."},{"$f":"IF('[1]MONE(M)CARD'!ES141=\"\",\"\",'[1]MONE(M)CARD'!ES141)","v":"n.d."},{"$f":"IF('[1]MONE(M)CARD'!EV141=\"\",\"\",'[1]MONE(M)CARD'!EV141)","v":"n.d."},{"$f":"IF('[1]MONE(M)CARD'!EZ141=\"\",\"\",'[1]MONE(M)CARD'!EZ141)","v":"n.d."},{"$f":"IF('[1]MONE(M)CAPARD'!FC141=\"\",\"\",'[1]MONE(M)CAPARD'!FC141)","v":"n.d."},{"$f":"IF('[1]MONE(M)CAPARD'!FG141=\"\",\"\",'[1]MONE(M)CAPARD'!FG141)","v":"n.d."},{"$f":"IF('[1]MONE(M)CAPARD'!FL141=\"\",\"\",'[1]MONE(M)CAPARD'!FL141)","v":"n.d."},{"$f":"IF('[1]MONE(M)CAPARD'!FO141=\"\",\"\",'[1]MONE(M)CAPARD'!FO141)","v":"n.d."},{"$f":"IF('[1]MONE(M)CAPARD'!FR141=\"\",\"\",'[1]MONE(M)CAPARD'!FR141)","v":"n.d."},{"$f":"IF('[1]MONE(M)CAPARD'!FV141=\"\",\"\",'[1]MONE(M)CAPARD'!FV141)","v":"n.d."},{"$f":"IF('[1]MONE(M)CARD'!FV141=\"\",\"\",'[1]MONE(M)CARD'!FV141)","v":""},{"$f":"IF('[1]MONE(M)CARD'!GD141=\"\",\"\",'[1]MONE(M)CARD'!GD141)","v":"n.d."},{"$f":"IF('[1]MONE(M)CARD'!GE141=\"\",\"\",'[1]MONE(M)CARD'!GE141)","v":"n.d."},"n.d.","n.d.","n.d.","n.d.","n.d.","n.d.","n.d.","n.d.",null,"n.d.","n.d.","n.d.","n.d.","n.d.",{"$f":"IF('[1]MONE(M)CAPARD'!GS141=\"\",\"\",'[1]MONE(M)CAPARD'!GS141)","v":"n.d."},{"$f":"IF('[1]MONE(M)CARD'!HA141=\"\",\"\",'[1]MONE(M)CAPARD'!HA141)","v":"n.d."},{"$f":"IF('[1]MONE(M)CAPARD'!HB141=\"\",\"\",'[1]MONE(M)CAPARD'!HB141)","v":"n.d."},"n.d.","n.d.","n.d.","n.d.","n.d.","n.d.","n.d.","n.d.","n.d.","n.d.","n.d.","n.d.","n.d.","n.d.",{"$f":"IF('[1]MONE(M)CAPARD'!AS141=\"\",\"\",'[1]MONE(M)CAPARD'!AS141)","v":"n.d."},{"$f":"IF('[1]MONE(M)CAPARD'!AT141=\"\",\"\",'[1]MONE(M)CAPARD'!AT141)","v":"n.a."},{"$f":"IF('[1]MONE(M)CAPARD'!AU141=\"\",\"\",'[1]MONE(M)CAPARD'!AU141)","v":"n.d."},{"$f":"IF('[1]MONE(M)CAPARD'!AV141=\"\",\"\",'[1]MONE(M)CAPARD'!AV141)","v":"n.d."},{"$f":"IF('[1]MONE(M)CAPARD'!AW141=\"\",\"\",'[1]MONE(M)CAPARD'!AW141)","v":"n.a."},{"$f":"IF('[1]MONE(M)CAPARD'!AX141=\"\",\"\",'[1]MONE(M)CAPARD'!AX141)","v":"n.d."},{"$f":"IF('[1]MONE(M)CAPARD'!AY141=\"\",\"\",'[1]MONE(M)CAPARD'!AY141)","v":"n.a."},{"$f":"IF('[1]FISCAL(M)'!$K141=\"\",\"\",'[1]FISCAL(M)'!$K141)","v":"n.d."},{"$f":"IF('[1]FISCAL(M)'!$L141=\"\",\"\",'[1]FISCAL(M)'!$L141)","v":"n.d."},{"$f":"IF('[1]FISCAL(M)'!$AY141=\"\",\"\",'[1]FISCAL(M)'!$AY141)","v":"n.d."},{"$f":"IF('[1]FISCAL(M)'!$BI141=\"\",\"\",'[1]FISCAL(M)'!$BI141)","v":"n.d."},{"$f":"IF('[1]FISCAL(M)'!$BS141=\"\",\"\",'[1]FISCAL(M)'!$BS141)","v":"n.d."},{"$f":"IF('[1]FISCAL(M)'!$AZ141=\"\",\"\",'[1]FISCAL(M)'!$AZ141)","v":"n.d."},{"$f":"IF('[1]FISCAL(M)'!$BJ141=\"\",\"\",'[1]FISCAL(M)'!$BJ141)","v":"n.d."},{"$f":"IF('[1]FISCAL(M)'!$BT141=\"\",\"\",'[1]FISCAL(M)'!$BT141)","v":"n.d."},{"$f":"IF('[2]MONE(M)'!$AO141=\"\",\"\",'[2]MONE(M)'!$AO141)","v":"n.d."},{"$f":"IF('[3]MONE(M)'!$AO141=\"\",\"\",'[3]MONE(M)'!$AO141)","v":"n.d."},{"$f":"IF('[4]MONE(M)'!$AO141=\"\",\"\",'[4]MONE(M)'!$AO141)","v":"n.d."},{"$f":"IF('[5]MONE(M)'!$AO141=\"\",\"\",'[5]MONE(M)'!$AO141)","v":"n.d."},{"$f":"IF('[6]MONE(M)'!$AO141=\"\",\"\",'[6]MONE(M)'!$AO141)","v":"n.d."},{"$f":"IF('[7]MONE(M)'!$AO141=\"\",\"\",'[7]MONE(M)'!$AO141)","v":"n.d."},{"$f":"IF('[8]MONE(M)'!$AO141=\"\",\"\",'[8]MONE(M)'!$AO141)","v":"n.d."},"n.d.","n.d.","n.d.","n.d.","n.d.","n.d.","n.d.",{"$f":"IF('[1]FISCAL(M)'!$K141=\"\",\"\",'[1]FISCAL(M)'!$K141)","v":"n.d."},{"$f":"+'[1]REAL(A)'!$AO$20","v":"n.d."},"n.d.",{"$f":"IF('[1]FISCAL(M)'!$L141=\"\",\"\",'[1]FISCAL(M)'!$L141)","v":"n.d."},{"$f":"+'[1]REAL(A)'!$AP$20","v":"n.d."},"n.d.","n.d.","n.d.","n.d.","n.d.","n.d.","n.d.","n.d.","n.d.","n.d.","n.d.","n.d.","n.d.","n.d.","n.d.","n.d.","n.d."]
[2001,"enero","2001-enero",{"$f":"IF('[1]REAL IPC(M)'!$AL142=\"\",\"\",+'[1]REAL IPC(M)'!$AL142)","v":9.0139526394273481},{"$f":"IF('[1]REAL IPC(M)'!$BE142=\"\",\"\",+'[1]REAL IPC(M)'!$BE142)","v":7.8369805034651296},{"$f":"IF('[1]REAL IPC(M)'!$AM142=\"\",\"\",+'[1]REAL IPC(M)'!$AM142)","v":8.5585823613318013},{"$f":"IF('[1]REAL IPC(M)'!$BI142=\"\",\"\",+'[1]REAL IPC(M)'!$BI142)","v":7.3201801528210098},{"$f":"IF('[1]REAL IMAE(M)'!BJ142=\"\",\"\",'[1]REAL IMAE(M)'!BJ142)","v":"n.d."},{"$f":"IF('[1]REAL IMAE(M)'!BK142=\"\",\"\",'[1]REAL IMAE(M)'!BK142)","v":"n.d."},{"$f":"IF('[1]REAL IMAE(M)'!BN142=\"\",\"\",'[1]REAL IMAE(M)'!BN142)","v":"n.d."},{"$f":"IF('[1]REAL IMAE(M)'!BO142=\"\",\"\",'[1]REAL IMAE(M)'!BO142)","v":"n.d."},{"$f":"IF('[1]EXT RIN(M)'!$K142=\"\",\"\",'[1]EXT RIN(M)'!$K142)","v":"n.d."},"",{"$f":"IF('[1]EXT RIN(M)'!$L142=\"\",\"\",'[1]EXT RIN(M)'!$L142)","v":"n.d."},"",{"$f":"IF('[1]MONE(M)CARD'!EG142=\"\",\"\",'[1]MONE(M)CARD'!EG142)","v":"n.d."},{"$f":"IF('[1]MONE(M)CARD'!EK142=\"\",\"\",'[1]MONE(M)CARD'!EK142)","v":"n.d."},{"$f":"IF('[1]MONE(M)CARD'!EP142=\"\",\"\",'[1]MONE(M)CARD'!EP142)","v":"n.d."},{"$f":"IF('[1]MONE(M)CARD'!ES142=\"\",\"\",'[1]MONE(M)CARD'!ES142)","v":"n.d."},{"$f":"IF('[1]MONE(M)CARD'!EV142=\"\",\"\",'[1]MONE(M)CARD'!EV142)","v":"n.d."},{"$f":"IF('[1]MONE(M)CARD'!EZ142=\"\",\"\",'[1]MONE(M)CARD'!EZ142)","v":"n.d."},{"$f":"IF('[1]MONE(M)CAPARD'!FC142=\"\",\"\",'[1]MONE(M)CAPARD'!FC142)","v":"n.d."},{"$f":"IF('[1]MONE(M)CAPARD'!FG142=\"\",\"\",'[1]MONE(M)CAPARD'!FG142)","v":"n.d."},{"$f":"IF('[1]MONE(M)CAPARD'!FL142=\"\",\"\",'[1]MONE(M)CAPARD'!FL142)","v":"n.d."},{"$f":"IF('[1]MONE(M)CAPARD'!FO142=\"\",\"\",'[1]MONE(M)CAPARD'!FO142)","v":"n.d."},{"$f":"IF('[1]MONE(M)CAPARD'!FR142=\"\",\"\",'[1]MONE(M)CAPARD'!FR142)","v":"n.d."},{"$f":"IF('[1]MONE(M)CAPARD'!FV142=\"\",\"\",'[1]MONE(M)CAPARD'!FV142)","v":"n.d."},{"$f":"IF('[1]MONE(M)CARD'!FV142=\"\",\"\",'[1]MONE(M)CARD'!FV142)","v":""},{"$f":"IF('[1]MONE(M)CARD'!GD142=\"\",\"\",'[1]MONE(M)CARD'!GD142)","v":"n.d."},{"$f":"IF('[1]MONE(M)CARD'!GE142=\"\",\"\",'[1]MONE(M)CARD'!GE142)","v":"n.d."},"n.d.","n.d.","n.d.","n.d.","n.d.",{"$f":"IFERROR(+AF135+AH135,\"n.d.\")","v":"n.d."},"n.d.","n.d.",null,"n.d.","n.d.","n.d.","n.d.","n.d.",{"$f":"IF('[1]MONE(M)CAPARD'!GS142=\"\",\"\",'[1]MONE(M)CAPARD'!GS142)","v":"n.d."},{"$f":"IF('[1]MONE(M)CARD'!HA142=\"\",\"\",'[1]MONE(M)CAPARD'!HA142)","v":"n.d."},{"$f":"IF('[1]MONE(M)CAPARD'!HB142=\"\",\"\",'[1]MONE(M)CAPARD'!HB142)","v":"n.d."},"n.d.","n.d.","n.d.","n.d.","n.d.","n.d.","n.d.","n.d.","n.d.","n.d.","n.d.","n.d.","n.d.","n.d.",{"$f":"IF('[1]MONE(M)CAPARD'!AS142=\"\",\"\",'[1]MONE(M)CAPARD'!AS142)","v":"n.d."},{"$f":"IF('[1]MONE(M)CAPARD'!AT142=\"\",\"\",'[1]MONE(M)CAPARD'!AT142)","v":"n.a."},{"$f":"IF('[1]MONE(M)CAPARD'!AU142=\"\",\"\",'[1]MONE(M)CAPARD'!AU142)","v":"n.d."},{"$f":"IF('[1]MONE(M)CAPARD'!AV142=\"\",\"\",'[1]MONE(M)CAPARD'!AV142)","v":"n.d."},{"$f":"IF('[1]MONE(M)CAPARD'!AW142=\"\",\"\",'[1]MONE(M)CAPARD'!AW142)","v":"n.a."},{"$f":"IF('[1]MONE(M)CAPARD'!AX142=\"\",\"\",'[1]MONE(M)CAPARD'!AX142)","v":"n.d."},{"$f":"IF('[1]MONE(M)CAPARD'!AY142=\"\",\"\",'[1]MONE(M)CAPARD'!AY142)","v":"n.a."},{"$f":"IF('[1]FISCAL(M)'!$K142=\"\",\"\",'[1]FISCAL(M)'!$K142)","v":"n.d."},{"$f":"IF('[1]FISCAL(M)'!$L142=\"\",\"\",'[1]FISCAL(M)'!$L142)","v":"n.d."},{"$f":"IF('[1]FISCAL(M)'!$AY142=\"\",\"\",'[1]FISCAL(M)'!$AY142)","v":"n.d."},{"$f":"IF('[1]FISCAL(M)'!$BI142=\"\",\"\",'[1]FISCAL(M)'!$BI142)","v":"n.d."},{"$f":"IF('[1]FISCAL(M)'!$BS142=\"\",\"\",'[1]FISCAL(M)'!$BS142)","v":"n.d."},{"$f":"IF('[1]FISCAL(M)'!$AZ142=\"\",\"\",'[1]FISCAL(M)'!$AZ142)","v":"n.d."},{"$f":"IF('[1]FISCAL(M)'!$BJ142=\"\",\"\",'[1]FISCAL(M)'!$BJ142)","v":"n.d."},{"$f":"IF('[1]FISCAL(M)'!$BT142=\"\",\"\",'[1]FISCAL(M)'!$BT142)","v":"n.d."},{"$f":"IF('[2]MONE(M)'!$AO142=\"\",\"\",'[2]MONE(M)'!$AO142)","v":"n.d."},{"$f":"IF('[3]MONE(M)'!$AO142=\"\",\"\",'[3]MONE(M)'!$AO142)","v":"n.d."},{"$f":"IF('[4]MONE(M)'!$AO142=\"\",\"\",'[4]MONE(M)'!$AO142)","v":"n.d."},{"$f":"IF('[5]MONE(M)'!$AO142=\"\",\"\",'[5]MONE(M)'!$AO142)","v":"n.d."},{"$f":"IF('[6]MONE(M)'!$AO142=\"\",\"\",'[6]MONE(M)'!$AO142)","v":"n.d."},{"$f":"IF('[7]MONE(M)'!$AO142=\"\",\"\",'[7]MONE(M)'!$AO142)","v":"n.d."},{"$f":"IF('[8]MONE(M)'!$AO142=\"\",\"\",'[8]MONE(M)'!$AO142)","v":"n.d."},"n.d.","n.d.","n.d.","n.d.","n.d.","n.d.","n.d.",{"$f":"IF('[1]FISCAL(M)'!$K142=\"\",\"\",'[1]FISCAL(M)'!$K142)","v":"n.d."},{"$f":"+'[1]REAL(A)'!$AO$21","v":"n.d."},"n.d.",{"$f":"IF('[1]FISCAL(M)'!$L142=\"\",\"\",'[1]FISCAL(M)'!$L142)","v":"n.d."},{"$f":"+'[1]REAL(A)'!$AP$21","v":"n.d."},"n.d.","n.d.","n.d.","n.d.","n.d.","n.d.","n.d.","n.d.","n.d.","n.d.","n.d.","n.d.","n.d.","n.d.","n.d.","n.d.","n.d."]
[2001,"febrero","2001-febrero",{"$f":"IF('[1]REAL IPC(M)'!$AL143=\"\",\"\",+'[1]REAL IPC(M)'!$AL143)","v":8.7846917156092488},{"$f":"IF('[1]REAL IPC(M)'!$BE143=\"\",\"\",+'[1]REAL IPC(M)'!$BE143)","v":7.8979899739858306},{"$f":"IF('[1]REAL IPC(M)'!$AM143=\"\",\"\",+'[1]REAL IPC(M)'!$AM143)","v":8.3574255887990176},{"$f":"IF('[1]REAL IPC(M)'!$BI143=\"\",\"\",+'[1]REAL IPC(M)'!$BI143)","v":7.3687194432328518},{"$f":"IF('[1]REAL IMAE(M)'!BJ143=\"\",\"\",'[1]REAL IMAE(M)'!BJ143)","v":"n.d."},{"$f":"IF('[1]REAL IMAE(M)'!BK143=\"\",\"\",'[1]REAL IMAE(M)'!BK143)","v":"n.d."},{"$f":"IF('[1]REAL IMAE(M)'!BN143=\"\",\"\",'[1]REAL IMAE(M)'!BN143)","v":"n.d."},{"$f":"IF('[1]REAL IMAE(M)'!BO143=\"\",\"\",'[1]REAL IMAE(M)'!BO143)","v":"n.d."},{"$f":"IF('[1]EXT RIN(M)'!$K143=\"\",\"\",'[1]EXT RIN(M)'!$K143)","v":"n.d."},"",{"$f":"IF('[1]EXT RIN(M)'!$L143=\"\",\"\",'[1]EXT RIN(M)'!$L143)","v":"n.d."},"",{"$f":"IF('[1]MONE(M)CARD'!EG143=\"\",\"\",'[1]MONE(M)CARD'!EG143)","v":"n.d."},{"$f":"IF('[1]MONE(M)CARD'!EK143=\"\",\"\",'[1]MONE(M)CARD'!EK143)","v":"n.d."},{"$f":"IF('[1]MONE(M)CARD'!EP143=\"\",\"\",'[1]MONE(M)CARD'!EP143)","v":"n.d."},{"$f":"IF('[1]MONE(M)CARD'!ES143=\"\",\"\",'[1]MONE(M)CARD'!ES143)","v":"n.d."},{"$f":"IF('[1]MONE(M)CARD'!EV143=\"\",\"\",'[1]MONE(M)CARD'!EV143)","v":"n.d."},{"$f":"IF('[1]MONE(M)CARD'!EZ143=\"\",\"\",'[1]MONE(M)CARD'!EZ143)","v":"n.d."},{"$f":"IF('[1]MONE(M)CAPARD'!FC143=\"\",\"\",'[1]MONE(M)CAPARD'!FC143)","v":"n.d."},{"$f":"IF('[1]MONE(M)CAPARD'!FG143=\"\",\"\",'[1]MONE(M)CAPARD'!FG143)","v":"n.d."},{"$f":"IF('[1]MONE(M)CAPARD'!FL143=\"\",\"\",'[1]MONE(M)CAPARD'!FL143)","v":"n.d."},{"$f":"IF('[1]MONE(M)CAPARD'!FO143=\"\",\"\",'[1]MONE(M)CAPARD'!FO143)","v":"n.d."},{"$f":"IF('[1]MONE(M)CAPARD'!FR143=\"\",\"\",'[1]MONE(M)CAPARD'!FR143)","v":"n.d."},{"$f":"IF('[1]MONE(M)CAPARD'!FV143=\"\",\"\",'[1]MONE(M)CAPARD'!FV143)","v":"n.d."},{"$f":"IF('[1]MONE(M)CARD'!FV143=\"\",\"\",'[1]MONE(M)CARD'!FV143)","v":""},{"$f":"IF('[1]MONE(M)CARD'!GD143=\"\",\"\",'[1]MONE(M)CARD'!GD143)","v":"n.d."},{"$f":"IF('[1]MONE(M)CARD'!GE143=\"\",\"\",'[1]MONE(M)CARD'!GE143)","v":"n.d."},"n.d.","n.d.","n.d.","n.d.","n.d.","n.d.","n.d.","n.d.",null,"n.d.","n.d.","n.d.","n.d.","n.d.",{"$f":"IF('[1]MONE(M)CAPARD'!GS143=\"\",\"\",'[1]MONE(M)CAPARD'!GS143)","v":"n.d."},{"$f":"IF('[1]MONE(M)CARD'!HA143=\"\",\"\",'[1]MONE(M)CAPARD'!HA143)","v":"n.d."},{"$f":"IF('[1]MONE(M)CAPARD'!HB143=\"\",\"\",'[1]MONE(M)CAPARD'!HB143)","v":"n.d."},"n.d.","n.d.","n.d.","n.d.","n.d.","n.d.","n.d.","n.d.","n.d.","n.d.","n.d.","n.d.","n.d.","n.d.",{"$f":"IF('[1]MONE(M)CAPARD'!AS143=\"\",\"\",'[1]MONE(M)CAPARD'!AS143)","v":"n.d."},{"$f":"IF('[1]MONE(M)CAPARD'!AT143=\"\",\"\",'[1]MONE(M)CAPARD'!AT143)","v":"n.a."},{"$f":"IF('[1]MONE(M)CAPARD'!AU143=\"\",\"\",'[1]MONE(M)CAPARD'!AU143)","v":"n.d."},{"$f":"IF('[1]MONE(M)CAPARD'!AV143=\"\",\"\",'[1]MONE(M)CAPARD'!AV143)","v":"n.d."},{"$f":"IF('[1]MONE(M)CAPARD'!AW143=\"\",\"\",'[1]MONE(M)CAPARD'!AW143)","v":"n.a."},{"$f":"IF('[1]MONE(M)CAPARD'!AX143=\"\",\"\",'[1]MONE(M)CAPARD'!AX143)","v":"n.d."},{"$f":"IF('[1]MONE(M)CAPARD'!AY143=\"\",\"\",'[1]MONE(M)CAPARD'!AY143)","v":"n.a."},{"$f":"IF('[1]FISCAL(M)'!$K143=\"\",\"\",'[1]FISCAL(M)'!$K143)","v":"n.d."},{"$f":"IF('[1]FISCAL(M)'!$L143=\"\",\"\",'[1]FISCAL(M)'!$L143)","v":"n.d."},{"$f":"IF('[1]FISCAL(M)'!$AY143=\"\",\"\",'[1]FISCAL(M)'!$AY143)","v":"n.d."},{"$f":"IF('[1]FISCAL(M)'!$BI143=\"\",\"\",'[1]FISCAL(M)'!$BI143)","v":"n.d."},{"$f":"IF('[1]FISCAL(M)'!$BS143=\"\",\"\",'[1]FISCAL(M)'!$BS143)","v":"n.d."},{"$f":"IF('[1]FISCAL(M)'!$AZ143=\"\",\"\",'[1]FISCAL(M)'!$AZ143)","v":"n.d."},{"$f":"IF('[1]FISCAL(M)'!$BJ143=\"\",\"\",'[1]FISCAL(M)'!$BJ143)","v":"n.d."},{"$f":"IF('[1]FISCAL(M)'!$BT143=\"\",\"\",'[1]FISCAL(M)'!$BT143)","v":"n.d."},{"$f":"IF('[2]MONE(M)'!$AO143=\"\",\"\",'[2]MONE(M)'!$AO143)","v":"n.d."},{"$f":"IF('[3]MONE(M)'!$AO143=\"\",\"\",'[3]MONE(M)'!$AO143)","v":"n.d."},{"$f":"IF('[4]MONE(M)'!$AO143=\"\",\"\",'[4]MONE(M)'!$AO143)","v":"n.d."},{"$f":"IF('[5]MONE(M)'!$AO143=\"\",\"\",'[5]MONE(M)'!$AO143)","v":"n.d."},{"$f":"IF('[6]MONE(M)'!$AO143=\"\",\"\",'[6]MONE(M)'!$AO143)","v":"n.d."},{"$f":"IF('[7]MONE(M)'!$AO143=\"\",\"\",'[7]MONE(M)'!$AO143)","v":"n.d."},{"$f":"IF('[8]MONE(M)'!$AO143=\"\",\"\",'[8]MONE(M)'!$AO143)","v":"n.d."},"n.d.","n.d.","n.d.","n.d.","n.d.","n.d.","n.d.",{"$f":"IF('[1]FISCAL(M)'!$K143=\"\",\"\",'[1]FISCAL(M)'!$K143)","v":"n.d."},{"$f":"+'[1]REAL(A)'!$AO$21","v":"n.d."},"n.d.",{"$f":"IF('[1]FISCAL(M)'!$L143=\"\",\"\",'[1]FISCAL(M)'!$L143)","v":"n.d."},{"$f":"+'[1]REAL(A)'!$AP$21","v":"n.d."},"n.d.","n.d.","n.d.","n.d.","n.d.","n.d.","n.d.","n.d.","n.d.","n.d.","n.d.","n.d.","n.d.","n.d.","n.d.","n.d.","n.d."]
[2001,"marzo","2001-marzo",{"$f":"IF('[1]REAL IPC(M)'!$AL144=\"\",\"\",+'[1]REAL IPC(M)'!$AL144)","v":8.6839168630245211},{"$f":"IF('[1]REAL IPC(M)'!$BE144=\"\",\"\",+'[1]REAL IPC(M)'!$BE144)","v":7.9642920472568379},{"$f":"IF('[1]REAL IPC(M)'!$AM144=\"\",\"\",+'[1]REAL IPC(M)'!$AM144)","v":8.2331856259874048},{"$f":"IF('[1]REAL IPC(M)'!$BI144=\"\",\"\",+'[1]REAL IPC(M)'!$BI144)","v":7.421566171143068},{"$f":"IF('[1]REAL IMAE(M)'!BJ144=\"\",\"\",'[1]REAL IMAE(M)'!BJ144)","v":"n.d."},{"$f":"IF('[1]REAL IMAE(M)'!BK144=\"\",\"\",'[1]REAL IMAE(M)'!BK144)","v":"n.d."},{"$f":"IF('[1]REAL IMAE(M)'!BN144=\"\",\"\",'[1]REAL IMAE(M)'!BN144)","v":"n.d."},{"$f":"IF('[1]REAL IMAE(M)'!BO144=\"\",\"\",'[1]REAL IMAE(M)'!BO144)","v":"n.d."},{"$f":"IF('[1]EXT RIN(M)'!$K144=\"\",\"\",'[1]EXT RIN(M)'!$K144)","v":"n.d."},"",{"$f":"IF('[1]EXT RIN(M)'!$L144=\"\",\"\",'[1]EXT RIN(M)'!$L144)","v":"n.d."},"",{"$f":"IF('[1]MONE(M)CARD'!EG144=\"\",\"\",'[1]MONE(M)CARD'!EG144)","v":"n.d."},{"$f":"IF('[1]MONE(M)CARD'!EK144=\"\",\"\",'[1]MONE(M)CARD'!EK144)","v":"n.d."},{"$f":"IF('[1]MONE(M)CARD'!EP144=\"\",\"\",'[1]MONE(M)CARD'!EP144)","v":"n.d."},{"$f":"IF('[1]MONE(M)CARD'!ES144=\"\",\"\",'[1]MONE(M)CARD'!ES144)","v":"n.d."},{"$f":"IF('[1]MONE(M)CARD'!EV144=\"\",\"\",'[1]MONE(M)CARD'!EV144)","v":"n.d."},{"$f":"IF('[1]MONE(M)CARD'!EZ144=\"\",\"\",'[1]MONE(M)CARD'!EZ144)","v":"n.d."},{"$f":"IF('[1]MONE(M)CAPARD'!FC144=\"\",\"\",'[1]MONE(M)CAPARD'!FC144)","v":"n.d."},{"$f":"IF('[1]MONE(M)CAPARD'!FG144=\"\",\"\",'[1]MONE(M)CAPARD'!FG144)","v":"n.d."},{"$f":"IF('[1]MONE(M)CAPARD'!FL144=\"\",\"\",'[1]MONE(M)CAPARD'!FL144)","v":"n.d."},{"$f":"IF('[1]MONE(M)CAPARD'!FO144=\"\",\"\",'[1]MONE(M)CAPARD'!FO144)","v":"n.d."},{"$f":"IF('[1]MONE(M)CAPARD'!FR144=\"\",\"\",'[1]MONE(M)CAPARD'!FR144)","v":"n.d."},{"$f":"IF('[1]MONE(M)CAPARD'!FV144=\"\",\"\",'[1]MONE(M)CAPARD'!FV144)","v":"n.d."},{"$f":"IF('[1]MONE(M)CARD'!FV144=\"\",\"\",'[1]MONE(M)CARD'!FV144)","v":""},{"$f":"IF('[1]MONE(M)CARD'!GD144=\"\",\"\",'[1]MONE(M)CARD'!GD144)","v":"n.d."},{"$f":"IF('[1]MONE(M)CARD'!GE144=\"\",\"\",'[1]MONE(M)CARD'!GE144)","v":"n.d."},"n.d.","n.d.","n.d.","n.d.","n.d.","n.d.","n.d.","n.d.",null,"n.d.","n.d.","n.d.","n.d.","n.d.",{"$f":"IF('[1]MONE(M)CAPARD'!GS144=\"\",\"\",'[1]MONE(M)CAPARD'!GS144)","v":"n.d."},{"$f":"IF('[1]MONE(M)CARD'!HA144=\"\",\"\",'[1]MONE(M)CAPARD'!HA144)","v":"n.d."},{"$f":"IF('[1]MONE(M)CAPARD'!HB144=\"\",\"\",'[1]MONE(M)CAPARD'!HB144)","v":"n.d."},"n.d.","n.d.","n.d.","n.d.","n.d.","n.d.","n.d.","n.d.","n.d.","n.d.","n.d.","n.d.","n.d.","n.d.",{"$f":"IF('[1]MONE(M)CAPARD'!AS144=\"\",\"\",'[1]MONE(M)CAPARD'!AS144)","v":"n.d."},{"$f":"IF('[1]MONE(M)CAPARD'!AT144=\"\",\"\",'[1]MONE(M)CAPARD'!AT144)","v":"n.a."},{"$f":"IF('[1]MONE(M)CAPARD'!AU144=\"\",\"\",'[1]MONE(M)CAPARD'!AU144)","v":"n.d."},{"$f":"IF('[1]MONE(M)CAPARD'!AV144=\"\",\"\",'[1]MONE(M)CAPARD'!AV144)","v":"n.d."},{"$f":"IF('[1]MONE(M)CAPARD'!AW144=\"\",\"\",'[1]MONE(M)CAPARD'!AW144)","v":"n.a."},{"$f":"IF('[1]MONE(M)CAPARD'!AX144=\"\",\"\",'[1]MONE(M)CAPARD'!AX144)","v":"n.d."},{"$f":"IF('[1]MONE(M)CAPARD'!AY144=\"\",\"\",'[1]MONE(M)CAPARD'!AY144)","v":"n.a."},{"$f":"IF('[1]FISCAL(M)'!$K144=\"\",\"\",'[1]FISCAL(M)'!$K144)","v":"n.d."},{"$f":"IF('[1]FISCAL(M)'!$L144=\"\",\"\",'[1]FISCAL(M)'!$L144)","v":"n.d."},{"$f":"IF('[1]FISCAL(M)'!$AY144=\"\",\"\",'[1]FISCAL(M)'!$AY144)","v":"n.d."},{"$f":"IF('[1]FISCAL(M)'!$BI144=\"\",\"\",'[1]FISCAL(M)'!$BI144)","v":"n.d."},{"$f":"IF('[1]FISCAL(M)'!$BS144=\"\",\"\",'[1]FISCAL(M)'!$BS144)","v":"n.d."},{"$f":"IF('[1]FISCAL(M)'!$AZ144=\"\",\"\",'[1]FISCAL(M)'!$AZ144)","v":"n.d."},{"$f":"IF('[1]FISCAL(M)'!$BJ144=\"\",\"\",'[1]FISCAL(M)'!$BJ144)","v":"n.d."},{"$f":"IF('[1]FISCAL(M)'!$BT144=\"\",\"\",'[1]FISCAL(M)'!$BT144)","v":"n.d."},{"$f":"IF('[2]MONE(M)'!$AO144=\"\",\"\",'[2]MONE(M)'!$AO144)","v":"n.d."},{"$f":"IF('[3]MONE(M)'!$AO144=\"\",\"\",'[3]MONE(M)'!$AO144)","v":"n.d."},{"$f":"IF('[4]MONE(M)'!$AO144=\"\",\"\",'[4]MONE(M)'!$AO144)","v":"n.d."},{"$f":"IF('[5]MONE(M)'!$AO144=\"\",\"\",'[5]MONE(M)'!$AO144)","v":"n.d."},{"$f":"IF('[6]MONE(M)'!$AO144=\"\",\"\",'[6]MONE(M)'!$AO144)","v":"n.d."},{"$f":"IF('[7]MONE(M)'!$AO144=\"\",\"\",'[7]MONE(M)'!$AO144)","v":"n.d."},{"$f":"IF('[8]MONE(M)'!$AO144=\"\",\"\",'[8]MONE(M)'!$AO144)","v":"n.d."},"n.d.","n.d.","n.d.","n.d.","n.d.","n.d.","n.d.",{"$f":"IF('[1]FISCAL(M)'!$K144=\"\",\"\",'[1]FISCAL(M)'!$K144)","v":"n.d."},{"$f":"+'[1]REAL(A)'!$AO$21","v":"n.d."},"n.d.",{"$f":"IF('[1]FISCAL(M)'!$L144=\"\",\"\",'[1]FISCAL(M)'!$L144)","v":"n.d."},{"$f":"+'[1]REAL(A)'!$AP$21","v":"n.d."},"n.d.","n.d.","n.d.","n.d.","n.d.","n.d.","n.d.","n.d.","n.d.","n.d.","n.d.","n.d.","n.d.","n.d.","n.d.","n.d.","n.d."]
[2001,"abril","2001-abril",{"$f":"IF('[1]REAL IPC(M)'!$AL145=\"\",\"\",+'[1]REAL IPC(M)'!$AL145)","v":8.9420661437374918},{"$f":"IF('[1]REAL IPC(M)'!$BE145=\"\",\"\",+'[1]REAL IPC(M)'!$BE145)","v":8.0362665206104023},{"$f":"IF('[1]REAL IPC(M)'!$AM145=\"\",\"\",+'[1]REAL IPC(M)'!$AM145)","v":8.4955695748896609},{"$f":"IF('[1]REAL IPC(M)'!$BI145=\"\",\"\",+'[1]REAL IPC(M)'!$BI145)","v":7.4791541525448091},{"$f":"IF('[1]REAL IMAE(M)'!BJ145=\"\",\"\",'[1]REAL IMAE(M)'!BJ145)","v":"n.d."},{"$f":"IF('[1]REAL IMAE(M)'!BK145=\"\",\"\",'[1]REAL IMAE(M)'!BK145)","v":"n.d."},{"$f":"IF('[1]REAL IMAE(M)'!BN145=\"\",\"\",'[1]REAL IMAE(M)'!BN145)","v":"n.d."},{"$f":"IF('[1]REAL IMAE(M)'!BO145=\"\",\"\",'[1]REAL IMAE(M)'!BO145)","v":"n.d."},{"$f":"IF('[1]EXT RIN(M)'!$K145=\"\",\"\",'[1]EXT RIN(M)'!$K145)","v":"n.d."},"",{"$f":"IF('[1]EXT RIN(M)'!$L145=\"\",\"\",'[1]EXT RIN(M)'!$L145)","v":"n.d."},"",{"$f":"IF('[1]MONE(M)CARD'!EG145=\"\",\"\",'[1]MONE(M)CARD'!EG145)","v":"n.d."},{"$f":"IF('[1]MONE(M)CARD'!EK145=\"\",\"\",'[1]MONE(M)CARD'!EK145)","v":"n.d."},{"$f":"IF('[1]MONE(M)CARD'!EP145=\"\",\"\",'[1]MONE(M)CARD'!EP145)","v":"n.d."},{"$f":"IF('[1]MONE(M)CARD'!ES145=\"\",\"\",'[1]MONE(M)CARD'!ES145)","v":"n.d."},{"$f":"IF('[1]MONE(M)CARD'!EV145=\"\",\"\",'[1]MONE(M)CARD'!EV145)","v":"n.d."},{"$f":"IF('[1]MONE(M)CARD'!EZ145=\"\",\"\",'[1]MONE(M)CARD'!EZ145)","v":"n.d."},{"$f":"IF('[1]MONE(M)CAPARD'!FC145=\"\",\"\",'[1]MONE(M)CAPARD'!FC145)","v":"n.d."},{"$f":"IF('[1]MONE(M)CAPARD'!FG145=\"\",\"\",'[1]MONE(M)CAPARD'!FG145)","v":"n.d."},{"$f":"IF('[1]MONE(M)CAPARD'!FL145=\"\",\"\",'[1]MONE(M)CAPARD'!FL145)","v":"n.d."},{"$f":"IF('[1]MONE(M)CAPARD'!FO145=\"\",\"\",'[1]MONE(M)CAPARD'!FO145)","v":"n.d."},{"$f":"IF('[1]MONE(M)CAPARD'!FR145=\"\",\"\",'[1]MONE(M)CAPARD'!FR145)","v":"n.d."},{"$f":"IF('[1]MONE(M)CAPARD'!FV145=\"\",\"\",'[1]MONE(M)CAPARD'!FV145)","v":"n.d."},{"$f":"IF('[1]MONE(M)CARD'!FV145=\"\",\"\",'[1]MONE(M)CARD'!FV145)","v":""},{"$f":"IF('[1]MONE(M)CARD'!GD145=\"\",\"\",'[1]MONE(M)CARD'!GD145)","v":"n.d."},{"$f":"IF('[1]MONE(M)CARD'!GE145=\"\",\"\",'[1]MONE(M)CARD'!GE145)","v":"n.d."},"n.d.","n.d.","n.d.","n.d.","n.d.","n.d.","n.d.","n.d.",null,"n.d.","n.d.","n.d.","n.d.","n.d.",{"$f":"IF('[1]MONE(M)CAPARD'!GS145=\"\",\"\",'[1]MONE(M)CAPARD'!GS145)","v":"n.d."},{"$f":"IF('[1]MONE(M)CARD'!HA145=\"\",\"\",'[1]MONE(M)CAPARD'!HA145)","v":"n.d."},{"$f":"IF('[1]MONE(M)CAPARD'!HB145=\"\",\"\",'[1]MONE(M)CAPARD'!HB145)","v":"n.d."},"n.d.","n.d.","n.d.","n.d.","n.d.","n.d.","n.d.","n.d.","n.d.","n.d.","n.d.","n.d.","n.d.","n.d.",{"$f":"IF('[1]MONE(M)CAPARD'!AS145=\"\",\"\",'[1]MONE(M)CAPARD'!AS145)","v":"n.d."},{"$f":"IF('[1]MONE(M)CAPARD'!AT145=\"\",\"\",'[1]MONE(M)CAPARD'!AT145)","v":"n.a."},{"$f":"IF('[1]MONE(M)CAPARD'!AU145=\"\",\"\",'[1]MONE(M)CAPARD'!AU145)","v":"n.d."},{"$f":"IF('[1]MONE(M)CAPARD'!AV145=\"\",\"\",'[1]MONE(M)CAPARD'!AV145)","v":"n.d."},{"$f":"IF('[1]MONE(M)CAPARD'!AW145=\"\",\"\",'[1]MONE(M)CAPARD'!AW145)","v":"n.a."},{"$f":"IF('[1]MONE(M)CAPARD'!AX145=\"\",\"\",'[1]MONE(M)CAPARD'!AX145)","v":"n.d."},{"$f":"IF('[1]MONE(M)CAPARD'!AY145=\"\",\"\",'[1]MONE(M)CAPARD'!AY145)","v":"n.a."},{"$f":"IF('[1]FISCAL(M)'!$K145=\"\",\"\",'[1]FISCAL(M)'!$K145)","v":"n.d."},{"$f":"IF('[1]FISCAL(M)'!$L145=\"\",\"\",'[1]FISCAL(M)'!$L145)","v":"n.d."},{"$f":"IF('[1]FISCAL(M)'!$AY145=\"\",\"\",'[1]FISCAL(M)'!$AY145)","v":"n.d."},{"$f":"IF('[1]FISCAL(M)'!$BI145=\"\",\"\",'[1]FISCAL(M)'!$BI145)","v":"n.d."},{"$f":"IF('[1]FISCAL(M)'!$BS145=\"\",\"\",'[1]FISCAL(M)'!$BS145)","v":"n.d."},{"$f":"IF('[1]FISCAL(M)'!$AZ145=\"\",\"\",'[1]FISCAL(M)'!$AZ145)","v":"n.d."},{"$f":"IF('[1]FISCAL(M)'!$BJ145=\"\",\"\",'[1]FISCAL(M)'!$BJ145)","v":"n.d."},{"$f":"IF('[1]FISCAL(M)'!$BT145=\"\",\"\",'[1]FISCAL(M)'!$BT145)","v":"n.d."},{"$f":"IF('[2]MONE(M)'!$AO145=\"\",\"\",'[2]MONE(M)'!$AO145)","v":"n.d."},{"$f":"IF('[3]MONE(M)'!$AO145=\"\",\"\",'[3]MONE(M)'!$AO145)","v":"n.d."},{"$f":"IF('[4]MONE(M)'!$AO145=\"\",\"\",'[4]MONE(M)'!$AO145)","v":"n.d."},{"$f":"IF('[5]MONE(M)'!$AO145=\"\",\"\",'[5]MONE(M)'!$AO145)","v":"n.d."},{"$f":"IF('[6]MONE(M)'!$AO145=\"\",\"\",'[6]MONE(M)'!$AO145)","v":"n.d."},{"$f":"IF('[7]MONE(M)'!$AO145=\"\",\"\",'[7]MONE(M)'!$AO145)","v":"n.d."},{"$f":"IF('[8]MONE(M)'!$AO145=\"\",\"\",'[8]MONE(M)'!$AO145)","v":"n.d."},"n.d.","n.d.","n.d.","n.d.","n.d.","n.d.","n.d.",{"$f":"IF('[1]FISCAL(M)'!$K145=\"\",\"\",'[1]FISCAL(M)'!$K145)","v":"n.d."},{"$f":"+'[1]REAL(A)'!$AO$21","v":"n.d."},"n.d.",{"$f":"IF('[1]FISCAL(M)'!$L145=\"\",\"\",'[1]FISCAL(M)'!$L145)","v":"n.d."},{"$f":"+'[1]REAL(A)'!$AP$21","v":"n.d."},"n.d.","n.d.","n.d.","n.d.","n.d.","n.d.","n.d.","n.d.","n.d.","n.d.","n.d.","n.d.","n.d.","n.d.","n.d.","n.d.","n.d."]
[2001,"mayo ","2001-mayo ",{"$f":"IF('[1]REAL IPC(M)'!$AL146=\"\",\"\",+'[1]REAL IPC(M)'!$AL146)","v":9.4586467202991251},{"$f":"IF('[1]REAL IPC(M)'!$BE146=\"\",\"\",+'[1]REAL IPC(M)'!$BE146)","v":8.1143227808474947},{"$f":"IF('[1]REAL IPC(M)'!$AM146=\"\",\"\",+'[1]REAL IPC(M)'!$AM146)","v":8.9774683219770335},{"$f":"IF('[1]REAL IPC(M)'!$BI146=\"\",\"\",+'[1]REAL IPC(M)'!$BI146)","v":7.5419578853847868},{"$f":"IF('[1]REAL IMAE(M)'!BJ146=\"\",\"\",'[1]REAL IMAE(M)'!BJ146)","v":"n.d."},{"$f":"IF('[1]REAL IMAE(M)'!BK146=\"\",\"\",'[1]REAL IMAE(M)'!BK146)","v":"n.d."},{"$f":"IF('[1]REAL IMAE(M)'!BN146=\"\",\"\",'[1]REAL IMAE(M)'!BN146)","v":"n.d."},{"$f":"IF('[1]REAL IMAE(M)'!BO146=\"\",\"\",'[1]REAL IMAE(M)'!BO146)","v":"n.d."},{"$f":"IF('[1]EXT RIN(M)'!$K146=\"\",\"\",'[1]EXT RIN(M)'!$K146)","v":"n.d."},"",{"$f":"IF('[1]EXT RIN(M)'!$L146=\"\",\"\",'[1]EXT RIN(M)'!$L146)","v":"n.d."},"",{"$f":"IF('[1]MONE(M)CARD'!EG146=\"\",\"\",'[1]MONE(M)CARD'!EG146)","v":"n.d."},{"$f":"IF('[1]MONE(M)CARD'!EK146=\"\",\"\",'[1]MONE(M)CARD'!EK146)","v":"n.d."},{"$f":"IF('[1]MONE(M)CARD'!EP146=\"\",\"\",'[1]MONE(M)CARD'!EP146)","v":"n.d."},{"$f":"IF('[1]MONE(M)CARD'!ES146=\"\",\"\",'[1]MONE(M)CARD'!ES146)","v":"n.d."},{"$f":"IF('[1]MONE(M)CARD'!EV146=\"\",\"\",'[1]MONE(M)CARD'!EV146)","v":"n.d."},{"$f":"IF('[1]MONE(M)CARD'!EZ146=\"\",\"\",'[1]MONE(M)CARD'!EZ146)","v":"n.d."},{"$f":"IF('[1]MONE(M)CAPARD'!FC146=\"\",\"\",'[1]MONE(M)CAPARD'!FC146)","v":"n.d."},{"$f":"IF('[1]MONE(M)CAPARD'!FG146=\"\",\"\",'[1]MONE(M)CAPARD'!FG146)","v":"n.d."},{"$f":"IF('[1]MONE(M)CAPARD'!FL146=\"\",\"\",'[1]MONE(M)CAPARD'!FL146)","v":"n.d."},{"$f":"IF('[1]MONE(M)CAPARD'!FO146=\"\",\"\",'[1]MONE(M)CAPARD'!FO146)","v":"n.d."},{"$f":"IF('[1]MONE(M)CAPARD'!FR146=\"\",\"\",'[1]MONE(M)CAPARD'!FR146)","v":"n.d."},{"$f":"IF('[1]MONE(M)CAPARD'!FV146=\"\",\"\",'[1]MONE(M)CAPARD'!FV146)","v":"n.d."},{"$f":"IF('[1]MONE(M)CARD'!FV146=\"\",\"\",'[1]MONE(M)CARD'!FV146)","v":""},{"$f":"IF('[1]MONE(M)CARD'!GD146=\"\",\"\",'[1]MONE(M)CARD'!GD146)","v":"n.d."},{"$f":"IF('[1]MONE(M)CARD'!GE146=\"\",\"\",'[1]MONE(M)CARD'!GE146)","v":"n.d."},"n.d.","n.d.","n.d.","n.d.","n.d.","n.d.","n.d.","n.d.",null,"n.d.","n.d.","n.d.","n.d.","n.d.",{"$f":"IF('[1]MONE(M)CAPARD'!GS146=\"\",\"\",'[1]MONE(M)CAPARD'!GS146)","v":"n.d."},{"$f":"IF('[1]MONE(M)CARD'!HA146=\"\",\"\",'[1]MONE(M)CAPARD'!HA146)","v":"n.d."},{"$f":"IF('[1]MONE(M)CAPARD'!HB146=\"\",\"\",'[1]MONE(M)CAPARD'!HB146)","v":"n.d."},"n.d.","n.d.","n.d.","n.d.","n.d.","n.d.","n.d.","n.d.","n.d.","n.d.","n.d.","n.d.","n.d.","n.d.",{"$f":"IF('[1]MONE(M)CAPARD'!AS146=\"\",\"\",'[1]MONE(M)CAPARD'!AS146)","v":"n.d."},{"$f":"IF('[1]MONE(M)CAPARD'!AT146=\"\",\"\",'[1]MONE(M)CAPARD'!AT146)","v":"n.a."},{"$f":"IF('[1]MONE(M)CAPARD'!AU146=\"\",\"\",'[1]MONE(M)CAPARD'!AU146)","v":"n.d."},{"$f":"IF('[1]MONE(M)CAPARD'!AV146=\"\",\"\",'[1]MONE(M)CAPARD'!AV146)","v":"n.d."},{"$f":"IF('[1]MONE(M)CAPARD'!AW146=\"\",\"\",'[1]MONE(M)CAPARD'!AW146)","v":"n.a."},{"$f":"IF('[1]MONE(M)CAPARD'!AX146=\"\",\"\",'[1]MONE(M)CAPARD'!AX146)","v":"n.d."},{"$f":"IF('[1]MONE(M)CAPARD'!AY146=\"\",\"\",'[1]MONE(M)CAPARD'!AY146)","v":"n.a."},{"$f":"IF('[1]FISCAL(M)'!$K146=\"\",\"\",'[1]FISCAL(M)'!$K146)","v":"n.d."},{"$f":"IF('[1]FISCAL(M)'!$L146=\"\",\"\",'[1]FISCAL(M)'!$L146)","v":"n.d."},{"$f":"IF('[1]FISCAL(M)'!$AY146=\"\",\"\",'[1]FISCAL(M)'!$AY146)","v":"n.d."},{"$f":"IF('[1]FISCAL(M)'!$BI146=\"\",\"\",'[1]FISCAL(M)'!$BI146)","v":"n.d."},{"$f":"IF('[1]FISCAL(M)'!$BS146=\"\",\"\",'[1]FISCAL(M)'!$BS146)","v":"n.d."},{"$f":"IF('[1]FISCAL(M)'!$AZ146=\"\",\"\",'[1]FISCAL(M)'!$AZ146)","v":"n.d."},{"$f":"IF('[1]FISCAL(M)'!$BJ146=\"\",\"\",'[1]FISCAL(M)'!$BJ146)","v":"n.d."},{"$f":"IF('[1]FISCAL(M)'!$BT146=\"\",\"\",'[1]FISCAL(M)'!$BT146)","v":"n.d."},{"$f":"IF('[2]MONE(M)'!$AO146=\"\",\"\",'[2]MONE(M)'!$AO146)","v":"n.d."},{"$f":"IF('[3]MONE(M)'!$AO146=\"\",\"\",'[3]MONE(M)'!$AO146)","v":"n.d."},{"$f":"IF('[4]MONE(M)'!$AO146=\"\",\"\",'[4]MONE(M)'!$AO146)","v":"n.d."},{"$f":"IF('[5]MONE(M)'!$AO146=\"\",\"\",'[5]MONE(M)'!$AO146)","v":"n.d."},{"$f":"IF('[6]MONE(M)'!$AO146=\"\",\"\",'[6]MONE(M)'!$AO146)","v":"n.d."},{"$f":"IF('[7]MONE(M)'!$AO146=\"\",\"\",'[7]MONE(M)'!$AO146)","v":"n.d."},{"$f":"IF('[8]MONE(M)'!$AO146=\"\",\"\",'[8]MONE(M)'!$AO146)","v":"n.d."},"n.d.","n.d.","n.d.","n.d.","n.d.","n.d.","n.d.",{"$f":"IF('[1]FISCAL(M)'!$K146=\"\",\"\",'[1]FISCAL(M)'!$K146)","v":"n.d."},{"$f":"+'[1]REAL(A)'!$AO$21","v":"n.d."},"n.d.",{"$f":"IF('[1]FISCAL(M)'!$L146=\"\",\"\",'[1]FISCAL(M)'!$L146)","v":"n.d."},{"$f":"+'[1]REAL(A)'!$AP$21","v":"n.d."},"n.d.","n.d.","n.d.","n.d.","n.d.","n.d.","n.d.","n.d.","n.d.","n.d.","n.d.","n.d.","n.d.","n.d.","n.d.","n.d.","n.d."]
[2001,"junio ","2001-junio ",{"$f":"IF('[1]REAL IPC(M)'!$AL147=\"\",\"\",+'[1]REAL IPC(M)'!$AL147)","v":8.7350687143211925},{"$f":"IF('[1]REAL IPC(M)'!$BE147=\"\",\"\",+'[1]REAL IPC(M)'!$BE147)","v":8.1989156529390215},{"$f":"IF('[1]REAL IPC(M)'!$AM147=\"\",\"\",+'[1]REAL IPC(M)'!$AM147)","v":8.2416179045404547},{"$f":"IF('[1]REAL IPC(M)'!$BI147=\"\",\"\",+'[1]REAL IPC(M)'!$BI147)","v":7.6105137560621205},{"$f":"IF('[1]REAL IMAE(M)'!BJ147=\"\",\"\",'[1]REAL IMAE(M)'!BJ147)","v":"n.d."},{"$f":"IF('[1]REAL IMAE(M)'!BK147=\"\",\"\",'[1]REAL IMAE(M)'!BK147)","v":"n.d."},{"$f":"IF('[1]REAL IMAE(M)'!BN147=\"\",\"\",'[1]REAL IMAE(M)'!BN147)","v":"n.d."},{"$f":"IF('[1]REAL IMAE(M)'!BO147=\"\",\"\",'[1]REAL IMAE(M)'!BO147)","v":"n.d."},{"$f":"IF('[1]EXT RIN(M)'!$K147=\"\",\"\",'[1]EXT RIN(M)'!$K147)","v":"n.d."},"",{"$f":"IF('[1]EXT RIN(M)'!$L147=\"\",\"\",'[1]EXT RIN(M)'!$L147)","v":"n.d."},"",{"$f":"IF('[1]MONE(M)CARD'!EG147=\"\",\"\",'[1]MONE(M)CARD'!EG147)","v":"n.d."},{"$f":"IF('[1]MONE(M)CARD'!EK147=\"\",\"\",'[1]MONE(M)CARD'!EK147)","v":"n.d."},{"$f":"IF('[1]MONE(M)CARD'!EP147=\"\",\"\",'[1]MONE(M)CARD'!EP147)","v":"n.d."},{"$f":"IF('[1]MONE(M)CARD'!ES147=\"\",\"\",'[1]MONE(M)CARD'!ES147)","v":"n.d."},{"$f":"IF('[1]MONE(M)CARD'!EV147=\"\",\"\",'[1]MONE(M)CARD'!EV147)","v":"n.d."},{"$f":"IF('[1]MONE(M)CARD'!EZ147=\"\",\"\",'[1]MONE(M)CARD'!EZ147)","v":"n.d."},{"$f":"IF('[1]MONE(M)CAPARD'!FC147=\"\",\"\",'[1]MONE(M)CAPARD'!FC147)","v":"n.d."},{"$f":"IF('[1]MONE(M)CAPARD'!FG147=\"\",\"\",'[1]MONE(M)CAPARD'!FG147)","v":"n.d."},{"$f":"IF('[1]MONE(M)CAPARD'!FL147=\"\",\"\",'[1]MONE(M)CAPARD'!FL147)","v":"n.d."},{"$f":"IF('[1]MONE(M)CAPARD'!FO147=\"\",\"\",'[1]MONE(M)CAPARD'!FO147)","v":"n.d."},{"$f":"IF('[1]MONE(M)CAPARD'!FR147=\"\",\"\",'[1]MONE(M)CAPARD'!FR147)","v":"n.d."},{"$f":"IF('[1]MONE(M)CAPARD'!FV147=\"\",\"\",'[1]MONE(M)CAPARD'!FV147)","v":"n.d."},{"$f":"IF('[1]MONE(M)CARD'!FV147=\"\",\"\",'[1]MONE(M)CARD'!FV147)","v":""},{"$f":"IF('[1]MONE(M)CARD'!GD147=\"\",\"\",'[1]MONE(M)CARD'!GD147)","v":"n.d."},{"$f":"IF('[1]MONE(M)CARD'!GE147=\"\",\"\",'[1]MONE(M)CARD'!GE147)","v":"n.d."},"n.d.","n.d.","n.d.","n.d.","n.d.","n.d.","n.d.","n.d.",null,"n.d.","n.d.","n.d.","n.d.","n.d.",{"$f":"IF('[1]MONE(M)CAPARD'!GS147=\"\",\"\",'[1]MONE(M)CAPARD'!GS147)","v":"n.d."},{"$f":"IF('[1]MONE(M)CARD'!HA147=\"\",\"\",'[1]MONE(M)CAPARD'!HA147)","v":"n.d."},{"$f":"IF('[1]MONE(M)CAPARD'!HB147=\"\",\"\",'[1]MONE(M)CAPARD'!HB147)","v":"n.d."},"n.d.","n.d.","n.d.","n.d.","n.d.","n.d.","n.d.","n.d.","n.d.","n.d.","n.d.","n.d.","n.d.","n.d.",{"$f":"IF('[1]MONE(M)CAPARD'!AS147=\"\",\"\",'[1]MONE(M)CAPARD'!AS147)","v":"n.d."},{"$f":"IF('[1]MONE(M)CAPARD'!AT147=\"\",\"\",'[1]MONE(M)CAPARD'!AT147)","v":"n.a."},{"$f":"IF('[1]MONE(M)CAPARD'!AU147=\"\",\"\",'[1]MONE(M)CAPARD'!AU147)","v":"n.d."},{"$f":"IF('[1]MONE(M)CAPARD'!AV147=\"\",\"\",'[1]MONE(M)CAPARD'!AV147)","v":"n.d."},{"$f":"IF('[1]MONE(M)CAPARD'!AW147=\"\",\"\",'[1]MONE(M)CAPARD'!AW147)","v":"n.a."},{"$f":"IF('[1]MONE(M)CAPARD'!AX147=\"\",\"\",'[1]MONE(M)CAPARD'!AX147)","v":"n.d."},{"$f":"IF('[1]MONE(M)CAPARD'!AY147=\"\",\"\",'[1]MONE(M)CAPARD'!AY147)","v":"n.a."},{"$f":"IF('[1]FISCAL(M)'!$K147=\"\",\"\",'[1]FISCAL(M)'!$K147)","v":"n.d."},{"$f":"IF('[1]FISCAL(M)'!$L147=\"\",\"\",'[1]FISCAL(M)'!$L147)","v":"n.d."},{"$f":"IF('[1]FISCAL(M)'!$AY147=\"\",\"\",'[1]FISCAL(M)'!$AY147)","v":"n.d."},{"$f":"IF('[1]FISCAL(M)'!$BI147=\"\",\"\",'[1]FISCAL(M)'!$BI147)","v":"n.d."},{"$f":"IF('[1]FISCAL(M)'!$BS147=\"\",\"\",'[1]FISCAL(M)'!$BS147)","v":"n.d."},{"$f":"IF('[1]FISCAL(M)'!$AZ147=\"\",\"\",'[1]FISCAL(M)'!$AZ147)","v":"n.d."},{"$f":"IF('[1]FISCAL(M)'!$BJ147=\"\",\"\",'[1]FISCAL(M)'!$BJ147)","v":"n.d."},{"$f":"IF('[1]FISCAL(M)'!$BT147=\"\",\"\",'[1]FISCAL(M)'!$BT147)","v":"n.d."},{"$f":"IF('[2]MONE(M)'!$AO147=\"\",\"\",'[2]MONE(M)'!$AO147)","v":"n.d."},{"$f":"IF('[3]MONE(M)'!$AO147=\"\",\"\",'[3]MONE(M)'!$AO147)","v":"n.d."},{"$f":"IF('[4]MONE(M)'!$AO147=\"\",\"\",'[4]MONE(M)'!$AO147)","v":"n.d."},{"$f":"IF('[5]MONE(M)'!$AO147=\"\",\"\",'[5]MONE(M)'!$AO147)","v":"n.d."},{"$f":"IF('[6]MONE(M)'!$AO147=\"\",\"\",'[6]MONE(M)'!$AO147)","v":"n.d."},{"$f":"IF('[7]MONE(M)'!$AO147=\"\",\"\",'[7]MONE(M)'!$AO147)","v":"n.d."},{"$f":"IF('[8]MONE(M)'!$AO147=\"\",\"\",'[8]MONE(M)'!$AO147)","v":"n.d."},"n.d.","n.d.","n.d.","n.d.","n.d.","n.d.","n.d.",{"$f":"IF('[1]FISCAL(M)'!$K147=\"\",\"\",'[1]FISCAL(M)'!$K147)","v":"n.d."},{"$f":"+'[1]REAL(A)'!$AO$21","v":"n.d."},"n.d.",{"$f":"IF('[1]FISCAL(M)'!$L147=\"\",\"\",'[1]FISCAL(M)'!$L147)","v":"n.d."},{"$f":"+'[1]REAL(A)'!$AP$21","v":"n.d."},"n.d.","n.d.","n.d.","n.d.","n.d.","n.d.","n.d.","n.d.","n.d.","n.d.","n.d.","n.d.","n.d.","n.d.","n.d.","n.d.","n.d."]
[2001,"julio","2001-julio",{"$f":"IF('[1]REAL IPC(M)'!$AL148=\"\",\"\",+'[1]REAL IPC(M)'!$AL148)","v":8.5606353950946392},{"$f":"IF('[1]REAL IPC(M)'!$BE148=\"\",\"\",+'[1]REAL IPC(M)'!$BE148)","v":8.2905567385988199},{"$f":"IF('[1]REAL IPC(M)'!$AM148=\"\",\"\",+'[1]REAL IPC(M)'!$AM148)","v":8.075142104333267},{"$f":"IF('[1]REAL IPC(M)'!$BI148=\"\",\"\",+'[1]REAL IPC(M)'!$BI148)","v":7.6854325304152482},{"$f":"IF('[1]REAL IMAE(M)'!BJ148=\"\",\"\",'[1]REAL IMAE(M)'!BJ148)","v":"n.d."},{"$f":"IF('[1]REAL IMAE(M)'!BK148=\"\",\"\",'[1]REAL IMAE(M)'!BK148)","v":"n.d."},{"$f":"IF('[1]REAL IMAE(M)'!BN148=\"\",\"\",'[1]REAL IMAE(M)'!BN148)","v":"n.d."},{"$f":"IF('[1]REAL IMAE(M)'!BO148=\"\",\"\",'[1]REAL IMAE(M)'!BO148)","v":"n.d."},{"$f":"IF('[1]EXT RIN(M)'!$K148=\"\",\"\",'[1]EXT RIN(M)'!$K148)","v":"n.d."},"",{"$f":"IF('[1]EXT RIN(M)'!$L148=\"\",\"\",'[1]EXT RIN(M)'!$L148)","v":"n.d."},"",{"$f":"IF('[1]MONE(M)CARD'!EG148=\"\",\"\",'[1]MONE(M)CARD'!EG148)","v":"n.d."},{"$f":"IF('[1]MONE(M)CARD'!EK148=\"\",\"\",'[1]MONE(M)CARD'!EK148)","v":"n.d."},{"$f":"IF('[1]MONE(M)CARD'!EP148=\"\",\"\",'[1]MONE(M)CARD'!EP148)","v":"n.d."},{"$f":"IF('[1]MONE(M)CARD'!ES148=\"\",\"\",'[1]MONE(M)CARD'!ES148)","v":"n.d."},{"$f":"IF('[1]MONE(M)CARD'!EV148=\"\",\"\",'[1]MONE(M)CARD'!EV148)","v":"n.d."},{"$f":"IF('[1]MONE(M)CARD'!EZ148=\"\",\"\",'[1]MONE(M)CARD'!EZ148)","v":"n.d."},{"$f":"IF('[1]MONE(M)CAPARD'!FC148=\"\",\"\",'[1]MONE(M)CAPARD'!FC148)","v":"n.d."},{"$f":"IF('[1]MONE(M)CAPARD'!FG148=\"\",\"\",'[1]MONE(M)CAPARD'!FG148)","v":"n.d."},{"$f":"IF('[1]MONE(M)CAPARD'!FL148=\"\",\"\",'[1]MONE(M)CAPARD'!FL148)","v":"n.d."},{"$f":"IF('[1]MONE(M)CAPARD'!FO148=\"\",\"\",'[1]MONE(M)CAPARD'!FO148)","v":"n.d."},{"$f":"IF('[1]MONE(M)CAPARD'!FR148=\"\",\"\",'[1]MONE(M)CAPARD'!FR148)","v":"n.d."},{"$f":"IF('[1]MONE(M)CAPARD'!FV148=\"\",\"\",'[1]MONE(M)CAPARD'!FV148)","v":"n.d."},{"$f":"IF('[1]MONE(M)CARD'!FV148=\"\",\"\",'[1]MONE(M)CARD'!FV148)","v":""},{"$f":"IF('[1]MONE(M)CARD'!GD148=\"\",\"\",'[1]MONE(M)CARD'!GD148)","v":"n.d."},{"$f":"IF('[1]MONE(M)CARD'!GE148=\"\",\"\",'[1]MONE(M)CARD'!GE148)","v":"n.d."},"n.d.","n.d.","n.d.","n.d.","n.d.","n.d.","n.d.","n.d.",null,"n.d.","n.d.","n.d.","n.d.","n.d.",{"$f":"IF('[1]MONE(M)CAPARD'!GS148=\"\",\"\",'[1]MONE(M)CAPARD'!GS148)","v":"n.d."},{"$f":"IF('[1]MONE(M)CARD'!HA148=\"\",\"\",'[1]MONE(M)CAPARD'!HA148)","v":"n.d."},{"$f":"IF('[1]MONE(M)CAPARD'!HB148=\"\",\"\",'[1]MONE(M)CAPARD'!HB148)","v":"n.d."},"n.d.","n.d.","n.d.","n.d.","n.d.","n.d.","n.d.","n.d.","n.d.","n.d.","n.d.","n.d.","n.d.","n.d.",{"$f":"IF('[1]MONE(M)CAPARD'!AS148=\"\",\"\",'[1]MONE(M)CAPARD'!AS148)","v":"n.d."},{"$f":"IF('[1]MONE(M)CAPARD'!AT148=\"\",\"\",'[1]MONE(M)CAPARD'!AT148)","v":"n.a."},{"$f":"IF('[1]MONE(M)CAPARD'!AU148=\"\",\"\",'[1]MONE(M)CAPARD'!AU148)","v":"n.d."},{"$f":"IF('[1]MONE(M)CAPARD'!AV148=\"\",\"\",'[1]MONE(M)CAPARD'!AV148)","v":"n.d."},{"$f":"IF('[1]MONE(M)CAPARD'!AW148=\"\",\"\",'[1]MONE(M)CAPARD'!AW148)","v":"n.a."},{"$f":"IF('[1]MONE(M)CAPARD'!AX148=\"\",\"\",'[1]MONE(M)CAPARD'!AX148)","v":"n.d."},{"$f":"IF('[1]MONE(M)CAPARD'!AY148=\"\",\"\",'[1]MONE(M)CAPARD'!AY148)","v":"n.a."},{"$f":"IF('[1]FISCAL(M)'!$K148=\"\",\"\",'[1]FISCAL(M)'!$K148)","v":"n.d."},{"$f":"IF('[1]FISCAL(M)'!$L148=\"\",\"\",'[1]FISCAL(M)'!$L148)","v":"n.d."},{"$f":"IF('[1]FISCAL(M)'!$AY148=\"\",\"\",'[1]FISCAL(M)'!$AY148)","v":"n.d."},{"$f":"IF('[1]FISCAL(M)'!$BI148=\"\",\"\",'[1]FISCAL(M)'!$BI148)","v":"n.d."},{"$f":"IF('[1]FISCAL(M)'!$BS148=\"\",\"\",'[1]FISCAL(M)'!$BS148)","v":"n.d."},{"$f":"IF('[1]FISCAL(M)'!$AZ148=\"\",\"\",'[1]FISCAL(M)'!$AZ148)","v":"n.d."},{"$f":"IF('[1]FISCAL(M)'!$BJ148=\"\",\"\",'[1]FISCAL(M)'!$BJ148)","v":"n.d."},{"$f":"IF('[1]FISCAL(M)'!$BT148=\"\",\"\",'[1]FISCAL(M)'!$BT148)","v":"n.d."},{"$f":"IF('[2]MONE(M)'!$AO148=\"\",\"\",'[2]MONE(M)'!$AO148)","v":"n.d."},{"$f":"IF('[3]MONE(M)'!$AO148=\"\",\"\",'[3]MONE(M)'!$AO148)","v":"n.d."},{"$f":"IF('[4]MONE(M)'!$AO148=\"\",\"\",'[4]MONE(M)'!$AO148)","v":"n.d."},{"$f":"IF('[5]MONE(M)'!$AO148=\"\",\"\",'[5]MONE(M)'!$AO148)","v":"n.d."},{"$f":"IF('[6]MONE(M)'!$AO148=\"\",\"\",'[6]MONE(M)'!$AO148)","v":"n.d."},{"$f":"IF('[7]MONE(M)'!$AO148=\"\",\"\",'[7]MONE(M)'!$AO148)","v":"n.d."},{"$f":"IF('[8]MONE(M)'!$AO148=\"\",\"\",'[8]MONE(M)'!$AO148)","v":"n.d."},"n.d.","n.d.","n.d.","n.d.","n.d.","n.d.","n.d.",{"$f":"IF('[1]FISCAL(M)'!$K148=\"\",\"\",'[1]FISCAL(M)'!$K148)","v":"n.d."},{"$f":"+'[1]REAL(A)'!$AO$21","v":"n.d."},"n.d.",{"$f":"IF('[1]FISCAL(M)'!$L148=\"\",\"\",'[1]FISCAL(M)'!$L148)","v":"n.d."},{"$f":"+'[1]REAL(A)'!$AP$21","v":"n.d."},"n.d.","n.d.","n.d.","n.d.","n.d.","n.d.","n.d.","n.d.","n.d.","n.d.","n.d.","n.d.","n.d.","n.d.","n.d.","n.d.","n.d."]
[2001,"agosto","2001-agosto",{"$f":"IF('[1]REAL IPC(M)'!$AL149=\"\",\"\",+'[1]REAL IPC(M)'!$AL149)","v":8.9821823679032029},{"$f":"IF('[1]REAL IPC(M)'!$BE149=\"\",\"\",+'[1]REAL IPC(M)'!$BE149)","v":8.3897763873903344},{"$f":"IF('[1]REAL IPC(M)'!$AM149=\"\",\"\",+'[1]REAL IPC(M)'!$AM149)","v":8.4972326324561855},{"$f":"IF('[1]REAL IPC(M)'!$BI149=\"\",\"\",+'[1]REAL IPC(M)'!$BI149)","v":7.7673546059395138},{"$f":"IF('[1]REAL IMAE(M)'!BJ149=\"\",\"\",'[1]REAL IMAE(M)'!BJ149)","v":"n.d."},{"$f":"IF('[1]REAL IMAE(M)'!BK149=\"\",\"\",'[1]REAL IMAE(M)'!BK149)","v":"n.d."},{"$f":"IF('[1]REAL IMAE(M)'!BN149=\"\",\"\",'[1]REAL IMAE(M)'!BN149)","v":"n.d."},{"$f":"IF('[1]REAL IMAE(M)'!BO149=\"\",\"\",'[1]REAL IMAE(M)'!BO149)","v":"n.d."},{"$f":"IF('[1]EXT RIN(M)'!$K149=\"\",\"\",'[1]EXT RIN(M)'!$K149)","v":"n.d."},"",{"$f":"IF('[1]EXT RIN(M)'!$L149=\"\",\"\",'[1]EXT RIN(M)'!$L149)","v":"n.d."},"",{"$f":"IF('[1]MONE(M)CARD'!EG149=\"\",\"\",'[1]MONE(M)CARD'!EG149)","v":"n.d."},{"$f":"IF('[1]MONE(M)CARD'!EK149=\"\",\"\",'[1]MONE(M)CARD'!EK149)","v":"n.d."},{"$f":"IF('[1]MONE(M)CARD'!EP149=\"\",\"\",'[1]MONE(M)CARD'!EP149)","v":"n.d."},{"$f":"IF('[1]MONE(M)CARD'!ES149=\"\",\"\",'[1]MONE(M)CARD'!ES149)","v":"n.d."},{"$f":"IF('[1]MONE(M)CARD'!EV149=\"\",\"\",'[1]MONE(M)CARD'!EV149)","v":"n.d."},{"$f":"IF('[1]MONE(M)CARD'!EZ149=\"\",\"\",'[1]MONE(M)CARD'!EZ149)","v":"n.d."},{"$f":"IF('[1]MONE(M)CAPARD'!FC149=\"\",\"\",'[1]MONE(M)CAPARD'!FC149)","v":"n.d."},{"$f":"IF('[1]MONE(M)CAPARD'!FG149=\"\",\"\",'[1]MONE(M)CAPARD'!FG149)","v":"n.d."},{"$f":"IF('[1]MONE(M)CAPARD'!FL149=\"\",\"\",'[1]MONE(M)CAPARD'!FL149)","v":"n.d."},{"$f":"IF('[1]MONE(M)CAPARD'!FO149=\"\",\"\",'[1]MONE(M)CAPARD'!FO149)","v":"n.d."},{"$f":"IF('[1]MONE(M)CAPARD'!FR149=\"\",\"\",'[1]MONE(M)CAPARD'!FR149)","v":"n.d."},{"$f":"IF('[1]MONE(M)CAPARD'!FV149=\"\",\"\",'[1]MONE(M)CAPARD'!FV149)","v":"n.d."},{"$f":"IF('[1]MONE(M)CARD'!FV149=\"\",\"\",'[1]MONE(M)CARD'!FV149)","v":""},{"$f":"IF('[1]MONE(M)CARD'!GD149=\"\",\"\",'[1]MONE(M)CARD'!GD149)","v":"n.d."},{"$f":"IF('[1]MONE(M)CARD'!GE149=\"\",\"\",'[1]MONE(M)CARD'!GE149)","v":"n.d."},"n.d.","n.d.","n.d.","n.d.","n.d.","n.d.","n.d.","n.d.",null,"n.d.","n.d.","n.d.","n.d.","n.d.",{"$f":"IF('[1]MONE(M)CAPARD'!GS149=\"\",\"\",'[1]MONE(M)CAPARD'!GS149)","v":"n.d."},{"$f":"IF('[1]MONE(M)CARD'!HA149=\"\",\"\",'[1]MONE(M)CAPARD'!HA149)","v":"n.d."},{"$f":"IF('[1]MONE(M)CAPARD'!HB149=\"\",\"\",'[1]MONE(M)CAPARD'!HB149)","v":"n.d."},"n.d.","n.d.","n.d.","n.d.","n.d.","n.d.","n.d.","n.d.","n.d.","n.d.","n.d.","n.d.","n.d.","n.d.",{"$f":"IF('[1]MONE(M)CAPARD'!AS149=\"\",\"\",'[1]MONE(M)CAPARD'!AS149)","v":"n.d."},{"$f":"IF('[1]MONE(M)CAPARD'!AT149=\"\",\"\",'[1]MONE(M)CAPARD'!AT149)","v":"n.a."},{"$f":"IF('[1]MONE(M)CAPARD'!AU149=\"\",\"\",'[1]MONE(M)CAPARD'!AU149)","v":"n.d."},{"$f":"IF('[1]MONE(M)CAPARD'!AV149=\"\",\"\",'[1]MONE(M)CAPARD'!AV149)","v":"n.d."},{"$f":"IF('[1]MONE(M)CAPARD'!AW149=\"\",\"\",'[1]MONE(M)CAPARD'!AW149)","v":"n.a."},{"$f":"IF('[1]MONE(M)CAPARD'!AX149=\"\",\"\",'[1]MONE(M)CAPARD'!AX149)","v":"n.d."},{"$f":"IF('[1]MONE(M)CAPARD'!AY149=\"\",\"\",'[1]MONE(M)CAPARD'!AY149)","v":"n.a."},{"$f":"IF('[1]FISCAL(M)'!$K149=\"\",\"\",'[1]FISCAL(M)'!$K149)","v":"n.d."},{"$f":"IF('[1]FISCAL(M)'!$L149=\"\",\"\",'[1]FISCAL(M)'!$L149)","v":"n.d."},{"$f":"IF('[1]FISCAL(M)'!$AY149=\"\",\"\",'[1]FISCAL(M)'!$AY149)","v":"n.d."},{"$f":"IF('[1]FISCAL(M)'!$BI149=\"\",\"\",'[1]FISCAL(M)'!$BI149)","v":"n.d."},{"$f":"IF('[1]FISCAL(M)'!$BS149=\"\",\"\",'[1]FISCAL(M)'!$BS149)","v":"n.d."},{"$f":"IF('[1]FISCAL(M)'!$AZ149=\"\",\"\",'[1]FISCAL(M)'!$AZ149)","v":"n.d."},{"$f":"IF('[1]FISCAL(M)'!$BJ149=\"\",\"\",'[1]FISCAL(M)'!$BJ149)","v":"n.d."},{"$f":"IF('[1]FISCAL(M)'!$BT149=\"\",\"\",'[1]FISCAL(M)'!$BT149)","v":"n.d."},{"$f":"IF('[2]MONE(M)'!$AO149=\"\",\"\",'[2]MONE(M)'!$AO149)","v":"n.d."},{"$f":"IF('[3]MONE(M)'!$AO149=\"\",\"\",'[3]MONE(M)'!$AO149)","v":"n.d."},{"$f":"IF('[4]MONE(M)'!$AO149=\"\",\"\",'[4]MONE(M)'!$AO149)","v":"n.d."},{"$f":"IF('[5]MONE(M)'!$AO149=\"\",\"\",'[5]MONE(M)'!$AO149)","v":"n.d."},{"$f":"IF('[6]MONE(M)'!$AO149=\"\",\"\",'[6]MONE(M)'!$AO149)","v":"n.d."},{"$f":"IF('[7]MONE(M)'!$AO149=\"\",\"\",'[7]MONE(M)'!$AO149)","v":"n.d."},{"$f":"IF('[8]MONE(M)'!$AO149=\"\",\"\",'[8]MONE(M)'!$AO149)","v":"n.d."},"n.d.","n.d.","n.d.","n.d.","n.d.","n.d.","n.d.",{"$f":"IF('[1]FISCAL(M)'!$K149=\"\",\"\",'[1]FISCAL(M)'!$K149)","v":"n.d."},{"$f":"+'[1]REAL(A)'!$AO$21","v":"n.d."},"n.d.",{"$f":"IF('[1]FISCAL(M)'!$L149=\"\",\"\",'[1]FISCAL(M)'!$L149)","v":"n.d."},{"$f":"+'[1]REAL(A)'!$AP$21","v":"n.d."},"n.d.","n.d.","n.d.","n.d.","n.d.","n.d.","n.d.","n.d.","n.d.","n.d.","n.d.","n.d.","n.d.","n.d.","n.d.","n.d.","n.d."]
[2001,"septiembre","2001-septiembre",{"$f":"IF('[1]REAL IPC(M)'!$AL150=\"\",\"\",+'[1]REAL IPC(M)'!$AL150)","v":8.3648130870992645},{"$f":"IF('[1]REAL IPC(M)'!$BE150=\"\",\"\",+'[1]REAL IPC(M)'!$BE150)","v":8.4971061153174645},{"$f":"IF('[1]REAL IPC(M)'!$AM150=\"\",\"\",+'[1]REAL IPC(M)'!$AM150)","v":7.9537727036281591},{"$f":"IF('[1]REAL IPC(M)'!$BI150=\"\",\"\",+'[1]REAL IPC(M)'!$BI150)","v":7.8569317453952126},{"$f":"IF('[1]REAL IMAE(M)'!BJ150=\"\",\"\",'[1]REAL IMAE(M)'!BJ150)","v":"n.d."},{"$f":"IF('[1]REAL IMAE(M)'!BK150=\"\",\"\",'[1]REAL IMAE(M)'!BK150)","v":"n.d."},{"$f":"IF('[1]REAL IMAE(M)'!BN150=\"\",\"\",'[1]REAL IMAE(M)'!BN150)","v":"n.d."},{"$f":"IF('[1]REAL IMAE(M)'!BO150=\"\",\"\",'[1]REAL IMAE(M)'!BO150)","v":"n.d."},{"$f":"IF('[1]EXT RIN(M)'!$K150=\"\",\"\",'[1]EXT RIN(M)'!$K150)","v":"n.d."},"",{"$f":"IF('[1]EXT RIN(M)'!$L150=\"\",\"\",'[1]EXT RIN(M)'!$L150)","v":"n.d."},"",{"$f":"IF('[1]MONE(M)CARD'!EG150=\"\",\"\",'[1]MONE(M)CARD'!EG150)","v":"n.d."},{"$f":"IF('[1]MONE(M)CARD'!EK150=\"\",\"\",'[1]MONE(M)CARD'!EK150)","v":"n.d."},{"$f":"IF('[1]MONE(M)CARD'!EP150=\"\",\"\",'[1]MONE(M)CARD'!EP150)","v":"n.d."},{"$f":"IF('[1]MONE(M)CARD'!ES150=\"\",\"\",'[1]MONE(M)CARD'!ES150)","v":"n.d."},{"$f":"IF('[1]MONE(M)CARD'!EV150=\"\",\"\",'[1]MONE(M)CARD'!EV150)","v":"n.d."},{"$f":"IF('[1]MONE(M)CARD'!EZ150=\"\",\"\",'[1]MONE(M)CARD'!EZ150)","v":"n.d."},{"$f":"IF('[1]MONE(M)CAPARD'!FC150=\"\",\"\",'[1]MONE(M)CAPARD'!FC150)","v":"n.d."},{"$f":"IF('[1]MONE(M)CAPARD'!FG150=\"\",\"\",'[1]MONE(M)CAPARD'!FG150)","v":"n.d."},{"$f":"IF('[1]MONE(M)CAPARD'!FL150=\"\",\"\",'[1]MONE(M)CAPARD'!FL150)","v":"n.d."},{"$f":"IF('[1]MONE(M)CAPARD'!FO150=\"\",\"\",'[1]MONE(M)CAPARD'!FO150)","v":"n.d."},{"$f":"IF('[1]MONE(M)CAPARD'!FR150=\"\",\"\",'[1]MONE(M)CAPARD'!FR150)","v":"n.d."},{"$f":"IF('[1]MONE(M)CAPARD'!FV150=\"\",\"\",'[1]MONE(M)CAPARD'!FV150)","v":"n.d."},{"$f":"IF('[1]MONE(M)CARD'!FV150=\"\",\"\",'[1]MONE(M)CARD'!FV150)","v":""},{"$f":"IF('[1]MONE(M)CARD'!GD150=\"\",\"\",'[1]MONE(M)CARD'!GD150)","v":"n.d."},{"$f":"IF('[1]MONE(M)CARD'!GE150=\"\",\"\",'[1]MONE(M)CARD'!GE150)","v":"n.d."},"n.d.","n.d.","n.d.","n.d.","n.d.","n.d.","n.d.","n.d.",null,"n.d.","n.d.","n.d.","n.d.","n.d.",{"$f":"IF('[1]MONE(M)CAPARD'!GS150=\"\",\"\",'[1]MONE(M)CAPARD'!GS150)","v":"n.d."},{"$f":"IF('[1]MONE(M)CARD'!HA150=\"\",\"\",'[1]MONE(M)CAPARD'!HA150)","v":"n.d."},{"$f":"IF('[1]MONE(M)CAPARD'!HB150=\"\",\"\",'[1]MONE(M)CAPARD'!HB150)","v":"n.d."},"n.d.","n.d.","n.d.","n.d.","n.d.","n.d.","n.d.","n.d.","n.d.","n.d.","n.d.","n.d.","n.d.","n.d.",{"$f":"IF('[1]MONE(M)CAPARD'!AS150=\"\",\"\",'[1]MONE(M)CAPARD'!AS150)","v":"n.d."},{"$f":"IF('[1]MONE(M)CAPARD'!AT150=\"\",\"\",'[1]MONE(M)CAPARD'!AT150)","v":"n.a."},{"$f":"IF('[1]MONE(M)CAPARD'!AU150=\"\",\"\",'[1]MONE(M)CAPARD'!AU150)","v":"n.d."},{"$f":"IF('[1]MONE(M)CAPARD'!AV150=\"\",\"\",'[1]MONE(M)CAPARD'!AV150)","v":"n.d."},{"$f":"IF('[1]MONE(M)CAPARD'!AW150=\"\",\"\",'[1]MONE(M)CAPARD'!AW150)","v":"n.a."},{"$f":"IF('[1]MONE(M)CAPARD'!AX150=\"\",\"\",'[1]MONE(M)CAPARD'!AX150)","v":"n.d."},{"$f":"IF('[1]MONE(M)CAPARD'!AY150=\"\",\"\",'[1]MONE(M)CAPARD'!AY150)","v":"n.a."},{"$f":"IF('[1]FISCAL(M)'!$K150=\"\",\"\",'[1]FISCAL(M)'!$K150)","v":"n.d."},{"$f":"IF('[1]FISCAL(M)'!$L150=\"\",\"\",'[1]FISCAL(M)'!$L150)","v":"n.d."},{"$f":"IF('[1]FISCAL(M)'!$AY150=\"\",\"\",'[1]FISCAL(M)'!$AY150)","v":"n.d."},{"$f":"IF('[1]FISCAL(M)'!$BI150=\"\",\"\",'[1]FISCAL(M)'!$BI150)","v":"n.d."},{"$f":"IF('[1]FISCAL(M)'!$BS150=\"\",\"\",'[1]FISCAL(M)'!$BS150)","v":"n.d."},{"$f":"IF('[1]FISCAL(M)'!$AZ150=\"\",\"\",'[1]FISCAL(M)'!$AZ150)","v":"n.d."},{"$f":"IF('[1]FISCAL(M)'!$BJ150=\"\",\"\",'[1]FISCAL(M)'!$BJ150)","v":"n.d."},{"$f":"IF('[1]FISCAL(M)'!$BT150=\"\",\"\",'[1]FISCAL(M)'!$BT150)","v":"n.d."},{"$f":"IF('[2]MONE(M)'!$AO150=\"\",\"\",'[2]MONE(M)'!$AO150)","v":"n.d."},{"$f":"IF('[3]MONE(M)'!$AO150=\"\",\"\",'[3]MONE(M)'!$AO150)","v":"n.d."},{"$f":"IF('[4]MONE(M)'!$AO150=\"\",\"\",'[4]MONE(M)'!$AO150)","v":"n.d."},{"$f":"IF('[5]MONE(M)'!$AO150=\"\",\"\",'[5]MONE(M)'!$AO150)","v":"n.d."},{"$f":"IF('[6]MONE(M)'!$AO150=\"\",\"\",'[6]MONE(M)'!$AO150)","v":"n.d."},{"$f":"IF('[7]MONE(M)'!$AO150=\"\",\"\",'[7]MONE(M)'!$AO150)","v":"n.d."},{"$f":"IF('[8]MONE(M)'!$AO150=\"\",\"\",'[8]MONE(M)'!$AO150)","v":"n.d."},"n.d.","n.d.","n.d.","n.d.","n.d.","n.d.","n.d.",{"$f":"IF('[1]FISCAL(M)'!$K150=\"\",\"\",'[1]FISCAL(M)'!$K150)","v":"n.d."},{"$f":"+'[1]REAL(A)'!$AO$21","v":"n.d."},"n.d.",{"$f":"IF('[1]FISCAL(M)'!$L150=\"\",\"\",'[1]FISCAL(M)'!$L150)","v":"n.d."},{"$f":"+'[1]REAL(A)'!$AP$21","v":"n.d."},"n.d.","n.d.","n.d.","n.d.","n.d.","n.d.","n.d.","n.d.","n.d.","n.d.","n.d.","n.d.","n.d.","n.d.","n.d.","n.d.","n.d."]
[2001,"octubre","2001-octubre",{"$f":"IF('[1]REAL IPC(M)'!$AL151=\"\",\"\",+'[1]REAL IPC(M)'!$AL151)","v":8.0885793804016828},{"$f":"IF('[1]REAL IPC(M)'!$BE151=\"\",\"\",+'[1]REAL IPC(M)'!$BE151)","v":8.6130857763294202},{"$f":"IF('[1]REAL IPC(M)'!$AM151=\"\",\"\",+'[1]REAL IPC(M)'!$AM151)","v":7.7172080774943641},{"$f":"IF('[1]REAL IPC(M)'!$BI151=\"\",\"\",+'[1]REAL IPC(M)'!$BI151)","v":7.9548386641723479},{"$f":"IF('[1]REAL IMAE(M)'!BJ151=\"\",\"\",'[1]REAL IMAE(M)'!BJ151)","v":"n.d."},{"$f":"IF('[1]REAL IMAE(M)'!BK151=\"\",\"\",'[1]REAL IMAE(M)'!BK151)","v":"n.d."},{"$f":"IF('[1]REAL IMAE(M)'!BN151=\"\",\"\",'[1]REAL IMAE(M)'!BN151)","v":"n.d."},{"$f":"IF('[1]REAL IMAE(M)'!BO151=\"\",\"\",'[1]REAL IMAE(M)'!BO151)","v":"n.d."},{"$f":"IF('[1]EXT RIN(M)'!$K151=\"\",\"\",'[1]EXT RIN(M)'!$K151)","v":"n.d."},"",{"$f":"IF('[1]EXT RIN(M)'!$L151=\"\",\"\",'[1]EXT RIN(M)'!$L151)","v":"n.d."},"",{"$f":"IF('[1]MONE(M)CARD'!EG151=\"\",\"\",'[1]MONE(M)CARD'!EG151)","v":"n.d."},{"$f":"IF('[1]MONE(M)CARD'!EK151=\"\",\"\",'[1]MONE(M)CARD'!EK151)","v":"n.d."},{"$f":"IF('[1]MONE(M)CARD'!EP151=\"\",\"\",'[1]MONE(M)CARD'!EP151)","v":"n.d."},{"$f":"IF('[1]MONE(M)CARD'!ES151=\"\",\"\",'[1]MONE(M)CARD'!ES151)","v":"n.d."},{"$f":"IF('[1]MONE(M)CARD'!EV151=\"\",\"\",'[1]MONE(M)CARD'!EV151)","v":"n.d."},{"$f":"IF('[1]MONE(M)CARD'!EZ151=\"\",\"\",'[1]MONE(M)CARD'!EZ151)","v":"n.d."},{"$f":"IF('[1]MONE(M)CAPARD'!FC151=\"\",\"\",'[1]MONE(M)CAPARD'!FC151)","v":"n.d."},{"$f":"IF('[1]MONE(M)CAPARD'!FG151=\"\",\"\",'[1]MONE(M)CAPARD'!FG151)","v":"n.d."},{"$f":"IF('[1]MONE(M)CAPARD'!FL151=\"\",\"\",'[1]MONE(M)CAPARD'!FL151)","v":"n.d."},{"$f":"IF('[1]MONE(M)CAPARD'!FO151=\"\",\"\",'[1]MONE(M)CAPARD'!FO151)","v":"n.d."},{"$f":"IF('[1]MONE(M)CAPARD'!FR151=\"\",\"\",'[1]MONE(M)CAPARD'!FR151)","v":"n.d."},{"$f":"IF('[1]MONE(M)CAPARD'!FV151=\"\",\"\",'[1]MONE(M)CAPARD'!FV151)","v":"n.d."},{"$f":"IF('[1]MONE(M)CARD'!FV151=\"\",\"\",'[1]MONE(M)CARD'!FV151)","v":""},{"$f":"IF('[1]MONE(M)CARD'!GD151=\"\",\"\",'[1]MONE(M)CARD'!GD151)","v":"n.d."},{"$f":"IF('[1]MONE(M)CARD'!GE151=\"\",\"\",'[1]MONE(M)CARD'!GE151)","v":"n.d."},"n.d.","n.d.","n.d.","n.d.","n.d.","n.d.","n.d.","n.d.",null,"n.d.","n.d.","n.d.","n.d.","n.d.",{"$f":"IF('[1]MONE(M)CAPARD'!GS151=\"\",\"\",'[1]MONE(M)CAPARD'!GS151)","v":"n.d."},{"$f":"IF('[1]MONE(M)CARD'!HA151=\"\",\"\",'[1]MONE(M)CAPARD'!HA151)","v":"n.d."},{"$f":"IF('[1]MONE(M)CAPARD'!HB151=\"\",\"\",'[1]MONE(M)CAPARD'!HB151)","v":"n.d."},"n.d.","n.d.","n.d.","n.d.","n.d.","n.d.","n.d.","n.d.","n.d.","n.d.","n.d.","n.d.","n.d.","n.d.",{"$f":"IF('[1]MONE(M)CAPARD'!AS151=\"\",\"\",'[1]MONE(M)CAPARD'!AS151)","v":"n.d."},{"$f":"IF('[1]MONE(M)CAPARD'!AT151=\"\",\"\",'[1]MONE(M)CAPARD'!AT151)","v":"n.a."},{"$f":"IF('[1]MONE(M)CAPARD'!AU151=\"\",\"\",'[1]MONE(M)CAPARD'!AU151)","v":"n.d."},{"$f":"IF('[1]MONE(M)CAPARD'!AV151=\"\",\"\",'[1]MONE(M)CAPARD'!AV151)","v":"n.d."},{"$f":"IF('[1]MONE(M)CAPARD'!AW151=\"\",\"\",'[1]MONE(M)CAPARD'!AW151)","v":"n.a."},{"$f":"IF('[1]MONE(M)CAPARD'!AX151=\"\",\"\",'[1]MONE(M)CAPARD'!AX151)","v":"n.d."},{"$f":"IF('[1]MONE(M)CAPARD'!AY151=\"\",\"\",'[1]MONE(M)CAPARD'!AY151)","v":"n.a."},{"$f":"IF('[1]FISCAL(M)'!$K151=\"\",\"\",'[1]FISCAL(M)'!$K151)","v":"n.d."},{"$f":"IF('[1]FISCAL(M)'!$L151=\"\",\"\",'[1]FISCAL(M)'!$L151)","v":"n.d."},{"$f":"IF('[1]FISCAL(M)'!$AY151=\"\",\"\",'[1]FISCAL(M)'!$AY151)","v":"n.d."},{"$f":"IF('[1]FISCAL(M)'!$BI151=\"\",\"\",'[1]FISCAL(M)'!$BI151)","v":"n.d."},{"$f":"IF('[1]FISCAL(M)'!$BS151=\"\",\"\",'[1]FISCAL(M)'!$BS151)","v":"n.d."},{"$f":"IF('[1]FISCAL(M)'!$AZ151=\"\",\"\",'[1]FISCAL(M)'!$AZ151)","v":"n.d."},{"$f":"IF('[1]FISCAL(M)'!$BJ151=\"\",\"\",'[1]FISCAL(M)'!$BJ151)","v":"n.d."},{"$f":"IF('[1]FISCAL(M)'!$BT151=\"\",\"\",'[1]FISCAL(M)'!$BT151)","v":"n.d."},{"$f":"IF('[2]MONE(M)'!$AO151=\"\",\"\",'[2]MONE(M)'!$AO151)","v":"n.d."},{"$f":"IF('[3]MONE(M)'!$AO151=\"\",\"\",'[3]MONE(M)'!$AO151)","v":"n.d."},{"$f":"IF('[4]MONE(M)'!$AO151=\"\",\"\",'[4]MONE(M)'!$AO151)","v":"n.d."},{"$f":"IF('[5]MONE(M)'!$AO151=\"\",\"\",'[5]MONE(M)'!$AO151)","v":"n.d."},{"$f":"IF('[6]MONE(M)'!$AO151=\"\",\"\",'[6]MONE(M)'!$AO151)","v":"n.d."},{"$f":"IF('[7]MONE(M)'!$AO151=\"\",\"\",'[7]MONE(M)'!$AO151)","v":"n.d."},{"$f":"IF('[8]MONE(M)'!$AO151=\"\",\"\",'[8]MONE(M)'!$AO151)","v":"n.d."},"n.d.","n.d.","n.d.","n.d.","n.d.","n.d.","n.d.",{"$f":"IF('[1]FISCAL(M)'!$K151=\"\",\"\",'[1]FISCAL(M)'!$K151)","v":"n.d."},{"$f":"+'[1]REAL(A)'!$AO$21","v":"n.d."},"n.d.",{"$f":"IF('[1]FISCAL(M)'!$L151=\"\",\"\",'[1]FISCAL(M)'!$L151)","v":"n.d."},{"$f":"+'[1]REAL(A)'!$AP$21","v":"n.d."},"n.d.","n.d.","n.d.","n.d.","n.d.","n.d.","n.d.","n.d.","n.d.","n.d.","n.d.","n.d.","n.d.","n.d.","n.d.","n.d.","n.d."]
[2001,"noviembre","2001-noviembre",{"$f":"IF('[1]REAL IPC(M)'!$AL152=\"\",\"\",+'[1]REAL IPC(M)'!$AL152)","v":7.9328340063902436},{"$f":"IF('[1]REAL IPC(M)'!$BE152=\"\",\"\",+'[1]REAL IPC(M)'!$BE152)","v":8.7382307162201087},{"$f":"IF('[1]REAL IPC(M)'!$AM152=\"\",\"\",+'[1]REAL IPC(M)'!$AM152)","v":7.5660687224160306},{"$f":"IF('[1]REAL IPC(M)'!$BI152=\"\",\"\",+'[1]REAL IPC(M)'!$BI152)","v":8.0617392379045185},{"$f":"IF('[1]REAL IMAE(M)'!BJ152=\"\",\"\",'[1]REAL IMAE(M)'!BJ152)","v":"n.d."},{"$f":"IF('[1]REAL IMAE(M)'!BK152=\"\",\"\",'[1]REAL IMAE(M)'!BK152)","v":"n.d."},{"$f":"IF('[1]REAL IMAE(M)'!BN152=\"\",\"\",'[1]REAL IMAE(M)'!BN152)","v":"n.d."},{"$f":"IF('[1]REAL IMAE(M)'!BO152=\"\",\"\",'[1]REAL IMAE(M)'!BO152)","v":"n.d."},{"$f":"IF('[1]EXT RIN(M)'!$K152=\"\",\"\",'[1]EXT RIN(M)'!$K152)","v":"n.d."},"",{"$f":"IF('[1]EXT RIN(M)'!$L152=\"\",\"\",'[1]EXT RIN(M)'!$L152)","v":"n.d."},"",{"$f":"IF('[1]MONE(M)CARD'!EG152=\"\",\"\",'[1]MONE(M)CARD'!EG152)","v":"n.d."},{"$f":"IF('[1]MONE(M)CARD'!EK152=\"\",\"\",'[1]MONE(M)CARD'!EK152)","v":"n.d."},{"$f":"IF('[1]MONE(M)CARD'!EP152=\"\",\"\",'[1]MONE(M)CARD'!EP152)","v":"n.d."},{"$f":"IF('[1]MONE(M)CARD'!ES152=\"\",\"\",'[1]MONE(M)CARD'!ES152)","v":"n.d."},{"$f":"IF('[1]MONE(M)CARD'!EV152=\"\",\"\",'[1]MONE(M)CARD'!EV152)","v":"n.d."},{"$f":"IF('[1]MONE(M)CARD'!EZ152=\"\",\"\",'[1]MONE(M)CARD'!EZ152)","v":"n.d."},{"$f":"IF('[1]MONE(M)CAPARD'!FC152=\"\",\"\",'[1]MONE(M)CAPARD'!FC152)","v":"n.d."},{"$f":"IF('[1]MONE(M)CAPARD'!FG152=\"\",\"\",'[1]MONE(M)CAPARD'!FG152)","v":"n.d."},{"$f":"IF('[1]MONE(M)CAPARD'!FL152=\"\",\"\",'[1]MONE(M)CAPARD'!FL152)","v":"n.d."},{"$f":"IF('[1]MONE(M)CAPARD'!FO152=\"\",\"\",'[1]MONE(M)CAPARD'!FO152)","v":"n.d."},{"$f":"IF('[1]MONE(M)CAPARD'!FR152=\"\",\"\",'[1]MONE(M)CAPARD'!FR152)","v":"n.d."},{"$f":"IF('[1]MONE(M)CAPARD'!FV152=\"\",\"\",'[1]MONE(M)CAPARD'!FV152)","v":"n.d."},{"$f":"IF('[1]MONE(M)CARD'!FV152=\"\",\"\",'[1]MONE(M)CARD'!FV152)","v":""},{"$f":"IF('[1]MONE(M)CARD'!GD152=\"\",\"\",'[1]MONE(M)CARD'!GD152)","v":"n.d."},{"$f":"IF('[1]MONE(M)CARD'!GE152=\"\",\"\",'[1]MONE(M)CARD'!GE152)","v":"n.d."},"n.d.","n.d.","n.d.","n.d.","n.d.","n.d.","n.d.","n.d.",null,"n.d.","n.d.","n.d.","n.d.","n.d.",{"$f":"IF('[1]MONE(M)CAPARD'!GS152=\"\",\"\",'[1]MONE(M)CAPARD'!GS152)","v":"n.d."},{"$f":"IF('[1]MONE(M)CARD'!HA152=\"\",\"\",'[1]MONE(M)CAPARD'!HA152)","v":"n.d."},{"$f":"IF('[1]MONE(M)CAPARD'!HB152=\"\",\"\",'[1]MONE(M)CAPARD'!HB152)","v":"n.d."},"n.d.","n.d.","n.d.","n.d.","n.d.","n.d.","n.d.","n.d.","n.d.","n.d.","n.d.","n.d.","n.d.","n.d.",{"$f":"IF('[1]MONE(M)CAPARD'!AS152=\"\",\"\",'[1]MONE(M)CAPARD'!AS152)","v":"n.d."},{"$f":"IF('[1]MONE(M)CAPARD'!AT152=\"\",\"\",'[1]MONE(M)CAPARD'!AT152)","v":"n.a."},{"$f":"IF('[1]MONE(M)CAPARD'!AU152=\"\",\"\",'[1]MONE(M)CAPARD'!AU152)","v":"n.d."},{"$f":"IF('[1]MONE(M)CAPARD'!AV152=\"\",\"\",'[1]MONE(M)CAPARD'!AV152)","v":"n.d."},{"$f":"IF('[1]MONE(M)CAPARD'!AW152=\"\",\"\",'[1]MONE(M)CAPARD'!AW152)","v":"n.a."},{"$f":"IF('[1]MONE(M)CAPARD'!AX152=\"\",\"\",'[1]MONE(M)CAPARD'!AX152)","v":"n.d."},{"$f":"IF('[1]MONE(M)CAPARD'!AY152=\"\",\"\",'[1]MONE(M)CAPARD'!AY152)","v":"n.a."},{"$f":"IF('[1]FISCAL(M)'!$K152=\"\",\"\",'[1]FISCAL(M)'!$K152)","v":"n.d."},{"$f":"IF('[1]FISCAL(M)'!$L152=\"\",\"\",'[1]FISCAL(M)'!$L152)","v":"n.d."},{"$f":"IF('[1]FISCAL(M)'!$AY152=\"\",\"\",'[1]FISCAL(M)'!$AY152)","v":"n.d."},{"$f":"IF('[1]FISCAL(M)'!$BI152=\"\",\"\",'[1]FISCAL(M)'!$BI152)","v":"n.d."},{"$f":"IF('[1]FISCAL(M)'!$BS152=\"\",\"\",'[1]FISCAL(M)'!$BS152)","v":"n.d."},{"$f":"IF('[1]FISCAL(M)'!$AZ152=\"\",\"\",'[1]FISCAL(M)'!$AZ152)","v":"n.d."},{"$f":"IF('[1]FISCAL(M)'!$BJ152=\"\",\"\",'[1]FISCAL(M)'!$BJ152)","v":"n.d."},{"$f":"IF('[1]FISCAL(M)'!$BT152=\"\",\"\",'[1]FISCAL(M)'!$BT152)","v":"n.d."},{"$f":"IF('[2]MONE(M)'!$AO152=\"\",\"\",'[2]MONE(M)'!$AO152)","v":"n.d."},{"$f":"IF('[3]MONE(M)'!$AO152=\"\",\"\",'[3]MONE(M)'!$AO152)","v":"n.d."},{"$f":"IF('[4]MONE(M)'!$AO152=\"\",\"\",'[4]MONE(M)'!$AO152)","v":"n.d."},{"$f":"IF('[5]MONE(M)'!$AO152=\"\",\"\",'[5]MONE(M)'!$AO152)","v":"n.d."},{"$f":"IF('[6]MONE(M)'!$AO152=\"\",\"\",'[6]MONE(M)'!$AO152)","v":"n.d."},{"$f":"IF('[7]MONE(M)'!$AO152=\"\",\"\",'[7]MONE(M)'!$AO152)","v":"n.d."},{"$f":"IF('[8]MONE(M)'!$AO152=\"\",\"\",'[8]MONE(M)'!$AO152)","v":"n.d."},"n.d.","n.d.","n.d.","n.d.","n.d.","n.d.","n.d.",{"$f":"IF('[1]FISCAL(M)'!$K152=\"\",\"\",'[1]FISCAL(M)'!$K152)","v":"n.d."},{"$f":"+'[1]REAL(A)'!$AO$21","v":"n.d."},"n.d.",{"$f":"IF('[1]FISCAL(M)'!$L152=\"\",\"\",'[1]FISCAL(M)'!$L152)","v":"n.d."},{"$f":"+'[1]REAL(A)'!$AP$21","v":"n.d."},"n.d.","n.d.","n.d.","n.d.","n.d.","n.d.","n.d.","n.d.","n.d.","n.d.","n.d.","n.d.","n.d.","n.d.","n.d.","n.d.","n.d."]
[2001,"diciembre","2001-diciembre",{"$f":"IF('[1]REAL IPC(M)'!$AL153=\"\",\"\",+'[1]REAL IPC(M)'!$AL153)","v":7.2904393424536806},{"$f":"IF('[1]REAL IPC(M)'!$BE153=\"\",\"\",+'[1]REAL IPC(M)'!$BE153)","v":8.8730034626369978},{"$f":"IF('[1]REAL IPC(M)'!$AM153=\"\",\"\",+'[1]REAL IPC(M)'!$AM153)","v":6.9416345322439899},{"$f":"IF('[1]REAL IPC(M)'!$BI153=\"\",\"\",+'[1]REAL IPC(M)'!$BI153)","v":8.1782557660433852},{"$f":"IF('[1]REAL IMAE(M)'!BJ153=\"\",\"\",'[1]REAL IMAE(M)'!BJ153)","v":"n.d."},{"$f":"IF('[1]REAL IMAE(M)'!BK153=\"\",\"\",'[1]REAL IMAE(M)'!BK153)","v":"n.d."},{"$f":"IF('[1]REAL IMAE(M)'!BN153=\"\",\"\",'[1]REAL IMAE(M)'!BN153)","v":"n.d."},{"$f":"IF('[1]REAL IMAE(M)'!BO153=\"\",\"\",'[1]REAL IMAE(M)'!BO153)","v":"n.d."},{"$f":"IF('[1]EXT RIN(M)'!$K153=\"\",\"\",'[1]EXT RIN(M)'!$K153)","v":7764.9711239690441},7764.9711239690441,{"$f":"IF('[1]EXT RIN(M)'!$L153=\"\",\"\",'[1]EXT RIN(M)'!$L153)","v":7764.9711239690441},7764.9711239690441,{"$f":"IF('[1]MONE(M)CARD'!EG153=\"\",\"\",'[1]MONE(M)CARD'!EG153)","v":8926.4344020836179},{"$f":"IF('[1]MONE(M)CARD'!EK153=\"\",\"\",'[1]MONE(M)CARD'!EK153)","v":18810.285015974117},{"$f":"IF('[1]MONE(M)CARD'!EP153=\"\",\"\",'[1]MONE(M)CARD'!EP153)","v":6410.966982121492},{"$f":"IF('[1]MONE(M)CARD'!ES153=\"\",\"\",'[1]MONE(M)CARD'!ES153)","v":"n.d."},{"$f":"IF('[1]MONE(M)CARD'!EV153=\"\",\"\",'[1]MONE(M)CARD'!EV153)","v":"n.d."},{"$f":"IF('[1]MONE(M)CARD'!EZ153=\"\",\"\",'[1]MONE(M)CARD'!EZ153)","v":"n.d."},{"$f":"IF('[1]MONE(M)CAPARD'!FC153=\"\",\"\",'[1]MONE(M)CAPARD'!FC153)","v":8926.4344020836179},{"$f":"IF('[1]MONE(M)CAPARD'!FG153=\"\",\"\",'[1]MONE(M)CAPARD'!FG153)","v":18810.285015974117},{"$f":"IF('[1]MONE(M)CAPARD'!FL153=\"\",\"\",'[1]MONE(M)CAPARD'!FL153)","v":6410.966982121492},{"$f":"IF('[1]MONE(M)CAPARD'!FO153=\"\",\"\",'[1]MONE(M)CAPARD'!FO153)","v":"n.d."},{"$f":"IF('[1]MONE(M)CAPARD'!FR153=\"\",\"\",'[1]MONE(M)CAPARD'!FR153)","v":"n.d."},{"$f":"IF('[1]MONE(M)CAPARD'!FV153=\"\",\"\",'[1]MONE(M)CAPARD'!FV153)","v":"n.d."},{"$f":"IF('[1]MONE(M)CARD'!FV153=\"\",\"\",'[1]MONE(M)CARD'!FV153)","v":313.20424942934255},{"$f":"IF('[1]MONE(M)CARD'!GD153=\"\",\"\",'[1]MONE(M)CARD'!GD153)","v":68.191909845091004},{"$f":"IF('[1]MONE(M)CARD'!GE153=\"\",\"\",'[1]MONE(M)CARD'!GE153)","v":2610.3801962136013},"n.d.",{"$f":"IF('[9]II.2.Balance OSD-Activos'!J11=\"\",\"\",'[9]II.2.Balance OSD-Activos'!J11)","v":157.33979291675027},{"$f":"IF('[9]II.2.Balance OSD-Activos'!N11=\"\",\"\",'[9]II.2.Balance OSD-Activos'!N11)","v":17.021121511511133},{"$f":"IF('[9]II.2.Balance OSD-Activos'!R11=\"\",\"\",'[9]II.2.Balance OSD-Activos'!R11)","v":13188.083443706269},{"$f":"IF('[9]II.2.Balance OSD-Activos'!S11=\"\",\"\",'[9]II.2.Balance OSD-Activos'!S11)","v":11414.577095810417},13345.423236623019,{"$f":"IF(OR(AF146=\"\",AG146=\"\",AH146=\"\",AI146=\"\"),\"\",SUM(AF146:AI146))","v":24777.021453944948},"n.d.",null,"n.d.","n.d.","n.d.","n.d.","n.d.",{"$f":"IF('[1]MONE(M)CAPARD'!GS153=\"\",\"\",'[1]MONE(M)CAPARD'!GS153)","v":3003.7851404356006},{"$f":"IF('[1]MONE(M)CARD'!HA153=\"\",\"\",'[1]MONE(M)CAPARD'!HA153)","v":2610.3801962136013},{"$f":"IF('[1]MONE(M)CAPARD'!HB153=\"\",\"\",'[1]MONE(M)CAPARD'!HB153)","v":393.40494422199936},"n.d.",{"$f":"IF('[10]II.2.Balance OSD-Activos'!J11=\"\",\"\",'[10]II.2.Balance OSD-Activos'!J11)","v":157.33979291675027},{"$f":"IF('[10]II.2.Balance OSD-Activos'!N11=\"\",\"\",'[10]II.2.Balance OSD-Activos'!N11)","v":17.021121511511133},{"$f":"IF('[10]II.2.Balance OSD-Activos'!R11=\"\",\"\",'[10]II.2.Balance OSD-Activos'!R11)","v":13188.083443706269},{"$f":"IF('[10]II.2.Balance OSD-Activos'!S11=\"\",\"\",'[10]II.2.Balance OSD-Activos'!S11)","v":11414.577095810417},{"$f":"IFERROR(+AW146+AY146,\"n.d.\")","v":13345.423236623019},{"$f":"IF(OR(AW146=\"\",AX146=\"\",AY146=\"\",AZ146=\"\"),\"\",SUM(AW146:AZ146))","v":24777.021453944948},"n.d.","n.d.","n.d.","n.d.","n.d.","n.d.","n.d.",{"$f":"IF('[1]MONE(M)CAPARD'!AS153=\"\",\"\",'[1]MONE(M)CAPARD'!AS153)","v":"n.d."},{"$f":"IF('[1]MONE(M)CAPARD'!AT153=\"\",\"\",'[1]MONE(M)CAPARD'!AT153)","v":"n.a."},{"$f":"IF('[1]MONE(M)CAPARD'!AU153=\"\",\"\",'[1]MONE(M)CAPARD'!AU153)","v":"n.d."},{"$f":"IF('[1]MONE(M)CAPARD'!AV153=\"\",\"\",'[1]MONE(M)CAPARD'!AV153)","v":"n.d."},{"$f":"IF('[1]MONE(M)CAPARD'!AW153=\"\",\"\",'[1]MONE(M)CAPARD'!AW153)","v":"n.a."},{"$f":"IF('[1]MONE(M)CAPARD'!AX153=\"\",\"\",'[1]MONE(M)CAPARD'!AX153)","v":"n.d."},{"$f":"IF('[1]MONE(M)CAPARD'!AY153=\"\",\"\",'[1]MONE(M)CAPARD'!AY153)","v":"n.a."},{"$f":"IF('[1]FISCAL(M)'!$K153=\"\",\"\",'[1]FISCAL(M)'!$K153)","v":"n.d."},{"$f":"IF('[1]FISCAL(M)'!$L153=\"\",\"\",'[1]FISCAL(M)'!$L153)","v":"n.d."},{"$f":"IF('[1]FISCAL(M)'!$AY153=\"\",\"\",'[1]FISCAL(M)'!$AY153)","v":"n.d."},{"$f":"IF('[1]FISCAL(M)'!$BI153=\"\",\"\",'[1]FISCAL(M)'!$BI153)","v":"n.d."},{"$f":"IF('[1]FISCAL(M)'!$BS153=\"\",\"\",'[1]FISCAL(M)'!$BS153)","v":"n.d."},{"$f":"IF('[1]FISCAL(M)'!$AZ153=\"\",\"\",'[1]FISCAL(M)'!$AZ153)","v":"n.d."},{"$f":"IF('[1]FISCAL(M)'!$BJ153=\"\",\"\",'[1]FISCAL(M)'!$BJ153)","v":"n.d."},{"$f":"IF('[1]FISCAL(M)'!$BT153=\"\",\"\",'[1]FISCAL(M)'!$BT153)","v":"n.d."},{"$f":"IF('[2]MONE(M)'!$AO153=\"\",\"\",'[2]MONE(M)'!$AO153)","v":1530647.7155016826},{"$f":"IF('[3]MONE(M)'!$AO153=\"\",\"\",'[3]MONE(M)'!$AO153)","v":5793.6577428571427},{"$f":"IF('[4]MONE(M)'!$AO153=\"\",\"\",'[4]MONE(M)'!$AO153)","v":36171.978717497179},{"$f":"IF('[5]MONE(M)'!$AO153=\"\",\"\",'[5]MONE(M)'!$AO153)","v":42189.255782720531},{"$f":"IF('[6]MONE(M)'!$AO153=\"\",\"\",'[6]MONE(M)'!$AO153)","v":9904.0127808399993},{"$f":"IF('[7]MONE(M)'!$AO153=\"\",\"\",'[7]MONE(M)'!$AO153)","v":134642.91197099999},{"$f":"IF('[8]MONE(M)'!$AO153=\"\",\"\",'[8]MONE(M)'!$AO153)","v":0},"n.d.","n.d.","n.d.","n.d.","n.d.","n.d.","n.d.",{"$f":"IF('[1]FISCAL(M)'!$K153=\"\",\"\",'[1]FISCAL(M)'!$K153)","v":"n.d."},{"$f":"+'[1]REAL(A)'!$AO$21","v":"n.d."},"n.d.",{"$f":"IF('[1]FISCAL(M)'!$L153=\"\",\"\",'[1]FISCAL(M)'!$L153)","v":"n.d."},{"$f":"+'[1]REAL(A)'!$AP$21","v":"n.d."},"n.d.","n.d.","n.d.","n.d.","n.d.","n.d.","n.d.","n.d.","n.d.","n.d.","n.d.","n.d.","n.d.","n.d.","n.d.","n.d.","n.d."]
[2002,"enero","2002-enero",{"$f":"IF('[1]REAL IPC(M)'!$AL154=\"\",\"\",+'[1]REAL IPC(M)'!$AL154)","v":6.5142340210509797},{"$f":"IF('[1]REAL IPC(M)'!$BE154=\"\",\"\",+'[1]REAL IPC(M)'!$BE154)","v":9.0177959709255582},{"$f":"IF('[1]REAL IPC(M)'!$AM154=\"\",\"\",+'[1]REAL IPC(M)'!$AM154)","v":6.0184121170897553},{"$f":"IF('[1]REAL IPC(M)'!$BI154=\"\",\"\",+'[1]REAL IPC(M)'!$BI154)","v":8.3049534957577507},{"$f":"IF('[1]REAL IMAE(M)'!BJ154=\"\",\"\",'[1]REAL IMAE(M)'!BJ154)","v":"n.d."},{"$f":"IF('[1]REAL IMAE(M)'!BK154=\"\",\"\",'[1]REAL IMAE(M)'!BK154)","v":"n.d."},{"$f":"IF('[1]REAL IMAE(M)'!BN154=\"\",\"\",'[1]REAL IMAE(M)'!BN154)","v":"n.d."},{"$f":"IF('[1]REAL IMAE(M)'!BO154=\"\",\"\",'[1]REAL IMAE(M)'!BO154)","v":"n.d."},{"$f":"IF('[1]EXT RIN(M)'!$K154=\"\",\"\",'[1]EXT RIN(M)'!$K154)","v":7465.7883886444188},"",{"$f":"IF('[1]EXT RIN(M)'!$L154=\"\",\"\",'[1]EXT RIN(M)'!$L154)","v":7465.7883886444188},"",{"$f":"IF('[1]MONE(M)CARD'!EG154=\"\",\"\",'[1]MONE(M)CARD'!EG154)","v":8554.9617742593909},{"$f":"IF('[1]MONE(M)CARD'!EK154=\"\",\"\",'[1]MONE(M)CARD'!EK154)","v":18346.135160144535},{"$f":"IF('[1]MONE(M)CARD'!EP154=\"\",\"\",'[1]MONE(M)CARD'!EP154)","v":6591.6138308720401},{"$f":"IF('[1]MONE(M)CARD'!ES154=\"\",\"\",'[1]MONE(M)CARD'!ES154)","v":"n.d."},{"$f":"IF('[1]MONE(M)CARD'!EV154=\"\",\"\",'[1]MONE(M)CARD'!EV154)","v":"n.d."},{"$f":"IF('[1]MONE(M)CARD'!EZ154=\"\",\"\",'[1]MONE(M)CARD'!EZ154)","v":"n.d."},{"$f":"IF('[1]MONE(M)CAPARD'!FC154=\"\",\"\",'[1]MONE(M)CAPARD'!FC154)","v":8554.9617742593909},{"$f":"IF('[1]MONE(M)CAPARD'!FG154=\"\",\"\",'[1]MONE(M)CAPARD'!FG154)","v":18346.135160144535},{"$f":"IF('[1]MONE(M)CAPARD'!FL154=\"\",\"\",'[1]MONE(M)CAPARD'!FL154)","v":6591.6138308720401},{"$f":"IF('[1]MONE(M)CAPARD'!FO154=\"\",\"\",'[1]MONE(M)CAPARD'!FO154)","v":"n.d."},{"$f":"IF('[1]MONE(M)CAPARD'!FR154=\"\",\"\",'[1]MONE(M)CAPARD'!FR154)","v":"n.d."},{"$f":"IF('[1]MONE(M)CAPARD'!FV154=\"\",\"\",'[1]MONE(M)CAPARD'!FV154)","v":"n.d."},{"$f":"IF('[1]MONE(M)CARD'!FV154=\"\",\"\",'[1]MONE(M)CARD'!FV154)","v":336.17883302918676},{"$f":"IF('[1]MONE(M)CARD'!GD154=\"\",\"\",'[1]MONE(M)CARD'!GD154)","v":85.382174326043099},{"$f":"IF('[1]MONE(M)CARD'!GE154=\"\",\"\",'[1]MONE(M)CARD'!GE154)","v":3166.9433422064035},"n.d.",{"$f":"IF('[9]II.2.Balance OSD-Activos'!J12=\"\",\"\",'[9]II.2.Balance OSD-Activos'!J12)","v":175.96176107411975},{"$f":"IF('[9]II.2.Balance OSD-Activos'!N12=\"\",\"\",'[9]II.2.Balance OSD-Activos'!N12)","v":15.466224372399777},{"$f":"IF('[9]II.2.Balance OSD-Activos'!R12=\"\",\"\",'[9]II.2.Balance OSD-Activos'!R12)","v":13147.617384813884},{"$f":"IF('[9]II.2.Balance OSD-Activos'!S12=\"\",\"\",'[9]II.2.Balance OSD-Activos'!S12)","v":11391.26557294667},13323.579145888005,24730.310943207074,"n.d.",null,"n.d.","n.d.","n.d.","n.d.","n.d.",{"$f":"IF('[1]MONE(M)CAPARD'!GS154=\"\",\"\",'[1]MONE(M)CAPARD'!GS154)","v":3016.9493268919236},{"$f":"IF('[1]MONE(M)CARD'!HA154=\"\",\"\",'[1]MONE(M)CAPARD'!HA154)","v":3166.9433422064035},{"$f":"IF('[1]MONE(M)CAPARD'!HB154=\"\",\"\",'[1]MONE(M)CAPARD'!HB154)","v":-149.99401531447984},"n.d.",{"$f":"IF('[10]II.2.Balance OSD-Activos'!J12=\"\",\"\",'[10]II.2.Balance OSD-Activos'!J12)","v":175.96176107411975},{"$f":"IF('[10]II.2.Balance OSD-Activos'!N12=\"\",\"\",'[10]II.2.Balance OSD-Activos'!N12)","v":15.466224372399777},{"$f":"IF('[10]II.2.Balance OSD-Activos'!R12=\"\",\"\",'[10]II.2.Balance OSD-Activos'!R12)","v":13147.617384813884},{"$f":"IF('[10]II.2.Balance OSD-Activos'!S12=\"\",\"\",'[10]II.2.Balance OSD-Activos'!S12)","v":11391.26557294667},13323.579145888005,24730.310943207074,"n.d.","n.d.","n.d.","n.d.","n.d.","n.d.","n.d.",{"$f":"IF('[1]MONE(M)CAPARD'!AS154=\"\",\"\",'[1]MONE(M)CAPARD'!AS154)","v":"n.d."},{"$f":"IF('[1]MONE(M)CAPARD'!AT154=\"\",\"\",'[1]MONE(M)CAPARD'!AT154)","v":"n.a."},{"$f":"IF('[1]MONE(M)CAPARD'!AU154=\"\",\"\",'[1]MONE(M)CAPARD'!AU154)","v":"n.d."},{"$f":"IF('[1]MONE(M)CAPARD'!AV154=\"\",\"\",'[1]MONE(M)CAPARD'!AV154)","v":"n.d."},{"$f":"IF('[1]MONE(M)CAPARD'!AW154=\"\",\"\",'[1]MONE(M)CAPARD'!AW154)","v":"n.a."},{"$f":"IF('[1]MONE(M)CAPARD'!AX154=\"\",\"\",'[1]MONE(M)CAPARD'!AX154)","v":"n.d."},{"$f":"IF('[1]MONE(M)CAPARD'!AY154=\"\",\"\",'[1]MONE(M)CAPARD'!AY154)","v":"n.a."},{"$f":"IF('[1]FISCAL(M)'!$K154=\"\",\"\",'[1]FISCAL(M)'!$K154)","v":15.572749603645811},{"$f":"IF('[1]FISCAL(M)'!$L154=\"\",\"\",'[1]FISCAL(M)'!$L154)","v":66.120840256645835},{"$f":"IF('[1]FISCAL(M)'!$AY154=\"\",\"\",'[1]FISCAL(M)'!$AY154)","v":"n.d."},{"$f":"IF('[1]FISCAL(M)'!$BI154=\"\",\"\",'[1]FISCAL(M)'!$BI154)","v":"n.d."},{"$f":"IF('[1]FISCAL(M)'!$BS154=\"\",\"\",'[1]FISCAL(M)'!$BS154)","v":"n.d."},{"$f":"IF('[1]FISCAL(M)'!$AZ154=\"\",\"\",'[1]FISCAL(M)'!$AZ154)","v":"n.d."},{"$f":"IF('[1]FISCAL(M)'!$BJ154=\"\",\"\",'[1]FISCAL(M)'!$BJ154)","v":"n.d."},{"$f":"IF('[1]FISCAL(M)'!$BT154=\"\",\"\",'[1]FISCAL(M)'!$BT154)","v":"n.d."},{"$f":"IF('[2]MONE(M)'!$AO154=\"\",\"\",'[2]MONE(M)'!$AO154)","v":1555656.2210431478},{"$f":"IF('[3]MONE(M)'!$AO154=\"\",\"\",'[3]MONE(M)'!$AO154)","v":5805.6617428571435},{"$f":"IF('[4]MONE(M)'!$AO154=\"\",\"\",'[4]MONE(M)'!$AO154)","v":35624.893431773249},{"$f":"IF('[5]MONE(M)'!$AO154=\"\",\"\",'[5]MONE(M)'!$AO154)","v":42270.620131316355},{"$f":"IF('[6]MONE(M)'!$AO154=\"\",\"\",'[6]MONE(M)'!$AO154)","v":10101.976076520001},{"$f":"IF('[7]MONE(M)'!$AO154=\"\",\"\",'[7]MONE(M)'!$AO154)","v":136430.585999},{"$f":"IF('[8]MONE(M)'!$AO154=\"\",\"\",'[8]MONE(M)'!$AO154)","v":0},"n.d.","n.d.","n.d.","n.d.","n.d.","n.d.","n.d.",{"$f":"IF('[1]FISCAL(M)'!$K154=\"\",\"\",'[1]FISCAL(M)'!$K154)","v":15.572749603645811},{"$f":"+'[1]REAL(A)'!$AO$22","v":"n.d."},"n.d.",{"$f":"IF('[1]FISCAL(M)'!$L154=\"\",\"\",'[1]FISCAL(M)'!$L154)","v":66.120840256645835},{"$f":"+'[1]REAL(A)'!$AP$22","v":"n.d."},"n.d.","n.d.",{"$f":"'[1]Gráfico REM'!BG148","v":6609.5245323925374},{"$f":"'[1]Gráfico REM'!BH148","v":26129.731447709215},{"$f":"'[1]Gráfico REM'!BI148","v":843.15762417990481},"n.d.","n.d.","n.d.","n.d.","n.d.","n.d.","n.d.","n.d.","n.d.","n.d.","n.d.","n.d."]
[2002,"febrero","2002-febrero",{"$f":"IF('[1]REAL IPC(M)'!$AL155=\"\",\"\",+'[1]REAL IPC(M)'!$AL155)","v":6.3780838927643302},{"$f":"IF('[1]REAL IPC(M)'!$BE155=\"\",\"\",+'[1]REAL IPC(M)'!$BE155)","v":9.1728839967791576},{"$f":"IF('[1]REAL IPC(M)'!$AM155=\"\",\"\",+'[1]REAL IPC(M)'!$AM155)","v":5.8868594655000273},{"$f":"IF('[1]REAL IPC(M)'!$BI155=\"\",\"\",+'[1]REAL IPC(M)'!$BI155)","v":8.4422892042512299},{"$f":"IF('[1]REAL IMAE(M)'!BJ155=\"\",\"\",'[1]REAL IMAE(M)'!BJ155)","v":"n.d."},{"$f":"IF('[1]REAL IMAE(M)'!BK155=\"\",\"\",'[1]REAL IMAE(M)'!BK155)","v":"n.d."},{"$f":"IF('[1]REAL IMAE(M)'!BN155=\"\",\"\",'[1]REAL IMAE(M)'!BN155)","v":"n.d."},{"$f":"IF('[1]REAL IMAE(M)'!BO155=\"\",\"\",'[1]REAL IMAE(M)'!BO155)","v":"n.d."},{"$f":"IF('[1]EXT RIN(M)'!$K155=\"\",\"\",'[1]EXT RIN(M)'!$K155)","v":7585.2437964367746},"",{"$f":"IF('[1]EXT RIN(M)'!$L155=\"\",\"\",'[1]EXT RIN(M)'!$L155)","v":7585.2437964367746},"",{"$f":"IF('[1]MONE(M)CARD'!EG155=\"\",\"\",'[1]MONE(M)CARD'!EG155)","v":8368.7543965780897},{"$f":"IF('[1]MONE(M)CARD'!EK155=\"\",\"\",'[1]MONE(M)CARD'!EK155)","v":18846.9535447009},{"$f":"IF('[1]MONE(M)CARD'!EP155=\"\",\"\",'[1]MONE(M)CARD'!EP155)","v":6858.5999706813964},{"$f":"IF('[1]MONE(M)CARD'!ES155=\"\",\"\",'[1]MONE(M)CARD'!ES155)","v":"n.d."},{"$f":"IF('[1]MONE(M)CARD'!EV155=\"\",\"\",'[1]MONE(M)CARD'!EV155)","v":"n.d."},{"$f":"IF('[1]MONE(M)CARD'!EZ155=\"\",\"\",'[1]MONE(M)CARD'!EZ155)","v":"n.d."},{"$f":"IF('[1]MONE(M)CAPARD'!FC155=\"\",\"\",'[1]MONE(M)CAPARD'!FC155)","v":8368.7543965780897},{"$f":"IF('[1]MONE(M)CAPARD'!FG155=\"\",\"\",'[1]MONE(M)CAPARD'!FG155)","v":18846.9535447009},{"$f":"IF('[1]MONE(M)CAPARD'!FL155=\"\",\"\",'[1]MONE(M)CAPARD'!FL155)","v":6858.5999706813964},{"$f":"IF('[1]MONE(M)CAPARD'!FO155=\"\",\"\",'[1]MONE(M)CAPARD'!FO155)","v":"n.d."},{"$f":"IF('[1]MONE(M)CAPARD'!FR155=\"\",\"\",'[1]MONE(M)CAPARD'!FR155)","v":"n.d."},{"$f":"IF('[1]MONE(M)CAPARD'!FV155=\"\",\"\",'[1]MONE(M)CAPARD'!FV155)","v":"n.d."},{"$f":"IF('[1]MONE(M)CARD'!FV155=\"\",\"\",'[1]MONE(M)CARD'!FV155)","v":333.94592179767994},{"$f":"IF('[1]MONE(M)CARD'!GD155=\"\",\"\",'[1]MONE(M)CARD'!GD155)","v":87.727987876489365},{"$f":"IF('[1]MONE(M)CARD'!GE155=\"\",\"\",'[1]MONE(M)CARD'!GE155)","v":2751.4355450735093},"n.d.",{"$f":"IF('[9]II.2.Balance OSD-Activos'!J13=\"\",\"\",'[9]II.2.Balance OSD-Activos'!J13)","v":162.58406265463518},{"$f":"IF('[9]II.2.Balance OSD-Activos'!N13=\"\",\"\",'[9]II.2.Balance OSD-Activos'!N13)","v":15.384225492535423},{"$f":"IF('[9]II.2.Balance OSD-Activos'!R13=\"\",\"\",'[9]II.2.Balance OSD-Activos'!R13)","v":13079.119232248217},{"$f":"IF('[9]II.2.Balance OSD-Activos'!S13=\"\",\"\",'[9]II.2.Balance OSD-Activos'!S13)","v":11608.852269651819},13241.703294902853,24865.939790047207,"n.d.",null,"n.d.","n.d.","n.d.","n.d.","n.d.",{"$f":"IF('[1]MONE(M)CAPARD'!GS155=\"\",\"\",'[1]MONE(M)CAPARD'!GS155)","v":2995.6125770590911},{"$f":"IF('[1]MONE(M)CARD'!HA155=\"\",\"\",'[1]MONE(M)CAPARD'!HA155)","v":2751.4355450735093},{"$f":"IF('[1]MONE(M)CAPARD'!HB155=\"\",\"\",'[1]MONE(M)CAPARD'!HB155)","v":244.17703198558183},"n.d.",{"$f":"IF('[10]II.2.Balance OSD-Activos'!J13=\"\",\"\",'[10]II.2.Balance OSD-Activos'!J13)","v":162.58406265463518},{"$f":"IF('[10]II.2.Balance OSD-Activos'!N13=\"\",\"\",'[10]II.2.Balance OSD-Activos'!N13)","v":15.384225492535423},{"$f":"IF('[10]II.2.Balance OSD-Activos'!R13=\"\",\"\",'[10]II.2.Balance OSD-Activos'!R13)","v":13079.119232248217},{"$f":"IF('[10]II.2.Balance OSD-Activos'!S13=\"\",\"\",'[10]II.2.Balance OSD-Activos'!S13)","v":11608.852269651819},13241.703294902853,24865.939790047207,"n.d.","n.d.","n.d.","n.d.","n.d.","n.d.","n.d.",{"$f":"IF('[1]MONE(M)CAPARD'!AS155=\"\",\"\",'[1]MONE(M)CAPARD'!AS155)","v":"n.d."},{"$f":"IF('[1]MONE(M)CAPARD'!AT155=\"\",\"\",'[1]MONE(M)CAPARD'!AT155)","v":"n.a."},{"$f":"IF('[1]MONE(M)CAPARD'!AU155=\"\",\"\",'[1]MONE(M)CAPARD'!AU155)","v":"n.d."},{"$f":"IF('[1]MONE(M)CAPARD'!AV155=\"\",\"\",'[1]MONE(M)CAPARD'!AV155)","v":"n.d."},{"$f":"IF('[1]MONE(M)CAPARD'!AW155=\"\",\"\",'[1]MONE(M)CAPARD'!AW155)","v":"n.a."},{"$f":"IF('[1]MONE(M)CAPARD'!AX155=\"\",\"\",'[1]MONE(M)CAPARD'!AX155)","v":"n.d."},{"$f":"IF('[1]MONE(M)CAPARD'!AY155=\"\",\"\",'[1]MONE(M)CAPARD'!AY155)","v":"n.a."},{"$f":"IF('[1]FISCAL(M)'!$K155=\"\",\"\",'[1]FISCAL(M)'!$K155)","v":-203.56640691142809},{"$f":"IF('[1]FISCAL(M)'!$L155=\"\",\"\",'[1]FISCAL(M)'!$L155)","v":-369.73796656842808},{"$f":"IF('[1]FISCAL(M)'!$AY155=\"\",\"\",'[1]FISCAL(M)'!$AY155)","v":"n.d."},{"$f":"IF('[1]FISCAL(M)'!$BI155=\"\",\"\",'[1]FISCAL(M)'!$BI155)","v":"n.d."},{"$f":"IF('[1]FISCAL(M)'!$BS155=\"\",\"\",'[1]FISCAL(M)'!$BS155)","v":"n.d."},{"$f":"IF('[1]FISCAL(M)'!$AZ155=\"\",\"\",'[1]FISCAL(M)'!$AZ155)","v":"n.d."},{"$f":"IF('[1]FISCAL(M)'!$BJ155=\"\",\"\",'[1]FISCAL(M)'!$BJ155)","v":"n.d."},{"$f":"IF('[1]FISCAL(M)'!$BT155=\"\",\"\",'[1]FISCAL(M)'!$BT155)","v":"n.d."},{"$f":"IF('[2]MONE(M)'!$AO155=\"\",\"\",'[2]MONE(M)'!$AO155)","v":1565422.9569562464},{"$f":"IF('[3]MONE(M)'!$AO155=\"\",\"\",'[3]MONE(M)'!$AO155)","v":5890.6657428571443},{"$f":"IF('[4]MONE(M)'!$AO155=\"\",\"\",'[4]MONE(M)'!$AO155)","v":36059.338473854223},{"$f":"IF('[5]MONE(M)'!$AO155=\"\",\"\",'[5]MONE(M)'!$AO155)","v":42544.854746607489},{"$f":"IF('[6]MONE(M)'!$AO155=\"\",\"\",'[6]MONE(M)'!$AO155)","v":10157.002826709999},{"$f":"IF('[7]MONE(M)'!$AO155=\"\",\"\",'[7]MONE(M)'!$AO155)","v":138279.52566300001},{"$f":"IF('[8]MONE(M)'!$AO155=\"\",\"\",'[8]MONE(M)'!$AO155)","v":0},"n.d.","n.d.","n.d.","n.d.","n.d.","n.d.","n.d.",{"$f":"IF('[1]FISCAL(M)'!$K155=\"\",\"\",'[1]FISCAL(M)'!$K155)","v":-203.56640691142809},{"$f":"+'[1]REAL(A)'!$AO$22","v":"n.d."},"n.d.",{"$f":"IF('[1]FISCAL(M)'!$L155=\"\",\"\",'[1]FISCAL(M)'!$L155)","v":-369.73796656842808},{"$f":"+'[1]REAL(A)'!$AP$22","v":"n.d."},"n.d.","n.d.",{"$f":"'[1]Gráfico REM'!BG149","v":6803.2255155732018},{"$f":"'[1]Gráfico REM'!BH149","v":26379.834770216716},{"$f":"'[1]Gráfico REM'!BI149","v":806.16507432037963},"n.d.","n.d.","n.d.","n.d.","n.d.","n.d.","n.d.","n.d.","n.d.","n.d.","n.d.","n.d."]
[2002,"marzo","2002-marzo",{"$f":"IF('[1]REAL IPC(M)'!$AL156=\"\",\"\",+'[1]REAL IPC(M)'!$AL156)","v":6.6276347382562939},{"$f":"IF('[1]REAL IPC(M)'!$BE156=\"\",\"\",+'[1]REAL IPC(M)'!$BE156)","v":9.3383759547077219},{"$f":"IF('[1]REAL IPC(M)'!$AM156=\"\",\"\",+'[1]REAL IPC(M)'!$AM156)","v":6.1318667893350609},{"$f":"IF('[1]REAL IPC(M)'!$BI156=\"\",\"\",+'[1]REAL IPC(M)'!$BI156)","v":8.590545481790123},{"$f":"IF('[1]REAL IMAE(M)'!BJ156=\"\",\"\",'[1]REAL IMAE(M)'!BJ156)","v":"n.d."},{"$f":"IF('[1]REAL IMAE(M)'!BK156=\"\",\"\",'[1]REAL IMAE(M)'!BK156)","v":"n.d."},{"$f":"IF('[1]REAL IMAE(M)'!BN156=\"\",\"\",'[1]REAL IMAE(M)'!BN156)","v":"n.d."},{"$f":"IF('[1]REAL IMAE(M)'!BO156=\"\",\"\",'[1]REAL IMAE(M)'!BO156)","v":"n.d."},{"$f":"IF('[1]EXT RIN(M)'!$K156=\"\",\"\",'[1]EXT RIN(M)'!$K156)","v":7737.9052355600579},"",{"$f":"IF('[1]EXT RIN(M)'!$L156=\"\",\"\",'[1]EXT RIN(M)'!$L156)","v":7737.9052355600579},"",{"$f":"IF('[1]MONE(M)CARD'!EG156=\"\",\"\",'[1]MONE(M)CARD'!EG156)","v":8652.7441718158534},{"$f":"IF('[1]MONE(M)CARD'!EK156=\"\",\"\",'[1]MONE(M)CARD'!EK156)","v":18736.58298008101},{"$f":"IF('[1]MONE(M)CARD'!EP156=\"\",\"\",'[1]MONE(M)CARD'!EP156)","v":6850.938790484357},{"$f":"IF('[1]MONE(M)CARD'!ES156=\"\",\"\",'[1]MONE(M)CARD'!ES156)","v":"n.d."},{"$f":"IF('[1]MONE(M)CARD'!EV156=\"\",\"\",'[1]MONE(M)CARD'!EV156)","v":"n.d."},{"$f":"IF('[1]MONE(M)CARD'!EZ156=\"\",\"\",'[1]MONE(M)CARD'!EZ156)","v":"n.d."},{"$f":"IF('[1]MONE(M)CAPARD'!FC156=\"\",\"\",'[1]MONE(M)CAPARD'!FC156)","v":8652.7441718158534},{"$f":"IF('[1]MONE(M)CAPARD'!FG156=\"\",\"\",'[1]MONE(M)CAPARD'!FG156)","v":18736.58298008101},{"$f":"IF('[1]MONE(M)CAPARD'!FL156=\"\",\"\",'[1]MONE(M)CAPARD'!FL156)","v":6850.938790484357},{"$f":"IF('[1]MONE(M)CAPARD'!FO156=\"\",\"\",'[1]MONE(M)CAPARD'!FO156)","v":"n.d."},{"$f":"IF('[1]MONE(M)CAPARD'!FR156=\"\",\"\",'[1]MONE(M)CAPARD'!FR156)","v":"n.d."},{"$f":"IF('[1]MONE(M)CAPARD'!FV156=\"\",\"\",'[1]MONE(M)CAPARD'!FV156)","v":"n.d."},{"$f":"IF('[1]MONE(M)CARD'!FV156=\"\",\"\",'[1]MONE(M)CARD'!FV156)","v":323.91807245626751},{"$f":"IF('[1]MONE(M)CARD'!GD156=\"\",\"\",'[1]MONE(M)CARD'!GD156)","v":84.282791216498566},{"$f":"IF('[1]MONE(M)CARD'!GE156=\"\",\"\",'[1]MONE(M)CARD'!GE156)","v":3241.1603797218545},"n.d.",{"$f":"IF('[9]II.2.Balance OSD-Activos'!J14=\"\",\"\",'[9]II.2.Balance OSD-Activos'!J14)","v":176.82626615055591},{"$f":"IF('[9]II.2.Balance OSD-Activos'!N14=\"\",\"\",'[9]II.2.Balance OSD-Activos'!N14)","v":15.33166959057451},{"$f":"IF('[9]II.2.Balance OSD-Activos'!R14=\"\",\"\",'[9]II.2.Balance OSD-Activos'!R14)","v":13230.673502304811},{"$f":"IF('[9]II.2.Balance OSD-Activos'!S14=\"\",\"\",'[9]II.2.Balance OSD-Activos'!S14)","v":11722.752348089525},13407.499768455367,25145.583786135467,"n.d.",null,"n.d.","n.d.","n.d.","n.d.","n.d.",{"$f":"IF('[1]MONE(M)CAPARD'!GS156=\"\",\"\",'[1]MONE(M)CAPARD'!GS156)","v":3148.7421487684637},{"$f":"IF('[1]MONE(M)CARD'!HA156=\"\",\"\",'[1]MONE(M)CAPARD'!HA156)","v":3241.1603797218545},{"$f":"IF('[1]MONE(M)CAPARD'!HB156=\"\",\"\",'[1]MONE(M)CAPARD'!HB156)","v":-92.418230953390776},"n.d.",{"$f":"IF('[10]II.2.Balance OSD-Activos'!J14=\"\",\"\",'[10]II.2.Balance OSD-Activos'!J14)","v":176.82626615055591},{"$f":"IF('[10]II.2.Balance OSD-Activos'!N14=\"\",\"\",'[10]II.2.Balance OSD-Activos'!N14)","v":15.33166959057451},{"$f":"IF('[10]II.2.Balance OSD-Activos'!R14=\"\",\"\",'[10]II.2.Balance OSD-Activos'!R14)","v":13230.673502304811},{"$f":"IF('[10]II.2.Balance OSD-Activos'!S14=\"\",\"\",'[10]II.2.Balance OSD-Activos'!S14)","v":11722.752348089525},13407.499768455367,25145.583786135467,"n.d.","n.d.","n.d.","n.d.","n.d.","n.d.","n.d.",{"$f":"IF('[1]MONE(M)CAPARD'!AS156=\"\",\"\",'[1]MONE(M)CAPARD'!AS156)","v":"n.d."},{"$f":"IF('[1]MONE(M)CAPARD'!AT156=\"\",\"\",'[1]MONE(M)CAPARD'!AT156)","v":"n.a."},{"$f":"IF('[1]MONE(M)CAPARD'!AU156=\"\",\"\",'[1]MONE(M)CAPARD'!AU156)","v":"n.d."},{"$f":"IF('[1]MONE(M)CAPARD'!AV156=\"\",\"\",'[1]MONE(M)CAPARD'!AV156)","v":"n.d."},{"$f":"IF('[1]MONE(M)CAPARD'!AW156=\"\",\"\",'[1]MONE(M)CAPARD'!AW156)","v":"n.a."},{"$f":"IF('[1]MONE(M)CAPARD'!AX156=\"\",\"\",'[1]MONE(M)CAPARD'!AX156)","v":"n.d."},{"$f":"IF('[1]MONE(M)CAPARD'!AY156=\"\",\"\",'[1]MONE(M)CAPARD'!AY156)","v":"n.a."},{"$f":"IF('[1]FISCAL(M)'!$K156=\"\",\"\",'[1]FISCAL(M)'!$K156)","v":-239.24887597227601},{"$f":"IF('[1]FISCAL(M)'!$L156=\"\",\"\",'[1]FISCAL(M)'!$L156)","v":-397.99862217427608},{"$f":"IF('[1]FISCAL(M)'!$AY156=\"\",\"\",'[1]FISCAL(M)'!$AY156)","v":"n.d."},{"$f":"IF('[1]FISCAL(M)'!$BI156=\"\",\"\",'[1]FISCAL(M)'!$BI156)","v":"n.d."},{"$f":"IF('[1]FISCAL(M)'!$BS156=\"\",\"\",'[1]FISCAL(M)'!$BS156)","v":"n.d."},{"$f":"IF('[1]FISCAL(M)'!$AZ156=\"\",\"\",'[1]FISCAL(M)'!$AZ156)","v":"n.d."},{"$f":"IF('[1]FISCAL(M)'!$BJ156=\"\",\"\",'[1]FISCAL(M)'!$BJ156)","v":"n.d."},{"$f":"IF('[1]FISCAL(M)'!$BT156=\"\",\"\",'[1]FISCAL(M)'!$BT156)","v":"n.d."},{"$f":"IF('[2]MONE(M)'!$AO156=\"\",\"\",'[2]MONE(M)'!$AO156)","v":1596602.9556422816},{"$f":"IF('[3]MONE(M)'!$AO156=\"\",\"\",'[3]MONE(M)'!$AO156)","v":5811.2257428571429},{"$f":"IF('[4]MONE(M)'!$AO156=\"\",\"\",'[4]MONE(M)'!$AO156)","v":35860.147330091728},{"$f":"IF('[5]MONE(M)'!$AO156=\"\",\"\",'[5]MONE(M)'!$AO156)","v":42927.815958334751},{"$f":"IF('[6]MONE(M)'!$AO156=\"\",\"\",'[6]MONE(M)'!$AO156)","v":9924.1195131900004},{"$f":"IF('[7]MONE(M)'!$AO156=\"\",\"\",'[7]MONE(M)'!$AO156)","v":140953.09512399998},{"$f":"IF('[8]MONE(M)'!$AO156=\"\",\"\",'[8]MONE(M)'!$AO156)","v":0},"n.d.","n.d.","n.d.","n.d.","n.d.","n.d.","n.d.",{"$f":"IF('[1]FISCAL(M)'!$K156=\"\",\"\",'[1]FISCAL(M)'!$K156)","v":-239.24887597227601},{"$f":"+'[1]REAL(A)'!$AO$22","v":"n.d."},"n.d.",{"$f":"IF('[1]FISCAL(M)'!$L156=\"\",\"\",'[1]FISCAL(M)'!$L156)","v":-397.99862217427608},{"$f":"+'[1]REAL(A)'!$AP$22","v":"n.d."},"n.d.","n.d.",{"$f":"'[1]Gráfico REM'!BG150","v":7063.2160628032798},{"$f":"'[1]Gráfico REM'!BH150","v":26538.533317388901},{"$f":"'[1]Gráfico REM'!BI150","v":864.48690803304407},"n.d.","n.d.","n.d.","n.d.","n.d.","n.d.","n.d.","n.d.","n.d.","n.d.","n.d.","n.d."]
[2002,"abril","2002-abril",{"$f":"IF('[1]REAL IPC(M)'!$AL157=\"\",\"\",+'[1]REAL IPC(M)'!$AL157)","v":6.4721650879220993},{"$f":"IF('[1]REAL IPC(M)'!$BE157=\"\",\"\",+'[1]REAL IPC(M)'!$BE157)","v":9.5141964453877357},{"$f":"IF('[1]REAL IPC(M)'!$AM157=\"\",\"\",+'[1]REAL IPC(M)'!$AM157)","v":5.9761734101956066},{"$f":"IF('[1]REAL IPC(M)'!$BI157=\"\",\"\",+'[1]REAL IPC(M)'!$BI157)","v":8.7498114375729408},{"$f":"IF('[1]REAL IMAE(M)'!BJ157=\"\",\"\",'[1]REAL IMAE(M)'!BJ157)","v":"n.d."},{"$f":"IF('[1]REAL IMAE(M)'!BK157=\"\",\"\",'[1]REAL IMAE(M)'!BK157)","v":"n.d."},{"$f":"IF('[1]REAL IMAE(M)'!BN157=\"\",\"\",'[1]REAL IMAE(M)'!BN157)","v":"n.d."},{"$f":"IF('[1]REAL IMAE(M)'!BO157=\"\",\"\",'[1]REAL IMAE(M)'!BO157)","v":"n.d."},{"$f":"IF('[1]EXT RIN(M)'!$K157=\"\",\"\",'[1]EXT RIN(M)'!$K157)","v":8031.5617016391616},"",{"$f":"IF('[1]EXT RIN(M)'!$L157=\"\",\"\",'[1]EXT RIN(M)'!$L157)","v":8031.5617016391616},"",{"$f":"IF('[1]MONE(M)CARD'!EG157=\"\",\"\",'[1]MONE(M)CARD'!EG157)","v":8516.1143933098247},{"$f":"IF('[1]MONE(M)CARD'!EK157=\"\",\"\",'[1]MONE(M)CARD'!EK157)","v":18554.494723898231},{"$f":"IF('[1]MONE(M)CARD'!EP157=\"\",\"\",'[1]MONE(M)CARD'!EP157)","v":6869.6534825405251},{"$f":"IF('[1]MONE(M)CARD'!ES157=\"\",\"\",'[1]MONE(M)CARD'!ES157)","v":"n.d."},{"$f":"IF('[1]MONE(M)CARD'!EV157=\"\",\"\",'[1]MONE(M)CARD'!EV157)","v":"n.d."},{"$f":"IF('[1]MONE(M)CARD'!EZ157=\"\",\"\",'[1]MONE(M)CARD'!EZ157)","v":"n.d."},{"$f":"IF('[1]MONE(M)CAPARD'!FC157=\"\",\"\",'[1]MONE(M)CAPARD'!FC157)","v":8516.1143933098247},{"$f":"IF('[1]MONE(M)CAPARD'!FG157=\"\",\"\",'[1]MONE(M)CAPARD'!FG157)","v":18554.494723898231},{"$f":"IF('[1]MONE(M)CAPARD'!FL157=\"\",\"\",'[1]MONE(M)CAPARD'!FL157)","v":6869.6534825405251},{"$f":"IF('[1]MONE(M)CAPARD'!FO157=\"\",\"\",'[1]MONE(M)CAPARD'!FO157)","v":"n.d."},{"$f":"IF('[1]MONE(M)CAPARD'!FR157=\"\",\"\",'[1]MONE(M)CAPARD'!FR157)","v":"n.d."},{"$f":"IF('[1]MONE(M)CAPARD'!FV157=\"\",\"\",'[1]MONE(M)CAPARD'!FV157)","v":"n.d."},{"$f":"IF('[1]MONE(M)CARD'!FV157=\"\",\"\",'[1]MONE(M)CARD'!FV157)","v":331.74770305264855},{"$f":"IF('[1]MONE(M)CARD'!GD157=\"\",\"\",'[1]MONE(M)CARD'!GD157)","v":119.30014920112664},{"$f":"IF('[1]MONE(M)CARD'!GE157=\"\",\"\",'[1]MONE(M)CARD'!GE157)","v":3502.1299428059101},"n.d.",{"$f":"IF('[9]II.2.Balance OSD-Activos'!J15=\"\",\"\",'[9]II.2.Balance OSD-Activos'!J15)","v":180.45876454116967},{"$f":"IF('[9]II.2.Balance OSD-Activos'!N15=\"\",\"\",'[9]II.2.Balance OSD-Activos'!N15)","v":6.3848281878188109},{"$f":"IF('[9]II.2.Balance OSD-Activos'!R15=\"\",\"\",'[9]II.2.Balance OSD-Activos'!R15)","v":13104.994023651265},{"$f":"IF('[9]II.2.Balance OSD-Activos'!S15=\"\",\"\",'[9]II.2.Balance OSD-Activos'!S15)","v":11698.284309906647},13285.452788192435,24990.121926286898,"n.d.",null,"n.d.","n.d.","n.d.","n.d.","n.d.",{"$f":"IF('[1]MONE(M)CAPARD'!GS157=\"\",\"\",'[1]MONE(M)CAPARD'!GS157)","v":3256.559287082056},{"$f":"IF('[1]MONE(M)CARD'!HA157=\"\",\"\",'[1]MONE(M)CAPARD'!HA157)","v":3502.1299428059101},{"$f":"IF('[1]MONE(M)CAPARD'!HB157=\"\",\"\",'[1]MONE(M)CAPARD'!HB157)","v":-245.57065572385409},"n.d.",{"$f":"IF('[10]II.2.Balance OSD-Activos'!J15=\"\",\"\",'[10]II.2.Balance OSD-Activos'!J15)","v":180.45876454116967},{"$f":"IF('[10]II.2.Balance OSD-Activos'!N15=\"\",\"\",'[10]II.2.Balance OSD-Activos'!N15)","v":6.3848281878188109},{"$f":"IF('[10]II.2.Balance OSD-Activos'!R15=\"\",\"\",'[10]II.2.Balance OSD-Activos'!R15)","v":13104.994023651265},{"$f":"IF('[10]II.2.Balance OSD-Activos'!S15=\"\",\"\",'[10]II.2.Balance OSD-Activos'!S15)","v":11698.284309906647},13285.452788192435,24990.121926286898,"n.d.","n.d.","n.d.","n.d.","n.d.","n.d.","n.d.",{"$f":"IF('[1]MONE(M)CAPARD'!AS157=\"\",\"\",'[1]MONE(M)CAPARD'!AS157)","v":"n.d."},{"$f":"IF('[1]MONE(M)CAPARD'!AT157=\"\",\"\",'[1]MONE(M)CAPARD'!AT157)","v":"n.a."},{"$f":"IF('[1]MONE(M)CAPARD'!AU157=\"\",\"\",'[1]MONE(M)CAPARD'!AU157)","v":"n.d."},{"$f":"IF('[1]MONE(M)CAPARD'!AV157=\"\",\"\",'[1]MONE(M)CAPARD'!AV157)","v":"n.d."},{"$f":"IF('[1]MONE(M)CAPARD'!AW157=\"\",\"\",'[1]MONE(M)CAPARD'!AW157)","v":"n.a."},{"$f":"IF('[1]MONE(M)CAPARD'!AX157=\"\",\"\",'[1]MONE(M)CAPARD'!AX157)","v":"n.d."},{"$f":"IF('[1]MONE(M)CAPARD'!AY157=\"\",\"\",'[1]MONE(M)CAPARD'!AY157)","v":"n.a."},{"$f":"IF('[1]FISCAL(M)'!$K157=\"\",\"\",'[1]FISCAL(M)'!$K157)","v":-231.25783532808521},{"$f":"IF('[1]FISCAL(M)'!$L157=\"\",\"\",'[1]FISCAL(M)'!$L157)","v":-464.27932717108536},{"$f":"IF('[1]FISCAL(M)'!$AY157=\"\",\"\",'[1]FISCAL(M)'!$AY157)","v":"n.d."},{"$f":"IF('[1]FISCAL(M)'!$BI157=\"\",\"\",'[1]FISCAL(M)'!$BI157)","v":"n.d."},{"$f":"IF('[1]FISCAL(M)'!$BS157=\"\",\"\",'[1]FISCAL(M)'!$BS157)","v":"n.d."},{"$f":"IF('[1]FISCAL(M)'!$AZ157=\"\",\"\",'[1]FISCAL(M)'!$AZ157)","v":"n.d."},{"$f":"IF('[1]FISCAL(M)'!$BJ157=\"\",\"\",'[1]FISCAL(M)'!$BJ157)","v":"n.d."},{"$f":"IF('[1]FISCAL(M)'!$BT157=\"\",\"\",'[1]FISCAL(M)'!$BT157)","v":"n.d."},{"$f":"IF('[2]MONE(M)'!$AO157=\"\",\"\",'[2]MONE(M)'!$AO157)","v":1624659.0883578556},{"$f":"IF('[3]MONE(M)'!$AO157=\"\",\"\",'[3]MONE(M)'!$AO157)","v":5737.4057428571432},{"$f":"IF('[4]MONE(M)'!$AO157=\"\",\"\",'[4]MONE(M)'!$AO157)","v":35844.910562476973},{"$f":"IF('[5]MONE(M)'!$AO157=\"\",\"\",'[5]MONE(M)'!$AO157)","v":42985.767731163287},{"$f":"IF('[6]MONE(M)'!$AO157=\"\",\"\",'[6]MONE(M)'!$AO157)","v":9786.5350100899996},{"$f":"IF('[7]MONE(M)'!$AO157=\"\",\"\",'[7]MONE(M)'!$AO157)","v":140390.03914000001},{"$f":"IF('[8]MONE(M)'!$AO157=\"\",\"\",'[8]MONE(M)'!$AO157)","v":0},"n.d.","n.d.","n.d.","n.d.","n.d.","n.d.","n.d.",{"$f":"IF('[1]FISCAL(M)'!$K157=\"\",\"\",'[1]FISCAL(M)'!$K157)","v":-231.25783532808521},{"$f":"+'[1]REAL(A)'!$AO$22","v":"n.d."},"n.d.",{"$f":"IF('[1]FISCAL(M)'!$L157=\"\",\"\",'[1]FISCAL(M)'!$L157)","v":-464.27932717108536},{"$f":"+'[1]REAL(A)'!$AP$22","v":"n.d."},"n.d.","n.d.",{"$f":"'[1]Gráfico REM'!BG151","v":7117.9962993215104},{"$f":"'[1]Gráfico REM'!BH151","v":26281.548735464028},{"$f":"'[1]Gráfico REM'!BI151","v":864.96060624905385},"n.d.","n.d.","n.d.","n.d.","n.d.","n.d.","n.d.","n.d.","n.d.","n.d.","n.d.","n.d."]
[2002,"mayo ","2002-mayo ",{"$f":"IF('[1]REAL IPC(M)'!$AL158=\"\",\"\",+'[1]REAL IPC(M)'!$AL158)","v":6.1669585339018562},{"$f":"IF('[1]REAL IPC(M)'!$BE158=\"\",\"\",+'[1]REAL IPC(M)'!$BE158)","v":9.7000918912784293},{"$f":"IF('[1]REAL IPC(M)'!$AM158=\"\",\"\",+'[1]REAL IPC(M)'!$AM158)","v":5.6748822868577076},{"$f":"IF('[1]REAL IPC(M)'!$BI158=\"\",\"\",+'[1]REAL IPC(M)'!$BI158)","v":8.9199907402237599},{"$f":"IF('[1]REAL IMAE(M)'!BJ158=\"\",\"\",'[1]REAL IMAE(M)'!BJ158)","v":"n.d."},{"$f":"IF('[1]REAL IMAE(M)'!BK158=\"\",\"\",'[1]REAL IMAE(M)'!BK158)","v":"n.d."},{"$f":"IF('[1]REAL IMAE(M)'!BN158=\"\",\"\",'[1]REAL IMAE(M)'!BN158)","v":"n.d."},{"$f":"IF('[1]REAL IMAE(M)'!BO158=\"\",\"\",'[1]REAL IMAE(M)'!BO158)","v":"n.d."},{"$f":"IF('[1]EXT RIN(M)'!$K158=\"\",\"\",'[1]EXT RIN(M)'!$K158)","v":7688.4760407747617},"",{"$f":"IF('[1]EXT RIN(M)'!$L158=\"\",\"\",'[1]EXT RIN(M)'!$L158)","v":7688.4760407747617},"",{"$f":"IF('[1]MONE(M)CARD'!EG158=\"\",\"\",'[1]MONE(M)CARD'!EG158)","v":8214.7804938156933},{"$f":"IF('[1]MONE(M)CARD'!EK158=\"\",\"\",'[1]MONE(M)CARD'!EK158)","v":18551.443117602379},{"$f":"IF('[1]MONE(M)CARD'!EP158=\"\",\"\",'[1]MONE(M)CARD'!EP158)","v":6984.2067227394946},{"$f":"IF('[1]MONE(M)CARD'!ES158=\"\",\"\",'[1]MONE(M)CARD'!ES158)","v":"n.d."},{"$f":"IF('[1]MONE(M)CARD'!EV158=\"\",\"\",'[1]MONE(M)CARD'!EV158)","v":"n.d."},{"$f":"IF('[1]MONE(M)CARD'!EZ158=\"\",\"\",'[1]MONE(M)CARD'!EZ158)","v":"n.d."},{"$f":"IF('[1]MONE(M)CAPARD'!FC158=\"\",\"\",'[1]MONE(M)CAPARD'!FC158)","v":8214.7804938156933},{"$f":"IF('[1]MONE(M)CAPARD'!FG158=\"\",\"\",'[1]MONE(M)CAPARD'!FG158)","v":18551.443117602379},{"$f":"IF('[1]MONE(M)CAPARD'!FL158=\"\",\"\",'[1]MONE(M)CAPARD'!FL158)","v":6984.2067227394946},{"$f":"IF('[1]MONE(M)CAPARD'!FO158=\"\",\"\",'[1]MONE(M)CAPARD'!FO158)","v":"n.d."},{"$f":"IF('[1]MONE(M)CAPARD'!FR158=\"\",\"\",'[1]MONE(M)CAPARD'!FR158)","v":"n.d."},{"$f":"IF('[1]MONE(M)CAPARD'!FV158=\"\",\"\",'[1]MONE(M)CAPARD'!FV158)","v":"n.d."},{"$f":"IF('[1]MONE(M)CARD'!FV158=\"\",\"\",'[1]MONE(M)CARD'!FV158)","v":329.9293986952182},{"$f":"IF('[1]MONE(M)CARD'!GD158=\"\",\"\",'[1]MONE(M)CARD'!GD158)","v":80.201275881980692},{"$f":"IF('[1]MONE(M)CARD'!GE158=\"\",\"\",'[1]MONE(M)CARD'!GE158)","v":3351.3496909541886},"n.d.",{"$f":"IF('[9]II.2.Balance OSD-Activos'!J16=\"\",\"\",'[9]II.2.Balance OSD-Activos'!J16)","v":153.37045555711671},{"$f":"IF('[9]II.2.Balance OSD-Activos'!N16=\"\",\"\",'[9]II.2.Balance OSD-Activos'!N16)","v":7.9958367062067337},{"$f":"IF('[9]II.2.Balance OSD-Activos'!R16=\"\",\"\",'[9]II.2.Balance OSD-Activos'!R16)","v":13228.159455785546},{"$f":"IF('[9]II.2.Balance OSD-Activos'!S16=\"\",\"\",'[9]II.2.Balance OSD-Activos'!S16)","v":11680.803748584023},13381.529911342663,25070.32949663289,"n.d.",null,"n.d.","n.d.","n.d.","n.d.","n.d.",{"$f":"IF('[1]MONE(M)CAPARD'!GS158=\"\",\"\",'[1]MONE(M)CAPARD'!GS158)","v":3139.2361184851939},{"$f":"IF('[1]MONE(M)CARD'!HA158=\"\",\"\",'[1]MONE(M)CAPARD'!HA158)","v":3351.3496909541886},{"$f":"IF('[1]MONE(M)CAPARD'!HB158=\"\",\"\",'[1]MONE(M)CAPARD'!HB158)","v":-212.11357246899479},"n.d.",{"$f":"IF('[10]II.2.Balance OSD-Activos'!J16=\"\",\"\",'[10]II.2.Balance OSD-Activos'!J16)","v":153.37045555711671},{"$f":"IF('[10]II.2.Balance OSD-Activos'!N16=\"\",\"\",'[10]II.2.Balance OSD-Activos'!N16)","v":7.9958367062067337},{"$f":"IF('[10]II.2.Balance OSD-Activos'!R16=\"\",\"\",'[10]II.2.Balance OSD-Activos'!R16)","v":13228.159455785546},{"$f":"IF('[10]II.2.Balance OSD-Activos'!S16=\"\",\"\",'[10]II.2.Balance OSD-Activos'!S16)","v":11680.803748584023},13381.529911342663,25070.32949663289,"n.d.","n.d.","n.d.","n.d.","n.d.","n.d.","n.d.",{"$f":"IF('[1]MONE(M)CAPARD'!AS158=\"\",\"\",'[1]MONE(M)CAPARD'!AS158)","v":"n.d."},{"$f":"IF('[1]MONE(M)CAPARD'!AT158=\"\",\"\",'[1]MONE(M)CAPARD'!AT158)","v":"n.a."},{"$f":"IF('[1]MONE(M)CAPARD'!AU158=\"\",\"\",'[1]MONE(M)CAPARD'!AU158)","v":"n.d."},{"$f":"IF('[1]MONE(M)CAPARD'!AV158=\"\",\"\",'[1]MONE(M)CAPARD'!AV158)","v":"n.d."},{"$f":"IF('[1]MONE(M)CAPARD'!AW158=\"\",\"\",'[1]MONE(M)CAPARD'!AW158)","v":"n.a."},{"$f":"IF('[1]MONE(M)CAPARD'!AX158=\"\",\"\",'[1]MONE(M)CAPARD'!AX158)","v":"n.d."},{"$f":"IF('[1]MONE(M)CAPARD'!AY158=\"\",\"\",'[1]MONE(M)CAPARD'!AY158)","v":"n.a."},{"$f":"IF('[1]FISCAL(M)'!$K158=\"\",\"\",'[1]FISCAL(M)'!$K158)","v":-262.81521311384449},{"$f":"IF('[1]FISCAL(M)'!$L158=\"\",\"\",'[1]FISCAL(M)'!$L158)","v":-554.49350956084436},{"$f":"IF('[1]FISCAL(M)'!$AY158=\"\",\"\",'[1]FISCAL(M)'!$AY158)","v":"n.d."},{"$f":"IF('[1]FISCAL(M)'!$BI158=\"\",\"\",'[1]FISCAL(M)'!$BI158)","v":"n.d."},{"$f":"IF('[1]FISCAL(M)'!$BS158=\"\",\"\",'[1]FISCAL(M)'!$BS158)","v":"n.d."},{"$f":"IF('[1]FISCAL(M)'!$AZ158=\"\",\"\",'[1]FISCAL(M)'!$AZ158)","v":"n.d."},{"$f":"IF('[1]FISCAL(M)'!$BJ158=\"\",\"\",'[1]FISCAL(M)'!$BJ158)","v":"n.d."},{"$f":"IF('[1]FISCAL(M)'!$BT158=\"\",\"\",'[1]FISCAL(M)'!$BT158)","v":"n.d."},{"$f":"IF('[2]MONE(M)'!$AO158=\"\",\"\",'[2]MONE(M)'!$AO158)","v":1654548.1975979139},{"$f":"IF('[3]MONE(M)'!$AO158=\"\",\"\",'[3]MONE(M)'!$AO158)","v":5752.3697428571431},{"$f":"IF('[4]MONE(M)'!$AO158=\"\",\"\",'[4]MONE(M)'!$AO158)","v":35836.640044445288},{"$f":"IF('[5]MONE(M)'!$AO158=\"\",\"\",'[5]MONE(M)'!$AO158)","v":42658.406941517125},{"$f":"IF('[6]MONE(M)'!$AO158=\"\",\"\",'[6]MONE(M)'!$AO158)","v":10037.0502098},{"$f":"IF('[7]MONE(M)'!$AO158=\"\",\"\",'[7]MONE(M)'!$AO158)","v":141147.08231700002},{"$f":"IF('[8]MONE(M)'!$AO158=\"\",\"\",'[8]MONE(M)'!$AO158)","v":0},"n.d.","n.d.","n.d.","n.d.","n.d.","n.d.","n.d.",{"$f":"IF('[1]FISCAL(M)'!$K158=\"\",\"\",'[1]FISCAL(M)'!$K158)","v":-262.81521311384449},{"$f":"+'[1]REAL(A)'!$AO$22","v":"n.d."},"n.d.",{"$f":"IF('[1]FISCAL(M)'!$L158=\"\",\"\",'[1]FISCAL(M)'!$L158)","v":-554.49350956084436},{"$f":"+'[1]REAL(A)'!$AP$22","v":"n.d."},"n.d.","n.d.",{"$f":"'[1]Gráfico REM'!BG152","v":6831.9531436227853},{"$f":"'[1]Gráfico REM'!BH152","v":26327.183434161783},{"$f":"'[1]Gráfico REM'!BI152","v":940.31645552878763},"n.d.","n.d.","n.d.","n.d.","n.d.","n.d.","n.d.","n.d.","n.d.","n.d.","n.d.","n.d."]
[2002,"junio ","2002-junio ",{"$f":"IF('[1]REAL IPC(M)'!$AL159=\"\",\"\",+'[1]REAL IPC(M)'!$AL159)","v":6.4732010676081142},{"$f":"IF('[1]REAL IPC(M)'!$BE159=\"\",\"\",+'[1]REAL IPC(M)'!$BE159)","v":9.8956151460214858},{"$f":"IF('[1]REAL IPC(M)'!$AM159=\"\",\"\",+'[1]REAL IPC(M)'!$AM159)","v":6.0133543079553098},{"$f":"IF('[1]REAL IPC(M)'!$BI159=\"\",\"\",+'[1]REAL IPC(M)'!$BI159)","v":9.1007820873102006},{"$f":"IF('[1]REAL IMAE(M)'!BJ159=\"\",\"\",'[1]REAL IMAE(M)'!BJ159)","v":"n.d."},{"$f":"IF('[1]REAL IMAE(M)'!BK159=\"\",\"\",'[1]REAL IMAE(M)'!BK159)","v":"n.d."},{"$f":"IF('[1]REAL IMAE(M)'!BN159=\"\",\"\",'[1]REAL IMAE(M)'!BN159)","v":"n.d."},{"$f":"IF('[1]REAL IMAE(M)'!BO159=\"\",\"\",'[1]REAL IMAE(M)'!BO159)","v":"n.d."},{"$f":"IF('[1]EXT RIN(M)'!$K159=\"\",\"\",'[1]EXT RIN(M)'!$K159)","v":7693.1354164281493},"",{"$f":"IF('[1]EXT RIN(M)'!$L159=\"\",\"\",'[1]EXT RIN(M)'!$L159)","v":7693.1354164281493},"",{"$f":"IF('[1]MONE(M)CARD'!EG159=\"\",\"\",'[1]MONE(M)CARD'!EG159)","v":8089.3183486423704},{"$f":"IF('[1]MONE(M)CARD'!EK159=\"\",\"\",'[1]MONE(M)CARD'!EK159)","v":18754.981845164632},{"$f":"IF('[1]MONE(M)CARD'!EP159=\"\",\"\",'[1]MONE(M)CARD'!EP159)","v":6983.9072551487261},{"$f":"IF('[1]MONE(M)CARD'!ES159=\"\",\"\",'[1]MONE(M)CARD'!ES159)","v":"n.d."},{"$f":"IF('[1]MONE(M)CARD'!EV159=\"\",\"\",'[1]MONE(M)CARD'!EV159)","v":"n.d."},{"$f":"IF('[1]MONE(M)CARD'!EZ159=\"\",\"\",'[1]MONE(M)CARD'!EZ159)","v":"n.d."},{"$f":"IF('[1]MONE(M)CAPARD'!FC159=\"\",\"\",'[1]MONE(M)CAPARD'!FC159)","v":8089.3183486423704},{"$f":"IF('[1]MONE(M)CAPARD'!FG159=\"\",\"\",'[1]MONE(M)CAPARD'!FG159)","v":18754.981845164632},{"$f":"IF('[1]MONE(M)CAPARD'!FL159=\"\",\"\",'[1]MONE(M)CAPARD'!FL159)","v":6983.9072551487261},{"$f":"IF('[1]MONE(M)CAPARD'!FO159=\"\",\"\",'[1]MONE(M)CAPARD'!FO159)","v":"n.d."},{"$f":"IF('[1]MONE(M)CAPARD'!FR159=\"\",\"\",'[1]MONE(M)CAPARD'!FR159)","v":"n.d."},{"$f":"IF('[1]MONE(M)CAPARD'!FV159=\"\",\"\",'[1]MONE(M)CAPARD'!FV159)","v":"n.d."},{"$f":"IF('[1]MONE(M)CARD'!FV159=\"\",\"\",'[1]MONE(M)CARD'!FV159)","v":352.22371538043973},{"$f":"IF('[1]MONE(M)CARD'!GD159=\"\",\"\",'[1]MONE(M)CARD'!GD159)","v":81.033931308438298},{"$f":"IF('[1]MONE(M)CARD'!GE159=\"\",\"\",'[1]MONE(M)CARD'!GE159)","v":3227.1587050958192},"n.d.",{"$f":"IF('[9]II.2.Balance OSD-Activos'!J17=\"\",\"\",'[9]II.2.Balance OSD-Activos'!J17)","v":151.8308567906135},{"$f":"IF('[9]II.2.Balance OSD-Activos'!N17=\"\",\"\",'[9]II.2.Balance OSD-Activos'!N17)","v":0.55576563162079007},{"$f":"IF('[9]II.2.Balance OSD-Activos'!R17=\"\",\"\",'[9]II.2.Balance OSD-Activos'!R17)","v":13366.133589678955},{"$f":"IF('[9]II.2.Balance OSD-Activos'!S17=\"\",\"\",'[9]II.2.Balance OSD-Activos'!S17)","v":11811.84453540574},13517.964446469568,25330.36474750693,"n.d.",null,"n.d.","n.d.","n.d.","n.d.","n.d.",{"$f":"IF('[1]MONE(M)CAPARD'!GS159=\"\",\"\",'[1]MONE(M)CAPARD'!GS159)","v":3224.3036896608114},{"$f":"IF('[1]MONE(M)CARD'!HA159=\"\",\"\",'[1]MONE(M)CAPARD'!HA159)","v":3227.1587050958192},{"$f":"IF('[1]MONE(M)CAPARD'!HB159=\"\",\"\",'[1]MONE(M)CAPARD'!HB159)","v":-2.8550154350077719},"n.d.",{"$f":"IF('[10]II.2.Balance OSD-Activos'!J17=\"\",\"\",'[10]II.2.Balance OSD-Activos'!J17)","v":151.8308567906135},{"$f":"IF('[10]II.2.Balance OSD-Activos'!N17=\"\",\"\",'[10]II.2.Balance OSD-Activos'!N17)","v":0.55576563162079007},{"$f":"IF('[10]II.2.Balance OSD-Activos'!R17=\"\",\"\",'[10]II.2.Balance OSD-Activos'!R17)","v":13366.133589678955},{"$f":"IF('[10]II.2.Balance OSD-Activos'!S17=\"\",\"\",'[10]II.2.Balance OSD-Activos'!S17)","v":11811.84453540574},13517.964446469568,25330.36474750693,"n.d.","n.d.","n.d.","n.d.","n.d.","n.d.","n.d.",{"$f":"IF('[1]MONE(M)CAPARD'!AS159=\"\",\"\",'[1]MONE(M)CAPARD'!AS159)","v":"n.d."},{"$f":"IF('[1]MONE(M)CAPARD'!AT159=\"\",\"\",'[1]MONE(M)CAPARD'!AT159)","v":"n.a."},{"$f":"IF('[1]MONE(M)CAPARD'!AU159=\"\",\"\",'[1]MONE(M)CAPARD'!AU159)","v":"n.d."},{"$f":"IF('[1]MONE(M)CAPARD'!AV159=\"\",\"\",'[1]MONE(M)CAPARD'!AV159)","v":"n.d."},{"$f":"IF('[1]MONE(M)CAPARD'!AW159=\"\",\"\",'[1]MONE(M)CAPARD'!AW159)","v":"n.a."},{"$f":"IF('[1]MONE(M)CAPARD'!AX159=\"\",\"\",'[1]MONE(M)CAPARD'!AX159)","v":"n.d."},{"$f":"IF('[1]MONE(M)CAPARD'!AY159=\"\",\"\",'[1]MONE(M)CAPARD'!AY159)","v":"n.a."},{"$f":"IF('[1]FISCAL(M)'!$K159=\"\",\"\",'[1]FISCAL(M)'!$K159)","v":-502.65859727309874},{"$f":"IF('[1]FISCAL(M)'!$L159=\"\",\"\",'[1]FISCAL(M)'!$L159)","v":-714.77343022509865},{"$f":"IF('[1]FISCAL(M)'!$AY159=\"\",\"\",'[1]FISCAL(M)'!$AY159)","v":"n.d."},{"$f":"IF('[1]FISCAL(M)'!$BI159=\"\",\"\",'[1]FISCAL(M)'!$BI159)","v":"n.d."},{"$f":"IF('[1]FISCAL(M)'!$BS159=\"\",\"\",'[1]FISCAL(M)'!$BS159)","v":"n.d."},{"$f":"IF('[1]FISCAL(M)'!$AZ159=\"\",\"\",'[1]FISCAL(M)'!$AZ159)","v":"n.d."},{"$f":"IF('[1]FISCAL(M)'!$BJ159=\"\",\"\",'[1]FISCAL(M)'!$BJ159)","v":"n.d."},{"$f":"IF('[1]FISCAL(M)'!$BT159=\"\",\"\",'[1]FISCAL(M)'!$BT159)","v":"n.d."},{"$f":"IF('[2]MONE(M)'!$AO159=\"\",\"\",'[2]MONE(M)'!$AO159)","v":1699922.5302329597},{"$f":"IF('[3]MONE(M)'!$AO159=\"\",\"\",'[3]MONE(M)'!$AO159)","v":5783.6187428571429},{"$f":"IF('[4]MONE(M)'!$AO159=\"\",\"\",'[4]MONE(M)'!$AO159)","v":36447.315969735559},{"$f":"IF('[5]MONE(M)'!$AO159=\"\",\"\",'[5]MONE(M)'!$AO159)","v":42336.07979756844},{"$f":"IF('[6]MONE(M)'!$AO159=\"\",\"\",'[6]MONE(M)'!$AO159)","v":9958.3758454300005},{"$f":"IF('[7]MONE(M)'!$AO159=\"\",\"\",'[7]MONE(M)'!$AO159)","v":146163.84596999999},{"$f":"IF('[8]MONE(M)'!$AO159=\"\",\"\",'[8]MONE(M)'!$AO159)","v":0},"n.d.","n.d.","n.d.","n.d.","n.d.","n.d.","n.d.",{"$f":"IF('[1]FISCAL(M)'!$K159=\"\",\"\",'[1]FISCAL(M)'!$K159)","v":-502.65859727309874},{"$f":"+'[1]REAL(A)'!$AO$22","v":"n.d."},"n.d.",{"$f":"IF('[1]FISCAL(M)'!$L159=\"\",\"\",'[1]FISCAL(M)'!$L159)","v":-714.77343022509865},{"$f":"+'[1]REAL(A)'!$AP$22","v":"n.d."},"n.d.","n.d.",{"$f":"'[1]Gráfico REM'!BG153","v":6966.9896721287078},{"$f":"'[1]Gráfico REM'!BH153","v":26726.342443288126},{"$f":"'[1]Gráfico REM'!BI153","v":935.28727544792184},"n.d.","n.d.","n.d.","n.d.","n.d.","n.d.","n.d.","n.d.","n.d.","n.d.","n.d.","n.d."]
[2002,"julio","2002-julio",{"$f":"IF('[1]REAL IPC(M)'!$AL160=\"\",\"\",+'[1]REAL IPC(M)'!$AL160)","v":6.9268047874518235},{"$f":"IF('[1]REAL IPC(M)'!$BE160=\"\",\"\",+'[1]REAL IPC(M)'!$BE160)","v":10.100104241194941},{"$f":"IF('[1]REAL IPC(M)'!$AM160=\"\",\"\",+'[1]REAL IPC(M)'!$AM160)","v":6.4436332587644918},{"$f":"IF('[1]REAL IPC(M)'!$BI160=\"\",\"\",+'[1]REAL IPC(M)'!$BI160)","v":9.2916538055657369},{"$f":"IF('[1]REAL IMAE(M)'!BJ160=\"\",\"\",'[1]REAL IMAE(M)'!BJ160)","v":"n.d."},{"$f":"IF('[1]REAL IMAE(M)'!BK160=\"\",\"\",'[1]REAL IMAE(M)'!BK160)","v":"n.d."},{"$f":"IF('[1]REAL IMAE(M)'!BN160=\"\",\"\",'[1]REAL IMAE(M)'!BN160)","v":"n.d."},{"$f":"IF('[1]REAL IMAE(M)'!BO160=\"\",\"\",'[1]REAL IMAE(M)'!BO160)","v":"n.d."},{"$f":"IF('[1]EXT RIN(M)'!$K160=\"\",\"\",'[1]EXT RIN(M)'!$K160)","v":7554.0963995284937},"",{"$f":"IF('[1]EXT RIN(M)'!$L160=\"\",\"\",'[1]EXT RIN(M)'!$L160)","v":7554.0963995284937},"",{"$f":"IF('[1]MONE(M)CARD'!EG160=\"\",\"\",'[1]MONE(M)CARD'!EG160)","v":8213.6987112449315},{"$f":"IF('[1]MONE(M)CARD'!EK160=\"\",\"\",'[1]MONE(M)CARD'!EK160)","v":18798.375045912177},{"$f":"IF('[1]MONE(M)CARD'!EP160=\"\",\"\",'[1]MONE(M)CARD'!EP160)","v":7026.105459392973},{"$f":"IF('[1]MONE(M)CARD'!ES160=\"\",\"\",'[1]MONE(M)CARD'!ES160)","v":"n.d."},{"$f":"IF('[1]MONE(M)CARD'!EV160=\"\",\"\",'[1]MONE(M)CARD'!EV160)","v":"n.d."},{"$f":"IF('[1]MONE(M)CARD'!EZ160=\"\",\"\",'[1]MONE(M)CARD'!EZ160)","v":"n.d."},{"$f":"IF('[1]MONE(M)CAPARD'!FC160=\"\",\"\",'[1]MONE(M)CAPARD'!FC160)","v":8213.6987112449315},{"$f":"IF('[1]MONE(M)CAPARD'!FG160=\"\",\"\",'[1]MONE(M)CAPARD'!FG160)","v":18798.375045912177},{"$f":"IF('[1]MONE(M)CAPARD'!FL160=\"\",\"\",'[1]MONE(M)CAPARD'!FL160)","v":7026.105459392973},{"$f":"IF('[1]MONE(M)CAPARD'!FO160=\"\",\"\",'[1]MONE(M)CAPARD'!FO160)","v":"n.d."},{"$f":"IF('[1]MONE(M)CAPARD'!FR160=\"\",\"\",'[1]MONE(M)CAPARD'!FR160)","v":"n.d."},{"$f":"IF('[1]MONE(M)CAPARD'!FV160=\"\",\"\",'[1]MONE(M)CAPARD'!FV160)","v":"n.d."},{"$f":"IF('[1]MONE(M)CARD'!FV160=\"\",\"\",'[1]MONE(M)CARD'!FV160)","v":361.82841885828816},{"$f":"IF('[1]MONE(M)CARD'!GD160=\"\",\"\",'[1]MONE(M)CARD'!GD160)","v":77.157093859251631},{"$f":"IF('[1]MONE(M)CARD'!GE160=\"\",\"\",'[1]MONE(M)CARD'!GE160)","v":3346.7180899456162},"n.d.",{"$f":"IF('[9]II.2.Balance OSD-Activos'!J18=\"\",\"\",'[9]II.2.Balance OSD-Activos'!J18)","v":165.47760884662264},{"$f":"IF('[9]II.2.Balance OSD-Activos'!N18=\"\",\"\",'[9]II.2.Balance OSD-Activos'!N18)","v":2.2622932325118992},{"$f":"IF('[9]II.2.Balance OSD-Activos'!R18=\"\",\"\",'[9]II.2.Balance OSD-Activos'!R18)","v":13204.333818896452},{"$f":"IF('[9]II.2.Balance OSD-Activos'!S18=\"\",\"\",'[9]II.2.Balance OSD-Activos'!S18)","v":12049.993947973171},13369.811427743074,25422.067668948759,"n.d.",null,"n.d.","n.d.","n.d.","n.d.","n.d.",{"$f":"IF('[1]MONE(M)CAPARD'!GS160=\"\",\"\",'[1]MONE(M)CAPARD'!GS160)","v":3241.1807313161175},{"$f":"IF('[1]MONE(M)CARD'!HA160=\"\",\"\",'[1]MONE(M)CAPARD'!HA160)","v":3346.7180899456162},{"$f":"IF('[1]MONE(M)CAPARD'!HB160=\"\",\"\",'[1]MONE(M)CAPARD'!HB160)","v":-105.53735862949861},"n.d.",{"$f":"IF('[10]II.2.Balance OSD-Activos'!J18=\"\",\"\",'[10]II.2.Balance OSD-Activos'!J18)","v":165.47760884662264},{"$f":"IF('[10]II.2.Balance OSD-Activos'!N18=\"\",\"\",'[10]II.2.Balance OSD-Activos'!N18)","v":2.2622932325118992},{"$f":"IF('[10]II.2.Balance OSD-Activos'!R18=\"\",\"\",'[10]II.2.Balance OSD-Activos'!R18)","v":13204.333818896452},{"$f":"IF('[10]II.2.Balance OSD-Activos'!S18=\"\",\"\",'[10]II.2.Balance OSD-Activos'!S18)","v":12049.993947973171},13369.811427743074,25422.067668948759,"n.d.","n.d.","n.d.","n.d.","n.d.","n.d.","n.d.",{"$f":"IF('[1]MONE(M)CAPARD'!AS160=\"\",\"\",'[1]MONE(M)CAPARD'!AS160)","v":"n.d."},{"$f":"IF('[1]MONE(M)CAPARD'!AT160=\"\",\"\",'[1]MONE(M)CAPARD'!AT160)","v":"n.a."},{"$f":"IF('[1]MONE(M)CAPARD'!AU160=\"\",\"\",'[1]MONE(M)CAPARD'!AU160)","v":"n.d."},{"$f":"IF('[1]MONE(M)CAPARD'!AV160=\"\",\"\",'[1]MONE(M)CAPARD'!AV160)","v":"n.d."},{"$f":"IF('[1]MONE(M)CAPARD'!AW160=\"\",\"\",'[1]MONE(M)CAPARD'!AW160)","v":"n.a."},{"$f":"IF('[1]MONE(M)CAPARD'!AX160=\"\",\"\",'[1]MONE(M)CAPARD'!AX160)","v":"n.d."},{"$f":"IF('[1]MONE(M)CAPARD'!AY160=\"\",\"\",'[1]MONE(M)CAPARD'!AY160)","v":"n.a."},{"$f":"IF('[1]FISCAL(M)'!$K160=\"\",\"\",'[1]FISCAL(M)'!$K160)","v":-653.90966820499261},{"$f":"IF('[1]FISCAL(M)'!$L160=\"\",\"\",'[1]FISCAL(M)'!$L160)","v":-799.81830317199274},{"$f":"IF('[1]FISCAL(M)'!$AY160=\"\",\"\",'[1]FISCAL(M)'!$AY160)","v":"n.d."},{"$f":"IF('[1]FISCAL(M)'!$BI160=\"\",\"\",'[1]FISCAL(M)'!$BI160)","v":"n.d."},{"$f":"IF('[1]FISCAL(M)'!$BS160=\"\",\"\",'[1]FISCAL(M)'!$BS160)","v":"n.d."},{"$f":"IF('[1]FISCAL(M)'!$AZ160=\"\",\"\",'[1]FISCAL(M)'!$AZ160)","v":"n.d."},{"$f":"IF('[1]FISCAL(M)'!$BJ160=\"\",\"\",'[1]FISCAL(M)'!$BJ160)","v":"n.d."},{"$f":"IF('[1]FISCAL(M)'!$BT160=\"\",\"\",'[1]FISCAL(M)'!$BT160)","v":"n.d."},{"$f":"IF('[2]MONE(M)'!$AO160=\"\",\"\",'[2]MONE(M)'!$AO160)","v":1716024.834583095},{"$f":"IF('[3]MONE(M)'!$AO160=\"\",\"\",'[3]MONE(M)'!$AO160)","v":5785.3647428571421},{"$f":"IF('[4]MONE(M)'!$AO160=\"\",\"\",'[4]MONE(M)'!$AO160)","v":36453.343606806462},{"$f":"IF('[5]MONE(M)'!$AO160=\"\",\"\",'[5]MONE(M)'!$AO160)","v":42822.981925366868},{"$f":"IF('[6]MONE(M)'!$AO160=\"\",\"\",'[6]MONE(M)'!$AO160)","v":10127.78694482},{"$f":"IF('[7]MONE(M)'!$AO160=\"\",\"\",'[7]MONE(M)'!$AO160)","v":145255.14780400001},{"$f":"IF('[8]MONE(M)'!$AO160=\"\",\"\",'[8]MONE(M)'!$AO160)","v":0},"n.d.","n.d.","n.d.","n.d.","n.d.","n.d.","n.d.",{"$f":"IF('[1]FISCAL(M)'!$K160=\"\",\"\",'[1]FISCAL(M)'!$K160)","v":-653.90966820499261},{"$f":"+'[1]REAL(A)'!$AO$22","v":"n.d."},"n.d.",{"$f":"IF('[1]FISCAL(M)'!$L160=\"\",\"\",'[1]FISCAL(M)'!$L160)","v":-799.81830317199274},{"$f":"+'[1]REAL(A)'!$AP$22","v":"n.d."},"n.d.","n.d.",{"$f":"'[1]Gráfico REM'!BG154","v":7187.3155139648352},{"$f":"'[1]Gráfico REM'!BH154","v":26776.949215050772},{"$f":"'[1]Gráfico REM'!BI154","v":927.73428689849777},"n.d.","n.d.","n.d.","n.d.","n.d.","n.d.","n.d.","n.d.","n.d.","n.d.","n.d.","n.d."]
[2002,"agosto","2002-agosto",{"$f":"IF('[1]REAL IPC(M)'!$AL161=\"\",\"\",+'[1]REAL IPC(M)'!$AL161)","v":6.6358180796000532},{"$f":"IF('[1]REAL IPC(M)'!$BE161=\"\",\"\",+'[1]REAL IPC(M)'!$BE161)","v":10.312692926250433},{"$f":"IF('[1]REAL IPC(M)'!$AM161=\"\",\"\",+'[1]REAL IPC(M)'!$AM161)","v":6.188900965662647},{"$f":"IF('[1]REAL IPC(M)'!$BI161=\"\",\"\",+'[1]REAL IPC(M)'!$BI161)","v":9.491858097142881},{"$f":"IF('[1]REAL IMAE(M)'!BJ161=\"\",\"\",'[1]REAL IMAE(M)'!BJ161)","v":"n.d."},{"$f":"IF('[1]REAL IMAE(M)'!BK161=\"\",\"\",'[1]REAL IMAE(M)'!BK161)","v":"n.d."},{"$f":"IF('[1]REAL IMAE(M)'!BN161=\"\",\"\",'[1]REAL IMAE(M)'!BN161)","v":"n.d."},{"$f":"IF('[1]REAL IMAE(M)'!BO161=\"\",\"\",'[1]REAL IMAE(M)'!BO161)","v":"n.d."},{"$f":"IF('[1]EXT RIN(M)'!$K161=\"\",\"\",'[1]EXT RIN(M)'!$K161)","v":7328.4886992093507},"",{"$f":"IF('[1]EXT RIN(M)'!$L161=\"\",\"\",'[1]EXT RIN(M)'!$L161)","v":7328.4886992093507},"",{"$f":"IF('[1]MONE(M)CARD'!EG161=\"\",\"\",'[1]MONE(M)CARD'!EG161)","v":8183.8230605688141},{"$f":"IF('[1]MONE(M)CARD'!EK161=\"\",\"\",'[1]MONE(M)CARD'!EK161)","v":18701.181993729129},{"$f":"IF('[1]MONE(M)CARD'!EP161=\"\",\"\",'[1]MONE(M)CARD'!EP161)","v":7111.2666703399955},{"$f":"IF('[1]MONE(M)CARD'!ES161=\"\",\"\",'[1]MONE(M)CARD'!ES161)","v":"n.d."},{"$f":"IF('[1]MONE(M)CARD'!EV161=\"\",\"\",'[1]MONE(M)CARD'!EV161)","v":"n.d."},{"$f":"IF('[1]MONE(M)CARD'!EZ161=\"\",\"\",'[1]MONE(M)CARD'!EZ161)","v":"n.d."},{"$f":"IF('[1]MONE(M)CAPARD'!FC161=\"\",\"\",'[1]MONE(M)CAPARD'!FC161)","v":8183.8230605688141},{"$f":"IF('[1]MONE(M)CAPARD'!FG161=\"\",\"\",'[1]MONE(M)CAPARD'!FG161)","v":18701.181993729129},{"$f":"IF('[1]MONE(M)CAPARD'!FL161=\"\",\"\",'[1]MONE(M)CAPARD'!FL161)","v":7111.2666703399955},{"$f":"IF('[1]MONE(M)CAPARD'!FO161=\"\",\"\",'[1]MONE(M)CAPARD'!FO161)","v":"n.d."},{"$f":"IF('[1]MONE(M)CAPARD'!FR161=\"\",\"\",'[1]MONE(M)CAPARD'!FR161)","v":"n.d."},{"$f":"IF('[1]MONE(M)CAPARD'!FV161=\"\",\"\",'[1]MONE(M)CAPARD'!FV161)","v":"n.d."},{"$f":"IF('[1]MONE(M)CARD'!FV161=\"\",\"\",'[1]MONE(M)CARD'!FV161)","v":345.93732095620572},{"$f":"IF('[1]MONE(M)CARD'!GD161=\"\",\"\",'[1]MONE(M)CARD'!GD161)","v":79.293502817963684},{"$f":"IF('[1]MONE(M)CARD'!GE161=\"\",\"\",'[1]MONE(M)CARD'!GE161)","v":3401.5752778375795},"n.d.",{"$f":"IF('[9]II.2.Balance OSD-Activos'!J19=\"\",\"\",'[9]II.2.Balance OSD-Activos'!J19)","v":162.81782687082563},{"$f":"IF('[9]II.2.Balance OSD-Activos'!N19=\"\",\"\",'[9]II.2.Balance OSD-Activos'!N19)","v":2.7074737783496641},{"$f":"IF('[9]II.2.Balance OSD-Activos'!R19=\"\",\"\",'[9]II.2.Balance OSD-Activos'!R19)","v":13228.737638204464},{"$f":"IF('[9]II.2.Balance OSD-Activos'!S19=\"\",\"\",'[9]II.2.Balance OSD-Activos'!S19)","v":12140.322261277055},13391.555465075289,25534.585200130692,"n.d.",null,"n.d.","n.d.","n.d.","n.d.","n.d.",{"$f":"IF('[1]MONE(M)CAPARD'!GS161=\"\",\"\",'[1]MONE(M)CAPARD'!GS161)","v":3152.4958869751431},{"$f":"IF('[1]MONE(M)CARD'!HA161=\"\",\"\",'[1]MONE(M)CAPARD'!HA161)","v":3401.5752778375795},{"$f":"IF('[1]MONE(M)CAPARD'!HB161=\"\",\"\",'[1]MONE(M)CAPARD'!HB161)","v":-249.07939086243641},"n.d.",{"$f":"IF('[10]II.2.Balance OSD-Activos'!J19=\"\",\"\",'[10]II.2.Balance OSD-Activos'!J19)","v":162.81782687082563},{"$f":"IF('[10]II.2.Balance OSD-Activos'!N19=\"\",\"\",'[10]II.2.Balance OSD-Activos'!N19)","v":2.7074737783496641},{"$f":"IF('[10]II.2.Balance OSD-Activos'!R19=\"\",\"\",'[10]II.2.Balance OSD-Activos'!R19)","v":13228.737638204464},{"$f":"IF('[10]II.2.Balance OSD-Activos'!S19=\"\",\"\",'[10]II.2.Balance OSD-Activos'!S19)","v":12140.322261277055},13391.555465075289,25534.585200130692,"n.d.","n.d.","n.d.","n.d.","n.d.","n.d.","n.d.",{"$f":"IF('[1]MONE(M)CAPARD'!AS161=\"\",\"\",'[1]MONE(M)CAPARD'!AS161)","v":"n.d."},{"$f":"IF('[1]MONE(M)CAPARD'!AT161=\"\",\"\",'[1]MONE(M)CAPARD'!AT161)","v":"n.a."},{"$f":"IF('[1]MONE(M)CAPARD'!AU161=\"\",\"\",'[1]MONE(M)CAPARD'!AU161)","v":"n.d."},{"$f":"IF('[1]MONE(M)CAPARD'!AV161=\"\",\"\",'[1]MONE(M)CAPARD'!AV161)","v":"n.d."},{"$f":"IF('[1]MONE(M)CAPARD'!AW161=\"\",\"\",'[1]MONE(M)CAPARD'!AW161)","v":"n.a."},{"$f":"IF('[1]MONE(M)CAPARD'!AX161=\"\",\"\",'[1]MONE(M)CAPARD'!AX161)","v":"n.d."},{"$f":"IF('[1]MONE(M)CAPARD'!AY161=\"\",\"\",'[1]MONE(M)CAPARD'!AY161)","v":"n.a."},{"$f":"IF('[1]FISCAL(M)'!$K161=\"\",\"\",'[1]FISCAL(M)'!$K161)","v":-908.72135314096079},{"$f":"IF('[1]FISCAL(M)'!$L161=\"\",\"\",'[1]FISCAL(M)'!$L161)","v":-1139.1353579379606},{"$f":"IF('[1]FISCAL(M)'!$AY161=\"\",\"\",'[1]FISCAL(M)'!$AY161)","v":"n.d."},{"$f":"IF('[1]FISCAL(M)'!$BI161=\"\",\"\",'[1]FISCAL(M)'!$BI161)","v":"n.d."},{"$f":"IF('[1]FISCAL(M)'!$BS161=\"\",\"\",'[1]FISCAL(M)'!$BS161)","v":"n.d."},{"$f":"IF('[1]FISCAL(M)'!$AZ161=\"\",\"\",'[1]FISCAL(M)'!$AZ161)","v":"n.d."},{"$f":"IF('[1]FISCAL(M)'!$BJ161=\"\",\"\",'[1]FISCAL(M)'!$BJ161)","v":"n.d."},{"$f":"IF('[1]FISCAL(M)'!$BT161=\"\",\"\",'[1]FISCAL(M)'!$BT161)","v":"n.d."},{"$f":"IF('[2]MONE(M)'!$AO161=\"\",\"\",'[2]MONE(M)'!$AO161)","v":1738334.0258143651},{"$f":"IF('[3]MONE(M)'!$AO161=\"\",\"\",'[3]MONE(M)'!$AO161)","v":5792.9357428571429},{"$f":"IF('[4]MONE(M)'!$AO161=\"\",\"\",'[4]MONE(M)'!$AO161)","v":36549.315806997824},{"$f":"IF('[5]MONE(M)'!$AO161=\"\",\"\",'[5]MONE(M)'!$AO161)","v":43194.911477279595},{"$f":"IF('[6]MONE(M)'!$AO161=\"\",\"\",'[6]MONE(M)'!$AO161)","v":10543.21374413},{"$f":"IF('[7]MONE(M)'!$AO161=\"\",\"\",'[7]MONE(M)'!$AO161)","v":145371.19292},{"$f":"IF('[8]MONE(M)'!$AO161=\"\",\"\",'[8]MONE(M)'!$AO161)","v":0},"n.d.","n.d.","n.d.","n.d.","n.d.","n.d.","n.d.",{"$f":"IF('[1]FISCAL(M)'!$K161=\"\",\"\",'[1]FISCAL(M)'!$K161)","v":-908.72135314096079},{"$f":"+'[1]REAL(A)'!$AO$22","v":"n.d."},"n.d.",{"$f":"IF('[1]FISCAL(M)'!$L161=\"\",\"\",'[1]FISCAL(M)'!$L161)","v":-1139.1353579379606},{"$f":"+'[1]REAL(A)'!$AP$22","v":"n.d."},"n.d.","n.d.",{"$f":"'[1]Gráfico REM'!BG155","v":7175.3658003690625},{"$f":"'[1]Gráfico REM'!BH155","v":26861.041762878202},{"$f":"'[1]Gráfico REM'!BI155","v":939.70615140943983},"n.d.","n.d.","n.d.","n.d.","n.d.","n.d.","n.d.","n.d.","n.d.","n.d.","n.d.","n.d."]
[2002,"septiembre","2002-septiembre",{"$f":"IF('[1]REAL IPC(M)'!$AL162=\"\",\"\",+'[1]REAL IPC(M)'!$AL162)","v":6.4696235342021291},{"$f":"IF('[1]REAL IPC(M)'!$BE162=\"\",\"\",+'[1]REAL IPC(M)'!$BE162)","v":10.53232858589177},{"$f":"IF('[1]REAL IPC(M)'!$AM162=\"\",\"\",+'[1]REAL IPC(M)'!$AM162)","v":5.9718764504972599},{"$f":"IF('[1]REAL IPC(M)'!$BI162=\"\",\"\",+'[1]REAL IPC(M)'!$BI162)","v":9.7004513542293012},{"$f":"IF('[1]REAL IMAE(M)'!BJ162=\"\",\"\",'[1]REAL IMAE(M)'!BJ162)","v":"n.d."},{"$f":"IF('[1]REAL IMAE(M)'!BK162=\"\",\"\",'[1]REAL IMAE(M)'!BK162)","v":"n.d."},{"$f":"IF('[1]REAL IMAE(M)'!BN162=\"\",\"\",'[1]REAL IMAE(M)'!BN162)","v":"n.d."},{"$f":"IF('[1]REAL IMAE(M)'!BO162=\"\",\"\",'[1]REAL IMAE(M)'!BO162)","v":"n.d."},{"$f":"IF('[1]EXT RIN(M)'!$K162=\"\",\"\",'[1]EXT RIN(M)'!$K162)","v":7176.8849209277223},"",{"$f":"IF('[1]EXT RIN(M)'!$L162=\"\",\"\",'[1]EXT RIN(M)'!$L162)","v":7176.8849209277223},"",{"$f":"IF('[1]MONE(M)CARD'!EG162=\"\",\"\",'[1]MONE(M)CARD'!EG162)","v":8025.4687922677676},{"$f":"IF('[1]MONE(M)CARD'!EK162=\"\",\"\",'[1]MONE(M)CARD'!EK162)","v":19014.265268427982},{"$f":"IF('[1]MONE(M)CARD'!EP162=\"\",\"\",'[1]MONE(M)CARD'!EP162)","v":7218.0721543145846},{"$f":"IF('[1]MONE(M)CARD'!ES162=\"\",\"\",'[1]MONE(M)CARD'!ES162)","v":"n.d."},{"$f":"IF('[1]MONE(M)CARD'!EV162=\"\",\"\",'[1]MONE(M)CARD'!EV162)","v":"n.d."},{"$f":"IF('[1]MONE(M)CARD'!EZ162=\"\",\"\",'[1]MONE(M)CARD'!EZ162)","v":"n.d."},{"$f":"IF('[1]MONE(M)CAPARD'!FC162=\"\",\"\",'[1]MONE(M)CAPARD'!FC162)","v":8025.4687922677676},{"$f":"IF('[1]MONE(M)CAPARD'!FG162=\"\",\"\",'[1]MONE(M)CAPARD'!FG162)","v":19014.265268427982},{"$f":"IF('[1]MONE(M)CAPARD'!FL162=\"\",\"\",'[1]MONE(M)CAPARD'!FL162)","v":7218.0721543145846},{"$f":"IF('[1]MONE(M)CAPARD'!FO162=\"\",\"\",'[1]MONE(M)CAPARD'!FO162)","v":"n.d."},{"$f":"IF('[1]MONE(M)CAPARD'!FR162=\"\",\"\",'[1]MONE(M)CAPARD'!FR162)","v":"n.d."},{"$f":"IF('[1]MONE(M)CAPARD'!FV162=\"\",\"\",'[1]MONE(M)CAPARD'!FV162)","v":"n.d."},{"$f":"IF('[1]MONE(M)CARD'!FV162=\"\",\"\",'[1]MONE(M)CARD'!FV162)","v":386.66312182207218},{"$f":"IF('[1]MONE(M)CARD'!GD162=\"\",\"\",'[1]MONE(M)CARD'!GD162)","v":90.971836932110733},{"$f":"IF('[1]MONE(M)CARD'!GE162=\"\",\"\",'[1]MONE(M)CARD'!GE162)","v":3438.9834989276428},"n.d.",{"$f":"IF('[9]II.2.Balance OSD-Activos'!J20=\"\",\"\",'[9]II.2.Balance OSD-Activos'!J20)","v":167.29718404586109},{"$f":"IF('[9]II.2.Balance OSD-Activos'!N20=\"\",\"\",'[9]II.2.Balance OSD-Activos'!N20)","v":13.278832686858843},{"$f":"IF('[9]II.2.Balance OSD-Activos'!R20=\"\",\"\",'[9]II.2.Balance OSD-Activos'!R20)","v":13242.613499195599},{"$f":"IF('[9]II.2.Balance OSD-Activos'!S20=\"\",\"\",'[9]II.2.Balance OSD-Activos'!S20)","v":12205.532249430369},13409.91068324146,25628.721765358689,"n.d.",null,"n.d.","n.d.","n.d.","n.d.","n.d.",{"$f":"IF('[1]MONE(M)CAPARD'!GS162=\"\",\"\",'[1]MONE(M)CAPARD'!GS162)","v":3255.7955916520491},{"$f":"IF('[1]MONE(M)CARD'!HA162=\"\",\"\",'[1]MONE(M)CAPARD'!HA162)","v":3438.9834989276428},{"$f":"IF('[1]MONE(M)CAPARD'!HB162=\"\",\"\",'[1]MONE(M)CAPARD'!HB162)","v":-183.18790727559372},"n.d.",{"$f":"IF('[10]II.2.Balance OSD-Activos'!J20=\"\",\"\",'[10]II.2.Balance OSD-Activos'!J20)","v":167.29718404586109},{"$f":"IF('[10]II.2.Balance OSD-Activos'!N20=\"\",\"\",'[10]II.2.Balance OSD-Activos'!N20)","v":13.278832686858843},{"$f":"IF('[10]II.2.Balance OSD-Activos'!R20=\"\",\"\",'[10]II.2.Balance OSD-Activos'!R20)","v":13242.613499195599},{"$f":"IF('[10]II.2.Balance OSD-Activos'!S20=\"\",\"\",'[10]II.2.Balance OSD-Activos'!S20)","v":12205.532249430369},13409.91068324146,25628.721765358689,"n.d.","n.d.","n.d.","n.d.","n.d.","n.d.","n.d.",{"$f":"IF('[1]MONE(M)CAPARD'!AS162=\"\",\"\",'[1]MONE(M)CAPARD'!AS162)","v":"n.d."},{"$f":"IF('[1]MONE(M)CAPARD'!AT162=\"\",\"\",'[1]MONE(M)CAPARD'!AT162)","v":"n.a."},{"$f":"IF('[1]MONE(M)CAPARD'!AU162=\"\",\"\",'[1]MONE(M)CAPARD'!AU162)","v":"n.d."},{"$f":"IF('[1]MONE(M)CAPARD'!AV162=\"\",\"\",'[1]MONE(M)CAPARD'!AV162)","v":"n.d."},{"$f":"IF('[1]MONE(M)CAPARD'!AW162=\"\",\"\",'[1]MONE(M)CAPARD'!AW162)","v":"n.a."},{"$f":"IF('[1]MONE(M)CAPARD'!AX162=\"\",\"\",'[1]MONE(M)CAPARD'!AX162)","v":"n.d."},{"$f":"IF('[1]MONE(M)CAPARD'!AY162=\"\",\"\",'[1]MONE(M)CAPARD'!AY162)","v":"n.a."},{"$f":"IF('[1]FISCAL(M)'!$K162=\"\",\"\",'[1]FISCAL(M)'!$K162)","v":-1171.0254278926491},{"$f":"IF('[1]FISCAL(M)'!$L162=\"\",\"\",'[1]FISCAL(M)'!$L162)","v":-1311.7864933196493},{"$f":"IF('[1]FISCAL(M)'!$AY162=\"\",\"\",'[1]FISCAL(M)'!$AY162)","v":"n.d."},{"$f":"IF('[1]FISCAL(M)'!$BI162=\"\",\"\",'[1]FISCAL(M)'!$BI162)","v":"n.d."},{"$f":"IF('[1]FISCAL(M)'!$BS162=\"\",\"\",'[1]FISCAL(M)'!$BS162)","v":"n.d."},{"$f":"IF('[1]FISCAL(M)'!$AZ162=\"\",\"\",'[1]FISCAL(M)'!$AZ162)","v":"n.d."},{"$f":"IF('[1]FISCAL(M)'!$BJ162=\"\",\"\",'[1]FISCAL(M)'!$BJ162)","v":"n.d."},{"$f":"IF('[1]FISCAL(M)'!$BT162=\"\",\"\",'[1]FISCAL(M)'!$BT162)","v":"n.d."},{"$f":"IF('[2]MONE(M)'!$AO162=\"\",\"\",'[2]MONE(M)'!$AO162)","v":1772486.7060930179},{"$f":"IF('[3]MONE(M)'!$AO162=\"\",\"\",'[3]MONE(M)'!$AO162)","v":5784.2947428571424},{"$f":"IF('[4]MONE(M)'!$AO162=\"\",\"\",'[4]MONE(M)'!$AO162)","v":36597.350374896159},{"$f":"IF('[5]MONE(M)'!$AO162=\"\",\"\",'[5]MONE(M)'!$AO162)","v":43775.040130770336},{"$f":"IF('[6]MONE(M)'!$AO162=\"\",\"\",'[6]MONE(M)'!$AO162)","v":10640.785055209999},{"$f":"IF('[7]MONE(M)'!$AO162=\"\",\"\",'[7]MONE(M)'!$AO162)","v":145088.56660199998},{"$f":"IF('[8]MONE(M)'!$AO162=\"\",\"\",'[8]MONE(M)'!$AO162)","v":0},"n.d.","n.d.","n.d.","n.d.","n.d.","n.d.","n.d.",{"$f":"IF('[1]FISCAL(M)'!$K162=\"\",\"\",'[1]FISCAL(M)'!$K162)","v":-1171.0254278926491},{"$f":"+'[1]REAL(A)'!$AO$22","v":"n.d."},"n.d.",{"$f":"IF('[1]FISCAL(M)'!$L162=\"\",\"\",'[1]FISCAL(M)'!$L162)","v":-1311.7864933196493},{"$f":"+'[1]REAL(A)'!$AP$22","v":"n.d."},"n.d.","n.d.",{"$f":"'[1]Gráfico REM'!BG156","v":7334.5755788182687},{"$f":"'[1]Gráfico REM'!BH156","v":26943.15452119377},{"$f":"'[1]Gráfico REM'!BI156","v":929.81871032703634},"n.d.","n.d.","n.d.","n.d.","n.d.","n.d.","n.d.","n.d.","n.d.","n.d.","n.d.","n.d."]
[2002,"octubre","2002-octubre",{"$f":"IF('[1]REAL IPC(M)'!$AL163=\"\",\"\",+'[1]REAL IPC(M)'!$AL163)","v":7.3634060999736795},{"$f":"IF('[1]REAL IPC(M)'!$BE163=\"\",\"\",+'[1]REAL IPC(M)'!$BE163)","v":10.757749584474974},{"$f":"IF('[1]REAL IPC(M)'!$AM163=\"\",\"\",+'[1]REAL IPC(M)'!$AM163)","v":6.8251638177435847},{"$f":"IF('[1]REAL IPC(M)'!$BI163=\"\",\"\",+'[1]REAL IPC(M)'!$BI163)","v":9.9162668721260125},{"$f":"IF('[1]REAL IMAE(M)'!BJ163=\"\",\"\",'[1]REAL IMAE(M)'!BJ163)","v":"n.d."},{"$f":"IF('[1]REAL IMAE(M)'!BK163=\"\",\"\",'[1]REAL IMAE(M)'!BK163)","v":"n.d."},{"$f":"IF('[1]REAL IMAE(M)'!BN163=\"\",\"\",'[1]REAL IMAE(M)'!BN163)","v":"n.d."},{"$f":"IF('[1]REAL IMAE(M)'!BO163=\"\",\"\",'[1]REAL IMAE(M)'!BO163)","v":"n.d."},{"$f":"IF('[1]EXT RIN(M)'!$K163=\"\",\"\",'[1]EXT RIN(M)'!$K163)","v":7461.0011579488491},"",{"$f":"IF('[1]EXT RIN(M)'!$L163=\"\",\"\",'[1]EXT RIN(M)'!$L163)","v":7461.0011579488491},"",{"$f":"IF('[1]MONE(M)CARD'!EG163=\"\",\"\",'[1]MONE(M)CARD'!EG163)","v":8202.2275235661036},{"$f":"IF('[1]MONE(M)CARD'!EK163=\"\",\"\",'[1]MONE(M)CARD'!EK163)","v":19027.594766860948},{"$f":"IF('[1]MONE(M)CARD'!EP163=\"\",\"\",'[1]MONE(M)CARD'!EP163)","v":7146.6052301583768},{"$f":"IF('[1]MONE(M)CARD'!ES163=\"\",\"\",'[1]MONE(M)CARD'!ES163)","v":"n.d."},{"$f":"IF('[1]MONE(M)CARD'!EV163=\"\",\"\",'[1]MONE(M)CARD'!EV163)","v":"n.d."},{"$f":"IF('[1]MONE(M)CARD'!EZ163=\"\",\"\",'[1]MONE(M)CARD'!EZ163)","v":"n.d."},{"$f":"IF('[1]MONE(M)CAPARD'!FC163=\"\",\"\",'[1]MONE(M)CAPARD'!FC163)","v":8202.2275235661036},{"$f":"IF('[1]MONE(M)CAPARD'!FG163=\"\",\"\",'[1]MONE(M)CAPARD'!FG163)","v":19027.594766860948},{"$f":"IF('[1]MONE(M)CAPARD'!FL163=\"\",\"\",'[1]MONE(M)CAPARD'!FL163)","v":7146.6052301583768},{"$f":"IF('[1]MONE(M)CAPARD'!FO163=\"\",\"\",'[1]MONE(M)CAPARD'!FO163)","v":"n.d."},{"$f":"IF('[1]MONE(M)CAPARD'!FR163=\"\",\"\",'[1]MONE(M)CAPARD'!FR163)","v":"n.d."},{"$f":"IF('[1]MONE(M)CAPARD'!FV163=\"\",\"\",'[1]MONE(M)CAPARD'!FV163)","v":"n.d."},{"$f":"IF('[1]MONE(M)CARD'!FV163=\"\",\"\",'[1]MONE(M)CARD'!FV163)","v":414.56039849984404},{"$f":"IF('[1]MONE(M)CARD'!GD163=\"\",\"\",'[1]MONE(M)CARD'!GD163)","v":75.042958007667806},{"$f":"IF('[1]MONE(M)CARD'!GE163=\"\",\"\",'[1]MONE(M)CARD'!GE163)","v":3645.9354913255111},"n.d.",{"$f":"IF('[9]II.2.Balance OSD-Activos'!J21=\"\",\"\",'[9]II.2.Balance OSD-Activos'!J21)","v":198.00957907246496},{"$f":"IF('[9]II.2.Balance OSD-Activos'!N21=\"\",\"\",'[9]II.2.Balance OSD-Activos'!N21)","v":9.0827905858643696},{"$f":"IF('[9]II.2.Balance OSD-Activos'!R21=\"\",\"\",'[9]II.2.Balance OSD-Activos'!R21)","v":13390.638610648843},{"$f":"IF('[9]II.2.Balance OSD-Activos'!S21=\"\",\"\",'[9]II.2.Balance OSD-Activos'!S21)","v":12394.322217071924},13588.648189721307,25992.053197379093,"n.d.",null,"n.d.","n.d.","n.d.","n.d.","n.d.",{"$f":"IF('[1]MONE(M)CAPARD'!GS163=\"\",\"\",'[1]MONE(M)CAPARD'!GS163)","v":3262.8642534647388},{"$f":"IF('[1]MONE(M)CARD'!HA163=\"\",\"\",'[1]MONE(M)CAPARD'!HA163)","v":3645.9354913255111},{"$f":"IF('[1]MONE(M)CAPARD'!HB163=\"\",\"\",'[1]MONE(M)CAPARD'!HB163)","v":-383.07123786077227},"n.d.",{"$f":"IF('[10]II.2.Balance OSD-Activos'!J21=\"\",\"\",'[10]II.2.Balance OSD-Activos'!J21)","v":198.00957907246496},{"$f":"IF('[10]II.2.Balance OSD-Activos'!N21=\"\",\"\",'[10]II.2.Balance OSD-Activos'!N21)","v":9.0827905858643696},{"$f":"IF('[10]II.2.Balance OSD-Activos'!R21=\"\",\"\",'[10]II.2.Balance OSD-Activos'!R21)","v":13390.638610648843},{"$f":"IF('[10]II.2.Balance OSD-Activos'!S21=\"\",\"\",'[10]II.2.Balance OSD-Activos'!S21)","v":12394.322217071924},13588.648189721307,25992.053197379093,"n.d.","n.d.","n.d.","n.d.","n.d.","n.d.","n.d.",{"$f":"IF('[1]MONE(M)CAPARD'!AS163=\"\",\"\",'[1]MONE(M)CAPARD'!AS163)","v":"n.d."},{"$f":"IF('[1]MONE(M)CAPARD'!AT163=\"\",\"\",'[1]MONE(M)CAPARD'!AT163)","v":"n.a."},{"$f":"IF('[1]MONE(M)CAPARD'!AU163=\"\",\"\",'[1]MONE(M)CAPARD'!AU163)","v":"n.d."},{"$f":"IF('[1]MONE(M)CAPARD'!AV163=\"\",\"\",'[1]MONE(M)CAPARD'!AV163)","v":"n.d."},{"$f":"IF('[1]MONE(M)CAPARD'!AW163=\"\",\"\",'[1]MONE(M)CAPARD'!AW163)","v":"n.a."},{"$f":"IF('[1]MONE(M)CAPARD'!AX163=\"\",\"\",'[1]MONE(M)CAPARD'!AX163)","v":"n.d."},{"$f":"IF('[1]MONE(M)CAPARD'!AY163=\"\",\"\",'[1]MONE(M)CAPARD'!AY163)","v":"n.a."},{"$f":"IF('[1]FISCAL(M)'!$K163=\"\",\"\",'[1]FISCAL(M)'!$K163)","v":-1326.5117495940217},{"$f":"IF('[1]FISCAL(M)'!$L163=\"\",\"\",'[1]FISCAL(M)'!$L163)","v":-1557.4435059310217},{"$f":"IF('[1]FISCAL(M)'!$AY163=\"\",\"\",'[1]FISCAL(M)'!$AY163)","v":"n.d."},{"$f":"IF('[1]FISCAL(M)'!$BI163=\"\",\"\",'[1]FISCAL(M)'!$BI163)","v":"n.d."},{"$f":"IF('[1]FISCAL(M)'!$BS163=\"\",\"\",'[1]FISCAL(M)'!$BS163)","v":"n.d."},{"$f":"IF('[1]FISCAL(M)'!$AZ163=\"\",\"\",'[1]FISCAL(M)'!$AZ163)","v":"n.d."},{"$f":"IF('[1]FISCAL(M)'!$BJ163=\"\",\"\",'[1]FISCAL(M)'!$BJ163)","v":"n.d."},{"$f":"IF('[1]FISCAL(M)'!$BT163=\"\",\"\",'[1]FISCAL(M)'!$BT163)","v":"n.d."},{"$f":"IF('[2]MONE(M)'!$AO163=\"\",\"\",'[2]MONE(M)'!$AO163)","v":1820075.2550575347},{"$f":"IF('[3]MONE(M)'!$AO163=\"\",\"\",'[3]MONE(M)'!$AO163)","v":5852.2237428571434},{"$f":"IF('[4]MONE(M)'!$AO163=\"\",\"\",'[4]MONE(M)'!$AO163)","v":36703.46766061653},{"$f":"IF('[5]MONE(M)'!$AO163=\"\",\"\",'[5]MONE(M)'!$AO163)","v":44301.073934143787},{"$f":"IF('[6]MONE(M)'!$AO163=\"\",\"\",'[6]MONE(M)'!$AO163)","v":10975.947526249998},{"$f":"IF('[7]MONE(M)'!$AO163=\"\",\"\",'[7]MONE(M)'!$AO163)","v":146954.63974499999},{"$f":"IF('[8]MONE(M)'!$AO163=\"\",\"\",'[8]MONE(M)'!$AO163)","v":0},"n.d.","n.d.","n.d.","n.d.","n.d.","n.d.","n.d.",{"$f":"IF('[1]FISCAL(M)'!$K163=\"\",\"\",'[1]FISCAL(M)'!$K163)","v":-1326.5117495940217},{"$f":"+'[1]REAL(A)'!$AO$22","v":"n.d."},"n.d.",{"$f":"IF('[1]FISCAL(M)'!$L163=\"\",\"\",'[1]FISCAL(M)'!$L163)","v":-1557.4435059310217},{"$f":"+'[1]REAL(A)'!$AP$22","v":"n.d."},"n.d.","n.d.",{"$f":"'[1]Gráfico REM'!BG157","v":7393.4026697855124},{"$f":"'[1]Gráfico REM'!BH157","v":27301.472738844033},{"$f":"'[1]Gráfico REM'!BI157","v":934.69804147474883},"n.d.","n.d.","n.d.","n.d.","n.d.","n.d.","n.d.","n.d.","n.d.","n.d.","n.d.","n.d."]
[2002,"noviembre","2002-noviembre",{"$f":"IF('[1]REAL IPC(M)'!$AL164=\"\",\"\",+'[1]REAL IPC(M)'!$AL164)","v":7.3171078266764278},{"$f":"IF('[1]REAL IPC(M)'!$BE164=\"\",\"\",+'[1]REAL IPC(M)'!$BE164)","v":10.98747948971126},{"$f":"IF('[1]REAL IPC(M)'!$AM164=\"\",\"\",+'[1]REAL IPC(M)'!$AM164)","v":6.8177294801482047},{"$f":"IF('[1]REAL IPC(M)'!$BI164=\"\",\"\",+'[1]REAL IPC(M)'!$BI164)","v":10.137905489278642},{"$f":"IF('[1]REAL IMAE(M)'!BJ164=\"\",\"\",'[1]REAL IMAE(M)'!BJ164)","v":"n.d."},{"$f":"IF('[1]REAL IMAE(M)'!BK164=\"\",\"\",'[1]REAL IMAE(M)'!BK164)","v":"n.d."},{"$f":"IF('[1]REAL IMAE(M)'!BN164=\"\",\"\",'[1]REAL IMAE(M)'!BN164)","v":"n.d."},{"$f":"IF('[1]REAL IMAE(M)'!BO164=\"\",\"\",'[1]REAL IMAE(M)'!BO164)","v":"n.d."},{"$f":"IF('[1]EXT RIN(M)'!$K164=\"\",\"\",'[1]EXT RIN(M)'!$K164)","v":7298.0689126914285},"",{"$f":"IF('[1]EXT RIN(M)'!$L164=\"\",\"\",'[1]EXT RIN(M)'!$L164)","v":7298.0689126914285},"",{"$f":"IF('[1]MONE(M)CARD'!EG164=\"\",\"\",'[1]MONE(M)CARD'!EG164)","v":8494.0206687486207},{"$f":"IF('[1]MONE(M)CARD'!EK164=\"\",\"\",'[1]MONE(M)CARD'!EK164)","v":18919.441447600919},{"$f":"IF('[1]MONE(M)CARD'!EP164=\"\",\"\",'[1]MONE(M)CARD'!EP164)","v":7352.7630337466617},{"$f":"IF('[1]MONE(M)CARD'!ES164=\"\",\"\",'[1]MONE(M)CARD'!ES164)","v":"n.d."},{"$f":"IF('[1]MONE(M)CARD'!EV164=\"\",\"\",'[1]MONE(M)CARD'!EV164)","v":"n.d."},{"$f":"IF('[1]MONE(M)CARD'!EZ164=\"\",\"\",'[1]MONE(M)CARD'!EZ164)","v":"n.d."},{"$f":"IF('[1]MONE(M)CAPARD'!FC164=\"\",\"\",'[1]MONE(M)CAPARD'!FC164)","v":8494.0206687486207},{"$f":"IF('[1]MONE(M)CAPARD'!FG164=\"\",\"\",'[1]MONE(M)CAPARD'!FG164)","v":18919.441447600919},{"$f":"IF('[1]MONE(M)CAPARD'!FL164=\"\",\"\",'[1]MONE(M)CAPARD'!FL164)","v":7352.7630337466617},{"$f":"IF('[1]MONE(M)CAPARD'!FO164=\"\",\"\",'[1]MONE(M)CAPARD'!FO164)","v":"n.d."},{"$f":"IF('[1]MONE(M)CAPARD'!FR164=\"\",\"\",'[1]MONE(M)CAPARD'!FR164)","v":"n.d."},{"$f":"IF('[1]MONE(M)CAPARD'!FV164=\"\",\"\",'[1]MONE(M)CAPARD'!FV164)","v":"n.d."},{"$f":"IF('[1]MONE(M)CARD'!FV164=\"\",\"\",'[1]MONE(M)CARD'!FV164)","v":428.4667122303253},{"$f":"IF('[1]MONE(M)CARD'!GD164=\"\",\"\",'[1]MONE(M)CARD'!GD164)","v":72.782337617422883},{"$f":"IF('[1]MONE(M)CARD'!GE164=\"\",\"\",'[1]MONE(M)CARD'!GE164)","v":3612.2140196392666},"n.d.",{"$f":"IF('[9]II.2.Balance OSD-Activos'!J22=\"\",\"\",'[9]II.2.Balance OSD-Activos'!J22)","v":175.32025766922615},{"$f":"IF('[9]II.2.Balance OSD-Activos'!N22=\"\",\"\",'[9]II.2.Balance OSD-Activos'!N22)","v":13.345519896926655},{"$f":"IF('[9]II.2.Balance OSD-Activos'!R22=\"\",\"\",'[9]II.2.Balance OSD-Activos'!R22)","v":13597.962985844579},{"$f":"IF('[9]II.2.Balance OSD-Activos'!S22=\"\",\"\",'[9]II.2.Balance OSD-Activos'!S22)","v":12593.786572800342},13773.283243513804,26380.415336211074,"n.d.",null,"n.d.","n.d.","n.d.","n.d.","n.d.",{"$f":"IF('[1]MONE(M)CAPARD'!GS164=\"\",\"\",'[1]MONE(M)CAPARD'!GS164)","v":3378.4106318508416},{"$f":"IF('[1]MONE(M)CARD'!HA164=\"\",\"\",'[1]MONE(M)CAPARD'!HA164)","v":3612.2140196392666},{"$f":"IF('[1]MONE(M)CAPARD'!HB164=\"\",\"\",'[1]MONE(M)CAPARD'!HB164)","v":-233.80338778842497},"n.d.",{"$f":"IF('[10]II.2.Balance OSD-Activos'!J22=\"\",\"\",'[10]II.2.Balance OSD-Activos'!J22)","v":175.32025766922615},{"$f":"IF('[10]II.2.Balance OSD-Activos'!N22=\"\",\"\",'[10]II.2.Balance OSD-Activos'!N22)","v":13.345519896926655},{"$f":"IF('[10]II.2.Balance OSD-Activos'!R22=\"\",\"\",'[10]II.2.Balance OSD-Activos'!R22)","v":13597.962985844579},{"$f":"IF('[10]II.2.Balance OSD-Activos'!S22=\"\",\"\",'[10]II.2.Balance OSD-Activos'!S22)","v":12593.786572800342},13773.283243513804,26380.415336211074,"n.d.","n.d.","n.d.","n.d.","n.d.","n.d.","n.d.",{"$f":"IF('[1]MONE(M)CAPARD'!AS164=\"\",\"\",'[1]MONE(M)CAPARD'!AS164)","v":"n.d."},{"$f":"IF('[1]MONE(M)CAPARD'!AT164=\"\",\"\",'[1]MONE(M)CAPARD'!AT164)","v":"n.a."},{"$f":"IF('[1]MONE(M)CAPARD'!AU164=\"\",\"\",'[1]MONE(M)CAPARD'!AU164)","v":"n.d."},{"$f":"IF('[1]MONE(M)CAPARD'!AV164=\"\",\"\",'[1]MONE(M)CAPARD'!AV164)","v":"n.d."},{"$f":"IF('[1]MONE(M)CAPARD'!AW164=\"\",\"\",'[1]MONE(M)CAPARD'!AW164)","v":"n.a."},{"$f":"IF('[1]MONE(M)CAPARD'!AX164=\"\",\"\",'[1]MONE(M)CAPARD'!AX164)","v":"n.d."},{"$f":"IF('[1]MONE(M)CAPARD'!AY164=\"\",\"\",'[1]MONE(M)CAPARD'!AY164)","v":"n.a."},{"$f":"IF('[1]FISCAL(M)'!$K164=\"\",\"\",'[1]FISCAL(M)'!$K164)","v":-1664.4164653050157},{"$f":"IF('[1]FISCAL(M)'!$L164=\"\",\"\",'[1]FISCAL(M)'!$L164)","v":-1909.2050706120158},{"$f":"IF('[1]FISCAL(M)'!$AY164=\"\",\"\",'[1]FISCAL(M)'!$AY164)","v":"n.d."},{"$f":"IF('[1]FISCAL(M)'!$BI164=\"\",\"\",'[1]FISCAL(M)'!$BI164)","v":"n.d."},{"$f":"IF('[1]FISCAL(M)'!$BS164=\"\",\"\",'[1]FISCAL(M)'!$BS164)","v":"n.d."},{"$f":"IF('[1]FISCAL(M)'!$AZ164=\"\",\"\",'[1]FISCAL(M)'!$AZ164)","v":"n.d."},{"$f":"IF('[1]FISCAL(M)'!$BJ164=\"\",\"\",'[1]FISCAL(M)'!$BJ164)","v":"n.d."},{"$f":"IF('[1]FISCAL(M)'!$BT164=\"\",\"\",'[1]FISCAL(M)'!$BT164)","v":"n.d."},{"$f":"IF('[2]MONE(M)'!$AO164=\"\",\"\",'[2]MONE(M)'!$AO164)","v":1843303.470993524},{"$f":"IF('[3]MONE(M)'!$AO164=\"\",\"\",'[3]MONE(M)'!$AO164)","v":5948.3077428571432},{"$f":"IF('[4]MONE(M)'!$AO164=\"\",\"\",'[4]MONE(M)'!$AO164)","v":37029.239523973389},{"$f":"IF('[5]MONE(M)'!$AO164=\"\",\"\",'[5]MONE(M)'!$AO164)","v":44837.604244254791},{"$f":"IF('[6]MONE(M)'!$AO164=\"\",\"\",'[6]MONE(M)'!$AO164)","v":11152.98817402},{"$f":"IF('[7]MONE(M)'!$AO164=\"\",\"\",'[7]MONE(M)'!$AO164)","v":149451.24821799999},{"$f":"IF('[8]MONE(M)'!$AO164=\"\",\"\",'[8]MONE(M)'!$AO164)","v":0},"n.d.","n.d.","n.d.","n.d.","n.d.","n.d.","n.d.",{"$f":"IF('[1]FISCAL(M)'!$K164=\"\",\"\",'[1]FISCAL(M)'!$K164)","v":-1664.4164653050157},{"$f":"+'[1]REAL(A)'!$AO$22","v":"n.d."},"n.d.",{"$f":"IF('[1]FISCAL(M)'!$L164=\"\",\"\",'[1]FISCAL(M)'!$L164)","v":-1909.2050706120158},{"$f":"+'[1]REAL(A)'!$AP$22","v":"n.d."},"n.d.","n.d.",{"$f":"'[1]Gráfico REM'!BG158","v":7251.0761357349656},{"$f":"'[1]Gráfico REM'!BH158","v":27686.284065501295},{"$f":"'[1]Gráfico REM'!BI158","v":955.7065909508085},"n.d.","n.d.","n.d.","n.d.","n.d.","n.d.","n.d.","n.d.","n.d.","n.d.","n.d.","n.d."]
[2002,"diciembre","2002-diciembre",{"$f":"IF('[1]REAL IPC(M)'!$AL165=\"\",\"\",+'[1]REAL IPC(M)'!$AL165)","v":7.8845145219103685},{"$f":"IF('[1]REAL IPC(M)'!$BE165=\"\",\"\",+'[1]REAL IPC(M)'!$BE165)","v":11.219858382221215},{"$f":"IF('[1]REAL IPC(M)'!$AM165=\"\",\"\",+'[1]REAL IPC(M)'!$AM165)","v":7.360190603932848},{"$f":"IF('[1]REAL IPC(M)'!$BI165=\"\",\"\",+'[1]REAL IPC(M)'!$BI165)","v":10.363770113874082},{"$f":"IF('[1]REAL IMAE(M)'!BJ165=\"\",\"\",'[1]REAL IMAE(M)'!BJ165)","v":"n.d."},{"$f":"IF('[1]REAL IMAE(M)'!BK165=\"\",\"\",'[1]REAL IMAE(M)'!BK165)","v":"n.d."},{"$f":"IF('[1]REAL IMAE(M)'!BN165=\"\",\"\",'[1]REAL IMAE(M)'!BN165)","v":"n.d."},{"$f":"IF('[1]REAL IMAE(M)'!BO165=\"\",\"\",'[1]REAL IMAE(M)'!BO165)","v":"n.d."},{"$f":"IF('[1]EXT RIN(M)'!$K165=\"\",\"\",'[1]EXT RIN(M)'!$K165)","v":7459.2233140622684},7459.2233140622684,{"$f":"IF('[1]EXT RIN(M)'!$L165=\"\",\"\",'[1]EXT RIN(M)'!$L165)","v":8687.6969895204275},8687.6969895204275,{"$f":"IF('[1]MONE(M)CARD'!EG165=\"\",\"\",'[1]MONE(M)CARD'!EG165)","v":9023.0281751028378},{"$f":"IF('[1]MONE(M)CARD'!EK165=\"\",\"\",'[1]MONE(M)CARD'!EK165)","v":17806.490487746334},{"$f":"IF('[1]MONE(M)CARD'!EP165=\"\",\"\",'[1]MONE(M)CARD'!EP165)","v":7256.5386794467704},{"$f":"IF('[1]MONE(M)CARD'!ES165=\"\",\"\",'[1]MONE(M)CARD'!ES165)","v":1.08210925738359},{"$f":"IF('[1]MONE(M)CARD'!EV165=\"\",\"\",'[1]MONE(M)CARD'!EV165)","v":-3.2707572281166719},{"$f":"IF('[1]MONE(M)CARD'!EZ165=\"\",\"\",'[1]MONE(M)CARD'!EZ165)","v":-0.18047798952189886},{"$f":"IF('[1]MONE(M)CAPARD'!FC165=\"\",\"\",'[1]MONE(M)CAPARD'!FC165)","v":10358.550077912838},{"$f":"IF('[1]MONE(M)CAPARD'!FG165=\"\",\"\",'[1]MONE(M)CAPARD'!FG165)","v":26542.615911326331},{"$f":"IF('[1]MONE(M)CAPARD'!FL165=\"\",\"\",'[1]MONE(M)CAPARD'!FL165)","v":7256.5386794467631},{"$f":"IF('[1]MONE(M)CAPARD'!FO165=\"\",\"\",'[1]MONE(M)CAPARD'!FO165)","v":16.043535540853071},{"$f":"IF('[1]MONE(M)CAPARD'!FR165=\"\",\"\",'[1]MONE(M)CAPARD'!FR165)","v":33.040845361167712},{"$f":"IF('[1]MONE(M)CAPARD'!FV165=\"\",\"\",'[1]MONE(M)CAPARD'!FV165)","v":29.31389890137379},{"$f":"IF('[1]MONE(M)CARD'!FV165=\"\",\"\",'[1]MONE(M)CARD'!FV165)","v":406.16848449476805},{"$f":"IF('[1]MONE(M)CARD'!GD165=\"\",\"\",'[1]MONE(M)CARD'!GD165)","v":55.795244096774461},{"$f":"IF('[1]MONE(M)CARD'!GE165=\"\",\"\",'[1]MONE(M)CARD'!GE165)","v":3245.4903965815024},"n.d.",{"$f":"IF('[9]II.2.Balance OSD-Activos'!J23=\"\",\"\",'[9]II.2.Balance OSD-Activos'!J23)","v":174.60701390028299},{"$f":"IF('[9]II.2.Balance OSD-Activos'!N23=\"\",\"\",'[9]II.2.Balance OSD-Activos'!N23)","v":13.705203433015559},{"$f":"IF('[9]II.2.Balance OSD-Activos'!R23=\"\",\"\",'[9]II.2.Balance OSD-Activos'!R23)","v":12953.857766333032},{"$f":"IF('[9]II.2.Balance OSD-Activos'!S23=\"\",\"\",'[9]II.2.Balance OSD-Activos'!S23)","v":12155.892632847379},13128.464780233315,25298.062616513707,{"$f":"IF(OR(AF158=\"\",AF146=\"\"),\"\",((AF158/AF146)-1)*100)","v":10.974478015659361},{"$f":"IF(OR(AJ158=\"\",AJ146=\"\"),\"\",((AJ158/AJ146)-1)*100)","v":-1.6257143182564548},{"$f":"IF(OR(AG158=\"\",AG146=\"\"),\"\",((AG158/AG146)-1)*100)","v":-19.481196208211472},-1.7760403046662265,6.4944634462984485,{"$f":"IF(OR(AK158=\"\",AK146=\"\"),\"\",((AK158/AK146)-1)*100)","v":2.1029209000656524},"n.d.",{"$f":"IF('[1]MONE(M)CAPARD'!GS165=\"\",\"\",'[1]MONE(M)CAPARD'!GS165)","v":3743.9937545865719},{"$f":"IF('[1]MONE(M)CARD'!HA165=\"\",\"\",'[1]MONE(M)CAPARD'!HA165)","v":3408.8994265215019},{"$f":"IF('[1]MONE(M)CAPARD'!HB165=\"\",\"\",'[1]MONE(M)CAPARD'!HB165)","v":335.09432806506993},"n.d.",{"$f":"IF('[10]II.2.Balance OSD-Activos'!J23=\"\",\"\",'[10]II.2.Balance OSD-Activos'!J23)","v":952.65851269028292},{"$f":"IF('[10]II.2.Balance OSD-Activos'!N23=\"\",\"\",'[10]II.2.Balance OSD-Activos'!N23)","v":409.22349667301546},{"$f":"IF('[10]II.2.Balance OSD-Activos'!R23=\"\",\"\",'[10]II.2.Balance OSD-Activos'!R23)","v":17590.694498243032},{"$f":"IF('[10]II.2.Balance OSD-Activos'!S23=\"\",\"\",'[10]II.2.Balance OSD-Activos'!S23)","v":16622.619752767379},18543.353010933315,35575.196260373712,{"$f":"IF(OR(AW158=\"\",AW146=\"\"),\"\",((AW158/AW146)-1)*100)","v":505.47843303336623},{"$f":"IF(OR(BA158=\"\",BA146=\"\"),\"\",((BA158/BA146)-1)*100)","v":38.949156442232116},{"$f":"IF(OR(AX158=\"\",AX146=\"\"),\"\",((AX158/AX146)-1)*100)","v":2304.2099481885707},33.383251427923085,45.626242770470341,{"$f":"IF(OR(BB158=\"\",BB146=\"\"),\"\",((BB158/BB146)-1)*100)","v":43.5814079852181},"n.d.",{"$f":"IF('[1]MONE(M)CAPARD'!AS165=\"\",\"\",'[1]MONE(M)CAPARD'!AS165)","v":"n.d."},{"$f":"IF('[1]MONE(M)CAPARD'!AT165=\"\",\"\",'[1]MONE(M)CAPARD'!AT165)","v":"n.a."},{"$f":"IF('[1]MONE(M)CAPARD'!AU165=\"\",\"\",'[1]MONE(M)CAPARD'!AU165)","v":"n.d."},{"$f":"IF('[1]MONE(M)CAPARD'!AV165=\"\",\"\",'[1]MONE(M)CAPARD'!AV165)","v":"n.d."},{"$f":"IF('[1]MONE(M)CAPARD'!AW165=\"\",\"\",'[1]MONE(M)CAPARD'!AW165)","v":"n.a."},{"$f":"IF('[1]MONE(M)CAPARD'!AX165=\"\",\"\",'[1]MONE(M)CAPARD'!AX165)","v":"n.d."},{"$f":"IF('[1]MONE(M)CAPARD'!AY165=\"\",\"\",'[1]MONE(M)CAPARD'!AY165)","v":"n.a."},{"$f":"IF('[1]FISCAL(M)'!$K165=\"\",\"\",'[1]FISCAL(M)'!$K165)","v":-2134.7513538627582},{"$f":"IF('[1]FISCAL(M)'!$L165=\"\",\"\",'[1]FISCAL(M)'!$L165)","v":-2126.7975619797585},{"$f":"IF('[1]FISCAL(M)'!$AY165=\"\",\"\",'[1]FISCAL(M)'!$AY165)","v":"n.d."},{"$f":"IF('[1]FISCAL(M)'!$BI165=\"\",\"\",'[1]FISCAL(M)'!$BI165)","v":"n.d."},{"$f":"IF('[1]FISCAL(M)'!$BS165=\"\",\"\",'[1]FISCAL(M)'!$BS165)","v":"n.d."},{"$f":"IF('[1]FISCAL(M)'!$AZ165=\"\",\"\",'[1]FISCAL(M)'!$AZ165)","v":"n.d."},{"$f":"IF('[1]FISCAL(M)'!$BJ165=\"\",\"\",'[1]FISCAL(M)'!$BJ165)","v":"n.d."},{"$f":"IF('[1]FISCAL(M)'!$BT165=\"\",\"\",'[1]FISCAL(M)'!$BT165)","v":"n.d."},{"$f":"IF('[2]MONE(M)'!$AO165=\"\",\"\",'[2]MONE(M)'!$AO165)","v":1875498.132815789},{"$f":"IF('[3]MONE(M)'!$AO165=\"\",\"\",'[3]MONE(M)'!$AO165)","v":6003.8447428571435},{"$f":"IF('[4]MONE(M)'!$AO165=\"\",\"\",'[4]MONE(M)'!$AO165)","v":37833.536927033972},{"$f":"IF('[5]MONE(M)'!$AO165=\"\",\"\",'[5]MONE(M)'!$AO165)","v":45155.454621851844},{"$f":"IF('[6]MONE(M)'!$AO165=\"\",\"\",'[6]MONE(M)'!$AO165)","v":11385.75509588},{"$f":"IF('[7]MONE(M)'!$AO165=\"\",\"\",'[7]MONE(M)'!$AO165)","v":152060.32945600001},{"$f":"IF('[8]MONE(M)'!$AO165=\"\",\"\",'[8]MONE(M)'!$AO165)","v":10055.359689329998},{"$f":"((BY158/BY146)-1)*100","v":22.529705158255741},3.6278808540103125,4.5934954858664057,7.0306972334557738,14.96102991614201,12.936007718513576,"n.d.",{"$f":"IF('[1]FISCAL(M)'!$K165=\"\",\"\",'[1]FISCAL(M)'!$K165)","v":-2134.7513538627582},{"$f":"+'[1]REAL(A)'!$AO$22","v":"n.d."},"n.d.",{"$f":"IF('[1]FISCAL(M)'!$L165=\"\",\"\",'[1]FISCAL(M)'!$L165)","v":-2126.7975619797585},{"$f":"+'[1]REAL(A)'!$AP$22","v":"n.d."},"n.d.","n.d.",{"$f":"'[1]Gráfico REM'!BG159","v":7228.0250645440883},{"$f":"'[1]Gráfico REM'!BH159","v":26599.021740134849},{"$f":"'[1]Gráfico REM'!BI159","v":968.49648227157923},"n.d.","n.d.","n.d.","n.d.","n.d.",{"$f":"'[1]Gráfico REM'!BK159","v":7633.8463521140884},{"$f":"'[1]Gráfico REM'!BL159","v":36654.381429464847},{"$f":"'[1]Gráfico REM'!BM159","v":8003.0034102815789},"n.d.","n.d.","n.d.","n.d."]
[2003,"enero","2003-enero",{"$f":"IF('[1]REAL IPC(M)'!$AL166=\"\",\"\",+'[1]REAL IPC(M)'!$AL166)","v":8.9669049717981295},{"$f":"IF('[1]REAL IPC(M)'!$BE166=\"\",\"\",+'[1]REAL IPC(M)'!$BE166)","v":11.453050795666563},{"$f":"IF('[1]REAL IPC(M)'!$AM166=\"\",\"\",+'[1]REAL IPC(M)'!$AM166)","v":8.4708364963783644},{"$f":"IF('[1]REAL IPC(M)'!$BI166=\"\",\"\",+'[1]REAL IPC(M)'!$BI166)","v":10.592074602171685},{"$f":"IF('[1]REAL IMAE(M)'!BJ166=\"\",\"\",'[1]REAL IMAE(M)'!BJ166)","v":"n.d."},{"$f":"IF('[1]REAL IMAE(M)'!BK166=\"\",\"\",'[1]REAL IMAE(M)'!BK166)","v":"n.d."},{"$f":"IF('[1]REAL IMAE(M)'!BN166=\"\",\"\",'[1]REAL IMAE(M)'!BN166)","v":"n.d."},{"$f":"IF('[1]REAL IMAE(M)'!BO166=\"\",\"\",'[1]REAL IMAE(M)'!BO166)","v":"n.d."},{"$f":"IF('[1]EXT RIN(M)'!$K166=\"\",\"\",'[1]EXT RIN(M)'!$K166)","v":7662.8379251623801},"",{"$f":"IF('[1]EXT RIN(M)'!$L166=\"\",\"\",'[1]EXT RIN(M)'!$L166)","v":8908.8598632187004},"",{"$f":"IF('[1]MONE(M)CARD'!EG166=\"\",\"\",'[1]MONE(M)CARD'!EG166)","v":8681.1032549330193},{"$f":"IF('[1]MONE(M)CARD'!EK166=\"\",\"\",'[1]MONE(M)CARD'!EK166)","v":17682.675617595669},{"$f":"IF('[1]MONE(M)CARD'!EP166=\"\",\"\",'[1]MONE(M)CARD'!EP166)","v":7996.4919204215985},{"$f":"IF('[1]MONE(M)CARD'!ES166=\"\",\"\",'[1]MONE(M)CARD'!ES166)","v":1.4744832765140936},{"$f":"IF('[1]MONE(M)CARD'!EV166=\"\",\"\",'[1]MONE(M)CARD'!EV166)","v":-1.9973834642707744},{"$f":"IF('[1]MONE(M)CARD'!EZ166=\"\",\"\",'[1]MONE(M)CARD'!EZ166)","v":2.5902950458515095},{"$f":"IF('[1]MONE(M)CAPARD'!FC166=\"\",\"\",'[1]MONE(M)CAPARD'!FC166)","v":9903.2959607230187},{"$f":"IF('[1]MONE(M)CAPARD'!FG166=\"\",\"\",'[1]MONE(M)CAPARD'!FG166)","v":26321.435409405665},{"$f":"IF('[1]MONE(M)CAPARD'!FL166=\"\",\"\",'[1]MONE(M)CAPARD'!FL166)","v":7996.4919204215912},{"$f":"IF('[1]MONE(M)CAPARD'!FO166=\"\",\"\",'[1]MONE(M)CAPARD'!FO166)","v":15.760844081391046},{"$f":"IF('[1]MONE(M)CAPARD'!FR166=\"\",\"\",'[1]MONE(M)CAPARD'!FR166)","v":34.658937732017627},{"$f":"IF('[1]MONE(M)CAPARD'!FV166=\"\",\"\",'[1]MONE(M)CAPARD'!FV166)","v":32.032380419912876},{"$f":"IF('[1]MONE(M)CARD'!FV166=\"\",\"\",'[1]MONE(M)CARD'!FV166)","v":406.22255237869484},{"$f":"IF('[1]MONE(M)CARD'!GD166=\"\",\"\",'[1]MONE(M)CARD'!GD166)","v":72.15855051170233},{"$f":"IF('[1]MONE(M)CARD'!GE166=\"\",\"\",'[1]MONE(M)CARD'!GE166)","v":3391.2863944616038},{"$f":"IF(AD159=\"\",\"\",((AD159/AD146)-1)*100)","v":29.915419959924595},{"$f":"IF('[9]II.2.Balance OSD-Activos'!J24=\"\",\"\",'[9]II.2.Balance OSD-Activos'!J24)","v":176.82109118421593},{"$f":"IF('[9]II.2.Balance OSD-Activos'!N24=\"\",\"\",'[9]II.2.Balance OSD-Activos'!N24)","v":12.531357331127296},{"$f":"IF('[9]II.2.Balance OSD-Activos'!R24=\"\",\"\",'[9]II.2.Balance OSD-Activos'!R24)","v":12952.291713242792},{"$f":"IF('[9]II.2.Balance OSD-Activos'!S24=\"\",\"\",'[9]II.2.Balance OSD-Activos'!S24)","v":11798.63815996807},13129.112804427008,24940.282321726205,{"$f":"IF(OR(AF159=\"\",AF147=\"\"),\"\",((AF159/AF147)-1)*100)","v":0.48836184910323599},-1.459565326491219,-18.975976105130687,-1.4856355022675238,3.5761837384326922,0.84904463595838475,{"$f":"IF(OR(AQ159=\"\",AQ158=\"\"),\"\",AQ159-AQ158)","v":-1.2538762641072676},{"$f":"IF('[1]MONE(M)CAPARD'!GS166=\"\",\"\",'[1]MONE(M)CAPARD'!GS166)","v":3793.0118398563709},{"$f":"IF('[1]MONE(M)CARD'!HA166=\"\",\"\",'[1]MONE(M)CAPARD'!HA166)","v":3579.4576711316035},{"$f":"IF('[1]MONE(M)CAPARD'!HB166=\"\",\"\",'[1]MONE(M)CAPARD'!HB166)","v":213.55416872476735},"n.d.",{"$f":"IF('[10]II.2.Balance OSD-Activos'!J24=\"\",\"\",'[10]II.2.Balance OSD-Activos'!J24)","v":1016.7512602942159},{"$f":"IF('[10]II.2.Balance OSD-Activos'!N24=\"\",\"\",'[10]II.2.Balance OSD-Activos'!N24)","v":380.99647545112731},{"$f":"IF('[10]II.2.Balance OSD-Activos'!R24=\"\",\"\",'[10]II.2.Balance OSD-Activos'!R24)","v":17470.368917102791},{"$f":"IF('[10]II.2.Balance OSD-Activos'!S24=\"\",\"\",'[10]II.2.Balance OSD-Activos'!S24)","v":16272.569874888068},18487.120177397006,35140.686527736201,477.82512182628886,38.754909435146786,2363.4097261063525,32.878592415397549,42.851290496940919,42.095611367105157,{"$f":"IF(OR(BH159=\"\",BH158=\"\"),\"\",BH159-BH158)","v":-1.4857966181129427},{"$f":"IF('[1]MONE(M)CAPARD'!AS166=\"\",\"\",'[1]MONE(M)CAPARD'!AS166)","v":"n.d."},{"$f":"IF('[1]MONE(M)CAPARD'!AT166=\"\",\"\",'[1]MONE(M)CAPARD'!AT166)","v":"n.a."},{"$f":"IF('[1]MONE(M)CAPARD'!AU166=\"\",\"\",'[1]MONE(M)CAPARD'!AU166)","v":"n.d."},{"$f":"IF('[1]MONE(M)CAPARD'!AV166=\"\",\"\",'[1]MONE(M)CAPARD'!AV166)","v":"n.d."},{"$f":"IF('[1]MONE(M)CAPARD'!AW166=\"\",\"\",'[1]MONE(M)CAPARD'!AW166)","v":"n.a."},{"$f":"IF('[1]MONE(M)CAPARD'!AX166=\"\",\"\",'[1]MONE(M)CAPARD'!AX166)","v":"n.d."},{"$f":"IF('[1]MONE(M)CAPARD'!AY166=\"\",\"\",'[1]MONE(M)CAPARD'!AY166)","v":"n.a."},{"$f":"IF('[1]FISCAL(M)'!$K166=\"\",\"\",'[1]FISCAL(M)'!$K166)","v":95.256887023248993},{"$f":"IF('[1]FISCAL(M)'!$L166=\"\",\"\",'[1]FISCAL(M)'!$L166)","v":-9.8181680167510024},{"$f":"IF('[1]FISCAL(M)'!$AY166=\"\",\"\",'[1]FISCAL(M)'!$AY166)","v":"n.d."},{"$f":"IF('[1]FISCAL(M)'!$BI166=\"\",\"\",'[1]FISCAL(M)'!$BI166)","v":"n.d."},{"$f":"IF('[1]FISCAL(M)'!$BS166=\"\",\"\",'[1]FISCAL(M)'!$BS166)","v":"n.d."},{"$f":"IF('[1]FISCAL(M)'!$AZ166=\"\",\"\",'[1]FISCAL(M)'!$AZ166)","v":"n.d."},{"$f":"IF('[1]FISCAL(M)'!$BJ166=\"\",\"\",'[1]FISCAL(M)'!$BJ166)","v":"n.d."},{"$f":"IF('[1]FISCAL(M)'!$BT166=\"\",\"\",'[1]FISCAL(M)'!$BT166)","v":"n.d."},{"$f":"IF('[2]MONE(M)'!$AO166=\"\",\"\",'[2]MONE(M)'!$AO166)","v":1903495.3336585597},{"$f":"IF('[3]MONE(M)'!$AO166=\"\",\"\",'[3]MONE(M)'!$AO166)","v":6000.7417428571434},{"$f":"IF('[4]MONE(M)'!$AO166=\"\",\"\",'[4]MONE(M)'!$AO166)","v":37514.57144007436},{"$f":"IF('[5]MONE(M)'!$AO166=\"\",\"\",'[5]MONE(M)'!$AO166)","v":45323.643012334811},{"$f":"IF('[6]MONE(M)'!$AO166=\"\",\"\",'[6]MONE(M)'!$AO166)","v":11419.762618000001},{"$f":"IF('[7]MONE(M)'!$AO166=\"\",\"\",'[7]MONE(M)'!$AO166)","v":159434.00236344},{"$f":"IF('[8]MONE(M)'!$AO166=\"\",\"\",'[8]MONE(M)'!$AO166)","v":10017.526527799999},22.359638839882479,3.3601682054593018,5.3043751889956248,7.2225646833049773,13.044839262121478,16.860893908795948,"n.d.",{"$f":"IF('[1]FISCAL(M)'!$K166=\"\",\"\",'[1]FISCAL(M)'!$K166)","v":95.256887023248993},{"$f":"+'[1]REAL(A)'!$AO$23","v":"n.d."},"n.d.",{"$f":"IF('[1]FISCAL(M)'!$L166=\"\",\"\",'[1]FISCAL(M)'!$L166)","v":-9.8181680167510024},{"$f":"+'[1]REAL(A)'!$AP$23","v":"n.d."},"n.d.","n.d.",{"$f":"'[1]Gráfico REM'!BG160","v":7565.0644516947868},{"$f":"'[1]Gráfico REM'!BH160","v":26214.551818798893},{"$f":"'[1]Gráfico REM'!BI160","v":938.58518251166606},"n.d.",{"$f":"+((CT159/CT147)-1)*100","v":14.457014489003805},0.32461248696498135,11.317878839627248,"n.d.",{"$f":"'[1]Gráfico REM'!BK160","v":7993.0175701267872},{"$f":"'[1]Gráfico REM'!BL160","v":36232.078346598893},{"$f":"'[1]Gráfico REM'!BM160","v":7806.8564683716659},"n.d.","n.d.","n.d.","n.d."]
[2003,"febrero","2003-febrero",{"$f":"IF('[1]REAL IPC(M)'!$AL167=\"\",\"\",+'[1]REAL IPC(M)'!$AL167)","v":10.104243360338039},{"$f":"IF('[1]REAL IPC(M)'!$BE167=\"\",\"\",+'[1]REAL IPC(M)'!$BE167)","v":11.685067841014508},{"$f":"IF('[1]REAL IPC(M)'!$AM167=\"\",\"\",+'[1]REAL IPC(M)'!$AM167)","v":9.5467077803542022},{"$f":"IF('[1]REAL IPC(M)'!$BI167=\"\",\"\",+'[1]REAL IPC(M)'!$BI167)","v":10.820864265004193},{"$f":"IF('[1]REAL IMAE(M)'!BJ167=\"\",\"\",'[1]REAL IMAE(M)'!BJ167)","v":"n.d."},{"$f":"IF('[1]REAL IMAE(M)'!BK167=\"\",\"\",'[1]REAL IMAE(M)'!BK167)","v":"n.d."},{"$f":"IF('[1]REAL IMAE(M)'!BN167=\"\",\"\",'[1]REAL IMAE(M)'!BN167)","v":"n.d."},{"$f":"IF('[1]REAL IMAE(M)'!BO167=\"\",\"\",'[1]REAL IMAE(M)'!BO167)","v":"n.d."},{"$f":"IF('[1]EXT RIN(M)'!$K167=\"\",\"\",'[1]EXT RIN(M)'!$K167)","v":7809.4259864399328},"",{"$f":"IF('[1]EXT RIN(M)'!$L167=\"\",\"\",'[1]EXT RIN(M)'!$L167)","v":9365.0088917713329},"",{"$f":"IF('[1]MONE(M)CARD'!EG167=\"\",\"\",'[1]MONE(M)CARD'!EG167)","v":8490.6421137572634},{"$f":"IF('[1]MONE(M)CARD'!EK167=\"\",\"\",'[1]MONE(M)CARD'!EK167)","v":17739.231418472533},{"$f":"IF('[1]MONE(M)CARD'!EP167=\"\",\"\",'[1]MONE(M)CARD'!EP167)","v":7672.9498803053357},{"$f":"IF('[1]MONE(M)CARD'!ES167=\"\",\"\",'[1]MONE(M)CARD'!ES167)","v":1.456461874768511},{"$f":"IF('[1]MONE(M)CARD'!EV167=\"\",\"\",'[1]MONE(M)CARD'!EV167)","v":-3.6222993396910597},{"$f":"IF('[1]MONE(M)CARD'!EZ167=\"\",\"\",'[1]MONE(M)CARD'!EZ167)","v":-0.50326627284207337},{"$f":"IF('[1]MONE(M)CAPARD'!FC167=\"\",\"\",'[1]MONE(M)CAPARD'!FC167)","v":9683.7031850572603},{"$f":"IF('[1]MONE(M)CAPARD'!FG167=\"\",\"\",'[1]MONE(M)CAPARD'!FG167)","v":26453.650764392536},{"$f":"IF('[1]MONE(M)CAPARD'!FL167=\"\",\"\",'[1]MONE(M)CAPARD'!FL167)","v":7672.949880305343},{"$f":"IF('[1]MONE(M)CAPARD'!FO167=\"\",\"\",'[1]MONE(M)CAPARD'!FO167)","v":15.71259862778196},{"$f":"IF('[1]MONE(M)CAPARD'!FR167=\"\",\"\",'[1]MONE(M)CAPARD'!FR167)","v":32.781238053481033},{"$f":"IF('[1]MONE(M)CAPARD'!FV167=\"\",\"\",'[1]MONE(M)CAPARD'!FV167)","v":28.572835412974975},{"$f":"IF('[1]MONE(M)CARD'!FV167=\"\",\"\",'[1]MONE(M)CARD'!FV167)","v":395.10988930351067},{"$f":"IF('[1]MONE(M)CARD'!GD167=\"\",\"\",'[1]MONE(M)CARD'!GD167)","v":67.924691126758461},{"$f":"IF('[1]MONE(M)CARD'!GE167=\"\",\"\",'[1]MONE(M)CARD'!GE167)","v":3411.2859992904032},{"$f":"IF(AD160=\"\",\"\",((AD160/AD147)-1)*100)","v":7.7154098031247509},{"$f":"IF('[9]II.2.Balance OSD-Activos'!J25=\"\",\"\",'[9]II.2.Balance OSD-Activos'!J25)","v":177.43540599747263},{"$f":"IF('[9]II.2.Balance OSD-Activos'!N25=\"\",\"\",'[9]II.2.Balance OSD-Activos'!N25)","v":12.558367741518641},{"$f":"IF('[9]II.2.Balance OSD-Activos'!R25=\"\",\"\",'[9]II.2.Balance OSD-Activos'!R25)","v":12940.084225194569},{"$f":"IF('[9]II.2.Balance OSD-Activos'!S25=\"\",\"\",'[9]II.2.Balance OSD-Activos'!S25)","v":11859.801943819621},13117.519631192041,24989.879942753181,{"$f":"IF(OR(AF160=\"\",AF148=\"\"),\"\",((AF160/AF148)-1)*100)","v":9.1345628226704001},-0.93782243073377014,-18.368540895269092,-1.0630303507811134,2.1617096017652049,0.49843341435091837,{"$f":"IF(OR(AQ160=\"\",AQ159=\"\"),\"\",AQ160-AQ159)","v":-0.35061122160746638},{"$f":"IF('[1]MONE(M)CAPARD'!GS167=\"\",\"\",'[1]MONE(M)CAPARD'!GS167)","v":3743.6998102805424},{"$f":"IF('[1]MONE(M)CARD'!HA167=\"\",\"\",'[1]MONE(M)CAPARD'!HA167)","v":3579.0553072804032},{"$f":"IF('[1]MONE(M)CAPARD'!HB167=\"\",\"\",'[1]MONE(M)CAPARD'!HB167)","v":164.64450300013914},"n.d.",{"$f":"IF('[10]II.2.Balance OSD-Activos'!J25=\"\",\"\",'[10]II.2.Balance OSD-Activos'!J25)","v":966.67160705747244},{"$f":"IF('[10]II.2.Balance OSD-Activos'!N25=\"\",\"\",'[10]II.2.Balance OSD-Activos'!N25)","v":380.03246877151861},{"$f":"IF('[10]II.2.Balance OSD-Activos'!R25=\"\",\"\",'[10]II.2.Balance OSD-Activos'!R25)","v":17429.91946556457},{"$f":"IF('[10]II.2.Balance OSD-Activos'!S25=\"\",\"\",'[10]II.2.Balance OSD-Activos'!S25)","v":16353.188656039621},18396.591072622043,35129.812197433181,494.56726032913735,38.929189568108427,2370.2736511234452,33.265238706509436,40.868263943633565,41.276832864745259,-0.81877850235989769,{"$f":"IF('[1]MONE(M)CAPARD'!AS167=\"\",\"\",'[1]MONE(M)CAPARD'!AS167)","v":"n.d."},{"$f":"IF('[1]MONE(M)CAPARD'!AT167=\"\",\"\",'[1]MONE(M)CAPARD'!AT167)","v":"n.a."},{"$f":"IF('[1]MONE(M)CAPARD'!AU167=\"\",\"\",'[1]MONE(M)CAPARD'!AU167)","v":"n.d."},{"$f":"IF('[1]MONE(M)CAPARD'!AV167=\"\",\"\",'[1]MONE(M)CAPARD'!AV167)","v":"n.d."},{"$f":"IF('[1]MONE(M)CAPARD'!AW167=\"\",\"\",'[1]MONE(M)CAPARD'!AW167)","v":"n.a."},{"$f":"IF('[1]MONE(M)CAPARD'!AX167=\"\",\"\",'[1]MONE(M)CAPARD'!AX167)","v":"n.d."},{"$f":"IF('[1]MONE(M)CAPARD'!AY167=\"\",\"\",'[1]MONE(M)CAPARD'!AY167)","v":"n.a."},{"$f":"IF('[1]FISCAL(M)'!$K167=\"\",\"\",'[1]FISCAL(M)'!$K167)","v":-36.209959750949565},{"$f":"IF('[1]FISCAL(M)'!$L167=\"\",\"\",'[1]FISCAL(M)'!$L167)","v":72.274066389050404},{"$f":"IF('[1]FISCAL(M)'!$AY167=\"\",\"\",'[1]FISCAL(M)'!$AY167)","v":"n.d."},{"$f":"IF('[1]FISCAL(M)'!$BI167=\"\",\"\",'[1]FISCAL(M)'!$BI167)","v":"n.d."},{"$f":"IF('[1]FISCAL(M)'!$BS167=\"\",\"\",'[1]FISCAL(M)'!$BS167)","v":"n.d."},{"$f":"IF('[1]FISCAL(M)'!$AZ167=\"\",\"\",'[1]FISCAL(M)'!$AZ167)","v":"n.d."},{"$f":"IF('[1]FISCAL(M)'!$BJ167=\"\",\"\",'[1]FISCAL(M)'!$BJ167)","v":"n.d."},{"$f":"IF('[1]FISCAL(M)'!$BT167=\"\",\"\",'[1]FISCAL(M)'!$BT167)","v":"n.d."},{"$f":"IF('[2]MONE(M)'!$AO167=\"\",\"\",'[2]MONE(M)'!$AO167)","v":1943682.9997312583},{"$f":"IF('[3]MONE(M)'!$AO167=\"\",\"\",'[3]MONE(M)'!$AO167)","v":6045.6527428571426},{"$f":"IF('[4]MONE(M)'!$AO167=\"\",\"\",'[4]MONE(M)'!$AO167)","v":37562.021141400408},{"$f":"IF('[5]MONE(M)'!$AO167=\"\",\"\",'[5]MONE(M)'!$AO167)","v":45788.79121983597},{"$f":"IF('[6]MONE(M)'!$AO167=\"\",\"\",'[6]MONE(M)'!$AO167)","v":11787.464581},{"$f":"IF('[7]MONE(M)'!$AO167=\"\",\"\",'[7]MONE(M)'!$AO167)","v":159568.44684996002},{"$f":"IF('[8]MONE(M)'!$AO167=\"\",\"\",'[8]MONE(M)'!$AO167)","v":9960.7984162399989},24.163440372082402,2.6310608472044361,4.1672496810659654,7.624744502123737,16.052587383380022,15.395570012904924,"n.d.",{"$f":"IF('[1]FISCAL(M)'!$K167=\"\",\"\",'[1]FISCAL(M)'!$K167)","v":-36.209959750949565},{"$f":"+'[1]REAL(A)'!$AO$23","v":"n.d."},"n.d.",{"$f":"IF('[1]FISCAL(M)'!$L167=\"\",\"\",'[1]FISCAL(M)'!$L167)","v":72.274066389050404},{"$f":"+'[1]REAL(A)'!$AP$23","v":"n.d."},"n.d.","n.d.",{"$f":"'[1]Gráfico REM'!BG161","v":7220.1174980888536},{"$f":"'[1]Gráfico REM'!BH161","v":26290.805892405428},{"$f":"'[1]Gráfico REM'!BI161","v":912.25683565266479},"n.d.",6.1278577574908955,-0.33748838302734008,13.160054275698263,"n.d.",{"$f":"'[1]Gráfico REM'!BK161","v":7668.5322385608533},{"$f":"'[1]Gráfico REM'!BL161","v":36251.60430864543},{"$f":"'[1]Gráfico REM'!BM161","v":7833.0856596926651},"n.d.","n.d.","n.d.","n.d."]
[2003,"marzo","2003-marzo",{"$f":"IF('[1]REAL IPC(M)'!$AL168=\"\",\"\",+'[1]REAL IPC(M)'!$AL168)","v":10.126600978593636},{"$f":"IF('[1]REAL IPC(M)'!$BE168=\"\",\"\",+'[1]REAL IPC(M)'!$BE168)","v":11.913830614730191},{"$f":"IF('[1]REAL IPC(M)'!$AM168=\"\",\"\",+'[1]REAL IPC(M)'!$AM168)","v":9.5544786837671314},{"$f":"IF('[1]REAL IPC(M)'!$BI168=\"\",\"\",+'[1]REAL IPC(M)'!$BI168)","v":11.048086764421928},{"$f":"IF('[1]REAL IMAE(M)'!BJ168=\"\",\"\",'[1]REAL IMAE(M)'!BJ168)","v":"n.d."},{"$f":"IF('[1]REAL IMAE(M)'!BK168=\"\",\"\",'[1]REAL IMAE(M)'!BK168)","v":"n.d."},{"$f":"IF('[1]REAL IMAE(M)'!BN168=\"\",\"\",'[1]REAL IMAE(M)'!BN168)","v":"n.d."},{"$f":"IF('[1]REAL IMAE(M)'!BO168=\"\",\"\",'[1]REAL IMAE(M)'!BO168)","v":"n.d."},{"$f":"IF('[1]EXT RIN(M)'!$K168=\"\",\"\",'[1]EXT RIN(M)'!$K168)","v":7924.6638087683677},"",{"$f":"IF('[1]EXT RIN(M)'!$L168=\"\",\"\",'[1]EXT RIN(M)'!$L168)","v":9372.4970008247274},"",{"$f":"IF('[1]MONE(M)CARD'!EG168=\"\",\"\",'[1]MONE(M)CARD'!EG168)","v":8420.8901880988597},{"$f":"IF('[1]MONE(M)CARD'!EK168=\"\",\"\",'[1]MONE(M)CARD'!EK168)","v":17968.563441081522},{"$f":"IF('[1]MONE(M)CARD'!EP168=\"\",\"\",'[1]MONE(M)CARD'!EP168)","v":8071.9461704009009},{"$f":"IF('[1]MONE(M)CARD'!ES168=\"\",\"\",'[1]MONE(M)CARD'!ES168)","v":-2.6795428029895985},{"$f":"IF('[1]MONE(M)CARD'!EV168=\"\",\"\",'[1]MONE(M)CARD'!EV168)","v":-3.6505954205130475},{"$f":"IF('[1]MONE(M)CARD'!EZ168=\"\",\"\",'[1]MONE(M)CARD'!EZ168)","v":0.64582984715182423},{"$f":"IF('[1]MONE(M)CAPARD'!FC168=\"\",\"\",'[1]MONE(M)CAPARD'!FC168)","v":9675.6683823888598},{"$f":"IF('[1]MONE(M)CAPARD'!FG168=\"\",\"\",'[1]MONE(M)CAPARD'!FG168)","v":26639.484972341525},{"$f":"IF('[1]MONE(M)CAPARD'!FL168=\"\",\"\",'[1]MONE(M)CAPARD'!FL168)","v":8071.9461704009009},{"$f":"IF('[1]MONE(M)CAPARD'!FO168=\"\",\"\",'[1]MONE(M)CAPARD'!FO168)","v":11.821962954884601},{"$f":"IF('[1]MONE(M)CAPARD'!FR168=\"\",\"\",'[1]MONE(M)CAPARD'!FR168)","v":32.58870199086055},{"$f":"IF('[1]MONE(M)CAPARD'!FV168=\"\",\"\",'[1]MONE(M)CAPARD'!FV168)","v":29.634213705655597},{"$f":"IF('[1]MONE(M)CARD'!FV168=\"\",\"\",'[1]MONE(M)CARD'!FV168)","v":386.49586821026685},{"$f":"IF('[1]MONE(M)CARD'!GD168=\"\",\"\",'[1]MONE(M)CARD'!GD168)","v":68.53882811318114},{"$f":"IF('[1]MONE(M)CARD'!GE168=\"\",\"\",'[1]MONE(M)CARD'!GE168)","v":3362.9452804045031},22.22511577368811,{"$f":"IF('[9]II.2.Balance OSD-Activos'!J26=\"\",\"\",'[9]II.2.Balance OSD-Activos'!J26)","v":184.30889377217636},{"$f":"IF('[9]II.2.Balance OSD-Activos'!N26=\"\",\"\",'[9]II.2.Balance OSD-Activos'!N26)","v":11.66562170848896},{"$f":"IF('[9]II.2.Balance OSD-Activos'!R26=\"\",\"\",'[9]II.2.Balance OSD-Activos'!R26)","v":13256.084363545557},{"$f":"IF('[9]II.2.Balance OSD-Activos'!S26=\"\",\"\",'[9]II.2.Balance OSD-Activos'!S26)","v":11889.146966609329},13440.393257317734,25341.205845635552,4.2316267738467639,0.24533648652194096,-23.911602454173263,0.19206022457072258,1.4194159663103445,0.77795791564778671,0.27952450129686834,{"$f":"IF('[1]MONE(M)CAPARD'!GS168=\"\",\"\",'[1]MONE(M)CAPARD'!GS168)","v":3775.9433620612999},{"$f":"IF('[1]MONE(M)CARD'!HA168=\"\",\"\",'[1]MONE(M)CAPARD'!HA168)","v":3531.401218934503},{"$f":"IF('[1]MONE(M)CAPARD'!HB168=\"\",\"\",'[1]MONE(M)CAPARD'!HB168)","v":244.54214312679687},"n.d.",{"$f":"IF('[10]II.2.Balance OSD-Activos'!J26=\"\",\"\",'[10]II.2.Balance OSD-Activos'!J26)","v":967.71317203217632},{"$f":"IF('[10]II.2.Balance OSD-Activos'!N26=\"\",\"\",'[10]II.2.Balance OSD-Activos'!N26)","v":377.83840821848889},{"$f":"IF('[10]II.2.Balance OSD-Activos'!R26=\"\",\"\",'[10]II.2.Balance OSD-Activos'!R26)","v":17769.334564825556},{"$f":"IF('[10]II.2.Balance OSD-Activos'!S26=\"\",\"\",'[10]II.2.Balance OSD-Activos'!S26)","v":16378.52356698933},18737.047736857734,35493.40971206555,447.2677748045827,39.750498306489,2364.4309348459583,34.304081812086885,39.715683490136698,41.151663106885472,-0.12516975785978701,{"$f":"IF('[1]MONE(M)CAPARD'!AS168=\"\",\"\",'[1]MONE(M)CAPARD'!AS168)","v":"n.d."},{"$f":"IF('[1]MONE(M)CAPARD'!AT168=\"\",\"\",'[1]MONE(M)CAPARD'!AT168)","v":"n.a."},{"$f":"IF('[1]MONE(M)CAPARD'!AU168=\"\",\"\",'[1]MONE(M)CAPARD'!AU168)","v":"n.d."},{"$f":"IF('[1]MONE(M)CAPARD'!AV168=\"\",\"\",'[1]MONE(M)CAPARD'!AV168)","v":"n.d."},{"$f":"IF('[1]MONE(M)CAPARD'!AW168=\"\",\"\",'[1]MONE(M)CAPARD'!AW168)","v":"n.a."},{"$f":"IF('[1]MONE(M)CAPARD'!AX168=\"\",\"\",'[1]MONE(M)CAPARD'!AX168)","v":"n.d."},{"$f":"IF('[1]MONE(M)CAPARD'!AY168=\"\",\"\",'[1]MONE(M)CAPARD'!AY168)","v":"n.a."},{"$f":"IF('[1]FISCAL(M)'!$K168=\"\",\"\",'[1]FISCAL(M)'!$K168)","v":-283.66026211292518},{"$f":"IF('[1]FISCAL(M)'!$L168=\"\",\"\",'[1]FISCAL(M)'!$L168)","v":-224.82277224292528},{"$f":"IF('[1]FISCAL(M)'!$AY168=\"\",\"\",'[1]FISCAL(M)'!$AY168)","v":"n.d."},{"$f":"IF('[1]FISCAL(M)'!$BI168=\"\",\"\",'[1]FISCAL(M)'!$BI168)","v":"n.d."},{"$f":"IF('[1]FISCAL(M)'!$BS168=\"\",\"\",'[1]FISCAL(M)'!$BS168)","v":"n.d."},{"$f":"IF('[1]FISCAL(M)'!$AZ168=\"\",\"\",'[1]FISCAL(M)'!$AZ168)","v":"n.d."},{"$f":"IF('[1]FISCAL(M)'!$BJ168=\"\",\"\",'[1]FISCAL(M)'!$BJ168)","v":"n.d."},{"$f":"IF('[1]FISCAL(M)'!$BT168=\"\",\"\",'[1]FISCAL(M)'!$BT168)","v":"n.d."},{"$f":"IF('[2]MONE(M)'!$AO168=\"\",\"\",'[2]MONE(M)'!$AO168)","v":1953315.3066062636},{"$f":"IF('[3]MONE(M)'!$AO168=\"\",\"\",'[3]MONE(M)'!$AO168)","v":6091.3517428571431},{"$f":"IF('[4]MONE(M)'!$AO168=\"\",\"\",'[4]MONE(M)'!$AO168)","v":38146.826167492778},{"$f":"IF('[5]MONE(M)'!$AO168=\"\",\"\",'[5]MONE(M)'!$AO168)","v":46566.461801363112},{"$f":"IF('[6]MONE(M)'!$AO168=\"\",\"\",'[6]MONE(M)'!$AO168)","v":11753.310185},{"$f":"IF('[7]MONE(M)'!$AO168=\"\",\"\",'[7]MONE(M)'!$AO168)","v":170966.5583727},{"$f":"IF('[8]MONE(M)'!$AO168=\"\",\"\",'[8]MONE(M)'!$AO168)","v":9980.0307720099991},22.34195732278874,4.8204288113280924,6.3766576761445704,8.4761960556297247,18.431767869974248,21.293227525295855,"n.d.",{"$f":"IF('[1]FISCAL(M)'!$K168=\"\",\"\",'[1]FISCAL(M)'!$K168)","v":-283.66026211292518},{"$f":"+'[1]REAL(A)'!$AO$23","v":"n.d."},"n.d.",{"$f":"IF('[1]FISCAL(M)'!$L168=\"\",\"\",'[1]FISCAL(M)'!$L168)","v":-224.82277224292528},{"$f":"+'[1]REAL(A)'!$AP$23","v":"n.d."},"n.d.","n.d.",{"$f":"'[1]Gráfico REM'!BG162","v":7388.3055906613708},{"$f":"'[1]Gráfico REM'!BH162","v":26650.042799606294},{"$f":"'[1]Gráfico REM'!BI162","v":915.98419137350641},"n.d.",4.6025709105813162,0.42017952116566448,5.9569766600206187,"n.d.",{"$f":"'[1]Gráfico REM'!BK162","v":7819.2538490433708},{"$f":"'[1]Gráfico REM'!BL162","v":36630.073571616289},{"$f":"'[1]Gráfico REM'!BM162","v":7970.3741910735071},"n.d.","n.d.","n.d.","n.d."]
[2003,"abril","2003-abril",{"$f":"IF('[1]REAL IPC(M)'!$AL169=\"\",\"\",+'[1]REAL IPC(M)'!$AL169)","v":10.052183519105707},{"$f":"IF('[1]REAL IPC(M)'!$BE169=\"\",\"\",+'[1]REAL IPC(M)'!$BE169)","v":12.137221908069428},{"$f":"IF('[1]REAL IPC(M)'!$AM169=\"\",\"\",+'[1]REAL IPC(M)'!$AM169)","v":9.4873332039651981},{"$f":"IF('[1]REAL IPC(M)'!$BI169=\"\",\"\",+'[1]REAL IPC(M)'!$BI169)","v":11.271647630629733},{"$f":"IF('[1]REAL IMAE(M)'!BJ169=\"\",\"\",'[1]REAL IMAE(M)'!BJ169)","v":"n.d."},{"$f":"IF('[1]REAL IMAE(M)'!BK169=\"\",\"\",'[1]REAL IMAE(M)'!BK169)","v":"n.d."},{"$f":"IF('[1]REAL IMAE(M)'!BN169=\"\",\"\",'[1]REAL IMAE(M)'!BN169)","v":"n.d."},{"$f":"IF('[1]REAL IMAE(M)'!BO169=\"\",\"\",'[1]REAL IMAE(M)'!BO169)","v":"n.d."},{"$f":"IF('[1]EXT RIN(M)'!$K169=\"\",\"\",'[1]EXT RIN(M)'!$K169)","v":7571.810839168661},"",{"$f":"IF('[1]EXT RIN(M)'!$L169=\"\",\"\",'[1]EXT RIN(M)'!$L169)","v":8952.3561764059505},"",{"$f":"IF('[1]MONE(M)CARD'!EG169=\"\",\"\",'[1]MONE(M)CARD'!EG169)","v":8940.4571611968568},{"$f":"IF('[1]MONE(M)CARD'!EK169=\"\",\"\",'[1]MONE(M)CARD'!EK169)","v":19219.09298514387},{"$f":"IF('[1]MONE(M)CARD'!EP169=\"\",\"\",'[1]MONE(M)CARD'!EP169)","v":8050.0194344972697},{"$f":"IF('[1]MONE(M)CARD'!ES169=\"\",\"\",'[1]MONE(M)CARD'!ES169)","v":4.9828213700416235},{"$f":"IF('[1]MONE(M)CARD'!EV169=\"\",\"\",'[1]MONE(M)CARD'!EV169)","v":4.0225952228036821},{"$f":"IF('[1]MONE(M)CARD'!EZ169=\"\",\"\",'[1]MONE(M)CARD'!EZ169)","v":6.6861797972836756},{"$f":"IF('[1]MONE(M)CAPARD'!FC169=\"\",\"\",'[1]MONE(M)CAPARD'!FC169)","v":10174.632989986856},{"$f":"IF('[1]MONE(M)CAPARD'!FG169=\"\",\"\",'[1]MONE(M)CAPARD'!FG169)","v":27901.729336653865},{"$f":"IF('[1]MONE(M)CAPARD'!FL169=\"\",\"\",'[1]MONE(M)CAPARD'!FL169)","v":8050.0194344972697},{"$f":"IF('[1]MONE(M)CAPARD'!FO169=\"\",\"\",'[1]MONE(M)CAPARD'!FO169)","v":19.475062453129421},{"$f":"IF('[1]MONE(M)CAPARD'!FR169=\"\",\"\",'[1]MONE(M)CAPARD'!FR169)","v":40.655727995557392},{"$f":"IF('[1]MONE(M)CAPARD'!FV169=\"\",\"\",'[1]MONE(M)CAPARD'!FV169)","v":35.904610712940332},{"$f":"IF('[1]MONE(M)CARD'!FV169=\"\",\"\",'[1]MONE(M)CARD'!FV169)","v":412.00534817235621},{"$f":"IF('[1]MONE(M)CARD'!GD169=\"\",\"\",'[1]MONE(M)CARD'!GD169)","v":107.24598381952663},{"$f":"IF('[1]MONE(M)CARD'!GE169=\"\",\"\",'[1]MONE(M)CARD'!GE169)","v":3274.4186181188925},1.0261213423783833,{"$f":"IF('[9]II.2.Balance OSD-Activos'!J27=\"\",\"\",'[9]II.2.Balance OSD-Activos'!J27)","v":170.24436253532284},{"$f":"IF('[9]II.2.Balance OSD-Activos'!N27=\"\",\"\",'[9]II.2.Balance OSD-Activos'!N27)","v":11.572374119933022},{"$f":"IF('[9]II.2.Balance OSD-Activos'!R27=\"\",\"\",'[9]II.2.Balance OSD-Activos'!R27)","v":13203.205262696212},{"$f":"IF('[9]II.2.Balance OSD-Activos'!S27=\"\",\"\",'[9]II.2.Balance OSD-Activos'!S27)","v":11979.966545857016},13373.449625231535,25364.988545208485,-5.6602415692126318,0.66235482103633725,81.248011371882868,0.74941841917439689,2.4078935721525196,1.5000591834938959,0.72210126784610917,{"$f":"IF('[1]MONE(M)CAPARD'!GS169=\"\",\"\",'[1]MONE(M)CAPARD'!GS169)","v":3857.9521794660686},{"$f":"IF('[1]MONE(M)CARD'!HA169=\"\",\"\",'[1]MONE(M)CAPARD'!HA169)","v":3498.8011728488927},{"$f":"IF('[1]MONE(M)CAPARD'!HB169=\"\",\"\",'[1]MONE(M)CAPARD'!HB169)","v":359.15100661717588},"n.d.",{"$f":"IF('[10]II.2.Balance OSD-Activos'!J27=\"\",\"\",'[10]II.2.Balance OSD-Activos'!J27)","v":984.14478694532283},{"$f":"IF('[10]II.2.Balance OSD-Activos'!N27=\"\",\"\",'[10]II.2.Balance OSD-Activos'!N27)","v":362.99428535993303},{"$f":"IF('[10]II.2.Balance OSD-Activos'!R27=\"\",\"\",'[10]II.2.Balance OSD-Activos'!R27)","v":17654.548323266212},{"$f":"IF('[10]II.2.Balance OSD-Activos'!S27=\"\",\"\",'[10]II.2.Balance OSD-Activos'!S27)","v":16489.025260507016},18638.693110211534,35490.712656078482,445.35715649366591,40.293999815925275,5585.2631689050877,34.71618751907959,40.952509134551882,42.018965576738943,0.86730246985347037,{"$f":"IF('[1]MONE(M)CAPARD'!AS169=\"\",\"\",'[1]MONE(M)CAPARD'!AS169)","v":"n.d."},{"$f":"IF('[1]MONE(M)CAPARD'!AT169=\"\",\"\",'[1]MONE(M)CAPARD'!AT169)","v":"n.a."},{"$f":"IF('[1]MONE(M)CAPARD'!AU169=\"\",\"\",'[1]MONE(M)CAPARD'!AU169)","v":"n.d."},{"$f":"IF('[1]MONE(M)CAPARD'!AV169=\"\",\"\",'[1]MONE(M)CAPARD'!AV169)","v":"n.d."},{"$f":"IF('[1]MONE(M)CAPARD'!AW169=\"\",\"\",'[1]MONE(M)CAPARD'!AW169)","v":"n.a."},{"$f":"IF('[1]MONE(M)CAPARD'!AX169=\"\",\"\",'[1]MONE(M)CAPARD'!AX169)","v":"n.d."},{"$f":"IF('[1]MONE(M)CAPARD'!AY169=\"\",\"\",'[1]MONE(M)CAPARD'!AY169)","v":"n.a."},{"$f":"IF('[1]FISCAL(M)'!$K169=\"\",\"\",'[1]FISCAL(M)'!$K169)","v":-245.61210573429344},{"$f":"IF('[1]FISCAL(M)'!$L169=\"\",\"\",'[1]FISCAL(M)'!$L169)","v":-270.76675757429359},{"$f":"IF('[1]FISCAL(M)'!$AY169=\"\",\"\",'[1]FISCAL(M)'!$AY169)","v":"n.d."},{"$f":"IF('[1]FISCAL(M)'!$BI169=\"\",\"\",'[1]FISCAL(M)'!$BI169)","v":"n.d."},{"$f":"IF('[1]FISCAL(M)'!$BS169=\"\",\"\",'[1]FISCAL(M)'!$BS169)","v":"n.d."},{"$f":"IF('[1]FISCAL(M)'!$AZ169=\"\",\"\",'[1]FISCAL(M)'!$AZ169)","v":"n.d."},{"$f":"IF('[1]FISCAL(M)'!$BJ169=\"\",\"\",'[1]FISCAL(M)'!$BJ169)","v":"n.d."},{"$f":"IF('[1]FISCAL(M)'!$BT169=\"\",\"\",'[1]FISCAL(M)'!$BT169)","v":"n.d."},{"$f":"IF('[2]MONE(M)'!$AO169=\"\",\"\",'[2]MONE(M)'!$AO169)","v":1966727.1879855446},{"$f":"IF('[3]MONE(M)'!$AO169=\"\",\"\",'[3]MONE(M)'!$AO169)","v":6142.4447428571439},{"$f":"IF('[4]MONE(M)'!$AO169=\"\",\"\",'[4]MONE(M)'!$AO169)","v":38032.85910167174},{"$f":"IF('[5]MONE(M)'!$AO169=\"\",\"\",'[5]MONE(M)'!$AO169)","v":47008.551999850315},{"$f":"IF('[6]MONE(M)'!$AO169=\"\",\"\",'[6]MONE(M)'!$AO169)","v":11911.678702000001},{"$f":"IF('[7]MONE(M)'!$AO169=\"\",\"\",'[7]MONE(M)'!$AO169)","v":169902.86564636001},{"$f":"IF('[8]MONE(M)'!$AO169=\"\",\"\",'[8]MONE(M)'!$AO169)","v":9974.0501950399994},21.054761708404833,7.0596192452356821,6.1039308087579514,9.3584097272517486,21.714975624354892,21.022023134368652,"n.d.",{"$f":"IF('[1]FISCAL(M)'!$K169=\"\",\"\",'[1]FISCAL(M)'!$K169)","v":-245.61210573429344},{"$f":"+'[1]REAL(A)'!$AO$23","v":"n.d."},"n.d.",{"$f":"IF('[1]FISCAL(M)'!$L169=\"\",\"\",'[1]FISCAL(M)'!$L169)","v":-270.76675757429359},{"$f":"+'[1]REAL(A)'!$AP$23","v":"n.d."},"n.d.","n.d.",{"$f":"'[1]Gráfico REM'!BG163","v":8082.4887662434749},{"$f":"'[1]Gráfico REM'!BH163","v":26645.269816893109},{"$f":"'[1]Gráfico REM'!BI163","v":1035.0707734878345},"n.d.",13.550055751137435,1.3839408213347726,19.666810951827294,"n.d.",{"$f":"'[1]Gráfico REM'!BK163","v":8528.4317452854757},{"$f":"'[1]Gráfico REM'!BL163","v":36619.320011933109},{"$f":"'[1]Gráfico REM'!BM163","v":7764.8597508078328},"n.d.","n.d.","n.d.","n.d."]
[2003,"mayo ","2003-mayo ",{"$f":"IF('[1]REAL IPC(M)'!$AL170=\"\",\"\",+'[1]REAL IPC(M)'!$AL170)","v":10.38065756350035},{"$f":"IF('[1]REAL IPC(M)'!$BE170=\"\",\"\",+'[1]REAL IPC(M)'!$BE170)","v":12.353089960398744},{"$f":"IF('[1]REAL IPC(M)'!$AM170=\"\",\"\",+'[1]REAL IPC(M)'!$AM170)","v":9.7964153431317591},{"$f":"IF('[1]REAL IPC(M)'!$BI170=\"\",\"\",+'[1]REAL IPC(M)'!$BI170)","v":11.489411841577791},{"$f":"IF('[1]REAL IMAE(M)'!BJ170=\"\",\"\",'[1]REAL IMAE(M)'!BJ170)","v":"n.d."},{"$f":"IF('[1]REAL IMAE(M)'!BK170=\"\",\"\",'[1]REAL IMAE(M)'!BK170)","v":"n.d."},{"$f":"IF('[1]REAL IMAE(M)'!BN170=\"\",\"\",'[1]REAL IMAE(M)'!BN170)","v":"n.d."},{"$f":"IF('[1]REAL IMAE(M)'!BO170=\"\",\"\",'[1]REAL IMAE(M)'!BO170)","v":"n.d."},{"$f":"IF('[1]EXT RIN(M)'!$K170=\"\",\"\",'[1]EXT RIN(M)'!$K170)","v":7628.0775964053664},"",{"$f":"IF('[1]EXT RIN(M)'!$L170=\"\",\"\",'[1]EXT RIN(M)'!$L170)","v":8938.3776070529166},"",{"$f":"IF('[1]MONE(M)CARD'!EG170=\"\",\"\",'[1]MONE(M)CARD'!EG170)","v":8620.4499703732126},{"$f":"IF('[1]MONE(M)CARD'!EK170=\"\",\"\",'[1]MONE(M)CARD'!EK170)","v":18715.324593245619},{"$f":"IF('[1]MONE(M)CARD'!EP170=\"\",\"\",'[1]MONE(M)CARD'!EP170)","v":7934.2984578906398},{"$f":"IF('[1]MONE(M)CARD'!ES170=\"\",\"\",'[1]MONE(M)CARD'!ES170)","v":4.9382874790497189},{"$f":"IF('[1]MONE(M)CARD'!EV170=\"\",\"\",'[1]MONE(M)CARD'!EV170)","v":2.1278719047904904},{"$f":"IF('[1]MONE(M)CARD'!EZ170=\"\",\"\",'[1]MONE(M)CARD'!EZ170)","v":4.5025875886801181},{"$f":"IF('[1]MONE(M)CAPARD'!FC170=\"\",\"\",'[1]MONE(M)CAPARD'!FC170)","v":9888.1194244632134},{"$f":"IF('[1]MONE(M)CAPARD'!FG170=\"\",\"\",'[1]MONE(M)CAPARD'!FG170)","v":27411.458786525625},{"$f":"IF('[1]MONE(M)CAPARD'!FL170=\"\",\"\",'[1]MONE(M)CAPARD'!FL170)","v":7934.2984578906471},{"$f":"IF('[1]MONE(M)CAPARD'!FO170=\"\",\"\",'[1]MONE(M)CAPARD'!FO170)","v":20.369855675477332},{"$f":"IF('[1]MONE(M)CAPARD'!FR170=\"\",\"\",'[1]MONE(M)CAPARD'!FR170)","v":39.353159237141689},{"$f":"IF('[1]MONE(M)CAPARD'!FV170=\"\",\"\",'[1]MONE(M)CAPARD'!FV170)","v":34.024592341567718},{"$f":"IF('[1]MONE(M)CARD'!FV170=\"\",\"\",'[1]MONE(M)CARD'!FV170)","v":455.24308560453773},{"$f":"IF('[1]MONE(M)CARD'!GD170=\"\",\"\",'[1]MONE(M)CARD'!GD170)","v":59.025937925335867},{"$f":"IF('[1]MONE(M)CARD'!GE170=\"\",\"\",'[1]MONE(M)CARD'!GE170)","v":3166.9719678238966},-9.5701181982266625,{"$f":"IF('[9]II.2.Balance OSD-Activos'!J28=\"\",\"\",'[9]II.2.Balance OSD-Activos'!J28)","v":174.26282580845609},{"$f":"IF('[9]II.2.Balance OSD-Activos'!N28=\"\",\"\",'[9]II.2.Balance OSD-Activos'!N28)","v":12.494011696936628},{"$f":"IF('[9]II.2.Balance OSD-Activos'!R28=\"\",\"\",'[9]II.2.Balance OSD-Activos'!R28)","v":12946.312792958548},{"$f":"IF('[9]II.2.Balance OSD-Activos'!S28=\"\",\"\",'[9]II.2.Balance OSD-Activos'!S28)","v":11680.141195674589},13120.575618767005,24813.210826138529,13.62216091453079,-1.9501080541953875,56.25646390750083,-2.1306566780439629,-5.6721517088687001E-3,-1.0255895142060045,-2.5256486976999004,{"$f":"IF('[1]MONE(M)CAPARD'!GS170=\"\",\"\",'[1]MONE(M)CAPARD'!GS170)","v":3844.5850527294383},{"$f":"IF('[1]MONE(M)CARD'!HA170=\"\",\"\",'[1]MONE(M)CAPARD'!HA170)","v":3391.2522599838962},{"$f":"IF('[1]MONE(M)CAPARD'!HB170=\"\",\"\",'[1]MONE(M)CAPARD'!HB170)","v":453.33279274554206},"n.d.",{"$f":"IF('[10]II.2.Balance OSD-Activos'!J28=\"\",\"\",'[10]II.2.Balance OSD-Activos'!J28)","v":990.13780219845592},{"$f":"IF('[10]II.2.Balance OSD-Activos'!N28=\"\",\"\",'[10]II.2.Balance OSD-Activos'!N28)","v":343.84930158693663},{"$f":"IF('[10]II.2.Balance OSD-Activos'!R28=\"\",\"\",'[10]II.2.Balance OSD-Activos'!R28)","v":17380.839591638549},{"$f":"IF('[10]II.2.Balance OSD-Activos'!S28=\"\",\"\",'[10]II.2.Balance OSD-Activos'!S28)","v":16215.77621772459},18370.977393837005,34930.602913148527,545.58574766032336,37.28607652152769,4200.3542245932194,31.392728139792435,38.824147436689096,39.330450035927676,-2.6885155408112666,{"$f":"IF('[1]MONE(M)CAPARD'!AS170=\"\",\"\",'[1]MONE(M)CAPARD'!AS170)","v":"n.d."},{"$f":"IF('[1]MONE(M)CAPARD'!AT170=\"\",\"\",'[1]MONE(M)CAPARD'!AT170)","v":"n.a."},{"$f":"IF('[1]MONE(M)CAPARD'!AU170=\"\",\"\",'[1]MONE(M)CAPARD'!AU170)","v":"n.d."},{"$f":"IF('[1]MONE(M)CAPARD'!AV170=\"\",\"\",'[1]MONE(M)CAPARD'!AV170)","v":"n.d."},{"$f":"IF('[1]MONE(M)CAPARD'!AW170=\"\",\"\",'[1]MONE(M)CAPARD'!AW170)","v":"n.a."},{"$f":"IF('[1]MONE(M)CAPARD'!AX170=\"\",\"\",'[1]MONE(M)CAPARD'!AX170)","v":"n.d."},{"$f":"IF('[1]MONE(M)CAPARD'!AY170=\"\",\"\",'[1]MONE(M)CAPARD'!AY170)","v":"n.a."},{"$f":"IF('[1]FISCAL(M)'!$K170=\"\",\"\",'[1]FISCAL(M)'!$K170)","v":-401.42212566040348},{"$f":"IF('[1]FISCAL(M)'!$L170=\"\",\"\",'[1]FISCAL(M)'!$L170)","v":-458.48389287040368},{"$f":"IF('[1]FISCAL(M)'!$AY170=\"\",\"\",'[1]FISCAL(M)'!$AY170)","v":"n.d."},{"$f":"IF('[1]FISCAL(M)'!$BI170=\"\",\"\",'[1]FISCAL(M)'!$BI170)","v":"n.d."},{"$f":"IF('[1]FISCAL(M)'!$BS170=\"\",\"\",'[1]FISCAL(M)'!$BS170)","v":"n.d."},{"$f":"IF('[1]FISCAL(M)'!$AZ170=\"\",\"\",'[1]FISCAL(M)'!$AZ170)","v":"n.d."},{"$f":"IF('[1]FISCAL(M)'!$BJ170=\"\",\"\",'[1]FISCAL(M)'!$BJ170)","v":"n.d."},{"$f":"IF('[1]FISCAL(M)'!$BT170=\"\",\"\",'[1]FISCAL(M)'!$BT170)","v":"n.d."},{"$f":"IF('[2]MONE(M)'!$AO170=\"\",\"\",'[2]MONE(M)'!$AO170)","v":1985439.6547130526},{"$f":"IF('[3]MONE(M)'!$AO170=\"\",\"\",'[3]MONE(M)'!$AO170)","v":6141.6707428571426},{"$f":"IF('[4]MONE(M)'!$AO170=\"\",\"\",'[4]MONE(M)'!$AO170)","v":38542.270371465063},{"$f":"IF('[5]MONE(M)'!$AO170=\"\",\"\",'[5]MONE(M)'!$AO170)","v":47210.578546490782},{"$f":"IF('[6]MONE(M)'!$AO170=\"\",\"\",'[6]MONE(M)'!$AO170)","v":12014.256410999998},{"$f":"IF('[7]MONE(M)'!$AO170=\"\",\"\",'[7]MONE(M)'!$AO170)","v":180805.81584694001},{"$f":"IF('[8]MONE(M)'!$AO170=\"\",\"\",'[8]MONE(M)'!$AO170)","v":9979.2638480599999},19.998901065289566,6.7676630224161816,7.5498995543784142,10.671218011526996,19.699076520205992,28.09745187709305,"n.d.",{"$f":"IF('[1]FISCAL(M)'!$K170=\"\",\"\",'[1]FISCAL(M)'!$K170)","v":-401.42212566040348},{"$f":"+'[1]REAL(A)'!$AO$23","v":"n.d."},"n.d.",{"$f":"IF('[1]FISCAL(M)'!$L170=\"\",\"\",'[1]FISCAL(M)'!$L170)","v":-458.48389287040368},{"$f":"+'[1]REAL(A)'!$AP$23","v":"n.d."},"n.d.","n.d.",{"$f":"'[1]Gráfico REM'!BG164","v":7949.2360211884297},{"$f":"'[1]Gráfico REM'!BH164","v":26046.500542324382},{"$f":"'[1]Gráfico REM'!BI164","v":1049.6723240153055},"n.d.",16.35378425580334,-1.0661333846794685,11.629687840039082,"n.d.",{"$f":"'[1]Gráfico REM'!BK164","v":8402.3412661604289},{"$f":"'[1]Gráfico REM'!BL164","v":36025.764390384385},{"$f":"'[1]Gráfico REM'!BM164","v":7591.1924008653059},"n.d.","n.d.","n.d.","n.d."]
[2003,"junio ","2003-junio ",{"$f":"IF('[1]REAL IPC(M)'!$AL171=\"\",\"\",+'[1]REAL IPC(M)'!$AL171)","v":11.583976313967991},{"$f":"IF('[1]REAL IPC(M)'!$BE171=\"\",\"\",+'[1]REAL IPC(M)'!$BE171)","v":12.559234238869399},{"$f":"IF('[1]REAL IPC(M)'!$AM171=\"\",\"\",+'[1]REAL IPC(M)'!$AM171)","v":10.930282885652765},{"$f":"IF('[1]REAL IPC(M)'!$BI171=\"\",\"\",+'[1]REAL IPC(M)'!$BI171)","v":11.699187649570476},{"$f":"IF('[1]REAL IMAE(M)'!BJ171=\"\",\"\",'[1]REAL IMAE(M)'!BJ171)","v":"n.d."},{"$f":"IF('[1]REAL IMAE(M)'!BK171=\"\",\"\",'[1]REAL IMAE(M)'!BK171)","v":"n.d."},{"$f":"IF('[1]REAL IMAE(M)'!BN171=\"\",\"\",'[1]REAL IMAE(M)'!BN171)","v":"n.d."},{"$f":"IF('[1]REAL IMAE(M)'!BO171=\"\",\"\",'[1]REAL IMAE(M)'!BO171)","v":"n.d."},{"$f":"IF('[1]EXT RIN(M)'!$K171=\"\",\"\",'[1]EXT RIN(M)'!$K171)","v":7813.3999860276135},"",{"$f":"IF('[1]EXT RIN(M)'!$L171=\"\",\"\",'[1]EXT RIN(M)'!$L171)","v":9064.493008427793},"",{"$f":"IF('[1]MONE(M)CARD'!EG171=\"\",\"\",'[1]MONE(M)CARD'!EG171)","v":8843.0500072521318},{"$f":"IF('[1]MONE(M)CARD'!EK171=\"\",\"\",'[1]MONE(M)CARD'!EK171)","v":18963.063979168401},{"$f":"IF('[1]MONE(M)CARD'!EP171=\"\",\"\",'[1]MONE(M)CARD'!EP171)","v":7840.1065104549562},{"$f":"IF('[1]MONE(M)CARD'!ES171=\"\",\"\",'[1]MONE(M)CARD'!ES171)","v":9.3176164680953697},{"$f":"IF('[1]MONE(M)CARD'!EV171=\"\",\"\",'[1]MONE(M)CARD'!EV171)","v":3.5829348713490417},{"$f":"IF('[1]MONE(M)CARD'!EZ171=\"\",\"\",'[1]MONE(M)CARD'!EZ171)","v":5.3742518005513773},{"$f":"IF('[1]MONE(M)CAPARD'!FC171=\"\",\"\",'[1]MONE(M)CAPARD'!FC171)","v":10103.17353495213},{"$f":"IF('[1]MONE(M)CAPARD'!FG171=\"\",\"\",'[1]MONE(M)CAPARD'!FG171)","v":27630.594419388402},{"$f":"IF('[1]MONE(M)CAPARD'!FL171=\"\",\"\",'[1]MONE(M)CAPARD'!FL171)","v":7840.1065104549562},{"$f":"IF('[1]MONE(M)CAPARD'!FO171=\"\",\"\",'[1]MONE(M)CAPARD'!FO171)","v":24.89523961741158},{"$f":"IF('[1]MONE(M)CAPARD'!FR171=\"\",\"\",'[1]MONE(M)CAPARD'!FR171)","v":40.565288280622561},{"$f":"IF('[1]MONE(M)CAPARD'!FV171=\"\",\"\",'[1]MONE(M)CAPARD'!FV171)","v":34.721517637501506},{"$f":"IF('[1]MONE(M)CARD'!FV171=\"\",\"\",'[1]MONE(M)CARD'!FV171)","v":409.14492938892283},{"$f":"IF('[1]MONE(M)CARD'!GD171=\"\",\"\",'[1]MONE(M)CARD'!GD171)","v":66.723842001478801},{"$f":"IF('[1]MONE(M)CARD'!GE171=\"\",\"\",'[1]MONE(M)CARD'!GE171)","v":3249.944625679133},-3.0257978016667075,{"$f":"IF('[9]II.2.Balance OSD-Activos'!J29=\"\",\"\",'[9]II.2.Balance OSD-Activos'!J29)","v":189.48777234265307},{"$f":"IF('[9]II.2.Balance OSD-Activos'!N29=\"\",\"\",'[9]II.2.Balance OSD-Activos'!N29)","v":11.405626186707273},{"$f":"IF('[9]II.2.Balance OSD-Activos'!R29=\"\",\"\",'[9]II.2.Balance OSD-Activos'!R29)","v":12707.072596102076},{"$f":"IF('[9]II.2.Balance OSD-Activos'!S29=\"\",\"\",'[9]II.2.Balance OSD-Activos'!S29)","v":11721.586917804385},12896.560368444729,24629.552912435822,24.801885695719527,-4.5968761087186394,1952.2366871526087,-4.9308275213244324,-0.76412805240375636,-2.7666867100288539,-1.7410971958228494,{"$f":"IF('[1]MONE(M)CAPARD'!GS171=\"\",\"\",'[1]MONE(M)CAPARD'!GS171)","v":3838.6760125223964},{"$f":"IF('[1]MONE(M)CARD'!HA171=\"\",\"\",'[1]MONE(M)CAPARD'!HA171)","v":3475.2135844491331},{"$f":"IF('[1]MONE(M)CAPARD'!HB171=\"\",\"\",'[1]MONE(M)CAPARD'!HB171)","v":363.46242807326325},"n.d.",{"$f":"IF('[10]II.2.Balance OSD-Activos'!J29=\"\",\"\",'[10]II.2.Balance OSD-Activos'!J29)","v":1023.6309263526531},{"$f":"IF('[10]II.2.Balance OSD-Activos'!N29=\"\",\"\",'[10]II.2.Balance OSD-Activos'!N29)","v":353.32519433670723},{"$f":"IF('[10]II.2.Balance OSD-Activos'!R29=\"\",\"\",'[10]II.2.Balance OSD-Activos'!R29)","v":17131.789652872078},{"$f":"IF('[10]II.2.Balance OSD-Activos'!S29=\"\",\"\",'[10]II.2.Balance OSD-Activos'!S29)","v":16281.176845494385},18155.42057922473,34789.922619055826,574.19162875720269,34.305876088957362,63474.495116997095,28.173114071678018,37.837717019487684,37.344736113521314,-1.9857139224063616,{"$f":"IF('[1]MONE(M)CAPARD'!AS171=\"\",\"\",'[1]MONE(M)CAPARD'!AS171)","v":"n.d."},{"$f":"IF('[1]MONE(M)CAPARD'!AT171=\"\",\"\",'[1]MONE(M)CAPARD'!AT171)","v":"n.a."},{"$f":"IF('[1]MONE(M)CAPARD'!AU171=\"\",\"\",'[1]MONE(M)CAPARD'!AU171)","v":"n.d."},{"$f":"IF('[1]MONE(M)CAPARD'!AV171=\"\",\"\",'[1]MONE(M)CAPARD'!AV171)","v":"n.d."},{"$f":"IF('[1]MONE(M)CAPARD'!AW171=\"\",\"\",'[1]MONE(M)CAPARD'!AW171)","v":"n.a."},{"$f":"IF('[1]MONE(M)CAPARD'!AX171=\"\",\"\",'[1]MONE(M)CAPARD'!AX171)","v":"n.d."},{"$f":"IF('[1]MONE(M)CAPARD'!AY171=\"\",\"\",'[1]MONE(M)CAPARD'!AY171)","v":"n.a."},{"$f":"IF('[1]FISCAL(M)'!$K171=\"\",\"\",'[1]FISCAL(M)'!$K171)","v":-731.29396676980605},{"$f":"IF('[1]FISCAL(M)'!$L171=\"\",\"\",'[1]FISCAL(M)'!$L171)","v":-761.2630019798064},{"$f":"IF('[1]FISCAL(M)'!$AY171=\"\",\"\",'[1]FISCAL(M)'!$AY171)","v":"n.d."},{"$f":"IF('[1]FISCAL(M)'!$BI171=\"\",\"\",'[1]FISCAL(M)'!$BI171)","v":"n.d."},{"$f":"IF('[1]FISCAL(M)'!$BS171=\"\",\"\",'[1]FISCAL(M)'!$BS171)","v":"n.d."},{"$f":"IF('[1]FISCAL(M)'!$AZ171=\"\",\"\",'[1]FISCAL(M)'!$AZ171)","v":"n.d."},{"$f":"IF('[1]FISCAL(M)'!$BJ171=\"\",\"\",'[1]FISCAL(M)'!$BJ171)","v":"n.d."},{"$f":"IF('[1]FISCAL(M)'!$BT171=\"\",\"\",'[1]FISCAL(M)'!$BT171)","v":"n.d."},{"$f":"IF('[2]MONE(M)'!$AO171=\"\",\"\",'[2]MONE(M)'!$AO171)","v":1998030.5642120999},{"$f":"IF('[3]MONE(M)'!$AO171=\"\",\"\",'[3]MONE(M)'!$AO171)","v":6186.051742857142},{"$f":"IF('[4]MONE(M)'!$AO171=\"\",\"\",'[4]MONE(M)'!$AO171)","v":38346.304910672923},{"$f":"IF('[5]MONE(M)'!$AO171=\"\",\"\",'[5]MONE(M)'!$AO171)","v":47538.801702526427},{"$f":"IF('[6]MONE(M)'!$AO171=\"\",\"\",'[6]MONE(M)'!$AO171)","v":12226.691024},{"$f":"IF('[7]MONE(M)'!$AO171=\"\",\"\",'[7]MONE(M)'!$AO171)","v":193984.12053185},{"$f":"IF('[8]MONE(M)'!$AO171=\"\",\"\",'[8]MONE(M)'!$AO171)","v":10011.83390279},17.536565853873775,6.9581522899829773,5.2102298630555266,12.289096982609159,22.777963131517588,32.716896743169357,"n.d.",{"$f":"IF('[1]FISCAL(M)'!$K171=\"\",\"\",'[1]FISCAL(M)'!$K171)","v":-731.29396676980605},{"$f":"+'[1]REAL(A)'!$AO$23","v":"n.d."},"n.d.",{"$f":"IF('[1]FISCAL(M)'!$L171=\"\",\"\",'[1]FISCAL(M)'!$L171)","v":-761.2630019798064},{"$f":"+'[1]REAL(A)'!$AP$23","v":"n.d."},"n.d.","n.d.",{"$f":"'[1]Gráfico REM'!BG165","v":7901.3010483531034},{"$f":"'[1]Gráfico REM'!BH165","v":25859.961965965398},{"$f":"'[1]Gráfico REM'!BI165","v":1169.6838687733552},"n.d.",13.410546307569371,-3.2416724404438879,25.061454323023668,"n.d.",{"$f":"'[1]Gráfico REM'!BK165","v":8342.3016350051039},{"$f":"'[1]Gráfico REM'!BL165","v":35871.795868755398},{"$f":"'[1]Gráfico REM'!BM165","v":7708.1003401533553},"n.d.","n.d.","n.d.","n.d."]
[2003,"julio","2003-julio",{"$f":"IF('[1]REAL IPC(M)'!$AL172=\"\",\"\",+'[1]REAL IPC(M)'!$AL172)","v":12.076559565882739},{"$f":"IF('[1]REAL IPC(M)'!$BE172=\"\",\"\",+'[1]REAL IPC(M)'!$BE172)","v":12.753428537479049},{"$f":"IF('[1]REAL IPC(M)'!$AM172=\"\",\"\",+'[1]REAL IPC(M)'!$AM172)","v":11.392310698925744},{"$f":"IF('[1]REAL IPC(M)'!$BI172=\"\",\"\",+'[1]REAL IPC(M)'!$BI172)","v":11.89875170106156},{"$f":"IF('[1]REAL IMAE(M)'!BJ172=\"\",\"\",'[1]REAL IMAE(M)'!BJ172)","v":"n.d."},{"$f":"IF('[1]REAL IMAE(M)'!BK172=\"\",\"\",'[1]REAL IMAE(M)'!BK172)","v":"n.d."},{"$f":"IF('[1]REAL IMAE(M)'!BN172=\"\",\"\",'[1]REAL IMAE(M)'!BN172)","v":"n.d."},{"$f":"IF('[1]REAL IMAE(M)'!BO172=\"\",\"\",'[1]REAL IMAE(M)'!BO172)","v":"n.d."},{"$f":"IF('[1]EXT RIN(M)'!$K172=\"\",\"\",'[1]EXT RIN(M)'!$K172)","v":7650.0005756941255},"",{"$f":"IF('[1]EXT RIN(M)'!$L172=\"\",\"\",'[1]EXT RIN(M)'!$L172)","v":8919.3132505869762},"",{"$f":"IF('[1]MONE(M)CARD'!EG172=\"\",\"\",'[1]MONE(M)CARD'!EG172)","v":8651.1479836304788},{"$f":"IF('[1]MONE(M)CARD'!EK172=\"\",\"\",'[1]MONE(M)CARD'!EK172)","v":18617.07573065973},{"$f":"IF('[1]MONE(M)CARD'!EP172=\"\",\"\",'[1]MONE(M)CARD'!EP172)","v":7865.8025904189053},{"$f":"IF('[1]MONE(M)CARD'!ES172=\"\",\"\",'[1]MONE(M)CARD'!ES172)","v":5.3258499947978377},{"$f":"IF('[1]MONE(M)CARD'!EV172=\"\",\"\",'[1]MONE(M)CARD'!EV172)","v":0.94827949692397606},{"$f":"IF('[1]MONE(M)CARD'!EZ172=\"\",\"\",'[1]MONE(M)CARD'!EZ172)","v":3.219464476014644},{"$f":"IF('[1]MONE(M)CAPARD'!FC172=\"\",\"\",'[1]MONE(M)CAPARD'!FC172)","v":9876.1982601704804},{"$f":"IF('[1]MONE(M)CAPARD'!FG172=\"\",\"\",'[1]MONE(M)CAPARD'!FG172)","v":27366.868382469729},{"$f":"IF('[1]MONE(M)CAPARD'!FL172=\"\",\"\",'[1]MONE(M)CAPARD'!FL172)","v":7865.8025904189053},{"$f":"IF('[1]MONE(M)CAPARD'!FO172=\"\",\"\",'[1]MONE(M)CAPARD'!FO172)","v":20.240571359764026},{"$f":"IF('[1]MONE(M)CAPARD'!FR172=\"\",\"\",'[1]MONE(M)CAPARD'!FR172)","v":37.875629162949039},{"$f":"IF('[1]MONE(M)CAPARD'!FV172=\"\",\"\",'[1]MONE(M)CAPARD'!FV172)","v":32.524330828854175},{"$f":"IF('[1]MONE(M)CARD'!FV172=\"\",\"\",'[1]MONE(M)CARD'!FV172)","v":396.87488498760138},{"$f":"IF('[1]MONE(M)CARD'!GD172=\"\",\"\",'[1]MONE(M)CARD'!GD172)","v":36.097255333868446},{"$f":"IF('[1]MONE(M)CARD'!GE172=\"\",\"\",'[1]MONE(M)CARD'!GE172)","v":3150.1729945901025},-2.3855570035695162,{"$f":"IF('[9]II.2.Balance OSD-Activos'!J30=\"\",\"\",'[9]II.2.Balance OSD-Activos'!J30)","v":164.26802810462885},{"$f":"IF('[9]II.2.Balance OSD-Activos'!N30=\"\",\"\",'[9]II.2.Balance OSD-Activos'!N30)","v":12.710280309837836},{"$f":"IF('[9]II.2.Balance OSD-Activos'!R30=\"\",\"\",'[9]II.2.Balance OSD-Activos'!R30)","v":12280.319667025882},{"$f":"IF('[9]II.2.Balance OSD-Activos'!S30=\"\",\"\",'[9]II.2.Balance OSD-Activos'!S30)","v":11634.157927280159},12444.587695130511,24091.45590272051,-0.7309633916180891,-6.9202451927831587,461.83169039166467,-6.9978096929678602,-3.4509230667535418,-5.2340816001111286,-2.4673948900822746,{"$f":"IF('[1]MONE(M)CAPARD'!GS172=\"\",\"\",'[1]MONE(M)CAPARD'!GS172)","v":3886.4087938799812},{"$f":"IF('[1]MONE(M)CARD'!HA172=\"\",\"\",'[1]MONE(M)CAPARD'!HA172)","v":3367.4074665001026},{"$f":"IF('[1]MONE(M)CAPARD'!HB172=\"\",\"\",'[1]MONE(M)CAPARD'!HB172)","v":519.0013273798786},"n.d.",{"$f":"IF('[10]II.2.Balance OSD-Activos'!J30=\"\",\"\",'[10]II.2.Balance OSD-Activos'!J30)","v":972.90662069462894},{"$f":"IF('[10]II.2.Balance OSD-Activos'!N30=\"\",\"\",'[10]II.2.Balance OSD-Activos'!N30)","v":384.87381311983785},{"$f":"IF('[10]II.2.Balance OSD-Activos'!R30=\"\",\"\",'[10]II.2.Balance OSD-Activos'!R30)","v":16710.977214675884},{"$f":"IF('[10]II.2.Balance OSD-Activos'!S30=\"\",\"\",'[10]II.2.Balance OSD-Activos'!S30)","v":16212.473981860157},17683.883835370514,34281.231630350507,487.93852985656417,32.267264433330077,16912.552024146742,26.556761165498166,34.543420120033531,34.848321846859776,-2.4964142666615388,{"$f":"IF('[1]MONE(M)CAPARD'!AS172=\"\",\"\",'[1]MONE(M)CAPARD'!AS172)","v":"n.d."},{"$f":"IF('[1]MONE(M)CAPARD'!AT172=\"\",\"\",'[1]MONE(M)CAPARD'!AT172)","v":"n.a."},{"$f":"IF('[1]MONE(M)CAPARD'!AU172=\"\",\"\",'[1]MONE(M)CAPARD'!AU172)","v":"n.d."},{"$f":"IF('[1]MONE(M)CAPARD'!AV172=\"\",\"\",'[1]MONE(M)CAPARD'!AV172)","v":"n.d."},{"$f":"IF('[1]MONE(M)CAPARD'!AW172=\"\",\"\",'[1]MONE(M)CAPARD'!AW172)","v":"n.a."},{"$f":"IF('[1]MONE(M)CAPARD'!AX172=\"\",\"\",'[1]MONE(M)CAPARD'!AX172)","v":"n.d."},{"$f":"IF('[1]MONE(M)CAPARD'!AY172=\"\",\"\",'[1]MONE(M)CAPARD'!AY172)","v":"n.a."},{"$f":"IF('[1]FISCAL(M)'!$K172=\"\",\"\",'[1]FISCAL(M)'!$K172)","v":-1207.9481480566897},{"$f":"IF('[1]FISCAL(M)'!$L172=\"\",\"\",'[1]FISCAL(M)'!$L172)","v":-1422.15329881669},{"$f":"IF('[1]FISCAL(M)'!$AY172=\"\",\"\",'[1]FISCAL(M)'!$AY172)","v":"n.d."},{"$f":"IF('[1]FISCAL(M)'!$BI172=\"\",\"\",'[1]FISCAL(M)'!$BI172)","v":"n.d."},{"$f":"IF('[1]FISCAL(M)'!$BS172=\"\",\"\",'[1]FISCAL(M)'!$BS172)","v":"n.d."},{"$f":"IF('[1]FISCAL(M)'!$AZ172=\"\",\"\",'[1]FISCAL(M)'!$AZ172)","v":"n.d."},{"$f":"IF('[1]FISCAL(M)'!$BJ172=\"\",\"\",'[1]FISCAL(M)'!$BJ172)","v":"n.d."},{"$f":"IF('[1]FISCAL(M)'!$BT172=\"\",\"\",'[1]FISCAL(M)'!$BT172)","v":"n.d."},{"$f":"IF('[2]MONE(M)'!$AO172=\"\",\"\",'[2]MONE(M)'!$AO172)","v":2029534.6683925537},{"$f":"IF('[3]MONE(M)'!$AO172=\"\",\"\",'[3]MONE(M)'!$AO172)","v":6222.6887428571426},{"$f":"IF('[4]MONE(M)'!$AO172=\"\",\"\",'[4]MONE(M)'!$AO172)","v":38154.617088068444},{"$f":"IF('[5]MONE(M)'!$AO172=\"\",\"\",'[5]MONE(M)'!$AO172)","v":48027.698329458064},{"$f":"IF('[6]MONE(M)'!$AO172=\"\",\"\",'[6]MONE(M)'!$AO172)","v":12599.967671},{"$f":"IF('[7]MONE(M)'!$AO172=\"\",\"\",'[7]MONE(M)'!$AO172)","v":197515.72991003998},{"$f":"IF('[8]MONE(M)'!$AO172=\"\",\"\",'[8]MONE(M)'!$AO172)","v":10045.76826959},18.269539431556382,7.5591431039838897,4.6669888491225331,12.154026109536531,24.409880852049646,35.978471604020392,"n.d.",{"$f":"IF('[1]FISCAL(M)'!$K172=\"\",\"\",'[1]FISCAL(M)'!$K172)","v":-1207.9481480566897},{"$f":"+'[1]REAL(A)'!$AO$23","v":"n.d."},"n.d.",{"$f":"IF('[1]FISCAL(M)'!$L172=\"\",\"\",'[1]FISCAL(M)'!$L172)","v":-1422.15329881669},{"$f":"+'[1]REAL(A)'!$AP$23","v":"n.d."},"n.d.","n.d.",{"$f":"'[1]Gráfico REM'!BG166","v":7750.7483942063946},{"$f":"'[1]Gráfico REM'!BH166","v":25317.856524754632},{"$f":"'[1]Gráfico REM'!BI166","v":1211.603442771687},"n.d.",7.8392673752365249,-5.4490624700293093,30.598109812475549,"n.d.",{"$f":"'[1]Gráfico REM'!BK166","v":8309.775339908394},{"$f":"'[1]Gráfico REM'!BL166","v":35363.624794344636},{"$f":"'[1]Gráfico REM'!BM166","v":7537.7424915516867},"n.d.","n.d.","n.d.","n.d."]
[2003,"agosto","2003-agosto",{"$f":"IF('[1]REAL IPC(M)'!$AL173=\"\",\"\",+'[1]REAL IPC(M)'!$AL173)","v":12.732036266889324},{"$f":"IF('[1]REAL IPC(M)'!$BE173=\"\",\"\",+'[1]REAL IPC(M)'!$BE173)","v":12.933474175740066},{"$f":"IF('[1]REAL IPC(M)'!$AM173=\"\",\"\",+'[1]REAL IPC(M)'!$AM173)","v":11.994741082422976},{"$f":"IF('[1]REAL IPC(M)'!$BI173=\"\",\"\",+'[1]REAL IPC(M)'!$BI173)","v":12.085902881641841},{"$f":"IF('[1]REAL IMAE(M)'!BJ173=\"\",\"\",'[1]REAL IMAE(M)'!BJ173)","v":"n.d."},{"$f":"IF('[1]REAL IMAE(M)'!BK173=\"\",\"\",'[1]REAL IMAE(M)'!BK173)","v":"n.d."},{"$f":"IF('[1]REAL IMAE(M)'!BN173=\"\",\"\",'[1]REAL IMAE(M)'!BN173)","v":"n.d."},{"$f":"IF('[1]REAL IMAE(M)'!BO173=\"\",\"\",'[1]REAL IMAE(M)'!BO173)","v":"n.d."},{"$f":"IF('[1]EXT RIN(M)'!$K173=\"\",\"\",'[1]EXT RIN(M)'!$K173)","v":8078.4117113547582},"",{"$f":"IF('[1]EXT RIN(M)'!$L173=\"\",\"\",'[1]EXT RIN(M)'!$L173)","v":9299.0378931412379},"",{"$f":"IF('[1]MONE(M)CARD'!EG173=\"\",\"\",'[1]MONE(M)CARD'!EG173)","v":8551.0646545562304},{"$f":"IF('[1]MONE(M)CARD'!EK173=\"\",\"\",'[1]MONE(M)CARD'!EK173)","v":19187.78501021901},{"$f":"IF('[1]MONE(M)CARD'!EP173=\"\",\"\",'[1]MONE(M)CARD'!EP173)","v":7791.9672446364348},{"$f":"IF('[1]MONE(M)CARD'!ES173=\"\",\"\",'[1]MONE(M)CARD'!ES173)","v":4.4874087730079948},{"$f":"IF('[1]MONE(M)CARD'!EV173=\"\",\"\",'[1]MONE(M)CARD'!EV173)","v":3.1759138923457053},{"$f":"IF('[1]MONE(M)CARD'!EZ173=\"\",\"\",'[1]MONE(M)CARD'!EZ173)","v":4.5138631588875544},{"$f":"IF('[1]MONE(M)CAPARD'!FC173=\"\",\"\",'[1]MONE(M)CAPARD'!FC173)","v":9819.1080645862312},{"$f":"IF('[1]MONE(M)CAPARD'!FG173=\"\",\"\",'[1]MONE(M)CAPARD'!FG173)","v":27971.034457399008},{"$f":"IF('[1]MONE(M)CAPARD'!FL173=\"\",\"\",'[1]MONE(M)CAPARD'!FL173)","v":7791.9672446364275},{"$f":"IF('[1]MONE(M)CAPARD'!FO173=\"\",\"\",'[1]MONE(M)CAPARD'!FO173)","v":19.981920331299996},{"$f":"IF('[1]MONE(M)CAPARD'!FR173=\"\",\"\",'[1]MONE(M)CAPARD'!FR173)","v":40.562155170374268},{"$f":"IF('[1]MONE(M)CAPARD'!FV173=\"\",\"\",'[1]MONE(M)CAPARD'!FV173)","v":34.079731259434489},{"$f":"IF('[1]MONE(M)CARD'!FV173=\"\",\"\",'[1]MONE(M)CARD'!FV173)","v":408.02217186346718},{"$f":"IF('[1]MONE(M)CARD'!GD173=\"\",\"\",'[1]MONE(M)CARD'!GD173)","v":40.126875281278949},{"$f":"IF('[1]MONE(M)CARD'!GE173=\"\",\"\",'[1]MONE(M)CARD'!GE173)","v":3050.4790704801339},-8.8516275199712506,{"$f":"IF('[9]II.2.Balance OSD-Activos'!J31=\"\",\"\",'[9]II.2.Balance OSD-Activos'!J31)","v":164.08011030745911},{"$f":"IF('[9]II.2.Balance OSD-Activos'!N31=\"\",\"\",'[9]II.2.Balance OSD-Activos'!N31)","v":12.975130687494396},{"$f":"IF('[9]II.2.Balance OSD-Activos'!R31=\"\",\"\",'[9]II.2.Balance OSD-Activos'!R31)","v":12412.861787761667},{"$f":"IF('[9]II.2.Balance OSD-Activos'!S31=\"\",\"\",'[9]II.2.Balance OSD-Activos'!S31)","v":11816.883291724838},12576.941898069126,24406.800320481459,0.77527348257444562,-6.0830391893656133,379.23384489445971,-6.1674505365240222,-2.6641712023070641,-4.4166955163362553,0.81738608377487321,{"$f":"IF('[1]MONE(M)CAPARD'!GS173=\"\",\"\",'[1]MONE(M)CAPARD'!GS173)","v":4047.0476521498772},{"$f":"IF('[1]MONE(M)CARD'!HA173=\"\",\"\",'[1]MONE(M)CAPARD'!HA173)","v":3267.7818378901334},{"$f":"IF('[1]MONE(M)CAPARD'!HB173=\"\",\"\",'[1]MONE(M)CAPARD'!HB173)","v":779.26581425974382},"n.d.",{"$f":"IF('[10]II.2.Balance OSD-Activos'!J31=\"\",\"\",'[10]II.2.Balance OSD-Activos'!J31)","v":961.85400728745913},{"$f":"IF('[10]II.2.Balance OSD-Activos'!N31=\"\",\"\",'[10]II.2.Balance OSD-Activos'!N31)","v":376.64580374749443},{"$f":"IF('[10]II.2.Balance OSD-Activos'!R31=\"\",\"\",'[10]II.2.Balance OSD-Activos'!R31)","v":16880.230145141664},{"$f":"IF('[10]II.2.Balance OSD-Activos'!S31=\"\",\"\",'[10]II.2.Balance OSD-Activos'!S31)","v":16409.859805864839},17842.084152429125,34628.589762041462,490.754726170472,33.233844260740717,13811.337083274662,27.602728293527612,35.168238970113343,35.614459724469015,0.76613787760923913,{"$f":"IF('[1]MONE(M)CAPARD'!AS173=\"\",\"\",'[1]MONE(M)CAPARD'!AS173)","v":"n.d."},{"$f":"IF('[1]MONE(M)CAPARD'!AT173=\"\",\"\",'[1]MONE(M)CAPARD'!AT173)","v":"n.a."},{"$f":"IF('[1]MONE(M)CAPARD'!AU173=\"\",\"\",'[1]MONE(M)CAPARD'!AU173)","v":"n.d."},{"$f":"IF('[1]MONE(M)CAPARD'!AV173=\"\",\"\",'[1]MONE(M)CAPARD'!AV173)","v":"n.d."},{"$f":"IF('[1]MONE(M)CAPARD'!AW173=\"\",\"\",'[1]MONE(M)CAPARD'!AW173)","v":"n.a."},{"$f":"IF('[1]MONE(M)CAPARD'!AX173=\"\",\"\",'[1]MONE(M)CAPARD'!AX173)","v":"n.d."},{"$f":"IF('[1]MONE(M)CAPARD'!AY173=\"\",\"\",'[1]MONE(M)CAPARD'!AY173)","v":"n.a."},{"$f":"IF('[1]FISCAL(M)'!$K173=\"\",\"\",'[1]FISCAL(M)'!$K173)","v":-1375.3816331803177},{"$f":"IF('[1]FISCAL(M)'!$L173=\"\",\"\",'[1]FISCAL(M)'!$L173)","v":-1701.8802473403182},{"$f":"IF('[1]FISCAL(M)'!$AY173=\"\",\"\",'[1]FISCAL(M)'!$AY173)","v":"n.d."},{"$f":"IF('[1]FISCAL(M)'!$BI173=\"\",\"\",'[1]FISCAL(M)'!$BI173)","v":"n.d."},{"$f":"IF('[1]FISCAL(M)'!$BS173=\"\",\"\",'[1]FISCAL(M)'!$BS173)","v":"n.d."},{"$f":"IF('[1]FISCAL(M)'!$AZ173=\"\",\"\",'[1]FISCAL(M)'!$AZ173)","v":"n.d."},{"$f":"IF('[1]FISCAL(M)'!$BJ173=\"\",\"\",'[1]FISCAL(M)'!$BJ173)","v":"n.d."},{"$f":"IF('[1]FISCAL(M)'!$BT173=\"\",\"\",'[1]FISCAL(M)'!$BT173)","v":"n.d."},{"$f":"IF('[2]MONE(M)'!$AO173=\"\",\"\",'[2]MONE(M)'!$AO173)","v":2042080.423384988},{"$f":"IF('[3]MONE(M)'!$AO173=\"\",\"\",'[3]MONE(M)'!$AO173)","v":6220.5107428571428},{"$f":"IF('[4]MONE(M)'!$AO173=\"\",\"\",'[4]MONE(M)'!$AO173)","v":38546.529042018679},{"$f":"IF('[5]MONE(M)'!$AO173=\"\",\"\",'[5]MONE(M)'!$AO173)","v":48699.381771089698},{"$f":"IF('[6]MONE(M)'!$AO173=\"\",\"\",'[6]MONE(M)'!$AO173)","v":12938.940635999999},{"$f":"IF('[7]MONE(M)'!$AO173=\"\",\"\",'[7]MONE(M)'!$AO173)","v":193800.72302725},{"$f":"IF('[8]MONE(M)'!$AO173=\"\",\"\",'[8]MONE(M)'!$AO173)","v":10095.383021199999},17.473419553432802,7.3809726014518962,5.4644339871294134,12.743330419152365,22.72292822673576,33.314392717339473,"n.d.",{"$f":"IF('[1]FISCAL(M)'!$K173=\"\",\"\",'[1]FISCAL(M)'!$K173)","v":-1375.3816331803177},{"$f":"+'[1]REAL(A)'!$AO$23","v":"n.d."},"n.d.",{"$f":"IF('[1]FISCAL(M)'!$L173=\"\",\"\",'[1]FISCAL(M)'!$L173)","v":-1701.8802473403182},{"$f":"+'[1]REAL(A)'!$AP$23","v":"n.d."},"n.d.","n.d.",{"$f":"'[1]Gráfico REM'!BG167","v":8127.5974801717839},{"$f":"'[1]Gráfico REM'!BH167","v":25688.126176884172},{"$f":"'[1]Gráfico REM'!BI167","v":1122.0245258314744},"n.d.",13.270845087141669,-4.3666049751465374,19.401636793435916,"n.d.",{"$f":"'[1]Gráfico REM'!BK167","v":8708.0056806537832},{"$f":"'[1]Gráfico REM'!BL167","v":35783.509198084168},{"$f":"'[1]Gráfico REM'!BM167","v":7378.6127488914735},"n.d.","n.d.","n.d.","n.d."]
[2003,"septiembre","2003-septiembre",{"$f":"IF('[1]REAL IPC(M)'!$AL174=\"\",\"\",+'[1]REAL IPC(M)'!$AL174)","v":12.994654945876349},{"$f":"IF('[1]REAL IPC(M)'!$BE174=\"\",\"\",+'[1]REAL IPC(M)'!$BE174)","v":13.09723307503492},{"$f":"IF('[1]REAL IPC(M)'!$AM174=\"\",\"\",+'[1]REAL IPC(M)'!$AM174)","v":12.238087666065356},{"$f":"IF('[1]REAL IPC(M)'!$BI174=\"\",\"\",+'[1]REAL IPC(M)'!$BI174)","v":12.258496135656172},{"$f":"IF('[1]REAL IMAE(M)'!BJ174=\"\",\"\",'[1]REAL IMAE(M)'!BJ174)","v":"n.d."},{"$f":"IF('[1]REAL IMAE(M)'!BK174=\"\",\"\",'[1]REAL IMAE(M)'!BK174)","v":"n.d."},{"$f":"IF('[1]REAL IMAE(M)'!BN174=\"\",\"\",'[1]REAL IMAE(M)'!BN174)","v":"n.d."},{"$f":"IF('[1]REAL IMAE(M)'!BO174=\"\",\"\",'[1]REAL IMAE(M)'!BO174)","v":"n.d."},{"$f":"IF('[1]EXT RIN(M)'!$K174=\"\",\"\",'[1]EXT RIN(M)'!$K174)","v":7983.5524035407252},"",{"$f":"IF('[1]EXT RIN(M)'!$L174=\"\",\"\",'[1]EXT RIN(M)'!$L174)","v":9030.2890626496846},"",{"$f":"IF('[1]MONE(M)CARD'!EG174=\"\",\"\",'[1]MONE(M)CARD'!EG174)","v":8386.9556188341321},{"$f":"IF('[1]MONE(M)CARD'!EK174=\"\",\"\",'[1]MONE(M)CARD'!EK174)","v":19527.439068565691},{"$f":"IF('[1]MONE(M)CARD'!EP174=\"\",\"\",'[1]MONE(M)CARD'!EP174)","v":7796.3445434331443},{"$f":"IF('[1]MONE(M)CARD'!ES174=\"\",\"\",'[1]MONE(M)CARD'!ES174)","v":4.5042456200769632},{"$f":"IF('[1]MONE(M)CARD'!EV174=\"\",\"\",'[1]MONE(M)CARD'!EV174)","v":3.2347234804185998},{"$f":"IF('[1]MONE(M)CARD'!EZ174=\"\",\"\",'[1]MONE(M)CARD'!EZ174)","v":4.2411735494785274},{"$f":"IF('[1]MONE(M)CAPARD'!FC174=\"\",\"\",'[1]MONE(M)CAPARD'!FC174)","v":9646.2674089541324},{"$f":"IF('[1]MONE(M)CAPARD'!FG174=\"\",\"\",'[1]MONE(M)CAPARD'!FG174)","v":28284.28479736569},{"$f":"IF('[1]MONE(M)CAPARD'!FL174=\"\",\"\",'[1]MONE(M)CAPARD'!FL174)","v":7796.3445434331443},{"$f":"IF('[1]MONE(M)CAPARD'!FO174=\"\",\"\",'[1]MONE(M)CAPARD'!FO174)","v":20.195687736620972},{"$f":"IF('[1]MONE(M)CAPARD'!FR174=\"\",\"\",'[1]MONE(M)CAPARD'!FR174)","v":40.277090452064314},{"$f":"IF('[1]MONE(M)CAPARD'!FV174=\"\",\"\",'[1]MONE(M)CAPARD'!FV174)","v":33.478765285668977},{"$f":"IF('[1]MONE(M)CARD'!FV174=\"\",\"\",'[1]MONE(M)CARD'!FV174)","v":397.18670464532397},{"$f":"IF('[1]MONE(M)CARD'!GD174=\"\",\"\",'[1]MONE(M)CARD'!GD174)","v":87.484139406586763},{"$f":"IF('[1]MONE(M)CARD'!GE174=\"\",\"\",'[1]MONE(M)CARD'!GE174)","v":2906.1845224648418},-14.563568785332404,{"$f":"IF('[9]II.2.Balance OSD-Activos'!J32=\"\",\"\",'[9]II.2.Balance OSD-Activos'!J32)","v":166.35760945561231},{"$f":"IF('[9]II.2.Balance OSD-Activos'!N32=\"\",\"\",'[9]II.2.Balance OSD-Activos'!N32)","v":13.426554447073055},{"$f":"IF('[9]II.2.Balance OSD-Activos'!R32=\"\",\"\",'[9]II.2.Balance OSD-Activos'!R32)","v":12638.206660606202},{"$f":"IF('[9]II.2.Balance OSD-Activos'!S32=\"\",\"\",'[9]II.2.Balance OSD-Activos'!S32)","v":11738.954540811854},12804.564270061814,24556.945365320738,-0.56162008679788711,-4.5141718500493528,1.1124604375835068,-4.5641054058257469,-3.822674006209692,-4.1819346663110935,0.23476085002516189,{"$f":"IF('[1]MONE(M)CAPARD'!GS174=\"\",\"\",'[1]MONE(M)CAPARD'!GS174)","v":4037.6757636515108},{"$f":"IF('[1]MONE(M)CARD'!HA174=\"\",\"\",'[1]MONE(M)CAPARD'!HA174)","v":3123.5053364148421},{"$f":"IF('[1]MONE(M)CAPARD'!HB174=\"\",\"\",'[1]MONE(M)CAPARD'!HB174)","v":914.17042723666873},"n.d.",{"$f":"IF('[10]II.2.Balance OSD-Activos'!J32=\"\",\"\",'[10]II.2.Balance OSD-Activos'!J32)","v":767.48052099561221},{"$f":"IF('[10]II.2.Balance OSD-Activos'!N32=\"\",\"\",'[10]II.2.Balance OSD-Activos'!N32)","v":403.83719067707307},{"$f":"IF('[10]II.2.Balance OSD-Activos'!R32=\"\",\"\",'[10]II.2.Balance OSD-Activos'!R32)","v":17277.659839136199},{"$f":"IF('[10]II.2.Balance OSD-Activos'!S32=\"\",\"\",'[10]II.2.Balance OSD-Activos'!S32)","v":16330.920191001853},18045.140360131812,34779.897741810739,358.75280290744354,34.565701341195812,2941.2100235039729,30.470166181212655,33.799328511577322,35.706720218958885,9.2260494489870837E-2,{"$f":"IF('[1]MONE(M)CAPARD'!AS174=\"\",\"\",'[1]MONE(M)CAPARD'!AS174)","v":"n.d."},{"$f":"IF('[1]MONE(M)CAPARD'!AT174=\"\",\"\",'[1]MONE(M)CAPARD'!AT174)","v":"n.a."},{"$f":"IF('[1]MONE(M)CAPARD'!AU174=\"\",\"\",'[1]MONE(M)CAPARD'!AU174)","v":"n.d."},{"$f":"IF('[1]MONE(M)CAPARD'!AV174=\"\",\"\",'[1]MONE(M)CAPARD'!AV174)","v":"n.d."},{"$f":"IF('[1]MONE(M)CAPARD'!AW174=\"\",\"\",'[1]MONE(M)CAPARD'!AW174)","v":"n.a."},{"$f":"IF('[1]MONE(M)CAPARD'!AX174=\"\",\"\",'[1]MONE(M)CAPARD'!AX174)","v":"n.d."},{"$f":"IF('[1]MONE(M)CAPARD'!AY174=\"\",\"\",'[1]MONE(M)CAPARD'!AY174)","v":"n.a."},{"$f":"IF('[1]FISCAL(M)'!$K174=\"\",\"\",'[1]FISCAL(M)'!$K174)","v":-1543.1468298402567},{"$f":"IF('[1]FISCAL(M)'!$L174=\"\",\"\",'[1]FISCAL(M)'!$L174)","v":-1968.5770815402573},{"$f":"IF('[1]FISCAL(M)'!$AY174=\"\",\"\",'[1]FISCAL(M)'!$AY174)","v":"n.d."},{"$f":"IF('[1]FISCAL(M)'!$BI174=\"\",\"\",'[1]FISCAL(M)'!$BI174)","v":"n.d."},{"$f":"IF('[1]FISCAL(M)'!$BS174=\"\",\"\",'[1]FISCAL(M)'!$BS174)","v":"n.d."},{"$f":"IF('[1]FISCAL(M)'!$AZ174=\"\",\"\",'[1]FISCAL(M)'!$AZ174)","v":"n.d."},{"$f":"IF('[1]FISCAL(M)'!$BJ174=\"\",\"\",'[1]FISCAL(M)'!$BJ174)","v":"n.d."},{"$f":"IF('[1]FISCAL(M)'!$BT174=\"\",\"\",'[1]FISCAL(M)'!$BT174)","v":"n.d."},{"$f":"IF('[2]MONE(M)'!$AO174=\"\",\"\",'[2]MONE(M)'!$AO174)","v":2079781.4646080632},{"$f":"IF('[3]MONE(M)'!$AO174=\"\",\"\",'[3]MONE(M)'!$AO174)","v":6247.6117428571433},{"$f":"IF('[4]MONE(M)'!$AO174=\"\",\"\",'[4]MONE(M)'!$AO174)","v":36597.350374896159},{"$f":"IF('[5]MONE(M)'!$AO174=\"\",\"\",'[5]MONE(M)'!$AO174)","v":49180.531348771467},{"$f":"IF('[6]MONE(M)'!$AO174=\"\",\"\",'[6]MONE(M)'!$AO174)","v":13462.753408},{"$f":"IF('[7]MONE(M)'!$AO174=\"\",\"\",'[7]MONE(M)'!$AO174)","v":193587.22985244001},{"$f":"IF('[8]MONE(M)'!$AO174=\"\",\"\",'[8]MONE(M)'!$AO174)","v":10064.665276559997},17.336928816374364,8.0099134051240704,0,12.348340976623117,26.520302197141877,33.426936654132945,"n.d.",{"$f":"IF('[1]FISCAL(M)'!$K174=\"\",\"\",'[1]FISCAL(M)'!$K174)","v":-1543.1468298402567},{"$f":"+'[1]REAL(A)'!$AO$23","v":"n.d."},"n.d.",{"$f":"IF('[1]FISCAL(M)'!$L174=\"\",\"\",'[1]FISCAL(M)'!$L174)","v":-1968.5770815402573},{"$f":"+'[1]REAL(A)'!$AP$23","v":"n.d."},"n.d.","n.d.",{"$f":"'[1]Gráfico REM'!BG168","v":7635.6132067677308},{"$f":"'[1]Gráfico REM'!BH168","v":25449.9254798449},{"$f":"'[1]Gráfico REM'!BI168","v":1099.8789336023628},"n.d.",4.1043632956600407,-5.5421462998116233,18.289610801175726,"n.d.",{"$f":"'[1]Gráfico REM'!BK168","v":8223.2039107937308},{"$f":"'[1]Gráfico REM'!BL168","v":35514.590756404898},{"$f":"'[1]Gráfico REM'!BM168","v":7330.479925652362},"n.d.","n.d.","n.d.","n.d."]
[2003,"octubre","2003-octubre",{"$f":"IF('[1]REAL IPC(M)'!$AL175=\"\",\"\",+'[1]REAL IPC(M)'!$AL175)","v":13.167432501143338},{"$f":"IF('[1]REAL IPC(M)'!$BE175=\"\",\"\",+'[1]REAL IPC(M)'!$BE175)","v":13.242654230475615},{"$f":"IF('[1]REAL IPC(M)'!$AM175=\"\",\"\",+'[1]REAL IPC(M)'!$AM175)","v":12.372675547035051},{"$f":"IF('[1]REAL IPC(M)'!$BI175=\"\",\"\",+'[1]REAL IPC(M)'!$BI175)","v":12.414470754487406},{"$f":"IF('[1]REAL IMAE(M)'!BJ175=\"\",\"\",'[1]REAL IMAE(M)'!BJ175)","v":"n.d."},{"$f":"IF('[1]REAL IMAE(M)'!BK175=\"\",\"\",'[1]REAL IMAE(M)'!BK175)","v":"n.d."},{"$f":"IF('[1]REAL IMAE(M)'!BN175=\"\",\"\",'[1]REAL IMAE(M)'!BN175)","v":"n.d."},{"$f":"IF('[1]REAL IMAE(M)'!BO175=\"\",\"\",'[1]REAL IMAE(M)'!BO175)","v":"n.d."},{"$f":"IF('[1]EXT RIN(M)'!$K175=\"\",\"\",'[1]EXT RIN(M)'!$K175)","v":7753.021110945172},"",{"$f":"IF('[1]EXT RIN(M)'!$L175=\"\",\"\",'[1]EXT RIN(M)'!$L175)","v":8737.1272924986315},"",{"$f":"IF('[1]MONE(M)CARD'!EG175=\"\",\"\",'[1]MONE(M)CARD'!EG175)","v":8341.4303067919009},{"$f":"IF('[1]MONE(M)CARD'!EK175=\"\",\"\",'[1]MONE(M)CARD'!EK175)","v":18695.036439767166},{"$f":"IF('[1]MONE(M)CARD'!EP175=\"\",\"\",'[1]MONE(M)CARD'!EP175)","v":7832.5998506908581},{"$f":"IF('[1]MONE(M)CARD'!ES175=\"\",\"\",'[1]MONE(M)CARD'!ES175)","v":1.697133892297531},{"$f":"IF('[1]MONE(M)CARD'!EV175=\"\",\"\",'[1]MONE(M)CARD'!EV175)","v":-0.71008742475693332},{"$f":"IF('[1]MONE(M)CARD'!EZ175=\"\",\"\",'[1]MONE(M)CARD'!EZ175)","v":1.4330723469432538},{"$f":"IF('[1]MONE(M)CAPARD'!FC175=\"\",\"\",'[1]MONE(M)CAPARD'!FC175)","v":9628.5958353819005},{"$f":"IF('[1]MONE(M)CAPARD'!FG175=\"\",\"\",'[1]MONE(M)CAPARD'!FG175)","v":27469.565464847168},{"$f":"IF('[1]MONE(M)CAPARD'!FL175=\"\",\"\",'[1]MONE(M)CAPARD'!FL175)","v":7832.5998506908581},{"$f":"IF('[1]MONE(M)CAPARD'!FO175=\"\",\"\",'[1]MONE(M)CAPARD'!FO175)","v":17.390011526962024},{"$f":"IF('[1]MONE(M)CAPARD'!FR175=\"\",\"\",'[1]MONE(M)CAPARD'!FR175)","v":36.240923295600581},{"$f":"IF('[1]MONE(M)CAPARD'!FV175=\"\",\"\",'[1]MONE(M)CAPARD'!FV175)","v":30.702241016796506},{"$f":"IF('[1]MONE(M)CARD'!FV175=\"\",\"\",'[1]MONE(M)CARD'!FV175)","v":427.30555439508856},{"$f":"IF('[1]MONE(M)CARD'!GD175=\"\",\"\",'[1]MONE(M)CARD'!GD175)","v":36.839581217205371},{"$f":"IF('[1]MONE(M)CARD'!GE175=\"\",\"\",'[1]MONE(M)CARD'!GE175)","v":2887.034899159843},-16.049760050896154,{"$f":"IF('[9]II.2.Balance OSD-Activos'!J33=\"\",\"\",'[9]II.2.Balance OSD-Activos'!J33)","v":148.49819153451759},{"$f":"IF('[9]II.2.Balance OSD-Activos'!N33=\"\",\"\",'[9]II.2.Balance OSD-Activos'!N33)","v":8.7963727082896419},{"$f":"IF('[9]II.2.Balance OSD-Activos'!R33=\"\",\"\",'[9]II.2.Balance OSD-Activos'!R33)","v":12457.031405055164},{"$f":"IF('[9]II.2.Balance OSD-Activos'!S33=\"\",\"\",'[9]II.2.Balance OSD-Activos'!S33)","v":11580.879218160553},12605.529596589682,24195.205187458523,-25.004541583227059,-7.2348520574347708,-3.1534127630387321,-6.9720887310873447,-6.5630293021665569,-6.9130668372968547,-2.7311321709857612,{"$f":"IF('[1]MONE(M)CAPARD'!GS175=\"\",\"\",'[1]MONE(M)CAPARD'!GS175)","v":4035.6663851906778},{"$f":"IF('[1]MONE(M)CARD'!HA175=\"\",\"\",'[1]MONE(M)CAPARD'!HA175)","v":3099.7473813498432},{"$f":"IF('[1]MONE(M)CAPARD'!HB175=\"\",\"\",'[1]MONE(M)CAPARD'!HB175)","v":935.91900384083465},"n.d.",{"$f":"IF('[10]II.2.Balance OSD-Activos'!J33=\"\",\"\",'[10]II.2.Balance OSD-Activos'!J33)","v":714.37070733451765},{"$f":"IF('[10]II.2.Balance OSD-Activos'!N33=\"\",\"\",'[10]II.2.Balance OSD-Activos'!N33)","v":381.37710950828966},{"$f":"IF('[10]II.2.Balance OSD-Activos'!R33=\"\",\"\",'[10]II.2.Balance OSD-Activos'!R33)","v":17212.801674845166},{"$f":"IF('[10]II.2.Balance OSD-Activos'!S33=\"\",\"\",'[10]II.2.Balance OSD-Activos'!S33)","v":16104.186787320552},17927.172382179684,34412.736279008524,260.77583250307379,31.927562858976021,4098.8979697696695,28.543545795917204,29.931968084052762,32.397144687586788,-3.3095755313720971,{"$f":"IF('[1]MONE(M)CAPARD'!AS175=\"\",\"\",'[1]MONE(M)CAPARD'!AS175)","v":"n.d."},{"$f":"IF('[1]MONE(M)CAPARD'!AT175=\"\",\"\",'[1]MONE(M)CAPARD'!AT175)","v":"n.a."},{"$f":"IF('[1]MONE(M)CAPARD'!AU175=\"\",\"\",'[1]MONE(M)CAPARD'!AU175)","v":"n.d."},{"$f":"IF('[1]MONE(M)CAPARD'!AV175=\"\",\"\",'[1]MONE(M)CAPARD'!AV175)","v":"n.d."},{"$f":"IF('[1]MONE(M)CAPARD'!AW175=\"\",\"\",'[1]MONE(M)CAPARD'!AW175)","v":"n.a."},{"$f":"IF('[1]MONE(M)CAPARD'!AX175=\"\",\"\",'[1]MONE(M)CAPARD'!AX175)","v":"n.d."},{"$f":"IF('[1]MONE(M)CAPARD'!AY175=\"\",\"\",'[1]MONE(M)CAPARD'!AY175)","v":"n.a."},{"$f":"IF('[1]FISCAL(M)'!$K175=\"\",\"\",'[1]FISCAL(M)'!$K175)","v":-1745.9572021568947},{"$f":"IF('[1]FISCAL(M)'!$L175=\"\",\"\",'[1]FISCAL(M)'!$L175)","v":-2258.9973495068953},{"$f":"IF('[1]FISCAL(M)'!$AY175=\"\",\"\",'[1]FISCAL(M)'!$AY175)","v":"n.d."},{"$f":"IF('[1]FISCAL(M)'!$BI175=\"\",\"\",'[1]FISCAL(M)'!$BI175)","v":"n.d."},{"$f":"IF('[1]FISCAL(M)'!$BS175=\"\",\"\",'[1]FISCAL(M)'!$BS175)","v":"n.d."},{"$f":"IF('[1]FISCAL(M)'!$AZ175=\"\",\"\",'[1]FISCAL(M)'!$AZ175)","v":"n.d."},{"$f":"IF('[1]FISCAL(M)'!$BJ175=\"\",\"\",'[1]FISCAL(M)'!$BJ175)","v":"n.d."},{"$f":"IF('[1]FISCAL(M)'!$BT175=\"\",\"\",'[1]FISCAL(M)'!$BT175)","v":"n.d."},{"$f":"IF('[2]MONE(M)'!$AO175=\"\",\"\",'[2]MONE(M)'!$AO175)","v":2109425.7564644422},{"$f":"IF('[3]MONE(M)'!$AO175=\"\",\"\",'[3]MONE(M)'!$AO175)","v":6266.851742857144},{"$f":"IF('[4]MONE(M)'!$AO175=\"\",\"\",'[4]MONE(M)'!$AO175)","v":39480.498458993025},{"$f":"IF('[5]MONE(M)'!$AO175=\"\",\"\",'[5]MONE(M)'!$AO175)","v":49678.25358820011},{"$f":"IF('[6]MONE(M)'!$AO175=\"\",\"\",'[6]MONE(M)'!$AO175)","v":13669.641947100001},{"$f":"IF('[7]MONE(M)'!$AO175=\"\",\"\",'[7]MONE(M)'!$AO175)","v":202834.07321843001},{"$f":"IF('[8]MONE(M)'!$AO175=\"\",\"\",'[8]MONE(M)'!$AO175)","v":10065.422418589998},15.897721844350921,7.0849649333053932,7.5661265144064238,12.137808808088547,24.541793903512943,38.024953530146213,"n.d.",{"$f":"IF('[1]FISCAL(M)'!$K175=\"\",\"\",'[1]FISCAL(M)'!$K175)","v":-1745.9572021568947},{"$f":"+'[1]REAL(A)'!$AO$23","v":"n.d."},"n.d.",{"$f":"IF('[1]FISCAL(M)'!$L175=\"\",\"\",'[1]FISCAL(M)'!$L175)","v":-2258.9973495068953},{"$f":"+'[1]REAL(A)'!$AP$23","v":"n.d."},"n.d.","n.d.",{"$f":"'[1]Gráfico REM'!BG169","v":7644.9238595455517},{"$f":"'[1]Gráfico REM'!BH169","v":25373.716755975431},{"$f":"'[1]Gráfico REM'!BI169","v":1268.1039740576462},"n.d.",3.4019679570264305,-7.060996310744172,35.669908118867546,"n.d.",{"$f":"'[1]Gráfico REM'!BK169","v":8229.4914499305523},{"$f":"'[1]Gráfico REM'!BL169","v":35439.139174565425},{"$f":"'[1]Gráfico REM'!BM169","v":7304.9162820076463},"n.d.","n.d.","n.d.","n.d."]
[2003,"noviembre","2003-noviembre",{"$f":"IF('[1]REAL IPC(M)'!$AL176=\"\",\"\",+'[1]REAL IPC(M)'!$AL176)","v":15.083166303328778},{"$f":"IF('[1]REAL IPC(M)'!$BE176=\"\",\"\",+'[1]REAL IPC(M)'!$BE176)","v":13.367780389267626},{"$f":"IF('[1]REAL IPC(M)'!$AM176=\"\",\"\",+'[1]REAL IPC(M)'!$AM176)","v":14.178268827823759},{"$f":"IF('[1]REAL IPC(M)'!$BI176=\"\",\"\",+'[1]REAL IPC(M)'!$BI176)","v":12.551855075376928},{"$f":"IF('[1]REAL IMAE(M)'!BJ176=\"\",\"\",'[1]REAL IMAE(M)'!BJ176)","v":"n.d."},{"$f":"IF('[1]REAL IMAE(M)'!BK176=\"\",\"\",'[1]REAL IMAE(M)'!BK176)","v":"n.d."},{"$f":"IF('[1]REAL IMAE(M)'!BN176=\"\",\"\",'[1]REAL IMAE(M)'!BN176)","v":"n.d."},{"$f":"IF('[1]REAL IMAE(M)'!BO176=\"\",\"\",'[1]REAL IMAE(M)'!BO176)","v":"n.d."},{"$f":"IF('[1]EXT RIN(M)'!$K176=\"\",\"\",'[1]EXT RIN(M)'!$K176)","v":8067.47697786751},"",{"$f":"IF('[1]EXT RIN(M)'!$L176=\"\",\"\",'[1]EXT RIN(M)'!$L176)","v":9069.9126021642896},"",{"$f":"IF('[1]MONE(M)CARD'!EG176=\"\",\"\",'[1]MONE(M)CARD'!EG176)","v":8611.0942859089537},{"$f":"IF('[1]MONE(M)CARD'!EK176=\"\",\"\",'[1]MONE(M)CARD'!EK176)","v":18109.042352372999},{"$f":"IF('[1]MONE(M)CARD'!EP176=\"\",\"\",'[1]MONE(M)CARD'!EP176)","v":7930.0416859176403},{"$f":"IF('[1]MONE(M)CARD'!ES176=\"\",\"\",'[1]MONE(M)CARD'!ES176)","v":1.3783062430148485},{"$f":"IF('[1]MONE(M)CARD'!EV176=\"\",\"\",'[1]MONE(M)CARD'!EV176)","v":-2.5291423430026438},{"$f":"IF('[1]MONE(M)CARD'!EZ176=\"\",\"\",'[1]MONE(M)CARD'!EZ176)","v":-0.33379184940440787},{"$f":"IF('[1]MONE(M)CAPARD'!FC176=\"\",\"\",'[1]MONE(M)CAPARD'!FC176)","v":10022.157661598954},{"$f":"IF('[1]MONE(M)CAPARD'!FG176=\"\",\"\",'[1]MONE(M)CAPARD'!FG176)","v":26921.735979252997},{"$f":"IF('[1]MONE(M)CAPARD'!FL176=\"\",\"\",'[1]MONE(M)CAPARD'!FL176)","v":7930.0416859176403},{"$f":"IF('[1]MONE(M)CAPARD'!FO176=\"\",\"\",'[1]MONE(M)CAPARD'!FO176)","v":17.990737866611116},{"$f":"IF('[1]MONE(M)CAPARD'!FR176=\"\",\"\",'[1]MONE(M)CAPARD'!FR176)","v":34.765515877027475},{"$f":"IF('[1]MONE(M)CAPARD'!FV176=\"\",\"\",'[1]MONE(M)CAPARD'!FV176)","v":29.073361094094572},{"$f":"IF('[1]MONE(M)CARD'!FV176=\"\",\"\",'[1]MONE(M)CARD'!FV176)","v":392.74945024269738},{"$f":"IF('[1]MONE(M)CARD'!GD176=\"\",\"\",'[1]MONE(M)CARD'!GD176)","v":41.176149198400665},{"$f":"IF('[1]MONE(M)CARD'!GE176=\"\",\"\",'[1]MONE(M)CARD'!GE176)","v":2731.4874248797232},-25.081301318179172,{"$f":"IF('[9]II.2.Balance OSD-Activos'!J34=\"\",\"\",'[9]II.2.Balance OSD-Activos'!J34)","v":147.23754744054489},{"$f":"IF('[9]II.2.Balance OSD-Activos'!N34=\"\",\"\",'[9]II.2.Balance OSD-Activos'!N34)","v":6.0703974752865948},{"$f":"IF('[9]II.2.Balance OSD-Activos'!R34=\"\",\"\",'[9]II.2.Balance OSD-Activos'!R34)","v":12335.91344573574},{"$f":"IF('[9]II.2.Balance OSD-Activos'!S34=\"\",\"\",'[9]II.2.Balance OSD-Activos'!S34)","v":11594.666579298018},12483.150993176285,24083.887969949588,-16.017949438372636,-9.3669187478960474,-54.513593159569986,-9.2811661674813131,-7.9334359664327669,-8.7054253581411842,-1.7923585208443296,{"$f":"IF('[1]MONE(M)CAPARD'!GS176=\"\",\"\",'[1]MONE(M)CAPARD'!GS176)","v":3859.6092134467103},{"$f":"IF('[1]MONE(M)CARD'!HA176=\"\",\"\",'[1]MONE(M)CAPARD'!HA176)","v":2944.2522432397227},{"$f":"IF('[1]MONE(M)CAPARD'!HB176=\"\",\"\",'[1]MONE(M)CAPARD'!HB176)","v":915.35697020698763},"n.d.",{"$f":"IF('[10]II.2.Balance OSD-Activos'!J34=\"\",\"\",'[10]II.2.Balance OSD-Activos'!J34)","v":757.77289559054486},{"$f":"IF('[10]II.2.Balance OSD-Activos'!N34=\"\",\"\",'[10]II.2.Balance OSD-Activos'!N34)","v":386.76354821528656},{"$f":"IF('[10]II.2.Balance OSD-Activos'!R34=\"\",\"\",'[10]II.2.Balance OSD-Activos'!R34)","v":17034.274642285742},{"$f":"IF('[10]II.2.Balance OSD-Activos'!S34=\"\",\"\",'[10]II.2.Balance OSD-Activos'!S34)","v":16153.309320798018},17792.047537876286,34332.12040688959,332.22209781383197,29.177968849620672,2798.0777909173435,25.270782543079061,28.264118400143602,30.142455944443025,-2.2546887431437632,{"$f":"IF('[1]MONE(M)CAPARD'!AS176=\"\",\"\",'[1]MONE(M)CAPARD'!AS176)","v":"n.d."},{"$f":"IF('[1]MONE(M)CAPARD'!AT176=\"\",\"\",'[1]MONE(M)CAPARD'!AT176)","v":"n.a."},{"$f":"IF('[1]MONE(M)CAPARD'!AU176=\"\",\"\",'[1]MONE(M)CAPARD'!AU176)","v":"n.d."},{"$f":"IF('[1]MONE(M)CAPARD'!AV176=\"\",\"\",'[1]MONE(M)CAPARD'!AV176)","v":"n.d."},{"$f":"IF('[1]MONE(M)CAPARD'!AW176=\"\",\"\",'[1]MONE(M)CAPARD'!AW176)","v":"n.a."},{"$f":"IF('[1]MONE(M)CAPARD'!AX176=\"\",\"\",'[1]MONE(M)CAPARD'!AX176)","v":"n.d."},{"$f":"IF('[1]MONE(M)CAPARD'!AY176=\"\",\"\",'[1]MONE(M)CAPARD'!AY176)","v":"n.a."},{"$f":"IF('[1]FISCAL(M)'!$K176=\"\",\"\",'[1]FISCAL(M)'!$K176)","v":-2040.831570088978},{"$f":"IF('[1]FISCAL(M)'!$L176=\"\",\"\",'[1]FISCAL(M)'!$L176)","v":-2587.6177517989786},{"$f":"IF('[1]FISCAL(M)'!$AY176=\"\",\"\",'[1]FISCAL(M)'!$AY176)","v":"n.d."},{"$f":"IF('[1]FISCAL(M)'!$BI176=\"\",\"\",'[1]FISCAL(M)'!$BI176)","v":"n.d."},{"$f":"IF('[1]FISCAL(M)'!$BS176=\"\",\"\",'[1]FISCAL(M)'!$BS176)","v":"n.d."},{"$f":"IF('[1]FISCAL(M)'!$AZ176=\"\",\"\",'[1]FISCAL(M)'!$AZ176)","v":"n.d."},{"$f":"IF('[1]FISCAL(M)'!$BJ176=\"\",\"\",'[1]FISCAL(M)'!$BJ176)","v":"n.d."},{"$f":"IF('[1]FISCAL(M)'!$BT176=\"\",\"\",'[1]FISCAL(M)'!$BT176)","v":"n.d."},{"$f":"IF('[2]MONE(M)'!$AO176=\"\",\"\",'[2]MONE(M)'!$AO176)","v":2158016.1933991141},{"$f":"IF('[3]MONE(M)'!$AO176=\"\",\"\",'[3]MONE(M)'!$AO176)","v":6362.569742857143},{"$f":"IF('[4]MONE(M)'!$AO176=\"\",\"\",'[4]MONE(M)'!$AO176)","v":39998.238513835764},{"$f":"IF('[5]MONE(M)'!$AO176=\"\",\"\",'[5]MONE(M)'!$AO176)","v":51187.338888561811},{"$f":"IF('[6]MONE(M)'!$AO176=\"\",\"\",'[6]MONE(M)'!$AO176)","v":14058.138825347},{"$f":"IF('[7]MONE(M)'!$AO176=\"\",\"\",'[7]MONE(M)'!$AO176)","v":213154.61761736998},{"$f":"IF('[8]MONE(M)'!$AO176=\"\",\"\",'[8]MONE(M)'!$AO176)","v":10104.14578203},17.073299505911677,6.9643673109794024,8.0179853219513042,14.161627837465552,26.048181940103877,42.624849346489114,"n.d.",{"$f":"IF('[1]FISCAL(M)'!$K176=\"\",\"\",'[1]FISCAL(M)'!$K176)","v":-2040.831570088978},{"$f":"+'[1]REAL(A)'!$AO$23","v":"n.d."},"n.d.",{"$f":"IF('[1]FISCAL(M)'!$L176=\"\",\"\",'[1]FISCAL(M)'!$L176)","v":-2587.6177517989786},{"$f":"+'[1]REAL(A)'!$AP$23","v":"n.d."},"n.d.","n.d.",{"$f":"'[1]Gráfico REM'!BG170","v":7386.2647675767921},{"$f":"'[1]Gráfico REM'!BH170","v":25288.258471185905},{"$f":"'[1]Gráfico REM'!BI170","v":1063.3805341854261},"n.d.",1.8643940473274778,-8.6614208993957007,11.266422587657932,"n.d.",{"$f":"'[1]Gráfico REM'!BK170","v":7999.3939050527924},{"$f":"'[1]Gráfico REM'!BL170","v":35392.404253215907},{"$f":"'[1]Gráfico REM'!BM170","v":6933.3956546454247},"n.d.","n.d.","n.d.","n.d."]
[2003,"diciembre","2003-diciembre",{"$f":"IF('[1]REAL IPC(M)'!$AL177=\"\",\"\",+'[1]REAL IPC(M)'!$AL177)","v":15.814921675173066},{"$f":"IF('[1]REAL IPC(M)'!$BE177=\"\",\"\",+'[1]REAL IPC(M)'!$BE177)","v":13.470766478333317},{"$f":"IF('[1]REAL IPC(M)'!$AM177=\"\",\"\",+'[1]REAL IPC(M)'!$AM177)","v":14.876593164373064},{"$f":"IF('[1]REAL IPC(M)'!$BI177=\"\",\"\",+'[1]REAL IPC(M)'!$BI177)","v":12.668783239912763},{"$f":"IF('[1]REAL IMAE(M)'!BJ177=\"\",\"\",'[1]REAL IMAE(M)'!BJ177)","v":"n.d."},{"$f":"IF('[1]REAL IMAE(M)'!BK177=\"\",\"\",'[1]REAL IMAE(M)'!BK177)","v":"n.d."},{"$f":"IF('[1]REAL IMAE(M)'!BN177=\"\",\"\",'[1]REAL IMAE(M)'!BN177)","v":"n.d."},{"$f":"IF('[1]REAL IMAE(M)'!BO177=\"\",\"\",'[1]REAL IMAE(M)'!BO177)","v":"n.d."},{"$f":"IF('[1]EXT RIN(M)'!$K177=\"\",\"\",'[1]EXT RIN(M)'!$K177)","v":8374.3777768190575},8374.3777768190575,{"$f":"IF('[1]EXT RIN(M)'!$L177=\"\",\"\",'[1]EXT RIN(M)'!$L177)","v":9337.3727874570268},9337.3727874570268,{"$f":"IF('[1]MONE(M)CARD'!EG177=\"\",\"\",'[1]MONE(M)CARD'!EG177)","v":9810.55061717219},{"$f":"IF('[1]MONE(M)CARD'!EK177=\"\",\"\",'[1]MONE(M)CARD'!EK177)","v":18795.481178163111},{"$f":"IF('[1]MONE(M)CARD'!EP177=\"\",\"\",'[1]MONE(M)CARD'!EP177)","v":9942.5504764139769},{"$f":"IF('[1]MONE(M)CARD'!ES177=\"\",\"\",'[1]MONE(M)CARD'!ES177)","v":8.7279173553104439},{"$f":"IF('[1]MONE(M)CARD'!EV177=\"\",\"\",'[1]MONE(M)CARD'!EV177)","v":6.6214871567787936},{"$f":"IF('[1]MONE(M)CARD'!EZ177=\"\",\"\",'[1]MONE(M)CARD'!EZ177)","v":13.091936344060473},{"$f":"IF('[1]MONE(M)CAPARD'!FC177=\"\",\"\",'[1]MONE(M)CAPARD'!FC177)","v":11274.06083201219},{"$f":"IF('[1]MONE(M)CAPARD'!FG177=\"\",\"\",'[1]MONE(M)CAPARD'!FG177)","v":27701.371907443114},{"$f":"IF('[1]MONE(M)CAPARD'!FL177=\"\",\"\",'[1]MONE(M)CAPARD'!FL177)","v":9942.5504764139769},{"$f":"IF('[1]MONE(M)CAPARD'!FO177=\"\",\"\",'[1]MONE(M)CAPARD'!FO177)","v":8.8382133330750854},{"$f":"IF('[1]MONE(M)CAPARD'!FR177=\"\",\"\",'[1]MONE(M)CAPARD'!FR177)","v":5.6211414859384634},{"$f":"IF('[1]MONE(M)CAPARD'!FV177=\"\",\"\",'[1]MONE(M)CAPARD'!FV177)","v":10.780176603153603},{"$f":"IF('[1]MONE(M)CARD'!FV177=\"\",\"\",'[1]MONE(M)CARD'!FV177)","v":374.31999689211239},{"$f":"IF('[1]MONE(M)CARD'!GD177=\"\",\"\",'[1]MONE(M)CARD'!GD177)","v":32.317352218750159},{"$f":"IF('[1]MONE(M)CARD'!GE177=\"\",\"\",'[1]MONE(M)CARD'!GE177)","v":2585.915620262605},-28.411893475767879,{"$f":"IF('[9]II.2.Balance OSD-Activos'!J35=\"\",\"\",'[9]II.2.Balance OSD-Activos'!J35)","v":160.27015392627229},{"$f":"IF('[9]II.2.Balance OSD-Activos'!N35=\"\",\"\",'[9]II.2.Balance OSD-Activos'!N35)","v":5.4534396454811365},{"$f":"IF('[9]II.2.Balance OSD-Activos'!R35=\"\",\"\",'[9]II.2.Balance OSD-Activos'!R35)","v":12620.755668100965},{"$f":"IF('[9]II.2.Balance OSD-Activos'!S35=\"\",\"\",'[9]II.2.Balance OSD-Activos'!S35)","v":12881.514850251639},12781.025822027237,25667.994111924356,-8.2109301646945294,-2.6464553473852792,-60.208984331134332,-2.5714509472058333,5.9693042651882244,1.4622918008320829,10.167717158973268,{"$f":"IF('[1]MONE(M)CAPARD'!GS177=\"\",\"\",'[1]MONE(M)CAPARD'!GS177)","v":4090.0876454177915},{"$f":"IF('[1]MONE(M)CARD'!HA177=\"\",\"\",'[1]MONE(M)CAPARD'!HA177)","v":2798.620614662605},{"$f":"IF('[1]MONE(M)CAPARD'!HB177=\"\",\"\",'[1]MONE(M)CAPARD'!HB177)","v":1291.4670307551864},"n.d.",{"$f":"IF('[10]II.2.Balance OSD-Activos'!J35=\"\",\"\",'[10]II.2.Balance OSD-Activos'!J35)","v":616.99249187627231},{"$f":"IF('[10]II.2.Balance OSD-Activos'!N35=\"\",\"\",'[10]II.2.Balance OSD-Activos'!N35)","v":354.52414172548123},{"$f":"IF('[10]II.2.Balance OSD-Activos'!R35=\"\",\"\",'[10]II.2.Balance OSD-Activos'!R35)","v":17351.728859320967},{"$f":"IF('[10]II.2.Balance OSD-Activos'!S35=\"\",\"\",'[10]II.2.Balance OSD-Activos'!S35)","v":17485.506698351637},17968.72135119724,35808.752191274354,-35.234663454179241,-3.0988552037879424,-13.366621269853674,-1.3584775686140915,5.1910406326933112,0.65651340105408185,-29.485942543388944,{"$f":"IF('[1]MONE(M)CAPARD'!AS177=\"\",\"\",'[1]MONE(M)CAPARD'!AS177)","v":"n.d."},{"$f":"IF('[1]MONE(M)CAPARD'!AT177=\"\",\"\",'[1]MONE(M)CAPARD'!AT177)","v":"n.a."},{"$f":"IF('[1]MONE(M)CAPARD'!AU177=\"\",\"\",'[1]MONE(M)CAPARD'!AU177)","v":"n.d."},{"$f":"IF('[1]MONE(M)CAPARD'!AV177=\"\",\"\",'[1]MONE(M)CAPARD'!AV177)","v":"n.d."},{"$f":"IF('[1]MONE(M)CAPARD'!AW177=\"\",\"\",'[1]MONE(M)CAPARD'!AW177)","v":"n.a."},{"$f":"IF('[1]MONE(M)CAPARD'!AX177=\"\",\"\",'[1]MONE(M)CAPARD'!AX177)","v":"n.d."},{"$f":"IF('[1]MONE(M)CAPARD'!AY177=\"\",\"\",'[1]MONE(M)CAPARD'!AY177)","v":"n.a."},{"$f":"IF('[1]FISCAL(M)'!$K177=\"\",\"\",'[1]FISCAL(M)'!$K177)","v":-2752.4732078592328},{"$f":"IF('[1]FISCAL(M)'!$L177=\"\",\"\",'[1]FISCAL(M)'!$L177)","v":-2712.898861029234},{"$f":"IF('[1]FISCAL(M)'!$AY177=\"\",\"\",'[1]FISCAL(M)'!$AY177)","v":"n.d."},{"$f":"IF('[1]FISCAL(M)'!$BI177=\"\",\"\",'[1]FISCAL(M)'!$BI177)","v":"n.d."},{"$f":"IF('[1]FISCAL(M)'!$BS177=\"\",\"\",'[1]FISCAL(M)'!$BS177)","v":29190.5},{"$f":"IF('[1]FISCAL(M)'!$AZ177=\"\",\"\",'[1]FISCAL(M)'!$AZ177)","v":"n.d."},{"$f":"IF('[1]FISCAL(M)'!$BJ177=\"\",\"\",'[1]FISCAL(M)'!$BJ177)","v":"n.d."},{"$f":"IF('[1]FISCAL(M)'!$BT177=\"\",\"\",'[1]FISCAL(M)'!$BT177)","v":35700.183792249998},{"$f":"IF('[2]MONE(M)'!$AO177=\"\",\"\",'[2]MONE(M)'!$AO177)","v":2256103.1479283469},{"$f":"IF('[3]MONE(M)'!$AO177=\"\",\"\",'[3]MONE(M)'!$AO177)","v":6449.6837428571425},{"$f":"IF('[4]MONE(M)'!$AO177=\"\",\"\",'[4]MONE(M)'!$AO177)","v":49003.152351801451},{"$f":"IF('[5]MONE(M)'!$AO177=\"\",\"\",'[5]MONE(M)'!$AO177)","v":54031.603230121967},{"$f":"IF('[6]MONE(M)'!$AO177=\"\",\"\",'[6]MONE(M)'!$AO177)","v":14319.503887999999},{"$f":"IF('[7]MONE(M)'!$AO177=\"\",\"\",'[7]MONE(M)'!$AO177)","v":194502.96766075},{"$f":"IF('[8]MONE(M)'!$AO177=\"\",\"\",'[8]MONE(M)'!$AO177)","v":10006.67172056},20.293542736890636,7.4258915594114905,29.52305370314512,19.656869103859577,25.766835553854417,27.911710014432888,-0.48419917610369456,{"$f":"IF('[1]FISCAL(M)'!$K177=\"\",\"\",'[1]FISCAL(M)'!$K177)","v":-2752.4732078592328},{"$f":"+'[1]REAL(A)'!$AO$23","v":"n.d."},"n.d.",{"$f":"IF('[1]FISCAL(M)'!$L177=\"\",\"\",'[1]FISCAL(M)'!$L177)","v":-2712.898861029234},{"$f":"+'[1]REAL(A)'!$AP$23","v":"n.d."},"n.d.","n.d.",{"$f":"'[1]Gráfico REM'!BG171","v":7782.4062554361471},{"$f":"'[1]Gráfico REM'!BH171","v":27158.109410130477},{"$f":"'[1]Gráfico REM'!BI171","v":1900.9433874951978},"n.d.",7.6698847325735731,2.1019106471574789,96.27777924774621,"n.d.",{"$f":"'[1]Gráfico REM'!BK171","v":8313.9098441561473},{"$f":"'[1]Gráfico REM'!BL171","v":37164.781130690477},{"$f":"'[1]Gráfico REM'!BM171","v":8256.9461251251978},"n.d.",{"$f":"+((DB170/DB158)-1)*100","v":8.9085299948920884},1.3924657334834833,3.1730926731503573]
[2004,"enero","2004-enero",{"$f":"IF('[1]REAL IPC(M)'!$AL178=\"\",\"\",+'[1]REAL IPC(M)'!$AL178)","v":18.075818066856431},{"$f":"IF('[1]REAL IPC(M)'!$BE178=\"\",\"\",+'[1]REAL IPC(M)'!$BE178)","v":13.54996452121946},{"$f":"IF('[1]REAL IPC(M)'!$AM178=\"\",\"\",+'[1]REAL IPC(M)'!$AM178)","v":16.817652263081296},{"$f":"IF('[1]REAL IPC(M)'!$BI178=\"\",\"\",+'[1]REAL IPC(M)'!$BI178)","v":12.763585256531474},{"$f":"IF('[1]REAL IMAE(M)'!BJ178=\"\",\"\",'[1]REAL IMAE(M)'!BJ178)","v":"n.d."},{"$f":"IF('[1]REAL IMAE(M)'!BK178=\"\",\"\",'[1]REAL IMAE(M)'!BK178)","v":"n.d."},{"$f":"IF('[1]REAL IMAE(M)'!BN178=\"\",\"\",'[1]REAL IMAE(M)'!BN178)","v":"n.d."},{"$f":"IF('[1]REAL IMAE(M)'!BO178=\"\",\"\",'[1]REAL IMAE(M)'!BO178)","v":"n.d."},{"$f":"IF('[1]EXT RIN(M)'!$K178=\"\",\"\",'[1]EXT RIN(M)'!$K178)","v":8150.2850558651699},"",{"$f":"IF('[1]EXT RIN(M)'!$L178=\"\",\"\",'[1]EXT RIN(M)'!$L178)","v":9337.725847862479},"",{"$f":"IF('[1]MONE(M)CARD'!EG178=\"\",\"\",'[1]MONE(M)CARD'!EG178)","v":9031.8061332872712},{"$f":"IF('[1]MONE(M)CARD'!EK178=\"\",\"\",'[1]MONE(M)CARD'!EK178)","v":17269.741437904377},{"$f":"IF('[1]MONE(M)CARD'!EP178=\"\",\"\",'[1]MONE(M)CARD'!EP178)","v":10094.527943216435},{"$f":"IF('[1]MONE(M)CARD'!ES178=\"\",\"\",'[1]MONE(M)CARD'!ES178)","v":4.0398422649214005},{"$f":"IF('[1]MONE(M)CARD'!EV178=\"\",\"\",'[1]MONE(M)CARD'!EV178)","v":-0.23604848772983411},{"$f":"IF('[1]MONE(M)CARD'!EZ178=\"\",\"\",'[1]MONE(M)CARD'!EZ178)","v":5.9248797360336392},{"$f":"IF('[1]MONE(M)CAPARD'!FC178=\"\",\"\",'[1]MONE(M)CAPARD'!FC178)","v":10424.802379147273},{"$f":"IF('[1]MONE(M)CAPARD'!FG178=\"\",\"\",'[1]MONE(M)CAPARD'!FG178)","v":26258.956041474383},{"$f":"IF('[1]MONE(M)CAPARD'!FL178=\"\",\"\",'[1]MONE(M)CAPARD'!FL178)","v":10094.527943216432},{"$f":"IF('[1]MONE(M)CAPARD'!FO178=\"\",\"\",'[1]MONE(M)CAPARD'!FO178)","v":5.2659884193360984},{"$f":"IF('[1]MONE(M)CAPARD'!FR178=\"\",\"\",'[1]MONE(M)CAPARD'!FR178)","v":1.2671648156692417},{"$f":"IF('[1]MONE(M)CAPARD'!FV178=\"\",\"\",'[1]MONE(M)CAPARD'!FV178)","v":5.7824340509237793},{"$f":"IF('[1]MONE(M)CARD'!FV178=\"\",\"\",'[1]MONE(M)CARD'!FV178)","v":409.15127436529878},{"$f":"IF('[1]MONE(M)CARD'!GD178=\"\",\"\",'[1]MONE(M)CARD'!GD178)","v":34.977209455391133},{"$f":"IF('[1]MONE(M)CARD'!GE178=\"\",\"\",'[1]MONE(M)CARD'!GE178)","v":2570.0444458919465},-20.811830206030123,{"$f":"IF('[9]II.2.Balance OSD-Activos'!J36=\"\",\"\",'[9]II.2.Balance OSD-Activos'!J36)","v":156.47015054161716},{"$f":"IF('[9]II.2.Balance OSD-Activos'!N36=\"\",\"\",'[9]II.2.Balance OSD-Activos'!N36)","v":5.6855468359398831},{"$f":"IF('[9]II.2.Balance OSD-Activos'!R36=\"\",\"\",'[9]II.2.Balance OSD-Activos'!R36)","v":11843.628739169078},{"$f":"IF('[9]II.2.Balance OSD-Activos'!S36=\"\",\"\",'[9]II.2.Balance OSD-Activos'!S36)","v":12336.717325796704},12000.098889710696,24342.501762343338,-11.50934003760713,-8.5993161269481977,-54.629441283130163,-8.5595892882815878,4.5605192610643774,-2.3968476044961329,-3.8591394053282158,{"$f":"IF('[1]MONE(M)CAPARD'!GS178=\"\",\"\",'[1]MONE(M)CAPARD'!GS178)","v":4186.6689513973706},{"$f":"IF('[1]MONE(M)CARD'!HA178=\"\",\"\",'[1]MONE(M)CAPARD'!HA178)","v":2782.8191632919461},{"$f":"IF('[1]MONE(M)CAPARD'!HB178=\"\",\"\",'[1]MONE(M)CAPARD'!HB178)","v":1403.8497881054245},"n.d.",{"$f":"IF('[10]II.2.Balance OSD-Activos'!J36=\"\",\"\",'[10]II.2.Balance OSD-Activos'!J36)","v":628.62451379161712},{"$f":"IF('[10]II.2.Balance OSD-Activos'!N36=\"\",\"\",'[10]II.2.Balance OSD-Activos'!N36)","v":345.74872634593987},{"$f":"IF('[10]II.2.Balance OSD-Activos'!R36=\"\",\"\",'[10]II.2.Balance OSD-Activos'!R36)","v":16623.875522849077},{"$f":"IF('[10]II.2.Balance OSD-Activos'!S36=\"\",\"\",'[10]II.2.Balance OSD-Activos'!S36)","v":16951.299420036703},17252.500036640693,34549.548183023333,-38.173225021652499,-6.6782718395794411,-9.2514633011897445,-4.8453092105286366,4.1710040292778583,-1.6822048830670622,-2.338718284121144,{"$f":"IF('[1]MONE(M)CAPARD'!AS178=\"\",\"\",'[1]MONE(M)CAPARD'!AS178)","v":"n.d."},{"$f":"IF('[1]MONE(M)CAPARD'!AT178=\"\",\"\",'[1]MONE(M)CAPARD'!AT178)","v":"n.a."},{"$f":"IF('[1]MONE(M)CAPARD'!AU178=\"\",\"\",'[1]MONE(M)CAPARD'!AU178)","v":"n.d."},{"$f":"IF('[1]MONE(M)CAPARD'!AV178=\"\",\"\",'[1]MONE(M)CAPARD'!AV178)","v":"n.d."},{"$f":"IF('[1]MONE(M)CAPARD'!AW178=\"\",\"\",'[1]MONE(M)CAPARD'!AW178)","v":"n.a."},{"$f":"IF('[1]MONE(M)CAPARD'!AX178=\"\",\"\",'[1]MONE(M)CAPARD'!AX178)","v":45},{"$f":"IF('[1]MONE(M)CAPARD'!AY178=\"\",\"\",'[1]MONE(M)CAPARD'!AY178)","v":"n.a."},{"$f":"IF('[1]FISCAL(M)'!$K178=\"\",\"\",'[1]FISCAL(M)'!$K178)","v":-130.70887691103692},{"$f":"IF('[1]FISCAL(M)'!$L178=\"\",\"\",'[1]FISCAL(M)'!$L178)","v":-29.72688860403693},{"$f":"IF('[1]FISCAL(M)'!$AY178=\"\",\"\",'[1]FISCAL(M)'!$AY178)","v":"n.d."},{"$f":"IF('[1]FISCAL(M)'!$BI178=\"\",\"\",'[1]FISCAL(M)'!$BI178)","v":"n.d."},{"$f":"IF('[1]FISCAL(M)'!$BS178=\"\",\"\",'[1]FISCAL(M)'!$BS178)","v":"n.d."},{"$f":"IF('[1]FISCAL(M)'!$AZ178=\"\",\"\",'[1]FISCAL(M)'!$AZ178)","v":"n.d."},{"$f":"IF('[1]FISCAL(M)'!$BJ178=\"\",\"\",'[1]FISCAL(M)'!$BJ178)","v":"n.d."},{"$f":"IF('[1]FISCAL(M)'!$BT178=\"\",\"\",'[1]FISCAL(M)'!$BT178)","v":"n.d."},{"$f":"IF('[2]MONE(M)'!$AO178=\"\",\"\",'[2]MONE(M)'!$AO178)","v":2257287.0812391425},{"$f":"IF('[3]MONE(M)'!$AO178=\"\",\"\",'[3]MONE(M)'!$AO178)","v":6454.7767428571424},{"$f":"IF('[4]MONE(M)'!$AO178=\"\",\"\",'[4]MONE(M)'!$AO178)","v":47210.935087723381},{"$f":"IF('[5]MONE(M)'!$AO178=\"\",\"\",'[5]MONE(M)'!$AO178)","v":54468.857097785367},{"$f":"IF('[6]MONE(M)'!$AO178=\"\",\"\",'[6]MONE(M)'!$AO178)","v":14279.604961210829},{"$f":"IF('[7]MONE(M)'!$AO178=\"\",\"\",'[7]MONE(M)'!$AO178)","v":212308.14318394},{"$f":"IF('[8]MONE(M)'!$AO178=\"\",\"\",'[8]MONE(M)'!$AO178)","v":10069.615774819998},18.586425788635232,7.5663146233621914,25.846926342042732,20.177579465449604,25.042922859912188,33.163653948779405,0.51998112383775386,{"$f":"IF('[1]FISCAL(M)'!$K178=\"\",\"\",'[1]FISCAL(M)'!$K178)","v":-130.70887691103692},{"$f":"+'[1]REAL(A)'!$AO$24","v":"n.d."},"n.d.",{"$f":"IF('[1]FISCAL(M)'!$L178=\"\",\"\",'[1]FISCAL(M)'!$L178)","v":-29.72688860403693},{"$f":"+'[1]REAL(A)'!$AP$24","v":"n.d."},"n.d.","n.d.",{"$f":"'[1]Gráfico REM'!BG172","v":7746.24174379743},{"$f":"'[1]Gráfico REM'!BH172","v":25728.548583205054},{"$f":"'[1]Gráfico REM'!BI172","v":1993.0703846406323},"n.d.",2.3949206680196067,-1.8539444769195557,112.34837516901237,"n.d.",{"$f":"'[1]Gráfico REM'!BK172","v":8291.7041828174297},{"$f":"'[1]Gráfico REM'!BL172","v":35798.164358025053},{"$f":"'[1]Gráfico REM'!BM172","v":8318.9819805306324},"n.d.",3.7368441901961758,-1.1975961865145712,6.5599452767419075]
[2004,"febrero","2004-febrero",{"$f":"IF('[1]REAL IPC(M)'!$AL179=\"\",\"\",+'[1]REAL IPC(M)'!$AL179)","v":20.946283281744883},{"$f":"IF('[1]REAL IPC(M)'!$BE179=\"\",\"\",+'[1]REAL IPC(M)'!$BE179)","v":13.603956417005868},{"$f":"IF('[1]REAL IPC(M)'!$AM179=\"\",\"\",+'[1]REAL IPC(M)'!$AM179)","v":19.529531149152881},{"$f":"IF('[1]REAL IPC(M)'!$BI179=\"\",\"\",+'[1]REAL IPC(M)'!$BI179)","v":12.834827712673968},{"$f":"IF('[1]REAL IMAE(M)'!BJ179=\"\",\"\",'[1]REAL IMAE(M)'!BJ179)","v":"n.d."},{"$f":"IF('[1]REAL IMAE(M)'!BK179=\"\",\"\",'[1]REAL IMAE(M)'!BK179)","v":"n.d."},{"$f":"IF('[1]REAL IMAE(M)'!BN179=\"\",\"\",'[1]REAL IMAE(M)'!BN179)","v":"n.d."},{"$f":"IF('[1]REAL IMAE(M)'!BO179=\"\",\"\",'[1]REAL IMAE(M)'!BO179)","v":"n.d."},{"$f":"IF('[1]EXT RIN(M)'!$K179=\"\",\"\",'[1]EXT RIN(M)'!$K179)","v":8259.4031791232519},"",{"$f":"IF('[1]EXT RIN(M)'!$L179=\"\",\"\",'[1]EXT RIN(M)'!$L179)","v":9318.0039083325319},"",{"$f":"IF('[1]MONE(M)CARD'!EG179=\"\",\"\",'[1]MONE(M)CARD'!EG179)","v":8955.3057689358338},{"$f":"IF('[1]MONE(M)CARD'!EK179=\"\",\"\",'[1]MONE(M)CARD'!EK179)","v":17487.525774230322},{"$f":"IF('[1]MONE(M)CARD'!EP179=\"\",\"\",'[1]MONE(M)CARD'!EP179)","v":10203.605931325837},{"$f":"IF('[1]MONE(M)CARD'!ES179=\"\",\"\",'[1]MONE(M)CARD'!ES179)","v":5.4726562367489517},{"$f":"IF('[1]MONE(M)CARD'!EV179=\"\",\"\",'[1]MONE(M)CARD'!EV179)","v":0.81189110833754796},{"$f":"IF('[1]MONE(M)CARD'!EZ179=\"\",\"\",'[1]MONE(M)CARD'!EZ179)","v":8.0925828169887701},{"$f":"IF('[1]MONE(M)CAPARD'!FC179=\"\",\"\",'[1]MONE(M)CAPARD'!FC179)","v":10380.355144665835},{"$f":"IF('[1]MONE(M)CAPARD'!FG179=\"\",\"\",'[1]MONE(M)CAPARD'!FG179)","v":26538.701133691324},{"$f":"IF('[1]MONE(M)CAPARD'!FL179=\"\",\"\",'[1]MONE(M)CAPARD'!FL179)","v":10203.605931325837},{"$f":"IF('[1]MONE(M)CAPARD'!FO179=\"\",\"\",'[1]MONE(M)CAPARD'!FO179)","v":7.1940655996516334},{"$f":"IF('[1]MONE(M)CAPARD'!FR179=\"\",\"\",'[1]MONE(M)CAPARD'!FR179)","v":2.1631421326554046},{"$f":"IF('[1]MONE(M)CAPARD'!FV179=\"\",\"\",'[1]MONE(M)CAPARD'!FV179)","v":7.560683424610648},{"$f":"IF('[1]MONE(M)CARD'!FV179=\"\",\"\",'[1]MONE(M)CARD'!FV179)","v":391.77956781704654},{"$f":"IF('[1]MONE(M)CARD'!GD179=\"\",\"\",'[1]MONE(M)CARD'!GD179)","v":34.806131642655046},{"$f":"IF('[1]MONE(M)CARD'!GE179=\"\",\"\",'[1]MONE(M)CARD'!GE179)","v":2667.2393720242908},-21.350217534554815,{"$f":"IF('[9]II.2.Balance OSD-Activos'!J37=\"\",\"\",'[9]II.2.Balance OSD-Activos'!J37)","v":144.77701805844725},{"$f":"IF('[9]II.2.Balance OSD-Activos'!N37=\"\",\"\",'[9]II.2.Balance OSD-Activos'!N37)","v":6.221343336749853},{"$f":"IF('[9]II.2.Balance OSD-Activos'!R37=\"\",\"\",'[9]II.2.Balance OSD-Activos'!R37)","v":11873.686057920722},{"$f":"IF('[9]II.2.Balance OSD-Activos'!S37=\"\",\"\",'[9]II.2.Balance OSD-Activos'!S37)","v":12608.38353468668},12018.463075979169,24633.067954002599,-18.405789845286325,-8.3785394351492677,-50.460573660526308,-8.2410450250203997,6.3119232042248452,-1.4278259422132789,0.96902166228285402,{"$f":"IF('[1]MONE(M)CAPARD'!GS179=\"\",\"\",'[1]MONE(M)CAPARD'!GS179)","v":4185.2051726472091},{"$f":"IF('[1]MONE(M)CARD'!HA179=\"\",\"\",'[1]MONE(M)CAPARD'!HA179)","v":2859.9392914342907},{"$f":"IF('[1]MONE(M)CAPARD'!HB179=\"\",\"\",'[1]MONE(M)CAPARD'!HB179)","v":1325.2658812129184},"n.d.",{"$f":"IF('[10]II.2.Balance OSD-Activos'!J37=\"\",\"\",'[10]II.2.Balance OSD-Activos'!J37)","v":633.9035701284472},{"$f":"IF('[10]II.2.Balance OSD-Activos'!N37=\"\",\"\",'[10]II.2.Balance OSD-Activos'!N37)","v":349.52070435674977},{"$f":"IF('[10]II.2.Balance OSD-Activos'!R37=\"\",\"\",'[10]II.2.Balance OSD-Activos'!R37)","v":16652.859433280722},{"$f":"IF('[10]II.2.Balance OSD-Activos'!S37=\"\",\"\",'[10]II.2.Balance OSD-Activos'!S37)","v":17264.588513046678},17286.763003409171,34900.872220812598,-34.424103749355375,-6.0327919712501954,-8.0287256805715135,-4.458196343471621,5.5732241349178979,-0.65169712645748445,1.0305077566095777,{"$f":"IF('[1]MONE(M)CAPARD'!AS179=\"\",\"\",'[1]MONE(M)CAPARD'!AS179)","v":"n.d."},{"$f":"IF('[1]MONE(M)CAPARD'!AT179=\"\",\"\",'[1]MONE(M)CAPARD'!AT179)","v":"n.a."},{"$f":"IF('[1]MONE(M)CAPARD'!AU179=\"\",\"\",'[1]MONE(M)CAPARD'!AU179)","v":"n.d."},{"$f":"IF('[1]MONE(M)CAPARD'!AV179=\"\",\"\",'[1]MONE(M)CAPARD'!AV179)","v":"n.d."},{"$f":"IF('[1]MONE(M)CAPARD'!AW179=\"\",\"\",'[1]MONE(M)CAPARD'!AW179)","v":"n.a."},{"$f":"IF('[1]MONE(M)CAPARD'!AX179=\"\",\"\",'[1]MONE(M)CAPARD'!AX179)","v":50},{"$f":"IF('[1]MONE(M)CAPARD'!AY179=\"\",\"\",'[1]MONE(M)CAPARD'!AY179)","v":"n.a."},{"$f":"IF('[1]FISCAL(M)'!$K179=\"\",\"\",'[1]FISCAL(M)'!$K179)","v":-256.01550992257808},{"$f":"IF('[1]FISCAL(M)'!$L179=\"\",\"\",'[1]FISCAL(M)'!$L179)","v":-487.67854742557813},{"$f":"IF('[1]FISCAL(M)'!$AY179=\"\",\"\",'[1]FISCAL(M)'!$AY179)","v":"n.d."},{"$f":"IF('[1]FISCAL(M)'!$BI179=\"\",\"\",'[1]FISCAL(M)'!$BI179)","v":"n.d."},{"$f":"IF('[1]FISCAL(M)'!$BS179=\"\",\"\",'[1]FISCAL(M)'!$BS179)","v":"n.d."},{"$f":"IF('[1]FISCAL(M)'!$AZ179=\"\",\"\",'[1]FISCAL(M)'!$AZ179)","v":"n.d."},{"$f":"IF('[1]FISCAL(M)'!$BJ179=\"\",\"\",'[1]FISCAL(M)'!$BJ179)","v":"n.d."},{"$f":"IF('[1]FISCAL(M)'!$BT179=\"\",\"\",'[1]FISCAL(M)'!$BT179)","v":"n.d."},{"$f":"IF('[2]MONE(M)'!$AO179=\"\",\"\",'[2]MONE(M)'!$AO179)","v":2264679.7001891024},{"$f":"IF('[3]MONE(M)'!$AO179=\"\",\"\",'[3]MONE(M)'!$AO179)","v":6519.8817428571429},{"$f":"IF('[4]MONE(M)'!$AO179=\"\",\"\",'[4]MONE(M)'!$AO179)","v":47060.365496984297},{"$f":"IF('[5]MONE(M)'!$AO179=\"\",\"\",'[5]MONE(M)'!$AO179)","v":55252.158056538923},{"$f":"IF('[6]MONE(M)'!$AO179=\"\",\"\",'[6]MONE(M)'!$AO179)","v":14523.739080641208},{"$f":"IF('[7]MONE(M)'!$AO179=\"\",\"\",'[7]MONE(M)'!$AO179)","v":209462.19771930002},{"$f":"IF('[8]MONE(M)'!$AO179=\"\",\"\",'[8]MONE(M)'!$AO179)","v":10139.172773419999},16.514868962800342,7.8441323074716074,25.287096026669676,20.667431012250368,23.21342711859986,31.26793037990425,1.7907636489177481,{"$f":"IF('[1]FISCAL(M)'!$K179=\"\",\"\",'[1]FISCAL(M)'!$K179)","v":-256.01550992257808},{"$f":"+'[1]REAL(A)'!$AO$24","v":"n.d."},"n.d.",{"$f":"IF('[1]FISCAL(M)'!$L179=\"\",\"\",'[1]FISCAL(M)'!$L179)","v":-487.67854742557813},{"$f":"+'[1]REAL(A)'!$AP$24","v":"n.d."},"n.d.","n.d.",{"$f":"'[1]Gráfico REM'!BG173","v":7684.5847636800518},{"$f":"'[1]Gráfico REM'!BH173","v":26026.018963127757},{"$f":"'[1]Gráfico REM'!BI173","v":2037.6084268549625},"n.d.",6.4329599305571028,-1.0071464920524131,123.35907468395963,"n.d.",{"$f":"'[1]Gráfico REM'!BK173","v":8227.4450437800515},{"$f":"'[1]Gráfico REM'!BL173","v":36165.191736547757},{"$f":"'[1]Gráfico REM'!BM173","v":8268.4573336649628},"n.d.",7.2883934999807609,-0.23836895978991413,5.5581119993698636]
[2004,"marzo","2004-marzo",{"$f":"IF('[1]REAL IPC(M)'!$AL180=\"\",\"\",+'[1]REAL IPC(M)'!$AL180)","v":21.364295107106802},{"$f":"IF('[1]REAL IPC(M)'!$BE180=\"\",\"\",+'[1]REAL IPC(M)'!$BE180)","v":13.631681208776513},{"$f":"IF('[1]REAL IPC(M)'!$AM180=\"\",\"\",+'[1]REAL IPC(M)'!$AM180)","v":19.911793351002483},{"$f":"IF('[1]REAL IPC(M)'!$BI180=\"\",\"\",+'[1]REAL IPC(M)'!$BI180)","v":12.881437824643838},{"$f":"IF('[1]REAL IMAE(M)'!BJ180=\"\",\"\",'[1]REAL IMAE(M)'!BJ180)","v":"n.d."},{"$f":"IF('[1]REAL IMAE(M)'!BK180=\"\",\"\",'[1]REAL IMAE(M)'!BK180)","v":"n.d."},{"$f":"IF('[1]REAL IMAE(M)'!BN180=\"\",\"\",'[1]REAL IMAE(M)'!BN180)","v":"n.d."},{"$f":"IF('[1]REAL IMAE(M)'!BO180=\"\",\"\",'[1]REAL IMAE(M)'!BO180)","v":"n.d."},{"$f":"IF('[1]EXT RIN(M)'!$K180=\"\",\"\",'[1]EXT RIN(M)'!$K180)","v":8521.7542298615499},"",{"$f":"IF('[1]EXT RIN(M)'!$L180=\"\",\"\",'[1]EXT RIN(M)'!$L180)","v":9482.0687180005898},"",{"$f":"IF('[1]MONE(M)CARD'!EG180=\"\",\"\",'[1]MONE(M)CARD'!EG180)","v":8967.5425605631863},{"$f":"IF('[1]MONE(M)CARD'!EK180=\"\",\"\",'[1]MONE(M)CARD'!EK180)","v":18327.286312134926},{"$f":"IF('[1]MONE(M)CARD'!EP180=\"\",\"\",'[1]MONE(M)CARD'!EP180)","v":10317.3424992527},{"$f":"IF('[1]MONE(M)CARD'!ES180=\"\",\"\",'[1]MONE(M)CARD'!ES180)","v":6.4916221474649261},{"$f":"IF('[1]MONE(M)CARD'!EV180=\"\",\"\",'[1]MONE(M)CARD'!EV180)","v":3.4308222377010589},{"$f":"IF('[1]MONE(M)CARD'!EZ180=\"\",\"\",'[1]MONE(M)CARD'!EZ180)","v":9.1429007257209918},{"$f":"IF('[1]MONE(M)CAPARD'!FC180=\"\",\"\",'[1]MONE(M)CAPARD'!FC180)","v":10426.073231513186},{"$f":"IF('[1]MONE(M)CAPARD'!FG180=\"\",\"\",'[1]MONE(M)CAPARD'!FG180)","v":27438.527597544922},{"$f":"IF('[1]MONE(M)CAPARD'!FL180=\"\",\"\",'[1]MONE(M)CAPARD'!FL180)","v":10317.3424992527},{"$f":"IF('[1]MONE(M)CAPARD'!FO180=\"\",\"\",'[1]MONE(M)CAPARD'!FO180)","v":7.7555866888759262},{"$f":"IF('[1]MONE(M)CAPARD'!FR180=\"\",\"\",'[1]MONE(M)CAPARD'!FR180)","v":4.2666692308650056},{"$f":"IF('[1]MONE(M)CAPARD'!FV180=\"\",\"\",'[1]MONE(M)CAPARD'!FV180)","v":8.5494295499775497},{"$f":"IF('[1]MONE(M)CARD'!FV180=\"\",\"\",'[1]MONE(M)CARD'!FV180)","v":386.00252307081303},{"$f":"IF('[1]MONE(M)CARD'!GD180=\"\",\"\",'[1]MONE(M)CARD'!GD180)","v":32.750185669922757},{"$f":"IF('[1]MONE(M)CARD'!GE180=\"\",\"\",'[1]MONE(M)CARD'!GE180)","v":2538.4907456464966},-25.585519766605923,{"$f":"IF('[9]II.2.Balance OSD-Activos'!J38=\"\",\"\",'[9]II.2.Balance OSD-Activos'!J38)","v":151.48253041002678},{"$f":"IF('[9]II.2.Balance OSD-Activos'!N38=\"\",\"\",'[9]II.2.Balance OSD-Activos'!N38)","v":7.2063528394402621},{"$f":"IF('[9]II.2.Balance OSD-Activos'!R38=\"\",\"\",'[9]II.2.Balance OSD-Activos'!R38)","v":11955.392718485018},{"$f":"IF('[9]II.2.Balance OSD-Activos'!S38=\"\",\"\",'[9]II.2.Balance OSD-Activos'!S38)","v":12960.732995928647},12106.875248895045,25074.814597663135,-17.810515103371049,-9.9217186795977348,-38.225728387915503,-9.8120350579350646,9.0131447809407064,-1.0512177265561973,0.37660821565708158,{"$f":"IF('[1]MONE(M)CAPARD'!GS180=\"\",\"\",'[1]MONE(M)CAPARD'!GS180)","v":4323.3349215659464},{"$f":"IF('[1]MONE(M)CARD'!HA180=\"\",\"\",'[1]MONE(M)CAPARD'!HA180)","v":2738.0493587364972},{"$f":"IF('[1]MONE(M)CAPARD'!HB180=\"\",\"\",'[1]MONE(M)CAPARD'!HB180)","v":1585.2855628294492},"n.d.",{"$f":"IF('[10]II.2.Balance OSD-Activos'!J38=\"\",\"\",'[10]II.2.Balance OSD-Activos'!J38)","v":634.52876591002666},{"$f":"IF('[10]II.2.Balance OSD-Activos'!N38=\"\",\"\",'[10]II.2.Balance OSD-Activos'!N38)","v":364.80788350944016},{"$f":"IF('[10]II.2.Balance OSD-Activos'!R38=\"\",\"\",'[10]II.2.Balance OSD-Activos'!R38)","v":16791.320514195017},{"$f":"IF('[10]II.2.Balance OSD-Activos'!S38=\"\",\"\",'[10]II.2.Balance OSD-Activos'!S38)","v":17651.305490318649},17425.849280105042,35441.962653933137,-34.430078638122673,-6.9978924917473933,-3.4487030501975102,-5.5039430264683169,7.7710418654254765,-0.14494819897488131,0.50674892748260314,{"$f":"IF('[1]MONE(M)CAPARD'!AS180=\"\",\"\",'[1]MONE(M)CAPARD'!AS180)","v":"n.d."},{"$f":"IF('[1]MONE(M)CAPARD'!AT180=\"\",\"\",'[1]MONE(M)CAPARD'!AT180)","v":"n.a."},{"$f":"IF('[1]MONE(M)CAPARD'!AU180=\"\",\"\",'[1]MONE(M)CAPARD'!AU180)","v":"n.d."},{"$f":"IF('[1]MONE(M)CAPARD'!AV180=\"\",\"\",'[1]MONE(M)CAPARD'!AV180)","v":"n.d."},{"$f":"IF('[1]MONE(M)CAPARD'!AW180=\"\",\"\",'[1]MONE(M)CAPARD'!AW180)","v":"n.a."},{"$f":"IF('[1]MONE(M)CAPARD'!AX180=\"\",\"\",'[1]MONE(M)CAPARD'!AX180)","v":50},{"$f":"IF('[1]MONE(M)CAPARD'!AY180=\"\",\"\",'[1]MONE(M)CAPARD'!AY180)","v":"n.a."},{"$f":"IF('[1]FISCAL(M)'!$K180=\"\",\"\",'[1]FISCAL(M)'!$K180)","v":-477.84692654534535},{"$f":"IF('[1]FISCAL(M)'!$L180=\"\",\"\",'[1]FISCAL(M)'!$L180)","v":-681.95227698834549},{"$f":"IF('[1]FISCAL(M)'!$AY180=\"\",\"\",'[1]FISCAL(M)'!$AY180)","v":"n.d."},{"$f":"IF('[1]FISCAL(M)'!$BI180=\"\",\"\",'[1]FISCAL(M)'!$BI180)","v":"n.d."},{"$f":"IF('[1]FISCAL(M)'!$BS180=\"\",\"\",'[1]FISCAL(M)'!$BS180)","v":"n.d."},{"$f":"IF('[1]FISCAL(M)'!$AZ180=\"\",\"\",'[1]FISCAL(M)'!$AZ180)","v":"n.d."},{"$f":"IF('[1]FISCAL(M)'!$BJ180=\"\",\"\",'[1]FISCAL(M)'!$BJ180)","v":"n.d."},{"$f":"IF('[1]FISCAL(M)'!$BT180=\"\",\"\",'[1]FISCAL(M)'!$BT180)","v":"n.d."},{"$f":"IF('[2]MONE(M)'!$AO180=\"\",\"\",'[2]MONE(M)'!$AO180)","v":2293291.7168150079},{"$f":"IF('[3]MONE(M)'!$AO180=\"\",\"\",'[3]MONE(M)'!$AO180)","v":6534.0687428571437},{"$f":"IF('[4]MONE(M)'!$AO180=\"\",\"\",'[4]MONE(M)'!$AO180)","v":47367.7027573175},{"$f":"IF('[5]MONE(M)'!$AO180=\"\",\"\",'[5]MONE(M)'!$AO180)","v":56106.371277071557},{"$f":"IF('[6]MONE(M)'!$AO180=\"\",\"\",'[6]MONE(M)'!$AO180)","v":15044.625254663562},{"$f":"IF('[7]MONE(M)'!$AO180=\"\",\"\",'[7]MONE(M)'!$AO180)","v":200932.02052202},{"$f":"IF('[8]MONE(M)'!$AO180=\"\",\"\",'[8]MONE(M)'!$AO180)","v":10212.338378479999},17.405096302625477,7.2679598665294609,24.172067551146338,20.486653068902893,28.003303051288974,17.527089762195793,2.3277243505253509,{"$f":"IF('[1]FISCAL(M)'!$K180=\"\",\"\",'[1]FISCAL(M)'!$K180)","v":-477.84692654534535},{"$f":"+'[1]REAL(A)'!$AO$24","v":"n.d."},"n.d.",{"$f":"IF('[1]FISCAL(M)'!$L180=\"\",\"\",'[1]FISCAL(M)'!$L180)","v":-681.95227698834549},{"$f":"+'[1]REAL(A)'!$AP$24","v":"n.d."},"n.d.","n.d.",{"$f":"'[1]Gráfico REM'!BG174","v":7969.4904818365485},{"$f":"'[1]Gráfico REM'!BH174","v":26443.189789213458},{"$f":"'[1]Gráfico REM'!BI174","v":2020.0238783190803},"n.d.",7.8662811661415422,-0.77618265737228187,120.53043025667077,"n.d.",{"$f":"'[1]Gráfico REM'!BK174","v":8509.6849449465481},{"$f":"'[1]Gráfico REM'!BL174","v":36655.528167693454},{"$f":"'[1]Gráfico REM'!BM174","v":8188.0980909490791},"n.d.",8.8298846569311316,6.9490977208652716E-2,2.7316647205775313]
[2004,"abril","2004-abril",{"$f":"IF('[1]REAL IPC(M)'!$AL181=\"\",\"\",+'[1]REAL IPC(M)'!$AL181)","v":21.753890008512311},{"$f":"IF('[1]REAL IPC(M)'!$BE181=\"\",\"\",+'[1]REAL IPC(M)'!$BE181)","v":13.632589756329105},{"$f":"IF('[1]REAL IPC(M)'!$AM181=\"\",\"\",+'[1]REAL IPC(M)'!$AM181)","v":20.282760797232925},{"$f":"IF('[1]REAL IPC(M)'!$BI181=\"\",\"\",+'[1]REAL IPC(M)'!$BI181)","v":12.902696368794441},{"$f":"IF('[1]REAL IMAE(M)'!BJ181=\"\",\"\",'[1]REAL IMAE(M)'!BJ181)","v":"n.d."},{"$f":"IF('[1]REAL IMAE(M)'!BK181=\"\",\"\",'[1]REAL IMAE(M)'!BK181)","v":"n.d."},{"$f":"IF('[1]REAL IMAE(M)'!BN181=\"\",\"\",'[1]REAL IMAE(M)'!BN181)","v":"n.d."},{"$f":"IF('[1]REAL IMAE(M)'!BO181=\"\",\"\",'[1]REAL IMAE(M)'!BO181)","v":"n.d."},{"$f":"IF('[1]EXT RIN(M)'!$K181=\"\",\"\",'[1]EXT RIN(M)'!$K181)","v":8396.2645054101631},"",{"$f":"IF('[1]EXT RIN(M)'!$L181=\"\",\"\",'[1]EXT RIN(M)'!$L181)","v":9340.6075733727121},"",{"$f":"IF('[1]MONE(M)CARD'!EG181=\"\",\"\",'[1]MONE(M)CARD'!EG181)","v":8900.9467793062831},{"$f":"IF('[1]MONE(M)CARD'!EK181=\"\",\"\",'[1]MONE(M)CARD'!EK181)","v":18141.140126003276},{"$f":"IF('[1]MONE(M)CARD'!EP181=\"\",\"\",'[1]MONE(M)CARD'!EP181)","v":10690.078297646563},{"$f":"IF('[1]MONE(M)CARD'!ES181=\"\",\"\",'[1]MONE(M)CARD'!ES181)","v":-0.4419279817374},{"$f":"IF('[1]MONE(M)CARD'!EV181=\"\",\"\",'[1]MONE(M)CARD'!EV181)","v":-3.9683277439585773},{"$f":"IF('[1]MONE(M)CARD'!EZ181=\"\",\"\",'[1]MONE(M)CARD'!EZ181)","v":4.2049536620945682},{"$f":"IF('[1]MONE(M)CAPARD'!FC181=\"\",\"\",'[1]MONE(M)CAPARD'!FC181)","v":10358.624524236282},{"$f":"IF('[1]MONE(M)CAPARD'!FG181=\"\",\"\",'[1]MONE(M)CAPARD'!FG181)","v":27355.682429963275},{"$f":"IF('[1]MONE(M)CAPARD'!FL181=\"\",\"\",'[1]MONE(M)CAPARD'!FL181)","v":10690.078297646571},{"$f":"IF('[1]MONE(M)CAPARD'!FO181=\"\",\"\",'[1]MONE(M)CAPARD'!FO181)","v":1.8083358331499211},{"$f":"IF('[1]MONE(M)CAPARD'!FR181=\"\",\"\",'[1]MONE(M)CAPARD'!FR181)","v":-0.95086649647686539},{"$f":"IF('[1]MONE(M)CAPARD'!FV181=\"\",\"\",'[1]MONE(M)CAPARD'!FV181)","v":4.9386130100223413},{"$f":"IF('[1]MONE(M)CARD'!FV181=\"\",\"\",'[1]MONE(M)CARD'!FV181)","v":384.6455967258928},{"$f":"IF('[1]MONE(M)CARD'!GD181=\"\",\"\",'[1]MONE(M)CARD'!GD181)","v":101.27272632068318},{"$f":"IF('[1]MONE(M)CARD'!GE181=\"\",\"\",'[1]MONE(M)CARD'!GE181)","v":3035.2843407840737},-9.7432730032710353,{"$f":"IF('[9]II.2.Balance OSD-Activos'!J39=\"\",\"\",'[9]II.2.Balance OSD-Activos'!J39)","v":144.21368733274758},{"$f":"IF('[9]II.2.Balance OSD-Activos'!N39=\"\",\"\",'[9]II.2.Balance OSD-Activos'!N39)","v":8.8910027427909704},{"$f":"IF('[9]II.2.Balance OSD-Activos'!R39=\"\",\"\",'[9]II.2.Balance OSD-Activos'!R39)","v":11827.428663229835},{"$f":"IF('[9]II.2.Balance OSD-Activos'!S39=\"\",\"\",'[9]II.2.Balance OSD-Activos'!S39)","v":13080.299249471052},11971.642350562583,25060.832602776427,-15.290183366379795,-10.482017085735141,{"$f":"IF(OR(AG174=\"\",AG162=\"\"),\"\",((AG174/AG162)-1)*100)","v":-23.170451882673582},-10.420019776208733,9.1847727571038984,-1.1991172079181323,-0.14789948136193498,{"$f":"IF('[1]MONE(M)CAPARD'!GS181=\"\",\"\",'[1]MONE(M)CAPARD'!GS181)","v":4523.9574917178061},{"$f":"IF('[1]MONE(M)CARD'!HA181=\"\",\"\",'[1]MONE(M)CAPARD'!HA181)","v":3223.8992633640737},{"$f":"IF('[1]MONE(M)CAPARD'!HB181=\"\",\"\",'[1]MONE(M)CAPARD'!HB181)","v":1300.0582283537324},"n.d.",{"$f":"IF('[10]II.2.Balance OSD-Activos'!J39=\"\",\"\",'[10]II.2.Balance OSD-Activos'!J39)","v":650.73566115274753},{"$f":"IF('[10]II.2.Balance OSD-Activos'!N39=\"\",\"\",'[10]II.2.Balance OSD-Activos'!N39)","v":394.75348631279093},{"$f":"IF('[10]II.2.Balance OSD-Activos'!R39=\"\",\"\",'[10]II.2.Balance OSD-Activos'!R39)","v":16658.711419409836},{"$f":"IF('[10]II.2.Balance OSD-Activos'!S39=\"\",\"\",'[10]II.2.Balance OSD-Activos'!S39)","v":17819.279986971054},17309.447080562582,35523.480553846428,-33.878056381057561,-7.1316482426587164,8.7492289090354447,-5.6406818550209126,8.0675158503767932,9.2328091817939217E-2,0.23727629079282053,{"$f":"IF('[1]MONE(M)CAPARD'!AS181=\"\",\"\",'[1]MONE(M)CAPARD'!AS181)","v":"n.d."},{"$f":"IF('[1]MONE(M)CAPARD'!AT181=\"\",\"\",'[1]MONE(M)CAPARD'!AT181)","v":"n.a."},{"$f":"IF('[1]MONE(M)CAPARD'!AU181=\"\",\"\",'[1]MONE(M)CAPARD'!AU181)","v":"n.d."},{"$f":"IF('[1]MONE(M)CAPARD'!AV181=\"\",\"\",'[1]MONE(M)CAPARD'!AV181)","v":"n.d."},{"$f":"IF('[1]MONE(M)CAPARD'!AW181=\"\",\"\",'[1]MONE(M)CAPARD'!AW181)","v":"n.a."},{"$f":"IF('[1]MONE(M)CAPARD'!AX181=\"\",\"\",'[1]MONE(M)CAPARD'!AX181)","v":50},{"$f":"IF('[1]MONE(M)CAPARD'!AY181=\"\",\"\",'[1]MONE(M)CAPARD'!AY181)","v":"n.a."},{"$f":"IF('[1]FISCAL(M)'!$K181=\"\",\"\",'[1]FISCAL(M)'!$K181)","v":-288.49184008010337},{"$f":"IF('[1]FISCAL(M)'!$L181=\"\",\"\",'[1]FISCAL(M)'!$L181)","v":-563.79495337310345},{"$f":"IF('[1]FISCAL(M)'!$AY181=\"\",\"\",'[1]FISCAL(M)'!$AY181)","v":"n.d."},{"$f":"IF('[1]FISCAL(M)'!$BI181=\"\",\"\",'[1]FISCAL(M)'!$BI181)","v":"n.d."},{"$f":"IF('[1]FISCAL(M)'!$BS181=\"\",\"\",'[1]FISCAL(M)'!$BS181)","v":"n.d."},{"$f":"IF('[1]FISCAL(M)'!$AZ181=\"\",\"\",'[1]FISCAL(M)'!$AZ181)","v":"n.d."},{"$f":"IF('[1]FISCAL(M)'!$BJ181=\"\",\"\",'[1]FISCAL(M)'!$BJ181)","v":"n.d."},{"$f":"IF('[1]FISCAL(M)'!$BT181=\"\",\"\",'[1]FISCAL(M)'!$BT181)","v":"n.d."},{"$f":"IF('[2]MONE(M)'!$AO181=\"\",\"\",'[2]MONE(M)'!$AO181)","v":2363615.6141269617},{"$f":"IF('[3]MONE(M)'!$AO181=\"\",\"\",'[3]MONE(M)'!$AO181)","v":6574.8637428571428},{"$f":"IF('[4]MONE(M)'!$AO181=\"\",\"\",'[4]MONE(M)'!$AO181)","v":47524.420238413499},{"$f":"IF('[5]MONE(M)'!$AO181=\"\",\"\",'[5]MONE(M)'!$AO181)","v":56717.839087645792},{"$f":"IF('[6]MONE(M)'!$AO181=\"\",\"\",'[6]MONE(M)'!$AO181)","v":15006.401547596222},{"$f":"IF('[7]MONE(M)'!$AO181=\"\",\"\",'[7]MONE(M)'!$AO181)","v":200349.53881819002},{"$f":"IF('[8]MONE(M)'!$AO181=\"\",\"\",'[8]MONE(M)'!$AO181)","v":10276.651957710001},20.180146416134971,7.0398516893920071,24.956212498693155,20.654299430083256,25.98057690287272,17.920046878551467,3.0338905134093208,{"$f":"IF('[1]FISCAL(M)'!$K181=\"\",\"\",'[1]FISCAL(M)'!$K181)","v":-288.49184008010337},{"$f":"+'[1]REAL(A)'!$AO$24","v":"n.d."},"n.d.",{"$f":"IF('[1]FISCAL(M)'!$L181=\"\",\"\",'[1]FISCAL(M)'!$L181)","v":-563.79495337310345},{"$f":"+'[1]REAL(A)'!$AP$24","v":"n.d."},"n.d.","n.d.",{"$f":"'[1]Gráfico REM'!BG175","v":8467.7530404840327},{"$f":"'[1]Gráfico REM'!BH175","v":26465.312137103556},{"$f":"'[1]Gráfico REM'!BI175","v":2100.3960726269515},"n.d.",4.7666540020397496,-0.67538321445504979,102.92294270365061,"n.d.",{"$f":"'[1]Gráfico REM'!BK175","v":9003.3417582940328},{"$f":"'[1]Gráfico REM'!BL175","v":36741.964094813557},{"$f":"'[1]Gráfico REM'!BM175","v":8427.8090572069523},"n.d.",5.5685503172501427,0.33491633061586423,8.5378143028294708]
[2004,"mayo ","2004-mayo ",{"$f":"IF('[1]REAL IPC(M)'!$AL182=\"\",\"\",+'[1]REAL IPC(M)'!$AL182)","v":22.767965724471374},{"$f":"IF('[1]REAL IPC(M)'!$BE182=\"\",\"\",+'[1]REAL IPC(M)'!$BE182)","v":13.606633494224486},{"$f":"IF('[1]REAL IPC(M)'!$AM182=\"\",\"\",+'[1]REAL IPC(M)'!$AM182)","v":21.273074535334622},{"$f":"IF('[1]REAL IPC(M)'!$BI182=\"\",\"\",+'[1]REAL IPC(M)'!$BI182)","v":12.898284141332962},{"$f":"IF('[1]REAL IMAE(M)'!BJ182=\"\",\"\",'[1]REAL IMAE(M)'!BJ182)","v":"n.d."},{"$f":"IF('[1]REAL IMAE(M)'!BK182=\"\",\"\",'[1]REAL IMAE(M)'!BK182)","v":"n.d."},{"$f":"IF('[1]REAL IMAE(M)'!BN182=\"\",\"\",'[1]REAL IMAE(M)'!BN182)","v":"n.d."},{"$f":"IF('[1]REAL IMAE(M)'!BO182=\"\",\"\",'[1]REAL IMAE(M)'!BO182)","v":"n.d."},{"$f":"IF('[1]EXT RIN(M)'!$K182=\"\",\"\",'[1]EXT RIN(M)'!$K182)","v":8390.096511707261},"",{"$f":"IF('[1]EXT RIN(M)'!$L182=\"\",\"\",'[1]EXT RIN(M)'!$L182)","v":9223.7991021306207},"",{"$f":"IF('[1]MONE(M)CARD'!EG182=\"\",\"\",'[1]MONE(M)CARD'!EG182)","v":9026.7005346196765},{"$f":"IF('[1]MONE(M)CARD'!EK182=\"\",\"\",'[1]MONE(M)CARD'!EK182)","v":18221.808097930101},{"$f":"IF('[1]MONE(M)CARD'!EP182=\"\",\"\",'[1]MONE(M)CARD'!EP182)","v":11221.594995932854},{"$f":"IF('[1]MONE(M)CARD'!ES182=\"\",\"\",'[1]MONE(M)CARD'!ES182)","v":4.7126375727794656},{"$f":"IF('[1]MONE(M)CARD'!EV182=\"\",\"\",'[1]MONE(M)CARD'!EV182)","v":-0.31923708935321926},{"$f":"IF('[1]MONE(M)CARD'!EZ182=\"\",\"\",'[1]MONE(M)CARD'!EZ182)","v":9.072934453585102},{"$f":"IF('[1]MONE(M)CAPARD'!FC182=\"\",\"\",'[1]MONE(M)CAPARD'!FC182)","v":10435.405882119678},{"$f":"IF('[1]MONE(M)CAPARD'!FG182=\"\",\"\",'[1]MONE(M)CAPARD'!FG182)","v":27541.6386454801},{"$f":"IF('[1]MONE(M)CAPARD'!FL182=\"\",\"\",'[1]MONE(M)CAPARD'!FL182)","v":11221.59499593285},{"$f":"IF('[1]MONE(M)CAPARD'!FO182=\"\",\"\",'[1]MONE(M)CAPARD'!FO182)","v":5.5347881044243596},{"$f":"IF('[1]MONE(M)CAPARD'!FR182=\"\",\"\",'[1]MONE(M)CAPARD'!FR182)","v":1.8162841219779624},{"$f":"IF('[1]MONE(M)CAPARD'!FV182=\"\",\"\",'[1]MONE(M)CAPARD'!FV182)","v":8.7650299877588544},{"$f":"IF('[1]MONE(M)CARD'!FV182=\"\",\"\",'[1]MONE(M)CARD'!FV182)","v":337.77128290971746},{"$f":"IF('[1]MONE(M)CARD'!GD182=\"\",\"\",'[1]MONE(M)CARD'!GD182)","v":33.036243484281535},{"$f":"IF('[1]MONE(M)CARD'!GE182=\"\",\"\",'[1]MONE(M)CARD'!GE182)","v":2800.0622193373006},-14.486736550933211,{"$f":"IF('[9]II.2.Balance OSD-Activos'!J40=\"\",\"\",'[9]II.2.Balance OSD-Activos'!J40)","v":145.32425950760771},{"$f":"IF('[9]II.2.Balance OSD-Activos'!N40=\"\",\"\",'[9]II.2.Balance OSD-Activos'!N40)","v":10.297305464819754},{"$f":"IF('[9]II.2.Balance OSD-Activos'!R40=\"\",\"\",'[9]II.2.Balance OSD-Activos'!R40)","v":11792.609340012616},{"$f":"IF('[9]II.2.Balance OSD-Activos'!S40=\"\",\"\",'[9]II.2.Balance OSD-Activos'!S40)","v":13161.175069249148},11937.933599520224,25109.405974234192,-16.606276276419784,-9.0136443217871509,-17.582072799367388,-8.9114442961197966,12.679931250514498,1.193699397353476,2.3928166052716082,{"$f":"IF('[1]MONE(M)CAPARD'!GS182=\"\",\"\",'[1]MONE(M)CAPARD'!GS182)","v":4890.4790418028333},{"$f":"IF('[1]MONE(M)CARD'!HA182=\"\",\"\",'[1]MONE(M)CAPARD'!HA182)","v":2990.7185783973005},{"$f":"IF('[1]MONE(M)CAPARD'!HB182=\"\",\"\",'[1]MONE(M)CAPARD'!HB182)","v":1899.7604634055328},"n.d.",{"$f":"IF('[10]II.2.Balance OSD-Activos'!J40=\"\",\"\",'[10]II.2.Balance OSD-Activos'!J40)","v":652.77519963760778},{"$f":"IF('[10]II.2.Balance OSD-Activos'!N40=\"\",\"\",'[10]II.2.Balance OSD-Activos'!N40)","v":450.79833013481976},{"$f":"IF('[10]II.2.Balance OSD-Activos'!R40=\"\",\"\",'[10]II.2.Balance OSD-Activos'!R40)","v":16653.491495622617},{"$f":"IF('[10]II.2.Balance OSD-Activos'!S40=\"\",\"\",'[10]II.2.Balance OSD-Activos'!S40)","v":17909.045604529147},17306.266695260223,35666.110629924195,-34.072287898894871,-5.795612697961106,31.103459583687076,-4.184769626237383,10.442111213607742,2.105625598860783,2.0132975070428438,{"$f":"IF('[1]MONE(M)CAPARD'!AS182=\"\",\"\",'[1]MONE(M)CAPARD'!AS182)","v":"n.d."},{"$f":"IF('[1]MONE(M)CAPARD'!AT182=\"\",\"\",'[1]MONE(M)CAPARD'!AT182)","v":"n.a."},{"$f":"IF('[1]MONE(M)CAPARD'!AU182=\"\",\"\",'[1]MONE(M)CAPARD'!AU182)","v":"n.d."},{"$f":"IF('[1]MONE(M)CAPARD'!AV182=\"\",\"\",'[1]MONE(M)CAPARD'!AV182)","v":"n.d."},{"$f":"IF('[1]MONE(M)CAPARD'!AW182=\"\",\"\",'[1]MONE(M)CAPARD'!AW182)","v":"n.a."},{"$f":"IF('[1]MONE(M)CAPARD'!AX182=\"\",\"\",'[1]MONE(M)CAPARD'!AX182)","v":15},{"$f":"IF('[1]MONE(M)CAPARD'!AY182=\"\",\"\",'[1]MONE(M)CAPARD'!AY182)","v":"n.a."},{"$f":"IF('[1]FISCAL(M)'!$K182=\"\",\"\",'[1]FISCAL(M)'!$K182)","v":-426.50126005149451},{"$f":"IF('[1]FISCAL(M)'!$L182=\"\",\"\",'[1]FISCAL(M)'!$L182)","v":-738.95039340449443},{"$f":"IF('[1]FISCAL(M)'!$AY182=\"\",\"\",'[1]FISCAL(M)'!$AY182)","v":"n.d."},{"$f":"IF('[1]FISCAL(M)'!$BI182=\"\",\"\",'[1]FISCAL(M)'!$BI182)","v":"n.d."},{"$f":"IF('[1]FISCAL(M)'!$BS182=\"\",\"\",'[1]FISCAL(M)'!$BS182)","v":"n.d."},{"$f":"IF('[1]FISCAL(M)'!$AZ182=\"\",\"\",'[1]FISCAL(M)'!$AZ182)","v":"n.d."},{"$f":"IF('[1]FISCAL(M)'!$BJ182=\"\",\"\",'[1]FISCAL(M)'!$BJ182)","v":"n.d."},{"$f":"IF('[1]FISCAL(M)'!$BT182=\"\",\"\",'[1]FISCAL(M)'!$BT182)","v":"n.d."},{"$f":"IF('[2]MONE(M)'!$AO182=\"\",\"\",'[2]MONE(M)'!$AO182)","v":2408493.9769793162},{"$f":"IF('[3]MONE(M)'!$AO182=\"\",\"\",'[3]MONE(M)'!$AO182)","v":6631.9647428571425},{"$f":"IF('[4]MONE(M)'!$AO182=\"\",\"\",'[4]MONE(M)'!$AO182)","v":47901.264479007077},{"$f":"IF('[5]MONE(M)'!$AO182=\"\",\"\",'[5]MONE(M)'!$AO182)","v":57479.781979124004},{"$f":"IF('[6]MONE(M)'!$AO182=\"\",\"\",'[6]MONE(M)'!$AO182)","v":15486.079968726992},{"$f":"IF('[7]MONE(M)'!$AO182=\"\",\"\",'[7]MONE(M)'!$AO182)","v":203216.12938179},{"$f":"IF('[8]MONE(M)'!$AO182=\"\",\"\",'[8]MONE(M)'!$AO182)","v":10337.750404279999},21.307840873532168,7.9830720422487511,24.282415169997318,21.751911857044036,28.897531723630145,12.394686216189687,3.5923146404200024,{"$f":"IF('[1]FISCAL(M)'!$K182=\"\",\"\",'[1]FISCAL(M)'!$K182)","v":-426.50126005149451},{"$f":"+'[1]REAL(A)'!$AO$24","v":"n.d."},"n.d.",{"$f":"IF('[1]FISCAL(M)'!$L182=\"\",\"\",'[1]FISCAL(M)'!$L182)","v":-738.95039340449443},{"$f":"+'[1]REAL(A)'!$AP$24","v":"n.d."},"n.d.","n.d.",{"$f":"'[1]Gráfico REM'!BG176","v":9042.3929774327662},{"$f":"'[1]Gráfico REM'!BH176","v":26522.675407951116},{"$f":"'[1]Gráfico REM'!BI176","v":2230.2725274909126},"n.d.",{"$f":"+((CT175/CT163)-1)*100","v":13.751723477961431},1.8281721371858461,112.47321439889583,"n.d.",{"$f":"'[1]Gráfico REM'!BK176","v":9575.7179858327654},{"$f":"'[1]Gráfico REM'!BL176","v":36860.425812231115},{"$f":"'[1]Gráfico REM'!BM176","v":8814.8024091909137},"n.d.",13.964878151259953,2.3168458351143562,16.118811692694422]
[2004,"junio ","2004-junio ",{"$f":"IF('[1]REAL IPC(M)'!$AL183=\"\",\"\",+'[1]REAL IPC(M)'!$AL183)","v":22.080038014148972},{"$f":"IF('[1]REAL IPC(M)'!$BE183=\"\",\"\",+'[1]REAL IPC(M)'!$BE183)","v":13.554274647666386},{"$f":"IF('[1]REAL IPC(M)'!$AM183=\"\",\"\",+'[1]REAL IPC(M)'!$AM183)","v":20.657419820081802},{"$f":"IF('[1]REAL IPC(M)'!$BI183=\"\",\"\",+'[1]REAL IPC(M)'!$BI183)","v":12.868337361884063},{"$f":"IF('[1]REAL IMAE(M)'!BJ183=\"\",\"\",'[1]REAL IMAE(M)'!BJ183)","v":"n.d."},{"$f":"IF('[1]REAL IMAE(M)'!BK183=\"\",\"\",'[1]REAL IMAE(M)'!BK183)","v":"n.d."},{"$f":"IF('[1]REAL IMAE(M)'!BN183=\"\",\"\",'[1]REAL IMAE(M)'!BN183)","v":"n.d."},{"$f":"IF('[1]REAL IMAE(M)'!BO183=\"\",\"\",'[1]REAL IMAE(M)'!BO183)","v":"n.d."},{"$f":"IF('[1]EXT RIN(M)'!$K183=\"\",\"\",'[1]EXT RIN(M)'!$K183)","v":8503.4657828836152},"",{"$f":"IF('[1]EXT RIN(M)'!$L183=\"\",\"\",'[1]EXT RIN(M)'!$L183)","v":9287.7916653421744},"",{"$f":"IF('[1]MONE(M)CARD'!EG183=\"\",\"\",'[1]MONE(M)CARD'!EG183)","v":8979.8703893638158},{"$f":"IF('[1]MONE(M)CARD'!EK183=\"\",\"\",'[1]MONE(M)CARD'!EK183)","v":18742.43773123057},{"$f":"IF('[1]MONE(M)CARD'!EP183=\"\",\"\",'[1]MONE(M)CARD'!EP183)","v":11354.854377856176},{"$f":"IF('[1]MONE(M)CARD'!ES183=\"\",\"\",'[1]MONE(M)CARD'!ES183)","v":1.5472080560381185},{"$f":"IF('[1]MONE(M)CARD'!EV183=\"\",\"\",'[1]MONE(M)CARD'!EV183)","v":-0.30139366423900249},{"$f":"IF('[1]MONE(M)CARD'!EZ183=\"\",\"\",'[1]MONE(M)CARD'!EZ183)","v":9.6249811445670908},{"$f":"IF('[1]MONE(M)CAPARD'!FC183=\"\",\"\",'[1]MONE(M)CAPARD'!FC183)","v":10392.610617593815},{"$f":"IF('[1]MONE(M)CAPARD'!FG183=\"\",\"\",'[1]MONE(M)CAPARD'!FG183)","v":28079.869501920566},{"$f":"IF('[1]MONE(M)CAPARD'!FL183=\"\",\"\",'[1]MONE(M)CAPARD'!FL183)","v":11354.85437785618},{"$f":"IF('[1]MONE(M)CAPARD'!FO183=\"\",\"\",'[1]MONE(M)CAPARD'!FO183)","v":2.8648135325041402},{"$f":"IF('[1]MONE(M)CAPARD'!FR183=\"\",\"\",'[1]MONE(M)CAPARD'!FR183)","v":1.9576952030545325},{"$f":"IF('[1]MONE(M)CAPARD'!FV183=\"\",\"\",'[1]MONE(M)CAPARD'!FV183)","v":9.3331104333925996},{"$f":"IF('[1]MONE(M)CARD'!FV183=\"\",\"\",'[1]MONE(M)CARD'!FV183)","v":355.64060983825925},{"$f":"IF('[1]MONE(M)CARD'!GD183=\"\",\"\",'[1]MONE(M)CARD'!GD183)","v":71.089410571993994},{"$f":"IF('[1]MONE(M)CARD'!GE183=\"\",\"\",'[1]MONE(M)CARD'!GE183)","v":2794.0472894894324},-11.775433509463928,{"$f":"IF('[9]II.2.Balance OSD-Activos'!J41=\"\",\"\",'[9]II.2.Balance OSD-Activos'!J41)","v":152.04219812896417},{"$f":"IF('[9]II.2.Balance OSD-Activos'!N41=\"\",\"\",'[9]II.2.Balance OSD-Activos'!N41)","v":10.995681009429386},{"$f":"IF('[9]II.2.Balance OSD-Activos'!R41=\"\",\"\",'[9]II.2.Balance OSD-Activos'!R41)","v":11566.678297971355},{"$f":"IF('[9]II.2.Balance OSD-Activos'!S41=\"\",\"\",'[9]II.2.Balance OSD-Activos'!S41)","v":13486.433911858137},11718.720496100319,25216.150088967886,-19.76147260097375,-9.1329768457203979,-3.5942364809014915,-8.9744847958178831,15.056382778453447,2.3816801653589126,1.1879807680054366,{"$f":"IF('[1]MONE(M)CAPARD'!GS183=\"\",\"\",'[1]MONE(M)CAPARD'!GS183)","v":5033.2946727185472},{"$f":"IF('[1]MONE(M)CARD'!HA183=\"\",\"\",'[1]MONE(M)CAPARD'!HA183)","v":2982.6031892594324},{"$f":"IF('[1]MONE(M)CAPARD'!HB183=\"\",\"\",'[1]MONE(M)CAPARD'!HB183)","v":2050.6914834591148},"n.d.",{"$f":"IF('[10]II.2.Balance OSD-Activos'!J41=\"\",\"\",'[10]II.2.Balance OSD-Activos'!J41)","v":639.61203870896406},{"$f":"IF('[10]II.2.Balance OSD-Activos'!N41=\"\",\"\",'[10]II.2.Balance OSD-Activos'!N41)","v":451.66257138942933},{"$f":"IF('[10]II.2.Balance OSD-Activos'!R41=\"\",\"\",'[10]II.2.Balance OSD-Activos'!R41)","v":16422.223487121355},{"$f":"IF('[10]II.2.Balance OSD-Activos'!S41=\"\",\"\",'[10]II.2.Balance OSD-Activos'!S41)","v":18278.474613808139},17061.83552583032,35791.972711027891,-37.515365915330889,-6.0234630678057677,27.83197423476398,-4.1418099342106167,12.26752701765832,2.8802883609266861,0.77466276206590301,{"$f":"IF('[1]MONE(M)CAPARD'!AS183=\"\",\"\",'[1]MONE(M)CAPARD'!AS183)","v":"n.d."},{"$f":"IF('[1]MONE(M)CAPARD'!AT183=\"\",\"\",'[1]MONE(M)CAPARD'!AT183)","v":"n.a."},{"$f":"IF('[1]MONE(M)CAPARD'!AU183=\"\",\"\",'[1]MONE(M)CAPARD'!AU183)","v":"n.d."},{"$f":"IF('[1]MONE(M)CAPARD'!AV183=\"\",\"\",'[1]MONE(M)CAPARD'!AV183)","v":"n.d."},{"$f":"IF('[1]MONE(M)CAPARD'!AW183=\"\",\"\",'[1]MONE(M)CAPARD'!AW183)","v":"n.a."},{"$f":"IF('[1]MONE(M)CAPARD'!AX183=\"\",\"\",'[1]MONE(M)CAPARD'!AX183)","v":15},{"$f":"IF('[1]MONE(M)CAPARD'!AY183=\"\",\"\",'[1]MONE(M)CAPARD'!AY183)","v":"n.a."},{"$f":"IF('[1]FISCAL(M)'!$K183=\"\",\"\",'[1]FISCAL(M)'!$K183)","v":-570.25494763134839},{"$f":"IF('[1]FISCAL(M)'!$L183=\"\",\"\",'[1]FISCAL(M)'!$L183)","v":-950.33994543434858},{"$f":"IF('[1]FISCAL(M)'!$AY183=\"\",\"\",'[1]FISCAL(M)'!$AY183)","v":"n.d."},{"$f":"IF('[1]FISCAL(M)'!$BI183=\"\",\"\",'[1]FISCAL(M)'!$BI183)","v":"n.d."},{"$f":"IF('[1]FISCAL(M)'!$BS183=\"\",\"\",'[1]FISCAL(M)'!$BS183)","v":"n.d."},{"$f":"IF('[1]FISCAL(M)'!$AZ183=\"\",\"\",'[1]FISCAL(M)'!$AZ183)","v":"n.d."},{"$f":"IF('[1]FISCAL(M)'!$BJ183=\"\",\"\",'[1]FISCAL(M)'!$BJ183)","v":"n.d."},{"$f":"IF('[1]FISCAL(M)'!$BT183=\"\",\"\",'[1]FISCAL(M)'!$BT183)","v":"n.d."},{"$f":"IF('[2]MONE(M)'!$AO183=\"\",\"\",'[2]MONE(M)'!$AO183)","v":2461975.7006435492},{"$f":"IF('[3]MONE(M)'!$AO183=\"\",\"\",'[3]MONE(M)'!$AO183)","v":6597.9387428571426},{"$f":"IF('[4]MONE(M)'!$AO183=\"\",\"\",'[4]MONE(M)'!$AO183)","v":48513.300211865833},{"$f":"IF('[5]MONE(M)'!$AO183=\"\",\"\",'[5]MONE(M)'!$AO183)","v":58009.834696750171},{"$f":"IF('[6]MONE(M)'!$AO183=\"\",\"\",'[6]MONE(M)'!$AO183)","v":15354.614238086782},{"$f":"IF('[7]MONE(M)'!$AO183=\"\",\"\",'[7]MONE(M)'!$AO183)","v":198157.96853673999},{"$f":"IF('[8]MONE(M)'!$AO183=\"\",\"\",'[8]MONE(M)'!$AO183)","v":10361.280687480001},23.220122091295469,6.6583180536049502,26.513624519694279,22.026287199551486,25.582745224745796,2.1516441621337146,3.490337415532041,{"$f":"IF('[1]FISCAL(M)'!$K183=\"\",\"\",'[1]FISCAL(M)'!$K183)","v":-570.25494763134839},{"$f":"+'[1]REAL(A)'!$AO$24","v":"n.d."},"n.d.",{"$f":"IF('[1]FISCAL(M)'!$L183=\"\",\"\",'[1]FISCAL(M)'!$L183)","v":-950.33994543434858},{"$f":"+'[1]REAL(A)'!$AP$24","v":"n.d."},"n.d.","n.d.",{"$f":"'[1]Gráfico REM'!BG177","v":9471.7090314907364},{"$f":"'[1]Gráfico REM'!BH177","v":26757.95342993419},{"$f":"'[1]Gráfico REM'!BI177","v":2333.7336531001156},"n.d.",19.875308807085123,3.4725165688590298,99.518324173137202,"n.d.",{"$f":"'[1]Gráfico REM'!BK177","v":9993.8569473007356},{"$f":"'[1]Gráfico REM'!BL177","v":37119.234117414191},{"$f":"'[1]Gráfico REM'!BM177","v":9040.0866680501149},"n.d.",19.797357906186775,3.4774903749531072,17.280344950339078]
[2004,"julio","2004-julio",{"$f":"IF('[1]REAL IPC(M)'!$AL184=\"\",\"\",+'[1]REAL IPC(M)'!$AL184)","v":21.592821884926884},{"$f":"IF('[1]REAL IPC(M)'!$BE184=\"\",\"\",+'[1]REAL IPC(M)'!$BE184)","v":13.476497564272005},{"$f":"IF('[1]REAL IPC(M)'!$AM184=\"\",\"\",+'[1]REAL IPC(M)'!$AM184)","v":20.208582466087144},{"$f":"IF('[1]REAL IPC(M)'!$BI184=\"\",\"\",+'[1]REAL IPC(M)'!$BI184)","v":12.813489656818899},{"$f":"IF('[1]REAL IMAE(M)'!BJ184=\"\",\"\",'[1]REAL IMAE(M)'!BJ184)","v":"n.d."},{"$f":"IF('[1]REAL IMAE(M)'!BK184=\"\",\"\",'[1]REAL IMAE(M)'!BK184)","v":"n.d."},{"$f":"IF('[1]REAL IMAE(M)'!BN184=\"\",\"\",'[1]REAL IMAE(M)'!BN184)","v":"n.d."},{"$f":"IF('[1]REAL IMAE(M)'!BO184=\"\",\"\",'[1]REAL IMAE(M)'!BO184)","v":"n.d."},{"$f":"IF('[1]EXT RIN(M)'!$K184=\"\",\"\",'[1]EXT RIN(M)'!$K184)","v":8406.7013149666036},"",{"$f":"IF('[1]EXT RIN(M)'!$L184=\"\",\"\",'[1]EXT RIN(M)'!$L184)","v":9114.2238620290846},"",{"$f":"IF('[1]MONE(M)CARD'!EG184=\"\",\"\",'[1]MONE(M)CARD'!EG184)","v":9241.0438825670917},{"$f":"IF('[1]MONE(M)CARD'!EK184=\"\",\"\",'[1]MONE(M)CARD'!EK184)","v":19256.291271439171},{"$f":"IF('[1]MONE(M)CARD'!EP184=\"\",\"\",'[1]MONE(M)CARD'!EP184)","v":11495.071100477333},{"$f":"IF('[1]MONE(M)CARD'!ES184=\"\",\"\",'[1]MONE(M)CARD'!ES184)","v":6.8187008250558456},{"$f":"IF('[1]MONE(M)CARD'!EV184=\"\",\"\",'[1]MONE(M)CARD'!EV184)","v":4.5074862689788109},{"$f":"IF('[1]MONE(M)CARD'!EZ184=\"\",\"\",'[1]MONE(M)CARD'!EZ184)","v":13.828133182456526},{"$f":"IF('[1]MONE(M)CAPARD'!FC184=\"\",\"\",'[1]MONE(M)CAPARD'!FC184)","v":10688.406237207091},{"$f":"IF('[1]MONE(M)CAPARD'!FG184=\"\",\"\",'[1]MONE(M)CAPARD'!FG184)","v":28640.97866346917},{"$f":"IF('[1]MONE(M)CAPARD'!FL184=\"\",\"\",'[1]MONE(M)CAPARD'!FL184)","v":11495.071100477333},{"$f":"IF('[1]MONE(M)CAPARD'!FO184=\"\",\"\",'[1]MONE(M)CAPARD'!FO184)","v":8.2238929964796981},{"$f":"IF('[1]MONE(M)CAPARD'!FR184=\"\",\"\",'[1]MONE(M)CAPARD'!FR184)","v":5.6018970673252566},{"$f":"IF('[1]MONE(M)CAPARD'!FV184=\"\",\"\",'[1]MONE(M)CAPARD'!FV184)","v":12.670649620065566},{"$f":"IF('[1]MONE(M)CARD'!FV184=\"\",\"\",'[1]MONE(M)CARD'!FV184)","v":337.88780916074165},{"$f":"IF('[1]MONE(M)CARD'!GD184=\"\",\"\",'[1]MONE(M)CARD'!GD184)","v":21.657024414236041},{"$f":"IF('[1]MONE(M)CARD'!GE184=\"\",\"\",'[1]MONE(M)CARD'!GE184)","v":2848.0349729635795},-12.366661559089408,{"$f":"IF('[9]II.2.Balance OSD-Activos'!J42=\"\",\"\",'[9]II.2.Balance OSD-Activos'!J42)","v":179.14389974373611},{"$f":"IF('[9]II.2.Balance OSD-Activos'!N42=\"\",\"\",'[9]II.2.Balance OSD-Activos'!N42)","v":12.44717109055812},{"$f":"IF('[9]II.2.Balance OSD-Activos'!R42=\"\",\"\",'[9]II.2.Balance OSD-Activos'!R42)","v":11523.593326670238},{"$f":"IF('[9]II.2.Balance OSD-Activos'!S42=\"\",\"\",'[9]II.2.Balance OSD-Activos'!S42)","v":13727.173775173786},11702.737226413974,25442.358172678316,9.0558532970470793,-5.9612297883265164,-2.0700504856377422,-6.162106206302953,17.990265053784892,5.6073915807024921,3.2257114153435795,{"$f":"IF('[1]MONE(M)CAPARD'!GS184=\"\",\"\",'[1]MONE(M)CAPARD'!GS184)","v":5075.5555538738854},{"$f":"IF('[1]MONE(M)CARD'!HA184=\"\",\"\",'[1]MONE(M)CAPARD'!HA184)","v":3034.2007204535798},{"$f":"IF('[1]MONE(M)CAPARD'!HB184=\"\",\"\",'[1]MONE(M)CAPARD'!HB184)","v":2041.3548334203056},"n.d.",{"$f":"IF('[10]II.2.Balance OSD-Activos'!J42=\"\",\"\",'[10]II.2.Balance OSD-Activos'!J42)","v":608.15214300373611},{"$f":"IF('[10]II.2.Balance OSD-Activos'!N42=\"\",\"\",'[10]II.2.Balance OSD-Activos'!N42)","v":462.59897265055804},{"$f":"IF('[10]II.2.Balance OSD-Activos'!R42=\"\",\"\",'[10]II.2.Balance OSD-Activos'!R42)","v":16475.786232180235},{"$f":"IF('[10]II.2.Balance OSD-Activos'!S42=\"\",\"\",'[10]II.2.Balance OSD-Activos'!S42)","v":18561.602661503784},17083.93837518397,36108.140009338313,-37.491211379615038,-3.3926114069272484,20.194972191189066,-1.4074041240933588,14.4896373142805,5.3291795309080126,2.4488911699813265,{"$f":"IF('[1]MONE(M)CAPARD'!AS184=\"\",\"\",'[1]MONE(M)CAPARD'!AS184)","v":"n.d."},{"$f":"IF('[1]MONE(M)CAPARD'!AT184=\"\",\"\",'[1]MONE(M)CAPARD'!AT184)","v":"n.a."},{"$f":"IF('[1]MONE(M)CAPARD'!AU184=\"\",\"\",'[1]MONE(M)CAPARD'!AU184)","v":"n.d."},{"$f":"IF('[1]MONE(M)CAPARD'!AV184=\"\",\"\",'[1]MONE(M)CAPARD'!AV184)","v":"n.d."},{"$f":"IF('[1]MONE(M)CAPARD'!AW184=\"\",\"\",'[1]MONE(M)CAPARD'!AW184)","v":"n.a."},{"$f":"IF('[1]MONE(M)CAPARD'!AX184=\"\",\"\",'[1]MONE(M)CAPARD'!AX184)","v":15},{"$f":"IF('[1]MONE(M)CAPARD'!AY184=\"\",\"\",'[1]MONE(M)CAPARD'!AY184)","v":"n.a."},{"$f":"IF('[1]FISCAL(M)'!$K184=\"\",\"\",'[1]FISCAL(M)'!$K184)","v":-927.38377769486544},{"$f":"IF('[1]FISCAL(M)'!$L184=\"\",\"\",'[1]FISCAL(M)'!$L184)","v":-1420.713154717866},{"$f":"IF('[1]FISCAL(M)'!$AY184=\"\",\"\",'[1]FISCAL(M)'!$AY184)","v":"n.d."},{"$f":"IF('[1]FISCAL(M)'!$BI184=\"\",\"\",'[1]FISCAL(M)'!$BI184)","v":"n.d."},{"$f":"IF('[1]FISCAL(M)'!$BS184=\"\",\"\",'[1]FISCAL(M)'!$BS184)","v":"n.d."},{"$f":"IF('[1]FISCAL(M)'!$AZ184=\"\",\"\",'[1]FISCAL(M)'!$AZ184)","v":"n.d."},{"$f":"IF('[1]FISCAL(M)'!$BJ184=\"\",\"\",'[1]FISCAL(M)'!$BJ184)","v":"n.d."},{"$f":"IF('[1]FISCAL(M)'!$BT184=\"\",\"\",'[1]FISCAL(M)'!$BT184)","v":"n.d."},{"$f":"IF('[2]MONE(M)'!$AO184=\"\",\"\",'[2]MONE(M)'!$AO184)","v":2463364.7670165291},{"$f":"IF('[3]MONE(M)'!$AO184=\"\",\"\",'[3]MONE(M)'!$AO184)","v":6528.0667428571423},{"$f":"IF('[4]MONE(M)'!$AO184=\"\",\"\",'[4]MONE(M)'!$AO184)","v":49441.854667981839},{"$f":"IF('[5]MONE(M)'!$AO184=\"\",\"\",'[5]MONE(M)'!$AO184)","v":58443.203254193839},{"$f":"IF('[6]MONE(M)'!$AO184=\"\",\"\",'[6]MONE(M)'!$AO184)","v":15593.408725326481},{"$f":"IF('[7]MONE(M)'!$AO184=\"\",\"\",'[7]MONE(M)'!$AO184)","v":195954.06866322004},{"$f":"IF('[8]MONE(M)'!$AO184=\"\",\"\",'[8]MONE(M)'!$AO184)","v":10410.079837609999},21.375840747159081,4.9074927675039959,29.582887842538707,21.686454456526327,23.757529642049512,-0.79065158381624867,3.6265177360583101,{"$f":"IF('[1]FISCAL(M)'!$K184=\"\",\"\",'[1]FISCAL(M)'!$K184)","v":-927.38377769486544},{"$f":"+'[1]REAL(A)'!$AO$24","v":"n.d."},"n.d.",{"$f":"IF('[1]FISCAL(M)'!$L184=\"\",\"\",'[1]FISCAL(M)'!$L184)","v":-1420.713154717866},{"$f":"+'[1]REAL(A)'!$AP$24","v":"n.d."},"n.d.","n.d.",{"$f":"'[1]Gráfico REM'!BG178","v":9723.1669288360208},{"$f":"'[1]Gráfico REM'!BH178","v":26927.500133737816},{"$f":"'[1]Gráfico REM'!BI178","v":2291.8458084806712},"n.d.",25.448104290212669,6.3577404643609947,89.15807991084948,"n.d.",{"$f":"'[1]Gráfico REM'!BK178","v":10254.29358577602},{"$f":"'[1]Gráfico REM'!BL178","v":37337.579971347819},{"$f":"'[1]Gráfico REM'!BM178","v":8760.2829457106709},"n.d.",23.40037084431048,5.5818802186784255,16.218920393330084]
[2004,"agosto","2004-agosto",{"$f":"IF('[1]REAL IPC(M)'!$AL185=\"\",\"\",+'[1]REAL IPC(M)'!$AL185)","v":20.867382130225344},{"$f":"IF('[1]REAL IPC(M)'!$BE185=\"\",\"\",+'[1]REAL IPC(M)'!$BE185)","v":13.37476517226146},{"$f":"IF('[1]REAL IPC(M)'!$AM185=\"\",\"\",+'[1]REAL IPC(M)'!$AM185)","v":19.544710938932418},{"$f":"IF('[1]REAL IPC(M)'!$BI185=\"\",\"\",+'[1]REAL IPC(M)'!$BI185)","v":12.734851368116651},{"$f":"IF('[1]REAL IMAE(M)'!BJ185=\"\",\"\",'[1]REAL IMAE(M)'!BJ185)","v":"n.d."},{"$f":"IF('[1]REAL IMAE(M)'!BK185=\"\",\"\",'[1]REAL IMAE(M)'!BK185)","v":"n.d."},{"$f":"IF('[1]REAL IMAE(M)'!BN185=\"\",\"\",'[1]REAL IMAE(M)'!BN185)","v":"n.d."},{"$f":"IF('[1]REAL IMAE(M)'!BO185=\"\",\"\",'[1]REAL IMAE(M)'!BO185)","v":"n.d."},{"$f":"IF('[1]EXT RIN(M)'!$K185=\"\",\"\",'[1]EXT RIN(M)'!$K185)","v":8525.2251585985505},"",{"$f":"IF('[1]EXT RIN(M)'!$L185=\"\",\"\",'[1]EXT RIN(M)'!$L185)","v":9065.6491115261706},"",{"$f":"IF('[1]MONE(M)CARD'!EG185=\"\",\"\",'[1]MONE(M)CARD'!EG185)","v":9436.9234859387179},{"$f":"IF('[1]MONE(M)CARD'!EK185=\"\",\"\",'[1]MONE(M)CARD'!EK185)","v":20468.550279736268},{"$f":"IF('[1]MONE(M)CARD'!EP185=\"\",\"\",'[1]MONE(M)CARD'!EP185)","v":11498.374052129249},{"$f":"IF('[1]MONE(M)CARD'!ES185=\"\",\"\",'[1]MONE(M)CARD'!ES185)","v":10.359632012728138},{"$f":"IF('[1]MONE(M)CARD'!EV185=\"\",\"\",'[1]MONE(M)CARD'!EV185)","v":7.8107929026742573},{"$f":"IF('[1]MONE(M)CARD'!EZ185=\"\",\"\",'[1]MONE(M)CARD'!EZ185)","v":16.529400163712161},{"$f":"IF('[1]MONE(M)CAPARD'!FC185=\"\",\"\",'[1]MONE(M)CAPARD'!FC185)","v":11035.855504368717},{"$f":"IF('[1]MONE(M)CAPARD'!FG185=\"\",\"\",'[1]MONE(M)CAPARD'!FG185)","v":29984.024207706265},{"$f":"IF('[1]MONE(M)CAPARD'!FL185=\"\",\"\",'[1]MONE(M)CAPARD'!FL185)","v":11498.374052129249},{"$f":"IF('[1]MONE(M)CAPARD'!FO185=\"\",\"\",'[1]MONE(M)CAPARD'!FO185)","v":12.391628972603218},{"$f":"IF('[1]MONE(M)CAPARD'!FR185=\"\",\"\",'[1]MONE(M)CAPARD'!FR185)","v":8.546507037412665},{"$f":"IF('[1]MONE(M)CAPARD'!FV185=\"\",\"\",'[1]MONE(M)CAPARD'!FV185)","v":15.216812106976407},{"$f":"IF('[1]MONE(M)CARD'!FV185=\"\",\"\",'[1]MONE(M)CARD'!FV185)","v":341.56549934321805},{"$f":"IF('[1]MONE(M)CARD'!GD185=\"\",\"\",'[1]MONE(M)CARD'!GD185)","v":33.015599048672925},{"$f":"IF('[1]MONE(M)CARD'!GE185=\"\",\"\",'[1]MONE(M)CARD'!GE185)","v":2911.6399682000924},-7.5720611788511523,{"$f":"IF('[9]II.2.Balance OSD-Activos'!J43=\"\",\"\",'[9]II.2.Balance OSD-Activos'!J43)","v":153.51897061697085},{"$f":"IF('[9]II.2.Balance OSD-Activos'!N43=\"\",\"\",'[9]II.2.Balance OSD-Activos'!N43)","v":11.712516826206288},{"$f":"IF('[9]II.2.Balance OSD-Activos'!R43=\"\",\"\",'[9]II.2.Balance OSD-Activos'!R43)","v":11862.037365721962},{"$f":"IF('[9]II.2.Balance OSD-Activos'!S43=\"\",\"\",'[9]II.2.Balance OSD-Activos'!S43)","v":14112.969799514223},12015.556336338934,26140.238652679363,-6.4365752014052262,-4.4636094074377404,-9.7310300119368485,-4.4375296483425313,19.430559235507516,7.1022760437108756,1.4948844630083835,{"$f":"IF('[1]MONE(M)CAPARD'!GS185=\"\",\"\",'[1]MONE(M)CAPARD'!GS185)","v":5371.3068702839782},{"$f":"IF('[1]MONE(M)CARD'!HA185=\"\",\"\",'[1]MONE(M)CAPARD'!HA185)","v":3097.7708629600925},{"$f":"IF('[1]MONE(M)CAPARD'!HB185=\"\",\"\",'[1]MONE(M)CAPARD'!HB185)","v":2273.5360073238858},"n.d.",{"$f":"IF('[10]II.2.Balance OSD-Activos'!J43=\"\",\"\",'[10]II.2.Balance OSD-Activos'!J43)","v":531.36187981697083},{"$f":"IF('[10]II.2.Balance OSD-Activos'!N43=\"\",\"\",'[10]II.2.Balance OSD-Activos'!N43)","v":396.53833852620625},{"$f":"IF('[10]II.2.Balance OSD-Activos'!R43=\"\",\"\",'[10]II.2.Balance OSD-Activos'!R43)","v":16938.284451981963},{"$f":"IF('[10]II.2.Balance OSD-Activos'!S43=\"\",\"\",'[10]II.2.Balance OSD-Activos'!S43)","v":19005.712520704226},17469.646331798933,36871.897191029362,-44.756493626774663,-2.0874120839716293,5.2814964565615741,0.34391892966583182,15.818859792523266,6.4781945912418593,1.1490150603338467,{"$f":"IF('[1]MONE(M)CAPARD'!AS185=\"\",\"\",'[1]MONE(M)CAPARD'!AS185)","v":"n.d."},{"$f":"IF('[1]MONE(M)CAPARD'!AT185=\"\",\"\",'[1]MONE(M)CAPARD'!AT185)","v":"n.a."},{"$f":"IF('[1]MONE(M)CAPARD'!AU185=\"\",\"\",'[1]MONE(M)CAPARD'!AU185)","v":"n.d."},{"$f":"IF('[1]MONE(M)CAPARD'!AV185=\"\",\"\",'[1]MONE(M)CAPARD'!AV185)","v":"n.d."},{"$f":"IF('[1]MONE(M)CAPARD'!AW185=\"\",\"\",'[1]MONE(M)CAPARD'!AW185)","v":"n.a."},{"$f":"IF('[1]MONE(M)CAPARD'!AX185=\"\",\"\",'[1]MONE(M)CAPARD'!AX185)","v":15},{"$f":"IF('[1]MONE(M)CAPARD'!AY185=\"\",\"\",'[1]MONE(M)CAPARD'!AY185)","v":"n.a."},{"$f":"IF('[1]FISCAL(M)'!$K185=\"\",\"\",'[1]FISCAL(M)'!$K185)","v":-1101.3363930423184},{"$f":"IF('[1]FISCAL(M)'!$L185=\"\",\"\",'[1]FISCAL(M)'!$L185)","v":-1660.7106841953187},{"$f":"IF('[1]FISCAL(M)'!$AY185=\"\",\"\",'[1]FISCAL(M)'!$AY185)","v":"n.d."},{"$f":"IF('[1]FISCAL(M)'!$BI185=\"\",\"\",'[1]FISCAL(M)'!$BI185)","v":"n.d."},{"$f":"IF('[1]FISCAL(M)'!$BS185=\"\",\"\",'[1]FISCAL(M)'!$BS185)","v":"n.d."},{"$f":"IF('[1]FISCAL(M)'!$AZ185=\"\",\"\",'[1]FISCAL(M)'!$AZ185)","v":"n.d."},{"$f":"IF('[1]FISCAL(M)'!$BJ185=\"\",\"\",'[1]FISCAL(M)'!$BJ185)","v":"n.d."},{"$f":"IF('[1]FISCAL(M)'!$BT185=\"\",\"\",'[1]FISCAL(M)'!$BT185)","v":"n.d."},{"$f":"IF('[2]MONE(M)'!$AO185=\"\",\"\",'[2]MONE(M)'!$AO185)","v":2518569.3244763548},{"$f":"IF('[3]MONE(M)'!$AO185=\"\",\"\",'[3]MONE(M)'!$AO185)","v":6547.1337428571433},{"$f":"IF('[4]MONE(M)'!$AO185=\"\",\"\",'[4]MONE(M)'!$AO185)","v":49393.675168607762},{"$f":"IF('[5]MONE(M)'!$AO185=\"\",\"\",'[5]MONE(M)'!$AO185)","v":59154.479556865306},{"$f":"IF('[6]MONE(M)'!$AO185=\"\",\"\",'[6]MONE(M)'!$AO185)","v":16069.099658784027},{"$f":"IF('[7]MONE(M)'!$AO185=\"\",\"\",'[7]MONE(M)'!$AO185)","v":186837.66881447},{"$f":"IF('[8]MONE(M)'!$AO185=\"\",\"\",'[8]MONE(M)'!$AO185)","v":10524.29272053},23.333503207553917,5.2507424792257451,28.140396544562705,21.468645813451094,24.191772037928594,-3.5928938262015375,4.2485728221435926,{"$f":"IF('[1]FISCAL(M)'!$K185=\"\",\"\",'[1]FISCAL(M)'!$K185)","v":-1101.3363930423184},{"$f":"+'[1]REAL(A)'!$AO$24","v":"n.d."},"n.d.",{"$f":"IF('[1]FISCAL(M)'!$L185=\"\",\"\",'[1]FISCAL(M)'!$L185)","v":-1660.7106841953187},{"$f":"+'[1]REAL(A)'!$AP$24","v":"n.d."},"n.d.","n.d.",{"$f":"'[1]Gráfico REM'!BG179","v":10167.192999657502},{"$f":"'[1]Gráfico REM'!BH179","v":27663.548763747851},{"$f":"'[1]Gráfico REM'!BI179","v":2149.5287172375401},"n.d.",25.09469156736106,7.6900221264145419,91.575911911964255,"n.d.",{"$f":"'[1]Gráfico REM'!BK179","v":10695.793238377502},{"$f":"'[1]Gráfico REM'!BL179","v":38187.841484277851},{"$f":"'[1]Gráfico REM'!BM179","v":8640.4961816775394},"n.d.",22.827127480404673,6.7191070414145182,17.10190622181176]
[2004,"septiembre","2004-septiembre",{"$f":"IF('[1]REAL IPC(M)'!$AL186=\"\",\"\",+'[1]REAL IPC(M)'!$AL186)","v":20.143657992905716},{"$f":"IF('[1]REAL IPC(M)'!$BE186=\"\",\"\",+'[1]REAL IPC(M)'!$BE186)","v":13.250962124153109},{"$f":"IF('[1]REAL IPC(M)'!$AM186=\"\",\"\",+'[1]REAL IPC(M)'!$AM186)","v":18.86901947145676},{"$f":"IF('[1]REAL IPC(M)'!$BI186=\"\",\"\",+'[1]REAL IPC(M)'!$BI186)","v":12.633964891860749},{"$f":"IF('[1]REAL IMAE(M)'!BJ186=\"\",\"\",'[1]REAL IMAE(M)'!BJ186)","v":"n.d."},{"$f":"IF('[1]REAL IMAE(M)'!BK186=\"\",\"\",'[1]REAL IMAE(M)'!BK186)","v":"n.d."},{"$f":"IF('[1]REAL IMAE(M)'!BN186=\"\",\"\",'[1]REAL IMAE(M)'!BN186)","v":"n.d."},{"$f":"IF('[1]REAL IMAE(M)'!BO186=\"\",\"\",'[1]REAL IMAE(M)'!BO186)","v":"n.d."},{"$f":"IF('[1]EXT RIN(M)'!$K186=\"\",\"\",'[1]EXT RIN(M)'!$K186)","v":8809.5398741231602},"",{"$f":"IF('[1]EXT RIN(M)'!$L186=\"\",\"\",'[1]EXT RIN(M)'!$L186)","v":9276.5959094052196},"",{"$f":"IF('[1]MONE(M)CARD'!EG186=\"\",\"\",'[1]MONE(M)CARD'!EG186)","v":9756.809025498349},{"$f":"IF('[1]MONE(M)CARD'!EK186=\"\",\"\",'[1]MONE(M)CARD'!EK186)","v":22032.50326476177},{"$f":"IF('[1]MONE(M)CARD'!EP186=\"\",\"\",'[1]MONE(M)CARD'!EP186)","v":11536.115694354139},{"$f":"IF('[1]MONE(M)CARD'!ES186=\"\",\"\",'[1]MONE(M)CARD'!ES186)","v":16.33314242879753},{"$f":"IF('[1]MONE(M)CARD'!EV186=\"\",\"\",'[1]MONE(M)CARD'!EV186)","v":13.881431592028704},{"$f":"IF('[1]MONE(M)CARD'!EZ186=\"\",\"\",'[1]MONE(M)CARD'!EZ186)","v":21.323245941676582},{"$f":"IF('[1]MONE(M)CAPARD'!FC186=\"\",\"\",'[1]MONE(M)CAPARD'!FC186)","v":11215.937264838349},{"$f":"IF('[1]MONE(M)CAPARD'!FG186=\"\",\"\",'[1]MONE(M)CAPARD'!FG186)","v":31534.356753481763},{"$f":"IF('[1]MONE(M)CAPARD'!FL186=\"\",\"\",'[1]MONE(M)CAPARD'!FL186)","v":11536.115694354143},{"$f":"IF('[1]MONE(M)CAPARD'!FO186=\"\",\"\",'[1]MONE(M)CAPARD'!FO186)","v":16.272302947222595},{"$f":"IF('[1]MONE(M)CAPARD'!FR186=\"\",\"\",'[1]MONE(M)CAPARD'!FR186)","v":12.706753610608512},{"$f":"IF('[1]MONE(M)CAPARD'!FV186=\"\",\"\",'[1]MONE(M)CAPARD'!FV186)","v":18.718770726481736},{"$f":"IF('[1]MONE(M)CARD'!FV186=\"\",\"\",'[1]MONE(M)CARD'!FV186)","v":347.77251557830573},{"$f":"IF('[1]MONE(M)CARD'!GD186=\"\",\"\",'[1]MONE(M)CARD'!GD186)","v":56.403577315445759},{"$f":"IF('[1]MONE(M)CARD'!GE186=\"\",\"\",'[1]MONE(M)CARD'!GE186)","v":3211.8482500007945},5.289961864752657,{"$f":"IF('[9]II.2.Balance OSD-Activos'!J44=\"\",\"\",'[9]II.2.Balance OSD-Activos'!J44)","v":149.67843239654437},{"$f":"IF('[9]II.2.Balance OSD-Activos'!N44=\"\",\"\",'[9]II.2.Balance OSD-Activos'!N44)","v":12.287453594906818},{"$f":"IF('[9]II.2.Balance OSD-Activos'!R44=\"\",\"\",'[9]II.2.Balance OSD-Activos'!R44)","v":12324.67409435425},{"$f":"IF('[9]II.2.Balance OSD-Activos'!S44=\"\",\"\",'[9]II.2.Balance OSD-Activos'!S44)","v":14643.77027491964},12474.352526750794,27130.410255265342,-10.026098062871169,-2.5788596655575646,-8.4839402145690297,-2.4808311390352999,24.745097393544313,10.479580630491792,3.3773045867809168,{"$f":"IF('[1]MONE(M)CAPARD'!GS186=\"\",\"\",'[1]MONE(M)CAPARD'!GS186)","v":5508.5139567040023},{"$f":"IF('[1]MONE(M)CARD'!HA186=\"\",\"\",'[1]MONE(M)CAPARD'!HA186)","v":3407.7264397707945},{"$f":"IF('[1]MONE(M)CAPARD'!HB186=\"\",\"\",'[1]MONE(M)CAPARD'!HB186)","v":2100.7875169332078},"n.d.",{"$f":"IF('[10]II.2.Balance OSD-Activos'!J44=\"\",\"\",'[10]II.2.Balance OSD-Activos'!J44)","v":491.88349984654434},{"$f":"IF('[10]II.2.Balance OSD-Activos'!N44=\"\",\"\",'[10]II.2.Balance OSD-Activos'!N44)","v":425.19435802490676},{"$f":"IF('[10]II.2.Balance OSD-Activos'!R44=\"\",\"\",'[10]II.2.Balance OSD-Activos'!R44)","v":17513.131805614252},{"$f":"IF('[10]II.2.Balance OSD-Activos'!S44=\"\",\"\",'[10]II.2.Balance OSD-Activos'!S44)","v":19584.933605589638},18005.015305460794,38015.143269075343,-35.909318036052603,-0.22235933813886666,5.288558815503408,1.3628695591325179,19.925474967299817,9.3020558924051819,2.8238613011633227,{"$f":"IF('[1]MONE(M)CAPARD'!AS186=\"\",\"\",'[1]MONE(M)CAPARD'!AS186)","v":"n.d."},{"$f":"IF('[1]MONE(M)CAPARD'!AT186=\"\",\"\",'[1]MONE(M)CAPARD'!AT186)","v":"n.a."},{"$f":"IF('[1]MONE(M)CAPARD'!AU186=\"\",\"\",'[1]MONE(M)CAPARD'!AU186)","v":"n.d."},{"$f":"IF('[1]MONE(M)CAPARD'!AV186=\"\",\"\",'[1]MONE(M)CAPARD'!AV186)","v":"n.d."},{"$f":"IF('[1]MONE(M)CAPARD'!AW186=\"\",\"\",'[1]MONE(M)CAPARD'!AW186)","v":"n.a."},{"$f":"IF('[1]MONE(M)CAPARD'!AX186=\"\",\"\",'[1]MONE(M)CAPARD'!AX186)","v":15},{"$f":"IF('[1]MONE(M)CAPARD'!AY186=\"\",\"\",'[1]MONE(M)CAPARD'!AY186)","v":"n.a."},{"$f":"IF('[1]FISCAL(M)'!$K186=\"\",\"\",'[1]FISCAL(M)'!$K186)","v":-1278.7455768606792},{"$f":"IF('[1]FISCAL(M)'!$L186=\"\",\"\",'[1]FISCAL(M)'!$L186)","v":-1820.2269416136796},{"$f":"IF('[1]FISCAL(M)'!$AY186=\"\",\"\",'[1]FISCAL(M)'!$AY186)","v":"n.d."},{"$f":"IF('[1]FISCAL(M)'!$BI186=\"\",\"\",'[1]FISCAL(M)'!$BI186)","v":"n.d."},{"$f":"IF('[1]FISCAL(M)'!$BS186=\"\",\"\",'[1]FISCAL(M)'!$BS186)","v":"n.d."},{"$f":"IF('[1]FISCAL(M)'!$AZ186=\"\",\"\",'[1]FISCAL(M)'!$AZ186)","v":"n.d."},{"$f":"IF('[1]FISCAL(M)'!$BJ186=\"\",\"\",'[1]FISCAL(M)'!$BJ186)","v":"n.d."},{"$f":"IF('[1]FISCAL(M)'!$BT186=\"\",\"\",'[1]FISCAL(M)'!$BT186)","v":"n.d."},{"$f":"IF('[2]MONE(M)'!$AO186=\"\",\"\",'[2]MONE(M)'!$AO186)","v":2549579.0251839012},{"$f":"IF('[3]MONE(M)'!$AO186=\"\",\"\",'[3]MONE(M)'!$AO186)","v":6537.297742857143},{"$f":"IF('[4]MONE(M)'!$AO186=\"\",\"\",'[4]MONE(M)'!$AO186)","v":50253.277152913179},{"$f":"IF('[5]MONE(M)'!$AO186=\"\",\"\",'[5]MONE(M)'!$AO186)","v":59734.488432101294},{"$f":"IF('[6]MONE(M)'!$AO186=\"\",\"\",'[6]MONE(M)'!$AO186)","v":16585.598392886699},{"$f":"IF('[7]MONE(M)'!$AO186=\"\",\"\",'[7]MONE(M)'!$AO186)","v":176313.911513231},{"$f":"IF('[8]MONE(M)'!$AO186=\"\",\"\",'[8]MONE(M)'!$AO186)","v":10657.694451959998},22.588794475306663,4.6367477993682238,37.313976662595394,21.459623948518946,23.196183501593403,-8.9227571221383926,5.8921897460527672,{"$f":"IF('[1]FISCAL(M)'!$K186=\"\",\"\",'[1]FISCAL(M)'!$K186)","v":-1278.7455768606792},{"$f":"+'[1]REAL(A)'!$AO$24","v":"n.d."},"n.d.",{"$f":"IF('[1]FISCAL(M)'!$L186=\"\",\"\",'[1]FISCAL(M)'!$L186)","v":-1820.2269416136796},{"$f":"+'[1]REAL(A)'!$AP$24","v":"n.d."},"n.d.","n.d.",{"$f":"'[1]Gráfico REM'!BG180","v":10765.421617133401},{"$f":"'[1]Gráfico REM'!BH180","v":28635.291594171507},{"$f":"'[1]Gráfico REM'!BI180","v":2215.4741202452078},"n.d.",40.989614397853515,12.516209985955594,101.42890754248812,"n.d.",{"$f":"'[1]Gráfico REM'!BK180","v":11260.183584113402},{"$f":"'[1]Gráfico REM'!BL180","v":39292.986046131504},{"$f":"'[1]Gráfico REM'!BM180","v":8673.6046394052082},"n.d.",36.931829810681791,10.638994309811078,18.322466296547656]
[2004,"octubre","2004-octubre",{"$f":"IF('[1]REAL IPC(M)'!$AL187=\"\",\"\",+'[1]REAL IPC(M)'!$AL187)","v":19.98666126665174},{"$f":"IF('[1]REAL IPC(M)'!$BE187=\"\",\"\",+'[1]REAL IPC(M)'!$BE187)","v":13.107334071241873},{"$f":"IF('[1]REAL IPC(M)'!$AM187=\"\",\"\",+'[1]REAL IPC(M)'!$AM187)","v":18.754531238534589},{"$f":"IF('[1]REAL IPC(M)'!$BI187=\"\",\"\",+'[1]REAL IPC(M)'!$BI187)","v":12.512750726138332},{"$f":"IF('[1]REAL IMAE(M)'!BJ187=\"\",\"\",'[1]REAL IMAE(M)'!BJ187)","v":"n.d."},{"$f":"IF('[1]REAL IMAE(M)'!BK187=\"\",\"\",'[1]REAL IMAE(M)'!BK187)","v":"n.d."},{"$f":"IF('[1]REAL IMAE(M)'!BN187=\"\",\"\",'[1]REAL IMAE(M)'!BN187)","v":"n.d."},{"$f":"IF('[1]REAL IMAE(M)'!BO187=\"\",\"\",'[1]REAL IMAE(M)'!BO187)","v":"n.d."},{"$f":"IF('[1]EXT RIN(M)'!$K187=\"\",\"\",'[1]EXT RIN(M)'!$K187)","v":9165.31045957278},"",{"$f":"IF('[1]EXT RIN(M)'!$L187=\"\",\"\",'[1]EXT RIN(M)'!$L187)","v":9634.0542299420995},"",{"$f":"IF('[1]MONE(M)CARD'!EG187=\"\",\"\",'[1]MONE(M)CARD'!EG187)","v":9751.0262811223656},{"$f":"IF('[1]MONE(M)CARD'!EK187=\"\",\"\",'[1]MONE(M)CARD'!EK187)","v":21945.596361739154},{"$f":"IF('[1]MONE(M)CARD'!EP187=\"\",\"\",'[1]MONE(M)CARD'!EP187)","v":11510.372092090161},{"$f":"IF('[1]MONE(M)CARD'!ES187=\"\",\"\",'[1]MONE(M)CARD'!ES187)","v":16.898732261572924},{"$f":"IF('[1]MONE(M)CARD'!EV187=\"\",\"\",'[1]MONE(M)CARD'!EV187)","v":17.236556610695253},{"$f":"IF('[1]MONE(M)CARD'!EZ187=\"\",\"\",'[1]MONE(M)CARD'!EZ187)","v":23.912105919002013},{"$f":"IF('[1]MONE(M)CAPARD'!FC187=\"\",\"\",'[1]MONE(M)CAPARD'!FC187)","v":11211.277783072364},{"$f":"IF('[1]MONE(M)CAPARD'!FG187=\"\",\"\",'[1]MONE(M)CAPARD'!FG187)","v":31457.756301649148},{"$f":"IF('[1]MONE(M)CAPARD'!FL187=\"\",\"\",'[1]MONE(M)CAPARD'!FL187)","v":11510.372092090161},{"$f":"IF('[1]MONE(M)CAPARD'!FO187=\"\",\"\",'[1]MONE(M)CAPARD'!FO187)","v":16.437307939280533},{"$f":"IF('[1]MONE(M)CAPARD'!FR187=\"\",\"\",'[1]MONE(M)CAPARD'!FR187)","v":15.016573838817294},{"$f":"IF('[1]MONE(M)CAPARD'!FV187=\"\",\"\",'[1]MONE(M)CAPARD'!FV187)","v":20.584216222881381},{"$f":"IF('[1]MONE(M)CARD'!FV187=\"\",\"\",'[1]MONE(M)CARD'!FV187)","v":357.4930536242415},{"$f":"IF('[1]MONE(M)CARD'!GD187=\"\",\"\",'[1]MONE(M)CARD'!GD187)","v":25.759268735222015},{"$f":"IF('[1]MONE(M)CARD'!GE187=\"\",\"\",'[1]MONE(M)CARD'!GE187)","v":3152.9263458750943},8.4902325197500517,{"$f":"IF('[9]II.2.Balance OSD-Activos'!J45=\"\",\"\",'[9]II.2.Balance OSD-Activos'!J45)","v":162.68173729062028},{"$f":"IF('[9]II.2.Balance OSD-Activos'!N45=\"\",\"\",'[9]II.2.Balance OSD-Activos'!N45)","v":11.845692559114905},{"$f":"IF('[9]II.2.Balance OSD-Activos'!R45=\"\",\"\",'[9]II.2.Balance OSD-Activos'!R45)","v":12291.363533485262},{"$f":"IF('[9]II.2.Balance OSD-Activos'!S45=\"\",\"\",'[9]II.2.Balance OSD-Activos'!S45)","v":14801.135562481331},12454.045270775883,27267.026525816327,9.5513255815009792,-1.2017291669743191,34.665650853466047,-1.3299145372843157,27.806665484179604,12.695992096607922,2.2164114661161296,{"$f":"IF('[1]MONE(M)CAPARD'!GS187=\"\",\"\",'[1]MONE(M)CAPARD'!GS187)","v":5595.8781519730937},{"$f":"IF('[1]MONE(M)CARD'!HA187=\"\",\"\",'[1]MONE(M)CAPARD'!HA187)","v":3348.8831643250946},{"$f":"IF('[1]MONE(M)CAPARD'!HB187=\"\",\"\",'[1]MONE(M)CAPARD'!HB187)","v":2246.9949876479991},"n.d.",{"$f":"IF('[10]II.2.Balance OSD-Activos'!J45=\"\",\"\",'[10]II.2.Balance OSD-Activos'!J45)","v":506.3904773006202},{"$f":"IF('[10]II.2.Balance OSD-Activos'!N45=\"\",\"\",'[10]II.2.Balance OSD-Activos'!N45)","v":438.66549846911488},{"$f":"IF('[10]II.2.Balance OSD-Activos'!R45=\"\",\"\",'[10]II.2.Balance OSD-Activos'!R45)","v":17565.604064245264},{"$f":"IF('[10]II.2.Balance OSD-Activos'!S45=\"\",\"\",'[10]II.2.Balance OSD-Activos'!S45)","v":19780.300090091332},18071.994541545886,38290.96013010633,-29.113767949685364,0.8078360394981221,15.021454495443432,2.0496511611801438,22.827065727187957,11.269734030023915,1.9676781376187336,{"$f":"IF('[1]MONE(M)CAPARD'!AS187=\"\",\"\",'[1]MONE(M)CAPARD'!AS187)","v":"n.d."},{"$f":"IF('[1]MONE(M)CAPARD'!AT187=\"\",\"\",'[1]MONE(M)CAPARD'!AT187)","v":"n.a."},{"$f":"IF('[1]MONE(M)CAPARD'!AU187=\"\",\"\",'[1]MONE(M)CAPARD'!AU187)","v":"n.d."},{"$f":"IF('[1]MONE(M)CAPARD'!AV187=\"\",\"\",'[1]MONE(M)CAPARD'!AV187)","v":"n.d."},{"$f":"IF('[1]MONE(M)CAPARD'!AW187=\"\",\"\",'[1]MONE(M)CAPARD'!AW187)","v":"n.a."},{"$f":"IF('[1]MONE(M)CAPARD'!AX187=\"\",\"\",'[1]MONE(M)CAPARD'!AX187)","v":10},{"$f":"IF('[1]MONE(M)CAPARD'!AY187=\"\",\"\",'[1]MONE(M)CAPARD'!AY187)","v":"n.a."},{"$f":"IF('[1]FISCAL(M)'!$K187=\"\",\"\",'[1]FISCAL(M)'!$K187)","v":-1271.5457126793938},{"$f":"IF('[1]FISCAL(M)'!$L187=\"\",\"\",'[1]FISCAL(M)'!$L187)","v":-1833.9785682223946},{"$f":"IF('[1]FISCAL(M)'!$AY187=\"\",\"\",'[1]FISCAL(M)'!$AY187)","v":"n.d."},{"$f":"IF('[1]FISCAL(M)'!$BI187=\"\",\"\",'[1]FISCAL(M)'!$BI187)","v":"n.d."},{"$f":"IF('[1]FISCAL(M)'!$BS187=\"\",\"\",'[1]FISCAL(M)'!$BS187)","v":"n.d."},{"$f":"IF('[1]FISCAL(M)'!$AZ187=\"\",\"\",'[1]FISCAL(M)'!$AZ187)","v":"n.d."},{"$f":"IF('[1]FISCAL(M)'!$BJ187=\"\",\"\",'[1]FISCAL(M)'!$BJ187)","v":"n.d."},{"$f":"IF('[1]FISCAL(M)'!$BT187=\"\",\"\",'[1]FISCAL(M)'!$BT187)","v":"n.d."},{"$f":"IF('[2]MONE(M)'!$AO187=\"\",\"\",'[2]MONE(M)'!$AO187)","v":2588565.4009046839},{"$f":"IF('[3]MONE(M)'!$AO187=\"\",\"\",'[3]MONE(M)'!$AO187)","v":6636.096742857143},{"$f":"IF('[4]MONE(M)'!$AO187=\"\",\"\",'[4]MONE(M)'!$AO187)","v":50783.251943715441},{"$f":"IF('[5]MONE(M)'!$AO187=\"\",\"\",'[5]MONE(M)'!$AO187)","v":60793.421366840157},{"$f":"IF('[6]MONE(M)'!$AO187=\"\",\"\",'[6]MONE(M)'!$AO187)","v":16794.499270341697},{"$f":"IF('[7]MONE(M)'!$AO187=\"\",\"\",'[7]MONE(M)'!$AO187)","v":177089.60509937},{"$f":"IF('[8]MONE(M)'!$AO187=\"\",\"\",'[8]MONE(M)'!$AO187)","v":10768.90565017},22.714221772057819,5.8920334348240955,28.628700056718337,22.374312653535377,22.859833017825547,-12.692378410867899,6.989107881659562,{"$f":"IF('[1]FISCAL(M)'!$K187=\"\",\"\",'[1]FISCAL(M)'!$K187)","v":-1271.5457126793938},{"$f":"+'[1]REAL(A)'!$AO$24","v":"n.d."},"n.d.",{"$f":"IF('[1]FISCAL(M)'!$L187=\"\",\"\",'[1]FISCAL(M)'!$L187)","v":-1833.9785682223946},{"$f":"+'[1]REAL(A)'!$AP$24","v":"n.d."},"n.d.","n.d.",{"$f":"'[1]Gráfico REM'!BG181","v":10703.957532714236},{"$f":"'[1]Gráfico REM'!BH181","v":28731.655595806929},{"$f":"'[1]Gráfico REM'!BI181","v":2125.5185358314375},"n.d.",40.013919423790398,13.233925767066479,67.613900698556947,"n.d.",{"$f":"'[1]Gráfico REM'!BK181","v":11232.779689444236},{"$f":"'[1]Gráfico REM'!BL181","v":39500.561245976933},{"$f":"'[1]Gráfico REM'!BM181","v":8752.7359284914364},"n.d.",36.494214226798036,11.460272924254266,19.819797935944017]
[2004,"noviembre","2004-noviembre",{"$f":"IF('[1]REAL IPC(M)'!$AL188=\"\",\"\",+'[1]REAL IPC(M)'!$AL188)","v":17.531030902579303},{"$f":"IF('[1]REAL IPC(M)'!$BE188=\"\",\"\",+'[1]REAL IPC(M)'!$BE188)","v":12.946441361992944},{"$f":"IF('[1]REAL IPC(M)'!$AM188=\"\",\"\",+'[1]REAL IPC(M)'!$AM188)","v":16.44436011086443},{"$f":"IF('[1]REAL IPC(M)'!$BI188=\"\",\"\",+'[1]REAL IPC(M)'!$BI188)","v":12.373466009820767},{"$f":"IF('[1]REAL IMAE(M)'!BJ188=\"\",\"\",'[1]REAL IMAE(M)'!BJ188)","v":"n.d."},{"$f":"IF('[1]REAL IMAE(M)'!BK188=\"\",\"\",'[1]REAL IMAE(M)'!BK188)","v":"n.d."},{"$f":"IF('[1]REAL IMAE(M)'!BN188=\"\",\"\",'[1]REAL IMAE(M)'!BN188)","v":"n.d."},{"$f":"IF('[1]REAL IMAE(M)'!BO188=\"\",\"\",'[1]REAL IMAE(M)'!BO188)","v":"n.d."},{"$f":"IF('[1]EXT RIN(M)'!$K188=\"\",\"\",'[1]EXT RIN(M)'!$K188)","v":9764.1279495399504},"",{"$f":"IF('[1]EXT RIN(M)'!$L188=\"\",\"\",'[1]EXT RIN(M)'!$L188)","v":10252.877585201149},"",{"$f":"IF('[1]MONE(M)CARD'!EG188=\"\",\"\",'[1]MONE(M)CARD'!EG188)","v":10296.100412878688},{"$f":"IF('[1]MONE(M)CARD'!EK188=\"\",\"\",'[1]MONE(M)CARD'!EK188)","v":22997.289476057333},{"$f":"IF('[1]MONE(M)CARD'!EP188=\"\",\"\",'[1]MONE(M)CARD'!EP188)","v":11659.597021393631},{"$f":"IF('[1]MONE(M)CARD'!ES188=\"\",\"\",'[1]MONE(M)CARD'!ES188)","v":19.567851320906438},{"$f":"IF('[1]MONE(M)CARD'!EV188=\"\",\"\",'[1]MONE(M)CARD'!EV188)","v":24.600372893440081},{"$f":"IF('[1]MONE(M)CARD'!EZ188=\"\",\"\",'[1]MONE(M)CARD'!EZ188)","v":29.733782290334144},{"$f":"IF('[1]MONE(M)CAPARD'!FC188=\"\",\"\",'[1]MONE(M)CAPARD'!FC188)","v":11827.204710288686},{"$f":"IF('[1]MONE(M)CAPARD'!FG188=\"\",\"\",'[1]MONE(M)CAPARD'!FG188)","v":32591.003493477336},{"$f":"IF('[1]MONE(M)CAPARD'!FL188=\"\",\"\",'[1]MONE(M)CAPARD'!FL188)","v":11659.597021393631},{"$f":"IF('[1]MONE(M)CAPARD'!FO188=\"\",\"\",'[1]MONE(M)CAPARD'!FO188)","v":18.010563290238156},{"$f":"IF('[1]MONE(M)CAPARD'!FR188=\"\",\"\",'[1]MONE(M)CAPARD'!FR188)","v":20.231529019586336},{"$f":"IF('[1]MONE(M)CAPARD'!FV188=\"\",\"\",'[1]MONE(M)CAPARD'!FV188)","v":24.96743335926319},{"$f":"IF('[1]MONE(M)CARD'!FV188=\"\",\"\",'[1]MONE(M)CARD'!FV188)","v":382.17002559479329},{"$f":"IF('[1]MONE(M)CARD'!GD188=\"\",\"\",'[1]MONE(M)CARD'!GD188)","v":31.734371791368783},{"$f":"IF('[1]MONE(M)CARD'!GE188=\"\",\"\",'[1]MONE(M)CARD'!GE188)","v":3341.414973387667},15.738641550888532,{"$f":"IF('[9]II.2.Balance OSD-Activos'!J46=\"\",\"\",'[9]II.2.Balance OSD-Activos'!J46)","v":161.09296103478314},{"$f":"IF('[9]II.2.Balance OSD-Activos'!N46=\"\",\"\",'[9]II.2.Balance OSD-Activos'!N46)","v":12.400017840115797},{"$f":"IF('[9]II.2.Balance OSD-Activos'!R46=\"\",\"\",'[9]II.2.Balance OSD-Activos'!R46)","v":12772.993459778283},{"$f":"IF('[9]II.2.Balance OSD-Activos'!S46=\"\",\"\",'[9]II.2.Balance OSD-Activos'!S46)","v":15404.77672662698},12934.086420813066,28351.263165280165,9.4102447609928586,3.6123525853630767,104.27027868599939,3.5431507846193089,32.860885832903698,17.71879690129412,5.0228048046861975,{"$f":"IF('[1]MONE(M)CAPARD'!GS188=\"\",\"\",'[1]MONE(M)CAPARD'!GS188)","v":5803.9894990504299},{"$f":"IF('[1]MONE(M)CARD'!HA188=\"\",\"\",'[1]MONE(M)CAPARD'!HA188)","v":3538.3762986076676},{"$f":"IF('[1]MONE(M)CAPARD'!HB188=\"\",\"\",'[1]MONE(M)CAPARD'!HB188)","v":2265.6132004427623},"n.d.",{"$f":"IF('[10]II.2.Balance OSD-Activos'!J46=\"\",\"\",'[10]II.2.Balance OSD-Activos'!J46)","v":506.41464473478317},{"$f":"IF('[10]II.2.Balance OSD-Activos'!N46=\"\",\"\",'[10]II.2.Balance OSD-Activos'!N46)","v":417.88658367011584},{"$f":"IF('[10]II.2.Balance OSD-Activos'!R46=\"\",\"\",'[10]II.2.Balance OSD-Activos'!R46)","v":18074.644692688282},{"$f":"IF('[10]II.2.Balance OSD-Activos'!S46=\"\",\"\",'[10]II.2.Balance OSD-Activos'!S46)","v":20439.61400273698},18581.059337423067,39438.559923830166,-33.17065737220306,4.4346318087735925,8.0470446603476464,6.1075101361811601,26.535148908590365,14.873650262265304,3.6039162322413887,{"$f":"IF('[1]MONE(M)CAPARD'!AS188=\"\",\"\",'[1]MONE(M)CAPARD'!AS188)","v":"n.d."},{"$f":"IF('[1]MONE(M)CAPARD'!AT188=\"\",\"\",'[1]MONE(M)CAPARD'!AT188)","v":"n.a."},{"$f":"IF('[1]MONE(M)CAPARD'!AU188=\"\",\"\",'[1]MONE(M)CAPARD'!AU188)","v":"n.d."},{"$f":"IF('[1]MONE(M)CAPARD'!AV188=\"\",\"\",'[1]MONE(M)CAPARD'!AV188)","v":"n.d."},{"$f":"IF('[1]MONE(M)CAPARD'!AW188=\"\",\"\",'[1]MONE(M)CAPARD'!AW188)","v":"n.a."},{"$f":"IF('[1]MONE(M)CAPARD'!AX188=\"\",\"\",'[1]MONE(M)CAPARD'!AX188)","v":10},{"$f":"IF('[1]MONE(M)CAPARD'!AY188=\"\",\"\",'[1]MONE(M)CAPARD'!AY188)","v":"n.a."},{"$f":"IF('[1]FISCAL(M)'!$K188=\"\",\"\",'[1]FISCAL(M)'!$K188)","v":-1330.6896512427397},{"$f":"IF('[1]FISCAL(M)'!$L188=\"\",\"\",'[1]FISCAL(M)'!$L188)","v":-2156.8913234557408},{"$f":"IF('[1]FISCAL(M)'!$AY188=\"\",\"\",'[1]FISCAL(M)'!$AY188)","v":"n.d."},{"$f":"IF('[1]FISCAL(M)'!$BI188=\"\",\"\",'[1]FISCAL(M)'!$BI188)","v":"n.d."},{"$f":"IF('[1]FISCAL(M)'!$BS188=\"\",\"\",'[1]FISCAL(M)'!$BS188)","v":"n.d."},{"$f":"IF('[1]FISCAL(M)'!$AZ188=\"\",\"\",'[1]FISCAL(M)'!$AZ188)","v":"n.d."},{"$f":"IF('[1]FISCAL(M)'!$BJ188=\"\",\"\",'[1]FISCAL(M)'!$BJ188)","v":"n.d."},{"$f":"IF('[1]FISCAL(M)'!$BT188=\"\",\"\",'[1]FISCAL(M)'!$BT188)","v":"n.d."},{"$f":"IF('[2]MONE(M)'!$AO188=\"\",\"\",'[2]MONE(M)'!$AO188)","v":2625052.4513633177},{"$f":"IF('[3]MONE(M)'!$AO188=\"\",\"\",'[3]MONE(M)'!$AO188)","v":6701.444742857143},{"$f":"IF('[4]MONE(M)'!$AO188=\"\",\"\",'[4]MONE(M)'!$AO188)","v":51762.247456015735},{"$f":"IF('[5]MONE(M)'!$AO188=\"\",\"\",'[5]MONE(M)'!$AO188)","v":61572.106925390712},{"$f":"IF('[6]MONE(M)'!$AO188=\"\",\"\",'[6]MONE(M)'!$AO188)","v":17430.040360053201},{"$f":"IF('[7]MONE(M)'!$AO188=\"\",\"\",'[7]MONE(M)'!$AO188)","v":175892.96741039},{"$f":"IF('[8]MONE(M)'!$AO188=\"\",\"\",'[8]MONE(M)'!$AO188)","v":10862.323132049998},21.64192555147466,5.3260712840190738,29.411317546173166,20.287766979715862,23.985405014116235,-17.481042927189915,7.5036263962897198,{"$f":"IF('[1]FISCAL(M)'!$K188=\"\",\"\",'[1]FISCAL(M)'!$K188)","v":-1330.6896512427397},{"$f":"+'[1]REAL(A)'!$AO$24","v":"n.d."},"n.d.",{"$f":"IF('[1]FISCAL(M)'!$L188=\"\",\"\",'[1]FISCAL(M)'!$L188)","v":-2156.8913234557408},{"$f":"+'[1]REAL(A)'!$AP$24","v":"n.d."},"n.d.","n.d.",{"$f":"'[1]Gráfico REM'!BG182","v":11285.508730542975},{"$f":"'[1]Gráfico REM'!BH182","v":29804.435970170503},{"$f":"'[1]Gráfico REM'!BI182","v":2176.6309618407527},"n.d.",52.790471038657415,17.858792071942986,104.68975045777964,"n.d.",{"$f":"'[1]Gráfico REM'!BK182","v":11893.136209622975},{"$f":"'[1]Gráfico REM'!BL182","v":40666.759102220502},{"$f":"'[1]Gráfico REM'!BM182","v":9350.7877657007521},"n.d.",48.675466551418502,14.902505100442109,34.865918973420442]
[2004,"diciembre","2004-diciembre",{"$f":"IF('[1]REAL IPC(M)'!$AL189=\"\",\"\",+'[1]REAL IPC(M)'!$AL189)","v":15.644798145368611},{"$f":"IF('[1]REAL IPC(M)'!$BE189=\"\",\"\",+'[1]REAL IPC(M)'!$BE189)","v":12.771112297210397},{"$f":"IF('[1]REAL IPC(M)'!$AM189=\"\",\"\",+'[1]REAL IPC(M)'!$AM189)","v":14.702746436358227},{"$f":"IF('[1]REAL IPC(M)'!$BI189=\"\",\"\",+'[1]REAL IPC(M)'!$BI189)","v":12.218663467292412},{"$f":"IF('[1]REAL IMAE(M)'!BJ189=\"\",\"\",'[1]REAL IMAE(M)'!BJ189)","v":"n.d."},{"$f":"IF('[1]REAL IMAE(M)'!BK189=\"\",\"\",'[1]REAL IMAE(M)'!BK189)","v":"n.d."},{"$f":"IF('[1]REAL IMAE(M)'!BN189=\"\",\"\",'[1]REAL IMAE(M)'!BN189)","v":"n.d."},{"$f":"IF('[1]REAL IMAE(M)'!BO189=\"\",\"\",'[1]REAL IMAE(M)'!BO189)","v":"n.d."},{"$f":"IF('[1]EXT RIN(M)'!$K189=\"\",\"\",'[1]EXT RIN(M)'!$K189)","v":10190.404261494246},10190.404261494246,{"$f":"IF('[1]EXT RIN(M)'!$L189=\"\",\"\",'[1]EXT RIN(M)'!$L189)","v":10808.749128948926},10808.749128948926,{"$f":"IF('[1]MONE(M)CARD'!EG189=\"\",\"\",'[1]MONE(M)CARD'!EG189)","v":10878.798780452249},{"$f":"IF('[1]MONE(M)CARD'!EK189=\"\",\"\",'[1]MONE(M)CARD'!EK189)","v":22540.967108744917},{"$f":"IF('[1]MONE(M)CARD'!EP189=\"\",\"\",'[1]MONE(M)CARD'!EP189)","v":11868.702170519478},{"$f":"IF('[1]MONE(M)CARD'!ES189=\"\",\"\",'[1]MONE(M)CARD'!ES189)","v":10.888768683484695},{"$f":"IF('[1]MONE(M)CARD'!EV189=\"\",\"\",'[1]MONE(M)CARD'!EV189)","v":16.827689098237066},{"$f":"IF('[1]MONE(M)CARD'!EZ189=\"\",\"\",'[1]MONE(M)CARD'!EZ189)","v":17.484134021983898},{"$f":"IF('[1]MONE(M)CAPARD'!FC189=\"\",\"\",'[1]MONE(M)CAPARD'!FC189)","v":12511.86292930225},{"$f":"IF('[1]MONE(M)CAPARD'!FG189=\"\",\"\",'[1]MONE(M)CAPARD'!FG189)","v":32136.032113404919},{"$f":"IF('[1]MONE(M)CAPARD'!FL189=\"\",\"\",'[1]MONE(M)CAPARD'!FL189)","v":11868.702170519478},{"$f":"IF('[1]MONE(M)CAPARD'!FO189=\"\",\"\",'[1]MONE(M)CAPARD'!FO189)","v":10.979203640407675},{"$f":"IF('[1]MONE(M)CAPARD'!FR189=\"\",\"\",'[1]MONE(M)CAPARD'!FR189)","v":14.553943098390709},{"$f":"IF('[1]MONE(M)CAPARD'!FV189=\"\",\"\",'[1]MONE(M)CAPARD'!FV189)","v":15.533375453819476},{"$f":"IF('[1]MONE(M)CARD'!FV189=\"\",\"\",'[1]MONE(M)CARD'!FV189)","v":407.93865274269831},{"$f":"IF('[1]MONE(M)CARD'!GD189=\"\",\"\",'[1]MONE(M)CARD'!GD189)","v":15.107685496573541},{"$f":"IF('[1]MONE(M)CARD'!GE189=\"\",\"\",'[1]MONE(M)CARD'!GE189)","v":3091.074865449104},13.164528501727023,{"$f":"IF('[9]II.2.Balance OSD-Activos'!J47=\"\",\"\",'[9]II.2.Balance OSD-Activos'!J47)","v":136.53216421903906},{"$f":"IF('[9]II.2.Balance OSD-Activos'!N47=\"\",\"\",'[9]II.2.Balance OSD-Activos'!N47)","v":11.824464891618662},{"$f":"IF('[9]II.2.Balance OSD-Activos'!R47=\"\",\"\",'[9]II.2.Balance OSD-Activos'!R47)","v":12626.156007852149},{"$f":"IF('[9]II.2.Balance OSD-Activos'!S47=\"\",\"\",'[9]II.2.Balance OSD-Activos'!S47)","v":15598.243511245906},12762.688172071188,28372.756148208711,-14.811235358364483,-0.14347557239454689,116.82581380389392,4.2789353452366008E-2,21.090133362235708,10.537488922937799,-7.1813079783563207,{"$f":"IF('[1]MONE(M)CAPARD'!GS189=\"\",\"\",'[1]MONE(M)CAPARD'!GS189)","v":5821.1470823277677},{"$f":"IF('[1]MONE(M)CARD'!HA189=\"\",\"\",'[1]MONE(M)CAPARD'!HA189)","v":3283.9617883291039},{"$f":"IF('[1]MONE(M)CAPARD'!HB189=\"\",\"\",'[1]MONE(M)CAPARD'!HB189)","v":2537.1852939986638},"n.d.",{"$f":"IF('[10]II.2.Balance OSD-Activos'!J47=\"\",\"\",'[10]II.2.Balance OSD-Activos'!J47)","v":473.69490492903901},{"$f":"IF('[10]II.2.Balance OSD-Activos'!N47=\"\",\"\",'[10]II.2.Balance OSD-Activos'!N47)","v":415.40273592161867},{"$f":"IF('[10]II.2.Balance OSD-Activos'!R47=\"\",\"\",'[10]II.2.Balance OSD-Activos'!R47)","v":17745.974603212151},{"$f":"IF('[10]II.2.Balance OSD-Activos'!S47=\"\",\"\",'[10]II.2.Balance OSD-Activos'!S47)","v":20697.023788005903},18219.669508141189,39332.096032068715,-23.225175157555931,1.3965832740081341,17.171917799402657,2.2720833588833145,18.36673735029375,9.8393371038852031,-5.0343131583801011,{"$f":"IF('[1]MONE(M)CAPARD'!AS189=\"\",\"\",'[1]MONE(M)CAPARD'!AS189)","v":"n.d."},{"$f":"IF('[1]MONE(M)CAPARD'!AT189=\"\",\"\",'[1]MONE(M)CAPARD'!AT189)","v":"n.a."},{"$f":"IF('[1]MONE(M)CAPARD'!AU189=\"\",\"\",'[1]MONE(M)CAPARD'!AU189)","v":"n.d."},{"$f":"IF('[1]MONE(M)CAPARD'!AV189=\"\",\"\",'[1]MONE(M)CAPARD'!AV189)","v":"n.d."},{"$f":"IF('[1]MONE(M)CAPARD'!AW189=\"\",\"\",'[1]MONE(M)CAPARD'!AW189)","v":"n.a."},{"$f":"IF('[1]MONE(M)CAPARD'!AX189=\"\",\"\",'[1]MONE(M)CAPARD'!AX189)","v":7},{"$f":"IF('[1]MONE(M)CAPARD'!AY189=\"\",\"\",'[1]MONE(M)CAPARD'!AY189)","v":"n.a."},{"$f":"IF('[1]FISCAL(M)'!$K189=\"\",\"\",'[1]FISCAL(M)'!$K189)","v":-2035.9986310884683},{"$f":"IF('[1]FISCAL(M)'!$L189=\"\",\"\",'[1]FISCAL(M)'!$L189)","v":-1940.8688709214696},{"$f":"IF('[1]FISCAL(M)'!$AY189=\"\",\"\",'[1]FISCAL(M)'!$AY189)","v":"n.d."},{"$f":"IF('[1]FISCAL(M)'!$BI189=\"\",\"\",'[1]FISCAL(M)'!$BI189)","v":"n.d."},{"$f":"IF('[1]FISCAL(M)'!$BS189=\"\",\"\",'[1]FISCAL(M)'!$BS189)","v":29450.300000000003},{"$f":"IF('[1]FISCAL(M)'!$AZ189=\"\",\"\",'[1]FISCAL(M)'!$AZ189)","v":"n.d."},{"$f":"IF('[1]FISCAL(M)'!$BJ189=\"\",\"\",'[1]FISCAL(M)'!$BJ189)","v":"n.d."},{"$f":"IF('[1]FISCAL(M)'!$BT189=\"\",\"\",'[1]FISCAL(M)'!$BT189)","v":36669.483222289993},{"$f":"IF('[2]MONE(M)'!$AO189=\"\",\"\",'[2]MONE(M)'!$AO189)","v":2698691.7171735931},{"$f":"IF('[3]MONE(M)'!$AO189=\"\",\"\",'[3]MONE(M)'!$AO189)","v":6707.2817428571416},{"$f":"IF('[4]MONE(M)'!$AO189=\"\",\"\",'[4]MONE(M)'!$AO189)","v":53400.474005754833},{"$f":"IF('[5]MONE(M)'!$AO189=\"\",\"\",'[5]MONE(M)'!$AO189)","v":62052.733351520394},{"$f":"IF('[6]MONE(M)'!$AO189=\"\",\"\",'[6]MONE(M)'!$AO189)","v":18320.389897868121},{"$f":"IF('[7]MONE(M)'!$AO189=\"\",\"\",'[7]MONE(M)'!$AO189)","v":178521.91516318999},{"$f":"IF('[8]MONE(M)'!$AO189=\"\",\"\",'[8]MONE(M)'!$AO189)","v":10709.198761289997},19.617390705369587,3.9939632743277054,8.9735485227242293,14.84525655704909,27.940116090341192,-8.2163540689178518,7.0205864681916585,{"$f":"IF('[1]FISCAL(M)'!$K189=\"\",\"\",'[1]FISCAL(M)'!$K189)","v":-2035.9986310884683},{"$f":"+'[1]REAL(A)'!$AO$24","v":"n.d."},"n.d.",{"$f":"IF('[1]FISCAL(M)'!$L189=\"\",\"\",'[1]FISCAL(M)'!$L189)","v":-1940.8688709214696},{"$f":"+'[1]REAL(A)'!$AP$24","v":"n.d."},"n.d.","n.d.",{"$f":"'[1]Gráfico REM'!BG183","v":11074.575200335561},{"$f":"'[1]Gráfico REM'!BH183","v":29837.502363400672},{"$f":"'[1]Gráfico REM'!BI183","v":2398.2170712095713},"n.d.",42.3027125138806,9.8659038182927752,26.159310528948065,"n.d.",{"$f":"'[1]Gráfico REM'!BK183","v":11597.361395835562},{"$f":"'[1]Gráfico REM'!BL183","v":40546.70112469067},{"$f":"'[1]Gráfico REM'!BM183","v":9834.523836169572},"n.d.",39.493470740332292,9.0997979568549603,19.106067632486258]
[2005,"enero","2005-enero",{"$f":"IF('[1]REAL IPC(M)'!$AL190=\"\",\"\",+'[1]REAL IPC(M)'!$AL190)","v":13.371971715752306},{"$f":"IF('[1]REAL IPC(M)'!$BE190=\"\",\"\",+'[1]REAL IPC(M)'!$BE190)","v":12.584325966856857},{"$f":"IF('[1]REAL IPC(M)'!$AM190=\"\",\"\",+'[1]REAL IPC(M)'!$AM190)","v":12.736973858350243},{"$f":"IF('[1]REAL IPC(M)'!$BI190=\"\",\"\",+'[1]REAL IPC(M)'!$BI190)","v":12.051062135485546},{"$f":"IF('[1]REAL IMAE(M)'!BJ190=\"\",\"\",'[1]REAL IMAE(M)'!BJ190)","v":"n.d."},{"$f":"IF('[1]REAL IMAE(M)'!BK190=\"\",\"\",'[1]REAL IMAE(M)'!BK190)","v":"n.d."},{"$f":"IF('[1]REAL IMAE(M)'!BN190=\"\",\"\",'[1]REAL IMAE(M)'!BN190)","v":"n.d."},{"$f":"IF('[1]REAL IMAE(M)'!BO190=\"\",\"\",'[1]REAL IMAE(M)'!BO190)","v":"n.d."},{"$f":"IF('[1]EXT RIN(M)'!$K190=\"\",\"\",'[1]EXT RIN(M)'!$K190)","v":10185.619650385206},"",{"$f":"IF('[1]EXT RIN(M)'!$L190=\"\",\"\",'[1]EXT RIN(M)'!$L190)","v":11283.375532274325},"",{"$f":"IF('[1]MONE(M)CARD'!EG190=\"\",\"\",'[1]MONE(M)CARD'!EG190)","v":10759.194992311634},{"$f":"IF('[1]MONE(M)CARD'!EK190=\"\",\"\",'[1]MONE(M)CARD'!EK190)","v":23081.420477862135},{"$f":"IF('[1]MONE(M)CARD'!EP190=\"\",\"\",'[1]MONE(M)CARD'!EP190)","v":12049.17109915406},{"$f":"IF('[1]MONE(M)CARD'!ES190=\"\",\"\",'[1]MONE(M)CARD'!ES190)","v":19.125619322783805},{"$f":"IF('[1]MONE(M)CARD'!EV190=\"\",\"\",'[1]MONE(M)CARD'!EV190)","v":28.663970736230503},{"$f":"IF('[1]MONE(M)CARD'!EZ190=\"\",\"\",'[1]MONE(M)CARD'!EZ190)","v":26.084436084768203},{"$f":"IF('[1]MONE(M)CAPARD'!FC190=\"\",\"\",'[1]MONE(M)CAPARD'!FC190)","v":12281.102807841631},{"$f":"IF('[1]MONE(M)CAPARD'!FG190=\"\",\"\",'[1]MONE(M)CAPARD'!FG190)","v":32692.238866232128},{"$f":"IF('[1]MONE(M)CAPARD'!FL190=\"\",\"\",'[1]MONE(M)CAPARD'!FL190)","v":12049.17109915406},{"$f":"IF('[1]MONE(M)CAPARD'!FO190=\"\",\"\",'[1]MONE(M)CAPARD'!FO190)","v":17.80657667341028},{"$f":"IF('[1]MONE(M)CAPARD'!FR190=\"\",\"\",'[1]MONE(M)CAPARD'!FR190)","v":22.597420794244847},{"$f":"IF('[1]MONE(M)CAPARD'!FV190=\"\",\"\",'[1]MONE(M)CAPARD'!FV190)","v":21.899533321316845},{"$f":"IF('[1]MONE(M)CARD'!FV190=\"\",\"\",'[1]MONE(M)CARD'!FV190)","v":403.46555327910926},{"$f":"IF('[1]MONE(M)CARD'!GD190=\"\",\"\",'[1]MONE(M)CARD'!GD190)","v":32.473557267692264},{"$f":"IF('[1]MONE(M)CARD'!GE190=\"\",\"\",'[1]MONE(M)CARD'!GE190)","v":3383.679853342433},30.850358257196863,{"$f":"IF('[9]II.2.Balance OSD-Activos'!J48=\"\",\"\",'[9]II.2.Balance OSD-Activos'!J48)","v":182.44594340512481},{"$f":"IF('[9]II.2.Balance OSD-Activos'!N48=\"\",\"\",'[9]II.2.Balance OSD-Activos'!N48)","v":117.03052184408482},{"$f":"IF('[9]II.2.Balance OSD-Activos'!R48=\"\",\"\",'[9]II.2.Balance OSD-Activos'!R48)","v":11642.520752587861},{"$f":"IF('[9]II.2.Balance OSD-Activos'!S48=\"\",\"\",'[9]II.2.Balance OSD-Activos'!S48)","v":16879.69721629404},11824.966695992985,28821.69443413111,16.601117065199421,-1.459422920821718,1958.3863825428921,-1.6980267704281848,36.824868160006652,18.400708010697841,7.8632190877600419,{"$f":"IF('[1]MONE(M)CAPARD'!GS190=\"\",\"\",'[1]MONE(M)CAPARD'!GS190)","v":5786.5952615735696},{"$f":"IF('[1]MONE(M)CARD'!HA190=\"\",\"\",'[1]MONE(M)CAPARD'!HA190)","v":3574.2515825224327},{"$f":"IF('[1]MONE(M)CAPARD'!HB190=\"\",\"\",'[1]MONE(M)CAPARD'!HB190)","v":2212.3436790511369},"n.d.",{"$f":"IF('[10]II.2.Balance OSD-Activos'!J48=\"\",\"\",'[10]II.2.Balance OSD-Activos'!J48)","v":516.75083991512474},{"$f":"IF('[10]II.2.Balance OSD-Activos'!N48=\"\",\"\",'[10]II.2.Balance OSD-Activos'!N48)","v":513.7450404540848},{"$f":"IF('[10]II.2.Balance OSD-Activos'!R48=\"\",\"\",'[10]II.2.Balance OSD-Activos'!R48)","v":16817.27472884786},{"$f":"IF('[10]II.2.Balance OSD-Activos'!S48=\"\",\"\",'[10]II.2.Balance OSD-Activos'!S48)","v":22001.477239424043},17334.025568762983,39849.247848641113,-17.79658149213974,0.47254329487984581,48.589134624911303,1.1633821832518043,29.792275472510088,15.339418152570516,5.5000810486853133,{"$f":"IF('[1]MONE(M)CAPARD'!AS190=\"\",\"\",'[1]MONE(M)CAPARD'!AS190)","v":"n.d."},{"$f":"IF('[1]MONE(M)CAPARD'!AT190=\"\",\"\",'[1]MONE(M)CAPARD'!AT190)","v":"n.a."},{"$f":"IF('[1]MONE(M)CAPARD'!AU190=\"\",\"\",'[1]MONE(M)CAPARD'!AU190)","v":2.5499999999999998},{"$f":"IF('[1]MONE(M)CAPARD'!AV190=\"\",\"\",'[1]MONE(M)CAPARD'!AV190)","v":"n.d."},{"$f":"IF('[1]MONE(M)CAPARD'!AW190=\"\",\"\",'[1]MONE(M)CAPARD'!AW190)","v":"n.a."},{"$f":"IF('[1]MONE(M)CAPARD'!AX190=\"\",\"\",'[1]MONE(M)CAPARD'!AX190)","v":4},{"$f":"IF('[1]MONE(M)CAPARD'!AY190=\"\",\"\",'[1]MONE(M)CAPARD'!AY190)","v":"n.a."},{"$f":"IF('[1]FISCAL(M)'!$K190=\"\",\"\",'[1]FISCAL(M)'!$K190)","v":13.80387525893542},{"$f":"IF('[1]FISCAL(M)'!$L190=\"\",\"\",'[1]FISCAL(M)'!$L190)","v":395.54746637893538},{"$f":"IF('[1]FISCAL(M)'!$AY190=\"\",\"\",'[1]FISCAL(M)'!$AY190)","v":"n.d."},{"$f":"IF('[1]FISCAL(M)'!$BI190=\"\",\"\",'[1]FISCAL(M)'!$BI190)","v":"n.d."},{"$f":"IF('[1]FISCAL(M)'!$BS190=\"\",\"\",'[1]FISCAL(M)'!$BS190)","v":"n.d."},{"$f":"IF('[1]FISCAL(M)'!$AZ190=\"\",\"\",'[1]FISCAL(M)'!$AZ190)","v":"n.d."},{"$f":"IF('[1]FISCAL(M)'!$BJ190=\"\",\"\",'[1]FISCAL(M)'!$BJ190)","v":"n.d."},{"$f":"IF('[1]FISCAL(M)'!$BT190=\"\",\"\",'[1]FISCAL(M)'!$BT190)","v":"n.d."},{"$f":"IF('[2]MONE(M)'!$AO190=\"\",\"\",'[2]MONE(M)'!$AO190)","v":2717067.2638911577},{"$f":"IF('[3]MONE(M)'!$AO190=\"\",\"\",'[3]MONE(M)'!$AO190)","v":6837.908530337143},{"$f":"IF('[4]MONE(M)'!$AO190=\"\",\"\",'[4]MONE(M)'!$AO190)","v":53462.139755380893},{"$f":"IF('[5]MONE(M)'!$AO190=\"\",\"\",'[5]MONE(M)'!$AO190)","v":61841.894977776632},{"$f":"IF('[6]MONE(M)'!$AO190=\"\",\"\",'[6]MONE(M)'!$AO190)","v":18485.997000725532},{"$f":"IF('[7]MONE(M)'!$AO190=\"\",\"\",'[7]MONE(M)'!$AO190)","v":174373.72288120998},{"$f":"IF('[8]MONE(M)'!$AO190=\"\",\"\",'[8]MONE(M)'!$AO190)","v":10780.578187610001},20.368706597993636,5.9356319008860181,13.241010066930571,13.536244879812331,29.457341788802726,-17.86762379145501,7.0604721042865304,{"$f":"IF('[1]FISCAL(M)'!$K190=\"\",\"\",'[1]FISCAL(M)'!$K190)","v":13.80387525893542},{"$f":"+'[1]REAL(A)'!$AO$25","v":"n.d."},"n.d.",{"$f":"IF('[1]FISCAL(M)'!$L190=\"\",\"\",'[1]FISCAL(M)'!$L190)","v":395.54746637893538},{"$f":"+'[1]REAL(A)'!$AP$25","v":"n.d."},"n.d.","n.d.",{"$f":"'[1]Gráfico REM'!BG184","v":11577.558395291777},{"$f":"'[1]Gráfico REM'!BH184","v":30155.148883539736},{"$f":"'[1]Gráfico REM'!BI184","v":2503.1801285577521},"n.d.",49.460328998409551,17.205013668063085,25.594166058972224,"n.d.",{"$f":"'[1]Gráfico REM'!BK184","v":12088.582280261777},{"$f":"'[1]Gráfico REM'!BL184","v":40935.72707114974},{"$f":"'[1]Gráfico REM'!BM184","v":9912.6114917177511},"n.d.",45.79128745707628,14.3514697059403,19.156544814218577]
[2005,"febrero","2005-febrero",{"$f":"IF('[1]REAL IPC(M)'!$AL191=\"\",\"\",+'[1]REAL IPC(M)'!$AL191)","v":9.6046096229169144},{"$f":"IF('[1]REAL IPC(M)'!$BE191=\"\",\"\",+'[1]REAL IPC(M)'!$BE191)","v":12.389145664262147},{"$f":"IF('[1]REAL IPC(M)'!$AM191=\"\",\"\",+'[1]REAL IPC(M)'!$AM191)","v":9.2005380422833802},{"$f":"IF('[1]REAL IPC(M)'!$BI191=\"\",\"\",+'[1]REAL IPC(M)'!$BI191)","v":11.873425057428676},{"$f":"IF('[1]REAL IMAE(M)'!BJ191=\"\",\"\",'[1]REAL IMAE(M)'!BJ191)","v":"n.d."},{"$f":"IF('[1]REAL IMAE(M)'!BK191=\"\",\"\",'[1]REAL IMAE(M)'!BK191)","v":"n.d."},{"$f":"IF('[1]REAL IMAE(M)'!BN191=\"\",\"\",'[1]REAL IMAE(M)'!BN191)","v":"n.d."},{"$f":"IF('[1]REAL IMAE(M)'!BO191=\"\",\"\",'[1]REAL IMAE(M)'!BO191)","v":"n.d."},{"$f":"IF('[1]EXT RIN(M)'!$K191=\"\",\"\",'[1]EXT RIN(M)'!$K191)","v":10369.812376920985},"",{"$f":"IF('[1]EXT RIN(M)'!$L191=\"\",\"\",'[1]EXT RIN(M)'!$L191)","v":11456.428338557105},"",{"$f":"IF('[1]MONE(M)CARD'!EG191=\"\",\"\",'[1]MONE(M)CARD'!EG191)","v":10766.904975855345},{"$f":"IF('[1]MONE(M)CARD'!EK191=\"\",\"\",'[1]MONE(M)CARD'!EK191)","v":23571.463088189921},{"$f":"IF('[1]MONE(M)CARD'!EP191=\"\",\"\",'[1]MONE(M)CARD'!EP191)","v":12274.192425873385},{"$f":"IF('[1]MONE(M)CARD'!ES191=\"\",\"\",'[1]MONE(M)CARD'!ES191)","v":20.22933949618546},{"$f":"IF('[1]MONE(M)CARD'!EV191=\"\",\"\",'[1]MONE(M)CARD'!EV191)","v":29.858892032761975},{"$f":"IF('[1]MONE(M)CARD'!EZ191=\"\",\"\",'[1]MONE(M)CARD'!EZ191)","v":27.195339307848542},{"$f":"IF('[1]MONE(M)CAPARD'!FC191=\"\",\"\",'[1]MONE(M)CAPARD'!FC191)","v":12324.034759785345},{"$f":"IF('[1]MONE(M)CAPARD'!FG191=\"\",\"\",'[1]MONE(M)CAPARD'!FG191)","v":33321.183279089913},{"$f":"IF('[1]MONE(M)CAPARD'!FL191=\"\",\"\",'[1]MONE(M)CAPARD'!FL191)","v":12274.192425873385},{"$f":"IF('[1]MONE(M)CAPARD'!FO191=\"\",\"\",'[1]MONE(M)CAPARD'!FO191)","v":18.724596490499756},{"$f":"IF('[1]MONE(M)CAPARD'!FR191=\"\",\"\",'[1]MONE(M)CAPARD'!FR191)","v":23.63592854250065},{"$f":"IF('[1]MONE(M)CAPARD'!FV191=\"\",\"\",'[1]MONE(M)CAPARD'!FV191)","v":22.912008254166683},{"$f":"IF('[1]MONE(M)CARD'!FV191=\"\",\"\",'[1]MONE(M)CARD'!FV191)","v":363.76730366112008},{"$f":"IF('[1]MONE(M)CARD'!GD191=\"\",\"\",'[1]MONE(M)CARD'!GD191)","v":42.416224713312396},{"$f":"IF('[1]MONE(M)CARD'!GE191=\"\",\"\",'[1]MONE(M)CARD'!GE191)","v":3400.8450436242733},32.326312451923123,{"$f":"IF('[9]II.2.Balance OSD-Activos'!J49=\"\",\"\",'[9]II.2.Balance OSD-Activos'!J49)","v":171.7460314560218},{"$f":"IF('[9]II.2.Balance OSD-Activos'!N49=\"\",\"\",'[9]II.2.Balance OSD-Activos'!N49)","v":117.6220349722699},{"$f":"IF('[9]II.2.Balance OSD-Activos'!R49=\"\",\"\",'[9]II.2.Balance OSD-Activos'!R49)","v":11610.871654739214},{"$f":"IF('[9]II.2.Balance OSD-Activos'!S49=\"\",\"\",'[9]II.2.Balance OSD-Activos'!S49)","v":17096.454340816777},11782.617686195235,28996.694061984283,18.627965791288091,-1.962358982949397,1790.6211826868546,-2.213418831350944,35.595925471199806,17.714505217660648,-0.686202793037193,{"$f":"IF('[1]MONE(M)CAPARD'!GS191=\"\",\"\",'[1]MONE(M)CAPARD'!GS191)","v":5800.7644066673674},{"$f":"IF('[1]MONE(M)CARD'!HA191=\"\",\"\",'[1]MONE(M)CAPARD'!HA191)","v":3590.4379611342733},{"$f":"IF('[1]MONE(M)CAPARD'!HB191=\"\",\"\",'[1]MONE(M)CAPARD'!HB191)","v":2210.3264455330941},"n.d.",{"$f":"IF('[10]II.2.Balance OSD-Activos'!J49=\"\",\"\",'[10]II.2.Balance OSD-Activos'!J49)","v":507.56453587602181},{"$f":"IF('[10]II.2.Balance OSD-Activos'!N49=\"\",\"\",'[10]II.2.Balance OSD-Activos'!N49)","v":512.20185464226984},{"$f":"IF('[10]II.2.Balance OSD-Activos'!R49=\"\",\"\",'[10]II.2.Balance OSD-Activos'!R49)","v":16819.856569199212},{"$f":"IF('[10]II.2.Balance OSD-Activos'!S49=\"\",\"\",'[10]II.2.Balance OSD-Activos'!S49)","v":22274.85006265678},17327.421105075235,40114.473022374281,-19.930323823042272,0.23519788903245686,46.544066848604835,1.0028135803797467,29.020451578234251,14.938310906890839,-0.40110724567967715,{"$f":"IF('[1]MONE(M)CAPARD'!AS191=\"\",\"\",'[1]MONE(M)CAPARD'!AS191)","v":"n.d."},{"$f":"IF('[1]MONE(M)CAPARD'!AT191=\"\",\"\",'[1]MONE(M)CAPARD'!AT191)","v":"n.a."},{"$f":"IF('[1]MONE(M)CAPARD'!AU191=\"\",\"\",'[1]MONE(M)CAPARD'!AU191)","v":2.75},{"$f":"IF('[1]MONE(M)CAPARD'!AV191=\"\",\"\",'[1]MONE(M)CAPARD'!AV191)","v":"n.d."},{"$f":"IF('[1]MONE(M)CAPARD'!AW191=\"\",\"\",'[1]MONE(M)CAPARD'!AW191)","v":"n.a."},{"$f":"IF('[1]MONE(M)CAPARD'!AX191=\"\",\"\",'[1]MONE(M)CAPARD'!AX191)","v":4},{"$f":"IF('[1]MONE(M)CAPARD'!AY191=\"\",\"\",'[1]MONE(M)CAPARD'!AY191)","v":"n.a."},{"$f":"IF('[1]FISCAL(M)'!$K191=\"\",\"\",'[1]FISCAL(M)'!$K191)","v":15.072270004209287},{"$f":"IF('[1]FISCAL(M)'!$L191=\"\",\"\",'[1]FISCAL(M)'!$L191)","v":335.60358208420917},{"$f":"IF('[1]FISCAL(M)'!$AY191=\"\",\"\",'[1]FISCAL(M)'!$AY191)","v":"n.d."},{"$f":"IF('[1]FISCAL(M)'!$BI191=\"\",\"\",'[1]FISCAL(M)'!$BI191)","v":"n.d."},{"$f":"IF('[1]FISCAL(M)'!$BS191=\"\",\"\",'[1]FISCAL(M)'!$BS191)","v":"n.d."},{"$f":"IF('[1]FISCAL(M)'!$AZ191=\"\",\"\",'[1]FISCAL(M)'!$AZ191)","v":"n.d."},{"$f":"IF('[1]FISCAL(M)'!$BJ191=\"\",\"\",'[1]FISCAL(M)'!$BJ191)","v":"n.d."},{"$f":"IF('[1]FISCAL(M)'!$BT191=\"\",\"\",'[1]FISCAL(M)'!$BT191)","v":"n.d."},{"$f":"IF('[2]MONE(M)'!$AO191=\"\",\"\",'[2]MONE(M)'!$AO191)","v":2750379.1107620043},{"$f":"IF('[3]MONE(M)'!$AO191=\"\",\"\",'[3]MONE(M)'!$AO191)","v":6834.513994277143},{"$f":"IF('[4]MONE(M)'!$AO191=\"\",\"\",'[4]MONE(M)'!$AO191)","v":53482.864195850903},{"$f":"IF('[5]MONE(M)'!$AO191=\"\",\"\",'[5]MONE(M)'!$AO191)","v":62799.294391446703},{"$f":"IF('[6]MONE(M)'!$AO191=\"\",\"\",'[6]MONE(M)'!$AO191)","v":18587.690754977426},{"$f":"IF('[7]MONE(M)'!$AO191=\"\",\"\",'[7]MONE(M)'!$AO191)","v":173953.11533895001},{"$f":"IF('[8]MONE(M)'!$AO191=\"\",\"\",'[8]MONE(M)'!$AO191)","v":10874.787632219999},21.446715424364228,4.8257355551685421,13.647362554543196,13.659441731099232,27.981442325365702,-16.952501581185398,7.2551762874425663,{"$f":"IF('[1]FISCAL(M)'!$K191=\"\",\"\",'[1]FISCAL(M)'!$K191)","v":15.072270004209287},{"$f":"+'[1]REAL(A)'!$AO$25","v":"n.d."},"n.d.",{"$f":"IF('[1]FISCAL(M)'!$L191=\"\",\"\",'[1]FISCAL(M)'!$L191)","v":335.60358208420917},{"$f":"+'[1]REAL(A)'!$AP$25","v":"n.d."},"n.d.","n.d.",{"$f":"'[1]Gráfico REM'!BG185","v":11669.793672398091},{"$f":"'[1]Gráfico REM'!BH185","v":30303.823756558479},{"$f":"'[1]Gráfico REM'!BI185","v":2570.0057286903393},"n.d.",51.859782034723409,16.436646724538551,26.128538477686259,"n.d.",{"$f":"'[1]Gráfico REM'!BK185","v":12173.783942188091},{"$f":"'[1]Gráfico REM'!BL185","v":41178.611388778474},{"$f":"'[1]Gráfico REM'!BM185","v":9939.8045084403384},"n.d.",47.965545529732488,13.862555157323463,20.21353085986788]
[2005,"marzo","2005-marzo",{"$f":"IF('[1]REAL IPC(M)'!$AL192=\"\",\"\",+'[1]REAL IPC(M)'!$AL192)","v":8.8344109905880597},{"$f":"IF('[1]REAL IPC(M)'!$BE192=\"\",\"\",+'[1]REAL IPC(M)'!$BE192)","v":12.188536842777253},{"$f":"IF('[1]REAL IPC(M)'!$AM192=\"\",\"\",+'[1]REAL IPC(M)'!$AM192)","v":8.5156380617309893},{"$f":"IF('[1]REAL IPC(M)'!$BI192=\"\",\"\",+'[1]REAL IPC(M)'!$BI192)","v":11.688440817596192},{"$f":"IF('[1]REAL IMAE(M)'!BJ192=\"\",\"\",'[1]REAL IMAE(M)'!BJ192)","v":"n.d."},{"$f":"IF('[1]REAL IMAE(M)'!BK192=\"\",\"\",'[1]REAL IMAE(M)'!BK192)","v":"n.d."},{"$f":"IF('[1]REAL IMAE(M)'!BN192=\"\",\"\",'[1]REAL IMAE(M)'!BN192)","v":"n.d."},{"$f":"IF('[1]REAL IMAE(M)'!BO192=\"\",\"\",'[1]REAL IMAE(M)'!BO192)","v":"n.d."},{"$f":"IF('[1]EXT RIN(M)'!$K192=\"\",\"\",'[1]EXT RIN(M)'!$K192)","v":10778.609506630964},"",{"$f":"IF('[1]EXT RIN(M)'!$L192=\"\",\"\",'[1]EXT RIN(M)'!$L192)","v":11797.245055901005},"",{"$f":"IF('[1]MONE(M)CARD'!EG192=\"\",\"\",'[1]MONE(M)CARD'!EG192)","v":11109.918712700646},{"$f":"IF('[1]MONE(M)CARD'!EK192=\"\",\"\",'[1]MONE(M)CARD'!EK192)","v":24201.798602728661},{"$f":"IF('[1]MONE(M)CARD'!EP192=\"\",\"\",'[1]MONE(M)CARD'!EP192)","v":12544.186640780601},{"$f":"IF('[1]MONE(M)CARD'!ES192=\"\",\"\",'[1]MONE(M)CARD'!ES192)","v":23.890337153893725},{"$f":"IF('[1]MONE(M)CARD'!EV192=\"\",\"\",'[1]MONE(M)CARD'!EV192)","v":29.371455231031529},{"$f":"IF('[1]MONE(M)CARD'!EZ192=\"\",\"\",'[1]MONE(M)CARD'!EZ192)","v":27.235153437321436},{"$f":"IF('[1]MONE(M)CAPARD'!FC192=\"\",\"\",'[1]MONE(M)CAPARD'!FC192)","v":12626.806482670647},{"$f":"IF('[1]MONE(M)CAPARD'!FG192=\"\",\"\",'[1]MONE(M)CAPARD'!FG192)","v":33865.528959408657},{"$f":"IF('[1]MONE(M)CAPARD'!FL192=\"\",\"\",'[1]MONE(M)CAPARD'!FL192)","v":12544.186640780601},{"$f":"IF('[1]MONE(M)CAPARD'!FO192=\"\",\"\",'[1]MONE(M)CAPARD'!FO192)","v":21.107978068921128},{"$f":"IF('[1]MONE(M)CAPARD'!FR192=\"\",\"\",'[1]MONE(M)CAPARD'!FR192)","v":22.785753511496388},{"$f":"IF('[1]MONE(M)CAPARD'!FV192=\"\",\"\",'[1]MONE(M)CAPARD'!FV192)","v":22.528312485418468},{"$f":"IF('[1]MONE(M)CARD'!FV192=\"\",\"\",'[1]MONE(M)CARD'!FV192)","v":403.00853723816908},{"$f":"IF('[1]MONE(M)CARD'!GD192=\"\",\"\",'[1]MONE(M)CARD'!GD192)","v":37.740822181617546},{"$f":"IF('[1]MONE(M)CARD'!GE192=\"\",\"\",'[1]MONE(M)CARD'!GE192)","v":3585.9173785186936},34.443028103517229,{"$f":"IF('[9]II.2.Balance OSD-Activos'!J50=\"\",\"\",'[9]II.2.Balance OSD-Activos'!J50)","v":188.79835881599809},{"$f":"IF('[9]II.2.Balance OSD-Activos'!N50=\"\",\"\",'[9]II.2.Balance OSD-Activos'!N50)","v":120.48584253042554},{"$f":"IF('[9]II.2.Balance OSD-Activos'!R50=\"\",\"\",'[9]II.2.Balance OSD-Activos'!R50)","v":11654.284118859763},{"$f":"IF('[9]II.2.Balance OSD-Activos'!S50=\"\",\"\",'[9]II.2.Balance OSD-Activos'!S50)","v":17409.848011540722},11843.082477675762,29373.416331746907,24.633750377001441,-2.1788675095447019,1571.9392626878928,-2.5186006575902087,34.327649655383482,17.143104756931614,-0.57140046072903417,{"$f":"IF('[1]MONE(M)CAPARD'!GS192=\"\",\"\",'[1]MONE(M)CAPARD'!GS192)","v":5951.0828189928843},{"$f":"IF('[1]MONE(M)CARD'!HA192=\"\",\"\",'[1]MONE(M)CAPARD'!HA192)","v":3774.9363778386937},{"$f":"IF('[1]MONE(M)CAPARD'!HB192=\"\",\"\",'[1]MONE(M)CAPARD'!HB192)","v":2176.1464411541906},"n.d.",{"$f":"IF('[10]II.2.Balance OSD-Activos'!J50=\"\",\"\",'[10]II.2.Balance OSD-Activos'!J50)","v":445.40213759599811},{"$f":"IF('[10]II.2.Balance OSD-Activos'!N50=\"\",\"\",'[10]II.2.Balance OSD-Activos'!N50)","v":481.58013205042556},{"$f":"IF('[10]II.2.Balance OSD-Activos'!R50=\"\",\"\",'[10]II.2.Balance OSD-Activos'!R50)","v":17033.977040649763},{"$f":"IF('[10]II.2.Balance OSD-Activos'!S50=\"\",\"\",'[10]II.2.Balance OSD-Activos'!S50)","v":22662.630613630718},17479.379178245759,40623.589923926906,-29.805839935843959,0.30718673896619197,32.009244816104321,1.4451306926671403,28.390676973216912,14.620034789238012,-0.31827611765282704,{"$f":"IF('[1]MONE(M)CAPARD'!AS192=\"\",\"\",'[1]MONE(M)CAPARD'!AS192)","v":"n.d."},{"$f":"IF('[1]MONE(M)CAPARD'!AT192=\"\",\"\",'[1]MONE(M)CAPARD'!AT192)","v":"n.a."},{"$f":"IF('[1]MONE(M)CAPARD'!AU192=\"\",\"\",'[1]MONE(M)CAPARD'!AU192)","v":2.75},{"$f":"IF('[1]MONE(M)CAPARD'!AV192=\"\",\"\",'[1]MONE(M)CAPARD'!AV192)","v":"n.d."},{"$f":"IF('[1]MONE(M)CAPARD'!AW192=\"\",\"\",'[1]MONE(M)CAPARD'!AW192)","v":"n.a."},{"$f":"IF('[1]MONE(M)CAPARD'!AX192=\"\",\"\",'[1]MONE(M)CAPARD'!AX192)","v":4},{"$f":"IF('[1]MONE(M)CAPARD'!AY192=\"\",\"\",'[1]MONE(M)CAPARD'!AY192)","v":"n.a."},{"$f":"IF('[1]FISCAL(M)'!$K192=\"\",\"\",'[1]FISCAL(M)'!$K192)","v":-150.98762822817571},{"$f":"IF('[1]FISCAL(M)'!$L192=\"\",\"\",'[1]FISCAL(M)'!$L192)","v":123.25087481182413},{"$f":"IF('[1]FISCAL(M)'!$AY192=\"\",\"\",'[1]FISCAL(M)'!$AY192)","v":"n.d."},{"$f":"IF('[1]FISCAL(M)'!$BI192=\"\",\"\",'[1]FISCAL(M)'!$BI192)","v":"n.d."},{"$f":"IF('[1]FISCAL(M)'!$BS192=\"\",\"\",'[1]FISCAL(M)'!$BS192)","v":"n.d."},{"$f":"IF('[1]FISCAL(M)'!$AZ192=\"\",\"\",'[1]FISCAL(M)'!$AZ192)","v":"n.d."},{"$f":"IF('[1]FISCAL(M)'!$BJ192=\"\",\"\",'[1]FISCAL(M)'!$BJ192)","v":"n.d."},{"$f":"IF('[1]FISCAL(M)'!$BT192=\"\",\"\",'[1]FISCAL(M)'!$BT192)","v":"n.d."},{"$f":"IF('[2]MONE(M)'!$AO192=\"\",\"\",'[2]MONE(M)'!$AO192)","v":2815781.7630589642},{"$f":"IF('[3]MONE(M)'!$AO192=\"\",\"\",'[3]MONE(M)'!$AO192)","v":6888.9800619271418},{"$f":"IF('[4]MONE(M)'!$AO192=\"\",\"\",'[4]MONE(M)'!$AO192)","v":53820.536737998729},{"$f":"IF('[5]MONE(M)'!$AO192=\"\",\"\",'[5]MONE(M)'!$AO192)","v":63034.66028350142},{"$f":"IF('[6]MONE(M)'!$AO192=\"\",\"\",'[6]MONE(M)'!$AO192)","v":19187.166980985618},{"$f":"IF('[7]MONE(M)'!$AO192=\"\",\"\",'[7]MONE(M)'!$AO192)","v":170518.6867165},{"$f":"IF('[8]MONE(M)'!$AO192=\"\",\"\",'[8]MONE(M)'!$AO192)","v":11019.436326880001},22.783409647055542,5.4317047009641017,13.622856091927282,12.348488859163087,27.535027667358758,-15.136130979276663,7.9031649607377075,{"$f":"IF('[1]FISCAL(M)'!$K192=\"\",\"\",'[1]FISCAL(M)'!$K192)","v":-150.98762822817571},{"$f":"+'[1]REAL(A)'!$AO$25","v":"n.d."},"n.d.",{"$f":"IF('[1]FISCAL(M)'!$L192=\"\",\"\",'[1]FISCAL(M)'!$L192)","v":123.25087481182413},{"$f":"+'[1]REAL(A)'!$AP$25","v":"n.d."},"n.d.","n.d.",{"$f":"'[1]Gráfico REM'!BG186","v":12031.993056217281},{"$f":"'[1]Gráfico REM'!BH186","v":30700.525172527166},{"$f":"'[1]Gráfico REM'!BI186","v":2602.9986447142915},"n.d.",50.975687638245844,16.099931276257507,28.859795800053668,"n.d.",{"$f":"'[1]Gráfico REM'!BK186","v":12558.774906267281},{"$f":"'[1]Gráfico REM'!BL186","v":41719.961499407167},{"$f":"'[1]Gráfico REM'!BM186","v":9798.6329166042906},"n.d.",47.582137147454247,13.816287978568198,19.66921753704267]
[2005,"abril","2005-abril",{"$f":"IF('[1]REAL IPC(M)'!$AL193=\"\",\"\",+'[1]REAL IPC(M)'!$AL193)","v":8.7433572158815096},{"$f":"IF('[1]REAL IPC(M)'!$BE193=\"\",\"\",+'[1]REAL IPC(M)'!$BE193)","v":11.985150962655711},{"$f":"IF('[1]REAL IPC(M)'!$AM193=\"\",\"\",+'[1]REAL IPC(M)'!$AM193)","v":8.4452137508538083},{"$f":"IF('[1]REAL IPC(M)'!$BI193=\"\",\"\",+'[1]REAL IPC(M)'!$BI193)","v":11.498659024454462},{"$f":"IF('[1]REAL IMAE(M)'!BJ193=\"\",\"\",'[1]REAL IMAE(M)'!BJ193)","v":"n.d."},{"$f":"IF('[1]REAL IMAE(M)'!BK193=\"\",\"\",'[1]REAL IMAE(M)'!BK193)","v":"n.d."},{"$f":"IF('[1]REAL IMAE(M)'!BN193=\"\",\"\",'[1]REAL IMAE(M)'!BN193)","v":"n.d."},{"$f":"IF('[1]REAL IMAE(M)'!BO193=\"\",\"\",'[1]REAL IMAE(M)'!BO193)","v":"n.d."},{"$f":"IF('[1]EXT RIN(M)'!$K193=\"\",\"\",'[1]EXT RIN(M)'!$K193)","v":10981.289959340393},"",{"$f":"IF('[1]EXT RIN(M)'!$L193=\"\",\"\",'[1]EXT RIN(M)'!$L193)","v":12039.017325130273},"",{"$f":"IF('[1]MONE(M)CARD'!EG193=\"\",\"\",'[1]MONE(M)CARD'!EG193)","v":11040.845199564856},{"$f":"IF('[1]MONE(M)CARD'!EK193=\"\",\"\",'[1]MONE(M)CARD'!EK193)","v":24032.149990483813},{"$f":"IF('[1]MONE(M)CARD'!EP193=\"\",\"\",'[1]MONE(M)CARD'!EP193)","v":12703.986766064736},{"$f":"IF('[1]MONE(M)CARD'!ES193=\"\",\"\",'[1]MONE(M)CARD'!ES193)","v":24.04124497445148},{"$f":"IF('[1]MONE(M)CARD'!EV193=\"\",\"\",'[1]MONE(M)CARD'!EV193)","v":29.697812572158732},{"$f":"IF('[1]MONE(M)CARD'!EZ193=\"\",\"\",'[1]MONE(M)CARD'!EZ193)","v":26.621363229826844},{"$f":"IF('[1]MONE(M)CAPARD'!FC193=\"\",\"\",'[1]MONE(M)CAPARD'!FC193)","v":12571.980913654857},{"$f":"IF('[1]MONE(M)CAPARD'!FG193=\"\",\"\",'[1]MONE(M)CAPARD'!FG193)","v":33661.521907073809},{"$f":"IF('[1]MONE(M)CAPARD'!FL193=\"\",\"\",'[1]MONE(M)CAPARD'!FL193)","v":12703.986766064736},{"$f":"IF('[1]MONE(M)CAPARD'!FO193=\"\",\"\",'[1]MONE(M)CAPARD'!FO193)","v":21.367280802967038},{"$f":"IF('[1]MONE(M)CAPARD'!FR193=\"\",\"\",'[1]MONE(M)CAPARD'!FR193)","v":22.588764197297493},{"$f":"IF('[1]MONE(M)CAPARD'!FV193=\"\",\"\",'[1]MONE(M)CAPARD'!FV193)","v":21.760640652998564},{"$f":"IF('[1]MONE(M)CARD'!FV193=\"\",\"\",'[1]MONE(M)CARD'!FV193)","v":408.47308535907177},{"$f":"IF('[1]MONE(M)CARD'!GD193=\"\",\"\",'[1]MONE(M)CARD'!GD193)","v":84.445636348024749},{"$f":"IF('[1]MONE(M)CARD'!GE193=\"\",\"\",'[1]MONE(M)CARD'!GE193)","v":3796.7248092145019},49.566226141492642,{"$f":"IF('[9]II.2.Balance OSD-Activos'!J51=\"\",\"\",'[9]II.2.Balance OSD-Activos'!J51)","v":195.92795361025537},{"$f":"IF('[9]II.2.Balance OSD-Activos'!N51=\"\",\"\",'[9]II.2.Balance OSD-Activos'!N51)","v":121.91590333666667},{"$f":"IF('[9]II.2.Balance OSD-Activos'!R51=\"\",\"\",'[9]II.2.Balance OSD-Activos'!R51)","v":11603.148592947386},{"$f":"IF('[9]II.2.Balance OSD-Activos'!S51=\"\",\"\",'[9]II.2.Balance OSD-Activos'!S51)","v":17533.801035698416},11799.076546557641,29454.793485592723,35.859471617410541,-1.4414547223492113,1271.2278228180605,-1.8962707505453924,34.047399843757063,17.533179972358546,0.39007521542693269,{"$f":"IF('[1]MONE(M)CAPARD'!GS193=\"\",\"\",'[1]MONE(M)CAPARD'!GS193)","v":6038.941680903029},{"$f":"IF('[1]MONE(M)CARD'!HA193=\"\",\"\",'[1]MONE(M)CAPARD'!HA193)","v":4025.9940187545021},{"$f":"IF('[1]MONE(M)CAPARD'!HB193=\"\",\"\",'[1]MONE(M)CAPARD'!HB193)","v":2012.9476621485269},"n.d.",{"$f":"IF('[10]II.2.Balance OSD-Activos'!J51=\"\",\"\",'[10]II.2.Balance OSD-Activos'!J51)","v":425.47826975025532},{"$f":"IF('[10]II.2.Balance OSD-Activos'!N51=\"\",\"\",'[10]II.2.Balance OSD-Activos'!N51)","v":441.81347679666669},{"$f":"IF('[10]II.2.Balance OSD-Activos'!R51=\"\",\"\",'[10]II.2.Balance OSD-Activos'!R51)","v":17031.539648397385},{"$f":"IF('[10]II.2.Balance OSD-Activos'!S51=\"\",\"\",'[10]II.2.Balance OSD-Activos'!S51)","v":22878.518911018415},17457.017918147641,40777.350305962726,-34.615805595079784,0.8525450691649894,11.921361587820623,2.2380376224847121,28.391937989338125,14.789850741546818,0.16981595230880586,{"$f":"IF('[1]MONE(M)CAPARD'!AS193=\"\",\"\",'[1]MONE(M)CAPARD'!AS193)","v":"n.d."},{"$f":"IF('[1]MONE(M)CAPARD'!AT193=\"\",\"\",'[1]MONE(M)CAPARD'!AT193)","v":"n.a."},{"$f":"IF('[1]MONE(M)CAPARD'!AU193=\"\",\"\",'[1]MONE(M)CAPARD'!AU193)","v":2.75},{"$f":"IF('[1]MONE(M)CAPARD'!AV193=\"\",\"\",'[1]MONE(M)CAPARD'!AV193)","v":"n.d."},{"$f":"IF('[1]MONE(M)CAPARD'!AW193=\"\",\"\",'[1]MONE(M)CAPARD'!AW193)","v":"n.a."},{"$f":"IF('[1]MONE(M)CAPARD'!AX193=\"\",\"\",'[1]MONE(M)CAPARD'!AX193)","v":4},{"$f":"IF('[1]MONE(M)CAPARD'!AY193=\"\",\"\",'[1]MONE(M)CAPARD'!AY193)","v":"n.a."},{"$f":"IF('[1]FISCAL(M)'!$K193=\"\",\"\",'[1]FISCAL(M)'!$K193)","v":135.3182685215917},{"$f":"IF('[1]FISCAL(M)'!$L193=\"\",\"\",'[1]FISCAL(M)'!$L193)","v":369.81178980159154},{"$f":"IF('[1]FISCAL(M)'!$AY193=\"\",\"\",'[1]FISCAL(M)'!$AY193)","v":"n.d."},{"$f":"IF('[1]FISCAL(M)'!$BI193=\"\",\"\",'[1]FISCAL(M)'!$BI193)","v":"n.d."},{"$f":"IF('[1]FISCAL(M)'!$BS193=\"\",\"\",'[1]FISCAL(M)'!$BS193)","v":"n.d."},{"$f":"IF('[1]FISCAL(M)'!$AZ193=\"\",\"\",'[1]FISCAL(M)'!$AZ193)","v":"n.d."},{"$f":"IF('[1]FISCAL(M)'!$BJ193=\"\",\"\",'[1]FISCAL(M)'!$BJ193)","v":"n.d."},{"$f":"IF('[1]FISCAL(M)'!$BT193=\"\",\"\",'[1]FISCAL(M)'!$BT193)","v":"n.d."},{"$f":"IF('[2]MONE(M)'!$AO193=\"\",\"\",'[2]MONE(M)'!$AO193)","v":2861588.1522950102},{"$f":"IF('[3]MONE(M)'!$AO193=\"\",\"\",'[3]MONE(M)'!$AO193)","v":6932.7833944171434},{"$f":"IF('[4]MONE(M)'!$AO193=\"\",\"\",'[4]MONE(M)'!$AO193)","v":54756.477171121449},{"$f":"IF('[5]MONE(M)'!$AO193=\"\",\"\",'[5]MONE(M)'!$AO193)","v":63689.797422516262},{"$f":"IF('[6]MONE(M)'!$AO193=\"\",\"\",'[6]MONE(M)'!$AO193)","v":19527.435021301702},{"$f":"IF('[7]MONE(M)'!$AO193=\"\",\"\",'[7]MONE(M)'!$AO193)","v":172777.71648771997},{"$f":"IF('[8]MONE(M)'!$AO193=\"\",\"\",'[8]MONE(M)'!$AO193)","v":11157.5532551},21.068253873080888,5.4437577044671226,15.217559512409062,12.292355363004459,30.127365707001719,-13.761859644453933,8.5718704984370611,{"$f":"IF('[1]FISCAL(M)'!$K193=\"\",\"\",'[1]FISCAL(M)'!$K193)","v":135.3182685215917},{"$f":"+'[1]REAL(A)'!$AO$25","v":"n.d."},"n.d.",{"$f":"IF('[1]FISCAL(M)'!$L193=\"\",\"\",'[1]FISCAL(M)'!$L193)","v":369.81178980159154},{"$f":"+'[1]REAL(A)'!$AP$25","v":"n.d."},"n.d.","n.d.",{"$f":"'[1]Gráfico REM'!BG187","v":11941.059030775252},{"$f":"'[1]Gráfico REM'!BH187","v":30850.863341408694},{"$f":"'[1]Gráfico REM'!BI187","v":2724.6174168559396},"n.d.",41.018035997099389,16.570940790668899,29.719220691946859,"n.d.",{"$f":"'[1]Gráfico REM'!BK187","v":12490.164145825252},{"$f":"'[1]Gráfico REM'!BL187","v":42008.416596508694},{"$f":"'[1]Gráfico REM'!BM187","v":9917.866974055938},"n.d.",38.728090981541371,14.333617245134,17.680252444433098]
[2005,"mayo ","2005-mayo ",{"$f":"IF('[1]REAL IPC(M)'!$AL194=\"\",\"\",+'[1]REAL IPC(M)'!$AL194)","v":7.7370556945126845},{"$f":"IF('[1]REAL IPC(M)'!$BE194=\"\",\"\",+'[1]REAL IPC(M)'!$BE194)","v":11.781315519256164},{"$f":"IF('[1]REAL IPC(M)'!$AM194=\"\",\"\",+'[1]REAL IPC(M)'!$AM194)","v":7.4604651138487688},{"$f":"IF('[1]REAL IPC(M)'!$BI194=\"\",\"\",+'[1]REAL IPC(M)'!$BI194)","v":11.306423064435167},{"$f":"IF('[1]REAL IMAE(M)'!BJ194=\"\",\"\",'[1]REAL IMAE(M)'!BJ194)","v":"n.d."},{"$f":"IF('[1]REAL IMAE(M)'!BK194=\"\",\"\",'[1]REAL IMAE(M)'!BK194)","v":"n.d."},{"$f":"IF('[1]REAL IMAE(M)'!BN194=\"\",\"\",'[1]REAL IMAE(M)'!BN194)","v":"n.d."},{"$f":"IF('[1]REAL IMAE(M)'!BO194=\"\",\"\",'[1]REAL IMAE(M)'!BO194)","v":"n.d."},{"$f":"IF('[1]EXT RIN(M)'!$K194=\"\",\"\",'[1]EXT RIN(M)'!$K194)","v":11194.848773852013},"",{"$f":"IF('[1]EXT RIN(M)'!$L194=\"\",\"\",'[1]EXT RIN(M)'!$L194)","v":12230.488059440313},"",{"$f":"IF('[1]MONE(M)CARD'!EG194=\"\",\"\",'[1]MONE(M)CARD'!EG194)","v":10921.525729745359},{"$f":"IF('[1]MONE(M)CARD'!EK194=\"\",\"\",'[1]MONE(M)CARD'!EK194)","v":24213.146631393531},{"$f":"IF('[1]MONE(M)CARD'!EP194=\"\",\"\",'[1]MONE(M)CARD'!EP194)","v":12780.307854608982},{"$f":"IF('[1]MONE(M)CARD'!ES194=\"\",\"\",'[1]MONE(M)CARD'!ES194)","v":20.991337730309635},{"$f":"IF('[1]MONE(M)CARD'!EV194=\"\",\"\",'[1]MONE(M)CARD'!EV194)","v":28.941634329185529},{"$f":"IF('[1]MONE(M)CARD'!EZ194=\"\",\"\",'[1]MONE(M)CARD'!EZ194)","v":24.551211710987975},{"$f":"IF('[1]MONE(M)CAPARD'!FC194=\"\",\"\",'[1]MONE(M)CAPARD'!FC194)","v":12452.161730465361},{"$f":"IF('[1]MONE(M)CAPARD'!FG194=\"\",\"\",'[1]MONE(M)CAPARD'!FG194)","v":33918.246346723521},{"$f":"IF('[1]MONE(M)CAPARD'!FL194=\"\",\"\",'[1]MONE(M)CAPARD'!FL194)","v":12780.307854608982},{"$f":"IF('[1]MONE(M)CAPARD'!FO194=\"\",\"\",'[1]MONE(M)CAPARD'!FO194)","v":19.326089192191851},{"$f":"IF('[1]MONE(M)CAPARD'!FR194=\"\",\"\",'[1]MONE(M)CAPARD'!FR194)","v":22.101149928845153},{"$f":"IF('[1]MONE(M)CAPARD'!FV194=\"\",\"\",'[1]MONE(M)CAPARD'!FV194)","v":20.228356931506152},{"$f":"IF('[1]MONE(M)CARD'!FV194=\"\",\"\",'[1]MONE(M)CARD'!FV194)","v":424.03073020189959},{"$f":"IF('[1]MONE(M)CARD'!GD194=\"\",\"\",'[1]MONE(M)CARD'!GD194)","v":38.089615651209876},{"$f":"IF('[1]MONE(M)CARD'!GE194=\"\",\"\",'[1]MONE(M)CARD'!GE194)","v":3674.3165994310802},21.053456180712615,{"$f":"IF('[9]II.2.Balance OSD-Activos'!J52=\"\",\"\",'[9]II.2.Balance OSD-Activos'!J52)","v":203.82559883559352},{"$f":"IF('[9]II.2.Balance OSD-Activos'!N52=\"\",\"\",'[9]II.2.Balance OSD-Activos'!N52)","v":122.782452846157},{"$f":"IF('[9]II.2.Balance OSD-Activos'!R52=\"\",\"\",'[9]II.2.Balance OSD-Activos'!R52)","v":11741.680331402345},{"$f":"IF('[9]II.2.Balance OSD-Activos'!S52=\"\",\"\",'[9]II.2.Balance OSD-Activos'!S52)","v":17648.462897507816},11945.50593023794,29716.75128059191,40.255728483463059,6.3430832937627635E-2,1092.3745805700073,-0.4318722611921566,34.094887459882941,18.34908126096455,0.81590128860600331,{"$f":"IF('[1]MONE(M)CAPARD'!GS194=\"\",\"\",'[1]MONE(M)CAPARD'!GS194)","v":6013.7878742109669},{"$f":"IF('[1]MONE(M)CARD'!HA194=\"\",\"\",'[1]MONE(M)CAPARD'!HA194)","v":3902.4085618310801},{"$f":"IF('[1]MONE(M)CAPARD'!HB194=\"\",\"\",'[1]MONE(M)CAPARD'!HB194)","v":2111.3793123798869},"n.d.",{"$f":"IF('[10]II.2.Balance OSD-Activos'!J52=\"\",\"\",'[10]II.2.Balance OSD-Activos'!J52)","v":435.58422326559349},{"$f":"IF('[10]II.2.Balance OSD-Activos'!N52=\"\",\"\",'[10]II.2.Balance OSD-Activos'!N52)","v":474.53657927615694},{"$f":"IF('[10]II.2.Balance OSD-Activos'!R52=\"\",\"\",'[10]II.2.Balance OSD-Activos'!R52)","v":17283.971539312344},{"$f":"IF('[10]II.2.Balance OSD-Activos'!S52=\"\",\"\",'[10]II.2.Balance OSD-Activos'!S52)","v":23050.813760327816},17719.555762577937,41244.906102181907,-33.271940553591683,2.38808909278454,5.2658245504675794,3.7858730336244983,28.710453194101703,15.641726484123698,0.8518757425768797,{"$f":"IF('[1]MONE(M)CAPARD'!AS194=\"\",\"\",'[1]MONE(M)CAPARD'!AS194)","v":"n.d."},{"$f":"IF('[1]MONE(M)CAPARD'!AT194=\"\",\"\",'[1]MONE(M)CAPARD'!AT194)","v":"n.a."},{"$f":"IF('[1]MONE(M)CAPARD'!AU194=\"\",\"\",'[1]MONE(M)CAPARD'!AU194)","v":3},{"$f":"IF('[1]MONE(M)CAPARD'!AV194=\"\",\"\",'[1]MONE(M)CAPARD'!AV194)","v":7},{"$f":"IF('[1]MONE(M)CAPARD'!AW194=\"\",\"\",'[1]MONE(M)CAPARD'!AW194)","v":"n.a."},{"$f":"IF('[1]MONE(M)CAPARD'!AX194=\"\",\"\",'[1]MONE(M)CAPARD'!AX194)","v":8},{"$f":"IF('[1]MONE(M)CAPARD'!AY194=\"\",\"\",'[1]MONE(M)CAPARD'!AY194)","v":"n.a."},{"$f":"IF('[1]FISCAL(M)'!$K194=\"\",\"\",'[1]FISCAL(M)'!$K194)","v":249.59369601562065},{"$f":"IF('[1]FISCAL(M)'!$L194=\"\",\"\",'[1]FISCAL(M)'!$L194)","v":426.04444971562037},{"$f":"IF('[1]FISCAL(M)'!$AY194=\"\",\"\",'[1]FISCAL(M)'!$AY194)","v":"n.d."},{"$f":"IF('[1]FISCAL(M)'!$BI194=\"\",\"\",'[1]FISCAL(M)'!$BI194)","v":"n.d."},{"$f":"IF('[1]FISCAL(M)'!$BS194=\"\",\"\",'[1]FISCAL(M)'!$BS194)","v":"n.d."},{"$f":"IF('[1]FISCAL(M)'!$AZ194=\"\",\"\",'[1]FISCAL(M)'!$AZ194)","v":"n.d."},{"$f":"IF('[1]FISCAL(M)'!$BJ194=\"\",\"\",'[1]FISCAL(M)'!$BJ194)","v":"n.d."},{"$f":"IF('[1]FISCAL(M)'!$BT194=\"\",\"\",'[1]FISCAL(M)'!$BT194)","v":"n.d."},{"$f":"IF('[2]MONE(M)'!$AO194=\"\",\"\",'[2]MONE(M)'!$AO194)","v":2951390.0473211501},{"$f":"IF('[3]MONE(M)'!$AO194=\"\",\"\",'[3]MONE(M)'!$AO194)","v":6905.3084063471433},{"$f":"IF('[4]MONE(M)'!$AO194=\"\",\"\",'[4]MONE(M)'!$AO194)","v":55014.408145255904},{"$f":"IF('[5]MONE(M)'!$AO194=\"\",\"\",'[5]MONE(M)'!$AO194)","v":64194.405370881395},{"$f":"IF('[6]MONE(M)'!$AO194=\"\",\"\",'[6]MONE(M)'!$AO194)","v":20201.672548388491},{"$f":"IF('[7]MONE(M)'!$AO194=\"\",\"\",'[7]MONE(M)'!$AO194)","v":175147.23265280999},{"$f":"IF('[8]MONE(M)'!$AO194=\"\",\"\",'[8]MONE(M)'!$AO194)","v":11339.529561949999},22.540893833694486,4.1216091171835778,14.849594772944229,11.68171339654014,30.450524530315583,-13.812337049411017,9.6904947255763485,{"$f":"IF('[1]FISCAL(M)'!$K194=\"\",\"\",'[1]FISCAL(M)'!$K194)","v":249.59369601562065},{"$f":"+'[1]REAL(A)'!$AO$25","v":"n.d."},"n.d.",{"$f":"IF('[1]FISCAL(M)'!$L194=\"\",\"\",'[1]FISCAL(M)'!$L194)","v":426.04444971562037},{"$f":"+'[1]REAL(A)'!$AP$25","v":"n.d."},"n.d.","n.d.",{"$f":"'[1]Gráfico REM'!BG188","v":11857.095662680118},{"$f":"'[1]Gráfico REM'!BH188","v":31059.115266617173},{"$f":"'[1]Gráfico REM'!BI188","v":2796.1529348442491},"n.d.",31.127851800646656,17.104005492998265,25.372702231594978,"n.d.",{"$f":"'[1]Gráfico REM'!BK188","v":12365.396771290118},{"$f":"'[1]Gráfico REM'!BL188","v":42398.644828567172},{"$f":"'[1]Gráfico REM'!BM188","v":9892.7304719142485},"n.d.",29.132841940256291,15.02483732702391,12.228612879619561]
[2005,"junio ","2005-junio ",{"$f":"IF('[1]REAL IPC(M)'!$AL195=\"\",\"\",+'[1]REAL IPC(M)'!$AL195)","v":7.020512944722701},{"$f":"IF('[1]REAL IPC(M)'!$BE195=\"\",\"\",+'[1]REAL IPC(M)'!$BE195)","v":11.579043405143018},{"$f":"IF('[1]REAL IPC(M)'!$AM195=\"\",\"\",+'[1]REAL IPC(M)'!$AM195)","v":6.7647117332463091},{"$f":"IF('[1]REAL IPC(M)'!$BI195=\"\",\"\",+'[1]REAL IPC(M)'!$BI195)","v":11.113834314397607},{"$f":"IF('[1]REAL IMAE(M)'!BJ195=\"\",\"\",'[1]REAL IMAE(M)'!BJ195)","v":"n.d."},{"$f":"IF('[1]REAL IMAE(M)'!BK195=\"\",\"\",'[1]REAL IMAE(M)'!BK195)","v":"n.d."},{"$f":"IF('[1]REAL IMAE(M)'!BN195=\"\",\"\",'[1]REAL IMAE(M)'!BN195)","v":"n.d."},{"$f":"IF('[1]REAL IMAE(M)'!BO195=\"\",\"\",'[1]REAL IMAE(M)'!BO195)","v":"n.d."},{"$f":"IF('[1]EXT RIN(M)'!$K195=\"\",\"\",'[1]EXT RIN(M)'!$K195)","v":11593.846412017558},"",{"$f":"IF('[1]EXT RIN(M)'!$L195=\"\",\"\",'[1]EXT RIN(M)'!$L195)","v":12737.294272005527},"",{"$f":"IF('[1]MONE(M)CARD'!EG195=\"\",\"\",'[1]MONE(M)CARD'!EG195)","v":10999.945266846389},{"$f":"IF('[1]MONE(M)CARD'!EK195=\"\",\"\",'[1]MONE(M)CARD'!EK195)","v":24495.583329941732},{"$f":"IF('[1]MONE(M)CARD'!EP195=\"\",\"\",'[1]MONE(M)CARD'!EP195)","v":12844.914678444999},{"$f":"IF('[1]MONE(M)CARD'!ES195=\"\",\"\",'[1]MONE(M)CARD'!ES195)","v":22.495590580853442},{"$f":"IF('[1]MONE(M)CARD'!EV195=\"\",\"\",'[1]MONE(M)CARD'!EV195)","v":28.039586178681695},{"$f":"IF('[1]MONE(M)CARD'!EZ195=\"\",\"\",'[1]MONE(M)CARD'!EZ195)","v":23.705100842851245},{"$f":"IF('[1]MONE(M)CAPARD'!FC195=\"\",\"\",'[1]MONE(M)CAPARD'!FC195)","v":12515.34737009639},{"$f":"IF('[1]MONE(M)CAPARD'!FG195=\"\",\"\",'[1]MONE(M)CAPARD'!FG195)","v":34240.656048751734},{"$f":"IF('[1]MONE(M)CAPARD'!FL195=\"\",\"\",'[1]MONE(M)CAPARD'!FL195)","v":12844.914678444999},{"$f":"IF('[1]MONE(M)CAPARD'!FO195=\"\",\"\",'[1]MONE(M)CAPARD'!FO195)","v":20.425442947982297},{"$f":"IF('[1]MONE(M)CAPARD'!FR195=\"\",\"\",'[1]MONE(M)CAPARD'!FR195)","v":21.531035362422845},{"$f":"IF('[1]MONE(M)CAPARD'!FV195=\"\",\"\",'[1]MONE(M)CAPARD'!FV195)","v":19.614903543432206},{"$f":"IF('[1]MONE(M)CARD'!FV195=\"\",\"\",'[1]MONE(M)CARD'!FV195)","v":407.44044355833546},{"$f":"IF('[1]MONE(M)CARD'!GD195=\"\",\"\",'[1]MONE(M)CARD'!GD195)","v":72.506042929949842},{"$f":"IF('[1]MONE(M)CARD'!GE195=\"\",\"\",'[1]MONE(M)CARD'!GE195)","v":3742.5355244788188},33.659012954525579,{"$f":"IF('[9]II.2.Balance OSD-Activos'!J53=\"\",\"\",'[9]II.2.Balance OSD-Activos'!J53)","v":206.8839367861448},{"$f":"IF('[9]II.2.Balance OSD-Activos'!N53=\"\",\"\",'[9]II.2.Balance OSD-Activos'!N53)","v":125.11150780724351},{"$f":"IF('[9]II.2.Balance OSD-Activos'!R53=\"\",\"\",'[9]II.2.Balance OSD-Activos'!R53)","v":11461.042332206744},{"$f":"IF('[9]II.2.Balance OSD-Activos'!S53=\"\",\"\",'[9]II.2.Balance OSD-Activos'!S53)","v":18227.695568469164},11667.926268992889,30020.733345269298,36.070077473270381,-0.43344516258693178,1037.8240938415154,-0.91327832453971247,35.155784602497505,19.053595570100246,0.70451430913569624,{"$f":"IF('[1]MONE(M)CAPARD'!GS195=\"\",\"\",'[1]MONE(M)CAPARD'!GS195)","v":6017.3683257797948},{"$f":"IF('[1]MONE(M)CARD'!HA195=\"\",\"\",'[1]MONE(M)CAPARD'!HA195)","v":3971.2338424788186},{"$f":"IF('[1]MONE(M)CAPARD'!HB195=\"\",\"\",'[1]MONE(M)CAPARD'!HB195)","v":2046.1344833009762},"n.d.",{"$f":"IF('[10]II.2.Balance OSD-Activos'!J53=\"\",\"\",'[10]II.2.Balance OSD-Activos'!J53)","v":414.28226977614474},{"$f":"IF('[10]II.2.Balance OSD-Activos'!N53=\"\",\"\",'[10]II.2.Balance OSD-Activos'!N53)","v":495.96661045724352},{"$f":"IF('[10]II.2.Balance OSD-Activos'!R53=\"\",\"\",'[10]II.2.Balance OSD-Activos'!R53)","v":17171.05892963674},{"$f":"IF('[10]II.2.Balance OSD-Activos'!S53=\"\",\"\",'[10]II.2.Balance OSD-Activos'!S53)","v":23701.20584522916},17585.341199412884,41782.51365509929,-35.229131926228298,3.0682846097655592,9.8091012791969199,4.5598907060462102,29.667307289003865,16.737107486186844,1.0953810020631458,{"$f":"IF('[1]MONE(M)CAPARD'!AS195=\"\",\"\",'[1]MONE(M)CAPARD'!AS195)","v":"n.d."},{"$f":"IF('[1]MONE(M)CAPARD'!AT195=\"\",\"\",'[1]MONE(M)CAPARD'!AT195)","v":"n.a."},{"$f":"IF('[1]MONE(M)CAPARD'!AU195=\"\",\"\",'[1]MONE(M)CAPARD'!AU195)","v":3},{"$f":"IF('[1]MONE(M)CAPARD'!AV195=\"\",\"\",'[1]MONE(M)CAPARD'!AV195)","v":7},{"$f":"IF('[1]MONE(M)CAPARD'!AW195=\"\",\"\",'[1]MONE(M)CAPARD'!AW195)","v":"n.a."},{"$f":"IF('[1]MONE(M)CAPARD'!AX195=\"\",\"\",'[1]MONE(M)CAPARD'!AX195)","v":8},{"$f":"IF('[1]MONE(M)CAPARD'!AY195=\"\",\"\",'[1]MONE(M)CAPARD'!AY195)","v":"n.a."},{"$f":"IF('[1]FISCAL(M)'!$K195=\"\",\"\",'[1]FISCAL(M)'!$K195)","v":209.88317620294671},{"$f":"IF('[1]FISCAL(M)'!$L195=\"\",\"\",'[1]FISCAL(M)'!$L195)","v":556.37043832294648},{"$f":"IF('[1]FISCAL(M)'!$AY195=\"\",\"\",'[1]FISCAL(M)'!$AY195)","v":"n.d."},{"$f":"IF('[1]FISCAL(M)'!$BI195=\"\",\"\",'[1]FISCAL(M)'!$BI195)","v":"n.d."},{"$f":"IF('[1]FISCAL(M)'!$BS195=\"\",\"\",'[1]FISCAL(M)'!$BS195)","v":"n.d."},{"$f":"IF('[1]FISCAL(M)'!$AZ195=\"\",\"\",'[1]FISCAL(M)'!$AZ195)","v":"n.d."},{"$f":"IF('[1]FISCAL(M)'!$BJ195=\"\",\"\",'[1]FISCAL(M)'!$BJ195)","v":"n.d."},{"$f":"IF('[1]FISCAL(M)'!$BT195=\"\",\"\",'[1]FISCAL(M)'!$BT195)","v":"n.d."},{"$f":"IF('[2]MONE(M)'!$AO195=\"\",\"\",'[2]MONE(M)'!$AO195)","v":3004723.7712094462},{"$f":"IF('[3]MONE(M)'!$AO195=\"\",\"\",'[3]MONE(M)'!$AO195)","v":6886.9153133071432},{"$f":"IF('[4]MONE(M)'!$AO195=\"\",\"\",'[4]MONE(M)'!$AO195)","v":56262.965609976687},{"$f":"IF('[5]MONE(M)'!$AO195=\"\",\"\",'[5]MONE(M)'!$AO195)","v":64743.630184938564},{"$f":"IF('[6]MONE(M)'!$AO195=\"\",\"\",'[6]MONE(M)'!$AO195)","v":20642.853274944518},{"$f":"IF('[7]MONE(M)'!$AO195=\"\",\"\",'[7]MONE(M)'!$AO195)","v":177450.96606100001},{"$f":"IF('[8]MONE(M)'!$AO195=\"\",\"\",'[8]MONE(M)'!$AO195)","v":11715.472811669999},22.045224509081262,4.3798007485723156,15.974310888491905,11.608023921098386,34.440715701866196,-10.449745033544156,13.069736889053974,{"$f":"IF('[1]FISCAL(M)'!$K195=\"\",\"\",'[1]FISCAL(M)'!$K195)","v":209.88317620294671},{"$f":"+'[1]REAL(A)'!$AO$25","v":"n.d."},"n.d.",{"$f":"IF('[1]FISCAL(M)'!$L195=\"\",\"\",'[1]FISCAL(M)'!$L195)","v":556.37043832294648},{"$f":"+'[1]REAL(A)'!$AP$25","v":"n.d."},"n.d.","n.d.",{"$f":"'[1]Gráfico REM'!BG189","v":11840.55816895695},{"$f":"'[1]Gráfico REM'!BH189","v":31392.317150355142},{"$f":"'[1]Gráfico REM'!BI189","v":2953.9971879579189},"n.d.",25.009732980505039,17.31957465490046,26.578163023610244,"n.d.",{"$f":"'[1]Gráfico REM'!BK189","v":12362.44872603695},{"$f":"'[1]Gráfico REM'!BL189","v":43107.789962025141},{"$f":"'[1]Gráfico REM'!BM189","v":10543.068177627918},"n.d.",23.70047711535388,16.133295815501402,16.625742260743024]
[2005,"julio","2005-julio",{"$f":"IF('[1]REAL IPC(M)'!$AL196=\"\",\"\",+'[1]REAL IPC(M)'!$AL196)","v":7.0682539269553146},{"$f":"IF('[1]REAL IPC(M)'!$BE196=\"\",\"\",+'[1]REAL IPC(M)'!$BE196)","v":11.380009307445448},{"$f":"IF('[1]REAL IPC(M)'!$AM196=\"\",\"\",+'[1]REAL IPC(M)'!$AM196)","v":6.8252957459089325},{"$f":"IF('[1]REAL IPC(M)'!$BI196=\"\",\"\",+'[1]REAL IPC(M)'!$BI196)","v":10.922697137455906},{"$f":"IF('[1]REAL IMAE(M)'!BJ196=\"\",\"\",'[1]REAL IMAE(M)'!BJ196)","v":"n.d."},{"$f":"IF('[1]REAL IMAE(M)'!BK196=\"\",\"\",'[1]REAL IMAE(M)'!BK196)","v":"n.d."},{"$f":"IF('[1]REAL IMAE(M)'!BN196=\"\",\"\",'[1]REAL IMAE(M)'!BN196)","v":"n.d."},{"$f":"IF('[1]REAL IMAE(M)'!BO196=\"\",\"\",'[1]REAL IMAE(M)'!BO196)","v":"n.d."},{"$f":"IF('[1]EXT RIN(M)'!$K196=\"\",\"\",'[1]EXT RIN(M)'!$K196)","v":11690.086854471894},"",{"$f":"IF('[1]EXT RIN(M)'!$L196=\"\",\"\",'[1]EXT RIN(M)'!$L196)","v":12731.930660119113},"",{"$f":"IF('[1]MONE(M)CARD'!EG196=\"\",\"\",'[1]MONE(M)CARD'!EG196)","v":11289.912940125227},{"$f":"IF('[1]MONE(M)CARD'!EK196=\"\",\"\",'[1]MONE(M)CARD'!EK196)","v":24832.410972033205},{"$f":"IF('[1]MONE(M)CARD'!EP196=\"\",\"\",'[1]MONE(M)CARD'!EP196)","v":12775.557908997216},{"$f":"IF('[1]MONE(M)CARD'!ES196=\"\",\"\",'[1]MONE(M)CARD'!ES196)","v":22.171402750540501},{"$f":"IF('[1]MONE(M)CARD'!EV196=\"\",\"\",'[1]MONE(M)CARD'!EV196)","v":26.75684837527772},{"$f":"IF('[1]MONE(M)CARD'!EZ196=\"\",\"\",'[1]MONE(M)CARD'!EZ196)","v":22.267916338926597},{"$f":"IF('[1]MONE(M)CAPARD'!FC196=\"\",\"\",'[1]MONE(M)CAPARD'!FC196)","v":12876.838799675226},{"$f":"IF('[1]MONE(M)CAPARD'!FG196=\"\",\"\",'[1]MONE(M)CAPARD'!FG196)","v":34417.149174093196},{"$f":"IF('[1]MONE(M)CAPARD'!FL196=\"\",\"\",'[1]MONE(M)CAPARD'!FL196)","v":12775.557908997216},{"$f":"IF('[1]MONE(M)CAPARD'!FO196=\"\",\"\",'[1]MONE(M)CAPARD'!FO196)","v":20.474825843071407},{"$f":"IF('[1]MONE(M)CAPARD'!FR196=\"\",\"\",'[1]MONE(M)CAPARD'!FR196)","v":20.251023740153173},{"$f":"IF('[1]MONE(M)CAPARD'!FV196=\"\",\"\",'[1]MONE(M)CAPARD'!FV196)","v":18.190238733499097},{"$f":"IF('[1]MONE(M)CARD'!FV196=\"\",\"\",'[1]MONE(M)CARD'!FV196)","v":430.55891789676599},{"$f":"IF('[1]MONE(M)CARD'!GD196=\"\",\"\",'[1]MONE(M)CARD'!GD196)","v":35.620706081878922},{"$f":"IF('[1]MONE(M)CARD'!GE196=\"\",\"\",'[1]MONE(M)CARD'!GE196)","v":3724.0248259170226},33.284244684259747,{"$f":"IF('[9]II.2.Balance OSD-Activos'!J54=\"\",\"\",'[9]II.2.Balance OSD-Activos'!J54)","v":201.52557502125902},{"$f":"IF('[9]II.2.Balance OSD-Activos'!N54=\"\",\"\",'[9]II.2.Balance OSD-Activos'!N54)","v":128.83314672881627},{"$f":"IF('[9]II.2.Balance OSD-Activos'!R54=\"\",\"\",'[9]II.2.Balance OSD-Activos'!R54)","v":11539.74349729274},{"$f":"IF('[9]II.2.Balance OSD-Activos'!S54=\"\",\"\",'[9]II.2.Balance OSD-Activos'!S54)","v":18538.470097290712},11741.269072313999,30408.572316333528,12.493685416885359,0.32925498671418918,935.03957478774817,0.14014873802534744,35.049431156895338,19.519472644592597,0.46587707449235083,{"$f":"IF('[1]MONE(M)CAPARD'!GS196=\"\",\"\",'[1]MONE(M)CAPARD'!GS196)","v":5892.2056629297567},{"$f":"IF('[1]MONE(M)CARD'!HA196=\"\",\"\",'[1]MONE(M)CAPARD'!HA196)","v":4004.8358521970231},{"$f":"IF('[1]MONE(M)CAPARD'!HB196=\"\",\"\",'[1]MONE(M)CAPARD'!HB196)","v":1887.3698107327336},"n.d.",{"$f":"IF('[10]II.2.Balance OSD-Activos'!J54=\"\",\"\",'[10]II.2.Balance OSD-Activos'!J54)","v":409.23265304125903},{"$f":"IF('[10]II.2.Balance OSD-Activos'!N54=\"\",\"\",'[10]II.2.Balance OSD-Activos'!N54)","v":475.43193339881623},{"$f":"IF('[10]II.2.Balance OSD-Activos'!R54=\"\",\"\",'[10]II.2.Balance OSD-Activos'!R54)","v":17382.075080082737},{"$f":"IF('[10]II.2.Balance OSD-Activos'!S54=\"\",\"\",'[10]II.2.Balance OSD-Activos'!S54)","v":24081.08745627071},17791.307733123995,42347.827122793518,-32.708836473055889,4.1405520343455793,2.7741005724091883,5.500732014429488,29.736035704579411,17.280555331405868,0.54344784521902412,{"$f":"IF('[1]MONE(M)CAPARD'!AS196=\"\",\"\",'[1]MONE(M)CAPARD'!AS196)","v":"n.d."},{"$f":"IF('[1]MONE(M)CAPARD'!AT196=\"\",\"\",'[1]MONE(M)CAPARD'!AT196)","v":"n.a."},{"$f":"IF('[1]MONE(M)CAPARD'!AU196=\"\",\"\",'[1]MONE(M)CAPARD'!AU196)","v":3.25},{"$f":"IF('[1]MONE(M)CAPARD'!AV196=\"\",\"\",'[1]MONE(M)CAPARD'!AV196)","v":7},{"$f":"IF('[1]MONE(M)CAPARD'!AW196=\"\",\"\",'[1]MONE(M)CAPARD'!AW196)","v":"n.a."},{"$f":"IF('[1]MONE(M)CAPARD'!AX196=\"\",\"\",'[1]MONE(M)CAPARD'!AX196)","v":8},{"$f":"IF('[1]MONE(M)CAPARD'!AY196=\"\",\"\",'[1]MONE(M)CAPARD'!AY196)","v":"n.a."},{"$f":"IF('[1]FISCAL(M)'!$K196=\"\",\"\",'[1]FISCAL(M)'!$K196)","v":51.448883061626645},{"$f":"IF('[1]FISCAL(M)'!$L196=\"\",\"\",'[1]FISCAL(M)'!$L196)","v":69.215482341626227},{"$f":"IF('[1]FISCAL(M)'!$AY196=\"\",\"\",'[1]FISCAL(M)'!$AY196)","v":"n.d."},{"$f":"IF('[1]FISCAL(M)'!$BI196=\"\",\"\",'[1]FISCAL(M)'!$BI196)","v":"n.d."},{"$f":"IF('[1]FISCAL(M)'!$BS196=\"\",\"\",'[1]FISCAL(M)'!$BS196)","v":"n.d."},{"$f":"IF('[1]FISCAL(M)'!$AZ196=\"\",\"\",'[1]FISCAL(M)'!$AZ196)","v":"n.d."},{"$f":"IF('[1]FISCAL(M)'!$BJ196=\"\",\"\",'[1]FISCAL(M)'!$BJ196)","v":"n.d."},{"$f":"IF('[1]FISCAL(M)'!$BT196=\"\",\"\",'[1]FISCAL(M)'!$BT196)","v":"n.d."},{"$f":"IF('[2]MONE(M)'!$AO196=\"\",\"\",'[2]MONE(M)'!$AO196)","v":3036219.7722881446},{"$f":"IF('[3]MONE(M)'!$AO196=\"\",\"\",'[3]MONE(M)'!$AO196)","v":6941.0933185371432},{"$f":"IF('[4]MONE(M)'!$AO196=\"\",\"\",'[4]MONE(M)'!$AO196)","v":57169.692320081202},{"$f":"IF('[5]MONE(M)'!$AO196=\"\",\"\",'[5]MONE(M)'!$AO196)","v":65777.814572275092},{"$f":"IF('[6]MONE(M)'!$AO196=\"\",\"\",'[6]MONE(M)'!$AO196)","v":20918.753017400501},{"$f":"IF('[7]MONE(M)'!$AO196=\"\",\"\",'[7]MONE(M)'!$AO196)","v":180549.49750358998},{"$f":"IF('[8]MONE(M)'!$AO196=\"\",\"\",'[8]MONE(M)'!$AO196)","v":11920.71299611},23.254980867710518,6.3269355530398697,15.630153245654533,12.54998170818935,34.151251890324083,-7.8613173304941109,14.511254304143929,{"$f":"IF('[1]FISCAL(M)'!$K196=\"\",\"\",'[1]FISCAL(M)'!$K196)","v":51.448883061626645},{"$f":"+'[1]REAL(A)'!$AO$25","v":"n.d."},"n.d.",{"$f":"IF('[1]FISCAL(M)'!$L196=\"\",\"\",'[1]FISCAL(M)'!$L196)","v":69.215482341626227},{"$f":"+'[1]REAL(A)'!$AP$25","v":"n.d."},"n.d.","n.d.",{"$f":"'[1]Gráfico REM'!BG190","v":11756.694878159236},{"$f":"'[1]Gráfico REM'!BH190","v":31772.44889849818},{"$f":"'[1]Gráfico REM'!BI190","v":2777.4675189702384},"n.d.",20.91425524427002,17.992567972138129,21.189109175346289,"n.d.",{"$f":"'[1]Gráfico REM'!BK190","v":12212.172162359237},{"$f":"'[1]Gráfico REM'!BL190","v":43693.16189460818},{"$f":"'[1]Gráfico REM'!BM190","v":10447.277302821238},"n.d.",19.093256499882514,17.021943918533331,19.257304445132984]
[2005,"agosto","2005-agosto",{"$f":"IF('[1]REAL IPC(M)'!$AL197=\"\",\"\",+'[1]REAL IPC(M)'!$AL197)","v":7.5250919449672216},{"$f":"IF('[1]REAL IPC(M)'!$BE197=\"\",\"\",+'[1]REAL IPC(M)'!$BE197)","v":11.185535433278758},{"$f":"IF('[1]REAL IPC(M)'!$AM197=\"\",\"\",+'[1]REAL IPC(M)'!$AM197)","v":7.2467477247622147},{"$f":"IF('[1]REAL IPC(M)'!$BI197=\"\",\"\",+'[1]REAL IPC(M)'!$BI197)","v":10.734480879927787},{"$f":"IF('[1]REAL IMAE(M)'!BJ197=\"\",\"\",'[1]REAL IMAE(M)'!BJ197)","v":"n.d."},{"$f":"IF('[1]REAL IMAE(M)'!BK197=\"\",\"\",'[1]REAL IMAE(M)'!BK197)","v":"n.d."},{"$f":"IF('[1]REAL IMAE(M)'!BN197=\"\",\"\",'[1]REAL IMAE(M)'!BN197)","v":"n.d."},{"$f":"IF('[1]REAL IMAE(M)'!BO197=\"\",\"\",'[1]REAL IMAE(M)'!BO197)","v":"n.d."},{"$f":"IF('[1]EXT RIN(M)'!$K197=\"\",\"\",'[1]EXT RIN(M)'!$K197)","v":11532.488811667734},"",{"$f":"IF('[1]EXT RIN(M)'!$L197=\"\",\"\",'[1]EXT RIN(M)'!$L197)","v":12512.334124083414},"",{"$f":"IF('[1]MONE(M)CARD'!EG197=\"\",\"\",'[1]MONE(M)CARD'!EG197)","v":11123.331761575284},{"$f":"IF('[1]MONE(M)CARD'!EK197=\"\",\"\",'[1]MONE(M)CARD'!EK197)","v":24542.065254842026},{"$f":"IF('[1]MONE(M)CARD'!EP197=\"\",\"\",'[1]MONE(M)CARD'!EP197)","v":12759.575685264514},{"$f":"IF('[1]MONE(M)CARD'!ES197=\"\",\"\",'[1]MONE(M)CARD'!ES197)","v":17.870318416265228},{"$f":"IF('[1]MONE(M)CARD'!EV197=\"\",\"\",'[1]MONE(M)CARD'!EV197)","v":19.260431370772892},{"$f":"IF('[1]MONE(M)CARD'!EZ197=\"\",\"\",'[1]MONE(M)CARD'!EZ197)","v":16.957662763069091},{"$f":"IF('[1]MONE(M)CAPARD'!FC197=\"\",\"\",'[1]MONE(M)CAPARD'!FC197)","v":12736.038327685284},{"$f":"IF('[1]MONE(M)CAPARD'!FG197=\"\",\"\",'[1]MONE(M)CAPARD'!FG197)","v":34254.898359172017},{"$f":"IF('[1]MONE(M)CAPARD'!FL197=\"\",\"\",'[1]MONE(M)CAPARD'!FL197)","v":12759.575685264506},{"$f":"IF('[1]MONE(M)CAPARD'!FO197=\"\",\"\",'[1]MONE(M)CAPARD'!FO197)","v":15.405990252803893},{"$f":"IF('[1]MONE(M)CAPARD'!FR197=\"\",\"\",'[1]MONE(M)CAPARD'!FR197)","v":14.556495574082895},{"$f":"IF('[1]MONE(M)CAPARD'!FV197=\"\",\"\",'[1]MONE(M)CAPARD'!FV197)","v":13.770942652413542},{"$f":"IF('[1]MONE(M)CARD'!FV197=\"\",\"\",'[1]MONE(M)CARD'!FV197)","v":426.43782500914438},{"$f":"IF('[1]MONE(M)CARD'!GD197=\"\",\"\",'[1]MONE(M)CARD'!GD197)","v":39.14890001756396},{"$f":"IF('[1]MONE(M)CARD'!GE197=\"\",\"\",'[1]MONE(M)CARD'!GE197)","v":3895.5458926916313},36.780128392807043,{"$f":"IF('[9]II.2.Balance OSD-Activos'!J55=\"\",\"\",'[9]II.2.Balance OSD-Activos'!J55)","v":187.81009865457594},{"$f":"IF('[9]II.2.Balance OSD-Activos'!N55=\"\",\"\",'[9]II.2.Balance OSD-Activos'!N55)","v":129.01700751847133},{"$f":"IF('[9]II.2.Balance OSD-Activos'!R55=\"\",\"\",'[9]II.2.Balance OSD-Activos'!R55)","v":11620.878892433626},{"$f":"IF('[9]II.2.Balance OSD-Activos'!S55=\"\",\"\",'[9]II.2.Balance OSD-Activos'!S55)","v":18849.040319974614},11808.688991088202,30786.746318581289,22.336736560826289,-1.7216626468230856,1001.5310324233724,-2.0330274290419781,33.558284243075541,17.775306980319638,-1.744165664272959,{"$f":"IF('[1]MONE(M)CAPARD'!GS197=\"\",\"\",'[1]MONE(M)CAPARD'!GS197)","v":5788.9605710502174},{"$f":"IF('[1]MONE(M)CARD'!HA197=\"\",\"\",'[1]MONE(M)CAPARD'!HA197)","v":4180.8358273516315},{"$f":"IF('[1]MONE(M)CAPARD'!HB197=\"\",\"\",'[1]MONE(M)CAPARD'!HB197)","v":1608.1247436985859},"n.d.",{"$f":"IF('[10]II.2.Balance OSD-Activos'!J55=\"\",\"\",'[10]II.2.Balance OSD-Activos'!J55)","v":372.45296533457594},{"$f":"IF('[10]II.2.Balance OSD-Activos'!N55=\"\",\"\",'[10]II.2.Balance OSD-Activos'!N55)","v":486.04883566847121},{"$f":"IF('[10]II.2.Balance OSD-Activos'!R55=\"\",\"\",'[10]II.2.Balance OSD-Activos'!R55)","v":17543.897784843626},{"$f":"IF('[10]II.2.Balance OSD-Activos'!S55=\"\",\"\",'[10]II.2.Balance OSD-Activos'!S55)","v":24480.869352804613},17916.350750178201,42883.268938651287,-29.90596813928984,2.5570318362207356,22.572974274049784,3.5754112795691073,28.807953535737862,16.303396910871303,-0.9771584205345647,{"$f":"IF('[1]MONE(M)CAPARD'!AS197=\"\",\"\",'[1]MONE(M)CAPARD'!AS197)","v":"n.d."},{"$f":"IF('[1]MONE(M)CAPARD'!AT197=\"\",\"\",'[1]MONE(M)CAPARD'!AT197)","v":"n.a."},{"$f":"IF('[1]MONE(M)CAPARD'!AU197=\"\",\"\",'[1]MONE(M)CAPARD'!AU197)","v":3.5},{"$f":"IF('[1]MONE(M)CAPARD'!AV197=\"\",\"\",'[1]MONE(M)CAPARD'!AV197)","v":7},{"$f":"IF('[1]MONE(M)CAPARD'!AW197=\"\",\"\",'[1]MONE(M)CAPARD'!AW197)","v":"n.a."},{"$f":"IF('[1]MONE(M)CAPARD'!AX197=\"\",\"\",'[1]MONE(M)CAPARD'!AX197)","v":8},{"$f":"IF('[1]MONE(M)CAPARD'!AY197=\"\",\"\",'[1]MONE(M)CAPARD'!AY197)","v":"n.a."},{"$f":"IF('[1]FISCAL(M)'!$K197=\"\",\"\",'[1]FISCAL(M)'!$K197)","v":-51.743641172017021},{"$f":"IF('[1]FISCAL(M)'!$L197=\"\",\"\",'[1]FISCAL(M)'!$L197)","v":-76.879160712017608},{"$f":"IF('[1]FISCAL(M)'!$AY197=\"\",\"\",'[1]FISCAL(M)'!$AY197)","v":"n.d."},{"$f":"IF('[1]FISCAL(M)'!$BI197=\"\",\"\",'[1]FISCAL(M)'!$BI197)","v":"n.d."},{"$f":"IF('[1]FISCAL(M)'!$BS197=\"\",\"\",'[1]FISCAL(M)'!$BS197)","v":"n.d."},{"$f":"IF('[1]FISCAL(M)'!$AZ197=\"\",\"\",'[1]FISCAL(M)'!$AZ197)","v":"n.d."},{"$f":"IF('[1]FISCAL(M)'!$BJ197=\"\",\"\",'[1]FISCAL(M)'!$BJ197)","v":"n.d."},{"$f":"IF('[1]FISCAL(M)'!$BT197=\"\",\"\",'[1]FISCAL(M)'!$BT197)","v":"n.d."},{"$f":"IF('[2]MONE(M)'!$AO197=\"\",\"\",'[2]MONE(M)'!$AO197)","v":3137007.6438775659},{"$f":"IF('[3]MONE(M)'!$AO197=\"\",\"\",'[3]MONE(M)'!$AO197)","v":6999.9075508271444},{"$f":"IF('[4]MONE(M)'!$AO197=\"\",\"\",'[4]MONE(M)'!$AO197)","v":57768.650557290879},{"$f":"IF('[5]MONE(M)'!$AO197=\"\",\"\",'[5]MONE(M)'!$AO197)","v":66670.558501544321},{"$f":"IF('[6]MONE(M)'!$AO197=\"\",\"\",'[6]MONE(M)'!$AO197)","v":21336.468246042743},{"$f":"IF('[7]MONE(M)'!$AO197=\"\",\"\",'[7]MONE(M)'!$AO197)","v":184369.51234999998},{"$f":"IF('[8]MONE(M)'!$AO197=\"\",\"\",'[8]MONE(M)'!$AO197)","v":12055.06158641},{"$f":"((BY190/BY178)-1)*100","v":24.555143802912504},6.9156034648593101,16.955562346990227,12.705849161353534,32.77948795581311,-1.3210165167072963,14.5450996711056,{"$f":"IF('[1]FISCAL(M)'!$K197=\"\",\"\",'[1]FISCAL(M)'!$K197)","v":-51.743641172017021},{"$f":"+'[1]REAL(A)'!$AO$25","v":"n.d."},"n.d.",{"$f":"IF('[1]FISCAL(M)'!$L197=\"\",\"\",'[1]FISCAL(M)'!$L197)","v":-76.879160712017608},{"$f":"+'[1]REAL(A)'!$AP$25","v":"n.d."},"n.d.","n.d.",{"$f":"'[1]Gráfico REM'!BG191","v":11623.036956559965},{"$f":"'[1]Gráfico REM'!BH191","v":32167.522965832184},{"$f":"'[1]Gráfico REM'!BI191","v":3075.7014571762556},"n.d.",14.319035322251739,16.281259648026936,43.087246637438902,"n.d.",{"$f":"'[1]Gráfico REM'!BK191","v":12086.550432339965},{"$f":"'[1]Gráfico REM'!BL191","v":44222.584552242188},{"$f":"'[1]Gráfico REM'!BM191","v":10892.011516576256},"n.d.",13.002842921199109,15.802786524210521,26.057708811597301]
[2005,"septiembre","2005-septiembre",{"$f":"IF('[1]REAL IPC(M)'!$AL198=\"\",\"\",+'[1]REAL IPC(M)'!$AL198)","v":9.0125068954416641},{"$f":"IF('[1]REAL IPC(M)'!$BE198=\"\",\"\",+'[1]REAL IPC(M)'!$BE198)","v":10.996618782718626},{"$f":"IF('[1]REAL IPC(M)'!$AM198=\"\",\"\",+'[1]REAL IPC(M)'!$AM198)","v":8.7158202554339823},{"$f":"IF('[1]REAL IPC(M)'!$BI198=\"\",\"\",+'[1]REAL IPC(M)'!$BI198)","v":10.550333189018346},{"$f":"IF('[1]REAL IMAE(M)'!BJ198=\"\",\"\",'[1]REAL IMAE(M)'!BJ198)","v":"n.d."},{"$f":"IF('[1]REAL IMAE(M)'!BK198=\"\",\"\",'[1]REAL IMAE(M)'!BK198)","v":"n.d."},{"$f":"IF('[1]REAL IMAE(M)'!BN198=\"\",\"\",'[1]REAL IMAE(M)'!BN198)","v":"n.d."},{"$f":"IF('[1]REAL IMAE(M)'!BO198=\"\",\"\",'[1]REAL IMAE(M)'!BO198)","v":"n.d."},{"$f":"IF('[1]EXT RIN(M)'!$K198=\"\",\"\",'[1]EXT RIN(M)'!$K198)","v":11645.5177717524},"",{"$f":"IF('[1]EXT RIN(M)'!$L198=\"\",\"\",'[1]EXT RIN(M)'!$L198)","v":12548.251169052821},"",{"$f":"IF('[1]MONE(M)CARD'!EG198=\"\",\"\",'[1]MONE(M)CARD'!EG198)","v":10941.128225408971},{"$f":"IF('[1]MONE(M)CARD'!EK198=\"\",\"\",'[1]MONE(M)CARD'!EK198)","v":24275.053949206867},{"$f":"IF('[1]MONE(M)CARD'!EP198=\"\",\"\",'[1]MONE(M)CARD'!EP198)","v":12798.256702740589},{"$f":"IF('[1]MONE(M)CARD'!ES198=\"\",\"\",'[1]MONE(M)CARD'!ES198)","v":12.13838660586195},{"$f":"IF('[1]MONE(M)CARD'!EV198=\"\",\"\",'[1]MONE(M)CARD'!EV198)","v":10.779943438429363},{"$f":"IF('[1]MONE(M)CARD'!EZ198=\"\",\"\",'[1]MONE(M)CARD'!EZ198)","v":10.822768777742553},{"$f":"IF('[1]MONE(M)CAPARD'!FC198=\"\",\"\",'[1]MONE(M)CAPARD'!FC198)","v":12625.932802488971},{"$f":"IF('[1]MONE(M)CAPARD'!FG198=\"\",\"\",'[1]MONE(M)CAPARD'!FG198)","v":34006.213705556875},{"$f":"IF('[1]MONE(M)CAPARD'!FL198=\"\",\"\",'[1]MONE(M)CAPARD'!FL198)","v":12798.256702740589},{"$f":"IF('[1]MONE(M)CAPARD'!FO198=\"\",\"\",'[1]MONE(M)CAPARD'!FO198)","v":12.571357206775025},{"$f":"IF('[1]MONE(M)CAPARD'!FR198=\"\",\"\",'[1]MONE(M)CAPARD'!FR198)","v":9.0802942502856467},{"$f":"IF('[1]MONE(M)CAPARD'!FV198=\"\",\"\",'[1]MONE(M)CAPARD'!FV198)","v":9.4756561086617666},{"$f":"IF('[1]MONE(M)CARD'!FV198=\"\",\"\",'[1]MONE(M)CARD'!FV198)","v":414.82818450979119},{"$f":"IF('[1]MONE(M)CARD'!GD198=\"\",\"\",'[1]MONE(M)CARD'!GD198)","v":76.397769907726669},{"$f":"IF('[1]MONE(M)CARD'!GE198=\"\",\"\",'[1]MONE(M)CARD'!GE198)","v":3956.2229298175998},35.876103262287764,{"$f":"IF('[9]II.2.Balance OSD-Activos'!J56=\"\",\"\",'[9]II.2.Balance OSD-Activos'!J56)","v":176.53086404152174},{"$f":"IF('[9]II.2.Balance OSD-Activos'!N56=\"\",\"\",'[9]II.2.Balance OSD-Activos'!N56)","v":125.91242163172198},{"$f":"IF('[9]II.2.Balance OSD-Activos'!R56=\"\",\"\",'[9]II.2.Balance OSD-Activos'!R56)","v":11839.700473361667},{"$f":"IF('[9]II.2.Balance OSD-Activos'!S56=\"\",\"\",'[9]II.2.Balance OSD-Activos'!S56)","v":18887.778729269594},12016.231337403189,31029.922488304503,17.940080755146461,-3.6725047521719456,924.72347634267373,-3.9349813007610646,28.981665067627162,14.373215135153972,-3.4020918451656659,{"$f":"IF('[1]MONE(M)CAPARD'!GS198=\"\",\"\",'[1]MONE(M)CAPARD'!GS198)","v":5674.4931084501704},{"$f":"IF('[1]MONE(M)CARD'!HA198=\"\",\"\",'[1]MONE(M)CAPARD'!HA198)","v":4241.6135555975998},{"$f":"IF('[1]MONE(M)CAPARD'!HB198=\"\",\"\",'[1]MONE(M)CAPARD'!HB198)","v":1432.8795528525707},"n.d.",{"$f":"IF('[10]II.2.Balance OSD-Activos'!J56=\"\",\"\",'[10]II.2.Balance OSD-Activos'!J56)","v":361.23860793152164},{"$f":"IF('[10]II.2.Balance OSD-Activos'!N56=\"\",\"\",'[10]II.2.Balance OSD-Activos'!N56)","v":491.74098480172194},{"$f":"IF('[10]II.2.Balance OSD-Activos'!R56=\"\",\"\",'[10]II.2.Balance OSD-Activos'!R56)","v":17888.289924451667},{"$f":"IF('[10]II.2.Balance OSD-Activos'!S56=\"\",\"\",'[10]II.2.Balance OSD-Activos'!S56)","v":24598.758111849591},18249.528532383189,43340.027629034506,-26.56012896463913,1.3580284313795321,15.650872482394762,2.1421532310808455,25.600416152694947,14.007271581930002,-2.2961253289413008,{"$f":"IF('[1]MONE(M)CAPARD'!AS198=\"\",\"\",'[1]MONE(M)CAPARD'!AS198)","v":"n.d."},{"$f":"IF('[1]MONE(M)CAPARD'!AT198=\"\",\"\",'[1]MONE(M)CAPARD'!AT198)","v":"n.a."},{"$f":"IF('[1]MONE(M)CAPARD'!AU198=\"\",\"\",'[1]MONE(M)CAPARD'!AU198)","v":3.75},{"$f":"IF('[1]MONE(M)CAPARD'!AV198=\"\",\"\",'[1]MONE(M)CAPARD'!AV198)","v":7},{"$f":"IF('[1]MONE(M)CAPARD'!AW198=\"\",\"\",'[1]MONE(M)CAPARD'!AW198)","v":"n.a."},{"$f":"IF('[1]MONE(M)CAPARD'!AX198=\"\",\"\",'[1]MONE(M)CAPARD'!AX198)","v":10},{"$f":"IF('[1]MONE(M)CAPARD'!AY198=\"\",\"\",'[1]MONE(M)CAPARD'!AY198)","v":"n.a."},{"$f":"IF('[1]FISCAL(M)'!$K198=\"\",\"\",'[1]FISCAL(M)'!$K198)","v":-295.03974781260246},{"$f":"IF('[1]FISCAL(M)'!$L198=\"\",\"\",'[1]FISCAL(M)'!$L198)","v":-395.25523330260273},{"$f":"IF('[1]FISCAL(M)'!$AY198=\"\",\"\",'[1]FISCAL(M)'!$AY198)","v":"n.d."},{"$f":"IF('[1]FISCAL(M)'!$BI198=\"\",\"\",'[1]FISCAL(M)'!$BI198)","v":"n.d."},{"$f":"IF('[1]FISCAL(M)'!$BS198=\"\",\"\",'[1]FISCAL(M)'!$BS198)","v":"n.d."},{"$f":"IF('[1]FISCAL(M)'!$AZ198=\"\",\"\",'[1]FISCAL(M)'!$AZ198)","v":"n.d."},{"$f":"IF('[1]FISCAL(M)'!$BJ198=\"\",\"\",'[1]FISCAL(M)'!$BJ198)","v":"n.d."},{"$f":"IF('[1]FISCAL(M)'!$BT198=\"\",\"\",'[1]FISCAL(M)'!$BT198)","v":"n.d."},{"$f":"IF('[2]MONE(M)'!$AO198=\"\",\"\",'[2]MONE(M)'!$AO198)","v":3218014.2604387128},{"$f":"IF('[3]MONE(M)'!$AO198=\"\",\"\",'[3]MONE(M)'!$AO198)","v":7170.1626235471431},{"$f":"IF('[4]MONE(M)'!$AO198=\"\",\"\",'[4]MONE(M)'!$AO198)","v":58748.58719386773},{"$f":"IF('[5]MONE(M)'!$AO198=\"\",\"\",'[5]MONE(M)'!$AO198)","v":67888.517346476467},{"$f":"IF('[6]MONE(M)'!$AO198=\"\",\"\",'[6]MONE(M)'!$AO198)","v":21857.599234907109},{"$f":"IF('[7]MONE(M)'!$AO198=\"\",\"\",'[7]MONE(M)'!$AO198)","v":189985.262972},{"$f":"IF('[8]MONE(M)'!$AO198=\"\",\"\",'[8]MONE(M)'!$AO198)","v":12303.719584719998},26.217474675318098,9.6808330534047915,16.904987141643723,13.650454081721408,31.786618228266562,7.7539834159615184,15.444476665938645,{"$f":"IF('[1]FISCAL(M)'!$K198=\"\",\"\",'[1]FISCAL(M)'!$K198)","v":-295.03974781260246},{"$f":"+'[1]REAL(A)'!$AO$25","v":"n.d."},"n.d.",{"$f":"IF('[1]FISCAL(M)'!$L198=\"\",\"\",'[1]FISCAL(M)'!$L198)","v":-395.25523330260273},{"$f":"+'[1]REAL(A)'!$AP$25","v":"n.d."},"n.d.","n.d.",{"$f":"'[1]Gráfico REM'!BG192","v":11457.469033095866},{"$f":"'[1]Gráfico REM'!BH192","v":32404.522915374342},{"$f":"'[1]Gráfico REM'!BI192","v":3205.5512211908158},"n.d.",6.4284283567775491,13.162887860970951,44.689174741342796,"n.d.",{"$f":"'[1]Gráfico REM'!BK192","v":11899.562152765866},{"$f":"'[1]Gráfico REM'!BL192","v":44708.24250009434},{"$f":"'[1]Gráfico REM'!BM192","v":11053.226553050816},"n.d.",5.6782250828888881,13.78173816468189,27.435213069716191]
[2005,"octubre","2005-octubre",{"$f":"IF('[1]REAL IPC(M)'!$AL199=\"\",\"\",+'[1]REAL IPC(M)'!$AL199)","v":9.1637244907553761},{"$f":"IF('[1]REAL IPC(M)'!$BE199=\"\",\"\",+'[1]REAL IPC(M)'!$BE199)","v":10.814000119521495},{"$f":"IF('[1]REAL IPC(M)'!$AM199=\"\",\"\",+'[1]REAL IPC(M)'!$AM199)","v":8.8847748884594235},{"$f":"IF('[1]REAL IPC(M)'!$BI199=\"\",\"\",+'[1]REAL IPC(M)'!$BI199)","v":10.371142071383721},{"$f":"IF('[1]REAL IMAE(M)'!BJ199=\"\",\"\",'[1]REAL IMAE(M)'!BJ199)","v":"n.d."},{"$f":"IF('[1]REAL IMAE(M)'!BK199=\"\",\"\",'[1]REAL IMAE(M)'!BK199)","v":"n.d."},{"$f":"IF('[1]REAL IMAE(M)'!BN199=\"\",\"\",'[1]REAL IMAE(M)'!BN199)","v":"n.d."},{"$f":"IF('[1]REAL IMAE(M)'!BO199=\"\",\"\",'[1]REAL IMAE(M)'!BO199)","v":"n.d."},{"$f":"IF('[1]EXT RIN(M)'!$K199=\"\",\"\",'[1]EXT RIN(M)'!$K199)","v":11730.596740516954},"",{"$f":"IF('[1]EXT RIN(M)'!$L199=\"\",\"\",'[1]EXT RIN(M)'!$L199)","v":12651.523870103554},"",{"$f":"IF('[1]MONE(M)CARD'!EG199=\"\",\"\",'[1]MONE(M)CARD'!EG199)","v":11048.359368136804},{"$f":"IF('[1]MONE(M)CARD'!EK199=\"\",\"\",'[1]MONE(M)CARD'!EK199)","v":23421.655641409427},{"$f":"IF('[1]MONE(M)CARD'!EP199=\"\",\"\",'[1]MONE(M)CARD'!EP199)","v":12838.184649958035},{"$f":"IF('[1]MONE(M)CARD'!ES199=\"\",\"\",'[1]MONE(M)CARD'!ES199)","v":13.304579944841578},{"$f":"IF('[1]MONE(M)CARD'!EV199=\"\",\"\",'[1]MONE(M)CARD'!EV199)","v":8.7498040341194248},{"$f":"IF('[1]MONE(M)CARD'!EZ199=\"\",\"\",'[1]MONE(M)CARD'!EZ199)","v":9.4919930203684721},{"$f":"IF('[1]MONE(M)CAPARD'!FC199=\"\",\"\",'[1]MONE(M)CAPARD'!FC199)","v":12722.219050996806},{"$f":"IF('[1]MONE(M)CAPARD'!FG199=\"\",\"\",'[1]MONE(M)CAPARD'!FG199)","v":33413.159614799428},{"$f":"IF('[1]MONE(M)CAPARD'!FL199=\"\",\"\",'[1]MONE(M)CAPARD'!FL199)","v":12838.184649958035},{"$f":"IF('[1]MONE(M)CAPARD'!FO199=\"\",\"\",'[1]MONE(M)CAPARD'!FO199)","v":13.476976462092249},{"$f":"IF('[1]MONE(M)CAPARD'!FR199=\"\",\"\",'[1]MONE(M)CAPARD'!FR199)","v":8.1237943521105258},{"$f":"IF('[1]MONE(M)CAPARD'!FV199=\"\",\"\",'[1]MONE(M)CAPARD'!FV199)","v":8.8486705138426824},{"$f":"IF('[1]MONE(M)CARD'!FV199=\"\",\"\",'[1]MONE(M)CARD'!FV199)","v":454.82353228070326},{"$f":"IF('[1]MONE(M)CARD'!GD199=\"\",\"\",'[1]MONE(M)CARD'!GD199)","v":45.026777484896016},{"$f":"IF('[1]MONE(M)CARD'!GE199=\"\",\"\",'[1]MONE(M)CARD'!GE199)","v":3998.3079507361717},24.486203566285635,{"$f":"IF('[9]II.2.Balance OSD-Activos'!J57=\"\",\"\",'[9]II.2.Balance OSD-Activos'!J57)","v":195.35204991093138},{"$f":"IF('[9]II.2.Balance OSD-Activos'!N57=\"\",\"\",'[9]II.2.Balance OSD-Activos'!N57)","v":119.87198768621515},{"$f":"IF('[9]II.2.Balance OSD-Activos'!R57=\"\",\"\",'[9]II.2.Balance OSD-Activos'!R57)","v":11778.722320098093},{"$f":"IF('[9]II.2.Balance OSD-Activos'!S57=\"\",\"\",'[9]II.2.Balance OSD-Activos'!S57)","v":19267.951128039462},11974.074370009024,31361.897485734702,20.082348003173657,-3.8539357319756773,911.94579454096379,-4.1707432376447473,30.178870713682549,15.017665956503778,0.6444508213498068,{"$f":"IF('[1]MONE(M)CAPARD'!GS199=\"\",\"\",'[1]MONE(M)CAPARD'!GS199)","v":5720.5695671703725},{"$f":"IF('[1]MONE(M)CARD'!HA199=\"\",\"\",'[1]MONE(M)CAPARD'!HA199)","v":4284.7718581461722},{"$f":"IF('[1]MONE(M)CAPARD'!HB199=\"\",\"\",'[1]MONE(M)CAPARD'!HB199)","v":1435.7977090242002},"n.d.",{"$f":"IF('[10]II.2.Balance OSD-Activos'!J57=\"\",\"\",'[10]II.2.Balance OSD-Activos'!J57)","v":380.31307463093145},{"$f":"IF('[10]II.2.Balance OSD-Activos'!N57=\"\",\"\",'[10]II.2.Balance OSD-Activos'!N57)","v":489.69585703621516},{"$f":"IF('[10]II.2.Balance OSD-Activos'!R57=\"\",\"\",'[10]II.2.Balance OSD-Activos'!R57)","v":17931.934100778089},{"$f":"IF('[10]II.2.Balance OSD-Activos'!S57=\"\",\"\",'[10]II.2.Balance OSD-Activos'!S57)","v":25049.590979119461},18312.247175409022,43851.534011564698,-24.897269660709387,1.3294195796198283,11.633091443295518,2.0854963779952662,26.639084670245762,14.521897237793091,0.51462565586308884,{"$f":"IF('[1]MONE(M)CAPARD'!AS199=\"\",\"\",'[1]MONE(M)CAPARD'!AS199)","v":"n.d."},{"$f":"IF('[1]MONE(M)CAPARD'!AT199=\"\",\"\",'[1]MONE(M)CAPARD'!AT199)","v":"n.a."},{"$f":"IF('[1]MONE(M)CAPARD'!AU199=\"\",\"\",'[1]MONE(M)CAPARD'!AU199)","v":3.75},{"$f":"IF('[1]MONE(M)CAPARD'!AV199=\"\",\"\",'[1]MONE(M)CAPARD'!AV199)","v":7},{"$f":"IF('[1]MONE(M)CAPARD'!AW199=\"\",\"\",'[1]MONE(M)CAPARD'!AW199)","v":"n.a."},{"$f":"IF('[1]MONE(M)CAPARD'!AX199=\"\",\"\",'[1]MONE(M)CAPARD'!AX199)","v":10},{"$f":"IF('[1]MONE(M)CAPARD'!AY199=\"\",\"\",'[1]MONE(M)CAPARD'!AY199)","v":"n.a."},{"$f":"IF('[1]FISCAL(M)'!$K199=\"\",\"\",'[1]FISCAL(M)'!$K199)","v":-140.64605645697395},{"$f":"IF('[1]FISCAL(M)'!$L199=\"\",\"\",'[1]FISCAL(M)'!$L199)","v":-315.22483500697484},{"$f":"IF('[1]FISCAL(M)'!$AY199=\"\",\"\",'[1]FISCAL(M)'!$AY199)","v":"n.d."},{"$f":"IF('[1]FISCAL(M)'!$BI199=\"\",\"\",'[1]FISCAL(M)'!$BI199)","v":"n.d."},{"$f":"IF('[1]FISCAL(M)'!$BS199=\"\",\"\",'[1]FISCAL(M)'!$BS199)","v":"n.d."},{"$f":"IF('[1]FISCAL(M)'!$AZ199=\"\",\"\",'[1]FISCAL(M)'!$AZ199)","v":"n.d."},{"$f":"IF('[1]FISCAL(M)'!$BJ199=\"\",\"\",'[1]FISCAL(M)'!$BJ199)","v":"n.d."},{"$f":"IF('[1]FISCAL(M)'!$BT199=\"\",\"\",'[1]FISCAL(M)'!$BT199)","v":"n.d."},{"$f":"IF('[2]MONE(M)'!$AO199=\"\",\"\",'[2]MONE(M)'!$AO199)","v":3280956.5796250599},{"$f":"IF('[3]MONE(M)'!$AO199=\"\",\"\",'[3]MONE(M)'!$AO199)","v":7229.1622279871444},{"$f":"IF('[4]MONE(M)'!$AO199=\"\",\"\",'[4]MONE(M)'!$AO199)","v":59740.580039468769},{"$f":"IF('[5]MONE(M)'!$AO199=\"\",\"\",'[5]MONE(M)'!$AO199)","v":69199.661513740721},{"$f":"IF('[6]MONE(M)'!$AO199=\"\",\"\",'[6]MONE(M)'!$AO199)","v":22603.773957431033},{"$f":"IF('[7]MONE(M)'!$AO199=\"\",\"\",'[7]MONE(M)'!$AO199)","v":197913.70867765998},{"$f":"IF('[8]MONE(M)'!$AO199=\"\",\"\",'[8]MONE(M)'!$AO199)","v":12473.102224572998},26.748065877662984,8.9369626168930729,17.638350741462936,13.827549030635344,34.590341715922676,11.75907731377286,15.82516023228504,{"$f":"IF('[1]FISCAL(M)'!$K199=\"\",\"\",'[1]FISCAL(M)'!$K199)","v":-140.64605645697395},{"$f":"+'[1]REAL(A)'!$AO$25","v":"n.d."},"n.d.",{"$f":"IF('[1]FISCAL(M)'!$L199=\"\",\"\",'[1]FISCAL(M)'!$L199)","v":-315.22483500697484},{"$f":"+'[1]REAL(A)'!$AP$25","v":"n.d."},"n.d.","n.d.",{"$f":"'[1]Gráfico REM'!BG193","v":11032.675028654001},{"$f":"'[1]Gráfico REM'!BH193","v":32722.460771909307},{"$f":"'[1]Gráfico REM'!BI193","v":3087.9454679717701},"n.d.",3.0709902849961335,13.889924173686641,45.279630166286026,"n.d.",{"$f":"'[1]Gráfico REM'!BK193","v":11495.190846344001},{"$f":"'[1]Gráfico REM'!BL193","v":45195.562996482302},{"$f":"'[1]Gráfico REM'!BM193","v":11053.143988341768},"n.d.",2.3361195016257774,14.417521095565178,26.282159985681353]
[2005,"noviembre","2005-noviembre",{"$f":"IF('[1]REAL IPC(M)'!$AL200=\"\",\"\",+'[1]REAL IPC(M)'!$AL200)","v":9.0268239787355533},{"$f":"IF('[1]REAL IPC(M)'!$BE200=\"\",\"\",+'[1]REAL IPC(M)'!$BE200)","v":10.638260191749671},{"$f":"IF('[1]REAL IPC(M)'!$AM200=\"\",\"\",+'[1]REAL IPC(M)'!$AM200)","v":8.7270386241827591},{"$f":"IF('[1]REAL IPC(M)'!$BI200=\"\",\"\",+'[1]REAL IPC(M)'!$BI200)","v":10.19763680040211},{"$f":"IF('[1]REAL IMAE(M)'!BJ200=\"\",\"\",'[1]REAL IMAE(M)'!BJ200)","v":"n.d."},{"$f":"IF('[1]REAL IMAE(M)'!BK200=\"\",\"\",'[1]REAL IMAE(M)'!BK200)","v":"n.d."},{"$f":"IF('[1]REAL IMAE(M)'!BN200=\"\",\"\",'[1]REAL IMAE(M)'!BN200)","v":"n.d."},{"$f":"IF('[1]REAL IMAE(M)'!BO200=\"\",\"\",'[1]REAL IMAE(M)'!BO200)","v":"n.d."},{"$f":"IF('[1]EXT RIN(M)'!$K200=\"\",\"\",'[1]EXT RIN(M)'!$K200)","v":11705.572929376087},"",{"$f":"IF('[1]EXT RIN(M)'!$L200=\"\",\"\",'[1]EXT RIN(M)'!$L200)","v":12649.580598993267},"",{"$f":"IF('[1]MONE(M)CARD'!EG200=\"\",\"\",'[1]MONE(M)CARD'!EG200)","v":11569.099050051635},{"$f":"IF('[1]MONE(M)CARD'!EK200=\"\",\"\",'[1]MONE(M)CARD'!EK200)","v":23490.36781630668},{"$f":"IF('[1]MONE(M)CARD'!EP200=\"\",\"\",'[1]MONE(M)CARD'!EP200)","v":12890.169718891382},{"$f":"IF('[1]MONE(M)CARD'!ES200=\"\",\"\",'[1]MONE(M)CARD'!ES200)","v":12.363891047339038},{"$f":"IF('[1]MONE(M)CARD'!EV200=\"\",\"\",'[1]MONE(M)CARD'!EV200)","v":5.3045874370671653},{"$f":"IF('[1]MONE(M)CARD'!EZ200=\"\",\"\",'[1]MONE(M)CARD'!EZ200)","v":6.6661858997214996},{"$f":"IF('[1]MONE(M)CAPARD'!FC200=\"\",\"\",'[1]MONE(M)CAPARD'!FC200)","v":13289.609864221635},{"$f":"IF('[1]MONE(M)CAPARD'!FG200=\"\",\"\",'[1]MONE(M)CAPARD'!FG200)","v":33632.17463828667},{"$f":"IF('[1]MONE(M)CAPARD'!FL200=\"\",\"\",'[1]MONE(M)CAPARD'!FL200)","v":12890.169718891382},{"$f":"IF('[1]MONE(M)CAPARD'!FO200=\"\",\"\",'[1]MONE(M)CAPARD'!FO200)","v":12.364757267292227},{"$f":"IF('[1]MONE(M)CAPARD'!FR200=\"\",\"\",'[1]MONE(M)CAPARD'!FR200)","v":5.6363739105757427},{"$f":"IF('[1]MONE(M)CAPARD'!FV200=\"\",\"\",'[1]MONE(M)CAPARD'!FV200)","v":6.6588715111922436},{"$f":"IF('[1]MONE(M)CARD'!FV200=\"\",\"\",'[1]MONE(M)CARD'!FV200)","v":1125.9147858206034},{"$f":"IF('[1]MONE(M)CARD'!GD200=\"\",\"\",'[1]MONE(M)CARD'!GD200)","v":43.871755395868533},{"$f":"IF('[1]MONE(M)CARD'!GE200=\"\",\"\",'[1]MONE(M)CARD'!GE200)","v":3980.6987942466199},26.254100399601231,{"$f":"IF('[9]II.2.Balance OSD-Activos'!J58=\"\",\"\",'[9]II.2.Balance OSD-Activos'!J58)","v":201.3357190597404},{"$f":"IF('[9]II.2.Balance OSD-Activos'!N58=\"\",\"\",'[9]II.2.Balance OSD-Activos'!N58)","v":236.95449109000253},{"$f":"IF('[9]II.2.Balance OSD-Activos'!R58=\"\",\"\",'[9]II.2.Balance OSD-Activos'!R58)","v":14457.263742582807},{"$f":"IF('[9]II.2.Balance OSD-Activos'!S58=\"\",\"\",'[9]II.2.Balance OSD-Activos'!S58)","v":16137.18436194252},14658.599461642547,31032.738314675069,24.981077861166167,13.333087353231665,1810.9205659641998,13.186182926564815,4.7544190241302298,9.4580447218969752,-5.5596212346068032,{"$f":"IF('[1]MONE(M)CAPARD'!GS200=\"\",\"\",'[1]MONE(M)CAPARD'!GS200)","v":6471.0033670771445},{"$f":"IF('[1]MONE(M)CARD'!HA200=\"\",\"\",'[1]MONE(M)CAPARD'!HA200)","v":4265.1250117066202},{"$f":"IF('[1]MONE(M)CAPARD'!HB200=\"\",\"\",'[1]MONE(M)CAPARD'!HB200)","v":2205.8783553705243},"n.d.",{"$f":"IF('[10]II.2.Balance OSD-Activos'!J58=\"\",\"\",'[10]II.2.Balance OSD-Activos'!J58)","v":394.48140340974038},{"$f":"IF('[10]II.2.Balance OSD-Activos'!N58=\"\",\"\",'[10]II.2.Balance OSD-Activos'!N58)","v":625.69288593000249},{"$f":"IF('[10]II.2.Balance OSD-Activos'!R58=\"\",\"\",'[10]II.2.Balance OSD-Activos'!R58)","v":20707.905593092808},{"$f":"IF('[10]II.2.Balance OSD-Activos'!S58=\"\",\"\",'[10]II.2.Balance OSD-Activos'!S58)","v":21996.602789832519},21102.386996502548,43724.682672265073,-22.103081435108152,13.569342916856296,49.727919100635965,14.568811421614036,7.6175058241660043,10.867848006400148,-3.6540492313929427,{"$f":"IF('[1]MONE(M)CAPARD'!AS200=\"\",\"\",'[1]MONE(M)CAPARD'!AS200)","v":"n.d."},{"$f":"IF('[1]MONE(M)CAPARD'!AT200=\"\",\"\",'[1]MONE(M)CAPARD'!AT200)","v":"n.a."},{"$f":"IF('[1]MONE(M)CAPARD'!AU200=\"\",\"\",'[1]MONE(M)CAPARD'!AU200)","v":4},{"$f":"IF('[1]MONE(M)CAPARD'!AV200=\"\",\"\",'[1]MONE(M)CAPARD'!AV200)","v":7},{"$f":"IF('[1]MONE(M)CAPARD'!AW200=\"\",\"\",'[1]MONE(M)CAPARD'!AW200)","v":"n.a."},{"$f":"IF('[1]MONE(M)CAPARD'!AX200=\"\",\"\",'[1]MONE(M)CAPARD'!AX200)","v":10},{"$f":"IF('[1]MONE(M)CAPARD'!AY200=\"\",\"\",'[1]MONE(M)CAPARD'!AY200)","v":"n.a."},{"$f":"IF('[1]FISCAL(M)'!$K200=\"\",\"\",'[1]FISCAL(M)'!$K200)","v":-418.69827451636212},{"$f":"IF('[1]FISCAL(M)'!$L200=\"\",\"\",'[1]FISCAL(M)'!$L200)","v":-647.16233835636297},{"$f":"IF('[1]FISCAL(M)'!$AY200=\"\",\"\",'[1]FISCAL(M)'!$AY200)","v":"n.d."},{"$f":"IF('[1]FISCAL(M)'!$BI200=\"\",\"\",'[1]FISCAL(M)'!$BI200)","v":"n.d."},{"$f":"IF('[1]FISCAL(M)'!$BS200=\"\",\"\",'[1]FISCAL(M)'!$BS200)","v":"n.d."},{"$f":"IF('[1]FISCAL(M)'!$AZ200=\"\",\"\",'[1]FISCAL(M)'!$AZ200)","v":"n.d."},{"$f":"IF('[1]FISCAL(M)'!$BJ200=\"\",\"\",'[1]FISCAL(M)'!$BJ200)","v":"n.d."},{"$f":"IF('[1]FISCAL(M)'!$BT200=\"\",\"\",'[1]FISCAL(M)'!$BT200)","v":"n.d."},{"$f":"IF('[2]MONE(M)'!$AO200=\"\",\"\",'[2]MONE(M)'!$AO200)","v":3366261.8454746678},{"$f":"IF('[3]MONE(M)'!$AO200=\"\",\"\",'[3]MONE(M)'!$AO200)","v":7328.4168484671427},{"$f":"IF('[4]MONE(M)'!$AO200=\"\",\"\",'[4]MONE(M)'!$AO200)","v":52564.139565937367},{"$f":"IF('[5]MONE(M)'!$AO200=\"\",\"\",'[5]MONE(M)'!$AO200)","v":71027.158985756949},{"$f":"IF('[6]MONE(M)'!$AO200=\"\",\"\",'[6]MONE(M)'!$AO200)","v":23294.631049732943},{"$f":"IF('[7]MONE(M)'!$AO200=\"\",\"\",'[7]MONE(M)'!$AO200)","v":200013.08786217001},{"$f":"IF('[8]MONE(M)'!$AO200=\"\",\"\",'[8]MONE(M)'!$AO200)","v":12668.326296523001},28.235984150579707,9.355775204716398,1.5491833321245041,15.356063861552261,33.646455019808364,13.712953284541163,16.62630675333412,{"$f":"IF('[1]FISCAL(M)'!$K200=\"\",\"\",'[1]FISCAL(M)'!$K200)","v":-418.69827451636212},{"$f":"+'[1]REAL(A)'!$AO$25","v":"n.d."},"n.d.",{"$f":"IF('[1]FISCAL(M)'!$L200=\"\",\"\",'[1]FISCAL(M)'!$L200)","v":-647.16233835636297},{"$f":"+'[1]REAL(A)'!$AP$25","v":"n.d."},"n.d.","n.d.",{"$f":"'[1]Gráfico REM'!BG194","v":11916.34577754446},{"$f":"'[1]Gráfico REM'!BH194","v":32235.508578611807},{"$f":"'[1]Gráfico REM'!BI194","v":3735.5011543150686},"n.d.",5.5897971643422251,8.1567475756777252,71.61848837967446,"n.d.",{"$f":"'[1]Gráfico REM'!BK194","v":12348.48139650446},{"$f":"'[1]Gráfico REM'!BL194","v":44903.834875134809},{"$f":"'[1]Gráfico REM'!BM194","v":11872.131028585067},"n.d.",3.8286384588201106,10.419015103377038,26.963966310226304]
[2005,"diciembre","2005-diciembre",{"$f":"IF('[1]REAL IPC(M)'!$AL201=\"\",\"\",+'[1]REAL IPC(M)'!$AL201)","v":9.7503604032846738},{"$f":"IF('[1]REAL IPC(M)'!$BE201=\"\",\"\",+'[1]REAL IPC(M)'!$BE201)","v":10.469862638303828},{"$f":"IF('[1]REAL IPC(M)'!$AM201=\"\",\"\",+'[1]REAL IPC(M)'!$AM201)","v":9.4151058071062277},{"$f":"IF('[1]REAL IPC(M)'!$BI201=\"\",\"\",+'[1]REAL IPC(M)'!$BI201)","v":10.030427170644263},{"$f":"IF('[1]REAL IMAE(M)'!BJ201=\"\",\"\",'[1]REAL IMAE(M)'!BJ201)","v":"n.d."},{"$f":"IF('[1]REAL IMAE(M)'!BK201=\"\",\"\",'[1]REAL IMAE(M)'!BK201)","v":"n.d."},{"$f":"IF('[1]REAL IMAE(M)'!BN201=\"\",\"\",'[1]REAL IMAE(M)'!BN201)","v":"n.d."},{"$f":"IF('[1]REAL IMAE(M)'!BO201=\"\",\"\",'[1]REAL IMAE(M)'!BO201)","v":"n.d."},{"$f":"IF('[1]EXT RIN(M)'!$K201=\"\",\"\",'[1]EXT RIN(M)'!$K201)","v":12142.098525460302},12142.098525460302,{"$f":"IF('[1]EXT RIN(M)'!$L201=\"\",\"\",'[1]EXT RIN(M)'!$L201)","v":13321.749764955292},13321.749764955292,{"$f":"IF('[1]MONE(M)CARD'!EG201=\"\",\"\",'[1]MONE(M)CARD'!EG201)","v":12301.867546451831},{"$f":"IF('[1]MONE(M)CARD'!EK201=\"\",\"\",'[1]MONE(M)CARD'!EK201)","v":23768.285106872449},{"$f":"IF('[1]MONE(M)CARD'!EP201=\"\",\"\",'[1]MONE(M)CARD'!EP201)","v":12822.316971144079},{"$f":"IF('[1]MONE(M)CARD'!ES201=\"\",\"\",'[1]MONE(M)CARD'!ES201)","v":13.081120394989254},{"$f":"IF('[1]MONE(M)CARD'!EV201=\"\",\"\",'[1]MONE(M)CARD'!EV201)","v":7.9305964407842877},{"$f":"IF('[1]MONE(M)CARD'!EZ201=\"\",\"\",'[1]MONE(M)CARD'!EZ201)","v":7.9578791669427495},{"$f":"IF('[1]MONE(M)CAPARD'!FC201=\"\",\"\",'[1]MONE(M)CAPARD'!FC201)","v":14208.151614091828},{"$f":"IF('[1]MONE(M)CAPARD'!FG201=\"\",\"\",'[1]MONE(M)CAPARD'!FG201)","v":34068.052675862447},{"$f":"IF('[1]MONE(M)CAPARD'!FL201=\"\",\"\",'[1]MONE(M)CAPARD'!FL201)","v":12822.316971144079},{"$f":"IF('[1]MONE(M)CAPARD'!FO201=\"\",\"\",'[1]MONE(M)CAPARD'!FO201)","v":13.557442999291048},{"$f":"IF('[1]MONE(M)CAPARD'!FR201=\"\",\"\",'[1]MONE(M)CAPARD'!FR201)","v":8.1264956472785634},{"$f":"IF('[1]MONE(M)CAPARD'!FV201=\"\",\"\",'[1]MONE(M)CAPARD'!FV201)","v":8.107218540749983},{"$f":"IF('[1]MONE(M)CARD'!FV201=\"\",\"\",'[1]MONE(M)CARD'!FV201)","v":1141.9051969465445},{"$f":"IF('[1]MONE(M)CARD'!GD201=\"\",\"\",'[1]MONE(M)CARD'!GD201)","v":44.881564234620264},{"$f":"IF('[1]MONE(M)CARD'!GE201=\"\",\"\",'[1]MONE(M)CARD'!GE201)","v":3745.165827828409},12.083229938704743,{"$f":"IF('[9]II.2.Balance OSD-Activos'!J59=\"\",\"\",'[9]II.2.Balance OSD-Activos'!J59)","v":195.84497121773293},{"$f":"IF('[9]II.2.Balance OSD-Activos'!N59=\"\",\"\",'[9]II.2.Balance OSD-Activos'!N59)","v":239.13694120634764},{"$f":"IF('[9]II.2.Balance OSD-Activos'!R59=\"\",\"\",'[9]II.2.Balance OSD-Activos'!R59)","v":14696.749455699459},{"$f":"IF('[9]II.2.Balance OSD-Activos'!S59=\"\",\"\",'[9]II.2.Balance OSD-Activos'!S59)","v":16548.824190827381},14892.594426917192,31680.55555895092,43.44236930393788,16.688539484235896,1922.3912320620198,16.399238585042177,6.0941520684436812,11.658364782975239,2.2003200610782638,{"$f":"IF('[1]MONE(M)CAPARD'!GS201=\"\",\"\",'[1]MONE(M)CAPARD'!GS201)","v":6454.357763480185},{"$f":"IF('[1]MONE(M)CARD'!HA201=\"\",\"\",'[1]MONE(M)CAPARD'!HA201)","v":3989.4516185184093},{"$f":"IF('[1]MONE(M)CAPARD'!HB201=\"\",\"\",'[1]MONE(M)CAPARD'!HB201)","v":2464.9061449617757},"n.d.",{"$f":"IF('[10]II.2.Balance OSD-Activos'!J59=\"\",\"\",'[10]II.2.Balance OSD-Activos'!J59)","v":404.45156764773293},{"$f":"IF('[10]II.2.Balance OSD-Activos'!N59=\"\",\"\",'[10]II.2.Balance OSD-Activos'!N59)","v":620.33036465634768},{"$f":"IF('[10]II.2.Balance OSD-Activos'!R59=\"\",\"\",'[10]II.2.Balance OSD-Activos'!R59)","v":20718.57388210946},{"$f":"IF('[10]II.2.Balance OSD-Activos'!S59=\"\",\"\",'[10]II.2.Balance OSD-Activos'!S59)","v":22498.860175867383},21123.025449757191,44242.215990280922,-14.617707845449369,15.935283240558684,49.332277092512044,16.750836994657071,8.7057753149303529,12.483748524891292,1.6159005184911432,{"$f":"IF('[1]MONE(M)CAPARD'!AS201=\"\",\"\",'[1]MONE(M)CAPARD'!AS201)","v":"n.d."},{"$f":"IF('[1]MONE(M)CAPARD'!AT201=\"\",\"\",'[1]MONE(M)CAPARD'!AT201)","v":"n.a."},{"$f":"IF('[1]MONE(M)CAPARD'!AU201=\"\",\"\",'[1]MONE(M)CAPARD'!AU201)","v":4.25},{"$f":"IF('[1]MONE(M)CAPARD'!AV201=\"\",\"\",'[1]MONE(M)CAPARD'!AV201)","v":7},{"$f":"IF('[1]MONE(M)CAPARD'!AW201=\"\",\"\",'[1]MONE(M)CAPARD'!AW201)","v":"n.a."},{"$f":"IF('[1]MONE(M)CAPARD'!AX201=\"\",\"\",'[1]MONE(M)CAPARD'!AX201)","v":10},{"$f":"IF('[1]MONE(M)CAPARD'!AY201=\"\",\"\",'[1]MONE(M)CAPARD'!AY201)","v":"n.a."},{"$f":"IF('[1]FISCAL(M)'!$K201=\"\",\"\",'[1]FISCAL(M)'!$K201)","v":-1524.3275443622554},{"$f":"IF('[1]FISCAL(M)'!$L201=\"\",\"\",'[1]FISCAL(M)'!$L201)","v":-1494.3275443622558},{"$f":"IF('[1]FISCAL(M)'!$AY201=\"\",\"\",'[1]FISCAL(M)'!$AY201)","v":"n.d."},{"$f":"IF('[1]FISCAL(M)'!$BI201=\"\",\"\",'[1]FISCAL(M)'!$BI201)","v":"n.d."},{"$f":"IF('[1]FISCAL(M)'!$BS201=\"\",\"\",'[1]FISCAL(M)'!$BS201)","v":28855.4},{"$f":"IF('[1]FISCAL(M)'!$AZ201=\"\",\"\",'[1]FISCAL(M)'!$AZ201)","v":"n.d."},{"$f":"IF('[1]FISCAL(M)'!$BJ201=\"\",\"\",'[1]FISCAL(M)'!$BJ201)","v":"n.d."},{"$f":"IF('[1]FISCAL(M)'!$BT201=\"\",\"\",'[1]FISCAL(M)'!$BT201)","v":36435.104038830003},{"$f":"IF('[2]MONE(M)'!$AO201=\"\",\"\",'[2]MONE(M)'!$AO201)","v":3513450.2858631033},{"$f":"IF('[3]MONE(M)'!$AO201=\"\",\"\",'[3]MONE(M)'!$AO201)","v":7475.5792748771419},{"$f":"IF('[4]MONE(M)'!$AO201=\"\",\"\",'[4]MONE(M)'!$AO201)","v":55942.455012089791},{"$f":"IF('[5]MONE(M)'!$AO201=\"\",\"\",'[5]MONE(M)'!$AO201)","v":71746.347800475967},{"$f":"IF('[6]MONE(M)'!$AO201=\"\",\"\",'[6]MONE(M)'!$AO201)","v":24075.086353959712},{"$f":"IF('[7]MONE(M)'!$AO201=\"\",\"\",'[7]MONE(M)'!$AO201)","v":203881.20671452998},{"$f":"IF('[8]MONE(M)'!$AO201=\"\",\"\",'[8]MONE(M)'!$AO201)","v":12553.650540959999},30.190872247639568,11.454678086814996,4.7602218026398413,15.621575272184307,31.411430041460232,14.205142000722226,17.223060480836793,{"$f":"IF('[1]FISCAL(M)'!$K201=\"\",\"\",'[1]FISCAL(M)'!$K201)","v":-1524.3275443622554},{"$f":"+'[1]REAL(A)'!$AO$25","v":"n.d."},"n.d.",{"$f":"IF('[1]FISCAL(M)'!$L201=\"\",\"\",'[1]FISCAL(M)'!$L201)","v":-1494.3275443622558},{"$f":"+'[1]REAL(A)'!$AP$25","v":"n.d."},"n.d.","n.d.",{"$f":"'[1]Gráfico REM'!BG195","v":11686.671784083781},{"$f":"'[1]Gráfico REM'!BH195","v":33003.377212104351},{"$f":"'[1]Gráfico REM'!BI195","v":3839.3067241926392},"n.d.",5.5270434547202596,10.610388262882919,60.090042318656181,"n.d.",{"$f":"'[1]Gráfico REM'!BK195","v":12122.741737103781},{"$f":"'[1]Gráfico REM'!BL195","v":45557.027753064351},{"$f":"'[1]Gráfico REM'!BM195","v":12451.465192522639},"n.d.",4.5301713323935511,12.35692791126397,26.609741355534045]
[2006,"enero","2006-enero",{"$f":"IF('[1]REAL IPC(M)'!$AL202=\"\",\"\",+'[1]REAL IPC(M)'!$AL202)","v":9.4098265961843452},{"$f":"IF('[1]REAL IPC(M)'!$BE202=\"\",\"\",+'[1]REAL IPC(M)'!$BE202)","v":10.309155153784522},{"$f":"IF('[1]REAL IPC(M)'!$AM202=\"\",\"\",+'[1]REAL IPC(M)'!$AM202)","v":8.9705711030210633},{"$f":"IF('[1]REAL IPC(M)'!$BI202=\"\",\"\",+'[1]REAL IPC(M)'!$BI202)","v":9.8700073568684044},{"$f":"IF('[1]REAL IMAE(M)'!BJ202=\"\",\"\",'[1]REAL IMAE(M)'!BJ202)","v":"n.d."},{"$f":"IF('[1]REAL IMAE(M)'!BK202=\"\",\"\",'[1]REAL IMAE(M)'!BK202)","v":"n.d."},{"$f":"IF('[1]REAL IMAE(M)'!BN202=\"\",\"\",'[1]REAL IMAE(M)'!BN202)","v":"n.d."},{"$f":"IF('[1]REAL IMAE(M)'!BO202=\"\",\"\",'[1]REAL IMAE(M)'!BO202)","v":"n.d."},{"$f":"IF('[1]EXT RIN(M)'!$K202=\"\",\"\",'[1]EXT RIN(M)'!$K202)","v":12574.826265853762},"",{"$f":"IF('[1]EXT RIN(M)'!$L202=\"\",\"\",'[1]EXT RIN(M)'!$L202)","v":13782.379440133562},"",{"$f":"IF('[1]MONE(M)CARD'!EG202=\"\",\"\",'[1]MONE(M)CARD'!EG202)","v":12175.20358656445},{"$f":"IF('[1]MONE(M)CARD'!EK202=\"\",\"\",'[1]MONE(M)CARD'!EK202)","v":23689.676763946205},{"$f":"IF('[1]MONE(M)CARD'!EP202=\"\",\"\",'[1]MONE(M)CARD'!EP202)","v":13044.390449990206},{"$f":"IF('[1]MONE(M)CARD'!ES202=\"\",\"\",'[1]MONE(M)CARD'!ES202)","v":13.160915805175733},{"$f":"IF('[1]MONE(M)CARD'!EV202=\"\",\"\",'[1]MONE(M)CARD'!EV202)","v":5.9817614195611268},{"$f":"IF('[1]MONE(M)CARD'!EZ202=\"\",\"\",'[1]MONE(M)CARD'!EZ202)","v":6.579861134484366},{"$f":"IF('[1]MONE(M)CAPARD'!FC202=\"\",\"\",'[1]MONE(M)CAPARD'!FC202)","v":13943.02831259445},{"$f":"IF('[1]MONE(M)CAPARD'!FG202=\"\",\"\",'[1]MONE(M)CAPARD'!FG202)","v":33928.328450786204},{"$f":"IF('[1]MONE(M)CAPARD'!FL202=\"\",\"\",'[1]MONE(M)CAPARD'!FL202)","v":13044.390449990213},{"$f":"IF('[1]MONE(M)CAPARD'!FO202=\"\",\"\",'[1]MONE(M)CAPARD'!FO202)","v":13.532380037496793},{"$f":"IF('[1]MONE(M)CAPARD'!FR202=\"\",\"\",'[1]MONE(M)CAPARD'!FR202)","v":6.4438509157471513},{"$f":"IF('[1]MONE(M)CAPARD'!FV202=\"\",\"\",'[1]MONE(M)CAPARD'!FV202)","v":6.8275392486227382},{"$f":"IF('[1]MONE(M)CARD'!FV202=\"\",\"\",'[1]MONE(M)CARD'!FV202)","v":1138.2662547012324},{"$f":"IF('[1]MONE(M)CARD'!GD202=\"\",\"\",'[1]MONE(M)CARD'!GD202)","v":45.549179614752134},{"$f":"IF('[1]MONE(M)CARD'!GE202=\"\",\"\",'[1]MONE(M)CARD'!GE202)","v":3914.9080644673631},26.651997602088628,{"$f":"IF('[9]II.2.Balance OSD-Activos'!J60=\"\",\"\",'[9]II.2.Balance OSD-Activos'!J60)","v":203.42940188684679},{"$f":"IF('[9]II.2.Balance OSD-Activos'!N60=\"\",\"\",'[9]II.2.Balance OSD-Activos'!N60)","v":237.33585176749469},{"$f":"IF('[9]II.2.Balance OSD-Activos'!R60=\"\",\"\",'[9]II.2.Balance OSD-Activos'!R60)","v":14678.756379432374},{"$f":"IF('[9]II.2.Balance OSD-Activos'!S60=\"\",\"\",'[9]II.2.Balance OSD-Activos'!S60)","v":16737.347499318392},14882.185781319222,31856.869132405107,11.501192128524229,25.85393400187932,102.79825128327458,26.078850889483096,-0.84331913749162712,10.530868354081546,-1.1274964288936928,{"$f":"IF('[1]MONE(M)CAPARD'!GS202=\"\",\"\",'[1]MONE(M)CAPARD'!GS202)","v":6530.1436957813994},{"$f":"IF('[1]MONE(M)CARD'!HA202=\"\",\"\",'[1]MONE(M)CAPARD'!HA202)","v":4196.4457309373638},{"$f":"IF('[1]MONE(M)CAPARD'!HB202=\"\",\"\",'[1]MONE(M)CAPARD'!HB202)","v":2333.6979648440356},"n.d.",{"$f":"IF('[10]II.2.Balance OSD-Activos'!J60=\"\",\"\",'[10]II.2.Balance OSD-Activos'!J60)","v":418.95111720684673},{"$f":"IF('[10]II.2.Balance OSD-Activos'!N60=\"\",\"\",'[10]II.2.Balance OSD-Activos'!N60)","v":628.86218216749478},{"$f":"IF('[10]II.2.Balance OSD-Activos'!R60=\"\",\"\",'[10]II.2.Balance OSD-Activos'!R60)","v":20811.412699122375},{"$f":"IF('[10]II.2.Balance OSD-Activos'!S60=\"\",\"\",'[10]II.2.Balance OSD-Activos'!S60)","v":22733.948684598392},21230.36381632922,44593.174683095109,-18.925895258214076,22.477976809885902,22.407445843498785,23.750209440433821,3.3291921137997393,11.904683502365687,-0.57906502252560443,{"$f":"IF('[1]MONE(M)CAPARD'!AS202=\"\",\"\",'[1]MONE(M)CAPARD'!AS202)","v":"n.d."},{"$f":"IF('[1]MONE(M)CAPARD'!AT202=\"\",\"\",'[1]MONE(M)CAPARD'!AT202)","v":"n.a."},{"$f":"IF('[1]MONE(M)CAPARD'!AU202=\"\",\"\",'[1]MONE(M)CAPARD'!AU202)","v":4.25},{"$f":"IF('[1]MONE(M)CAPARD'!AV202=\"\",\"\",'[1]MONE(M)CAPARD'!AV202)","v":7},{"$f":"IF('[1]MONE(M)CAPARD'!AW202=\"\",\"\",'[1]MONE(M)CAPARD'!AW202)","v":"n.a."},{"$f":"IF('[1]MONE(M)CAPARD'!AX202=\"\",\"\",'[1]MONE(M)CAPARD'!AX202)","v":10},{"$f":"IF('[1]MONE(M)CAPARD'!AY202=\"\",\"\",'[1]MONE(M)CAPARD'!AY202)","v":"n.a."},{"$f":"IF('[1]FISCAL(M)'!$K202=\"\",\"\",'[1]FISCAL(M)'!$K202)","v":110.07382967864331},{"$f":"IF('[1]FISCAL(M)'!$L202=\"\",\"\",'[1]FISCAL(M)'!$L202)","v":162.7969068086434},{"$f":"IF('[1]FISCAL(M)'!$AY202=\"\",\"\",'[1]FISCAL(M)'!$AY202)","v":"n.d."},{"$f":"IF('[1]FISCAL(M)'!$BI202=\"\",\"\",'[1]FISCAL(M)'!$BI202)","v":"n.d."},{"$f":"IF('[1]FISCAL(M)'!$BS202=\"\",\"\",'[1]FISCAL(M)'!$BS202)","v":"n.d."},{"$f":"IF('[1]FISCAL(M)'!$AZ202=\"\",\"\",'[1]FISCAL(M)'!$AZ202)","v":"n.d."},{"$f":"IF('[1]FISCAL(M)'!$BJ202=\"\",\"\",'[1]FISCAL(M)'!$BJ202)","v":"n.d."},{"$f":"IF('[1]FISCAL(M)'!$BT202=\"\",\"\",'[1]FISCAL(M)'!$BT202)","v":"n.d."},{"$f":"IF('[2]MONE(M)'!$AO202=\"\",\"\",'[2]MONE(M)'!$AO202)","v":3495870.0193156349},{"$f":"IF('[3]MONE(M)'!$AO202=\"\",\"\",'[3]MONE(M)'!$AO202)","v":7525.5795430471435},{"$f":"IF('[4]MONE(M)'!$AO202=\"\",\"\",'[4]MONE(M)'!$AO202)","v":56440.24675633778},{"$f":"IF('[5]MONE(M)'!$AO202=\"\",\"\",'[5]MONE(M)'!$AO202)","v":73528.739460127894},{"$f":"IF('[6]MONE(M)'!$AO202=\"\",\"\",'[6]MONE(M)'!$AO202)","v":24626.978584329707},{"$f":"IF('[7]MONE(M)'!$AO202=\"\",\"\",'[7]MONE(M)'!$AO202)","v":200863.452326},{"$f":"IF('[8]MONE(M)'!$AO202=\"\",\"\",'[8]MONE(M)'!$AO202)","v":12721.846796449998},28.663359416032286,10.056744831538357,5.5704972052809554,18.897940444016182,33.219639618913476,15.191353953505837,18.007091781691955,{"$f":"IF('[1]FISCAL(M)'!$K202=\"\",\"\",'[1]FISCAL(M)'!$K202)","v":110.07382967864331},{"$f":"+'[1]REAL(A)'!$AO$26","v":"n.d."},{"$f":"IF(OR(CM195=\"n.d.\",CM195=\"\",CN195=\"\",CN195=\"n.d.\"),\"n.d.\",(CM195/CN195)*100)","v":"n.d."},{"$f":"IF('[1]FISCAL(M)'!$L202=\"\",\"\",'[1]FISCAL(M)'!$L202)","v":162.7969068086434},{"$f":"+'[1]REAL(A)'!$AP$26","v":"n.d."},"n.d.",{"$f":"+CT195+CU195+CV195","v":48756.21001387162},{"$f":"'[1]Gráfico REM'!BG196","v":11846.879790310279},{"$f":"'[1]Gráfico REM'!BH196","v":33099.71782770117},{"$f":"'[1]Gráfico REM'!BI196","v":3809.6123958601665},"n.d.",2.3262365502559446,9.7647302473400579,52.190901181975136,{"$f":"+DB195+DC195+DD195","v":70324.607526131615},{"$f":"'[1]Gráfico REM'!BK196","v":12344.776753750279},{"$f":"'[1]Gráfico REM'!BL196","v":45821.564624151171},{"$f":"'[1]Gráfico REM'!BM196","v":12158.266148230166},"n.d.",2.1193095066806666,11.935387258444031,22.654521045122355]
[2006,"febrero",{"$f":"A196&\"-\"&B196","v":"2006-febrero"},{"$f":"IF('[1]REAL IPC(M)'!$AL203=\"\",\"\",+'[1]REAL IPC(M)'!$AL203)","v":9.1029674587459262},{"$f":"IF('[1]REAL IPC(M)'!$BE203=\"\",\"\",+'[1]REAL IPC(M)'!$BE203)","v":10.156387500880593},{"$f":"IF('[1]REAL IPC(M)'!$AM203=\"\",\"\",+'[1]REAL IPC(M)'!$AM203)","v":8.6461290398904147},{"$f":"IF('[1]REAL IPC(M)'!$BI203=\"\",\"\",+'[1]REAL IPC(M)'!$BI203)","v":9.716822045525797},{"$f":"IF('[1]REAL IMAE(M)'!BJ203=\"\",\"\",'[1]REAL IMAE(M)'!BJ203)","v":"n.d."},{"$f":"IF('[1]REAL IMAE(M)'!BK203=\"\",\"\",'[1]REAL IMAE(M)'!BK203)","v":"n.d."},{"$f":"IF('[1]REAL IMAE(M)'!BN203=\"\",\"\",'[1]REAL IMAE(M)'!BN203)","v":"n.d."},{"$f":"IF('[1]REAL IMAE(M)'!BO203=\"\",\"\",'[1]REAL IMAE(M)'!BO203)","v":"n.d."},{"$f":"IF('[1]EXT RIN(M)'!$K203=\"\",\"\",'[1]EXT RIN(M)'!$K203)","v":12803.313186735255},{"$f":"IF(B196<>\"diciembre\",\"\",L196)","v":""},{"$f":"IF('[1]EXT RIN(M)'!$L203=\"\",\"\",'[1]EXT RIN(M)'!$L203)","v":13916.743114808014},{"$f":"IF(B196<>\"diciembre\",\"\",N196)","v":""},{"$f":"IF('[1]MONE(M)CARD'!EG203=\"\",\"\",'[1]MONE(M)CARD'!EG203)","v":12169.368829467594},{"$f":"IF('[1]MONE(M)CARD'!EK203=\"\",\"\",'[1]MONE(M)CARD'!EK203)","v":24466.728288890125},{"$f":"IF('[1]MONE(M)CARD'!EP203=\"\",\"\",'[1]MONE(M)CARD'!EP203)","v":13188.509489730459},{"$f":"IF('[1]MONE(M)CARD'!ES203=\"\",\"\",'[1]MONE(M)CARD'!ES203)","v":13.025691754104439},{"$f":"IF('[1]MONE(M)CARD'!EV203=\"\",\"\",'[1]MONE(M)CARD'!EV203)","v":6.6914334718147117},{"$f":"IF('[1]MONE(M)CARD'!EZ203=\"\",\"\",'[1]MONE(M)CARD'!EZ203)","v":6.890945454206987},{"$f":"IF('[1]MONE(M)CAPARD'!FC203=\"\",\"\",'[1]MONE(M)CAPARD'!FC203)","v":13958.419958977594},{"$f":"IF('[1]MONE(M)CAPARD'!FG203=\"\",\"\",'[1]MONE(M)CAPARD'!FG203)","v":34829.997203170118},{"$f":"IF('[1]MONE(M)CAPARD'!FL203=\"\",\"\",'[1]MONE(M)CAPARD'!FL203)","v":13188.509489730459},{"$f":"IF('[1]MONE(M)CAPARD'!FO203=\"\",\"\",'[1]MONE(M)CAPARD'!FO203)","v":13.261770443275811},{"$f":"IF('[1]MONE(M)CAPARD'!FR203=\"\",\"\",'[1]MONE(M)CAPARD'!FR203)","v":6.8861520621841255},{"$f":"IF('[1]MONE(M)CAPARD'!FV203=\"\",\"\",'[1]MONE(M)CAPARD'!FV203)","v":7.0054514619050545},{"$f":"IF('[1]MONE(M)CARD'!FV203=\"\",\"\",'[1]MONE(M)CARD'!FV203)","v":1164.0027710000413},{"$f":"IF('[1]MONE(M)CARD'!GD203=\"\",\"\",'[1]MONE(M)CARD'!GD203)","v":49.775745892612832},{"$f":"IF('[1]MONE(M)CARD'!GE203=\"\",\"\",'[1]MONE(M)CARD'!GE203)","v":3944.067166110875},16.56147558448491,{"$f":"IF('[9]II.2.Balance OSD-Activos'!J61=\"\",\"\",'[9]II.2.Balance OSD-Activos'!J61)","v":226.79433523876745},{"$f":"IF('[9]II.2.Balance OSD-Activos'!N61=\"\",\"\",'[9]II.2.Balance OSD-Activos'!N61)","v":247.30131163373213},{"$f":"IF('[9]II.2.Balance OSD-Activos'!R61=\"\",\"\",'[9]II.2.Balance OSD-Activos'!R61)","v":14911.837649498093},{"$f":"IF('[9]II.2.Balance OSD-Activos'!S61=\"\",\"\",'[9]II.2.Balance OSD-Activos'!S61)","v":17051.862908161915},15138.631984736861,32437.796204532508,32.052154752025011,28.482756446163936,110.25083581663493,28.42995851574608,-0.26082269320839568,11.867222295039603,1.3363539409580572,{"$f":"IF('[1]MONE(M)CAPARD'!GS203=\"\",\"\",'[1]MONE(M)CAPARD'!GS203)","v":6471.828732547996},{"$f":"IF('[1]MONE(M)CARD'!HA203=\"\",\"\",'[1]MONE(M)CAPARD'!HA203)","v":4226.3271946608738},{"$f":"IF('[1]MONE(M)CAPARD'!HB203=\"\",\"\",'[1]MONE(M)CAPARD'!HB203)","v":2245.5015378871221},"n.d.",{"$f":"IF('[10]II.2.Balance OSD-Activos'!J61=\"\",\"\",'[10]II.2.Balance OSD-Activos'!J61)","v":444.89470530876747},{"$f":"IF('[10]II.2.Balance OSD-Activos'!N61=\"\",\"\",'[10]II.2.Balance OSD-Activos'!N61)","v":645.61294898373228},{"$f":"IF('[10]II.2.Balance OSD-Activos'!R61=\"\",\"\",'[10]II.2.Balance OSD-Activos'!R61)","v":21039.232695358092},{"$f":"IF('[10]II.2.Balance OSD-Activos'!S61=\"\",\"\",'[10]II.2.Balance OSD-Activos'!S61)","v":23123.636891501912},21484.127400666861,45253.377241152506,-12.347164968705005,23.989180330904048,26.046585566278146,25.085684344570858,3.8105164634445687,12.810598847732457,0.9059153453667701,{"$f":"IF('[1]MONE(M)CAPARD'!AS203=\"\",\"\",'[1]MONE(M)CAPARD'!AS203)","v":"n.d."},{"$f":"IF('[1]MONE(M)CAPARD'!AT203=\"\",\"\",'[1]MONE(M)CAPARD'!AT203)","v":"n.a."},{"$f":"IF('[1]MONE(M)CAPARD'!AU203=\"\",\"\",'[1]MONE(M)CAPARD'!AU203)","v":4.25},{"$f":"IF('[1]MONE(M)CAPARD'!AV203=\"\",\"\",'[1]MONE(M)CAPARD'!AV203)","v":7},{"$f":"IF('[1]MONE(M)CAPARD'!AW203=\"\",\"\",'[1]MONE(M)CAPARD'!AW203)","v":"n.a."},{"$f":"IF('[1]MONE(M)CAPARD'!AX203=\"\",\"\",'[1]MONE(M)CAPARD'!AX203)","v":10},{"$f":"IF('[1]MONE(M)CAPARD'!AY203=\"\",\"\",'[1]MONE(M)CAPARD'!AY203)","v":"n.a."},{"$f":"IF('[1]FISCAL(M)'!$K203=\"\",\"\",'[1]FISCAL(M)'!$K203)","v":-77.399959081082045},{"$f":"IF('[1]FISCAL(M)'!$L203=\"\",\"\",'[1]FISCAL(M)'!$L203)","v":-161.58898246108208},{"$f":"IF('[1]FISCAL(M)'!$AY203=\"\",\"\",'[1]FISCAL(M)'!$AY203)","v":"n.d."},{"$f":"IF('[1]FISCAL(M)'!$BI203=\"\",\"\",'[1]FISCAL(M)'!$BI203)","v":"n.d."},{"$f":"IF('[1]FISCAL(M)'!$BS203=\"\",\"\",'[1]FISCAL(M)'!$BS203)","v":"n.d."},{"$f":"IF('[1]FISCAL(M)'!$AZ203=\"\",\"\",'[1]FISCAL(M)'!$AZ203)","v":"n.d."},{"$f":"IF('[1]FISCAL(M)'!$BJ203=\"\",\"\",'[1]FISCAL(M)'!$BJ203)","v":"n.d."},{"$f":"IF('[1]FISCAL(M)'!$BT203=\"\",\"\",'[1]FISCAL(M)'!$BT203)","v":"n.d."},{"$f":"IF('[2]MONE(M)'!$AO203=\"\",\"\",'[2]MONE(M)'!$AO203)","v":3529148.5497338674},{"$f":"IF('[3]MONE(M)'!$AO203=\"\",\"\",'[3]MONE(M)'!$AO203)","v":7595.012520387143},{"$f":"IF('[4]MONE(M)'!$AO203=\"\",\"\",'[4]MONE(M)'!$AO203)","v":57258.815142582098},{"$f":"IF('[5]MONE(M)'!$AO203=\"\",\"\",'[5]MONE(M)'!$AO203)","v":74776.785078442015},{"$f":"IF('[6]MONE(M)'!$AO203=\"\",\"\",'[6]MONE(M)'!$AO203)","v":25253.591314697071},{"$f":"IF('[7]MONE(M)'!$AO203=\"\",\"\",'[7]MONE(M)'!$AO203)","v":200327.37377900002},{"$f":"IF('[8]MONE(M)'!$AO203=\"\",\"\",'[8]MONE(M)'!$AO203)","v":12758.38250928},28.314985229658095,11.127324148385686,7.0601135588099773,19.072651696269148,35.861908009926658,15.161705146044335,17.320750903486658,{"$f":"IF('[1]FISCAL(M)'!$K203=\"\",\"\",'[1]FISCAL(M)'!$K203)","v":-77.399959081082045},{"$f":"+'[1]REAL(A)'!$AO$26","v":"n.d."},"n.d.",{"$f":"IF('[1]FISCAL(M)'!$L203=\"\",\"\",'[1]FISCAL(M)'!$L203)","v":-161.58898246108208},{"$f":"+'[1]REAL(A)'!$AP$26","v":"n.d."},{"$f":"IF(OR(CP196=\"n.d.\",CP196=\"\",CQ196=\"\",CQ196=\"n.d.\"),\"n.d.\",(CP196/CQ196)*100)","v":"n.d."},49237.897320887874,{"$f":"'[1]Gráfico REM'!BG197","v":11748.271925516201},{"$f":"'[1]Gráfico REM'!BH197","v":33697.697792034473},{"$f":"'[1]Gráfico REM'!BI197","v":3791.9276033372007},"n.d.",0.67249049401558736,11.199491069972577,47.545492253417891,71003.293787717877,{"$f":"'[1]Gráfico REM'!BK197","v":12263.0530195762},{"$f":"'[1]Gráfico REM'!BL197","v":46456.080301314476},{"$f":"'[1]Gráfico REM'!BM197","v":12284.160466827201},"n.d.",0.73328948346740308,12.816043898882313,23.585533864334685]
[2006,"marzo","2006-marzo",{"$f":"IF('[1]REAL IPC(M)'!$AL204=\"\",\"\",+'[1]REAL IPC(M)'!$AL204)","v":8.9324111848083199},{"$f":"IF('[1]REAL IPC(M)'!$BE204=\"\",\"\",+'[1]REAL IPC(M)'!$BE204)","v":10.011742700757464},{"$f":"IF('[1]REAL IPC(M)'!$AM204=\"\",\"\",+'[1]REAL IPC(M)'!$AM204)","v":8.4688421374859768},{"$f":"IF('[1]REAL IPC(M)'!$BI204=\"\",\"\",+'[1]REAL IPC(M)'!$BI204)","v":9.5712340435204268},{"$f":"IF('[1]REAL IMAE(M)'!BJ204=\"\",\"\",'[1]REAL IMAE(M)'!BJ204)","v":"n.d."},{"$f":"IF('[1]REAL IMAE(M)'!BK204=\"\",\"\",'[1]REAL IMAE(M)'!BK204)","v":"n.d."},{"$f":"IF('[1]REAL IMAE(M)'!BN204=\"\",\"\",'[1]REAL IMAE(M)'!BN204)","v":"n.d."},{"$f":"IF('[1]REAL IMAE(M)'!BO204=\"\",\"\",'[1]REAL IMAE(M)'!BO204)","v":"n.d."},{"$f":"IF('[1]EXT RIN(M)'!$K204=\"\",\"\",'[1]EXT RIN(M)'!$K204)","v":13321.735690739448},"",{"$f":"IF('[1]EXT RIN(M)'!$L204=\"\",\"\",'[1]EXT RIN(M)'!$L204)","v":14458.959426737649},"",{"$f":"IF('[1]MONE(M)CARD'!EG204=\"\",\"\",'[1]MONE(M)CARD'!EG204)","v":12569.381398919395},{"$f":"IF('[1]MONE(M)CARD'!EK204=\"\",\"\",'[1]MONE(M)CARD'!EK204)","v":24910.615019156132},{"$f":"IF('[1]MONE(M)CARD'!EP204=\"\",\"\",'[1]MONE(M)CARD'!EP204)","v":13405.853675896462},{"$f":"IF('[1]MONE(M)CARD'!ES204=\"\",\"\",'[1]MONE(M)CARD'!ES204)","v":13.136573938658236},{"$f":"IF('[1]MONE(M)CARD'!EV204=\"\",\"\",'[1]MONE(M)CARD'!EV204)","v":6.1403955046355208},{"$f":"IF('[1]MONE(M)CARD'!EZ204=\"\",\"\",'[1]MONE(M)CARD'!EZ204)","v":6.3313946394881748},{"$f":"IF('[1]MONE(M)CAPARD'!FC204=\"\",\"\",'[1]MONE(M)CAPARD'!FC204)","v":14405.639755929398},{"$f":"IF('[1]MONE(M)CAPARD'!FG204=\"\",\"\",'[1]MONE(M)CAPARD'!FG204)","v":35394.370601676128},{"$f":"IF('[1]MONE(M)CAPARD'!FL204=\"\",\"\",'[1]MONE(M)CAPARD'!FL204)","v":13405.853675896455},{"$f":"IF('[1]MONE(M)CAPARD'!FO204=\"\",\"\",'[1]MONE(M)CAPARD'!FO204)","v":14.087752716413826},{"$f":"IF('[1]MONE(M)CAPARD'!FR204=\"\",\"\",'[1]MONE(M)CAPARD'!FR204)","v":7.1144520576880144},{"$f":"IF('[1]MONE(M)CAPARD'!FV204=\"\",\"\",'[1]MONE(M)CAPARD'!FV204)","v":7.0623095730304897},{"$f":"IF('[1]MONE(M)CARD'!FV204=\"\",\"\",'[1]MONE(M)CARD'!FV204)","v":1224.2638077712381},{"$f":"IF('[1]MONE(M)CARD'!GD204=\"\",\"\",'[1]MONE(M)CARD'!GD204)","v":34.551969362918513},{"$f":"IF('[1]MONE(M)CARD'!GE204=\"\",\"\",'[1]MONE(M)CARD'!GE204)","v":4321.4852183164594},27.070923928691016,{"$f":"IF('[9]II.2.Balance OSD-Activos'!J62=\"\",\"\",'[9]II.2.Balance OSD-Activos'!J62)","v":172.3347445476781},{"$f":"IF('[9]II.2.Balance OSD-Activos'!N62=\"\",\"\",'[9]II.2.Balance OSD-Activos'!N62)","v":248.97260385751269},{"$f":"IF('[9]II.2.Balance OSD-Activos'!R62=\"\",\"\",'[9]II.2.Balance OSD-Activos'!R62)","v":15142.984463300938},{"$f":"IF('[9]II.2.Balance OSD-Activos'!S62=\"\",\"\",'[9]II.2.Balance OSD-Activos'!S62)","v":17397.2560955138},15315.319207848615,32961.54790721993,-8.7202104782941099,29.318690777658851,106.64054682992416,29.934917570745689,-7.2326398361288735E-2,12.21557456901925,0.3483522739796463,{"$f":"IF('[1]MONE(M)CAPARD'!GS204=\"\",\"\",'[1]MONE(M)CAPARD'!GS204)","v":6647.6631988338831},{"$f":"IF('[1]MONE(M)CARD'!HA204=\"\",\"\",'[1]MONE(M)CAPARD'!HA204)","v":4604.4145390264603},{"$f":"IF('[1]MONE(M)CAPARD'!HB204=\"\",\"\",'[1]MONE(M)CAPARD'!HB204)","v":2043.2486598074229},"n.d.",{"$f":"IF('[10]II.2.Balance OSD-Activos'!J62=\"\",\"\",'[10]II.2.Balance OSD-Activos'!J62)","v":435.2347602676781},{"$f":"IF('[10]II.2.Balance OSD-Activos'!N62=\"\",\"\",'[10]II.2.Balance OSD-Activos'!N62)","v":661.96317126751262},{"$f":"IF('[10]II.2.Balance OSD-Activos'!R62=\"\",\"\",'[10]II.2.Balance OSD-Activos'!R62)","v":21308.804662910938},{"$f":"IF('[10]II.2.Balance OSD-Activos'!S62=\"\",\"\",'[10]II.2.Balance OSD-Activos'!S62)","v":23539.0695225038},21744.039423178616,45945.07211694993,-2.2827410266140991,24.398236352927839,37.456495235604812,25.095886956168577,3.8673308664614492,13.099487768038752,0.2888889203062952,{"$f":"IF('[1]MONE(M)CAPARD'!AS204=\"\",\"\",'[1]MONE(M)CAPARD'!AS204)","v":8.51},{"$f":"IF('[1]MONE(M)CAPARD'!AT204=\"\",\"\",'[1]MONE(M)CAPARD'!AT204)","v":"n.a."},{"$f":"IF('[1]MONE(M)CAPARD'!AU204=\"\",\"\",'[1]MONE(M)CAPARD'!AU204)","v":4.25},{"$f":"IF('[1]MONE(M)CAPARD'!AV204=\"\",\"\",'[1]MONE(M)CAPARD'!AV204)","v":6.75},{"$f":"IF('[1]MONE(M)CAPARD'!AW204=\"\",\"\",'[1]MONE(M)CAPARD'!AW204)","v":"n.a."},{"$f":"IF('[1]MONE(M)CAPARD'!AX204=\"\",\"\",'[1]MONE(M)CAPARD'!AX204)","v":10},{"$f":"IF('[1]MONE(M)CAPARD'!AY204=\"\",\"\",'[1]MONE(M)CAPARD'!AY204)","v":"n.a."},{"$f":"IF('[1]FISCAL(M)'!$K204=\"\",\"\",'[1]FISCAL(M)'!$K204)","v":-211.85836204976806},{"$f":"IF('[1]FISCAL(M)'!$L204=\"\",\"\",'[1]FISCAL(M)'!$L204)","v":-139.98791530676795},{"$f":"IF('[1]FISCAL(M)'!$AY204=\"\",\"\",'[1]FISCAL(M)'!$AY204)","v":"n.d."},{"$f":"IF('[1]FISCAL(M)'!$BI204=\"\",\"\",'[1]FISCAL(M)'!$BI204)","v":"n.d."},{"$f":"IF('[1]FISCAL(M)'!$BS204=\"\",\"\",'[1]FISCAL(M)'!$BS204)","v":29018.559999999998},{"$f":"IF('[1]FISCAL(M)'!$AZ204=\"\",\"\",'[1]FISCAL(M)'!$AZ204)","v":"n.d."},{"$f":"IF('[1]FISCAL(M)'!$BJ204=\"\",\"\",'[1]FISCAL(M)'!$BJ204)","v":"n.d."},{"$f":"IF('[1]FISCAL(M)'!$BT204=\"\",\"\",'[1]FISCAL(M)'!$BT204)","v":36930.169925500006},{"$f":"IF('[2]MONE(M)'!$AO204=\"\",\"\",'[2]MONE(M)'!$AO204)","v":3619163.4780797553},{"$f":"IF('[3]MONE(M)'!$AO204=\"\",\"\",'[3]MONE(M)'!$AO204)","v":7641.4495203871438},{"$f":"IF('[4]MONE(M)'!$AO204=\"\",\"\",'[4]MONE(M)'!$AO204)","v":58254.997375256207},{"$f":"IF('[5]MONE(M)'!$AO204=\"\",\"\",'[5]MONE(M)'!$AO204)","v":76416.711020273593},{"$f":"IF('[6]MONE(M)'!$AO204=\"\",\"\",'[6]MONE(M)'!$AO204)","v":25881.245450890543},{"$f":"IF('[7]MONE(M)'!$AO204=\"\",\"\",'[7]MONE(M)'!$AO204)","v":201544.99035599999},{"$f":"IF('[8]MONE(M)'!$AO204=\"\",\"\",'[8]MONE(M)'!$AO204)","v":12896.164344569999},28.531391372747095,10.922799190821063,8.2393467364412878,21.229670591680438,34.888310903525891,18.195251345727016,17.031070937013769,{"$f":"IF('[1]FISCAL(M)'!$K204=\"\",\"\",'[1]FISCAL(M)'!$K204)","v":-211.85836204976806},{"$f":"+'[1]REAL(A)'!$AO$26","v":"n.d."},"n.d.",{"$f":"IF('[1]FISCAL(M)'!$L204=\"\",\"\",'[1]FISCAL(M)'!$L204)","v":-139.98791530676795},{"$f":"+'[1]REAL(A)'!$AP$26","v":"n.d."},"n.d.",50234.823334956607,{"$f":"'[1]Gráfico REM'!BG198","v":12009.435994722684},{"$f":"'[1]Gráfico REM'!BH198","v":34245.676230331766},{"$f":"'[1]Gráfico REM'!BI198","v":3979.7111099021586},"n.d.",-0.18747568577544005,11.547525776454904,52.88948067581407,72365.555972197617,{"$f":"'[1]Gráfico REM'!BK198","v":12519.827177357683},{"$f":"'[1]Gráfico REM'!BL198","v":47141.840574901769},{"$f":"'[1]Gráfico REM'!BM198","v":12703.888219938157},"n.d.",-0.31012363228328788,12.995887054142298,29.649598347650731]
[2006,"abril","2006-abril",{"$f":"IF('[1]REAL IPC(M)'!$AL205=\"\",\"\",+'[1]REAL IPC(M)'!$AL205)","v":8.8966550316068815},{"$f":"IF('[1]REAL IPC(M)'!$BE205=\"\",\"\",+'[1]REAL IPC(M)'!$BE205)","v":9.8753421152217857},{"$f":"IF('[1]REAL IPC(M)'!$AM205=\"\",\"\",+'[1]REAL IPC(M)'!$AM205)","v":8.4758100639123803},{"$f":"IF('[1]REAL IPC(M)'!$BI205=\"\",\"\",+'[1]REAL IPC(M)'!$BI205)","v":9.4335302038757618},{"$f":"IF('[1]REAL IMAE(M)'!BJ205=\"\",\"\",'[1]REAL IMAE(M)'!BJ205)","v":"n.d."},{"$f":"IF('[1]REAL IMAE(M)'!BK205=\"\",\"\",'[1]REAL IMAE(M)'!BK205)","v":"n.d."},{"$f":"IF('[1]REAL IMAE(M)'!BN205=\"\",\"\",'[1]REAL IMAE(M)'!BN205)","v":"n.d."},{"$f":"IF('[1]REAL IMAE(M)'!BO205=\"\",\"\",'[1]REAL IMAE(M)'!BO205)","v":"n.d."},{"$f":"IF('[1]EXT RIN(M)'!$K205=\"\",\"\",'[1]EXT RIN(M)'!$K205)","v":13894.785117032368},"",{"$f":"IF('[1]EXT RIN(M)'!$L205=\"\",\"\",'[1]EXT RIN(M)'!$L205)","v":15001.712976087449},"",{"$f":"IF('[1]MONE(M)CARD'!EG205=\"\",\"\",'[1]MONE(M)CARD'!EG205)","v":12667.257692253243},{"$f":"IF('[1]MONE(M)CARD'!EK205=\"\",\"\",'[1]MONE(M)CARD'!EK205)","v":25182.943110418168},{"$f":"IF('[1]MONE(M)CARD'!EP205=\"\",\"\",'[1]MONE(M)CARD'!EP205)","v":13581.577125569485},{"$f":"IF('[1]MONE(M)CARD'!ES205=\"\",\"\",'[1]MONE(M)CARD'!ES205)","v":14.730869451484452},{"$f":"IF('[1]MONE(M)CARD'!EV205=\"\",\"\",'[1]MONE(M)CARD'!EV205)","v":7.9183588329824861},{"$f":"IF('[1]MONE(M)CARD'!EZ205=\"\",\"\",'[1]MONE(M)CARD'!EZ205)","v":7.6497003839310684},{"$f":"IF('[1]MONE(M)CAPARD'!FC205=\"\",\"\",'[1]MONE(M)CAPARD'!FC205)","v":14495.55436435324},{"$f":"IF('[1]MONE(M)CAPARD'!FG205=\"\",\"\",'[1]MONE(M)CAPARD'!FG205)","v":35841.484165258167},{"$f":"IF('[1]MONE(M)CAPARD'!FL205=\"\",\"\",'[1]MONE(M)CAPARD'!FL205)","v":13581.577125569485},{"$f":"IF('[1]MONE(M)CAPARD'!FO205=\"\",\"\",'[1]MONE(M)CAPARD'!FO205)","v":15.300480202042976},{"$f":"IF('[1]MONE(M)CAPARD'!FR205=\"\",\"\",'[1]MONE(M)CAPARD'!FR205)","v":8.8756755567370504},{"$f":"IF('[1]MONE(M)CAPARD'!FV205=\"\",\"\",'[1]MONE(M)CAPARD'!FV205)","v":8.451540951794545},{"$f":"IF('[1]MONE(M)CARD'!FV205=\"\",\"\",'[1]MONE(M)CARD'!FV205)","v":1247.5804203226439},{"$f":"IF('[1]MONE(M)CARD'!GD205=\"\",\"\",'[1]MONE(M)CARD'!GD205)","v":87.916986981946877},{"$f":"IF('[1]MONE(M)CARD'!GE205=\"\",\"\",'[1]MONE(M)CARD'!GE205)","v":4505.6555876035191},25.648616853095497,{"$f":"IF('[9]II.2.Balance OSD-Activos'!J63=\"\",\"\",'[9]II.2.Balance OSD-Activos'!J63)","v":168.97353862364668},{"$f":"IF('[9]II.2.Balance OSD-Activos'!N63=\"\",\"\",'[9]II.2.Balance OSD-Activos'!N63)","v":260.71105374377009},{"$f":"IF('[9]II.2.Balance OSD-Activos'!R63=\"\",\"\",'[9]II.2.Balance OSD-Activos'!R63)","v":15399.242612704913},{"$f":"IF('[9]II.2.Balance OSD-Activos'!S63=\"\",\"\",'[9]II.2.Balance OSD-Activos'!S63)","v":17659.483670845722},15568.216151328559,33488.410875918053,-13.757309505833494,31.944360983661536,113.84499200553458,32.716068309810886,0.71680199228576491,13.694264712119942,1.4786901431006925,{"$f":"IF('[1]MONE(M)CAPARD'!GS205=\"\",\"\",'[1]MONE(M)CAPARD'!GS205)","v":6798.4315605109377},{"$f":"IF('[1]MONE(M)CARD'!HA205=\"\",\"\",'[1]MONE(M)CAPARD'!HA205)","v":4788.576912113519},{"$f":"IF('[1]MONE(M)CAPARD'!HB205=\"\",\"\",'[1]MONE(M)CAPARD'!HB205)","v":2009.8546483974187},"n.d.",{"$f":"IF('[10]II.2.Balance OSD-Activos'!J63=\"\",\"\",'[10]II.2.Balance OSD-Activos'!J63)","v":436.98398543364669},{"$f":"IF('[10]II.2.Balance OSD-Activos'!N63=\"\",\"\",'[10]II.2.Balance OSD-Activos'!N63)","v":675.88840266377008},{"$f":"IF('[10]II.2.Balance OSD-Activos'!R63=\"\",\"\",'[10]II.2.Balance OSD-Activos'!R63)","v":21654.550475704913},{"$f":"IF('[10]II.2.Balance OSD-Activos'!S63=\"\",\"\",'[10]II.2.Balance OSD-Activos'!S63)","v":23862.945718085724},22091.534461138559,46630.368581888055,2.7041840915036364,26.548157106335179,52.980485693701553,27.14382212498645,4.3028432517683957,14.353601281124595,1.2541135130858425,{"$f":"IF('[1]MONE(M)CAPARD'!AS205=\"\",\"\",'[1]MONE(M)CAPARD'!AS205)","v":8.51},{"$f":"IF('[1]MONE(M)CAPARD'!AT205=\"\",\"\",'[1]MONE(M)CAPARD'!AT205)","v":"n.a."},{"$f":"IF('[1]MONE(M)CAPARD'!AU205=\"\",\"\",'[1]MONE(M)CAPARD'!AU205)","v":4.5},{"$f":"IF('[1]MONE(M)CAPARD'!AV205=\"\",\"\",'[1]MONE(M)CAPARD'!AV205)","v":6.5},{"$f":"IF('[1]MONE(M)CAPARD'!AW205=\"\",\"\",'[1]MONE(M)CAPARD'!AW205)","v":"n.a."},{"$f":"IF('[1]MONE(M)CAPARD'!AX205=\"\",\"\",'[1]MONE(M)CAPARD'!AX205)","v":10},{"$f":"IF('[1]MONE(M)CAPARD'!AY205=\"\",\"\",'[1]MONE(M)CAPARD'!AY205)","v":"n.a."},{"$f":"IF('[1]FISCAL(M)'!$K205=\"\",\"\",'[1]FISCAL(M)'!$K205)","v":-81.985477093326693},{"$f":"IF('[1]FISCAL(M)'!$L205=\"\",\"\",'[1]FISCAL(M)'!$L205)","v":-17.071119380326394},{"$f":"IF('[1]FISCAL(M)'!$AY205=\"\",\"\",'[1]FISCAL(M)'!$AY205)","v":"n.d."},{"$f":"IF('[1]FISCAL(M)'!$BI205=\"\",\"\",'[1]FISCAL(M)'!$BI205)","v":"n.d."},{"$f":"IF('[1]FISCAL(M)'!$BS205=\"\",\"\",'[1]FISCAL(M)'!$BS205)","v":"n.d."},{"$f":"IF('[1]FISCAL(M)'!$AZ205=\"\",\"\",'[1]FISCAL(M)'!$AZ205)","v":"n.d."},{"$f":"IF('[1]FISCAL(M)'!$BJ205=\"\",\"\",'[1]FISCAL(M)'!$BJ205)","v":"n.d."},{"$f":"IF('[1]FISCAL(M)'!$BT205=\"\",\"\",'[1]FISCAL(M)'!$BT205)","v":"n.d."},{"$f":"IF('[2]MONE(M)'!$AO205=\"\",\"\",'[2]MONE(M)'!$AO205)","v":3675064.6117537757},{"$f":"IF('[3]MONE(M)'!$AO205=\"\",\"\",'[3]MONE(M)'!$AO205)","v":7723.7642431471431},{"$f":"IF('[4]MONE(M)'!$AO205=\"\",\"\",'[4]MONE(M)'!$AO205)","v":59120.053761321054},{"$f":"IF('[5]MONE(M)'!$AO205=\"\",\"\",'[5]MONE(M)'!$AO205)","v":78453.171528608451},{"$f":"IF('[6]MONE(M)'!$AO205=\"\",\"\",'[6]MONE(M)'!$AO205)","v":26472.48384254142},{"$f":"IF('[7]MONE(M)'!$AO205=\"\",\"\",'[7]MONE(M)'!$AO205)","v":204492.66281200002},{"$f":"IF('[8]MONE(M)'!$AO205=\"\",\"\",'[8]MONE(M)'!$AO205)","v":13040.220975009999},28.427447143515483,11.40928258867806,7.9690601288370688,23.180124138490179,35.565596882865776,18.35592399818189,16.873481818690415,{"$f":"IF('[1]FISCAL(M)'!$K205=\"\",\"\",'[1]FISCAL(M)'!$K205)","v":-81.985477093326693},{"$f":"+'[1]REAL(A)'!$AO$26","v":"n.d."},"n.d.",{"$f":"IF('[1]FISCAL(M)'!$L205=\"\",\"\",'[1]FISCAL(M)'!$L205)","v":-17.071119380326394},{"$f":"+'[1]REAL(A)'!$AP$26","v":"n.d."},"n.d.",50663.147501098611,{"$f":"'[1]Gráfico REM'!BG199","v":11792.387881785244},{"$f":"'[1]Gráfico REM'!BH199","v":34804.821360333619},{"$f":"'[1]Gráfico REM'!BI199","v":4065.9382589797465},"n.d.",-1.2450415713283314,12.816361004775633,49.229694922512039,72839.000212488609,{"$f":"'[1]Gráfico REM'!BK199","v":12286.396591115245},{"$f":"'[1]Gráfico REM'!BL199","v":47845.04233534362},{"$f":"'[1]Gráfico REM'!BM199","v":12707.561286029746},"n.d.",-1.6314241536858898,13.893943670611964,28.127966620961399]
[2006,"mayo ","2006-mayo ",{"$f":"IF('[1]REAL IPC(M)'!$AL206=\"\",\"\",+'[1]REAL IPC(M)'!$AL206)","v":9.299059966198687},{"$f":"IF('[1]REAL IPC(M)'!$BE206=\"\",\"\",+'[1]REAL IPC(M)'!$BE206)","v":9.747241040028797},{"$f":"IF('[1]REAL IPC(M)'!$AM206=\"\",\"\",+'[1]REAL IPC(M)'!$AM206)","v":8.8697629226306862},{"$f":"IF('[1]REAL IPC(M)'!$BI206=\"\",\"\",+'[1]REAL IPC(M)'!$BI206)","v":9.3039152469900586},{"$f":"IF('[1]REAL IMAE(M)'!BJ206=\"\",\"\",'[1]REAL IMAE(M)'!BJ206)","v":"n.d."},{"$f":"IF('[1]REAL IMAE(M)'!BK206=\"\",\"\",'[1]REAL IMAE(M)'!BK206)","v":"n.d."},{"$f":"IF('[1]REAL IMAE(M)'!BN206=\"\",\"\",'[1]REAL IMAE(M)'!BN206)","v":"n.d."},{"$f":"IF('[1]REAL IMAE(M)'!BO206=\"\",\"\",'[1]REAL IMAE(M)'!BO206)","v":"n.d."},{"$f":"IF('[1]EXT RIN(M)'!$K206=\"\",\"\",'[1]EXT RIN(M)'!$K206)","v":13735.546565379038},"",{"$f":"IF('[1]EXT RIN(M)'!$L206=\"\",\"\",'[1]EXT RIN(M)'!$L206)","v":14904.237773865498},"",{"$f":"IF('[1]MONE(M)CARD'!EG206=\"\",\"\",'[1]MONE(M)CARD'!EG206)","v":12480.405476862528},{"$f":"IF('[1]MONE(M)CARD'!EK206=\"\",\"\",'[1]MONE(M)CARD'!EK206)","v":25303.61846740621},{"$f":"IF('[1]MONE(M)CARD'!EP206=\"\",\"\",'[1]MONE(M)CARD'!EP206)","v":13743.685049422893},{"$f":"IF('[1]MONE(M)CARD'!ES206=\"\",\"\",'[1]MONE(M)CARD'!ES206)","v":14.273461288210655},{"$f":"IF('[1]MONE(M)CARD'!EV206=\"\",\"\",'[1]MONE(M)CARD'!EV206)","v":7.5405615168342877},{"$f":"IF('[1]MONE(M)CARD'!EZ206=\"\",\"\",'[1]MONE(M)CARD'!EZ206)","v":7.5398732539941449},{"$f":"IF('[1]MONE(M)CAPARD'!FC206=\"\",\"\",'[1]MONE(M)CAPARD'!FC206)","v":14353.051933752531},{"$f":"IF('[1]MONE(M)CAPARD'!FG206=\"\",\"\",'[1]MONE(M)CAPARD'!FG206)","v":36189.387101806205},{"$f":"IF('[1]MONE(M)CAPARD'!FL206=\"\",\"\",'[1]MONE(M)CAPARD'!FL206)","v":13743.685049422893},{"$f":"IF('[1]MONE(M)CAPARD'!FO206=\"\",\"\",'[1]MONE(M)CAPARD'!FO206)","v":15.265543802217628},{"$f":"IF('[1]MONE(M)CAPARD'!FR206=\"\",\"\",'[1]MONE(M)CAPARD'!FR206)","v":8.9971840476905651},{"$f":"IF('[1]MONE(M)CAPARD'!FV206=\"\",\"\",'[1]MONE(M)CAPARD'!FV206)","v":8.6819036292054452},{"$f":"IF('[1]MONE(M)CARD'!FV206=\"\",\"\",'[1]MONE(M)CARD'!FV206)","v":1267.9685581466122},{"$f":"IF('[1]MONE(M)CARD'!GD206=\"\",\"\",'[1]MONE(M)CARD'!GD206)","v":33.274669242895698},{"$f":"IF('[1]MONE(M)CARD'!GE206=\"\",\"\",'[1]MONE(M)CARD'!GE206)","v":4173.4081162460971},9.9212696721500571,{"$f":"IF('[9]II.2.Balance OSD-Activos'!J64=\"\",\"\",'[9]II.2.Balance OSD-Activos'!J64)","v":178.56072587738288},{"$f":"IF('[9]II.2.Balance OSD-Activos'!N64=\"\",\"\",'[9]II.2.Balance OSD-Activos'!N64)","v":278.74108180855916},{"$f":"IF('[9]II.2.Balance OSD-Activos'!R64=\"\",\"\",'[9]II.2.Balance OSD-Activos'!R64)","v":15461.761935475446},{"$f":"IF('[9]II.2.Balance OSD-Activos'!S64=\"\",\"\",'[9]II.2.Balance OSD-Activos'!S64)","v":17890.666492651857},{"$f":"IFERROR(+AF199+AH199,\"n.d.\")","v":15640.32266135283},33809.730235813244,-12.395338516134757,30.930600618280323,127.0202910490915,31.682702126747465,1.372377847014894,13.773305556097149,7.9040843977207231E-2,{"$f":"IF('[1]MONE(M)CAPARD'!GS206=\"\",\"\",'[1]MONE(M)CAPARD'!GS206)","v":6853.8939683974249},{"$f":"IF('[1]MONE(M)CARD'!HA206=\"\",\"\",'[1]MONE(M)CAPARD'!HA206)","v":4456.1093923460976},{"$f":"IF('[1]MONE(M)CAPARD'!HB206=\"\",\"\",'[1]MONE(M)CAPARD'!HB206)","v":2397.7845760513273},"n.d.",{"$f":"IF('[10]II.2.Balance OSD-Activos'!J64=\"\",\"\",'[10]II.2.Balance OSD-Activos'!J64)","v":448.3381648073829},{"$f":"IF('[10]II.2.Balance OSD-Activos'!N64=\"\",\"\",'[10]II.2.Balance OSD-Activos'!N64)","v":703.18084199855923},{"$f":"IF('[10]II.2.Balance OSD-Activos'!R64=\"\",\"\",'[10]II.2.Balance OSD-Activos'!R64)","v":21878.293268085446},{"$f":"IF('[10]II.2.Balance OSD-Activos'!S64=\"\",\"\",'[10]II.2.Balance OSD-Activos'!S64)","v":24154.381374641853},22326.631432892831,47184.193649533241,2.9280081464320595,25.999950179589781,48.182642331001958,26.581400682842649,4.7875429726188745,14.400051081791986,4.6449800667391017E-2,{"$f":"IF('[1]MONE(M)CAPARD'!AS206=\"\",\"\",'[1]MONE(M)CAPARD'!AS206)","v":8.51},{"$f":"IF('[1]MONE(M)CAPARD'!AT206=\"\",\"\",'[1]MONE(M)CAPARD'!AT206)","v":"n.a."},{"$f":"IF('[1]MONE(M)CAPARD'!AU206=\"\",\"\",'[1]MONE(M)CAPARD'!AU206)","v":4.5},{"$f":"IF('[1]MONE(M)CAPARD'!AV206=\"\",\"\",'[1]MONE(M)CAPARD'!AV206)","v":6.5},{"$f":"IF('[1]MONE(M)CAPARD'!AW206=\"\",\"\",'[1]MONE(M)CAPARD'!AW206)","v":"n.a."},{"$f":"IF('[1]MONE(M)CAPARD'!AX206=\"\",\"\",'[1]MONE(M)CAPARD'!AX206)","v":10},{"$f":"IF('[1]MONE(M)CAPARD'!AY206=\"\",\"\",'[1]MONE(M)CAPARD'!AY206)","v":"n.a."},{"$f":"IF('[1]FISCAL(M)'!$K206=\"\",\"\",'[1]FISCAL(M)'!$K206)","v":-4.6790034374539005},{"$f":"IF('[1]FISCAL(M)'!$L206=\"\",\"\",'[1]FISCAL(M)'!$L206)","v":23.96348770554647},{"$f":"IF('[1]FISCAL(M)'!$AY206=\"\",\"\",'[1]FISCAL(M)'!$AY206)","v":"n.d."},{"$f":"IF('[1]FISCAL(M)'!$BI206=\"\",\"\",'[1]FISCAL(M)'!$BI206)","v":"n.d."},{"$f":"IF('[1]FISCAL(M)'!$BS206=\"\",\"\",'[1]FISCAL(M)'!$BS206)","v":"n.d."},{"$f":"IF('[1]FISCAL(M)'!$AZ206=\"\",\"\",'[1]FISCAL(M)'!$AZ206)","v":"n.d."},{"$f":"IF('[1]FISCAL(M)'!$BJ206=\"\",\"\",'[1]FISCAL(M)'!$BJ206)","v":"n.d."},{"$f":"IF('[1]FISCAL(M)'!$BT206=\"\",\"\",'[1]FISCAL(M)'!$BT206)","v":"n.d."},{"$f":"IF('[2]MONE(M)'!$AO206=\"\",\"\",'[2]MONE(M)'!$AO206)","v":3776162.0792518761},{"$f":"IF('[3]MONE(M)'!$AO206=\"\",\"\",'[3]MONE(M)'!$AO206)","v":7732.6304125871429},{"$f":"IF('[4]MONE(M)'!$AO206=\"\",\"\",'[4]MONE(M)'!$AO206)","v":59529.508613859252},{"$f":"IF('[5]MONE(M)'!$AO206=\"\",\"\",'[5]MONE(M)'!$AO206)","v":80234.818881439249},{"$f":"IF('[6]MONE(M)'!$AO206=\"\",\"\",'[6]MONE(M)'!$AO206)","v":26974.093116411885},{"$f":"IF('[7]MONE(M)'!$AO206=\"\",\"\",'[7]MONE(M)'!$AO206)","v":207989.4643704},{"$f":"IF('[8]MONE(M)'!$AO206=\"\",\"\",'[8]MONE(M)'!$AO206)","v":13249.534265180002},27.945206113279951,11.980956643146467,8.2071235896640218,24.987245255851832,33.524058722373653,18.751213604780361,16.843773745597513,{"$f":"IF('[1]FISCAL(M)'!$K206=\"\",\"\",'[1]FISCAL(M)'!$K206)","v":-4.6790034374539005},{"$f":"+'[1]REAL(A)'!$AO$26","v":"n.d."},"n.d.",{"$f":"IF('[1]FISCAL(M)'!$L206=\"\",\"\",'[1]FISCAL(M)'!$L206)","v":23.96348770554647},{"$f":"+'[1]REAL(A)'!$AP$26","v":"n.d."},"n.d.",51269.019499329472,{"$f":"'[1]Gráfico REM'!BG200","v":11817.805841406429},{"$f":"'[1]Gráfico REM'!BH200","v":35126.384910513734},{"$f":"'[1]Gráfico REM'!BI200","v":4324.8287474093067},"n.d.",-0.33136125735540034,13.09525274297858,54.670679615391208,74119.246590219467,{"$f":"'[1]Gráfico REM'!BK200","v":12302.462367956428},{"$f":"'[1]Gráfico REM'!BL200","v":48375.919175693736},{"$f":"'[1]Gráfico REM'!BM200","v":13440.865046569306},"n.d.",-0.50895579412226777,14.097795746290508,35.866079488653966]
[2006,"junio ","2006-junio ",{"$f":"IF('[1]REAL IPC(M)'!$AL207=\"\",\"\",+'[1]REAL IPC(M)'!$AL207)","v":9.6204113447631698},{"$f":"IF('[1]REAL IPC(M)'!$BE207=\"\",\"\",+'[1]REAL IPC(M)'!$BE207)","v":9.6274416739403179},{"$f":"IF('[1]REAL IPC(M)'!$AM207=\"\",\"\",+'[1]REAL IPC(M)'!$AM207)","v":9.1807904927701642},{"$f":"IF('[1]REAL IPC(M)'!$BI207=\"\",\"\",+'[1]REAL IPC(M)'!$BI207)","v":9.1825308539972728},{"$f":"IF('[1]REAL IMAE(M)'!BJ207=\"\",\"\",'[1]REAL IMAE(M)'!BJ207)","v":"n.d."},{"$f":"IF('[1]REAL IMAE(M)'!BK207=\"\",\"\",'[1]REAL IMAE(M)'!BK207)","v":"n.d."},{"$f":"IF('[1]REAL IMAE(M)'!BN207=\"\",\"\",'[1]REAL IMAE(M)'!BN207)","v":"n.d."},{"$f":"IF('[1]REAL IMAE(M)'!BO207=\"\",\"\",'[1]REAL IMAE(M)'!BO207)","v":"n.d."},{"$f":"IF('[1]EXT RIN(M)'!$K207=\"\",\"\",'[1]EXT RIN(M)'!$K207)","v":13606.326108222192},"",{"$f":"IF('[1]EXT RIN(M)'!$L207=\"\",\"\",'[1]EXT RIN(M)'!$L207)","v":14812.873694357582},"",{"$f":"IF('[1]MONE(M)CARD'!EG207=\"\",\"\",'[1]MONE(M)CARD'!EG207)","v":12922.618091404727},{"$f":"IF('[1]MONE(M)CARD'!EK207=\"\",\"\",'[1]MONE(M)CARD'!EK207)","v":25349.397064542791},{"$f":"IF('[1]MONE(M)CARD'!EP207=\"\",\"\",'[1]MONE(M)CARD'!EP207)","v":13774.966884668509},{"$f":"IF('[1]MONE(M)CARD'!ES207=\"\",\"\",'[1]MONE(M)CARD'!ES207)","v":17.478930830258179},{"$f":"IF('[1]MONE(M)CARD'!EV207=\"\",\"\",'[1]MONE(M)CARD'!EV207)","v":7.8220741285442763},{"$f":"IF('[1]MONE(M)CARD'!EZ207=\"\",\"\",'[1]MONE(M)CARD'!EZ207)","v":7.6675729766878753},{"$f":"IF('[1]MONE(M)CAPARD'!FC207=\"\",\"\",'[1]MONE(M)CAPARD'!FC207)","v":14754.892629634727},{"$f":"IF('[1]MONE(M)CAPARD'!FG207=\"\",\"\",'[1]MONE(M)CAPARD'!FG207)","v":36432.232540692792},{"$f":"IF('[1]MONE(M)CAPARD'!FL207=\"\",\"\",'[1]MONE(M)CAPARD'!FL207)","v":13774.966884668509},{"$f":"IF('[1]MONE(M)CAPARD'!FO207=\"\",\"\",'[1]MONE(M)CAPARD'!FO207)","v":17.894391528351882},{"$f":"IF('[1]MONE(M)CAPARD'!FR207=\"\",\"\",'[1]MONE(M)CAPARD'!FR207)","v":9.4771182895694963},{"$f":"IF('[1]MONE(M)CAPARD'!FV207=\"\",\"\",'[1]MONE(M)CAPARD'!FV207)","v":8.9951197546173312},{"$f":"IF('[1]MONE(M)CARD'!FV207=\"\",\"\",'[1]MONE(M)CARD'!FV207)","v":1315.3983500996633},{"$f":"IF('[1]MONE(M)CARD'!GD207=\"\",\"\",'[1]MONE(M)CARD'!GD207)","v":93.824513735182435},{"$f":"IF('[1]MONE(M)CARD'!GE207=\"\",\"\",'[1]MONE(M)CARD'!GE207)","v":4175.5729380558832},13.642165149906127,{"$f":"IF('[9]II.2.Balance OSD-Activos'!J65=\"\",\"\",'[9]II.2.Balance OSD-Activos'!J65)","v":182.36339032383725},{"$f":"IF('[9]II.2.Balance OSD-Activos'!N65=\"\",\"\",'[9]II.2.Balance OSD-Activos'!N65)","v":298.42312783174702},{"$f":"IF('[9]II.2.Balance OSD-Activos'!R65=\"\",\"\",'[9]II.2.Balance OSD-Activos'!R65)","v":15335.969543481786},{"$f":"IF('[9]II.2.Balance OSD-Activos'!S65=\"\",\"\",'[9]II.2.Balance OSD-Activos'!S65)","v":18519.091430647488},15518.332933805623,34335.847492284855,-11.852320118818295,32.999922831575113,138.52572242316893,33.809553258398559,1.5986434548665107,14.373779938642084,0.60047438254493457,{"$f":"IF('[1]MONE(M)CAPARD'!GS207=\"\",\"\",'[1]MONE(M)CAPARD'!GS207)","v":6893.7916400976574},{"$f":"IF('[1]MONE(M)CARD'!HA207=\"\",\"\",'[1]MONE(M)CAPARD'!HA207)","v":4461.5189327858834},{"$f":"IF('[1]MONE(M)CAPARD'!HB207=\"\",\"\",'[1]MONE(M)CAPARD'!HB207)","v":2432.272707311774},"n.d.",{"$f":"IF('[10]II.2.Balance OSD-Activos'!J65=\"\",\"\",'[10]II.2.Balance OSD-Activos'!J65)","v":441.98915490383723},{"$f":"IF('[10]II.2.Balance OSD-Activos'!N65=\"\",\"\",'[10]II.2.Balance OSD-Activos'!N65)","v":756.98073467174709},{"$f":"IF('[10]II.2.Balance OSD-Activos'!R65=\"\",\"\",'[10]II.2.Balance OSD-Activos'!R65)","v":21916.913719611784},{"$f":"IF('[10]II.2.Balance OSD-Activos'!S65=\"\",\"\",'[10]II.2.Balance OSD-Activos'!S65)","v":24842.80856799749},22358.902874515621,47958.692177184857,6.6879244295595219,27.145118317420589,52.627358114665903,27.638684424894965,4.8166440569441527,14.781730398194458,0.38167931640247232,{"$f":"IF('[1]MONE(M)CAPARD'!AS207=\"\",\"\",'[1]MONE(M)CAPARD'!AS207)","v":8.51},{"$f":"IF('[1]MONE(M)CAPARD'!AT207=\"\",\"\",'[1]MONE(M)CAPARD'!AT207)","v":"n.a."},{"$f":"IF('[1]MONE(M)CAPARD'!AU207=\"\",\"\",'[1]MONE(M)CAPARD'!AU207)","v":4.75},{"$f":"IF('[1]MONE(M)CAPARD'!AV207=\"\",\"\",'[1]MONE(M)CAPARD'!AV207)","v":6.5},{"$f":"IF('[1]MONE(M)CAPARD'!AW207=\"\",\"\",'[1]MONE(M)CAPARD'!AW207)","v":"n.a."},{"$f":"IF('[1]MONE(M)CAPARD'!AX207=\"\",\"\",'[1]MONE(M)CAPARD'!AX207)","v":10},{"$f":"IF('[1]MONE(M)CAPARD'!AY207=\"\",\"\",'[1]MONE(M)CAPARD'!AY207)","v":"n.a."},{"$f":"IF('[1]FISCAL(M)'!$K207=\"\",\"\",'[1]FISCAL(M)'!$K207)","v":-116.08965560133468},{"$f":"IF('[1]FISCAL(M)'!$L207=\"\",\"\",'[1]FISCAL(M)'!$L207)","v":-73.81454108533444},{"$f":"IF('[1]FISCAL(M)'!$AY207=\"\",\"\",'[1]FISCAL(M)'!$AY207)","v":"n.d."},{"$f":"IF('[1]FISCAL(M)'!$BI207=\"\",\"\",'[1]FISCAL(M)'!$BI207)","v":"n.d."},{"$f":"IF('[1]FISCAL(M)'!$BS207=\"\",\"\",'[1]FISCAL(M)'!$BS207)","v":29637.64},{"$f":"IF('[1]FISCAL(M)'!$AZ207=\"\",\"\",'[1]FISCAL(M)'!$AZ207)","v":"n.d."},{"$f":"IF('[1]FISCAL(M)'!$BJ207=\"\",\"\",'[1]FISCAL(M)'!$BJ207)","v":"n.d."},{"$f":"IF('[1]FISCAL(M)'!$BT207=\"\",\"\",'[1]FISCAL(M)'!$BT207)","v":37551.269033489996},{"$f":"IF('[2]MONE(M)'!$AO207=\"\",\"\",'[2]MONE(M)'!$AO207)","v":3866381.6137728635},{"$f":"IF('[3]MONE(M)'!$AO207=\"\",\"\",'[3]MONE(M)'!$AO207)","v":7757.9792254971435},{"$f":"IF('[4]MONE(M)'!$AO207=\"\",\"\",'[4]MONE(M)'!$AO207)","v":62132.5483824494},{"$f":"IF('[5]MONE(M)'!$AO207=\"\",\"\",'[5]MONE(M)'!$AO207)","v":80298.696348241909},{"$f":"IF('[6]MONE(M)'!$AO207=\"\",\"\",'[6]MONE(M)'!$AO207)","v":27327.686296880856},{"$f":"IF('[7]MONE(M)'!$AO207=\"\",\"\",'[7]MONE(M)'!$AO207)","v":213704.87678411003},{"$f":"IF('[8]MONE(M)'!$AO207=\"\",\"\",'[8]MONE(M)'!$AO207)","v":13460.768968429998},28.676773912451424,12.648099658012345,10.432409150206446,24.025631739942121,32.383280222459,20.430382278475445,14.897359968446832,{"$f":"IF('[1]FISCAL(M)'!$K207=\"\",\"\",'[1]FISCAL(M)'!$K207)","v":-116.08965560133468},{"$f":"+'[1]REAL(A)'!$AO$26","v":"n.d."},"n.d.",{"$f":"IF('[1]FISCAL(M)'!$L207=\"\",\"\",'[1]FISCAL(M)'!$L207)","v":-73.81454108533444},{"$f":"+'[1]REAL(A)'!$AP$26","v":"n.d."},"n.d.",51743.049461966337,{"$f":"'[1]Gráfico REM'!BG201","v":11619.35130659857},{"$f":"'[1]Gráfico REM'!BH201","v":35810.064195425504},{"$f":"'[1]Gráfico REM'!BI201","v":4313.6339599422608},"n.d.",-1.8682131298364824,14.072701368017304,46.027016461862338,75310.725899821336,{"$f":"'[1]Gráfico REM'!BK201","v":12099.86341362157},{"$f":"'[1]Gráfico REM'!BL201","v":49270.833163855503},{"$f":"'[1]Gráfico REM'!BM201","v":13940.02932234426},"n.d.",-2.1240558261110598,14.296820150742029,32.219853722700911]
[2006,"julio","2006-julio",{"$f":"IF('[1]REAL IPC(M)'!$AL208=\"\",\"\",+'[1]REAL IPC(M)'!$AL208)","v":9.5409820746631837},{"$f":"IF('[1]REAL IPC(M)'!$BE208=\"\",\"\",+'[1]REAL IPC(M)'!$BE208)","v":9.5159232615393172},{"$f":"IF('[1]REAL IPC(M)'!$AM208=\"\",\"\",+'[1]REAL IPC(M)'!$AM208)","v":9.0876998293499831},{"$f":"IF('[1]REAL IPC(M)'!$BI208=\"\",\"\",+'[1]REAL IPC(M)'!$BI208)","v":9.0694883847499916},{"$f":"IF('[1]REAL IMAE(M)'!BJ208=\"\",\"\",'[1]REAL IMAE(M)'!BJ208)","v":"n.d."},{"$f":"IF('[1]REAL IMAE(M)'!BK208=\"\",\"\",'[1]REAL IMAE(M)'!BK208)","v":"n.d."},{"$f":"IF('[1]REAL IMAE(M)'!BN208=\"\",\"\",'[1]REAL IMAE(M)'!BN208)","v":"n.d."},{"$f":"IF('[1]REAL IMAE(M)'!BO208=\"\",\"\",'[1]REAL IMAE(M)'!BO208)","v":"n.d."},{"$f":"IF('[1]EXT RIN(M)'!$K208=\"\",\"\",'[1]EXT RIN(M)'!$K208)","v":13835.306819365764},"",{"$f":"IF('[1]EXT RIN(M)'!$L208=\"\",\"\",'[1]EXT RIN(M)'!$L208)","v":15005.402086167183},"",{"$f":"IF('[1]MONE(M)CARD'!EG208=\"\",\"\",'[1]MONE(M)CARD'!EG208)","v":13264.350950796077},{"$f":"IF('[1]MONE(M)CARD'!EK208=\"\",\"\",'[1]MONE(M)CARD'!EK208)","v":25561.944370941834},{"$f":"IF('[1]MONE(M)CARD'!EP208=\"\",\"\",'[1]MONE(M)CARD'!EP208)","v":13913.514735552162},{"$f":"IF('[1]MONE(M)CARD'!ES208=\"\",\"\",'[1]MONE(M)CARD'!ES208)","v":17.488514049152194},{"$f":"IF('[1]MONE(M)CARD'!EV208=\"\",\"\",'[1]MONE(M)CARD'!EV208)","v":7.485596486413626},{"$f":"IF('[1]MONE(M)CARD'!EZ208=\"\",\"\",'[1]MONE(M)CARD'!EZ208)","v":7.8570442993549428},{"$f":"IF('[1]MONE(M)CAPARD'!FC208=\"\",\"\",'[1]MONE(M)CAPARD'!FC208)","v":15117.434791706077},{"$f":"IF('[1]MONE(M)CAPARD'!FG208=\"\",\"\",'[1]MONE(M)CAPARD'!FG208)","v":36561.602014911827},{"$f":"IF('[1]MONE(M)CAPARD'!FL208=\"\",\"\",'[1]MONE(M)CAPARD'!FL208)","v":13913.514735552162},{"$f":"IF('[1]MONE(M)CAPARD'!FO208=\"\",\"\",'[1]MONE(M)CAPARD'!FO208)","v":17.400202230436879},{"$f":"IF('[1]MONE(M)CAPARD'!FR208=\"\",\"\",'[1]MONE(M)CAPARD'!FR208)","v":9.2718948448196947},{"$f":"IF('[1]MONE(M)CAPARD'!FV208=\"\",\"\",'[1]MONE(M)CAPARD'!FV208)","v":9.1943522765818297},{"$f":"IF('[1]MONE(M)CARD'!FV208=\"\",\"\",'[1]MONE(M)CARD'!FV208)","v":1350.4143119835962},{"$f":"IF('[1]MONE(M)CARD'!GD208=\"\",\"\",'[1]MONE(M)CARD'!GD208)","v":40.304486327462378},{"$f":"IF('[1]MONE(M)CARD'!GE208=\"\",\"\",'[1]MONE(M)CARD'!GE208)","v":4127.1334135267716},10.276399155930838,{"$f":"IF('[9]II.2.Balance OSD-Activos'!J66=\"\",\"\",'[9]II.2.Balance OSD-Activos'!J66)","v":205.52445604912694},{"$f":"IF('[9]II.2.Balance OSD-Activos'!N66=\"\",\"\",'[9]II.2.Balance OSD-Activos'!N66)","v":319.93888877864265},{"$f":"IF('[9]II.2.Balance OSD-Activos'!R66=\"\",\"\",'[9]II.2.Balance OSD-Activos'!R66)","v":15728.786579381282},{"$f":"IF('[9]II.2.Balance OSD-Activos'!S66=\"\",\"\",'[9]II.2.Balance OSD-Activos'!S66)","v":18602.690514902817},15934.311035430408,34856.940439111866,1.9843044871332483,35.71199959128468,148.33584904363866,36.301006890415756,0.34641703050506401,14.628664826822412,0.25488488818032806,{"$f":"IF('[1]MONE(M)CAPARD'!GS208=\"\",\"\",'[1]MONE(M)CAPARD'!GS208)","v":6831.9187165926096},{"$f":"IF('[1]MONE(M)CARD'!HA208=\"\",\"\",'[1]MONE(M)CAPARD'!HA208)","v":4425.8461005167719},{"$f":"IF('[1]MONE(M)CAPARD'!HB208=\"\",\"\",'[1]MONE(M)CAPARD'!HB208)","v":2406.0726160758377},"n.d.",{"$f":"IF('[10]II.2.Balance OSD-Activos'!J66=\"\",\"\",'[10]II.2.Balance OSD-Activos'!J66)","v":469.51987672912691},{"$f":"IF('[10]II.2.Balance OSD-Activos'!N66=\"\",\"\",'[10]II.2.Balance OSD-Activos'!N66)","v":778.71878534864277},{"$f":"IF('[10]II.2.Balance OSD-Activos'!R66=\"\",\"\",'[10]II.2.Balance OSD-Activos'!R66)","v":22422.483856811283},{"$f":"IF('[10]II.2.Balance OSD-Activos'!S66=\"\",\"\",'[10]II.2.Balance OSD-Activos'!S66)","v":25029.256266732817},22892.003733540409,{"$f":"IF(OR(AW201=\"\",AX201=\"\",AY201=\"\",AZ201=\"\"),\"\",SUM(AW201:AZ201))","v":48699.978785621868},14.731772560140666,28.669595720161144,63.791855498989847,28.997739070314466,3.9374003029718052,14.99994709152228,0.21821669332782179,{"$f":"IF('[1]MONE(M)CAPARD'!AS208=\"\",\"\",'[1]MONE(M)CAPARD'!AS208)","v":9.1999999999999993},{"$f":"IF('[1]MONE(M)CAPARD'!AT208=\"\",\"\",'[1]MONE(M)CAPARD'!AT208)","v":"n.a."},{"$f":"IF('[1]MONE(M)CAPARD'!AU208=\"\",\"\",'[1]MONE(M)CAPARD'!AU208)","v":5},{"$f":"IF('[1]MONE(M)CAPARD'!AV208=\"\",\"\",'[1]MONE(M)CAPARD'!AV208)","v":6.5},{"$f":"IF('[1]MONE(M)CAPARD'!AW208=\"\",\"\",'[1]MONE(M)CAPARD'!AW208)","v":"n.a."},{"$f":"IF('[1]MONE(M)CAPARD'!AX208=\"\",\"\",'[1]MONE(M)CAPARD'!AX208)","v":10},{"$f":"IF('[1]MONE(M)CAPARD'!AY208=\"\",\"\",'[1]MONE(M)CAPARD'!AY208)","v":"n.a."},{"$f":"IF('[1]FISCAL(M)'!$K208=\"\",\"\",'[1]FISCAL(M)'!$K208)","v":-376.75524326459265},{"$f":"IF('[1]FISCAL(M)'!$L208=\"\",\"\",'[1]FISCAL(M)'!$L208)","v":-433.19905475859252},{"$f":"IF('[1]FISCAL(M)'!$AY208=\"\",\"\",'[1]FISCAL(M)'!$AY208)","v":"n.d."},{"$f":"IF('[1]FISCAL(M)'!$BI208=\"\",\"\",'[1]FISCAL(M)'!$BI208)","v":"n.d."},{"$f":"IF('[1]FISCAL(M)'!$BS208=\"\",\"\",'[1]FISCAL(M)'!$BS208)","v":"n.d."},{"$f":"IF('[1]FISCAL(M)'!$AZ208=\"\",\"\",'[1]FISCAL(M)'!$AZ208)","v":"n.d."},{"$f":"IF('[1]FISCAL(M)'!$BJ208=\"\",\"\",'[1]FISCAL(M)'!$BJ208)","v":"n.d."},{"$f":"IF('[1]FISCAL(M)'!$BT208=\"\",\"\",'[1]FISCAL(M)'!$BT208)","v":"n.d."},{"$f":"IF('[2]MONE(M)'!$AO208=\"\",\"\",'[2]MONE(M)'!$AO208)","v":3943473.2047031648},{"$f":"IF('[3]MONE(M)'!$AO208=\"\",\"\",'[3]MONE(M)'!$AO208)","v":7838.7922254971436},{"$f":"IF('[4]MONE(M)'!$AO208=\"\",\"\",'[4]MONE(M)'!$AO208)","v":62595.886150223778},{"$f":"IF('[5]MONE(M)'!$AO208=\"\",\"\",'[5]MONE(M)'!$AO208)","v":81356.732006673628},{"$f":"IF('[6]MONE(M)'!$AO208=\"\",\"\",'[6]MONE(M)'!$AO208)","v":28074.171551599829},{"$f":"IF('[7]MONE(M)'!$AO208=\"\",\"\",'[7]MONE(M)'!$AO208)","v":217800.05156406004},{"$f":"IF('[8]MONE(M)'!$AO208=\"\",\"\",'[8]MONE(M)'!$AO208)","v":13691.081650800001},29.88101983577096,12.933105287067281,9.491381901729401,23.684151770169848,34.20576039234917,20.631768338058865,14.851197703255782,{"$f":"IF('[1]FISCAL(M)'!$K208=\"\",\"\",'[1]FISCAL(M)'!$K208)","v":-376.75524326459265},{"$f":"+'[1]REAL(A)'!$AO$26","v":"n.d."},"n.d.",{"$f":"IF('[1]FISCAL(M)'!$L208=\"\",\"\",'[1]FISCAL(M)'!$L208)","v":-433.19905475859252},{"$f":"+'[1]REAL(A)'!$AP$26","v":"n.d."},"n.d.",52279.919631020704,{"$f":"'[1]Gráfico REM'!BG202","v":11636.435542172349},{"$f":"'[1]Gráfico REM'!BH202","v":36312.537540228092},{"$f":"'[1]Gráfico REM'!BI202","v":4330.9465486202707},"n.d.",-1.0229008852674859,14.289388445422958,55.931492233111449,76261.254218030706,{"$f":"'[1]Gráfico REM'!BK202","v":12128.841140522349},{"$f":"'[1]Gráfico REM'!BL202","v":50003.61919102809},{"$f":"'[1]Gráfico REM'!BM202","v":14128.793886480271},"n.d.",-0.68236035923022742,14.442665677620891,35.239005120165203]
[2006,"agosto","2006-agosto",{"$f":"IF('[1]REAL IPC(M)'!$AL209=\"\",\"\",+'[1]REAL IPC(M)'!$AL209)","v":8.8983493298969272},{"$f":"IF('[1]REAL IPC(M)'!$BE209=\"\",\"\",+'[1]REAL IPC(M)'!$BE209)","v":9.4126677297493355},{"$f":"IF('[1]REAL IPC(M)'!$AM209=\"\",\"\",+'[1]REAL IPC(M)'!$AM209)","v":8.4813501748529632},{"$f":"IF('[1]REAL IPC(M)'!$BI209=\"\",\"\",+'[1]REAL IPC(M)'!$BI209)","v":8.964893205933123},{"$f":"IF('[1]REAL IMAE(M)'!BJ209=\"\",\"\",'[1]REAL IMAE(M)'!BJ209)","v":"n.d."},{"$f":"IF('[1]REAL IMAE(M)'!BK209=\"\",\"\",'[1]REAL IMAE(M)'!BK209)","v":"n.d."},{"$f":"IF('[1]REAL IMAE(M)'!BN209=\"\",\"\",'[1]REAL IMAE(M)'!BN209)","v":"n.d."},{"$f":"IF('[1]REAL IMAE(M)'!BO209=\"\",\"\",'[1]REAL IMAE(M)'!BO209)","v":"n.d."},{"$f":"IF('[1]EXT RIN(M)'!$K209=\"\",\"\",'[1]EXT RIN(M)'!$K209)","v":13850.715064414244},"",{"$f":"IF('[1]EXT RIN(M)'!$L209=\"\",\"\",'[1]EXT RIN(M)'!$L209)","v":14842.260808864605},"",{"$f":"IF('[1]MONE(M)CARD'!EG209=\"\",\"\",'[1]MONE(M)CARD'!EG209)","v":13076.953414234547},{"$f":"IF('[1]MONE(M)CARD'!EK209=\"\",\"\",'[1]MONE(M)CARD'!EK209)","v":26099.173285319932},{"$f":"IF('[1]MONE(M)CARD'!EP209=\"\",\"\",'[1]MONE(M)CARD'!EP209)","v":13994.773043974368},{"$f":"IF('[1]MONE(M)CARD'!ES209=\"\",\"\",'[1]MONE(M)CARD'!ES209)","v":17.563277752875294},{"$f":"IF('[1]MONE(M)CARD'!EV209=\"\",\"\",'[1]MONE(M)CARD'!EV209)","v":9.8435177422001807},{"$f":"IF('[1]MONE(M)CARD'!EZ209=\"\",\"\",'[1]MONE(M)CARD'!EZ209)","v":9.8005776298190739},{"$f":"IF('[1]MONE(M)CAPARD'!FC209=\"\",\"\",'[1]MONE(M)CAPARD'!FC209)","v":14963.498012094546},{"$f":"IF('[1]MONE(M)CAPARD'!FG209=\"\",\"\",'[1]MONE(M)CAPARD'!FG209)","v":37243.930177479931},{"$f":"IF('[1]MONE(M)CAPARD'!FL209=\"\",\"\",'[1]MONE(M)CAPARD'!FL209)","v":13994.773043974361},{"$f":"IF('[1]MONE(M)CAPARD'!FO209=\"\",\"\",'[1]MONE(M)CAPARD'!FO209)","v":17.489423532648019},{"$f":"IF('[1]MONE(M)CAPARD'!FR209=\"\",\"\",'[1]MONE(M)CAPARD'!FR209)","v":11.101058779652195},{"$f":"IF('[1]MONE(M)CAPARD'!FV209=\"\",\"\",'[1]MONE(M)CAPARD'!FV209)","v":10.797713032561763},{"$f":"IF('[1]MONE(M)CARD'!FV209=\"\",\"\",'[1]MONE(M)CARD'!FV209)","v":1337.0262532911715},{"$f":"IF('[1]MONE(M)CARD'!GD209=\"\",\"\",'[1]MONE(M)CARD'!GD209)","v":41.545671293407736},{"$f":"IF('[1]MONE(M)CARD'!GE209=\"\",\"\",'[1]MONE(M)CARD'!GE209)","v":4140.0596223837993},11.171644011914728,{"$f":"IF('[9]II.2.Balance OSD-Activos'!J67=\"\",\"\",'[9]II.2.Balance OSD-Activos'!J67)","v":197.45245510184756},{"$f":"IF('[9]II.2.Balance OSD-Activos'!N67=\"\",\"\",'[9]II.2.Balance OSD-Activos'!N67)","v":321.31998802519684},{"$f":"IF('[9]II.2.Balance OSD-Activos'!R67=\"\",\"\",'[9]II.2.Balance OSD-Activos'!R67)","v":15899.391770538547},{"$f":"IF('[9]II.2.Balance OSD-Activos'!S67=\"\",\"\",'[9]II.2.Balance OSD-Activos'!S67)","v":19077.469612408157},16096.844225640394,35495.633826073747,5.1340990268079478,36.313558920794534,149.05242665715491,36.817463788308366,1.2118881839913831,15.295177537648463,0.66651271082605135,{"$f":"IF('[1]MONE(M)CAPARD'!GS209=\"\",\"\",'[1]MONE(M)CAPARD'!GS209)","v":6843.5534739801797},{"$f":"IF('[1]MONE(M)CARD'!HA209=\"\",\"\",'[1]MONE(M)CAPARD'!HA209)","v":4439.5122421637989},{"$f":"IF('[1]MONE(M)CAPARD'!HB209=\"\",\"\",'[1]MONE(M)CAPARD'!HB209)","v":2404.0412318163808},"n.d.",{"$f":"IF('[10]II.2.Balance OSD-Activos'!J67=\"\",\"\",'[10]II.2.Balance OSD-Activos'!J67)","v":457.57094412184756},{"$f":"IF('[10]II.2.Balance OSD-Activos'!N67=\"\",\"\",'[10]II.2.Balance OSD-Activos'!N67)","v":798.54175636519687},{"$f":"IF('[10]II.2.Balance OSD-Activos'!R67=\"\",\"\",'[10]II.2.Balance OSD-Activos'!R67)","v":22701.980947498545},{"$f":"IF('[10]II.2.Balance OSD-Activos'!S67=\"\",\"\",'[10]II.2.Balance OSD-Activos'!S67)","v":25585.359179078157},23159.551891620391,49543.452827063746,22.853349740633643,29.264894478525648,64.29249445005847,29.401010117096369,4.511644624854827,15.530961265897215,0.53101417437493481,{"$f":"IF('[1]MONE(M)CAPARD'!AS209=\"\",\"\",'[1]MONE(M)CAPARD'!AS209)","v":9.1999999999999993},{"$f":"IF('[1]MONE(M)CAPARD'!AT209=\"\",\"\",'[1]MONE(M)CAPARD'!AT209)","v":"n.a."},{"$f":"IF('[1]MONE(M)CAPARD'!AU209=\"\",\"\",'[1]MONE(M)CAPARD'!AU209)","v":5},{"$f":"IF('[1]MONE(M)CAPARD'!AV209=\"\",\"\",'[1]MONE(M)CAPARD'!AV209)","v":6.5},{"$f":"IF('[1]MONE(M)CAPARD'!AW209=\"\",\"\",'[1]MONE(M)CAPARD'!AW209)","v":"n.a."},{"$f":"IF('[1]MONE(M)CAPARD'!AX209=\"\",\"\",'[1]MONE(M)CAPARD'!AX209)","v":8},{"$f":"IF('[1]MONE(M)CAPARD'!AY209=\"\",\"\",'[1]MONE(M)CAPARD'!AY209)","v":"n.a."},{"$f":"IF('[1]FISCAL(M)'!$K209=\"\",\"\",'[1]FISCAL(M)'!$K209)","v":-435.92323525047709},{"$f":"IF('[1]FISCAL(M)'!$L209=\"\",\"\",'[1]FISCAL(M)'!$L209)","v":-561.20078456147689},{"$f":"IF('[1]FISCAL(M)'!$AY209=\"\",\"\",'[1]FISCAL(M)'!$AY209)","v":"n.d."},{"$f":"IF('[1]FISCAL(M)'!$BI209=\"\",\"\",'[1]FISCAL(M)'!$BI209)","v":"n.d."},{"$f":"IF('[1]FISCAL(M)'!$BS209=\"\",\"\",'[1]FISCAL(M)'!$BS209)","v":"n.d."},{"$f":"IF('[1]FISCAL(M)'!$AZ209=\"\",\"\",'[1]FISCAL(M)'!$AZ209)","v":"n.d."},{"$f":"IF('[1]FISCAL(M)'!$BJ209=\"\",\"\",'[1]FISCAL(M)'!$BJ209)","v":"n.d."},{"$f":"IF('[1]FISCAL(M)'!$BT209=\"\",\"\",'[1]FISCAL(M)'!$BT209)","v":"n.d."},{"$f":"IF('[2]MONE(M)'!$AO209=\"\",\"\",'[2]MONE(M)'!$AO209)","v":4060619.8525951649},{"$f":"IF('[3]MONE(M)'!$AO209=\"\",\"\",'[3]MONE(M)'!$AO209)","v":7922.5327715871426},{"$f":"IF('[4]MONE(M)'!$AO209=\"\",\"\",'[4]MONE(M)'!$AO209)","v":63427.894183675788},{"$f":"IF('[5]MONE(M)'!$AO209=\"\",\"\",'[5]MONE(M)'!$AO209)","v":84280.720025556453},{"$f":"IF('[6]MONE(M)'!$AO209=\"\",\"\",'[6]MONE(M)'!$AO209)","v":28640.355886556805},{"$f":"IF('[7]MONE(M)'!$AO209=\"\",\"\",'[7]MONE(M)'!$AO209)","v":221967.28311416},{"$f":"IF('[8]MONE(M)'!$AO209=\"\",\"\",'[8]MONE(M)'!$AO209)","v":13880.79527314},29.442459616577409,13.180534372214336,9.7963922850724536,26.41370031961592,34.231942963984707,20.392618218128099,15.144955284079176,{"$f":"IF('[1]FISCAL(M)'!$K209=\"\",\"\",'[1]FISCAL(M)'!$K209)","v":-435.92323525047709},{"$f":"+'[1]REAL(A)'!$AO$26","v":"n.d."},"n.d.",{"$f":"IF('[1]FISCAL(M)'!$L209=\"\",\"\",'[1]FISCAL(M)'!$L209)","v":-561.20078456147689},{"$f":"+'[1]REAL(A)'!$AP$26","v":"n.d."},"n.d.",52571.797405326302,{"$f":"'[1]Gráfico REM'!BG203","v":11320.4462256238},{"$f":"'[1]Gráfico REM'!BH203","v":36980.885225280392},{"$f":"'[1]Gráfico REM'!BI203","v":4270.4659544221049},"n.d.",-2.6033706342590945,14.963422158929941,38.845268758390496,76595.538566096293,{"$f":"'[1]Gráfico REM'!BK203","v":11796.541879243799},{"$f":"'[1]Gráfico REM'!BL203","v":50861.680498420392},{"$f":"'[1]Gráfico REM'!BM203","v":13937.316188432105},"n.d.",-2.3994319530590835,15.01290802742461,27.959065845838317]
[2006,"septiembre","2006-septiembre",{"$f":"IF('[1]REAL IPC(M)'!$AL210=\"\",\"\",+'[1]REAL IPC(M)'!$AL210)","v":6.8536329696740061},{"$f":"IF('[1]REAL IPC(M)'!$BE210=\"\",\"\",+'[1]REAL IPC(M)'!$BE210)","v":9.3176639862988964},{"$f":"IF('[1]REAL IPC(M)'!$AM210=\"\",\"\",+'[1]REAL IPC(M)'!$AM210)","v":6.4751379853976943},{"$f":"IF('[1]REAL IPC(M)'!$BI210=\"\",\"\",+'[1]REAL IPC(M)'!$BI210)","v":8.8688506875030946},{"$f":"IF('[1]REAL IMAE(M)'!BJ210=\"\",\"\",'[1]REAL IMAE(M)'!BJ210)","v":"n.d."},{"$f":"IF('[1]REAL IMAE(M)'!BK210=\"\",\"\",'[1]REAL IMAE(M)'!BK210)","v":"n.d."},{"$f":"IF('[1]REAL IMAE(M)'!BN210=\"\",\"\",'[1]REAL IMAE(M)'!BN210)","v":"n.d."},{"$f":"IF('[1]REAL IMAE(M)'!BO210=\"\",\"\",'[1]REAL IMAE(M)'!BO210)","v":"n.d."},{"$f":"IF('[1]EXT RIN(M)'!$K210=\"\",\"\",'[1]EXT RIN(M)'!$K210)","v":13773.250879275691},"",{"$f":"IF('[1]EXT RIN(M)'!$L210=\"\",\"\",'[1]EXT RIN(M)'!$L210)","v":14679.319001923601},"",{"$f":"IF('[1]MONE(M)CARD'!EG210=\"\",\"\",'[1]MONE(M)CARD'!EG210)","v":13269.964638354231},{"$f":"IF('[1]MONE(M)CARD'!EK210=\"\",\"\",'[1]MONE(M)CARD'!EK210)","v":26201.852901971066},{"$f":"IF('[1]MONE(M)CARD'!EP210=\"\",\"\",'[1]MONE(M)CARD'!EP210)","v":13959.76935964547},{"$f":"IF('[1]MONE(M)CARD'!ES210=\"\",\"\",'[1]MONE(M)CARD'!ES210)","v":21.285157846308024},{"$f":"IF('[1]MONE(M)CARD'!EV210=\"\",\"\",'[1]MONE(M)CARD'!EV210)","v":12.084317784955578},{"$f":"IF('[1]MONE(M)CARD'!EZ210=\"\",\"\",'[1]MONE(M)CARD'!EZ210)","v":11.282331209683383},{"$f":"IF('[1]MONE(M)CAPARD'!FC210=\"\",\"\",'[1]MONE(M)CAPARD'!FC210)","v":15208.232733324228},{"$f":"IF('[1]MONE(M)CAPARD'!FG210=\"\",\"\",'[1]MONE(M)CAPARD'!FG210)","v":37490.217230991053},{"$f":"IF('[1]MONE(M)CAPARD'!FL210=\"\",\"\",'[1]MONE(M)CAPARD'!FL210)","v":13959.769359645463},{"$f":"IF('[1]MONE(M)CAPARD'!FO210=\"\",\"\",'[1]MONE(M)CAPARD'!FO210)","v":20.452349709371219},{"$f":"IF('[1]MONE(M)CAPARD'!FR210=\"\",\"\",'[1]MONE(M)CAPARD'!FR210)","v":13.008844564388134},{"$f":"IF('[1]MONE(M)CAPARD'!FV210=\"\",\"\",'[1]MONE(M)CAPARD'!FV210)","v":12.161815708264424},{"$f":"IF('[1]MONE(M)CARD'!FV210=\"\",\"\",'[1]MONE(M)CARD'!FV210)","v":1392.2456740712685},{"$f":"IF('[1]MONE(M)CARD'!GD210=\"\",\"\",'[1]MONE(M)CARD'!GD210)","v":77.863670745066599},{"$f":"IF('[1]MONE(M)CARD'!GE210=\"\",\"\",'[1]MONE(M)CARD'!GE210)","v":4194.6072044865896},7.6770065103333174,{"$f":"IF('[9]II.2.Balance OSD-Activos'!J68=\"\",\"\",'[9]II.2.Balance OSD-Activos'!J68)","v":173.19032704829894},{"$f":"IF('[9]II.2.Balance OSD-Activos'!N68=\"\",\"\",'[9]II.2.Balance OSD-Activos'!N68)","v":334.14112082271021},{"$f":"IF('[9]II.2.Balance OSD-Activos'!R68=\"\",\"\",'[9]II.2.Balance OSD-Activos'!R68)","v":15953.693922282962},{"$f":"IF('[9]II.2.Balance OSD-Activos'!S68=\"\",\"\",'[9]II.2.Balance OSD-Activos'!S68)","v":19365.261902955419},16126.88424933126,35826.287273109396,-1.8923246149393336,34.20916921874457,165.37581955180804,34.747445327501623,2.5280006745625805,15.457224511639357,0.16204697399089341,{"$f":"IF('[1]MONE(M)CAPARD'!GS210=\"\",\"\",'[1]MONE(M)CAPARD'!GS210)","v":6839.5221065399355},{"$f":"IF('[1]MONE(M)CARD'!HA210=\"\",\"\",'[1]MONE(M)CAPARD'!HA210)","v":4493.6277714765902},{"$f":"IF('[1]MONE(M)CAPARD'!HB210=\"\",\"\",'[1]MONE(M)CAPARD'!HB210)","v":2345.8943350633454},"n.d.",{"$f":"IF('[10]II.2.Balance OSD-Activos'!J68=\"\",\"\",'[10]II.2.Balance OSD-Activos'!J68)","v":418.96731186829896},{"$f":"IF('[10]II.2.Balance OSD-Activos'!N68=\"\",\"\",'[10]II.2.Balance OSD-Activos'!N68)","v":822.94395930271025},{"$f":"IF('[10]II.2.Balance OSD-Activos'!R68=\"\",\"\",'[10]II.2.Balance OSD-Activos'!R68)","v":22920.754957142963},{"$f":"IF('[10]II.2.Balance OSD-Activos'!S68=\"\",\"\",'[10]II.2.Balance OSD-Activos'!S68)","v":25961.339734275418},23339.722269011261,50124.005962589392,15.980768021263291,27.892193091978747,67.353136048754365,28.132734062032249,5.539229323001682,15.652916494705082,0.12195522880786669,{"$f":"IF('[1]MONE(M)CAPARD'!AS210=\"\",\"\",'[1]MONE(M)CAPARD'!AS210)","v":9.1999999999999993},{"$f":"IF('[1]MONE(M)CAPARD'!AT210=\"\",\"\",'[1]MONE(M)CAPARD'!AT210)","v":"n.a."},{"$f":"IF('[1]MONE(M)CAPARD'!AU210=\"\",\"\",'[1]MONE(M)CAPARD'!AU210)","v":5},{"$f":"IF('[1]MONE(M)CAPARD'!AV210=\"\",\"\",'[1]MONE(M)CAPARD'!AV210)","v":6},{"$f":"IF('[1]MONE(M)CAPARD'!AW210=\"\",\"\",'[1]MONE(M)CAPARD'!AW210)","v":"n.a."},{"$f":"IF('[1]MONE(M)CAPARD'!AX210=\"\",\"\",'[1]MONE(M)CAPARD'!AX210)","v":8},{"$f":"IF('[1]MONE(M)CAPARD'!AY210=\"\",\"\",'[1]MONE(M)CAPARD'!AY210)","v":"n.a."},{"$f":"IF('[1]FISCAL(M)'!$K210=\"\",\"\",'[1]FISCAL(M)'!$K210)","v":-639.19782646689839},{"$f":"IF('[1]FISCAL(M)'!$L210=\"\",\"\",'[1]FISCAL(M)'!$L210)","v":-747.32726463389793},{"$f":"IF('[1]FISCAL(M)'!$AY210=\"\",\"\",'[1]FISCAL(M)'!$AY210)","v":"n.d."},{"$f":"IF('[1]FISCAL(M)'!$BI210=\"\",\"\",'[1]FISCAL(M)'!$BI210)","v":"n.d."},{"$f":"IF('[1]FISCAL(M)'!$BS210=\"\",\"\",'[1]FISCAL(M)'!$BS210)","v":27596.32},{"$f":"IF('[1]FISCAL(M)'!$AZ210=\"\",\"\",'[1]FISCAL(M)'!$AZ210)","v":"n.d."},{"$f":"IF('[1]FISCAL(M)'!$BJ210=\"\",\"\",'[1]FISCAL(M)'!$BJ210)","v":"n.d."},{"$f":"IF('[1]FISCAL(M)'!$BT210=\"\",\"\",'[1]FISCAL(M)'!$BT210)","v":35369.072686240004},{"$f":"IF('[2]MONE(M)'!$AO210=\"\",\"\",'[2]MONE(M)'!$AO210)","v":4143710.2077532988},{"$f":"IF('[3]MONE(M)'!$AO210=\"\",\"\",'[3]MONE(M)'!$AO210)","v":7921.5070791057151},{"$f":"IF('[4]MONE(M)'!$AO210=\"\",\"\",'[4]MONE(M)'!$AO210)","v":64949.560633398636},{"$f":"IF('[5]MONE(M)'!$AO210=\"\",\"\",'[5]MONE(M)'!$AO210)","v":85380.852436931076},{"$f":"IF('[6]MONE(M)'!$AO210=\"\",\"\",'[6]MONE(M)'!$AO210)","v":29335.153597519435},{"$f":"IF('[7]MONE(M)'!$AO210=\"\",\"\",'[7]MONE(M)'!$AO210)","v":224755.26879942001},{"$f":"IF('[8]MONE(M)'!$AO210=\"\",\"\",'[8]MONE(M)'!$AO210)","v":14188.895299189999},28.76606106737345,10.478764499582226,10.555102234319214,25.766264714812625,34.210318719132204,18.301422585889938,15.321998372030542,{"$f":"IF('[1]FISCAL(M)'!$K210=\"\",\"\",'[1]FISCAL(M)'!$K210)","v":-639.19782646689839},{"$f":"+'[1]REAL(A)'!$AO$26","v":"n.d."},"n.d.",{"$f":"IF('[1]FISCAL(M)'!$L210=\"\",\"\",'[1]FISCAL(M)'!$L210)","v":-747.32726463389793},{"$f":"+'[1]REAL(A)'!$AP$26","v":"n.d."},"n.d.",53011.64769982599,{"$f":"'[1]Gráfico REM'!BG204","v":11339.307218054444},{"$f":"'[1]Gráfico REM'!BH204","v":37290.299614119576},{"$f":"'[1]Gráfico REM'!BI204","v":4382.0408676519737},"n.d.",-1.0313081772257093,15.077452957738725,36.701633050933104,77542.964287305993,{"$f":"'[1]Gráfico REM'!BK204","v":11817.666954244443},{"$f":"'[1]Gráfico REM'!BL204","v":51479.194913309577},{"$f":"'[1]Gráfico REM'!BM204","v":14246.102419751973},"n.d.",-0.68822026785571033,15.144751917280018,28.886369526370448]
[2006,"octubre","2006-octubre",{"$f":"IF('[1]REAL IPC(M)'!$AL211=\"\",\"\",+'[1]REAL IPC(M)'!$AL211)","v":5.7153502666768663},{"$f":"IF('[1]REAL IPC(M)'!$BE211=\"\",\"\",+'[1]REAL IPC(M)'!$BE211)","v":9.23086636493451},{"$f":"IF('[1]REAL IPC(M)'!$AM211=\"\",\"\",+'[1]REAL IPC(M)'!$AM211)","v":5.3770122709151158},{"$f":"IF('[1]REAL IPC(M)'!$BI211=\"\",\"\",+'[1]REAL IPC(M)'!$BI211)","v":8.7814242453229987},{"$f":"IF('[1]REAL IMAE(M)'!BJ211=\"\",\"\",'[1]REAL IMAE(M)'!BJ211)","v":"n.d."},{"$f":"IF('[1]REAL IMAE(M)'!BK211=\"\",\"\",'[1]REAL IMAE(M)'!BK211)","v":"n.d."},{"$f":"IF('[1]REAL IMAE(M)'!BN211=\"\",\"\",'[1]REAL IMAE(M)'!BN211)","v":"n.d."},{"$f":"IF('[1]REAL IMAE(M)'!BO211=\"\",\"\",'[1]REAL IMAE(M)'!BO211)","v":"n.d."},{"$f":"IF('[1]EXT RIN(M)'!$K211=\"\",\"\",'[1]EXT RIN(M)'!$K211)","v":13999.215422995259},"",{"$f":"IF('[1]EXT RIN(M)'!$L211=\"\",\"\",'[1]EXT RIN(M)'!$L211)","v":14921.116019374978},"",{"$f":"IF('[1]MONE(M)CARD'!EG211=\"\",\"\",'[1]MONE(M)CARD'!EG211)","v":13315.176152825577},{"$f":"IF('[1]MONE(M)CARD'!EK211=\"\",\"\",'[1]MONE(M)CARD'!EK211)","v":26592.589297101276},{"$f":"IF('[1]MONE(M)CARD'!EP211=\"\",\"\",'[1]MONE(M)CARD'!EP211)","v":14019.264353424347},{"$f":"IF('[1]MONE(M)CARD'!ES211=\"\",\"\",'[1]MONE(M)CARD'!ES211)","v":20.517225310630451},{"$f":"IF('[1]MONE(M)CARD'!EV211=\"\",\"\",'[1]MONE(M)CARD'!EV211)","v":15.775306273799639},{"$f":"IF('[1]MONE(M)CARD'!EZ211=\"\",\"\",'[1]MONE(M)CARD'!EZ211)","v":13.990873023038851},{"$f":"IF('[1]MONE(M)CAPARD'!FC211=\"\",\"\",'[1]MONE(M)CAPARD'!FC211)","v":15299.756161215577},{"$f":"IF('[1]MONE(M)CAPARD'!FG211=\"\",\"\",'[1]MONE(M)CAPARD'!FG211)","v":38121.268043041273},{"$f":"IF('[1]MONE(M)CAPARD'!FL211=\"\",\"\",'[1]MONE(M)CAPARD'!FL211)","v":14019.264353424347},{"$f":"IF('[1]MONE(M)CAPARD'!FO211=\"\",\"\",'[1]MONE(M)CAPARD'!FO211)","v":20.260122073725938},{"$f":"IF('[1]MONE(M)CAPARD'!FR211=\"\",\"\",'[1]MONE(M)CAPARD'!FR211)","v":15.791884122676624},{"$f":"IF('[1]MONE(M)CAPARD'!FV211=\"\",\"\",'[1]MONE(M)CAPARD'!FV211)","v":14.35681475883468},{"$f":"IF('[1]MONE(M)CARD'!FV211=\"\",\"\",'[1]MONE(M)CARD'!FV211)","v":1433.6272047401856},{"$f":"IF('[1]MONE(M)CARD'!GD211=\"\",\"\",'[1]MONE(M)CARD'!GD211)","v":51.234658059787485},{"$f":"IF('[1]MONE(M)CARD'!GE211=\"\",\"\",'[1]MONE(M)CARD'!GE211)","v":4375.5869478016748},10.6001108992968,{"$f":"IF('[9]II.2.Balance OSD-Activos'!J69=\"\",\"\",'[9]II.2.Balance OSD-Activos'!J69)","v":199.40863669162118},{"$f":"IF('[9]II.2.Balance OSD-Activos'!N69=\"\",\"\",'[9]II.2.Balance OSD-Activos'!N69)","v":330.00595102397358},{"$f":"IF('[9]II.2.Balance OSD-Activos'!R69=\"\",\"\",'[9]II.2.Balance OSD-Activos'!R69)","v":16434.041404722029},{"$f":"IF('[9]II.2.Balance OSD-Activos'!S69=\"\",\"\",'[9]II.2.Balance OSD-Activos'!S69)","v":19706.232340217342},16633.450041413649,36669.688332654965,2.0765519391986675,38.912199201591505,175.29863931831932,39.523124479134218,2.2746643338744876,16.924329432983342,1.4671049213439851,{"$f":"IF('[1]MONE(M)CAPARD'!GS211=\"\",\"\",'[1]MONE(M)CAPARD'!GS211)","v":6966.6574916245436},{"$f":"IF('[1]MONE(M)CARD'!HA211=\"\",\"\",'[1]MONE(M)CAPARD'!HA211)","v":4674.7145718416741},{"$f":"IF('[1]MONE(M)CAPARD'!HB211=\"\",\"\",'[1]MONE(M)CAPARD'!HB211)","v":2291.9429197828695},"n.d.",{"$f":"IF('[10]II.2.Balance OSD-Activos'!J69=\"\",\"\",'[10]II.2.Balance OSD-Activos'!J69)","v":391.51455311162118},{"$f":"IF('[10]II.2.Balance OSD-Activos'!N69=\"\",\"\",'[10]II.2.Balance OSD-Activos'!N69)","v":823.20500437397345},{"$f":"IF('[10]II.2.Balance OSD-Activos'!R69=\"\",\"\",'[10]II.2.Balance OSD-Activos'!R69)","v":23525.282092222027},{"$f":"IF('[10]II.2.Balance OSD-Activos'!S69=\"\",\"\",'[10]II.2.Balance OSD-Activos'!S69)","v":26401.517543037342},23916.796645333648,51141.519192744963,2.9453308939115574,30.605470842763705,{"$f":"IF(OR(AX204=\"\",AX192=\"\"),\"\",((AX204/AX192)-1)*100)","v":68.105364288000047},31.192106551413403,5.3970005540002752,16.624242105778375,0.97132561107329352,{"$f":"IF('[1]MONE(M)CAPARD'!AS211=\"\",\"\",'[1]MONE(M)CAPARD'!AS211)","v":9.1999999999999993},{"$f":"IF('[1]MONE(M)CAPARD'!AT211=\"\",\"\",'[1]MONE(M)CAPARD'!AT211)","v":"n.a."},{"$f":"IF('[1]MONE(M)CAPARD'!AU211=\"\",\"\",'[1]MONE(M)CAPARD'!AU211)","v":5},{"$f":"IF('[1]MONE(M)CAPARD'!AV211=\"\",\"\",'[1]MONE(M)CAPARD'!AV211)","v":6},{"$f":"IF('[1]MONE(M)CAPARD'!AW211=\"\",\"\",'[1]MONE(M)CAPARD'!AW211)","v":"n.a."},{"$f":"IF('[1]MONE(M)CAPARD'!AX211=\"\",\"\",'[1]MONE(M)CAPARD'!AX211)","v":8},{"$f":"IF('[1]MONE(M)CAPARD'!AY211=\"\",\"\",'[1]MONE(M)CAPARD'!AY211)","v":"n.a."},{"$f":"IF('[1]FISCAL(M)'!$K211=\"\",\"\",'[1]FISCAL(M)'!$K211)","v":-578.19694701449237},{"$f":"IF('[1]FISCAL(M)'!$L211=\"\",\"\",'[1]FISCAL(M)'!$L211)","v":-782.4246496414919},{"$f":"IF('[1]FISCAL(M)'!$AY211=\"\",\"\",'[1]FISCAL(M)'!$AY211)","v":"n.d."},{"$f":"IF('[1]FISCAL(M)'!$BI211=\"\",\"\",'[1]FISCAL(M)'!$BI211)","v":"n.d."},{"$f":"IF('[1]FISCAL(M)'!$BS211=\"\",\"\",'[1]FISCAL(M)'!$BS211)","v":"n.d."},{"$f":"IF('[1]FISCAL(M)'!$AZ211=\"\",\"\",'[1]FISCAL(M)'!$AZ211)","v":"n.d."},{"$f":"IF('[1]FISCAL(M)'!$BJ211=\"\",\"\",'[1]FISCAL(M)'!$BJ211)","v":"n.d."},{"$f":"IF('[1]FISCAL(M)'!$BT211=\"\",\"\",'[1]FISCAL(M)'!$BT211)","v":"n.d."},{"$f":"IF('[2]MONE(M)'!$AO211=\"\",\"\",'[2]MONE(M)'!$AO211)","v":4195548.5740256412},{"$f":"IF('[3]MONE(M)'!$AO211=\"\",\"\",'[3]MONE(M)'!$AO211)","v":7962.8052795557142},{"$f":"IF('[4]MONE(M)'!$AO211=\"\",\"\",'[4]MONE(M)'!$AO211)","v":66433.613001004007},{"$f":"IF('[5]MONE(M)'!$AO211=\"\",\"\",'[5]MONE(M)'!$AO211)","v":88679.798786155734},{"$f":"IF('[6]MONE(M)'!$AO211=\"\",\"\",'[6]MONE(M)'!$AO211)","v":30229.731052222858},{"$f":"IF('[7]MONE(M)'!$AO211=\"\",\"\",'[7]MONE(M)'!$AO211)","v":229968.21416733999},{"$f":"IF('[8]MONE(M)'!$AO211=\"\",\"\",'[8]MONE(M)'!$AO211)","v":14368.42081842},27.87577257438436,10.148382736914208,11.203495106865979,28.150625084411594,33.737539178871415,16.1962027309017,15.195246216398939,{"$f":"IF('[1]FISCAL(M)'!$K211=\"\",\"\",'[1]FISCAL(M)'!$K211)","v":-578.19694701449237},{"$f":"+'[1]REAL(A)'!$AO$26","v":"n.d."},"n.d.",{"$f":"IF('[1]FISCAL(M)'!$L211=\"\",\"\",'[1]FISCAL(M)'!$L211)","v":-782.4246496414919},{"$f":"+'[1]REAL(A)'!$AP$26","v":"n.d."},"n.d.",53747.600988538354,{"$f":"'[1]Gráfico REM'!BG205","v":11156.155269746991},{"$f":"'[1]Gráfico REM'!BH205","v":38115.448986563577},{"$f":"'[1]Gráfico REM'!BI205","v":4475.996732227788},"n.d.",1.1192230422113258,16.480998333975826,44.950640438858528,78919.650200188364,{"$f":"'[1]Gráfico REM'!BK205","v":11662.144238476991},{"$f":"'[1]Gráfico REM'!BL205","v":52483.86980498358},{"$f":"'[1]Gráfico REM'!BM205","v":14773.636156727787},"n.d.",1.4523759924011115,16.126155589805457,33.66003530136026]
[2006,"noviembre","2006-noviembre",{"$f":"IF('[1]REAL IPC(M)'!$AL212=\"\",\"\",+'[1]REAL IPC(M)'!$AL212)","v":6.4623617043589432},{"$f":"IF('[1]REAL IPC(M)'!$BE212=\"\",\"\",+'[1]REAL IPC(M)'!$BE212)","v":9.1520896715887154},{"$f":"IF('[1]REAL IPC(M)'!$AM212=\"\",\"\",+'[1]REAL IPC(M)'!$AM212)","v":6.120566939841221},{"$f":"IF('[1]REAL IPC(M)'!$BI212=\"\",\"\",+'[1]REAL IPC(M)'!$BI212)","v":8.7025207989674733},{"$f":"IF('[1]REAL IMAE(M)'!BJ212=\"\",\"\",'[1]REAL IMAE(M)'!BJ212)","v":"n.d."},{"$f":"IF('[1]REAL IMAE(M)'!BK212=\"\",\"\",'[1]REAL IMAE(M)'!BK212)","v":"n.d."},{"$f":"IF('[1]REAL IMAE(M)'!BN212=\"\",\"\",'[1]REAL IMAE(M)'!BN212)","v":"n.d."},{"$f":"IF('[1]REAL IMAE(M)'!BO212=\"\",\"\",'[1]REAL IMAE(M)'!BO212)","v":"n.d."},{"$f":"IF('[1]EXT RIN(M)'!$K212=\"\",\"\",'[1]EXT RIN(M)'!$K212)","v":14296.851660087217},"",{"$f":"IF('[1]EXT RIN(M)'!$L212=\"\",\"\",'[1]EXT RIN(M)'!$L212)","v":16130.580475214187},"",{"$f":"IF('[1]MONE(M)CARD'!EG212=\"\",\"\",'[1]MONE(M)CARD'!EG212)","v":14195.608189374805},{"$f":"IF('[1]MONE(M)CARD'!EK212=\"\",\"\",'[1]MONE(M)CARD'!EK212)","v":26284.067860844734},{"$f":"IF('[1]MONE(M)CARD'!EP212=\"\",\"\",'[1]MONE(M)CARD'!EP212)","v":14009.330567684665},{"$f":"IF('[1]MONE(M)CARD'!ES212=\"\",\"\",'[1]MONE(M)CARD'!ES212)","v":22.702797581385113},{"$f":"IF('[1]MONE(M)CARD'!EV212=\"\",\"\",'[1]MONE(M)CARD'!EV212)","v":15.460044513860671},{"$f":"IF('[1]MONE(M)CARD'!EZ212=\"\",\"\",'[1]MONE(M)CARD'!EZ212)","v":13.637997070172059},{"$f":"IF('[1]MONE(M)CAPARD'!FC212=\"\",\"\",'[1]MONE(M)CAPARD'!FC212)","v":17091.834579114806},{"$f":"IF('[1]MONE(M)CAPARD'!FG212=\"\",\"\",'[1]MONE(M)CAPARD'!FG212)","v":38332.933512294738},{"$f":"IF('[1]MONE(M)CAPARD'!FL212=\"\",\"\",'[1]MONE(M)CAPARD'!FL212)","v":14009.33056768465},{"$f":"IF('[1]MONE(M)CAPARD'!FO212=\"\",\"\",'[1]MONE(M)CAPARD'!FO212)","v":28.610506657005352},{"$f":"IF('[1]MONE(M)CAPARD'!FR212=\"\",\"\",'[1]MONE(M)CAPARD'!FR212)","v":18.121611697114126},{"$f":"IF('[1]MONE(M)CAPARD'!FV212=\"\",\"\",'[1]MONE(M)CAPARD'!FV212)","v":16.087326627177578},{"$f":"IF('[1]MONE(M)CARD'!FV212=\"\",\"\",'[1]MONE(M)CARD'!FV212)","v":1477.1708139271504},{"$f":"IF('[1]MONE(M)CARD'!GD212=\"\",\"\",'[1]MONE(M)CARD'!GD212)","v":46.922813655273721},{"$f":"IF('[1]MONE(M)CARD'!GE212=\"\",\"\",'[1]MONE(M)CARD'!GE212)","v":4578.6758485375458},14.515337611614342,{"$f":"IF('[9]II.2.Balance OSD-Activos'!J70=\"\",\"\",'[9]II.2.Balance OSD-Activos'!J70)","v":252.89995483069652},{"$f":"IF('[9]II.2.Balance OSD-Activos'!N70=\"\",\"\",'[9]II.2.Balance OSD-Activos'!N70)","v":343.57000312163217},{"$f":"IF('[9]II.2.Balance OSD-Activos'!R70=\"\",\"\",'[9]II.2.Balance OSD-Activos'!R70)","v":16910.504786569763},{"$f":"IF('[9]II.2.Balance OSD-Activos'!S70=\"\",\"\",'[9]II.2.Balance OSD-Activos'!S70)","v":19688.031691889671},17163.40474140046,37195.006436411764,25.61107190108476,17.087616632900616,44.994087911646204,16.968916716661365,22.004131887600977,19.857313457970349,2.9329840249870074,{"$f":"IF('[1]MONE(M)CAPARD'!GS212=\"\",\"\",'[1]MONE(M)CAPARD'!GS212)","v":7423.2450037251347},{"$f":"IF('[1]MONE(M)CARD'!HA212=\"\",\"\",'[1]MONE(M)CAPARD'!HA212)","v":4880.222561927545},{"$f":"IF('[1]MONE(M)CAPARD'!HB212=\"\",\"\",'[1]MONE(M)CAPARD'!HB212)","v":2543.0224417975896},"n.d.",{"$f":"IF('[10]II.2.Balance OSD-Activos'!J70=\"\",\"\",'[10]II.2.Balance OSD-Activos'!J70)","v":433.42590552069652},{"$f":"IF('[10]II.2.Balance OSD-Activos'!N70=\"\",\"\",'[10]II.2.Balance OSD-Activos'!N70)","v":843.52245517163215},{"$f":"IF('[10]II.2.Balance OSD-Activos'!R70=\"\",\"\",'[10]II.2.Balance OSD-Activos'!R70)","v":24066.57882087976},{"$f":"IF('[10]II.2.Balance OSD-Activos'!S70=\"\",\"\",'[10]II.2.Balance OSD-Activos'!S70)","v":26459.302574529669},24500.004726400457,51802.829756101753,9.8723290310608789,16.100632267150729,34.814135519194437,16.219280181126816,20.288131887165516,18.475027353281902,1.8507852475035271,{"$f":"IF('[1]MONE(M)CAPARD'!AS212=\"\",\"\",'[1]MONE(M)CAPARD'!AS212)","v":9.1999999999999993},{"$f":"IF('[1]MONE(M)CAPARD'!AT212=\"\",\"\",'[1]MONE(M)CAPARD'!AT212)","v":"n.a."},{"$f":"IF('[1]MONE(M)CAPARD'!AU212=\"\",\"\",'[1]MONE(M)CAPARD'!AU212)","v":5},{"$f":"IF('[1]MONE(M)CAPARD'!AV212=\"\",\"\",'[1]MONE(M)CAPARD'!AV212)","v":6},{"$f":"IF('[1]MONE(M)CAPARD'!AW212=\"\",\"\",'[1]MONE(M)CAPARD'!AW212)","v":"n.a."},{"$f":"IF('[1]MONE(M)CAPARD'!AX212=\"\",\"\",'[1]MONE(M)CAPARD'!AX212)","v":8},{"$f":"IF('[1]MONE(M)CAPARD'!AY212=\"\",\"\",'[1]MONE(M)CAPARD'!AY212)","v":"n.a."},{"$f":"IF('[1]FISCAL(M)'!$K212=\"\",\"\",'[1]FISCAL(M)'!$K212)","v":-787.48168888595069},{"$f":"IF('[1]FISCAL(M)'!$L212=\"\",\"\",'[1]FISCAL(M)'!$L212)","v":-932.17709815295018},{"$f":"IF('[1]FISCAL(M)'!$AY212=\"\",\"\",'[1]FISCAL(M)'!$AY212)","v":"n.d."},{"$f":"IF('[1]FISCAL(M)'!$BI212=\"\",\"\",'[1]FISCAL(M)'!$BI212)","v":"n.d."},{"$f":"IF('[1]FISCAL(M)'!$BS212=\"\",\"\",'[1]FISCAL(M)'!$BS212)","v":"n.d."},{"$f":"IF('[1]FISCAL(M)'!$AZ212=\"\",\"\",'[1]FISCAL(M)'!$AZ212)","v":"n.d."},{"$f":"IF('[1]FISCAL(M)'!$BJ212=\"\",\"\",'[1]FISCAL(M)'!$BJ212)","v":"n.d."},{"$f":"IF('[1]FISCAL(M)'!$BT212=\"\",\"\",'[1]FISCAL(M)'!$BT212)","v":"n.d."},{"$f":"IF('[2]MONE(M)'!$AO212=\"\",\"\",'[2]MONE(M)'!$AO212)","v":4346890.2482188297},{"$f":"IF('[3]MONE(M)'!$AO212=\"\",\"\",'[3]MONE(M)'!$AO212)","v":8043.132093082857},{"$f":"IF('[4]MONE(M)'!$AO212=\"\",\"\",'[4]MONE(M)'!$AO212)","v":66687.15894158739},{"$f":"IF('[5]MONE(M)'!$AO212=\"\",\"\",'[5]MONE(M)'!$AO212)","v":91037.734159371437},{"$f":"IF('[6]MONE(M)'!$AO212=\"\",\"\",'[6]MONE(M)'!$AO212)","v":30854.062469912809},{"$f":"IF('[7]MONE(M)'!$AO212=\"\",\"\",'[7]MONE(M)'!$AO212)","v":221276.1634776},{"$f":"IF('[8]MONE(M)'!$AO212=\"\",\"\",'[8]MONE(M)'!$AO212)","v":14503.648456119998},29.131079154238691,9.7526554424262724,26.868164288951913,28.173131882731226,32.451389352511463,10.630842132732067,14.487487270522292,{"$f":"IF('[1]FISCAL(M)'!$K212=\"\",\"\",'[1]FISCAL(M)'!$K212)","v":-787.48168888595069},{"$f":"+'[1]REAL(A)'!$AO$26","v":"n.d."},"n.d.",{"$f":"IF('[1]FISCAL(M)'!$L212=\"\",\"\",'[1]FISCAL(M)'!$L212)","v":-932.17709815295018},{"$f":"+'[1]REAL(A)'!$AP$26","v":"n.d."},"n.d.",54245.177272484958,{"$f":"'[1]Gráfico REM'!BG206","v":11515.263747063189},{"$f":"'[1]Gráfico REM'!BH206","v":38412.158012368425},{"$f":"'[1]Gráfico REM'!BI206","v":4317.7555130533447},"n.d.",-3.3658139665356357,19.161011276412165,15.587048020737049,79296.293553744967,{"$f":"'[1]Gráfico REM'!BK206","v":12032.19931126319},{"$f":"'[1]Gráfico REM'!BL206","v":52915.806468488423},{"$f":"'[1]Gráfico REM'!BM206","v":14348.287773993346},"n.d.",-2.5613034921913691,17.84251081368151,20.85688525039291]
[2006,"diciembre","2006-diciembre",{"$f":"IF('[1]REAL IPC(M)'!$AL213=\"\",\"\",+'[1]REAL IPC(M)'!$AL213)","v":6.8770778660916188},{"$f":"IF('[1]REAL IPC(M)'!$BE213=\"\",\"\",+'[1]REAL IPC(M)'!$BE213)","v":9.0809545308640374},{"$f":"IF('[1]REAL IPC(M)'!$AM213=\"\",\"\",+'[1]REAL IPC(M)'!$AM213)","v":6.5246430572635239},{"$f":"IF('[1]REAL IPC(M)'!$BI213=\"\",\"\",+'[1]REAL IPC(M)'!$BI213)","v":8.6318307022058338},{"$f":"IF('[1]REAL IMAE(M)'!BJ213=\"\",\"\",'[1]REAL IMAE(M)'!BJ213)","v":"n.d."},{"$f":"IF('[1]REAL IMAE(M)'!BK213=\"\",\"\",'[1]REAL IMAE(M)'!BK213)","v":"n.d."},{"$f":"IF('[1]REAL IMAE(M)'!BN213=\"\",\"\",'[1]REAL IMAE(M)'!BN213)","v":"n.d."},{"$f":"IF('[1]REAL IMAE(M)'!BO213=\"\",\"\",'[1]REAL IMAE(M)'!BO213)","v":"n.d."},{"$f":"IF('[1]EXT RIN(M)'!$K213=\"\",\"\",'[1]EXT RIN(M)'!$K213)","v":14371.078990295948},14371.078990295948,{"$f":"IF('[1]EXT RIN(M)'!$L213=\"\",\"\",'[1]EXT RIN(M)'!$L213)","v":15683.127508807547},15683.127508807547,{"$f":"IF('[1]MONE(M)CARD'!EG213=\"\",\"\",'[1]MONE(M)CARD'!EG213)","v":15272.674423235618},{"$f":"IF('[1]MONE(M)CARD'!EK213=\"\",\"\",'[1]MONE(M)CARD'!EK213)","v":26478.683223630953},{"$f":"IF('[1]MONE(M)CARD'!EP213=\"\",\"\",'[1]MONE(M)CARD'!EP213)","v":13667.472485738326},{"$f":"IF('[1]MONE(M)CARD'!ES213=\"\",\"\",'[1]MONE(M)CARD'!ES213)","v":24.149234785417949},{"$f":"IF('[1]MONE(M)CARD'!EV213=\"\",\"\",'[1]MONE(M)CARD'!EV213)","v":15.75043235371143},{"$f":"IF('[1]MONE(M)CARD'!EZ213=\"\",\"\",'[1]MONE(M)CARD'!EZ213)","v":13.348396099162073},{"$f":"IF('[1]MONE(M)CAPARD'!FC213=\"\",\"\",'[1]MONE(M)CAPARD'!FC213)","v":17882.94012864562},{"$f":"IF('[1]MONE(M)CAPARD'!FG213=\"\",\"\",'[1]MONE(M)CAPARD'!FG213)","v":38815.730981080946},{"$f":"IF('[1]MONE(M)CAPARD'!FL213=\"\",\"\",'[1]MONE(M)CAPARD'!FL213)","v":13667.472485738326},{"$f":"IF('[1]MONE(M)CAPARD'!FO213=\"\",\"\",'[1]MONE(M)CAPARD'!FO213)","v":25.863944968809925},{"$f":"IF('[1]MONE(M)CAPARD'!FR213=\"\",\"\",'[1]MONE(M)CAPARD'!FR213)","v":17.44641473713564},{"$f":"IF('[1]MONE(M)CAPARD'!FV213=\"\",\"\",'[1]MONE(M)CAPARD'!FV213)","v":15.168325097038426},{"$f":"IF('[1]MONE(M)CARD'!FV213=\"\",\"\",'[1]MONE(M)CARD'!FV213)","v":1561.504208720969},{"$f":"IF('[1]MONE(M)CARD'!GD213=\"\",\"\",'[1]MONE(M)CARD'!GD213)","v":43.651354897895843},{"$f":"IF('[1]MONE(M)CARD'!GE213=\"\",\"\",'[1]MONE(M)CARD'!GE213)","v":4232.509116780112},6.3257818676820898,{"$f":"IF('[9]II.2.Balance OSD-Activos'!J71=\"\",\"\",'[9]II.2.Balance OSD-Activos'!J71)","v":220.13992599241539},{"$f":"IF('[9]II.2.Balance OSD-Activos'!N71=\"\",\"\",'[9]II.2.Balance OSD-Activos'!N71)","v":358.09496394776602},{"$f":"IF('[9]II.2.Balance OSD-Activos'!R71=\"\",\"\",'[9]II.2.Balance OSD-Activos'!R71)","v":17260.516238853688},{"$f":"IF('[9]II.2.Balance OSD-Activos'!S71=\"\",\"\",'[9]II.2.Balance OSD-Activos'!S71)","v":20183.357949855854},17480.656164846103,38022.109078649723,12.405197143240532,17.378179138828841,49.744728748859977,17.444447773177419,21.962489401772768,20.017179016632113,0.15986555866176388,{"$f":"IF('[1]MONE(M)CAPARD'!GS213=\"\",\"\",'[1]MONE(M)CAPARD'!GS213)","v":7383.2444576274029},{"$f":"IF('[1]MONE(M)CARD'!HA213=\"\",\"\",'[1]MONE(M)CAPARD'!HA213)","v":4532.7958490701121},{"$f":"IF('[1]MONE(M)CAPARD'!HB213=\"\",\"\",'[1]MONE(M)CAPARD'!HB213)","v":2850.4486085572908},"n.d.",{"$f":"IF('[10]II.2.Balance OSD-Activos'!J71=\"\",\"\",'[10]II.2.Balance OSD-Activos'!J71)","v":398.63731626241537},{"$f":"IF('[10]II.2.Balance OSD-Activos'!N71=\"\",\"\",'[10]II.2.Balance OSD-Activos'!N71)","v":838.90284266776587},{"$f":"IF('[10]II.2.Balance OSD-Activos'!R71=\"\",\"\",'[10]II.2.Balance OSD-Activos'!R71)","v":24082.97437087369},{"$f":"IF('[10]II.2.Balance OSD-Activos'!S71=\"\",\"\",'[10]II.2.Balance OSD-Activos'!S71)","v":27026.732355395852},24481.611687136105,52347.246885199726,-1.4375643094012291,15.90011925785717,35.23485072869255,16.238571766126221,20.124895857547198,18.319676610907809,-0.15535074237409319,{"$f":"IF('[1]MONE(M)CAPARD'!AS213=\"\",\"\",'[1]MONE(M)CAPARD'!AS213)","v":8.9700000000000006},{"$f":"IF('[1]MONE(M)CAPARD'!AT213=\"\",\"\",'[1]MONE(M)CAPARD'!AT213)","v":"n.a."},{"$f":"IF('[1]MONE(M)CAPARD'!AU213=\"\",\"\",'[1]MONE(M)CAPARD'!AU213)","v":5},{"$f":"IF('[1]MONE(M)CAPARD'!AV213=\"\",\"\",'[1]MONE(M)CAPARD'!AV213)","v":6},{"$f":"IF('[1]MONE(M)CAPARD'!AW213=\"\",\"\",'[1]MONE(M)CAPARD'!AW213)","v":"n.a."},{"$f":"IF('[1]MONE(M)CAPARD'!AX213=\"\",\"\",'[1]MONE(M)CAPARD'!AX213)","v":8},{"$f":"IF('[1]MONE(M)CAPARD'!AY213=\"\",\"\",'[1]MONE(M)CAPARD'!AY213)","v":"n.a."},{"$f":"IF('[1]FISCAL(M)'!$K213=\"\",\"\",'[1]FISCAL(M)'!$K213)","v":-1426.0927472209078},{"$f":"IF('[1]FISCAL(M)'!$L213=\"\",\"\",'[1]FISCAL(M)'!$L213)","v":-1415.7031640289076},{"$f":"IF('[1]FISCAL(M)'!$AY213=\"\",\"\",'[1]FISCAL(M)'!$AY213)","v":"n.d."},{"$f":"IF('[1]FISCAL(M)'!$BI213=\"\",\"\",'[1]FISCAL(M)'!$BI213)","v":"n.d."},{"$f":"IF('[1]FISCAL(M)'!$BS213=\"\",\"\",'[1]FISCAL(M)'!$BS213)","v":28099.55},{"$f":"IF('[1]FISCAL(M)'!$AZ213=\"\",\"\",'[1]FISCAL(M)'!$AZ213)","v":"n.d."},{"$f":"IF('[1]FISCAL(M)'!$BJ213=\"\",\"\",'[1]FISCAL(M)'!$BJ213)","v":"n.d."},{"$f":"IF('[1]FISCAL(M)'!$BT213=\"\",\"\",'[1]FISCAL(M)'!$BT213)","v":35887.883448659995},{"$f":"IF('[2]MONE(M)'!$AO213=\"\",\"\",'[2]MONE(M)'!$AO213)","v":4484094.3987209611},{"$f":"IF('[3]MONE(M)'!$AO213=\"\",\"\",'[3]MONE(M)'!$AO213)","v":8138.3648772899996},{"$f":"IF('[4]MONE(M)'!$AO213=\"\",\"\",'[4]MONE(M)'!$AO213)","v":67905.509182619789},{"$f":"IF('[5]MONE(M)'!$AO213=\"\",\"\",'[5]MONE(M)'!$AO213)","v":92621.295792901568},{"$f":"IF('[6]MONE(M)'!$AO213=\"\",\"\",'[6]MONE(M)'!$AO213)","v":31475.069152872486},{"$f":"IF('[7]MONE(M)'!$AO213=\"\",\"\",'[7]MONE(M)'!$AO213)","v":228245.58909178001},{"$f":"IF('[8]MONE(M)'!$AO213=\"\",\"\",'[8]MONE(M)'!$AO213)","v":14115.31720657},27.626521905358679,8.8660099510984089,21.384571284804444,29.095485181319724,30.737097637432441,11.950283584187593,12.439940561628671,{"$f":"IF('[1]FISCAL(M)'!$K213=\"\",\"\",'[1]FISCAL(M)'!$K213)","v":-1426.0927472209078},{"$f":"+'[1]REAL(A)'!$AO$26","v":"n.d."},"n.d.",{"$f":"IF('[1]FISCAL(M)'!$L213=\"\",\"\",'[1]FISCAL(M)'!$L213)","v":-1415.7031640289076},{"$f":"+'[1]REAL(A)'!$AP$26","v":"n.d."},"n.d.",54757.1957329078,{"$f":"'[1]Gráfico REM'!BG207","v":11470.65311389089},{"$f":"'[1]Gráfico REM'!BH207","v":39232.083220783767},{"$f":"'[1]Gráfico REM'!BI207","v":4054.4593982331426},"n.d.",-1.8484190724607275,18.8729352412909,5.6039459594296348,79385.379434205795,{"$f":"'[1]Gráfico REM'!BK207","v":11992.16570926689},{"$f":"'[1]Gráfico REM'!BL207","v":53347.400427353765},{"$f":"'[1]Gráfico REM'!BM207","v":14045.81329758514},"n.d.",-1.0771163047814447,17.100265444260465,12.804501963511417]
[2007,"enero","2007-enero",{"$f":"IF('[1]REAL IPC(M)'!$AL214=\"\",\"\",+'[1]REAL IPC(M)'!$AL214)","v":6.7960236279352326},{"$f":"IF('[1]REAL IPC(M)'!$BE214=\"\",\"\",+'[1]REAL IPC(M)'!$BE214)","v":9.0169307651334805},{"$f":"IF('[1]REAL IPC(M)'!$AM214=\"\",\"\",+'[1]REAL IPC(M)'!$AM214)","v":6.2781334795491972},{"$f":"IF('[1]REAL IPC(M)'!$BI214=\"\",\"\",+'[1]REAL IPC(M)'!$BI214)","v":8.5688793812141348},{"$f":"IF('[1]REAL IMAE(M)'!BJ214=\"\",\"\",'[1]REAL IMAE(M)'!BJ214)","v":"n.d."},{"$f":"IF('[1]REAL IMAE(M)'!BK214=\"\",\"\",'[1]REAL IMAE(M)'!BK214)","v":"n.d."},{"$f":"IF('[1]REAL IMAE(M)'!BN214=\"\",\"\",'[1]REAL IMAE(M)'!BN214)","v":"n.d."},{"$f":"IF('[1]REAL IMAE(M)'!BO214=\"\",\"\",'[1]REAL IMAE(M)'!BO214)","v":"n.d."},{"$f":"IF('[1]EXT RIN(M)'!$K214=\"\",\"\",'[1]EXT RIN(M)'!$K214)","v":14427.89042171833},"",{"$f":"IF('[1]EXT RIN(M)'!$L214=\"\",\"\",'[1]EXT RIN(M)'!$L214)","v":15774.460845826679},"",{"$f":"IF('[1]MONE(M)CARD'!EG214=\"\",\"\",'[1]MONE(M)CARD'!EG214)","v":14991.394181992284},{"$f":"IF('[1]MONE(M)CARD'!EK214=\"\",\"\",'[1]MONE(M)CARD'!EK214)","v":26595.532740193179},{"$f":"IF('[1]MONE(M)CARD'!EP214=\"\",\"\",'[1]MONE(M)CARD'!EP214)","v":13734.930560728913},{"$f":"IF('[1]MONE(M)CARD'!ES214=\"\",\"\",'[1]MONE(M)CARD'!ES214)","v":23.130542133484731},{"$f":"IF('[1]MONE(M)CARD'!EV214=\"\",\"\",'[1]MONE(M)CARD'!EV214)","v":15.954456046563493},{"$f":"IF('[1]MONE(M)CARD'!EZ214=\"\",\"\",'[1]MONE(M)CARD'!EZ214)","v":13.111188487291559},{"$f":"IF('[1]MONE(M)CAPARD'!FC214=\"\",\"\",'[1]MONE(M)CAPARD'!FC214)","v":17435.520566402283},{"$f":"IF('[1]MONE(M)CAPARD'!FG214=\"\",\"\",'[1]MONE(M)CAPARD'!FG214)","v":39047.216626133173},{"$f":"IF('[1]MONE(M)CAPARD'!FL214=\"\",\"\",'[1]MONE(M)CAPARD'!FL214)","v":13734.930560728913},{"$f":"IF('[1]MONE(M)CAPARD'!FO214=\"\",\"\",'[1]MONE(M)CAPARD'!FO214)","v":25.04830497011281},{"$f":"IF('[1]MONE(M)CAPARD'!FR214=\"\",\"\",'[1]MONE(M)CAPARD'!FR214)","v":17.988586518905826},{"$f":"IF('[1]MONE(M)CAPARD'!FV214=\"\",\"\",'[1]MONE(M)CAPARD'!FV214)","v":15.270141080780753},{"$f":"IF('[1]MONE(M)CARD'!FV214=\"\",\"\",'[1]MONE(M)CARD'!FV214)","v":1554.5591812630116},{"$f":"IF('[1]MONE(M)CARD'!GD214=\"\",\"\",'[1]MONE(M)CARD'!GD214)","v":41.745379412571253},{"$f":"IF('[1]MONE(M)CARD'!GE214=\"\",\"\",'[1]MONE(M)CARD'!GE214)","v":4542.9628160282264},21.302047088857769,{"$f":"IF('[9]II.2.Balance OSD-Activos'!J72=\"\",\"\",'[9]II.2.Balance OSD-Activos'!J72)","v":208.02156182253526},{"$f":"IF('[9]II.2.Balance OSD-Activos'!N72=\"\",\"\",'[9]II.2.Balance OSD-Activos'!N72)","v":344.25136715106578},{"$f":"IF('[9]II.2.Balance OSD-Activos'!R72=\"\",\"\",'[9]II.2.Balance OSD-Activos'!R72)","v":17575.412695360079},{"$f":"IF('[9]II.2.Balance OSD-Activos'!S72=\"\",\"\",'[9]II.2.Balance OSD-Activos'!S72)","v":20202.698828966626},17783.434257182613,38330.384453300307,2.2573727755650363,19.494773943120425,45.048194188676781,19.733662996045442,20.704304130564033,20.32062627997011,0.30344726333799699,{"$f":"IF('[1]MONE(M)CAPARD'!GS214=\"\",\"\",'[1]MONE(M)CAPARD'!GS214)","v":7190.8424259467965},{"$f":"IF('[1]MONE(M)CARD'!HA214=\"\",\"\",'[1]MONE(M)CAPARD'!HA214)","v":4842.8315460482263},{"$f":"IF('[1]MONE(M)CAPARD'!HB214=\"\",\"\",'[1]MONE(M)CAPARD'!HB214)","v":2348.0108798985702},"n.d.",{"$f":"IF('[10]II.2.Balance OSD-Activos'!J72=\"\",\"\",'[10]II.2.Balance OSD-Activos'!J72)","v":395.84222762253523},{"$f":"IF('[10]II.2.Balance OSD-Activos'!N72=\"\",\"\",'[10]II.2.Balance OSD-Activos'!N72)","v":797.46307129106583},{"$f":"IF('[10]II.2.Balance OSD-Activos'!R72=\"\",\"\",'[10]II.2.Balance OSD-Activos'!R72)","v":24519.365868110079},{"$f":"IF('[10]II.2.Balance OSD-Activos'!S72=\"\",\"\",'[10]II.2.Balance OSD-Activos'!S72)","v":27118.971094036628},24915.208095732614,52831.642261060304,-5.5158916243925553,17.356482023964269,26.810467206416444,17.816922006183987,19.28843277634811,18.474727660707082,0.15505104979927253,{"$f":"IF('[1]MONE(M)CAPARD'!AS214=\"\",\"\",'[1]MONE(M)CAPARD'!AS214)","v":5.98},{"$f":"IF('[1]MONE(M)CAPARD'!AT214=\"\",\"\",'[1]MONE(M)CAPARD'!AT214)","v":"n.a."},{"$f":"IF('[1]MONE(M)CAPARD'!AU214=\"\",\"\",'[1]MONE(M)CAPARD'!AU214)","v":5},{"$f":"IF('[1]MONE(M)CAPARD'!AV214=\"\",\"\",'[1]MONE(M)CAPARD'!AV214)","v":6},{"$f":"IF('[1]MONE(M)CAPARD'!AW214=\"\",\"\",'[1]MONE(M)CAPARD'!AW214)","v":"n.a."},{"$f":"IF('[1]MONE(M)CAPARD'!AX214=\"\",\"\",'[1]MONE(M)CAPARD'!AX214)","v":8},{"$f":"IF('[1]MONE(M)CAPARD'!AY214=\"\",\"\",'[1]MONE(M)CAPARD'!AY214)","v":"n.a."},{"$f":"IF('[1]FISCAL(M)'!$K214=\"\",\"\",'[1]FISCAL(M)'!$K214)","v":381.52190527661025},{"$f":"IF('[1]FISCAL(M)'!$L214=\"\",\"\",'[1]FISCAL(M)'!$L214)","v":260.26903452661031},{"$f":"IF('[1]FISCAL(M)'!$AY214=\"\",\"\",'[1]FISCAL(M)'!$AY214)","v":"n.d."},{"$f":"IF('[1]FISCAL(M)'!$BI214=\"\",\"\",'[1]FISCAL(M)'!$BI214)","v":"n.d."},{"$f":"IF('[1]FISCAL(M)'!$BS214=\"\",\"\",'[1]FISCAL(M)'!$BS214)","v":"n.d."},{"$f":"IF('[1]FISCAL(M)'!$AZ214=\"\",\"\",'[1]FISCAL(M)'!$AZ214)","v":"n.d."},{"$f":"IF('[1]FISCAL(M)'!$BJ214=\"\",\"\",'[1]FISCAL(M)'!$BJ214)","v":"n.d."},{"$f":"IF('[1]FISCAL(M)'!$BT214=\"\",\"\",'[1]FISCAL(M)'!$BT214)","v":"n.d."},{"$f":"IF('[2]MONE(M)'!$AO214=\"\",\"\",'[2]MONE(M)'!$AO214)","v":4522219.6535648387},{"$f":"IF('[3]MONE(M)'!$AO214=\"\",\"\",'[3]MONE(M)'!$AO214)","v":8184.1455731300002},{"$f":"IF('[4]MONE(M)'!$AO214=\"\",\"\",'[4]MONE(M)'!$AO214)","v":68525.592850636633},{"$f":"IF('[5]MONE(M)'!$AO214=\"\",\"\",'[5]MONE(M)'!$AO214)","v":94990.763623850857},{"$f":"IF('[6]MONE(M)'!$AO214=\"\",\"\",'[6]MONE(M)'!$AO214)","v":32193.650927890289},{"$f":"IF('[7]MONE(M)'!$AO214=\"\",\"\",'[7]MONE(M)'!$AO214)","v":231239.89426331999},{"$f":"IF('[8]MONE(M)'!$AO214=\"\",\"\",'[8]MONE(M)'!$AO214)","v":14317.807770980002},29.358918626217289,8.7510340740641457,21.412638655662452,29.18861974420366,30.725134704000201,15.122931317549604,12.545041612789687,{"$f":"IF('[1]FISCAL(M)'!$K214=\"\",\"\",'[1]FISCAL(M)'!$K214)","v":381.52190527661025},{"$f":"+'[1]REAL(A)'!$AO$27","v":"n.d."},"n.d.",{"$f":"IF('[1]FISCAL(M)'!$L214=\"\",\"\",'[1]FISCAL(M)'!$L214)","v":260.26903452661031},{"$f":"+'[1]REAL(A)'!$AP$27","v":"n.d."},"n.d.",54815.010200825542,{"$f":"'[1]Gráfico REM'!BG208","v":11426.547637973181},{"$f":"'[1]Gráfico REM'!BH208","v":39482.799236943771},{"$f":"'[1]Gráfico REM'!BI208","v":3905.6633259085875},{"$f":"+((CS207/CS195)-1)*100","v":12.426725098669756},-3.5480410013182806,19.284398261246196,2.5212782841844472,79740.336129575546,{"$f":"'[1]Gráfico REM'!BK208","v":11907.94690004318},{"$f":"'[1]Gráfico REM'!BL208","v":53800.607007923769},{"$f":"'[1]Gráfico REM'!BM208","v":14031.782221608588},{"$f":"+((DA207/DA195)-1)*100","v":13.388952935066412},-3.5385804249104091,17.413290989123233,15.4094017233793]
[2007,"febrero","2007-febrero",{"$f":"IF('[1]REAL IPC(M)'!$AL215=\"\",\"\",+'[1]REAL IPC(M)'!$AL215)","v":6.886197443316644},{"$f":"IF('[1]REAL IPC(M)'!$BE215=\"\",\"\",+'[1]REAL IPC(M)'!$BE215)","v":8.9593743567007333},{"$f":"IF('[1]REAL IPC(M)'!$AM215=\"\",\"\",+'[1]REAL IPC(M)'!$AM215)","v":6.385891550035816},{"$f":"IF('[1]REAL IPC(M)'!$BI215=\"\",\"\",+'[1]REAL IPC(M)'!$BI215)","v":8.5130645068136843},{"$f":"IF('[1]REAL IMAE(M)'!BJ215=\"\",\"\",'[1]REAL IMAE(M)'!BJ215)","v":"n.d."},{"$f":"IF('[1]REAL IMAE(M)'!BK215=\"\",\"\",'[1]REAL IMAE(M)'!BK215)","v":"n.d."},{"$f":"IF('[1]REAL IMAE(M)'!BN215=\"\",\"\",'[1]REAL IMAE(M)'!BN215)","v":"n.d."},{"$f":"IF('[1]REAL IMAE(M)'!BO215=\"\",\"\",'[1]REAL IMAE(M)'!BO215)","v":"n.d."},{"$f":"IF('[1]EXT RIN(M)'!$K215=\"\",\"\",'[1]EXT RIN(M)'!$K215)","v":14601.90018196993},"",{"$f":"IF('[1]EXT RIN(M)'!$L215=\"\",\"\",'[1]EXT RIN(M)'!$L215)","v":15872.250847542169},"",{"$f":"IF('[1]MONE(M)CARD'!EG215=\"\",\"\",'[1]MONE(M)CARD'!EG215)","v":15260.589332466478},{"$f":"IF('[1]MONE(M)CARD'!EK215=\"\",\"\",'[1]MONE(M)CARD'!EK215)","v":26765.68754400294},{"$f":"IF('[1]MONE(M)CARD'!EP215=\"\",\"\",'[1]MONE(M)CARD'!EP215)","v":14006.932669671427},{"$f":"IF('[1]MONE(M)CARD'!ES215=\"\",\"\",'[1]MONE(M)CARD'!ES215)","v":25.401650211419579},{"$f":"IF('[1]MONE(M)CARD'!EV215=\"\",\"\",'[1]MONE(M)CARD'!EV215)","v":14.712756494497814},{"$f":"IF('[1]MONE(M)CARD'!EZ215=\"\",\"\",'[1]MONE(M)CARD'!EZ215)","v":12.460917126528415},{"$f":"IF('[1]MONE(M)CAPARD'!FC215=\"\",\"\",'[1]MONE(M)CAPARD'!FC215)","v":17736.159580406478},{"$f":"IF('[1]MONE(M)CAPARD'!FG215=\"\",\"\",'[1]MONE(M)CAPARD'!FG215)","v":39459.215928542952},{"$f":"IF('[1]MONE(M)CAPARD'!FL215=\"\",\"\",'[1]MONE(M)CAPARD'!FL215)","v":14006.93266967142},{"$f":"IF('[1]MONE(M)CAPARD'!FO215=\"\",\"\",'[1]MONE(M)CAPARD'!FO215)","v":27.064235296912422},{"$f":"IF('[1]MONE(M)CAPARD'!FR215=\"\",\"\",'[1]MONE(M)CAPARD'!FR215)","v":17.231463605103837},{"$f":"IF('[1]MONE(M)CAPARD'!FV215=\"\",\"\",'[1]MONE(M)CAPARD'!FV215)","v":14.885187157732528},{"$f":"IF('[1]MONE(M)CARD'!FV215=\"\",\"\",'[1]MONE(M)CARD'!FV215)","v":1647.9673387062492},{"$f":"IF('[1]MONE(M)CARD'!GD215=\"\",\"\",'[1]MONE(M)CARD'!GD215)","v":47.504525195449546},{"$f":"IF('[1]MONE(M)CARD'!GE215=\"\",\"\",'[1]MONE(M)CARD'!GE215)","v":4480.9618369133386},14.458928872011434,{"$f":"IF('[9]II.2.Balance OSD-Activos'!J73=\"\",\"\",'[9]II.2.Balance OSD-Activos'!J73)","v":233.15616411160542},{"$f":"IF('[9]II.2.Balance OSD-Activos'!N73=\"\",\"\",'[9]II.2.Balance OSD-Activos'!N73)","v":356.38634861277376},{"$f":"IF('[9]II.2.Balance OSD-Activos'!R73=\"\",\"\",'[9]II.2.Balance OSD-Activos'!R73)","v":17429.440883929325},{"$f":"IF('[9]II.2.Balance OSD-Activos'!S73=\"\",\"\",'[9]II.2.Balance OSD-Activos'!S73)","v":20853.261252807279},17662.597048040931,38872.244649460983,2.8051092484917106,16.672345730108184,44.110173237011786,16.883252712424547,22.293155681106349,19.836268790755263,-0.48435748921484745,{"$f":"IF('[1]MONE(M)CAPARD'!GS215=\"\",\"\",'[1]MONE(M)CAPARD'!GS215)","v":7046.3086361893475},{"$f":"IF('[1]MONE(M)CARD'!HA215=\"\",\"\",'[1]MONE(M)CAPARD'!HA215)","v":4790.1804184333387},{"$f":"IF('[1]MONE(M)CAPARD'!HB215=\"\",\"\",'[1]MONE(M)CAPARD'!HB215)","v":2256.1282177560088},"n.d.",{"$f":"IF('[10]II.2.Balance OSD-Activos'!J73=\"\",\"\",'[10]II.2.Balance OSD-Activos'!J73)","v":406.7098505116054},{"$f":"IF('[10]II.2.Balance OSD-Activos'!N73=\"\",\"\",'[10]II.2.Balance OSD-Activos'!N73)","v":816.67123816277365},{"$f":"IF('[10]II.2.Balance OSD-Activos'!R73=\"\",\"\",'[10]II.2.Balance OSD-Activos'!R73)","v":24436.15203949932},{"$f":"IF('[10]II.2.Balance OSD-Activos'!S73=\"\",\"\",'[10]II.2.Balance OSD-Activos'!S73)","v":27830.362874917279},24842.861890010925,53489.89600309098,-8.5828971083530607,15.633562521323574,26.495486103292443,16.145642730073018,20.354609465196717,18.200892980973691,-0.27383467973339037,{"$f":"IF('[1]MONE(M)CAPARD'!AS215=\"\",\"\",'[1]MONE(M)CAPARD'!AS215)","v":5.98},{"$f":"IF('[1]MONE(M)CAPARD'!AT215=\"\",\"\",'[1]MONE(M)CAPARD'!AT215)","v":"n.a."},{"$f":"IF('[1]MONE(M)CAPARD'!AU215=\"\",\"\",'[1]MONE(M)CAPARD'!AU215)","v":5},{"$f":"IF('[1]MONE(M)CAPARD'!AV215=\"\",\"\",'[1]MONE(M)CAPARD'!AV215)","v":6},{"$f":"IF('[1]MONE(M)CAPARD'!AW215=\"\",\"\",'[1]MONE(M)CAPARD'!AW215)","v":"n.a."},{"$f":"IF('[1]MONE(M)CAPARD'!AX215=\"\",\"\",'[1]MONE(M)CAPARD'!AX215)","v":8},{"$f":"IF('[1]MONE(M)CAPARD'!AY215=\"\",\"\",'[1]MONE(M)CAPARD'!AY215)","v":"n.a."},{"$f":"IF('[1]FISCAL(M)'!$K215=\"\",\"\",'[1]FISCAL(M)'!$K215)","v":331.87301984973857},{"$f":"IF('[1]FISCAL(M)'!$L215=\"\",\"\",'[1]FISCAL(M)'!$L215)","v":266.10079497391848},{"$f":"IF('[1]FISCAL(M)'!$AY215=\"\",\"\",'[1]FISCAL(M)'!$AY215)","v":"n.d."},{"$f":"IF('[1]FISCAL(M)'!$BI215=\"\",\"\",'[1]FISCAL(M)'!$BI215)","v":"n.d."},{"$f":"IF('[1]FISCAL(M)'!$BS215=\"\",\"\",'[1]FISCAL(M)'!$BS215)","v":"n.d."},{"$f":"IF('[1]FISCAL(M)'!$AZ215=\"\",\"\",'[1]FISCAL(M)'!$AZ215)","v":"n.d."},{"$f":"IF('[1]FISCAL(M)'!$BJ215=\"\",\"\",'[1]FISCAL(M)'!$BJ215)","v":"n.d."},{"$f":"IF('[1]FISCAL(M)'!$BT215=\"\",\"\",'[1]FISCAL(M)'!$BT215)","v":"n.d."},{"$f":"IF('[2]MONE(M)'!$AO215=\"\",\"\",'[2]MONE(M)'!$AO215)","v":4618994.5735645238},{"$f":"IF('[3]MONE(M)'!$AO215=\"\",\"\",'[3]MONE(M)'!$AO215)","v":8186.0599720800001},{"$f":"IF('[4]MONE(M)'!$AO215=\"\",\"\",'[4]MONE(M)'!$AO215)","v":69179.706225213828},{"$f":"IF('[5]MONE(M)'!$AO215=\"\",\"\",'[5]MONE(M)'!$AO215)","v":97347.278600163874},{"$f":"IF('[6]MONE(M)'!$AO215=\"\",\"\",'[6]MONE(M)'!$AO215)","v":32643.571586732662},{"$f":"IF('[7]MONE(M)'!$AO215=\"\",\"\",'[7]MONE(M)'!$AO215)","v":232746.76703711},{"$f":"IF('[8]MONE(M)'!$AO215=\"\",\"\",'[8]MONE(M)'!$AO215)","v":14438.78675453},30.88127372572178,7.7820471013881898,20.819311494565707,30.183824428992324,29.263086504986614,16.18320684115535,13.170981854696183,{"$f":"IF('[1]FISCAL(M)'!$K215=\"\",\"\",'[1]FISCAL(M)'!$K215)","v":331.87301984973857},{"$f":"+'[1]REAL(A)'!$AO$27","v":"n.d."},"n.d.",{"$f":"IF('[1]FISCAL(M)'!$L215=\"\",\"\",'[1]FISCAL(M)'!$L215)","v":266.10079497391848},{"$f":"+'[1]REAL(A)'!$AP$27","v":"n.d."},"n.d.",55362.047885097614,{"$f":"'[1]Gráfico REM'!BG209","v":11278.645849554272},{"$f":"'[1]Gráfico REM'!BH209","v":40017.438477884411},{"$f":"'[1]Gráfico REM'!BI209","v":4065.9635576589249},12.437879961238174,-3.9974055668727138,18.754220911031517,7.2268245332677283,80451.720028217605,{"$f":"'[1]Gráfico REM'!BK209","v":11779.279510144272},{"$f":"'[1]Gráfico REM'!BL209","v":54456.225232414406},{"$f":"'[1]Gráfico REM'!BM209","v":14216.215285658925},13.30702526103671,-3.944967934654231,17.22087804052974,15.728016774521535]
[2007,"marzo","2007-marzo",{"$f":"IF('[1]REAL IPC(M)'!$AL216=\"\",\"\",+'[1]REAL IPC(M)'!$AL216)","v":7.4565976062542338},{"$f":"IF('[1]REAL IPC(M)'!$BE216=\"\",\"\",+'[1]REAL IPC(M)'!$BE216)","v":8.9075286953532071},{"$f":"IF('[1]REAL IPC(M)'!$AM216=\"\",\"\",+'[1]REAL IPC(M)'!$AM216)","v":6.9498674090389567},{"$f":"IF('[1]REAL IPC(M)'!$BI216=\"\",\"\",+'[1]REAL IPC(M)'!$BI216)","v":8.4636452329943204},{"$f":"IF('[1]REAL IMAE(M)'!BJ216=\"\",\"\",'[1]REAL IMAE(M)'!BJ216)","v":"n.d."},{"$f":"IF('[1]REAL IMAE(M)'!BK216=\"\",\"\",'[1]REAL IMAE(M)'!BK216)","v":"n.d."},{"$f":"IF('[1]REAL IMAE(M)'!BN216=\"\",\"\",'[1]REAL IMAE(M)'!BN216)","v":"n.d."},{"$f":"IF('[1]REAL IMAE(M)'!BO216=\"\",\"\",'[1]REAL IMAE(M)'!BO216)","v":"n.d."},{"$f":"IF('[1]EXT RIN(M)'!$K216=\"\",\"\",'[1]EXT RIN(M)'!$K216)","v":15144.447925935823},"",{"$f":"IF('[1]EXT RIN(M)'!$L216=\"\",\"\",'[1]EXT RIN(M)'!$L216)","v":16264.326981243054},"",{"$f":"IF('[1]MONE(M)CARD'!EG216=\"\",\"\",'[1]MONE(M)CARD'!EG216)","v":15750.011366811417},{"$f":"IF('[1]MONE(M)CARD'!EK216=\"\",\"\",'[1]MONE(M)CARD'!EK216)","v":27824.661651918195},{"$f":"IF('[1]MONE(M)CARD'!EP216=\"\",\"\",'[1]MONE(M)CARD'!EP216)","v":14196.73087244849},{"$f":"IF('[1]MONE(M)CARD'!ES216=\"\",\"\",'[1]MONE(M)CARD'!ES216)","v":25.304586335215063},{"$f":"IF('[1]MONE(M)CARD'!EV216=\"\",\"\",'[1]MONE(M)CARD'!EV216)","v":16.261145099028873},{"$f":"IF('[1]MONE(M)CARD'!EZ216=\"\",\"\",'[1]MONE(M)CARD'!EZ216)","v":13.53137224688281},{"$f":"IF('[1]MONE(M)CAPARD'!FC216=\"\",\"\",'[1]MONE(M)CAPARD'!FC216)","v":18279.478555731417},{"$f":"IF('[1]MONE(M)CAPARD'!FG216=\"\",\"\",'[1]MONE(M)CAPARD'!FG216)","v":40861.286198818198},{"$f":"IF('[1]MONE(M)CAPARD'!FL216=\"\",\"\",'[1]MONE(M)CAPARD'!FL216)","v":14196.730872448505},{"$f":"IF('[1]MONE(M)CAPARD'!FO216=\"\",\"\",'[1]MONE(M)CAPARD'!FO216)","v":26.891126429893795},{"$f":"IF('[1]MONE(M)CAPARD'!FR216=\"\",\"\",'[1]MONE(M)CAPARD'!FR216)","v":18.756531032563451},{"$f":"IF('[1]MONE(M)CAPARD'!FV216=\"\",\"\",'[1]MONE(M)CAPARD'!FV216)","v":16.029575338335555},{"$f":"IF('[1]MONE(M)CARD'!FV216=\"\",\"\",'[1]MONE(M)CARD'!FV216)","v":1747.4468335060665},{"$f":"IF('[1]MONE(M)CARD'!GD216=\"\",\"\",'[1]MONE(M)CARD'!GD216)","v":39.669310626014166},{"$f":"IF('[1]MONE(M)CARD'!GE216=\"\",\"\",'[1]MONE(M)CARD'!GE216)","v":4693.5014422545128},19.001559673808298,{"$f":"IF('[9]II.2.Balance OSD-Activos'!J74=\"\",\"\",'[9]II.2.Balance OSD-Activos'!J74)","v":243.98050603893734},{"$f":"IF('[9]II.2.Balance OSD-Activos'!N74=\"\",\"\",'[9]II.2.Balance OSD-Activos'!N74)","v":379.54913704749879},{"$f":"IF('[9]II.2.Balance OSD-Activos'!R74=\"\",\"\",'[9]II.2.Balance OSD-Activos'!R74)","v":17933.656818663141},{"$f":"IF('[9]II.2.Balance OSD-Activos'!S74=\"\",\"\",'[9]II.2.Balance OSD-Activos'!S74)","v":21049.51716441942},18177.637324702078,39606.703626168994,41.573602397651001,18.689248836463147,52.446145144834965,18.428813435854764,20.993316698070696,20.160326625599701,0.32405783484443873,{"$f":"IF('[1]MONE(M)CAPARD'!GS216=\"\",\"\",'[1]MONE(M)CAPARD'!GS216)","v":7279.0039832669308},{"$f":"IF('[1]MONE(M)CARD'!HA216=\"\",\"\",'[1]MONE(M)CAPARD'!HA216)","v":5006.706459854513},{"$f":"IF('[1]MONE(M)CAPARD'!HB216=\"\",\"\",'[1]MONE(M)CAPARD'!HB216)","v":2272.2975234124178},"n.d.",{"$f":"IF('[10]II.2.Balance OSD-Activos'!J74=\"\",\"\",'[10]II.2.Balance OSD-Activos'!J74)","v":416.24261482893735},{"$f":"IF('[10]II.2.Balance OSD-Activos'!N74=\"\",\"\",'[10]II.2.Balance OSD-Activos'!N74)","v":792.19883802749871},{"$f":"IF('[10]II.2.Balance OSD-Activos'!R74=\"\",\"\",'[10]II.2.Balance OSD-Activos'!R74)","v":25044.720086273141},{"$f":"IF('[10]II.2.Balance OSD-Activos'!S74=\"\",\"\",'[10]II.2.Balance OSD-Activos'!S74)","v":28105.848417789421},25460.962701102078,54359.009956918999,-4.3636554734415522,17.093987025986124,19.67415596710822,17.532261816003004,19.400847135948563,18.31303652881855,0.11214354784485892,{"$f":"IF('[1]MONE(M)CAPARD'!AS216=\"\",\"\",'[1]MONE(M)CAPARD'!AS216)","v":5.98},{"$f":"IF('[1]MONE(M)CAPARD'!AT216=\"\",\"\",'[1]MONE(M)CAPARD'!AT216)","v":"n.a."},{"$f":"IF('[1]MONE(M)CAPARD'!AU216=\"\",\"\",'[1]MONE(M)CAPARD'!AU216)","v":5.25},{"$f":"IF('[1]MONE(M)CAPARD'!AV216=\"\",\"\",'[1]MONE(M)CAPARD'!AV216)","v":6},{"$f":"IF('[1]MONE(M)CAPARD'!AW216=\"\",\"\",'[1]MONE(M)CAPARD'!AW216)","v":"n.a."},{"$f":"IF('[1]MONE(M)CAPARD'!AX216=\"\",\"\",'[1]MONE(M)CAPARD'!AX216)","v":8},{"$f":"IF('[1]MONE(M)CAPARD'!AY216=\"\",\"\",'[1]MONE(M)CAPARD'!AY216)","v":"n.a."},{"$f":"IF('[1]FISCAL(M)'!$K216=\"\",\"\",'[1]FISCAL(M)'!$K216)","v":5.4426382175495718},{"$f":"IF('[1]FISCAL(M)'!$L216=\"\",\"\",'[1]FISCAL(M)'!$L216)","v":323.42454831554943},{"$f":"IF('[1]FISCAL(M)'!$AY216=\"\",\"\",'[1]FISCAL(M)'!$AY216)","v":49432.377970433532},{"$f":"IF('[1]FISCAL(M)'!$BI216=\"\",\"\",'[1]FISCAL(M)'!$BI216)","v":22419.306970433532},{"$f":"IF('[1]FISCAL(M)'!$BS216=\"\",\"\",'[1]FISCAL(M)'!$BS216)","v":27013.070999999996},{"$f":"IF('[1]FISCAL(M)'!$AZ216=\"\",\"\",'[1]FISCAL(M)'!$AZ216)","v":60171.72370401353},{"$f":"IF('[1]FISCAL(M)'!$BJ216=\"\",\"\",'[1]FISCAL(M)'!$BJ216)","v":25336.43677599353},{"$f":"IF('[1]FISCAL(M)'!$BT216=\"\",\"\",'[1]FISCAL(M)'!$BT216)","v":34835.286928019996},{"$f":"IF('[2]MONE(M)'!$AO216=\"\",\"\",'[2]MONE(M)'!$AO216)","v":4716069.2168245185},{"$f":"IF('[3]MONE(M)'!$AO216=\"\",\"\",'[3]MONE(M)'!$AO216)","v":8296.4514341200011},{"$f":"IF('[4]MONE(M)'!$AO216=\"\",\"\",'[4]MONE(M)'!$AO216)","v":69257.868007645448},{"$f":"IF('[5]MONE(M)'!$AO216=\"\",\"\",'[5]MONE(M)'!$AO216)","v":99819.638644498744},{"$f":"IF('[6]MONE(M)'!$AO216=\"\",\"\",'[6]MONE(M)'!$AO216)","v":33164.83861275974},{"$f":"IF('[7]MONE(M)'!$AO216=\"\",\"\",'[7]MONE(M)'!$AO216)","v":233788.40120661998},{"$f":"IF('[8]MONE(M)'!$AO216=\"\",\"\",'[8]MONE(M)'!$AO216)","v":14625.204716900002},30.308267238780708,8.5716971889342908,18.887427908567211,30.625405505892921,28.142359592739673,15.998120714222019,13.407400263614221,{"$f":"IF('[1]FISCAL(M)'!$K216=\"\",\"\",'[1]FISCAL(M)'!$K216)","v":5.4426382175495718},{"$f":"+'[1]REAL(A)'!$AO$27","v":"n.d."},"n.d.",{"$f":"IF('[1]FISCAL(M)'!$L216=\"\",\"\",'[1]FISCAL(M)'!$L216)","v":323.42454831554943},{"$f":"+'[1]REAL(A)'!$AP$27","v":"n.d."},"n.d.",56200.946617284601,{"$f":"'[1]Gráfico REM'!BG210","v":11406.167155582803},{"$f":"'[1]Gráfico REM'!BH210","v":40767.655730020568},{"$f":"'[1]Gráfico REM'!BI210","v":4027.1237316812299},11.876469122916934,-5.0232903477313684,19.044680139538951,1.1913583792828808,81944.557714010603,{"$f":"'[1]Gráfico REM'!BK210","v":11933.899658592803},{"$f":"'[1]Gráfico REM'!BL210","v":55392.860446920567},{"$f":"'[1]Gráfico REM'!BM210","v":14617.797608497232},13.236962824542076,-4.6799968598970736,17.502540782023736,15.065540214335993]
[2007,"abril","2007-abril",{"$f":"IF('[1]REAL IPC(M)'!$AL217=\"\",\"\",+'[1]REAL IPC(M)'!$AL217)","v":7.4657121468588494},{"$f":"IF('[1]REAL IPC(M)'!$BE217=\"\",\"\",+'[1]REAL IPC(M)'!$BE217)","v":8.8605406143374754},{"$f":"IF('[1]REAL IPC(M)'!$AM217=\"\",\"\",+'[1]REAL IPC(M)'!$AM217)","v":6.9354169218116102},{"$f":"IF('[1]REAL IPC(M)'!$BI217=\"\",\"\",+'[1]REAL IPC(M)'!$BI217)","v":8.4197586446467234},{"$f":"IF('[1]REAL IMAE(M)'!BJ217=\"\",\"\",'[1]REAL IMAE(M)'!BJ217)","v":"n.d."},{"$f":"IF('[1]REAL IMAE(M)'!BK217=\"\",\"\",'[1]REAL IMAE(M)'!BK217)","v":"n.d."},{"$f":"IF('[1]REAL IMAE(M)'!BN217=\"\",\"\",'[1]REAL IMAE(M)'!BN217)","v":"n.d."},{"$f":"IF('[1]REAL IMAE(M)'!BO217=\"\",\"\",'[1]REAL IMAE(M)'!BO217)","v":"n.d."},{"$f":"IF('[1]EXT RIN(M)'!$K217=\"\",\"\",'[1]EXT RIN(M)'!$K217)","v":15581.758713182253},"",{"$f":"IF('[1]EXT RIN(M)'!$L217=\"\",\"\",'[1]EXT RIN(M)'!$L217)","v":17230.124370508533},"",{"$f":"IF('[1]MONE(M)CARD'!EG217=\"\",\"\",'[1]MONE(M)CARD'!EG217)","v":15462.441001855936},{"$f":"IF('[1]MONE(M)CARD'!EK217=\"\",\"\",'[1]MONE(M)CARD'!EK217)","v":28203.801935367701},{"$f":"IF('[1]MONE(M)CARD'!EP217=\"\",\"\",'[1]MONE(M)CARD'!EP217)","v":14392.777102383479},{"$f":"IF('[1]MONE(M)CARD'!ES217=\"\",\"\",'[1]MONE(M)CARD'!ES217)","v":22.066207047418864},{"$f":"IF('[1]MONE(M)CARD'!EV217=\"\",\"\",'[1]MONE(M)CARD'!EV217)","v":15.365947897802791},{"$f":"IF('[1]MONE(M)CARD'!EZ217=\"\",\"\",'[1]MONE(M)CARD'!EZ217)","v":12.88550071244423},{"$f":"IF('[1]MONE(M)CAPARD'!FC217=\"\",\"\",'[1]MONE(M)CAPARD'!FC217)","v":18084.854773265939},{"$f":"IF('[1]MONE(M)CAPARD'!FG217=\"\",\"\",'[1]MONE(M)CAPARD'!FG217)","v":40577.861852477712},{"$f":"IF('[1]MONE(M)CAPARD'!FL217=\"\",\"\",'[1]MONE(M)CAPARD'!FL217)","v":14392.777102383479},{"$f":"IF('[1]MONE(M)CAPARD'!FO217=\"\",\"\",'[1]MONE(M)CAPARD'!FO217)","v":24.761387655096033},{"$f":"IF('[1]MONE(M)CAPARD'!FR217=\"\",\"\",'[1]MONE(M)CAPARD'!FR217)","v":16.539864758302269},{"$f":"IF('[1]MONE(M)CAPARD'!FV217=\"\",\"\",'[1]MONE(M)CAPARD'!FV217)","v":14.294549372340249},{"$f":"IF('[1]MONE(M)CARD'!FV217=\"\",\"\",'[1]MONE(M)CARD'!FV217)","v":1810.7278723810434},{"$f":"IF('[1]MONE(M)CARD'!GD217=\"\",\"\",'[1]MONE(M)CARD'!GD217)","v":180.06329640875052},{"$f":"IF('[1]MONE(M)CARD'!GE217=\"\",\"\",'[1]MONE(M)CARD'!GE217)","v":5030.9167207979335},16.416381559621552,{"$f":"IF('[9]II.2.Balance OSD-Activos'!J75=\"\",\"\",'[9]II.2.Balance OSD-Activos'!J75)","v":220.94027878616549},{"$f":"IF('[9]II.2.Balance OSD-Activos'!N75=\"\",\"\",'[9]II.2.Balance OSD-Activos'!N75)","v":387.68378535425836},{"$f":"IF('[9]II.2.Balance OSD-Activos'!R75=\"\",\"\",'[9]II.2.Balance OSD-Activos'!R75)","v":18326.192012272506},{"$f":"IF('[9]II.2.Balance OSD-Activos'!S75=\"\",\"\",'[9]II.2.Balance OSD-Activos'!S75)","v":21251.749445705376},18547.132291058671,{"$f":"IF(OR(AF210=\"\",AG210=\"\",AH210=\"\",AI210=\"\"),\"\",SUM(AF210:AI210))","v":40186.565522118304},30.754365793489068,19.134601618926638,48.702473403862115,19.007099720298946,20.341850542267959,20.001410849318567,-0.15891577628113396,{"$f":"IF('[1]MONE(M)CAPARD'!GS217=\"\",\"\",'[1]MONE(M)CAPARD'!GS217)","v":7429.7202678552139},{"$f":"IF('[1]MONE(M)CARD'!HA217=\"\",\"\",'[1]MONE(M)CAPARD'!HA217)","v":5331.2034530879337},{"$f":"IF('[1]MONE(M)CAPARD'!HB217=\"\",\"\",'[1]MONE(M)CAPARD'!HB217)","v":2098.5168147672803},"n.d.",{"$f":"IF('[10]II.2.Balance OSD-Activos'!J75=\"\",\"\",'[10]II.2.Balance OSD-Activos'!J75)","v":399.43766905616548},{"$f":"IF('[10]II.2.Balance OSD-Activos'!N75=\"\",\"\",'[10]II.2.Balance OSD-Activos'!N75)","v":868.49166407425832},{"$f":"IF('[10]II.2.Balance OSD-Activos'!R75=\"\",\"\",'[10]II.2.Balance OSD-Activos'!R75)","v":25148.650144292504},{"$f":"IF('[10]II.2.Balance OSD-Activos'!S75=\"\",\"\",'[10]II.2.Balance OSD-Activos'!S75)","v":28095.123851245375},{"$f":"IFERROR(+AW210+AY210,\"n.d.\")","v":25548.087813348669},54511.7033286683,-8.5921492844232343,15.646506394974825,28.496311025816112,16.135637045468833,17.735354985751339,16.901720888051219,-1.4113156407673308,{"$f":"IF('[1]MONE(M)CAPARD'!AS217=\"\",\"\",'[1]MONE(M)CAPARD'!AS217)","v":5.98},{"$f":"IF('[1]MONE(M)CAPARD'!AT217=\"\",\"\",'[1]MONE(M)CAPARD'!AT217)","v":"n.a."},{"$f":"IF('[1]MONE(M)CAPARD'!AU217=\"\",\"\",'[1]MONE(M)CAPARD'!AU217)","v":5.5},{"$f":"IF('[1]MONE(M)CAPARD'!AV217=\"\",\"\",'[1]MONE(M)CAPARD'!AV217)","v":6},{"$f":"IF('[1]MONE(M)CAPARD'!AW217=\"\",\"\",'[1]MONE(M)CAPARD'!AW217)","v":"n.a."},{"$f":"IF('[1]MONE(M)CAPARD'!AX217=\"\",\"\",'[1]MONE(M)CAPARD'!AX217)","v":7},{"$f":"IF('[1]MONE(M)CAPARD'!AY217=\"\",\"\",'[1]MONE(M)CAPARD'!AY217)","v":"n.a."},{"$f":"IF('[1]FISCAL(M)'!$K217=\"\",\"\",'[1]FISCAL(M)'!$K217)","v":418.37683205423519},{"$f":"IF('[1]FISCAL(M)'!$L217=\"\",\"\",'[1]FISCAL(M)'!$L217)","v":316.70683213223521},{"$f":"IF('[1]FISCAL(M)'!$AY217=\"\",\"\",'[1]FISCAL(M)'!$AY217)","v":"n.d."},{"$f":"IF('[1]FISCAL(M)'!$BI217=\"\",\"\",'[1]FISCAL(M)'!$BI217)","v":"n.d."},{"$f":"IF('[1]FISCAL(M)'!$BS217=\"\",\"\",'[1]FISCAL(M)'!$BS217)","v":"n.d."},{"$f":"IF('[1]FISCAL(M)'!$AZ217=\"\",\"\",'[1]FISCAL(M)'!$AZ217)","v":"n.d."},{"$f":"IF('[1]FISCAL(M)'!$BJ217=\"\",\"\",'[1]FISCAL(M)'!$BJ217)","v":"n.d."},{"$f":"IF('[1]FISCAL(M)'!$BT217=\"\",\"\",'[1]FISCAL(M)'!$BT217)","v":"n.d."},{"$f":"IF('[2]MONE(M)'!$AO217=\"\",\"\",'[2]MONE(M)'!$AO217)","v":4801259.8460711781},{"$f":"IF('[3]MONE(M)'!$AO217=\"\",\"\",'[3]MONE(M)'!$AO217)","v":8341.9750857100007},{"$f":"IF('[4]MONE(M)'!$AO217=\"\",\"\",'[4]MONE(M)'!$AO217)","v":69102.012597915294},{"$f":"IF('[5]MONE(M)'!$AO217=\"\",\"\",'[5]MONE(M)'!$AO217)","v":102274.88345151802},{"$f":"IF('[6]MONE(M)'!$AO217=\"\",\"\",'[6]MONE(M)'!$AO217)","v":33729.893669919482},{"$f":"IF('[7]MONE(M)'!$AO217=\"\",\"\",'[7]MONE(M)'!$AO217)","v":239405.38668714999},{"$f":"IF('[8]MONE(M)'!$AO217=\"\",\"\",'[8]MONE(M)'!$AO217)","v":14115.317206569998},30.64422951138188,8.0040097431943291,16.884218131623019,30.364243355315246,27.41491833764147,17.072849164885163,8.2444632926105257,{"$f":"IF('[1]FISCAL(M)'!$K217=\"\",\"\",'[1]FISCAL(M)'!$K217)","v":418.37683205423519},{"$f":"+'[1]REAL(A)'!$AO$27","v":"n.d."},"n.d.",{"$f":"IF('[1]FISCAL(M)'!$L217=\"\",\"\",'[1]FISCAL(M)'!$L217)","v":316.70683213223521},{"$f":"+'[1]REAL(A)'!$AP$27","v":"n.d."},"n.d.",56863.687447389893,{"$f":"'[1]Gráfico REM'!BG211","v":11527.232152154287},{"$f":"'[1]Gráfico REM'!BH211","v":41317.962015178593},{"$f":"'[1]Gráfico REM'!BI211","v":4018.4932800570118},12.238757858770665,-2.24853297134604,18.71332878687857,-1.1668888187849613,81491.871148687889,{"$f":"'[1]Gráfico REM'!BK211","v":12048.744747530287},{"$f":"'[1]Gráfico REM'!BL211","v":55433.279221748591},{"$f":"'[1]Gráfico REM'!BM211","v":14009.847179409011},11.879447701034884,-1.9342680485897157,15.860027530583798,10.248118140582596]
[2007,"mayo ","2007-mayo ",{"$f":"IF('[1]REAL IPC(M)'!$AL218=\"\",\"\",+'[1]REAL IPC(M)'!$AL218)","v":7.2586621750058811},{"$f":"IF('[1]REAL IPC(M)'!$BE218=\"\",\"\",+'[1]REAL IPC(M)'!$BE218)","v":8.8174925978291352},{"$f":"IF('[1]REAL IPC(M)'!$AM218=\"\",\"\",+'[1]REAL IPC(M)'!$AM218)","v":6.7684619512285993},{"$f":"IF('[1]REAL IPC(M)'!$BI218=\"\",\"\",+'[1]REAL IPC(M)'!$BI218)","v":8.3804584969957787},{"$f":"IF('[1]REAL IMAE(M)'!BJ218=\"\",\"\",'[1]REAL IMAE(M)'!BJ218)","v":"n.d."},{"$f":"IF('[1]REAL IMAE(M)'!BK218=\"\",\"\",'[1]REAL IMAE(M)'!BK218)","v":"n.d."},{"$f":"IF('[1]REAL IMAE(M)'!BN218=\"\",\"\",'[1]REAL IMAE(M)'!BN218)","v":"n.d."},{"$f":"IF('[1]REAL IMAE(M)'!BO218=\"\",\"\",'[1]REAL IMAE(M)'!BO218)","v":"n.d."},{"$f":"IF('[1]EXT RIN(M)'!$K218=\"\",\"\",'[1]EXT RIN(M)'!$K218)","v":15791.967384072588},"",{"$f":"IF('[1]EXT RIN(M)'!$L218=\"\",\"\",'[1]EXT RIN(M)'!$L218)","v":17474.150513552489},"",{"$f":"IF('[1]MONE(M)CARD'!EG218=\"\",\"\",'[1]MONE(M)CARD'!EG218)","v":15639.342509232281},{"$f":"IF('[1]MONE(M)CARD'!EK218=\"\",\"\",'[1]MONE(M)CARD'!EK218)","v":28875.516176622274},{"$f":"IF('[1]MONE(M)CARD'!EP218=\"\",\"\",'[1]MONE(M)CARD'!EP218)","v":14458.665190486179},{"$f":"IF('[1]MONE(M)CARD'!ES218=\"\",\"\",'[1]MONE(M)CARD'!ES218)","v":25.311173088295249},{"$f":"IF('[1]MONE(M)CARD'!EV218=\"\",\"\",'[1]MONE(M)CARD'!EV218)","v":17.813970135933022},{"$f":"IF('[1]MONE(M)CARD'!EZ218=\"\",\"\",'[1]MONE(M)CARD'!EZ218)","v":14.450118252997957},{"$f":"IF('[1]MONE(M)CAPARD'!FC218=\"\",\"\",'[1]MONE(M)CAPARD'!FC218)","v":18113.874744232282},{"$f":"IF('[1]MONE(M)CAPARD'!FG218=\"\",\"\",'[1]MONE(M)CAPARD'!FG218)","v":42298.686397972269},{"$f":"IF('[1]MONE(M)CAPARD'!FL218=\"\",\"\",'[1]MONE(M)CAPARD'!FL218)","v":14458.665190486179},{"$f":"IF('[1]MONE(M)CAPARD'!FO218=\"\",\"\",'[1]MONE(M)CAPARD'!FO218)","v":26.202251812632447},{"$f":"IF('[1]MONE(M)CAPARD'!FR218=\"\",\"\",'[1]MONE(M)CAPARD'!FR218)","v":19.528385046281137},{"$f":"IF('[1]MONE(M)CAPARD'!FV218=\"\",\"\",'[1]MONE(M)CAPARD'!FV218)","v":16.4656096449622},{"$f":"IF('[1]MONE(M)CARD'!FV218=\"\",\"\",'[1]MONE(M)CARD'!FV218)","v":1856.5104386119033},{"$f":"IF('[1]MONE(M)CARD'!GD218=\"\",\"\",'[1]MONE(M)CARD'!GD218)","v":37.365635919156873},{"$f":"IF('[1]MONE(M)CARD'!GE218=\"\",\"\",'[1]MONE(M)CARD'!GE218)","v":4820.1858903968341},6.980788848102093,{"$f":"IF('[9]II.2.Balance OSD-Activos'!J76=\"\",\"\",'[9]II.2.Balance OSD-Activos'!J76)","v":238.58923045730864},{"$f":"IF('[9]II.2.Balance OSD-Activos'!N76=\"\",\"\",'[9]II.2.Balance OSD-Activos'!N76)","v":388.63181788588082},{"$f":"IF('[9]II.2.Balance OSD-Activos'!R76=\"\",\"\",'[9]II.2.Balance OSD-Activos'!R76)","v":18465.758141987175},{"$f":"IF('[9]II.2.Balance OSD-Activos'!S76=\"\",\"\",'[9]II.2.Balance OSD-Activos'!S76)","v":21705.592110652644},18704.347372444485,40798.571300983007,33.617977461150758,19.59054667499187,39.423946898790895,19.428550375099007,21.323552253168842,20.671093843176468,0.66968299385790075,{"$f":"IF('[1]MONE(M)CAPARD'!GS218=\"\",\"\",'[1]MONE(M)CAPARD'!GS218)","v":7508.1290461615718},{"$f":"IF('[1]MONE(M)CARD'!HA218=\"\",\"\",'[1]MONE(M)CAPARD'!HA218)","v":5167.2331416568341},{"$f":"IF('[1]MONE(M)CAPARD'!HB218=\"\",\"\",'[1]MONE(M)CAPARD'!HB218)","v":2340.8959045047377},"n.d.",{"$f":"IF('[10]II.2.Balance OSD-Activos'!J76=\"\",\"\",'[10]II.2.Balance OSD-Activos'!J76)","v":411.46820059730862},{"$f":"IF('[10]II.2.Balance OSD-Activos'!N76=\"\",\"\",'[10]II.2.Balance OSD-Activos'!N76)","v":803.5275921358807},{"$f":"IF('[10]II.2.Balance OSD-Activos'!R76=\"\",\"\",'[10]II.2.Balance OSD-Activos'!R76)","v":25954.800116487175},{"$f":"IF('[10]II.2.Balance OSD-Activos'!S76=\"\",\"\",'[10]II.2.Balance OSD-Activos'!S76)","v":28937.028395992646},26366.268317084483,56106.824305213013,-8.2236952158455061,18.093355893537243,14.270404445621555,18.63265474344955,19.800329170805387,18.910211165107071,2.0084902770558521,{"$f":"IF('[1]MONE(M)CAPARD'!AS218=\"\",\"\",'[1]MONE(M)CAPARD'!AS218)","v":5.98},{"$f":"IF('[1]MONE(M)CAPARD'!AT218=\"\",\"\",'[1]MONE(M)CAPARD'!AT218)","v":"n.a."},{"$f":"IF('[1]MONE(M)CAPARD'!AU218=\"\",\"\",'[1]MONE(M)CAPARD'!AU218)","v":5.5},{"$f":"IF('[1]MONE(M)CAPARD'!AV218=\"\",\"\",'[1]MONE(M)CAPARD'!AV218)","v":6},{"$f":"IF('[1]MONE(M)CAPARD'!AW218=\"\",\"\",'[1]MONE(M)CAPARD'!AW218)","v":"n.a."},{"$f":"IF('[1]MONE(M)CAPARD'!AX218=\"\",\"\",'[1]MONE(M)CAPARD'!AX218)","v":7},{"$f":"IF('[1]MONE(M)CAPARD'!AY218=\"\",\"\",'[1]MONE(M)CAPARD'!AY218)","v":"n.a."},{"$f":"IF('[1]FISCAL(M)'!$K218=\"\",\"\",'[1]FISCAL(M)'!$K218)","v":451.61953171437744},{"$f":"IF('[1]FISCAL(M)'!$L218=\"\",\"\",'[1]FISCAL(M)'!$L218)","v":301.25143767837744},{"$f":"IF('[1]FISCAL(M)'!$AY218=\"\",\"\",'[1]FISCAL(M)'!$AY218)","v":"n.d."},{"$f":"IF('[1]FISCAL(M)'!$BI218=\"\",\"\",'[1]FISCAL(M)'!$BI218)","v":"n.d."},{"$f":"IF('[1]FISCAL(M)'!$BS218=\"\",\"\",'[1]FISCAL(M)'!$BS218)","v":"n.d."},{"$f":"IF('[1]FISCAL(M)'!$AZ218=\"\",\"\",'[1]FISCAL(M)'!$AZ218)","v":"n.d."},{"$f":"IF('[1]FISCAL(M)'!$BJ218=\"\",\"\",'[1]FISCAL(M)'!$BJ218)","v":"n.d."},{"$f":"IF('[1]FISCAL(M)'!$BT218=\"\",\"\",'[1]FISCAL(M)'!$BT218)","v":"n.d."},{"$f":"IF('[2]MONE(M)'!$AO218=\"\",\"\",'[2]MONE(M)'!$AO218)","v":4929688.3884895658},{"$f":"IF('[3]MONE(M)'!$AO218=\"\",\"\",'[3]MONE(M)'!$AO218)","v":8379.4729804599992},{"$f":"IF('[4]MONE(M)'!$AO218=\"\",\"\",'[4]MONE(M)'!$AO218)","v":69403.257484660266},{"$f":"IF('[5]MONE(M)'!$AO218=\"\",\"\",'[5]MONE(M)'!$AO218)","v":104150.76775869736},{"$f":"IF('[6]MONE(M)'!$AO218=\"\",\"\",'[6]MONE(M)'!$AO218)","v":34291.579764232287},{"$f":"IF('[7]MONE(M)'!$AO218=\"\",\"\",'[7]MONE(M)'!$AO218)","v":245842.03716631001},{"$f":"IF('[8]MONE(M)'!$AO218=\"\",\"\",'[8]MONE(M)'!$AO218)","v":15177.051322940002},30.547584691232956,8.3651038955635073,16.586310051452834,29.807444212715239,27.127831939484981,18.199274136549469,14.547809901707609,{"$f":"IF('[1]FISCAL(M)'!$K218=\"\",\"\",'[1]FISCAL(M)'!$K218)","v":451.61953171437744},{"$f":"+'[1]REAL(A)'!$AO$27","v":"n.d."},"n.d.",{"$f":"IF('[1]FISCAL(M)'!$L218=\"\",\"\",'[1]FISCAL(M)'!$L218)","v":301.25143767837744},{"$f":"+'[1]REAL(A)'!$AP$27","v":"n.d."},"n.d.",57631.201824465905,{"$f":"'[1]Gráfico REM'!BG212","v":11571.077872319463},{"$f":"'[1]Gráfico REM'!BH212","v":41955.592410331061},{"$f":"'[1]Gráfico REM'!BI212","v":4104.531541815385},12.409409010093597,-2.0877646188981802,19.441817076294889,-5.0937787010846609,83775.788968387904,{"$f":"'[1]Gráfico REM'!BK212","v":12113.697041039464},{"$f":"'[1]Gráfico REM'!BL212","v":57132.643733271063},{"$f":"'[1]Gráfico REM'!BM212","v":14529.448194077388},13.02838712265415,-1.5343702851604024,18.1014122455726,8.0990557061350277]
[2007,"junio ","2007-junio ",{"$f":"IF('[1]REAL IPC(M)'!$AL219=\"\",\"\",+'[1]REAL IPC(M)'!$AL219)","v":7.0580409575329073},{"$f":"IF('[1]REAL IPC(M)'!$BE219=\"\",\"\",+'[1]REAL IPC(M)'!$BE219)","v":8.7774123826777739},{"$f":"IF('[1]REAL IPC(M)'!$AM219=\"\",\"\",+'[1]REAL IPC(M)'!$AM219)","v":6.5897876632985186},{"$f":"IF('[1]REAL IPC(M)'!$BI219=\"\",\"\",+'[1]REAL IPC(M)'!$BI219)","v":8.3447237359561832},{"$f":"IF('[1]REAL IMAE(M)'!BJ219=\"\",\"\",'[1]REAL IMAE(M)'!BJ219)","v":"n.d."},{"$f":"IF('[1]REAL IMAE(M)'!BK219=\"\",\"\",'[1]REAL IMAE(M)'!BK219)","v":"n.d."},{"$f":"IF('[1]REAL IMAE(M)'!BN219=\"\",\"\",'[1]REAL IMAE(M)'!BN219)","v":"n.d."},{"$f":"IF('[1]REAL IMAE(M)'!BO219=\"\",\"\",'[1]REAL IMAE(M)'!BO219)","v":"n.d."},{"$f":"IF('[1]EXT RIN(M)'!$K219=\"\",\"\",'[1]EXT RIN(M)'!$K219)","v":16139.297376662204},"",{"$f":"IF('[1]EXT RIN(M)'!$L219=\"\",\"\",'[1]EXT RIN(M)'!$L219)","v":17882.353390912253},"",{"$f":"IF('[1]MONE(M)CARD'!EG219=\"\",\"\",'[1]MONE(M)CARD'!EG219)","v":15804.319687310373},{"$f":"IF('[1]MONE(M)CARD'!EK219=\"\",\"\",'[1]MONE(M)CARD'!EK219)","v":29166.059648366398},{"$f":"IF('[1]MONE(M)CARD'!EP219=\"\",\"\",'[1]MONE(M)CARD'!EP219)","v":14535.843801207084},{"$f":"IF('[1]MONE(M)CARD'!ES219=\"\",\"\",'[1]MONE(M)CARD'!ES219)","v":22.29967314303256},{"$f":"IF('[1]MONE(M)CARD'!EV219=\"\",\"\",'[1]MONE(M)CARD'!EV219)","v":17.501989776172834},{"$f":"IF('[1]MONE(M)CARD'!EZ219=\"\",\"\",'[1]MONE(M)CARD'!EZ219)","v":14.33174567249036},{"$f":"IF('[1]MONE(M)CAPARD'!FC219=\"\",\"\",'[1]MONE(M)CAPARD'!FC219)","v":18296.002121900376},{"$f":"IF('[1]MONE(M)CAPARD'!FG219=\"\",\"\",'[1]MONE(M)CAPARD'!FG219)","v":42618.580486536397},{"$f":"IF('[1]MONE(M)CAPARD'!FL219=\"\",\"\",'[1]MONE(M)CAPARD'!FL219)","v":14535.843801207084},{"$f":"IF('[1]MONE(M)CAPARD'!FO219=\"\",\"\",'[1]MONE(M)CAPARD'!FO219)","v":23.999561238103784},{"$f":"IF('[1]MONE(M)CAPARD'!FR219=\"\",\"\",'[1]MONE(M)CAPARD'!FR219)","v":19.00371901281952},{"$f":"IF('[1]MONE(M)CAPARD'!FV219=\"\",\"\",'[1]MONE(M)CAPARD'!FV219)","v":16.145314941163758},{"$f":"IF('[1]MONE(M)CARD'!FV219=\"\",\"\",'[1]MONE(M)CARD'!FV219)","v":1874.6528337062987},{"$f":"IF('[1]MONE(M)CARD'!GD219=\"\",\"\",'[1]MONE(M)CARD'!GD219)","v":91.521807435906524},{"$f":"IF('[1]MONE(M)CARD'!GE219=\"\",\"\",'[1]MONE(M)CARD'!GE219)","v":4952.5041914948733},18.66810178990017,{"$f":"IF('[9]II.2.Balance OSD-Activos'!J77=\"\",\"\",'[9]II.2.Balance OSD-Activos'!J77)","v":221.5536544925657},{"$f":"IF('[9]II.2.Balance OSD-Activos'!N77=\"\",\"\",'[9]II.2.Balance OSD-Activos'!N77)","v":398.83418159406381},{"$f":"IF('[9]II.2.Balance OSD-Activos'!R77=\"\",\"\",'[9]II.2.Balance OSD-Activos'!R77)","v":18400.173979709423},{"$f":"IF('[9]II.2.Balance OSD-Activos'!S77=\"\",\"\",'[9]II.2.Balance OSD-Activos'!S77)","v":22410.006821880845},18621.72763420199,41430.568637676901,21.490203762463047,19.998247966673244,33.647209079227004,19.980506791825302,21.010293111865241,20.662723257336822,-8.3705858396463384E-3,{"$f":"IF('[1]MONE(M)CAPARD'!GS219=\"\",\"\",'[1]MONE(M)CAPARD'!GS219)","v":7480.3386198197068},{"$f":"IF('[1]MONE(M)CARD'!HA219=\"\",\"\",'[1]MONE(M)CAPARD'!HA219)","v":5305.4375903848741},{"$f":"IF('[1]MONE(M)CAPARD'!HB219=\"\",\"\",'[1]MONE(M)CAPARD'!HB219)","v":2174.9010294348327},"n.d.",{"$f":"IF('[10]II.2.Balance OSD-Activos'!J77=\"\",\"\",'[10]II.2.Balance OSD-Activos'!J77)","v":395.19951220256576},{"$f":"IF('[10]II.2.Balance OSD-Activos'!N77=\"\",\"\",'[10]II.2.Balance OSD-Activos'!N77)","v":810.78541744406391},{"$f":"IF('[10]II.2.Balance OSD-Activos'!R77=\"\",\"\",'[10]II.2.Balance OSD-Activos'!R77)","v":25990.082264859422},{"$f":"IF('[10]II.2.Balance OSD-Activos'!S77=\"\",\"\",'[10]II.2.Balance OSD-Activos'!S77)","v":29741.380191650846},26385.281777061988,56937.447386156899,-10.58615176009271,18.00794486716779,7.1078008075923238,18.584589953479025,19.718268207257751,18.721851663093215,-0.18835950201385643,{"$f":"IF('[1]MONE(M)CAPARD'!AS219=\"\",\"\",'[1]MONE(M)CAPARD'!AS219)","v":5.98},{"$f":"IF('[1]MONE(M)CAPARD'!AT219=\"\",\"\",'[1]MONE(M)CAPARD'!AT219)","v":"n.a."},{"$f":"IF('[1]MONE(M)CAPARD'!AU219=\"\",\"\",'[1]MONE(M)CAPARD'!AU219)","v":5.5},{"$f":"IF('[1]MONE(M)CAPARD'!AV219=\"\",\"\",'[1]MONE(M)CAPARD'!AV219)","v":6},{"$f":"IF('[1]MONE(M)CAPARD'!AW219=\"\",\"\",'[1]MONE(M)CAPARD'!AW219)","v":"n.a."},{"$f":"IF('[1]MONE(M)CAPARD'!AX219=\"\",\"\",'[1]MONE(M)CAPARD'!AX219)","v":7},{"$f":"IF('[1]MONE(M)CAPARD'!AY219=\"\",\"\",'[1]MONE(M)CAPARD'!AY219)","v":"n.a."},{"$f":"IF('[1]FISCAL(M)'!$K219=\"\",\"\",'[1]FISCAL(M)'!$K219)","v":441.91899553442818},{"$f":"IF('[1]FISCAL(M)'!$L219=\"\",\"\",'[1]FISCAL(M)'!$L219)","v":326.2097763514281},{"$f":"IF('[1]FISCAL(M)'!$AY219=\"\",\"\",'[1]FISCAL(M)'!$AY219)","v":48510.568740368341},{"$f":"IF('[1]FISCAL(M)'!$BI219=\"\",\"\",'[1]FISCAL(M)'!$BI219)","v":22560.911740368334},{"$f":"IF('[1]FISCAL(M)'!$BS219=\"\",\"\",'[1]FISCAL(M)'!$BS219)","v":25949.657000000003},{"$f":"IF('[1]FISCAL(M)'!$AZ219=\"\",\"\",'[1]FISCAL(M)'!$AZ219)","v":59408.828882668342},{"$f":"IF('[1]FISCAL(M)'!$BJ219=\"\",\"\",'[1]FISCAL(M)'!$BJ219)","v":25190.350386648333},{"$f":"IF('[1]FISCAL(M)'!$BT219=\"\",\"\",'[1]FISCAL(M)'!$BT219)","v":34218.478496020005},{"$f":"IF('[2]MONE(M)'!$AO219=\"\",\"\",'[2]MONE(M)'!$AO219)","v":5071442.3415026702},{"$f":"IF('[3]MONE(M)'!$AO219=\"\",\"\",'[3]MONE(M)'!$AO219)","v":8430.091471830001},{"$f":"IF('[4]MONE(M)'!$AO219=\"\",\"\",'[4]MONE(M)'!$AO219)","v":70205.212432141532},{"$f":"IF('[5]MONE(M)'!$AO219=\"\",\"\",'[5]MONE(M)'!$AO219)","v":105798.49536672767},{"$f":"IF('[6]MONE(M)'!$AO219=\"\",\"\",'[6]MONE(M)'!$AO219)","v":35397.684409204674},{"$f":"IF('[7]MONE(M)'!$AO219=\"\",\"\",'[7]MONE(M)'!$AO219)","v":255504.42318573003},{"$f":"IF('[8]MONE(M)'!$AO219=\"\",\"\",'[8]MONE(M)'!$AO219)","v":15387.371402519999},31.167661346131158,8.6634963409532482,12.992649198938079,31.75618058342744,29.530484303184188,19.55947240448188,14.312721944849716,{"$f":"IF('[1]FISCAL(M)'!$K219=\"\",\"\",'[1]FISCAL(M)'!$K219)","v":441.91899553442818},{"$f":"+'[1]REAL(A)'!$AO$27","v":"n.d."},"n.d.",{"$f":"IF('[1]FISCAL(M)'!$L219=\"\",\"\",'[1]FISCAL(M)'!$L219)","v":326.2097763514281},{"$f":"+'[1]REAL(A)'!$AP$27","v":"n.d."},"n.d.",58356.248941149366,{"$f":"'[1]Gráfico REM'!BG213","v":11641.422160896576},{"$f":"'[1]Gráfico REM'!BH213","v":42573.906829656298},{"$f":"'[1]Gráfico REM'!BI213","v":4140.9199505964916},12.780846022699244,0.18994910916818597,18.888105302795942,-4.0039097185724408,84697.53948170536,{"$f":"'[1]Gráfico REM'!BK213","v":12176.519538126577},{"$f":"'[1]Gráfico REM'!BL213","v":57961.278232176293},{"$f":"'[1]Gráfico REM'!BM213","v":14559.741711402492},12.464112474988486,0.63352884148022426,17.638112672906846,4.4455601543456069]
[2007,"julio","2007-julio",{"$f":"IF('[1]REAL IPC(M)'!$AL220=\"\",\"\",+'[1]REAL IPC(M)'!$AL220)","v":6.8933520704461015},{"$f":"IF('[1]REAL IPC(M)'!$BE220=\"\",\"\",+'[1]REAL IPC(M)'!$BE220)","v":8.7392623558129721},{"$f":"IF('[1]REAL IPC(M)'!$AM220=\"\",\"\",+'[1]REAL IPC(M)'!$AM220)","v":6.4536805430300159},{"$f":"IF('[1]REAL IPC(M)'!$BI220=\"\",\"\",+'[1]REAL IPC(M)'!$BI220)","v":8.3114489453342877},{"$f":"IF('[1]REAL IMAE(M)'!BJ220=\"\",\"\",'[1]REAL IMAE(M)'!BJ220)","v":"n.d."},{"$f":"IF('[1]REAL IMAE(M)'!BK220=\"\",\"\",'[1]REAL IMAE(M)'!BK220)","v":"n.d."},{"$f":"IF('[1]REAL IMAE(M)'!BN220=\"\",\"\",'[1]REAL IMAE(M)'!BN220)","v":"n.d."},{"$f":"IF('[1]REAL IMAE(M)'!BO220=\"\",\"\",'[1]REAL IMAE(M)'!BO220)","v":"n.d."},{"$f":"IF('[1]EXT RIN(M)'!$K220=\"\",\"\",'[1]EXT RIN(M)'!$K220)","v":16690.896929464252},"",{"$f":"IF('[1]EXT RIN(M)'!$L220=\"\",\"\",'[1]EXT RIN(M)'!$L220)","v":18573.760170741552},"",{"$f":"IF('[1]MONE(M)CARD'!EG220=\"\",\"\",'[1]MONE(M)CARD'!EG220)","v":16021.308867150208},{"$f":"IF('[1]MONE(M)CARD'!EK220=\"\",\"\",'[1]MONE(M)CARD'!EK220)","v":30264.52896562195},{"$f":"IF('[1]MONE(M)CARD'!EP220=\"\",\"\",'[1]MONE(M)CARD'!EP220)","v":14745.382538388949},{"$f":"IF('[1]MONE(M)CARD'!ES220=\"\",\"\",'[1]MONE(M)CARD'!ES220)","v":20.784717824347588},{"$f":"IF('[1]MONE(M)CARD'!EV220=\"\",\"\",'[1]MONE(M)CARD'!EV220)","v":19.2126043683025},{"$f":"IF('[1]MONE(M)CARD'!EZ220=\"\",\"\",'[1]MONE(M)CARD'!EZ220)","v":15.721350351592589},{"$f":"IF('[1]MONE(M)CAPARD'!FC220=\"\",\"\",'[1]MONE(M)CAPARD'!FC220)","v":18584.046637430205},{"$f":"IF('[1]MONE(M)CAPARD'!FG220=\"\",\"\",'[1]MONE(M)CAPARD'!FG220)","v":43644.316420301941},{"$f":"IF('[1]MONE(M)CAPARD'!FL220=\"\",\"\",'[1]MONE(M)CAPARD'!FL220)","v":14745.382538388949},{"$f":"IF('[1]MONE(M)CAPARD'!FO220=\"\",\"\",'[1]MONE(M)CAPARD'!FO220)","v":22.931217455133492},{"$f":"IF('[1]MONE(M)CAPARD'!FR220=\"\",\"\",'[1]MONE(M)CAPARD'!FR220)","v":20.413163446891701},{"$f":"IF('[1]MONE(M)CAPARD'!FV220=\"\",\"\",'[1]MONE(M)CAPARD'!FV220)","v":17.351351314080144},{"$f":"IF('[1]MONE(M)CARD'!FV220=\"\",\"\",'[1]MONE(M)CARD'!FV220)","v":1910.1992632691204},{"$f":"IF('[1]MONE(M)CARD'!GD220=\"\",\"\",'[1]MONE(M)CARD'!GD220)","v":48.50736588740228},{"$f":"IF('[1]MONE(M)CARD'!GE220=\"\",\"\",'[1]MONE(M)CARD'!GE220)","v":4983.9259372684601},19.359091822952081,{"$f":"IF('[9]II.2.Balance OSD-Activos'!J78=\"\",\"\",'[9]II.2.Balance OSD-Activos'!J78)","v":209.75410095904522},{"$f":"IF('[9]II.2.Balance OSD-Activos'!N78=\"\",\"\",'[9]II.2.Balance OSD-Activos'!N78)","v":401.21195402726426},{"$f":"IF('[9]II.2.Balance OSD-Activos'!R78=\"\",\"\",'[9]II.2.Balance OSD-Activos'!R78)","v":18803.515125467013},{"$f":"IF('[9]II.2.Balance OSD-Activos'!S78=\"\",\"\",'[9]II.2.Balance OSD-Activos'!S78)","v":22924.69402500537},19013.269226426059,42339.175205458698,2.0579764526452493,19.322819694867867,25.4026841059801,19.548415451935529,23.233217295316223,21.465552260436649,0.80282900309982708,{"$f":"IF('[1]MONE(M)CAPARD'!GS220=\"\",\"\",'[1]MONE(M)CAPARD'!GS220)","v":7530.1531157330046},{"$f":"IF('[1]MONE(M)CARD'!HA220=\"\",\"\",'[1]MONE(M)CAPARD'!HA220)","v":5338.5646941984596},{"$f":"IF('[1]MONE(M)CAPARD'!HB220=\"\",\"\",'[1]MONE(M)CAPARD'!HB220)","v":2191.588421534545},"n.d.",{"$f":"IF('[10]II.2.Balance OSD-Activos'!J78=\"\",\"\",'[10]II.2.Balance OSD-Activos'!J78)","v":382.25541258904514},{"$f":"IF('[10]II.2.Balance OSD-Activos'!N78=\"\",\"\",'[10]II.2.Balance OSD-Activos'!N78)","v":815.68845169726433},{"$f":"IF('[10]II.2.Balance OSD-Activos'!R78=\"\",\"\",'[10]II.2.Balance OSD-Activos'!R78)","v":26589.036508687012},{"$f":"IF('[10]II.2.Balance OSD-Activos'!S78=\"\",\"\",'[10]II.2.Balance OSD-Activos'!S78)","v":30343.110494055371},26971.291921276057,58130.090867028688,-18.585893476545181,17.819707856149101,4.7474989744943352,18.58202988787103,21.230571818409839,19.363688273701985,0.64183661060877029,{"$f":"IF('[1]MONE(M)CAPARD'!AS220=\"\",\"\",'[1]MONE(M)CAPARD'!AS220)","v":5.98},{"$f":"IF('[1]MONE(M)CAPARD'!AT220=\"\",\"\",'[1]MONE(M)CAPARD'!AT220)","v":"n.a."},{"$f":"IF('[1]MONE(M)CAPARD'!AU220=\"\",\"\",'[1]MONE(M)CAPARD'!AU220)","v":5.5},{"$f":"IF('[1]MONE(M)CAPARD'!AV220=\"\",\"\",'[1]MONE(M)CAPARD'!AV220)","v":6},{"$f":"IF('[1]MONE(M)CAPARD'!AW220=\"\",\"\",'[1]MONE(M)CAPARD'!AW220)","v":"n.a."},{"$f":"IF('[1]MONE(M)CAPARD'!AX220=\"\",\"\",'[1]MONE(M)CAPARD'!AX220)","v":7},{"$f":"IF('[1]MONE(M)CAPARD'!AY220=\"\",\"\",'[1]MONE(M)CAPARD'!AY220)","v":"n.a."},{"$f":"IF('[1]FISCAL(M)'!$K220=\"\",\"\",'[1]FISCAL(M)'!$K220)","v":425.53889424945936},{"$f":"IF('[1]FISCAL(M)'!$L220=\"\",\"\",'[1]FISCAL(M)'!$L220)","v":117.73741829645934},{"$f":"IF('[1]FISCAL(M)'!$AY220=\"\",\"\",'[1]FISCAL(M)'!$AY220)","v":"n.d."},{"$f":"IF('[1]FISCAL(M)'!$BI220=\"\",\"\",'[1]FISCAL(M)'!$BI220)","v":"n.d."},{"$f":"IF('[1]FISCAL(M)'!$BS220=\"\",\"\",'[1]FISCAL(M)'!$BS220)","v":"n.d."},{"$f":"IF('[1]FISCAL(M)'!$AZ220=\"\",\"\",'[1]FISCAL(M)'!$AZ220)","v":"n.d."},{"$f":"IF('[1]FISCAL(M)'!$BJ220=\"\",\"\",'[1]FISCAL(M)'!$BJ220)","v":"n.d."},{"$f":"IF('[1]FISCAL(M)'!$BT220=\"\",\"\",'[1]FISCAL(M)'!$BT220)","v":"n.d."},{"$f":"IF('[2]MONE(M)'!$AO220=\"\",\"\",'[2]MONE(M)'!$AO220)","v":5204961.9180931514},{"$f":"IF('[3]MONE(M)'!$AO220=\"\",\"\",'[3]MONE(M)'!$AO220)","v":8499.9039197499987},{"$f":"IF('[4]MONE(M)'!$AO220=\"\",\"\",'[4]MONE(M)'!$AO220)","v":71565.19277235042},{"$f":"IF('[5]MONE(M)'!$AO220=\"\",\"\",'[5]MONE(M)'!$AO220)","v":108597.51321928579},{"$f":"IF('[6]MONE(M)'!$AO220=\"\",\"\",'[6]MONE(M)'!$AO220)","v":36104.710312523253},{"$f":"IF('[7]MONE(M)'!$AO220=\"\",\"\",'[7]MONE(M)'!$AO220)","v":259731.91515257003},{"$f":"IF('[8]MONE(M)'!$AO220=\"\",\"\",'[8]MONE(M)'!$AO220)","v":15688.103872429998},31.989280715423106,8.4338463788141471,14.328907494976928,33.483131070674773,28.604722123904658,19.252458062975641,14.586299845149986,{"$f":"IF('[1]FISCAL(M)'!$K220=\"\",\"\",'[1]FISCAL(M)'!$K220)","v":425.53889424945936},{"$f":"+'[1]REAL(A)'!$AO$27","v":"n.d."},"n.d.",{"$f":"IF('[1]FISCAL(M)'!$L220=\"\",\"\",'[1]FISCAL(M)'!$L220)","v":117.73741829645934},{"$f":"+'[1]REAL(A)'!$AP$27","v":"n.d."},"n.d.",59104.050257257448,{"$f":"'[1]Gráfico REM'!BG214","v":11432.896072773319},{"$f":"'[1]Gráfico REM'!BH214","v":43540.831033714989},{"$f":"'[1]Gráfico REM'!BI214","v":4130.323150769138},13.053062580049545,-1.7491565064006842,19.905779059034856,-4.6323221863600716,86134.906761057457,{"$f":"'[1]Gráfico REM'!BK214","v":11993.385687963319},{"$f":"'[1]Gráfico REM'!BL214","v":59228.93490614499},{"$f":"'[1]Gráfico REM'!BM214","v":14912.586166949139},12.94714156522787,-1.1168045734103571,18.449295999702663,5.5474818782576429]
[2007,"agosto","2007-agosto",{"$f":"IF('[1]REAL IPC(M)'!$AL221=\"\",\"\",+'[1]REAL IPC(M)'!$AL221)","v":6.7690402081966417},{"$f":"IF('[1]REAL IPC(M)'!$BE221=\"\",\"\",+'[1]REAL IPC(M)'!$BE221)","v":8.7019349884924111},{"$f":"IF('[1]REAL IPC(M)'!$AM221=\"\",\"\",+'[1]REAL IPC(M)'!$AM221)","v":6.3391348264830505},{"$f":"IF('[1]REAL IPC(M)'!$BI221=\"\",\"\",+'[1]REAL IPC(M)'!$BI221)","v":8.2794437719058145},{"$f":"IF('[1]REAL IMAE(M)'!BJ221=\"\",\"\",'[1]REAL IMAE(M)'!BJ221)","v":"n.d."},{"$f":"IF('[1]REAL IMAE(M)'!BK221=\"\",\"\",'[1]REAL IMAE(M)'!BK221)","v":"n.d."},{"$f":"IF('[1]REAL IMAE(M)'!BN221=\"\",\"\",'[1]REAL IMAE(M)'!BN221)","v":"n.d."},{"$f":"IF('[1]REAL IMAE(M)'!BO221=\"\",\"\",'[1]REAL IMAE(M)'!BO221)","v":"n.d."},{"$f":"IF('[1]EXT RIN(M)'!$K221=\"\",\"\",'[1]EXT RIN(M)'!$K221)","v":16438.12995307249},"",{"$f":"IF('[1]EXT RIN(M)'!$L221=\"\",\"\",'[1]EXT RIN(M)'!$L221)","v":18277.30992536934},"",{"$f":"IF('[1]MONE(M)CARD'!EG221=\"\",\"\",'[1]MONE(M)CARD'!EG221)","v":16050.42448793923},{"$f":"IF('[1]MONE(M)CARD'!EK221=\"\",\"\",'[1]MONE(M)CARD'!EK221)","v":30277.61874653941},{"$f":"IF('[1]MONE(M)CARD'!EP221=\"\",\"\",'[1]MONE(M)CARD'!EP221)","v":14730.462534938524},{"$f":"IF('[1]MONE(M)CARD'!ES221=\"\",\"\",'[1]MONE(M)CARD'!ES221)","v":22.738255459929956},{"$f":"IF('[1]MONE(M)CARD'!EV221=\"\",\"\",'[1]MONE(M)CARD'!EV221)","v":18.255803055194562},{"$f":"IF('[1]MONE(M)CARD'!EZ221=\"\",\"\",'[1]MONE(M)CARD'!EZ221)","v":14.834441515818565},{"$f":"IF('[1]MONE(M)CAPARD'!FC221=\"\",\"\",'[1]MONE(M)CAPARD'!FC221)","v":18503.98920388463},{"$f":"IF('[1]MONE(M)CAPARD'!FG221=\"\",\"\",'[1]MONE(M)CAPARD'!FG221)","v":43947.921647093317},{"$f":"IF('[1]MONE(M)CAPARD'!FL221=\"\",\"\",'[1]MONE(M)CAPARD'!FL221)","v":14730.462534938531},{"$f":"IF('[1]MONE(M)CAPARD'!FO221=\"\",\"\",'[1]MONE(M)CAPARD'!FO221)","v":23.660852488692228},{"$f":"IF('[1]MONE(M)CAPARD'!FR221=\"\",\"\",'[1]MONE(M)CAPARD'!FR221)","v":19.622653359219157},{"$f":"IF('[1]MONE(M)CAPARD'!FV221=\"\",\"\",'[1]MONE(M)CAPARD'!FV221)","v":16.585811268769856},{"$f":"IF('[1]MONE(M)CARD'!FV221=\"\",\"\",'[1]MONE(M)CARD'!FV221)","v":1944.8808248520918},{"$f":"IF('[1]MONE(M)CARD'!GD221=\"\",\"\",'[1]MONE(M)CARD'!GD221)","v":48.795451521937842},{"$f":"IF('[1]MONE(M)CARD'!GE221=\"\",\"\",'[1]MONE(M)CARD'!GE221)","v":4901.7426557117988},18.768698866051391,{"$f":"IF('[9]II.2.Balance OSD-Activos'!J79=\"\",\"\",'[9]II.2.Balance OSD-Activos'!J79)","v":235.14406621784471},{"$f":"IF('[9]II.2.Balance OSD-Activos'!N79=\"\",\"\",'[9]II.2.Balance OSD-Activos'!N79)","v":374.34462862155965},{"$f":"IF('[9]II.2.Balance OSD-Activos'!R79=\"\",\"\",'[9]II.2.Balance OSD-Activos'!R79)","v":19052.031695087127},{"$f":"IF('[9]II.2.Balance OSD-Activos'!S79=\"\",\"\",'[9]II.2.Balance OSD-Activos'!S79)","v":23392.174485545009},19287.17576130497,43053.694875471541,19.088955412864085,19.819608681947432,16.502129519625399,19.828682568791088,22.616756628617708,21.292931650218705,-0.17262061021794395,{"$f":"IF('[1]MONE(M)CAPARD'!GS221=\"\",\"\",'[1]MONE(M)CAPARD'!GS221)","v":7551.2097002868886},{"$f":"IF('[1]MONE(M)CARD'!HA221=\"\",\"\",'[1]MONE(M)CAPARD'!HA221)","v":5274.162533321798},{"$f":"IF('[1]MONE(M)CAPARD'!HB221=\"\",\"\",'[1]MONE(M)CAPARD'!HB221)","v":2277.0471669650906},"n.d.",{"$f":"IF('[10]II.2.Balance OSD-Activos'!J79=\"\",\"\",'[10]II.2.Balance OSD-Activos'!J79)","v":407.06161476784473},{"$f":"IF('[10]II.2.Balance OSD-Activos'!N79=\"\",\"\",'[10]II.2.Balance OSD-Activos'!N79)","v":797.97615775155953},{"$f":"IF('[10]II.2.Balance OSD-Activos'!R79=\"\",\"\",'[10]II.2.Balance OSD-Activos'!R79)","v":26968.979234337123},{"$f":"IF('[10]II.2.Balance OSD-Activos'!S79=\"\",\"\",'[10]II.2.Balance OSD-Activos'!S79)","v":30906.895007685009},27376.040849104967,59080.912014541536,-11.038578826489598,18.206263131585843,-7.0828934007394206E-2,18.795709047182264,20.799144508232725,19.250695386066894,-0.11299288763509097,{"$f":"IF('[1]MONE(M)CAPARD'!AS221=\"\",\"\",'[1]MONE(M)CAPARD'!AS221)","v":5.52},{"$f":"IF('[1]MONE(M)CAPARD'!AT221=\"\",\"\",'[1]MONE(M)CAPARD'!AT221)","v":"n.a."},{"$f":"IF('[1]MONE(M)CAPARD'!AU221=\"\",\"\",'[1]MONE(M)CAPARD'!AU221)","v":5.5},{"$f":"IF('[1]MONE(M)CAPARD'!AV221=\"\",\"\",'[1]MONE(M)CAPARD'!AV221)","v":6.25},{"$f":"IF('[1]MONE(M)CAPARD'!AW221=\"\",\"\",'[1]MONE(M)CAPARD'!AW221)","v":"n.a."},{"$f":"IF('[1]MONE(M)CAPARD'!AX221=\"\",\"\",'[1]MONE(M)CAPARD'!AX221)","v":7},{"$f":"IF('[1]MONE(M)CAPARD'!AY221=\"\",\"\",'[1]MONE(M)CAPARD'!AY221)","v":"n.a."},{"$f":"IF('[1]FISCAL(M)'!$K221=\"\",\"\",'[1]FISCAL(M)'!$K221)","v":380.29021541963539},{"$f":"IF('[1]FISCAL(M)'!$L221=\"\",\"\",'[1]FISCAL(M)'!$L221)","v":3.1347512566354681},{"$f":"IF('[1]FISCAL(M)'!$AY221=\"\",\"\",'[1]FISCAL(M)'!$AY221)","v":"n.d."},{"$f":"IF('[1]FISCAL(M)'!$BI221=\"\",\"\",'[1]FISCAL(M)'!$BI221)","v":"n.d."},{"$f":"IF('[1]FISCAL(M)'!$BS221=\"\",\"\",'[1]FISCAL(M)'!$BS221)","v":"n.d."},{"$f":"IF('[1]FISCAL(M)'!$AZ221=\"\",\"\",'[1]FISCAL(M)'!$AZ221)","v":"n.d."},{"$f":"IF('[1]FISCAL(M)'!$BJ221=\"\",\"\",'[1]FISCAL(M)'!$BJ221)","v":"n.d."},{"$f":"IF('[1]FISCAL(M)'!$BT221=\"\",\"\",'[1]FISCAL(M)'!$BT221)","v":"n.d."},{"$f":"IF('[2]MONE(M)'!$AO221=\"\",\"\",'[2]MONE(M)'!$AO221)","v":5347400.4580569863},{"$f":"IF('[3]MONE(M)'!$AO221=\"\",\"\",'[3]MONE(M)'!$AO221)","v":8589.5510584000003},{"$f":"IF('[4]MONE(M)'!$AO221=\"\",\"\",'[4]MONE(M)'!$AO221)","v":72191.215654330736},{"$f":"IF('[5]MONE(M)'!$AO221=\"\",\"\",'[5]MONE(M)'!$AO221)","v":111641.31312252212},{"$f":"IF('[6]MONE(M)'!$AO221=\"\",\"\",'[6]MONE(M)'!$AO221)","v":37071.737199081166},{"$f":"IF('[7]MONE(M)'!$AO221=\"\",\"\",'[7]MONE(M)'!$AO221)","v":265232.88061102002},{"$f":"IF('[8]MONE(M)'!$AO221=\"\",\"\",'[8]MONE(M)'!$AO221)","v":15918.094314499998},31.689265485894545,8.4192556350793488,13.816194883087164,32.463644222153199,29.438814747696206,19.491880465378351,14.677106039466414,{"$f":"IF('[1]FISCAL(M)'!$K221=\"\",\"\",'[1]FISCAL(M)'!$K221)","v":380.29021541963539},{"$f":"+'[1]REAL(A)'!$AO$27","v":"n.d."},"n.d.",{"$f":"IF('[1]FISCAL(M)'!$L221=\"\",\"\",'[1]FISCAL(M)'!$L221)","v":3.1347512566354681},{"$f":"+'[1]REAL(A)'!$AP$27","v":"n.d."},"n.d.",59722.109192216725,{"$f":"'[1]Gráfico REM'!BG215","v":11360.223655582608},{"$f":"'[1]Gráfico REM'!BH215","v":44248.366768928696},{"$f":"'[1]Gráfico REM'!BI215","v":4113.5187677054164},13.601041128120128,0.35137687301380893,19.651994535491003,-3.6751770975756992,87371.670017666707,{"$f":"'[1]Gráfico REM'!BK215","v":11968.369471282607},{"$f":"'[1]Gráfico REM'!BL215","v":60166.461083428694},{"$f":"'[1]Gráfico REM'!BM215","v":15236.839462955415},14.068876142533293,1.45659290491853,18.29428460449174,9.3240567764538937]
[2007,"septiembre","2007-septiembre",{"$f":"IF('[1]REAL IPC(M)'!$AL222=\"\",\"\",+'[1]REAL IPC(M)'!$AL222)","v":8.2134330703029335},{"$f":"IF('[1]REAL IPC(M)'!$BE222=\"\",\"\",+'[1]REAL IPC(M)'!$BE222)","v":8.664239545275576},{"$f":"IF('[1]REAL IPC(M)'!$AM222=\"\",\"\",+'[1]REAL IPC(M)'!$AM222)","v":7.7577222891040742},{"$f":"IF('[1]REAL IPC(M)'!$BI222=\"\",\"\",+'[1]REAL IPC(M)'!$BI222)","v":8.2474200982274972},{"$f":"IF('[1]REAL IMAE(M)'!BJ222=\"\",\"\",'[1]REAL IMAE(M)'!BJ222)","v":"n.d."},{"$f":"IF('[1]REAL IMAE(M)'!BK222=\"\",\"\",'[1]REAL IMAE(M)'!BK222)","v":"n.d."},{"$f":"IF('[1]REAL IMAE(M)'!BN222=\"\",\"\",'[1]REAL IMAE(M)'!BN222)","v":"n.d."},{"$f":"IF('[1]REAL IMAE(M)'!BO222=\"\",\"\",'[1]REAL IMAE(M)'!BO222)","v":"n.d."},{"$f":"IF('[1]EXT RIN(M)'!$K222=\"\",\"\",'[1]EXT RIN(M)'!$K222)","v":16429.400277607423},"",{"$f":"IF('[1]EXT RIN(M)'!$L222=\"\",\"\",'[1]EXT RIN(M)'!$L222)","v":18149.176740364172},"",{"$f":"IF('[1]MONE(M)CARD'!EG222=\"\",\"\",'[1]MONE(M)CARD'!EG222)","v":16351.329691641042},{"$f":"IF('[1]MONE(M)CARD'!EK222=\"\",\"\",'[1]MONE(M)CARD'!EK222)","v":30114.775768453888},{"$f":"IF('[1]MONE(M)CARD'!EP222=\"\",\"\",'[1]MONE(M)CARD'!EP222)","v":14752.104123120866},{"$f":"IF('[1]MONE(M)CARD'!ES222=\"\",\"\",'[1]MONE(M)CARD'!ES222)","v":23.22059732081523},{"$f":"IF('[1]MONE(M)CARD'!EV222=\"\",\"\",'[1]MONE(M)CARD'!EV222)","v":17.719700676626072},{"$f":"IF('[1]MONE(M)CARD'!EZ222=\"\",\"\",'[1]MONE(M)CARD'!EZ222)","v":14.573070228706397},{"$f":"IF('[1]MONE(M)CAPARD'!FC222=\"\",\"\",'[1]MONE(M)CAPARD'!FC222)","v":18938.84488548644},{"$f":"IF('[1]MONE(M)CAPARD'!FG222=\"\",\"\",'[1]MONE(M)CAPARD'!FG222)","v":44013.731994927788},{"$f":"IF('[1]MONE(M)CAPARD'!FL222=\"\",\"\",'[1]MONE(M)CAPARD'!FL222)","v":14752.104123120851},{"$f":"IF('[1]MONE(M)CAPARD'!FO222=\"\",\"\",'[1]MONE(M)CAPARD'!FO222)","v":24.530214769712909},{"$f":"IF('[1]MONE(M)CAPARD'!FR222=\"\",\"\",'[1]MONE(M)CAPARD'!FR222)","v":19.458118641141287},{"$f":"IF('[1]MONE(M)CAPARD'!FV222=\"\",\"\",'[1]MONE(M)CAPARD'!FV222)","v":16.571792333497882},{"$f":"IF('[1]MONE(M)CARD'!FV222=\"\",\"\",'[1]MONE(M)CARD'!FV222)","v":1970.2196167879129},{"$f":"IF('[1]MONE(M)CARD'!GD222=\"\",\"\",'[1]MONE(M)CARD'!GD222)","v":83.065144831145574},{"$f":"IF('[1]MONE(M)CARD'!GE222=\"\",\"\",'[1]MONE(M)CARD'!GE222)","v":5121.8515814853254},23.714440096305211,{"$f":"IF('[9]II.2.Balance OSD-Activos'!J80=\"\",\"\",'[9]II.2.Balance OSD-Activos'!J80)","v":209.30859453409829},{"$f":"IF('[9]II.2.Balance OSD-Activos'!N80=\"\",\"\",'[9]II.2.Balance OSD-Activos'!N80)","v":386.19590677770731},{"$f":"IF('[9]II.2.Balance OSD-Activos'!R80=\"\",\"\",'[9]II.2.Balance OSD-Activos'!R80)","v":19101.42670605435},{"$f":"IF('[9]II.2.Balance OSD-Activos'!S80=\"\",\"\",'[9]II.2.Balance OSD-Activos'!S80)","v":24080.440668637821},19310.735300588447,43777.371876003977,20.854667868215749,19.742505756430994,15.578682990836224,19.730432331880586,24.348644440294386,22.193437300053496,0.9005056498347912,{"$f":"IF('[1]MONE(M)CAPARD'!GS222=\"\",\"\",'[1]MONE(M)CAPARD'!GS222)","v":7577.0057919955852},{"$f":"IF('[1]MONE(M)CARD'!HA222=\"\",\"\",'[1]MONE(M)CAPARD'!HA222)","v":5484.6456135753251},{"$f":"IF('[1]MONE(M)CAPARD'!HB222=\"\",\"\",'[1]MONE(M)CAPARD'!HB222)","v":2092.3601784202601},"n.d.",{"$f":"IF('[10]II.2.Balance OSD-Activos'!J80=\"\",\"\",'[10]II.2.Balance OSD-Activos'!J80)","v":380.82539953409827},{"$f":"IF('[10]II.2.Balance OSD-Activos'!N80=\"\",\"\",'[10]II.2.Balance OSD-Activos'!N80)","v":827.35028943770726},{"$f":"IF('[10]II.2.Balance OSD-Activos'!R80=\"\",\"\",'[10]II.2.Balance OSD-Activos'!R80)","v":27175.663520154347},{"$f":"IF('[10]II.2.Balance OSD-Activos'!S80=\"\",\"\",'[10]II.2.Balance OSD-Activos'!S80)","v":31680.002402797818},27556.488919688443,60063.84161192397,-9.1037919316699583,18.066910146038406,0.53543501780248803,18.5635620247552,22.027610004164554,19.83048932033342,0.57979393426652592,{"$f":"IF('[1]MONE(M)CAPARD'!AS222=\"\",\"\",'[1]MONE(M)CAPARD'!AS222)","v":5.52},{"$f":"IF('[1]MONE(M)CAPARD'!AT222=\"\",\"\",'[1]MONE(M)CAPARD'!AT222)","v":"n.a."},{"$f":"IF('[1]MONE(M)CAPARD'!AU222=\"\",\"\",'[1]MONE(M)CAPARD'!AU222)","v":5.75},{"$f":"IF('[1]MONE(M)CAPARD'!AV222=\"\",\"\",'[1]MONE(M)CAPARD'!AV222)","v":6.25},{"$f":"IF('[1]MONE(M)CAPARD'!AW222=\"\",\"\",'[1]MONE(M)CAPARD'!AW222)","v":"n.a."},{"$f":"IF('[1]MONE(M)CAPARD'!AX222=\"\",\"\",'[1]MONE(M)CAPARD'!AX222)","v":7},{"$f":"IF('[1]MONE(M)CAPARD'!AY222=\"\",\"\",'[1]MONE(M)CAPARD'!AY222)","v":"n.a."},{"$f":"IF('[1]FISCAL(M)'!$K222=\"\",\"\",'[1]FISCAL(M)'!$K222)","v":186.92273739779478},{"$f":"IF('[1]FISCAL(M)'!$L222=\"\",\"\",'[1]FISCAL(M)'!$L222)","v":-227.84143228520566},{"$f":"IF('[1]FISCAL(M)'!$AY222=\"\",\"\",'[1]FISCAL(M)'!$AY222)","v":49219.312662135751},{"$f":"IF('[1]FISCAL(M)'!$BI222=\"\",\"\",'[1]FISCAL(M)'!$BI222)","v":23117.212662135742},{"$f":"IF('[1]FISCAL(M)'!$BS222=\"\",\"\",'[1]FISCAL(M)'!$BS222)","v":26102.100000000002},{"$f":"IF('[1]FISCAL(M)'!$AZ222=\"\",\"\",'[1]FISCAL(M)'!$AZ222)","v":60103.536530345737},{"$f":"IF('[1]FISCAL(M)'!$BJ222=\"\",\"\",'[1]FISCAL(M)'!$BJ222)","v":25734.531104655744},{"$f":"IF('[1]FISCAL(M)'!$BT222=\"\",\"\",'[1]FISCAL(M)'!$BT222)","v":34369.005425690004},{"$f":"IF('[2]MONE(M)'!$AO222=\"\",\"\",'[2]MONE(M)'!$AO222)","v":5551791.8994058557},{"$f":"IF('[3]MONE(M)'!$AO222=\"\",\"\",'[3]MONE(M)'!$AO222)","v":8619.8569313799999},{"$f":"IF('[4]MONE(M)'!$AO222=\"\",\"\",'[4]MONE(M)'!$AO222)","v":72916.757021769969},{"$f":"IF('[5]MONE(M)'!$AO222=\"\",\"\",'[5]MONE(M)'!$AO222)","v":114333.72187025729},{"$f":"IF('[6]MONE(M)'!$AO222=\"\",\"\",'[6]MONE(M)'!$AO222)","v":37738.350563191372},{"$f":"IF('[7]MONE(M)'!$AO222=\"\",\"\",'[7]MONE(M)'!$AO222)","v":271172.71788015001},{"$f":"IF('[8]MONE(M)'!$AO222=\"\",\"\",'[8]MONE(M)'!$AO222)","v":16157.887507600002},33.981181623606169,8.8158710874133739,12.266744086755853,33.910260447110254,28.645484802856135,20.652440909919068,13.8769944163476,{"$f":"IF('[1]FISCAL(M)'!$K222=\"\",\"\",'[1]FISCAL(M)'!$K222)","v":186.92273739779478},{"$f":"+'[1]REAL(A)'!$AO$27","v":"n.d."},"n.d.",{"$f":"IF('[1]FISCAL(M)'!$L222=\"\",\"\",'[1]FISCAL(M)'!$L222)","v":-227.84143228520566},{"$f":"+'[1]REAL(A)'!$AP$27","v":"n.d."},"n.d.",60679.441507823038,{"$f":"'[1]Gráfico REM'!BG216","v":11425.80742387091},{"$f":"'[1]Gráfico REM'!BH216","v":44980.484029850028},{"$f":"'[1]Gráfico REM'!BI216","v":4273.1500541020978},14.464356685186042,0.76283501410685517,20.622479559854877,-2.4849337748924949,88798.678796353037,{"$f":"'[1]Gráfico REM'!BK216","v":12043.32565799091},{"$f":"'[1]Gráfico REM'!BL216","v":61138.371537450032},{"$f":"'[1]Gráfico REM'!BM216","v":15616.981600912097},14.51545554454594,1.9095029892124193,18.763262790737901,9.6228367645274204]
[2007,"octubre","2007-octubre",{"$f":"IF('[1]REAL IPC(M)'!$AL223=\"\",\"\",+'[1]REAL IPC(M)'!$AL223)","v":8.8439368683365771},{"$f":"IF('[1]REAL IPC(M)'!$BE223=\"\",\"\",+'[1]REAL IPC(M)'!$BE223)","v":8.6249172263417773},{"$f":"IF('[1]REAL IPC(M)'!$AM223=\"\",\"\",+'[1]REAL IPC(M)'!$AM223)","v":8.370250467832907},{"$f":"IF('[1]REAL IPC(M)'!$BI223=\"\",\"\",+'[1]REAL IPC(M)'!$BI223)","v":8.2140101099394069},{"$f":"IF('[1]REAL IMAE(M)'!BJ223=\"\",\"\",'[1]REAL IMAE(M)'!BJ223)","v":"n.d."},{"$f":"IF('[1]REAL IMAE(M)'!BK223=\"\",\"\",'[1]REAL IMAE(M)'!BK223)","v":"n.d."},{"$f":"IF('[1]REAL IMAE(M)'!BN223=\"\",\"\",'[1]REAL IMAE(M)'!BN223)","v":"n.d."},{"$f":"IF('[1]REAL IMAE(M)'!BO223=\"\",\"\",'[1]REAL IMAE(M)'!BO223)","v":"n.d."},{"$f":"IF('[1]EXT RIN(M)'!$K223=\"\",\"\",'[1]EXT RIN(M)'!$K223)","v":16238.521462731078},"",{"$f":"IF('[1]EXT RIN(M)'!$L223=\"\",\"\",'[1]EXT RIN(M)'!$L223)","v":18016.600499361677},"",{"$f":"IF('[1]MONE(M)CARD'!EG223=\"\",\"\",'[1]MONE(M)CARD'!EG223)","v":16245.645757913464},{"$f":"IF('[1]MONE(M)CARD'!EK223=\"\",\"\",'[1]MONE(M)CARD'!EK223)","v":30439.885411232201},{"$f":"IF('[1]MONE(M)CARD'!EP223=\"\",\"\",'[1]MONE(M)CARD'!EP223)","v":14924.064792967838},{"$f":"IF('[1]MONE(M)CARD'!ES223=\"\",\"\",'[1]MONE(M)CARD'!ES223)","v":22.008492951601099},{"$f":"IF('[1]MONE(M)CARD'!EV223=\"\",\"\",'[1]MONE(M)CARD'!EV223)","v":16.983576110576838},{"$f":"IF('[1]MONE(M)CARD'!EZ223=\"\",\"\",'[1]MONE(M)CARD'!EZ223)","v":14.246225291430537},{"$f":"IF('[1]MONE(M)CAPARD'!FC223=\"\",\"\",'[1]MONE(M)CAPARD'!FC223)","v":18893.838846188861},{"$f":"IF('[1]MONE(M)CAPARD'!FG223=\"\",\"\",'[1]MONE(M)CAPARD'!FG223)","v":44562.228687460207},{"$f":"IF('[1]MONE(M)CAPARD'!FL223=\"\",\"\",'[1]MONE(M)CAPARD'!FL223)","v":14924.064792967838},{"$f":"IF('[1]MONE(M)CAPARD'!FO223=\"\",\"\",'[1]MONE(M)CAPARD'!FO223)","v":23.491110885049117},{"$f":"IF('[1]MONE(M)CAPARD'!FR223=\"\",\"\",'[1]MONE(M)CAPARD'!FR223)","v":18.784820169345572},{"$f":"IF('[1]MONE(M)CAPARD'!FV223=\"\",\"\",'[1]MONE(M)CAPARD'!FV223)","v":16.22152574210731},{"$f":"IF('[1]MONE(M)CARD'!FV223=\"\",\"\",'[1]MONE(M)CARD'!FV223)","v":2018.1051158394575},{"$f":"IF('[1]MONE(M)CARD'!GD223=\"\",\"\",'[1]MONE(M)CARD'!GD223)","v":52.816726071134148},{"$f":"IF('[1]MONE(M)CARD'!GE223=\"\",\"\",'[1]MONE(M)CARD'!GE223)","v":5071.5188587111152},20.905691796041669,{"$f":"IF('[9]II.2.Balance OSD-Activos'!J81=\"\",\"\",'[9]II.2.Balance OSD-Activos'!J81)","v":203.51319124390443},{"$f":"IF('[9]II.2.Balance OSD-Activos'!N81=\"\",\"\",'[9]II.2.Balance OSD-Activos'!N81)","v":401.69485556843762},{"$f":"IF('[9]II.2.Balance OSD-Activos'!R81=\"\",\"\",'[9]II.2.Balance OSD-Activos'!R81)","v":19551.069894953769},{"$f":"IF('[9]II.2.Balance OSD-Activos'!S81=\"\",\"\",'[9]II.2.Balance OSD-Activos'!S81)","v":24779.363742316214},19754.583086197672,44935.641684082322,2.0583634793265304,18.764195263238136,21.723518718987012,18.966901770955236,25.743791682316687,22.54165150366547,0.34821420361197397,{"$f":"IF('[1]MONE(M)CAPARD'!GS223=\"\",\"\",'[1]MONE(M)CAPARD'!GS223)","v":7594.3839749524195},{"$f":"IF('[1]MONE(M)CARD'!HA223=\"\",\"\",'[1]MONE(M)CAPARD'!HA223)","v":5438.9429476311143},{"$f":"IF('[1]MONE(M)CAPARD'!HB223=\"\",\"\",'[1]MONE(M)CAPARD'!HB223)","v":2155.4410273213052},"n.d.",{"$f":"IF('[10]II.2.Balance OSD-Activos'!J81=\"\",\"\",'[10]II.2.Balance OSD-Activos'!J81)","v":392.25268730390439},{"$f":"IF('[10]II.2.Balance OSD-Activos'!N81=\"\",\"\",'[10]II.2.Balance OSD-Activos'!N81)","v":835.30147776843773},{"$f":"IF('[10]II.2.Balance OSD-Activos'!R81=\"\",\"\",'[10]II.2.Balance OSD-Activos'!R81)","v":27889.325157973773},{"$f":"IF('[10]II.2.Balance OSD-Activos'!S81=\"\",\"\",'[10]II.2.Balance OSD-Activos'!S81)","v":32461.256262626212},28281.577845277679,61578.135585672324,0.18853301529069277,18.249857055148876,1.4694363287627743,18.55043883701013,22.952236399710113,20.407325706522862,0.57683638618944144,{"$f":"IF('[1]MONE(M)CAPARD'!AS223=\"\",\"\",'[1]MONE(M)CAPARD'!AS223)","v":5.52},{"$f":"IF('[1]MONE(M)CAPARD'!AT223=\"\",\"\",'[1]MONE(M)CAPARD'!AT223)","v":"n.a."},{"$f":"IF('[1]MONE(M)CAPARD'!AU223=\"\",\"\",'[1]MONE(M)CAPARD'!AU223)","v":6},{"$f":"IF('[1]MONE(M)CAPARD'!AV223=\"\",\"\",'[1]MONE(M)CAPARD'!AV223)","v":6.75},{"$f":"IF('[1]MONE(M)CAPARD'!AW223=\"\",\"\",'[1]MONE(M)CAPARD'!AW223)","v":"n.a."},{"$f":"IF('[1]MONE(M)CAPARD'!AX223=\"\",\"\",'[1]MONE(M)CAPARD'!AX223)","v":7},{"$f":"IF('[1]MONE(M)CAPARD'!AY223=\"\",\"\",'[1]MONE(M)CAPARD'!AY223)","v":"n.a."},{"$f":"IF('[1]FISCAL(M)'!$K223=\"\",\"\",'[1]FISCAL(M)'!$K223)","v":312.67700386181457},{"$f":"IF('[1]FISCAL(M)'!$L223=\"\",\"\",'[1]FISCAL(M)'!$L223)","v":-190.26498813518577},{"$f":"IF('[1]FISCAL(M)'!$AY223=\"\",\"\",'[1]FISCAL(M)'!$AY223)","v":"n.d."},{"$f":"IF('[1]FISCAL(M)'!$BI223=\"\",\"\",'[1]FISCAL(M)'!$BI223)","v":"n.d."},{"$f":"IF('[1]FISCAL(M)'!$BS223=\"\",\"\",'[1]FISCAL(M)'!$BS223)","v":"n.d."},{"$f":"IF('[1]FISCAL(M)'!$AZ223=\"\",\"\",'[1]FISCAL(M)'!$AZ223)","v":"n.d."},{"$f":"IF('[1]FISCAL(M)'!$BJ223=\"\",\"\",'[1]FISCAL(M)'!$BJ223)","v":"n.d."},{"$f":"IF('[1]FISCAL(M)'!$BT223=\"\",\"\",'[1]FISCAL(M)'!$BT223)","v":"n.d."},{"$f":"IF('[2]MONE(M)'!$AO223=\"\",\"\",'[2]MONE(M)'!$AO223)","v":5790629.3549906528},{"$f":"IF('[3]MONE(M)'!$AO223=\"\",\"\",'[3]MONE(M)'!$AO223)","v":8644.5632917099992},{"$f":"IF('[4]MONE(M)'!$AO223=\"\",\"\",'[4]MONE(M)'!$AO223)","v":74564.943046574379},{"$f":"IF('[5]MONE(M)'!$AO223=\"\",\"\",'[5]MONE(M)'!$AO223)","v":117421.45938694669},{"$f":"IF('[6]MONE(M)'!$AO223=\"\",\"\",'[6]MONE(M)'!$AO223)","v":39456.494980529722},{"$f":"IF('[7]MONE(M)'!$AO223=\"\",\"\",'[7]MONE(M)'!$AO223)","v":279081.48264393001},{"$f":"IF('[8]MONE(M)'!$AO223=\"\",\"\",'[8]MONE(M)'!$AO223)","v":16520.5220892},38.018408149057059,8.561781786937317,12.239782962650981,32.410606467544191,30.522150238013456,21.35654644900271,14.977994436389652,{"$f":"IF('[1]FISCAL(M)'!$K223=\"\",\"\",'[1]FISCAL(M)'!$K223)","v":312.67700386181457},{"$f":"+'[1]REAL(A)'!$AO$27","v":"n.d."},"n.d.",{"$f":"IF('[1]FISCAL(M)'!$L223=\"\",\"\",'[1]FISCAL(M)'!$L223)","v":-190.26498813518577},{"$f":"+'[1]REAL(A)'!$AP$27","v":"n.d."},"n.d.",61593.973319352088,{"$f":"'[1]Gráfico REM'!BG217","v":11252.746663314443},{"$f":"'[1]Gráfico REM'!BH217","v":46173.815739102763},{"$f":"'[1]Gráfico REM'!BI217","v":4167.410916934884},14.598553584720865,0.86581256025888287,21.141996137523968,-6.8942368315652258,90104.91310163209,{"$f":"'[1]Gráfico REM'!BK217","v":11871.047643274444},{"$f":"'[1]Gráfico REM'!BL217","v":62694.337828302763},{"$f":"'[1]Gráfico REM'!BM217","v":15539.527630054887},14.172975771016571,1.7912949842295411,19.45448775263452,5.1841771734598918]
[2007,"noviembre","2007-noviembre",{"$f":"IF('[1]REAL IPC(M)'!$AL224=\"\",\"\",+'[1]REAL IPC(M)'!$AL224)","v":10.053230836904881},{"$f":"IF('[1]REAL IPC(M)'!$BE224=\"\",\"\",+'[1]REAL IPC(M)'!$BE224)","v":8.5827075156512436},{"$f":"IF('[1]REAL IPC(M)'!$AM224=\"\",\"\",+'[1]REAL IPC(M)'!$AM224)","v":9.5677349391311228},{"$f":"IF('[1]REAL IPC(M)'!$BI224=\"\",\"\",+'[1]REAL IPC(M)'!$BI224)","v":8.1778375809751669},{"$f":"IF('[1]REAL IMAE(M)'!BJ224=\"\",\"\",'[1]REAL IMAE(M)'!BJ224)","v":"n.d."},{"$f":"IF('[1]REAL IMAE(M)'!BK224=\"\",\"\",'[1]REAL IMAE(M)'!BK224)","v":"n.d."},{"$f":"IF('[1]REAL IMAE(M)'!BN224=\"\",\"\",'[1]REAL IMAE(M)'!BN224)","v":"n.d."},{"$f":"IF('[1]REAL IMAE(M)'!BO224=\"\",\"\",'[1]REAL IMAE(M)'!BO224)","v":"n.d."},{"$f":"IF('[1]EXT RIN(M)'!$K224=\"\",\"\",'[1]EXT RIN(M)'!$K224)","v":16090.52848989897},"",{"$f":"IF('[1]EXT RIN(M)'!$L224=\"\",\"\",'[1]EXT RIN(M)'!$L224)","v":17874.624941158971},"",{"$f":"IF('[1]MONE(M)CARD'!EG224=\"\",\"\",'[1]MONE(M)CARD'!EG224)","v":17124.174822470832},{"$f":"IF('[1]MONE(M)CARD'!EK224=\"\",\"\",'[1]MONE(M)CARD'!EK224)","v":30701.145685900188},{"$f":"IF('[1]MONE(M)CARD'!EP224=\"\",\"\",'[1]MONE(M)CARD'!EP224)","v":15010.914339243434},{"$f":"IF('[1]MONE(M)CARD'!ES224=\"\",\"\",'[1]MONE(M)CARD'!ES224)","v":20.630089208069393},{"$f":"IF('[1]MONE(M)CARD'!EV224=\"\",\"\",'[1]MONE(M)CARD'!EV224)","v":18.146500107951447},{"$f":"IF('[1]MONE(M)CARD'!EZ224=\"\",\"\",'[1]MONE(M)CARD'!EZ224)","v":15.319105169679293},{"$f":"IF('[1]MONE(M)CAPARD'!FC224=\"\",\"\",'[1]MONE(M)CAPARD'!FC224)","v":19912.142765606233},{"$f":"IF('[1]MONE(M)CAPARD'!FG224=\"\",\"\",'[1]MONE(M)CAPARD'!FG224)","v":44963.682780283983},{"$f":"IF('[1]MONE(M)CAPARD'!FL224=\"\",\"\",'[1]MONE(M)CAPARD'!FL224)","v":15010.914339243427},{"$f":"IF('[1]MONE(M)CAPARD'!FO224=\"\",\"\",'[1]MONE(M)CAPARD'!FO224)","v":16.500909679629562},{"$f":"IF('[1]MONE(M)CAPARD'!FR224=\"\",\"\",'[1]MONE(M)CAPARD'!FR224)","v":17.052046909593699},{"$f":"IF('[1]MONE(M)CAPARD'!FV224=\"\",\"\",'[1]MONE(M)CAPARD'!FV224)","v":15.054046106884122},{"$f":"IF('[1]MONE(M)CARD'!FV224=\"\",\"\",'[1]MONE(M)CARD'!FV224)","v":2080.2832794349292},{"$f":"IF('[1]MONE(M)CARD'!GD224=\"\",\"\",'[1]MONE(M)CARD'!GD224)","v":52.721425737652318},{"$f":"IF('[1]MONE(M)CARD'!GE224=\"\",\"\",'[1]MONE(M)CARD'!GE224)","v":5044.9686131691624},15.298099965852341,{"$f":"IF('[9]II.2.Balance OSD-Activos'!J82=\"\",\"\",'[9]II.2.Balance OSD-Activos'!J82)","v":215.66209003148111},{"$f":"IF('[9]II.2.Balance OSD-Activos'!N82=\"\",\"\",'[9]II.2.Balance OSD-Activos'!N82)","v":417.80393108619012},{"$f":"IF('[9]II.2.Balance OSD-Activos'!R82=\"\",\"\",'[9]II.2.Balance OSD-Activos'!R82)","v":20276.653055618608},{"$f":"IF('[9]II.2.Balance OSD-Activos'!S82=\"\",\"\",'[9]II.2.Balance OSD-Activos'!S82)","v":25566.036984464416},20492.315145650089,46476.156061200694,-14.724346164531443,19.395396510226458,21.606638324090621,19.90566403270364,29.855728518540236,24.952676485366119,2.4110249817006491,{"$f":"IF('[1]MONE(M)CAPARD'!GS224=\"\",\"\",'[1]MONE(M)CAPARD'!GS224)","v":7678.2707559758583},{"$f":"IF('[1]MONE(M)CARD'!HA224=\"\",\"\",'[1]MONE(M)CAPARD'!HA224)","v":5411.3884739391624},{"$f":"IF('[1]MONE(M)CAPARD'!HB224=\"\",\"\",'[1]MONE(M)CAPARD'!HB224)","v":2266.8822820366959},"n.d.",{"$f":"IF('[10]II.2.Balance OSD-Activos'!J82=\"\",\"\",'[10]II.2.Balance OSD-Activos'!J82)","v":415.51220396148113},{"$f":"IF('[10]II.2.Balance OSD-Activos'!N82=\"\",\"\",'[10]II.2.Balance OSD-Activos'!N82)","v":859.75225175619016},{"$f":"IF('[10]II.2.Balance OSD-Activos'!R82=\"\",\"\",'[10]II.2.Balance OSD-Activos'!R82)","v":28723.924929468601},{"$f":"IF('[10]II.2.Balance OSD-Activos'!S82=\"\",\"\",'[10]II.2.Balance OSD-Activos'!S82)","v":33348.686577064414},29139.437133430081,63347.875962250691,-4.13304819371485,18.936455151089483,1.9240503302613066,19.351924273292241,26.037662871608049,22.286516509822651,1.8791908032997888,{"$f":"IF('[1]MONE(M)CAPARD'!AS224=\"\",\"\",'[1]MONE(M)CAPARD'!AS224)","v":5.52},{"$f":"IF('[1]MONE(M)CAPARD'!AT224=\"\",\"\",'[1]MONE(M)CAPARD'!AT224)","v":"n.a."},{"$f":"IF('[1]MONE(M)CAPARD'!AU224=\"\",\"\",'[1]MONE(M)CAPARD'!AU224)","v":6.25},{"$f":"IF('[1]MONE(M)CAPARD'!AV224=\"\",\"\",'[1]MONE(M)CAPARD'!AV224)","v":7},{"$f":"IF('[1]MONE(M)CAPARD'!AW224=\"\",\"\",'[1]MONE(M)CAPARD'!AW224)","v":"n.a."},{"$f":"IF('[1]MONE(M)CAPARD'!AX224=\"\",\"\",'[1]MONE(M)CAPARD'!AX224)","v":7},{"$f":"IF('[1]MONE(M)CAPARD'!AY224=\"\",\"\",'[1]MONE(M)CAPARD'!AY224)","v":"n.a."},{"$f":"IF('[1]FISCAL(M)'!$K224=\"\",\"\",'[1]FISCAL(M)'!$K224)","v":60.130137269605342},{"$f":"IF('[1]FISCAL(M)'!$L224=\"\",\"\",'[1]FISCAL(M)'!$L224)","v":-535.48740911739503},{"$f":"IF('[1]FISCAL(M)'!$AY224=\"\",\"\",'[1]FISCAL(M)'!$AY224)","v":"n.d."},{"$f":"IF('[1]FISCAL(M)'!$BI224=\"\",\"\",'[1]FISCAL(M)'!$BI224)","v":"n.d."},{"$f":"IF('[1]FISCAL(M)'!$BS224=\"\",\"\",'[1]FISCAL(M)'!$BS224)","v":"n.d."},{"$f":"IF('[1]FISCAL(M)'!$AZ224=\"\",\"\",'[1]FISCAL(M)'!$AZ224)","v":"n.d."},{"$f":"IF('[1]FISCAL(M)'!$BJ224=\"\",\"\",'[1]FISCAL(M)'!$BJ224)","v":"n.d."},{"$f":"IF('[1]FISCAL(M)'!$BT224=\"\",\"\",'[1]FISCAL(M)'!$BT224)","v":"n.d."},{"$f":"IF('[2]MONE(M)'!$AO224=\"\",\"\",'[2]MONE(M)'!$AO224)","v":5941566.1966409096},{"$f":"IF('[3]MONE(M)'!$AO224=\"\",\"\",'[3]MONE(M)'!$AO224)","v":8714.8013859899984},{"$f":"IF('[4]MONE(M)'!$AO224=\"\",\"\",'[4]MONE(M)'!$AO224)","v":75562.089428375009},{"$f":"IF('[5]MONE(M)'!$AO224=\"\",\"\",'[5]MONE(M)'!$AO224)","v":120135.07666471168},{"$f":"IF('[6]MONE(M)'!$AO224=\"\",\"\",'[6]MONE(M)'!$AO224)","v":40727.307321957174},{"$f":"IF('[7]MONE(M)'!$AO224=\"\",\"\",'[7]MONE(M)'!$AO224)","v":286743.46264819999},{"$f":"IF('[8]MONE(M)'!$AO224=\"\",\"\",'[8]MONE(M)'!$AO224)","v":16737.039509909995},36.685443095222148,8.3508424968524508,13.30830496851927,31.961848319293829,31.999821293135099,29.586241076177778,15.398822307000891,{"$f":"IF('[1]FISCAL(M)'!$K224=\"\",\"\",'[1]FISCAL(M)'!$K224)","v":60.130137269605342},{"$f":"+'[1]REAL(A)'!$AO$27","v":"n.d."},"n.d.",{"$f":"IF('[1]FISCAL(M)'!$L224=\"\",\"\",'[1]FISCAL(M)'!$L224)","v":-535.48740911739503},{"$f":"+'[1]REAL(A)'!$AP$27","v":"n.d."},"n.d.",63146.067337467553,{"$f":"'[1]Gráfico REM'!BG218","v":11220.617135863211},{"$f":"'[1]Gráfico REM'!BH218","v":47609.338699456988},{"$f":"'[1]Gráfico REM'!BI218","v":4316.1115021473561},16.40862932435736,-2.5587482638000703,23.94341053196527,-3.8075590454778041E-2,92312.093996467564,{"$f":"'[1]Gráfico REM'!BK218","v":11876.566639723211},{"$f":"'[1]Gráfico REM'!BL218","v":64346.378209366987},{"$f":"'[1]Gráfico REM'!BM218","v":16089.149147377359},16.414134708453719,-1.2934681974083762,21.601431601889164,12.132885824463102]
[2007,"diciembre","2007-diciembre",{"$f":"IF('[1]REAL IPC(M)'!$AL225=\"\",\"\",+'[1]REAL IPC(M)'!$AL225)","v":10.085202740623833},{"$f":"IF('[1]REAL IPC(M)'!$BE225=\"\",\"\",+'[1]REAL IPC(M)'!$BE225)","v":8.536408007240027},{"$f":"IF('[1]REAL IPC(M)'!$AM225=\"\",\"\",+'[1]REAL IPC(M)'!$AM225)","v":9.5923459744942097},{"$f":"IF('[1]REAL IPC(M)'!$BI225=\"\",\"\",+'[1]REAL IPC(M)'!$BI225)","v":8.1375830622406831},{"$f":"IF('[1]REAL IMAE(M)'!BJ225=\"\",\"\",'[1]REAL IMAE(M)'!BJ225)","v":"n.d."},{"$f":"IF('[1]REAL IMAE(M)'!BK225=\"\",\"\",'[1]REAL IMAE(M)'!BK225)","v":"n.d."},{"$f":"IF('[1]REAL IMAE(M)'!BN225=\"\",\"\",'[1]REAL IMAE(M)'!BN225)","v":"n.d."},{"$f":"IF('[1]REAL IMAE(M)'!BO225=\"\",\"\",'[1]REAL IMAE(M)'!BO225)","v":"n.d."},{"$f":"IF('[1]EXT RIN(M)'!$K225=\"\",\"\",'[1]EXT RIN(M)'!$K225)","v":16557.801364710427},16557.801364710427,{"$f":"IF('[1]EXT RIN(M)'!$L225=\"\",\"\",'[1]EXT RIN(M)'!$L225)","v":18629.446194005428},18629.446194005428,{"$f":"IF('[1]MONE(M)CARD'!EG225=\"\",\"\",'[1]MONE(M)CARD'!EG225)","v":18537.544771146029},{"$f":"IF('[1]MONE(M)CARD'!EK225=\"\",\"\",'[1]MONE(M)CARD'!EK225)","v":30974.91191599278},{"$f":"IF('[1]MONE(M)CARD'!EP225=\"\",\"\",'[1]MONE(M)CARD'!EP225)","v":15097.325484315217},{"$f":"IF('[1]MONE(M)CARD'!ES225=\"\",\"\",'[1]MONE(M)CARD'!ES225)","v":21.377201251296807},{"$f":"IF('[1]MONE(M)CARD'!EV225=\"\",\"\",'[1]MONE(M)CARD'!EV225)","v":18.588854297663083},{"$f":"IF('[1]MONE(M)CARD'!EZ225=\"\",\"\",'[1]MONE(M)CARD'!EZ225)","v":16.584529151657001},{"$f":"IF('[1]MONE(M)CAPARD'!FC225=\"\",\"\",'[1]MONE(M)CAPARD'!FC225)","v":21591.487716151431},{"$f":"IF('[1]MONE(M)CAPARD'!FG225=\"\",\"\",'[1]MONE(M)CAPARD'!FG225)","v":45459.316789645978},{"$f":"IF('[1]MONE(M)CAPARD'!FL225=\"\",\"\",'[1]MONE(M)CAPARD'!FL225)","v":15097.32548431521},{"$f":"IF('[1]MONE(M)CAPARD'!FO225=\"\",\"\",'[1]MONE(M)CAPARD'!FO225)","v":20.737907529899459},{"$f":"IF('[1]MONE(M)CAPARD'!FR225=\"\",\"\",'[1]MONE(M)CAPARD'!FR225)","v":18.25815877771948},{"$f":"IF('[1]MONE(M)CAPARD'!FV225=\"\",\"\",'[1]MONE(M)CAPARD'!FV225)","v":16.743828484309709},{"$f":"IF('[1]MONE(M)CARD'!FV225=\"\",\"\",'[1]MONE(M)CARD'!FV225)","v":2104.123826426875},{"$f":"IF('[1]MONE(M)CARD'!GD225=\"\",\"\",'[1]MONE(M)CARD'!GD225)","v":39.110051325840438},{"$f":"IF('[1]MONE(M)CARD'!GE225=\"\",\"\",'[1]MONE(M)CARD'!GE225)","v":4509.9827612995259},-1.5002828221604925,{"$f":"IF('[9]II.2.Balance OSD-Activos'!J83=\"\",\"\",'[9]II.2.Balance OSD-Activos'!J83)","v":220.0394912408423},{"$f":"IF('[9]II.2.Balance OSD-Activos'!N83=\"\",\"\",'[9]II.2.Balance OSD-Activos'!N83)","v":460.15235727611292},{"$f":"IF('[9]II.2.Balance OSD-Activos'!R83=\"\",\"\",'[9]II.2.Balance OSD-Activos'!R83)","v":20864.645996686646},{"$f":"IF('[9]II.2.Balance OSD-Activos'!S83=\"\",\"\",'[9]II.2.Balance OSD-Activos'!S83)","v":25955.009296714252},21084.685487927487,47499.847141917853,-4.5623142244788362E-2,20.617242791658754,28.500091764271129,20.880776148050572,28.59609070600473,24.926913032791486,-2.5763452574633305E-2,{"$f":"IF('[1]MONE(M)CAPARD'!GS225=\"\",\"\",'[1]MONE(M)CAPARD'!GS225)","v":7689.036849136015},{"$f":"IF('[1]MONE(M)CARD'!HA225=\"\",\"\",'[1]MONE(M)CAPARD'!HA225)","v":4876.2149794995257},{"$f":"IF('[1]MONE(M)CAPARD'!HB225=\"\",\"\",'[1]MONE(M)CAPARD'!HB225)","v":2812.8218696364893},"n.d.",{"$f":"IF('[10]II.2.Balance OSD-Activos'!J83=\"\",\"\",'[10]II.2.Balance OSD-Activos'!J83)","v":440.78532253084234},{"$f":"IF('[10]II.2.Balance OSD-Activos'!N83=\"\",\"\",'[10]II.2.Balance OSD-Activos'!N83)","v":933.4774994261129},{"$f":"IF('[10]II.2.Balance OSD-Activos'!R83=\"\",\"\",'[10]II.2.Balance OSD-Activos'!R83)","v":29131.156404916648},{"$f":"IF('[10]II.2.Balance OSD-Activos'!S83=\"\",\"\",'[10]II.2.Balance OSD-Activos'!S83)","v":33859.247071344253},29571.941727447491,64364.666298217853,10.573020775777486,20.792462952862323,11.273612622123608,20.961621917217599,25.280580079390536,22.957118335894467,0.67060182607181673,{"$f":"IF('[1]MONE(M)CAPARD'!AS225=\"\",\"\",'[1]MONE(M)CAPARD'!AS225)","v":5.52},{"$f":"IF('[1]MONE(M)CAPARD'!AT225=\"\",\"\",'[1]MONE(M)CAPARD'!AT225)","v":"n.a."},{"$f":"IF('[1]MONE(M)CAPARD'!AU225=\"\",\"\",'[1]MONE(M)CAPARD'!AU225)","v":6.5},{"$f":"IF('[1]MONE(M)CAPARD'!AV225=\"\",\"\",'[1]MONE(M)CAPARD'!AV225)","v":7.5},{"$f":"IF('[1]MONE(M)CAPARD'!AW225=\"\",\"\",'[1]MONE(M)CAPARD'!AW225)","v":"n.a."},{"$f":"IF('[1]MONE(M)CAPARD'!AX225=\"\",\"\",'[1]MONE(M)CAPARD'!AX225)","v":7},{"$f":"IF('[1]MONE(M)CAPARD'!AY225=\"\",\"\",'[1]MONE(M)CAPARD'!AY225)","v":"n.a."},{"$f":"IF('[1]FISCAL(M)'!$K225=\"\",\"\",'[1]FISCAL(M)'!$K225)","v":-668.54404734636864},{"$f":"IF('[1]FISCAL(M)'!$L225=\"\",\"\",'[1]FISCAL(M)'!$L225)","v":-667.50089221737005},{"$f":"IF('[1]FISCAL(M)'!$AY225=\"\",\"\",'[1]FISCAL(M)'!$AY225)","v":49257.846177800566},{"$f":"IF('[1]FISCAL(M)'!$BI225=\"\",\"\",'[1]FISCAL(M)'!$BI225)","v":22948.987609230568},{"$f":"IF('[1]FISCAL(M)'!$BS225=\"\",\"\",'[1]FISCAL(M)'!$BS225)","v":26308.858568570002},{"$f":"IF('[1]FISCAL(M)'!$AZ225=\"\",\"\",'[1]FISCAL(M)'!$AZ225)","v":59897.488762650559},{"$f":"IF('[1]FISCAL(M)'!$BJ225=\"\",\"\",'[1]FISCAL(M)'!$BJ225)","v":25313.005016360567},{"$f":"IF('[1]FISCAL(M)'!$BT225=\"\",\"\",'[1]FISCAL(M)'!$BT225)","v":34584.483746290003},{"$f":"IF('[2]MONE(M)'!$AO225=\"\",\"\",'[2]MONE(M)'!$AO225)","v":6160428.0506168222},{"$f":"IF('[3]MONE(M)'!$AO225=\"\",\"\",'[3]MONE(M)'!$AO225)","v":8773.6392377900011},{"$f":"IF('[4]MONE(M)'!$AO225=\"\",\"\",'[4]MONE(M)'!$AO225)","v":76736.544869611389},{"$f":"IF('[5]MONE(M)'!$AO225=\"\",\"\",'[5]MONE(M)'!$AO225)","v":122651.27249980241},{"$f":"IF('[6]MONE(M)'!$AO225=\"\",\"\",'[6]MONE(M)'!$AO225)","v":41538.341226571407},{"$f":"IF('[7]MONE(M)'!$AO225=\"\",\"\",'[7]MONE(M)'!$AO225)","v":294178.24319206999},{"$f":"IF('[8]MONE(M)'!$AO225=\"\",\"\",'[8]MONE(M)'!$AO225)","v":16743.095265520002},37.383995581672337,7.8059213377459358,13.004888400500914,32.422324099251384,31.972200044493061,28.886715560482411,18.616500220957821,{"$f":"IF('[1]FISCAL(M)'!$K225=\"\",\"\",'[1]FISCAL(M)'!$K225)","v":-668.54404734636864},{"$f":"+'[1]REAL(A)'!$AO$27","v":"n.d."},"n.d.",{"$f":"IF('[1]FISCAL(M)'!$L225=\"\",\"\",'[1]FISCAL(M)'!$L225)","v":-667.50089221737005},{"$f":"+'[1]REAL(A)'!$AP$27","v":"n.d."},"n.d.",64008.673695238213,{"$f":"'[1]Gráfico REM'!BG219","v":10987.899513809776},{"$f":"'[1]Gráfico REM'!BH219","v":48625.263870495313},{"$f":"'[1]Gráfico REM'!BI219","v":4395.510310933123},16.895456092121396,-4.2085973247373509,23.942599725969615,8.4117481321579923,93475.04855597821,{"$f":"'[1]Gráfico REM'!BK219","v":11553.689516669776},{"$f":"'[1]Gráfico REM'!BL219","v":65368.359136015315},{"$f":"'[1]Gráfico REM'!BM219","v":16552.999903293123},17.748443381126442,-3.656355350879481,22.533354226006175,17.850063592537111]
[2008,"enero","2008-enero",{"$f":"IF('[1]REAL IPC(M)'!$AL226=\"\",\"\",+'[1]REAL IPC(M)'!$AL226)","v":9.7027748358663679},{"$f":"IF('[1]REAL IPC(M)'!$BE226=\"\",\"\",+'[1]REAL IPC(M)'!$BE226)","v":8.4849281677878317},{"$f":"IF('[1]REAL IPC(M)'!$AM226=\"\",\"\",+'[1]REAL IPC(M)'!$AM226)","v":9.0719613897746179},{"$f":"IF('[1]REAL IPC(M)'!$BI226=\"\",\"\",+'[1]REAL IPC(M)'!$BI226)","v":8.0920441047292577},{"$f":"IF('[1]REAL IMAE(M)'!BJ226=\"\",\"\",'[1]REAL IMAE(M)'!BJ226)","v":6.0455847705350063},{"$f":"IF('[1]REAL IMAE(M)'!BK226=\"\",\"\",'[1]REAL IMAE(M)'!BK226)","v":2.0076109503664119},{"$f":"IF('[1]REAL IMAE(M)'!BN226=\"\",\"\",'[1]REAL IMAE(M)'!BN226)","v":6.4482252241629068},{"$f":"IF('[1]REAL IMAE(M)'!BO226=\"\",\"\",'[1]REAL IMAE(M)'!BO226)","v":2.5694931055616044},{"$f":"IF('[1]EXT RIN(M)'!$K226=\"\",\"\",'[1]EXT RIN(M)'!$K226)","v":16678.656912816023},"",{"$f":"IF('[1]EXT RIN(M)'!$L226=\"\",\"\",'[1]EXT RIN(M)'!$L226)","v":18782.566235151022},"",{"$f":"IF('[1]MONE(M)CARD'!EG226=\"\",\"\",'[1]MONE(M)CARD'!EG226)","v":18592.673135685029},{"$f":"IF('[1]MONE(M)CARD'!EK226=\"\",\"\",'[1]MONE(M)CARD'!EK226)","v":31165.287984553499},{"$f":"IF('[1]MONE(M)CARD'!EP226=\"\",\"\",'[1]MONE(M)CARD'!EP226)","v":15366.175917484295},{"$f":"IF('[1]MONE(M)CARD'!ES226=\"\",\"\",'[1]MONE(M)CARD'!ES226)","v":24.022308465603647},{"$f":"IF('[1]MONE(M)CARD'!EV226=\"\",\"\",'[1]MONE(M)CARD'!EV226)","v":19.648083671443505},{"$f":"IF('[1]MONE(M)CARD'!EZ226=\"\",\"\",'[1]MONE(M)CARD'!EZ226)","v":17.71863780574574},{"$f":"IF('[1]MONE(M)CAPARD'!FC226=\"\",\"\",'[1]MONE(M)CAPARD'!FC226)","v":21653.190941709432},{"$f":"IF('[1]MONE(M)CAPARD'!FG226=\"\",\"\",'[1]MONE(M)CAPARD'!FG226)","v":45751.2563099783},{"$f":"IF('[1]MONE(M)CAPARD'!FL226=\"\",\"\",'[1]MONE(M)CAPARD'!FL226)","v":15366.175917484303},{"$f":"IF('[1]MONE(M)CAPARD'!FO226=\"\",\"\",'[1]MONE(M)CAPARD'!FO226)","v":24.190102952443372},{"$f":"IF('[1]MONE(M)CAPARD'!FR226=\"\",\"\",'[1]MONE(M)CAPARD'!FR226)","v":19.336368246324387},{"$f":"IF('[1]MONE(M)CAPARD'!FV226=\"\",\"\",'[1]MONE(M)CAPARD'!FV226)","v":17.877203583601052},{"$f":"IF('[1]MONE(M)CARD'!FV226=\"\",\"\",'[1]MONE(M)CARD'!FV226)","v":2106.1379118458181},{"$f":"IF('[1]MONE(M)CARD'!GD226=\"\",\"\",'[1]MONE(M)CARD'!GD226)","v":69.381523660716766},{"$f":"IF('[1]MONE(M)CARD'!GE226=\"\",\"\",'[1]MONE(M)CARD'!GE226)","v":5038.8219360934927},19.050468577059654,{"$f":"IF('[9]II.2.Balance OSD-Activos'!J84=\"\",\"\",'[9]II.2.Balance OSD-Activos'!J84)","v":127.99189719458448},{"$f":"IF('[9]II.2.Balance OSD-Activos'!N84=\"\",\"\",'[9]II.2.Balance OSD-Activos'!N84)","v":421.72115697116487},{"$f":"IF('[9]II.2.Balance OSD-Activos'!R84=\"\",\"\",'[9]II.2.Balance OSD-Activos'!R84)","v":22554.104071466558},{"$f":"IF('[9]II.2.Balance OSD-Activos'!S84=\"\",\"\",'[9]II.2.Balance OSD-Activos'!S84)","v":24415.401362503588},22682.095968661142,47519.218488135899,-38.471812213497692,27.546207558306634,22.503843764287357,28.327592998262041,20.852177073969891,23.972715551629232,-0.95419748116225378,{"$f":"IF('[1]MONE(M)CAPARD'!GS226=\"\",\"\",'[1]MONE(M)CAPARD'!GS226)","v":7631.8255011603569},{"$f":"IF('[1]MONE(M)CARD'!HA226=\"\",\"\",'[1]MONE(M)CAPARD'!HA226)","v":5422.4206575834924},{"$f":"IF('[1]MONE(M)CAPARD'!HB226=\"\",\"\",'[1]MONE(M)CAPARD'!HB226)","v":2209.4048435768646},"n.d.",{"$f":"IF('[10]II.2.Balance OSD-Activos'!J84=\"\",\"\",'[10]II.2.Balance OSD-Activos'!J84)","v":369.63802672458445},{"$f":"IF('[10]II.2.Balance OSD-Activos'!N84=\"\",\"\",'[10]II.2.Balance OSD-Activos'!N84)","v":887.77415211116477},{"$f":"IF('[10]II.2.Balance OSD-Activos'!R84=\"\",\"\",'[10]II.2.Balance OSD-Activos'!R84)","v":30984.145769866562},{"$f":"IF('[10]II.2.Balance OSD-Activos'!S84=\"\",\"\",'[10]II.2.Balance OSD-Activos'!S84)","v":32353.18051382359},31353.783796591146,64594.7384625259,-6.6198599010862562,25.841950330574637,11.32479785852507,26.366015893439499,19.300914483949395,22.265248055965927,-0.69187027992854055,{"$f":"IF('[1]MONE(M)CAPARD'!AS226=\"\",\"\",'[1]MONE(M)CAPARD'!AS226)","v":5.99},{"$f":"IF('[1]MONE(M)CAPARD'!AT226=\"\",\"\",'[1]MONE(M)CAPARD'!AT226)","v":"n.a."},{"$f":"IF('[1]MONE(M)CAPARD'!AU226=\"\",\"\",'[1]MONE(M)CAPARD'!AU226)","v":6.5},{"$f":"IF('[1]MONE(M)CAPARD'!AV226=\"\",\"\",'[1]MONE(M)CAPARD'!AV226)","v":7.5},{"$f":"IF('[1]MONE(M)CAPARD'!AW226=\"\",\"\",'[1]MONE(M)CAPARD'!AW226)","v":"n.a."},{"$f":"IF('[1]MONE(M)CAPARD'!AX226=\"\",\"\",'[1]MONE(M)CAPARD'!AX226)","v":7},{"$f":"IF('[1]MONE(M)CAPARD'!AY226=\"\",\"\",'[1]MONE(M)CAPARD'!AY226)","v":"n.a."},{"$f":"IF('[1]FISCAL(M)'!$K226=\"\",\"\",'[1]FISCAL(M)'!$K226)","v":132.49436230865908},{"$f":"IF('[1]FISCAL(M)'!$L226=\"\",\"\",'[1]FISCAL(M)'!$L226)","v":53.585997098659078},{"$f":"IF('[1]FISCAL(M)'!$AY226=\"\",\"\",'[1]FISCAL(M)'!$AY226)","v":"n.d."},{"$f":"IF('[1]FISCAL(M)'!$BI226=\"\",\"\",'[1]FISCAL(M)'!$BI226)","v":"n.d."},{"$f":"IF('[1]FISCAL(M)'!$BS226=\"\",\"\",'[1]FISCAL(M)'!$BS226)","v":"n.d."},{"$f":"IF('[1]FISCAL(M)'!$AZ226=\"\",\"\",'[1]FISCAL(M)'!$AZ226)","v":"n.d."},{"$f":"IF('[1]FISCAL(M)'!$BJ226=\"\",\"\",'[1]FISCAL(M)'!$BJ226)","v":"n.d."},{"$f":"IF('[1]FISCAL(M)'!$BT226=\"\",\"\",'[1]FISCAL(M)'!$BT226)","v":"n.d."},{"$f":"IF('[2]MONE(M)'!$AO226=\"\",\"\",'[2]MONE(M)'!$AO226)","v":6293619.8067052281},{"$f":"IF('[3]MONE(M)'!$AO226=\"\",\"\",'[3]MONE(M)'!$AO226)","v":8854.9335304199994},{"$f":"IF('[4]MONE(M)'!$AO226=\"\",\"\",'[4]MONE(M)'!$AO226)","v":76821.697362542574},{"$f":"IF('[5]MONE(M)'!$AO226=\"\",\"\",'[5]MONE(M)'!$AO226)","v":124443.89473762974},{"$f":"IF('[6]MONE(M)'!$AO226=\"\",\"\",'[6]MONE(M)'!$AO226)","v":42100.755822950588},{"$f":"IF('[7]MONE(M)'!$AO226=\"\",\"\",'[7]MONE(M)'!$AO226)","v":298590.45260459004},{"$f":"IF('[8]MONE(M)'!$AO226=\"\",\"\",'[8]MONE(M)'!$AO226)","v":16927.708996880003},39.171033006855495,8.1961879990541053,12.106578238569554,31.006310498154164,30.773474301659554,29.125838582409958,18.228357774085158,{"$f":"IF('[1]FISCAL(M)'!$K226=\"\",\"\",'[1]FISCAL(M)'!$K226)","v":132.49436230865908},{"$f":"+'[1]REAL(A)'!$AO$28","v":"n.d."},"n.d.",{"$f":"IF('[1]FISCAL(M)'!$L226=\"\",\"\",'[1]FISCAL(M)'!$L226)","v":53.585997098659078},{"$f":"+'[1]REAL(A)'!$AP$28","v":"n.d."},"n.d.",64998.230235143958,{"$f":"'[1]Gráfico REM'!BG220","v":11389.536270312048},{"$f":"'[1]Gráfico REM'!BH220","v":49040.143455074089},{"$f":"'[1]Gráfico REM'!BI220","v":4568.5505097578207},18.577429789778744,-0.32390682499878753,24.206349100971501,16.972460976139647,94679.256563293966,{"$f":"'[1]Gráfico REM'!BK220","v":11978.678804900048},{"$f":"'[1]Gráfico REM'!BL220","v":65967.852451954095},{"$f":"'[1]Gráfico REM'!BM220","v":16732.725306439825},18.734458818236167,0.59398908519328053,22.615442688663954,19.248752882380504]
[2008,"febrero","2008-febrero",{"$f":"IF('[1]REAL IPC(M)'!$AL227=\"\",\"\",+'[1]REAL IPC(M)'!$AL227)","v":9.9854308937752165},{"$f":"IF('[1]REAL IPC(M)'!$BE227=\"\",\"\",+'[1]REAL IPC(M)'!$BE227)","v":8.4272992910444433},{"$f":"IF('[1]REAL IPC(M)'!$AM227=\"\",\"\",+'[1]REAL IPC(M)'!$AM227)","v":9.373247156708576},{"$f":"IF('[1]REAL IPC(M)'!$BI227=\"\",\"\",+'[1]REAL IPC(M)'!$BI227)","v":8.0401455147871346},{"$f":"IF('[1]REAL IMAE(M)'!BJ227=\"\",\"\",'[1]REAL IMAE(M)'!BJ227)","v":5.884662344881697},{"$f":"IF('[1]REAL IMAE(M)'!BK227=\"\",\"\",'[1]REAL IMAE(M)'!BK227)","v":1.9867484893581144},{"$f":"IF('[1]REAL IMAE(M)'!BN227=\"\",\"\",'[1]REAL IMAE(M)'!BN227)","v":6.2849479252097273},{"$f":"IF('[1]REAL IMAE(M)'!BO227=\"\",\"\",'[1]REAL IMAE(M)'!BO227)","v":2.5422406948275578},{"$f":"IF('[1]EXT RIN(M)'!$K227=\"\",\"\",'[1]EXT RIN(M)'!$K227)","v":16845.612612520639},"",{"$f":"IF('[1]EXT RIN(M)'!$L227=\"\",\"\",'[1]EXT RIN(M)'!$L227)","v":18955.004149465891},"",{"$f":"IF('[1]MONE(M)CARD'!EG227=\"\",\"\",'[1]MONE(M)CARD'!EG227)","v":18757.285183563792},{"$f":"IF('[1]MONE(M)CARD'!EK227=\"\",\"\",'[1]MONE(M)CARD'!EK227)","v":31968.979673676578},{"$f":"IF('[1]MONE(M)CARD'!EP227=\"\",\"\",'[1]MONE(M)CARD'!EP227)","v":15452.846034117189},{"$f":"IF('[1]MONE(M)CARD'!ES227=\"\",\"\",'[1]MONE(M)CARD'!ES227)","v":22.913242568281376},{"$f":"IF('[1]MONE(M)CARD'!EV227=\"\",\"\",'[1]MONE(M)CARD'!EV227)","v":20.701305534019564},{"$f":"IF('[1]MONE(M)CARD'!EZ227=\"\",\"\",'[1]MONE(M)CARD'!EZ227)","v":18.106943056442294},{"$f":"IF('[1]MONE(M)CAPARD'!FC227=\"\",\"\",'[1]MONE(M)CAPARD'!FC227)","v":21875.749176878191},{"$f":"IF('[1]MONE(M)CAPARD'!FG227=\"\",\"\",'[1]MONE(M)CAPARD'!FG227)","v":46701.472679012979},{"$f":"IF('[1]MONE(M)CAPARD'!FL227=\"\",\"\",'[1]MONE(M)CAPARD'!FL227)","v":15452.846034117189},{"$f":"IF('[1]MONE(M)CAPARD'!FO227=\"\",\"\",'[1]MONE(M)CAPARD'!FO227)","v":23.339830574397901},{"$f":"IF('[1]MONE(M)CAPARD'!FR227=\"\",\"\",'[1]MONE(M)CAPARD'!FR227)","v":19.899941639793607},{"$f":"IF('[1]MONE(M)CAPARD'!FV227=\"\",\"\",'[1]MONE(M)CAPARD'!FV227)","v":18.01593240377446},{"$f":"IF('[1]MONE(M)CARD'!FV227=\"\",\"\",'[1]MONE(M)CARD'!FV227)","v":2134.1025800202224},{"$f":"IF('[1]MONE(M)CARD'!GD227=\"\",\"\",'[1]MONE(M)CARD'!GD227)","v":68.848286482011872},{"$f":"IF('[1]MONE(M)CARD'!GE227=\"\",\"\",'[1]MONE(M)CARD'!GE227)","v":4721.4640052103668},3.9291800617949679,{"$f":"IF('[9]II.2.Balance OSD-Activos'!J85=\"\",\"\",'[9]II.2.Balance OSD-Activos'!J85)","v":105.24656609477191},{"$f":"IF('[9]II.2.Balance OSD-Activos'!N85=\"\",\"\",'[9]II.2.Balance OSD-Activos'!N85)","v":423.94699355323155},{"$f":"IF('[9]II.2.Balance OSD-Activos'!R85=\"\",\"\",'[9]II.2.Balance OSD-Activos'!R85)","v":22938.57587760665},{"$f":"IF('[9]II.2.Balance OSD-Activos'!S85=\"\",\"\",'[9]II.2.Balance OSD-Activos'!S85)","v":24898.939357606636},23043.822443701421,48366.70879486129,-54.860054206247241,30.466784590193406,18.95713604166831,31.608214115215706,19.400697357372465,24.424790055266232,0.45207450363700019,{"$f":"IF('[1]MONE(M)CAPARD'!GS227=\"\",\"\",'[1]MONE(M)CAPARD'!GS227)","v":7878.892455358462},{"$f":"IF('[1]MONE(M)CARD'!HA227=\"\",\"\",'[1]MONE(M)CAPARD'!HA227)","v":5104.7033794803665},{"$f":"IF('[1]MONE(M)CAPARD'!HB227=\"\",\"\",'[1]MONE(M)CAPARD'!HB227)","v":2774.1890758780955},"n.d.",{"$f":"IF('[10]II.2.Balance OSD-Activos'!J85=\"\",\"\",'[10]II.2.Balance OSD-Activos'!J85)","v":374.7292216647719},{"$f":"IF('[10]II.2.Balance OSD-Activos'!N85=\"\",\"\",'[10]II.2.Balance OSD-Activos'!N85)","v":847.11787700323146},{"$f":"IF('[10]II.2.Balance OSD-Activos'!R85=\"\",\"\",'[10]II.2.Balance OSD-Activos'!R85)","v":31430.900597506654},{"$f":"IF('[10]II.2.Balance OSD-Activos'!S85=\"\",\"\",'[10]II.2.Balance OSD-Activos'!S85)","v":32918.354538346633},31805.629819171427,65571.102234521299,-7.8632540634569477,28.027237602444522,3.7281389888239591,28.624590920455951,18.282160697282968,22.58595946930275,0.32071141333682363,{"$f":"IF('[1]MONE(M)CAPARD'!AS227=\"\",\"\",'[1]MONE(M)CAPARD'!AS227)","v":5.99},{"$f":"IF('[1]MONE(M)CAPARD'!AT227=\"\",\"\",'[1]MONE(M)CAPARD'!AT227)","v":"n.a."},{"$f":"IF('[1]MONE(M)CAPARD'!AU227=\"\",\"\",'[1]MONE(M)CAPARD'!AU227)","v":6.5},{"$f":"IF('[1]MONE(M)CAPARD'!AV227=\"\",\"\",'[1]MONE(M)CAPARD'!AV227)","v":7.75},{"$f":"IF('[1]MONE(M)CAPARD'!AW227=\"\",\"\",'[1]MONE(M)CAPARD'!AW227)","v":"n.a."},{"$f":"IF('[1]MONE(M)CAPARD'!AX227=\"\",\"\",'[1]MONE(M)CAPARD'!AX227)","v":8},{"$f":"IF('[1]MONE(M)CAPARD'!AY227=\"\",\"\",'[1]MONE(M)CAPARD'!AY227)","v":"n.a."},{"$f":"IF('[1]FISCAL(M)'!$K227=\"\",\"\",'[1]FISCAL(M)'!$K227)","v":9.6930355196677169},{"$f":"IF('[1]FISCAL(M)'!$L227=\"\",\"\",'[1]FISCAL(M)'!$L227)","v":-102.25021273033236},{"$f":"IF('[1]FISCAL(M)'!$AY227=\"\",\"\",'[1]FISCAL(M)'!$AY227)","v":"n.d."},{"$f":"IF('[1]FISCAL(M)'!$BI227=\"\",\"\",'[1]FISCAL(M)'!$BI227)","v":"n.d."},{"$f":"IF('[1]FISCAL(M)'!$BS227=\"\",\"\",'[1]FISCAL(M)'!$BS227)","v":"n.d."},{"$f":"IF('[1]FISCAL(M)'!$AZ227=\"\",\"\",'[1]FISCAL(M)'!$AZ227)","v":"n.d."},{"$f":"IF('[1]FISCAL(M)'!$BJ227=\"\",\"\",'[1]FISCAL(M)'!$BJ227)","v":"n.d."},{"$f":"IF('[1]FISCAL(M)'!$BT227=\"\",\"\",'[1]FISCAL(M)'!$BT227)","v":"n.d."},{"$f":"IF('[2]MONE(M)'!$AO227=\"\",\"\",'[2]MONE(M)'!$AO227)","v":6464478.6328722192},{"$f":"IF('[3]MONE(M)'!$AO227=\"\",\"\",'[3]MONE(M)'!$AO227)","v":8935.6711540199994},{"$f":"IF('[4]MONE(M)'!$AO227=\"\",\"\",'[4]MONE(M)'!$AO227)","v":77209.071496934455},{"$f":"IF('[5]MONE(M)'!$AO227=\"\",\"\",'[5]MONE(M)'!$AO227)","v":127016.80824197558},{"$f":"IF('[6]MONE(M)'!$AO227=\"\",\"\",'[6]MONE(M)'!$AO227)","v":43138.949339513507},{"$f":"IF('[7]MONE(M)'!$AO227=\"\",\"\",'[7]MONE(M)'!$AO227)","v":301205.27564047999},{"$f":"IF('[8]MONE(M)'!$AO227=\"\",\"\",'[8]MONE(M)'!$AO227)","v":17151.067786299998},39.95423744097446,9.157166994826337,11.606532767833833,30.478026780464894,32.151438223893635,29.413301621695442,18.784687923443787,{"$f":"IF('[1]FISCAL(M)'!$K227=\"\",\"\",'[1]FISCAL(M)'!$K227)","v":9.6930355196677169},{"$f":"+'[1]REAL(A)'!$AO$28","v":"n.d."},"n.d.",{"$f":"IF('[1]FISCAL(M)'!$L227=\"\",\"\",'[1]FISCAL(M)'!$L227)","v":-102.25021273033236},{"$f":"+'[1]REAL(A)'!$AP$28","v":"n.d."},"n.d.",66011.306913803041,{"$f":"'[1]Gráfico REM'!BG221","v":11547.868701423733},{"$f":"'[1]Gráfico REM'!BH221","v":49943.916123528419},{"$f":"'[1]Gráfico REM'!BI221","v":4519.5220888508884},19.235666734741574,2.3870139683488834,24.805379912384605,11.155007288189033,96308.610599434032,{"$f":"'[1]Gráfico REM'!BK221","v":12230.838093296734},{"$f":"'[1]Gráfico REM'!BL221","v":67094.983909828414},{"$f":"'[1]Gráfico REM'!BM221","v":16982.788596308885},19.709821698845943,3.8334991776329153,23.209024539385336,19.460688059787824]
[2008,"marzo","2008-marzo",{"$f":"IF('[1]REAL IPC(M)'!$AL228=\"\",\"\",+'[1]REAL IPC(M)'!$AL228)","v":10.377450133125032},{"$f":"IF('[1]REAL IPC(M)'!$BE228=\"\",\"\",+'[1]REAL IPC(M)'!$BE228)","v":8.362655453838741},{"$f":"IF('[1]REAL IPC(M)'!$AM228=\"\",\"\",+'[1]REAL IPC(M)'!$AM228)","v":9.7634458847298369},{"$f":"IF('[1]REAL IPC(M)'!$BI228=\"\",\"\",+'[1]REAL IPC(M)'!$BI228)","v":7.980913529458733},{"$f":"IF('[1]REAL IMAE(M)'!BJ228=\"\",\"\",'[1]REAL IMAE(M)'!BJ228)","v":5.3522673609577298},{"$f":"IF('[1]REAL IMAE(M)'!BK228=\"\",\"\",'[1]REAL IMAE(M)'!BK228)","v":1.9640743367484115},{"$f":"IF('[1]REAL IMAE(M)'!BN228=\"\",\"\",'[1]REAL IMAE(M)'!BN228)","v":5.9659839181030128},{"$f":"IF('[1]REAL IMAE(M)'!BO228=\"\",\"\",'[1]REAL IMAE(M)'!BO228)","v":2.5122562241888247},{"$f":"IF('[1]EXT RIN(M)'!$K228=\"\",\"\",'[1]EXT RIN(M)'!$K228)","v":17250.804473252341},"",{"$f":"IF('[1]EXT RIN(M)'!$L228=\"\",\"\",'[1]EXT RIN(M)'!$L228)","v":19262.05363292334},"",{"$f":"IF('[1]MONE(M)CARD'!EG228=\"\",\"\",'[1]MONE(M)CARD'!EG228)","v":19264.133576631142},{"$f":"IF('[1]MONE(M)CARD'!EK228=\"\",\"\",'[1]MONE(M)CARD'!EK228)","v":32196.492115516314},{"$f":"IF('[1]MONE(M)CARD'!EP228=\"\",\"\",'[1]MONE(M)CARD'!EP228)","v":15815.74981379474},{"$f":"IF('[1]MONE(M)CARD'!ES228=\"\",\"\",'[1]MONE(M)CARD'!ES228)","v":22.3118709439456},{"$f":"IF('[1]MONE(M)CARD'!EV228=\"\",\"\",'[1]MONE(M)CARD'!EV228)","v":18.097560181411442},{"$f":"IF('[1]MONE(M)CARD'!EZ228=\"\",\"\",'[1]MONE(M)CARD'!EZ228)","v":16.452727430111036},{"$f":"IF('[1]MONE(M)CAPARD'!FC228=\"\",\"\",'[1]MONE(M)CAPARD'!FC228)","v":22400.127548216544},{"$f":"IF('[1]MONE(M)CAPARD'!FG228=\"\",\"\",'[1]MONE(M)CAPARD'!FG228)","v":47279.782686168306},{"$f":"IF('[1]MONE(M)CAPARD'!FL228=\"\",\"\",'[1]MONE(M)CAPARD'!FL228)","v":15815.74981379474},{"$f":"IF('[1]MONE(M)CAPARD'!FO228=\"\",\"\",'[1]MONE(M)CAPARD'!FO228)","v":22.542486537139883},{"$f":"IF('[1]MONE(M)CAPARD'!FR228=\"\",\"\",'[1]MONE(M)CAPARD'!FR228)","v":17.820441659108699},{"$f":"IF('[1]MONE(M)CAPARD'!FV228=\"\",\"\",'[1]MONE(M)CAPARD'!FV228)","v":16.578374155314933},{"$f":"IF('[1]MONE(M)CARD'!FV228=\"\",\"\",'[1]MONE(M)CARD'!FV228)","v":2148.157047088243},{"$f":"IF('[1]MONE(M)CARD'!GD228=\"\",\"\",'[1]MONE(M)CARD'!GD228)","v":65.810153917243738},{"$f":"IF('[1]MONE(M)CARD'!GE228=\"\",\"\",'[1]MONE(M)CARD'!GE228)","v":5216.5804366607917},16.416533470282268,{"$f":"IF('[9]II.2.Balance OSD-Activos'!J86=\"\",\"\",'[9]II.2.Balance OSD-Activos'!J86)","v":120.13591513421417},{"$f":"IF('[9]II.2.Balance OSD-Activos'!N86=\"\",\"\",'[9]II.2.Balance OSD-Activos'!N86)","v":439.1244178526963},{"$f":"IF('[9]II.2.Balance OSD-Activos'!R86=\"\",\"\",'[9]II.2.Balance OSD-Activos'!R86)","v":23273.757808179726},{"$f":"IF('[9]II.2.Balance OSD-Activos'!S86=\"\",\"\",'[9]II.2.Balance OSD-Activos'!S86)","v":25301.987715809471},23393.89372331394,49135.005856976102,-50.76003526484962,28.696008757548206,15.696328878161015,29.776977687892781,20.202223728808953,24.057296766579572,-0.36749328868665998,{"$f":"IF('[1]MONE(M)CAPARD'!GS228=\"\",\"\",'[1]MONE(M)CAPARD'!GS228)","v":7890.7620073647022},{"$f":"IF('[1]MONE(M)CARD'!HA228=\"\",\"\",'[1]MONE(M)CAPARD'!HA228)","v":5604.7329053907924},{"$f":"IF('[1]MONE(M)CAPARD'!HB228=\"\",\"\",'[1]MONE(M)CAPARD'!HB228)","v":2286.0291019739097},"n.d.",{"$f":"IF('[10]II.2.Balance OSD-Activos'!J86=\"\",\"\",'[10]II.2.Balance OSD-Activos'!J86)","v":372.42474203421415},{"$f":"IF('[10]II.2.Balance OSD-Activos'!N86=\"\",\"\",'[10]II.2.Balance OSD-Activos'!N86)","v":867.03146480269618},{"$f":"IF('[10]II.2.Balance OSD-Activos'!R86=\"\",\"\",'[10]II.2.Balance OSD-Activos'!R86)","v":31879.956142339724},{"$f":"IF('[10]II.2.Balance OSD-Activos'!S86=\"\",\"\",'[10]II.2.Balance OSD-Activos'!S86)","v":33357.794997429475},32252.380884373939,66477.207346606112,-10.527003058716367,26.673846794402213,9.4461924434935618,27.292123978710126,18.686312192290444,22.29289569344828,-0.29306377585447052,{"$f":"IF('[1]MONE(M)CAPARD'!AS228=\"\",\"\",'[1]MONE(M)CAPARD'!AS228)","v":5.99},{"$f":"IF('[1]MONE(M)CAPARD'!AT228=\"\",\"\",'[1]MONE(M)CAPARD'!AT228)","v":"n.a."},{"$f":"IF('[1]MONE(M)CAPARD'!AU228=\"\",\"\",'[1]MONE(M)CAPARD'!AU228)","v":6.75},{"$f":"IF('[1]MONE(M)CAPARD'!AV228=\"\",\"\",'[1]MONE(M)CAPARD'!AV228)","v":7.75},{"$f":"IF('[1]MONE(M)CAPARD'!AW228=\"\",\"\",'[1]MONE(M)CAPARD'!AW228)","v":"n.a."},{"$f":"IF('[1]MONE(M)CAPARD'!AX228=\"\",\"\",'[1]MONE(M)CAPARD'!AX228)","v":9},{"$f":"IF('[1]MONE(M)CAPARD'!AY228=\"\",\"\",'[1]MONE(M)CAPARD'!AY228)","v":"n.a."},{"$f":"IF('[1]FISCAL(M)'!$K228=\"\",\"\",'[1]FISCAL(M)'!$K228)","v":7.1861225399081547},{"$f":"IF('[1]FISCAL(M)'!$L228=\"\",\"\",'[1]FISCAL(M)'!$L228)","v":20.497955009908008},{"$f":"IF('[1]FISCAL(M)'!$AY228=\"\",\"\",'[1]FISCAL(M)'!$AY228)","v":51438.297119701441},{"$f":"IF('[1]FISCAL(M)'!$BI228=\"\",\"\",'[1]FISCAL(M)'!$BI228)","v":24956.505119701447},{"$f":"IF('[1]FISCAL(M)'!$BS228=\"\",\"\",'[1]FISCAL(M)'!$BS228)","v":26481.792000000001},{"$f":"IF('[1]FISCAL(M)'!$AZ228=\"\",\"\",'[1]FISCAL(M)'!$AZ228)","v":62182.865920001452},{"$f":"IF('[1]FISCAL(M)'!$BJ228=\"\",\"\",'[1]FISCAL(M)'!$BJ228)","v":27408.620516251445},{"$f":"IF('[1]FISCAL(M)'!$BT228=\"\",\"\",'[1]FISCAL(M)'!$BT228)","v":34774.245403749999},{"$f":"IF('[2]MONE(M)'!$AO228=\"\",\"\",'[2]MONE(M)'!$AO228)","v":6636052.8106466718},{"$f":"IF('[3]MONE(M)'!$AO228=\"\",\"\",'[3]MONE(M)'!$AO228)","v":9017.7701151500005},{"$f":"IF('[4]MONE(M)'!$AO228=\"\",\"\",'[4]MONE(M)'!$AO228)","v":77439.670312014103},{"$f":"IF('[5]MONE(M)'!$AO228=\"\",\"\",'[5]MONE(M)'!$AO228)","v":128485.75099708361},{"$f":"IF('[6]MONE(M)'!$AO228=\"\",\"\",'[6]MONE(M)'!$AO228)","v":43551.628740422915},{"$f":"IF('[7]MONE(M)'!$AO228=\"\",\"\",'[7]MONE(M)'!$AO228)","v":306069.37986423},{"$f":"IF('[8]MONE(M)'!$AO228=\"\",\"\",'[8]MONE(M)'!$AO228)","v":17302.44591925},40.711522786235534,8.6943036641364824,11.813534750254595,28.717908361377063,31.318681356908495,30.917264622434693,18.305666513210173,{"$f":"IF('[1]FISCAL(M)'!$K228=\"\",\"\",'[1]FISCAL(M)'!$K228)","v":7.1861225399081547},{"$f":"+'[1]REAL(A)'!$AO$28","v":"n.d."},"n.d.",{"$f":"IF('[1]FISCAL(M)'!$L228=\"\",\"\",'[1]FISCAL(M)'!$L228)","v":20.497955009908008},{"$f":"+'[1]REAL(A)'!$AP$28","v":"n.d."},"n.d.",67034.372784763284,{"$f":"'[1]Gráfico REM'!BG222","v":11624.058517428297},{"$f":"'[1]Gráfico REM'!BH222","v":50783.345976982375},{"$f":"'[1]Gráfico REM'!BI222","v":4626.9682903526136},19.27623433329655,1.9102943072234924,24.567736524488048,14.895111216783064,97700.486038803283,{"$f":"'[1]Gráfico REM'!BK222","v":12341.587319598297},{"$f":"'[1]Gráfico REM'!BL222","v":68085.791896232375},{"$f":"'[1]Gráfico REM'!BM222","v":17273.106822972612},19.227546971186825,3.4162149227720873,22.914381649372718,18.164906134230961]
[2008,"abril","2008-abril",{"$f":"IF('[1]REAL IPC(M)'!$AL229=\"\",\"\",+'[1]REAL IPC(M)'!$AL229)","v":11.136722918126818},{"$f":"IF('[1]REAL IPC(M)'!$BE229=\"\",\"\",+'[1]REAL IPC(M)'!$BE229)","v":8.2902451861701199},{"$f":"IF('[1]REAL IPC(M)'!$AM229=\"\",\"\",+'[1]REAL IPC(M)'!$AM229)","v":10.472886429645566},{"$f":"IF('[1]REAL IPC(M)'!$BI229=\"\",\"\",+'[1]REAL IPC(M)'!$BI229)","v":7.9134905534424815},{"$f":"IF('[1]REAL IMAE(M)'!BJ229=\"\",\"\",'[1]REAL IMAE(M)'!BJ229)","v":4.8036184686174099},{"$f":"IF('[1]REAL IMAE(M)'!BK229=\"\",\"\",'[1]REAL IMAE(M)'!BK229)","v":1.9401645565592984},{"$f":"IF('[1]REAL IMAE(M)'!BN229=\"\",\"\",'[1]REAL IMAE(M)'!BN229)","v":5.6139203673885252},{"$f":"IF('[1]REAL IMAE(M)'!BO229=\"\",\"\",'[1]REAL IMAE(M)'!BO229)","v":2.4800754393236257},{"$f":"IF('[1]EXT RIN(M)'!$K229=\"\",\"\",'[1]EXT RIN(M)'!$K229)","v":17525.103586873833},"",{"$f":"IF('[1]EXT RIN(M)'!$L229=\"\",\"\",'[1]EXT RIN(M)'!$L229)","v":19483.070407085452},"",{"$f":"IF('[1]MONE(M)CARD'!EG229=\"\",\"\",'[1]MONE(M)CARD'!EG229)","v":19064.103696756869},{"$f":"IF('[1]MONE(M)CARD'!EK229=\"\",\"\",'[1]MONE(M)CARD'!EK229)","v":32324.73655219805},{"$f":"IF('[1]MONE(M)CARD'!EP229=\"\",\"\",'[1]MONE(M)CARD'!EP229)","v":16181.417546648838},{"$f":"IF('[1]MONE(M)CARD'!ES229=\"\",\"\",'[1]MONE(M)CARD'!ES229)","v":23.29297615084598},{"$f":"IF('[1]MONE(M)CARD'!EV229=\"\",\"\",'[1]MONE(M)CARD'!EV229)","v":17.685508970473141},{"$f":"IF('[1]MONE(M)CARD'!EZ229=\"\",\"\",'[1]MONE(M)CARD'!EZ229)","v":16.382015661835482},{"$f":"IF('[1]MONE(M)CAPARD'!FC229=\"\",\"\",'[1]MONE(M)CAPARD'!FC229)","v":22246.064659921271},{"$f":"IF('[1]MONE(M)CAPARD'!FG229=\"\",\"\",'[1]MONE(M)CAPARD'!FG229)","v":47530.660267811145},{"$f":"IF('[1]MONE(M)CAPARD'!FL229=\"\",\"\",'[1]MONE(M)CAPARD'!FL229)","v":16181.417546648838},{"$f":"IF('[1]MONE(M)CAPARD'!FO229=\"\",\"\",'[1]MONE(M)CAPARD'!FO229)","v":23.009363021298167},{"$f":"IF('[1]MONE(M)CAPARD'!FR229=\"\",\"\",'[1]MONE(M)CAPARD'!FR229)","v":18.945607945322251},{"$f":"IF('[1]MONE(M)CAPARD'!FV229=\"\",\"\",'[1]MONE(M)CAPARD'!FV229)","v":17.66143528407429},{"$f":"IF('[1]MONE(M)CARD'!FV229=\"\",\"\",'[1]MONE(M)CARD'!FV229)","v":2206.9816757374183},{"$f":"IF('[1]MONE(M)CARD'!GD229=\"\",\"\",'[1]MONE(M)CARD'!GD229)","v":244.38686776064679},{"$f":"IF('[1]MONE(M)CARD'!GE229=\"\",\"\",'[1]MONE(M)CARD'!GE229)","v":5502.5935685317299},17.238561364723303,{"$f":"IF('[9]II.2.Balance OSD-Activos'!J87=\"\",\"\",'[9]II.2.Balance OSD-Activos'!J87)","v":92.453244846665228},{"$f":"IF('[9]II.2.Balance OSD-Activos'!N87=\"\",\"\",'[9]II.2.Balance OSD-Activos'!N87)","v":433.55278694451698},{"$f":"IF('[9]II.2.Balance OSD-Activos'!R87=\"\",\"\",'[9]II.2.Balance OSD-Activos'!R87)","v":23579.650182341546},{"$f":"IF('[9]II.2.Balance OSD-Activos'!S87=\"\",\"\",'[9]II.2.Balance OSD-Activos'!S87)","v":25782.655473025079},23672.103427188209,49888.31168715781,-58.154644615007015,{"$f":"IF(OR(AJ222=\"\",AJ210=\"\"),\"\",((AJ222/AJ210)-1)*100)","v":27.632148494461429},11.831550176478078,28.666392704774424,21.320155495411797,{"$f":"IF(OR(AK222=\"\",AK210=\"\"),\"\",((AK222/AK210)-1)*100)","v":24.141764888317606},8.4468121738034085E-2,{"$f":"IF('[1]MONE(M)CAPARD'!GS229=\"\",\"\",'[1]MONE(M)CAPARD'!GS229)","v":8135.3585019786988},{"$f":"IF('[1]MONE(M)CARD'!HA229=\"\",\"\",'[1]MONE(M)CAPARD'!HA229)","v":5893.8090684217304},{"$f":"IF('[1]MONE(M)CAPARD'!HB229=\"\",\"\",'[1]MONE(M)CAPARD'!HB229)","v":2241.5494335569683},"n.d.",{"$f":"IF('[10]II.2.Balance OSD-Activos'!J87=\"\",\"\",'[10]II.2.Balance OSD-Activos'!J87)","v":343.1761367826652},{"$f":"IF('[10]II.2.Balance OSD-Activos'!N87=\"\",\"\",'[10]II.2.Balance OSD-Activos'!N87)","v":905.90225746451677},{"$f":"IF('[10]II.2.Balance OSD-Activos'!R87=\"\",\"\",'[10]II.2.Balance OSD-Activos'!R87)","v":32296.913005011549},{"$f":"IF('[10]II.2.Balance OSD-Activos'!S87=\"\",\"\",'[10]II.2.Balance OSD-Activos'!S87)","v":33923.452924225079},32640.089141794215,67469.444323483811,{"$f":"IF(OR(AW222=\"\",AW210=\"\"),\"\",((AW222/AW210)-1)*100)","v":-14.085184405977813},{"$f":"IF(OR(BA222=\"\",BA210=\"\"),\"\",((BA222/BA210)-1)*100)","v":27.759421293127208},4.3075362652023941,28.424041925531917,20.744984445837744,{"$f":"IF(OR(BB222=\"\",BB210=\"\"),\"\",((BB222/BB210)-1)*100)","v":23.770567059130766},1.477671365682486,{"$f":"IF('[1]MONE(M)CAPARD'!AS229=\"\",\"\",'[1]MONE(M)CAPARD'!AS229)","v":5.99},{"$f":"IF('[1]MONE(M)CAPARD'!AT229=\"\",\"\",'[1]MONE(M)CAPARD'!AT229)","v":"n.a."},{"$f":"IF('[1]MONE(M)CAPARD'!AU229=\"\",\"\",'[1]MONE(M)CAPARD'!AU229)","v":6.75},{"$f":"IF('[1]MONE(M)CAPARD'!AV229=\"\",\"\",'[1]MONE(M)CAPARD'!AV229)","v":7.75},{"$f":"IF('[1]MONE(M)CAPARD'!AW229=\"\",\"\",'[1]MONE(M)CAPARD'!AW229)","v":"n.a."},{"$f":"IF('[1]MONE(M)CAPARD'!AX229=\"\",\"\",'[1]MONE(M)CAPARD'!AX229)","v":9},{"$f":"IF('[1]MONE(M)CAPARD'!AY229=\"\",\"\",'[1]MONE(M)CAPARD'!AY229)","v":"n.a."},{"$f":"IF('[1]FISCAL(M)'!$K229=\"\",\"\",'[1]FISCAL(M)'!$K229)","v":448.45297746378117},{"$f":"IF('[1]FISCAL(M)'!$L229=\"\",\"\",'[1]FISCAL(M)'!$L229)","v":315.09618364378082},{"$f":"IF('[1]FISCAL(M)'!$AY229=\"\",\"\",'[1]FISCAL(M)'!$AY229)","v":"n.d."},{"$f":"IF('[1]FISCAL(M)'!$BI229=\"\",\"\",'[1]FISCAL(M)'!$BI229)","v":"n.d."},{"$f":"IF('[1]FISCAL(M)'!$BS229=\"\",\"\",'[1]FISCAL(M)'!$BS229)","v":"n.d."},{"$f":"IF('[1]FISCAL(M)'!$AZ229=\"\",\"\",'[1]FISCAL(M)'!$AZ229)","v":"n.d."},{"$f":"IF('[1]FISCAL(M)'!$BJ229=\"\",\"\",'[1]FISCAL(M)'!$BJ229)","v":"n.d."},{"$f":"IF('[1]FISCAL(M)'!$BT229=\"\",\"\",'[1]FISCAL(M)'!$BT229)","v":"n.d."},{"$f":"IF('[2]MONE(M)'!$AO229=\"\",\"\",'[2]MONE(M)'!$AO229)","v":6795777.0476829112},{"$f":"IF('[3]MONE(M)'!$AO229=\"\",\"\",'[3]MONE(M)'!$AO229)","v":9067.2952381499999},{"$f":"IF('[4]MONE(M)'!$AO229=\"\",\"\",'[4]MONE(M)'!$AO229)","v":77150.702241046311},{"$f":"IF('[5]MONE(M)'!$AO229=\"\",\"\",'[5]MONE(M)'!$AO229)","v":129971.8950854204},{"$f":"IF('[6]MONE(M)'!$AO229=\"\",\"\",'[6]MONE(M)'!$AO229)","v":43891.975205281815},{"$f":"IF('[7]MONE(M)'!$AO229=\"\",\"\",'[7]MONE(M)'!$AO229)","v":311953.51904549001},{"$f":"IF('[8]MONE(M)'!$AO229=\"\",\"\",'[8]MONE(M)'!$AO229)","v":17493.786363216001},{"$f":"((BY222/BY210)-1)*100","v":41.541538378595064},8.6948252061132436,11.647547358662358,27.080951548609455,30.12781965697371,30.30346700308144,23.934773177279279,{"$f":"IF('[1]FISCAL(M)'!$K229=\"\",\"\",'[1]FISCAL(M)'!$K229)","v":448.45297746378117},{"$f":"+'[1]REAL(A)'!$AO$28","v":"n.d."},"n.d.",{"$f":"IF('[1]FISCAL(M)'!$L229=\"\",\"\",'[1]FISCAL(M)'!$L229)","v":315.09618364378082},{"$f":"+'[1]REAL(A)'!$AP$28","v":"n.d."},"n.d.",67926.243175731244,{"$f":"'[1]Gráfico REM'!BG223","v":11762.225869419617},{"$f":"'[1]Gráfico REM'!BH223","v":51496.449186343976},{"$f":"'[1]Gráfico REM'!BI223","v":4667.5681199676546},19.454516977247383,2.0385962056070239,24.634533444379979,16.15219423488583,99402.620450366259,{"$f":"'[1]Gráfico REM'!BK223","v":12487.891682362617},{"$f":"'[1]Gráfico REM'!BL223","v":68990.235549559977},{"$f":"'[1]Gráfico REM'!BM223","v":17924.493218443655},21.978571665140567,3.6447525782496548,24.456349178946766,27.942103785316075]
[2008,"mayo ","2008-mayo ",{"$f":"IF('[1]REAL IPC(M)'!$AL230=\"\",\"\",+'[1]REAL IPC(M)'!$AL230)","v":11.887016824072006},{"$f":"IF('[1]REAL IPC(M)'!$BE230=\"\",\"\",+'[1]REAL IPC(M)'!$BE230)","v":8.2094601100215492},{"$f":"IF('[1]REAL IPC(M)'!$AM230=\"\",\"\",+'[1]REAL IPC(M)'!$AM230)","v":11.199475496342348},{"$f":"IF('[1]REAL IPC(M)'!$BI230=\"\",\"\",+'[1]REAL IPC(M)'!$BI230)","v":7.8371712557038675},{"$f":"IF('[1]REAL IMAE(M)'!BJ230=\"\",\"\",'[1]REAL IMAE(M)'!BJ230)","v":4.2617851190090095},{"$f":"IF('[1]REAL IMAE(M)'!BK230=\"\",\"\",'[1]REAL IMAE(M)'!BK230)","v":1.9157931919184357},{"$f":"IF('[1]REAL IMAE(M)'!BN230=\"\",\"\",'[1]REAL IMAE(M)'!BN230)","v":5.1821616883807486},{"$f":"IF('[1]REAL IMAE(M)'!BO230=\"\",\"\",'[1]REAL IMAE(M)'!BO230)","v":2.4464652235942408},{"$f":"IF('[1]EXT RIN(M)'!$K230=\"\",\"\",'[1]EXT RIN(M)'!$K230)","v":17298.641879493753},"",{"$f":"IF('[1]EXT RIN(M)'!$L230=\"\",\"\",'[1]EXT RIN(M)'!$L230)","v":19252.771926007041},"",{"$f":"IF('[1]MONE(M)CARD'!EG230=\"\",\"\",'[1]MONE(M)CARD'!EG230)","v":18611.814741260205},{"$f":"IF('[1]MONE(M)CARD'!EK230=\"\",\"\",'[1]MONE(M)CARD'!EK230)","v":32261.497045511271},{"$f":"IF('[1]MONE(M)CARD'!EP230=\"\",\"\",'[1]MONE(M)CARD'!EP230)","v":16653.980580723277},{"$f":"IF('[1]MONE(M)CARD'!ES230=\"\",\"\",'[1]MONE(M)CARD'!ES230)","v":19.006375941144583},{"$f":"IF('[1]MONE(M)CARD'!EV230=\"\",\"\",'[1]MONE(M)CARD'!EV230)","v":14.283889219528056},{"$f":"IF('[1]MONE(M)CARD'!EZ230=\"\",\"\",'[1]MONE(M)CARD'!EZ230)","v":14.504421524971246},{"$f":"IF('[1]MONE(M)CAPARD'!FC230=\"\",\"\",'[1]MONE(M)CAPARD'!FC230)","v":21818.938950055603},{"$f":"IF('[1]MONE(M)CAPARD'!FG230=\"\",\"\",'[1]MONE(M)CAPARD'!FG230)","v":47852.484410217672},{"$f":"IF('[1]MONE(M)CAPARD'!FL230=\"\",\"\",'[1]MONE(M)CAPARD'!FL230)","v":16653.980580723277},{"$f":"IF('[1]MONE(M)CAPARD'!FO230=\"\",\"\",'[1]MONE(M)CAPARD'!FO230)","v":20.454288539248445},{"$f":"IF('[1]MONE(M)CAPARD'!FR230=\"\",\"\",'[1]MONE(M)CAPARD'!FR230)","v":15.326054785650257},{"$f":"IF('[1]MONE(M)CAPARD'!FV230=\"\",\"\",'[1]MONE(M)CAPARD'!FV230)","v":15.298504070721531},{"$f":"IF('[1]MONE(M)CARD'!FV230=\"\",\"\",'[1]MONE(M)CARD'!FV230)","v":2218.1168059640013},{"$f":"IF('[1]MONE(M)CARD'!GD230=\"\",\"\",'[1]MONE(M)CARD'!GD230)","v":61.552960713973299},{"$f":"IF('[1]MONE(M)CARD'!GE230=\"\",\"\",'[1]MONE(M)CARD'!GE230)","v":5098.625218804912},1.3458481180391946,{"$f":"IF('[9]II.2.Balance OSD-Activos'!J88=\"\",\"\",'[9]II.2.Balance OSD-Activos'!J88)","v":111.31596687364134},{"$f":"IF('[9]II.2.Balance OSD-Activos'!N88=\"\",\"\",'[9]II.2.Balance OSD-Activos'!N88)","v":433.23924721377574},{"$f":"IF('[9]II.2.Balance OSD-Activos'!R88=\"\",\"\",'[9]II.2.Balance OSD-Activos'!R88)","v":23723.156085975315},{"$f":"IF('[9]II.2.Balance OSD-Activos'!S88=\"\",\"\",'[9]II.2.Balance OSD-Activos'!S88)","v":25946.779268040642},23834.472052848956,50214.490568103371,-53.344094089963811,27.427445493031442,11.478069286903736,28.471064678541126,19.539605903247924,23.079041659710022,-1.0627232286075845,{"$f":"IF('[1]MONE(M)CAPARD'!GS230=\"\",\"\",'[1]MONE(M)CAPARD'!GS230)","v":8061.1495949490654},{"$f":"IF('[1]MONE(M)CARD'!HA230=\"\",\"\",'[1]MONE(M)CAPARD'!HA230)","v":5489.0219332149127},{"$f":"IF('[1]MONE(M)CAPARD'!HB230=\"\",\"\",'[1]MONE(M)CAPARD'!HB230)","v":2572.1276617341528},"n.d.",{"$f":"IF('[10]II.2.Balance OSD-Activos'!J88=\"\",\"\",'[10]II.2.Balance OSD-Activos'!J88)","v":366.12824615364133},{"$f":"IF('[10]II.2.Balance OSD-Activos'!N88=\"\",\"\",'[10]II.2.Balance OSD-Activos'!N88)","v":850.99590290377569},{"$f":"IF('[10]II.2.Balance OSD-Activos'!R88=\"\",\"\",'[10]II.2.Balance OSD-Activos'!R88)","v":32675.755078155315},{"$f":"IF('[10]II.2.Balance OSD-Activos'!S88=\"\",\"\",'[10]II.2.Balance OSD-Activos'!S88)","v":34153.168810090647},33041.883324308954,68046.048037303379,-11.019066449812998,25.318770661599043,5.9074898276632926,25.89484384970784,18.025833000946157,21.279450191553728,{"$f":"IF(OR(BH223=\"\",BH222=\"\"),\"\",BH223-BH222)","v":-2.4911168675770377},{"$f":"IF('[1]MONE(M)CAPARD'!AS230=\"\",\"\",'[1]MONE(M)CAPARD'!AS230)","v":7.0012000000000008},{"$f":"IF('[1]MONE(M)CAPARD'!AT230=\"\",\"\",'[1]MONE(M)CAPARD'!AT230)","v":"n.a."},{"$f":"IF('[1]MONE(M)CAPARD'!AU230=\"\",\"\",'[1]MONE(M)CAPARD'!AU230)","v":6.75},{"$f":"IF('[1]MONE(M)CAPARD'!AV230=\"\",\"\",'[1]MONE(M)CAPARD'!AV230)","v":8},{"$f":"IF('[1]MONE(M)CAPARD'!AW230=\"\",\"\",'[1]MONE(M)CAPARD'!AW230)","v":"n.a."},{"$f":"IF('[1]MONE(M)CAPARD'!AX230=\"\",\"\",'[1]MONE(M)CAPARD'!AX230)","v":9},{"$f":"IF('[1]MONE(M)CAPARD'!AY230=\"\",\"\",'[1]MONE(M)CAPARD'!AY230)","v":"n.a."},{"$f":"IF('[1]FISCAL(M)'!$K230=\"\",\"\",'[1]FISCAL(M)'!$K230)","v":156.12225544590137},{"$f":"IF('[1]FISCAL(M)'!$L230=\"\",\"\",'[1]FISCAL(M)'!$L230)","v":90.296012705901447},{"$f":"IF('[1]FISCAL(M)'!$AY230=\"\",\"\",'[1]FISCAL(M)'!$AY230)","v":"n.d."},{"$f":"IF('[1]FISCAL(M)'!$BI230=\"\",\"\",'[1]FISCAL(M)'!$BI230)","v":"n.d."},{"$f":"IF('[1]FISCAL(M)'!$BS230=\"\",\"\",'[1]FISCAL(M)'!$BS230)","v":"n.d."},{"$f":"IF('[1]FISCAL(M)'!$AZ230=\"\",\"\",'[1]FISCAL(M)'!$AZ230)","v":"n.d."},{"$f":"IF('[1]FISCAL(M)'!$BJ230=\"\",\"\",'[1]FISCAL(M)'!$BJ230)","v":"n.d."},{"$f":"IF('[1]FISCAL(M)'!$BT230=\"\",\"\",'[1]FISCAL(M)'!$BT230)","v":"n.d."},{"$f":"IF('[2]MONE(M)'!$AO230=\"\",\"\",'[2]MONE(M)'!$AO230)","v":7103653.2488369653},{"$f":"IF('[3]MONE(M)'!$AO230=\"\",\"\",'[3]MONE(M)'!$AO230)","v":9062.2856041199993},{"$f":"IF('[4]MONE(M)'!$AO230=\"\",\"\",'[4]MONE(M)'!$AO230)","v":77665.696160369378},{"$f":"IF('[5]MONE(M)'!$AO230=\"\",\"\",'[5]MONE(M)'!$AO230)","v":130545.68317507274},{"$f":"IF('[6]MONE(M)'!$AO230=\"\",\"\",'[6]MONE(M)'!$AO230)","v":44235.035900676186},{"$f":"IF('[7]MONE(M)'!$AO230=\"\",\"\",'[7]MONE(M)'!$AO230)","v":319107.42541690002},{"$f":"IF('[8]MONE(M)'!$AO230=\"\",\"\",'[8]MONE(M)'!$AO230)","v":17808.929460299994},44.099437713414822,8.1486344696407809,11.904972439564965,25.342986887555831,28.99678639715335,29.801814651017811,17.34116912013026,{"$f":"IF('[1]FISCAL(M)'!$K230=\"\",\"\",'[1]FISCAL(M)'!$K230)","v":156.12225544590137},{"$f":"+'[1]REAL(A)'!$AO$28","v":"n.d."},"n.d.",{"$f":"IF('[1]FISCAL(M)'!$L230=\"\",\"\",'[1]FISCAL(M)'!$L230)","v":90.296012705901447},{"$f":"+'[1]REAL(A)'!$AP$28","v":"n.d."},"n.d.",68273.090368770558,{"$f":"'[1]Gráfico REM'!BG224","v":11729.300675729795},{"$f":"'[1]Gráfico REM'!BH224","v":51835.928876304046},{"$f":"'[1]Gráfico REM'!BI224","v":4707.8608167367202},18.465498215216634,1.3673990025495852,23.549510085192061,14.699101926123582,100324.94438667156,{"$f":"'[1]Gráfico REM'!BK224","v":12447.718322579796},{"$f":"'[1]Gráfico REM'!BL224","v":69644.85833660404},{"$f":"'[1]Gráfico REM'!BM224","v":18232.367727487719},19.754102733103874,2.7573851352623135,21.900289896871207,25.485617099483136]
[2008,"junio ","2008-junio ",{"$f":"IF('[1]REAL IPC(M)'!$AL231=\"\",\"\",+'[1]REAL IPC(M)'!$AL231)","v":13.322285289139902},{"$f":"IF('[1]REAL IPC(M)'!$BE231=\"\",\"\",+'[1]REAL IPC(M)'!$BE231)","v":8.1198735690227508},{"$f":"IF('[1]REAL IPC(M)'!$AM231=\"\",\"\",+'[1]REAL IPC(M)'!$AM231)","v":12.597295004759633},{"$f":"IF('[1]REAL IPC(M)'!$BI231=\"\",\"\",+'[1]REAL IPC(M)'!$BI231)","v":7.7514425975120149},{"$f":"IF('[1]REAL IMAE(M)'!BJ231=\"\",\"\",'[1]REAL IMAE(M)'!BJ231)","v":3.571768256750496},{"$f":"IF('[1]REAL IMAE(M)'!BK231=\"\",\"\",'[1]REAL IMAE(M)'!BK231)","v":1.8919003247603206},{"$f":"IF('[1]REAL IMAE(M)'!BN231=\"\",\"\",'[1]REAL IMAE(M)'!BN231)","v":4.6138395141652744},{"$f":"IF('[1]REAL IMAE(M)'!BO231=\"\",\"\",'[1]REAL IMAE(M)'!BO231)","v":2.4124002441590964},{"$f":"IF('[1]EXT RIN(M)'!$K231=\"\",\"\",'[1]EXT RIN(M)'!$K231)","v":16963.930532118793},"",{"$f":"IF('[1]EXT RIN(M)'!$L231=\"\",\"\",'[1]EXT RIN(M)'!$L231)","v":19480.374936027212},"",{"$f":"IF('[1]MONE(M)CARD'!EG231=\"\",\"\",'[1]MONE(M)CARD'!EG231)","v":18115.935573234747},{"$f":"IF('[1]MONE(M)CARD'!EK231=\"\",\"\",'[1]MONE(M)CARD'!EK231)","v":32319.682240454531},{"$f":"IF('[1]MONE(M)CARD'!EP231=\"\",\"\",'[1]MONE(M)CARD'!EP231)","v":16759.157672458714},{"$f":"IF('[1]MONE(M)CARD'!ES231=\"\",\"\",'[1]MONE(M)CARD'!ES231)","v":14.62648144089631},{"$f":"IF('[1]MONE(M)CARD'!EV231=\"\",\"\",'[1]MONE(M)CARD'!EV231)","v":12.152973932502986},{"$f":"IF('[1]MONE(M)CARD'!EZ231=\"\",\"\",'[1]MONE(M)CARD'!EZ231)","v":12.920585350506864},{"$f":"IF('[1]MONE(M)CAPARD'!FC231=\"\",\"\",'[1]MONE(M)CAPARD'!FC231)","v":21376.911082801147},{"$f":"IF('[1]MONE(M)CAPARD'!FG231=\"\",\"\",'[1]MONE(M)CAPARD'!FG231)","v":48129.046075834529},{"$f":"IF('[1]MONE(M)CAPARD'!FL231=\"\",\"\",'[1]MONE(M)CAPARD'!FL231)","v":16759.157672458721},{"$f":"IF('[1]MONE(M)CAPARD'!FO231=\"\",\"\",'[1]MONE(M)CAPARD'!FO231)","v":16.839246849523004},{"$f":"IF('[1]MONE(M)CAPARD'!FR231=\"\",\"\",'[1]MONE(M)CAPARD'!FR231)","v":14.103970153460409},{"$f":"IF('[1]MONE(M)CAPARD'!FV231=\"\",\"\",'[1]MONE(M)CAPARD'!FV231)","v":14.333502057011893},{"$f":"IF('[1]MONE(M)CARD'!FV231=\"\",\"\",'[1]MONE(M)CARD'!FV231)","v":2275.2120820355285},{"$f":"IF('[1]MONE(M)CARD'!GD231=\"\",\"\",'[1]MONE(M)CARD'!GD231)","v":144.4767314090827},{"$f":"IF('[1]MONE(M)CARD'!GE231=\"\",\"\",'[1]MONE(M)CARD'!GE231)","v":5042.9568245700593},{"$f":"IF(AD224=\"\",\"\",((AD224/AD211)-1)*100)","v":4.6216253737650925},{"$f":"IF('[9]II.2.Balance OSD-Activos'!J89=\"\",\"\",'[9]II.2.Balance OSD-Activos'!J89)","v":106.35031040757865},{"$f":"IF('[9]II.2.Balance OSD-Activos'!N89=\"\",\"\",'[9]II.2.Balance OSD-Activos'!N89)","v":428.27161865077812},{"$f":"IF('[9]II.2.Balance OSD-Activos'!R89=\"\",\"\",'[9]II.2.Balance OSD-Activos'!R89)","v":23759.425849948886},{"$f":"IF('[9]II.2.Balance OSD-Activos'!S89=\"\",\"\",'[9]II.2.Balance OSD-Activos'!S89)","v":26325.440199797329},23865.776160356465,50619.487978804573,{"$f":"IF(OR(AF224=\"\",AF212=\"\"),\"\",((AF224/AF212)-1)*100)","v":-51.997943499890553},28.160913042906287,7.380871152782964,29.12609346057986,17.471808058949389,22.17908091363072,{"$f":"IF(OR(AQ224=\"\",AQ223=\"\"),\"\",AQ224-AQ223)","v":-0.89996074607930154},{"$f":"IF('[1]MONE(M)CAPARD'!GS231=\"\",\"\",'[1]MONE(M)CAPARD'!GS231)","v":8288.2069188323148},{"$f":"IF('[1]MONE(M)CARD'!HA231=\"\",\"\",'[1]MONE(M)CAPARD'!HA231)","v":5432.8094037900592},{"$f":"IF('[1]MONE(M)CAPARD'!HB231=\"\",\"\",'[1]MONE(M)CAPARD'!HB231)","v":2855.3975150422557},"n.d.",{"$f":"IF('[10]II.2.Balance OSD-Activos'!J89=\"\",\"\",'[10]II.2.Balance OSD-Activos'!J89)","v":345.98622915757858},{"$f":"IF('[10]II.2.Balance OSD-Activos'!N89=\"\",\"\",'[10]II.2.Balance OSD-Activos'!N89)","v":859.86492707077798},{"$f":"IF('[10]II.2.Balance OSD-Activos'!R89=\"\",\"\",'[10]II.2.Balance OSD-Activos'!R89)","v":33067.594200618885},{"$f":"IF('[10]II.2.Balance OSD-Activos'!S89=\"\",\"\",'[10]II.2.Balance OSD-Activos'!S89)","v":34583.924975857328},33413.580429776463,68857.370332704566,-12.452769177448308,26.637193842002162,6.0533291017287105,27.231587278693613,16.282179081809755,20.935120019879449,-0.34433017167427948,{"$f":"IF('[1]MONE(M)CAPARD'!AS231=\"\",\"\",'[1]MONE(M)CAPARD'!AS231)","v":8},{"$f":"IF('[1]MONE(M)CAPARD'!AT231=\"\",\"\",'[1]MONE(M)CAPARD'!AT231)","v":"n.a."},{"$f":"IF('[1]MONE(M)CAPARD'!AU231=\"\",\"\",'[1]MONE(M)CAPARD'!AU231)","v":6.75},{"$f":"IF('[1]MONE(M)CAPARD'!AV231=\"\",\"\",'[1]MONE(M)CAPARD'!AV231)","v":8.5},{"$f":"IF('[1]MONE(M)CAPARD'!AW231=\"\",\"\",'[1]MONE(M)CAPARD'!AW231)","v":"n.a."},{"$f":"IF('[1]MONE(M)CAPARD'!AX231=\"\",\"\",'[1]MONE(M)CAPARD'!AX231)","v":9},{"$f":"IF('[1]MONE(M)CAPARD'!AY231=\"\",\"\",'[1]MONE(M)CAPARD'!AY231)","v":"n.a."},{"$f":"IF('[1]FISCAL(M)'!$K231=\"\",\"\",'[1]FISCAL(M)'!$K231)","v":-96.109383812357692},{"$f":"IF('[1]FISCAL(M)'!$L231=\"\",\"\",'[1]FISCAL(M)'!$L231)","v":286.14497669764216},{"$f":"IF('[1]FISCAL(M)'!$AY231=\"\",\"\",'[1]FISCAL(M)'!$AY231)","v":51002.379120526035},{"$f":"IF('[1]FISCAL(M)'!$BI231=\"\",\"\",'[1]FISCAL(M)'!$BI231)","v":24131.894620526044},{"$f":"IF('[1]FISCAL(M)'!$BS231=\"\",\"\",'[1]FISCAL(M)'!$BS231)","v":26870.484499999999},{"$f":"IF('[1]FISCAL(M)'!$AZ231=\"\",\"\",'[1]FISCAL(M)'!$AZ231)","v":62033.976686736045},{"$f":"IF('[1]FISCAL(M)'!$BJ231=\"\",\"\",'[1]FISCAL(M)'!$BJ231)","v":26707.201130646041},{"$f":"IF('[1]FISCAL(M)'!$BT231=\"\",\"\",'[1]FISCAL(M)'!$BT231)","v":35326.775556089997},{"$f":"IF('[2]MONE(M)'!$AO231=\"\",\"\",'[2]MONE(M)'!$AO231)","v":7243879.8992386963},{"$f":"IF('[3]MONE(M)'!$AO231=\"\",\"\",'[3]MONE(M)'!$AO231)","v":9111.4835499799992},{"$f":"IF('[4]MONE(M)'!$AO231=\"\",\"\",'[4]MONE(M)'!$AO231)","v":78854.306912560729},{"$f":"IF('[5]MONE(M)'!$AO231=\"\",\"\",'[5]MONE(M)'!$AO231)","v":132297.52434996786},{"$f":"IF('[6]MONE(M)'!$AO231=\"\",\"\",'[6]MONE(M)'!$AO231)","v":44794.727666625746},{"$f":"IF('[7]MONE(M)'!$AO231=\"\",\"\",'[7]MONE(M)'!$AO231)","v":321874.37795065006},{"$f":"IF('[8]MONE(M)'!$AO231=\"\",\"\",'[8]MONE(M)'!$AO231)","v":18223.19087287},42.836680601841024,8.0828550962577239,12.319732653439619,25.046697395257866,26.547056436769356,25.976049235231713,18.429525070705566,{"$f":"IF('[1]FISCAL(M)'!$K231=\"\",\"\",'[1]FISCAL(M)'!$K231)","v":-96.109383812357692},{"$f":"+'[1]REAL(A)'!$AO$28","v":"n.d."},"n.d.",{"$f":"IF('[1]FISCAL(M)'!$L231=\"\",\"\",'[1]FISCAL(M)'!$L231)","v":286.14497669764216},{"$f":"+'[1]REAL(A)'!$AP$28","v":"n.d."},"n.d.",69010.885428830647,{"$f":"'[1]Gráfico REM'!BG225","v":11954.994052711838},{"$f":"'[1]Gráfico REM'!BH225","v":52318.864414585492},{"$f":"'[1]Gráfico REM'!BI225","v":4737.0269615333127},18.257918699377296,2.6935874971405704,22.889507472076808,14.395521238003006,101823.34195536465,{"$f":"'[1]Gráfico REM'!BK225","v":12694.120710651838},{"$f":"'[1]Gráfico REM'!BL225","v":70542.0552874555},{"$f":"'[1]Gráfico REM'!BM225","v":18587.165957257312},20.219952761860881,4.2508137970342919,21.705485867451401,27.661371511149358]
[2008,"julio","2008-julio",{"$f":"IF('[1]REAL IPC(M)'!$AL232=\"\",\"\",+'[1]REAL IPC(M)'!$AL232)","v":14.531319457150694},{"$f":"IF('[1]REAL IPC(M)'!$BE232=\"\",\"\",+'[1]REAL IPC(M)'!$BE232)","v":8.0212917062545852},{"$f":"IF('[1]REAL IPC(M)'!$AM232=\"\",\"\",+'[1]REAL IPC(M)'!$AM232)","v":13.74255956662398},{"$f":"IF('[1]REAL IPC(M)'!$BI232=\"\",\"\",+'[1]REAL IPC(M)'!$BI232)","v":7.6560392560106161},{"$f":"IF('[1]REAL IMAE(M)'!BJ232=\"\",\"\",'[1]REAL IMAE(M)'!BJ232)","v":2.6688317425189512},{"$f":"IF('[1]REAL IMAE(M)'!BK232=\"\",\"\",'[1]REAL IMAE(M)'!BK232)","v":1.8695606063553916},{"$f":"IF('[1]REAL IMAE(M)'!BN232=\"\",\"\",'[1]REAL IMAE(M)'!BN232)","v":3.8044856982025088},{"$f":"IF('[1]REAL IMAE(M)'!BO232=\"\",\"\",'[1]REAL IMAE(M)'!BO232)","v":2.3790348584219467},{"$f":"IF('[1]EXT RIN(M)'!$K232=\"\",\"\",'[1]EXT RIN(M)'!$K232)","v":16684.934030699034},"",{"$f":"IF('[1]EXT RIN(M)'!$L232=\"\",\"\",'[1]EXT RIN(M)'!$L232)","v":19115.508496185113},"",{"$f":"IF('[1]MONE(M)CARD'!EG232=\"\",\"\",'[1]MONE(M)CARD'!EG232)","v":17787.953634129291},{"$f":"IF('[1]MONE(M)CARD'!EK232=\"\",\"\",'[1]MONE(M)CARD'!EK232)","v":32338.695967778032},{"$f":"IF('[1]MONE(M)CARD'!EP232=\"\",\"\",'[1]MONE(M)CARD'!EP232)","v":16996.078021208203},{"$f":"IF('[1]MONE(M)CARD'!ES232=\"\",\"\",'[1]MONE(M)CARD'!ES232)","v":11.026844196240294},{"$f":"IF('[1]MONE(M)CARD'!EV232=\"\",\"\",'[1]MONE(M)CARD'!EV232)","v":8.298027969185263},{"$f":"IF('[1]MONE(M)CARD'!EZ232=\"\",\"\",'[1]MONE(M)CARD'!EZ232)","v":9.9809691087757066},{"$f":"IF('[1]MONE(M)CAPARD'!FC232=\"\",\"\",'[1]MONE(M)CAPARD'!FC232)","v":20994.630353404693},{"$f":"IF('[1]MONE(M)CAPARD'!FG232=\"\",\"\",'[1]MONE(M)CAPARD'!FG232)","v":47924.073512038041},{"$f":"IF('[1]MONE(M)CAPARD'!FL232=\"\",\"\",'[1]MONE(M)CAPARD'!FL232)","v":16996.078021208188},{"$f":"IF('[1]MONE(M)CAPARD'!FO232=\"\",\"\",'[1]MONE(M)CAPARD'!FO232)","v":12.971253048404009},{"$f":"IF('[1]MONE(M)CAPARD'!FR232=\"\",\"\",'[1]MONE(M)CAPARD'!FR232)","v":10.751272376397946},{"$f":"IF('[1]MONE(M)CAPARD'!FV232=\"\",\"\",'[1]MONE(M)CAPARD'!FV232)","v":11.61569600295036},{"$f":"IF('[1]MONE(M)CARD'!FV232=\"\",\"\",'[1]MONE(M)CARD'!FV232)","v":2304.2897642889516},{"$f":"IF('[1]MONE(M)CARD'!GD232=\"\",\"\",'[1]MONE(M)CARD'!GD232)","v":64.017391069118716},{"$f":"IF('[1]MONE(M)CARD'!GE232=\"\",\"\",'[1]MONE(M)CARD'!GE232)","v":4914.7483779809445},-0.76235803250340739,{"$f":"IF('[9]II.2.Balance OSD-Activos'!J90=\"\",\"\",'[9]II.2.Balance OSD-Activos'!J90)","v":103.91990027104096},{"$f":"IF('[9]II.2.Balance OSD-Activos'!N90=\"\",\"\",'[9]II.2.Balance OSD-Activos'!N90)","v":429.9239104992717},{"$f":"IF('[9]II.2.Balance OSD-Activos'!R90=\"\",\"\",'[9]II.2.Balance OSD-Activos'!R90)","v":23717.115200588902},{"$f":"IF('[9]II.2.Balance OSD-Activos'!S90=\"\",\"\",'[9]II.2.Balance OSD-Activos'!S90)","v":26362.204678424234},23821.035100859943,50613.163689783447,-50.456320140633878,25.286371413453157,7.1563063323024423,26.131284721690307,14.994794040301528,19.542157928617378,-2.6369229850133422,{"$f":"IF('[1]MONE(M)CAPARD'!GS232=\"\",\"\",'[1]MONE(M)CAPARD'!GS232)","v":8155.6181394928926},{"$f":"IF('[1]MONE(M)CARD'!HA232=\"\",\"\",'[1]MONE(M)CAPARD'!HA232)","v":5378.521084350944},{"$f":"IF('[1]MONE(M)CAPARD'!HB232=\"\",\"\",'[1]MONE(M)CAPARD'!HB232)","v":2777.0970551419487},"n.d.",{"$f":"IF('[10]II.2.Balance OSD-Activos'!J90=\"\",\"\",'[10]II.2.Balance OSD-Activos'!J90)","v":348.93658511104093},{"$f":"IF('[10]II.2.Balance OSD-Activos'!N90=\"\",\"\",'[10]II.2.Balance OSD-Activos'!N90)","v":837.47862614927158},{"$f":"IF('[10]II.2.Balance OSD-Activos'!R90=\"\",\"\",'[10]II.2.Balance OSD-Activos'!R90)","v":33296.547983168901},{"$f":"IF('[10]II.2.Balance OSD-Activos'!S90=\"\",\"\",'[10]II.2.Balance OSD-Activos'!S90)","v":34698.310713614235},33645.484568279942,69181.273908043455,-8.71637820700386,24.745543025838558,2.6713844491321082,25.226605982095094,14.353176548634018,19.011122941978709,-1.92399707790074,{"$f":"IF('[1]MONE(M)CAPARD'!AS232=\"\",\"\",'[1]MONE(M)CAPARD'!AS232)","v":8.9976000000000003},{"$f":"IF('[1]MONE(M)CAPARD'!AT232=\"\",\"\",'[1]MONE(M)CAPARD'!AT232)","v":"n.a."},{"$f":"IF('[1]MONE(M)CAPARD'!AU232=\"\",\"\",'[1]MONE(M)CAPARD'!AU232)","v":7.25},{"$f":"IF('[1]MONE(M)CAPARD'!AV232=\"\",\"\",'[1]MONE(M)CAPARD'!AV232)","v":9},{"$f":"IF('[1]MONE(M)CAPARD'!AW232=\"\",\"\",'[1]MONE(M)CAPARD'!AW232)","v":"n.a."},{"$f":"IF('[1]MONE(M)CAPARD'!AX232=\"\",\"\",'[1]MONE(M)CAPARD'!AX232)","v":9},{"$f":"IF('[1]MONE(M)CAPARD'!AY232=\"\",\"\",'[1]MONE(M)CAPARD'!AY232)","v":"n.a."},{"$f":"IF('[1]FISCAL(M)'!$K232=\"\",\"\",'[1]FISCAL(M)'!$K232)","v":-311.04399255195358},{"$f":"IF('[1]FISCAL(M)'!$L232=\"\",\"\",'[1]FISCAL(M)'!$L232)","v":-180.67865256195336},{"$f":"IF('[1]FISCAL(M)'!$AY232=\"\",\"\",'[1]FISCAL(M)'!$AY232)","v":"n.d."},{"$f":"IF('[1]FISCAL(M)'!$BI232=\"\",\"\",'[1]FISCAL(M)'!$BI232)","v":"n.d."},{"$f":"IF('[1]FISCAL(M)'!$BS232=\"\",\"\",'[1]FISCAL(M)'!$BS232)","v":"n.d."},{"$f":"IF('[1]FISCAL(M)'!$AZ232=\"\",\"\",'[1]FISCAL(M)'!$AZ232)","v":"n.d."},{"$f":"IF('[1]FISCAL(M)'!$BJ232=\"\",\"\",'[1]FISCAL(M)'!$BJ232)","v":"n.d."},{"$f":"IF('[1]FISCAL(M)'!$BT232=\"\",\"\",'[1]FISCAL(M)'!$BT232)","v":"n.d."},{"$f":"IF('[2]MONE(M)'!$AO232=\"\",\"\",'[2]MONE(M)'!$AO232)","v":7520293.4247210566},{"$f":"IF('[3]MONE(M)'!$AO232=\"\",\"\",'[3]MONE(M)'!$AO232)","v":9136.7193479499983},{"$f":"IF('[4]MONE(M)'!$AO232=\"\",\"\",'[4]MONE(M)'!$AO232)","v":79118.69258897382},{"$f":"IF('[5]MONE(M)'!$AO232=\"\",\"\",'[5]MONE(M)'!$AO232)","v":132988.92893337383},{"$f":"IF('[6]MONE(M)'!$AO232=\"\",\"\",'[6]MONE(M)'!$AO232)","v":45542.517421681579},{"$f":"IF('[7]MONE(M)'!$AO232=\"\",\"\",'[7]MONE(M)'!$AO232)","v":321122.98345044005},{"$f":"IF('[8]MONE(M)'!$AO232=\"\",\"\",'[8]MONE(M)'!$AO232)","v":18573.681732599998},44.483159397948711,7.4920309007296293,10.554711758621483,22.460381449836355,26.140099248725267,23.636320650778742,18.393413784320135,{"$f":"IF('[1]FISCAL(M)'!$K232=\"\",\"\",'[1]FISCAL(M)'!$K232)","v":-311.04399255195358},{"$f":"+'[1]REAL(A)'!$AO$28","v":"n.d."},"n.d.",{"$f":"IF('[1]FISCAL(M)'!$L232=\"\",\"\",'[1]FISCAL(M)'!$L232)","v":-180.67865256195336},{"$f":"+'[1]REAL(A)'!$AP$28","v":"n.d."},"n.d.",68604.261620000616,{"$f":"'[1]Gráfico REM'!BG226","v":11722.570458721069},{"$f":"'[1]Gráfico REM'!BH226","v":52258.114355448182},{"$f":"'[1]Gráfico REM'!BI226","v":4623.5768058313552},16.073706152780321,2.533692111814001,20.020939230542332,11.942253355415167,102001.0061690906,{"$f":"'[1]Gráfico REM'!BK226","v":12507.207475361069},{"$f":"'[1]Gráfico REM'!BL226","v":70831.796088048184},{"$f":"'[1]Gráfico REM'!BM226","v":18662.002605681355},18.420057563940361,4.2842096532710316,19.589852831710132,25.142630505244433]
[2008,"agosto","2008-agosto",{"$f":"IF('[1]REAL IPC(M)'!$AL233=\"\",\"\",+'[1]REAL IPC(M)'!$AL233)","v":15.05737198265329},{"$f":"IF('[1]REAL IPC(M)'!$BE233=\"\",\"\",+'[1]REAL IPC(M)'!$BE233)","v":7.9138283719494495},{"$f":"IF('[1]REAL IPC(M)'!$AM233=\"\",\"\",+'[1]REAL IPC(M)'!$AM233)","v":14.253447394946095},{"$f":"IF('[1]REAL IPC(M)'!$BI233=\"\",\"\",+'[1]REAL IPC(M)'!$BI233)","v":7.5510257702546824},{"$f":"IF('[1]REAL IMAE(M)'!BJ233=\"\",\"\",'[1]REAL IMAE(M)'!BJ233)","v":1.783527071794011},{"$f":"IF('[1]REAL IMAE(M)'!BK233=\"\",\"\",'[1]REAL IMAE(M)'!BK233)","v":1.8499427896966125},{"$f":"IF('[1]REAL IMAE(M)'!BN233=\"\",\"\",'[1]REAL IMAE(M)'!BN233)","v":2.9765476117650902},{"$f":"IF('[1]REAL IMAE(M)'!BO233=\"\",\"\",'[1]REAL IMAE(M)'!BO233)","v":2.3476654116235451},{"$f":"IF('[1]EXT RIN(M)'!$K233=\"\",\"\",'[1]EXT RIN(M)'!$K233)","v":16542.386362923153},"",{"$f":"IF('[1]EXT RIN(M)'!$L233=\"\",\"\",'[1]EXT RIN(M)'!$L233)","v":18947.533758389472},"",{"$f":"IF('[1]MONE(M)CARD'!EG233=\"\",\"\",'[1]MONE(M)CARD'!EG233)","v":17554.784585388625},{"$f":"IF('[1]MONE(M)CARD'!EK233=\"\",\"\",'[1]MONE(M)CARD'!EK233)","v":32281.482472840449},{"$f":"IF('[1]MONE(M)CARD'!EP233=\"\",\"\",'[1]MONE(M)CARD'!EP233)","v":16818.421072576355},{"$f":"IF('[1]MONE(M)CARD'!ES233=\"\",\"\",'[1]MONE(M)CARD'!ES233)","v":9.3727122206631819},{"$f":"IF('[1]MONE(M)CARD'!EV233=\"\",\"\",'[1]MONE(M)CARD'!EV233)","v":7.5725706911349056},{"$f":"IF('[1]MONE(M)CARD'!EZ233=\"\",\"\",'[1]MONE(M)CARD'!EZ233)","v":9.1652789253013012},{"$f":"IF('[1]MONE(M)CAPARD'!FC233=\"\",\"\",'[1]MONE(M)CAPARD'!FC233)","v":20887.826568615023},{"$f":"IF('[1]MONE(M)CAPARD'!FG233=\"\",\"\",'[1]MONE(M)CAPARD'!FG233)","v":48042.939111650441},{"$f":"IF('[1]MONE(M)CAPARD'!FL233=\"\",\"\",'[1]MONE(M)CAPARD'!FL233)","v":16818.421072576355},{"$f":"IF('[1]MONE(M)CAPARD'!FO233=\"\",\"\",'[1]MONE(M)CAPARD'!FO233)","v":12.882829418371799},{"$f":"IF('[1]MONE(M)CAPARD'!FR233=\"\",\"\",'[1]MONE(M)CAPARD'!FR233)","v":10.374149871486393},{"$f":"IF('[1]MONE(M)CAPARD'!FV233=\"\",\"\",'[1]MONE(M)CAPARD'!FV233)","v":11.099442775736845},{"$f":"IF('[1]MONE(M)CARD'!FV233=\"\",\"\",'[1]MONE(M)CARD'!FV233)","v":2358.1755691419562},{"$f":"IF('[1]MONE(M)CARD'!GD233=\"\",\"\",'[1]MONE(M)CARD'!GD233)","v":72.124648986187282},{"$f":"IF('[1]MONE(M)CARD'!GE233=\"\",\"\",'[1]MONE(M)CARD'!GE233)","v":5002.3839138213898},0.37035013732660271,{"$f":"IF('[9]II.2.Balance OSD-Activos'!J91=\"\",\"\",'[9]II.2.Balance OSD-Activos'!J91)","v":115.85026032187704},{"$f":"IF('[9]II.2.Balance OSD-Activos'!N91=\"\",\"\",'[9]II.2.Balance OSD-Activos'!N91)","v":423.25412827348902},{"$f":"IF('[9]II.2.Balance OSD-Activos'!R91=\"\",\"\",'[9]II.2.Balance OSD-Activos'!R91)","v":23857.237445233513},{"$f":"IF('[9]II.2.Balance OSD-Activos'!S91=\"\",\"\",'[9]II.2.Balance OSD-Activos'!S91)","v":26652.07156949725},23973.08770555539,51048.413403326129,-50.732220385034175,24.295480075686161,13.065367020765773,25.221487277839682,13.935844596092029,18.569180998236057,-0.97297693038132138,{"$f":"IF('[1]MONE(M)CAPARD'!GS233=\"\",\"\",'[1]MONE(M)CAPARD'!GS233)","v":8098.7202457048679},{"$f":"IF('[1]MONE(M)CARD'!HA233=\"\",\"\",'[1]MONE(M)CAPARD'!HA233)","v":5465.6912788613899},{"$f":"IF('[1]MONE(M)CAPARD'!HB233=\"\",\"\",'[1]MONE(M)CAPARD'!HB233)","v":2633.028966843478},"n.d.",{"$f":"IF('[10]II.2.Balance OSD-Activos'!J91=\"\",\"\",'[10]II.2.Balance OSD-Activos'!J91)","v":389.23726849187699},{"$f":"IF('[10]II.2.Balance OSD-Activos'!N91=\"\",\"\",'[10]II.2.Balance OSD-Activos'!N91)","v":831.53853451348903},{"$f":"IF('[10]II.2.Balance OSD-Activos'!R91=\"\",\"\",'[10]II.2.Balance OSD-Activos'!R91)","v":33735.566402903511},{"$f":"IF('[10]II.2.Balance OSD-Activos'!S91=\"\",\"\",'[10]II.2.Balance OSD-Activos'!S91)","v":35056.224832777247},34124.803671395384,70012.567038686131,-4.3787833657893067,24.652077557486042,4.2059372872113698,25.090260590772061,13.425256157438348,18.50285422380411,-0.50826871817459818,{"$f":"IF('[1]MONE(M)CAPARD'!AS233=\"\",\"\",'[1]MONE(M)CAPARD'!AS233)","v":10},{"$f":"IF('[1]MONE(M)CAPARD'!AT233=\"\",\"\",'[1]MONE(M)CAPARD'!AT233)","v":"n.a."},{"$f":"IF('[1]MONE(M)CAPARD'!AU233=\"\",\"\",'[1]MONE(M)CAPARD'!AU233)","v":7.25},{"$f":"IF('[1]MONE(M)CAPARD'!AV233=\"\",\"\",'[1]MONE(M)CAPARD'!AV233)","v":9},{"$f":"IF('[1]MONE(M)CAPARD'!AW233=\"\",\"\",'[1]MONE(M)CAPARD'!AW233)","v":"n.a."},{"$f":"IF('[1]MONE(M)CAPARD'!AX233=\"\",\"\",'[1]MONE(M)CAPARD'!AX233)","v":9.5},{"$f":"IF('[1]MONE(M)CAPARD'!AY233=\"\",\"\",'[1]MONE(M)CAPARD'!AY233)","v":"n.a."},{"$f":"IF('[1]FISCAL(M)'!$K233=\"\",\"\",'[1]FISCAL(M)'!$K233)","v":-416.88624589089471},{"$f":"IF('[1]FISCAL(M)'!$L233=\"\",\"\",'[1]FISCAL(M)'!$L233)","v":-387.00004331089451},{"$f":"IF('[1]FISCAL(M)'!$AY233=\"\",\"\",'[1]FISCAL(M)'!$AY233)","v":"n.d."},{"$f":"IF('[1]FISCAL(M)'!$BI233=\"\",\"\",'[1]FISCAL(M)'!$BI233)","v":"n.d."},{"$f":"IF('[1]FISCAL(M)'!$BS233=\"\",\"\",'[1]FISCAL(M)'!$BS233)","v":"n.d."},{"$f":"IF('[1]FISCAL(M)'!$AZ233=\"\",\"\",'[1]FISCAL(M)'!$AZ233)","v":"n.d."},{"$f":"IF('[1]FISCAL(M)'!$BJ233=\"\",\"\",'[1]FISCAL(M)'!$BJ233)","v":"n.d."},{"$f":"IF('[1]FISCAL(M)'!$BT233=\"\",\"\",'[1]FISCAL(M)'!$BT233)","v":"n.d."},{"$f":"IF('[2]MONE(M)'!$AO233=\"\",\"\",'[2]MONE(M)'!$AO233)","v":7592805.7953898562},{"$f":"IF('[3]MONE(M)'!$AO233=\"\",\"\",'[3]MONE(M)'!$AO233)","v":9241.9938793500005},{"$f":"IF('[4]MONE(M)'!$AO233=\"\",\"\",'[4]MONE(M)'!$AO233)","v":72191.215654330736},{"$f":"IF('[5]MONE(M)'!$AO233=\"\",\"\",'[5]MONE(M)'!$AO233)","v":134678.33039930335},{"$f":"IF('[6]MONE(M)'!$AO233=\"\",\"\",'[6]MONE(M)'!$AO233)","v":46622.095771143329},{"$f":"IF('[7]MONE(M)'!$AO233=\"\",\"\",'[7]MONE(M)'!$AO233)","v":324677.19513931999},{"$f":"IF('[8]MONE(M)'!$AO233=\"\",\"\",'[8]MONE(M)'!$AO233)","v":18962.60600991},41.990596270935598,7.5957732425602664,0,20.634849799284403,25.761831771668021,22.412121148538368,19.126106651075169,{"$f":"IF('[1]FISCAL(M)'!$K233=\"\",\"\",'[1]FISCAL(M)'!$K233)","v":-416.88624589089471},{"$f":"+'[1]REAL(A)'!$AO$28","v":"n.d."},"n.d.",{"$f":"IF('[1]FISCAL(M)'!$L233=\"\",\"\",'[1]FISCAL(M)'!$L233)","v":-387.00004331089451},{"$f":"+'[1]REAL(A)'!$AP$28","v":"n.d."},"n.d.",67396.358861856876,{"$f":"'[1]Gráfico REM'!BG227","v":11163.423194556082},{"$f":"'[1]Gráfico REM'!BH227","v":51660.796489597895},{"$f":"'[1]Gráfico REM'!BI227","v":4572.1391777029021},12.849930743303851,-1.7323643177554304,16.751871903833116,11.149102165232394,101357.51544326688,{"$f":"'[1]Gráfico REM'!BK227","v":11953.420306786082},{"$f":"'[1]Gráfico REM'!BL227","v":70623.402499507894},{"$f":"'[1]Gráfico REM'!BM227","v":18780.692636972901},16.00730010399505,-0.12490560666926775,17.380017417975235,23.258453189281703]
[2008,"septiembre","2008-septiembre",{"$f":"IF('[1]REAL IPC(M)'!$AL234=\"\",\"\",+'[1]REAL IPC(M)'!$AL234)","v":14.79203218406675},{"$f":"IF('[1]REAL IPC(M)'!$BE234=\"\",\"\",+'[1]REAL IPC(M)'!$BE234)","v":7.7979747318246639},{"$f":"IF('[1]REAL IPC(M)'!$AM234=\"\",\"\",+'[1]REAL IPC(M)'!$AM234)","v":14.011294153332132},{"$f":"IF('[1]REAL IPC(M)'!$BI234=\"\",\"\",+'[1]REAL IPC(M)'!$BI234)","v":7.4368701052231811},{"$f":"IF('[1]REAL IMAE(M)'!BJ234=\"\",\"\",'[1]REAL IMAE(M)'!BJ234)","v":1.2447106078112835},{"$f":"IF('[1]REAL IMAE(M)'!BK234=\"\",\"\",'[1]REAL IMAE(M)'!BK234)","v":1.8342562694517506},{"$f":"IF('[1]REAL IMAE(M)'!BN234=\"\",\"\",'[1]REAL IMAE(M)'!BN234)","v":2.3807054363607749},{"$f":"IF('[1]REAL IMAE(M)'!BO234=\"\",\"\",'[1]REAL IMAE(M)'!BO234)","v":2.3196755996549578},{"$f":"IF('[1]EXT RIN(M)'!$K234=\"\",\"\",'[1]EXT RIN(M)'!$K234)","v":16328.770519770424},"",{"$f":"IF('[1]EXT RIN(M)'!$L234=\"\",\"\",'[1]EXT RIN(M)'!$L234)","v":18552.994452283503},"",{"$f":"IF('[1]MONE(M)CARD'!EG234=\"\",\"\",'[1]MONE(M)CARD'!EG234)","v":17334.035971538076},{"$f":"IF('[1]MONE(M)CARD'!EK234=\"\",\"\",'[1]MONE(M)CARD'!EK234)","v":32406.268199822742},{"$f":"IF('[1]MONE(M)CARD'!EP234=\"\",\"\",'[1]MONE(M)CARD'!EP234)","v":17039.386846555055},{"$f":"IF('[1]MONE(M)CARD'!ES234=\"\",\"\",'[1]MONE(M)CARD'!ES234)","v":6.0099471934652815},{"$f":"IF('[1]MONE(M)CARD'!EV234=\"\",\"\",'[1]MONE(M)CARD'!EV234)","v":7.0464237939583008},{"$f":"IF('[1]MONE(M)CARD'!EZ234=\"\",\"\",'[1]MONE(M)CARD'!EZ234)","v":9.0846848879828634},{"$f":"IF('[1]MONE(M)CAPARD'!FC234=\"\",\"\",'[1]MONE(M)CAPARD'!FC234)","v":20615.192845383477},{"$f":"IF('[1]MONE(M)CAPARD'!FG234=\"\",\"\",'[1]MONE(M)CAPARD'!FG234)","v":48086.87162643273},{"$f":"IF('[1]MONE(M)CAPARD'!FL234=\"\",\"\",'[1]MONE(M)CAPARD'!FL234)","v":17039.386846555048},{"$f":"IF('[1]MONE(M)CAPARD'!FO234=\"\",\"\",'[1]MONE(M)CAPARD'!FO234)","v":8.8513738299936371},{"$f":"IF('[1]MONE(M)CAPARD'!FR234=\"\",\"\",'[1]MONE(M)CAPARD'!FR234)","v":9.1330456612185973},{"$f":"IF('[1]MONE(M)CAPARD'!FV234=\"\",\"\",'[1]MONE(M)CAPARD'!FV234)","v":10.342710646313002},{"$f":"IF('[1]MONE(M)CARD'!FV234=\"\",\"\",'[1]MONE(M)CARD'!FV234)","v":2336.2556862255833},{"$f":"IF('[1]MONE(M)CARD'!GD234=\"\",\"\",'[1]MONE(M)CARD'!GD234)","v":149.84076227326238},{"$f":"IF('[1]MONE(M)CARD'!GE234=\"\",\"\",'[1]MONE(M)CARD'!GE234)","v":5048.8654575536066},3.0014387162975886,{"$f":"IF('[9]II.2.Balance OSD-Activos'!J92=\"\",\"\",'[9]II.2.Balance OSD-Activos'!J92)","v":109.46819784845457},{"$f":"IF('[9]II.2.Balance OSD-Activos'!N92=\"\",\"\",'[9]II.2.Balance OSD-Activos'!N92)","v":418.69130860614393},{"$f":"IF('[9]II.2.Balance OSD-Activos'!R92=\"\",\"\",'[9]II.2.Balance OSD-Activos'!R92)","v":23975.515097576204},{"$f":"IF('[9]II.2.Balance OSD-Activos'!S92=\"\",\"\",'[9]II.2.Balance OSD-Activos'!S92)","v":26859.75146097636},24084.983295424659,51363.426065007166,-47.700094163777308,24.723284331336302,8.4142274058696351,25.516881364557833,11.541777123532015,17.328710847444427,-1.24047015079163,{"$f":"IF('[1]MONE(M)CAPARD'!GS234=\"\",\"\",'[1]MONE(M)CAPARD'!GS234)","v":8071.8693480480233},{"$f":"IF('[1]MONE(M)CARD'!HA234=\"\",\"\",'[1]MONE(M)CAPARD'!HA234)","v":5514.2997321536068},{"$f":"IF('[1]MONE(M)CAPARD'!HB234=\"\",\"\",'[1]MONE(M)CAPARD'!HB234)","v":2557.5696158944165},"n.d.",{"$f":"IF('[10]II.2.Balance OSD-Activos'!J92=\"\",\"\",'[10]II.2.Balance OSD-Activos'!J92)","v":374.97967229845449},{"$f":"IF('[10]II.2.Balance OSD-Activos'!N92=\"\",\"\",'[10]II.2.Balance OSD-Activos'!N92)","v":802.78631351614399},{"$f":"IF('[10]II.2.Balance OSD-Activos'!R92=\"\",\"\",'[10]II.2.Balance OSD-Activos'!R92)","v":34221.795261876206},{"$f":"IF('[10]II.2.Balance OSD-Activos'!S92=\"\",\"\",'[10]II.2.Balance OSD-Activos'!S92)","v":35337.56552345636},34596.77493417466,70737.126771147159,-1.5350150601287194,25.548559669574232,-2.9689934523692174,25.928094585422802,11.545337257725485,17.769900946702542,-0.73295327710156855,{"$f":"IF('[1]MONE(M)CAPARD'!AS234=\"\",\"\",'[1]MONE(M)CAPARD'!AS234)","v":10},{"$f":"IF('[1]MONE(M)CAPARD'!AT234=\"\",\"\",'[1]MONE(M)CAPARD'!AT234)","v":"n.a."},{"$f":"IF('[1]MONE(M)CAPARD'!AU234=\"\",\"\",'[1]MONE(M)CAPARD'!AU234)","v":7.25},{"$f":"IF('[1]MONE(M)CAPARD'!AV234=\"\",\"\",'[1]MONE(M)CAPARD'!AV234)","v":9},{"$f":"IF('[1]MONE(M)CAPARD'!AW234=\"\",\"\",'[1]MONE(M)CAPARD'!AW234)","v":"n.a."},{"$f":"IF('[1]MONE(M)CAPARD'!AX234=\"\",\"\",'[1]MONE(M)CAPARD'!AX234)","v":9.5},{"$f":"IF('[1]MONE(M)CAPARD'!AY234=\"\",\"\",'[1]MONE(M)CAPARD'!AY234)","v":"n.a."},{"$f":"IF('[1]FISCAL(M)'!$K234=\"\",\"\",'[1]FISCAL(M)'!$K234)","v":-879.23593228893196},{"$f":"IF('[1]FISCAL(M)'!$L234=\"\",\"\",'[1]FISCAL(M)'!$L234)","v":-919.2802200489316},{"$f":"IF('[1]FISCAL(M)'!$AY234=\"\",\"\",'[1]FISCAL(M)'!$AY234)","v":50291.535539284938},{"$f":"IF('[1]FISCAL(M)'!$BI234=\"\",\"\",'[1]FISCAL(M)'!$BI234)","v":23322.940869284939},{"$f":"IF('[1]FISCAL(M)'!$BS234=\"\",\"\",'[1]FISCAL(M)'!$BS234)","v":26968.594669999999},{"$f":"IF('[1]FISCAL(M)'!$AZ234=\"\",\"\",'[1]FISCAL(M)'!$AZ234)","v":61375.058334824935},{"$f":"IF('[1]FISCAL(M)'!$BJ234=\"\",\"\",'[1]FISCAL(M)'!$BJ234)","v":25923.069244804938},{"$f":"IF('[1]FISCAL(M)'!$BT234=\"\",\"\",'[1]FISCAL(M)'!$BT234)","v":35451.989090019997},{"$f":"IF('[2]MONE(M)'!$AO234=\"\",\"\",'[2]MONE(M)'!$AO234)","v":7726237.9359870385},{"$f":"IF('[3]MONE(M)'!$AO234=\"\",\"\",'[3]MONE(M)'!$AO234)","v":9246.5576702299986},{"$f":"IF('[4]MONE(M)'!$AO234=\"\",\"\",'[4]MONE(M)'!$AO234)","v":80817.858824738185},{"$f":"IF('[5]MONE(M)'!$AO234=\"\",\"\",'[5]MONE(M)'!$AO234)","v":135922.15762641031},{"$f":"IF('[6]MONE(M)'!$AO234=\"\",\"\",'[6]MONE(M)'!$AO234)","v":46704.120908071913},{"$f":"IF('[7]MONE(M)'!$AO234=\"\",\"\",'[7]MONE(M)'!$AO234)","v":328074.00274570996},{"$f":"IF('[8]MONE(M)'!$AO234=\"\",\"\",'[8]MONE(M)'!$AO234)","v":19394.071250630001},39.166562363655764,7.2704308649084171,10.835783331133708,18.88194961469982,23.757716516697556,20.983410613861441,20.028507696367058,{"$f":"IF('[1]FISCAL(M)'!$K234=\"\",\"\",'[1]FISCAL(M)'!$K234)","v":-879.23593228893196},{"$f":"+'[1]REAL(A)'!$AO$28","v":"n.d."},"n.d.",{"$f":"IF('[1]FISCAL(M)'!$L234=\"\",\"\",'[1]FISCAL(M)'!$L234)","v":-919.2802200489316},{"$f":"+'[1]REAL(A)'!$AP$28","v":"n.d."},"n.d.",69115.088891699008,{"$f":"'[1]Gráfico REM'!BG228","v":11297.407778647133},{"$f":"'[1]Gráfico REM'!BH228","v":53094.444179758226},{"$f":"'[1]Gráfico REM'!BI228","v":4723.2369332936514},13.90198586911584,-1.1237686796254143,18.038845790373447,10.532906017645782,103506.02407979901,{"$f":"'[1]Gráfico REM'!BK228","v":12066.151329887134},{"$f":"'[1]Gráfico REM'!BL228","v":72488.51543038823},{"$f":"'[1]Gráfico REM'!BM228","v":18951.357319523649},16.562572194542604,0.18952964110108272,18.56468140631733,21.35096143301347]
[2008,"octubre","2008-octubre",{"$f":"IF('[1]REAL IPC(M)'!$AL235=\"\",\"\",+'[1]REAL IPC(M)'!$AL235)","v":14.069371355494953},{"$f":"IF('[1]REAL IPC(M)'!$BE235=\"\",\"\",+'[1]REAL IPC(M)'!$BE235)","v":7.6746191405370645},{"$f":"IF('[1]REAL IPC(M)'!$AM235=\"\",\"\",+'[1]REAL IPC(M)'!$AM235)","v":13.298182269205272},{"$f":"IF('[1]REAL IPC(M)'!$BI235=\"\",\"\",+'[1]REAL IPC(M)'!$BI235)","v":7.3144627027336373},{"$f":"IF('[1]REAL IMAE(M)'!BJ235=\"\",\"\",'[1]REAL IMAE(M)'!BJ235)","v":0.69324770162813021},{"$f":"IF('[1]REAL IMAE(M)'!BK235=\"\",\"\",'[1]REAL IMAE(M)'!BK235)","v":1.8236988127391163},{"$f":"IF('[1]REAL IMAE(M)'!BN235=\"\",\"\",'[1]REAL IMAE(M)'!BN235)","v":1.6668109674624842},{"$f":"IF('[1]REAL IMAE(M)'!BO235=\"\",\"\",'[1]REAL IMAE(M)'!BO235)","v":2.2964814027291558},{"$f":"IF('[1]EXT RIN(M)'!$K235=\"\",\"\",'[1]EXT RIN(M)'!$K235)","v":16116.737809608137},"",{"$f":"IF('[1]EXT RIN(M)'!$L235=\"\",\"\",'[1]EXT RIN(M)'!$L235)","v":18490.632912054338},"",{"$f":"IF('[1]MONE(M)CARD'!EG235=\"\",\"\",'[1]MONE(M)CARD'!EG235)","v":16957.314584517822},{"$f":"IF('[1]MONE(M)CARD'!EK235=\"\",\"\",'[1]MONE(M)CARD'!EK235)","v":32321.75629249608},{"$f":"IF('[1]MONE(M)CARD'!EP235=\"\",\"\",'[1]MONE(M)CARD'!EP235)","v":16935.172671459484},{"$f":"IF('[1]MONE(M)CARD'!ES235=\"\",\"\",'[1]MONE(M)CARD'!ES235)","v":4.3806742878022886},{"$f":"IF('[1]MONE(M)CARD'!EV235=\"\",\"\",'[1]MONE(M)CARD'!EV235)","v":5.5553394015623869},{"$f":"IF('[1]MONE(M)CARD'!EZ235=\"\",\"\",'[1]MONE(M)CARD'!EZ235)","v":7.47391297484159},{"$f":"IF('[1]MONE(M)CAPARD'!FC235=\"\",\"\",'[1]MONE(M)CAPARD'!FC235)","v":20265.700832653223},{"$f":"IF('[1]MONE(M)CAPARD'!FG235=\"\",\"\",'[1]MONE(M)CAPARD'!FG235)","v":48355.398408276087},{"$f":"IF('[1]MONE(M)CAPARD'!FL235=\"\",\"\",'[1]MONE(M)CAPARD'!FL235)","v":16935.172671459484},{"$f":"IF('[1]MONE(M)CAPARD'!FO235=\"\",\"\",'[1]MONE(M)CAPARD'!FO235)","v":7.2608959864240985},{"$f":"IF('[1]MONE(M)CAPARD'!FR235=\"\",\"\",'[1]MONE(M)CAPARD'!FR235)","v":8.139539539763252},{"$f":"IF('[1]MONE(M)CAPARD'!FV235=\"\",\"\",'[1]MONE(M)CAPARD'!FV235)","v":9.155559416343273},{"$f":"IF('[1]MONE(M)CARD'!FV235=\"\",\"\",'[1]MONE(M)CARD'!FV235)","v":2313.2107958114757},{"$f":"IF('[1]MONE(M)CARD'!GD235=\"\",\"\",'[1]MONE(M)CARD'!GD235)","v":67.04219294557123},{"$f":"IF('[1]MONE(M)CARD'!GE235=\"\",\"\",'[1]MONE(M)CARD'!GE235)","v":4955.5113652889386},-3.2476578743062423,{"$f":"IF('[9]II.2.Balance OSD-Activos'!J93=\"\",\"\",'[9]II.2.Balance OSD-Activos'!J93)","v":101.21286814587705},{"$f":"IF('[9]II.2.Balance OSD-Activos'!N93=\"\",\"\",'[9]II.2.Balance OSD-Activos'!N93)","v":415.25438077724834},{"$f":"IF('[9]II.2.Balance OSD-Activos'!R93=\"\",\"\",'[9]II.2.Balance OSD-Activos'!R93)","v":24116.12334666722},{"$f":"IF('[9]II.2.Balance OSD-Activos'!S93=\"\",\"\",'[9]II.2.Balance OSD-Activos'!S93)","v":26917.305614654088},24217.336214813098,51549.896210244435,-50.267170630440127,22.590976023854981,3.3755785071289068,23.34937922191007,8.6279127041783745,14.719394846218691,-2.6093160012257357,{"$f":"IF('[1]MONE(M)CAPARD'!GS235=\"\",\"\",'[1]MONE(M)CAPARD'!GS235)","v":8160.3695361781447},{"$f":"IF('[1]MONE(M)CARD'!HA235=\"\",\"\",'[1]MONE(M)CAPARD'!HA235)","v":5394.6173114389394},{"$f":"IF('[1]MONE(M)CAPARD'!HB235=\"\",\"\",'[1]MONE(M)CAPARD'!HB235)","v":2765.7522247392053},"n.d.",{"$f":"IF('[10]II.2.Balance OSD-Activos'!J93=\"\",\"\",'[10]II.2.Balance OSD-Activos'!J93)","v":385.53036191587699},{"$f":"IF('[10]II.2.Balance OSD-Activos'!N93=\"\",\"\",'[10]II.2.Balance OSD-Activos'!N93)","v":819.85229006724842},{"$f":"IF('[10]II.2.Balance OSD-Activos'!R93=\"\",\"\",'[10]II.2.Balance OSD-Activos'!R93)","v":34570.13071843722},{"$f":"IF('[10]II.2.Balance OSD-Activos'!S93=\"\",\"\",'[10]II.2.Balance OSD-Activos'!S93)","v":35476.65141243409},34955.6610803531,71252.164782854437,-1.7137742087205088,23.598694781415208,-1.8495343432724187,23.954704972677888,9.289212732286046,15.710169048107737,-2.059731898594805,{"$f":"IF('[1]MONE(M)CAPARD'!AS235=\"\",\"\",'[1]MONE(M)CAPARD'!AS235)","v":10},{"$f":"IF('[1]MONE(M)CAPARD'!AT235=\"\",\"\",'[1]MONE(M)CAPARD'!AT235)","v":"n.a."},{"$f":"IF('[1]MONE(M)CAPARD'!AU235=\"\",\"\",'[1]MONE(M)CAPARD'!AU235)","v":7.25},{"$f":"IF('[1]MONE(M)CAPARD'!AV235=\"\",\"\",'[1]MONE(M)CAPARD'!AV235)","v":9},{"$f":"IF('[1]MONE(M)CAPARD'!AW235=\"\",\"\",'[1]MONE(M)CAPARD'!AW235)","v":"n.a."},{"$f":"IF('[1]MONE(M)CAPARD'!AX235=\"\",\"\",'[1]MONE(M)CAPARD'!AX235)","v":9.5},{"$f":"IF('[1]MONE(M)CAPARD'!AY235=\"\",\"\",'[1]MONE(M)CAPARD'!AY235)","v":"n.a."},{"$f":"IF('[1]FISCAL(M)'!$K235=\"\",\"\",'[1]FISCAL(M)'!$K235)","v":-1007.6458175263223},{"$f":"IF('[1]FISCAL(M)'!$L235=\"\",\"\",'[1]FISCAL(M)'!$L235)","v":-1160.7852842663224},{"$f":"IF('[1]FISCAL(M)'!$AY235=\"\",\"\",'[1]FISCAL(M)'!$AY235)","v":"n.d."},{"$f":"IF('[1]FISCAL(M)'!$BI235=\"\",\"\",'[1]FISCAL(M)'!$BI235)","v":"n.d."},{"$f":"IF('[1]FISCAL(M)'!$BS235=\"\",\"\",'[1]FISCAL(M)'!$BS235)","v":"n.d."},{"$f":"IF('[1]FISCAL(M)'!$AZ235=\"\",\"\",'[1]FISCAL(M)'!$AZ235)","v":"n.d."},{"$f":"IF('[1]FISCAL(M)'!$BJ235=\"\",\"\",'[1]FISCAL(M)'!$BJ235)","v":"n.d."},{"$f":"IF('[1]FISCAL(M)'!$BT235=\"\",\"\",'[1]FISCAL(M)'!$BT235)","v":"n.d."},{"$f":"IF('[2]MONE(M)'!$AO235=\"\",\"\",'[2]MONE(M)'!$AO235)","v":7807622.5383925419},{"$f":"IF('[3]MONE(M)'!$AO235=\"\",\"\",'[3]MONE(M)'!$AO235)","v":9252.3264112100005},{"$f":"IF('[4]MONE(M)'!$AO235=\"\",\"\",'[4]MONE(M)'!$AO235)","v":81726.145841690013},{"$f":"IF('[5]MONE(M)'!$AO235=\"\",\"\",'[5]MONE(M)'!$AO235)","v":135405.57670348292},{"$f":"IF('[6]MONE(M)'!$AO235=\"\",\"\",'[6]MONE(M)'!$AO235)","v":46554.84925188018},{"$f":"IF('[7]MONE(M)'!$AO235=\"\",\"\",'[7]MONE(M)'!$AO235)","v":331089.07028461999},{"$f":"IF('[8]MONE(M)'!$AO235=\"\",\"\",'[8]MONE(M)'!$AO235)","v":19705.149249319998},34.832020144123788,7.030582101039573,9.6039807750441639,15.315869356785949,17.990331566078609,18.635269939082487,19.276794903484884,{"$f":"IF('[1]FISCAL(M)'!$K235=\"\",\"\",'[1]FISCAL(M)'!$K235)","v":-1007.6458175263223},{"$f":"+'[1]REAL(A)'!$AO$28","v":"n.d."},"n.d.",{"$f":"IF('[1]FISCAL(M)'!$L235=\"\",\"\",'[1]FISCAL(M)'!$L235)","v":-1160.7852842663224},{"$f":"+'[1]REAL(A)'!$AP$28","v":"n.d."},"n.d.",69235.003596035676,{"$f":"'[1]Gráfico REM'!BG229","v":11273.47867460538},{"$f":"'[1]Gráfico REM'!BH229","v":53212.983173362096},{"$f":"'[1]Gráfico REM'!BI229","v":4748.5417480682008},12.405483629163561,0.18423956311506284,15.244933349309786,13.944649153070232,104058.95136671569,{"$f":"'[1]Gráfico REM'!BK229","v":12086.99236766538},{"$f":"'[1]Gráfico REM'!BL229","v":72918.132422682102},{"$f":"'[1]Gráfico REM'!BM229","v":19053.826576368199},15.486434407127625,1.8190873365189431,16.307365144167619,22.61522376984184]
[2008,"noviembre","2008-noviembre",{"$f":"IF('[1]REAL IPC(M)'!$AL236=\"\",\"\",+'[1]REAL IPC(M)'!$AL236)","v":11.082551077115067},{"$f":"IF('[1]REAL IPC(M)'!$BE236=\"\",\"\",+'[1]REAL IPC(M)'!$BE236)","v":7.5450376468207514},{"$f":"IF('[1]REAL IPC(M)'!$AM236=\"\",\"\",+'[1]REAL IPC(M)'!$AM236)","v":10.380422814531553},{"$f":"IF('[1]REAL IPC(M)'!$BI236=\"\",\"\",+'[1]REAL IPC(M)'!$BI236)","v":7.1851085111548363},{"$f":"IF('[1]REAL IMAE(M)'!BJ236=\"\",\"\",'[1]REAL IMAE(M)'!BJ236)","v":-0.33315013737806876},{"$f":"IF('[1]REAL IMAE(M)'!BK236=\"\",\"\",'[1]REAL IMAE(M)'!BK236)","v":1.8194251369136438},{"$f":"IF('[1]REAL IMAE(M)'!BN236=\"\",\"\",'[1]REAL IMAE(M)'!BN236)","v":0.5171469686220842},{"$f":"IF('[1]REAL IMAE(M)'!BO236=\"\",\"\",'[1]REAL IMAE(M)'!BO236)","v":2.2794921015830694},{"$f":"IF('[1]EXT RIN(M)'!$K236=\"\",\"\",'[1]EXT RIN(M)'!$K236)","v":16218.631526435387},"",{"$f":"IF('[1]EXT RIN(M)'!$L236=\"\",\"\",'[1]EXT RIN(M)'!$L236)","v":18571.562904868355},"",{"$f":"IF('[1]MONE(M)CARD'!EG236=\"\",\"\",'[1]MONE(M)CARD'!EG236)","v":17634.703213673947},{"$f":"IF('[1]MONE(M)CARD'!EK236=\"\",\"\",'[1]MONE(M)CARD'!EK236)","v":32390.807914636371},{"$f":"IF('[1]MONE(M)CARD'!EP236=\"\",\"\",'[1]MONE(M)CARD'!EP236)","v":17070.414741228116},{"$f":"IF('[1]MONE(M)CARD'!ES236=\"\",\"\",'[1]MONE(M)CARD'!ES236)","v":2.981331342945559},{"$f":"IF('[1]MONE(M)CARD'!EV236=\"\",\"\",'[1]MONE(M)CARD'!EV236)","v":4.6004722949095411},{"$f":"IF('[1]MONE(M)CARD'!EZ236=\"\",\"\",'[1]MONE(M)CARD'!EZ236)","v":6.779036064548194},{"$f":"IF('[1]MONE(M)CAPARD'!FC236=\"\",\"\",'[1]MONE(M)CAPARD'!FC236)","v":21165.864523210348},{"$f":"IF('[1]MONE(M)CAPARD'!FG236=\"\",\"\",'[1]MONE(M)CAPARD'!FG236)","v":48217.245599626374},{"$f":"IF('[1]MONE(M)CAPARD'!FL236=\"\",\"\",'[1]MONE(M)CAPARD'!FL236)","v":17070.414741228102},{"$f":"IF('[1]MONE(M)CAPARD'!FO236=\"\",\"\",'[1]MONE(M)CAPARD'!FO236)","v":6.2962674201474611},{"$f":"IF('[1]MONE(M)CAPARD'!FR236=\"\",\"\",'[1]MONE(M)CAPARD'!FR236)","v":6.9475564110675458},{"$f":"IF('[1]MONE(M)CAPARD'!FV236=\"\",\"\",'[1]MONE(M)CAPARD'!FV236)","v":8.2201188687550886},{"$f":"IF('[1]MONE(M)CARD'!FV236=\"\",\"\",'[1]MONE(M)CARD'!FV236)","v":2381.3844376576599},{"$f":"IF('[1]MONE(M)CARD'!GD236=\"\",\"\",'[1]MONE(M)CARD'!GD236)","v":67.085072067910772},{"$f":"IF('[1]MONE(M)CARD'!GE236=\"\",\"\",'[1]MONE(M)CARD'!GE236)","v":5054.4273916934899},-0.33700884279012078,{"$f":"IF('[9]II.2.Balance OSD-Activos'!J94=\"\",\"\",'[9]II.2.Balance OSD-Activos'!J94)","v":104.46638541537983},{"$f":"IF('[9]II.2.Balance OSD-Activos'!N94=\"\",\"\",'[9]II.2.Balance OSD-Activos'!N94)","v":411.34431291176236},{"$f":"IF('[9]II.2.Balance OSD-Activos'!R94=\"\",\"\",'[9]II.2.Balance OSD-Activos'!R94)","v":24438.610781833326},{"$f":"IF('[9]II.2.Balance OSD-Activos'!S94=\"\",\"\",'[9]II.2.Balance OSD-Activos'!S94)","v":27263.67710446335},24543.077167248706,52218.098584623818,-51.560153478930658,19.767224897761125,-1.5460884146384912,20.525861515697486,6.6402161626791356,12.354598594302901,-2.3647962519157897,{"$f":"IF('[1]MONE(M)CAPARD'!GS236=\"\",\"\",'[1]MONE(M)CAPARD'!GS236)","v":8046.1818059099396},{"$f":"IF('[1]MONE(M)CARD'!HA236=\"\",\"\",'[1]MONE(M)CAPARD'!HA236)","v":5541.2611274034898},{"$f":"IF('[1]MONE(M)CAPARD'!HB236=\"\",\"\",'[1]MONE(M)CAPARD'!HB236)","v":2504.9206785064498},"n.d.",{"$f":"IF('[10]II.2.Balance OSD-Activos'!J94=\"\",\"\",'[10]II.2.Balance OSD-Activos'!J94)","v":389.70990099437978},{"$f":"IF('[10]II.2.Balance OSD-Activos'!N94=\"\",\"\",'[10]II.2.Balance OSD-Activos'!N94)","v":887.85004047176233},{"$f":"IF('[10]II.2.Balance OSD-Activos'!R94=\"\",\"\",'[10]II.2.Balance OSD-Activos'!R94)","v":34903.389468303329},{"$f":"IF('[10]II.2.Balance OSD-Activos'!S94=\"\",\"\",'[10]II.2.Balance OSD-Activos'!S94)","v":35918.159735243345},35293.099369297706,72099.109145012815,-6.2097581541776581,21.11798593668739,3.2681262140549894,21.513301382065151,7.7048706318349813,13.81456449775369,-1.8956045503540473,{"$f":"IF('[1]MONE(M)CAPARD'!AS236=\"\",\"\",'[1]MONE(M)CAPARD'!AS236)","v":10},{"$f":"IF('[1]MONE(M)CAPARD'!AT236=\"\",\"\",'[1]MONE(M)CAPARD'!AT236)","v":"n.a."},{"$f":"IF('[1]MONE(M)CAPARD'!AU236=\"\",\"\",'[1]MONE(M)CAPARD'!AU236)","v":7.25},{"$f":"IF('[1]MONE(M)CAPARD'!AV236=\"\",\"\",'[1]MONE(M)CAPARD'!AV236)","v":9},{"$f":"IF('[1]MONE(M)CAPARD'!AW236=\"\",\"\",'[1]MONE(M)CAPARD'!AW236)","v":"n.a."},{"$f":"IF('[1]MONE(M)CAPARD'!AX236=\"\",\"\",'[1]MONE(M)CAPARD'!AX236)","v":9.5},{"$f":"IF('[1]MONE(M)CAPARD'!AY236=\"\",\"\",'[1]MONE(M)CAPARD'!AY236)","v":"n.a."},{"$f":"IF('[1]FISCAL(M)'!$K236=\"\",\"\",'[1]FISCAL(M)'!$K236)","v":-1537.8837503503146},{"$f":"IF('[1]FISCAL(M)'!$L236=\"\",\"\",'[1]FISCAL(M)'!$L236)","v":-1919.7043563603147},{"$f":"IF('[1]FISCAL(M)'!$AY236=\"\",\"\",'[1]FISCAL(M)'!$AY236)","v":"n.d."},{"$f":"IF('[1]FISCAL(M)'!$BI236=\"\",\"\",'[1]FISCAL(M)'!$BI236)","v":"n.d."},{"$f":"IF('[1]FISCAL(M)'!$BS236=\"\",\"\",'[1]FISCAL(M)'!$BS236)","v":"n.d."},{"$f":"IF('[1]FISCAL(M)'!$AZ236=\"\",\"\",'[1]FISCAL(M)'!$AZ236)","v":"n.d."},{"$f":"IF('[1]FISCAL(M)'!$BJ236=\"\",\"\",'[1]FISCAL(M)'!$BJ236)","v":"n.d."},{"$f":"IF('[1]FISCAL(M)'!$BT236=\"\",\"\",'[1]FISCAL(M)'!$BT236)","v":"n.d."},{"$f":"IF('[2]MONE(M)'!$AO236=\"\",\"\",'[2]MONE(M)'!$AO236)","v":7753907.2032484924},{"$f":"IF('[3]MONE(M)'!$AO236=\"\",\"\",'[3]MONE(M)'!$AO236)","v":9249.1523016399988},{"$f":"IF('[4]MONE(M)'!$AO236=\"\",\"\",'[4]MONE(M)'!$AO236)","v":82970.320507177239},{"$f":"IF('[5]MONE(M)'!$AO236=\"\",\"\",'[5]MONE(M)'!$AO236)","v":136022.03198019176},{"$f":"IF('[6]MONE(M)'!$AO236=\"\",\"\",'[6]MONE(M)'!$AO236)","v":46966.662599271811},{"$f":"IF('[7]MONE(M)'!$AO236=\"\",\"\",'[7]MONE(M)'!$AO236)","v":335507.00125769002},{"$f":"IF('[8]MONE(M)'!$AO236=\"\",\"\",'[8]MONE(M)'!$AO236)","v":19813.889922388997},30.502748713499095,6.1315329171933719,9.8041638801219975,13.224243706789673,15.319832533958945,17.005980941688303,18.383480606932913,{"$f":"IF('[1]FISCAL(M)'!$K236=\"\",\"\",'[1]FISCAL(M)'!$K236)","v":-1537.8837503503146},{"$f":"+'[1]REAL(A)'!$AO$28","v":"n.d."},"n.d.",{"$f":"IF('[1]FISCAL(M)'!$L236=\"\",\"\",'[1]FISCAL(M)'!$L236)","v":-1919.7043563603147},{"$f":"+'[1]REAL(A)'!$AP$28","v":"n.d."},"n.d.",70054.58226825732,{"$f":"'[1]Gráfico REM'!BG230","v":11425.378458537645},{"$f":"'[1]Gráfico REM'!BH230","v":53856.753173022822},{"$f":"'[1]Gráfico REM'!BI230","v":4772.4506366968562},10.940530775842339,1.8248668517525601,13.122245853914972,10.572922741279079,104687.47028775532,{"$f":"'[1]Gráfico REM'!BK230","v":12206.054767330645},{"$f":"'[1]Gráfico REM'!BL230","v":73670.643095411826},{"$f":"'[1]Gráfico REM'!BM230","v":18810.772425012852},13.406018383421481,2.7742708612891853,14.49073770042817,16.915893144536721]
[2008,"diciembre","2008-diciembre",{"$f":"IF('[1]REAL IPC(M)'!$AL237=\"\",\"\",+'[1]REAL IPC(M)'!$AL237)","v":9.2642132763698815},{"$f":"IF('[1]REAL IPC(M)'!$BE237=\"\",\"\",+'[1]REAL IPC(M)'!$BE237)","v":7.4108271521577063},{"$f":"IF('[1]REAL IPC(M)'!$AM237=\"\",\"\",+'[1]REAL IPC(M)'!$AM237)","v":8.6112774910129595},{"$f":"IF('[1]REAL IPC(M)'!$BI237=\"\",\"\",+'[1]REAL IPC(M)'!$BI237)","v":7.0504577061485829},{"$f":"IF('[1]REAL IMAE(M)'!BJ237=\"\",\"\",'[1]REAL IMAE(M)'!BJ237)","v":-1.4162092817782135},{"$f":"IF('[1]REAL IMAE(M)'!BK237=\"\",\"\",'[1]REAL IMAE(M)'!BK237)","v":1.8225143114772857},{"$f":"IF('[1]REAL IMAE(M)'!BN237=\"\",\"\",'[1]REAL IMAE(M)'!BN237)","v":-0.60861989212306344},{"$f":"IF('[1]REAL IMAE(M)'!BO237=\"\",\"\",'[1]REAL IMAE(M)'!BO237)","v":2.2700621923723796},{"$f":"IF('[1]EXT RIN(M)'!$K237=\"\",\"\",'[1]EXT RIN(M)'!$K237)","v":16652.633494081474},16652.633494081474,{"$f":"IF('[1]EXT RIN(M)'!$L237=\"\",\"\",'[1]EXT RIN(M)'!$L237)","v":19264.209030946746},19264.209030946746,{"$f":"IF('[1]MONE(M)CARD'!EG237=\"\",\"\",'[1]MONE(M)CARD'!EG237)","v":18419.446676746582},{"$f":"IF('[1]MONE(M)CARD'!EK237=\"\",\"\",'[1]MONE(M)CARD'!EK237)","v":31994.144692668579},{"$f":"IF('[1]MONE(M)CARD'!EP237=\"\",\"\",'[1]MONE(M)CARD'!EP237)","v":17239.675454796037},{"$f":"IF('[1]MONE(M)CARD'!ES237=\"\",\"\",'[1]MONE(M)CARD'!ES237)","v":-0.63707516749073045},{"$f":"IF('[1]MONE(M)CARD'!EV237=\"\",\"\",'[1]MONE(M)CARD'!EV237)","v":1.8200160981113767},{"$f":"IF('[1]MONE(M)CARD'!EZ237=\"\",\"\",'[1]MONE(M)CARD'!EZ237)","v":4.7105632467243419},{"$f":"IF('[1]MONE(M)CAPARD'!FC237=\"\",\"\",'[1]MONE(M)CAPARD'!FC237)","v":22183.057567180982},{"$f":"IF('[1]MONE(M)CAPARD'!FG237=\"\",\"\",'[1]MONE(M)CAPARD'!FG237)","v":48010.687852368574},{"$f":"IF('[1]MONE(M)CAPARD'!FL237=\"\",\"\",'[1]MONE(M)CAPARD'!FL237)","v":17239.675454796045},{"$f":"IF('[1]MONE(M)CAPARD'!FO237=\"\",\"\",'[1]MONE(M)CAPARD'!FO237)","v":2.7398290419192728},{"$f":"IF('[1]MONE(M)CAPARD'!FR237=\"\",\"\",'[1]MONE(M)CAPARD'!FR237)","v":4.6874022421019568},{"$f":"IF('[1]MONE(M)CAPARD'!FV237=\"\",\"\",'[1]MONE(M)CAPARD'!FV237)","v":6.4338541666975502},{"$f":"IF('[1]MONE(M)CARD'!FV237=\"\",\"\",'[1]MONE(M)CARD'!FV237)","v":2337.8005698319585},{"$f":"IF('[1]MONE(M)CARD'!GD237=\"\",\"\",'[1]MONE(M)CARD'!GD237)","v":57.39653405187331},{"$f":"IF('[1]MONE(M)CARD'!GE237=\"\",\"\",'[1]MONE(M)CARD'!GE237)","v":4908.2352565723604},-2.7102915217327439,{"$f":"IF('[9]II.2.Balance OSD-Activos'!J95=\"\",\"\",'[9]II.2.Balance OSD-Activos'!J95)","v":105.69787463920646},{"$f":"IF('[9]II.2.Balance OSD-Activos'!N95=\"\",\"\",'[9]II.2.Balance OSD-Activos'!N95)","v":405.22205083633651},{"$f":"IF('[9]II.2.Balance OSD-Activos'!R95=\"\",\"\",'[9]II.2.Balance OSD-Activos'!R95)","v":24626.098583479819},{"$f":"IF('[9]II.2.Balance OSD-Activos'!S95=\"\",\"\",'[9]II.2.Balance OSD-Activos'!S95)","v":27258.032075706687},24731.796458119024,52395.050584662051,-51.964134236469505,17.297440705386723,-11.937417155686902,18.027876377056671,5.0203132817116414,10.305724622899382,-2.0488739714035198,{"$f":"IF('[1]MONE(M)CAPARD'!GS237=\"\",\"\",'[1]MONE(M)CAPARD'!GS237)","v":8479.2859043530843},{"$f":"IF('[1]MONE(M)CARD'!HA237=\"\",\"\",'[1]MONE(M)CAPARD'!HA237)","v":5393.4874074323607},{"$f":"IF('[1]MONE(M)CAPARD'!HB237=\"\",\"\",'[1]MONE(M)CAPARD'!HB237)","v":3085.7984969207237},"n.d.",{"$f":"IF('[10]II.2.Balance OSD-Activos'!J95=\"\",\"\",'[10]II.2.Balance OSD-Activos'!J95)","v":409.49795498420656},{"$f":"IF('[10]II.2.Balance OSD-Activos'!N95=\"\",\"\",'[10]II.2.Balance OSD-Activos'!N95)","v":809.12769587633636},{"$f":"IF('[10]II.2.Balance OSD-Activos'!R95=\"\",\"\",'[10]II.2.Balance OSD-Activos'!R95)","v":34672.759224889822},{"$f":"IF('[10]II.2.Balance OSD-Activos'!S95=\"\",\"\",'[10]II.2.Balance OSD-Activos'!S95)","v":35928.774483036686},35082.257179874032,71820.159358787059,-7.0980964989927902,18.633593638229339,-13.321135605970669,19.022941427199513,6.1121483514732899,11.583207820927722,-2.2313566768259676,{"$f":"IF('[1]MONE(M)CAPARD'!AS237=\"\",\"\",'[1]MONE(M)CAPARD'!AS237)","v":10},{"$f":"IF('[1]MONE(M)CAPARD'!AT237=\"\",\"\",'[1]MONE(M)CAPARD'!AT237)","v":"n.a."},{"$f":"IF('[1]MONE(M)CAPARD'!AU237=\"\",\"\",'[1]MONE(M)CAPARD'!AU237)","v":7.25},{"$f":"IF('[1]MONE(M)CAPARD'!AV237=\"\",\"\",'[1]MONE(M)CAPARD'!AV237)","v":7.75},{"$f":"IF('[1]MONE(M)CAPARD'!AW237=\"\",\"\",'[1]MONE(M)CAPARD'!AW237)","v":"n.a."},{"$f":"IF('[1]MONE(M)CAPARD'!AX237=\"\",\"\",'[1]MONE(M)CAPARD'!AX237)","v":9.5},{"$f":"IF('[1]MONE(M)CAPARD'!AY237=\"\",\"\",'[1]MONE(M)CAPARD'!AY237)","v":"n.a."},{"$f":"IF('[1]FISCAL(M)'!$K237=\"\",\"\",'[1]FISCAL(M)'!$K237)","v":-2670.6662738844707},{"$f":"IF('[1]FISCAL(M)'!$L237=\"\",\"\",'[1]FISCAL(M)'!$L237)","v":-2638.2085980444699},{"$f":"IF('[1]FISCAL(M)'!$AY237=\"\",\"\",'[1]FISCAL(M)'!$AY237)","v":52346.500261180838},{"$f":"IF('[1]FISCAL(M)'!$BI237=\"\",\"\",'[1]FISCAL(M)'!$BI237)","v":24456.907746860841},{"$f":"IF('[1]FISCAL(M)'!$BS237=\"\",\"\",'[1]FISCAL(M)'!$BS237)","v":27889.592514319997},{"$f":"IF('[1]FISCAL(M)'!$AZ237=\"\",\"\",'[1]FISCAL(M)'!$AZ237)","v":62910.614910280834},{"$f":"IF('[1]FISCAL(M)'!$BJ237=\"\",\"\",'[1]FISCAL(M)'!$BJ237)","v":26544.178442180844},{"$f":"IF('[1]FISCAL(M)'!$BT237=\"\",\"\",'[1]FISCAL(M)'!$BT237)","v":36366.436468100001},{"$f":"IF('[2]MONE(M)'!$AO237=\"\",\"\",'[2]MONE(M)'!$AO237)","v":8247192.0173865147},{"$f":"IF('[3]MONE(M)'!$AO237=\"\",\"\",'[3]MONE(M)'!$AO237)","v":9160.9753295700011},{"$f":"IF('[4]MONE(M)'!$AO237=\"\",\"\",'[4]MONE(M)'!$AO237)","v":85347.69851167321},{"$f":"IF('[5]MONE(M)'!$AO237=\"\",\"\",'[5]MONE(M)'!$AO237)","v":135414.67585590761},{"$f":"IF('[6]MONE(M)'!$AO237=\"\",\"\",'[6]MONE(M)'!$AO237)","v":46350.383238286871},{"$f":"IF('[7]MONE(M)'!$AO237=\"\",\"\",'[7]MONE(M)'!$AO237)","v":334228.4666859},{"$f":"IF('[8]MONE(M)'!$AO237=\"\",\"\",'[8]MONE(M)'!$AO237)","v":19424.842702734997},33.873684582043808,4.4147711261212752,11.221711450122829,10.406254330647702,11.58457913730382,13.614271082474684,16.017035050488349,{"$f":"IF('[1]FISCAL(M)'!$K237=\"\",\"\",'[1]FISCAL(M)'!$K237)","v":-2670.6662738844707},{"$f":"+'[1]REAL(A)'!$AO$28","v":"n.d."},"n.d.",{"$f":"IF('[1]FISCAL(M)'!$L237=\"\",\"\",'[1]FISCAL(M)'!$L237)","v":-2638.2085980444699},{"$f":"+'[1]REAL(A)'!$AP$28","v":"n.d."},"n.d.",70610.230928784687,{"$f":"'[1]Gráfico REM'!BG231","v":11812.68264747031},{"$f":"'[1]Gráfico REM'!BH231","v":54102.469506571913},{"$f":"'[1]Gráfico REM'!BI231","v":4695.0787747424674},10.313535420181008,7.5062857339014855,11.264114988998642,6.8153284287427507,104463.86247185868,{"$f":"'[1]Gráfico REM'!BK231","v":12548.66521217331},{"$f":"'[1]Gráfico REM'!BL231","v":73527.312209306911},{"$f":"'[1]Gráfico REM'!BM231","v":18387.885050378471},11.755879334258633,8.6117572578696446,12.481502031150637,11.084910033258133]
[2009,"enero","2009-enero",{"$f":"IF('[1]REAL IPC(M)'!$AL238=\"\",\"\",+'[1]REAL IPC(M)'!$AL238)","v":8.0374483833061117},{"$f":"IF('[1]REAL IPC(M)'!$BE238=\"\",\"\",+'[1]REAL IPC(M)'!$BE238)","v":7.2737587178709928},{"$f":"IF('[1]REAL IPC(M)'!$AM238=\"\",\"\",+'[1]REAL IPC(M)'!$AM238)","v":7.7384926916451269},{"$f":"IF('[1]REAL IPC(M)'!$BI238=\"\",\"\",+'[1]REAL IPC(M)'!$BI238)","v":6.9123435540943801},{"$f":"IF('[1]REAL IMAE(M)'!BJ238=\"\",\"\",'[1]REAL IMAE(M)'!BJ238)","v":-2.2732693421975148},{"$f":"IF('[1]REAL IMAE(M)'!BK238=\"\",\"\",'[1]REAL IMAE(M)'!BK238)","v":1.8339074035950809},{"$f":"IF('[1]REAL IMAE(M)'!BN238=\"\",\"\",'[1]REAL IMAE(M)'!BN238)","v":-1.3945338662798457},{"$f":"IF('[1]REAL IMAE(M)'!BO238=\"\",\"\",'[1]REAL IMAE(M)'!BO238)","v":2.2694129193309598},{"$f":"IF('[1]EXT RIN(M)'!$K238=\"\",\"\",'[1]EXT RIN(M)'!$K238)","v":16453.599035983192},"",{"$f":"IF('[1]EXT RIN(M)'!$L238=\"\",\"\",'[1]EXT RIN(M)'!$L238)","v":19022.837199739151},"",{"$f":"IF('[1]MONE(M)CARD'!EG238=\"\",\"\",'[1]MONE(M)CARD'!EG238)","v":18179.827830500901},{"$f":"IF('[1]MONE(M)CARD'!EK238=\"\",\"\",'[1]MONE(M)CARD'!EK238)","v":31991.049557162783},{"$f":"IF('[1]MONE(M)CARD'!EP238=\"\",\"\",'[1]MONE(M)CARD'!EP238)","v":17197.993792636451},{"$f":"IF('[1]MONE(M)CARD'!ES238=\"\",\"\",'[1]MONE(M)CARD'!ES238)","v":-2.2204730980385556},{"$f":"IF('[1]MONE(M)CARD'!EV238=\"\",\"\",'[1]MONE(M)CARD'!EV238)","v":0.82984965245531672},{"$f":"IF('[1]MONE(M)CARD'!EZ238=\"\",\"\",'[1]MONE(M)CARD'!EZ238)","v":3.4468543380115069},{"$f":"IF('[1]MONE(M)CAPARD'!FC238=\"\",\"\",'[1]MONE(M)CAPARD'!FC238)","v":21894.060645596306},{"$f":"IF('[1]MONE(M)CAPARD'!FG238=\"\",\"\",'[1]MONE(M)CAPARD'!FG238)","v":47918.944911982784},{"$f":"IF('[1]MONE(M)CAPARD'!FL238=\"\",\"\",'[1]MONE(M)CAPARD'!FL238)","v":17197.993792636451},{"$f":"IF('[1]MONE(M)CAPARD'!FO238=\"\",\"\",'[1]MONE(M)CAPARD'!FO238)","v":1.1123981889565204},{"$f":"IF('[1]MONE(M)CAPARD'!FR238=\"\",\"\",'[1]MONE(M)CAPARD'!FR238)","v":3.5732928673056552},{"$f":"IF('[1]MONE(M)CAPARD'!FV238=\"\",\"\",'[1]MONE(M)CAPARD'!FV238)","v":5.1230448904277859},{"$f":"IF('[1]MONE(M)CARD'!FV238=\"\",\"\",'[1]MONE(M)CARD'!FV238)","v":2234.8331530223068},{"$f":"IF('[1]MONE(M)CARD'!GD238=\"\",\"\",'[1]MONE(M)CARD'!GD238)","v":60.912345136900065},{"$f":"IF('[1]MONE(M)CARD'!GE238=\"\",\"\",'[1]MONE(M)CARD'!GE238)","v":5064.1782007798229},12.288194186369994,{"$f":"IF('[9]II.2.Balance OSD-Activos'!J96=\"\",\"\",'[9]II.2.Balance OSD-Activos'!J96)","v":116.07692902400531},{"$f":"IF('[9]II.2.Balance OSD-Activos'!N96=\"\",\"\",'[9]II.2.Balance OSD-Activos'!N96)","v":384.15171602514221},{"$f":"IF('[9]II.2.Balance OSD-Activos'!R96=\"\",\"\",'[9]II.2.Balance OSD-Activos'!R96)","v":23810.03254765151},{"$f":"IF('[9]II.2.Balance OSD-Activos'!S96=\"\",\"\",'[9]II.2.Balance OSD-Activos'!S96)","v":27173.494528896692},23926.109476675516,51483.75572159735,-9.309158182462907,5.4845615225910915,-8.9085976183527098,5.5685141480473987,11.296530110002202,8.3430185924696421,-1.9627060304297395,{"$f":"IF('[1]MONE(M)CAPARD'!GS238=\"\",\"\",'[1]MONE(M)CAPARD'!GS238)","v":8266.8213372876198},{"$f":"IF('[1]MONE(M)CARD'!HA238=\"\",\"\",'[1]MONE(M)CAPARD'!HA238)","v":5526.0384281898223},{"$f":"IF('[1]MONE(M)CAPARD'!HB238=\"\",\"\",'[1]MONE(M)CAPARD'!HB238)","v":2740.7829090977975},"n.d.",{"$f":"IF('[10]II.2.Balance OSD-Activos'!J96=\"\",\"\",'[10]II.2.Balance OSD-Activos'!J96)","v":417.36689440000526},{"$f":"IF('[10]II.2.Balance OSD-Activos'!N96=\"\",\"\",'[10]II.2.Balance OSD-Activos'!N96)","v":816.93188380514221},{"$f":"IF('[10]II.2.Balance OSD-Activos'!R96=\"\",\"\",'[10]II.2.Balance OSD-Activos'!R96)","v":34014.599792481509},{"$f":"IF('[10]II.2.Balance OSD-Activos'!S96=\"\",\"\",'[10]II.2.Balance OSD-Activos'!S96)","v":35889.389537256691},34431.966686881511,71138.288107943343,12.912326174434252,9.8175802648260646,-7.9797624359254637,9.7806602290200892,10.930019760876931,10.130158897095964,-1.4530489238317585,{"$f":"IF('[1]MONE(M)CAPARD'!AS238=\"\",\"\",'[1]MONE(M)CAPARD'!AS238)","v":10},{"$f":"IF('[1]MONE(M)CAPARD'!AT238=\"\",\"\",'[1]MONE(M)CAPARD'!AT238)","v":"n.a."},{"$f":"IF('[1]MONE(M)CAPARD'!AU238=\"\",\"\",'[1]MONE(M)CAPARD'!AU238)","v":7},{"$f":"IF('[1]MONE(M)CAPARD'!AV238=\"\",\"\",'[1]MONE(M)CAPARD'!AV238)","v":6.75},{"$f":"IF('[1]MONE(M)CAPARD'!AW238=\"\",\"\",'[1]MONE(M)CAPARD'!AW238)","v":"n.a."},{"$f":"IF('[1]MONE(M)CAPARD'!AX238=\"\",\"\",'[1]MONE(M)CAPARD'!AX238)","v":8.5},{"$f":"IF('[1]MONE(M)CAPARD'!AY238=\"\",\"\",'[1]MONE(M)CAPARD'!AY238)","v":"n.a."},{"$f":"IF('[1]FISCAL(M)'!$K238=\"\",\"\",'[1]FISCAL(M)'!$K238)","v":-397.28702564854746},{"$f":"IF('[1]FISCAL(M)'!$L238=\"\",\"\",'[1]FISCAL(M)'!$L238)","v":-830.85377032554743},{"$f":"IF('[1]FISCAL(M)'!$AY238=\"\",\"\",'[1]FISCAL(M)'!$AY238)","v":"n.d."},{"$f":"IF('[1]FISCAL(M)'!$BI238=\"\",\"\",'[1]FISCAL(M)'!$BI238)","v":"n.d."},{"$f":"IF('[1]FISCAL(M)'!$BS238=\"\",\"\",'[1]FISCAL(M)'!$BS238)","v":"n.d."},{"$f":"IF('[1]FISCAL(M)'!$AZ238=\"\",\"\",'[1]FISCAL(M)'!$AZ238)","v":"n.d."},{"$f":"IF('[1]FISCAL(M)'!$BJ238=\"\",\"\",'[1]FISCAL(M)'!$BJ238)","v":"n.d."},{"$f":"IF('[1]FISCAL(M)'!$BT238=\"\",\"\",'[1]FISCAL(M)'!$BT238)","v":"n.d."},{"$f":"IF('[2]MONE(M)'!$AO238=\"\",\"\",'[2]MONE(M)'!$AO238)","v":8308684.8381836731},{"$f":"IF('[3]MONE(M)'!$AO238=\"\",\"\",'[3]MONE(M)'!$AO238)","v":9142.5427774899981},{"$f":"IF('[4]MONE(M)'!$AO238=\"\",\"\",'[4]MONE(M)'!$AO238)","v":82857.80745027271},{"$f":"IF('[5]MONE(M)'!$AO238=\"\",\"\",'[5]MONE(M)'!$AO238)","v":136476.42332866689},{"$f":"IF('[6]MONE(M)'!$AO238=\"\",\"\",'[6]MONE(M)'!$AO238)","v":45739.778355130096},{"$f":"IF('[7]MONE(M)'!$AO238=\"\",\"\",'[7]MONE(M)'!$AO238)","v":327045.16066672001},{"$f":"IF('[8]MONE(M)'!$AO238=\"\",\"\",'[8]MONE(M)'!$AO238)","v":19622.744335395997},32.017584369039788,3.2480113609204775,7.8572985171677212,9.6690389001451891,8.6436038048413053,9.5296777957637033,15.920851067399155,{"$f":"IF('[1]FISCAL(M)'!$K238=\"\",\"\",'[1]FISCAL(M)'!$K238)","v":-397.28702564854746},{"$f":"+'[1]REAL(A)'!$AO$29","v":"n.d."},"n.d.",{"$f":"IF('[1]FISCAL(M)'!$L238=\"\",\"\",'[1]FISCAL(M)'!$L238)","v":-830.85377032554743},{"$f":"+'[1]REAL(A)'!$AP$29","v":"n.d."},"n.d.",69886.701447402942,{"$f":"'[1]Gráfico REM'!BG232","v":11781.479768269393},{"$f":"'[1]Gráfico REM'!BH232","v":53251.004467643448},{"$f":"'[1]Gráfico REM'!BI232","v":4854.2172114901077},7.5209297154306798,3.4412594916527484,8.586559328536536,6.2528957734437007,103738.51857510695,{"$f":"'[1]Gráfico REM'!BK232","v":12477.656040309394},{"$f":"'[1]Gráfico REM'!BL232","v":72873.748803039445},{"$f":"'[1]Gráfico REM'!BM232","v":18387.113731758109},9.5683704547857129,4.1655448279090068,10.46857839750821,9.8871426801082407]
[2009,"febrero","2009-febrero",{"$f":"IF('[1]REAL IPC(M)'!$AL239=\"\",\"\",+'[1]REAL IPC(M)'!$AL239)","v":7.5292709229401122},{"$f":"IF('[1]REAL IPC(M)'!$BE239=\"\",\"\",+'[1]REAL IPC(M)'!$BE239)","v":7.1356581160329835},{"$f":"IF('[1]REAL IPC(M)'!$AM239=\"\",\"\",+'[1]REAL IPC(M)'!$AM239)","v":7.2244368215359733},{"$f":"IF('[1]REAL IPC(M)'!$BI239=\"\",\"\",+'[1]REAL IPC(M)'!$BI239)","v":6.7726555789842102},{"$f":"IF('[1]REAL IMAE(M)'!BJ239=\"\",\"\",'[1]REAL IMAE(M)'!BJ239)","v":-2.8374650389903278},{"$f":"IF('[1]REAL IMAE(M)'!BK239=\"\",\"\",'[1]REAL IMAE(M)'!BK239)","v":1.8543421766316515},{"$f":"IF('[1]REAL IMAE(M)'!BN239=\"\",\"\",'[1]REAL IMAE(M)'!BN239)","v":-1.8810472073980677},{"$f":"IF('[1]REAL IMAE(M)'!BO239=\"\",\"\",'[1]REAL IMAE(M)'!BO239)","v":2.2785547306584775},{"$f":"IF('[1]EXT RIN(M)'!$K239=\"\",\"\",'[1]EXT RIN(M)'!$K239)","v":16735.210469273639},"",{"$f":"IF('[1]EXT RIN(M)'!$L239=\"\",\"\",'[1]EXT RIN(M)'!$L239)","v":19262.824464903399},"",{"$f":"IF('[1]MONE(M)CARD'!EG239=\"\",\"\",'[1]MONE(M)CARD'!EG239)","v":17534.199189637293},{"$f":"IF('[1]MONE(M)CARD'!EK239=\"\",\"\",'[1]MONE(M)CARD'!EK239)","v":32197.567883974159},{"$f":"IF('[1]MONE(M)CARD'!EP239=\"\",\"\",'[1]MONE(M)CARD'!EP239)","v":17530.134029242588},{"$f":"IF('[1]MONE(M)CARD'!ES239=\"\",\"\",'[1]MONE(M)CARD'!ES239)","v":-6.5205917698486378},{"$f":"IF('[1]MONE(M)CARD'!EV239=\"\",\"\",'[1]MONE(M)CARD'!EV239)","v":-1.9605184541533816},{"$f":"IF('[1]MONE(M)CARD'!EZ239=\"\",\"\",'[1]MONE(M)CARD'!EZ239)","v":1.636151040581435},{"$f":"IF('[1]MONE(M)CAPARD'!FC239=\"\",\"\",'[1]MONE(M)CAPARD'!FC239)","v":21228.498378080691},{"$f":"IF('[1]MONE(M)CAPARD'!FG239=\"\",\"\",'[1]MONE(M)CAPARD'!FG239)","v":48182.490173654151},{"$f":"IF('[1]MONE(M)CAPARD'!FL239=\"\",\"\",'[1]MONE(M)CAPARD'!FL239)","v":17530.134029242603},{"$f":"IF('[1]MONE(M)CAPARD'!FO239=\"\",\"\",'[1]MONE(M)CAPARD'!FO239)","v":-2.9587594626547475},{"$f":"IF('[1]MONE(M)CAPARD'!FR239=\"\",\"\",'[1]MONE(M)CAPARD'!FR239)","v":1.215807046829287},{"$f":"IF('[1]MONE(M)CAPARD'!FV239=\"\",\"\",'[1]MONE(M)CAPARD'!FV239)","v":3.4643012484287583},{"$f":"IF('[1]MONE(M)CARD'!FV239=\"\",\"\",'[1]MONE(M)CARD'!FV239)","v":2196.7151807287378},{"$f":"IF('[1]MONE(M)CARD'!GD239=\"\",\"\",'[1]MONE(M)CARD'!GD239)","v":58.505219214266404},{"$f":"IF('[1]MONE(M)CARD'!GE239=\"\",\"\",'[1]MONE(M)CARD'!GE239)","v":4946.3594765217867},-1.8350015290159338,{"$f":"IF('[9]II.2.Balance OSD-Activos'!J97=\"\",\"\",'[9]II.2.Balance OSD-Activos'!J97)","v":137.72287770801961},{"$f":"IF('[9]II.2.Balance OSD-Activos'!N97=\"\",\"\",'[9]II.2.Balance OSD-Activos'!N97)","v":375.68193961140059},{"$f":"IF('[9]II.2.Balance OSD-Activos'!R97=\"\",\"\",'[9]II.2.Balance OSD-Activos'!R97)","v":23967.771470320575},{"$f":"IF('[9]II.2.Balance OSD-Activos'!S97=\"\",\"\",'[9]II.2.Balance OSD-Activos'!S97)","v":26723.310923532314},24105.494348028595,51204.487211172309,30.857359834432607,4.607186619845538,-11.38469069854855,4.4867458128412308,7.3271055434268151,5.8672142203161748,-2.4758043721534673,{"$f":"IF('[1]MONE(M)CAPARD'!GS239=\"\",\"\",'[1]MONE(M)CAPARD'!GS239)","v":8421.1238854825242},{"$f":"IF('[1]MONE(M)CARD'!HA239=\"\",\"\",'[1]MONE(M)CAPARD'!HA239)","v":5387.5192061317866},{"$f":"IF('[1]MONE(M)CAPARD'!HB239=\"\",\"\",'[1]MONE(M)CAPARD'!HB239)","v":3033.6046793507376},"n.d.",{"$f":"IF('[10]II.2.Balance OSD-Activos'!J97=\"\",\"\",'[10]II.2.Balance OSD-Activos'!J97)","v":431.0923124680196},{"$f":"IF('[10]II.2.Balance OSD-Activos'!N97=\"\",\"\",'[10]II.2.Balance OSD-Activos'!N97)","v":818.77465056140068},{"$f":"IF('[10]II.2.Balance OSD-Activos'!R97=\"\",\"\",'[10]II.2.Balance OSD-Activos'!R97)","v":34193.495446130568},{"$f":"IF('[10]II.2.Balance OSD-Activos'!S97=\"\",\"\",'[10]II.2.Balance OSD-Activos'!S97)","v":35480.850919422315},34624.587758598587,70924.213328582293,15.041018299253285,8.8630785035672677,-3.3458420854129423,8.7894231348975893,7.7843999708145484,8.1638266120875649,-1.9663322850083986,{"$f":"IF('[1]MONE(M)CAPARD'!AS239=\"\",\"\",'[1]MONE(M)CAPARD'!AS239)","v":10},{"$f":"IF('[1]MONE(M)CAPARD'!AT239=\"\",\"\",'[1]MONE(M)CAPARD'!AT239)","v":"n.a."},{"$f":"IF('[1]MONE(M)CAPARD'!AU239=\"\",\"\",'[1]MONE(M)CAPARD'!AU239)","v":6.5},{"$f":"IF('[1]MONE(M)CAPARD'!AV239=\"\",\"\",'[1]MONE(M)CAPARD'!AV239)","v":6.75},{"$f":"IF('[1]MONE(M)CAPARD'!AW239=\"\",\"\",'[1]MONE(M)CAPARD'!AW239)","v":"n.a."},{"$f":"IF('[1]MONE(M)CAPARD'!AX239=\"\",\"\",'[1]MONE(M)CAPARD'!AX239)","v":6},{"$f":"IF('[1]MONE(M)CAPARD'!AY239=\"\",\"\",'[1]MONE(M)CAPARD'!AY239)","v":"n.a."},{"$f":"IF('[1]FISCAL(M)'!$K239=\"\",\"\",'[1]FISCAL(M)'!$K239)","v":-440.68403289718617},{"$f":"IF('[1]FISCAL(M)'!$L239=\"\",\"\",'[1]FISCAL(M)'!$L239)","v":-1058.2894691641859},{"$f":"IF('[1]FISCAL(M)'!$AY239=\"\",\"\",'[1]FISCAL(M)'!$AY239)","v":"n.d."},{"$f":"IF('[1]FISCAL(M)'!$BI239=\"\",\"\",'[1]FISCAL(M)'!$BI239)","v":"n.d."},{"$f":"IF('[1]FISCAL(M)'!$BS239=\"\",\"\",'[1]FISCAL(M)'!$BS239)","v":"n.d."},{"$f":"IF('[1]FISCAL(M)'!$AZ239=\"\",\"\",'[1]FISCAL(M)'!$AZ239)","v":"n.d."},{"$f":"IF('[1]FISCAL(M)'!$BJ239=\"\",\"\",'[1]FISCAL(M)'!$BJ239)","v":"n.d."},{"$f":"IF('[1]FISCAL(M)'!$BT239=\"\",\"\",'[1]FISCAL(M)'!$BT239)","v":"n.d."},{"$f":"IF('[2]MONE(M)'!$AO239=\"\",\"\",'[2]MONE(M)'!$AO239)","v":8411247.1449179128},{"$f":"IF('[3]MONE(M)'!$AO239=\"\",\"\",'[3]MONE(M)'!$AO239)","v":9121.4497280399992},{"$f":"IF('[4]MONE(M)'!$AO239=\"\",\"\",'[4]MONE(M)'!$AO239)","v":82812.502123022598},{"$f":"IF('[5]MONE(M)'!$AO239=\"\",\"\",'[5]MONE(M)'!$AO239)","v":136662.73180532921},{"$f":"IF('[6]MONE(M)'!$AO239=\"\",\"\",'[6]MONE(M)'!$AO239)","v":45607.668406559998},{"$f":"IF('[7]MONE(M)'!$AO239=\"\",\"\",'[7]MONE(M)'!$AO239)","v":325660.43809970003},{"$f":"IF('[8]MONE(M)'!$AO239=\"\",\"\",'[8]MONE(M)'!$AO239)","v":19671.569360759997},30.114857246898019,2.0790668190203254,7.2574770262722632,7.5942103229184488,5.7227148663661298,8.1191016349958733,14.695887194110057,{"$f":"IF('[1]FISCAL(M)'!$K239=\"\",\"\",'[1]FISCAL(M)'!$K239)","v":-440.68403289718617},{"$f":"+'[1]REAL(A)'!$AO$29","v":"n.d."},"n.d.",{"$f":"IF('[1]FISCAL(M)'!$L239=\"\",\"\",'[1]FISCAL(M)'!$L239)","v":-1058.2894691641859},{"$f":"+'[1]REAL(A)'!$AP$29","v":"n.d."},"n.d.",69759.026976546753,{"$f":"'[1]Gráfico REM'!BG233","v":11967.342891677255},{"$f":"'[1]Gráfico REM'!BH233","v":53082.526359327981},{"$f":"'[1]Gráfico REM'!BI233","v":4709.1577255415177},5.6773910985241427,3.6324814656214954,6.2842693953688133,4.1959223334351536,104737.97973575676,{"$f":"'[1]Gráfico REM'!BK233","v":12686.767874207255},{"$f":"'[1]Gráfico REM'!BL233","v":72754.095720087978},{"$f":"'[1]Gráfico REM'!BM233","v":19297.11614146152},8.7524563835544189,3.7277067804568409,8.4344782284545552,13.627488395254716]
[2009,"marzo","2009-marzo",{"$f":"IF('[1]REAL IPC(M)'!$AL240=\"\",\"\",+'[1]REAL IPC(M)'!$AL240)","v":6.3022482939464552},{"$f":"IF('[1]REAL IPC(M)'!$BE240=\"\",\"\",+'[1]REAL IPC(M)'!$BE240)","v":6.9983516066533191},{"$f":"IF('[1]REAL IPC(M)'!$AM240=\"\",\"\",+'[1]REAL IPC(M)'!$AM240)","v":6.0301107701549617},{"$f":"IF('[1]REAL IPC(M)'!$BI240=\"\",\"\",+'[1]REAL IPC(M)'!$BI240)","v":6.6332954249655796},{"$f":"IF('[1]REAL IMAE(M)'!BJ240=\"\",\"\",'[1]REAL IMAE(M)'!BJ240)","v":-2.8579067059372298},{"$f":"IF('[1]REAL IMAE(M)'!BK240=\"\",\"\",'[1]REAL IMAE(M)'!BK240)","v":1.8842997758426128},{"$f":"IF('[1]REAL IMAE(M)'!BN240=\"\",\"\",'[1]REAL IMAE(M)'!BN240)","v":-2.0225183849230444},{"$f":"IF('[1]REAL IMAE(M)'!BO240=\"\",\"\",'[1]REAL IMAE(M)'!BO240)","v":2.2982336898060396},{"$f":"IF('[1]EXT RIN(M)'!$K240=\"\",\"\",'[1]EXT RIN(M)'!$K240)","v":17340.176260494063},"",{"$f":"IF('[1]EXT RIN(M)'!$L240=\"\",\"\",'[1]EXT RIN(M)'!$L240)","v":20195.845471269182},"",{"$f":"IF('[1]MONE(M)CARD'!EG240=\"\",\"\",'[1]MONE(M)CARD'!EG240)","v":17531.779037592853},{"$f":"IF('[1]MONE(M)CARD'!EK240=\"\",\"\",'[1]MONE(M)CARD'!EK240)","v":32567.50233872731},{"$f":"IF('[1]MONE(M)CARD'!EP240=\"\",\"\",'[1]MONE(M)CARD'!EP240)","v":17713.557776414564},{"$f":"IF('[1]MONE(M)CARD'!ES240=\"\",\"\",'[1]MONE(M)CARD'!ES240)","v":-8.9926418551196434},{"$f":"IF('[1]MONE(M)CARD'!EV240=\"\",\"\",'[1]MONE(M)CARD'!EV240)","v":-2.6454095680282896},{"$f":"IF('[1]MONE(M)CARD'!EZ240=\"\",\"\",'[1]MONE(M)CARD'!EZ240)","v":0.79740271790524897},{"$f":"IF('[1]MONE(M)CAPARD'!FC240=\"\",\"\",'[1]MONE(M)CAPARD'!FC240)","v":21142.345555797248},{"$f":"IF('[1]MONE(M)CAPARD'!FG240=\"\",\"\",'[1]MONE(M)CAPARD'!FG240)","v":48677.306530027316},{"$f":"IF('[1]MONE(M)CAPARD'!FL240=\"\",\"\",'[1]MONE(M)CAPARD'!FL240)","v":17713.557776414571},{"$f":"IF('[1]MONE(M)CAPARD'!FO240=\"\",\"\",'[1]MONE(M)CAPARD'!FO240)","v":-5.615066207600405},{"$f":"IF('[1]MONE(M)CAPARD'!FR240=\"\",\"\",'[1]MONE(M)CAPARD'!FR240)","v":0.20054826558997263},{"$f":"IF('[1]MONE(M)CAPARD'!FV240=\"\",\"\",'[1]MONE(M)CAPARD'!FV240)","v":2.3832201692007837},{"$f":"IF('[1]MONE(M)CARD'!FV240=\"\",\"\",'[1]MONE(M)CARD'!FV240)","v":2173.9019894289986},{"$f":"IF('[1]MONE(M)CARD'!GD240=\"\",\"\",'[1]MONE(M)CARD'!GD240)","v":54.218438729292977},{"$f":"IF('[1]MONE(M)CARD'!GE240=\"\",\"\",'[1]MONE(M)CARD'!GE240)","v":5265.4456053760605},11.521460283619312,{"$f":"IF('[9]II.2.Balance OSD-Activos'!J98=\"\",\"\",'[9]II.2.Balance OSD-Activos'!J98)","v":122.16987119783749},{"$f":"IF('[9]II.2.Balance OSD-Activos'!N98=\"\",\"\",'[9]II.2.Balance OSD-Activos'!N98)","v":370.48774238684263},{"$f":"IF('[9]II.2.Balance OSD-Activos'!R98=\"\",\"\",'[9]II.2.Balance OSD-Activos'!R98)","v":23747.150422918508},{"$f":"IF('[9]II.2.Balance OSD-Activos'!S98=\"\",\"\",'[9]II.2.Balance OSD-Activos'!S98)","v":26795.934244389136},23869.320294116347,51035.742280892329,1.6930457984617009,2.0322678064002897,-15.630348182750742,2.0340188234338585,5.904463101316737,3.8683956392494556,-1.9988185810667192,{"$f":"IF('[1]MONE(M)CAPARD'!GS240=\"\",\"\",'[1]MONE(M)CAPARD'!GS240)","v":8624.2399144949686},{"$f":"IF('[1]MONE(M)CARD'!HA240=\"\",\"\",'[1]MONE(M)CAPARD'!HA240)","v":5725.125949276061},{"$f":"IF('[1]MONE(M)CAPARD'!HB240=\"\",\"\",'[1]MONE(M)CAPARD'!HB240)","v":2899.1139652189077},"n.d.",{"$f":"IF('[10]II.2.Balance OSD-Activos'!J98=\"\",\"\",'[10]II.2.Balance OSD-Activos'!J98)","v":425.88811915783748},{"$f":"IF('[10]II.2.Balance OSD-Activos'!N98=\"\",\"\",'[10]II.2.Balance OSD-Activos'!N98)","v":764.7070436168425},{"$f":"IF('[10]II.2.Balance OSD-Activos'!R98=\"\",\"\",'[10]II.2.Balance OSD-Activos'!R98)","v":33941.800514828508},{"$f":"IF('[10]II.2.Balance OSD-Activos'!S98=\"\",\"\",'[10]II.2.Balance OSD-Activos'!S98)","v":35609.810057719136},34367.688633986349,70742.205735322321,14.355484770319515,6.5586096021744034,-11.801696402002992,6.4675257496683125,6.7510908933375191,6.4157303818117573,-1.7480962302758076,{"$f":"IF('[1]MONE(M)CAPARD'!AS240=\"\",\"\",'[1]MONE(M)CAPARD'!AS240)","v":10},{"$f":"IF('[1]MONE(M)CAPARD'!AT240=\"\",\"\",'[1]MONE(M)CAPARD'!AT240)","v":"n.a."},{"$f":"IF('[1]MONE(M)CAPARD'!AU240=\"\",\"\",'[1]MONE(M)CAPARD'!AU240)","v":6.25},{"$f":"IF('[1]MONE(M)CAPARD'!AV240=\"\",\"\",'[1]MONE(M)CAPARD'!AV240)","v":5.75},{"$f":"IF('[1]MONE(M)CAPARD'!AW240=\"\",\"\",'[1]MONE(M)CAPARD'!AW240)","v":"n.a."},{"$f":"IF('[1]MONE(M)CAPARD'!AX240=\"\",\"\",'[1]MONE(M)CAPARD'!AX240)","v":6},{"$f":"IF('[1]MONE(M)CAPARD'!AY240=\"\",\"\",'[1]MONE(M)CAPARD'!AY240)","v":"n.a."},{"$f":"IF('[1]FISCAL(M)'!$K240=\"\",\"\",'[1]FISCAL(M)'!$K240)","v":-781.9009265544114},{"$f":"IF('[1]FISCAL(M)'!$L240=\"\",\"\",'[1]FISCAL(M)'!$L240)","v":-1126.2661004184115},{"$f":"IF('[1]FISCAL(M)'!$AY240=\"\",\"\",'[1]FISCAL(M)'!$AY240)","v":53211.917001686081},{"$f":"IF('[1]FISCAL(M)'!$BI240=\"\",\"\",'[1]FISCAL(M)'!$BI240)","v":24972.301782076087},{"$f":"IF('[1]FISCAL(M)'!$BS240=\"\",\"\",'[1]FISCAL(M)'!$BS240)","v":28239.615219610001},{"$f":"IF('[1]FISCAL(M)'!$AZ240=\"\",\"\",'[1]FISCAL(M)'!$AZ240)","v":63907.009374626083},{"$f":"IF('[1]FISCAL(M)'!$BJ240=\"\",\"\",'[1]FISCAL(M)'!$BJ240)","v":26888.742026396085},{"$f":"IF('[1]FISCAL(M)'!$BT240=\"\",\"\",'[1]FISCAL(M)'!$BT240)","v":37008.537257579999},{"$f":"IF('[2]MONE(M)'!$AO240=\"\",\"\",'[2]MONE(M)'!$AO240)","v":8445007.9262335859},{"$f":"IF('[3]MONE(M)'!$AO240=\"\",\"\",'[3]MONE(M)'!$AO240)","v":9085.1722397599988},{"$f":"IF('[4]MONE(M)'!$AO240=\"\",\"\",'[4]MONE(M)'!$AO240)","v":83286.580308746255},{"$f":"IF('[5]MONE(M)'!$AO240=\"\",\"\",'[5]MONE(M)'!$AO240)","v":136653.40828933526},{"$f":"IF('[6]MONE(M)'!$AO240=\"\",\"\",'[6]MONE(M)'!$AO240)","v":45427.109112531027},{"$f":"IF('[7]MONE(M)'!$AO240=\"\",\"\",'[7]MONE(M)'!$AO240)","v":323276.96297784004},{"$f":"IF('[8]MONE(M)'!$AO240=\"\",\"\",'[8]MONE(M)'!$AO240)","v":19698.843702170001},27.25950451576702,0.74743671383639132,7.5502774910768844,6.3568584289452001,4.3063380781609206,5.6221184625666165,13.850052149296799,{"$f":"IF('[1]FISCAL(M)'!$K240=\"\",\"\",'[1]FISCAL(M)'!$K240)","v":-781.9009265544114},{"$f":"+'[1]REAL(A)'!$AO$29","v":"n.d."},"n.d.",{"$f":"IF('[1]FISCAL(M)'!$L240=\"\",\"\",'[1]FISCAL(M)'!$L240)","v":-1126.2661004184115},{"$f":"+'[1]REAL(A)'!$AP$29","v":"n.d."},"n.d.",69976.624392556274,{"$f":"'[1]Gráfico REM'!BG234","v":12299.3956619813},{"$f":"'[1]Gráfico REM'!BH234","v":53007.166446939067},{"$f":"'[1]Gráfico REM'!BI234","v":4670.0622836359116},4.3891685497529753,5.809822305526513,4.3790349516643623,0.93136564979601211,105125.98571840627,{"$f":"'[1]Gráfico REM'!BK234","v":12980.172678181299},{"$f":"'[1]Gráfico REM'!BL234","v":72706.010149109061},{"$f":"'[1]Gráfico REM'!BM234","v":19439.802891115913},7.6002689246129629,5.1742562933451586,6.7858772354711494,12.543754232224579]
[2009,"abril","2009-abril",{"$f":"IF('[1]REAL IPC(M)'!$AL241=\"\",\"\",+'[1]REAL IPC(M)'!$AL241)","v":5.0711358821786234},{"$f":"IF('[1]REAL IPC(M)'!$BE241=\"\",\"\",+'[1]REAL IPC(M)'!$BE241)","v":6.8636309186197009},{"$f":"IF('[1]REAL IPC(M)'!$AM241=\"\",\"\",+'[1]REAL IPC(M)'!$AM241)","v":4.857001686310003},{"$f":"IF('[1]REAL IPC(M)'!$BI241=\"\",\"\",+'[1]REAL IPC(M)'!$BI241)","v":6.4961394978835019},{"$f":"IF('[1]REAL IMAE(M)'!BJ241=\"\",\"\",'[1]REAL IMAE(M)'!BJ241)","v":-2.5716929066214034},{"$f":"IF('[1]REAL IMAE(M)'!BK241=\"\",\"\",'[1]REAL IMAE(M)'!BK241)","v":1.9239691530190228},{"$f":"IF('[1]REAL IMAE(M)'!BN241=\"\",\"\",'[1]REAL IMAE(M)'!BN241)","v":-1.9518757580056501},{"$f":"IF('[1]REAL IMAE(M)'!BO241=\"\",\"\",'[1]REAL IMAE(M)'!BO241)","v":2.3288974771768833},{"$f":"IF('[1]EXT RIN(M)'!$K241=\"\",\"\",'[1]EXT RIN(M)'!$K241)","v":17586.253981363716},"",{"$f":"IF('[1]EXT RIN(M)'!$L241=\"\",\"\",'[1]EXT RIN(M)'!$L241)","v":20429.986758571216},"",{"$f":"IF('[1]MONE(M)CARD'!EG241=\"\",\"\",'[1]MONE(M)CARD'!EG241)","v":17173.715140341912},{"$f":"IF('[1]MONE(M)CARD'!EK241=\"\",\"\",'[1]MONE(M)CARD'!EK241)","v":32511.466574468519},{"$f":"IF('[1]MONE(M)CARD'!EP241=\"\",\"\",'[1]MONE(M)CARD'!EP241)","v":17973.081715195338},{"$f":"IF('[1]MONE(M)CARD'!ES241=\"\",\"\",'[1]MONE(M)CARD'!ES241)","v":-9.9159582138474427},{"$f":"IF('[1]MONE(M)CARD'!EV241=\"\",\"\",'[1]MONE(M)CARD'!EV241)","v":-3.3152305556830242},{"$f":"IF('[1]MONE(M)CARD'!EZ241=\"\",\"\",'[1]MONE(M)CARD'!EZ241)","v":0.13024315323499902},{"$f":"IF('[1]MONE(M)CAPARD'!FC241=\"\",\"\",'[1]MONE(M)CAPARD'!FC241)","v":20805.625658065313},{"$f":"IF('[1]MONE(M)CAPARD'!FG241=\"\",\"\",'[1]MONE(M)CAPARD'!FG241)","v":48782.71752364852},{"$f":"IF('[1]MONE(M)CAPARD'!FL241=\"\",\"\",'[1]MONE(M)CAPARD'!FL241)","v":17973.081715195323},{"$f":"IF('[1]MONE(M)CAPARD'!FO241=\"\",\"\",'[1]MONE(M)CAPARD'!FO241)","v":-6.4750283876099051},{"$f":"IF('[1]MONE(M)CAPARD'!FR241=\"\",\"\",'[1]MONE(M)CAPARD'!FR241)","v":-0.26997791342842081},{"$f":"IF('[1]MONE(M)CAPARD'!FV241=\"\",\"\",'[1]MONE(M)CAPARD'!FV241)","v":1.8651897032392784},{"$f":"IF('[1]MONE(M)CARD'!FV241=\"\",\"\",'[1]MONE(M)CARD'!FV241)","v":2070.2381033275965},{"$f":"IF('[1]MONE(M)CARD'!GD241=\"\",\"\",'[1]MONE(M)CARD'!GD241)","v":194.96044366264204},{"$f":"IF('[1]MONE(M)CARD'!GE241=\"\",\"\",'[1]MONE(M)CARD'!GE241)","v":5539.2023239474593},6.1845473525024897,{"$f":"IF('[9]II.2.Balance OSD-Activos'!J99=\"\",\"\",'[9]II.2.Balance OSD-Activos'!J99)","v":114.31017499735128},{"$f":"IF('[9]II.2.Balance OSD-Activos'!N99=\"\",\"\",'[9]II.2.Balance OSD-Activos'!N99)","v":360.61687725982267},{"$f":"IF('[9]II.2.Balance OSD-Activos'!R99=\"\",\"\",'[9]II.2.Balance OSD-Activos'!R99)","v":23554.894994065129},{"$f":"IF('[9]II.2.Balance OSD-Activos'!S99=\"\",\"\",'[9]II.2.Balance OSD-Activos'!S99)","v":26739.253710217752},23669.205169062479,50769.075756540056,23.641063314690602,-1.2243348524754172E-2,-16.822844156697382,-0.10498539242518312,3.7102393824154589,1.7654717900765782,-2.1029238491728774,{"$f":"IF('[1]MONE(M)CAPARD'!GS241=\"\",\"\",'[1]MONE(M)CAPARD'!GS241)","v":8818.7779799699074},{"$f":"IF('[1]MONE(M)CARD'!HA241=\"\",\"\",'[1]MONE(M)CAPARD'!HA241)","v":5997.67082481746},{"$f":"IF('[1]MONE(M)CAPARD'!HB241=\"\",\"\",'[1]MONE(M)CAPARD'!HB241)","v":2821.1071551524474},"n.d.",{"$f":"IF('[10]II.2.Balance OSD-Activos'!J99=\"\",\"\",'[10]II.2.Balance OSD-Activos'!J99)","v":414.58178434935127},{"$f":"IF('[10]II.2.Balance OSD-Activos'!N99=\"\",\"\",'[10]II.2.Balance OSD-Activos'!N99)","v":774.43855761982263},{"$f":"IF('[10]II.2.Balance OSD-Activos'!R99=\"\",\"\",'[10]II.2.Balance OSD-Activos'!R99)","v":33735.228050555132},{"$f":"IF('[10]II.2.Balance OSD-Activos'!S99=\"\",\"\",'[10]II.2.Balance OSD-Activos'!S99)","v":35590.670616977754},34149.809834904481,70514.91900950206,20.807288127935173,4.6253571384311298,-14.511907742965679,4.453413381397775,4.9146462079692865,4.5138576678009246,-1.9018727140108327,{"$f":"IF('[1]MONE(M)CAPARD'!AS241=\"\",\"\",'[1]MONE(M)CAPARD'!AS241)","v":10},{"$f":"IF('[1]MONE(M)CAPARD'!AT241=\"\",\"\",'[1]MONE(M)CAPARD'!AT241)","v":"n.a."},{"$f":"IF('[1]MONE(M)CAPARD'!AU241=\"\",\"\",'[1]MONE(M)CAPARD'!AU241)","v":5.75},{"$f":"IF('[1]MONE(M)CAPARD'!AV241=\"\",\"\",'[1]MONE(M)CAPARD'!AV241)","v":4.5},{"$f":"IF('[1]MONE(M)CAPARD'!AW241=\"\",\"\",'[1]MONE(M)CAPARD'!AW241)","v":"n.a."},{"$f":"IF('[1]MONE(M)CAPARD'!AX241=\"\",\"\",'[1]MONE(M)CAPARD'!AX241)","v":5},{"$f":"IF('[1]MONE(M)CAPARD'!AY241=\"\",\"\",'[1]MONE(M)CAPARD'!AY241)","v":"n.a."},{"$f":"IF('[1]FISCAL(M)'!$K241=\"\",\"\",'[1]FISCAL(M)'!$K241)","v":-670.59104576626351},{"$f":"IF('[1]FISCAL(M)'!$L241=\"\",\"\",'[1]FISCAL(M)'!$L241)","v":-1030.4403015272637},{"$f":"IF('[1]FISCAL(M)'!$AY241=\"\",\"\",'[1]FISCAL(M)'!$AY241)","v":"n.d."},{"$f":"IF('[1]FISCAL(M)'!$BI241=\"\",\"\",'[1]FISCAL(M)'!$BI241)","v":"n.d."},{"$f":"IF('[1]FISCAL(M)'!$BS241=\"\",\"\",'[1]FISCAL(M)'!$BS241)","v":"n.d."},{"$f":"IF('[1]FISCAL(M)'!$AZ241=\"\",\"\",'[1]FISCAL(M)'!$AZ241)","v":"n.d."},{"$f":"IF('[1]FISCAL(M)'!$BJ241=\"\",\"\",'[1]FISCAL(M)'!$BJ241)","v":"n.d."},{"$f":"IF('[1]FISCAL(M)'!$BT241=\"\",\"\",'[1]FISCAL(M)'!$BT241)","v":"n.d."},{"$f":"IF('[2]MONE(M)'!$AO241=\"\",\"\",'[2]MONE(M)'!$AO241)","v":8565013.4202512465},{"$f":"IF('[3]MONE(M)'!$AO241=\"\",\"\",'[3]MONE(M)'!$AO241)","v":9019.2485439299999},{"$f":"IF('[4]MONE(M)'!$AO241=\"\",\"\",'[4]MONE(M)'!$AO241)","v":82764.904261340824},{"$f":"IF('[5]MONE(M)'!$AO241=\"\",\"\",'[5]MONE(M)'!$AO241)","v":136348.87209543635},{"$f":"IF('[6]MONE(M)'!$AO241=\"\",\"\",'[6]MONE(M)'!$AO241)","v":44454.289407475713},{"$f":"IF('[7]MONE(M)'!$AO241=\"\",\"\",'[7]MONE(M)'!$AO241)","v":324705.74239627999},{"$f":"IF('[8]MONE(M)'!$AO241=\"\",\"\",'[8]MONE(M)'!$AO241)","v":19724.875813922001},26.034349863958163,-0.52989003840799853,7.2769292530270757,4.9064276594758205,1.2811321421830835,4.0878600728111669,12.753610935807981,{"$f":"IF('[1]FISCAL(M)'!$K241=\"\",\"\",'[1]FISCAL(M)'!$K241)","v":-670.59104576626351},{"$f":"+'[1]REAL(A)'!$AO$29","v":"n.d."},"n.d.",{"$f":"IF('[1]FISCAL(M)'!$L241=\"\",\"\",'[1]FISCAL(M)'!$L241)","v":-1030.4403015272637},{"$f":"+'[1]REAL(A)'!$AP$29","v":"n.d."},"n.d.",69902.621008163915,{"$f":"'[1]Gráfico REM'!BG235","v":12541.987037250423},{"$f":"'[1]Gráfico REM'!BH235","v":52762.569841963021},{"$f":"'[1]Gráfico REM'!BI235","v":4598.0641289504665},2.9095939066136944,6.6293674044985984,2.4586562289712122,-1.4890835919427303,105062.51044095893,{"$f":"'[1]Gráfico REM'!BK235","v":13275.968819240423},{"$f":"'[1]Gráfico REM'!BL235","v":72487.445655885022},{"$f":"'[1]Gráfico REM'!BM235","v":19299.095965833469},5.6939042099184434,6.310730080969984,5.0691377967723827,7.6688513903165667]
[2009,"mayo ","2009-mayo ",{"$f":"IF('[1]REAL IPC(M)'!$AL242=\"\",\"\",+'[1]REAL IPC(M)'!$AL242)","v":3.7917938054153222},{"$f":"IF('[1]REAL IPC(M)'!$BE242=\"\",\"\",+'[1]REAL IPC(M)'!$BE242)","v":6.7332006725647764},{"$f":"IF('[1]REAL IPC(M)'!$AM242=\"\",\"\",+'[1]REAL IPC(M)'!$AM242)","v":3.5828955273011331},{"$f":"IF('[1]REAL IPC(M)'!$BI242=\"\",\"\",+'[1]REAL IPC(M)'!$BI242)","v":6.3629749633711041},{"$f":"IF('[1]REAL IMAE(M)'!BJ242=\"\",\"\",'[1]REAL IMAE(M)'!BJ242)","v":-2.2074927528523358},{"$f":"IF('[1]REAL IMAE(M)'!BK242=\"\",\"\",'[1]REAL IMAE(M)'!BK242)","v":1.9732457040903872},{"$f":"IF('[1]REAL IMAE(M)'!BN242=\"\",\"\",'[1]REAL IMAE(M)'!BN242)","v":-1.6840920741939658},{"$f":"IF('[1]REAL IMAE(M)'!BO242=\"\",\"\",'[1]REAL IMAE(M)'!BO242)","v":2.3706863361881769},{"$f":"IF('[1]EXT RIN(M)'!$K242=\"\",\"\",'[1]EXT RIN(M)'!$K242)","v":17464.557393108022},"",{"$f":"IF('[1]EXT RIN(M)'!$L242=\"\",\"\",'[1]EXT RIN(M)'!$L242)","v":20215.518321091073},"",{"$f":"IF('[1]MONE(M)CARD'!EG242=\"\",\"\",'[1]MONE(M)CARD'!EG242)","v":17293.191847379232},{"$f":"IF('[1]MONE(M)CARD'!EK242=\"\",\"\",'[1]MONE(M)CARD'!EK242)","v":32686.921880053611},{"$f":"IF('[1]MONE(M)CARD'!EP242=\"\",\"\",'[1]MONE(M)CARD'!EP242)","v":18387.572642984429},{"$f":"IF('[1]MONE(M)CARD'!ES242=\"\",\"\",'[1]MONE(M)CARD'!ES242)","v":-7.0848700796367847},{"$f":"IF('[1]MONE(M)CARD'!EV242=\"\",\"\",'[1]MONE(M)CARD'!EV242)","v":-1.7557301224704003},{"$f":"IF('[1]MONE(M)CARD'!EZ242=\"\",\"\",'[1]MONE(M)CARD'!EZ242)","v":1.2445249519986046},{"$f":"IF('[1]MONE(M)CAPARD'!FC242=\"\",\"\",'[1]MONE(M)CAPARD'!FC242)","v":21119.562298267629},{"$f":"IF('[1]MONE(M)CAPARD'!FG242=\"\",\"\",'[1]MONE(M)CAPARD'!FG242)","v":49090.6019171636},{"$f":"IF('[1]MONE(M)CAPARD'!FL242=\"\",\"\",'[1]MONE(M)CAPARD'!FL242)","v":18387.572642984436},{"$f":"IF('[1]MONE(M)CAPARD'!FO242=\"\",\"\",'[1]MONE(M)CAPARD'!FO242)","v":-3.2053650885080831},{"$f":"IF('[1]MONE(M)CAPARD'!FR242=\"\",\"\",'[1]MONE(M)CAPARD'!FR242)","v":0.77325943575474732},{"$f":"IF('[1]MONE(M)CAPARD'!FV242=\"\",\"\",'[1]MONE(M)CAPARD'!FV242)","v":2.6322876160211894},{"$f":"IF('[1]MONE(M)CARD'!FV242=\"\",\"\",'[1]MONE(M)CARD'!FV242)","v":2099.4019442455224},{"$f":"IF('[1]MONE(M)CARD'!GD242=\"\",\"\",'[1]MONE(M)CARD'!GD242)","v":46.343809704808606},{"$f":"IF('[1]MONE(M)CARD'!GE242=\"\",\"\",'[1]MONE(M)CARD'!GE242)","v":5274.7715909473645},-4.1402653993425131,{"$f":"IF('[9]II.2.Balance OSD-Activos'!J100=\"\",\"\",'[9]II.2.Balance OSD-Activos'!J100)","v":118.78371987255153},{"$f":"IF('[9]II.2.Balance OSD-Activos'!N100=\"\",\"\",'[9]II.2.Balance OSD-Activos'!N100)","v":357.75285229958121},{"$f":"IF('[9]II.2.Balance OSD-Activos'!R100=\"\",\"\",'[9]II.2.Balance OSD-Activos'!R100)","v":23474.831887075467},{"$f":"IF('[9]II.2.Balance OSD-Activos'!S100=\"\",\"\",'[9]II.2.Balance OSD-Activos'!S100)","v":26657.83539151118},23593.615606948017,50609.203850758779,6.7086090240648932,-1.0105382043574584,-17.423720357668071,-1.0467586943317952,2.7404407927667851,0.78605453961557714,-0.97941725046100103,{"$f":"IF('[1]MONE(M)CAPARD'!GS242=\"\",\"\",'[1]MONE(M)CAPARD'!GS242)","v":9146.0330732415896},{"$f":"IF('[1]MONE(M)CARD'!HA242=\"\",\"\",'[1]MONE(M)CAPARD'!HA242)","v":5693.4035861773646},{"$f":"IF('[1]MONE(M)CAPARD'!HB242=\"\",\"\",'[1]MONE(M)CAPARD'!HB242)","v":3452.629487064225},"n.d.",{"$f":"IF('[10]II.2.Balance OSD-Activos'!J100=\"\",\"\",'[10]II.2.Balance OSD-Activos'!J100)","v":435.02105184755158},{"$f":"IF('[10]II.2.Balance OSD-Activos'!N100=\"\",\"\",'[10]II.2.Balance OSD-Activos'!N100)","v":793.84324654958129},{"$f":"IF('[10]II.2.Balance OSD-Activos'!R100=\"\",\"\",'[10]II.2.Balance OSD-Activos'!R100)","v":33644.651233485463},{"$f":"IF('[10]II.2.Balance OSD-Activos'!S100=\"\",\"\",'[10]II.2.Balance OSD-Activos'!S100)","v":35578.444201431179},34079.672285333014,70451.959733313764,18.816577638481412,3.1408287198343654,-6.715973150890342,2.9651836752133232,4.1731863864984398,3.535711132983721,-0.97814653481720359,{"$f":"IF('[1]MONE(M)CAPARD'!AS242=\"\",\"\",'[1]MONE(M)CAPARD'!AS242)","v":10},{"$f":"IF('[1]MONE(M)CAPARD'!AT242=\"\",\"\",'[1]MONE(M)CAPARD'!AT242)","v":"n.a."},{"$f":"IF('[1]MONE(M)CAPARD'!AU242=\"\",\"\",'[1]MONE(M)CAPARD'!AU242)","v":5.75},{"$f":"IF('[1]MONE(M)CAPARD'!AV242=\"\",\"\",'[1]MONE(M)CAPARD'!AV242)","v":4.5},{"$f":"IF('[1]MONE(M)CAPARD'!AW242=\"\",\"\",'[1]MONE(M)CAPARD'!AW242)","v":"n.a."},{"$f":"IF('[1]MONE(M)CAPARD'!AX242=\"\",\"\",'[1]MONE(M)CAPARD'!AX242)","v":5},{"$f":"IF('[1]MONE(M)CAPARD'!AY242=\"\",\"\",'[1]MONE(M)CAPARD'!AY242)","v":"n.a."},{"$f":"IF('[1]FISCAL(M)'!$K242=\"\",\"\",'[1]FISCAL(M)'!$K242)","v":-668.71635916026025},{"$f":"IF('[1]FISCAL(M)'!$L242=\"\",\"\",'[1]FISCAL(M)'!$L242)","v":-1107.3407849012601},{"$f":"IF('[1]FISCAL(M)'!$AY242=\"\",\"\",'[1]FISCAL(M)'!$AY242)","v":"n.d."},{"$f":"IF('[1]FISCAL(M)'!$BI242=\"\",\"\",'[1]FISCAL(M)'!$BI242)","v":"n.d."},{"$f":"IF('[1]FISCAL(M)'!$BS242=\"\",\"\",'[1]FISCAL(M)'!$BS242)","v":"n.d."},{"$f":"IF('[1]FISCAL(M)'!$AZ242=\"\",\"\",'[1]FISCAL(M)'!$AZ242)","v":"n.d."},{"$f":"IF('[1]FISCAL(M)'!$BJ242=\"\",\"\",'[1]FISCAL(M)'!$BJ242)","v":"n.d."},{"$f":"IF('[1]FISCAL(M)'!$BT242=\"\",\"\",'[1]FISCAL(M)'!$BT242)","v":"n.d."},{"$f":"IF('[2]MONE(M)'!$AO242=\"\",\"\",'[2]MONE(M)'!$AO242)","v":8634753.5660453867},{"$f":"IF('[3]MONE(M)'!$AO242=\"\",\"\",'[3]MONE(M)'!$AO242)","v":8905.7185746699997},{"$f":"IF('[4]MONE(M)'!$AO242=\"\",\"\",'[4]MONE(M)'!$AO242)","v":82843.392487304023},{"$f":"IF('[5]MONE(M)'!$AO242=\"\",\"\",'[5]MONE(M)'!$AO242)","v":136153.74294942443},{"$f":"IF('[6]MONE(M)'!$AO242=\"\",\"\",'[6]MONE(M)'!$AO242)","v":44136.554050752107},{"$f":"IF('[7]MONE(M)'!$AO242=\"\",\"\",'[7]MONE(M)'!$AO242)","v":330078.11533514003},{"$f":"IF('[8]MONE(M)'!$AO242=\"\",\"\",'[8]MONE(M)'!$AO242)","v":19797.154338984998},21.553702912780803,-1.7276770595137658,6.6666450993285276,4.2958599916558038,-0.22263314117164645,3.4379300023831494,11.16420211061644,{"$f":"IF('[1]FISCAL(M)'!$K242=\"\",\"\",'[1]FISCAL(M)'!$K242)","v":-668.71635916026025},{"$f":"+'[1]REAL(A)'!$AO$29","v":"n.d."},"n.d.",{"$f":"IF('[1]FISCAL(M)'!$L242=\"\",\"\",'[1]FISCAL(M)'!$L242)","v":-1107.3407849012601},{"$f":"+'[1]REAL(A)'!$AP$29","v":"n.d."},"n.d.",70265.321354952277,{"$f":"'[1]Gráfico REM'!BG236","v":12953.779690207348},{"$f":"'[1]Gráfico REM'!BH236","v":52772.057385542066},{"$f":"'[1]Gráfico REM'!BI236","v":4539.4842792028612},2.9180325299775767,10.439488664581997,1.8059452768212303,-3.5764977786783891,105458.75062594729,{"$f":"'[1]Gráfico REM'!BK236","v":13735.440987067348},{"$f":"'[1]Gráfico REM'!BL236","v":72569.211724527064},{"$f":"'[1]Gráfico REM'!BM236","v":19154.09791435286},5.1171782557775991,10.345049840593369,4.1989508741466341,5.055460709447579]
[2009,"junio ","2009-junio ",{"$f":"IF('[1]REAL IPC(M)'!$AL243=\"\",\"\",+'[1]REAL IPC(M)'!$AL243)","v":2.7981024749399452},{"$f":"IF('[1]REAL IPC(M)'!$BE243=\"\",\"\",+'[1]REAL IPC(M)'!$BE243)","v":6.6086090658991736},{"$f":"IF('[1]REAL IPC(M)'!$AM243=\"\",\"\",+'[1]REAL IPC(M)'!$AM243)","v":2.6042886852162273},{"$f":"IF('[1]REAL IPC(M)'!$BI243=\"\",\"\",+'[1]REAL IPC(M)'!$BI243)","v":6.2354246236013156},{"$f":"IF('[1]REAL IMAE(M)'!BJ243=\"\",\"\",'[1]REAL IMAE(M)'!BJ243)","v":-1.6474383589771824},{"$f":"IF('[1]REAL IMAE(M)'!BK243=\"\",\"\",'[1]REAL IMAE(M)'!BK243)","v":2.0317480686147693},{"$f":"IF('[1]REAL IMAE(M)'!BN243=\"\",\"\",'[1]REAL IMAE(M)'!BN243)","v":-1.2096886221995007},{"$f":"IF('[1]REAL IMAE(M)'!BO243=\"\",\"\",'[1]REAL IMAE(M)'!BO243)","v":2.4234374266928205},{"$f":"IF('[1]EXT RIN(M)'!$K243=\"\",\"\",'[1]EXT RIN(M)'!$K243)","v":17376.818072119077},"",{"$f":"IF('[1]EXT RIN(M)'!$L243=\"\",\"\",'[1]EXT RIN(M)'!$L243)","v":20082.243497732306},"",{"$f":"IF('[1]MONE(M)CARD'!EG243=\"\",\"\",'[1]MONE(M)CARD'!EG243)","v":17204.860833498249},{"$f":"IF('[1]MONE(M)CARD'!EK243=\"\",\"\",'[1]MONE(M)CARD'!EK243)","v":32851.045400320603},{"$f":"IF('[1]MONE(M)CARD'!EP243=\"\",\"\",'[1]MONE(M)CARD'!EP243)","v":18443.37363671232},{"$f":"IF('[1]MONE(M)CARD'!ES243=\"\",\"\",'[1]MONE(M)CARD'!ES243)","v":-5.0291343555149197},{"$f":"IF('[1]MONE(M)CARD'!EV243=\"\",\"\",'[1]MONE(M)CARD'!EV243)","v":-0.75286394086236941},{"$f":"IF('[1]MONE(M)CARD'!EZ243=\"\",\"\",'[1]MONE(M)CARD'!EZ243)","v":1.9413776963241647},{"$f":"IF('[1]MONE(M)CAPARD'!FC243=\"\",\"\",'[1]MONE(M)CAPARD'!FC243)","v":21140.419370766649},{"$f":"IF('[1]MONE(M)CAPARD'!FG243=\"\",\"\",'[1]MONE(M)CAPARD'!FG243)","v":49409.021620430613},{"$f":"IF('[1]MONE(M)CAPARD'!FL243=\"\",\"\",'[1]MONE(M)CAPARD'!FL243)","v":18443.37363671232},{"$f":"IF('[1]MONE(M)CAPARD'!FO243=\"\",\"\",'[1]MONE(M)CAPARD'!FO243)","v":-1.1062950634844859},{"$f":"IF('[1]MONE(M)CAPARD'!FR243=\"\",\"\",'[1]MONE(M)CAPARD'!FR243)","v":1.5012869043440569},{"$f":"IF('[1]MONE(M)CAPARD'!FV243=\"\",\"\",'[1]MONE(M)CAPARD'!FV243)","v":3.1619963668465312},{"$f":"IF('[1]MONE(M)CARD'!FV243=\"\",\"\",'[1]MONE(M)CARD'!FV243)","v":2093.5289603966016},{"$f":"IF('[1]MONE(M)CARD'!GD243=\"\",\"\",'[1]MONE(M)CARD'!GD243)","v":127.96562438592161},{"$f":"IF('[1]MONE(M)CARD'!GE243=\"\",\"\",'[1]MONE(M)CARD'!GE243)","v":5326.1301704269263},4.4620842258207727,{"$f":"IF('[9]II.2.Balance OSD-Activos'!J101=\"\",\"\",'[9]II.2.Balance OSD-Activos'!J101)","v":160.78504364511141},{"$f":"IF('[9]II.2.Balance OSD-Activos'!N101=\"\",\"\",'[9]II.2.Balance OSD-Activos'!N101)","v":360.27529417932362},{"$f":"IF('[9]II.2.Balance OSD-Activos'!R101=\"\",\"\",'[9]II.2.Balance OSD-Activos'!R101)","v":23385.680553571918},{"$f":"IF('[9]II.2.Balance OSD-Activos'!S101=\"\",\"\",'[9]II.2.Balance OSD-Activos'!S101)","v":26703.787943305957},23546.465597217029,50610.528834702309,51.184367049721068,-1.3379433419384967,-15.876915842723671,-1.5730401009575457,1.4371943665030917,-1.7699001827153893E-2,-0.80375354144273103,{"$f":"IF('[1]MONE(M)CAPARD'!GS243=\"\",\"\",'[1]MONE(M)CAPARD'!GS243)","v":9468.2253817934452},{"$f":"IF('[1]MONE(M)CARD'!HA243=\"\",\"\",'[1]MONE(M)CAPARD'!HA243)","v":5798.6540338369268},{"$f":"IF('[1]MONE(M)CAPARD'!HB243=\"\",\"\",'[1]MONE(M)CAPARD'!HB243)","v":3669.5713479565184},"n.d.",{"$f":"IF('[10]II.2.Balance OSD-Activos'!J101=\"\",\"\",'[10]II.2.Balance OSD-Activos'!J101)","v":469.87774444811134},{"$f":"IF('[10]II.2.Balance OSD-Activos'!N101=\"\",\"\",'[10]II.2.Balance OSD-Activos'!N101)","v":757.98303046932358},{"$f":"IF('[10]II.2.Balance OSD-Activos'!R101=\"\",\"\",'[10]II.2.Balance OSD-Activos'!R101)","v":33531.809786841921},{"$f":"IF('[10]II.2.Balance OSD-Activos'!S101=\"\",\"\",'[10]II.2.Balance OSD-Activos'!S101)","v":35658.618261515963},34001.68753129003,70418.288823275318,35.808221498349482,1.7600840554922392,-11.848593121308715,1.4038384026568984,3.1074936879167625,2.2668865845859587,-1.2688245483977623,{"$f":"IF('[1]MONE(M)CAPARD'!AS243=\"\",\"\",'[1]MONE(M)CAPARD'!AS243)","v":10},{"$f":"IF('[1]MONE(M)CAPARD'!AT243=\"\",\"\",'[1]MONE(M)CAPARD'!AT243)","v":"n.a."},{"$f":"IF('[1]MONE(M)CAPARD'!AU243=\"\",\"\",'[1]MONE(M)CAPARD'!AU243)","v":5.25},{"$f":"IF('[1]MONE(M)CAPARD'!AV243=\"\",\"\",'[1]MONE(M)CAPARD'!AV243)","v":3.5},{"$f":"IF('[1]MONE(M)CAPARD'!AW243=\"\",\"\",'[1]MONE(M)CAPARD'!AW243)","v":"n.a."},{"$f":"IF('[1]MONE(M)CAPARD'!AX243=\"\",\"\",'[1]MONE(M)CAPARD'!AX243)","v":5},{"$f":"IF('[1]MONE(M)CAPARD'!AY243=\"\",\"\",'[1]MONE(M)CAPARD'!AY243)","v":"n.a."},{"$f":"IF('[1]FISCAL(M)'!$K243=\"\",\"\",'[1]FISCAL(M)'!$K243)","v":-1670.705400901239},{"$f":"IF('[1]FISCAL(M)'!$L243=\"\",\"\",'[1]FISCAL(M)'!$L243)","v":-1949.8963411522391},{"$f":"IF('[1]FISCAL(M)'!$AY243=\"\",\"\",'[1]FISCAL(M)'!$AY243)","v":54375.712714926136},{"$f":"IF('[1]FISCAL(M)'!$BI243=\"\",\"\",'[1]FISCAL(M)'!$BI243)","v":26108.79271492613},{"$f":"IF('[1]FISCAL(M)'!$BS243=\"\",\"\",'[1]FISCAL(M)'!$BS243)","v":28266.920000000002},{"$f":"IF('[1]FISCAL(M)'!$AZ243=\"\",\"\",'[1]FISCAL(M)'!$AZ243)","v":65292.493884796124},{"$f":"IF('[1]FISCAL(M)'!$BJ243=\"\",\"\",'[1]FISCAL(M)'!$BJ243)","v":28118.280727416131},{"$f":"IF('[1]FISCAL(M)'!$BT243=\"\",\"\",'[1]FISCAL(M)'!$BT243)","v":37165.418640769996},{"$f":"IF('[2]MONE(M)'!$AO243=\"\",\"\",'[2]MONE(M)'!$AO243)","v":8645092.2403994203},{"$f":"IF('[3]MONE(M)'!$AO243=\"\",\"\",'[3]MONE(M)'!$AO243)","v":8783.3579088900005},{"$f":"IF('[4]MONE(M)'!$AO243=\"\",\"\",'[4]MONE(M)'!$AO243)","v":81743.382381133488},{"$f":"IF('[5]MONE(M)'!$AO243=\"\",\"\",'[5]MONE(M)'!$AO243)","v":135978.00811218494},{"$f":"IF('[6]MONE(M)'!$AO243=\"\",\"\",'[6]MONE(M)'!$AO243)","v":43674.406571500993},{"$f":"IF('[7]MONE(M)'!$AO243=\"\",\"\",'[7]MONE(M)'!$AO243)","v":336225.90067442995},{"$f":"IF('[8]MONE(M)'!$AO243=\"\",\"\",'[8]MONE(M)'!$AO243)","v":19796.123290302996},19.343395537355423,-3.6012317784486214,3.6638144214194535,2.781974780178853,-2.5010110642093464,4.4587341232797062,8.6314873635808596,{"$f":"IF('[1]FISCAL(M)'!$K243=\"\",\"\",'[1]FISCAL(M)'!$K243)","v":-1670.705400901239},{"$f":"+'[1]REAL(A)'!$AO$29","v":"n.d."},"n.d.",{"$f":"IF('[1]FISCAL(M)'!$L243=\"\",\"\",'[1]FISCAL(M)'!$L243)","v":-1949.8963411522391},{"$f":"+'[1]REAL(A)'!$AP$29","v":"n.d."},"n.d.",70912.095492033332,{"$f":"'[1]Gráfico REM'!BG237","v":13607.426438631597},{"$f":"'[1]Gráfico REM'!BH237","v":52658.956743455958},{"$f":"'[1]Gráfico REM'!BI237","v":4645.7123099457785},2.7549422839435289,13.822109644169389,0.65003767317177719,-1.9276785276724828,106501.29226430833,{"$f":"'[1]Gráfico REM'!BK237","v":14433.723961701597},{"$f":"'[1]Gráfico REM'!BL237","v":72455.080033758946},{"$f":"'[1]Gráfico REM'!BM237","v":19612.488268847777},4.5941826491948223,13.704007474814928,2.7118925561609553,5.5162918002038541]
[2009,"julio","2009-julio",{"$f":"IF('[1]REAL IPC(M)'!$AL244=\"\",\"\",+'[1]REAL IPC(M)'!$AL244)","v":1.4502888022418281},{"$f":"IF('[1]REAL IPC(M)'!$BE244=\"\",\"\",+'[1]REAL IPC(M)'!$BE244)","v":6.4911907985161887},{"$f":"IF('[1]REAL IPC(M)'!$AM244=\"\",\"\",+'[1]REAL IPC(M)'!$AM244)","v":1.3220600992303932},{"$f":"IF('[1]REAL IPC(M)'!$BI244=\"\",\"\",+'[1]REAL IPC(M)'!$BI244)","v":6.1148835418935121},{"$f":"IF('[1]REAL IMAE(M)'!BJ244=\"\",\"\",'[1]REAL IMAE(M)'!BJ244)","v":-0.92071113472707022},{"$f":"IF('[1]REAL IMAE(M)'!BK244=\"\",\"\",'[1]REAL IMAE(M)'!BK244)","v":2.0988386288359306},{"$f":"IF('[1]REAL IMAE(M)'!BN244=\"\",\"\",'[1]REAL IMAE(M)'!BN244)","v":-0.65159078252052804},{"$f":"IF('[1]REAL IMAE(M)'!BO244=\"\",\"\",'[1]REAL IMAE(M)'!BO244)","v":2.4867019418988612},{"$f":"IF('[1]EXT RIN(M)'!$K244=\"\",\"\",'[1]EXT RIN(M)'!$K244)","v":16962.706769246517},"",{"$f":"IF('[1]EXT RIN(M)'!$L244=\"\",\"\",'[1]EXT RIN(M)'!$L244)","v":19449.562611370849},"",{"$f":"IF('[1]MONE(M)CARD'!EG244=\"\",\"\",'[1]MONE(M)CARD'!EG244)","v":16970.562220713033},{"$f":"IF('[1]MONE(M)CARD'!EK244=\"\",\"\",'[1]MONE(M)CARD'!EK244)","v":32696.274328263175},{"$f":"IF('[1]MONE(M)CARD'!EP244=\"\",\"\",'[1]MONE(M)CARD'!EP244)","v":18712.893825078718},{"$f":"IF('[1]MONE(M)CARD'!ES244=\"\",\"\",'[1]MONE(M)CARD'!ES244)","v":-4.5951964471503404},{"$f":"IF('[1]MONE(M)CARD'!EV244=\"\",\"\",'[1]MONE(M)CARD'!EV244)","v":-0.91730258571603995},{"$f":"IF('[1]MONE(M)CARD'!EZ244=\"\",\"\",'[1]MONE(M)CARD'!EZ244)","v":1.8726931926802637},{"$f":"IF('[1]MONE(M)CAPARD'!FC244=\"\",\"\",'[1]MONE(M)CAPARD'!FC244)","v":20695.470349875432},{"$f":"IF('[1]MONE(M)CAPARD'!FG244=\"\",\"\",'[1]MONE(M)CAPARD'!FG244)","v":49470.612223943164},{"$f":"IF('[1]MONE(M)CAPARD'!FL244=\"\",\"\",'[1]MONE(M)CAPARD'!FL244)","v":18712.893825078732},{"$f":"IF('[1]MONE(M)CAPARD'!FO244=\"\",\"\",'[1]MONE(M)CAPARD'!FO244)","v":-1.4249357978372124},{"$f":"IF('[1]MONE(M)CAPARD'!FR244=\"\",\"\",'[1]MONE(M)CAPARD'!FR244)","v":1.8099276951163423},{"$f":"IF('[1]MONE(M)CAPARD'!FV244=\"\",\"\",'[1]MONE(M)CAPARD'!FV244)","v":3.450156593724607},{"$f":"IF('[1]MONE(M)CARD'!FV244=\"\",\"\",'[1]MONE(M)CARD'!FV244)","v":2064.3511588029023},{"$f":"IF('[1]MONE(M)CARD'!GD244=\"\",\"\",'[1]MONE(M)CARD'!GD244)","v":48.069021342454874},{"$f":"IF('[1]MONE(M)CARD'!GE244=\"\",\"\",'[1]MONE(M)CARD'!GE244)","v":5156.4439612754823},2.250408652172009,{"$f":"IF('[9]II.2.Balance OSD-Activos'!J102=\"\",\"\",'[9]II.2.Balance OSD-Activos'!J102)","v":123.55203694474719},{"$f":"IF('[9]II.2.Balance OSD-Activos'!N102=\"\",\"\",'[9]II.2.Balance OSD-Activos'!N102)","v":351.08052656116996},{"$f":"IF('[9]II.2.Balance OSD-Activos'!R102=\"\",\"\",'[9]II.2.Balance OSD-Activos'!R102)","v":23563.101772784266},{"$f":"IF('[9]II.2.Balance OSD-Activos'!S102=\"\",\"\",'[9]II.2.Balance OSD-Activos'!S102)","v":26417.828392970143},23686.653809729014,50455.562729260331,18.8916046132668,-0.56412868106674452,-18.338915797109479,-0.64937673280269781,0.21099796175785279,-0.31138334186947558,-0.29368434004232169,{"$f":"IF('[1]MONE(M)CAPARD'!GS244=\"\",\"\",'[1]MONE(M)CAPARD'!GS244)","v":9570.5961261634111},{"$f":"IF('[1]MONE(M)CARD'!HA244=\"\",\"\",'[1]MONE(M)CAPARD'!HA244)","v":5623.1900838254833},{"$f":"IF('[1]MONE(M)CAPARD'!HB244=\"\",\"\",'[1]MONE(M)CAPARD'!HB244)","v":3947.4060423379278},"n.d.",{"$f":"IF('[10]II.2.Balance OSD-Activos'!J102=\"\",\"\",'[10]II.2.Balance OSD-Activos'!J102)","v":427.99783566674711},{"$f":"IF('[10]II.2.Balance OSD-Activos'!N102=\"\",\"\",'[10]II.2.Balance OSD-Activos'!N102)","v":740.35484627117},{"$f":"IF('[10]II.2.Balance OSD-Activos'!R102=\"\",\"\",'[10]II.2.Balance OSD-Activos'!R102)","v":33684.383638984269},{"$f":"IF('[10]II.2.Balance OSD-Activos'!S102=\"\",\"\",'[10]II.2.Balance OSD-Activos'!S102)","v":35428.57164908015},34112.381474651018,70281.307970002337,22.657770474410643,1.3876955923269874,-11.597165210612825,1.1647923863201015,2.1046008305510622,1.5900748856129132,-0.67681169897304549,{"$f":"IF('[1]MONE(M)CAPARD'!AS244=\"\",\"\",'[1]MONE(M)CAPARD'!AS244)","v":9},{"$f":"IF('[1]MONE(M)CAPARD'!AT244=\"\",\"\",'[1]MONE(M)CAPARD'!AT244)","v":"n.a."},{"$f":"IF('[1]MONE(M)CAPARD'!AU244=\"\",\"\",'[1]MONE(M)CAPARD'!AU244)","v":4.75},{"$f":"IF('[1]MONE(M)CAPARD'!AV244=\"\",\"\",'[1]MONE(M)CAPARD'!AV244)","v":4},{"$f":"IF('[1]MONE(M)CAPARD'!AW244=\"\",\"\",'[1]MONE(M)CAPARD'!AW244)","v":"n.a."},{"$f":"IF('[1]MONE(M)CAPARD'!AX244=\"\",\"\",'[1]MONE(M)CAPARD'!AX244)","v":5},{"$f":"IF('[1]MONE(M)CAPARD'!AY244=\"\",\"\",'[1]MONE(M)CAPARD'!AY244)","v":"n.a."},{"$f":"IF('[1]FISCAL(M)'!$K244=\"\",\"\",'[1]FISCAL(M)'!$K244)","v":-1918.326723547453},{"$f":"IF('[1]FISCAL(M)'!$L244=\"\",\"\",'[1]FISCAL(M)'!$L244)","v":-2569.8588341184527},{"$f":"IF('[1]FISCAL(M)'!$AY244=\"\",\"\",'[1]FISCAL(M)'!$AY244)","v":"n.d."},{"$f":"IF('[1]FISCAL(M)'!$BI244=\"\",\"\",'[1]FISCAL(M)'!$BI244)","v":"n.d."},{"$f":"IF('[1]FISCAL(M)'!$BS244=\"\",\"\",'[1]FISCAL(M)'!$BS244)","v":"n.d."},{"$f":"IF('[1]FISCAL(M)'!$AZ244=\"\",\"\",'[1]FISCAL(M)'!$AZ244)","v":"n.d."},{"$f":"IF('[1]FISCAL(M)'!$BJ244=\"\",\"\",'[1]FISCAL(M)'!$BJ244)","v":"n.d."},{"$f":"IF('[1]FISCAL(M)'!$BT244=\"\",\"\",'[1]FISCAL(M)'!$BT244)","v":"n.d."},{"$f":"IF('[2]MONE(M)'!$AO244=\"\",\"\",'[2]MONE(M)'!$AO244)","v":8735541.0576996058},{"$f":"IF('[3]MONE(M)'!$AO244=\"\",\"\",'[3]MONE(M)'!$AO244)","v":8784.7760159999998},{"$f":"IF('[4]MONE(M)'!$AO244=\"\",\"\",'[4]MONE(M)'!$AO244)","v":82035.091625868401},{"$f":"IF('[5]MONE(M)'!$AO244=\"\",\"\",'[5]MONE(M)'!$AO244)","v":137149.65516642912},{"$f":"IF('[6]MONE(M)'!$AO244=\"\",\"\",'[6]MONE(M)'!$AO244)","v":43408.432048480005},{"$f":"IF('[7]MONE(M)'!$AO244=\"\",\"\",'[7]MONE(M)'!$AO244)","v":338303.13677589002},{"$f":"IF('[8]MONE(M)'!$AO244=\"\",\"\",'[8]MONE(M)'!$AO244)","v":19841.930253552},16.159577350848188,-3.8519661001622407,3.6861062050727256,3.1286260190423576,-4.6859187722143698,5.350022954087752,6.8282020722149506,{"$f":"IF('[1]FISCAL(M)'!$K244=\"\",\"\",'[1]FISCAL(M)'!$K244)","v":-1918.326723547453},{"$f":"+'[1]REAL(A)'!$AO$29","v":"n.d."},"n.d.",{"$f":"IF('[1]FISCAL(M)'!$L244=\"\",\"\",'[1]FISCAL(M)'!$L244)","v":-2569.8588341184527},{"$f":"+'[1]REAL(A)'!$AP$29","v":"n.d."},"n.d.",70437.916842184859,{"$f":"'[1]Gráfico REM'!BG238","v":13512.131430636924},{"$f":"'[1]Gráfico REM'!BH238","v":52544.657145878497},{"$f":"'[1]Gráfico REM'!BI238","v":4381.128265669432},2.6728007544791765,15.26594340565044,0.54832210071973364,-5.2437441907776217,105717.27910320685,{"$f":"'[1]Gráfico REM'!BK238","v":14444.156861156924},{"$f":"'[1]Gráfico REM'!BL238","v":72386.5873994305},{"$f":"'[1]Gráfico REM'!BM238","v":18886.534842619432},3.6433688977103307,15.486665505562325,2.195047135963657,1.2031518893353965]
[2009,"agosto","2009-agosto",{"$f":"IF('[1]REAL IPC(M)'!$AL245=\"\",\"\",+'[1]REAL IPC(M)'!$AL245)","v":1.2316810300043723},{"$f":"IF('[1]REAL IPC(M)'!$BE245=\"\",\"\",+'[1]REAL IPC(M)'!$BE245)","v":6.3820078197099672},{"$f":"IF('[1]REAL IPC(M)'!$AM245=\"\",\"\",+'[1]REAL IPC(M)'!$AM245)","v":1.1092935193498077},{"$f":"IF('[1]REAL IPC(M)'!$BI245=\"\",\"\",+'[1]REAL IPC(M)'!$BI245)","v":6.0024529298094098},{"$f":"IF('[1]REAL IMAE(M)'!BJ245=\"\",\"\",'[1]REAL IMAE(M)'!BJ245)","v":-0.21010873472078195},{"$f":"IF('[1]REAL IMAE(M)'!BK245=\"\",\"\",'[1]REAL IMAE(M)'!BK245)","v":2.173655315370171},{"$f":"IF('[1]REAL IMAE(M)'!BN245=\"\",\"\",'[1]REAL IMAE(M)'!BN245)","v":-4.0281610726955464E-2},{"$f":"IF('[1]REAL IMAE(M)'!BO245=\"\",\"\",'[1]REAL IMAE(M)'!BO245)","v":2.5597767769805602},{"$f":"IF('[1]EXT RIN(M)'!$K245=\"\",\"\",'[1]EXT RIN(M)'!$K245)","v":17977.42070442831},"",{"$f":"IF('[1]EXT RIN(M)'!$L245=\"\",\"\",'[1]EXT RIN(M)'!$L245)","v":20714.23400179551},"",{"$f":"IF('[1]MONE(M)CARD'!EG245=\"\",\"\",'[1]MONE(M)CARD'!EG245)","v":16992.063838460137},{"$f":"IF('[1]MONE(M)CARD'!EK245=\"\",\"\",'[1]MONE(M)CARD'!EK245)","v":32659.183943970329},{"$f":"IF('[1]MONE(M)CARD'!EP245=\"\",\"\",'[1]MONE(M)CARD'!EP245)","v":18986.885039254223},{"$f":"IF('[1]MONE(M)CARD'!ES245=\"\",\"\",'[1]MONE(M)CARD'!ES245)","v":-3.2055121166047029},{"$f":"IF('[1]MONE(M)CARD'!EV245=\"\",\"\",'[1]MONE(M)CARD'!EV245)","v":-0.37125428271429506},{"$f":"IF('[1]MONE(M)CARD'!EZ245=\"\",\"\",'[1]MONE(M)CARD'!EZ245)","v":2.9757017045626055},{"$f":"IF('[1]MONE(M)CAPARD'!FC245=\"\",\"\",'[1]MONE(M)CAPARD'!FC245)","v":20944.510178508535},{"$f":"IF('[1]MONE(M)CAPARD'!FG245=\"\",\"\",'[1]MONE(M)CAPARD'!FG245)","v":49645.809711730333},{"$f":"IF('[1]MONE(M)CAPARD'!FL245=\"\",\"\",'[1]MONE(M)CAPARD'!FL245)","v":18986.885039254237},{"$f":"IF('[1]MONE(M)CAPARD'!FO245=\"\",\"\",'[1]MONE(M)CAPARD'!FO245)","v":0.27137150774070307},{"$f":"IF('[1]MONE(M)CAPARD'!FR245=\"\",\"\",'[1]MONE(M)CAPARD'!FR245)","v":2.4075667716665583},{"$f":"IF('[1]MONE(M)CAPARD'!FV245=\"\",\"\",'[1]MONE(M)CAPARD'!FV245)","v":4.4642034771535721},{"$f":"IF('[1]MONE(M)CARD'!FV245=\"\",\"\",'[1]MONE(M)CARD'!FV245)","v":2079.2024806147238},{"$f":"IF('[1]MONE(M)CARD'!GD245=\"\",\"\",'[1]MONE(M)CARD'!GD245)","v":61.415279259499414},{"$f":"IF('[1]MONE(M)CARD'!GE245=\"\",\"\",'[1]MONE(M)CARD'!GE245)","v":5209.6149078834042},5.999626170558825,{"$f":"IF('[9]II.2.Balance OSD-Activos'!J103=\"\",\"\",'[9]II.2.Balance OSD-Activos'!J103)","v":111.68536821407352},{"$f":"IF('[9]II.2.Balance OSD-Activos'!N103=\"\",\"\",'[9]II.2.Balance OSD-Activos'!N103)","v":339.85048851587453},{"$f":"IF('[9]II.2.Balance OSD-Activos'!R103=\"\",\"\",'[9]II.2.Balance OSD-Activos'!R103)","v":23123.176734695779},{"$f":"IF('[9]II.2.Balance OSD-Activos'!S103=\"\",\"\",'[9]II.2.Balance OSD-Activos'!S103)","v":26720.493161754646},23234.86210290985,50295.205753180373,-3.5950649538739388,-3.0793930749040244,{"$f":"IF(OR(AG238=\"\",AG226=\"\"),\"\",((AG238/AG226)-1)*100)","v":-19.705334026588051},-3.0768889827367474,0.25672147877504603,-1.4754771009135359,-1.1640937590440603,{"$f":"IF('[1]MONE(M)CAPARD'!GS245=\"\",\"\",'[1]MONE(M)CAPARD'!GS245)","v":9709.0677031863761},{"$f":"IF('[1]MONE(M)CARD'!HA245=\"\",\"\",'[1]MONE(M)CAPARD'!HA245)","v":5682.8006880334042},{"$f":"IF('[1]MONE(M)CAPARD'!HB245=\"\",\"\",'[1]MONE(M)CAPARD'!HB245)","v":4026.2670151529719},"n.d.",{"$f":"IF('[10]II.2.Balance OSD-Activos'!J103=\"\",\"\",'[10]II.2.Balance OSD-Activos'!J103)","v":421.66596152607343},{"$f":"IF('[10]II.2.Balance OSD-Activos'!N103=\"\",\"\",'[10]II.2.Balance OSD-Activos'!N103)","v":743.44443657587442},{"$f":"IF('[10]II.2.Balance OSD-Activos'!R103=\"\",\"\",'[10]II.2.Balance OSD-Activos'!R103)","v":33214.323386835778},{"$f":"IF('[10]II.2.Balance OSD-Activos'!S103=\"\",\"\",'[10]II.2.Balance OSD-Activos'!S103)","v":35782.077684114643},33635.989348361851,70161.511469052377,8.3313432857658576,-1.4324311657308519,-10.594108905506838,-1.5450845254605605,2.0705391262174189,0.21273956471834499,-1.3773353208945682,{"$f":"IF('[1]MONE(M)CAPARD'!AS245=\"\",\"\",'[1]MONE(M)CAPARD'!AS245)","v":9},{"$f":"IF('[1]MONE(M)CAPARD'!AT245=\"\",\"\",'[1]MONE(M)CAPARD'!AT245)","v":"n.a."},{"$f":"IF('[1]MONE(M)CAPARD'!AU245=\"\",\"\",'[1]MONE(M)CAPARD'!AU245)","v":4.75},{"$f":"IF('[1]MONE(M)CAPARD'!AV245=\"\",\"\",'[1]MONE(M)CAPARD'!AV245)","v":4.5},{"$f":"IF('[1]MONE(M)CAPARD'!AW245=\"\",\"\",'[1]MONE(M)CAPARD'!AW245)","v":"n.a."},{"$f":"IF('[1]MONE(M)CAPARD'!AX245=\"\",\"\",'[1]MONE(M)CAPARD'!AX245)","v":5},{"$f":"IF('[1]MONE(M)CAPARD'!AY245=\"\",\"\",'[1]MONE(M)CAPARD'!AY245)","v":"n.a."},{"$f":"IF('[1]FISCAL(M)'!$K245=\"\",\"\",'[1]FISCAL(M)'!$K245)","v":-2432.7976347239028},{"$f":"IF('[1]FISCAL(M)'!$L245=\"\",\"\",'[1]FISCAL(M)'!$L245)","v":-3095.5890372549025},{"$f":"IF('[1]FISCAL(M)'!$AY245=\"\",\"\",'[1]FISCAL(M)'!$AY245)","v":"n.d."},{"$f":"IF('[1]FISCAL(M)'!$BI245=\"\",\"\",'[1]FISCAL(M)'!$BI245)","v":"n.d."},{"$f":"IF('[1]FISCAL(M)'!$BS245=\"\",\"\",'[1]FISCAL(M)'!$BS245)","v":"n.d."},{"$f":"IF('[1]FISCAL(M)'!$AZ245=\"\",\"\",'[1]FISCAL(M)'!$AZ245)","v":"n.d."},{"$f":"IF('[1]FISCAL(M)'!$BJ245=\"\",\"\",'[1]FISCAL(M)'!$BJ245)","v":"n.d."},{"$f":"IF('[1]FISCAL(M)'!$BT245=\"\",\"\",'[1]FISCAL(M)'!$BT245)","v":"n.d."},{"$f":"IF('[2]MONE(M)'!$AO245=\"\",\"\",'[2]MONE(M)'!$AO245)","v":8766494.8745375834},{"$f":"IF('[3]MONE(M)'!$AO245=\"\",\"\",'[3]MONE(M)'!$AO245)","v":8758.2896758900006},{"$f":"IF('[4]MONE(M)'!$AO245=\"\",\"\",'[4]MONE(M)'!$AO245)","v":82270.825961052149},{"$f":"IF('[5]MONE(M)'!$AO245=\"\",\"\",'[5]MONE(M)'!$AO245)","v":135881.4195070728},{"$f":"IF('[6]MONE(M)'!$AO245=\"\",\"\",'[6]MONE(M)'!$AO245)","v":43255.715753614306},{"$f":"IF('[7]MONE(M)'!$AO245=\"\",\"\",'[7]MONE(M)'!$AO245)","v":338498.28561035998},{"$f":"IF('[8]MONE(M)'!$AO245=\"\",\"\",'[8]MONE(M)'!$AO245)","v":19884.334488831999},15.457909905457591,-5.2337645942481359,13.962377853539776,0.89330562994243135,-7.220567762662955,4.2568713411206272,4.860769023204381,{"$f":"IF('[1]FISCAL(M)'!$K245=\"\",\"\",'[1]FISCAL(M)'!$K245)","v":-2432.7976347239028},{"$f":"+'[1]REAL(A)'!$AO$29","v":"n.d."},"n.d.",{"$f":"IF('[1]FISCAL(M)'!$L245=\"\",\"\",'[1]FISCAL(M)'!$L245)","v":-3095.5890372549025},{"$f":"+'[1]REAL(A)'!$AP$29","v":"n.d."},"n.d.",70366.417655900208,{"$f":"'[1]Gráfico REM'!BG239","v":13545.081478717206},{"$f":"'[1]Gráfico REM'!BH239","v":52387.807949298898},{"$f":"'[1]Gráfico REM'!BI239","v":4433.5282278841059},4.4068534920871594,21.334479958822627,1.407278844118065,-3.0316432731261722,105278.72938135921,{"$f":"'[1]Gráfico REM'!BK239","v":14402.943540227207},{"$f":"'[1]Gráfico REM'!BL239","v":72272.14243813089},{"$f":"'[1]Gráfico REM'!BM239","v":18603.643403001108},3.8686957952192236,20.492237121876357,2.334551834477927,-0.94271940547732136]
[2009,"septiembre","2009-septiembre",{"$f":"IF('[1]REAL IPC(M)'!$AL246=\"\",\"\",+'[1]REAL IPC(M)'!$AL246)","v":0.83884104842244511},{"$f":"IF('[1]REAL IPC(M)'!$BE246=\"\",\"\",+'[1]REAL IPC(M)'!$BE246)","v":6.2817945819070742},{"$f":"IF('[1]REAL IPC(M)'!$AM246=\"\",\"\",+'[1]REAL IPC(M)'!$AM246)","v":0.67560960309367424},{"$f":"IF('[1]REAL IPC(M)'!$BI246=\"\",\"\",+'[1]REAL IPC(M)'!$BI246)","v":5.8988826610849587},{"$f":"IF('[1]REAL IMAE(M)'!BJ246=\"\",\"\",'[1]REAL IMAE(M)'!BJ246)","v":0.38089189266579115},{"$f":"IF('[1]REAL IMAE(M)'!BK246=\"\",\"\",'[1]REAL IMAE(M)'!BK246)","v":2.2551537559793555},{"$f":"IF('[1]REAL IMAE(M)'!BN246=\"\",\"\",'[1]REAL IMAE(M)'!BN246)","v":0.4986819349374727},{"$f":"IF('[1]REAL IMAE(M)'!BO246=\"\",\"\",'[1]REAL IMAE(M)'!BO246)","v":2.6417403973532316},{"$f":"IF('[1]EXT RIN(M)'!$K246=\"\",\"\",'[1]EXT RIN(M)'!$K246)","v":17586.649688050737},"",{"$f":"IF('[1]EXT RIN(M)'!$L246=\"\",\"\",'[1]EXT RIN(M)'!$L246)","v":20303.825851130536},"",{"$f":"IF('[1]MONE(M)CARD'!EG246=\"\",\"\",'[1]MONE(M)CARD'!EG246)","v":17000.722001037862},{"$f":"IF('[1]MONE(M)CARD'!EK246=\"\",\"\",'[1]MONE(M)CARD'!EK246)","v":32494.259909169687},{"$f":"IF('[1]MONE(M)CARD'!EP246=\"\",\"\",'[1]MONE(M)CARD'!EP246)","v":19036.863034899718},{"$f":"IF('[1]MONE(M)CARD'!ES246=\"\",\"\",'[1]MONE(M)CARD'!ES246)","v":-1.9228872666902541},{"$f":"IF('[1]MONE(M)CARD'!EV246=\"\",\"\",'[1]MONE(M)CARD'!EV246)","v":-0.49320619413204536},{"$f":"IF('[1]MONE(M)CARD'!EZ246=\"\",\"\",'[1]MONE(M)CARD'!EZ246)","v":2.623782620858961},{"$f":"IF('[1]MONE(M)CAPARD'!FC246=\"\",\"\",'[1]MONE(M)CAPARD'!FC246)","v":20931.982468591857},{"$f":"IF('[1]MONE(M)CAPARD'!FG246=\"\",\"\",'[1]MONE(M)CAPARD'!FG246)","v":49593.985537879693},{"$f":"IF('[1]MONE(M)CAPARD'!FL246=\"\",\"\",'[1]MONE(M)CAPARD'!FL246)","v":19036.863034899725},{"$f":"IF('[1]MONE(M)CAPARD'!FO246=\"\",\"\",'[1]MONE(M)CAPARD'!FO246)","v":1.536680377352484},{"$f":"IF('[1]MONE(M)CAPARD'!FR246=\"\",\"\",'[1]MONE(M)CAPARD'!FR246)","v":2.6548016405002928},{"$f":"IF('[1]MONE(M)CAPARD'!FV246=\"\",\"\",'[1]MONE(M)CAPARD'!FV246)","v":4.4568638205232158},{"$f":"IF('[1]MONE(M)CARD'!FV246=\"\",\"\",'[1]MONE(M)CARD'!FV246)","v":2078.0500518196413},{"$f":"IF('[1]MONE(M)CARD'!GD246=\"\",\"\",'[1]MONE(M)CARD'!GD246)","v":141.78089359405237},{"$f":"IF('[1]MONE(M)CARD'!GE246=\"\",\"\",'[1]MONE(M)CARD'!GE246)","v":5337.2432267502245},6.6939946772903935,{"$f":"IF('[9]II.2.Balance OSD-Activos'!J104=\"\",\"\",'[9]II.2.Balance OSD-Activos'!J104)","v":155.10907415909355},{"$f":"IF('[9]II.2.Balance OSD-Activos'!N104=\"\",\"\",'[9]II.2.Balance OSD-Activos'!N104)","v":322.96049119106902},{"$f":"IF('[9]II.2.Balance OSD-Activos'!R104=\"\",\"\",'[9]II.2.Balance OSD-Activos'!R104)","v":23142.64858225912},{"$f":"IF('[9]II.2.Balance OSD-Activos'!S104=\"\",\"\",'[9]II.2.Balance OSD-Activos'!S104)","v":26852.963947057502},23297.757656418213,50473.682094666787,41.693274583567394,-3.2685330496201481,-22.864295352528398,-3.4738211543212327,-2.5270203742278063E-2,-1.7322519903837597,-0.25677488947022375,{"$f":"IF('[1]MONE(M)CAPARD'!GS246=\"\",\"\",'[1]MONE(M)CAPARD'!GS246)","v":10058.964613716109},{"$f":"IF('[1]MONE(M)CARD'!HA246=\"\",\"\",'[1]MONE(M)CAPARD'!HA246)","v":5822.4027219702248},{"$f":"IF('[1]MONE(M)CAPARD'!HB246=\"\",\"\",'[1]MONE(M)CAPARD'!HB246)","v":4236.5618917458842},"n.d.",{"$f":"IF('[10]II.2.Balance OSD-Activos'!J104=\"\",\"\",'[10]II.2.Balance OSD-Activos'!J104)","v":465.55754844909359},{"$f":"IF('[10]II.2.Balance OSD-Activos'!N104=\"\",\"\",'[10]II.2.Balance OSD-Activos'!N104)","v":731.49778244106915},{"$f":"IF('[10]II.2.Balance OSD-Activos'!R104=\"\",\"\",'[10]II.2.Balance OSD-Activos'!R104)","v":33210.506870409125},{"$f":"IF('[10]II.2.Balance OSD-Activos'!S104=\"\",\"\",'[10]II.2.Balance OSD-Activos'!S104)","v":35965.599207777501},33676.064418858216,70373.161409076798,24.155409704061558,-2.6612611061818003,-8.8801378243279281,-2.9551003497285233,1.7772409474678286,-0.51453229539261125,-0.72727186011095624,{"$f":"IF('[1]MONE(M)CAPARD'!AS246=\"\",\"\",'[1]MONE(M)CAPARD'!AS246)","v":9},{"$f":"IF('[1]MONE(M)CAPARD'!AT246=\"\",\"\",'[1]MONE(M)CAPARD'!AT246)","v":"n.a."},{"$f":"IF('[1]MONE(M)CAPARD'!AU246=\"\",\"\",'[1]MONE(M)CAPARD'!AU246)","v":4.5},{"$f":"IF('[1]MONE(M)CAPARD'!AV246=\"\",\"\",'[1]MONE(M)CAPARD'!AV246)","v":4.5},{"$f":"IF('[1]MONE(M)CAPARD'!AW246=\"\",\"\",'[1]MONE(M)CAPARD'!AW246)","v":"n.a."},{"$f":"IF('[1]MONE(M)CAPARD'!AX246=\"\",\"\",'[1]MONE(M)CAPARD'!AX246)","v":4},{"$f":"IF('[1]MONE(M)CAPARD'!AY246=\"\",\"\",'[1]MONE(M)CAPARD'!AY246)","v":"n.a."},{"$f":"IF('[1]FISCAL(M)'!$K246=\"\",\"\",'[1]FISCAL(M)'!$K246)","v":-2885.5245865274783},{"$f":"IF('[1]FISCAL(M)'!$L246=\"\",\"\",'[1]FISCAL(M)'!$L246)","v":-3652.5135453284779},{"$f":"IF('[1]FISCAL(M)'!$AY246=\"\",\"\",'[1]FISCAL(M)'!$AY246)","v":54830.71571857197},{"$f":"IF('[1]FISCAL(M)'!$BI246=\"\",\"\",'[1]FISCAL(M)'!$BI246)","v":26231.455718571971},{"$f":"IF('[1]FISCAL(M)'!$BS246=\"\",\"\",'[1]FISCAL(M)'!$BS246)","v":28599.26},{"$f":"IF('[1]FISCAL(M)'!$AZ246=\"\",\"\",'[1]FISCAL(M)'!$AZ246)","v":66044.335565791975},{"$f":"IF('[1]FISCAL(M)'!$BJ246=\"\",\"\",'[1]FISCAL(M)'!$BJ246)","v":28390.791206181973},{"$f":"IF('[1]FISCAL(M)'!$BT246=\"\",\"\",'[1]FISCAL(M)'!$BT246)","v":37644.795770439996},{"$f":"IF('[2]MONE(M)'!$AO246=\"\",\"\",'[2]MONE(M)'!$AO246)","v":8830399.6406132169},{"$f":"IF('[3]MONE(M)'!$AO246=\"\",\"\",'[3]MONE(M)'!$AO246)","v":8724.0280485900003},{"$f":"IF('[4]MONE(M)'!$AO246=\"\",\"\",'[4]MONE(M)'!$AO246)","v":82550.694300061499},{"$f":"IF('[5]MONE(M)'!$AO246=\"\",\"\",'[5]MONE(M)'!$AO246)","v":136568.77406460053},{"$f":"IF('[6]MONE(M)'!$AO246=\"\",\"\",'[6]MONE(M)'!$AO246)","v":43045.906592090127},{"$f":"IF('[7]MONE(M)'!$AO246=\"\",\"\",'[7]MONE(M)'!$AO246)","v":343527.60528498999},{"$f":"IF('[8]MONE(M)'!$AO246=\"\",\"\",'[8]MONE(M)'!$AO246)","v":19920.330438825997},14.29106524772228,-5.6510718937310305,2.1441244553151773,0.47572555459829413,-7.8327441879963438,4.7104014368545055,2.7135054903900224,{"$f":"IF('[1]FISCAL(M)'!$K246=\"\",\"\",'[1]FISCAL(M)'!$K246)","v":-2885.5245865274783},{"$f":"+'[1]REAL(A)'!$AO$29","v":"n.d."},"n.d.",{"$f":"IF('[1]FISCAL(M)'!$L246=\"\",\"\",'[1]FISCAL(M)'!$L246)","v":-3652.5135453284779},{"$f":"+'[1]REAL(A)'!$AP$29","v":"n.d."},"n.d.",70719.583706873978,{"$f":"'[1]Gráfico REM'!BG240","v":13835.342808615966},{"$f":"'[1]Gráfico REM'!BH240","v":52614.846194476122},{"$f":"'[1]Gráfico REM'!BI240","v":4269.3947037818816},{"$f":"+((CS239/CS227)-1)*100","v":2.3214826760755036},22.464755452712804,-0.90329222330374215,-9.6087119050217158,105971.04514345297,{"$f":"'[1]Gráfico REM'!BK240","v":14694.453639235966},{"$f":"'[1]Gráfico REM'!BL240","v":72535.176633302122},{"$f":"'[1]Gráfico REM'!BM240","v":18741.414870914883},2.3815242499832801,21.782441123862629,6.4370476670472243E-2,-1.1077963708303051]
[2009,"octubre","2009-octubre",{"$f":"IF('[1]REAL IPC(M)'!$AL247=\"\",\"\",+'[1]REAL IPC(M)'!$AL247)","v":0.91376041224671134},{"$f":"IF('[1]REAL IPC(M)'!$BE247=\"\",\"\",+'[1]REAL IPC(M)'!$BE247)","v":6.1909465335288516},{"$f":"IF('[1]REAL IPC(M)'!$AM247=\"\",\"\",+'[1]REAL IPC(M)'!$AM247)","v":0.75801510277768713},{"$f":"IF('[1]REAL IPC(M)'!$BI247=\"\",\"\",+'[1]REAL IPC(M)'!$BI247)","v":5.8045595450842091},{"$f":"IF('[1]REAL IMAE(M)'!BJ247=\"\",\"\",'[1]REAL IMAE(M)'!BJ247)","v":1.0988197531990318},{"$f":"IF('[1]REAL IMAE(M)'!BK247=\"\",\"\",'[1]REAL IMAE(M)'!BK247)","v":2.3421466607050911},{"$f":"IF('[1]REAL IMAE(M)'!BN247=\"\",\"\",'[1]REAL IMAE(M)'!BN247)","v":1.1158056059253907},{"$f":"IF('[1]REAL IMAE(M)'!BO247=\"\",\"\",'[1]REAL IMAE(M)'!BO247)","v":2.7314918078275019},{"$f":"IF('[1]EXT RIN(M)'!$K247=\"\",\"\",'[1]EXT RIN(M)'!$K247)","v":17595.84583917557},"",{"$f":"IF('[1]EXT RIN(M)'!$L247=\"\",\"\",'[1]EXT RIN(M)'!$L247)","v":20275.244075316172},"",{"$f":"IF('[1]MONE(M)CARD'!EG247=\"\",\"\",'[1]MONE(M)CARD'!EG247)","v":17534.016183955231},{"$f":"IF('[1]MONE(M)CARD'!EK247=\"\",\"\",'[1]MONE(M)CARD'!EK247)","v":32796.000104504048},{"$f":"IF('[1]MONE(M)CARD'!EP247=\"\",\"\",'[1]MONE(M)CARD'!EP247)","v":18989.90815598597},{"$f":"IF('[1]MONE(M)CARD'!ES247=\"\",\"\",'[1]MONE(M)CARD'!ES247)","v":3.4009016968048922},{"$f":"IF('[1]MONE(M)CARD'!EV247=\"\",\"\",'[1]MONE(M)CARD'!EV247)","v":2.1326404754428596},{"$f":"IF('[1]MONE(M)CARD'!EZ247=\"\",\"\",'[1]MONE(M)CARD'!EZ247)","v":4.6903516970609127},{"$f":"IF('[1]MONE(M)CAPARD'!FC247=\"\",\"\",'[1]MONE(M)CAPARD'!FC247)","v":21348.241068074629},{"$f":"IF('[1]MONE(M)CAPARD'!FG247=\"\",\"\",'[1]MONE(M)CAPARD'!FG247)","v":49995.833637724034},{"$f":"IF('[1]MONE(M)CAPARD'!FL247=\"\",\"\",'[1]MONE(M)CAPARD'!FL247)","v":18989.908155985977},{"$f":"IF('[1]MONE(M)CAPARD'!FO247=\"\",\"\",'[1]MONE(M)CAPARD'!FO247)","v":5.3417359920618024},{"$f":"IF('[1]MONE(M)CAPARD'!FR247=\"\",\"\",'[1]MONE(M)CAPARD'!FR247)","v":3.9681315149280305},{"$f":"IF('[1]MONE(M)CAPARD'!FV247=\"\",\"\",'[1]MONE(M)CAPARD'!FV247)","v":5.5842907160427835},{"$f":"IF('[1]MONE(M)CARD'!FV247=\"\",\"\",'[1]MONE(M)CARD'!FV247)","v":2092.5705659147789},{"$f":"IF('[1]MONE(M)CARD'!GD247=\"\",\"\",'[1]MONE(M)CARD'!GD247)","v":56.414606647541575},{"$f":"IF('[1]MONE(M)CARD'!GE247=\"\",\"\",'[1]MONE(M)CARD'!GE247)","v":5515.7618665449409},9.247551017482758,{"$f":"IF('[9]II.2.Balance OSD-Activos'!J105=\"\",\"\",'[9]II.2.Balance OSD-Activos'!J105)","v":172.52193669986102},{"$f":"IF('[9]II.2.Balance OSD-Activos'!N105=\"\",\"\",'[9]II.2.Balance OSD-Activos'!N105)","v":321.71576611883904},{"$f":"IF('[9]II.2.Balance OSD-Activos'!R105=\"\",\"\",'[9]II.2.Balance OSD-Activos'!R105)","v":23356.830998192938},{"$f":"IF('[9]II.2.Balance OSD-Activos'!S105=\"\",\"\",'[9]II.2.Balance OSD-Activos'!S105)","v":27011.123547636555},23529.352934892799,50862.192248648193,70.454547786559061,-2.8408709934806042,-22.525617787181275,-3.1484842632438004,0.34854132254378278,-1.3340549877956409,0.39819700258811874,{"$f":"IF('[1]MONE(M)CAPARD'!GS247=\"\",\"\",'[1]MONE(M)CAPARD'!GS247)","v":10246.166627256391},{"$f":"IF('[1]MONE(M)CARD'!HA247=\"\",\"\",'[1]MONE(M)CAPARD'!HA247)","v":6037.8773785549402},{"$f":"IF('[1]MONE(M)CAPARD'!HB247=\"\",\"\",'[1]MONE(M)CAPARD'!HB247)","v":4208.2892487014506},"n.d.",{"$f":"IF('[10]II.2.Balance OSD-Activos'!J105=\"\",\"\",'[10]II.2.Balance OSD-Activos'!J105)","v":482.44488384186104},{"$f":"IF('[10]II.2.Balance OSD-Activos'!N105=\"\",\"\",'[10]II.2.Balance OSD-Activos'!N105)","v":723.34444208883906},{"$f":"IF('[10]II.2.Balance OSD-Activos'!R105=\"\",\"\",'[10]II.2.Balance OSD-Activos'!R105)","v":33528.768604282937},{"$f":"IF('[10]II.2.Balance OSD-Activos'!S105=\"\",\"\",'[10]II.2.Balance OSD-Activos'!S105)","v":36162.378666996556},34011.213488124798,70896.936597210195,25.137973944353288,-2.7018444596349833,-11.771370178217511,-3.0123175484520037,1.9328973487112266,-0.49855072716291637,1.5981568229694876E-2,{"$f":"IF('[1]MONE(M)CAPARD'!AS247=\"\",\"\",'[1]MONE(M)CAPARD'!AS247)","v":9},{"$f":"IF('[1]MONE(M)CAPARD'!AT247=\"\",\"\",'[1]MONE(M)CAPARD'!AT247)","v":"n.a."},{"$f":"IF('[1]MONE(M)CAPARD'!AU247=\"\",\"\",'[1]MONE(M)CAPARD'!AU247)","v":4.5},{"$f":"IF('[1]MONE(M)CAPARD'!AV247=\"\",\"\",'[1]MONE(M)CAPARD'!AV247)","v":4.5},{"$f":"IF('[1]MONE(M)CAPARD'!AW247=\"\",\"\",'[1]MONE(M)CAPARD'!AW247)","v":"n.a."},{"$f":"IF('[1]MONE(M)CAPARD'!AX247=\"\",\"\",'[1]MONE(M)CAPARD'!AX247)","v":4},{"$f":"IF('[1]MONE(M)CAPARD'!AY247=\"\",\"\",'[1]MONE(M)CAPARD'!AY247)","v":"n.a."},{"$f":"IF('[1]FISCAL(M)'!$K247=\"\",\"\",'[1]FISCAL(M)'!$K247)","v":-3122.9810624227648},{"$f":"IF('[1]FISCAL(M)'!$L247=\"\",\"\",'[1]FISCAL(M)'!$L247)","v":-4040.7379896737643},{"$f":"IF('[1]FISCAL(M)'!$AY247=\"\",\"\",'[1]FISCAL(M)'!$AY247)","v":"n.d."},{"$f":"IF('[1]FISCAL(M)'!$BI247=\"\",\"\",'[1]FISCAL(M)'!$BI247)","v":"n.d."},{"$f":"IF('[1]FISCAL(M)'!$BS247=\"\",\"\",'[1]FISCAL(M)'!$BS247)","v":"n.d."},{"$f":"IF('[1]FISCAL(M)'!$AZ247=\"\",\"\",'[1]FISCAL(M)'!$AZ247)","v":"n.d."},{"$f":"IF('[1]FISCAL(M)'!$BJ247=\"\",\"\",'[1]FISCAL(M)'!$BJ247)","v":"n.d."},{"$f":"IF('[1]FISCAL(M)'!$BT247=\"\",\"\",'[1]FISCAL(M)'!$BT247)","v":"n.d."},{"$f":"IF('[2]MONE(M)'!$AO247=\"\",\"\",'[2]MONE(M)'!$AO247)","v":8867636.6548686549},{"$f":"IF('[3]MONE(M)'!$AO247=\"\",\"\",'[3]MONE(M)'!$AO247)","v":8673.7691245499991},{"$f":"IF('[4]MONE(M)'!$AO247=\"\",\"\",'[4]MONE(M)'!$AO247)","v":82560.146147359672},{"$f":"IF('[5]MONE(M)'!$AO247=\"\",\"\",'[5]MONE(M)'!$AO247)","v":138011.83783487632},{"$f":"IF('[6]MONE(M)'!$AO247=\"\",\"\",'[6]MONE(M)'!$AO247)","v":42865.041038729287},{"$f":"IF('[7]MONE(M)'!$AO247=\"\",\"\",'[7]MONE(M)'!$AO247)","v":350956.42670498998},{"$f":"IF('[8]MONE(M)'!$AO247=\"\",\"\",'[8]MONE(M)'!$AO247)","v":20080.086630845999},13.576656802550202,-6.2531006899954278,1.0204816305484199,1.9247812348975213,-7.9257226098780169,6.0006077528596879,1.9027380954190987,{"$f":"IF('[1]FISCAL(M)'!$K247=\"\",\"\",'[1]FISCAL(M)'!$K247)","v":-3122.9810624227648},{"$f":"+'[1]REAL(A)'!$AO$29","v":"n.d."},"n.d.",{"$f":"IF('[1]FISCAL(M)'!$L247=\"\",\"\",'[1]FISCAL(M)'!$L247)","v":-4040.7379896737643},{"$f":"+'[1]REAL(A)'!$AP$29","v":"n.d."},"n.d.",71175.328929088515,{"$f":"'[1]Gráfico REM'!BG241","v":13843.07236329505},{"$f":"'[1]Gráfico REM'!BH241","v":53077.661499435198},{"$f":"'[1]Gráfico REM'!BI241","v":4254.5950663582553},2.8025207370162342,22.793263400390629,-0.25430198770483026,-10.402070949695085,106381.4015193785,{"$f":"'[1]Gráfico REM'!BK241","v":14709.66649918505},{"$f":"'[1]Gráfico REM'!BL241","v":73157.748130281194},{"$f":"'[1]Gráfico REM'!BM241","v":18513.986889912252},2.2318600391024734,21.698318752444479,0.32860922192867736,-2.8332350160334308]
[2009,"noviembre","2009-noviembre",{"$f":"IF('[1]REAL IPC(M)'!$AL248=\"\",\"\",+'[1]REAL IPC(M)'!$AL248)","v":2.2162701065559176},{"$f":"IF('[1]REAL IPC(M)'!$BE248=\"\",\"\",+'[1]REAL IPC(M)'!$BE248)","v":6.1095169163727592},{"$f":"IF('[1]REAL IPC(M)'!$AM248=\"\",\"\",+'[1]REAL IPC(M)'!$AM248)","v":2.0298582980343483},{"$f":"IF('[1]REAL IPC(M)'!$BI248=\"\",\"\",+'[1]REAL IPC(M)'!$BI248)","v":5.7195005396355914},{"$f":"IF('[1]REAL IMAE(M)'!BJ248=\"\",\"\",'[1]REAL IMAE(M)'!BJ248)","v":2.2468714895907071},{"$f":"IF('[1]REAL IMAE(M)'!BK248=\"\",\"\",'[1]REAL IMAE(M)'!BK248)","v":2.433336312259593},{"$f":"IF('[1]REAL IMAE(M)'!BN248=\"\",\"\",'[1]REAL IMAE(M)'!BN248)","v":2.14612187706964},{"$f":"IF('[1]REAL IMAE(M)'!BO248=\"\",\"\",'[1]REAL IMAE(M)'!BO248)","v":2.8277834108157318},{"$f":"IF('[1]EXT RIN(M)'!$K248=\"\",\"\",'[1]EXT RIN(M)'!$K248)","v":17499.329330105291},"",{"$f":"IF('[1]EXT RIN(M)'!$L248=\"\",\"\",'[1]EXT RIN(M)'!$L248)","v":20526.217725065289},"",{"$f":"IF('[1]MONE(M)CARD'!EG248=\"\",\"\",'[1]MONE(M)CARD'!EG248)","v":18195.25119288118},{"$f":"IF('[1]MONE(M)CARD'!EK248=\"\",\"\",'[1]MONE(M)CARD'!EK248)","v":32987.566592122756},{"$f":"IF('[1]MONE(M)CARD'!EP248=\"\",\"\",'[1]MONE(M)CARD'!EP248)","v":19139.385044045761},{"$f":"IF('[1]MONE(M)CARD'!ES248=\"\",\"\",'[1]MONE(M)CARD'!ES248)","v":3.1786640944009958},{"$f":"IF('[1]MONE(M)CARD'!EV248=\"\",\"\",'[1]MONE(M)CARD'!EV248)","v":2.3134329476919069},{"$f":"IF('[1]MONE(M)CARD'!EZ248=\"\",\"\",'[1]MONE(M)CARD'!EZ248)","v":4.8084543401106794},{"$f":"IF('[1]MONE(M)CAPARD'!FC248=\"\",\"\",'[1]MONE(M)CAPARD'!FC248)","v":22199.86999786958},{"$f":"IF('[1]MONE(M)CAPARD'!FG248=\"\",\"\",'[1]MONE(M)CAPARD'!FG248)","v":50128.952639542767},{"$f":"IF('[1]MONE(M)CAPARD'!FL248=\"\",\"\",'[1]MONE(M)CAPARD'!FL248)","v":19139.385044045775},{"$f":"IF('[1]MONE(M)CAPARD'!FO248=\"\",\"\",'[1]MONE(M)CAPARD'!FO248)","v":4.8852503687026205},{"$f":"IF('[1]MONE(M)CAPARD'!FR248=\"\",\"\",'[1]MONE(M)CAPARD'!FR248)","v":4.2455757739318756},{"$f":"IF('[1]MONE(M)CAPARD'!FV248=\"\",\"\",'[1]MONE(M)CAPARD'!FV248)","v":5.8004376632163179},{"$f":"IF('[1]MONE(M)CARD'!FV248=\"\",\"\",'[1]MONE(M)CARD'!FV248)","v":2147.2447606646715},{"$f":"IF('[1]MONE(M)CARD'!GD248=\"\",\"\",'[1]MONE(M)CARD'!GD248)","v":62.749986184571355},{"$f":"IF('[1]MONE(M)CARD'!GE248=\"\",\"\",'[1]MONE(M)CARD'!GE248)","v":5579.747203569128},12.596799649228373,{"$f":"IF('[9]II.2.Balance OSD-Activos'!J106=\"\",\"\",'[9]II.2.Balance OSD-Activos'!J106)","v":156.08274243807494},{"$f":"IF('[9]II.2.Balance OSD-Activos'!N106=\"\",\"\",'[9]II.2.Balance OSD-Activos'!N106)","v":338.04262439310685},{"$f":"IF('[9]II.2.Balance OSD-Activos'!R106=\"\",\"\",'[9]II.2.Balance OSD-Activos'!R106)","v":23691.543916331779},{"$f":"IF('[9]II.2.Balance OSD-Activos'!S106=\"\",\"\",'[9]II.2.Balance OSD-Activos'!S106)","v":27436.544264488708},23847.626658769852,51622.213547651671,49.409536682501141,-2.8335913371404509,-17.820032079641145,-3.0569121631778162,0.63405665847273696,-1.1411465624441841,0.1929084253514568,{"$f":"IF('[1]MONE(M)CAPARD'!GS248=\"\",\"\",'[1]MONE(M)CAPARD'!GS248)","v":10502.363016844487},{"$f":"IF('[1]MONE(M)CARD'!HA248=\"\",\"\",'[1]MONE(M)CAPARD'!HA248)","v":6108.7012250391281},{"$f":"IF('[1]MONE(M)CAPARD'!HB248=\"\",\"\",'[1]MONE(M)CAPARD'!HB248)","v":4393.6617918053589},"n.d.",{"$f":"IF('[10]II.2.Balance OSD-Activos'!J106=\"\",\"\",'[10]II.2.Balance OSD-Activos'!J106)","v":464.68873906007497},{"$f":"IF('[10]II.2.Balance OSD-Activos'!N106=\"\",\"\",'[10]II.2.Balance OSD-Activos'!N106)","v":746.3517332931068},{"$f":"IF('[10]II.2.Balance OSD-Activos'!R106=\"\",\"\",'[10]II.2.Balance OSD-Activos'!R106)","v":33811.777198491778},{"$f":"IF('[10]II.2.Balance OSD-Activos'!S106=\"\",\"\",'[10]II.2.Balance OSD-Activos'!S106)","v":36629.031251118708},34276.465937551853,71651.848921963669,19.239654387630377,-2.8805444971212846,-15.937185417423628,-3.1275251098546564,1.9791423645177719,-0.62034084519626553,-0.12179011803334916,{"$f":"IF('[1]MONE(M)CAPARD'!AS248=\"\",\"\",'[1]MONE(M)CAPARD'!AS248)","v":9},{"$f":"IF('[1]MONE(M)CAPARD'!AT248=\"\",\"\",'[1]MONE(M)CAPARD'!AT248)","v":"n.a."},{"$f":"IF('[1]MONE(M)CAPARD'!AU248=\"\",\"\",'[1]MONE(M)CAPARD'!AU248)","v":4.5},{"$f":"IF('[1]MONE(M)CAPARD'!AV248=\"\",\"\",'[1]MONE(M)CAPARD'!AV248)","v":4.5},{"$f":"IF('[1]MONE(M)CAPARD'!AW248=\"\",\"\",'[1]MONE(M)CAPARD'!AW248)","v":"n.a."},{"$f":"IF('[1]MONE(M)CAPARD'!AX248=\"\",\"\",'[1]MONE(M)CAPARD'!AX248)","v":4},{"$f":"IF('[1]MONE(M)CAPARD'!AY248=\"\",\"\",'[1]MONE(M)CAPARD'!AY248)","v":"n.a."},{"$f":"IF('[1]FISCAL(M)'!$K248=\"\",\"\",'[1]FISCAL(M)'!$K248)","v":-4123.9324688043243},{"$f":"IF('[1]FISCAL(M)'!$L248=\"\",\"\",'[1]FISCAL(M)'!$L248)","v":-5244.1544650053247},{"$f":"IF('[1]FISCAL(M)'!$AY248=\"\",\"\",'[1]FISCAL(M)'!$AY248)","v":"n.d."},{"$f":"IF('[1]FISCAL(M)'!$BI248=\"\",\"\",'[1]FISCAL(M)'!$BI248)","v":"n.d."},{"$f":"IF('[1]FISCAL(M)'!$BS248=\"\",\"\",'[1]FISCAL(M)'!$BS248)","v":"n.d."},{"$f":"IF('[1]FISCAL(M)'!$AZ248=\"\",\"\",'[1]FISCAL(M)'!$AZ248)","v":"n.d."},{"$f":"IF('[1]FISCAL(M)'!$BJ248=\"\",\"\",'[1]FISCAL(M)'!$BJ248)","v":"n.d."},{"$f":"IF('[1]FISCAL(M)'!$BT248=\"\",\"\",'[1]FISCAL(M)'!$BT248)","v":"n.d."},{"$f":"IF('[2]MONE(M)'!$AO248=\"\",\"\",'[2]MONE(M)'!$AO248)","v":8721436.4524679184},{"$f":"IF('[3]MONE(M)'!$AO248=\"\",\"\",'[3]MONE(M)'!$AO248)","v":8668.245999230001},{"$f":"IF('[4]MONE(M)'!$AO248=\"\",\"\",'[4]MONE(M)'!$AO248)","v":82656.796774849383},{"$f":"IF('[5]MONE(M)'!$AO248=\"\",\"\",'[5]MONE(M)'!$AO248)","v":138932.48944372483},{"$f":"IF('[6]MONE(M)'!$AO248=\"\",\"\",'[6]MONE(M)'!$AO248)","v":43103.049052094284},{"$f":"IF('[7]MONE(M)'!$AO248=\"\",\"\",'[7]MONE(M)'!$AO248)","v":356943.13834579004},{"$f":"IF('[8]MONE(M)'!$AO248=\"\",\"\",'[8]MONE(M)'!$AO248)","v":20053.489628337},12.47795754911898,-6.280643711607981,-0.3778745585305221,2.1396956222186958,-8.2262893153439265,6.3891772772979305,1.2092512216758777,{"$f":"IF('[1]FISCAL(M)'!$K248=\"\",\"\",'[1]FISCAL(M)'!$K248)","v":-4123.9324688043243},{"$f":"+'[1]REAL(A)'!$AO$29","v":"n.d."},"n.d.",{"$f":"IF('[1]FISCAL(M)'!$L248=\"\",\"\",'[1]FISCAL(M)'!$L248)","v":-5244.1544650053247},{"$f":"+'[1]REAL(A)'!$AP$29","v":"n.d."},"n.d.",72334.29691882123,{"$f":"'[1]Gráfico REM'!BG242","v":14246.507210488116},{"$f":"'[1]Gráfico REM'!BH242","v":53804.723774202561},{"$f":"'[1]Gráfico REM'!BI242","v":4283.0659341305563},3.2541977651572962,24.691775088136136,-9.6607009808236111E-2,-10.254369082484981,107143.23057100523,{"$f":"'[1]Gráfico REM'!BK242","v":15137.433178918116},{"$f":"'[1]Gráfico REM'!BL242","v":73858.213402539564},{"$f":"'[1]Gráfico REM'!BM242","v":18147.583989547558},2.3458015333637672,24.015773052512191,0.25460658309282014,-3.5255779001581389]
[2009,"diciembre","2009-diciembre",{"$f":"IF('[1]REAL IPC(M)'!$AL249=\"\",\"\",+'[1]REAL IPC(M)'!$AL249)","v":3.1312884347985737},{"$f":"IF('[1]REAL IPC(M)'!$BE249=\"\",\"\",+'[1]REAL IPC(M)'!$BE249)","v":6.0372420409344318},{"$f":"IF('[1]REAL IPC(M)'!$AM249=\"\",\"\",+'[1]REAL IPC(M)'!$AM249)","v":2.9248750671919233},{"$f":"IF('[1]REAL IPC(M)'!$BI249=\"\",\"\",+'[1]REAL IPC(M)'!$BI249)","v":5.6433784455910407},{"$f":"IF('[1]REAL IMAE(M)'!BJ249=\"\",\"\",'[1]REAL IMAE(M)'!BJ249)","v":3.4213323152042729},{"$f":"IF('[1]REAL IMAE(M)'!BK249=\"\",\"\",'[1]REAL IMAE(M)'!BK249)","v":2.5273530719499337},{"$f":"IF('[1]REAL IMAE(M)'!BN249=\"\",\"\",'[1]REAL IMAE(M)'!BN249)","v":3.2161034499783137},{"$f":"IF('[1]REAL IMAE(M)'!BO249=\"\",\"\",'[1]REAL IMAE(M)'!BO249)","v":2.9292592895886482},{"$f":"IF('[1]EXT RIN(M)'!$K249=\"\",\"\",'[1]EXT RIN(M)'!$K249)","v":18653.296140537856},18653.296140537856,{"$f":"IF('[1]EXT RIN(M)'!$L249=\"\",\"\",'[1]EXT RIN(M)'!$L249)","v":21857.829325376384},21857.829325376384,{"$f":"IF('[1]MONE(M)CARD'!EG249=\"\",\"\",'[1]MONE(M)CARD'!EG249)","v":19384.02694838262},{"$f":"IF('[1]MONE(M)CARD'!EK249=\"\",\"\",'[1]MONE(M)CARD'!EK249)","v":33051.47061383025},{"$f":"IF('[1]MONE(M)CARD'!EP249=\"\",\"\",'[1]MONE(M)CARD'!EP249)","v":19184.008665731191},{"$f":"IF('[1]MONE(M)CARD'!ES249=\"\",\"\",'[1]MONE(M)CARD'!ES249)","v":5.2367494451055485},{"$f":"IF('[1]MONE(M)CARD'!EV249=\"\",\"\",'[1]MONE(M)CARD'!EV249)","v":4.0106370878872921},{"$f":"IF('[1]MONE(M)CARD'!EZ249=\"\",\"\",'[1]MONE(M)CARD'!EZ249)","v":5.862598496593896},{"$f":"IF('[1]MONE(M)CAPARD'!FC249=\"\",\"\",'[1]MONE(M)CAPARD'!FC249)","v":23787.529364841019},{"$f":"IF('[1]MONE(M)CAPARD'!FG249=\"\",\"\",'[1]MONE(M)CAPARD'!FG249)","v":50460.112524660246},{"$f":"IF('[1]MONE(M)CAPARD'!FL249=\"\",\"\",'[1]MONE(M)CAPARD'!FL249)","v":19184.008665731206},{"$f":"IF('[1]MONE(M)CAPARD'!FO249=\"\",\"\",'[1]MONE(M)CAPARD'!FO249)","v":7.2328703687529305},{"$f":"IF('[1]MONE(M)CAPARD'!FR249=\"\",\"\",'[1]MONE(M)CAPARD'!FR249)","v":5.7752958553806799},{"$f":"IF('[1]MONE(M)CAPARD'!FV249=\"\",\"\",'[1]MONE(M)CAPARD'!FV249)","v":6.8603396972276576},{"$f":"IF('[1]MONE(M)CARD'!FV249=\"\",\"\",'[1]MONE(M)CARD'!FV249)","v":2103.0269129795033},{"$f":"IF('[1]MONE(M)CARD'!GD249=\"\",\"\",'[1]MONE(M)CARD'!GD249)","v":57.049494944824211},{"$f":"IF('[1]MONE(M)CARD'!GE249=\"\",\"\",'[1]MONE(M)CARD'!GE249)","v":5244.6715476496975},3.7639111458769303,{"$f":"IF('[9]II.2.Balance OSD-Activos'!J107=\"\",\"\",'[9]II.2.Balance OSD-Activos'!J107)","v":174.46925896548476},{"$f":"IF('[9]II.2.Balance OSD-Activos'!N107=\"\",\"\",'[9]II.2.Balance OSD-Activos'!N107)","v":342.93146480067946},{"$f":"IF('[9]II.2.Balance OSD-Activos'!R107=\"\",\"\",'[9]II.2.Balance OSD-Activos'!R107)","v":23907.526078656185},{"$f":"IF('[9]II.2.Balance OSD-Activos'!S107=\"\",\"\",'[9]II.2.Balance OSD-Activos'!S107)","v":27323.486766317819},24081.995337621669,51748.413568740172,65.064112746850782,-2.6273915103487644,-15.371963570860892,-2.9179307570289748,0.24012991997859334,-1.2341566783622415,-9.3010115918057412E-2,{"$f":"IF('[1]MONE(M)CAPARD'!GS249=\"\",\"\",'[1]MONE(M)CAPARD'!GS249)","v":10673.796433755593},{"$f":"IF('[1]MONE(M)CARD'!HA249=\"\",\"\",'[1]MONE(M)CAPARD'!HA249)","v":5764.3389023396976},{"$f":"IF('[1]MONE(M)CAPARD'!HB249=\"\",\"\",'[1]MONE(M)CAPARD'!HB249)","v":4909.4575314158956},"n.d.",{"$f":"IF('[10]II.2.Balance OSD-Activos'!J107=\"\",\"\",'[10]II.2.Balance OSD-Activos'!J107)","v":462.65725555948472},{"$f":"IF('[10]II.2.Balance OSD-Activos'!N107=\"\",\"\",'[10]II.2.Balance OSD-Activos'!N107)","v":748.62279156067962},{"$f":"IF('[10]II.2.Balance OSD-Activos'!R107=\"\",\"\",'[10]II.2.Balance OSD-Activos'!R107)","v":33724.84971420619},{"$f":"IF('[10]II.2.Balance OSD-Activos'!S107=\"\",\"\",'[10]II.2.Balance OSD-Activos'!S107)","v":36603.668504507819},34187.506969765673,71539.798265834164,12.981579011140209,-2.5504351259977076,-7.4777942497847754,-2.7338738879574831,1.8784220480155156,-0.39036545651801591,0.22997538867824963,{"$f":"IF('[1]MONE(M)CAPARD'!AS249=\"\",\"\",'[1]MONE(M)CAPARD'!AS249)","v":9},{"$f":"IF('[1]MONE(M)CAPARD'!AT249=\"\",\"\",'[1]MONE(M)CAPARD'!AT249)","v":"n.a."},{"$f":"IF('[1]MONE(M)CAPARD'!AU249=\"\",\"\",'[1]MONE(M)CAPARD'!AU249)","v":4.5},{"$f":"IF('[1]MONE(M)CAPARD'!AV249=\"\",\"\",'[1]MONE(M)CAPARD'!AV249)","v":4.5},{"$f":"IF('[1]MONE(M)CAPARD'!AW249=\"\",\"\",'[1]MONE(M)CAPARD'!AW249)","v":"n.a."},{"$f":"IF('[1]MONE(M)CAPARD'!AX249=\"\",\"\",'[1]MONE(M)CAPARD'!AX249)","v":4},{"$f":"IF('[1]MONE(M)CAPARD'!AY249=\"\",\"\",'[1]MONE(M)CAPARD'!AY249)","v":"n.a."},{"$f":"IF('[1]FISCAL(M)'!$K249=\"\",\"\",'[1]FISCAL(M)'!$K249)","v":-5605.536178477354},{"$f":"IF('[1]FISCAL(M)'!$L249=\"\",\"\",'[1]FISCAL(M)'!$L249)","v":-5599.6941012283532},{"$f":"IF('[1]FISCAL(M)'!$AY249=\"\",\"\",'[1]FISCAL(M)'!$AY249)","v":58480.136322314524},{"$f":"IF('[1]FISCAL(M)'!$BI249=\"\",\"\",'[1]FISCAL(M)'!$BI249)","v":27852.537288986925},{"$f":"IF('[1]FISCAL(M)'!$BS249=\"\",\"\",'[1]FISCAL(M)'!$BS249)","v":30627.599033327602},{"$f":"IF('[1]FISCAL(M)'!$AZ249=\"\",\"\",'[1]FISCAL(M)'!$AZ249)","v":69563.104233304519},{"$f":"IF('[1]FISCAL(M)'!$BJ249=\"\",\"\",'[1]FISCAL(M)'!$BJ249)","v":28785.351772296926},{"$f":"IF('[1]FISCAL(M)'!$BT249=\"\",\"\",'[1]FISCAL(M)'!$BT249)","v":40771.021506337602},{"$f":"IF('[2]MONE(M)'!$AO249=\"\",\"\",'[2]MONE(M)'!$AO249)","v":8854743.5806054734},{"$f":"IF('[3]MONE(M)'!$AO249=\"\",\"\",'[3]MONE(M)'!$AO249)","v":8692.852589930153},{"$f":"IF('[4]MONE(M)'!$AO249=\"\",\"\",'[4]MONE(M)'!$AO249)","v":83044.35708254081},{"$f":"IF('[5]MONE(M)'!$AO249=\"\",\"\",'[5]MONE(M)'!$AO249)","v":138807.94585617408},{"$f":"IF('[6]MONE(M)'!$AO249=\"\",\"\",'[6]MONE(M)'!$AO249)","v":42960.414410638696},{"$f":"IF('[7]MONE(M)'!$AO249=\"\",\"\",'[7]MONE(M)'!$AO249)","v":360918.06613902998},{"$f":"IF('[8]MONE(M)'!$AO249=\"\",\"\",'[8]MONE(M)'!$AO249)","v":19830.130507878999},7.3667687370214452,-5.1099661640702232,-2.6987739204442196,2.5058362240420573,-7.3137881303383834,7.9854357463250425,2.0864406026152249,{"$f":"IF('[1]FISCAL(M)'!$K249=\"\",\"\",'[1]FISCAL(M)'!$K249)","v":-5605.536178477354},{"$f":"+'[1]REAL(A)'!$AO$29","v":"n.d."},"n.d.",{"$f":"IF('[1]FISCAL(M)'!$L249=\"\",\"\",'[1]FISCAL(M)'!$L249)","v":-5599.6941012283532},{"$f":"+'[1]REAL(A)'!$AP$29","v":"n.d."},"n.d.",72727.649388176782,{"$f":"'[1]Gráfico REM'!BG243","v":14517.227674585341},{"$f":"'[1]Gráfico REM'!BH243","v":53899.916929810497},{"$f":"'[1]Gráfico REM'!BI243","v":4310.5047837809379},2.9987417284156104,22.895265265542463,-0.3743869339214001,-8.191001885428939,107169.85793821677,{"$f":"'[1]Gráfico REM'!BK243","v":15327.039201555341},{"$f":"'[1]Gráfico REM'!BL243","v":73730.0474376895},{"$f":"'[1]Gráfico REM'!BM243","v":18112.771298971937},2.5903651294600039,22.140793003918557,0.27572778371862672,-1.49616854060588]
[2010,"enero","2010-enero",{"$f":"IF('[1]REAL IPC(M)'!$AL250=\"\",\"\",+'[1]REAL IPC(M)'!$AL250)","v":4.7943640748766558},{"$f":"IF('[1]REAL IPC(M)'!$BE250=\"\",\"\",+'[1]REAL IPC(M)'!$BE250)","v":5.9736271846825062},{"$f":"IF('[1]REAL IPC(M)'!$AM250=\"\",\"\",+'[1]REAL IPC(M)'!$AM250)","v":4.8714247906868513},{"$f":"IF('[1]REAL IPC(M)'!$BI250=\"\",\"\",+'[1]REAL IPC(M)'!$BI250)","v":5.5756149731969629},{"$f":"IF('[1]REAL IMAE(M)'!BJ250=\"\",\"\",'[1]REAL IMAE(M)'!BJ250)","v":4.3604068701512677},{"$f":"IF('[1]REAL IMAE(M)'!BK250=\"\",\"\",'[1]REAL IMAE(M)'!BK250)","v":2.6228203806302419},{"$f":"IF('[1]REAL IMAE(M)'!BN250=\"\",\"\",'[1]REAL IMAE(M)'!BN250)","v":4.0639749599842512},{"$f":"IF('[1]REAL IMAE(M)'!BO250=\"\",\"\",'[1]REAL IMAE(M)'!BO250)","v":3.0345208194083151},{"$f":"IF('[1]EXT RIN(M)'!$K250=\"\",\"\",'[1]EXT RIN(M)'!$K250)","v":18653.893631118262},"",{"$f":"IF('[1]EXT RIN(M)'!$L250=\"\",\"\",'[1]EXT RIN(M)'!$L250)","v":21394.703254338263},"",{"$f":"IF('[1]MONE(M)CARD'!EG250=\"\",\"\",'[1]MONE(M)CARD'!EG250)","v":19423.495815189355},{"$f":"IF('[1]MONE(M)CARD'!EK250=\"\",\"\",'[1]MONE(M)CARD'!EK250)","v":33007.023182615434},{"$f":"IF('[1]MONE(M)CARD'!EP250=\"\",\"\",'[1]MONE(M)CARD'!EP250)","v":19446.844484089568},{"$f":"IF('[1]MONE(M)CARD'!ES250=\"\",\"\",'[1]MONE(M)CARD'!ES250)","v":6.8409227869689282},{"$f":"IF('[1]MONE(M)CARD'!EV250=\"\",\"\",'[1]MONE(M)CARD'!EV250)","v":4.503890957858192},{"$f":"IF('[1]MONE(M)CARD'!EZ250=\"\",\"\",'[1]MONE(M)CARD'!EZ250)","v":6.6922485453676073},{"$f":"IF('[1]MONE(M)CAPARD'!FC250=\"\",\"\",'[1]MONE(M)CAPARD'!FC250)","v":23923.459367018357},{"$f":"IF('[1]MONE(M)CAPARD'!FG250=\"\",\"\",'[1]MONE(M)CAPARD'!FG250)","v":50687.226298965441},{"$f":"IF('[1]MONE(M)CAPARD'!FL250=\"\",\"\",'[1]MONE(M)CAPARD'!FL250)","v":19446.844484089568},{"$f":"IF('[1]MONE(M)CAPARD'!FO250=\"\",\"\",'[1]MONE(M)CAPARD'!FO250)","v":9.2691746600703553},{"$f":"IF('[1]MONE(M)CAPARD'!FR250=\"\",\"\",'[1]MONE(M)CAPARD'!FR250)","v":6.8721867366786871},{"$f":"IF('[1]MONE(M)CAPARD'!FV250=\"\",\"\",'[1]MONE(M)CAPARD'!FV250)","v":8.0984368096909556},{"$f":"IF('[1]MONE(M)CARD'!FV250=\"\",\"\",'[1]MONE(M)CARD'!FV250)","v":2087.8962846441409},{"$f":"IF('[1]MONE(M)CARD'!GD250=\"\",\"\",'[1]MONE(M)CARD'!GD250)","v":59.421618244687515},{"$f":"IF('[1]MONE(M)CARD'!GE250=\"\",\"\",'[1]MONE(M)CARD'!GE250)","v":5626.077156542392},14.625254545588607,{"$f":"IF('[9]II.2.Balance OSD-Activos'!J108=\"\",\"\",'[9]II.2.Balance OSD-Activos'!J108)","v":168.47927485651513},{"$f":"IF('[9]II.2.Balance OSD-Activos'!N108=\"\",\"\",'[9]II.2.Balance OSD-Activos'!N108)","v":331.26101516861002},{"$f":"IF('[9]II.2.Balance OSD-Activos'!R108=\"\",\"\",'[9]II.2.Balance OSD-Activos'!R108)","v":23859.431781200357},{"$f":"IF('[9]II.2.Balance OSD-Activos'!S108=\"\",\"\",'[9]II.2.Balance OSD-Activos'!S108)","v":27413.030342047565},24027.911056056873,51772.202413273044,45.144497078892186,0.42548321314253013,-13.768180291838284,0.20747234784321833,0.88150536875610808,0.56026738460086545,1.794424062963107,{"$f":"IF('[1]MONE(M)CAPARD'!GS250=\"\",\"\",'[1]MONE(M)CAPARD'!GS250)","v":10746.099466045986},{"$f":"IF('[1]MONE(M)CARD'!HA250=\"\",\"\",'[1]MONE(M)CAPARD'!HA250)","v":6191.5248930123907},{"$f":"IF('[1]MONE(M)CAPARD'!HB250=\"\",\"\",'[1]MONE(M)CAPARD'!HB250)","v":4554.5745730335948},"n.d.",{"$f":"IF('[10]II.2.Balance OSD-Activos'!J108=\"\",\"\",'[10]II.2.Balance OSD-Activos'!J108)","v":457.85124430651513},{"$f":"IF('[10]II.2.Balance OSD-Activos'!N108=\"\",\"\",'[10]II.2.Balance OSD-Activos'!N108)","v":733.05624012860994},{"$f":"IF('[10]II.2.Balance OSD-Activos'!R108=\"\",\"\",'[10]II.2.Balance OSD-Activos'!R108)","v":33579.064080040356},{"$f":"IF('[10]II.2.Balance OSD-Activos'!S108=\"\",\"\",'[10]II.2.Balance OSD-Activos'!S108)","v":36878.088477097568},34036.915324346868,71648.060041573044,9.6999427721043965,-1.1473389426958192,-10.267152664656997,-1.2804375623946762,2.7548502568273348,0.71659291668109137,1.1069583731991073,{"$f":"IF('[1]MONE(M)CAPARD'!AS250=\"\",\"\",'[1]MONE(M)CAPARD'!AS250)","v":9},{"$f":"IF('[1]MONE(M)CAPARD'!AT250=\"\",\"\",'[1]MONE(M)CAPARD'!AT250)","v":"n.a."},{"$f":"IF('[1]MONE(M)CAPARD'!AU250=\"\",\"\",'[1]MONE(M)CAPARD'!AU250)","v":4.5},{"$f":"IF('[1]MONE(M)CAPARD'!AV250=\"\",\"\",'[1]MONE(M)CAPARD'!AV250)","v":4.5},{"$f":"IF('[1]MONE(M)CAPARD'!AW250=\"\",\"\",'[1]MONE(M)CAPARD'!AW250)","v":"n.a."},{"$f":"IF('[1]MONE(M)CAPARD'!AX250=\"\",\"\",'[1]MONE(M)CAPARD'!AX250)","v":4},{"$f":"IF('[1]MONE(M)CAPARD'!AY250=\"\",\"\",'[1]MONE(M)CAPARD'!AY250)","v":"n.a."},{"$f":"IF('[1]FISCAL(M)'!$K250=\"\",\"\",'[1]FISCAL(M)'!$K250)","v":-95.369500163009349},{"$f":"IF('[1]FISCAL(M)'!$L250=\"\",\"\",'[1]FISCAL(M)'!$L250)","v":-197.07157366300933},{"$f":"IF('[1]FISCAL(M)'!$AY250=\"\",\"\",'[1]FISCAL(M)'!$AY250)","v":"n.d."},{"$f":"IF('[1]FISCAL(M)'!$BI250=\"\",\"\",'[1]FISCAL(M)'!$BI250)","v":"n.d."},{"$f":"IF('[1]FISCAL(M)'!$BS250=\"\",\"\",'[1]FISCAL(M)'!$BS250)","v":"n.d."},{"$f":"IF('[1]FISCAL(M)'!$AZ250=\"\",\"\",'[1]FISCAL(M)'!$AZ250)","v":"n.d."},{"$f":"IF('[1]FISCAL(M)'!$BJ250=\"\",\"\",'[1]FISCAL(M)'!$BJ250)","v":"n.d."},{"$f":"IF('[1]FISCAL(M)'!$BT250=\"\",\"\",'[1]FISCAL(M)'!$BT250)","v":"n.d."},{"$f":"IF('[2]MONE(M)'!$AO250=\"\",\"\",'[2]MONE(M)'!$AO250)","v":8837210.8583729882},{"$f":"IF('[3]MONE(M)'!$AO250=\"\",\"\",'[3]MONE(M)'!$AO250)","v":8649.4190385201528},{"$f":"IF('[4]MONE(M)'!$AO250=\"\",\"\",'[4]MONE(M)'!$AO250)","v":83425.302783254505},{"$f":"IF('[5]MONE(M)'!$AO250=\"\",\"\",'[5]MONE(M)'!$AO250)","v":139130.11851586917},{"$f":"IF('[6]MONE(M)'!$AO250=\"\",\"\",'[6]MONE(M)'!$AO250)","v":42687.054203158041},{"$f":"IF('[7]MONE(M)'!$AO250=\"\",\"\",'[7]MONE(M)'!$AO250)","v":362454.93796988996},{"$f":"IF('[8]MONE(M)'!$AO250=\"\",\"\",'[8]MONE(M)'!$AO250)","v":19917.52864158},6.3611273081439101,-5.3937263513163192,0.68490266692415869,1.9444348866115568,-6.6741122536062019,10.827182775303257,1.5022583036576886,{"$f":"IF('[1]FISCAL(M)'!$K250=\"\",\"\",'[1]FISCAL(M)'!$K250)","v":-95.369500163009349},{"$f":"+'[1]REAL(A)'!$AO$30","v":"n.d."},"n.d.",{"$f":"IF('[1]FISCAL(M)'!$L250=\"\",\"\",'[1]FISCAL(M)'!$L250)","v":-197.07157366300933},{"$f":"+'[1]REAL(A)'!$AP$30","v":"n.d."},"n.d.",73254.156662024267,{"$f":"'[1]Gráfico REM'!BG244","v":14911.017259321981},{"$f":"'[1]Gráfico REM'!BH244","v":54006.985437283125},{"$f":"'[1]Gráfico REM'!BI244","v":4336.1539654191565},4.8184492111931876,26.563195393173377,1.4196557927823372,-10.672436430011345,107636.80186790426,{"$f":"'[1]Gráfico REM'!BK244","v":15739.494037961982},{"$f":"'[1]Gráfico REM'!BL244","v":73924.514078863125},{"$f":"'[1]Gráfico REM'!BM244","v":17972.793751079156},3.757797341182334,26.141432229860605,1.441898204885339,-2.2533171150366127]
[2010,"febrero","2010-febrero",{"$f":"IF('[1]REAL IPC(M)'!$AL251=\"\",\"\",+'[1]REAL IPC(M)'!$AL251)","v":5.0677123754345521},{"$f":"IF('[1]REAL IPC(M)'!$BE251=\"\",\"\",+'[1]REAL IPC(M)'!$BE251)","v":5.9180162453632335},{"$f":"IF('[1]REAL IPC(M)'!$AM251=\"\",\"\",+'[1]REAL IPC(M)'!$AM251)","v":5.128744523358808},{"$f":"IF('[1]REAL IPC(M)'!$BI251=\"\",\"\",+'[1]REAL IPC(M)'!$BI251)","v":5.5154602587563994},{"$f":"IF('[1]REAL IMAE(M)'!BJ251=\"\",\"\",'[1]REAL IMAE(M)'!BJ251)","v":5.3155839675049776},{"$f":"IF('[1]REAL IMAE(M)'!BK251=\"\",\"\",'[1]REAL IMAE(M)'!BK251)","v":2.7184194585260668},{"$f":"IF('[1]REAL IMAE(M)'!BN251=\"\",\"\",'[1]REAL IMAE(M)'!BN251)","v":4.7753339209181567},{"$f":"IF('[1]REAL IMAE(M)'!BO251=\"\",\"\",'[1]REAL IMAE(M)'!BO251)","v":3.1421936330420008},{"$f":"IF('[1]EXT RIN(M)'!$K251=\"\",\"\",'[1]EXT RIN(M)'!$K251)","v":18456.284649492049},"",{"$f":"IF('[1]EXT RIN(M)'!$L251=\"\",\"\",'[1]EXT RIN(M)'!$L251)","v":21154.947260702051},"",{"$f":"IF('[1]MONE(M)CARD'!EG251=\"\",\"\",'[1]MONE(M)CARD'!EG251)","v":19245.146778951126},{"$f":"IF('[1]MONE(M)CARD'!EK251=\"\",\"\",'[1]MONE(M)CARD'!EK251)","v":33579.947783732001},{"$f":"IF('[1]MONE(M)CARD'!EP251=\"\",\"\",'[1]MONE(M)CARD'!EP251)","v":19826.392298175531},{"$f":"IF('[1]MONE(M)CARD'!ES251=\"\",\"\",'[1]MONE(M)CARD'!ES251)","v":9.7577743403588268},{"$f":"IF('[1]MONE(M)CARD'!EV251=\"\",\"\",'[1]MONE(M)CARD'!EV251)","v":6.2200232790703414},{"$f":"IF('[1]MONE(M)CARD'!EZ251=\"\",\"\",'[1]MONE(M)CARD'!EZ251)","v":8.0128358991267348},{"$f":"IF('[1]MONE(M)CAPARD'!FC251=\"\",\"\",'[1]MONE(M)CAPARD'!FC251)","v":23560.028974820125},{"$f":"IF('[1]MONE(M)CAPARD'!FG251=\"\",\"\",'[1]MONE(M)CAPARD'!FG251)","v":51470.439449111997},{"$f":"IF('[1]MONE(M)CAPARD'!FL251=\"\",\"\",'[1]MONE(M)CAPARD'!FL251)","v":19826.392298175531},{"$f":"IF('[1]MONE(M)CAPARD'!FO251=\"\",\"\",'[1]MONE(M)CAPARD'!FO251)","v":10.983021762607748},{"$f":"IF('[1]MONE(M)CAPARD'!FR251=\"\",\"\",'[1]MONE(M)CAPARD'!FR251)","v":8.0959513607976383},{"$f":"IF('[1]MONE(M)CAPARD'!FV251=\"\",\"\",'[1]MONE(M)CAPARD'!FV251)","v":9.1047112185116408},{"$f":"IF('[1]MONE(M)CARD'!FV251=\"\",\"\",'[1]MONE(M)CARD'!FV251)","v":2149.2692139288347},{"$f":"IF('[1]MONE(M)CARD'!GD251=\"\",\"\",'[1]MONE(M)CARD'!GD251)","v":63.101758817313602},{"$f":"IF('[1]MONE(M)CARD'!GE251=\"\",\"\",'[1]MONE(M)CARD'!GE251)","v":5554.4047684859543},9.6802787791046221,{"$f":"IF('[9]II.2.Balance OSD-Activos'!J109=\"\",\"\",'[9]II.2.Balance OSD-Activos'!J109)","v":177.53425087528387},{"$f":"IF('[9]II.2.Balance OSD-Activos'!N109=\"\",\"\",'[9]II.2.Balance OSD-Activos'!N109)","v":325.2546168496433},{"$f":"IF('[9]II.2.Balance OSD-Activos'!R109=\"\",\"\",'[9]II.2.Balance OSD-Activos'!R109)","v":23954.082077344086},{"$f":"IF('[9]II.2.Balance OSD-Activos'!S109=\"\",\"\",'[9]II.2.Balance OSD-Activos'!S109)","v":27521.73166209491},24131.61632821937,51978.602607163921,28.906869962205306,0.10836525405217845,-13.422876493322654,-5.7115835710630503E-2,2.987731351280698,1.5118116363495249,0.95154425174865942,{"$f":"IF('[1]MONE(M)CAPARD'!GS251=\"\",\"\",'[1]MONE(M)CAPARD'!GS251)","v":11087.266652195431},{"$f":"IF('[1]MONE(M)CARD'!HA251=\"\",\"\",'[1]MONE(M)CAPARD'!HA251)","v":6132.8908782159542},{"$f":"IF('[1]MONE(M)CAPARD'!HB251=\"\",\"\",'[1]MONE(M)CAPARD'!HB251)","v":4954.3757739794764},"n.d.",{"$f":"IF('[10]II.2.Balance OSD-Activos'!J109=\"\",\"\",'[10]II.2.Balance OSD-Activos'!J109)","v":455.70228323928393},{"$f":"IF('[10]II.2.Balance OSD-Activos'!N109=\"\",\"\",'[10]II.2.Balance OSD-Activos'!N109)","v":731.02489094964324},{"$f":"IF('[10]II.2.Balance OSD-Activos'!R109=\"\",\"\",'[10]II.2.Balance OSD-Activos'!R109)","v":33876.196776424084},{"$f":"IF('[10]II.2.Balance OSD-Activos'!S109=\"\",\"\",'[10]II.2.Balance OSD-Activos'!S109)","v":36873.703758954907},34331.899059663367,71936.627709567925,5.708747305274664,-0.84532038612513682,-10.717205222656922,-0.92795037642865452,3.9256466613379448,1.4274594436391563,0.71086652695806496,{"$f":"IF('[1]MONE(M)CAPARD'!AS251=\"\",\"\",'[1]MONE(M)CAPARD'!AS251)","v":9},{"$f":"IF('[1]MONE(M)CAPARD'!AT251=\"\",\"\",'[1]MONE(M)CAPARD'!AT251)","v":"n.a."},{"$f":"IF('[1]MONE(M)CAPARD'!AU251=\"\",\"\",'[1]MONE(M)CAPARD'!AU251)","v":4.5},{"$f":"IF('[1]MONE(M)CAPARD'!AV251=\"\",\"\",'[1]MONE(M)CAPARD'!AV251)","v":4.5},{"$f":"IF('[1]MONE(M)CAPARD'!AW251=\"\",\"\",'[1]MONE(M)CAPARD'!AW251)","v":"n.a."},{"$f":"IF('[1]MONE(M)CAPARD'!AX251=\"\",\"\",'[1]MONE(M)CAPARD'!AX251)","v":4},{"$f":"IF('[1]MONE(M)CAPARD'!AY251=\"\",\"\",'[1]MONE(M)CAPARD'!AY251)","v":"n.a."},{"$f":"IF('[1]FISCAL(M)'!$K251=\"\",\"\",'[1]FISCAL(M)'!$K251)","v":-863.30857097831381},{"$f":"IF('[1]FISCAL(M)'!$L251=\"\",\"\",'[1]FISCAL(M)'!$L251)","v":-1088.7713429883138},{"$f":"IF('[1]FISCAL(M)'!$AY251=\"\",\"\",'[1]FISCAL(M)'!$AY251)","v":"n.d."},{"$f":"IF('[1]FISCAL(M)'!$BI251=\"\",\"\",'[1]FISCAL(M)'!$BI251)","v":"n.d."},{"$f":"IF('[1]FISCAL(M)'!$BS251=\"\",\"\",'[1]FISCAL(M)'!$BS251)","v":"n.d."},{"$f":"IF('[1]FISCAL(M)'!$AZ251=\"\",\"\",'[1]FISCAL(M)'!$AZ251)","v":"n.d."},{"$f":"IF('[1]FISCAL(M)'!$BJ251=\"\",\"\",'[1]FISCAL(M)'!$BJ251)","v":"n.d."},{"$f":"IF('[1]FISCAL(M)'!$BT251=\"\",\"\",'[1]FISCAL(M)'!$BT251)","v":"n.d."},{"$f":"IF('[2]MONE(M)'!$AO251=\"\",\"\",'[2]MONE(M)'!$AO251)","v":8818985.6963433195},{"$f":"IF('[3]MONE(M)'!$AO251=\"\",\"\",'[3]MONE(M)'!$AO251)","v":8544.8003358301357},{"$f":"IF('[4]MONE(M)'!$AO251=\"\",\"\",'[4]MONE(M)'!$AO251)","v":82435.750228346878},{"$f":"IF('[5]MONE(M)'!$AO251=\"\",\"\",'[5]MONE(M)'!$AO251)","v":139065.219910154},{"$f":"IF('[6]MONE(M)'!$AO251=\"\",\"\",'[6]MONE(M)'!$AO251)","v":42452.827677035995},{"$f":"IF('[7]MONE(M)'!$AO251=\"\",\"\",'[7]MONE(M)'!$AO251)","v":367857.60218207998},{"$f":"IF('[8]MONE(M)'!$AO251=\"\",\"\",'[8]MONE(M)'!$AO251)","v":20013.656144679},4.8475397809677023,-6.3219050633716805,-0.4549456724735057,1.7579687403344479,-6.9173471035634542,12.957411814775433,1.7389908128091935,{"$f":"IF('[1]FISCAL(M)'!$K251=\"\",\"\",'[1]FISCAL(M)'!$K251)","v":-863.30857097831381},{"$f":"+'[1]REAL(A)'!$AO$30","v":"n.d."},"n.d.",{"$f":"IF('[1]FISCAL(M)'!$L251=\"\",\"\",'[1]FISCAL(M)'!$L251)","v":-1088.7713429883138},{"$f":"+'[1]REAL(A)'!$AP$30","v":"n.d."},"n.d.",73927.893196894118,{"$f":"'[1]Gráfico REM'!BG245","v":15343.086338574079},{"$f":"'[1]Gráfico REM'!BH245","v":54242.514763199106},{"$f":"'[1]Gráfico REM'!BI245","v":4342.292095120938},5.9760957126723691,28.207961261346505,2.1852547032499725,-7.7904723477571158,108567.54699252412,{"$f":"'[1]Gráfico REM'!BK245","v":16281.61129395408},{"$f":"'[1]Gráfico REM'!BL245","v":74256.170907878113},{"$f":"'[1]Gráfico REM'!BM245","v":18029.764790691937},3.6563310333357357,28.335376317992676,2.0645919283625913,-6.5675686536734279]
[2010,"marzo","2010-marzo",{"$f":"IF('[1]REAL IPC(M)'!$AL252=\"\",\"\",+'[1]REAL IPC(M)'!$AL252)","v":5.8242773552330984},{"$f":"IF('[1]REAL IPC(M)'!$BE252=\"\",\"\",+'[1]REAL IPC(M)'!$BE252)","v":5.8696985487717734},{"$f":"IF('[1]REAL IPC(M)'!$AM252=\"\",\"\",+'[1]REAL IPC(M)'!$AM252)","v":5.8396230654528036},{"$f":"IF('[1]REAL IPC(M)'!$BI252=\"\",\"\",+'[1]REAL IPC(M)'!$BI252)","v":5.4621287099482663},{"$f":"IF('[1]REAL IMAE(M)'!BJ252=\"\",\"\",'[1]REAL IMAE(M)'!BJ252)","v":5.7935519003358138},{"$f":"IF('[1]REAL IMAE(M)'!BK252=\"\",\"\",'[1]REAL IMAE(M)'!BK252)","v":2.8129397898400077},{"$f":"IF('[1]REAL IMAE(M)'!BN252=\"\",\"\",'[1]REAL IMAE(M)'!BN252)","v":5.0834747603439645},{"$f":"IF('[1]REAL IMAE(M)'!BO252=\"\",\"\",'[1]REAL IMAE(M)'!BO252)","v":3.2509788887995938},{"$f":"IF('[1]EXT RIN(M)'!$K252=\"\",\"\",'[1]EXT RIN(M)'!$K252)","v":18137.456825361493},"",{"$f":"IF('[1]EXT RIN(M)'!$L252=\"\",\"\",'[1]EXT RIN(M)'!$L252)","v":21001.003596121493},"",{"$f":"IF('[1]MONE(M)CARD'!EG252=\"\",\"\",'[1]MONE(M)CARD'!EG252)","v":20089.618517984032},{"$f":"IF('[1]MONE(M)CARD'!EK252=\"\",\"\",'[1]MONE(M)CARD'!EK252)","v":34115.599747471446},{"$f":"IF('[1]MONE(M)CARD'!EP252=\"\",\"\",'[1]MONE(M)CARD'!EP252)","v":20335.0708841905},{"$f":"IF('[1]MONE(M)CARD'!ES252=\"\",\"\",'[1]MONE(M)CARD'!ES252)","v":14.589731452275799},{"$f":"IF('[1]MONE(M)CARD'!EV252=\"\",\"\",'[1]MONE(M)CARD'!EV252)","v":8.1956003685833778},{"$f":"IF('[1]MONE(M)CARD'!EZ252=\"\",\"\",'[1]MONE(M)CARD'!EZ252)","v":9.9206139736444765},{"$f":"IF('[1]MONE(M)CAPARD'!FC252=\"\",\"\",'[1]MONE(M)CAPARD'!FC252)","v":24486.502768394028},{"$f":"IF('[1]MONE(M)CAPARD'!FG252=\"\",\"\",'[1]MONE(M)CAPARD'!FG252)","v":52012.112070861447},{"$f":"IF('[1]MONE(M)CAPARD'!FL252=\"\",\"\",'[1]MONE(M)CAPARD'!FL252)","v":20335.0708841905},{"$f":"IF('[1]MONE(M)CAPARD'!FO252=\"\",\"\",'[1]MONE(M)CAPARD'!FO252)","v":15.817342516567701},{"$f":"IF('[1]MONE(M)CAPARD'!FR252=\"\",\"\",'[1]MONE(M)CAPARD'!FR252)","v":9.5660212474575346},{"$f":"IF('[1]MONE(M)CAPARD'!FV252=\"\",\"\",'[1]MONE(M)CAPARD'!FV252)","v":10.625082612466796},{"$f":"IF('[1]MONE(M)CARD'!FV252=\"\",\"\",'[1]MONE(M)CARD'!FV252)","v":2177.1792404336011},{"$f":"IF('[1]MONE(M)CARD'!GD252=\"\",\"\",'[1]MONE(M)CARD'!GD252)","v":54.352625301165936},{"$f":"IF('[1]MONE(M)CARD'!GE252=\"\",\"\",'[1]MONE(M)CARD'!GE252)","v":5715.8568336324633},15.556842578125284,{"$f":"IF('[9]II.2.Balance OSD-Activos'!J110=\"\",\"\",'[9]II.2.Balance OSD-Activos'!J110)","v":165.98553649606407},{"$f":"IF('[9]II.2.Balance OSD-Activos'!N110=\"\",\"\",'[9]II.2.Balance OSD-Activos'!N110)","v":329.04205887136641},{"$f":"IF('[9]II.2.Balance OSD-Activos'!R110=\"\",\"\",'[9]II.2.Balance OSD-Activos'!R110)","v":24215.148347347349},{"$f":"IF('[9]II.2.Balance OSD-Activos'!S110=\"\",\"\",'[9]II.2.Balance OSD-Activos'!S110)","v":27966.188741431481},24381.133883843413,52676.364684146261,35.864542434748969,2.1442319405015731,-11.186789405896446,1.9707540319329198,4.3672838064505504,3.2146537503544348,1.7028421140049099,{"$f":"IF('[1]MONE(M)CAPARD'!GS252=\"\",\"\",'[1]MONE(M)CAPARD'!GS252)","v":11549.29201431573},{"$f":"IF('[1]MONE(M)CARD'!HA252=\"\",\"\",'[1]MONE(M)CAPARD'!HA252)","v":6238.3009799824649},{"$f":"IF('[1]MONE(M)CAPARD'!HB252=\"\",\"\",'[1]MONE(M)CAPARD'!HB252)","v":5310.9910343332649},"n.d.",{"$f":"IF('[10]II.2.Balance OSD-Activos'!J110=\"\",\"\",'[10]II.2.Balance OSD-Activos'!J110)","v":458.63859182606404},{"$f":"IF('[10]II.2.Balance OSD-Activos'!N110=\"\",\"\",'[10]II.2.Balance OSD-Activos'!N110)","v":753.42927209136644},{"$f":"IF('[10]II.2.Balance OSD-Activos'!R110=\"\",\"\",'[10]II.2.Balance OSD-Activos'!R110)","v":34234.561348657357},{"$f":"IF('[10]II.2.Balance OSD-Activos'!S110=\"\",\"\",'[10]II.2.Balance OSD-Activos'!S110)","v":37383.354509681478},34693.199940483421,72829.983722256264,7.689923995294401,0.94714343453161653,-1.4747832676073491,0.86253772454101263,4.980493996142199,2.9512480777673877,1.5237886341282314,{"$f":"IF('[1]MONE(M)CAPARD'!AS252=\"\",\"\",'[1]MONE(M)CAPARD'!AS252)","v":9},{"$f":"IF('[1]MONE(M)CAPARD'!AT252=\"\",\"\",'[1]MONE(M)CAPARD'!AT252)","v":"n.a."},{"$f":"IF('[1]MONE(M)CAPARD'!AU252=\"\",\"\",'[1]MONE(M)CAPARD'!AU252)","v":4.5},{"$f":"IF('[1]MONE(M)CAPARD'!AV252=\"\",\"\",'[1]MONE(M)CAPARD'!AV252)","v":4.5},{"$f":"IF('[1]MONE(M)CAPARD'!AW252=\"\",\"\",'[1]MONE(M)CAPARD'!AW252)","v":"n.a."},{"$f":"IF('[1]MONE(M)CAPARD'!AX252=\"\",\"\",'[1]MONE(M)CAPARD'!AX252)","v":4},{"$f":"IF('[1]MONE(M)CAPARD'!AY252=\"\",\"\",'[1]MONE(M)CAPARD'!AY252)","v":"n.a."},{"$f":"IF('[1]FISCAL(M)'!$K252=\"\",\"\",'[1]FISCAL(M)'!$K252)","v":-1078.444058395826},{"$f":"IF('[1]FISCAL(M)'!$L252=\"\",\"\",'[1]FISCAL(M)'!$L252)","v":-1341.7893224558261},{"$f":"IF('[1]FISCAL(M)'!$AY252=\"\",\"\",'[1]FISCAL(M)'!$AY252)","v":60209.223628178835},{"$f":"IF('[1]FISCAL(M)'!$BI252=\"\",\"\",'[1]FISCAL(M)'!$BI252)","v":29565.556469796662},{"$f":"IF('[1]FISCAL(M)'!$BS252=\"\",\"\",'[1]FISCAL(M)'!$BS252)","v":30643.667158382174},{"$f":"IF('[1]FISCAL(M)'!$AZ252=\"\",\"\",'[1]FISCAL(M)'!$AZ252)","v":71377.070233068836},{"$f":"IF('[1]FISCAL(M)'!$BJ252=\"\",\"\",'[1]FISCAL(M)'!$BJ252)","v":30591.750703816659},{"$f":"IF('[1]FISCAL(M)'!$BT252=\"\",\"\",'[1]FISCAL(M)'!$BT252)","v":40777.736786542169},{"$f":"IF('[2]MONE(M)'!$AO252=\"\",\"\",'[2]MONE(M)'!$AO252)","v":8604176.8285778258},{"$f":"IF('[3]MONE(M)'!$AO252=\"\",\"\",'[3]MONE(M)'!$AO252)","v":8566.5012271243941},{"$f":"IF('[4]MONE(M)'!$AO252=\"\",\"\",'[4]MONE(M)'!$AO252)","v":81799.399276366516},{"$f":"IF('[5]MONE(M)'!$AO252=\"\",\"\",'[5]MONE(M)'!$AO252)","v":139300.3270845263},{"$f":"IF('[6]MONE(M)'!$AO252=\"\",\"\",'[6]MONE(M)'!$AO252)","v":41876.898141370002},{"$f":"IF('[7]MONE(M)'!$AO252=\"\",\"\",'[7]MONE(M)'!$AO252)","v":373254.36855220998},{"$f":"IF('[8]MONE(M)'!$AO252=\"\",\"\",'[8]MONE(M)'!$AO252)","v":20202.428194990003},1.8847691291064006,-5.7089838139304909,-1.785619035943975,1.9369577592874609,-7.8151813763154498,15.459624810257754,2.5564165107037518,{"$f":"IF('[1]FISCAL(M)'!$K252=\"\",\"\",'[1]FISCAL(M)'!$K252)","v":-1078.444058395826},{"$f":"+'[1]REAL(A)'!$AO$30","v":"n.d."},"n.d.",{"$f":"IF('[1]FISCAL(M)'!$L252=\"\",\"\",'[1]FISCAL(M)'!$L252)","v":-1341.7893224558261},{"$f":"+'[1]REAL(A)'!$AP$30","v":"n.d."},"n.d.",75728.829798309453,{"$f":"'[1]Gráfico REM'!BG246","v":16006.116160119313},{"$f":"'[1]Gráfico REM'!BH246","v":55031.269245848409},{"$f":"'[1]Gráfico REM'!BI246","v":4691.4443923417311},8.2201813186705728,30.137419756288253,3.8185455563551018,0.4578548937290039,110986.09838725944,{"$f":"'[1]Gráfico REM'!BK246","v":17050.166372259311},{"$f":"'[1]Gráfico REM'!BL246","v":75233.697440838412},{"$f":"'[1]Gráfico REM'!BM246","v":18702.234574161725},5.5743711973842869,31.355466487124374,3.4765864425037929,-3.7941141743328077]
[2010,"abril","2010-abril",{"$f":"IF('[1]REAL IPC(M)'!$AL253=\"\",\"\",+'[1]REAL IPC(M)'!$AL253)","v":5.83813387252059},{"$f":"IF('[1]REAL IPC(M)'!$BE253=\"\",\"\",+'[1]REAL IPC(M)'!$BE253)","v":5.8279359793673713},{"$f":"IF('[1]REAL IPC(M)'!$AM253=\"\",\"\",+'[1]REAL IPC(M)'!$AM253)","v":5.8482532151591604},{"$f":"IF('[1]REAL IPC(M)'!$BI253=\"\",\"\",+'[1]REAL IPC(M)'!$BI253)","v":5.4148311376576608},{"$f":"IF('[1]REAL IMAE(M)'!BJ253=\"\",\"\",'[1]REAL IMAE(M)'!BJ253)","v":5.5689410540193718},{"$f":"IF('[1]REAL IMAE(M)'!BK253=\"\",\"\",'[1]REAL IMAE(M)'!BK253)","v":2.9053303273705033},{"$f":"IF('[1]REAL IMAE(M)'!BN253=\"\",\"\",'[1]REAL IMAE(M)'!BN253)","v":5.1510587845482236},{"$f":"IF('[1]REAL IMAE(M)'!BO253=\"\",\"\",'[1]REAL IMAE(M)'!BO253)","v":3.359694979824801},{"$f":"IF('[1]EXT RIN(M)'!$K253=\"\",\"\",'[1]EXT RIN(M)'!$K253)","v":18370.5543492666},"",{"$f":"IF('[1]EXT RIN(M)'!$L253=\"\",\"\",'[1]EXT RIN(M)'!$L253)","v":21093.066739956601},"",{"$f":"IF('[1]MONE(M)CARD'!EG253=\"\",\"\",'[1]MONE(M)CARD'!EG253)","v":19922.059925638256},{"$f":"IF('[1]MONE(M)CARD'!EK253=\"\",\"\",'[1]MONE(M)CARD'!EK253)","v":34183.371782333823},{"$f":"IF('[1]MONE(M)CARD'!EP253=\"\",\"\",'[1]MONE(M)CARD'!EP253)","v":20300.829158838707},{"$f":"IF('[1]MONE(M)CARD'!ES253=\"\",\"\",'[1]MONE(M)CARD'!ES253)","v":16.003204681323414},{"$f":"IF('[1]MONE(M)CARD'!EV253=\"\",\"\",'[1]MONE(M)CARD'!EV253)","v":8.8965157026768651},{"$f":"IF('[1]MONE(M)CARD'!EZ253=\"\",\"\",'[1]MONE(M)CARD'!EZ253)","v":9.9736485902952587},{"$f":"IF('[1]MONE(M)CAPARD'!FC253=\"\",\"\",'[1]MONE(M)CAPARD'!FC253)","v":24425.497533708254},{"$f":"IF('[1]MONE(M)CAPARD'!FG253=\"\",\"\",'[1]MONE(M)CAPARD'!FG253)","v":52270.343262083828},{"$f":"IF('[1]MONE(M)CAPARD'!FL253=\"\",\"\",'[1]MONE(M)CAPARD'!FL253)","v":20300.829158838693},{"$f":"IF('[1]MONE(M)CAPARD'!FO253=\"\",\"\",'[1]MONE(M)CAPARD'!FO253)","v":17.398524491089717},{"$f":"IF('[1]MONE(M)CAPARD'!FR253=\"\",\"\",'[1]MONE(M)CAPARD'!FR253)","v":10.213632469332779},{"$f":"IF('[1]MONE(M)CAPARD'!FV253=\"\",\"\",'[1]MONE(M)CAPARD'!FV253)","v":10.775572769436149},{"$f":"IF('[1]MONE(M)CARD'!FV253=\"\",\"\",'[1]MONE(M)CARD'!FV253)","v":2186.0588567392947},{"$f":"IF('[1]MONE(M)CARD'!GD253=\"\",\"\",'[1]MONE(M)CARD'!GD253)","v":166.29117531433283},{"$f":"IF('[1]MONE(M)CARD'!GE253=\"\",\"\",'[1]MONE(M)CARD'!GE253)","v":6103.988777145727},15.925398050138572,{"$f":"IF('[9]II.2.Balance OSD-Activos'!J111=\"\",\"\",'[9]II.2.Balance OSD-Activos'!J111)","v":173.23468558219844},{"$f":"IF('[9]II.2.Balance OSD-Activos'!N111=\"\",\"\",'[9]II.2.Balance OSD-Activos'!N111)","v":328.08868578626357},{"$f":"IF('[9]II.2.Balance OSD-Activos'!R111=\"\",\"\",'[9]II.2.Balance OSD-Activos'!R111)","v":24260.343094468197},{"$f":"IF('[9]II.2.Balance OSD-Activos'!S111=\"\",\"\",'[9]II.2.Balance OSD-Activos'!S111)","v":28154.677100961988},24433.577780050397,52916.343566798649,51.547913898489362,3.2293970394367655,-9.0201522792630389,2.9949108267339319,5.2934289269388479,4.2294798127814781,1.0148260624270433,{"$f":"IF('[1]MONE(M)CAPARD'!GS253=\"\",\"\",'[1]MONE(M)CAPARD'!GS253)","v":11590.905270700205},{"$f":"IF('[1]MONE(M)CARD'!HA253=\"\",\"\",'[1]MONE(M)CAPARD'!HA253)","v":6620.7922451957274},{"$f":"IF('[1]MONE(M)CAPARD'!HB253=\"\",\"\",'[1]MONE(M)CAPARD'!HB253)","v":4970.1130255044773},"n.d.",{"$f":"IF('[10]II.2.Balance OSD-Activos'!J111=\"\",\"\",'[10]II.2.Balance OSD-Activos'!J111)","v":472.83779432219853},{"$f":"IF('[10]II.2.Balance OSD-Activos'!N111=\"\",\"\",'[10]II.2.Balance OSD-Activos'!N111)","v":593.79787148626349},{"$f":"IF('[10]II.2.Balance OSD-Activos'!R111=\"\",\"\",'[10]II.2.Balance OSD-Activos'!R111)","v":34339.957730628194},{"$f":"IF('[10]II.2.Balance OSD-Activos'!S111=\"\",\"\",'[10]II.2.Balance OSD-Activos'!S111)","v":37671.620314491985},34812.795524950394,73078.213710928641,14.051753398735256,1.9414037537868634,-23.325373505258362,1.7925762326753025,5.8468965642967108,3.6351097575268776,0.68386167975948986,{"$f":"IF('[1]MONE(M)CAPARD'!AS253=\"\",\"\",'[1]MONE(M)CAPARD'!AS253)","v":9},{"$f":"IF('[1]MONE(M)CAPARD'!AT253=\"\",\"\",'[1]MONE(M)CAPARD'!AT253)","v":"n.a."},{"$f":"IF('[1]MONE(M)CAPARD'!AU253=\"\",\"\",'[1]MONE(M)CAPARD'!AU253)","v":4.5},{"$f":"IF('[1]MONE(M)CAPARD'!AV253=\"\",\"\",'[1]MONE(M)CAPARD'!AV253)","v":4.5},{"$f":"IF('[1]MONE(M)CAPARD'!AW253=\"\",\"\",'[1]MONE(M)CAPARD'!AW253)","v":"n.a."},{"$f":"IF('[1]MONE(M)CAPARD'!AX253=\"\",\"\",'[1]MONE(M)CAPARD'!AX253)","v":4},{"$f":"IF('[1]MONE(M)CAPARD'!AY253=\"\",\"\",'[1]MONE(M)CAPARD'!AY253)","v":"n.a."},{"$f":"IF('[1]FISCAL(M)'!$K253=\"\",\"\",'[1]FISCAL(M)'!$K253)","v":-1197.0578386409393},{"$f":"IF('[1]FISCAL(M)'!$L253=\"\",\"\",'[1]FISCAL(M)'!$L253)","v":-1561.7305498009393},{"$f":"IF('[1]FISCAL(M)'!$AY253=\"\",\"\",'[1]FISCAL(M)'!$AY253)","v":"n.d."},{"$f":"IF('[1]FISCAL(M)'!$BI253=\"\",\"\",'[1]FISCAL(M)'!$BI253)","v":"n.d."},{"$f":"IF('[1]FISCAL(M)'!$BS253=\"\",\"\",'[1]FISCAL(M)'!$BS253)","v":"n.d."},{"$f":"IF('[1]FISCAL(M)'!$AZ253=\"\",\"\",'[1]FISCAL(M)'!$AZ253)","v":"n.d."},{"$f":"IF('[1]FISCAL(M)'!$BJ253=\"\",\"\",'[1]FISCAL(M)'!$BJ253)","v":"n.d."},{"$f":"IF('[1]FISCAL(M)'!$BT253=\"\",\"\",'[1]FISCAL(M)'!$BT253)","v":"n.d."},{"$f":"IF('[2]MONE(M)'!$AO253=\"\",\"\",'[2]MONE(M)'!$AO253)","v":8504879.9075303189},{"$f":"IF('[3]MONE(M)'!$AO253=\"\",\"\",'[3]MONE(M)'!$AO253)","v":8568.5771376201337},{"$f":"IF('[4]MONE(M)'!$AO253=\"\",\"\",'[4]MONE(M)'!$AO253)","v":81513.342282139725},{"$f":"IF('[5]MONE(M)'!$AO253=\"\",\"\",'[5]MONE(M)'!$AO253)","v":139989.61602877479},{"$f":"IF('[6]MONE(M)'!$AO253=\"\",\"\",'[6]MONE(M)'!$AO253)","v":41490.517651009999},{"$f":"IF('[7]MONE(M)'!$AO253=\"\",\"\",'[7]MONE(M)'!$AO253)","v":376748.87770019},{"$f":"IF('[8]MONE(M)'!$AO253=\"\",\"\",'[8]MONE(M)'!$AO253)","v":20355.594547479999},-0.70208311149574376,-4.9967733355476778,-1.5121892429780792,2.6701679870077211,-6.6670096316224221,16.027784085319663,3.1975802509886186,{"$f":"IF('[1]FISCAL(M)'!$K253=\"\",\"\",'[1]FISCAL(M)'!$K253)","v":-1197.0578386409393},{"$f":"+'[1]REAL(A)'!$AO$30","v":"n.d."},"n.d.",{"$f":"IF('[1]FISCAL(M)'!$L253=\"\",\"\",'[1]FISCAL(M)'!$L253)","v":-1561.7305498009393},{"$f":"+'[1]REAL(A)'!$AP$30","v":"n.d."},"n.d.",76397.827084897435,{"$f":"'[1]Gráfico REM'!BG247","v":16401.967981810849},{"$f":"'[1]Gráfico REM'!BH247","v":55202.469475000275},{"$f":"'[1]Gráfico REM'!BI247","v":4793.3896280863191},9.2917919000132354,30.776470531312626,4.624300219540789,4.2479942353573996,111738.76481415745,{"$f":"'[1]Gráfico REM'!BK247","v":17440.880439060849},{"$f":"'[1]Gráfico REM'!BL247","v":75558.064022480277},{"$f":"'[1]Gráfico REM'!BM247","v":18739.820352616312},6.3545543935487059,31.37180929337795,4.2360692100701147,-2.897936847442395]
[2010,"mayo ","2010-mayo ",{"$f":"IF('[1]REAL IPC(M)'!$AL254=\"\",\"\",+'[1]REAL IPC(M)'!$AL254)","v":6.0217871581738747},{"$f":"IF('[1]REAL IPC(M)'!$BE254=\"\",\"\",+'[1]REAL IPC(M)'!$BE254)","v":5.7919981630295769},{"$f":"IF('[1]REAL IPC(M)'!$AM254=\"\",\"\",+'[1]REAL IPC(M)'!$AM254)","v":6.0507234348566641},{"$f":"IF('[1]REAL IPC(M)'!$BI254=\"\",\"\",+'[1]REAL IPC(M)'!$BI254)","v":5.3728114692118023},{"$f":"IF('[1]REAL IMAE(M)'!BJ254=\"\",\"\",'[1]REAL IMAE(M)'!BJ254)","v":5.2864213109430125},{"$f":"IF('[1]REAL IMAE(M)'!BK254=\"\",\"\",'[1]REAL IMAE(M)'!BK254)","v":2.9947220898144833},{"$f":"IF('[1]REAL IMAE(M)'!BN254=\"\",\"\",'[1]REAL IMAE(M)'!BN254)","v":5.2124449378449622},{"$f":"IF('[1]REAL IMAE(M)'!BO254=\"\",\"\",'[1]REAL IMAE(M)'!BO254)","v":3.4672913717085807},{"$f":"IF('[1]EXT RIN(M)'!$K254=\"\",\"\",'[1]EXT RIN(M)'!$K254)","v":18531.941329973393},"",{"$f":"IF('[1]EXT RIN(M)'!$L254=\"\",\"\",'[1]EXT RIN(M)'!$L254)","v":21283.236425073392},"",{"$f":"IF('[1]MONE(M)CARD'!EG254=\"\",\"\",'[1]MONE(M)CARD'!EG254)","v":19813.369939233839},{"$f":"IF('[1]MONE(M)CARD'!EK254=\"\",\"\",'[1]MONE(M)CARD'!EK254)","v":34217.733854015409},{"$f":"IF('[1]MONE(M)CARD'!EP254=\"\",\"\",'[1]MONE(M)CARD'!EP254)","v":20502.907077195632},{"$f":"IF('[1]MONE(M)CARD'!ES254=\"\",\"\",'[1]MONE(M)CARD'!ES254)","v":14.573238498111829},{"$f":"IF('[1]MONE(M)CARD'!EV254=\"\",\"\",'[1]MONE(M)CARD'!EV254)","v":8.1052037774634211},{"$f":"IF('[1]MONE(M)CARD'!EZ254=\"\",\"\",'[1]MONE(M)CARD'!EZ254)","v":9.019355235481207},{"$f":"IF('[1]MONE(M)CAPARD'!FC254=\"\",\"\",'[1]MONE(M)CAPARD'!FC254)","v":24309.182017923835},{"$f":"IF('[1]MONE(M)CAPARD'!FG254=\"\",\"\",'[1]MONE(M)CAPARD'!FG254)","v":52361.36053555541},{"$f":"IF('[1]MONE(M)CAPARD'!FL254=\"\",\"\",'[1]MONE(M)CAPARD'!FL254)","v":20502.907077195632},{"$f":"IF('[1]MONE(M)CAPARD'!FO254=\"\",\"\",'[1]MONE(M)CAPARD'!FO254)","v":15.102679092538951},{"$f":"IF('[1]MONE(M)CAPARD'!FR254=\"\",\"\",'[1]MONE(M)CAPARD'!FR254)","v":9.2014858678084686},{"$f":"IF('[1]MONE(M)CAPARD'!FV254=\"\",\"\",'[1]MONE(M)CAPARD'!FV254)","v":9.6793812983775105},{"$f":"IF('[1]MONE(M)CARD'!FV254=\"\",\"\",'[1]MONE(M)CARD'!FV254)","v":2255.1833146269701},{"$f":"IF('[1]MONE(M)CARD'!GD254=\"\",\"\",'[1]MONE(M)CARD'!GD254)","v":69.88625815001997},{"$f":"IF('[1]MONE(M)CARD'!GE254=\"\",\"\",'[1]MONE(M)CARD'!GE254)","v":5750.9497110873754},3.8227054141798611,{"$f":"IF('[9]II.2.Balance OSD-Activos'!J112=\"\",\"\",'[9]II.2.Balance OSD-Activos'!J112)","v":159.45865982068568},{"$f":"IF('[9]II.2.Balance OSD-Activos'!N112=\"\",\"\",'[9]II.2.Balance OSD-Activos'!N112)","v":335.65240556868412},{"$f":"IF('[9]II.2.Balance OSD-Activos'!R112=\"\",\"\",'[9]II.2.Balance OSD-Activos'!R112)","v":24135.615577453791},{"$f":"IF('[9]II.2.Balance OSD-Activos'!S112=\"\",\"\",'[9]II.2.Balance OSD-Activos'!S112)","v":27977.172173491344},24295.074237274475,52607.898816334506,34.242857515976219,2.9730866265359035,-6.1775738722525286,2.8148601598383838,4.9491519570275644,3.949271700597512,-0.28020811218396613,{"$f":"IF('[1]MONE(M)CAPARD'!GS254=\"\",\"\",'[1]MONE(M)CAPARD'!GS254)","v":11517.572798213765},{"$f":"IF('[1]MONE(M)CARD'!HA254=\"\",\"\",'[1]MONE(M)CAPARD'!HA254)","v":6273.9961001873753},{"$f":"IF('[1]MONE(M)CAPARD'!HB254=\"\",\"\",'[1]MONE(M)CAPARD'!HB254)","v":5243.5766980263897},"n.d.",{"$f":"IF('[10]II.2.Balance OSD-Activos'!J112=\"\",\"\",'[10]II.2.Balance OSD-Activos'!J112)","v":465.0279898706857},{"$f":"IF('[10]II.2.Balance OSD-Activos'!N112=\"\",\"\",'[10]II.2.Balance OSD-Activos'!N112)","v":594.85185808868414},{"$f":"IF('[10]II.2.Balance OSD-Activos'!R112=\"\",\"\",'[10]II.2.Balance OSD-Activos'!R112)","v":34408.838231453788},{"$f":"IF('[10]II.2.Balance OSD-Activos'!S112=\"\",\"\",'[10]II.2.Balance OSD-Activos'!S112)","v":37610.723415281347},34873.866221324475,73079.441494694503,6.8978128519742832,2.3304036768371672,-25.066836472541397,2.2713476583991365,5.7121081583674682,3.7294658251192825,9.4356067592404891E-2,{"$f":"IF('[1]MONE(M)CAPARD'!AS254=\"\",\"\",'[1]MONE(M)CAPARD'!AS254)","v":9},{"$f":"IF('[1]MONE(M)CAPARD'!AT254=\"\",\"\",'[1]MONE(M)CAPARD'!AT254)","v":"n.a."},{"$f":"IF('[1]MONE(M)CAPARD'!AU254=\"\",\"\",'[1]MONE(M)CAPARD'!AU254)","v":4.5},{"$f":"IF('[1]MONE(M)CAPARD'!AV254=\"\",\"\",'[1]MONE(M)CAPARD'!AV254)","v":4.5},{"$f":"IF('[1]MONE(M)CAPARD'!AW254=\"\",\"\",'[1]MONE(M)CAPARD'!AW254)","v":"n.a."},{"$f":"IF('[1]MONE(M)CAPARD'!AX254=\"\",\"\",'[1]MONE(M)CAPARD'!AX254)","v":4},{"$f":"IF('[1]MONE(M)CAPARD'!AY254=\"\",\"\",'[1]MONE(M)CAPARD'!AY254)","v":"n.a."},{"$f":"IF('[1]FISCAL(M)'!$K254=\"\",\"\",'[1]FISCAL(M)'!$K254)","v":-1858.0639735979539},{"$f":"IF('[1]FISCAL(M)'!$L254=\"\",\"\",'[1]FISCAL(M)'!$L254)","v":-2278.2193341479542},{"$f":"IF('[1]FISCAL(M)'!$AY254=\"\",\"\",'[1]FISCAL(M)'!$AY254)","v":"n.d."},{"$f":"IF('[1]FISCAL(M)'!$BI254=\"\",\"\",'[1]FISCAL(M)'!$BI254)","v":"n.d."},{"$f":"IF('[1]FISCAL(M)'!$BS254=\"\",\"\",'[1]FISCAL(M)'!$BS254)","v":"n.d."},{"$f":"IF('[1]FISCAL(M)'!$AZ254=\"\",\"\",'[1]FISCAL(M)'!$AZ254)","v":"n.d."},{"$f":"IF('[1]FISCAL(M)'!$BJ254=\"\",\"\",'[1]FISCAL(M)'!$BJ254)","v":"n.d."},{"$f":"IF('[1]FISCAL(M)'!$BT254=\"\",\"\",'[1]FISCAL(M)'!$BT254)","v":"n.d."},{"$f":"IF('[2]MONE(M)'!$AO254=\"\",\"\",'[2]MONE(M)'!$AO254)","v":8825589.1578562409},{"$f":"IF('[3]MONE(M)'!$AO254=\"\",\"\",'[3]MONE(M)'!$AO254)","v":8503.3254258403067},{"$f":"IF('[4]MONE(M)'!$AO254=\"\",\"\",'[4]MONE(M)'!$AO254)","v":81267.267311881267},{"$f":"IF('[5]MONE(M)'!$AO254=\"\",\"\",'[5]MONE(M)'!$AO254)","v":139881.10307771558},{"$f":"IF('[6]MONE(M)'!$AO254=\"\",\"\",'[6]MONE(M)'!$AO254)","v":41287.002857567495},{"$f":"IF('[7]MONE(M)'!$AO254=\"\",\"\",'[7]MONE(M)'!$AO254)","v":382818.36672536994},{"$f":"IF('[8]MONE(M)'!$AO254=\"\",\"\",'[8]MONE(M)'!$AO254)","v":20682.085741309998},2.210087298394714,-4.5183681188196934,-1.9025357703262857,2.7376112088785653,-6.4562158384815156,15.978112131633093,4.4699929453112075,{"$f":"IF('[1]FISCAL(M)'!$K254=\"\",\"\",'[1]FISCAL(M)'!$K254)","v":-1858.0639735979539},{"$f":"+'[1]REAL(A)'!$AO$30","v":"n.d."},"n.d.",{"$f":"IF('[1]FISCAL(M)'!$L254=\"\",\"\",'[1]FISCAL(M)'!$L254)","v":-2278.2193341479542},{"$f":"+'[1]REAL(A)'!$AP$30","v":"n.d."},"n.d.",76275.491043221016,{"$f":"'[1]Gráfico REM'!BG248","v":16530.474182107144},{"$f":"'[1]Gráfico REM'!BH248","v":54925.175618489884},{"$f":"'[1]Gráfico REM'!BI248","v":4819.841242623992},8.5535361859483636,27.611203659760129,4.0800346615587957,6.1759650695466517,111770.59127873101,{"$f":"'[1]Gráfico REM'!BK248","v":17677.182254647145},{"$f":"'[1]Gráfico REM'!BL248","v":75607.261359799886},{"$f":"'[1]Gráfico REM'!BM248","v":18486.147664283992},5.9851274695745804,28.697595303209834,4.186416750405475,-3.4872446254352152]
[2010,"junio ","2010-junio ",{"$f":"IF('[1]REAL IPC(M)'!$AL255=\"\",\"\",+'[1]REAL IPC(M)'!$AL255)","v":5.3401713959206232},{"$f":"IF('[1]REAL IPC(M)'!$BE255=\"\",\"\",+'[1]REAL IPC(M)'!$BE255)","v":5.7611789305911154},{"$f":"IF('[1]REAL IPC(M)'!$AM255=\"\",\"\",+'[1]REAL IPC(M)'!$AM255)","v":5.3803042291503234},{"$f":"IF('[1]REAL IPC(M)'!$BI255=\"\",\"\",+'[1]REAL IPC(M)'!$BI255)","v":5.3353660444084072},{"$f":"IF('[1]REAL IMAE(M)'!BJ255=\"\",\"\",'[1]REAL IMAE(M)'!BJ255)","v":5.0393582206195608},{"$f":"IF('[1]REAL IMAE(M)'!BK255=\"\",\"\",'[1]REAL IMAE(M)'!BK255)","v":3.0804094831533568},{"$f":"IF('[1]REAL IMAE(M)'!BN255=\"\",\"\",'[1]REAL IMAE(M)'!BN255)","v":5.0799988825542153},{"$f":"IF('[1]REAL IMAE(M)'!BO255=\"\",\"\",'[1]REAL IMAE(M)'!BO255)","v":3.5728459533115098},{"$f":"IF('[1]EXT RIN(M)'!$K255=\"\",\"\",'[1]EXT RIN(M)'!$K255)","v":18724.881527917354},"",{"$f":"IF('[1]EXT RIN(M)'!$L255=\"\",\"\",'[1]EXT RIN(M)'!$L255)","v":21254.379828057354},"",{"$f":"IF('[1]MONE(M)CARD'!EG255=\"\",\"\",'[1]MONE(M)CARD'!EG255)","v":19500.243766450869},{"$f":"IF('[1]MONE(M)CARD'!EK255=\"\",\"\",'[1]MONE(M)CARD'!EK255)","v":34564.296555651446},{"$f":"IF('[1]MONE(M)CARD'!EP255=\"\",\"\",'[1]MONE(M)CARD'!EP255)","v":20827.202896986229},{"$f":"IF('[1]MONE(M)CARD'!ES255=\"\",\"\",'[1]MONE(M)CARD'!ES255)","v":13.341479220125141},{"$f":"IF('[1]MONE(M)CARD'!EV255=\"\",\"\",'[1]MONE(M)CARD'!EV255)","v":8.0083138831979603},{"$f":"IF('[1]MONE(M)CARD'!EZ255=\"\",\"\",'[1]MONE(M)CARD'!EZ255)","v":9.3321613900753562},{"$f":"IF('[1]MONE(M)CAPARD'!FC255=\"\",\"\",'[1]MONE(M)CAPARD'!FC255)","v":23971.572114220868},{"$f":"IF('[1]MONE(M)CAPARD'!FG255=\"\",\"\",'[1]MONE(M)CAPARD'!FG255)","v":52736.950848471446},{"$f":"IF('[1]MONE(M)CAPARD'!FL255=\"\",\"\",'[1]MONE(M)CAPARD'!FL255)","v":20827.202896986229},{"$f":"IF('[1]MONE(M)CAPARD'!FO255=\"\",\"\",'[1]MONE(M)CAPARD'!FO255)","v":13.392131413292518},{"$f":"IF('[1]MONE(M)CAPARD'!FR255=\"\",\"\",'[1]MONE(M)CAPARD'!FR255)","v":8.7301641018864284},{"$f":"IF('[1]MONE(M)CAPARD'!FV255=\"\",\"\",'[1]MONE(M)CAPARD'!FV255)","v":9.5995516800855931},{"$f":"IF('[1]MONE(M)CARD'!FV255=\"\",\"\",'[1]MONE(M)CARD'!FV255)","v":2314.9320657021522},{"$f":"IF('[1]MONE(M)CARD'!GD255=\"\",\"\",'[1]MONE(M)CARD'!GD255)","v":150.86533908357521},{"$f":"IF('[1]MONE(M)CARD'!GE255=\"\",\"\",'[1]MONE(M)CARD'!GE255)","v":5676.9820619678203},7.6251732247655024,{"$f":"IF('[9]II.2.Balance OSD-Activos'!J113=\"\",\"\",'[9]II.2.Balance OSD-Activos'!J113)","v":184.48015824387318},{"$f":"IF('[9]II.2.Balance OSD-Activos'!N113=\"\",\"\",'[9]II.2.Balance OSD-Activos'!N113)","v":331.10571518516815},{"$f":"IF('[9]II.2.Balance OSD-Activos'!R113=\"\",\"\",'[9]II.2.Balance OSD-Activos'!R113)","v":24134.838693052276},{"$f":"IF('[9]II.2.Balance OSD-Activos'!S113=\"\",\"\",'[9]II.2.Balance OSD-Activos'!S113)","v":28170.399455846255},24319.31885129615,52820.824022327572,14.73713851834515,3.2822473966983123,-8.0964694125366776,3.2034908617013969,5.4921478393028744,4.3672635685041872,0.4179918679066752,{"$f":"IF('[1]MONE(M)CAPARD'!GS255=\"\",\"\",'[1]MONE(M)CAPARD'!GS255)","v":11681.916664175071},{"$f":"IF('[1]MONE(M)CARD'!HA255=\"\",\"\",'[1]MONE(M)CAPARD'!HA255)","v":6219.9507391678217},{"$f":"IF('[1]MONE(M)CAPARD'!HB255=\"\",\"\",'[1]MONE(M)CAPARD'!HB255)","v":5461.9659250072491},"n.d.",{"$f":"IF('[10]II.2.Balance OSD-Activos'!J113=\"\",\"\",'[10]II.2.Balance OSD-Activos'!J113)","v":506.06816253387319},{"$f":"IF('[10]II.2.Balance OSD-Activos'!N113=\"\",\"\",'[10]II.2.Balance OSD-Activos'!N113)","v":591.19532917516813},{"$f":"IF('[10]II.2.Balance OSD-Activos'!R113=\"\",\"\",'[10]II.2.Balance OSD-Activos'!R113)","v":34857.736594732283},{"$f":"IF('[10]II.2.Balance OSD-Activos'!S113=\"\",\"\",'[10]II.2.Balance OSD-Activos'!S113)","v":38095.031299296257},35363.80475726616,74050.031385737588,7.7020924087964238,4.0060283029265564,-22.004147136497878,3.9542357430724318,6.8326064120374452,5.1573854223817328,1.4279195972624503,{"$f":"IF('[1]MONE(M)CAPARD'!AS255=\"\",\"\",'[1]MONE(M)CAPARD'!AS255)","v":9},{"$f":"IF('[1]MONE(M)CAPARD'!AT255=\"\",\"\",'[1]MONE(M)CAPARD'!AT255)","v":"n.a."},{"$f":"IF('[1]MONE(M)CAPARD'!AU255=\"\",\"\",'[1]MONE(M)CAPARD'!AU255)","v":4.5},{"$f":"IF('[1]MONE(M)CAPARD'!AV255=\"\",\"\",'[1]MONE(M)CAPARD'!AV255)","v":4.5},{"$f":"IF('[1]MONE(M)CAPARD'!AW255=\"\",\"\",'[1]MONE(M)CAPARD'!AW255)","v":"n.a."},{"$f":"IF('[1]MONE(M)CAPARD'!AX255=\"\",\"\",'[1]MONE(M)CAPARD'!AX255)","v":4},{"$f":"IF('[1]MONE(M)CAPARD'!AY255=\"\",\"\",'[1]MONE(M)CAPARD'!AY255)","v":"n.a."},{"$f":"IF('[1]FISCAL(M)'!$K255=\"\",\"\",'[1]FISCAL(M)'!$K255)","v":-2224.4434720055333},{"$f":"IF('[1]FISCAL(M)'!$L255=\"\",\"\",'[1]FISCAL(M)'!$L255)","v":-2605.0064542655332},{"$f":"IF('[1]FISCAL(M)'!$AY255=\"\",\"\",'[1]FISCAL(M)'!$AY255)","v":61817.195124306811},{"$f":"IF('[1]FISCAL(M)'!$BI255=\"\",\"\",'[1]FISCAL(M)'!$BI255)","v":30154.215124306804},{"$f":"IF('[1]FISCAL(M)'!$BS255=\"\",\"\",'[1]FISCAL(M)'!$BS255)","v":31662.980000000003},{"$f":"IF('[1]FISCAL(M)'!$AZ255=\"\",\"\",'[1]FISCAL(M)'!$AZ255)","v":72890.477326606808},{"$f":"IF('[1]FISCAL(M)'!$BJ255=\"\",\"\",'[1]FISCAL(M)'!$BJ255)","v":31075.245856956804},{"$f":"IF('[1]FISCAL(M)'!$BT255=\"\",\"\",'[1]FISCAL(M)'!$BT255)","v":41808.564761810005},{"$f":"IF('[2]MONE(M)'!$AO255=\"\",\"\",'[2]MONE(M)'!$AO255)","v":8962306.9691753425},{"$f":"IF('[3]MONE(M)'!$AO255=\"\",\"\",'[3]MONE(M)'!$AO255)","v":8484.9606546701216},{"$f":"IF('[4]MONE(M)'!$AO255=\"\",\"\",'[4]MONE(M)'!$AO255)","v":81717.678457745904},{"$f":"IF('[5]MONE(M)'!$AO255=\"\",\"\",'[5]MONE(M)'!$AO255)","v":139041.86977396454},{"$f":"IF('[6]MONE(M)'!$AO255=\"\",\"\",'[6]MONE(M)'!$AO255)","v":41612.398186554892},{"$f":"IF('[7]MONE(M)'!$AO255=\"\",\"\",'[7]MONE(M)'!$AO255)","v":388621.26708642003},{"$f":"IF('[8]MONE(M)'!$AO255=\"\",\"\",'[8]MONE(M)'!$AO255)","v":21453.668402280004},3.6693041549463734,-3.3973026866849998,-3.144465354728565E-2,2.2532038116427344,-4.7213197540997172,15.583381978274446,8.3730793533143277,{"$f":"IF('[1]FISCAL(M)'!$K255=\"\",\"\",'[1]FISCAL(M)'!$K255)","v":-2224.4434720055333},{"$f":"+'[1]REAL(A)'!$AO$30","v":"n.d."},"n.d.",{"$f":"IF('[1]FISCAL(M)'!$L255=\"\",\"\",'[1]FISCAL(M)'!$L255)","v":-2605.0064542655332},{"$f":"+'[1]REAL(A)'!$AP$30","v":"n.d."},"n.d.",77051.241170559515,{"$f":"'[1]Gráfico REM'!BG249","v":16784.482591135402},{"$f":"'[1]Gráfico REM'!BH249","v":55445.132375981339},{"$f":"'[1]Gráfico REM'!BI249","v":4821.6262034427782},8.6574027123706756,23.347957579135723,5.2909814489851659,3.7865860337583657,112899.05510393952,{"$f":"'[1]Gráfico REM'!BK249","v":17807.481714685404},{"$f":"'[1]Gráfico REM'!BL249","v":76898.800778261342},{"$f":"'[1]Gráfico REM'!BM249","v":18192.772610992779},6.0072161601134599,23.374132427194304,6.1330699551114032,-7.2388349626704702]
[2010,"julio","2010-julio",{"$f":"IF('[1]REAL IPC(M)'!$AL256=\"\",\"\",+'[1]REAL IPC(M)'!$AL256)","v":5.3922272839325158},{"$f":"IF('[1]REAL IPC(M)'!$BE256=\"\",\"\",+'[1]REAL IPC(M)'!$BE256)","v":5.7347922964245068},{"$f":"IF('[1]REAL IPC(M)'!$AM256=\"\",\"\",+'[1]REAL IPC(M)'!$AM256)","v":5.4581163216972373},{"$f":"IF('[1]REAL IPC(M)'!$BI256=\"\",\"\",+'[1]REAL IPC(M)'!$BI256)","v":5.3018396922105415},{"$f":"IF('[1]REAL IMAE(M)'!BJ256=\"\",\"\",'[1]REAL IMAE(M)'!BJ256)","v":4.7754207730378528},{"$f":"IF('[1]REAL IMAE(M)'!BK256=\"\",\"\",'[1]REAL IMAE(M)'!BK256)","v":3.1618282668410824},{"$f":"IF('[1]REAL IMAE(M)'!BN256=\"\",\"\",'[1]REAL IMAE(M)'!BN256)","v":4.9010713360380098},{"$f":"IF('[1]REAL IMAE(M)'!BO256=\"\",\"\",'[1]REAL IMAE(M)'!BO256)","v":3.675562858219239},{"$f":"IF('[1]EXT RIN(M)'!$K256=\"\",\"\",'[1]EXT RIN(M)'!$K256)","v":18484.677855956041},"",{"$f":"IF('[1]EXT RIN(M)'!$L256=\"\",\"\",'[1]EXT RIN(M)'!$L256)","v":20860.043667066042},"",{"$f":"IF('[1]MONE(M)CARD'!EG256=\"\",\"\",'[1]MONE(M)CARD'!EG256)","v":19858.333681183154},{"$f":"IF('[1]MONE(M)CARD'!EK256=\"\",\"\",'[1]MONE(M)CARD'!EK256)","v":34859.270686768919},{"$f":"IF('[1]MONE(M)CARD'!EP256=\"\",\"\",'[1]MONE(M)CARD'!EP256)","v":20975.016235714713},{"$f":"IF('[1]MONE(M)CARD'!ES256=\"\",\"\",'[1]MONE(M)CARD'!ES256)","v":17.016357047649944},{"$f":"IF('[1]MONE(M)CARD'!EV256=\"\",\"\",'[1]MONE(M)CARD'!EV256)","v":10.16929639558446},{"$f":"IF('[1]MONE(M)CARD'!EZ256=\"\",\"\",'[1]MONE(M)CARD'!EZ256)","v":10.694529196895708},{"$f":"IF('[1]MONE(M)CAPARD'!FC256=\"\",\"\",'[1]MONE(M)CAPARD'!FC256)","v":24367.42646530315},{"$f":"IF('[1]MONE(M)CAPARD'!FG256=\"\",\"\",'[1]MONE(M)CAPARD'!FG256)","v":53066.322731198925},{"$f":"IF('[1]MONE(M)CAPARD'!FL256=\"\",\"\",'[1]MONE(M)CAPARD'!FL256)","v":20975.016235714735},{"$f":"IF('[1]MONE(M)CAPARD'!FO256=\"\",\"\",'[1]MONE(M)CAPARD'!FO256)","v":17.742800976977158},{"$f":"IF('[1]MONE(M)CAPARD'!FR256=\"\",\"\",'[1]MONE(M)CAPARD'!FR256)","v":10.357805874423009},{"$f":"IF('[1]MONE(M)CAPARD'!FV256=\"\",\"\",'[1]MONE(M)CAPARD'!FV256)","v":10.72220835504325},{"$f":"IF('[1]MONE(M)CARD'!FV256=\"\",\"\",'[1]MONE(M)CARD'!FV256)","v":2456.4366888419522},{"$f":"IF('[1]MONE(M)CARD'!GD256=\"\",\"\",'[1]MONE(M)CARD'!GD256)","v":76.471965907491423},{"$f":"IF('[1]MONE(M)CARD'!GE256=\"\",\"\",'[1]MONE(M)CARD'!GE256)","v":5844.8208290680377},9.7386027386471952,{"$f":"IF('[9]II.2.Balance OSD-Activos'!J114=\"\",\"\",'[9]II.2.Balance OSD-Activos'!J114)","v":181.66830334531147},{"$f":"IF('[9]II.2.Balance OSD-Activos'!N114=\"\",\"\",'[9]II.2.Balance OSD-Activos'!N114)","v":334.35957217805958},{"$f":"IF('[9]II.2.Balance OSD-Activos'!R114=\"\",\"\",'[9]II.2.Balance OSD-Activos'!R114)","v":24262.609471794716},{"$f":"IF('[9]II.2.Balance OSD-Activos'!S114=\"\",\"\",'[9]II.2.Balance OSD-Activos'!S114)","v":28517.296128008238},24444.277775140028,53295.933475326325,47.037886090501324,3.1985267800884065,-4.7627120042492699,2.9686571222910629,7.9471624382145167,5.6294501387431639,1.2621865702389767,{"$f":"IF('[1]MONE(M)CAPARD'!GS256=\"\",\"\",'[1]MONE(M)CAPARD'!GS256)","v":11766.466507671254},{"$f":"IF('[1]MONE(M)CARD'!HA256=\"\",\"\",'[1]MONE(M)CAPARD'!HA256)","v":6399.3747504280373},{"$f":"IF('[1]MONE(M)CAPARD'!HB256=\"\",\"\",'[1]MONE(M)CAPARD'!HB256)","v":5367.0917572432163},"n.d.",{"$f":"IF('[10]II.2.Balance OSD-Activos'!J114=\"\",\"\",'[10]II.2.Balance OSD-Activos'!J114)","v":490.46382384531137},{"$f":"IF('[10]II.2.Balance OSD-Activos'!N114=\"\",\"\",'[10]II.2.Balance OSD-Activos'!N114)","v":594.78650435805946},{"$f":"IF('[10]II.2.Balance OSD-Activos'!R114=\"\",\"\",'[10]II.2.Balance OSD-Activos'!R114)","v":34994.406621004717},{"$f":"IF('[10]II.2.Balance OSD-Activos'!S114=\"\",\"\",'[10]II.2.Balance OSD-Activos'!S114)","v":38508.785588168241},35484.870444850028,74588.442537376337,14.594930855492061,4.0234334598389543,-19.661969209261198,3.8891107406350267,8.6941521933133536,6.1284211859181426,0.97103576353640975,{"$f":"IF('[1]MONE(M)CAPARD'!AS256=\"\",\"\",'[1]MONE(M)CAPARD'!AS256)","v":9},{"$f":"IF('[1]MONE(M)CAPARD'!AT256=\"\",\"\",'[1]MONE(M)CAPARD'!AT256)","v":"n.a."},{"$f":"IF('[1]MONE(M)CAPARD'!AU256=\"\",\"\",'[1]MONE(M)CAPARD'!AU256)","v":4.5},{"$f":"IF('[1]MONE(M)CAPARD'!AV256=\"\",\"\",'[1]MONE(M)CAPARD'!AV256)","v":4.5},{"$f":"IF('[1]MONE(M)CAPARD'!AW256=\"\",\"\",'[1]MONE(M)CAPARD'!AW256)","v":"n.a."},{"$f":"IF('[1]MONE(M)CAPARD'!AX256=\"\",\"\",'[1]MONE(M)CAPARD'!AX256)","v":4},{"$f":"IF('[1]MONE(M)CAPARD'!AY256=\"\",\"\",'[1]MONE(M)CAPARD'!AY256)","v":"n.a."},{"$f":"IF('[1]FISCAL(M)'!$K256=\"\",\"\",'[1]FISCAL(M)'!$K256)","v":-2604.2257263975675},{"$f":"IF('[1]FISCAL(M)'!$L256=\"\",\"\",'[1]FISCAL(M)'!$L256)","v":-3250.8090262775677},{"$f":"IF('[1]FISCAL(M)'!$AY256=\"\",\"\",'[1]FISCAL(M)'!$AY256)","v":"n.d."},{"$f":"IF('[1]FISCAL(M)'!$BI256=\"\",\"\",'[1]FISCAL(M)'!$BI256)","v":"n.d."},{"$f":"IF('[1]FISCAL(M)'!$BS256=\"\",\"\",'[1]FISCAL(M)'!$BS256)","v":"n.d."},{"$f":"IF('[1]FISCAL(M)'!$AZ256=\"\",\"\",'[1]FISCAL(M)'!$AZ256)","v":"n.d."},{"$f":"IF('[1]FISCAL(M)'!$BJ256=\"\",\"\",'[1]FISCAL(M)'!$BJ256)","v":"n.d."},{"$f":"IF('[1]FISCAL(M)'!$BT256=\"\",\"\",'[1]FISCAL(M)'!$BT256)","v":"n.d."},{"$f":"IF('[2]MONE(M)'!$AO256=\"\",\"\",'[2]MONE(M)'!$AO256)","v":8895899.6035036221},{"$f":"IF('[3]MONE(M)'!$AO256=\"\",\"\",'[3]MONE(M)'!$AO256)","v":8571.3796448501798},{"$f":"IF('[4]MONE(M)'!$AO256=\"\",\"\",'[4]MONE(M)'!$AO256)","v":81583.196911323554},{"$f":"IF('[5]MONE(M)'!$AO256=\"\",\"\",'[5]MONE(M)'!$AO256)","v":138596.93165477266},{"$f":"IF('[6]MONE(M)'!$AO256=\"\",\"\",'[6]MONE(M)'!$AO256)","v":41672.245527980005},{"$f":"IF('[7]MONE(M)'!$AO256=\"\",\"\",'[7]MONE(M)'!$AO256)","v":391413.49176891998},{"$f":"IF('[8]MONE(M)'!$AO256=\"\",\"\",'[8]MONE(M)'!$AO256)","v":21515.116758840002},1.8357025025104168,-2.4291612075385216,-0.5508553785808723,1.0552534649739265,-3.9996526908895658,15.699043023716651,8.4325793101126081,{"$f":"IF('[1]FISCAL(M)'!$K256=\"\",\"\",'[1]FISCAL(M)'!$K256)","v":-2604.2257263975675},{"$f":"+'[1]REAL(A)'!$AO$30","v":"n.d."},"n.d.",{"$f":"IF('[1]FISCAL(M)'!$L256=\"\",\"\",'[1]FISCAL(M)'!$L256)","v":-3250.8090262775677},{"$f":"+'[1]REAL(A)'!$AP$30","v":"n.d."},"n.d.",77995.397809093192,{"$f":"'[1]Gráfico REM'!BG250","v":17250.553124650953},{"$f":"'[1]Gráfico REM'!BH250","v":56027.21176564163},{"$f":"'[1]Gráfico REM'!BI250","v":4717.6329188006102},10.729279492806064,27.667150169496324,6.6277996830288455,7.6807761089313864,113823.2862764132,{"$f":"'[1]Gráfico REM'!BK250","v":18142.192657410953},{"$f":"'[1]Gráfico REM'!BL250","v":77542.328524481636},{"$f":"'[1]Gráfico REM'!BM250","v":18138.765094520608},7.6676275079808232,25.602296013544045,7.1225088932590053,-3.9592744478007869]
[2010,"agosto","2010-agosto",{"$f":"IF('[1]REAL IPC(M)'!$AL257=\"\",\"\",+'[1]REAL IPC(M)'!$AL257)","v":5.0548420539269445},{"$f":"IF('[1]REAL IPC(M)'!$BE257=\"\",\"\",+'[1]REAL IPC(M)'!$BE257)","v":5.7121503885028568},{"$f":"IF('[1]REAL IPC(M)'!$AM257=\"\",\"\",+'[1]REAL IPC(M)'!$AM257)","v":5.1457819908951263},{"$f":"IF('[1]REAL IPC(M)'!$BI257=\"\",\"\",+'[1]REAL IPC(M)'!$BI257)","v":5.2716039593519337},{"$f":"IF('[1]REAL IMAE(M)'!BJ257=\"\",\"\",'[1]REAL IMAE(M)'!BJ257)","v":4.779845276091188},{"$f":"IF('[1]REAL IMAE(M)'!BK257=\"\",\"\",'[1]REAL IMAE(M)'!BK257)","v":3.2385368452579222},{"$f":"IF('[1]REAL IMAE(M)'!BN257=\"\",\"\",'[1]REAL IMAE(M)'!BN257)","v":4.9458315551075938},{"$f":"IF('[1]REAL IMAE(M)'!BO257=\"\",\"\",'[1]REAL IMAE(M)'!BO257)","v":3.7747564846335901},{"$f":"IF('[1]EXT RIN(M)'!$K257=\"\",\"\",'[1]EXT RIN(M)'!$K257)","v":18216.653361855304},"",{"$f":"IF('[1]EXT RIN(M)'!$L257=\"\",\"\",'[1]EXT RIN(M)'!$L257)","v":20722.474156895303},"",{"$f":"IF('[1]MONE(M)CARD'!EG257=\"\",\"\",'[1]MONE(M)CARD'!EG257)","v":19782.32274328429},{"$f":"IF('[1]MONE(M)CARD'!EK257=\"\",\"\",'[1]MONE(M)CARD'!EK257)","v":34950.585969196283},{"$f":"IF('[1]MONE(M)CARD'!EP257=\"\",\"\",'[1]MONE(M)CARD'!EP257)","v":20952.951151395166},{"$f":"IF('[1]MONE(M)CARD'!ES257=\"\",\"\",'[1]MONE(M)CARD'!ES257)","v":16.420953518951787},{"$f":"IF('[1]MONE(M)CARD'!EV257=\"\",\"\",'[1]MONE(M)CARD'!EV257)","v":10.234709412173725},{"$f":"IF('[1]MONE(M)CARD'!EZ257=\"\",\"\",'[1]MONE(M)CARD'!EZ257)","v":10.2679469158935},{"$f":"IF('[1]MONE(M)CAPARD'!FC257=\"\",\"\",'[1]MONE(M)CAPARD'!FC257)","v":24358.444572424287},{"$f":"IF('[1]MONE(M)CAPARD'!FG257=\"\",\"\",'[1]MONE(M)CAPARD'!FG257)","v":53201.676316206285},{"$f":"IF('[1]MONE(M)CAPARD'!FL257=\"\",\"\",'[1]MONE(M)CAPARD'!FL257)","v":20952.951151395173},{"$f":"IF('[1]MONE(M)CAPARD'!FO257=\"\",\"\",'[1]MONE(M)CAPARD'!FO257)","v":16.299900856210225},{"$f":"IF('[1]MONE(M)CAPARD'!FR257=\"\",\"\",'[1]MONE(M)CAPARD'!FR257)","v":9.8735931629564391},{"$f":"IF('[1]MONE(M)CAPARD'!FV257=\"\",\"\",'[1]MONE(M)CAPARD'!FV257)","v":9.9756038576623638},{"$f":"IF('[1]MONE(M)CARD'!FV257=\"\",\"\",'[1]MONE(M)CARD'!FV257)","v":2472.800957740686},{"$f":"IF('[1]MONE(M)CARD'!GD257=\"\",\"\",'[1]MONE(M)CARD'!GD257)","v":84.314265508918979},{"$f":"IF('[1]MONE(M)CARD'!GE257=\"\",\"\",'[1]MONE(M)CARD'!GE257)","v":5760.9779849761699},11.723855204103728,{"$f":"IF('[9]II.2.Balance OSD-Activos'!J115=\"\",\"\",'[9]II.2.Balance OSD-Activos'!J115)","v":232.05222936356904},{"$f":"IF('[9]II.2.Balance OSD-Activos'!N115=\"\",\"\",'[9]II.2.Balance OSD-Activos'!N115)","v":324.65737870761382},{"$f":"IF('[9]II.2.Balance OSD-Activos'!R115=\"\",\"\",'[9]II.2.Balance OSD-Activos'!R115)","v":24420.115505887457},{"$f":"IF('[9]II.2.Balance OSD-Activos'!S115=\"\",\"\",'[9]II.2.Balance OSD-Activos'!S115)","v":28775.485331701679},24652.167735251027,53752.310445660318,107.77316946189556,6.099909808217352,-4.4705275765849155,5.6088260971757009,7.6906970148603593,{"$f":"IF(OR(AK250=\"\",AK238=\"\"),\"\",((AK250/AK238)-1)*100)","v":6.8736267020069519},1.244176563263788,{"$f":"IF('[1]MONE(M)CAPARD'!GS257=\"\",\"\",'[1]MONE(M)CAPARD'!GS257)","v":11782.732622282636},{"$f":"IF('[1]MONE(M)CARD'!HA257=\"\",\"\",'[1]MONE(M)CAPARD'!HA257)","v":6306.3448036761702},{"$f":"IF('[1]MONE(M)CAPARD'!HB257=\"\",\"\",'[1]MONE(M)CAPARD'!HB257)","v":5476.3878186064658},"n.d.",{"$f":"IF('[10]II.2.Balance OSD-Activos'!J115=\"\",\"\",'[10]II.2.Balance OSD-Activos'!J115)","v":551.06515131356889},{"$f":"IF('[10]II.2.Balance OSD-Activos'!N115=\"\",\"\",'[10]II.2.Balance OSD-Activos'!N115)","v":559.66950732761381},{"$f":"IF('[10]II.2.Balance OSD-Activos'!R115=\"\",\"\",'[10]II.2.Balance OSD-Activos'!R115)","v":35493.664793137461},{"$f":"IF('[10]II.2.Balance OSD-Activos'!S115=\"\",\"\",'[10]II.2.Balance OSD-Activos'!S115)","v":38813.771042641674},36044.729944451028,75418.170494420308,30.687606208283924,7.1612003771980293,-24.719389937825554,6.8625254826207849,8.4726588134174783,7.4922260300600785,1.3638048441419359,{"$f":"IF('[1]MONE(M)CAPARD'!AS257=\"\",\"\",'[1]MONE(M)CAPARD'!AS257)","v":7.5},{"$f":"IF('[1]MONE(M)CAPARD'!AT257=\"\",\"\",'[1]MONE(M)CAPARD'!AT257)","v":"n.a."},{"$f":"IF('[1]MONE(M)CAPARD'!AU257=\"\",\"\",'[1]MONE(M)CAPARD'!AU257)","v":4.5},{"$f":"IF('[1]MONE(M)CAPARD'!AV257=\"\",\"\",'[1]MONE(M)CAPARD'!AV257)","v":4.5},{"$f":"IF('[1]MONE(M)CAPARD'!AW257=\"\",\"\",'[1]MONE(M)CAPARD'!AW257)","v":"n.a."},{"$f":"IF('[1]MONE(M)CAPARD'!AX257=\"\",\"\",'[1]MONE(M)CAPARD'!AX257)","v":4},{"$f":"IF('[1]MONE(M)CAPARD'!AY257=\"\",\"\",'[1]MONE(M)CAPARD'!AY257)","v":"n.a."},{"$f":"IF('[1]FISCAL(M)'!$K257=\"\",\"\",'[1]FISCAL(M)'!$K257)","v":-2952.151237848956},{"$f":"IF('[1]FISCAL(M)'!$L257=\"\",\"\",'[1]FISCAL(M)'!$L257)","v":-3853.3560260789559},{"$f":"IF('[1]FISCAL(M)'!$AY257=\"\",\"\",'[1]FISCAL(M)'!$AY257)","v":"n.d."},{"$f":"IF('[1]FISCAL(M)'!$BI257=\"\",\"\",'[1]FISCAL(M)'!$BI257)","v":"n.d."},{"$f":"IF('[1]FISCAL(M)'!$BS257=\"\",\"\",'[1]FISCAL(M)'!$BS257)","v":"n.d."},{"$f":"IF('[1]FISCAL(M)'!$AZ257=\"\",\"\",'[1]FISCAL(M)'!$AZ257)","v":"n.d."},{"$f":"IF('[1]FISCAL(M)'!$BJ257=\"\",\"\",'[1]FISCAL(M)'!$BJ257)","v":"n.d."},{"$f":"IF('[1]FISCAL(M)'!$BT257=\"\",\"\",'[1]FISCAL(M)'!$BT257)","v":"n.d."},{"$f":"IF('[2]MONE(M)'!$AO257=\"\",\"\",'[2]MONE(M)'!$AO257)","v":8917607.7135359719},{"$f":"IF('[3]MONE(M)'!$AO257=\"\",\"\",'[3]MONE(M)'!$AO257)","v":8553.768376080121},{"$f":"IF('[4]MONE(M)'!$AO257=\"\",\"\",'[4]MONE(M)'!$AO257)","v":82069.762803661753},{"$f":"IF('[5]MONE(M)'!$AO257=\"\",\"\",'[5]MONE(M)'!$AO257)","v":138218.64223320456},{"$f":"IF('[6]MONE(M)'!$AO257=\"\",\"\",'[6]MONE(M)'!$AO257)","v":41860.746989763778},{"$f":"IF('[7]MONE(M)'!$AO257=\"\",\"\",'[7]MONE(M)'!$AO257)","v":398940.41208366997},{"$f":"IF('[8]MONE(M)'!$AO257=\"\",\"\",'[8]MONE(M)'!$AO257)","v":21921.66319078},1.7237543757345763,-2.3351739595104948,-0.24439180601587562,1.7200458566081656,-3.2249351086832245,17.855962361618573,10.245898363318439,{"$f":"IF('[1]FISCAL(M)'!$K257=\"\",\"\",'[1]FISCAL(M)'!$K257)","v":-2952.151237848956},{"$f":"+'[1]REAL(A)'!$AO$30","v":"n.d."},"n.d.",{"$f":"IF('[1]FISCAL(M)'!$L257=\"\",\"\",'[1]FISCAL(M)'!$L257)","v":-3853.3560260789559},{"$f":"+'[1]REAL(A)'!$AP$30","v":"n.d."},"n.d.",78673.542890680532,{"$f":"'[1]Gráfico REM'!BG251","v":17308.014564134974},{"$f":"'[1]Gráfico REM'!BH251","v":56486.144239984285},{"$f":"'[1]Gráfico REM'!BI251","v":4879.3840865612674},11.80552529390242,27.780808047041283,7.8230726787648308,10.056456974222217,115605.50319098053,{"$f":"'[1]Gráfico REM'!BK251","v":18147.642706254974},{"$f":"'[1]Gráfico REM'!BL251","v":78407.807430764282},{"$f":"'[1]Gráfico REM'!BM251","v":19050.053053961263},9.808984084727923,25.999540688116141,8.4896680597034582,2.3995818522738466]
[2010,"septiembre","2010-septiembre",{"$f":"IF('[1]REAL IPC(M)'!$AL258=\"\",\"\",+'[1]REAL IPC(M)'!$AL258)","v":5.2638763547770973},{"$f":"IF('[1]REAL IPC(M)'!$BE258=\"\",\"\",+'[1]REAL IPC(M)'!$BE258)","v":5.6925527961002587},{"$f":"IF('[1]REAL IPC(M)'!$AM258=\"\",\"\",+'[1]REAL IPC(M)'!$AM258)","v":5.3729642543958622},{"$f":"IF('[1]REAL IPC(M)'!$BI258=\"\",\"\",+'[1]REAL IPC(M)'!$BI258)","v":5.2440478082003583},{"$f":"IF('[1]REAL IMAE(M)'!BJ258=\"\",\"\",'[1]REAL IMAE(M)'!BJ258)","v":4.9620229723126075},{"$f":"IF('[1]REAL IMAE(M)'!BK258=\"\",\"\",'[1]REAL IMAE(M)'!BK258)","v":3.3101954824945823},{"$f":"IF('[1]REAL IMAE(M)'!BN258=\"\",\"\",'[1]REAL IMAE(M)'!BN258)","v":5.1169450081410162},{"$f":"IF('[1]REAL IMAE(M)'!BO258=\"\",\"\",'[1]REAL IMAE(M)'!BO258)","v":3.8698331619123172},{"$f":"IF('[1]EXT RIN(M)'!$K258=\"\",\"\",'[1]EXT RIN(M)'!$K258)","v":18522.040248679332},"",{"$f":"IF('[1]EXT RIN(M)'!$L258=\"\",\"\",'[1]EXT RIN(M)'!$L258)","v":20831.63266923933},"",{"$f":"IF('[1]MONE(M)CARD'!EG258=\"\",\"\",'[1]MONE(M)CARD'!EG258)","v":19725.229333694049},{"$f":"IF('[1]MONE(M)CARD'!EK258=\"\",\"\",'[1]MONE(M)CARD'!EK258)","v":34753.471668535407},{"$f":"IF('[1]MONE(M)CARD'!EP258=\"\",\"\",'[1]MONE(M)CARD'!EP258)","v":20679.618748429435},{"$f":"IF('[1]MONE(M)CARD'!ES258=\"\",\"\",'[1]MONE(M)CARD'!ES258)","v":16.025833093970121},{"$f":"IF('[1]MONE(M)CARD'!EV258=\"\",\"\",'[1]MONE(M)CARD'!EV258)","v":10.069140142455723},{"$f":"IF('[1]MONE(M)CARD'!EZ258=\"\",\"\",'[1]MONE(M)CARD'!EZ258)","v":9.6691907402453694},{"$f":"IF('[1]MONE(M)CAPARD'!FC258=\"\",\"\",'[1]MONE(M)CAPARD'!FC258)","v":24255.376842434045},{"$f":"IF('[1]MONE(M)CAPARD'!FG258=\"\",\"\",'[1]MONE(M)CAPARD'!FG258)","v":53212.501803445404},{"$f":"IF('[1]MONE(M)CAPARD'!FL258=\"\",\"\",'[1]MONE(M)CAPARD'!FL258)","v":20679.618748429435},{"$f":"IF('[1]MONE(M)CAPARD'!FO258=\"\",\"\",'[1]MONE(M)CAPARD'!FO258)","v":15.877112351058443},{"$f":"IF('[1]MONE(M)CAPARD'!FR258=\"\",\"\",'[1]MONE(M)CAPARD'!FR258)","v":9.8430561616267287},{"$f":"IF('[1]MONE(M)CAPARD'!FV258=\"\",\"\",'[1]MONE(M)CAPARD'!FV258)","v":9.5850770382326811},{"$f":"IF('[1]MONE(M)CARD'!FV258=\"\",\"\",'[1]MONE(M)CARD'!FV258)","v":2473.5927553105848},{"$f":"IF('[1]MONE(M)CARD'!GD258=\"\",\"\",'[1]MONE(M)CARD'!GD258)","v":178.05631916520434},{"$f":"IF('[1]MONE(M)CARD'!GE258=\"\",\"\",'[1]MONE(M)CARD'!GE258)","v":5820.0396991903363},11.717272813835278,{"$f":"IF('[9]II.2.Balance OSD-Activos'!J116=\"\",\"\",'[9]II.2.Balance OSD-Activos'!J116)","v":186.92676397471587},{"$f":"IF('[9]II.2.Balance OSD-Activos'!N116=\"\",\"\",'[9]II.2.Balance OSD-Activos'!N116)","v":326.2576133073855},{"$f":"IF('[9]II.2.Balance OSD-Activos'!R116=\"\",\"\",'[9]II.2.Balance OSD-Activos'!R116)","v":24398.143912410465},{"$f":"IF('[9]II.2.Balance OSD-Activos'!S116=\"\",\"\",'[9]II.2.Balance OSD-Activos'!S116)","v":28995.375744325269},24585.070676385181,53906.704034017836,20.513106656150427,5.5254803442954081,1.0209057164103141,5.4250287113368323,7.978306608878194,6.8016078813354364,-7.2018820671515549E-2,{"$f":"IF('[1]MONE(M)CAPARD'!GS258=\"\",\"\",'[1]MONE(M)CAPARD'!GS258)","v":11820.634758332519},{"$f":"IF('[1]MONE(M)CARD'!HA258=\"\",\"\",'[1]MONE(M)CAPARD'!HA258)","v":6368.7528356803359},{"$f":"IF('[1]MONE(M)CAPARD'!HB258=\"\",\"\",'[1]MONE(M)CAPARD'!HB258)","v":5451.8819226521828},"n.d.",{"$f":"IF('[10]II.2.Balance OSD-Activos'!J116=\"\",\"\",'[10]II.2.Balance OSD-Activos'!J116)","v":554.34344771471592},{"$f":"IF('[10]II.2.Balance OSD-Activos'!N116=\"\",\"\",'[10]II.2.Balance OSD-Activos'!N116)","v":561.32260867738546},{"$f":"IF('[10]II.2.Balance OSD-Activos'!R116=\"\",\"\",'[10]II.2.Balance OSD-Activos'!R116)","v":35784.124281690456},{"$f":"IF('[10]II.2.Balance OSD-Activos'!S116=\"\",\"\",'[10]II.2.Balance OSD-Activos'!S116)","v":39078.881123365267},36338.467729405173,75978.671461447826,19.0708752465498,7.9059217770590884,-23.263935701321603,7.7494072021359273,8.6562770652088172,7.9654088861894179,0.47318285612933941,{"$f":"IF('[1]MONE(M)CAPARD'!AS258=\"\",\"\",'[1]MONE(M)CAPARD'!AS258)","v":7.5},{"$f":"IF('[1]MONE(M)CAPARD'!AT258=\"\",\"\",'[1]MONE(M)CAPARD'!AT258)","v":"n.a."},{"$f":"IF('[1]MONE(M)CAPARD'!AU258=\"\",\"\",'[1]MONE(M)CAPARD'!AU258)","v":4.5},{"$f":"IF('[1]MONE(M)CAPARD'!AV258=\"\",\"\",'[1]MONE(M)CAPARD'!AV258)","v":4.5},{"$f":"IF('[1]MONE(M)CAPARD'!AW258=\"\",\"\",'[1]MONE(M)CAPARD'!AW258)","v":"n.a."},{"$f":"IF('[1]MONE(M)CAPARD'!AX258=\"\",\"\",'[1]MONE(M)CAPARD'!AX258)","v":4},{"$f":"IF('[1]MONE(M)CAPARD'!AY258=\"\",\"\",'[1]MONE(M)CAPARD'!AY258)","v":"n.a."},{"$f":"IF('[1]FISCAL(M)'!$K258=\"\",\"\",'[1]FISCAL(M)'!$K258)","v":-3369.2669133611753},{"$f":"IF('[1]FISCAL(M)'!$L258=\"\",\"\",'[1]FISCAL(M)'!$L258)","v":-4355.5576838811749},{"$f":"IF('[1]FISCAL(M)'!$AY258=\"\",\"\",'[1]FISCAL(M)'!$AY258)","v":64101.880627158695},{"$f":"IF('[1]FISCAL(M)'!$BI258=\"\",\"\",'[1]FISCAL(M)'!$BI258)","v":31529.52167338365},{"$f":"IF('[1]FISCAL(M)'!$BS258=\"\",\"\",'[1]FISCAL(M)'!$BS258)","v":32572.358953775038},{"$f":"IF('[1]FISCAL(M)'!$AZ258=\"\",\"\",'[1]FISCAL(M)'!$AZ258)","v":75607.14993682869},{"$f":"IF('[1]FISCAL(M)'!$BJ258=\"\",\"\",'[1]FISCAL(M)'!$BJ258)","v":32859.588555283655},{"$f":"IF('[1]FISCAL(M)'!$BT258=\"\",\"\",'[1]FISCAL(M)'!$BT258)","v":42740.94511327504},{"$f":"IF('[2]MONE(M)'!$AO258=\"\",\"\",'[2]MONE(M)'!$AO258)","v":8919487.4831184987},{"$f":"IF('[3]MONE(M)'!$AO258=\"\",\"\",'[3]MONE(M)'!$AO258)","v":8525.9481900399987},{"$f":"IF('[4]MONE(M)'!$AO258=\"\",\"\",'[4]MONE(M)'!$AO258)","v":81762.583698642586},{"$f":"IF('[5]MONE(M)'!$AO258=\"\",\"\",'[5]MONE(M)'!$AO258)","v":138806.09874980117},{"$f":"IF('[6]MONE(M)'!$AO258=\"\",\"\",'[6]MONE(M)'!$AO258)","v":42171.95173212378},{"$f":"IF('[7]MONE(M)'!$AO258=\"\",\"\",'[7]MONE(M)'!$AO258)","v":403640.76087067003},{"$f":"IF('[8]MONE(M)'!$AO258=\"\",\"\",'[8]MONE(M)'!$AO258)","v":22386.808676740002},1.0088766775123492,-2.2705091896399354,-0.95469893754525081,1.6382402935991358,-2.030285639580276,17.498784569528336,12.381713473520906,{"$f":"IF('[1]FISCAL(M)'!$K258=\"\",\"\",'[1]FISCAL(M)'!$K258)","v":-3369.2669133611753},{"$f":"+'[1]REAL(A)'!$AO$30","v":"n.d."},"n.d.",{"$f":"IF('[1]FISCAL(M)'!$L258=\"\",\"\",'[1]FISCAL(M)'!$L258)","v":-4355.5576838811749},{"$f":"+'[1]REAL(A)'!$AP$30","v":"n.d."},"n.d.",78427.77974471885,{"$f":"'[1]Gráfico REM'!BG252","v":17160.294885539537},{"$f":"'[1]Gráfico REM'!BH252","v":56500.762845468314},{"$f":"'[1]Gráfico REM'!BI252","v":4766.7220137109971},10.899662630643615,24.032307134832664,7.3855896805798515,11.64866086259433,115868.62594159885,{"$f":"'[1]Gráfico REM'!BK252","v":18065.046715359538},{"$f":"'[1]Gráfico REM'!BL252","v":78887.571522208309},{"$f":"'[1]Gráfico REM'!BM252","v":18916.007704030999},9.3398916512973162,22.937859132943061,8.7576748051781728,0.93158832627449062]
[2010,"octubre","2010-octubre",{"$f":"IF('[1]REAL IPC(M)'!$AL259=\"\",\"\",+'[1]REAL IPC(M)'!$AL259)","v":5.9055410865572977},{"$f":"IF('[1]REAL IPC(M)'!$BE259=\"\",\"\",+'[1]REAL IPC(M)'!$BE259)","v":5.6752778679752591},{"$f":"IF('[1]REAL IPC(M)'!$AM259=\"\",\"\",+'[1]REAL IPC(M)'!$AM259)","v":5.9829929352222422},{"$f":"IF('[1]REAL IPC(M)'!$BI259=\"\",\"\",+'[1]REAL IPC(M)'!$BI259)","v":5.2185701422377662},{"$f":"IF('[1]REAL IMAE(M)'!BJ259=\"\",\"\",'[1]REAL IMAE(M)'!BJ259)","v":4.9905023277452942},{"$f":"IF('[1]REAL IMAE(M)'!BK259=\"\",\"\",'[1]REAL IMAE(M)'!BK259)","v":3.3765622392442296},{"$f":"IF('[1]REAL IMAE(M)'!BN259=\"\",\"\",'[1]REAL IMAE(M)'!BN259)","v":5.2146052424736578},{"$f":"IF('[1]REAL IMAE(M)'!BO259=\"\",\"\",'[1]REAL IMAE(M)'!BO259)","v":3.9602870996745754},{"$f":"IF('[1]EXT RIN(M)'!$K259=\"\",\"\",'[1]EXT RIN(M)'!$K259)","v":18988.695672263915},"",{"$f":"IF('[1]EXT RIN(M)'!$L259=\"\",\"\",'[1]EXT RIN(M)'!$L259)","v":21306.404632093916},"",{"$f":"IF('[1]MONE(M)CARD'!EG259=\"\",\"\",'[1]MONE(M)CARD'!EG259)","v":19963.033023365781},{"$f":"IF('[1]MONE(M)CARD'!EK259=\"\",\"\",'[1]MONE(M)CARD'!EK259)","v":34817.637915790379},{"$f":"IF('[1]MONE(M)CARD'!EP259=\"\",\"\",'[1]MONE(M)CARD'!EP259)","v":20669.424237638566},{"$f":"IF('[1]MONE(M)CARD'!ES259=\"\",\"\",'[1]MONE(M)CARD'!ES259)","v":13.853168686095184},{"$f":"IF('[1]MONE(M)CARD'!EV259=\"\",\"\",'[1]MONE(M)CARD'!EV259)","v":8.8429429968561735},{"$f":"IF('[1]MONE(M)CARD'!EZ259=\"\",\"\",'[1]MONE(M)CARD'!EZ259)","v":8.8433026744891396},{"$f":"IF('[1]MONE(M)CAPARD'!FC259=\"\",\"\",'[1]MONE(M)CAPARD'!FC259)","v":24692.518006775783},{"$f":"IF('[1]MONE(M)CAPARD'!FG259=\"\",\"\",'[1]MONE(M)CAPARD'!FG259)","v":53385.978629330384},{"$f":"IF('[1]MONE(M)CAPARD'!FL259=\"\",\"\",'[1]MONE(M)CAPARD'!FL259)","v":20669.424237638566},{"$f":"IF('[1]MONE(M)CAPARD'!FO259=\"\",\"\",'[1]MONE(M)CAPARD'!FO259)","v":15.665351201708022},{"$f":"IF('[1]MONE(M)CAPARD'!FR259=\"\",\"\",'[1]MONE(M)CAPARD'!FR259)","v":9.4393570287066186},{"$f":"IF('[1]MONE(M)CAPARD'!FV259=\"\",\"\",'[1]MONE(M)CAPARD'!FV259)","v":9.3142555496903423},{"$f":"IF('[1]MONE(M)CARD'!FV259=\"\",\"\",'[1]MONE(M)CARD'!FV259)","v":2493.3883179373456},{"$f":"IF('[1]MONE(M)CARD'!GD259=\"\",\"\",'[1]MONE(M)CARD'!GD259)","v":86.622924931208274},{"$f":"IF('[1]MONE(M)CARD'!GE259=\"\",\"\",'[1]MONE(M)CARD'!GE259)","v":5760.0497277738641},7.921814372343694,{"$f":"IF('[9]II.2.Balance OSD-Activos'!J117=\"\",\"\",'[9]II.2.Balance OSD-Activos'!J117)","v":189.98976879421971},{"$f":"IF('[9]II.2.Balance OSD-Activos'!N117=\"\",\"\",'[9]II.2.Balance OSD-Activos'!N117)","v":311.38192041103065},{"$f":"IF('[9]II.2.Balance OSD-Activos'!R117=\"\",\"\",'[9]II.2.Balance OSD-Activos'!R117)","v":24964.477632371752},{"$f":"IF('[9]II.2.Balance OSD-Activos'!S117=\"\",\"\",'[9]II.2.Balance OSD-Activos'!S117)","v":29246.754147710832},25154.467401165974,54712.603469287831,10.124991887117375,6.9067537503898491,-3.2121042224555363,6.8829826884614365,8.2767034704481759,7.5702816776285875,0.76867379629315113,{"$f":"IF('[1]MONE(M)CAPARD'!GS259=\"\",\"\",'[1]MONE(M)CAPARD'!GS259)","v":12138.333790691344},{"$f":"IF('[1]MONE(M)CARD'!HA259=\"\",\"\",'[1]MONE(M)CAPARD'!HA259)","v":6304.9282784438647},{"$f":"IF('[1]MONE(M)CAPARD'!HB259=\"\",\"\",'[1]MONE(M)CAPARD'!HB259)","v":5833.4055122474792},"n.d.",{"$f":"IF('[10]II.2.Balance OSD-Activos'!J117=\"\",\"\",'[10]II.2.Balance OSD-Activos'!J117)","v":552.22474906421974},{"$f":"IF('[10]II.2.Balance OSD-Activos'!N117=\"\",\"\",'[10]II.2.Balance OSD-Activos'!N117)","v":549.70109231103061},{"$f":"IF('[10]II.2.Balance OSD-Activos'!R117=\"\",\"\",'[10]II.2.Balance OSD-Activos'!R117)","v":36563.83741258175},{"$f":"IF('[10]II.2.Balance OSD-Activos'!S117=\"\",\"\",'[10]II.2.Balance OSD-Activos'!S117)","v":39394.984564100821},37116.062161645968,77060.747818057833,14.463800438027153,9.1288970756813637,-24.005624385025982,9.0521332415146141,8.9391406656954544,8.6940445055706093,0.72863561938119137,{"$f":"IF('[1]MONE(M)CAPARD'!AS259=\"\",\"\",'[1]MONE(M)CAPARD'!AS259)","v":6.5},{"$f":"IF('[1]MONE(M)CAPARD'!AT259=\"\",\"\",'[1]MONE(M)CAPARD'!AT259)","v":"n.a."},{"$f":"IF('[1]MONE(M)CAPARD'!AU259=\"\",\"\",'[1]MONE(M)CAPARD'!AU259)","v":4.5},{"$f":"IF('[1]MONE(M)CAPARD'!AV259=\"\",\"\",'[1]MONE(M)CAPARD'!AV259)","v":4.5},{"$f":"IF('[1]MONE(M)CAPARD'!AW259=\"\",\"\",'[1]MONE(M)CAPARD'!AW259)","v":"n.a."},{"$f":"IF('[1]MONE(M)CAPARD'!AX259=\"\",\"\",'[1]MONE(M)CAPARD'!AX259)","v":4.75},{"$f":"IF('[1]MONE(M)CAPARD'!AY259=\"\",\"\",'[1]MONE(M)CAPARD'!AY259)","v":"n.a."},{"$f":"IF('[1]FISCAL(M)'!$K259=\"\",\"\",'[1]FISCAL(M)'!$K259)","v":-3593.3463272720874},{"$f":"IF('[1]FISCAL(M)'!$L259=\"\",\"\",'[1]FISCAL(M)'!$L259)","v":-4729.3571008920881},{"$f":"IF('[1]FISCAL(M)'!$AY259=\"\",\"\",'[1]FISCAL(M)'!$AY259)","v":"n.d."},{"$f":"IF('[1]FISCAL(M)'!$BI259=\"\",\"\",'[1]FISCAL(M)'!$BI259)","v":"n.d."},{"$f":"IF('[1]FISCAL(M)'!$BS259=\"\",\"\",'[1]FISCAL(M)'!$BS259)","v":"n.d."},{"$f":"IF('[1]FISCAL(M)'!$AZ259=\"\",\"\",'[1]FISCAL(M)'!$AZ259)","v":"n.d."},{"$f":"IF('[1]FISCAL(M)'!$BJ259=\"\",\"\",'[1]FISCAL(M)'!$BJ259)","v":"n.d."},{"$f":"IF('[1]FISCAL(M)'!$BT259=\"\",\"\",'[1]FISCAL(M)'!$BT259)","v":"n.d."},{"$f":"IF('[2]MONE(M)'!$AO259=\"\",\"\",'[2]MONE(M)'!$AO259)","v":9053166.0253772754},{"$f":"IF('[3]MONE(M)'!$AO259=\"\",\"\",'[3]MONE(M)'!$AO259)","v":8516.489715390122},{"$f":"IF('[4]MONE(M)'!$AO259=\"\",\"\",'[4]MONE(M)'!$AO259)","v":82855.912209006667},{"$f":"IF('[5]MONE(M)'!$AO259=\"\",\"\",'[5]MONE(M)'!$AO259)","v":140523.05801135412},{"$f":"IF('[6]MONE(M)'!$AO259=\"\",\"\",'[6]MONE(M)'!$AO259)","v":42673.691291790987},{"$f":"IF('[7]MONE(M)'!$AO259=\"\",\"\",'[7]MONE(M)'!$AO259)","v":419432.36923305999},{"$f":"IF('[8]MONE(M)'!$AO259=\"\",\"\",'[8]MONE(M)'!$AO259)","v":22667.336794199997},2.0922076279112911,-1.8132764073085395,0.35824314205923358,1.8195686803927247,-0.44640047530903892,19.511237668723513,12.884656380812597,{"$f":"IF('[1]FISCAL(M)'!$K259=\"\",\"\",'[1]FISCAL(M)'!$K259)","v":-3593.3463272720874},{"$f":"+'[1]REAL(A)'!$AO$30","v":"n.d."},"n.d.",{"$f":"IF('[1]FISCAL(M)'!$L259=\"\",\"\",'[1]FISCAL(M)'!$L259)","v":-4729.3571008920881},{"$f":"+'[1]REAL(A)'!$AP$30","v":"n.d."},"n.d.",79550.630115586129,{"$f":"'[1]Gráfico REM'!BG253","v":17449.522356821639},{"$f":"'[1]Gráfico REM'!BH253","v":57292.246474916072},{"$f":"'[1]Gráfico REM'!BI253","v":4808.8612838484141},11.767140823250521,26.052381284151217,7.940411948114412,13.027472858059475,117583.40543647611,{"$f":"'[1]Gráfico REM'!BK253","v":18428.96011063164},{"$f":"'[1]Gráfico REM'!BL253","v":79959.583269116061},{"$f":"'[1]Gráfico REM'!BM253","v":19194.862056728416},10.530039797470646,25.284690252172926,9.2974911238683724,3.6776258450693433]
[2010,"noviembre","2010-noviembre",{"$f":"IF('[1]REAL IPC(M)'!$AL260=\"\",\"\",+'[1]REAL IPC(M)'!$AL260)","v":6.1154544998252458},{"$f":"IF('[1]REAL IPC(M)'!$BE260=\"\",\"\",+'[1]REAL IPC(M)'!$BE260)","v":5.6595938662843404},{"$f":"IF('[1]REAL IPC(M)'!$AM260=\"\",\"\",+'[1]REAL IPC(M)'!$AM260)","v":6.1914789897222544},{"$f":"IF('[1]REAL IPC(M)'!$BI260=\"\",\"\",+'[1]REAL IPC(M)'!$BI260)","v":5.1945928628059468},{"$f":"IF('[1]REAL IMAE(M)'!BJ260=\"\",\"\",'[1]REAL IMAE(M)'!BJ260)","v":4.858395943176852},{"$f":"IF('[1]REAL IMAE(M)'!BK260=\"\",\"\",'[1]REAL IMAE(M)'!BK260)","v":3.4374983945916204},{"$f":"IF('[1]REAL IMAE(M)'!BN260=\"\",\"\",'[1]REAL IMAE(M)'!BN260)","v":5.2003087386912616},{"$f":"IF('[1]REAL IMAE(M)'!BO260=\"\",\"\",'[1]REAL IMAE(M)'!BO260)","v":4.0457058925799538},{"$f":"IF('[1]EXT RIN(M)'!$K260=\"\",\"\",'[1]EXT RIN(M)'!$K260)","v":19453.529677027203},"",{"$f":"IF('[1]EXT RIN(M)'!$L260=\"\",\"\",'[1]EXT RIN(M)'!$L260)","v":21878.705485017203},"",{"$f":"IF('[1]MONE(M)CARD'!EG260=\"\",\"\",'[1]MONE(M)CARD'!EG260)","v":21148.667086982485},{"$f":"IF('[1]MONE(M)CARD'!EK260=\"\",\"\",'[1]MONE(M)CARD'!EK260)","v":34669.760693440228},{"$f":"IF('[1]MONE(M)CARD'!EP260=\"\",\"\",'[1]MONE(M)CARD'!EP260)","v":20648.140310264542},{"$f":"IF('[1]MONE(M)CARD'!ES260=\"\",\"\",'[1]MONE(M)CARD'!ES260)","v":16.231795113973568},{"$f":"IF('[1]MONE(M)CARD'!EV260=\"\",\"\",'[1]MONE(M)CARD'!EV260)","v":9.0569652004915078},{"$f":"IF('[1]MONE(M)CARD'!EZ260=\"\",\"\",'[1]MONE(M)CARD'!EZ260)","v":8.7374470856299133},{"$f":"IF('[1]MONE(M)CAPARD'!FC260=\"\",\"\",'[1]MONE(M)CAPARD'!FC260)","v":26016.10126112248},{"$f":"IF('[1]MONE(M)CAPARD'!FG260=\"\",\"\",'[1]MONE(M)CAPARD'!FG260)","v":53113.961097250234},{"$f":"IF('[1]MONE(M)CAPARD'!FL260=\"\",\"\",'[1]MONE(M)CAPARD'!FL260)","v":20648.140310264542},{"$f":"IF('[1]MONE(M)CAPARD'!FO260=\"\",\"\",'[1]MONE(M)CAPARD'!FO260)","v":17.190331581307117},{"$f":"IF('[1]MONE(M)CAPARD'!FR260=\"\",\"\",'[1]MONE(M)CAPARD'!FR260)","v":9.4032219424547989},{"$f":"IF('[1]MONE(M)CAPARD'!FV260=\"\",\"\",'[1]MONE(M)CAPARD'!FV260)","v":9.0851184229159045},{"$f":"IF('[1]MONE(M)CARD'!FV260=\"\",\"\",'[1]MONE(M)CARD'!FV260)","v":2571.5100010195106},{"$f":"IF('[1]MONE(M)CARD'!GD260=\"\",\"\",'[1]MONE(M)CARD'!GD260)","v":88.930327859005047},{"$f":"IF('[1]MONE(M)CARD'!GE260=\"\",\"\",'[1]MONE(M)CARD'!GE260)","v":5993.0462371719368},8.6530996474285082,{"$f":"IF('[9]II.2.Balance OSD-Activos'!J118=\"\",\"\",'[9]II.2.Balance OSD-Activos'!J118)","v":188.21209819489565},{"$f":"IF('[9]II.2.Balance OSD-Activos'!N118=\"\",\"\",'[9]II.2.Balance OSD-Activos'!N118)","v":324.24173386575728},{"$f":"IF('[9]II.2.Balance OSD-Activos'!R118=\"\",\"\",'[9]II.2.Balance OSD-Activos'!R118)","v":25605.956206125986},{"$f":"IF('[9]II.2.Balance OSD-Activos'!S118=\"\",\"\",'[9]II.2.Balance OSD-Activos'!S118)","v":29594.938932122193},25794.168304320883,55713.348970308827,20.584822674786007,8.1624124421421094,-4.0825888605398593,8.0805721085762894,7.8668605157651283,7.9251452843661863,0.35486360673759876,{"$f":"IF('[1]MONE(M)CAPARD'!GS260=\"\",\"\",'[1]MONE(M)CAPARD'!GS260)","v":12092.281821705375},{"$f":"IF('[1]MONE(M)CARD'!HA260=\"\",\"\",'[1]MONE(M)CAPARD'!HA260)","v":6616.9952273619365},{"$f":"IF('[1]MONE(M)CAPARD'!HB260=\"\",\"\",'[1]MONE(M)CAPARD'!HB260)","v":5475.286594343439},"n.d.",{"$f":"IF('[10]II.2.Balance OSD-Activos'!J118=\"\",\"\",'[10]II.2.Balance OSD-Activos'!J118)","v":585.4712105448956},{"$f":"IF('[10]II.2.Balance OSD-Activos'!N118=\"\",\"\",'[10]II.2.Balance OSD-Activos'!N118)","v":529.88017670575721},{"$f":"IF('[10]II.2.Balance OSD-Activos'!R118=\"\",\"\",'[10]II.2.Balance OSD-Activos'!R118)","v":37400.171552235988},{"$f":"IF('[10]II.2.Balance OSD-Activos'!S118=\"\",\"\",'[10]II.2.Balance OSD-Activos'!S118)","v":39713.474903932191},37985.642762780881,78228.997843418823,25.992123615719009,10.821351395989186,-29.00395978612098,10.612853422872659,8.420762295533768,9.179315007793253,0.48527050222264378,{"$f":"IF('[1]MONE(M)CAPARD'!AS260=\"\",\"\",'[1]MONE(M)CAPARD'!AS260)","v":6.5},{"$f":"IF('[1]MONE(M)CAPARD'!AT260=\"\",\"\",'[1]MONE(M)CAPARD'!AT260)","v":"n.a."},{"$f":"IF('[1]MONE(M)CAPARD'!AU260=\"\",\"\",'[1]MONE(M)CAPARD'!AU260)","v":4.5},{"$f":"IF('[1]MONE(M)CAPARD'!AV260=\"\",\"\",'[1]MONE(M)CAPARD'!AV260)","v":4.5},{"$f":"IF('[1]MONE(M)CAPARD'!AW260=\"\",\"\",'[1]MONE(M)CAPARD'!AW260)","v":"n.a."},{"$f":"IF('[1]MONE(M)CAPARD'!AX260=\"\",\"\",'[1]MONE(M)CAPARD'!AX260)","v":5},{"$f":"IF('[1]MONE(M)CAPARD'!AY260=\"\",\"\",'[1]MONE(M)CAPARD'!AY260)","v":"n.a."},{"$f":"IF('[1]FISCAL(M)'!$K260=\"\",\"\",'[1]FISCAL(M)'!$K260)","v":-4384.1460969671271},{"$f":"IF('[1]FISCAL(M)'!$L260=\"\",\"\",'[1]FISCAL(M)'!$L260)","v":-5568.954778877127},{"$f":"IF('[1]FISCAL(M)'!$AY260=\"\",\"\",'[1]FISCAL(M)'!$AY260)","v":"n.d."},{"$f":"IF('[1]FISCAL(M)'!$BI260=\"\",\"\",'[1]FISCAL(M)'!$BI260)","v":"n.d."},{"$f":"IF('[1]FISCAL(M)'!$BS260=\"\",\"\",'[1]FISCAL(M)'!$BS260)","v":"n.d."},{"$f":"IF('[1]FISCAL(M)'!$AZ260=\"\",\"\",'[1]FISCAL(M)'!$AZ260)","v":"n.d."},{"$f":"IF('[1]FISCAL(M)'!$BJ260=\"\",\"\",'[1]FISCAL(M)'!$BJ260)","v":"n.d."},{"$f":"IF('[1]FISCAL(M)'!$BT260=\"\",\"\",'[1]FISCAL(M)'!$BT260)","v":"n.d."},{"$f":"IF('[2]MONE(M)'!$AO260=\"\",\"\",'[2]MONE(M)'!$AO260)","v":9104450.2187164761},{"$f":"IF('[3]MONE(M)'!$AO260=\"\",\"\",'[3]MONE(M)'!$AO260)","v":8592.4308020201206},{"$f":"IF('[4]MONE(M)'!$AO260=\"\",\"\",'[4]MONE(M)'!$AO260)","v":83899.16941222742},{"$f":"IF('[5]MONE(M)'!$AO260=\"\",\"\",'[5]MONE(M)'!$AO260)","v":142070.21218546026},{"$f":"IF('[6]MONE(M)'!$AO260=\"\",\"\",'[6]MONE(M)'!$AO260)","v":43583.336453077507},{"$f":"IF('[7]MONE(M)'!$AO260=\"\",\"\",'[7]MONE(M)'!$AO260)","v":428301.67272053001},{"$f":"IF('[8]MONE(M)'!$AO260=\"\",\"\",'[8]MONE(M)'!$AO260)","v":22864.514068279997},4.3916362669841558,-0.87463135237064726,1.5030495807406563,2.2584513919664317,1.1142770907059285,19.991569162932365,14.017632302613414,{"$f":"IF('[1]FISCAL(M)'!$K260=\"\",\"\",'[1]FISCAL(M)'!$K260)","v":-4384.1460969671271},{"$f":"+'[1]REAL(A)'!$AO$30","v":"n.d."},"n.d.",{"$f":"IF('[1]FISCAL(M)'!$L260=\"\",\"\",'[1]FISCAL(M)'!$L260)","v":-5568.954778877127},{"$f":"+'[1]REAL(A)'!$AP$30","v":"n.d."},"n.d.",80561.316461252063,{"$f":"'[1]Gráfico REM'!BG254","v":17557.601445992546},{"$f":"'[1]Gráfico REM'!BH254","v":58205.689893179748},{"$f":"'[1]Gráfico REM'!BI254","v":4798.0251220797663},11.373608223031173,23.241445686187845,8.1795162399612487,12.023144071765145,119033.70571902205,{"$f":"'[1]Gráfico REM'!BK254","v":18510.393930892547},{"$f":"'[1]Gráfico REM'!BL254","v":81070.203961459745},{"$f":"'[1]Gráfico REM'!BM254","v":19453.107826669766},11.097738125542932,22.28225031356008,9.7646425856710461,7.1939264084637911]
[2010,"diciembre","2010-diciembre",{"$f":"IF('[1]REAL IPC(M)'!$AL261=\"\",\"\",+'[1]REAL IPC(M)'!$AL261)","v":6.4223818369150365},{"$f":"IF('[1]REAL IPC(M)'!$BE261=\"\",\"\",+'[1]REAL IPC(M)'!$BE261)","v":5.6447938114397189},{"$f":"IF('[1]REAL IPC(M)'!$AM261=\"\",\"\",+'[1]REAL IPC(M)'!$AM261)","v":6.5139057854778359},{"$f":"IF('[1]REAL IPC(M)'!$BI261=\"\",\"\",+'[1]REAL IPC(M)'!$BI261)","v":5.1715949060601618},{"$f":"IF('[1]REAL IMAE(M)'!BJ261=\"\",\"\",'[1]REAL IMAE(M)'!BJ261)","v":4.7198936243019851},{"$f":"IF('[1]REAL IMAE(M)'!BK261=\"\",\"\",'[1]REAL IMAE(M)'!BK261)","v":3.4929658889982784},{"$f":"IF('[1]REAL IMAE(M)'!BN261=\"\",\"\",'[1]REAL IMAE(M)'!BN261)","v":5.1987607673042779},{"$f":"IF('[1]REAL IMAE(M)'!BO261=\"\",\"\",'[1]REAL IMAE(M)'!BO261)","v":4.1257703266309953},{"$f":"IF('[1]EXT RIN(M)'!$K261=\"\",\"\",'[1]EXT RIN(M)'!$K261)","v":21155.417328751882},21155.417328751882,{"$f":"IF('[1]EXT RIN(M)'!$L261=\"\",\"\",'[1]EXT RIN(M)'!$L261)","v":23702.040474911882},23702.040474911882,{"$f":"IF('[1]MONE(M)CARD'!EG261=\"\",\"\",'[1]MONE(M)CARD'!EG261)","v":22584.708519394102},{"$f":"IF('[1]MONE(M)CARD'!EK261=\"\",\"\",'[1]MONE(M)CARD'!EK261)","v":35526.035329282458},{"$f":"IF('[1]MONE(M)CARD'!EP261=\"\",\"\",'[1]MONE(M)CARD'!EP261)","v":20331.730274626243},{"$f":"IF('[1]MONE(M)CARD'!ES261=\"\",\"\",'[1]MONE(M)CARD'!ES261)","v":16.511953783053034},{"$f":"IF('[1]MONE(M)CARD'!EV261=\"\",\"\",'[1]MONE(M)CARD'!EV261)","v":10.823290614779069},{"$f":"IF('[1]MONE(M)CARD'!EZ261=\"\",\"\",'[1]MONE(M)CARD'!EZ261)","v":9.526689382140141},{"$f":"IF('[1]MONE(M)CAPARD'!FC261=\"\",\"\",'[1]MONE(M)CAPARD'!FC261)","v":27815.064628774104},{"$f":"IF('[1]MONE(M)CAPARD'!FG261=\"\",\"\",'[1]MONE(M)CAPARD'!FG261)","v":54529.891695702441},{"$f":"IF('[1]MONE(M)CAPARD'!FL261=\"\",\"\",'[1]MONE(M)CAPARD'!FL261)","v":20331.730274626258},{"$f":"IF('[1]MONE(M)CAPARD'!FO261=\"\",\"\",'[1]MONE(M)CAPARD'!FO261)","v":16.931288668784372},{"$f":"IF('[1]MONE(M)CAPARD'!FR261=\"\",\"\",'[1]MONE(M)CAPARD'!FR261)","v":10.905820345144534},{"$f":"IF('[1]MONE(M)CAPARD'!FV261=\"\",\"\",'[1]MONE(M)CAPARD'!FV261)","v":9.8949724091678135},{"$f":"IF('[1]MONE(M)CARD'!FV261=\"\",\"\",'[1]MONE(M)CARD'!FV261)","v":2386.9685442517325},{"$f":"IF('[1]MONE(M)CARD'!GD261=\"\",\"\",'[1]MONE(M)CARD'!GD261)","v":89.15471113701372},{"$f":"IF('[1]MONE(M)CARD'!GE261=\"\",\"\",'[1]MONE(M)CARD'!GE261)","v":5615.0346546530045},0.63242024766470006,{"$f":"IF('[9]II.2.Balance OSD-Activos'!J119=\"\",\"\",'[9]II.2.Balance OSD-Activos'!J119)","v":165.1736972684968},{"$f":"IF('[9]II.2.Balance OSD-Activos'!N119=\"\",\"\",'[9]II.2.Balance OSD-Activos'!N119)","v":362.88722087986423},{"$f":"IF('[9]II.2.Balance OSD-Activos'!R119=\"\",\"\",'[9]II.2.Balance OSD-Activos'!R119)","v":26135.853003819797},{"$f":"IF('[9]II.2.Balance OSD-Activos'!S119=\"\",\"\",'[9]II.2.Balance OSD-Activos'!S119)","v":29584.847691346196},26301.026701088293,56248.761613314353,-5.3279080521726137,9.2144829876284362,5.8191674219172596,9.3206085725155106,8.2762531164799924,8.6965913237052828,0.7714460393390965,{"$f":"IF('[1]MONE(M)CAPARD'!GS261=\"\",\"\",'[1]MONE(M)CAPARD'!GS261)","v":12171.108590328216},{"$f":"IF('[1]MONE(M)CARD'!HA261=\"\",\"\",'[1]MONE(M)CAPARD'!HA261)","v":6192.7455509030051},{"$f":"IF('[1]MONE(M)CAPARD'!HB261=\"\",\"\",'[1]MONE(M)CAPARD'!HB261)","v":5978.3630394252114},"n.d.",{"$f":"IF('[10]II.2.Balance OSD-Activos'!J119=\"\",\"\",'[10]II.2.Balance OSD-Activos'!J119)","v":636.07956269849683},{"$f":"IF('[10]II.2.Balance OSD-Activos'!N119=\"\",\"\",'[10]II.2.Balance OSD-Activos'!N119)","v":584.19574931986438},{"$f":"IF('[10]II.2.Balance OSD-Activos'!R119=\"\",\"\",'[10]II.2.Balance OSD-Activos'!R119)","v":37660.7722374898},{"$f":"IF('[10]II.2.Balance OSD-Activos'!S119=\"\",\"\",'[10]II.2.Balance OSD-Activos'!S119)","v":39790.617863996195},38296.851800188299,78671.66541350435,37.483970056688086,12.020018991313975,-21.963937525603317,11.670689585387972,8.7066392241419663,9.9690903812293961,0.78977537343614301,{"$f":"IF('[1]MONE(M)CAPARD'!AS261=\"\",\"\",'[1]MONE(M)CAPARD'!AS261)","v":6.5},{"$f":"IF('[1]MONE(M)CAPARD'!AT261=\"\",\"\",'[1]MONE(M)CAPARD'!AT261)","v":"n.a."},{"$f":"IF('[1]MONE(M)CAPARD'!AU261=\"\",\"\",'[1]MONE(M)CAPARD'!AU261)","v":4.5},{"$f":"IF('[1]MONE(M)CAPARD'!AV261=\"\",\"\",'[1]MONE(M)CAPARD'!AV261)","v":4.5},{"$f":"IF('[1]MONE(M)CAPARD'!AW261=\"\",\"\",'[1]MONE(M)CAPARD'!AW261)","v":"n.a."},{"$f":"IF('[1]MONE(M)CAPARD'!AX261=\"\",\"\",'[1]MONE(M)CAPARD'!AX261)","v":5},{"$f":"IF('[1]MONE(M)CAPARD'!AY261=\"\",\"\",'[1]MONE(M)CAPARD'!AY261)","v":"n.a."},{"$f":"IF('[1]FISCAL(M)'!$K261=\"\",\"\",'[1]FISCAL(M)'!$K261)","v":-5976.790300010879},{"$f":"IF('[1]FISCAL(M)'!$L261=\"\",\"\",'[1]FISCAL(M)'!$L261)","v":-5976.5917561708784},{"$f":"IF('[1]FISCAL(M)'!$AY261=\"\",\"\",'[1]FISCAL(M)'!$AY261)","v":67125.145666281285},{"$f":"IF('[1]FISCAL(M)'!$BI261=\"\",\"\",'[1]FISCAL(M)'!$BI261)","v":32748.363982872128},{"$f":"IF('[1]FISCAL(M)'!$BS261=\"\",\"\",'[1]FISCAL(M)'!$BS261)","v":34376.781683409172},{"$f":"IF('[1]FISCAL(M)'!$AZ261=\"\",\"\",'[1]FISCAL(M)'!$AZ261)","v":78837.187501211301},{"$f":"IF('[1]FISCAL(M)'!$BJ261=\"\",\"\",'[1]FISCAL(M)'!$BJ261)","v":34021.872510582121},{"$f":"IF('[1]FISCAL(M)'!$BT261=\"\",\"\",'[1]FISCAL(M)'!$BT261)","v":44809.567902169169},{"$f":"IF('[2]MONE(M)'!$AO261=\"\",\"\",'[2]MONE(M)'!$AO261)","v":9286261.0529342201},{"$f":"IF('[3]MONE(M)'!$AO261=\"\",\"\",'[3]MONE(M)'!$AO261)","v":8642.6090543500031},{"$f":"IF('[4]MONE(M)'!$AO261=\"\",\"\",'[4]MONE(M)'!$AO261)","v":84980.342242991086},{"$f":"IF('[5]MONE(M)'!$AO261=\"\",\"\",'[5]MONE(M)'!$AO261)","v":142544.46384274022},{"$f":"IF('[6]MONE(M)'!$AO261=\"\",\"\",'[6]MONE(M)'!$AO261)","v":45388.328275109772},{"$f":"IF('[7]MONE(M)'!$AO261=\"\",\"\",'[7]MONE(M)'!$AO261)","v":434557.58259563998},{"$f":"IF('[8]MONE(M)'!$AO261=\"\",\"\",'[8]MONE(M)'!$AO261)","v":22764.798215510004},{"$f":"((BY254/BY242)-1)*100","v":4.8732915685316902},-0.57798674325102439,2.3312663598876737,2.6918617399883882,5.6515140688908838,20.403388847884152,14.799033755551871,{"$f":"IF('[1]FISCAL(M)'!$K261=\"\",\"\",'[1]FISCAL(M)'!$K261)","v":-5976.790300010879},{"$f":"+'[1]REAL(A)'!$AO$30","v":"n.d."},"n.d.",{"$f":"IF('[1]FISCAL(M)'!$L261=\"\",\"\",'[1]FISCAL(M)'!$L261)","v":-5976.5917561708784},{"$f":"+'[1]REAL(A)'!$AP$30","v":"n.d."},"n.d.",81435.506159351266,{"$f":"'[1]Gráfico REM'!BG255","v":17726.827415916636},{"$f":"'[1]Gráfico REM'!BH255","v":58762.966894833895},{"$f":"'[1]Gráfico REM'!BI255","v":4945.711848600733},11.973241049902693,22.108902700136035,9.0223700555163369,14.736257043719746,119904.20863193127,{"$f":"'[1]Gráfico REM'!BK255","v":18698.576462456636},{"$f":"'[1]Gráfico REM'!BL255","v":81527.765110343898},{"$f":"'[1]Gráfico REM'!BM255","v":19677.867059130731},11.882399527911879,21.997316093242336,10.57603778058651,8.6408409531876895]
[2011,"enero","2011-enero",{"$f":"IF('[1]REAL IPC(M)'!$AL262=\"\",\"\",+'[1]REAL IPC(M)'!$AL262)","v":5.5434530558623241},{"$f":"IF('[1]REAL IPC(M)'!$BE262=\"\",\"\",+'[1]REAL IPC(M)'!$BE262)","v":5.6302121969066032},{"$f":"IF('[1]REAL IPC(M)'!$AM262=\"\",\"\",+'[1]REAL IPC(M)'!$AM262)","v":4.5108321078931368},{"$f":"IF('[1]REAL IPC(M)'!$BI262=\"\",\"\",+'[1]REAL IPC(M)'!$BI262)","v":5.1491373044636024},{"$f":"IF('[1]REAL IMAE(M)'!BJ262=\"\",\"\",'[1]REAL IMAE(M)'!BJ262)","v":4.5842662814145951},{"$f":"IF('[1]REAL IMAE(M)'!BK262=\"\",\"\",'[1]REAL IMAE(M)'!BK262)","v":3.5430153086079441},{"$f":"IF('[1]REAL IMAE(M)'!BN262=\"\",\"\",'[1]REAL IMAE(M)'!BN262)","v":5.2854885541874896},{"$f":"IF('[1]REAL IMAE(M)'!BO262=\"\",\"\",'[1]REAL IMAE(M)'!BO262)","v":4.200247761334297},{"$f":"IF('[1]EXT RIN(M)'!$K262=\"\",\"\",'[1]EXT RIN(M)'!$K262)","v":20329.666946779656},"",{"$f":"IF('[1]EXT RIN(M)'!$L262=\"\",\"\",'[1]EXT RIN(M)'!$L262)","v":23252.229599089656},"",{"$f":"IF('[1]MONE(M)CARD'!EG262=\"\",\"\",'[1]MONE(M)CARD'!EG262)","v":22249.451809925955},{"$f":"IF('[1]MONE(M)CARD'!EK262=\"\",\"\",'[1]MONE(M)CARD'!EK262)","v":35709.858299524873},{"$f":"IF('[1]MONE(M)CARD'!EP262=\"\",\"\",'[1]MONE(M)CARD'!EP262)","v":20908.744380892858},{"$f":"IF('[1]MONE(M)CARD'!ES262=\"\",\"\",'[1]MONE(M)CARD'!ES262)","v":14.549162630790047},{"$f":"IF('[1]MONE(M)CARD'!EV262=\"\",\"\",'[1]MONE(M)CARD'!EV262)","v":10.544986426469528},{"$f":"IF('[1]MONE(M)CARD'!EZ262=\"\",\"\",'[1]MONE(M)CARD'!EZ262)","v":9.7258589767420531},{"$f":"IF('[1]MONE(M)CAPARD'!FC262=\"\",\"\",'[1]MONE(M)CAPARD'!FC262)","v":27404.314496815958},{"$f":"IF('[1]MONE(M)CAPARD'!FG262=\"\",\"\",'[1]MONE(M)CAPARD'!FG262)","v":54770.309578644868},{"$f":"IF('[1]MONE(M)CAPARD'!FL262=\"\",\"\",'[1]MONE(M)CAPARD'!FL262)","v":20908.744380892851},{"$f":"IF('[1]MONE(M)CAPARD'!FO262=\"\",\"\",'[1]MONE(M)CAPARD'!FO262)","v":14.549965690147726},{"$f":"IF('[1]MONE(M)CAPARD'!FR262=\"\",\"\",'[1]MONE(M)CAPARD'!FR262)","v":10.137875482526981},{"$f":"IF('[1]MONE(M)CAPARD'!FV262=\"\",\"\",'[1]MONE(M)CAPARD'!FV262)","v":9.5960826229214859},{"$f":"IF('[1]MONE(M)CARD'!FV262=\"\",\"\",'[1]MONE(M)CARD'!FV262)","v":2409.2727712851647},{"$f":"IF('[1]MONE(M)CARD'!GD262=\"\",\"\",'[1]MONE(M)CARD'!GD262)","v":83.676794377547793},{"$f":"IF('[1]MONE(M)CARD'!GE262=\"\",\"\",'[1]MONE(M)CARD'!GE262)","v":6026.6189541783351},14.909368478547581,{"$f":"IF('[9]II.2.Balance OSD-Activos'!J120=\"\",\"\",'[9]II.2.Balance OSD-Activos'!J120)","v":198.09612973656414},{"$f":"IF('[9]II.2.Balance OSD-Activos'!N120=\"\",\"\",'[9]II.2.Balance OSD-Activos'!N120)","v":354.68000319644904},{"$f":"IF('[9]II.2.Balance OSD-Activos'!R120=\"\",\"\",'[9]II.2.Balance OSD-Activos'!R120)","v":26190.769834177099},{"$f":"IF('[9]II.2.Balance OSD-Activos'!S120=\"\",\"\",'[9]II.2.Balance OSD-Activos'!S120)","v":29903.378542318285},26388.865963913664,56646.924509428398,17.578930646082203,9.8258849982784788,7.0696480888096325,9.7711381995847937,9.0845418007322376,9.4157131992236955,0.71912187551841278,{"$f":"IF('[1]MONE(M)CAPARD'!GS262=\"\",\"\",'[1]MONE(M)CAPARD'!GS262)","v":12332.025294892401},{"$f":"IF('[1]MONE(M)CARD'!HA262=\"\",\"\",'[1]MONE(M)CAPARD'!HA262)","v":6616.1331530283351},{"$f":"IF('[1]MONE(M)CAPARD'!HB262=\"\",\"\",'[1]MONE(M)CAPARD'!HB262)","v":5715.8921418640657},"n.d.",{"$f":"IF('[10]II.2.Balance OSD-Activos'!J120=\"\",\"\",'[10]II.2.Balance OSD-Activos'!J120)","v":672.93262405656412},{"$f":"IF('[10]II.2.Balance OSD-Activos'!N120=\"\",\"\",'[10]II.2.Balance OSD-Activos'!N120)","v":573.80146260644892},{"$f":"IF('[10]II.2.Balance OSD-Activos'!R120=\"\",\"\",'[10]II.2.Balance OSD-Activos'!R120)","v":37848.4396702171},{"$f":"IF('[10]II.2.Balance OSD-Activos'!S120=\"\",\"\",'[10]II.2.Balance OSD-Activos'!S120)","v":40152.927105358278},38521.372294273664,79248.100862238382,46.976257556277304,13.175274337269416,-21.724769370249241,12.714397220840024,8.8801745521449362,10.607462108891008,0.6383717276616121,{"$f":"IF('[1]MONE(M)CAPARD'!AS262=\"\",\"\",'[1]MONE(M)CAPARD'!AS262)","v":6.5},{"$f":"IF('[1]MONE(M)CAPARD'!AT262=\"\",\"\",'[1]MONE(M)CAPARD'!AT262)","v":"n.a."},{"$f":"IF('[1]MONE(M)CAPARD'!AU262=\"\",\"\",'[1]MONE(M)CAPARD'!AU262)","v":4.5},{"$f":"IF('[1]MONE(M)CAPARD'!AV262=\"\",\"\",'[1]MONE(M)CAPARD'!AV262)","v":4.5},{"$f":"IF('[1]MONE(M)CAPARD'!AW262=\"\",\"\",'[1]MONE(M)CAPARD'!AW262)","v":"n.a."},{"$f":"IF('[1]MONE(M)CAPARD'!AX262=\"\",\"\",'[1]MONE(M)CAPARD'!AX262)","v":5},{"$f":"IF('[1]MONE(M)CAPARD'!AY262=\"\",\"\",'[1]MONE(M)CAPARD'!AY262)","v":"n.a."},{"$f":"IF('[1]FISCAL(M)'!$K262=\"\",\"\",'[1]FISCAL(M)'!$K262)","v":-117.57823012731716},{"$f":"IF('[1]FISCAL(M)'!$L262=\"\",\"\",'[1]FISCAL(M)'!$L262)","v":-177.13132552731707},{"$f":"IF('[1]FISCAL(M)'!$AY262=\"\",\"\",'[1]FISCAL(M)'!$AY262)","v":67701.327394566673},{"$f":"IF('[1]FISCAL(M)'!$BI262=\"\",\"\",'[1]FISCAL(M)'!$BI262)","v":33350.284427314713},{"$f":"IF('[1]FISCAL(M)'!$BS262=\"\",\"\",'[1]FISCAL(M)'!$BS262)","v":34351.04296725196},{"$f":"IF('[1]FISCAL(M)'!$AZ262=\"\",\"\",'[1]FISCAL(M)'!$AZ262)","v":79910.165397146688},{"$f":"IF('[1]FISCAL(M)'!$BJ262=\"\",\"\",'[1]FISCAL(M)'!$BJ262)","v":34618.027524314712},{"$f":"IF('[1]FISCAL(M)'!$BT262=\"\",\"\",'[1]FISCAL(M)'!$BT262)","v":45292.137872831961},{"$f":"IF('[2]MONE(M)'!$AO262=\"\",\"\",'[2]MONE(M)'!$AO262)","v":9254828.5438397415},{"$f":"IF('[3]MONE(M)'!$AO262=\"\",\"\",'[3]MONE(M)'!$AO262)","v":8606.6910914199998},{"$f":"IF('[4]MONE(M)'!$AO262=\"\",\"\",'[4]MONE(M)'!$AO262)","v":85261.834755603762},{"$f":"IF('[5]MONE(M)'!$AO262=\"\",\"\",'[5]MONE(M)'!$AO262)","v":145306.2994852562},{"$f":"IF('[6]MONE(M)'!$AO262=\"\",\"\",'[6]MONE(M)'!$AO262)","v":45443.16783084879},{"$f":"IF('[7]MONE(M)'!$AO262=\"\",\"\",'[7]MONE(M)'!$AO262)","v":434180.53339752008},{"$f":"IF('[8]MONE(M)'!$AO262=\"\",\"\",'[8]MONE(M)'!$AO262)","v":22953.672896549993},4.7256729771370409,-0.49399788482745732,2.2014088185220215,4.4391401626546978,6.4565561600332888,19.788831083214141,15.243579209077751,{"$f":"IF('[1]FISCAL(M)'!$K262=\"\",\"\",'[1]FISCAL(M)'!$K262)","v":-117.57823012731716},{"$f":"+'[1]REAL(A)'!$AO$31","v":"n.d."},"n.d.",{"$f":"IF('[1]FISCAL(M)'!$L262=\"\",\"\",'[1]FISCAL(M)'!$L262)","v":-177.13132552731707},{"$f":"+'[1]REAL(A)'!$AP$31","v":"n.d."},"n.d.",82608.350756850035,{"$f":"'[1]Gráfico REM'!BG256","v":18154.922904907831},{"$f":"'[1]Gráfico REM'!BH256","v":59248.845108873582},{"$f":"'[1]Gráfico REM'!BI256","v":5204.5827430686249},12.769506224723326,21.755092822777367,9.7058919862833104,20.027627814307138,121580.43624486003,{"$f":"'[1]Gráfico REM'!BK256","v":19148.664739637832},{"$f":"'[1]Gráfico REM'!BL256","v":82202.518005423568},{"$f":"'[1]Gráfico REM'!BM256","v":20229.253499798626},12.954337303767073,21.659976448120212,11.197914561507183,12.55486364541396]
[2011,"febrero","2011-febrero",{"$f":"IF('[1]REAL IPC(M)'!$AL263=\"\",\"\",+'[1]REAL IPC(M)'!$AL263)","v":5.8844582309887095},{"$f":"IF('[1]REAL IPC(M)'!$BE263=\"\",\"\",+'[1]REAL IPC(M)'!$BE263)","v":5.6152422766130528},{"$f":"IF('[1]REAL IPC(M)'!$AM263=\"\",\"\",+'[1]REAL IPC(M)'!$AM263)","v":4.8383459247463012},{"$f":"IF('[1]REAL IPC(M)'!$BI263=\"\",\"\",+'[1]REAL IPC(M)'!$BI263)","v":5.1268689763881659},{"$f":"IF('[1]REAL IMAE(M)'!BJ263=\"\",\"\",'[1]REAL IMAE(M)'!BJ263)","v":4.2949763868945556},{"$f":"IF('[1]REAL IMAE(M)'!BK263=\"\",\"\",'[1]REAL IMAE(M)'!BK263)","v":3.5877735578564662},{"$f":"IF('[1]REAL IMAE(M)'!BN263=\"\",\"\",'[1]REAL IMAE(M)'!BN263)","v":5.300675014290146},{"$f":"IF('[1]REAL IMAE(M)'!BO263=\"\",\"\",'[1]REAL IMAE(M)'!BO263)","v":4.2689861230865711},{"$f":"IF('[1]EXT RIN(M)'!$K263=\"\",\"\",'[1]EXT RIN(M)'!$K263)","v":20886.358021187905},"",{"$f":"IF('[1]EXT RIN(M)'!$L263=\"\",\"\",'[1]EXT RIN(M)'!$L263)","v":23395.142635617907},"",{"$f":"IF('[1]MONE(M)CARD'!EG263=\"\",\"\",'[1]MONE(M)CARD'!EG263)","v":22295.321013673205},{"$f":"IF('[1]MONE(M)CARD'!EK263=\"\",\"\",'[1]MONE(M)CARD'!EK263)","v":35947.468682946506},{"$f":"IF('[1]MONE(M)CARD'!EP263=\"\",\"\",'[1]MONE(M)CARD'!EP263)","v":21189.636089515727},{"$f":"IF('[1]MONE(M)CARD'!ES263=\"\",\"\",'[1]MONE(M)CARD'!ES263)","v":15.849056750547241},{"$f":"IF('[1]MONE(M)CARD'!EV263=\"\",\"\",'[1]MONE(M)CARD'!EV263)","v":10.255911851720146},{"$f":"IF('[1]MONE(M)CARD'!EZ263=\"\",\"\",'[1]MONE(M)CARD'!EZ263)","v":9.3335170665723268},{"$f":"IF('[1]MONE(M)CAPARD'!FC263=\"\",\"\",'[1]MONE(M)CAPARD'!FC263)","v":27622.242346363204},{"$f":"IF('[1]MONE(M)CAPARD'!FG263=\"\",\"\",'[1]MONE(M)CAPARD'!FG263)","v":54975.554132276506},{"$f":"IF('[1]MONE(M)CAPARD'!FL263=\"\",\"\",'[1]MONE(M)CAPARD'!FL263)","v":21189.636089515712},{"$f":"IF('[1]MONE(M)CAPARD'!FO263=\"\",\"\",'[1]MONE(M)CAPARD'!FO263)","v":17.241971034435434},{"$f":"IF('[1]MONE(M)CAPARD'!FR263=\"\",\"\",'[1]MONE(M)CAPARD'!FR263)","v":10.085673478607626},{"$f":"IF('[1]MONE(M)CAPARD'!FV263=\"\",\"\",'[1]MONE(M)CAPARD'!FV263)","v":9.4147874788000241},{"$f":"IF('[1]MONE(M)CARD'!FV263=\"\",\"\",'[1]MONE(M)CARD'!FV263)","v":2670.2766583122898},{"$f":"IF('[1]MONE(M)CARD'!GD263=\"\",\"\",'[1]MONE(M)CARD'!GD263)","v":93.588310523252545},{"$f":"IF('[1]MONE(M)CARD'!GE263=\"\",\"\",'[1]MONE(M)CARD'!GE263)","v":5705.6301683350621},1.4140049910293273,{"$f":"IF('[9]II.2.Balance OSD-Activos'!J121=\"\",\"\",'[9]II.2.Balance OSD-Activos'!J121)","v":189.33457377367452},{"$f":"IF('[9]II.2.Balance OSD-Activos'!N121=\"\",\"\",'[9]II.2.Balance OSD-Activos'!N121)","v":365.37408786287773},{"$f":"IF('[9]II.2.Balance OSD-Activos'!R121=\"\",\"\",'[9]II.2.Balance OSD-Activos'!R121)","v":26260.361330833846},{"$f":"IF('[9]II.2.Balance OSD-Activos'!S121=\"\",\"\",'[9]II.2.Balance OSD-Activos'!S121)","v":30165.059130900681},26449.695904607521,56980.12912337108,6.6467866567788469,9.6059855455160825,12.334789095947141,9.6279174716156213,9.6045099968995462,9.6222796792113652,0.20656647998766964,{"$f":"IF('[1]MONE(M)CAPARD'!GS263=\"\",\"\",'[1]MONE(M)CAPARD'!GS263)","v":12824.365907331108},{"$f":"IF('[1]MONE(M)CARD'!HA263=\"\",\"\",'[1]MONE(M)CAPARD'!HA263)","v":6308.6171597450621},{"$f":"IF('[1]MONE(M)CAPARD'!HB263=\"\",\"\",'[1]MONE(M)CAPARD'!HB263)","v":6515.7487475860462},"n.d.",{"$f":"IF('[10]II.2.Balance OSD-Activos'!J121=\"\",\"\",'[10]II.2.Balance OSD-Activos'!J121)","v":673.53107988367458},{"$f":"IF('[10]II.2.Balance OSD-Activos'!N121=\"\",\"\",'[10]II.2.Balance OSD-Activos'!N121)","v":591.95265541287768},{"$f":"IF('[10]II.2.Balance OSD-Activos'!R121=\"\",\"\",'[10]II.2.Balance OSD-Activos'!R121)","v":37984.780022493847},{"$f":"IF('[10]II.2.Balance OSD-Activos'!S121=\"\",\"\",'[10]II.2.Balance OSD-Activos'!S121)","v":40510.372088870674},38658.31110237752,79760.635846661084,47.800681422087862,12.601726561049077,-19.024281834795364,12.128230548386432,9.8624980926484529,10.876250925580333,0.26878881668932486,{"$f":"IF('[1]MONE(M)CAPARD'!AS263=\"\",\"\",'[1]MONE(M)CAPARD'!AS263)","v":6.5},{"$f":"IF('[1]MONE(M)CAPARD'!AT263=\"\",\"\",'[1]MONE(M)CAPARD'!AT263)","v":"n.a."},{"$f":"IF('[1]MONE(M)CAPARD'!AU263=\"\",\"\",'[1]MONE(M)CAPARD'!AU263)","v":4.5},{"$f":"IF('[1]MONE(M)CAPARD'!AV263=\"\",\"\",'[1]MONE(M)CAPARD'!AV263)","v":4.5},{"$f":"IF('[1]MONE(M)CAPARD'!AW263=\"\",\"\",'[1]MONE(M)CAPARD'!AW263)","v":"n.a."},{"$f":"IF('[1]MONE(M)CAPARD'!AX263=\"\",\"\",'[1]MONE(M)CAPARD'!AX263)","v":5},{"$f":"IF('[1]MONE(M)CAPARD'!AY263=\"\",\"\",'[1]MONE(M)CAPARD'!AY263)","v":"n.a."},{"$f":"IF('[1]FISCAL(M)'!$K263=\"\",\"\",'[1]FISCAL(M)'!$K263)","v":-1021.2417377767185},{"$f":"IF('[1]FISCAL(M)'!$L263=\"\",\"\",'[1]FISCAL(M)'!$L263)","v":-1290.2236525467181},{"$f":"IF('[1]FISCAL(M)'!$AY263=\"\",\"\",'[1]FISCAL(M)'!$AY263)","v":69412.843525059783},{"$f":"IF('[1]FISCAL(M)'!$BI263=\"\",\"\",'[1]FISCAL(M)'!$BI263)","v":35055.584513793874},{"$f":"IF('[1]FISCAL(M)'!$BS263=\"\",\"\",'[1]FISCAL(M)'!$BS263)","v":34357.259011265909},{"$f":"IF('[1]FISCAL(M)'!$AZ263=\"\",\"\",'[1]FISCAL(M)'!$AZ263)","v":81301.831481349785},{"$f":"IF('[1]FISCAL(M)'!$BJ263=\"\",\"\",'[1]FISCAL(M)'!$BJ263)","v":36335.295649613872},{"$f":"IF('[1]FISCAL(M)'!$BT263=\"\",\"\",'[1]FISCAL(M)'!$BT263)","v":44966.535831735906},{"$f":"IF('[2]MONE(M)'!$AO263=\"\",\"\",'[2]MONE(M)'!$AO263)","v":9339743.5467052702},{"$f":"IF('[3]MONE(M)'!$AO263=\"\",\"\",'[3]MONE(M)'!$AO263)","v":8610.6754477701197},{"$f":"IF('[4]MONE(M)'!$AO263=\"\",\"\",'[4]MONE(M)'!$AO263)","v":86003.143873807538},{"$f":"IF('[5]MONE(M)'!$AO263=\"\",\"\",'[5]MONE(M)'!$AO263)","v":145612.06960074618},{"$f":"IF('[6]MONE(M)'!$AO263=\"\",\"\",'[6]MONE(M)'!$AO263)","v":44766.601000738767},{"$f":"IF('[7]MONE(M)'!$AO263=\"\",\"\",'[7]MONE(M)'!$AO263)","v":435068.90518678993},{"$f":"IF('[8]MONE(M)'!$AO263=\"\",\"\",'[8]MONE(M)'!$AO263)","v":23124.661825380001},5.9049630909127737,0.77093798978258299,4.3274836895145441,4.7077548899875143,5.4502219293966148,18.271011012419436,15.544414564792653,{"$f":"IF('[1]FISCAL(M)'!$K263=\"\",\"\",'[1]FISCAL(M)'!$K263)","v":-1021.2417377767185},{"$f":"+'[1]REAL(A)'!$AO$31","v":"n.d."},"n.d.",{"$f":"IF('[1]FISCAL(M)'!$L263=\"\",\"\",'[1]FISCAL(M)'!$L263)","v":-1290.2236525467181},{"$f":"+'[1]REAL(A)'!$AP$31","v":"n.d."},"n.d.",83776.34583441705,{"$f":"'[1]Gráfico REM'!BG257","v":19117.296557203124},{"$f":"'[1]Gráfico REM'!BH257","v":59690.018310045445},{"$f":"'[1]Gráfico REM'!BI257","v":4969.0309671684745},13.321700662148306,24.598768040171272,10.042866874126211,14.43336510576405,123110.07135136703,{"$f":"'[1]Gráfico REM'!BK257","v":20142.334853023123},{"$f":"'[1]Gráfico REM'!BL257","v":82814.680135425442},{"$f":"'[1]Gráfico REM'!BM257","v":20153.056362918476},13.394909217064942,23.712171291686968,11.525653858673879,11.776590526143259]
[2011,"marzo","2011-marzo",{"$f":"IF('[1]REAL IPC(M)'!$AL264=\"\",\"\",+'[1]REAL IPC(M)'!$AL264)","v":5.9665561146776014},{"$f":"IF('[1]REAL IPC(M)'!$BE264=\"\",\"\",+'[1]REAL IPC(M)'!$BE264)","v":5.5992835076957403},{"$f":"IF('[1]REAL IPC(M)'!$AM264=\"\",\"\",+'[1]REAL IPC(M)'!$AM264)","v":4.9399634299721829},{"$f":"IF('[1]REAL IPC(M)'!$BI264=\"\",\"\",+'[1]REAL IPC(M)'!$BI264)","v":5.1044121366786266},{"$f":"IF('[1]REAL IMAE(M)'!BJ264=\"\",\"\",'[1]REAL IMAE(M)'!BJ264)","v":4.0387523358832889},{"$f":"IF('[1]REAL IMAE(M)'!BK264=\"\",\"\",'[1]REAL IMAE(M)'!BK264)","v":3.6274319037425728},{"$f":"IF('[1]REAL IMAE(M)'!BN264=\"\",\"\",'[1]REAL IMAE(M)'!BN264)","v":5.2755580675205138},{"$f":"IF('[1]REAL IMAE(M)'!BO264=\"\",\"\",'[1]REAL IMAE(M)'!BO264)","v":4.3319137442646038},{"$f":"IF('[1]EXT RIN(M)'!$K264=\"\",\"\",'[1]EXT RIN(M)'!$K264)","v":21208.109906462047},"",{"$f":"IF('[1]EXT RIN(M)'!$L264=\"\",\"\",'[1]EXT RIN(M)'!$L264)","v":23384.949252102047},"",{"$f":"IF('[1]MONE(M)CARD'!EG264=\"\",\"\",'[1]MONE(M)CARD'!EG264)","v":22947.412937386747},{"$f":"IF('[1]MONE(M)CARD'!EK264=\"\",\"\",'[1]MONE(M)CARD'!EK264)","v":36476.474132441537},{"$f":"IF('[1]MONE(M)CARD'!EP264=\"\",\"\",'[1]MONE(M)CARD'!EP264)","v":21534.813755894837},{"$f":"IF('[1]MONE(M)CARD'!ES264=\"\",\"\",'[1]MONE(M)CARD'!ES264)","v":14.225229895950719},{"$f":"IF('[1]MONE(M)CARD'!EV264=\"\",\"\",'[1]MONE(M)CARD'!EV264)","v":9.6276133024975294},{"$f":"IF('[1]MONE(M)CARD'!EZ264=\"\",\"\",'[1]MONE(M)CARD'!EZ264)","v":8.6106610925423599},{"$f":"IF('[1]MONE(M)CAPARD'!FC264=\"\",\"\",'[1]MONE(M)CAPARD'!FC264)","v":28426.269729846746},{"$f":"IF('[1]MONE(M)CAPARD'!FG264=\"\",\"\",'[1]MONE(M)CAPARD'!FG264)","v":55644.186319941531},{"$f":"IF('[1]MONE(M)CAPARD'!FL264=\"\",\"\",'[1]MONE(M)CAPARD'!FL264)","v":21534.813755894837},{"$f":"IF('[1]MONE(M)CAPARD'!FO264=\"\",\"\",'[1]MONE(M)CAPARD'!FO264)","v":16.089545325100385},{"$f":"IF('[1]MONE(M)CAPARD'!FR264=\"\",\"\",'[1]MONE(M)CAPARD'!FR264)","v":9.8980108678350831},{"$f":"IF('[1]MONE(M)CAPARD'!FV264=\"\",\"\",'[1]MONE(M)CAPARD'!FV264)","v":9.0584015435377641},{"$f":"IF('[1]MONE(M)CARD'!FV264=\"\",\"\",'[1]MONE(M)CARD'!FV264)","v":2610.8404822093726},{"$f":"IF('[1]MONE(M)CARD'!GD264=\"\",\"\",'[1]MONE(M)CARD'!GD264)","v":78.959736830748454},{"$f":"IF('[1]MONE(M)CARD'!GE264=\"\",\"\",'[1]MONE(M)CARD'!GE264)","v":5731.7367573071542},3.1926371269758613,{"$f":"IF('[9]II.2.Balance OSD-Activos'!J122=\"\",\"\",'[9]II.2.Balance OSD-Activos'!J122)","v":187.66124807083975},{"$f":"IF('[9]II.2.Balance OSD-Activos'!N122=\"\",\"\",'[9]II.2.Balance OSD-Activos'!N122)","v":384.11986391342634},{"$f":"IF('[9]II.2.Balance OSD-Activos'!R122=\"\",\"\",'[9]II.2.Balance OSD-Activos'!R122)","v":26550.620735964716},{"$f":"IF('[9]II.2.Balance OSD-Activos'!S122=\"\",\"\",'[9]II.2.Balance OSD-Activos'!S122)","v":30386.255871472971},26738.281984035555,57508.657719421957,13.058795382023947,9.6679182823164354,16.738834309200492,9.6446751228480778,8.6535464392979655,9.1735507266887062,-0.44872895252265899,{"$f":"IF('[1]MONE(M)CAPARD'!GS264=\"\",\"\",'[1]MONE(M)CAPARD'!GS264)","v":13057.737019643231},{"$f":"IF('[1]MONE(M)CARD'!HA264=\"\",\"\",'[1]MONE(M)CAPARD'!HA264)","v":6314.2369183771543},{"$f":"IF('[1]MONE(M)CAPARD'!HB264=\"\",\"\",'[1]MONE(M)CAPARD'!HB264)","v":6743.5001012660769},"n.d.",{"$f":"IF('[10]II.2.Balance OSD-Activos'!J122=\"\",\"\",'[10]II.2.Balance OSD-Activos'!J122)","v":675.86795559083987},{"$f":"IF('[10]II.2.Balance OSD-Activos'!N122=\"\",\"\",'[10]II.2.Balance OSD-Activos'!N122)","v":626.45524111342627},{"$f":"IF('[10]II.2.Balance OSD-Activos'!R122=\"\",\"\",'[10]II.2.Balance OSD-Activos'!R122)","v":38574.366499684715},{"$f":"IF('[10]II.2.Balance OSD-Activos'!S122=\"\",\"\",'[10]II.2.Balance OSD-Activos'!S122)","v":40778.22770568297},39250.234455275553,80654.917402071951,47.363952278825835,13.135238382766001,-16.852813619184992,12.676678128950414,9.0812428165650374,10.744110158882879,-0.13214076669745367,{"$f":"IF('[1]MONE(M)CAPARD'!AS264=\"\",\"\",'[1]MONE(M)CAPARD'!AS264)","v":6.5},{"$f":"IF('[1]MONE(M)CAPARD'!AT264=\"\",\"\",'[1]MONE(M)CAPARD'!AT264)","v":"n.a."},{"$f":"IF('[1]MONE(M)CAPARD'!AU264=\"\",\"\",'[1]MONE(M)CAPARD'!AU264)","v":4.75},{"$f":"IF('[1]MONE(M)CAPARD'!AV264=\"\",\"\",'[1]MONE(M)CAPARD'!AV264)","v":4.5},{"$f":"IF('[1]MONE(M)CAPARD'!AW264=\"\",\"\",'[1]MONE(M)CAPARD'!AW264)","v":"n.a."},{"$f":"IF('[1]MONE(M)CAPARD'!AX264=\"\",\"\",'[1]MONE(M)CAPARD'!AX264)","v":6},{"$f":"IF('[1]MONE(M)CAPARD'!AY264=\"\",\"\",'[1]MONE(M)CAPARD'!AY264)","v":"n.a."},{"$f":"IF('[1]FISCAL(M)'!$K264=\"\",\"\",'[1]FISCAL(M)'!$K264)","v":-1344.8880420944097},{"$f":"IF('[1]FISCAL(M)'!$L264=\"\",\"\",'[1]FISCAL(M)'!$L264)","v":-1666.4057885944094},{"$f":"IF('[1]FISCAL(M)'!$AY264=\"\",\"\",'[1]FISCAL(M)'!$AY264)","v":70177.338982489993},{"$f":"IF('[1]FISCAL(M)'!$BI264=\"\",\"\",'[1]FISCAL(M)'!$BI264)","v":35509.097570134552},{"$f":"IF('[1]FISCAL(M)'!$BS264=\"\",\"\",'[1]FISCAL(M)'!$BS264)","v":34668.241412355434},{"$f":"IF('[1]FISCAL(M)'!$AZ264=\"\",\"\",'[1]FISCAL(M)'!$AZ264)","v":82178.11133295999},{"$f":"IF('[1]FISCAL(M)'!$BJ264=\"\",\"\",'[1]FISCAL(M)'!$BJ264)","v":36917.560872594549},{"$f":"IF('[1]FISCAL(M)'!$BT264=\"\",\"\",'[1]FISCAL(M)'!$BT264)","v":45260.550460365441},{"$f":"IF('[2]MONE(M)'!$AO264=\"\",\"\",'[2]MONE(M)'!$AO264)","v":9506491.4430962242},{"$f":"IF('[3]MONE(M)'!$AO264=\"\",\"\",'[3]MONE(M)'!$AO264)","v":8614.5591606401213},{"$f":"IF('[4]MONE(M)'!$AO264=\"\",\"\",'[4]MONE(M)'!$AO264)","v":86021.201319454616},{"$f":"IF('[5]MONE(M)'!$AO264=\"\",\"\",'[5]MONE(M)'!$AO264)","v":146011.28068235048},{"$f":"IF('[6]MONE(M)'!$AO264=\"\",\"\",'[6]MONE(M)'!$AO264)","v":44407.497913753767},{"$f":"IF('[7]MONE(M)'!$AO264=\"\",\"\",'[7]MONE(M)'!$AO264)","v":441270.34053927998},{"$f":"IF('[8]MONE(M)'!$AO264=\"\",\"\",'[8]MONE(M)'!$AO264)","v":23600.663155729999},10.486937129435315,0.56099838477299269,5.1611650946535192,4.8176151042000237,6.0429494176976739,18.222418199924185,16.820923346148664,{"$f":"IF('[1]FISCAL(M)'!$K264=\"\",\"\",'[1]FISCAL(M)'!$K264)","v":-1344.8880420944097},{"$f":"+'[1]REAL(A)'!$AO$31","v":"n.d."},"n.d.",{"$f":"IF('[1]FISCAL(M)'!$L264=\"\",\"\",'[1]FISCAL(M)'!$L264)","v":-1666.4057885944094},{"$f":"+'[1]REAL(A)'!$AP$31","v":"n.d."},"n.d.",85075.785684542076,{"$f":"'[1]Gráfico REM'!BG258","v":19545.848978789909},{"$f":"'[1]Gráfico REM'!BH258","v":60375.505047814433},{"$f":"'[1]Gráfico REM'!BI258","v":5154.4316579377391},12.342665152923416,22.114876483841606,9.7112712012710887,9.8687573991452116,125214.55461514207,{"$f":"'[1]Gráfico REM'!BK258","v":20549.587879689909},{"$f":"'[1]Gráfico REM'!BL258","v":83976.168203544425},{"$f":"'[1]Gráfico REM'!BM258","v":20688.798531907742},12.820034612114961,20.524266045427986,11.62041885496965,10.622067378464894]
[2011,"abril","2011-abril",{"$f":"IF('[1]REAL IPC(M)'!$AL265=\"\",\"\",+'[1]REAL IPC(M)'!$AL265)","v":6.5759170127811961},{"$f":"IF('[1]REAL IPC(M)'!$BE265=\"\",\"\",+'[1]REAL IPC(M)'!$BE265)","v":5.5817596339665654},{"$f":"IF('[1]REAL IPC(M)'!$AM265=\"\",\"\",+'[1]REAL IPC(M)'!$AM265)","v":5.5520852191556447},{"$f":"IF('[1]REAL IPC(M)'!$BI265=\"\",\"\",+'[1]REAL IPC(M)'!$BI265)","v":5.0813695059422459},{"$f":"IF('[1]REAL IMAE(M)'!BJ265=\"\",\"\",'[1]REAL IMAE(M)'!BJ265)","v":4.1959235348751678},{"$f":"IF('[1]REAL IMAE(M)'!BK265=\"\",\"\",'[1]REAL IMAE(M)'!BK265)","v":3.6622248383143319},{"$f":"IF('[1]REAL IMAE(M)'!BN265=\"\",\"\",'[1]REAL IMAE(M)'!BN265)","v":5.3996640253045181},{"$f":"IF('[1]REAL IMAE(M)'!BO265=\"\",\"\",'[1]REAL IMAE(M)'!BO265)","v":4.3890351239044723},{"$f":"IF('[1]EXT RIN(M)'!$K265=\"\",\"\",'[1]EXT RIN(M)'!$K265)","v":21836.963522189395},"",{"$f":"IF('[1]EXT RIN(M)'!$L265=\"\",\"\",'[1]EXT RIN(M)'!$L265)","v":24229.653686339396},"",{"$f":"IF('[1]MONE(M)CARD'!EG265=\"\",\"\",'[1]MONE(M)CARD'!EG265)","v":23178.959825637539},{"$f":"IF('[1]MONE(M)CARD'!EK265=\"\",\"\",'[1]MONE(M)CARD'!EK265)","v":36817.948265564606},{"$f":"IF('[1]MONE(M)CARD'!EP265=\"\",\"\",'[1]MONE(M)CARD'!EP265)","v":21741.716493920219},{"$f":"IF('[1]MONE(M)CARD'!ES265=\"\",\"\",'[1]MONE(M)CARD'!ES265)","v":16.34820852941963},{"$f":"IF('[1]MONE(M)CARD'!EV265=\"\",\"\",'[1]MONE(M)CARD'!EV265)","v":10.888881572978914},{"$f":"IF('[1]MONE(M)CARD'!EZ265=\"\",\"\",'[1]MONE(M)CARD'!EZ265)","v":9.8544983081957369},{"$f":"IF('[1]MONE(M)CAPARD'!FC265=\"\",\"\",'[1]MONE(M)CAPARD'!FC265)","v":28584.953238567541},{"$f":"IF('[1]MONE(M)CAPARD'!FG265=\"\",\"\",'[1]MONE(M)CAPARD'!FG265)","v":56059.020104104609},{"$f":"IF('[1]MONE(M)CAPARD'!FL265=\"\",\"\",'[1]MONE(M)CAPARD'!FL265)","v":21741.716493920219},{"$f":"IF('[1]MONE(M)CAPARD'!FO265=\"\",\"\",'[1]MONE(M)CAPARD'!FO265)","v":17.029154469091388},{"$f":"IF('[1]MONE(M)CAPARD'!FR265=\"\",\"\",'[1]MONE(M)CAPARD'!FR265)","v":10.363185883889736},{"$f":"IF('[1]MONE(M)CAPARD'!FV265=\"\",\"\",'[1]MONE(M)CAPARD'!FV265)","v":9.6797342489728813},{"$f":"IF('[1]MONE(M)CARD'!FV265=\"\",\"\",'[1]MONE(M)CARD'!FV265)","v":2649.7444487305838},{"$f":"IF('[1]MONE(M)CARD'!GD265=\"\",\"\",'[1]MONE(M)CARD'!GD265)","v":155.22872536096548},{"$f":"IF('[1]MONE(M)CARD'!GE265=\"\",\"\",'[1]MONE(M)CARD'!GE265)","v":6306.5515333465983},10.334315867368304,{"$f":"IF('[9]II.2.Balance OSD-Activos'!J123=\"\",\"\",'[9]II.2.Balance OSD-Activos'!J123)","v":172.91794685993921},{"$f":"IF('[9]II.2.Balance OSD-Activos'!N123=\"\",\"\",'[9]II.2.Balance OSD-Activos'!N123)","v":417.59249600476949},{"$f":"IF('[9]II.2.Balance OSD-Activos'!R123=\"\",\"\",'[9]II.2.Balance OSD-Activos'!R123)","v":26518.899614868751},{"$f":"IF('[9]II.2.Balance OSD-Activos'!S123=\"\",\"\",'[9]II.2.Balance OSD-Activos'!S123)","v":30688.509323116443},26691.817561728691,57797.919380849904,-0.18283793525225578,9.2423623016114611,27.280370855828306,9.309664383582227,8.9996848945139476,9.2250814871383202,5.1530760449614021E-2,{"$f":"IF('[1]MONE(M)CAPARD'!GS265=\"\",\"\",'[1]MONE(M)CAPARD'!GS265)","v":13387.160687217904},{"$f":"IF('[1]MONE(M)CARD'!HA265=\"\",\"\",'[1]MONE(M)CAPARD'!HA265)","v":6854.9492437065974},{"$f":"IF('[1]MONE(M)CAPARD'!HB265=\"\",\"\",'[1]MONE(M)CAPARD'!HB265)","v":6532.2114435113062},"n.d.",{"$f":"IF('[10]II.2.Balance OSD-Activos'!J123=\"\",\"\",'[10]II.2.Balance OSD-Activos'!J123)","v":674.56811651993939},{"$f":"IF('[10]II.2.Balance OSD-Activos'!N123=\"\",\"\",'[10]II.2.Balance OSD-Activos'!N123)","v":673.87114657476957},{"$f":"IF('[10]II.2.Balance OSD-Activos'!R123=\"\",\"\",'[10]II.2.Balance OSD-Activos'!R123)","v":38688.495497958756},{"$f":"IF('[10]II.2.Balance OSD-Activos'!S123=\"\",\"\",'[10]II.2.Balance OSD-Activos'!S123)","v":41166.734394456442},39363.063614478699,81203.66915550991,42.663747403465571,13.070677091321548,13.484938046019668,12.663200698852496,9.2778437741365636,11.118847919193353,0.37473776031047379,{"$f":"IF('[1]MONE(M)CAPARD'!AS265=\"\",\"\",'[1]MONE(M)CAPARD'!AS265)","v":6.5},{"$f":"IF('[1]MONE(M)CAPARD'!AT265=\"\",\"\",'[1]MONE(M)CAPARD'!AT265)","v":"n.a."},{"$f":"IF('[1]MONE(M)CAPARD'!AU265=\"\",\"\",'[1]MONE(M)CAPARD'!AU265)","v":4.75},{"$f":"IF('[1]MONE(M)CAPARD'!AV265=\"\",\"\",'[1]MONE(M)CAPARD'!AV265)","v":4.5},{"$f":"IF('[1]MONE(M)CAPARD'!AW265=\"\",\"\",'[1]MONE(M)CAPARD'!AW265)","v":"n.a."},{"$f":"IF('[1]MONE(M)CAPARD'!AX265=\"\",\"\",'[1]MONE(M)CAPARD'!AX265)","v":6.25},{"$f":"IF('[1]MONE(M)CAPARD'!AY265=\"\",\"\",'[1]MONE(M)CAPARD'!AY265)","v":"n.a."},{"$f":"IF('[1]FISCAL(M)'!$K265=\"\",\"\",'[1]FISCAL(M)'!$K265)","v":-1163.0194599691147},{"$f":"IF('[1]FISCAL(M)'!$L265=\"\",\"\",'[1]FISCAL(M)'!$L265)","v":-1623.2254525891142},{"$f":"IF('[1]FISCAL(M)'!$AY265=\"\",\"\",'[1]FISCAL(M)'!$AY265)","v":70552.845042991888},{"$f":"IF('[1]FISCAL(M)'!$BI265=\"\",\"\",'[1]FISCAL(M)'!$BI265)","v":35830.086521613892},{"$f":"IF('[1]FISCAL(M)'!$BS265=\"\",\"\",'[1]FISCAL(M)'!$BS265)","v":34722.758521377989},{"$f":"IF('[1]FISCAL(M)'!$AZ265=\"\",\"\",'[1]FISCAL(M)'!$AZ265)","v":82878.946090741883},{"$f":"IF('[1]FISCAL(M)'!$BJ265=\"\",\"\",'[1]FISCAL(M)'!$BJ265)","v":37542.944478853897},{"$f":"IF('[1]FISCAL(M)'!$BT265=\"\",\"\",'[1]FISCAL(M)'!$BT265)","v":45336.001611887994},{"$f":"IF('[2]MONE(M)'!$AO265=\"\",\"\",'[2]MONE(M)'!$AO265)","v":9546568.3460912649},{"$f":"IF('[3]MONE(M)'!$AO265=\"\",\"\",'[3]MONE(M)'!$AO265)","v":8709.1625061901213},{"$f":"IF('[4]MONE(M)'!$AO265=\"\",\"\",'[4]MONE(M)'!$AO265)","v":85200.220193048328},{"$f":"IF('[5]MONE(M)'!$AO265=\"\",\"\",'[5]MONE(M)'!$AO265)","v":145836.00415090116},{"$f":"IF('[6]MONE(M)'!$AO265=\"\",\"\",'[6]MONE(M)'!$AO265)","v":44242.104723901415},{"$f":"IF('[7]MONE(M)'!$AO265=\"\",\"\",'[7]MONE(M)'!$AO265)","v":442343.28159104998},{"$f":"IF('[8]MONE(M)'!$AO265=\"\",\"\",'[8]MONE(M)'!$AO265)","v":23857.934232840005},12.248126368470214,1.6407084433277763,4.5230361161579191,4.1763012771780517,6.6318456087626876,17.41064347457959,17.205784273167257,{"$f":"IF('[1]FISCAL(M)'!$K265=\"\",\"\",'[1]FISCAL(M)'!$K265)","v":-1163.0194599691147},{"$f":"+'[1]REAL(A)'!$AO$31","v":"n.d."},"n.d.",{"$f":"IF('[1]FISCAL(M)'!$L265=\"\",\"\",'[1]FISCAL(M)'!$L265)","v":-1623.2254525891142},{"$f":"+'[1]REAL(A)'!$AP$31","v":"n.d."},"n.d.",85930.553218308385,{"$f":"'[1]Gráfico REM'!BG259","v":20089.098436883654},{"$f":"'[1]Gráfico REM'!BH259","v":60614.194253158275},{"$f":"'[1]Gráfico REM'!BI259","v":5227.2605282664526},12.477745110234185,22.479805223139635,9.8034106619248718,9.0514423788526699,126513.5465761284,{"$f":"'[1]Gráfico REM'!BK259","v":21148.844623613655},{"$f":"'[1]Gráfico REM'!BL259","v":84472.128485998284},{"$f":"'[1]Gráfico REM'!BM259","v":20892.573466516456},13.222610601203799,21.26018922902766,11.797634810846747,11.48758671851191]
[2011,"mayo ","2011-mayo ",{"$f":"IF('[1]REAL IPC(M)'!$AL266=\"\",\"\",+'[1]REAL IPC(M)'!$AL266)","v":6.8525943291108948},{"$f":"IF('[1]REAL IPC(M)'!$BE266=\"\",\"\",+'[1]REAL IPC(M)'!$BE266)","v":5.5621320940342001},{"$f":"IF('[1]REAL IPC(M)'!$AM266=\"\",\"\",+'[1]REAL IPC(M)'!$AM266)","v":5.8198406700379568},{"$f":"IF('[1]REAL IPC(M)'!$BI266=\"\",\"\",+'[1]REAL IPC(M)'!$BI266)","v":5.0573485225289483},{"$f":"IF('[1]REAL IMAE(M)'!BJ266=\"\",\"\",'[1]REAL IMAE(M)'!BJ266)","v":4.4252482925537073},{"$f":"IF('[1]REAL IMAE(M)'!BK266=\"\",\"\",'[1]REAL IMAE(M)'!BK266)","v":3.692411416928687},{"$f":"IF('[1]REAL IMAE(M)'!BN266=\"\",\"\",'[1]REAL IMAE(M)'!BN266)","v":5.4224867622038042},{"$f":"IF('[1]REAL IMAE(M)'!BO266=\"\",\"\",'[1]REAL IMAE(M)'!BO266)","v":4.4404229674307016},{"$f":"IF('[1]EXT RIN(M)'!$K266=\"\",\"\",'[1]EXT RIN(M)'!$K266)","v":21604.527207288796},"",{"$f":"IF('[1]EXT RIN(M)'!$L266=\"\",\"\",'[1]EXT RIN(M)'!$L266)","v":23878.822370268797},"",{"$f":"IF('[1]MONE(M)CARD'!EG266=\"\",\"\",'[1]MONE(M)CARD'!EG266)","v":22346.63864572837},{"$f":"IF('[1]MONE(M)CARD'!EK266=\"\",\"\",'[1]MONE(M)CARD'!EK266)","v":36841.648913944067},{"$f":"IF('[1]MONE(M)CARD'!EP266=\"\",\"\",'[1]MONE(M)CARD'!EP266)","v":21534.888094909489},{"$f":"IF('[1]MONE(M)CARD'!ES266=\"\",\"\",'[1]MONE(M)CARD'!ES266)","v":12.785652891274335},{"$f":"IF('[1]MONE(M)CARD'!EV266=\"\",\"\",'[1]MONE(M)CARD'!EV266)","v":9.5448425154466943},{"$f":"IF('[1]MONE(M)CARD'!EZ266=\"\",\"\",'[1]MONE(M)CARD'!EZ266)","v":8.3038128659076893},{"$f":"IF('[1]MONE(M)CAPARD'!FC266=\"\",\"\",'[1]MONE(M)CAPARD'!FC266)","v":27662.449783638371},{"$f":"IF('[1]MONE(M)CAPARD'!FG266=\"\",\"\",'[1]MONE(M)CAPARD'!FG266)","v":55739.982126104063},{"$f":"IF('[1]MONE(M)CAPARD'!FL266=\"\",\"\",'[1]MONE(M)CAPARD'!FL266)","v":21534.888094909489},{"$f":"IF('[1]MONE(M)CAPARD'!FO266=\"\",\"\",'[1]MONE(M)CAPARD'!FO266)","v":13.794243521818551},{"$f":"IF('[1]MONE(M)CAPARD'!FR266=\"\",\"\",'[1]MONE(M)CAPARD'!FR266)","v":8.7802813597771987},{"$f":"IF('[1]MONE(M)CAPARD'!FV266=\"\",\"\",'[1]MONE(M)CAPARD'!FV266)","v":7.9897033639178439},{"$f":"IF('[1]MONE(M)CARD'!FV266=\"\",\"\",'[1]MONE(M)CARD'!FV266)","v":2610.7820168493076},{"$f":"IF('[1]MONE(M)CARD'!GD266=\"\",\"\",'[1]MONE(M)CARD'!GD266)","v":74.19373401333047},{"$f":"IF('[1]MONE(M)CARD'!GE266=\"\",\"\",'[1]MONE(M)CARD'!GE266)","v":5917.4172767322698},-3.0565505151649353,{"$f":"IF('[9]II.2.Balance OSD-Activos'!J124=\"\",\"\",'[9]II.2.Balance OSD-Activos'!J124)","v":134.10450022253224},{"$f":"IF('[9]II.2.Balance OSD-Activos'!N124=\"\",\"\",'[9]II.2.Balance OSD-Activos'!N124)","v":409.63345636159181},{"$f":"IF('[9]II.2.Balance OSD-Activos'!R124=\"\",\"\",'[9]II.2.Balance OSD-Activos'!R124)","v":26515.674552529177},{"$f":"IF('[9]II.2.Balance OSD-Activos'!S124=\"\",\"\",'[9]II.2.Balance OSD-Activos'!S124)","v":30811.438206256731},26649.77905275171,57870.850715370034,-15.90014592287724,9.6921079247601192,22.040971423268729,9.8611902706086774,10.130637990107093,10.004109682102346,0.77902819496402564,{"$f":"IF('[1]MONE(M)CAPARD'!GS266=\"\",\"\",'[1]MONE(M)CAPARD'!GS266)","v":13156.921254500061},{"$f":"IF('[1]MONE(M)CARD'!HA266=\"\",\"\",'[1]MONE(M)CAPARD'!HA266)","v":6494.2128636422694},{"$f":"IF('[1]MONE(M)CAPARD'!HB266=\"\",\"\",'[1]MONE(M)CAPARD'!HB266)","v":6662.7083908577915},"n.d.",{"$f":"IF('[10]II.2.Balance OSD-Activos'!J124=\"\",\"\",'[10]II.2.Balance OSD-Activos'!J124)","v":739.17079570253213},{"$f":"IF('[10]II.2.Balance OSD-Activos'!N124=\"\",\"\",'[10]II.2.Balance OSD-Activos'!N124)","v":659.04334736159171},{"$f":"IF('[10]II.2.Balance OSD-Activos'!R124=\"\",\"\",'[10]II.2.Balance OSD-Activos'!R124)","v":38062.698970699174},{"$f":"IF('[10]II.2.Balance OSD-Activos'!S124=\"\",\"\",'[10]II.2.Balance OSD-Activos'!S124)","v":40798.381168576729},38801.869766401709,80259.294282340023,58.951893607109461,11.263458774970459,10.791172356620171,10.618959915668768,8.4753960143192142,9.8247231243095534,-1.2941247948837997,{"$f":"IF('[1]MONE(M)CAPARD'!AS266=\"\",\"\",'[1]MONE(M)CAPARD'!AS266)","v":6.5},{"$f":"IF('[1]MONE(M)CAPARD'!AT266=\"\",\"\",'[1]MONE(M)CAPARD'!AT266)","v":"n.a."},{"$f":"IF('[1]MONE(M)CAPARD'!AU266=\"\",\"\",'[1]MONE(M)CAPARD'!AU266)","v":4.75},{"$f":"IF('[1]MONE(M)CAPARD'!AV266=\"\",\"\",'[1]MONE(M)CAPARD'!AV266)","v":4.5},{"$f":"IF('[1]MONE(M)CAPARD'!AW266=\"\",\"\",'[1]MONE(M)CAPARD'!AW266)","v":"n.a."},{"$f":"IF('[1]MONE(M)CAPARD'!AX266=\"\",\"\",'[1]MONE(M)CAPARD'!AX266)","v":6.75},{"$f":"IF('[1]MONE(M)CAPARD'!AY266=\"\",\"\",'[1]MONE(M)CAPARD'!AY266)","v":"n.a."},{"$f":"IF('[1]FISCAL(M)'!$K266=\"\",\"\",'[1]FISCAL(M)'!$K266)","v":-1761.4706537939246},{"$f":"IF('[1]FISCAL(M)'!$L266=\"\",\"\",'[1]FISCAL(M)'!$L266)","v":-2374.2320250839243},{"$f":"IF('[1]FISCAL(M)'!$AY266=\"\",\"\",'[1]FISCAL(M)'!$AY266)","v":71261.414247202105},{"$f":"IF('[1]FISCAL(M)'!$BI266=\"\",\"\",'[1]FISCAL(M)'!$BI266)","v":36433.158064879113},{"$f":"IF('[1]FISCAL(M)'!$BS266=\"\",\"\",'[1]FISCAL(M)'!$BS266)","v":34828.256182322999},{"$f":"IF('[1]FISCAL(M)'!$AZ266=\"\",\"\",'[1]FISCAL(M)'!$AZ266)","v":83557.889961242123},{"$f":"IF('[1]FISCAL(M)'!$BJ266=\"\",\"\",'[1]FISCAL(M)'!$BJ266)","v":38127.409999419113},{"$f":"IF('[1]FISCAL(M)'!$BT266=\"\",\"\",'[1]FISCAL(M)'!$BT266)","v":45430.479961823003},{"$f":"IF('[2]MONE(M)'!$AO266=\"\",\"\",'[2]MONE(M)'!$AO266)","v":9700991.5610177889},{"$f":"IF('[3]MONE(M)'!$AO266=\"\",\"\",'[3]MONE(M)'!$AO266)","v":8687.473263330121},{"$f":"IF('[4]MONE(M)'!$AO266=\"\",\"\",'[4]MONE(M)'!$AO266)","v":86910.755090227511},{"$f":"IF('[5]MONE(M)'!$AO266=\"\",\"\",'[5]MONE(M)'!$AO266)","v":146479.05623902142},{"$f":"IF('[6]MONE(M)'!$AO266=\"\",\"\",'[6]MONE(M)'!$AO266)","v":44412.531211273774},{"$f":"IF('[7]MONE(M)'!$AO266=\"\",\"\",'[7]MONE(M)'!$AO266)","v":446590.37982990994},{"$f":"IF('[8]MONE(M)'!$AO266=\"\",\"\",'[8]MONE(M)'!$AO266)","v":22827.83568964},9.9189117859887599,2.1655979074988396,6.9443552921351515,4.7168295188808385,7.5702476260840923,16.658556288729322,10.374920475472749,{"$f":"IF('[1]FISCAL(M)'!$K266=\"\",\"\",'[1]FISCAL(M)'!$K266)","v":-1761.4706537939246},{"$f":"+'[1]REAL(A)'!$AO$31","v":"n.d."},{"$f":"IF(OR(CM259=\"n.d.\",CM259=\"\",CN259=\"\",CN259=\"n.d.\"),\"n.d.\",(CM259/CN259)*100)","v":"n.d."},{"$f":"IF('[1]FISCAL(M)'!$L266=\"\",\"\",'[1]FISCAL(M)'!$L266)","v":-2374.2320250839243},{"$f":"+'[1]REAL(A)'!$AP$31","v":"n.d."},"n.d.",{"$f":"+CT259+CU259+CV259","v":85847.731840909662},{"$f":"'[1]Gráfico REM'!BG260","v":20007.397754386075},{"$f":"'[1]Gráfico REM'!BH260","v":60748.928963137514},{"$f":"'[1]Gráfico REM'!BI260","v":5091.4051233860673},12.549562994310449,21.033417033144829,10.603067316706284,5.6342909878548619,{"$f":"+DB259+DC259+DD259","v":125461.32696005967},{"$f":"'[1]Gráfico REM'!BK260","v":20987.984288516076},{"$f":"'[1]Gráfico REM'!BL260","v":83576.764652777521},{"$f":"'[1]Gráfico REM'!BM260","v":20896.578018766064},12.248960593924929,18.729240815506977,10.540658595015584,13.039116630768465]
[2011,"junio ",{"$f":"A260&\"-\"&B260","v":"2011-junio "},{"$f":"IF('[1]REAL IPC(M)'!$AL267=\"\",\"\",+'[1]REAL IPC(M)'!$AL267)","v":7.40334603564472},{"$f":"IF('[1]REAL IPC(M)'!$BE267=\"\",\"\",+'[1]REAL IPC(M)'!$BE267)","v":5.5399270707729098},{"$f":"IF('[1]REAL IPC(M)'!$AM267=\"\",\"\",+'[1]REAL IPC(M)'!$AM267)","v":6.3422649786051721},{"$f":"IF('[1]REAL IPC(M)'!$BI267=\"\",\"\",+'[1]REAL IPC(M)'!$BI267)","v":5.031990526458352},{"$f":"IF('[1]REAL IMAE(M)'!BJ267=\"\",\"\",'[1]REAL IMAE(M)'!BJ267)","v":4.4005606532539598},{"$f":"IF('[1]REAL IMAE(M)'!BK267=\"\",\"\",'[1]REAL IMAE(M)'!BK267)","v":3.71828204907656},{"$f":"IF('[1]REAL IMAE(M)'!BN267=\"\",\"\",'[1]REAL IMAE(M)'!BN267)","v":5.2288793262059707},{"$f":"IF('[1]REAL IMAE(M)'!BO267=\"\",\"\",'[1]REAL IMAE(M)'!BO267)","v":4.4862219474738563},{"$f":"IF('[1]EXT RIN(M)'!$K267=\"\",\"\",'[1]EXT RIN(M)'!$K267)","v":21540.918808838822},{"$f":"IF(B260<>\"diciembre\",\"\",L260)","v":""},{"$f":"IF('[1]EXT RIN(M)'!$L267=\"\",\"\",'[1]EXT RIN(M)'!$L267)","v":23889.398043958823},{"$f":"IF(B260<>\"diciembre\",\"\",N260)","v":""},{"$f":"IF('[1]MONE(M)CARD'!EG267=\"\",\"\",'[1]MONE(M)CARD'!EG267)","v":22389.366448411449},{"$f":"IF('[1]MONE(M)CARD'!EK267=\"\",\"\",'[1]MONE(M)CARD'!EK267)","v":36744.916670876759},{"$f":"IF('[1]MONE(M)CARD'!EP267=\"\",\"\",'[1]MONE(M)CARD'!EP267)","v":21455.883936172868},{"$f":"IF('[1]MONE(M)CARD'!ES267=\"\",\"\",'[1]MONE(M)CARD'!ES267)","v":14.815828543288067},{"$f":"IF('[1]MONE(M)CARD'!EV267=\"\",\"\",'[1]MONE(M)CARD'!EV267)","v":9.3772050349114178},{"$f":"IF('[1]MONE(M)CARD'!EZ267=\"\",\"\",'[1]MONE(M)CARD'!EZ267)","v":7.6088812884250068},{"$f":"IF('[1]MONE(M)CAPARD'!FC267=\"\",\"\",'[1]MONE(M)CAPARD'!FC267)","v":27803.208858621452},{"$f":"IF('[1]MONE(M)CAPARD'!FG267=\"\",\"\",'[1]MONE(M)CAPARD'!FG267)","v":56254.215072036764},{"$f":"IF('[1]MONE(M)CAPARD'!FL267=\"\",\"\",'[1]MONE(M)CAPARD'!FL267)","v":21455.883936172875},{"$f":"IF('[1]MONE(M)CAPARD'!FO267=\"\",\"\",'[1]MONE(M)CAPARD'!FO267)","v":15.984086175672685},{"$f":"IF('[1]MONE(M)CAPARD'!FR267=\"\",\"\",'[1]MONE(M)CAPARD'!FR267)","v":9.580292624771424},{"$f":"IF('[1]MONE(M)CAPARD'!FV267=\"\",\"\",'[1]MONE(M)CAPARD'!FV267)","v":8.1791383996358888},{"$f":"IF('[1]MONE(M)CARD'!FV267=\"\",\"\",'[1]MONE(M)CARD'!FV267)","v":2685.2743130998892},{"$f":"IF('[1]MONE(M)CARD'!GD267=\"\",\"\",'[1]MONE(M)CARD'!GD267)","v":169.2140304824058},{"$f":"IF('[1]MONE(M)CARD'!GE267=\"\",\"\",'[1]MONE(M)CARD'!GE267)","v":6011.7395796997671},4.5347269879548735,{"$f":"IF('[9]II.2.Balance OSD-Activos'!J125=\"\",\"\",'[9]II.2.Balance OSD-Activos'!J125)","v":145.72451818124256},{"$f":"IF('[9]II.2.Balance OSD-Activos'!N125=\"\",\"\",'[9]II.2.Balance OSD-Activos'!N125)","v":405.77107129290454},{"$f":"IF('[9]II.2.Balance OSD-Activos'!R125=\"\",\"\",'[9]II.2.Balance OSD-Activos'!R125)","v":26715.711337652159},{"$f":"IF('[9]II.2.Balance OSD-Activos'!S125=\"\",\"\",'[9]II.2.Balance OSD-Activos'!S125)","v":31113.965219211055},26861.435855833402,58381.172146337361,-21.008026246051713,10.453076503011371,22.550307253373859,10.693556635797364,10.449144563883417,10.526810641309581,0.52270095920723492,{"$f":"IF('[1]MONE(M)CAPARD'!GS267=\"\",\"\",'[1]MONE(M)CAPARD'!GS267)","v":13857.405886318214},{"$f":"IF('[1]MONE(M)CARD'!HA267=\"\",\"\",'[1]MONE(M)CAPARD'!HA267)","v":6597.6367224897667},{"$f":"IF('[1]MONE(M)CAPARD'!HB267=\"\",\"\",'[1]MONE(M)CAPARD'!HB267)","v":7259.7691638284477},"n.d.",{"$f":"IF('[10]II.2.Balance OSD-Activos'!J125=\"\",\"\",'[10]II.2.Balance OSD-Activos'!J125)","v":757.96011530124235},{"$f":"IF('[10]II.2.Balance OSD-Activos'!N125=\"\",\"\",'[10]II.2.Balance OSD-Activos'!N125)","v":776.87522873290459},{"$f":"IF('[10]II.2.Balance OSD-Activos'!R125=\"\",\"\",'[10]II.2.Balance OSD-Activos'!R125)","v":39342.173756342163},{"$f":"IF('[10]II.2.Balance OSD-Activos'!S125=\"\",\"\",'[10]II.2.Balance OSD-Activos'!S125)","v":41708.086683231057},40100.133871643404,82585.095783607365,49.774313307154358,13.393154800188967,31.40753832016836,12.864969443505325,9.4843218674597765,11.526078028798349,1.7013549044887952,{"$f":"IF('[1]MONE(M)CAPARD'!AS267=\"\",\"\",'[1]MONE(M)CAPARD'!AS267)","v":5},{"$f":"IF('[1]MONE(M)CAPARD'!AT267=\"\",\"\",'[1]MONE(M)CAPARD'!AT267)","v":"n.a."},{"$f":"IF('[1]MONE(M)CAPARD'!AU267=\"\",\"\",'[1]MONE(M)CAPARD'!AU267)","v":4.75},{"$f":"IF('[1]MONE(M)CAPARD'!AV267=\"\",\"\",'[1]MONE(M)CAPARD'!AV267)","v":4.5},{"$f":"IF('[1]MONE(M)CAPARD'!AW267=\"\",\"\",'[1]MONE(M)CAPARD'!AW267)","v":"n.a."},{"$f":"IF('[1]MONE(M)CAPARD'!AX267=\"\",\"\",'[1]MONE(M)CAPARD'!AX267)","v":6.75},{"$f":"IF('[1]MONE(M)CAPARD'!AY267=\"\",\"\",'[1]MONE(M)CAPARD'!AY267)","v":"n.a."},{"$f":"IF('[1]FISCAL(M)'!$K267=\"\",\"\",'[1]FISCAL(M)'!$K267)","v":-2261.8119148762135},{"$f":"IF('[1]FISCAL(M)'!$L267=\"\",\"\",'[1]FISCAL(M)'!$L267)","v":-2677.5353555262136},{"$f":"IF('[1]FISCAL(M)'!$AY267=\"\",\"\",'[1]FISCAL(M)'!$AY267)","v":71885.632417559507},{"$f":"IF('[1]FISCAL(M)'!$BI267=\"\",\"\",'[1]FISCAL(M)'!$BI267)","v":37003.789981618276},{"$f":"IF('[1]FISCAL(M)'!$BS267=\"\",\"\",'[1]FISCAL(M)'!$BS267)","v":34881.842435941238},{"$f":"IF('[1]FISCAL(M)'!$AZ267=\"\",\"\",'[1]FISCAL(M)'!$AZ267)","v":84477.765024889508},{"$f":"IF('[1]FISCAL(M)'!$BJ267=\"\",\"\",'[1]FISCAL(M)'!$BJ267)","v":38977.180425068276},{"$f":"IF('[1]FISCAL(M)'!$BT267=\"\",\"\",'[1]FISCAL(M)'!$BT267)","v":45500.584599821232},{"$f":"IF('[2]MONE(M)'!$AO267=\"\",\"\",'[2]MONE(M)'!$AO267)","v":9774692.2155628782},{"$f":"IF('[3]MONE(M)'!$AO267=\"\",\"\",'[3]MONE(M)'!$AO267)","v":8677.38789301012},{"$f":"IF('[4]MONE(M)'!$AO267=\"\",\"\",'[4]MONE(M)'!$AO267)","v":88214.304191987379},{"$f":"IF('[5]MONE(M)'!$AO267=\"\",\"\",'[5]MONE(M)'!$AO267)","v":147264.93489660055},{"$f":"IF('[6]MONE(M)'!$AO267=\"\",\"\",'[6]MONE(M)'!$AO267)","v":44337.360101023783},{"$f":"IF('[7]MONE(M)'!$AO267=\"\",\"\",'[7]MONE(M)'!$AO267)","v":449338.85697361},{"$f":"IF('[8]MONE(M)'!$AO267=\"\",\"\",'[8]MONE(M)'!$AO267)","v":24537.730655620006},9.0644657584439514,2.267862470689086,7.9500860240427906,5.9140927376796215,6.5484375648153348,15.623846410260356,14.375454097222097,{"$f":"IF('[1]FISCAL(M)'!$K267=\"\",\"\",'[1]FISCAL(M)'!$K267)","v":-2261.8119148762135},{"$f":"+'[1]REAL(A)'!$AO$31","v":"n.d."},"n.d.",{"$f":"IF('[1]FISCAL(M)'!$L267=\"\",\"\",'[1]FISCAL(M)'!$L267)","v":-2677.5353555262136},{"$f":"+'[1]REAL(A)'!$AP$31","v":"n.d."},{"$f":"IF(OR(CP260=\"n.d.\",CP260=\"\",CQ260=\"\",CQ260=\"n.d.\"),\"n.d.\",(CP260/CQ260)*100)","v":"n.d."},86892.66115274289,{"$f":"'[1]Gráfico REM'!BG261","v":20735.266105581504},{"$f":"'[1]Gráfico REM'!BH261","v":61226.297113167238},{"$f":"'[1]Gráfico REM'!BI261","v":4931.0979339941459},12.772565156216697,23.538309822744719,10.426821056144298,2.270431716029786,129211.6132936729,{"$f":"'[1]Gráfico REM'!BK261","v":21754.953350211505},{"$f":"'[1]Gráfico REM'!BL261","v":85764.027768787244},{"$f":"'[1]Gráfico REM'!BM261","v":21692.632174674145},14.448799571188054,22.167489478710035,11.528433344609489,19.237637046959044]
[2011,"julio","2011-julio",{"$f":"IF('[1]REAL IPC(M)'!$AL268=\"\",\"\",+'[1]REAL IPC(M)'!$AL268)","v":7.6955252752427095},{"$f":"IF('[1]REAL IPC(M)'!$BE268=\"\",\"\",+'[1]REAL IPC(M)'!$BE268)","v":5.5147606737621979},{"$f":"IF('[1]REAL IPC(M)'!$AM268=\"\",\"\",+'[1]REAL IPC(M)'!$AM268)","v":6.568700106769465},{"$f":"IF('[1]REAL IPC(M)'!$BI268=\"\",\"\",+'[1]REAL IPC(M)'!$BI268)","v":5.005000301295448},{"$f":"IF('[1]REAL IMAE(M)'!BJ268=\"\",\"\",'[1]REAL IMAE(M)'!BJ268)","v":4.2864380821742598},{"$f":"IF('[1]REAL IMAE(M)'!BK268=\"\",\"\",'[1]REAL IMAE(M)'!BK268)","v":3.7401698151577456},{"$f":"IF('[1]REAL IMAE(M)'!BN268=\"\",\"\",'[1]REAL IMAE(M)'!BN268)","v":5.1272854946125879},{"$f":"IF('[1]REAL IMAE(M)'!BO268=\"\",\"\",'[1]REAL IMAE(M)'!BO268)","v":4.5266456887258943},{"$f":"IF('[1]EXT RIN(M)'!$K268=\"\",\"\",'[1]EXT RIN(M)'!$K268)","v":22134.017765918263},"",{"$f":"IF('[1]EXT RIN(M)'!$L268=\"\",\"\",'[1]EXT RIN(M)'!$L268)","v":24249.814748468263},"",{"$f":"IF('[1]MONE(M)CARD'!EG268=\"\",\"\",'[1]MONE(M)CARD'!EG268)","v":22890.662000381897},{"$f":"IF('[1]MONE(M)CARD'!EK268=\"\",\"\",'[1]MONE(M)CARD'!EK268)","v":36983.770554078343},{"$f":"IF('[1]MONE(M)CARD'!EP268=\"\",\"\",'[1]MONE(M)CARD'!EP268)","v":21289.813748946799},{"$f":"IF('[1]MONE(M)CARD'!ES268=\"\",\"\",'[1]MONE(M)CARD'!ES268)","v":15.269802430966495},{"$f":"IF('[1]MONE(M)CARD'!EV268=\"\",\"\",'[1]MONE(M)CARD'!EV268)","v":9.4244407189882473},{"$f":"IF('[1]MONE(M)CARD'!EZ268=\"\",\"\",'[1]MONE(M)CARD'!EZ268)","v":7.2287439067411308},{"$f":"IF('[1]MONE(M)CAPARD'!FC268=\"\",\"\",'[1]MONE(M)CAPARD'!FC268)","v":28478.904644971899},{"$f":"IF('[1]MONE(M)CAPARD'!FG268=\"\",\"\",'[1]MONE(M)CAPARD'!FG268)","v":56713.747173998345},{"$f":"IF('[1]MONE(M)CAPARD'!FL268=\"\",\"\",'[1]MONE(M)CAPARD'!FL268)","v":21289.813748946821},{"$f":"IF('[1]MONE(M)CAPARD'!FO268=\"\",\"\",'[1]MONE(M)CAPARD'!FO268)","v":16.872845335239226},{"$f":"IF('[1]MONE(M)CAPARD'!FR268=\"\",\"\",'[1]MONE(M)CAPARD'!FR268)","v":10.020052887764175},{"$f":"IF('[1]MONE(M)CAPARD'!FV268=\"\",\"\",'[1]MONE(M)CAPARD'!FV268)","v":8.2042489815212338},{"$f":"IF('[1]MONE(M)CARD'!FV268=\"\",\"\",'[1]MONE(M)CARD'!FV268)","v":2927.5499690684996},{"$f":"IF('[1]MONE(M)CARD'!GD268=\"\",\"\",'[1]MONE(M)CARD'!GD268)","v":86.759609584986521},{"$f":"IF('[1]MONE(M)CARD'!GE268=\"\",\"\",'[1]MONE(M)CARD'!GE268)","v":6133.4306912783377},8.0403394678386206,{"$f":"IF('[9]II.2.Balance OSD-Activos'!J126=\"\",\"\",'[9]II.2.Balance OSD-Activos'!J126)","v":149.55545718050359},{"$f":"IF('[9]II.2.Balance OSD-Activos'!N126=\"\",\"\",'[9]II.2.Balance OSD-Activos'!N126)","v":423.20707933234451},{"$f":"IF('[9]II.2.Balance OSD-Activos'!R126=\"\",\"\",'[9]II.2.Balance OSD-Activos'!R126)","v":26896.386847225149},{"$f":"IF('[9]II.2.Balance OSD-Activos'!S126=\"\",\"\",'[9]II.2.Balance OSD-Activos'!S126)","v":31473.201034764919},27045.942304405653,58942.350418502916,-17.676636800954991,10.643245643000876,26.57244312627909,10.855293114667642,10.365305649905366,10.594461106100406,6.7650464790824927E-2,{"$f":"IF('[1]MONE(M)CAPARD'!GS268=\"\",\"\",'[1]MONE(M)CAPARD'!GS268)","v":13591.441156476842},{"$f":"IF('[1]MONE(M)CARD'!HA268=\"\",\"\",'[1]MONE(M)CAPARD'!HA268)","v":6723.8996075983378},{"$f":"IF('[1]MONE(M)CAPARD'!HB268=\"\",\"\",'[1]MONE(M)CAPARD'!HB268)","v":6867.5415488785038},"n.d.",{"$f":"IF('[10]II.2.Balance OSD-Activos'!J126=\"\",\"\",'[10]II.2.Balance OSD-Activos'!J126)","v":767.57126744050345},{"$f":"IF('[10]II.2.Balance OSD-Activos'!N126=\"\",\"\",'[10]II.2.Balance OSD-Activos'!N126)","v":827.93687663234448},{"$f":"IF('[10]II.2.Balance OSD-Activos'!R126=\"\",\"\",'[10]II.2.Balance OSD-Activos'!R126)","v":39866.239380995154},{"$f":"IF('[10]II.2.Balance OSD-Activos'!S126=\"\",\"\",'[10]II.2.Balance OSD-Activos'!S126)","v":42074.195946784916},40633.810648435654,83535.943471852923,56.499058671163006,14.51024095350164,39.199001753733342,13.92174701732538,9.2586933193555154,11.995827543916061,0.46974951511771224,{"$f":"IF('[1]MONE(M)CAPARD'!AS268=\"\",\"\",'[1]MONE(M)CAPARD'!AS268)","v":5},{"$f":"IF('[1]MONE(M)CAPARD'!AT268=\"\",\"\",'[1]MONE(M)CAPARD'!AT268)","v":"n.a."},{"$f":"IF('[1]MONE(M)CAPARD'!AU268=\"\",\"\",'[1]MONE(M)CAPARD'!AU268)","v":5},{"$f":"IF('[1]MONE(M)CAPARD'!AV268=\"\",\"\",'[1]MONE(M)CAPARD'!AV268)","v":4.5},{"$f":"IF('[1]MONE(M)CAPARD'!AW268=\"\",\"\",'[1]MONE(M)CAPARD'!AW268)","v":"n.a."},{"$f":"IF('[1]MONE(M)CAPARD'!AX268=\"\",\"\",'[1]MONE(M)CAPARD'!AX268)","v":6.75},{"$f":"IF('[1]MONE(M)CAPARD'!AY268=\"\",\"\",'[1]MONE(M)CAPARD'!AY268)","v":"n.a."},{"$f":"IF('[1]FISCAL(M)'!$K268=\"\",\"\",'[1]FISCAL(M)'!$K268)","v":-2755.2746874626409},{"$f":"IF('[1]FISCAL(M)'!$L268=\"\",\"\",'[1]FISCAL(M)'!$L268)","v":-3359.4755965226404},{"$f":"IF('[1]FISCAL(M)'!$AY268=\"\",\"\",'[1]FISCAL(M)'!$AY268)","v":72769.224309573648},{"$f":"IF('[1]FISCAL(M)'!$BI268=\"\",\"\",'[1]FISCAL(M)'!$BI268)","v":37151.012600395428},{"$f":"IF('[1]FISCAL(M)'!$BS268=\"\",\"\",'[1]FISCAL(M)'!$BS268)","v":35618.211709178213},{"$f":"IF('[1]FISCAL(M)'!$AZ268=\"\",\"\",'[1]FISCAL(M)'!$AZ268)","v":85499.83054268366},{"$f":"IF('[1]FISCAL(M)'!$BJ268=\"\",\"\",'[1]FISCAL(M)'!$BJ268)","v":39208.973076715432},{"$f":"IF('[1]FISCAL(M)'!$BT268=\"\",\"\",'[1]FISCAL(M)'!$BT268)","v":46290.85746596822},{"$f":"IF('[2]MONE(M)'!$AO268=\"\",\"\",'[2]MONE(M)'!$AO268)","v":9891237.1977583189},{"$f":"IF('[3]MONE(M)'!$AO268=\"\",\"\",'[3]MONE(M)'!$AO268)","v":8725.5295274101209},{"$f":"IF('[4]MONE(M)'!$AO268=\"\",\"\",'[4]MONE(M)'!$AO268)","v":88584.586281566997},{"$f":"IF('[5]MONE(M)'!$AO268=\"\",\"\",'[5]MONE(M)'!$AO268)","v":148391.80736532705},{"$f":"IF('[6]MONE(M)'!$AO268=\"\",\"\",'[6]MONE(M)'!$AO268)","v":44699.583837033773},{"$f":"IF('[7]MONE(M)'!$AO268=\"\",\"\",'[7]MONE(M)'!$AO268)","v":455480.58472166007},{"$f":"IF('[8]MONE(M)'!$AO268=\"\",\"\",'[8]MONE(M)'!$AO268)","v":24900.120694450001},11.188723328922091,1.7984255621270595,8.5819012190139645,7.0671663460430523,7.264639259770922,16.368136076046035,15.733142299677215,{"$f":"IF('[1]FISCAL(M)'!$K268=\"\",\"\",'[1]FISCAL(M)'!$K268)","v":-2755.2746874626409},{"$f":"+'[1]REAL(A)'!$AO$31","v":"n.d."},"n.d.",{"$f":"IF('[1]FISCAL(M)'!$L268=\"\",\"\",'[1]FISCAL(M)'!$L268)","v":-3359.4755965226404},{"$f":"+'[1]REAL(A)'!$AP$31","v":"n.d."},"n.d.",86916.487692926952,{"$f":"'[1]Gráfico REM'!BG262","v":20310.872934212221},{"$f":"'[1]Gráfico REM'!BH262","v":61729.771538304827},{"$f":"'[1]Gráfico REM'!BI262","v":4875.8432204099099},11.437969591064356,17.740415553331367,10.1781966172378,3.3535949984324409,130189.31575677695,{"$f":"'[1]Gráfico REM'!BK262","v":21402.598609292221},{"$f":"'[1]Gráfico REM'!BL262","v":86629.892232754821},{"$f":"'[1]Gráfico REM'!BM262","v":22156.824914729907},14.378454546304177,17.971399672847244,11.719487770352499,22.151782655937712]
[2011,"agosto","2011-agosto",{"$f":"IF('[1]REAL IPC(M)'!$AL269=\"\",\"\",+'[1]REAL IPC(M)'!$AL269)","v":8.005213627558593},{"$f":"IF('[1]REAL IPC(M)'!$BE269=\"\",\"\",+'[1]REAL IPC(M)'!$BE269)","v":5.486363401657024},{"$f":"IF('[1]REAL IPC(M)'!$AM269=\"\",\"\",+'[1]REAL IPC(M)'!$AM269)","v":6.8569713780824992},{"$f":"IF('[1]REAL IPC(M)'!$BI269=\"\",\"\",+'[1]REAL IPC(M)'!$BI269)","v":4.9761715825713759},{"$f":"IF('[1]REAL IMAE(M)'!BJ269=\"\",\"\",'[1]REAL IMAE(M)'!BJ269)","v":4.0900265768890831},{"$f":"IF('[1]REAL IMAE(M)'!BK269=\"\",\"\",'[1]REAL IMAE(M)'!BK269)","v":3.7584462847791267},{"$f":"IF('[1]REAL IMAE(M)'!BN269=\"\",\"\",'[1]REAL IMAE(M)'!BN269)","v":5.0417199424650505},{"$f":"IF('[1]REAL IMAE(M)'!BO269=\"\",\"\",'[1]REAL IMAE(M)'!BO269)","v":4.5619588649332909},{"$f":"IF('[1]EXT RIN(M)'!$K269=\"\",\"\",'[1]EXT RIN(M)'!$K269)","v":21294.223249136452},"",{"$f":"IF('[1]EXT RIN(M)'!$L269=\"\",\"\",'[1]EXT RIN(M)'!$L269)","v":23208.238909846452},"",{"$f":"IF('[1]MONE(M)CARD'!EG269=\"\",\"\",'[1]MONE(M)CARD'!EG269)","v":22299.95174824282},{"$f":"IF('[1]MONE(M)CARD'!EK269=\"\",\"\",'[1]MONE(M)CARD'!EK269)","v":37248.888505038682},{"$f":"IF('[1]MONE(M)CARD'!EP269=\"\",\"\",'[1]MONE(M)CARD'!EP269)","v":21186.975064222752},{"$f":"IF('[1]MONE(M)CARD'!ES269=\"\",\"\",'[1]MONE(M)CARD'!ES269)","v":12.726660249303713},{"$f":"IF('[1]MONE(M)CARD'!EV269=\"\",\"\",'[1]MONE(M)CARD'!EV269)","v":8.7989687631981681},{"$f":"IF('[1]MONE(M)CARD'!EZ269=\"\",\"\",'[1]MONE(M)CARD'!EZ269)","v":6.6722574899870102},{"$f":"IF('[1]MONE(M)CAPARD'!FC269=\"\",\"\",'[1]MONE(M)CAPARD'!FC269)","v":28004.558915362817},{"$f":"IF('[1]MONE(M)CAPARD'!FG269=\"\",\"\",'[1]MONE(M)CAPARD'!FG269)","v":56967.032201668691},{"$f":"IF('[1]MONE(M)CAPARD'!FL269=\"\",\"\",'[1]MONE(M)CAPARD'!FL269)","v":21186.975064222745},{"$f":"IF('[1]MONE(M)CAPARD'!FO269=\"\",\"\",'[1]MONE(M)CAPARD'!FO269)","v":14.968584435256682},{"$f":"IF('[1]MONE(M)CAPARD'!FR269=\"\",\"\",'[1]MONE(M)CAPARD'!FR269)","v":9.5557744669366294},{"$f":"IF('[1]MONE(M)CAPARD'!FV269=\"\",\"\",'[1]MONE(M)CAPARD'!FV269)","v":7.7608930296297673},{"$f":"IF('[1]MONE(M)CARD'!FV269=\"\",\"\",'[1]MONE(M)CARD'!FV269)","v":2893.7265671141113},{"$f":"IF('[1]MONE(M)CARD'!GD269=\"\",\"\",'[1]MONE(M)CARD'!GD269)","v":82.676637046956074},{"$f":"IF('[1]MONE(M)CARD'!GE269=\"\",\"\",'[1]MONE(M)CARD'!GE269)","v":5951.3668046620705},1.8229126043376453,{"$f":"IF('[9]II.2.Balance OSD-Activos'!J127=\"\",\"\",'[9]II.2.Balance OSD-Activos'!J127)","v":154.13882019456634},{"$f":"IF('[9]II.2.Balance OSD-Activos'!N127=\"\",\"\",'[9]II.2.Balance OSD-Activos'!N127)","v":416.27375281355626},{"$f":"IF('[9]II.2.Balance OSD-Activos'!R127=\"\",\"\",'[9]II.2.Balance OSD-Activos'!R127)","v":26775.835732879812},{"$f":"IF('[9]II.2.Balance OSD-Activos'!S127=\"\",\"\",'[9]II.2.Balance OSD-Activos'!S127)","v":31805.14235029566},26929.974553074378,59151.39065618359,-33.575807214905687,9.2397830579670881,28.219403012075727,9.6466383478997599,10.528604413341514,10.044368634128475,-0.55009247197193112,{"$f":"IF('[1]MONE(M)CAPARD'!GS269=\"\",\"\",'[1]MONE(M)CAPARD'!GS269)","v":13554.936889476079},{"$f":"IF('[1]MONE(M)CARD'!HA269=\"\",\"\",'[1]MONE(M)CAPARD'!HA269)","v":6543.1751887820701},{"$f":"IF('[1]MONE(M)CAPARD'!HB269=\"\",\"\",'[1]MONE(M)CAPARD'!HB269)","v":7011.7617006940091},"n.d.",{"$f":"IF('[10]II.2.Balance OSD-Activos'!J127=\"\",\"\",'[10]II.2.Balance OSD-Activos'!J127)","v":823.78786613456634},{"$f":"IF('[10]II.2.Balance OSD-Activos'!N127=\"\",\"\",'[10]II.2.Balance OSD-Activos'!N127)","v":815.48039147355632},{"$f":"IF('[10]II.2.Balance OSD-Activos'!R127=\"\",\"\",'[10]II.2.Balance OSD-Activos'!R127)","v":40221.907420159812},{"$f":"IF('[10]II.2.Balance OSD-Activos'!S127=\"\",\"\",'[10]II.2.Balance OSD-Activos'!S127)","v":42495.224868705656},41045.69528629438,84356.400546473596,49.490103696615705,13.874331558456387,45.707490009134702,13.321370601146088,9.484916634406515,11.851560430936958,-0.14426711297910266,{"$f":"IF('[1]MONE(M)CAPARD'!AS269=\"\",\"\",'[1]MONE(M)CAPARD'!AS269)","v":5},{"$f":"IF('[1]MONE(M)CAPARD'!AT269=\"\",\"\",'[1]MONE(M)CAPARD'!AT269)","v":"n.a."},{"$f":"IF('[1]MONE(M)CAPARD'!AU269=\"\",\"\",'[1]MONE(M)CAPARD'!AU269)","v":5},{"$f":"IF('[1]MONE(M)CAPARD'!AV269=\"\",\"\",'[1]MONE(M)CAPARD'!AV269)","v":4.5},{"$f":"IF('[1]MONE(M)CAPARD'!AW269=\"\",\"\",'[1]MONE(M)CAPARD'!AW269)","v":"n.a."},{"$f":"IF('[1]MONE(M)CAPARD'!AX269=\"\",\"\",'[1]MONE(M)CAPARD'!AX269)","v":6.75},{"$f":"IF('[1]MONE(M)CAPARD'!AY269=\"\",\"\",'[1]MONE(M)CAPARD'!AY269)","v":"n.a."},{"$f":"IF('[1]FISCAL(M)'!$K269=\"\",\"\",'[1]FISCAL(M)'!$K269)","v":-3173.2470216616666},{"$f":"IF('[1]FISCAL(M)'!$L269=\"\",\"\",'[1]FISCAL(M)'!$L269)","v":-4109.0331147916677},{"$f":"IF('[1]FISCAL(M)'!$AY269=\"\",\"\",'[1]FISCAL(M)'!$AY269)","v":72606.938588626668},{"$f":"IF('[1]FISCAL(M)'!$BI269=\"\",\"\",'[1]FISCAL(M)'!$BI269)","v":37196.388588626665},{"$f":"IF('[1]FISCAL(M)'!$BS269=\"\",\"\",'[1]FISCAL(M)'!$BS269)","v":35410.550000000003},{"$f":"IF('[1]FISCAL(M)'!$AZ269=\"\",\"\",'[1]FISCAL(M)'!$AZ269)","v":85348.108981396668},{"$f":"IF('[1]FISCAL(M)'!$BJ269=\"\",\"\",'[1]FISCAL(M)'!$BJ269)","v":39251.918604096667},{"$f":"IF('[1]FISCAL(M)'!$BT269=\"\",\"\",'[1]FISCAL(M)'!$BT269)","v":46096.190377300001},{"$f":"IF('[2]MONE(M)'!$AO269=\"\",\"\",'[2]MONE(M)'!$AO269)","v":10057386.237096863},{"$f":"IF('[3]MONE(M)'!$AO269=\"\",\"\",'[3]MONE(M)'!$AO269)","v":8708.7924128001214},{"$f":"IF('[4]MONE(M)'!$AO269=\"\",\"\",'[4]MONE(M)'!$AO269)","v":89001.923816099472},{"$f":"IF('[5]MONE(M)'!$AO269=\"\",\"\",'[5]MONE(M)'!$AO269)","v":149456.9303408878},{"$f":"IF('[6]MONE(M)'!$AO269=\"\",\"\",'[6]MONE(M)'!$AO269)","v":45733.401889663779},{"$f":"IF('[7]MONE(M)'!$AO269=\"\",\"\",'[7]MONE(M)'!$AO269)","v":459852.30398615007},{"$f":"IF('[8]MONE(M)'!$AO269=\"\",\"\",'[8]MONE(M)'!$AO269)","v":25559.926031169998},12.781213977722183,1.8123478437119145,8.4466687554852093,8.130804879939312,9.2512799660430911,15.268418555126217,16.596655138466907,{"$f":"IF('[1]FISCAL(M)'!$K269=\"\",\"\",'[1]FISCAL(M)'!$K269)","v":-3173.2470216616666},{"$f":"+'[1]REAL(A)'!$AO$31","v":"n.d."},"n.d.",{"$f":"IF('[1]FISCAL(M)'!$L269=\"\",\"\",'[1]FISCAL(M)'!$L269)","v":-4109.0331147916677},{"$f":"+'[1]REAL(A)'!$AP$31","v":"n.d."},"n.d.",86753.92216890656,{"$f":"'[1]Gráfico REM'!BG263","v":20053.954708573714},{"$f":"'[1]Gráfico REM'!BH263","v":61968.203700410908},{"$f":"'[1]Gráfico REM'!BI263","v":4731.7637599219333},10.270770809767615,15.865136548525772,9.7051401439896665,-3.0253885330713715,130761.53251697656,{"$f":"'[1]Gráfico REM'!BK263","v":21144.380897383715},{"$f":"'[1]Gráfico REM'!BL263","v":87528.129731580906},{"$f":"'[1]Gráfico REM'!BM263","v":22089.021888011932},13.110127898460199,16.51309891667556,11.63190580079676,15.95254787712388]
[2011,"septiembre","2011-septiembre",{"$f":"IF('[1]REAL IPC(M)'!$AL270=\"\",\"\",+'[1]REAL IPC(M)'!$AL270)","v":7.5651658519138021},{"$f":"IF('[1]REAL IPC(M)'!$BE270=\"\",\"\",+'[1]REAL IPC(M)'!$BE270)","v":5.454603209936959},{"$f":"IF('[1]REAL IPC(M)'!$AM270=\"\",\"\",+'[1]REAL IPC(M)'!$AM270)","v":6.4779255151511395},{"$f":"IF('[1]REAL IPC(M)'!$BI270=\"\",\"\",+'[1]REAL IPC(M)'!$BI270)","v":4.9454097459302071},{"$f":"IF('[1]REAL IMAE(M)'!BJ270=\"\",\"\",'[1]REAL IMAE(M)'!BJ270)","v":3.7820192881932169},{"$f":"IF('[1]REAL IMAE(M)'!BK270=\"\",\"\",'[1]REAL IMAE(M)'!BK270)","v":3.7735128471597212},{"$f":"IF('[1]REAL IMAE(M)'!BN270=\"\",\"\",'[1]REAL IMAE(M)'!BN270)","v":4.8327340320245771},{"$f":"IF('[1]REAL IMAE(M)'!BO270=\"\",\"\",'[1]REAL IMAE(M)'!BO270)","v":4.5924662177092568},{"$f":"IF('[1]EXT RIN(M)'!$K270=\"\",\"\",'[1]EXT RIN(M)'!$K270)","v":20709.361117411754},"",{"$f":"IF('[1]EXT RIN(M)'!$L270=\"\",\"\",'[1]EXT RIN(M)'!$L270)","v":22507.489649351755},"",{"$f":"IF('[1]MONE(M)CARD'!EG270=\"\",\"\",'[1]MONE(M)CARD'!EG270)","v":22224.798643998402},{"$f":"IF('[1]MONE(M)CARD'!EK270=\"\",\"\",'[1]MONE(M)CARD'!EK270)","v":37150.266011902539},{"$f":"IF('[1]MONE(M)CARD'!EP270=\"\",\"\",'[1]MONE(M)CARD'!EP270)","v":20934.585613389841},{"$f":"IF('[1]MONE(M)CARD'!ES270=\"\",\"\",'[1]MONE(M)CARD'!ES270)","v":12.671940427251016},{"$f":"IF('[1]MONE(M)CARD'!EV270=\"\",\"\",'[1]MONE(M)CARD'!EV270)","v":8.9876659384207969},{"$f":"IF('[1]MONE(M)CARD'!EZ270=\"\",\"\",'[1]MONE(M)CARD'!EZ270)","v":6.8539724354158782},{"$f":"IF('[1]MONE(M)CAPARD'!FC270=\"\",\"\",'[1]MONE(M)CAPARD'!FC270)","v":27924.634095478403},{"$f":"IF('[1]MONE(M)CAPARD'!FG270=\"\",\"\",'[1]MONE(M)CAPARD'!FG270)","v":56840.996949992557},{"$f":"IF('[1]MONE(M)CAPARD'!FL270=\"\",\"\",'[1]MONE(M)CAPARD'!FL270)","v":20934.585613389834},{"$f":"IF('[1]MONE(M)CAPARD'!FO270=\"\",\"\",'[1]MONE(M)CAPARD'!FO270)","v":15.127603569634518},{"$f":"IF('[1]MONE(M)CAPARD'!FR270=\"\",\"\",'[1]MONE(M)CAPARD'!FR270)","v":9.4203591567944436},{"$f":"IF('[1]MONE(M)CAPARD'!FV270=\"\",\"\",'[1]MONE(M)CAPARD'!FV270)","v":7.6952744237672732},{"$f":"IF('[1]MONE(M)CARD'!FV270=\"\",\"\",'[1]MONE(M)CARD'!FV270)","v":2758.2713744332136},{"$f":"IF('[1]MONE(M)CARD'!GD270=\"\",\"\",'[1]MONE(M)CARD'!GD270)","v":179.1613565448796},{"$f":"IF('[1]MONE(M)CARD'!GE270=\"\",\"\",'[1]MONE(M)CARD'!GE270)","v":6324.9930972967004},9.7902667531694085,{"$f":"IF('[9]II.2.Balance OSD-Activos'!J128=\"\",\"\",'[9]II.2.Balance OSD-Activos'!J128)","v":142.20842899030671},{"$f":"IF('[9]II.2.Balance OSD-Activos'!N128=\"\",\"\",'[9]II.2.Balance OSD-Activos'!N128)","v":400.73706314300392},{"$f":"IF('[9]II.2.Balance OSD-Activos'!R128=\"\",\"\",'[9]II.2.Balance OSD-Activos'!R128)","v":27181.650070263466},{"$f":"IF('[9]II.2.Balance OSD-Activos'!S128=\"\",\"\",'[9]II.2.Balance OSD-Activos'!S128)","v":32058.674182352272},{"$f":"IFERROR(+AF263+AH263,\"n.d.\")","v":27323.858499253773},59783.26974474905,-23.922917207542227,11.140044537269889,22.828417421618052,11.408679971090475,10.564782691690166,10.901363413023368,0.85699477889489373,{"$f":"IF('[1]MONE(M)CAPARD'!GS270=\"\",\"\",'[1]MONE(M)CAPARD'!GS270)","v":13523.960180320277},{"$f":"IF('[1]MONE(M)CARD'!HA270=\"\",\"\",'[1]MONE(M)CAPARD'!HA270)","v":6915.5310829467007},{"$f":"IF('[1]MONE(M)CAPARD'!HB270=\"\",\"\",'[1]MONE(M)CAPARD'!HB270)","v":6608.429097373576},"n.d.",{"$f":"IF('[10]II.2.Balance OSD-Activos'!J128=\"\",\"\",'[10]II.2.Balance OSD-Activos'!J128)","v":810.92261084030667},{"$f":"IF('[10]II.2.Balance OSD-Activos'!N128=\"\",\"\",'[10]II.2.Balance OSD-Activos'!N128)","v":795.68954930300401},{"$f":"IF('[10]II.2.Balance OSD-Activos'!R128=\"\",\"\",'[10]II.2.Balance OSD-Activos'!R128)","v":40981.951166613471},{"$f":"IF('[10]II.2.Balance OSD-Activos'!S128=\"\",\"\",'[10]II.2.Balance OSD-Activos'!S128)","v":42886.13674282228},41792.87377745378,85474.700069579063,46.285234214157271,15.010005619017575,41.752627990140077,14.525510933301145,9.7424888072874083,12.498281985556424,0.64672155461946623,{"$f":"IF('[1]MONE(M)CAPARD'!AS270=\"\",\"\",'[1]MONE(M)CAPARD'!AS270)","v":5},{"$f":"IF('[1]MONE(M)CAPARD'!AT270=\"\",\"\",'[1]MONE(M)CAPARD'!AT270)","v":"n.a."},{"$f":"IF('[1]MONE(M)CAPARD'!AU270=\"\",\"\",'[1]MONE(M)CAPARD'!AU270)","v":5.5},{"$f":"IF('[1]MONE(M)CAPARD'!AV270=\"\",\"\",'[1]MONE(M)CAPARD'!AV270)","v":5},{"$f":"IF('[1]MONE(M)CAPARD'!AW270=\"\",\"\",'[1]MONE(M)CAPARD'!AW270)","v":"n.a."},{"$f":"IF('[1]MONE(M)CAPARD'!AX270=\"\",\"\",'[1]MONE(M)CAPARD'!AX270)","v":6.75},{"$f":"IF('[1]MONE(M)CAPARD'!AY270=\"\",\"\",'[1]MONE(M)CAPARD'!AY270)","v":"n.a."},{"$f":"IF('[1]FISCAL(M)'!$K270=\"\",\"\",'[1]FISCAL(M)'!$K270)","v":-3691.6233527437098},{"$f":"IF('[1]FISCAL(M)'!$L270=\"\",\"\",'[1]FISCAL(M)'!$L270)","v":-4635.3307532137114},{"$f":"IF('[1]FISCAL(M)'!$AY270=\"\",\"\",'[1]FISCAL(M)'!$AY270)","v":72550.01125530478},{"$f":"IF('[1]FISCAL(M)'!$BI270=\"\",\"\",'[1]FISCAL(M)'!$BI270)","v":37363.965255304778},{"$f":"IF('[1]FISCAL(M)'!$BS270=\"\",\"\",'[1]FISCAL(M)'!$BS270)","v":35186.046000000002},{"$f":"IF('[1]FISCAL(M)'!$AZ270=\"\",\"\",'[1]FISCAL(M)'!$AZ270)","v":85510.266166574773},{"$f":"IF('[1]FISCAL(M)'!$BJ270=\"\",\"\",'[1]FISCAL(M)'!$BJ270)","v":39584.731304164779},{"$f":"IF('[1]FISCAL(M)'!$BT270=\"\",\"\",'[1]FISCAL(M)'!$BT270)","v":45925.534862410001},{"$f":"IF('[2]MONE(M)'!$AO270=\"\",\"\",'[2]MONE(M)'!$AO270)","v":10158821.66241068},{"$f":"IF('[3]MONE(M)'!$AO270=\"\",\"\",'[3]MONE(M)'!$AO270)","v":8769.7443161800002},{"$f":"IF('[4]MONE(M)'!$AO270=\"\",\"\",'[4]MONE(M)'!$AO270)","v":90449.33973190657},{"$f":"IF('[5]MONE(M)'!$AO270=\"\",\"\",'[5]MONE(M)'!$AO270)","v":150928.84808840905},{"$f":"IF('[6]MONE(M)'!$AO270=\"\",\"\",'[6]MONE(M)'!$AO270)","v":47134.255199490617},{"$f":"IF('[7]MONE(M)'!$AO270=\"\",\"\",'[7]MONE(M)'!$AO270)","v":467002.85657869995},{"$f":"IF('[8]MONE(M)'!$AO270=\"\",\"\",'[8]MONE(M)'!$AO270)","v":26055.073206610006},13.89467928104402,2.8594605632814352,10.624365865542229,8.7335855180680646,11.766833792486974,15.697645493323131,16.385830525640532,{"$f":"IF('[1]FISCAL(M)'!$K270=\"\",\"\",'[1]FISCAL(M)'!$K270)","v":-3691.6233527437098},{"$f":"+'[1]REAL(A)'!$AO$31","v":"n.d."},"n.d.",{"$f":"IF('[1]FISCAL(M)'!$L270=\"\",\"\",'[1]FISCAL(M)'!$L270)","v":-4635.3307532137114},{"$f":"+'[1]REAL(A)'!$AP$31","v":"n.d."},"n.d.",87366.619423880737,{"$f":"'[1]Gráfico REM'!BG264","v":20057.640839018859},{"$f":"'[1]Gráfico REM'!BH264","v":62506.533453927565},{"$f":"'[1]Gráfico REM'!BI264","v":4802.4451309343085},11.397542692471552,16.884010285399164,10.629538976111274,0.74942732386233946,131814.10421757074,{"$f":"'[1]Gráfico REM'!BK264","v":21187.50541530886},{"$f":"'[1]Gráfico REM'!BL264","v":88561.606660537567},{"$f":"'[1]Gráfico REM'!BM264","v":22064.992141724306},13.761687554669777,17.284531555041571,12.263066224070339,16.647193673019387]
[2011,"octubre","2011-octubre",{"$f":"IF('[1]REAL IPC(M)'!$AL271=\"\",\"\",+'[1]REAL IPC(M)'!$AL271)","v":6.8889987962199362},{"$f":"IF('[1]REAL IPC(M)'!$BE271=\"\",\"\",+'[1]REAL IPC(M)'!$BE271)","v":5.4194954352757563},{"$f":"IF('[1]REAL IPC(M)'!$AM271=\"\",\"\",+'[1]REAL IPC(M)'!$AM271)","v":5.8412200005280246},{"$f":"IF('[1]REAL IPC(M)'!$BI271=\"\",\"\",+'[1]REAL IPC(M)'!$BI271)","v":4.9127438282976277},{"$f":"IF('[1]REAL IMAE(M)'!BJ271=\"\",\"\",'[1]REAL IMAE(M)'!BJ271)","v":3.6383905699813868},{"$f":"IF('[1]REAL IMAE(M)'!BK271=\"\",\"\",'[1]REAL IMAE(M)'!BK271)","v":3.7857867522356425},{"$f":"IF('[1]REAL IMAE(M)'!BN271=\"\",\"\",'[1]REAL IMAE(M)'!BN271)","v":4.7931438781614766},{"$f":"IF('[1]REAL IMAE(M)'!BO271=\"\",\"\",'[1]REAL IMAE(M)'!BO271)","v":4.6185040872772198},{"$f":"IF('[1]EXT RIN(M)'!$K271=\"\",\"\",'[1]EXT RIN(M)'!$K271)","v":20765.30333387202},"",{"$f":"IF('[1]EXT RIN(M)'!$L271=\"\",\"\",'[1]EXT RIN(M)'!$L271)","v":22473.106082382019},"",{"$f":"IF('[1]MONE(M)CARD'!EG271=\"\",\"\",'[1]MONE(M)CARD'!EG271)","v":22222.387605283398},{"$f":"IF('[1]MONE(M)CARD'!EK271=\"\",\"\",'[1]MONE(M)CARD'!EK271)","v":37580.389310251441},{"$f":"IF('[1]MONE(M)CARD'!EP271=\"\",\"\",'[1]MONE(M)CARD'!EP271)","v":21080.669780313561},{"$f":"IF('[1]MONE(M)CARD'!ES271=\"\",\"\",'[1]MONE(M)CARD'!ES271)","v":11.317691952285758},{"$f":"IF('[1]MONE(M)CARD'!EV271=\"\",\"\",'[1]MONE(M)CARD'!EV271)","v":9.1676605822455848},{"$f":"IF('[1]MONE(M)CARD'!EZ271=\"\",\"\",'[1]MONE(M)CARD'!EZ271)","v":7.2012520412628289},{"$f":"IF('[1]MONE(M)CAPARD'!FC271=\"\",\"\",'[1]MONE(M)CAPARD'!FC271)","v":27879.439110113399},{"$f":"IF('[1]MONE(M)CAPARD'!FG271=\"\",\"\",'[1]MONE(M)CAPARD'!FG271)","v":57410.093803711439},{"$f":"IF('[1]MONE(M)CAPARD'!FL271=\"\",\"\",'[1]MONE(M)CAPARD'!FL271)","v":21080.669780313561},{"$f":"IF('[1]MONE(M)CAPARD'!FO271=\"\",\"\",'[1]MONE(M)CAPARD'!FO271)","v":12.90642413407619},{"$f":"IF('[1]MONE(M)CAPARD'!FR271=\"\",\"\",'[1]MONE(M)CAPARD'!FR271)","v":9.2356238764772058},{"$f":"IF('[1]MONE(M)CAPARD'!FV271=\"\",\"\",'[1]MONE(M)CAPARD'!FV271)","v":7.7189289181482712},{"$f":"IF('[1]MONE(M)CARD'!FV271=\"\",\"\",'[1]MONE(M)CARD'!FV271)","v":2795.396379159049},{"$f":"IF('[1]MONE(M)CARD'!GD271=\"\",\"\",'[1]MONE(M)CARD'!GD271)","v":94.834272976620895},{"$f":"IF('[1]MONE(M)CARD'!GE271=\"\",\"\",'[1]MONE(M)CARD'!GE271)","v":6277.9773058922374},7.8682900868461081,{"$f":"IF('[9]II.2.Balance OSD-Activos'!J129=\"\",\"\",'[9]II.2.Balance OSD-Activos'!J129)","v":157.89271411869325},{"$f":"IF('[9]II.2.Balance OSD-Activos'!N129=\"\",\"\",'[9]II.2.Balance OSD-Activos'!N129)","v":396.49870614793326},{"$f":"IF('[9]II.2.Balance OSD-Activos'!R129=\"\",\"\",'[9]II.2.Balance OSD-Activos'!R129)","v":27487.416726856129},{"$f":"IF('[9]II.2.Balance OSD-Activos'!S129=\"\",\"\",'[9]II.2.Balance OSD-Activos'!S129)","v":32433.493883309671},27645.309440974823,60475.302030432431,-16.894096392259517,9.9021855644353387,27.335172711551991,10.106116104800233,10.896045829578904,10.532671077111889,-0.36869233591147932,{"$f":"IF('[1]MONE(M)CAPARD'!GS271=\"\",\"\",'[1]MONE(M)CAPARD'!GS271)","v":13708.098737303146},{"$f":"IF('[1]MONE(M)CARD'!HA271=\"\",\"\",'[1]MONE(M)CAPARD'!HA271)","v":6916.9003289822367},{"$f":"IF('[1]MONE(M)CAPARD'!HB271=\"\",\"\",'[1]MONE(M)CAPARD'!HB271)","v":6791.198408320909},"n.d.",{"$f":"IF('[10]II.2.Balance OSD-Activos'!J129=\"\",\"\",'[10]II.2.Balance OSD-Activos'!J129)","v":805.60307614869339},{"$f":"IF('[10]II.2.Balance OSD-Activos'!N129=\"\",\"\",'[10]II.2.Balance OSD-Activos'!N129)","v":775.46247399793322},{"$f":"IF('[10]II.2.Balance OSD-Activos'!R129=\"\",\"\",'[10]II.2.Balance OSD-Activos'!R129)","v":41689.642701166129},{"$f":"IF('[10]II.2.Balance OSD-Activos'!S129=\"\",\"\",'[10]II.2.Balance OSD-Activos'!S129)","v":43388.874749039671},42495.24577731482,86659.583000352432,45.883189319899095,14.492872633529142,41.069844110690411,14.018783725420935,10.138067647774474,12.456192619565098,-4.2089365991326844E-2,{"$f":"IF('[1]MONE(M)CAPARD'!AS271=\"\",\"\",'[1]MONE(M)CAPARD'!AS271)","v":5},{"$f":"IF('[1]MONE(M)CAPARD'!AT271=\"\",\"\",'[1]MONE(M)CAPARD'!AT271)","v":"n.a."},{"$f":"IF('[1]MONE(M)CAPARD'!AU271=\"\",\"\",'[1]MONE(M)CAPARD'!AU271)","v":5.5},{"$f":"IF('[1]MONE(M)CAPARD'!AV271=\"\",\"\",'[1]MONE(M)CAPARD'!AV271)","v":5},{"$f":"IF('[1]MONE(M)CAPARD'!AW271=\"\",\"\",'[1]MONE(M)CAPARD'!AW271)","v":"n.a."},{"$f":"IF('[1]MONE(M)CAPARD'!AX271=\"\",\"\",'[1]MONE(M)CAPARD'!AX271)","v":6.75},{"$f":"IF('[1]MONE(M)CAPARD'!AY271=\"\",\"\",'[1]MONE(M)CAPARD'!AY271)","v":"n.a."},{"$f":"IF('[1]FISCAL(M)'!$K271=\"\",\"\",'[1]FISCAL(M)'!$K271)","v":-3920.3441618620504},{"$f":"IF('[1]FISCAL(M)'!$L271=\"\",\"\",'[1]FISCAL(M)'!$L271)","v":-4881.6818133020515},{"$f":"IF('[1]FISCAL(M)'!$AY271=\"\",\"\",'[1]FISCAL(M)'!$AY271)","v":73090.273712489754},{"$f":"IF('[1]FISCAL(M)'!$BI271=\"\",\"\",'[1]FISCAL(M)'!$BI271)","v":37425.86964070471},{"$f":"IF('[1]FISCAL(M)'!$BS271=\"\",\"\",'[1]FISCAL(M)'!$BS271)","v":35664.404071785037},{"$f":"IF('[1]FISCAL(M)'!$AZ271=\"\",\"\",'[1]FISCAL(M)'!$AZ271)","v":86119.352764429757},{"$f":"IF('[1]FISCAL(M)'!$BJ271=\"\",\"\",'[1]FISCAL(M)'!$BJ271)","v":39670.157483604715},{"$f":"IF('[1]FISCAL(M)'!$BT271=\"\",\"\",'[1]FISCAL(M)'!$BT271)","v":46449.195280825043},{"$f":"IF('[2]MONE(M)'!$AO271=\"\",\"\",'[2]MONE(M)'!$AO271)","v":10310987.461434668},{"$f":"IF('[3]MONE(M)'!$AO271=\"\",\"\",'[3]MONE(M)'!$AO271)","v":8823.2336371801211},{"$f":"IF('[4]MONE(M)'!$AO271=\"\",\"\",'[4]MONE(M)'!$AO271)","v":91806.540824940079},{"$f":"IF('[5]MONE(M)'!$AO271=\"\",\"\",'[5]MONE(M)'!$AO271)","v":152082.75290594689},{"$f":"IF('[6]MONE(M)'!$AO271=\"\",\"\",'[6]MONE(M)'!$AO271)","v":48840.133089140283},{"$f":"IF('[7]MONE(M)'!$AO271=\"\",\"\",'[7]MONE(M)'!$AO271)","v":474017.22564463003},{"$f":"IF('[8]MONE(M)'!$AO271=\"\",\"\",'[8]MONE(M)'!$AO271)","v":26556.308537390003},13.893718866212602,3.6017647181054269,10.802643260211987,8.2261908174947163,14.450218883538479,13.013982805232583,17.156721049757806,{"$f":"IF('[1]FISCAL(M)'!$K271=\"\",\"\",'[1]FISCAL(M)'!$K271)","v":-3920.3441618620504},{"$f":"+'[1]REAL(A)'!$AO$31","v":"n.d."},"n.d.",{"$f":"IF('[1]FISCAL(M)'!$L271=\"\",\"\",'[1]FISCAL(M)'!$L271)","v":-4881.6818133020515},{"$f":"+'[1]REAL(A)'!$AP$31","v":"n.d."},"n.d.",88044.566301528728,{"$f":"'[1]Gráfico REM'!BG265","v":19957.750982615289},{"$f":"'[1]Gráfico REM'!BH265","v":63266.982492487921},{"$f":"'[1]Gráfico REM'!BI265","v":4819.8328264255106},10.677396487747504,14.374196465114665,10.428524600074351,0.228152610971466,133079.96944120873,{"$f":"'[1]Gráfico REM'!BK265","v":21167.140710265288},{"$f":"'[1]Gráfico REM'!BL265","v":89823.291029877932},{"$f":"'[1]Gráfico REM'!BM265","v":22089.53770106551},13.179210065577296,14.858030964286462,12.335866893608083,15.080471199960609]
[2011,"noviembre","2011-noviembre",{"$f":"IF('[1]REAL IPC(M)'!$AL272=\"\",\"\",+'[1]REAL IPC(M)'!$AL272)","v":6.5132924380501001},{"$f":"IF('[1]REAL IPC(M)'!$BE272=\"\",\"\",+'[1]REAL IPC(M)'!$BE272)","v":5.3811804338806501},{"$f":"IF('[1]REAL IPC(M)'!$AM272=\"\",\"\",+'[1]REAL IPC(M)'!$AM272)","v":5.5175679633291619},{"$f":"IF('[1]REAL IPC(M)'!$BI272=\"\",\"\",+'[1]REAL IPC(M)'!$BI272)","v":4.8783054474194731},{"$f":"IF('[1]REAL IMAE(M)'!BJ272=\"\",\"\",'[1]REAL IMAE(M)'!BJ272)","v":3.7388305488624818},{"$f":"IF('[1]REAL IMAE(M)'!BK272=\"\",\"\",'[1]REAL IMAE(M)'!BK272)","v":3.7956817948221921},{"$f":"IF('[1]REAL IMAE(M)'!BN272=\"\",\"\",'[1]REAL IMAE(M)'!BN272)","v":4.8943664769464323},{"$f":"IF('[1]REAL IMAE(M)'!BO272=\"\",\"\",'[1]REAL IMAE(M)'!BO272)","v":4.6404229305891054},{"$f":"IF('[1]EXT RIN(M)'!$K272=\"\",\"\",'[1]EXT RIN(M)'!$K272)","v":20620.432408491917},"",{"$f":"IF('[1]EXT RIN(M)'!$L272=\"\",\"\",'[1]EXT RIN(M)'!$L272)","v":22832.670791781919},"",{"$f":"IF('[1]MONE(M)CARD'!EG272=\"\",\"\",'[1]MONE(M)CARD'!EG272)","v":22954.752932292326},{"$f":"IF('[1]MONE(M)CARD'!EK272=\"\",\"\",'[1]MONE(M)CARD'!EK272)","v":37309.716654392396},{"$f":"IF('[1]MONE(M)CARD'!EP272=\"\",\"\",'[1]MONE(M)CARD'!EP272)","v":21302.101354408005},{"$f":"IF('[1]MONE(M)CARD'!ES272=\"\",\"\",'[1]MONE(M)CARD'!ES272)","v":8.5399511840702722},{"$f":"IF('[1]MONE(M)CARD'!EV272=\"\",\"\",'[1]MONE(M)CARD'!EV272)","v":7.9651863785052068},{"$f":"IF('[1]MONE(M)CARD'!EZ272=\"\",\"\",'[1]MONE(M)CARD'!EZ272)","v":6.6695851242558613},{"$f":"IF('[1]MONE(M)CAPARD'!FC272=\"\",\"\",'[1]MONE(M)CAPARD'!FC272)","v":28959.957024072319},{"$f":"IF('[1]MONE(M)CAPARD'!FG272=\"\",\"\",'[1]MONE(M)CAPARD'!FG272)","v":57337.427389292374},{"$f":"IF('[1]MONE(M)CAPARD'!FL272=\"\",\"\",'[1]MONE(M)CAPARD'!FL272)","v":21302.101354408005},{"$f":"IF('[1]MONE(M)CAPARD'!FO272=\"\",\"\",'[1]MONE(M)CAPARD'!FO272)","v":11.315514701463103},{"$f":"IF('[1]MONE(M)CAPARD'!FR272=\"\",\"\",'[1]MONE(M)CAPARD'!FR272)","v":9.0576474242265235},{"$f":"IF('[1]MONE(M)CAPARD'!FV272=\"\",\"\",'[1]MONE(M)CAPARD'!FV272)","v":7.8386690579202556},{"$f":"IF('[1]MONE(M)CARD'!FV272=\"\",\"\",'[1]MONE(M)CARD'!FV272)","v":2874.3495889359574},{"$f":"IF('[1]MONE(M)CARD'!GD272=\"\",\"\",'[1]MONE(M)CARD'!GD272)","v":84.569715265948304},{"$f":"IF('[1]MONE(M)CARD'!GE272=\"\",\"\",'[1]MONE(M)CARD'!GE272)","v":6782.4539355133384},17.749919810755021,{"$f":"IF('[9]II.2.Balance OSD-Activos'!J130=\"\",\"\",'[9]II.2.Balance OSD-Activos'!J130)","v":171.05708199564401},{"$f":"IF('[9]II.2.Balance OSD-Activos'!N130=\"\",\"\",'[9]II.2.Balance OSD-Activos'!N130)","v":441.3263831288283},{"$f":"IF('[9]II.2.Balance OSD-Activos'!R130=\"\",\"\",'[9]II.2.Balance OSD-Activos'!R130)","v":28227.849123429274},{"$f":"IF('[9]II.2.Balance OSD-Activos'!S130=\"\",\"\",'[9]II.2.Balance OSD-Activos'!S130)","v":33033.917915074293},28398.906205424919,61874.150503628043,-9.1147255483478133,10.098165873670384,36.110295817609469,10.239386868419409,11.620159078008596,11.05803482860539,0.52536375149350079,{"$f":"IF('[1]MONE(M)CAPARD'!GS272=\"\",\"\",'[1]MONE(M)CAPARD'!GS272)","v":13851.775355386941},{"$f":"IF('[1]MONE(M)CARD'!HA272=\"\",\"\",'[1]MONE(M)CAPARD'!HA272)","v":7390.0875400133373},{"$f":"IF('[1]MONE(M)CAPARD'!HB272=\"\",\"\",'[1]MONE(M)CAPARD'!HB272)","v":6461.6878153736034},"n.d.",{"$f":"IF('[10]II.2.Balance OSD-Activos'!J130=\"\",\"\",'[10]II.2.Balance OSD-Activos'!J130)","v":817.17048269564384},{"$f":"IF('[10]II.2.Balance OSD-Activos'!N130=\"\",\"\",'[10]II.2.Balance OSD-Activos'!N130)","v":779.29193569882841},{"$f":"IF('[10]II.2.Balance OSD-Activos'!R130=\"\",\"\",'[10]II.2.Balance OSD-Activos'!R130)","v":42558.065887939279},{"$f":"IF('[10]II.2.Balance OSD-Activos'!S130=\"\",\"\",'[10]II.2.Balance OSD-Activos'!S130)","v":44106.413436954295},43375.236370634921,{"$f":"IF(OR(AW265=\"\",AX265=\"\",AY265=\"\",AZ265=\"\"),\"\",SUM(AW265:AZ265))","v":88260.941743288044},39.574836128168741,14.188501801883092,47.06946399536092,13.791098066219764,11.061581852629931,12.823817479994947,0.36762486042984932,{"$f":"IF('[1]MONE(M)CAPARD'!AS272=\"\",\"\",'[1]MONE(M)CAPARD'!AS272)","v":5},{"$f":"IF('[1]MONE(M)CAPARD'!AT272=\"\",\"\",'[1]MONE(M)CAPARD'!AT272)","v":"n.a."},{"$f":"IF('[1]MONE(M)CAPARD'!AU272=\"\",\"\",'[1]MONE(M)CAPARD'!AU272)","v":5.5},{"$f":"IF('[1]MONE(M)CAPARD'!AV272=\"\",\"\",'[1]MONE(M)CAPARD'!AV272)","v":5.5},{"$f":"IF('[1]MONE(M)CAPARD'!AW272=\"\",\"\",'[1]MONE(M)CAPARD'!AW272)","v":"n.a."},{"$f":"IF('[1]MONE(M)CAPARD'!AX272=\"\",\"\",'[1]MONE(M)CAPARD'!AX272)","v":6.75},{"$f":"IF('[1]MONE(M)CAPARD'!AY272=\"\",\"\",'[1]MONE(M)CAPARD'!AY272)","v":"n.a."},{"$f":"IF('[1]FISCAL(M)'!$K272=\"\",\"\",'[1]FISCAL(M)'!$K272)","v":-4298.7440339385221},{"$f":"IF('[1]FISCAL(M)'!$L272=\"\",\"\",'[1]FISCAL(M)'!$L272)","v":-4759.9562984585227},{"$f":"IF('[1]FISCAL(M)'!$AY272=\"\",\"\",'[1]FISCAL(M)'!$AY272)","v":73231.291366018995},{"$f":"IF('[1]FISCAL(M)'!$BI272=\"\",\"\",'[1]FISCAL(M)'!$BI272)","v":37373.07363803967},{"$f":"IF('[1]FISCAL(M)'!$BS272=\"\",\"\",'[1]FISCAL(M)'!$BS272)","v":35858.217727979325},{"$f":"IF('[1]FISCAL(M)'!$AZ272=\"\",\"\",'[1]FISCAL(M)'!$AZ272)","v":86270.948359918999},{"$f":"IF('[1]FISCAL(M)'!$BJ272=\"\",\"\",'[1]FISCAL(M)'!$BJ272)","v":39637.681564149672},{"$f":"IF('[1]FISCAL(M)'!$BT272=\"\",\"\",'[1]FISCAL(M)'!$BT272)","v":46633.266795769319},{"$f":"IF('[2]MONE(M)'!$AO272=\"\",\"\",'[2]MONE(M)'!$AO272)","v":10364493.493442509},{"$f":"IF('[3]MONE(M)'!$AO272=\"\",\"\",'[3]MONE(M)'!$AO272)","v":8903.1978968701223},{"$f":"IF('[4]MONE(M)'!$AO272=\"\",\"\",'[4]MONE(M)'!$AO272)","v":93934.144497774425},{"$f":"IF('[5]MONE(M)'!$AO272=\"\",\"\",'[5]MONE(M)'!$AO272)","v":155418.11868715123},{"$f":"IF('[6]MONE(M)'!$AO272=\"\",\"\",'[6]MONE(M)'!$AO272)","v":51013.714280906206},{"$f":"IF('[7]MONE(M)'!$AO272=\"\",\"\",'[7]MONE(M)'!$AO272)","v":483562.73545831005},{"$f":"IF('[8]MONE(M)'!$AO272=\"\",\"\",'[8]MONE(M)'!$AO272)","v":26800.069622300009},13.839861215734906,3.6167541177863027,11.960756174166033,9.3952886367667521,17.048666835840699,12.902369114453194,17.212504679816565,{"$f":"IF('[1]FISCAL(M)'!$K272=\"\",\"\",'[1]FISCAL(M)'!$K272)","v":-4298.7440339385221},{"$f":"+'[1]REAL(A)'!$AO$31","v":"n.d."},"n.d.",{"$f":"IF('[1]FISCAL(M)'!$L272=\"\",\"\",'[1]FISCAL(M)'!$L272)","v":-4759.9562984585227},{"$f":"+'[1]REAL(A)'!$AP$31","v":"n.d."},"n.d.",89118.56921571467,{"$f":"'[1]Gráfico REM'!BG266","v":19724.176621633269},{"$f":"'[1]Gráfico REM'!BH266","v":64508.132692440879},{"$f":"'[1]Gráfico REM'!BI266","v":4886.259901640532},10.622036891090803,12.339812942588658,10.827880935399104,1.8389811915473953,134533.67283239469,{"$f":"'[1]Gráfico REM'!BK266","v":21019.005632343269},{"$f":"'[1]Gráfico REM'!BL266","v":91308.202314740891},{"$f":"'[1]Gráfico REM'!BM266","v":22206.464885310535},13.021494222787755,13.552449023054148,12.628558771294362,14.153815848725104]
[2011,"diciembre","2011-diciembre",{"$f":"IF('[1]REAL IPC(M)'!$AL273=\"\",\"\",+'[1]REAL IPC(M)'!$AL273)","v":6.347973822539843},{"$f":"IF('[1]REAL IPC(M)'!$BE273=\"\",\"\",+'[1]REAL IPC(M)'!$BE273)","v":5.3398836751828993},{"$f":"IF('[1]REAL IPC(M)'!$AM273=\"\",\"\",+'[1]REAL IPC(M)'!$AM273)","v":5.3382574287226037},{"$f":"IF('[1]REAL IPC(M)'!$BI273=\"\",\"\",+'[1]REAL IPC(M)'!$BI273)","v":4.8422900019208237},{"$f":"IF('[1]REAL IMAE(M)'!BJ273=\"\",\"\",'[1]REAL IMAE(M)'!BJ273)","v":3.8062478396814203},{"$f":"IF('[1]REAL IMAE(M)'!BK273=\"\",\"\",'[1]REAL IMAE(M)'!BK273)","v":3.8035987282328376},{"$f":"IF('[1]REAL IMAE(M)'!BN273=\"\",\"\",'[1]REAL IMAE(M)'!BN273)","v":4.8545835819827632},{"$f":"IF('[1]REAL IMAE(M)'!BO273=\"\",\"\",'[1]REAL IMAE(M)'!BO273)","v":4.6585822077933159},{"$f":"IF('[1]EXT RIN(M)'!$K273=\"\",\"\",'[1]EXT RIN(M)'!$K273)","v":21614.840209303533},21614.840209303533,{"$f":"IF('[1]EXT RIN(M)'!$L273=\"\",\"\",'[1]EXT RIN(M)'!$L273)","v":23831.723253223532},23831.723253223532,{"$f":"IF('[1]MONE(M)CARD'!EG273=\"\",\"\",'[1]MONE(M)CARD'!EG273)","v":24476.594233486721},{"$f":"IF('[1]MONE(M)CARD'!EK273=\"\",\"\",'[1]MONE(M)CARD'!EK273)","v":37766.061289313235},{"$f":"IF('[1]MONE(M)CARD'!EP273=\"\",\"\",'[1]MONE(M)CARD'!EP273)","v":21754.611011824752},{"$f":"IF('[1]MONE(M)CARD'!ES273=\"\",\"\",'[1]MONE(M)CARD'!ES273)","v":8.3768436172997554},{"$f":"IF('[1]MONE(M)CARD'!EV273=\"\",\"\",'[1]MONE(M)CARD'!EV273)","v":7.110409195385814},{"$f":"IF('[1]MONE(M)CARD'!EZ273=\"\",\"\",'[1]MONE(M)CARD'!EZ273)","v":7.0813579931076509},{"$f":"IF('[1]MONE(M)CAPARD'!FC273=\"\",\"\",'[1]MONE(M)CAPARD'!FC273)","v":30705.868318766719},{"$f":"IF('[1]MONE(M)CAPARD'!FG273=\"\",\"\",'[1]MONE(M)CAPARD'!FG273)","v":57813.295749793251},{"$f":"IF('[1]MONE(M)CAPARD'!FL273=\"\",\"\",'[1]MONE(M)CAPARD'!FL273)","v":21754.611011824774},{"$f":"IF('[1]MONE(M)CAPARD'!FO273=\"\",\"\",'[1]MONE(M)CAPARD'!FO273)","v":10.392942560349617},{"$f":"IF('[1]MONE(M)CAPARD'!FR273=\"\",\"\",'[1]MONE(M)CAPARD'!FR273)","v":7.4979792566216785},{"$f":"IF('[1]MONE(M)CAPARD'!FV273=\"\",\"\",'[1]MONE(M)CAPARD'!FV273)","v":7.3990393855856373},{"$f":"IF('[1]MONE(M)CARD'!FV273=\"\",\"\",'[1]MONE(M)CARD'!FV273)","v":2813.5459962475716},{"$f":"IF('[1]MONE(M)CARD'!GD273=\"\",\"\",'[1]MONE(M)CARD'!GD273)","v":107.23601966780035},{"$f":"IF('[1]MONE(M)CARD'!GE273=\"\",\"\",'[1]MONE(M)CARD'!GE273)","v":6340.3944863097267},5.7958546520692433,{"$f":"IF('[9]II.2.Balance OSD-Activos'!J131=\"\",\"\",'[9]II.2.Balance OSD-Activos'!J131)","v":175.51720139804308},{"$f":"IF('[9]II.2.Balance OSD-Activos'!N131=\"\",\"\",'[9]II.2.Balance OSD-Activos'!N131)","v":463.88541705919124},{"$f":"IF('[9]II.2.Balance OSD-Activos'!R131=\"\",\"\",'[9]II.2.Balance OSD-Activos'!R131)","v":28715.085085419996},{"$f":"IF('[9]II.2.Balance OSD-Activos'!S131=\"\",\"\",'[9]II.2.Balance OSD-Activos'!S131)","v":33144.160469224676},28890.602286818041,62498.648173101908,6.2621980984856718,9.8459106374831897,27.831841511102162,9.8685590297100223,12.03086395783477,11.1111540601601,5.3119231554710211E-2,{"$f":"IF('[1]MONE(M)CAPARD'!GS273=\"\",\"\",'[1]MONE(M)CAPARD'!GS273)","v":14148.566360139417},{"$f":"IF('[1]MONE(M)CARD'!HA273=\"\",\"\",'[1]MONE(M)CAPARD'!HA273)","v":6906.014068909727},{"$f":"IF('[1]MONE(M)CAPARD'!HB273=\"\",\"\",'[1]MONE(M)CAPARD'!HB273)","v":7242.5522912296901},"n.d.",{"$f":"IF('[10]II.2.Balance OSD-Activos'!J131=\"\",\"\",'[10]II.2.Balance OSD-Activos'!J131)","v":806.08356680804286},{"$f":"IF('[10]II.2.Balance OSD-Activos'!N131=\"\",\"\",'[10]II.2.Balance OSD-Activos'!N131)","v":812.73455929919123},{"$f":"IF('[10]II.2.Balance OSD-Activos'!R131=\"\",\"\",'[10]II.2.Balance OSD-Activos'!R131)","v":42592.358414309994},{"$f":"IF('[10]II.2.Balance OSD-Activos'!S131=\"\",\"\",'[10]II.2.Balance OSD-Activos'!S131)","v":44408.387163644678},43398.441981118034,88619.563704061904,26.726845834870549,13.321173780933737,39.120245268028327,13.094755852911044,11.605171137155889,12.644829924815548,-0.17898755517939868,{"$f":"IF('[1]MONE(M)CAPARD'!AS273=\"\",\"\",'[1]MONE(M)CAPARD'!AS273)","v":5},{"$f":"IF('[1]MONE(M)CAPARD'!AT273=\"\",\"\",'[1]MONE(M)CAPARD'!AT273)","v":"n.a."},{"$f":"IF('[1]MONE(M)CAPARD'!AU273=\"\",\"\",'[1]MONE(M)CAPARD'!AU273)","v":5.5},{"$f":"IF('[1]MONE(M)CAPARD'!AV273=\"\",\"\",'[1]MONE(M)CAPARD'!AV273)","v":5.5},{"$f":"IF('[1]MONE(M)CAPARD'!AW273=\"\",\"\",'[1]MONE(M)CAPARD'!AW273)","v":"n.a."},{"$f":"IF('[1]MONE(M)CAPARD'!AX273=\"\",\"\",'[1]MONE(M)CAPARD'!AX273)","v":6.75},{"$f":"IF('[1]MONE(M)CAPARD'!AY273=\"\",\"\",'[1]MONE(M)CAPARD'!AY273)","v":"n.a."},{"$f":"IF('[1]FISCAL(M)'!$K273=\"\",\"\",'[1]FISCAL(M)'!$K273)","v":-5767.1737966037126},{"$f":"IF('[1]FISCAL(M)'!$L273=\"\",\"\",'[1]FISCAL(M)'!$L273)","v":-5764.1059411237129},{"$f":"IF('[1]FISCAL(M)'!$AY273=\"\",\"\",'[1]FISCAL(M)'!$AY273)","v":75051.487186923681},{"$f":"IF('[1]FISCAL(M)'!$BI273=\"\",\"\",'[1]FISCAL(M)'!$BI273)","v":38333.348686923688},{"$f":"IF('[1]FISCAL(M)'!$BS273=\"\",\"\",'[1]FISCAL(M)'!$BS273)","v":36718.138500000001},{"$f":"IF('[1]FISCAL(M)'!$AZ273=\"\",\"\",'[1]FISCAL(M)'!$AZ273)","v":87905.533421343687},{"$f":"IF('[1]FISCAL(M)'!$BJ273=\"\",\"\",'[1]FISCAL(M)'!$BJ273)","v":40276.981758103684},{"$f":"IF('[1]FISCAL(M)'!$BT273=\"\",\"\",'[1]FISCAL(M)'!$BT273)","v":47628.551663240003},{"$f":"IF('[2]MONE(M)'!$AO273=\"\",\"\",'[2]MONE(M)'!$AO273)","v":10496810.242187671},{"$f":"IF('[3]MONE(M)'!$AO273=\"\",\"\",'[3]MONE(M)'!$AO273)","v":9047.2220651400003},{"$f":"IF('[4]MONE(M)'!$AO273=\"\",\"\",'[4]MONE(M)'!$AO273)","v":94130.354663270031},{"$f":"IF('[5]MONE(M)'!$AO273=\"\",\"\",'[5]MONE(M)'!$AO273)","v":158117.15046826677},{"$f":"IF('[6]MONE(M)'!$AO273=\"\",\"\",'[6]MONE(M)'!$AO273)","v":52514.577097942776},{"$f":"IF('[7]MONE(M)'!$AO273=\"\",\"\",'[7]MONE(M)'!$AO273)","v":489175.40418530995},{"$f":"IF('[8]MONE(M)'!$AO273=\"\",\"\",'[8]MONE(M)'!$AO273)","v":26523.396707989999},13.035915987640134,4.6816072351016258,10.767210602795153,10.924792310914899,15.700619726814047,12.568603972673609,16.510572406124837,{"$f":"IF('[1]FISCAL(M)'!$K273=\"\",\"\",'[1]FISCAL(M)'!$K273)","v":-5767.1737966037126},{"$f":"+'[1]REAL(A)'!$AO$31","v":"n.d."},"n.d.",{"$f":"IF('[1]FISCAL(M)'!$L273=\"\",\"\",'[1]FISCAL(M)'!$L273)","v":-5764.1059411237129},{"$f":"+'[1]REAL(A)'!$AP$31","v":"n.d."},"n.d.",89415.483354347714,{"$f":"'[1]Gráfico REM'!BG267","v":19730.593169556571},{"$f":"'[1]Gráfico REM'!BH267","v":64783.571176748752},{"$f":"'[1]Gráfico REM'!BI267","v":4901.3190080423901},9.7991374663791042,11.303577942214215,10.245575742779845,-0.89760264886646901,134932.02092093771,{"$f":"'[1]Gráfico REM'!BK267","v":21129.40665374657},{"$f":"'[1]Gráfico REM'!BL267","v":91306.967884738755},{"$f":"'[1]Gráfico REM'!BM267","v":22495.646382452389},12.533181662653025,13.000081563270882,11.994935420048837,14.319536334168802]
[2012,"enero","2012-enero",{"$f":"IF('[1]REAL IPC(M)'!$AL274=\"\",\"\",+'[1]REAL IPC(M)'!$AL274)","v":5.9073129239667121},{"$f":"IF('[1]REAL IPC(M)'!$BE274=\"\",\"\",+'[1]REAL IPC(M)'!$BE274)","v":5.2958951159469692},{"$f":"IF('[1]REAL IPC(M)'!$AM274=\"\",\"\",+'[1]REAL IPC(M)'!$AM274)","v":5.3964270335637554},{"$f":"IF('[1]REAL IPC(M)'!$BI274=\"\",\"\",+'[1]REAL IPC(M)'!$BI274)","v":4.8049334319757442},{"$f":"IF('[1]REAL IMAE(M)'!BJ274=\"\",\"\",'[1]REAL IMAE(M)'!BJ274)","v":3.8835518341992392},{"$f":"IF('[1]REAL IMAE(M)'!BK274=\"\",\"\",'[1]REAL IMAE(M)'!BK274)","v":3.809930641212711},{"$f":"IF('[1]REAL IMAE(M)'!BN274=\"\",\"\",'[1]REAL IMAE(M)'!BN274)","v":4.7469019922388611},{"$f":"IF('[1]REAL IMAE(M)'!BO274=\"\",\"\",'[1]REAL IMAE(M)'!BO274)","v":4.6733547070304526},{"$f":"IF('[1]EXT RIN(M)'!$K274=\"\",\"\",'[1]EXT RIN(M)'!$K274)","v":20962.801397472798},"",{"$f":"IF('[1]EXT RIN(M)'!$L274=\"\",\"\",'[1]EXT RIN(M)'!$L274)","v":23045.502741922799},"",{"$f":"IF('[1]MONE(M)CARD'!EG274=\"\",\"\",'[1]MONE(M)CARD'!EG274)","v":24155.461374928163},{"$f":"IF('[1]MONE(M)CARD'!EK274=\"\",\"\",'[1]MONE(M)CARD'!EK274)","v":38141.828716214535},{"$f":"IF('[1]MONE(M)CARD'!EP274=\"\",\"\",'[1]MONE(M)CARD'!EP274)","v":21966.523481803},{"$f":"IF('[1]MONE(M)CARD'!ES274=\"\",\"\",'[1]MONE(M)CARD'!ES274)","v":8.5665461840812576},{"$f":"IF('[1]MONE(M)CARD'!EV274=\"\",\"\",'[1]MONE(M)CARD'!EV274)","v":7.484526598919139},{"$f":"IF('[1]MONE(M)CARD'!EZ274=\"\",\"\",'[1]MONE(M)CARD'!EZ274)","v":6.8415014386625339},{"$f":"IF('[1]MONE(M)CAPARD'!FC274=\"\",\"\",'[1]MONE(M)CAPARD'!FC274)","v":30274.904420298168},{"$f":"IF('[1]MONE(M)CAPARD'!FG274=\"\",\"\",'[1]MONE(M)CAPARD'!FG274)","v":58236.909859434534},{"$f":"IF('[1]MONE(M)CAPARD'!FL274=\"\",\"\",'[1]MONE(M)CAPARD'!FL274)","v":21966.523481803},{"$f":"IF('[1]MONE(M)CAPARD'!FO274=\"\",\"\",'[1]MONE(M)CAPARD'!FO274)","v":10.474956138077228},{"$f":"IF('[1]MONE(M)CAPARD'!FR274=\"\",\"\",'[1]MONE(M)CAPARD'!FR274)","v":7.711857858275617},{"$f":"IF('[1]MONE(M)CAPARD'!FV274=\"\",\"\",'[1]MONE(M)CAPARD'!FV274)","v":7.1737753780456881},{"$f":"IF('[1]MONE(M)CARD'!FV274=\"\",\"\",'[1]MONE(M)CARD'!FV274)","v":2856.6762272374235},{"$f":"IF('[1]MONE(M)CARD'!GD274=\"\",\"\",'[1]MONE(M)CARD'!GD274)","v":76.591115067964452},{"$f":"IF('[1]MONE(M)CARD'!GE274=\"\",\"\",'[1]MONE(M)CARD'!GE274)","v":6788.0538192200647},20.890684327210973,{"$f":"IF('[9]II.2.Balance OSD-Activos'!J132=\"\",\"\",'[9]II.2.Balance OSD-Activos'!J132)","v":164.80657593956988},{"$f":"IF('[9]II.2.Balance OSD-Activos'!N132=\"\",\"\",'[9]II.2.Balance OSD-Activos'!N132)","v":419.98651220112606},{"$f":"IF('[9]II.2.Balance OSD-Activos'!R132=\"\",\"\",'[9]II.2.Balance OSD-Activos'!R132)","v":28778.596930826872},{"$f":"IF('[9]II.2.Balance OSD-Activos'!S132=\"\",\"\",'[9]II.2.Balance OSD-Activos'!S132)","v":33429.704059558928},28943.403506766441,62793.094078526497,-16.804747190802761,9.6803612036457487,18.412797004658099,9.8806835882801813,11.792398348067268,10.849961621614824,-0.26119243854527596,{"$f":"IF('[1]MONE(M)CAPARD'!GS274=\"\",\"\",'[1]MONE(M)CAPARD'!GS274)","v":14360.258740605908},{"$f":"IF('[1]MONE(M)CARD'!HA274=\"\",\"\",'[1]MONE(M)CAPARD'!HA274)","v":7412.9992776800646},{"$f":"IF('[1]MONE(M)CAPARD'!HB274=\"\",\"\",'[1]MONE(M)CAPARD'!HB274)","v":6947.2594629258438},"n.d.",{"$f":"IF('[10]II.2.Balance OSD-Activos'!J132=\"\",\"\",'[10]II.2.Balance OSD-Activos'!J132)","v":315.78725303956992},{"$f":"IF('[10]II.2.Balance OSD-Activos'!N132=\"\",\"\",'[10]II.2.Balance OSD-Activos'!N132)","v":748.71522665112593},{"$f":"IF('[10]II.2.Balance OSD-Activos'!R132=\"\",\"\",'[10]II.2.Balance OSD-Activos'!R132)","v":42736.569538676864},{"$f":"IF('[10]II.2.Balance OSD-Activos'!S132=\"\",\"\",'[10]II.2.Balance OSD-Activos'!S132)","v":44757.709537308932},43052.356791716433,88558.781555676484,-53.072976141958293,11.762261382667095,30.48332488560499,12.915010264759296,11.468111452667085,11.748774534828787,-0.8960553899867616,{"$f":"IF('[1]MONE(M)CAPARD'!AS274=\"\",\"\",'[1]MONE(M)CAPARD'!AS274)","v":5},{"$f":"IF('[1]MONE(M)CAPARD'!AT274=\"\",\"\",'[1]MONE(M)CAPARD'!AT274)","v":"n.a."},{"$f":"IF('[1]MONE(M)CAPARD'!AU274=\"\",\"\",'[1]MONE(M)CAPARD'!AU274)","v":5.5},{"$f":"IF('[1]MONE(M)CAPARD'!AV274=\"\",\"\",'[1]MONE(M)CAPARD'!AV274)","v":6},{"$f":"IF('[1]MONE(M)CAPARD'!AW274=\"\",\"\",'[1]MONE(M)CAPARD'!AW274)","v":"n.a."},{"$f":"IF('[1]MONE(M)CAPARD'!AX274=\"\",\"\",'[1]MONE(M)CAPARD'!AX274)","v":6.75},{"$f":"IF('[1]MONE(M)CAPARD'!AY274=\"\",\"\",'[1]MONE(M)CAPARD'!AY274)","v":"n.a."},{"$f":"IF('[1]FISCAL(M)'!$K274=\"\",\"\",'[1]FISCAL(M)'!$K274)","v":-390.10612326334217},{"$f":"IF('[1]FISCAL(M)'!$L274=\"\",\"\",'[1]FISCAL(M)'!$L274)","v":-247.10088422334206},{"$f":"IF('[1]FISCAL(M)'!$AY274=\"\",\"\",'[1]FISCAL(M)'!$AY274)","v":75545.827119323076},{"$f":"IF('[1]FISCAL(M)'!$BI274=\"\",\"\",'[1]FISCAL(M)'!$BI274)","v":38865.217007234984},{"$f":"IF('[1]FISCAL(M)'!$BS274=\"\",\"\",'[1]FISCAL(M)'!$BS274)","v":36680.610112088085},{"$f":"IF('[1]FISCAL(M)'!$AZ274=\"\",\"\",'[1]FISCAL(M)'!$AZ274)","v":88819.640843543079},{"$f":"IF('[1]FISCAL(M)'!$BJ274=\"\",\"\",'[1]FISCAL(M)'!$BJ274)","v":41213.098139714981},{"$f":"IF('[1]FISCAL(M)'!$BT274=\"\",\"\",'[1]FISCAL(M)'!$BT274)","v":47606.54270382809},{"$f":"IF('[2]MONE(M)'!$AO274=\"\",\"\",'[2]MONE(M)'!$AO274)","v":10566586.289198976},{"$f":"IF('[3]MONE(M)'!$AO274=\"\",\"\",'[3]MONE(M)'!$AO274)","v":9034.8567111601205},{"$f":"IF('[4]MONE(M)'!$AO274=\"\",\"\",'[4]MONE(M)'!$AO274)","v":94331.451925249363},{"$f":"IF('[5]MONE(M)'!$AO274=\"\",\"\",'[5]MONE(M)'!$AO274)","v":161380.607047328},{"$f":"IF('[6]MONE(M)'!$AO274=\"\",\"\",'[6]MONE(M)'!$AO274)","v":53468.668771855933},{"$f":"IF('[7]MONE(M)'!$AO274=\"\",\"\",'[7]MONE(M)'!$AO274)","v":491725.65763840993},{"$f":"IF('[8]MONE(M)'!$AO274=\"\",\"\",'[8]MONE(M)'!$AO274)","v":25927.470311749992},14.173766041645086,4.9747994344418567,10.637370396312651,11.062361108234553,17.660522635394017,13.253731988072248,12.955649532005697,{"$f":"IF('[1]FISCAL(M)'!$K274=\"\",\"\",'[1]FISCAL(M)'!$K274)","v":-390.10612326334217},{"$f":"+'[1]REAL(A)'!$AO$32","v":"n.d."},"n.d.",{"$f":"IF('[1]FISCAL(M)'!$L274=\"\",\"\",'[1]FISCAL(M)'!$L274)","v":-247.10088422334206},{"$f":"+'[1]REAL(A)'!$AP$32","v":"n.d."},"n.d.",89735.301575585036,{"$f":"'[1]Gráfico REM'!BG268","v":19518.680819757821},{"$f":"'[1]Gráfico REM'!BH268","v":65535.118414677883},{"$f":"'[1]Gráfico REM'!BI268","v":4681.5023411493257},8.6273975372205491,7.5117802592338467,10.609950783433607,-10.050381130282327,134791.11696950503,{"$f":"'[1]Gráfico REM'!BK268","v":20930.088452657823},{"$f":"'[1]Gráfico REM'!BL268","v":91462.588726427872},{"$f":"'[1]Gráfico REM'!BM268","v":22398.439790419325},10.865794804386963,9.3031223703678556,11.264947772516344,10.723016994385336]
[2012,"febrero","2012-febrero",{"$f":"IF('[1]REAL IPC(M)'!$AL275=\"\",\"\",+'[1]REAL IPC(M)'!$AL275)","v":5.588274463613252},{"$f":"IF('[1]REAL IPC(M)'!$BE275=\"\",\"\",+'[1]REAL IPC(M)'!$BE275)","v":5.2495565337870032},{"$f":"IF('[1]REAL IPC(M)'!$AM275=\"\",\"\",+'[1]REAL IPC(M)'!$AM275)","v":5.1078628867063269},{"$f":"IF('[1]REAL IPC(M)'!$BI275=\"\",\"\",+'[1]REAL IPC(M)'!$BI275)","v":4.7665048926952336},{"$f":"IF('[1]REAL IMAE(M)'!BJ275=\"\",\"\",'[1]REAL IMAE(M)'!BJ275)","v":4.0014119694785633},{"$f":"IF('[1]REAL IMAE(M)'!BK275=\"\",\"\",'[1]REAL IMAE(M)'!BK275)","v":3.8150662379093481},{"$f":"IF('[1]REAL IMAE(M)'!BN275=\"\",\"\",'[1]REAL IMAE(M)'!BN275)","v":4.7197393365631779},{"$f":"IF('[1]REAL IMAE(M)'!BO275=\"\",\"\",'[1]REAL IMAE(M)'!BO275)","v":4.6851224066337682},{"$f":"IF('[1]EXT RIN(M)'!$K275=\"\",\"\",'[1]EXT RIN(M)'!$K275)","v":21044.031879338752},"",{"$f":"IF('[1]EXT RIN(M)'!$L275=\"\",\"\",'[1]EXT RIN(M)'!$L275)","v":23052.555008918753},"",{"$f":"IF('[1]MONE(M)CARD'!EG275=\"\",\"\",'[1]MONE(M)CARD'!EG275)","v":24177.233781961309},{"$f":"IF('[1]MONE(M)CARD'!EK275=\"\",\"\",'[1]MONE(M)CARD'!EK275)","v":38710.067350433099},{"$f":"IF('[1]MONE(M)CARD'!EP275=\"\",\"\",'[1]MONE(M)CARD'!EP275)","v":21917.8569465201},{"$f":"IF('[1]MONE(M)CARD'!ES275=\"\",\"\",'[1]MONE(M)CARD'!ES275)","v":8.4408417673554439},{"$f":"IF('[1]MONE(M)CARD'!EV275=\"\",\"\",'[1]MONE(M)CARD'!EV275)","v":7.9743972772723382},{"$f":"IF('[1]MONE(M)CARD'!EZ275=\"\",\"\",'[1]MONE(M)CARD'!EZ275)","v":6.7639030781266207},{"$f":"IF('[1]MONE(M)CAPARD'!FC275=\"\",\"\",'[1]MONE(M)CAPARD'!FC275)","v":30441.571815601317},{"$f":"IF('[1]MONE(M)CAPARD'!FG275=\"\",\"\",'[1]MONE(M)CAPARD'!FG275)","v":59149.528986523103},{"$f":"IF('[1]MONE(M)CAPARD'!FL275=\"\",\"\",'[1]MONE(M)CAPARD'!FL275)","v":21917.8569465201},{"$f":"IF('[1]MONE(M)CAPARD'!FO275=\"\",\"\",'[1]MONE(M)CAPARD'!FO275)","v":10.20673641873724},{"$f":"IF('[1]MONE(M)CAPARD'!FR275=\"\",\"\",'[1]MONE(M)CAPARD'!FR275)","v":8.4666959914520454},{"$f":"IF('[1]MONE(M)CAPARD'!FV275=\"\",\"\",'[1]MONE(M)CAPARD'!FV275)","v":7.4397496781881678},{"$f":"IF('[1]MONE(M)CARD'!FV275=\"\",\"\",'[1]MONE(M)CARD'!FV275)","v":2969.6354455151295},{"$f":"IF('[1]MONE(M)CARD'!GD275=\"\",\"\",'[1]MONE(M)CARD'!GD275)","v":81.266346977241369},{"$f":"IF('[1]MONE(M)CARD'!GE275=\"\",\"\",'[1]MONE(M)CARD'!GE275)","v":6520.5931594307176},8.1965395358188928,{"$f":"IF('[9]II.2.Balance OSD-Activos'!J133=\"\",\"\",'[9]II.2.Balance OSD-Activos'!J133)","v":161.69908555404578},{"$f":"IF('[9]II.2.Balance OSD-Activos'!N133=\"\",\"\",'[9]II.2.Balance OSD-Activos'!N133)","v":426.09776703501831},{"$f":"IF('[9]II.2.Balance OSD-Activos'!R133=\"\",\"\",'[9]II.2.Balance OSD-Activos'!R133)","v":29123.650288161793},{"$f":"IF('[9]II.2.Balance OSD-Activos'!S133=\"\",\"\",'[9]II.2.Balance OSD-Activos'!S133)","v":33647.63841409039},29285.349373715839,63359.085554841251,-14.596112938497674,10.720930325003653,16.619591040875825,10.903463670037116,11.545076931814148,11.195054363002077,0.3450927413872531,{"$f":"IF('[1]MONE(M)CAPARD'!GS275=\"\",\"\",'[1]MONE(M)CAPARD'!GS275)","v":14295.519566450381},{"$f":"IF('[1]MONE(M)CARD'!HA275=\"\",\"\",'[1]MONE(M)CAPARD'!HA275)","v":7138.0943411707185},{"$f":"IF('[1]MONE(M)CAPARD'!HB275=\"\",\"\",'[1]MONE(M)CAPARD'!HB275)","v":7157.4252252796623},"n.d.",{"$f":"IF('[10]II.2.Balance OSD-Activos'!J133=\"\",\"\",'[10]II.2.Balance OSD-Activos'!J133)","v":314.8243512240457},{"$f":"IF('[10]II.2.Balance OSD-Activos'!N133=\"\",\"\",'[10]II.2.Balance OSD-Activos'!N133)","v":776.11228065501837},{"$f":"IF('[10]II.2.Balance OSD-Activos'!R133=\"\",\"\",'[10]II.2.Balance OSD-Activos'!R133)","v":43110.018682671784},{"$f":"IF('[10]II.2.Balance OSD-Activos'!S133=\"\",\"\",'[10]II.2.Balance OSD-Activos'!S133)","v":45063.93597139039},43424.843033895828,89264.891285941238,-53.257635671627959,12.329902149359961,{"$f":"IF(OR(AX268=\"\",AX256=\"\"),\"\",((AX268/AX256)-1)*100)","v":31.110532837071613},13.49287440164948,11.240488911161361,11.915972507480976,0.16719797265218972,{"$f":"IF('[1]MONE(M)CAPARD'!AS275=\"\",\"\",'[1]MONE(M)CAPARD'!AS275)","v":5},{"$f":"IF('[1]MONE(M)CAPARD'!AT275=\"\",\"\",'[1]MONE(M)CAPARD'!AT275)","v":"n.a."},{"$f":"IF('[1]MONE(M)CAPARD'!AU275=\"\",\"\",'[1]MONE(M)CAPARD'!AU275)","v":5.5},{"$f":"IF('[1]MONE(M)CAPARD'!AV275=\"\",\"\",'[1]MONE(M)CAPARD'!AV275)","v":6},{"$f":"IF('[1]MONE(M)CAPARD'!AW275=\"\",\"\",'[1]MONE(M)CAPARD'!AW275)","v":"n.a."},{"$f":"IF('[1]MONE(M)CAPARD'!AX275=\"\",\"\",'[1]MONE(M)CAPARD'!AX275)","v":6.75},{"$f":"IF('[1]MONE(M)CAPARD'!AY275=\"\",\"\",'[1]MONE(M)CAPARD'!AY275)","v":"n.a."},{"$f":"IF('[1]FISCAL(M)'!$K275=\"\",\"\",'[1]FISCAL(M)'!$K275)","v":-1012.6325056945819},{"$f":"IF('[1]FISCAL(M)'!$L275=\"\",\"\",'[1]FISCAL(M)'!$L275)","v":-1260.4224546445821},{"$f":"IF('[1]FISCAL(M)'!$AY275=\"\",\"\",'[1]FISCAL(M)'!$AY275)","v":76174.694346467979},{"$f":"IF('[1]FISCAL(M)'!$BI275=\"\",\"\",'[1]FISCAL(M)'!$BI275)","v":39242.077457585736},{"$f":"IF('[1]FISCAL(M)'!$BS275=\"\",\"\",'[1]FISCAL(M)'!$BS275)","v":36932.61688888225},{"$f":"IF('[1]FISCAL(M)'!$AZ275=\"\",\"\",'[1]FISCAL(M)'!$AZ275)","v":89355.701179468},{"$f":"IF('[1]FISCAL(M)'!$BJ275=\"\",\"\",'[1]FISCAL(M)'!$BJ275)","v":41807.538070905728},{"$f":"IF('[1]FISCAL(M)'!$BT275=\"\",\"\",'[1]FISCAL(M)'!$BT275)","v":47548.16310856225},{"$f":"IF('[2]MONE(M)'!$AO275=\"\",\"\",'[2]MONE(M)'!$AO275)","v":10793595.924677394},{"$f":"IF('[3]MONE(M)'!$AO275=\"\",\"\",'[3]MONE(M)'!$AO275)","v":8912.470957900121},{"$f":"IF('[4]MONE(M)'!$AO275=\"\",\"\",'[4]MONE(M)'!$AO275)","v":96938.990957904229},{"$f":"IF('[5]MONE(M)'!$AO275=\"\",\"\",'[5]MONE(M)'!$AO275)","v":163002.0813322328},{"$f":"IF('[6]MONE(M)'!$AO275=\"\",\"\",'[6]MONE(M)'!$AO275)","v":54435.216739101204},{"$f":"IF('[7]MONE(M)'!$AO275=\"\",\"\",'[7]MONE(M)'!$AO275)","v":491887.27948678005},{"$f":"IF('[8]MONE(M)'!$AO275=\"\",\"\",'[8]MONE(M)'!$AO275)","v":26061.706378050003},15.566298696552462,3.5048993770651959,12.715636419225396,11.942699378676714,21.597833032270831,13.059626560899829,12.700918936018812,{"$f":"IF('[1]FISCAL(M)'!$K275=\"\",\"\",'[1]FISCAL(M)'!$K275)","v":-1012.6325056945819},{"$f":"+'[1]REAL(A)'!$AO$32","v":"n.d."},"n.d.",{"$f":"IF('[1]FISCAL(M)'!$L275=\"\",\"\",'[1]FISCAL(M)'!$L275)","v":-1260.4224546445821},{"$f":"+'[1]REAL(A)'!$AP$32","v":"n.d."},"n.d.",91563.667879793022,{"$f":"'[1]Gráfico REM'!BG269","v":20394.06291683991},{"$f":"'[1]Gráfico REM'!BH269","v":66165.551060345999},{"$f":"'[1]Gráfico REM'!BI269","v":5004.0539026071101},9.2953708684877725,6.6785926337252777,10.84860238551939,0.70482425386437786,136491.57919754303,{"$f":"'[1]Gráfico REM'!BK269","v":21759.04361733991},{"$f":"'[1]Gráfico REM'!BL269","v":92227.257438396002},{"$f":"'[1]Gráfico REM'!BM269","v":22505.27814180711},10.869547632690413,8.0264218429182641,11.365831864082953,11.671786832376995]
[2012,"marzo","2012-marzo",{"$f":"IF('[1]REAL IPC(M)'!$AL276=\"\",\"\",+'[1]REAL IPC(M)'!$AL276)","v":5.1086584431620619},{"$f":"IF('[1]REAL IPC(M)'!$BE276=\"\",\"\",+'[1]REAL IPC(M)'!$BE276)","v":5.2012415700650738},{"$f":"IF('[1]REAL IPC(M)'!$AM276=\"\",\"\",+'[1]REAL IPC(M)'!$AM276)","v":4.6520676581069509},{"$f":"IF('[1]REAL IPC(M)'!$BI276=\"\",\"\",+'[1]REAL IPC(M)'!$BI276)","v":4.7273066933164909},{"$f":"IF('[1]REAL IMAE(M)'!BJ276=\"\",\"\",'[1]REAL IMAE(M)'!BJ276)","v":4.0304079102533308},{"$f":"IF('[1]REAL IMAE(M)'!BK276=\"\",\"\",'[1]REAL IMAE(M)'!BK276)","v":3.8193942862037478},{"$f":"IF('[1]REAL IMAE(M)'!BN276=\"\",\"\",'[1]REAL IMAE(M)'!BN276)","v":4.5969137094756585},{"$f":"IF('[1]REAL IMAE(M)'!BO276=\"\",\"\",'[1]REAL IMAE(M)'!BO276)","v":4.6942676792217641},{"$f":"IF('[1]EXT RIN(M)'!$K276=\"\",\"\",'[1]EXT RIN(M)'!$K276)","v":21387.5321565206},"",{"$f":"IF('[1]EXT RIN(M)'!$L276=\"\",\"\",'[1]EXT RIN(M)'!$L276)","v":23099.7055171106},"",{"$f":"IF('[1]MONE(M)CARD'!EG276=\"\",\"\",'[1]MONE(M)CARD'!EG276)","v":24165.015912768788},{"$f":"IF('[1]MONE(M)CARD'!EK276=\"\",\"\",'[1]MONE(M)CARD'!EK276)","v":39549.249020779018},{"$f":"IF('[1]MONE(M)CARD'!EP276=\"\",\"\",'[1]MONE(M)CARD'!EP276)","v":22446.365347361425},{"$f":"IF('[1]MONE(M)CARD'!ES276=\"\",\"\",'[1]MONE(M)CARD'!ES276)","v":5.3060577185948476},{"$f":"IF('[1]MONE(M)CARD'!EV276=\"\",\"\",'[1]MONE(M)CARD'!EV276)","v":7.2199549293669563},{"$f":"IF('[1]MONE(M)CARD'!EZ276=\"\",\"\",'[1]MONE(M)CARD'!EZ276)","v":6.4254112308250955},{"$f":"IF('[1]MONE(M)CAPARD'!FC276=\"\",\"\",'[1]MONE(M)CAPARD'!FC276)","v":30562.290822768788},{"$f":"IF('[1]MONE(M)CAPARD'!FG276=\"\",\"\",'[1]MONE(M)CAPARD'!FG276)","v":60137.294035339015},{"$f":"IF('[1]MONE(M)CAPARD'!FL276=\"\",\"\",'[1]MONE(M)CAPARD'!FL276)","v":22446.365347361425},{"$f":"IF('[1]MONE(M)CAPARD'!FO276=\"\",\"\",'[1]MONE(M)CAPARD'!FO276)","v":7.51425042125482},{"$f":"IF('[1]MONE(M)CAPARD'!FR276=\"\",\"\",'[1]MONE(M)CAPARD'!FR276)","v":7.885206194663219},{"$f":"IF('[1]MONE(M)CAPARD'!FV276=\"\",\"\",'[1]MONE(M)CAPARD'!FV276)","v":7.1404395004730281},{"$f":"IF('[1]MONE(M)CARD'!FV276=\"\",\"\",'[1]MONE(M)CARD'!FV276)","v":2880.258260996743},{"$f":"IF('[1]MONE(M)CARD'!GD276=\"\",\"\",'[1]MONE(M)CARD'!GD276)","v":88.94592905216183},{"$f":"IF('[1]MONE(M)CARD'!GE276=\"\",\"\",'[1]MONE(M)CARD'!GE276)","v":6629.6249062562183},16.194437961456298,{"$f":"IF('[9]II.2.Balance OSD-Activos'!J134=\"\",\"\",'[9]II.2.Balance OSD-Activos'!J134)","v":163.87190451169542},{"$f":"IF('[9]II.2.Balance OSD-Activos'!N134=\"\",\"\",'[9]II.2.Balance OSD-Activos'!N134)","v":429.63994271102621},{"$f":"IF('[9]II.2.Balance OSD-Activos'!R134=\"\",\"\",'[9]II.2.Balance OSD-Activos'!R134)","v":29528.949909627379},{"$f":"IF('[9]II.2.Balance OSD-Activos'!S134=\"\",\"\",'[9]II.2.Balance OSD-Activos'!S134)","v":33961.132135417203},29692.821814139075,64083.593892267309,-12.676748025337737,11.049849170816461,11.850488109060464,11.217550065141424,11.764780363415461,11.432950156694144,0.2378957936920667,{"$f":"IF('[1]MONE(M)CAPARD'!GS276=\"\",\"\",'[1]MONE(M)CAPARD'!GS276)","v":14195.634609107092},{"$f":"IF('[1]MONE(M)CARD'!HA276=\"\",\"\",'[1]MONE(M)CAPARD'!HA276)","v":7275.6273587662181},{"$f":"IF('[1]MONE(M)CAPARD'!HB276=\"\",\"\",'[1]MONE(M)CAPARD'!HB276)","v":6920.0072503408737},"n.d.",{"$f":"IF('[10]II.2.Balance OSD-Activos'!J134=\"\",\"\",'[10]II.2.Balance OSD-Activos'!J134)","v":317.57055357169548},{"$f":"IF('[10]II.2.Balance OSD-Activos'!N134=\"\",\"\",'[10]II.2.Balance OSD-Activos'!N134)","v":783.25867993102611},{"$f":"IF('[10]II.2.Balance OSD-Activos'!R134=\"\",\"\",'[10]II.2.Balance OSD-Activos'!R134)","v":43654.963381837377},{"$f":"IF('[10]II.2.Balance OSD-Activos'!S134=\"\",\"\",'[10]II.2.Balance OSD-Activos'!S134)","v":45477.709914707208},43972.533935409076,90233.502530047306,-53.012929382918131,12.031264387769291,25.030270085841444,13.170914633670483,11.524488614225149,11.876008849188025,-3.996365829295101E-2,{"$f":"IF('[1]MONE(M)CAPARD'!AS276=\"\",\"\",'[1]MONE(M)CAPARD'!AS276)","v":5},{"$f":"IF('[1]MONE(M)CAPARD'!AT276=\"\",\"\",'[1]MONE(M)CAPARD'!AT276)","v":"n.a."},{"$f":"IF('[1]MONE(M)CAPARD'!AU276=\"\",\"\",'[1]MONE(M)CAPARD'!AU276)","v":5.5},{"$f":"IF('[1]MONE(M)CAPARD'!AV276=\"\",\"\",'[1]MONE(M)CAPARD'!AV276)","v":6},{"$f":"IF('[1]MONE(M)CAPARD'!AW276=\"\",\"\",'[1]MONE(M)CAPARD'!AW276)","v":"n.a."},{"$f":"IF('[1]MONE(M)CAPARD'!AX276=\"\",\"\",'[1]MONE(M)CAPARD'!AX276)","v":6.75},{"$f":"IF('[1]MONE(M)CAPARD'!AY276=\"\",\"\",'[1]MONE(M)CAPARD'!AY276)","v":"n.a."},{"$f":"IF('[1]FISCAL(M)'!$K276=\"\",\"\",'[1]FISCAL(M)'!$K276)","v":-1753.7546977979291},{"$f":"IF('[1]FISCAL(M)'!$L276=\"\",\"\",'[1]FISCAL(M)'!$L276)","v":-1864.8219504279291},{"$f":"IF('[1]FISCAL(M)'!$AY276=\"\",\"\",'[1]FISCAL(M)'!$AY276)","v":77357.631209147105},{"$f":"IF('[1]FISCAL(M)'!$BI276=\"\",\"\",'[1]FISCAL(M)'!$BI276)","v":39944.693624898071},{"$f":"IF('[1]FISCAL(M)'!$BS276=\"\",\"\",'[1]FISCAL(M)'!$BS276)","v":37412.937584249041},{"$f":"IF('[1]FISCAL(M)'!$AZ276=\"\",\"\",'[1]FISCAL(M)'!$AZ276)","v":91066.567909877122},{"$f":"IF('[1]FISCAL(M)'!$BJ276=\"\",\"\",'[1]FISCAL(M)'!$BJ276)","v":42819.486397588073},{"$f":"IF('[1]FISCAL(M)'!$BT276=\"\",\"\",'[1]FISCAL(M)'!$BT276)","v":48247.081512289034},{"$f":"IF('[2]MONE(M)'!$AO276=\"\",\"\",'[2]MONE(M)'!$AO276)","v":10854507.987424146},{"$f":"IF('[3]MONE(M)'!$AO276=\"\",\"\",'[3]MONE(M)'!$AO276)","v":8912.1816816201226},{"$f":"IF('[4]MONE(M)'!$AO276=\"\",\"\",'[4]MONE(M)'!$AO276)","v":98760.431064171222},{"$f":"IF('[5]MONE(M)'!$AO276=\"\",\"\",'[5]MONE(M)'!$AO276)","v":164888.89290970651},{"$f":"IF('[6]MONE(M)'!$AO276=\"\",\"\",'[6]MONE(M)'!$AO276)","v":54132.969262592815},{"$f":"IF('[7]MONE(M)'!$AO276=\"\",\"\",'[7]MONE(M)'!$AO276)","v":491994.46645476995},{"$f":"IF('[8]MONE(M)'!$AO276=\"\",\"\",'[8]MONE(M)'!$AO276)","v":26238.33522959},14.179958530408964,3.4548781363048509,14.809406924471169,12.928872439948336,21.900516367140121,11.495022723145087,11.176262533197523,{"$f":"IF('[1]FISCAL(M)'!$K276=\"\",\"\",'[1]FISCAL(M)'!$K276)","v":-1753.7546977979291},{"$f":"+'[1]REAL(A)'!$AO$32","v":"n.d."},"n.d.",{"$f":"IF('[1]FISCAL(M)'!$L276=\"\",\"\",'[1]FISCAL(M)'!$L276)","v":-1864.8219504279291},{"$f":"+'[1]REAL(A)'!$AP$32","v":"n.d."},"n.d.",92707.147254422249,{"$f":"'[1]Gráfico REM'!BG270","v":20707.902366236955},{"$f":"'[1]Gráfico REM'!BH270","v":66841.108261000045},{"$f":"'[1]Gráfico REM'!BI270","v":5158.1366271852394},8.970074749796586,5.9452694467661216,10.708984062435878,7.1879297144139542E-2,138387.16389602225,{"$f":"'[1]Gráfico REM'!BK270","v":21901.810421046954},{"$f":"'[1]Gráfico REM'!BL270","v":93079.443490590042},{"$f":"'[1]Gráfico REM'!BM270","v":23405.909984385235},10.520030456017949,6.580290316641868,10.840308008554022,13.133249126511481]
[2012,"abril","2012-abril",{"$f":"IF('[1]REAL IPC(M)'!$AL277=\"\",\"\",+'[1]REAL IPC(M)'!$AL277)","v":4.7828491489509073},{"$f":"IF('[1]REAL IPC(M)'!$BE277=\"\",\"\",+'[1]REAL IPC(M)'!$BE277)","v":5.1513348274166759},{"$f":"IF('[1]REAL IPC(M)'!$AM277=\"\",\"\",+'[1]REAL IPC(M)'!$AM277)","v":4.3267806412579546},{"$f":"IF('[1]REAL IPC(M)'!$BI277=\"\",\"\",+'[1]REAL IPC(M)'!$BI277)","v":4.6876582939078038},{"$f":"IF('[1]REAL IMAE(M)'!BJ277=\"\",\"\",'[1]REAL IMAE(M)'!BJ277)","v":3.9406355235640733},{"$f":"IF('[1]REAL IMAE(M)'!BK277=\"\",\"\",'[1]REAL IMAE(M)'!BK277)","v":3.8233103218330955},{"$f":"IF('[1]REAL IMAE(M)'!BN277=\"\",\"\",'[1]REAL IMAE(M)'!BN277)","v":4.3453409716395885},{"$f":"IF('[1]REAL IMAE(M)'!BO277=\"\",\"\",'[1]REAL IMAE(M)'!BO277)","v":4.7011699838432008},{"$f":"IF('[1]EXT RIN(M)'!$K277=\"\",\"\",'[1]EXT RIN(M)'!$K277)","v":21470.533112334517},"",{"$f":"IF('[1]EXT RIN(M)'!$L277=\"\",\"\",'[1]EXT RIN(M)'!$L277)","v":23490.033180274517},"",{"$f":"IF('[1]MONE(M)CARD'!EG277=\"\",\"\",'[1]MONE(M)CARD'!EG277)","v":23977.564581016988},{"$f":"IF('[1]MONE(M)CARD'!EK277=\"\",\"\",'[1]MONE(M)CARD'!EK277)","v":39739.319973682461},{"$f":"IF('[1]MONE(M)CARD'!EP277=\"\",\"\",'[1]MONE(M)CARD'!EP277)","v":22284.511903605024},{"$f":"IF('[1]MONE(M)CARD'!ES277=\"\",\"\",'[1]MONE(M)CARD'!ES277)","v":3.4453865116765847},{"$f":"IF('[1]MONE(M)CARD'!EV277=\"\",\"\",'[1]MONE(M)CARD'!EV277)","v":6.2002802841814919},{"$f":"IF('[1]MONE(M)CARD'!EZ277=\"\",\"\",'[1]MONE(M)CARD'!EZ277)","v":5.2151255233599647},{"$f":"IF('[1]MONE(M)CAPARD'!FC277=\"\",\"\",'[1]MONE(M)CAPARD'!FC277)","v":30370.537731806991},{"$f":"IF('[1]MONE(M)CAPARD'!FG277=\"\",\"\",'[1]MONE(M)CAPARD'!FG277)","v":60521.935968082456},{"$f":"IF('[1]MONE(M)CAPARD'!FL277=\"\",\"\",'[1]MONE(M)CAPARD'!FL277)","v":22284.511903605031},{"$f":"IF('[1]MONE(M)CAPARD'!FO277=\"\",\"\",'[1]MONE(M)CAPARD'!FO277)","v":6.2465888201289621},{"$f":"IF('[1]MONE(M)CAPARD'!FR277=\"\",\"\",'[1]MONE(M)CAPARD'!FR277)","v":7.3820971658796086},{"$f":"IF('[1]MONE(M)CAPARD'!FV277=\"\",\"\",'[1]MONE(M)CAPARD'!FV277)","v":6.3836553368535665},{"$f":"IF('[1]MONE(M)CARD'!FV277=\"\",\"\",'[1]MONE(M)CARD'!FV277)","v":2784.0957102332081},{"$f":"IF('[1]MONE(M)CARD'!GD277=\"\",\"\",'[1]MONE(M)CARD'!GD277)","v":219.10083393570585},{"$f":"IF('[1]MONE(M)CARD'!GE277=\"\",\"\",'[1]MONE(M)CARD'!GE277)","v":6853.890272396251},19.577896937756421,{"$f":"IF('[9]II.2.Balance OSD-Activos'!J135=\"\",\"\",'[9]II.2.Balance OSD-Activos'!J135)","v":180.6274173249642},{"$f":"IF('[9]II.2.Balance OSD-Activos'!N135=\"\",\"\",'[9]II.2.Balance OSD-Activos'!N135)","v":438.7820977580908},{"$f":"IF('[9]II.2.Balance OSD-Activos'!R135=\"\",\"\",'[9]II.2.Balance OSD-Activos'!R135)","v":29739.330232951659},{"$f":"IF('[9]II.2.Balance OSD-Activos'!S135=\"\",\"\",'[9]II.2.Balance OSD-Activos'!S135)","v":34289.117399184193},29919.957650276625,64647.857147218907,4.4584559353284092,12.094118660456132,5.0742295314327945,12.14390742019047,11.732756512078456,11.851530020021062,0.41857986332691866,{"$f":"IF('[1]MONE(M)CAPARD'!GS277=\"\",\"\",'[1]MONE(M)CAPARD'!GS277)","v":14351.421717230693},{"$f":"IF('[1]MONE(M)CARD'!HA277=\"\",\"\",'[1]MONE(M)CAPARD'!HA277)","v":7521.5558443462505},{"$f":"IF('[1]MONE(M)CAPARD'!HB277=\"\",\"\",'[1]MONE(M)CAPARD'!HB277)","v":6829.8658728844421},"n.d.",{"$f":"IF('[10]II.2.Balance OSD-Activos'!J135=\"\",\"\",'[10]II.2.Balance OSD-Activos'!J135)","v":388.38187478496411},{"$f":"IF('[10]II.2.Balance OSD-Activos'!N135=\"\",\"\",'[10]II.2.Balance OSD-Activos'!N135)","v":802.88705405809083},{"$f":"IF('[10]II.2.Balance OSD-Activos'!R135=\"\",\"\",'[10]II.2.Balance OSD-Activos'!R135)","v":44127.845204111654},{"$f":"IF('[10]II.2.Balance OSD-Activos'!S135=\"\",\"\",'[10]II.2.Balance OSD-Activos'!S135)","v":45899.716828904195},44516.22707889662,91218.830961858912,-42.425106483151723,13.091367874431548,19.145486216333541,14.059346676946593,11.497104407400126,12.333385806950869,0.45737695776284326,{"$f":"IF('[1]MONE(M)CAPARD'!AS277=\"\",\"\",'[1]MONE(M)CAPARD'!AS277)","v":5},{"$f":"IF('[1]MONE(M)CAPARD'!AT277=\"\",\"\",'[1]MONE(M)CAPARD'!AT277)","v":"n.a."},{"$f":"IF('[1]MONE(M)CAPARD'!AU277=\"\",\"\",'[1]MONE(M)CAPARD'!AU277)","v":5.5},{"$f":"IF('[1]MONE(M)CAPARD'!AV277=\"\",\"\",'[1]MONE(M)CAPARD'!AV277)","v":6},{"$f":"IF('[1]MONE(M)CAPARD'!AW277=\"\",\"\",'[1]MONE(M)CAPARD'!AW277)","v":"n.a."},{"$f":"IF('[1]MONE(M)CAPARD'!AX277=\"\",\"\",'[1]MONE(M)CAPARD'!AX277)","v":6.75},{"$f":"IF('[1]MONE(M)CAPARD'!AY277=\"\",\"\",'[1]MONE(M)CAPARD'!AY277)","v":"n.a."},{"$f":"IF('[1]FISCAL(M)'!$K277=\"\",\"\",'[1]FISCAL(M)'!$K277)","v":-1777.4925408402869},{"$f":"IF('[1]FISCAL(M)'!$L277=\"\",\"\",'[1]FISCAL(M)'!$L277)","v":-2086.2354029902872},{"$f":"IF('[1]FISCAL(M)'!$AY277=\"\",\"\",'[1]FISCAL(M)'!$AY277)","v":78289.536147400853},{"$f":"IF('[1]FISCAL(M)'!$BI277=\"\",\"\",'[1]FISCAL(M)'!$BI277)","v":40466.449360072525},{"$f":"IF('[1]FISCAL(M)'!$BS277=\"\",\"\",'[1]FISCAL(M)'!$BS277)","v":37823.086787328328},{"$f":"IF('[1]FISCAL(M)'!$AZ277=\"\",\"\",'[1]FISCAL(M)'!$AZ277)","v":91990.119809590848},{"$f":"IF('[1]FISCAL(M)'!$BJ277=\"\",\"\",'[1]FISCAL(M)'!$BJ277)","v":43256.867131962521},{"$f":"IF('[1]FISCAL(M)'!$BT277=\"\",\"\",'[1]FISCAL(M)'!$BT277)","v":48733.252677628334},{"$f":"IF('[2]MONE(M)'!$AO277=\"\",\"\",'[2]MONE(M)'!$AO277)","v":10921605.837871812},{"$f":"IF('[3]MONE(M)'!$AO277=\"\",\"\",'[3]MONE(M)'!$AO277)","v":9009.6609432201221},{"$f":"IF('[4]MONE(M)'!$AO277=\"\",\"\",'[4]MONE(M)'!$AO277)","v":101003.84208953888},{"$f":"IF('[5]MONE(M)'!$AO277=\"\",\"\",'[5]MONE(M)'!$AO277)","v":167361.8997308707},{"$f":"IF('[6]MONE(M)'!$AO277=\"\",\"\",'[6]MONE(M)'!$AO277)","v":54302.630289920009},{"$f":"IF('[7]MONE(M)'!$AO277=\"\",\"\",'[7]MONE(M)'!$AO277)","v":488027.64754164004},{"$f":"IF('[8]MONE(M)'!$AO277=\"\",\"\",'[8]MONE(M)'!$AO277)","v":26777.274802860004},14.403474022616102,3.4503712247465623,18.548804053184842,14.760343788421416,22.739708313613495,10.327808254772064,12.236350982984856,{"$f":"IF('[1]FISCAL(M)'!$K277=\"\",\"\",'[1]FISCAL(M)'!$K277)","v":-1777.4925408402869},{"$f":"+'[1]REAL(A)'!$AO$32","v":"n.d."},"n.d.",{"$f":"IF('[1]FISCAL(M)'!$L277=\"\",\"\",'[1]FISCAL(M)'!$L277)","v":-2086.2354029902872},{"$f":"+'[1]REAL(A)'!$AP$32","v":"n.d."},"n.d.",93376.011154485168,{"$f":"'[1]Gráfico REM'!BG271","v":20784.444648886954},{"$f":"'[1]Gráfico REM'!BH271","v":67386.383212491128},{"$f":"'[1]Gráfico REM'!BI271","v":5205.1832931070894},8.6645059962100248,3.4613111891902637,11.172612360478574,-0.42234809303994814,138951.06182756519,{"$f":"'[1]Gráfico REM'!BK271","v":22130.146155246955},{"$f":"'[1]Gráfico REM'!BL271","v":94163.658015351131},{"$f":"'[1]Gráfico REM'!BM271","v":22657.257656967093},9.830975091629913,4.6399770252112615,11.473049990635985,8.4464663641308455]
[2012,"mayo ","2012-mayo ",{"$f":"IF('[1]REAL IPC(M)'!$AL278=\"\",\"\",+'[1]REAL IPC(M)'!$AL278)","v":4.4261871971458699},{"$f":"IF('[1]REAL IPC(M)'!$BE278=\"\",\"\",+'[1]REAL IPC(M)'!$BE278)","v":5.1002094380885321},{"$f":"IF('[1]REAL IPC(M)'!$AM278=\"\",\"\",+'[1]REAL IPC(M)'!$AM278)","v":3.9920083328986333},{"$f":"IF('[1]REAL IPC(M)'!$BI278=\"\",\"\",+'[1]REAL IPC(M)'!$BI278)","v":4.6478677629646414},{"$f":"IF('[1]REAL IMAE(M)'!BJ278=\"\",\"\",'[1]REAL IMAE(M)'!BJ278)","v":3.7779119212796086},{"$f":"IF('[1]REAL IMAE(M)'!BK278=\"\",\"\",'[1]REAL IMAE(M)'!BK278)","v":3.8272177128083396},{"$f":"IF('[1]REAL IMAE(M)'!BN278=\"\",\"\",'[1]REAL IMAE(M)'!BN278)","v":4.4367923602478987},{"$f":"IF('[1]REAL IMAE(M)'!BO278=\"\",\"\",'[1]REAL IMAE(M)'!BO278)","v":4.7061968631975093},{"$f":"IF('[1]EXT RIN(M)'!$K278=\"\",\"\",'[1]EXT RIN(M)'!$K278)","v":21185.559158317894},"",{"$f":"IF('[1]EXT RIN(M)'!$L278=\"\",\"\",'[1]EXT RIN(M)'!$L278)","v":23227.431959187892},"",{"$f":"IF('[1]MONE(M)CARD'!EG278=\"\",\"\",'[1]MONE(M)CARD'!EG278)","v":23567.610315418759},{"$f":"IF('[1]MONE(M)CARD'!EK278=\"\",\"\",'[1]MONE(M)CARD'!EK278)","v":40167.022261013874},{"$f":"IF('[1]MONE(M)CARD'!EP278=\"\",\"\",'[1]MONE(M)CARD'!EP278)","v":22826.998173107},{"$f":"IF('[1]MONE(M)CARD'!ES278=\"\",\"\",'[1]MONE(M)CARD'!ES278)","v":5.4637822226734745},{"$f":"IF('[1]MONE(M)CARD'!EV278=\"\",\"\",'[1]MONE(M)CARD'!EV278)","v":7.6811565331682541},{"$f":"IF('[1]MONE(M)CARD'!EZ278=\"\",\"\",'[1]MONE(M)CARD'!EZ278)","v":7.2326875740626351},{"$f":"IF('[1]MONE(M)CAPARD'!FC278=\"\",\"\",'[1]MONE(M)CAPARD'!FC278)","v":29924.816403978759},{"$f":"IF('[1]MONE(M)CAPARD'!FG278=\"\",\"\",'[1]MONE(M)CAPARD'!FG278)","v":61094.854494103878},{"$f":"IF('[1]MONE(M)CAPARD'!FL278=\"\",\"\",'[1]MONE(M)CAPARD'!FL278)","v":22826.998173107},{"$f":"IF('[1]MONE(M)CAPARD'!FO278=\"\",\"\",'[1]MONE(M)CAPARD'!FO278)","v":8.1784752906393763},{"$f":"IF('[1]MONE(M)CAPARD'!FR278=\"\",\"\",'[1]MONE(M)CAPARD'!FR278)","v":9.1331137640968674},{"$f":"IF('[1]MONE(M)CAPARD'!FV278=\"\",\"\",'[1]MONE(M)CAPARD'!FV278)","v":8.4901625714691065},{"$f":"IF('[1]MONE(M)CARD'!FV278=\"\",\"\",'[1]MONE(M)CARD'!FV278)","v":2682.031236609706},{"$f":"IF('[1]MONE(M)CARD'!GD278=\"\",\"\",'[1]MONE(M)CARD'!GD278)","v":68.756029514856181},{"$f":"IF('[1]MONE(M)CARD'!GE278=\"\",\"\",'[1]MONE(M)CARD'!GE278)","v":6431.994951470755},1.9890968536586229,{"$f":"IF('[9]II.2.Balance OSD-Activos'!J136=\"\",\"\",'[9]II.2.Balance OSD-Activos'!J136)","v":173.82934350763509},{"$f":"IF('[9]II.2.Balance OSD-Activos'!N136=\"\",\"\",'[9]II.2.Balance OSD-Activos'!N136)","v":438.52207432611982},{"$f":"IF('[9]II.2.Balance OSD-Activos'!R136=\"\",\"\",'[9]II.2.Balance OSD-Activos'!R136)","v":29878.530101699791},{"$f":"IF('[9]II.2.Balance OSD-Activos'!S136=\"\",\"\",'[9]II.2.Balance OSD-Activos'!S136)","v":34661.603822741388},30052.359445207425,65152.485342274929,29.6223044112492,12.76776211059949,7.0523092086080652,12.682519324592679,12.495897110388121,12.582560195492265,0.73103017547120253,{"$f":"IF('[1]MONE(M)CAPARD'!GS278=\"\",\"\",'[1]MONE(M)CAPARD'!GS278)","v":14437.031213985836},{"$f":"IF('[1]MONE(M)CARD'!HA278=\"\",\"\",'[1]MONE(M)CAPARD'!HA278)","v":7098.7966248707544},{"$f":"IF('[1]MONE(M)CAPARD'!HB278=\"\",\"\",'[1]MONE(M)CAPARD'!HB278)","v":7338.2345891150817},"n.d.",{"$f":"IF('[10]II.2.Balance OSD-Activos'!J136=\"\",\"\",'[10]II.2.Balance OSD-Activos'!J136)","v":841.49404452763508},{"$f":"IF('[10]II.2.Balance OSD-Activos'!N136=\"\",\"\",'[10]II.2.Balance OSD-Activos'!N136)","v":832.32648149611987},{"$f":"IF('[10]II.2.Balance OSD-Activos'!R136=\"\",\"\",'[10]II.2.Balance OSD-Activos'!R136)","v":44530.410758679784},{"$f":"IF('[10]II.2.Balance OSD-Activos'!S136=\"\",\"\",'[10]II.2.Balance OSD-Activos'!S136)","v":46413.942042851384},45371.904803207421,92618.17332755492,13.842977755614871,16.932264028406863,26.293131525907711,16.992257414429488,13.764175718324356,15.398688906655767,3.0653030997048987,{"$f":"IF('[1]MONE(M)CAPARD'!AS278=\"\",\"\",'[1]MONE(M)CAPARD'!AS278)","v":5},{"$f":"IF('[1]MONE(M)CAPARD'!AT278=\"\",\"\",'[1]MONE(M)CAPARD'!AT278)","v":"n.a."},{"$f":"IF('[1]MONE(M)CAPARD'!AU278=\"\",\"\",'[1]MONE(M)CAPARD'!AU278)","v":5.5},{"$f":"IF('[1]MONE(M)CAPARD'!AV278=\"\",\"\",'[1]MONE(M)CAPARD'!AV278)","v":7},{"$f":"IF('[1]MONE(M)CAPARD'!AW278=\"\",\"\",'[1]MONE(M)CAPARD'!AW278)","v":"n.a."},{"$f":"IF('[1]MONE(M)CAPARD'!AX278=\"\",\"\",'[1]MONE(M)CAPARD'!AX278)","v":6.75},{"$f":"IF('[1]MONE(M)CAPARD'!AY278=\"\",\"\",'[1]MONE(M)CAPARD'!AY278)","v":"n.a."},{"$f":"IF('[1]FISCAL(M)'!$K278=\"\",\"\",'[1]FISCAL(M)'!$K278)","v":-2421.7239937689164},{"$f":"IF('[1]FISCAL(M)'!$L278=\"\",\"\",'[1]FISCAL(M)'!$L278)","v":-2679.022847768917},{"$f":"IF('[1]FISCAL(M)'!$AY278=\"\",\"\",'[1]FISCAL(M)'!$AY278)","v":78628.618443955027},{"$f":"IF('[1]FISCAL(M)'!$BI278=\"\",\"\",'[1]FISCAL(M)'!$BI278)","v":40485.349554282744},{"$f":"IF('[1]FISCAL(M)'!$BS278=\"\",\"\",'[1]FISCAL(M)'!$BS278)","v":38143.268889672283},{"$f":"IF('[1]FISCAL(M)'!$AZ278=\"\",\"\",'[1]FISCAL(M)'!$AZ278)","v":92558.150169245026},{"$f":"IF('[1]FISCAL(M)'!$BJ278=\"\",\"\",'[1]FISCAL(M)'!$BJ278)","v":43399.086721792744},{"$f":"IF('[1]FISCAL(M)'!$BT278=\"\",\"\",'[1]FISCAL(M)'!$BT278)","v":49159.063447452281},{"$f":"IF('[2]MONE(M)'!$AO278=\"\",\"\",'[2]MONE(M)'!$AO278)","v":11026360.641836453},{"$f":"IF('[3]MONE(M)'!$AO278=\"\",\"\",'[3]MONE(M)'!$AO278)","v":8982.9126463801203},{"$f":"IF('[4]MONE(M)'!$AO278=\"\",\"\",'[4]MONE(M)'!$AO278)","v":103053.9520652823},{"$f":"IF('[5]MONE(M)'!$AO278=\"\",\"\",'[5]MONE(M)'!$AO278)","v":169139.0547785059},{"$f":"IF('[6]MONE(M)'!$AO278=\"\",\"\",'[6]MONE(M)'!$AO278)","v":55738.95479518269},{"$f":"IF('[7]MONE(M)'!$AO278=\"\",\"\",'[7]MONE(M)'!$AO278)","v":487152.81905006},{"$f":"IF('[8]MONE(M)'!$AO278=\"\",\"\",'[8]MONE(M)'!$AO278)","v":27802.603829249994},13.662202182965434,3.400751566016913,18.574452561475873,15.469787368446974,25.502765266920413,9.0826943553058204,21.792552773050232,{"$f":"IF('[1]FISCAL(M)'!$K278=\"\",\"\",'[1]FISCAL(M)'!$K278)","v":-2421.7239937689164},{"$f":"+'[1]REAL(A)'!$AO$32","v":"n.d."},"n.d.",{"$f":"IF('[1]FISCAL(M)'!$L278=\"\",\"\",'[1]FISCAL(M)'!$L278)","v":-2679.022847768917},{"$f":"+'[1]REAL(A)'!$AP$32","v":"n.d."},"n.d.",93512.095753541391,{"$f":"'[1]Gráfico REM'!BG272","v":20317.913441032259},{"$f":"'[1]Gráfico REM'!BH272","v":67952.928033264281},{"$f":"'[1]Gráfico REM'!BI272","v":5241.2542792448494},{"$f":"+((CS271/CS259)-1)*100","v":8.9278583700208802},1.552004365875681,11.858643754029231,2.9431787930307873,141130.85430050138,{"$f":"'[1]Gráfico REM'!BK272","v":21795.43936277226},{"$f":"'[1]Gráfico REM'!BL272","v":95755.531862514268},{"$f":"'[1]Gráfico REM'!BM272","v":23579.883075214857},{"$f":"+((DA271/DA259)-1)*100","v":12.489527825120227},3.847225456033887,14.571953413528082,12.840882626997896]
[2012,"junio ","2012-junio ",{"$f":"IF('[1]REAL IPC(M)'!$AL279=\"\",\"\",+'[1]REAL IPC(M)'!$AL279)","v":3.80862691279793},{"$f":"IF('[1]REAL IPC(M)'!$BE279=\"\",\"\",+'[1]REAL IPC(M)'!$BE279)","v":5.0482083168475578},{"$f":"IF('[1]REAL IPC(M)'!$AM279=\"\",\"\",+'[1]REAL IPC(M)'!$AM279)","v":3.3949929464178297},{"$f":"IF('[1]REAL IPC(M)'!$BI279=\"\",\"\",+'[1]REAL IPC(M)'!$BI279)","v":4.6082115875728524},{"$f":"IF('[1]REAL IMAE(M)'!BJ279=\"\",\"\",'[1]REAL IMAE(M)'!BJ279)","v":3.6320758734012193},{"$f":"IF('[1]REAL IMAE(M)'!BK279=\"\",\"\",'[1]REAL IMAE(M)'!BK279)","v":3.8315218829621633},{"$f":"IF('[1]REAL IMAE(M)'!BN279=\"\",\"\",'[1]REAL IMAE(M)'!BN279)","v":4.7746865921056925},{"$f":"IF('[1]REAL IMAE(M)'!BO279=\"\",\"\",'[1]REAL IMAE(M)'!BO279)","v":4.7096862113513271},{"$f":"IF('[1]EXT RIN(M)'!$K279=\"\",\"\",'[1]EXT RIN(M)'!$K279)","v":21975.220232061871},"",{"$f":"IF('[1]EXT RIN(M)'!$L279=\"\",\"\",'[1]EXT RIN(M)'!$L279)","v":24184.68649118187},"",{"$f":"IF('[1]MONE(M)CARD'!EG279=\"\",\"\",'[1]MONE(M)CARD'!EG279)","v":23824.084273255059},{"$f":"IF('[1]MONE(M)CARD'!EK279=\"\",\"\",'[1]MONE(M)CARD'!EK279)","v":40647.827636552218},{"$f":"IF('[1]MONE(M)CARD'!EP279=\"\",\"\",'[1]MONE(M)CARD'!EP279)","v":22640.544608263728},{"$f":"IF('[1]MONE(M)CARD'!ES279=\"\",\"\",'[1]MONE(M)CARD'!ES279)","v":6.4080322600883921},{"$f":"IF('[1]MONE(M)CARD'!EV279=\"\",\"\",'[1]MONE(M)CARD'!EV279)","v":9.0262847691106263},{"$f":"IF('[1]MONE(M)CARD'!EZ279=\"\",\"\",'[1]MONE(M)CARD'!EZ279)","v":8.0931578887550657},{"$f":"IF('[1]MONE(M)CAPARD'!FC279=\"\",\"\",'[1]MONE(M)CAPARD'!FC279)","v":30298.149433235063},{"$f":"IF('[1]MONE(M)CAPARD'!FG279=\"\",\"\",'[1]MONE(M)CAPARD'!FG279)","v":61818.9317768822},{"$f":"IF('[1]MONE(M)CAPARD'!FL279=\"\",\"\",'[1]MONE(M)CAPARD'!FL279)","v":22640.544608263735},{"$f":"IF('[1]MONE(M)CAPARD'!FO279=\"\",\"\",'[1]MONE(M)CAPARD'!FO279)","v":8.9735705950356746},{"$f":"IF('[1]MONE(M)CAPARD'!FR279=\"\",\"\",'[1]MONE(M)CAPARD'!FR279)","v":9.5882753748291591},{"$f":"IF('[1]MONE(M)CAPARD'!FV279=\"\",\"\",'[1]MONE(M)CAPARD'!FV279)","v":8.7612815278402589},{"$f":"IF('[1]MONE(M)CARD'!FV279=\"\",\"\",'[1]MONE(M)CARD'!FV279)","v":2591.1465368244021},{"$f":"IF('[1]MONE(M)CARD'!GD279=\"\",\"\",'[1]MONE(M)CARD'!GD279)","v":127.0812011674889},{"$f":"IF('[1]MONE(M)CARD'!GE279=\"\",\"\",'[1]MONE(M)CARD'!GE279)","v":6374.8415897549967},7.7301344764269642,{"$f":"IF('[9]II.2.Balance OSD-Activos'!J137=\"\",\"\",'[9]II.2.Balance OSD-Activos'!J137)","v":172.52315480065869},{"$f":"IF('[9]II.2.Balance OSD-Activos'!N137=\"\",\"\",'[9]II.2.Balance OSD-Activos'!N137)","v":457.76377605407055},{"$f":"IF('[9]II.2.Balance OSD-Activos'!R137=\"\",\"\",'[9]II.2.Balance OSD-Activos'!R137)","v":30037.777246205405},{"$f":"IF('[9]II.2.Balance OSD-Activos'!S137=\"\",\"\",'[9]II.2.Balance OSD-Activos'!S137)","v":35072.423798212694},30210.300401006065,65740.48797527283,18.389929816810756,12.467183672332993,12.813309878277469,12.434877239713416,12.722449713858786,12.605632189927118,2.3071994434852527E-2,{"$f":"IF('[1]MONE(M)CAPARD'!GS279=\"\",\"\",'[1]MONE(M)CAPARD'!GS279)","v":14381.161359686603},{"$f":"IF('[1]MONE(M)CARD'!HA279=\"\",\"\",'[1]MONE(M)CAPARD'!HA279)","v":6989.7783228649951},{"$f":"IF('[1]MONE(M)CAPARD'!HB279=\"\",\"\",'[1]MONE(M)CAPARD'!HB279)","v":7391.3830368216077},"n.d.",{"$f":"IF('[10]II.2.Balance OSD-Activos'!J137=\"\",\"\",'[10]II.2.Balance OSD-Activos'!J137)","v":896.80488477065853},{"$f":"IF('[10]II.2.Balance OSD-Activos'!N137=\"\",\"\",'[10]II.2.Balance OSD-Activos'!N137)","v":859.10053007407078},{"$f":"IF('[10]II.2.Balance OSD-Activos'!R137=\"\",\"\",'[10]II.2.Balance OSD-Activos'!R137)","v":45097.422889485402},{"$f":"IF('[10]II.2.Balance OSD-Activos'!S137=\"\",\"\",'[10]II.2.Balance OSD-Activos'!S137)","v":46964.365664002689},45994.227774256062,93817.693968332824,18.318215782928625,14.698439465262325,10.584106469101462,14.628701425567424,12.602541614273921,13.601241335552295,-1.7974475711034721,{"$f":"IF('[1]MONE(M)CAPARD'!AS279=\"\",\"\",'[1]MONE(M)CAPARD'!AS279)","v":5},{"$f":"IF('[1]MONE(M)CAPARD'!AT279=\"\",\"\",'[1]MONE(M)CAPARD'!AT279)","v":"n.a."},{"$f":"IF('[1]MONE(M)CAPARD'!AU279=\"\",\"\",'[1]MONE(M)CAPARD'!AU279)","v":5},{"$f":"IF('[1]MONE(M)CAPARD'!AV279=\"\",\"\",'[1]MONE(M)CAPARD'!AV279)","v":7},{"$f":"IF('[1]MONE(M)CAPARD'!AW279=\"\",\"\",'[1]MONE(M)CAPARD'!AW279)","v":"n.a."},{"$f":"IF('[1]MONE(M)CAPARD'!AX279=\"\",\"\",'[1]MONE(M)CAPARD'!AX279)","v":6},{"$f":"IF('[1]MONE(M)CAPARD'!AY279=\"\",\"\",'[1]MONE(M)CAPARD'!AY279)","v":"n.a."},{"$f":"IF('[1]FISCAL(M)'!$K279=\"\",\"\",'[1]FISCAL(M)'!$K279)","v":-3163.9846791495829},{"$f":"IF('[1]FISCAL(M)'!$L279=\"\",\"\",'[1]FISCAL(M)'!$L279)","v":-3344.9511761295826},{"$f":"IF('[1]FISCAL(M)'!$AY279=\"\",\"\",'[1]FISCAL(M)'!$AY279)","v":80084.47063681166},{"$f":"IF('[1]FISCAL(M)'!$BI279=\"\",\"\",'[1]FISCAL(M)'!$BI279)","v":41012.930612857504},{"$f":"IF('[1]FISCAL(M)'!$BS279=\"\",\"\",'[1]FISCAL(M)'!$BS279)","v":39071.540023954156},{"$f":"IF('[1]FISCAL(M)'!$AZ279=\"\",\"\",'[1]FISCAL(M)'!$AZ279)","v":94044.091649511654},{"$f":"IF('[1]FISCAL(M)'!$BJ279=\"\",\"\",'[1]FISCAL(M)'!$BJ279)","v":43967.654357487496},{"$f":"IF('[1]FISCAL(M)'!$BT279=\"\",\"\",'[1]FISCAL(M)'!$BT279)","v":50076.437292024159},{"$f":"IF('[2]MONE(M)'!$AO279=\"\",\"\",'[2]MONE(M)'!$AO279)","v":11169343.704898369},{"$f":"IF('[3]MONE(M)'!$AO279=\"\",\"\",'[3]MONE(M)'!$AO279)","v":9007.2976474401203},{"$f":"IF('[4]MONE(M)'!$AO279=\"\",\"\",'[4]MONE(M)'!$AO279)","v":104362.70012020315},{"$f":"IF('[5]MONE(M)'!$AO279=\"\",\"\",'[5]MONE(M)'!$AO279)","v":169854.54610670128},{"$f":"IF('[6]MONE(M)'!$AO279=\"\",\"\",'[6]MONE(M)'!$AO279)","v":56853.005194361322},{"$f":"IF('[7]MONE(M)'!$AO279=\"\",\"\",'[7]MONE(M)'!$AO279)","v":489560.25266124},{"$f":"IF('[8]MONE(M)'!$AO279=\"\",\"\",'[8]MONE(M)'!$AO279)","v":28434.565056349998},14.267983672314323,3.8019477577549754,18.305870092304776,15.339436523678639,28.228214455755428,8.9512391513454581,15.880989384963694,{"$f":"IF('[1]FISCAL(M)'!$K279=\"\",\"\",'[1]FISCAL(M)'!$K279)","v":-3163.9846791495829},{"$f":"+'[1]REAL(A)'!$AO$32","v":"n.d."},"n.d.",{"$f":"IF('[1]FISCAL(M)'!$L279=\"\",\"\",'[1]FISCAL(M)'!$L279)","v":-3344.9511761295826},{"$f":"+'[1]REAL(A)'!$AP$32","v":"n.d."},"n.d.",94148.867004849482,{"$f":"'[1]Gráfico REM'!BG273","v":20178.266255851362},{"$f":"'[1]Gráfico REM'!BH273","v":68637.040134627692},{"$f":"'[1]Gráfico REM'!BI273","v":5333.560614370419},8.3507695078545154,-2.6862440389911812,12.103856301750305,8.1617255581513337,141912.26912842947,{"$f":"'[1]Gráfico REM'!BK273","v":21702.245265041362},{"$f":"'[1]Gráfico REM'!BL273","v":97071.605190977687},{"$f":"'[1]Gráfico REM'!BM273","v":23138.418672410422},9.8293454520147918,-0.24228084667269334,13.184522364871597,6.6648735206242593]
[2012,"julio","2012-julio",{"$f":"IF('[1]REAL IPC(M)'!$AL280=\"\",\"\",+'[1]REAL IPC(M)'!$AL280)","v":3.0566735708194903},{"$f":"IF('[1]REAL IPC(M)'!$BE280=\"\",\"\",+'[1]REAL IPC(M)'!$BE280)","v":4.9956269378661267},{"$f":"IF('[1]REAL IPC(M)'!$AM280=\"\",\"\",+'[1]REAL IPC(M)'!$AM280)","v":2.692832511497989},{"$f":"IF('[1]REAL IPC(M)'!$BI280=\"\",\"\",+'[1]REAL IPC(M)'!$BI280)","v":4.5689165885975047},{"$f":"IF('[1]REAL IMAE(M)'!BJ280=\"\",\"\",'[1]REAL IMAE(M)'!BJ280)","v":3.4952730170203061},{"$f":"IF('[1]REAL IMAE(M)'!BK280=\"\",\"\",'[1]REAL IMAE(M)'!BK280)","v":3.8366202964766005},{"$f":"IF('[1]REAL IMAE(M)'!BN280=\"\",\"\",'[1]REAL IMAE(M)'!BN280)","v":4.7725550217463164},{"$f":"IF('[1]REAL IMAE(M)'!BO280=\"\",\"\",'[1]REAL IMAE(M)'!BO280)","v":4.7119521078919702},{"$f":"IF('[1]EXT RIN(M)'!$K280=\"\",\"\",'[1]EXT RIN(M)'!$K280)","v":21652.862193113695},"",{"$f":"IF('[1]EXT RIN(M)'!$L280=\"\",\"\",'[1]EXT RIN(M)'!$L280)","v":23787.481331853694},"",{"$f":"IF('[1]MONE(M)CARD'!EG280=\"\",\"\",'[1]MONE(M)CARD'!EG280)","v":23510.290319848777},{"$f":"IF('[1]MONE(M)CARD'!EK280=\"\",\"\",'[1]MONE(M)CARD'!EK280)","v":41120.327425970783},{"$f":"IF('[1]MONE(M)CARD'!EP280=\"\",\"\",'[1]MONE(M)CARD'!EP280)","v":22791.746069122077},{"$f":"IF('[1]MONE(M)CARD'!ES280=\"\",\"\",'[1]MONE(M)CARD'!ES280)","v":2.7069043239402291},{"$f":"IF('[1]MONE(M)CARD'!EV280=\"\",\"\",'[1]MONE(M)CARD'!EV280)","v":7.9435996107908302},{"$f":"IF('[1]MONE(M)CARD'!EZ280=\"\",\"\",'[1]MONE(M)CARD'!EZ280)","v":7.7104363023844158},{"$f":"IF('[1]MONE(M)CAPARD'!FC280=\"\",\"\",'[1]MONE(M)CAPARD'!FC280)","v":30069.995190028778},{"$f":"IF('[1]MONE(M)CAPARD'!FG280=\"\",\"\",'[1]MONE(M)CAPARD'!FG280)","v":62494.119546840775},{"$f":"IF('[1]MONE(M)CAPARD'!FL280=\"\",\"\",'[1]MONE(M)CAPARD'!FL280)","v":22791.746069122077},{"$f":"IF('[1]MONE(M)CAPARD'!FO280=\"\",\"\",'[1]MONE(M)CAPARD'!FO280)","v":5.586909204872792},{"$f":"IF('[1]MONE(M)CAPARD'!FR280=\"\",\"\",'[1]MONE(M)CAPARD'!FR280)","v":8.652698044384465},{"$f":"IF('[1]MONE(M)CAPARD'!FV280=\"\",\"\",'[1]MONE(M)CAPARD'!FV280)","v":8.3331985137166988},{"$f":"IF('[1]MONE(M)CARD'!FV280=\"\",\"\",'[1]MONE(M)CARD'!FV280)","v":2588.965563003544},{"$f":"IF('[1]MONE(M)CARD'!GD280=\"\",\"\",'[1]MONE(M)CARD'!GD280)","v":90.99954352422003},{"$f":"IF('[1]MONE(M)CARD'!GE280=\"\",\"\",'[1]MONE(M)CARD'!GE280)","v":6455.5797512904865},7.382890853912949,{"$f":"IF('[9]II.2.Balance OSD-Activos'!J138=\"\",\"\",'[9]II.2.Balance OSD-Activos'!J138)","v":165.01103634561579},{"$f":"IF('[9]II.2.Balance OSD-Activos'!N138=\"\",\"\",'[9]II.2.Balance OSD-Activos'!N138)","v":443.7563532785336},{"$f":"IF('[9]II.2.Balance OSD-Activos'!R138=\"\",\"\",'[9]II.2.Balance OSD-Activos'!R138)","v":30279.810315043949},{"$f":"IF('[9]II.2.Balance OSD-Activos'!S138=\"\",\"\",'[9]II.2.Balance OSD-Activos'!S138)","v":35338.308704810763},30444.821351389564,66226.886409478859,10.334346506967208,12.567057227029022,4.8556073255220156,12.57947205710963,12.280630958943428,12.358747045637353,-0.24688514428976482,{"$f":"IF('[1]MONE(M)CAPARD'!GS280=\"\",\"\",'[1]MONE(M)CAPARD'!GS280)","v":14436.602003038504},{"$f":"IF('[1]MONE(M)CARD'!HA280=\"\",\"\",'[1]MONE(M)CAPARD'!HA280)","v":7071.3895974504867},{"$f":"IF('[1]MONE(M)CAPARD'!HB280=\"\",\"\",'[1]MONE(M)CAPARD'!HB280)","v":7365.2124055880176},"n.d.",{"$f":"IF('[10]II.2.Balance OSD-Activos'!J138=\"\",\"\",'[10]II.2.Balance OSD-Activos'!J138)","v":891.07491065561578},{"$f":"IF('[10]II.2.Balance OSD-Activos'!N138=\"\",\"\",'[10]II.2.Balance OSD-Activos'!N138)","v":842.29954276853357},{"$f":"IF('[10]II.2.Balance OSD-Activos'!R138=\"\",\"\",'[10]II.2.Balance OSD-Activos'!R138)","v":45621.063520253949},{"$f":"IF('[10]II.2.Balance OSD-Activos'!S138=\"\",\"\",'[10]II.2.Balance OSD-Activos'!S138)","v":47375.057191140761},46512.138430909567,94729.495164818858,16.090185817786029,14.466592447686711,1.7347537646359656,14.435332322823037,12.598841463447874,13.399683091790958,-0.2015582437613368,{"$f":"IF('[1]MONE(M)CAPARD'!AS280=\"\",\"\",'[1]MONE(M)CAPARD'!AS280)","v":5},{"$f":"IF('[1]MONE(M)CAPARD'!AT280=\"\",\"\",'[1]MONE(M)CAPARD'!AT280)","v":"n.a."},{"$f":"IF('[1]MONE(M)CAPARD'!AU280=\"\",\"\",'[1]MONE(M)CAPARD'!AU280)","v":5},{"$f":"IF('[1]MONE(M)CAPARD'!AV280=\"\",\"\",'[1]MONE(M)CAPARD'!AV280)","v":7},{"$f":"IF('[1]MONE(M)CAPARD'!AW280=\"\",\"\",'[1]MONE(M)CAPARD'!AW280)","v":"n.a."},{"$f":"IF('[1]MONE(M)CAPARD'!AX280=\"\",\"\",'[1]MONE(M)CAPARD'!AX280)","v":6},{"$f":"IF('[1]MONE(M)CAPARD'!AY280=\"\",\"\",'[1]MONE(M)CAPARD'!AY280)","v":"n.a."},{"$f":"IF('[1]FISCAL(M)'!$K280=\"\",\"\",'[1]FISCAL(M)'!$K280)","v":-4639.4231540717847},{"$f":"IF('[1]FISCAL(M)'!$L280=\"\",\"\",'[1]FISCAL(M)'!$L280)","v":-5036.2077666517853},{"$f":"IF('[1]FISCAL(M)'!$AY280=\"\",\"\",'[1]FISCAL(M)'!$AY280)","v":80655.880815587559},{"$f":"IF('[1]FISCAL(M)'!$BI280=\"\",\"\",'[1]FISCAL(M)'!$BI280)","v":41538.909544622598},{"$f":"IF('[1]FISCAL(M)'!$BS280=\"\",\"\",'[1]FISCAL(M)'!$BS280)","v":39116.971270964954},{"$f":"IF('[1]FISCAL(M)'!$AZ280=\"\",\"\",'[1]FISCAL(M)'!$AZ280)","v":94843.849491117551},{"$f":"IF('[1]FISCAL(M)'!$BJ280=\"\",\"\",'[1]FISCAL(M)'!$BJ280)","v":44831.019097302604},{"$f":"IF('[1]FISCAL(M)'!$BT280=\"\",\"\",'[1]FISCAL(M)'!$BT280)","v":50012.830393814962},{"$f":"IF('[2]MONE(M)'!$AO280=\"\",\"\",'[2]MONE(M)'!$AO280)","v":11301671.195277303},{"$f":"IF('[3]MONE(M)'!$AO280=\"\",\"\",'[3]MONE(M)'!$AO280)","v":9059.994794010121},{"$f":"IF('[4]MONE(M)'!$AO280=\"\",\"\",'[4]MONE(M)'!$AO280)","v":106524.34773947881},{"$f":"IF('[5]MONE(M)'!$AO280=\"\",\"\",'[5]MONE(M)'!$AO280)","v":170609.70796187338},{"$f":"IF('[6]MONE(M)'!$AO280=\"\",\"\",'[6]MONE(M)'!$AO280)","v":57927.64767306453},{"$f":"IF('[7]MONE(M)'!$AO280=\"\",\"\",'[7]MONE(M)'!$AO280)","v":488069.76338648994},{"$f":"IF('[8]MONE(M)'!$AO280=\"\",\"\",'[8]MONE(M)'!$AO280)","v":28867.846379399998},14.259429526557454,3.8331801588582293,20.251560921546897,14.972457705732968,29.593259490418909,7.1548996286515232,15.934564067532264,{"$f":"IF('[1]FISCAL(M)'!$K280=\"\",\"\",'[1]FISCAL(M)'!$K280)","v":-4639.4231540717847},{"$f":"+'[1]REAL(A)'!$AO$32","v":"n.d."},"n.d.",{"$f":"IF('[1]FISCAL(M)'!$L280=\"\",\"\",'[1]FISCAL(M)'!$L280)","v":-5036.2077666517853},{"$f":"+'[1]REAL(A)'!$AP$32","v":"n.d."},"n.d.",94544.35303277905,{"$f":"'[1]Gráfico REM'!BG274","v":20210.305722833429},{"$f":"'[1]Gráfico REM'!BH274","v":69136.424558442552},{"$f":"'[1]Gráfico REM'!BI274","v":5197.6227515030587},8.7760855763075583,-0.49513977909533269,11.998510338794489,6.5994642679691573,142340.90043822903,{"$f":"'[1]Gráfico REM'!BK274","v":21699.548848943428},{"$f":"'[1]Gráfico REM'!BL274","v":98004.27093784255},{"$f":"'[1]Gráfico REM'!BM274","v":22637.080651443059},9.3337802805216299,1.3874494638341783,13.129854386205819,2.1675295921748994]
[2012,"agosto","2012-agosto",{"$f":"IF('[1]REAL IPC(M)'!$AL281=\"\",\"\",+'[1]REAL IPC(M)'!$AL281)","v":3.2794569989302413},{"$f":"IF('[1]REAL IPC(M)'!$BE281=\"\",\"\",+'[1]REAL IPC(M)'!$BE281)","v":4.9426775596715045},{"$f":"IF('[1]REAL IPC(M)'!$AM281=\"\",\"\",+'[1]REAL IPC(M)'!$AM281)","v":2.9058374137345133},{"$f":"IF('[1]REAL IPC(M)'!$BI281=\"\",\"\",+'[1]REAL IPC(M)'!$BI281)","v":4.5301206636530811},{"$f":"IF('[1]REAL IMAE(M)'!BJ281=\"\",\"\",'[1]REAL IMAE(M)'!BJ281)","v":3.3671679086827888},{"$f":"IF('[1]REAL IMAE(M)'!BK281=\"\",\"\",'[1]REAL IMAE(M)'!BK281)","v":3.8428933355732164},{"$f":"IF('[1]REAL IMAE(M)'!BN281=\"\",\"\",'[1]REAL IMAE(M)'!BN281)","v":4.4685889625413644},{"$f":"IF('[1]REAL IMAE(M)'!BO281=\"\",\"\",'[1]REAL IMAE(M)'!BO281)","v":4.7133084070956954},{"$f":"IF('[1]EXT RIN(M)'!$K281=\"\",\"\",'[1]EXT RIN(M)'!$K281)","v":21529.859739189815},"",{"$f":"IF('[1]EXT RIN(M)'!$L281=\"\",\"\",'[1]EXT RIN(M)'!$L281)","v":23716.883535679815},"",{"$f":"IF('[1]MONE(M)CARD'!EG281=\"\",\"\",'[1]MONE(M)CARD'!EG281)","v":23489.007339482094},{"$f":"IF('[1]MONE(M)CARD'!EK281=\"\",\"\",'[1]MONE(M)CARD'!EK281)","v":41360.272960956703},{"$f":"IF('[1]MONE(M)CARD'!EP281=\"\",\"\",'[1]MONE(M)CARD'!EP281)","v":22982.255746211755},{"$f":"IF('[1]MONE(M)CARD'!ES281=\"\",\"\",'[1]MONE(M)CARD'!ES281)","v":5.3320993904525826},{"$f":"IF('[1]MONE(M)CARD'!EV281=\"\",\"\",'[1]MONE(M)CARD'!EV281)","v":8.9009962656077199},{"$f":"IF('[1]MONE(M)CARD'!EZ281=\"\",\"\",'[1]MONE(M)CARD'!EZ281)","v":8.7888141108644735},{"$f":"IF('[1]MONE(M)CAPARD'!FC281=\"\",\"\",'[1]MONE(M)CAPARD'!FC281)","v":29989.955001242091},{"$f":"IF('[1]MONE(M)CAPARD'!FG281=\"\",\"\",'[1]MONE(M)CAPARD'!FG281)","v":63177.398235796703},{"$f":"IF('[1]MONE(M)CAPARD'!FL281=\"\",\"\",'[1]MONE(M)CAPARD'!FL281)","v":22982.255746211755},{"$f":"IF('[1]MONE(M)CAPARD'!FO281=\"\",\"\",'[1]MONE(M)CAPARD'!FO281)","v":7.0895459981343167},{"$f":"IF('[1]MONE(M)CAPARD'!FR281=\"\",\"\",'[1]MONE(M)CAPARD'!FR281)","v":9.6452967542048906},{"$f":"IF('[1]MONE(M)CAPARD'!FV281=\"\",\"\",'[1]MONE(M)CAPARD'!FV281)","v":9.4114334446997674},{"$f":"IF('[1]MONE(M)CARD'!FV281=\"\",\"\",'[1]MONE(M)CARD'!FV281)","v":1020.2975458382991},{"$f":"IF('[1]MONE(M)CARD'!GD281=\"\",\"\",'[1]MONE(M)CARD'!GD281)","v":89.638094415229716},{"$f":"IF('[1]MONE(M)CARD'!GE281=\"\",\"\",'[1]MONE(M)CARD'!GE281)","v":6733.1423963229117},9.7777530264971713,{"$f":"IF('[9]II.2.Balance OSD-Activos'!J139=\"\",\"\",'[9]II.2.Balance OSD-Activos'!J139)","v":168.48481316537021},{"$f":"IF('[9]II.2.Balance OSD-Activos'!N139=\"\",\"\",'[9]II.2.Balance OSD-Activos'!N139)","v":447.50575196979594},{"$f":"IF('[9]II.2.Balance OSD-Activos'!R139=\"\",\"\",'[9]II.2.Balance OSD-Activos'!R139)","v":32496.788292441466},{"$f":"IF('[9]II.2.Balance OSD-Activos'!S139=\"\",\"\",'[9]II.2.Balance OSD-Activos'!S139)","v":35752.006103590014},32665.273105606837,{"$f":"IF(OR(AF274=\"\",AG274=\"\",AH274=\"\",AI274=\"\"),\"\",SUM(AF274:AI274))","v":68864.784961166646},9.3071900723615375,21.297081217916357,7.5027548446534142,21.366102692871401,12.409514504995345,16.421244196002061,4.0624971503647078,{"$f":"IF('[1]MONE(M)CAPARD'!GS281=\"\",\"\",'[1]MONE(M)CAPARD'!GS281)","v":13159.196910406326},{"$f":"IF('[1]MONE(M)CARD'!HA281=\"\",\"\",'[1]MONE(M)CAPARD'!HA281)","v":7348.1764451529107},{"$f":"IF('[1]MONE(M)CAPARD'!HB281=\"\",\"\",'[1]MONE(M)CAPARD'!HB281)","v":5811.0204652534158},"n.d.",{"$f":"IF('[10]II.2.Balance OSD-Activos'!J139=\"\",\"\",'[10]II.2.Balance OSD-Activos'!J139)","v":891.69312724537031},{"$f":"IF('[10]II.2.Balance OSD-Activos'!N139=\"\",\"\",'[10]II.2.Balance OSD-Activos'!N139)","v":848.05498467979601},{"$f":"IF('[10]II.2.Balance OSD-Activos'!R139=\"\",\"\",'[10]II.2.Balance OSD-Activos'!R139)","v":48188.465650041471},{"$f":"IF('[10]II.2.Balance OSD-Activos'!S139=\"\",\"\",'[10]II.2.Balance OSD-Activos'!S139)","v":47932.619138210015},{"$f":"IFERROR(+AW274+AY274,\"n.d.\")","v":49080.158777286844},97860.832900176654,8.2430518707969913,19.574436332365551,3.994528077784687,19.806515257127511,12.795306499268744,16.008782103336895,2.6090990115459363,{"$f":"IF('[1]MONE(M)CAPARD'!AS281=\"\",\"\",'[1]MONE(M)CAPARD'!AS281)","v":5},{"$f":"IF('[1]MONE(M)CAPARD'!AT281=\"\",\"\",'[1]MONE(M)CAPARD'!AT281)","v":"n.a."},{"$f":"IF('[1]MONE(M)CAPARD'!AU281=\"\",\"\",'[1]MONE(M)CAPARD'!AU281)","v":5},{"$f":"IF('[1]MONE(M)CAPARD'!AV281=\"\",\"\",'[1]MONE(M)CAPARD'!AV281)","v":7},{"$f":"IF('[1]MONE(M)CAPARD'!AW281=\"\",\"\",'[1]MONE(M)CAPARD'!AW281)","v":"n.a."},{"$f":"IF('[1]MONE(M)CAPARD'!AX281=\"\",\"\",'[1]MONE(M)CAPARD'!AX281)","v":5.5},{"$f":"IF('[1]MONE(M)CAPARD'!AY281=\"\",\"\",'[1]MONE(M)CAPARD'!AY281)","v":"n.a."},{"$f":"IF('[1]FISCAL(M)'!$K281=\"\",\"\",'[1]FISCAL(M)'!$K281)","v":-6121.7945079287383},{"$f":"IF('[1]FISCAL(M)'!$L281=\"\",\"\",'[1]FISCAL(M)'!$L281)","v":-6534.694000248739},{"$f":"IF('[1]FISCAL(M)'!$AY281=\"\",\"\",'[1]FISCAL(M)'!$AY281)","v":81977.490736597843},{"$f":"IF('[1]FISCAL(M)'!$BI281=\"\",\"\",'[1]FISCAL(M)'!$BI281)","v":42686.028035661868},{"$f":"IF('[1]FISCAL(M)'!$BS281=\"\",\"\",'[1]FISCAL(M)'!$BS281)","v":39291.462700935968},{"$f":"IF('[1]FISCAL(M)'!$AZ281=\"\",\"\",'[1]FISCAL(M)'!$AZ281)","v":96265.294750287838},{"$f":"IF('[1]FISCAL(M)'!$BJ281=\"\",\"\",'[1]FISCAL(M)'!$BJ281)","v":46088.770755691876},{"$f":"IF('[1]FISCAL(M)'!$BT281=\"\",\"\",'[1]FISCAL(M)'!$BT281)","v":50176.523994595962},{"$f":"IF('[2]MONE(M)'!$AO281=\"\",\"\",'[2]MONE(M)'!$AO281)","v":11394018.173678463},{"$f":"IF('[3]MONE(M)'!$AO281=\"\",\"\",'[3]MONE(M)'!$AO281)","v":9085.189355660119},{"$f":"IF('[4]MONE(M)'!$AO281=\"\",\"\",'[4]MONE(M)'!$AO281)","v":124248.56784418118},{"$f":"IF('[5]MONE(M)'!$AO281=\"\",\"\",'[5]MONE(M)'!$AO281)","v":172713.77974529171},{"$f":"IF('[6]MONE(M)'!$AO281=\"\",\"\",'[6]MONE(M)'!$AO281)","v":59222.246191431223},{"$f":"IF('[7]MONE(M)'!$AO281=\"\",\"\",'[7]MONE(M)'!$AO281)","v":491197.43676501},{"$f":"IF('[8]MONE(M)'!$AO281=\"\",\"\",'[8]MONE(M)'!$AO281)","v":29367.925865220001},13.290052753979031,4.3220336990323904,39.60211478227167,15.560903968359764,29.494513297546888,6.81634788108052,14.898321025679785,{"$f":"IF('[1]FISCAL(M)'!$K281=\"\",\"\",'[1]FISCAL(M)'!$K281)","v":-6121.7945079287383},{"$f":"+'[1]REAL(A)'!$AO$32","v":"n.d."},"n.d.",{"$f":"IF('[1]FISCAL(M)'!$L281=\"\",\"\",'[1]FISCAL(M)'!$L281)","v":-6534.694000248739},{"$f":"+'[1]REAL(A)'!$AP$32","v":"n.d."},"n.d.",95904.74242285674,{"$f":"'[1]Gráfico REM'!BG275","v":18875.24925905298},{"$f":"'[1]Gráfico REM'!BH275","v":71686.11001016853},{"$f":"'[1]Gráfico REM'!BI275","v":5343.3831536352282},10.548019069540038,-5.8776708467223155,15.682084891050629,12.925822689917755,144340.20464925675,{"$f":"'[1]Gráfico REM'!BK275","v":20395.622375892981},{"$f":"'[1]Gráfico REM'!BL275","v":101054.03587538854},{"$f":"'[1]Gráfico REM'!BM275","v":22890.546397975231},10.384301767430948,-3.541170229218582,15.453210511051708,3.6286102391808406]
[2012,"septiembre","2012-septiembre",{"$f":"IF('[1]REAL IPC(M)'!$AL282=\"\",\"\",+'[1]REAL IPC(M)'!$AL282)","v":3.77327238730647},{"$f":"IF('[1]REAL IPC(M)'!$BE282=\"\",\"\",+'[1]REAL IPC(M)'!$BE282)","v":4.8894558146296729},{"$f":"IF('[1]REAL IPC(M)'!$AM282=\"\",\"\",+'[1]REAL IPC(M)'!$AM282)","v":3.3401518703665589},{"$f":"IF('[1]REAL IPC(M)'!$BI282=\"\",\"\",+'[1]REAL IPC(M)'!$BI282)","v":4.4918365078804756},{"$f":"IF('[1]REAL IMAE(M)'!BJ282=\"\",\"\",'[1]REAL IMAE(M)'!BJ282)","v":3.2693256841789475},{"$f":"IF('[1]REAL IMAE(M)'!BK282=\"\",\"\",'[1]REAL IMAE(M)'!BK282)","v":3.8506960878217811},{"$f":"IF('[1]REAL IMAE(M)'!BN282=\"\",\"\",'[1]REAL IMAE(M)'!BN282)","v":4.2392014307179648},{"$f":"IF('[1]REAL IMAE(M)'!BO282=\"\",\"\",'[1]REAL IMAE(M)'!BO282)","v":4.7140684642175135},{"$f":"IF('[1]EXT RIN(M)'!$K282=\"\",\"\",'[1]EXT RIN(M)'!$K282)","v":21490.879023364556},"",{"$f":"IF('[1]EXT RIN(M)'!$L282=\"\",\"\",'[1]EXT RIN(M)'!$L282)","v":23433.439613624556},"",{"$f":"IF('[1]MONE(M)CARD'!EG282=\"\",\"\",'[1]MONE(M)CARD'!EG282)","v":23350.101096062517},{"$f":"IF('[1]MONE(M)CARD'!EK282=\"\",\"\",'[1]MONE(M)CARD'!EK282)","v":41748.776317944663},{"$f":"IF('[1]MONE(M)CARD'!EP282=\"\",\"\",'[1]MONE(M)CARD'!EP282)","v":22916.902582453971},{"$f":"IF('[1]MONE(M)CARD'!ES282=\"\",\"\",'[1]MONE(M)CARD'!ES282)","v":5.0632740034654677},{"$f":"IF('[1]MONE(M)CARD'!EV282=\"\",\"\",'[1]MONE(M)CARD'!EV282)","v":9.6400952003635076},{"$f":"IF('[1]MONE(M)CARD'!EZ282=\"\",\"\",'[1]MONE(M)CARD'!EZ282)","v":9.5955214614065873},{"$f":"IF('[1]MONE(M)CAPARD'!FC282=\"\",\"\",'[1]MONE(M)CAPARD'!FC282)","v":29977.144774072516},{"$f":"IF('[1]MONE(M)CAPARD'!FG282=\"\",\"\",'[1]MONE(M)CAPARD'!FG282)","v":63490.438684834662},{"$f":"IF('[1]MONE(M)CAPARD'!FL282=\"\",\"\",'[1]MONE(M)CAPARD'!FL282)","v":22916.902582453971},{"$f":"IF('[1]MONE(M)CAPARD'!FO282=\"\",\"\",'[1]MONE(M)CAPARD'!FO282)","v":7.3501793132768611},{"$f":"IF('[1]MONE(M)CAPARD'!FR282=\"\",\"\",'[1]MONE(M)CAPARD'!FR282)","v":10.265897045900839},{"$f":"IF('[1]MONE(M)CAPARD'!FV282=\"\",\"\",'[1]MONE(M)CAPARD'!FV282)","v":10.108086549134509},{"$f":"IF('[1]MONE(M)CARD'!FV282=\"\",\"\",'[1]MONE(M)CARD'!FV282)","v":956.3532670320983},{"$f":"IF('[1]MONE(M)CARD'!GD282=\"\",\"\",'[1]MONE(M)CARD'!GD282)","v":158.17687505925883},{"$f":"IF('[1]MONE(M)CARD'!GE282=\"\",\"\",'[1]MONE(M)CARD'!GE282)","v":6633.1282919077848},11.455544744976031,{"$f":"IF('[9]II.2.Balance OSD-Activos'!J140=\"\",\"\",'[9]II.2.Balance OSD-Activos'!J140)","v":165.48801664385223},{"$f":"IF('[9]II.2.Balance OSD-Activos'!N140=\"\",\"\",'[9]II.2.Balance OSD-Activos'!N140)","v":455.74199066107212},{"$f":"IF('[9]II.2.Balance OSD-Activos'!R140=\"\",\"\",'[9]II.2.Balance OSD-Activos'!R140)","v":32649.843515622295},{"$f":"IF('[9]II.2.Balance OSD-Activos'!S140=\"\",\"\",'[9]II.2.Balance OSD-Activos'!S140)","v":36157.655994902976},32815.331532266144,69428.729517830187,16.370047696070333,20.097721678518955,13.725939668934384,20.117224050871705,12.785874391546482,16.134045217438665,-0.28719897856339571,{"$f":"IF('[1]MONE(M)CAPARD'!GS282=\"\",\"\",'[1]MONE(M)CAPARD'!GS282)","v":13257.080663664139},{"$f":"IF('[1]MONE(M)CARD'!HA282=\"\",\"\",'[1]MONE(M)CAPARD'!HA282)","v":7247.5587517777867},{"$f":"IF('[1]MONE(M)CAPARD'!HB282=\"\",\"\",'[1]MONE(M)CAPARD'!HB282)","v":6009.5219118863524},"n.d.",{"$f":"IF('[10]II.2.Balance OSD-Activos'!J140=\"\",\"\",'[10]II.2.Balance OSD-Activos'!J140)","v":941.69737374385238},{"$f":"IF('[10]II.2.Balance OSD-Activos'!N140=\"\",\"\",'[10]II.2.Balance OSD-Activos'!N140)","v":868.12967439107217},{"$f":"IF('[10]II.2.Balance OSD-Activos'!R140=\"\",\"\",'[10]II.2.Balance OSD-Activos'!R140)","v":48729.932530852297},{"$f":"IF('[10]II.2.Balance OSD-Activos'!S140=\"\",\"\",'[10]II.2.Balance OSD-Activos'!S140)","v":48490.960751862985},49671.62990459615,99030.720330850207,16.126663772271964,18.851912814363025,9.1040689363738778,18.905838164559686,13.069081140722627,15.859687428252013,-0.14909467508488206,{"$f":"IF('[1]MONE(M)CAPARD'!AS282=\"\",\"\",'[1]MONE(M)CAPARD'!AS282)","v":5},{"$f":"IF('[1]MONE(M)CAPARD'!AT282=\"\",\"\",'[1]MONE(M)CAPARD'!AT282)","v":"n.a."},{"$f":"IF('[1]MONE(M)CAPARD'!AU282=\"\",\"\",'[1]MONE(M)CAPARD'!AU282)","v":5},{"$f":"IF('[1]MONE(M)CAPARD'!AV282=\"\",\"\",'[1]MONE(M)CAPARD'!AV282)","v":7},{"$f":"IF('[1]MONE(M)CAPARD'!AW282=\"\",\"\",'[1]MONE(M)CAPARD'!AW282)","v":"n.a."},{"$f":"IF('[1]MONE(M)CAPARD'!AX282=\"\",\"\",'[1]MONE(M)CAPARD'!AX282)","v":5},{"$f":"IF('[1]MONE(M)CAPARD'!AY282=\"\",\"\",'[1]MONE(M)CAPARD'!AY282)","v":"n.a."},{"$f":"IF('[1]FISCAL(M)'!$K282=\"\",\"\",'[1]FISCAL(M)'!$K282)","v":-6470.6903707968531},{"$f":"IF('[1]FISCAL(M)'!$L282=\"\",\"\",'[1]FISCAL(M)'!$L282)","v":-7022.323037526854},{"$f":"IF('[1]FISCAL(M)'!$AY282=\"\",\"\",'[1]FISCAL(M)'!$AY282)","v":82607.404066434246},{"$f":"IF('[1]FISCAL(M)'!$BI282=\"\",\"\",'[1]FISCAL(M)'!$BI282)","v":43115.292619256215},{"$f":"IF('[1]FISCAL(M)'!$BS282=\"\",\"\",'[1]FISCAL(M)'!$BS282)","v":39492.111447178031},{"$f":"IF('[1]FISCAL(M)'!$AZ282=\"\",\"\",'[1]FISCAL(M)'!$AZ282)","v":96981.970654604258},{"$f":"IF('[1]FISCAL(M)'!$BJ282=\"\",\"\",'[1]FISCAL(M)'!$BJ282)","v":46619.24079818622},{"$f":"IF('[1]FISCAL(M)'!$BT282=\"\",\"\",'[1]FISCAL(M)'!$BT282)","v":50362.729856418038},{"$f":"IF('[2]MONE(M)'!$AO282=\"\",\"\",'[2]MONE(M)'!$AO282)","v":11529774.703146648},{"$f":"IF('[3]MONE(M)'!$AO282=\"\",\"\",'[3]MONE(M)'!$AO282)","v":9103.329340270122},{"$f":"IF('[4]MONE(M)'!$AO282=\"\",\"\",'[4]MONE(M)'!$AO282)","v":126083.00880073145},{"$f":"IF('[5]MONE(M)'!$AO282=\"\",\"\",'[5]MONE(M)'!$AO282)","v":175592.96405215855},{"$f":"IF('[6]MONE(M)'!$AO282=\"\",\"\",'[6]MONE(M)'!$AO282)","v":60349.46380635001},{"$f":"IF('[7]MONE(M)'!$AO282=\"\",\"\",'[7]MONE(M)'!$AO282)","v":493671.25274897006},{"$f":"IF('[8]MONE(M)'!$AO282=\"\",\"\",'[8]MONE(M)'!$AO282)","v":30018.166583800001},13.495197438190299,3.803816987852926,39.396273288941309,16.341551847862835,28.037376534173418,5.7105424077370515,15.210448060397642,{"$f":"IF('[1]FISCAL(M)'!$K282=\"\",\"\",'[1]FISCAL(M)'!$K282)","v":-6470.6903707968531},{"$f":"+'[1]REAL(A)'!$AO$32","v":"n.d."},"n.d.",{"$f":"IF('[1]FISCAL(M)'!$L282=\"\",\"\",'[1]FISCAL(M)'!$L282)","v":-7022.323037526854},{"$f":"+'[1]REAL(A)'!$AP$32","v":"n.d."},"n.d.",96583.393087369244,{"$f":"'[1]Gráfico REM'!BG276","v":18895.390169782397},{"$f":"'[1]Gráfico REM'!BH276","v":72369.886680510521},{"$f":"'[1]Gráfico REM'!BI276","v":5318.1162370763204},10.549536795936953,-5.794553200770725,15.779715625812219,10.737678246866068,146319.55517876922,{"$f":"'[1]Gráfico REM'!BK276","v":20487.793600022396},{"$f":"'[1]Gráfico REM'!BL276","v":102388.05326431053},{"$f":"'[1]Gráfico REM'!BM276","v":23443.708314436313},11.004475619130982,-3.3024738003412768,15.612235510553262,6.2484326477728169]
[2012,"octubre","2012-octubre",{"$f":"IF('[1]REAL IPC(M)'!$AL283=\"\",\"\",+'[1]REAL IPC(M)'!$AL283)","v":3.9702458912789895},{"$f":"IF('[1]REAL IPC(M)'!$BE283=\"\",\"\",+'[1]REAL IPC(M)'!$BE283)","v":4.8359545022027994},{"$f":"IF('[1]REAL IPC(M)'!$AM283=\"\",\"\",+'[1]REAL IPC(M)'!$AM283)","v":3.5224767739901353},{"$f":"IF('[1]REAL IPC(M)'!$BI283=\"\",\"\",+'[1]REAL IPC(M)'!$BI283)","v":4.4539650010722909},{"$f":"IF('[1]REAL IMAE(M)'!BJ283=\"\",\"\",'[1]REAL IMAE(M)'!BJ283)","v":3.2332941253177205},{"$f":"IF('[1]REAL IMAE(M)'!BK283=\"\",\"\",'[1]REAL IMAE(M)'!BK283)","v":3.8603506820120481},{"$f":"IF('[1]REAL IMAE(M)'!BN283=\"\",\"\",'[1]REAL IMAE(M)'!BN283)","v":4.1569568818705882},{"$f":"IF('[1]REAL IMAE(M)'!BO283=\"\",\"\",'[1]REAL IMAE(M)'!BO283)","v":4.7145240669852262},{"$f":"IF('[1]EXT RIN(M)'!$K283=\"\",\"\",'[1]EXT RIN(M)'!$K283)","v":21796.266470937961},"",{"$f":"IF('[1]EXT RIN(M)'!$L283=\"\",\"\",'[1]EXT RIN(M)'!$L283)","v":23705.015087257962},"",{"$f":"IF('[1]MONE(M)CARD'!EG283=\"\",\"\",'[1]MONE(M)CARD'!EG283)","v":23366.437381945376},{"$f":"IF('[1]MONE(M)CARD'!EK283=\"\",\"\",'[1]MONE(M)CARD'!EK283)","v":41755.944396483304},{"$f":"IF('[1]MONE(M)CARD'!EP283=\"\",\"\",'[1]MONE(M)CARD'!EP283)","v":23045.218437341595},{"$f":"IF('[1]MONE(M)CARD'!ES283=\"\",\"\",'[1]MONE(M)CARD'!ES283)","v":5.1481856809570736},{"$f":"IF('[1]MONE(M)CARD'!EV283=\"\",\"\",'[1]MONE(M)CARD'!EV283)","v":8.8952472397849203},{"$f":"IF('[1]MONE(M)CARD'!EZ283=\"\",\"\",'[1]MONE(M)CARD'!EZ283)","v":9.0057407510253373},{"$f":"IF('[1]MONE(M)CAPARD'!FC283=\"\",\"\",'[1]MONE(M)CAPARD'!FC283)","v":30129.877339875376},{"$f":"IF('[1]MONE(M)CAPARD'!FG283=\"\",\"\",'[1]MONE(M)CAPARD'!FG283)","v":63494.549619123318},{"$f":"IF('[1]MONE(M)CAPARD'!FL283=\"\",\"\",'[1]MONE(M)CAPARD'!FL283)","v":23045.218437341595},{"$f":"IF('[1]MONE(M)CAPARD'!FO283=\"\",\"\",'[1]MONE(M)CAPARD'!FO283)","v":8.0720355272341884},{"$f":"IF('[1]MONE(M)CAPARD'!FR283=\"\",\"\",'[1]MONE(M)CAPARD'!FR283)","v":9.7724700328647671},{"$f":"IF('[1]MONE(M)CAPARD'!FV283=\"\",\"\",'[1]MONE(M)CAPARD'!FV283)","v":9.6826389734514073},{"$f":"IF('[1]MONE(M)CARD'!FV283=\"\",\"\",'[1]MONE(M)CARD'!FV283)","v":960.80837677895829},{"$f":"IF('[1]MONE(M)CARD'!GD283=\"\",\"\",'[1]MONE(M)CARD'!GD283)","v":90.112240153876442},{"$f":"IF('[1]MONE(M)CARD'!GE283=\"\",\"\",'[1]MONE(M)CARD'!GE283)","v":6796.8779072261677},7.4606375480654741,{"$f":"IF('[9]II.2.Balance OSD-Activos'!J141=\"\",\"\",'[9]II.2.Balance OSD-Activos'!J141)","v":166.78835380569683},{"$f":"IF('[9]II.2.Balance OSD-Activos'!N141=\"\",\"\",'[9]II.2.Balance OSD-Activos'!N141)","v":468.7611325891653},{"$f":"IF('[9]II.2.Balance OSD-Activos'!R141=\"\",\"\",'[9]II.2.Balance OSD-Activos'!R141)","v":33224.727214996579},{"$f":"IF('[9]II.2.Balance OSD-Activos'!S141=\"\",\"\",'[9]II.2.Balance OSD-Activos'!S141)","v":36626.321589820211},33391.515568802279,70486.598291211645,5.6339773096283796,20.785465035564577,18.225135497484079,20.87249793297201,12.927462337531814,16.5543551245785,0.42030990713983485,{"$f":"IF('[1]MONE(M)CAPARD'!GS283=\"\",\"\",'[1]MONE(M)CAPARD'!GS283)","v":13295.236061594302},{"$f":"IF('[1]MONE(M)CARD'!HA283=\"\",\"\",'[1]MONE(M)CAPARD'!HA283)","v":7408.240668146168},{"$f":"IF('[1]MONE(M)CAPARD'!HB283=\"\",\"\",'[1]MONE(M)CAPARD'!HB283)","v":5886.9953934481337},"n.d.",{"$f":"IF('[10]II.2.Balance OSD-Activos'!J141=\"\",\"\",'[10]II.2.Balance OSD-Activos'!J141)","v":962.12445208569682},{"$f":"IF('[10]II.2.Balance OSD-Activos'!N141=\"\",\"\",'[10]II.2.Balance OSD-Activos'!N141)","v":866.35407247916521},{"$f":"IF('[10]II.2.Balance OSD-Activos'!R141=\"\",\"\",'[10]II.2.Balance OSD-Activos'!R141)","v":49535.257800626576},{"$f":"IF('[10]II.2.Balance OSD-Activos'!S141=\"\",\"\",'[10]II.2.Balance OSD-Activos'!S141)","v":49062.025330970209},50497.382252712276,100425.76165616165,19.429093628251447,18.830662887162841,11.720953821612557,18.819098920320055,13.07512724112787,15.885350678127796,2.5663249875783833E-2,{"$f":"IF('[1]MONE(M)CAPARD'!AS283=\"\",\"\",'[1]MONE(M)CAPARD'!AS283)","v":5},{"$f":"IF('[1]MONE(M)CAPARD'!AT283=\"\",\"\",'[1]MONE(M)CAPARD'!AT283)","v":"n.a."},{"$f":"IF('[1]MONE(M)CAPARD'!AU283=\"\",\"\",'[1]MONE(M)CAPARD'!AU283)","v":5},{"$f":"IF('[1]MONE(M)CAPARD'!AV283=\"\",\"\",'[1]MONE(M)CAPARD'!AV283)","v":7},{"$f":"IF('[1]MONE(M)CAPARD'!AW283=\"\",\"\",'[1]MONE(M)CAPARD'!AW283)","v":"n.a."},{"$f":"IF('[1]MONE(M)CAPARD'!AX283=\"\",\"\",'[1]MONE(M)CAPARD'!AX283)","v":5},{"$f":"IF('[1]MONE(M)CAPARD'!AY283=\"\",\"\",'[1]MONE(M)CAPARD'!AY283)","v":"n.a."},{"$f":"IF('[1]FISCAL(M)'!$K283=\"\",\"\",'[1]FISCAL(M)'!$K283)","v":-6659.4145116299314},{"$f":"IF('[1]FISCAL(M)'!$L283=\"\",\"\",'[1]FISCAL(M)'!$L283)","v":-7163.3760436899329},{"$f":"IF('[1]FISCAL(M)'!$AY283=\"\",\"\",'[1]FISCAL(M)'!$AY283)","v":83170.618737595651},{"$f":"IF('[1]FISCAL(M)'!$BI283=\"\",\"\",'[1]FISCAL(M)'!$BI283)","v":43451.845521793184},{"$f":"IF('[1]FISCAL(M)'!$BS283=\"\",\"\",'[1]FISCAL(M)'!$BS283)","v":39718.773215802466},{"$f":"IF('[1]FISCAL(M)'!$AZ283=\"\",\"\",'[1]FISCAL(M)'!$AZ283)","v":97560.711151885655},{"$f":"IF('[1]FISCAL(M)'!$BJ283=\"\",\"\",'[1]FISCAL(M)'!$BJ283)","v":47002.315058553184},{"$f":"IF('[1]FISCAL(M)'!$BT283=\"\",\"\",'[1]FISCAL(M)'!$BT283)","v":50558.396093332463},{"$f":"IF('[2]MONE(M)'!$AO283=\"\",\"\",'[2]MONE(M)'!$AO283)","v":11704337.732396938},{"$f":"IF('[3]MONE(M)'!$AO283=\"\",\"\",'[3]MONE(M)'!$AO283)","v":9202.3587156401209},{"$f":"IF('[4]MONE(M)'!$AO283=\"\",\"\",'[4]MONE(M)'!$AO283)","v":127363.9832840014},{"$f":"IF('[5]MONE(M)'!$AO283=\"\",\"\",'[5]MONE(M)'!$AO283)","v":178852.90932677305},{"$f":"IF('[6]MONE(M)'!$AO283=\"\",\"\",'[6]MONE(M)'!$AO283)","v":62159.201039669999},{"$f":"IF('[7]MONE(M)'!$AO283=\"\",\"\",'[7]MONE(M)'!$AO283)","v":501876.99538866},{"$f":"IF('[8]MONE(M)'!$AO283=\"\",\"\",'[8]MONE(M)'!$AO283)","v":30342.233829719997},13.513257349732054,4.2968949259419853,38.730837846143771,17.602361812441501,27.270744586671157,5.8773749637774486,14.256218205175596,{"$f":"IF('[1]FISCAL(M)'!$K283=\"\",\"\",'[1]FISCAL(M)'!$K283)","v":-6659.4145116299314},{"$f":"+'[1]REAL(A)'!$AO$32","v":"n.d."},"n.d.",{"$f":"IF('[1]FISCAL(M)'!$L283=\"\",\"\",'[1]FISCAL(M)'!$L283)","v":-7163.3760436899329},{"$f":"+'[1]REAL(A)'!$AP$32","v":"n.d."},"n.d.",97700.03961970302,{"$f":"'[1]Gráfico REM'!BG277","v":18775.536041436208},{"$f":"'[1]Gráfico REM'!BH277","v":73513.267893280485},{"$f":"'[1]Gráfico REM'!BI277","v":5411.2356849863218},10.966574910604843,-5.9235879945033876,16.195312305291587,12.270194420817869,147692.08665784303,{"$f":"'[1]Gráfico REM'!BK277","v":20430.266150336207},{"$f":"'[1]Gráfico REM'!BL277","v":103855.50172300049},{"$f":"'[1]Gráfico REM'!BM277","v":23406.318784506326},10.979952338424281,-3.4812191689722383,15.622018000270121,5.9611074765828942]
[2012,"noviembre","2012-noviembre",{"$f":"IF('[1]REAL IPC(M)'!$AL284=\"\",\"\",+'[1]REAL IPC(M)'!$AL284)","v":4.1843300527229843},{"$f":"IF('[1]REAL IPC(M)'!$BE284=\"\",\"\",+'[1]REAL IPC(M)'!$BE284)","v":4.7820968760811766},{"$f":"IF('[1]REAL IPC(M)'!$AM284=\"\",\"\",+'[1]REAL IPC(M)'!$AM284)","v":3.6878255603767007},{"$f":"IF('[1]REAL IPC(M)'!$BI284=\"\",\"\",+'[1]REAL IPC(M)'!$BI284)","v":4.4163285092844839},{"$f":"IF('[1]REAL IMAE(M)'!BJ284=\"\",\"\",'[1]REAL IMAE(M)'!BJ284)","v":3.2451647688256369},{"$f":"IF('[1]REAL IMAE(M)'!BK284=\"\",\"\",'[1]REAL IMAE(M)'!BK284)","v":3.8721400155677932},{"$f":"IF('[1]REAL IMAE(M)'!BN284=\"\",\"\",'[1]REAL IMAE(M)'!BN284)","v":4.2077268438424076},{"$f":"IF('[1]REAL IMAE(M)'!BO284=\"\",\"\",'[1]REAL IMAE(M)'!BO284)","v":4.7149295607240127},{"$f":"IF('[1]EXT RIN(M)'!$K284=\"\",\"\",'[1]EXT RIN(M)'!$K284)","v":22954.47374048892},"",{"$f":"IF('[1]EXT RIN(M)'!$L284=\"\",\"\",'[1]EXT RIN(M)'!$L284)","v":25060.578619708918},"",{"$f":"IF('[1]MONE(M)CARD'!EG284=\"\",\"\",'[1]MONE(M)CARD'!EG284)","v":24321.419846823021},{"$f":"IF('[1]MONE(M)CARD'!EK284=\"\",\"\",'[1]MONE(M)CARD'!EK284)","v":40998.746934418115},{"$f":"IF('[1]MONE(M)CARD'!EP284=\"\",\"\",'[1]MONE(M)CARD'!EP284)","v":22939.941700677155},{"$f":"IF('[1]MONE(M)CARD'!ES284=\"\",\"\",'[1]MONE(M)CARD'!ES284)","v":5.9537426456378606},{"$f":"IF('[1]MONE(M)CARD'!EV284=\"\",\"\",'[1]MONE(M)CARD'!EV284)","v":8.3891839241765354},{"$f":"IF('[1]MONE(M)CARD'!EZ284=\"\",\"\",'[1]MONE(M)CARD'!EZ284)","v":8.2062264768487445},{"$f":"IF('[1]MONE(M)CAPARD'!FC284=\"\",\"\",'[1]MONE(M)CAPARD'!FC284)","v":31215.62755990302},{"$f":"IF('[1]MONE(M)CAPARD'!FG284=\"\",\"\",'[1]MONE(M)CAPARD'!FG284)","v":63319.471907898114},{"$f":"IF('[1]MONE(M)CAPARD'!FL284=\"\",\"\",'[1]MONE(M)CAPARD'!FL284)","v":22939.941700677155},{"$f":"IF('[1]MONE(M)CAPARD'!FO284=\"\",\"\",'[1]MONE(M)CAPARD'!FO284)","v":7.788929154679769},{"$f":"IF('[1]MONE(M)CAPARD'!FR284=\"\",\"\",'[1]MONE(M)CAPARD'!FR284)","v":9.5457297001931849},{"$f":"IF('[1]MONE(M)CAPARD'!FV284=\"\",\"\",'[1]MONE(M)CAPARD'!FV284)","v":9.1780693283419303},{"$f":"IF('[1]MONE(M)CARD'!FV284=\"\",\"\",'[1]MONE(M)CARD'!FV284)","v":991.57732870855534},{"$f":"IF('[1]MONE(M)CARD'!GD284=\"\",\"\",'[1]MONE(M)CARD'!GD284)","v":86.167145033183033},{"$f":"IF('[1]MONE(M)CARD'!GE284=\"\",\"\",'[1]MONE(M)CARD'!GE284)","v":6840.9924527009634},8.968097834318467,{"$f":"IF('[9]II.2.Balance OSD-Activos'!J142=\"\",\"\",'[9]II.2.Balance OSD-Activos'!J142)","v":170.73917146405631},{"$f":"IF('[9]II.2.Balance OSD-Activos'!N142=\"\",\"\",'[9]II.2.Balance OSD-Activos'!N142)","v":482.04155512686123},{"$f":"IF('[9]II.2.Balance OSD-Activos'!R142=\"\",\"\",'[9]II.2.Balance OSD-Activos'!R142)","v":33629.967309980355},{"$f":"IF('[9]II.2.Balance OSD-Activos'!S142=\"\",\"\",'[9]II.2.Balance OSD-Activos'!S142)","v":37065.410568742685},33800.706481444409,71348.158605313947,-0.18585055227108294,19.021156085890411,9.2256374317299041,19.137548039631881,12.20410083972725,15.311738463593748,-1.2426166609847513,{"$f":"IF('[1]MONE(M)CAPARD'!GS284=\"\",\"\",'[1]MONE(M)CAPARD'!GS284)","v":13390.933610708744},{"$f":"IF('[1]MONE(M)CARD'!HA284=\"\",\"\",'[1]MONE(M)CAPARD'!HA284)","v":7461.1297692909629},{"$f":"IF('[1]MONE(M)CAPARD'!HB284=\"\",\"\",'[1]MONE(M)CAPARD'!HB284)","v":5929.8038414177809},"n.d.",{"$f":"IF('[10]II.2.Balance OSD-Activos'!J142=\"\",\"\",'[10]II.2.Balance OSD-Activos'!J142)","v":976.76516917405615},{"$f":"IF('[10]II.2.Balance OSD-Activos'!N142=\"\",\"\",'[10]II.2.Balance OSD-Activos'!N142)","v":872.03403293686119},{"$f":"IF('[10]II.2.Balance OSD-Activos'!R142=\"\",\"\",'[10]II.2.Balance OSD-Activos'!R142)","v":50157.896723850354},{"$f":"IF('[10]II.2.Balance OSD-Activos'!S142=\"\",\"\",'[10]II.2.Balance OSD-Activos'!S142)","v":49643.846531022689},51134.661893024408,101650.54245698397,19.530158009617395,17.88906798359864,11.900815726376845,17.857556910415951,12.554711803950248,15.17047116111716,-0.71487951701063679,{"$f":"IF('[1]MONE(M)CAPARD'!AS284=\"\",\"\",'[1]MONE(M)CAPARD'!AS284)","v":5},{"$f":"IF('[1]MONE(M)CAPARD'!AT284=\"\",\"\",'[1]MONE(M)CAPARD'!AT284)","v":"n.a."},{"$f":"IF('[1]MONE(M)CAPARD'!AU284=\"\",\"\",'[1]MONE(M)CAPARD'!AU284)","v":5},{"$f":"IF('[1]MONE(M)CAPARD'!AV284=\"\",\"\",'[1]MONE(M)CAPARD'!AV284)","v":7},{"$f":"IF('[1]MONE(M)CAPARD'!AW284=\"\",\"\",'[1]MONE(M)CAPARD'!AW284)","v":"n.a."},{"$f":"IF('[1]MONE(M)CAPARD'!AX284=\"\",\"\",'[1]MONE(M)CAPARD'!AX284)","v":5},{"$f":"IF('[1]MONE(M)CAPARD'!AY284=\"\",\"\",'[1]MONE(M)CAPARD'!AY284)","v":"n.a."},{"$f":"IF('[1]FISCAL(M)'!$K284=\"\",\"\",'[1]FISCAL(M)'!$K284)","v":-7467.6333926239568},{"$f":"IF('[1]FISCAL(M)'!$L284=\"\",\"\",'[1]FISCAL(M)'!$L284)","v":-8344.7972158039556},{"$f":"IF('[1]FISCAL(M)'!$AY284=\"\",\"\",'[1]FISCAL(M)'!$AY284)","v":84524.385371784985},{"$f":"IF('[1]FISCAL(M)'!$BI284=\"\",\"\",'[1]FISCAL(M)'!$BI284)","v":43495.858787251134},{"$f":"IF('[1]FISCAL(M)'!$BS284=\"\",\"\",'[1]FISCAL(M)'!$BS284)","v":41028.526584533858},{"$f":"IF('[1]FISCAL(M)'!$AZ284=\"\",\"\",'[1]FISCAL(M)'!$AZ284)","v":98984.12258480498},{"$f":"IF('[1]FISCAL(M)'!$BJ284=\"\",\"\",'[1]FISCAL(M)'!$BJ284)","v":47155.294097051126},{"$f":"IF('[1]FISCAL(M)'!$BT284=\"\",\"\",'[1]FISCAL(M)'!$BT284)","v":51828.828487753861},{"$f":"IF('[2]MONE(M)'!$AO284=\"\",\"\",'[2]MONE(M)'!$AO284)","v":11782941.795400169},{"$f":"IF('[3]MONE(M)'!$AO284=\"\",\"\",'[3]MONE(M)'!$AO284)","v":9296.728040330001},{"$f":"IF('[4]MONE(M)'!$AO284=\"\",\"\",'[4]MONE(M)'!$AO284)","v":129533.56495994948},{"$f":"IF('[5]MONE(M)'!$AO284=\"\",\"\",'[5]MONE(M)'!$AO284)","v":182105.83214406844},{"$f":"IF('[6]MONE(M)'!$AO284=\"\",\"\",'[6]MONE(M)'!$AO284)","v":64092.04351090001},{"$f":"IF('[7]MONE(M)'!$AO284=\"\",\"\",'[7]MONE(M)'!$AO284)","v":512239.56744278001},{"$f":"IF('[8]MONE(M)'!$AO284=\"\",\"\",'[8]MONE(M)'!$AO284)","v":30717.344848149995},13.685649982366188,4.4200988006592778,37.898275065483247,17.171558684633293,25.636888853021354,5.9303229719078088,14.616660632069657,{"$f":"IF('[1]FISCAL(M)'!$K284=\"\",\"\",'[1]FISCAL(M)'!$K284)","v":-7467.6333926239568},{"$f":"+'[1]REAL(A)'!$AO$32","v":"n.d."},"n.d.",{"$f":"IF('[1]FISCAL(M)'!$L284=\"\",\"\",'[1]FISCAL(M)'!$L284)","v":-8344.7972158039556},{"$f":"+'[1]REAL(A)'!$AP$32","v":"n.d."},"n.d.",98405.601061964699,{"$f":"'[1]Gráfico REM'!BG278","v":18708.080180157736},{"$f":"'[1]Gráfico REM'!BH278","v":74225.586568644037},{"$f":"'[1]Gráfico REM'!BI278","v":5471.9343131629266},10.420984008136891,-5.1515277974193747,15.063920579647871,11.986149392621503,149346.1453078147,{"$f":"'[1]Gráfico REM'!BK278","v":20395.721416847737},{"$f":"'[1]Gráfico REM'!BL278","v":104942.93141679403},{"$f":"'[1]Gráfico REM'!BM278","v":24007.492474172926},11.010234213908475,-2.9653363550959155,14.932644336873491,8.1103750559313958]
[2012,"diciembre","2012-diciembre",{"$f":"IF('[1]REAL IPC(M)'!$AL285=\"\",\"\",+'[1]REAL IPC(M)'!$AL285)","v":4.3148238776319126},{"$f":"IF('[1]REAL IPC(M)'!$BE285=\"\",\"\",+'[1]REAL IPC(M)'!$BE285)","v":4.7277567363588568},{"$f":"IF('[1]REAL IPC(M)'!$AM285=\"\",\"\",+'[1]REAL IPC(M)'!$AM285)","v":3.8174675227881094},{"$f":"IF('[1]REAL IPC(M)'!$BI285=\"\",\"\",+'[1]REAL IPC(M)'!$BI285)","v":4.3786900789784644},{"$f":"IF('[1]REAL IMAE(M)'!BJ285=\"\",\"\",'[1]REAL IMAE(M)'!BJ285)","v":3.1540728176306931},{"$f":"IF('[1]REAL IMAE(M)'!BK285=\"\",\"\",'[1]REAL IMAE(M)'!BK285)","v":3.886305363364051},{"$f":"IF('[1]REAL IMAE(M)'!BN285=\"\",\"\",'[1]REAL IMAE(M)'!BN285)","v":4.2356811784701964},{"$f":"IF('[1]REAL IMAE(M)'!BO285=\"\",\"\",'[1]REAL IMAE(M)'!BO285)","v":4.7154970558411557},{"$f":"IF('[1]EXT RIN(M)'!$K285=\"\",\"\",'[1]EXT RIN(M)'!$K285)","v":24222.216760591709},24222.216760591709,{"$f":"IF('[1]EXT RIN(M)'!$L285=\"\",\"\",'[1]EXT RIN(M)'!$L285)","v":26640.773070751711},26640.773070751711,{"$f":"IF('[1]MONE(M)CARD'!EG285=\"\",\"\",'[1]MONE(M)CARD'!EG285)","v":25947.864539128721},{"$f":"IF('[1]MONE(M)CARD'!EK285=\"\",\"\",'[1]MONE(M)CARD'!EK285)","v":40881.095793992652},{"$f":"IF('[1]MONE(M)CARD'!EP285=\"\",\"\",'[1]MONE(M)CARD'!EP285)","v":22829.320543231806},{"$f":"IF('[1]MONE(M)CARD'!ES285=\"\",\"\",'[1]MONE(M)CARD'!ES285)","v":6.0109273847794409},{"$f":"IF('[1]MONE(M)CARD'!EV285=\"\",\"\",'[1]MONE(M)CARD'!EV285)","v":7.3684272815792928},{"$f":"IF('[1]MONE(M)CARD'!EZ285=\"\",\"\",'[1]MONE(M)CARD'!EZ285)","v":6.7395221002756411},{"$f":"IF('[1]MONE(M)CAPARD'!FC285=\"\",\"\",'[1]MONE(M)CAPARD'!FC285)","v":33017.10404165872},{"$f":"IF('[1]MONE(M)CAPARD'!FG285=\"\",\"\",'[1]MONE(M)CAPARD'!FG285)","v":63031.723678932656},{"$f":"IF('[1]MONE(M)CAPARD'!FL285=\"\",\"\",'[1]MONE(M)CAPARD'!FL285)","v":22829.320543231806},{"$f":"IF('[1]MONE(M)CAPARD'!FO285=\"\",\"\",'[1]MONE(M)CAPARD'!FO285)","v":7.5270163308797544},{"$f":"IF('[1]MONE(M)CAPARD'!FR285=\"\",\"\",'[1]MONE(M)CAPARD'!FR285)","v":8.5062525513678757},{"$f":"IF('[1]MONE(M)CAPARD'!FV285=\"\",\"\",'[1]MONE(M)CAPARD'!FV285)","v":7.8027374841989738},{"$f":"IF('[1]MONE(M)CARD'!FV285=\"\",\"\",'[1]MONE(M)CARD'!FV285)","v":788.87714469537786},{"$f":"IF('[1]MONE(M)CARD'!GD285=\"\",\"\",'[1]MONE(M)CARD'!GD285)","v":72.672526497949519},{"$f":"IF('[1]MONE(M)CARD'!GE285=\"\",\"\",'[1]MONE(M)CARD'!GE285)","v":6302.7802609678338},-7.0722732377717197,{"$f":"IF('[9]II.2.Balance OSD-Activos'!J143=\"\",\"\",'[9]II.2.Balance OSD-Activos'!J143)","v":175.21448136386198},{"$f":"IF('[9]II.2.Balance OSD-Activos'!N143=\"\",\"\",'[9]II.2.Balance OSD-Activos'!N143)","v":540.29311571850235},{"$f":"IF('[9]II.2.Balance OSD-Activos'!R143=\"\",\"\",'[9]II.2.Balance OSD-Activos'!R143)","v":34419.886492517566},{"$f":"IF('[9]II.2.Balance OSD-Activos'!S143=\"\",\"\",'[9]II.2.Balance OSD-Activos'!S143)","v":36884.939751213235},34595.100973881425,72020.333840813168,-0.1724731432417248,19.745170524417155,16.471243942889792,19.866914515932145,11.286390208803088,15.23502659023781,-7.6711873355938209E-2,{"$f":"IF('[1]MONE(M)CAPARD'!GS285=\"\",\"\",'[1]MONE(M)CAPARD'!GS285)","v":13511.298779874243},{"$f":"IF('[1]MONE(M)CARD'!HA285=\"\",\"\",'[1]MONE(M)CAPARD'!HA285)","v":6913.8551129778343},{"$f":"IF('[1]MONE(M)CAPARD'!HB285=\"\",\"\",'[1]MONE(M)CAPARD'!HB285)","v":6597.443666896409},"n.d.",{"$f":"IF('[10]II.2.Balance OSD-Activos'!J143=\"\",\"\",'[10]II.2.Balance OSD-Activos'!J143)","v":980.3696243538617},{"$f":"IF('[10]II.2.Balance OSD-Activos'!N143=\"\",\"\",'[10]II.2.Balance OSD-Activos'!N143)","v":917.23777068850211},{"$f":"IF('[10]II.2.Balance OSD-Activos'!R143=\"\",\"\",'[10]II.2.Balance OSD-Activos'!R143)","v":50610.337001087566},{"$f":"IF('[10]II.2.Balance OSD-Activos'!S143=\"\",\"\",'[10]II.2.Balance OSD-Activos'!S143)","v":49634.299979673233},51590.706625441431,102142.24437580316,21.621338620754017,18.876863477927898,12.858221690415439,18.824922791980757,11.767850961961512,15.259249884031467,8.8778722914307551E-2,{"$f":"IF('[1]MONE(M)CAPARD'!AS285=\"\",\"\",'[1]MONE(M)CAPARD'!AS285)","v":5},{"$f":"IF('[1]MONE(M)CAPARD'!AT285=\"\",\"\",'[1]MONE(M)CAPARD'!AT285)","v":"n.a."},{"$f":"IF('[1]MONE(M)CAPARD'!AU285=\"\",\"\",'[1]MONE(M)CAPARD'!AU285)","v":5},{"$f":"IF('[1]MONE(M)CAPARD'!AV285=\"\",\"\",'[1]MONE(M)CAPARD'!AV285)","v":7},{"$f":"IF('[1]MONE(M)CAPARD'!AW285=\"\",\"\",'[1]MONE(M)CAPARD'!AW285)","v":"n.a."},{"$f":"IF('[1]MONE(M)CAPARD'!AX285=\"\",\"\",'[1]MONE(M)CAPARD'!AX285)","v":5},{"$f":"IF('[1]MONE(M)CAPARD'!AY285=\"\",\"\",'[1]MONE(M)CAPARD'!AY285)","v":"n.a."},{"$f":"IF('[1]FISCAL(M)'!$K285=\"\",\"\",'[1]FISCAL(M)'!$K285)","v":-8713.1108502828938},{"$f":"IF('[1]FISCAL(M)'!$L285=\"\",\"\",'[1]FISCAL(M)'!$L285)","v":-9835.1177606528945},{"$f":"IF('[1]FISCAL(M)'!$AY285=\"\",\"\",'[1]FISCAL(M)'!$AY285)","v":86227.65701923368},{"$f":"IF('[1]FISCAL(M)'!$BI285=\"\",\"\",'[1]FISCAL(M)'!$BI285)","v":44463.072778737987},{"$f":"IF('[1]FISCAL(M)'!$BS285=\"\",\"\",'[1]FISCAL(M)'!$BS285)","v":41764.584240495693},{"$f":"IF('[1]FISCAL(M)'!$AZ285=\"\",\"\",'[1]FISCAL(M)'!$AZ285)","v":100428.62754171368},{"$f":"IF('[1]FISCAL(M)'!$BJ285=\"\",\"\",'[1]FISCAL(M)'!$BJ285)","v":47881.64210009799},{"$f":"IF('[1]FISCAL(M)'!$BT285=\"\",\"\",'[1]FISCAL(M)'!$BT285)","v":52546.985441615689},{"$f":"IF('[2]MONE(M)'!$AO285=\"\",\"\",'[2]MONE(M)'!$AO285)","v":11971531.492709562},{"$f":"IF('[3]MONE(M)'!$AO285=\"\",\"\",'[3]MONE(M)'!$AO285)","v":9356.0864576400018},{"$f":"IF('[4]MONE(M)'!$AO285=\"\",\"\",'[4]MONE(M)'!$AO285)","v":132826.68233067147},{"$f":"IF('[5]MONE(M)'!$AO285=\"\",\"\",'[5]MONE(M)'!$AO285)","v":184805.87526401476},{"$f":"IF('[6]MONE(M)'!$AO285=\"\",\"\",'[6]MONE(M)'!$AO285)","v":66318.660793639996},{"$f":"IF('[7]MONE(M)'!$AO285=\"\",\"\",'[7]MONE(M)'!$AO285)","v":517987.74201143003},{"$f":"IF('[8]MONE(M)'!$AO285=\"\",\"\",'[8]MONE(M)'!$AO285)","v":30558.021913370001},14.049232257194166,3.4139141305052245,41.109297639245867,16.879082829856749,26.286194155104383,5.8899808902095563,15.211570560887466,{"$f":"IF('[1]FISCAL(M)'!$K285=\"\",\"\",'[1]FISCAL(M)'!$K285)","v":-8713.1108502828938},{"$f":"+'[1]REAL(A)'!$AO$32","v":"n.d."},"n.d.",{"$f":"IF('[1]FISCAL(M)'!$L285=\"\",\"\",'[1]FISCAL(M)'!$L285)","v":-9835.1177606528945},{"$f":"+'[1]REAL(A)'!$AP$32","v":"n.d."},"n.d.",99186.235899546678,{"$f":"'[1]Gráfico REM'!BG279","v":18694.831402525298},{"$f":"'[1]Gráfico REM'!BH279","v":74881.372619498143},{"$f":"'[1]Gráfico REM'!BI279","v":5610.0318775232299},10.92736087605557,-5.2495216850824704,15.586978703596932,14.459635627020795,150763.96645555669,{"$f":"'[1]Gráfico REM'!BK279","v":20466.516845415299},{"$f":"'[1]Gráfico REM'!BL279","v":105439.39453286814},{"$f":"'[1]Gráfico REM'!BM279","v":24858.055077273231},11.733275338620764,-3.1372854864986421,15.47792789042064,10.501626202053149]
[2013,"enero","2013-enero",{"$f":"IF('[1]REAL IPC(M)'!$AL286=\"\",\"\",+'[1]REAL IPC(M)'!$AL286)","v":4.8982962322388524},{"$f":"IF('[1]REAL IPC(M)'!$BE286=\"\",\"\",+'[1]REAL IPC(M)'!$BE286)","v":4.6727713915053704},{"$f":"IF('[1]REAL IPC(M)'!$AM286=\"\",\"\",+'[1]REAL IPC(M)'!$AM286)","v":4.6295605856528477},{"$f":"IF('[1]REAL IPC(M)'!$BI286=\"\",\"\",+'[1]REAL IPC(M)'!$BI286)","v":4.3407624291387448},{"$f":"IF('[1]REAL IMAE(M)'!BJ286=\"\",\"\",'[1]REAL IMAE(M)'!BJ286)","v":2.8305390882087611},{"$f":"IF('[1]REAL IMAE(M)'!BK286=\"\",\"\",'[1]REAL IMAE(M)'!BK286)","v":3.9030471436763969},{"$f":"IF('[1]REAL IMAE(M)'!BN286=\"\",\"\",'[1]REAL IMAE(M)'!BN286)","v":4.0598143379890983},{"$f":"IF('[1]REAL IMAE(M)'!BO286=\"\",\"\",'[1]REAL IMAE(M)'!BO286)","v":4.7164005745851334},{"$f":"IF('[1]EXT RIN(M)'!$K286=\"\",\"\",'[1]EXT RIN(M)'!$K286)","v":23785.550960329252},"",{"$f":"IF('[1]EXT RIN(M)'!$L286=\"\",\"\",'[1]EXT RIN(M)'!$L286)","v":26376.386333479251},"",{"$f":"IF('[1]MONE(M)CARD'!EG286=\"\",\"\",'[1]MONE(M)CARD'!EG286)","v":25375.412573301044},{"$f":"IF('[1]MONE(M)CARD'!EK286=\"\",\"\",'[1]MONE(M)CARD'!EK286)","v":41473.702121849507},{"$f":"IF('[1]MONE(M)CARD'!EP286=\"\",\"\",'[1]MONE(M)CARD'!EP286)","v":23218.413544207317},{"$f":"IF('[1]MONE(M)CARD'!ES286=\"\",\"\",'[1]MONE(M)CARD'!ES286)","v":5.0504156366026232},{"$f":"IF('[1]MONE(M)CARD'!EV286=\"\",\"\",'[1]MONE(M)CARD'!EV286)","v":7.3066173461934003},{"$f":"IF('[1]MONE(M)CARD'!EZ286=\"\",\"\",'[1]MONE(M)CARD'!EZ286)","v":6.8875528181358669},{"$f":"IF('[1]MONE(M)CAPARD'!FC286=\"\",\"\",'[1]MONE(M)CAPARD'!FC286)","v":32273.301768631041},{"$f":"IF('[1]MONE(M)CAPARD'!FG286=\"\",\"\",'[1]MONE(M)CAPARD'!FG286)","v":63832.313545879493},{"$f":"IF('[1]MONE(M)CAPARD'!FL286=\"\",\"\",'[1]MONE(M)CAPARD'!FL286)","v":23218.413544207317},{"$f":"IF('[1]MONE(M)CAPARD'!FO286=\"\",\"\",'[1]MONE(M)CAPARD'!FO286)","v":6.6008378444062821},{"$f":"IF('[1]MONE(M)CAPARD'!FR286=\"\",\"\",'[1]MONE(M)CAPARD'!FR286)","v":8.5794208338995084},{"$f":"IF('[1]MONE(M)CAPARD'!FV286=\"\",\"\",'[1]MONE(M)CAPARD'!FV286)","v":8.0067199384148182},{"$f":"IF('[1]MONE(M)CARD'!FV286=\"\",\"\",'[1]MONE(M)CARD'!FV286)","v":1024.9679829169734},{"$f":"IF('[1]MONE(M)CARD'!GD286=\"\",\"\",'[1]MONE(M)CARD'!GD286)","v":72.601165038428064},{"$f":"IF('[1]MONE(M)CARD'!GE286=\"\",\"\",'[1]MONE(M)CARD'!GE286)","v":6820.1177680636038},7.5661424977531366,{"$f":"IF('[9]II.2.Balance OSD-Activos'!J144=\"\",\"\",'[9]II.2.Balance OSD-Activos'!J144)","v":176.9086413334511},{"$f":"IF('[9]II.2.Balance OSD-Activos'!N144=\"\",\"\",'[9]II.2.Balance OSD-Activos'!N144)","v":567.99533306791227},{"$f":"IF('[9]II.2.Balance OSD-Activos'!R144=\"\",\"\",'[9]II.2.Balance OSD-Activos'!R144)","v":34650.117697964743},{"$f":"IF('[9]II.2.Balance OSD-Activos'!S144=\"\",\"\",'[9]II.2.Balance OSD-Activos'!S144)","v":37155.884484233298},34827.026339298194,72550.906156599405,7.3431932705881442,20.328026837466684,35.241327177646767,20.402387167278647,11.146315917232608,15.539626166326803,0.30459957608899302,{"$f":"IF('[1]MONE(M)CAPARD'!GS286=\"\",\"\",'[1]MONE(M)CAPARD'!GS286)","v":13874.127764005949},{"$f":"IF('[1]MONE(M)CARD'!HA286=\"\",\"\",'[1]MONE(M)CAPARD'!HA286)","v":7420.1942889336042},{"$f":"IF('[1]MONE(M)CAPARD'!HB286=\"\",\"\",'[1]MONE(M)CAPARD'!HB286)","v":6453.9334750723447},"n.d.",{"$f":"IF('[10]II.2.Balance OSD-Activos'!J144=\"\",\"\",'[10]II.2.Balance OSD-Activos'!J144)","v":1085.7948584034509},{"$f":"IF('[10]II.2.Balance OSD-Activos'!N144=\"\",\"\",'[10]II.2.Balance OSD-Activos'!N144)","v":935.83018018791222},{"$f":"IF('[10]II.2.Balance OSD-Activos'!R144=\"\",\"\",'[10]II.2.Balance OSD-Activos'!R144)","v":50935.221783094734},{"$f":"IF('[10]II.2.Balance OSD-Activos'!S144=\"\",\"\",'[10]II.2.Balance OSD-Activos'!S144)","v":49995.643643313299},52021.016641498187,102952.4904649994,243.83745637364115,20.831983468806015,24.991471640522022,19.184160855489441,11.702864512399035,16.253282459937246,0.99403257590577887,{"$f":"IF('[1]MONE(M)CAPARD'!AS286=\"\",\"\",'[1]MONE(M)CAPARD'!AS286)","v":5},{"$f":"IF('[1]MONE(M)CAPARD'!AT286=\"\",\"\",'[1]MONE(M)CAPARD'!AT286)","v":"n.a."},{"$f":"IF('[1]MONE(M)CAPARD'!AU286=\"\",\"\",'[1]MONE(M)CAPARD'!AU286)","v":5},{"$f":"IF('[1]MONE(M)CAPARD'!AV286=\"\",\"\",'[1]MONE(M)CAPARD'!AV286)","v":7},{"$f":"IF('[1]MONE(M)CAPARD'!AW286=\"\",\"\",'[1]MONE(M)CAPARD'!AW286)","v":"n.a."},{"$f":"IF('[1]MONE(M)CAPARD'!AX286=\"\",\"\",'[1]MONE(M)CAPARD'!AX286)","v":5},{"$f":"IF('[1]MONE(M)CAPARD'!AY286=\"\",\"\",'[1]MONE(M)CAPARD'!AY286)","v":"n.a."},{"$f":"IF('[1]FISCAL(M)'!$K286=\"\",\"\",'[1]FISCAL(M)'!$K286)","v":-126.81766843519243},{"$f":"IF('[1]FISCAL(M)'!$L286=\"\",\"\",'[1]FISCAL(M)'!$L286)","v":-276.05164207519249},{"$f":"IF('[1]FISCAL(M)'!$AY286=\"\",\"\",'[1]FISCAL(M)'!$AY286)","v":87011.090822476384},{"$f":"IF('[1]FISCAL(M)'!$BI286=\"\",\"\",'[1]FISCAL(M)'!$BI286)","v":45363.885491360779},{"$f":"IF('[1]FISCAL(M)'!$BS286=\"\",\"\",'[1]FISCAL(M)'!$BS286)","v":41647.205331115598},{"$f":"IF('[1]FISCAL(M)'!$AZ286=\"\",\"\",'[1]FISCAL(M)'!$AZ286)","v":101167.25747964639},{"$f":"IF('[1]FISCAL(M)'!$BJ286=\"\",\"\",'[1]FISCAL(M)'!$BJ286)","v":48777.915491360778},{"$f":"IF('[1]FISCAL(M)'!$BT286=\"\",\"\",'[1]FISCAL(M)'!$BT286)","v":52389.341988285596},{"$f":"IF('[2]MONE(M)'!$AO286=\"\",\"\",'[2]MONE(M)'!$AO286)","v":12088018.892800894},{"$f":"IF('[3]MONE(M)'!$AO286=\"\",\"\",'[3]MONE(M)'!$AO286)","v":9383.904575110002},{"$f":"IF('[4]MONE(M)'!$AO286=\"\",\"\",'[4]MONE(M)'!$AO286)","v":132670.58000179299},{"$f":"IF('[5]MONE(M)'!$AO286=\"\",\"\",'[5]MONE(M)'!$AO286)","v":186311.15240360459},{"$f":"IF('[6]MONE(M)'!$AO286=\"\",\"\",'[6]MONE(M)'!$AO286)","v":67235.440435662706},{"$f":"IF('[7]MONE(M)'!$AO286=\"\",\"\",'[7]MONE(M)'!$AO286)","v":524643.84401137999},{"$f":"IF('[8]MONE(M)'!$AO286=\"\",\"\",'[8]MONE(M)'!$AO286)","v":30887.485873059995},14.398525332226786,3.8633469805749998,40.64299583443762,15.448290728615998,25.747361922451905,6.6944211394347031,19.130349014659508,{"$f":"IF('[1]FISCAL(M)'!$K286=\"\",\"\",'[1]FISCAL(M)'!$K286)","v":-126.81766843519243},{"$f":"+'[1]REAL(A)'!$AO$33","v":216939.65375965438},-5.8457578518905845E-2,{"$f":"IF('[1]FISCAL(M)'!$L286=\"\",\"\",'[1]FISCAL(M)'!$L286)","v":-276.05164207519249},{"$f":"+'[1]REAL(A)'!$AP$33","v":262539.64375965437},-0.10514665066275015,100889.71533114451,{"$f":"'[1]Gráfico REM'!BG280","v":19475.107049389942},{"$f":"'[1]Gráfico REM'!BH280","v":75658.07811391569},{"$f":"'[1]Gráfico REM'!BI280","v":5756.5301678388823},12.430351890180024,-0.22324136948728146,15.446618460630667,22.963308535388528,153549.75471575451,{"$f":"'[1]Gráfico REM'!BK280","v":21330.085199379944},{"$f":"'[1]Gráfico REM'!BL280","v":106545.56398697569},{"$f":"'[1]Gráfico REM'!BM280","v":25674.105529398879},13.916820461168378,1.9111087257317694,16.490868529494861,14.624526393935188]
[2013,"febrero","2013-febrero",{"$f":"IF('[1]REAL IPC(M)'!$AL287=\"\",\"\",+'[1]REAL IPC(M)'!$AL287)","v":5.1040726005475268},{"$f":"IF('[1]REAL IPC(M)'!$BE287=\"\",\"\",+'[1]REAL IPC(M)'!$BE287)","v":4.616959858857328},{"$f":"IF('[1]REAL IPC(M)'!$AM287=\"\",\"\",+'[1]REAL IPC(M)'!$AM287)","v":4.819117064765055},{"$f":"IF('[1]REAL IPC(M)'!$BI287=\"\",\"\",+'[1]REAL IPC(M)'!$BI287)","v":4.3022302442830895},{"$f":"IF('[1]REAL IMAE(M)'!BJ287=\"\",\"\",'[1]REAL IMAE(M)'!BJ287)","v":2.5037115502725138},{"$f":"IF('[1]REAL IMAE(M)'!BK287=\"\",\"\",'[1]REAL IMAE(M)'!BK287)","v":3.9225188987292769},{"$f":"IF('[1]REAL IMAE(M)'!BN287=\"\",\"\",'[1]REAL IMAE(M)'!BN287)","v":3.9484963898821945},{"$f":"IF('[1]REAL IMAE(M)'!BO287=\"\",\"\",'[1]REAL IMAE(M)'!BO287)","v":4.7177779527452612},{"$f":"IF('[1]EXT RIN(M)'!$K287=\"\",\"\",'[1]EXT RIN(M)'!$K287)","v":24364.237688892488},"",{"$f":"IF('[1]EXT RIN(M)'!$L287=\"\",\"\",'[1]EXT RIN(M)'!$L287)","v":26922.061170992489},"",{"$f":"IF('[1]MONE(M)CARD'!EG287=\"\",\"\",'[1]MONE(M)CARD'!EG287)","v":25236.747580552845},{"$f":"IF('[1]MONE(M)CARD'!EK287=\"\",\"\",'[1]MONE(M)CARD'!EK287)","v":41868.699694367773},{"$f":"IF('[1]MONE(M)CARD'!EP287=\"\",\"\",'[1]MONE(M)CARD'!EP287)","v":22957.255350601088},{"$f":"IF('[1]MONE(M)CARD'!ES287=\"\",\"\",'[1]MONE(M)CARD'!ES287)","v":4.3822788336606244},{"$f":"IF('[1]MONE(M)CARD'!EV287=\"\",\"\",'[1]MONE(M)CARD'!EV287)","v":6.7074688634608304},{"$f":"IF('[1]MONE(M)CARD'!EZ287=\"\",\"\",'[1]MONE(M)CARD'!EZ287)","v":6.1995575100689537},{"$f":"IF('[1]MONE(M)CAPARD'!FC287=\"\",\"\",'[1]MONE(M)CAPARD'!FC287)","v":32212.245797282842},{"$f":"IF('[1]MONE(M)CAPARD'!FG287=\"\",\"\",'[1]MONE(M)CAPARD'!FG287)","v":64244.757315007766},{"$f":"IF('[1]MONE(M)CAPARD'!FL287=\"\",\"\",'[1]MONE(M)CAPARD'!FL287)","v":22957.255350601088},{"$f":"IF('[1]MONE(M)CAPARD'!FO287=\"\",\"\",'[1]MONE(M)CAPARD'!FO287)","v":5.8166312580944179},{"$f":"IF('[1]MONE(M)CAPARD'!FR287=\"\",\"\",'[1]MONE(M)CAPARD'!FR287)","v":7.6635985591142264},{"$f":"IF('[1]MONE(M)CAPARD'!FV287=\"\",\"\",'[1]MONE(M)CAPARD'!FV287)","v":7.0893862464993518},{"$f":"IF('[1]MONE(M)CARD'!FV287=\"\",\"\",'[1]MONE(M)CARD'!FV287)","v":1076.5820385780385},{"$f":"IF('[1]MONE(M)CARD'!GD287=\"\",\"\",'[1]MONE(M)CARD'!GD287)","v":85.39159218151471},{"$f":"IF('[1]MONE(M)CARD'!GE287=\"\",\"\",'[1]MONE(M)CARD'!GE287)","v":6803.9779056401276},0.23458986690669814,{"$f":"IF('[9]II.2.Balance OSD-Activos'!J145=\"\",\"\",'[9]II.2.Balance OSD-Activos'!J145)","v":176.21764982904307},{"$f":"IF('[9]II.2.Balance OSD-Activos'!N145=\"\",\"\",'[9]II.2.Balance OSD-Activos'!N145)","v":542.36376702150244},{"$f":"IF('[9]II.2.Balance OSD-Activos'!R145=\"\",\"\",'[9]II.2.Balance OSD-Activos'!R145)","v":34623.286424175159},{"$f":"IF('[9]II.2.Balance OSD-Activos'!S145=\"\",\"\",'[9]II.2.Balance OSD-Activos'!S145)","v":37368.323623878678},34799.504074004202,72710.191464904376,8.9787547191444439,18.829055545560337,27.286226068612308,18.883745964525822,11.057790041604232,14.758902891628956,-0.78072327469784675,{"$f":"IF('[1]MONE(M)CAPARD'!GS287=\"\",\"\",'[1]MONE(M)CAPARD'!GS287)","v":14415.328122576857},{"$f":"IF('[1]MONE(M)CARD'!HA287=\"\",\"\",'[1]MONE(M)CAPARD'!HA287)","v":7409.0336583501276},{"$f":"IF('[1]MONE(M)CAPARD'!HB287=\"\",\"\",'[1]MONE(M)CAPARD'!HB287)","v":7006.2944642267294},"n.d.",{"$f":"IF('[10]II.2.Balance OSD-Activos'!J145=\"\",\"\",'[10]II.2.Balance OSD-Activos'!J145)","v":1097.191236049043},{"$f":"IF('[10]II.2.Balance OSD-Activos'!N145=\"\",\"\",'[10]II.2.Balance OSD-Activos'!N145)","v":935.80982762150234},{"$f":"IF('[10]II.2.Balance OSD-Activos'!R145=\"\",\"\",'[10]II.2.Balance OSD-Activos'!R145)","v":50986.266166495159},{"$f":"IF('[10]II.2.Balance OSD-Activos'!S145=\"\",\"\",'[10]II.2.Balance OSD-Activos'!S145)","v":50289.414798338672},52083.457402544205,103308.68202850438,248.50901201991951,19.939310688791156,20.576603533666994,18.270109186914496,11.595700007797284,15.732714777612644,-0.52056768232460193,{"$f":"IF('[1]MONE(M)CAPARD'!AS287=\"\",\"\",'[1]MONE(M)CAPARD'!AS287)","v":5},{"$f":"IF('[1]MONE(M)CAPARD'!AT287=\"\",\"\",'[1]MONE(M)CAPARD'!AT287)","v":"n.a."},{"$f":"IF('[1]MONE(M)CAPARD'!AU287=\"\",\"\",'[1]MONE(M)CAPARD'!AU287)","v":5},{"$f":"IF('[1]MONE(M)CAPARD'!AV287=\"\",\"\",'[1]MONE(M)CAPARD'!AV287)","v":7},{"$f":"IF('[1]MONE(M)CAPARD'!AW287=\"\",\"\",'[1]MONE(M)CAPARD'!AW287)","v":"n.a."},{"$f":"IF('[1]MONE(M)CAPARD'!AX287=\"\",\"\",'[1]MONE(M)CAPARD'!AX287)","v":5},{"$f":"IF('[1]MONE(M)CAPARD'!AY287=\"\",\"\",'[1]MONE(M)CAPARD'!AY287)","v":"n.a."},{"$f":"IF('[1]FISCAL(M)'!$K287=\"\",\"\",'[1]FISCAL(M)'!$K287)","v":-613.98467805339226},{"$f":"IF('[1]FISCAL(M)'!$L287=\"\",\"\",'[1]FISCAL(M)'!$L287)","v":-1556.2358928533927},{"$f":"IF('[1]FISCAL(M)'!$AY287=\"\",\"\",'[1]FISCAL(M)'!$AY287)","v":87876.196818816024},{"$f":"IF('[1]FISCAL(M)'!$BI287=\"\",\"\",'[1]FISCAL(M)'!$BI287)","v":45643.422714767607},{"$f":"IF('[1]FISCAL(M)'!$BS287=\"\",\"\",'[1]FISCAL(M)'!$BS287)","v":42232.774104048411},{"$f":"IF('[1]FISCAL(M)'!$AZ287=\"\",\"\",'[1]FISCAL(M)'!$AZ287)","v":102135.91048405602},{"$f":"IF('[1]FISCAL(M)'!$BJ287=\"\",\"\",'[1]FISCAL(M)'!$BJ287)","v":49169.118615517611},{"$f":"IF('[1]FISCAL(M)'!$BT287=\"\",\"\",'[1]FISCAL(M)'!$BT287)","v":52966.791868538407},{"$f":"IF('[2]MONE(M)'!$AO287=\"\",\"\",'[2]MONE(M)'!$AO287)","v":12191646.071683703},{"$f":"IF('[3]MONE(M)'!$AO287=\"\",\"\",'[3]MONE(M)'!$AO287)","v":9418.0237754401187},{"$f":"IF('[4]MONE(M)'!$AO287=\"\",\"\",'[4]MONE(M)'!$AO287)","v":133399.00141158546},{"$f":"IF('[5]MONE(M)'!$AO287=\"\",\"\",'[5]MONE(M)'!$AO287)","v":187241.11552109686},{"$f":"IF('[6]MONE(M)'!$AO287=\"\",\"\",'[6]MONE(M)'!$AO287)","v":67397.05495907327},{"$f":"IF('[7]MONE(M)'!$AO287=\"\",\"\",'[7]MONE(M)'!$AO287)","v":526596.78524873999},{"$f":"IF('[8]MONE(M)'!$AO287=\"\",\"\",'[8]MONE(M)'!$AO287)","v":31056.740394319993},12.952589264620773,5.6724203638708115,37.611295613252253,14.870383243426044,23.811493728583777,7.0563942613386388,19.166181768040214,{"$f":"IF('[1]FISCAL(M)'!$K287=\"\",\"\",'[1]FISCAL(M)'!$K287)","v":-613.98467805339226},{"$f":"+'[1]REAL(A)'!$AO$33","v":216939.65375965438},-0.28302095417448242,{"$f":"IF('[1]FISCAL(M)'!$L287=\"\",\"\",'[1]FISCAL(M)'!$L287)","v":-1556.2358928533927},{"$f":"+'[1]REAL(A)'!$AP$33","v":262539.64375965437},-0.59276224747149842,102122.53702550213,{"$f":"'[1]Gráfico REM'!BG281","v":20294.711008531704},{"$f":"'[1]Gráfico REM'!BH281","v":76006.034020023522},{"$f":"'[1]Gráfico REM'!BI281","v":5821.7919969469094},11.531723652192527,-0.48716093852083642,14.872517196603653,16.341512506764921,156407.80787596211,{"$f":"'[1]Gráfico REM'!BK281","v":22217.848795921702},{"$f":"'[1]Gráfico REM'!BL281","v":107062.77441434351},{"$f":"'[1]Gráfico REM'!BM281","v":27127.184665696906},14.59154388535171,2.1085723557085378,16.085826888929255,20.536989122137861]
[2013,"marzo","2013-marzo",{"$f":"IF('[1]REAL IPC(M)'!$AL288=\"\",\"\",+'[1]REAL IPC(M)'!$AL288)","v":5.1130674611625127},{"$f":"IF('[1]REAL IPC(M)'!$BE288=\"\",\"\",+'[1]REAL IPC(M)'!$BE288)","v":4.5601538732250591},{"$f":"IF('[1]REAL IPC(M)'!$AM288=\"\",\"\",+'[1]REAL IPC(M)'!$AM288)","v":4.8040179761265955},{"$f":"IF('[1]REAL IPC(M)'!$BI288=\"\",\"\",+'[1]REAL IPC(M)'!$BI288)","v":4.2627953279546382},{"$f":"IF('[1]REAL IMAE(M)'!BJ288=\"\",\"\",'[1]REAL IMAE(M)'!BJ288)","v":2.4054693558178908},{"$f":"IF('[1]REAL IMAE(M)'!BK288=\"\",\"\",'[1]REAL IMAE(M)'!BK288)","v":3.9448068836153372},{"$f":"IF('[1]REAL IMAE(M)'!BN288=\"\",\"\",'[1]REAL IMAE(M)'!BN288)","v":4.1486228327196173},{"$f":"IF('[1]REAL IMAE(M)'!BO288=\"\",\"\",'[1]REAL IMAE(M)'!BO288)","v":4.7197195786271129},{"$f":"IF('[1]EXT RIN(M)'!$K288=\"\",\"\",'[1]EXT RIN(M)'!$K288)","v":25494.450753308549},"",{"$f":"IF('[1]EXT RIN(M)'!$L288=\"\",\"\",'[1]EXT RIN(M)'!$L288)","v":27592.216851428548},"",{"$f":"IF('[1]MONE(M)CARD'!EG288=\"\",\"\",'[1]MONE(M)CARD'!EG288)","v":26002.426009283328},{"$f":"IF('[1]MONE(M)CARD'!EK288=\"\",\"\",'[1]MONE(M)CARD'!EK288)","v":41860.350752931801},{"$f":"IF('[1]MONE(M)CARD'!EP288=\"\",\"\",'[1]MONE(M)CARD'!EP288)","v":23429.806526054424},{"$f":"IF('[1]MONE(M)CARD'!ES288=\"\",\"\",'[1]MONE(M)CARD'!ES288)","v":7.6035956406867333},{"$f":"IF('[1]MONE(M)CARD'!EV288=\"\",\"\",'[1]MONE(M)CARD'!EV288)","v":6.5111193435160919},{"$f":"IF('[1]MONE(M)CARD'!EZ288=\"\",\"\",'[1]MONE(M)CARD'!EZ288)","v":5.9562621473736144},{"$f":"IF('[1]MONE(M)CAPARD'!FC288=\"\",\"\",'[1]MONE(M)CAPARD'!FC288)","v":32909.277574213331},{"$f":"IF('[1]MONE(M)CAPARD'!FG288=\"\",\"\",'[1]MONE(M)CAPARD'!FG288)","v":64414.868538151808},{"$f":"IF('[1]MONE(M)CAPARD'!FL288=\"\",\"\",'[1]MONE(M)CAPARD'!FL288)","v":23429.806526054424},{"$f":"IF('[1]MONE(M)CAPARD'!FO288=\"\",\"\",'[1]MONE(M)CAPARD'!FO288)","v":7.6793548135994039},{"$f":"IF('[1]MONE(M)CAPARD'!FR288=\"\",\"\",'[1]MONE(M)CAPARD'!FR288)","v":7.3038495872069564},{"$f":"IF('[1]MONE(M)CAPARD'!FV288=\"\",\"\",'[1]MONE(M)CAPARD'!FV288)","v":6.7240607543924025},{"$f":"IF('[1]MONE(M)CARD'!FV288=\"\",\"\",'[1]MONE(M)CARD'!FV288)","v":1090.6882123147072},{"$f":"IF('[1]MONE(M)CARD'!GD288=\"\",\"\",'[1]MONE(M)CARD'!GD288)","v":102.32412269004716},{"$f":"IF('[1]MONE(M)CARD'!GE288=\"\",\"\",'[1]MONE(M)CARD'!GE288)","v":7325.6497104835189},12.346369898702392,{"$f":"IF('[9]II.2.Balance OSD-Activos'!J146=\"\",\"\",'[9]II.2.Balance OSD-Activos'!J146)","v":183.48045978401706},{"$f":"IF('[9]II.2.Balance OSD-Activos'!N146=\"\",\"\",'[9]II.2.Balance OSD-Activos'!N146)","v":560.86749029311841},{"$f":"IF('[9]II.2.Balance OSD-Activos'!R146=\"\",\"\",'[9]II.2.Balance OSD-Activos'!R146)","v":34781.084080824839},{"$f":"IF('[9]II.2.Balance OSD-Activos'!S146=\"\",\"\",'[9]II.2.Balance OSD-Activos'!S146)","v":37707.959696686543},34964.564540608859,73233.391727588518,11.965782255811996,17.754266534410323,30.543609784985758,17.786389923351443,11.032693334041909,14.277909960392021,-0.48099293123693521,{"$f":"IF('[1]MONE(M)CAPARD'!GS288=\"\",\"\",'[1]MONE(M)CAPARD'!GS288)","v":14280.870671398094},{"$f":"IF('[1]MONE(M)CARD'!HA288=\"\",\"\",'[1]MONE(M)CAPARD'!HA288)","v":7959.7872774235184},{"$f":"IF('[1]MONE(M)CAPARD'!HB288=\"\",\"\",'[1]MONE(M)CAPARD'!HB288)","v":6321.0833939745753},"n.d.",{"$f":"IF('[10]II.2.Balance OSD-Activos'!J146=\"\",\"\",'[10]II.2.Balance OSD-Activos'!J146)","v":1114.5909880340173},{"$f":"IF('[10]II.2.Balance OSD-Activos'!N146=\"\",\"\",'[10]II.2.Balance OSD-Activos'!N146)","v":964.06898406311859},{"$f":"IF('[10]II.2.Balance OSD-Activos'!R146=\"\",\"\",'[10]II.2.Balance OSD-Activos'!R146)","v":51332.067382934853},{"$f":"IF('[10]II.2.Balance OSD-Activos'!S146=\"\",\"\",'[10]II.2.Balance OSD-Activos'!S146)","v":50744.522955116539},52446.658370968871,104155.25031014852,250.97428760263963,19.271403481107939,23.084366476221451,17.585867462419014,11.581086757198555,15.428579618158288,-0.30413515945435599,{"$f":"IF('[1]MONE(M)CAPARD'!AS288=\"\",\"\",'[1]MONE(M)CAPARD'!AS288)","v":5},{"$f":"IF('[1]MONE(M)CAPARD'!AT288=\"\",\"\",'[1]MONE(M)CAPARD'!AT288)","v":"n.a."},{"$f":"IF('[1]MONE(M)CAPARD'!AU288=\"\",\"\",'[1]MONE(M)CAPARD'!AU288)","v":5},{"$f":"IF('[1]MONE(M)CAPARD'!AV288=\"\",\"\",'[1]MONE(M)CAPARD'!AV288)","v":7},{"$f":"IF('[1]MONE(M)CAPARD'!AW288=\"\",\"\",'[1]MONE(M)CAPARD'!AW288)","v":"n.a."},{"$f":"IF('[1]MONE(M)CAPARD'!AX288=\"\",\"\",'[1]MONE(M)CAPARD'!AX288)","v":5},{"$f":"IF('[1]MONE(M)CAPARD'!AY288=\"\",\"\",'[1]MONE(M)CAPARD'!AY288)","v":"n.a."},{"$f":"IF('[1]FISCAL(M)'!$K288=\"\",\"\",'[1]FISCAL(M)'!$K288)","v":-860.61986320000847},{"$f":"IF('[1]FISCAL(M)'!$L288=\"\",\"\",'[1]FISCAL(M)'!$L288)","v":-1973.7720254800086},{"$f":"IF('[1]FISCAL(M)'!$AY288=\"\",\"\",'[1]FISCAL(M)'!$AY288)","v":89290.571698866494},{"$f":"IF('[1]FISCAL(M)'!$BI288=\"\",\"\",'[1]FISCAL(M)'!$BI288)","v":46444.969132132384},{"$f":"IF('[1]FISCAL(M)'!$BS288=\"\",\"\",'[1]FISCAL(M)'!$BS288)","v":42845.602566734116},{"$f":"IF('[1]FISCAL(M)'!$AZ288=\"\",\"\",'[1]FISCAL(M)'!$AZ288)","v":104335.9258594865},{"$f":"IF('[1]FISCAL(M)'!$BJ288=\"\",\"\",'[1]FISCAL(M)'!$BJ288)","v":50469.601310762388},{"$f":"IF('[1]FISCAL(M)'!$BT288=\"\",\"\",'[1]FISCAL(M)'!$BT288)","v":53866.324548724107},{"$f":"IF('[2]MONE(M)'!$AO288=\"\",\"\",'[2]MONE(M)'!$AO288)","v":12222754.416069426},{"$f":"IF('[3]MONE(M)'!$AO288=\"\",\"\",'[3]MONE(M)'!$AO288)","v":9454.8471850001206},{"$f":"IF('[4]MONE(M)'!$AO288=\"\",\"\",'[4]MONE(M)'!$AO288)","v":133989.19945254573},{"$f":"IF('[5]MONE(M)'!$AO288=\"\",\"\",'[5]MONE(M)'!$AO288)","v":189275.71298370665},{"$f":"IF('[6]MONE(M)'!$AO288=\"\",\"\",'[6]MONE(M)'!$AO288)","v":69031.301759118593},{"$f":"IF('[7]MONE(M)'!$AO288=\"\",\"\",'[7]MONE(M)'!$AO288)","v":527028.73258966999},{"$f":"IF('[8]MONE(M)'!$AO288=\"\",\"\",'[8]MONE(M)'!$AO288)","v":31378.984328330011},12.605328866407461,6.0890309776690854,35.670934207936014,14.789850088540767,27.521735274220195,7.1208658884623466,19.592131336681362,{"$f":"IF('[1]FISCAL(M)'!$K288=\"\",\"\",'[1]FISCAL(M)'!$K288)","v":-860.61986320000847},{"$f":"+'[1]REAL(A)'!$AO$33","v":216939.65375965438},-0.39670933749782877,{"$f":"IF('[1]FISCAL(M)'!$L288=\"\",\"\",'[1]FISCAL(M)'!$L288)","v":-1973.7720254800086},{"$f":"+'[1]REAL(A)'!$AP$33","v":262539.64375965437},-0.75179961289462482,102947.10278296765,{"$f":"'[1]Gráfico REM'!BG282","v":20605.300493126761},{"$f":"'[1]Gráfico REM'!BH282","v":76543.451560908143},{"$f":"'[1]Gráfico REM'!BI282","v":5798.3507289327345},11.045486601419441,-0.49547207291009698,14.515533258399227,12.411732143218845,158023.52469771766,{"$f":"'[1]Gráfico REM'!BK282","v":22329.55801796676},{"$f":"'[1]Gráfico REM'!BL282","v":107922.43588923816},{"$f":"'[1]Gráfico REM'!BM282","v":27771.530790512737},14.189437986061538,1.9530239222085299,15.946584811874898,18.651788411729918]
[2013,"abril","2013-abril",{"$f":"IF('[1]REAL IPC(M)'!$AL289=\"\",\"\",+'[1]REAL IPC(M)'!$AL289)","v":4.8728721262922159},{"$f":"IF('[1]REAL IPC(M)'!$BE289=\"\",\"\",+'[1]REAL IPC(M)'!$BE289)","v":4.5022179929298467},{"$f":"IF('[1]REAL IPC(M)'!$AM289=\"\",\"\",+'[1]REAL IPC(M)'!$AM289)","v":4.5572592591248684},{"$f":"IF('[1]REAL IPC(M)'!$BI289=\"\",\"\",+'[1]REAL IPC(M)'!$BI289)","v":4.2222002213462062},{"$f":"IF('[1]REAL IMAE(M)'!BJ289=\"\",\"\",'[1]REAL IMAE(M)'!BJ289)","v":2.5062953602543736},{"$f":"IF('[1]REAL IMAE(M)'!BK289=\"\",\"\",'[1]REAL IMAE(M)'!BK289)","v":3.9699098862185922},{"$f":"IF('[1]REAL IMAE(M)'!BN289=\"\",\"\",'[1]REAL IMAE(M)'!BN289)","v":4.369847988549691},{"$f":"IF('[1]REAL IMAE(M)'!BO289=\"\",\"\",'[1]REAL IMAE(M)'!BO289)","v":4.7222614180869149},{"$f":"IF('[1]EXT RIN(M)'!$K289=\"\",\"\",'[1]EXT RIN(M)'!$K289)","v":27059.54053773659},"",{"$f":"IF('[1]EXT RIN(M)'!$L289=\"\",\"\",'[1]EXT RIN(M)'!$L289)","v":29922.541141676589},"",{"$f":"IF('[1]MONE(M)CARD'!EG289=\"\",\"\",'[1]MONE(M)CARD'!EG289)","v":25104.748173744923},{"$f":"IF('[1]MONE(M)CARD'!EK289=\"\",\"\",'[1]MONE(M)CARD'!EK289)","v":42419.954581342376},{"$f":"IF('[1]MONE(M)CARD'!EP289=\"\",\"\",'[1]MONE(M)CARD'!EP289)","v":24190.524420383794},{"$f":"IF('[1]MONE(M)CARD'!ES289=\"\",\"\",'[1]MONE(M)CARD'!ES289)","v":4.7009928340275398},{"$f":"IF('[1]MONE(M)CARD'!EV289=\"\",\"\",'[1]MONE(M)CARD'!EV289)","v":5.976152517499389},{"$f":"IF('[1]MONE(M)CARD'!EZ289=\"\",\"\",'[1]MONE(M)CARD'!EZ289)","v":6.6438813234118044},{"$f":"IF('[1]MONE(M)CAPARD'!FC289=\"\",\"\",'[1]MONE(M)CAPARD'!FC289)","v":32328.779157594923},{"$f":"IF('[1]MONE(M)CAPARD'!FG289=\"\",\"\",'[1]MONE(M)CAPARD'!FG289)","v":65066.05196537239},{"$f":"IF('[1]MONE(M)CAPARD'!FL289=\"\",\"\",'[1]MONE(M)CAPARD'!FL289)","v":24190.524420383794},{"$f":"IF('[1]MONE(M)CAPARD'!FO289=\"\",\"\",'[1]MONE(M)CAPARD'!FO289)","v":6.4478325773503542},{"$f":"IF('[1]MONE(M)CAPARD'!FR289=\"\",\"\",'[1]MONE(M)CAPARD'!FR289)","v":7.1539008219178468},{"$f":"IF('[1]MONE(M)CAPARD'!FV289=\"\",\"\",'[1]MONE(M)CAPARD'!FV289)","v":7.4293990911850294},{"$f":"IF('[1]MONE(M)CARD'!FV289=\"\",\"\",'[1]MONE(M)CARD'!FV289)","v":1338.5706092840335},{"$f":"IF('[1]MONE(M)CARD'!GD289=\"\",\"\",'[1]MONE(M)CARD'!GD289)","v":212.36085761077175},{"$f":"IF('[1]MONE(M)CARD'!GE289=\"\",\"\",'[1]MONE(M)CARD'!GE289)","v":8663.9924837861981},30.686013255594524,{"$f":"IF('[9]II.2.Balance OSD-Activos'!J147=\"\",\"\",'[9]II.2.Balance OSD-Activos'!J147)","v":171.45814874556402},{"$f":"IF('[9]II.2.Balance OSD-Activos'!N147=\"\",\"\",'[9]II.2.Balance OSD-Activos'!N147)","v":578.80454624600134},{"$f":"IF('[9]II.2.Balance OSD-Activos'!R147=\"\",\"\",'[9]II.2.Balance OSD-Activos'!R147)","v":34882.928634456941},{"$f":"IF('[9]II.2.Balance OSD-Activos'!S147=\"\",\"\",'[9]II.2.Balance OSD-Activos'!S147)","v":37990.860533158288},35054.386783202506,73624.051862606793,-5.0763437329693346,17.16054946648098,31.911613806338025,17.295609420975101,10.795679255547608,{"$f":"IF(OR(AK282=\"\",AK270=\"\"),\"\",((AK282/AK270)-1)*100)","v":13.884752119388754},-0.39315784100326745,{"$f":"IF('[1]MONE(M)CAPARD'!GS289=\"\",\"\",'[1]MONE(M)CAPARD'!GS289)","v":14937.143271682371},{"$f":"IF('[1]MONE(M)CARD'!HA289=\"\",\"\",'[1]MONE(M)CAPARD'!HA289)","v":9309.5326824561962},{"$f":"IF('[1]MONE(M)CAPARD'!HB289=\"\",\"\",'[1]MONE(M)CAPARD'!HB289)","v":5627.6105892261749},"n.d.",{"$f":"IF('[10]II.2.Balance OSD-Activos'!J147=\"\",\"\",'[10]II.2.Balance OSD-Activos'!J147)","v":1100.7629975655641},{"$f":"IF('[10]II.2.Balance OSD-Activos'!N147=\"\",\"\",'[10]II.2.Balance OSD-Activos'!N147)","v":947.85417123600143},{"$f":"IF('[10]II.2.Balance OSD-Activos'!R147=\"\",\"\",'[10]II.2.Balance OSD-Activos'!R147)","v":51610.289755026941},{"$f":"IF('[10]II.2.Balance OSD-Activos'!S147=\"\",\"\",'[10]II.2.Balance OSD-Activos'!S147)","v":51271.266322668278},52711.052752592506,104930.17324649679,183.42285493498505,18.408625823504998,18.055729812206177,16.956288067784708,11.702794406743443,15.031262887342823,-0.39731673081546504,{"$f":"IF('[1]MONE(M)CAPARD'!AS289=\"\",\"\",'[1]MONE(M)CAPARD'!AS289)","v":5},{"$f":"IF('[1]MONE(M)CAPARD'!AT289=\"\",\"\",'[1]MONE(M)CAPARD'!AT289)","v":"n.a."},{"$f":"IF('[1]MONE(M)CAPARD'!AU289=\"\",\"\",'[1]MONE(M)CAPARD'!AU289)","v":5.25},{"$f":"IF('[1]MONE(M)CAPARD'!AV289=\"\",\"\",'[1]MONE(M)CAPARD'!AV289)","v":7},{"$f":"IF('[1]MONE(M)CAPARD'!AW289=\"\",\"\",'[1]MONE(M)CAPARD'!AW289)","v":"n.a."},{"$f":"IF('[1]MONE(M)CAPARD'!AX289=\"\",\"\",'[1]MONE(M)CAPARD'!AX289)","v":5},{"$f":"IF('[1]MONE(M)CAPARD'!AY289=\"\",\"\",'[1]MONE(M)CAPARD'!AY289)","v":"n.a."},{"$f":"IF('[1]FISCAL(M)'!$K289=\"\",\"\",'[1]FISCAL(M)'!$K289)","v":-735.98193019586006},{"$f":"IF('[1]FISCAL(M)'!$L289=\"\",\"\",'[1]FISCAL(M)'!$L289)","v":-1137.8400082358608},{"$f":"IF('[1]FISCAL(M)'!$AY289=\"\",\"\",'[1]FISCAL(M)'!$AY289)","v":92537.258722621889},{"$f":"IF('[1]FISCAL(M)'!$BI289=\"\",\"\",'[1]FISCAL(M)'!$BI289)","v":47568.702422621893},{"$f":"IF('[1]FISCAL(M)'!$BS289=\"\",\"\",'[1]FISCAL(M)'!$BS289)","v":44968.556299999997},{"$f":"IF('[1]FISCAL(M)'!$AZ289=\"\",\"\",'[1]FISCAL(M)'!$AZ289)","v":108055.6030066519},{"$f":"IF('[1]FISCAL(M)'!$BJ289=\"\",\"\",'[1]FISCAL(M)'!$BJ289)","v":51098.115111091902},{"$f":"IF('[1]FISCAL(M)'!$BT289=\"\",\"\",'[1]FISCAL(M)'!$BT289)","v":56957.48789556},{"$f":"IF('[2]MONE(M)'!$AO289=\"\",\"\",'[2]MONE(M)'!$AO289)","v":12322039.081105549},{"$f":"IF('[3]MONE(M)'!$AO289=\"\",\"\",'[3]MONE(M)'!$AO289)","v":9480.4829570101392},{"$f":"IF('[4]MONE(M)'!$AO289=\"\",\"\",'[4]MONE(M)'!$AO289)","v":135454.25352682572},{"$f":"IF('[5]MONE(M)'!$AO289=\"\",\"\",'[5]MONE(M)'!$AO289)","v":189944.42283914809},{"$f":"IF('[6]MONE(M)'!$AO289=\"\",\"\",'[6]MONE(M)'!$AO289)","v":69545.854347417218},{"$f":"IF('[7]MONE(M)'!$AO289=\"\",\"\",'[7]MONE(M)'!$AO289)","v":529715.02408700006},{"$f":"IF('[8]MONE(M)'!$AO289=\"\",\"\",'[8]MONE(M)'!$AO289)","v":31825.219003119993},12.822594625943996,5.2257461935270255,34.108020768899962,13.49322823449759,28.070876081166098,8.5420112477957666,18.851597996525136,{"$f":"IF('[1]FISCAL(M)'!$K289=\"\",\"\",'[1]FISCAL(M)'!$K289)","v":-735.98193019586006},{"$f":"+'[1]REAL(A)'!$AO$33","v":216939.65375965438},-0.33925652477128421,{"$f":"IF('[1]FISCAL(M)'!$L289=\"\",\"\",'[1]FISCAL(M)'!$L289)","v":-1137.8400082358608},{"$f":"+'[1]REAL(A)'!$AP$33","v":262539.64375965437},-0.43339740693695483,104160.36795913297,{"$f":"'[1]Gráfico REM'!BG283","v":21475.614201423105},{"$f":"'[1]Gráfico REM'!BH283","v":76977.760821046599},{"$f":"'[1]Gráfico REM'!BI283","v":5706.9929366632732},11.549386904957547,3.3254174658602809,14.233406144251347,9.6405758510118122,159532.46409945298,{"$f":"'[1]Gráfico REM'!BK283","v":23380.978803813105},{"$f":"'[1]Gráfico REM'!BL283","v":108802.9798241666},{"$f":"'[1]Gráfico REM'!BM283","v":27348.505471473276},14.811979125016549,5.6521662342007728,15.546679172583634,20.705276364563161]
[2013,"mayo ","2013-mayo ",{"$f":"IF('[1]REAL IPC(M)'!$AL290=\"\",\"\",+'[1]REAL IPC(M)'!$AL290)","v":4.8133304343762395},{"$f":"IF('[1]REAL IPC(M)'!$BE290=\"\",\"\",+'[1]REAL IPC(M)'!$BE290)","v":4.4430496549851206},{"$f":"IF('[1]REAL IPC(M)'!$AM290=\"\",\"\",+'[1]REAL IPC(M)'!$AM290)","v":4.5003490777780319},{"$f":"IF('[1]REAL IPC(M)'!$BI290=\"\",\"\",+'[1]REAL IPC(M)'!$BI290)","v":4.18022461155374},{"$f":"IF('[1]REAL IMAE(M)'!BJ290=\"\",\"\",'[1]REAL IMAE(M)'!BJ290)","v":2.7524389964544094},{"$f":"IF('[1]REAL IMAE(M)'!BK290=\"\",\"\",'[1]REAL IMAE(M)'!BK290)","v":3.9977328961480429},{"$f":"IF('[1]REAL IMAE(M)'!BN290=\"\",\"\",'[1]REAL IMAE(M)'!BN290)","v":4.2792214634826076},{"$f":"IF('[1]REAL IMAE(M)'!BO290=\"\",\"\",'[1]REAL IMAE(M)'!BO290)","v":4.7253993246633152},{"$f":"IF('[1]EXT RIN(M)'!$K290=\"\",\"\",'[1]EXT RIN(M)'!$K290)","v":26830.963498782785},"",{"$f":"IF('[1]EXT RIN(M)'!$L290=\"\",\"\",'[1]EXT RIN(M)'!$L290)","v":29601.338524922787},"",{"$f":"IF('[1]MONE(M)CARD'!EG290=\"\",\"\",'[1]MONE(M)CARD'!EG290)","v":25143.243656943643},{"$f":"IF('[1]MONE(M)CARD'!EK290=\"\",\"\",'[1]MONE(M)CARD'!EK290)","v":42883.789588525382},{"$f":"IF('[1]MONE(M)CARD'!EP290=\"\",\"\",'[1]MONE(M)CARD'!EP290)","v":24754.677922077957},{"$f":"IF('[1]MONE(M)CARD'!ES290=\"\",\"\",'[1]MONE(M)CARD'!ES290)","v":6.6855880610604324},{"$f":"IF('[1]MONE(M)CARD'!EV290=\"\",\"\",'[1]MONE(M)CARD'!EV290)","v":6.7348009951870402},{"$f":"IF('[1]MONE(M)CARD'!EZ290=\"\",\"\",'[1]MONE(M)CARD'!EZ290)","v":7.1857246266590513},{"$f":"IF('[1]MONE(M)CAPARD'!FC290=\"\",\"\",'[1]MONE(M)CAPARD'!FC290)","v":32228.642167873644},{"$f":"IF('[1]MONE(M)CAPARD'!FG290=\"\",\"\",'[1]MONE(M)CAPARD'!FG290)","v":65952.781467755383},{"$f":"IF('[1]MONE(M)CAPARD'!FL290=\"\",\"\",'[1]MONE(M)CAPARD'!FL290)","v":24754.677922077957},{"$f":"IF('[1]MONE(M)CAPARD'!FO290=\"\",\"\",'[1]MONE(M)CAPARD'!FO290)","v":7.6987131108632978},{"$f":"IF('[1]MONE(M)CAPARD'!FR290=\"\",\"\",'[1]MONE(M)CAPARD'!FR290)","v":7.8683571000444763},{"$f":"IF('[1]MONE(M)CAPARD'!FV290=\"\",\"\",'[1]MONE(M)CAPARD'!FV290)","v":7.983924835634526},{"$f":"IF('[1]MONE(M)CARD'!FV290=\"\",\"\",'[1]MONE(M)CARD'!FV290)","v":1274.6319880070753},{"$f":"IF('[1]MONE(M)CARD'!GD290=\"\",\"\",'[1]MONE(M)CARD'!GD290)","v":61.607343083946759},{"$f":"IF('[1]MONE(M)CARD'!GE290=\"\",\"\",'[1]MONE(M)CARD'!GE290)","v":8599.9649628778807},25.47567324667963,{"$f":"IF('[9]II.2.Balance OSD-Activos'!J148=\"\",\"\",'[9]II.2.Balance OSD-Activos'!J148)","v":173.35972422733136},{"$f":"IF('[9]II.2.Balance OSD-Activos'!N148=\"\",\"\",'[9]II.2.Balance OSD-Activos'!N148)","v":554.63510788943188},{"$f":"IF('[9]II.2.Balance OSD-Activos'!R148=\"\",\"\",'[9]II.2.Balance OSD-Activos'!R148)","v":35053.56707787027},{"$f":"IF('[9]II.2.Balance OSD-Activos'!S148=\"\",\"\",'[9]II.2.Balance OSD-Activos'!S148)","v":38322.555647616638},35226.926802097601,74104.117557603662,-0.2701611079162225,17.218506142004063,26.478264233731874,17.320252899174825,10.561980465754761,13.739509963897522,-0.14524215549123198,{"$f":"IF('[1]MONE(M)CAPARD'!GS290=\"\",\"\",'[1]MONE(M)CAPARD'!GS290)","v":15024.439856619625},{"$f":"IF('[1]MONE(M)CARD'!HA290=\"\",\"\",'[1]MONE(M)CAPARD'!HA290)","v":9247.79662085788},{"$f":"IF('[1]MONE(M)CAPARD'!HB290=\"\",\"\",'[1]MONE(M)CAPARD'!HB290)","v":5776.643235761745},"n.d.",{"$f":"IF('[10]II.2.Balance OSD-Activos'!J148=\"\",\"\",'[10]II.2.Balance OSD-Activos'!J148)","v":1100.1689046273314},{"$f":"IF('[10]II.2.Balance OSD-Activos'!N148=\"\",\"\",'[10]II.2.Balance OSD-Activos'!N148)","v":926.05622398943183},{"$f":"IF('[10]II.2.Balance OSD-Activos'!R148=\"\",\"\",'[10]II.2.Balance OSD-Activos'!R148)","v":51989.318279940271},{"$f":"IF('[10]II.2.Balance OSD-Activos'!S148=\"\",\"\",'[10]II.2.Balance OSD-Activos'!S148)","v":51765.500228366633},53089.487184567603,105781.04363692367,30.739951373619178,17.009606307766511,11.261175101004994,16.750143091385272,11.530066074918732,14.21197356464452,-0.81928932269830312,{"$f":"IF('[1]MONE(M)CAPARD'!AS290=\"\",\"\",'[1]MONE(M)CAPARD'!AS290)","v":5},{"$f":"IF('[1]MONE(M)CAPARD'!AT290=\"\",\"\",'[1]MONE(M)CAPARD'!AT290)","v":"n.a."},{"$f":"IF('[1]MONE(M)CAPARD'!AU290=\"\",\"\",'[1]MONE(M)CAPARD'!AU290)","v":5.25},{"$f":"IF('[1]MONE(M)CAPARD'!AV290=\"\",\"\",'[1]MONE(M)CAPARD'!AV290)","v":7},{"$f":"IF('[1]MONE(M)CAPARD'!AW290=\"\",\"\",'[1]MONE(M)CAPARD'!AW290)","v":"n.a."},{"$f":"IF('[1]MONE(M)CAPARD'!AX290=\"\",\"\",'[1]MONE(M)CAPARD'!AX290)","v":4.25},{"$f":"IF('[1]MONE(M)CAPARD'!AY290=\"\",\"\",'[1]MONE(M)CAPARD'!AY290)","v":"n.a."},{"$f":"IF('[1]FISCAL(M)'!$K290=\"\",\"\",'[1]FISCAL(M)'!$K290)","v":-1521.9682566883214},{"$f":"IF('[1]FISCAL(M)'!$L290=\"\",\"\",'[1]FISCAL(M)'!$L290)","v":-2236.7945645783216},{"$f":"IF('[1]FISCAL(M)'!$AY290=\"\",\"\",'[1]FISCAL(M)'!$AY290)","v":93516.200061006457},{"$f":"IF('[1]FISCAL(M)'!$BI290=\"\",\"\",'[1]FISCAL(M)'!$BI290)","v":47908.374619863382},{"$f":"IF('[1]FISCAL(M)'!$BS290=\"\",\"\",'[1]FISCAL(M)'!$BS290)","v":45607.825441143061},{"$f":"IF('[1]FISCAL(M)'!$AZ290=\"\",\"\",'[1]FISCAL(M)'!$AZ290)","v":108857.40065126646},{"$f":"IF('[1]FISCAL(M)'!$BJ290=\"\",\"\",'[1]FISCAL(M)'!$BJ290)","v":51289.949704953382},{"$f":"IF('[1]FISCAL(M)'!$BT290=\"\",\"\",'[1]FISCAL(M)'!$BT290)","v":57567.450946313067},{"$f":"IF('[2]MONE(M)'!$AO290=\"\",\"\",'[2]MONE(M)'!$AO290)","v":12527759.858086705},{"$f":"IF('[3]MONE(M)'!$AO290=\"\",\"\",'[3]MONE(M)'!$AO290)","v":9493.5477170401373},{"$f":"IF('[4]MONE(M)'!$AO290=\"\",\"\",'[4]MONE(M)'!$AO290)","v":136204.87675849444},{"$f":"IF('[5]MONE(M)'!$AO290=\"\",\"\",'[5]MONE(M)'!$AO290)","v":190896.91385244398},{"$f":"IF('[6]MONE(M)'!$AO290=\"\",\"\",'[6]MONE(M)'!$AO290)","v":70241.341703639599},{"$f":"IF('[7]MONE(M)'!$AO290=\"\",\"\",'[7]MONE(M)'!$AO290)","v":540791.83832665998},{"$f":"IF('[8]MONE(M)'!$AO290=\"\",\"\",'[8]MONE(M)'!$AO290)","v":32157.871341670005},{"$f":"IF(BY283=\"\",\"\",((BY283/BY271)-1)*100)","v":13.616453016724407},5.684515599356188,32.168513704561086,12.863888297372149,26.018404833293161,11.010717208040631,15.66496267460391,{"$f":"IF('[1]FISCAL(M)'!$K290=\"\",\"\",'[1]FISCAL(M)'!$K290)","v":-1521.9682566883214},{"$f":"+'[1]REAL(A)'!$AO$33","v":216939.65375965438},-0.70156296016517905,{"$f":"IF('[1]FISCAL(M)'!$L290=\"\",\"\",'[1]FISCAL(M)'!$L290)","v":-2236.7945645783216},{"$f":"+'[1]REAL(A)'!$AP$33","v":262539.64375965437},-0.8519835452454666,105346.50610139887,{"$f":"'[1]Gráfico REM'!BG284","v":21765.227915846077},{"$f":"'[1]Gráfico REM'!BH284","v":77731.593585603521},{"$f":"'[1]Gráfico REM'!BI284","v":5849.6845999492771},12.655486172663721,7.1233420646972023,14.390352020669939,11.608486982091026,160734.82150432889,{"$f":"'[1]Gráfico REM'!BK284","v":23619.407908106077},{"$f":"'[1]Gráfico REM'!BL284","v":109889.46492727353},{"$f":"'[1]Gráfico REM'!BM284","v":27225.948668949277},13.890631712669975,8.3685789259621437,14.760435026409491,15.462610998130222]
[2013,"junio ","2013-junio ",{"$f":"IF('[1]REAL IPC(M)'!$AL291=\"\",\"\",+'[1]REAL IPC(M)'!$AL291)","v":4.9409915329016174},{"$f":"IF('[1]REAL IPC(M)'!$BE291=\"\",\"\",+'[1]REAL IPC(M)'!$BE291)","v":4.3825719865516977},{"$f":"IF('[1]REAL IPC(M)'!$AM291=\"\",\"\",+'[1]REAL IPC(M)'!$AM291)","v":4.6430240529244937},{"$f":"IF('[1]REAL IPC(M)'!$BI291=\"\",\"\",+'[1]REAL IPC(M)'!$BI291)","v":4.136677018786572},{"$f":"IF('[1]REAL IMAE(M)'!BJ291=\"\",\"\",'[1]REAL IMAE(M)'!BJ291)","v":3.0612826168153529},{"$f":"IF('[1]REAL IMAE(M)'!BK291=\"\",\"\",'[1]REAL IMAE(M)'!BK291)","v":4.0280931273859677},{"$f":"IF('[1]REAL IMAE(M)'!BN291=\"\",\"\",'[1]REAL IMAE(M)'!BN291)","v":4.1884700400185659},{"$f":"IF('[1]REAL IMAE(M)'!BO291=\"\",\"\",'[1]REAL IMAE(M)'!BO291)","v":4.7291048113035972},{"$f":"IF('[1]EXT RIN(M)'!$K291=\"\",\"\",'[1]EXT RIN(M)'!$K291)","v":26298.456872426334},"",{"$f":"IF('[1]EXT RIN(M)'!$L291=\"\",\"\",'[1]EXT RIN(M)'!$L291)","v":29088.922058286335},"",{"$f":"IF('[1]MONE(M)CARD'!EG291=\"\",\"\",'[1]MONE(M)CARD'!EG291)","v":25410.483303550016},{"$f":"IF('[1]MONE(M)CARD'!EK291=\"\",\"\",'[1]MONE(M)CARD'!EK291)","v":43095.873300347273},{"$f":"IF('[1]MONE(M)CARD'!EP291=\"\",\"\",'[1]MONE(M)CARD'!EP291)","v":24463.018806677865},{"$f":"IF('[1]MONE(M)CARD'!ES291=\"\",\"\",'[1]MONE(M)CARD'!ES291)","v":6.6588038058438714},{"$f":"IF('[1]MONE(M)CARD'!EV291=\"\",\"\",'[1]MONE(M)CARD'!EV291)","v":6.2576780718617275},{"$f":"IF('[1]MONE(M)CARD'!EZ291=\"\",\"\",'[1]MONE(M)CARD'!EZ291)","v":6.723399989631984},{"$f":"IF('[1]MONE(M)CAPARD'!FC291=\"\",\"\",'[1]MONE(M)CAPARD'!FC291)","v":32370.918349410018},{"$f":"IF('[1]MONE(M)CAPARD'!FG291=\"\",\"\",'[1]MONE(M)CAPARD'!FG291)","v":66347.662220407277},{"$f":"IF('[1]MONE(M)CAPARD'!FL291=\"\",\"\",'[1]MONE(M)CAPARD'!FL291)","v":24463.018806677865},{"$f":"IF('[1]MONE(M)CAPARD'!FO291=\"\",\"\",'[1]MONE(M)CAPARD'!FO291)","v":6.8412393329252863},{"$f":"IF('[1]MONE(M)CAPARD'!FR291=\"\",\"\",'[1]MONE(M)CAPARD'!FR291)","v":7.1664226362558425},{"$f":"IF('[1]MONE(M)CAPARD'!FV291=\"\",\"\",'[1]MONE(M)CAPARD'!FV291)","v":7.3406655967649614},{"$f":"IF('[1]MONE(M)CARD'!FV291=\"\",\"\",'[1]MONE(M)CARD'!FV291)","v":1199.4018427766036},{"$f":"IF('[1]MONE(M)CARD'!GD291=\"\",\"\",'[1]MONE(M)CARD'!GD291)","v":115.76818698335765},{"$f":"IF('[1]MONE(M)CARD'!GE291=\"\",\"\",'[1]MONE(M)CARD'!GE291)","v":8575.2820436728034},33.322275722743846,{"$f":"IF('[9]II.2.Balance OSD-Activos'!J149=\"\",\"\",'[9]II.2.Balance OSD-Activos'!J149)","v":142.78692679554473},{"$f":"IF('[9]II.2.Balance OSD-Activos'!N149=\"\",\"\",'[9]II.2.Balance OSD-Activos'!N149)","v":588.6675285623204},{"$f":"IF('[9]II.2.Balance OSD-Activos'!R149=\"\",\"\",'[9]II.2.Balance OSD-Activos'!R149)","v":35366.905188479046},{"$f":"IF('[9]II.2.Balance OSD-Activos'!S149=\"\",\"\",'[9]II.2.Balance OSD-Activos'!S149)","v":38530.847742742961},35509.692115274593,74629.207386579874,-17.236079434944596,17.541671694506043,28.596354573234663,17.741419075696928,9.8608067820693535,13.520920950039784,-0.21858901385773777,{"$f":"IF('[1]MONE(M)CAPARD'!GS291=\"\",\"\",'[1]MONE(M)CAPARD'!GS291)","v":15033.14801803093},{"$f":"IF('[1]MONE(M)CARD'!HA291=\"\",\"\",'[1]MONE(M)CAPARD'!HA291)","v":9212.3661833028018},{"$f":"IF('[1]MONE(M)CAPARD'!HB291=\"\",\"\",'[1]MONE(M)CAPARD'!HB291)","v":5820.7818347281282},"n.d.",{"$f":"IF('[10]II.2.Balance OSD-Activos'!J149=\"\",\"\",'[10]II.2.Balance OSD-Activos'!J149)","v":1083.3936344455444},{"$f":"IF('[10]II.2.Balance OSD-Activos'!N149=\"\",\"\",'[10]II.2.Balance OSD-Activos'!N149)","v":973.1471041923204},{"$f":"IF('[10]II.2.Balance OSD-Activos'!R149=\"\",\"\",'[10]II.2.Balance OSD-Activos'!R149)","v":52465.914708679047},{"$f":"IF('[10]II.2.Balance OSD-Activos'!S149=\"\",\"\",'[10]II.2.Balance OSD-Activos'!S149)","v":52167.479418382965},53549.30834312459,106689.93486569988,20.805947073158791,16.426149398462698,13.275113927402259,16.339052981476755,11.078854533253857,13.720483155034646,-0.49149040960987378,{"$f":"IF('[1]MONE(M)CAPARD'!AS291=\"\",\"\",'[1]MONE(M)CAPARD'!AS291)","v":4},{"$f":"IF('[1]MONE(M)CAPARD'!AT291=\"\",\"\",'[1]MONE(M)CAPARD'!AT291)","v":"n.a."},{"$f":"IF('[1]MONE(M)CAPARD'!AU291=\"\",\"\",'[1]MONE(M)CAPARD'!AU291)","v":5.25},{"$f":"IF('[1]MONE(M)CAPARD'!AV291=\"\",\"\",'[1]MONE(M)CAPARD'!AV291)","v":7},{"$f":"IF('[1]MONE(M)CAPARD'!AW291=\"\",\"\",'[1]MONE(M)CAPARD'!AW291)","v":"n.a."},{"$f":"IF('[1]MONE(M)CAPARD'!AX291=\"\",\"\",'[1]MONE(M)CAPARD'!AX291)","v":4.25},{"$f":"IF('[1]MONE(M)CAPARD'!AY291=\"\",\"\",'[1]MONE(M)CAPARD'!AY291)","v":"n.a."},{"$f":"IF('[1]FISCAL(M)'!$K291=\"\",\"\",'[1]FISCAL(M)'!$K291)","v":-2451.4276816676438},{"$f":"IF('[1]FISCAL(M)'!$L291=\"\",\"\",'[1]FISCAL(M)'!$L291)","v":-2927.6339295176435},{"$f":"IF('[1]FISCAL(M)'!$AY291=\"\",\"\",'[1]FISCAL(M)'!$AY291)","v":93627.62262873679},{"$f":"IF('[1]FISCAL(M)'!$BI291=\"\",\"\",'[1]FISCAL(M)'!$BI291)","v":48151.873078077668},{"$f":"IF('[1]FISCAL(M)'!$BS291=\"\",\"\",'[1]FISCAL(M)'!$BS291)","v":45475.749550659122},{"$f":"IF('[1]FISCAL(M)'!$AZ291=\"\",\"\",'[1]FISCAL(M)'!$AZ291)","v":109052.16331229679},{"$f":"IF('[1]FISCAL(M)'!$BJ291=\"\",\"\",'[1]FISCAL(M)'!$BJ291)","v":51523.974909347664},{"$f":"IF('[1]FISCAL(M)'!$BT291=\"\",\"\",'[1]FISCAL(M)'!$BT291)","v":57528.188402949134},{"$f":"IF('[2]MONE(M)'!$AO291=\"\",\"\",'[2]MONE(M)'!$AO291)","v":12627381.594313376},{"$f":"IF('[3]MONE(M)'!$AO291=\"\",\"\",'[3]MONE(M)'!$AO291)","v":9614.7350990601371},{"$f":"IF('[4]MONE(M)'!$AO291=\"\",\"\",'[4]MONE(M)'!$AO291)","v":137287.05585908607},{"$f":"IF('[5]MONE(M)'!$AO291=\"\",\"\",'[5]MONE(M)'!$AO291)","v":191667.54271776177},{"$f":"IF('[6]MONE(M)'!$AO291=\"\",\"\",'[6]MONE(M)'!$AO291)","v":70875.445612273004},{"$f":"IF('[7]MONE(M)'!$AO291=\"\",\"\",'[7]MONE(M)'!$AO291)","v":552317.74049143994},{"$f":"IF('[8]MONE(M)'!$AO291=\"\",\"\",'[8]MONE(M)'!$AO291)","v":32525.451862620004},13.053926246137259,6.7438367798653864,31.548010640737758,12.842162374245625,24.664378549513199,12.819155045584573,14.387020860572042,{"$f":"IF('[1]FISCAL(M)'!$K291=\"\",\"\",'[1]FISCAL(M)'!$K291)","v":-2451.4276816676438},{"$f":"+'[1]REAL(A)'!$AO$33","v":216939.65375965438},-1.1300044225126127,{"$f":"IF('[1]FISCAL(M)'!$L291=\"\",\"\",'[1]FISCAL(M)'!$L291)","v":-2927.6339295176435},{"$f":"+'[1]REAL(A)'!$AP$33","v":262539.64375965437},-1.1151207061885815,105865.17228439034,{"$f":"'[1]Gráfico REM'!BG285","v":21754.692138210936},{"$f":"'[1]Gráfico REM'!BH285","v":78224.360079948252},{"$f":"'[1]Gráfico REM'!BI285","v":5886.1200662311503},12.444446388226172,7.8124942072386183,13.96814304130185,10.360048226918984,161838.15288441034,{"$f":"'[1]Gráfico REM'!BK285","v":23629.379220230934},{"$f":"'[1]Gráfico REM'!BL285","v":110749.81194256825},{"$f":"'[1]Gráfico REM'!BM285","v":27458.961721611147},14.040987349690038,8.8798828492361537,14.090842244423785,18.672594313251032]
[2013,"julio","2013-julio",{"$f":"IF('[1]REAL IPC(M)'!$AL292=\"\",\"\",+'[1]REAL IPC(M)'!$AL292)","v":5.3946953122266272},{"$f":"IF('[1]REAL IPC(M)'!$BE292=\"\",\"\",+'[1]REAL IPC(M)'!$BE292)","v":4.320729782787569},{"$f":"IF('[1]REAL IPC(M)'!$AM292=\"\",\"\",+'[1]REAL IPC(M)'!$AM292)","v":5.0715954201675295},{"$f":"IF('[1]REAL IPC(M)'!$BI292=\"\",\"\",+'[1]REAL IPC(M)'!$BI292)","v":4.0913896949613449},{"$f":"IF('[1]REAL IMAE(M)'!BJ292=\"\",\"\",'[1]REAL IMAE(M)'!BJ292)","v":3.5003148508557125},{"$f":"IF('[1]REAL IMAE(M)'!BK292=\"\",\"\",'[1]REAL IMAE(M)'!BK292)","v":4.0607343678761509},{"$f":"IF('[1]REAL IMAE(M)'!BN292=\"\",\"\",'[1]REAL IMAE(M)'!BN292)","v":4.4288882310707045},{"$f":"IF('[1]REAL IMAE(M)'!BO292=\"\",\"\",'[1]REAL IMAE(M)'!BO292)","v":4.7333192690651726},{"$f":"IF('[1]EXT RIN(M)'!$K292=\"\",\"\",'[1]EXT RIN(M)'!$K292)","v":25259.959329278969},"",{"$f":"IF('[1]EXT RIN(M)'!$L292=\"\",\"\",'[1]EXT RIN(M)'!$L292)","v":27994.769473568969},"",{"$f":"IF('[1]MONE(M)CARD'!EG292=\"\",\"\",'[1]MONE(M)CARD'!EG292)","v":25177.907469453708},{"$f":"IF('[1]MONE(M)CARD'!EK292=\"\",\"\",'[1]MONE(M)CARD'!EK292)","v":43316.882580924139},{"$f":"IF('[1]MONE(M)CARD'!EP292=\"\",\"\",'[1]MONE(M)CARD'!EP292)","v":24770.715089932477},{"$f":"IF('[1]MONE(M)CARD'!ES292=\"\",\"\",'[1]MONE(M)CARD'!ES292)","v":7.0931372046777019},{"$f":"IF('[1]MONE(M)CARD'!EV292=\"\",\"\",'[1]MONE(M)CARD'!EV292)","v":5.9788571412938918},{"$f":"IF('[1]MONE(M)CARD'!EZ292=\"\",\"\",'[1]MONE(M)CARD'!EZ292)","v":6.6838061456878872},{"$f":"IF('[1]MONE(M)CAPARD'!FC292=\"\",\"\",'[1]MONE(M)CAPARD'!FC292)","v":32249.913661003709},{"$f":"IF('[1]MONE(M)CAPARD'!FG292=\"\",\"\",'[1]MONE(M)CAPARD'!FG292)","v":66740.161757704132},{"$f":"IF('[1]MONE(M)CAPARD'!FL292=\"\",\"\",'[1]MONE(M)CAPARD'!FL292)","v":24770.715089932477},{"$f":"IF('[1]MONE(M)CAPARD'!FO292=\"\",\"\",'[1]MONE(M)CAPARD'!FO292)","v":7.2494806108176268},{"$f":"IF('[1]MONE(M)CAPARD'!FR292=\"\",\"\",'[1]MONE(M)CAPARD'!FR292)","v":6.9421726768578385},{"$f":"IF('[1]MONE(M)CAPARD'!FV292=\"\",\"\",'[1]MONE(M)CAPARD'!FV292)","v":7.2860881483813866},{"$f":"IF('[1]MONE(M)CARD'!FV292=\"\",\"\",'[1]MONE(M)CARD'!FV292)","v":1170.2560145547027},{"$f":"IF('[1]MONE(M)CARD'!GD292=\"\",\"\",'[1]MONE(M)CARD'!GD292)","v":73.338924650892224},{"$f":"IF('[1]MONE(M)CARD'!GE292=\"\",\"\",'[1]MONE(M)CARD'!GE292)","v":8323.0746155074376},30.561277457991199,{"$f":"IF('[9]II.2.Balance OSD-Activos'!J150=\"\",\"\",'[9]II.2.Balance OSD-Activos'!J150)","v":136.7076387158356},{"$f":"IF('[9]II.2.Balance OSD-Activos'!N150=\"\",\"\",'[9]II.2.Balance OSD-Activos'!N150)","v":614.35653000741945},{"$f":"IF('[9]II.2.Balance OSD-Activos'!R150=\"\",\"\",'[9]II.2.Balance OSD-Activos'!R150)","v":35681.844217529731},{"$f":"IF('[9]II.2.Balance OSD-Activos'!S150=\"\",\"\",'[9]II.2.Balance OSD-Activos'!S150)","v":38851.021618465078},35818.551856245569,75283.930004718073,-17.152427047666496,17.650721095825173,38.444559828488778,17.840382242427346,9.9402406125228993,13.675780466621635,0.15485951658185115,{"$f":"IF('[1]MONE(M)CAPARD'!GS292=\"\",\"\",'[1]MONE(M)CAPARD'!GS292)","v":15135.64927059531},{"$f":"IF('[1]MONE(M)CARD'!HA292=\"\",\"\",'[1]MONE(M)CAPARD'!HA292)","v":8953.8805601574368},{"$f":"IF('[1]MONE(M)CAPARD'!HB292=\"\",\"\",'[1]MONE(M)CAPARD'!HB292)","v":6181.7687104378729},"n.d.",{"$f":"IF('[10]II.2.Balance OSD-Activos'!J150=\"\",\"\",'[10]II.2.Balance OSD-Activos'!J150)","v":1104.6780191758355},{"$f":"IF('[10]II.2.Balance OSD-Activos'!N150=\"\",\"\",'[10]II.2.Balance OSD-Activos'!N150)","v":1004.9920014074194},{"$f":"IF('[10]II.2.Balance OSD-Activos'!R150=\"\",\"\",'[10]II.2.Balance OSD-Activos'!R150)","v":53100.08012964973},{"$f":"IF('[10]II.2.Balance OSD-Activos'!S150=\"\",\"\",'[10]II.2.Balance OSD-Activos'!S150)","v":52639.43162786508},54204.758148825567,107849.18177809806,23.971397462314314,16.538950857619316,19.315273293884982,16.393779610322756,11.11212259962986,13.849632145143808,0.12914899010916159,{"$f":"IF('[1]MONE(M)CAPARD'!AS292=\"\",\"\",'[1]MONE(M)CAPARD'!AS292)","v":4},{"$f":"IF('[1]MONE(M)CAPARD'!AT292=\"\",\"\",'[1]MONE(M)CAPARD'!AT292)","v":"n.a."},{"$f":"IF('[1]MONE(M)CAPARD'!AU292=\"\",\"\",'[1]MONE(M)CAPARD'!AU292)","v":5.25},{"$f":"IF('[1]MONE(M)CAPARD'!AV292=\"\",\"\",'[1]MONE(M)CAPARD'!AV292)","v":7},{"$f":"IF('[1]MONE(M)CAPARD'!AW292=\"\",\"\",'[1]MONE(M)CAPARD'!AW292)","v":"n.a."},{"$f":"IF('[1]MONE(M)CAPARD'!AX292=\"\",\"\",'[1]MONE(M)CAPARD'!AX292)","v":4.25},{"$f":"IF('[1]MONE(M)CAPARD'!AY292=\"\",\"\",'[1]MONE(M)CAPARD'!AY292)","v":"n.a."},{"$f":"IF('[1]FISCAL(M)'!$K292=\"\",\"\",'[1]FISCAL(M)'!$K292)","v":-3144.4186206046243},{"$f":"IF('[1]FISCAL(M)'!$L292=\"\",\"\",'[1]FISCAL(M)'!$L292)","v":-3975.9544561246253},{"$f":"IF('[1]FISCAL(M)'!$AY292=\"\",\"\",'[1]FISCAL(M)'!$AY292)","v":93473.268772928757},{"$f":"IF('[1]FISCAL(M)'!$BI292=\"\",\"\",'[1]FISCAL(M)'!$BI292)","v":48373.550695973085},{"$f":"IF('[1]FISCAL(M)'!$BS292=\"\",\"\",'[1]FISCAL(M)'!$BS292)","v":45099.718076955673},{"$f":"IF('[1]FISCAL(M)'!$AZ292=\"\",\"\",'[1]FISCAL(M)'!$AZ292)","v":108983.58372988875},{"$f":"IF('[1]FISCAL(M)'!$BJ292=\"\",\"\",'[1]FISCAL(M)'!$BJ292)","v":51813.970248473088},{"$f":"IF('[1]FISCAL(M)'!$BT292=\"\",\"\",'[1]FISCAL(M)'!$BT292)","v":57169.613481415669},{"$f":"IF('[2]MONE(M)'!$AO292=\"\",\"\",'[2]MONE(M)'!$AO292)","v":12702289.917784672},{"$f":"IF('[3]MONE(M)'!$AO292=\"\",\"\",'[3]MONE(M)'!$AO292)","v":9659.2808837700013},{"$f":"IF('[4]MONE(M)'!$AO292=\"\",\"\",'[4]MONE(M)'!$AO292)","v":139271.76641472339},{"$f":"IF('[5]MONE(M)'!$AO292=\"\",\"\",'[5]MONE(M)'!$AO292)","v":193613.67906481031},{"$f":"IF('[6]MONE(M)'!$AO292=\"\",\"\",'[6]MONE(M)'!$AO292)","v":71281.678856350016},{"$f":"IF('[7]MONE(M)'!$AO292=\"\",\"\",'[7]MONE(M)'!$AO292)","v":555649.09522784001},{"$f":"IF('[8]MONE(M)'!$AO292=\"\",\"\",'[8]MONE(M)'!$AO292)","v":33073.522975320004},12.393023105225831,6.6146405531721575,30.741721841220084,13.483389296978142,23.05294918698193,13.846244309921673,14.568723072189972,{"$f":"IF('[1]FISCAL(M)'!$K292=\"\",\"\",'[1]FISCAL(M)'!$K292)","v":-3144.4186206046243},{"$f":"+'[1]REAL(A)'!$AO$33","v":216939.65375965438},-1.4494439195926345,{"$f":"IF('[1]FISCAL(M)'!$L292=\"\",\"\",'[1]FISCAL(M)'!$L292)","v":-3975.9544561246253},{"$f":"+'[1]REAL(A)'!$AP$33","v":262539.64375965437},-1.5144206029945211,106681.35644304942,{"$f":"'[1]Gráfico REM'!BG286","v":21944.469669908984},{"$f":"'[1]Gráfico REM'!BH286","v":78725.391090908539},{"$f":"'[1]Gráfico REM'!BI286","v":6011.4956822318863},12.837364708670007,8.5805923515363212,13.869630363022644,15.658561031453665,163757.76032113942,{"$f":"'[1]Gráfico REM'!BK286","v":23926.260313588984},{"$f":"'[1]Gráfico REM'!BL286","v":111798.91406622855},{"$f":"'[1]Gráfico REM'!BM286","v":28032.585941321882},15.046174231702691,10.261556496618018,14.075553030882704,23.834810561294152]
[2013,"agosto","2013-agosto",{"$f":"IF('[1]REAL IPC(M)'!$AL293=\"\",\"\",+'[1]REAL IPC(M)'!$AL293)","v":5.0778150906124475},{"$f":"IF('[1]REAL IPC(M)'!$BE293=\"\",\"\",+'[1]REAL IPC(M)'!$BE293)","v":4.2575058528556031},{"$f":"IF('[1]REAL IPC(M)'!$AM293=\"\",\"\",+'[1]REAL IPC(M)'!$AM293)","v":4.7599553720375498},{"$f":"IF('[1]REAL IPC(M)'!$BI293=\"\",\"\",+'[1]REAL IPC(M)'!$BI293)","v":4.0442361350292888},{"$f":"IF('[1]REAL IMAE(M)'!BJ293=\"\",\"\",'[1]REAL IMAE(M)'!BJ293)","v":4.0091315595552901},{"$f":"IF('[1]REAL IMAE(M)'!BK293=\"\",\"\",'[1]REAL IMAE(M)'!BK293)","v":4.0953446412457906},{"$f":"IF('[1]REAL IMAE(M)'!BN293=\"\",\"\",'[1]REAL IMAE(M)'!BN293)","v":4.8618032571179581},{"$f":"IF('[1]REAL IMAE(M)'!BO293=\"\",\"\",'[1]REAL IMAE(M)'!BO293)","v":4.7379476945514254},{"$f":"IF('[1]EXT RIN(M)'!$K293=\"\",\"\",'[1]EXT RIN(M)'!$K293)","v":25116.18261788338},"",{"$f":"IF('[1]EXT RIN(M)'!$L293=\"\",\"\",'[1]EXT RIN(M)'!$L293)","v":28009.111272093382},"",{"$f":"IF('[1]MONE(M)CARD'!EG293=\"\",\"\",'[1]MONE(M)CARD'!EG293)","v":25253.760756920776},{"$f":"IF('[1]MONE(M)CARD'!EK293=\"\",\"\",'[1]MONE(M)CARD'!EK293)","v":42795.688392109339},{"$f":"IF('[1]MONE(M)CARD'!EP293=\"\",\"\",'[1]MONE(M)CARD'!EP293)","v":24521.12421014659},{"$f":"IF('[1]MONE(M)CARD'!ES293=\"\",\"\",'[1]MONE(M)CARD'!ES293)","v":7.5131034357180049},{"$f":"IF('[1]MONE(M)CARD'!EV293=\"\",\"\",'[1]MONE(M)CARD'!EV293)","v":4.9347792816902825},{"$f":"IF('[1]MONE(M)CARD'!EZ293=\"\",\"\",'[1]MONE(M)CARD'!EZ293)","v":5.3955988086204831},{"$f":"IF('[1]MONE(M)CAPARD'!FC293=\"\",\"\",'[1]MONE(M)CAPARD'!FC293)","v":32406.214818840781},{"$f":"IF('[1]MONE(M)CAPARD'!FG293=\"\",\"\",'[1]MONE(M)CAPARD'!FG293)","v":66340.948207269335},{"$f":"IF('[1]MONE(M)CAPARD'!FL293=\"\",\"\",'[1]MONE(M)CAPARD'!FL293)","v":24521.12421014659},{"$f":"IF('[1]MONE(M)CAPARD'!FO293=\"\",\"\",'[1]MONE(M)CAPARD'!FO293)","v":8.0568971093775144},{"$f":"IF('[1]MONE(M)CAPARD'!FR293=\"\",\"\",'[1]MONE(M)CAPARD'!FR293)","v":5.9890182507117196},{"$f":"IF('[1]MONE(M)CAPARD'!FV293=\"\",\"\",'[1]MONE(M)CAPARD'!FV293)","v":6.1288869720023786},{"$f":"IF('[1]MONE(M)CARD'!FV293=\"\",\"\",'[1]MONE(M)CARD'!FV293)","v":1132.3012105182745},{"$f":"IF('[1]MONE(M)CARD'!GD293=\"\",\"\",'[1]MONE(M)CARD'!GD293)","v":85.228962823539717},{"$f":"IF('[1]MONE(M)CARD'!GE293=\"\",\"\",'[1]MONE(M)CARD'!GE293)","v":7944.3797583821288},23.062220039865934,{"$f":"IF('[9]II.2.Balance OSD-Activos'!J151=\"\",\"\",'[9]II.2.Balance OSD-Activos'!J151)","v":133.39160676228695},{"$f":"IF('[9]II.2.Balance OSD-Activos'!N151=\"\",\"\",'[9]II.2.Balance OSD-Activos'!N151)","v":638.55988240758563},{"$f":"IF('[9]II.2.Balance OSD-Activos'!R151=\"\",\"\",'[9]II.2.Balance OSD-Activos'!R151)","v":35914.077447702824},{"$f":"IF('[9]II.2.Balance OSD-Activos'!S151=\"\",\"\",'[9]II.2.Balance OSD-Activos'!S151)","v":38922.300568248625},36047.469054465109,75608.329505121321,-20.828706008439333,{"$f":"IF(OR(AJ286=\"\",AJ274=\"\"),\"\",((AJ286/AJ274)-1)*100)","v":10.354102774293761},42.693111674391339,10.515775049856835,8.8674589489406763,{"$f":"IF(OR(AK286=\"\",AK274=\"\"),\"\",((AK286/AK274)-1)*100)","v":9.7924426072881978},-3.8833378593334373,{"$f":"IF('[1]MONE(M)CAPARD'!GS293=\"\",\"\",'[1]MONE(M)CAPARD'!GS293)","v":14890.697456726708},{"$f":"IF('[1]MONE(M)CARD'!HA293=\"\",\"\",'[1]MONE(M)CAPARD'!HA293)","v":8648.6136258221286},{"$f":"IF('[1]MONE(M)CAPARD'!HB293=\"\",\"\",'[1]MONE(M)CAPARD'!HB293)","v":6242.0838309045794},"n.d.",{"$f":"IF('[10]II.2.Balance OSD-Activos'!J151=\"\",\"\",'[10]II.2.Balance OSD-Activos'!J151)","v":1102.4822965522872},{"$f":"IF('[10]II.2.Balance OSD-Activos'!N151=\"\",\"\",'[10]II.2.Balance OSD-Activos'!N151)","v":1029.5233540975858},{"$f":"IF('[10]II.2.Balance OSD-Activos'!R151=\"\",\"\",'[10]II.2.Balance OSD-Activos'!R151)","v":53474.154996002828},{"$f":"IF('[10]II.2.Balance OSD-Activos'!S151=\"\",\"\",'[10]II.2.Balance OSD-Activos'!S151)","v":52864.155204658629},54576.637292555111,108470.31585131133,{"$f":"IF(OR(AW286=\"\",AW274=\"\"),\"\",((AW286/AW274)-1)*100)","v":23.639205334921609},{"$f":"IF(OR(BA286=\"\",BA274=\"\"),\"\",((BA286/BA274)-1)*100)","v":11.198982750259368},21.398184397950047,10.968785319598172,10.288476104818955,{"$f":"IF(OR(BB286=\"\",BB274=\"\"),\"\",((BB286/BB274)-1)*100)","v":10.841398582778172},-3.0082335623656355,{"$f":"IF('[1]MONE(M)CAPARD'!AS293=\"\",\"\",'[1]MONE(M)CAPARD'!AS293)","v":4},{"$f":"IF('[1]MONE(M)CAPARD'!AT293=\"\",\"\",'[1]MONE(M)CAPARD'!AT293)","v":"n.a."},{"$f":"IF('[1]MONE(M)CAPARD'!AU293=\"\",\"\",'[1]MONE(M)CAPARD'!AU293)","v":5.25},{"$f":"IF('[1]MONE(M)CAPARD'!AV293=\"\",\"\",'[1]MONE(M)CAPARD'!AV293)","v":7},{"$f":"IF('[1]MONE(M)CAPARD'!AW293=\"\",\"\",'[1]MONE(M)CAPARD'!AW293)","v":"n.a."},{"$f":"IF('[1]MONE(M)CAPARD'!AX293=\"\",\"\",'[1]MONE(M)CAPARD'!AX293)","v":6.25},{"$f":"IF('[1]MONE(M)CAPARD'!AY293=\"\",\"\",'[1]MONE(M)CAPARD'!AY293)","v":"n.a."},{"$f":"IF('[1]FISCAL(M)'!$K293=\"\",\"\",'[1]FISCAL(M)'!$K293)","v":-3687.9014257551412},{"$f":"IF('[1]FISCAL(M)'!$L293=\"\",\"\",'[1]FISCAL(M)'!$L293)","v":-4771.7968574335018},{"$f":"IF('[1]FISCAL(M)'!$AY293=\"\",\"\",'[1]FISCAL(M)'!$AY293)","v":93255.436602365153},{"$f":"IF('[1]FISCAL(M)'!$BI293=\"\",\"\",'[1]FISCAL(M)'!$BI293)","v":48563.413662287712},{"$f":"IF('[1]FISCAL(M)'!$BS293=\"\",\"\",'[1]FISCAL(M)'!$BS293)","v":44692.022940077441},{"$f":"IF('[1]FISCAL(M)'!$AZ293=\"\",\"\",'[1]FISCAL(M)'!$AZ293)","v":109019.73001760515},{"$f":"IF('[1]FISCAL(M)'!$BJ293=\"\",\"\",'[1]FISCAL(M)'!$BJ293)","v":52165.257690827711},{"$f":"IF('[1]FISCAL(M)'!$BT293=\"\",\"\",'[1]FISCAL(M)'!$BT293)","v":56854.472326777439},{"$f":"IF('[2]MONE(M)'!$AO293=\"\",\"\",'[2]MONE(M)'!$AO293)","v":12851421.169613335},{"$f":"IF('[3]MONE(M)'!$AO293=\"\",\"\",'[3]MONE(M)'!$AO293)","v":9753.3826829301379},{"$f":"IF('[4]MONE(M)'!$AO293=\"\",\"\",'[4]MONE(M)'!$AO293)","v":141398.62937413258},{"$f":"IF('[5]MONE(M)'!$AO293=\"\",\"\",'[5]MONE(M)'!$AO293)","v":195914.97004054062},{"$f":"IF('[6]MONE(M)'!$AO293=\"\",\"\",'[6]MONE(M)'!$AO293)","v":72331.096404735537},{"$f":"IF('[7]MONE(M)'!$AO293=\"\",\"\",'[7]MONE(M)'!$AO293)","v":564716.33763188997},{"$f":"IF('[8]MONE(M)'!$AO293=\"\",\"\",'[8]MONE(M)'!$AO293)","v":33410.488901860008},12.790948493496757,7.3547539969954556,13.803025521758228,13.433317439676596,22.13501016312518,14.967281049158165,13.765231685726764,{"$f":"IF('[1]FISCAL(M)'!$K293=\"\",\"\",'[1]FISCAL(M)'!$K293)","v":-3687.9014257551412},{"$f":"+'[1]REAL(A)'!$AO$33","v":216939.65375965438},-1.699966493834703,{"$f":"IF('[1]FISCAL(M)'!$L293=\"\",\"\",'[1]FISCAL(M)'!$L293)","v":-4771.7968574335018},{"$f":"+'[1]REAL(A)'!$AP$33","v":262539.64375965437},-1.8175528804335206,{"$f":"+IF(OR(CT286=\"\",+CU286=\"\",+CV286=\"\"),\"\",(CT286+CU286+CV286))","v":106835.68948676861},{"$f":"'[1]Gráfico REM'!BG287","v":21783.499376729349},{"$f":"'[1]Gráfico REM'!BH287","v":79006.922905828469},{"$f":"'[1]Gráfico REM'!BI287","v":6045.2672042107906},{"$f":"IFERROR(+((CS286/CS274)-1)*100,\"\")","v":11.397712759308476},{"$f":"IFERROR(+((CT286/CT274)-1)*100,\"\")","v":15.407744172075022},10.212317134548798,13.135574043535581,{"$f":"+IF(OR(DB286=\"\",+DC286=\"\",+DD286=\"\"),\"\",(DB286+DC286+DD286))","v":163824.16700344862},{"$f":"'[1]Gráfico REM'!BK287","v":23889.951361539348},{"$f":"'[1]Gráfico REM'!BL287","v":112417.41180768848},{"$f":"'[1]Gráfico REM'!BM287","v":27516.803834220791},{"$f":"IFERROR(+((DA286/DA274)-1)*100,\"\")","v":13.498638443486644},{"$f":"IFERROR(+((DB286/DB274)-1)*100,\"\")","v":17.132740159851956},11.244851166867109,20.21034079227908]
[2013,"septiembre","2013-septiembre",{"$f":"IF('[1]REAL IPC(M)'!$AL294=\"\",\"\",+'[1]REAL IPC(M)'!$AL294)","v":4.8928129941612664},{"$f":"IF('[1]REAL IPC(M)'!$BE294=\"\",\"\",+'[1]REAL IPC(M)'!$BE294)","v":4.1929406442656303},{"$f":"IF('[1]REAL IPC(M)'!$AM294=\"\",\"\",+'[1]REAL IPC(M)'!$AM294)","v":4.5845938251651619},{"$f":"IF('[1]REAL IPC(M)'!$BI294=\"\",\"\",+'[1]REAL IPC(M)'!$BI294)","v":3.995150335326203},{"$f":"IF('[1]REAL IMAE(M)'!BJ294=\"\",\"\",'[1]REAL IMAE(M)'!BJ294)","v":4.3518086621555874},{"$f":"IF('[1]REAL IMAE(M)'!BK294=\"\",\"\",'[1]REAL IMAE(M)'!BK294)","v":4.1315812180662048},{"$f":"IF('[1]REAL IMAE(M)'!BN294=\"\",\"\",'[1]REAL IMAE(M)'!BN294)","v":5.2366604124156169},{"$f":"IF('[1]REAL IMAE(M)'!BO294=\"\",\"\",'[1]REAL IMAE(M)'!BO294)","v":4.742875753134812},{"$f":"IF('[1]EXT RIN(M)'!$K294=\"\",\"\",'[1]EXT RIN(M)'!$K294)","v":24726.64213709188},"",{"$f":"IF('[1]EXT RIN(M)'!$L294=\"\",\"\",'[1]EXT RIN(M)'!$L294)","v":27152.135341421879},"",{"$f":"IF('[1]MONE(M)CARD'!EG294=\"\",\"\",'[1]MONE(M)CARD'!EG294)","v":25274.78260901618},{"$f":"IF('[1]MONE(M)CARD'!EK294=\"\",\"\",'[1]MONE(M)CARD'!EK294)","v":43420.843452993824},{"$f":"IF('[1]MONE(M)CARD'!EP294=\"\",\"\",'[1]MONE(M)CARD'!EP294)","v":24210.79136525208},{"$f":"IF('[1]MONE(M)CARD'!ES294=\"\",\"\",'[1]MONE(M)CARD'!ES294)","v":8.2427116912064058},{"$f":"IF('[1]MONE(M)CARD'!EV294=\"\",\"\",'[1]MONE(M)CARD'!EV294)","v":5.5250547949217355},{"$f":"IF('[1]MONE(M)CARD'!EZ294=\"\",\"\",'[1]MONE(M)CARD'!EZ294)","v":5.5565461454725185},{"$f":"IF('[1]MONE(M)CAPARD'!FC294=\"\",\"\",'[1]MONE(M)CAPARD'!FC294)","v":32597.640747906178},{"$f":"IF('[1]MONE(M)CAPARD'!FG294=\"\",\"\",'[1]MONE(M)CAPARD'!FG294)","v":67082.032871473843},{"$f":"IF('[1]MONE(M)CAPARD'!FL294=\"\",\"\",'[1]MONE(M)CAPARD'!FL294)","v":24210.79136525208},{"$f":"IF('[1]MONE(M)CAPARD'!FO294=\"\",\"\",'[1]MONE(M)CAPARD'!FO294)","v":8.7416463228350949},{"$f":"IF('[1]MONE(M)CAPARD'!FR294=\"\",\"\",'[1]MONE(M)CAPARD'!FR294)","v":6.646250957374944},{"$f":"IF('[1]MONE(M)CAPARD'!FV294=\"\",\"\",'[1]MONE(M)CAPARD'!FV294)","v":6.4492950895563839},{"$f":"IF('[1]MONE(M)CARD'!FV294=\"\",\"\",'[1]MONE(M)CARD'!FV294)","v":1141.0598593022096},{"$f":"IF('[1]MONE(M)CARD'!GD294=\"\",\"\",'[1]MONE(M)CARD'!GD294)","v":173.31934308659083},{"$f":"IF('[1]MONE(M)CARD'!GE294=\"\",\"\",'[1]MONE(M)CARD'!GE294)","v":8066.4902796140723},19.802757832944764,{"$f":"IF('[9]II.2.Balance OSD-Activos'!J152=\"\",\"\",'[9]II.2.Balance OSD-Activos'!J152)","v":131.306216100916},{"$f":"IF('[9]II.2.Balance OSD-Activos'!N152=\"\",\"\",'[9]II.2.Balance OSD-Activos'!N152)","v":653.35652117532254},{"$f":"IF('[9]II.2.Balance OSD-Activos'!R152=\"\",\"\",'[9]II.2.Balance OSD-Activos'!R152)","v":36519.217503225969},{"$f":"IF('[9]II.2.Balance OSD-Activos'!S152=\"\",\"\",'[9]II.2.Balance OSD-Activos'!S152)","v":39353.392774291278},36650.523719326884,76657.273014793493,-20.655151494442702,11.687196221954155,43.361053965556827,11.851125674621542,8.838340571188553,10.411458696081887,0.61901608879368908,{"$f":"IF('[1]MONE(M)CAPARD'!GS294=\"\",\"\",'[1]MONE(M)CAPARD'!GS294)","v":15105.558694301544},{"$f":"IF('[1]MONE(M)CARD'!HA294=\"\",\"\",'[1]MONE(M)CAPARD'!HA294)","v":8850.4675142040742},{"$f":"IF('[1]MONE(M)CAPARD'!HB294=\"\",\"\",'[1]MONE(M)CAPARD'!HB294)","v":6255.09118009747},"n.d.",{"$f":"IF('[10]II.2.Balance OSD-Activos'!J152=\"\",\"\",'[10]II.2.Balance OSD-Activos'!J152)","v":1140.3171506809158},{"$f":"IF('[10]II.2.Balance OSD-Activos'!N152=\"\",\"\",'[10]II.2.Balance OSD-Activos'!N152)","v":1091.5746672653227},{"$f":"IF('[10]II.2.Balance OSD-Activos'!R152=\"\",\"\",'[10]II.2.Balance OSD-Activos'!R152)","v":54169.937807725961},{"$f":"IF('[10]II.2.Balance OSD-Activos'!S152=\"\",\"\",'[10]II.2.Balance OSD-Activos'!S152)","v":53430.361749851276},55310.254958406877,109832.19137552349,21.091677907884797,11.351801953430529,25.73866548577324,11.163580564018716,10.186230426046006,10.90719224154566,{"$f":"IF(OR(BH287=\"\",BH286=\"\"),\"\",BH287-BH286)","v":6.5793658767487884E-2},{"$f":"IF('[1]MONE(M)CAPARD'!AS294=\"\",\"\",'[1]MONE(M)CAPARD'!AS294)","v":4},{"$f":"IF('[1]MONE(M)CAPARD'!AT294=\"\",\"\",'[1]MONE(M)CAPARD'!AT294)","v":"n.a."},{"$f":"IF('[1]MONE(M)CAPARD'!AU294=\"\",\"\",'[1]MONE(M)CAPARD'!AU294)","v":5.25},{"$f":"IF('[1]MONE(M)CAPARD'!AV294=\"\",\"\",'[1]MONE(M)CAPARD'!AV294)","v":7},{"$f":"IF('[1]MONE(M)CAPARD'!AW294=\"\",\"\",'[1]MONE(M)CAPARD'!AW294)","v":"n.a."},{"$f":"IF('[1]MONE(M)CAPARD'!AX294=\"\",\"\",'[1]MONE(M)CAPARD'!AX294)","v":6.25},{"$f":"IF('[1]MONE(M)CAPARD'!AY294=\"\",\"\",'[1]MONE(M)CAPARD'!AY294)","v":"n.a."},{"$f":"IF('[1]FISCAL(M)'!$K294=\"\",\"\",'[1]FISCAL(M)'!$K294)","v":-4197.7817210605799},{"$f":"IF('[1]FISCAL(M)'!$L294=\"\",\"\",'[1]FISCAL(M)'!$L294)","v":-5373.9076693905799},{"$f":"IF('[1]FISCAL(M)'!$AY294=\"\",\"\",'[1]FISCAL(M)'!$AY294)","v":93828.15570193388},{"$f":"IF('[1]FISCAL(M)'!$BI294=\"\",\"\",'[1]FISCAL(M)'!$BI294)","v":48851.922821193002},{"$f":"IF('[1]FISCAL(M)'!$BS294=\"\",\"\",'[1]FISCAL(M)'!$BS294)","v":44976.232880740885},{"$f":"IF('[1]FISCAL(M)'!$AZ294=\"\",\"\",'[1]FISCAL(M)'!$AZ294)","v":109771.9016920139},{"$f":"IF('[1]FISCAL(M)'!$BJ294=\"\",\"\",'[1]FISCAL(M)'!$BJ294)","v":52651.049148792998},{"$f":"IF('[1]FISCAL(M)'!$BT294=\"\",\"\",'[1]FISCAL(M)'!$BT294)","v":57120.852543220884},{"$f":"IF('[2]MONE(M)'!$AO294=\"\",\"\",'[2]MONE(M)'!$AO294)","v":12959079.200084295},{"$f":"IF('[3]MONE(M)'!$AO294=\"\",\"\",'[3]MONE(M)'!$AO294)","v":9746.1256402401395},{"$f":"IF('[4]MONE(M)'!$AO294=\"\",\"\",'[4]MONE(M)'!$AO294)","v":142408.2464256993},{"$f":"IF('[5]MONE(M)'!$AO294=\"\",\"\",'[5]MONE(M)'!$AO294)","v":198361.363322288},{"$f":"IF('[6]MONE(M)'!$AO294=\"\",\"\",'[6]MONE(M)'!$AO294)","v":73576.075480810279},{"$f":"IF('[7]MONE(M)'!$AO294=\"\",\"\",'[7]MONE(M)'!$AO294)","v":572767.27826401999},{"$f":"IF('[8]MONE(M)'!$AO294=\"\",\"\",'[8]MONE(M)'!$AO294)","v":33689.777177019998},12.396638561788809,7.0611122144784932,12.948007650078486,12.966578355250192,21.916701226877432,16.022003524533758,12.231295282375655,{"$f":"IF('[1]FISCAL(M)'!$K294=\"\",\"\",'[1]FISCAL(M)'!$K294)","v":-4197.7817210605799},{"$f":"+'[1]REAL(A)'!$AO$33","v":216939.65375965438},-1.9349997330185043,{"$f":"IF('[1]FISCAL(M)'!$L294=\"\",\"\",'[1]FISCAL(M)'!$L294)","v":-5373.9076693905799},{"$f":"+'[1]REAL(A)'!$AP$33","v":262539.64375965437},-2.0468937918991768,{"$f":"+IF(OR(CT287=\"\",+CU287=\"\",+CV287=\"\"),\"\",(CT287+CU287+CV287))","v":107767.46978932491},{"$f":"'[1]Gráfico REM'!BG288","v":21622.620477339897},{"$f":"'[1]Gráfico REM'!BH288","v":80047.422024905609},{"$f":"'[1]Gráfico REM'!BI288","v":6097.4272870794048},{"$f":"IFERROR(+((CS287/CS275)-1)*100,\"\")","v":11.5797098698309},14.433310363280572,10.608743078856687,14.653892755670883,{"$f":"+IF(OR(DB287=\"\",+DC287=\"\",+DD287=\"\"),\"\",(DB287+DC287+DD287))","v":164911.90135645491},{"$f":"'[1]Gráfico REM'!BK288","v":23840.923306679895},{"$f":"'[1]Gráfico REM'!BL288","v":113737.1992019256},{"$f":"'[1]Gráfico REM'!BM288","v":27333.778847849408},{"$f":"IFERROR(+((DA287/DA275)-1)*100,\"\")","v":12.706672156684773},16.366475434689232,11.084443522251286,16.59323892465272]
[2013,"octubre","2013-octubre",{"$f":"IF('[1]REAL IPC(M)'!$AL295=\"\",\"\",+'[1]REAL IPC(M)'!$AL295)","v":4.3686620311081059},{"$f":"IF('[1]REAL IPC(M)'!$BE295=\"\",\"\",+'[1]REAL IPC(M)'!$BE295)","v":4.127126612787313},{"$f":"IF('[1]REAL IPC(M)'!$AM295=\"\",\"\",+'[1]REAL IPC(M)'!$AM295)","v":4.0885499153938909},{"$f":"IF('[1]REAL IPC(M)'!$BI295=\"\",\"\",+'[1]REAL IPC(M)'!$BI295)","v":3.9441190732601328},{"$f":"IF('[1]REAL IMAE(M)'!BJ295=\"\",\"\",'[1]REAL IMAE(M)'!BJ295)","v":4.3494489415083271},{"$f":"IF('[1]REAL IMAE(M)'!BK295=\"\",\"\",'[1]REAL IMAE(M)'!BK295)","v":4.169100012414706},{"$f":"IF('[1]REAL IMAE(M)'!BN295=\"\",\"\",'[1]REAL IMAE(M)'!BN295)","v":5.2593398583884898},{"$f":"IF('[1]REAL IMAE(M)'!BO295=\"\",\"\",'[1]REAL IMAE(M)'!BO295)","v":4.7479990307319309},{"$f":"IF('[1]EXT RIN(M)'!$K295=\"\",\"\",'[1]EXT RIN(M)'!$K295)","v":24843.964482748834},"",{"$f":"IF('[1]EXT RIN(M)'!$L295=\"\",\"\",'[1]EXT RIN(M)'!$L295)","v":27521.688168458833},"",{"$f":"IF('[1]MONE(M)CARD'!EG295=\"\",\"\",'[1]MONE(M)CARD'!EG295)","v":25167.985890757802},{"$f":"IF('[1]MONE(M)CARD'!EK295=\"\",\"\",'[1]MONE(M)CARD'!EK295)","v":43671.313031908314},{"$f":"IF('[1]MONE(M)CARD'!EP295=\"\",\"\",'[1]MONE(M)CARD'!EP295)","v":24455.23708334507},{"$f":"IF('[1]MONE(M)CARD'!ES295=\"\",\"\",'[1]MONE(M)CARD'!ES295)","v":7.7099836802868138},{"$f":"IF('[1]MONE(M)CARD'!EV295=\"\",\"\",'[1]MONE(M)CARD'!EV295)","v":5.7075878411262826},{"$f":"IF('[1]MONE(M)CARD'!EZ295=\"\",\"\",'[1]MONE(M)CARD'!EZ295)","v":5.8149884738769142},{"$f":"IF('[1]MONE(M)CAPARD'!FC295=\"\",\"\",'[1]MONE(M)CAPARD'!FC295)","v":32659.148222947802},{"$f":"IF('[1]MONE(M)CAPARD'!FG295=\"\",\"\",'[1]MONE(M)CAPARD'!FG295)","v":67590.865149078323},{"$f":"IF('[1]MONE(M)CAPARD'!FL295=\"\",\"\",'[1]MONE(M)CAPARD'!FL295)","v":24455.23708334507},{"$f":"IF('[1]MONE(M)CAPARD'!FO295=\"\",\"\",'[1]MONE(M)CAPARD'!FO295)","v":8.3945608358818813},{"$f":"IF('[1]MONE(M)CAPARD'!FR295=\"\",\"\",'[1]MONE(M)CAPARD'!FR295)","v":7.0767711250494525},{"$f":"IF('[1]MONE(M)CAPARD'!FV295=\"\",\"\",'[1]MONE(M)CAPARD'!FV295)","v":6.8874856281023522},{"$f":"IF('[1]MONE(M)CARD'!FV295=\"\",\"\",'[1]MONE(M)CARD'!FV295)","v":1118.8763205690464},{"$f":"IF('[1]MONE(M)CARD'!GD295=\"\",\"\",'[1]MONE(M)CARD'!GD295)","v":76.432148450322813},{"$f":"IF('[1]MONE(M)CARD'!GE295=\"\",\"\",'[1]MONE(M)CARD'!GE295)","v":8538.7101189911373},{"$f":"IF(AD288=\"\",\"\",((AD288/AD275)-1)*100)","v":28.728252239717776},{"$f":"IF('[9]II.2.Balance OSD-Activos'!J153=\"\",\"\",'[9]II.2.Balance OSD-Activos'!J153)","v":135.64587488221778},{"$f":"IF('[9]II.2.Balance OSD-Activos'!N153=\"\",\"\",'[9]II.2.Balance OSD-Activos'!N153)","v":645.84359514701532},{"$f":"IF('[9]II.2.Balance OSD-Activos'!R153=\"\",\"\",'[9]II.2.Balance OSD-Activos'!R153)","v":37205.485831828337},{"$f":"IF('[9]II.2.Balance OSD-Activos'!S153=\"\",\"\",'[9]II.2.Balance OSD-Activos'!S153)","v":39750.859677829016},37341.131706710556,77737.834979686595,{"$f":"IF(OR(AF288=\"\",AF276=\"\"),\"\",((AF288/AF276)-1)*100)","v":-18.671854606682579},11.828202675527578,37.776694833837631,11.981313167967777,8.5308541845961159,10.287397695824186,{"$f":"IF(OR(AQ288=\"\",AQ287=\"\"),\"\",AQ288-AQ287)","v":-0.12406100025770073},{"$f":"IF('[1]MONE(M)CAPARD'!GS295=\"\",\"\",'[1]MONE(M)CAPARD'!GS295)","v":15308.025127921586},{"$f":"IF('[1]MONE(M)CARD'!HA295=\"\",\"\",'[1]MONE(M)CAPARD'!HA295)","v":9163.3991619011358},{"$f":"IF('[1]MONE(M)CAPARD'!HB295=\"\",\"\",'[1]MONE(M)CAPARD'!HB295)","v":6144.6259660204505},"n.d.",{"$f":"IF('[10]II.2.Balance OSD-Activos'!J153=\"\",\"\",'[10]II.2.Balance OSD-Activos'!J153)","v":1221.1449091422176},{"$f":"IF('[10]II.2.Balance OSD-Activos'!N153=\"\",\"\",'[10]II.2.Balance OSD-Activos'!N153)","v":1082.9637814070154},{"$f":"IF('[10]II.2.Balance OSD-Activos'!R153=\"\",\"\",'[10]II.2.Balance OSD-Activos'!R153)","v":54839.46100335833},{"$f":"IF('[10]II.2.Balance OSD-Activos'!S153=\"\",\"\",'[10]II.2.Balance OSD-Activos'!S153)","v":53996.265378459015},56060.605912500549,111139.83507236658,26.921720625124458,11.016855550941873,25.002445975465704,10.707934990629365,10.057147079034445,10.668650393599055,-0.23854184794660505,{"$f":"IF('[1]MONE(M)CAPARD'!AS295=\"\",\"\",'[1]MONE(M)CAPARD'!AS295)","v":4},{"$f":"IF('[1]MONE(M)CAPARD'!AT295=\"\",\"\",'[1]MONE(M)CAPARD'!AT295)","v":"n.a."},{"$f":"IF('[1]MONE(M)CAPARD'!AU295=\"\",\"\",'[1]MONE(M)CAPARD'!AU295)","v":5},{"$f":"IF('[1]MONE(M)CAPARD'!AV295=\"\",\"\",'[1]MONE(M)CAPARD'!AV295)","v":7},{"$f":"IF('[1]MONE(M)CAPARD'!AW295=\"\",\"\",'[1]MONE(M)CAPARD'!AW295)","v":"n.a."},{"$f":"IF('[1]MONE(M)CAPARD'!AX295=\"\",\"\",'[1]MONE(M)CAPARD'!AX295)","v":6.25},{"$f":"IF('[1]MONE(M)CAPARD'!AY295=\"\",\"\",'[1]MONE(M)CAPARD'!AY295)","v":"n.a."},{"$f":"IF('[1]FISCAL(M)'!$K295=\"\",\"\",'[1]FISCAL(M)'!$K295)","v":-4217.167433608337},{"$f":"IF('[1]FISCAL(M)'!$L295=\"\",\"\",'[1]FISCAL(M)'!$L295)","v":-5424.6928260983377},{"$f":"IF('[1]FISCAL(M)'!$AY295=\"\",\"\",'[1]FISCAL(M)'!$AY295)","v":95256.453238761285},{"$f":"IF('[1]FISCAL(M)'!$BI295=\"\",\"\",'[1]FISCAL(M)'!$BI295)","v":48715.067609390579},{"$f":"IF('[1]FISCAL(M)'!$BS295=\"\",\"\",'[1]FISCAL(M)'!$BS295)","v":46541.385629370707},{"$f":"IF('[1]FISCAL(M)'!$AZ295=\"\",\"\",'[1]FISCAL(M)'!$AZ295)","v":111345.13215118129},{"$f":"IF('[1]FISCAL(M)'!$BJ295=\"\",\"\",'[1]FISCAL(M)'!$BJ295)","v":52466.066976530579},{"$f":"IF('[1]FISCAL(M)'!$BT295=\"\",\"\",'[1]FISCAL(M)'!$BT295)","v":58879.065174650714},{"$f":"IF('[2]MONE(M)'!$AO295=\"\",\"\",'[2]MONE(M)'!$AO295)","v":13137982.485544669},{"$f":"IF('[3]MONE(M)'!$AO295=\"\",\"\",'[3]MONE(M)'!$AO295)","v":9889.0832799718701},{"$f":"IF('[4]MONE(M)'!$AO295=\"\",\"\",'[4]MONE(M)'!$AO295)","v":143795.68885715446},{"$f":"IF('[5]MONE(M)'!$AO295=\"\",\"\",'[5]MONE(M)'!$AO295)","v":204346.24668148829},{"$f":"IF('[6]MONE(M)'!$AO295=\"\",\"\",'[6]MONE(M)'!$AO295)","v":76133.186190912937},{"$f":"IF('[7]MONE(M)'!$AO295=\"\",\"\",'[7]MONE(M)'!$AO295)","v":577769.2080932},{"$f":"IF('[8]MONE(M)'!$AO295=\"\",\"\",'[8]MONE(M)'!$AO295)","v":33947.967127519994},12.248832748387661,7.4624841907608763,12.901375372748024,14.253800763250467,22.480960046968335,15.121675909007969,11.883545944689832,{"$f":"IF('[1]FISCAL(M)'!$K295=\"\",\"\",'[1]FISCAL(M)'!$K295)","v":-4217.167433608337},{"$f":"+'[1]REAL(A)'!$AO$33","v":216939.65375965438},-1.9439357261446084,{"$f":"IF('[1]FISCAL(M)'!$L295=\"\",\"\",'[1]FISCAL(M)'!$L295)","v":-5424.6928260983377},{"$f":"+'[1]REAL(A)'!$AP$33","v":262539.64375965437},-2.0662375968882056,{"$f":"+IF(OR(CT288=\"\",+CU288=\"\",+CV288=\"\"),\"\",(CT288+CU288+CV288))","v":108443.75827396706},{"$f":"'[1]Gráfico REM'!BG289","v":21068.728739768594},{"$f":"'[1]Gráfico REM'!BH289","v":81241.10232769385},{"$f":"'[1]Gráfico REM'!BI289","v":6133.9272065046134},10.996636947215087,12.213726911825473,10.51216284607548,13.35538800358349,{"$f":"+IF(OR(DB288=\"\",+DC288=\"\",+DD288=\"\"),\"\",(DB288+DC288+DD288))","v":163627.50258657706},{"$f":"'[1]Gráfico REM'!BK289","v":23325.432706198593},{"$f":"'[1]Gráfico REM'!BL289","v":115189.06945521384},{"$f":"'[1]Gráfico REM'!BM289","v":25113.00042516461},10.789620682692004,14.170968378768499,10.912823629162972,7.2915423239813926]
[2013,"noviembre","2013-noviembre",{"$f":"IF('[1]REAL IPC(M)'!$AL296=\"\",\"\",+'[1]REAL IPC(M)'!$AL296)","v":4.0874441921591398},{"$f":"IF('[1]REAL IPC(M)'!$BE296=\"\",\"\",+'[1]REAL IPC(M)'!$BE296)","v":4.060192332188306},{"$f":"IF('[1]REAL IPC(M)'!$AM296=\"\",\"\",+'[1]REAL IPC(M)'!$AM296)","v":3.8183454146794027},{"$f":"IF('[1]REAL IPC(M)'!$BI296=\"\",\"\",+'[1]REAL IPC(M)'!$BI296)","v":3.8911639495605277},{"$f":"IF('[1]REAL IMAE(M)'!BJ296=\"\",\"\",'[1]REAL IMAE(M)'!BJ296)","v":4.0351822603781562},{"$f":"IF('[1]REAL IMAE(M)'!BK296=\"\",\"\",'[1]REAL IMAE(M)'!BK296)","v":4.2075740991079247},{"$f":"IF('[1]REAL IMAE(M)'!BN296=\"\",\"\",'[1]REAL IMAE(M)'!BN296)","v":4.8653602327911383},{"$f":"IF('[1]REAL IMAE(M)'!BO296=\"\",\"\",'[1]REAL IMAE(M)'!BO296)","v":4.7532486558882647},{"$f":"IF('[1]EXT RIN(M)'!$K296=\"\",\"\",'[1]EXT RIN(M)'!$K296)","v":24783.645243309606},"",{"$f":"IF('[1]EXT RIN(M)'!$L296=\"\",\"\",'[1]EXT RIN(M)'!$L296)","v":27931.943184259606},"",{"$f":"IF('[1]MONE(M)CARD'!EG296=\"\",\"\",'[1]MONE(M)CARD'!EG296)","v":25968.996551381264},{"$f":"IF('[1]MONE(M)CARD'!EK296=\"\",\"\",'[1]MONE(M)CARD'!EK296)","v":43297.022959527152},{"$f":"IF('[1]MONE(M)CARD'!EP296=\"\",\"\",'[1]MONE(M)CARD'!EP296)","v":24353.612898818348},{"$f":"IF('[1]MONE(M)CARD'!ES296=\"\",\"\",'[1]MONE(M)CARD'!ES296)","v":6.7741797762413736},{"$f":"IF('[1]MONE(M)CARD'!EV296=\"\",\"\",'[1]MONE(M)CARD'!EV296)","v":6.0407878976825646},{"$f":"IF('[1]MONE(M)CARD'!EZ296=\"\",\"\",'[1]MONE(M)CARD'!EZ296)","v":6.0724193749506661},{"$f":"IF('[1]MONE(M)CAPARD'!FC296=\"\",\"\",'[1]MONE(M)CAPARD'!FC296)","v":32312.919156401269},{"$f":"IF('[1]MONE(M)CAPARD'!FG296=\"\",\"\",'[1]MONE(M)CAPARD'!FG296)","v":63877.863619767129},{"$f":"IF('[1]MONE(M)CAPARD'!FL296=\"\",\"\",'[1]MONE(M)CAPARD'!FL296)","v":24353.612898818348},{"$f":"IF('[1]MONE(M)CAPARD'!FO296=\"\",\"\",'[1]MONE(M)CAPARD'!FO296)","v":3.5151995403345238},{"$f":"IF('[1]MONE(M)CAPARD'!FR296=\"\",\"\",'[1]MONE(M)CAPARD'!FR296)","v":1.751395320561544},{"$f":"IF('[1]MONE(M)CAPARD'!FV296=\"\",\"\",'[1]MONE(M)CAPARD'!FV296)","v":2.6127715946968832},{"$f":"IF('[1]MONE(M)CARD'!FV296=\"\",\"\",'[1]MONE(M)CARD'!FV296)","v":1389.8084607167725},{"$f":"IF('[1]MONE(M)CARD'!GD296=\"\",\"\",'[1]MONE(M)CARD'!GD296)","v":118.67257791242997},{"$f":"IF('[1]MONE(M)CARD'!GE296=\"\",\"\",'[1]MONE(M)CARD'!GE296)","v":8293.0654250991829},22.012864410619002,{"$f":"IF('[9]II.2.Balance OSD-Activos'!J154=\"\",\"\",'[9]II.2.Balance OSD-Activos'!J154)","v":140.97061970659439},{"$f":"IF('[9]II.2.Balance OSD-Activos'!N154=\"\",\"\",'[9]II.2.Balance OSD-Activos'!N154)","v":689.64867456231468},{"$f":"IF('[9]II.2.Balance OSD-Activos'!R154=\"\",\"\",'[9]II.2.Balance OSD-Activos'!R154)","v":37799.732826205989},{"$f":"IF('[9]II.2.Balance OSD-Activos'!S154=\"\",\"\",'[9]II.2.Balance OSD-Activos'!S154)","v":40438.14008251232},37940.703445912586,79068.492202987225,-17.43510379147455,12.248255718385392,43.068303391564754,12.398957982299841,9.0993987710306534,10.820648701504499,0.53325100568031303,{"$f":"IF('[1]MONE(M)CAPARD'!GS296=\"\",\"\",'[1]MONE(M)CAPARD'!GS296)","v":15330.166769752075},{"$f":"IF('[1]MONE(M)CARD'!HA296=\"\",\"\",'[1]MONE(M)CAPARD'!HA296)","v":8938.7545319391829},{"$f":"IF('[1]MONE(M)CAPARD'!HB296=\"\",\"\",'[1]MONE(M)CAPARD'!HB296)","v":6391.4122378128923},"n.d.",{"$f":"IF('[10]II.2.Balance OSD-Activos'!J154=\"\",\"\",'[10]II.2.Balance OSD-Activos'!J154)","v":1393.0622591665947},{"$f":"IF('[10]II.2.Balance OSD-Activos'!N154=\"\",\"\",'[10]II.2.Balance OSD-Activos'!N154)","v":1118.0745259423147},{"$f":"IF('[10]II.2.Balance OSD-Activos'!R154=\"\",\"\",'[10]II.2.Balance OSD-Activos'!R154)","v":53032.305964525993},{"$f":"IF('[10]II.2.Balance OSD-Activos'!S154=\"\",\"\",'[10]II.2.Balance OSD-Activos'!S154)","v":52442.147719332323},54425.368223692589,107985.59046896722,42.619976953575822,6.4353732064415636,28.214551693221335,5.7307212391719764,5.6367533618914001,6.2321831825581153,-4.4364672110409398,{"$f":"IF('[1]MONE(M)CAPARD'!AS296=\"\",\"\",'[1]MONE(M)CAPARD'!AS296)","v":4},{"$f":"IF('[1]MONE(M)CAPARD'!AT296=\"\",\"\",'[1]MONE(M)CAPARD'!AT296)","v":"n.a."},{"$f":"IF('[1]MONE(M)CAPARD'!AU296=\"\",\"\",'[1]MONE(M)CAPARD'!AU296)","v":5},{"$f":"IF('[1]MONE(M)CAPARD'!AV296=\"\",\"\",'[1]MONE(M)CAPARD'!AV296)","v":7},{"$f":"IF('[1]MONE(M)CAPARD'!AW296=\"\",\"\",'[1]MONE(M)CAPARD'!AW296)","v":"n.a."},{"$f":"IF('[1]MONE(M)CAPARD'!AX296=\"\",\"\",'[1]MONE(M)CAPARD'!AX296)","v":6.25},{"$f":"IF('[1]MONE(M)CAPARD'!AY296=\"\",\"\",'[1]MONE(M)CAPARD'!AY296)","v":"n.a."},{"$f":"IF('[1]FISCAL(M)'!$K296=\"\",\"\",'[1]FISCAL(M)'!$K296)","v":-5130.6583075468061},{"$f":"IF('[1]FISCAL(M)'!$L296=\"\",\"\",'[1]FISCAL(M)'!$L296)","v":-5910.3525524468077},{"$f":"IF('[1]FISCAL(M)'!$AY296=\"\",\"\",'[1]FISCAL(M)'!$AY296)","v":95504.345873794649},{"$f":"IF('[1]FISCAL(M)'!$BI296=\"\",\"\",'[1]FISCAL(M)'!$BI296)","v":49079.825373913765},{"$f":"IF('[1]FISCAL(M)'!$BS296=\"\",\"\",'[1]FISCAL(M)'!$BS296)","v":46424.520499880891},{"$f":"IF('[1]FISCAL(M)'!$AZ296=\"\",\"\",'[1]FISCAL(M)'!$AZ296)","v":111574.22864791466},{"$f":"IF('[1]FISCAL(M)'!$BJ296=\"\",\"\",'[1]FISCAL(M)'!$BJ296)","v":52928.264137673767},{"$f":"IF('[1]FISCAL(M)'!$BT296=\"\",\"\",'[1]FISCAL(M)'!$BT296)","v":58645.964510240883},{"$f":"IF('[2]MONE(M)'!$AO296=\"\",\"\",'[2]MONE(M)'!$AO296)","v":13339310.96530639},{"$f":"IF('[3]MONE(M)'!$AO296=\"\",\"\",'[3]MONE(M)'!$AO296)","v":10047.106476390138},{"$f":"IF('[4]MONE(M)'!$AO296=\"\",\"\",'[4]MONE(M)'!$AO296)","v":145016.95468086735},{"$f":"IF('[5]MONE(M)'!$AO296=\"\",\"\",'[5]MONE(M)'!$AO296)","v":207119.06191180044},{"$f":"IF('[6]MONE(M)'!$AO296=\"\",\"\",'[6]MONE(M)'!$AO296)","v":78111.581153822539},{"$f":"IF('[7]MONE(M)'!$AO296=\"\",\"\",'[7]MONE(M)'!$AO296)","v":590296.91091129999},{"$f":"IF('[8]MONE(M)'!$AO296=\"\",\"\",'[8]MONE(M)'!$AO296)","v":29382.778042769998},13.208663820386501,8.0714250519637645,11.953187365533546,13.735545684195017,21.874068722022024,15.238444749241165,-4.3446684991081614,{"$f":"IF('[1]FISCAL(M)'!$K296=\"\",\"\",'[1]FISCAL(M)'!$K296)","v":-5130.6583075468061},{"$f":"+'[1]REAL(A)'!$AO$33","v":216939.65375965438},-2.3650163622142681,{"$f":"IF('[1]FISCAL(M)'!$L296=\"\",\"\",'[1]FISCAL(M)'!$L296)","v":-5910.3525524468077},{"$f":"+'[1]REAL(A)'!$AP$33","v":262539.64375965437},-2.2512228887830452,110135.60424923735,{"$f":"'[1]Gráfico REM'!BG290","v":21428.449143084821},{"$f":"'[1]Gráfico REM'!BH290","v":82523.347914069091},{"$f":"'[1]Gráfico REM'!BI290","v":6183.8071920834391},11.920056440574388,14.541144450580124,11.179111852152568,13.009528955932058,159800.67827961736,{"$f":"'[1]Gráfico REM'!BK290","v":23352.810724184819},{"$f":"'[1]Gráfico REM'!BL290","v":111906.1259568391},{"$f":"'[1]Gráfico REM'!BM290","v":24541.741598593442},7.0002027506334441,14.498576671548369,6.6352201582685622,2.2253432964532083]
[2013,"diciembre","2013-diciembre",{"$f":"IF('[1]REAL IPC(M)'!$AL297=\"\",\"\",+'[1]REAL IPC(M)'!$AL297)","v":3.9906738932310004},{"$f":"IF('[1]REAL IPC(M)'!$BE297=\"\",\"\",+'[1]REAL IPC(M)'!$BE297)","v":3.9922806289953483},{"$f":"IF('[1]REAL IPC(M)'!$AM297=\"\",\"\",+'[1]REAL IPC(M)'!$AM297)","v":3.7223724231585598},{"$f":"IF('[1]REAL IPC(M)'!$BI297=\"\",\"\",+'[1]REAL IPC(M)'!$BI297)","v":3.8363197043622677},{"$f":"IF('[1]REAL IMAE(M)'!BJ297=\"\",\"\",'[1]REAL IMAE(M)'!BJ297)","v":4.0086267387747565},{"$f":"IF('[1]REAL IMAE(M)'!BK297=\"\",\"\",'[1]REAL IMAE(M)'!BK297)","v":4.2466909958591481},{"$f":"IF('[1]REAL IMAE(M)'!BN297=\"\",\"\",'[1]REAL IMAE(M)'!BN297)","v":4.5876685581745624},{"$f":"IF('[1]REAL IMAE(M)'!BO297=\"\",\"\",'[1]REAL IMAE(M)'!BO297)","v":4.7585913405985059},{"$f":"IF('[1]EXT RIN(M)'!$K297=\"\",\"\",'[1]EXT RIN(M)'!$K297)","v":26606.603817405314},26606.603817405314,{"$f":"IF('[1]EXT RIN(M)'!$L297=\"\",\"\",'[1]EXT RIN(M)'!$L297)","v":29355.255865725314},29355.255865725314,{"$f":"IF('[1]MONE(M)CARD'!EG297=\"\",\"\",'[1]MONE(M)CARD'!EG297)","v":28025.821009574742},{"$f":"IF('[1]MONE(M)CARD'!EK297=\"\",\"\",'[1]MONE(M)CARD'!EK297)","v":44240.668332584384},{"$f":"IF('[1]MONE(M)CARD'!EP297=\"\",\"\",'[1]MONE(M)CARD'!EP297)","v":24660.321508079927},{"$f":"IF('[1]MONE(M)CARD'!ES297=\"\",\"\",'[1]MONE(M)CARD'!ES297)","v":8.0081983907096301},{"$f":"IF('[1]MONE(M)CARD'!EV297=\"\",\"\",'[1]MONE(M)CARD'!EV297)","v":8.1364860113540374},{"$f":"IF('[1]MONE(M)CARD'!EZ297=\"\",\"\",'[1]MONE(M)CARD'!EZ297)","v":8.1069254315837558},{"$f":"IF('[1]MONE(M)CAPARD'!FC297=\"\",\"\",'[1]MONE(M)CAPARD'!FC297)","v":34372.324235544744},{"$f":"IF('[1]MONE(M)CAPARD'!FG297=\"\",\"\",'[1]MONE(M)CAPARD'!FG297)","v":63702.146056984391},{"$f":"IF('[1]MONE(M)CAPARD'!FL297=\"\",\"\",'[1]MONE(M)CAPARD'!FL297)","v":24660.321508079927},{"$f":"IF('[1]MONE(M)CAPARD'!FO297=\"\",\"\",'[1]MONE(M)CAPARD'!FO297)","v":4.104600428238947},{"$f":"IF('[1]MONE(M)CAPARD'!FR297=\"\",\"\",'[1]MONE(M)CAPARD'!FR297)","v":2.1089716761878652},{"$f":"IF('[1]MONE(M)CAPARD'!FV297=\"\",\"\",'[1]MONE(M)CAPARD'!FV297)","v":3.2441988650655285},{"$f":"IF('[1]MONE(M)CARD'!FV297=\"\",\"\",'[1]MONE(M)CARD'!FV297)","v":811.76493106394366},{"$f":"IF('[1]MONE(M)CARD'!GD297=\"\",\"\",'[1]MONE(M)CARD'!GD297)","v":130.63066137272625},{"$f":"IF('[1]MONE(M)CARD'!GE297=\"\",\"\",'[1]MONE(M)CARD'!GE297)","v":7418.1326463974219},8.4364980328050407,{"$f":"IF('[9]II.2.Balance OSD-Activos'!J155=\"\",\"\",'[9]II.2.Balance OSD-Activos'!J155)","v":136.89522185579179},{"$f":"IF('[9]II.2.Balance OSD-Activos'!N155=\"\",\"\",'[9]II.2.Balance OSD-Activos'!N155)","v":698.26307548474256},{"$f":"IF('[9]II.2.Balance OSD-Activos'!R155=\"\",\"\",'[9]II.2.Balance OSD-Activos'!R155)","v":38385.062626291241},{"$f":"IF('[9]II.2.Balance OSD-Activos'!S155=\"\",\"\",'[9]II.2.Balance OSD-Activos'!S155)","v":40715.849471209411},38521.957848147031,79936.070394841183,-21.869915779674553,11.350904503011282,29.237825759849944,11.520015136120954,10.386108113054915,10.990974537169173,0.17032583566467352,{"$f":"IF('[1]MONE(M)CAPARD'!GS297=\"\",\"\",'[1]MONE(M)CAPARD'!GS297)","v":15128.286191645213},{"$f":"IF('[1]MONE(M)CARD'!HA297=\"\",\"\",'[1]MONE(M)CAPARD'!HA297)","v":8064.1737800374212},{"$f":"IF('[1]MONE(M)CAPARD'!HB297=\"\",\"\",'[1]MONE(M)CAPARD'!HB297)","v":7064.1124116077917},"n.d.",{"$f":"IF('[10]II.2.Balance OSD-Activos'!J155=\"\",\"\",'[10]II.2.Balance OSD-Activos'!J155)","v":1430.0296368257921},{"$f":"IF('[10]II.2.Balance OSD-Activos'!N155=\"\",\"\",'[10]II.2.Balance OSD-Activos'!N155)","v":1120.9899206147425},{"$f":"IF('[10]II.2.Balance OSD-Activos'!R155=\"\",\"\",'[10]II.2.Balance OSD-Activos'!R155)","v":52731.665780031239},{"$f":"IF('[10]II.2.Balance OSD-Activos'!S155=\"\",\"\",'[10]II.2.Balance OSD-Activos'!S155)","v":52079.692224199418},54161.69541685703,107362.37756167119,45.86637542633887,4.983433954648997,22.213667648389436,4.191493091417442,4.9268192470280692,5.1106505616442588,-1.1215326209138565,{"$f":"IF('[1]MONE(M)CAPARD'!AS297=\"\",\"\",'[1]MONE(M)CAPARD'!AS297)","v":3.75},{"$f":"IF('[1]MONE(M)CAPARD'!AT297=\"\",\"\",'[1]MONE(M)CAPARD'!AT297)","v":"n.a."},{"$f":"IF('[1]MONE(M)CAPARD'!AU297=\"\",\"\",'[1]MONE(M)CAPARD'!AU297)","v":5},{"$f":"IF('[1]MONE(M)CAPARD'!AV297=\"\",\"\",'[1]MONE(M)CAPARD'!AV297)","v":7},{"$f":"IF('[1]MONE(M)CAPARD'!AW297=\"\",\"\",'[1]MONE(M)CAPARD'!AW297)","v":"n.a."},{"$f":"IF('[1]MONE(M)CAPARD'!AX297=\"\",\"\",'[1]MONE(M)CAPARD'!AX297)","v":6.25},{"$f":"IF('[1]MONE(M)CAPARD'!AY297=\"\",\"\",'[1]MONE(M)CAPARD'!AY297)","v":"n.a."},{"$f":"IF('[1]FISCAL(M)'!$K297=\"\",\"\",'[1]FISCAL(M)'!$K297)","v":-7773.866390864614},{"$f":"IF('[1]FISCAL(M)'!$L297=\"\",\"\",'[1]FISCAL(M)'!$L297)","v":-7773.8616997446161},{"$f":"IF('[1]FISCAL(M)'!$AY297=\"\",\"\",'[1]FISCAL(M)'!$AY297)","v":97679.999620786126},{"$f":"IF('[1]FISCAL(M)'!$BI297=\"\",\"\",'[1]FISCAL(M)'!$BI297)","v":49245.446258600707},{"$f":"IF('[1]FISCAL(M)'!$BS297=\"\",\"\",'[1]FISCAL(M)'!$BS297)","v":48434.553362185427},{"$f":"IF('[1]FISCAL(M)'!$AZ297=\"\",\"\",'[1]FISCAL(M)'!$AZ297)","v":113498.05456243613},{"$f":"IF('[1]FISCAL(M)'!$BJ297=\"\",\"\",'[1]FISCAL(M)'!$BJ297)","v":52832.340462010703},{"$f":"IF('[1]FISCAL(M)'!$BT297=\"\",\"\",'[1]FISCAL(M)'!$BT297)","v":60665.714100425415},{"$f":"IF('[2]MONE(M)'!$AO297=\"\",\"\",'[2]MONE(M)'!$AO297)","v":13538153.534550857},{"$f":"IF('[3]MONE(M)'!$AO297=\"\",\"\",'[3]MONE(M)'!$AO297)","v":10099.60952161014},{"$f":"IF('[4]MONE(M)'!$AO297=\"\",\"\",'[4]MONE(M)'!$AO297)","v":146330.10747628048},{"$f":"IF('[5]MONE(M)'!$AO297=\"\",\"\",'[5]MONE(M)'!$AO297)","v":209938.36744203139},{"$f":"IF('[6]MONE(M)'!$AO297=\"\",\"\",'[6]MONE(M)'!$AO297)","v":79746.703067121096},{"$f":"IF('[7]MONE(M)'!$AO297=\"\",\"\",'[7]MONE(M)'!$AO297)","v":596921.87667924003},{"$f":"IF('[8]MONE(M)'!$AO297=\"\",\"\",'[8]MONE(M)'!$AO297)","v":27903.680095200001},13.086229132800087,7.946945203386746,10.166199221924632,13.599401069967175,20.247758493291013,15.238610543426368,-8.6862357311441318,{"$f":"IF('[1]FISCAL(M)'!$K297=\"\",\"\",'[1]FISCAL(M)'!$K297)","v":-7773.866390864614},{"$f":"+'[1]REAL(A)'!$AO$33","v":216939.65375965438},-3.5834234341856264,{"$f":"IF('[1]FISCAL(M)'!$L297=\"\",\"\",'[1]FISCAL(M)'!$L297)","v":-7773.8616997446161},{"$f":"+'[1]REAL(A)'!$AP$33","v":262539.64375965437},-2.9610239384880508,110790.46553524546,{"$f":"'[1]Gráfico REM'!BG291","v":21339.910417988875},{"$f":"'[1]Gráfico REM'!BH291","v":83439.171800706856},{"$f":"'[1]Gráfico REM'!BI291","v":6011.3833165497381},11.699435441275586,14.148718212597933,11.42847530946618,7.154173947469622,158709.21681481547,{"$f":"'[1]Gráfico REM'!BK291","v":23293.694321998875},{"$f":"'[1]Gráfico REM'!BL291","v":111342.85189590686},{"$f":"'[1]Gráfico REM'!BM291","v":24072.670596909731},5.2699929207560059,13.813671852115327,5.5989105297815867,-3.1594767890008701]
[2014,"enero","2014-enero",{"$f":"IF('[1]REAL IPC(M)'!$AL298=\"\",\"\",+'[1]REAL IPC(M)'!$AL298)","v":3.8004507645423402},{"$f":"IF('[1]REAL IPC(M)'!$BE298=\"\",\"\",+'[1]REAL IPC(M)'!$BE298)","v":3.9235332229046405},{"$f":"IF('[1]REAL IPC(M)'!$AM298=\"\",\"\",+'[1]REAL IPC(M)'!$AM298)","v":3.9937320708971491},{"$f":"IF('[1]REAL IPC(M)'!$BI298=\"\",\"\",+'[1]REAL IPC(M)'!$BI298)","v":3.7796140949613477},{"$f":"IF('[1]REAL IMAE(M)'!BJ298=\"\",\"\",'[1]REAL IMAE(M)'!BJ298)","v":4.4261165249540602},{"$f":"IF('[1]REAL IMAE(M)'!BK298=\"\",\"\",'[1]REAL IMAE(M)'!BK298)","v":4.2861310715267331},{"$f":"IF('[1]REAL IMAE(M)'!BN298=\"\",\"\",'[1]REAL IMAE(M)'!BN298)","v":4.7007534867735012},{"$f":"IF('[1]REAL IMAE(M)'!BO298=\"\",\"\",'[1]REAL IMAE(M)'!BO298)","v":4.7640017483542518},{"$f":"IF('[1]EXT RIN(M)'!$K298=\"\",\"\",'[1]EXT RIN(M)'!$K298)","v":25728.181331847805},"",{"$f":"IF('[1]EXT RIN(M)'!$L298=\"\",\"\",'[1]EXT RIN(M)'!$L298)","v":28074.358038367805},"",{"$f":"IF('[1]MONE(M)CARD'!EG298=\"\",\"\",'[1]MONE(M)CARD'!EG298)","v":27294.192015971814},{"$f":"IF('[1]MONE(M)CARD'!EK298=\"\",\"\",'[1]MONE(M)CARD'!EK298)","v":44005.038619178755},{"$f":"IF('[1]MONE(M)CARD'!EP298=\"\",\"\",'[1]MONE(M)CARD'!EP298)","v":24821.533055721113},{"$f":"IF('[1]MONE(M)CARD'!ES298=\"\",\"\",'[1]MONE(M)CARD'!ES298)","v":7.5615694410014367},{"$f":"IF('[1]MONE(M)CARD'!EV298=\"\",\"\",'[1]MONE(M)CARD'!EV298)","v":6.6569556833979249},{"$f":"IF('[1]MONE(M)CARD'!EZ298=\"\",\"\",'[1]MONE(M)CARD'!EZ298)","v":6.7207744787079138},{"$f":"IF('[1]MONE(M)CAPARD'!FC298=\"\",\"\",'[1]MONE(M)CAPARD'!FC298)","v":35184.10281092181},{"$f":"IF('[1]MONE(M)CAPARD'!FG298=\"\",\"\",'[1]MONE(M)CAPARD'!FG298)","v":68518.404420588777},{"$f":"IF('[1]MONE(M)CAPARD'!FL298=\"\",\"\",'[1]MONE(M)CAPARD'!FL298)","v":24821.533055721113},{"$f":"IF('[1]MONE(M)CAPARD'!FO298=\"\",\"\",'[1]MONE(M)CAPARD'!FO298)","v":9.0192229575964955},{"$f":"IF('[1]MONE(M)CAPARD'!FR298=\"\",\"\",'[1]MONE(M)CAPARD'!FR298)","v":7.9047326133221629},{"$f":"IF('[1]MONE(M)CAPARD'!FV298=\"\",\"\",'[1]MONE(M)CAPARD'!FV298)","v":7.7101079443159248},{"$f":"IF('[1]MONE(M)CARD'!FV298=\"\",\"\",'[1]MONE(M)CARD'!FV298)","v":1061.3100491058253},{"$f":"IF('[1]MONE(M)CARD'!GD298=\"\",\"\",'[1]MONE(M)CARD'!GD298)","v":90.765663831581321},{"$f":"IF('[1]MONE(M)CARD'!GE298=\"\",\"\",'[1]MONE(M)CARD'!GE298)","v":7965.1558790928166},26.375274867502906,{"$f":"IF('[9]II.2.Balance OSD-Activos'!J156=\"\",\"\",'[9]II.2.Balance OSD-Activos'!J156)","v":140.78946297658496},{"$f":"IF('[9]II.2.Balance OSD-Activos'!N156=\"\",\"\",'[9]II.2.Balance OSD-Activos'!N156)","v":673.92378276242903},{"$f":"IF('[9]II.2.Balance OSD-Activos'!R156=\"\",\"\",'[9]II.2.Balance OSD-Activos'!R156)","v":38107.938142457053},{"$f":"IF('[9]II.2.Balance OSD-Activos'!S156=\"\",\"\",'[9]II.2.Balance OSD-Activos'!S156)","v":40700.548262768381},38248.72760543364,79623.199650964438,-20.416853628300679,9.8248447421261922,18.64952817875556,9.979245884914878,9.539979542242417,9.7480429522129661,-1.2429315849562066,{"$f":"IF('[1]MONE(M)CAPARD'!GS298=\"\",\"\",'[1]MONE(M)CAPARD'!GS298)","v":16057.588288211855},{"$f":"IF('[1]MONE(M)CARD'!HA298=\"\",\"\",'[1]MONE(M)CAPARD'!HA298)","v":8641.4147345928159},{"$f":"IF('[1]MONE(M)CAPARD'!HB298=\"\",\"\",'[1]MONE(M)CAPARD'!HB298)","v":7416.173553619039},"n.d.",{"$f":"IF('[10]II.2.Balance OSD-Activos'!J156=\"\",\"\",'[10]II.2.Balance OSD-Activos'!J156)","v":1479.4701213265848},{"$f":"IF('[10]II.2.Balance OSD-Activos'!N156=\"\",\"\",'[10]II.2.Balance OSD-Activos'!N156)","v":1091.1044500424291},{"$f":"IF('[10]II.2.Balance OSD-Activos'!R156=\"\",\"\",'[10]II.2.Balance OSD-Activos'!R156)","v":55253.809573927057},{"$f":"IF('[10]II.2.Balance OSD-Activos'!S156=\"\",\"\",'[10]II.2.Balance OSD-Activos'!S156)","v":55441.330414818389},56733.279695253645,113265.71456011446,36.256873006563396,9.0583832419691479,16.592141730600972,8.4785883709760377,10.892322559854527,10.017459556863484,4.9068089952192251,{"$f":"IF('[1]MONE(M)CAPARD'!AS298=\"\",\"\",'[1]MONE(M)CAPARD'!AS298)","v":3.75},{"$f":"IF('[1]MONE(M)CAPARD'!AT298=\"\",\"\",'[1]MONE(M)CAPARD'!AT298)","v":"n.a."},{"$f":"IF('[1]MONE(M)CAPARD'!AU298=\"\",\"\",'[1]MONE(M)CAPARD'!AU298)","v":5},{"$f":"IF('[1]MONE(M)CAPARD'!AV298=\"\",\"\",'[1]MONE(M)CAPARD'!AV298)","v":7},{"$f":"IF('[1]MONE(M)CAPARD'!AW298=\"\",\"\",'[1]MONE(M)CAPARD'!AW298)","v":"n.a."},{"$f":"IF('[1]MONE(M)CAPARD'!AX298=\"\",\"\",'[1]MONE(M)CAPARD'!AX298)","v":6.25},{"$f":"IF('[1]MONE(M)CAPARD'!AY298=\"\",\"\",'[1]MONE(M)CAPARD'!AY298)","v":"n.a."},{"$f":"IF('[1]FISCAL(M)'!$K298=\"\",\"\",'[1]FISCAL(M)'!$K298)","v":-21.564626345615721},{"$f":"IF('[1]FISCAL(M)'!$L298=\"\",\"\",'[1]FISCAL(M)'!$L298)","v":-674.96796367561547},{"$f":"IF('[1]FISCAL(M)'!$AY298=\"\",\"\",'[1]FISCAL(M)'!$AY298)","v":98927.035408706404},{"$f":"IF('[1]FISCAL(M)'!$BI298=\"\",\"\",'[1]FISCAL(M)'!$BI298)","v":50775.723162451788},{"$f":"IF('[1]FISCAL(M)'!$BS298=\"\",\"\",'[1]FISCAL(M)'!$BS298)","v":48151.312246254631},{"$f":"IF('[1]FISCAL(M)'!$AZ298=\"\",\"\",'[1]FISCAL(M)'!$AZ298)","v":115333.53412031641},{"$f":"IF('[1]FISCAL(M)'!$BJ298=\"\",\"\",'[1]FISCAL(M)'!$BJ298)","v":54935.321874061789},{"$f":"IF('[1]FISCAL(M)'!$BT298=\"\",\"\",'[1]FISCAL(M)'!$BT298)","v":60398.212246254632},{"$f":"IF('[2]MONE(M)'!$AO298=\"\",\"\",'[2]MONE(M)'!$AO298)","v":13727196.264739892},{"$f":"IF('[3]MONE(M)'!$AO298=\"\",\"\",'[3]MONE(M)'!$AO298)","v":10099.567931480138},{"$f":"IF('[4]MONE(M)'!$AO298=\"\",\"\",'[4]MONE(M)'!$AO298)","v":147022.1477756289},{"$f":"IF('[5]MONE(M)'!$AO298=\"\",\"\",'[5]MONE(M)'!$AO298)","v":211513.8154728839},{"$f":"IF('[6]MONE(M)'!$AO298=\"\",\"\",'[6]MONE(M)'!$AO298)","v":80523.091926747715},{"$f":"IF('[7]MONE(M)'!$AO298=\"\",\"\",'[7]MONE(M)'!$AO298)","v":588151.18693446997},{"$f":"IF('[8]MONE(M)'!$AO298=\"\",\"\",'[8]MONE(M)'!$AO298)","v":34259.550486090011},13.560347534824114,7.6264986567358362,10.817445566034278,13.5271897275816,19.762868220964357,12.104848584044836,10.917251818061136,{"$f":"IF('[1]FISCAL(M)'!$K298=\"\",\"\",'[1]FISCAL(M)'!$K298)","v":-21.564626345615721},{"$f":"+'[1]REAL(A)'!$AO$34","v":229913.75829465021},-9.3794414503803551E-3,{"$f":"IF('[1]FISCAL(M)'!$L298=\"\",\"\",'[1]FISCAL(M)'!$L298)","v":-674.96796367561547},{"$f":"+'[1]REAL(A)'!$AP$34","v":279835.22129465023},-0.24120193324946521,111458.33644022376,{"$f":"'[1]Gráfico REM'!BG292","v":22287.167112893119},{"$f":"'[1]Gráfico REM'!BH292","v":83173.392121497032},{"$f":"'[1]Gráfico REM'!BI292","v":5997.777205833615},10.475419694059473,14.43925343450816,9.9332605254204296,4.1908412005300377,167194.82485188375,{"$f":"'[1]Gráfico REM'!BK292","v":24563.529012323121},{"$f":"'[1]Gráfico REM'!BL292","v":117432.94260758704},{"$f":"'[1]Gráfico REM'!BM292","v":25198.353231973611},8.886416107527161,15.159075937667478,10.218518925801789,-1.8530433197779472]
[2014,"febrero","2014-febrero",{"$f":"IF('[1]REAL IPC(M)'!$AL299=\"\",\"\",+'[1]REAL IPC(M)'!$AL299)","v":3.5645389265590799},{"$f":"IF('[1]REAL IPC(M)'!$BE299=\"\",\"\",+'[1]REAL IPC(M)'!$BE299)","v":3.8540887205313012},{"$f":"IF('[1]REAL IPC(M)'!$AM299=\"\",\"\",+'[1]REAL IPC(M)'!$AM299)","v":3.7685233513953476},{"$f":"IF('[1]REAL IPC(M)'!$BI299=\"\",\"\",+'[1]REAL IPC(M)'!$BI299)","v":3.7210713480748225},{"$f":"IF('[1]REAL IMAE(M)'!BJ299=\"\",\"\",'[1]REAL IMAE(M)'!BJ299)","v":4.7290558189013732},{"$f":"IF('[1]REAL IMAE(M)'!BK299=\"\",\"\",'[1]REAL IMAE(M)'!BK299)","v":4.3255639391228673},{"$f":"IF('[1]REAL IMAE(M)'!BN299=\"\",\"\",'[1]REAL IMAE(M)'!BN299)","v":4.8050982966046929},{"$f":"IF('[1]REAL IMAE(M)'!BO299=\"\",\"\",'[1]REAL IMAE(M)'!BO299)","v":4.7694433590153462},{"$f":"IF('[1]EXT RIN(M)'!$K299=\"\",\"\",'[1]EXT RIN(M)'!$K299)","v":25535.468368069174},"",{"$f":"IF('[1]EXT RIN(M)'!$L299=\"\",\"\",'[1]EXT RIN(M)'!$L299)","v":27676.012536939175},"",{"$f":"IF('[1]MONE(M)CARD'!EG299=\"\",\"\",'[1]MONE(M)CARD'!EG299)","v":26916.055707977379},{"$f":"IF('[1]MONE(M)CARD'!EK299=\"\",\"\",'[1]MONE(M)CARD'!EK299)","v":43900.540368492271},{"$f":"IF('[1]MONE(M)CARD'!EP299=\"\",\"\",'[1]MONE(M)CARD'!EP299)","v":25904.556588086562},{"$f":"IF('[1]MONE(M)CARD'!ES299=\"\",\"\",'[1]MONE(M)CARD'!ES299)","v":6.6542177119471191},{"$f":"IF('[1]MONE(M)CARD'!EV299=\"\",\"\",'[1]MONE(M)CARD'!EV299)","v":5.5303242169671085},{"$f":"IF('[1]MONE(M)CARD'!EZ299=\"\",\"\",'[1]MONE(M)CARD'!EZ299)","v":7.3931270602883847},{"$f":"IF('[1]MONE(M)CAPARD'!FC299=\"\",\"\",'[1]MONE(M)CAPARD'!FC299)","v":34699.83238410738},{"$f":"IF('[1]MONE(M)CAPARD'!FG299=\"\",\"\",'[1]MONE(M)CAPARD'!FG299)","v":68607.139597942296},{"$f":"IF('[1]MONE(M)CAPARD'!FL299=\"\",\"\",'[1]MONE(M)CAPARD'!FL299)","v":25904.556588086576},{"$f":"IF('[1]MONE(M)CAPARD'!FO299=\"\",\"\",'[1]MONE(M)CAPARD'!FO299)","v":7.722487287844948},{"$f":"IF('[1]MONE(M)CAPARD'!FR299=\"\",\"\",'[1]MONE(M)CAPARD'!FR299)","v":7.1015775410155024},{"$f":"IF('[1]MONE(M)CAPARD'!FV299=\"\",\"\",'[1]MONE(M)CAPARD'!FV299)","v":8.2044390957626501},{"$f":"IF('[1]MONE(M)CARD'!FV299=\"\",\"\",'[1]MONE(M)CARD'!FV299)","v":1191.4741341975744},{"$f":"IF('[1]MONE(M)CARD'!GD299=\"\",\"\",'[1]MONE(M)CARD'!GD299)","v":118.25032579418604},{"$f":"IF('[1]MONE(M)CARD'!GE299=\"\",\"\",'[1]MONE(M)CARD'!GE299)","v":7773.9193598430202},13.985119087616926,{"$f":"IF('[9]II.2.Balance OSD-Activos'!J157=\"\",\"\",'[9]II.2.Balance OSD-Activos'!J157)","v":198.29853679335466},{"$f":"IF('[9]II.2.Balance OSD-Activos'!N157=\"\",\"\",'[9]II.2.Balance OSD-Activos'!N157)","v":664.21825100733258},{"$f":"IF('[9]II.2.Balance OSD-Activos'!R157=\"\",\"\",'[9]II.2.Balance OSD-Activos'!R157)","v":37972.823566251056},{"$f":"IF('[9]II.2.Balance OSD-Activos'!S157=\"\",\"\",'[9]II.2.Balance OSD-Activos'!S157)","v":40420.558627951337},38171.122103044414,79255.898982003084,12.53046274634424,9.6886956258634314,22.467298037812888,9.6742322523639235,8.1679741237368653,9.0024622205240323,-0.7455807316889338,{"$f":"IF('[1]MONE(M)CAPARD'!GS299=\"\",\"\",'[1]MONE(M)CAPARD'!GS299)","v":16669.294929076343},{"$f":"IF('[1]MONE(M)CARD'!HA299=\"\",\"\",'[1]MONE(M)CAPARD'!HA299)","v":8461.1591602730223},{"$f":"IF('[1]MONE(M)CAPARD'!HB299=\"\",\"\",'[1]MONE(M)CAPARD'!HB299)","v":8208.1357688033204},"n.d.",{"$f":"IF('[10]II.2.Balance OSD-Activos'!J157=\"\",\"\",'[10]II.2.Balance OSD-Activos'!J157)","v":1542.9016958633545},{"$f":"IF('[10]II.2.Balance OSD-Activos'!N157=\"\",\"\",'[10]II.2.Balance OSD-Activos'!N157)","v":1061.9355628473324},{"$f":"IF('[10]II.2.Balance OSD-Activos'!R157=\"\",\"\",'[10]II.2.Balance OSD-Activos'!R157)","v":55217.557155311064},{"$f":"IF('[10]II.2.Balance OSD-Activos'!S157=\"\",\"\",'[10]II.2.Balance OSD-Activos'!S157)","v":55307.211794891336},56760.458851174415,113129.60620891309,40.622860005636127,8.9798213902784205,13.477710054231551,8.2988838111790031,9.9778393060927506,9.5063880281610622,-0.51107152870242167,{"$f":"IF('[1]MONE(M)CAPARD'!AS299=\"\",\"\",'[1]MONE(M)CAPARD'!AS299)","v":3.75},{"$f":"IF('[1]MONE(M)CAPARD'!AT299=\"\",\"\",'[1]MONE(M)CAPARD'!AT299)","v":"n.a."},{"$f":"IF('[1]MONE(M)CAPARD'!AU299=\"\",\"\",'[1]MONE(M)CAPARD'!AU299)","v":5},{"$f":"IF('[1]MONE(M)CAPARD'!AV299=\"\",\"\",'[1]MONE(M)CAPARD'!AV299)","v":7},{"$f":"IF('[1]MONE(M)CAPARD'!AW299=\"\",\"\",'[1]MONE(M)CAPARD'!AW299)","v":"n.a."},{"$f":"IF('[1]MONE(M)CAPARD'!AX299=\"\",\"\",'[1]MONE(M)CAPARD'!AX299)","v":6.25},{"$f":"IF('[1]MONE(M)CAPARD'!AY299=\"\",\"\",'[1]MONE(M)CAPARD'!AY299)","v":"n.a."},{"$f":"IF('[1]FISCAL(M)'!$K299=\"\",\"\",'[1]FISCAL(M)'!$K299)","v":-827.29768717812476},{"$f":"IF('[1]FISCAL(M)'!$L299=\"\",\"\",'[1]FISCAL(M)'!$L299)","v":-2140.0950394481251},{"$f":"IF('[1]FISCAL(M)'!$AY299=\"\",\"\",'[1]FISCAL(M)'!$AY299)","v":97780.090497491707},{"$f":"IF('[1]FISCAL(M)'!$BI299=\"\",\"\",'[1]FISCAL(M)'!$BI299)","v":49900.014140024039},{"$f":"IF('[1]FISCAL(M)'!$BS299=\"\",\"\",'[1]FISCAL(M)'!$BS299)","v":47880.076357467668},{"$f":"IF('[1]FISCAL(M)'!$AZ299=\"\",\"\",'[1]FISCAL(M)'!$AZ299)","v":114264.29351852171},{"$f":"IF('[1]FISCAL(M)'!$BJ299=\"\",\"\",'[1]FISCAL(M)'!$BJ299)","v":54133.668990794045},{"$f":"IF('[1]FISCAL(M)'!$BT299=\"\",\"\",'[1]FISCAL(M)'!$BT299)","v":60130.624527727668},{"$f":"IF('[2]MONE(M)'!$AO299=\"\",\"\",'[2]MONE(M)'!$AO299)","v":14254049.135117486},{"$f":"IF('[3]MONE(M)'!$AO299=\"\",\"\",'[3]MONE(M)'!$AO299)","v":10125.365235679999},{"$f":"IF('[4]MONE(M)'!$AO299=\"\",\"\",'[4]MONE(M)'!$AO299)","v":147297.44250965086},{"$f":"IF('[5]MONE(M)'!$AO299=\"\",\"\",'[5]MONE(M)'!$AO299)","v":213032.95185034373},{"$f":"IF('[6]MONE(M)'!$AO299=\"\",\"\",'[6]MONE(M)'!$AO299)","v":81892.844077341986},{"$f":"IF('[7]MONE(M)'!$AO299=\"\",\"\",'[7]MONE(M)'!$AO299)","v":591011.25803496013},{"$f":"IF('[8]MONE(M)'!$AO299=\"\",\"\",'[8]MONE(M)'!$AO299)","v":34519.436487220002},16.916526704494128,7.5105083306802989,10.418699503741834,13.774664959385397,21.50804531009738,12.232219145772749,11.149579926724385,{"$f":"IF('[1]FISCAL(M)'!$K299=\"\",\"\",'[1]FISCAL(M)'!$K299)","v":-827.29768717812476},{"$f":"+'[1]REAL(A)'!$AO$34","v":229913.75829465021},-0.35982956971104191,{"$f":"IF('[1]FISCAL(M)'!$L299=\"\",\"\",'[1]FISCAL(M)'!$L299)","v":-2140.0950394481251},{"$f":"+'[1]REAL(A)'!$AP$34","v":279835.22129465023},-0.76476972039010394,111719.15637876501,{"$f":"'[1]Gráfico REM'!BG293","v":22864.468016874333},{"$f":"'[1]Gráfico REM'!BH293","v":82815.49499372518},{"$f":"'[1]Gráfico REM'!BI293","v":6039.1933681654937},9.397161128954723,12.662200547040703,8.9591057624552874,3.7342689558918396,167629.859305575,{"$f":"'[1]Gráfico REM'!BK293","v":25137.330620224333},{"$f":"'[1]Gráfico REM'!BL293","v":117334.93148094518},{"$f":"'[1]Gráfico REM'!BM293","v":25157.597204405494},7.1748665121068811,13.140254266374018,9.5945179104432796,-7.2605671600784021]
[2014,"marzo","2014-marzo",{"$f":"IF('[1]REAL IPC(M)'!$AL300=\"\",\"\",+'[1]REAL IPC(M)'!$AL300)","v":3.6743084217367494},{"$f":"IF('[1]REAL IPC(M)'!$BE300=\"\",\"\",+'[1]REAL IPC(M)'!$BE300)","v":3.7840748521980272},{"$f":"IF('[1]REAL IPC(M)'!$AM300=\"\",\"\",+'[1]REAL IPC(M)'!$AM300)","v":3.8740606139284317},{"$f":"IF('[1]REAL IPC(M)'!$BI300=\"\",\"\",+'[1]REAL IPC(M)'!$BI300)","v":3.660725072294313},{"$f":"IF('[1]REAL IMAE(M)'!BJ300=\"\",\"\",'[1]REAL IMAE(M)'!BJ300)","v":4.8624161084261264},{"$f":"IF('[1]REAL IMAE(M)'!BK300=\"\",\"\",'[1]REAL IMAE(M)'!BK300)","v":4.3646715875115483},{"$f":"IF('[1]REAL IMAE(M)'!BN300=\"\",\"\",'[1]REAL IMAE(M)'!BN300)","v":4.82268260883012},{"$f":"IF('[1]REAL IMAE(M)'!BO300=\"\",\"\",'[1]REAL IMAE(M)'!BO300)","v":4.7748753914812481},{"$f":"IF('[1]EXT RIN(M)'!$K300=\"\",\"\",'[1]EXT RIN(M)'!$K300)","v":25210.261352867295},"",{"$f":"IF('[1]EXT RIN(M)'!$L300=\"\",\"\",'[1]EXT RIN(M)'!$L300)","v":27280.285508717294},"",{"$f":"IF('[1]MONE(M)CARD'!EG300=\"\",\"\",'[1]MONE(M)CARD'!EG300)","v":26963.324201168663},{"$f":"IF('[1]MONE(M)CARD'!EK300=\"\",\"\",'[1]MONE(M)CARD'!EK300)","v":44456.036703564736},{"$f":"IF('[1]MONE(M)CARD'!EP300=\"\",\"\",'[1]MONE(M)CARD'!EP300)","v":26130.845069991832},{"$f":"IF('[1]MONE(M)CARD'!ES300=\"\",\"\",'[1]MONE(M)CARD'!ES300)","v":3.6954174642868987},{"$f":"IF('[1]MONE(M)CARD'!EV300=\"\",\"\",'[1]MONE(M)CARD'!EV300)","v":5.2408467678536352},{"$f":"IF('[1]MONE(M)CARD'!EZ300=\"\",\"\",'[1]MONE(M)CARD'!EZ300)","v":6.8544699482282478},{"$f":"IF('[1]MONE(M)CAPARD'!FC300=\"\",\"\",'[1]MONE(M)CAPARD'!FC300)","v":34907.968705048668},{"$f":"IF('[1]MONE(M)CAPARD'!FG300=\"\",\"\",'[1]MONE(M)CAPARD'!FG300)","v":69279.884117974754},{"$f":"IF('[1]MONE(M)CAPARD'!FL300=\"\",\"\",'[1]MONE(M)CAPARD'!FL300)","v":26130.845069991847},{"$f":"IF('[1]MONE(M)CAPARD'!FO300=\"\",\"\",'[1]MONE(M)CAPARD'!FO300)","v":6.0733363907126581},{"$f":"IF('[1]MONE(M)CAPARD'!FR300=\"\",\"\",'[1]MONE(M)CAPARD'!FR300)","v":7.0524191424539362},{"$f":"IF('[1]MONE(M)CAPARD'!FV300=\"\",\"\",'[1]MONE(M)CAPARD'!FV300)","v":7.9208548007003721},{"$f":"IF('[1]MONE(M)CARD'!FV300=\"\",\"\",'[1]MONE(M)CARD'!FV300)","v":1172.3222817073661},{"$f":"IF('[1]MONE(M)CARD'!GD300=\"\",\"\",'[1]MONE(M)CARD'!GD300)","v":104.9122525315093},{"$f":"IF('[1]MONE(M)CARD'!GE300=\"\",\"\",'[1]MONE(M)CARD'!GE300)","v":7901.28908425605},16.127494736664438,{"$f":"IF('[9]II.2.Balance OSD-Activos'!J158=\"\",\"\",'[9]II.2.Balance OSD-Activos'!J158)","v":201.50162351251163},{"$f":"IF('[9]II.2.Balance OSD-Activos'!N158=\"\",\"\",'[9]II.2.Balance OSD-Activos'!N158)","v":814.18976833475926},{"$f":"IF('[9]II.2.Balance OSD-Activos'!R158=\"\",\"\",'[9]II.2.Balance OSD-Activos'!R158)","v":38561.739694963297},{"$f":"IF('[9]II.2.Balance OSD-Activos'!S158=\"\",\"\",'[9]II.2.Balance OSD-Activos'!S158)","v":40729.761840298357},38763.241318475812,80307.192927108932,9.8218435629102263,10.86436175532819,45.166154648979663,10.869861345761711,8.0136983488855904,9.6592565667767296,0.65679434625269728,{"$f":"IF('[1]MONE(M)CAPARD'!GS300=\"\",\"\",'[1]MONE(M)CAPARD'!GS300)","v":16504.147174739959},{"$f":"IF('[1]MONE(M)CARD'!HA300=\"\",\"\",'[1]MONE(M)CAPARD'!HA300)","v":8587.5244614860476},{"$f":"IF('[1]MONE(M)CAPARD'!HB300=\"\",\"\",'[1]MONE(M)CAPARD'!HB300)","v":7916.6227132539116},"n.d.",{"$f":"IF('[10]II.2.Balance OSD-Activos'!J158=\"\",\"\",'[10]II.2.Balance OSD-Activos'!J158)","v":1551.0715239825117},{"$f":"IF('[10]II.2.Balance OSD-Activos'!N158=\"\",\"\",'[10]II.2.Balance OSD-Activos'!N158)","v":1280.9638244747593},{"$f":"IF('[10]II.2.Balance OSD-Activos'!R158=\"\",\"\",'[10]II.2.Balance OSD-Activos'!R158)","v":55979.35022470331},{"$f":"IF('[10]II.2.Balance OSD-Activos'!S158=\"\",\"\",'[10]II.2.Balance OSD-Activos'!S158)","v":55760.224406298359},57530.421748685825,114571.60997945894,39.160601569045973,9.6932074142039184,32.87055653176094,9.053371661616394,9.8842222945286107,10.000801340588295,0.4944133124272323,{"$f":"IF('[1]MONE(M)CAPARD'!AS300=\"\",\"\",'[1]MONE(M)CAPARD'!AS300)","v":4.75},{"$f":"IF('[1]MONE(M)CAPARD'!AT300=\"\",\"\",'[1]MONE(M)CAPARD'!AT300)","v":"n.a."},{"$f":"IF('[1]MONE(M)CAPARD'!AU300=\"\",\"\",'[1]MONE(M)CAPARD'!AU300)","v":4.75},{"$f":"IF('[1]MONE(M)CAPARD'!AV300=\"\",\"\",'[1]MONE(M)CAPARD'!AV300)","v":7},{"$f":"IF('[1]MONE(M)CAPARD'!AW300=\"\",\"\",'[1]MONE(M)CAPARD'!AW300)","v":"n.a."},{"$f":"IF('[1]MONE(M)CAPARD'!AX300=\"\",\"\",'[1]MONE(M)CAPARD'!AX300)","v":6.25},{"$f":"IF('[1]MONE(M)CAPARD'!AY300=\"\",\"\",'[1]MONE(M)CAPARD'!AY300)","v":"n.a."},{"$f":"IF('[1]FISCAL(M)'!$K300=\"\",\"\",'[1]FISCAL(M)'!$K300)","v":-1211.4748762599734},{"$f":"IF('[1]FISCAL(M)'!$L300=\"\",\"\",'[1]FISCAL(M)'!$L300)","v":-2085.4972056699739},{"$f":"IF('[1]FISCAL(M)'!$AY300=\"\",\"\",'[1]FISCAL(M)'!$AY300)","v":97775.615782706518},{"$f":"IF('[1]FISCAL(M)'!$BI300=\"\",\"\",'[1]FISCAL(M)'!$BI300)","v":50171.826603492482},{"$f":"IF('[1]FISCAL(M)'!$BS300=\"\",\"\",'[1]FISCAL(M)'!$BS300)","v":47603.789179214029},{"$f":"IF('[1]FISCAL(M)'!$AZ300=\"\",\"\",'[1]FISCAL(M)'!$AZ300)","v":114838.24594150651},{"$f":"IF('[1]FISCAL(M)'!$BJ300=\"\",\"\",'[1]FISCAL(M)'!$BJ300)","v":54545.013717932488},{"$f":"IF('[1]FISCAL(M)'!$BT300=\"\",\"\",'[1]FISCAL(M)'!$BT300)","v":60293.232223574028},{"$f":"IF('[2]MONE(M)'!$AO300=\"\",\"\",'[2]MONE(M)'!$AO300)","v":14478762.989196807},{"$f":"IF('[3]MONE(M)'!$AO300=\"\",\"\",'[3]MONE(M)'!$AO300)","v":10233.885674100136},{"$f":"IF('[4]MONE(M)'!$AO300=\"\",\"\",'[4]MONE(M)'!$AO300)","v":148106.67709001634},{"$f":"IF('[5]MONE(M)'!$AO300=\"\",\"\",'[5]MONE(M)'!$AO300)","v":214688.2906736632},{"$f":"IF('[6]MONE(M)'!$AO300=\"\",\"\",'[6]MONE(M)'!$AO300)","v":82746.862427795611},{"$f":"IF('[7]MONE(M)'!$AO300=\"\",\"\",'[7]MONE(M)'!$AO300)","v":598363.47290146002},{"$f":"IF('[8]MONE(M)'!$AO300=\"\",\"\",'[8]MONE(M)'!$AO300)","v":34936.032857100006},18.457448266827448,8.2395672172887338,10.536280308526313,13.426222144065637,19.868610788388153,13.535265897415361,11.335766930985635,{"$f":"IF('[1]FISCAL(M)'!$K300=\"\",\"\",'[1]FISCAL(M)'!$K300)","v":-1211.4748762599734},{"$f":"+'[1]REAL(A)'!$AO$34","v":229913.75829465021},-0.52692578523612554,{"$f":"IF('[1]FISCAL(M)'!$L300=\"\",\"\",'[1]FISCAL(M)'!$L300)","v":-2085.4972056699739},{"$f":"+'[1]REAL(A)'!$AP$34","v":279835.22129465023},-0.74525901207913592,113080.35684994624,{"$f":"'[1]Gráfico REM'!BG294","v":23111.266218934106},{"$f":"'[1]Gráfico REM'!BH294","v":83771.08229714309},{"$f":"'[1]Gráfico REM'!BI294","v":6198.008333869052},9.8431658522158294,12.161752878310384,9.4425200181673006,6.892608322951177,169272.09331778626,{"$f":"'[1]Gráfico REM'!BK294","v":25019.894012184108},{"$f":"'[1]Gráfico REM'!BL294","v":118707.1151542431},{"$f":"'[1]Gráfico REM'!BM294","v":25545.084151359053},7.1182873825817561,12.048317266524734,9.9929909625773981,-8.0170108588838769]
[2014,"abril","2014-abril",{"$f":"IF('[1]REAL IPC(M)'!$AL301=\"\",\"\",+'[1]REAL IPC(M)'!$AL301)","v":3.9639059360994322},{"$f":"IF('[1]REAL IPC(M)'!$BE301=\"\",\"\",+'[1]REAL IPC(M)'!$BE301)","v":3.7136011296696303},{"$f":"IF('[1]REAL IPC(M)'!$AM301=\"\",\"\",+'[1]REAL IPC(M)'!$AM301)","v":4.157138287462514},{"$f":"IF('[1]REAL IPC(M)'!$BI301=\"\",\"\",+'[1]REAL IPC(M)'!$BI301)","v":3.5986151773856445},{"$f":"IF('[1]REAL IMAE(M)'!BJ301=\"\",\"\",'[1]REAL IMAE(M)'!BJ301)","v":4.9814784842707072},{"$f":"IF('[1]REAL IMAE(M)'!BK301=\"\",\"\",'[1]REAL IMAE(M)'!BK301)","v":4.403164247728153},{"$f":"IF('[1]REAL IMAE(M)'!BN301=\"\",\"\",'[1]REAL IMAE(M)'!BN301)","v":4.8627270132652889},{"$f":"IF('[1]REAL IMAE(M)'!BO301=\"\",\"\",'[1]REAL IMAE(M)'!BO301)","v":4.7802600042468946},{"$f":"IF('[1]EXT RIN(M)'!$K301=\"\",\"\",'[1]EXT RIN(M)'!$K301)","v":28071.08602368832},"",{"$f":"IF('[1]EXT RIN(M)'!$L301=\"\",\"\",'[1]EXT RIN(M)'!$L301)","v":30329.396696888318},"",{"$f":"IF('[1]MONE(M)CARD'!EG301=\"\",\"\",'[1]MONE(M)CARD'!EG301)","v":27010.896664314248},{"$f":"IF('[1]MONE(M)CARD'!EK301=\"\",\"\",'[1]MONE(M)CARD'!EK301)","v":44673.430601861692},{"$f":"IF('[1]MONE(M)CARD'!EP301=\"\",\"\",'[1]MONE(M)CARD'!EP301)","v":26047.528649531436},{"$f":"IF('[1]MONE(M)CARD'!ES301=\"\",\"\",'[1]MONE(M)CARD'!ES301)","v":7.592780765523921},{"$f":"IF('[1]MONE(M)CARD'!EV301=\"\",\"\",'[1]MONE(M)CARD'!EV301)","v":6.160152272236763},{"$f":"IF('[1]MONE(M)CARD'!EZ301=\"\",\"\",'[1]MONE(M)CARD'!EZ301)","v":6.5601197593123439},{"$f":"IF('[1]MONE(M)CAPARD'!FC301=\"\",\"\",'[1]MONE(M)CAPARD'!FC301)","v":35051.950765294248},{"$f":"IF('[1]MONE(M)CAPARD'!FG301=\"\",\"\",'[1]MONE(M)CAPARD'!FG301)","v":69586.299569161696},{"$f":"IF('[1]MONE(M)CAPARD'!FL301=\"\",\"\",'[1]MONE(M)CAPARD'!FL301)","v":26047.528649531436},{"$f":"IF('[1]MONE(M)CAPARD'!FO301=\"\",\"\",'[1]MONE(M)CAPARD'!FO301)","v":8.4233666678983568},{"$f":"IF('[1]MONE(M)CAPARD'!FR301=\"\",\"\",'[1]MONE(M)CAPARD'!FR301)","v":7.4371700509889838},{"$f":"IF('[1]MONE(M)CAPARD'!FV301=\"\",\"\",'[1]MONE(M)CAPARD'!FV301)","v":7.484802260903467},{"$f":"IF('[1]MONE(M)CARD'!FV301=\"\",\"\",'[1]MONE(M)CARD'!FV301)","v":1125.676689155101},{"$f":"IF('[1]MONE(M)CARD'!GD301=\"\",\"\",'[1]MONE(M)CARD'!GD301)","v":209.70259922380657},{"$f":"IF('[1]MONE(M)CARD'!GE301=\"\",\"\",'[1]MONE(M)CARD'!GE301)","v":8495.7277634618076},15.972345105497254,{"$f":"IF('[9]II.2.Balance OSD-Activos'!J159=\"\",\"\",'[9]II.2.Balance OSD-Activos'!J159)","v":224.33755827634943},{"$f":"IF('[9]II.2.Balance OSD-Activos'!N159=\"\",\"\",'[9]II.2.Balance OSD-Activos'!N159)","v":735.72703421554229},{"$f":"IF('[9]II.2.Balance OSD-Activos'!R159=\"\",\"\",'[9]II.2.Balance OSD-Activos'!R159)","v":38949.020814017516},{"$f":"IF('[9]II.2.Balance OSD-Activos'!S159=\"\",\"\",'[9]II.2.Balance OSD-Activos'!S159)","v":41040.569496727752},39173.358372293864,80949.654903237155,30.841001094241371,11.750231474781071,27.111481585157815,11.656395660380813,8.0274806118374009,9.9500134199364645,0.29075685315973487,{"$f":"IF('[1]MONE(M)CAPARD'!GS301=\"\",\"\",'[1]MONE(M)CAPARD'!GS301)","v":16290.948466831496},{"$f":"IF('[1]MONE(M)CARD'!HA301=\"\",\"\",'[1]MONE(M)CAPARD'!HA301)","v":9244.3835889118072},{"$f":"IF('[1]MONE(M)CAPARD'!HB301=\"\",\"\",'[1]MONE(M)CAPARD'!HB301)","v":7046.564877919689},"n.d.",{"$f":"IF('[10]II.2.Balance OSD-Activos'!J159=\"\",\"\",'[10]II.2.Balance OSD-Activos'!J159)","v":1576.4448200463494},{"$f":"IF('[10]II.2.Balance OSD-Activos'!N159=\"\",\"\",'[10]II.2.Balance OSD-Activos'!N159)","v":1200.2688569255422},{"$f":"IF('[10]II.2.Balance OSD-Activos'!R159=\"\",\"\",'[10]II.2.Balance OSD-Activos'!R159)","v":56655.72744233752},{"$f":"IF('[10]II.2.Balance OSD-Activos'!S159=\"\",\"\",'[10]II.2.Balance OSD-Activos'!S159)","v":56205.922633097754},58232.172262383872,115638.36375240717,43.213827457209078,10.474310835159372,26.63011814996732,9.7760305382109216,9.6246039241042691,10.20506320975494,0.20426186916664513,{"$f":"IF('[1]MONE(M)CAPARD'!AS301=\"\",\"\",'[1]MONE(M)CAPARD'!AS301)","v":4.75},{"$f":"IF('[1]MONE(M)CAPARD'!AT301=\"\",\"\",'[1]MONE(M)CAPARD'!AT301)","v":"n.a."},{"$f":"IF('[1]MONE(M)CAPARD'!AU301=\"\",\"\",'[1]MONE(M)CAPARD'!AU301)","v":4.75},{"$f":"IF('[1]MONE(M)CAPARD'!AV301=\"\",\"\",'[1]MONE(M)CAPARD'!AV301)","v":7},{"$f":"IF('[1]MONE(M)CAPARD'!AW301=\"\",\"\",'[1]MONE(M)CAPARD'!AW301)","v":"n.a."},{"$f":"IF('[1]MONE(M)CAPARD'!AX301=\"\",\"\",'[1]MONE(M)CAPARD'!AX301)","v":6.25},{"$f":"IF('[1]MONE(M)CAPARD'!AY301=\"\",\"\",'[1]MONE(M)CAPARD'!AY301)","v":"n.a."},{"$f":"IF('[1]FISCAL(M)'!$K301=\"\",\"\",'[1]FISCAL(M)'!$K301)","v":-714.07241334426431},{"$f":"IF('[1]FISCAL(M)'!$L301=\"\",\"\",'[1]FISCAL(M)'!$L301)","v":-1143.2691982842648},{"$f":"IF('[1]FISCAL(M)'!$AY301=\"\",\"\",'[1]FISCAL(M)'!$AY301)","v":100487.11255475224},{"$f":"IF('[1]FISCAL(M)'!$BI301=\"\",\"\",'[1]FISCAL(M)'!$BI301)","v":50610.343663598142},{"$f":"IF('[1]FISCAL(M)'!$BS301=\"\",\"\",'[1]FISCAL(M)'!$BS301)","v":49876.768891154104},{"$f":"IF('[1]FISCAL(M)'!$AZ301=\"\",\"\",'[1]FISCAL(M)'!$AZ301)","v":117890.97563021226},{"$f":"IF('[1]FISCAL(M)'!$BJ301=\"\",\"\",'[1]FISCAL(M)'!$BJ301)","v":54877.45433676814},{"$f":"IF('[1]FISCAL(M)'!$BT301=\"\",\"\",'[1]FISCAL(M)'!$BT301)","v":63013.521293444108},{"$f":"IF('[2]MONE(M)'!$AO301=\"\",\"\",'[2]MONE(M)'!$AO301)","v":14605659.578297993},{"$f":"IF('[3]MONE(M)'!$AO301=\"\",\"\",'[3]MONE(M)'!$AO301)","v":10310.822410580138},{"$f":"IF('[4]MONE(M)'!$AO301=\"\",\"\",'[4]MONE(M)'!$AO301)","v":150020.83559005026},{"$f":"IF('[5]MONE(M)'!$AO301=\"\",\"\",'[5]MONE(M)'!$AO301)","v":216342.49184802434},{"$f":"IF('[6]MONE(M)'!$AO301=\"\",\"\",'[6]MONE(M)'!$AO301)","v":84268.816125169935},{"$f":"IF('[7]MONE(M)'!$AO301=\"\",\"\",'[7]MONE(M)'!$AO301)","v":604285.18331176997},{"$f":"IF('[8]MONE(M)'!$AO301=\"\",\"\",'[8]MONE(M)'!$AO301)","v":35353.083501710011},18.532813296251582,8.7584087997966584,10.753875706339301,13.897785791389673,21.170150134620492,14.077410651755006,11.085122456640949,{"$f":"IF('[1]FISCAL(M)'!$K301=\"\",\"\",'[1]FISCAL(M)'!$K301)","v":-714.07241334426431},{"$f":"+'[1]REAL(A)'!$AO$34","v":229913.75829465021},-0.3105827239921552,{"$f":"IF('[1]FISCAL(M)'!$L301=\"\",\"\",'[1]FISCAL(M)'!$L301)","v":-1143.2691982842648},{"$f":"+'[1]REAL(A)'!$AP$34","v":279835.22129465023},-0.4085508582497086,113612.8384080081,{"$f":"'[1]Gráfico REM'!BG295","v":23067.485421742309},{"$f":"'[1]Gráfico REM'!BH295","v":84410.167213483452},{"$f":"'[1]Gráfico REM'!BI295","v":6135.185772782339},9.0749203695053904,7.4124595710688412,9.6552644727030632,7.5029501678237409,170527.61259809812,{"$f":"'[1]Gráfico REM'!BK295","v":24825.209806532308},{"$f":"'[1]Gráfico REM'!BL295","v":119763.25071519346},{"$f":"'[1]Gráfico REM'!BM295","v":25939.152076372338},6.8921072339174438,6.1769484281969822,10.073502498497234,-5.1533104672612069]
[2014,"mayo ","2014-mayo ",{"$f":"IF('[1]REAL IPC(M)'!$AL302=\"\",\"\",+'[1]REAL IPC(M)'!$AL302)","v":4.1913476711870068},{"$f":"IF('[1]REAL IPC(M)'!$BE302=\"\",\"\",+'[1]REAL IPC(M)'!$BE302)","v":3.642768572604882},{"$f":"IF('[1]REAL IPC(M)'!$AM302=\"\",\"\",+'[1]REAL IPC(M)'!$AM302)","v":4.358748230374343},{"$f":"IF('[1]REAL IPC(M)'!$BI302=\"\",\"\",+'[1]REAL IPC(M)'!$BI302)","v":3.5347951230233488},{"$f":"IF('[1]REAL IMAE(M)'!BJ302=\"\",\"\",'[1]REAL IMAE(M)'!BJ302)","v":4.9253791802283731},{"$f":"IF('[1]REAL IMAE(M)'!BK302=\"\",\"\",'[1]REAL IMAE(M)'!BK302)","v":4.4407861019627903},{"$f":"IF('[1]REAL IMAE(M)'!BN302=\"\",\"\",'[1]REAL IMAE(M)'!BN302)","v":4.7891402139488948},{"$f":"IF('[1]REAL IMAE(M)'!BO302=\"\",\"\",'[1]REAL IMAE(M)'!BO302)","v":4.7855632344283361},{"$f":"IF('[1]EXT RIN(M)'!$K302=\"\",\"\",'[1]EXT RIN(M)'!$K302)","v":27436.538089245314},"",{"$f":"IF('[1]EXT RIN(M)'!$L302=\"\",\"\",'[1]EXT RIN(M)'!$L302)","v":29684.044255625315},"",{"$f":"IF('[1]MONE(M)CARD'!EG302=\"\",\"\",'[1]MONE(M)CARD'!EG302)","v":26472.962573802659},{"$f":"IF('[1]MONE(M)CARD'!EK302=\"\",\"\",'[1]MONE(M)CARD'!EK302)","v":45089.643807185996},{"$f":"IF('[1]MONE(M)CARD'!EP302=\"\",\"\",'[1]MONE(M)CARD'!EP302)","v":26081.078188537693},{"$f":"IF('[1]MONE(M)CARD'!ES302=\"\",\"\",'[1]MONE(M)CARD'!ES302)","v":5.2885734832060827},{"$f":"IF('[1]MONE(M)CARD'!EV302=\"\",\"\",'[1]MONE(M)CARD'!EV302)","v":5.1973060808955918},{"$f":"IF('[1]MONE(M)CARD'!EZ302=\"\",\"\",'[1]MONE(M)CARD'!EZ302)","v":5.2402282096301489},{"$f":"IF('[1]MONE(M)CAPARD'!FC302=\"\",\"\",'[1]MONE(M)CAPARD'!FC302)","v":34418.488657672657},{"$f":"IF('[1]MONE(M)CAPARD'!FG302=\"\",\"\",'[1]MONE(M)CAPARD'!FG302)","v":70370.547691955988},{"$f":"IF('[1]MONE(M)CAPARD'!FL302=\"\",\"\",'[1]MONE(M)CAPARD'!FL302)","v":26081.078188537693},{"$f":"IF('[1]MONE(M)CAPARD'!FO302=\"\",\"\",'[1]MONE(M)CAPARD'!FO302)","v":6.7947215349392298},{"$f":"IF('[1]MONE(M)CAPARD'!FR302=\"\",\"\",'[1]MONE(M)CAPARD'!FR302)","v":6.7300029570988684},{"$f":"IF('[1]MONE(M)CAPARD'!FV302=\"\",\"\",'[1]MONE(M)CAPARD'!FV302)","v":6.4537697876608346},{"$f":"IF('[1]MONE(M)CARD'!FV302=\"\",\"\",'[1]MONE(M)CARD'!FV302)","v":1090.946176892056},{"$f":"IF('[1]MONE(M)CARD'!GD302=\"\",\"\",'[1]MONE(M)CARD'!GD302)","v":82.532542158741222},{"$f":"IF('[1]MONE(M)CARD'!GE302=\"\",\"\",'[1]MONE(M)CARD'!GE302)","v":7895.3038029614472},-8.8722223878111137,{"$f":"IF('[9]II.2.Balance OSD-Activos'!J160=\"\",\"\",'[9]II.2.Balance OSD-Activos'!J160)","v":218.280449815076},{"$f":"IF('[9]II.2.Balance OSD-Activos'!N160=\"\",\"\",'[9]II.2.Balance OSD-Activos'!N160)","v":765.17701291830906},{"$f":"IF('[9]II.2.Balance OSD-Activos'!R160=\"\",\"\",'[9]II.2.Balance OSD-Activos'!R160)","v":39045.745895406086},{"$f":"IF('[9]II.2.Balance OSD-Activos'!S160=\"\",\"\",'[9]II.2.Balance OSD-Activos'!S160)","v":41263.189166410884},39264.026345221158,81292.392524550349,25.911858009671775,11.460266079421855,37.960435975655791,11.388794779907375,7.6733752984376791,9.7002369151201187,-0.24977650481634583,{"$f":"IF('[1]MONE(M)CAPARD'!GS302=\"\",\"\",'[1]MONE(M)CAPARD'!GS302)","v":15868.289791497116},{"$f":"IF('[1]MONE(M)CARD'!HA302=\"\",\"\",'[1]MONE(M)CAPARD'!HA302)","v":8647.6328050714455},{"$f":"IF('[1]MONE(M)CAPARD'!HB302=\"\",\"\",'[1]MONE(M)CAPARD'!HB302)","v":7220.6569864256708},"n.d.",{"$f":"IF('[10]II.2.Balance OSD-Activos'!J160=\"\",\"\",'[10]II.2.Balance OSD-Activos'!J160)","v":1571.5948347950764},{"$f":"IF('[10]II.2.Balance OSD-Activos'!N160=\"\",\"\",'[10]II.2.Balance OSD-Activos'!N160)","v":1224.4417515983091},{"$f":"IF('[10]II.2.Balance OSD-Activos'!R160=\"\",\"\",'[10]II.2.Balance OSD-Activos'!R160)","v":56998.34241213608},{"$f":"IF('[10]II.2.Balance OSD-Activos'!S160=\"\",\"\",'[10]II.2.Balance OSD-Activos'!S160)","v":56589.568560430882},58569.937246931157,116383.94755896035,42.850323089929063,10.323042005115934,32.221102766680666,9.634717857280517,9.319079909945005,10.023444236785405,-0.18161897296953455,{"$f":"IF('[1]MONE(M)CAPARD'!AS302=\"\",\"\",'[1]MONE(M)CAPARD'!AS302)","v":5.25},{"$f":"IF('[1]MONE(M)CAPARD'!AT302=\"\",\"\",'[1]MONE(M)CAPARD'!AT302)","v":"n.a."},{"$f":"IF('[1]MONE(M)CAPARD'!AU302=\"\",\"\",'[1]MONE(M)CAPARD'!AU302)","v":4.75},{"$f":"IF('[1]MONE(M)CAPARD'!AV302=\"\",\"\",'[1]MONE(M)CAPARD'!AV302)","v":7},{"$f":"IF('[1]MONE(M)CAPARD'!AW302=\"\",\"\",'[1]MONE(M)CAPARD'!AW302)","v":"n.a."},{"$f":"IF('[1]MONE(M)CAPARD'!AX302=\"\",\"\",'[1]MONE(M)CAPARD'!AX302)","v":6.25},{"$f":"IF('[1]MONE(M)CAPARD'!AY302=\"\",\"\",'[1]MONE(M)CAPARD'!AY302)","v":"n.a."},{"$f":"IF('[1]FISCAL(M)'!$K302=\"\",\"\",'[1]FISCAL(M)'!$K302)","v":-1227.6834664377516},{"$f":"IF('[1]FISCAL(M)'!$L302=\"\",\"\",'[1]FISCAL(M)'!$L302)","v":-1777.9440515177521},{"$f":"IF('[1]FISCAL(M)'!$AY302=\"\",\"\",'[1]FISCAL(M)'!$AY302)","v":100426.50201716907},{"$f":"IF('[1]FISCAL(M)'!$BI302=\"\",\"\",'[1]FISCAL(M)'!$BI302)","v":50385.960607169058},{"$f":"IF('[1]FISCAL(M)'!$BS302=\"\",\"\",'[1]FISCAL(M)'!$BS302)","v":50040.541410000005},{"$f":"IF('[1]FISCAL(M)'!$AZ302=\"\",\"\",'[1]FISCAL(M)'!$AZ302)","v":117891.02260889907},{"$f":"IF('[1]FISCAL(M)'!$BJ302=\"\",\"\",'[1]FISCAL(M)'!$BJ302)","v":54725.275991949064},{"$f":"IF('[1]FISCAL(M)'!$BT302=\"\",\"\",'[1]FISCAL(M)'!$BT302)","v":63165.746616950004},{"$f":"IF('[2]MONE(M)'!$AO302=\"\",\"\",'[2]MONE(M)'!$AO302)","v":14837907.284803541},{"$f":"IF('[3]MONE(M)'!$AO302=\"\",\"\",'[3]MONE(M)'!$AO302)","v":10306.770132739999},{"$f":"IF('[4]MONE(M)'!$AO302=\"\",\"\",'[4]MONE(M)'!$AO302)","v":151421.03097618069},{"$f":"IF('[5]MONE(M)'!$AO302=\"\",\"\",'[5]MONE(M)'!$AO302)","v":217224.22236641537},{"$f":"IF('[6]MONE(M)'!$AO302=\"\",\"\",'[6]MONE(M)'!$AO302)","v":86012.717890607557},{"$f":"IF('[7]MONE(M)'!$AO302=\"\",\"\",'[7]MONE(M)'!$AO302)","v":613718.69300328998},{"$f":"IF('[8]MONE(M)'!$AO302=\"\",\"\",'[8]MONE(M)'!$AO302)","v":35779.634618009994},18.440227565709844,8.5660539130192106,11.171519390356387,13.791374612960695,22.453124904006149,13.485198834043665,11.262447187065284,{"$f":"IF('[1]FISCAL(M)'!$K302=\"\",\"\",'[1]FISCAL(M)'!$K302)","v":-1227.6834664377516},{"$f":"+'[1]REAL(A)'!$AO$34","v":229913.75829465021},-0.53397564179886592,{"$f":"IF('[1]FISCAL(M)'!$L302=\"\",\"\",'[1]FISCAL(M)'!$L302)","v":-1777.9440515177521},{"$f":"+'[1]REAL(A)'!$AP$34","v":279835.22129465023},-0.63535392124413115,113413.02352048375,{"$f":"'[1]Gráfico REM'!BG296","v":22355.452311727342},{"$f":"'[1]Gráfico REM'!BH296","v":84855.061467954438},{"$f":"'[1]Gráfico REM'!BI296","v":6202.5097408019647},7.6571285727508043,2.7117767760729716,9.1641860841384251,6.0315241757777249,171468.91086335375,{"$f":"'[1]Gráfico REM'!BK296","v":24163.924946717343},{"$f":"'[1]Gráfico REM'!BL296","v":120634.69608596443},{"$f":"'[1]Gráfico REM'!BM296","v":26670.289830671965},6.6781356140279691,2.3053797145541122,9.7782177443508811,-2.0409163516532658]
[2014,"junio ","2014-junio ",{"$f":"IF('[1]REAL IPC(M)'!$AL303=\"\",\"\",+'[1]REAL IPC(M)'!$AL303)","v":4.3479699453070619},{"$f":"IF('[1]REAL IPC(M)'!$BE303=\"\",\"\",+'[1]REAL IPC(M)'!$BE303)","v":3.5716913394175265},{"$f":"IF('[1]REAL IPC(M)'!$AM303=\"\",\"\",+'[1]REAL IPC(M)'!$AM303)","v":4.5132621016481522},{"$f":"IF('[1]REAL IPC(M)'!$BI303=\"\",\"\",+'[1]REAL IPC(M)'!$BI303)","v":3.4693559133471608},{"$f":"IF('[1]REAL IMAE(M)'!BJ303=\"\",\"\",'[1]REAL IMAE(M)'!BJ303)","v":4.7138513811523231},{"$f":"IF('[1]REAL IMAE(M)'!BK303=\"\",\"\",'[1]REAL IMAE(M)'!BK303)","v":4.4773191813374025},{"$f":"IF('[1]REAL IMAE(M)'!BN303=\"\",\"\",'[1]REAL IMAE(M)'!BN303)","v":4.5983672446664015},{"$f":"IF('[1]REAL IMAE(M)'!BO303=\"\",\"\",'[1]REAL IMAE(M)'!BO303)","v":4.7907575793499468},{"$f":"IF('[1]EXT RIN(M)'!$K303=\"\",\"\",'[1]EXT RIN(M)'!$K303)","v":27034.576329538308},"",{"$f":"IF('[1]EXT RIN(M)'!$L303=\"\",\"\",'[1]EXT RIN(M)'!$L303)","v":29377.442458988306},"",{"$f":"IF('[1]MONE(M)CARD'!EG303=\"\",\"\",'[1]MONE(M)CARD'!EG303)","v":26754.593853357313},{"$f":"IF('[1]MONE(M)CARD'!EK303=\"\",\"\",'[1]MONE(M)CARD'!EK303)","v":45536.213580267467},{"$f":"IF('[1]MONE(M)CARD'!EP303=\"\",\"\",'[1]MONE(M)CARD'!EP303)","v":26110.905272690492},{"$f":"IF('[1]MONE(M)CARD'!ES303=\"\",\"\",'[1]MONE(M)CARD'!ES303)","v":5.2895906533958703},{"$f":"IF('[1]MONE(M)CARD'!EV303=\"\",\"\",'[1]MONE(M)CARD'!EV303)","v":5.5242331038112713},{"$f":"IF('[1]MONE(M)CARD'!EZ303=\"\",\"\",'[1]MONE(M)CARD'!EZ303)","v":5.8431470274481256},{"$f":"IF('[1]MONE(M)CAPARD'!FC303=\"\",\"\",'[1]MONE(M)CAPARD'!FC303)","v":34705.939126687314},{"$f":"IF('[1]MONE(M)CAPARD'!FG303=\"\",\"\",'[1]MONE(M)CAPARD'!FG303)","v":70993.398835207467},{"$f":"IF('[1]MONE(M)CAPARD'!FL303=\"\",\"\",'[1]MONE(M)CAPARD'!FL303)","v":26110.905272690492},{"$f":"IF('[1]MONE(M)CAPARD'!FO303=\"\",\"\",'[1]MONE(M)CAPARD'!FO303)","v":7.2133288035674648},{"$f":"IF('[1]MONE(M)CAPARD'!FR303=\"\",\"\",'[1]MONE(M)CAPARD'!FR303)","v":7.0713713181283611},{"$f":"IF('[1]MONE(M)CAPARD'!FV303=\"\",\"\",'[1]MONE(M)CAPARD'!FV303)","v":7.0048155745383145},{"$f":"IF('[1]MONE(M)CARD'!FV303=\"\",\"\",'[1]MONE(M)CARD'!FV303)","v":1056.5695076974919},{"$f":"IF('[1]MONE(M)CARD'!GD303=\"\",\"\",'[1]MONE(M)CARD'!GD303)","v":192.44239760058306},{"$f":"IF('[1]MONE(M)CARD'!GE303=\"\",\"\",'[1]MONE(M)CARD'!GE303)","v":8130.3280316275477},-5.4609167976560453,{"$f":"IF('[9]II.2.Balance OSD-Activos'!J161=\"\",\"\",'[9]II.2.Balance OSD-Activos'!J161)","v":209.40670525807099},{"$f":"IF('[9]II.2.Balance OSD-Activos'!N161=\"\",\"\",'[9]II.2.Balance OSD-Activos'!N161)","v":790.77287216776381},{"$f":"IF('[9]II.2.Balance OSD-Activos'!R161=\"\",\"\",'[9]II.2.Balance OSD-Activos'!R161)","v":39311.965514376599},{"$f":"IF('[9]II.2.Balance OSD-Activos'!S161=\"\",\"\",'[9]II.2.Balance OSD-Activos'!S161)","v":41846.221940266274},39521.372219634672,82158.367032068709,46.656777309815276,11.297422943958569,34.332680808645492,11.154666502124932,8.6044673080096992,10.088757350038202,0.38852043491808352,{"$f":"IF('[1]MONE(M)CAPARD'!GS303=\"\",\"\",'[1]MONE(M)CAPARD'!GS303)","v":15688.29971729235},{"$f":"IF('[1]MONE(M)CARD'!HA303=\"\",\"\",'[1]MONE(M)CAPARD'!HA303)","v":8876.8299713575489},{"$f":"IF('[1]MONE(M)CAPARD'!HB303=\"\",\"\",'[1]MONE(M)CAPARD'!HB303)","v":6811.4697459348008},"n.d.",{"$f":"IF('[10]II.2.Balance OSD-Activos'!J161=\"\",\"\",'[10]II.2.Balance OSD-Activos'!J161)","v":1562.7045689280712},{"$f":"IF('[10]II.2.Balance OSD-Activos'!N161=\"\",\"\",'[10]II.2.Balance OSD-Activos'!N161)","v":1286.3802028677642},{"$f":"IF('[10]II.2.Balance OSD-Activos'!R161=\"\",\"\",'[10]II.2.Balance OSD-Activos'!R161)","v":57334.2404517166},{"$f":"IF('[10]II.2.Balance OSD-Activos'!S161=\"\",\"\",'[10]II.2.Balance OSD-Activos'!S161)","v":57290.489247446276},58896.945020644671,117473.81447095872,44.241623657667795,9.9863786162360135,32.187641244169015,9.2790257638112337,9.8203131264533496,10.107682246533823,8.4238009748418108E-2,{"$f":"IF('[1]MONE(M)CAPARD'!AS303=\"\",\"\",'[1]MONE(M)CAPARD'!AS303)","v":5.25},{"$f":"IF('[1]MONE(M)CAPARD'!AT303=\"\",\"\",'[1]MONE(M)CAPARD'!AT303)","v":"n.a."},{"$f":"IF('[1]MONE(M)CAPARD'!AU303=\"\",\"\",'[1]MONE(M)CAPARD'!AU303)","v":4.5},{"$f":"IF('[1]MONE(M)CAPARD'!AV303=\"\",\"\",'[1]MONE(M)CAPARD'!AV303)","v":7},{"$f":"IF('[1]MONE(M)CAPARD'!AW303=\"\",\"\",'[1]MONE(M)CAPARD'!AW303)","v":"n.a."},{"$f":"IF('[1]MONE(M)CAPARD'!AX303=\"\",\"\",'[1]MONE(M)CAPARD'!AX303)","v":6.25},{"$f":"IF('[1]MONE(M)CAPARD'!AY303=\"\",\"\",'[1]MONE(M)CAPARD'!AY303)","v":"n.a."},{"$f":"IF('[1]FISCAL(M)'!$K303=\"\",\"\",'[1]FISCAL(M)'!$K303)","v":-2101.8681828435601},{"$f":"IF('[1]FISCAL(M)'!$L303=\"\",\"\",'[1]FISCAL(M)'!$L303)","v":-2483.5330486235607},{"$f":"IF('[1]FISCAL(M)'!$AY303=\"\",\"\",'[1]FISCAL(M)'!$AY303)","v":100830.22489394716},{"$f":"IF('[1]FISCAL(M)'!$BI303=\"\",\"\",'[1]FISCAL(M)'!$BI303)","v":50670.88533708539},{"$f":"IF('[1]FISCAL(M)'!$BS303=\"\",\"\",'[1]FISCAL(M)'!$BS303)","v":50159.339556861771},{"$f":"IF('[1]FISCAL(M)'!$AZ303=\"\",\"\",'[1]FISCAL(M)'!$AZ303)","v":118510.95924035716},{"$f":"IF('[1]FISCAL(M)'!$BJ303=\"\",\"\",'[1]FISCAL(M)'!$BJ303)","v":55115.423550725391},{"$f":"IF('[1]FISCAL(M)'!$BT303=\"\",\"\",'[1]FISCAL(M)'!$BT303)","v":63395.535689631768},{"$f":"IF('[2]MONE(M)'!$AO303=\"\",\"\",'[2]MONE(M)'!$AO303)","v":14902810.655981675},{"$f":"IF('[3]MONE(M)'!$AO303=\"\",\"\",'[3]MONE(M)'!$AO303)","v":10358.091689189998},{"$f":"IF('[4]MONE(M)'!$AO303=\"\",\"\",'[4]MONE(M)'!$AO303)","v":151583.65360685406},{"$f":"IF('[5]MONE(M)'!$AO303=\"\",\"\",'[5]MONE(M)'!$AO303)","v":219420.68135026947},{"$f":"IF('[6]MONE(M)'!$AO303=\"\",\"\",'[6]MONE(M)'!$AO303)","v":86685.860791585088},{"$f":"IF('[7]MONE(M)'!$AO303=\"\",\"\",'[7]MONE(M)'!$AO303)","v":622881.48003747},{"$f":"IF('[8]MONE(M)'!$AO303=\"\",\"\",'[8]MONE(M)'!$AO303)","v":35876.992916919997},18.019801212731366,7.7314307931637627,10.413653099562614,14.479832233971578,22.307323844993654,12.775932108073151,10.304364312773039,{"$f":"IF('[1]FISCAL(M)'!$K303=\"\",\"\",'[1]FISCAL(M)'!$K303)","v":-2101.8681828435601},{"$f":"+'[1]REAL(A)'!$AO$34","v":229913.75829465021},-0.91419852314791539,{"$f":"IF('[1]FISCAL(M)'!$L303=\"\",\"\",'[1]FISCAL(M)'!$L303)","v":-2483.5330486235607},{"$f":"+'[1]REAL(A)'!$AP$34","v":279835.22129465023},-0.88749837748570792,114388.15640310383,{"$f":"'[1]Gráfico REM'!BG297","v":22237.604885789959},{"$f":"'[1]Gráfico REM'!BH297","v":85723.724187279877},{"$f":"'[1]Gráfico REM'!BI297","v":6426.8273300339943},8.0507913365670536,2.2198096139950163,9.5869932328842111,9.1861405767935,172668.20667326383,{"$f":"'[1]Gráfico REM'!BK297","v":24069.51193872996},{"$f":"'[1]Gráfico REM'!BL297","v":121600.71710419987},{"$f":"'[1]Gráfico REM'!BM297","v":26997.977630333997},6.6919039768012167,1.8626503658724758,9.7976736676163245,-1.6788110779670906]
[2014,"julio","2014-julio",{"$f":"IF('[1]REAL IPC(M)'!$AL304=\"\",\"\",+'[1]REAL IPC(M)'!$AL304)","v":4.5787612518816578},{"$f":"IF('[1]REAL IPC(M)'!$BE304=\"\",\"\",+'[1]REAL IPC(M)'!$BE304)","v":3.5005143885806778},{"$f":"IF('[1]REAL IPC(M)'!$AM304=\"\",\"\",+'[1]REAL IPC(M)'!$AM304)","v":4.673173623801774},{"$f":"IF('[1]REAL IPC(M)'!$BI304=\"\",\"\",+'[1]REAL IPC(M)'!$BI304)","v":3.4024433518432762},{"$f":"IF('[1]REAL IMAE(M)'!BJ304=\"\",\"\",'[1]REAL IMAE(M)'!BJ304)","v":4.5160103344711988},{"$f":"IF('[1]REAL IMAE(M)'!BK304=\"\",\"\",'[1]REAL IMAE(M)'!BK304)","v":4.5125776079559587},{"$f":"IF('[1]REAL IMAE(M)'!BN304=\"\",\"\",'[1]REAL IMAE(M)'!BN304)","v":4.4075751089950543},{"$f":"IF('[1]REAL IMAE(M)'!BO304=\"\",\"\",'[1]REAL IMAE(M)'!BO304)","v":4.7958159472867079},{"$f":"IF('[1]EXT RIN(M)'!$K304=\"\",\"\",'[1]EXT RIN(M)'!$K304)","v":26748.668018820754},"",{"$f":"IF('[1]EXT RIN(M)'!$L304=\"\",\"\",'[1]EXT RIN(M)'!$L304)","v":28990.608711730754},"",{"$f":"IF('[1]MONE(M)CARD'!EG304=\"\",\"\",'[1]MONE(M)CARD'!EG304)","v":26712.963780175785},{"$f":"IF('[1]MONE(M)CARD'!EK304=\"\",\"\",'[1]MONE(M)CARD'!EK304)","v":45868.954904640537},{"$f":"IF('[1]MONE(M)CARD'!EP304=\"\",\"\",'[1]MONE(M)CARD'!EP304)","v":26644.045002234037},{"$f":"IF('[1]MONE(M)CARD'!ES304=\"\",\"\",'[1]MONE(M)CARD'!ES304)","v":6.0968383198025222},{"$f":"IF('[1]MONE(M)CARD'!EV304=\"\",\"\",'[1]MONE(M)CARD'!EV304)","v":5.9670649861579106},{"$f":"IF('[1]MONE(M)CARD'!EZ304=\"\",\"\",'[1]MONE(M)CARD'!EZ304)","v":6.3908500123095013},{"$f":"IF('[1]MONE(M)CAPARD'!FC304=\"\",\"\",'[1]MONE(M)CAPARD'!FC304)","v":34862.716626695787},{"$f":"IF('[1]MONE(M)CAPARD'!FG304=\"\",\"\",'[1]MONE(M)CAPARD'!FG304)","v":71407.435184900562},{"$f":"IF('[1]MONE(M)CAPARD'!FL304=\"\",\"\",'[1]MONE(M)CAPARD'!FL304)","v":26644.045002234037},{"$f":"IF('[1]MONE(M)CAPARD'!FO304=\"\",\"\",'[1]MONE(M)CAPARD'!FO304)","v":8.1017363120926777},{"$f":"IF('[1]MONE(M)CAPARD'!FR304=\"\",\"\",'[1]MONE(M)CAPARD'!FR304)","v":7.3543497791018542},{"$f":"IF('[1]MONE(M)CAPARD'!FV304=\"\",\"\",'[1]MONE(M)CAPARD'!FV304)","v":7.3960470578531279},{"$f":"IF('[1]MONE(M)CARD'!FV304=\"\",\"\",'[1]MONE(M)CARD'!FV304)","v":992.82832063178523},{"$f":"IF('[1]MONE(M)CARD'!GD304=\"\",\"\",'[1]MONE(M)CARD'!GD304)","v":85.199127766400778},{"$f":"IF('[1]MONE(M)CARD'!GE304=\"\",\"\",'[1]MONE(M)CARD'!GE304)","v":8376.250510245738},-2.3209911045890208,{"$f":"IF('[9]II.2.Balance OSD-Activos'!J162=\"\",\"\",'[9]II.2.Balance OSD-Activos'!J162)","v":200.47286902640025},{"$f":"IF('[9]II.2.Balance OSD-Activos'!N162=\"\",\"\",'[9]II.2.Balance OSD-Activos'!N162)","v":778.08593810376647},{"$f":"IF('[9]II.2.Balance OSD-Activos'!R162=\"\",\"\",'[9]II.2.Balance OSD-Activos'!R162)","v":39802.174140697403},{"$f":"IF('[9]II.2.Balance OSD-Activos'!S162=\"\",\"\",'[9]II.2.Balance OSD-Activos'!S162)","v":42243.810284827814},40002.647009723805,83024.543232655386,46.64350208192014,11.681363250727482,26.650552260650628,11.547413015001728,8.7328171178649541,10.281893131046971,0.1931357810087686,{"$f":"IF('[1]MONE(M)CAPARD'!GS304=\"\",\"\",'[1]MONE(M)CAPARD'!GS304)","v":15942.976984039982},{"$f":"IF('[1]MONE(M)CARD'!HA304=\"\",\"\",'[1]MONE(M)CAPARD'!HA304)","v":9138.2061838257378},{"$f":"IF('[1]MONE(M)CAPARD'!HB304=\"\",\"\",'[1]MONE(M)CAPARD'!HB304)","v":6804.7708002142444},"n.d.",{"$f":"IF('[10]II.2.Balance OSD-Activos'!J162=\"\",\"\",'[10]II.2.Balance OSD-Activos'!J162)","v":1632.8974004364006},{"$f":"IF('[10]II.2.Balance OSD-Activos'!N162=\"\",\"\",'[10]II.2.Balance OSD-Activos'!N162)","v":1296.0160306437665},{"$f":"IF('[10]II.2.Balance OSD-Activos'!R162=\"\",\"\",'[10]II.2.Balance OSD-Activos'!R162)","v":58154.671318477413},{"$f":"IF('[10]II.2.Balance OSD-Activos'!S162=\"\",\"\",'[10]II.2.Balance OSD-Activos'!S162)","v":57777.58264772781},59787.568718913812,118861.16739728539,47.81659199253847,10.299484327113827,28.957845319046193,9.5189897576168256,9.7610305829039632,10.210541644947035,0.10285939841321223,{"$f":"IF('[1]MONE(M)CAPARD'!AS304=\"\",\"\",'[1]MONE(M)CAPARD'!AS304)","v":5.25},{"$f":"IF('[1]MONE(M)CAPARD'!AT304=\"\",\"\",'[1]MONE(M)CAPARD'!AT304)","v":"n.a."},{"$f":"IF('[1]MONE(M)CAPARD'!AU304=\"\",\"\",'[1]MONE(M)CAPARD'!AU304)","v":4.5},{"$f":"IF('[1]MONE(M)CAPARD'!AV304=\"\",\"\",'[1]MONE(M)CAPARD'!AV304)","v":7},{"$f":"IF('[1]MONE(M)CAPARD'!AW304=\"\",\"\",'[1]MONE(M)CAPARD'!AW304)","v":"n.a."},{"$f":"IF('[1]MONE(M)CAPARD'!AX304=\"\",\"\",'[1]MONE(M)CAPARD'!AX304)","v":6.25},{"$f":"IF('[1]MONE(M)CAPARD'!AY304=\"\",\"\",'[1]MONE(M)CAPARD'!AY304)","v":"n.a."},{"$f":"IF('[1]FISCAL(M)'!$K304=\"\",\"\",'[1]FISCAL(M)'!$K304)","v":-2596.0545210739429},{"$f":"IF('[1]FISCAL(M)'!$L304=\"\",\"\",'[1]FISCAL(M)'!$L304)","v":-3411.044066261943},{"$f":"IF('[1]FISCAL(M)'!$AY304=\"\",\"\",'[1]FISCAL(M)'!$AY304)","v":101798.29289269242},{"$f":"IF('[1]FISCAL(M)'!$BI304=\"\",\"\",'[1]FISCAL(M)'!$BI304)","v":51510.389477579178},{"$f":"IF('[1]FISCAL(M)'!$BS304=\"\",\"\",'[1]FISCAL(M)'!$BS304)","v":50287.903415113251},{"$f":"IF('[1]FISCAL(M)'!$AZ304=\"\",\"\",'[1]FISCAL(M)'!$AZ304)","v":119471.89039006241},{"$f":"IF('[1]FISCAL(M)'!$BJ304=\"\",\"\",'[1]FISCAL(M)'!$BJ304)","v":55954.287667649172},{"$f":"IF('[1]FISCAL(M)'!$BT304=\"\",\"\",'[1]FISCAL(M)'!$BT304)","v":63517.602722413256},{"$f":"IF('[2]MONE(M)'!$AO304=\"\",\"\",'[2]MONE(M)'!$AO304)","v":15074561.701025927},{"$f":"IF('[3]MONE(M)'!$AO304=\"\",\"\",'[3]MONE(M)'!$AO304)","v":10338.713848539999},{"$f":"IF('[4]MONE(M)'!$AO304=\"\",\"\",'[4]MONE(M)'!$AO304)","v":153597.38913352793},{"$f":"IF('[5]MONE(M)'!$AO304=\"\",\"\",'[5]MONE(M)'!$AO304)","v":219544.5421503557},{"$f":"IF('[6]MONE(M)'!$AO304=\"\",\"\",'[6]MONE(M)'!$AO304)","v":87496.841681857011},{"$f":"IF('[7]MONE(M)'!$AO304=\"\",\"\",'[7]MONE(M)'!$AO304)","v":635111.60416732996},{"$f":"IF('[8]MONE(M)'!$AO304=\"\",\"\",'[8]MONE(M)'!$AO304)","v":36456.568238789994},18.675937949737719,7.0339911733140914,10.286092499283539,13.393094543110928,22.748009145778546,14.300843755879233,10.228862725009581,{"$f":"IF('[1]FISCAL(M)'!$K304=\"\",\"\",'[1]FISCAL(M)'!$K304)","v":-2596.0545210739429},{"$f":"+'[1]REAL(A)'!$AO$34","v":229913.75829465021},-1.1291427447969082,{"$f":"IF('[1]FISCAL(M)'!$L304=\"\",\"\",'[1]FISCAL(M)'!$L304)","v":-3411.044066261943},{"$f":"+'[1]REAL(A)'!$AP$34","v":279835.22129465023},-1.2189473685552656,114442.18464342246,{"$f":"'[1]Gráfico REM'!BG298","v":21427.436758323667},{"$f":"'[1]Gráfico REM'!BH298","v":86660.662786573303},{"$f":"'[1]Gráfico REM'!BI298","v":6354.0850985254765},7.2747745802389296,-2.3560966355650415,10.079685328589182,5.6989048051082847,173180.11150349243,{"$f":"'[1]Gráfico REM'!BK298","v":23277.905602083669},{"$f":"'[1]Gráfico REM'!BL298","v":123117.23102536329},{"$f":"'[1]Gráfico REM'!BM298","v":26784.974876045479},5.7538349107090658,-2.7098038013783521,10.123816544792085,-4.4505742990957664]
[2014,"agosto","2014-agosto",{"$f":"IF('[1]REAL IPC(M)'!$AL305=\"\",\"\",+'[1]REAL IPC(M)'!$AL305)","v":4.5653729747045402},{"$f":"IF('[1]REAL IPC(M)'!$BE305=\"\",\"\",+'[1]REAL IPC(M)'!$BE305)","v":3.429428074580243},{"$f":"IF('[1]REAL IPC(M)'!$AM305=\"\",\"\",+'[1]REAL IPC(M)'!$AM305)","v":4.6551893283552914},{"$f":"IF('[1]REAL IPC(M)'!$BI305=\"\",\"\",+'[1]REAL IPC(M)'!$BI305)","v":3.3342720045167917},{"$f":"IF('[1]REAL IMAE(M)'!BJ305=\"\",\"\",'[1]REAL IMAE(M)'!BJ305)","v":4.4255449197036834},{"$f":"IF('[1]REAL IMAE(M)'!BK305=\"\",\"\",'[1]REAL IMAE(M)'!BK305)","v":4.5463928219902972},{"$f":"IF('[1]REAL IMAE(M)'!BN305=\"\",\"\",'[1]REAL IMAE(M)'!BN305)","v":4.3597181984054378},{"$f":"IF('[1]REAL IMAE(M)'!BO305=\"\",\"\",'[1]REAL IMAE(M)'!BO305)","v":4.8006982796600983},{"$f":"IF('[1]EXT RIN(M)'!$K305=\"\",\"\",'[1]EXT RIN(M)'!$K305)","v":26579.409698319658},"",{"$f":"IF('[1]EXT RIN(M)'!$L305=\"\",\"\",'[1]EXT RIN(M)'!$L305)","v":29037.740975099659},"",{"$f":"IF('[1]MONE(M)CARD'!EG305=\"\",\"\",'[1]MONE(M)CARD'!EG305)","v":26624.441957491385},{"$f":"IF('[1]MONE(M)CARD'!EK305=\"\",\"\",'[1]MONE(M)CARD'!EK305)","v":46295.894217828602},{"$f":"IF('[1]MONE(M)CARD'!EP305=\"\",\"\",'[1]MONE(M)CARD'!EP305)","v":26818.10408923206},{"$f":"IF('[1]MONE(M)CARD'!ES305=\"\",\"\",'[1]MONE(M)CARD'!ES305)","v":5.4276320020770541},{"$f":"IF('[1]MONE(M)CARD'!EV305=\"\",\"\",'[1]MONE(M)CARD'!EV305)","v":7.1578640050744546},{"$f":"IF('[1]MONE(M)CARD'!EZ305=\"\",\"\",'[1]MONE(M)CARD'!EZ305)","v":7.7431376357190773},{"$f":"IF('[1]MONE(M)CAPARD'!FC305=\"\",\"\",'[1]MONE(M)CAPARD'!FC305)","v":34843.309165391387},{"$f":"IF('[1]MONE(M)CAPARD'!FG305=\"\",\"\",'[1]MONE(M)CAPARD'!FG305)","v":72076.450320668606},{"$f":"IF('[1]MONE(M)CAPARD'!FL305=\"\",\"\",'[1]MONE(M)CAPARD'!FL305)","v":26818.10408923206},{"$f":"IF('[1]MONE(M)CAPARD'!FO305=\"\",\"\",'[1]MONE(M)CAPARD'!FO305)","v":7.5204535925426752},{"$f":"IF('[1]MONE(M)CAPARD'!FR305=\"\",\"\",'[1]MONE(M)CAPARD'!FR305)","v":8.2762848161915592},{"$f":"IF('[1]MONE(M)CAPARD'!FV305=\"\",\"\",'[1]MONE(M)CAPARD'!FV305)","v":8.4933250666242355},{"$f":"IF('[1]MONE(M)CARD'!FV305=\"\",\"\",'[1]MONE(M)CARD'!FV305)","v":973.77214198331023},{"$f":"IF('[1]MONE(M)CARD'!GD305=\"\",\"\",'[1]MONE(M)CARD'!GD305)","v":95.01324124604777},{"$f":"IF('[1]MONE(M)CARD'!GE305=\"\",\"\",'[1]MONE(M)CARD'!GE305)","v":8191.5859591479502},-1.5798086937067635,{"$f":"IF('[9]II.2.Balance OSD-Activos'!J163=\"\",\"\",'[9]II.2.Balance OSD-Activos'!J163)","v":203.98790803270353},{"$f":"IF('[9]II.2.Balance OSD-Activos'!N163=\"\",\"\",'[9]II.2.Balance OSD-Activos'!N163)","v":790.24634030945151},{"$f":"IF('[9]II.2.Balance OSD-Activos'!R163=\"\",\"\",'[9]II.2.Balance OSD-Activos'!R163)","v":39944.901464570619},{"$f":"IF('[9]II.2.Balance OSD-Activos'!S163=\"\",\"\",'[9]II.2.Balance OSD-Activos'!S163)","v":42805.503313225781},40148.88937260332,83744.639026138553,52.924095438946203,11.37783158074499,23.754460948902214,11.223520979307855,9.9768068389691535,10.761128534741825,0.47923540369485451,{"$f":"IF('[1]MONE(M)CAPARD'!GS305=\"\",\"\",'[1]MONE(M)CAPARD'!GS305)","v":16170.588695451857},{"$f":"IF('[1]MONE(M)CARD'!HA305=\"\",\"\",'[1]MONE(M)CAPARD'!HA305)","v":8905.1085525779508},{"$f":"IF('[1]MONE(M)CAPARD'!HB305=\"\",\"\",'[1]MONE(M)CAPARD'!HB305)","v":7265.4801428739065},"n.d.",{"$f":"IF('[10]II.2.Balance OSD-Activos'!J163=\"\",\"\",'[10]II.2.Balance OSD-Activos'!J163)","v":1655.5991615327036},{"$f":"IF('[10]II.2.Balance OSD-Activos'!N163=\"\",\"\",'[10]II.2.Balance OSD-Activos'!N163)","v":1311.4391924294514},{"$f":"IF('[10]II.2.Balance OSD-Activos'!R163=\"\",\"\",'[10]II.2.Balance OSD-Activos'!R163)","v":58756.454078770621},{"$f":"IF('[10]II.2.Balance OSD-Activos'!S163=\"\",\"\",'[10]II.2.Balance OSD-Activos'!S163)","v":58522.63786010578},60412.053240303321,120246.13029283856,50.170135766364574,10.692150043007921,27.383141646065432,9.8782282453320427,10.703817423244288,10.856255325806607,0.64571368085957204,{"$f":"IF('[1]MONE(M)CAPARD'!AS305=\"\",\"\",'[1]MONE(M)CAPARD'!AS305)","v":5.25},{"$f":"IF('[1]MONE(M)CAPARD'!AT305=\"\",\"\",'[1]MONE(M)CAPARD'!AT305)","v":"n.a."},{"$f":"IF('[1]MONE(M)CAPARD'!AU305=\"\",\"\",'[1]MONE(M)CAPARD'!AU305)","v":4.5},{"$f":"IF('[1]MONE(M)CAPARD'!AV305=\"\",\"\",'[1]MONE(M)CAPARD'!AV305)","v":7},{"$f":"IF('[1]MONE(M)CAPARD'!AW305=\"\",\"\",'[1]MONE(M)CAPARD'!AW305)","v":"n.a."},{"$f":"IF('[1]MONE(M)CAPARD'!AX305=\"\",\"\",'[1]MONE(M)CAPARD'!AX305)","v":6.25},{"$f":"IF('[1]MONE(M)CAPARD'!AY305=\"\",\"\",'[1]MONE(M)CAPARD'!AY305)","v":"n.a."},{"$f":"IF('[1]FISCAL(M)'!$K305=\"\",\"\",'[1]FISCAL(M)'!$K305)","v":-3298.0407083172604},{"$f":"IF('[1]FISCAL(M)'!$L305=\"\",\"\",'[1]FISCAL(M)'!$L305)","v":-4154.90636899526},{"$f":"IF('[1]FISCAL(M)'!$AY305=\"\",\"\",'[1]FISCAL(M)'!$AY305)","v":102483.30847213976},{"$f":"IF('[1]FISCAL(M)'!$BI305=\"\",\"\",'[1]FISCAL(M)'!$BI305)","v":52186.645123477116},{"$f":"IF('[1]FISCAL(M)'!$BS305=\"\",\"\",'[1]FISCAL(M)'!$BS305)","v":50296.663348662638},{"$f":"IF('[1]FISCAL(M)'!$AZ305=\"\",\"\",'[1]FISCAL(M)'!$AZ305)","v":120243.31092414976},{"$f":"IF('[1]FISCAL(M)'!$BJ305=\"\",\"\",'[1]FISCAL(M)'!$BJ305)","v":56722.78086374711},{"$f":"IF('[1]FISCAL(M)'!$BT305=\"\",\"\",'[1]FISCAL(M)'!$BT305)","v":63520.530060402649},{"$f":"IF('[2]MONE(M)'!$AO305=\"\",\"\",'[2]MONE(M)'!$AO305)","v":15281926.864320923},{"$f":"IF('[3]MONE(M)'!$AO305=\"\",\"\",'[3]MONE(M)'!$AO305)","v":10422.856511279999},{"$f":"IF('[4]MONE(M)'!$AO305=\"\",\"\",'[4]MONE(M)'!$AO305)","v":153169.31628248544},{"$f":"IF('[5]MONE(M)'!$AO305=\"\",\"\",'[5]MONE(M)'!$AO305)","v":222446.13957516354},{"$f":"IF('[6]MONE(M)'!$AO305=\"\",\"\",'[6]MONE(M)'!$AO305)","v":88768.106611034862},{"$f":"IF('[7]MONE(M)'!$AO305=\"\",\"\",'[7]MONE(M)'!$AO305)","v":643714.60320767004},{"$f":"IF('[8]MONE(M)'!$AO305=\"\",\"\",'[8]MONE(M)'!$AO305)","v":37119.742849839997},18.91234955752925,6.8640168248656819,8.3244703010580743,13.542185943796348,22.724680010827527,13.9890171952622,11.102064261542388,{"$f":"IF('[1]FISCAL(M)'!$K305=\"\",\"\",'[1]FISCAL(M)'!$K305)","v":-3298.0407083172604},{"$f":"+'[1]REAL(A)'!$AO$34","v":229913.75829465021},-1.4344686167456737,{"$f":"IF('[1]FISCAL(M)'!$L305=\"\",\"\",'[1]FISCAL(M)'!$L305)","v":-4154.90636899526},{"$f":"+'[1]REAL(A)'!$AP$34","v":279835.22129465023},-1.4847689114231926,115595.6224444564,{"$f":"'[1]Gráfico REM'!BG299","v":21525.695384707989},{"$f":"'[1]Gráfico REM'!BH299","v":87446.616137339006},{"$f":"'[1]Gráfico REM'!BI299","v":6623.3109224094133},8.1994443989362722,-1.1834829086127652,10.68221988795861,9.5619217260734182,175331.8088734764,{"$f":"'[1]Gráfico REM'!BK299","v":23422.93602023799},{"$f":"'[1]Gráfico REM'!BL299","v":124566.358987179},{"$f":"'[1]Gráfico REM'!BM299","v":27342.513866059417},7.0243860112443324,-1.9548609967168451,10.806997763187809,-0.63339466753264961]
[2014,"septiembre","2014-septiembre",{"$f":"IF('[1]REAL IPC(M)'!$AL306=\"\",\"\",+'[1]REAL IPC(M)'!$AL306)","v":4.295549738701876},{"$f":"IF('[1]REAL IPC(M)'!$BE306=\"\",\"\",+'[1]REAL IPC(M)'!$BE306)","v":3.3586845158935175},{"$f":"IF('[1]REAL IPC(M)'!$AM306=\"\",\"\",+'[1]REAL IPC(M)'!$AM306)","v":4.4125708110125839},{"$f":"IF('[1]REAL IPC(M)'!$BI306=\"\",\"\",+'[1]REAL IPC(M)'!$BI306)","v":3.2651406886988088},{"$f":"IF('[1]REAL IMAE(M)'!BJ306=\"\",\"\",'[1]REAL IMAE(M)'!BJ306)","v":4.4847050926534182},{"$f":"IF('[1]REAL IMAE(M)'!BK306=\"\",\"\",'[1]REAL IMAE(M)'!BK306)","v":4.5785990853385083},{"$f":"IF('[1]REAL IMAE(M)'!BN306=\"\",\"\",'[1]REAL IMAE(M)'!BN306)","v":4.4395348570511306},{"$f":"IF('[1]REAL IMAE(M)'!BO306=\"\",\"\",'[1]REAL IMAE(M)'!BO306)","v":4.8053383886935697},{"$f":"IF('[1]EXT RIN(M)'!$K306=\"\",\"\",'[1]EXT RIN(M)'!$K306)","v":26424.330832199164},"",{"$f":"IF('[1]EXT RIN(M)'!$L306=\"\",\"\",'[1]EXT RIN(M)'!$L306)","v":29817.364288359164},"",{"$f":"IF('[1]MONE(M)CARD'!EG306=\"\",\"\",'[1]MONE(M)CARD'!EG306)","v":26910.015879956591},{"$f":"IF('[1]MONE(M)CARD'!EK306=\"\",\"\",'[1]MONE(M)CARD'!EK306)","v":46596.925131228236},{"$f":"IF('[1]MONE(M)CARD'!EP306=\"\",\"\",'[1]MONE(M)CARD'!EP306)","v":26567.288928981128},{"$f":"IF('[1]MONE(M)CARD'!ES306=\"\",\"\",'[1]MONE(M)CARD'!ES306)","v":6.4698213085998324},{"$f":"IF('[1]MONE(M)CARD'!EV306=\"\",\"\",'[1]MONE(M)CARD'!EV306)","v":7.0038155629177146},{"$f":"IF('[1]MONE(M)CARD'!EZ306=\"\",\"\",'[1]MONE(M)CARD'!EZ306)","v":7.7150887004287627},{"$f":"IF('[1]MONE(M)CAPARD'!FC306=\"\",\"\",'[1]MONE(M)CAPARD'!FC306)","v":34984.300176576588},{"$f":"IF('[1]MONE(M)CAPARD'!FG306=\"\",\"\",'[1]MONE(M)CAPARD'!FG306)","v":72457.959602088231},{"$f":"IF('[1]MONE(M)CAPARD'!FL306=\"\",\"\",'[1]MONE(M)CAPARD'!FL306)","v":26567.288928981099},{"$f":"IF('[1]MONE(M)CAPARD'!FO306=\"\",\"\",'[1]MONE(M)CAPARD'!FO306)","v":7.3215710521127519},{"$f":"IF('[1]MONE(M)CAPARD'!FR306=\"\",\"\",'[1]MONE(M)CAPARD'!FR306)","v":7.7875316776474302},{"$f":"IF('[1]MONE(M)CAPARD'!FV306=\"\",\"\",'[1]MONE(M)CAPARD'!FV306)","v":8.1677663606065423},{"$f":"IF('[1]MONE(M)CARD'!FV306=\"\",\"\",'[1]MONE(M)CARD'!FV306)","v":937.6189503643177},{"$f":"IF('[1]MONE(M)CARD'!GD306=\"\",\"\",'[1]MONE(M)CARD'!GD306)","v":202.18544623082781},{"$f":"IF('[1]MONE(M)CARD'!GE306=\"\",\"\",'[1]MONE(M)CARD'!GE306)","v":8287.8832720356459},4.3238556577193554,{"$f":"IF('[9]II.2.Balance OSD-Activos'!J164=\"\",\"\",'[9]II.2.Balance OSD-Activos'!J164)","v":195.94976477381812},{"$f":"IF('[9]II.2.Balance OSD-Activos'!N164=\"\",\"\",'[9]II.2.Balance OSD-Activos'!N164)","v":845.24485662603342},{"$f":"IF('[9]II.2.Balance OSD-Activos'!R164=\"\",\"\",'[9]II.2.Balance OSD-Activos'!R164)","v":39875.773849329125},{"$f":"IF('[9]II.2.Balance OSD-Activos'!S164=\"\",\"\",'[9]II.2.Balance OSD-Activos'!S164)","v":43475.921628128403},40071.723614102943,{"$f":"IF(OR(AF299=\"\",AG299=\"\",AH299=\"\",AI299=\"\"),\"\",SUM(AF299:AI299))","v":84392.890098857373},49.231141215142493,9.3346548632590398,29.369621214696551,9.1912055503561962,10.475663121300904,10.091171756880835,-0.66995677786099073,{"$f":"IF('[1]MONE(M)CAPARD'!GS306=\"\",\"\",'[1]MONE(M)CAPARD'!GS306)","v":15464.937711024197},{"$f":"IF('[1]MONE(M)CARD'!HA306=\"\",\"\",'[1]MONE(M)CAPARD'!HA306)","v":9102.7600506656454},{"$f":"IF('[1]MONE(M)CAPARD'!HB306=\"\",\"\",'[1]MONE(M)CAPARD'!HB306)","v":6362.1776603585513},"n.d.",{"$f":"IF('[10]II.2.Balance OSD-Activos'!J164=\"\",\"\",'[10]II.2.Balance OSD-Activos'!J164)","v":1667.894907453818},{"$f":"IF('[10]II.2.Balance OSD-Activos'!N164=\"\",\"\",'[10]II.2.Balance OSD-Activos'!N164)","v":1374.5515948360332},{"$f":"IF('[10]II.2.Balance OSD-Activos'!R164=\"\",\"\",'[10]II.2.Balance OSD-Activos'!R164)","v":58979.720562729119},{"$f":"IF('[10]II.2.Balance OSD-Activos'!S164=\"\",\"\",'[10]II.2.Balance OSD-Activos'!S164)","v":59376.255906398401},60647.615470182936,121398.42297141737,46.265879317685467,9.6498570035334907,25.923735320794972,8.8790627230832087,11.128306007704825,10.530821110860099,-0.32543421494650815,{"$f":"IF('[1]MONE(M)CAPARD'!AS306=\"\",\"\",'[1]MONE(M)CAPARD'!AS306)","v":5.25},{"$f":"IF('[1]MONE(M)CAPARD'!AT306=\"\",\"\",'[1]MONE(M)CAPARD'!AT306)","v":"n.a."},{"$f":"IF('[1]MONE(M)CAPARD'!AU306=\"\",\"\",'[1]MONE(M)CAPARD'!AU306)","v":4.5},{"$f":"IF('[1]MONE(M)CAPARD'!AV306=\"\",\"\",'[1]MONE(M)CAPARD'!AV306)","v":7},{"$f":"IF('[1]MONE(M)CAPARD'!AW306=\"\",\"\",'[1]MONE(M)CAPARD'!AW306)","v":"n.a."},{"$f":"IF('[1]MONE(M)CAPARD'!AX306=\"\",\"\",'[1]MONE(M)CAPARD'!AX306)","v":6.25},{"$f":"IF('[1]MONE(M)CAPARD'!AY306=\"\",\"\",'[1]MONE(M)CAPARD'!AY306)","v":"n.a."},{"$f":"IF('[1]FISCAL(M)'!$K306=\"\",\"\",'[1]FISCAL(M)'!$K306)","v":-3919.3702728004446},{"$f":"IF('[1]FISCAL(M)'!$L306=\"\",\"\",'[1]FISCAL(M)'!$L306)","v":-3458.983541628445},{"$f":"IF('[1]FISCAL(M)'!$AY306=\"\",\"\",'[1]FISCAL(M)'!$AY306)","v":102511.3039621335},{"$f":"IF('[1]FISCAL(M)'!$BI306=\"\",\"\",'[1]FISCAL(M)'!$BI306)","v":51616.344487415023},{"$f":"IF('[1]FISCAL(M)'!$BS306=\"\",\"\",'[1]FISCAL(M)'!$BS306)","v":50894.959474718489},{"$f":"IF('[1]FISCAL(M)'!$AZ306=\"\",\"\",'[1]FISCAL(M)'!$AZ306)","v":120950.93269977349},{"$f":"IF('[1]FISCAL(M)'!$BJ306=\"\",\"\",'[1]FISCAL(M)'!$BJ306)","v":55619.413177155016},{"$f":"IF('[1]FISCAL(M)'!$BT306=\"\",\"\",'[1]FISCAL(M)'!$BT306)","v":65331.519522618481},{"$f":"IF('[2]MONE(M)'!$AO306=\"\",\"\",'[2]MONE(M)'!$AO306)","v":15338812.09906611},{"$f":"IF('[3]MONE(M)'!$AO306=\"\",\"\",'[3]MONE(M)'!$AO306)","v":10473.888090020002},{"$f":"IF('[4]MONE(M)'!$AO306=\"\",\"\",'[4]MONE(M)'!$AO306)","v":153714.61361493432},{"$f":"IF('[5]MONE(M)'!$AO306=\"\",\"\",'[5]MONE(M)'!$AO306)","v":224797.59615872789},{"$f":"IF('[6]MONE(M)'!$AO306=\"\",\"\",'[6]MONE(M)'!$AO306)","v":89674.577212160846},{"$f":"IF('[7]MONE(M)'!$AO306=\"\",\"\",'[7]MONE(M)'!$AO306)","v":650573.89848040999},{"$f":"IF('[8]MONE(M)'!$AO306=\"\",\"\",'[8]MONE(M)'!$AO306)","v":37682.759860039994},{"$f":"IF(BY299=\"\",\"\",((BY299/BY287)-1)*100)","v":18.363441277265569},7.4671974961522336,7.9394048259235239,13.327309509104124,21.880076677301563,13.584334016463263,11.852208644893135,{"$f":"IF('[1]FISCAL(M)'!$K306=\"\",\"\",'[1]FISCAL(M)'!$K306)","v":-3919.3702728004446},{"$f":"+'[1]REAL(A)'!$AO$34","v":229913.75829465021},-1.7047132376382206,{"$f":"IF('[1]FISCAL(M)'!$L306=\"\",\"\",'[1]FISCAL(M)'!$L306)","v":-3458.983541628445},{"$f":"+'[1]REAL(A)'!$AP$34","v":279835.22129465023},-1.2360786914619071,115874.47058597735,{"$f":"'[1]Gráfico REM'!BG300","v":20837.502319816984},{"$f":"'[1]Gráfico REM'!BH300","v":88116.392194338536},{"$f":"'[1]Gráfico REM'!BI300","v":6920.5760718218407},7.5226789795667104,-3.6310037367843662,10.080237395930602,13.499936054780148,176487.06108326736,{"$f":"'[1]Gráfico REM'!BK300","v":22609.238660006984},{"$f":"'[1]Gráfico REM'!BL300","v":125799.15205437853},{"$f":"'[1]Gráfico REM'!BM300","v":28078.670368881838},7.0189959800371682,-5.1662623583366489,10.605108035972034,2.725168463456118]
[2014,"octubre","2014-octubre",{"$f":"IF('[1]REAL IPC(M)'!$AL307=\"\",\"\",+'[1]REAL IPC(M)'!$AL307)","v":4.5071877409863514},{"$f":"IF('[1]REAL IPC(M)'!$BE307=\"\",\"\",+'[1]REAL IPC(M)'!$BE307)","v":3.2885990921732056},{"$f":"IF('[1]REAL IPC(M)'!$AM307=\"\",\"\",+'[1]REAL IPC(M)'!$AM307)","v":4.6008355960187597},{"$f":"IF('[1]REAL IPC(M)'!$BI307=\"\",\"\",+'[1]REAL IPC(M)'!$BI307)","v":3.1954326254074017},{"$f":"IF('[1]REAL IMAE(M)'!BJ307=\"\",\"\",'[1]REAL IMAE(M)'!BJ307)","v":4.6262774791900441},{"$f":"IF('[1]REAL IMAE(M)'!BK307=\"\",\"\",'[1]REAL IMAE(M)'!BK307)","v":4.6090262383728486},{"$f":"IF('[1]REAL IMAE(M)'!BN307=\"\",\"\",'[1]REAL IMAE(M)'!BN307)","v":4.5685216241054594},{"$f":"IF('[1]REAL IMAE(M)'!BO307=\"\",\"\",'[1]REAL IMAE(M)'!BO307)","v":4.8096409977534504},{"$f":"IF('[1]EXT RIN(M)'!$K307=\"\",\"\",'[1]EXT RIN(M)'!$K307)","v":26356.638916895186},"",{"$f":"IF('[1]EXT RIN(M)'!$L307=\"\",\"\",'[1]EXT RIN(M)'!$L307)","v":29773.351893185187},"",{"$f":"IF('[1]MONE(M)CARD'!EG307=\"\",\"\",'[1]MONE(M)CARD'!EG307)","v":26907.761992608503},{"$f":"IF('[1]MONE(M)CARD'!EK307=\"\",\"\",'[1]MONE(M)CARD'!EK307)","v":47038.290094776414},{"$f":"IF('[1]MONE(M)CARD'!EP307=\"\",\"\",'[1]MONE(M)CARD'!EP307)","v":26546.202497352046},{"$f":"IF('[1]MONE(M)CARD'!ES307=\"\",\"\",'[1]MONE(M)CARD'!ES307)","v":6.9126552653129947},{"$f":"IF('[1]MONE(M)CARD'!EV307=\"\",\"\",'[1]MONE(M)CARD'!EV307)","v":7.4183689326291935},{"$f":"IF('[1]MONE(M)CARD'!EZ307=\"\",\"\",'[1]MONE(M)CARD'!EZ307)","v":7.7150483692442817},{"$f":"IF('[1]MONE(M)CAPARD'!FC307=\"\",\"\",'[1]MONE(M)CAPARD'!FC307)","v":34860.539710018507},{"$f":"IF('[1]MONE(M)CAPARD'!FG307=\"\",\"\",'[1]MONE(M)CAPARD'!FG307)","v":73123.571869226391},{"$f":"IF('[1]MONE(M)CAPARD'!FL307=\"\",\"\",'[1]MONE(M)CAPARD'!FL307)","v":26546.202497352031},{"$f":"IF('[1]MONE(M)CAPARD'!FO307=\"\",\"\",'[1]MONE(M)CAPARD'!FO307)","v":6.740504902463762},{"$f":"IF('[1]MONE(M)CAPARD'!FR307=\"\",\"\",'[1]MONE(M)CAPARD'!FR307)","v":7.7148101502167998},{"$f":"IF('[1]MONE(M)CAPARD'!FV307=\"\",\"\",'[1]MONE(M)CAPARD'!FV307)","v":7.8786286746939105},{"$f":"IF('[1]MONE(M)CARD'!FV307=\"\",\"\",'[1]MONE(M)CARD'!FV307)","v":903.43346426385415},{"$f":"IF('[1]MONE(M)CARD'!GD307=\"\",\"\",'[1]MONE(M)CARD'!GD307)","v":96.283133783499636},{"$f":"IF('[1]MONE(M)CARD'!GE307=\"\",\"\",'[1]MONE(M)CARD'!GE307)","v":8214.4049006783134},1.8336924230610618,{"$f":"IF('[9]II.2.Balance OSD-Activos'!J165=\"\",\"\",'[9]II.2.Balance OSD-Activos'!J165)","v":196.87775383872659},{"$f":"IF('[9]II.2.Balance OSD-Activos'!N165=\"\",\"\",'[9]II.2.Balance OSD-Activos'!N165)","v":876.15332325612621},{"$f":"IF('[9]II.2.Balance OSD-Activos'!R165=\"\",\"\",'[9]II.2.Balance OSD-Activos'!R165)","v":40531.566140678035},{"$f":"IF('[9]II.2.Balance OSD-Activos'!S165=\"\",\"\",'[9]II.2.Balance OSD-Activos'!S165)","v":44021.308807862712},40728.443894516764,85625.906025635602,45.140981257024478,9.0712627951698543,35.660294510884597,8.9397577655183404,10.743035910781895,10.147016633548155,5.584487666732052E-2,{"$f":"IF('[1]MONE(M)CAPARD'!GS307=\"\",\"\",'[1]MONE(M)CAPARD'!GS307)","v":15612.0590064319},{"$f":"IF('[1]MONE(M)CARD'!HA307=\"\",\"\",'[1]MONE(M)CAPARD'!HA307)","v":8980.8601511483139},{"$f":"IF('[1]MONE(M)CAPARD'!HB307=\"\",\"\",'[1]MONE(M)CAPARD'!HB307)","v":6631.1988552835865},"n.d.",{"$f":"IF('[10]II.2.Balance OSD-Activos'!J165=\"\",\"\",'[10]II.2.Balance OSD-Activos'!J165)","v":1667.2715332987268},{"$f":"IF('[10]II.2.Balance OSD-Activos'!N165=\"\",\"\",'[10]II.2.Balance OSD-Activos'!N165)","v":1404.6722341361265},{"$f":"IF('[10]II.2.Balance OSD-Activos'!R165=\"\",\"\",'[10]II.2.Balance OSD-Activos'!R165)","v":59944.665773278022},{"$f":"IF('[10]II.2.Balance OSD-Activos'!S165=\"\",\"\",'[10]II.2.Balance OSD-Activos'!S165)","v":60071.485873122714},61611.93730657675,123088.09541383559,36.53347123806028,9.9023749453238672,29.706298424046906,9.3093635067037717,11.251186451660256,10.750655094718397,0.21983398385829744,{"$f":"IF('[1]MONE(M)CAPARD'!AS307=\"\",\"\",'[1]MONE(M)CAPARD'!AS307)","v":5.25},{"$f":"IF('[1]MONE(M)CAPARD'!AT307=\"\",\"\",'[1]MONE(M)CAPARD'!AT307)","v":"n.a."},{"$f":"IF('[1]MONE(M)CAPARD'!AU307=\"\",\"\",'[1]MONE(M)CAPARD'!AU307)","v":4.5},{"$f":"IF('[1]MONE(M)CAPARD'!AV307=\"\",\"\",'[1]MONE(M)CAPARD'!AV307)","v":7},{"$f":"IF('[1]MONE(M)CAPARD'!AW307=\"\",\"\",'[1]MONE(M)CAPARD'!AW307)","v":"n.a."},{"$f":"IF('[1]MONE(M)CAPARD'!AX307=\"\",\"\",'[1]MONE(M)CAPARD'!AX307)","v":6.25},{"$f":"IF('[1]MONE(M)CAPARD'!AY307=\"\",\"\",'[1]MONE(M)CAPARD'!AY307)","v":"n.a."},{"$f":"IF('[1]FISCAL(M)'!$K307=\"\",\"\",'[1]FISCAL(M)'!$K307)","v":-4098.7602662801137},{"$f":"IF('[1]FISCAL(M)'!$L307=\"\",\"\",'[1]FISCAL(M)'!$L307)","v":-3718.249949148114},{"$f":"IF('[1]FISCAL(M)'!$AY307=\"\",\"\",'[1]FISCAL(M)'!$AY307)","v":102818.4043160055},{"$f":"IF('[1]FISCAL(M)'!$BI307=\"\",\"\",'[1]FISCAL(M)'!$BI307)","v":51972.669016005515},{"$f":"IF('[1]FISCAL(M)'!$BS307=\"\",\"\",'[1]FISCAL(M)'!$BS307)","v":50845.7353},{"$f":"IF('[1]FISCAL(M)'!$AZ307=\"\",\"\",'[1]FISCAL(M)'!$AZ307)","v":121243.12126927549},{"$f":"IF('[1]FISCAL(M)'!$BJ307=\"\",\"\",'[1]FISCAL(M)'!$BJ307)","v":56004.395033285517},{"$f":"IF('[1]FISCAL(M)'!$BT307=\"\",\"\",'[1]FISCAL(M)'!$BT307)","v":65238.726235989991},{"$f":"IF('[2]MONE(M)'!$AO307=\"\",\"\",'[2]MONE(M)'!$AO307)","v":15589186.158845015},{"$f":"IF('[3]MONE(M)'!$AO307=\"\",\"\",'[3]MONE(M)'!$AO307)","v":10499.783361620004},{"$f":"IF('[4]MONE(M)'!$AO307=\"\",\"\",'[4]MONE(M)'!$AO307)","v":155019.64690529858},{"$f":"IF('[5]MONE(M)'!$AO307=\"\",\"\",'[5]MONE(M)'!$AO307)","v":228154.24990210589},{"$f":"IF('[6]MONE(M)'!$AO307=\"\",\"\",'[6]MONE(M)'!$AO307)","v":91112.986098151363},{"$f":"IF('[7]MONE(M)'!$AO307=\"\",\"\",'[7]MONE(M)'!$AO307)","v":668563.70064499998},{"$f":"IF('[8]MONE(M)'!$AO307=\"\",\"\",'[8]MONE(M)'!$AO307)","v":38160.711866529993},18.657382714563163,6.1754974081871694,7.80548995407917,11.65081502951546,19.675782213652294,15.714664485400176,12.409416808922646,{"$f":"IF('[1]FISCAL(M)'!$K307=\"\",\"\",'[1]FISCAL(M)'!$K307)","v":-4098.7602662801137},{"$f":"+'[1]REAL(A)'!$AO$34","v":229913.75829465021},-1.7827381435030401,{"$f":"IF('[1]FISCAL(M)'!$L307=\"\",\"\",'[1]FISCAL(M)'!$L307)","v":-3718.249949148114},{"$f":"+'[1]REAL(A)'!$AP$34","v":279835.22129465023},-1.3287283609067255,116911.90318265079,{"$f":"'[1]Gráfico REM'!BG301","v":20367.210644170402},{"$f":"'[1]Gráfico REM'!BH301","v":89501.091260142552},{"$f":"'[1]Gráfico REM'!BI301","v":7043.6012783378364},7.8087895914582761,-3.3296650417926288,10.167253638596918,14.830206508948706,178175.25886059081,{"$f":"'[1]Gráfico REM'!BK301","v":22290.055384620402},{"$f":"'[1]Gráfico REM'!BL301","v":127661.80312667254},{"$f":"'[1]Gráfico REM'!BM301","v":28223.400349297841},8.8907769440020434,-4.4388343599861546,10.828053156821582,12.385616499318974]
[2014,"noviembre","2014-noviembre",{"$f":"IF('[1]REAL IPC(M)'!$AL308=\"\",\"\",+'[1]REAL IPC(M)'!$AL308)","v":4.4847390436631329},{"$f":"IF('[1]REAL IPC(M)'!$BE308=\"\",\"\",+'[1]REAL IPC(M)'!$BE308)","v":3.2195428487013844},{"$f":"IF('[1]REAL IPC(M)'!$AM308=\"\",\"\",+'[1]REAL IPC(M)'!$AM308)","v":4.5561900750803463},{"$f":"IF('[1]REAL IPC(M)'!$BI308=\"\",\"\",+'[1]REAL IPC(M)'!$BI308)","v":3.1256070373468336},{"$f":"IF('[1]REAL IMAE(M)'!BJ308=\"\",\"\",'[1]REAL IMAE(M)'!BJ308)","v":4.8317923254028727},{"$f":"IF('[1]REAL IMAE(M)'!BK308=\"\",\"\",'[1]REAL IMAE(M)'!BK308)","v":4.6375014178361873},{"$f":"IF('[1]REAL IMAE(M)'!BN308=\"\",\"\",'[1]REAL IMAE(M)'!BN308)","v":4.8796831579069888},{"$f":"IF('[1]REAL IMAE(M)'!BO308=\"\",\"\",'[1]REAL IMAE(M)'!BO308)","v":4.8134872603384782},{"$f":"IF('[1]EXT RIN(M)'!$K308=\"\",\"\",'[1]EXT RIN(M)'!$K308)","v":26346.914638817725},"",{"$f":"IF('[1]EXT RIN(M)'!$L308=\"\",\"\",'[1]EXT RIN(M)'!$L308)","v":30276.050594377724},"",{"$f":"IF('[1]MONE(M)CARD'!EG308=\"\",\"\",'[1]MONE(M)CARD'!EG308)","v":27877.522145956576},{"$f":"IF('[1]MONE(M)CARD'!EK308=\"\",\"\",'[1]MONE(M)CARD'!EK308)","v":46737.404715613709},{"$f":"IF('[1]MONE(M)CARD'!EP308=\"\",\"\",'[1]MONE(M)CARD'!EP308)","v":26705.905342407976},{"$f":"IF('[1]MONE(M)CARD'!ES308=\"\",\"\",'[1]MONE(M)CARD'!ES308)","v":7.3492465941037644},{"$f":"IF('[1]MONE(M)CARD'!EV308=\"\",\"\",'[1]MONE(M)CARD'!EV308)","v":7.7222675540342012},{"$f":"IF('[1]MONE(M)CARD'!EZ308=\"\",\"\",'[1]MONE(M)CARD'!EZ308)","v":8.2260521602425918},{"$f":"IF('[1]MONE(M)CAPARD'!FC308=\"\",\"\",'[1]MONE(M)CAPARD'!FC308)","v":36015.969143946575},{"$f":"IF('[1]MONE(M)CAPARD'!FG308=\"\",\"\",'[1]MONE(M)CAPARD'!FG308)","v":72829.110371653718},{"$f":"IF('[1]MONE(M)CAPARD'!FL308=\"\",\"\",'[1]MONE(M)CAPARD'!FL308)","v":26705.90534240799},{"$f":"IF('[1]MONE(M)CAPARD'!FO308=\"\",\"\",'[1]MONE(M)CAPARD'!FO308)","v":11.459967357395872},{"$f":"IF('[1]MONE(M)CAPARD'!FR308=\"\",\"\",'[1]MONE(M)CAPARD'!FR308)","v":13.155415076388199},{"$f":"IF('[1]MONE(M)CAPARD'!FV308=\"\",\"\",'[1]MONE(M)CAPARD'!FV308)","v":12.449014405848002},{"$f":"IF('[1]MONE(M)CARD'!FV308=\"\",\"\",'[1]MONE(M)CARD'!FV308)","v":878.98322763971441},{"$f":"IF('[1]MONE(M)CARD'!GD308=\"\",\"\",'[1]MONE(M)CARD'!GD308)","v":94.990957155538652},{"$f":"IF('[1]MONE(M)CARD'!GE308=\"\",\"\",'[1]MONE(M)CARD'!GE308)","v":8005.7400618836618},-6.2418099417859914,{"$f":"IF('[9]II.2.Balance OSD-Activos'!J166=\"\",\"\",'[9]II.2.Balance OSD-Activos'!J166)","v":178.93217045341822},{"$f":"IF('[9]II.2.Balance OSD-Activos'!N166=\"\",\"\",'[9]II.2.Balance OSD-Activos'!N166)","v":872.64235893422926},{"$f":"IF('[9]II.2.Balance OSD-Activos'!R166=\"\",\"\",'[9]II.2.Balance OSD-Activos'!R166)","v":41447.839968175947},{"$f":"IF('[9]II.2.Balance OSD-Activos'!S166=\"\",\"\",'[9]II.2.Balance OSD-Activos'!S166)","v":44585.505009192362},41626.772138629363,87084.919506755949,26.92869679216432,9.7153409344967745,26.534334237363886,9.6511453103202314,10.256072406439865,10.138586281863947,-8.4303516842076931E-3,{"$f":"IF('[1]MONE(M)CAPARD'!GS308=\"\",\"\",'[1]MONE(M)CAPARD'!GS308)","v":14976.336675930967},{"$f":"IF('[1]MONE(M)CARD'!HA308=\"\",\"\",'[1]MONE(M)CAPARD'!HA308)","v":8776.2931078236597},{"$f":"IF('[1]MONE(M)CAPARD'!HB308=\"\",\"\",'[1]MONE(M)CAPARD'!HB308)","v":6200.0435681073068},"n.d.",{"$f":"IF('[10]II.2.Balance OSD-Activos'!J166=\"\",\"\",'[10]II.2.Balance OSD-Activos'!J166)","v":1649.4689772034183},{"$f":"IF('[10]II.2.Balance OSD-Activos'!N166=\"\",\"\",'[10]II.2.Balance OSD-Activos'!N166)","v":1431.3249416042295},{"$f":"IF('[10]II.2.Balance OSD-Activos'!R166=\"\",\"\",'[10]II.2.Balance OSD-Activos'!R166)","v":61092.157032335956},{"$f":"IF('[10]II.2.Balance OSD-Activos'!S166=\"\",\"\",'[10]II.2.Balance OSD-Activos'!S166)","v":60783.962981372359},62741.626009539374,124956.91393251596,18.405976929575285,15.280113037850839,28.01695310944563,15.198002276577039,15.906700287495855,15.716285283846233,4.965630189127836,{"$f":"IF('[1]MONE(M)CAPARD'!AS308=\"\",\"\",'[1]MONE(M)CAPARD'!AS308)","v":5.25},{"$f":"IF('[1]MONE(M)CAPARD'!AT308=\"\",\"\",'[1]MONE(M)CAPARD'!AT308)","v":"n.a."},{"$f":"IF('[1]MONE(M)CAPARD'!AU308=\"\",\"\",'[1]MONE(M)CAPARD'!AU308)","v":4},{"$f":"IF('[1]MONE(M)CAPARD'!AV308=\"\",\"\",'[1]MONE(M)CAPARD'!AV308)","v":7},{"$f":"IF('[1]MONE(M)CAPARD'!AW308=\"\",\"\",'[1]MONE(M)CAPARD'!AW308)","v":"n.a."},{"$f":"IF('[1]MONE(M)CAPARD'!AX308=\"\",\"\",'[1]MONE(M)CAPARD'!AX308)","v":6.25},{"$f":"IF('[1]MONE(M)CAPARD'!AY308=\"\",\"\",'[1]MONE(M)CAPARD'!AY308)","v":"n.a."},{"$f":"IF('[1]FISCAL(M)'!$K308=\"\",\"\",'[1]FISCAL(M)'!$K308)","v":-5258.9488886920117},{"$f":"IF('[1]FISCAL(M)'!$L308=\"\",\"\",'[1]FISCAL(M)'!$L308)","v":-4835.9919310700125},{"$f":"IF('[1]FISCAL(M)'!$AY308=\"\",\"\",'[1]FISCAL(M)'!$AY308)","v":102588.16604151092},{"$f":"IF('[1]FISCAL(M)'!$BI308=\"\",\"\",'[1]FISCAL(M)'!$BI308)","v":51266.241610707701},{"$f":"IF('[1]FISCAL(M)'!$BS308=\"\",\"\",'[1]FISCAL(M)'!$BS308)","v":51321.924430803207},{"$f":"IF('[1]FISCAL(M)'!$AZ308=\"\",\"\",'[1]FISCAL(M)'!$AZ308)","v":120927.85969626092},{"$f":"IF('[1]FISCAL(M)'!$BJ308=\"\",\"\",'[1]FISCAL(M)'!$BJ308)","v":55261.407024607703},{"$f":"IF('[1]FISCAL(M)'!$BT308=\"\",\"\",'[1]FISCAL(M)'!$BT308)","v":65666.452671653213},{"$f":"IF('[2]MONE(M)'!$AO308=\"\",\"\",'[2]MONE(M)'!$AO308)","v":15765930.409410212},{"$f":"IF('[3]MONE(M)'!$AO308=\"\",\"\",'[3]MONE(M)'!$AO308)","v":10584.77539015},{"$f":"IF('[4]MONE(M)'!$AO308=\"\",\"\",'[4]MONE(M)'!$AO308)","v":156944.31941509101},{"$f":"IF('[5]MONE(M)'!$AO308=\"\",\"\",'[5]MONE(M)'!$AO308)","v":231519.86374804506},{"$f":"IF('[6]MONE(M)'!$AO308=\"\",\"\",'[6]MONE(M)'!$AO308)","v":94489.953607852527},{"$f":"IF('[7]MONE(M)'!$AO308=\"\",\"\",'[7]MONE(M)'!$AO308)","v":687438.75309000001},{"$f":"IF('[8]MONE(M)'!$AO308=\"\",\"\",'[8]MONE(M)'!$AO308)","v":38531.707593690007},18.191490178279125,5.351480200029135,8.2248070651267611,11.781050769067036,20.967918216604264,16.456437494943433,31.137047482721659,{"$f":"IF('[1]FISCAL(M)'!$K308=\"\",\"\",'[1]FISCAL(M)'!$K308)","v":-5258.9488886920117},{"$f":"+'[1]REAL(A)'!$AO$34","v":229913.75829465021},-2.2873571932795378,{"$f":"IF('[1]FISCAL(M)'!$L308=\"\",\"\",'[1]FISCAL(M)'!$L308)","v":-4835.9919310700125},{"$f":"+'[1]REAL(A)'!$AP$34","v":279835.22129465023},-1.728156987778888,117178.20141628796,{"$f":"'[1]Gráfico REM'!BG302","v":19555.179003637397},{"$f":"'[1]Gráfico REM'!BH302","v":90862.925707362345},{"$f":"'[1]Gráfico REM'!BI302","v":6760.0967052882224},6.3944781663095807,-8.7419772048783493,10.105719174138672,9.3193318501675559,179287.50089488798,{"$f":"'[1]Gráfico REM'!BK302","v":21453.301929707395},{"$f":"'[1]Gráfico REM'!BL302","v":129394.63330105235},{"$f":"'[1]Gráfico REM'!BM302","v":28439.565664128226},12.194455508613554,-8.1339621894431779,15.627837345525109,15.882426476848654]
[2014,"diciembre","2014-diciembre",{"$f":"IF('[1]REAL IPC(M)'!$AL309=\"\",\"\",+'[1]REAL IPC(M)'!$AL309)","v":3.6591195205586402},{"$f":"IF('[1]REAL IPC(M)'!$BE309=\"\",\"\",+'[1]REAL IPC(M)'!$BE309)","v":3.1519547647323343},{"$f":"IF('[1]REAL IPC(M)'!$AM309=\"\",\"\",+'[1]REAL IPC(M)'!$AM309)","v":3.7390406502067153},{"$f":"IF('[1]REAL IPC(M)'!$BI309=\"\",\"\",+'[1]REAL IPC(M)'!$BI309)","v":3.0562104362542142},{"$f":"IF('[1]REAL IMAE(M)'!BJ309=\"\",\"\",'[1]REAL IMAE(M)'!BJ309)","v":4.9488406321838818},{"$f":"IF('[1]REAL IMAE(M)'!BK309=\"\",\"\",'[1]REAL IMAE(M)'!BK309)","v":4.6638560302056264},{"$f":"IF('[1]REAL IMAE(M)'!BN309=\"\",\"\",'[1]REAL IMAE(M)'!BN309)","v":5.1584604613288176},{"$f":"IF('[1]REAL IMAE(M)'!BO309=\"\",\"\",'[1]REAL IMAE(M)'!BO309)","v":4.8167437108133759},{"$f":"IF('[1]EXT RIN(M)'!$K309=\"\",\"\",'[1]EXT RIN(M)'!$K309)","v":27526.147964282471},27526.147964282471,{"$f":"IF('[1]EXT RIN(M)'!$L309=\"\",\"\",'[1]EXT RIN(M)'!$L309)","v":31495.95714002247},31495.95714002247,{"$f":"IF('[1]MONE(M)CARD'!EG309=\"\",\"\",'[1]MONE(M)CARD'!EG309)","v":29521.183547630288},{"$f":"IF('[1]MONE(M)CARD'!EK309=\"\",\"\",'[1]MONE(M)CARD'!EK309)","v":47256.485040419015},{"$f":"IF('[1]MONE(M)CARD'!EP309=\"\",\"\",'[1]MONE(M)CARD'!EP309)","v":26976.482826233943},{"$f":"IF('[1]MONE(M)CARD'!ES309=\"\",\"\",'[1]MONE(M)CARD'!ES309)","v":5.3356600598593262},{"$f":"IF('[1]MONE(M)CARD'!EV309=\"\",\"\",'[1]MONE(M)CARD'!EV309)","v":6.2424220229256644},{"$f":"IF('[1]MONE(M)CARD'!EZ309=\"\",\"\",'[1]MONE(M)CARD'!EZ309)","v":7.0438101740426307},{"$f":"IF('[1]MONE(M)CAPARD'!FC309=\"\",\"\",'[1]MONE(M)CAPARD'!FC309)","v":37837.730515620286},{"$f":"IF('[1]MONE(M)CAPARD'!FG309=\"\",\"\",'[1]MONE(M)CAPARD'!FG309)","v":73593.198486369016},{"$f":"IF('[1]MONE(M)CAPARD'!FL309=\"\",\"\",'[1]MONE(M)CAPARD'!FL309)","v":26976.482826233929},{"$f":"IF('[1]MONE(M)CAPARD'!FO309=\"\",\"\",'[1]MONE(M)CAPARD'!FO309)","v":10.081966690201094},{"$f":"IF('[1]MONE(M)CAPARD'!FR309=\"\",\"\",'[1]MONE(M)CAPARD'!FR309)","v":13.618690643570686},{"$f":"IF('[1]MONE(M)CAPARD'!FV309=\"\",\"\",'[1]MONE(M)CAPARD'!FV309)","v":12.769500642552444},{"$f":"IF('[1]MONE(M)CARD'!FV309=\"\",\"\",'[1]MONE(M)CARD'!FV309)","v":867.64360787336295},{"$f":"IF('[1]MONE(M)CARD'!GD309=\"\",\"\",'[1]MONE(M)CARD'!GD309)","v":116.74019984704634},{"$f":"IF('[1]MONE(M)CARD'!GE309=\"\",\"\",'[1]MONE(M)CARD'!GE309)","v":7521.5908456545194},-9.3026467283108047,{"$f":"IF('[9]II.2.Balance OSD-Activos'!J167=\"\",\"\",'[9]II.2.Balance OSD-Activos'!J167)","v":178.30735750871418},{"$f":"IF('[9]II.2.Balance OSD-Activos'!N167=\"\",\"\",'[9]II.2.Balance OSD-Activos'!N167)","v":865.1159949077279},{"$f":"IF('[9]II.2.Balance OSD-Activos'!R167=\"\",\"\",'[9]II.2.Balance OSD-Activos'!R167)","v":42282.747354879903},{"$f":"IF('[9]II.2.Balance OSD-Activos'!S167=\"\",\"\",'[9]II.2.Balance OSD-Activos'!S167)","v":44813.092819388068},42461.054712388614,88139.263526684415,30.250972306795898,10.225588428733158,{"$f":"IF(OR(AG302=\"\",AG290=\"\"),\"\",((AG302/AG290)-1)*100)","v":23.895423556107986},10.154170559875553,10.063018213769205,10.262192138447478,0.12360585658353074,{"$f":"IF('[1]MONE(M)CAPARD'!GS309=\"\",\"\",'[1]MONE(M)CAPARD'!GS309)","v":15333.398559622065},{"$f":"IF('[1]MONE(M)CARD'!HA309=\"\",\"\",'[1]MONE(M)CAPARD'!HA309)","v":8292.8244205845185},{"$f":"IF('[1]MONE(M)CAPARD'!HB309=\"\",\"\",'[1]MONE(M)CAPARD'!HB309)","v":7040.574139037546},"n.d.",{"$f":"IF('[10]II.2.Balance OSD-Activos'!J167=\"\",\"\",'[10]II.2.Balance OSD-Activos'!J167)","v":1671.3861451187145},{"$f":"IF('[10]II.2.Balance OSD-Activos'!N167=\"\",\"\",'[10]II.2.Balance OSD-Activos'!N167)","v":1261.8687300977278},{"$f":"IF('[10]II.2.Balance OSD-Activos'!R167=\"\",\"\",'[10]II.2.Balance OSD-Activos'!R167)","v":61870.729215289888},{"$f":"IF('[10]II.2.Balance OSD-Activos'!S167=\"\",\"\",'[10]II.2.Balance OSD-Activos'!S167)","v":61220.09973886807},63542.115360408599,126024.0838293744,16.877727711200219,17.319287868215525,12.567357376927045,17.331262534701651,17.550809392881671,17.381979322303607,1.6656940384573744,{"$f":"IF('[1]MONE(M)CAPARD'!AS309=\"\",\"\",'[1]MONE(M)CAPARD'!AS309)","v":5.25},{"$f":"IF('[1]MONE(M)CAPARD'!AT309=\"\",\"\",'[1]MONE(M)CAPARD'!AT309)","v":"n.a."},{"$f":"IF('[1]MONE(M)CAPARD'!AU309=\"\",\"\",'[1]MONE(M)CAPARD'!AU309)","v":4},{"$f":"IF('[1]MONE(M)CAPARD'!AV309=\"\",\"\",'[1]MONE(M)CAPARD'!AV309)","v":7},{"$f":"IF('[1]MONE(M)CAPARD'!AW309=\"\",\"\",'[1]MONE(M)CAPARD'!AW309)","v":"n.a."},{"$f":"IF('[1]MONE(M)CAPARD'!AX309=\"\",\"\",'[1]MONE(M)CAPARD'!AX309)","v":6.25},{"$f":"IF('[1]MONE(M)CAPARD'!AY309=\"\",\"\",'[1]MONE(M)CAPARD'!AY309)","v":"n.a."},{"$f":"IF('[1]FISCAL(M)'!$K309=\"\",\"\",'[1]FISCAL(M)'!$K309)","v":-7066.610384948428},{"$f":"IF('[1]FISCAL(M)'!$L309=\"\",\"\",'[1]FISCAL(M)'!$L309)","v":-7065.4620568564305},{"$f":"IF('[1]FISCAL(M)'!$AY309=\"\",\"\",'[1]FISCAL(M)'!$AY309)","v":103158.58892604793},{"$f":"IF('[1]FISCAL(M)'!$BI309=\"\",\"\",'[1]FISCAL(M)'!$BI309)","v":50597.024849375608},{"$f":"IF('[1]FISCAL(M)'!$BS309=\"\",\"\",'[1]FISCAL(M)'!$BS309)","v":52561.564076672337},{"$f":"IF('[1]FISCAL(M)'!$AZ309=\"\",\"\",'[1]FISCAL(M)'!$AZ309)","v":121428.51468442795},{"$f":"IF('[1]FISCAL(M)'!$BJ309=\"\",\"\",'[1]FISCAL(M)'!$BJ309)","v":54514.723010595611},{"$f":"IF('[1]FISCAL(M)'!$BT309=\"\",\"\",'[1]FISCAL(M)'!$BT309)","v":66913.79167383234},{"$f":"IF('[2]MONE(M)'!$AO309=\"\",\"\",'[2]MONE(M)'!$AO309)","v":15936581.98629624},{"$f":"IF('[3]MONE(M)'!$AO309=\"\",\"\",'[3]MONE(M)'!$AO309)","v":10563.10923468},{"$f":"IF('[4]MONE(M)'!$AO309=\"\",\"\",'[4]MONE(M)'!$AO309)","v":158834.03245987653},{"$f":"IF('[5]MONE(M)'!$AO309=\"\",\"\",'[5]MONE(M)'!$AO309)","v":234000.0265582242},{"$f":"IF('[6]MONE(M)'!$AO309=\"\",\"\",'[6]MONE(M)'!$AO309)","v":96172.139906775876},{"$f":"IF('[7]MONE(M)'!$AO309=\"\",\"\",'[7]MONE(M)'!$AO309)","v":713344.75143313},{"$f":"IF('[8]MONE(M)'!$AO309=\"\",\"\",'[8]MONE(M)'!$AO309)","v":38759.416334230002},17.71606774605068,4.5892834973283669,8.5450118224117855,11.461296669765119,20.597010544536044,19.50387132761271,38.904317287157419,{"$f":"IF('[1]FISCAL(M)'!$K309=\"\",\"\",'[1]FISCAL(M)'!$K309)","v":-7066.610384948428},{"$f":"+'[1]REAL(A)'!$AO$34","v":229913.75829465021},-3.0735917838775371,{"$f":"IF('[1]FISCAL(M)'!$L309=\"\",\"\",'[1]FISCAL(M)'!$L309)","v":-7065.4620568564305},{"$f":"+'[1]REAL(A)'!$AP$34","v":279835.22129465023},-2.5248651775027668,118478.69003680113,{"$f":"'[1]Gráfico REM'!BG303","v":19289.136458633831},{"$f":"'[1]Gráfico REM'!BH303","v":91984.640393054608},{"$f":"'[1]Gráfico REM'!BI303","v":7204.9131851126822},6.9394279231635103,-9.6100401509947595,10.241554905121152,19.85449614029897,180759.46195445111,{"$f":"'[1]Gráfico REM'!BK303","v":21243.561370563832},{"$f":"'[1]Gráfico REM'!BL303","v":130744.05672728461},{"$f":"'[1]Gráfico REM'!BM303","v":28771.843856602689},13.89348746227148,-8.8012357468727931,17.424742137479754,19.520780799020287]
[2015,"enero","2015-enero",{"$f":"IF('[1]REAL IPC(M)'!$AL310=\"\",\"\",+'[1]REAL IPC(M)'!$AL310)","v":2.9122938493285178},{"$f":"IF('[1]REAL IPC(M)'!$BE310=\"\",\"\",+'[1]REAL IPC(M)'!$BE310)","v":3.0863410859130358},{"$f":"IF('[1]REAL IPC(M)'!$AM310=\"\",\"\",+'[1]REAL IPC(M)'!$AM310)","v":2.7540082098864493},{"$f":"IF('[1]REAL IPC(M)'!$BI310=\"\",\"\",+'[1]REAL IPC(M)'!$BI310)","v":2.9878767528832784},{"$f":"IF('[1]REAL IMAE(M)'!BJ310=\"\",\"\",'[1]REAL IMAE(M)'!BJ310)","v":4.775287250942517},{"$f":"IF('[1]REAL IMAE(M)'!BK310=\"\",\"\",'[1]REAL IMAE(M)'!BK310)","v":4.687936270485249},{"$f":"IF('[1]REAL IMAE(M)'!BN310=\"\",\"\",'[1]REAL IMAE(M)'!BN310)","v":4.9897626182987986},{"$f":"IF('[1]REAL IMAE(M)'!BO310=\"\",\"\",'[1]REAL IMAE(M)'!BO310)","v":4.8192835611235774},{"$f":"IF('[1]EXT RIN(M)'!$K310=\"\",\"\",'[1]EXT RIN(M)'!$K310)","v":27587.291850048623},"",{"$f":"IF('[1]EXT RIN(M)'!$L310=\"\",\"\",'[1]EXT RIN(M)'!$L310)","v":31545.068455138622},"",{"$f":"IF('[1]MONE(M)CARD'!EG310=\"\",\"\",'[1]MONE(M)CARD'!EG310)","v":29237.743680097647},{"$f":"IF('[1]MONE(M)CARD'!EK310=\"\",\"\",'[1]MONE(M)CARD'!EK310)","v":47120.330279754678},{"$f":"IF('[1]MONE(M)CARD'!EP310=\"\",\"\",'[1]MONE(M)CARD'!EP310)","v":26832.54854687996},{"$f":"IF('[1]MONE(M)CARD'!ES310=\"\",\"\",'[1]MONE(M)CARD'!ES310)","v":7.1207517811427312},{"$f":"IF('[1]MONE(M)CARD'!EV310=\"\",\"\",'[1]MONE(M)CARD'!EV310)","v":7.0952284893348372},{"$f":"IF('[1]MONE(M)CARD'!EZ310=\"\",\"\",'[1]MONE(M)CARD'!EZ310)","v":7.3551837754822103},{"$f":"IF('[1]MONE(M)CAPARD'!FC310=\"\",\"\",'[1]MONE(M)CAPARD'!FC310)","v":37518.07477168765},{"$f":"IF('[1]MONE(M)CAPARD'!FG310=\"\",\"\",'[1]MONE(M)CAPARD'!FG310)","v":73398.593026244664},{"$f":"IF('[1]MONE(M)CAPARD'!FL310=\"\",\"\",'[1]MONE(M)CAPARD'!FL310)","v":26832.54854687996},{"$f":"IF('[1]MONE(M)CAPARD'!FO310=\"\",\"\",'[1]MONE(M)CAPARD'!FO310)","v":6.6335980579312448},{"$f":"IF('[1]MONE(M)CAPARD'!FR310=\"\",\"\",'[1]MONE(M)CAPARD'!FR310)","v":6.9565922358236554},{"$f":"IF('[1]MONE(M)CAPARD'!FV310=\"\",\"\",'[1]MONE(M)CAPARD'!FV310)","v":7.1777824887575337},{"$f":"IF('[1]MONE(M)CARD'!FV310=\"\",\"\",'[1]MONE(M)CARD'!FV310)","v":1250.9005854596794},{"$f":"IF('[1]MONE(M)CARD'!GD310=\"\",\"\",'[1]MONE(M)CARD'!GD310)","v":83.771696899098814},{"$f":"IF('[1]MONE(M)CARD'!GE310=\"\",\"\",'[1]MONE(M)CARD'!GE310)","v":7677.8909218230438},3.5016666296978638,{"$f":"IF('[9]II.2.Balance OSD-Activos'!J168=\"\",\"\",'[9]II.2.Balance OSD-Activos'!J168)","v":179.70445646899111},{"$f":"IF('[9]II.2.Balance OSD-Activos'!N168=\"\",\"\",'[9]II.2.Balance OSD-Activos'!N168)","v":842.8001959108957},{"$f":"IF('[9]II.2.Balance OSD-Activos'!R168=\"\",\"\",'[9]II.2.Balance OSD-Activos'!R168)","v":41902.442330789898},{"$f":"IF('[9]II.2.Balance OSD-Activos'!S168=\"\",\"\",'[9]II.2.Balance OSD-Activos'!S168)","v":44805.314292827446},42082.146787258891,87730.26127599724,27.640558227626876,10.022344328339617,25.058681332811616,9.9572539824853035,10.0852843641273,10.181783274938528,-8.0408863508949935E-2,{"$f":"IF('[1]MONE(M)CAPARD'!GS310=\"\",\"\",'[1]MONE(M)CAPARD'!GS310)","v":16717.364088119975},{"$f":"IF('[1]MONE(M)CARD'!HA310=\"\",\"\",'[1]MONE(M)CAPARD'!HA310)","v":8440.346416733044},{"$f":"IF('[1]MONE(M)CAPARD'!HB310=\"\",\"\",'[1]MONE(M)CAPARD'!HB310)","v":8277.0176713869314},"n.d.",{"$f":"IF('[10]II.2.Balance OSD-Activos'!J168=\"\",\"\",'[10]II.2.Balance OSD-Activos'!J168)","v":1680.1856445989913},{"$f":"IF('[10]II.2.Balance OSD-Activos'!N168=\"\",\"\",'[10]II.2.Balance OSD-Activos'!N168)","v":1251.3155473608956},{"$f":"IF('[10]II.2.Balance OSD-Activos'!R168=\"\",\"\",'[10]II.2.Balance OSD-Activos'!R168)","v":61669.816429149891},{"$f":"IF('[10]II.2.Balance OSD-Activos'!S168=\"\",\"\",'[10]II.2.Balance OSD-Activos'!S168)","v":61362.168287577442},63350.002073748881,125963.48590868722,13.56671691973288,11.662858932248188,14.683387764776912,11.611881433511861,10.679465713500491,11.210604548681458,-6.1713747736221496,{"$f":"IF('[1]MONE(M)CAPARD'!AS310=\"\",\"\",'[1]MONE(M)CAPARD'!AS310)","v":5.25},{"$f":"IF('[1]MONE(M)CAPARD'!AT310=\"\",\"\",'[1]MONE(M)CAPARD'!AT310)","v":"n.a."},{"$f":"IF('[1]MONE(M)CAPARD'!AU310=\"\",\"\",'[1]MONE(M)CAPARD'!AU310)","v":4},{"$f":"IF('[1]MONE(M)CAPARD'!AV310=\"\",\"\",'[1]MONE(M)CAPARD'!AV310)","v":7},{"$f":"IF('[1]MONE(M)CAPARD'!AW310=\"\",\"\",'[1]MONE(M)CAPARD'!AW310)","v":"n.a."},{"$f":"IF('[1]MONE(M)CAPARD'!AX310=\"\",\"\",'[1]MONE(M)CAPARD'!AX310)","v":6.25},{"$f":"IF('[1]MONE(M)CAPARD'!AY310=\"\",\"\",'[1]MONE(M)CAPARD'!AY310)","v":"n.a."},{"$f":"IF('[1]FISCAL(M)'!$K310=\"\",\"\",'[1]FISCAL(M)'!$K310)","v":1998.54767688634},{"$f":"IF('[1]FISCAL(M)'!$L310=\"\",\"\",'[1]FISCAL(M)'!$L310)","v":1528.99835795634},{"$f":"IF('[1]FISCAL(M)'!$AY310=\"\",\"\",'[1]FISCAL(M)'!$AY310)","v":103276.26975312646},{"$f":"IF('[1]FISCAL(M)'!$BI310=\"\",\"\",'[1]FISCAL(M)'!$BI310)","v":52616.728788030261},{"$f":"IF('[1]FISCAL(M)'!$BS310=\"\",\"\",'[1]FISCAL(M)'!$BS310)","v":50659.540965096196},{"$f":"IF('[1]FISCAL(M)'!$AZ310=\"\",\"\",'[1]FISCAL(M)'!$AZ310)","v":121528.01458092645},{"$f":"IF('[1]FISCAL(M)'!$BJ310=\"\",\"\",'[1]FISCAL(M)'!$BJ310)","v":56536.040147950247},{"$f":"IF('[1]FISCAL(M)'!$BT310=\"\",\"\",'[1]FISCAL(M)'!$BT310)","v":64991.974432976189},{"$f":"IF('[2]MONE(M)'!$AO310=\"\",\"\",'[2]MONE(M)'!$AO310)","v":16019228.720066078},{"$f":"IF('[3]MONE(M)'!$AO310=\"\",\"\",'[3]MONE(M)'!$AO310)","v":10617.416834200001},{"$f":"IF('[4]MONE(M)'!$AO310=\"\",\"\",'[4]MONE(M)'!$AO310)","v":159927.81189756232},{"$f":"IF('[5]MONE(M)'!$AO310=\"\",\"\",'[5]MONE(M)'!$AO310)","v":234535.21951968764},{"$f":"IF('[6]MONE(M)'!$AO310=\"\",\"\",'[6]MONE(M)'!$AO310)","v":97044.866656666534},{"$f":"IF('[7]MONE(M)'!$AO310=\"\",\"\",'[7]MONE(M)'!$AO310)","v":696334.82851400995},{"$f":"IF('[8]MONE(M)'!$AO310=\"\",\"\",'[8]MONE(M)'!$AO310)","v":39082.341256209998},16.69701817561662,5.1274362055206302,8.7780408035045276,10.884113643042426,20.518058031041299,18.393849061736823,14.077215555055588,{"$f":"IF('[1]FISCAL(M)'!$K310=\"\",\"\",'[1]FISCAL(M)'!$K310)","v":1998.54767688634},{"$f":"+'[1]REAL(A)'!$AO$35","v":245374.76772761243},0.81448785276280067,{"$f":"IF('[1]FISCAL(M)'!$L310=\"\",\"\",'[1]FISCAL(M)'!$L310)","v":1528.99835795634},{"$f":"+'[1]REAL(A)'!$AP$35","v":299466.48772761232},0.51057411116634899,119845.39908078479,{"$f":"'[1]Gráfico REM'!BG304","v":21153.554829663604},{"$f":"'[1]Gráfico REM'!BH304","v":91715.230607510006},{"$f":"'[1]Gráfico REM'!BI304","v":6976.6136436111765},{"$f":"IFERROR(+((CS303/CS291)-1)*100,\"\")","v":7.5248410378519148},-5.0863901970462644,10.269917179204779,16.319986624803541,182861.8211739948,{"$f":"'[1]Gráfico REM'!BK304","v":23266.353393493606},{"$f":"'[1]Gráfico REM'!BL304","v":130797.57186372},{"$f":"'[1]Gráfico REM'!BM304","v":28797.895916781184},9.3705031456507548,-5.2809008761678484,11.380647507737329,14.284833027263844]
[2015,"febrero","2015-febrero",{"$f":"IF('[1]REAL IPC(M)'!$AL311=\"\",\"\",+'[1]REAL IPC(M)'!$AL311)","v":2.6642223595578107},{"$f":"IF('[1]REAL IPC(M)'!$BE311=\"\",\"\",+'[1]REAL IPC(M)'!$BE311)","v":3.0232339300178213},{"$f":"IF('[1]REAL IPC(M)'!$AM311=\"\",\"\",+'[1]REAL IPC(M)'!$AM311)","v":2.451749147529303},{"$f":"IF('[1]REAL IPC(M)'!$BI311=\"\",\"\",+'[1]REAL IPC(M)'!$BI311)","v":2.9212774447819223},{"$f":"IF('[1]REAL IMAE(M)'!BJ311=\"\",\"\",'[1]REAL IMAE(M)'!BJ311)","v":4.5573790001413705},{"$f":"IF('[1]REAL IMAE(M)'!BK311=\"\",\"\",'[1]REAL IMAE(M)'!BK311)","v":4.7096083672966582},{"$f":"IF('[1]REAL IMAE(M)'!BN311=\"\",\"\",'[1]REAL IMAE(M)'!BN311)","v":4.6828931238312999},{"$f":"IF('[1]REAL IMAE(M)'!BO311=\"\",\"\",'[1]REAL IMAE(M)'!BO311)","v":4.8210053334557967},{"$f":"IF('[1]EXT RIN(M)'!$K311=\"\",\"\",'[1]EXT RIN(M)'!$K311)","v":27770.155223293394},"",{"$f":"IF('[1]EXT RIN(M)'!$L311=\"\",\"\",'[1]EXT RIN(M)'!$L311)","v":31823.405952363395},"",{"$f":"IF('[1]MONE(M)CARD'!EG311=\"\",\"\",'[1]MONE(M)CARD'!EG311)","v":28931.80176145579},{"$f":"IF('[1]MONE(M)CARD'!EK311=\"\",\"\",'[1]MONE(M)CARD'!EK311)","v":47973.324544976364},{"$f":"IF('[1]MONE(M)CARD'!EP311=\"\",\"\",'[1]MONE(M)CARD'!EP311)","v":27248.158666922158},{"$f":"IF('[1]MONE(M)CARD'!ES311=\"\",\"\",'[1]MONE(M)CARD'!ES311)","v":7.4890098138747252},{"$f":"IF('[1]MONE(M)CARD'!EV311=\"\",\"\",'[1]MONE(M)CARD'!EV311)","v":8.5976036230094302},{"$f":"IF('[1]MONE(M)CARD'!EZ311=\"\",\"\",'[1]MONE(M)CARD'!EZ311)","v":7.6840816140538282},{"$f":"IF('[1]MONE(M)CAPARD'!FC311=\"\",\"\",'[1]MONE(M)CAPARD'!FC311)","v":36981.743647075797},{"$f":"IF('[1]MONE(M)CAPARD'!FG311=\"\",\"\",'[1]MONE(M)CAPARD'!FG311)","v":74494.418329626351},{"$f":"IF('[1]MONE(M)CAPARD'!FL311=\"\",\"\",'[1]MONE(M)CAPARD'!FL311)","v":27248.158666922143},{"$f":"IF('[1]MONE(M)CAPARD'!FO311=\"\",\"\",'[1]MONE(M)CAPARD'!FO311)","v":6.5761449153671991},{"$f":"IF('[1]MONE(M)CAPARD'!FR311=\"\",\"\",'[1]MONE(M)CAPARD'!FR311)","v":7.9076850651202291},{"$f":"IF('[1]MONE(M)CAPARD'!FV311=\"\",\"\",'[1]MONE(M)CAPARD'!FV311)","v":7.3621852312694358},{"$f":"IF('[1]MONE(M)CARD'!FV311=\"\",\"\",'[1]MONE(M)CARD'!FV311)","v":1241.8271333374526},{"$f":"IF('[1]MONE(M)CARD'!GD311=\"\",\"\",'[1]MONE(M)CARD'!GD311)","v":85.072621073021097},{"$f":"IF('[1]MONE(M)CARD'!GE311=\"\",\"\",'[1]MONE(M)CARD'!GE311)","v":7882.5524820341052},-1.0370593910852599,{"$f":"IF('[9]II.2.Balance OSD-Activos'!J169=\"\",\"\",'[9]II.2.Balance OSD-Activos'!J169)","v":187.15148473568638},{"$f":"IF('[9]II.2.Balance OSD-Activos'!N169=\"\",\"\",'[9]II.2.Balance OSD-Activos'!N169)","v":865.68832389911051},{"$f":"IF('[9]II.2.Balance OSD-Activos'!R169=\"\",\"\",'[9]II.2.Balance OSD-Activos'!R169)","v":42101.792017805972},{"$f":"IF('[9]II.2.Balance OSD-Activos'!S169=\"\",\"\",'[9]II.2.Balance OSD-Activos'!S169)","v":45101.53152056213},42288.943502541661,88256.163347002905,-5.621348618060928,10.787792374510307,{"$f":"IF(OR(AG304=\"\",AG292=\"\"),\"\",((AG304/AG292)-1)*100)","v":30.33190861380799},10.873482832666159,11.580673428332688,11.355955178861254,1.1741719039227263,{"$f":"IF('[1]MONE(M)CAPARD'!GS311=\"\",\"\",'[1]MONE(M)CAPARD'!GS311)","v":16876.78143596006},{"$f":"IF('[1]MONE(M)CARD'!HA311=\"\",\"\",'[1]MONE(M)CAPARD'!HA311)","v":8645.3386943541045},{"$f":"IF('[1]MONE(M)CAPARD'!HB311=\"\",\"\",'[1]MONE(M)CAPARD'!HB311)","v":8231.4427416059552},"n.d.",{"$f":"IF('[10]II.2.Balance OSD-Activos'!J169=\"\",\"\",'[10]II.2.Balance OSD-Activos'!J169)","v":1698.5461551556857},{"$f":"IF('[10]II.2.Balance OSD-Activos'!N169=\"\",\"\",'[10]II.2.Balance OSD-Activos'!N169)","v":1358.9993456391105},{"$f":"IF('[10]II.2.Balance OSD-Activos'!R169=\"\",\"\",'[10]II.2.Balance OSD-Activos'!R169)","v":62005.865354795969},{"$f":"IF('[10]II.2.Balance OSD-Activos'!S169=\"\",\"\",'[10]II.2.Balance OSD-Activos'!S169)","v":61813.552048252124},63704.411509951657,126876.96290384288,10.08777550181108,12.233785278206156,27.973804926098424,12.293749577496428,11.763999742908338,12.151864711296678,0.94126016261522061,{"$f":"IF('[1]MONE(M)CAPARD'!AS311=\"\",\"\",'[1]MONE(M)CAPARD'!AS311)","v":4.75},{"$f":"IF('[1]MONE(M)CAPARD'!AT311=\"\",\"\",'[1]MONE(M)CAPARD'!AT311)","v":"n.a."},{"$f":"IF('[1]MONE(M)CAPARD'!AU311=\"\",\"\",'[1]MONE(M)CAPARD'!AU311)","v":3.5},{"$f":"IF('[1]MONE(M)CAPARD'!AV311=\"\",\"\",'[1]MONE(M)CAPARD'!AV311)","v":6.75},{"$f":"IF('[1]MONE(M)CAPARD'!AW311=\"\",\"\",'[1]MONE(M)CAPARD'!AW311)","v":"n.a."},{"$f":"IF('[1]MONE(M)CAPARD'!AX311=\"\",\"\",'[1]MONE(M)CAPARD'!AX311)","v":6.25},{"$f":"IF('[1]MONE(M)CAPARD'!AY311=\"\",\"\",'[1]MONE(M)CAPARD'!AY311)","v":"n.a."},{"$f":"IF('[1]FISCAL(M)'!$K311=\"\",\"\",'[1]FISCAL(M)'!$K311)","v":1464.2342119325444},{"$f":"IF('[1]FISCAL(M)'!$L311=\"\",\"\",'[1]FISCAL(M)'!$L311)","v":885.34360950254472},{"$f":"IF('[1]FISCAL(M)'!$AY311=\"\",\"\",'[1]FISCAL(M)'!$AY311)","v":104591.38184788566},{"$f":"IF('[1]FISCAL(M)'!$BI311=\"\",\"\",'[1]FISCAL(M)'!$BI311)","v":53677.001220275473},{"$f":"IF('[1]FISCAL(M)'!$BS311=\"\",\"\",'[1]FISCAL(M)'!$BS311)","v":50914.380627610168},{"$f":"IF('[1]FISCAL(M)'!$AZ311=\"\",\"\",'[1]FISCAL(M)'!$AZ311)","v":122871.16831897564},{"$f":"IF('[1]FISCAL(M)'!$BJ311=\"\",\"\",'[1]FISCAL(M)'!$BJ311)","v":57647.118478185475},{"$f":"IF('[1]FISCAL(M)'!$BT311=\"\",\"\",'[1]FISCAL(M)'!$BT311)","v":65224.049840790161},{"$f":"IF('[2]MONE(M)'!$AO311=\"\",\"\",'[2]MONE(M)'!$AO311)","v":16097309.597530803},{"$f":"IF('[3]MONE(M)'!$AO311=\"\",\"\",'[3]MONE(M)'!$AO311)","v":10648.455518770003},{"$f":"IF('[4]MONE(M)'!$AO311=\"\",\"\",'[4]MONE(M)'!$AO311)","v":160822.48014138773},{"$f":"IF('[5]MONE(M)'!$AO311=\"\",\"\",'[5]MONE(M)'!$AO311)","v":236986.1719877563},{"$f":"IF('[6]MONE(M)'!$AO311=\"\",\"\",'[6]MONE(M)'!$AO311)","v":98313.366927354451},{"$f":"IF('[7]MONE(M)'!$AO311=\"\",\"\",'[7]MONE(M)'!$AO311)","v":695444.78068095003},{"$f":"IF('[8]MONE(M)'!$AO311=\"\",\"\",'[8]MONE(M)'!$AO311)","v":39361.710748519996},12.931486659970215,5.1661374272873095,9.1821265877380718,11.243903785476238,20.051230403604549,17.670310205801918,14.027674707531013,{"$f":"IF('[1]FISCAL(M)'!$K311=\"\",\"\",'[1]FISCAL(M)'!$K311)","v":1464.2342119325444},{"$f":"+'[1]REAL(A)'!$AO$35","v":245374.76772761243},0.59673381476532794,{"$f":"IF('[1]FISCAL(M)'!$L311=\"\",\"\",'[1]FISCAL(M)'!$L311)","v":885.34360950254472},{"$f":"+'[1]REAL(A)'!$AP$35","v":299466.48772761232},0.29564029558720856,121450.19971827269,{"$f":"'[1]Gráfico REM'!BG305","v":22032.242346443192},{"$f":"'[1]Gráfico REM'!BH305","v":92262.610111337155},{"$f":"'[1]Gráfico REM'!BI305","v":7155.347260492339},8.710272843912481,-3.6398208338674021,11.407424562671231,18.481837296524507,184808.58424576267,{"$f":"'[1]Gráfico REM'!BK305","v":24172.423855673191},{"$f":"'[1]Gráfico REM'!BL305","v":131624.32085985714},{"$f":"'[1]Gráfico REM'!BM305","v":29011.839530232333},10.248010116665629,-3.8385410890638627,12.17829098168648,15.320391269925814]
[2015,"marzo","2015-marzo",{"$f":"IF('[1]REAL IPC(M)'!$AL312=\"\",\"\",+'[1]REAL IPC(M)'!$AL312)","v":2.4673623397482691},{"$f":"IF('[1]REAL IPC(M)'!$BE312=\"\",\"\",+'[1]REAL IPC(M)'!$BE312)","v":2.9631509688179625},{"$f":"IF('[1]REAL IPC(M)'!$AM312=\"\",\"\",+'[1]REAL IPC(M)'!$AM312)","v":2.2877524181056152},{"$f":"IF('[1]REAL IPC(M)'!$BI312=\"\",\"\",+'[1]REAL IPC(M)'!$BI312)","v":2.8570637294266676},{"$f":"IF('[1]REAL IMAE(M)'!BJ312=\"\",\"\",'[1]REAL IMAE(M)'!BJ312)","v":4.5729332398050992},{"$f":"IF('[1]REAL IMAE(M)'!BK312=\"\",\"\",'[1]REAL IMAE(M)'!BK312)","v":4.7287462788077939},{"$f":"IF('[1]REAL IMAE(M)'!BN312=\"\",\"\",'[1]REAL IMAE(M)'!BN312)","v":4.5594354749107113},{"$f":"IF('[1]REAL IMAE(M)'!BO312=\"\",\"\",'[1]REAL IMAE(M)'!BO312)","v":4.8218214435575391},{"$f":"IF('[1]EXT RIN(M)'!$K312=\"\",\"\",'[1]EXT RIN(M)'!$K312)","v":29333.640571309636},"",{"$f":"IF('[1]EXT RIN(M)'!$L312=\"\",\"\",'[1]EXT RIN(M)'!$L312)","v":34075.053537069638},"",{"$f":"IF('[1]MONE(M)CARD'!EG312=\"\",\"\",'[1]MONE(M)CARD'!EG312)","v":29353.2419958787},{"$f":"IF('[1]MONE(M)CARD'!EK312=\"\",\"\",'[1]MONE(M)CARD'!EK312)","v":48617.36237398057},{"$f":"IF('[1]MONE(M)CARD'!EP312=\"\",\"\",'[1]MONE(M)CARD'!EP312)","v":27323.457466969558},{"$f":"IF('[1]MONE(M)CARD'!ES312=\"\",\"\",'[1]MONE(M)CARD'!ES312)","v":8.8635873562149747},{"$f":"IF('[1]MONE(M)CARD'!EV312=\"\",\"\",'[1]MONE(M)CARD'!EV312)","v":9.172923675226663},{"$f":"IF('[1]MONE(M)CARD'!EZ312=\"\",\"\",'[1]MONE(M)CARD'!EZ312)","v":7.9383285608950693},{"$f":"IF('[1]MONE(M)CAPARD'!FC312=\"\",\"\",'[1]MONE(M)CAPARD'!FC312)","v":37326.399497298698},{"$f":"IF('[1]MONE(M)CAPARD'!FG312=\"\",\"\",'[1]MONE(M)CAPARD'!FG312)","v":75350.220096770558},{"$f":"IF('[1]MONE(M)CAPARD'!FL312=\"\",\"\",'[1]MONE(M)CAPARD'!FL312)","v":27323.457466969558},{"$f":"IF('[1]MONE(M)CAPARD'!FO312=\"\",\"\",'[1]MONE(M)CAPARD'!FO312)","v":6.9280192516623318},{"$f":"IF('[1]MONE(M)CAPARD'!FR312=\"\",\"\",'[1]MONE(M)CAPARD'!FR312)","v":8.1475589918002189},{"$f":"IF('[1]MONE(M)CAPARD'!FV312=\"\",\"\",'[1]MONE(M)CAPARD'!FV312)","v":7.4290023799742366},{"$f":"IF('[1]MONE(M)CARD'!FV312=\"\",\"\",'[1]MONE(M)CARD'!FV312)","v":1228.892468289715},{"$f":"IF('[1]MONE(M)CARD'!GD312=\"\",\"\",'[1]MONE(M)CARD'!GD312)","v":86.987061061797121},{"$f":"IF('[1]MONE(M)CARD'!GE312=\"\",\"\",'[1]MONE(M)CARD'!GE312)","v":8072.5779366941324},3.8418018380003138,{"$f":"IF('[9]II.2.Balance OSD-Activos'!J170=\"\",\"\",'[9]II.2.Balance OSD-Activos'!J170)","v":192.55204901064133},{"$f":"IF('[9]II.2.Balance OSD-Activos'!N170=\"\",\"\",'[9]II.2.Balance OSD-Activos'!N170)","v":855.432174334362},{"$f":"IF('[9]II.2.Balance OSD-Activos'!R170=\"\",\"\",'[9]II.2.Balance OSD-Activos'!R170)","v":42447.914160991902},{"$f":"IF('[9]II.2.Balance OSD-Activos'!S170=\"\",\"\",'[9]II.2.Balance OSD-Activos'!S170)","v":45352.77452287059},42640.466210002545,88848.672907207496,-4.4414403943075946,10.002323747056518,5.065453731254177,10.077798607556577,11.350453510381664,10.636008642278494,-0.71994653658276064,{"$f":"IF('[1]MONE(M)CAPARD'!GS312=\"\",\"\",'[1]MONE(M)CAPARD'!GS312)","v":17530.912842423604},{"$f":"IF('[1]MONE(M)CARD'!HA312=\"\",\"\",'[1]MONE(M)CAPARD'!HA312)","v":8829.6795443741321},{"$f":"IF('[1]MONE(M)CAPARD'!HB312=\"\",\"\",'[1]MONE(M)CAPARD'!HB312)","v":8701.2332980494721},"n.d.",{"$f":"IF('[10]II.2.Balance OSD-Activos'!J170=\"\",\"\",'[10]II.2.Balance OSD-Activos'!J170)","v":1703.7193698306417},{"$f":"IF('[10]II.2.Balance OSD-Activos'!N170=\"\",\"\",'[10]II.2.Balance OSD-Activos'!N170)","v":1338.627801974362},{"$f":"IF('[10]II.2.Balance OSD-Activos'!R170=\"\",\"\",'[10]II.2.Balance OSD-Activos'!R170)","v":62557.561120571903},{"$f":"IF('[10]II.2.Balance OSD-Activos'!S170=\"\",\"\",'[10]II.2.Balance OSD-Activos'!S170)","v":62253.241732310584},64261.280490402547,127853.15002468749,9.8414446714999428,11.699651309909754,4.5016085854920229,11.751138356310676,11.644532272145614,11.592348268135311,-0.5595164431613675,{"$f":"IF('[1]MONE(M)CAPARD'!AS312=\"\",\"\",'[1]MONE(M)CAPARD'!AS312)","v":4.5},{"$f":"IF('[1]MONE(M)CAPARD'!AT312=\"\",\"\",'[1]MONE(M)CAPARD'!AT312)","v":"n.a."},{"$f":"IF('[1]MONE(M)CAPARD'!AU312=\"\",\"\",'[1]MONE(M)CAPARD'!AU312)","v":3.5},{"$f":"IF('[1]MONE(M)CAPARD'!AV312=\"\",\"\",'[1]MONE(M)CAPARD'!AV312)","v":6.5},{"$f":"IF('[1]MONE(M)CAPARD'!AW312=\"\",\"\",'[1]MONE(M)CAPARD'!AW312)","v":"n.a."},{"$f":"IF('[1]MONE(M)CAPARD'!AX312=\"\",\"\",'[1]MONE(M)CAPARD'!AX312)","v":6.25},{"$f":"IF('[1]MONE(M)CAPARD'!AY312=\"\",\"\",'[1]MONE(M)CAPARD'!AY312)","v":"n.a."},{"$f":"IF('[1]FISCAL(M)'!$K312=\"\",\"\",'[1]FISCAL(M)'!$K312)","v":659.90552768129555},{"$f":"IF('[1]FISCAL(M)'!$L312=\"\",\"\",'[1]FISCAL(M)'!$L312)","v":390.73923861129532},{"$f":"IF('[1]FISCAL(M)'!$AY312=\"\",\"\",'[1]FISCAL(M)'!$AY312)","v":106346.79987971102},{"$f":"IF('[1]FISCAL(M)'!$BI312=\"\",\"\",'[1]FISCAL(M)'!$BI312)","v":54446.148857753316},{"$f":"IF('[1]FISCAL(M)'!$BS312=\"\",\"\",'[1]FISCAL(M)'!$BS312)","v":51900.651021957696},{"$f":"IF('[1]FISCAL(M)'!$AZ312=\"\",\"\",'[1]FISCAL(M)'!$AZ312)","v":125501.092564241},{"$f":"IF('[1]FISCAL(M)'!$BJ312=\"\",\"\",'[1]FISCAL(M)'!$BJ312)","v":58433.19139351332},{"$f":"IF('[1]FISCAL(M)'!$BT312=\"\",\"\",'[1]FISCAL(M)'!$BT312)","v":67067.901170727695},{"$f":"IF('[2]MONE(M)'!$AO312=\"\",\"\",'[2]MONE(M)'!$AO312)","v":16224713.130327787},{"$f":"IF('[3]MONE(M)'!$AO312=\"\",\"\",'[3]MONE(M)'!$AO312)","v":10664.893516350003},{"$f":"IF('[4]MONE(M)'!$AO312=\"\",\"\",'[4]MONE(M)'!$AO312)","v":162591.89929699866},{"$f":"IF('[5]MONE(M)'!$AO312=\"\",\"\",'[5]MONE(M)'!$AO312)","v":238597.43918134741},{"$f":"IF('[6]MONE(M)'!$AO312=\"\",\"\",'[6]MONE(M)'!$AO312)","v":99278.412151932571},{"$f":"IF('[7]MONE(M)'!$AO312=\"\",\"\",'[7]MONE(M)'!$AO312)","v":696667.29320204002},{"$f":"IF('[8]MONE(M)'!$AO312=\"\",\"\",'[8]MONE(M)'!$AO312)","v":39769.500701409997},12.058696882003694,4.211575700329151,9.7802627751741866,11.136680269175603,19.978461103056677,16.428780290331812,13.835193778527977,{"$f":"IF('[1]FISCAL(M)'!$K312=\"\",\"\",'[1]FISCAL(M)'!$K312)","v":659.90552768129555},{"$f":"+'[1]REAL(A)'!$AO$35","v":245374.76772761243},0.26893781043283504,{"$f":"IF('[1]FISCAL(M)'!$L312=\"\",\"\",'[1]FISCAL(M)'!$L312)","v":390.73923861129532},{"$f":"+'[1]REAL(A)'!$AP$35","v":299466.48772761232},0.13047845238920441,122766.29644506852,{"$f":"'[1]Gráfico REM'!BG306","v":22806.365827077054},{"$f":"'[1]Gráfico REM'!BH306","v":92879.599430009577},{"$f":"'[1]Gráfico REM'!BI306","v":7080.3311879818866},8.5655368137679275,-1.3192716875341959,10.873104277867407,14.235586765693364,186530.53921554855,{"$f":"'[1]Gráfico REM'!BK306","v":24837.484983077054},{"$f":"'[1]Gráfico REM'!BL306","v":132649.10013141957},{"$f":"'[1]Gráfico REM'!BM306","v":29043.954101051888},10.195682914703363,-0.72905596250018023,11.744860414694468,13.696842527358388]
[2015,"abril","2015-abril",{"$f":"IF('[1]REAL IPC(M)'!$AL313=\"\",\"\",+'[1]REAL IPC(M)'!$AL313)","v":1.9504496194635346},{"$f":"IF('[1]REAL IPC(M)'!$BE313=\"\",\"\",+'[1]REAL IPC(M)'!$BE313)","v":2.9065835270300822},{"$f":"IF('[1]REAL IPC(M)'!$AM313=\"\",\"\",+'[1]REAL IPC(M)'!$AM313)","v":1.7973198101044474},{"$f":"IF('[1]REAL IPC(M)'!$BI313=\"\",\"\",+'[1]REAL IPC(M)'!$BI313)","v":2.795849521129834},{"$f":"IF('[1]REAL IMAE(M)'!BJ313=\"\",\"\",'[1]REAL IMAE(M)'!BJ313)","v":4.7349110845442022},{"$f":"IF('[1]REAL IMAE(M)'!BK313=\"\",\"\",'[1]REAL IMAE(M)'!BK313)","v":4.7452173024979283},{"$f":"IF('[1]REAL IMAE(M)'!BN313=\"\",\"\",'[1]REAL IMAE(M)'!BN313)","v":4.5347300567014415},{"$f":"IF('[1]REAL IMAE(M)'!BO313=\"\",\"\",'[1]REAL IMAE(M)'!BO313)","v":4.8216361094825189},{"$f":"IF('[1]EXT RIN(M)'!$K313=\"\",\"\",'[1]EXT RIN(M)'!$K313)","v":29442.456335022081},"",{"$f":"IF('[1]EXT RIN(M)'!$L313=\"\",\"\",'[1]EXT RIN(M)'!$L313)","v":33673.723568032081},"",{"$f":"IF('[1]MONE(M)CARD'!EG313=\"\",\"\",'[1]MONE(M)CARD'!EG313)","v":29429.234223605505},{"$f":"IF('[1]MONE(M)CARD'!EK313=\"\",\"\",'[1]MONE(M)CARD'!EK313)","v":48324.974820864583},{"$f":"IF('[1]MONE(M)CARD'!EP313=\"\",\"\",'[1]MONE(M)CARD'!EP313)","v":27649.067010105369},{"$f":"IF('[1]MONE(M)CARD'!ES313=\"\",\"\",'[1]MONE(M)CARD'!ES313)","v":8.9531924443155155},{"$f":"IF('[1]MONE(M)CARD'!EV313=\"\",\"\",'[1]MONE(M)CARD'!EV313)","v":8.4675158570654663},{"$f":"IF('[1]MONE(M)CARD'!EZ313=\"\",\"\",'[1]MONE(M)CARD'!EZ313)","v":7.8494571365600452},{"$f":"IF('[1]MONE(M)CAPARD'!FC313=\"\",\"\",'[1]MONE(M)CAPARD'!FC313)","v":37282.114267345503},{"$f":"IF('[1]MONE(M)CAPARD'!FG313=\"\",\"\",'[1]MONE(M)CAPARD'!FG313)","v":75181.999661774578},{"$f":"IF('[1]MONE(M)CAPARD'!FL313=\"\",\"\",'[1]MONE(M)CAPARD'!FL313)","v":27649.067010105369},{"$f":"IF('[1]MONE(M)CAPARD'!FO313=\"\",\"\",'[1]MONE(M)CAPARD'!FO313)","v":6.3624518845878164},{"$f":"IF('[1]MONE(M)CAPARD'!FR313=\"\",\"\",'[1]MONE(M)CAPARD'!FR313)","v":7.4789702328262209},{"$f":"IF('[1]MONE(M)CAPARD'!FV313=\"\",\"\",'[1]MONE(M)CAPARD'!FV313)","v":7.213793289928816},{"$f":"IF('[1]MONE(M)CARD'!FV313=\"\",\"\",'[1]MONE(M)CARD'!FV313)","v":1187.355505530862},{"$f":"IF('[1]MONE(M)CARD'!GD313=\"\",\"\",'[1]MONE(M)CARD'!GD313)","v":212.83628335268736},{"$f":"IF('[1]MONE(M)CARD'!GE313=\"\",\"\",'[1]MONE(M)CARD'!GE313)","v":8402.5068644919629},6.343493762740926,{"$f":"IF('[9]II.2.Balance OSD-Activos'!J171=\"\",\"\",'[9]II.2.Balance OSD-Activos'!J171)","v":197.25218546474298},{"$f":"IF('[9]II.2.Balance OSD-Activos'!N171=\"\",\"\",'[9]II.2.Balance OSD-Activos'!N171)","v":880.93533829122691},{"$f":"IF('[9]II.2.Balance OSD-Activos'!R171=\"\",\"\",'[9]II.2.Balance OSD-Activos'!R171)","v":42545.764639710556},{"$f":"IF('[9]II.2.Balance OSD-Activos'!S171=\"\",\"\",'[9]II.2.Balance OSD-Activos'!S171)","v":45602.175370509074},42743.016825175298,{"$f":"IF(OR(AF306=\"\",AG306=\"\",AH306=\"\",AI306=\"\"),\"\",SUM(AF306:AI306))","v":89226.12753397561},-12.073490065467073,9.1124646984725786,19.736709040535771,9.2344910103583153,11.11486982203067,10.224222253487936,-0.41178638879055818,{"$f":"IF('[1]MONE(M)CAPARD'!GS313=\"\",\"\",'[1]MONE(M)CAPARD'!GS313)","v":17384.981629465987},{"$f":"IF('[1]MONE(M)CARD'!HA313=\"\",\"\",'[1]MONE(M)CAPARD'!HA313)","v":9212.593984671963},{"$f":"IF('[1]MONE(M)CAPARD'!HB313=\"\",\"\",'[1]MONE(M)CAPARD'!HB313)","v":8172.3876447940238},"n.d.",{"$f":"IF('[10]II.2.Balance OSD-Activos'!J171=\"\",\"\",'[10]II.2.Balance OSD-Activos'!J171)","v":1686.041045044743},{"$f":"IF('[10]II.2.Balance OSD-Activos'!N171=\"\",\"\",'[10]II.2.Balance OSD-Activos'!N171)","v":1357.178789341227},{"$f":"IF('[10]II.2.Balance OSD-Activos'!R171=\"\",\"\",'[10]II.2.Balance OSD-Activos'!R171)","v":62777.705688810551},{"$f":"IF('[10]II.2.Balance OSD-Activos'!S171=\"\",\"\",'[10]II.2.Balance OSD-Activos'!S171)","v":62697.777950579075},64463.746733855296,128518.70347377559,6.9521129826270345,10.70125710473766,13.072898751835105,10.805576987258348,11.550126771975599,11.138465906475869,-0.45388236165944207,{"$f":"IF('[1]MONE(M)CAPARD'!AS313=\"\",\"\",'[1]MONE(M)CAPARD'!AS313)","v":4},{"$f":"IF('[1]MONE(M)CAPARD'!AT313=\"\",\"\",'[1]MONE(M)CAPARD'!AT313)","v":"n.a."},{"$f":"IF('[1]MONE(M)CAPARD'!AU313=\"\",\"\",'[1]MONE(M)CAPARD'!AU313)","v":3.5},{"$f":"IF('[1]MONE(M)CAPARD'!AV313=\"\",\"\",'[1]MONE(M)CAPARD'!AV313)","v":6.5},{"$f":"IF('[1]MONE(M)CAPARD'!AW313=\"\",\"\",'[1]MONE(M)CAPARD'!AW313)","v":"n.a."},{"$f":"IF('[1]MONE(M)CAPARD'!AX313=\"\",\"\",'[1]MONE(M)CAPARD'!AX313)","v":5.75},{"$f":"IF('[1]MONE(M)CAPARD'!AY313=\"\",\"\",'[1]MONE(M)CAPARD'!AY313)","v":"n.a."},{"$f":"IF('[1]FISCAL(M)'!$K313=\"\",\"\",'[1]FISCAL(M)'!$K313)","v":901.34367751962054},{"$f":"IF('[1]FISCAL(M)'!$L313=\"\",\"\",'[1]FISCAL(M)'!$L313)","v":308.55467093962102},{"$f":"IF('[1]FISCAL(M)'!$AY313=\"\",\"\",'[1]FISCAL(M)'!$AY313)","v":106818.19550366513},{"$f":"IF('[1]FISCAL(M)'!$BI313=\"\",\"\",'[1]FISCAL(M)'!$BI313)","v":54893.394832290047},{"$f":"IF('[1]FISCAL(M)'!$BS313=\"\",\"\",'[1]FISCAL(M)'!$BS313)","v":51924.800671375073},{"$f":"IF('[1]FISCAL(M)'!$AZ313=\"\",\"\",'[1]FISCAL(M)'!$AZ313)","v":125938.27025021511},{"$f":"IF('[1]FISCAL(M)'!$BJ313=\"\",\"\",'[1]FISCAL(M)'!$BJ313)","v":58901.437368050043},{"$f":"IF('[1]FISCAL(M)'!$BT313=\"\",\"\",'[1]FISCAL(M)'!$BT313)","v":67036.832882165065},{"$f":"IF('[2]MONE(M)'!$AO313=\"\",\"\",'[2]MONE(M)'!$AO313)","v":16366541.001709189},{"$f":"IF('[3]MONE(M)'!$AO313=\"\",\"\",'[3]MONE(M)'!$AO313)","v":10665.880593709999},{"$f":"IF('[4]MONE(M)'!$AO313=\"\",\"\",'[4]MONE(M)'!$AO313)","v":164592.73719979438},{"$f":"IF('[5]MONE(M)'!$AO313=\"\",\"\",'[5]MONE(M)'!$AO313)","v":239946.86968677916},{"$f":"IF('[6]MONE(M)'!$AO313=\"\",\"\",'[6]MONE(M)'!$AO313)","v":100644.14816376864},{"$f":"IF('[7]MONE(M)'!$AO313=\"\",\"\",'[7]MONE(M)'!$AO313)","v":701553.19152820995},{"$f":"IF('[8]MONE(M)'!$AO313=\"\",\"\",'[8]MONE(M)'!$AO313)","v":40062.299558889994},12.056158189717259,3.4435486229064338,9.7132518642700774,10.910652658718734,19.432255953703393,16.096374841323268,13.320524239285092,{"$f":"IF('[1]FISCAL(M)'!$K313=\"\",\"\",'[1]FISCAL(M)'!$K313)","v":901.34367751962054},{"$f":"+'[1]REAL(A)'!$AO$35","v":245374.76772761243},0.36733348170509172,{"$f":"IF('[1]FISCAL(M)'!$L313=\"\",\"\",'[1]FISCAL(M)'!$L313)","v":308.55467093962102},{"$f":"+'[1]REAL(A)'!$AP$35","v":299466.48772761232},0.10303479139885431,123102.46671923783,{"$f":"'[1]Gráfico REM'!BG307","v":22630.529648254109},{"$f":"'[1]Gráfico REM'!BH307","v":93304.390530768374},{"$f":"'[1]Gráfico REM'!BI307","v":7167.5465402153477},8.3526020863508688,-1.8942497003871406,10.536909961083673,16.826886840377252,187190.95913655782,{"$f":"'[1]Gráfico REM'!BK307","v":24454.775404164109},{"$f":"'[1]Gráfico REM'!BL307","v":133366.69008965837},{"$f":"'[1]Gráfico REM'!BM307","v":29369.493642735346},9.7716412518670026,-1.4921702787411117,11.358609000030384,13.224570935330092]
[2015,"mayo ","2015-mayo ",{"$f":"IF('[1]REAL IPC(M)'!$AL314=\"\",\"\",+'[1]REAL IPC(M)'!$AL314)","v":1.812116382836626},{"$f":"IF('[1]REAL IPC(M)'!$BE314=\"\",\"\",+'[1]REAL IPC(M)'!$BE314)","v":2.8539862054626219},{"$f":"IF('[1]REAL IPC(M)'!$AM314=\"\",\"\",+'[1]REAL IPC(M)'!$AM314)","v":1.6839174263946211},{"$f":"IF('[1]REAL IPC(M)'!$BI314=\"\",\"\",+'[1]REAL IPC(M)'!$BI314)","v":2.7382020245478644},{"$f":"IF('[1]REAL IMAE(M)'!BJ314=\"\",\"\",'[1]REAL IMAE(M)'!BJ314)","v":4.9365323422922103},{"$f":"IF('[1]REAL IMAE(M)'!BK314=\"\",\"\",'[1]REAL IMAE(M)'!BK314)","v":4.758881603493359},{"$f":"IF('[1]REAL IMAE(M)'!BN314=\"\",\"\",'[1]REAL IMAE(M)'!BN314)","v":4.6913350939413512},{"$f":"IF('[1]REAL IMAE(M)'!BO314=\"\",\"\",'[1]REAL IMAE(M)'!BO314)","v":4.8203373567336838},{"$f":"IF('[1]EXT RIN(M)'!$K314=\"\",\"\",'[1]EXT RIN(M)'!$K314)","v":29778.760732230829},"",{"$f":"IF('[1]EXT RIN(M)'!$L314=\"\",\"\",'[1]EXT RIN(M)'!$L314)","v":33922.076066590831},"",{"$f":"IF('[1]MONE(M)CARD'!EG314=\"\",\"\",'[1]MONE(M)CARD'!EG314)","v":29768.466695867864},{"$f":"IF('[1]MONE(M)CARD'!EK314=\"\",\"\",'[1]MONE(M)CARD'!EK314)","v":48939.146385429071},{"$f":"IF('[1]MONE(M)CARD'!EP314=\"\",\"\",'[1]MONE(M)CARD'!EP314)","v":28137.750486512916},{"$f":"IF('[1]MONE(M)CARD'!ES314=\"\",\"\",'[1]MONE(M)CARD'!ES314)","v":12.44856563702621},{"$f":"IF('[1]MONE(M)CARD'!EV314=\"\",\"\",'[1]MONE(M)CARD'!EV314)","v":9.9842739967705096},{"$f":"IF('[1]MONE(M)CARD'!EZ314=\"\",\"\",'[1]MONE(M)CARD'!EZ314)","v":9.4237318458947783},{"$f":"IF('[1]MONE(M)CAPARD'!FC314=\"\",\"\",'[1]MONE(M)CAPARD'!FC314)","v":37779.596959217866},{"$f":"IF('[1]MONE(M)CAPARD'!FG314=\"\",\"\",'[1]MONE(M)CAPARD'!FG314)","v":75823.12608280906},{"$f":"IF('[1]MONE(M)CAPARD'!FL314=\"\",\"\",'[1]MONE(M)CAPARD'!FL314)","v":28137.750486512901},{"$f":"IF('[1]MONE(M)CAPARD'!FO314=\"\",\"\",'[1]MONE(M)CAPARD'!FO314)","v":9.7654151377037479},{"$f":"IF('[1]MONE(M)CAPARD'!FR314=\"\",\"\",'[1]MONE(M)CAPARD'!FR314)","v":8.4108862906147941},{"$f":"IF('[1]MONE(M)CAPARD'!FV314=\"\",\"\",'[1]MONE(M)CAPARD'!FV314)","v":8.3062195129379965},{"$f":"IF('[1]MONE(M)CARD'!FV314=\"\",\"\",'[1]MONE(M)CARD'!FV314)","v":1186.1419319184029},{"$f":"IF('[1]MONE(M)CARD'!GD314=\"\",\"\",'[1]MONE(M)CARD'!GD314)","v":84.618105121800269},{"$f":"IF('[1]MONE(M)CARD'!GE314=\"\",\"\",'[1]MONE(M)CARD'!GE314)","v":8809.6815230355332},3.6954310250378875,{"$f":"IF('[9]II.2.Balance OSD-Activos'!J172=\"\",\"\",'[9]II.2.Balance OSD-Activos'!J172)","v":190.40920444399532},{"$f":"IF('[9]II.2.Balance OSD-Activos'!N172=\"\",\"\",'[9]II.2.Balance OSD-Activos'!N172)","v":863.33668404082357},{"$f":"IF('[9]II.2.Balance OSD-Activos'!R172=\"\",\"\",'[9]II.2.Balance OSD-Activos'!R172)","v":43069.376780748527},{"$f":"IF('[9]II.2.Balance OSD-Activos'!S172=\"\",\"\",'[9]II.2.Balance OSD-Activos'!S172)","v":46111.929918563794},43259.785985192524,90235.052587797138,-12.768548623888575,10.176642621516807,12.828361211237027,10.304914896800167,11.750765876574288,11.000611232528424,0.77638897904048854,{"$f":"IF('[1]MONE(M)CAPARD'!GS314=\"\",\"\",'[1]MONE(M)CAPARD'!GS314)","v":17121.866532258446},{"$f":"IF('[1]MONE(M)CARD'!HA314=\"\",\"\",'[1]MONE(M)CAPARD'!HA314)","v":9659.7911617855334},{"$f":"IF('[1]MONE(M)CAPARD'!HB314=\"\",\"\",'[1]MONE(M)CAPARD'!HB314)","v":7462.0753704729123},"n.d.",{"$f":"IF('[10]II.2.Balance OSD-Activos'!J172=\"\",\"\",'[10]II.2.Balance OSD-Activos'!J172)","v":1684.8392011839953},{"$f":"IF('[10]II.2.Balance OSD-Activos'!N172=\"\",\"\",'[10]II.2.Balance OSD-Activos'!N172)","v":1420.3947207608237},{"$f":"IF('[10]II.2.Balance OSD-Activos'!R172=\"\",\"\",'[10]II.2.Balance OSD-Activos'!R172)","v":63376.49115550852},{"$f":"IF('[10]II.2.Balance OSD-Activos'!S172=\"\",\"\",'[10]II.2.Balance OSD-Activos'!S172)","v":63418.607649053789},65061.330356692517,129900.33272650713,7.2056972879835923,11.08314848007026,16.003453729565329,11.190060049911921,12.067664169113268,11.613616354351052,0.47515044787518335,{"$f":"IF('[1]MONE(M)CAPARD'!AS314=\"\",\"\",'[1]MONE(M)CAPARD'!AS314)","v":3.75},{"$f":"IF('[1]MONE(M)CAPARD'!AT314=\"\",\"\",'[1]MONE(M)CAPARD'!AT314)","v":"n.a."},{"$f":"IF('[1]MONE(M)CAPARD'!AU314=\"\",\"\",'[1]MONE(M)CAPARD'!AU314)","v":3.5},{"$f":"IF('[1]MONE(M)CAPARD'!AV314=\"\",\"\",'[1]MONE(M)CAPARD'!AV314)","v":6.5},{"$f":"IF('[1]MONE(M)CAPARD'!AW314=\"\",\"\",'[1]MONE(M)CAPARD'!AW314)","v":"n.a."},{"$f":"IF('[1]MONE(M)CAPARD'!AX314=\"\",\"\",'[1]MONE(M)CAPARD'!AX314)","v":5.25},{"$f":"IF('[1]MONE(M)CAPARD'!AY314=\"\",\"\",'[1]MONE(M)CAPARD'!AY314)","v":"n.a."},{"$f":"IF('[1]FISCAL(M)'!$K314=\"\",\"\",'[1]FISCAL(M)'!$K314)","v":410.00881517544576},{"$f":"IF('[1]FISCAL(M)'!$L314=\"\",\"\",'[1]FISCAL(M)'!$L314)","v":-282.93214867455458},{"$f":"IF('[1]FISCAL(M)'!$AY314=\"\",\"\",'[1]FISCAL(M)'!$AY314)","v":107829.1523343325},{"$f":"IF('[1]FISCAL(M)'!$BI314=\"\",\"\",'[1]FISCAL(M)'!$BI314)","v":55159.668742056812},{"$f":"IF('[1]FISCAL(M)'!$BS314=\"\",\"\",'[1]FISCAL(M)'!$BS314)","v":52669.483592275676},{"$f":"IF('[1]FISCAL(M)'!$AZ314=\"\",\"\",'[1]FISCAL(M)'!$AZ314)","v":126974.04793202248},{"$f":"IF('[1]FISCAL(M)'!$BJ314=\"\",\"\",'[1]FISCAL(M)'!$BJ314)","v":59217.302106036805},{"$f":"IF('[1]FISCAL(M)'!$BT314=\"\",\"\",'[1]FISCAL(M)'!$BT314)","v":67756.745825985679},{"$f":"IF('[2]MONE(M)'!$AO314=\"\",\"\",'[2]MONE(M)'!$AO314)","v":16614276.583347397},{"$f":"IF('[3]MONE(M)'!$AO314=\"\",\"\",'[3]MONE(M)'!$AO314)","v":10656.103713100001},{"$f":"IF('[4]MONE(M)'!$AO314=\"\",\"\",'[4]MONE(M)'!$AO314)","v":166425.83862976098},{"$f":"IF('[5]MONE(M)'!$AO314=\"\",\"\",'[5]MONE(M)'!$AO314)","v":239934.98366946011},{"$f":"IF('[6]MONE(M)'!$AO314=\"\",\"\",'[6]MONE(M)'!$AO314)","v":102213.55756105974},{"$f":"IF('[7]MONE(M)'!$AO314=\"\",\"\",'[7]MONE(M)'!$AO314)","v":719231.44187603996},{"$f":"IF('[8]MONE(M)'!$AO314=\"\",\"\",'[8]MONE(M)'!$AO314)","v":40382.640984409991},11.971831771473251,3.3893603511183867,9.9093286823153548,10.454985662112804,18.83540023820278,17.192363549562661,12.864878066929819,{"$f":"IF('[1]FISCAL(M)'!$K314=\"\",\"\",'[1]FISCAL(M)'!$K314)","v":410.00881517544576},{"$f":"+'[1]REAL(A)'!$AO$35","v":245374.76772761243},0.16709493766310626,{"$f":"IF('[1]FISCAL(M)'!$L314=\"\",\"\",'[1]FISCAL(M)'!$L314)","v":-282.93214867455458},{"$f":"+'[1]REAL(A)'!$AP$35","v":299466.48772761232},-9.4478734773121936E-2,124252.20535518622,{"$f":"'[1]Gráfico REM'!BG308","v":22541.767908072223},{"$f":"'[1]Gráfico REM'!BH308","v":94504.988554726733},{"$f":"'[1]Gráfico REM'!BI308","v":7205.4488923872777},9.5572637940869001,0.83342351452733165,11.37224688761389,16.16989240641864,189009.44202132622,{"$f":"'[1]Gráfico REM'!BK308","v":24416.279160562222},{"$f":"'[1]Gráfico REM'!BL308","v":134887.62953913672},{"$f":"'[1]Gráfico REM'!BM308","v":29705.533321627285},10.229569354383305,1.0443428143454891,11.814953670555628,11.380616822036416]
[2015,"junio ","2015-junio ",{"$f":"IF('[1]REAL IPC(M)'!$AL315=\"\",\"\",+'[1]REAL IPC(M)'!$AL315)","v":1.8291114813016929},{"$f":"IF('[1]REAL IPC(M)'!$BE315=\"\",\"\",+'[1]REAL IPC(M)'!$BE315)","v":2.8057537565739699},{"$f":"IF('[1]REAL IPC(M)'!$AM315=\"\",\"\",+'[1]REAL IPC(M)'!$AM315)","v":1.6822447561857246},{"$f":"IF('[1]REAL IPC(M)'!$BI315=\"\",\"\",+'[1]REAL IPC(M)'!$BI315)","v":2.6846164127818151},{"$f":"IF('[1]REAL IMAE(M)'!BJ315=\"\",\"\",'[1]REAL IMAE(M)'!BJ315)","v":5.3133296750778491},{"$f":"IF('[1]REAL IMAE(M)'!BK315=\"\",\"\",'[1]REAL IMAE(M)'!BK315)","v":4.7696015003339198},{"$f":"IF('[1]REAL IMAE(M)'!BN315=\"\",\"\",'[1]REAL IMAE(M)'!BN315)","v":5.0882200806457112},{"$f":"IF('[1]REAL IMAE(M)'!BO315=\"\",\"\",'[1]REAL IMAE(M)'!BO315)","v":4.8177949026622091},{"$f":"IF('[1]EXT RIN(M)'!$K315=\"\",\"\",'[1]EXT RIN(M)'!$K315)","v":29798.822963986415},"",{"$f":"IF('[1]EXT RIN(M)'!$L315=\"\",\"\",'[1]EXT RIN(M)'!$L315)","v":34143.533038416412},"",{"$f":"IF('[1]MONE(M)CARD'!EG315=\"\",\"\",'[1]MONE(M)CARD'!EG315)","v":29870.144498552778},{"$f":"IF('[1]MONE(M)CARD'!EK315=\"\",\"\",'[1]MONE(M)CARD'!EK315)","v":49703.602564440778},{"$f":"IF('[1]MONE(M)CARD'!EP315=\"\",\"\",'[1]MONE(M)CARD'!EP315)","v":28188.193641829479},{"$f":"IF('[1]MONE(M)CARD'!ES315=\"\",\"\",'[1]MONE(M)CARD'!ES315)","v":11.644918484922195},{"$f":"IF('[1]MONE(M)CARD'!EV315=\"\",\"\",'[1]MONE(M)CARD'!EV315)","v":10.074503090943821},{"$f":"IF('[1]MONE(M)CARD'!EZ315=\"\",\"\",'[1]MONE(M)CARD'!EZ315)","v":9.5122612615939026},{"$f":"IF('[1]MONE(M)CAPARD'!FC315=\"\",\"\",'[1]MONE(M)CAPARD'!FC315)","v":37769.365989642785},{"$f":"IF('[1]MONE(M)CAPARD'!FG315=\"\",\"\",'[1]MONE(M)CAPARD'!FG315)","v":76576.76015833077},{"$f":"IF('[1]MONE(M)CAPARD'!FL315=\"\",\"\",'[1]MONE(M)CAPARD'!FL315)","v":28188.193641829479},{"$f":"IF('[1]MONE(M)CAPARD'!FO315=\"\",\"\",'[1]MONE(M)CAPARD'!FO315)","v":8.8268087250802374},{"$f":"IF('[1]MONE(M)CAPARD'!FR315=\"\",\"\",'[1]MONE(M)CAPARD'!FR315)","v":8.1805509408166657},{"$f":"IF('[1]MONE(M)CAPARD'!FV315=\"\",\"\",'[1]MONE(M)CAPARD'!FV315)","v":8.1359963323426321},{"$f":"IF('[1]MONE(M)CARD'!FV315=\"\",\"\",'[1]MONE(M)CARD'!FV315)","v":1188.6679394612249},{"$f":"IF('[1]MONE(M)CARD'!GD315=\"\",\"\",'[1]MONE(M)CARD'!GD315)","v":187.20812141723445},{"$f":"IF('[1]MONE(M)CARD'!GE315=\"\",\"\",'[1]MONE(M)CARD'!GE315)","v":8578.4115061142256},8.6520762240529727,{"$f":"IF('[9]II.2.Balance OSD-Activos'!J173=\"\",\"\",'[9]II.2.Balance OSD-Activos'!J173)","v":191.98376207381068},{"$f":"IF('[9]II.2.Balance OSD-Activos'!N173=\"\",\"\",'[9]II.2.Balance OSD-Activos'!N173)","v":928.3290557070269},{"$f":"IF('[9]II.2.Balance OSD-Activos'!R173=\"\",\"\",'[9]II.2.Balance OSD-Activos'!R173)","v":43123.409731808089},{"$f":"IF('[9]II.2.Balance OSD-Activos'!S173=\"\",\"\",'[9]II.2.Balance OSD-Activos'!S173)","v":46701.406701136781},43315.3934938819,90945.129250725702,-8.320145796090161,9.5999229307182752,17.395157115364523,9.6953794285295167,11.602444702895953,10.694908548057281,-0.30570268447114302,{"$f":"IF('[1]MONE(M)CAPARD'!GS315=\"\",\"\",'[1]MONE(M)CAPARD'!GS315)","v":17577.220171190693},{"$f":"IF('[1]MONE(M)CARD'!HA315=\"\",\"\",'[1]MONE(M)CAPARD'!HA315)","v":9632.0402998242262},{"$f":"IF('[1]MONE(M)CAPARD'!HB315=\"\",\"\",'[1]MONE(M)CAPARD'!HB315)","v":7945.1798713664666},"n.d.",{"$f":"IF('[10]II.2.Balance OSD-Activos'!J173=\"\",\"\",'[10]II.2.Balance OSD-Activos'!J173)","v":1673.267618333811},{"$f":"IF('[10]II.2.Balance OSD-Activos'!N173=\"\",\"\",'[10]II.2.Balance OSD-Activos'!N173)","v":1400.4044305770267},{"$f":"IF('[10]II.2.Balance OSD-Activos'!R173=\"\",\"\",'[10]II.2.Balance OSD-Activos'!R173)","v":63504.191494278086},{"$f":"IF('[10]II.2.Balance OSD-Activos'!S173=\"\",\"\",'[10]II.2.Balance OSD-Activos'!S173)","v":64222.803437746785},65177.459112611898,130800.66698093571,7.075108859608692,10.663565130187603,8.8639600838900545,10.761372251468892,12.100287990837,11.344530327881364,-0.26908602646968838,{"$f":"IF('[1]MONE(M)CAPARD'!AS315=\"\",\"\",'[1]MONE(M)CAPARD'!AS315)","v":3.5},{"$f":"IF('[1]MONE(M)CAPARD'!AT315=\"\",\"\",'[1]MONE(M)CAPARD'!AT315)","v":"n.a."},{"$f":"IF('[1]MONE(M)CAPARD'!AU315=\"\",\"\",'[1]MONE(M)CAPARD'!AU315)","v":3.25},{"$f":"IF('[1]MONE(M)CAPARD'!AV315=\"\",\"\",'[1]MONE(M)CAPARD'!AV315)","v":6.5},{"$f":"IF('[1]MONE(M)CAPARD'!AW315=\"\",\"\",'[1]MONE(M)CAPARD'!AW315)","v":"n.a."},{"$f":"IF('[1]MONE(M)CAPARD'!AX315=\"\",\"\",'[1]MONE(M)CAPARD'!AX315)","v":5},{"$f":"IF('[1]MONE(M)CAPARD'!AY315=\"\",\"\",'[1]MONE(M)CAPARD'!AY315)","v":"n.a."},{"$f":"IF('[1]FISCAL(M)'!$K315=\"\",\"\",'[1]FISCAL(M)'!$K315)","v":-574.80148747662201},{"$f":"IF('[1]FISCAL(M)'!$L315=\"\",\"\",'[1]FISCAL(M)'!$L315)","v":-1149.8172501866211},{"$f":"IF('[1]FISCAL(M)'!$AY315=\"\",\"\",'[1]FISCAL(M)'!$AY315)","v":107909.71610882768},{"$f":"IF('[1]FISCAL(M)'!$BI315=\"\",\"\",'[1]FISCAL(M)'!$BI315)","v":55322.419999557882},{"$f":"IF('[1]FISCAL(M)'!$BS315=\"\",\"\",'[1]FISCAL(M)'!$BS315)","v":52587.29610926981},{"$f":"IF('[1]FISCAL(M)'!$AZ315=\"\",\"\",'[1]FISCAL(M)'!$AZ315)","v":127207.78807598767},{"$f":"IF('[1]FISCAL(M)'!$BJ315=\"\",\"\",'[1]FISCAL(M)'!$BJ315)","v":59548.970695137876},{"$f":"IF('[1]FISCAL(M)'!$BT315=\"\",\"\",'[1]FISCAL(M)'!$BT315)","v":67658.81738084981},{"$f":"IF('[2]MONE(M)'!$AO315=\"\",\"\",'[2]MONE(M)'!$AO315)","v":16881603.693040732},{"$f":"IF('[3]MONE(M)'!$AO315=\"\",\"\",'[3]MONE(M)'!$AO315)","v":10658.16830211},{"$f":"IF('[4]MONE(M)'!$AO315=\"\",\"\",'[4]MONE(M)'!$AO315)","v":167094.5914233845},{"$f":"IF('[5]MONE(M)'!$AO315=\"\",\"\",'[5]MONE(M)'!$AO315)","v":241403.50627528783},{"$f":"IF('[6]MONE(M)'!$AO315=\"\",\"\",'[6]MONE(M)'!$AO315)","v":103599.55341927832},{"$f":"IF('[7]MONE(M)'!$AO315=\"\",\"\",'[7]MONE(M)'!$AO315)","v":723036.62825335003},{"$f":"IF('[8]MONE(M)'!$AO315=\"\",\"\",'[8]MONE(M)'!$AO315)","v":40594.058406819997},13.277985493728405,2.8970260345655197,10.232592662504004,10.018574725837425,19.511477965660461,16.079326713944852,13.147884218789629,{"$f":"IF('[1]FISCAL(M)'!$K315=\"\",\"\",'[1]FISCAL(M)'!$K315)","v":-574.80148747662201},{"$f":"+'[1]REAL(A)'!$AO$35","v":245374.76772761243},-0.23425452127771432,{"$f":"IF('[1]FISCAL(M)'!$L315=\"\",\"\",'[1]FISCAL(M)'!$L315)","v":-1149.8172501866211},{"$f":"+'[1]REAL(A)'!$AP$35","v":299466.48772761232},-0.38395523282473859,125559.96323403312,{"$f":"'[1]Gráfico REM'!BG309","v":22701.900794436366},{"$f":"'[1]Gráfico REM'!BH309","v":95448.497459666309},{"$f":"'[1]Gráfico REM'!BI309","v":7409.5649799304338},9.7665765252478174,2.0878863125367353,11.344319632148503,15.291178670755446,191865.20490796311,{"$f":"'[1]Gráfico REM'!BK309","v":24719.767536416366},{"$f":"'[1]Gráfico REM'!BL309","v":136042.55586648631},{"$f":"'[1]Gráfico REM'!BM309","v":31102.881505060432},11.117853485920159,2.7015736727095341,11.876442101826745,15.204486539444751]
[2015,"julio","2015-julio",{"$f":"IF('[1]REAL IPC(M)'!$AL316=\"\",\"\",+'[1]REAL IPC(M)'!$AL316)","v":1.3385340348301078},{"$f":"IF('[1]REAL IPC(M)'!$BE316=\"\",\"\",+'[1]REAL IPC(M)'!$BE316)","v":2.7622162720511545},{"$f":"IF('[1]REAL IPC(M)'!$AM316=\"\",\"\",+'[1]REAL IPC(M)'!$AM316)","v":1.2659656903565519},{"$f":"IF('[1]REAL IPC(M)'!$BI316=\"\",\"\",+'[1]REAL IPC(M)'!$BI316)","v":2.635510505237959},{"$f":"IF('[1]REAL IMAE(M)'!BJ316=\"\",\"\",'[1]REAL IMAE(M)'!BJ316)","v":5.781624080183323},{"$f":"IF('[1]REAL IMAE(M)'!BK316=\"\",\"\",'[1]REAL IMAE(M)'!BK316)","v":4.7772525994281612},{"$f":"IF('[1]REAL IMAE(M)'!BN316=\"\",\"\",'[1]REAL IMAE(M)'!BN316)","v":5.5593395984861571},{"$f":"IF('[1]REAL IMAE(M)'!BO316=\"\",\"\",'[1]REAL IMAE(M)'!BO316)","v":4.8138718584795903},{"$f":"IF('[1]EXT RIN(M)'!$K316=\"\",\"\",'[1]EXT RIN(M)'!$K316)","v":29516.055361870625},"",{"$f":"IF('[1]EXT RIN(M)'!$L316=\"\",\"\",'[1]EXT RIN(M)'!$L316)","v":33531.223176000625},"",{"$f":"IF('[1]MONE(M)CARD'!EG316=\"\",\"\",'[1]MONE(M)CARD'!EG316)","v":29996.039431122092},{"$f":"IF('[1]MONE(M)CARD'!EK316=\"\",\"\",'[1]MONE(M)CARD'!EK316)","v":49891.628679603062},{"$f":"IF('[1]MONE(M)CARD'!EP316=\"\",\"\",'[1]MONE(M)CARD'!EP316)","v":28229.416819429272},{"$f":"IF('[1]MONE(M)CARD'!ES316=\"\",\"\",'[1]MONE(M)CARD'!ES316)","v":12.290196168284172},{"$f":"IF('[1]MONE(M)CARD'!EV316=\"\",\"\",'[1]MONE(M)CARD'!EV316)","v":10.065522596107868},{"$f":"IF('[1]MONE(M)CARD'!EZ316=\"\",\"\",'[1]MONE(M)CARD'!EZ316)","v":8.9604786012921434},{"$f":"IF('[1]MONE(M)CAPARD'!FC316=\"\",\"\",'[1]MONE(M)CAPARD'!FC316)","v":37912.622198512094},{"$f":"IF('[1]MONE(M)CAPARD'!FG316=\"\",\"\",'[1]MONE(M)CAPARD'!FG316)","v":77249.347873073057},{"$f":"IF('[1]MONE(M)CAPARD'!FL316=\"\",\"\",'[1]MONE(M)CAPARD'!FL316)","v":28229.416819429258},{"$f":"IF('[1]MONE(M)CAPARD'!FO316=\"\",\"\",'[1]MONE(M)CAPARD'!FO316)","v":8.748330213259603},{"$f":"IF('[1]MONE(M)CAPARD'!FR316=\"\",\"\",'[1]MONE(M)CAPARD'!FR316)","v":8.3671831727058166},{"$f":"IF('[1]MONE(M)CAPARD'!FV316=\"\",\"\",'[1]MONE(M)CAPARD'!FV316)","v":7.882671925452156},{"$f":"IF('[1]MONE(M)CARD'!FV316=\"\",\"\",'[1]MONE(M)CARD'!FV316)","v":1211.9667584811341},{"$f":"IF('[1]MONE(M)CARD'!GD316=\"\",\"\",'[1]MONE(M)CARD'!GD316)","v":88.202441657806972},{"$f":"IF('[1]MONE(M)CARD'!GE316=\"\",\"\",'[1]MONE(M)CARD'!GE316)","v":8580.3692276464772},5.5353387251810382,{"$f":"IF('[9]II.2.Balance OSD-Activos'!J174=\"\",\"\",'[9]II.2.Balance OSD-Activos'!J174)","v":184.05696267938725},{"$f":"IF('[9]II.2.Balance OSD-Activos'!N174=\"\",\"\",'[9]II.2.Balance OSD-Activos'!N174)","v":928.43609745773517},{"$f":"IF('[9]II.2.Balance OSD-Activos'!R174=\"\",\"\",'[9]II.2.Balance OSD-Activos'!R174)","v":43452.255922920631},{"$f":"IF('[9]II.2.Balance OSD-Activos'!S174=\"\",\"\",'[9]II.2.Balance OSD-Activos'!S174)","v":47098.133208536856},43636.312885600018,91662.882191594603,-8.1885925146565235,9.0835635826622898,19.323078851724198,9.1705587974176836,11.491205199007592,10.404560654712004,-0.29034789334527744,{"$f":"IF('[1]MONE(M)CAPARD'!GS316=\"\",\"\",'[1]MONE(M)CAPARD'!GS316)","v":17947.736457716943},{"$f":"IF('[1]MONE(M)CARD'!HA316=\"\",\"\",'[1]MONE(M)CAPARD'!HA316)","v":9632.0091086564771},{"$f":"IF('[1]MONE(M)CAPARD'!HB316=\"\",\"\",'[1]MONE(M)CAPARD'!HB316)","v":8315.7273490604657},"n.d.",{"$f":"IF('[10]II.2.Balance OSD-Activos'!J174=\"\",\"\",'[10]II.2.Balance OSD-Activos'!J174)","v":1744.2322278693873},{"$f":"IF('[10]II.2.Balance OSD-Activos'!N174=\"\",\"\",'[10]II.2.Balance OSD-Activos'!N174)","v":1374.7831068777355},{"$f":"IF('[10]II.2.Balance OSD-Activos'!R174=\"\",\"\",'[10]II.2.Balance OSD-Activos'!R174)","v":64169.950652950633},{"$f":"IF('[10]II.2.Balance OSD-Activos'!S174=\"\",\"\",'[10]II.2.Balance OSD-Activos'!S174)","v":64834.155843516863},65914.182880820023,132123.12183121461,6.8182377780276804,10.247304403211267,6.0776313233442902,10.343587536642129,12.213341009459079,11.157516558458514,-0.18701376942284931,{"$f":"IF('[1]MONE(M)CAPARD'!AS316=\"\",\"\",'[1]MONE(M)CAPARD'!AS316)","v":3},{"$f":"IF('[1]MONE(M)CAPARD'!AT316=\"\",\"\",'[1]MONE(M)CAPARD'!AT316)","v":"n.a."},{"$f":"IF('[1]MONE(M)CAPARD'!AU316=\"\",\"\",'[1]MONE(M)CAPARD'!AU316)","v":3.25},{"$f":"IF('[1]MONE(M)CAPARD'!AV316=\"\",\"\",'[1]MONE(M)CAPARD'!AV316)","v":6.25},{"$f":"IF('[1]MONE(M)CAPARD'!AW316=\"\",\"\",'[1]MONE(M)CAPARD'!AW316)","v":"n.a."},{"$f":"IF('[1]MONE(M)CAPARD'!AX316=\"\",\"\",'[1]MONE(M)CAPARD'!AX316)","v":5},{"$f":"IF('[1]MONE(M)CAPARD'!AY316=\"\",\"\",'[1]MONE(M)CAPARD'!AY316)","v":"n.a."},{"$f":"IF('[1]FISCAL(M)'!$K316=\"\",\"\",'[1]FISCAL(M)'!$K316)","v":-1207.8800923587114},{"$f":"IF('[1]FISCAL(M)'!$L316=\"\",\"\",'[1]FISCAL(M)'!$L316)","v":-2095.6244746787106},{"$f":"IF('[1]FISCAL(M)'!$AY316=\"\",\"\",'[1]FISCAL(M)'!$AY316)","v":109072.54822034991},{"$f":"IF('[1]FISCAL(M)'!$BI316=\"\",\"\",'[1]FISCAL(M)'!$BI316)","v":56543.23299895956},{"$f":"IF('[1]FISCAL(M)'!$BS316=\"\",\"\",'[1]FISCAL(M)'!$BS316)","v":52529.315221390338},{"$f":"IF('[1]FISCAL(M)'!$AZ316=\"\",\"\",'[1]FISCAL(M)'!$AZ316)","v":128361.03427404989},{"$f":"IF('[1]FISCAL(M)'!$BJ316=\"\",\"\",'[1]FISCAL(M)'!$BJ316)","v":60791.357641979565},{"$f":"IF('[1]FISCAL(M)'!$BT316=\"\",\"\",'[1]FISCAL(M)'!$BT316)","v":67569.676632070332},{"$f":"IF('[2]MONE(M)'!$AO316=\"\",\"\",'[2]MONE(M)'!$AO316)","v":17074833.809142467},{"$f":"IF('[3]MONE(M)'!$AO316=\"\",\"\",'[3]MONE(M)'!$AO316)","v":10699.099890529998},{"$f":"IF('[4]MONE(M)'!$AO316=\"\",\"\",'[4]MONE(M)'!$AO316)","v":168251.97216642011},{"$f":"IF('[5]MONE(M)'!$AO316=\"\",\"\",'[5]MONE(M)'!$AO316)","v":242222.3955461671},{"$f":"IF('[6]MONE(M)'!$AO316=\"\",\"\",'[6]MONE(M)'!$AO316)","v":105638.67330465179},{"$f":"IF('[7]MONE(M)'!$AO316=\"\",\"\",'[7]MONE(M)'!$AO316)","v":733560.25846168003},{"$f":"IF('[8]MONE(M)'!$AO316=\"\",\"\",'[8]MONE(M)'!$AO316)","v":41196.849325310002},13.269189166411422,3.4857918235244645,9.5409063367297264,10.329499961005828,20.734270259444809,15.501000713633983,13.002543342728345,{"$f":"IF('[1]FISCAL(M)'!$K316=\"\",\"\",'[1]FISCAL(M)'!$K316)","v":-1207.8800923587114},{"$f":"+'[1]REAL(A)'!$AO$35","v":245374.76772761243},-0.49225929118333978,{"$f":"IF('[1]FISCAL(M)'!$L316=\"\",\"\",'[1]FISCAL(M)'!$L316)","v":-2095.6244746787106},{"$f":"+'[1]REAL(A)'!$AP$35","v":299466.48772761232},-0.69978597290820777,126729.98193875793,{"$f":"'[1]Gráfico REM'!BG310","v":23106.495816527018},{"$f":"'[1]Gráfico REM'!BH310","v":96195.012646480885},{"$f":"'[1]Gráfico REM'!BI310","v":7428.4734757500246},10.737122271495991,7.8360238657622316,11.001935080266634,16.908624303345722,193510.05486237793,{"$f":"'[1]Gráfico REM'!BK310","v":25123.256560957016},{"$f":"'[1]Gráfico REM'!BL310","v":137391.8619717909},{"$f":"'[1]Gráfico REM'!BM310","v":30994.936329630022},11.739190593185134,7.9274784871889992,11.594340473338715,15.717623305854289]
[2015,"agosto","2015-agosto",{"$f":"IF('[1]REAL IPC(M)'!$AL317=\"\",\"\",+'[1]REAL IPC(M)'!$AL317)","v":1.095463091479143},{"$f":"IF('[1]REAL IPC(M)'!$BE317=\"\",\"\",+'[1]REAL IPC(M)'!$BE317)","v":2.7236386661000145},{"$f":"IF('[1]REAL IPC(M)'!$AM317=\"\",\"\",+'[1]REAL IPC(M)'!$AM317)","v":1.0074807842817224},{"$f":"IF('[1]REAL IPC(M)'!$BI317=\"\",\"\",+'[1]REAL IPC(M)'!$BI317)","v":2.5912262025691968},{"$f":"IF('[1]REAL IMAE(M)'!BJ317=\"\",\"\",'[1]REAL IMAE(M)'!BJ317)","v":5.9171565508656876},{"$f":"IF('[1]REAL IMAE(M)'!BK317=\"\",\"\",'[1]REAL IMAE(M)'!BK317)","v":4.7817454830043848},{"$f":"IF('[1]REAL IMAE(M)'!BN317=\"\",\"\",'[1]REAL IMAE(M)'!BN317)","v":5.7032142068994096},{"$f":"IF('[1]REAL IMAE(M)'!BO317=\"\",\"\",'[1]REAL IMAE(M)'!BO317)","v":4.8084523753191277},{"$f":"IF('[1]EXT RIN(M)'!$K317=\"\",\"\",'[1]EXT RIN(M)'!$K317)","v":29499.03659697589},"",{"$f":"IF('[1]EXT RIN(M)'!$L317=\"\",\"\",'[1]EXT RIN(M)'!$L317)","v":33953.271433475893},"",{"$f":"IF('[1]MONE(M)CARD'!EG317=\"\",\"\",'[1]MONE(M)CARD'!EG317)","v":29661.450632996297},{"$f":"IF('[1]MONE(M)CARD'!EK317=\"\",\"\",'[1]MONE(M)CARD'!EK317)","v":50055.875693214977},{"$f":"IF('[1]MONE(M)CARD'!EP317=\"\",\"\",'[1]MONE(M)CARD'!EP317)","v":28137.501628664846},{"$f":"IF('[1]MONE(M)CARD'!ES317=\"\",\"\",'[1]MONE(M)CARD'!ES317)","v":11.406844433974639},{"$f":"IF('[1]MONE(M)CARD'!EV317=\"\",\"\",'[1]MONE(M)CARD'!EV317)","v":9.3211174103058347},{"$f":"IF('[1]MONE(M)CARD'!EZ317=\"\",\"\",'[1]MONE(M)CARD'!EZ317)","v":8.1376725651571178},{"$f":"IF('[1]MONE(M)CAPARD'!FC317=\"\",\"\",'[1]MONE(M)CAPARD'!FC317)","v":37648.13382834466},{"$f":"IF('[1]MONE(M)CAPARD'!FG317=\"\",\"\",'[1]MONE(M)CAPARD'!FG317)","v":77291.826283404982},{"$f":"IF('[1]MONE(M)CAPARD'!FL317=\"\",\"\",'[1]MONE(M)CAPARD'!FL317)","v":28137.501628664846},{"$f":"IF('[1]MONE(M)CAPARD'!FO317=\"\",\"\",'[1]MONE(M)CAPARD'!FO317)","v":8.0498228501763691},{"$f":"IF('[1]MONE(M)CAPARD'!FR317=\"\",\"\",'[1]MONE(M)CAPARD'!FR317)","v":7.5011397932814416},{"$f":"IF('[1]MONE(M)CAPARD'!FV317=\"\",\"\",'[1]MONE(M)CAPARD'!FV317)","v":6.9835108139471691},{"$f":"IF('[1]MONE(M)CARD'!FV317=\"\",\"\",'[1]MONE(M)CARD'!FV317)","v":1220.5019089706302},{"$f":"IF('[1]MONE(M)CARD'!GD317=\"\",\"\",'[1]MONE(M)CARD'!GD317)","v":97.029976046959462},{"$f":"IF('[1]MONE(M)CARD'!GE317=\"\",\"\",'[1]MONE(M)CARD'!GE317)","v":8360.2689769908284},-0.19079578906291417,{"$f":"IF('[9]II.2.Balance OSD-Activos'!J175=\"\",\"\",'[9]II.2.Balance OSD-Activos'!J175)","v":192.04821751782771},{"$f":"IF('[9]II.2.Balance OSD-Activos'!N175=\"\",\"\",'[9]II.2.Balance OSD-Activos'!N175)","v":953.94935584160748},{"$f":"IF('[9]II.2.Balance OSD-Activos'!R175=\"\",\"\",'[9]II.2.Balance OSD-Activos'!R175)","v":43868.038771431937},{"$f":"IF('[9]II.2.Balance OSD-Activos'!S175=\"\",\"\",'[9]II.2.Balance OSD-Activos'!S175)","v":47569.872879585775},44060.086988949763,92583.909224377145,-5.8531364089295153,9.7417330279012671,20.715441145611855,9.8213718472705871,11.13027344053663,10.555028120044385,0.15046746533238142,{"$f":"IF('[1]MONE(M)CAPARD'!GS317=\"\",\"\",'[1]MONE(M)CAPARD'!GS317)","v":17913.9157058409},{"$f":"IF('[1]MONE(M)CARD'!HA317=\"\",\"\",'[1]MONE(M)CAPARD'!HA317)","v":9428.8062107708283},{"$f":"IF('[1]MONE(M)CAPARD'!HB317=\"\",\"\",'[1]MONE(M)CAPARD'!HB317)","v":8485.1094950700717},"n.d.",{"$f":"IF('[10]II.2.Balance OSD-Activos'!J175=\"\",\"\",'[10]II.2.Balance OSD-Activos'!J175)","v":1817.7662976678278},{"$f":"IF('[10]II.2.Balance OSD-Activos'!N175=\"\",\"\",'[10]II.2.Balance OSD-Activos'!N175)","v":1398.4601298616076},{"$f":"IF('[10]II.2.Balance OSD-Activos'!R175=\"\",\"\",'[10]II.2.Balance OSD-Activos'!R175)","v":64716.096710861937},{"$f":"IF('[10]II.2.Balance OSD-Activos'!S175=\"\",\"\",'[10]II.2.Balance OSD-Activos'!S175)","v":65643.279273675769},{"$f":"IFERROR(+AW310+AY310,\"\")","v":66533.863008529763},133575.60241206712,9.7950723763954315,10.133424440774231,6.6355297244814926,10.142958293741899,12.167328189462978,11.085156825227527,-7.2359733230987544E-2,{"$f":"IF('[1]MONE(M)CAPARD'!AS317=\"\",\"\",'[1]MONE(M)CAPARD'!AS317)","v":3},{"$f":"IF('[1]MONE(M)CAPARD'!AT317=\"\",\"\",'[1]MONE(M)CAPARD'!AT317)","v":"n.a."},{"$f":"IF('[1]MONE(M)CAPARD'!AU317=\"\",\"\",'[1]MONE(M)CAPARD'!AU317)","v":3.25},{"$f":"IF('[1]MONE(M)CAPARD'!AV317=\"\",\"\",'[1]MONE(M)CAPARD'!AV317)","v":6.25},{"$f":"IF('[1]MONE(M)CAPARD'!AW317=\"\",\"\",'[1]MONE(M)CAPARD'!AW317)","v":"n.a."},{"$f":"IF('[1]MONE(M)CAPARD'!AX317=\"\",\"\",'[1]MONE(M)CAPARD'!AX317)","v":5},{"$f":"IF('[1]MONE(M)CAPARD'!AY317=\"\",\"\",'[1]MONE(M)CAPARD'!AY317)","v":"n.a."},{"$f":"IF('[1]FISCAL(M)'!$K317=\"\",\"\",'[1]FISCAL(M)'!$K317)","v":-1802.8438571203092},{"$f":"IF('[1]FISCAL(M)'!$L317=\"\",\"\",'[1]FISCAL(M)'!$L317)","v":-2376.4152629390805},{"$f":"IF('[1]FISCAL(M)'!$AY317=\"\",\"\",'[1]FISCAL(M)'!$AY317)","v":109075.11849742118},{"$f":"IF('[1]FISCAL(M)'!$BI317=\"\",\"\",'[1]FISCAL(M)'!$BI317)","v":56094.526467750751},{"$f":"IF('[1]FISCAL(M)'!$BS317=\"\",\"\",'[1]FISCAL(M)'!$BS317)","v":52980.592029670443},{"$f":"IF('[1]FISCAL(M)'!$AZ317=\"\",\"\",'[1]FISCAL(M)'!$AZ317)","v":128975.25601827117},{"$f":"IF('[1]FISCAL(M)'!$BJ317=\"\",\"\",'[1]FISCAL(M)'!$BJ317)","v":60354.291550590744},{"$f":"IF('[1]FISCAL(M)'!$BT317=\"\",\"\",'[1]FISCAL(M)'!$BT317)","v":68620.964467680431},{"$f":"IF('[2]MONE(M)'!$AO317=\"\",\"\",'[2]MONE(M)'!$AO317)","v":17208058.373263024},{"$f":"IF('[3]MONE(M)'!$AO317=\"\",\"\",'[3]MONE(M)'!$AO317)","v":10761.097195049999},{"$f":"IF('[4]MONE(M)'!$AO317=\"\",\"\",'[4]MONE(M)'!$AO317)","v":170251.55978541091},{"$f":"IF('[5]MONE(M)'!$AO317=\"\",\"\",'[5]MONE(M)'!$AO317)","v":245499.32787126594},{"$f":"IF('[6]MONE(M)'!$AO317=\"\",\"\",'[6]MONE(M)'!$AO317)","v":106688.34104459877},{"$f":"IF('[7]MONE(M)'!$AO317=\"\",\"\",'[7]MONE(M)'!$AO317)","v":756803.84229941003},{"$f":"IF('[8]MONE(M)'!$AO317=\"\",\"\",'[8]MONE(M)'!$AO317)","v":41828.354848989999},12.603983293749987,3.2451821955328919,11.152523179917594,10.363492187425805,20.187694790074783,17.568226435785238,12.684926235070337,{"$f":"IF('[1]FISCAL(M)'!$K317=\"\",\"\",'[1]FISCAL(M)'!$K317)","v":-1802.8438571203092},{"$f":"+'[1]REAL(A)'!$AO$35","v":245374.76772761243},-0.73473074424735652,{"$f":"IF('[1]FISCAL(M)'!$L317=\"\",\"\",'[1]FISCAL(M)'!$L317)","v":-2376.4152629390805},{"$f":"+'[1]REAL(A)'!$AP$35","v":299466.48772761232},-0.79354964923507976,127425.65196256941,{"$f":"'[1]Gráfico REM'!BG311","v":22762.785224886818},{"$f":"'[1]Gráfico REM'!BH311","v":97333.521542413582},{"$f":"'[1]Gráfico REM'!BI311","v":7329.3451952690102},10.233977090090352,5.7470377521818161,11.306218401346403,10.659838880140594,195245.4345616794,{"$f":"'[1]Gráfico REM'!BK311","v":24834.305623856817},{"$f":"'[1]Gráfico REM'!BL311","v":139161.87639140358},{"$f":"'[1]Gráfico REM'!BM311","v":31249.252546419011},11.357679941905552,6.0255879211699614,11.717061912138593,14.288147386510342]
[2015,"septiembre","2015-septiembre",{"$f":"IF('[1]REAL IPC(M)'!$AL318=\"\",\"\",+'[1]REAL IPC(M)'!$AL318)","v":0.99363429659518054},{"$f":"IF('[1]REAL IPC(M)'!$BE318=\"\",\"\",+'[1]REAL IPC(M)'!$BE318)","v":2.6902013984837492},{"$f":"IF('[1]REAL IPC(M)'!$AM318=\"\",\"\",+'[1]REAL IPC(M)'!$AM318)","v":0.87011653684985202},{"$f":"IF('[1]REAL IPC(M)'!$BI318=\"\",\"\",+'[1]REAL IPC(M)'!$BI318)","v":2.5520112550599938},{"$f":"IF('[1]REAL IMAE(M)'!BJ318=\"\",\"\",'[1]REAL IMAE(M)'!BJ318)","v":5.7514726180004638},{"$f":"IF('[1]REAL IMAE(M)'!BK318=\"\",\"\",'[1]REAL IMAE(M)'!BK318)","v":4.7830529896595975},{"$f":"IF('[1]REAL IMAE(M)'!BN318=\"\",\"\",'[1]REAL IMAE(M)'!BN318)","v":5.4988836637394956},{"$f":"IF('[1]REAL IMAE(M)'!BO318=\"\",\"\",'[1]REAL IMAE(M)'!BO318)","v":4.8014737062598067},{"$f":"IF('[1]EXT RIN(M)'!$K318=\"\",\"\",'[1]EXT RIN(M)'!$K318)","v":29093.175021051367},"",{"$f":"IF('[1]EXT RIN(M)'!$L318=\"\",\"\",'[1]EXT RIN(M)'!$L318)","v":33155.489269461366},"",{"$f":"IF('[1]MONE(M)CARD'!EG318=\"\",\"\",'[1]MONE(M)CARD'!EG318)","v":29849.993064208742},{"$f":"IF('[1]MONE(M)CARD'!EK318=\"\",\"\",'[1]MONE(M)CARD'!EK318)","v":49963.932679571095},{"$f":"IF('[1]MONE(M)CARD'!EP318=\"\",\"\",'[1]MONE(M)CARD'!EP318)","v":28267.641714978265},{"$f":"IF('[1]MONE(M)CARD'!ES318=\"\",\"\",'[1]MONE(M)CARD'!ES318)","v":10.925215344974726},{"$f":"IF('[1]MONE(M)CARD'!EV318=\"\",\"\",'[1]MONE(M)CARD'!EV318)","v":8.5801213406980779},{"$f":"IF('[1]MONE(M)CARD'!EZ318=\"\",\"\",'[1]MONE(M)CARD'!EZ318)","v":8.0013980855807798},{"$f":"IF('[1]MONE(M)CAPARD'!FC318=\"\",\"\",'[1]MONE(M)CAPARD'!FC318)","v":37657.477789508739},{"$f":"IF('[1]MONE(M)CAPARD'!FG318=\"\",\"\",'[1]MONE(M)CAPARD'!FG318)","v":77411.284644911095},{"$f":"IF('[1]MONE(M)CAPARD'!FL318=\"\",\"\",'[1]MONE(M)CAPARD'!FL318)","v":28267.641714978265},{"$f":"IF('[1]MONE(M)CAPARD'!FO318=\"\",\"\",'[1]MONE(M)CAPARD'!FO318)","v":7.6410778533221979},{"$f":"IF('[1]MONE(M)CAPARD'!FR318=\"\",\"\",'[1]MONE(M)CAPARD'!FR318)","v":7.0982336665906809},{"$f":"IF('[1]MONE(M)CAPARD'!FV318=\"\",\"\",'[1]MONE(M)CAPARD'!FV318)","v":6.9598439303004911},{"$f":"IF('[1]MONE(M)CARD'!FV318=\"\",\"\",'[1]MONE(M)CARD'!FV318)","v":1225.4095881223552},{"$f":"IF('[1]MONE(M)CARD'!GD318=\"\",\"\",'[1]MONE(M)CARD'!GD318)","v":193.78515800502004},{"$f":"IF('[1]MONE(M)CARD'!GE318=\"\",\"\",'[1]MONE(M)CARD'!GE318)","v":8545.9024709156547},4.3253713448739628,{"$f":"IF('[9]II.2.Balance OSD-Activos'!J176=\"\",\"\",'[9]II.2.Balance OSD-Activos'!J176)","v":179.27274518979505},{"$f":"IF('[9]II.2.Balance OSD-Activos'!N176=\"\",\"\",'[9]II.2.Balance OSD-Activos'!N176)","v":980.60335246797285},{"$f":"IF('[9]II.2.Balance OSD-Activos'!R176=\"\",\"\",'[9]II.2.Balance OSD-Activos'!R176)","v":44621.821962451671},{"$f":"IF('[9]II.2.Balance OSD-Activos'!S176=\"\",\"\",'[9]II.2.Balance OSD-Activos'!S176)","v":48073.772632870896},44801.094707641467,93855.470692980336,-8.5108648143941927,11.802265205966966,16.014116475343055,11.902084034921856,10.575626306603091,11.212532931433605,0.65750481138922012,{"$f":"IF('[1]MONE(M)CAPARD'!GS318=\"\",\"\",'[1]MONE(M)CAPARD'!GS318)","v":17882.442208999935},{"$f":"IF('[1]MONE(M)CARD'!HA318=\"\",\"\",'[1]MONE(M)CAPARD'!HA318)","v":9721.3836919356563},{"$f":"IF('[1]MONE(M)CAPARD'!HB318=\"\",\"\",'[1]MONE(M)CAPARD'!HB318)","v":8161.0585170642789},"n.d.",{"$f":"IF('[10]II.2.Balance OSD-Activos'!J176=\"\",\"\",'[10]II.2.Balance OSD-Activos'!J176)","v":1834.4991424597954},{"$f":"IF('[10]II.2.Balance OSD-Activos'!N176=\"\",\"\",'[10]II.2.Balance OSD-Activos'!N176)","v":1454.4918115479732},{"$f":"IF('[10]II.2.Balance OSD-Activos'!R176=\"\",\"\",'[10]II.2.Balance OSD-Activos'!R176)","v":65859.88161108167},{"$f":"IF('[10]II.2.Balance OSD-Activos'!S176=\"\",\"\",'[10]II.2.Balance OSD-Activos'!S176)","v":66218.906745670902},67694.380753541467,135367.77931076032,9.9888928409951774,11.619195954741258,5.8157305271233417,11.665299500758074,11.524220809845875,11.507032791218364,0.42187596599083754,{"$f":"IF('[1]MONE(M)CAPARD'!AS318=\"\",\"\",'[1]MONE(M)CAPARD'!AS318)","v":3},{"$f":"IF('[1]MONE(M)CAPARD'!AT318=\"\",\"\",'[1]MONE(M)CAPARD'!AT318)","v":"n.a."},{"$f":"IF('[1]MONE(M)CAPARD'!AU318=\"\",\"\",'[1]MONE(M)CAPARD'!AU318)","v":3.25},{"$f":"IF('[1]MONE(M)CAPARD'!AV318=\"\",\"\",'[1]MONE(M)CAPARD'!AV318)","v":6.25},{"$f":"IF('[1]MONE(M)CAPARD'!AW318=\"\",\"\",'[1]MONE(M)CAPARD'!AW318)","v":"n.a."},{"$f":"IF('[1]MONE(M)CAPARD'!AX318=\"\",\"\",'[1]MONE(M)CAPARD'!AX318)","v":5},{"$f":"IF('[1]MONE(M)CAPARD'!AY318=\"\",\"\",'[1]MONE(M)CAPARD'!AY318)","v":"n.a."},{"$f":"IF('[1]FISCAL(M)'!$K318=\"\",\"\",'[1]FISCAL(M)'!$K318)","v":-2418.2117372647363},{"$f":"IF('[1]FISCAL(M)'!$L318=\"\",\"\",'[1]FISCAL(M)'!$L318)","v":-3201.031149972509},{"$f":"IF('[1]FISCAL(M)'!$AY318=\"\",\"\",'[1]FISCAL(M)'!$AY318)","v":109642.52491811229},{"$f":"IF('[1]FISCAL(M)'!$BI318=\"\",\"\",'[1]FISCAL(M)'!$BI318)","v":56523.454879260658},{"$f":"IF('[1]FISCAL(M)'!$BS318=\"\",\"\",'[1]FISCAL(M)'!$BS318)","v":53119.070038851642},{"$f":"IF('[1]FISCAL(M)'!$AZ318=\"\",\"\",'[1]FISCAL(M)'!$AZ318)","v":129612.56171857229},{"$f":"IF('[1]FISCAL(M)'!$BJ318=\"\",\"\",'[1]FISCAL(M)'!$BJ318)","v":60857.124571460656},{"$f":"IF('[1]FISCAL(M)'!$BT318=\"\",\"\",'[1]FISCAL(M)'!$BT318)","v":68755.437147111632},{"$f":"IF('[2]MONE(M)'!$AO318=\"\",\"\",'[2]MONE(M)'!$AO318)","v":17332751.333507404},{"$f":"IF('[3]MONE(M)'!$AO318=\"\",\"\",'[3]MONE(M)'!$AO318)","v":10813.434709589998},{"$f":"IF('[4]MONE(M)'!$AO318=\"\",\"\",'[4]MONE(M)'!$AO318)","v":171781.34326291041},{"$f":"IF('[5]MONE(M)'!$AO318=\"\",\"\",'[5]MONE(M)'!$AO318)","v":247589.20337825787},{"$f":"IF('[6]MONE(M)'!$AO318=\"\",\"\",'[6]MONE(M)'!$AO318)","v":111100.72645336433},{"$f":"IF('[7]MONE(M)'!$AO318=\"\",\"\",'[7]MONE(M)'!$AO318)","v":780925.27624116908},{"$f":"IF('[8]MONE(M)'!$AO318=\"\",\"\",'[8]MONE(M)'!$AO318)","v":42358.296514170004},12.999306736163053,3.2418392926455875,11.753423583547162,10.138723727026422,23.893225825321053,20.036367592556314,12.407627974956515,{"$f":"IF('[1]FISCAL(M)'!$K318=\"\",\"\",'[1]FISCAL(M)'!$K318)","v":-2418.2117372647363},{"$f":"+'[1]REAL(A)'!$AO$35","v":245374.76772761243},-0.98551768776370852,{"$f":"IF('[1]FISCAL(M)'!$L318=\"\",\"\",'[1]FISCAL(M)'!$L318)","v":-3201.031149972509},{"$f":"+'[1]REAL(A)'!$AP$35","v":299466.48772761232},-1.0689113076599381,128653.85169756948,{"$f":"'[1]Gráfico REM'!BG312","v":22895.201297665903},{"$f":"'[1]Gráfico REM'!BH312","v":98545.99897092006},{"$f":"'[1]Gráfico REM'!BI312","v":7212.651428983525},11.028642501637131,9.8749789982842451,11.836170906293209,4.2203908190665329,196954.34743931948,{"$f":"'[1]Gráfico REM'!BK312","v":24989.6269379859},{"$f":"'[1]Gráfico REM'!BL312","v":140904.29548509006},{"$f":"'[1]Gráfico REM'!BM312","v":31060.425016243527},11.597046395596999,10.528387593119337,12.007349162562008,10.619287196256334]
[2015,"octubre","2015-octubre",{"$f":"IF('[1]REAL IPC(M)'!$AL319=\"\",\"\",+'[1]REAL IPC(M)'!$AL319)","v":1.4271973912440394},{"$f":"IF('[1]REAL IPC(M)'!$BE319=\"\",\"\",+'[1]REAL IPC(M)'!$BE319)","v":2.6619830607756523},{"$f":"IF('[1]REAL IPC(M)'!$AM319=\"\",\"\",+'[1]REAL IPC(M)'!$AM319)","v":1.2821056720155211},{"$f":"IF('[1]REAL IPC(M)'!$BI319=\"\",\"\",+'[1]REAL IPC(M)'!$BI319)","v":2.5179998914760304},{"$f":"IF('[1]REAL IMAE(M)'!BJ319=\"\",\"\",'[1]REAL IMAE(M)'!BJ319)","v":5.539442880711265},{"$f":"IF('[1]REAL IMAE(M)'!BK319=\"\",\"\",'[1]REAL IMAE(M)'!BK319)","v":4.7812166344987306},{"$f":"IF('[1]REAL IMAE(M)'!BN319=\"\",\"\",'[1]REAL IMAE(M)'!BN319)","v":5.2862816385327305},{"$f":"IF('[1]REAL IMAE(M)'!BO319=\"\",\"\",'[1]REAL IMAE(M)'!BO319)","v":4.7929352466106856},{"$f":"IF('[1]EXT RIN(M)'!$K319=\"\",\"\",'[1]EXT RIN(M)'!$K319)","v":28716.025055904123},"",{"$f":"IF('[1]EXT RIN(M)'!$L319=\"\",\"\",'[1]EXT RIN(M)'!$L319)","v":32620.078516714122},"",{"$f":"IF('[1]MONE(M)CARD'!EG319=\"\",\"\",'[1]MONE(M)CARD'!EG319)","v":30208.674660600347},{"$f":"IF('[1]MONE(M)CARD'!EK319=\"\",\"\",'[1]MONE(M)CARD'!EK319)","v":49977.904643103306},{"$f":"IF('[1]MONE(M)CARD'!EP319=\"\",\"\",'[1]MONE(M)CARD'!EP319)","v":28102.506985388405},{"$f":"IF('[1]MONE(M)CARD'!ES319=\"\",\"\",'[1]MONE(M)CARD'!ES319)","v":12.267511021164079},{"$f":"IF('[1]MONE(M)CARD'!EV319=\"\",\"\",'[1]MONE(M)CARD'!EV319)","v":8.4392973528107476},{"$f":"IF('[1]MONE(M)CARD'!EZ319=\"\",\"\",'[1]MONE(M)CARD'!EZ319)","v":7.7586394459691066},{"$f":"IF('[1]MONE(M)CAPARD'!FC319=\"\",\"\",'[1]MONE(M)CAPARD'!FC319)","v":38156.570189980339},{"$f":"IF('[1]MONE(M)CAPARD'!FG319=\"\",\"\",'[1]MONE(M)CAPARD'!FG319)","v":77330.566429833285},{"$f":"IF('[1]MONE(M)CAPARD'!FL319=\"\",\"\",'[1]MONE(M)CAPARD'!FL319)","v":28102.506985388405},{"$f":"IF('[1]MONE(M)CAPARD'!FO319=\"\",\"\",'[1]MONE(M)CAPARD'!FO319)","v":9.4549037604675803},{"$f":"IF('[1]MONE(M)CAPARD'!FR319=\"\",\"\",'[1]MONE(M)CAPARD'!FR319)","v":6.9482676023709056},{"$f":"IF('[1]MONE(M)CAPARD'!FV319=\"\",\"\",'[1]MONE(M)CAPARD'!FV319)","v":6.7340432457825283},{"$f":"IF('[1]MONE(M)CARD'!FV319=\"\",\"\",'[1]MONE(M)CARD'!FV319)","v":1271.1443262107628},{"$f":"IF('[1]MONE(M)CARD'!GD319=\"\",\"\",'[1]MONE(M)CARD'!GD319)","v":96.706339769187679},{"$f":"IF('[1]MONE(M)CARD'!GE319=\"\",\"\",'[1]MONE(M)CARD'!GE319)","v":8746.2475024573341},5.5305343400318785,{"$f":"IF('[9]II.2.Balance OSD-Activos'!J177=\"\",\"\",'[9]II.2.Balance OSD-Activos'!J177)","v":174.55658442747517},{"$f":"IF('[9]II.2.Balance OSD-Activos'!N177=\"\",\"\",'[9]II.2.Balance OSD-Activos'!N177)","v":975.23978816864792},{"$f":"IF('[9]II.2.Balance OSD-Activos'!R177=\"\",\"\",'[9]II.2.Balance OSD-Activos'!R177)","v":45358.585649912653},{"$f":"IF('[9]II.2.Balance OSD-Activos'!S177=\"\",\"\",'[9]II.2.Balance OSD-Activos'!S177)","v":48590.303681548787},45533.142234340128,95098.685704057571,-11.337578256574343,11.796911151987842,11.30926086592674,11.909284463573089,10.379052775618526,11.062983293380757,-0.14954963805284827,{"$f":"IF('[1]MONE(M)CAPARD'!GS319=\"\",\"\",'[1]MONE(M)CAPARD'!GS319)","v":18393.693928567238},{"$f":"IF('[1]MONE(M)CARD'!HA319=\"\",\"\",'[1]MONE(M)CAPARD'!HA319)","v":9959.5123797673332},{"$f":"IF('[1]MONE(M)CAPARD'!HB319=\"\",\"\",'[1]MONE(M)CAPARD'!HB319)","v":8434.1815487999047},"n.d.",{"$f":"IF('[10]II.2.Balance OSD-Activos'!J177=\"\",\"\",'[10]II.2.Balance OSD-Activos'!J177)","v":1812.0602766574755},{"$f":"IF('[10]II.2.Balance OSD-Activos'!N177=\"\",\"\",'[10]II.2.Balance OSD-Activos'!N177)","v":1452.4874157286481},{"$f":"IF('[10]II.2.Balance OSD-Activos'!R177=\"\",\"\",'[10]II.2.Balance OSD-Activos'!R177)","v":66724.775386022666},{"$f":"IF('[10]II.2.Balance OSD-Activos'!S177=\"\",\"\",'[10]II.2.Balance OSD-Activos'!S177)","v":66976.462734708795},68536.83566268014,136965.78581311757,8.6841729416612381,11.239540028818729,3.4040098772172289,11.310613755673081,11.494599744328138,11.274599994925328,-0.23243279629303615,{"$f":"IF('[1]MONE(M)CAPARD'!AS319=\"\",\"\",'[1]MONE(M)CAPARD'!AS319)","v":2.25},{"$f":"IF('[1]MONE(M)CAPARD'!AT319=\"\",\"\",'[1]MONE(M)CAPARD'!AT319)","v":"n.a."},{"$f":"IF('[1]MONE(M)CAPARD'!AU319=\"\",\"\",'[1]MONE(M)CAPARD'!AU319)","v":3},{"$f":"IF('[1]MONE(M)CAPARD'!AV319=\"\",\"\",'[1]MONE(M)CAPARD'!AV319)","v":6.25},{"$f":"IF('[1]MONE(M)CAPARD'!AW319=\"\",\"\",'[1]MONE(M)CAPARD'!AW319)","v":"n.a."},{"$f":"IF('[1]MONE(M)CAPARD'!AX319=\"\",\"\",'[1]MONE(M)CAPARD'!AX319)","v":5},{"$f":"IF('[1]MONE(M)CAPARD'!AY319=\"\",\"\",'[1]MONE(M)CAPARD'!AY319)","v":"n.a."},{"$f":"IF('[1]FISCAL(M)'!$K319=\"\",\"\",'[1]FISCAL(M)'!$K319)","v":-2533.6651578679662},{"$f":"IF('[1]FISCAL(M)'!$L319=\"\",\"\",'[1]FISCAL(M)'!$L319)","v":-3793.6771766157372},{"$f":"IF('[1]FISCAL(M)'!$AY319=\"\",\"\",'[1]FISCAL(M)'!$AY319)","v":109788.11562841933},{"$f":"IF('[1]FISCAL(M)'!$BI319=\"\",\"\",'[1]FISCAL(M)'!$BI319)","v":56698.611028361345},{"$f":"IF('[1]FISCAL(M)'!$BS319=\"\",\"\",'[1]FISCAL(M)'!$BS319)","v":53089.504600057982},{"$f":"IF('[1]FISCAL(M)'!$AZ319=\"\",\"\",'[1]FISCAL(M)'!$AZ319)","v":129790.29639102932},{"$f":"IF('[1]FISCAL(M)'!$BJ319=\"\",\"\",'[1]FISCAL(M)'!$BJ319)","v":61076.280715561355},{"$f":"IF('[1]FISCAL(M)'!$BT319=\"\",\"\",'[1]FISCAL(M)'!$BT319)","v":68714.015675467992},{"$f":"IF('[2]MONE(M)'!$AO319=\"\",\"\",'[2]MONE(M)'!$AO319)","v":17500327.155631326},{"$f":"IF('[3]MONE(M)'!$AO319=\"\",\"\",'[3]MONE(M)'!$AO319)","v":10888.26831849},{"$f":"IF('[4]MONE(M)'!$AO319=\"\",\"\",'[4]MONE(M)'!$AO319)","v":173758.01663496601},{"$f":"IF('[5]MONE(M)'!$AO319=\"\",\"\",'[5]MONE(M)'!$AO319)","v":250033.41217478993},{"$f":"IF('[6]MONE(M)'!$AO319=\"\",\"\",'[6]MONE(M)'!$AO319)","v":113555.30133992003},{"$f":"IF('[7]MONE(M)'!$AO319=\"\",\"\",'[7]MONE(M)'!$AO319)","v":798194.01647404593},{"$f":"IF('[8]MONE(M)'!$AO319=\"\",\"\",'[8]MONE(M)'!$AO319)","v":42737.173123350003},12.259401981045471,3.6999330699529542,12.087738621359833,9.5896360826378313,24.631302521017929,19.389373922632135,11.992599280711879,{"$f":"IF('[1]FISCAL(M)'!$K319=\"\",\"\",'[1]FISCAL(M)'!$K319)","v":-2533.6651578679662},{"$f":"+'[1]REAL(A)'!$AO$35","v":245374.76772761243},-1.03256955934465,{"$f":"IF('[1]FISCAL(M)'!$L319=\"\",\"\",'[1]FISCAL(M)'!$L319)","v":-3793.6771766157372},{"$f":"+'[1]REAL(A)'!$AP$35","v":299466.48772761232},-1.2668119245671243,130032.50855248598,{"$f":"'[1]Gráfico REM'!BG313","v":23038.822894903562},{"$f":"'[1]Gráfico REM'!BH313","v":99748.139540442862},{"$f":"'[1]Gráfico REM'!BI313","v":7245.5461171395646},11.222642872673916,13.117222075266554,11.449076358763488,2.8670680071400056,198498.597898026,{"$f":"'[1]Gráfico REM'!BK313","v":25155.448112533562},{"$f":"'[1]Gráfico REM'!BL313","v":142485.31266379287},{"$f":"'[1]Gráfico REM'!BM313","v":30857.837121699558},11.40637547962633,12.855027403342433,11.61154642505846,9.3342288306775814]
[2015,"noviembre","2015-noviembre",{"$f":"IF('[1]REAL IPC(M)'!$AL320=\"\",\"\",+'[1]REAL IPC(M)'!$AL320)","v":1.396028242378744},{"$f":"IF('[1]REAL IPC(M)'!$BE320=\"\",\"\",+'[1]REAL IPC(M)'!$BE320)","v":2.6389651395313241},{"$f":"IF('[1]REAL IPC(M)'!$AM320=\"\",\"\",+'[1]REAL IPC(M)'!$AM320)","v":1.2721308292877875},{"$f":"IF('[1]REAL IPC(M)'!$BI320=\"\",\"\",+'[1]REAL IPC(M)'!$BI320)","v":2.4892173421924069},{"$f":"IF('[1]REAL IMAE(M)'!BJ320=\"\",\"\",'[1]REAL IMAE(M)'!BJ320)","v":5.130523996419778},{"$f":"IF('[1]REAL IMAE(M)'!BK320=\"\",\"\",'[1]REAL IMAE(M)'!BK320)","v":4.7763358389710353},{"$f":"IF('[1]REAL IMAE(M)'!BN320=\"\",\"\",'[1]REAL IMAE(M)'!BN320)","v":4.8660327860009067},{"$f":"IF('[1]REAL IMAE(M)'!BO320=\"\",\"\",'[1]REAL IMAE(M)'!BO320)","v":4.7828843711865465},{"$f":"IF('[1]EXT RIN(M)'!$K320=\"\",\"\",'[1]EXT RIN(M)'!$K320)","v":28779.212581577587},"",{"$f":"IF('[1]EXT RIN(M)'!$L320=\"\",\"\",'[1]EXT RIN(M)'!$L320)","v":32382.343503027587},"",{"$f":"IF('[1]MONE(M)CARD'!EG320=\"\",\"\",'[1]MONE(M)CARD'!EG320)","v":31630.092035631067},{"$f":"IF('[1]MONE(M)CARD'!EK320=\"\",\"\",'[1]MONE(M)CARD'!EK320)","v":49554.332675235317},{"$f":"IF('[1]MONE(M)CARD'!EP320=\"\",\"\",'[1]MONE(M)CARD'!EP320)","v":28042.646826865515},{"$f":"IF('[1]MONE(M)CARD'!ES320=\"\",\"\",'[1]MONE(M)CARD'!ES320)","v":13.460916181959792},{"$f":"IF('[1]MONE(M)CARD'!EV320=\"\",\"\",'[1]MONE(M)CARD'!EV320)","v":8.8045356681568432},{"$f":"IF('[1]MONE(M)CARD'!EZ320=\"\",\"\",'[1]MONE(M)CARD'!EZ320)","v":7.8031725182012401},{"$f":"IF('[1]MONE(M)CAPARD'!FC320=\"\",\"\",'[1]MONE(M)CAPARD'!FC320)","v":39735.578348051073},{"$f":"IF('[1]MONE(M)CAPARD'!FG320=\"\",\"\",'[1]MONE(M)CAPARD'!FG320)","v":77089.747281875316},{"$f":"IF('[1]MONE(M)CAPARD'!FL320=\"\",\"\",'[1]MONE(M)CAPARD'!FL320)","v":28042.646826865515},{"$f":"IF('[1]MONE(M)CAPARD'!FO320=\"\",\"\",'[1]MONE(M)CAPARD'!FO320)","v":10.327666567122428},{"$f":"IF('[1]MONE(M)CAPARD'!FR320=\"\",\"\",'[1]MONE(M)CAPARD'!FR320)","v":7.3317472409787143},{"$f":"IF('[1]MONE(M)CAPARD'!FV320=\"\",\"\",'[1]MONE(M)CAPARD'!FV320)","v":6.8734193326174031},{"$f":"IF('[1]MONE(M)CARD'!FV320=\"\",\"\",'[1]MONE(M)CARD'!FV320)","v":1299.5640779584724},{"$f":"IF('[1]MONE(M)CARD'!GD320=\"\",\"\",'[1]MONE(M)CARD'!GD320)","v":102.36641647705684},{"$f":"IF('[1]MONE(M)CARD'!GE320=\"\",\"\",'[1]MONE(M)CARD'!GE320)","v":8600.7616868408313},4.7034056737404573,{"$f":"IF('[9]II.2.Balance OSD-Activos'!J178=\"\",\"\",'[9]II.2.Balance OSD-Activos'!J178)","v":196.40640387102297},{"$f":"IF('[9]II.2.Balance OSD-Activos'!N178=\"\",\"\",'[9]II.2.Balance OSD-Activos'!N178)","v":1008.0134222170884},{"$f":"IF('[9]II.2.Balance OSD-Activos'!R178=\"\",\"\",'[9]II.2.Balance OSD-Activos'!R178)","v":45984.32767381052},{"$f":"IF('[9]II.2.Balance OSD-Activos'!S178=\"\",\"\",'[9]II.2.Balance OSD-Activos'!S178)","v":49316.395181699379},46180.73407768154,96505.142681598008,9.765842203402908,10.939983345060122,15.512777015338774,10.94505216464292,10.610825584529394,10.817284127031023,-0.2456991663497341,{"$f":"IF('[1]MONE(M)CAPARD'!GS320=\"\",\"\",'[1]MONE(M)CAPARD'!GS320)","v":18592.46217161775},{"$f":"IF('[1]MONE(M)CARD'!HA320=\"\",\"\",'[1]MONE(M)CAPARD'!HA320)","v":9885.9495528908301},{"$f":"IF('[1]MONE(M)CAPARD'!HB320=\"\",\"\",'[1]MONE(M)CAPARD'!HB320)","v":8706.5126187269198},"n.d.",{"$f":"IF('[10]II.2.Balance OSD-Activos'!J178=\"\",\"\",'[10]II.2.Balance OSD-Activos'!J178)","v":1839.3597038310231},{"$f":"IF('[10]II.2.Balance OSD-Activos'!N178=\"\",\"\",'[10]II.2.Balance OSD-Activos'!N178)","v":1487.5433182470883},{"$f":"IF('[10]II.2.Balance OSD-Activos'!R178=\"\",\"\",'[10]II.2.Balance OSD-Activos'!R178)","v":67637.993159390506},{"$f":"IF('[10]II.2.Balance OSD-Activos'!S178=\"\",\"\",'[10]II.2.Balance OSD-Activos'!S178)","v":67959.042819139373},69477.352863221531,138923.93900060799,11.512233891755507,10.735658735809682,3.9277158532463829,10.71469145145727,11.804231718102788,11.177472801252941,-9.712719367238698E-2,{"$f":"IF('[1]MONE(M)CAPARD'!AS320=\"\",\"\",'[1]MONE(M)CAPARD'!AS320)","v":2.25},{"$f":"IF('[1]MONE(M)CAPARD'!AT320=\"\",\"\",'[1]MONE(M)CAPARD'!AT320)","v":"n.a."},{"$f":"IF('[1]MONE(M)CAPARD'!AU320=\"\",\"\",'[1]MONE(M)CAPARD'!AU320)","v":3},{"$f":"IF('[1]MONE(M)CAPARD'!AV320=\"\",\"\",'[1]MONE(M)CAPARD'!AV320)","v":6.25},{"$f":"IF('[1]MONE(M)CAPARD'!AW320=\"\",\"\",'[1]MONE(M)CAPARD'!AW320)","v":"n.a."},{"$f":"IF('[1]MONE(M)CAPARD'!AX320=\"\",\"\",'[1]MONE(M)CAPARD'!AX320)","v":5},{"$f":"IF('[1]MONE(M)CAPARD'!AY320=\"\",\"\",'[1]MONE(M)CAPARD'!AY320)","v":"n.a."},{"$f":"IF('[1]FISCAL(M)'!$K320=\"\",\"\",'[1]FISCAL(M)'!$K320)","v":-3345.4717141548131},{"$f":"IF('[1]FISCAL(M)'!$L320=\"\",\"\",'[1]FISCAL(M)'!$L320)","v":-5039.4152411625846},{"$f":"IF('[1]FISCAL(M)'!$AY320=\"\",\"\",'[1]FISCAL(M)'!$AY320)","v":109718.41109042229},{"$f":"IF('[1]FISCAL(M)'!$BI320=\"\",\"\",'[1]FISCAL(M)'!$BI320)","v":56456.751103484945},{"$f":"IF('[1]FISCAL(M)'!$BS320=\"\",\"\",'[1]FISCAL(M)'!$BS320)","v":53261.659986937353},{"$f":"IF('[1]FISCAL(M)'!$AZ320=\"\",\"\",'[1]FISCAL(M)'!$AZ320)","v":130019.4034328823},{"$f":"IF('[1]FISCAL(M)'!$BJ320=\"\",\"\",'[1]FISCAL(M)'!$BJ320)","v":61138.81161890494},{"$f":"IF('[1]FISCAL(M)'!$BT320=\"\",\"\",'[1]FISCAL(M)'!$BT320)","v":68880.591813977342},{"$f":"IF('[2]MONE(M)'!$AO320=\"\",\"\",'[2]MONE(M)'!$AO320)","v":17588333.630605213},{"$f":"IF('[3]MONE(M)'!$AO320=\"\",\"\",'[3]MONE(M)'!$AO320)","v":11010.645271289999},{"$f":"IF('[4]MONE(M)'!$AO320=\"\",\"\",'[4]MONE(M)'!$AO320)","v":175555.66644840082},{"$f":"IF('[5]MONE(M)'!$AO320=\"\",\"\",'[5]MONE(M)'!$AO320)","v":253693.16675238201},{"$f":"IF('[6]MONE(M)'!$AO320=\"\",\"\",'[6]MONE(M)'!$AO320)","v":116379.04009399176},{"$f":"IF('[7]MONE(M)'!$AO320=\"\",\"\",'[7]MONE(M)'!$AO320)","v":810454.71967745642},{"$f":"IF('[8]MONE(M)'!$AO320=\"\",\"\",'[8]MONE(M)'!$AO320)","v":43297.888723269985},11.559122575520586,4.0234191604699099,11.858566848849094,9.5772788759358463,23.165517232638532,17.894825689489615,12.369504045443591,{"$f":"IF('[1]FISCAL(M)'!$K320=\"\",\"\",'[1]FISCAL(M)'!$K320)","v":-3345.4717141548131},{"$f":"+'[1]REAL(A)'!$AO$35","v":245374.76772761243},-1.3634130946457304,{"$f":"IF('[1]FISCAL(M)'!$L320=\"\",\"\",'[1]FISCAL(M)'!$L320)","v":-5039.4152411625846},{"$f":"+'[1]REAL(A)'!$AP$35","v":299466.48772761232},-1.6827977245141092,131241.6180889048,{"$f":"'[1]Gráfico REM'!BG314","v":22895.601123782624},{"$f":"'[1]Gráfico REM'!BH314","v":100987.67343271624},{"$f":"'[1]Gráfico REM'!BI314","v":7358.3435324059428},12.001734539903941,17.082032946483828,11.142881044753228,8.8496785356595442,200498.34425525478,{"$f":"'[1]Gráfico REM'!BK314","v":25059.184361682623},{"$f":"'[1]Gráfico REM'!BL314","v":144285.56215598623},{"$f":"'[1]Gráfico REM'!BM314","v":31153.597737585933},11.830631390641223,16.808053342045181,11.508150280304385,9.5431558467188751]
[2015,"diciembre","2015-diciembre",{"$f":"IF('[1]REAL IPC(M)'!$AL321=\"\",\"\",+'[1]REAL IPC(M)'!$AL321)","v":2.0095504191671276},{"$f":"IF('[1]REAL IPC(M)'!$BE321=\"\",\"\",+'[1]REAL IPC(M)'!$BE321)","v":2.6210501055569546},{"$f":"IF('[1]REAL IPC(M)'!$AM321=\"\",\"\",+'[1]REAL IPC(M)'!$AM321)","v":1.8677342060765101},{"$f":"IF('[1]REAL IPC(M)'!$BI321=\"\",\"\",+'[1]REAL IPC(M)'!$BI321)","v":2.465599988554934},{"$f":"IF('[1]REAL IMAE(M)'!BJ321=\"\",\"\",'[1]REAL IMAE(M)'!BJ321)","v":4.6333376179312991},{"$f":"IF('[1]REAL IMAE(M)'!BK321=\"\",\"\",'[1]REAL IMAE(M)'!BK321)","v":4.7685545927709239},{"$f":"IF('[1]REAL IMAE(M)'!BN321=\"\",\"\",'[1]REAL IMAE(M)'!BN321)","v":4.3319165005906157},{"$f":"IF('[1]REAL IMAE(M)'!BO321=\"\",\"\",'[1]REAL IMAE(M)'!BO321)","v":4.7714019160190357},{"$f":"IF('[1]EXT RIN(M)'!$K321=\"\",\"\",'[1]EXT RIN(M)'!$K321)","v":29674.007232887303},29674.007232887303,{"$f":"IF('[1]EXT RIN(M)'!$L321=\"\",\"\",'[1]EXT RIN(M)'!$L321)","v":33570.121339927304},33570.121339927304,{"$f":"IF('[1]MONE(M)CARD'!EG321=\"\",\"\",'[1]MONE(M)CARD'!EG321)","v":33111.776356165559},{"$f":"IF('[1]MONE(M)CARD'!EK321=\"\",\"\",'[1]MONE(M)CARD'!EK321)","v":49894.367119814982},{"$f":"IF('[1]MONE(M)CARD'!EP321=\"\",\"\",'[1]MONE(M)CARD'!EP321)","v":28082.726489088629},{"$f":"IF('[1]MONE(M)CARD'!ES321=\"\",\"\",'[1]MONE(M)CARD'!ES321)","v":12.162767128703056},{"$f":"IF('[1]MONE(M)CARD'!EV321=\"\",\"\",'[1]MONE(M)CARD'!EV321)","v":8.1123522014586502},{"$f":"IF('[1]MONE(M)CARD'!EZ321=\"\",\"\",'[1]MONE(M)CARD'!EZ321)","v":7.0693253723399296},{"$f":"IF('[1]MONE(M)CAPARD'!FC321=\"\",\"\",'[1]MONE(M)CAPARD'!FC321)","v":41326.448455085556},{"$f":"IF('[1]MONE(M)CAPARD'!FG321=\"\",\"\",'[1]MONE(M)CAPARD'!FG321)","v":77870.75784042498},{"$f":"IF('[1]MONE(M)CAPARD'!FL321=\"\",\"\",'[1]MONE(M)CAPARD'!FL321)","v":28082.726489088629},{"$f":"IF('[1]MONE(M)CAPARD'!FO321=\"\",\"\",'[1]MONE(M)CAPARD'!FO321)","v":9.2202092776813025},{"$f":"IF('[1]MONE(M)CAPARD'!FR321=\"\",\"\",'[1]MONE(M)CAPARD'!FR321)","v":6.9695885721123174},{"$f":"IF('[1]MONE(M)CAPARD'!FV321=\"\",\"\",'[1]MONE(M)CAPARD'!FV321)","v":6.4104377353631614},{"$f":"IF('[1]MONE(M)CARD'!FV321=\"\",\"\",'[1]MONE(M)CARD'!FV321)","v":1334.085851412015},{"$f":"IF('[1]MONE(M)CARD'!GD321=\"\",\"\",'[1]MONE(M)CARD'!GD321)","v":152.30529410557313},{"$f":"IF('[1]MONE(M)CARD'!GE321=\"\",\"\",'[1]MONE(M)CARD'!GE321)","v":8059.2159275284048},0.66796904760058062,{"$f":"IF('[9]II.2.Balance OSD-Activos'!J179=\"\",\"\",'[9]II.2.Balance OSD-Activos'!J179)","v":194.13990561764518},{"$f":"IF('[9]II.2.Balance OSD-Activos'!N179=\"\",\"\",'[9]II.2.Balance OSD-Activos'!N179)","v":1007.6344027710869},{"$f":"IF('[9]II.2.Balance OSD-Activos'!R179=\"\",\"\",'[9]II.2.Balance OSD-Activos'!R179)","v":46403.503635182322},{"$f":"IF('[9]II.2.Balance OSD-Activos'!S179=\"\",\"\",'[9]II.2.Balance OSD-Activos'!S179)","v":49455.889326532488},{"$f":"IFERROR(+AF314+AH314,\" \")","v":46597.643540799967},97061.167270103542,8.8793577170012341,9.742077431732854,16.473907395338337,9.7457155414165442,10.360357241702701,10.122507707042505,-0.6947764199885178,{"$f":"IF('[1]MONE(M)CAPARD'!GS321=\"\",\"\",'[1]MONE(M)CAPARD'!GS321)","v":18602.099067326657},{"$f":"IF('[1]MONE(M)CARD'!HA321=\"\",\"\",'[1]MONE(M)CAPARD'!HA321)","v":9355.5958948084044},{"$f":"IF('[1]MONE(M)CAPARD'!HB321=\"\",\"\",'[1]MONE(M)CAPARD'!HB321)","v":9246.5031725182525},"n.d.",{"$f":"IF('[10]II.2.Balance OSD-Activos'!J179=\"\",\"\",'[10]II.2.Balance OSD-Activos'!J179)","v":1816.6733912876452},{"$f":"IF('[10]II.2.Balance OSD-Activos'!N179=\"\",\"\",'[10]II.2.Balance OSD-Activos'!N179)","v":1494.7946344610868},{"$f":"IF('[10]II.2.Balance OSD-Activos'!R179=\"\",\"\",'[10]II.2.Balance OSD-Activos'!R179)","v":67780.527531172324},{"$f":"IF('[10]II.2.Balance OSD-Activos'!S179=\"\",\"\",'[10]II.2.Balance OSD-Activos'!S179)","v":68292.251129632481},69597.200922459975,139384.24668655352,8.6926199904936663,9.5292476929783376,18.458806277362918,9.5518484925533507,11.552008933226832,10.601277510787233,-0.57619529046570861,{"$f":"IF('[1]MONE(M)CAPARD'!AS321=\"\",\"\",'[1]MONE(M)CAPARD'!AS321)","v":2.25},{"$f":"IF('[1]MONE(M)CAPARD'!AT321=\"\",\"\",'[1]MONE(M)CAPARD'!AT321)","v":"n.a."},{"$f":"IF('[1]MONE(M)CAPARD'!AU321=\"\",\"\",'[1]MONE(M)CAPARD'!AU321)","v":3},{"$f":"IF('[1]MONE(M)CAPARD'!AV321=\"\",\"\",'[1]MONE(M)CAPARD'!AV321)","v":6.25},{"$f":"IF('[1]MONE(M)CAPARD'!AW321=\"\",\"\",'[1]MONE(M)CAPARD'!AW321)","v":"n.a."},{"$f":"IF('[1]MONE(M)CAPARD'!AX321=\"\",\"\",'[1]MONE(M)CAPARD'!AX321)","v":5},{"$f":"IF('[1]MONE(M)CAPARD'!AY321=\"\",\"\",'[1]MONE(M)CAPARD'!AY321)","v":"n.a."},{"$f":"IF('[1]FISCAL(M)'!$K321=\"\",\"\",'[1]FISCAL(M)'!$K321)","v":-4999.4983014141344},{"$f":"IF('[1]FISCAL(M)'!$L321=\"\",\"\",'[1]FISCAL(M)'!$L321)","v":-4999.0274057519073},{"$f":"IF('[1]FISCAL(M)'!$AY321=\"\",\"\",'[1]FISCAL(M)'!$AY321)","v":110546.11741058846},{"$f":"IF('[1]FISCAL(M)'!$BI321=\"\",\"\",'[1]FISCAL(M)'!$BI321)","v":56252.753741681328},{"$f":"IF('[1]FISCAL(M)'!$BS321=\"\",\"\",'[1]FISCAL(M)'!$BS321)","v":54293.363668907128},{"$f":"IF('[1]FISCAL(M)'!$AZ321=\"\",\"\",'[1]FISCAL(M)'!$AZ321)","v":130768.95973611846},{"$f":"IF('[1]FISCAL(M)'!$BJ321=\"\",\"\",'[1]FISCAL(M)'!$BJ321)","v":60827.351903271338},{"$f":"IF('[1]FISCAL(M)'!$BT321=\"\",\"\",'[1]FISCAL(M)'!$BT321)","v":69941.607832847119},{"$f":"IF('[2]MONE(M)'!$AO321=\"\",\"\",'[2]MONE(M)'!$AO321)","v":17844909.038303446},{"$f":"IF('[3]MONE(M)'!$AO321=\"\",\"\",'[3]MONE(M)'!$AO321)","v":11038.81895825},{"$f":"IF('[4]MONE(M)'!$AO321=\"\",\"\",'[4]MONE(M)'!$AO321)","v":177482.76659281901},{"$f":"IF('[5]MONE(M)'!$AO321=\"\",\"\",'[5]MONE(M)'!$AO321)","v":256181.21010161462},{"$f":"IF('[6]MONE(M)'!$AO321=\"\",\"\",'[6]MONE(M)'!$AO321)","v":118867.25213424562},{"$f":"IF('[7]MONE(M)'!$AO321=\"\",\"\",'[7]MONE(M)'!$AO321)","v":819047.0566265299},{"$f":"IF('[8]MONE(M)'!$AO321=\"\",\"\",'[8]MONE(M)'!$AO321)","v":43157.608895640005},11.974506538780805,4.5035009389866598,11.741019128034402,9.4791371905555089,23.59842699712118,14.817842982799112,11.347416905052254,{"$f":"IF('[1]FISCAL(M)'!$K321=\"\",\"\",'[1]FISCAL(M)'!$K321)","v":-4999.4983014141344},{"$f":"+'[1]REAL(A)'!$AO$35","v":245374.76772761243},-2.0374948686508865,{"$f":"IF('[1]FISCAL(M)'!$L321=\"\",\"\",'[1]FISCAL(M)'!$L321)","v":-4999.0274057519073},{"$f":"+'[1]REAL(A)'!$AP$35","v":299466.48772761232},-1.6693111284955882,131684.06349084532,{"$f":"'[1]Gráfico REM'!BG315","v":22621.098529510113},{"$f":"'[1]Gráfico REM'!BH315","v":101579.94413266459},{"$f":"'[1]Gráfico REM'!BI315","v":7483.0208286706111},11.145779422394364,17.27377520513571,10.43141952679143,3.8599721663902242,200934.1597118153,{"$f":"'[1]Gráfico REM'!BK315","v":24759.750799410111},{"$f":"'[1]Gráfico REM'!BL315","v":144737.5530283046},{"$f":"'[1]Gráfico REM'!BM315","v":31436.855884100605},11.16107424708308,16.551788880928854,10.70296933665491,9.2625694786201187]
[2016,"enero","2016-enero",{"$f":"IF('[1]REAL IPC(M)'!$AL322=\"\",\"\",+'[1]REAL IPC(M)'!$AL322)","v":2.6506349602211099},{"$f":"IF('[1]REAL IPC(M)'!$BE322=\"\",\"\",+'[1]REAL IPC(M)'!$BE322)","v":2.6080721836087228},{"$f":"IF('[1]REAL IPC(M)'!$AM322=\"\",\"\",+'[1]REAL IPC(M)'!$AM322)","v":2.4821041312179659},{"$f":"IF('[1]REAL IPC(M)'!$BI322=\"\",\"\",+'[1]REAL IPC(M)'!$BI322)","v":2.4470067885497437},{"$f":"IF('[1]REAL IMAE(M)'!BJ322=\"\",\"\",'[1]REAL IMAE(M)'!BJ322)","v":4.5614145073585854},{"$f":"IF('[1]REAL IMAE(M)'!BK322=\"\",\"\",'[1]REAL IMAE(M)'!BK322)","v":4.7580364406037301},{"$f":"IF('[1]REAL IMAE(M)'!BN322=\"\",\"\",'[1]REAL IMAE(M)'!BN322)","v":4.2721136133329729},{"$f":"IF('[1]REAL IMAE(M)'!BO322=\"\",\"\",'[1]REAL IMAE(M)'!BO322)","v":4.758573526421439},{"$f":"IF('[1]EXT RIN(M)'!$K322=\"\",\"\",'[1]EXT RIN(M)'!$K322)","v":29982.491288363257},"",{"$f":"IF('[1]EXT RIN(M)'!$L322=\"\",\"\",'[1]EXT RIN(M)'!$L322)","v":33788.574324923255},"",{"$f":"IF('[1]MONE(M)CARD'!EG322=\"\",\"\",'[1]MONE(M)CARD'!EG322)","v":32496.048865258304},{"$f":"IF('[1]MONE(M)CARD'!EK322=\"\",\"\",'[1]MONE(M)CARD'!EK322)","v":49663.797319824211},{"$f":"IF('[1]MONE(M)CARD'!EP322=\"\",\"\",'[1]MONE(M)CARD'!EP322)","v":28018.979875553254},{"$f":"IF('[1]MONE(M)CARD'!ES322=\"\",\"\",'[1]MONE(M)CARD'!ES322)","v":11.144174532792729},{"$f":"IF('[1]MONE(M)CARD'!EV322=\"\",\"\",'[1]MONE(M)CARD'!EV322)","v":7.5981123204871048},{"$f":"IF('[1]MONE(M)CARD'!EZ322=\"\",\"\",'[1]MONE(M)CARD'!EZ322)","v":6.7721304360263579},{"$f":"IF('[1]MONE(M)CAPARD'!FC322=\"\",\"\",'[1]MONE(M)CAPARD'!FC322)","v":40684.500247298311},{"$f":"IF('[1]MONE(M)CAPARD'!FG322=\"\",\"\",'[1]MONE(M)CAPARD'!FG322)","v":78156.525589514204},{"$f":"IF('[1]MONE(M)CAPARD'!FL322=\"\",\"\",'[1]MONE(M)CAPARD'!FL322)","v":28018.979875553254},{"$f":"IF('[1]MONE(M)CAPARD'!FO322=\"\",\"\",'[1]MONE(M)CAPARD'!FO322)","v":8.4397333681955011},{"$f":"IF('[1]MONE(M)CAPARD'!FR322=\"\",\"\",'[1]MONE(M)CAPARD'!FR322)","v":7.1444249058371989},{"$f":"IF('[1]MONE(M)CAPARD'!FV322=\"\",\"\",'[1]MONE(M)CAPARD'!FV322)","v":6.6140407976967852},{"$f":"IF('[1]MONE(M)CARD'!FV322=\"\",\"\",'[1]MONE(M)CARD'!FV322)","v":1345.9698230057816},{"$f":"IF('[1]MONE(M)CARD'!GD322=\"\",\"\",'[1]MONE(M)CARD'!GD322)","v":97.760923594880239},{"$f":"IF('[1]MONE(M)CARD'!GE322=\"\",\"\",'[1]MONE(M)CARD'!GE322)","v":8667.1361313410052},15.230093063999984,{"$f":"IF('[9]II.2.Balance OSD-Activos'!J180=\"\",\"\",'[9]II.2.Balance OSD-Activos'!J180)","v":205.30031729464258},{"$f":"IF('[9]II.2.Balance OSD-Activos'!N180=\"\",\"\",'[9]II.2.Balance OSD-Activos'!N180)","v":997.53283793307423},{"$f":"IF('[9]II.2.Balance OSD-Activos'!R180=\"\",\"\",'[9]II.2.Balance OSD-Activos'!R180)","v":46439.378021653727},{"$f":"IF('[9]II.2.Balance OSD-Activos'!S180=\"\",\"\",'[9]II.2.Balance OSD-Activos'!S180)","v":49502.12067448302},{"$f":"IFERROR(+AF315+AH315,\"\")","v":46644.678338948368},97144.331851364463,14.243308890933459,10.841964823597984,18.359350504771065,10.827377686121388,10.482699331064516,10.730699348712513,0.6081916416700075,{"$f":"IF('[1]MONE(M)CAPARD'!GS322=\"\",\"\",'[1]MONE(M)CAPARD'!GS322)","v":19027.174534248774},{"$f":"IF('[1]MONE(M)CARD'!HA322=\"\",\"\",'[1]MONE(M)CAPARD'!HA322)","v":9948.8030864810062},{"$f":"IF('[1]MONE(M)CAPARD'!HB322=\"\",\"\",'[1]MONE(M)CAPARD'!HB322)","v":9078.3714477677677},"n.d.",{"$f":"IF('[10]II.2.Balance OSD-Activos'!J180=\"\",\"\",'[10]II.2.Balance OSD-Activos'!J180)","v":1862.9928711046432},{"$f":"IF('[10]II.2.Balance OSD-Activos'!N180=\"\",\"\",'[10]II.2.Balance OSD-Activos'!N180)","v":1465.5635099230742},{"$f":"IF('[10]II.2.Balance OSD-Activos'!R180=\"\",\"\",'[10]II.2.Balance OSD-Activos'!R180)","v":67957.612586693736},{"$f":"IF('[10]II.2.Balance OSD-Activos'!S180=\"\",\"\",'[10]II.2.Balance OSD-Activos'!S180)","v":68518.572322633016},69820.605457798374,139804.74129035446,10.880180240397319,10.214053941966327,17.121817355665492,10.195905422821649,11.66256707474329,10.988307668542108,0.38703015775487515,{"$f":"IF('[1]MONE(M)CAPARD'!AS322=\"\",\"\",'[1]MONE(M)CAPARD'!AS322)","v":1.75},{"$f":"IF('[1]MONE(M)CAPARD'!AT322=\"\",\"\",'[1]MONE(M)CAPARD'!AT322)","v":"n.a."},{"$f":"IF('[1]MONE(M)CAPARD'!AU322=\"\",\"\",'[1]MONE(M)CAPARD'!AU322)","v":3},{"$f":"IF('[1]MONE(M)CAPARD'!AV322=\"\",\"\",'[1]MONE(M)CAPARD'!AV322)","v":6.25},{"$f":"IF('[1]MONE(M)CAPARD'!AW322=\"\",\"\",'[1]MONE(M)CAPARD'!AW322)","v":"n.a."},{"$f":"IF('[1]MONE(M)CAPARD'!AX322=\"\",\"\",'[1]MONE(M)CAPARD'!AX322)","v":5},{"$f":"IF('[1]MONE(M)CAPARD'!AY322=\"\",\"\",'[1]MONE(M)CAPARD'!AY322)","v":"n.a."},{"$f":"IF('[1]FISCAL(M)'!$K322=\"\",\"\",'[1]FISCAL(M)'!$K322)","v":-234.70462796790821},{"$f":"IF('[1]FISCAL(M)'!$L322=\"\",\"\",'[1]FISCAL(M)'!$L322)","v":"n.d."},{"$f":"IF('[1]FISCAL(M)'!$AY322=\"\",\"\",'[1]FISCAL(M)'!$AY322)","v":112171.51720786201},{"$f":"IF('[1]FISCAL(M)'!$BI322=\"\",\"\",'[1]FISCAL(M)'!$BI322)","v":57135.239419503108},{"$f":"IF('[1]FISCAL(M)'!$BS322=\"\",\"\",'[1]FISCAL(M)'!$BS322)","v":55036.277788358901},{"$f":"IF('[1]FISCAL(M)'!$AZ322=\"\",\"\",'[1]FISCAL(M)'!$AZ322)","v":132378.92872786202},{"$f":"IF('[1]FISCAL(M)'!$BJ322=\"\",\"\",'[1]FISCAL(M)'!$BJ322)","v":61732.533179503109},{"$f":"IF('[1]FISCAL(M)'!$BT322=\"\",\"\",'[1]FISCAL(M)'!$BT322)","v":70646.395548358894},{"$f":"IF('[2]MONE(M)'!$AO322=\"\",\"\",'[2]MONE(M)'!$AO322)","v":17927158.091465898},{"$f":"IF('[3]MONE(M)'!$AO322=\"\",\"\",'[3]MONE(M)'!$AO322)","v":11113.976387499999},{"$f":"IF('[4]MONE(M)'!$AO322=\"\",\"\",'[4]MONE(M)'!$AO322)","v":178076.80083938382},{"$f":"IF('[5]MONE(M)'!$AO322=\"\",\"\",'[5]MONE(M)'!$AO322)","v":257730.20965706109},{"$f":"IF('[6]MONE(M)'!$AO322=\"\",\"\",'[6]MONE(M)'!$AO322)","v":118961.259238431},{"$f":"IF('[7]MONE(M)'!$AO322=\"\",\"\",'[7]MONE(M)'!$AO322)","v":820862.55325719016},{"$f":"IF('[8]MONE(M)'!$AO322=\"\",\"\",'[8]MONE(M)'!$AO322)","v":43498.951632920012},{"$f":"IF(BY315=\"\",\"\",((BY315/BY303)-1)*100)","v":11.910244898431976},4.6768395839986043,11.348238137245549,9.8897684470909084,22.583773193591085,17.883311252565726,11.300782488327087,{"$f":"IF('[1]FISCAL(M)'!$K322=\"\",\"\",'[1]FISCAL(M)'!$K322)","v":-234.70462796790821},{"$f":"+'[1]REAL(A)'!$AO$36","v":258132.32497092453},-9.0924152174410869E-2,{"$f":"IF('[1]FISCAL(M)'!$L322=\"\",\"\",'[1]FISCAL(M)'!$L322)","v":"n.d."},{"$f":"+'[1]REAL(A)'!$AP$36","v":316040.02097092452},"n.d.",132270.35832619178,{"$f":"'[1]Gráfico REM'!BG316","v":23178.981988662024},{"$f":"'[1]Gráfico REM'!BH316","v":101678.31705918303},{"$f":"'[1]Gráfico REM'!BI316","v":7413.05927834672},10.36748956631337,9.5748784320551561,10.863066456551218,6.2558378180396668,201478.21427046182,{"$f":"'[1]Gráfico REM'!BK316","v":25396.264797812022},{"$f":"'[1]Gráfico REM'!BL316","v":145177.26869210304},{"$f":"'[1]Gráfico REM'!BM316","v":30904.680780546725},10.180579509132937,9.1544702699910108,10.993856096476673,7.3157596994364749]
[2016,"febrero","2016-febrero",{"$f":"IF('[1]REAL IPC(M)'!$AL323=\"\",\"\",+'[1]REAL IPC(M)'!$AL323)","v":2.3724355619437976},{"$f":"IF('[1]REAL IPC(M)'!$BE323=\"\",\"\",+'[1]REAL IPC(M)'!$BE323)","v":2.5998312440488558},{"$f":"IF('[1]REAL IPC(M)'!$AM323=\"\",\"\",+'[1]REAL IPC(M)'!$AM323)","v":2.2626395778222008},{"$f":"IF('[1]REAL IPC(M)'!$BI323=\"\",\"\",+'[1]REAL IPC(M)'!$BI323)","v":2.4332559781858887},{"$f":"IF('[1]REAL IMAE(M)'!BJ323=\"\",\"\",'[1]REAL IMAE(M)'!BJ323)","v":4.8341595838729656},{"$f":"IF('[1]REAL IMAE(M)'!BK323=\"\",\"\",'[1]REAL IMAE(M)'!BK323)","v":4.7449345987524483},{"$f":"IF('[1]REAL IMAE(M)'!BN323=\"\",\"\",'[1]REAL IMAE(M)'!BN323)","v":4.5123936509931406},{"$f":"IF('[1]REAL IMAE(M)'!BO323=\"\",\"\",'[1]REAL IMAE(M)'!BO323)","v":4.744453303391083},{"$f":"IF('[1]EXT RIN(M)'!$K323=\"\",\"\",'[1]EXT RIN(M)'!$K323)","v":29315.550582288204},"",{"$f":"IF('[1]EXT RIN(M)'!$L323=\"\",\"\",'[1]EXT RIN(M)'!$L323)","v":32894.030715528206},"",{"$f":"IF('[1]MONE(M)CARD'!EG323=\"\",\"\",'[1]MONE(M)CARD'!EG323)","v":32746.549183298568},{"$f":"IF('[1]MONE(M)CARD'!EK323=\"\",\"\",'[1]MONE(M)CARD'!EK323)","v":50265.064740014728},{"$f":"IF('[1]MONE(M)CARD'!EP323=\"\",\"\",'[1]MONE(M)CARD'!EP323)","v":28433.235982960279},{"$f":"IF('[1]MONE(M)CARD'!ES323=\"\",\"\",'[1]MONE(M)CARD'!ES323)","v":13.185308862875411},{"$f":"IF('[1]MONE(M)CARD'!EV323=\"\",\"\",'[1]MONE(M)CARD'!EV323)","v":7.9402868315300079},{"$f":"IF('[1]MONE(M)CARD'!EZ323=\"\",\"\",'[1]MONE(M)CARD'!EZ323)","v":7.0008016883813973},{"$f":"IF('[1]MONE(M)CAPARD'!FC323=\"\",\"\",'[1]MONE(M)CAPARD'!FC323)","v":40846.219337538576},{"$f":"IF('[1]MONE(M)CAPARD'!FG323=\"\",\"\",'[1]MONE(M)CAPARD'!FG323)","v":78862.19519509474},{"$f":"IF('[1]MONE(M)CAPARD'!FL323=\"\",\"\",'[1]MONE(M)CAPARD'!FL323)","v":28433.235982960265},{"$f":"IF('[1]MONE(M)CAPARD'!FO323=\"\",\"\",'[1]MONE(M)CAPARD'!FO323)","v":10.449684923843083},{"$f":"IF('[1]MONE(M)CAPARD'!FR323=\"\",\"\",'[1]MONE(M)CAPARD'!FR323)","v":7.3847649667483806},{"$f":"IF('[1]MONE(M)CAPARD'!FV323=\"\",\"\",'[1]MONE(M)CAPARD'!FV323)","v":6.788521167937045},{"$f":"IF('[1]MONE(M)CARD'!FV323=\"\",\"\",'[1]MONE(M)CARD'!FV323)","v":1346.8401025451494},{"$f":"IF('[1]MONE(M)CARD'!GD323=\"\",\"\",'[1]MONE(M)CARD'!GD323)","v":104.84435489779999},{"$f":"IF('[1]MONE(M)CARD'!GE323=\"\",\"\",'[1]MONE(M)CARD'!GE323)","v":8779.7658784798732},14.351271304531622,{"$f":"IF('[9]II.2.Balance OSD-Activos'!J181=\"\",\"\",'[9]II.2.Balance OSD-Activos'!J181)","v":215.87804363399522},{"$f":"IF('[9]II.2.Balance OSD-Activos'!N181=\"\",\"\",'[9]II.2.Balance OSD-Activos'!N181)","v":987.90396237230584},{"$f":"IF('[9]II.2.Balance OSD-Activos'!R181=\"\",\"\",'[9]II.2.Balance OSD-Activos'!R181)","v":46642.271750584012},{"$f":"IF('[9]II.2.Balance OSD-Activos'!S181=\"\",\"\",'[9]II.2.Balance OSD-Activos'!S181)","v":49813.049456869325},{"$f":"IFERROR(+AF316+AH316,\"\")","v":46858.149794218007},97659.103213459632,15.349362009539647,10.804730298835018,14.117741350920499,10.784528437311526,10.446469947831316,10.654145285566674,-7.6554063145838569E-2,{"$f":"IF('[1]MONE(M)CAPARD'!GS323=\"\",\"\",'[1]MONE(M)CAPARD'!GS323)","v":19161.794483127687},{"$f":"IF('[1]MONE(M)CARD'!HA323=\"\",\"\",'[1]MONE(M)CAPARD'!HA323)","v":10082.593875129873},{"$f":"IF('[1]MONE(M)CAPARD'!HB323=\"\",\"\",'[1]MONE(M)CAPARD'!HB323)","v":9079.2006079978146},"n.d.",{"$f":"IF('[10]II.2.Balance OSD-Activos'!J181=\"\",\"\",'[10]II.2.Balance OSD-Activos'!J181)","v":1827.4457116539952},{"$f":"IF('[10]II.2.Balance OSD-Activos'!N181=\"\",\"\",'[10]II.2.Balance OSD-Activos'!N181)","v":1443.1081472723058},{"$f":"IF('[10]II.2.Balance OSD-Activos'!R181=\"\",\"\",'[10]II.2.Balance OSD-Activos'!R181)","v":68179.873493314008},{"$f":"IF('[10]II.2.Balance OSD-Activos'!S181=\"\",\"\",'[10]II.2.Balance OSD-Activos'!S181)","v":68987.218700299331},70007.319204968007,{"$f":"IF(OR(AW316=\"\",AX316=\"\",AY316=\"\",AZ316=\"\"),\"\",SUM(AW316:AZ316))","v":140437.64605253964},7.5888168306203374,9.893989357443056,{"$f":"IF(OR(AX316=\"\",AX304=\"\"),\"\",((AX316/AX304)-1)*100)","v":6.1890244394224192},9.957135672876305,11.605329922550611,10.688057814698858,-0.30024985384324943,{"$f":"IF('[1]MONE(M)CAPARD'!AS323=\"\",\"\",'[1]MONE(M)CAPARD'!AS323)","v":1.75},{"$f":"IF('[1]MONE(M)CAPARD'!AT323=\"\",\"\",'[1]MONE(M)CAPARD'!AT323)","v":"n.a."},{"$f":"IF('[1]MONE(M)CAPARD'!AU323=\"\",\"\",'[1]MONE(M)CAPARD'!AU323)","v":3},{"$f":"IF('[1]MONE(M)CAPARD'!AV323=\"\",\"\",'[1]MONE(M)CAPARD'!AV323)","v":6.25},{"$f":"IF('[1]MONE(M)CAPARD'!AW323=\"\",\"\",'[1]MONE(M)CAPARD'!AW323)","v":"n.a."},{"$f":"IF('[1]MONE(M)CAPARD'!AX323=\"\",\"\",'[1]MONE(M)CAPARD'!AX323)","v":5},{"$f":"IF('[1]MONE(M)CAPARD'!AY323=\"\",\"\",'[1]MONE(M)CAPARD'!AY323)","v":"n.a."},{"$f":"IF('[1]FISCAL(M)'!$K323=\"\",\"\",'[1]FISCAL(M)'!$K323)","v":-1032.588718069678},{"$f":"IF('[1]FISCAL(M)'!$L323=\"\",\"\",'[1]FISCAL(M)'!$L323)","v":"n.d."},{"$f":"IF('[1]FISCAL(M)'!$AY323=\"\",\"\",'[1]FISCAL(M)'!$AY323)","v":113016.75991475589},{"$f":"IF('[1]FISCAL(M)'!$BI323=\"\",\"\",'[1]FISCAL(M)'!$BI323)","v":58158.853209456065},{"$f":"IF('[1]FISCAL(M)'!$BS323=\"\",\"\",'[1]FISCAL(M)'!$BS323)","v":54857.906705299822},{"$f":"IF('[1]FISCAL(M)'!$AZ323=\"\",\"\",'[1]FISCAL(M)'!$AZ323)","v":133246.51841475588},{"$f":"IF('[1]FISCAL(M)'!$BJ323=\"\",\"\",'[1]FISCAL(M)'!$BJ323)","v":62760.406889456062},{"$f":"IF('[1]FISCAL(M)'!$BT323=\"\",\"\",'[1]FISCAL(M)'!$BT323)","v":70486.111525299813},{"$f":"IF('[2]MONE(M)'!$AO323=\"\",\"\",'[2]MONE(M)'!$AO323)","v":18028404.033135287},{"$f":"IF('[3]MONE(M)'!$AO323=\"\",\"\",'[3]MONE(M)'!$AO323)","v":11107.413285499999},{"$f":"IF('[4]MONE(M)'!$AO323=\"\",\"\",'[4]MONE(M)'!$AO323)","v":178770.44330325976},{"$f":"IF('[5]MONE(M)'!$AO323=\"\",\"\",'[5]MONE(M)'!$AO323)","v":261406.50253309781},{"$f":"IF('[6]MONE(M)'!$AO323=\"\",\"\",'[6]MONE(M)'!$AO323)","v":120215.08192463283},{"$f":"IF('[7]MONE(M)'!$AO323=\"\",\"\",'[7]MONE(M)'!$AO323)","v":824517.49564231001},{"$f":"IF('[8]MONE(M)'!$AO323=\"\",\"\",'[8]MONE(M)'!$AO323)","v":43633.674731430001},11.996380040430488,4.3100876546931399,11.160108428929227,10.304538167991995,22.27745390254201,18.55973594840663,10.853095309305449,{"$f":"IF('[1]FISCAL(M)'!$K323=\"\",\"\",'[1]FISCAL(M)'!$K323)","v":-1032.588718069678},{"$f":"+'[1]REAL(A)'!$AO$36","v":258132.32497092453},-0.40002301849874344,{"$f":"IF('[1]FISCAL(M)'!$L323=\"\",\"\",'[1]FISCAL(M)'!$L323)","v":"n.d."},{"$f":"+'[1]REAL(A)'!$AP$36","v":316040.02097092452},"n.d.",133489.08612901313,{"$f":"'[1]Gráfico REM'!BG317","v":23744.90888210278},{"$f":"'[1]Gráfico REM'!BH317","v":102304.32591152351},{"$f":"'[1]Gráfico REM'!BI317","v":7439.8513353868275},9.9126114561087331,7.7734554147007806,10.883841014327045,3.9761043669446217,202888.05253561313,{"$f":"'[1]Gráfico REM'!BK317","v":25959.15453879278},{"$f":"'[1]Gráfico REM'!BL317","v":145938.0006429535},{"$f":"'[1]Gráfico REM'!BM317","v":30990.897353866836},9.7828076350652502,7.3916074523087127,10.87464663793889,6.8215523582094484]
[2016,"marzo","2016-marzo",{"$f":"IF('[1]REAL IPC(M)'!$AL324=\"\",\"\",+'[1]REAL IPC(M)'!$AL324)","v":2.0226407716348982},{"$f":"IF('[1]REAL IPC(M)'!$BE324=\"\",\"\",+'[1]REAL IPC(M)'!$BE324)","v":2.5961282361545157},{"$f":"IF('[1]REAL IPC(M)'!$AM324=\"\",\"\",+'[1]REAL IPC(M)'!$AM324)","v":1.9005525544488533},{"$f":"IF('[1]REAL IPC(M)'!$BI324=\"\",\"\",+'[1]REAL IPC(M)'!$BI324)","v":2.4241655442827081},{"$f":"IF('[1]REAL IMAE(M)'!BJ324=\"\",\"\",'[1]REAL IMAE(M)'!BJ324)","v":5.0630872016810713},{"$f":"IF('[1]REAL IMAE(M)'!BK324=\"\",\"\",'[1]REAL IMAE(M)'!BK324)","v":4.7293883972775008},{"$f":"IF('[1]REAL IMAE(M)'!BN324=\"\",\"\",'[1]REAL IMAE(M)'!BN324)","v":4.734450505849952},{"$f":"IF('[1]REAL IMAE(M)'!BO324=\"\",\"\",'[1]REAL IMAE(M)'!BO324)","v":4.7290608931511269},{"$f":"IF('[1]EXT RIN(M)'!$K324=\"\",\"\",'[1]EXT RIN(M)'!$K324)","v":29559.050440913721},"",{"$f":"IF('[1]EXT RIN(M)'!$L324=\"\",\"\",'[1]EXT RIN(M)'!$L324)","v":34258.137295753724},"",{"$f":"IF('[1]MONE(M)CARD'!EG324=\"\",\"\",'[1]MONE(M)CARD'!EG324)","v":32952.233083524981},{"$f":"IF('[1]MONE(M)CARD'!EK324=\"\",\"\",'[1]MONE(M)CARD'!EK324)","v":50632.280954656999},{"$f":"IF('[1]MONE(M)CARD'!EP324=\"\",\"\",'[1]MONE(M)CARD'!EP324)","v":28928.475818724881},{"$f":"IF('[1]MONE(M)CARD'!ES324=\"\",\"\",'[1]MONE(M)CARD'!ES324)","v":12.260966227006854},{"$f":"IF('[1]MONE(M)CARD'!EV324=\"\",\"\",'[1]MONE(M)CARD'!EV324)","v":7.200033543016704},{"$f":"IF('[1]MONE(M)CARD'!EZ324=\"\",\"\",'[1]MONE(M)CARD'!EZ324)","v":6.8559687926798674},{"$f":"IF('[1]MONE(M)CAPARD'!FC324=\"\",\"\",'[1]MONE(M)CAPARD'!FC324)","v":41007.591724094978},{"$f":"IF('[1]MONE(M)CAPARD'!FG324=\"\",\"\",'[1]MONE(M)CAPARD'!FG324)","v":79519.111190156997},{"$f":"IF('[1]MONE(M)CAPARD'!FL324=\"\",\"\",'[1]MONE(M)CAPARD'!FL324)","v":28928.475818724895},{"$f":"IF('[1]MONE(M)CAPARD'!FO324=\"\",\"\",'[1]MONE(M)CAPARD'!FO324)","v":9.8621680000576806},{"$f":"IF('[1]MONE(M)CAPARD'!FR324=\"\",\"\",'[1]MONE(M)CAPARD'!FR324)","v":6.9669141197735263},{"$f":"IF('[1]MONE(M)CAPARD'!FV324=\"\",\"\",'[1]MONE(M)CAPARD'!FV324)","v":6.7536403339376161},{"$f":"IF('[1]MONE(M)CARD'!FV324=\"\",\"\",'[1]MONE(M)CARD'!FV324)","v":1303.2405982617945},{"$f":"IF('[1]MONE(M)CARD'!GD324=\"\",\"\",'[1]MONE(M)CARD'!GD324)","v":95.313849200295493},{"$f":"IF('[1]MONE(M)CARD'!GE324=\"\",\"\",'[1]MONE(M)CARD'!GE324)","v":9194.6136986326819},16.64513137830701,{"$f":"IF('[9]II.2.Balance OSD-Activos'!J182=\"\",\"\",'[9]II.2.Balance OSD-Activos'!J182)","v":209.69015928423846},{"$f":"IF('[9]II.2.Balance OSD-Activos'!N182=\"\",\"\",'[9]II.2.Balance OSD-Activos'!N182)","v":974.31680827016089},{"$f":"IF('[9]II.2.Balance OSD-Activos'!R182=\"\",\"\",'[9]II.2.Balance OSD-Activos'!R182)","v":46705.900021834546},{"$f":"IF('[9]II.2.Balance OSD-Activos'!S182=\"\",\"\",'[9]II.2.Balance OSD-Activos'!S182)","v":50042.13341849178},46915.590181118787,97932.040407880733,8.9005078687321557,10.025978492030152,13.897610763624435,10.031083847120058,10.33973983941474,10.223413815262949,-0.43073147030372461,{"$f":"IF('[1]MONE(M)CAPARD'!GS324=\"\",\"\",'[1]MONE(M)CAPARD'!GS324)","v":19252.085810686149},{"$f":"IF('[1]MONE(M)CARD'!HA324=\"\",\"\",'[1]MONE(M)CAPARD'!HA324)","v":10495.19315896268},{"$f":"IF('[1]MONE(M)CAPARD'!HB324=\"\",\"\",'[1]MONE(M)CAPARD'!HB324)","v":8756.8926517234686},"n.d.",{"$f":"IF('[10]II.2.Balance OSD-Activos'!J182=\"\",\"\",'[10]II.2.Balance OSD-Activos'!J182)","v":1915.2338663642383},{"$f":"IF('[10]II.2.Balance OSD-Activos'!N182=\"\",\"\",'[10]II.2.Balance OSD-Activos'!N182)","v":1426.1465925601608},{"$f":"IF('[10]II.2.Balance OSD-Activos'!R182=\"\",\"\",'[10]II.2.Balance OSD-Activos'!R182)","v":68298.772552194539},{"$f":"IF('[10]II.2.Balance OSD-Activos'!S182=\"\",\"\",'[10]II.2.Balance OSD-Activos'!S182)","v":69416.761445151773},70214.006418558783,141056.91445627069,12.414867159409138,9.2633167013304032,6.5379480731474482,9.1774860285188673,11.507062947250812,10.32728910397096,-0.36076871072789807,{"$f":"IF('[1]MONE(M)CAPARD'!AS324=\"\",\"\",'[1]MONE(M)CAPARD'!AS324)","v":1.75},{"$f":"IF('[1]MONE(M)CAPARD'!AT324=\"\",\"\",'[1]MONE(M)CAPARD'!AT324)","v":"n.a."},{"$f":"IF('[1]MONE(M)CAPARD'!AU324=\"\",\"\",'[1]MONE(M)CAPARD'!AU324)","v":3},{"$f":"IF('[1]MONE(M)CAPARD'!AV324=\"\",\"\",'[1]MONE(M)CAPARD'!AV324)","v":5.75},{"$f":"IF('[1]MONE(M)CAPARD'!AW324=\"\",\"\",'[1]MONE(M)CAPARD'!AW324)","v":"n.a."},{"$f":"IF('[1]MONE(M)CAPARD'!AX324=\"\",\"\",'[1]MONE(M)CAPARD'!AX324)","v":5},{"$f":"IF('[1]MONE(M)CAPARD'!AY324=\"\",\"\",'[1]MONE(M)CAPARD'!AY324)","v":"n.a."},{"$f":"IF('[1]FISCAL(M)'!$K324=\"\",\"\",'[1]FISCAL(M)'!$K324)","v":-1525.5330247838413},{"$f":"IF('[1]FISCAL(M)'!$L324=\"\",\"\",'[1]FISCAL(M)'!$L324)","v":-2286.533024783841},{"$f":"IF('[1]FISCAL(M)'!$AY324=\"\",\"\",'[1]FISCAL(M)'!$AY324)","v":113496.12357648544},{"$f":"IF('[1]FISCAL(M)'!$BI324=\"\",\"\",'[1]FISCAL(M)'!$BI324)","v":58585.027597075983},{"$f":"IF('[1]FISCAL(M)'!$BS324=\"\",\"\",'[1]FISCAL(M)'!$BS324)","v":54911.095979409452},{"$f":"IF('[1]FISCAL(M)'!$AZ324=\"\",\"\",'[1]FISCAL(M)'!$AZ324)","v":134812.24498648543},{"$f":"IF('[1]FISCAL(M)'!$BJ324=\"\",\"\",'[1]FISCAL(M)'!$BJ324)","v":63217.804597075992},{"$f":"IF('[1]FISCAL(M)'!$BT324=\"\",\"\",'[1]FISCAL(M)'!$BT324)","v":71594.440389409443},{"$f":"IF('[2]MONE(M)'!$AO324=\"\",\"\",'[2]MONE(M)'!$AO324)","v":18219986.89240928},{"$f":"IF('[3]MONE(M)'!$AO324=\"\",\"\",'[3]MONE(M)'!$AO324)","v":11146.102777299999},{"$f":"IF('[4]MONE(M)'!$AO324=\"\",\"\",'[4]MONE(M)'!$AO324)","v":179573.07219233573},{"$f":"IF('[5]MONE(M)'!$AO324=\"\",\"\",'[5]MONE(M)'!$AO324)","v":261305.56384132121},{"$f":"IF('[6]MONE(M)'!$AO324=\"\",\"\",'[6]MONE(M)'!$AO324)","v":121530.09490498973},{"$f":"IF('[7]MONE(M)'!$AO324=\"\",\"\",'[7]MONE(M)'!$AO324)","v":826304.49293815007},{"$f":"IF('[8]MONE(M)'!$AO324=\"\",\"\",'[8]MONE(M)'!$AO324)","v":43996.195716560003},12.297744471992299,4.5120868784322088,10.444046086403347,9.5173379638472824,22.413415233720578,18.608193753472801,10.62798109255656,{"$f":"IF('[1]FISCAL(M)'!$K324=\"\",\"\",'[1]FISCAL(M)'!$K324)","v":-1525.5330247838413},{"$f":"+'[1]REAL(A)'!$AO$36","v":258132.32497092453},-0.5909887593332892,{"$f":"IF('[1]FISCAL(M)'!$L324=\"\",\"\",'[1]FISCAL(M)'!$L324)","v":-2286.533024783841},{"$f":"+'[1]REAL(A)'!$AP$36","v":316040.02097092452},-0.72349477061773793,134308.81632987046,{"$f":"'[1]Gráfico REM'!BG318","v":24150.249980883218},{"$f":"'[1]Gráfico REM'!BH318","v":102747.98193127879},{"$f":"'[1]Gráfico REM'!BI318","v":7410.5844177084418},9.4020266303028954,5.892583518109773,10.624919316868532,4.6643754502208257,204130.13053494043,{"$f":"'[1]Gráfico REM'!BK318","v":26343.183548853216},{"$f":"'[1]Gráfico REM'!BL318","v":146744.17764783878},{"$f":"'[1]Gráfico REM'!BM318","v":31042.769338248443},9.4352331759757426,6.0622022189527724,10.625837267237227,6.8820355184494808]
[2016,"abril","2016-abril",{"$f":"IF('[1]REAL IPC(M)'!$AL325=\"\",\"\",+'[1]REAL IPC(M)'!$AL325)","v":2.0691173812543262},{"$f":"IF('[1]REAL IPC(M)'!$BE325=\"\",\"\",+'[1]REAL IPC(M)'!$BE325)","v":2.5967536406182656},{"$f":"IF('[1]REAL IPC(M)'!$AM325=\"\",\"\",+'[1]REAL IPC(M)'!$AM325)","v":1.9443274888143236},{"$f":"IF('[1]REAL IPC(M)'!$BI325=\"\",\"\",+'[1]REAL IPC(M)'!$BI325)","v":2.4195428489850457},{"$f":"IF('[1]REAL IMAE(M)'!BJ325=\"\",\"\",'[1]REAL IMAE(M)'!BJ325)","v":5.1150210695003251},{"$f":"IF('[1]REAL IMAE(M)'!BK325=\"\",\"\",'[1]REAL IMAE(M)'!BK325)","v":4.7115406274574667},{"$f":"IF('[1]REAL IMAE(M)'!BN325=\"\",\"\",'[1]REAL IMAE(M)'!BN325)","v":4.9273570887598428},{"$f":"IF('[1]REAL IMAE(M)'!BO325=\"\",\"\",'[1]REAL IMAE(M)'!BO325)","v":4.7123998410650403},{"$f":"IF('[1]EXT RIN(M)'!$K325=\"\",\"\",'[1]EXT RIN(M)'!$K325)","v":29728.867960672265},"",{"$f":"IF('[1]EXT RIN(M)'!$L325=\"\",\"\",'[1]EXT RIN(M)'!$L325)","v":34220.537129222263},"",{"$f":"IF('[1]MONE(M)CARD'!EG325=\"\",\"\",'[1]MONE(M)CARD'!EG325)","v":32826.135842889809},{"$f":"IF('[1]MONE(M)CARD'!EK325=\"\",\"\",'[1]MONE(M)CARD'!EK325)","v":50731.89363619643},{"$f":"IF('[1]MONE(M)CARD'!EP325=\"\",\"\",'[1]MONE(M)CARD'!EP325)","v":28794.278159445254},{"$f":"IF('[1]MONE(M)CARD'!ES325=\"\",\"\",'[1]MONE(M)CARD'!ES325)","v":11.542609615576115},{"$f":"IF('[1]MONE(M)CARD'!EV325=\"\",\"\",'[1]MONE(M)CARD'!EV325)","v":7.4643167308110048},{"$f":"IF('[1]MONE(M)CARD'!EZ325=\"\",\"\",'[1]MONE(M)CARD'!EZ325)","v":6.592804174661504},{"$f":"IF('[1]MONE(M)CAPARD'!FC325=\"\",\"\",'[1]MONE(M)CAPARD'!FC325)","v":40713.306259819816},{"$f":"IF('[1]MONE(M)CAPARD'!FG325=\"\",\"\",'[1]MONE(M)CAPARD'!FG325)","v":79841.034965576429},{"$f":"IF('[1]MONE(M)CAPARD'!FL325=\"\",\"\",'[1]MONE(M)CAPARD'!FL325)","v":28794.278159445224},{"$f":"IF('[1]MONE(M)CAPARD'!FO325=\"\",\"\",'[1]MONE(M)CAPARD'!FO325)","v":9.2033192320308146},{"$f":"IF('[1]MONE(M)CAPARD'!FR325=\"\",\"\",'[1]MONE(M)CAPARD'!FR325)","v":7.1936078217581301},{"$f":"IF('[1]MONE(M)CAPARD'!FV325=\"\",\"\",'[1]MONE(M)CAPARD'!FV325)","v":6.5914130160401596},{"$f":"IF('[1]MONE(M)CARD'!FV325=\"\",\"\",'[1]MONE(M)CARD'!FV325)","v":1300.7190081550953},{"$f":"IF('[1]MONE(M)CARD'!GD325=\"\",\"\",'[1]MONE(M)CARD'!GD325)","v":169.65320250327284},{"$f":"IF('[1]MONE(M)CARD'!GE325=\"\",\"\",'[1]MONE(M)CARD'!GE325)","v":9200.2293449949029},13.968913241146907,{"$f":"IF('[9]II.2.Balance OSD-Activos'!J183=\"\",\"\",'[9]II.2.Balance OSD-Activos'!J183)","v":217.46918764535883},{"$f":"IF('[9]II.2.Balance OSD-Activos'!N183=\"\",\"\",'[9]II.2.Balance OSD-Activos'!N183)","v":937.91145976976065},{"$f":"IF('[9]II.2.Balance OSD-Activos'!R183=\"\",\"\",'[9]II.2.Balance OSD-Activos'!R183)","v":46915.952848880377},{"$f":"IF('[9]II.2.Balance OSD-Activos'!S183=\"\",\"\",'[9]II.2.Balance OSD-Activos'!S183)","v":50383.983213942774},47133.422036525735,98455.316710238272,10.249317204259544,10.271631572726347,{"$f":"IF(OR(AG318=\"\",AG306=\"\"),\"\",((AG318/AG306)-1)*100)","v":6.4676848574438894},10.271735027394136,10.485920473272191,10.343594899093155,0.12018108383020554,{"$f":"IF('[1]MONE(M)CAPARD'!GS325=\"\",\"\",'[1]MONE(M)CAPARD'!GS325)","v":19600.427078379427},{"$f":"IF('[1]MONE(M)CARD'!HA325=\"\",\"\",'[1]MONE(M)CAPARD'!HA325)","v":10557.740259364902},{"$f":"IF('[1]MONE(M)CAPARD'!HB325=\"\",\"\",'[1]MONE(M)CAPARD'!HB325)","v":9042.6868190145251},"n.d.",{"$f":"IF('[10]II.2.Balance OSD-Activos'!J183=\"\",\"\",'[10]II.2.Balance OSD-Activos'!J183)","v":1968.0465715153589},{"$f":"IF('[10]II.2.Balance OSD-Activos'!N183=\"\",\"\",'[10]II.2.Balance OSD-Activos'!N183)","v":1387.4154186297606},{"$f":"IF('[10]II.2.Balance OSD-Activos'!R183=\"\",\"\",'[10]II.2.Balance OSD-Activos'!R183)","v":68369.137003000375},{"$f":"IF('[10]II.2.Balance OSD-Activos'!S183=\"\",\"\",'[10]II.2.Balance OSD-Activos'!S183)","v":69999.810117522778},70337.18357451573,141724.40911066829,16.725899247792753,9.1112247398673176,2.2279031713434261,8.9067149760244213,11.64639705844035,10.275318128763523,-5.197097520743732E-2,{"$f":"IF('[1]MONE(M)CAPARD'!AS325=\"\",\"\",'[1]MONE(M)CAPARD'!AS325)","v":1.75},{"$f":"IF('[1]MONE(M)CAPARD'!AT325=\"\",\"\",'[1]MONE(M)CAPARD'!AT325)","v":"n.a."},{"$f":"IF('[1]MONE(M)CAPARD'!AU325=\"\",\"\",'[1]MONE(M)CAPARD'!AU325)","v":3},{"$f":"IF('[1]MONE(M)CAPARD'!AV325=\"\",\"\",'[1]MONE(M)CAPARD'!AV325)","v":5.75},{"$f":"IF('[1]MONE(M)CAPARD'!AW325=\"\",\"\",'[1]MONE(M)CAPARD'!AW325)","v":"n.a."},{"$f":"IF('[1]MONE(M)CAPARD'!AX325=\"\",\"\",'[1]MONE(M)CAPARD'!AX325)","v":5},{"$f":"IF('[1]MONE(M)CAPARD'!AY325=\"\",\"\",'[1]MONE(M)CAPARD'!AY325)","v":"n.a."},{"$f":"IF('[1]FISCAL(M)'!$K325=\"\",\"\",'[1]FISCAL(M)'!$K325)","v":-1326.3781572539444},{"$f":"IF('[1]FISCAL(M)'!$L325=\"\",\"\",'[1]FISCAL(M)'!$L325)","v":"n.d."},{"$f":"IF('[1]FISCAL(M)'!$AY325=\"\",\"\",'[1]FISCAL(M)'!$AY325)","v":114661.53258216356},{"$f":"IF('[1]FISCAL(M)'!$BI325=\"\",\"\",'[1]FISCAL(M)'!$BI325)","v":59238.553067533539},{"$f":"IF('[1]FISCAL(M)'!$BS325=\"\",\"\",'[1]FISCAL(M)'!$BS325)","v":55422.979514630017},{"$f":"IF('[1]FISCAL(M)'!$AZ325=\"\",\"\",'[1]FISCAL(M)'!$AZ325)","v":136051.67258216356},{"$f":"IF('[1]FISCAL(M)'!$BJ325=\"\",\"\",'[1]FISCAL(M)'!$BJ325)","v":63932.61306753353},71600.277879409434,{"$f":"IF('[2]MONE(M)'!$AO325=\"\",\"\",'[2]MONE(M)'!$AO325)","v":18370343.723903593},{"$f":"IF('[3]MONE(M)'!$AO325=\"\",\"\",'[3]MONE(M)'!$AO325)","v":11199.07385051},{"$f":"IF('[4]MONE(M)'!$AO325=\"\",\"\",'[4]MONE(M)'!$AO325)","v":180427.38552923407},{"$f":"IF('[5]MONE(M)'!$AO325=\"\",\"\",'[5]MONE(M)'!$AO325)","v":261861.8368124438},{"$f":"IF('[6]MONE(M)'!$AO325=\"\",\"\",'[6]MONE(M)'!$AO325)","v":123412.1862852535},{"$f":"IF('[7]MONE(M)'!$AO325=\"\",\"\",'[7]MONE(M)'!$AO325)","v":836415.10969076992},{"$f":"IF('[8]MONE(M)'!$AO325=\"\",\"\",'[8]MONE(M)'!$AO325)","v":44185.614930219992},12.243287827190507,4.9990551845708886,9.6205024588773114,9.1332581893116114,22.622316882683123,19.223334708062122,10.292258349446183,{"$f":"IF('[1]FISCAL(M)'!$K325=\"\",\"\",'[1]FISCAL(M)'!$K325)","v":-1326.3781572539444},{"$f":"+'[1]REAL(A)'!$AO$36","v":258132.32497092453},-0.513836520630783,{"$f":"IF('[1]FISCAL(M)'!$L325=\"\",\"\",'[1]FISCAL(M)'!$L325)","v":"n.d."},{"$f":"+'[1]REAL(A)'!$AP$36","v":316040.02097092452},"n.d.",134983.52462435124,{"$f":"'[1]Gráfico REM'!BG319","v":24293.155487479617},{"$f":"'[1]Gráfico REM'!BH319","v":103305.36062722384},{"$f":"'[1]Gráfico REM'!BI319","v":7385.0085096477951},9.651356485171636,7.3468268974154372,10.718648971998279,3.0339805707897627,205364.52751979127,{"$f":"'[1]Gráfico REM'!BK319","v":26540.494739909616},{"$f":"'[1]Gráfico REM'!BL319","v":147490.97555744383},{"$f":"'[1]Gráfico REM'!BM319","v":31333.057222437797},9.7085716463344962,8.5288836281455005,10.590564599218988,6.6857250029169091]
[2016,"mayo ","2016-mayo ",{"$f":"IF('[1]REAL IPC(M)'!$AL326=\"\",\"\",+'[1]REAL IPC(M)'!$AL326)","v":2.206705781837548},{"$f":"IF('[1]REAL IPC(M)'!$BE326=\"\",\"\",+'[1]REAL IPC(M)'!$BE326)","v":2.6014669145755454},{"$f":"IF('[1]REAL IPC(M)'!$AM326=\"\",\"\",+'[1]REAL IPC(M)'!$AM326)","v":2.0601215629915792},{"$f":"IF('[1]REAL IPC(M)'!$BI326=\"\",\"\",+'[1]REAL IPC(M)'!$BI326)","v":2.4191625757274737},{"$f":"IF('[1]REAL IMAE(M)'!BJ326=\"\",\"\",'[1]REAL IMAE(M)'!BJ326)","v":4.992070870440779},{"$f":"IF('[1]REAL IMAE(M)'!BK326=\"\",\"\",'[1]REAL IMAE(M)'!BK326)","v":4.6915521475139554},{"$f":"IF('[1]REAL IMAE(M)'!BN326=\"\",\"\",'[1]REAL IMAE(M)'!BN326)","v":4.9561735417455788},{"$f":"IF('[1]REAL IMAE(M)'!BO326=\"\",\"\",'[1]REAL IMAE(M)'!BO326)","v":4.6944736411601795},{"$f":"IF('[1]EXT RIN(M)'!$K326=\"\",\"\",'[1]EXT RIN(M)'!$K326)","v":30495.104584422068},"",{"$f":"IF('[1]EXT RIN(M)'!$L326=\"\",\"\",'[1]EXT RIN(M)'!$L326)","v":35516.697338822065},"",{"$f":"IF('[1]MONE(M)CARD'!EG326=\"\",\"\",'[1]MONE(M)CARD'!EG326)","v":32768.659740954085},{"$f":"IF('[1]MONE(M)CARD'!EK326=\"\",\"\",'[1]MONE(M)CARD'!EK326)","v":51384.863804001856},{"$f":"IF('[1]MONE(M)CARD'!EP326=\"\",\"\",'[1]MONE(M)CARD'!EP326)","v":28955.660163740497},{"$f":"IF('[1]MONE(M)CARD'!ES326=\"\",\"\",'[1]MONE(M)CARD'!ES326)","v":10.078426530119788},{"$f":"IF('[1]MONE(M)CARD'!EV326=\"\",\"\",'[1]MONE(M)CARD'!EV326)","v":6.9191660761379392},{"$f":"IF('[1]MONE(M)CARD'!EZ326=\"\",\"\",'[1]MONE(M)CARD'!EZ326)","v":5.8625100160862198},{"$f":"IF('[1]MONE(M)CAPARD'!FC326=\"\",\"\",'[1]MONE(M)CAPARD'!FC326)","v":40714.959323654082},{"$f":"IF('[1]MONE(M)CAPARD'!FG326=\"\",\"\",'[1]MONE(M)CAPARD'!FG326)","v":80413.335715011854},{"$f":"IF('[1]MONE(M)CAPARD'!FL326=\"\",\"\",'[1]MONE(M)CAPARD'!FL326)","v":28955.660163740511},{"$f":"IF('[1]MONE(M)CAPARD'!FO326=\"\",\"\",'[1]MONE(M)CAPARD'!FO326)","v":7.7697026985355855},{"$f":"IF('[1]MONE(M)CAPARD'!FR326=\"\",\"\",'[1]MONE(M)CAPARD'!FR326)","v":6.6244644451479928},{"$f":"IF('[1]MONE(M)CAPARD'!FV326=\"\",\"\",'[1]MONE(M)CAPARD'!FV326)","v":5.8864496965199242},{"$f":"IF('[1]MONE(M)CARD'!FV326=\"\",\"\",'[1]MONE(M)CARD'!FV326)","v":1294.3827695442219},{"$f":"IF('[1]MONE(M)CARD'!GD326=\"\",\"\",'[1]MONE(M)CARD'!GD326)","v":69.152326873136886},{"$f":"IF('[1]MONE(M)CARD'!GE326=\"\",\"\",'[1]MONE(M)CARD'!GE326)","v":8839.486690185091},5.2005887378653082,{"$f":"IF('[9]II.2.Balance OSD-Activos'!J184=\"\",\"\",'[9]II.2.Balance OSD-Activos'!J184)","v":221.90701752763732},{"$f":"IF('[9]II.2.Balance OSD-Activos'!N184=\"\",\"\",'[9]II.2.Balance OSD-Activos'!N184)","v":971.63399051587464},{"$f":"IF('[9]II.2.Balance OSD-Activos'!R184=\"\",\"\",'[9]II.2.Balance OSD-Activos'!R184)","v":47188.219393302912},{"$f":"IF('[9]II.2.Balance OSD-Activos'!S184=\"\",\"\",'[9]II.2.Balance OSD-Activos'!S184)","v":50955.141644369702},47410.126410830548,{"$f":"IF(OR(AF319=\"\",AG319=\"\",AH319=\"\",AI319=\"\"),\"\",SUM(AF319:AI319))","v":99336.902045716124},{"$f":"IF(OR(AF319=\"\",AF307=\"\"),\"\",((AF319/AF307)-1)*100)","v":16.542169363932402},9.5939920439242385,12.544040868061867,9.5632742343173547,10.503164223139837,10.086822356603653,-0.25677254248950199,{"$f":"IF('[1]MONE(M)CAPARD'!GS326=\"\",\"\",'[1]MONE(M)CAPARD'!GS326)","v":19757.36619862814},{"$f":"IF('[1]MONE(M)CARD'!HA326=\"\",\"\",'[1]MONE(M)CAPARD'!HA326)","v":10252.266739025088},{"$f":"IF('[1]MONE(M)CAPARD'!HB326=\"\",\"\",'[1]MONE(M)CAPARD'!HB326)","v":9505.0994596030523},"n.d.",{"$f":"IF('[10]II.2.Balance OSD-Activos'!J184=\"\",\"\",'[10]II.2.Balance OSD-Activos'!J184)","v":2023.7049112576374},{"$f":"IF('[10]II.2.Balance OSD-Activos'!N184=\"\",\"\",'[10]II.2.Balance OSD-Activos'!N184)","v":1441.8585497358745},{"$f":"IF('[10]II.2.Balance OSD-Activos'!R184=\"\",\"\",'[10]II.2.Balance OSD-Activos'!R184)","v":68790.405253782912},{"$f":"IF('[10]II.2.Balance OSD-Activos'!S184=\"\",\"\",'[10]II.2.Balance OSD-Activos'!S184)","v":70781.961119719708},70814.110165040547,143037.92983449611,20.112643974303857,8.8420875761515472,1.5111172029387498,8.5424642474922319,11.610714494732033,10.113597734694757,-0.16172039406876593,{"$f":"IF('[1]MONE(M)CAPARD'!AS326=\"\",\"\",'[1]MONE(M)CAPARD'!AS326)","v":1.75},{"$f":"IF('[1]MONE(M)CAPARD'!AT326=\"\",\"\",'[1]MONE(M)CAPARD'!AT326)","v":"n.a."},{"$f":"IF('[1]MONE(M)CAPARD'!AU326=\"\",\"\",'[1]MONE(M)CAPARD'!AU326)","v":3},{"$f":"IF('[1]MONE(M)CAPARD'!AV326=\"\",\"\",'[1]MONE(M)CAPARD'!AV326)","v":5.75},{"$f":"IF('[1]MONE(M)CAPARD'!AW326=\"\",\"\",'[1]MONE(M)CAPARD'!AW326)","v":"n.a."},{"$f":"IF('[1]MONE(M)CAPARD'!AX326=\"\",\"\",'[1]MONE(M)CAPARD'!AX326)","v":5},{"$f":"IF('[1]MONE(M)CAPARD'!AY326=\"\",\"\",'[1]MONE(M)CAPARD'!AY326)","v":"n.a."},{"$f":"IF('[1]FISCAL(M)'!$K326=\"\",\"\",'[1]FISCAL(M)'!$K326)","v":-1699.864847809446},{"$f":"IF('[1]FISCAL(M)'!$L326=\"\",\"\",'[1]FISCAL(M)'!$L326)","v":"n.d."},{"$f":"IF('[1]FISCAL(M)'!$AY326=\"\",\"\",'[1]FISCAL(M)'!$AY326)","v":115503.65617256389},{"$f":"IF('[1]FISCAL(M)'!$BI326=\"\",\"\",'[1]FISCAL(M)'!$BI326)","v":59491.479555459715},{"$f":"IF('[1]FISCAL(M)'!$BS326=\"\",\"\",'[1]FISCAL(M)'!$BS326)","v":56012.176617104167},{"$f":"IF('[1]FISCAL(M)'!$AZ326=\"\",\"\",'[1]FISCAL(M)'!$AZ326)","v":136918.7161725639},{"$f":"IF('[1]FISCAL(M)'!$BJ326=\"\",\"\",'[1]FISCAL(M)'!$BJ326)","v":64236.899555459706},71600.277879409434,{"$f":"IF('[2]MONE(M)'!$AO326=\"\",\"\",'[2]MONE(M)'!$AO326)","v":18646274.859015927},{"$f":"IF('[3]MONE(M)'!$AO326=\"\",\"\",'[3]MONE(M)'!$AO326)","v":11227.842063670001},{"$f":"IF('[4]MONE(M)'!$AO326=\"\",\"\",'[4]MONE(M)'!$AO326)","v":181069.46086367755},{"$f":"IF('[5]MONE(M)'!$AO326=\"\",\"\",'[5]MONE(M)'!$AO326)","v":263141.53881638963},{"$f":"IF('[6]MONE(M)'!$AO326=\"\",\"\",'[6]MONE(M)'!$AO326)","v":126064.76540791124},{"$f":"IF('[7]MONE(M)'!$AO326=\"\",\"\",'[7]MONE(M)'!$AO326)","v":835977.87984633003},{"$f":"IF('[8]MONE(M)'!$AO326=\"\",\"\",'[8]MONE(M)'!$AO326)","v":44592.114583810006},12.230434864104867,5.3653602288718183,8.7988874531036423,9.6720181409224679,23.334681245786214,16.232109884652601,10.423968063468436,{"$f":"IF('[1]FISCAL(M)'!$K326=\"\",\"\",'[1]FISCAL(M)'!$K326)","v":-1699.864847809446},{"$f":"+'[1]REAL(A)'!$AO$36","v":258132.32497092453},{"$f":"IF(OR(CM319=\"n.d.\",CM319=\"\",CN319=\"\",CN319=\"n.d.\"),\"\",(CM319/CN319)*100)","v":-0.65852459508932681},{"$f":"IF('[1]FISCAL(M)'!$L326=\"\",\"\",'[1]FISCAL(M)'!$L326)","v":"n.d."},{"$f":"+'[1]REAL(A)'!$AP$36","v":316040.02097092452},"n.d.",136348.25076921145,{"$f":"'[1]Gráfico REM'!BG320","v":24560.868698162907},{"$f":"'[1]Gráfico REM'!BH320","v":104280.9668123233},{"$f":"'[1]Gráfico REM'!BI320","v":7506.4152587252356},{"$f":"IFERROR(+((CS319/CS307)-1)*100,\"\")","v":9.7350750269965758},8.9571536639220017,10.344404467003777,4.1769273619570946,206980.39270111141,{"$f":"'[1]Gráfico REM'!BK320","v":26868.915706662905},{"$f":"'[1]Gráfico REM'!BL320","v":148873.08139613329},{"$f":"'[1]Gráfico REM'!BM320","v":31238.395598315226},9.5079645162687179,10.045087254991092,10.368224206163234,5.1601910663961359]
[2016,"junio ","2016-junio ",{"$f":"IF('[1]REAL IPC(M)'!$AL327=\"\",\"\",+'[1]REAL IPC(M)'!$AL327)","v":2.2026339137026563},{"$f":"IF('[1]REAL IPC(M)'!$BE327=\"\",\"\",+'[1]REAL IPC(M)'!$BE327)","v":2.6099989785685729},{"$f":"IF('[1]REAL IPC(M)'!$AM327=\"\",\"\",+'[1]REAL IPC(M)'!$AM327)","v":2.0467667428734737},{"$f":"IF('[1]REAL IPC(M)'!$BI327=\"\",\"\",+'[1]REAL IPC(M)'!$BI327)","v":2.4227706335438581},{"$f":"IF('[1]REAL IMAE(M)'!BJ327=\"\",\"\",'[1]REAL IMAE(M)'!BJ327)","v":4.7733254777885037},{"$f":"IF('[1]REAL IMAE(M)'!BK327=\"\",\"\",'[1]REAL IMAE(M)'!BK327)","v":4.6696054274415921},{"$f":"IF('[1]REAL IMAE(M)'!BN327=\"\",\"\",'[1]REAL IMAE(M)'!BN327)","v":4.7814857396847765},{"$f":"IF('[1]REAL IMAE(M)'!BO327=\"\",\"\",'[1]REAL IMAE(M)'!BO327)","v":4.6753007357322574},{"$f":"IF('[1]EXT RIN(M)'!$K327=\"\",\"\",'[1]EXT RIN(M)'!$K327)","v":31092.773042492219},"",{"$f":"IF('[1]EXT RIN(M)'!$L327=\"\",\"\",'[1]EXT RIN(M)'!$L327)","v":35863.322932512223},"",{"$f":"IF('[1]MONE(M)CARD'!EG327=\"\",\"\",'[1]MONE(M)CARD'!EG327)","v":32635.061597554282},{"$f":"IF('[1]MONE(M)CARD'!EK327=\"\",\"\",'[1]MONE(M)CARD'!EK327)","v":51799.297201017405},{"$f":"IF('[1]MONE(M)CARD'!EP327=\"\",\"\",'[1]MONE(M)CARD'!EP327)","v":28604.292218799514},{"$f":"IF('[1]MONE(M)CARD'!ES327=\"\",\"\",'[1]MONE(M)CARD'!ES327)","v":9.2564570591061823},{"$f":"IF('[1]MONE(M)CARD'!EV327=\"\",\"\",'[1]MONE(M)CARD'!EV327)","v":6.1083107368693934},{"$f":"IF('[1]MONE(M)CARD'!EZ327=\"\",\"\",'[1]MONE(M)CARD'!EZ327)","v":4.8966363059495199},{"$f":"IF('[1]MONE(M)CAPARD'!FC327=\"\",\"\",'[1]MONE(M)CAPARD'!FC327)","v":40547.384655234287},{"$f":"IF('[1]MONE(M)CAPARD'!FG327=\"\",\"\",'[1]MONE(M)CAPARD'!FG327)","v":80979.068364087405},{"$f":"IF('[1]MONE(M)CAPARD'!FL327=\"\",\"\",'[1]MONE(M)CAPARD'!FL327)","v":28604.292218799528},{"$f":"IF('[1]MONE(M)CAPARD'!FO327=\"\",\"\",'[1]MONE(M)CAPARD'!FO327)","v":7.3552165698341332},{"$f":"IF('[1]MONE(M)CAPARD'!FR327=\"\",\"\",'[1]MONE(M)CAPARD'!FR327)","v":6.2794666625226814},{"$f":"IF('[1]MONE(M)CAPARD'!FV327=\"\",\"\",'[1]MONE(M)CAPARD'!FV327)","v":5.3295413059259777},{"$f":"IF('[1]MONE(M)CARD'!FV327=\"\",\"\",'[1]MONE(M)CARD'!FV327)","v":1346.9423528957886},{"$f":"IF('[1]MONE(M)CARD'!GD327=\"\",\"\",'[1]MONE(M)CARD'!GD327)","v":175.39574493791272},{"$f":"IF('[1]MONE(M)CARD'!GE327=\"\",\"\",'[1]MONE(M)CARD'!GE327)","v":9086.1995734325228},3.13879735236684,{"$f":"IF('[9]II.2.Balance OSD-Activos'!J185=\"\",\"\",'[9]II.2.Balance OSD-Activos'!J185)","v":212.25248732692262},{"$f":"IF('[9]II.2.Balance OSD-Activos'!N185=\"\",\"\",'[9]II.2.Balance OSD-Activos'!N185)","v":961.59856339631506},{"$f":"IF('[9]II.2.Balance OSD-Activos'!R185=\"\",\"\",'[9]II.2.Balance OSD-Activos'!R185)","v":47354.031482037753},{"$f":"IF('[9]II.2.Balance OSD-Activos'!S185=\"\",\"\",'[9]II.2.Balance OSD-Activos'!S185)","v":51133.693944520557},47566.283969364675,{"$f":"IF(OR(AF320=\"\",AG320=\"\",AH320=\"\",AI320=\"\"),\"\",SUM(AF320:AI320))","v":99661.576477281546},{"$f":"IF(OR(AF320=\"\",AF308=\"\"),\"\",((AF320/AF308)-1)*100)","v":10.557520612248105},9.8138101321489692,3.5838054927570528,9.8104991616865043,9.4906932284673395,9.5842925271188086,-0.50252982948484437,{"$f":"IF('[1]MONE(M)CAPARD'!GS327=\"\",\"\",'[1]MONE(M)CAPARD'!GS327)","v":19966.494709618757},{"$f":"IF('[1]MONE(M)CARD'!HA327=\"\",\"\",'[1]MONE(M)CAPARD'!HA327)","v":10716.982417812524},{"$f":"IF('[1]MONE(M)CAPARD'!HB327=\"\",\"\",'[1]MONE(M)CAPARD'!HB327)","v":9249.5122918062334},"n.d.",{"$f":"IF('[10]II.2.Balance OSD-Activos'!J185=\"\",\"\",'[10]II.2.Balance OSD-Activos'!J185)","v":1978.6060011869229},{"$f":"IF('[10]II.2.Balance OSD-Activos'!N185=\"\",\"\",'[10]II.2.Balance OSD-Activos'!N185)","v":1424.992439966315},{"$f":"IF('[10]II.2.Balance OSD-Activos'!R185=\"\",\"\",'[10]II.2.Balance OSD-Activos'!R185)","v":69064.798608867743},{"$f":"IF('[10]II.2.Balance OSD-Activos'!S185=\"\",\"\",'[10]II.2.Balance OSD-Activos'!S185)","v":71181.724742060556},71043.404610054669,143650.12179208154,18.248030351364754,8.9999603809466588,1.7557791772450315,8.7562836149023049,10.835592549396056,9.8236921169665425,-0.28990561772821444,{"$f":"IF('[1]MONE(M)CAPARD'!AS327=\"\",\"\",'[1]MONE(M)CAPARD'!AS327)","v":1.75},{"$f":"IF('[1]MONE(M)CAPARD'!AT327=\"\",\"\",'[1]MONE(M)CAPARD'!AT327)","v":"n.a."},{"$f":"IF('[1]MONE(M)CAPARD'!AU327=\"\",\"\",'[1]MONE(M)CAPARD'!AU327)","v":3},{"$f":"IF('[1]MONE(M)CAPARD'!AV327=\"\",\"\",'[1]MONE(M)CAPARD'!AV327)","v":5.5},{"$f":"IF('[1]MONE(M)CAPARD'!AW327=\"\",\"\",'[1]MONE(M)CAPARD'!AW327)","v":"n.a."},{"$f":"IF('[1]MONE(M)CAPARD'!AX327=\"\",\"\",'[1]MONE(M)CAPARD'!AX327)","v":5},{"$f":"IF('[1]MONE(M)CAPARD'!AY327=\"\",\"\",'[1]MONE(M)CAPARD'!AY327)","v":"n.a."},{"$f":"IF('[1]FISCAL(M)'!$K327=\"\",\"\",'[1]FISCAL(M)'!$K327)","v":-2326.4792138995545},{"$f":"IF('[1]FISCAL(M)'!$L327=\"\",\"\",'[1]FISCAL(M)'!$L327)","v":-3446.4792138995545},{"$f":"IF('[1]FISCAL(M)'!$AY327=\"\",\"\",'[1]FISCAL(M)'!$AY327)","v":116141.3797818171},{"$f":"IF('[1]FISCAL(M)'!$BI327=\"\",\"\",'[1]FISCAL(M)'!$BI327)","v":60067.130439875778},{"$f":"IF('[1]FISCAL(M)'!$BS327=\"\",\"\",'[1]FISCAL(M)'!$BS327)","v":56074.249341941308},{"$f":"IF('[1]FISCAL(M)'!$AZ327=\"\",\"\",'[1]FISCAL(M)'!$AZ327)","v":137808.3597818171},{"$f":"IF('[1]FISCAL(M)'!$BJ327=\"\",\"\",'[1]FISCAL(M)'!$BJ327)","v":65044.810439875786},{"$f":"IF('[1]FISCAL(M)'!$BT327=\"\",\"\",'[1]FISCAL(M)'!$BT327)","v":72763.549341941311},{"$f":"IF('[2]MONE(M)'!$AO327=\"\",\"\",'[2]MONE(M)'!$AO327)","v":18929565.930818129},{"$f":"IF('[3]MONE(M)'!$AO327=\"\",\"\",'[3]MONE(M)'!$AO327)","v":11227.49849693},{"$f":"IF('[4]MONE(M)'!$AO327=\"\",\"\",'[4]MONE(M)'!$AO327)","v":181782.91227250372},{"$f":"IF('[5]MONE(M)'!$AO327=\"\",\"\",'[5]MONE(M)'!$AO327)","v":264273.25575616962},{"$f":"IF('[6]MONE(M)'!$AO327=\"\",\"\",'[6]MONE(M)'!$AO327)","v":127961.47516669752},{"$f":"IF('[7]MONE(M)'!$AO327=\"\",\"\",'[7]MONE(M)'!$AO327)","v":845636.78794713016},{"$f":"IF('[8]MONE(M)'!$AO327=\"\",\"\",'[8]MONE(M)'!$AO327)","v":44862.944448989991},12.131325169193774,5.3417264456903979,8.7904226725698855,9.4736608567739466,23.515469848430648,16.956286155232149,10.516036606610403,{"$f":"IF('[1]FISCAL(M)'!$K327=\"\",\"\",'[1]FISCAL(M)'!$K327)","v":-2326.4792138995545},{"$f":"+'[1]REAL(A)'!$AO$36","v":258132.32497092453},{"$f":"IF(OR(CM320=\"n.d.\",CM320=\"\",CN320=\"\",CN320=\"n.d.\"),\"\",(CM320/CN320)*100)","v":-0.90127387732691133},{"$f":"IF('[1]FISCAL(M)'!$L327=\"\",\"\",'[1]FISCAL(M)'!$L327)","v":-3446.4792138995545},{"$f":"+'[1]REAL(A)'!$AP$36","v":316040.02097092452},-1.0905198662218252,136635.98559627854,{"$f":"'[1]Gráfico REM'!BG321","v":24700.511474076317},{"$f":"'[1]Gráfico REM'!BH321","v":104477.8066907898},{"$f":"'[1]Gráfico REM'!BI321","v":7457.6674314124175},8.8213010556563063,8.8037151502739164,9.459875714585241,0.64919400278253825,207214.15511662854,{"$f":"'[1]Gráfico REM'!BK321","v":26985.491906386316},{"$f":"'[1]Gráfico REM'!BL321","v":149340.75113977981},{"$f":"'[1]Gráfico REM'!BM321","v":30887.912070462415},7.9998612651148715,9.1656378508906187,9.7750260487200045,-0.69115600933322696]
[2016,"julio","2016-julio",{"$f":"IF('[1]REAL IPC(M)'!$AL328=\"\",\"\",+'[1]REAL IPC(M)'!$AL328)","v":2.5573221420516212},{"$f":"IF('[1]REAL IPC(M)'!$BE328=\"\",\"\",+'[1]REAL IPC(M)'!$BE328)","v":2.6220571404519166},{"$f":"IF('[1]REAL IPC(M)'!$AM328=\"\",\"\",+'[1]REAL IPC(M)'!$AM328)","v":2.3835568584421152},{"$f":"IF('[1]REAL IPC(M)'!$BI328=\"\",\"\",+'[1]REAL IPC(M)'!$BI328)","v":2.4300893331118401},{"$f":"IF('[1]REAL IMAE(M)'!BJ328=\"\",\"\",'[1]REAL IMAE(M)'!BJ328)","v":4.4521838341115894},{"$f":"IF('[1]REAL IMAE(M)'!BK328=\"\",\"\",'[1]REAL IMAE(M)'!BK328)","v":4.6458979218544805},{"$f":"IF('[1]REAL IMAE(M)'!BN328=\"\",\"\",'[1]REAL IMAE(M)'!BN328)","v":4.48606657938595},{"$f":"IF('[1]REAL IMAE(M)'!BO328=\"\",\"\",'[1]REAL IMAE(M)'!BO328)","v":4.6549173251495102},{"$f":"IF('[1]EXT RIN(M)'!$K328=\"\",\"\",'[1]EXT RIN(M)'!$K328)","v":31403.958378224743},"",{"$f":"IF('[1]EXT RIN(M)'!$L328=\"\",\"\",'[1]EXT RIN(M)'!$L328)","v":35620.305135394745},"",{"$f":"IF('[1]MONE(M)CARD'!EG328=\"\",\"\",'[1]MONE(M)CARD'!EG328)","v":32958.560836764264},{"$f":"IF('[1]MONE(M)CARD'!EK328=\"\",\"\",'[1]MONE(M)CARD'!EK328)","v":51798.520991392834},{"$f":"IF('[1]MONE(M)CARD'!EP328=\"\",\"\",'[1]MONE(M)CARD'!EP328)","v":29101.326664912893},{"$f":"IF('[1]MONE(M)CARD'!ES328=\"\",\"\",'[1]MONE(M)CARD'!ES328)","v":9.876375220951461},{"$f":"IF('[1]MONE(M)CARD'!EV328=\"\",\"\",'[1]MONE(M)CARD'!EV328)","v":6.0953258902023411},{"$f":"IF('[1]MONE(M)CARD'!EZ328=\"\",\"\",'[1]MONE(M)CARD'!EZ328)","v":5.3102833531116334},{"$f":"IF('[1]MONE(M)CAPARD'!FC328=\"\",\"\",'[1]MONE(M)CAPARD'!FC328)","v":40877.809851504273},{"$f":"IF('[1]MONE(M)CAPARD'!FG328=\"\",\"\",'[1]MONE(M)CAPARD'!FG328)","v":80760.843864492839},{"$f":"IF('[1]MONE(M)CAPARD'!FL328=\"\",\"\",'[1]MONE(M)CAPARD'!FL328)","v":29101.326664912893},{"$f":"IF('[1]MONE(M)CAPARD'!FO328=\"\",\"\",'[1]MONE(M)CAPARD'!FO328)","v":7.8211093853290725},{"$f":"IF('[1]MONE(M)CAPARD'!FR328=\"\",\"\",'[1]MONE(M)CAPARD'!FR328)","v":5.6239778117602945},{"$f":"IF('[1]MONE(M)CAPARD'!FV328=\"\",\"\",'[1]MONE(M)CAPARD'!FV328)","v":5.1248499991711105},{"$f":"IF('[1]MONE(M)CARD'!FV328=\"\",\"\",'[1]MONE(M)CARD'!FV328)","v":1361.0759152010269},{"$f":"IF('[1]MONE(M)CARD'!GD328=\"\",\"\",'[1]MONE(M)CARD'!GD328)","v":71.108992199150535},{"$f":"IF('[1]MONE(M)CARD'!GE328=\"\",\"\",'[1]MONE(M)CARD'!GE328)","v":9223.5149843718882},7.5200808191338009,{"$f":"IF('[9]II.2.Balance OSD-Activos'!J186=\"\",\"\",'[9]II.2.Balance OSD-Activos'!J186)","v":214.92853300564985},{"$f":"IF('[9]II.2.Balance OSD-Activos'!N186=\"\",\"\",'[9]II.2.Balance OSD-Activos'!N186)","v":934.97653562772848},{"$f":"IF('[9]II.2.Balance OSD-Activos'!R186=\"\",\"\",'[9]II.2.Balance OSD-Activos'!R186)","v":47574.582700726605},{"$f":"IF('[9]II.2.Balance OSD-Activos'!S186=\"\",\"\",'[9]II.2.Balance OSD-Activos'!S186)","v":51626.238145453419},47789.511233732257,{"$f":"IF(OR(AF321=\"\",AG321=\"\",AH321=\"\",AI321=\"\"),\"\",SUM(AF321:AI321))","v":100350.7259148134},16.772834820728001,9.5177572839862723,0.70445754833343699,9.4870259098135623,9.6141919614253659,9.4780390006277351,-0.10625352649107356,{"$f":"IF('[1]MONE(M)CAPARD'!GS328=\"\",\"\",'[1]MONE(M)CAPARD'!GS328)","v":19649.80889603266},{"$f":"IF('[1]MONE(M)CARD'!HA328=\"\",\"\",'[1]MONE(M)CAPARD'!HA328)","v":11163.586475141889},{"$f":"IF('[1]MONE(M)CAPARD'!HB328=\"\",\"\",'[1]MONE(M)CAPARD'!HB328)","v":8486.2224208907719},"n.d.",{"$f":"IF('[10]II.2.Balance OSD-Activos'!J186=\"\",\"\",'[10]II.2.Balance OSD-Activos'!J186)","v":1994.6674476356498},{"$f":"IF('[10]II.2.Balance OSD-Activos'!N186=\"\",\"\",'[10]II.2.Balance OSD-Activos'!N186)","v":1397.3925814477286},{"$f":"IF('[10]II.2.Balance OSD-Activos'!R186=\"\",\"\",'[10]II.2.Balance OSD-Activos'!R186)","v":69259.142563016605},{"$f":"IF('[10]II.2.Balance OSD-Activos'!S186=\"\",\"\",'[10]II.2.Balance OSD-Activos'!S186)","v":71382.090964703428},71253.810010652262,144033.29355680343,14.357905774517988,8.1008773779186036,1.6445848408292996,7.930802280945759,10.099514732621184,9.0144492201780437,-0.80924289678849881,{"$f":"IF('[1]MONE(M)CAPARD'!AS328=\"\",\"\",'[1]MONE(M)CAPARD'!AS328)","v":1.75},{"$f":"IF('[1]MONE(M)CAPARD'!AT328=\"\",\"\",'[1]MONE(M)CAPARD'!AT328)","v":"n.a."},{"$f":"IF('[1]MONE(M)CAPARD'!AU328=\"\",\"\",'[1]MONE(M)CAPARD'!AU328)","v":3},{"$f":"IF('[1]MONE(M)CAPARD'!AV328=\"\",\"\",'[1]MONE(M)CAPARD'!AV328)","v":5.5},{"$f":"IF('[1]MONE(M)CAPARD'!AW328=\"\",\"\",'[1]MONE(M)CAPARD'!AW328)","v":"n.a."},{"$f":"IF('[1]MONE(M)CAPARD'!AX328=\"\",\"\",'[1]MONE(M)CAPARD'!AX328)","v":5},{"$f":"IF('[1]MONE(M)CAPARD'!AY328=\"\",\"\",'[1]MONE(M)CAPARD'!AY328)","v":"n.a."},{"$f":"IF('[1]FISCAL(M)'!$K328=\"\",\"\",'[1]FISCAL(M)'!$K328)","v":-2848.9375396955597},{"$f":"IF('[1]FISCAL(M)'!$L328=\"\",\"\",'[1]FISCAL(M)'!$L328)","v":"n.d."},{"$f":"IF('[1]FISCAL(M)'!$AY328=\"\",\"\",'[1]FISCAL(M)'!$AY328)","v":117446.66839261055},{"$f":"IF('[1]FISCAL(M)'!$BI328=\"\",\"\",'[1]FISCAL(M)'!$BI328)","v":60909.144880609223},{"$f":"IF('[1]FISCAL(M)'!$BS328=\"\",\"\",'[1]FISCAL(M)'!$BS328)","v":56537.523512001339},{"$f":"IF('[1]FISCAL(M)'!$AZ328=\"\",\"\",'[1]FISCAL(M)'!$AZ328)","v":139016.07839261057},{"$f":"IF('[1]FISCAL(M)'!$BJ328=\"\",\"\",'[1]FISCAL(M)'!$BJ328)","v":65829.014880609233},{"$f":"IF('[1]FISCAL(M)'!$BT328=\"\",\"\",'[1]FISCAL(M)'!$BT328)","v":73187.063512001347},{"$f":"IF('[2]MONE(M)'!$AO328=\"\",\"\",'[2]MONE(M)'!$AO328)","v":19052755.792006627},{"$f":"IF('[3]MONE(M)'!$AO328=\"\",\"\",'[3]MONE(M)'!$AO328)","v":11291.63198188},{"$f":"IF('[4]MONE(M)'!$AO328=\"\",\"\",'[4]MONE(M)'!$AO328)","v":181941.72017472755},{"$f":"IF('[5]MONE(M)'!$AO328=\"\",\"\",'[5]MONE(M)'!$AO328)","v":265711.79538980604},{"$f":"IF('[6]MONE(M)'!$AO328=\"\",\"\",'[6]MONE(M)'!$AO328)","v":128708.0549673115},{"$f":"IF('[7]MONE(M)'!$AO328=\"\",\"\",'[7]MONE(M)'!$AO328)","v":853573.90783634991},{"$f":"IF('[8]MONE(M)'!$AO328=\"\",\"\",'[8]MONE(M)'!$AO328)","v":44487.128291569999},11.583843245403136,5.5381489790039762,8.1364561924818002,9.6974517119586157,21.838007749425081,16.360435014070383,7.9867247620767801,{"$f":"IF('[1]FISCAL(M)'!$K328=\"\",\"\",'[1]FISCAL(M)'!$K328)","v":-2848.9375396955597},{"$f":"+'[1]REAL(A)'!$AO$36","v":258132.32497092453},-1.1036732962508504,{"$f":"IF('[1]FISCAL(M)'!$L328=\"\",\"\",'[1]FISCAL(M)'!$L328)","v":"n.d."},{"$f":"+'[1]REAL(A)'!$AP$36","v":316040.02097092452},"n.d.",136773.910423172,{"$f":"'[1]Gráfico REM'!BG322","v":24260.673685900456},{"$f":"'[1]Gráfico REM'!BH322","v":105112.10454253087},{"$f":"'[1]Gráfico REM'!BI322","v":7401.1321947406586},7.9254556268048448,4.9950363678594067,9.269806875352792,-0.36806055912591562,207102.62392692198,{"$f":"'[1]Gráfico REM'!BK322","v":26524.669169360455},{"$f":"'[1]Gráfico REM'!BL322","v":149599.23283410087},{"$f":"'[1]Gráfico REM'!BM322","v":30978.721923460656},7.0242184956285314,5.578148696619678,8.8850756421194443,-5.2313081068877665E-2]
[2016,"agosto","2016-agosto",{"$f":"IF('[1]REAL IPC(M)'!$AL329=\"\",\"\",+'[1]REAL IPC(M)'!$AL329)","v":2.4584758412500074},{"$f":"IF('[1]REAL IPC(M)'!$BE329=\"\",\"\",+'[1]REAL IPC(M)'!$BE329)","v":2.6373303989418506},{"$f":"IF('[1]REAL IPC(M)'!$AM329=\"\",\"\",+'[1]REAL IPC(M)'!$AM329)","v":2.309430435749138},{"$f":"IF('[1]REAL IPC(M)'!$BI329=\"\",\"\",+'[1]REAL IPC(M)'!$BI329)","v":2.4408213393726008},{"$f":"IF('[1]REAL IMAE(M)'!BJ329=\"\",\"\",'[1]REAL IMAE(M)'!BJ329)","v":4.3036791981656553},{"$f":"IF('[1]REAL IMAE(M)'!BK329=\"\",\"\",'[1]REAL IMAE(M)'!BK329)","v":4.6206299815106044},{"$f":"IF('[1]REAL IMAE(M)'!BN329=\"\",\"\",'[1]REAL IMAE(M)'!BN329)","v":4.3259793399563096},{"$f":"IF('[1]REAL IMAE(M)'!BO329=\"\",\"\",'[1]REAL IMAE(M)'!BO329)","v":4.6333662228911665},{"$f":"IF('[1]EXT RIN(M)'!$K329=\"\",\"\",'[1]EXT RIN(M)'!$K329)","v":31290.900717221724},"",{"$f":"IF('[1]EXT RIN(M)'!$L329=\"\",\"\",'[1]EXT RIN(M)'!$L329)","v":35621.300838331721},"",{"$f":"IF('[1]MONE(M)CARD'!EG329=\"\",\"\",'[1]MONE(M)CARD'!EG329)","v":32431.110245280448},{"$f":"IF('[1]MONE(M)CARD'!EK329=\"\",\"\",'[1]MONE(M)CARD'!EK329)","v":52335.050836302355},{"$f":"IF('[1]MONE(M)CARD'!EP329=\"\",\"\",'[1]MONE(M)CARD'!EP329)","v":29342.396856557913},{"$f":"IF('[1]MONE(M)CARD'!ES329=\"\",\"\",'[1]MONE(M)CARD'!ES329)","v":9.3375730221471276},{"$f":"IF('[1]MONE(M)CARD'!EV329=\"\",\"\",'[1]MONE(M)CARD'!EV329)","v":6.3334220903385363},{"$f":"IF('[1]MONE(M)CARD'!EZ329=\"\",\"\",'[1]MONE(M)CARD'!EZ329)","v":5.7982846960555223},{"$f":"IF('[1]MONE(M)CAPARD'!FC329=\"\",\"\",'[1]MONE(M)CAPARD'!FC329)","v":40007.825011287154},{"$f":"IF('[1]MONE(M)CAPARD'!FG329=\"\",\"\",'[1]MONE(M)CAPARD'!FG329)","v":81651.944963922375},{"$f":"IF('[1]MONE(M)CAPARD'!FL329=\"\",\"\",'[1]MONE(M)CAPARD'!FL329)","v":29342.396856557927},{"$f":"IF('[1]MONE(M)CAPARD'!FO329=\"\",\"\",'[1]MONE(M)CAPARD'!FO329)","v":6.2677507302258961},{"$f":"IF('[1]MONE(M)CAPARD'!FR329=\"\",\"\",'[1]MONE(M)CAPARD'!FR329)","v":5.8463652300962954},{"$f":"IF('[1]MONE(M)CAPARD'!FV329=\"\",\"\",'[1]MONE(M)CAPARD'!FV329)","v":5.5387515230950646},{"$f":"IF('[1]MONE(M)CARD'!FV329=\"\",\"\",'[1]MONE(M)CARD'!FV329)","v":1544.7435296613553},{"$f":"IF('[1]MONE(M)CARD'!GD329=\"\",\"\",'[1]MONE(M)CARD'!GD329)","v":78.891202338949228},{"$f":"IF('[1]MONE(M)CARD'!GE329=\"\",\"\",'[1]MONE(M)CARD'!GE329)","v":9270.4181852142756},8.0421825595152541,{"$f":"IF('[9]II.2.Balance OSD-Activos'!J187=\"\",\"\",'[9]II.2.Balance OSD-Activos'!J187)","v":214.69816173901015},{"$f":"IF('[9]II.2.Balance OSD-Activos'!N187=\"\",\"\",'[9]II.2.Balance OSD-Activos'!N187)","v":966.1825200758974},{"$f":"IF('[9]II.2.Balance OSD-Activos'!R187=\"\",\"\",'[9]II.2.Balance OSD-Activos'!R187)","v":47885.471210545424},{"$f":"IF('[9]II.2.Balance OSD-Activos'!S187=\"\",\"\",'[9]II.2.Balance OSD-Activos'!S187)","v":52098.198892161527},48100.169372284436,{"$f":"IF(OR(AF322=\"\",AG322=\"\",AH322=\"\",AI322=\"\"),\"\",SUM(AF322:AI322))","v":101164.55078452185},11.793884116149034,9.1694834473384557,1.2823704067075337,9.1579941835233001,9.5193149328743445,9.2679620379277026,-0.21007696270003251,{"$f":"IF('[1]MONE(M)CAPARD'!GS329=\"\",\"\",'[1]MONE(M)CAPARD'!GS329)","v":19877.585027291123},{"$f":"IF('[1]MONE(M)CARD'!HA329=\"\",\"\",'[1]MONE(M)CAPARD'!HA329)","v":11155.516224094275},{"$f":"IF('[1]MONE(M)CAPARD'!HB329=\"\",\"\",'[1]MONE(M)CAPARD'!HB329)","v":8722.0688031968475},"n.d.",{"$f":"IF('[10]II.2.Balance OSD-Activos'!J187=\"\",\"\",'[10]II.2.Balance OSD-Activos'!J187)","v":2038.8295129790122},{"$f":"IF('[10]II.2.Balance OSD-Activos'!N187=\"\",\"\",'[10]II.2.Balance OSD-Activos'!N187)","v":1423.6654863458975},{"$f":"IF('[10]II.2.Balance OSD-Activos'!R187=\"\",\"\",'[10]II.2.Balance OSD-Activos'!R187)","v":70019.532206275428},{"$f":"IF('[10]II.2.Balance OSD-Activos'!S187=\"\",\"\",'[10]II.2.Balance OSD-Activos'!S187)","v":72532.06265274153},72058.361719254433,146014.08985834185,12.161256130384078,8.3032886727416155,1.8023650403808267,8.1949248563431443,10.494270632558568,9.3119456110729359,0.29749639089489222,{"$f":"IF('[1]MONE(M)CAPARD'!AS329=\"\",\"\",'[1]MONE(M)CAPARD'!AS329)","v":1.75},{"$f":"IF('[1]MONE(M)CAPARD'!AT329=\"\",\"\",'[1]MONE(M)CAPARD'!AT329)","v":"n.a."},{"$f":"IF('[1]MONE(M)CAPARD'!AU329=\"\",\"\",'[1]MONE(M)CAPARD'!AU329)","v":3},{"$f":"IF('[1]MONE(M)CAPARD'!AV329=\"\",\"\",'[1]MONE(M)CAPARD'!AV329)","v":5.5},{"$f":"IF('[1]MONE(M)CAPARD'!AW329=\"\",\"\",'[1]MONE(M)CAPARD'!AW329)","v":"n.a."},{"$f":"IF('[1]MONE(M)CAPARD'!AX329=\"\",\"\",'[1]MONE(M)CAPARD'!AX329)","v":5},{"$f":"IF('[1]MONE(M)CAPARD'!AY329=\"\",\"\",'[1]MONE(M)CAPARD'!AY329)","v":"n.a."},{"$f":"IF('[1]FISCAL(M)'!$K329=\"\",\"\",'[1]FISCAL(M)'!$K329)","v":-3178.0237166701263},{"$f":"IF('[1]FISCAL(M)'!$L329=\"\",\"\",'[1]FISCAL(M)'!$L329)","v":"n.d."},{"$f":"IF('[1]FISCAL(M)'!$AY329=\"\",\"\",'[1]FISCAL(M)'!$AY329)","v":117647.95541864308},{"$f":"IF('[1]FISCAL(M)'!$BI329=\"\",\"\",'[1]FISCAL(M)'!$BI329)","v":61224.331619024073},{"$f":"IF('[1]FISCAL(M)'!$BS329=\"\",\"\",'[1]FISCAL(M)'!$BS329)","v":56423.623799618988},{"$f":"IF('[1]FISCAL(M)'!$AZ329=\"\",\"\",'[1]FISCAL(M)'!$AZ329)","v":139315.75541864306},{"$f":"IF('[1]FISCAL(M)'!$BJ329=\"\",\"\",'[1]FISCAL(M)'!$BJ329)","v":66267.501619024086},{"$f":"IF('[1]FISCAL(M)'!$BT329=\"\",\"\",'[1]FISCAL(M)'!$BT329)","v":73048.253799618979},{"$f":"IF('[2]MONE(M)'!$AO329=\"\",\"\",'[2]MONE(M)'!$AO329)","v":19221284.505862728},{"$f":"IF('[3]MONE(M)'!$AO329=\"\",\"\",'[3]MONE(M)'!$AO329)","v":11362.392987849998},{"$f":"IF('[4]MONE(M)'!$AO329=\"\",\"\",'[4]MONE(M)'!$AO329)","v":182956.81868094188},{"$f":"IF('[5]MONE(M)'!$AO329=\"\",\"\",'[5]MONE(M)'!$AO329)","v":267339.93225504673},{"$f":"IF('[6]MONE(M)'!$AO329=\"\",\"\",'[6]MONE(M)'!$AO329)","v":130499.99058629271},{"$f":"IF('[7]MONE(M)'!$AO329=\"\",\"\",'[7]MONE(M)'!$AO329)","v":864902.17160924},{"$f":"IF('[8]MONE(M)'!$AO329=\"\",\"\",'[8]MONE(M)'!$AO329)","v":45715.706811360011},11.699321846372568,5.5876810877295124,7.4626387632189539,8.8964008875957123,22.318886308054964,14.283533363334012,9.2935808171376699,{"$f":"'[1]FISCAL(M)'!$K329","v":-3178.0237166701263},{"$f":"+'[1]REAL(A)'!$AO$36","v":258132.32497092453},-1.231160691334606,{"$f":"IF('[1]FISCAL(M)'!$L329=\"\",\"\",'[1]FISCAL(M)'!$L329)","v":"n.d."},{"$f":"+'[1]REAL(A)'!$AP$36","v":316040.02097092452},"n.d.",137881.69124681098,{"$f":"'[1]Gráfico REM'!BG323","v":24492.050032372987},{"$f":"'[1]Gráfico REM'!BH323","v":105809.63079713089},{"$f":"'[1]Gráfico REM'!BI323","v":7580.0104173071222},8.2055999896417866,7.5968946260387415,8.708314587203958,3.4200220532649039,209059.12424633102,{"$f":"'[1]Gráfico REM'!BK323","v":26751.373880502986},{"$f":"'[1]Gráfico REM'!BL323","v":151525.3376084909},{"$f":"'[1]Gráfico REM'!BM323","v":30782.412757337122},7.0750385102027913,7.7194357099501731,8.8842300331695157,-1.4939230574824935]
[2016,"septiembre","2016-septiembre",{"$f":"IF('[1]REAL IPC(M)'!$AL330=\"\",\"\",+'[1]REAL IPC(M)'!$AL330)","v":2.3715152206133405},{"$f":"IF('[1]REAL IPC(M)'!$BE330=\"\",\"\",+'[1]REAL IPC(M)'!$BE330)","v":2.6555023195536487},{"$f":"IF('[1]REAL IPC(M)'!$AM330=\"\",\"\",+'[1]REAL IPC(M)'!$AM330)","v":2.2610112882308409},{"$f":"IF('[1]REAL IPC(M)'!$BI330=\"\",\"\",+'[1]REAL IPC(M)'!$BI330)","v":2.454663332125584},{"$f":"IF('[1]REAL IMAE(M)'!BJ330=\"\",\"\",'[1]REAL IMAE(M)'!BJ330)","v":4.3897597385177844},{"$f":"IF('[1]REAL IMAE(M)'!BK330=\"\",\"\",'[1]REAL IMAE(M)'!BK330)","v":4.5939867038081506},{"$f":"IF('[1]REAL IMAE(M)'!BN330=\"\",\"\",'[1]REAL IMAE(M)'!BN330)","v":4.4136402842482658},{"$f":"IF('[1]REAL IMAE(M)'!BO330=\"\",\"\",'[1]REAL IMAE(M)'!BO330)","v":4.6106775373136788},{"$f":"IF('[1]EXT RIN(M)'!$K330=\"\",\"\",'[1]EXT RIN(M)'!$K330)","v":30755.544114733566},"",{"$f":"IF('[1]EXT RIN(M)'!$L330=\"\",\"\",'[1]EXT RIN(M)'!$L330)","v":34855.727142193566},"",{"$f":"IF('[1]MONE(M)CARD'!EG330=\"\",\"\",'[1]MONE(M)CARD'!EG330)","v":32745.223482740963},{"$f":"IF('[1]MONE(M)CARD'!EK330=\"\",\"\",'[1]MONE(M)CARD'!EK330)","v":51969.03171250967},{"$f":"IF('[1]MONE(M)CARD'!EP330=\"\",\"\",'[1]MONE(M)CARD'!EP330)","v":29107.836659453009},{"$f":"IF('[1]MONE(M)CARD'!ES330=\"\",\"\",'[1]MONE(M)CARD'!ES330)","v":9.699266637363845},{"$f":"IF('[1]MONE(M)CARD'!EV330=\"\",\"\",'[1]MONE(M)CARD'!EV330)","v":6.1396922978101953},{"$f":"IF('[1]MONE(M)CARD'!EZ330=\"\",\"\",'[1]MONE(M)CARD'!EZ330)","v":5.3112889930431617},{"$f":"IF('[1]MONE(M)CAPARD'!FC330=\"\",\"\",'[1]MONE(M)CAPARD'!FC330)","v":40541.96290122097},{"$f":"IF('[1]MONE(M)CAPARD'!FG330=\"\",\"\",'[1]MONE(M)CAPARD'!FG330)","v":81547.325513359654},{"$f":"IF('[1]MONE(M)CAPARD'!FL330=\"\",\"\",'[1]MONE(M)CAPARD'!FL330)","v":29107.836659453023},{"$f":"IF('[1]MONE(M)CAPARD'!FO330=\"\",\"\",'[1]MONE(M)CAPARD'!FO330)","v":7.6597937010955075},{"$f":"IF('[1]MONE(M)CAPARD'!FR330=\"\",\"\",'[1]MONE(M)CAPARD'!FR330)","v":6.1011571095691108},{"$f":"IF('[1]MONE(M)CAPARD'!FV330=\"\",\"\",'[1]MONE(M)CAPARD'!FV330)","v":5.4841064077779},{"$f":"IF('[1]MONE(M)CARD'!FV330=\"\",\"\",'[1]MONE(M)CARD'!FV330)","v":1537.0681930011278},{"$f":"IF('[1]MONE(M)CARD'!GD330=\"\",\"\",'[1]MONE(M)CARD'!GD330)","v":161.3365073066914},{"$f":"IF('[1]MONE(M)CARD'!GE330=\"\",\"\",'[1]MONE(M)CARD'!GE330)","v":9368.2868130244897},12.057241684543074,{"$f":"IF('[9]II.2.Balance OSD-Activos'!J188=\"\",\"\",'[9]II.2.Balance OSD-Activos'!J188)","v":206.26625439190593},{"$f":"IF('[9]II.2.Balance OSD-Activos'!N188=\"\",\"\",'[9]II.2.Balance OSD-Activos'!N188)","v":967.52222743187542},{"$f":"IF('[9]II.2.Balance OSD-Activos'!R188=\"\",\"\",'[9]II.2.Balance OSD-Activos'!R188)","v":48180.930235545922},{"$f":"IF('[9]II.2.Balance OSD-Activos'!S188=\"\",\"\",'[9]II.2.Balance OSD-Activos'!S188)","v":52552.12356423444},48387.196489937829,101906.84228160414,15.057229794486048,8.0044958849737604,-1.3339873867629581,7.9761608033154019,9.3155803801040271,8.5784787281728327,-0.68948330975486982,{"$f":"IF('[1]MONE(M)CAPARD'!GS330=\"\",\"\",'[1]MONE(M)CAPARD'!GS330)","v":19920.024724074545},{"$f":"IF('[1]MONE(M)CARD'!HA330=\"\",\"\",'[1]MONE(M)CAPARD'!HA330)","v":11241.150968334488},{"$f":"IF('[1]MONE(M)CAPARD'!HB330=\"\",\"\",'[1]MONE(M)CAPARD'!HB330)","v":8678.8737557400564},"n.d.",{"$f":"IF('[10]II.2.Balance OSD-Activos'!J188=\"\",\"\",'[10]II.2.Balance OSD-Activos'!J188)","v":2038.1008464919066},{"$f":"IF('[10]II.2.Balance OSD-Activos'!N188=\"\",\"\",'[10]II.2.Balance OSD-Activos'!N188)","v":1479.1230706218753},{"$f":"IF('[10]II.2.Balance OSD-Activos'!R188=\"\",\"\",'[10]II.2.Balance OSD-Activos'!R188)","v":70549.503328455903},{"$f":"IF('[10]II.2.Balance OSD-Activos'!S188=\"\",\"\",'[10]II.2.Balance OSD-Activos'!S188)","v":73167.382188904434},72587.604174947803,147234.10943447411,11.09849000851051,7.2284041406942778,1.6934615154476473,7.1206045359564651,10.493189611119313,8.7659930480742823,-0.54595256299865369,{"$f":"IF('[1]MONE(M)CAPARD'!AS330=\"\",\"\",'[1]MONE(M)CAPARD'!AS330)","v":1.75},{"$f":"IF('[1]MONE(M)CAPARD'!AT330=\"\",\"\",'[1]MONE(M)CAPARD'!AT330)","v":"n.a."},{"$f":"IF('[1]MONE(M)CAPARD'!AU330=\"\",\"\",'[1]MONE(M)CAPARD'!AU330)","v":3},{"$f":"IF('[1]MONE(M)CAPARD'!AV330=\"\",\"\",'[1]MONE(M)CAPARD'!AV330)","v":5.5},{"$f":"IF('[1]MONE(M)CAPARD'!AW330=\"\",\"\",'[1]MONE(M)CAPARD'!AW330)","v":"n.a."},{"$f":"IF('[1]MONE(M)CAPARD'!AX330=\"\",\"\",'[1]MONE(M)CAPARD'!AX330)","v":5},{"$f":"IF('[1]MONE(M)CAPARD'!AY330=\"\",\"\",'[1]MONE(M)CAPARD'!AY330)","v":"n.a."},{"$f":"IF('[1]FISCAL(M)'!$K330=\"\",\"\",'[1]FISCAL(M)'!$K330)","v":-3765.7712458198757},{"$f":"IF('[1]FISCAL(M)'!$L330=\"\",\"\",'[1]FISCAL(M)'!$L330)","v":-5805.7712458198757},{"$f":"IF('[1]FISCAL(M)'!$AY330=\"\",\"\",'[1]FISCAL(M)'!$AY330)","v":118394.08761886896},{"$f":"IF('[1]FISCAL(M)'!$BI330=\"\",\"\",'[1]FISCAL(M)'!$BI330)","v":61770.44246572454},{"$f":"IF('[1]FISCAL(M)'!$BS330=\"\",\"\",'[1]FISCAL(M)'!$BS330)","v":56623.645153144411},{"$f":"IF('[1]FISCAL(M)'!$AZ330=\"\",\"\",'[1]FISCAL(M)'!$AZ330)","v":139983.65761886895},{"$f":"IF('[1]FISCAL(M)'!$BJ330=\"\",\"\",'[1]FISCAL(M)'!$BJ330)","v":66751.432465724545},{"$f":"IF('[1]FISCAL(M)'!$BT330=\"\",\"\",'[1]FISCAL(M)'!$BT330)","v":73232.225153144405},{"$f":"IF('[2]MONE(M)'!$AO330=\"\",\"\",'[2]MONE(M)'!$AO330)","v":19456296.410481244},{"$f":"IF('[3]MONE(M)'!$AO330=\"\",\"\",'[3]MONE(M)'!$AO330)","v":11406.342321999999},{"$f":"IF('[4]MONE(M)'!$AO330=\"\",\"\",'[4]MONE(M)'!$AO330)","v":182901.08086232658},{"$f":"IF('[5]MONE(M)'!$AO330=\"\",\"\",'[5]MONE(M)'!$AO330)","v":271203.31880345516},{"$f":"IF('[6]MONE(M)'!$AO330=\"\",\"\",'[6]MONE(M)'!$AO330)","v":132476.07889500394},{"$f":"IF('[7]MONE(M)'!$AO330=\"\",\"\",'[7]MONE(M)'!$AO330)","v":875127.70564855007},{"$f":"IF('[8]MONE(M)'!$AO330=\"\",\"\",'[8]MONE(M)'!$AO330)","v":46158.925015069966},12.251632969940761,5.4830646166862618,6.4731928323540133,9.5376192107700764,19.239615368862715,12.062924875579117,8.9725716416110934,{"$f":"'[1]FISCAL(M)'!$K330","v":-3765.7712458198757},{"$f":"+'[1]REAL(A)'!$AO$36","v":258132.32497092453},-1.4588530306090273,{"$f":"IF('[1]FISCAL(M)'!$L330=\"\",\"\",'[1]FISCAL(M)'!$L330)","v":-5805.7712458198757},{"$f":"+'[1]REAL(A)'!$AP$36","v":316040.02097092452},-1.8370367233819425,138319.48434125978,{"$f":"'[1]Gráfico REM'!BG324","v":24324.486228466521},{"$f":"'[1]Gráfico REM'!BH324","v":106593.59737608428},{"$f":"'[1]Gráfico REM'!BI324","v":7401.4007367089871},7.512897994233092,6.2427270772514643,8.1663370296129134,2.6169198606629696,210045.64216729978,{"$f":"'[1]Gráfico REM'!BK324","v":26627.01532917652},{"$f":"'[1]Gráfico REM'!BL324","v":152752.52239115426},{"$f":"'[1]Gráfico REM'!BM324","v":30666.104446968991},6.6468676107866331,6.5522722498176922,8.4087052600308567,-1.269527281318017]
[2016,"octubre",{"$f":"A324&\"-\"&B324","v":"2016-octubre"},{"$f":"IF('[1]REAL IPC(M)'!$AL331=\"\",\"\",+'[1]REAL IPC(M)'!$AL331)","v":2.202384290567605},{"$f":"IF('[1]REAL IPC(M)'!$BE331=\"\",\"\",+'[1]REAL IPC(M)'!$BE331)","v":2.6762500179575488},{"$f":"IF('[1]REAL IPC(M)'!$AM331=\"\",\"\",+'[1]REAL IPC(M)'!$AM331)","v":2.1101394673122442},{"$f":"IF('[1]REAL IPC(M)'!$BI331=\"\",\"\",+'[1]REAL IPC(M)'!$BI331)","v":2.4713070944558879},{"$f":"IF('[1]REAL IMAE(M)'!BJ331=\"\",\"\",'[1]REAL IMAE(M)'!BJ331)","v":4.4202540717907191},{"$f":"IF('[1]REAL IMAE(M)'!BK331=\"\",\"\",'[1]REAL IMAE(M)'!BK331)","v":4.5661311471772104},{"$f":"IF('[1]REAL IMAE(M)'!BN331=\"\",\"\",'[1]REAL IMAE(M)'!BN331)","v":4.492524402979936},{"$f":"IF('[1]REAL IMAE(M)'!BO331=\"\",\"\",'[1]REAL IMAE(M)'!BO331)","v":4.5868599390501696},{"$f":"IF('[1]EXT RIN(M)'!$K331=\"\",\"\",'[1]EXT RIN(M)'!$K331)","v":31248.119180965379},{"$f":"IF(B324<>\"diciembre\",\"\",L324)","v":""},{"$f":"IF('[1]EXT RIN(M)'!$L331=\"\",\"\",'[1]EXT RIN(M)'!$L331)","v":35189.64248780538},{"$f":"IF(B324<>\"diciembre\",\"\",N324)","v":""},{"$f":"IF('[1]MONE(M)CARD'!EG331=\"\",\"\",'[1]MONE(M)CARD'!EG331)","v":33080.24138658314},{"$f":"IF('[1]MONE(M)CARD'!EK331=\"\",\"\",'[1]MONE(M)CARD'!EK331)","v":51933.39813318212},{"$f":"IF('[1]MONE(M)CARD'!EP331=\"\",\"\",'[1]MONE(M)CARD'!EP331)","v":29244.081753201826},{"$f":"IF('[1]MONE(M)CARD'!ES331=\"\",\"\",'[1]MONE(M)CARD'!ES331)","v":9.5057686517046491},{"$f":"IF('[1]MONE(M)CARD'!EV331=\"\",\"\",'[1]MONE(M)CARD'!EV331)","v":6.0197856773255065},{"$f":"IF('[1]MONE(M)CARD'!EZ331=\"\",\"\",'[1]MONE(M)CARD'!EZ331)","v":5.5117604076379223},{"$f":"IF('[1]MONE(M)CAPARD'!FC331=\"\",\"\",'[1]MONE(M)CAPARD'!FC331)","v":41094.251124383147},{"$f":"IF('[1]MONE(M)CAPARD'!FG331=\"\",\"\",'[1]MONE(M)CAPARD'!FG331)","v":81588.543255362136},{"$f":"IF('[1]MONE(M)CAPARD'!FL331=\"\",\"\",'[1]MONE(M)CAPARD'!FL331)","v":29244.081753201797},{"$f":"IF('[1]MONE(M)CAPARD'!FO331=\"\",\"\",'[1]MONE(M)CAPARD'!FO331)","v":7.6990172852963168},{"$f":"IF('[1]MONE(M)CAPARD'!FR331=\"\",\"\",'[1]MONE(M)CAPARD'!FR331)","v":6.2307006395179165},{"$f":"IF('[1]MONE(M)CAPARD'!FV331=\"\",\"\",'[1]MONE(M)CAPARD'!FV331)","v":5.806290982007134},{"$f":"IF('[1]MONE(M)CARD'!FV331=\"\",\"\",'[1]MONE(M)CARD'!FV331)","v":1549.4525684075247},{"$f":"IF('[1]MONE(M)CARD'!GD331=\"\",\"\",'[1]MONE(M)CARD'!GD331)","v":70.409789390662795},{"$f":"IF('[1]MONE(M)CARD'!GE331=\"\",\"\",'[1]MONE(M)CARD'!GE331)","v":9549.6804519361358},11.745722402480574,{"$f":"IF('[9]II.2.Balance OSD-Activos'!J189=\"\",\"\",'[9]II.2.Balance OSD-Activos'!J189)","v":214.28315727971523},{"$f":"IF('[9]II.2.Balance OSD-Activos'!N189=\"\",\"\",'[9]II.2.Balance OSD-Activos'!N189)","v":945.58640770607178},{"$f":"IF('[9]II.2.Balance OSD-Activos'!R189=\"\",\"\",'[9]II.2.Balance OSD-Activos'!R189)","v":48726.035548108426},{"$f":"IF('[9]II.2.Balance OSD-Activos'!S189=\"\",\"\",'[9]II.2.Balance OSD-Activos'!S189)","v":53072.307108777175},48940.318705388141,102958.21222187139,22.758564497889601,7.4828494232018761,-3.0406245543222465,7.4240628316466495,9.224069593395722,8.264600566901926,-0.31387816127090673,{"$f":"IF('[1]MONE(M)CAPARD'!GS331=\"\",\"\",'[1]MONE(M)CAPARD'!GS331)","v":19801.647669160557},{"$f":"IF('[1]MONE(M)CARD'!HA331=\"\",\"\",'[1]MONE(M)CAPARD'!HA331)","v":11267.791320046135},{"$f":"IF('[1]MONE(M)CAPARD'!HB331=\"\",\"\",'[1]MONE(M)CAPARD'!HB331)","v":8533.8563491144214},"n.d.",{"$f":"IF('[10]II.2.Balance OSD-Activos'!J189=\"\",\"\",'[10]II.2.Balance OSD-Activos'!J189)","v":2048.0423672997149},{"$f":"IF('[10]II.2.Balance OSD-Activos'!N189=\"\",\"\",'[10]II.2.Balance OSD-Activos'!N189)","v":1472.6019554160721},{"$f":"IF('[10]II.2.Balance OSD-Activos'!R189=\"\",\"\",'[10]II.2.Balance OSD-Activos'!R189)","v":71269.172859598431},{"$f":"IF('[10]II.2.Balance OSD-Activos'!S189=\"\",\"\",'[10]II.2.Balance OSD-Activos'!S189)","v":73973.642287797178},73317.215226898144,148763.45947011141,13.022860976652041,6.9749055642804203,1.3848340074831933,6.8106598295536669,10.447221706532851,8.6135917718101815,-0.15240127626410072,{"$f":"IF('[1]MONE(M)CAPARD'!AS331=\"\",\"\",'[1]MONE(M)CAPARD'!AS331)","v":1.75},{"$f":"IF('[1]MONE(M)CAPARD'!AT331=\"\",\"\",'[1]MONE(M)CAPARD'!AT331)","v":"n.a."},{"$f":"IF('[1]MONE(M)CAPARD'!AU331=\"\",\"\",'[1]MONE(M)CAPARD'!AU331)","v":3},{"$f":"IF('[1]MONE(M)CAPARD'!AV331=\"\",\"\",'[1]MONE(M)CAPARD'!AV331)","v":5.5},{"$f":"IF('[1]MONE(M)CAPARD'!AW331=\"\",\"\",'[1]MONE(M)CAPARD'!AW331)","v":"n.a."},{"$f":"IF('[1]MONE(M)CAPARD'!AX331=\"\",\"\",'[1]MONE(M)CAPARD'!AX331)","v":5},{"$f":"IF('[1]MONE(M)CAPARD'!AY331=\"\",\"\",'[1]MONE(M)CAPARD'!AY331)","v":"n.a."},{"$f":"IF('[1]FISCAL(M)'!$K331=\"\",\"\",'[1]FISCAL(M)'!$K331)","v":-4121.0052090322588},{"$f":"IF('[1]FISCAL(M)'!$L331=\"\",\"\",'[1]FISCAL(M)'!$L331)","v":"n.d."},{"$f":"IF('[1]FISCAL(M)'!$AY331=\"\",\"\",'[1]FISCAL(M)'!$AY331)","v":118658.05397492673},{"$f":"IF('[1]FISCAL(M)'!$BI331=\"\",\"\",'[1]FISCAL(M)'!$BI331)","v":62086.157423182274},{"$f":"IF('[1]FISCAL(M)'!$BS331=\"\",\"\",'[1]FISCAL(M)'!$BS331)","v":56571.896551744474},{"$f":"IF('[1]FISCAL(M)'!$AZ331=\"\",\"\",'[1]FISCAL(M)'!$AZ331)","v":140069.60397492675},{"$f":"IF('[1]FISCAL(M)'!$BJ331=\"\",\"\",'[1]FISCAL(M)'!$BJ331)","v":66909.067423182278},{"$f":"IF('[1]FISCAL(M)'!$BT331=\"\",\"\",'[1]FISCAL(M)'!$BT331)","v":73160.536551744459},{"$f":"IF('[2]MONE(M)'!$AO331=\"\",\"\",'[2]MONE(M)'!$AO331)","v":19663854.413996302},{"$f":"IF('[3]MONE(M)'!$AO331=\"\",\"\",'[3]MONE(M)'!$AO331)","v":11519.254406380001},{"$f":"IF('[4]MONE(M)'!$AO331=\"\",\"\",'[4]MONE(M)'!$AO331)","v":184127.28641310491},{"$f":"IF('[5]MONE(M)'!$AO331=\"\",\"\",'[5]MONE(M)'!$AO331)","v":273067.22407620843},{"$f":"IF('[6]MONE(M)'!$AO331=\"\",\"\",'[6]MONE(M)'!$AO331)","v":135866.25819322138},{"$f":"IF('[7]MONE(M)'!$AO331=\"\",\"\",'[7]MONE(M)'!$AO331)","v":890865.70091500995},{"$f":"IF('[8]MONE(M)'!$AO331=\"\",\"\",'[8]MONE(M)'!$AO331)","v":46617.08338145},12.362781787589538,5.7951004644006376,5.9676497113355431,9.2122935495182254,19.647657652296679,11.610170275434207,9.0785374290003329,{"$f":"'[1]FISCAL(M)'!$K331","v":-4121.0052090322588},{"$f":"+'[1]REAL(A)'!$AO$36","v":258132.32497092453},-1.5964700312122628,{"$f":"IF('[1]FISCAL(M)'!$L331=\"\",\"\",'[1]FISCAL(M)'!$L331)","v":"n.d."},{"$f":"+'[1]REAL(A)'!$AP$36","v":316040.02097092452},{"$f":"IF(OR(CP324=\"n.d.\",CP324=\"\",CQ324=\"\",CQ324=\"n.d.\"),\"n.d.\",(CP324/CQ324)*100)","v":"n.d."},139192.43876302722,{"$f":"'[1]Gráfico REM'!BG325","v":24080.332413245247},{"$f":"'[1]Gráfico REM'!BH325","v":107630.93114148086},{"$f":"'[1]Gráfico REM'!BI325","v":7481.1752083011088},7.0443386138659081,4.5206715772448502,7.9026953659039556,3.2520542599840274,211478.44428105722,{"$f":"'[1]Gráfico REM'!BK325","v":26346.240928115247},{"$f":"'[1]Gráfico REM'!BL325","v":154248.01452293087},{"$f":"'[1]Gráfico REM'!BM325","v":30884.18883001111},6.5390116204746773,4.733737241549596,8.2553784942685162,8.5397133336417852E-2]
[2016,"noviembre","2016-noviembre",{"$f":"IF('[1]REAL IPC(M)'!$AL332=\"\",\"\",+'[1]REAL IPC(M)'!$AL332)","v":2.1988439807286264},{"$f":"IF('[1]REAL IPC(M)'!$BE332=\"\",\"\",+'[1]REAL IPC(M)'!$BE332)","v":2.6992347564591901},{"$f":"IF('[1]REAL IPC(M)'!$AM332=\"\",\"\",+'[1]REAL IPC(M)'!$AM332)","v":2.1020010901425801},{"$f":"IF('[1]REAL IPC(M)'!$BI332=\"\",\"\",+'[1]REAL IPC(M)'!$BI332)","v":2.4904317195903136},{"$f":"IF('[1]REAL IMAE(M)'!BJ332=\"\",\"\",'[1]REAL IMAE(M)'!BJ332)","v":4.6138357697420807},{"$f":"IF('[1]REAL IMAE(M)'!BK332=\"\",\"\",'[1]REAL IMAE(M)'!BK332)","v":4.5372114221926996},{"$f":"IF('[1]REAL IMAE(M)'!BN332=\"\",\"\",'[1]REAL IMAE(M)'!BN332)","v":4.6240026858836547},{"$f":"IF('[1]REAL IMAE(M)'!BO332=\"\",\"\",'[1]REAL IMAE(M)'!BO332)","v":4.5619082027723579},{"$f":"IF('[1]EXT RIN(M)'!$K332=\"\",\"\",'[1]EXT RIN(M)'!$K332)","v":31300.353677951352},"",{"$f":"IF('[1]EXT RIN(M)'!$L332=\"\",\"\",'[1]EXT RIN(M)'!$L332)","v":35447.294872941355},"",{"$f":"IF('[1]MONE(M)CARD'!EG332=\"\",\"\",'[1]MONE(M)CARD'!EG332)","v":33623.815120316038},{"$f":"IF('[1]MONE(M)CARD'!EK332=\"\",\"\",'[1]MONE(M)CARD'!EK332)","v":51670.127442942015},{"$f":"IF('[1]MONE(M)CARD'!EP332=\"\",\"\",'[1]MONE(M)CARD'!EP332)","v":29449.42512187954},{"$f":"IF('[1]MONE(M)CARD'!ES332=\"\",\"\",'[1]MONE(M)CARD'!ES332)","v":6.3032478136296755},{"$f":"IF('[1]MONE(M)CARD'!EV332=\"\",\"\",'[1]MONE(M)CARD'!EV332)","v":5.0619535299134988},{"$f":"IF('[1]MONE(M)CARD'!EZ332=\"\",\"\",'[1]MONE(M)CARD'!EZ332)","v":5.050301239194277},{"$f":"IF('[1]MONE(M)CAPARD'!FC332=\"\",\"\",'[1]MONE(M)CAPARD'!FC332)","v":41853.223598536031},{"$f":"IF('[1]MONE(M)CAPARD'!FG332=\"\",\"\",'[1]MONE(M)CAPARD'!FG332)","v":81432.849336662024},{"$f":"IF('[1]MONE(M)CAPARD'!FL332=\"\",\"\",'[1]MONE(M)CAPARD'!FL332)","v":29449.425121879554},{"$f":"IF('[1]MONE(M)CAPARD'!FO332=\"\",\"\",'[1]MONE(M)CAPARD'!FO332)","v":5.329342967997408},{"$f":"IF('[1]MONE(M)CAPARD'!FR332=\"\",\"\",'[1]MONE(M)CAPARD'!FR332)","v":5.5302626125243615},{"$f":"IF('[1]MONE(M)CAPARD'!FV332=\"\",\"\",'[1]MONE(M)CAPARD'!FV332)","v":5.4308246790934156},{"$f":"IF('[1]MONE(M)CARD'!FV332=\"\",\"\",'[1]MONE(M)CARD'!FV332)","v":1560.431344231906},{"$f":"IF('[1]MONE(M)CARD'!GD332=\"\",\"\",'[1]MONE(M)CARD'!GD332)","v":71.984854208707887},{"$f":"IF('[1]MONE(M)CARD'!GE332=\"\",\"\",'[1]MONE(M)CARD'!GE332)","v":9391.5749298308765},7.3783348480846556,{"$f":"IF('[9]II.2.Balance OSD-Activos'!J190=\"\",\"\",'[9]II.2.Balance OSD-Activos'!J190)","v":205.62134549109777},{"$f":"IF('[9]II.2.Balance OSD-Activos'!N190=\"\",\"\",'[9]II.2.Balance OSD-Activos'!N190)","v":991.67542210216175},{"$f":"IF('[9]II.2.Balance OSD-Activos'!R190=\"\",\"\",'[9]II.2.Balance OSD-Activos'!R190)","v":49421.63783218505},{"$f":"IF('[9]II.2.Balance OSD-Activos'!S190=\"\",\"\",'[9]II.2.Balance OSD-Activos'!S190)","v":53667.260522807701},49627.259177676147,{"$f":"IF(OR(AF325=\"\",AG325=\"\",AH325=\"\",AI325=\"\"),\"\",SUM(AF325:AI325))","v":104286.19512258601},4.6917724872790334,7.4631232457178731,-1.620811762505292,7.4749601271917321,8.8223507113165169,8.0628370932109164,-0.20176347369100966,{"$f":"IF('[1]MONE(M)CAPARD'!GS332=\"\",\"\",'[1]MONE(M)CAPARD'!GS332)","v":19845.229026508732},{"$f":"IF('[1]MONE(M)CARD'!HA332=\"\",\"\",'[1]MONE(M)CAPARD'!HA332)","v":11101.763573150876},{"$f":"IF('[1]MONE(M)CAPARD'!HB332=\"\",\"\",'[1]MONE(M)CAPARD'!HB332)","v":8743.4654533578559},"n.d.",{"$f":"IF('[10]II.2.Balance OSD-Activos'!J190=\"\",\"\",'[10]II.2.Balance OSD-Activos'!J190)","v":2055.5289066110977},{"$f":"IF('[10]II.2.Balance OSD-Activos'!N190=\"\",\"\",'[10]II.2.Balance OSD-Activos'!N190)","v":1501.8273684721617},{"$f":"IF('[10]II.2.Balance OSD-Activos'!R190=\"\",\"\",'[10]II.2.Balance OSD-Activos'!R190)","v":71942.89659862504},{"$f":"IF('[10]II.2.Balance OSD-Activos'!S190=\"\",\"\",'[10]II.2.Balance OSD-Activos'!S190)","v":74748.803531967715},73998.42550523614,150249.056405676,11.752415926576877,6.5072609356823685,0.96024432027335127,6.3646232511510581,9.9909598946207332,8.152027279487406,-0.46156449232277552,{"$f":"IF('[1]MONE(M)CAPARD'!AS332=\"\",\"\",'[1]MONE(M)CAPARD'!AS332)","v":1.75},{"$f":"IF('[1]MONE(M)CAPARD'!AT332=\"\",\"\",'[1]MONE(M)CAPARD'!AT332)","v":"n.a."},{"$f":"IF('[1]MONE(M)CAPARD'!AU332=\"\",\"\",'[1]MONE(M)CAPARD'!AU332)","v":3},{"$f":"IF('[1]MONE(M)CAPARD'!AV332=\"\",\"\",'[1]MONE(M)CAPARD'!AV332)","v":5.5},{"$f":"IF('[1]MONE(M)CAPARD'!AW332=\"\",\"\",'[1]MONE(M)CAPARD'!AW332)","v":"n.a."},{"$f":"IF('[1]MONE(M)CAPARD'!AX332=\"\",\"\",'[1]MONE(M)CAPARD'!AX332)","v":5.5},{"$f":"IF('[1]MONE(M)CAPARD'!AY332=\"\",\"\",'[1]MONE(M)CAPARD'!AY332)","v":"n.a."},{"$f":"IF('[1]FISCAL(M)'!$K332=\"\",\"\",'[1]FISCAL(M)'!$K332)","v":-4801.6767061476257},{"$f":"IF('[1]FISCAL(M)'!$L332=\"\",\"\",'[1]FISCAL(M)'!$L332)","v":"n.d."},{"$f":"IF('[1]FISCAL(M)'!$AY332=\"\",\"\",'[1]FISCAL(M)'!$AY332)","v":118221.45496880673},{"$f":"IF('[1]FISCAL(M)'!$BI332=\"\",\"\",'[1]FISCAL(M)'!$BI332)","v":61385.919966478847},{"$f":"IF('[1]FISCAL(M)'!$BS332=\"\",\"\",'[1]FISCAL(M)'!$BS332)","v":56835.535002327873},{"$f":"IF('[1]FISCAL(M)'!$AZ332=\"\",\"\",'[1]FISCAL(M)'!$AZ332)","v":139740.15496880675},{"$f":"IF('[1]FISCAL(M)'!$BJ332=\"\",\"\",'[1]FISCAL(M)'!$BJ332)","v":66168.229966478844},{"$f":"IF('[1]FISCAL(M)'!$BT332=\"\",\"\",'[1]FISCAL(M)'!$BT332)","v":73571.925002327887},{"$f":"IF('[2]MONE(M)'!$AO332=\"\",\"\",'[2]MONE(M)'!$AO332)","v":19856747.607925285},{"$f":"IF('[3]MONE(M)'!$AO332=\"\",\"\",'[3]MONE(M)'!$AO332)","v":11621.557041470001},{"$f":"IF('[4]MONE(M)'!$AO332=\"\",\"\",'[4]MONE(M)'!$AO332)","v":186134.81745132068},{"$f":"IF('[5]MONE(M)'!$AO332=\"\",\"\",'[5]MONE(M)'!$AO332)","v":278443.6087394738},{"$f":"IF('[6]MONE(M)'!$AO332=\"\",\"\",'[6]MONE(M)'!$AO332)","v":138146.11530837673},{"$f":"IF('[7]MONE(M)'!$AO332=\"\",\"\",'[7]MONE(M)'!$AO332)","v":905248.39266111003},{"$f":"IF('[8]MONE(M)'!$AO332=\"\",\"\",'[8]MONE(M)'!$AO332)","v":46778.290020079992},12.897264885701487,5.5483739156772183,6.0260948660573632,9.7560538598383104,18.703604357627569,11.696356462873014,8.0382702238769976,{"$f":"'[1]FISCAL(M)'!$K332","v":-4801.6767061476257},{"$f":"+'[1]REAL(A)'!$AO$36","v":258132.32497092453},-1.8601609491133961,{"$f":"IF('[1]FISCAL(M)'!$L332=\"\",\"\",'[1]FISCAL(M)'!$L332)","v":"n.d."},{"$f":"+'[1]REAL(A)'!$AP$36","v":316040.02097092452},"n.d.",140340.91831582875,{"$f":"'[1]Gráfico REM'!BG326","v":23862.831758032833},{"$f":"'[1]Gráfico REM'!BH326","v":108880.96208063752},{"$f":"'[1]Gráfico REM'!BI326","v":7597.1244771583924},6.9332429449017852,4.2245260520611838,7.8160911917435572,3.2450366539815034,212447.34850460873,{"$f":"'[1]Gráfico REM'!BK326","v":26062.348746592834},{"$f":"'[1]Gráfico REM'!BL326","v":155659.25210071751},{"$f":"'[1]Gráfico REM'!BM326","v":30725.747657298391},5.9596523321617356,4.0031805123079911,7.8827637185453492,-1.3733568876744928]
[2016,"diciembre","2016-diciembre",{"$f":"IF('[1]REAL IPC(M)'!$AL333=\"\",\"\",+'[1]REAL IPC(M)'!$AL333)","v":2.479090618023494},{"$f":"IF('[1]REAL IPC(M)'!$BE333=\"\",\"\",+'[1]REAL IPC(M)'!$BE333)","v":2.7240921311287192},{"$f":"IF('[1]REAL IPC(M)'!$AM333=\"\",\"\",+'[1]REAL IPC(M)'!$AM333)","v":2.3780534378292861},{"$f":"IF('[1]REAL IPC(M)'!$BI333=\"\",\"\",+'[1]REAL IPC(M)'!$BI333)","v":2.5116938208994855},{"$f":"IF('[1]REAL IMAE(M)'!BJ333=\"\",\"\",'[1]REAL IMAE(M)'!BJ333)","v":4.8904449998648403},{"$f":"IF('[1]REAL IMAE(M)'!BK333=\"\",\"\",'[1]REAL IMAE(M)'!BK333)","v":4.5073641367122219},{"$f":"IF('[1]REAL IMAE(M)'!BN333=\"\",\"\",'[1]REAL IMAE(M)'!BN333)","v":4.9078919499500273},{"$f":"IF('[1]REAL IMAE(M)'!BO333=\"\",\"\",'[1]REAL IMAE(M)'!BO333)","v":4.535810430565812},{"$f":"IF('[1]EXT RIN(M)'!$K333=\"\",\"\",'[1]EXT RIN(M)'!$K333)","v":31978.994991460706},31978.994991460706,{"$f":"IF('[1]EXT RIN(M)'!$L333=\"\",\"\",'[1]EXT RIN(M)'!$L333)","v":36481.172465990705},36481.172465990705,{"$f":"IF('[1]MONE(M)CARD'!EG333=\"\",\"\",'[1]MONE(M)CARD'!EG333)","v":35015.433838194149},{"$f":"IF('[1]MONE(M)CARD'!EK333=\"\",\"\",'[1]MONE(M)CARD'!EK333)","v":52451.195395998177},{"$f":"IF('[1]MONE(M)CARD'!EP333=\"\",\"\",'[1]MONE(M)CARD'!EP333)","v":29407.897357512018},{"$f":"IF('[1]MONE(M)CARD'!ES333=\"\",\"\",'[1]MONE(M)CARD'!ES333)","v":5.7491856116445472},{"$f":"IF('[1]MONE(M)CARD'!EV333=\"\",\"\",'[1]MONE(M)CARD'!EV333)","v":5.3736814787721299},{"$f":"IF('[1]MONE(M)CARD'!EZ333=\"\",\"\",'[1]MONE(M)CARD'!EZ333)","v":5.2081334776872046},{"$f":"IF('[1]MONE(M)CAPARD'!FC333=\"\",\"\",'[1]MONE(M)CAPARD'!FC333)","v":43236.909191634142},{"$f":"IF('[1]MONE(M)CAPARD'!FG333=\"\",\"\",'[1]MONE(M)CAPARD'!FG333)","v":82345.947328008173},{"$f":"IF('[1]MONE(M)CAPARD'!FL333=\"\",\"\",'[1]MONE(M)CAPARD'!FL333)","v":29407.897357512004},{"$f":"IF('[1]MONE(M)CAPARD'!FO333=\"\",\"\",'[1]MONE(M)CAPARD'!FO333)","v":4.6228524539797089},{"$f":"IF('[1]MONE(M)CAPARD'!FR333=\"\",\"\",'[1]MONE(M)CAPARD'!FR333)","v":5.3572146718779967},{"$f":"IF('[1]MONE(M)CAPARD'!FV333=\"\",\"\",'[1]MONE(M)CAPARD'!FV333)","v":5.2354865641013326},{"$f":"IF('[1]MONE(M)CARD'!FV333=\"\",\"\",'[1]MONE(M)CARD'!FV333)","v":1622.7800041234586},{"$f":"IF('[1]MONE(M)CARD'!GD333=\"\",\"\",'[1]MONE(M)CARD'!GD333)","v":109.6255165794457},{"$f":"IF('[1]MONE(M)CARD'!GE333=\"\",\"\",'[1]MONE(M)CARD'!GE333)","v":8926.9207165109055},3.7922109871861398,{"$f":"IF('[9]II.2.Balance OSD-Activos'!J191=\"\",\"\",'[9]II.2.Balance OSD-Activos'!J191)","v":196.87900412580427},{"$f":"IF('[9]II.2.Balance OSD-Activos'!N191=\"\",\"\",'[9]II.2.Balance OSD-Activos'!N191)","v":962.8433548886178},{"$f":"IF('[9]II.2.Balance OSD-Activos'!R191=\"\",\"\",'[9]II.2.Balance OSD-Activos'!R191)","v":49938.23066143434},{"$f":"IF('[9]II.2.Balance OSD-Activos'!S191=\"\",\"\",'[9]II.2.Balance OSD-Activos'!S191)","v":54156.848521309017},50135.109665560143,{"$f":"IF(OR(AF326=\"\",AG326=\"\",AH326=\"\",AI326=\"\"),\"\",SUM(AF326:AI326))","v":105254.80154175777},1.4108889666165192,7.5915129091513878,-4.4451685809148263,7.6173709943144319,9.5053577213796601,8.4417223716801502,0.37888527846923381,{"$f":"IF('[1]MONE(M)CAPARD'!GS333=\"\",\"\",'[1]MONE(M)CAPARD'!GS333)","v":20084.173842024542},{"$f":"IF('[1]MONE(M)CARD'!HA333=\"\",\"\",'[1]MONE(M)CAPARD'!HA333)","v":10586.438858680907},{"$f":"IF('[1]MONE(M)CAPARD'!HB333=\"\",\"\",'[1]MONE(M)CAPARD'!HB333)","v":9497.7349833436347},"n.d.",{"$f":"IF('[10]II.2.Balance OSD-Activos'!J191=\"\",\"\",'[10]II.2.Balance OSD-Activos'!J191)","v":2103.8604386958045},{"$f":"IF('[10]II.2.Balance OSD-Activos'!N191=\"\",\"\",'[10]II.2.Balance OSD-Activos'!N191)","v":1493.0018027086178},{"$f":"IF('[10]II.2.Balance OSD-Activos'!R191=\"\",\"\",'[10]II.2.Balance OSD-Activos'!R191)","v":72317.35385661434},{"$f":"IF('[10]II.2.Balance OSD-Activos'!S191=\"\",\"\",'[10]II.2.Balance OSD-Activos'!S191)","v":75399.505159519031},74421.214295310143,151313.72125753778,15.808402808421329,6.9313324514655772,-0.11993833207164517,6.6934066326874264,10.407116345301826,8.5586964485385497,0.4066691690511437,{"$f":"IF('[1]MONE(M)CAPARD'!AS333=\"\",\"\",'[1]MONE(M)CAPARD'!AS333)","v":1.75},{"$f":"IF('[1]MONE(M)CAPARD'!AT333=\"\",\"\",'[1]MONE(M)CAPARD'!AT333)","v":"n.a."},{"$f":"IF('[1]MONE(M)CAPARD'!AU333=\"\",\"\",'[1]MONE(M)CAPARD'!AU333)","v":3},{"$f":"IF('[1]MONE(M)CAPARD'!AV333=\"\",\"\",'[1]MONE(M)CAPARD'!AV333)","v":5.5},{"$f":"IF('[1]MONE(M)CAPARD'!AW333=\"\",\"\",'[1]MONE(M)CAPARD'!AW333)","v":"n.a."},{"$f":"IF('[1]MONE(M)CAPARD'!AX333=\"\",\"\",'[1]MONE(M)CAPARD'!AX333)","v":5.5},{"$f":"IF('[1]MONE(M)CAPARD'!AY333=\"\",\"\",'[1]MONE(M)CAPARD'!AY333)","v":"n.a."},{"$f":"IF('[1]FISCAL(M)'!$K333=\"\",\"\",'[1]FISCAL(M)'!$K333)","v":-6599.906393725174},{"$f":"IF('[1]FISCAL(M)'!$L333=\"\",\"\",'[1]FISCAL(M)'!$L333)","v":-8801.906393725174},{"$f":"IF('[1]FISCAL(M)'!$AY333=\"\",\"\",'[1]FISCAL(M)'!$AY333)","v":118546.17103577676},{"$f":"IF('[1]FISCAL(M)'!$BI333=\"\",\"\",'[1]FISCAL(M)'!$BI333)","v":60986.723588345791},{"$f":"IF('[1]FISCAL(M)'!$BS333=\"\",\"\",'[1]FISCAL(M)'!$BS333)","v":57559.447447430968},{"$f":"IF('[1]FISCAL(M)'!$AZ333=\"\",\"\",'[1]FISCAL(M)'!$AZ333)","v":140147.81103577677},{"$f":"IF('[1]FISCAL(M)'!$BJ333=\"\",\"\",'[1]FISCAL(M)'!$BJ333)","v":65686.473588345805},{"$f":"IF('[1]FISCAL(M)'!$BT333=\"\",\"\",'[1]FISCAL(M)'!$BT333)","v":74461.337447430968},{"$f":"IF('[2]MONE(M)'!$AO333=\"\",\"\",'[2]MONE(M)'!$AO333)","v":20013003.784492195},{"$f":"IF('[3]MONE(M)'!$AO333=\"\",\"\",'[3]MONE(M)'!$AO333)","v":11597.21174975},{"$f":"IF('[4]MONE(M)'!$AO333=\"\",\"\",'[4]MONE(M)'!$AO333)","v":189345.88553657505},{"$f":"IF('[5]MONE(M)'!$AO333=\"\",\"\",'[5]MONE(M)'!$AO333)","v":286224.65673334652},{"$f":"IF('[6]MONE(M)'!$AO333=\"\",\"\",'[6]MONE(M)'!$AO333)","v":139683.29761648248},{"$f":"IF('[7]MONE(M)'!$AO333=\"\",\"\",'[7]MONE(M)'!$AO333)","v":912477.50303400005},{"$f":"IF('[8]MONE(M)'!$AO333=\"\",\"\",'[8]MONE(M)'!$AO333)","v":46861.199803229989},12.149654232111873,5.0584468647588254,6.6840962486078404,11.727420063249427,17.512010337992635,11.407213499098457,8.5815479642203698,{"$f":"'[1]FISCAL(M)'!$K333","v":-6599.906393725174},{"$f":"+'[1]REAL(A)'!$AO$36","v":258132.32497092453},-2.5567919068131326,{"$f":"IF('[1]FISCAL(M)'!$L333=\"\",\"\",'[1]FISCAL(M)'!$L333)","v":-8801.906393725174},{"$f":"+'[1]REAL(A)'!$AP$36","v":316040.02097092452},{"$f":"IF(OR(CP326=\"n.d.\",CP326=\"\",CQ326=\"\",CQ326=\"n.d.\"),\"\",(CP326/CQ326)*100)","v":-2.7850606915808753},141373.62634512418,{"$f":"'[1]Gráfico REM'!BG327","v":23765.085301817293},{"$f":"'[1]Gráfico REM'!BH327","v":109792.62620985245},{"$f":"'[1]Gráfico REM'!BI327","v":7815.9148334544507},7.3581894402525716,5.0571671875917268,8.0849444713830607,4.4486580006350085,213683.98539811419,{"$f":"'[1]Gráfico REM'!BK327","v":25948.060831457293},{"$f":"'[1]Gráfico REM'!BL327","v":156653.82601308243},{"$f":"'[1]Gráfico REM'!BM327","v":31082.098553574458},6.3452753402333473,4.7993618420242523,8.2330208957225537,-1.1284758623255509]
[2017,"enero","2017-enero",{"$f":"IF('[1]REAL IPC(M)'!$AL334=\"\",\"\",+'[1]REAL IPC(M)'!$AL334)","v":2.5610211214753376},{"$f":"IF('[1]REAL IPC(M)'!$BE334=\"\",\"\",+'[1]REAL IPC(M)'!$BE334)","v":2.7504327613428137},{"$f":"IF('[1]REAL IPC(M)'!$AM334=\"\",\"\",+'[1]REAL IPC(M)'!$AM334)","v":2.257119148477349},{"$f":"IF('[1]REAL IPC(M)'!$BI334=\"\",\"\",+'[1]REAL IPC(M)'!$BI334)","v":2.5347304524537373},{"$f":"IF('[1]REAL IMAE(M)'!BJ334=\"\",\"\",'[1]REAL IMAE(M)'!BJ334)","v":4.7823501877655383},{"$f":"IF('[1]REAL IMAE(M)'!BK334=\"\",\"\",'[1]REAL IMAE(M)'!BK334)","v":4.4767279886076983},{"$f":"IF('[1]REAL IMAE(M)'!BN334=\"\",\"\",'[1]REAL IMAE(M)'!BN334)","v":5.0643381750916427},{"$f":"IF('[1]REAL IMAE(M)'!BO334=\"\",\"\",'[1]REAL IMAE(M)'!BO334)","v":4.5085590702215406},{"$f":"IF('[1]EXT RIN(M)'!$K334=\"\",\"\",'[1]EXT RIN(M)'!$K334)","v":33044.776185614988},null,{"$f":"IF('[1]EXT RIN(M)'!$L334=\"\",\"\",'[1]EXT RIN(M)'!$L334)","v":37365.651209194984},{"$f":"IF(B327<>\"diciembre\",\"\",N327)","v":""},{"$f":"IF('[1]MONE(M)CARD'!EG334=\"\",\"\",'[1]MONE(M)CARD'!EG334)","v":34614.87542151149},{"$f":"IF('[1]MONE(M)CARD'!EK334=\"\",\"\",'[1]MONE(M)CARD'!EK334)","v":52324.003900436859},{"$f":"IF('[1]MONE(M)CARD'!EP334=\"\",\"\",'[1]MONE(M)CARD'!EP334)","v":29886.596062956174},{"$f":"IF('[1]MONE(M)CARD'!ES334=\"\",\"\",'[1]MONE(M)CARD'!ES334)","v":6.5202590168383034},{"$f":"IF('[1]MONE(M)CARD'!EV334=\"\",\"\",'[1]MONE(M)CARD'!EV334)","v":5.8167503455399006},{"$f":"IF('[1]MONE(M)CARD'!EZ334=\"\",\"\",'[1]MONE(M)CARD'!EZ334)","v":6.0326013281452484},{"$f":"IF('[1]MONE(M)CAPARD'!FC334=\"\",\"\",'[1]MONE(M)CAPARD'!FC334)","v":42735.869722811483},{"$f":"IF('[1]MONE(M)CAPARD'!FG334=\"\",\"\",'[1]MONE(M)CAPARD'!FG334)","v":82567.265475476859},{"$f":"IF('[1]MONE(M)CAPARD'!FL334=\"\",\"\",'[1]MONE(M)CAPARD'!FL334)","v":29886.596062956174},{"$f":"IF('[1]MONE(M)CAPARD'!FO334=\"\",\"\",'[1]MONE(M)CAPARD'!FO334)","v":5.0421400362399504},{"$f":"IF('[1]MONE(M)CAPARD'!FR334=\"\",\"\",'[1]MONE(M)CAPARD'!FR334)","v":5.4376081963053213},{"$f":"IF('[1]MONE(M)CAPARD'!FV334=\"\",\"\",'[1]MONE(M)CAPARD'!FV334)","v":5.6718815367561737},{"$f":"IF('[1]MONE(M)CARD'!FV334=\"\",\"\",'[1]MONE(M)CARD'!FV334)","v":1632.385001823608},{"$f":"IF('[1]MONE(M)CARD'!GD334=\"\",\"\",'[1]MONE(M)CARD'!GD334)","v":82.448722124167787},{"$f":"IF('[1]MONE(M)CARD'!GE334=\"\",\"\",'[1]MONE(M)CARD'!GE334)","v":9824.2902511610973},21.90131570496343,{"$f":"IF('[9]II.2.Balance OSD-Activos'!J192=\"\",\"\",'[9]II.2.Balance OSD-Activos'!J192)","v":201.64069126045445},{"$f":"IF('[9]II.2.Balance OSD-Activos'!N192=\"\",\"\",'[9]II.2.Balance OSD-Activos'!N192)","v":1012.3096297746847},{"$f":"IF('[9]II.2.Balance OSD-Activos'!R192=\"\",\"\",'[9]II.2.Balance OSD-Activos'!R192)","v":50095.76725820273},{"$f":"IF('[9]II.2.Balance OSD-Activos'!S192=\"\",\"\",'[9]II.2.Balance OSD-Activos'!S192)","v":54326.197636648547},50297.407949463188,{"$f":"IF(OR(AF327=\"\",AG327=\"\",AH327=\"\",AI327=\"\"),\"\",SUM(AF327:AI327))","v":105635.91521588642},{"$f":"IF(OR(AF327=\"\",AF315=\"\"),\"\",((AF327/AF315)-1)*100)","v":-1.7825720302886428},{"$f":"IF(OR(AJ327=\"\",AJ315=\"\"),\"\",((AJ327/AJ315)-1)*100)","v":7.8309675199641937},{"$f":"IF(OR(AG327=\"\",AG315=\"\"),\"\",((AG327/AG315)-1)*100)","v":1.481333874905677},{"$f":"IF(OR(AH327=\"\",AH315=\"\"),\"\",((AH327/AH315)-1)*100)","v":7.8734672864139155},{"$f":"IF(OR(AI327=\"\",AI315=\"\"),\"\",((AI327/AI315)-1)*100)","v":9.74519252192807},{"$f":"IF(OR(AK327=\"\",AK315=\"\"),\"\",((AK327/AK315)-1)*100)","v":8.741203117763451},{"$f":"IF(OR(AQ327=\"\",AQ326=\"\"),\"\",AQ327-AQ326)","v":0.29948074608330089},{"$f":"IF('[1]MONE(M)CAPARD'!GS334=\"\",\"\",'[1]MONE(M)CAPARD'!GS334)","v":20284.751131508176},{"$f":"IF('[1]MONE(M)CARD'!HA334=\"\",\"\",'[1]MONE(M)CAPARD'!HA334)","v":11618.192013301097},{"$f":"IF('[1]MONE(M)CAPARD'!HB334=\"\",\"\",'[1]MONE(M)CAPARD'!HB334)","v":8666.5591182070784},"n.d.",{"$f":"IF('[10]II.2.Balance OSD-Activos'!J192=\"\",\"\",'[10]II.2.Balance OSD-Activos'!J192)","v":2111.9255453104547},{"$f":"IF('[10]II.2.Balance OSD-Activos'!N192=\"\",\"\",'[10]II.2.Balance OSD-Activos'!N192)","v":1515.5621076846846},{"$f":"IF('[10]II.2.Balance OSD-Activos'!R192=\"\",\"\",'[10]II.2.Balance OSD-Activos'!R192)","v":72564.787414542719},{"$f":"IF('[10]II.2.Balance OSD-Activos'!S192=\"\",\"\",'[10]II.2.Balance OSD-Activos'!S192)","v":75713.97863116856},74676.712959853176,{"$f":"IF(OR(AW327=\"\",AX327=\"\",AY327=\"\",AZ327=\"\"),\"\",SUM(AW327:AZ327))","v":151906.25369870642},{"$f":"IF(OR(AW327=\"\",AW315=\"\"),\"\",((AW327/AW315)-1)*100)","v":13.361976745418747},{"$f":"IF(OR(BA327=\"\",BA315=\"\"),\"\",((BA327/BA315)-1)*100)","v":6.9551208704283995},{"$f":"IF(OR(AX327=\"\",AX315=\"\"),\"\",((AX327/AX315)-1)*100)","v":3.4115613157040814},{"$f":"IF(OR(AY327=\"\",AY315=\"\"),\"\",((AY327/AY315)-1)*100)","v":6.7794830519856797},{"$f":"IF(OR(AZ327=\"\",AZ315=\"\"),\"\",((AZ327/AZ315)-1)*100)","v":10.501395555433612},{"$f":"IF(OR(BB327=\"\",BB315=\"\"),\"\",((BB327/BB315)-1)*100)","v":8.6560100155822717},{"$f":"IF(OR(BH327=\"\",BH326=\"\"),\"\",BH327-BH326)","v":9.731356704372196E-2},{"$f":"IF('[1]MONE(M)CAPARD'!AS334=\"\",\"\",'[1]MONE(M)CAPARD'!AS334)","v":1.75},{"$f":"IF('[1]MONE(M)CAPARD'!AT334=\"\",\"\",'[1]MONE(M)CAPARD'!AT334)","v":"n.a."},{"$f":"IF('[1]MONE(M)CAPARD'!AU334=\"\",\"\",'[1]MONE(M)CAPARD'!AU334)","v":3},{"$f":"IF('[1]MONE(M)CAPARD'!AV334=\"\",\"\",'[1]MONE(M)CAPARD'!AV334)","v":5.5},{"$f":"IF('[1]MONE(M)CAPARD'!AW334=\"\",\"\",'[1]MONE(M)CAPARD'!AW334)","v":"n.a."},{"$f":"IF('[1]MONE(M)CAPARD'!AX334=\"\",\"\",'[1]MONE(M)CAPARD'!AX334)","v":5.5},{"$f":"IF('[1]MONE(M)CAPARD'!AY334=\"\",\"\",'[1]MONE(M)CAPARD'!AY334)","v":"n.a."},{"$f":"IF('[1]FISCAL(M)'!$K334=\"\",\"\",'[1]FISCAL(M)'!$K334)","v":-156.8414207034983},{"$f":"IF('[1]FISCAL(M)'!$L334=\"\",\"\",'[1]FISCAL(M)'!$L334)","v":"n.d."},{"$f":"IF('[1]FISCAL(M)'!$AY334=\"\",\"\",'[1]FISCAL(M)'!$AY334)","v":121537.58010391938},{"$f":"IF('[1]FISCAL(M)'!$BI334=\"\",\"\",'[1]FISCAL(M)'!$BI334)","v":62279.511022161416},{"$f":"IF('[1]FISCAL(M)'!$BS334=\"\",\"\",'[1]FISCAL(M)'!$BS334)","v":59258.069081757945},{"$f":"IF('[1]FISCAL(M)'!$AZ334=\"\",\"\",'[1]FISCAL(M)'!$AZ334)","v":143390.04010391937},{"$f":"IF('[1]FISCAL(M)'!$BJ334=\"\",\"\",'[1]FISCAL(M)'!$BJ334)","v":66953.751022161421},{"$f":"IF('[1]FISCAL(M)'!$BT334=\"\",\"\",'[1]FISCAL(M)'!$BT334)","v":76436.289081757961},{"$f":"IF('[2]MONE(M)'!$AO334=\"\",\"\",'[2]MONE(M)'!$AO334)","v":20177428.223648056},{"$f":"IF('[3]MONE(M)'!$AO334=\"\",\"\",'[3]MONE(M)'!$AO334)","v":11709.948501810002},{"$f":"IF('[4]MONE(M)'!$AO334=\"\",\"\",'[4]MONE(M)'!$AO334)","v":189078.5473289947},{"$f":"IF('[5]MONE(M)'!$AO334=\"\",\"\",'[5]MONE(M)'!$AO334)","v":287906.55593196064},{"$f":"IF('[6]MONE(M)'!$AO334=\"\",\"\",'[6]MONE(M)'!$AO334)","v":141163.63279584007},{"$f":"IF('[7]MONE(M)'!$AO334=\"\",\"\",'[7]MONE(M)'!$AO334)","v":913799.20926712011},{"$f":"IF('[8]MONE(M)'!$AO334=\"\",\"\",'[8]MONE(M)'!$AO334)","v":47099.756926850008},12.552297027231463,5.3623662092741053,6.1780908224726483,11.708501814766903,18.663532732878551,11.321829171175658,8.2779128203285488,{"$f":"'[1]FISCAL(M)'!$K334","v":-156.8414207034983},{"$f":"+'[1]REAL(A)'!$AO$37","v":271971.90837527614},{"$f":"IF(OR(CM327=\"n.d.\",CM327=\"\",CN327=\"\",CN327=\"n.d.\"),\"\",(CM327/CN327)*100)","v":-5.7668242885983344E-2},{"$f":"IF('[1]FISCAL(M)'!$L334=\"\",\"\",'[1]FISCAL(M)'!$L334)","v":"n.d."},{"$f":"+'[1]REAL(A)'!$AP$37","v":334190.95637527615},"n.d.",{"$f":"+IF(OR(CT327=\"\",+CU327=\"\",+CV327=\"\"),\"\",(CT327+CU327+CV327))","v":142713.1515721895},{"$f":"'[1]Gráfico REM'!BG328","v":24668.934267616478},{"$f":"'[1]Gráfico REM'!BH328","v":110284.64627854945},{"$f":"'[1]Gráfico REM'!BI328","v":7759.5710260235537},{"$f":"IFERROR(+((CS327/CS315)-1)*100,\"\")","v":7.8950366341676848},{"$f":"IFERROR(+((CT327/CT315)-1)*100,\"\")","v":6.4280315661976006},{"$f":"IFERROR(+((CU327/CU315)-1)*100,\"\")","v":8.4642719001308819},{"$f":"IFERROR(+((CV327/CV315)-1)*100,\"\")","v":4.674342058601666},{"$f":"+IF(OR(DB327=\"\",+DC327=\"\",+DD327=\"\"),\"\",(DB327+DC327+DD327))","v":214826.3608346995},{"$f":"'[1]Gráfico REM'!BK328","v":26880.365659866478},{"$f":"'[1]Gráfico REM'!BL328","v":157384.40320539946},{"$f":"'[1]Gráfico REM'!BM328","v":30561.591969433553},{"$f":"IFERROR(+((DA327/DA315)-1)*100,\"\")","v":6.6251066461802566},{"$f":"IFERROR(+((DB327/DB315)-1)*100,\"\")","v":5.8437761374354524},{"$f":"IFERROR(+((DC327/DC315)-1)*100,\"\")","v":8.4084337880647944},{"$f":"IFERROR(+((DD327/DD315)-1)*100,\"\")","v":-1.1101516095553099}]
[2017,"febrero","2017-febrero",{"$f":"IF('[1]REAL IPC(M)'!$AL335=\"\",\"\",+'[1]REAL IPC(M)'!$AL335)","v":3.1018561743815898},{"$f":"IF('[1]REAL IPC(M)'!$BE335=\"\",\"\",+'[1]REAL IPC(M)'!$BE335)","v":2.7778518637945782},{"$f":"IF('[1]REAL IPC(M)'!$AM335=\"\",\"\",+'[1]REAL IPC(M)'!$AM335)","v":2.7793274245590194},{"$f":"IF('[1]REAL IPC(M)'!$BI335=\"\",\"\",+'[1]REAL IPC(M)'!$BI335)","v":2.5591665182777446},{"$f":"IF('[1]REAL IMAE(M)'!BJ335=\"\",\"\",'[1]REAL IMAE(M)'!BJ335)","v":4.4872915754677223},{"$f":"IF('[1]REAL IMAE(M)'!BK335=\"\",\"\",'[1]REAL IMAE(M)'!BK335)","v":4.4454623240058444},{"$f":"IF('[1]REAL IMAE(M)'!BN335=\"\",\"\",'[1]REAL IMAE(M)'!BN335)","v":5.0080791508532396},{"$f":"IF('[1]REAL IMAE(M)'!BO335=\"\",\"\",'[1]REAL IMAE(M)'!BO335)","v":4.480172536139615},{"$f":"IF('[1]EXT RIN(M)'!$K335=\"\",\"\",'[1]EXT RIN(M)'!$K335)","v":33412.314968429993},null,{"$f":"IF('[1]EXT RIN(M)'!$L335=\"\",\"\",'[1]EXT RIN(M)'!$L335)","v":37634.337514009996},"",{"$f":"IF('[1]MONE(M)CARD'!EG335=\"\",\"\",'[1]MONE(M)CARD'!EG335)","v":34685.208943653488},{"$f":"IF('[1]MONE(M)CARD'!EK335=\"\",\"\",'[1]MONE(M)CARD'!EK335)","v":53093.58854114222},{"$f":"IF('[1]MONE(M)CARD'!EP335=\"\",\"\",'[1]MONE(M)CARD'!EP335)","v":30516.833696575122},{"$f":"IF('[1]MONE(M)CARD'!ES335=\"\",\"\",'[1]MONE(M)CARD'!ES335)","v":5.9201955891696745},{"$f":"IF('[1]MONE(M)CARD'!EV335=\"\",\"\",'[1]MONE(M)CARD'!EV335)","v":5.7427910820844419},{"$f":"IF('[1]MONE(M)CARD'!EZ335=\"\",\"\",'[1]MONE(M)CARD'!EZ335)","v":6.147238998355542},{"$f":"IF('[1]MONE(M)CAPARD'!FC335=\"\",\"\",'[1]MONE(M)CAPARD'!FC335)","v":42743.427654363491},{"$f":"IF('[1]MONE(M)CAPARD'!FG335=\"\",\"\",'[1]MONE(M)CAPARD'!FG335)","v":83635.030470872225},{"$f":"IF('[1]MONE(M)CAPARD'!FL335=\"\",\"\",'[1]MONE(M)CAPARD'!FL335)","v":30516.833696575137},{"$f":"IF('[1]MONE(M)CAPARD'!FO335=\"\",\"\",'[1]MONE(M)CAPARD'!FO335)","v":4.6447586767995874},{"$f":"IF('[1]MONE(M)CAPARD'!FR335=\"\",\"\",'[1]MONE(M)CAPARD'!FR335)","v":5.5719087239135545},{"$f":"IF('[1]MONE(M)CAPARD'!FV335=\"\",\"\",'[1]MONE(M)CAPARD'!FV335)","v":5.9089670431988539},{"$f":"IF('[1]MONE(M)CARD'!FV335=\"\",\"\",'[1]MONE(M)CARD'!FV335)","v":1593.1522354076235},{"$f":"IF('[1]MONE(M)CARD'!GD335=\"\",\"\",'[1]MONE(M)CARD'!GD335)","v":88.054572029437537},{"$f":"IF('[1]MONE(M)CARD'!GE335=\"\",\"\",'[1]MONE(M)CARD'!GE335)","v":9947.1936628444364},14.76909456717368,{"$f":"IF('[9]II.2.Balance OSD-Activos'!J193=\"\",\"\",'[9]II.2.Balance OSD-Activos'!J193)","v":309.2161106531841},{"$f":"IF('[9]II.2.Balance OSD-Activos'!N193=\"\",\"\",'[9]II.2.Balance OSD-Activos'!N193)","v":975.58435251991011},{"$f":"IF('[9]II.2.Balance OSD-Activos'!R193=\"\",\"\",'[9]II.2.Balance OSD-Activos'!R193)","v":50272.039094732019},{"$f":"IF('[9]II.2.Balance OSD-Activos'!S193=\"\",\"\",'[9]II.2.Balance OSD-Activos'!S193)","v":54530.377353810502},50581.255205385205,{"$f":"IF(OR(AF328=\"\",AG328=\"\",AH328=\"\",AI328=\"\"),\"\",SUM(AF328:AI328))","v":106087.21691171562},{"$f":"IF(OR(AF328=\"\",AF316=\"\"),\"\",((AF328/AF316)-1)*100)","v":43.23647993467852},{"$f":"IF(OR(AJ328=\"\",AJ316=\"\"),\"\",((AJ328/AJ316)-1)*100)","v":7.9454810476247362},{"$f":"IF(OR(AG328=\"\",AG316=\"\"),\"\",((AG328/AG316)-1)*100)","v":-1.2470452920152253},{"$f":"IF(OR(AH328=\"\",AH316=\"\"),\"\",((AH328/AH316)-1)*100)","v":7.7821409805206576},{"$f":"IF(OR(AI328=\"\",AI316=\"\"),\"\",((AI328/AI316)-1)*100)","v":9.4700644677971013},{"$f":"IF(OR(AK328=\"\",AK316=\"\"),\"\",((AK328/AK316)-1)*100)","v":8.6301362811351368},{"$f":"IF(OR(AQ328=\"\",AQ327=\"\"),\"\",AQ328-AQ327)","v":-0.11106683662831429},{"$f":"IF('[1]MONE(M)CAPARD'!GS335=\"\",\"\",'[1]MONE(M)CAPARD'!GS335)","v":20082.338015572019},{"$f":"IF('[1]MONE(M)CARD'!HA335=\"\",\"\",'[1]MONE(M)CAPARD'!HA335)","v":11736.679790334438},{"$f":"IF('[1]MONE(M)CAPARD'!HB335=\"\",\"\",'[1]MONE(M)CAPARD'!HB335)","v":8345.6582252375811},"n.d.",{"$f":"IF('[10]II.2.Balance OSD-Activos'!J193=\"\",\"\",'[10]II.2.Balance OSD-Activos'!J193)","v":2221.4057643231836},{"$f":"IF('[10]II.2.Balance OSD-Activos'!N193=\"\",\"\",'[10]II.2.Balance OSD-Activos'!N193)","v":1459.52473109991},{"$f":"IF('[10]II.2.Balance OSD-Activos'!R193=\"\",\"\",'[10]II.2.Balance OSD-Activos'!R193)","v":72854.885873552019},{"$f":"IF('[10]II.2.Balance OSD-Activos'!S193=\"\",\"\",'[10]II.2.Balance OSD-Activos'!S193)","v":76078.796206710496},75076.291637875198,{"$f":"IF(OR(AW328=\"\",AX328=\"\",AY328=\"\",AZ328=\"\"),\"\",SUM(AW328:AZ328))","v":152614.61257568561},{"$f":"IF(OR(AW328=\"\",AW316=\"\"),\"\",((AW328/AW316)-1)*100)","v":21.557962031748712},{"$f":"IF(OR(BA328=\"\",BA316=\"\"),\"\",((BA328/BA316)-1)*100)","v":7.2406321088602343},{"$f":"IF(OR(AX328=\"\",AX316=\"\"),\"\",((AX328/AX316)-1)*100)","v":1.1375851393143455},{"$f":"IF(OR(AY328=\"\",AY316=\"\"),\"\",((AY328/AY316)-1)*100)","v":6.856880396964149},{"$f":"IF(OR(AZ328=\"\",AZ316=\"\"),\"\",((AZ328/AZ316)-1)*100)","v":10.27955270558023},{"$f":"IF(OR(BB328=\"\",BB316=\"\"),\"\",((BB328/BB316)-1)*100)","v":8.6707281597345975},{"$f":"IF(OR(BH328=\"\",BH327=\"\"),\"\",BH328-BH327)","v":1.4718144152325863E-2},{"$f":"IF('[1]MONE(M)CAPARD'!AS335=\"\",\"\",'[1]MONE(M)CAPARD'!AS335)","v":1.75},{"$f":"IF('[1]MONE(M)CAPARD'!AT335=\"\",\"\",'[1]MONE(M)CAPARD'!AT335)","v":"n.a."},{"$f":"IF('[1]MONE(M)CAPARD'!AU335=\"\",\"\",'[1]MONE(M)CAPARD'!AU335)","v":3},{"$f":"IF('[1]MONE(M)CAPARD'!AV335=\"\",\"\",'[1]MONE(M)CAPARD'!AV335)","v":5.5},{"$f":"IF('[1]MONE(M)CAPARD'!AW335=\"\",\"\",'[1]MONE(M)CAPARD'!AW335)","v":"n.a."},{"$f":"IF('[1]MONE(M)CAPARD'!AX335=\"\",\"\",'[1]MONE(M)CAPARD'!AX335)","v":5.5},{"$f":"IF('[1]MONE(M)CAPARD'!AY335=\"\",\"\",'[1]MONE(M)CAPARD'!AY335)","v":"n.a."},{"$f":"IF('[1]FISCAL(M)'!$K335=\"\",\"\",'[1]FISCAL(M)'!$K335)","v":-740.07230995616771},{"$f":"IF('[1]FISCAL(M)'!$L335=\"\",\"\",'[1]FISCAL(M)'!$L335)","v":"n.d."},{"$f":"IF('[1]FISCAL(M)'!$AY335=\"\",\"\",'[1]FISCAL(M)'!$AY335)","v":121980.72847373967},{"$f":"IF('[1]FISCAL(M)'!$BI335=\"\",\"\",'[1]FISCAL(M)'!$BI335)","v":62225.330411333649},{"$f":"IF('[1]FISCAL(M)'!$BS335=\"\",\"\",'[1]FISCAL(M)'!$BS335)","v":59755.398062406006},{"$f":"IF('[1]FISCAL(M)'!$AZ335=\"\",\"\",'[1]FISCAL(M)'!$AZ335)","v":143823.35847373964},{"$f":"IF('[1]FISCAL(M)'!$BJ335=\"\",\"\",'[1]FISCAL(M)'!$BJ335)","v":66923.55041133365},{"$f":"IF('[1]FISCAL(M)'!$BT335=\"\",\"\",'[1]FISCAL(M)'!$BT335)","v":76899.808062406009},{"$f":"IF('[2]MONE(M)'!$AO335=\"\",\"\",'[2]MONE(M)'!$AO335)","v":20424131.730795618},{"$f":"IF('[3]MONE(M)'!$AO335=\"\",\"\",'[3]MONE(M)'!$AO335)","v":11766.23536947},{"$f":"IF('[4]MONE(M)'!$AO335=\"\",\"\",'[4]MONE(M)'!$AO335)","v":189809.82006513659},{"$f":"IF('[5]MONE(M)'!$AO335=\"\",\"\",'[5]MONE(M)'!$AO335)","v":287165.88838227803},{"$f":"IF('[6]MONE(M)'!$AO335=\"\",\"\",'[6]MONE(M)'!$AO335)","v":141120.77626893445},{"$f":"IF('[7]MONE(M)'!$AO335=\"\",\"\",'[7]MONE(M)'!$AO335)","v":922055.72451972007},{"$f":"IF('[8]MONE(M)'!$AO335=\"\",\"\",'[8]MONE(M)'!$AO335)","v":47395.471402990006},13.288628839563966,5.9313727421131501,6.1751688690227402,9.8541488446404415,17.390242563248549,11.829734286162896,8.6213152908029667,{"$f":"'[1]FISCAL(M)'!$K335","v":-740.07230995616771},{"$f":"+'[1]REAL(A)'!$AO$37","v":271971.90837527614},-0.27211351142008039,{"$f":"IF('[1]FISCAL(M)'!$L335=\"\",\"\",'[1]FISCAL(M)'!$L335)","v":"n.d."},{"$f":"+'[1]REAL(A)'!$AP$37","v":334190.95637527615},"n.d.",143338.37538270126,{"$f":"'[1]Gráfico REM'!BG329","v":24691.482335635992},{"$f":"'[1]Gráfico REM'!BH329","v":110854.67299328283},{"$f":"'[1]Gráfico REM'!BI329","v":7792.2200537824283},7.3783479528574336,3.9864269778127959,8.3577571188475197,4.7362333265934753,215718.48791495126,{"$f":"'[1]Gráfico REM'!BK329","v":26943.257231865991},{"$f":"'[1]Gráfico REM'!BL329","v":158250.14439627284},{"$f":"'[1]Gráfico REM'!BM329","v":30525.086286812435},6.3238989279992275,3.7909658868226614,8.4365577841797101,-1.5030576937982043]
[2017,"marzo","2017-marzo",{"$f":"IF('[1]REAL IPC(M)'!$AL336=\"\",\"\",+'[1]REAL IPC(M)'!$AL336)","v":3.1321001415056005},{"$f":"IF('[1]REAL IPC(M)'!$BE336=\"\",\"\",+'[1]REAL IPC(M)'!$BE336)","v":2.8059415579166247},{"$f":"IF('[1]REAL IPC(M)'!$AM336=\"\",\"\",+'[1]REAL IPC(M)'!$AM336)","v":2.7884633167021722},{"$f":"IF('[1]REAL IPC(M)'!$BI336=\"\",\"\",+'[1]REAL IPC(M)'!$BI336)","v":2.5846185213467265},{"$f":"IF('[1]REAL IMAE(M)'!BJ336=\"\",\"\",'[1]REAL IMAE(M)'!BJ336)","v":4.2449795326187756},{"$f":"IF('[1]REAL IMAE(M)'!BK336=\"\",\"\",'[1]REAL IMAE(M)'!BK336)","v":4.4137425139028519},{"$f":"IF('[1]REAL IMAE(M)'!BN336=\"\",\"\",'[1]REAL IMAE(M)'!BN336)","v":4.8253664905092419},{"$f":"IF('[1]REAL IMAE(M)'!BO336=\"\",\"\",'[1]REAL IMAE(M)'!BO336)","v":4.4507067493363417},{"$f":"IF('[1]EXT RIN(M)'!$K336=\"\",\"\",'[1]EXT RIN(M)'!$K336)","v":33175.574172114153},null,{"$f":"IF('[1]EXT RIN(M)'!$L336=\"\",\"\",'[1]EXT RIN(M)'!$L336)","v":36932.662457524151},{"$f":"IF(B329<>\"diciembre\",\"\",N329)","v":""},{"$f":"IF('[1]MONE(M)CARD'!EG336=\"\",\"\",'[1]MONE(M)CARD'!EG336)","v":34419.187287401001},{"$f":"IF('[1]MONE(M)CARD'!EK336=\"\",\"\",'[1]MONE(M)CARD'!EK336)","v":54007.426992647495},{"$f":"IF('[1]MONE(M)CARD'!EP336=\"\",\"\",'[1]MONE(M)CARD'!EP336)","v":30801.740199457548},{"$f":"IF('[1]MONE(M)CARD'!ES336=\"\",\"\",'[1]MONE(M)CARD'!ES336)","v":4.4517596126419923},{"$f":"IF('[1]MONE(M)CARD'!EV336=\"\",\"\",'[1]MONE(M)CARD'!EV336)","v":5.7930590344218658},{"$f":"IF('[1]MONE(M)CARD'!EZ336=\"\",\"\",'[1]MONE(M)CARD'!EZ336)","v":5.9685238399048268},{"$f":"IF('[1]MONE(M)CAPARD'!FC336=\"\",\"\",'[1]MONE(M)CAPARD'!FC336)","v":42413.056702811002},{"$f":"IF('[1]MONE(M)CAPARD'!FG336=\"\",\"\",'[1]MONE(M)CAPARD'!FG336)","v":84710.122307227488},{"$f":"IF('[1]MONE(M)CAPARD'!FL336=\"\",\"\",'[1]MONE(M)CAPARD'!FL336)","v":30801.740199457534},{"$f":"IF('[1]MONE(M)CAPARD'!FO336=\"\",\"\",'[1]MONE(M)CAPARD'!FO336)","v":3.427328744814373},{"$f":"IF('[1]MONE(M)CAPARD'!FR336=\"\",\"\",'[1]MONE(M)CAPARD'!FR336)","v":5.4730411902825793},{"$f":"IF('[1]MONE(M)CAPARD'!FV336=\"\",\"\",'[1]MONE(M)CAPARD'!FV336)","v":5.6670772791698187},{"$f":"IF('[1]MONE(M)CARD'!FV336=\"\",\"\",'[1]MONE(M)CARD'!FV336)","v":1545.8303177373809},{"$f":"IF('[1]MONE(M)CARD'!GD336=\"\",\"\",'[1]MONE(M)CARD'!GD336)","v":70.869565628607518},{"$f":"IF('[1]MONE(M)CARD'!GE336=\"\",\"\",'[1]MONE(M)CARD'!GE336)","v":10332.049121686556},17.68023503919953,{"$f":"IF('[9]II.2.Balance OSD-Activos'!J194=\"\",\"\",'[9]II.2.Balance OSD-Activos'!J194)","v":230.74806064553326},{"$f":"IF('[9]II.2.Balance OSD-Activos'!N194=\"\",\"\",'[9]II.2.Balance OSD-Activos'!N194)","v":1005.2724906204434},{"$f":"IF('[9]II.2.Balance OSD-Activos'!R194=\"\",\"\",'[9]II.2.Balance OSD-Activos'!R194)","v":50355.089174717235},{"$f":"IF('[9]II.2.Balance OSD-Activos'!S194=\"\",\"\",'[9]II.2.Balance OSD-Activos'!S194)","v":54829.848813770688},50585.837235362771,106420.95853975389,{"$f":"IF(OR(AF329=\"\",AF317=\"\"),\"\",((AF329/AF317)-1)*100)","v":10.04238893860081},{"$f":"IF(OR(AJ329=\"\",AJ317=\"\"),\"\",((AJ329/AJ317)-1)*100)","v":7.8230861853701539},{"$f":"IF(OR(AG329=\"\",AG317=\"\"),\"\",((AG329/AG317)-1)*100)","v":3.1771680512463263},{"$f":"IF(OR(AH329=\"\",AH317=\"\"),\"\",((AH329/AH317)-1)*100)","v":7.8131224345890482},{"$f":"IF(OR(AI329=\"\",AI317=\"\"),\"\",((AI329/AI317)-1)*100)","v":9.5673686715957107},{"$f":"IF(OR(AK329=\"\",AK317=\"\"),\"\",((AK329/AK317)-1)*100)","v":8.6681724352084988},{"$f":"IF(OR(AQ329=\"\",AQ328=\"\"),\"\",AQ329-AQ328)","v":3.8036154073362027E-2},{"$f":"IF('[1]MONE(M)CAPARD'!GS336=\"\",\"\",'[1]MONE(M)CAPARD'!GS336)","v":20307.30808615471},{"$f":"IF('[1]MONE(M)CARD'!HA336=\"\",\"\",'[1]MONE(M)CAPARD'!HA336)","v":12149.009025906558},{"$f":"IF('[1]MONE(M)CAPARD'!HB336=\"\",\"\",'[1]MONE(M)CAPARD'!HB336)","v":8158.2990602481514},"n.d.",{"$f":"IF('[10]II.2.Balance OSD-Activos'!J194=\"\",\"\",'[10]II.2.Balance OSD-Activos'!J194)","v":2125.7741216155337},{"$f":"IF('[10]II.2.Balance OSD-Activos'!N194=\"\",\"\",'[10]II.2.Balance OSD-Activos'!N194)","v":1479.0342117904434},{"$f":"IF('[10]II.2.Balance OSD-Activos'!R194=\"\",\"\",'[10]II.2.Balance OSD-Activos'!R194)","v":73124.559587497235},{"$f":"IF('[10]II.2.Balance OSD-Activos'!S194=\"\",\"\",'[10]II.2.Balance OSD-Activos'!S194)","v":76520.803476780682},{"$f":"IFERROR(+AW329+AY329,\"\")","v":75250.333709112776},153250.17139768391,10.992926709831629,7.172824266046729,3.7084279769123096,7.0657009708553487,10.233900118261818,8.6442107346629058,-2.6517425071691747E-2,{"$f":"IF('[1]MONE(M)CAPARD'!AS336=\"\",\"\",'[1]MONE(M)CAPARD'!AS336)","v":1.75},{"$f":"IF('[1]MONE(M)CAPARD'!AT336=\"\",\"\",'[1]MONE(M)CAPARD'!AT336)","v":"n.a."},{"$f":"IF('[1]MONE(M)CAPARD'!AU336=\"\",\"\",'[1]MONE(M)CAPARD'!AU336)","v":3},{"$f":"IF('[1]MONE(M)CAPARD'!AV336=\"\",\"\",'[1]MONE(M)CAPARD'!AV336)","v":5.5},{"$f":"IF('[1]MONE(M)CAPARD'!AW336=\"\",\"\",'[1]MONE(M)CAPARD'!AW336)","v":"n.a."},{"$f":"IF('[1]MONE(M)CAPARD'!AX336=\"\",\"\",'[1]MONE(M)CAPARD'!AX336)","v":5.5},{"$f":"IF('[1]MONE(M)CAPARD'!AY336=\"\",\"\",'[1]MONE(M)CAPARD'!AY336)","v":"n.a."},{"$f":"IF('[1]FISCAL(M)'!$K336=\"\",\"\",'[1]FISCAL(M)'!$K336)","v":-1147.5246243339132},{"$f":"IF('[1]FISCAL(M)'!$L336=\"\",\"\",'[1]FISCAL(M)'!$L336)","v":-1417.5246243339132},{"$f":"IF('[1]FISCAL(M)'!$AY336=\"\",\"\",'[1]FISCAL(M)'!$AY336)","v":123090.5821691702},{"$f":"IF('[1]FISCAL(M)'!$BI336=\"\",\"\",'[1]FISCAL(M)'!$BI336)","v":63310.060022184625},{"$f":"IF('[1]FISCAL(M)'!$BS336=\"\",\"\",'[1]FISCAL(M)'!$BS336)","v":59780.522146985561},{"$f":"IF('[1]FISCAL(M)'!$AZ336=\"\",\"\",'[1]FISCAL(M)'!$AZ336)","v":145054.37216917018},{"$f":"IF('[1]FISCAL(M)'!$BJ336=\"\",\"\",'[1]FISCAL(M)'!$BJ336)","v":68165.68002218465},{"$f":"IF('[1]FISCAL(M)'!$BT336=\"\",\"\",'[1]FISCAL(M)'!$BT336)","v":76888.692146985559},{"$f":"IF('[2]MONE(M)'!$AO336=\"\",\"\",'[2]MONE(M)'!$AO336)","v":20538235.212857462},{"$f":"IF('[3]MONE(M)'!$AO336=\"\",\"\",'[3]MONE(M)'!$AO336)","v":11747.937352540001},{"$f":"IF('[4]MONE(M)'!$AO336=\"\",\"\",'[4]MONE(M)'!$AO336)","v":190761.66439785584},{"$f":"IF('[5]MONE(M)'!$AO336=\"\",\"\",'[5]MONE(M)'!$AO336)","v":287562.16556094284},{"$f":"IF('[6]MONE(M)'!$AO336=\"\",\"\",'[6]MONE(M)'!$AO336)","v":143686.22663045669},{"$f":"IF('[7]MONE(M)'!$AO336=\"\",\"\",'[7]MONE(M)'!$AO336)","v":917970.35812075995},{"$f":"IF('[8]MONE(M)'!$AO336=\"\",\"\",'[8]MONE(M)'!$AO336)","v":47702.197122609999},12.723655259126442,5.399506780663188,6.230662575921353,10.048236759155294,18.23098364465876,11.093472922634962,8.423458768856861,{"$f":"'[1]FISCAL(M)'!$K336","v":-1147.5246243339132},{"$f":"+'[1]REAL(A)'!$AO$37","v":271971.90837527614},-0.42192762891913066,{"$f":"IF('[1]FISCAL(M)'!$L336=\"\",\"\",'[1]FISCAL(M)'!$L336)","v":-1417.5246243339132},{"$f":"+'[1]REAL(A)'!$AP$37","v":334190.95637527615},-0.4241660635310906,144363.3600163399,{"$f":"'[1]Gráfico REM'!BG330","v":25228.94493005953},{"$f":"'[1]Gráfico REM'!BH330","v":111288.19586821445},{"$f":"'[1]Gráfico REM'!BI330","v":7846.219218065944},7.486138260480879,4.4665995177283202,8.311806982883251,5.8785485165853135,216596.41465464991,{"$f":"'[1]Gráfico REM'!BK330","v":27481.174421699528},{"$f":"'[1]Gráfico REM'!BL330","v":158990.39299082445},{"$f":"'[1]Gráfico REM'!BM330","v":30124.84724212595},6.1070279468496524,4.3198684423844114,8.3452819316446778,-2.9569594327124138]
[2017,"abril","2017-abril",{"$f":"IF('[1]REAL IPC(M)'!$AL337=\"\",\"\",+'[1]REAL IPC(M)'!$AL337)","v":3.3424807776815113},{"$f":"IF('[1]REAL IPC(M)'!$BE337=\"\",\"\",+'[1]REAL IPC(M)'!$BE337)","v":2.8343110697512275},{"$f":"IF('[1]REAL IPC(M)'!$AM337=\"\",\"\",+'[1]REAL IPC(M)'!$AM337)","v":2.9632161312381999},{"$f":"IF('[1]REAL IPC(M)'!$BI337=\"\",\"\",+'[1]REAL IPC(M)'!$BI337)","v":2.6107128037880623},{"$f":"IF('[1]REAL IMAE(M)'!BJ337=\"\",\"\",'[1]REAL IMAE(M)'!BJ337)","v":4.0036261411909857},{"$f":"IF('[1]REAL IMAE(M)'!BK337=\"\",\"\",'[1]REAL IMAE(M)'!BK337)","v":4.3817434855170978},{"$f":"IF('[1]REAL IMAE(M)'!BN337=\"\",\"\",'[1]REAL IMAE(M)'!BN337)","v":4.6335377175785952},{"$f":"IF('[1]REAL IMAE(M)'!BO337=\"\",\"\",'[1]REAL IMAE(M)'!BO337)","v":4.4202527499254129},{"$f":"IF('[1]EXT RIN(M)'!$K337=\"\",\"\",'[1]EXT RIN(M)'!$K337)","v":33550.562067516235},null,{"$f":"IF('[1]EXT RIN(M)'!$L337=\"\",\"\",'[1]EXT RIN(M)'!$L337)","v":37347.724861346236},"",{"$f":"IF('[1]MONE(M)CARD'!EG337=\"\",\"\",'[1]MONE(M)CARD'!EG337)","v":34685.607513796458},{"$f":"IF('[1]MONE(M)CARD'!EK337=\"\",\"\",'[1]MONE(M)CARD'!EK337)","v":54238.609255373514},{"$f":"IF('[1]MONE(M)CARD'!EP337=\"\",\"\",'[1]MONE(M)CARD'!EP337)","v":30483.434738589393},{"$f":"IF('[1]MONE(M)CARD'!ES337=\"\",\"\",'[1]MONE(M)CARD'!ES337)","v":5.6646072501689737},{"$f":"IF('[1]MONE(M)CARD'!EV337=\"\",\"\",'[1]MONE(M)CARD'!EV337)","v":6.4221084718457},{"$f":"IF('[1]MONE(M)CARD'!EZ337=\"\",\"\",'[1]MONE(M)CARD'!EZ337)","v":6.2796608432172718},{"$f":"IF('[1]MONE(M)CAPARD'!FC337=\"\",\"\",'[1]MONE(M)CAPARD'!FC337)","v":42645.540036856459},{"$f":"IF('[1]MONE(M)CAPARD'!FG337=\"\",\"\",'[1]MONE(M)CAPARD'!FG337)","v":85157.515406663515},{"$f":"IF('[1]MONE(M)CAPARD'!FL337=\"\",\"\",'[1]MONE(M)CAPARD'!FL337)","v":30483.434738589407},{"$f":"IF('[1]MONE(M)CAPARD'!FO337=\"\",\"\",'[1]MONE(M)CAPARD'!FO337)","v":4.7459515194018476},{"$f":"IF('[1]MONE(M)CAPARD'!FR337=\"\",\"\",'[1]MONE(M)CAPARD'!FR337)","v":6.0128189034446056},{"$f":"IF('[1]MONE(M)CAPARD'!FV337=\"\",\"\",'[1]MONE(M)CAPARD'!FV337)","v":5.9845687453171648},{"$f":"IF('[1]MONE(M)CARD'!FV337=\"\",\"\",'[1]MONE(M)CARD'!FV337)","v":1533.2226820744002},{"$f":"IF('[1]MONE(M)CARD'!GD337=\"\",\"\",'[1]MONE(M)CARD'!GD337)","v":167.70983751832864},{"$f":"IF('[1]MONE(M)CARD'!GE337=\"\",\"\",'[1]MONE(M)CARD'!GE337)","v":11528.38828044949},25.38197534241009,{"$f":"IF('[9]II.2.Balance OSD-Activos'!J195=\"\",\"\",'[9]II.2.Balance OSD-Activos'!J195)","v":240.79521080844745},{"$f":"IF('[9]II.2.Balance OSD-Activos'!N195=\"\",\"\",'[9]II.2.Balance OSD-Activos'!N195)","v":976.09461354463031},{"$f":"IF('[9]II.2.Balance OSD-Activos'!R195=\"\",\"\",'[9]II.2.Balance OSD-Activos'!R195)","v":50594.184490093998},{"$f":"IF('[9]II.2.Balance OSD-Activos'!S195=\"\",\"\",'[9]II.2.Balance OSD-Activos'!S195)","v":55158.415696400843},50834.979700902448,106969.49001084792,10.726127878459678,7.8533607458168841,4.0710829766642309,7.8400446284475178,9.4760917615120945,8.6477537070623889,-2.0418728146109899E-2,{"$f":"IF('[1]MONE(M)CAPARD'!GS337=\"\",\"\",'[1]MONE(M)CAPARD'!GS337)","v":20629.419238825438},{"$f":"IF('[1]MONE(M)CARD'!HA337=\"\",\"\",'[1]MONE(M)CAPARD'!HA337)","v":13319.396857029489},{"$f":"IF('[1]MONE(M)CAPARD'!HB337=\"\",\"\",'[1]MONE(M)CAPARD'!HB337)","v":7310.0223817959486},"n.d.",{"$f":"IF('[10]II.2.Balance OSD-Activos'!J195=\"\",\"\",'[10]II.2.Balance OSD-Activos'!J195)","v":2121.011140908447},{"$f":"IF('[10]II.2.Balance OSD-Activos'!N195=\"\",\"\",'[10]II.2.Balance OSD-Activos'!N195)","v":1486.7361439446302},{"$f":"IF('[10]II.2.Balance OSD-Activos'!R195=\"\",\"\",'[10]II.2.Balance OSD-Activos'!R195)","v":73582.867970594001},{"$f":"IF('[10]II.2.Balance OSD-Activos'!S195=\"\",\"\",'[10]II.2.Balance OSD-Activos'!S195)","v":76970.895141350848},{"$f":"IFERROR(+AW330+AY330,\"\")","v":75703.879111502451},154161.51039679791,7.7724059789554767,7.6299551165582402,7.1586868634457623,7.6258545831356939,9.9587199052744602,8.7755534591206885,0.13134272445778272,{"$f":"IF('[1]MONE(M)CAPARD'!AS337=\"\",\"\",'[1]MONE(M)CAPARD'!AS337)","v":2.5},{"$f":"IF('[1]MONE(M)CAPARD'!AT337=\"\",\"\",'[1]MONE(M)CAPARD'!AT337)","v":"n.a."},{"$f":"IF('[1]MONE(M)CAPARD'!AU337=\"\",\"\",'[1]MONE(M)CAPARD'!AU337)","v":3},{"$f":"IF('[1]MONE(M)CAPARD'!AV337=\"\",\"\",'[1]MONE(M)CAPARD'!AV337)","v":5.5},{"$f":"IF('[1]MONE(M)CAPARD'!AW337=\"\",\"\",'[1]MONE(M)CAPARD'!AW337)","v":"n.a."},{"$f":"IF('[1]MONE(M)CAPARD'!AX337=\"\",\"\",'[1]MONE(M)CAPARD'!AX337)","v":5.75},{"$f":"IF('[1]MONE(M)CAPARD'!AY337=\"\",\"\",'[1]MONE(M)CAPARD'!AY337)","v":"n.a."},{"$f":"IF('[1]FISCAL(M)'!$K337=\"\",\"\",'[1]FISCAL(M)'!$K337)","v":-889.79321060301379},{"$f":"IF('[1]FISCAL(M)'!$L337=\"\",\"\",'[1]FISCAL(M)'!$L337)","v":"n.d."},{"$f":"IF('[1]FISCAL(M)'!$AY337=\"\",\"\",'[1]FISCAL(M)'!$AY337)","v":123910.86160123337},{"$f":"IF('[1]FISCAL(M)'!$BI337=\"\",\"\",'[1]FISCAL(M)'!$BI337)","v":64224.79483981154},{"$f":"IF('[1]FISCAL(M)'!$BS337=\"\",\"\",'[1]FISCAL(M)'!$BS337)","v":59686.066761421847},{"$f":"IF('[1]FISCAL(M)'!$AZ337=\"\",\"\",'[1]FISCAL(M)'!$AZ337)","v":145833.69160123338},{"$f":"IF('[1]FISCAL(M)'!$BJ337=\"\",\"\",'[1]FISCAL(M)'!$BJ337)","v":69108.234839811543},{"$f":"IF('[1]FISCAL(M)'!$BT337=\"\",\"\",'[1]FISCAL(M)'!$BT337)","v":76725.456761421854},{"$f":"IF('[2]MONE(M)'!$AO337=\"\",\"\",'[2]MONE(M)'!$AO337)","v":20753290.578105859},{"$f":"IF('[3]MONE(M)'!$AO337=\"\",\"\",'[3]MONE(M)'!$AO337)","v":11843.745554230001},{"$f":"IF('[4]MONE(M)'!$AO337=\"\",\"\",'[4]MONE(M)'!$AO337)","v":191777.35181338125},{"$f":"IF('[5]MONE(M)'!$AO337=\"\",\"\",'[5]MONE(M)'!$AO337)","v":286864.08975694829},{"$f":"IF('[6]MONE(M)'!$AO337=\"\",\"\",'[6]MONE(M)'!$AO337)","v":147908.98553853593},{"$f":"IF('[7]MONE(M)'!$AO337=\"\",\"\",'[7]MONE(M)'!$AO337)","v":920803.23175712},{"$f":"IF('[8]MONE(M)'!$AO337=\"\",\"\",'[8]MONE(M)'!$AO337)","v":48025.945719710013},12.971705320361337,5.7564733684709379,6.2906006484853672,9.5478796180644476,19.849578871134167,10.089263224518884,8.6913598363513866,{"$f":"'[1]FISCAL(M)'!$K337","v":-889.79321060301379},{"$f":"+'[1]REAL(A)'!$AO$37","v":271971.90837527614},-0.32716364565683259,{"$f":"IF('[1]FISCAL(M)'!$L337=\"\",\"\",'[1]FISCAL(M)'!$L337)","v":"n.d."},{"$f":"+'[1]REAL(A)'!$AP$37","v":334190.95637527615},"n.d.",145477.8219070278,{"$f":"'[1]Gráfico REM'!BG331","v":25898.927338006273},{"$f":"'[1]Gráfico REM'!BH331","v":111823.70840810315},{"$f":"'[1]Gráfico REM'!BI331","v":7755.1861609183889},7.7745023415867864,6.6099764246528192,8.2457945349202699,5.0125555141472544,217133.35526161781,{"$f":"'[1]Gráfico REM'!BK331","v":28125.913146026272},{"$f":"'[1]Gráfico REM'!BL331","v":159849.65412781318},{"$f":"'[1]Gráfico REM'!BM331","v":29157.787987778378},5.7307013455341504,5.9735827144647091,8.3792777989701186,-6.9424097981147348]
[2017,"mayo ","2017-mayo ",{"$f":"IF('[1]REAL IPC(M)'!$AL338=\"\",\"\",+'[1]REAL IPC(M)'!$AL338)","v":3.13613059712885},{"$f":"IF('[1]REAL IPC(M)'!$BE338=\"\",\"\",+'[1]REAL IPC(M)'!$BE338)","v":2.8625963439476099},{"$f":"IF('[1]REAL IPC(M)'!$AM338=\"\",\"\",+'[1]REAL IPC(M)'!$AM338)","v":2.7579603632129857},{"$f":"IF('[1]REAL IPC(M)'!$BI338=\"\",\"\",+'[1]REAL IPC(M)'!$BI338)","v":2.6370963812416548},{"$f":"IF('[1]REAL IMAE(M)'!BJ338=\"\",\"\",'[1]REAL IMAE(M)'!BJ338)","v":3.8261381688214025},{"$f":"IF('[1]REAL IMAE(M)'!BK338=\"\",\"\",'[1]REAL IMAE(M)'!BK338)","v":4.3496273921908912},{"$f":"IF('[1]REAL IMAE(M)'!BN338=\"\",\"\",'[1]REAL IMAE(M)'!BN338)","v":4.4325354013780238},{"$f":"IF('[1]REAL IMAE(M)'!BO338=\"\",\"\",'[1]REAL IMAE(M)'!BO338)","v":4.3889260994439905},{"$f":"IF('[1]EXT RIN(M)'!$K338=\"\",\"\",'[1]EXT RIN(M)'!$K338)","v":33118.042297787382},null,{"$f":"IF('[1]EXT RIN(M)'!$L338=\"\",\"\",'[1]EXT RIN(M)'!$L338)","v":37691.95792857738},null,{"$f":"IF('[1]MONE(M)CARD'!EG338=\"\",\"\",'[1]MONE(M)CARD'!EG338)","v":33893.495154553457},{"$f":"IF('[1]MONE(M)CARD'!EK338=\"\",\"\",'[1]MONE(M)CARD'!EK338)","v":54236.3113838235},{"$f":"IF('[1]MONE(M)CARD'!EP338=\"\",\"\",'[1]MONE(M)CARD'!EP338)","v":30872.587332826297},{"$f":"IF('[1]MONE(M)CARD'!ES338=\"\",\"\",'[1]MONE(M)CARD'!ES338)","v":3.432656149172808},{"$f":"IF('[1]MONE(M)CARD'!EV338=\"\",\"\",'[1]MONE(M)CARD'!EV338)","v":4.7250344678637646},{"$f":"IF('[1]MONE(M)CARD'!EZ338=\"\",\"\",'[1]MONE(M)CARD'!EZ338)","v":5.2101959975984879},{"$f":"IF('[1]MONE(M)CAPARD'!FC338=\"\",\"\",'[1]MONE(M)CAPARD'!FC338)","v":41935.969142883463},{"$f":"IF('[1]MONE(M)CAPARD'!FG338=\"\",\"\",'[1]MONE(M)CAPARD'!FG338)","v":85109.379153603499},{"$f":"IF('[1]MONE(M)CAPARD'!FL338=\"\",\"\",'[1]MONE(M)CAPARD'!FL338)","v":30872.587332826297},{"$f":"IF('[1]MONE(M)CAPARD'!FO338=\"\",\"\",'[1]MONE(M)CAPARD'!FO338)","v":2.9989218692894948},{"$f":"IF('[1]MONE(M)CAPARD'!FR338=\"\",\"\",'[1]MONE(M)CAPARD'!FR338)","v":4.8849472007611583},{"$f":"IF('[1]MONE(M)CAPARD'!FV338=\"\",\"\",'[1]MONE(M)CAPARD'!FV338)","v":5.2197321268231178},{"$f":"IF('[1]MONE(M)CARD'!FV338=\"\",\"\",'[1]MONE(M)CARD'!FV338)","v":1521.9752775757152},{"$f":"IF('[1]MONE(M)CARD'!GD338=\"\",\"\",'[1]MONE(M)CARD'!GD338)","v":61.317231727254764},{"$f":"IF('[1]MONE(M)CARD'!GE338=\"\",\"\",'[1]MONE(M)CARD'!GE338)","v":11210.200145317738},{"$f":"IF(AD331=\"\",\"\",((AD331/AD318)-1)*100)","v":21.846964080480191},{"$f":"IF('[9]II.2.Balance OSD-Activos'!J196=\"\",\"\",'[9]II.2.Balance OSD-Activos'!J196)","v":253.77493235027742},{"$f":"IF('[9]II.2.Balance OSD-Activos'!N196=\"\",\"\",'[9]II.2.Balance OSD-Activos'!N196)","v":1023.7999623887667},{"$f":"IF('[9]II.2.Balance OSD-Activos'!R196=\"\",\"\",'[9]II.2.Balance OSD-Activos'!R196)","v":50666.057820031318},{"$f":"IF('[9]II.2.Balance OSD-Activos'!S196=\"\",\"\",'[9]II.2.Balance OSD-Activos'!S196)","v":55306.973063925689},{"$f":"IFERROR(+AF331+AH331,\"\")","v":50919.832752381597},{"$f":"IF(OR(AF331=\"\",AG331=\"\",AH331=\"\",AI331=\"\"),\"\",SUM(AF331:AI331))","v":107250.60577869604},{"$f":"IF(OR(AF331=\"\",AF319=\"\"),\"\",((AF331/AF319)-1)*100)","v":14.360931518838127},{"$f":"IF(OR(AJ331=\"\",AJ319=\"\"),\"\",((AJ331/AJ319)-1)*100)","v":7.4028622306083536},{"$f":"IF(OR(AG331=\"\",AG319=\"\"),\"\",((AG331/AG319)-1)*100)","v":5.3688912061624405},{"$f":"IF(OR(AH331=\"\",AH319=\"\"),\"\",((AH331/AH319)-1)*100)","v":7.3701412586506532},{"$f":"IF(OR(AI331=\"\",AI319=\"\"),\"\",((AI331/AI319)-1)*100)","v":8.5405148118881549},{"$f":"IF(OR(AK331=\"\",AK319=\"\"),\"\",((AK331/AK319)-1)*100)","v":7.9665296279704201},{"$f":"IF(OR(AQ331=\"\",AQ330=\"\"),\"\",AQ331-AQ330)","v":-0.6812240790919688},{"$f":"IF('[1]MONE(M)CAPARD'!GS338=\"\",\"\",'[1]MONE(M)CAPARD'!GS338)","v":20564.803682634854},{"$f":"IF('[1]MONE(M)CARD'!HA338=\"\",\"\",'[1]MONE(M)CAPARD'!HA338)","v":13102.68348911774},{"$f":"IF('[1]MONE(M)CAPARD'!HB338=\"\",\"\",'[1]MONE(M)CAPARD'!HB338)","v":7462.1201935171139},"n.d.",{"$f":"IF('[10]II.2.Balance OSD-Activos'!J196=\"\",\"\",'[10]II.2.Balance OSD-Activos'!J196)","v":2143.475654110277},{"$f":"IF('[10]II.2.Balance OSD-Activos'!N196=\"\",\"\",'[10]II.2.Balance OSD-Activos'!N196)","v":1530.2963298187669},{"$f":"IF('[10]II.2.Balance OSD-Activos'!R196=\"\",\"\",'[10]II.2.Balance OSD-Activos'!R196)","v":73785.287841431331},{"$f":"IF('[10]II.2.Balance OSD-Activos'!S196=\"\",\"\",'[10]II.2.Balance OSD-Activos'!S196)","v":77299.029847825688},{"$f":"IFERROR(+AW331+AY331,\"\")","v":75928.763495541614},{"$f":"IF(OR(AW331=\"\",AX331=\"\",AY331=\"\",AZ331=\"\"),\"\",SUM(AW331:AZ331))","v":154758.08967318607},{"$f":"IF(OR(AW331=\"\",AW319=\"\"),\"\",((AW331/AW319)-1)*100)","v":5.918389691420356},{"$f":"IF(OR(BA331=\"\",BA319=\"\"),\"\",((BA331/BA319)-1)*100)","v":7.2226471794685665},{"$f":"IF(OR(AX331=\"\",AX319=\"\"),\"\",((AX331/AX319)-1)*100)","v":6.1335961214151524},{"$f":"IF(OR(AY331=\"\",AY319=\"\"),\"\",((AY331/AY319)-1)*100)","v":7.2610163717181209},{"$f":"IF(OR(AZ331=\"\",AZ319=\"\"),\"\",((AZ331/AZ319)-1)*100)","v":9.2072452147561989},{"$f":"IF(OR(BB331=\"\",BB319=\"\"),\"\",((BB331/BB319)-1)*100)","v":8.1937426333357202},{"$f":"IF(OR(BH331=\"\",BH330=\"\"),\"\",BH331-BH330)","v":-0.58181082578496834},{"$f":"IF('[1]MONE(M)CAPARD'!AS338=\"\",\"\",'[1]MONE(M)CAPARD'!AS338)","v":4},{"$f":"IF('[1]MONE(M)CAPARD'!AT338=\"\",\"\",'[1]MONE(M)CAPARD'!AT338)","v":"n.a."},{"$f":"IF('[1]MONE(M)CAPARD'!AU338=\"\",\"\",'[1]MONE(M)CAPARD'!AU338)","v":3},{"$f":"IF('[1]MONE(M)CAPARD'!AV338=\"\",\"\",'[1]MONE(M)CAPARD'!AV338)","v":5.5},{"$f":"IF('[1]MONE(M)CAPARD'!AW338=\"\",\"\",'[1]MONE(M)CAPARD'!AW338)","v":"n.a."},{"$f":"IF('[1]MONE(M)CAPARD'!AX338=\"\",\"\",'[1]MONE(M)CAPARD'!AX338)","v":5.75},{"$f":"IF('[1]MONE(M)CAPARD'!AY338=\"\",\"\",'[1]MONE(M)CAPARD'!AY338)","v":"n.a."},{"$f":"IF('[1]FISCAL(M)'!$K338=\"\",\"\",'[1]FISCAL(M)'!$K338)","v":-1219.3852264654072},{"$f":"IF('[1]FISCAL(M)'!$L338=\"\",\"\",'[1]FISCAL(M)'!$L338)","v":"n.d."},{"$f":"IF('[1]FISCAL(M)'!$AY338=\"\",\"\",'[1]FISCAL(M)'!$AY338)","v":123885.55017459716},{"$f":"IF('[1]FISCAL(M)'!$BI338=\"\",\"\",'[1]FISCAL(M)'!$BI338)","v":63991.23647830938},{"$f":"IF('[1]FISCAL(M)'!$BS338=\"\",\"\",'[1]FISCAL(M)'!$BS338)","v":59894.313696287791},{"$f":"IF('[1]FISCAL(M)'!$AZ338=\"\",\"\",'[1]FISCAL(M)'!$AZ338)","v":146845.06017459717},{"$f":"IF('[1]FISCAL(M)'!$BJ338=\"\",\"\",'[1]FISCAL(M)'!$BJ338)","v":68852.586478309371},{"$f":"IF('[1]FISCAL(M)'!$BT338=\"\",\"\",'[1]FISCAL(M)'!$BT338)","v":77992.47369628778},{"$f":"IF('[2]MONE(M)'!$AO338=\"\",\"\",'[2]MONE(M)'!$AO338)","v":20987094.093553007},{"$f":"IF('[3]MONE(M)'!$AO338=\"\",\"\",'[3]MONE(M)'!$AO338)","v":11876.724043530001},{"$f":"IF('[4]MONE(M)'!$AO338=\"\",\"\",'[4]MONE(M)'!$AO338)","v":191562.85416945867},{"$f":"IF('[5]MONE(M)'!$AO338=\"\",\"\",'[5]MONE(M)'!$AO338)","v":289747.85155299638},{"$f":"IF('[6]MONE(M)'!$AO338=\"\",\"\",'[6]MONE(M)'!$AO338)","v":150597.28213215157},{"$f":"IF('[7]MONE(M)'!$AO338=\"\",\"\",'[7]MONE(M)'!$AO338)","v":936096.51271639008},{"$f":"IF('[8]MONE(M)'!$AO338=\"\",\"\",'[8]MONE(M)'!$AO338)","v":48352.285771890005},{"$f":"IF(BY331=\"\",\"\",((BY331/BY319)-1)*100)","v":12.553817061241258},5.7792225449945667,5.7952308775477634,10.11102726550963,19.460248583226083,11.976229907956881,8.4323679717247515,{"$f":"'[1]FISCAL(M)'!$K338","v":-1219.3852264654072},{"$f":"+'[1]REAL(A)'!$AO$37","v":271971.90837527614},-0.44834969675723191,{"$f":"IF('[1]FISCAL(M)'!$L338=\"\",\"\",'[1]FISCAL(M)'!$L338)","v":"n.d."},{"$f":"+'[1]REAL(A)'!$AP$37","v":334190.95637527615},"n.d.",{"$f":"+IF(OR(CT331=\"\",+CU331=\"\",+CV331=\"\"),\"\",(CT331+CU331+CV331))","v":145862.14941001748},{"$f":"'[1]Gráfico REM'!BG332","v":25913.09659877573},{"$f":"'[1]Gráfico REM'!BH332","v":112058.07950161956},{"$f":"'[1]Gráfico REM'!BI332","v":7890.9733096221607},{"$f":"IFERROR(+((CS331/CS319)-1)*100,\"\")","v":6.9776462749856938},{"$f":"IFERROR(+((CT331/CT319)-1)*100,\"\")","v":5.5056191913682939},{"$f":"IFERROR(+((CU331/CU319)-1)*100,\"\")","v":7.457844827323945},{"$f":"IFERROR(+((CV331/CV319)-1)*100,\"\")","v":5.1230585791257166},{"$f":"+IF(OR(DB331=\"\",+DC331=\"\",+DD331=\"\"),\"\",(DB331+DC331+DD331))","v":217665.34767176746},{"$f":"'[1]Gráfico REM'!BK332","v":28158.408230245732},{"$f":"'[1]Gráfico REM'!BL332","v":160410.36527350958},{"$f":"'[1]Gráfico REM'!BM332","v":29096.574168012161},{"$f":"IFERROR(+((DA331/DA319)-1)*100,\"\")","v":5.1623029752801752},{"$f":"IFERROR(+((DB331/DB319)-1)*100,\"\")","v":4.7991982172286285},{"$f":"IFERROR(+((DC331/DC319)-1)*100,\"\")","v":7.7497447954858689},{"$f":"IFERROR(+((DD331/DD319)-1)*100,\"\")","v":-6.8563746289792782}]
[2017,"junio ","2017-junio ",{"$f":"IF('[1]REAL IPC(M)'!$AL339=\"\",\"\",+'[1]REAL IPC(M)'!$AL339)","v":3.0009276976042498},{"$f":"IF('[1]REAL IPC(M)'!$BE339=\"\",\"\",+'[1]REAL IPC(M)'!$BE339)","v":2.8904628745262784},{"$f":"IF('[1]REAL IPC(M)'!$AM339=\"\",\"\",+'[1]REAL IPC(M)'!$AM339)","v":2.6250345024648736},{"$f":"IF('[1]REAL IPC(M)'!$BI339=\"\",\"\",+'[1]REAL IPC(M)'!$BI339)","v":2.6634378026410221},{"$f":"IF('[1]REAL IMAE(M)'!BJ339=\"\",\"\",'[1]REAL IMAE(M)'!BJ339)","v":3.7588992030096025},{"$f":"IF('[1]REAL IMAE(M)'!BK339=\"\",\"\",'[1]REAL IMAE(M)'!BK339)","v":4.3175310568088099},{"$f":"IF('[1]REAL IMAE(M)'!BN339=\"\",\"\",'[1]REAL IMAE(M)'!BN339)","v":4.2311242708824803},{"$f":"IF('[1]REAL IMAE(M)'!BO339=\"\",\"\",'[1]REAL IMAE(M)'!BO339)","v":4.356854994016568},{"$f":"IF('[1]EXT RIN(M)'!$K339=\"\",\"\",'[1]EXT RIN(M)'!$K339)","v":34446.184761731973},null,{"$f":"IF('[1]EXT RIN(M)'!$L339=\"\",\"\",'[1]EXT RIN(M)'!$L339)","v":38783.821901001975},null,{"$f":"IF('[1]MONE(M)CARD'!EG339=\"\",\"\",'[1]MONE(M)CARD'!EG339)","v":33718.014587889527},{"$f":"IF('[1]MONE(M)CARD'!EK339=\"\",\"\",'[1]MONE(M)CARD'!EK339)","v":55179.049959381402},{"$f":"IF('[1]MONE(M)CARD'!EP339=\"\",\"\",'[1]MONE(M)CARD'!EP339)","v":30926.748161739873},{"$f":"IF('[1]MONE(M)CARD'!ES339=\"\",\"\",'[1]MONE(M)CARD'!ES339)","v":3.3183727479662695},{"$f":"IF('[1]MONE(M)CARD'!EV339=\"\",\"\",'[1]MONE(M)CARD'!EV339)","v":5.2854143884073945},{"$f":"IF('[1]MONE(M)CARD'!EZ339=\"\",\"\",'[1]MONE(M)CARD'!EZ339)","v":6.0025147421450598},{"$f":"IF('[1]MONE(M)CAPARD'!FC339=\"\",\"\",'[1]MONE(M)CAPARD'!FC339)","v":41639.601112619523},{"$f":"IF('[1]MONE(M)CAPARD'!FG339=\"\",\"\",'[1]MONE(M)CAPARD'!FG339)","v":86362.494118901421},{"$f":"IF('[1]MONE(M)CAPARD'!FL339=\"\",\"\",'[1]MONE(M)CAPARD'!FL339)","v":30926.748161739873},{"$f":"IF('[1]MONE(M)CAPARD'!FO339=\"\",\"\",'[1]MONE(M)CAPARD'!FO339)","v":2.6936791772690594},{"$f":"IF('[1]MONE(M)CAPARD'!FR339=\"\",\"\",'[1]MONE(M)CAPARD'!FR339)","v":5.3285865351222483},{"$f":"IF('[1]MONE(M)CAPARD'!FV339=\"\",\"\",'[1]MONE(M)CAPARD'!FV339)","v":5.8602907360414402},{"$f":"IF('[1]MONE(M)CARD'!FV339=\"\",\"\",'[1]MONE(M)CARD'!FV339)","v":1596.3509342063605},{"$f":"IF('[1]MONE(M)CARD'!GD339=\"\",\"\",'[1]MONE(M)CARD'!GD339)","v":189.19724205359165},{"$f":"IF('[1]MONE(M)CARD'!GE339=\"\",\"\",'[1]MONE(M)CARD'!GE339)","v":11473.493045031762},{"$f":"IF(AD332=\"\",\"\",((AD332/AD319)-1)*100)","v":29.798182260643436},{"$f":"IF('[9]II.2.Balance OSD-Activos'!J197=\"\",\"\",'[9]II.2.Balance OSD-Activos'!J197)","v":253.29006182700158},{"$f":"IF('[9]II.2.Balance OSD-Activos'!N197=\"\",\"\",'[9]II.2.Balance OSD-Activos'!N197)","v":1040.89098805771},{"$f":"IF('[9]II.2.Balance OSD-Activos'!R197=\"\",\"\",'[9]II.2.Balance OSD-Activos'!R197)","v":51102.585761255163},{"$f":"IF('[9]II.2.Balance OSD-Activos'!S197=\"\",\"\",'[9]II.2.Balance OSD-Activos'!S197)","v":55630.728601579605},{"$f":"IFERROR(+AF332+AH332,\"\")","v":51355.875823082162},{"$f":"IF(OR(AF332=\"\",AG332=\"\",AH332=\"\",AI332=\"\"),\"\",SUM(AF332:AI332))","v":108027.49541271948},{"$f":"IF(OR(AF332=\"\",AF320=\"\"),\"\",((AF332/AF320)-1)*100)","v":19.334319713705248},{"$f":"IF(OR(AJ332=\"\",AJ320=\"\"),\"\",((AJ332/AJ320)-1)*100)","v":7.9669705881548314},{"$f":"IF(OR(AG332=\"\",AG320=\"\"),\"\",((AG332/AG320)-1)*100)","v":8.2458967473223233},{"$f":"IF(OR(AH332=\"\",AH320=\"\"),\"\",((AH332/AH320)-1)*100)","v":7.9160193164109049},{"$f":"IF(OR(AI332=\"\",AI320=\"\"),\"\",((AI332/AI320)-1)*100)","v":8.7946602526668194},{"$f":"IF(OR(AK332=\"\",AK320=\"\"),\"\",((AK332/AK320)-1)*100)","v":8.3943273136412699},{"$f":"IF(OR(AQ332=\"\",AQ331=\"\"),\"\",AQ332-AQ331)","v":0.42779768567084986},{"$f":"IF('[1]MONE(M)CAPARD'!GS339=\"\",\"\",'[1]MONE(M)CAPARD'!GS339)","v":20788.195970121422},{"$f":"IF('[1]MONE(M)CARD'!HA339=\"\",\"\",'[1]MONE(M)CAPARD'!HA339)","v":13371.246419591762},{"$f":"IF('[1]MONE(M)CAPARD'!HB339=\"\",\"\",'[1]MONE(M)CAPARD'!HB339)","v":7416.94955052966},"n.d.",{"$f":"IF('[10]II.2.Balance OSD-Activos'!J197=\"\",\"\",'[10]II.2.Balance OSD-Activos'!J197)","v":2074.0001015470016},{"$f":"IF('[10]II.2.Balance OSD-Activos'!N197=\"\",\"\",'[10]II.2.Balance OSD-Activos'!N197)","v":1564.46936581771},{"$f":"IF('[10]II.2.Balance OSD-Activos'!R197=\"\",\"\",'[10]II.2.Balance OSD-Activos'!R197)","v":74303.33530627517},{"$f":"IF('[10]II.2.Balance OSD-Activos'!S197=\"\",\"\",'[10]II.2.Balance OSD-Activos'!S197)","v":77793.350512079604},{"$f":"IFERROR(+AW332+AY332,\"\")","v":76377.335407822175},{"$f":"IF(OR(AW332=\"\",AX332=\"\",AY332=\"\",AZ332=\"\"),\"\",SUM(AW332:AZ332))","v":155735.15528571949},{"$f":"IF(OR(AW332=\"\",AW320=\"\"),\"\",((AW332/AW320)-1)*100)","v":4.8212782283513667},{"$f":"IF(OR(BA332=\"\",BA320=\"\"),\"\",((BA332/BA320)-1)*100)","v":7.5079887106263454},{"$f":"IF(OR(AX332=\"\",AX320=\"\"),\"\",((AX332/AX320)-1)*100)","v":9.7879063733623752},{"$f":"IF(OR(AY332=\"\",AY320=\"\"),\"\",((AY332/AY320)-1)*100)","v":7.5849590571814396},{"$f":"IF(OR(AZ332=\"\",AZ320=\"\"),\"\",((AZ332/AZ320)-1)*100)","v":9.2883753434992435},{"$f":"IF(OR(BB332=\"\",BB320=\"\"),\"\",((BB332/BB320)-1)*100)","v":8.4128250939667026},{"$f":"IF(OR(BH332=\"\",BH331=\"\"),\"\",BH332-BH331)","v":0.21908246063098247},{"$f":"IF('[1]MONE(M)CAPARD'!AS339=\"\",\"\",'[1]MONE(M)CAPARD'!AS339)","v":4.5},{"$f":"IF('[1]MONE(M)CAPARD'!AT339=\"\",\"\",'[1]MONE(M)CAPARD'!AT339)","v":"n.a."},{"$f":"IF('[1]MONE(M)CAPARD'!AU339=\"\",\"\",'[1]MONE(M)CAPARD'!AU339)","v":3},{"$f":"IF('[1]MONE(M)CAPARD'!AV339=\"\",\"\",'[1]MONE(M)CAPARD'!AV339)","v":5.5},{"$f":"IF('[1]MONE(M)CAPARD'!AW339=\"\",\"\",'[1]MONE(M)CAPARD'!AW339)","v":"n.a."},{"$f":"IF('[1]MONE(M)CAPARD'!AX339=\"\",\"\",'[1]MONE(M)CAPARD'!AX339)","v":5.75},{"$f":"IF('[1]MONE(M)CAPARD'!AY339=\"\",\"\",'[1]MONE(M)CAPARD'!AY339)","v":"n.a."},{"$f":"IF('[1]FISCAL(M)'!$K339=\"\",\"\",'[1]FISCAL(M)'!$K339)","v":-1527.1502786868498},{"$f":"IF('[1]FISCAL(M)'!$L339=\"\",\"\",'[1]FISCAL(M)'!$L339)","v":-2346.1502786868496},{"$f":"IF('[1]FISCAL(M)'!$AY339=\"\",\"\",'[1]FISCAL(M)'!$AY339)","v":125879.58166863225},{"$f":"IF('[1]FISCAL(M)'!$BI339=\"\",\"\",'[1]FISCAL(M)'!$BI339)","v":64872.379616502498},{"$f":"IF('[1]FISCAL(M)'!$BS339=\"\",\"\",'[1]FISCAL(M)'!$BS339)","v":61007.202052129738},{"$f":"IF('[1]FISCAL(M)'!$AZ339=\"\",\"\",'[1]FISCAL(M)'!$AZ339)","v":148792.62166863226},{"$f":"IF('[1]FISCAL(M)'!$BJ339=\"\",\"\",'[1]FISCAL(M)'!$BJ339)","v":69735.379616502498},{"$f":"IF('[1]FISCAL(M)'!$BT339=\"\",\"\",'[1]FISCAL(M)'!$BT339)","v":79057.242052129732},{"$f":"IF('[2]MONE(M)'!$AO339=\"\",\"\",'[2]MONE(M)'!$AO339)","v":21163823.708444551},{"$f":"IF('[3]MONE(M)'!$AO339=\"\",\"\",'[3]MONE(M)'!$AO339)","v":11891.923129480001},{"$f":"IF('[4]MONE(M)'!$AO339=\"\",\"\",'[4]MONE(M)'!$AO339)","v":191642.2262069037},{"$f":"IF('[5]MONE(M)'!$AO339=\"\",\"\",'[5]MONE(M)'!$AO339)","v":291044.58541629446},{"$f":"IF('[6]MONE(M)'!$AO339=\"\",\"\",'[6]MONE(M)'!$AO339)","v":150793.23878056338},{"$f":"IF('[7]MONE(M)'!$AO339=\"\",\"\",'[7]MONE(M)'!$AO339)","v":948841.52813877002},{"$f":"IF('[8]MONE(M)'!$AO339=\"\",\"\",'[8]MONE(M)'!$AO339)","v":48529.737547619989},11.80300586813221,5.9178331908187554,5.423674761916164,10.130169843907799,17.842685530252389,12.204381557498213,8.1733224238083935,{"$f":"'[1]FISCAL(M)'!$K339","v":-1527.1502786868498},{"$f":"+'[1]REAL(A)'!$AO$37","v":271971.90837527614},-0.5615103000195284,{"$f":"IF('[1]FISCAL(M)'!$L339=\"\",\"\",'[1]FISCAL(M)'!$L339)","v":-2346.1502786868496},{"$f":"+'[1]REAL(A)'!$AP$37","v":334190.95637527615},-0.70203882957630526,{"$f":"+IF(OR(CT332=\"\",+CU332=\"\",+CV332=\"\"),\"\",(CT332+CU332+CV332))","v":146822.58884272183},{"$f":"'[1]Gráfico REM'!BG333","v":26027.909474776541},{"$f":"'[1]Gráfico REM'!BH333","v":112780.22124557901},{"$f":"'[1]Gráfico REM'!BI333","v":8014.458122366269},{"$f":"IFERROR(+((CS332/CS320)-1)*100,\"\")","v":7.4552858106808673},{"$f":"IFERROR(+((CT332/CT320)-1)*100,\"\")","v":5.3739696932727732},{"$f":"IFERROR(+((CU332/CU320)-1)*100,\"\")","v":7.946581975405409},{"$f":"IFERROR(+((CV332/CV320)-1)*100,\"\")","v":7.4660166342172207},{"$f":"+IF(OR(DB332=\"\",+DC332=\"\",+DD332=\"\"),\"\",(DB332+DC332+DD332))","v":218971.54635349181},{"$f":"'[1]Gráfico REM'!BK333","v":28240.402248026541},{"$f":"'[1]Gráfico REM'!BL333","v":161309.95879319901},{"$f":"'[1]Gráfico REM'!BM333","v":29421.185312266265},{"$f":"IFERROR(+((DA332/DA320)-1)*100,\"\")","v":5.6740289920086395},{"$f":"IFERROR(+((DB332/DB320)-1)*100,\"\")","v":4.6503148654601478},{"$f":"IFERROR(+((DC332/DC320)-1)*100,\"\")","v":8.0146962982771353},{"$f":"IFERROR(+((DD332/DD320)-1)*100,\"\")","v":-4.7485461459816687}]
[2017,"julio","2017-julio",{"$f":"IF('[1]REAL IPC(M)'!$AL340=\"\",\"\",+'[1]REAL IPC(M)'!$AL340)","v":3.029864152256545},{"$f":"IF('[1]REAL IPC(M)'!$BE340=\"\",\"\",+'[1]REAL IPC(M)'!$BE340)","v":2.917596970031755},{"$f":"IF('[1]REAL IPC(M)'!$AM340=\"\",\"\",+'[1]REAL IPC(M)'!$AM340)","v":2.6379461100194845},{"$f":"IF('[1]REAL IPC(M)'!$BI340=\"\",\"\",+'[1]REAL IPC(M)'!$BI340)","v":2.6894181636011538},{"$f":"IF('[1]REAL IMAE(M)'!BJ340=\"\",\"\",'[1]REAL IMAE(M)'!BJ340)","v":3.756291170715631},{"$f":"IF('[1]REAL IMAE(M)'!BK340=\"\",\"\",'[1]REAL IMAE(M)'!BK340)","v":4.2855579343015426},{"$f":"IF('[1]REAL IMAE(M)'!BN340=\"\",\"\",'[1]REAL IMAE(M)'!BN340)","v":4.1041035720490449},{"$f":"IF('[1]REAL IMAE(M)'!BO340=\"\",\"\",'[1]REAL IMAE(M)'!BO340)","v":4.3241685645936112},{"$f":"IF('[1]EXT RIN(M)'!$K340=\"\",\"\",'[1]EXT RIN(M)'!$K340)","v":34507.517941837832},null,{"$f":"IF('[1]EXT RIN(M)'!$L340=\"\",\"\",'[1]EXT RIN(M)'!$L340)","v":38417.129475707829},null,{"$f":"IF('[1]MONE(M)CARD'!EG340=\"\",\"\",'[1]MONE(M)CARD'!EG340)","v":34090.93695426386},{"$f":"IF('[1]MONE(M)CARD'!EK340=\"\",\"\",'[1]MONE(M)CARD'!EK340)","v":55648.712079825491},{"$f":"IF('[1]MONE(M)CARD'!EP340=\"\",\"\",'[1]MONE(M)CARD'!EP340)","v":30682.197205300909},{"$f":"IF('[1]MONE(M)CARD'!ES340=\"\",\"\",'[1]MONE(M)CARD'!ES340)","v":3.4357571712793522},{"$f":"IF('[1]MONE(M)CARD'!EV340=\"\",\"\",'[1]MONE(M)CARD'!EV340)","v":5.878644118534293},{"$f":"IF('[1]MONE(M)CARD'!EZ340=\"\",\"\",'[1]MONE(M)CARD'!EZ340)","v":5.764561294319992},{"$f":"IF('[1]MONE(M)CAPARD'!FC340=\"\",\"\",'[1]MONE(M)CAPARD'!FC340)","v":42181.755654673863},{"$f":"IF('[1]MONE(M)CAPARD'!FG340=\"\",\"\",'[1]MONE(M)CAPARD'!FG340)","v":86974.34881177549},{"$f":"IF('[1]MONE(M)CAPARD'!FL340=\"\",\"\",'[1]MONE(M)CAPARD'!FL340)","v":30682.197205300909},{"$f":"IF('[1]MONE(M)CAPARD'!FO340=\"\",\"\",'[1]MONE(M)CAPARD'!FO340)","v":3.1898621964004503},{"$f":"IF('[1]MONE(M)CAPARD'!FR340=\"\",\"\",'[1]MONE(M)CAPARD'!FR340)","v":6.1801495830462239},{"$f":"IF('[1]MONE(M)CAPARD'!FV340=\"\",\"\",'[1]MONE(M)CAPARD'!FV340)","v":6.0357718422474171},{"$f":"IF('[1]MONE(M)CARD'!FV340=\"\",\"\",'[1]MONE(M)CARD'!FV340)","v":1580.4863035664525},{"$f":"IF('[1]MONE(M)CARD'!GD340=\"\",\"\",'[1]MONE(M)CARD'!GD340)","v":81.370193516756203},{"$f":"IF('[1]MONE(M)CARD'!GE340=\"\",\"\",'[1]MONE(M)CARD'!GE340)","v":11593.144216462826},{"$f":"IF(AD333=\"\",\"\",((AD333/AD320)-1)*100)","v":27.590684342444472},{"$f":"IF('[9]II.2.Balance OSD-Activos'!J198=\"\",\"\",'[9]II.2.Balance OSD-Activos'!J198)","v":273.27567250614982},{"$f":"IF('[9]II.2.Balance OSD-Activos'!N198=\"\",\"\",'[9]II.2.Balance OSD-Activos'!N198)","v":1022.9628159838269},{"$f":"IF('[9]II.2.Balance OSD-Activos'!R198=\"\",\"\",'[9]II.2.Balance OSD-Activos'!R198)","v":50936.791808130882},{"$f":"IF('[9]II.2.Balance OSD-Activos'!S198=\"\",\"\",'[9]II.2.Balance OSD-Activos'!S198)","v":56023.327705006508},{"$f":"IFERROR(+AF333+AH333,\"\")","v":51210.06748063703},{"$f":"IF(OR(AF333=\"\",AG333=\"\",AH333=\"\",AI333=\"\"),\"\",SUM(AF333:AI333))","v":108256.35800162736},{"$f":"IF(OR(AF333=\"\",AF321=\"\"),\"\",((AF333/AF321)-1)*100)","v":27.147228283071279},{"$f":"IF(OR(AJ333=\"\",AJ321=\"\"),\"\",((AJ333/AJ321)-1)*100)","v":7.1575459940891095},{"$f":"IF(OR(AG333=\"\",AG321=\"\"),\"\",((AG333/AG321)-1)*100)","v":9.4105335271356125},{"$f":"IF(OR(AH333=\"\",AH321=\"\"),\"\",((AH333/AH321)-1)*100)","v":7.0672382531542954},{"$f":"IF(OR(AI333=\"\",AI321=\"\"),\"\",((AI333/AI321)-1)*100)","v":8.5171604933998566},{"$f":"IF(OR(AK333=\"\",AK321=\"\"),\"\",((AK333/AK321)-1)*100)","v":7.8780018926071005},{"$f":"IF(OR(AQ333=\"\",AQ332=\"\"),\"\",AQ333-AQ332)","v":-0.51632542103416945},{"$f":"IF('[1]MONE(M)CAPARD'!GS340=\"\",\"\",'[1]MONE(M)CAPARD'!GS340)","v":20709.997012078158},{"$f":"IF('[1]MONE(M)CARD'!HA340=\"\",\"\",'[1]MONE(M)CAPARD'!HA340)","v":13470.345441612826},{"$f":"IF('[1]MONE(M)CAPARD'!HB340=\"\",\"\",'[1]MONE(M)CAPARD'!HB340)","v":7239.651570465332},"n.d.",{"$f":"IF('[10]II.2.Balance OSD-Activos'!J198=\"\",\"\",'[10]II.2.Balance OSD-Activos'!J198)","v":2328.6479629361497},{"$f":"IF('[10]II.2.Balance OSD-Activos'!N198=\"\",\"\",'[10]II.2.Balance OSD-Activos'!N198)","v":1534.7656646538269},{"$f":"IF('[10]II.2.Balance OSD-Activos'!R198=\"\",\"\",'[10]II.2.Balance OSD-Activos'!R198)","v":74273.719816620884},{"$f":"IF('[10]II.2.Balance OSD-Activos'!S198=\"\",\"\",'[10]II.2.Balance OSD-Activos'!S198)","v":78365.456135576504},{"$f":"IFERROR(+AW333+AY333,\"\")","v":76602.36777955704},{"$f":"IF(OR(AW333=\"\",AX333=\"\",AY333=\"\",AZ333=\"\"),\"\",SUM(AW333:AZ333))","v":156502.58957978737},{"$f":"IF(OR(AW333=\"\",AW321=\"\"),\"\",((AW333/AW321)-1)*100)","v":16.74366901091102},{"$f":"IF(OR(BA333=\"\",BA321=\"\"),\"\",((BA333/BA321)-1)*100)","v":7.5063463527145879},{"$f":"IF(OR(AX333=\"\",AX321=\"\"),\"\",((AX333/AX321)-1)*100)","v":9.8306721410941442},{"$f":"IF(OR(AY333=\"\",AY321=\"\"),\"\",((AY333/AY321)-1)*100)","v":7.2403109077501027},{"$f":"IF(OR(AZ333=\"\",AZ321=\"\"),\"\",((AZ333/AZ321)-1)*100)","v":9.7830773468462482},{"$f":"IF(OR(BB333=\"\",BB321=\"\"),\"\",((BB333/BB321)-1)*100)","v":8.65723175181461},{"$f":"IF(OR(BH333=\"\",BH332=\"\"),\"\",BH333-BH332)","v":0.24440665784790738},{"$f":"IF('[1]MONE(M)CAPARD'!AS340=\"\",\"\",'[1]MONE(M)CAPARD'!AS340)","v":4.5},{"$f":"IF('[1]MONE(M)CAPARD'!AT340=\"\",\"\",'[1]MONE(M)CAPARD'!AT340)","v":"n.a."},{"$f":"IF('[1]MONE(M)CAPARD'!AU340=\"\",\"\",'[1]MONE(M)CAPARD'!AU340)","v":3},{"$f":"IF('[1]MONE(M)CAPARD'!AV340=\"\",\"\",'[1]MONE(M)CAPARD'!AV340)","v":5.5},{"$f":"IF('[1]MONE(M)CAPARD'!AW340=\"\",\"\",'[1]MONE(M)CAPARD'!AW340)","v":"n.a."},{"$f":"IF('[1]MONE(M)CAPARD'!AX340=\"\",\"\",'[1]MONE(M)CAPARD'!AX340)","v":5.75},{"$f":"IF('[1]MONE(M)CAPARD'!AY340=\"\",\"\",'[1]MONE(M)CAPARD'!AY340)","v":"n.a."},{"$f":"IF('[1]FISCAL(M)'!$K340=\"\",\"\",'[1]FISCAL(M)'!$K340)","v":-2408.0827196952532},{"$f":"IF('[1]FISCAL(M)'!$L340=\"\",\"\",'[1]FISCAL(M)'!$L340)","v":"n.d."},{"$f":"IF('[1]FISCAL(M)'!$AY340=\"\",\"\",'[1]FISCAL(M)'!$AY340)","v":126187.07129757504},{"$f":"IF('[1]FISCAL(M)'!$BI340=\"\",\"\",'[1]FISCAL(M)'!$BI340)","v":65199.326574934981},{"$f":"IF('[1]FISCAL(M)'!$BS340=\"\",\"\",'[1]FISCAL(M)'!$BS340)","v":60987.744722640055},{"$f":"IF('[1]FISCAL(M)'!$AZ340=\"\",\"\",'[1]FISCAL(M)'!$AZ340)","v":149251.68129757504},{"$f":"IF('[1]FISCAL(M)'!$BJ340=\"\",\"\",'[1]FISCAL(M)'!$BJ340)","v":70227.146574934974},{"$f":"IF('[1]FISCAL(M)'!$BT340=\"\",\"\",'[1]FISCAL(M)'!$BT340)","v":79024.534722640063},{"$f":"IF('[2]MONE(M)'!$AO340=\"\",\"\",'[2]MONE(M)'!$AO340)","v":21122513.393005148},{"$f":"IF('[3]MONE(M)'!$AO340=\"\",\"\",'[3]MONE(M)'!$AO340)","v":11987.659257980002},{"$f":"IF('[4]MONE(M)'!$AO340=\"\",\"\",'[4]MONE(M)'!$AO340)","v":191484.2450991465},{"$f":"IF('[5]MONE(M)'!$AO340=\"\",\"\",'[5]MONE(M)'!$AO340)","v":293045.86610222008},{"$f":"IF('[6]MONE(M)'!$AO340=\"\",\"\",'[6]MONE(M)'!$AO340)","v":152144.66035176095},{"$f":"IF('[7]MONE(M)'!$AO340=\"\",\"\",'[7]MONE(M)'!$AO340)","v":942007.74326862989},{"$f":"IF('[8]MONE(M)'!$AO340=\"\",\"\",'[8]MONE(M)'!$AO340)","v":49112.423718860002},10.863297801081684,6.1640981322889088,5.2448250545585662,10.287112272270127,18.20912093683782,10.360419246699237,10.396929639907704,{"$f":"'[1]FISCAL(M)'!$K340","v":-2408.0827196952532},{"$f":"+'[1]REAL(A)'!$AO$37","v":271971.90837527614},-0.88541597331901578,{"$f":"IF('[1]FISCAL(M)'!$L340=\"\",\"\",'[1]FISCAL(M)'!$L340)","v":"n.d."},{"$f":"+'[1]REAL(A)'!$AP$37","v":334190.95637527615},"n.d.",{"$f":"+IF(OR(CT333=\"\",+CU333=\"\",+CV333=\"\"),\"\",(CT333+CU333+CV333))","v":147047.54007715572},{"$f":"'[1]Gráfico REM'!BG334","v":26295.450867128384},{"$f":"'[1]Gráfico REM'!BH334","v":112838.20088005051},{"$f":"'[1]Gráfico REM'!BI334","v":7913.8883299768222},{"$f":"IFERROR(+((CS333/CS321)-1)*100,\"\")","v":7.5113957202785242},{"$f":"IFERROR(+((CT333/CT321)-1)*100,\"\")","v":8.3871421196785469},{"$f":"IFERROR(+((CU333/CU321)-1)*100,\"\")","v":7.3503393078705681},{"$f":"IFERROR(+((CV333/CV321)-1)*100,\"\")","v":6.9280769717981139},{"$f":"+IF(OR(DB333=\"\",+DC333=\"\",+DD333=\"\"),\"\",(DB333+DC333+DD333))","v":219611.00030349573},{"$f":"'[1]Gráfico REM'!BK334","v":28563.089680378383},{"$f":"'[1]Gráfico REM'!BL334","v":161950.62459891051},{"$f":"'[1]Gráfico REM'!BM334","v":29097.286024206827},{"$f":"IFERROR(+((DA333/DA321)-1)*100,\"\")","v":6.0396996133605052},{"$f":"IFERROR(+((DB333/DB321)-1)*100,\"\")","v":7.6849988137555281},{"$f":"IFERROR(+((DC333/DC321)-1)*100,\"\")","v":8.2563202570074665},{"$f":"IFERROR(+((DD333/DD321)-1)*100,\"\")","v":-6.0733167233377294}]
[2017,"agosto","2017-agosto",{"$f":"IF('[1]REAL IPC(M)'!$AL341=\"\",\"\",+'[1]REAL IPC(M)'!$AL341)","v":3.169150908685614},{"$f":"IF('[1]REAL IPC(M)'!$BE341=\"\",\"\",+'[1]REAL IPC(M)'!$BE341)","v":2.9436946934446873},{"$f":"IF('[1]REAL IPC(M)'!$AM341=\"\",\"\",+'[1]REAL IPC(M)'!$AM341)","v":2.7843687553442242},{"$f":"IF('[1]REAL IPC(M)'!$BI341=\"\",\"\",+'[1]REAL IPC(M)'!$BI341)","v":2.7147193184097418},{"$f":"IF('[1]REAL IMAE(M)'!BJ341=\"\",\"\",'[1]REAL IMAE(M)'!BJ341)","v":3.6248803264766316},{"$f":"IF('[1]REAL IMAE(M)'!BK341=\"\",\"\",'[1]REAL IMAE(M)'!BK341)","v":4.2537763950573071},{"$f":"IF('[1]REAL IMAE(M)'!BN341=\"\",\"\",'[1]REAL IMAE(M)'!BN341)","v":3.9085371274867109},{"$f":"IF('[1]REAL IMAE(M)'!BO341=\"\",\"\",'[1]REAL IMAE(M)'!BO341)","v":4.2909852777464952},{"$f":"IF('[1]EXT RIN(M)'!$K341=\"\",\"\",'[1]EXT RIN(M)'!$K341)","v":34677.313132066774},null,{"$f":"IF('[1]EXT RIN(M)'!$L341=\"\",\"\",'[1]EXT RIN(M)'!$L341)","v":38248.688950976772},null,{"$f":"IF('[1]MONE(M)CARD'!EG341=\"\",\"\",'[1]MONE(M)CARD'!EG341)","v":34060.131085585774},{"$f":"IF('[1]MONE(M)CARD'!EK341=\"\",\"\",'[1]MONE(M)CARD'!EK341)","v":55972.057199716568},{"$f":"IF('[1]MONE(M)CARD'!EP341=\"\",\"\",'[1]MONE(M)CARD'!EP341)","v":30961.198159757434},{"$f":"IF('[1]MONE(M)CARD'!ES341=\"\",\"\",'[1]MONE(M)CARD'!ES341)","v":5.023019033220999},{"$f":"IF('[1]MONE(M)CARD'!EV341=\"\",\"\",'[1]MONE(M)CARD'!EV341)","v":6.2124167669351804},{"$f":"IF('[1]MONE(M)CARD'!EZ341=\"\",\"\",'[1]MONE(M)CARD'!EZ341)","v":6.0335777012022085},{"$f":"IF('[1]MONE(M)CAPARD'!FC341=\"\",\"\",'[1]MONE(M)CAPARD'!FC341)","v":42141.02390176578},{"$f":"IF('[1]MONE(M)CAPARD'!FG341=\"\",\"\",'[1]MONE(M)CAPARD'!FG341)","v":87501.528052566602},{"$f":"IF('[1]MONE(M)CAPARD'!FL341=\"\",\"\",'[1]MONE(M)CAPARD'!FL341)","v":30961.198159757405},{"$f":"IF('[1]MONE(M)CAPARD'!FO341=\"\",\"\",'[1]MONE(M)CAPARD'!FO341)","v":5.3319541611592358},{"$f":"IF('[1]MONE(M)CAPARD'!FR341=\"\",\"\",'[1]MONE(M)CAPARD'!FR341)","v":6.5615626108363578},{"$f":"IF('[1]MONE(M)CAPARD'!FV341=\"\",\"\",'[1]MONE(M)CAPARD'!FV341)","v":6.3585731806216517},{"$f":"IF('[1]MONE(M)CARD'!FV341=\"\",\"\",'[1]MONE(M)CARD'!FV341)","v":1592.2866414150287},{"$f":"IF('[1]MONE(M)CARD'!GD341=\"\",\"\",'[1]MONE(M)CARD'!GD341)","v":81.665204839963835},{"$f":"IF('[1]MONE(M)CARD'!GE341=\"\",\"\",'[1]MONE(M)CARD'!GE341)","v":11525.035081288079},{"$f":"IF(AD334=\"\",\"\",((AD334/AD321)-1)*100)","v":24.952744163324205},{"$f":"IF('[9]II.2.Balance OSD-Activos'!J199=\"\",\"\",'[9]II.2.Balance OSD-Activos'!J199)","v":295.92106389287028},{"$f":"IF('[9]II.2.Balance OSD-Activos'!N199=\"\",\"\",'[9]II.2.Balance OSD-Activos'!N199)","v":995.64441069538702},{"$f":"IF('[9]II.2.Balance OSD-Activos'!R199=\"\",\"\",'[9]II.2.Balance OSD-Activos'!R199)","v":51164.935658253096},{"$f":"IF('[9]II.2.Balance OSD-Activos'!S199=\"\",\"\",'[9]II.2.Balance OSD-Activos'!S199)","v":56293.086554723777},{"$f":"IFERROR(+AF334+AH334,\"\")","v":51460.856722145967},{"$f":"IF(OR(AF334=\"\",AG334=\"\",AH334=\"\",AI334=\"\"),\"\",SUM(AF334:AI334))","v":108749.58768756513},{"$f":"IF(OR(AF334=\"\",AF322=\"\"),\"\",((AF334/AF322)-1)*100)","v":37.831205211992327},{"$f":"IF(OR(AJ334=\"\",AJ322=\"\"),\"\",((AJ334/AJ322)-1)*100)","v":6.9868513847645142},{"$f":"IF(OR(AG334=\"\",AG322=\"\"),\"\",((AG334/AG322)-1)*100)","v":3.0493090081132213},{"$f":"IF(OR(AH334=\"\",AH322=\"\"),\"\",((AH334/AH322)-1)*100)","v":6.8485583723053356},{"$f":"IF(OR(AI334=\"\",AI322=\"\"),\"\",((AI334/AI322)-1)*100)","v":8.0518861530036503},{"$f":"IF(OR(AK334=\"\",AK322=\"\"),\"\",((AK334/AK322)-1)*100)","v":7.4977221212588985},{"$f":"IF(OR(AQ334=\"\",AQ333=\"\"),\"\",AQ334-AQ333)","v":-0.38027977134820201},{"$f":"IF('[1]MONE(M)CAPARD'!GS341=\"\",\"\",'[1]MONE(M)CAPARD'!GS341)","v":20778.658838697313},{"$f":"IF('[1]MONE(M)CARD'!HA341=\"\",\"\",'[1]MONE(M)CAPARD'!HA341)","v":13452.065958708079},{"$f":"IF('[1]MONE(M)CAPARD'!HB341=\"\",\"\",'[1]MONE(M)CAPARD'!HB341)","v":7326.5928799892336},"n.d.",{"$f":"IF('[10]II.2.Balance OSD-Activos'!J199=\"\",\"\",'[10]II.2.Balance OSD-Activos'!J199)","v":2478.6162302528705},{"$f":"IF('[10]II.2.Balance OSD-Activos'!N199=\"\",\"\",'[10]II.2.Balance OSD-Activos'!N199)","v":1554.9975803353871},{"$f":"IF('[10]II.2.Balance OSD-Activos'!R199=\"\",\"\",'[10]II.2.Balance OSD-Activos'!R199)","v":74504.709054843101},{"$f":"IF('[10]II.2.Balance OSD-Activos'!S199=\"\",\"\",'[10]II.2.Balance OSD-Activos'!S199)","v":78789.077815813769},{"$f":"IFERROR(+AW334+AY334,\"\")","v":76983.325285095969},{"$f":"IF(OR(AW334=\"\",AX334=\"\",AY334=\"\",AZ334=\"\"),\"\",SUM(AW334:AZ334))","v":157327.40068124514},{"$f":"IF(OR(AW334=\"\",AW322=\"\"),\"\",((AW334/AW322)-1)*100)","v":21.570548909274368},{"$f":"IF(OR(BA334=\"\",BA322=\"\"),\"\",((BA334/BA322)-1)*100)","v":6.8346871179636448},{"$f":"IF(OR(AX334=\"\",AX322=\"\"),\"\",((AX334/AX322)-1)*100)","v":9.2249264485983815},{"$f":"IF(OR(AY334=\"\",AY322=\"\"),\"\",((AY334/AY322)-1)*100)","v":6.4056081313917934},{"$f":"IF(OR(AZ334=\"\",AZ322=\"\"),\"\",((AZ334/AZ322)-1)*100)","v":8.6265507063113098},{"$f":"IF(OR(BB334=\"\",BB322=\"\"),\"\",((BB334/BB322)-1)*100)","v":7.7480952926386015},{"$f":"IF(OR(BH334=\"\",BH333=\"\"),\"\",BH334-BH333)","v":-0.90913645917600849},{"$f":"IF('[1]MONE(M)CAPARD'!AS341=\"\",\"\",'[1]MONE(M)CAPARD'!AS341)","v":4.5},{"$f":"IF('[1]MONE(M)CAPARD'!AT341=\"\",\"\",'[1]MONE(M)CAPARD'!AT341)","v":"n.a."},{"$f":"IF('[1]MONE(M)CAPARD'!AU341=\"\",\"\",'[1]MONE(M)CAPARD'!AU341)","v":3},{"$f":"IF('[1]MONE(M)CAPARD'!AV341=\"\",\"\",'[1]MONE(M)CAPARD'!AV341)","v":5.5},{"$f":"IF('[1]MONE(M)CAPARD'!AW341=\"\",\"\",'[1]MONE(M)CAPARD'!AW341)","v":"n.a."},{"$f":"IF('[1]MONE(M)CAPARD'!AX341=\"\",\"\",'[1]MONE(M)CAPARD'!AX341)","v":5.25},{"$f":"IF('[1]MONE(M)CAPARD'!AY341=\"\",\"\",'[1]MONE(M)CAPARD'!AY341)","v":"n.a."},{"$f":"IF('[1]FISCAL(M)'!$K341=\"\",\"\",'[1]FISCAL(M)'!$K341)","v":-2845.2560983364565},{"$f":"IF('[1]FISCAL(M)'!$L341=\"\",\"\",'[1]FISCAL(M)'!$L341)","v":"n.d."},{"$f":"IF('[1]FISCAL(M)'!$AY341=\"\",\"\",'[1]FISCAL(M)'!$AY341)","v":126146.23766832321},{"$f":"IF('[1]FISCAL(M)'!$BI341=\"\",\"\",'[1]FISCAL(M)'!$BI341)","v":65675.861703757051},{"$f":"IF('[1]FISCAL(M)'!$BS341=\"\",\"\",'[1]FISCAL(M)'!$BS341)","v":60470.375964566178},{"$f":"IF('[1]FISCAL(M)'!$AZ341=\"\",\"\",'[1]FISCAL(M)'!$AZ341)","v":149200.62766832323},{"$f":"IF('[1]FISCAL(M)'!$BJ341=\"\",\"\",'[1]FISCAL(M)'!$BJ341)","v":70714.211703757028},{"$f":"IF('[1]FISCAL(M)'!$BT341=\"\",\"\",'[1]FISCAL(M)'!$BT341)","v":78486.415964566171},{"$f":"IF('[2]MONE(M)'!$AO341=\"\",\"\",'[2]MONE(M)'!$AO341)","v":21280793.521001115},{"$f":"IF('[3]MONE(M)'!$AO341=\"\",\"\",'[3]MONE(M)'!$AO341)","v":11985.30219644},{"$f":"IF('[4]MONE(M)'!$AO341=\"\",\"\",'[4]MONE(M)'!$AO341)","v":191689.69312869001},{"$f":"IF('[5]MONE(M)'!$AO341=\"\",\"\",'[5]MONE(M)'!$AO341)","v":295402.4640776192},{"$f":"IF('[6]MONE(M)'!$AO341=\"\",\"\",'[6]MONE(M)'!$AO341)","v":153947.64398992402},{"$f":"IF('[7]MONE(M)'!$AO341=\"\",\"\",'[7]MONE(M)'!$AO341)","v":954628.71069402993},{"$f":"IF('[8]MONE(M)'!$AO341=\"\",\"\",'[8]MONE(M)'!$AO341)","v":49428.905064760009},10.714731445290315,5.4822008819452872,4.7731888380598608,10.496947308193505,17.967551796968607,10.374183581692753,8.122368683310599,{"$f":"'[1]FISCAL(M)'!$K341","v":-2845.2560983364565},{"$f":"+'[1]REAL(A)'!$AO$37","v":271971.90837527614},-1.0461580813009832,{"$f":"IF('[1]FISCAL(M)'!$L341=\"\",\"\",'[1]FISCAL(M)'!$L341)","v":"n.d."},{"$f":"+'[1]REAL(A)'!$AP$37","v":334190.95637527615},"n.d.",147453.33007765654,{"$f":"'[1]Gráfico REM'!BG335","v":26331.235083935484},{"$f":"'[1]Gráfico REM'!BH335","v":113286.3128292023},{"$f":"'[1]Gráfico REM'!BI335","v":7835.7821645187487},{"$f":"IFERROR(+((CS334/CS322)-1)*100,\"\")","v":6.9419215446901772},{"$f":"IFERROR(+((CT334/CT322)-1)*100,\"\")","v":7.5093144474697171},{"$f":"IFERROR(+((CU334/CU322)-1)*100,\"\")","v":7.0661639925825748},{"$f":"IFERROR(+((CV334/CV322)-1)*100,\"\")","v":3.3742928192767918},{"$f":"+IF(OR(DB334=\"\",+DC334=\"\",+DD334=\"\"),\"\",(DB334+DC334+DD334))","v":219848.94338291656},{"$f":"'[1]Gráfico REM'!BK335","v":28539.397650075487},{"$f":"'[1]Gráfico REM'!BL335","v":162715.21789396231},{"$f":"'[1]Gráfico REM'!BM335","v":28594.327838878751},{"$f":"IFERROR(+((DA334/DA322)-1)*100,\"\")","v":5.1611328496105502},{"$f":"IFERROR(+((DB334/DB322)-1)*100,\"\")","v":6.6838577246892461},{"$f":"IFERROR(+((DC334/DC322)-1)*100,\"\")","v":7.3848245198328888},{"$f":"IFERROR(+((DD334/DD322)-1)*100,\"\")","v":-7.1082307150755479}]
[2017,"septiembre","2017-septiembre",{"$f":"IF('[1]REAL IPC(M)'!$AL342=\"\",\"\",+'[1]REAL IPC(M)'!$AL342)","v":3.5270747821621429},{"$f":"IF('[1]REAL IPC(M)'!$BE342=\"\",\"\",+'[1]REAL IPC(M)'!$BE342)","v":2.9684612247643738},{"$f":"IF('[1]REAL IPC(M)'!$AM342=\"\",\"\",+'[1]REAL IPC(M)'!$AM342)","v":3.128230515930408},{"$f":"IF('[1]REAL IPC(M)'!$BI342=\"\",\"\",+'[1]REAL IPC(M)'!$BI342)","v":2.7390228386183102},{"$f":"IF('[1]REAL IMAE(M)'!BJ342=\"\",\"\",'[1]REAL IMAE(M)'!BJ342)","v":3.463328946633748},{"$f":"IF('[1]REAL IMAE(M)'!BK342=\"\",\"\",'[1]REAL IMAE(M)'!BK342)","v":4.2222222171051982},{"$f":"IF('[1]REAL IMAE(M)'!BN342=\"\",\"\",'[1]REAL IMAE(M)'!BN342)","v":3.7320763161772685},{"$f":"IF('[1]REAL IMAE(M)'!BO342=\"\",\"\",'[1]REAL IMAE(M)'!BO342)","v":4.2574068077560367},{"$f":"IF('[1]EXT RIN(M)'!$K342=\"\",\"\",'[1]EXT RIN(M)'!$K342)","v":34665.42727563584},null,{"$f":"IF('[1]EXT RIN(M)'!$L342=\"\",\"\",'[1]EXT RIN(M)'!$L342)","v":38236.803094545838},null,{"$f":"IF('[1]MONE(M)CARD'!EG342=\"\",\"\",'[1]MONE(M)CARD'!EG342)","v":34133.661461119576},{"$f":"IF('[1]MONE(M)CARD'!EK342=\"\",\"\",'[1]MONE(M)CARD'!EK342)","v":55997.152315342079},{"$f":"IF('[1]MONE(M)CARD'!EP342=\"\",\"\",'[1]MONE(M)CARD'!EP342)","v":30676.826618563806},{"$f":"IF('[1]MONE(M)CARD'!ES342=\"\",\"\",'[1]MONE(M)CARD'!ES342)","v":4.2401236904381356},{"$f":"IF('[1]MONE(M)CARD'!EV342=\"\",\"\",'[1]MONE(M)CARD'!EV342)","v":6.3939163116371045},{"$f":"IF('[1]MONE(M)CARD'!EZ342=\"\",\"\",'[1]MONE(M)CARD'!EZ342)","v":6.1372519398422476},{"$f":"IF('[1]MONE(M)CAPARD'!FC342=\"\",\"\",'[1]MONE(M)CAPARD'!FC342)","v":42216.715988799573},{"$f":"IF('[1]MONE(M)CAPARD'!FG342=\"\",\"\",'[1]MONE(M)CAPARD'!FG342)","v":87537.835403652047},{"$f":"IF('[1]MONE(M)CAPARD'!FL342=\"\",\"\",'[1]MONE(M)CAPARD'!FL342)","v":30676.82661856382},{"$f":"IF('[1]MONE(M)CAPARD'!FO342=\"\",\"\",'[1]MONE(M)CAPARD'!FO342)","v":4.1309126833821042},{"$f":"IF('[1]MONE(M)CAPARD'!FR342=\"\",\"\",'[1]MONE(M)CAPARD'!FR342)","v":6.2784074486878172},{"$f":"IF('[1]MONE(M)CAPARD'!FV342=\"\",\"\",'[1]MONE(M)CAPARD'!FV342)","v":6.1074262704798432},{"$f":"IF('[1]MONE(M)CARD'!FV342=\"\",\"\",'[1]MONE(M)CARD'!FV342)","v":1637.8635033416222},{"$f":"IF('[1]MONE(M)CARD'!GD342=\"\",\"\",'[1]MONE(M)CARD'!GD342)","v":198.24638114282885},{"$f":"IF('[1]MONE(M)CARD'!GE342=\"\",\"\",'[1]MONE(M)CARD'!GE342)","v":11867.479857118258},28.014503984794658,{"$f":"IF('[9]II.2.Balance OSD-Activos'!J200=\"\",\"\",'[9]II.2.Balance OSD-Activos'!J200)","v":284.48620979767003},{"$f":"IF('[9]II.2.Balance OSD-Activos'!N200=\"\",\"\",'[9]II.2.Balance OSD-Activos'!N200)","v":1027.2192382294675},{"$f":"IF('[9]II.2.Balance OSD-Activos'!R200=\"\",\"\",'[9]II.2.Balance OSD-Activos'!R200)","v":51243.749071659069},{"$f":"IF('[9]II.2.Balance OSD-Activos'!S200=\"\",\"\",'[9]II.2.Balance OSD-Activos'!S200)","v":56688.775293158862},51528.235281456742,109244.22981284506,37.921838274692355,6.4914667915759505,6.1700919219238815,6.3569109627807041,7.8715215454009169,7.2000931114764244,-0.29762900978247409,{"$f":"IF('[1]MONE(M)CAPARD'!GS342=\"\",\"\",'[1]MONE(M)CAPARD'!GS342)","v":21049.166463041001},{"$f":"IF('[1]MONE(M)CARD'!HA342=\"\",\"\",'[1]MONE(M)CAPARD'!HA342)","v":13794.510734538257},{"$f":"IF('[1]MONE(M)CAPARD'!HB342=\"\",\"\",'[1]MONE(M)CAPARD'!HB342)","v":7254.6557285027448},"n.d.",{"$f":"IF('[10]II.2.Balance OSD-Activos'!J200=\"\",\"\",'[10]II.2.Balance OSD-Activos'!J200)","v":2467.1813761576705},{"$f":"IF('[10]II.2.Balance OSD-Activos'!N200=\"\",\"\",'[10]II.2.Balance OSD-Activos'!N200)","v":1586.5724078694675},{"$f":"IF('[10]II.2.Balance OSD-Activos'!R200=\"\",\"\",'[10]II.2.Balance OSD-Activos'!R200)","v":74587.213033139065},{"$f":"IF('[10]II.2.Balance OSD-Activos'!S200=\"\",\"\",'[10]II.2.Balance OSD-Activos'!S200)","v":79191.498328318863},77054.394409296743,157832.46514548507,21.052958709296512,6.1536543120823461,7.2643946525975611,5.7232291004018609,8.2333356192261888,7.1983019096045098,-0.54979338303409175,{"$f":"IF('[1]MONE(M)CAPARD'!AS342=\"\",\"\",'[1]MONE(M)CAPARD'!AS342)","v":4.5},{"$f":"IF('[1]MONE(M)CAPARD'!AT342=\"\",\"\",'[1]MONE(M)CAPARD'!AT342)","v":"n.a."},{"$f":"IF('[1]MONE(M)CAPARD'!AU342=\"\",\"\",'[1]MONE(M)CAPARD'!AU342)","v":3},{"$f":"IF('[1]MONE(M)CAPARD'!AV342=\"\",\"\",'[1]MONE(M)CAPARD'!AV342)","v":5.5},{"$f":"IF('[1]MONE(M)CAPARD'!AW342=\"\",\"\",'[1]MONE(M)CAPARD'!AW342)","v":"n.a."},{"$f":"IF('[1]MONE(M)CAPARD'!AX342=\"\",\"\",'[1]MONE(M)CAPARD'!AX342)","v":5.25},{"$f":"IF('[1]MONE(M)CAPARD'!AY342=\"\",\"\",'[1]MONE(M)CAPARD'!AY342)","v":"n.a."},{"$f":"IF('[1]FISCAL(M)'!$K342=\"\",\"\",'[1]FISCAL(M)'!$K342)","v":-3503.0403285530829},{"$f":"IF('[1]FISCAL(M)'!$L342=\"\",\"\",'[1]FISCAL(M)'!$L342)","v":-5473.0403285530829},{"$f":"IF('[1]FISCAL(M)'!$AY342=\"\",\"\",'[1]FISCAL(M)'!$AY342)","v":126519.02704645188},{"$f":"IF('[1]FISCAL(M)'!$BI342=\"\",\"\",'[1]FISCAL(M)'!$BI342)","v":66136.134984131131},{"$f":"IF('[1]FISCAL(M)'!$BS342=\"\",\"\",'[1]FISCAL(M)'!$BS342)","v":60382.892062320774},{"$f":"IF('[1]FISCAL(M)'!$AZ342=\"\",\"\",'[1]FISCAL(M)'!$AZ342)","v":149899.22704645188},{"$f":"IF('[1]FISCAL(M)'!$BJ342=\"\",\"\",'[1]FISCAL(M)'!$BJ342)","v":71242.844984131123},{"$f":"IF('[1]FISCAL(M)'!$BT342=\"\",\"\",'[1]FISCAL(M)'!$BT342)","v":78656.382062320772},{"$f":"IF('[2]MONE(M)'!$AO342=\"\",\"\",'[2]MONE(M)'!$AO342)","v":21242984.962045949},{"$f":"IF('[3]MONE(M)'!$AO342=\"\",\"\",'[3]MONE(M)'!$AO342)","v":12030.526726410002},{"$f":"IF('[4]MONE(M)'!$AO342=\"\",\"\",'[4]MONE(M)'!$AO342)","v":192569.09123292693},{"$f":"IF('[5]MONE(M)'!$AO342=\"\",\"\",'[5]MONE(M)'!$AO342)","v":298280.91440578352},{"$f":"IF('[6]MONE(M)'!$AO342=\"\",\"\",'[6]MONE(M)'!$AO342)","v":156009.53315301012},{"$f":"IF('[7]MONE(M)'!$AO342=\"\",\"\",'[7]MONE(M)'!$AO342)","v":963192.85069634998},{"$f":"IF('[8]MONE(M)'!$AO342=\"\",\"\",'[8]MONE(M)'!$AO342)","v":49439.32740372001},9.183086615612023,5.4722573353432225,5.2859230382994227,9.9842419782303118,17.764304661113961,10.063119300118096,7.1067564670950656,{"$f":"'[1]FISCAL(M)'!$K342","v":-3503.0403285530829},{"$f":"+'[1]REAL(A)'!$AO$37","v":271971.90837527614},-1.288015497438606,{"$f":"IF('[1]FISCAL(M)'!$L342=\"\",\"\",'[1]FISCAL(M)'!$L342)","v":-5473.0403285530829},{"$f":"+'[1]REAL(A)'!$AP$37","v":334190.95637527615},-1.6376985146202432,147891.9873121462,{"$f":"'[1]Gráfico REM'!BG336","v":26236.966744128295},{"$f":"'[1]Gráfico REM'!BH336","v":113714.38276150447},{"$f":"'[1]Gráfico REM'!BI336","v":7940.6378065134213},6.9205745065310298,7.8623675653368252,6.6803124772087275,7.28560834613321,220350.53548121618,{"$f":"'[1]Gráfico REM'!BK336","v":28445.129310268298},{"$f":"'[1]Gráfico REM'!BL336","v":163153.71016522447},{"$f":"'[1]Gráfico REM'!BM336","v":28751.696005723417},4.9060257606813984,6.8280802734190793,6.8091757905220263,-6.2427506713680136]
[2017,"octubre","2017-octubre",{"$f":"IF('[1]REAL IPC(M)'!$AL343=\"\",\"\",+'[1]REAL IPC(M)'!$AL343)","v":3.5862181155115191},{"$f":"IF('[1]REAL IPC(M)'!$BE343=\"\",\"\",+'[1]REAL IPC(M)'!$BE343)","v":2.9916204190977735},{"$f":"IF('[1]REAL IPC(M)'!$AM343=\"\",\"\",+'[1]REAL IPC(M)'!$AM343)","v":3.1698233945396614},{"$f":"IF('[1]REAL IPC(M)'!$BI343=\"\",\"\",+'[1]REAL IPC(M)'!$BI343)","v":2.7620217164126659},{"$f":"IF('[1]REAL IMAE(M)'!BJ343=\"\",\"\",'[1]REAL IMAE(M)'!BJ343)","v":3.6896478896627505},{"$f":"IF('[1]REAL IMAE(M)'!BK343=\"\",\"\",'[1]REAL IMAE(M)'!BK343)","v":4.1908924623192512},{"$f":"IF('[1]REAL IMAE(M)'!BN343=\"\",\"\",'[1]REAL IMAE(M)'!BN343)","v":3.8724953092136971},{"$f":"IF('[1]REAL IMAE(M)'!BO343=\"\",\"\",'[1]REAL IMAE(M)'!BO343)","v":4.2235065076882572},{"$f":"IF('[1]EXT RIN(M)'!$K343=\"\",\"\",'[1]EXT RIN(M)'!$K343)","v":34569.499943348463},null,{"$f":"IF('[1]EXT RIN(M)'!$L343=\"\",\"\",'[1]EXT RIN(M)'!$L343)","v":38021.486226318462},null,{"$f":"IF('[1]MONE(M)CARD'!EG343=\"\",\"\",'[1]MONE(M)CARD'!EG343)","v":34543.563755076662},{"$f":"IF('[1]MONE(M)CARD'!EK343=\"\",\"\",'[1]MONE(M)CARD'!EK343)","v":56053.906893535554},{"$f":"IF('[1]MONE(M)CARD'!EP343=\"\",\"\",'[1]MONE(M)CARD'!EP343)","v":30771.674688001018},{"$f":"IF('[1]MONE(M)CARD'!ES343=\"\",\"\",'[1]MONE(M)CARD'!ES343)","v":4.4235540829125286},{"$f":"IF('[1]MONE(M)CARD'!EV343=\"\",\"\",'[1]MONE(M)CARD'!EV343)","v":6.5681591335102762},{"$f":"IF('[1]MONE(M)CARD'!EZ343=\"\",\"\",'[1]MONE(M)CARD'!EZ343)","v":6.2240205602005938},{"$f":"IF('[1]MONE(M)CAPARD'!FC343=\"\",\"\",'[1]MONE(M)CAPARD'!FC343)","v":42329.64289428667},{"$f":"IF('[1]MONE(M)CAPARD'!FG343=\"\",\"\",'[1]MONE(M)CAPARD'!FG343)","v":87736.245860025578},{"$f":"IF('[1]MONE(M)CAPARD'!FL343=\"\",\"\",'[1]MONE(M)CAPARD'!FL343)","v":30771.674688001018},{"$f":"IF('[1]MONE(M)CAPARD'!FO343=\"\",\"\",'[1]MONE(M)CAPARD'!FO343)","v":3.0062398902568344},{"$f":"IF('[1]MONE(M)CAPARD'!FR343=\"\",\"\",'[1]MONE(M)CAPARD'!FR343)","v":6.0180357089957948},{"$f":"IF('[1]MONE(M)CAPARD'!FV343=\"\",\"\",'[1]MONE(M)CAPARD'!FV343)","v":5.8651158611124687},{"$f":"IF('[1]MONE(M)CARD'!FV343=\"\",\"\",'[1]MONE(M)CARD'!FV343)","v":1622.5692804193561},{"$f":"IF('[1]MONE(M)CARD'!GD343=\"\",\"\",'[1]MONE(M)CARD'!GD343)","v":86.03246663391711},{"$f":"IF('[1]MONE(M)CARD'!GE343=\"\",\"\",'[1]MONE(M)CARD'!GE343)","v":12311.178664468767},{"$f":"IF(AD336=\"\",\"\",((AD336/AD323)-1)*100)","v":31.413340669212332},{"$f":"IF('[9]II.2.Balance OSD-Activos'!J201=\"\",\"\",'[9]II.2.Balance OSD-Activos'!J201)","v":301.24456491479521},{"$f":"IF('[9]II.2.Balance OSD-Activos'!N201=\"\",\"\",'[9]II.2.Balance OSD-Activos'!N201)","v":1091.8728504283622},{"$f":"IF('[9]II.2.Balance OSD-Activos'!R201=\"\",\"\",'[9]II.2.Balance OSD-Activos'!R201)","v":51580.975296544377},{"$f":"IF('[9]II.2.Balance OSD-Activos'!S201=\"\",\"\",'[9]II.2.Balance OSD-Activos'!S201)","v":57080.497919311965},{"$f":"IFERROR(+AF336+AH336,\"\")","v":51882.219861459169},{"$f":"IF(OR(AF336=\"\",AG336=\"\",AH336=\"\",AI336=\"\"),\"\",SUM(AF336:AI336))","v":110054.59063119951},{"$f":"IF(OR(AF336=\"\",AF324=\"\"),\"\",((AF336/AF324)-1)*100)","v":40.58247448798069},{"$f":"IF(OR(AJ336=\"\",AJ324=\"\"),\"\",((AJ336/AJ324)-1)*100)","v":6.0112014672007774},{"$f":"IF(OR(AG336=\"\",AG324=\"\"),\"\",((AG336/AG324)-1)*100)","v":15.470446860289734},{"$f":"IF(OR(AH336=\"\",AH324=\"\"),\"\",((AH336/AH324)-1)*100)","v":5.8591669039382399},{"$f":"IF(OR(AI336=\"\",AI324=\"\"),\"\",((AI336/AI324)-1)*100)","v":7.5523206525007325},{"$f":"IF(OR(AK336=\"\",AK324=\"\"),\"\",((AK336/AK324)-1)*100)","v":6.8924841022255379},{"$f":"IF(OR(AQ336=\"\",AQ335=\"\"),\"\",AQ336-AQ335)","v":-0.30760900925088652},{"$f":"IF('[1]MONE(M)CAPARD'!GS343=\"\",\"\",'[1]MONE(M)CAPARD'!GS343)","v":21267.001442117711},{"$f":"IF('[1]MONE(M)CARD'!HA343=\"\",\"\",'[1]MONE(M)CAPARD'!HA343)","v":14272.586736688767},{"$f":"IF('[1]MONE(M)CAPARD'!HB343=\"\",\"\",'[1]MONE(M)CAPARD'!HB343)","v":6994.4147054289442},"n.d.",{"$f":"IF('[10]II.2.Balance OSD-Activos'!J201=\"\",\"\",'[10]II.2.Balance OSD-Activos'!J201)","v":2402.2683053447945},{"$f":"IF('[10]II.2.Balance OSD-Activos'!N201=\"\",\"\",'[10]II.2.Balance OSD-Activos'!N201)","v":1594.8336480583621},{"$f":"IF('[10]II.2.Balance OSD-Activos'!R201=\"\",\"\",'[10]II.2.Balance OSD-Activos'!R201)","v":75254.360267134369},{"$f":"IF('[10]II.2.Balance OSD-Activos'!S201=\"\",\"\",'[10]II.2.Balance OSD-Activos'!S201)","v":79940.953174111972},{"$f":"IFERROR(+AW336+AY336,\"\")","v":77656.628572479167},{"$f":"IF(OR(AW336=\"\",AX336=\"\",AY336=\"\",AZ336=\"\"),\"\",SUM(AW336:AZ336))","v":159192.41539464949},{"$f":"IF(OR(AW336=\"\",AW324=\"\"),\"\",((AW336/AW324)-1)*100)","v":17.295830579526349},{"$f":"IF(OR(BA336=\"\",BA324=\"\"),\"\",((BA336/BA324)-1)*100)","v":5.9186827161283206},{"$f":"IF(OR(AX336=\"\",AX324=\"\"),\"\",((AX336/AX324)-1)*100)","v":8.3003891304595179},{"$f":"IF(OR(AY336=\"\",AY324=\"\"),\"\",((AY336/AY324)-1)*100)","v":5.5917407872641212},{"$f":"IF(OR(AZ336=\"\",AZ324=\"\"),\"\",((AZ336/AZ324)-1)*100)","v":8.0668069081940796},{"$f":"IF(OR(BB336=\"\",BB324=\"\"),\"\",((BB336/BB324)-1)*100)","v":7.0104284759749058},{"$f":"IF(OR(BH336=\"\",BH335=\"\"),\"\",BH336-BH335)","v":-0.18787343362960396},{"$f":"IF('[1]MONE(M)CAPARD'!AS343=\"\",\"\",'[1]MONE(M)CAPARD'!AS343)","v":4.5},{"$f":"IF('[1]MONE(M)CAPARD'!AT343=\"\",\"\",'[1]MONE(M)CAPARD'!AT343)","v":"n.a."},{"$f":"IF('[1]MONE(M)CAPARD'!AU343=\"\",\"\",'[1]MONE(M)CAPARD'!AU343)","v":3},{"$f":"IF('[1]MONE(M)CAPARD'!AV343=\"\",\"\",'[1]MONE(M)CAPARD'!AV343)","v":5.5},{"$f":"IF('[1]MONE(M)CAPARD'!AW343=\"\",\"\",'[1]MONE(M)CAPARD'!AW343)","v":"n.a."},{"$f":"IF('[1]MONE(M)CAPARD'!AX343=\"\",\"\",'[1]MONE(M)CAPARD'!AX343)","v":5.25},{"$f":"IF('[1]MONE(M)CAPARD'!AY343=\"\",\"\",'[1]MONE(M)CAPARD'!AY343)","v":"n.a."},{"$f":"IF('[1]FISCAL(M)'!$K343=\"\",\"\",'[1]FISCAL(M)'!$K343)","v":-4002.3322462574615},{"$f":"IF('[1]FISCAL(M)'!$L343=\"\",\"\",'[1]FISCAL(M)'!$L343)","v":"n.d."},{"$f":"IF('[1]FISCAL(M)'!$AY343=\"\",\"\",'[1]FISCAL(M)'!$AY343)","v":127470.49326946521},{"$f":"IF('[1]FISCAL(M)'!$BI343=\"\",\"\",'[1]FISCAL(M)'!$BI343)","v":67021.859035704518},{"$f":"IF('[1]FISCAL(M)'!$BS343=\"\",\"\",'[1]FISCAL(M)'!$BS343)","v":60448.634233760691},{"$f":"IF('[1]FISCAL(M)'!$AZ343=\"\",\"\",'[1]FISCAL(M)'!$AZ343)","v":150889.19326946524},{"$f":"IF('[1]FISCAL(M)'!$BJ343=\"\",\"\",'[1]FISCAL(M)'!$BJ343)","v":72175.06903570451},{"$f":"IF('[1]FISCAL(M)'!$BT343=\"\",\"\",'[1]FISCAL(M)'!$BT343)","v":78714.124233760696},{"$f":"IF('[2]MONE(M)'!$AO343=\"\",\"\",'[2]MONE(M)'!$AO343)","v":21257106.042627841},{"$f":"IF('[3]MONE(M)'!$AO343=\"\",\"\",'[3]MONE(M)'!$AO343)","v":12090.940756410002},{"$f":"IF('[4]MONE(M)'!$AO343=\"\",\"\",'[4]MONE(M)'!$AO343)","v":193982.15318468469},{"$f":"IF('[5]MONE(M)'!$AO343=\"\",\"\",'[5]MONE(M)'!$AO343)","v":300667.58244781557},{"$f":"IF('[6]MONE(M)'!$AO343=\"\",\"\",'[6]MONE(M)'!$AO343)","v":158415.80551325923},{"$f":"IF('[7]MONE(M)'!$AO343=\"\",\"\",'[7]MONE(M)'!$AO343)","v":989061.79507474008},{"$f":"IF('[8]MONE(M)'!$AO343=\"\",\"\",'[8]MONE(M)'!$AO343)","v":50054.290763560013},8.1024380830316609,4.9628763274241816,5.3522033390909662,10.107532482149661,16.596870790368822,11.022547400676963,7.3732784910300886,{"$f":"'[1]FISCAL(M)'!$K343","v":-4002.3322462574615},{"$f":"+'[1]REAL(A)'!$AO$37","v":271971.90837527614},-1.47159766248171,{"$f":"IF('[1]FISCAL(M)'!$L343=\"\",\"\",'[1]FISCAL(M)'!$L343)","v":"n.d."},{"$f":"+'[1]REAL(A)'!$AP$37","v":334190.95637527615},"n.d.",{"$f":"+IF(OR(CT336=\"\",+CU336=\"\",+CV336=\"\"),\"\",(CT336+CU336+CV336))","v":149124.17185190122},{"$f":"'[1]Gráfico REM'!BG337","v":26401.675268843559},{"$f":"'[1]Gráfico REM'!BH337","v":114681.50500077824},{"$f":"'[1]Gráfico REM'!BI337","v":8040.9915822794046},{"$f":"IFERROR(+((CS336/CS324)-1)*100,\"\")","v":7.1352533062392975},{"$f":"IFERROR(+((CT336/CT324)-1)*100,\"\")","v":9.6399950622005228},{"$f":"IFERROR(+((CU336/CU324)-1)*100,\"\")","v":6.5506948462885628},{"$f":"IFERROR(+((CV336/CV324)-1)*100,\"\")","v":7.4830004429935482},{"$f":"+IF(OR(DB336=\"\",+DC336=\"\",+DD336=\"\"),\"\",(DB336+DC336+DD336))","v":222985.59850724123},{"$f":"'[1]Gráfico REM'!BK337","v":28701.954445333558},{"$f":"'[1]Gráfico REM'!BL337","v":164735.79576433825},{"$f":"'[1]Gráfico REM'!BM337","v":29547.848297569399},{"$f":"IFERROR(+((DA336/DA324)-1)*100,\"\")","v":5.4412894256451461},{"$f":"IFERROR(+((DB336/DB324)-1)*100,\"\")","v":8.9413648180238994},{"$f":"IFERROR(+((DC336/DC324)-1)*100,\"\")","v":6.7992974002581086},{"$f":"IFERROR(+((DD336/DD324)-1)*100,\"\")","v":-4.3269406873433836}]
[2017,"noviembre","2017-noviembre",{"$f":"IF('[1]REAL IPC(M)'!$AL344=\"\",\"\",+'[1]REAL IPC(M)'!$AL344)","v":4.0800682093129481},{"$f":"IF('[1]REAL IPC(M)'!$BE344=\"\",\"\",+'[1]REAL IPC(M)'!$BE344)","v":3.0129289824460948},{"$f":"IF('[1]REAL IPC(M)'!$AM344=\"\",\"\",+'[1]REAL IPC(M)'!$AM344)","v":3.6330850876065579},{"$f":"IF('[1]REAL IPC(M)'!$BI344=\"\",\"\",+'[1]REAL IPC(M)'!$BI344)","v":2.7834353704332626},{"$f":"IF('[1]REAL IMAE(M)'!BJ344=\"\",\"\",'[1]REAL IMAE(M)'!BJ344)","v":4.1413856345053235},{"$f":"IF('[1]REAL IMAE(M)'!BK344=\"\",\"\",'[1]REAL IMAE(M)'!BK344)","v":4.15973814465318},{"$f":"IF('[1]REAL IMAE(M)'!BN344=\"\",\"\",'[1]REAL IMAE(M)'!BN344)","v":4.2238452431288875},{"$f":"IF('[1]REAL IMAE(M)'!BO344=\"\",\"\",'[1]REAL IMAE(M)'!BO344)","v":4.1893199209491527},{"$f":"IF('[1]EXT RIN(M)'!$K344=\"\",\"\",'[1]EXT RIN(M)'!$K344)","v":35312.710180463109},null,{"$f":"IF('[1]EXT RIN(M)'!$L344=\"\",\"\",'[1]EXT RIN(M)'!$L344)","v":38577.649339733107},null,{"$f":"IF('[1]MONE(M)CARD'!EG344=\"\",\"\",'[1]MONE(M)CARD'!EG344)","v":35804.7271118676},{"$f":"IF('[1]MONE(M)CARD'!EK344=\"\",\"\",'[1]MONE(M)CARD'!EK344)","v":55692.846584933592},{"$f":"IF('[1]MONE(M)CARD'!EP344=\"\",\"\",'[1]MONE(M)CARD'!EP344)","v":30868.735900035885},{"$f":"IF('[1]MONE(M)CARD'!ES344=\"\",\"\",'[1]MONE(M)CARD'!ES344)","v":6.4862121795150607},{"$f":"IF('[1]MONE(M)CARD'!EV344=\"\",\"\",'[1]MONE(M)CARD'!EV344)","v":7.273237638115071},{"$f":"IF('[1]MONE(M)CARD'!EZ344=\"\",\"\",'[1]MONE(M)CARD'!EZ344)","v":6.643470612277369},{"$f":"IF('[1]MONE(M)CAPARD'!FC344=\"\",\"\",'[1]MONE(M)CAPARD'!FC344)","v":44053.768562317593},{"$f":"IF('[1]MONE(M)CAPARD'!FG344=\"\",\"\",'[1]MONE(M)CAPARD'!FG344)","v":87494.063097053586},{"$f":"IF('[1]MONE(M)CAPARD'!FL344=\"\",\"\",'[1]MONE(M)CAPARD'!FL344)","v":30868.735900035885},{"$f":"IF('[1]MONE(M)CAPARD'!FO344=\"\",\"\",'[1]MONE(M)CAPARD'!FO344)","v":5.2577669641163061},{"$f":"IF('[1]MONE(M)CAPARD'!FR344=\"\",\"\",'[1]MONE(M)CAPARD'!FR344)","v":6.7012911738341119},{"$f":"IF('[1]MONE(M)CAPARD'!FV344=\"\",\"\",'[1]MONE(M)CAPARD'!FV344)","v":6.3384541416243723},{"$f":"IF('[1]MONE(M)CARD'!FV344=\"\",\"\",'[1]MONE(M)CARD'!FV344)","v":1660.1333894543629},{"$f":"IF('[1]MONE(M)CARD'!GD344=\"\",\"\",'[1]MONE(M)CARD'!GD344)","v":63.077319953361183},{"$f":"IF('[1]MONE(M)CARD'!GE344=\"\",\"\",'[1]MONE(M)CARD'!GE344)","v":11499.230086594656},20.414815390637099,{"$f":"IF('[9]II.2.Balance OSD-Activos'!J202=\"\",\"\",'[9]II.2.Balance OSD-Activos'!J202)","v":301.23702701326533},{"$f":"IF('[9]II.2.Balance OSD-Activos'!N202=\"\",\"\",'[9]II.2.Balance OSD-Activos'!N202)","v":1073.3860840846946},{"$f":"IF('[9]II.2.Balance OSD-Activos'!R202=\"\",\"\",'[9]II.2.Balance OSD-Activos'!R202)","v":52161.35189560664},{"$f":"IF('[9]II.2.Balance OSD-Activos'!S202=\"\",\"\",'[9]II.2.Balance OSD-Activos'!S202)","v":57812.473572909301},{"$f":"IFERROR(+AF337+AH337,\"\")","v":52462.588922619907},{"$f":"IF(OR(AF337=\"\",AG337=\"\",AH337=\"\",AI337=\"\"),\"\",SUM(AF337:AI337))","v":111348.44857961391},46.500853933137584,5.7132507253577547,8.2396578720608016,5.5435517388648714,7.7239140021688968,6.771992638840052,-0.12049146338548589,{"$f":"IF('[1]MONE(M)CAPARD'!GS344=\"\",\"\",'[1]MONE(M)CAPARD'!GS344)","v":21264.055653265335},{"$f":"IF('[1]MONE(M)CARD'!HA344=\"\",\"\",'[1]MONE(M)CAPARD'!HA344)","v":13249.971624494658},{"$f":"IF('[1]MONE(M)CAPARD'!HB344=\"\",\"\",'[1]MONE(M)CAPARD'!HB344)","v":8014.0840287706778},"n.d.",{"$f":"IF('[10]II.2.Balance OSD-Activos'!J202=\"\",\"\",'[10]II.2.Balance OSD-Activos'!J202)","v":2366.3107088432662},{"$f":"IF('[10]II.2.Balance OSD-Activos'!N202=\"\",\"\",'[10]II.2.Balance OSD-Activos'!N202)","v":1556.0191821246945},{"$f":"IF('[10]II.2.Balance OSD-Activos'!R202=\"\",\"\",'[10]II.2.Balance OSD-Activos'!R202)","v":75945.263616616634},{"$f":"IF('[10]II.2.Balance OSD-Activos'!S202=\"\",\"\",'[10]II.2.Balance OSD-Activos'!S202)","v":80847.972854529304},78311.574325459893,160715.5663621139,15.119310715242973,5.8287035038584012,3.6083916693876228,5.5632553138930563,8.1595544468523471,6.9661069472396919,-4.4321528735213889E-2,{"$f":"IF('[1]MONE(M)CAPARD'!AS344=\"\",\"\",'[1]MONE(M)CAPARD'!AS344)","v":4.75},{"$f":"IF('[1]MONE(M)CAPARD'!AT344=\"\",\"\",'[1]MONE(M)CAPARD'!AT344)","v":"n.a."},{"$f":"IF('[1]MONE(M)CAPARD'!AU344=\"\",\"\",'[1]MONE(M)CAPARD'!AU344)","v":2.75},{"$f":"IF('[1]MONE(M)CAPARD'!AV344=\"\",\"\",'[1]MONE(M)CAPARD'!AV344)","v":5.5},{"$f":"IF('[1]MONE(M)CAPARD'!AW344=\"\",\"\",'[1]MONE(M)CAPARD'!AW344)","v":"n.a."},{"$f":"IF('[1]MONE(M)CAPARD'!AX344=\"\",\"\",'[1]MONE(M)CAPARD'!AX344)","v":5.25},{"$f":"IF('[1]MONE(M)CAPARD'!AY344=\"\",\"\",'[1]MONE(M)CAPARD'!AY344)","v":"n.a."},{"$f":"IF('[1]FISCAL(M)'!$K344=\"\",\"\",'[1]FISCAL(M)'!$K344)","v":-4975.6735168005362},{"$f":"IF('[1]FISCAL(M)'!$L344=\"\",\"\",'[1]FISCAL(M)'!$L344)","v":"n.d."},{"$f":"IF('[1]FISCAL(M)'!$AY344=\"\",\"\",'[1]FISCAL(M)'!$AY344)","v":128056.27205448909},{"$f":"IF('[1]FISCAL(M)'!$BI344=\"\",\"\",'[1]FISCAL(M)'!$BI344)","v":67395.810382206822},{"$f":"IF('[1]FISCAL(M)'!$BS344=\"\",\"\",'[1]FISCAL(M)'!$BS344)","v":60660.461672282283},{"$f":"IF('[1]FISCAL(M)'!$AZ344=\"\",\"\",'[1]FISCAL(M)'!$AZ344)","v":151521.79205448911},{"$f":"IF('[1]FISCAL(M)'!$BJ344=\"\",\"\",'[1]FISCAL(M)'!$BJ344)","v":72581.020382206829},{"$f":"IF('[1]FISCAL(M)'!$BT344=\"\",\"\",'[1]FISCAL(M)'!$BT344)","v":78940.771672282281},{"$f":"IF('[2]MONE(M)'!$AO344=\"\",\"\",'[2]MONE(M)'!$AO344)","v":21295167.658044573},{"$f":"IF('[3]MONE(M)'!$AO344=\"\",\"\",'[3]MONE(M)'!$AO344)","v":12193.89650997},{"$f":"IF('[4]MONE(M)'!$AO344=\"\",\"\",'[4]MONE(M)'!$AO344)","v":195264.96583115641},{"$f":"IF('[5]MONE(M)'!$AO344=\"\",\"\",'[5]MONE(M)'!$AO344)","v":306042.73346379097},{"$f":"IF('[6]MONE(M)'!$AO344=\"\",\"\",'[6]MONE(M)'!$AO344)","v":161754.62509811853},{"$f":"IF('[7]MONE(M)'!$AO344=\"\",\"\",'[7]MONE(M)'!$AO344)","v":1007599.3219701201},{"$f":"IF('[8]MONE(M)'!$AO344=\"\",\"\",'[8]MONE(M)'!$AO344)","v":50294.687295940006},7.2439861679320705,4.9248088397938483,4.9051265662446664,9.9119260985230042,17.089521292033226,11.30639171952954,7.5171565150213171,{"$f":"'[1]FISCAL(M)'!$K344","v":-4975.6735168005362},{"$f":"+'[1]REAL(A)'!$AO$37","v":271971.90837527614},-1.8294806792821159,{"$f":"IF('[1]FISCAL(M)'!$L344=\"\",\"\",'[1]FISCAL(M)'!$L344)","v":"n.d."},{"$f":"+'[1]REAL(A)'!$AP$37","v":334190.95637527615},"n.d.",150335.12740167908,{"$f":"'[1]Gráfico REM'!BG338","v":26368.135183301463},{"$f":"'[1]Gráfico REM'!BH338","v":115849.83384393722},{"$f":"'[1]Gráfico REM'!BI338","v":8117.1583744404197},7.121379285376328,10.498768338444497,6.4004502073911951,6.8451411957980657,224569.65032759908,{"$f":"'[1]Gráfico REM'!BK338","v":28662.773439991463},{"$f":"'[1]Gráfico REM'!BL338","v":166144.52113987721},{"$f":"'[1]Gráfico REM'!BM338","v":29762.355747730413},5.7060264146941764,9.9777066091887967,6.7360397134474947,-3.1354547342939632]
[2017,"diciembre","2017-diciembre",{"$f":"IF('[1]REAL IPC(M)'!$AL345=\"\",\"\",+'[1]REAL IPC(M)'!$AL345)","v":4.3975486939818786},{"$f":"IF('[1]REAL IPC(M)'!$BE345=\"\",\"\",+'[1]REAL IPC(M)'!$BE345)","v":3.0321851176302372},{"$f":"IF('[1]REAL IPC(M)'!$AM345=\"\",\"\",+'[1]REAL IPC(M)'!$AM345)","v":3.9389633884972186},{"$f":"IF('[1]REAL IPC(M)'!$BI345=\"\",\"\",+'[1]REAL IPC(M)'!$BI345)","v":2.8030169267648564},{"$f":"IF('[1]REAL IMAE(M)'!BJ345=\"\",\"\",'[1]REAL IMAE(M)'!BJ345)","v":4.3807271549697546},{"$f":"IF('[1]REAL IMAE(M)'!BK345=\"\",\"\",'[1]REAL IMAE(M)'!BK345)","v":4.1286808100856387},{"$f":"IF('[1]REAL IMAE(M)'!BN345=\"\",\"\",'[1]REAL IMAE(M)'!BN345)","v":4.4479526315960305},{"$f":"IF('[1]REAL IMAE(M)'!BO345=\"\",\"\",'[1]REAL IMAE(M)'!BO345)","v":4.1548577424536326},{"$f":"IF('[1]EXT RIN(M)'!$K345=\"\",\"\",'[1]EXT RIN(M)'!$K345)","v":36474.703866077441},{"$f":"IF(B338<>\"diciembre\",\"\",L338)","v":36474.703866077441},{"$f":"IF('[1]EXT RIN(M)'!$L345=\"\",\"\",'[1]EXT RIN(M)'!$L345)","v":39985.087701877441},{"$f":"IF(B338<>\"diciembre\",\"\",N338)","v":39985.087701877441},{"$f":"IF('[1]MONE(M)CARD'!EG345=\"\",\"\",'[1]MONE(M)CARD'!EG345)","v":37572.200907634659},{"$f":"IF('[1]MONE(M)CARD'!EK345=\"\",\"\",'[1]MONE(M)CARD'!EK345)","v":56153.515917687575},{"$f":"IF('[1]MONE(M)CARD'!EP345=\"\",\"\",'[1]MONE(M)CARD'!EP345)","v":30725.779784408936},{"$f":"IF('[1]MONE(M)CARD'!ES345=\"\",\"\",'[1]MONE(M)CARD'!ES345)","v":7.3018289056628438},{"$f":"IF('[1]MONE(M)CARD'!EV345=\"\",\"\",'[1]MONE(M)CARD'!EV345)","v":7.1559721072263605},{"$f":"IF('[1]MONE(M)CARD'!EZ345=\"\",\"\",'[1]MONE(M)CARD'!EZ345)","v":6.4829952590923501},{"$f":"IF('[1]MONE(M)CAPARD'!FC345=\"\",\"\",'[1]MONE(M)CAPARD'!FC345)","v":45919.159040774655},{"$f":"IF('[1]MONE(M)CAPARD'!FG345=\"\",\"\",'[1]MONE(M)CAPARD'!FG345)","v":87835.908228097571},{"$f":"IF('[1]MONE(M)CAPARD'!FL345=\"\",\"\",'[1]MONE(M)CAPARD'!FL345)","v":30725.779784408922},{"$f":"IF('[1]MONE(M)CAPARD'!FO345=\"\",\"\",'[1]MONE(M)CAPARD'!FO345)","v":6.2036114497737938},{"$f":"IF('[1]MONE(M)CAPARD'!FR345=\"\",\"\",'[1]MONE(M)CAPARD'!FR345)","v":6.507425436649239},{"$f":"IF('[1]MONE(M)CAPARD'!FV345=\"\",\"\",'[1]MONE(M)CAPARD'!FV345)","v":6.1230060108286688},{"$f":"IF('[1]MONE(M)CARD'!FV345=\"\",\"\",'[1]MONE(M)CARD'!FV345)","v":1833.1434903169766},{"$f":"IF('[1]MONE(M)CARD'!GD345=\"\",\"\",'[1]MONE(M)CARD'!GD345)","v":108.29777709915956},{"$f":"IF('[1]MONE(M)CARD'!GE345=\"\",\"\",'[1]MONE(M)CARD'!GE345)","v":10735.612955396904},14.311103681842541,{"$f":"IF('[9]II.2.Balance OSD-Activos'!J203=\"\",\"\",'[9]II.2.Balance OSD-Activos'!J203)","v":308.92985122748507},{"$f":"IF('[9]II.2.Balance OSD-Activos'!N203=\"\",\"\",'[9]II.2.Balance OSD-Activos'!N203)","v":1097.6828424289242},{"$f":"IF('[9]II.2.Balance OSD-Activos'!R203=\"\",\"\",'[9]II.2.Balance OSD-Activos'!R203)","v":52589.564123969278},{"$f":"IF('[9]II.2.Balance OSD-Activos'!S203=\"\",\"\",'[9]II.2.Balance OSD-Activos'!S203)","v":57828.381571861471},{"$f":"IFERROR(+AF338+AH338,\"\")","v":52898.493975196761},{"$f":"IF(OR(AF338=\"\",AG338=\"\",AH338=\"\",AI338=\"\"),\"\",SUM(AF338:AI338))","v":111824.55838948715},{"$f":"IF(OR(AF338=\"\",AF326=\"\"),\"\",((AF338/AF326)-1)*100)","v":56.913558456482804},{"$f":"IF(OR(AJ338=\"\",AJ326=\"\"),\"\",((AJ338/AJ326)-1)*100)","v":5.5118744689510502},{"$f":"IF(OR(AG338=\"\",AG326=\"\"),\"\",((AG338/AG326)-1)*100)","v":14.004301619332949},{"$f":"IF(OR(AH338=\"\",AH326=\"\"),\"\",((AH338/AH326)-1)*100)","v":5.3092258724786401},{"$f":"IF(OR(AI338=\"\",AI326=\"\"),\"\",((AI338/AI326)-1)*100)","v":6.7794436914249578},{"$f":"IF(OR(AK338=\"\",AK326=\"\"),\"\",((AK338/AK326)-1)*100)","v":6.2417645100237618},{"$f":"IF(OR(AQ338=\"\",AQ337=\"\"),\"\",AQ338-AQ337)","v":-0.53022812881629022},{"$f":"IF('[1]MONE(M)CAPARD'!GS345=\"\",\"\",'[1]MONE(M)CAPARD'!GS345)","v":21595.790555229178},{"$f":"IF('[1]MONE(M)CARD'!HA345=\"\",\"\",'[1]MONE(M)CAPARD'!HA345)","v":12751.550174906903},{"$f":"IF('[1]MONE(M)CAPARD'!HB345=\"\",\"\",'[1]MONE(M)CAPARD'!HB345)","v":8844.2403803222751},"n.d.",{"$f":"IF('[10]II.2.Balance OSD-Activos'!J203=\"\",\"\",'[10]II.2.Balance OSD-Activos'!J203)","v":2651.4627287374856},{"$f":"IF('[10]II.2.Balance OSD-Activos'!N203=\"\",\"\",'[10]II.2.Balance OSD-Activos'!N203)","v":1615.1222053389242},{"$f":"IF('[10]II.2.Balance OSD-Activos'!R203=\"\",\"\",'[10]II.2.Balance OSD-Activos'!R203)","v":76142.168642149278},{"$f":"IF('[10]II.2.Balance OSD-Activos'!S203=\"\",\"\",'[10]II.2.Balance OSD-Activos'!S203)","v":81025.345467271472},{"$f":"IFERROR(+AW338+AY338,\"\")","v":78793.631370886767},{"$f":"IF(OR(AW338=\"\",AX338=\"\",AY338=\"\",AZ338=\"\"),\"\",SUM(AW338:AZ338))","v":161434.09904349718},{"$f":"IF(OR(AW338=\"\",AW326=\"\"),\"\",((AW338/AW326)-1)*100)","v":26.028451315960055},{"$f":"IF(OR(BA338=\"\",BA326=\"\"),\"\",((BA338/BA326)-1)*100)","v":5.8752294180883347},{"$f":"IF(OR(AX338=\"\",AX326=\"\"),\"\",((AX338/AX326)-1)*100)","v":8.179521445235661},5.2889307774154792,7.4613756361532113,{"$f":"IF(OR(BB338=\"\",BB326=\"\"),\"\",((BB338/BB326)-1)*100)","v":6.6883410849002845},{"$f":"IF(OR(BH338=\"\",BH337=\"\"),\"\",BH338-BH337)","v":-0.27776586233940748},{"$f":"IF('[1]MONE(M)CAPARD'!AS345=\"\",\"\",'[1]MONE(M)CAPARD'!AS345)","v":4.75},{"$f":"IF('[1]MONE(M)CAPARD'!AT345=\"\",\"\",'[1]MONE(M)CAPARD'!AT345)","v":"n.a."},{"$f":"IF('[1]MONE(M)CAPARD'!AU345=\"\",\"\",'[1]MONE(M)CAPARD'!AU345)","v":2.75},{"$f":"IF('[1]MONE(M)CAPARD'!AV345=\"\",\"\",'[1]MONE(M)CAPARD'!AV345)","v":5.5},{"$f":"IF('[1]MONE(M)CAPARD'!AW345=\"\",\"\",'[1]MONE(M)CAPARD'!AW345)","v":"n.a."},{"$f":"IF('[1]MONE(M)CAPARD'!AX345=\"\",\"\",'[1]MONE(M)CAPARD'!AX345)","v":5.25},{"$f":"IF('[1]MONE(M)CAPARD'!AY345=\"\",\"\",'[1]MONE(M)CAPARD'!AY345)","v":"n.a."},{"$f":"IF('[1]FISCAL(M)'!$K345=\"\",\"\",'[1]FISCAL(M)'!$K345)","v":-7593.8943626641139},{"$f":"IF('[1]FISCAL(M)'!$L345=\"\",\"\",'[1]FISCAL(M)'!$L345)","v":-9536.8943626641139},{"$f":"IF('[1]FISCAL(M)'!$AY345=\"\",\"\",'[1]FISCAL(M)'!$AY345)","v":128493.54131618523},{"$f":"IF('[1]FISCAL(M)'!$BI345=\"\",\"\",'[1]FISCAL(M)'!$BI345)","v":67884.090147035226},{"$f":"IF('[1]FISCAL(M)'!$BS345=\"\",\"\",'[1]FISCAL(M)'!$BS345)","v":60609.451169150008},{"$f":"IF('[1]FISCAL(M)'!$AZ345=\"\",\"\",'[1]FISCAL(M)'!$AZ345)","v":151867.11131618527},{"$f":"IF('[1]FISCAL(M)'!$BJ345=\"\",\"\",'[1]FISCAL(M)'!$BJ345)","v":72867.620147035224},{"$f":"IF('[1]FISCAL(M)'!$BT345=\"\",\"\",'[1]FISCAL(M)'!$BT345)","v":78999.491169150002},{"$f":"IF('[2]MONE(M)'!$AO345=\"\",\"\",'[2]MONE(M)'!$AO345)","v":21401032.198557485},{"$f":"IF('[3]MONE(M)'!$AO345=\"\",\"\",'[3]MONE(M)'!$AO345)","v":12192.187150280002},{"$f":"IF('[4]MONE(M)'!$AO345=\"\",\"\",'[4]MONE(M)'!$AO345)","v":196404.14799292589},{"$f":"IF('[5]MONE(M)'!$AO345=\"\",\"\",'[5]MONE(M)'!$AO345)","v":308618.09249766823},{"$f":"IF('[6]MONE(M)'!$AO345=\"\",\"\",'[6]MONE(M)'!$AO345)","v":162304.82634707497},{"$f":"IF('[7]MONE(M)'!$AO345=\"\",\"\",'[7]MONE(M)'!$AO345)","v":1020323.4839092001},{"$f":"IF('[8]MONE(M)'!$AO345=\"\",\"\",'[8]MONE(M)'!$AO345)","v":50510.213475560013},6.9356325967461885,5.1303314397344479,3.727708387403772,7.8237270051769059,16.194870193215682,11.819029018974248,7.786854983765279,{"$f":"'[1]FISCAL(M)'!$K345","v":-7593.8943626641139},{"$f":"+'[1]REAL(A)'!$AO$37","v":271971.90837527614},-2.7921612963739619,{"$f":"IF('[1]FISCAL(M)'!$L345=\"\",\"\",'[1]FISCAL(M)'!$L345)","v":-9536.8943626641139},{"$f":"+'[1]REAL(A)'!$AP$37","v":334190.95637527615},-2.8537260451640591,150668.8650211833,{"$f":"'[1]Gráfico REM'!BG339","v":26055.524722084971},{"$f":"'[1]Gráfico REM'!BH339","v":116242.39412929298},{"$f":"'[1]Gráfico REM'!BI339","v":8370.9461698053274},6.574945353221251,9.6378337850633766,5.874500084470835,7.101297137670648,{"$f":"+IF(OR(DB338=\"\",+DC338=\"\",+DD338=\"\"),\"\",(DB338+DC338+DD338))","v":225182.95055916329},{"$f":"'[1]Gráfico REM'!BK339","v":28350.16297877497},{"$f":"'[1]Gráfico REM'!BL339","v":166752.60760485299},{"$f":"'[1]Gráfico REM'!BM339","v":30080.179975535299},{"$f":"IFERROR(+((DA338/DA326)-1)*100,\"\")","v":5.381294784270052},{"$f":"IFERROR(+((DB338/DB326)-1)*100,\"\")","v":9.2573474485059251},{"$f":"IFERROR(+((DC338/DC326)-1)*100,\"\")","v":6.4465591736822203},{"$f":"IFERROR(+((DD338/DD326)-1)*100,\"\")","v":-3.2234585972765295}]
[2018,"enero",{"$f":"A339&\"-\"&B339","v":"2018-enero"},{"$f":"IF('[1]REAL IPC(M)'!$AL346=\"\",\"\",+'[1]REAL IPC(M)'!$AL346)","v":3.9663298057335483},{"$f":"IF('[1]REAL IPC(M)'!$BE346=\"\",\"\",+'[1]REAL IPC(M)'!$BE346)","v":3.0492519150437047},{"$f":"IF('[1]REAL IPC(M)'!$AM346=\"\",\"\",+'[1]REAL IPC(M)'!$AM346)","v":3.6353517990646678},{"$f":"IF('[1]REAL IPC(M)'!$BI346=\"\",\"\",+'[1]REAL IPC(M)'!$BI346)","v":2.820577387347889},{"$f":"IF('[1]REAL IMAE(M)'!BJ346=\"\",\"\",'[1]REAL IMAE(M)'!BJ346)","v":4.4523429465665565},{"$f":"IF('[1]REAL IMAE(M)'!BK346=\"\",\"\",'[1]REAL IMAE(M)'!BK346)","v":4.0976421940190688},{"$f":"IF('[1]REAL IMAE(M)'!BN346=\"\",\"\",'[1]REAL IMAE(M)'!BN346)","v":4.4672282758358106},{"$f":"IF('[1]REAL IMAE(M)'!BO346=\"\",\"\",'[1]REAL IMAE(M)'!BO346)","v":4.1201330136005465},{"$f":"IF('[1]EXT RIN(M)'!$K346=\"\",\"\",'[1]EXT RIN(M)'!$K346)","v":36125.627438655705},null,{"$f":"IF('[1]EXT RIN(M)'!$L346=\"\",\"\",'[1]EXT RIN(M)'!$L346)","v":39345.605161375708},null,{"$f":"IF('[1]MONE(M)CARD'!EG346=\"\",\"\",'[1]MONE(M)CARD'!EG346)","v":36687.659126054474},{"$f":"IF('[1]MONE(M)CARD'!EK346=\"\",\"\",'[1]MONE(M)CARD'!EK346)","v":56033.582595030872},{"$f":"IF('[1]MONE(M)CARD'!EP346=\"\",\"\",'[1]MONE(M)CARD'!EP346)","v":30935.220602344911},{"$f":"IF('[1]MONE(M)CARD'!ES346=\"\",\"\",'[1]MONE(M)CARD'!ES346)","v":5.9881298987857878},{"$f":"IF('[1]MONE(M)CARD'!EV346=\"\",\"\",'[1]MONE(M)CARD'!EV346)","v":6.6510661791763015},{"$f":"IF('[1]MONE(M)CARD'!EZ346=\"\",\"\",'[1]MONE(M)CARD'!EZ346)","v":5.8471723877174142},{"$f":"IF('[1]MONE(M)CAPARD'!FC346=\"\",\"\",'[1]MONE(M)CAPARD'!FC346)","v":44822.864993204479},{"$f":"IF('[1]MONE(M)CAPARD'!FG346=\"\",\"\",'[1]MONE(M)CAPARD'!FG346)","v":87829.749456150865},{"$f":"IF('[1]MONE(M)CAPARD'!FL346=\"\",\"\",'[1]MONE(M)CAPARD'!FL346)","v":30935.220602344896},{"$f":"IF('[1]MONE(M)CAPARD'!FO346=\"\",\"\",'[1]MONE(M)CAPARD'!FO346)","v":4.8834744300968458},{"$f":"IF('[1]MONE(M)CAPARD'!FR346=\"\",\"\",'[1]MONE(M)CAPARD'!FR346)","v":5.8653594257132458},{"$f":"IF('[1]MONE(M)CAPARD'!FV346=\"\",\"\",'[1]MONE(M)CAPARD'!FV346)","v":5.4115073994931207},{"$f":"IF('[1]MONE(M)CARD'!FV346=\"\",\"\",'[1]MONE(M)CARD'!FV346)","v":1781.036390084756},{"$f":"IF('[1]MONE(M)CARD'!GD346=\"\",\"\",'[1]MONE(M)CARD'!GD346)","v":74.60670908026286},{"$f":"IF('[1]MONE(M)CARD'!GE346=\"\",\"\",'[1]MONE(M)CARD'!GE346)","v":11360.047577149895},{"$f":"IF(AD339=\"\",\"\",((AD339/AD326)-1)*100)","v":27.256059932724241},{"$f":"IF('[9]II.2.Balance OSD-Activos'!J204=\"\",\"\",'[9]II.2.Balance OSD-Activos'!J204)","v":281.2630149053673},{"$f":"IF('[9]II.2.Balance OSD-Activos'!N204=\"\",\"\",'[9]II.2.Balance OSD-Activos'!N204)","v":1125.9570887070163},{"$f":"IF('[9]II.2.Balance OSD-Activos'!R204=\"\",\"\",'[9]II.2.Balance OSD-Activos'!R204)","v":52813.619583172782},{"$f":"IF('[9]II.2.Balance OSD-Activos'!S204=\"\",\"\",'[9]II.2.Balance OSD-Activos'!S204)","v":57760.991917133651},{"$f":"IFERROR(+AF339+AH339,\"\")","v":53094.882598078148},{"$f":"IF(OR(AF339=\"\",AG339=\"\",AH339=\"\",AI339=\"\"),\"\",SUM(AF339:AI339))","v":111981.83160391881},{"$f":"IF(OR(AF339=\"\",AF327=\"\"),\"\",((AF339/AF327)-1)*100)","v":39.487230056192679},{"$f":"IF(OR(AJ339=\"\",AJ327=\"\"),\"\",((AJ339/AJ327)-1)*100)","v":5.5618664314187827},{"$f":"IF(OR(AG339=\"\",AG327=\"\"),\"\",((AG339/AG327)-1)*100)","v":11.226551204262147},{"$f":"IF(OR(AH339=\"\",AH327=\"\"),\"\",((AH339/AH327)-1)*100)","v":5.4253133023429712},{"$f":"IF(OR(AI339=\"\",AI327=\"\"),\"\",((AI339/AI327)-1)*100)","v":6.3225376152001855},{"$f":"IF(OR(AK339=\"\",AK327=\"\"),\"\",((AK339/AK327)-1)*100)","v":6.0073473828132551},{"$f":"IF(OR(AQ339=\"\",AQ338=\"\"),\"\",AQ339-AQ338)","v":-0.23441712721050667},{"$f":"IF('[1]MONE(M)CAPARD'!GS346=\"\",\"\",'[1]MONE(M)CAPARD'!GS346)","v":22078.920716499011},{"$f":"IF('[1]MONE(M)CARD'!HA346=\"\",\"\",'[1]MONE(M)CAPARD'!HA346)","v":13363.570568919893},{"$f":"IF('[1]MONE(M)CAPARD'!HB346=\"\",\"\",'[1]MONE(M)CAPARD'!HB346)","v":8715.3501475791181},"n.d.",{"$f":"IF('[10]II.2.Balance OSD-Activos'!J204=\"\",\"\",'[10]II.2.Balance OSD-Activos'!J204)","v":2572.1979998253673},{"$f":"IF('[10]II.2.Balance OSD-Activos'!N204=\"\",\"\",'[10]II.2.Balance OSD-Activos'!N204)","v":1632.1740948270162},{"$f":"IF('[10]II.2.Balance OSD-Activos'!R204=\"\",\"\",'[10]II.2.Balance OSD-Activos'!R204)","v":76435.645984842791},{"$f":"IF('[10]II.2.Balance OSD-Activos'!S204=\"\",\"\",'[10]II.2.Balance OSD-Activos'!S204)","v":81037.412982973648},{"$f":"IFERROR(+AW339+AY339,\"\")","v":79007.843984668158},{"$f":"IF(OR(AW339=\"\",AX339=\"\",AY339=\"\",AZ339=\"\"),\"\",SUM(AW339:AZ339))","v":161677.43106246882},{"$f":"IF(OR(AW339=\"\",AW327=\"\"),\"\",((AW339/AW327)-1)*100)","v":21.793971645304964},{"$f":"IF(OR(BA339=\"\",BA327=\"\"),\"\",((BA339/BA327)-1)*100)","v":5.7998415478509813},7.6943060631463611,5.3343483915785805,7.0309795470365533,{"$f":"IF(OR(BB339=\"\",BB327=\"\"),\"\",((BB339/BB327)-1)*100)","v":6.4323733393772731},{"$f":"IF(OR(BH339=\"\",BH338=\"\"),\"\",BH339-BH338)","v":-0.25596774552301138},{"$f":"IF('[1]MONE(M)CAPARD'!AS346=\"\",\"\",'[1]MONE(M)CAPARD'!AS346)","v":4.75},{"$f":"IF('[1]MONE(M)CAPARD'!AT346=\"\",\"\",'[1]MONE(M)CAPARD'!AT346)","v":"n.a."},{"$f":"IF('[1]MONE(M)CAPARD'!AU346=\"\",\"\",'[1]MONE(M)CAPARD'!AU346)","v":2.75},{"$f":"IF('[1]MONE(M)CAPARD'!AV346=\"\",\"\",'[1]MONE(M)CAPARD'!AV346)","v":5.5},{"$f":"IF('[1]MONE(M)CAPARD'!AW346=\"\",\"\",'[1]MONE(M)CAPARD'!AW346)","v":"n.a."},{"$f":"IF('[1]MONE(M)CAPARD'!AX346=\"\",\"\",'[1]MONE(M)CAPARD'!AX346)","v":5.25},{"$f":"IF('[1]MONE(M)CAPARD'!AY346=\"\",\"\",'[1]MONE(M)CAPARD'!AY346)","v":"n.a."},{"$f":"IF('[1]FISCAL(M)'!$K346=\"\",\"\",'[1]FISCAL(M)'!$K346)","v":247.88098664798284},{"$f":"IF('[1]FISCAL(M)'!$L346=\"\",\"\",'[1]FISCAL(M)'!$L346)","v":"n.d."},{"$f":"IF('[1]FISCAL(M)'!$AY346=\"\",\"\",'[1]FISCAL(M)'!$AY346)","v":130164.86780120392},{"$f":"IF('[1]FISCAL(M)'!$BI346=\"\",\"\",'[1]FISCAL(M)'!$BI346)","v":69350.987900864668},{"$f":"IF('[1]FISCAL(M)'!$BS346=\"\",\"\",'[1]FISCAL(M)'!$BS346)","v":60813.879900339234},{"$f":"IF('[1]FISCAL(M)'!$AZ346=\"\",\"\",'[1]FISCAL(M)'!$AZ346)","v":153548.95780120388},{"$f":"IF('[1]FISCAL(M)'!$BJ346=\"\",\"\",'[1]FISCAL(M)'!$BJ346)","v":74363.367900864658},{"$f":"IF('[1]FISCAL(M)'!$BT346=\"\",\"\",'[1]FISCAL(M)'!$BT346)","v":79185.589900339226},{"$f":"IF('[2]MONE(M)'!$AO346=\"\",\"\",'[2]MONE(M)'!$AO346)","v":21385301.844147883},{"$f":"IF('[3]MONE(M)'!$AO346=\"\",\"\",'[3]MONE(M)'!$AO346)","v":12231.312531199999},{"$f":"IF('[4]MONE(M)'!$AO346=\"\",\"\",'[4]MONE(M)'!$AO346)","v":196801.54827932426},{"$f":"IF('[5]MONE(M)'!$AO346=\"\",\"\",'[5]MONE(M)'!$AO346)","v":312189.15288295754},{"$f":"IF('[6]MONE(M)'!$AO346=\"\",\"\",'[6]MONE(M)'!$AO346)","v":163974.13918666716},{"$f":"IF('[7]MONE(M)'!$AO346=\"\",\"\",'[7]MONE(M)'!$AO346)","v":1021457.8907678099},{"$f":"IF('[8]MONE(M)'!$AO346=\"\",\"\",'[8]MONE(M)'!$AO346)","v":50541.883697339996},{"$f":"IF(BY339=\"\",\"\",((BY339/BY327)-1)*100)","v":5.9862615151528242},{"$f":"IF(BZ339=\"\",\"\",((BZ339/BZ327)-1)*100)","v":4.4523170132593659},{"$f":"IF(CA339=\"\",\"\",((CA339/CA327)-1)*100)","v":4.0845463747357869},{"$f":"IF(CB339=\"\",\"\",((CB339/CB327)-1)*100)","v":8.4341938211144765},{"$f":"IF(CC339=\"\",\"\",((CC339/CC327)-1)*100)","v":16.158911427150024},{"$f":"IF(CD339=\"\",\"\",((CD339/CD327)-1)*100)","v":11.781437367081281},{"$f":"IF(CE339=\"\",\"\",((CE339/CE327)-1)*100)","v":7.3081624939931311},{"$f":"'[1]FISCAL(M)'!$K346","v":247.88098664798284},{"$f":"+'[1]REAL(A)'!$AO$38","v":282215.10781476315},{"$f":"IF(OR(CM339=\"n.d.\",CM339=\"\",CN339=\"\",CN339=\"n.d.\"),\"\",(CM339/CN339)*100)","v":8.7834059830235553E-2},{"$f":"IF('[1]FISCAL(M)'!$L346=\"\",\"\",'[1]FISCAL(M)'!$L346)","v":"n.d."},{"$f":"+'[1]REAL(A)'!$AP$38","v":347343.29381476314},"n.d.",{"$f":"+IF(OR(CT339=\"\",+CU339=\"\",+CV339=\"\"),\"\",(CT339+CU339+CV339))","v":152571.96598464972},{"$f":"'[1]Gráfico REM'!BG340","v":27738.131276415203},{"$f":"'[1]Gráfico REM'!BH340","v":116364.73563314334},{"$f":"'[1]Gráfico REM'!BI340","v":8469.0990750911915},{"$f":"IFERROR(+((CS339/CS327)-1)*100,\"\")","v":6.9081330654191975},{"$f":"IFERROR(+((CT339/CT327)-1)*100,\"\")","v":12.441546827694694},{"$f":"IFERROR(+((CU339/CU327)-1)*100,\"\")","v":5.5130877776378817},{"$f":"IFERROR(+((CV339/CV327)-1)*100,\"\")","v":9.143908170800529},{"$f":"+IF(OR(DB339=\"\",+DC339=\"\",+DD339=\"\"),\"\",(DB339+DC339+DD339))","v":227184.64661351976},{"$f":"'[1]Gráfico REM'!BK340","v":29933.985166775205},{"$f":"'[1]Gráfico REM'!BL340","v":166906.61933048334},{"$f":"'[1]Gráfico REM'!BM340","v":30344.042116261196},{"$f":"IFERROR(+((DA339/DA327)-1)*100,\"\")","v":5.7526859044684242},{"$f":"IFERROR(+((DB339/DB327)-1)*100,\"\")","v":11.360037082635044},{"$f":"IFERROR(+((DC339/DC327)-1)*100,\"\")","v":6.0502921071896809},{"$f":"IFERROR(+((DD339/DD327)-1)*100,\"\")","v":-0.71184070970498059}]
[2018,"febrero","2018-febrero",{"$f":"IF('[1]REAL IPC(M)'!$AL347=\"\",\"\",+'[1]REAL IPC(M)'!$AL347)","v":3.5395476857080999},{"$f":"IF('[1]REAL IPC(M)'!$BE347=\"\",\"\",+'[1]REAL IPC(M)'!$BE347)","v":3.0640734507511258},{"$f":"IF('[1]REAL IPC(M)'!$AM347=\"\",\"\",+'[1]REAL IPC(M)'!$AM347)","v":3.2307153148683154},{"$f":"IF('[1]REAL IPC(M)'!$BI347=\"\",\"\",+'[1]REAL IPC(M)'!$BI347)","v":2.8360054552595049},{"$f":"IF('[1]REAL IMAE(M)'!BJ347=\"\",\"\",'[1]REAL IMAE(M)'!BJ347)","v":4.6259408532805413},{"$f":"IF('[1]REAL IMAE(M)'!BK347=\"\",\"\",'[1]REAL IMAE(M)'!BK347)","v":4.0665606957179801},{"$f":"IF('[1]REAL IMAE(M)'!BN347=\"\",\"\",'[1]REAL IMAE(M)'!BN347)","v":4.516111041651838},{"$f":"IF('[1]REAL IMAE(M)'!BO347=\"\",\"\",'[1]REAL IMAE(M)'!BO347)","v":4.0851785583376765},{"$f":"IF('[1]EXT RIN(M)'!$K347=\"\",\"\",'[1]EXT RIN(M)'!$K347)","v":37446.972792715576},null,{"$f":"IF('[1]EXT RIN(M)'!$L347=\"\",\"\",'[1]EXT RIN(M)'!$L347)","v":40271.882445475574},null,{"$f":"IF('[1]MONE(M)CARD'!EG347=\"\",\"\",'[1]MONE(M)CARD'!EG347)","v":36584.385383182387},{"$f":"IF('[1]MONE(M)CARD'!EK347=\"\",\"\",'[1]MONE(M)CARD'!EK347)","v":56084.93852700467},{"$f":"IF('[1]MONE(M)CARD'!EP347=\"\",\"\",'[1]MONE(M)CARD'!EP347)","v":31374.589434020731},{"$f":"IF('[1]MONE(M)CARD'!ES347=\"\",\"\",'[1]MONE(M)CARD'!ES347)","v":5.4754648951780283},{"$f":"IF('[1]MONE(M)CARD'!EV347=\"\",\"\",'[1]MONE(M)CARD'!EV347)","v":5.5714210783514684},{"$f":"IF('[1]MONE(M)CARD'!EZ347=\"\",\"\",'[1]MONE(M)CARD'!EZ347)","v":4.8592514410136456},{"$f":"IF('[1]MONE(M)CAPARD'!FC347=\"\",\"\",'[1]MONE(M)CAPARD'!FC347)","v":44730.403311532391},{"$f":"IF('[1]MONE(M)CAPARD'!FG347=\"\",\"\",'[1]MONE(M)CAPARD'!FG347)","v":88158.025336604653},{"$f":"IF('[1]MONE(M)CAPARD'!FL347=\"\",\"\",'[1]MONE(M)CAPARD'!FL347)","v":31374.589434020716},{"$f":"IF('[1]MONE(M)CAPARD'!FO347=\"\",\"\",'[1]MONE(M)CAPARD'!FO347)","v":4.6486109472459569},{"$f":"IF('[1]MONE(M)CAPARD'!FR347=\"\",\"\",'[1]MONE(M)CAPARD'!FR347)","v":5.1511710298366209},{"$f":"IF('[1]MONE(M)CAPARD'!FV347=\"\",\"\",'[1]MONE(M)CAPARD'!FV347)","v":4.6959511498372963},{"$f":"IF('[1]MONE(M)CARD'!FV347=\"\",\"\",'[1]MONE(M)CARD'!FV347)","v":1780.7994980581925},{"$f":"IF('[1]MONE(M)CARD'!GD347=\"\",\"\",'[1]MONE(M)CARD'!GD347)","v":62.286341375650018},{"$f":"IF('[1]MONE(M)CARD'!GE347=\"\",\"\",'[1]MONE(M)CARD'!GE347)","v":11638.070548680495},{"$f":"IF(AD340=\"\",\"\",((AD340/AD327)-1)*100)","v":18.462201860384098},{"$f":"IF('[9]II.2.Balance OSD-Activos'!J205=\"\",\"\",'[9]II.2.Balance OSD-Activos'!J205)","v":287.18830084443641},{"$f":"IF('[9]II.2.Balance OSD-Activos'!N205=\"\",\"\",'[9]II.2.Balance OSD-Activos'!N205)","v":1088.8868066771843},{"$f":"IF('[9]II.2.Balance OSD-Activos'!R205=\"\",\"\",'[9]II.2.Balance OSD-Activos'!R205)","v":52452.270048938997},{"$f":"IF('[9]II.2.Balance OSD-Activos'!S205=\"\",\"\",'[9]II.2.Balance OSD-Activos'!S205)","v":58093.338630255217},{"$f":"IFERROR(+AF340+AH340,\"\")","v":52739.458349783432},{"$f":"IF(OR(AF340=\"\",AG340=\"\",AH340=\"\",AI340=\"\"),\"\",SUM(AF340:AI340))","v":111921.68378671583},-7.1237587725349822,{"$f":"IF(OR(AJ340=\"\",AJ328=\"\"),\"\",((AJ340/AJ328)-1)*100)","v":4.2668042452383537},{"$f":"IF(OR(AG340=\"\",AG328=\"\"),\"\",((AG340/AG328)-1)*100)","v":11.61380395909557},{"$f":"IF(OR(AH340=\"\",AH328=\"\"),\"\",((AH340/AH328)-1)*100)","v":4.3368659665834919},{"$f":"IF(OR(AI340=\"\",AI328=\"\"),\"\",((AI340/AI328)-1)*100)","v":6.5339017431093271},{"$f":"IF(OR(AK340=\"\",AK328=\"\"),\"\",((AK340/AK328)-1)*100)","v":5.4996888832097302},{"$f":"IF(OR(AQ340=\"\",AQ339=\"\"),\"\",AQ340-AQ339)","v":-0.50765849960352494},{"$f":"IF('[1]MONE(M)CAPARD'!GS347=\"\",\"\",'[1]MONE(M)CAPARD'!GS347)","v":21612.421041833953},{"$f":"IF('[1]MONE(M)CARD'!HA347=\"\",\"\",'[1]MONE(M)CAPARD'!HA347)","v":13630.287171010494},{"$f":"IF('[1]MONE(M)CAPARD'!HB347=\"\",\"\",'[1]MONE(M)CAPARD'!HB347)","v":7982.1338708234598},"n.d.",{"$f":"IF('[10]II.2.Balance OSD-Activos'!J205=\"\",\"\",'[10]II.2.Balance OSD-Activos'!J205)","v":2580.3793538544369},{"$f":"IF('[10]II.2.Balance OSD-Activos'!N205=\"\",\"\",'[10]II.2.Balance OSD-Activos'!N205)","v":1653.369430937184},{"$f":"IF('[10]II.2.Balance OSD-Activos'!R205=\"\",\"\",'[10]II.2.Balance OSD-Activos'!R205)","v":76153.296291109},{"$f":"IF('[10]II.2.Balance OSD-Activos'!S205=\"\",\"\",'[10]II.2.Balance OSD-Activos'!S205)","v":81537.919063915222},{"$f":"IFERROR(+AW340+AY340,\"\")","v":78733.675644963441},{"$f":"IF(OR(AW340=\"\",AX340=\"\",AY340=\"\",AZ340=\"\"),\"\",SUM(AW340:AZ340))","v":161924.96413981583},{"$f":"IF(OR(AW340=\"\",AW328=\"\"),\"\",((AW340/AW328)-1)*100)","v":16.159748718425824},{"$f":"IF(OR(BA340=\"\",BA328=\"\"),\"\",((BA340/BA328)-1)*100)","v":4.871556555735812},{"$f":"IF(OR(AX340=\"\",AX328=\"\"),\"\",((AX340/AX328)-1)*100)","v":13.28135767121883},{"$f":"IF(OR(AY340=\"\",AY328=\"\"),\"\",((AY340/AY328)-1)*100)","v":4.5273702346905642},{"$f":"IF(OR(AZ340=\"\",AZ328=\"\"),\"\",((AZ340/AZ328)-1)*100)","v":7.1756167676102267},{"$f":"IF(OR(BB340=\"\",BB328=\"\"),\"\",((BB340/BB328)-1)*100)","v":6.1005636400072616},{"$f":"IF(OR(BH340=\"\",BH339=\"\"),\"\",BH340-BH339)","v":-0.33180969937001148},{"$f":"IF('[1]MONE(M)CAPARD'!AS347=\"\",\"\",'[1]MONE(M)CAPARD'!AS347)","v":5},{"$f":"IF('[1]MONE(M)CAPARD'!AT347=\"\",\"\",'[1]MONE(M)CAPARD'!AT347)","v":"n.a."},{"$f":"IF('[1]MONE(M)CAPARD'!AU347=\"\",\"\",'[1]MONE(M)CAPARD'!AU347)","v":2.75},{"$f":"IF('[1]MONE(M)CAPARD'!AV347=\"\",\"\",'[1]MONE(M)CAPARD'!AV347)","v":5.5},{"$f":"IF('[1]MONE(M)CAPARD'!AW347=\"\",\"\",'[1]MONE(M)CAPARD'!AW347)","v":"n.a."},{"$f":"IF('[1]MONE(M)CAPARD'!AX347=\"\",\"\",'[1]MONE(M)CAPARD'!AX347)","v":5.25},{"$f":"IF('[1]MONE(M)CAPARD'!AY347=\"\",\"\",'[1]MONE(M)CAPARD'!AY347)","v":"n.a."},{"$f":"IF('[1]FISCAL(M)'!$K347=\"\",\"\",'[1]FISCAL(M)'!$K347)","v":-361.76881875686087},{"$f":"IF('[1]FISCAL(M)'!$L347=\"\",\"\",'[1]FISCAL(M)'!$L347)","v":"n.d."},{"$f":"IF('[1]FISCAL(M)'!$AY347=\"\",\"\",'[1]FISCAL(M)'!$AY347)","v":132538.95415141643},{"$f":"IF('[1]FISCAL(M)'!$BI347=\"\",\"\",'[1]FISCAL(M)'!$BI347)","v":70032.383995569689},{"$f":"IF('[1]FISCAL(M)'!$BS347=\"\",\"\",'[1]FISCAL(M)'!$BS347)","v":62506.570155846726},{"$f":"IF('[1]FISCAL(M)'!$AZ347=\"\",\"\",'[1]FISCAL(M)'!$AZ347)","v":155865.12415141641},{"$f":"IF('[1]FISCAL(M)'!$BJ347=\"\",\"\",'[1]FISCAL(M)'!$BJ347)","v":75017.673995569698},{"$f":"IF('[1]FISCAL(M)'!$BT347=\"\",\"\",'[1]FISCAL(M)'!$BT347)","v":80847.450155846731},{"$f":"IF('[2]MONE(M)'!$AO347=\"\",\"\",'[2]MONE(M)'!$AO347)","v":21393696.102643698},{"$f":"IF('[3]MONE(M)'!$AO347=\"\",\"\",'[3]MONE(M)'!$AO347)","v":12317.448650120001},{"$f":"IF('[4]MONE(M)'!$AO347=\"\",\"\",'[4]MONE(M)'!$AO347)","v":196545.94725095161},{"$f":"IF('[5]MONE(M)'!$AO347=\"\",\"\",'[5]MONE(M)'!$AO347)","v":313562.60327473306},{"$f":"IF('[6]MONE(M)'!$AO347=\"\",\"\",'[6]MONE(M)'!$AO347)","v":164651.83950322599},{"$f":"IF('[7]MONE(M)'!$AO347=\"\",\"\",'[7]MONE(M)'!$AO347)","v":1028956.28682644},{"$f":"IF('[8]MONE(M)'!$AO347=\"\",\"\",'[8]MONE(M)'!$AO347)","v":50784.165615800004},4.7471509909337684,4.6847038440199995,3.5488823410208203,9.192148496870022,16.674414537975824,11.593720364612704,7.1498270035061262,{"$f":"'[1]FISCAL(M)'!$K347","v":-361.76881875686087},{"$f":"+'[1]REAL(A)'!$AO$38","v":282215.10781476315},-0.12818903337886298,{"$f":"IF('[1]FISCAL(M)'!$L347=\"\",\"\",'[1]FISCAL(M)'!$L347)","v":"n.d."},{"$f":"+'[1]REAL(A)'!$AP$38","v":347343.29381476314},"n.d.",152375.73007141278,{"$f":"'[1]Gráfico REM'!BG341","v":27674.641492764316},{"$f":"'[1]Gráfico REM'!BH341","v":116307.83430259678},{"$f":"'[1]Gráfico REM'!BI341","v":8393.2542760516699},6.304909389814517,12.081733759754387,4.9191984082117779,7.7132603817764656,226973.50437396276,{"$f":"'[1]Gráfico REM'!BK341","v":29864.667921284316},{"$f":"'[1]Gráfico REM'!BL341","v":167091.99991839679},{"$f":"'[1]Gráfico REM'!BM341","v":30016.836534281676},5.2174556607539779,10.842826701602926,5.5872653739785116,-1.6650231476997845]
[2018,"marzo","2018-marzo",{"$f":"IF('[1]REAL IPC(M)'!$AL348=\"\",\"\",+'[1]REAL IPC(M)'!$AL348)","v":3.837494822065679},{"$f":"IF('[1]REAL IPC(M)'!$BE348=\"\",\"\",+'[1]REAL IPC(M)'!$BE348)","v":3.0766490505618416},{"$f":"IF('[1]REAL IPC(M)'!$AM348=\"\",\"\",+'[1]REAL IPC(M)'!$AM348)","v":3.5229390940338279},{"$f":"IF('[1]REAL IPC(M)'!$BI348=\"\",\"\",+'[1]REAL IPC(M)'!$BI348)","v":2.8492449147399679},{"$f":"IF('[1]REAL IMAE(M)'!BJ348=\"\",\"\",'[1]REAL IMAE(M)'!BJ348)","v":4.7140867658296948},{"$f":"IF('[1]REAL IMAE(M)'!BK348=\"\",\"\",'[1]REAL IMAE(M)'!BK348)","v":4.0353969065762829},{"$f":"IF('[1]REAL IMAE(M)'!BN348=\"\",\"\",'[1]REAL IMAE(M)'!BN348)","v":4.5219729150303145},{"$f":"IF('[1]REAL IMAE(M)'!BO348=\"\",\"\",'[1]REAL IMAE(M)'!BO348)","v":4.0500507255079254},{"$f":"IF('[1]EXT RIN(M)'!$K348=\"\",\"\",'[1]EXT RIN(M)'!$K348)","v":38876.111293439797},null,{"$f":"IF('[1]EXT RIN(M)'!$L348=\"\",\"\",'[1]EXT RIN(M)'!$L348)","v":41663.817642469796},null,{"$f":"IF('[1]MONE(M)CARD'!EG348=\"\",\"\",'[1]MONE(M)CARD'!EG348)","v":37367.307326643262},{"$f":"IF('[1]MONE(M)CARD'!EK348=\"\",\"\",'[1]MONE(M)CARD'!EK348)","v":56259.939058595919},{"$f":"IF('[1]MONE(M)CARD'!EP348=\"\",\"\",'[1]MONE(M)CARD'!EP348)","v":31304.158883801996},{"$f":"IF('[1]MONE(M)CARD'!ES348=\"\",\"\",'[1]MONE(M)CARD'!ES348)","v":8.5653389042146486},{"$f":"IF('[1]MONE(M)CARD'!EV348=\"\",\"\",'[1]MONE(M)CARD'!EV348)","v":5.8812973305980121},{"$f":"IF('[1]MONE(M)CARD'!EZ348=\"\",\"\",'[1]MONE(M)CARD'!EZ348)","v":4.7833007630038393},{"$f":"IF('[1]MONE(M)CAPARD'!FC348=\"\",\"\",'[1]MONE(M)CAPARD'!FC348)","v":45480.72963021326},{"$f":"IF('[1]MONE(M)CAPARD'!FG348=\"\",\"\",'[1]MONE(M)CAPARD'!FG348)","v":88446.742414345936},{"$f":"IF('[1]MONE(M)CAPARD'!FL348=\"\",\"\",'[1]MONE(M)CAPARD'!FL348)","v":31304.158883802011},{"$f":"IF('[1]MONE(M)CAPARD'!FO348=\"\",\"\",'[1]MONE(M)CAPARD'!FO348)","v":7.2328503670402666},{"$f":"IF('[1]MONE(M)CAPARD'!FR348=\"\",\"\",'[1]MONE(M)CAPARD'!FR348)","v":5.3525195700017791},{"$f":"IF('[1]MONE(M)CAPARD'!FV348=\"\",\"\",'[1]MONE(M)CAPARD'!FV348)","v":4.6266996718690168},{"$f":"IF('[1]MONE(M)CARD'!FV348=\"\",\"\",'[1]MONE(M)CARD'!FV348)","v":1688.7885347986596},{"$f":"IF('[1]MONE(M)CARD'!GD348=\"\",\"\",'[1]MONE(M)CARD'!GD348)","v":65.942190168381103},{"$f":"IF('[1]MONE(M)CARD'!GE348=\"\",\"\",'[1]MONE(M)CARD'!GE348)","v":11497.233665271202},{"$f":"IF(AD341=\"\",\"\",((AD341/AD328)-1)*100)","v":15.582686483893449},{"$f":"IF('[9]II.2.Balance OSD-Activos'!J206=\"\",\"\",'[9]II.2.Balance OSD-Activos'!J206)","v":273.81284024875731},{"$f":"IF('[9]II.2.Balance OSD-Activos'!N206=\"\",\"\",'[9]II.2.Balance OSD-Activos'!N206)","v":1100.2655706062903},{"$f":"IF('[9]II.2.Balance OSD-Activos'!R206=\"\",\"\",'[9]II.2.Balance OSD-Activos'!R206)","v":52732.503922545555},{"$f":"IF('[9]II.2.Balance OSD-Activos'!S206=\"\",\"\",'[9]II.2.Balance OSD-Activos'!S206)","v":58298.667162355654},{"$f":"IFERROR(+AF341+AH341,\"\")","v":53006.316762794311},{"$f":"IF(OR(AF341=\"\",AG341=\"\",AH341=\"\",AI341=\"\"),\"\",SUM(AF341:AI341))","v":112405.24949575626},18.663116596840478,{"$f":"IF(OR(AJ341=\"\",AJ329=\"\"),\"\",((AJ341/AJ329)-1)*100)","v":4.7848956540339049},{"$f":"IF(OR(AG341=\"\",AG329=\"\"),\"\",((AG341/AG329)-1)*100)","v":9.449485674000524},{"$f":"IF(OR(AH341=\"\",AH329=\"\"),\"\",((AH341/AH329)-1)*100)","v":4.7212998463360689},{"$f":"IF(OR(AI341=\"\",AI329=\"\"),\"\",((AI341/AI329)-1)*100)","v":6.3265145238076359},{"$f":"IF(OR(AK341=\"\",AK329=\"\"),\"\",((AK341/AK329)-1)*100)","v":5.6232259492071002},{"$f":"IF(OR(AQ341=\"\",AQ340=\"\"),\"\",AQ341-AQ340)","v":0.12353706599737002},{"$f":"IF('[1]MONE(M)CAPARD'!GS348=\"\",\"\",'[1]MONE(M)CAPARD'!GS348)","v":21740.62272666279},{"$f":"IF('[1]MONE(M)CARD'!HA348=\"\",\"\",'[1]MONE(M)CAPARD'!HA348)","v":13390.298370381201},{"$f":"IF('[1]MONE(M)CAPARD'!HB348=\"\",\"\",'[1]MONE(M)CAPARD'!HB348)","v":8350.3243562815896},"n.d.",{"$f":"IF('[10]II.2.Balance OSD-Activos'!J206=\"\",\"\",'[10]II.2.Balance OSD-Activos'!J206)","v":2547.9690768887576},{"$f":"IF('[10]II.2.Balance OSD-Activos'!N206=\"\",\"\",'[10]II.2.Balance OSD-Activos'!N206)","v":1655.5493165262901},{"$f":"IF('[10]II.2.Balance OSD-Activos'!R206=\"\",\"\",'[10]II.2.Balance OSD-Activos'!R206)","v":76524.730225595558},{"$f":"IF('[10]II.2.Balance OSD-Activos'!S206=\"\",\"\",'[10]II.2.Balance OSD-Activos'!S206)","v":81858.08839837565},{"$f":"IFERROR(+AW341+AY341,\"\")","v":79072.69930248431},{"$f":"IF(OR(AW341=\"\",AX341=\"\",AY341=\"\",AZ341=\"\"),\"\",SUM(AW341:AZ341))","v":162586.33701738628},{"$f":"IF(OR(AW341=\"\",AW329=\"\"),\"\",((AW341/AW329)-1)*100)","v":19.860762767794292},{"$f":"IF(OR(BA341=\"\",BA329=\"\"),\"\",((BA341/BA329)-1)*100)","v":5.0795330797432037},{"$f":"IF(OR(AX341=\"\",AX329=\"\"),\"\",((AX341/AX329)-1)*100)","v":11.934484228202313},{"$f":"IF(OR(AY341=\"\",AY329=\"\"),\"\",((AY341/AY329)-1)*100)","v":4.6498340055366016},{"$f":"IF(OR(AZ341=\"\",AZ329=\"\"),\"\",((AZ341/AZ329)-1)*100)","v":6.9749462617894498},{"$f":"IF(OR(BB341=\"\",BB329=\"\"),\"\",((BB341/BB329)-1)*100)","v":6.0921077833414161},{"$f":"IF(OR(BH341=\"\",BH340=\"\"),\"\",BH341-BH340)","v":-8.4558566658454737E-3},{"$f":"IF('[1]MONE(M)CAPARD'!AS348=\"\",\"\",'[1]MONE(M)CAPARD'!AS348)","v":5},{"$f":"IF('[1]MONE(M)CAPARD'!AT348=\"\",\"\",'[1]MONE(M)CAPARD'!AT348)","v":"n.a."},{"$f":"IF('[1]MONE(M)CAPARD'!AU348=\"\",\"\",'[1]MONE(M)CAPARD'!AU348)","v":2.75},{"$f":"IF('[1]MONE(M)CAPARD'!AV348=\"\",\"\",'[1]MONE(M)CAPARD'!AV348)","v":5.5},{"$f":"IF('[1]MONE(M)CAPARD'!AW348=\"\",\"\",'[1]MONE(M)CAPARD'!AW348)","v":"n.a."},{"$f":"IF('[1]MONE(M)CAPARD'!AX348=\"\",\"\",'[1]MONE(M)CAPARD'!AX348)","v":5.25},{"$f":"IF('[1]MONE(M)CAPARD'!AY348=\"\",\"\",'[1]MONE(M)CAPARD'!AY348)","v":"n.a."},{"$f":"IF('[1]FISCAL(M)'!$K348=\"\",\"\",'[1]FISCAL(M)'!$K348)","v":-898.67182235922803},{"$f":"IF('[1]FISCAL(M)'!$L348=\"\",\"\",'[1]FISCAL(M)'!$L348)","v":-1803.6718223592279},{"$f":"IF('[1]FISCAL(M)'!$AY348=\"\",\"\",'[1]FISCAL(M)'!$AY348)","v":134432.85187953606},{"$f":"IF('[1]FISCAL(M)'!$BI348=\"\",\"\",'[1]FISCAL(M)'!$BI348)","v":71015.573618116614},{"$f":"IF('[1]FISCAL(M)'!$BS348=\"\",\"\",'[1]FISCAL(M)'!$BS348)","v":63417.278261419444},{"$f":"IF('[1]FISCAL(M)'!$AZ348=\"\",\"\",'[1]FISCAL(M)'!$AZ348)","v":158105.83417953606},{"$f":"IF('[1]FISCAL(M)'!$BJ348=\"\",\"\",'[1]FISCAL(M)'!$BJ348)","v":76219.145918116614},{"$f":"IF('[1]FISCAL(M)'!$BT348=\"\",\"\",'[1]FISCAL(M)'!$BT348)","v":81886.688261419447},{"$f":"IF('[2]MONE(M)'!$AO348=\"\",\"\",'[2]MONE(M)'!$AO348)","v":21303654.176589273},{"$f":"IF('[3]MONE(M)'!$AO348=\"\",\"\",'[3]MONE(M)'!$AO348)","v":12347.833193719998},{"$f":"IF('[4]MONE(M)'!$AO348=\"\",\"\",'[4]MONE(M)'!$AO348)","v":197925.36200012689},{"$f":"IF('[5]MONE(M)'!$AO348=\"\",\"\",'[5]MONE(M)'!$AO348)","v":316001.75509304926},{"$f":"IF('[6]MONE(M)'!$AO348=\"\",\"\",'[6]MONE(M)'!$AO348)","v":166524.83952769733},{"$f":"IF('[7]MONE(M)'!$AO348=\"\",\"\",'[7]MONE(M)'!$AO348)","v":1035364.0489089899},{"$f":"IF('[8]MONE(M)'!$AO348=\"\",\"\",'[8]MONE(M)'!$AO348)","v":50957.433308420004},3.7268000672844526,5.1063929196923707,3.7553130105482335,9.8898926695136566,15.894782285555277,12.788396678576275,6.8240801937131002,{"$f":"'[1]FISCAL(M)'!$K348","v":-898.67182235922803},{"$f":"+'[1]REAL(A)'!$AO$38","v":282215.10781476315},-0.31843505095024438,{"$f":"IF('[1]FISCAL(M)'!$L348=\"\",\"\",'[1]FISCAL(M)'!$L348)","v":-1803.6718223592279},{"$f":"+'[1]REAL(A)'!$AP$38","v":347343.29381476314},-0.519276420324706,152708.43125711067,{"$f":"'[1]Gráfico REM'!BG342","v":27409.850000004706},{"$f":"'[1]Gráfico REM'!BH342","v":116731.845308777},{"$f":"'[1]Gráfico REM'!BI342","v":8566.7359483289783},{"$f":"IFERROR(+((CS341/CS329)-1)*100,\"\")","v":5.7806019753393389},{"$f":"IFERROR(+((CT341/CT329)-1)*100,\"\")","v":8.6444561038566903},{"$f":"IFERROR(+((CU341/CU329)-1)*100,\"\")","v":4.8914886238328847},{"$f":"IFERROR(+((CV341/CV329)-1)*100,\"\")","v":9.1829798561330342},{"$f":"+IF(OR(DB341=\"\",+DC341=\"\",+DD341=\"\"),\"\",(DB341+DC341+DD341))","v":226981.15427451069},{"$f":"'[1]Gráfico REM'!BK342","v":29692.352689214706},{"$f":"'[1]Gráfico REM'!BL342","v":167689.27861719701},{"$f":"'[1]Gráfico REM'!BM342","v":29599.522968098972},{"$f":"IFERROR(+((DA341/DA329)-1)*100,\"\")","v":4.7945113202444434},{"$f":"IFERROR(+((DB341/DB329)-1)*100,\"\")","v":8.0461563744859355},{"$f":"IFERROR(+((DC341/DC329)-1)*100,\"\")","v":5.4713278348048178},{"$f":"IFERROR(+((DD341/DD329)-1)*100,\"\")","v":-1.7438238601003575}]
[2018,"abril","2018-abril",{"$f":"IF('[1]REAL IPC(M)'!$AL349=\"\",\"\",+'[1]REAL IPC(M)'!$AL349)","v":3.7764040399006937},{"$f":"IF('[1]REAL IPC(M)'!$BE349=\"\",\"\",+'[1]REAL IPC(M)'!$BE349)","v":3.0870122544738754},{"$f":"IF('[1]REAL IPC(M)'!$AM349=\"\",\"\",+'[1]REAL IPC(M)'!$AM349)","v":3.4747716372429682},{"$f":"IF('[1]REAL IPC(M)'!$BI349=\"\",\"\",+'[1]REAL IPC(M)'!$BI349)","v":2.8602737903520747},{"$f":"IF('[1]REAL IMAE(M)'!BJ349=\"\",\"\",'[1]REAL IMAE(M)'!BJ349)","v":4.5442177443482779},{"$f":"IF('[1]REAL IMAE(M)'!BK349=\"\",\"\",'[1]REAL IMAE(M)'!BK349)","v":4.0041456638167494},{"$f":"IF('[1]REAL IMAE(M)'!BN349=\"\",\"\",'[1]REAL IMAE(M)'!BN349)","v":4.2594064849375668},{"$f":"IF('[1]REAL IMAE(M)'!BO349=\"\",\"\",'[1]REAL IMAE(M)'!BO349)","v":4.0148349340072276},{"$f":"IF('[1]EXT RIN(M)'!$K349=\"\",\"\",'[1]EXT RIN(M)'!$K349)","v":38383.28818037254},null,{"$f":"IF('[1]EXT RIN(M)'!$L349=\"\",\"\",'[1]EXT RIN(M)'!$L349)","v":41727.930410402536},null,{"$f":"IF('[1]MONE(M)CARD'!EG349=\"\",\"\",'[1]MONE(M)CARD'!EG349)","v":36876.481711581677},{"$f":"IF('[1]MONE(M)CARD'!EK349=\"\",\"\",'[1]MONE(M)CARD'!EK349)","v":56587.652923156995},{"$f":"IF('[1]MONE(M)CARD'!EP349=\"\",\"\",'[1]MONE(M)CARD'!EP349)","v":31744.679409783304},{"$f":"IF('[1]MONE(M)CARD'!ES349=\"\",\"\",'[1]MONE(M)CARD'!ES349)","v":6.3163783333296974},{"$f":"IF('[1]MONE(M)CARD'!EV349=\"\",\"\",'[1]MONE(M)CARD'!EV349)","v":5.1053785240003258},{"$f":"IF('[1]MONE(M)CARD'!EZ349=\"\",\"\",'[1]MONE(M)CARD'!EZ349)","v":4.8582837561172765},{"$f":"IF('[1]MONE(M)CAPARD'!FC349=\"\",\"\",'[1]MONE(M)CAPARD'!FC349)","v":45329.400080391686},{"$f":"IF('[1]MONE(M)CAPARD'!FG349=\"\",\"\",'[1]MONE(M)CAPARD'!FG349)","v":88540.900710086993},{"$f":"IF('[1]MONE(M)CAPARD'!FL349=\"\",\"\",'[1]MONE(M)CAPARD'!FL349)","v":31744.679409783275},{"$f":"IF('[1]MONE(M)CAPARD'!FO349=\"\",\"\",'[1]MONE(M)CAPARD'!FO349)","v":6.2934131944763605},{"$f":"IF('[1]MONE(M)CAPARD'!FR349=\"\",\"\",'[1]MONE(M)CAPARD'!FR349)","v":4.7473398236867803},{"$f":"IF('[1]MONE(M)CAPARD'!FV349=\"\",\"\",'[1]MONE(M)CAPARD'!FV349)","v":4.6298897712123921},{"$f":"IF('[1]MONE(M)CARD'!FV349=\"\",\"\",'[1]MONE(M)CARD'!FV349)","v":1691.2709306630791},{"$f":"IF('[1]MONE(M)CARD'!GD349=\"\",\"\",'[1]MONE(M)CARD'!GD349)","v":140.34169099524905},{"$f":"IF('[1]MONE(M)CARD'!GE349=\"\",\"\",'[1]MONE(M)CARD'!GE349)","v":11997.797990095609},{"$f":"IF(AD342=\"\",\"\",((AD342/AD329)-1)*100)","v":16.122153977304588},{"$f":"IF('[9]II.2.Balance OSD-Activos'!J207=\"\",\"\",'[9]II.2.Balance OSD-Activos'!J207)","v":278.12917193569831},{"$f":"IF('[9]II.2.Balance OSD-Activos'!N207=\"\",\"\",'[9]II.2.Balance OSD-Activos'!N207)","v":1156.9405862358335},{"$f":"IF('[9]II.2.Balance OSD-Activos'!R207=\"\",\"\",'[9]II.2.Balance OSD-Activos'!R207)","v":53940.990266602341},{"$f":"IF('[9]II.2.Balance OSD-Activos'!S207=\"\",\"\",'[9]II.2.Balance OSD-Activos'!S207)","v":57543.073007004365},{"$f":"IFERROR(+AF342+AH342,\"\")","v":54219.119438538037},{"$f":"IF(OR(AF342=\"\",AG342=\"\",AH342=\"\",AI342=\"\"),\"\",SUM(AF342:AI342))","v":112919.13303177824},{"$f":"IF(OR(AF342=\"\",AF330=\"\"),\"\",((AF342/AF330)-1)*100)","v":15.504445043531213},{"$f":"IF(OR(AJ342=\"\",AJ330=\"\"),\"\",((AJ342/AJ330)-1)*100)","v":6.6571084665457469},{"$f":"IF(OR(AG342=\"\",AG330=\"\"),\"\",((AG342/AG330)-1)*100)","v":18.52750442239115},{"$f":"IF(OR(AH342=\"\",AH330=\"\"),\"\",((AH342/AH330)-1)*100)","v":6.6150009338793225},{"$f":"IF(OR(AI342=\"\",AI330=\"\"),\"\",((AI342/AI330)-1)*100)","v":4.3232882607234124},{"$f":"IF(OR(AK342=\"\",AK330=\"\"),\"\",((AK342/AK330)-1)*100)","v":5.5619999874047865},{"$f":"IF(OR(AQ342=\"\",AQ341=\"\"),\"\",AQ342-AQ341)","v":-6.1225961802313655E-2},{"$f":"IF('[1]MONE(M)CAPARD'!GS349=\"\",\"\",'[1]MONE(M)CAPARD'!GS349)","v":21594.036686777523},{"$f":"IF('[1]MONE(M)CARD'!HA349=\"\",\"\",'[1]MONE(M)CAPARD'!HA349)","v":13904.052498845611},{"$f":"IF('[1]MONE(M)CAPARD'!HB349=\"\",\"\",'[1]MONE(M)CAPARD'!HB349)","v":7689.9841879319119},"n.d.",{"$f":"IF('[10]II.2.Balance OSD-Activos'!J207=\"\",\"\",'[10]II.2.Balance OSD-Activos'!J207)","v":2524.3668695856986},{"$f":"IF('[10]II.2.Balance OSD-Activos'!N207=\"\",\"\",'[10]II.2.Balance OSD-Activos'!N207)","v":1782.3877918158332},{"$f":"IF('[10]II.2.Balance OSD-Activos'!R207=\"\",\"\",'[10]II.2.Balance OSD-Activos'!R207)","v":77777.826551142338},{"$f":"IF('[10]II.2.Balance OSD-Activos'!S207=\"\",\"\",'[10]II.2.Balance OSD-Activos'!S207)","v":81228.035995454367},{"$f":"IFERROR(+AW342+AY342,\"\")","v":80302.193420728043},{"$f":"IF(OR(AW342=\"\",AX342=\"\",AY342=\"\",AZ342=\"\"),\"\",SUM(AW342:AZ342))","v":163312.61720799824},{"$f":"IF(OR(AW342=\"\",AW330=\"\"),\"\",((AW342/AW330)-1)*100)","v":19.017143328369833},{"$f":"IF(OR(BA342=\"\",BA330=\"\"),\"\",((BA342/BA330)-1)*100)","v":6.074080170255014},{"$f":"IF(OR(AX342=\"\",AX330=\"\"),\"\",((AX342/AX330)-1)*100)","v":19.885952801737616},{"$f":"IF(OR(AY342=\"\",AY330=\"\"),\"\",((AY342/AY330)-1)*100)","v":5.7009990181746906},{"$f":"IF(OR(AZ342=\"\",AZ330=\"\"),\"\",((AZ342/AZ330)-1)*100)","v":5.5308449333811405},{"$f":"IF(OR(BB342=\"\",BB330=\"\"),\"\",((BB342/BB330)-1)*100)","v":5.9360516043506673},{"$f":"IF(OR(BH342=\"\",BH341=\"\"),\"\",BH342-BH341)","v":-0.15605617899074886},{"$f":"IF('[1]MONE(M)CAPARD'!AS349=\"\",\"\",'[1]MONE(M)CAPARD'!AS349)","v":5},{"$f":"IF('[1]MONE(M)CAPARD'!AT349=\"\",\"\",'[1]MONE(M)CAPARD'!AT349)","v":"n.a."},{"$f":"IF('[1]MONE(M)CAPARD'!AU349=\"\",\"\",'[1]MONE(M)CAPARD'!AU349)","v":2.75},{"$f":"IF('[1]MONE(M)CAPARD'!AV349=\"\",\"\",'[1]MONE(M)CAPARD'!AV349)","v":5.5},{"$f":"IF('[1]MONE(M)CAPARD'!AW349=\"\",\"\",'[1]MONE(M)CAPARD'!AW349)","v":"n.a."},{"$f":"IF('[1]MONE(M)CAPARD'!AX349=\"\",\"\",'[1]MONE(M)CAPARD'!AX349)","v":5.25},{"$f":"IF('[1]MONE(M)CAPARD'!AY349=\"\",\"\",'[1]MONE(M)CAPARD'!AY349)","v":"n.a."},{"$f":"IF('[1]FISCAL(M)'!$K349=\"\",\"\",'[1]FISCAL(M)'!$K349)","v":-215.03256264901211},{"$f":"IF('[1]FISCAL(M)'!$L349=\"\",\"\",'[1]FISCAL(M)'!$L349)","v":"n.d."},{"$f":"IF('[1]FISCAL(M)'!$AY349=\"\",\"\",'[1]FISCAL(M)'!$AY349)","v":134779.93240434537},{"$f":"IF('[1]FISCAL(M)'!$BI349=\"\",\"\",'[1]FISCAL(M)'!$BI349)","v":71495.025955568548},{"$f":"IF('[1]FISCAL(M)'!$BS349=\"\",\"\",'[1]FISCAL(M)'!$BS349)","v":63284.906448776819},{"$f":"IF('[1]FISCAL(M)'!$AZ349=\"\",\"\",'[1]FISCAL(M)'!$AZ349)","v":159579.92270434537},{"$f":"IF('[1]FISCAL(M)'!$BJ349=\"\",\"\",'[1]FISCAL(M)'!$BJ349)","v":76640.598255568548},{"$f":"IF('[1]FISCAL(M)'!$BT349=\"\",\"\",'[1]FISCAL(M)'!$BT349)","v":82939.324448776824},{"$f":"IF('[2]MONE(M)'!$AO349=\"\",\"\",'[2]MONE(M)'!$AO349)","v":21341590.075228795},{"$f":"IF('[3]MONE(M)'!$AO349=\"\",\"\",'[3]MONE(M)'!$AO349)","v":12410.865783040001},{"$f":"IF('[4]MONE(M)'!$AO349=\"\",\"\",'[4]MONE(M)'!$AO349)","v":198391.13962014142},{"$f":"IF('[5]MONE(M)'!$AO349=\"\",\"\",'[5]MONE(M)'!$AO349)","v":318944.89351121272},{"$f":"IF('[6]MONE(M)'!$AO349=\"\",\"\",'[6]MONE(M)'!$AO349)","v":168339.33452671391},{"$f":"IF('[7]MONE(M)'!$AO349=\"\",\"\",'[7]MONE(M)'!$AO349)","v":1045414.5419804598},{"$f":"IF('[8]MONE(M)'!$AO349=\"\",\"\",'[8]MONE(M)'!$AO349)","v":51130.021452860005},{"$f":"IF(BY342=\"\",\"\",((BY342/BY330)-1)*100)","v":2.8347287622116912},{"$f":"IF(BZ342=\"\",\"\",((BZ342/BZ330)-1)*100)","v":4.7883520142616653},{"$f":"IF(CA342=\"\",\"\",((CA342/CA330)-1)*100)","v":3.4486803286323697},{"$f":"IF(CB342=\"\",\"\",((CB342/CB330)-1)*100)","v":11.183276296954968},{"$f":"IF(CC342=\"\",\"\",((CC342/CC330)-1)*100)","v":13.812784202251937},{"$f":"IF(CD342=\"\",\"\",((CD342/CD330)-1)*100)","v":13.532892362416082},{"$f":"IF(CE342=\"\",\"\",((CE342/CE330)-1)*100)","v":6.4633307822110631},{"$f":"'[1]FISCAL(M)'!$K349","v":-215.03256264901211},{"$f":"+'[1]REAL(A)'!$AO$38","v":282215.10781476315},-7.6194561061611391E-2,{"$f":"IF('[1]FISCAL(M)'!$L349=\"\",\"\",'[1]FISCAL(M)'!$L349)","v":"n.d."},{"$f":"+'[1]REAL(A)'!$AP$38","v":347343.29381476314},"n.d.",{"$f":"+IF(OR(CT342=\"\",+CU342=\"\",+CV342=\"\"),\"\",(CT342+CU342+CV342))","v":153763.28609537473},{"$f":"'[1]Gráfico REM'!BG343","v":27804.494060205368},{"$f":"'[1]Gráfico REM'!BH343","v":117210.87828321184},{"$f":"'[1]Gráfico REM'!BI343","v":8747.9137519575415},{"$f":"IFERROR(+((CS342/CS330)-1)*100,\"\")","v":5.6953452283895256},{"$f":"IFERROR(+((CT342/CT330)-1)*100,\"\")","v":7.3577051950051375},{"$f":"IFERROR(+((CU342/CU330)-1)*100,\"\")","v":4.8175560905636461},{"$f":"IFERROR(+((CV342/CV330)-1)*100,\"\")","v":12.800822190986461},{"$f":"+IF(OR(DB342=\"\",+DC342=\"\",+DD342=\"\"),\"\",(DB342+DC342+DD342))","v":228695.78305753478},{"$f":"'[1]Gráfico REM'!BK343","v":30029.92406777537},{"$f":"'[1]Gráfico REM'!BL343","v":168340.89973607185},{"$f":"'[1]Gráfico REM'!BM343","v":30324.95925368755},{"$f":"IFERROR(+((DA342/DA330)-1)*100,\"\")","v":5.3250352908634113},{"$f":"IFERROR(+((DB342/DB330)-1)*100,\"\")","v":6.7695968193590916},{"$f":"IFERROR(+((DC342/DC330)-1)*100,\"\")","v":5.3120200069180168},{"$f":"IFERROR(+((DD342/DD330)-1)*100,\"\")","v":4.0029485995247471}]
[2018,"mayo ","2018-mayo ",{"$f":"IF('[1]REAL IPC(M)'!$AL350=\"\",\"\",+'[1]REAL IPC(M)'!$AL350)","v":3.893392619300684},{"$f":"IF('[1]REAL IPC(M)'!$BE350=\"\",\"\",+'[1]REAL IPC(M)'!$BE350)","v":3.0952377072388071},{"$f":"IF('[1]REAL IPC(M)'!$AM350=\"\",\"\",+'[1]REAL IPC(M)'!$AM350)","v":3.5858283737238095},{"$f":"IF('[1]REAL IPC(M)'!$BI350=\"\",\"\",+'[1]REAL IPC(M)'!$BI350)","v":2.8691135647467947},{"$f":"IF('[1]REAL IMAE(M)'!BJ350=\"\",\"\",'[1]REAL IMAE(M)'!BJ350)","v":4.4625141410858493},{"$f":"IF('[1]REAL IMAE(M)'!BK350=\"\",\"\",'[1]REAL IMAE(M)'!BK350)","v":3.972842286780609},{"$f":"IF('[1]REAL IMAE(M)'!BN350=\"\",\"\",'[1]REAL IMAE(M)'!BN350)","v":4.1058178105289445},{"$f":"IF('[1]REAL IMAE(M)'!BO350=\"\",\"\",'[1]REAL IMAE(M)'!BO350)","v":3.9796479715879407},{"$f":"IF('[1]EXT RIN(M)'!$K350=\"\",\"\",'[1]EXT RIN(M)'!$K350)","v":38062.624750515293},null,{"$f":"IF('[1]EXT RIN(M)'!$L350=\"\",\"\",'[1]EXT RIN(M)'!$L350)","v":41370.624140785294},null,{"$f":"IF('[1]MONE(M)CARD'!EG350=\"\",\"\",'[1]MONE(M)CARD'!EG350)","v":36059.60434757726},{"$f":"IF('[1]MONE(M)CARD'!EK350=\"\",\"\",'[1]MONE(M)CARD'!EK350)","v":56615.038939232909},{"$f":"IF('[1]MONE(M)CARD'!EP350=\"\",\"\",'[1]MONE(M)CARD'!EP350)","v":31864.285601040552},{"$f":"IF('[1]MONE(M)CARD'!ES350=\"\",\"\",'[1]MONE(M)CARD'!ES350)","v":6.3909289471221653},{"$f":"IF('[1]MONE(M)CARD'!EV350=\"\",\"\",'[1]MONE(M)CARD'!EV350)","v":5.1569802850459201},{"$f":"IF('[1]MONE(M)CARD'!EZ350=\"\",\"\",'[1]MONE(M)CARD'!EZ350)","v":4.6524568427082968},{"$f":"IF('[1]MONE(M)CAPARD'!FC350=\"\",\"\",'[1]MONE(M)CAPARD'!FC350)","v":44128.763557207261},{"$f":"IF('[1]MONE(M)CAPARD'!FG350=\"\",\"\",'[1]MONE(M)CAPARD'!FG350)","v":88774.971009362911},{"$f":"IF('[1]MONE(M)CAPARD'!FL350=\"\",\"\",'[1]MONE(M)CAPARD'!FL350)","v":31864.285601040552},{"$f":"IF('[1]MONE(M)CAPARD'!FO350=\"\",\"\",'[1]MONE(M)CAPARD'!FO350)","v":5.2289107874258223},{"$f":"IF('[1]MONE(M)CAPARD'!FR350=\"\",\"\",'[1]MONE(M)CAPARD'!FR350)","v":4.6112560189228269},{"$f":"IF('[1]MONE(M)CAPARD'!FV350=\"\",\"\",'[1]MONE(M)CAPARD'!FV350)","v":4.3377495475731997},{"$f":"IF('[1]MONE(M)CARD'!FV350=\"\",\"\",'[1]MONE(M)CARD'!FV350)","v":1680.9374504654188},{"$f":"IF('[1]MONE(M)CARD'!GD350=\"\",\"\",'[1]MONE(M)CARD'!GD350)","v":63.438943042017669},{"$f":"IF('[1]MONE(M)CARD'!GE350=\"\",\"\",'[1]MONE(M)CARD'!GE350)","v":11486.015206000577},{"$f":"IF(AD343=\"\",\"\",((AD343/AD330)-1)*100)","v":-0.36755419246914389},{"$f":"IF('[9]II.2.Balance OSD-Activos'!J208=\"\",\"\",'[9]II.2.Balance OSD-Activos'!J208)","v":265.78109657837621},{"$f":"IF('[9]II.2.Balance OSD-Activos'!N208=\"\",\"\",'[9]II.2.Balance OSD-Activos'!N208)","v":1214.8657402654703},{"$f":"IF('[9]II.2.Balance OSD-Activos'!R208=\"\",\"\",'[9]II.2.Balance OSD-Activos'!R208)","v":53011.329024450555},{"$f":"IF('[9]II.2.Balance OSD-Activos'!S208=\"\",\"\",'[9]II.2.Balance OSD-Activos'!S208)","v":58617.60435147056},{"$f":"IFERROR(+AF343+AH343,\"\")","v":53277.110121028934},{"$f":"IF(OR(AF343=\"\",AG343=\"\",AH343=\"\",AI343=\"\"),\"\",SUM(AF343:AI343))","v":113109.58021276497},{"$f":"IF(OR(AF343=\"\",AF331=\"\"),\"\",((AF343/AF331)-1)*100)","v":4.7310284419767035},{"$f":"IF(OR(AJ343=\"\",AJ331=\"\"),\"\",((AJ343/AJ331)-1)*100)","v":4.6293894563844251},{"$f":"IF(OR(AG343=\"\",AG331=\"\"),\"\",((AG343/AG331)-1)*100)","v":18.662413058787575},{"$f":"IF(OR(AH343=\"\",AH331=\"\"),\"\",((AH343/AH331)-1)*100)","v":4.6288803694768843},{"$f":"IF(OR(AI343=\"\",AI331=\"\"),\"\",((AI343/AI331)-1)*100)","v":5.9859202269455736},{"$f":"IF(OR(AK343=\"\",AK331=\"\"),\"\",((AK343/AK331)-1)*100)","v":5.4628823693159356},{"$f":"IF(OR(AQ343=\"\",AQ342=\"\"),\"\",AQ343-AQ342)","v":-9.911761808885089E-2},{"$f":"IF('[1]MONE(M)CAPARD'!GS350=\"\",\"\",'[1]MONE(M)CAPARD'!GS350)","v":21718.941185449141},{"$f":"IF('[1]MONE(M)CARD'!HA350=\"\",\"\",'[1]MONE(M)CAPARD'!HA350)","v":13410.640370200575},{"$f":"IF('[1]MONE(M)CAPARD'!HB350=\"\",\"\",'[1]MONE(M)CAPARD'!HB350)","v":8308.3008152485654},"n.d.",{"$f":"IF('[10]II.2.Balance OSD-Activos'!J208=\"\",\"\",'[10]II.2.Balance OSD-Activos'!J208)","v":2511.2978543383751},{"$f":"IF('[10]II.2.Balance OSD-Activos'!N208=\"\",\"\",'[10]II.2.Balance OSD-Activos'!N208)","v":1813.5140088954704},{"$f":"IF('[10]II.2.Balance OSD-Activos'!R208=\"\",\"\",'[10]II.2.Balance OSD-Activos'!R208)","v":76860.123496310567},{"$f":"IF('[10]II.2.Balance OSD-Activos'!S208=\"\",\"\",'[10]II.2.Balance OSD-Activos'!S208)","v":82429.675600590563},{"$f":"IFERROR(+AW343+AY343,\"\")","v":79371.421350648947},{"$f":"IF(OR(AW343=\"\",AX343=\"\",AY343=\"\",AZ343=\"\"),\"\",SUM(AW343:AZ343))","v":163614.61096013497},{"$f":"IF(OR(AW343=\"\",AW331=\"\"),\"\",((AW343/AW331)-1)*100)","v":17.160082948587331},{"$f":"IF(OR(BA343=\"\",BA331=\"\"),\"\",((BA343/BA331)-1)*100)","v":4.5340628460379007},{"$f":"IF(OR(AX343=\"\",AX331=\"\"),\"\",((AX343/AX331)-1)*100)","v":18.507374915435172},{"$f":"IF(OR(AY343=\"\",AY331=\"\"),\"\",((AY343/AY331)-1)*100)","v":4.167274730278514},{"$f":"IF(OR(AZ343=\"\",AZ331=\"\"),\"\",((AZ343/AZ331)-1)*100)","v":6.6373999296825525},{"$f":"IF(OR(BB343=\"\",BB331=\"\"),\"\",((BB343/BB331)-1)*100)","v":5.7228163682117472},{"$f":"IF(OR(BH343=\"\",BH342=\"\"),\"\",BH343-BH342)","v":-0.21323523613892004},{"$f":"IF('[1]MONE(M)CAPARD'!AS350=\"\",\"\",'[1]MONE(M)CAPARD'!AS350)","v":5},{"$f":"IF('[1]MONE(M)CAPARD'!AT350=\"\",\"\",'[1]MONE(M)CAPARD'!AT350)","v":"n.a."},{"$f":"IF('[1]MONE(M)CAPARD'!AU350=\"\",\"\",'[1]MONE(M)CAPARD'!AU350)","v":2.75},{"$f":"IF('[1]MONE(M)CAPARD'!AV350=\"\",\"\",'[1]MONE(M)CAPARD'!AV350)","v":5.5},{"$f":"IF('[1]MONE(M)CAPARD'!AW350=\"\",\"\",'[1]MONE(M)CAPARD'!AW350)","v":"n.a."},{"$f":"IF('[1]MONE(M)CAPARD'!AX350=\"\",\"\",'[1]MONE(M)CAPARD'!AX350)","v":5.25},{"$f":"IF('[1]MONE(M)CAPARD'!AY350=\"\",\"\",'[1]MONE(M)CAPARD'!AY350)","v":"n.a."},{"$f":"IF('[1]FISCAL(M)'!$K350=\"\",\"\",'[1]FISCAL(M)'!$K350)","v":-954.25773846818447},{"$f":"IF('[1]FISCAL(M)'!$L350=\"\",\"\",'[1]FISCAL(M)'!$L350)","v":"n.d."},{"$f":"IF('[1]FISCAL(M)'!$AY350=\"\",\"\",'[1]FISCAL(M)'!$AY350)","v":134424.89605038855},{"$f":"IF('[1]FISCAL(M)'!$BI350=\"\",\"\",'[1]FISCAL(M)'!$BI350)","v":71345.519827646058},{"$f":"IF('[1]FISCAL(M)'!$BS350=\"\",\"\",'[1]FISCAL(M)'!$BS350)","v":63079.37622274246},{"$f":"IF('[1]FISCAL(M)'!$AZ350=\"\",\"\",'[1]FISCAL(M)'!$AZ350)","v":159274.35485038854},{"$f":"IF('[1]FISCAL(M)'!$BJ350=\"\",\"\",'[1]FISCAL(M)'!$BJ350)","v":76546.092127646072},{"$f":"IF('[1]FISCAL(M)'!$BT350=\"\",\"\",'[1]FISCAL(M)'!$BT350)","v":82728.262722742467},{"$f":"IF('[2]MONE(M)'!$AO350=\"\",\"\",'[2]MONE(M)'!$AO350)","v":21391990.600094415},{"$f":"IF('[3]MONE(M)'!$AO350=\"\",\"\",'[3]MONE(M)'!$AO350)","v":12463.87307288},{"$f":"IF('[4]MONE(M)'!$AO350=\"\",\"\",'[4]MONE(M)'!$AO350)","v":198924.63618635177},{"$f":"IF('[5]MONE(M)'!$AO350=\"\",\"\",'[5]MONE(M)'!$AO350)","v":323644.29482443538},{"$f":"IF('[6]MONE(M)'!$AO350=\"\",\"\",'[6]MONE(M)'!$AO350)","v":167029.4531335904},{"$f":"IF('[7]MONE(M)'!$AO350=\"\",\"\",'[7]MONE(M)'!$AO350)","v":1056564.0815769201},{"$f":"IF('[8]MONE(M)'!$AO350=\"\",\"\",'[8]MONE(M)'!$AO350)","v":51317.143930300008},{"$f":"IF(BY343=\"\",\"\",((BY343/BY331)-1)*100)","v":1.9292642646786762},{"$f":"IF(BZ343=\"\",\"\",((BZ343/BZ331)-1)*100)","v":4.9436951401582441},{"$f":"IF(CA343=\"\",\"\",((CA343/CA331)-1)*100)","v":3.8430112397368932},{"$f":"IF(CB343=\"\",\"\",((CB343/CB331)-1)*100)","v":11.698600382974433},{"$f":"IF(CC343=\"\",\"\",((CC343/CC331)-1)*100)","v":10.911333039210724},{"$f":"IF(CD343=\"\",\"\",((CD343/CD331)-1)*100)","v":12.869139797450369},{"$f":"IF(CE343=\"\",\"\",((CE343/CE331)-1)*100)","v":6.1317849013327264},{"$f":"'[1]FISCAL(M)'!$K350","v":-954.25773846818447},{"$f":"+'[1]REAL(A)'!$AO$38","v":282215.10781476315},-0.3381313445113393,{"$f":"IF('[1]FISCAL(M)'!$L350=\"\",\"\",'[1]FISCAL(M)'!$L350)","v":"n.d."},{"$f":"+'[1]REAL(A)'!$AP$38","v":347343.29381476314},"n.d.",{"$f":"+IF(OR(CT343=\"\",+CU343=\"\",+CV343=\"\"),\"\",(CT343+CU343+CV343))","v":153493.13917014422},{"$f":"'[1]Gráfico REM'!BG344","v":27294.060378421585},{"$f":"'[1]Gráfico REM'!BH344","v":117275.9480506511},{"$f":"'[1]Gráfico REM'!BI344","v":8923.1307410715526},{"$f":"IFERROR(+((CS343/CS331)-1)*100,\"\")","v":5.2316449407831644},{"$f":"IFERROR(+((CT343/CT331)-1)*100,\"\")","v":5.3292117149406959},{"$f":"IFERROR(+((CU343/CU331)-1)*100,\"\")","v":4.6563965510011407},{"$f":"IFERROR(+((CV343/CV331)-1)*100,\"\")","v":13.080229661793318},{"$f":"+IF(OR(DB343=\"\",+DC343=\"\",+DD343=\"\"),\"\",(DB343+DC343+DD343))","v":228392.95558250425},{"$f":"'[1]Gráfico REM'!BK344","v":29528.061524241588},{"$f":"'[1]Gráfico REM'!BL344","v":168593.09198095111},{"$f":"'[1]Gráfico REM'!BM344","v":30271.80207731155},{"$f":"IFERROR(+((DA343/DA331)-1)*100,\"\")","v":4.9284867919875186},{"$f":"IFERROR(+((DB343/DB331)-1)*100,\"\")","v":4.8641005656160363},{"$f":"IFERROR(+((DC343/DC331)-1)*100,\"\")","v":5.1011209241307309},{"$f":"IFERROR(+((DD343/DD331)-1)*100,\"\")","v":4.0390593838067534}]
[2018,"junio ","2018-junio ",{"$f":"IF('[1]REAL IPC(M)'!$AL351=\"\",\"\",+'[1]REAL IPC(M)'!$AL351)","v":3.9672694223538585},{"$f":"IF('[1]REAL IPC(M)'!$BE351=\"\",\"\",+'[1]REAL IPC(M)'!$BE351)","v":3.1014448084790258},{"$f":"IF('[1]REAL IPC(M)'!$AM351=\"\",\"\",+'[1]REAL IPC(M)'!$AM351)","v":3.676194615810191},{"$f":"IF('[1]REAL IPC(M)'!$BI351=\"\",\"\",+'[1]REAL IPC(M)'!$BI351)","v":2.8758311606860376},{"$f":"IF('[1]REAL IMAE(M)'!BJ351=\"\",\"\",'[1]REAL IMAE(M)'!BJ351)","v":4.4647502059771194},{"$f":"IF('[1]REAL IMAE(M)'!BK351=\"\",\"\",'[1]REAL IMAE(M)'!BK351)","v":3.9415543429085487},{"$f":"IF('[1]REAL IMAE(M)'!BN351=\"\",\"\",'[1]REAL IMAE(M)'!BN351)","v":4.1505241036384755},{"$f":"IF('[1]REAL IMAE(M)'!BO351=\"\",\"\",'[1]REAL IMAE(M)'!BO351)","v":3.9446217569183872},{"$f":"IF('[1]EXT RIN(M)'!$K351=\"\",\"\",'[1]EXT RIN(M)'!$K351)","v":37951.189857708392},null,{"$f":"IF('[1]EXT RIN(M)'!$L351=\"\",\"\",'[1]EXT RIN(M)'!$L351)","v":40847.100935618393},null,{"$f":"IF('[1]MONE(M)CARD'!EG351=\"\",\"\",'[1]MONE(M)CARD'!EG351)","v":36264.861063898192},{"$f":"IF('[1]MONE(M)CARD'!EK351=\"\",\"\",'[1]MONE(M)CARD'!EK351)","v":57271.13346008306},{"$f":"IF('[1]MONE(M)CARD'!EP351=\"\",\"\",'[1]MONE(M)CARD'!EP351)","v":31023.527103506873},{"$f":"IF('[1]MONE(M)CARD'!ES351=\"\",\"\",'[1]MONE(M)CARD'!ES351)","v":7.5533702299405592},{"$f":"IF('[1]MONE(M)CARD'!EV351=\"\",\"\",'[1]MONE(M)CARD'!EV351)","v":5.2183162631242785},{"$f":"IF('[1]MONE(M)CARD'!EZ351=\"\",\"\",'[1]MONE(M)CARD'!EZ351)","v":3.9522268666061233},{"$f":"IF('[1]MONE(M)CAPARD'!FC351=\"\",\"\",'[1]MONE(M)CAPARD'!FC351)","v":44392.904230528191},{"$f":"IF('[1]MONE(M)CAPARD'!FG351=\"\",\"\",'[1]MONE(M)CAPARD'!FG351)","v":89409.225933343056},{"$f":"IF('[1]MONE(M)CAPARD'!FL351=\"\",\"\",'[1]MONE(M)CAPARD'!FL351)","v":31023.527103506873},{"$f":"IF('[1]MONE(M)CAPARD'!FO351=\"\",\"\",'[1]MONE(M)CAPARD'!FO351)","v":6.612222606220497},{"$f":"IF('[1]MONE(M)CAPARD'!FR351=\"\",\"\",'[1]MONE(M)CAPARD'!FR351)","v":4.531203119651761},{"$f":"IF('[1]MONE(M)CAPARD'!FV351=\"\",\"\",'[1]MONE(M)CAPARD'!FV351)","v":3.7103484479063198},{"$f":"IF('[1]MONE(M)CARD'!FV351=\"\",\"\",'[1]MONE(M)CARD'!FV351)","v":1668.4234059278147},{"$f":"IF('[1]MONE(M)CARD'!GD351=\"\",\"\",'[1]MONE(M)CARD'!GD351)","v":122.38075501664028},{"$f":"IF('[1]MONE(M)CARD'!GE351=\"\",\"\",'[1]MONE(M)CARD'!GE351)","v":11376.198418426104},{"$f":"IF(AD344=\"\",\"\",((AD344/AD331)-1)*100)","v":1.4807788527995136},{"$f":"IF('[9]II.2.Balance OSD-Activos'!J209=\"\",\"\",'[9]II.2.Balance OSD-Activos'!J209)","v":268.140128966806},{"$f":"IF('[9]II.2.Balance OSD-Activos'!N209=\"\",\"\",'[9]II.2.Balance OSD-Activos'!N209)","v":1565.9320841094932},{"$f":"IF('[9]II.2.Balance OSD-Activos'!R209=\"\",\"\",'[9]II.2.Balance OSD-Activos'!R209)","v":53988.092773270648},{"$f":"IF('[9]II.2.Balance OSD-Activos'!S209=\"\",\"\",'[9]II.2.Balance OSD-Activos'!S209)","v":57939.188851246479},{"$f":"IFERROR(+AF344+AH344,\"\")","v":54256.232902237454},{"$f":"IF(OR(AF344=\"\",AG344=\"\",AH344=\"\",AI344=\"\"),\"\",SUM(AF344:AI344))","v":113761.35383759343},{"$f":"IF(OR(AF344=\"\",AF332=\"\"),\"\",((AF344/AF332)-1)*100)","v":5.8628700363092312},{"$f":"IF(OR(AJ344=\"\",AJ332=\"\"),\"\",((AJ344/AJ332)-1)*100)","v":5.6475661892065654},{"$f":"IF(OR(AG344=\"\",AG332=\"\"),\"\",((AG344/AG332)-1)*100)","v":50.441506562709648},{"$f":"IF(OR(AH344=\"\",AH332=\"\"),\"\",((AH344/AH332)-1)*100)","v":5.6464990352860234},{"$f":"IF(OR(AI344=\"\",AI332=\"\"),\"\",((AI344/AI332)-1)*100)","v":4.1496135457793182},{"$f":"IF(OR(AK344=\"\",AK332=\"\"),\"\",((AK344/AK332)-1)*100)","v":5.3077768793655},{"$f":"IF(OR(AQ344=\"\",AQ343=\"\"),\"\",AQ344-AQ343)","v":-0.1551054899504356},{"$f":"IF('[1]MONE(M)CAPARD'!GS351=\"\",\"\",'[1]MONE(M)CAPARD'!GS351)","v":21737.680488439437},{"$f":"IF('[1]MONE(M)CARD'!HA351=\"\",\"\",'[1]MONE(M)CAPARD'!HA351)","v":13212.218018886102},{"$f":"IF('[1]MONE(M)CAPARD'!HB351=\"\",\"\",'[1]MONE(M)CAPARD'!HB351)","v":8525.4624695533348},"n.d.",{"$f":"IF('[10]II.2.Balance OSD-Activos'!J209=\"\",\"\",'[10]II.2.Balance OSD-Activos'!J209)","v":2540.9733356068054},{"$f":"IF('[10]II.2.Balance OSD-Activos'!N209=\"\",\"\",'[10]II.2.Balance OSD-Activos'!N209)","v":2100.8578933494928},{"$f":"IF('[10]II.2.Balance OSD-Activos'!R209=\"\",\"\",'[10]II.2.Balance OSD-Activos'!R209)","v":77801.703942370645},{"$f":"IF('[10]II.2.Balance OSD-Activos'!S209=\"\",\"\",'[10]II.2.Balance OSD-Activos'!S209)","v":81876.276154176492},80342.677277977447,164319.81132550346,22.515583953515119,5.1917782271167834,34.285652327326055,4.7082255751714985,5.2484249813393724,5.5123430698958975,-0.21047329831584971,{"$f":"IF('[1]MONE(M)CAPARD'!AS351=\"\",\"\",'[1]MONE(M)CAPARD'!AS351)","v":5},{"$f":"IF('[1]MONE(M)CAPARD'!AT351=\"\",\"\",'[1]MONE(M)CAPARD'!AT351)","v":"n.a."},{"$f":"IF('[1]MONE(M)CAPARD'!AU351=\"\",\"\",'[1]MONE(M)CAPARD'!AU351)","v":2.75},{"$f":"IF('[1]MONE(M)CAPARD'!AV351=\"\",\"\",'[1]MONE(M)CAPARD'!AV351)","v":5.5},{"$f":"IF('[1]MONE(M)CAPARD'!AW351=\"\",\"\",'[1]MONE(M)CAPARD'!AW351)","v":"n.a."},{"$f":"IF('[1]MONE(M)CAPARD'!AX351=\"\",\"\",'[1]MONE(M)CAPARD'!AX351)","v":5.25},{"$f":"IF('[1]MONE(M)CAPARD'!AY351=\"\",\"\",'[1]MONE(M)CAPARD'!AY351)","v":"n.a."},{"$f":"IF('[1]FISCAL(M)'!$K351=\"\",\"\",'[1]FISCAL(M)'!$K351)","v":-1654.3535269796218},{"$f":"IF('[1]FISCAL(M)'!$L351=\"\",\"\",'[1]FISCAL(M)'!$L351)","v":-3331.3535269796221},{"$f":"IF('[1]FISCAL(M)'!$AY351=\"\",\"\",'[1]FISCAL(M)'!$AY351)","v":134850.14385677996},{"$f":"IF('[1]FISCAL(M)'!$BI351=\"\",\"\",'[1]FISCAL(M)'!$BI351)","v":71950.79987635494},{"$f":"IF('[1]FISCAL(M)'!$BS351=\"\",\"\",'[1]FISCAL(M)'!$BS351)","v":62899.343980425001},{"$f":"IF('[1]FISCAL(M)'!$AZ351=\"\",\"\",'[1]FISCAL(M)'!$AZ351)","v":159082.86215677997},{"$f":"IF('[1]FISCAL(M)'!$BJ351=\"\",\"\",'[1]FISCAL(M)'!$BJ351)","v":76580.058676354936},{"$f":"IF('[1]FISCAL(M)'!$BT351=\"\",\"\",'[1]FISCAL(M)'!$BT351)","v":82502.803480425006},{"$f":"IF('[2]MONE(M)'!$AO351=\"\",\"\",'[2]MONE(M)'!$AO351)","v":21482340.12036562},{"$f":"IF('[3]MONE(M)'!$AO351=\"\",\"\",'[3]MONE(M)'!$AO351)","v":12528.20595399},{"$f":"IF('[4]MONE(M)'!$AO351=\"\",\"\",'[4]MONE(M)'!$AO351)","v":199285.70229430648},{"$f":"IF('[5]MONE(M)'!$AO351=\"\",\"\",'[5]MONE(M)'!$AO351)","v":325742.79377018748},{"$f":"IF('[6]MONE(M)'!$AO351=\"\",\"\",'[6]MONE(M)'!$AO351)","v":163978.14760418495},{"$f":"IF('[7]MONE(M)'!$AO351=\"\",\"\",'[7]MONE(M)'!$AO351)","v":1062061.6106480199},{"$f":"IF('[8]MONE(M)'!$AO351=\"\",\"\",'[8]MONE(M)'!$AO351)","v":51452.042798259994},{"$f":"IF(BY344=\"\",\"\",((BY344/BY332)-1)*100)","v":1.5050040876780635},{"$f":"IF(BZ344=\"\",\"\",((BZ344/BZ332)-1)*100)","v":5.3505460603983979},{"$f":"IF(CA344=\"\",\"\",((CA344/CA332)-1)*100)","v":3.9884091510973274},{"$f":"IF(CB344=\"\",\"\",((CB344/CB332)-1)*100)","v":11.921956323036408},{"$f":"IF(CC344=\"\",\"\",((CC344/CC332)-1)*100)","v":8.7437002681588716},{"$f":"IF(CD344=\"\",\"\",((CD344/CD332)-1)*100)","v":11.932454382697632},{"$f":"IF(CE344=\"\",\"\",((CE344/CE332)-1)*100)","v":6.021679486258269},{"$f":"'[1]FISCAL(M)'!$K351","v":-1654.3535269796218},{"$f":"+'[1]REAL(A)'!$AO$38","v":282215.10781476315},-0.58620303490821124,{"$f":"IF('[1]FISCAL(M)'!$L351=\"\",\"\",'[1]FISCAL(M)'!$L351)","v":-3331.3535269796221},{"$f":"+'[1]REAL(A)'!$AP$38","v":347343.29381476314},-0.95909539245522912,{"$f":"+IF(OR(CT344=\"\",+CU344=\"\",+CV344=\"\"),\"\",(CT344+CU344+CV344))","v":154553.21124556157},{"$f":"'[1]Gráfico REM'!BG345","v":27629.074916352336},{"$f":"'[1]Gráfico REM'!BH345","v":117555.41902982857},{"$f":"'[1]Gráfico REM'!BI345","v":9368.7172993806616},{"$f":"IFERROR(+((CS344/CS332)-1)*100,\"\")","v":5.2652813601596904},{"$f":"IFERROR(+((CT344/CT332)-1)*100,\"\")","v":6.1517251054199029},{"$f":"IFERROR(+((CU344/CU332)-1)*100,\"\")","v":4.2340737866186196},{"$f":"IFERROR(+((CV344/CV332)-1)*100,\"\")","v":16.897701083932382},{"$f":"+IF(OR(DB344=\"\",+DC344=\"\",+DD344=\"\"),\"\",(DB344+DC344+DD344))","v":229575.10500755155},{"$f":"'[1]Gráfico REM'!BK345","v":29635.973515982339},{"$f":"'[1]Gráfico REM'!BL345","v":169007.46182808856},{"$f":"'[1]Gráfico REM'!BM345","v":30931.669663480665},{"$f":"IFERROR(+((DA344/DA332)-1)*100,\"\")","v":4.8424367597706519},{"$f":"IFERROR(+((DB344/DB332)-1)*100,\"\")","v":4.9417542133392223},{"$f":"IFERROR(+((DC344/DC332)-1)*100,\"\")","v":4.7718709325056841},{"$f":"IFERROR(+((DD344/DD332)-1)*100,\"\")","v":5.1340023700019}]
[2018,"julio","2018-julio",{"$f":"IF('[1]REAL IPC(M)'!$AL352=\"\",\"\",+'[1]REAL IPC(M)'!$AL352)","v":3.6337339613278008},{"$f":"IF('[1]REAL IPC(M)'!$BE352=\"\",\"\",+'[1]REAL IPC(M)'!$BE352)","v":3.1058122395527077},{"$f":"IF('[1]REAL IPC(M)'!$AM352=\"\",\"\",+'[1]REAL IPC(M)'!$AM352)","v":3.3668868520744688},{"$f":"IF('[1]REAL IPC(M)'!$BI352=\"\",\"\",+'[1]REAL IPC(M)'!$BI352)","v":2.8805403651899208},{"$f":"IF('[1]REAL IMAE(M)'!BJ352=\"\",\"\",'[1]REAL IMAE(M)'!BJ352)","v":4.4027178889425089},{"$f":"IF('[1]REAL IMAE(M)'!BK352=\"\",\"\",'[1]REAL IMAE(M)'!BK352)","v":3.9103778578493342},{"$f":"IF('[1]REAL IMAE(M)'!BN352=\"\",\"\",'[1]REAL IMAE(M)'!BN352)","v":4.1248403514997145},{"$f":"IF('[1]REAL IMAE(M)'!BO352=\"\",\"\",'[1]REAL IMAE(M)'!BO352)","v":3.9098948719020754},{"$f":"IF('[1]EXT RIN(M)'!$K352=\"\",\"\",'[1]EXT RIN(M)'!$K352)","v":38400.736781364561},null,{"$f":"IF('[1]EXT RIN(M)'!$L352=\"\",\"\",'[1]EXT RIN(M)'!$L352)","v":40927.143485954562},null,{"$f":"IF('[1]MONE(M)CARD'!EG352=\"\",\"\",'[1]MONE(M)CARD'!EG352)","v":36261.834812081412},{"$f":"IF('[1]MONE(M)CARD'!EK352=\"\",\"\",'[1]MONE(M)CARD'!EK352)","v":57150.327521677951},{"$f":"IF('[1]MONE(M)CARD'!EP352=\"\",\"\",'[1]MONE(M)CARD'!EP352)","v":30973.35559392297},{"$f":"IF('[1]MONE(M)CARD'!ES352=\"\",\"\",'[1]MONE(M)CARD'!ES352)","v":6.3679618449032693},{"$f":"IF('[1]MONE(M)CARD'!EV352=\"\",\"\",'[1]MONE(M)CARD'!EV352)","v":4.0924088061397912},{"$f":"IF('[1]MONE(M)CARD'!EZ352=\"\",\"\",'[1]MONE(M)CARD'!EZ352)","v":3.2914888884966631},{"$f":"IF('[1]MONE(M)CAPARD'!FC352=\"\",\"\",'[1]MONE(M)CAPARD'!FC352)","v":44244.332231901411},{"$f":"IF('[1]MONE(M)CAPARD'!FG352=\"\",\"\",'[1]MONE(M)CAPARD'!FG352)","v":89294.84926225798},{"$f":"IF('[1]MONE(M)CAPARD'!FL352=\"\",\"\",'[1]MONE(M)CAPARD'!FL352)","v":30973.355593922955},{"$f":"IF('[1]MONE(M)CAPARD'!FO352=\"\",\"\",'[1]MONE(M)CAPARD'!FO352)","v":4.8897362028102576},{"$f":"IF('[1]MONE(M)CAPARD'!FR352=\"\",\"\",'[1]MONE(M)CAPARD'!FR352)","v":3.3936274602093031},{"$f":"IF('[1]MONE(M)CAPARD'!FV352=\"\",\"\",'[1]MONE(M)CAPARD'!FV352)","v":2.9243525284266658},{"$f":"IF('[1]MONE(M)CARD'!FV352=\"\",\"\",'[1]MONE(M)CARD'!FV352)","v":1660.8796360479453},{"$f":"IF('[1]MONE(M)CARD'!GD352=\"\",\"\",'[1]MONE(M)CARD'!GD352)","v":96.715034131966917},{"$f":"IF('[1]MONE(M)CARD'!GE352=\"\",\"\",'[1]MONE(M)CARD'!GE352)","v":11747.500927588817},2.3881818856874126,{"$f":"IF('[9]II.2.Balance OSD-Activos'!J210=\"\",\"\",'[9]II.2.Balance OSD-Activos'!J210)","v":271.41096837537611},{"$f":"IF('[9]II.2.Balance OSD-Activos'!N210=\"\",\"\",'[9]II.2.Balance OSD-Activos'!N210)","v":1545.0109952494977},{"$f":"IF('[9]II.2.Balance OSD-Activos'!R210=\"\",\"\",'[9]II.2.Balance OSD-Activos'!R210)","v":54058.091165984326},{"$f":"IF('[9]II.2.Balance OSD-Activos'!S210=\"\",\"\",'[9]II.2.Balance OSD-Activos'!S210)","v":58242.367123766133},{"$f":"IFERROR(+AF345+AH345,\"\")","v":54329.502134359704},{"$f":"IF(OR(AF345=\"\",AG345=\"\",AH345=\"\",AI345=\"\"),\"\",SUM(AF345:AI345))","v":114116.88025337533},{"$f":"IF(OR(AF345=\"\",AF333=\"\"),\"\",((AF345/AF333)-1)*100)","v":-0.68235277354654622},6.0914480436921048,51.032957514061231,6.1277894564125246,3.9609204052356128,5.4135594065152892,0.1057825271497892,{"$f":"IF('[1]MONE(M)CAPARD'!GS352=\"\",\"\",'[1]MONE(M)CAPARD'!GS352)","v":21588.818859664847},{"$f":"IF('[1]MONE(M)CARD'!HA352=\"\",\"\",'[1]MONE(M)CAPARD'!HA352)","v":13522.016661098814},{"$f":"IF('[1]MONE(M)CAPARD'!HB352=\"\",\"\",'[1]MONE(M)CAPARD'!HB352)","v":8066.8021985660325},"n.d.",{"$f":"IF('[10]II.2.Balance OSD-Activos'!J210=\"\",\"\",'[10]II.2.Balance OSD-Activos'!J210)","v":2505.2115367653751},{"$f":"IF('[10]II.2.Balance OSD-Activos'!N210=\"\",\"\",'[10]II.2.Balance OSD-Activos'!N210)","v":2057.1308088994979},{"$f":"IF('[10]II.2.Balance OSD-Activos'!R210=\"\",\"\",'[10]II.2.Balance OSD-Activos'!R210)","v":78030.350717834343},{"$f":"IF('[10]II.2.Balance OSD-Activos'!S210=\"\",\"\",'[10]II.2.Balance OSD-Activos'!S210)","v":82276.973371486136},{"$f":"IFERROR(+AW345+AY345,\"\")","v":80535.562254599718},164869.66643498535,{"$f":"IF(OR(AW345=\"\",AW333=\"\"),\"\",((AW345/AW333)-1)*100)","v":7.5822355564041377},{"$f":"IF(OR(BA345=\"\",BA333=\"\"),\"\",((BA345/BA333)-1)*100)","v":5.1345599216481741},{"$f":"IF(OR(AX345=\"\",AX333=\"\"),\"\",((AX345/AX333)-1)*100)","v":34.035498465721339},{"$f":"IF(OR(AY345=\"\",AY333=\"\"),\"\",((AY345/AY333)-1)*100)","v":5.0578197920993384},{"$f":"IF(OR(AZ345=\"\",AZ333=\"\"),\"\",((AZ345/AZ333)-1)*100)","v":4.9913794020958635},{"$f":"IF(OR(BB345=\"\",BB333=\"\"),\"\",((BB345/BB333)-1)*100)","v":5.3462865232222434},{"$f":"IF(OR(BH345=\"\",BH344=\"\"),\"\",BH345-BH344)","v":-0.1660565466736541},{"$f":"IF('[1]MONE(M)CAPARD'!AS352=\"\",\"\",'[1]MONE(M)CAPARD'!AS352)","v":5},{"$f":"IF('[1]MONE(M)CAPARD'!AT352=\"\",\"\",'[1]MONE(M)CAPARD'!AT352)","v":"n.a."},{"$f":"IF('[1]MONE(M)CAPARD'!AU352=\"\",\"\",'[1]MONE(M)CAPARD'!AU352)","v":2.75},{"$f":"IF('[1]MONE(M)CAPARD'!AV352=\"\",\"\",'[1]MONE(M)CAPARD'!AV352)","v":5.5},{"$f":"IF('[1]MONE(M)CAPARD'!AW352=\"\",\"\",'[1]MONE(M)CAPARD'!AW352)","v":"n.a."},{"$f":"IF('[1]MONE(M)CAPARD'!AX352=\"\",\"\",'[1]MONE(M)CAPARD'!AX352)","v":5.5},{"$f":"IF('[1]MONE(M)CAPARD'!AY352=\"\",\"\",'[1]MONE(M)CAPARD'!AY352)","v":"n.a."},{"$f":"IF('[1]FISCAL(M)'!$K352=\"\",\"\",'[1]FISCAL(M)'!$K352)","v":-2420.8923197128561},{"$f":"IF('[1]FISCAL(M)'!$L352=\"\",\"\",'[1]FISCAL(M)'!$L352)","v":"n.d."},{"$f":"IF('[1]FISCAL(M)'!$AY352=\"\",\"\",'[1]FISCAL(M)'!$AY352)","v":137606.68118798593},{"$f":"IF('[1]FISCAL(M)'!$BI352=\"\",\"\",'[1]FISCAL(M)'!$BI352)","v":73014.174087985943},{"$f":"IF('[1]FISCAL(M)'!$BS352=\"\",\"\",'[1]FISCAL(M)'!$BS352)","v":64592.507100000003},{"$f":"IF('[1]FISCAL(M)'!$AZ352=\"\",\"\",'[1]FISCAL(M)'!$AZ352)","v":162015.88838798593},{"$f":"IF('[1]FISCAL(M)'!$BJ352=\"\",\"\",'[1]FISCAL(M)'!$BJ352)","v":77843.432887985939},{"$f":"IF('[1]FISCAL(M)'!$BT352=\"\",\"\",'[1]FISCAL(M)'!$BT352)","v":84172.455499999982},{"$f":"IF('[2]MONE(M)'!$AO352=\"\",\"\",'[2]MONE(M)'!$AO352)","v":21547665.163167994},{"$f":"IF('[3]MONE(M)'!$AO352=\"\",\"\",'[3]MONE(M)'!$AO352)","v":12631.261721429997},{"$f":"IF('[4]MONE(M)'!$AO352=\"\",\"\",'[4]MONE(M)'!$AO352)","v":198959.1061095878},{"$f":"IF('[5]MONE(M)'!$AO352=\"\",\"\",'[5]MONE(M)'!$AO352)","v":328864.30772126163},{"$f":"IF('[6]MONE(M)'!$AO352=\"\",\"\",'[6]MONE(M)'!$AO352)","v":160978.38218384958},{"$f":"IF('[7]MONE(M)'!$AO352=\"\",\"\",'[7]MONE(M)'!$AO352)","v":1070418.1259589999},{"$f":"IF('[8]MONE(M)'!$AO352=\"\",\"\",'[8]MONE(M)'!$AO352)","v":51645.736701969996},{"$f":"IF(BY345=\"\",\"\",((BY345/BY333)-1)*100)","v":2.0127896820443691},{"$f":"IF(BZ345=\"\",\"\",((BZ345/BZ333)-1)*100)","v":5.3688751873853802},{"$f":"IF(CA345=\"\",\"\",((CA345/CA333)-1)*100)","v":3.9036428331589157},{"$f":"IF(CB345=\"\",\"\",((CB345/CB333)-1)*100)","v":12.222810748180768},{"$f":"IF(CC345=\"\",\"\",((CC345/CC333)-1)*100)","v":5.806133328415819},{"$f":"IF(CD345=\"\",\"\",((CD345/CD333)-1)*100)","v":13.631563392972179},{"$f":"IF(CE345=\"\",\"\",((CE345/CE333)-1)*100)","v":5.1581917390429277},{"$f":"'[1]FISCAL(M)'!$K352","v":-2420.8923197128561},{"$f":"+'[1]REAL(A)'!$AO$38","v":282215.10781476315},-0.85781811557085441,{"$f":"IF('[1]FISCAL(M)'!$L352=\"\",\"\",'[1]FISCAL(M)'!$L352)","v":"n.d."},{"$f":"+'[1]REAL(A)'!$AP$38","v":347343.29381476314},"n.d.",{"$f":"+IF(OR(CT345=\"\",+CU345=\"\",+CV345=\"\"),\"\",(CT345+CU345+CV345))","v":155092.5717088739},{"$f":"'[1]Gráfico REM'!BG346","v":27769.3914260651},{"$f":"'[1]Gráfico REM'!BH346","v":117831.12551118998},{"$f":"'[1]Gráfico REM'!BI346","v":9492.0547716188321},{"$f":"IFERROR(+((CS345/CS333)-1)*100,\"\")","v":5.4710412887539306},{"$f":"IFERROR(+((CT345/CT333)-1)*100,\"\")","v":5.605306280483946},{"$f":"IFERROR(+((CU345/CU333)-1)*100,\"\")","v":4.4248531013420411},{"$f":"IFERROR(+((CV345/CV333)-1)*100,\"\")","v":19.941732506688425},230243.4220536339,{"$f":"'[1]Gráfico REM'!BK346","v":29803.0090007951},{"$f":"'[1]Gráfico REM'!BL346","v":169476.86221315997},{"$f":"'[1]Gráfico REM'!BM346","v":30963.550839678835},{"$f":"IFERROR(+((DA345/DA333)-1)*100,\"\")","v":4.8414795868351179},{"$f":"IFERROR(+((DB345/DB333)-1)*100,\"\")","v":4.3409845863715768},{"$f":"IFERROR(+((DC345/DC333)-1)*100,\"\")","v":4.6472421041221956},{"$f":"IFERROR(+((DD345/DD333)-1)*100,\"\")","v":6.4138793354109103}]
[2018,"agosto","2018-agosto",{"$f":"IF('[1]REAL IPC(M)'!$AL353=\"\",\"\",+'[1]REAL IPC(M)'!$AL353)","v":3.6249271123789839},{"$f":"IF('[1]REAL IPC(M)'!$BE353=\"\",\"\",+'[1]REAL IPC(M)'!$BE353)","v":3.1085616688560247},{"$f":"IF('[1]REAL IPC(M)'!$AM353=\"\",\"\",+'[1]REAL IPC(M)'!$AM353)","v":3.3473296759717108},{"$f":"IF('[1]REAL IPC(M)'!$BI353=\"\",\"\",+'[1]REAL IPC(M)'!$BI353)","v":2.8834096229326756},{"$f":"IF('[1]REAL IMAE(M)'!BJ353=\"\",\"\",'[1]REAL IMAE(M)'!BJ353)","v":4.3585820240870987},{"$f":"IF('[1]REAL IMAE(M)'!BK353=\"\",\"\",'[1]REAL IMAE(M)'!BK353)","v":3.8794388445233974},{"$f":"IF('[1]REAL IMAE(M)'!BN353=\"\",\"\",'[1]REAL IMAE(M)'!BN353)","v":4.1596902038394168},{"$f":"IF('[1]REAL IMAE(M)'!BO353=\"\",\"\",'[1]REAL IMAE(M)'!BO353)","v":3.875618278745363},{"$f":"IF('[1]EXT RIN(M)'!$K353=\"\",\"\",'[1]EXT RIN(M)'!$K353)","v":38464.041854337032},null,{"$f":"IF('[1]EXT RIN(M)'!$L353=\"\",\"\",'[1]EXT RIN(M)'!$L353)","v":41252.022345677033},null,{"$f":"IF('[1]MONE(M)CARD'!EG353=\"\",\"\",'[1]MONE(M)CARD'!EG353)","v":35790.061546648212},{"$f":"IF('[1]MONE(M)CARD'!EK353=\"\",\"\",'[1]MONE(M)CARD'!EK353)","v":57043.596725534662},{"$f":"IF('[1]MONE(M)CARD'!EP353=\"\",\"\",'[1]MONE(M)CARD'!EP353)","v":31046.695490160826},{"$f":"IF('[1]MONE(M)CARD'!ES353=\"\",\"\",'[1]MONE(M)CARD'!ES353)","v":5.0790481596077797},{"$f":"IF('[1]MONE(M)CARD'!EV353=\"\",\"\",'[1]MONE(M)CARD'!EV353)","v":3.1116315622619073},{"$f":"IF('[1]MONE(M)CARD'!EZ353=\"\",\"\",'[1]MONE(M)CARD'!EZ353)","v":2.3860538184000912},{"$f":"IF('[1]MONE(M)CAPARD'!FC353=\"\",\"\",'[1]MONE(M)CAPARD'!FC353)","v":43745.697854798214},{"$f":"IF('[1]MONE(M)CAPARD'!FG353=\"\",\"\",'[1]MONE(M)CAPARD'!FG353)","v":89462.990564574648},{"$f":"IF('[1]MONE(M)CAPARD'!FL353=\"\",\"\",'[1]MONE(M)CAPARD'!FL353)","v":31046.695490160841},{"$f":"IF('[1]MONE(M)CAPARD'!FO353=\"\",\"\",'[1]MONE(M)CAPARD'!FO353)","v":3.8078665501176667},{"$f":"IF('[1]MONE(M)CAPARD'!FR353=\"\",\"\",'[1]MONE(M)CAPARD'!FR353)","v":2.7507453465561937},{"$f":"IF('[1]MONE(M)CAPARD'!FV353=\"\",\"\",'[1]MONE(M)CAPARD'!FV353)","v":2.2736914878076497},{"$f":"IF('[1]MONE(M)CARD'!FV353=\"\",\"\",'[1]MONE(M)CARD'!FV353)","v":1632.8109742970096},{"$f":"IF('[1]MONE(M)CARD'!GD353=\"\",\"\",'[1]MONE(M)CARD'!GD353)","v":85.842911927284945},{"$f":"IF('[1]MONE(M)CARD'!GE353=\"\",\"\",'[1]MONE(M)CARD'!GE353)","v":11453.185082560156},{"$f":"IF(AD346=\"\",\"\",((AD346/AD333)-1)*100)","v":-1.2072577662229134},{"$f":"IF('[9]II.2.Balance OSD-Activos'!J211=\"\",\"\",'[9]II.2.Balance OSD-Activos'!J211)","v":277.80327504070237},{"$f":"IF('[9]II.2.Balance OSD-Activos'!N211=\"\",\"\",'[9]II.2.Balance OSD-Activos'!N211)","v":1543.1438745555504},{"$f":"IF('[9]II.2.Balance OSD-Activos'!R211=\"\",\"\",'[9]II.2.Balance OSD-Activos'!R211)","v":53981.392766499761},{"$f":"IF('[9]II.2.Balance OSD-Activos'!S211=\"\",\"\",'[9]II.2.Balance OSD-Activos'!S211)","v":58459.20433419913},54259.196041540461,114261.54425029515,{"$f":"IF(OR(AF346=\"\",AF334=\"\"),\"\",((AF346/AF334)-1)*100)","v":-6.1225073382160211},5.4378016567109277,54.989457880627654,5.5046626601051196,3.8479286037542471,5.0684850213554178,-0.34507438515987143,{"$f":"IF('[1]MONE(M)CAPARD'!GS353=\"\",\"\",'[1]MONE(M)CAPARD'!GS353)","v":21750.971277738969},{"$f":"IF('[1]MONE(M)CARD'!HA353=\"\",\"\",'[1]MONE(M)CAPARD'!HA353)","v":13236.708410750156},{"$f":"IF('[1]MONE(M)CAPARD'!HB353=\"\",\"\",'[1]MONE(M)CAPARD'!HB353)","v":8514.2628669888127},"n.d.",{"$f":"IF('[10]II.2.Balance OSD-Activos'!J211=\"\",\"\",'[10]II.2.Balance OSD-Activos'!J211)","v":2522.902696060703},{"$f":"IF('[10]II.2.Balance OSD-Activos'!N211=\"\",\"\",'[10]II.2.Balance OSD-Activos'!N211)","v":2049.9647459755506},{"$f":"IF('[10]II.2.Balance OSD-Activos'!R211=\"\",\"\",'[10]II.2.Balance OSD-Activos'!R211)","v":78127.841215369757},{"$f":"IF('[10]II.2.Balance OSD-Activos'!S211=\"\",\"\",'[10]II.2.Balance OSD-Activos'!S211)","v":82625.455068419134},80650.743911430458,{"$f":"IF(OR(AW346=\"\",AX346=\"\",AY346=\"\",AZ346=\"\"),\"\",SUM(AW346:AZ346))","v":165326.16372582514},1.7867415401905173,4.763912980834184,31.830735423614453,4.8629572633585694,4.8691739501935949,5.084151273042381,-0.26213525017986239,{"$f":"IF('[1]MONE(M)CAPARD'!AS353=\"\",\"\",'[1]MONE(M)CAPARD'!AS353)","v":5},{"$f":"IF('[1]MONE(M)CAPARD'!AT353=\"\",\"\",'[1]MONE(M)CAPARD'!AT353)","v":"n.a."},{"$f":"IF('[1]MONE(M)CAPARD'!AU353=\"\",\"\",'[1]MONE(M)CAPARD'!AU353)","v":2.75},{"$f":"IF('[1]MONE(M)CAPARD'!AV353=\"\",\"\",'[1]MONE(M)CAPARD'!AV353)","v":5.5},{"$f":"IF('[1]MONE(M)CAPARD'!AW353=\"\",\"\",'[1]MONE(M)CAPARD'!AW353)","v":"n.a."},{"$f":"IF('[1]MONE(M)CAPARD'!AX353=\"\",\"\",'[1]MONE(M)CAPARD'!AX353)","v":5.5},{"$f":"IF('[1]MONE(M)CAPARD'!AY353=\"\",\"\",'[1]MONE(M)CAPARD'!AY353)","v":"n.a."},{"$f":"IF('[1]FISCAL(M)'!$K353=\"\",\"\",'[1]FISCAL(M)'!$K353)","v":-3195.6535830366533},{"$f":"IF('[1]FISCAL(M)'!$L353=\"\",\"\",'[1]FISCAL(M)'!$L353)","v":"n.d."},{"$f":"IF('[1]FISCAL(M)'!$AY353=\"\",\"\",'[1]FISCAL(M)'!$AY353)","v":137534.63471445534},{"$f":"IF('[1]FISCAL(M)'!$BI353=\"\",\"\",'[1]FISCAL(M)'!$BI353)","v":72880.776460284789},{"$f":"IF('[1]FISCAL(M)'!$BS353=\"\",\"\",'[1]FISCAL(M)'!$BS353)","v":64653.858254170569},{"$f":"IF('[1]FISCAL(M)'!$AZ353=\"\",\"\",'[1]FISCAL(M)'!$AZ353)","v":162256.20181445536},{"$f":"IF('[1]FISCAL(M)'!$BJ353=\"\",\"\",'[1]FISCAL(M)'!$BJ353)","v":77974.377360284794},{"$f":"IF('[1]FISCAL(M)'!$BT353=\"\",\"\",'[1]FISCAL(M)'!$BT353)","v":84281.824454170564},{"$f":"IF('[2]MONE(M)'!$AO353=\"\",\"\",'[2]MONE(M)'!$AO353)","v":21702135.792863518},{"$f":"IF('[3]MONE(M)'!$AO353=\"\",\"\",'[3]MONE(M)'!$AO353)","v":12731.93838843007},{"$f":"IF('[4]MONE(M)'!$AO353=\"\",\"\",'[4]MONE(M)'!$AO353)","v":199785.09831934574},{"$f":"IF('[5]MONE(M)'!$AO353=\"\",\"\",'[5]MONE(M)'!$AO353)","v":334441.44841181015},{"$f":"IF('[6]MONE(M)'!$AO353=\"\",\"\",'[6]MONE(M)'!$AO353)","v":158985.63534788016},{"$f":"IF('[7]MONE(M)'!$AO353=\"\",\"\",'[7]MONE(M)'!$AO353)","v":1081415.69260263},{"$f":"IF('[8]MONE(M)'!$AO353=\"\",\"\",'[8]MONE(M)'!$AO353)","v":51982.767461390002},{"$f":"IF(BY346=\"\",\"\",((BY346/BY334)-1)*100)","v":1.9799180488575097},{"$f":"IF(BZ346=\"\",\"\",((BZ346/BZ334)-1)*100)","v":6.2295983843598357},{"$f":"IF(CA346=\"\",\"\",((CA346/CA334)-1)*100)","v":4.2231822997498947},{"$f":"IF(CB346=\"\",\"\",((CB346/CB334)-1)*100)","v":13.21552426994419},{"$f":"IF(CC346=\"\",\"\",((CC346/CC334)-1)*100)","v":3.2725355370075482},{"$f":"IF(CD346=\"\",\"\",((CD346/CD334)-1)*100)","v":13.281287320221491},{"$f":"IF(CE346=\"\",\"\",((CE346/CE334)-1)*100)","v":5.1667387600109915},{"$f":"'[1]FISCAL(M)'!$K353","v":-3195.6535830366533},{"$f":"+'[1]REAL(A)'!$AO$38","v":282215.10781476315},-1.1323467435110444,{"$f":"IF('[1]FISCAL(M)'!$L353=\"\",\"\",'[1]FISCAL(M)'!$L353)","v":"n.d."},{"$f":"+'[1]REAL(A)'!$AP$38","v":347343.29381476314},"n.d.",154346.10538598386,{"$f":"'[1]Gráfico REM'!BG347","v":27509.14099136076},{"$f":"'[1]Gráfico REM'!BH347","v":117928.40308182931},{"$f":"'[1]Gráfico REM'!BI347","v":8908.5613127937741},4.6745470615666918,4.4734168513952843,4.0976620535136732,13.690772991784828,229906.22917424384,{"$f":"'[1]Gráfico REM'!BK347","v":29568.798728950762},{"$f":"'[1]Gráfico REM'!BL347","v":169911.17054321931},{"$f":"'[1]Gráfico REM'!BM347","v":30426.259902073776},{"$f":"IFERROR(+((DA346/DA334)-1)*100,\"\")","v":4.5746345816228162},{"$f":"IFERROR(+((DB346/DB334)-1)*100,\"\")","v":3.6069474608289465},{"$f":"IFERROR(+((DC346/DC334)-1)*100,\"\")","v":4.4224214197017719},{"$f":"IFERROR(+((DD346/DD334)-1)*100,\"\")","v":6.4066274735236517}]
[2018,"septiembre","2018-septiembre",{"$f":"IF('[1]REAL IPC(M)'!$AL354=\"\",\"\",+'[1]REAL IPC(M)'!$AL354)","v":3.6465766936897515},{"$f":"IF('[1]REAL IPC(M)'!$BE354=\"\",\"\",+'[1]REAL IPC(M)'!$BE354)","v":3.1098844938844072},{"$f":"IF('[1]REAL IPC(M)'!$AM354=\"\",\"\",+'[1]REAL IPC(M)'!$AM354)","v":3.3517076579703042},{"$f":"IF('[1]REAL IPC(M)'!$BI354=\"\",\"\",+'[1]REAL IPC(M)'!$BI354)","v":2.884635312974182},{"$f":"IF('[1]REAL IMAE(M)'!BJ354=\"\",\"\",'[1]REAL IMAE(M)'!BJ354)","v":4.2049676688939774},{"$f":"IF('[1]REAL IMAE(M)'!BK354=\"\",\"\",'[1]REAL IMAE(M)'!BK354)","v":3.8488909888228617},{"$f":"IF('[1]REAL IMAE(M)'!BN354=\"\",\"\",'[1]REAL IMAE(M)'!BN354)","v":4.1412547152074097},{"$f":"IF('[1]REAL IMAE(M)'!BO354=\"\",\"\",'[1]REAL IMAE(M)'!BO354)","v":3.8419554431311287},{"$f":"IF('[1]EXT RIN(M)'!$K354=\"\",\"\",'[1]EXT RIN(M)'!$K354)","v":37417.505900372038},null,{"$f":"IF('[1]EXT RIN(M)'!$L354=\"\",\"\",'[1]EXT RIN(M)'!$L354)","v":39617.686410122034},null,{"$f":"IF('[1]MONE(M)CARD'!EG354=\"\",\"\",'[1]MONE(M)CARD'!EG354)","v":35329.916884069549},{"$f":"IF('[1]MONE(M)CARD'!EK354=\"\",\"\",'[1]MONE(M)CARD'!EK354)","v":56703.244661882229},{"$f":"IF('[1]MONE(M)CARD'!EP354=\"\",\"\",'[1]MONE(M)CARD'!EP354)","v":31022.889267449427},{"$f":"IF('[1]MONE(M)CARD'!ES354=\"\",\"\",'[1]MONE(M)CARD'!ES354)","v":3.5046208690872049},{"$f":"IF('[1]MONE(M)CARD'!EV354=\"\",\"\",'[1]MONE(M)CARD'!EV354)","v":2.1106519399771928},{"$f":"IF('[1]MONE(M)CARD'!EZ354=\"\",\"\",'[1]MONE(M)CARD'!EZ354)","v":1.8611491881007858},{"$f":"IF('[1]MONE(M)CAPARD'!FC354=\"\",\"\",'[1]MONE(M)CAPARD'!FC354)","v":43172.540512029547},{"$f":"IF('[1]MONE(M)CAPARD'!FG354=\"\",\"\",'[1]MONE(M)CAPARD'!FG354)","v":89086.139310862229},{"$f":"IF('[1]MONE(M)CAPARD'!FL354=\"\",\"\",'[1]MONE(M)CAPARD'!FL354)","v":31022.889267449413},{"$f":"IF('[1]MONE(M)CAPARD'!FO354=\"\",\"\",'[1]MONE(M)CAPARD'!FO354)","v":2.2640901852327033},{"$f":"IF('[1]MONE(M)CAPARD'!FR354=\"\",\"\",'[1]MONE(M)CAPARD'!FR354)","v":1.9298964110062267},{"$f":"IF('[1]MONE(M)CAPARD'!FV354=\"\",\"\",'[1]MONE(M)CAPARD'!FV354)","v":1.7765795660809269},{"$f":"IF('[1]MONE(M)CARD'!FV354=\"\",\"\",'[1]MONE(M)CARD'!FV354)","v":1631.076057189621},{"$f":"IF('[1]MONE(M)CARD'!GD354=\"\",\"\",'[1]MONE(M)CARD'!GD354)","v":160.98327381216882},{"$f":"IF('[1]MONE(M)CARD'!GE354=\"\",\"\",'[1]MONE(M)CARD'!GE354)","v":11402.377876352764},{"$f":"IF(AD347=\"\",\"\",((AD347/AD334)-1)*100)","v":-1.0642675191024686},{"$f":"IF('[9]II.2.Balance OSD-Activos'!J212=\"\",\"\",'[9]II.2.Balance OSD-Activos'!J212)","v":236.25288101007388},{"$f":"IF('[9]II.2.Balance OSD-Activos'!N212=\"\",\"\",'[9]II.2.Balance OSD-Activos'!N212)","v":1518.5954481746921},{"$f":"IF('[9]II.2.Balance OSD-Activos'!R212=\"\",\"\",'[9]II.2.Balance OSD-Activos'!R212)","v":54082.31486385371},{"$f":"IF('[9]II.2.Balance OSD-Activos'!S212=\"\",\"\",'[9]II.2.Balance OSD-Activos'!S212)","v":58328.633657325016},{"$f":"IFERROR(+AF347+AH347,\"\")","v":54318.56774486378},{"$f":"IF(OR(AF347=\"\",AG347=\"\",AH347=\"\",AI347=\"\"),\"\",SUM(AF347:AI347))","v":114165.79685036349},{"$f":"IF(OR(AF347=\"\",AF335=\"\"),\"\",((AF347/AF335)-1)*100)","v":-16.954540194373656},{"$f":"IF(OR(AJ347=\"\",AJ335=\"\"),\"\",((AJ347/AJ335)-1)*100)","v":5.4151523881338592},{"$f":"IF(OR(AG347=\"\",AG335=\"\"),\"\",((AG347/AG335)-1)*100)","v":47.835573133557062},{"$f":"IF(OR(AH347=\"\",AH335=\"\"),\"\",((AH347/AH335)-1)*100)","v":5.5393405900594939},{"$f":"IF(OR(AI347=\"\",AI335=\"\"),\"\",((AI347/AI335)-1)*100)","v":2.8927390928553898},{"$f":"IF(OR(AK347=\"\",AK335=\"\"),\"\",((AK347/AK335)-1)*100)","v":4.5051047967933355},{"$f":"IF(OR(AQ347=\"\",AQ346=\"\"),\"\",AQ347-AQ346)","v":-0.56338022456208225},{"$f":"IF('[1]MONE(M)CAPARD'!GS354=\"\",\"\",'[1]MONE(M)CAPARD'!GS354)","v":22069.648497508126},{"$f":"IF('[1]MONE(M)CARD'!HA354=\"\",\"\",'[1]MONE(M)CAPARD'!HA354)","v":13243.268901792764},{"$f":"IF('[1]MONE(M)CAPARD'!HB354=\"\",\"\",'[1]MONE(M)CAPARD'!HB354)","v":8826.3795957153616},"n.d.",{"$f":"IF('[10]II.2.Balance OSD-Activos'!J212=\"\",\"\",'[10]II.2.Balance OSD-Activos'!J212)","v":2409.1279955800742},{"$f":"IF('[10]II.2.Balance OSD-Activos'!N212=\"\",\"\",'[10]II.2.Balance OSD-Activos'!N212)","v":2016.2740311146922},{"$f":"IF('[10]II.2.Balance OSD-Activos'!R212=\"\",\"\",'[10]II.2.Balance OSD-Activos'!R212)","v":78122.558591883717},{"$f":"IF('[10]II.2.Balance OSD-Activos'!S212=\"\",\"\",'[10]II.2.Balance OSD-Activos'!S212)","v":82642.639517865027},{"$f":"IFERROR(+AW347+AY347,\"\")","v":80531.686587463788},{"$f":"IF(OR(AW347=\"\",AX347=\"\",AY347=\"\",AZ347=\"\"),\"\",SUM(AW347:AZ347))","v":165190.60013644351},{"$f":"IF(OR(AW347=\"\",AW335=\"\"),\"\",((AW347/AW335)-1)*100)","v":-2.3530244326020022},{"$f":"IF(OR(BA347=\"\",BA335=\"\"),\"\",((BA347/BA335)-1)*100)","v":4.5127759485025676},{"$f":"IF(OR(AX347=\"\",AX335=\"\"),\"\",((AX347/AX335)-1)*100)","v":27.083644031239039},{"$f":"IF(OR(AY347=\"\",AY335=\"\"),\"\",((AY347/AY335)-1)*100)","v":4.7398815627738955},{"$f":"IF(OR(AZ347=\"\",AZ335=\"\"),\"\",((AZ347/AZ335)-1)*100)","v":4.3579693052884672},{"$f":"IF(OR(BB347=\"\",BB335=\"\"),\"\",((BB347/BB335)-1)*100)","v":4.6619907914229985},{"$f":"IF(OR(BH347=\"\",BH346=\"\"),\"\",BH347-BH346)","v":-0.42216048161938247},{"$f":"IF('[1]MONE(M)CAPARD'!AS354=\"\",\"\",'[1]MONE(M)CAPARD'!AS354)","v":5},{"$f":"IF('[1]MONE(M)CAPARD'!AT354=\"\",\"\",'[1]MONE(M)CAPARD'!AT354)","v":"n.a."},{"$f":"IF('[1]MONE(M)CAPARD'!AU354=\"\",\"\",'[1]MONE(M)CAPARD'!AU354)","v":2.75},{"$f":"IF('[1]MONE(M)CAPARD'!AV354=\"\",\"\",'[1]MONE(M)CAPARD'!AV354)","v":5.5},{"$f":"IF('[1]MONE(M)CAPARD'!AW354=\"\",\"\",'[1]MONE(M)CAPARD'!AW354)","v":"n.a."},{"$f":"IF('[1]MONE(M)CAPARD'!AX354=\"\",\"\",'[1]MONE(M)CAPARD'!AX354)","v":5.5},{"$f":"IF('[1]MONE(M)CAPARD'!AY354=\"\",\"\",'[1]MONE(M)CAPARD'!AY354)","v":"n.a."},{"$f":"IF('[1]FISCAL(M)'!$K354=\"\",\"\",'[1]FISCAL(M)'!$K354)","v":-3951.6885148162096},{"$f":"IF('[1]FISCAL(M)'!$L354=\"\",\"\",'[1]FISCAL(M)'!$L354)","v":-7310.6885148162091},{"$f":"IF('[1]FISCAL(M)'!$AY354=\"\",\"\",'[1]FISCAL(M)'!$AY354)","v":137438.76319001865},{"$f":"IF('[1]FISCAL(M)'!$BI354=\"\",\"\",'[1]FISCAL(M)'!$BI354)","v":73048.986897960334},{"$f":"IF('[1]FISCAL(M)'!$BS354=\"\",\"\",'[1]FISCAL(M)'!$BS354)","v":64389.776292058319},{"$f":"IF('[1]FISCAL(M)'!$AZ354=\"\",\"\",'[1]FISCAL(M)'!$AZ354)","v":162376.64989001869},{"$f":"IF('[1]FISCAL(M)'!$BJ354=\"\",\"\",'[1]FISCAL(M)'!$BJ354)","v":78205.848097960348},{"$f":"IF('[1]FISCAL(M)'!$BT354=\"\",\"\",'[1]FISCAL(M)'!$BT354)","v":84170.801792058322},{"$f":"IF('[2]MONE(M)'!$AO354=\"\",\"\",'[2]MONE(M)'!$AO354)","v":22012780.716587294},{"$f":"IF('[3]MONE(M)'!$AO354=\"\",\"\",'[3]MONE(M)'!$AO354)","v":12812.127275040064},{"$f":"IF('[4]MONE(M)'!$AO354=\"\",\"\",'[4]MONE(M)'!$AO354)","v":202141.65840643999},{"$f":"IF('[5]MONE(M)'!$AO354=\"\",\"\",'[5]MONE(M)'!$AO354)","v":337560.81438794464},{"$f":"IF('[6]MONE(M)'!$AO354=\"\",\"\",'[6]MONE(M)'!$AO354)","v":156086.89726901299},{"$f":"IF('[7]MONE(M)'!$AO354=\"\",\"\",'[7]MONE(M)'!$AO354)","v":1089132.001962},{"$f":"IF('[8]MONE(M)'!$AO354=\"\",\"\",'[8]MONE(M)'!$AO354)","v":51957.06643466001},3.623764531758189,6.4968107083312798,4.970978007023108,13.168760750385955,4.9589351650070057E-2,13.075175046679499,5.0925835021585542,{"$f":"'[1]FISCAL(M)'!$K354","v":-3951.6885148162096},{"$f":"+'[1]REAL(A)'!$AO$38","v":282215.10781476315},-1.4002398898537955,{"$f":"IF('[1]FISCAL(M)'!$L354=\"\",\"\",'[1]FISCAL(M)'!$L354)","v":-7310.6885148162091},{"$f":"+'[1]REAL(A)'!$AP$38","v":347343.29381476314},-2.1047443969696942,{"$f":"+IF(OR(CT347=\"\",+CU347=\"\",+CV347=\"\"),\"\",(CT347+CU347+CV347))","v":153617.63102328213},{"$f":"'[1]Gráfico REM'!BG348","v":27089.936175575713},{"$f":"'[1]Gráfico REM'!BH348","v":117868.93272963601},{"$f":"'[1]Gráfico REM'!BI348","v":8658.7621180703936},{"$f":"IFERROR(+((CS347/CS335)-1)*100,\"\")","v":3.8715036664232372},{"$f":"IFERROR(+((CT347/CT335)-1)*100,\"\")","v":3.2510215062810488},{"$f":"IFERROR(+((CU347/CU335)-1)*100,\"\")","v":3.6534955976896599},{"$f":"IFERROR(+((CV347/CV335)-1)*100,\"\")","v":9.0436603337822561},{"$f":"+IF(OR(DB347=\"\",+DC347=\"\",+DD347=\"\"),\"\",(DB347+DC347+DD347))","v":229477.45387962213},{"$f":"'[1]Gráfico REM'!BK348","v":29185.996538985713},{"$f":"'[1]Gráfico REM'!BL348","v":169825.99916429602},{"$f":"'[1]Gráfico REM'!BM348","v":30465.458176340391},{"$f":"IFERROR(+((DA347/DA335)-1)*100,\"\")","v":4.1419996454621577},{"$f":"IFERROR(+((DB347/DB335)-1)*100,\"\")","v":2.6045486404238982},{"$f":"IFERROR(+((DC347/DC335)-1)*100,\"\")","v":4.0895723378368665},{"$f":"IFERROR(+((DD347/DD335)-1)*100,\"\")","v":5.960560275386273}]
[2018,"octubre","2018-octubre",{"$f":"IF('[1]REAL IPC(M)'!$AL355=\"\",\"\",+'[1]REAL IPC(M)'!$AL355)","v":3.684722406573937},{"$f":"IF('[1]REAL IPC(M)'!$BE355=\"\",\"\",+'[1]REAL IPC(M)'!$BE355)","v":3.1099344242177418},{"$f":"IF('[1]REAL IPC(M)'!$AM355=\"\",\"\",+'[1]REAL IPC(M)'!$AM355)","v":3.4017688687174141},{"$f":"IF('[1]REAL IPC(M)'!$BI355=\"\",\"\",+'[1]REAL IPC(M)'!$BI355)","v":2.884414663643331},{"$f":"IF('[1]REAL IMAE(M)'!BJ355=\"\",\"\",'[1]REAL IMAE(M)'!BJ355)","v":3.8983626528224402},{"$f":"IF('[1]REAL IMAE(M)'!BK355=\"\",\"\",'[1]REAL IMAE(M)'!BK355)","v":3.8189147498181919},{"$f":"IF('[1]REAL IMAE(M)'!BN355=\"\",\"\",'[1]REAL IMAE(M)'!BN355)","v":3.8784890602413746},{"$f":"IF('[1]REAL IMAE(M)'!BO355=\"\",\"\",'[1]REAL IMAE(M)'!BO355)","v":3.8090874530951613},{"$f":"IF('[1]EXT RIN(M)'!$K355=\"\",\"\",'[1]EXT RIN(M)'!$K355)","v":36353.402806299287},null,{"$f":"IF('[1]EXT RIN(M)'!$L355=\"\",\"\",'[1]EXT RIN(M)'!$L355)","v":38727.451202819284},null,{"$f":"IF('[1]MONE(M)CARD'!EG355=\"\",\"\",'[1]MONE(M)CARD'!EG355)","v":34987.610362813321},{"$f":"IF('[1]MONE(M)CARD'!EK355=\"\",\"\",'[1]MONE(M)CARD'!EK355)","v":56368.788123021346},{"$f":"IF('[1]MONE(M)CARD'!EP355=\"\",\"\",'[1]MONE(M)CARD'!EP355)","v":30795.406636401472},{"$f":"IF('[1]MONE(M)CARD'!ES355=\"\",\"\",'[1]MONE(M)CARD'!ES355)","v":1.2854684330924071},{"$f":"IF('[1]MONE(M)CARD'!EV355=\"\",\"\",'[1]MONE(M)CARD'!EV355)","v":0.83769208101405201},{"$f":"IF('[1]MONE(M)CARD'!EZ355=\"\",\"\",'[1]MONE(M)CARD'!EZ355)","v":0.64485894125085874},{"$f":"IF('[1]MONE(M)CAPARD'!FC355=\"\",\"\",'[1]MONE(M)CAPARD'!FC355)","v":42985.09571531332},{"$f":"IF('[1]MONE(M)CAPARD'!FG355=\"\",\"\",'[1]MONE(M)CAPARD'!FG355)","v":88698.78588296134},{"$f":"IF('[1]MONE(M)CAPARD'!FL355=\"\",\"\",'[1]MONE(M)CAPARD'!FL355)","v":30795.406636401458},{"$f":"IF('[1]MONE(M)CAPARD'!FO355=\"\",\"\",'[1]MONE(M)CAPARD'!FO355)","v":1.5484487375987843},{"$f":"IF('[1]MONE(M)CAPARD'!FR355=\"\",\"\",'[1]MONE(M)CAPARD'!FR355)","v":1.2439793857240478},{"$f":"IF('[1]MONE(M)CAPARD'!FV355=\"\",\"\",'[1]MONE(M)CAPARD'!FV355)","v":1.020734682387614},{"$f":"IF('[1]MONE(M)CARD'!FV355=\"\",\"\",'[1]MONE(M)CARD'!FV355)","v":1618.6167204344736},{"$f":"IF('[1]MONE(M)CARD'!GD355=\"\",\"\",'[1]MONE(M)CARD'!GD355)","v":84.448392001050792},{"$f":"IF('[1]MONE(M)CARD'!GE355=\"\",\"\",'[1]MONE(M)CARD'!GE355)","v":11560.841642111769},-2.5838528373196556,{"$f":"IF('[9]II.2.Balance OSD-Activos'!J213=\"\",\"\",'[9]II.2.Balance OSD-Activos'!J213)","v":232.15185913464245},{"$f":"IF('[9]II.2.Balance OSD-Activos'!N213=\"\",\"\",'[9]II.2.Balance OSD-Activos'!N213)","v":1508.3615906205337},{"$f":"IF('[9]II.2.Balance OSD-Activos'!R213=\"\",\"\",'[9]II.2.Balance OSD-Activos'!R213)","v":54131.2704550169},{"$f":"IF('[9]II.2.Balance OSD-Activos'!S213=\"\",\"\",'[9]II.2.Balance OSD-Activos'!S213)","v":57971.026558896767},{"$f":"IFERROR(+AF348+AH348,\"\")","v":54363.422314151539},{"$f":"IF(OR(AF348=\"\",AG348=\"\",AH348=\"\",AI348=\"\"),\"\",SUM(AF348:AI348))","v":113842.81046366884},-22.935751820018769,4.7823752709847733,38.144435959624332,4.9442554038782838,1.5601276653957052,3.4421279573551899,-1.0629768394381456,{"$f":"IF('[1]MONE(M)CAPARD'!GS355=\"\",\"\",'[1]MONE(M)CAPARD'!GS355)","v":21854.014192027895},{"$f":"IF('[1]MONE(M)CARD'!HA355=\"\",\"\",'[1]MONE(M)CAPARD'!HA355)","v":13462.00506589177},{"$f":"IF('[1]MONE(M)CAPARD'!HB355=\"\",\"\",'[1]MONE(M)CAPARD'!HB355)","v":8392.0091261361249},"n.d.",{"$f":"IF('[10]II.2.Balance OSD-Activos'!J213=\"\",\"\",'[10]II.2.Balance OSD-Activos'!J213)","v":2381.6770477346427},{"$f":"IF('[10]II.2.Balance OSD-Activos'!N213=\"\",\"\",'[10]II.2.Balance OSD-Activos'!N213)","v":1993.8509516005338},{"$f":"IF('[10]II.2.Balance OSD-Activos'!R213=\"\",\"\",'[10]II.2.Balance OSD-Activos'!R213)","v":78397.326441926896},{"$f":"IF('[10]II.2.Balance OSD-Activos'!S213=\"\",\"\",'[10]II.2.Balance OSD-Activos'!S213)","v":82416.838346486766},{"$f":"IFERROR(+AW348+AY348,\"\")","v":80779.00348966154},{"$f":"IF(OR(AW348=\"\",AX348=\"\",AY348=\"\",AZ348=\"\"),\"\",SUM(AW348:AZ348))","v":165189.69278774882},-0.85715894283492355,4.020744879837479,25.019368260003617,4.1764572360136754,3.0971424208344089,3.7673135232175747,-0.89467726820542381,{"$f":"IF('[1]MONE(M)CAPARD'!AS355=\"\",\"\",'[1]MONE(M)CAPARD'!AS355)","v":5},{"$f":"IF('[1]MONE(M)CAPARD'!AT355=\"\",\"\",'[1]MONE(M)CAPARD'!AT355)","v":"n.a."},{"$f":"IF('[1]MONE(M)CAPARD'!AU355=\"\",\"\",'[1]MONE(M)CAPARD'!AU355)","v":2.75},{"$f":"IF('[1]MONE(M)CAPARD'!AV355=\"\",\"\",'[1]MONE(M)CAPARD'!AV355)","v":5.5},{"$f":"IF('[1]MONE(M)CAPARD'!AW355=\"\",\"\",'[1]MONE(M)CAPARD'!AW355)","v":"n.a."},{"$f":"IF('[1]MONE(M)CAPARD'!AX355=\"\",\"\",'[1]MONE(M)CAPARD'!AX355)","v":5.5},{"$f":"IF('[1]MONE(M)CAPARD'!AY355=\"\",\"\",'[1]MONE(M)CAPARD'!AY355)","v":"n.a."},{"$f":"IF('[1]FISCAL(M)'!$K355=\"\",\"\",'[1]FISCAL(M)'!$K355)","v":-4215.5509234853143},{"$f":"IF('[1]FISCAL(M)'!$L355=\"\",\"\",'[1]FISCAL(M)'!$L355)","v":"n.d."},{"$f":"IF('[1]FISCAL(M)'!$AY355=\"\",\"\",'[1]FISCAL(M)'!$AY355)","v":135615.05017495155},{"$f":"IF('[1]FISCAL(M)'!$BI355=\"\",\"\",'[1]FISCAL(M)'!$BI355)","v":71899.514362605099},{"$f":"IF('[1]FISCAL(M)'!$BS355=\"\",\"\",'[1]FISCAL(M)'!$BS355)","v":63715.535812346439},{"$f":"IF('[1]FISCAL(M)'!$AZ355=\"\",\"\",'[1]FISCAL(M)'!$AZ355)","v":161429.66017495154},{"$f":"IF('[1]FISCAL(M)'!$BJ355=\"\",\"\",'[1]FISCAL(M)'!$BJ355)","v":77165.384362605109},{"$f":"IF('[1]FISCAL(M)'!$BT355=\"\",\"\",'[1]FISCAL(M)'!$BT355)","v":84264.27581234643},{"$f":"IF('[2]MONE(M)'!$AO355=\"\",\"\",'[2]MONE(M)'!$AO355)","v":22334150.635673542},{"$f":"IF('[3]MONE(M)'!$AO355=\"\",\"\",'[3]MONE(M)'!$AO355)","v":12878.89414678},{"$f":"IF('[4]MONE(M)'!$AO355=\"\",\"\",'[4]MONE(M)'!$AO355)","v":204019.30995471351},{"$f":"IF('[5]MONE(M)'!$AO355=\"\",\"\",'[5]MONE(M)'!$AO355)","v":341241.28219501959},{"$f":"IF('[6]MONE(M)'!$AO355=\"\",\"\",'[6]MONE(M)'!$AO355)","v":153239.9007812487},{"$f":"IF('[7]MONE(M)'!$AO355=\"\",\"\",'[7]MONE(M)'!$AO355)","v":1101796.99283883},{"$f":"IF('[8]MONE(M)'!$AO355=\"\",\"\",'[8]MONE(M)'!$AO355)","v":52286.49654072999},{"$f":"IF(BY348=\"\",\"\",((BY348/BY336)-1)*100)","v":5.0667508121089222},{"$f":"IF(BZ348=\"\",\"\",((BZ348/BZ336)-1)*100)","v":6.5168906724835773},{"$f":"IF(CA348=\"\",\"\",((CA348/CA336)-1)*100)","v":5.1742681505719368},{"$f":"IF(CB348=\"\",\"\",((CB348/CB336)-1)*100)","v":13.494537527751627},{"$f":"IF(CC348=\"\",\"\",((CC348/CC336)-1)*100)","v":-3.2672906060357221},{"$f":"IF(CD348=\"\",\"\",((CD348/CD336)-1)*100)","v":11.398195575390812},4.4595692859063396,{"$f":"'[1]FISCAL(M)'!$K355","v":-4215.5509234853143},{"$f":"+'[1]REAL(A)'!$AO$38","v":282215.10781476315},-1.4937368010263523,{"$f":"IF('[1]FISCAL(M)'!$L355=\"\",\"\",'[1]FISCAL(M)'!$L355)","v":"n.d."},{"$f":"+'[1]REAL(A)'!$AP$38","v":347343.29381476314},"n.d.",{"$f":"+IF(OR(CT348=\"\",+CU348=\"\",+CV348=\"\"),\"\",(CT348+CU348+CV348))","v":151921.34553418998},{"$f":"'[1]Gráfico REM'!BG349","v":26426.559872012476},{"$f":"'[1]Gráfico REM'!BH349","v":117256.69016043376},{"$f":"'[1]Gráfico REM'!BI349","v":8238.0955017437536},1.8757345959089067,9.4253879405470364E-2,2.2455104331234876,2.4512389727993744,228105.78411847999,{"$f":"'[1]Gráfico REM'!BK349","v":28577.824573532474},{"$f":"'[1]Gráfico REM'!BL349","v":169543.18670116377},{"$f":"'[1]Gráfico REM'!BM349","v":29984.77284378375},2.2961956491878599,-0.43247881267982624,2.9182430658256431,1.4787017376500344]
[2018,"noviembre","2018-noviembre",{"$f":"IF('[1]REAL IPC(M)'!$AL356=\"\",\"\",+'[1]REAL IPC(M)'!$AL356)","v":3.0310774103897486},{"$f":"IF('[1]REAL IPC(M)'!$BE356=\"\",\"\",+'[1]REAL IPC(M)'!$BE356)","v":3.1088881591723627},{"$f":"IF('[1]REAL IPC(M)'!$AM356=\"\",\"\",+'[1]REAL IPC(M)'!$AM356)","v":2.7693810582759548},{"$f":"IF('[1]REAL IPC(M)'!$BI356=\"\",\"\",+'[1]REAL IPC(M)'!$BI356)","v":2.8829686345322347},{"$f":"IF('[1]REAL IMAE(M)'!BJ356=\"\",\"\",'[1]REAL IMAE(M)'!BJ356)","v":3.5957628651951179},{"$f":"IF('[1]REAL IMAE(M)'!BK356=\"\",\"\",'[1]REAL IMAE(M)'!BK356)","v":3.7897096229811744},{"$f":"IF('[1]REAL IMAE(M)'!BN356=\"\",\"\",'[1]REAL IMAE(M)'!BN356)","v":3.599129080095409},{"$f":"IF('[1]REAL IMAE(M)'!BO356=\"\",\"\",'[1]REAL IMAE(M)'!BO356)","v":3.7772138827015578},{"$f":"IF('[1]EXT RIN(M)'!$K356=\"\",\"\",'[1]EXT RIN(M)'!$K356)","v":35691.162898871546},null,{"$f":"IF('[1]EXT RIN(M)'!$L356=\"\",\"\",'[1]EXT RIN(M)'!$L356)","v":38270.433953681546},null,{"$f":"IF('[1]MONE(M)CARD'!EG356=\"\",\"\",'[1]MONE(M)CARD'!EG356)","v":36005.440304397365},{"$f":"IF('[1]MONE(M)CARD'!EK356=\"\",\"\",'[1]MONE(M)CARD'!EK356)","v":56250.558377236761},{"$f":"IF('[1]MONE(M)CARD'!EP356=\"\",\"\",'[1]MONE(M)CARD'!EP356)","v":31261.226462573526},{"$f":"IF('[1]MONE(M)CARD'!ES356=\"\",\"\",'[1]MONE(M)CARD'!ES356)","v":0.56057735589678526},{"$f":"IF('[1]MONE(M)CARD'!EV356=\"\",\"\",'[1]MONE(M)CARD'!EV356)","v":0.82890174481144996},{"$f":"IF('[1]MONE(M)CARD'!EZ356=\"\",\"\",'[1]MONE(M)CARD'!EZ356)","v":0.94054936457799165},{"$f":"IF('[1]MONE(M)CAPARD'!FC356=\"\",\"\",'[1]MONE(M)CAPARD'!FC356)","v":44269.73835262737},{"$f":"IF('[1]MONE(M)CAPARD'!FG356=\"\",\"\",'[1]MONE(M)CAPARD'!FG356)","v":89201.692008106736},{"$f":"IF('[1]MONE(M)CAPARD'!FL356=\"\",\"\",'[1]MONE(M)CAPARD'!FL356)","v":31261.226462573541},{"$f":"IF('[1]MONE(M)CAPARD'!FO356=\"\",\"\",'[1]MONE(M)CAPARD'!FO356)","v":0.49024135132564872},{"$f":"IF('[1]MONE(M)CAPARD'!FR356=\"\",\"\",'[1]MONE(M)CAPARD'!FR356)","v":1.4622808123085473},{"$f":"IF('[1]MONE(M)CAPARD'!FV356=\"\",\"\",'[1]MONE(M)CAPARD'!FV356)","v":1.4260178617882868},{"$f":"IF('[1]MONE(M)CARD'!FV356=\"\",\"\",'[1]MONE(M)CARD'!FV356)","v":1638.6794303063866},{"$f":"IF('[1]MONE(M)CARD'!GD356=\"\",\"\",'[1]MONE(M)CARD'!GD356)","v":94.670715326653863},{"$f":"IF('[1]MONE(M)CARD'!GE356=\"\",\"\",'[1]MONE(M)CARD'!GE356)","v":11385.656454688829},-7.5177384310982536,{"$f":"IF('[9]II.2.Balance OSD-Activos'!J214=\"\",\"\",'[9]II.2.Balance OSD-Activos'!J214)","v":226.43269444800197},{"$f":"IF('[9]II.2.Balance OSD-Activos'!N214=\"\",\"\",'[9]II.2.Balance OSD-Activos'!N214)","v":1463.3541831536254},{"$f":"IF('[9]II.2.Balance OSD-Activos'!R214=\"\",\"\",'[9]II.2.Balance OSD-Activos'!R214)","v":54555.99474879168},{"$f":"IF('[9]II.2.Balance OSD-Activos'!S214=\"\",\"\",'[9]II.2.Balance OSD-Activos'!S214)","v":58728.214562817549},{"$f":"IFERROR(+AF349+AH349,\"\")","v":54782.427443239685},{"$f":"IF(OR(AF349=\"\",AG349=\"\",AH349=\"\",AI349=\"\"),\"\",SUM(AF349:AI349))","v":114973.99618921085},-24.832383092789346,4.4218910432373804,36.330646060263305,4.5908374038647892,1.5839851390433424,3.2560378306525584,-0.18609012670263159,{"$f":"IF('[1]MONE(M)CAPARD'!GS356=\"\",\"\",'[1]MONE(M)CAPARD'!GS356)","v":22163.270048200149},{"$f":"IF('[1]MONE(M)CARD'!HA356=\"\",\"\",'[1]MONE(M)CAPARD'!HA356)","v":13263.363808298831},{"$f":"IF('[1]MONE(M)CAPARD'!HB356=\"\",\"\",'[1]MONE(M)CAPARD'!HB356)","v":8899.9062399013183},"n.d.",{"$f":"IF('[10]II.2.Balance OSD-Activos'!J214=\"\",\"\",'[10]II.2.Balance OSD-Activos'!J214)","v":2410.6828671880025},{"$f":"IF('[10]II.2.Balance OSD-Activos'!N214=\"\",\"\",'[10]II.2.Balance OSD-Activos'!N214)","v":1905.1417828436256},{"$f":"IF('[10]II.2.Balance OSD-Activos'!R214=\"\",\"\",'[10]II.2.Balance OSD-Activos'!R214)","v":78824.467382921677},{"$f":"IF('[10]II.2.Balance OSD-Activos'!S214=\"\",\"\",'[10]II.2.Balance OSD-Activos'!S214)","v":83369.43135043756},{"$f":"IFERROR(+AW349+AY349,\"\")","v":81235.150250109684},{"$f":"IF(OR(AW349=\"\",AX349=\"\",AY349=\"\",AZ349=\"\"),\"\",SUM(AW349:AZ349))","v":166509.72338339087},{"$f":"IF(OR(AW349=\"\",AW337=\"\"),\"\",((AW349/AW337)-1)*100)","v":1.8751619632582761},{"$f":"IF(OR(BA349=\"\",BA337=\"\"),\"\",((BA349/BA337)-1)*100)","v":3.7332615897868626},{"$f":"IF(OR(AX349=\"\",AX337=\"\"),\"\",((AX349/AX337)-1)*100)","v":22.436908537478018},{"$f":"IF(OR(AY349=\"\",AY337=\"\"),\"\",((AY349/AY337)-1)*100)","v":3.7911564582087776},{"$f":"IF(OR(AZ349=\"\",AZ337=\"\"),\"\",((AZ349/AZ337)-1)*100)","v":3.1187652663167587},{"$f":"IF(OR(BB349=\"\",BB337=\"\"),\"\",((BB349/BB337)-1)*100)","v":3.6052245295405738},{"$f":"IF(OR(BH349=\"\",BH348=\"\"),\"\",BH349-BH348)","v":-0.16208899367700091},{"$f":"IF('[1]MONE(M)CAPARD'!AS356=\"\",\"\",'[1]MONE(M)CAPARD'!AS356)","v":5.25},{"$f":"IF('[1]MONE(M)CAPARD'!AT356=\"\",\"\",'[1]MONE(M)CAPARD'!AT356)","v":"n.a."},{"$f":"IF('[1]MONE(M)CAPARD'!AU356=\"\",\"\",'[1]MONE(M)CAPARD'!AU356)","v":2.75},{"$f":"IF('[1]MONE(M)CAPARD'!AV356=\"\",\"\",'[1]MONE(M)CAPARD'!AV356)","v":5.5},{"$f":"IF('[1]MONE(M)CAPARD'!AW356=\"\",\"\",'[1]MONE(M)CAPARD'!AW356)","v":"n.a."},{"$f":"IF('[1]MONE(M)CAPARD'!AX356=\"\",\"\",'[1]MONE(M)CAPARD'!AX356)","v":5.5},{"$f":"IF('[1]MONE(M)CAPARD'!AY356=\"\",\"\",'[1]MONE(M)CAPARD'!AY356)","v":"n.a."},{"$f":"IF('[1]FISCAL(M)'!$K356=\"\",\"\",'[1]FISCAL(M)'!$K356)","v":-5089.5749771107821},{"$f":"IF('[1]FISCAL(M)'!$L356=\"\",\"\",'[1]FISCAL(M)'!$L356)","v":"n.d."},{"$f":"IF('[1]FISCAL(M)'!$AY356=\"\",\"\",'[1]FISCAL(M)'!$AY356)","v":136188.63402851534},{"$f":"IF('[1]FISCAL(M)'!$BI356=\"\",\"\",'[1]FISCAL(M)'!$BI356)","v":72398.629215419816},{"$f":"IF('[1]FISCAL(M)'!$BS356=\"\",\"\",'[1]FISCAL(M)'!$BS356)","v":63790.00481309554},{"$f":"IF('[1]FISCAL(M)'!$AZ356=\"\",\"\",'[1]FISCAL(M)'!$AZ356)","v":162364.32642851534},{"$f":"IF('[1]FISCAL(M)'!$BJ356=\"\",\"\",'[1]FISCAL(M)'!$BJ356)","v":78012.490415419801},{"$f":"IF('[1]FISCAL(M)'!$BT356=\"\",\"\",'[1]FISCAL(M)'!$BT356)","v":84351.836013095541},{"$f":"IF('[2]MONE(M)'!$AO356=\"\",\"\",'[2]MONE(M)'!$AO356)","v":22275241.805423938},{"$f":"IF('[3]MONE(M)'!$AO356=\"\",\"\",'[3]MONE(M)'!$AO356)","v":13002.38501296},{"$f":"IF('[4]MONE(M)'!$AO356=\"\",\"\",'[4]MONE(M)'!$AO356)","v":204893.92936122854},{"$f":"IF('[5]MONE(M)'!$AO356=\"\",\"\",'[5]MONE(M)'!$AO356)","v":347467.13113581098},{"$f":"IF('[6]MONE(M)'!$AO356=\"\",\"\",'[6]MONE(M)'!$AO356)","v":151492.95698615874},{"$f":"IF('[7]MONE(M)'!$AO356=\"\",\"\",'[7]MONE(M)'!$AO356)","v":1119459.0879851398},{"$f":"IF('[8]MONE(M)'!$AO356=\"\",\"\",'[8]MONE(M)'!$AO356)","v":52540.32601651999},4.6023312101472369,6.6302719752374673,4.9312294650942112,13.535494603377373,-6.343971991981789,11.101611878450313,4.4649620890699238,{"$f":"'[1]FISCAL(M)'!$K356","v":-5089.5749771107821},{"$f":"+'[1]REAL(A)'!$AO$38","v":282215.10781476315},-1.8034381704509648,{"$f":"IF('[1]FISCAL(M)'!$L356=\"\",\"\",'[1]FISCAL(M)'!$L356)","v":"n.d."},{"$f":"+'[1]REAL(A)'!$AP$38","v":347343.29381476314},"n.d.",153424.81478389469,{"$f":"'[1]Gráfico REM'!BG350","v":26442.798898624394},{"$f":"'[1]Gráfico REM'!BH350","v":118314.13748704249},{"$f":"'[1]Gráfico REM'!BI350","v":8667.8783982277819},2.0551998961362505,0.28315887643892701,2.1271533685796928,6.7846406141524485,230260.86691282468,{"$f":"'[1]Gráfico REM'!BK350","v":28623.790159554395},{"$f":"'[1]Gráfico REM'!BL350","v":170854.4635035625},{"$f":"'[1]Gráfico REM'!BM350","v":30782.613249707778},2.5342768165347973,-0.13600665866714268,2.8348466331429512,3.4280132615348125]
[2018,"diciembre","2018-diciembre",{"$f":"IF('[1]REAL IPC(M)'!$AL357=\"\",\"\",+'[1]REAL IPC(M)'!$AL357)","v":2.2525026720760177},{"$f":"IF('[1]REAL IPC(M)'!$BE357=\"\",\"\",+'[1]REAL IPC(M)'!$BE357)","v":3.1069556988224001},{"$f":"IF('[1]REAL IPC(M)'!$AM357=\"\",\"\",+'[1]REAL IPC(M)'!$AM357)","v":1.9998167140540923},{"$f":"IF('[1]REAL IPC(M)'!$BI357=\"\",\"\",+'[1]REAL IPC(M)'!$BI357)","v":2.8805509909711091},{"$f":"IF('[1]REAL IMAE(M)'!BJ357=\"\",\"\",'[1]REAL IMAE(M)'!BJ357)","v":3.3541306608974697},{"$f":"IF('[1]REAL IMAE(M)'!BK357=\"\",\"\",'[1]REAL IMAE(M)'!BK357)","v":3.7614772937238028},{"$f":"IF('[1]REAL IMAE(M)'!BN357=\"\",\"\",'[1]REAL IMAE(M)'!BN357)","v":3.3814796045178896},{"$f":"IF('[1]REAL IMAE(M)'!BO357=\"\",\"\",'[1]REAL IMAE(M)'!BO357)","v":3.7465367474079248},{"$f":"IF('[1]EXT RIN(M)'!$K357=\"\",\"\",'[1]EXT RIN(M)'!$K357)","v":38123.294928362244},{"$f":"IF(B350<>\"diciembre\",\"\",L350)","v":38123.294928362244},{"$f":"IF('[1]EXT RIN(M)'!$L357=\"\",\"\",'[1]EXT RIN(M)'!$L357)","v":41030.353193532246},{"$f":"IF(B350<>\"diciembre\",\"\",N350)","v":41030.353193532246},{"$f":"IF('[1]MONE(M)CARD'!EG357=\"\",\"\",'[1]MONE(M)CARD'!EG357)","v":38028.557610704389},{"$f":"IF('[1]MONE(M)CARD'!EK357=\"\",\"\",'[1]MONE(M)CARD'!EK357)","v":56520.386097484807},{"$f":"IF('[1]MONE(M)CARD'!EP357=\"\",\"\",'[1]MONE(M)CARD'!EP357)","v":30895.82448885651},{"$f":"IF('[1]MONE(M)CARD'!ES357=\"\",\"\",'[1]MONE(M)CARD'!ES357)","v":1.2146126445762739},{"$f":"IF('[1]MONE(M)CARD'!EV357=\"\",\"\",'[1]MONE(M)CARD'!EV357)","v":0.87833618216142106},{"$f":"IF('[1]MONE(M)CARD'!EZ357=\"\",\"\",'[1]MONE(M)CARD'!EZ357)","v":0.79811943959930964},{"$f":"IF('[1]MONE(M)CAPARD'!FC357=\"\",\"\",'[1]MONE(M)CAPARD'!FC357)","v":46754.261458724388},{"$f":"IF('[1]MONE(M)CAPARD'!FG357=\"\",\"\",'[1]MONE(M)CAPARD'!FG357)","v":89015.072742974793},{"$f":"IF('[1]MONE(M)CAPARD'!FL357=\"\",\"\",'[1]MONE(M)CAPARD'!FL357)","v":30895.82448885648},{"$f":"IF('[1]MONE(M)CAPARD'!FO357=\"\",\"\",'[1]MONE(M)CAPARD'!FO357)","v":1.8186361322692912},{"$f":"IF('[1]MONE(M)CAPARD'!FR357=\"\",\"\",'[1]MONE(M)CAPARD'!FR357)","v":1.5059369143584744},{"$f":"IF('[1]MONE(M)CAPARD'!FV357=\"\",\"\",'[1]MONE(M)CAPARD'!FV357)","v":1.328003640792863},{"$f":"IF('[1]MONE(M)CARD'!FV357=\"\",\"\",'[1]MONE(M)CARD'!FV357)","v":1930.9774568893372},{"$f":"IF('[1]MONE(M)CARD'!GD357=\"\",\"\",'[1]MONE(M)CARD'!GD357)","v":136.72013445472351},{"$f":"IF('[1]MONE(M)CARD'!GE357=\"\",\"\",'[1]MONE(M)CARD'!GE357)","v":10884.213379099943},{"$f":"IF(AD350=\"\",\"\",((AD350/AD337)-1)*100)","v":-5.348329434782551},{"$f":"IF('[9]II.2.Balance OSD-Activos'!J215=\"\",\"\",'[9]II.2.Balance OSD-Activos'!J215)","v":196.42649689203262},{"$f":"IF('[9]II.2.Balance OSD-Activos'!N215=\"\",\"\",'[9]II.2.Balance OSD-Activos'!N215)","v":1447.3454862026313},{"$f":"IF('[9]II.2.Balance OSD-Activos'!R215=\"\",\"\",'[9]II.2.Balance OSD-Activos'!R215)","v":54449.001734254081},{"$f":"IF('[9]II.2.Balance OSD-Activos'!S215=\"\",\"\",'[9]II.2.Balance OSD-Activos'!S215)","v":58584.059919188679},{"$f":"IFERROR(+AF350+AH350,\"\")","v":54645.428231146114},{"$f":"IF(OR(AF350=\"\",AG350=\"\",AH350=\"\",AI350=\"\"),\"\",SUM(AF350:AI350))","v":114676.83363653743},{"$f":"IF(OR(AF350=\"\",AF338=\"\"),\"\",((AF350/AF338)-1)*100)","v":-36.417119902281293},{"$f":"IF(OR(AJ350=\"\",AJ338=\"\"),\"\",((AJ350/AJ338)-1)*100)","v":3.3024272047677883},{"$f":"IF(OR(AG350=\"\",AG338=\"\"),\"\",((AG350/AG338)-1)*100)","v":31.854615036159494},{"$f":"IF(OR(AH350=\"\",AH338=\"\"),\"\",((AH350/AH338)-1)*100)","v":3.5357539870487509},{"$f":"IF(OR(AI350=\"\",AI338=\"\"),\"\",((AI350/AI338)-1)*100)","v":1.3067603256164961},{"$f":"IF(OR(AK350=\"\",AK338=\"\"),\"\",((AK350/AK338)-1)*100)","v":2.5506698064621469},{"$f":"IF(OR(AQ350=\"\",AQ349=\"\"),\"\",AQ350-AQ349)","v":-0.70536802419041145},{"$f":"IF('[1]MONE(M)CAPARD'!GS357=\"\",\"\",'[1]MONE(M)CAPARD'!GS357)","v":22542.934563389463},{"$f":"IF('[1]MONE(M)CARD'!HA357=\"\",\"\",'[1]MONE(M)CAPARD'!HA357)","v":12878.699550459942},{"$f":"IF('[1]MONE(M)CAPARD'!HB357=\"\",\"\",'[1]MONE(M)CAPARD'!HB357)","v":9664.235012929521},"n.d.",{"$f":"IF('[10]II.2.Balance OSD-Activos'!J215=\"\",\"\",'[10]II.2.Balance OSD-Activos'!J215)","v":2294.8990665320334},{"$f":"IF('[10]II.2.Balance OSD-Activos'!N215=\"\",\"\",'[10]II.2.Balance OSD-Activos'!N215)","v":1952.7180164126312},{"$f":"IF('[10]II.2.Balance OSD-Activos'!R215=\"\",\"\",'[10]II.2.Balance OSD-Activos'!R215)","v":78405.167463844075},{"$f":"IF('[10]II.2.Balance OSD-Activos'!S215=\"\",\"\",'[10]II.2.Balance OSD-Activos'!S215)","v":83379.843726398685},80700.066530376105,166032.62827318744,-13.447809706728664,2.4195295055200905,20.902183745462423,2.972070354773293,2.9058787044336176,2.8485488858529306,-0.75667564368764317,{"$f":"IF('[1]MONE(M)CAPARD'!AS357=\"\",\"\",'[1]MONE(M)CAPARD'!AS357)","v":5.25},{"$f":"IF('[1]MONE(M)CAPARD'!AT357=\"\",\"\",'[1]MONE(M)CAPARD'!AT357)","v":"n.a."},{"$f":"IF('[1]MONE(M)CAPARD'!AU357=\"\",\"\",'[1]MONE(M)CAPARD'!AU357)","v":2.75},{"$f":"IF('[1]MONE(M)CAPARD'!AV357=\"\",\"\",'[1]MONE(M)CAPARD'!AV357)","v":5.5},{"$f":"IF('[1]MONE(M)CAPARD'!AW357=\"\",\"\",'[1]MONE(M)CAPARD'!AW357)","v":"n.a."},{"$f":"IF('[1]MONE(M)CAPARD'!AX357=\"\",\"\",'[1]MONE(M)CAPARD'!AX357)","v":5.5},{"$f":"IF('[1]MONE(M)CAPARD'!AY357=\"\",\"\",'[1]MONE(M)CAPARD'!AY357)","v":"n.a."},{"$f":"IF('[1]FISCAL(M)'!$K357=\"\",\"\",'[1]FISCAL(M)'!$K357)","v":-7407.5434736171255},{"$f":"IF('[1]FISCAL(M)'!$L357=\"\",\"\",'[1]FISCAL(M)'!$L357)","v":-9216.5434736171264},{"$f":"IF('[1]FISCAL(M)'!$AY357=\"\",\"\",'[1]FISCAL(M)'!$AY357)","v":136161.98282174926},{"$f":"IF('[1]FISCAL(M)'!$BI357=\"\",\"\",'[1]FISCAL(M)'!$BI357)","v":71562.294840012124},{"$f":"IF('[1]FISCAL(M)'!$BS357=\"\",\"\",'[1]FISCAL(M)'!$BS357)","v":64599.687981737145},{"$f":"IF('[1]FISCAL(M)'!$AZ357=\"\",\"\",'[1]FISCAL(M)'!$AZ357)","v":161848.84262174927},{"$f":"IF('[1]FISCAL(M)'!$BJ357=\"\",\"\",'[1]FISCAL(M)'!$BJ357)","v":76674.37594001212},{"$f":"IF('[1]FISCAL(M)'!$BT357=\"\",\"\",'[1]FISCAL(M)'!$BT357)","v":85174.466681737133},{"$f":"IF('[2]MONE(M)'!$AO357=\"\",\"\",'[2]MONE(M)'!$AO357)","v":22341282.698320981},{"$f":"IF('[3]MONE(M)'!$AO357=\"\",\"\",'[3]MONE(M)'!$AO357)","v":13007.73137302},{"$f":"IF('[4]MONE(M)'!$AO357=\"\",\"\",'[4]MONE(M)'!$AO357)","v":205320.44231235483},{"$f":"IF('[5]MONE(M)'!$AO357=\"\",\"\",'[5]MONE(M)'!$AO357)","v":352377.14233708155},{"$f":"IF('[6]MONE(M)'!$AO357=\"\",\"\",'[6]MONE(M)'!$AO357)","v":147976.4229178922},{"$f":"IF('[7]MONE(M)'!$AO357=\"\",\"\",'[7]MONE(M)'!$AO357)","v":1126154.4775040201},{"$f":"IF('[8]MONE(M)'!$AO357=\"\",\"\",'[8]MONE(M)'!$AO357)","v":52204.380966039986},{"$f":"IF(BY350=\"\",\"\",((BY350/BY338)-1)*100)","v":4.3934820107736305},{"$f":"IF(BZ350=\"\",\"\",((BZ350/BZ338)-1)*100)","v":6.6890723763313398},4.5397688442660122,14.179029325619963,-8.828082165925677,10.372298125428436,3.3541087512918955,{"$f":"'[1]FISCAL(M)'!$K357","v":-7407.5434736171255},{"$f":"+'[1]REAL(A)'!$AO$38","v":282215.10781476315},-2.6247862954520484,{"$f":"IF('[1]FISCAL(M)'!$L357=\"\",\"\",'[1]FISCAL(M)'!$L357)","v":-9216.5434736171264},{"$f":"+'[1]REAL(A)'!$AP$38","v":347343.29381476314},-2.6534393027700927,153235.92042413977,{"$f":"'[1]Gráfico REM'!BG351","v":26509.524499674651},{"$f":"'[1]Gráfico REM'!BH351","v":117997.48438881605},{"$f":"'[1]Gráfico REM'!BI351","v":8728.9115356490511},{"$f":"IFERROR(+((CS350/CS338)-1)*100,\"\")","v":1.7037729743272223},{"$f":"IFERROR(+((CT350/CT338)-1)*100,\"\")","v":1.7424319119732301},{"$f":"IFERROR(+((CU350/CU338)-1)*100,\"\")","v":1.5098538469286327},{"$f":"IFERROR(+((CV350/CV338)-1)*100,\"\")","v":4.2762832131800543},230488.94481485974,{"$f":"'[1]Gráfico REM'!BK351","v":28709.013414344652},{"$f":"'[1]Gráfico REM'!BL351","v":170201.86535485604},{"$f":"'[1]Gráfico REM'!BM351","v":31578.066045659052},2.3563037266013609,1.2657790921284828,2.0684880431834696,4.9796446408964634]
[2019,"enero",{"$f":"A351&\"-\"&B351","v":"2019-enero"},{"$f":"IF('[1]REAL IPC(M)'!$AL358=\"\",\"\",+'[1]REAL IPC(M)'!$AL358)","v":2.1316665703940307},{"$f":"IF('[1]REAL IPC(M)'!$BE358=\"\",\"\",+'[1]REAL IPC(M)'!$BE358)","v":3.1043384909668514},{"$f":"IF('[1]REAL IPC(M)'!$AM358=\"\",\"\",+'[1]REAL IPC(M)'!$AM358)","v":2.01318779273989},{"$f":"IF('[1]REAL IPC(M)'!$BI358=\"\",\"\",+'[1]REAL IPC(M)'!$BI358)","v":2.8774025199611142},{"$f":"IF('[1]REAL IMAE(M)'!BJ358=\"\",\"\",'[1]REAL IMAE(M)'!BJ358)","v":3.2000786430024242},{"$f":"IF('[1]REAL IMAE(M)'!BK358=\"\",\"\",'[1]REAL IMAE(M)'!BK358)","v":3.7344051777778997},{"$f":"IF('[1]REAL IMAE(M)'!BN358=\"\",\"\",'[1]REAL IMAE(M)'!BN358)","v":3.1893578996997851},{"$f":"IF('[1]REAL IMAE(M)'!BO358=\"\",\"\",'[1]REAL IMAE(M)'!BO358)","v":3.7172427816779097},{"$f":"IF('[1]EXT RIN(M)'!$K358=\"\",\"\",'[1]EXT RIN(M)'!$K358)","v":37314.542464646191},null,{"$f":"IF('[1]EXT RIN(M)'!$L358=\"\",\"\",'[1]EXT RIN(M)'!$L358)","v":40160.23565579619},null,{"$f":"IF('[1]MONE(M)CARD'!EG358=\"\",\"\",'[1]MONE(M)CARD'!EG358)","v":37315.367025868705},{"$f":"IF('[1]MONE(M)CARD'!EK358=\"\",\"\",'[1]MONE(M)CARD'!EK358)","v":56372.677121906847},{"$f":"IF('[1]MONE(M)CARD'!EP358=\"\",\"\",'[1]MONE(M)CARD'!EP358)","v":31169.395170178861},{"$f":"IF('[1]MONE(M)CARD'!ES358=\"\",\"\",'[1]MONE(M)CARD'!ES358)","v":1.710951079373868},{"$f":"IF('[1]MONE(M)CARD'!EV358=\"\",\"\",'[1]MONE(M)CARD'!EV358)","v":1.0426978853437241},{"$f":"IF('[1]MONE(M)CARD'!EZ358=\"\",\"\",'[1]MONE(M)CARD'!EZ358)","v":0.97122056701164361},{"$f":"IF('[1]MONE(M)CAPARD'!FC358=\"\",\"\",'[1]MONE(M)CAPARD'!FC358)","v":45535.717599888711},{"$f":"IF('[1]MONE(M)CAPARD'!FG358=\"\",\"\",'[1]MONE(M)CAPARD'!FG358)","v":89145.370566266851},{"$f":"IF('[1]MONE(M)CAPARD'!FL358=\"\",\"\",'[1]MONE(M)CAPARD'!FL358)","v":31169.395170178876},{"$f":"IF('[1]MONE(M)CAPARD'!FO358=\"\",\"\",'[1]MONE(M)CAPARD'!FO358)","v":1.5903771586048832},{"$f":"IF('[1]MONE(M)CAPARD'!FR358=\"\",\"\",'[1]MONE(M)CAPARD'!FR358)","v":1.5291622598020194},{"$f":"IF('[1]MONE(M)CAPARD'!FV358=\"\",\"\",'[1]MONE(M)CAPARD'!FV358)","v":1.3831396961266229},{"$f":"IF('[1]MONE(M)CARD'!FV358=\"\",\"\",'[1]MONE(M)CARD'!FV358)","v":1825.6237164674556},{"$f":"IF('[1]MONE(M)CARD'!GD358=\"\",\"\",'[1]MONE(M)CARD'!GD358)","v":103.49424911570472},{"$f":"IF('[1]MONE(M)CARD'!GE358=\"\",\"\",'[1]MONE(M)CARD'!GE358)","v":11790.115521033626},{"$f":"IF(AD351=\"\",\"\",((AD351/AD338)-1)*100)","v":9.8224718981379855},{"$f":"IF('[9]II.2.Balance OSD-Activos'!J216=\"\",\"\",'[9]II.2.Balance OSD-Activos'!J216)","v":217.67091142891135},{"$f":"IF('[9]II.2.Balance OSD-Activos'!N216=\"\",\"\",'[9]II.2.Balance OSD-Activos'!N216)","v":1477.3365710336252},{"$f":"IF('[9]II.2.Balance OSD-Activos'!R216=\"\",\"\",'[9]II.2.Balance OSD-Activos'!R216)","v":54067.642664740008},{"$f":"IF('[9]II.2.Balance OSD-Activos'!S216=\"\",\"\",'[9]II.2.Balance OSD-Activos'!S216)","v":58680.178283257141},54285.313576168919,114442.82843045969,-22.609479421904055,2.2420823247735422,{"$f":"IF(OR(AG351=\"\",AG339=\"\"),\"\",((AG351/AG339)-1)*100)","v":31.20718239183633},{"$f":"IF(OR(AH351=\"\",AH339=\"\"),\"\",((AH351/AH339)-1)*100)","v":2.3744312385034494},{"$f":"IF(OR(AI351=\"\",AI339=\"\"),\"\",((AI351/AI339)-1)*100)","v":1.591361809440861},2.197675097193863,-0.35299470926828391,{"$f":"IF('[1]MONE(M)CAPARD'!GS358=\"\",\"\",'[1]MONE(M)CAPARD'!GS358)","v":22971.383495070262},{"$f":"IF('[1]MONE(M)CARD'!HA358=\"\",\"\",'[1]MONE(M)CAPARD'!HA358)","v":13870.917218123626},{"$f":"IF('[1]MONE(M)CAPARD'!HB358=\"\",\"\",'[1]MONE(M)CAPARD'!HB358)","v":9100.4662769466358},"n.d.",{"$f":"IF('[10]II.2.Balance OSD-Activos'!J216=\"\",\"\",'[10]II.2.Balance OSD-Activos'!J216)","v":2282.5011547889112},{"$f":"IF('[10]II.2.Balance OSD-Activos'!N216=\"\",\"\",'[10]II.2.Balance OSD-Activos'!N216)","v":1978.2451956736254},{"$f":"IF('[10]II.2.Balance OSD-Activos'!R216=\"\",\"\",'[10]II.2.Balance OSD-Activos'!R216)","v":78003.008399330007},{"$f":"IF('[10]II.2.Balance OSD-Activos'!S216=\"\",\"\",'[10]II.2.Balance OSD-Activos'!S216)","v":83425.533545437138},{"$f":"IFERROR(+AW351+AY351,\"\")","v":80285.509554118922},{"$f":"IF(OR(AW351=\"\",AX351=\"\",AY351=\"\",AZ351=\"\"),\"\",SUM(AW351:AZ351))","v":165689.28829522966},{"$f":"IF(OR(AW351=\"\",AW339=\"\"),\"\",((AW351/AW339)-1)*100)","v":-11.26261839314564},{"$f":"IF(OR(BA351=\"\",BA339=\"\"),\"\",((BA351/BA339)-1)*100)","v":1.6171376220552203},{"$f":"IF(OR(AX351=\"\",AX339=\"\"),\"\",((AX351/AX339)-1)*100)","v":21.203075207690205},{"$f":"IF(OR(AY351=\"\",AY339=\"\"),\"\",((AY351/AY339)-1)*100)","v":2.0505647519457382},{"$f":"IF(OR(AZ351=\"\",AZ339=\"\"),\"\",((AZ351/AZ339)-1)*100)","v":2.9469358343969354},{"$f":"IF(OR(BB351=\"\",BB339=\"\"),\"\",((BB351/BB339)-1)*100)","v":2.4813959539045083},{"$f":"IF(OR(BH351=\"\",BH350=\"\"),\"\",BH351-BH350)","v":-0.36715293194842236},{"$f":"IF('[1]MONE(M)CAPARD'!AS358=\"\",\"\",'[1]MONE(M)CAPARD'!AS358)","v":5.25},{"$f":"IF('[1]MONE(M)CAPARD'!AT358=\"\",\"\",'[1]MONE(M)CAPARD'!AT358)","v":"n.a."},{"$f":"IF('[1]MONE(M)CAPARD'!AU358=\"\",\"\",'[1]MONE(M)CAPARD'!AU358)","v":2.75},{"$f":"IF('[1]MONE(M)CAPARD'!AV358=\"\",\"\",'[1]MONE(M)CAPARD'!AV358)","v":5.75},{"$f":"IF('[1]MONE(M)CAPARD'!AW358=\"\",\"\",'[1]MONE(M)CAPARD'!AW358)","v":"n.a."},{"$f":"IF('[1]MONE(M)CAPARD'!AX358=\"\",\"\",'[1]MONE(M)CAPARD'!AX358)","v":5.5},{"$f":"IF('[1]MONE(M)CAPARD'!AY358=\"\",\"\",'[1]MONE(M)CAPARD'!AY358)","v":"n.a."},{"$f":"IF('[1]FISCAL(M)'!$K358=\"\",\"\",'[1]FISCAL(M)'!$K358)","v":""},null,{"$f":"IF('[1]FISCAL(M)'!$AY358=\"\",\"\",'[1]FISCAL(M)'!$AY358)","v":""},{"$f":"IF('[1]FISCAL(M)'!$BI358=\"\",\"\",'[1]FISCAL(M)'!$BI358)","v":""},{"$f":"IF('[1]FISCAL(M)'!$BS358=\"\",\"\",'[1]FISCAL(M)'!$BS358)","v":""},{"$f":"IF('[1]FISCAL(M)'!$AZ358=\"\",\"\",'[1]FISCAL(M)'!$AZ358)","v":""},{"$f":"IF('[1]FISCAL(M)'!$BJ358=\"\",\"\",'[1]FISCAL(M)'!$BJ358)","v":""},{"$f":"IF('[1]FISCAL(M)'!$BT358=\"\",\"\",'[1]FISCAL(M)'!$BT358)","v":""},{"$f":"IF('[2]MONE(M)'!$AO358=\"\",\"\",'[2]MONE(M)'!$AO358)","v":22367267.383984853},{"$f":"IF('[3]MONE(M)'!$AO358=\"\",\"\",'[3]MONE(M)'!$AO358)","v":13102.109113940001},{"$f":"IF('[4]MONE(M)'!$AO358=\"\",\"\",'[4]MONE(M)'!$AO358)","v":206000.61681531777},{"$f":"IF('[5]MONE(M)'!$AO358=\"\",\"\",'[5]MONE(M)'!$AO358)","v":354956.79690092866},{"$f":"IF('[6]MONE(M)'!$AO358=\"\",\"\",'[6]MONE(M)'!$AO358)","v":144443.09945521521},{"$f":"IF('[7]MONE(M)'!$AO358=\"\",\"\",'[7]MONE(M)'!$AO358)","v":1123080.12822832},{"$f":"IF('[8]MONE(M)'!$AO358=\"\",\"\",'[8]MONE(M)'!$AO358)","v":52052.281296899993},{"$f":"IF(BY351=\"\",\"\",((BY351/BY339)-1)*100)","v":4.5917777873482946},{"$f":"IF(BZ351=\"\",\"\",((BZ351/BZ339)-1)*100)","v":7.1194042382511924},{"$f":"IF(CA351=\"\",\"\",((CA351/CA339)-1)*100)","v":4.6742866691968699},{"$f":"IF(CB351=\"\",\"\",((CB351/CB339)-1)*100)","v":13.699272900107795},{"$f":"IF(CC351=\"\",\"\",((CC351/CC339)-1)*100)","v":-11.911048796065293},{"$f":"IF(CD351=\"\",\"\",((CD351/CD339)-1)*100)","v":9.9487446696527648},{"$f":"IF(CE351=\"\",\"\",((CE351/CE339)-1)*100)","v":2.9884078096588329},{"$f":"'[1]FISCAL(M)'!$K358","v":""},{"$f":"+'[1]REAL(A)'!$AO$39","v":288631.53325079131},"",{"$f":"IF('[1]FISCAL(M)'!$L358=\"\",\"\",'[1]FISCAL(M)'!$L358)","v":""},{"$f":"+'[1]REAL(A)'!$AP$39","v":359201.53325079131},null,154261.62851964479,{"$f":"'[1]Gráfico REM'!BG352","v":27769.191699620405},{"$f":"'[1]Gráfico REM'!BH352","v":117774.29941786964},{"$f":"'[1]Gráfico REM'!BI352","v":8718.1374021547254},{"$f":"IFERROR(+((CS351/CS339)-1)*100,\"\")","v":1.1074528168333764},{"$f":"IFERROR(+((CT351/CT339)-1)*100,\"\")","v":0.1119773458986062},{"$f":"IFERROR(+((CU351/CU339)-1)*100,\"\")","v":1.2113324342265974},{"$f":"IFERROR(+((CV351/CV339)-1)*100,\"\")","v":2.9405527654764452},231092.57753963477,{"$f":"'[1]Gráfico REM'!BK352","v":30070.486599600405},{"$f":"'[1]Gráfico REM'!BL352","v":169826.58071476963},{"$f":"'[1]Gráfico REM'!BM352","v":31195.510225264727},{"$f":"IFERROR(+((DA351/DA339)-1)*100,\"\")","v":1.7201562624797884},{"$f":"IFERROR(+((DB351/DB339)-1)*100,\"\")","v":0.45600821963627247},{"$f":"IFERROR(+((DC351/DC339)-1)*100,\"\")","v":1.7494581077726057},{"$f":"IFERROR(+((DD351/DD339)-1)*100,\"\")","v":2.806047084106944}]
[2019,"febrero","2019-febrero",{"$f":"IF('[1]REAL IPC(M)'!$AL359=\"\",\"\",+'[1]REAL IPC(M)'!$AL359)","v":2.3768108033444646},{"$f":"IF('[1]REAL IPC(M)'!$BE359=\"\",\"\",+'[1]REAL IPC(M)'!$BE359)","v":3.1011872556207853},{"$f":"IF('[1]REAL IPC(M)'!$AM359=\"\",\"\",+'[1]REAL IPC(M)'!$AM359)","v":2.2366007009817501},{"$f":"IF('[1]REAL IPC(M)'!$BI359=\"\",\"\",+'[1]REAL IPC(M)'!$BI359)","v":2.8737062116215739},{"$f":"IF('[1]REAL IMAE(M)'!BJ359=\"\",\"\",'[1]REAL IMAE(M)'!BJ359)","v":3.0283186595884581},{"$f":"IF('[1]REAL IMAE(M)'!BK359=\"\",\"\",'[1]REAL IMAE(M)'!BK359)","v":3.708653749191182},{"$f":"IF('[1]REAL IMAE(M)'!BN359=\"\",\"\",'[1]REAL IMAE(M)'!BN359)","v":3.0170835155521658},{"$f":"IF('[1]REAL IMAE(M)'!BO359=\"\",\"\",'[1]REAL IMAE(M)'!BO359)","v":3.6894910487842214},{"$f":"IF('[1]EXT RIN(M)'!$K359=\"\",\"\",'[1]EXT RIN(M)'!$K359)","v":37607.46481905636},null,{"$f":"IF('[1]EXT RIN(M)'!$L359=\"\",\"\",'[1]EXT RIN(M)'!$L359)","v":40088.90890632636},null,{"$f":"IF('[1]MONE(M)CARD'!EG359=\"\",\"\",'[1]MONE(M)CARD'!EG359)","v":37280.677362563911},{"$f":"IF('[1]MONE(M)CARD'!EK359=\"\",\"\",'[1]MONE(M)CARD'!EK359)","v":56965.561220105788},{"$f":"IF('[1]MONE(M)CARD'!EP359=\"\",\"\",'[1]MONE(M)CARD'!EP359)","v":31731.8776321654},{"$f":"IF('[1]MONE(M)CARD'!ES359=\"\",\"\",'[1]MONE(M)CARD'!ES359)","v":1.9032490831501159},{"$f":"IF('[1]MONE(M)CARD'!EV359=\"\",\"\",'[1]MONE(M)CARD'!EV359)","v":1.7016576855691135},{"$f":"IF('[1]MONE(M)CARD'!EZ359=\"\",\"\",'[1]MONE(M)CARD'!EZ359)","v":1.5592888183558973},{"$f":"IF('[1]MONE(M)CAPARD'!FC359=\"\",\"\",'[1]MONE(M)CAPARD'!FC359)","v":45415.824937593905},{"$f":"IF('[1]MONE(M)CAPARD'!FG359=\"\",\"\",'[1]MONE(M)CAPARD'!FG359)","v":89889.334050545775},{"$f":"IF('[1]MONE(M)CAPARD'!FL359=\"\",\"\",'[1]MONE(M)CAPARD'!FL359)","v":31731.877632165386},{"$f":"IF('[1]MONE(M)CAPARD'!FO359=\"\",\"\",'[1]MONE(M)CAPARD'!FO359)","v":1.5323394722998041},{"$f":"IF('[1]MONE(M)CAPARD'!FR359=\"\",\"\",'[1]MONE(M)CAPARD'!FR359)","v":1.8186160861316747},{"$f":"IF('[1]MONE(M)CAPARD'!FV359=\"\",\"\",'[1]MONE(M)CAPARD'!FV359)","v":1.6887663276464515},{"$f":"IF('[1]MONE(M)CARD'!FV359=\"\",\"\",'[1]MONE(M)CARD'!FV359)","v":1836.3374045312084},{"$f":"IF('[1]MONE(M)CARD'!GD359=\"\",\"\",'[1]MONE(M)CARD'!GD359)","v":91.855977565461018},{"$f":"IF('[1]MONE(M)CARD'!GE359=\"\",\"\",'[1]MONE(M)CARD'!GE359)","v":12057.196397086569},6.1368477130232302,{"$f":"IF('[9]II.2.Balance OSD-Activos'!J217=\"\",\"\",'[9]II.2.Balance OSD-Activos'!J217)","v":208.42138801062941},{"$f":"IF('[9]II.2.Balance OSD-Activos'!N217=\"\",\"\",'[9]II.2.Balance OSD-Activos'!N217)","v":1477.0226659752436},{"$f":"IF('[9]II.2.Balance OSD-Activos'!R217=\"\",\"\",'[9]II.2.Balance OSD-Activos'!R217)","v":54201.846896332208},{"$f":"IF('[9]II.2.Balance OSD-Activos'!S217=\"\",\"\",'[9]II.2.Balance OSD-Activos'!S217)","v":58846.189452012026},54410.268284342841,114733.48040233011,-27.426922546010434,3.1680453058090086,35.645198097539968,3.3355598256487706,1.2959331302138777,2.5122894156708764,0.31461431847701338,{"$f":"IF('[1]MONE(M)CAPARD'!GS359=\"\",\"\",'[1]MONE(M)CAPARD'!GS359)","v":23250.955122509244},{"$f":"IF('[1]MONE(M)CARD'!HA359=\"\",\"\",'[1]MONE(M)CAPARD'!HA359)","v":14160.042969666572},{"$f":"IF('[1]MONE(M)CAPARD'!HB359=\"\",\"\",'[1]MONE(M)CAPARD'!HB359)","v":9090.9121528426713},"n.d.",{"$f":"IF('[10]II.2.Balance OSD-Activos'!J217=\"\",\"\",'[10]II.2.Balance OSD-Activos'!J217)","v":2295.3413962906302},{"$f":"IF('[10]II.2.Balance OSD-Activos'!N217=\"\",\"\",'[10]II.2.Balance OSD-Activos'!N217)","v":1971.2501818152436},{"$f":"IF('[10]II.2.Balance OSD-Activos'!R217=\"\",\"\",'[10]II.2.Balance OSD-Activos'!R217)","v":78285.483456592206},{"$f":"IF('[10]II.2.Balance OSD-Activos'!S217=\"\",\"\",'[10]II.2.Balance OSD-Activos'!S217)","v":83756.836712902004},80580.824852882841,166308.91174760007,-11.046358634750032,2.3460726211345984,19.226238548385055,2.7998619486312881,2.7213322028091458,2.7073945213283324,0.22599856742382407,{"$f":"IF('[1]MONE(M)CAPARD'!AS359=\"\",\"\",'[1]MONE(M)CAPARD'!AS359)","v":5.25},{"$f":"IF('[1]MONE(M)CAPARD'!AT359=\"\",\"\",'[1]MONE(M)CAPARD'!AT359)","v":"n.a."},{"$f":"IF('[1]MONE(M)CAPARD'!AU359=\"\",\"\",'[1]MONE(M)CAPARD'!AU359)","v":2.75},{"$f":"IF('[1]MONE(M)CAPARD'!AV359=\"\",\"\",'[1]MONE(M)CAPARD'!AV359)","v":5.75},{"$f":"IF('[1]MONE(M)CAPARD'!AW359=\"\",\"\",'[1]MONE(M)CAPARD'!AW359)","v":"n.a."},{"$f":"IF('[1]MONE(M)CAPARD'!AX359=\"\",\"\",'[1]MONE(M)CAPARD'!AX359)","v":5.5},{"$f":"IF('[1]MONE(M)CAPARD'!AY359=\"\",\"\",'[1]MONE(M)CAPARD'!AY359)","v":"n.a."},null,null,{"$f":"IF('[1]FISCAL(M)'!$AY359=\"\",\"\",'[1]FISCAL(M)'!$AY359)","v":""},{"$f":"IF('[1]FISCAL(M)'!$BI359=\"\",\"\",'[1]FISCAL(M)'!$BI359)","v":""},{"$f":"IF('[1]FISCAL(M)'!$BS359=\"\",\"\",'[1]FISCAL(M)'!$BS359)","v":""},{"$f":"IF('[1]FISCAL(M)'!$AZ359=\"\",\"\",'[1]FISCAL(M)'!$AZ359)","v":""},{"$f":"IF('[1]FISCAL(M)'!$BJ359=\"\",\"\",'[1]FISCAL(M)'!$BJ359)","v":""},{"$f":"IF('[1]FISCAL(M)'!$BT359=\"\",\"\",'[1]FISCAL(M)'!$BT359)","v":""},{"$f":"IF('[2]MONE(M)'!$AO359=\"\",\"\",'[2]MONE(M)'!$AO359)","v":22319755.356843092},{"$f":"IF('[3]MONE(M)'!$AO359=\"\",\"\",'[3]MONE(M)'!$AO359)","v":13159.765402820001},{"$f":"IF('[4]MONE(M)'!$AO359=\"\",\"\",'[4]MONE(M)'!$AO359)","v":204832.62430575467},{"$f":"IF('[5]MONE(M)'!$AO359=\"\",\"\",'[5]MONE(M)'!$AO359)","v":357969.41525092628},{"$f":"IF('[6]MONE(M)'!$AO359=\"\",\"\",'[6]MONE(M)'!$AO359)","v":141435.93885392853},{"$f":"IF('[7]MONE(M)'!$AO359=\"\",\"\",'[7]MONE(M)'!$AO359)","v":1128088.1871721298},{"$f":"IF('[8]MONE(M)'!$AO359=\"\",\"\",'[8]MONE(M)'!$AO359)","v":52431.739503529985},4.3286548044634277,6.8384027944926373,4.2161525947022271,14.162024269611461,-14.099994703577302,9.634218830756879,3.2442669240535515,null,{"$f":"+'[1]REAL(A)'!$AO$39","v":288631.53325079131},"",{"$f":"IF('[1]FISCAL(M)'!$L359=\"\",\"\",'[1]FISCAL(M)'!$L359)","v":""},{"$f":"+'[1]REAL(A)'!$AP$39","v":359201.53325079131},null,155084.76710770788,{"$f":"'[1]Gráfico REM'!BG353","v":28116.955032627524},{"$f":"'[1]Gráfico REM'!BH353","v":117995.33059781135},{"$f":"'[1]Gráfico REM'!BI353","v":8972.4814772690079},1.7778664850534254,1.5982629439982077,1.4508879004867747,6.9011039361697613,232410.81546329788,{"$f":"'[1]Gráfico REM'!BK353","v":30453.187209177522},{"$f":"'[1]Gráfico REM'!BL353","v":170427.07010134135},{"$f":"'[1]Gráfico REM'!BM353","v":31530.558152778991},2.3955708417739308,1.970620565560588,1.9959484502988234,5.0429085582303745]
[2019,"marzo","2019-marzo",{"$f":"IF('[1]REAL IPC(M)'!$AL360=\"\",\"\",+'[1]REAL IPC(M)'!$AL360)","v":2.5462676922685779},{"$f":"IF('[1]REAL IPC(M)'!$BE360=\"\",\"\",+'[1]REAL IPC(M)'!$BE360)","v":3.0975933534252542},{"$f":"IF('[1]REAL IPC(M)'!$AM360=\"\",\"\",+'[1]REAL IPC(M)'!$AM360)","v":2.413389581263492},{"$f":"IF('[1]REAL IPC(M)'!$BI360=\"\",\"\",+'[1]REAL IPC(M)'!$BI360)","v":2.8695857651939383},{"$f":"IF('[1]REAL IMAE(M)'!BJ360=\"\",\"\",'[1]REAL IMAE(M)'!BJ360)","v":2.8630581876810224},{"$f":"IF('[1]REAL IMAE(M)'!BK360=\"\",\"\",'[1]REAL IMAE(M)'!BK360)","v":3.6843492790950449},{"$f":"IF('[1]REAL IMAE(M)'!BN360=\"\",\"\",'[1]REAL IMAE(M)'!BN360)","v":2.8988441354505179},{"$f":"IF('[1]REAL IMAE(M)'!BO360=\"\",\"\",'[1]REAL IMAE(M)'!BO360)","v":3.6634022929397547},{"$f":"IF('[1]EXT RIN(M)'!$K360=\"\",\"\",'[1]EXT RIN(M)'!$K360)","v":38787.577114171581},null,{"$f":"IF('[1]EXT RIN(M)'!$L360=\"\",\"\",'[1]EXT RIN(M)'!$L360)","v":41485.629562651578},null,{"$f":"IF('[1]MONE(M)CARD'!EG360=\"\",\"\",'[1]MONE(M)CARD'!EG360)","v":37941.136523004825},{"$f":"IF('[1]MONE(M)CARD'!EK360=\"\",\"\",'[1]MONE(M)CARD'!EK360)","v":57486.06154645959},{"$f":"IF('[1]MONE(M)CARD'!EP360=\"\",\"\",'[1]MONE(M)CARD'!EP360)","v":31664.341490277555},{"$f":"IF('[1]MONE(M)CARD'!ES360=\"\",\"\",'[1]MONE(M)CARD'!ES360)","v":1.5356450261333476},{"$f":"IF('[1]MONE(M)CARD'!EV360=\"\",\"\",'[1]MONE(M)CARD'!EV360)","v":1.922465685703445},{"$f":"IF('[1]MONE(M)CARD'!EZ360=\"\",\"\",'[1]MONE(M)CARD'!EZ360)","v":1.7290562657555242},{"$f":"IF('[1]MONE(M)CAPARD'!FC360=\"\",\"\",'[1]MONE(M)CAPARD'!FC360)","v":45801.547845814828},{"$f":"IF('[1]MONE(M)CAPARD'!FG360=\"\",\"\",'[1]MONE(M)CAPARD'!FG360)","v":90596.746568749586},{"$f":"IF('[1]MONE(M)CAPARD'!FL360=\"\",\"\",'[1]MONE(M)CAPARD'!FL360)","v":31664.341490277555},{"$f":"IF('[1]MONE(M)CAPARD'!FO360=\"\",\"\",'[1]MONE(M)CAPARD'!FO360)","v":0.70539373094939961},{"$f":"IF('[1]MONE(M)CAPARD'!FR360=\"\",\"\",'[1]MONE(M)CAPARD'!FR360)","v":1.8448958471964261},{"$f":"IF('[1]MONE(M)CAPARD'!FV360=\"\",\"\",'[1]MONE(M)CAPARD'!FV360)","v":1.7133553427843395},{"$f":"IF('[1]MONE(M)CARD'!FV360=\"\",\"\",'[1]MONE(M)CARD'!FV360)","v":1729.3278455358779},{"$f":"IF('[1]MONE(M)CARD'!GD360=\"\",\"\",'[1]MONE(M)CARD'!GD360)","v":113.01396521296047},{"$f":"IF('[1]MONE(M)CARD'!GE360=\"\",\"\",'[1]MONE(M)CARD'!GE360)","v":12163.855489101679},{"$f":"IF(AD353=\"\",\"\",((AD353/AD340)-1)*100)","v":4.5178016254661557},{"$f":"IF('[9]II.2.Balance OSD-Activos'!J218=\"\",\"\",'[9]II.2.Balance OSD-Activos'!J218)","v":214.50596569549509},{"$f":"IF('[9]II.2.Balance OSD-Activos'!N218=\"\",\"\",'[9]II.2.Balance OSD-Activos'!N218)","v":1491.0259178614463},{"$f":"IF('[9]II.2.Balance OSD-Activos'!R218=\"\",\"\",'[9]II.2.Balance OSD-Activos'!R218)","v":54952.900680362713},{"$f":"IF('[9]II.2.Balance OSD-Activos'!S218=\"\",\"\",'[9]II.2.Balance OSD-Activos'!S218)","v":58661.658756038567},{"$f":"IFERROR(+AF353+AH353,\"\")","v":55167.406646058211},{"$f":"IF(OR(AF353=\"\",AG353=\"\",AH353=\"\",AI353=\"\"),\"\",SUM(AF353:AI353))","v":115320.09131995821},-21.659639664590703,4.0770421626065367,35.515093600523315,4.210679548004248,0.62264132501008707,{"$f":"IF(OR(AK353=\"\",AK341=\"\"),\"\",((AK353/AK341)-1)*100)","v":2.5931545343992113},{"$f":"IF(OR(AQ353=\"\",AQ352=\"\"),\"\",AQ353-AQ352)","v":8.0865118728334906E-2},{"$f":"IF('[1]MONE(M)CAPARD'!GS360=\"\",\"\",'[1]MONE(M)CAPARD'!GS360)","v":24106.462342746043},{"$f":"IF('[1]MONE(M)CARD'!HA360=\"\",\"\",'[1]MONE(M)CAPARD'!HA360)","v":14241.072786981678},{"$f":"IF('[1]MONE(M)CAPARD'!HB360=\"\",\"\",'[1]MONE(M)CAPARD'!HB360)","v":9865.3895557643646},"n.d.",{"$f":"IF('[10]II.2.Balance OSD-Activos'!J218=\"\",\"\",'[10]II.2.Balance OSD-Activos'!J218)","v":2383.4891378554953},{"$f":"IF('[10]II.2.Balance OSD-Activos'!N218=\"\",\"\",'[10]II.2.Balance OSD-Activos'!N218)","v":1984.5691004114465},{"$f":"IF('[10]II.2.Balance OSD-Activos'!R218=\"\",\"\",'[10]II.2.Balance OSD-Activos'!R218)","v":79071.582855832705},{"$f":"IF('[10]II.2.Balance OSD-Activos'!S218=\"\",\"\",'[10]II.2.Balance OSD-Activos'!S218)","v":83660.433955888569},81455.071993688194,167100.07504998823,-6.4553349773814102,3.0128890403631869,19.873753116307814,3.3281432325589444,2.2017928744457294,2.776209929693696,6.8815408365363595E-2,{"$f":"IF('[1]MONE(M)CAPARD'!AS360=\"\",\"\",'[1]MONE(M)CAPARD'!AS360)","v":5},{"$f":"IF('[1]MONE(M)CAPARD'!AT360=\"\",\"\",'[1]MONE(M)CAPARD'!AT360)","v":"n.a."},{"$f":"IF('[1]MONE(M)CAPARD'!AU360=\"\",\"\",'[1]MONE(M)CAPARD'!AU360)","v":2.75},{"$f":"IF('[1]MONE(M)CAPARD'!AV360=\"\",\"\",'[1]MONE(M)CAPARD'!AV360)","v":5.75},{"$f":"IF('[1]MONE(M)CAPARD'!AW360=\"\",\"\",'[1]MONE(M)CAPARD'!AW360)","v":"n.a."},{"$f":"IF('[1]MONE(M)CAPARD'!AX360=\"\",\"\",'[1]MONE(M)CAPARD'!AX360)","v":5.5},{"$f":"IF('[1]MONE(M)CAPARD'!AY360=\"\",\"\",'[1]MONE(M)CAPARD'!AY360)","v":"n.a."},null,null,{"$f":"IF('[1]FISCAL(M)'!$AY360=\"\",\"\",'[1]FISCAL(M)'!$AY360)","v":""},{"$f":"IF('[1]FISCAL(M)'!$BI360=\"\",\"\",'[1]FISCAL(M)'!$BI360)","v":""},{"$f":"IF('[1]FISCAL(M)'!$BS360=\"\",\"\",'[1]FISCAL(M)'!$BS360)","v":""},{"$f":"IF('[1]FISCAL(M)'!$AZ360=\"\",\"\",'[1]FISCAL(M)'!$AZ360)","v":""},{"$f":"IF('[1]FISCAL(M)'!$BJ360=\"\",\"\",'[1]FISCAL(M)'!$BJ360)","v":""},{"$f":"IF('[1]FISCAL(M)'!$BT360=\"\",\"\",'[1]FISCAL(M)'!$BT360)","v":""},{"$f":"IF('[2]MONE(M)'!$AO360=\"\",\"\",'[2]MONE(M)'!$AO360)","v":22236581.509827789},{"$f":"IF('[3]MONE(M)'!$AO360=\"\",\"\",'[3]MONE(M)'!$AO360)","v":13181.842917010001},{"$f":"IF('[4]MONE(M)'!$AO360=\"\",\"\",'[4]MONE(M)'!$AO360)","v":206386.45032696461},{"$f":"IF('[5]MONE(M)'!$AO360=\"\",\"\",'[5]MONE(M)'!$AO360)","v":360066.29347114277},{"$f":"IF('[6]MONE(M)'!$AO360=\"\",\"\",'[6]MONE(M)'!$AO360)","v":138522.68770312061},{"$f":"IF('[7]MONE(M)'!$AO360=\"\",\"\",'[7]MONE(M)'!$AO360)","v":1158290.71325079},{"$f":"IF('[8]MONE(M)'!$AO360=\"\",\"\",'[8]MONE(M)'!$AO360)","v":52719.492688639992},{"$f":"IF(BY353=\"\",\"\",((BY353/BY341)-1)*100)","v":4.3791892484985828},{"$f":"IF(BZ353=\"\",\"\",((BZ353/BZ341)-1)*100)","v":6.7543002096446481},{"$f":"IF(CA353=\"\",\"\",((CA353/CA341)-1)*100)","v":4.2748883929449644},{"$f":"IF(CB353=\"\",\"\",((CB353/CB341)-1)*100)","v":13.944396721821484},{"$f":"IF(CC353=\"\",\"\",((CC353/CC341)-1)*100)","v":-16.815600545838837},{"$f":"IF(CD353=\"\",\"\",((CD353/CD341)-1)*100)","v":11.87279628564788},{"$f":"IF(CE353=\"\",\"\",((CE353/CE341)-1)*100)","v":3.4579045014985654},null,{"$f":"+'[1]REAL(A)'!$AO$39","v":288631.53325079131},"",{"$f":"IF('[1]FISCAL(M)'!$L360=\"\",\"\",'[1]FISCAL(M)'!$L360)","v":""},{"$f":"+'[1]REAL(A)'!$AP$39","v":359201.53325079131},null,156709.72020221205,{"$f":"'[1]Gráfico REM'!BG354","v":28379.852468867357},{"$f":"'[1]Gráfico REM'!BH354","v":119287.12189672918},{"$f":"'[1]Gráfico REM'!BI354","v":9042.7458366155097},2.6202148186333707,3.5388828062265398,2.1890141299428567,5.5564907236271388,234072.08593736205,{"$f":"'[1]Gráfico REM'!BK354","v":30747.895915937355},{"$f":"'[1]Gráfico REM'!BL354","v":172006.61458536919},{"$f":"'[1]Gráfico REM'!BM354","v":31317.575436055515},3.1240178002952534,3.5549329410534014,2.5746046519931953,5.8043248528301783]
[2019,"abril","2019-abril",{"$f":"IF('[1]REAL IPC(M)'!$AL361=\"\",\"\",+'[1]REAL IPC(M)'!$AL361)","v":2.9847308528455629},{"$f":"IF('[1]REAL IPC(M)'!$BE361=\"\",\"\",+'[1]REAL IPC(M)'!$BE361)","v":3.093601292195336},{"$f":"IF('[1]REAL IPC(M)'!$AM361=\"\",\"\",+'[1]REAL IPC(M)'!$AM361)","v":2.8349008814405829},{"$f":"IF('[1]REAL IPC(M)'!$BI361=\"\",\"\",+'[1]REAL IPC(M)'!$BI361)","v":2.865119875742006},{"$f":"IF('[1]REAL IMAE(M)'!BJ361=\"\",\"\",'[1]REAL IMAE(M)'!BJ361)","v":2.8848046257814897},{"$f":"IF('[1]REAL IMAE(M)'!BK361=\"\",\"\",'[1]REAL IMAE(M)'!BK361)","v":3.6615752719491912},{"$f":"IF('[1]REAL IMAE(M)'!BN361=\"\",\"\",'[1]REAL IMAE(M)'!BN361)","v":2.9412881243833455},{"$f":"IF('[1]REAL IMAE(M)'!BO361=\"\",\"\",'[1]REAL IMAE(M)'!BO361)","v":3.6390492271638042},{"$f":"IF('[1]EXT RIN(M)'!$K361=\"\",\"\",'[1]EXT RIN(M)'!$K361)","v":38892.683578244294},null,{"$f":"IF('[1]EXT RIN(M)'!$L361=\"\",\"\",'[1]EXT RIN(M)'!$L361)","v":41873.394911354291},null,{"$f":"IF('[1]MONE(M)CARD'!EG361=\"\",\"\",'[1]MONE(M)CARD'!EG361)","v":37749.967360649593},{"$f":"IF('[1]MONE(M)CARD'!EK361=\"\",\"\",'[1]MONE(M)CARD'!EK361)","v":58208.689902783706},{"$f":"IF('[1]MONE(M)CARD'!EP361=\"\",\"\",'[1]MONE(M)CARD'!EP361)","v":31604.262753074188},{"$f":"IF('[1]MONE(M)CARD'!ES361=\"\",\"\",'[1]MONE(M)CARD'!ES361)","v":2.3686794632406194},{"$f":"IF('[1]MONE(M)CARD'!EV361=\"\",\"\",'[1]MONE(M)CARD'!EV361)","v":2.6689624190533889},{"$f":"IF('[1]MONE(M)CARD'!EZ361=\"\",\"\",'[1]MONE(M)CARD'!EZ361)","v":1.8801439738487025},{"$f":"IF('[1]MONE(M)CAPARD'!FC361=\"\",\"\",'[1]MONE(M)CAPARD'!FC361)","v":45738.707297239598},{"$f":"IF('[1]MONE(M)CAPARD'!FG361=\"\",\"\",'[1]MONE(M)CAPARD'!FG361)","v":91334.167811913707},{"$f":"IF('[1]MONE(M)CAPARD'!FL361=\"\",\"\",'[1]MONE(M)CAPARD'!FL361)","v":31604.262753074203},{"$f":"IF('[1]MONE(M)CAPARD'!FO361=\"\",\"\",'[1]MONE(M)CAPARD'!FO361)","v":0.90296191019958449},{"$f":"IF('[1]MONE(M)CAPARD'!FR361=\"\",\"\",'[1]MONE(M)CAPARD'!FR361)","v":2.3922963493500982},{"$f":"IF('[1]MONE(M)CAPARD'!FV361=\"\",\"\",'[1]MONE(M)CAPARD'!FV361)","v":1.8489617655738533},{"$f":"IF('[1]MONE(M)CARD'!FV361=\"\",\"\",'[1]MONE(M)CARD'!FV361)","v":1765.3217687907486},{"$f":"IF('[1]MONE(M)CARD'!GD361=\"\",\"\",'[1]MONE(M)CARD'!GD361)","v":276.07936732586268},{"$f":"IF('[1]MONE(M)CARD'!GE361=\"\",\"\",'[1]MONE(M)CARD'!GE361)","v":13224.427363044992},{"$f":"IF(AD354=\"\",\"\",((AD354/AD341)-1)*100)","v":15.02268935344846},{"$f":"IF('[9]II.2.Balance OSD-Activos'!J219=\"\",\"\",'[9]II.2.Balance OSD-Activos'!J219)","v":201.26757287904599},{"$f":"IF('[9]II.2.Balance OSD-Activos'!N219=\"\",\"\",'[9]II.2.Balance OSD-Activos'!N219)","v":1466.8488814233547},{"$f":"IF('[9]II.2.Balance OSD-Activos'!R219=\"\",\"\",'[9]II.2.Balance OSD-Activos'!R219)","v":55065.848633814181},{"$f":"IF('[9]II.2.Balance OSD-Activos'!S219=\"\",\"\",'[9]II.2.Balance OSD-Activos'!S219)","v":58983.197910839044},{"$f":"IFERROR(+AF354+AH354,\"\")","v":55267.11620669323},{"$f":"IF(OR(AF354=\"\",AG354=\"\",AH354=\"\",AI354=\"\"),\"\",SUM(AF354:AI354))","v":115717.16299895562},{"$f":"IF(OR(AF354=\"\",AF342=\"\"),\"\",((AF354/AF342)-1)*100)","v":-27.635216587213019},{"$f":"IF(OR(AJ354=\"\",AJ342=\"\"),\"\",((AJ354/AJ342)-1)*100)","v":1.9328915316361606},{"$f":"IF(OR(AG354=\"\",AG342=\"\"),\"\",((AG354/AG342)-1)*100)","v":26.786880750361085},{"$f":"IF(OR(AH354=\"\",AH342=\"\"),\"\",((AH354/AH342)-1)*100)","v":2.0853498640871271},{"$f":"IF(OR(AI354=\"\",AI342=\"\"),\"\",((AI354/AI342)-1)*100)","v":2.5026902954233599},{"$f":"IF(OR(AK354=\"\",AK342=\"\"),\"\",((AK354/AK342)-1)*100)","v":2.4779059952487748},{"$f":"IF(OR(AQ354=\"\",AQ353=\"\"),\"\",AQ354-AQ353)","v":-0.11524853915043654},{"$f":"IF('[1]MONE(M)CAPARD'!GS361=\"\",\"\",'[1]MONE(M)CAPARD'!GS361)","v":24432.554755490281},{"$f":"IF('[1]MONE(M)CARD'!HA361=\"\",\"\",'[1]MONE(M)CAPARD'!HA361)","v":15438.142788624991},{"$f":"IF('[1]MONE(M)CAPARD'!HB361=\"\",\"\",'[1]MONE(M)CAPARD'!HB361)","v":8994.4119668652893},"n.d.",{"$f":"IF('[10]II.2.Balance OSD-Activos'!J219=\"\",\"\",'[10]II.2.Balance OSD-Activos'!J219)","v":2327.2961717290468},{"$f":"IF('[10]II.2.Balance OSD-Activos'!N219=\"\",\"\",'[10]II.2.Balance OSD-Activos'!N219)","v":1908.9575992433547},{"$f":"IF('[10]II.2.Balance OSD-Activos'!R219=\"\",\"\",'[10]II.2.Balance OSD-Activos'!R219)","v":79173.601087014162},{"$f":"IF('[10]II.2.Balance OSD-Activos'!S219=\"\",\"\",'[10]II.2.Balance OSD-Activos'!S219)","v":84084.978721309046},{"$f":"IFERROR(+AW354+AY354,\"\")","v":81500.897258743207},{"$f":"IF(OR(AW354=\"\",AX354=\"\",AY354=\"\",AZ354=\"\"),\"\",SUM(AW354:AZ354))","v":167494.83357929561},{"$f":"IF(OR(AW354=\"\",AW342=\"\"),\"\",((AW354/AW342)-1)*100)","v":-7.8067376113597593},{"$f":"IF(OR(BA354=\"\",BA342=\"\"),\"\",((BA354/BA342)-1)*100)","v":1.4927410908127881},{"$f":"IF(OR(AX354=\"\",AX342=\"\"),\"\",((AX354/AX342)-1)*100)","v":7.1011374746107636},{"$f":"IF(OR(AY354=\"\",AY342=\"\"),\"\",((AY354/AY342)-1)*100)","v":1.794566135059128},{"$f":"IF(OR(AZ354=\"\",AZ342=\"\"),\"\",((AZ354/AZ342)-1)*100)","v":3.5171879891501501},{"$f":"IF(OR(BB354=\"\",BB342=\"\"),\"\",((BB354/BB342)-1)*100)","v":2.5608654388110219},{"$f":"IF(OR(BH354=\"\",BH353=\"\"),\"\",BH354-BH353)","v":-0.21534449088267404},{"$f":"IF('[1]MONE(M)CAPARD'!AS361=\"\",\"\",'[1]MONE(M)CAPARD'!AS361)","v":5},{"$f":"IF('[1]MONE(M)CAPARD'!AT361=\"\",\"\",'[1]MONE(M)CAPARD'!AT361)","v":"n.a."},{"$f":"IF('[1]MONE(M)CAPARD'!AU361=\"\",\"\",'[1]MONE(M)CAPARD'!AU361)","v":2.75},{"$f":"IF('[1]MONE(M)CAPARD'!AV361=\"\",\"\",'[1]MONE(M)CAPARD'!AV361)","v":5.75},{"$f":"IF('[1]MONE(M)CAPARD'!AW361=\"\",\"\",'[1]MONE(M)CAPARD'!AW361)","v":"n.a."},{"$f":"IF('[1]MONE(M)CAPARD'!AX361=\"\",\"\",'[1]MONE(M)CAPARD'!AX361)","v":5.5},{"$f":"IF('[1]MONE(M)CAPARD'!AY361=\"\",\"\",'[1]MONE(M)CAPARD'!AY361)","v":"n.a."},null,null,null,null,null,null,null,null,{"$f":"IF('[2]MONE(M)'!$AO361=\"\",\"\",'[2]MONE(M)'!$AO361)","v":22247832.38513111},{"$f":"IF('[3]MONE(M)'!$AO361=\"\",\"\",'[3]MONE(M)'!$AO361)","v":13248.80304569},{"$f":"IF('[4]MONE(M)'!$AO361=\"\",\"\",'[4]MONE(M)'!$AO361)","v":207576.96406313614},{"$f":"IF('[5]MONE(M)'!$AO361=\"\",\"\",'[5]MONE(M)'!$AO361)","v":361200.09745855851},{"$f":"IF('[6]MONE(M)'!$AO361=\"\",\"\",'[6]MONE(M)'!$AO361)","v":135262.83279765147},{"$f":"IF('[7]MONE(M)'!$AO361=\"\",\"\",'[7]MONE(M)'!$AO361)","v":1159637.5011751801},{"$f":"IF('[8]MONE(M)'!$AO361=\"\",\"\",'[8]MONE(M)'!$AO361)","v":52760.859422689995},{"$f":"IF(BY354=\"\",\"\",((BY354/BY342)-1)*100)","v":4.2463673358349663},{"$f":"IF(BZ354=\"\",\"\",((BZ354/BZ342)-1)*100)","v":6.7516422890905536},{"$f":"IF(CA354=\"\",\"\",((CA354/CA342)-1)*100)","v":4.6301586152399654},{"$f":"IF(CB354=\"\",\"\",((CB354/CB342)-1)*100)","v":13.248434073411586},{"$f":"IF(CC354=\"\",\"\",((CC354/CC342)-1)*100)","v":-19.648706478528645},{"$f":"IF(CD354=\"\",\"\",((CD354/CD342)-1)*100)","v":10.926092435861223},{"$f":"IF(CE354=\"\",\"\",((CE354/CE342)-1)*100)","v":3.1895898407427126},null,{"$f":"+'[1]REAL(A)'!$AO$39","v":288631.53325079131},"",null,{"$f":"+'[1]REAL(A)'!$AP$39","v":359201.53325079131},null,{"$f":"+IF(OR(CT354=\"\",+CU354=\"\",+CV354=\"\"),\"\",(CT354+CU354+CV354))","v":157784.29963692577},{"$f":"'[1]Gráfico REM'!BG355","v":28799.85656064174},{"$f":"'[1]Gráfico REM'!BH355","v":119773.24887066055},{"$f":"'[1]Gráfico REM'!BI355","v":9211.1942056235093},{"$f":"IFERROR(+((CS354/CS342)-1)*100,\"\")","v":2.6150673828972071},{"$f":"IFERROR(+((CT354/CT342)-1)*100,\"\")","v":3.5798619398759834},{"$f":"IFERROR(+((CU354/CU342)-1)*100,\"\")","v":2.1861201152826082},{"$f":"IFERROR(+((CV354/CV342)-1)*100,\"\")","v":5.2958964480222415},{"$f":"+IF(OR(DB354=\"\",+DC354=\"\",+DD354=\"\"),\"\",(DB354+DC354+DD354))","v":235048.40302253579},{"$f":"'[1]Gráfico REM'!BK355","v":31132.020635521738},{"$f":"'[1]Gráfico REM'!BL355","v":172534.10829335055},{"$f":"'[1]Gráfico REM'!BM355","v":31382.274093663509},{"$f":"IFERROR(+((DA354/DA342)-1)*100,\"\")","v":2.7777599919290408},{"$f":"IFERROR(+((DB354/DB342)-1)*100,\"\")","v":3.6699945203291673},{"$f":"IFERROR(+((DC354/DC342)-1)*100,\"\")","v":2.4909030211035521},{"$f":"IFERROR(+((DD354/DD342)-1)*100,\"\")","v":3.4866158636219335}]
[2019,"mayo ","2019-mayo ",{"$f":"IF('[1]REAL IPC(M)'!$AL362=\"\",\"\",+'[1]REAL IPC(M)'!$AL362)","v":2.9385837354819255},{"$f":"IF('[1]REAL IPC(M)'!$BE362=\"\",\"\",+'[1]REAL IPC(M)'!$BE362)","v":3.089225191500522},{"$f":"IF('[1]REAL IPC(M)'!$AM362=\"\",\"\",+'[1]REAL IPC(M)'!$AM362)","v":2.7956475701245376},{"$f":"IF('[1]REAL IPC(M)'!$BI362=\"\",\"\",+'[1]REAL IPC(M)'!$BI362)","v":2.8603573322944609},{"$f":"IF('[1]REAL IMAE(M)'!BJ362=\"\",\"\",'[1]REAL IMAE(M)'!BJ362)","v":2.9379337364697555},{"$f":"IF('[1]REAL IMAE(M)'!BK362=\"\",\"\",'[1]REAL IMAE(M)'!BK362)","v":3.6403647191923794},{"$f":"IF('[1]REAL IMAE(M)'!BN362=\"\",\"\",'[1]REAL IMAE(M)'!BN362)","v":2.9970420814475984},{"$f":"IF('[1]REAL IMAE(M)'!BO362=\"\",\"\",'[1]REAL IMAE(M)'!BO362)","v":3.6164508752419611},{"$f":"IF('[1]EXT RIN(M)'!$K362=\"\",\"\",'[1]EXT RIN(M)'!$K362)","v":39532.157200000001},null,{"$f":"IF('[1]EXT RIN(M)'!$L362=\"\",\"\",'[1]EXT RIN(M)'!$L362)","v":42330.966554040002},null,{"$f":"IF('[1]MONE(M)CARD'!EG362=\"\",\"\",'[1]MONE(M)CARD'!EG362)","v":37532.029257213871},{"$f":"IF('[1]MONE(M)CARD'!EK362=\"\",\"\",'[1]MONE(M)CARD'!EK362)","v":58505.184448582368},{"$f":"IF('[1]MONE(M)CARD'!EP362=\"\",\"\",'[1]MONE(M)CARD'!EP362)","v":31741.02147403892},{"$f":"IF('[1]MONE(M)CARD'!ES362=\"\",\"\",'[1]MONE(M)CARD'!ES362)","v":4.0833085561448712},{"$f":"IF('[1]MONE(M)CARD'!EV362=\"\",\"\",'[1]MONE(M)CARD'!EV362)","v":3.6283607896709702},{"$f":"IF('[1]MONE(M)CARD'!EZ362=\"\",\"\",'[1]MONE(M)CARD'!EZ362)","v":2.6010391456806836},{"$f":"IF('[1]MONE(M)CAPARD'!FC362=\"\",\"\",'[1]MONE(M)CAPARD'!FC362)","v":45440.215953493869},{"$f":"IF('[1]MONE(M)CAPARD'!FG362=\"\",\"\",'[1]MONE(M)CAPARD'!FG362)","v":91726.025702392362},{"$f":"IF('[1]MONE(M)CAPARD'!FL362=\"\",\"\",'[1]MONE(M)CAPARD'!FL362)","v":31741.021474038891},{"$f":"IF('[1]MONE(M)CAPARD'!FO362=\"\",\"\",'[1]MONE(M)CAPARD'!FO362)","v":2.9718765960584426},{"$f":"IF('[1]MONE(M)CAPARD'!FR362=\"\",\"\",'[1]MONE(M)CAPARD'!FR362)","v":3.2072139306070557},{"$f":"IF('[1]MONE(M)CAPARD'!FV362=\"\",\"\",'[1]MONE(M)CAPARD'!FV362)","v":2.512164046217058},{"$f":"IF('[1]MONE(M)CARD'!FV362=\"\",\"\",'[1]MONE(M)CARD'!FV362)","v":1776.3180611182929},{"$f":"IF('[1]MONE(M)CARD'!GD362=\"\",\"\",'[1]MONE(M)CARD'!GD362)","v":126.06456637205162},{"$f":"IF('[1]MONE(M)CARD'!GE362=\"\",\"\",'[1]MONE(M)CARD'!GE362)","v":12029.253772695445},0.26217963184413939,{"$f":"IF('[9]II.2.Balance OSD-Activos'!J220=\"\",\"\",'[9]II.2.Balance OSD-Activos'!J220)","v":202.99975984031133},{"$f":"IF('[9]II.2.Balance OSD-Activos'!N220=\"\",\"\",'[9]II.2.Balance OSD-Activos'!N220)","v":1472.1896778758091},{"$f":"IF('[9]II.2.Balance OSD-Activos'!R220=\"\",\"\",'[9]II.2.Balance OSD-Activos'!R220)","v":55130.763978288946},{"$f":"IF('[9]II.2.Balance OSD-Activos'!S220=\"\",\"\",'[9]II.2.Balance OSD-Activos'!S220)","v":59253.593886687901},55333.763738129259,116059.54730269297,-23.621445447513711,3.8602949980362178,21.181265474990575,3.9980792650205821,1.0849804290942178,2.6080612131872183,0.13015521793844353,{"$f":"IF('[1]MONE(M)CAPARD'!GS362=\"\",\"\",'[1]MONE(M)CAPARD'!GS362)","v":24865.190914569874},{"$f":"IF('[1]MONE(M)CARD'!HA362=\"\",\"\",'[1]MONE(M)CAPARD'!HA362)","v":14223.346478075444},{"$f":"IF('[1]MONE(M)CAPARD'!HB362=\"\",\"\",'[1]MONE(M)CAPARD'!HB362)","v":10641.84443649443},"n.d.",{"$f":"IF('[10]II.2.Balance OSD-Activos'!J220=\"\",\"\",'[10]II.2.Balance OSD-Activos'!J220)","v":2371.3769776403115},{"$f":"IF('[10]II.2.Balance OSD-Activos'!N220=\"\",\"\",'[10]II.2.Balance OSD-Activos'!N220)","v":1910.3491503558089},{"$f":"IF('[10]II.2.Balance OSD-Activos'!R220=\"\",\"\",'[10]II.2.Balance OSD-Activos'!R220)","v":78756.376939718932},{"$f":"IF('[10]II.2.Balance OSD-Activos'!S220=\"\",\"\",'[10]II.2.Balance OSD-Activos'!S220)","v":84477.271716077899},81127.753917359238,167515.37478379294,-5.5716559649164772,2.2128022112028578,5.3396412150858552,2.4671485773756219,2.4840521336137122,2.3841170423394509,-0.17674839647157103,{"$f":"IF('[1]MONE(M)CAPARD'!AS362=\"\",\"\",'[1]MONE(M)CAPARD'!AS362)","v":4.75},{"$f":"IF('[1]MONE(M)CAPARD'!AT362=\"\",\"\",'[1]MONE(M)CAPARD'!AT362)","v":"n.a."},{"$f":"IF('[1]MONE(M)CAPARD'!AU362=\"\",\"\",'[1]MONE(M)CAPARD'!AU362)","v":2.75},{"$f":"IF('[1]MONE(M)CAPARD'!AV362=\"\",\"\",'[1]MONE(M)CAPARD'!AV362)","v":5.75},{"$f":"IF('[1]MONE(M)CAPARD'!AW362=\"\",\"\",'[1]MONE(M)CAPARD'!AW362)","v":"n.a."},{"$f":"IF('[1]MONE(M)CAPARD'!AX362=\"\",\"\",'[1]MONE(M)CAPARD'!AX362)","v":5.5},{"$f":"IF('[1]MONE(M)CAPARD'!AY362=\"\",\"\",'[1]MONE(M)CAPARD'!AY362)","v":"n.a."},null,null,null,null,null,null,null,null,{"$f":"IF('[2]MONE(M)'!$AO362=\"\",\"\",'[2]MONE(M)'!$AO362)","v":22177952.108311653},{"$f":"IF('[3]MONE(M)'!$AO362=\"\",\"\",'[3]MONE(M)'!$AO362)","v":13252.17411038},{"$f":"IF('[4]MONE(M)'!$AO362=\"\",\"\",'[4]MONE(M)'!$AO362)","v":208256.80610456504},{"$f":"IF('[5]MONE(M)'!$AO362=\"\",\"\",'[5]MONE(M)'!$AO362)","v":365921.34110407246},{"$f":"IF('[6]MONE(M)'!$AO362=\"\",\"\",'[6]MONE(M)'!$AO362)","v":131473.27400348475},{"$f":"IF('[7]MONE(M)'!$AO362=\"\",\"\",'[7]MONE(M)'!$AO362)","v":1167583.84940597},{"$f":"IF('[8]MONE(M)'!$AO362=\"\",\"\",'[8]MONE(M)'!$AO362)","v":52403.962509809993},3.674092434454268,6.3246876223030046,4.6913092802999712,13.062812153871196,-21.287370857682063,10.507622752360945,2.1178469732963334,null,{"$f":"+'[1]REAL(A)'!$AO$39","v":288631.53325079131},"",null,{"$f":"+'[1]REAL(A)'!$AP$39","v":359201.53325079131},null,158334.46674866893,{"$f":"'[1]Gráfico REM'!BG356","v":29043.988645429614},{"$f":"'[1]Gráfico REM'!BH356","v":120247.52991254536},{"$f":"'[1]Gráfico REM'!BI356","v":9042.9481906939582},3.154100310084984,6.4113885685967986,2.5338374247128925,1.3427736643026877,235309.61294774892,{"$f":"'[1]Gráfico REM'!BK356","v":31635.422195819614},{"$f":"'[1]Gráfico REM'!BL356","v":172651.49242235534},{"$f":"'[1]Gráfico REM'!BM356","v":31022.698329573959},3.0284022322860649,7.1368066943641173,2.4072163299922122,2.4805138800283011]
[2019,"junio ","2019-junio ",{"$f":"IF('[1]REAL IPC(M)'!$AL363=\"\",\"\",+'[1]REAL IPC(M)'!$AL363)","v":2.7841812586450354},{"$f":"IF('[1]REAL IPC(M)'!$BE363=\"\",\"\",+'[1]REAL IPC(M)'!$BE363)","v":3.0844680041088202},{"$f":"IF('[1]REAL IPC(M)'!$AM363=\"\",\"\",+'[1]REAL IPC(M)'!$AM363)","v":2.622890972101577},{"$f":"IF('[1]REAL IPC(M)'!$BI363=\"\",\"\",+'[1]REAL IPC(M)'!$BI363)","v":2.8553403010692202},{"$f":"IF('[1]REAL IMAE(M)'!BJ363=\"\",\"\",'[1]REAL IMAE(M)'!BJ363)","v":2.9545577914139809},{"$f":"IF('[1]REAL IMAE(M)'!BK363=\"\",\"\",'[1]REAL IMAE(M)'!BK363)","v":3.620703403954173},{"$f":"IF('[1]REAL IMAE(M)'!BN363=\"\",\"\",'[1]REAL IMAE(M)'!BN363)","v":3.0485010139215118},{"$f":"IF('[1]REAL IMAE(M)'!BO363=\"\",\"\",'[1]REAL IMAE(M)'!BO363)","v":3.5955781841126022},{"$f":"IF('[1]EXT RIN(M)'!$K363=\"\",\"\",'[1]EXT RIN(M)'!$K363)","v":41583.267500000002},null,{"$f":"IF('[1]EXT RIN(M)'!$L363=\"\",\"\",'[1]EXT RIN(M)'!$L363)","v":44508.043855110001},null,{"$f":"IF('[1]MONE(M)CARD'!EG363=\"\",\"\",'[1]MONE(M)CARD'!EG363)","v":38000.660230616326},{"$f":"IF('[1]MONE(M)CARD'!EK363=\"\",\"\",'[1]MONE(M)CARD'!EK363)","v":59361.410962944545},{"$f":"IF('[1]MONE(M)CARD'!EP363=\"\",\"\",'[1]MONE(M)CARD'!EP363)","v":31176.499725980728},{"$f":"IF('[1]MONE(M)CARD'!ES363=\"\",\"\",'[1]MONE(M)CARD'!ES363)","v":4.7864492398293823},{"$f":"IF('[1]MONE(M)CARD'!EV363=\"\",\"\",'[1]MONE(M)CARD'!EV363)","v":4.0904859023000784},{"$f":"IF('[1]MONE(M)CARD'!EZ363=\"\",\"\",'[1]MONE(M)CARD'!EZ363)","v":3.1944962858426518},{"$f":"IF('[1]MONE(M)CAPARD'!FC363=\"\",\"\",'[1]MONE(M)CAPARD'!FC363)","v":45864.306316316317},{"$f":"IF('[1]MONE(M)CAPARD'!FG363=\"\",\"\",'[1]MONE(M)CAPARD'!FG363)","v":92707.041926544553},{"$f":"IF('[1]MONE(M)CAPARD'!FL363=\"\",\"\",'[1]MONE(M)CAPARD'!FL363)","v":31176.499725980742},{"$f":"IF('[1]MONE(M)CAPARD'!FO363=\"\",\"\",'[1]MONE(M)CAPARD'!FO363)","v":3.3144983670076567},{"$f":"IF('[1]MONE(M)CAPARD'!FR363=\"\",\"\",'[1]MONE(M)CAPARD'!FR363)","v":3.5643812793926477},{"$f":"IF('[1]MONE(M)CAPARD'!FV363=\"\",\"\",'[1]MONE(M)CAPARD'!FV363)","v":2.9863012731560223},{"$f":"IF('[1]MONE(M)CARD'!FV363=\"\",\"\",'[1]MONE(M)CARD'!FV363)","v":1800.6352292219281},{"$f":"IF('[1]MONE(M)CARD'!GD363=\"\",\"\",'[1]MONE(M)CARD'!GD363)","v":161.55470264640368},{"$f":"IF('[1]MONE(M)CARD'!GE363=\"\",\"\",'[1]MONE(M)CARD'!GE363)","v":12770.686796896856},11.184658629261923,{"$f":"IF('[9]II.2.Balance OSD-Activos'!J221=\"\",\"\",'[9]II.2.Balance OSD-Activos'!J221)","v":212.36601319347753},{"$f":"IF('[9]II.2.Balance OSD-Activos'!N221=\"\",\"\",'[9]II.2.Balance OSD-Activos'!N221)","v":1463.1102371869915},{"$f":"IF('[9]II.2.Balance OSD-Activos'!R221=\"\",\"\",'[9]II.2.Balance OSD-Activos'!R221)","v":55078.099910641613},{"$f":"IF('[9]II.2.Balance OSD-Activos'!S221=\"\",\"\",'[9]II.2.Balance OSD-Activos'!S221)","v":60078.264356661697},55290.465923835087,116831.84051768377,-20.800361358904595,1.9062013086333929,-6.5661753766909969,2.0189769287620063,3.6919320891894092,2.6990595457168975,9.099833252967926E-2,{"$f":"IF('[1]MONE(M)CAPARD'!GS363=\"\",\"\",'[1]MONE(M)CAPARD'!GS363)","v":24500.614903380832},{"$f":"IF('[1]MONE(M)CARD'!HA363=\"\",\"\",'[1]MONE(M)CAPARD'!HA363)","v":14827.810945756857},{"$f":"IF('[1]MONE(M)CAPARD'!HB363=\"\",\"\",'[1]MONE(M)CAPARD'!HB363)","v":9672.8039576239753},"n.d.",{"$f":"IF('[10]II.2.Balance OSD-Activos'!J221=\"\",\"\",'[10]II.2.Balance OSD-Activos'!J221)","v":2397.1949721534775},{"$f":"IF('[10]II.2.Balance OSD-Activos'!N221=\"\",\"\",'[10]II.2.Balance OSD-Activos'!N221)","v":1855.2589713169914},{"$f":"IF('[10]II.2.Balance OSD-Activos'!R221=\"\",\"\",'[10]II.2.Balance OSD-Activos'!R221)","v":78814.401219151623},{"$f":"IF('[10]II.2.Balance OSD-Activos'!S221=\"\",\"\",'[10]II.2.Balance OSD-Activos'!S221)","v":85418.565438201709},81211.5961913051,168485.4206008238,-5.658397175545038,1.0815160046525163,-11.690410989242682,1.3016389429351127,4.326392760407094,2.5350621095034054,0.1509450671639545,{"$f":"IF('[1]MONE(M)CAPARD'!AS363=\"\",\"\",'[1]MONE(M)CAPARD'!AS363)","v":4.5},{"$f":"IF('[1]MONE(M)CAPARD'!AT363=\"\",\"\",'[1]MONE(M)CAPARD'!AT363)","v":"n.a."},{"$f":"IF('[1]MONE(M)CAPARD'!AU363=\"\",\"\",'[1]MONE(M)CAPARD'!AU363)","v":2.75},{"$f":"IF('[1]MONE(M)CAPARD'!AV363=\"\",\"\",'[1]MONE(M)CAPARD'!AV363)","v":5.75},{"$f":"IF('[1]MONE(M)CAPARD'!AW363=\"\",\"\",'[1]MONE(M)CAPARD'!AW363)","v":"n.a."},{"$f":"IF('[1]MONE(M)CAPARD'!AX363=\"\",\"\",'[1]MONE(M)CAPARD'!AX363)","v":5.5},{"$f":"IF('[1]MONE(M)CAPARD'!AY363=\"\",\"\",'[1]MONE(M)CAPARD'!AY363)","v":"n.a."},null,null,null,null,null,null,null,null,{"$f":"IF('[2]MONE(M)'!$AO363=\"\",\"\",'[2]MONE(M)'!$AO363)","v":22120343.902044695},{"$f":"IF('[3]MONE(M)'!$AO363=\"\",\"\",'[3]MONE(M)'!$AO363)","v":13321.032898480002},{"$f":"IF('[4]MONE(M)'!$AO363=\"\",\"\",'[4]MONE(M)'!$AO363)","v":209043.58933239366},{"$f":"IF('[5]MONE(M)'!$AO363=\"\",\"\",'[5]MONE(M)'!$AO363)","v":367333.93281539},{"$f":"IF('[6]MONE(M)'!$AO363=\"\",\"\",'[6]MONE(M)'!$AO363)","v":130421.74285146568},{"$f":"IF('[7]MONE(M)'!$AO363=\"\",\"\",'[7]MONE(M)'!$AO363)","v":1184908.3448854799},{"$f":"IF('[8]MONE(M)'!$AO363=\"\",\"\",'[8]MONE(M)'!$AO363)","v":52638.698963910007},2.9698988941816218,6.3283358160112435,4.8964310664277644,12.768091832154305,-20.463949156029415,11.566818064585217,2.3063344060075819,null,{"$f":"+'[1]REAL(A)'!$AO$39","v":288631.53325079131},"",null,{"$f":"+'[1]REAL(A)'!$AP$39","v":359201.53325079131},null,{"$f":"+IF(OR(CT356=\"\",+CU356=\"\",+CV356=\"\"),\"\",(CT356+CU356+CV356))","v":159402.41106602349},{"$f":"'[1]Gráfico REM'!BG357","v":29256.081499014177},{"$f":"'[1]Gráfico REM'!BH357","v":121092.99554820996},{"$f":"'[1]Gráfico REM'!BI357","v":9053.334018799349},{"$f":"IFERROR(+((CS356/CS344)-1)*100,\"\")","v":3.1375600554538252},{"$f":"IFERROR(+((CT356/CT344)-1)*100,\"\")","v":5.8887479497147233},{"$f":"IFERROR(+((CU356/CU344)-1)*100,\"\")","v":3.0092840870940663},{"$f":"IFERROR(+((CV356/CV344)-1)*100,\"\")","v":-3.3663442977638125},235896.57176981351,{"$f":"'[1]Gráfico REM'!BK357","v":31495.361768924176},{"$f":"'[1]Gráfico REM'!BL357","v":173731.69451211998},{"$f":"'[1]Gráfico REM'!BM357","v":30669.515488769353},2.7535506352285077,6.2740920318986371,2.7952805355048849,-0.84752675029639013]
[2019,"julio","2019-julio",{"$f":"IF('[1]REAL IPC(M)'!$AL364=\"\",\"\",+'[1]REAL IPC(M)'!$AL364)","v":2.9882492905281444},{"$f":"IF('[1]REAL IPC(M)'!$BE364=\"\",\"\",+'[1]REAL IPC(M)'!$BE364)","v":3.0793109894900361},{"$f":"IF('[1]REAL IPC(M)'!$AM364=\"\",\"\",+'[1]REAL IPC(M)'!$AM364)","v":2.8307158855203296},{"$f":"IF('[1]REAL IPC(M)'!$BI364=\"\",\"\",+'[1]REAL IPC(M)'!$BI364)","v":2.8501058888306785},{"$f":"IF('[1]REAL IMAE(M)'!BJ364=\"\",\"\",'[1]REAL IMAE(M)'!BJ364)","v":3.1115953894416348},{"$f":"IF('[1]REAL IMAE(M)'!BK364=\"\",\"\",'[1]REAL IMAE(M)'!BK364)","v":3.602535017190589},{"$f":"IF('[1]REAL IMAE(M)'!BN364=\"\",\"\",'[1]REAL IMAE(M)'!BN364)","v":3.2144411404321449},{"$f":"IF('[1]REAL IMAE(M)'!BO364=\"\",\"\",'[1]REAL IMAE(M)'!BO364)","v":3.5763598016287812},{"$f":"IF('[1]EXT RIN(M)'!$K364=\"\",\"\",'[1]EXT RIN(M)'!$K364)","v":41214.343083205807},null,{"$f":"IF('[1]EXT RIN(M)'!$L364=\"\",\"\",'[1]EXT RIN(M)'!$L364)","v":45115.242480805806},null,{"$f":"IF('[1]MONE(M)CARD'!EG364=\"\",\"\",'[1]MONE(M)CARD'!EG364)","v":38736.106420903961},{"$f":"IF('[1]MONE(M)CARD'!EK364=\"\",\"\",'[1]MONE(M)CARD'!EK364)","v":59507.174197444096},{"$f":"IF('[1]MONE(M)CARD'!EP364=\"\",\"\",'[1]MONE(M)CARD'!EP364)","v":31434.404617308333},{"$f":"IF('[1]MONE(M)CARD'!ES364=\"\",\"\",'[1]MONE(M)CARD'!ES364)","v":6.8233491814324587},{"$f":"IF('[1]MONE(M)CARD'!EV364=\"\",\"\",'[1]MONE(M)CARD'!EV364)","v":5.1718300528438954},{"$f":"IF('[1]MONE(M)CARD'!EZ364=\"\",\"\",'[1]MONE(M)CARD'!EZ364)","v":4.2546490911031354},{"$f":"IF('[1]MONE(M)CAPARD'!FC364=\"\",\"\",'[1]MONE(M)CAPARD'!FC364)","v":46536.650297573957},{"$f":"IF('[1]MONE(M)CAPARD'!FG364=\"\",\"\",'[1]MONE(M)CAPARD'!FG364)","v":92864.833177064094},{"$f":"IF('[1]MONE(M)CAPARD'!FL364=\"\",\"\",'[1]MONE(M)CAPARD'!FL364)","v":31434.404617308348},{"$f":"IF('[1]MONE(M)CAPARD'!FO364=\"\",\"\",'[1]MONE(M)CAPARD'!FO364)","v":5.1810434241783332},{"$f":"IF('[1]MONE(M)CAPARD'!FR364=\"\",\"\",'[1]MONE(M)CAPARD'!FR364)","v":4.3899490133800567},{"$f":"IF('[1]MONE(M)CAPARD'!FV364=\"\",\"\",'[1]MONE(M)CAPARD'!FV364)","v":3.8436894329083593},{"$f":"IF('[1]MONE(M)CARD'!FV364=\"\",\"\",'[1]MONE(M)CARD'!FV364)","v":1822.0886150582905},{"$f":"IF('[1]MONE(M)CARD'!GD364=\"\",\"\",'[1]MONE(M)CARD'!GD364)","v":113.03075121660412},{"$f":"IF('[1]MONE(M)CARD'!GE364=\"\",\"\",'[1]MONE(M)CARD'!GE364)","v":13268.010052898575},{"$f":"IF(AD357=\"\",\"\",((AD357/AD344)-1)*100)","v":16.629559057341091},{"$f":"IF('[9]II.2.Balance OSD-Activos'!J222=\"\",\"\",'[9]II.2.Balance OSD-Activos'!J222)","v":222.46692785910304},{"$f":"IF('[9]II.2.Balance OSD-Activos'!N222=\"\",\"\",'[9]II.2.Balance OSD-Activos'!N222)","v":1300.9964042443053},{"$f":"IF('[9]II.2.Balance OSD-Activos'!R222=\"\",\"\",'[9]II.2.Balance OSD-Activos'!R222)","v":54468.299735248278},{"$f":"IF('[9]II.2.Balance OSD-Activos'!S222=\"\",\"\",'[9]II.2.Balance OSD-Activos'!S222)","v":61231.396157980402},{"$f":"IFERROR(+AF357+AH357,\"\")","v":54690.766663107381},117223.15922533209,-18.033184439539973,{"$f":"IF(OR(AJ357=\"\",AJ345=\"\"),\"\",((AJ357/AJ345)-1)*100)","v":0.66495092823461999},{"$f":"IF(OR(AG357=\"\",AG345=\"\"),\"\",((AG357/AG345)-1)*100)","v":-15.793712261949789},{"$f":"IF(OR(AH357=\"\",AH345=\"\"),\"\",((AH357/AH345)-1)*100)","v":0.75882917878919987},{"$f":"IF(OR(AI357=\"\",AI345=\"\"),\"\",((AI357/AI345)-1)*100)","v":5.1320528024943135},{"$f":"IF(OR(AK357=\"\",AK345=\"\"),\"\",((AK357/AK345)-1)*100)","v":2.7220153276709347},{"$f":"IF(OR(AQ357=\"\",AQ356=\"\"),\"\",AQ357-AQ356)","v":2.2955781954037136E-2},{"$f":"IF('[1]MONE(M)CAPARD'!GS364=\"\",\"\",'[1]MONE(M)CAPARD'!GS364)","v":24628.91186850442},{"$f":"IF('[1]MONE(M)CARD'!HA364=\"\",\"\",'[1]MONE(M)CAPARD'!HA364)","v":15746.070017258578},{"$f":"IF('[1]MONE(M)CAPARD'!HB364=\"\",\"\",'[1]MONE(M)CAPARD'!HB364)","v":8882.8418512458411},"n.d.",{"$f":"IF('[10]II.2.Balance OSD-Activos'!J222=\"\",\"\",'[10]II.2.Balance OSD-Activos'!J222)","v":2389.4524048691032},{"$f":"IF('[10]II.2.Balance OSD-Activos'!N222=\"\",\"\",'[10]II.2.Balance OSD-Activos'!N222)","v":1674.6077651543055},{"$f":"IF('[10]II.2.Balance OSD-Activos'!R222=\"\",\"\",'[10]II.2.Balance OSD-Activos'!R222)","v":78102.860839908273},{"$f":"IF('[10]II.2.Balance OSD-Activos'!S222=\"\",\"\",'[10]II.2.Balance OSD-Activos'!S222)","v":86684.727566540387},{"$f":"IFERROR(+AW357+AY357,\"\")","v":80492.313244777382},{"$f":"IF(OR(AW357=\"\",AX357=\"\",AY357=\"\",AZ357=\"\"),\"\",SUM(AW357:AZ357))","v":168851.64857647207},{"$f":"IF(OR(AW357=\"\",AW345=\"\"),\"\",((AW357/AW345)-1)*100)","v":-4.6207328282439235},{"$f":"IF(OR(BA357=\"\",BA345=\"\"),\"\",((BA357/BA345)-1)*100)","v":-5.3701754369839261E-2},{"$f":"IF(OR(AX357=\"\",AX345=\"\"),\"\",((AX357/AX345)-1)*100)","v":-18.594979088851936},{"$f":"IF(OR(AY357=\"\",AY345=\"\"),\"\",((AY357/AY345)-1)*100)","v":9.2925536546850651E-2},{"$f":"IF(OR(AZ357=\"\",AZ345=\"\"),\"\",((AZ357/AZ345)-1)*100)","v":5.3572148007352549},{"$f":"IF(OR(BB357=\"\",BB345=\"\"),\"\",((BB357/BB345)-1)*100)","v":2.4152303013586618},{"$f":"IF(OR(BH357=\"\",BH356=\"\"),\"\",BH357-BH356)","v":-0.11983180814474359},{"$f":"IF('[1]MONE(M)CAPARD'!AS364=\"\",\"\",'[1]MONE(M)CAPARD'!AS364)","v":4},{"$f":"IF('[1]MONE(M)CAPARD'!AT364=\"\",\"\",'[1]MONE(M)CAPARD'!AT364)","v":"n.a."},{"$f":"IF('[1]MONE(M)CAPARD'!AU364=\"\",\"\",'[1]MONE(M)CAPARD'!AU364)","v":2.75},{"$f":"IF('[1]MONE(M)CAPARD'!AV364=\"\",\"\",'[1]MONE(M)CAPARD'!AV364)","v":5.75},{"$f":"IF('[1]MONE(M)CAPARD'!AW364=\"\",\"\",'[1]MONE(M)CAPARD'!AW364)","v":"n.a."},{"$f":"IF('[1]MONE(M)CAPARD'!AX364=\"\",\"\",'[1]MONE(M)CAPARD'!AX364)","v":5},{"$f":"IF('[1]MONE(M)CAPARD'!AY364=\"\",\"\",'[1]MONE(M)CAPARD'!AY364)","v":"n.a."},null,null,null,null,null,null,null,null,{"$f":"IF('[2]MONE(M)'!$AO364=\"\",\"\",'[2]MONE(M)'!$AO364)","v":21992169.347692281},{"$f":"IF('[3]MONE(M)'!$AO364=\"\",\"\",'[3]MONE(M)'!$AO364)","v":13367.337542109999},{"$f":"IF('[4]MONE(M)'!$AO364=\"\",\"\",'[4]MONE(M)'!$AO364)","v":208900.21952130328},{"$f":"IF('[5]MONE(M)'!$AO364=\"\",\"\",'[5]MONE(M)'!$AO364)","v":368431.37437558349},{"$f":"IF('[6]MONE(M)'!$AO364=\"\",\"\",'[6]MONE(M)'!$AO364)","v":126893.60545700815},{"$f":"IF('[7]MONE(M)'!$AO364=\"\",\"\",'[7]MONE(M)'!$AO364)","v":1193446.5880739898},{"$f":"IF('[8]MONE(M)'!$AO364=\"\",\"\",'[8]MONE(M)'!$AO364)","v":52668.000938389996},{"$f":"IF(BY357=\"\",\"\",((BY357/BY345)-1)*100)","v":2.0628879331394456},{"$f":"IF(BZ357=\"\",\"\",((BZ357/BZ345)-1)*100)","v":5.8274132617423868},{"$f":"IF(CA357=\"\",\"\",((CA357/CA345)-1)*100)","v":4.996561155758239},{"$f":"IF(CB357=\"\",\"\",((CB357/CB345)-1)*100)","v":12.031426252513256},{"$f":"IF(CC357=\"\",\"\",((CC357/CC345)-1)*100)","v":-21.173511787386467},{"$f":"IF(CD357=\"\",\"\",((CD357/CD345)-1)*100)","v":11.493495778088336},{"$f":"IF(CE357=\"\",\"\",((CE357/CE345)-1)*100)","v":1.9793777796590195},null,{"$f":"+'[1]REAL(A)'!$AO$39","v":288631.53325079131},"",null,{"$f":"+'[1]REAL(A)'!$AP$39","v":359201.53325079131},null,{"$f":"+IF(OR(CT357=\"\",+CU357=\"\",+CV357=\"\"),\"\",(CT357+CU357+CV357))","v":160132.75210513588},{"$f":"'[1]Gráfico REM'!BG358","v":29575.096089734106},{"$f":"'[1]Gráfico REM'!BH358","v":121625.75910233332},{"$f":"'[1]Gráfico REM'!BI358","v":8931.8969130684418},{"$f":"IFERROR(+((CS357/CS345)-1)*100,\"\")","v":3.2497883945872941},{"$f":"IFERROR(+((CT357/CT345)-1)*100,\"\")","v":6.5024999502658387},{"$f":"IFERROR(+((CU357/CU345)-1)*100,\"\")","v":3.2204000213704065},{"$f":"IFERROR(+((CV357/CV345)-1)*100,\"\")","v":-5.9013340317552458},{"$f":"+IF(OR(DB357=\"\",+DC357=\"\",+DD357=\"\"),\"\",(DB357+DC357+DD357))","v":236571.69068574585},{"$f":"'[1]Gráfico REM'!BK358","v":31850.084550744108},{"$f":"'[1]Gráfico REM'!BL358","v":174293.76004072331},{"$f":"'[1]Gráfico REM'!BM358","v":30427.84609427844},{"$f":"IFERROR(+((DA357/DA345)-1)*100,\"\")","v":2.748512237903511},{"$f":"IFERROR(+((DB357/DB345)-1)*100,\"\")","v":6.8686874868721937},{"$f":"IFERROR(+((DC357/DC345)-1)*100,\"\")","v":2.842215606697307},{"$f":"IFERROR(+((DD357/DD345)-1)*100,\"\")","v":-1.7301140562790529}]
[2019,"agosto","2019-agosto",{"$f":"IF('[1]REAL IPC(M)'!$AL365=\"\",\"\",+'[1]REAL IPC(M)'!$AL365)","v":2.7884451235084207},{"$f":"IF('[1]REAL IPC(M)'!$BE365=\"\",\"\",+'[1]REAL IPC(M)'!$BE365)","v":3.0737248126426753},{"$f":"IF('[1]REAL IPC(M)'!$AM365=\"\",\"\",+'[1]REAL IPC(M)'!$AM365)","v":2.6242411294888246},{"$f":"IF('[1]REAL IPC(M)'!$BI365=\"\",\"\",+'[1]REAL IPC(M)'!$BI365)","v":2.8446733841898331},{"$f":"IF('[1]REAL IMAE(M)'!BJ365=\"\",\"\",'[1]REAL IMAE(M)'!BJ365)","v":3.3359918094545193},{"$f":"IF('[1]REAL IMAE(M)'!BK365=\"\",\"\",'[1]REAL IMAE(M)'!BK365)","v":3.5857639142305553},{"$f":"IF('[1]REAL IMAE(M)'!BN365=\"\",\"\",'[1]REAL IMAE(M)'!BN365)","v":3.3831652581451932},{"$f":"IF('[1]REAL IMAE(M)'!BO365=\"\",\"\",'[1]REAL IMAE(M)'!BO365)","v":3.558687322026266},{"$f":"IF('[1]EXT RIN(M)'!$K365=\"\",\"\",'[1]EXT RIN(M)'!$K365)","v":41942.403514983831},null,{"$f":"IF('[1]EXT RIN(M)'!$L365=\"\",\"\",'[1]EXT RIN(M)'!$L365)","v":45875.513514983832},null,{"$f":"IF('[1]MONE(M)CARD'!EG365=\"\",\"\",'[1]MONE(M)CARD'!EG365)","v":38731.14320355645},{"$f":"IF('[1]MONE(M)CARD'!EK365=\"\",\"\",'[1]MONE(M)CARD'!EK365)","v":59831.405378614421},{"$f":"IF('[1]MONE(M)CARD'!EP365=\"\",\"\",'[1]MONE(M)CARD'!EP365)","v":31730.761100825912},{"$f":"IF('[1]MONE(M)CARD'!ES365=\"\",\"\",'[1]MONE(M)CARD'!ES365)","v":8.2175931803718072},{"$f":"IF('[1]MONE(M)CARD'!EV365=\"\",\"\",'[1]MONE(M)CARD'!EV365)","v":6.1711349273678495},{"$f":"IF('[1]MONE(M)CARD'!EZ365=\"\",\"\",'[1]MONE(M)CARD'!EZ365)","v":5.1767336190821078},{"$f":"IF('[1]MONE(M)CAPARD'!FC365=\"\",\"\",'[1]MONE(M)CAPARD'!FC365)","v":46600.853203556449},{"$f":"IF('[1]MONE(M)CAPARD'!FG365=\"\",\"\",'[1]MONE(M)CAPARD'!FG365)","v":93424.945378614415},{"$f":"IF('[1]MONE(M)CAPARD'!FL365=\"\",\"\",'[1]MONE(M)CAPARD'!FL365)","v":31730.761100825912},{"$f":"IF('[1]MONE(M)CAPARD'!FO365=\"\",\"\",'[1]MONE(M)CAPARD'!FO365)","v":6.5267111710850756},{"$f":"IF('[1]MONE(M)CAPARD'!FR365=\"\",\"\",'[1]MONE(M)CAPARD'!FR365)","v":5.1176167588529164},{"$f":"IF('[1]MONE(M)CAPARD'!FV365=\"\",\"\",'[1]MONE(M)CAPARD'!FV365)","v":4.5667761962642661},{"$f":"IF('[1]MONE(M)CARD'!FV365=\"\",\"\",'[1]MONE(M)CARD'!FV365)","v":1782.4344535429323},{"$f":"IF('[1]MONE(M)CARD'!GD365=\"\",\"\",'[1]MONE(M)CARD'!GD365)","v":129.33401954474954},{"$f":"IF('[1]MONE(M)CARD'!GE365=\"\",\"\",'[1]MONE(M)CARD'!GE365)","v":13136.135169774694},{"$f":"IF(AD358=\"\",\"\",((AD358/AD345)-1)*100)","v":11.820677867959905},{"$f":"IF('[9]II.2.Balance OSD-Activos'!J223=\"\",\"\",'[9]II.2.Balance OSD-Activos'!J223)","v":223.05854508039761},{"$f":"IF('[9]II.2.Balance OSD-Activos'!N223=\"\",\"\",'[9]II.2.Balance OSD-Activos'!N223)","v":1171.4240568098676},{"$f":"IF('[9]II.2.Balance OSD-Activos'!R223=\"\",\"\",'[9]II.2.Balance OSD-Activos'!R223)","v":54510.69690439156},{"$f":"IF('[9]II.2.Balance OSD-Activos'!S223=\"\",\"\",'[9]II.2.Balance OSD-Activos'!S223)","v":61475.463793814772},{"$f":"IFERROR(+AF358+AH358,\"\")","v":54733.755449471959},117380.64330009659,-19.70629394210124,{"$f":"IF(OR(AJ358=\"\",AJ346=\"\"),\"\",((AJ358/AJ346)-1)*100)","v":0.87461562749322486},{"$f":"IF(OR(AG358=\"\",AG346=\"\"),\"\",((AG358/AG346)-1)*100)","v":-24.088474436820995},{"$f":"IF(OR(AH358=\"\",AH346=\"\"),\"\",((AH358/AH346)-1)*100)","v":0.98053071765180633},{"$f":"IF(OR(AI358=\"\",AI346=\"\"),\"\",((AI358/AI346)-1)*100)","v":5.1595971822885556},{"$f":"IF(OR(AK358=\"\",AK346=\"\"),\"\",((AK358/AK346)-1)*100)","v":2.7297889856703783},{"$f":"IF(OR(AQ358=\"\",AQ357=\"\"),\"\",AQ358-AQ357)","v":7.7736579994436283E-3},{"$f":"IF('[1]MONE(M)CAPARD'!GS365=\"\",\"\",'[1]MONE(M)CAPARD'!GS365)","v":24591.679419880951},{"$f":"IF('[1]MONE(M)CARD'!HA365=\"\",\"\",'[1]MONE(M)CAPARD'!HA365)","v":15588.975169774694},{"$f":"IF('[1]MONE(M)CAPARD'!HB365=\"\",\"\",'[1]MONE(M)CAPARD'!HB365)","v":9002.7042501062569},"n.d.",{"$f":"IF('[10]II.2.Balance OSD-Activos'!J223=\"\",\"\",'[10]II.2.Balance OSD-Activos'!J223)","v":2420.5785450803978},{"$f":"IF('[10]II.2.Balance OSD-Activos'!N223=\"\",\"\",'[10]II.2.Balance OSD-Activos'!N223)","v":1652.9540568098676},{"$f":"IF('[10]II.2.Balance OSD-Activos'!R223=\"\",\"\",'[10]II.2.Balance OSD-Activos'!R223)","v":78306.896904391557},{"$f":"IF('[10]II.2.Balance OSD-Activos'!S223=\"\",\"\",'[10]II.2.Balance OSD-Activos'!S223)","v":87086.193793814775},80727.475449471953,169466.6233000966,-4.05581044168194,9.5140521116277021E-2,-19.366708132180634,0.22918294712406251,5.3987463327153318,2.5044188293983138,8.9188528039652049E-2,{"$f":"IF('[1]MONE(M)CAPARD'!AS365=\"\",\"\",'[1]MONE(M)CAPARD'!AS365)","v":4},{"$f":"IF('[1]MONE(M)CAPARD'!AT365=\"\",\"\",'[1]MONE(M)CAPARD'!AT365)","v":"n.a."},{"$f":"IF('[1]MONE(M)CAPARD'!AU365=\"\",\"\",'[1]MONE(M)CAPARD'!AU365)","v":2.75},{"$f":"IF('[1]MONE(M)CAPARD'!AV365=\"\",\"\",'[1]MONE(M)CAPARD'!AV365)","v":5.75},{"$f":"IF('[1]MONE(M)CAPARD'!AW365=\"\",\"\",'[1]MONE(M)CAPARD'!AW365)","v":"n.a."},{"$f":"IF('[1]MONE(M)CAPARD'!AX365=\"\",\"\",'[1]MONE(M)CAPARD'!AX365)","v":4.75},{"$f":"IF('[1]MONE(M)CAPARD'!AY365=\"\",\"\",'[1]MONE(M)CAPARD'!AY365)","v":"n.a."},null,null,null,null,null,null,null,null,{"$f":"IF('[2]MONE(M)'!$AO365=\"\",\"\",'[2]MONE(M)'!$AO365)","v":22021032.895090982},{"$f":"IF('[3]MONE(M)'!$AO365=\"\",\"\",'[3]MONE(M)'!$AO365)","v":13418.38973196},{"$f":"IF('[4]MONE(M)'!$AO365=\"\",\"\",'[4]MONE(M)'!$AO365)","v":209601.34232143371},{"$f":"IF('[5]MONE(M)'!$AO365=\"\",\"\",'[5]MONE(M)'!$AO365)","v":370547.69868757483},{"$f":"IF('[6]MONE(M)'!$AO365=\"\",\"\",'[6]MONE(M)'!$AO365)","v":125941.03436514412},{"$f":"IF('[7]MONE(M)'!$AO365=\"\",\"\",'[7]MONE(M)'!$AO365)","v":1203791.1929849698},{"$f":"IF('[8]MONE(M)'!$AO365=\"\",\"\",'[8]MONE(M)'!$AO365)","v":53008.53},{"$f":"IF(BY358=\"\",\"\",((BY358/BY346)-1)*100)","v":1.4694272732932001},{"$f":"IF(BZ358=\"\",\"\",((BZ358/BZ346)-1)*100)","v":5.3915697876274038},{"$f":"IF(CA358=\"\",\"\",((CA358/CA346)-1)*100)","v":4.9134014922360469},{"$f":"IF(CB358=\"\",\"\",((CB358/CB346)-1)*100)","v":10.795985499771454},{"$f":"IF(CC358=\"\",\"\",((CC358/CC346)-1)*100)","v":-20.784645675963354},{"$f":"IF(CD358=\"\",\"\",((CD358/CD346)-1)*100)","v":11.316231234616181},{"$f":"IF(CE358=\"\",\"\",((CE358/CE346)-1)*100)","v":1.9732741997083414},null,{"$f":"+'[1]REAL(A)'!$AO$39","v":288631.53325079131},"",null,{"$f":"+'[1]REAL(A)'!$AP$39","v":359201.53325079131},null,{"$f":"+IF(OR(CT358=\"\",+CU358=\"\",+CV358=\"\"),\"\",(CT358+CU358+CV358))","v":160647.82116276948},{"$f":"'[1]Gráfico REM'!BG359","v":29701.894072079744},{"$f":"'[1]Gráfico REM'!BH359","v":121869.22387160503},{"$f":"'[1]Gráfico REM'!BI359","v":9076.7032190847112},{"$f":"IFERROR(+((CS358/CS346)-1)*100,\"\")","v":4.082847287287561},{"$f":"IFERROR(+((CT358/CT346)-1)*100,\"\")","v":7.970998009016772},{"$f":"IFERROR(+((CU358/CU346)-1)*100,\"\")","v":3.3417062274990972},{"$f":"IFERROR(+((CV358/CV346)-1)*100,\"\")","v":1.8874193080925972},237349.35116276948,{"$f":"'[1]Gráfico REM'!BK359","v":31977.214072079743},{"$f":"'[1]Gráfico REM'!BL359","v":174877.75387160503},{"$f":"'[1]Gráfico REM'!BM359","v":30494.38321908471},3.2374599049617592,8.1451240721893257,2.9230469736081233,0.2238964540176358]
[2019,"septiembre","2019-septiembre",{"$f":"IF('[1]REAL IPC(M)'!$AL366=\"\",\"\",+'[1]REAL IPC(M)'!$AL366)","v":2.5684025866310911},{"$f":"IF('[1]REAL IPC(M)'!$BE366=\"\",\"\",+'[1]REAL IPC(M)'!$BE366)","v":3.0677348470178778},{"$f":"IF('[1]REAL IPC(M)'!$AM366=\"\",\"\",+'[1]REAL IPC(M)'!$AM366)","v":2.4146711702166757},{"$f":"IF('[1]REAL IPC(M)'!$BI366=\"\",\"\",+'[1]REAL IPC(M)'!$BI366)","v":2.8390642165665447},{"$f":"IF('[1]REAL IMAE(M)'!BJ366=\"\",\"\",'[1]REAL IMAE(M)'!BJ366)","v":3.4750618949781265},{"$f":"IF('[1]REAL IMAE(M)'!BK366=\"\",\"\",'[1]REAL IMAE(M)'!BK366)","v":3.5702662357809833},{"$f":"IF('[1]REAL IMAE(M)'!BN366=\"\",\"\",'[1]REAL IMAE(M)'!BN366)","v":3.4414644839552588},{"$f":"IF('[1]REAL IMAE(M)'!BO366=\"\",\"\",'[1]REAL IMAE(M)'!BO366)","v":3.5424289264031517},{"$f":"IF('[1]EXT RIN(M)'!$K366=\"\",\"\",'[1]EXT RIN(M)'!$K366)","v":41139.529934993407},null,{"$f":"IF('[1]EXT RIN(M)'!$L366=\"\",\"\",'[1]EXT RIN(M)'!$L366)","v":44428.299934993403},null,{"$f":"IF('[1]MONE(M)CARD'!EG366=\"\",\"\",'[1]MONE(M)CARD'!EG366)","v":38753.111031306966},{"$f":"IF('[1]MONE(M)CARD'!EK366=\"\",\"\",'[1]MONE(M)CARD'!EK366)","v":59440.922921834324},{"$f":"IF('[1]MONE(M)CARD'!EP366=\"\",\"\",'[1]MONE(M)CARD'!EP366)","v":31677.819577647038},{"$f":"IF('[1]MONE(M)CARD'!ES366=\"\",\"\",'[1]MONE(M)CARD'!ES366)","v":9.6892221922575636},{"$f":"IF('[1]MONE(M)CARD'!EV366=\"\",\"\",'[1]MONE(M)CARD'!EV366)","v":6.6941875120886785},{"$f":"IF('[1]MONE(M)CARD'!EZ366=\"\",\"\",'[1]MONE(M)CARD'!EZ366)","v":5.5387790135752235},{"$f":"IF('[1]MONE(M)CAPARD'!FC366=\"\",\"\",'[1]MONE(M)CAPARD'!FC366)","v":46367.801031306968},{"$f":"IF('[1]MONE(M)CAPARD'!FG366=\"\",\"\",'[1]MONE(M)CAPARD'!FG366)","v":93020.952921834309},{"$f":"IF('[1]MONE(M)CAPARD'!FL366=\"\",\"\",'[1]MONE(M)CAPARD'!FL366)","v":31677.819577647024},{"$f":"IF('[1]MONE(M)CAPARD'!FO366=\"\",\"\",'[1]MONE(M)CAPARD'!FO366)","v":7.4011408209509799},{"$f":"IF('[1]MONE(M)CAPARD'!FR366=\"\",\"\",'[1]MONE(M)CAPARD'!FR366)","v":5.3910065787723171},{"$f":"IF('[1]MONE(M)CAPARD'!FV366=\"\",\"\",'[1]MONE(M)CAPARD'!FV366)","v":4.7678402919681506},{"$f":"IF('[1]MONE(M)CARD'!FV366=\"\",\"\",'[1]MONE(M)CARD'!FV366)","v":1902.4059878775502},{"$f":"IF('[1]MONE(M)CARD'!GD366=\"\",\"\",'[1]MONE(M)CARD'!GD366)","v":202.55121828718023},{"$f":"IF('[1]MONE(M)CARD'!GE366=\"\",\"\",'[1]MONE(M)CARD'!GE366)","v":13676.870316234808},{"$f":"IF(AD359=\"\",\"\",((AD359/AD346)-1)*100)","v":19.415430883594766},{"$f":"IF('[9]II.2.Balance OSD-Activos'!J224=\"\",\"\",'[9]II.2.Balance OSD-Activos'!J224)","v":222.66033758539967},{"$f":"IF('[9]II.2.Balance OSD-Activos'!N224=\"\",\"\",'[9]II.2.Balance OSD-Activos'!N224)","v":1151.6686011588479},{"$f":"IF('[9]II.2.Balance OSD-Activos'!R224=\"\",\"\",'[9]II.2.Balance OSD-Activos'!R224)","v":54614.040815657529},{"$f":"IF('[9]II.2.Balance OSD-Activos'!S224=\"\",\"\",'[9]II.2.Balance OSD-Activos'!S224)","v":60881.713799861143},{"$f":"IFERROR(+AF359+AH359,\"\")","v":54836.701153242931},{"$f":"IF(OR(AF359=\"\",AG359=\"\",AH359=\"\",AI359=\"\"),\"\",SUM(AF359:AI359))","v":116870.08355426292},{"$f":"IF(OR(AF359=\"\",AF347=\"\"),\"\",((AF359/AF347)-1)*100)","v":-5.7533873731235534},{"$f":"IF(OR(AJ359=\"\",AJ347=\"\"),\"\",((AJ359/AJ347)-1)*100)","v":0.9538789955082061},{"$f":"IF(OR(AG359=\"\",AG347=\"\"),\"\",((AG359/AG347)-1)*100)","v":-24.162251207645834},{"$f":"IF(OR(AH359=\"\",AH347=\"\"),\"\",((AH359/AH347)-1)*100)","v":0.98317898030508832},{"$f":"IF(OR(AI359=\"\",AI347=\"\"),\"\",((AI359/AI347)-1)*100)","v":4.3770614575599831},{"$f":"IF(OR(AK359=\"\",AK347=\"\"),\"\",((AK359/AK347)-1)*100)","v":2.3687363277846929},{"$f":"IF(OR(AQ359=\"\",AQ358=\"\"),\"\",AQ359-AQ358)","v":-0.36105265788568541},{"$f":"IF('[1]MONE(M)CAPARD'!GS366=\"\",\"\",'[1]MONE(M)CAPARD'!GS366)","v":24608.260127857709},{"$f":"IF('[1]MONE(M)CARD'!HA366=\"\",\"\",'[1]MONE(M)CAPARD'!HA366)","v":16132.820316234809},{"$f":"IF('[1]MONE(M)CAPARD'!HB366=\"\",\"\",'[1]MONE(M)CAPARD'!HB366)","v":8475.4398116229004},"n.d.",{"$f":"IF('[10]II.2.Balance OSD-Activos'!J224=\"\",\"\",'[10]II.2.Balance OSD-Activos'!J224)","v":2457.6303375853995},{"$f":"IF('[10]II.2.Balance OSD-Activos'!N224=\"\",\"\",'[10]II.2.Balance OSD-Activos'!N224)","v":1641.6886011588476},{"$f":"IF('[10]II.2.Balance OSD-Activos'!R224=\"\",\"\",'[10]II.2.Balance OSD-Activos'!R224)","v":78401.190815657523},{"$f":"IF('[10]II.2.Balance OSD-Activos'!S224=\"\",\"\",'[10]II.2.Balance OSD-Activos'!S224)","v":86570.333799861139},{"$f":"IFERROR(+AW359+AY359,\"\")","v":80858.821153242927},{"$f":"IF(OR(AW359=\"\",AX359=\"\",AY359=\"\",AZ359=\"\"),\"\",SUM(AW359:AZ359))","v":169070.84355426292},{"$f":"IF(OR(AW359=\"\",AW347=\"\"),\"\",((AW359/AW347)-1)*100)","v":2.0132737693601355},{"$f":"IF(OR(BA359=\"\",BA347=\"\"),\"\",((BA359/BA347)-1)*100)","v":0.40621844598256462},{"$f":"IF(OR(AX359=\"\",AX347=\"\"),\"\",((AX359/AX347)-1)*100)","v":-18.578101199307518},{"$f":"IF(OR(AY359=\"\",AY347=\"\"),\"\",((AY359/AY347)-1)*100)","v":0.35666039207624678},{"$f":"IF(OR(AZ359=\"\",AZ347=\"\"),\"\",((AZ359/AZ347)-1)*100)","v":4.7526244380748039},{"$f":"IF(OR(BB359=\"\",BB347=\"\"),\"\",((BB359/BB347)-1)*100)","v":2.3489492832003966},{"$f":"IF(OR(BH359=\"\",BH358=\"\"),\"\",BH359-BH358)","v":-0.1554695461979172},{"$f":"IF('[1]MONE(M)CAPARD'!AS366=\"\",\"\",'[1]MONE(M)CAPARD'!AS366)","v":3.75},{"$f":"IF('[1]MONE(M)CAPARD'!AT366=\"\",\"\",'[1]MONE(M)CAPARD'!AT366)","v":"n.a."},{"$f":"IF('[1]MONE(M)CAPARD'!AU366=\"\",\"\",'[1]MONE(M)CAPARD'!AU366)","v":2.75},{"$f":"IF('[1]MONE(M)CAPARD'!AV366=\"\",\"\",'[1]MONE(M)CAPARD'!AV366)","v":5.75},{"$f":"IF('[1]MONE(M)CAPARD'!AW366=\"\",\"\",'[1]MONE(M)CAPARD'!AW366)","v":"n.a."},{"$f":"IF('[1]MONE(M)CAPARD'!AX366=\"\",\"\",'[1]MONE(M)CAPARD'!AX366)","v":4.5},{"$f":"IF('[1]MONE(M)CAPARD'!AY366=\"\",\"\",'[1]MONE(M)CAPARD'!AY366)","v":"n.a."},null,null,null,null,null,null,null,null,{"$f":"IF('[2]MONE(M)'!$AO366=\"\",\"\",'[2]MONE(M)'!$AO366)","v":22133829.953645565},{"$f":"IF('[3]MONE(M)'!$AO366=\"\",\"\",'[3]MONE(M)'!$AO366)","v":13442.731449090003},{"$f":"IF('[4]MONE(M)'!$AO366=\"\",\"\",'[4]MONE(M)'!$AO366)","v":211056.97696443734},{"$f":"IF('[5]MONE(M)'!$AO366=\"\",\"\",'[5]MONE(M)'!$AO366)","v":372464.95611156011},{"$f":"IF('[6]MONE(M)'!$AO366=\"\",\"\",'[6]MONE(M)'!$AO366)","v":125196.65111664357},{"$f":"IF('[7]MONE(M)'!$AO366=\"\",\"\",'[7]MONE(M)'!$AO366)","v":1221724.5182614101},{"$f":"IF('[8]MONE(M)'!$AO366=\"\",\"\",'[8]MONE(M)'!$AO366)","v":53096.58},0.54990434246708908,{"$f":"IF(BZ359=\"\",\"\",((BZ359/BZ347)-1)*100)","v":4.9219318580954852},{"$f":"IF(CA359=\"\",\"\",((CA359/CA347)-1)*100)","v":4.4104310948471559},{"$f":"IF(CB359=\"\",\"\",((CB359/CB347)-1)*100)","v":10.340104726581668},{"$f":"IF(CC359=\"\",\"\",((CC359/CC347)-1)*100)","v":-19.790415911164306},12.174145655490175,2.1931830327122537,null,{"$f":"+'[1]REAL(A)'!$AO$39","v":288631.53325079131},"",null,{"$f":"+'[1]REAL(A)'!$AP$39","v":359201.53325079131},null,160026.6778246297,{"$f":"'[1]Gráfico REM'!BG360","v":29930.593867533153},{"$f":"'[1]Gráfico REM'!BH360","v":121265.99650067321},{"$f":"'[1]Gráfico REM'!BI360","v":8830.08745642336},4.1720776180803387,10.486025782956897,2.8820688304943554,1.9786354679431462,{"$f":"+IF(OR(DB359=\"\",+DC359=\"\",+DD359=\"\"),\"\",(DB359+DC359+DD359))","v":236809.9578246297},{"$f":"'[1]Gráfico REM'!BK360","v":32167.203867533153},{"$f":"'[1]Gráfico REM'!BL360","v":174362.5765006732},{"$f":"'[1]Gráfico REM'!BM360","v":30280.17745642336},{"$f":"IFERROR(+((DA359/DA347)-1)*100,\"\")","v":3.1953047330105067},{"$f":"IFERROR(+((DB359/DB347)-1)*100,\"\")","v":10.214512718677394},{"$f":"IFERROR(+((DC359/DC347)-1)*100,\"\")","v":2.6713090802947814},{"$f":"IFERROR(+((DD359/DD347)-1)*100,\"\")","v":-0.60816653025399514}]
[2019,"octubre","2019-octubre",{"$f":"IF('[1]REAL IPC(M)'!$AL367=\"\",\"\",+'[1]REAL IPC(M)'!$AL367)","v":2.6523672731141756},{"$f":"IF('[1]REAL IPC(M)'!$BE367=\"\",\"\",+'[1]REAL IPC(M)'!$BE367)","v":3.0614150569389542},{"$f":"IF('[1]REAL IPC(M)'!$AM367=\"\",\"\",+'[1]REAL IPC(M)'!$AM367)","v":2.488611722602041},{"$f":"IF('[1]REAL IPC(M)'!$BI367=\"\",\"\",+'[1]REAL IPC(M)'!$BI367)","v":2.8333128669518981},{"$f":"IF('[1]REAL IMAE(M)'!BJ367=\"\",\"\",'[1]REAL IMAE(M)'!BJ367)","v":3.5080369002806533},{"$f":"IF('[1]REAL IMAE(M)'!BK367=\"\",\"\",'[1]REAL IMAE(M)'!BK367)","v":3.5559047150862},{"$f":"IF('[1]REAL IMAE(M)'!BN367=\"\",\"\",'[1]REAL IMAE(M)'!BN367)","v":3.4165962197706623},{"$f":"IF('[1]REAL IMAE(M)'!BO367=\"\",\"\",'[1]REAL IMAE(M)'!BO367)","v":3.527442213983556},{"$f":"IF('[1]EXT RIN(M)'!$K367=\"\",\"\",'[1]EXT RIN(M)'!$K367)","v":41932.449999999997},null,{"$f":"IF('[1]EXT RIN(M)'!$L367=\"\",\"\",'[1]EXT RIN(M)'!$L367)","v":45322.02035585},null,{"$f":"IF('[1]MONE(M)CARD'!EG367=\"\",\"\",'[1]MONE(M)CARD'!EG367)","v":38448.013870945368},{"$f":"IF('[1]MONE(M)CARD'!EK367=\"\",\"\",'[1]MONE(M)CARD'!EK367)","v":59680.517843837173},{"$f":"IF('[1]MONE(M)CARD'!EP367=\"\",\"\",'[1]MONE(M)CARD'!EP367)","v":31648.871206995871},{"$f":"IF('[1]MONE(M)CARD'!ES367=\"\",\"\",'[1]MONE(M)CARD'!ES367)","v":9.8903682539289495},{"$f":"IF('[1]MONE(M)CARD'!EV367=\"\",\"\",'[1]MONE(M)CARD'!EV367)","v":7.4128723780610972},{"$f":"IF('[1]MONE(M)CARD'!EZ367=\"\",\"\",'[1]MONE(M)CARD'!EZ367)","v":6.2427221537261879},{"$f":"IF('[1]MONE(M)CAPARD'!FC367=\"\",\"\",'[1]MONE(M)CAPARD'!FC367)","v":46124.094613385372},{"$f":"IF('[1]MONE(M)CAPARD'!FG367=\"\",\"\",'[1]MONE(M)CAPARD'!FG367)","v":93836.979125007158},{"$f":"IF('[1]MONE(M)CAPARD'!FL367=\"\",\"\",'[1]MONE(M)CAPARD'!FL367)","v":31648.871206995886},{"$f":"IF('[1]MONE(M)CAPARD'!FO367=\"\",\"\",'[1]MONE(M)CAPARD'!FO367)","v":7.3025285760938585},{"$f":"IF('[1]MONE(M)CAPARD'!FR367=\"\",\"\",'[1]MONE(M)CAPARD'!FR367)","v":6.2856532171256418},{"$f":"IF('[1]MONE(M)CAPARD'!FV367=\"\",\"\",'[1]MONE(M)CAPARD'!FV367)","v":5.6195819232814914},{"$f":"IF('[1]MONE(M)CARD'!FV367=\"\",\"\",'[1]MONE(M)CARD'!FV367)","v":1998.781659328914},{"$f":"IF('[1]MONE(M)CARD'!GD367=\"\",\"\",'[1]MONE(M)CARD'!GD367)","v":114.83377685492252},{"$f":"IF('[1]MONE(M)CARD'!GE367=\"\",\"\",'[1]MONE(M)CARD'!GE367)","v":14015.361744065081},22.916131144288322,{"$f":"IF('[9]II.2.Balance OSD-Activos'!J225=\"\",\"\",'[9]II.2.Balance OSD-Activos'!J225)","v":212.89254830508926},{"$f":"IF('[9]II.2.Balance OSD-Activos'!N225=\"\",\"\",'[9]II.2.Balance OSD-Activos'!N225)","v":1120.0553432674146},{"$f":"IF('[9]II.2.Balance OSD-Activos'!R225=\"\",\"\",'[9]II.2.Balance OSD-Activos'!R225)","v":54947.647245632244},{"$f":"IF('[9]II.2.Balance OSD-Activos'!S225=\"\",\"\",'[9]II.2.Balance OSD-Activos'!S225)","v":61220.43218965565},55160.539793937336,117501.02732686041,-8.2959968105976944,1.4662753849076449,-25.743578314890094,1.508142675671631,5.6052235463824207,3.2133929655215443,0.8446566377368514,{"$f":"IF('[1]MONE(M)CAPARD'!GS367=\"\",\"\",'[1]MONE(M)CAPARD'!GS367)","v":24766.204107231129},{"$f":"IF('[1]MONE(M)CARD'!HA367=\"\",\"\",'[1]MONE(M)CAPARD'!HA367)","v":16469.28718885508},{"$f":"IF('[1]MONE(M)CAPARD'!HB367=\"\",\"\",'[1]MONE(M)CAPARD'!HB367)","v":8296.9169183760496},"n.d.",{"$f":"IF('[10]II.2.Balance OSD-Activos'!J225=\"\",\"\",'[10]II.2.Balance OSD-Activos'!J225)","v":2584.6255861950899},{"$f":"IF('[10]II.2.Balance OSD-Activos'!N225=\"\",\"\",'[10]II.2.Balance OSD-Activos'!N225)","v":1599.8849767674146},{"$f":"IF('[10]II.2.Balance OSD-Activos'!R225=\"\",\"\",'[10]II.2.Balance OSD-Activos'!R225)","v":78813.991233482258},{"$f":"IF('[10]II.2.Balance OSD-Activos'!S225=\"\",\"\",'[10]II.2.Balance OSD-Activos'!S225)","v":87089.076626745649},81398.616819677351,170087.5784231904,8.5212450887698576,0.76704750399045896,-19.759048414169023,0.53147831752147212,5.6690336271047359,2.9650068068925117,0.61605752369211508,{"$f":"IF('[1]MONE(M)CAPARD'!AS367=\"\",\"\",'[1]MONE(M)CAPARD'!AS367)","v":3.25},{"$f":"IF('[1]MONE(M)CAPARD'!AT367=\"\",\"\",'[1]MONE(M)CAPARD'!AT367)","v":"n.a."},{"$f":"IF('[1]MONE(M)CAPARD'!AU367=\"\",\"\",'[1]MONE(M)CAPARD'!AU367)","v":2.75},{"$f":"IF('[1]MONE(M)CAPARD'!AV367=\"\",\"\",'[1]MONE(M)CAPARD'!AV367)","v":5.75},{"$f":"IF('[1]MONE(M)CAPARD'!AW367=\"\",\"\",'[1]MONE(M)CAPARD'!AW367)","v":"n.a."},{"$f":"IF('[1]MONE(M)CAPARD'!AX367=\"\",\"\",'[1]MONE(M)CAPARD'!AX367)","v":4.5},{"$f":"IF('[1]MONE(M)CAPARD'!AY367=\"\",\"\",'[1]MONE(M)CAPARD'!AY367)","v":"n.a."},null,null,null,null,null,null,null,null,{"$f":"IF('[2]MONE(M)'!$AO367=\"\",\"\",'[2]MONE(M)'!$AO367)","v":22233798.874429688},{"$f":"IF('[3]MONE(M)'!$AO367=\"\",\"\",'[3]MONE(M)'!$AO367)","v":13529.648376040001},{"$f":"IF('[4]MONE(M)'!$AO367=\"\",\"\",'[4]MONE(M)'!$AO367)","v":212406.02354226512},{"$f":"IF('[5]MONE(M)'!$AO367=\"\",\"\",'[5]MONE(M)'!$AO367)","v":374315.59110231581},{"$f":"IF('[6]MONE(M)'!$AO367=\"\",\"\",'[6]MONE(M)'!$AO367)","v":125833.76462112449},{"$f":"IF('[7]MONE(M)'!$AO367=\"\",\"\",'[7]MONE(M)'!$AO367)","v":1239081.2828658901},{"$f":"IF('[8]MONE(M)'!$AO367=\"\",\"\",'[8]MONE(M)'!$AO367)","v":53545.438851780003},-0.44931980123553705,5.0528734986357682,4.110745002232008,9.6923527817464503,-17.884464829592073,12.460034917443451,2.4077771400677461,null,{"$f":"+'[1]REAL(A)'!$AO$39","v":288631.53325079131},"",null,{"$f":"+'[1]REAL(A)'!$AP$39","v":359201.53325079131},null,160542.322776582,{"$f":"'[1]Gráfico REM'!BG361","v":29800.04546401052},{"$f":"'[1]Gráfico REM'!BH361","v":121842.03582180422},{"$f":"'[1]Gráfico REM'!BI361","v":8900.2414907672446},5.6746319696410641,12.765511698595301,3.9105194382484054,8.0376100141511522,237450.41092015198,{"$f":"'[1]Gráfico REM'!BK361","v":32161.087058190522},{"$f":"'[1]Gráfico REM'!BL361","v":175387.47467358422},{"$f":"'[1]Gráfico REM'!BM361","v":29901.849188377251},4.0966198370569584,12.538611801741917,3.44707922868146,-0.27655255498688636]
[2019,"noviembre","2019-noviembre",{"$f":"IF('[1]REAL IPC(M)'!$AL368=\"\",\"\",+'[1]REAL IPC(M)'!$AL368)","v":3.028172507925353},{"$f":"IF('[1]REAL IPC(M)'!$BE368=\"\",\"\",+'[1]REAL IPC(M)'!$BE368)","v":3.0548188587528724},{"$f":"IF('[1]REAL IPC(M)'!$AM368=\"\",\"\",+'[1]REAL IPC(M)'!$AM368)","v":2.8672298492577353},{"$f":"IF('[1]REAL IPC(M)'!$BI368=\"\",\"\",+'[1]REAL IPC(M)'!$BI368)","v":2.8274328779624769},null,null,null,null,{"$f":"IF('[1]EXT RIN(M)'!$K368=\"\",\"\",'[1]EXT RIN(M)'!$K368)","v":42247.896478308983},null,{"$f":"IF('[1]EXT RIN(M)'!$L368=\"\",\"\",'[1]EXT RIN(M)'!$L368)","v":46818.768345138982},null,{"$f":"IF('[1]MONE(M)CARD'!EG368=\"\",\"\",'[1]MONE(M)CARD'!EG368)","v":40866.734927037593},{"$f":"IF('[1]MONE(M)CARD'!EK368=\"\",\"\",'[1]MONE(M)CARD'!EK368)","v":60009.259484697097},{"$f":"IF('[1]MONE(M)CARD'!EP368=\"\",\"\",'[1]MONE(M)CARD'!EP368)","v":32126.678899823222},{"$f":"IF('[1]MONE(M)CARD'!ES368=\"\",\"\",'[1]MONE(M)CARD'!ES368)","v":13.501555824736066},{"$f":"IF('[1]MONE(M)CARD'!EV368=\"\",\"\",'[1]MONE(M)CARD'!EV368)","v":9.3435612353482522},{"$f":"IF('[1]MONE(M)CARD'!EZ368=\"\",\"\",'[1]MONE(M)CARD'!EZ368)","v":7.679453741189457},{"$f":"IF('[1]MONE(M)CAPARD'!FC368=\"\",\"\",'[1]MONE(M)CAPARD'!FC368)","v":48688.563048427597},{"$f":"IF('[1]MONE(M)CAPARD'!FG368=\"\",\"\",'[1]MONE(M)CAPARD'!FG368)","v":94306.0360910171},{"$f":"IF('[1]MONE(M)CAPARD'!FL368=\"\",\"\",'[1]MONE(M)CAPARD'!FL368)","v":32126.678899823222},{"$f":"IF('[1]MONE(M)CAPARD'!FO368=\"\",\"\",'[1]MONE(M)CAPARD'!FO368)","v":9.9815920767419186},{"$f":"IF('[1]MONE(M)CAPARD'!FR368=\"\",\"\",'[1]MONE(M)CAPARD'!FR368)","v":7.13498668064938},{"$f":"IF('[1]MONE(M)CAPARD'!FV368=\"\",\"\",'[1]MONE(M)CAPARD'!FV368)","v":6.3063520107631721},{"$f":"IF('[1]MONE(M)CARD'!FV368=\"\",\"\",'[1]MONE(M)CARD'!FV368)","v":2025.0864621750482},{"$f":"IF('[1]MONE(M)CARD'!GD368=\"\",\"\",'[1]MONE(M)CARD'!GD368)","v":140.67286342687584},{"$f":"IF('[1]MONE(M)CARD'!GE368=\"\",\"\",'[1]MONE(M)CARD'!GE368)","v":13626.861069361998},17.870839262467729,{"$f":"IF('[9]II.2.Balance OSD-Activos'!J226=\"\",\"\",'[9]II.2.Balance OSD-Activos'!J226)","v":253.46586058252063},{"$f":"IF('[9]II.2.Balance OSD-Activos'!N226=\"\",\"\",'[9]II.2.Balance OSD-Activos'!N226)","v":1193.6083970833797},{"$f":"IF('[9]II.2.Balance OSD-Activos'!R226=\"\",\"\",'[9]II.2.Balance OSD-Activos'!R226)","v":55799.585924223778},{"$f":"IF('[9]II.2.Balance OSD-Activos'!S226=\"\",\"\",'[9]II.2.Balance OSD-Activos'!S226)","v":62164.712066648681},56053.051784806295,119411.37224853836,11.938720333837027,2.3194013132826319,-18.433390164568742,2.2794766755850349,5.8515272929936302,3.8594605792643621,0.64606761374281785,{"$f":"IF('[1]MONE(M)CAPARD'!GS368=\"\",\"\",'[1]MONE(M)CAPARD'!GS368)","v":25611.269364085041},{"$f":"IF('[1]MONE(M)CARD'!HA368=\"\",\"\",'[1]MONE(M)CAPARD'!HA368)","v":15989.007993781999},{"$f":"IF('[1]MONE(M)CAPARD'!HB368=\"\",\"\",'[1]MONE(M)CAPARD'!HB368)","v":9622.261370303042},"n.d.",{"$f":"IF('[10]II.2.Balance OSD-Activos'!J226=\"\",\"\",'[10]II.2.Balance OSD-Activos'!J226)","v":2685.3139059525211},{"$f":"IF('[10]II.2.Balance OSD-Activos'!N226=\"\",\"\",'[10]II.2.Balance OSD-Activos'!N226)","v":1670.4767929733798},{"$f":"IF('[10]II.2.Balance OSD-Activos'!R226=\"\",\"\",'[10]II.2.Balance OSD-Activos'!R226)","v":79464.276337973788},{"$f":"IF('[10]II.2.Balance OSD-Activos'!S226=\"\",\"\",'[10]II.2.Balance OSD-Activos'!S226)","v":88152.370425748682},{"$f":"IFERROR(+AW361+AY361,\"\")","v":82149.590243926315},{"$f":"IF(OR(AW361=\"\",AX361=\"\",AY361=\"\",AZ361=\"\"),\"\",SUM(AW361:AZ361))","v":171972.43746264838},{"$f":"IF(OR(AW361=\"\",AW349=\"\"),\"\",((AW361/AW349)-1)*100)","v":11.392250822476214},{"$f":"IF(OR(BA361=\"\",BA349=\"\"),\"\",((BA361/BA349)-1)*100)","v":1.1256703422117376},{"$f":"IF(OR(AX361=\"\",AX349=\"\"),\"\",((AX361/AX349)-1)*100)","v":-12.317455424235323},{"$f":"IF(OR(AY361=\"\",AY349=\"\"),\"\",((AY361/AY349)-1)*100)","v":0.81168826925779314},{"$f":"IF(OR(AZ361=\"\",AZ349=\"\"),\"\",((AZ361/AZ349)-1)*100)","v":5.7370417404028817},{"$f":"IF(OR(BB361=\"\",BB349=\"\"),\"\",((BB361/BB349)-1)*100)","v":3.280717767261887},{"$f":"IF(OR(BH361=\"\",BH360=\"\"),\"\",BH361-BH360)","v":0.31571096036937529},{"$f":"IF('[1]MONE(M)CAPARD'!AS368=\"\",\"\",'[1]MONE(M)CAPARD'!AS368)","v":3.25},{"$f":"IF('[1]MONE(M)CAPARD'!AT368=\"\",\"\",'[1]MONE(M)CAPARD'!AT368)","v":"n.a."},{"$f":"IF('[1]MONE(M)CAPARD'!AU368=\"\",\"\",'[1]MONE(M)CAPARD'!AU368)","v":2.75},{"$f":"IF('[1]MONE(M)CAPARD'!AV368=\"\",\"\",'[1]MONE(M)CAPARD'!AV368)","v":5.75},{"$f":"IF('[1]MONE(M)CAPARD'!AW368=\"\",\"\",'[1]MONE(M)CAPARD'!AW368)","v":"n.a."},{"$f":"IF('[1]MONE(M)CAPARD'!AX368=\"\",\"\",'[1]MONE(M)CAPARD'!AX368)","v":4.5},{"$f":"IF('[1]MONE(M)CAPARD'!AY368=\"\",\"\",'[1]MONE(M)CAPARD'!AY368)","v":"n.a."},null,null,null,null,null,null,null,null,{"$f":"IF('[2]MONE(M)'!$AO368=\"\",\"\",'[2]MONE(M)'!$AO368)","v":21917744.557614431},{"$f":"IF('[3]MONE(M)'!$AO368=\"\",\"\",'[3]MONE(M)'!$AO368)","v":13600.117009130001},{"$f":"IF('[4]MONE(M)'!$AO368=\"\",\"\",'[4]MONE(M)'!$AO368)","v":213980.0192731086},{"$f":"IF('[5]MONE(M)'!$AO368=\"\",\"\",'[5]MONE(M)'!$AO368)","v":378436.66436849697},{"$f":"IF('[6]MONE(M)'!$AO368=\"\",\"\",'[6]MONE(M)'!$AO368)","v":126250.28693509489},{"$f":"IF('[7]MONE(M)'!$AO368=\"\",\"\",'[7]MONE(M)'!$AO368)","v":1260731.14781715},{"$f":"IF('[8]MONE(M)'!$AO368=\"\",\"\",'[8]MONE(M)'!$AO368)","v":53565.726717270001},-1.6049084940683245,4.5970950373659836,4.4345334877448961,8.9129389394190675,-16.662603036635005,12.619671531389232,1.951645104805011,null,{"$f":"+'[1]REAL(A)'!$AO$39","v":288631.53325079131},"",null,{"$f":"+'[1]REAL(A)'!$AP$39","v":359201.53325079131},null,163052.14953501441,{"$f":"'[1]Gráfico REM'!BG362","v":30360.376686787575},{"$f":"'[1]Gráfico REM'!BH362","v":123566.65414463065},{"$f":"'[1]Gráfico REM'!BI362","v":9125.1187035961775},6.2749528260341858,14.815291691255039,4.4394666344615086,5.2751121365740783,{"$f":"+IF(OR(DB361=\"\",+DC361=\"\",+DD361=\"\"),\"\",(DB361+DC361+DD361))","v":240571.89054530443},{"$f":"'[1]Gráfico REM'!BK362","v":32717.348803547575},{"$f":"'[1]Gráfico REM'!BL362","v":177132.38086190066},{"$f":"'[1]Gráfico REM'!BM362","v":30722.160879856176},{"$f":"IFERROR(+((DA361/DA349)-1)*100,\"\")","v":4.4779748164430533},{"$f":"IFERROR(+((DB361/DB349)-1)*100,\"\")","v":14.30124599563829},{"$f":"IFERROR(+((DC361/DC349)-1)*100,\"\")","v":3.674423968565077},{"$f":"IFERROR(+((DD361/DD349)-1)*100,\"\")","v":-0.19638478826087269}]
[2019,"diciembre","2019-diciembre",{"$f":"IF('[1]REAL IPC(M)'!$AL369=\"\",\"\",+'[1]REAL IPC(M)'!$AL369)","v":3.2920636010211668},{"$f":"IF('[1]REAL IPC(M)'!$BE369=\"\",\"\",+'[1]REAL IPC(M)'!$BE369)","v":3.0479717063426337},{"$f":"IF('[1]REAL IPC(M)'!$AM369=\"\",\"\",+'[1]REAL IPC(M)'!$AM369)","v":3.1319421534843128},{"$f":"IF('[1]REAL IPC(M)'!$BI369=\"\",\"\",+'[1]REAL IPC(M)'!$BI369)","v":2.8214128807533045},null,null,null,null,{"$f":"IF('[1]EXT RIN(M)'!$K369=\"\",\"\",'[1]EXT RIN(M)'!$K369)","v":44436.446929098442},{"$f":"IF(B362<>\"diciembre\",\"\",L362)","v":44436.446929098442},{"$f":"IF('[1]EXT RIN(M)'!$L369=\"\",\"\",'[1]EXT RIN(M)'!$L369)","v":48579.787349228442},{"$f":"IF(B362<>\"diciembre\",\"\",N362)","v":48579.787349228442},{"$f":"IF('[1]MONE(M)CARD'!EG369=\"\",\"\",'[1]MONE(M)CARD'!EG369)","v":""},null,null,null,null,null,null,null,null,null,null,null,{"$f":"IF('[1]MONE(M)CARD'!FV369=\"\",\"\",'[1]MONE(M)CARD'!FV369)","v":""},null,null,null,{"$f":"IF('[9]II.2.Balance OSD-Activos'!J227=\"\",\"\",'[9]II.2.Balance OSD-Activos'!J227)","v":" "},null,null,null,null,null,{"$error":"#VALUE!"},null,null,null,null,null,null,null,null,null,null,null,null,null,null,null,null,null,null,null,null,null,null,null,{"$f":"IF('[1]MONE(M)CAPARD'!AS369=\"\",\"\",'[1]MONE(M)CAPARD'!AS369)","v":2.75},{"$f":"IF('[1]MONE(M)CAPARD'!AT369=\"\",\"\",'[1]MONE(M)CAPARD'!AT369)","v":"n.a."},{"$f":"IF('[1]MONE(M)CAPARD'!AU369=\"\",\"\",'[1]MONE(M)CAPARD'!AU369)","v":2.75},{"$f":"IF('[1]MONE(M)CAPARD'!AV369=\"\",\"\",'[1]MONE(M)CAPARD'!AV369)","v":5.5},{"$f":"IF('[1]MONE(M)CAPARD'!AW369=\"\",\"\",'[1]MONE(M)CAPARD'!AW369)","v":"n.a."},{"$f":"IF('[1]MONE(M)CAPARD'!AX369=\"\",\"\",'[1]MONE(M)CAPARD'!AX369)","v":4.5},{"$f":"IF('[1]MONE(M)CAPARD'!AY369=\"\",\"\",'[1]MONE(M)CAPARD'!AY369)","v":"n.a."},null,null,null,null,null,null,null,null,{"$f":"IF('[2]MONE(M)'!$AO369=\"\",\"\",'[2]MONE(M)'!$AO369)","v":22093678.057296813},{"$f":"IF('[3]MONE(M)'!$AO369=\"\",\"\",'[3]MONE(M)'!$AO369)","v":""},{"$f":"IF('[4]MONE(M)'!$AO369=\"\",\"\",'[4]MONE(M)'!$AO369)","v":""},{"$f":"IF('[5]MONE(M)'!$AO369=\"\",\"\",'[5]MONE(M)'!$AO369)","v":""},{"$f":"IF('[6]MONE(M)'!$AO369=\"\",\"\",'[6]MONE(M)'!$AO369)","v":""},{"$f":"IF('[7]MONE(M)'!$AO369=\"\",\"\",'[7]MONE(M)'!$AO369)","v":1268835.4646066101},{"$f":"IF('[8]MONE(M)'!$AO369=\"\",\"\",'[8]MONE(M)'!$AO369)","v":53345.007250070004},-1.1082830129658494,null,null,null,null,12.669752680717883,2.1849244506356946,null,{"$f":"+'[1]REAL(A)'!$AO$39","v":288631.53325079131},"",null,{"$f":"+'[1]REAL(A)'!$AP$39","v":359201.53325079131},null,{"$f":"+IF(OR(CT362=\"\",+CU362=\"\",+CV362=\"\"),\"\",(CT362+CU362+CV362))","v":""},{"$f":"'[1]Gráfico REM'!BG363","v":""},{"$f":"'[1]Gráfico REM'!BH363","v":""},{"$f":"'[1]Gráfico REM'!BI363","v":""}]
[2020,"enero","2020-enero",null,null,null,null,null,null,null,null,null,null,null,null,null,null,null,null,null,null,null,null,null,null,null,null,null,null,null,null,null,null,null,null,null,null,null,null,null,null,null,null,null,null,null,null,null,null,null,null,null,null,null,null,null,null,null,null,null,null,{"$f":"IF('[1]MONE(M)CAPARD'!AS370=\"\",\"\",'[1]MONE(M)CAPARD'!AS370)","v":2.25},{"$f":"IF('[1]MONE(M)CAPARD'!AT370=\"\",\"\",'[1]MONE(M)CAPARD'!AT370)","v":"n.a."},{"$f":"IF('[1]MONE(M)CAPARD'!AU370=\"\",\"\",'[1]MONE(M)CAPARD'!AU370)","v":2.75},{"$f":"IF('[1]MONE(M)CAPARD'!AV370=\"\",\"\",'[1]MONE(M)CAPARD'!AV370)","v":5.5},{"$f":"IF('[1]MONE(M)CAPARD'!AW370=\"\",\"\",'[1]MONE(M)CAPARD'!AW370)","v":"n.a."},{"$f":"IF('[1]MONE(M)CAPARD'!AX370=\"\",\"\",'[1]MONE(M)CAPARD'!AX370)","v":4.5},{"$f":"IF('[1]MONE(M)CAPARD'!AY370=\"\",\"\",'[1]MONE(M)CAPARD'!AY370)","v":"n.a."}]
[2020,"febrero","2020-febrero"]
[2020,"marzo","2020-marzo"]
[2020,"abril","2020-abril"]
[2020,"mayo ","2020-mayo "]
[2020,"junio ","2020-junio "]
[2020,"julio","2020-julio"]
[2020,"agosto","2020-agosto"]
[2020,"septiembre","2020-septiembre"]
[2020,"octubre","2020-octubre"]
[2020,"noviembre","2020-noviembre"]
[2020,"diciembre","2020-diciembre"]

{"sheet":"Datos Regional (T)","index":12,"n_rows":126,"n_cols":31,"rows_kept":126,"cut":false,"hidden":true,"merged":[[122,0,125,0],[114,0,117,0],[118,0,121,0],[82,0,85,0],[58,0,61,0],[62,0,65,0],[66,0,69,0],[70,0,73,0],[106,0,109,0],[86,0,89,0],[90,0,93,0],[94,0,97,0],[98,0,101,0],[102,0,105,0],[110,0,113,0],[74,0,77,0],[0,22,0,30],[0,11,0,19],[0,20,0,21],[0,0,1,1],[22,0,25,0],[2,0,5,0],[6,0,9,0],[10,0,13,0],[14,0,17,0],[18,0,21,0],[0,2,0,10],[26,0,29,0],[30,0,33,0],[34,0,37,0],[38,0,41,0],[78,0,81,0],[42,0,45,0],[46,0,49,0],[50,0,53,0],[54,0,57,0]]}
["Variables Trimestrales",null,"Ingresos por IED no acumulados",null,null,null,null,null,null,null,null,"Ingresos por IED acumulados",null,null,null,null,null,null,null,null,"Ingresos Remesas Acumuladas",null,"Ingresos de Remesas, flujos trimestrales"]
[null,null,"CR","SV","GT","HO","NI","RD","PA","CARD","CAPARD","CR","SV","GT","HO","NI","RD","PA","CARD","CAPARD","CARD","CAPARD","CR","SV","GT","HN","NI","DO","PA","CARD","CAPARD"]
[1990,"I",{"$f":"IF(+'[1]EXT(T)'!M10=\"\",\"\",+'[1]EXT(T)'!M10)","v":"n.d."},{"$f":"IF(+'[1]EXT(T)'!N10=\"\",\"\",+'[1]EXT(T)'!N10)","v":"n.d."},{"$f":"IF(+'[1]EXT(T)'!O10=\"\",\"\",+'[1]EXT(T)'!O10)","v":"n.d."},{"$f":"IF(+'[1]EXT(T)'!P10=\"\",\"\",+'[1]EXT(T)'!P10)","v":"n.d."},{"$f":"IF(+'[1]EXT(T)'!Q10=\"\",\"\",+'[1]EXT(T)'!Q10)","v":"n.d."},{"$f":"IF(+'[1]EXT(T)'!R10=\"\",\"\",+'[1]EXT(T)'!R10)","v":"n.d."},{"$f":"IF(+'[1]EXT(T)'!S10=\"\",\"\",+'[1]EXT(T)'!S10)","v":"n.d."},{"$f":"IF(+'[1]EXT(T)'!U10=\"\",\"\",+'[1]EXT(T)'!U10)","v":"n.d."},{"$f":"IF(+'[1]EXT(T)'!V10=\"\",\"\",+'[1]EXT(T)'!V10)","v":"n.d."},{"$f":"IF(+'[1]EXT(T)'!W10=\"\",\"\",+'[1]EXT(T)'!W10)","v":"n.d."},{"$f":"IF(+'[1]EXT(T)'!X10=\"\",\"\",+'[1]EXT(T)'!X10)","v":"n.d."},{"$f":"IF(+'[1]EXT(T)'!Y10=\"\",\"\",+'[1]EXT(T)'!Y10)","v":"n.d."},{"$f":"IF(+'[1]EXT(T)'!Z10=\"\",\"\",+'[1]EXT(T)'!Z10)","v":"n.d."},{"$f":"IF(+'[1]EXT(T)'!AA10=\"\",\"\",+'[1]EXT(T)'!AA10)","v":"n.d."},{"$f":"IF(+'[1]EXT(T)'!AB10=\"\",\"\",+'[1]EXT(T)'!AB10)","v":"n.d."},{"$f":"IF(+'[1]EXT(T)'!AC10=\"\",\"\",+'[1]EXT(T)'!AC10)","v":"n.d."},{"$f":"IF(+'[1]EXT(T)'!AE10=\"\",\"\",+'[1]EXT(T)'!AE10)","v":"n.d."},{"$f":"IF(+'[1]EXT(T)'!AF10=\"\",\"\",+'[1]EXT(T)'!AF10)","v":"n.d."},{"$f":"IF(+'[1]EXT(T)'!AY10=\"\",\"\",+'[1]EXT(T)'!AY10)","v":"n.d."},{"$f":"IF(+'[1]EXT(T)'!AZ10=\"\",\"\",+'[1]EXT(T)'!AZ10)","v":"n.d."},"n.d.","n.d.","n.d.","n.d.","n.d.","n.d.","n.d.","n.d.","n.d."]
[null,"II",{"$f":"IF(+'[1]EXT(T)'!M11=\"\",\"\",+'[1]EXT(T)'!M11)","v":"n.d."},{"$f":"IF(+'[1]EXT(T)'!N11=\"\",\"\",+'[1]EXT(T)'!N11)","v":"n.d."},{"$f":"IF(+'[1]EXT(T)'!O11=\"\",\"\",+'[1]EXT(T)'!O11)","v":"n.d."},{"$f":"IF(+'[1]EXT(T)'!P11=\"\",\"\",+'[1]EXT(T)'!P11)","v":"n.d."},{"$f":"IF(+'[1]EXT(T)'!Q11=\"\",\"\",+'[1]EXT(T)'!Q11)","v":"n.d."},{"$f":"IF(+'[1]EXT(T)'!R11=\"\",\"\",+'[1]EXT(T)'!R11)","v":"n.d."},{"$f":"IF(+'[1]EXT(T)'!S11=\"\",\"\",+'[1]EXT(T)'!S11)","v":"n.d."},{"$f":"IF(+'[1]EXT(T)'!U11=\"\",\"\",+'[1]EXT(T)'!U11)","v":"n.d."},{"$f":"IF(+'[1]EXT(T)'!V11=\"\",\"\",+'[1]EXT(T)'!V11)","v":"n.d."},{"$f":"IF(+'[1]EXT(T)'!W11=\"\",\"\",+'[1]EXT(T)'!W11)","v":"n.d."},{"$f":"IF(+'[1]EXT(T)'!X11=\"\",\"\",+'[1]EXT(T)'!X11)","v":"n.d."},{"$f":"IF(+'[1]EXT(T)'!Y11=\"\",\"\",+'[1]EXT(T)'!Y11)","v":"n.d."},{"$f":"IF(+'[1]EXT(T)'!Z11=\"\",\"\",+'[1]EXT(T)'!Z11)","v":"n.d."},{"$f":"IF(+'[1]EXT(T)'!AA11=\"\",\"\",+'[1]EXT(T)'!AA11)","v":"n.d."},{"$f":"IF(+'[1]EXT(T)'!AB11=\"\",\"\",+'[1]EXT(T)'!AB11)","v":"n.d."},{"$f":"IF(+'[1]EXT(T)'!AC11=\"\",\"\",+'[1]EXT(T)'!AC11)","v":"n.d."},{"$f":"IF(+'[1]EXT(T)'!AE11=\"\",\"\",+'[1]EXT(T)'!AE11)","v":"n.d."},{"$f":"IF(+'[1]EXT(T)'!AF11=\"\",\"\",+'[1]EXT(T)'!AF11)","v":"n.d."},{"$f":"IF(+'[1]EXT(T)'!AY11=\"\",\"\",+'[1]EXT(T)'!AY11)","v":"n.d."},{"$f":"IF(+'[1]EXT(T)'!AZ11=\"\",\"\",+'[1]EXT(T)'!AZ11)","v":"n.d."},"n.d.","n.d.","n.d.","n.d.","n.d.","n.d.","n.d.","n.d.","n.d."]
[null,"III",{"$f":"IF(+'[1]EXT(T)'!M12=\"\",\"\",+'[1]EXT(T)'!M12)","v":"n.d."},{"$f":"IF(+'[1]EXT(T)'!N12=\"\",\"\",+'[1]EXT(T)'!N12)","v":"n.d."},{"$f":"IF(+'[1]EXT(T)'!O12=\"\",\"\",+'[1]EXT(T)'!O12)","v":"n.d."},{"$f":"IF(+'[1]EXT(T)'!P12=\"\",\"\",+'[1]EXT(T)'!P12)","v":"n.d."},{"$f":"IF(+'[1]EXT(T)'!Q12=\"\",\"\",+'[1]EXT(T)'!Q12)","v":"n.d."},{"$f":"IF(+'[1]EXT(T)'!R12=\"\",\"\",+'[1]EXT(T)'!R12)","v":"n.d."},{"$f":"IF(+'[1]EXT(T)'!S12=\"\",\"\",+'[1]EXT(T)'!S12)","v":"n.d."},{"$f":"IF(+'[1]EXT(T)'!U12=\"\",\"\",+'[1]EXT(T)'!U12)","v":"n.d."},{"$f":"IF(+'[1]EXT(T)'!V12=\"\",\"\",+'[1]EXT(T)'!V12)","v":"n.d."},{"$f":"IF(+'[1]EXT(T)'!W12=\"\",\"\",+'[1]EXT(T)'!W12)","v":"n.d."},{"$f":"IF(+'[1]EXT(T)'!X12=\"\",\"\",+'[1]EXT(T)'!X12)","v":"n.d."},{"$f":"IF(+'[1]EXT(T)'!Y12=\"\",\"\",+'[1]EXT(T)'!Y12)","v":"n.d."},{"$f":"IF(+'[1]EXT(T)'!Z12=\"\",\"\",+'[1]EXT(T)'!Z12)","v":"n.d."},{"$f":"IF(+'[1]EXT(T)'!AA12=\"\",\"\",+'[1]EXT(T)'!AA12)","v":"n.d."},{"$f":"IF(+'[1]EXT(T)'!AB12=\"\",\"\",+'[1]EXT(T)'!AB12)","v":"n.d."},{"$f":"IF(+'[1]EXT(T)'!AC12=\"\",\"\",+'[1]EXT(T)'!AC12)","v":"n.d."},{"$f":"IF(+'[1]EXT(T)'!AE12=\"\",\"\",+'[1]EXT(T)'!AE12)","v":"n.d."},{"$f":"IF(+'[1]EXT(T)'!AF12=\"\",\"\",+'[1]EXT(T)'!AF12)","v":"n.d."},{"$f":"IF(+'[1]EXT(T)'!AY12=\"\",\"\",+'[1]EXT(T)'!AY12)","v":"n.d."},{"$f":"IF(+'[1]EXT(T)'!AZ12=\"\",\"\",+'[1]EXT(T)'!AZ12)","v":"n.d."},"n.d.","n.d.","n.d.","n.d.","n.d.","n.d.","n.d.","n.d.","n.d."]
[null,"IV",{"$f":"IF(+'[1]EXT(T)'!M13=\"\",\"\",+'[1]EXT(T)'!M13)","v":"n.d."},{"$f":"IF(+'[1]EXT(T)'!N13=\"\",\"\",+'[1]EXT(T)'!N13)","v":"n.d."},{"$f":"IF(+'[1]EXT(T)'!O13=\"\",\"\",+'[1]EXT(T)'!O13)","v":"n.d."},{"$f":"IF(+'[1]EXT(T)'!P13=\"\",\"\",+'[1]EXT(T)'!P13)","v":"n.d."},{"$f":"IF(+'[1]EXT(T)'!Q13=\"\",\"\",+'[1]EXT(T)'!Q13)","v":"n.d."},{"$f":"IF(+'[1]EXT(T)'!R13=\"\",\"\",+'[1]EXT(T)'!R13)","v":"n.d."},{"$f":"IF(+'[1]EXT(T)'!S13=\"\",\"\",+'[1]EXT(T)'!S13)","v":"n.d."},{"$f":"IF(+'[1]EXT(T)'!U13=\"\",\"\",+'[1]EXT(T)'!U13)","v":"n.d."},{"$f":"IF(+'[1]EXT(T)'!V13=\"\",\"\",+'[1]EXT(T)'!V13)","v":"n.d."},{"$f":"IF(+'[1]EXT(T)'!W13=\"\",\"\",+'[1]EXT(T)'!W13)","v":"n.d."},{"$f":"IF(+'[1]EXT(T)'!X13=\"\",\"\",+'[1]EXT(T)'!X13)","v":"n.d."},{"$f":"IF(+'[1]EXT(T)'!Y13=\"\",\"\",+'[1]EXT(T)'!Y13)","v":"n.d."},{"$f":"IF(+'[1]EXT(T)'!Z13=\"\",\"\",+'[1]EXT(T)'!Z13)","v":"n.d."},{"$f":"IF(+'[1]EXT(T)'!AA13=\"\",\"\",+'[1]EXT(T)'!AA13)","v":"n.d."},{"$f":"IF(+'[1]EXT(T)'!AB13=\"\",\"\",+'[1]EXT(T)'!AB13)","v":"n.d."},{"$f":"IF(+'[1]EXT(T)'!AC13=\"\",\"\",+'[1]EXT(T)'!AC13)","v":"n.d."},{"$f":"IF(+'[1]EXT(T)'!AE13=\"\",\"\",+'[1]EXT(T)'!AE13)","v":"n.d."},{"$f":"IF(+'[1]EXT(T)'!AF13=\"\",\"\",+'[1]EXT(T)'!AF13)","v":"n.d."},{"$f":"IF(+'[1]EXT(T)'!AY13=\"\",\"\",+'[1]EXT(T)'!AY13)","v":"n.d."},{"$f":"IF(+'[1]EXT(T)'!AZ13=\"\",\"\",+'[1]EXT(T)'!AZ13)","v":"n.d."},"n.d.","n.d.","n.d.","n.d.","n.d.","n.d.","n.d.","n.d.","n.d."]
[1991,"I",{"$f":"IF(+'[1]EXT(T)'!M14=\"\",\"\",+'[1]EXT(T)'!M14)","v":"n.d."},{"$f":"IF(+'[1]EXT(T)'!N14=\"\",\"\",+'[1]EXT(T)'!N14)","v":"n.d."},{"$f":"IF(+'[1]EXT(T)'!O14=\"\",\"\",+'[1]EXT(T)'!O14)","v":"n.d."},{"$f":"IF(+'[1]EXT(T)'!P14=\"\",\"\",+'[1]EXT(T)'!P14)","v":"n.d."},{"$f":"IF(+'[1]EXT(T)'!Q14=\"\",\"\",+'[1]EXT(T)'!Q14)","v":"n.d."},{"$f":"IF(+'[1]EXT(T)'!R14=\"\",\"\",+'[1]EXT(T)'!R14)","v":"n.d."},{"$f":"IF(+'[1]EXT(T)'!S14=\"\",\"\",+'[1]EXT(T)'!S14)","v":"n.d."},{"$f":"IF(+'[1]EXT(T)'!U14=\"\",\"\",+'[1]EXT(T)'!U14)","v":"n.d."},{"$f":"IF(+'[1]EXT(T)'!V14=\"\",\"\",+'[1]EXT(T)'!V14)","v":"n.d."},{"$f":"IF(+'[1]EXT(T)'!W14=\"\",\"\",+'[1]EXT(T)'!W14)","v":"n.d."},{"$f":"IF(+'[1]EXT(T)'!X14=\"\",\"\",+'[1]EXT(T)'!X14)","v":"n.d."},{"$f":"IF(+'[1]EXT(T)'!Y14=\"\",\"\",+'[1]EXT(T)'!Y14)","v":"n.d."},{"$f":"IF(+'[1]EXT(T)'!Z14=\"\",\"\",+'[1]EXT(T)'!Z14)","v":"n.d."},{"$f":"IF(+'[1]EXT(T)'!AA14=\"\",\"\",+'[1]EXT(T)'!AA14)","v":"n.d."},{"$f":"IF(+'[1]EXT(T)'!AB14=\"\",\"\",+'[1]EXT(T)'!AB14)","v":"n.d."},{"$f":"IF(+'[1]EXT(T)'!AC14=\"\",\"\",+'[1]EXT(T)'!AC14)","v":"n.d."},{"$f":"IF(+'[1]EXT(T)'!AE14=\"\",\"\",+'[1]EXT(T)'!AE14)","v":"n.d."},{"$f":"IF(+'[1]EXT(T)'!AF14=\"\",\"\",+'[1]EXT(T)'!AF14)","v":"n.d."},{"$f":"IF(+'[1]EXT(T)'!AY14=\"\",\"\",+'[1]EXT(T)'!AY14)","v":"n.d."},{"$f":"IF(+'[1]EXT(T)'!AZ14=\"\",\"\",+'[1]EXT(T)'!AZ14)","v":"n.d."},"n.d.",{"$f":"IF(+'[1]EXT(T)'!AR14=\"\",\"\",+'[1]EXT(T)'!AR14)","v":189.1},"n.d.","n.d.","n.d.","n.d.","n.d.","n.d.","n.d."]
[null,"II",{"$f":"IF(+'[1]EXT(T)'!M15=\"\",\"\",+'[1]EXT(T)'!M15)","v":"n.d."},{"$f":"IF(+'[1]EXT(T)'!N15=\"\",\"\",+'[1]EXT(T)'!N15)","v":"n.d."},{"$f":"IF(+'[1]EXT(T)'!O15=\"\",\"\",+'[1]EXT(T)'!O15)","v":"n.d."},{"$f":"IF(+'[1]EXT(T)'!P15=\"\",\"\",+'[1]EXT(T)'!P15)","v":"n.d."},{"$f":"IF(+'[1]EXT(T)'!Q15=\"\",\"\",+'[1]EXT(T)'!Q15)","v":"n.d."},{"$f":"IF(+'[1]EXT(T)'!R15=\"\",\"\",+'[1]EXT(T)'!R15)","v":"n.d."},{"$f":"IF(+'[1]EXT(T)'!S15=\"\",\"\",+'[1]EXT(T)'!S15)","v":"n.d."},{"$f":"IF(+'[1]EXT(T)'!U15=\"\",\"\",+'[1]EXT(T)'!U15)","v":"n.d."},{"$f":"IF(+'[1]EXT(T)'!V15=\"\",\"\",+'[1]EXT(T)'!V15)","v":"n.d."},{"$f":"IF(+'[1]EXT(T)'!W15=\"\",\"\",+'[1]EXT(T)'!W15)","v":"n.d."},{"$f":"IF(+'[1]EXT(T)'!X15=\"\",\"\",+'[1]EXT(T)'!X15)","v":"n.d."},{"$f":"IF(+'[1]EXT(T)'!Y15=\"\",\"\",+'[1]EXT(T)'!Y15)","v":"n.d."},{"$f":"IF(+'[1]EXT(T)'!Z15=\"\",\"\",+'[1]EXT(T)'!Z15)","v":"n.d."},{"$f":"IF(+'[1]EXT(T)'!AA15=\"\",\"\",+'[1]EXT(T)'!AA15)","v":"n.d."},{"$f":"IF(+'[1]EXT(T)'!AB15=\"\",\"\",+'[1]EXT(T)'!AB15)","v":"n.d."},{"$f":"IF(+'[1]EXT(T)'!AC15=\"\",\"\",+'[1]EXT(T)'!AC15)","v":"n.d."},{"$f":"IF(+'[1]EXT(T)'!AE15=\"\",\"\",+'[1]EXT(T)'!AE15)","v":"n.d."},{"$f":"IF(+'[1]EXT(T)'!AF15=\"\",\"\",+'[1]EXT(T)'!AF15)","v":"n.d."},{"$f":"IF(+'[1]EXT(T)'!AY15=\"\",\"\",+'[1]EXT(T)'!AY15)","v":"n.d."},{"$f":"IF(+'[1]EXT(T)'!AZ15=\"\",\"\",+'[1]EXT(T)'!AZ15)","v":"n.d."},"n.d.",{"$f":"IF(+'[1]EXT(T)'!AR15=\"\",\"\",+'[1]EXT(T)'!AR15-'[1]EXT(T)'!AR14)","v":222.99999999999997},"n.d.","n.d.","n.d.","n.d.","n.d.","n.d.","n.d."]
[null,"III",{"$f":"IF(+'[1]EXT(T)'!M16=\"\",\"\",+'[1]EXT(T)'!M16)","v":"n.d."},{"$f":"IF(+'[1]EXT(T)'!N16=\"\",\"\",+'[1]EXT(T)'!N16)","v":"n.d."},{"$f":"IF(+'[1]EXT(T)'!O16=\"\",\"\",+'[1]EXT(T)'!O16)","v":"n.d."},{"$f":"IF(+'[1]EXT(T)'!P16=\"\",\"\",+'[1]EXT(T)'!P16)","v":"n.d."},{"$f":"IF(+'[1]EXT(T)'!Q16=\"\",\"\",+'[1]EXT(T)'!Q16)","v":"n.d."},{"$f":"IF(+'[1]EXT(T)'!R16=\"\",\"\",+'[1]EXT(T)'!R16)","v":"n.d."},{"$f":"IF(+'[1]EXT(T)'!S16=\"\",\"\",+'[1]EXT(T)'!S16)","v":"n.d."},{"$f":"IF(+'[1]EXT(T)'!U16=\"\",\"\",+'[1]EXT(T)'!U16)","v":"n.d."},{"$f":"IF(+'[1]EXT(T)'!V16=\"\",\"\",+'[1]EXT(T)'!V16)","v":"n.d."},{"$f":"IF(+'[1]EXT(T)'!W16=\"\",\"\",+'[1]EXT(T)'!W16)","v":"n.d."},{"$f":"IF(+'[1]EXT(T)'!X16=\"\",\"\",+'[1]EXT(T)'!X16)","v":"n.d."},{"$f":"IF(+'[1]EXT(T)'!Y16=\"\",\"\",+'[1]EXT(T)'!Y16)","v":"n.d."},{"$f":"IF(+'[1]EXT(T)'!Z16=\"\",\"\",+'[1]EXT(T)'!Z16)","v":"n.d."},{"$f":"IF(+'[1]EXT(T)'!AA16=\"\",\"\",+'[1]EXT(T)'!AA16)","v":"n.d."},{"$f":"IF(+'[1]EXT(T)'!AB16=\"\",\"\",+'[1]EXT(T)'!AB16)","v":"n.d."},{"$f":"IF(+'[1]EXT(T)'!AC16=\"\",\"\",+'[1]EXT(T)'!AC16)","v":"n.d."},{"$f":"IF(+'[1]EXT(T)'!AE16=\"\",\"\",+'[1]EXT(T)'!AE16)","v":"n.d."},{"$f":"IF(+'[1]EXT(T)'!AF16=\"\",\"\",+'[1]EXT(T)'!AF16)","v":"n.d."},{"$f":"IF(+'[1]EXT(T)'!AY16=\"\",\"\",+'[1]EXT(T)'!AY16)","v":"n.d."},{"$f":"IF(+'[1]EXT(T)'!AZ16=\"\",\"\",+'[1]EXT(T)'!AZ16)","v":"n.d."},"n.d.",{"$f":"IF(+'[1]EXT(T)'!AR16=\"\",\"\",+'[1]EXT(T)'!AR16-'[1]EXT(T)'!AR15)","v":176.59999999999997},"n.d.","n.d.","n.d.","n.d.","n.d.","n.d.","n.d."]
[null,"IV",{"$f":"IF(+'[1]EXT(T)'!M17=\"\",\"\",+'[1]EXT(T)'!M17)","v":"n.d."},{"$f":"IF(+'[1]EXT(T)'!N17=\"\",\"\",+'[1]EXT(T)'!N17)","v":"n.d."},{"$f":"IF(+'[1]EXT(T)'!O17=\"\",\"\",+'[1]EXT(T)'!O17)","v":"n.d."},{"$f":"IF(+'[1]EXT(T)'!P17=\"\",\"\",+'[1]EXT(T)'!P17)","v":"n.d."},{"$f":"IF(+'[1]EXT(T)'!Q17=\"\",\"\",+'[1]EXT(T)'!Q17)","v":"n.d."},{"$f":"IF(+'[1]EXT(T)'!R17=\"\",\"\",+'[1]EXT(T)'!R17)","v":"n.d."},{"$f":"IF(+'[1]EXT(T)'!S17=\"\",\"\",+'[1]EXT(T)'!S17)","v":"n.d."},{"$f":"IF(+'[1]EXT(T)'!U17=\"\",\"\",+'[1]EXT(T)'!U17)","v":"n.d."},{"$f":"IF(+'[1]EXT(T)'!V17=\"\",\"\",+'[1]EXT(T)'!V17)","v":"n.d."},{"$f":"IF(+'[1]EXT(T)'!W17=\"\",\"\",+'[1]EXT(T)'!W17)","v":"n.d."},{"$f":"IF(+'[1]EXT(T)'!X17=\"\",\"\",+'[1]EXT(T)'!X17)","v":"n.d."},{"$f":"IF(+'[1]EXT(T)'!Y17=\"\",\"\",+'[1]EXT(T)'!Y17)","v":"n.d."},{"$f":"IF(+'[1]EXT(T)'!Z17=\"\",\"\",+'[1]EXT(T)'!Z17)","v":"n.d."},{"$f":"IF(+'[1]EXT(T)'!AA17=\"\",\"\",+'[1]EXT(T)'!AA17)","v":"n.d."},{"$f":"IF(+'[1]EXT(T)'!AB17=\"\",\"\",+'[1]EXT(T)'!AB17)","v":"n.d."},{"$f":"IF(+'[1]EXT(T)'!AC17=\"\",\"\",+'[1]EXT(T)'!AC17)","v":"n.d."},{"$f":"IF(+'[1]EXT(T)'!AE17=\"\",\"\",+'[1]EXT(T)'!AE17)","v":"n.d."},{"$f":"IF(+'[1]EXT(T)'!AF17=\"\",\"\",+'[1]EXT(T)'!AF17)","v":"n.d."},{"$f":"IF(+'[1]EXT(T)'!AY17=\"\",\"\",+'[1]EXT(T)'!AY17)","v":"n.d."},{"$f":"IF(+'[1]EXT(T)'!AZ17=\"\",\"\",+'[1]EXT(T)'!AZ17)","v":"n.d."},"n.d.",{"$f":"IF(+'[1]EXT(T)'!AR17=\"\",\"\",+'[1]EXT(T)'!AR17-'[1]EXT(T)'!AR16)","v":201.39999999999998},"n.d.","n.d.","n.d.","n.d.","n.d.","n.d.","n.d."]
[1992,"I",{"$f":"IF(+'[1]EXT(T)'!M18=\"\",\"\",+'[1]EXT(T)'!M18)","v":"n.d."},{"$f":"IF(+'[1]EXT(T)'!N18=\"\",\"\",+'[1]EXT(T)'!N18)","v":"n.d."},{"$f":"IF(+'[1]EXT(T)'!O18=\"\",\"\",+'[1]EXT(T)'!O18)","v":"n.d."},{"$f":"IF(+'[1]EXT(T)'!P18=\"\",\"\",+'[1]EXT(T)'!P18)","v":"n.d."},{"$f":"IF(+'[1]EXT(T)'!Q18=\"\",\"\",+'[1]EXT(T)'!Q18)","v":"n.d."},{"$f":"IF(+'[1]EXT(T)'!R18=\"\",\"\",+'[1]EXT(T)'!R18)","v":"n.d."},{"$f":"IF(+'[1]EXT(T)'!S18=\"\",\"\",+'[1]EXT(T)'!S18)","v":"n.d."},{"$f":"IF(+'[1]EXT(T)'!U18=\"\",\"\",+'[1]EXT(T)'!U18)","v":"n.d."},{"$f":"IF(+'[1]EXT(T)'!V18=\"\",\"\",+'[1]EXT(T)'!V18)","v":"n.d."},{"$f":"IF(+'[1]EXT(T)'!W18=\"\",\"\",+'[1]EXT(T)'!W18)","v":"n.d."},{"$f":"IF(+'[1]EXT(T)'!X18=\"\",\"\",+'[1]EXT(T)'!X18)","v":"n.d."},{"$f":"IF(+'[1]EXT(T)'!Y18=\"\",\"\",+'[1]EXT(T)'!Y18)","v":"n.d."},{"$f":"IF(+'[1]EXT(T)'!Z18=\"\",\"\",+'[1]EXT(T)'!Z18)","v":"n.d."},{"$f":"IF(+'[1]EXT(T)'!AA18=\"\",\"\",+'[1]EXT(T)'!AA18)","v":"n.d."},{"$f":"IF(+'[1]EXT(T)'!AB18=\"\",\"\",+'[1]EXT(T)'!AB18)","v":"n.d."},{"$f":"IF(+'[1]EXT(T)'!AC18=\"\",\"\",+'[1]EXT(T)'!AC18)","v":"n.d."},{"$f":"IF(+'[1]EXT(T)'!AE18=\"\",\"\",+'[1]EXT(T)'!AE18)","v":"n.d."},{"$f":"IF(+'[1]EXT(T)'!AF18=\"\",\"\",+'[1]EXT(T)'!AF18)","v":"n.d."},{"$f":"IF(+'[1]EXT(T)'!AY18=\"\",\"\",+'[1]EXT(T)'!AY18)","v":"n.d."},{"$f":"IF(+'[1]EXT(T)'!AZ18=\"\",\"\",+'[1]EXT(T)'!AZ18)","v":"n.d."},"n.d.",{"$f":"IF(+'[1]EXT(T)'!AR18=\"\",\"\",+'[1]EXT(T)'!AR18)","v":206.6},"n.d.","n.d.","n.d.","n.d.","n.d.","n.d.","n.d."]
[null,"II",{"$f":"IF(+'[1]EXT(T)'!M19=\"\",\"\",+'[1]EXT(T)'!M19)","v":"n.d."},{"$f":"IF(+'[1]EXT(T)'!N19=\"\",\"\",+'[1]EXT(T)'!N19)","v":"n.d."},{"$f":"IF(+'[1]EXT(T)'!O19=\"\",\"\",+'[1]EXT(T)'!O19)","v":"n.d."},{"$f":"IF(+'[1]EXT(T)'!P19=\"\",\"\",+'[1]EXT(T)'!P19)","v":"n.d."},{"$f":"IF(+'[1]EXT(T)'!Q19=\"\",\"\",+'[1]EXT(T)'!Q19)","v":"n.d."},{"$f":"IF(+'[1]EXT(T)'!R19=\"\",\"\",+'[1]EXT(T)'!R19)","v":"n.d."},{"$f":"IF(+'[1]EXT(T)'!S19=\"\",\"\",+'[1]EXT(T)'!S19)","v":"n.d."},{"$f":"IF(+'[1]EXT(T)'!U19=\"\",\"\",+'[1]EXT(T)'!U19)","v":"n.d."},{"$f":"IF(+'[1]EXT(T)'!V19=\"\",\"\",+'[1]EXT(T)'!V19)","v":"n.d."},{"$f":"IF(+'[1]EXT(T)'!W19=\"\",\"\",+'[1]EXT(T)'!W19)","v":"n.d."},{"$f":"IF(+'[1]EXT(T)'!X19=\"\",\"\",+'[1]EXT(T)'!X19)","v":"n.d."},{"$f":"IF(+'[1]EXT(T)'!Y19=\"\",\"\",+'[1]EXT(T)'!Y19)","v":"n.d."},{"$f":"IF(+'[1]EXT(T)'!Z19=\"\",\"\",+'[1]EXT(T)'!Z19)","v":"n.d."},{"$f":"IF(+'[1]EXT(T)'!AA19=\"\",\"\",+'[1]EXT(T)'!AA19)","v":"n.d."},{"$f":"IF(+'[1]EXT(T)'!AB19=\"\",\"\",+'[1]EXT(T)'!AB19)","v":"n.d."},{"$f":"IF(+'[1]EXT(T)'!AC19=\"\",\"\",+'[1]EXT(T)'!AC19)","v":"n.d."},{"$f":"IF(+'[1]EXT(T)'!AE19=\"\",\"\",+'[1]EXT(T)'!AE19)","v":"n.d."},{"$f":"IF(+'[1]EXT(T)'!AF19=\"\",\"\",+'[1]EXT(T)'!AF19)","v":"n.d."},{"$f":"IF(+'[1]EXT(T)'!AY19=\"\",\"\",+'[1]EXT(T)'!AY19)","v":"n.d."},{"$f":"IF(+'[1]EXT(T)'!AZ19=\"\",\"\",+'[1]EXT(T)'!AZ19)","v":"n.d."},"n.d.",{"$f":"IF(+'[1]EXT(T)'!AR19=\"\",\"\",+'[1]EXT(T)'!AR19-'[1]EXT(T)'!AR18)","v":226.4},"n.d.","n.d.","n.d.","n.d.","n.d.","n.d.","n.d."]
[null,"III",{"$f":"IF(+'[1]EXT(T)'!M20=\"\",\"\",+'[1]EXT(T)'!M20)","v":"n.d."},{"$f":"IF(+'[1]EXT(T)'!N20=\"\",\"\",+'[1]EXT(T)'!N20)","v":"n.d."},{"$f":"IF(+'[1]EXT(T)'!O20=\"\",\"\",+'[1]EXT(T)'!O20)","v":"n.d."},{"$f":"IF(+'[1]EXT(T)'!P20=\"\",\"\",+'[1]EXT(T)'!P20)","v":"n.d."},{"$f":"IF(+'[1]EXT(T)'!Q20=\"\",\"\",+'[1]EXT(T)'!Q20)","v":"n.d."},{"$f":"IF(+'[1]EXT(T)'!R20=\"\",\"\",+'[1]EXT(T)'!R20)","v":"n.d."},{"$f":"IF(+'[1]EXT(T)'!S20=\"\",\"\",+'[1]EXT(T)'!S20)","v":"n.d."},{"$f":"IF(+'[1]EXT(T)'!U20=\"\",\"\",+'[1]EXT(T)'!U20)","v":"n.d."},{"$f":"IF(+'[1]EXT(T)'!V20=\"\",\"\",+'[1]EXT(T)'!V20)","v":"n.d."},{"$f":"IF(+'[1]EXT(T)'!W20=\"\",\"\",+'[1]EXT(T)'!W20)","v":"n.d."},{"$f":"IF(+'[1]EXT(T)'!X20=\"\",\"\",+'[1]EXT(T)'!X20)","v":"n.d."},{"$f":"IF(+'[1]EXT(T)'!Y20=\"\",\"\",+'[1]EXT(T)'!Y20)","v":"n.d."},{"$f":"IF(+'[1]EXT(T)'!Z20=\"\",\"\",+'[1]EXT(T)'!Z20)","v":"n.d."},{"$f":"IF(+'[1]EXT(T)'!AA20=\"\",\"\",+'[1]EXT(T)'!AA20)","v":"n.d."},{"$f":"IF(+'[1]EXT(T)'!AB20=\"\",\"\",+'[1]EXT(T)'!AB20)","v":"n.d."},{"$f":"IF(+'[1]EXT(T)'!AC20=\"\",\"\",+'[1]EXT(T)'!AC20)","v":"n.d."},{"$f":"IF(+'[1]EXT(T)'!AE20=\"\",\"\",+'[1]EXT(T)'!AE20)","v":"n.d."},{"$f":"IF(+'[1]EXT(T)'!AF20=\"\",\"\",+'[1]EXT(T)'!AF20)","v":"n.d."},{"$f":"IF(+'[1]EXT(T)'!AY20=\"\",\"\",+'[1]EXT(T)'!AY20)","v":"n.d."},{"$f":"IF(+'[1]EXT(T)'!AZ20=\"\",\"\",+'[1]EXT(T)'!AZ20)","v":"n.d."},"n.d.",{"$f":"IF(+'[1]EXT(T)'!AR20=\"\",\"\",+'[1]EXT(T)'!AR20-'[1]EXT(T)'!AR19)","v":200},"n.d.","n.d.","n.d.","n.d.","n.d.","n.d.","n.d."]
[null,"IV",{"$f":"IF(+'[1]EXT(T)'!M21=\"\",\"\",+'[1]EXT(T)'!M21)","v":"n.d."},{"$f":"IF(+'[1]EXT(T)'!N21=\"\",\"\",+'[1]EXT(T)'!N21)","v":"n.d."},{"$f":"IF(+'[1]EXT(T)'!O21=\"\",\"\",+'[1]EXT(T)'!O21)","v":"n.d."},{"$f":"IF(+'[1]EXT(T)'!P21=\"\",\"\",+'[1]EXT(T)'!P21)","v":"n.d."},{"$f":"IF(+'[1]EXT(T)'!Q21=\"\",\"\",+'[1]EXT(T)'!Q21)","v":"n.d."},{"$f":"IF(+'[1]EXT(T)'!R21=\"\",\"\",+'[1]EXT(T)'!R21)","v":"n.d."},{"$f":"IF(+'[1]EXT(T)'!S21=\"\",\"\",+'[1]EXT(T)'!S21)","v":"n.d."},{"$f":"IF(+'[1]EXT(T)'!U21=\"\",\"\",+'[1]EXT(T)'!U21)","v":"n.d."},{"$f":"IF(+'[1]EXT(T)'!V21=\"\",\"\",+'[1]EXT(T)'!V21)","v":"n.d."},{"$f":"IF(+'[1]EXT(T)'!W21=\"\",\"\",+'[1]EXT(T)'!W21)","v":"n.d."},{"$f":"IF(+'[1]EXT(T)'!X21=\"\",\"\",+'[1]EXT(T)'!X21)","v":"n.d."},{"$f":"IF(+'[1]EXT(T)'!Y21=\"\",\"\",+'[1]EXT(T)'!Y21)","v":"n.d."},{"$f":"IF(+'[1]EXT(T)'!Z21=\"\",\"\",+'[1]EXT(T)'!Z21)","v":"n.d."},{"$f":"IF(+'[1]EXT(T)'!AA21=\"\",\"\",+'[1]EXT(T)'!AA21)","v":"n.d."},{"$f":"IF(+'[1]EXT(T)'!AB21=\"\",\"\",+'[1]EXT(T)'!AB21)","v":"n.d."},{"$f":"IF(+'[1]EXT(T)'!AC21=\"\",\"\",+'[1]EXT(T)'!AC21)","v":"n.d."},{"$f":"IF(+'[1]EXT(T)'!AE21=\"\",\"\",+'[1]EXT(T)'!AE21)","v":"n.d."},{"$f":"IF(+'[1]EXT(T)'!AF21=\"\",\"\",+'[1]EXT(T)'!AF21)","v":"n.d."},{"$f":"IF(+'[1]EXT(T)'!AY21=\"\",\"\",+'[1]EXT(T)'!AY21)","v":"n.d."},{"$f":"IF(+'[1]EXT(T)'!AZ21=\"\",\"\",+'[1]EXT(T)'!AZ21)","v":"n.d."},"n.d.",{"$f":"IF(+'[1]EXT(T)'!AR21=\"\",\"\",+'[1]EXT(T)'!AR21-'[1]EXT(T)'!AR20)","v":225.29999999999995},"n.d.","n.d.","n.d.","n.d.","n.d.","n.d.","n.d."]
[1993,"I",{"$f":"IF(+'[1]EXT(T)'!M22=\"\",\"\",+'[1]EXT(T)'!M22)","v":"n.d."},{"$f":"IF(+'[1]EXT(T)'!N22=\"\",\"\",+'[1]EXT(T)'!N22)","v":"n.d."},{"$f":"IF(+'[1]EXT(T)'!O22=\"\",\"\",+'[1]EXT(T)'!O22)","v":"n.d."},{"$f":"IF(+'[1]EXT(T)'!P22=\"\",\"\",+'[1]EXT(T)'!P22)","v":"n.d."},{"$f":"IF(+'[1]EXT(T)'!Q22=\"\",\"\",+'[1]EXT(T)'!Q22)","v":"n.d."},{"$f":"IF(+'[1]EXT(T)'!R22=\"\",\"\",+'[1]EXT(T)'!R22)","v":"n.d."},{"$f":"IF(+'[1]EXT(T)'!S22=\"\",\"\",+'[1]EXT(T)'!S22)","v":"n.d."},{"$f":"IF(+'[1]EXT(T)'!U22=\"\",\"\",+'[1]EXT(T)'!U22)","v":"n.d."},{"$f":"IF(+'[1]EXT(T)'!V22=\"\",\"\",+'[1]EXT(T)'!V22)","v":"n.d."},{"$f":"IF(+'[1]EXT(T)'!W22=\"\",\"\",+'[1]EXT(T)'!W22)","v":"n.d."},{"$f":"IF(+'[1]EXT(T)'!X22=\"\",\"\",+'[1]EXT(T)'!X22)","v":"n.d."},{"$f":"IF(+'[1]EXT(T)'!Y22=\"\",\"\",+'[1]EXT(T)'!Y22)","v":"n.d."},{"$f":"IF(+'[1]EXT(T)'!Z22=\"\",\"\",+'[1]EXT(T)'!Z22)","v":"n.d."},{"$f":"IF(+'[1]EXT(T)'!AA22=\"\",\"\",+'[1]EXT(T)'!AA22)","v":"n.d."},{"$f":"IF(+'[1]EXT(T)'!AB22=\"\",\"\",+'[1]EXT(T)'!AB22)","v":"n.d."},{"$f":"IF(+'[1]EXT(T)'!AC22=\"\",\"\",+'[1]EXT(T)'!AC22)","v":"n.d."},{"$f":"IF(+'[1]EXT(T)'!AE22=\"\",\"\",+'[1]EXT(T)'!AE22)","v":"n.d."},{"$f":"IF(+'[1]EXT(T)'!AF22=\"\",\"\",+'[1]EXT(T)'!AF22)","v":"n.d."},{"$f":"IF(+'[1]EXT(T)'!AY22=\"\",\"\",+'[1]EXT(T)'!AY22)","v":"n.d."},{"$f":"IF(+'[1]EXT(T)'!AZ22=\"\",\"\",+'[1]EXT(T)'!AZ22)","v":"n.d."},"n.d.",{"$f":"IF(+'[1]EXT(T)'!AR22=\"\",\"\",+'[1]EXT(T)'!AR22)","v":204},"n.d.","n.d.","n.d.","n.d.","n.d.","n.d.","n.d."]
[null,"II",{"$f":"IF(+'[1]EXT(T)'!M23=\"\",\"\",+'[1]EXT(T)'!M23)","v":"n.d."},{"$f":"IF(+'[1]EXT(T)'!N23=\"\",\"\",+'[1]EXT(T)'!N23)","v":"n.d."},{"$f":"IF(+'[1]EXT(T)'!O23=\"\",\"\",+'[1]EXT(T)'!O23)","v":"n.d."},{"$f":"IF(+'[1]EXT(T)'!P23=\"\",\"\",+'[1]EXT(T)'!P23)","v":"n.d."},{"$f":"IF(+'[1]EXT(T)'!Q23=\"\",\"\",+'[1]EXT(T)'!Q23)","v":"n.d."},{"$f":"IF(+'[1]EXT(T)'!R23=\"\",\"\",+'[1]EXT(T)'!R23)","v":"n.d."},{"$f":"IF(+'[1]EXT(T)'!S23=\"\",\"\",+'[1]EXT(T)'!S23)","v":"n.d."},{"$f":"IF(+'[1]EXT(T)'!U23=\"\",\"\",+'[1]EXT(T)'!U23)","v":"n.d."},{"$f":"IF(+'[1]EXT(T)'!V23=\"\",\"\",+'[1]EXT(T)'!V23)","v":"n.d."},{"$f":"IF(+'[1]EXT(T)'!W23=\"\",\"\",+'[1]EXT(T)'!W23)","v":"n.d."},{"$f":"IF(+'[1]EXT(T)'!X23=\"\",\"\",+'[1]EXT(T)'!X23)","v":"n.d."},{"$f":"IF(+'[1]EXT(T)'!Y23=\"\",\"\",+'[1]EXT(T)'!Y23)","v":"n.d."},{"$f":"IF(+'[1]EXT(T)'!Z23=\"\",\"\",+'[1]EXT(T)'!Z23)","v":"n.d."},{"$f":"IF(+'[1]EXT(T)'!AA23=\"\",\"\",+'[1]EXT(T)'!AA23)","v":"n.d."},{"$f":"IF(+'[1]EXT(T)'!AB23=\"\",\"\",+'[1]EXT(T)'!AB23)","v":"n.d."},{"$f":"IF(+'[1]EXT(T)'!AC23=\"\",\"\",+'[1]EXT(T)'!AC23)","v":"n.d."},{"$f":"IF(+'[1]EXT(T)'!AE23=\"\",\"\",+'[1]EXT(T)'!AE23)","v":"n.d."},{"$f":"IF(+'[1]EXT(T)'!AF23=\"\",\"\",+'[1]EXT(T)'!AF23)","v":"n.d."},{"$f":"IF(+'[1]EXT(T)'!AY23=\"\",\"\",+'[1]EXT(T)'!AY23)","v":"n.d."},{"$f":"IF(+'[1]EXT(T)'!AZ23=\"\",\"\",+'[1]EXT(T)'!AZ23)","v":"n.d."},"n.d.",{"$f":"IF(+'[1]EXT(T)'!AR23=\"\",\"\",+'[1]EXT(T)'!AR23-'[1]EXT(T)'!AR22)","v":223.60000000000002},"n.d.","n.d.","n.d.","n.d.","n.d.","n.d.","n.d."]
[null,"III",{"$f":"IF(+'[1]EXT(T)'!M24=\"\",\"\",+'[1]EXT(T)'!M24)","v":"n.d."},{"$f":"IF(+'[1]EXT(T)'!N24=\"\",\"\",+'[1]EXT(T)'!N24)","v":"n.d."},{"$f":"IF(+'[1]EXT(T)'!O24=\"\",\"\",+'[1]EXT(T)'!O24)","v":"n.d."},{"$f":"IF(+'[1]EXT(T)'!P24=\"\",\"\",+'[1]EXT(T)'!P24)","v":"n.d."},{"$f":"IF(+'[1]EXT(T)'!Q24=\"\",\"\",+'[1]EXT(T)'!Q24)","v":"n.d."},{"$f":"IF(+'[1]EXT(T)'!R24=\"\",\"\",+'[1]EXT(T)'!R24)","v":"n.d."},{"$f":"IF(+'[1]EXT(T)'!S24=\"\",\"\",+'[1]EXT(T)'!S24)","v":"n.d."},{"$f":"IF(+'[1]EXT(T)'!U24=\"\",\"\",+'[1]EXT(T)'!U24)","v":"n.d."},{"$f":"IF(+'[1]EXT(T)'!V24=\"\",\"\",+'[1]EXT(T)'!V24)","v":"n.d."},{"$f":"IF(+'[1]EXT(T)'!W24=\"\",\"\",+'[1]EXT(T)'!W24)","v":"n.d."},{"$f":"IF(+'[1]EXT(T)'!X24=\"\",\"\",+'[1]EXT(T)'!X24)","v":"n.d."},{"$f":"IF(+'[1]EXT(T)'!Y24=\"\",\"\",+'[1]EXT(T)'!Y24)","v":"n.d."},{"$f":"IF(+'[1]EXT(T)'!Z24=\"\",\"\",+'[1]EXT(T)'!Z24)","v":"n.d."},{"$f":"IF(+'[1]EXT(T)'!AA24=\"\",\"\",+'[1]EXT(T)'!AA24)","v":"n.d."},{"$f":"IF(+'[1]EXT(T)'!AB24=\"\",\"\",+'[1]EXT(T)'!AB24)","v":"n.d."},{"$f":"IF(+'[1]EXT(T)'!AC24=\"\",\"\",+'[1]EXT(T)'!AC24)","v":"n.d."},{"$f":"IF(+'[1]EXT(T)'!AE24=\"\",\"\",+'[1]EXT(T)'!AE24)","v":"n.d."},{"$f":"IF(+'[1]EXT(T)'!AF24=\"\",\"\",+'[1]EXT(T)'!AF24)","v":"n.d."},{"$f":"IF(+'[1]EXT(T)'!AY24=\"\",\"\",+'[1]EXT(T)'!AY24)","v":"n.d."},{"$f":"IF(+'[1]EXT(T)'!AZ24=\"\",\"\",+'[1]EXT(T)'!AZ24)","v":"n.d."},"n.d.",{"$f":"IF(+'[1]EXT(T)'!AR24=\"\",\"\",+'[1]EXT(T)'!AR24-'[1]EXT(T)'!AR23)","v":207.60000000000002},"n.d.","n.d.","n.d.","n.d.","n.d.","n.d.","n.d."]
[null,"IV",{"$f":"IF(+'[1]EXT(T)'!M25=\"\",\"\",+'[1]EXT(T)'!M25)","v":"n.d."},{"$f":"IF(+'[1]EXT(T)'!N25=\"\",\"\",+'[1]EXT(T)'!N25)","v":"n.d."},{"$f":"IF(+'[1]EXT(T)'!O25=\"\",\"\",+'[1]EXT(T)'!O25)","v":"n.d."},{"$f":"IF(+'[1]EXT(T)'!P25=\"\",\"\",+'[1]EXT(T)'!P25)","v":"n.d."},{"$f":"IF(+'[1]EXT(T)'!Q25=\"\",\"\",+'[1]EXT(T)'!Q25)","v":"n.d."},{"$f":"IF(+'[1]EXT(T)'!R25=\"\",\"\",+'[1]EXT(T)'!R25)","v":"n.d."},{"$f":"IF(+'[1]EXT(T)'!S25=\"\",\"\",+'[1]EXT(T)'!S25)","v":"n.d."},{"$f":"IF(+'[1]EXT(T)'!U25=\"\",\"\",+'[1]EXT(T)'!U25)","v":"n.d."},{"$f":"IF(+'[1]EXT(T)'!V25=\"\",\"\",+'[1]EXT(T)'!V25)","v":"n.d."},{"$f":"IF(+'[1]EXT(T)'!W25=\"\",\"\",+'[1]EXT(T)'!W25)","v":"n.d."},{"$f":"IF(+'[1]EXT(T)'!X25=\"\",\"\",+'[1]EXT(T)'!X25)","v":"n.d."},{"$f":"IF(+'[1]EXT(T)'!Y25=\"\",\"\",+'[1]EXT(T)'!Y25)","v":"n.d."},{"$f":"IF(+'[1]EXT(T)'!Z25=\"\",\"\",+'[1]EXT(T)'!Z25)","v":"n.d."},{"$f":"IF(+'[1]EXT(T)'!AA25=\"\",\"\",+'[1]EXT(T)'!AA25)","v":"n.d."},{"$f":"IF(+'[1]EXT(T)'!AB25=\"\",\"\",+'[1]EXT(T)'!AB25)","v":"n.d."},{"$f":"IF(+'[1]EXT(T)'!AC25=\"\",\"\",+'[1]EXT(T)'!AC25)","v":"n.d."},{"$f":"IF(+'[1]EXT(T)'!AE25=\"\",\"\",+'[1]EXT(T)'!AE25)","v":"n.d."},{"$f":"IF(+'[1]EXT(T)'!AF25=\"\",\"\",+'[1]EXT(T)'!AF25)","v":"n.d."},{"$f":"IF(+'[1]EXT(T)'!AY25=\"\",\"\",+'[1]EXT(T)'!AY25)","v":"n.d."},{"$f":"IF(+'[1]EXT(T)'!AZ25=\"\",\"\",+'[1]EXT(T)'!AZ25)","v":"n.d."},"n.d.",{"$f":"IF(+'[1]EXT(T)'!AR25=\"\",\"\",+'[1]EXT(T)'!AR25-'[1]EXT(T)'!AR24)","v":228.90000000000009},"n.d.","n.d.","n.d.","n.d.","n.d.","n.d.","n.d."]
[1994,"I",{"$f":"IF(+'[1]EXT(T)'!M26=\"\",\"\",+'[1]EXT(T)'!M26)","v":"n.d."},{"$f":"IF(+'[1]EXT(T)'!N26=\"\",\"\",+'[1]EXT(T)'!N26)","v":"n.d."},{"$f":"IF(+'[1]EXT(T)'!O26=\"\",\"\",+'[1]EXT(T)'!O26)","v":"n.d."},{"$f":"IF(+'[1]EXT(T)'!P26=\"\",\"\",+'[1]EXT(T)'!P26)","v":"n.d."},{"$f":"IF(+'[1]EXT(T)'!Q26=\"\",\"\",+'[1]EXT(T)'!Q26)","v":"n.d."},{"$f":"IF(+'[1]EXT(T)'!R26=\"\",\"\",+'[1]EXT(T)'!R26)","v":"n.d."},{"$f":"IF(+'[1]EXT(T)'!S26=\"\",\"\",+'[1]EXT(T)'!S26)","v":"n.d."},{"$f":"IF(+'[1]EXT(T)'!U26=\"\",\"\",+'[1]EXT(T)'!U26)","v":"n.d."},{"$f":"IF(+'[1]EXT(T)'!V26=\"\",\"\",+'[1]EXT(T)'!V26)","v":"n.d."},{"$f":"IF(+'[1]EXT(T)'!W26=\"\",\"\",+'[1]EXT(T)'!W26)","v":"n.d."},{"$f":"IF(+'[1]EXT(T)'!X26=\"\",\"\",+'[1]EXT(T)'!X26)","v":"n.d."},{"$f":"IF(+'[1]EXT(T)'!Y26=\"\",\"\",+'[1]EXT(T)'!Y26)","v":"n.d."},{"$f":"IF(+'[1]EXT(T)'!Z26=\"\",\"\",+'[1]EXT(T)'!Z26)","v":"n.d."},{"$f":"IF(+'[1]EXT(T)'!AA26=\"\",\"\",+'[1]EXT(T)'!AA26)","v":"n.d."},{"$f":"IF(+'[1]EXT(T)'!AB26=\"\",\"\",+'[1]EXT(T)'!AB26)","v":"n.d."},{"$f":"IF(+'[1]EXT(T)'!AC26=\"\",\"\",+'[1]EXT(T)'!AC26)","v":"n.d."},{"$f":"IF(+'[1]EXT(T)'!AE26=\"\",\"\",+'[1]EXT(T)'!AE26)","v":"n.d."},{"$f":"IF(+'[1]EXT(T)'!AF26=\"\",\"\",+'[1]EXT(T)'!AF26)","v":"n.d."},{"$f":"IF(+'[1]EXT(T)'!AY26=\"\",\"\",+'[1]EXT(T)'!AY26)","v":"n.d."},{"$f":"IF(+'[1]EXT(T)'!AZ26=\"\",\"\",+'[1]EXT(T)'!AZ26)","v":"n.d."},"n.d.",{"$f":"IF(+'[1]EXT(T)'!AR26=\"\",\"\",+'[1]EXT(T)'!AR26)","v":223.4},{"$f":"IF(+'[1]EXT(T)'!AS26=\"\",\"\",+'[1]EXT(T)'!AS26)","v":58.029300000000006},"n.d.","n.d.","n.d.","n.d.","n.d.","n.d."]
[null,"II",{"$f":"IF(+'[1]EXT(T)'!M27=\"\",\"\",+'[1]EXT(T)'!M27)","v":"n.d."},{"$f":"IF(+'[1]EXT(T)'!N27=\"\",\"\",+'[1]EXT(T)'!N27)","v":"n.d."},{"$f":"IF(+'[1]EXT(T)'!O27=\"\",\"\",+'[1]EXT(T)'!O27)","v":"n.d."},{"$f":"IF(+'[1]EXT(T)'!P27=\"\",\"\",+'[1]EXT(T)'!P27)","v":"n.d."},{"$f":"IF(+'[1]EXT(T)'!Q27=\"\",\"\",+'[1]EXT(T)'!Q27)","v":"n.d."},{"$f":"IF(+'[1]EXT(T)'!R27=\"\",\"\",+'[1]EXT(T)'!R27)","v":"n.d."},{"$f":"IF(+'[1]EXT(T)'!S27=\"\",\"\",+'[1]EXT(T)'!S27)","v":"n.d."},{"$f":"IF(+'[1]EXT(T)'!U27=\"\",\"\",+'[1]EXT(T)'!U27)","v":"n.d."},{"$f":"IF(+'[1]EXT(T)'!V27=\"\",\"\",+'[1]EXT(T)'!V27)","v":"n.d."},{"$f":"IF(+'[1]EXT(T)'!W27=\"\",\"\",+'[1]EXT(T)'!W27)","v":"n.d."},{"$f":"IF(+'[1]EXT(T)'!X27=\"\",\"\",+'[1]EXT(T)'!X27)","v":"n.d."},{"$f":"IF(+'[1]EXT(T)'!Y27=\"\",\"\",+'[1]EXT(T)'!Y27)","v":"n.d."},{"$f":"IF(+'[1]EXT(T)'!Z27=\"\",\"\",+'[1]EXT(T)'!Z27)","v":"n.d."},{"$f":"IF(+'[1]EXT(T)'!AA27=\"\",\"\",+'[1]EXT(T)'!AA27)","v":"n.d."},{"$f":"IF(+'[1]EXT(T)'!AB27=\"\",\"\",+'[1]EXT(T)'!AB27)","v":"n.d."},{"$f":"IF(+'[1]EXT(T)'!AC27=\"\",\"\",+'[1]EXT(T)'!AC27)","v":"n.d."},{"$f":"IF(+'[1]EXT(T)'!AE27=\"\",\"\",+'[1]EXT(T)'!AE27)","v":"n.d."},{"$f":"IF(+'[1]EXT(T)'!AF27=\"\",\"\",+'[1]EXT(T)'!AF27)","v":"n.d."},{"$f":"IF(+'[1]EXT(T)'!AY27=\"\",\"\",+'[1]EXT(T)'!AY27)","v":"n.d."},{"$f":"IF(+'[1]EXT(T)'!AZ27=\"\",\"\",+'[1]EXT(T)'!AZ27)","v":"n.d."},"n.d.",{"$f":"IF(+'[1]EXT(T)'!AR27=\"\",\"\",+'[1]EXT(T)'!AR27-'[1]EXT(T)'!AR26)","v":244.29999999999993},{"$f":"IF(+'[1]EXT(T)'!AS27=\"\",\"\",+'[1]EXT(T)'!AS27-'[1]EXT(T)'!AS26)","v":84.6464},"n.d.","n.d.","n.d.","n.d.","n.d.","n.d."]
[null,"III",{"$f":"IF(+'[1]EXT(T)'!M28=\"\",\"\",+'[1]EXT(T)'!M28)","v":"n.d."},{"$f":"IF(+'[1]EXT(T)'!N28=\"\",\"\",+'[1]EXT(T)'!N28)","v":"n.d."},{"$f":"IF(+'[1]EXT(T)'!O28=\"\",\"\",+'[1]EXT(T)'!O28)","v":"n.d."},{"$f":"IF(+'[1]EXT(T)'!P28=\"\",\"\",+'[1]EXT(T)'!P28)","v":"n.d."},{"$f":"IF(+'[1]EXT(T)'!Q28=\"\",\"\",+'[1]EXT(T)'!Q28)","v":"n.d."},{"$f":"IF(+'[1]EXT(T)'!R28=\"\",\"\",+'[1]EXT(T)'!R28)","v":"n.d."},{"$f":"IF(+'[1]EXT(T)'!S28=\"\",\"\",+'[1]EXT(T)'!S28)","v":"n.d."},{"$f":"IF(+'[1]EXT(T)'!U28=\"\",\"\",+'[1]EXT(T)'!U28)","v":"n.d."},{"$f":"IF(+'[1]EXT(T)'!V28=\"\",\"\",+'[1]EXT(T)'!V28)","v":"n.d."},{"$f":"IF(+'[1]EXT(T)'!W28=\"\",\"\",+'[1]EXT(T)'!W28)","v":"n.d."},{"$f":"IF(+'[1]EXT(T)'!X28=\"\",\"\",+'[1]EXT(T)'!X28)","v":"n.d."},{"$f":"IF(+'[1]EXT(T)'!Y28=\"\",\"\",+'[1]EXT(T)'!Y28)","v":"n.d."},{"$f":"IF(+'[1]EXT(T)'!Z28=\"\",\"\",+'[1]EXT(T)'!Z28)","v":"n.d."},{"$f":"IF(+'[1]EXT(T)'!AA28=\"\",\"\",+'[1]EXT(T)'!AA28)","v":"n.d."},{"$f":"IF(+'[1]EXT(T)'!AB28=\"\",\"\",+'[1]EXT(T)'!AB28)","v":"n.d."},{"$f":"IF(+'[1]EXT(T)'!AC28=\"\",\"\",+'[1]EXT(T)'!AC28)","v":"n.d."},{"$f":"IF(+'[1]EXT(T)'!AE28=\"\",\"\",+'[1]EXT(T)'!AE28)","v":"n.d."},{"$f":"IF(+'[1]EXT(T)'!AF28=\"\",\"\",+'[1]EXT(T)'!AF28)","v":"n.d."},{"$f":"IF(+'[1]EXT(T)'!AY28=\"\",\"\",+'[1]EXT(T)'!AY28)","v":"n.d."},{"$f":"IF(+'[1]EXT(T)'!AZ28=\"\",\"\",+'[1]EXT(T)'!AZ28)","v":"n.d."},"n.d.",{"$f":"IF(+'[1]EXT(T)'!AR28=\"\",\"\",+'[1]EXT(T)'!AR28-'[1]EXT(T)'!AR27)","v":241.89999999999998},{"$f":"IF(+'[1]EXT(T)'!AS28=\"\",\"\",+'[1]EXT(T)'!AS28-'[1]EXT(T)'!AS27)","v":82.085599999999999},"n.d.","n.d.","n.d.","n.d.","n.d.","n.d."]
[null,"IV",{"$f":"IF(+'[1]EXT(T)'!M29=\"\",\"\",+'[1]EXT(T)'!M29)","v":"n.d."},{"$f":"IF(+'[1]EXT(T)'!N29=\"\",\"\",+'[1]EXT(T)'!N29)","v":"n.d."},{"$f":"IF(+'[1]EXT(T)'!O29=\"\",\"\",+'[1]EXT(T)'!O29)","v":"n.d."},{"$f":"IF(+'[1]EXT(T)'!P29=\"\",\"\",+'[1]EXT(T)'!P29)","v":"n.d."},{"$f":"IF(+'[1]EXT(T)'!Q29=\"\",\"\",+'[1]EXT(T)'!Q29)","v":"n.d."},{"$f":"IF(+'[1]EXT(T)'!R29=\"\",\"\",+'[1]EXT(T)'!R29)","v":"n.d."},{"$f":"IF(+'[1]EXT(T)'!S29=\"\",\"\",+'[1]EXT(T)'!S29)","v":"n.d."},{"$f":"IF(+'[1]EXT(T)'!U29=\"\",\"\",+'[1]EXT(T)'!U29)","v":"n.d."},{"$f":"IF(+'[1]EXT(T)'!V29=\"\",\"\",+'[1]EXT(T)'!V29)","v":"n.d."},{"$f":"IF(+'[1]EXT(T)'!W29=\"\",\"\",+'[1]EXT(T)'!W29)","v":"n.d."},{"$f":"IF(+'[1]EXT(T)'!X29=\"\",\"\",+'[1]EXT(T)'!X29)","v":"n.d."},{"$f":"IF(+'[1]EXT(T)'!Y29=\"\",\"\",+'[1]EXT(T)'!Y29)","v":"n.d."},{"$f":"IF(+'[1]EXT(T)'!Z29=\"\",\"\",+'[1]EXT(T)'!Z29)","v":"n.d."},{"$f":"IF(+'[1]EXT(T)'!AA29=\"\",\"\",+'[1]EXT(T)'!AA29)","v":"n.d."},{"$f":"IF(+'[1]EXT(T)'!AB29=\"\",\"\",+'[1]EXT(T)'!AB29)","v":"n.d."},{"$f":"IF(+'[1]EXT(T)'!AC29=\"\",\"\",+'[1]EXT(T)'!AC29)","v":"n.d."},{"$f":"IF(+'[1]EXT(T)'!AE29=\"\",\"\",+'[1]EXT(T)'!AE29)","v":"n.d."},{"$f":"IF(+'[1]EXT(T)'!AF29=\"\",\"\",+'[1]EXT(T)'!AF29)","v":"n.d."},{"$f":"IF(+'[1]EXT(T)'!AY29=\"\",\"\",+'[1]EXT(T)'!AY29)","v":"n.d."},{"$f":"IF(+'[1]EXT(T)'!AZ29=\"\",\"\",+'[1]EXT(T)'!AZ29)","v":"n.d."},"n.d.",{"$f":"IF(+'[1]EXT(T)'!AR29=\"\",\"\",+'[1]EXT(T)'!AR29-'[1]EXT(T)'!AR28)","v":252.89999999999998},{"$f":"IF(+'[1]EXT(T)'!AS29=\"\",\"\",+'[1]EXT(T)'!AS29-'[1]EXT(T)'!AS28)","v":77.286099999999976},"n.d.","n.d.","n.d.","n.d.","n.d.","n.d."]
[1995,"I",{"$f":"IF(+'[1]EXT(T)'!M30=\"\",\"\",+'[1]EXT(T)'!M30)","v":"n.d."},{"$f":"IF(+'[1]EXT(T)'!N30=\"\",\"\",+'[1]EXT(T)'!N30)","v":"n.d."},{"$f":"IF(+'[1]EXT(T)'!O30=\"\",\"\",+'[1]EXT(T)'!O30)","v":"n.d."},{"$f":"IF(+'[1]EXT(T)'!P30=\"\",\"\",+'[1]EXT(T)'!P30)","v":"n.d."},{"$f":"IF(+'[1]EXT(T)'!Q30=\"\",\"\",+'[1]EXT(T)'!Q30)","v":"n.d."},{"$f":"IF(+'[1]EXT(T)'!R30=\"\",\"\",+'[1]EXT(T)'!R30)","v":"n.d."},{"$f":"IF(+'[1]EXT(T)'!S30=\"\",\"\",+'[1]EXT(T)'!S30)","v":"n.d."},{"$f":"IF(+'[1]EXT(T)'!U30=\"\",\"\",+'[1]EXT(T)'!U30)","v":"n.d."},{"$f":"IF(+'[1]EXT(T)'!V30=\"\",\"\",+'[1]EXT(T)'!V30)","v":"n.d."},{"$f":"IF(+'[1]EXT(T)'!W30=\"\",\"\",+'[1]EXT(T)'!W30)","v":"n.d."},{"$f":"IF(+'[1]EXT(T)'!X30=\"\",\"\",+'[1]EXT(T)'!X30)","v":"n.d."},{"$f":"IF(+'[1]EXT(T)'!Y30=\"\",\"\",+'[1]EXT(T)'!Y30)","v":"n.d."},{"$f":"IF(+'[1]EXT(T)'!Z30=\"\",\"\",+'[1]EXT(T)'!Z30)","v":"n.d."},{"$f":"IF(+'[1]EXT(T)'!AA30=\"\",\"\",+'[1]EXT(T)'!AA30)","v":"n.d."},{"$f":"IF(+'[1]EXT(T)'!AB30=\"\",\"\",+'[1]EXT(T)'!AB30)","v":"n.d."},{"$f":"IF(+'[1]EXT(T)'!AC30=\"\",\"\",+'[1]EXT(T)'!AC30)","v":"n.d."},{"$f":"IF(+'[1]EXT(T)'!AE30=\"\",\"\",+'[1]EXT(T)'!AE30)","v":"n.d."},{"$f":"IF(+'[1]EXT(T)'!AF30=\"\",\"\",+'[1]EXT(T)'!AF30)","v":"n.d."},{"$f":"IF(+'[1]EXT(T)'!AY30=\"\",\"\",+'[1]EXT(T)'!AY30)","v":"n.d."},{"$f":"IF(+'[1]EXT(T)'!AZ30=\"\",\"\",+'[1]EXT(T)'!AZ30)","v":"n.d."},"n.d.",{"$f":"IF(+'[1]EXT(T)'!AR30=\"\",\"\",+'[1]EXT(T)'!AR30)","v":242.7},{"$f":"IF(+'[1]EXT(T)'!AS30=\"\",\"\",+'[1]EXT(T)'!AS30)","v":90.727499999999992},"n.d.","n.d.","n.d.","n.d.","n.d.","n.d."]
[null,"II",{"$f":"IF(+'[1]EXT(T)'!M31=\"\",\"\",+'[1]EXT(T)'!M31)","v":"n.d."},{"$f":"IF(+'[1]EXT(T)'!N31=\"\",\"\",+'[1]EXT(T)'!N31)","v":"n.d."},{"$f":"IF(+'[1]EXT(T)'!O31=\"\",\"\",+'[1]EXT(T)'!O31)","v":"n.d."},{"$f":"IF(+'[1]EXT(T)'!P31=\"\",\"\",+'[1]EXT(T)'!P31)","v":"n.d."},{"$f":"IF(+'[1]EXT(T)'!Q31=\"\",\"\",+'[1]EXT(T)'!Q31)","v":"n.d."},{"$f":"IF(+'[1]EXT(T)'!R31=\"\",\"\",+'[1]EXT(T)'!R31)","v":"n.d."},{"$f":"IF(+'[1]EXT(T)'!S31=\"\",\"\",+'[1]EXT(T)'!S31)","v":"n.d."},{"$f":"IF(+'[1]EXT(T)'!U31=\"\",\"\",+'[1]EXT(T)'!U31)","v":"n.d."},{"$f":"IF(+'[1]EXT(T)'!V31=\"\",\"\",+'[1]EXT(T)'!V31)","v":"n.d."},{"$f":"IF(+'[1]EXT(T)'!W31=\"\",\"\",+'[1]EXT(T)'!W31)","v":"n.d."},{"$f":"IF(+'[1]EXT(T)'!X31=\"\",\"\",+'[1]EXT(T)'!X31)","v":"n.d."},{"$f":"IF(+'[1]EXT(T)'!Y31=\"\",\"\",+'[1]EXT(T)'!Y31)","v":"n.d."},{"$f":"IF(+'[1]EXT(T)'!Z31=\"\",\"\",+'[1]EXT(T)'!Z31)","v":"n.d."},{"$f":"IF(+'[1]EXT(T)'!AA31=\"\",\"\",+'[1]EXT(T)'!AA31)","v":"n.d."},{"$f":"IF(+'[1]EXT(T)'!AB31=\"\",\"\",+'[1]EXT(T)'!AB31)","v":"n.d."},{"$f":"IF(+'[1]EXT(T)'!AC31=\"\",\"\",+'[1]EXT(T)'!AC31)","v":"n.d."},{"$f":"IF(+'[1]EXT(T)'!AE31=\"\",\"\",+'[1]EXT(T)'!AE31)","v":"n.d."},{"$f":"IF(+'[1]EXT(T)'!AF31=\"\",\"\",+'[1]EXT(T)'!AF31)","v":"n.d."},{"$f":"IF(+'[1]EXT(T)'!AY31=\"\",\"\",+'[1]EXT(T)'!AY31)","v":"n.d."},{"$f":"IF(+'[1]EXT(T)'!AZ31=\"\",\"\",+'[1]EXT(T)'!AZ31)","v":"n.d."},"n.d.",{"$f":"IF(+'[1]EXT(T)'!AR31=\"\",\"\",+'[1]EXT(T)'!AR31-'[1]EXT(T)'!AR30)","v":265.90000000000003},{"$f":"IF(+'[1]EXT(T)'!AS31=\"\",\"\",+'[1]EXT(T)'!AS31-'[1]EXT(T)'!AS30)","v":114.87860000000001},"n.d.","n.d.","n.d.","n.d.","n.d.","n.d."]
[null,"III",{"$f":"IF(+'[1]EXT(T)'!M32=\"\",\"\",+'[1]EXT(T)'!M32)","v":"n.d."},{"$f":"IF(+'[1]EXT(T)'!N32=\"\",\"\",+'[1]EXT(T)'!N32)","v":"n.d."},{"$f":"IF(+'[1]EXT(T)'!O32=\"\",\"\",+'[1]EXT(T)'!O32)","v":"n.d."},{"$f":"IF(+'[1]EXT(T)'!P32=\"\",\"\",+'[1]EXT(T)'!P32)","v":"n.d."},{"$f":"IF(+'[1]EXT(T)'!Q32=\"\",\"\",+'[1]EXT(T)'!Q32)","v":"n.d."},{"$f":"IF(+'[1]EXT(T)'!R32=\"\",\"\",+'[1]EXT(T)'!R32)","v":"n.d."},{"$f":"IF(+'[1]EXT(T)'!S32=\"\",\"\",+'[1]EXT(T)'!S32)","v":"n.d."},{"$f":"IF(+'[1]EXT(T)'!U32=\"\",\"\",+'[1]EXT(T)'!U32)","v":"n.d."},{"$f":"IF(+'[1]EXT(T)'!V32=\"\",\"\",+'[1]EXT(T)'!V32)","v":"n.d."},{"$f":"IF(+'[1]EXT(T)'!W32=\"\",\"\",+'[1]EXT(T)'!W32)","v":"n.d."},{"$f":"IF(+'[1]EXT(T)'!X32=\"\",\"\",+'[1]EXT(T)'!X32)","v":"n.d."},{"$f":"IF(+'[1]EXT(T)'!Y32=\"\",\"\",+'[1]EXT(T)'!Y32)","v":"n.d."},{"$f":"IF(+'[1]EXT(T)'!Z32=\"\",\"\",+'[1]EXT(T)'!Z32)","v":"n.d."},{"$f":"IF(+'[1]EXT(T)'!AA32=\"\",\"\",+'[1]EXT(T)'!AA32)","v":"n.d."},{"$f":"IF(+'[1]EXT(T)'!AB32=\"\",\"\",+'[1]EXT(T)'!AB32)","v":"n.d."},{"$f":"IF(+'[1]EXT(T)'!AC32=\"\",\"\",+'[1]EXT(T)'!AC32)","v":"n.d."},{"$f":"IF(+'[1]EXT(T)'!AE32=\"\",\"\",+'[1]EXT(T)'!AE32)","v":"n.d."},{"$f":"IF(+'[1]EXT(T)'!AF32=\"\",\"\",+'[1]EXT(T)'!AF32)","v":"n.d."},{"$f":"IF(+'[1]EXT(T)'!AY32=\"\",\"\",+'[1]EXT(T)'!AY32)","v":"n.d."},{"$f":"IF(+'[1]EXT(T)'!AZ32=\"\",\"\",+'[1]EXT(T)'!AZ32)","v":"n.d."},"n.d.",{"$f":"IF(+'[1]EXT(T)'!AR32=\"\",\"\",+'[1]EXT(T)'!AR32-'[1]EXT(T)'!AR31)","v":268.70000000000005},{"$f":"IF(+'[1]EXT(T)'!AS32=\"\",\"\",+'[1]EXT(T)'!AS32-'[1]EXT(T)'!AS31)","v":108.24109999999999},"n.d.","n.d.","n.d.","n.d.","n.d.","n.d."]
[null,"IV",{"$f":"IF(+'[1]EXT(T)'!M33=\"\",\"\",+'[1]EXT(T)'!M33)","v":"n.d."},{"$f":"IF(+'[1]EXT(T)'!N33=\"\",\"\",+'[1]EXT(T)'!N33)","v":"n.d."},{"$f":"IF(+'[1]EXT(T)'!O33=\"\",\"\",+'[1]EXT(T)'!O33)","v":"n.d."},{"$f":"IF(+'[1]EXT(T)'!P33=\"\",\"\",+'[1]EXT(T)'!P33)","v":"n.d."},{"$f":"IF(+'[1]EXT(T)'!Q33=\"\",\"\",+'[1]EXT(T)'!Q33)","v":"n.d."},{"$f":"IF(+'[1]EXT(T)'!R33=\"\",\"\",+'[1]EXT(T)'!R33)","v":"n.d."},{"$f":"IF(+'[1]EXT(T)'!S33=\"\",\"\",+'[1]EXT(T)'!S33)","v":"n.d."},{"$f":"IF(+'[1]EXT(T)'!U33=\"\",\"\",+'[1]EXT(T)'!U33)","v":"n.d."},{"$f":"IF(+'[1]EXT(T)'!V33=\"\",\"\",+'[1]EXT(T)'!V33)","v":"n.d."},{"$f":"IF(+'[1]EXT(T)'!W33=\"\",\"\",+'[1]EXT(T)'!W33)","v":"n.d."},{"$f":"IF(+'[1]EXT(T)'!X33=\"\",\"\",+'[1]EXT(T)'!X33)","v":"n.d."},{"$f":"IF(+'[1]EXT(T)'!Y33=\"\",\"\",+'[1]EXT(T)'!Y33)","v":"n.d."},{"$f":"IF(+'[1]EXT(T)'!Z33=\"\",\"\",+'[1]EXT(T)'!Z33)","v":"n.d."},{"$f":"IF(+'[1]EXT(T)'!AA33=\"\",\"\",+'[1]EXT(T)'!AA33)","v":"n.d."},{"$f":"IF(+'[1]EXT(T)'!AB33=\"\",\"\",+'[1]EXT(T)'!AB33)","v":"n.d."},{"$f":"IF(+'[1]EXT(T)'!AC33=\"\",\"\",+'[1]EXT(T)'!AC33)","v":"n.d."},{"$f":"IF(+'[1]EXT(T)'!AE33=\"\",\"\",+'[1]EXT(T)'!AE33)","v":"n.d."},{"$f":"IF(+'[1]EXT(T)'!AF33=\"\",\"\",+'[1]EXT(T)'!AF33)","v":"n.d."},{"$f":"IF(+'[1]EXT(T)'!AY33=\"\",\"\",+'[1]EXT(T)'!AY33)","v":"n.d."},{"$f":"IF(+'[1]EXT(T)'!AZ33=\"\",\"\",+'[1]EXT(T)'!AZ33)","v":"n.d."},"n.d.",{"$f":"IF(+'[1]EXT(T)'!AR33=\"\",\"\",+'[1]EXT(T)'!AR33-'[1]EXT(T)'!AR32)","v":284.10000000000002},{"$f":"IF(+'[1]EXT(T)'!AS33=\"\",\"\",+'[1]EXT(T)'!AS33-'[1]EXT(T)'!AS32)","v":102.60829999999999},"n.d.","n.d.","n.d.","n.d.","n.d.","n.d."]
[1996,"I",{"$f":"IF(+'[1]EXT(T)'!M34=\"\",\"\",+'[1]EXT(T)'!M34)","v":"n.d."},{"$f":"IF(+'[1]EXT(T)'!N34=\"\",\"\",+'[1]EXT(T)'!N34)","v":"n.d."},{"$f":"IF(+'[1]EXT(T)'!O34=\"\",\"\",+'[1]EXT(T)'!O34)","v":"n.d."},{"$f":"IF(+'[1]EXT(T)'!P34=\"\",\"\",+'[1]EXT(T)'!P34)","v":"n.d."},{"$f":"IF(+'[1]EXT(T)'!Q34=\"\",\"\",+'[1]EXT(T)'!Q34)","v":"n.d."},{"$f":"IF(+'[1]EXT(T)'!R34=\"\",\"\",+'[1]EXT(T)'!R34)","v":"n.d."},{"$f":"IF(+'[1]EXT(T)'!S34=\"\",\"\",+'[1]EXT(T)'!S34)","v":"n.d."},{"$f":"IF(+'[1]EXT(T)'!U34=\"\",\"\",+'[1]EXT(T)'!U34)","v":"n.d."},{"$f":"IF(+'[1]EXT(T)'!V34=\"\",\"\",+'[1]EXT(T)'!V34)","v":"n.d."},{"$f":"IF(+'[1]EXT(T)'!W34=\"\",\"\",+'[1]EXT(T)'!W34)","v":"n.d."},{"$f":"IF(+'[1]EXT(T)'!X34=\"\",\"\",+'[1]EXT(T)'!X34)","v":"n.d."},{"$f":"IF(+'[1]EXT(T)'!Y34=\"\",\"\",+'[1]EXT(T)'!Y34)","v":"n.d."},{"$f":"IF(+'[1]EXT(T)'!Z34=\"\",\"\",+'[1]EXT(T)'!Z34)","v":"n.d."},{"$f":"IF(+'[1]EXT(T)'!AA34=\"\",\"\",+'[1]EXT(T)'!AA34)","v":"n.d."},{"$f":"IF(+'[1]EXT(T)'!AB34=\"\",\"\",+'[1]EXT(T)'!AB34)","v":"n.d."},{"$f":"IF(+'[1]EXT(T)'!AC34=\"\",\"\",+'[1]EXT(T)'!AC34)","v":"n.d."},{"$f":"IF(+'[1]EXT(T)'!AE34=\"\",\"\",+'[1]EXT(T)'!AE34)","v":"n.d."},{"$f":"IF(+'[1]EXT(T)'!AF34=\"\",\"\",+'[1]EXT(T)'!AF34)","v":"n.d."},{"$f":"IF(+'[1]EXT(T)'!AY34=\"\",\"\",+'[1]EXT(T)'!AY34)","v":"n.d."},{"$f":"IF(+'[1]EXT(T)'!AZ34=\"\",\"\",+'[1]EXT(T)'!AZ34)","v":"n.d."},"n.d.",{"$f":"IF(+'[1]EXT(T)'!AR34=\"\",\"\",+'[1]EXT(T)'!AR34)","v":254.2},{"$f":"IF(+'[1]EXT(T)'!AS34=\"\",\"\",+'[1]EXT(T)'!AS34)","v":90.762900000000002},"n.d.","n.d.","n.d.","n.d.","n.d.","n.d."]
[null,"II",{"$f":"IF(+'[1]EXT(T)'!M35=\"\",\"\",+'[1]EXT(T)'!M35)","v":"n.d."},{"$f":"IF(+'[1]EXT(T)'!N35=\"\",\"\",+'[1]EXT(T)'!N35)","v":"n.d."},{"$f":"IF(+'[1]EXT(T)'!O35=\"\",\"\",+'[1]EXT(T)'!O35)","v":"n.d."},{"$f":"IF(+'[1]EXT(T)'!P35=\"\",\"\",+'[1]EXT(T)'!P35)","v":"n.d."},{"$f":"IF(+'[1]EXT(T)'!Q35=\"\",\"\",+'[1]EXT(T)'!Q35)","v":"n.d."},{"$f":"IF(+'[1]EXT(T)'!R35=\"\",\"\",+'[1]EXT(T)'!R35)","v":"n.d."},{"$f":"IF(+'[1]EXT(T)'!S35=\"\",\"\",+'[1]EXT(T)'!S35)","v":"n.d."},{"$f":"IF(+'[1]EXT(T)'!U35=\"\",\"\",+'[1]EXT(T)'!U35)","v":"n.d."},{"$f":"IF(+'[1]EXT(T)'!V35=\"\",\"\",+'[1]EXT(T)'!V35)","v":"n.d."},{"$f":"IF(+'[1]EXT(T)'!W35=\"\",\"\",+'[1]EXT(T)'!W35)","v":"n.d."},{"$f":"IF(+'[1]EXT(T)'!X35=\"\",\"\",+'[1]EXT(T)'!X35)","v":"n.d."},{"$f":"IF(+'[1]EXT(T)'!Y35=\"\",\"\",+'[1]EXT(T)'!Y35)","v":"n.d."},{"$f":"IF(+'[1]EXT(T)'!Z35=\"\",\"\",+'[1]EXT(T)'!Z35)","v":"n.d."},{"$f":"IF(+'[1]EXT(T)'!AA35=\"\",\"\",+'[1]EXT(T)'!AA35)","v":"n.d."},{"$f":"IF(+'[1]EXT(T)'!AB35=\"\",\"\",+'[1]EXT(T)'!AB35)","v":"n.d."},{"$f":"IF(+'[1]EXT(T)'!AC35=\"\",\"\",+'[1]EXT(T)'!AC35)","v":"n.d."},{"$f":"IF(+'[1]EXT(T)'!AE35=\"\",\"\",+'[1]EXT(T)'!AE35)","v":"n.d."},{"$f":"IF(+'[1]EXT(T)'!AF35=\"\",\"\",+'[1]EXT(T)'!AF35)","v":"n.d."},{"$f":"IF(+'[1]EXT(T)'!AY35=\"\",\"\",+'[1]EXT(T)'!AY35)","v":"n.d."},{"$f":"IF(+'[1]EXT(T)'!AZ35=\"\",\"\",+'[1]EXT(T)'!AZ35)","v":"n.d."},"n.d.",{"$f":"IF(+'[1]EXT(T)'!AR35=\"\",\"\",+'[1]EXT(T)'!AR35-'[1]EXT(T)'!AR34)","v":271.59999999999997},{"$f":"IF(+'[1]EXT(T)'!AS35=\"\",\"\",+'[1]EXT(T)'!AS35-'[1]EXT(T)'!AS34)","v":80.180299999999988},"n.d.","n.d.","n.d.","n.d.","n.d.","n.d."]
[null,"III",{"$f":"IF(+'[1]EXT(T)'!M36=\"\",\"\",+'[1]EXT(T)'!M36)","v":"n.d."},{"$f":"IF(+'[1]EXT(T)'!N36=\"\",\"\",+'[1]EXT(T)'!N36)","v":"n.d."},{"$f":"IF(+'[1]EXT(T)'!O36=\"\",\"\",+'[1]EXT(T)'!O36)","v":"n.d."},{"$f":"IF(+'[1]EXT(T)'!P36=\"\",\"\",+'[1]EXT(T)'!P36)","v":"n.d."},{"$f":"IF(+'[1]EXT(T)'!Q36=\"\",\"\",+'[1]EXT(T)'!Q36)","v":"n.d."},{"$f":"IF(+'[1]EXT(T)'!R36=\"\",\"\",+'[1]EXT(T)'!R36)","v":"n.d."},{"$f":"IF(+'[1]EXT(T)'!S36=\"\",\"\",+'[1]EXT(T)'!S36)","v":"n.d."},{"$f":"IF(+'[1]EXT(T)'!U36=\"\",\"\",+'[1]EXT(T)'!U36)","v":"n.d."},{"$f":"IF(+'[1]EXT(T)'!V36=\"\",\"\",+'[1]EXT(T)'!V36)","v":"n.d."},{"$f":"IF(+'[1]EXT(T)'!W36=\"\",\"\",+'[1]EXT(T)'!W36)","v":"n.d."},{"$f":"IF(+'[1]EXT(T)'!X36=\"\",\"\",+'[1]EXT(T)'!X36)","v":"n.d."},{"$f":"IF(+'[1]EXT(T)'!Y36=\"\",\"\",+'[1]EXT(T)'!Y36)","v":"n.d."},{"$f":"IF(+'[1]EXT(T)'!Z36=\"\",\"\",+'[1]EXT(T)'!Z36)","v":"n.d."},{"$f":"IF(+'[1]EXT(T)'!AA36=\"\",\"\",+'[1]EXT(T)'!AA36)","v":"n.d."},{"$f":"IF(+'[1]EXT(T)'!AB36=\"\",\"\",+'[1]EXT(T)'!AB36)","v":"n.d."},{"$f":"IF(+'[1]EXT(T)'!AC36=\"\",\"\",+'[1]EXT(T)'!AC36)","v":"n.d."},{"$f":"IF(+'[1]EXT(T)'!AE36=\"\",\"\",+'[1]EXT(T)'!AE36)","v":"n.d."},{"$f":"IF(+'[1]EXT(T)'!AF36=\"\",\"\",+'[1]EXT(T)'!AF36)","v":"n.d."},{"$f":"IF(+'[1]EXT(T)'!AY36=\"\",\"\",+'[1]EXT(T)'!AY36)","v":"n.d."},{"$f":"IF(+'[1]EXT(T)'!AZ36=\"\",\"\",+'[1]EXT(T)'!AZ36)","v":"n.d."},"n.d.",{"$f":"IF(+'[1]EXT(T)'!AR36=\"\",\"\",+'[1]EXT(T)'!AR36-'[1]EXT(T)'!AR35)","v":289.79999999999995},{"$f":"IF(+'[1]EXT(T)'!AS36=\"\",\"\",+'[1]EXT(T)'!AS36-'[1]EXT(T)'!AS35)","v":97.725300000000004},"n.d.","n.d.","n.d.","n.d.","n.d.","n.d."]
[null,"IV",{"$f":"IF(+'[1]EXT(T)'!M37=\"\",\"\",+'[1]EXT(T)'!M37)","v":"n.d."},{"$f":"IF(+'[1]EXT(T)'!N37=\"\",\"\",+'[1]EXT(T)'!N37)","v":"n.d."},{"$f":"IF(+'[1]EXT(T)'!O37=\"\",\"\",+'[1]EXT(T)'!O37)","v":"n.d."},{"$f":"IF(+'[1]EXT(T)'!P37=\"\",\"\",+'[1]EXT(T)'!P37)","v":"n.d."},{"$f":"IF(+'[1]EXT(T)'!Q37=\"\",\"\",+'[1]EXT(T)'!Q37)","v":"n.d."},{"$f":"IF(+'[1]EXT(T)'!R37=\"\",\"\",+'[1]EXT(T)'!R37)","v":"n.d."},{"$f":"IF(+'[1]EXT(T)'!S37=\"\",\"\",+'[1]EXT(T)'!S37)","v":"n.d."},{"$f":"IF(+'[1]EXT(T)'!U37=\"\",\"\",+'[1]EXT(T)'!U37)","v":"n.d."},{"$f":"IF(+'[1]EXT(T)'!V37=\"\",\"\",+'[1]EXT(T)'!V37)","v":"n.d."},{"$f":"IF(+'[1]EXT(T)'!W37=\"\",\"\",+'[1]EXT(T)'!W37)","v":"n.d."},{"$f":"IF(+'[1]EXT(T)'!X37=\"\",\"\",+'[1]EXT(T)'!X37)","v":"n.d."},{"$f":"IF(+'[1]EXT(T)'!Y37=\"\",\"\",+'[1]EXT(T)'!Y37)","v":"n.d."},{"$f":"IF(+'[1]EXT(T)'!Z37=\"\",\"\",+'[1]EXT(T)'!Z37)","v":"n.d."},{"$f":"IF(+'[1]EXT(T)'!AA37=\"\",\"\",+'[1]EXT(T)'!AA37)","v":"n.d."},{"$f":"IF(+'[1]EXT(T)'!AB37=\"\",\"\",+'[1]EXT(T)'!AB37)","v":"n.d."},{"$f":"IF(+'[1]EXT(T)'!AC37=\"\",\"\",+'[1]EXT(T)'!AC37)","v":"n.d."},{"$f":"IF(+'[1]EXT(T)'!AE37=\"\",\"\",+'[1]EXT(T)'!AE37)","v":"n.d."},{"$f":"IF(+'[1]EXT(T)'!AF37=\"\",\"\",+'[1]EXT(T)'!AF37)","v":"n.d."},{"$f":"IF(+'[1]EXT(T)'!AY37=\"\",\"\",+'[1]EXT(T)'!AY37)","v":"n.d."},{"$f":"IF(+'[1]EXT(T)'!AZ37=\"\",\"\",+'[1]EXT(T)'!AZ37)","v":"n.d."},"n.d.",{"$f":"IF(+'[1]EXT(T)'!AR37=\"\",\"\",+'[1]EXT(T)'!AR37-'[1]EXT(T)'!AR36)","v":270.90000000000009},{"$f":"IF(+'[1]EXT(T)'!AS37=\"\",\"\",+'[1]EXT(T)'!AS37-'[1]EXT(T)'!AS36)","v":106.74930000000001},"n.d.","n.d.","n.d.","n.d.","n.d.","n.d."]
[1997,"I",{"$f":"IF(+'[1]EXT(T)'!M38=\"\",\"\",+'[1]EXT(T)'!M38)","v":"n.d."},{"$f":"IF(+'[1]EXT(T)'!N38=\"\",\"\",+'[1]EXT(T)'!N38)","v":"n.d."},{"$f":"IF(+'[1]EXT(T)'!O38=\"\",\"\",+'[1]EXT(T)'!O38)","v":"n.d."},{"$f":"IF(+'[1]EXT(T)'!P38=\"\",\"\",+'[1]EXT(T)'!P38)","v":"n.d."},{"$f":"IF(+'[1]EXT(T)'!Q38=\"\",\"\",+'[1]EXT(T)'!Q38)","v":"n.d."},{"$f":"IF(+'[1]EXT(T)'!R38=\"\",\"\",+'[1]EXT(T)'!R38)","v":"n.d."},{"$f":"IF(+'[1]EXT(T)'!S38=\"\",\"\",+'[1]EXT(T)'!S38)","v":"n.d."},{"$f":"IF(+'[1]EXT(T)'!U38=\"\",\"\",+'[1]EXT(T)'!U38)","v":"n.d."},{"$f":"IF(+'[1]EXT(T)'!V38=\"\",\"\",+'[1]EXT(T)'!V38)","v":"n.d."},{"$f":"IF(+'[1]EXT(T)'!W38=\"\",\"\",+'[1]EXT(T)'!W38)","v":"n.d."},{"$f":"IF(+'[1]EXT(T)'!X38=\"\",\"\",+'[1]EXT(T)'!X38)","v":"n.d."},{"$f":"IF(+'[1]EXT(T)'!Y38=\"\",\"\",+'[1]EXT(T)'!Y38)","v":"n.d."},{"$f":"IF(+'[1]EXT(T)'!Z38=\"\",\"\",+'[1]EXT(T)'!Z38)","v":"n.d."},{"$f":"IF(+'[1]EXT(T)'!AA38=\"\",\"\",+'[1]EXT(T)'!AA38)","v":"n.d."},{"$f":"IF(+'[1]EXT(T)'!AB38=\"\",\"\",+'[1]EXT(T)'!AB38)","v":"n.d."},{"$f":"IF(+'[1]EXT(T)'!AC38=\"\",\"\",+'[1]EXT(T)'!AC38)","v":"n.d."},{"$f":"IF(+'[1]EXT(T)'!AE38=\"\",\"\",+'[1]EXT(T)'!AE38)","v":"n.d."},{"$f":"IF(+'[1]EXT(T)'!AF38=\"\",\"\",+'[1]EXT(T)'!AF38)","v":"n.d."},{"$f":"IF(+'[1]EXT(T)'!AY38=\"\",\"\",+'[1]EXT(T)'!AY38)","v":"n.d."},{"$f":"IF(+'[1]EXT(T)'!AZ38=\"\",\"\",+'[1]EXT(T)'!AZ38)","v":"n.d."},"n.d.",{"$f":"IF(+'[1]EXT(T)'!AR38=\"\",\"\",+'[1]EXT(T)'!AR38)","v":251.2},{"$f":"IF(+'[1]EXT(T)'!AS38=\"\",\"\",+'[1]EXT(T)'!AS38)","v":85.095500000000001},"n.d.","n.d.","n.d.","n.d.","n.d.","n.d."]
[null,"II",{"$f":"IF(+'[1]EXT(T)'!M39=\"\",\"\",+'[1]EXT(T)'!M39)","v":"n.d."},{"$f":"IF(+'[1]EXT(T)'!N39=\"\",\"\",+'[1]EXT(T)'!N39)","v":"n.d."},{"$f":"IF(+'[1]EXT(T)'!O39=\"\",\"\",+'[1]EXT(T)'!O39)","v":"n.d."},{"$f":"IF(+'[1]EXT(T)'!P39=\"\",\"\",+'[1]EXT(T)'!P39)","v":"n.d."},{"$f":"IF(+'[1]EXT(T)'!Q39=\"\",\"\",+'[1]EXT(T)'!Q39)","v":"n.d."},{"$f":"IF(+'[1]EXT(T)'!R39=\"\",\"\",+'[1]EXT(T)'!R39)","v":"n.d."},{"$f":"IF(+'[1]EXT(T)'!S39=\"\",\"\",+'[1]EXT(T)'!S39)","v":"n.d."},{"$f":"IF(+'[1]EXT(T)'!U39=\"\",\"\",+'[1]EXT(T)'!U39)","v":"n.d."},{"$f":"IF(+'[1]EXT(T)'!V39=\"\",\"\",+'[1]EXT(T)'!V39)","v":"n.d."},{"$f":"IF(+'[1]EXT(T)'!W39=\"\",\"\",+'[1]EXT(T)'!W39)","v":"n.d."},{"$f":"IF(+'[1]EXT(T)'!X39=\"\",\"\",+'[1]EXT(T)'!X39)","v":"n.d."},{"$f":"IF(+'[1]EXT(T)'!Y39=\"\",\"\",+'[1]EXT(T)'!Y39)","v":"n.d."},{"$f":"IF(+'[1]EXT(T)'!Z39=\"\",\"\",+'[1]EXT(T)'!Z39)","v":"n.d."},{"$f":"IF(+'[1]EXT(T)'!AA39=\"\",\"\",+'[1]EXT(T)'!AA39)","v":"n.d."},{"$f":"IF(+'[1]EXT(T)'!AB39=\"\",\"\",+'[1]EXT(T)'!AB39)","v":"n.d."},{"$f":"IF(+'[1]EXT(T)'!AC39=\"\",\"\",+'[1]EXT(T)'!AC39)","v":"n.d."},{"$f":"IF(+'[1]EXT(T)'!AE39=\"\",\"\",+'[1]EXT(T)'!AE39)","v":"n.d."},{"$f":"IF(+'[1]EXT(T)'!AF39=\"\",\"\",+'[1]EXT(T)'!AF39)","v":"n.d."},{"$f":"IF(+'[1]EXT(T)'!AY39=\"\",\"\",+'[1]EXT(T)'!AY39)","v":"n.d."},{"$f":"IF(+'[1]EXT(T)'!AZ39=\"\",\"\",+'[1]EXT(T)'!AZ39)","v":"n.d."},"n.d.",{"$f":"IF(+'[1]EXT(T)'!AR39=\"\",\"\",+'[1]EXT(T)'!AR39-'[1]EXT(T)'!AR38)","v":310.99999999999994},{"$f":"IF(+'[1]EXT(T)'!AS39=\"\",\"\",+'[1]EXT(T)'!AS39-'[1]EXT(T)'!AS38)","v":100.3942},"n.d.","n.d.","n.d.","n.d.","n.d.","n.d."]
[null,"III",{"$f":"IF(+'[1]EXT(T)'!M40=\"\",\"\",+'[1]EXT(T)'!M40)","v":"n.d."},{"$f":"IF(+'[1]EXT(T)'!N40=\"\",\"\",+'[1]EXT(T)'!N40)","v":"n.d."},{"$f":"IF(+'[1]EXT(T)'!O40=\"\",\"\",+'[1]EXT(T)'!O40)","v":"n.d."},{"$f":"IF(+'[1]EXT(T)'!P40=\"\",\"\",+'[1]EXT(T)'!P40)","v":"n.d."},{"$f":"IF(+'[1]EXT(T)'!Q40=\"\",\"\",+'[1]EXT(T)'!Q40)","v":"n.d."},{"$f":"IF(+'[1]EXT(T)'!R40=\"\",\"\",+'[1]EXT(T)'!R40)","v":"n.d."},{"$f":"IF(+'[1]EXT(T)'!S40=\"\",\"\",+'[1]EXT(T)'!S40)","v":"n.d."},{"$f":"IF(+'[1]EXT(T)'!U40=\"\",\"\",+'[1]EXT(T)'!U40)","v":"n.d."},{"$f":"IF(+'[1]EXT(T)'!V40=\"\",\"\",+'[1]EXT(T)'!V40)","v":"n.d."},{"$f":"IF(+'[1]EXT(T)'!W40=\"\",\"\",+'[1]EXT(T)'!W40)","v":"n.d."},{"$f":"IF(+'[1]EXT(T)'!X40=\"\",\"\",+'[1]EXT(T)'!X40)","v":"n.d."},{"$f":"IF(+'[1]EXT(T)'!Y40=\"\",\"\",+'[1]EXT(T)'!Y40)","v":"n.d."},{"$f":"IF(+'[1]EXT(T)'!Z40=\"\",\"\",+'[1]EXT(T)'!Z40)","v":"n.d."},{"$f":"IF(+'[1]EXT(T)'!AA40=\"\",\"\",+'[1]EXT(T)'!AA40)","v":"n.d."},{"$f":"IF(+'[1]EXT(T)'!AB40=\"\",\"\",+'[1]EXT(T)'!AB40)","v":"n.d."},{"$f":"IF(+'[1]EXT(T)'!AC40=\"\",\"\",+'[1]EXT(T)'!AC40)","v":"n.d."},{"$f":"IF(+'[1]EXT(T)'!AE40=\"\",\"\",+'[1]EXT(T)'!AE40)","v":"n.d."},{"$f":"IF(+'[1]EXT(T)'!AF40=\"\",\"\",+'[1]EXT(T)'!AF40)","v":"n.d."},{"$f":"IF(+'[1]EXT(T)'!AY40=\"\",\"\",+'[1]EXT(T)'!AY40)","v":"n.d."},{"$f":"IF(+'[1]EXT(T)'!AZ40=\"\",\"\",+'[1]EXT(T)'!AZ40)","v":"n.d."},"n.d.",{"$f":"IF(+'[1]EXT(T)'!AR40=\"\",\"\",+'[1]EXT(T)'!AR40-'[1]EXT(T)'!AR39)","v":321.10000000000002},{"$f":"IF(+'[1]EXT(T)'!AS40=\"\",\"\",+'[1]EXT(T)'!AS40-'[1]EXT(T)'!AS39)","v":105.59490000000002},"n.d.","n.d.","n.d.","n.d.","n.d.","n.d."]
[null,"IV",{"$f":"IF(+'[1]EXT(T)'!M41=\"\",\"\",+'[1]EXT(T)'!M41)","v":"n.d."},{"$f":"IF(+'[1]EXT(T)'!N41=\"\",\"\",+'[1]EXT(T)'!N41)","v":"n.d."},{"$f":"IF(+'[1]EXT(T)'!O41=\"\",\"\",+'[1]EXT(T)'!O41)","v":"n.d."},{"$f":"IF(+'[1]EXT(T)'!P41=\"\",\"\",+'[1]EXT(T)'!P41)","v":"n.d."},{"$f":"IF(+'[1]EXT(T)'!Q41=\"\",\"\",+'[1]EXT(T)'!Q41)","v":"n.d."},{"$f":"IF(+'[1]EXT(T)'!R41=\"\",\"\",+'[1]EXT(T)'!R41)","v":"n.d."},{"$f":"IF(+'[1]EXT(T)'!S41=\"\",\"\",+'[1]EXT(T)'!S41)","v":"n.d."},{"$f":"IF(+'[1]EXT(T)'!U41=\"\",\"\",+'[1]EXT(T)'!U41)","v":"n.d."},{"$f":"IF(+'[1]EXT(T)'!V41=\"\",\"\",+'[1]EXT(T)'!V41)","v":"n.d."},{"$f":"IF(+'[1]EXT(T)'!W41=\"\",\"\",+'[1]EXT(T)'!W41)","v":"n.d."},{"$f":"IF(+'[1]EXT(T)'!X41=\"\",\"\",+'[1]EXT(T)'!X41)","v":"n.d."},{"$f":"IF(+'[1]EXT(T)'!Y41=\"\",\"\",+'[1]EXT(T)'!Y41)","v":"n.d."},{"$f":"IF(+'[1]EXT(T)'!Z41=\"\",\"\",+'[1]EXT(T)'!Z41)","v":"n.d."},{"$f":"IF(+'[1]EXT(T)'!AA41=\"\",\"\",+'[1]EXT(T)'!AA41)","v":"n.d."},{"$f":"IF(+'[1]EXT(T)'!AB41=\"\",\"\",+'[1]EXT(T)'!AB41)","v":"n.d."},{"$f":"IF(+'[1]EXT(T)'!AC41=\"\",\"\",+'[1]EXT(T)'!AC41)","v":"n.d."},{"$f":"IF(+'[1]EXT(T)'!AE41=\"\",\"\",+'[1]EXT(T)'!AE41)","v":"n.d."},{"$f":"IF(+'[1]EXT(T)'!AF41=\"\",\"\",+'[1]EXT(T)'!AF41)","v":"n.d."},{"$f":"IF(+'[1]EXT(T)'!AY41=\"\",\"\",+'[1]EXT(T)'!AY41)","v":"n.d."},{"$f":"IF(+'[1]EXT(T)'!AZ41=\"\",\"\",+'[1]EXT(T)'!AZ41)","v":"n.d."},"n.d.",{"$f":"IF(+'[1]EXT(T)'!AR41=\"\",\"\",+'[1]EXT(T)'!AR41-'[1]EXT(T)'!AR40)","v":316.19999999999982},{"$f":"IF(+'[1]EXT(T)'!AS41=\"\",\"\",+'[1]EXT(T)'!AS41-'[1]EXT(T)'!AS40)","v":116.91210000000001},"n.d.","n.d.","n.d.","n.d.","n.d.","n.d."]
[1998,"I",{"$f":"IF(+'[1]EXT(T)'!M42=\"\",\"\",+'[1]EXT(T)'!M42)","v":"n.d."},{"$f":"IF(+'[1]EXT(T)'!N42=\"\",\"\",+'[1]EXT(T)'!N42)","v":"n.d."},{"$f":"IF(+'[1]EXT(T)'!O42=\"\",\"\",+'[1]EXT(T)'!O42)","v":"n.d."},{"$f":"IF(+'[1]EXT(T)'!P42=\"\",\"\",+'[1]EXT(T)'!P42)","v":"n.d."},{"$f":"IF(+'[1]EXT(T)'!Q42=\"\",\"\",+'[1]EXT(T)'!Q42)","v":"n.d."},{"$f":"IF(+'[1]EXT(T)'!R42=\"\",\"\",+'[1]EXT(T)'!R42)","v":"n.d."},{"$f":"IF(+'[1]EXT(T)'!S42=\"\",\"\",+'[1]EXT(T)'!S42)","v":116.2},{"$f":"IF(+'[1]EXT(T)'!U42=\"\",\"\",+'[1]EXT(T)'!U42)","v":"n.d."},{"$f":"IF(+'[1]EXT(T)'!V42=\"\",\"\",+'[1]EXT(T)'!V42)","v":"n.d."},{"$f":"IF(+'[1]EXT(T)'!W42=\"\",\"\",+'[1]EXT(T)'!W42)","v":"n.d."},{"$f":"IF(+'[1]EXT(T)'!X42=\"\",\"\",+'[1]EXT(T)'!X42)","v":"n.d."},{"$f":"IF(+'[1]EXT(T)'!Y42=\"\",\"\",+'[1]EXT(T)'!Y42)","v":"n.d."},{"$f":"IF(+'[1]EXT(T)'!Z42=\"\",\"\",+'[1]EXT(T)'!Z42)","v":"n.d."},{"$f":"IF(+'[1]EXT(T)'!AA42=\"\",\"\",+'[1]EXT(T)'!AA42)","v":"n.d."},{"$f":"IF(+'[1]EXT(T)'!AB42=\"\",\"\",+'[1]EXT(T)'!AB42)","v":"n.d."},{"$f":"IF(+'[1]EXT(T)'!AC42=\"\",\"\",+'[1]EXT(T)'!AC42)","v":116.2},{"$f":"IF(+'[1]EXT(T)'!AE42=\"\",\"\",+'[1]EXT(T)'!AE42)","v":"n.d."},{"$f":"IF(+'[1]EXT(T)'!AF42=\"\",\"\",+'[1]EXT(T)'!AF42)","v":"n.d."},{"$f":"IF(+'[1]EXT(T)'!AY42=\"\",\"\",+'[1]EXT(T)'!AY42)","v":"n.d."},{"$f":"IF(+'[1]EXT(T)'!AZ42=\"\",\"\",+'[1]EXT(T)'!AZ42)","v":"n.d."},"n.d.",{"$f":"IF(+'[1]EXT(T)'!AR42=\"\",\"\",+'[1]EXT(T)'!AR42)","v":295.7},{"$f":"IF(+'[1]EXT(T)'!AS42=\"\",\"\",+'[1]EXT(T)'!AS42)","v":108.2561},{"$f":"IF(+'[1]EXT(T)'!AT42=\"\",\"\",+'[1]EXT(T)'!AT42)","v":41.665372813721987},"n.d.",{"$f":"IF(+'[1]EXT(T)'!AV42=\"\",\"\",+'[1]EXT(T)'!AV42)","v":269.39999999999998},"n.d.","n.d.","n.d."]
[null,"II",{"$f":"IF(+'[1]EXT(T)'!M43=\"\",\"\",+'[1]EXT(T)'!M43)","v":"n.d."},{"$f":"IF(+'[1]EXT(T)'!N43=\"\",\"\",+'[1]EXT(T)'!N43)","v":"n.d."},{"$f":"IF(+'[1]EXT(T)'!O43=\"\",\"\",+'[1]EXT(T)'!O43)","v":"n.d."},{"$f":"IF(+'[1]EXT(T)'!P43=\"\",\"\",+'[1]EXT(T)'!P43)","v":"n.d."},{"$f":"IF(+'[1]EXT(T)'!Q43=\"\",\"\",+'[1]EXT(T)'!Q43)","v":"n.d."},{"$f":"IF(+'[1]EXT(T)'!R43=\"\",\"\",+'[1]EXT(T)'!R43)","v":"n.d."},{"$f":"IF(+'[1]EXT(T)'!S43=\"\",\"\",+'[1]EXT(T)'!S43)","v":110.4},{"$f":"IF(+'[1]EXT(T)'!U43=\"\",\"\",+'[1]EXT(T)'!U43)","v":"n.d."},{"$f":"IF(+'[1]EXT(T)'!V43=\"\",\"\",+'[1]EXT(T)'!V43)","v":"n.d."},{"$f":"IF(+'[1]EXT(T)'!W43=\"\",\"\",+'[1]EXT(T)'!W43)","v":"n.d."},{"$f":"IF(+'[1]EXT(T)'!X43=\"\",\"\",+'[1]EXT(T)'!X43)","v":"n.d."},{"$f":"IF(+'[1]EXT(T)'!Y43=\"\",\"\",+'[1]EXT(T)'!Y43)","v":"n.d."},{"$f":"IF(+'[1]EXT(T)'!Z43=\"\",\"\",+'[1]EXT(T)'!Z43)","v":"n.d."},{"$f":"IF(+'[1]EXT(T)'!AA43=\"\",\"\",+'[1]EXT(T)'!AA43)","v":"n.d."},{"$f":"IF(+'[1]EXT(T)'!AB43=\"\",\"\",+'[1]EXT(T)'!AB43)","v":"n.d."},{"$f":"IF(+'[1]EXT(T)'!AC43=\"\",\"\",+'[1]EXT(T)'!AC43)","v":226.60000000000002},{"$f":"IF(+'[1]EXT(T)'!AE43=\"\",\"\",+'[1]EXT(T)'!AE43)","v":"n.d."},{"$f":"IF(+'[1]EXT(T)'!AF43=\"\",\"\",+'[1]EXT(T)'!AF43)","v":"n.d."},{"$f":"IF(+'[1]EXT(T)'!AY43=\"\",\"\",+'[1]EXT(T)'!AY43)","v":"n.d."},{"$f":"IF(+'[1]EXT(T)'!AZ43=\"\",\"\",+'[1]EXT(T)'!AZ43)","v":"n.d."},"n.d.",{"$f":"IF(+'[1]EXT(T)'!AR43=\"\",\"\",+'[1]EXT(T)'!AR43-'[1]EXT(T)'!AR42)","v":336.89999999999992},{"$f":"IF(+'[1]EXT(T)'!AS43=\"\",\"\",+'[1]EXT(T)'!AS43-'[1]EXT(T)'!AS42)","v":116.66070000000002},{"$f":"IF(+'[1]EXT(T)'!AT43=\"\",\"\",+'[1]EXT(T)'!AT43-'[1]EXT(T)'!AT42)","v":49.888227112008181},"n.d.",{"$f":"IF(+'[1]EXT(T)'!AV43=\"\",\"\",+'[1]EXT(T)'!AV43-'[1]EXT(T)'!AV42)","v":273.39999999999998},"n.d.","n.d.","n.d."]
[null,"III",{"$f":"IF(+'[1]EXT(T)'!M44=\"\",\"\",+'[1]EXT(T)'!M44)","v":"n.d."},{"$f":"IF(+'[1]EXT(T)'!N44=\"\",\"\",+'[1]EXT(T)'!N44)","v":"n.d."},{"$f":"IF(+'[1]EXT(T)'!O44=\"\",\"\",+'[1]EXT(T)'!O44)","v":"n.d."},{"$f":"IF(+'[1]EXT(T)'!P44=\"\",\"\",+'[1]EXT(T)'!P44)","v":"n.d."},{"$f":"IF(+'[1]EXT(T)'!Q44=\"\",\"\",+'[1]EXT(T)'!Q44)","v":"n.d."},{"$f":"IF(+'[1]EXT(T)'!R44=\"\",\"\",+'[1]EXT(T)'!R44)","v":"n.d."},{"$f":"IF(+'[1]EXT(T)'!S44=\"\",\"\",+'[1]EXT(T)'!S44)","v":226.4},{"$f":"IF(+'[1]EXT(T)'!U44=\"\",\"\",+'[1]EXT(T)'!U44)","v":"n.d."},{"$f":"IF(+'[1]EXT(T)'!V44=\"\",\"\",+'[1]EXT(T)'!V44)","v":"n.d."},{"$f":"IF(+'[1]EXT(T)'!W44=\"\",\"\",+'[1]EXT(T)'!W44)","v":"n.d."},{"$f":"IF(+'[1]EXT(T)'!X44=\"\",\"\",+'[1]EXT(T)'!X44)","v":"n.d."},{"$f":"IF(+'[1]EXT(T)'!Y44=\"\",\"\",+'[1]EXT(T)'!Y44)","v":"n.d."},{"$f":"IF(+'[1]EXT(T)'!Z44=\"\",\"\",+'[1]EXT(T)'!Z44)","v":"n.d."},{"$f":"IF(+'[1]EXT(T)'!AA44=\"\",\"\",+'[1]EXT(T)'!AA44)","v":"n.d."},{"$f":"IF(+'[1]EXT(T)'!AB44=\"\",\"\",+'[1]EXT(T)'!AB44)","v":"n.d."},{"$f":"IF(+'[1]EXT(T)'!AC44=\"\",\"\",+'[1]EXT(T)'!AC44)","v":453},{"$f":"IF(+'[1]EXT(T)'!AE44=\"\",\"\",+'[1]EXT(T)'!AE44)","v":"n.d."},{"$f":"IF(+'[1]EXT(T)'!AF44=\"\",\"\",+'[1]EXT(T)'!AF44)","v":"n.d."},{"$f":"IF(+'[1]EXT(T)'!AY44=\"\",\"\",+'[1]EXT(T)'!AY44)","v":"n.d."},{"$f":"IF(+'[1]EXT(T)'!AZ44=\"\",\"\",+'[1]EXT(T)'!AZ44)","v":"n.d."},"n.d.",{"$f":"IF(+'[1]EXT(T)'!AR44=\"\",\"\",+'[1]EXT(T)'!AR44-'[1]EXT(T)'!AR43)","v":345.10000000000014},{"$f":"IF(+'[1]EXT(T)'!AS44=\"\",\"\",+'[1]EXT(T)'!AS44-'[1]EXT(T)'!AS43)","v":113.88240000000002},{"$f":"IF(+'[1]EXT(T)'!AT44=\"\",\"\",+'[1]EXT(T)'!AT44-'[1]EXT(T)'!AT43)","v":55.108254141529898},"n.d.",{"$f":"IF(+'[1]EXT(T)'!AV44=\"\",\"\",+'[1]EXT(T)'!AV44-'[1]EXT(T)'!AV43)","v":306.29999999999995},"n.d.","n.d.","n.d."]
[null,"IV",{"$f":"IF(+'[1]EXT(T)'!M45=\"\",\"\",+'[1]EXT(T)'!M45)","v":"n.d."},{"$f":"IF(+'[1]EXT(T)'!N45=\"\",\"\",+'[1]EXT(T)'!N45)","v":"n.d."},{"$f":"IF(+'[1]EXT(T)'!O45=\"\",\"\",+'[1]EXT(T)'!O45)","v":"n.d."},{"$f":"IF(+'[1]EXT(T)'!P45=\"\",\"\",+'[1]EXT(T)'!P45)","v":"n.d."},{"$f":"IF(+'[1]EXT(T)'!Q45=\"\",\"\",+'[1]EXT(T)'!Q45)","v":"n.d."},{"$f":"IF(+'[1]EXT(T)'!R45=\"\",\"\",+'[1]EXT(T)'!R45)","v":"n.d."},{"$f":"IF(+'[1]EXT(T)'!S45=\"\",\"\",+'[1]EXT(T)'!S45)","v":750.1},{"$f":"IF(+'[1]EXT(T)'!U45=\"\",\"\",+'[1]EXT(T)'!U45)","v":"n.d."},{"$f":"IF(+'[1]EXT(T)'!V45=\"\",\"\",+'[1]EXT(T)'!V45)","v":"n.d."},{"$f":"IF(+'[1]EXT(T)'!W45=\"\",\"\",+'[1]EXT(T)'!W45)","v":"n.d."},{"$f":"IF(+'[1]EXT(T)'!X45=\"\",\"\",+'[1]EXT(T)'!X45)","v":"n.d."},{"$f":"IF(+'[1]EXT(T)'!Y45=\"\",\"\",+'[1]EXT(T)'!Y45)","v":"n.d."},{"$f":"IF(+'[1]EXT(T)'!Z45=\"\",\"\",+'[1]EXT(T)'!Z45)","v":"n.d."},{"$f":"IF(+'[1]EXT(T)'!AA45=\"\",\"\",+'[1]EXT(T)'!AA45)","v":"n.d."},{"$f":"IF(+'[1]EXT(T)'!AB45=\"\",\"\",+'[1]EXT(T)'!AB45)","v":"n.d."},{"$f":"IF(+'[1]EXT(T)'!AC45=\"\",\"\",+'[1]EXT(T)'!AC45)","v":1203.0999999999999},{"$f":"IF(+'[1]EXT(T)'!AE45=\"\",\"\",+'[1]EXT(T)'!AE45)","v":"n.d."},{"$f":"IF(+'[1]EXT(T)'!AF45=\"\",\"\",+'[1]EXT(T)'!AF45)","v":"n.d."},{"$f":"IF(+'[1]EXT(T)'!AY45=\"\",\"\",+'[1]EXT(T)'!AY45)","v":"n.d."},{"$f":"IF(+'[1]EXT(T)'!AZ45=\"\",\"\",+'[1]EXT(T)'!AZ45)","v":"n.d."},"n.d.",{"$f":"IF(+'[1]EXT(T)'!AR45=\"\",\"\",+'[1]EXT(T)'!AR45-'[1]EXT(T)'!AR44)","v":360.59999999999991},{"$f":"IF(+'[1]EXT(T)'!AS45=\"\",\"\",+'[1]EXT(T)'!AS45-'[1]EXT(T)'!AS44)","v":117.6447},{"$f":"IF(+'[1]EXT(T)'!AT45=\"\",\"\",+'[1]EXT(T)'!AT45-'[1]EXT(T)'!AT44)","v":73.338145932739906},"n.d.",{"$f":"IF(+'[1]EXT(T)'!AV45=\"\",\"\",+'[1]EXT(T)'!AV45-'[1]EXT(T)'!AV44)","v":476.89999999999986},"n.d.","n.d.","n.d."]
[1999,"I",{"$f":"IF(+'[1]EXT(T)'!M46=\"\",\"\",+'[1]EXT(T)'!M46)","v":"n.d."},{"$f":"IF(+'[1]EXT(T)'!N46=\"\",\"\",+'[1]EXT(T)'!N46)","v":17.899999999999999},{"$f":"IF(+'[1]EXT(T)'!O46=\"\",\"\",+'[1]EXT(T)'!O46)","v":"n.d."},{"$f":"IF(+'[1]EXT(T)'!P46=\"\",\"\",+'[1]EXT(T)'!P46)","v":"n.d."},{"$f":"IF(+'[1]EXT(T)'!Q46=\"\",\"\",+'[1]EXT(T)'!Q46)","v":"n.d."},{"$f":"IF(+'[1]EXT(T)'!R46=\"\",\"\",+'[1]EXT(T)'!R46)","v":"n.d."},{"$f":"IF(+'[1]EXT(T)'!S46=\"\",\"\",+'[1]EXT(T)'!S46)","v":177.09999999999997},{"$f":"IF(+'[1]EXT(T)'!U46=\"\",\"\",+'[1]EXT(T)'!U46)","v":"n.d."},{"$f":"IF(+'[1]EXT(T)'!V46=\"\",\"\",+'[1]EXT(T)'!V46)","v":"n.d."},{"$f":"IF(+'[1]EXT(T)'!W46=\"\",\"\",+'[1]EXT(T)'!W46)","v":"n.d."},{"$f":"IF(+'[1]EXT(T)'!X46=\"\",\"\",+'[1]EXT(T)'!X46)","v":17.899999999999999},{"$f":"IF(+'[1]EXT(T)'!Y46=\"\",\"\",+'[1]EXT(T)'!Y46)","v":"n.d."},{"$f":"IF(+'[1]EXT(T)'!Z46=\"\",\"\",+'[1]EXT(T)'!Z46)","v":"n.d."},{"$f":"IF(+'[1]EXT(T)'!AA46=\"\",\"\",+'[1]EXT(T)'!AA46)","v":"n.d."},{"$f":"IF(+'[1]EXT(T)'!AB46=\"\",\"\",+'[1]EXT(T)'!AB46)","v":"n.d."},{"$f":"IF(+'[1]EXT(T)'!AC46=\"\",\"\",+'[1]EXT(T)'!AC46)","v":177.09999999999997},{"$f":"IF(+'[1]EXT(T)'!AE46=\"\",\"\",+'[1]EXT(T)'!AE46)","v":"n.d."},{"$f":"IF(+'[1]EXT(T)'!AF46=\"\",\"\",+'[1]EXT(T)'!AF46)","v":"n.d."},{"$f":"IF(+'[1]EXT(T)'!AY46=\"\",\"\",+'[1]EXT(T)'!AY46)","v":"n.d."},{"$f":"IF(+'[1]EXT(T)'!AZ46=\"\",\"\",+'[1]EXT(T)'!AZ46)","v":"n.d."},{"$f":"IF(+'[1]EXT(T)'!AQ46=\"\",\"\",+'[1]EXT(T)'!AQ46)","v":27.95348152},{"$f":"IF(+'[1]EXT(T)'!AR46=\"\",\"\",+'[1]EXT(T)'!AR46)","v":319.39999999999998},{"$f":"IF(+'[1]EXT(T)'!AS46=\"\",\"\",+'[1]EXT(T)'!AS46)","v":118.553},{"$f":"IF(+'[1]EXT(T)'!AT46=\"\",\"\",+'[1]EXT(T)'!AT46)","v":68.928244800699375},"n.d.",{"$f":"IF(+'[1]EXT(T)'!AV46=\"\",\"\",+'[1]EXT(T)'!AV46)","v":344.9},"n.d.","n.d.","n.d."]
[null,"II",{"$f":"IF(+'[1]EXT(T)'!M47=\"\",\"\",+'[1]EXT(T)'!M47)","v":"n.d."},{"$f":"IF(+'[1]EXT(T)'!N47=\"\",\"\",+'[1]EXT(T)'!N47)","v":12.799999999999999},{"$f":"IF(+'[1]EXT(T)'!O47=\"\",\"\",+'[1]EXT(T)'!O47)","v":"n.d."},{"$f":"IF(+'[1]EXT(T)'!P47=\"\",\"\",+'[1]EXT(T)'!P47)","v":"n.d."},{"$f":"IF(+'[1]EXT(T)'!Q47=\"\",\"\",+'[1]EXT(T)'!Q47)","v":"n.d."},{"$f":"IF(+'[1]EXT(T)'!R47=\"\",\"\",+'[1]EXT(T)'!R47)","v":"n.d."},{"$f":"IF(+'[1]EXT(T)'!S47=\"\",\"\",+'[1]EXT(T)'!S47)","v":255.2},{"$f":"IF(+'[1]EXT(T)'!U47=\"\",\"\",+'[1]EXT(T)'!U47)","v":"n.d."},{"$f":"IF(+'[1]EXT(T)'!V47=\"\",\"\",+'[1]EXT(T)'!V47)","v":"n.d."},{"$f":"IF(+'[1]EXT(T)'!W47=\"\",\"\",+'[1]EXT(T)'!W47)","v":"n.d."},{"$f":"IF(+'[1]EXT(T)'!X47=\"\",\"\",+'[1]EXT(T)'!X47)","v":30.699999999999996},{"$f":"IF(+'[1]EXT(T)'!Y47=\"\",\"\",+'[1]EXT(T)'!Y47)","v":"n.d."},{"$f":"IF(+'[1]EXT(T)'!Z47=\"\",\"\",+'[1]EXT(T)'!Z47)","v":"n.d."},{"$f":"IF(+'[1]EXT(T)'!AA47=\"\",\"\",+'[1]EXT(T)'!AA47)","v":"n.d."},{"$f":"IF(+'[1]EXT(T)'!AB47=\"\",\"\",+'[1]EXT(T)'!AB47)","v":"n.d."},{"$f":"IF(+'[1]EXT(T)'!AC47=\"\",\"\",+'[1]EXT(T)'!AC47)","v":432.29999999999995},{"$f":"IF(+'[1]EXT(T)'!AE47=\"\",\"\",+'[1]EXT(T)'!AE47)","v":"n.d."},{"$f":"IF(+'[1]EXT(T)'!AF47=\"\",\"\",+'[1]EXT(T)'!AF47)","v":"n.d."},{"$f":"IF(+'[1]EXT(T)'!AY47=\"\",\"\",+'[1]EXT(T)'!AY47)","v":"n.d."},{"$f":"IF(+'[1]EXT(T)'!AZ47=\"\",\"\",+'[1]EXT(T)'!AZ47)","v":"n.d."},{"$f":"IF(+'[1]EXT(T)'!AQ47=\"\",\"\",+'[1]EXT(T)'!AQ47-'[1]EXT(T)'!AQ46)","v":27.95348152},{"$f":"IF(+'[1]EXT(T)'!AR47=\"\",\"\",+'[1]EXT(T)'!AR47-'[1]EXT(T)'!AR46)","v":345.9},{"$f":"IF(+'[1]EXT(T)'!AS47=\"\",\"\",+'[1]EXT(T)'!AS47-'[1]EXT(T)'!AS46)","v":92.999099999999999},{"$f":"IF(+'[1]EXT(T)'!AT47=\"\",\"\",+'[1]EXT(T)'!AT47-'[1]EXT(T)'!AT46)","v":78.538422156649219},"n.d.",{"$f":"IF(+'[1]EXT(T)'!AV47=\"\",\"\",+'[1]EXT(T)'!AV47-'[1]EXT(T)'!AV46)","v":325.00000000000011},"n.d.","n.d.","n.d."]
[null,"III",{"$f":"IF(+'[1]EXT(T)'!M48=\"\",\"\",+'[1]EXT(T)'!M48)","v":"n.d."},{"$f":"IF(+'[1]EXT(T)'!N48=\"\",\"\",+'[1]EXT(T)'!N48)","v":150.6},{"$f":"IF(+'[1]EXT(T)'!O48=\"\",\"\",+'[1]EXT(T)'!O48)","v":"n.d."},{"$f":"IF(+'[1]EXT(T)'!P48=\"\",\"\",+'[1]EXT(T)'!P48)","v":"n.d."},{"$f":"IF(+'[1]EXT(T)'!Q48=\"\",\"\",+'[1]EXT(T)'!Q48)","v":"n.d."},{"$f":"IF(+'[1]EXT(T)'!R48=\"\",\"\",+'[1]EXT(T)'!R48)","v":"n.d."},{"$f":"IF(+'[1]EXT(T)'!S48=\"\",\"\",+'[1]EXT(T)'!S48)","v":198.29999999999998},{"$f":"IF(+'[1]EXT(T)'!U48=\"\",\"\",+'[1]EXT(T)'!U48)","v":"n.d."},{"$f":"IF(+'[1]EXT(T)'!V48=\"\",\"\",+'[1]EXT(T)'!V48)","v":"n.d."},{"$f":"IF(+'[1]EXT(T)'!W48=\"\",\"\",+'[1]EXT(T)'!W48)","v":"n.d."},{"$f":"IF(+'[1]EXT(T)'!X48=\"\",\"\",+'[1]EXT(T)'!X48)","v":181.29999999999998},{"$f":"IF(+'[1]EXT(T)'!Y48=\"\",\"\",+'[1]EXT(T)'!Y48)","v":"n.d."},{"$f":"IF(+'[1]EXT(T)'!Z48=\"\",\"\",+'[1]EXT(T)'!Z48)","v":"n.d."},{"$f":"IF(+'[1]EXT(T)'!AA48=\"\",\"\",+'[1]EXT(T)'!AA48)","v":"n.d."},{"$f":"IF(+'[1]EXT(T)'!AB48=\"\",\"\",+'[1]EXT(T)'!AB48)","v":"n.d."},{"$f":"IF(+'[1]EXT(T)'!AC48=\"\",\"\",+'[1]EXT(T)'!AC48)","v":630.59999999999991},{"$f":"IF(+'[1]EXT(T)'!AE48=\"\",\"\",+'[1]EXT(T)'!AE48)","v":"n.d."},{"$f":"IF(+'[1]EXT(T)'!AF48=\"\",\"\",+'[1]EXT(T)'!AF48)","v":"n.d."},{"$f":"IF(+'[1]EXT(T)'!AY48=\"\",\"\",+'[1]EXT(T)'!AY48)","v":"n.d."},{"$f":"IF(+'[1]EXT(T)'!AZ48=\"\",\"\",+'[1]EXT(T)'!AZ48)","v":"n.d."},{"$f":"IF(+'[1]EXT(T)'!AQ48=\"\",\"\",+'[1]EXT(T)'!AQ48-'[1]EXT(T)'!AQ47)","v":27.953481520000004},{"$f":"IF(+'[1]EXT(T)'!AR48=\"\",\"\",+'[1]EXT(T)'!AR48-'[1]EXT(T)'!AR47)","v":332},{"$f":"IF(+'[1]EXT(T)'!AS48=\"\",\"\",+'[1]EXT(T)'!AS48-'[1]EXT(T)'!AS47)","v":99.711999999999989},{"$f":"IF(+'[1]EXT(T)'!AT48=\"\",\"\",+'[1]EXT(T)'!AT48-'[1]EXT(T)'!AT47)","v":83.300489908068187},"n.d.",{"$f":"IF(+'[1]EXT(T)'!AV48=\"\",\"\",+'[1]EXT(T)'!AV48-'[1]EXT(T)'!AV47)","v":344.59999999999991},"n.d.","n.d.","n.d."]
[null,"IV",{"$f":"IF(+'[1]EXT(T)'!M49=\"\",\"\",+'[1]EXT(T)'!M49)","v":"n.d."},{"$f":"IF(+'[1]EXT(T)'!N49=\"\",\"\",+'[1]EXT(T)'!N49)","v":34.5},{"$f":"IF(+'[1]EXT(T)'!O49=\"\",\"\",+'[1]EXT(T)'!O49)","v":"n.d."},{"$f":"IF(+'[1]EXT(T)'!P49=\"\",\"\",+'[1]EXT(T)'!P49)","v":"n.d."},{"$f":"IF(+'[1]EXT(T)'!Q49=\"\",\"\",+'[1]EXT(T)'!Q49)","v":"n.d."},{"$f":"IF(+'[1]EXT(T)'!R49=\"\",\"\",+'[1]EXT(T)'!R49)","v":"n.d."},{"$f":"IF(+'[1]EXT(T)'!S49=\"\",\"\",+'[1]EXT(T)'!S49)","v":125},{"$f":"IF(+'[1]EXT(T)'!U49=\"\",\"\",+'[1]EXT(T)'!U49)","v":"n.d."},{"$f":"IF(+'[1]EXT(T)'!V49=\"\",\"\",+'[1]EXT(T)'!V49)","v":"n.d."},{"$f":"IF(+'[1]EXT(T)'!W49=\"\",\"\",+'[1]EXT(T)'!W49)","v":"n.d."},{"$f":"IF(+'[1]EXT(T)'!X49=\"\",\"\",+'[1]EXT(T)'!X49)","v":215.79999999999998},{"$f":"IF(+'[1]EXT(T)'!Y49=\"\",\"\",+'[1]EXT(T)'!Y49)","v":"n.d."},{"$f":"IF(+'[1]EXT(T)'!Z49=\"\",\"\",+'[1]EXT(T)'!Z49)","v":"n.d."},{"$f":"IF(+'[1]EXT(T)'!AA49=\"\",\"\",+'[1]EXT(T)'!AA49)","v":"n.d."},{"$f":"IF(+'[1]EXT(T)'!AB49=\"\",\"\",+'[1]EXT(T)'!AB49)","v":"n.d."},{"$f":"IF(+'[1]EXT(T)'!AC49=\"\",\"\",+'[1]EXT(T)'!AC49)","v":755.59999999999991},{"$f":"IF(+'[1]EXT(T)'!AE49=\"\",\"\",+'[1]EXT(T)'!AE49)","v":"n.d."},{"$f":"IF(+'[1]EXT(T)'!AF49=\"\",\"\",+'[1]EXT(T)'!AF49)","v":"n.d."},{"$f":"IF(+'[1]EXT(T)'!AY49=\"\",\"\",+'[1]EXT(T)'!AY49)","v":"n.d."},{"$f":"IF(+'[1]EXT(T)'!AZ49=\"\",\"\",+'[1]EXT(T)'!AZ49)","v":"n.d."},{"$f":"IF(+'[1]EXT(T)'!AQ49=\"\",\"\",+'[1]EXT(T)'!AQ49-'[1]EXT(T)'!AQ48)","v":27.953273670000002},{"$f":"IF(+'[1]EXT(T)'!AR49=\"\",\"\",+'[1]EXT(T)'!AR49-'[1]EXT(T)'!AR48)","v":376.5},{"$f":"IF(+'[1]EXT(T)'!AS49=\"\",\"\",+'[1]EXT(T)'!AS49-'[1]EXT(T)'!AS48)","v":154.25619999999992},{"$f":"IF(+'[1]EXT(T)'!AT49=\"\",\"\",+'[1]EXT(T)'!AT49-'[1]EXT(T)'!AT48)","v":89.23284313458322},"n.d.",{"$f":"IF(+'[1]EXT(T)'!AV49=\"\",\"\",+'[1]EXT(T)'!AV49-'[1]EXT(T)'!AV48)","v":504.20000000000005},"n.d.","n.d.","n.d."]
[2000,"I",{"$f":"IF(+'[1]EXT(T)'!M50=\"\",\"\",+'[1]EXT(T)'!M50)","v":213.54971564431659},{"$f":"IF(+'[1]EXT(T)'!N50=\"\",\"\",+'[1]EXT(T)'!N50)","v":4.0999999999999996},{"$f":"IF(+'[1]EXT(T)'!O50=\"\",\"\",+'[1]EXT(T)'!O50)","v":"n.d."},{"$f":"IF(+'[1]EXT(T)'!P50=\"\",\"\",+'[1]EXT(T)'!P50)","v":"n.d."},{"$f":"IF(+'[1]EXT(T)'!Q50=\"\",\"\",+'[1]EXT(T)'!Q50)","v":"n.d."},{"$f":"IF(+'[1]EXT(T)'!R50=\"\",\"\",+'[1]EXT(T)'!R50)","v":"n.d."},{"$f":"IF(+'[1]EXT(T)'!S50=\"\",\"\",+'[1]EXT(T)'!S50)","v":115.89999999999999},{"$f":"IF(+'[1]EXT(T)'!U50=\"\",\"\",+'[1]EXT(T)'!U50)","v":"n.d."},{"$f":"IF(+'[1]EXT(T)'!V50=\"\",\"\",+'[1]EXT(T)'!V50)","v":"n.d."},{"$f":"IF(+'[1]EXT(T)'!W50=\"\",\"\",+'[1]EXT(T)'!W50)","v":213.54971564431659},{"$f":"IF(+'[1]EXT(T)'!X50=\"\",\"\",+'[1]EXT(T)'!X50)","v":4.0999999999999996},{"$f":"IF(+'[1]EXT(T)'!Y50=\"\",\"\",+'[1]EXT(T)'!Y50)","v":"n.d."},{"$f":"IF(+'[1]EXT(T)'!Z50=\"\",\"\",+'[1]EXT(T)'!Z50)","v":"n.d."},{"$f":"IF(+'[1]EXT(T)'!AA50=\"\",\"\",+'[1]EXT(T)'!AA50)","v":"n.d."},{"$f":"IF(+'[1]EXT(T)'!AB50=\"\",\"\",+'[1]EXT(T)'!AB50)","v":"n.d."},{"$f":"IF(+'[1]EXT(T)'!AC50=\"\",\"\",+'[1]EXT(T)'!AC50)","v":115.89999999999999},{"$f":"IF(+'[1]EXT(T)'!AE50=\"\",\"\",+'[1]EXT(T)'!AE50)","v":"n.d."},{"$f":"IF(+'[1]EXT(T)'!AF50=\"\",\"\",+'[1]EXT(T)'!AF50)","v":"n.d."},{"$f":"IF(+'[1]EXT(T)'!AY50=\"\",\"\",+'[1]EXT(T)'!AY50)","v":1108.11624244},{"$f":"IF(+'[1]EXT(T)'!AZ50=\"\",\"\",+'[1]EXT(T)'!AZ50)","v":"n.d."},{"$f":"IF(+'[1]EXT(T)'!AQ50=\"\",\"\",+'[1]EXT(T)'!AQ50)","v":30.095942440000002},{"$f":"IF(+'[1]EXT(T)'!AR50=\"\",\"\",+'[1]EXT(T)'!AR50)","v":398.7},{"$f":"IF(+'[1]EXT(T)'!AS50=\"\",\"\",+'[1]EXT(T)'!AS50)","v":134.72809999999998},{"$f":"IF(+'[1]EXT(T)'!AT50=\"\",\"\",+'[1]EXT(T)'!AT50)","v":77.092200000000005},{"$f":"IF(+'[1]EXT(T)'!AU50=\"\",\"\",+'[1]EXT(T)'!AU50)","v":64},{"$f":"IF(+'[1]EXT(T)'!AV50=\"\",\"\",+'[1]EXT(T)'!AV50)","v":403.5},"n.d.",{"$f":"IF(OR(W43=\"\",X43=\"\",Y43=\"\",Z43=\"\",AA43=\"\",AB43=\"\"),\"\",W43+X43+Y43+Z43+AA43+AB43)","v":1108.11624244},"n.d."]
[null,"II",{"$f":"IF(+'[1]EXT(T)'!M51=\"\",\"\",+'[1]EXT(T)'!M51)","v":182.2847619857871},{"$f":"IF(+'[1]EXT(T)'!N51=\"\",\"\",+'[1]EXT(T)'!N51)","v":34.299999999999997},{"$f":"IF(+'[1]EXT(T)'!O51=\"\",\"\",+'[1]EXT(T)'!O51)","v":"n.d."},{"$f":"IF(+'[1]EXT(T)'!P51=\"\",\"\",+'[1]EXT(T)'!P51)","v":"n.d."},{"$f":"IF(+'[1]EXT(T)'!Q51=\"\",\"\",+'[1]EXT(T)'!Q51)","v":"n.d."},{"$f":"IF(+'[1]EXT(T)'!R51=\"\",\"\",+'[1]EXT(T)'!R51)","v":"n.d."},{"$f":"IF(+'[1]EXT(T)'!S51=\"\",\"\",+'[1]EXT(T)'!S51)","v":124.69999999999999},{"$f":"IF(+'[1]EXT(T)'!U51=\"\",\"\",+'[1]EXT(T)'!U51)","v":"n.d."},{"$f":"IF(+'[1]EXT(T)'!V51=\"\",\"\",+'[1]EXT(T)'!V51)","v":"n.d."},{"$f":"IF(+'[1]EXT(T)'!W51=\"\",\"\",+'[1]EXT(T)'!W51)","v":395.83447763010372},{"$f":"IF(+'[1]EXT(T)'!X51=\"\",\"\",+'[1]EXT(T)'!X51)","v":38.4},{"$f":"IF(+'[1]EXT(T)'!Y51=\"\",\"\",+'[1]EXT(T)'!Y51)","v":"n.d."},{"$f":"IF(+'[1]EXT(T)'!Z51=\"\",\"\",+'[1]EXT(T)'!Z51)","v":"n.d."},{"$f":"IF(+'[1]EXT(T)'!AA51=\"\",\"\",+'[1]EXT(T)'!AA51)","v":"n.d."},{"$f":"IF(+'[1]EXT(T)'!AB51=\"\",\"\",+'[1]EXT(T)'!AB51)","v":"n.d."},{"$f":"IF(+'[1]EXT(T)'!AC51=\"\",\"\",+'[1]EXT(T)'!AC51)","v":240.59999999999997},{"$f":"IF(+'[1]EXT(T)'!AE51=\"\",\"\",+'[1]EXT(T)'!AE51)","v":"n.d."},{"$f":"IF(+'[1]EXT(T)'!AF51=\"\",\"\",+'[1]EXT(T)'!AF51)","v":"n.d."},{"$f":"IF(+'[1]EXT(T)'!AY51=\"\",\"\",+'[1]EXT(T)'!AY51)","v":2208.93688488},{"$f":"IF(+'[1]EXT(T)'!AZ51=\"\",\"\",+'[1]EXT(T)'!AZ51)","v":"n.d."},{"$f":"IF(+'[1]EXT(T)'!AQ51=\"\",\"\",+'[1]EXT(T)'!AQ51-'[1]EXT(T)'!AQ50)","v":30.095942440000002},{"$f":"IF(+'[1]EXT(T)'!AR51=\"\",\"\",+'[1]EXT(T)'!AR51-'[1]EXT(T)'!AR50)","v":418.7},{"$f":"IF(+'[1]EXT(T)'!AS51=\"\",\"\",+'[1]EXT(T)'!AS51-'[1]EXT(T)'!AS50)","v":125.60769999999997},{"$f":"IF(+'[1]EXT(T)'!AT51=\"\",\"\",+'[1]EXT(T)'!AT51-'[1]EXT(T)'!AT50)","v":86.916999999999987},{"$f":"IF(+'[1]EXT(T)'!AU51=\"\",\"\",+'[1]EXT(T)'!AU51-'[1]EXT(T)'!AU50)","v":73.599999999999994},{"$f":"IF(+'[1]EXT(T)'!AV51=\"\",\"\",+'[1]EXT(T)'!AV51-'[1]EXT(T)'!AV50)","v":365.9},"n.d.",1100.82064244,"n.d."]
[null,"III",{"$f":"IF(+'[1]EXT(T)'!M52=\"\",\"\",+'[1]EXT(T)'!M52)","v":120.05479975209747},{"$f":"IF(+'[1]EXT(T)'!N52=\"\",\"\",+'[1]EXT(T)'!N52)","v":87.3},{"$f":"IF(+'[1]EXT(T)'!O52=\"\",\"\",+'[1]EXT(T)'!O52)","v":"n.d."},{"$f":"IF(+'[1]EXT(T)'!P52=\"\",\"\",+'[1]EXT(T)'!P52)","v":"n.d."},{"$f":"IF(+'[1]EXT(T)'!Q52=\"\",\"\",+'[1]EXT(T)'!Q52)","v":"n.d."},{"$f":"IF(+'[1]EXT(T)'!R52=\"\",\"\",+'[1]EXT(T)'!R52)","v":"n.d."},{"$f":"IF(+'[1]EXT(T)'!S52=\"\",\"\",+'[1]EXT(T)'!S52)","v":164.7},{"$f":"IF(+'[1]EXT(T)'!U52=\"\",\"\",+'[1]EXT(T)'!U52)","v":"n.d."},{"$f":"IF(+'[1]EXT(T)'!V52=\"\",\"\",+'[1]EXT(T)'!V52)","v":"n.d."},{"$f":"IF(+'[1]EXT(T)'!W52=\"\",\"\",+'[1]EXT(T)'!W52)","v":515.88927738220116},{"$f":"IF(+'[1]EXT(T)'!X52=\"\",\"\",+'[1]EXT(T)'!X52)","v":125.69999999999999},{"$f":"IF(+'[1]EXT(T)'!Y52=\"\",\"\",+'[1]EXT(T)'!Y52)","v":"n.d."},{"$f":"IF(+'[1]EXT(T)'!Z52=\"\",\"\",+'[1]EXT(T)'!Z52)","v":"n.d."},{"$f":"IF(+'[1]EXT(T)'!AA52=\"\",\"\",+'[1]EXT(T)'!AA52)","v":"n.d."},{"$f":"IF(+'[1]EXT(T)'!AB52=\"\",\"\",+'[1]EXT(T)'!AB52)","v":"n.d."},{"$f":"IF(+'[1]EXT(T)'!AC52=\"\",\"\",+'[1]EXT(T)'!AC52)","v":405.29999999999995},{"$f":"IF(+'[1]EXT(T)'!AE52=\"\",\"\",+'[1]EXT(T)'!AE52)","v":"n.d."},{"$f":"IF(+'[1]EXT(T)'!AF52=\"\",\"\",+'[1]EXT(T)'!AF52)","v":"n.d."},{"$f":"IF(+'[1]EXT(T)'!AY52=\"\",\"\",+'[1]EXT(T)'!AY52)","v":3353.5504273199999},{"$f":"IF(+'[1]EXT(T)'!AZ52=\"\",\"\",+'[1]EXT(T)'!AZ52)","v":"n.d."},{"$f":"IF(+'[1]EXT(T)'!AQ52=\"\",\"\",+'[1]EXT(T)'!AQ52-'[1]EXT(T)'!AQ51)","v":30.095942440000002},{"$f":"IF(+'[1]EXT(T)'!AR52=\"\",\"\",+'[1]EXT(T)'!AR52-'[1]EXT(T)'!AR51)","v":450.9},{"$f":"IF(+'[1]EXT(T)'!AS52=\"\",\"\",+'[1]EXT(T)'!AS52-'[1]EXT(T)'!AS51)","v":128.59849999999994},{"$f":"IF(+'[1]EXT(T)'!AT52=\"\",\"\",+'[1]EXT(T)'!AT52-'[1]EXT(T)'!AT51)","v":90.819099999999992},{"$f":"IF(+'[1]EXT(T)'!AU52=\"\",\"\",+'[1]EXT(T)'!AU52-'[1]EXT(T)'!AU51)","v":83.200000000000017},{"$f":"IF(+'[1]EXT(T)'!AV52=\"\",\"\",+'[1]EXT(T)'!AV52-'[1]EXT(T)'!AV51)","v":361.00000000000011},"n.d.",1144.6135424399999,"n.d."]
[null,"IV",{"$f":"IF(+'[1]EXT(T)'!M53=\"\",\"\",+'[1]EXT(T)'!M53)","v":151.0545043093195},{"$f":"IF(+'[1]EXT(T)'!N53=\"\",\"\",+'[1]EXT(T)'!N53)","v":47.699999999999996},{"$f":"IF(+'[1]EXT(T)'!O53=\"\",\"\",+'[1]EXT(T)'!O53)","v":"n.d."},{"$f":"IF(+'[1]EXT(T)'!P53=\"\",\"\",+'[1]EXT(T)'!P53)","v":"n.d."},{"$f":"IF(+'[1]EXT(T)'!Q53=\"\",\"\",+'[1]EXT(T)'!Q53)","v":"n.d."},{"$f":"IF(+'[1]EXT(T)'!R53=\"\",\"\",+'[1]EXT(T)'!R53)","v":"n.d."},{"$f":"IF(+'[1]EXT(T)'!S53=\"\",\"\",+'[1]EXT(T)'!S53)","v":218.6},{"$f":"IF(+'[1]EXT(T)'!U53=\"\",\"\",+'[1]EXT(T)'!U53)","v":"n.d."},{"$f":"IF(+'[1]EXT(T)'!V53=\"\",\"\",+'[1]EXT(T)'!V53)","v":"n.d."},{"$f":"IF(+'[1]EXT(T)'!W53=\"\",\"\",+'[1]EXT(T)'!W53)","v":666.9437816915206},{"$f":"IF(+'[1]EXT(T)'!X53=\"\",\"\",+'[1]EXT(T)'!X53)","v":173.39999999999998},{"$f":"IF(+'[1]EXT(T)'!Y53=\"\",\"\",+'[1]EXT(T)'!Y53)","v":"n.d."},{"$f":"IF(+'[1]EXT(T)'!Z53=\"\",\"\",+'[1]EXT(T)'!Z53)","v":"n.d."},{"$f":"IF(+'[1]EXT(T)'!AA53=\"\",\"\",+'[1]EXT(T)'!AA53)","v":"n.d."},{"$f":"IF(+'[1]EXT(T)'!AB53=\"\",\"\",+'[1]EXT(T)'!AB53)","v":"n.d."},{"$f":"IF(+'[1]EXT(T)'!AC53=\"\",\"\",+'[1]EXT(T)'!AC53)","v":623.9},{"$f":"IF(+'[1]EXT(T)'!AE53=\"\",\"\",+'[1]EXT(T)'!AE53)","v":"n.d."},{"$f":"IF(+'[1]EXT(T)'!AF53=\"\",\"\",+'[1]EXT(T)'!AF53)","v":"n.d."},{"$f":"IF(+'[1]EXT(T)'!AY53=\"\",\"\",+'[1]EXT(T)'!AY53)","v":4799.478969759999},{"$f":"IF(+'[1]EXT(T)'!AZ53=\"\",\"\",+'[1]EXT(T)'!AZ53)","v":"n.d."},{"$f":"IF(+'[1]EXT(T)'!AQ53=\"\",\"\",+'[1]EXT(T)'!AQ53-'[1]EXT(T)'!AQ52)","v":30.095942440000002},{"$f":"IF(+'[1]EXT(T)'!AR53=\"\",\"\",+'[1]EXT(T)'!AR53-'[1]EXT(T)'!AR52)","v":482.39999999999986},{"$f":"IF(+'[1]EXT(T)'!AS53=\"\",\"\",+'[1]EXT(T)'!AS53-'[1]EXT(T)'!AS52)","v":174.50440000000003},{"$f":"IF(+'[1]EXT(T)'!AT53=\"\",\"\",+'[1]EXT(T)'!AT53-'[1]EXT(T)'!AT52)","v":101.12819999999996},{"$f":"IF(+'[1]EXT(T)'!AU53=\"\",\"\",+'[1]EXT(T)'!AU53-'[1]EXT(T)'!AU52)","v":99.199999999999989},{"$f":"IF(+'[1]EXT(T)'!AV53=\"\",\"\",+'[1]EXT(T)'!AV53-'[1]EXT(T)'!AV52)","v":558.59999999999991},"n.d.",1445.9285424399998,"n.d."]
[2001,"I",{"$f":"IF(+'[1]EXT(T)'!M54=\"\",\"\",+'[1]EXT(T)'!M54)","v":257.57066087413909},{"$f":"IF(+'[1]EXT(T)'!N54=\"\",\"\",+'[1]EXT(T)'!N54)","v":109},{"$f":"IF(+'[1]EXT(T)'!O54=\"\",\"\",+'[1]EXT(T)'!O54)","v":"n.d."},{"$f":"IF(+'[1]EXT(T)'!P54=\"\",\"\",+'[1]EXT(T)'!P54)","v":"n.d."},{"$f":"IF(+'[1]EXT(T)'!Q54=\"\",\"\",+'[1]EXT(T)'!Q54)","v":"n.d."},{"$f":"IF(+'[1]EXT(T)'!R54=\"\",\"\",+'[1]EXT(T)'!R54)","v":"n.d."},{"$f":"IF(+'[1]EXT(T)'!S54=\"\",\"\",+'[1]EXT(T)'!S54)","v":29.599999999999994},{"$f":"IF(+'[1]EXT(T)'!U54=\"\",\"\",+'[1]EXT(T)'!U54)","v":"n.d."},{"$f":"IF(+'[1]EXT(T)'!V54=\"\",\"\",+'[1]EXT(T)'!V54)","v":"n.d."},{"$f":"IF(+'[1]EXT(T)'!W54=\"\",\"\",+'[1]EXT(T)'!W54)","v":257.57066087413909},{"$f":"IF(+'[1]EXT(T)'!X54=\"\",\"\",+'[1]EXT(T)'!X54)","v":109},{"$f":"IF(+'[1]EXT(T)'!Y54=\"\",\"\",+'[1]EXT(T)'!Y54)","v":"n.d."},{"$f":"IF(+'[1]EXT(T)'!Z54=\"\",\"\",+'[1]EXT(T)'!Z54)","v":"n.d."},{"$f":"IF(+'[1]EXT(T)'!AA54=\"\",\"\",+'[1]EXT(T)'!AA54)","v":"n.d."},{"$f":"IF(+'[1]EXT(T)'!AB54=\"\",\"\",+'[1]EXT(T)'!AB54)","v":"n.d."},{"$f":"IF(+'[1]EXT(T)'!AC54=\"\",\"\",+'[1]EXT(T)'!AC54)","v":29.599999999999994},{"$f":"IF(+'[1]EXT(T)'!AE54=\"\",\"\",+'[1]EXT(T)'!AE54)","v":"n.d."},{"$f":"IF(+'[1]EXT(T)'!AF54=\"\",\"\",+'[1]EXT(T)'!AF54)","v":"n.d."},{"$f":"IF(+'[1]EXT(T)'!AY54=\"\",\"\",+'[1]EXT(T)'!AY54)","v":1287.1616882799999},{"$f":"IF(+'[1]EXT(T)'!AZ54=\"\",\"\",+'[1]EXT(T)'!AZ54)","v":"n.d."},{"$f":"IF(+'[1]EXT(T)'!AQ54=\"\",\"\",+'[1]EXT(T)'!AQ54)","v":45.993488280000001},{"$f":"IF(+'[1]EXT(T)'!AR54=\"\",\"\",+'[1]EXT(T)'!AR54)","v":444.4},{"$f":"IF(+'[1]EXT(T)'!AS54=\"\",\"\",+'[1]EXT(T)'!AS54)","v":183.85640000000001},{"$f":"IF(+'[1]EXT(T)'!AT54=\"\",\"\",+'[1]EXT(T)'!AT54)","v":104.11180000000002},{"$f":"IF(+'[1]EXT(T)'!AU54=\"\",\"\",+'[1]EXT(T)'!AU54)","v":77.099999999999994},{"$f":"IF(+'[1]EXT(T)'!AV54=\"\",\"\",+'[1]EXT(T)'!AV54)","v":431.69999999999993},"n.d.",1287.1616882799999,"n.d."]
[null,"II",{"$f":"IF(+'[1]EXT(T)'!M55=\"\",\"\",+'[1]EXT(T)'!M55)","v":136.96063302419088},{"$f":"IF(+'[1]EXT(T)'!N55=\"\",\"\",+'[1]EXT(T)'!N55)","v":90.1},{"$f":"IF(+'[1]EXT(T)'!O55=\"\",\"\",+'[1]EXT(T)'!O55)","v":"n.d."},{"$f":"IF(+'[1]EXT(T)'!P55=\"\",\"\",+'[1]EXT(T)'!P55)","v":"n.d."},{"$f":"IF(+'[1]EXT(T)'!Q55=\"\",\"\",+'[1]EXT(T)'!Q55)","v":"n.d."},{"$f":"IF(+'[1]EXT(T)'!R55=\"\",\"\",+'[1]EXT(T)'!R55)","v":"n.d."},{"$f":"IF(+'[1]EXT(T)'!S55=\"\",\"\",+'[1]EXT(T)'!S55)","v":63.3},{"$f":"IF(+'[1]EXT(T)'!U55=\"\",\"\",+'[1]EXT(T)'!U55)","v":"n.d."},{"$f":"IF(+'[1]EXT(T)'!V55=\"\",\"\",+'[1]EXT(T)'!V55)","v":"n.d."},{"$f":"IF(+'[1]EXT(T)'!W55=\"\",\"\",+'[1]EXT(T)'!W55)","v":394.53129389832998},{"$f":"IF(+'[1]EXT(T)'!X55=\"\",\"\",+'[1]EXT(T)'!X55)","v":199.1},{"$f":"IF(+'[1]EXT(T)'!Y55=\"\",\"\",+'[1]EXT(T)'!Y55)","v":"n.d."},{"$f":"IF(+'[1]EXT(T)'!Z55=\"\",\"\",+'[1]EXT(T)'!Z55)","v":"n.d."},{"$f":"IF(+'[1]EXT(T)'!AA55=\"\",\"\",+'[1]EXT(T)'!AA55)","v":"n.d."},{"$f":"IF(+'[1]EXT(T)'!AB55=\"\",\"\",+'[1]EXT(T)'!AB55)","v":"n.d."},{"$f":"IF(+'[1]EXT(T)'!AC55=\"\",\"\",+'[1]EXT(T)'!AC55)","v":92.899999999999991},{"$f":"IF(+'[1]EXT(T)'!AE55=\"\",\"\",+'[1]EXT(T)'!AE55)","v":"n.d."},{"$f":"IF(+'[1]EXT(T)'!AF55=\"\",\"\",+'[1]EXT(T)'!AF55)","v":"n.d."},{"$f":"IF(+'[1]EXT(T)'!AY55=\"\",\"\",+'[1]EXT(T)'!AY55)","v":2539.8696765599998},{"$f":"IF(+'[1]EXT(T)'!AZ55=\"\",\"\",+'[1]EXT(T)'!AZ55)","v":"n.d."},{"$f":"IF(+'[1]EXT(T)'!AQ55=\"\",\"\",+'[1]EXT(T)'!AQ55-'[1]EXT(T)'!AQ54)","v":45.993488280000001},{"$f":"IF(+'[1]EXT(T)'!AR55=\"\",\"\",+'[1]EXT(T)'!AR55-'[1]EXT(T)'!AR54)","v":476.6},{"$f":"IF(+'[1]EXT(T)'!AS55=\"\",\"\",+'[1]EXT(T)'!AS55-'[1]EXT(T)'!AS54)","v":144.10489999999999},{"$f":"IF(+'[1]EXT(T)'!AT55=\"\",\"\",+'[1]EXT(T)'!AT55-'[1]EXT(T)'!AT54)","v":115.4496},{"$f":"IF(+'[1]EXT(T)'!AU55=\"\",\"\",+'[1]EXT(T)'!AU55-'[1]EXT(T)'!AU54)","v":79},{"$f":"IF(+'[1]EXT(T)'!AV55=\"\",\"\",+'[1]EXT(T)'!AV55-'[1]EXT(T)'!AV54)","v":391.56000000000006},"n.d.",1252.7079882800001,"n.d."]
[null,"III",{"$f":"IF(+'[1]EXT(T)'!M56=\"\",\"\",+'[1]EXT(T)'!M56)","v":89.344573370997381},{"$f":"IF(+'[1]EXT(T)'!N56=\"\",\"\",+'[1]EXT(T)'!N56)","v":33.4},{"$f":"IF(+'[1]EXT(T)'!O56=\"\",\"\",+'[1]EXT(T)'!O56)","v":"n.d."},{"$f":"IF(+'[1]EXT(T)'!P56=\"\",\"\",+'[1]EXT(T)'!P56)","v":"n.d."},{"$f":"IF(+'[1]EXT(T)'!Q56=\"\",\"\",+'[1]EXT(T)'!Q56)","v":"n.d."},{"$f":"IF(+'[1]EXT(T)'!R56=\"\",\"\",+'[1]EXT(T)'!R56)","v":"n.d."},{"$f":"IF(+'[1]EXT(T)'!S56=\"\",\"\",+'[1]EXT(T)'!S56)","v":85.3},{"$f":"IF(+'[1]EXT(T)'!U56=\"\",\"\",+'[1]EXT(T)'!U56)","v":"n.d."},{"$f":"IF(+'[1]EXT(T)'!V56=\"\",\"\",+'[1]EXT(T)'!V56)","v":"n.d."},{"$f":"IF(+'[1]EXT(T)'!W56=\"\",\"\",+'[1]EXT(T)'!W56)","v":483.87586726932739},{"$f":"IF(+'[1]EXT(T)'!X56=\"\",\"\",+'[1]EXT(T)'!X56)","v":232.5},{"$f":"IF(+'[1]EXT(T)'!Y56=\"\",\"\",+'[1]EXT(T)'!Y56)","v":"n.d."},{"$f":"IF(+'[1]EXT(T)'!Z56=\"\",\"\",+'[1]EXT(T)'!Z56)","v":"n.d."},{"$f":"IF(+'[1]EXT(T)'!AA56=\"\",\"\",+'[1]EXT(T)'!AA56)","v":"n.d."},{"$f":"IF(+'[1]EXT(T)'!AB56=\"\",\"\",+'[1]EXT(T)'!AB56)","v":"n.d."},{"$f":"IF(+'[1]EXT(T)'!AC56=\"\",\"\",+'[1]EXT(T)'!AC56)","v":178.2},{"$f":"IF(+'[1]EXT(T)'!AE56=\"\",\"\",+'[1]EXT(T)'!AE56)","v":"n.d."},{"$f":"IF(+'[1]EXT(T)'!AF56=\"\",\"\",+'[1]EXT(T)'!AF56)","v":"n.d."},{"$f":"IF(+'[1]EXT(T)'!AY56=\"\",\"\",+'[1]EXT(T)'!AY56)","v":3807.5348648400004},{"$f":"IF(+'[1]EXT(T)'!AZ56=\"\",\"\",+'[1]EXT(T)'!AZ56)","v":"n.d."},{"$f":"IF(+'[1]EXT(T)'!AQ56=\"\",\"\",+'[1]EXT(T)'!AQ56-'[1]EXT(T)'!AQ55)","v":45.993488279999994},{"$f":"IF(+'[1]EXT(T)'!AR56=\"\",\"\",+'[1]EXT(T)'!AR56-'[1]EXT(T)'!AR55)","v":476.40000000000009},{"$f":"IF(+'[1]EXT(T)'!AS56=\"\",\"\",+'[1]EXT(T)'!AS56-'[1]EXT(T)'!AS55)","v":131.49929999999995},{"$f":"IF(+'[1]EXT(T)'!AT56=\"\",\"\",+'[1]EXT(T)'!AT56-'[1]EXT(T)'!AT55)","v":124.72240000000002},{"$f":"IF(+'[1]EXT(T)'!AU56=\"\",\"\",+'[1]EXT(T)'!AU56-'[1]EXT(T)'!AU55)","v":87.300000000000011},{"$f":"IF(+'[1]EXT(T)'!AV56=\"\",\"\",+'[1]EXT(T)'!AV56-'[1]EXT(T)'!AV55)","v":401.75000000000023},"n.d.",1267.6651882800002,"n.d."]
[null,"IV",{"$f":"IF(+'[1]EXT(T)'!M57=\"\",\"\",+'[1]EXT(T)'!M57)","v":124.77261957733673},{"$f":"IF(+'[1]EXT(T)'!N57=\"\",\"\",+'[1]EXT(T)'!N57)","v":46.4},{"$f":"IF(+'[1]EXT(T)'!O57=\"\",\"\",+'[1]EXT(T)'!O57)","v":"n.d."},{"$f":"IF(+'[1]EXT(T)'!P57=\"\",\"\",+'[1]EXT(T)'!P57)","v":"n.d."},{"$f":"IF(+'[1]EXT(T)'!Q57=\"\",\"\",+'[1]EXT(T)'!Q57)","v":"n.d."},{"$f":"IF(+'[1]EXT(T)'!R57=\"\",\"\",+'[1]EXT(T)'!R57)","v":"n.d."},{"$f":"IF(+'[1]EXT(T)'!S57=\"\",\"\",+'[1]EXT(T)'!S57)","v":288.89999999999998},{"$f":"IF(+'[1]EXT(T)'!U57=\"\",\"\",+'[1]EXT(T)'!U57)","v":"n.d."},{"$f":"IF(+'[1]EXT(T)'!V57=\"\",\"\",+'[1]EXT(T)'!V57)","v":"n.d."},{"$f":"IF(+'[1]EXT(T)'!W57=\"\",\"\",+'[1]EXT(T)'!W57)","v":608.64848684666413},{"$f":"IF(+'[1]EXT(T)'!X57=\"\",\"\",+'[1]EXT(T)'!X57)","v":278.89999999999998},{"$f":"IF(+'[1]EXT(T)'!Y57=\"\",\"\",+'[1]EXT(T)'!Y57)","v":"n.d."},{"$f":"IF(+'[1]EXT(T)'!Z57=\"\",\"\",+'[1]EXT(T)'!Z57)","v":"n.d."},{"$f":"IF(+'[1]EXT(T)'!AA57=\"\",\"\",+'[1]EXT(T)'!AA57)","v":"n.d."},{"$f":"IF(+'[1]EXT(T)'!AB57=\"\",\"\",+'[1]EXT(T)'!AB57)","v":"n.d."},{"$f":"IF(+'[1]EXT(T)'!AC57=\"\",\"\",+'[1]EXT(T)'!AC57)","v":467.09999999999997},{"$f":"IF(+'[1]EXT(T)'!AE57=\"\",\"\",+'[1]EXT(T)'!AE57)","v":"n.d."},{"$f":"IF(+'[1]EXT(T)'!AF57=\"\",\"\",+'[1]EXT(T)'!AF57)","v":"n.d."},{"$f":"IF(+'[1]EXT(T)'!AY57=\"\",\"\",+'[1]EXT(T)'!AY57)","v":5312.6147531199995},{"$f":"IF(+'[1]EXT(T)'!AZ57=\"\",\"\",+'[1]EXT(T)'!AZ57)","v":"n.d."},{"$f":"IF(+'[1]EXT(T)'!AQ57=\"\",\"\",+'[1]EXT(T)'!AQ57-'[1]EXT(T)'!AQ56)","v":45.993488280000008},{"$f":"IF(+'[1]EXT(T)'!AR57=\"\",\"\",+'[1]EXT(T)'!AR57-'[1]EXT(T)'!AR56)","v":513.09999999999991},{"$f":"IF(+'[1]EXT(T)'!AS57=\"\",\"\",+'[1]EXT(T)'!AS57-'[1]EXT(T)'!AS56)","v":132.87849999999997},{"$f":"IF(+'[1]EXT(T)'!AT57=\"\",\"\",+'[1]EXT(T)'!AT57-'[1]EXT(T)'!AT56)","v":138.00790000000001},{"$f":"IF(+'[1]EXT(T)'!AU57=\"\",\"\",+'[1]EXT(T)'!AU57-'[1]EXT(T)'!AU56)","v":92.299999999999983},{"$f":"IF(+'[1]EXT(T)'!AV57=\"\",\"\",+'[1]EXT(T)'!AV57-'[1]EXT(T)'!AV56)","v":582.79999999999995},"n.d.",1505.07988828,"n.d."]
[2002,"I",{"$f":"IF(+'[1]EXT(T)'!M58=\"\",\"\",+'[1]EXT(T)'!M58)","v":219.84530603489802},{"$f":"IF(+'[1]EXT(T)'!N58=\"\",\"\",+'[1]EXT(T)'!N58)","v":343.8},{"$f":"IF(+'[1]EXT(T)'!O58=\"\",\"\",+'[1]EXT(T)'!O58)","v":"n.d."},{"$f":"IF(+'[1]EXT(T)'!P58=\"\",\"\",+'[1]EXT(T)'!P58)","v":"n.d."},{"$f":"IF(+'[1]EXT(T)'!Q58=\"\",\"\",+'[1]EXT(T)'!Q58)","v":"n.d."},{"$f":"IF(+'[1]EXT(T)'!R58=\"\",\"\",+'[1]EXT(T)'!R58)","v":"n.d."},{"$f":"IF(+'[1]EXT(T)'!S58=\"\",\"\",+'[1]EXT(T)'!S58)","v":97.1},{"$f":"IF(+'[1]EXT(T)'!U58=\"\",\"\",+'[1]EXT(T)'!U58)","v":"n.d."},{"$f":"IF(+'[1]EXT(T)'!V58=\"\",\"\",+'[1]EXT(T)'!V58)","v":"n.d."},{"$f":"IF(+'[1]EXT(T)'!W58=\"\",\"\",+'[1]EXT(T)'!W58)","v":219.84530603489802},{"$f":"IF(+'[1]EXT(T)'!X58=\"\",\"\",+'[1]EXT(T)'!X58)","v":343.8},{"$f":"IF(+'[1]EXT(T)'!Y58=\"\",\"\",+'[1]EXT(T)'!Y58)","v":"n.d."},{"$f":"IF(+'[1]EXT(T)'!Z58=\"\",\"\",+'[1]EXT(T)'!Z58)","v":"n.d."},{"$f":"IF(+'[1]EXT(T)'!AA58=\"\",\"\",+'[1]EXT(T)'!AA58)","v":"n.d."},{"$f":"IF(+'[1]EXT(T)'!AB58=\"\",\"\",+'[1]EXT(T)'!AB58)","v":"n.d."},{"$f":"IF(+'[1]EXT(T)'!AC58=\"\",\"\",+'[1]EXT(T)'!AC58)","v":97.1},{"$f":"IF(+'[1]EXT(T)'!AE58=\"\",\"\",+'[1]EXT(T)'!AE58)","v":"n.d."},{"$f":"IF(+'[1]EXT(T)'!AF58=\"\",\"\",+'[1]EXT(T)'!AF58)","v":"n.d."},{"$f":"IF(+'[1]EXT(T)'!AY58=\"\",\"\",+'[1]EXT(T)'!AY58)","v":1492.8324069600001},{"$f":"IF(+'[1]EXT(T)'!AZ58=\"\",\"\",+'[1]EXT(T)'!AZ58)","v":"n.d."},{"$f":"IF(+'[1]EXT(T)'!AQ58=\"\",\"\",+'[1]EXT(T)'!AQ58)","v":50.298906959999997},{"$f":"IF(+'[1]EXT(T)'!AR58=\"\",\"\",+'[1]EXT(T)'!AR58)","v":447.40000000000003},{"$f":"IF(+'[1]EXT(T)'!AS58=\"\",\"\",+'[1]EXT(T)'!AS58)","v":288.84879999999998},{"$f":"IF(+'[1]EXT(T)'!AT58=\"\",\"\",+'[1]EXT(T)'!AT58)","v":138.78469999999999},{"$f":"IF(+'[1]EXT(T)'!AU58=\"\",\"\",+'[1]EXT(T)'!AU58)","v":91.4},{"$f":"IF(+'[1]EXT(T)'!AV58=\"\",\"\",+'[1]EXT(T)'!AV58)","v":476.09999999999997},"n.d.",1492.8324069600001,"n.d."]
[null,"II",{"$f":"IF(+'[1]EXT(T)'!M59=\"\",\"\",+'[1]EXT(T)'!M59)","v":120.98063654560428},{"$f":"IF(+'[1]EXT(T)'!N59=\"\",\"\",+'[1]EXT(T)'!N59)","v":54.099999999999994},{"$f":"IF(+'[1]EXT(T)'!O59=\"\",\"\",+'[1]EXT(T)'!O59)","v":"n.d."},{"$f":"IF(+'[1]EXT(T)'!P59=\"\",\"\",+'[1]EXT(T)'!P59)","v":"n.d."},{"$f":"IF(+'[1]EXT(T)'!Q59=\"\",\"\",+'[1]EXT(T)'!Q59)","v":"n.d."},{"$f":"IF(+'[1]EXT(T)'!R59=\"\",\"\",+'[1]EXT(T)'!R59)","v":"n.d."},{"$f":"IF(+'[1]EXT(T)'!S59=\"\",\"\",+'[1]EXT(T)'!S59)","v":-306.7},{"$f":"IF(+'[1]EXT(T)'!U59=\"\",\"\",+'[1]EXT(T)'!U59)","v":"n.d."},{"$f":"IF(+'[1]EXT(T)'!V59=\"\",\"\",+'[1]EXT(T)'!V59)","v":"n.d."},{"$f":"IF(+'[1]EXT(T)'!W59=\"\",\"\",+'[1]EXT(T)'!W59)","v":340.82594258050233},{"$f":"IF(+'[1]EXT(T)'!X59=\"\",\"\",+'[1]EXT(T)'!X59)","v":397.9},{"$f":"IF(+'[1]EXT(T)'!Y59=\"\",\"\",+'[1]EXT(T)'!Y59)","v":"n.d."},{"$f":"IF(+'[1]EXT(T)'!Z59=\"\",\"\",+'[1]EXT(T)'!Z59)","v":"n.d."},{"$f":"IF(+'[1]EXT(T)'!AA59=\"\",\"\",+'[1]EXT(T)'!AA59)","v":"n.d."},{"$f":"IF(+'[1]EXT(T)'!AB59=\"\",\"\",+'[1]EXT(T)'!AB59)","v":"n.d."},{"$f":"IF(+'[1]EXT(T)'!AC59=\"\",\"\",+'[1]EXT(T)'!AC59)","v":-209.6},{"$f":"IF(+'[1]EXT(T)'!AE59=\"\",\"\",+'[1]EXT(T)'!AE59)","v":"n.d."},{"$f":"IF(+'[1]EXT(T)'!AF59=\"\",\"\",+'[1]EXT(T)'!AF59)","v":"n.d."},{"$f":"IF(+'[1]EXT(T)'!AY59=\"\",\"\",+'[1]EXT(T)'!AY59)","v":3110.6247054199998},{"$f":"IF(+'[1]EXT(T)'!AZ59=\"\",\"\",+'[1]EXT(T)'!AZ59)","v":"n.d."},{"$f":"IF(+'[1]EXT(T)'!AQ59=\"\",\"\",+'[1]EXT(T)'!AQ59-'[1]EXT(T)'!AQ58)","v":50.77779846},{"$f":"IF(+'[1]EXT(T)'!AR59=\"\",\"\",+'[1]EXT(T)'!AR59-'[1]EXT(T)'!AR58)","v":522.40000000000009},{"$f":"IF(+'[1]EXT(T)'!AS59=\"\",\"\",+'[1]EXT(T)'!AS59-'[1]EXT(T)'!AS58)","v":356.94010000000003},{"$f":"IF(+'[1]EXT(T)'!AT59=\"\",\"\",+'[1]EXT(T)'!AT59-'[1]EXT(T)'!AT58)","v":169.77440000000001},{"$f":"IF(+'[1]EXT(T)'!AU59=\"\",\"\",+'[1]EXT(T)'!AU59-'[1]EXT(T)'!AU58)","v":94.799999999999983},{"$f":"IF(+'[1]EXT(T)'!AV59=\"\",\"\",+'[1]EXT(T)'!AV59-'[1]EXT(T)'!AV58)","v":423.09999999999997},"n.d.",1617.79229846,"n.d."]
[null,"III",{"$f":"IF(+'[1]EXT(T)'!M60=\"\",\"\",+'[1]EXT(T)'!M60)","v":120.48359873325528},{"$f":"IF(+'[1]EXT(T)'!N60=\"\",\"\",+'[1]EXT(T)'!N60)","v":-51.099999999999994},{"$f":"IF(+'[1]EXT(T)'!O60=\"\",\"\",+'[1]EXT(T)'!O60)","v":"n.d."},{"$f":"IF(+'[1]EXT(T)'!P60=\"\",\"\",+'[1]EXT(T)'!P60)","v":"n.d."},{"$f":"IF(+'[1]EXT(T)'!Q60=\"\",\"\",+'[1]EXT(T)'!Q60)","v":"n.d."},{"$f":"IF(+'[1]EXT(T)'!R60=\"\",\"\",+'[1]EXT(T)'!R60)","v":"n.d."},{"$f":"IF(+'[1]EXT(T)'!S60=\"\",\"\",+'[1]EXT(T)'!S60)","v":141.6},{"$f":"IF(+'[1]EXT(T)'!U60=\"\",\"\",+'[1]EXT(T)'!U60)","v":"n.d."},{"$f":"IF(+'[1]EXT(T)'!V60=\"\",\"\",+'[1]EXT(T)'!V60)","v":"n.d."},{"$f":"IF(+'[1]EXT(T)'!W60=\"\",\"\",+'[1]EXT(T)'!W60)","v":461.30954131375762},{"$f":"IF(+'[1]EXT(T)'!X60=\"\",\"\",+'[1]EXT(T)'!X60)","v":346.79999999999995},{"$f":"IF(+'[1]EXT(T)'!Y60=\"\",\"\",+'[1]EXT(T)'!Y60)","v":"n.d."},{"$f":"IF(+'[1]EXT(T)'!Z60=\"\",\"\",+'[1]EXT(T)'!Z60)","v":"n.d."},{"$f":"IF(+'[1]EXT(T)'!AA60=\"\",\"\",+'[1]EXT(T)'!AA60)","v":"n.d."},{"$f":"IF(+'[1]EXT(T)'!AB60=\"\",\"\",+'[1]EXT(T)'!AB60)","v":"n.d."},{"$f":"IF(+'[1]EXT(T)'!AC60=\"\",\"\",+'[1]EXT(T)'!AC60)","v":-68},{"$f":"IF(+'[1]EXT(T)'!AE60=\"\",\"\",+'[1]EXT(T)'!AE60)","v":"n.d."},{"$f":"IF(+'[1]EXT(T)'!AF60=\"\",\"\",+'[1]EXT(T)'!AF60)","v":"n.d."},{"$f":"IF(+'[1]EXT(T)'!AY60=\"\",\"\",+'[1]EXT(T)'!AY60)","v":4787.5819602499996},{"$f":"IF(+'[1]EXT(T)'!AZ60=\"\",\"\",+'[1]EXT(T)'!AZ60)","v":"n.d."},{"$f":"IF(+'[1]EXT(T)'!AQ60=\"\",\"\",+'[1]EXT(T)'!AQ60-'[1]EXT(T)'!AQ59)","v":59.126854830000013},{"$f":"IF(+'[1]EXT(T)'!AR60=\"\",\"\",+'[1]EXT(T)'!AR60-'[1]EXT(T)'!AR59)","v":472.79999999999984},{"$f":"IF(+'[1]EXT(T)'!AS60=\"\",\"\",+'[1]EXT(T)'!AS60-'[1]EXT(T)'!AS59)","v":456.1721},{"$f":"IF(+'[1]EXT(T)'!AT60=\"\",\"\",+'[1]EXT(T)'!AT60-'[1]EXT(T)'!AT59)","v":167.6583},{"$f":"IF(+'[1]EXT(T)'!AU60=\"\",\"\",+'[1]EXT(T)'!AU60-'[1]EXT(T)'!AU59)","v":91.900000000000034},{"$f":"IF(+'[1]EXT(T)'!AV60=\"\",\"\",+'[1]EXT(T)'!AV60-'[1]EXT(T)'!AV59)","v":429.29999999999984},"n.d.",1676.9572548299998,"n.d."]
[null,"IV",{"$f":"IF(+'[1]EXT(T)'!M61=\"\",\"\",+'[1]EXT(T)'!M61)","v":363.3166271812097},{"$f":"IF(+'[1]EXT(T)'!N61=\"\",\"\",+'[1]EXT(T)'!N61)","v":123.19999999999999},{"$f":"IF(+'[1]EXT(T)'!O61=\"\",\"\",+'[1]EXT(T)'!O61)","v":"n.d."},{"$f":"IF(+'[1]EXT(T)'!P61=\"\",\"\",+'[1]EXT(T)'!P61)","v":"n.d."},{"$f":"IF(+'[1]EXT(T)'!Q61=\"\",\"\",+'[1]EXT(T)'!Q61)","v":"n.d."},{"$f":"IF(+'[1]EXT(T)'!R61=\"\",\"\",+'[1]EXT(T)'!R61)","v":"n.d."},{"$f":"IF(+'[1]EXT(T)'!S61=\"\",\"\",+'[1]EXT(T)'!S61)","v":166.6},{"$f":"IF(+'[1]EXT(T)'!U61=\"\",\"\",+'[1]EXT(T)'!U61)","v":"n.d."},{"$f":"IF(+'[1]EXT(T)'!V61=\"\",\"\",+'[1]EXT(T)'!V61)","v":"n.d."},{"$f":"IF(+'[1]EXT(T)'!W61=\"\",\"\",+'[1]EXT(T)'!W61)","v":824.62616849496726},{"$f":"IF(+'[1]EXT(T)'!X61=\"\",\"\",+'[1]EXT(T)'!X61)","v":469.99999999999994},{"$f":"IF(+'[1]EXT(T)'!Y61=\"\",\"\",+'[1]EXT(T)'!Y61)","v":"n.d."},{"$f":"IF(+'[1]EXT(T)'!Z61=\"\",\"\",+'[1]EXT(T)'!Z61)","v":"n.d."},{"$f":"IF(+'[1]EXT(T)'!AA61=\"\",\"\",+'[1]EXT(T)'!AA61)","v":"n.d."},{"$f":"IF(+'[1]EXT(T)'!AB61=\"\",\"\",+'[1]EXT(T)'!AB61)","v":"n.d."},{"$f":"IF(+'[1]EXT(T)'!AC61=\"\",\"\",+'[1]EXT(T)'!AC61)","v":98.6},{"$f":"IF(+'[1]EXT(T)'!AE61=\"\",\"\",+'[1]EXT(T)'!AE61)","v":"n.d."},{"$f":"IF(+'[1]EXT(T)'!AF61=\"\",\"\",+'[1]EXT(T)'!AF61)","v":"n.d."},{"$f":"IF(+'[1]EXT(T)'!AY61=\"\",\"\",+'[1]EXT(T)'!AY61)","v":6731.8335683799996},{"$f":"IF(+'[1]EXT(T)'!AZ61=\"\",\"\",+'[1]EXT(T)'!AZ61)","v":"n.d."},{"$f":"IF(+'[1]EXT(T)'!AQ61=\"\",\"\",+'[1]EXT(T)'!AQ61-'[1]EXT(T)'!AQ60)","v":74.051708130000009},{"$f":"IF(+'[1]EXT(T)'!AR61=\"\",\"\",+'[1]EXT(T)'!AR61-'[1]EXT(T)'!AR60)","v":492.60000000000014},{"$f":"IF(+'[1]EXT(T)'!AS61=\"\",\"\",+'[1]EXT(T)'!AS61-'[1]EXT(T)'!AS60)","v":477.43090000000007},{"$f":"IF(+'[1]EXT(T)'!AT61=\"\",\"\",+'[1]EXT(T)'!AT61-'[1]EXT(T)'!AT60)","v":170.66899999999998},{"$f":"IF(+'[1]EXT(T)'!AU61=\"\",\"\",+'[1]EXT(T)'!AU61-'[1]EXT(T)'!AU60)","v":98.399999999999977},{"$f":"IF(+'[1]EXT(T)'!AV61=\"\",\"\",+'[1]EXT(T)'!AV61-'[1]EXT(T)'!AV60)","v":631.09999999999991},"n.d.",1944.25160813,"n.d."]
[2003,"I",{"$f":"IF(+'[1]EXT(T)'!M62=\"\",\"\",+'[1]EXT(T)'!M62)","v":187.5502592122144},{"$f":"IF(+'[1]EXT(T)'!N62=\"\",\"\",+'[1]EXT(T)'!N62)","v":4.2000000000000028},{"$f":"IF(+'[1]EXT(T)'!O62=\"\",\"\",+'[1]EXT(T)'!O62)","v":"n.d."},{"$f":"IF(+'[1]EXT(T)'!P62=\"\",\"\",+'[1]EXT(T)'!P62)","v":"n.d."},{"$f":"IF(+'[1]EXT(T)'!Q62=\"\",\"\",+'[1]EXT(T)'!Q62)","v":"n.d."},{"$f":"IF(+'[1]EXT(T)'!R62=\"\",\"\",+'[1]EXT(T)'!R62)","v":"n.d."},{"$f":"IF(+'[1]EXT(T)'!S62=\"\",\"\",+'[1]EXT(T)'!S62)","v":222.8},{"$f":"IF(+'[1]EXT(T)'!U62=\"\",\"\",+'[1]EXT(T)'!U62)","v":"n.d."},{"$f":"IF(+'[1]EXT(T)'!V62=\"\",\"\",+'[1]EXT(T)'!V62)","v":"n.d."},{"$f":"IF(+'[1]EXT(T)'!W62=\"\",\"\",+'[1]EXT(T)'!W62)","v":187.5502592122144},{"$f":"IF(+'[1]EXT(T)'!X62=\"\",\"\",+'[1]EXT(T)'!X62)","v":4.2000000000000028},{"$f":"IF(+'[1]EXT(T)'!Y62=\"\",\"\",+'[1]EXT(T)'!Y62)","v":"n.d."},{"$f":"IF(+'[1]EXT(T)'!Z62=\"\",\"\",+'[1]EXT(T)'!Z62)","v":"n.d."},{"$f":"IF(+'[1]EXT(T)'!AA62=\"\",\"\",+'[1]EXT(T)'!AA62)","v":"n.d."},{"$f":"IF(+'[1]EXT(T)'!AB62=\"\",\"\",+'[1]EXT(T)'!AB62)","v":"n.d."},{"$f":"IF(+'[1]EXT(T)'!AC62=\"\",\"\",+'[1]EXT(T)'!AC62)","v":222.8},{"$f":"IF(+'[1]EXT(T)'!AE62=\"\",\"\",+'[1]EXT(T)'!AE62)","v":"n.d."},{"$f":"IF(+'[1]EXT(T)'!AF62=\"\",\"\",+'[1]EXT(T)'!AF62)","v":"n.d."},{"$f":"IF(+'[1]EXT(T)'!AY62=\"\",\"\",+'[1]EXT(T)'!AY62)","v":1757.6644434},{"$f":"IF(+'[1]EXT(T)'!AZ62=\"\",\"\",+'[1]EXT(T)'!AZ62)","v":"n.d."},{"$f":"IF(+'[1]EXT(T)'!AQ62=\"\",\"\",+'[1]EXT(T)'!AQ62)","v":64.134743400000005},{"$f":"IF(+'[1]EXT(T)'!AR62=\"\",\"\",+'[1]EXT(T)'!AR62)","v":465.20000000000005},{"$f":"IF(+'[1]EXT(T)'!AS62=\"\",\"\",+'[1]EXT(T)'!AS62)","v":470.27819999999997},{"$f":"IF(+'[1]EXT(T)'!AT62=\"\",\"\",+'[1]EXT(T)'!AT62)","v":165.95150000000001},{"$f":"IF(+'[1]EXT(T)'!AU62=\"\",\"\",+'[1]EXT(T)'!AU62)","v":100.9},{"$f":"IF(+'[1]EXT(T)'!AV62=\"\",\"\",+'[1]EXT(T)'!AV62)","v":491.19999999999993},"n.d.",1757.6644434,"n.d."]
[null,"II",{"$f":"IF(+'[1]EXT(T)'!M63=\"\",\"\",+'[1]EXT(T)'!M63)","v":238.24094368146069},{"$f":"IF(+'[1]EXT(T)'!N63=\"\",\"\",+'[1]EXT(T)'!N63)","v":69.399999999999991},{"$f":"IF(+'[1]EXT(T)'!O63=\"\",\"\",+'[1]EXT(T)'!O63)","v":"n.d."},{"$f":"IF(+'[1]EXT(T)'!P63=\"\",\"\",+'[1]EXT(T)'!P63)","v":"n.d."},{"$f":"IF(+'[1]EXT(T)'!Q63=\"\",\"\",+'[1]EXT(T)'!Q63)","v":"n.d."},{"$f":"IF(+'[1]EXT(T)'!R63=\"\",\"\",+'[1]EXT(T)'!R63)","v":"n.d."},{"$f":"IF(+'[1]EXT(T)'!S63=\"\",\"\",+'[1]EXT(T)'!S63)","v":287},{"$f":"IF(+'[1]EXT(T)'!U63=\"\",\"\",+'[1]EXT(T)'!U63)","v":"n.d."},{"$f":"IF(+'[1]EXT(T)'!V63=\"\",\"\",+'[1]EXT(T)'!V63)","v":"n.d."},{"$f":"IF(+'[1]EXT(T)'!W63=\"\",\"\",+'[1]EXT(T)'!W63)","v":425.79120289367506},{"$f":"IF(+'[1]EXT(T)'!X63=\"\",\"\",+'[1]EXT(T)'!X63)","v":73.599999999999994},{"$f":"IF(+'[1]EXT(T)'!Y63=\"\",\"\",+'[1]EXT(T)'!Y63)","v":"n.d."},{"$f":"IF(+'[1]EXT(T)'!Z63=\"\",\"\",+'[1]EXT(T)'!Z63)","v":"n.d."},{"$f":"IF(+'[1]EXT(T)'!AA63=\"\",\"\",+'[1]EXT(T)'!AA63)","v":"n.d."},{"$f":"IF(+'[1]EXT(T)'!AB63=\"\",\"\",+'[1]EXT(T)'!AB63)","v":"n.d."},{"$f":"IF(+'[1]EXT(T)'!AC63=\"\",\"\",+'[1]EXT(T)'!AC63)","v":509.8},{"$f":"IF(+'[1]EXT(T)'!AE63=\"\",\"\",+'[1]EXT(T)'!AE63)","v":"n.d."},{"$f":"IF(+'[1]EXT(T)'!AF63=\"\",\"\",+'[1]EXT(T)'!AF63)","v":"n.d."},{"$f":"IF(+'[1]EXT(T)'!AY63=\"\",\"\",+'[1]EXT(T)'!AY63)","v":3663.2375101999996},{"$f":"IF(+'[1]EXT(T)'!AZ63=\"\",\"\",+'[1]EXT(T)'!AZ63)","v":"n.d."},{"$f":"IF(+'[1]EXT(T)'!AQ63=\"\",\"\",+'[1]EXT(T)'!AQ63-'[1]EXT(T)'!AQ62)","v":73.303966799999998},{"$f":"IF(+'[1]EXT(T)'!AR63=\"\",\"\",+'[1]EXT(T)'!AR63-'[1]EXT(T)'!AR62)","v":541.6},{"$f":"IF(+'[1]EXT(T)'!AS63=\"\",\"\",+'[1]EXT(T)'!AS63-'[1]EXT(T)'!AS62)","v":529.95820000000003},{"$f":"IF(+'[1]EXT(T)'!AT63=\"\",\"\",+'[1]EXT(T)'!AT63-'[1]EXT(T)'!AT62)","v":191.61090000000002},{"$f":"IF(+'[1]EXT(T)'!AU63=\"\",\"\",+'[1]EXT(T)'!AU63-'[1]EXT(T)'!AU62)","v":102.4},{"$f":"IF(+'[1]EXT(T)'!AV63=\"\",\"\",+'[1]EXT(T)'!AV63-'[1]EXT(T)'!AV62)","v":466.69999999999993},"n.d.",1905.5730668000001,"n.d."]
[null,"III",{"$f":"IF(+'[1]EXT(T)'!M64=\"\",\"\",+'[1]EXT(T)'!M64)","v":82.59396719905935},{"$f":"IF(+'[1]EXT(T)'!N64=\"\",\"\",+'[1]EXT(T)'!N64)","v":27.2},{"$f":"IF(+'[1]EXT(T)'!O64=\"\",\"\",+'[1]EXT(T)'!O64)","v":"n.d."},{"$f":"IF(+'[1]EXT(T)'!P64=\"\",\"\",+'[1]EXT(T)'!P64)","v":"n.d."},{"$f":"IF(+'[1]EXT(T)'!Q64=\"\",\"\",+'[1]EXT(T)'!Q64)","v":"n.d."},{"$f":"IF(+'[1]EXT(T)'!R64=\"\",\"\",+'[1]EXT(T)'!R64)","v":"n.d."},{"$f":"IF(+'[1]EXT(T)'!S64=\"\",\"\",+'[1]EXT(T)'!S64)","v":1.5999999999999801},{"$f":"IF(+'[1]EXT(T)'!U64=\"\",\"\",+'[1]EXT(T)'!U64)","v":"n.d."},{"$f":"IF(+'[1]EXT(T)'!V64=\"\",\"\",+'[1]EXT(T)'!V64)","v":"n.d."},{"$f":"IF(+'[1]EXT(T)'!W64=\"\",\"\",+'[1]EXT(T)'!W64)","v":508.38517009273443},{"$f":"IF(+'[1]EXT(T)'!X64=\"\",\"\",+'[1]EXT(T)'!X64)","v":100.8},{"$f":"IF(+'[1]EXT(T)'!Y64=\"\",\"\",+'[1]EXT(T)'!Y64)","v":"n.d."},{"$f":"IF(+'[1]EXT(T)'!Z64=\"\",\"\",+'[1]EXT(T)'!Z64)","v":"n.d."},{"$f":"IF(+'[1]EXT(T)'!AA64=\"\",\"\",+'[1]EXT(T)'!AA64)","v":"n.d."},{"$f":"IF(+'[1]EXT(T)'!AB64=\"\",\"\",+'[1]EXT(T)'!AB64)","v":"n.d."},{"$f":"IF(+'[1]EXT(T)'!AC64=\"\",\"\",+'[1]EXT(T)'!AC64)","v":511.4},{"$f":"IF(+'[1]EXT(T)'!AE64=\"\",\"\",+'[1]EXT(T)'!AE64)","v":"n.d."},{"$f":"IF(+'[1]EXT(T)'!AF64=\"\",\"\",+'[1]EXT(T)'!AF64)","v":"n.d."},{"$f":"IF(+'[1]EXT(T)'!AY64=\"\",\"\",+'[1]EXT(T)'!AY64)","v":5682.9231279400001},{"$f":"IF(+'[1]EXT(T)'!AZ64=\"\",\"\",+'[1]EXT(T)'!AZ64)","v":"n.d."},{"$f":"IF(+'[1]EXT(T)'!AQ64=\"\",\"\",+'[1]EXT(T)'!AQ64-'[1]EXT(T)'!AQ63)","v":77.792117739999981},{"$f":"IF(+'[1]EXT(T)'!AR64=\"\",\"\",+'[1]EXT(T)'!AR64-'[1]EXT(T)'!AR63)","v":529.00000000000011},{"$f":"IF(+'[1]EXT(T)'!AS64=\"\",\"\",+'[1]EXT(T)'!AS64-'[1]EXT(T)'!AS63)","v":547.41849999999999},{"$f":"IF(+'[1]EXT(T)'!AT64=\"\",\"\",+'[1]EXT(T)'!AT64-'[1]EXT(T)'!AT63)","v":217.27499999999998},{"$f":"IF(+'[1]EXT(T)'!AU64=\"\",\"\",+'[1]EXT(T)'!AU64-'[1]EXT(T)'!AU63)","v":114.09999999999997},{"$f":"IF(+'[1]EXT(T)'!AV64=\"\",\"\",+'[1]EXT(T)'!AV64-'[1]EXT(T)'!AV63)","v":534.09999999999991},"n.d.",2019.68561774,"n.d."]
[null,"IV",{"$f":"IF(+'[1]EXT(T)'!M65=\"\",\"\",+'[1]EXT(T)'!M65)","v":183.72583801659462},{"$f":"IF(+'[1]EXT(T)'!N65=\"\",\"\",+'[1]EXT(T)'!N65)","v":40.4},{"$f":"IF(+'[1]EXT(T)'!O65=\"\",\"\",+'[1]EXT(T)'!O65)","v":"n.d."},{"$f":"IF(+'[1]EXT(T)'!P65=\"\",\"\",+'[1]EXT(T)'!P65)","v":"n.d."},{"$f":"IF(+'[1]EXT(T)'!Q65=\"\",\"\",+'[1]EXT(T)'!Q65)","v":"n.d."},{"$f":"IF(+'[1]EXT(T)'!R65=\"\",\"\",+'[1]EXT(T)'!R65)","v":"n.d."},{"$f":"IF(+'[1]EXT(T)'!S65=\"\",\"\",+'[1]EXT(T)'!S65)","v":306.09999999999997},{"$f":"IF(+'[1]EXT(T)'!U65=\"\",\"\",+'[1]EXT(T)'!U65)","v":"n.d."},{"$f":"IF(+'[1]EXT(T)'!V65=\"\",\"\",+'[1]EXT(T)'!V65)","v":"n.d."},{"$f":"IF(+'[1]EXT(T)'!W65=\"\",\"\",+'[1]EXT(T)'!W65)","v":692.11100810932908},{"$f":"IF(+'[1]EXT(T)'!X65=\"\",\"\",+'[1]EXT(T)'!X65)","v":141.19999999999999},{"$f":"IF(+'[1]EXT(T)'!Y65=\"\",\"\",+'[1]EXT(T)'!Y65)","v":"n.d."},{"$f":"IF(+'[1]EXT(T)'!Z65=\"\",\"\",+'[1]EXT(T)'!Z65)","v":"n.d."},{"$f":"IF(+'[1]EXT(T)'!AA65=\"\",\"\",+'[1]EXT(T)'!AA65)","v":"n.d."},{"$f":"IF(+'[1]EXT(T)'!AB65=\"\",\"\",+'[1]EXT(T)'!AB65)","v":"n.d."},{"$f":"IF(+'[1]EXT(T)'!AC65=\"\",\"\",+'[1]EXT(T)'!AC65)","v":817.5},{"$f":"IF(+'[1]EXT(T)'!AE65=\"\",\"\",+'[1]EXT(T)'!AE65)","v":"n.d."},{"$f":"IF(+'[1]EXT(T)'!AF65=\"\",\"\",+'[1]EXT(T)'!AF65)","v":"n.d."},{"$f":"IF(+'[1]EXT(T)'!AY65=\"\",\"\",+'[1]EXT(T)'!AY65)","v":7819.4178320100009},{"$f":"IF(+'[1]EXT(T)'!AZ65=\"\",\"\",+'[1]EXT(T)'!AZ65)","v":"n.d."},{"$f":"IF(+'[1]EXT(T)'!AQ65=\"\",\"\",+'[1]EXT(T)'!AQ65-'[1]EXT(T)'!AQ64)","v":90.740204070000004},{"$f":"IF(+'[1]EXT(T)'!AR65=\"\",\"\",+'[1]EXT(T)'!AR65-'[1]EXT(T)'!AR64)","v":569.5},{"$f":"IF(+'[1]EXT(T)'!AS65=\"\",\"\",+'[1]EXT(T)'!AS65-'[1]EXT(T)'!AS64)","v":558.84990000000016},{"$f":"IF(+'[1]EXT(T)'!AT65=\"\",\"\",+'[1]EXT(T)'!AT65-'[1]EXT(T)'!AT64)","v":227.5046000000001},{"$f":"IF(+'[1]EXT(T)'!AU65=\"\",\"\",+'[1]EXT(T)'!AU65-'[1]EXT(T)'!AU64)","v":121.40000000000003},{"$f":"IF(+'[1]EXT(T)'!AV65=\"\",\"\",+'[1]EXT(T)'!AV65-'[1]EXT(T)'!AV64)","v":568.50000000000023},"n.d.",2136.4947040700008,"n.d."]
[2004,"I",{"$f":"IF(+'[1]EXT(T)'!M66=\"\",\"\",+'[1]EXT(T)'!M66)","v":266.33139931866253},{"$f":"IF(+'[1]EXT(T)'!N66=\"\",\"\",+'[1]EXT(T)'!N66)","v":-69.900000000000006},{"$f":"IF(+'[1]EXT(T)'!O66=\"\",\"\",+'[1]EXT(T)'!O66)","v":"n.d."},{"$f":"IF(+'[1]EXT(T)'!P66=\"\",\"\",+'[1]EXT(T)'!P66)","v":"n.d."},{"$f":"IF(+'[1]EXT(T)'!Q66=\"\",\"\",+'[1]EXT(T)'!Q66)","v":"n.d."},{"$f":"IF(+'[1]EXT(T)'!R66=\"\",\"\",+'[1]EXT(T)'!R66)","v":"n.d."},{"$f":"IF(+'[1]EXT(T)'!S66=\"\",\"\",+'[1]EXT(T)'!S66)","v":186.4},{"$f":"IF(+'[1]EXT(T)'!U66=\"\",\"\",+'[1]EXT(T)'!U66)","v":"n.d."},{"$f":"IF(+'[1]EXT(T)'!V66=\"\",\"\",+'[1]EXT(T)'!V66)","v":"n.d."},{"$f":"IF(+'[1]EXT(T)'!W66=\"\",\"\",+'[1]EXT(T)'!W66)","v":266.33139931866253},{"$f":"IF(+'[1]EXT(T)'!X66=\"\",\"\",+'[1]EXT(T)'!X66)","v":-69.900000000000006},{"$f":"IF(+'[1]EXT(T)'!Y66=\"\",\"\",+'[1]EXT(T)'!Y66)","v":"n.d."},{"$f":"IF(+'[1]EXT(T)'!Z66=\"\",\"\",+'[1]EXT(T)'!Z66)","v":"n.d."},{"$f":"IF(+'[1]EXT(T)'!AA66=\"\",\"\",+'[1]EXT(T)'!AA66)","v":"n.d."},{"$f":"IF(+'[1]EXT(T)'!AB66=\"\",\"\",+'[1]EXT(T)'!AB66)","v":"n.d."},{"$f":"IF(+'[1]EXT(T)'!AC66=\"\",\"\",+'[1]EXT(T)'!AC66)","v":186.4},{"$f":"IF(+'[1]EXT(T)'!AE66=\"\",\"\",+'[1]EXT(T)'!AE66)","v":"n.d."},{"$f":"IF(+'[1]EXT(T)'!AF66=\"\",\"\",+'[1]EXT(T)'!AF66)","v":"n.d."},{"$f":"IF(+'[1]EXT(T)'!AY66=\"\",\"\",+'[1]EXT(T)'!AY66)","v":2116.1441984900002},{"$f":"IF(+'[1]EXT(T)'!AZ66=\"\",\"\",+'[1]EXT(T)'!AZ66)","v":"n.d."},{"$f":"IF(+'[1]EXT(T)'!AQ66=\"\",\"\",+'[1]EXT(T)'!AQ66)","v":68.557598490000004},{"$f":"IF(+'[1]EXT(T)'!AR66=\"\",\"\",+'[1]EXT(T)'!AR66)","v":560},{"$f":"IF(+'[1]EXT(T)'!AS66=\"\",\"\",+'[1]EXT(T)'!AS66)","v":606.37839999999994},{"$f":"IF(+'[1]EXT(T)'!AT66=\"\",\"\",+'[1]EXT(T)'!AT66)","v":215.90819999999999},{"$f":"IF(+'[1]EXT(T)'!AU66=\"\",\"\",+'[1]EXT(T)'!AU66)","v":117.5},{"$f":"IF(+'[1]EXT(T)'!AV66=\"\",\"\",+'[1]EXT(T)'!AV66)","v":547.79999999999995},"n.d.",2116.1441984900002,"n.d."]
[null,"II",{"$f":"IF(+'[1]EXT(T)'!M67=\"\",\"\",+'[1]EXT(T)'!M67)","v":277.00493115008675},{"$f":"IF(+'[1]EXT(T)'!N67=\"\",\"\",+'[1]EXT(T)'!N67)","v":104.8},{"$f":"IF(+'[1]EXT(T)'!O67=\"\",\"\",+'[1]EXT(T)'!O67)","v":"n.d."},{"$f":"IF(+'[1]EXT(T)'!P67=\"\",\"\",+'[1]EXT(T)'!P67)","v":"n.d."},{"$f":"IF(+'[1]EXT(T)'!Q67=\"\",\"\",+'[1]EXT(T)'!Q67)","v":"n.d."},{"$f":"IF(+'[1]EXT(T)'!R67=\"\",\"\",+'[1]EXT(T)'!R67)","v":"n.d."},{"$f":"IF(+'[1]EXT(T)'!S67=\"\",\"\",+'[1]EXT(T)'!S67)","v":139.19999999999999},{"$f":"IF(+'[1]EXT(T)'!U67=\"\",\"\",+'[1]EXT(T)'!U67)","v":"n.d."},{"$f":"IF(+'[1]EXT(T)'!V67=\"\",\"\",+'[1]EXT(T)'!V67)","v":"n.d."},{"$f":"IF(+'[1]EXT(T)'!W67=\"\",\"\",+'[1]EXT(T)'!W67)","v":543.33633046874934},{"$f":"IF(+'[1]EXT(T)'!X67=\"\",\"\",+'[1]EXT(T)'!X67)","v":34.899999999999991},{"$f":"IF(+'[1]EXT(T)'!Y67=\"\",\"\",+'[1]EXT(T)'!Y67)","v":"n.d."},{"$f":"IF(+'[1]EXT(T)'!Z67=\"\",\"\",+'[1]EXT(T)'!Z67)","v":"n.d."},{"$f":"IF(+'[1]EXT(T)'!AA67=\"\",\"\",+'[1]EXT(T)'!AA67)","v":"n.d."},{"$f":"IF(+'[1]EXT(T)'!AB67=\"\",\"\",+'[1]EXT(T)'!AB67)","v":"n.d."},{"$f":"IF(+'[1]EXT(T)'!AC67=\"\",\"\",+'[1]EXT(T)'!AC67)","v":325.60000000000002},{"$f":"IF(+'[1]EXT(T)'!AE67=\"\",\"\",+'[1]EXT(T)'!AE67)","v":"n.d."},{"$f":"IF(+'[1]EXT(T)'!AF67=\"\",\"\",+'[1]EXT(T)'!AF67)","v":"n.d."},{"$f":"IF(+'[1]EXT(T)'!AY67=\"\",\"\",+'[1]EXT(T)'!AY67)","v":4354.5140707499995},{"$f":"IF(+'[1]EXT(T)'!AZ67=\"\",\"\",+'[1]EXT(T)'!AZ67)","v":"n.d."},{"$f":"IF(+'[1]EXT(T)'!AQ67=\"\",\"\",+'[1]EXT(T)'!AQ67-'[1]EXT(T)'!AQ66)","v":68.395772260000001},{"$f":"IF(+'[1]EXT(T)'!AR67=\"\",\"\",+'[1]EXT(T)'!AR67-'[1]EXT(T)'!AR66)","v":646.89999999999986},{"$f":"IF(+'[1]EXT(T)'!AS67=\"\",\"\",+'[1]EXT(T)'!AS67-'[1]EXT(T)'!AS66)","v":626.92340000000002},{"$f":"IF(+'[1]EXT(T)'!AT67=\"\",\"\",+'[1]EXT(T)'!AT67-'[1]EXT(T)'!AT66)","v":259.45069999999998},{"$f":"IF(+'[1]EXT(T)'!AU67=\"\",\"\",+'[1]EXT(T)'!AU67-'[1]EXT(T)'!AU66)","v":124.9},{"$f":"IF(+'[1]EXT(T)'!AV67=\"\",\"\",+'[1]EXT(T)'!AV67-'[1]EXT(T)'!AV66)","v":511.79999999999995},"n.d.",2238.3698722600002,"n.d."]
[null,"III",{"$f":"IF(+'[1]EXT(T)'!M68=\"\",\"\",+'[1]EXT(T)'!M68)","v":211.51138279374806},{"$f":"IF(+'[1]EXT(T)'!N68=\"\",\"\",+'[1]EXT(T)'!N68)","v":22.689999999999998},{"$f":"IF(+'[1]EXT(T)'!O68=\"\",\"\",+'[1]EXT(T)'!O68)","v":"n.d."},{"$f":"IF(+'[1]EXT(T)'!P68=\"\",\"\",+'[1]EXT(T)'!P68)","v":"n.d."},{"$f":"IF(+'[1]EXT(T)'!Q68=\"\",\"\",+'[1]EXT(T)'!Q68)","v":"n.d."},{"$f":"IF(+'[1]EXT(T)'!R68=\"\",\"\",+'[1]EXT(T)'!R68)","v":"n.d."},{"$f":"IF(+'[1]EXT(T)'!S68=\"\",\"\",+'[1]EXT(T)'!S68)","v":221.79999999999998},{"$f":"IF(+'[1]EXT(T)'!U68=\"\",\"\",+'[1]EXT(T)'!U68)","v":"n.d."},{"$f":"IF(+'[1]EXT(T)'!V68=\"\",\"\",+'[1]EXT(T)'!V68)","v":"n.d."},{"$f":"IF(+'[1]EXT(T)'!W68=\"\",\"\",+'[1]EXT(T)'!W68)","v":754.84771326249734},{"$f":"IF(+'[1]EXT(T)'!X68=\"\",\"\",+'[1]EXT(T)'!X68)","v":57.589999999999989},{"$f":"IF(+'[1]EXT(T)'!Y68=\"\",\"\",+'[1]EXT(T)'!Y68)","v":"n.d."},{"$f":"IF(+'[1]EXT(T)'!Z68=\"\",\"\",+'[1]EXT(T)'!Z68)","v":"n.d."},{"$f":"IF(+'[1]EXT(T)'!AA68=\"\",\"\",+'[1]EXT(T)'!AA68)","v":"n.d."},{"$f":"IF(+'[1]EXT(T)'!AB68=\"\",\"\",+'[1]EXT(T)'!AB68)","v":"n.d."},{"$f":"IF(+'[1]EXT(T)'!AC68=\"\",\"\",+'[1]EXT(T)'!AC68)","v":547.4},{"$f":"IF(+'[1]EXT(T)'!AE68=\"\",\"\",+'[1]EXT(T)'!AE68)","v":"n.d."},{"$f":"IF(+'[1]EXT(T)'!AF68=\"\",\"\",+'[1]EXT(T)'!AF68)","v":"n.d."},{"$f":"IF(+'[1]EXT(T)'!AY68=\"\",\"\",+'[1]EXT(T)'!AY68)","v":6697.2038857099997},{"$f":"IF(+'[1]EXT(T)'!AZ68=\"\",\"\",+'[1]EXT(T)'!AZ68)","v":"n.d."},{"$f":"IF(+'[1]EXT(T)'!AQ68=\"\",\"\",+'[1]EXT(T)'!AQ68-'[1]EXT(T)'!AQ67)","v":80.398614960000003},{"$f":"IF(+'[1]EXT(T)'!AR68=\"\",\"\",+'[1]EXT(T)'!AR68-'[1]EXT(T)'!AR67)","v":648},{"$f":"IF(+'[1]EXT(T)'!AS68=\"\",\"\",+'[1]EXT(T)'!AS68-'[1]EXT(T)'!AS67)","v":631.17180000000008},{"$f":"IF(+'[1]EXT(T)'!AT68=\"\",\"\",+'[1]EXT(T)'!AT68-'[1]EXT(T)'!AT67)","v":289.21939999999995},{"$f":"IF(+'[1]EXT(T)'!AU68=\"\",\"\",+'[1]EXT(T)'!AU68-'[1]EXT(T)'!AU67)","v":135.1},{"$f":"IF(+'[1]EXT(T)'!AV68=\"\",\"\",+'[1]EXT(T)'!AV68-'[1]EXT(T)'!AV67)","v":558.79999999999995},"n.d.",2342.6898149600001,"n.d."]
[null,"IV",{"$f":"IF(+'[1]EXT(T)'!M69=\"\",\"\",+'[1]EXT(T)'!M69)","v":221.05993947437921},{"$f":"IF(+'[1]EXT(T)'!N69=\"\",\"\",+'[1]EXT(T)'!N69)","v":305.68},{"$f":"IF(+'[1]EXT(T)'!O69=\"\",\"\",+'[1]EXT(T)'!O69)","v":"n.d."},{"$f":"IF(+'[1]EXT(T)'!P69=\"\",\"\",+'[1]EXT(T)'!P69)","v":"n.d."},{"$f":"IF(+'[1]EXT(T)'!Q69=\"\",\"\",+'[1]EXT(T)'!Q69)","v":"n.d."},{"$f":"IF(+'[1]EXT(T)'!R69=\"\",\"\",+'[1]EXT(T)'!R69)","v":"n.d."},{"$f":"IF(+'[1]EXT(T)'!S69=\"\",\"\",+'[1]EXT(T)'!S69)","v":471.70000000000005},{"$f":"IF(+'[1]EXT(T)'!U69=\"\",\"\",+'[1]EXT(T)'!U69)","v":"n.d."},{"$f":"IF(+'[1]EXT(T)'!V69=\"\",\"\",+'[1]EXT(T)'!V69)","v":"n.d."},{"$f":"IF(+'[1]EXT(T)'!W69=\"\",\"\",+'[1]EXT(T)'!W69)","v":975.90765273687657},{"$f":"IF(+'[1]EXT(T)'!X69=\"\",\"\",+'[1]EXT(T)'!X69)","v":363.27},{"$f":"IF(+'[1]EXT(T)'!Y69=\"\",\"\",+'[1]EXT(T)'!Y69)","v":"n.d."},{"$f":"IF(+'[1]EXT(T)'!Z69=\"\",\"\",+'[1]EXT(T)'!Z69)","v":"n.d."},{"$f":"IF(+'[1]EXT(T)'!AA69=\"\",\"\",+'[1]EXT(T)'!AA69)","v":"n.d."},{"$f":"IF(+'[1]EXT(T)'!AB69=\"\",\"\",+'[1]EXT(T)'!AB69)","v":"n.d."},{"$f":"IF(+'[1]EXT(T)'!AC69=\"\",\"\",+'[1]EXT(T)'!AC69)","v":1019.1},{"$f":"IF(+'[1]EXT(T)'!AE69=\"\",\"\",+'[1]EXT(T)'!AE69)","v":"n.d."},{"$f":"IF(+'[1]EXT(T)'!AF69=\"\",\"\",+'[1]EXT(T)'!AF69)","v":"n.d."},{"$f":"IF(+'[1]EXT(T)'!AY69=\"\",\"\",+'[1]EXT(T)'!AY69)","v":9223.245952119998},{"$f":"IF(+'[1]EXT(T)'!AZ69=\"\",\"\",+'[1]EXT(T)'!AZ69)","v":"n.d."},{"$f":"IF(+'[1]EXT(T)'!AQ69=\"\",\"\",+'[1]EXT(T)'!AQ69-'[1]EXT(T)'!AQ68)","v":84.870366409999974},{"$f":"IF(+'[1]EXT(T)'!AR69=\"\",\"\",+'[1]EXT(T)'!AR69-'[1]EXT(T)'!AR68)","v":692.69999999999959},{"$f":"IF(+'[1]EXT(T)'!AS69=\"\",\"\",+'[1]EXT(T)'!AS69-'[1]EXT(T)'!AS68)","v":686.14949999999976},{"$f":"IF(+'[1]EXT(T)'!AT69=\"\",\"\",+'[1]EXT(T)'!AT69-'[1]EXT(T)'!AT68)","v":309.22219999999993},{"$f":"IF(+'[1]EXT(T)'!AU69=\"\",\"\",+'[1]EXT(T)'!AU69-'[1]EXT(T)'!AU68)","v":141.29999999999995},{"$f":"IF(+'[1]EXT(T)'!AV69=\"\",\"\",+'[1]EXT(T)'!AV69-'[1]EXT(T)'!AV68)","v":611.79999999999995},"n.d.",2526.0420664099993,"n.d."]
[2005,"I",{"$f":"IF(+'[1]EXT(T)'!M70=\"\",\"\",+'[1]EXT(T)'!M70)","v":393.98976909045177},{"$f":"IF(+'[1]EXT(T)'!N70=\"\",\"\",+'[1]EXT(T)'!N70)","v":-8.1000000000000085},{"$f":"IF(+'[1]EXT(T)'!O70=\"\",\"\",+'[1]EXT(T)'!O70)","v":"n.d."},{"$f":"IF(+'[1]EXT(T)'!P70=\"\",\"\",+'[1]EXT(T)'!P70)","v":"n.d."},{"$f":"IF(+'[1]EXT(T)'!Q70=\"\",\"\",+'[1]EXT(T)'!Q70)","v":"n.d."},{"$f":"IF(+'[1]EXT(T)'!R70=\"\",\"\",+'[1]EXT(T)'!R70)","v":"n.d."},{"$f":"IF(+'[1]EXT(T)'!S70=\"\",\"\",+'[1]EXT(T)'!S70)","v":186.6},{"$f":"IF(+'[1]EXT(T)'!U70=\"\",\"\",+'[1]EXT(T)'!U70)","v":"n.d."},{"$f":"IF(+'[1]EXT(T)'!V70=\"\",\"\",+'[1]EXT(T)'!V70)","v":"n.d."},{"$f":"IF(+'[1]EXT(T)'!W70=\"\",\"\",+'[1]EXT(T)'!W70)","v":393.98976909045177},{"$f":"IF(+'[1]EXT(T)'!X70=\"\",\"\",+'[1]EXT(T)'!X70)","v":-8.1000000000000085},{"$f":"IF(+'[1]EXT(T)'!Y70=\"\",\"\",+'[1]EXT(T)'!Y70)","v":"n.d."},{"$f":"IF(+'[1]EXT(T)'!Z70=\"\",\"\",+'[1]EXT(T)'!Z70)","v":"n.d."},{"$f":"IF(+'[1]EXT(T)'!AA70=\"\",\"\",+'[1]EXT(T)'!AA70)","v":"n.d."},{"$f":"IF(+'[1]EXT(T)'!AB70=\"\",\"\",+'[1]EXT(T)'!AB70)","v":"n.d."},{"$f":"IF(+'[1]EXT(T)'!AC70=\"\",\"\",+'[1]EXT(T)'!AC70)","v":186.6},{"$f":"IF(+'[1]EXT(T)'!AE70=\"\",\"\",+'[1]EXT(T)'!AE70)","v":"n.d."},{"$f":"IF(+'[1]EXT(T)'!AF70=\"\",\"\",+'[1]EXT(T)'!AF70)","v":"n.d."},{"$f":"IF(+'[1]EXT(T)'!AY70=\"\",\"\",+'[1]EXT(T)'!AY70)","v":2469.8099899999997},{"$f":"IF(+'[1]EXT(T)'!AZ70=\"\",\"\",+'[1]EXT(T)'!AZ70)","v":"n.d."},{"$f":"IF(+'[1]EXT(T)'!AQ70=\"\",\"\",+'[1]EXT(T)'!AQ70)","v":91.509789999999995},{"$f":"IF(+'[1]EXT(T)'!AR70=\"\",\"\",+'[1]EXT(T)'!AR70)","v":639.44999999999993},{"$f":"IF(+'[1]EXT(T)'!AS70=\"\",\"\",+'[1]EXT(T)'!AS70)","v":659.70349999999996},{"$f":"IF(+'[1]EXT(T)'!AT70=\"\",\"\",+'[1]EXT(T)'!AT70)","v":357.54670000000004},{"$f":"IF(+'[1]EXT(T)'!AU70=\"\",\"\",+'[1]EXT(T)'!AU70)","v":153.6},{"$f":"IF(+'[1]EXT(T)'!AV70=\"\",\"\",+'[1]EXT(T)'!AV70)","v":568},"n.d.",2469.8099899999997,"n.d."]
[null,"II",{"$f":"IF(+'[1]EXT(T)'!M71=\"\",\"\",+'[1]EXT(T)'!M71)","v":359.80004566263608},{"$f":"IF(+'[1]EXT(T)'!N71=\"\",\"\",+'[1]EXT(T)'!N71)","v":100.83999999999999},{"$f":"IF(+'[1]EXT(T)'!O71=\"\",\"\",+'[1]EXT(T)'!O71)","v":"n.d."},{"$f":"IF(+'[1]EXT(T)'!P71=\"\",\"\",+'[1]EXT(T)'!P71)","v":"n.d."},{"$f":"IF(+'[1]EXT(T)'!Q71=\"\",\"\",+'[1]EXT(T)'!Q71)","v":"n.d."},{"$f":"IF(+'[1]EXT(T)'!R71=\"\",\"\",+'[1]EXT(T)'!R71)","v":"n.d."},{"$f":"IF(+'[1]EXT(T)'!S71=\"\",\"\",+'[1]EXT(T)'!S71)","v":111.7},{"$f":"IF(+'[1]EXT(T)'!U71=\"\",\"\",+'[1]EXT(T)'!U71)","v":"n.d."},{"$f":"IF(+'[1]EXT(T)'!V71=\"\",\"\",+'[1]EXT(T)'!V71)","v":"n.d."},{"$f":"IF(+'[1]EXT(T)'!W71=\"\",\"\",+'[1]EXT(T)'!W71)","v":753.78981475308785},{"$f":"IF(+'[1]EXT(T)'!X71=\"\",\"\",+'[1]EXT(T)'!X71)","v":92.739999999999981},{"$f":"IF(+'[1]EXT(T)'!Y71=\"\",\"\",+'[1]EXT(T)'!Y71)","v":"n.d."},{"$f":"IF(+'[1]EXT(T)'!Z71=\"\",\"\",+'[1]EXT(T)'!Z71)","v":"n.d."},{"$f":"IF(+'[1]EXT(T)'!AA71=\"\",\"\",+'[1]EXT(T)'!AA71)","v":"n.d."},{"$f":"IF(+'[1]EXT(T)'!AB71=\"\",\"\",+'[1]EXT(T)'!AB71)","v":"n.d."},{"$f":"IF(+'[1]EXT(T)'!AC71=\"\",\"\",+'[1]EXT(T)'!AC71)","v":298.3},{"$f":"IF(+'[1]EXT(T)'!AE71=\"\",\"\",+'[1]EXT(T)'!AE71)","v":"n.d."},{"$f":"IF(+'[1]EXT(T)'!AF71=\"\",\"\",+'[1]EXT(T)'!AF71)","v":"n.d."},{"$f":"IF(+'[1]EXT(T)'!AY71=\"\",\"\",+'[1]EXT(T)'!AY71)","v":5235.7278699999997},{"$f":"IF(+'[1]EXT(T)'!AZ71=\"\",\"\",+'[1]EXT(T)'!AZ71)","v":"n.d."},{"$f":"IF(+'[1]EXT(T)'!AQ71=\"\",\"\",+'[1]EXT(T)'!AQ71-'[1]EXT(T)'!AQ70)","v":105.83968},{"$f":"IF(+'[1]EXT(T)'!AR71=\"\",\"\",+'[1]EXT(T)'!AR71-'[1]EXT(T)'!AR70)","v":768.44999999999993},{"$f":"IF(+'[1]EXT(T)'!AS71=\"\",\"\",+'[1]EXT(T)'!AS71-'[1]EXT(T)'!AS70)","v":788.47249999999997},{"$f":"IF(+'[1]EXT(T)'!AT71=\"\",\"\",+'[1]EXT(T)'!AT71-'[1]EXT(T)'!AT70)","v":401.05569999999994},{"$f":"IF(+'[1]EXT(T)'!AU71=\"\",\"\",+'[1]EXT(T)'!AU71-'[1]EXT(T)'!AU70)","v":148.9},{"$f":"IF(+'[1]EXT(T)'!AV71=\"\",\"\",+'[1]EXT(T)'!AV71-'[1]EXT(T)'!AV70)","v":553.20000000000005},"n.d.",2765.91788,"n.d."]
[null,"III",{"$f":"IF(+'[1]EXT(T)'!M72=\"\",\"\",+'[1]EXT(T)'!M72)","v":258.24938815868887},{"$f":"IF(+'[1]EXT(T)'!N72=\"\",\"\",+'[1]EXT(T)'!N72)","v":53.3},{"$f":"IF(+'[1]EXT(T)'!O72=\"\",\"\",+'[1]EXT(T)'!O72)","v":"n.d."},{"$f":"IF(+'[1]EXT(T)'!P72=\"\",\"\",+'[1]EXT(T)'!P72)","v":"n.d."},{"$f":"IF(+'[1]EXT(T)'!Q72=\"\",\"\",+'[1]EXT(T)'!Q72)","v":"n.d."},{"$f":"IF(+'[1]EXT(T)'!R72=\"\",\"\",+'[1]EXT(T)'!R72)","v":"n.d."},{"$f":"IF(+'[1]EXT(T)'!S72=\"\",\"\",+'[1]EXT(T)'!S72)","v":173.20000000000002},{"$f":"IF(+'[1]EXT(T)'!U72=\"\",\"\",+'[1]EXT(T)'!U72)","v":"n.d."},{"$f":"IF(+'[1]EXT(T)'!V72=\"\",\"\",+'[1]EXT(T)'!V72)","v":"n.d."},{"$f":"IF(+'[1]EXT(T)'!W72=\"\",\"\",+'[1]EXT(T)'!W72)","v":1012.0392029117768},{"$f":"IF(+'[1]EXT(T)'!X72=\"\",\"\",+'[1]EXT(T)'!X72)","v":146.03999999999996},{"$f":"IF(+'[1]EXT(T)'!Y72=\"\",\"\",+'[1]EXT(T)'!Y72)","v":"n.d."},{"$f":"IF(+'[1]EXT(T)'!Z72=\"\",\"\",+'[1]EXT(T)'!Z72)","v":"n.d."},{"$f":"IF(+'[1]EXT(T)'!AA72=\"\",\"\",+'[1]EXT(T)'!AA72)","v":"n.d."},{"$f":"IF(+'[1]EXT(T)'!AB72=\"\",\"\",+'[1]EXT(T)'!AB72)","v":"n.d."},{"$f":"IF(+'[1]EXT(T)'!AC72=\"\",\"\",+'[1]EXT(T)'!AC72)","v":471.5},{"$f":"IF(+'[1]EXT(T)'!AE72=\"\",\"\",+'[1]EXT(T)'!AE72)","v":"n.d."},{"$f":"IF(+'[1]EXT(T)'!AF72=\"\",\"\",+'[1]EXT(T)'!AF72)","v":"n.d."},{"$f":"IF(+'[1]EXT(T)'!AY72=\"\",\"\",+'[1]EXT(T)'!AY72)","v":8031.4402899999995},{"$f":"IF(+'[1]EXT(T)'!AZ72=\"\",\"\",+'[1]EXT(T)'!AZ72)","v":"n.d."},{"$f":"IF(+'[1]EXT(T)'!AQ72=\"\",\"\",+'[1]EXT(T)'!AQ72-'[1]EXT(T)'!AQ71)","v":102.14672000000002},{"$f":"IF(+'[1]EXT(T)'!AR72=\"\",\"\",+'[1]EXT(T)'!AR72-'[1]EXT(T)'!AR71)","v":758.31000000000017},{"$f":"IF(+'[1]EXT(T)'!AS72=\"\",\"\",+'[1]EXT(T)'!AS72-'[1]EXT(T)'!AS71)","v":729.31460000000015},{"$f":"IF(+'[1]EXT(T)'!AT72=\"\",\"\",+'[1]EXT(T)'!AT72-'[1]EXT(T)'!AT71)","v":456.94110000000001},{"$f":"IF(+'[1]EXT(T)'!AU72=\"\",\"\",+'[1]EXT(T)'!AU72-'[1]EXT(T)'!AU71)","v":150.5},{"$f":"IF(+'[1]EXT(T)'!AV72=\"\",\"\",+'[1]EXT(T)'!AV72-'[1]EXT(T)'!AV71)","v":598.5},"n.d.",2795.7124200000003,"n.d."]
[null,"IV",{"$f":"IF(+'[1]EXT(T)'!M73=\"\",\"\",+'[1]EXT(T)'!M73)","v":352.09471119356863},{"$f":"IF(+'[1]EXT(T)'!N73=\"\",\"\",+'[1]EXT(T)'!N73)","v":365.1},{"$f":"IF(+'[1]EXT(T)'!O73=\"\",\"\",+'[1]EXT(T)'!O73)","v":"n.d."},{"$f":"IF(+'[1]EXT(T)'!P73=\"\",\"\",+'[1]EXT(T)'!P73)","v":"n.d."},{"$f":"IF(+'[1]EXT(T)'!Q73=\"\",\"\",+'[1]EXT(T)'!Q73)","v":"n.d."},{"$f":"IF(+'[1]EXT(T)'!R73=\"\",\"\",+'[1]EXT(T)'!R73)","v":"n.d."},{"$f":"IF(+'[1]EXT(T)'!S73=\"\",\"\",+'[1]EXT(T)'!S73)","v":446.1},{"$f":"IF(+'[1]EXT(T)'!U73=\"\",\"\",+'[1]EXT(T)'!U73)","v":"n.d."},{"$f":"IF(+'[1]EXT(T)'!V73=\"\",\"\",+'[1]EXT(T)'!V73)","v":"n.d."},{"$f":"IF(+'[1]EXT(T)'!W73=\"\",\"\",+'[1]EXT(T)'!W73)","v":1364.1339141053454},{"$f":"IF(+'[1]EXT(T)'!X73=\"\",\"\",+'[1]EXT(T)'!X73)","v":511.14},{"$f":"IF(+'[1]EXT(T)'!Y73=\"\",\"\",+'[1]EXT(T)'!Y73)","v":"n.d."},{"$f":"IF(+'[1]EXT(T)'!Z73=\"\",\"\",+'[1]EXT(T)'!Z73)","v":"n.d."},{"$f":"IF(+'[1]EXT(T)'!AA73=\"\",\"\",+'[1]EXT(T)'!AA73)","v":"n.d."},{"$f":"IF(+'[1]EXT(T)'!AB73=\"\",\"\",+'[1]EXT(T)'!AB73)","v":"n.d."},{"$f":"IF(+'[1]EXT(T)'!AC73=\"\",\"\",+'[1]EXT(T)'!AC73)","v":917.6},{"$f":"IF(+'[1]EXT(T)'!AE73=\"\",\"\",+'[1]EXT(T)'!AE73)","v":"n.d."},{"$f":"IF(+'[1]EXT(T)'!AF73=\"\",\"\",+'[1]EXT(T)'!AF73)","v":"n.d."},{"$f":"IF(+'[1]EXT(T)'!AY73=\"\",\"\",+'[1]EXT(T)'!AY73)","v":11174.272410000001},{"$f":"IF(+'[1]EXT(T)'!AZ73=\"\",\"\",+'[1]EXT(T)'!AZ73)","v":"n.d."},{"$f":"IF(+'[1]EXT(T)'!AQ73=\"\",\"\",+'[1]EXT(T)'!AQ73-'[1]EXT(T)'!AQ72)","v":100.25722000000002},{"$f":"IF(+'[1]EXT(T)'!AR73=\"\",\"\",+'[1]EXT(T)'!AR73-'[1]EXT(T)'!AR72)","v":850.97000000000025},{"$f":"IF(+'[1]EXT(T)'!AS73=\"\",\"\",+'[1]EXT(T)'!AS73-'[1]EXT(T)'!AS72)","v":815.33190000000013},{"$f":"IF(+'[1]EXT(T)'!AT73=\"\",\"\",+'[1]EXT(T)'!AT73-'[1]EXT(T)'!AT72)","v":503.37300000000005},{"$f":"IF(+'[1]EXT(T)'!AU73=\"\",\"\",+'[1]EXT(T)'!AU73-'[1]EXT(T)'!AU72)","v":162.70000000000005},{"$f":"IF(+'[1]EXT(T)'!AV73=\"\",\"\",+'[1]EXT(T)'!AV73-'[1]EXT(T)'!AV72)","v":710.2},"n.d.",3142.83212,"n.d."]
[2006,"I",{"$f":"IF(+'[1]EXT(T)'!M74=\"\",\"\",+'[1]EXT(T)'!M74)","v":374.58803460043055},{"$f":"IF(+'[1]EXT(T)'!N74=\"\",\"\",+'[1]EXT(T)'!N74)","v":175.7},{"$f":"IF(+'[1]EXT(T)'!O74=\"\",\"\",+'[1]EXT(T)'!O74)","v":"n.d."},{"$f":"IF(+'[1]EXT(T)'!P74=\"\",\"\",+'[1]EXT(T)'!P74)","v":"n.d."},{"$f":"IF(+'[1]EXT(T)'!Q74=\"\",\"\",+'[1]EXT(T)'!Q74)","v":64.5},{"$f":"IF(+'[1]EXT(T)'!R74=\"\",\"\",+'[1]EXT(T)'!R74)","v":"n.d."},{"$f":"IF(+'[1]EXT(T)'!S74=\"\",\"\",+'[1]EXT(T)'!S74)","v":76.599999999999994},{"$f":"IF(+'[1]EXT(T)'!U74=\"\",\"\",+'[1]EXT(T)'!U74)","v":"n.d."},{"$f":"IF(+'[1]EXT(T)'!V74=\"\",\"\",+'[1]EXT(T)'!V74)","v":"n.d."},{"$f":"IF(+'[1]EXT(T)'!W74=\"\",\"\",+'[1]EXT(T)'!W74)","v":374.58803460043055},{"$f":"IF(+'[1]EXT(T)'!X74=\"\",\"\",+'[1]EXT(T)'!X74)","v":175.7},{"$f":"IF(+'[1]EXT(T)'!Y74=\"\",\"\",+'[1]EXT(T)'!Y74)","v":"n.d."},{"$f":"IF(+'[1]EXT(T)'!Z74=\"\",\"\",+'[1]EXT(T)'!Z74)","v":"n.d."},{"$f":"IF(+'[1]EXT(T)'!AA74=\"\",\"\",+'[1]EXT(T)'!AA74)","v":64.5},{"$f":"IF(+'[1]EXT(T)'!AB74=\"\",\"\",+'[1]EXT(T)'!AB74)","v":"n.d."},{"$f":"IF(+'[1]EXT(T)'!AC74=\"\",\"\",+'[1]EXT(T)'!AC74)","v":76.599999999999994},{"$f":"IF(+'[1]EXT(T)'!AE74=\"\",\"\",+'[1]EXT(T)'!AE74)","v":"n.d."},{"$f":"IF(+'[1]EXT(T)'!AF74=\"\",\"\",+'[1]EXT(T)'!AF74)","v":"n.d."},{"$f":"IF(+'[1]EXT(T)'!AY74=\"\",\"\",+'[1]EXT(T)'!AY74)","v":3007.7737926},{"$f":"IF(+'[1]EXT(T)'!AZ74=\"\",\"\",+'[1]EXT(T)'!AZ74)","v":"n.d."},{"$f":"IF(+'[1]EXT(T)'!AQ74=\"\",\"\",+'[1]EXT(T)'!AQ74)","v":108.9113926},{"$f":"IF(+'[1]EXT(T)'!AR74=\"\",\"\",+'[1]EXT(T)'!AR74)","v":796.77},{"$f":"IF(+'[1]EXT(T)'!AS74=\"\",\"\",+'[1]EXT(T)'!AS74)","v":792.66460000000006},{"$f":"IF(+'[1]EXT(T)'!AT74=\"\",\"\",+'[1]EXT(T)'!AT74)","v":507.42780000000005},{"$f":"IF(+'[1]EXT(T)'!AU74=\"\",\"\",+'[1]EXT(T)'!AU74)","v":173.6},{"$f":"IF(+'[1]EXT(T)'!AV74=\"\",\"\",+'[1]EXT(T)'!AV74)","v":628.40000000000009},"n.d.",{"$f":"IF(OR(W67=\"\",X67=\"\",Y67=\"\",Z67=\"\",AA67=\"\",AB67=\"\"),\"\",W67+X67+Y67+Z67+AA67+AB67)","v":3007.7737926},"n.d."]
[null,"II",{"$f":"IF(+'[1]EXT(T)'!M75=\"\",\"\",+'[1]EXT(T)'!M75)","v":354.40034469424143},{"$f":"IF(+'[1]EXT(T)'!N75=\"\",\"\",+'[1]EXT(T)'!N75)","v":2.9000000000000021},{"$f":"IF(+'[1]EXT(T)'!O75=\"\",\"\",+'[1]EXT(T)'!O75)","v":"n.d."},{"$f":"IF(+'[1]EXT(T)'!P75=\"\",\"\",+'[1]EXT(T)'!P75)","v":"n.d."},{"$f":"IF(+'[1]EXT(T)'!Q75=\"\",\"\",+'[1]EXT(T)'!Q75)","v":67.2},{"$f":"IF(+'[1]EXT(T)'!R75=\"\",\"\",+'[1]EXT(T)'!R75)","v":"n.d."},{"$f":"IF(+'[1]EXT(T)'!S75=\"\",\"\",+'[1]EXT(T)'!S75)","v":297.2},{"$f":"IF(+'[1]EXT(T)'!U75=\"\",\"\",+'[1]EXT(T)'!U75)","v":"n.d."},{"$f":"IF(+'[1]EXT(T)'!V75=\"\",\"\",+'[1]EXT(T)'!V75)","v":"n.d."},{"$f":"IF(+'[1]EXT(T)'!W75=\"\",\"\",+'[1]EXT(T)'!W75)","v":728.98837929467197},{"$f":"IF(+'[1]EXT(T)'!X75=\"\",\"\",+'[1]EXT(T)'!X75)","v":178.6},{"$f":"IF(+'[1]EXT(T)'!Y75=\"\",\"\",+'[1]EXT(T)'!Y75)","v":"n.d."},{"$f":"IF(+'[1]EXT(T)'!Z75=\"\",\"\",+'[1]EXT(T)'!Z75)","v":"n.d."},{"$f":"IF(+'[1]EXT(T)'!AA75=\"\",\"\",+'[1]EXT(T)'!AA75)","v":131.69999999999999},{"$f":"IF(+'[1]EXT(T)'!AB75=\"\",\"\",+'[1]EXT(T)'!AB75)","v":"n.d."},{"$f":"IF(+'[1]EXT(T)'!AC75=\"\",\"\",+'[1]EXT(T)'!AC75)","v":373.79999999999995},{"$f":"IF(+'[1]EXT(T)'!AE75=\"\",\"\",+'[1]EXT(T)'!AE75)","v":"n.d."},{"$f":"IF(+'[1]EXT(T)'!AF75=\"\",\"\",+'[1]EXT(T)'!AF75)","v":"n.d."},{"$f":"IF(+'[1]EXT(T)'!AY75=\"\",\"\",+'[1]EXT(T)'!AY75)","v":6375.4970493000001},{"$f":"IF(+'[1]EXT(T)'!AZ75=\"\",\"\",+'[1]EXT(T)'!AZ75)","v":"n.d."},{"$f":"IF(+'[1]EXT(T)'!AQ75=\"\",\"\",+'[1]EXT(T)'!AQ75-'[1]EXT(T)'!AQ74)","v":124.93905669999998},{"$f":"IF(+'[1]EXT(T)'!AR75=\"\",\"\",+'[1]EXT(T)'!AR75-'[1]EXT(T)'!AR74)","v":894.64999999999986},{"$f":"IF(+'[1]EXT(T)'!AS75=\"\",\"\",+'[1]EXT(T)'!AS75-'[1]EXT(T)'!AS74)","v":955.92790000000014},{"$f":"IF(+'[1]EXT(T)'!AT75=\"\",\"\",+'[1]EXT(T)'!AT75-'[1]EXT(T)'!AT74)","v":567.70629999999994},{"$f":"IF(+'[1]EXT(T)'!AU75=\"\",\"\",+'[1]EXT(T)'!AU75-'[1]EXT(T)'!AU74)","v":168.50000000000003},{"$f":"IF(+'[1]EXT(T)'!AV75=\"\",\"\",+'[1]EXT(T)'!AV75-'[1]EXT(T)'!AV74)","v":656},"n.d.",{"$f":"IF(OR(W68=\"\",X68=\"\",Y68=\"\",Z68=\"\",AA68=\"\",AB68=\"\"),\"\",W68+X68+Y68+Z68+AA68+AB68)","v":3367.7232567000001},"n.d."]
[null,"III",{"$f":"IF(+'[1]EXT(T)'!M76=\"\",\"\",+'[1]EXT(T)'!M76)","v":651.08589405223756},{"$f":"IF(+'[1]EXT(T)'!N76=\"\",\"\",+'[1]EXT(T)'!N76)","v":-22.599999999999994},{"$f":"IF(+'[1]EXT(T)'!O76=\"\",\"\",+'[1]EXT(T)'!O76)","v":"n.d."},{"$f":"IF(+'[1]EXT(T)'!P76=\"\",\"\",+'[1]EXT(T)'!P76)","v":"n.d."},{"$f":"IF(+'[1]EXT(T)'!Q76=\"\",\"\",+'[1]EXT(T)'!Q76)","v":73.2},{"$f":"IF(+'[1]EXT(T)'!R76=\"\",\"\",+'[1]EXT(T)'!R76)","v":"n.d."},{"$f":"IF(+'[1]EXT(T)'!S76=\"\",\"\",+'[1]EXT(T)'!S76)","v":488.4},{"$f":"IF(+'[1]EXT(T)'!U76=\"\",\"\",+'[1]EXT(T)'!U76)","v":"n.d."},{"$f":"IF(+'[1]EXT(T)'!V76=\"\",\"\",+'[1]EXT(T)'!V76)","v":"n.d."},{"$f":"IF(+'[1]EXT(T)'!W76=\"\",\"\",+'[1]EXT(T)'!W76)","v":1380.0742733469096},{"$f":"IF(+'[1]EXT(T)'!X76=\"\",\"\",+'[1]EXT(T)'!X76)","v":156},{"$f":"IF(+'[1]EXT(T)'!Y76=\"\",\"\",+'[1]EXT(T)'!Y76)","v":"n.d."},{"$f":"IF(+'[1]EXT(T)'!Z76=\"\",\"\",+'[1]EXT(T)'!Z76)","v":"n.d."},{"$f":"IF(+'[1]EXT(T)'!AA76=\"\",\"\",+'[1]EXT(T)'!AA76)","v":204.89999999999998},{"$f":"IF(+'[1]EXT(T)'!AB76=\"\",\"\",+'[1]EXT(T)'!AB76)","v":"n.d."},{"$f":"IF(+'[1]EXT(T)'!AC76=\"\",\"\",+'[1]EXT(T)'!AC76)","v":862.19999999999993},{"$f":"IF(+'[1]EXT(T)'!AE76=\"\",\"\",+'[1]EXT(T)'!AE76)","v":"n.d."},{"$f":"IF(+'[1]EXT(T)'!AF76=\"\",\"\",+'[1]EXT(T)'!AF76)","v":"n.d."},{"$f":"IF(+'[1]EXT(T)'!AY76=\"\",\"\",+'[1]EXT(T)'!AY76)","v":9750.1230493000003},{"$f":"IF(+'[1]EXT(T)'!AZ76=\"\",\"\",+'[1]EXT(T)'!AZ76)","v":"n.d."},{"$f":"IF(+'[1]EXT(T)'!AQ76=\"\",\"\",+'[1]EXT(T)'!AQ76-'[1]EXT(T)'!AQ75)","v":131.91399999999999},{"$f":"IF(+'[1]EXT(T)'!AR76=\"\",\"\",+'[1]EXT(T)'!AR76-'[1]EXT(T)'!AR75)","v":850.04000000000019},{"$f":"IF(+'[1]EXT(T)'!AS76=\"\",\"\",+'[1]EXT(T)'!AS76-'[1]EXT(T)'!AS75)","v":928.83199999999988},{"$f":"IF(+'[1]EXT(T)'!AT76=\"\",\"\",+'[1]EXT(T)'!AT76-'[1]EXT(T)'!AT75)","v":581.63999999999987},{"$f":"IF(+'[1]EXT(T)'!AU76=\"\",\"\",+'[1]EXT(T)'!AU76-'[1]EXT(T)'!AU75)","v":178.60000000000002},{"$f":"IF(+'[1]EXT(T)'!AV76=\"\",\"\",+'[1]EXT(T)'!AV76-'[1]EXT(T)'!AV75)","v":703.59999999999991},"n.d.",3374.6259999999997,"n.d."]
[null,"IV",{"$f":"IF(+'[1]EXT(T)'!M77=\"\",\"\",+'[1]EXT(T)'!M77)","v":322.42246308831182},{"$f":"IF(+'[1]EXT(T)'!N77=\"\",\"\",+'[1]EXT(T)'!N77)","v":85.13},{"$f":"IF(+'[1]EXT(T)'!O77=\"\",\"\",+'[1]EXT(T)'!O77)","v":"n.d."},{"$f":"IF(+'[1]EXT(T)'!P77=\"\",\"\",+'[1]EXT(T)'!P77)","v":"n.d."},{"$f":"IF(+'[1]EXT(T)'!Q77=\"\",\"\",+'[1]EXT(T)'!Q77)","v":81.900000000000006},{"$f":"IF(+'[1]EXT(T)'!R77=\"\",\"\",+'[1]EXT(T)'!R77)","v":"n.d."},{"$f":"IF(+'[1]EXT(T)'!S77=\"\",\"\",+'[1]EXT(T)'!S77)","v":1685.1},{"$f":"IF(+'[1]EXT(T)'!U77=\"\",\"\",+'[1]EXT(T)'!U77)","v":"n.d."},{"$f":"IF(+'[1]EXT(T)'!V77=\"\",\"\",+'[1]EXT(T)'!V77)","v":"n.d."},{"$f":"IF(+'[1]EXT(T)'!W77=\"\",\"\",+'[1]EXT(T)'!W77)","v":1702.4967364352215},{"$f":"IF(+'[1]EXT(T)'!X77=\"\",\"\",+'[1]EXT(T)'!X77)","v":241.13},{"$f":"IF(+'[1]EXT(T)'!Y77=\"\",\"\",+'[1]EXT(T)'!Y77)","v":"n.d."},{"$f":"IF(+'[1]EXT(T)'!Z77=\"\",\"\",+'[1]EXT(T)'!Z77)","v":"n.d."},{"$f":"IF(+'[1]EXT(T)'!AA77=\"\",\"\",+'[1]EXT(T)'!AA77)","v":286.79999999999995},{"$f":"IF(+'[1]EXT(T)'!AB77=\"\",\"\",+'[1]EXT(T)'!AB77)","v":"n.d."},{"$f":"IF(+'[1]EXT(T)'!AC77=\"\",\"\",+'[1]EXT(T)'!AC77)","v":2547.2999999999997},{"$f":"IF(+'[1]EXT(T)'!AE77=\"\",\"\",+'[1]EXT(T)'!AE77)","v":"n.d."},{"$f":"IF(+'[1]EXT(T)'!AF77=\"\",\"\",+'[1]EXT(T)'!AF77)","v":"n.d."},{"$f":"IF(+'[1]EXT(T)'!AY77=\"\",\"\",+'[1]EXT(T)'!AY77)","v":13257.584690899999},{"$f":"IF(+'[1]EXT(T)'!AZ77=\"\",\"\",+'[1]EXT(T)'!AZ77)","v":"n.d."},{"$f":"IF(+'[1]EXT(T)'!AQ77=\"\",\"\",+'[1]EXT(T)'!AQ77-'[1]EXT(T)'!AQ76)","v":124.06484159999997},{"$f":"IF(+'[1]EXT(T)'!AR77=\"\",\"\",+'[1]EXT(T)'!AR77-'[1]EXT(T)'!AR76)","v":929.43000000000029},{"$f":"IF(+'[1]EXT(T)'!AS77=\"\",\"\",+'[1]EXT(T)'!AS77-'[1]EXT(T)'!AS76)","v":932.38860000000022},{"$f":"IF(+'[1]EXT(T)'!AT77=\"\",\"\",+'[1]EXT(T)'!AT77-'[1]EXT(T)'!AT76)","v":594.97819999999979},{"$f":"IF(+'[1]EXT(T)'!AU77=\"\",\"\",+'[1]EXT(T)'!AU77-'[1]EXT(T)'!AU76)","v":176.79999999999995},{"$f":"IF(+'[1]EXT(T)'!AV77=\"\",\"\",+'[1]EXT(T)'!AV77-'[1]EXT(T)'!AV76)","v":749.80000000000018},"n.d.",3507.4616416000008,"n.d."]
[2007,"I",{"$f":"IF(+'[1]EXT(T)'!M78=\"\",\"\",+'[1]EXT(T)'!M78)","v":682.98028723471657},{"$f":"IF(+'[1]EXT(T)'!N78=\"\",\"\",+'[1]EXT(T)'!N78)","v":448.29999999999995},{"$f":"IF(+'[1]EXT(T)'!O78=\"\",\"\",+'[1]EXT(T)'!O78)","v":"n.d."},{"$f":"IF(+'[1]EXT(T)'!P78=\"\",\"\",+'[1]EXT(T)'!P78)","v":"n.d."},{"$f":"IF(+'[1]EXT(T)'!Q78=\"\",\"\",+'[1]EXT(T)'!Q78)","v":58.8},{"$f":"IF(+'[1]EXT(T)'!R78=\"\",\"\",+'[1]EXT(T)'!R78)","v":"n.d."},{"$f":"IF(+'[1]EXT(T)'!S78=\"\",\"\",+'[1]EXT(T)'!S78)","v":424.2},{"$f":"IF(+'[1]EXT(T)'!U78=\"\",\"\",+'[1]EXT(T)'!U78)","v":1190.0802872347165},{"$f":"IF(+'[1]EXT(T)'!V78=\"\",\"\",+'[1]EXT(T)'!V78)","v":1614.2802872347165},{"$f":"IF(+'[1]EXT(T)'!W78=\"\",\"\",+'[1]EXT(T)'!W78)","v":682.98028723471657},{"$f":"IF(+'[1]EXT(T)'!X78=\"\",\"\",+'[1]EXT(T)'!X78)","v":448.29999999999995},{"$f":"IF(+'[1]EXT(T)'!Y78=\"\",\"\",+'[1]EXT(T)'!Y78)","v":"n.d."},{"$f":"IF(+'[1]EXT(T)'!Z78=\"\",\"\",+'[1]EXT(T)'!Z78)","v":"n.d."},{"$f":"IF(+'[1]EXT(T)'!AA78=\"\",\"\",+'[1]EXT(T)'!AA78)","v":58.8},{"$f":"IF(+'[1]EXT(T)'!AB78=\"\",\"\",+'[1]EXT(T)'!AB78)","v":"n.d."},{"$f":"IF(+'[1]EXT(T)'!AC78=\"\",\"\",+'[1]EXT(T)'!AC78)","v":424.2},{"$f":"IF(+'[1]EXT(T)'!AE78=\"\",\"\",+'[1]EXT(T)'!AE78)","v":1190.0802872347165},{"$f":"IF(+'[1]EXT(T)'!AF78=\"\",\"\",+'[1]EXT(T)'!AF78)","v":1614.2802872347165},{"$f":"IF(+'[1]EXT(T)'!AY78=\"\",\"\",+'[1]EXT(T)'!AY78)","v":3348.0183873000001},{"$f":"IF(+'[1]EXT(T)'!AZ78=\"\",\"\",+'[1]EXT(T)'!AZ78)","v":"n.d."},{"$f":"IF(+'[1]EXT(T)'!AQ78=\"\",\"\",+'[1]EXT(T)'!AQ78)","v":123.4692873},{"$f":"IF(+'[1]EXT(T)'!AR78=\"\",\"\",+'[1]EXT(T)'!AR78)","v":860.12000000000012},{"$f":"IF(+'[1]EXT(T)'!AS78=\"\",\"\",+'[1]EXT(T)'!AS78)","v":886.68420000000015},{"$f":"IF(+'[1]EXT(T)'!AT78=\"\",\"\",+'[1]EXT(T)'!AT78)","v":568.64490000000001},{"$f":"IF(+'[1]EXT(T)'!AU78=\"\",\"\",+'[1]EXT(T)'!AU78)","v":165.1},{"$f":"IF(+'[1]EXT(T)'!AV78=\"\",\"\",+'[1]EXT(T)'!AV78)","v":744},"n.d.",{"$f":"IF(OR(W71=\"\",X71=\"\",Y71=\"\",Z71=\"\",AA71=\"\",AB71=\"\"),\"\",W71+X71+Y71+Z71+AA71+AB71)","v":3348.0183873000001},"n.d."]
[null,"II",{"$f":"IF(+'[1]EXT(T)'!M79=\"\",\"\",+'[1]EXT(T)'!M79)","v":538.23089726507942},{"$f":"IF(+'[1]EXT(T)'!N79=\"\",\"\",+'[1]EXT(T)'!N79)","v":714.8},{"$f":"IF(+'[1]EXT(T)'!O79=\"\",\"\",+'[1]EXT(T)'!O79)","v":"n.d."},{"$f":"IF(+'[1]EXT(T)'!P79=\"\",\"\",+'[1]EXT(T)'!P79)","v":"n.d."},{"$f":"IF(+'[1]EXT(T)'!Q79=\"\",\"\",+'[1]EXT(T)'!Q79)","v":107.6},{"$f":"IF(+'[1]EXT(T)'!R79=\"\",\"\",+'[1]EXT(T)'!R79)","v":"n.d."},{"$f":"IF(+'[1]EXT(T)'!S79=\"\",\"\",+'[1]EXT(T)'!S79)","v":341.40000000000003},{"$f":"IF(+'[1]EXT(T)'!U79=\"\",\"\",+'[1]EXT(T)'!U79)","v":1360.6308972650793},{"$f":"IF(+'[1]EXT(T)'!V79=\"\",\"\",+'[1]EXT(T)'!V79)","v":1702.0308972650794},{"$f":"IF(+'[1]EXT(T)'!W79=\"\",\"\",+'[1]EXT(T)'!W79)","v":1221.211184499796},{"$f":"IF(+'[1]EXT(T)'!X79=\"\",\"\",+'[1]EXT(T)'!X79)","v":1163.0999999999999},{"$f":"IF(+'[1]EXT(T)'!Y79=\"\",\"\",+'[1]EXT(T)'!Y79)","v":"n.d."},{"$f":"IF(+'[1]EXT(T)'!Z79=\"\",\"\",+'[1]EXT(T)'!Z79)","v":"n.d."},{"$f":"IF(+'[1]EXT(T)'!AA79=\"\",\"\",+'[1]EXT(T)'!AA79)","v":166.39999999999998},{"$f":"IF(+'[1]EXT(T)'!AB79=\"\",\"\",+'[1]EXT(T)'!AB79)","v":"n.d."},{"$f":"IF(+'[1]EXT(T)'!AC79=\"\",\"\",+'[1]EXT(T)'!AC79)","v":765.6},{"$f":"IF(+'[1]EXT(T)'!AE79=\"\",\"\",+'[1]EXT(T)'!AE79)","v":2550.7111844997958},{"$f":"IF(+'[1]EXT(T)'!AF79=\"\",\"\",+'[1]EXT(T)'!AF79)","v":3316.3111844997957},{"$f":"IF(+'[1]EXT(T)'!AY79=\"\",\"\",+'[1]EXT(T)'!AY79)","v":7058.9489211},{"$f":"IF(+'[1]EXT(T)'!AZ79=\"\",\"\",+'[1]EXT(T)'!AZ79)","v":"n.d."},{"$f":"IF(+'[1]EXT(T)'!AQ79=\"\",\"\",+'[1]EXT(T)'!AQ79-'[1]EXT(T)'!AQ78)","v":136.21073380000001},{"$f":"IF(+'[1]EXT(T)'!AR79=\"\",\"\",+'[1]EXT(T)'!AR79-'[1]EXT(T)'!AR78)","v":958.28},{"$f":"IF(+'[1]EXT(T)'!AS79=\"\",\"\",+'[1]EXT(T)'!AS79-'[1]EXT(T)'!AS78)","v":1083.0346},{"$f":"IF(+'[1]EXT(T)'!AT79=\"\",\"\",+'[1]EXT(T)'!AT79-'[1]EXT(T)'!AT78)","v":623.50519999999983},{"$f":"IF(+'[1]EXT(T)'!AU79=\"\",\"\",+'[1]EXT(T)'!AU79-'[1]EXT(T)'!AU78)","v":181.09999999999994},{"$f":"IF(+'[1]EXT(T)'!AV79=\"\",\"\",+'[1]EXT(T)'!AV79-'[1]EXT(T)'!AV78)","v":728.80000000000018},"n.d.",3710.9305337999999,"n.d."]
[null,"III",{"$f":"IF(+'[1]EXT(T)'!M80=\"\",\"\",+'[1]EXT(T)'!M80)","v":431.92687358303192},{"$f":"IF(+'[1]EXT(T)'!N80=\"\",\"\",+'[1]EXT(T)'!N80)","v":190.14999999999998},{"$f":"IF(+'[1]EXT(T)'!O80=\"\",\"\",+'[1]EXT(T)'!O80)","v":"n.d."},{"$f":"IF(+'[1]EXT(T)'!P80=\"\",\"\",+'[1]EXT(T)'!P80)","v":"n.d."},{"$f":"IF(+'[1]EXT(T)'!Q80=\"\",\"\",+'[1]EXT(T)'!Q80)","v":120.1},{"$f":"IF(+'[1]EXT(T)'!R80=\"\",\"\",+'[1]EXT(T)'!R80)","v":"n.d."},{"$f":"IF(+'[1]EXT(T)'!S80=\"\",\"\",+'[1]EXT(T)'!S80)","v":594.90000000000009},{"$f":"IF(+'[1]EXT(T)'!U80=\"\",\"\",+'[1]EXT(T)'!U80)","v":742.17687358303192},{"$f":"IF(+'[1]EXT(T)'!V80=\"\",\"\",+'[1]EXT(T)'!V80)","v":1337.076873583032},{"$f":"IF(+'[1]EXT(T)'!W80=\"\",\"\",+'[1]EXT(T)'!W80)","v":1653.1380580828279},{"$f":"IF(+'[1]EXT(T)'!X80=\"\",\"\",+'[1]EXT(T)'!X80)","v":1353.25},{"$f":"IF(+'[1]EXT(T)'!Y80=\"\",\"\",+'[1]EXT(T)'!Y80)","v":"n.d."},{"$f":"IF(+'[1]EXT(T)'!Z80=\"\",\"\",+'[1]EXT(T)'!Z80)","v":"n.d."},{"$f":"IF(+'[1]EXT(T)'!AA80=\"\",\"\",+'[1]EXT(T)'!AA80)","v":286.5},{"$f":"IF(+'[1]EXT(T)'!AB80=\"\",\"\",+'[1]EXT(T)'!AB80)","v":"n.d."},{"$f":"IF(+'[1]EXT(T)'!AC80=\"\",\"\",+'[1]EXT(T)'!AC80)","v":1360.5},{"$f":"IF(+'[1]EXT(T)'!AE80=\"\",\"\",+'[1]EXT(T)'!AE80)","v":3292.8880580828277},{"$f":"IF(+'[1]EXT(T)'!AF80=\"\",\"\",+'[1]EXT(T)'!AF80)","v":4653.3880580828281},{"$f":"IF(+'[1]EXT(T)'!AY80=\"\",\"\",+'[1]EXT(T)'!AY80)","v":10849.548957000001},{"$f":"IF(+'[1]EXT(T)'!AZ80=\"\",\"\",+'[1]EXT(T)'!AZ80)","v":"n.d."},{"$f":"IF(+'[1]EXT(T)'!AQ80=\"\",\"\",+'[1]EXT(T)'!AQ80-'[1]EXT(T)'!AQ79)","v":172.96873590000001},{"$f":"IF(+'[1]EXT(T)'!AR80=\"\",\"\",+'[1]EXT(T)'!AR80-'[1]EXT(T)'!AR79)","v":918.46},{"$f":"IF(+'[1]EXT(T)'!AS80=\"\",\"\",+'[1]EXT(T)'!AS80-'[1]EXT(T)'!AS79)","v":1089.3137000000002},{"$f":"IF(+'[1]EXT(T)'!AT80=\"\",\"\",+'[1]EXT(T)'!AT80-'[1]EXT(T)'!AT79)","v":664.95760000000018},{"$f":"IF(+'[1]EXT(T)'!AU80=\"\",\"\",+'[1]EXT(T)'!AU80-'[1]EXT(T)'!AU79)","v":189.70000000000005},{"$f":"IF(+'[1]EXT(T)'!AV80=\"\",\"\",+'[1]EXT(T)'!AV80-'[1]EXT(T)'!AV79)","v":755.19999999999982},"n.d.",3790.6000359,"n.d."]
[null,"IV",{"$f":"IF(+'[1]EXT(T)'!M81=\"\",\"\",+'[1]EXT(T)'!M81)","v":435.33136908501365},{"$f":"IF(+'[1]EXT(T)'!N81=\"\",\"\",+'[1]EXT(T)'!N81)","v":197.26},{"$f":"IF(+'[1]EXT(T)'!O81=\"\",\"\",+'[1]EXT(T)'!O81)","v":"n.d."},{"$f":"IF(+'[1]EXT(T)'!P81=\"\",\"\",+'[1]EXT(T)'!P81)","v":"n.d."},{"$f":"IF(+'[1]EXT(T)'!Q81=\"\",\"\",+'[1]EXT(T)'!Q81)","v":95.2},{"$f":"IF(+'[1]EXT(T)'!R81=\"\",\"\",+'[1]EXT(T)'!R81)","v":"n.d."},{"$f":"IF(+'[1]EXT(T)'!S81=\"\",\"\",+'[1]EXT(T)'!S81)","v":538.1},{"$f":"IF(+'[1]EXT(T)'!U81=\"\",\"\",+'[1]EXT(T)'!U81)","v":727.79136908501368},{"$f":"IF(+'[1]EXT(T)'!V81=\"\",\"\",+'[1]EXT(T)'!V81)","v":1265.8913690850136},{"$f":"IF(+'[1]EXT(T)'!W81=\"\",\"\",+'[1]EXT(T)'!W81)","v":2088.4694271678418},{"$f":"IF(+'[1]EXT(T)'!X81=\"\",\"\",+'[1]EXT(T)'!X81)","v":1550.51},{"$f":"IF(+'[1]EXT(T)'!Y81=\"\",\"\",+'[1]EXT(T)'!Y81)","v":"n.d."},{"$f":"IF(+'[1]EXT(T)'!Z81=\"\",\"\",+'[1]EXT(T)'!Z81)","v":"n.d."},{"$f":"IF(+'[1]EXT(T)'!AA81=\"\",\"\",+'[1]EXT(T)'!AA81)","v":381.7},{"$f":"IF(+'[1]EXT(T)'!AB81=\"\",\"\",+'[1]EXT(T)'!AB81)","v":"n.d."},{"$f":"IF(+'[1]EXT(T)'!AC81=\"\",\"\",+'[1]EXT(T)'!AC81)","v":1898.6},{"$f":"IF(+'[1]EXT(T)'!AE81=\"\",\"\",+'[1]EXT(T)'!AE81)","v":4020.6794271678414},{"$f":"IF(+'[1]EXT(T)'!AF81=\"\",\"\",+'[1]EXT(T)'!AF81)","v":5919.2794271678413},{"$f":"IF(+'[1]EXT(T)'!AY81=\"\",\"\",+'[1]EXT(T)'!AY81)","v":14714.647687500003},{"$f":"IF(+'[1]EXT(T)'!AZ81=\"\",\"\",+'[1]EXT(T)'!AZ81)","v":"n.d."},{"$f":"IF(+'[1]EXT(T)'!AQ81=\"\",\"\",+'[1]EXT(T)'!AQ81-'[1]EXT(T)'!AQ80)","v":162.98333049999997},{"$f":"IF(+'[1]EXT(T)'!AR81=\"\",\"\",+'[1]EXT(T)'!AR81-'[1]EXT(T)'!AR80)","v":958.40000000000009},{"$f":"IF(+'[1]EXT(T)'!AS81=\"\",\"\",+'[1]EXT(T)'!AS81-'[1]EXT(T)'!AS80)","v":1069.3751000000002},{"$f":"IF(+'[1]EXT(T)'!AT81=\"\",\"\",+'[1]EXT(T)'!AT81-'[1]EXT(T)'!AT80)","v":653.04030000000057},{"$f":"IF(+'[1]EXT(T)'!AU81=\"\",\"\",+'[1]EXT(T)'!AU81-'[1]EXT(T)'!AU80)","v":203.70000000000005},{"$f":"IF(+'[1]EXT(T)'!AV81=\"\",\"\",+'[1]EXT(T)'!AV81-'[1]EXT(T)'!AV80)","v":817.60000000000036},"n.d.",3865.0987305000008,"n.d."]
[2008,"I",{"$f":"IF(+'[1]EXT(T)'!M82=\"\",\"\",+'[1]EXT(T)'!M82)","v":616.44828151763886},{"$f":"IF(+'[1]EXT(T)'!N82=\"\",\"\",+'[1]EXT(T)'!N82)","v":486.55},{"$f":"IF(+'[1]EXT(T)'!O82=\"\",\"\",+'[1]EXT(T)'!O82)","v":179.74802},{"$f":"IF(+'[1]EXT(T)'!P82=\"\",\"\",+'[1]EXT(T)'!P82)","v":"n.d."},{"$f":"IF(+'[1]EXT(T)'!Q82=\"\",\"\",+'[1]EXT(T)'!Q82)","v":125},{"$f":"IF(+'[1]EXT(T)'!R82=\"\",\"\",+'[1]EXT(T)'!R82)","v":"n.d."},{"$f":"IF(+'[1]EXT(T)'!S82=\"\",\"\",+'[1]EXT(T)'!S82)","v":470.5},{"$f":"IF(+'[1]EXT(T)'!U82=\"\",\"\",+'[1]EXT(T)'!U82)","v":1407.7463015176388},{"$f":"IF(+'[1]EXT(T)'!V82=\"\",\"\",+'[1]EXT(T)'!V82)","v":1878.2463015176388},{"$f":"IF(+'[1]EXT(T)'!W82=\"\",\"\",+'[1]EXT(T)'!W82)","v":616.44828151763886},{"$f":"IF(+'[1]EXT(T)'!X82=\"\",\"\",+'[1]EXT(T)'!X82)","v":486.55},{"$f":"IF(+'[1]EXT(T)'!Y82=\"\",\"\",+'[1]EXT(T)'!Y82)","v":179.74802},{"$f":"IF(+'[1]EXT(T)'!Z82=\"\",\"\",+'[1]EXT(T)'!Z82)","v":"n.d."},{"$f":"IF(+'[1]EXT(T)'!AA82=\"\",\"\",+'[1]EXT(T)'!AA82)","v":125},{"$f":"IF(+'[1]EXT(T)'!AB82=\"\",\"\",+'[1]EXT(T)'!AB82)","v":"n.d."},{"$f":"IF(+'[1]EXT(T)'!AC82=\"\",\"\",+'[1]EXT(T)'!AC82)","v":470.5},{"$f":"IF(+'[1]EXT(T)'!AE82=\"\",\"\",+'[1]EXT(T)'!AE82)","v":1407.7463015176388},{"$f":"IF(+'[1]EXT(T)'!AF82=\"\",\"\",+'[1]EXT(T)'!AF82)","v":1878.2463015176388},{"$f":"IF(+'[1]EXT(T)'!AY82=\"\",\"\",+'[1]EXT(T)'!AY82)","v":3636.5639941500003},{"$f":"IF(+'[1]EXT(T)'!AZ82=\"\",\"\",+'[1]EXT(T)'!AZ82)","v":"n.d."},{"$f":"IF(+'[1]EXT(T)'!AQ82=\"\",\"\",+'[1]EXT(T)'!AQ82)","v":132.6662365},{"$f":"IF(+'[1]EXT(T)'!AR82=\"\",\"\",+'[1]EXT(T)'!AR82)","v":904.74},{"$f":"IF(+'[1]EXT(T)'!AS82=\"\",\"\",+'[1]EXT(T)'!AS82)","v":973.3732},{"$f":"IF(+'[1]EXT(T)'!AT82=\"\",\"\",+'[1]EXT(T)'!AT82)","v":621.28455765000012},{"$f":"IF(+'[1]EXT(T)'!AU82=\"\",\"\",+'[1]EXT(T)'!AU82)","v":195.7},{"$f":"IF(+'[1]EXT(T)'!AV82=\"\",\"\",+'[1]EXT(T)'!AV82)","v":808.8},"n.d.",{"$f":"IF(OR(W75=\"\",X75=\"\",Y75=\"\",Z75=\"\",AA75=\"\",AB75=\"\"),\"\",W75+X75+Y75+Z75+AA75+AB75)","v":3636.5639941500003},"n.d."]
[null,"II",{"$f":"IF(+'[1]EXT(T)'!M83=\"\",\"\",+'[1]EXT(T)'!M83)","v":834.94382114654343},{"$f":"IF(+'[1]EXT(T)'!N83=\"\",\"\",+'[1]EXT(T)'!N83)","v":53.849999999999994},{"$f":"IF(+'[1]EXT(T)'!O83=\"\",\"\",+'[1]EXT(T)'!O83)","v":186.93606000000003},{"$f":"IF(+'[1]EXT(T)'!P83=\"\",\"\",+'[1]EXT(T)'!P83)","v":"n.d."},{"$f":"IF(+'[1]EXT(T)'!Q83=\"\",\"\",+'[1]EXT(T)'!Q83)","v":129.5},{"$f":"IF(+'[1]EXT(T)'!R83=\"\",\"\",+'[1]EXT(T)'!R83)","v":"n.d."},{"$f":"IF(+'[1]EXT(T)'!S83=\"\",\"\",+'[1]EXT(T)'!S83)","v":653.79999999999995},{"$f":"IF(+'[1]EXT(T)'!U83=\"\",\"\",+'[1]EXT(T)'!U83)","v":1205.2298811465434},{"$f":"IF(+'[1]EXT(T)'!V83=\"\",\"\",+'[1]EXT(T)'!V83)","v":1859.0298811465434},{"$f":"IF(+'[1]EXT(T)'!W83=\"\",\"\",+'[1]EXT(T)'!W83)","v":1451.3921026641824},{"$f":"IF(+'[1]EXT(T)'!X83=\"\",\"\",+'[1]EXT(T)'!X83)","v":540.4},{"$f":"IF(+'[1]EXT(T)'!Y83=\"\",\"\",+'[1]EXT(T)'!Y83)","v":366.68407999999999},{"$f":"IF(+'[1]EXT(T)'!Z83=\"\",\"\",+'[1]EXT(T)'!Z83)","v":"n.d."},{"$f":"IF(+'[1]EXT(T)'!AA83=\"\",\"\",+'[1]EXT(T)'!AA83)","v":254.5},{"$f":"IF(+'[1]EXT(T)'!AB83=\"\",\"\",+'[1]EXT(T)'!AB83)","v":"n.d."},{"$f":"IF(+'[1]EXT(T)'!AC83=\"\",\"\",+'[1]EXT(T)'!AC83)","v":1124.3},{"$f":"IF(+'[1]EXT(T)'!AE83=\"\",\"\",+'[1]EXT(T)'!AE83)","v":2612.9761826641825},{"$f":"IF(+'[1]EXT(T)'!AF83=\"\",\"\",+'[1]EXT(T)'!AF83)","v":3737.2761826641822},{"$f":"IF(+'[1]EXT(T)'!AY83=\"\",\"\",+'[1]EXT(T)'!AY83)","v":7667.1390958300008},{"$f":"IF(+'[1]EXT(T)'!AZ83=\"\",\"\",+'[1]EXT(T)'!AZ83)","v":"n.d."},{"$f":"IF(+'[1]EXT(T)'!AQ83=\"\",\"\",+'[1]EXT(T)'!AQ83-'[1]EXT(T)'!AQ82)","v":145.30890439999999},{"$f":"IF(+'[1]EXT(T)'!AR83=\"\",\"\",+'[1]EXT(T)'!AR83-'[1]EXT(T)'!AR82)","v":1010.8799999999999},{"$f":"IF(+'[1]EXT(T)'!AS83=\"\",\"\",+'[1]EXT(T)'!AS83-'[1]EXT(T)'!AS82)","v":1167.5671000000002},{"$f":"IF(+'[1]EXT(T)'!AT83=\"\",\"\",+'[1]EXT(T)'!AT83-'[1]EXT(T)'!AT82)","v":704.5190972800001},{"$f":"IF(+'[1]EXT(T)'!AU83=\"\",\"\",+'[1]EXT(T)'!AU83-'[1]EXT(T)'!AU82)","v":208.10000000000002},{"$f":"IF(+'[1]EXT(T)'!AV83=\"\",\"\",+'[1]EXT(T)'!AV83-'[1]EXT(T)'!AV82)","v":794.2},"n.d.",4030.5751016800004,"n.d."]
[null,"III",{"$f":"IF(+'[1]EXT(T)'!M84=\"\",\"\",+'[1]EXT(T)'!M84)","v":390.69467712640392},{"$f":"IF(+'[1]EXT(T)'!N84=\"\",\"\",+'[1]EXT(T)'!N84)","v":31.800000000000011},{"$f":"IF(+'[1]EXT(T)'!O84=\"\",\"\",+'[1]EXT(T)'!O84)","v":182.06613999999999},{"$f":"IF(+'[1]EXT(T)'!P84=\"\",\"\",+'[1]EXT(T)'!P84)","v":"n.d."},{"$f":"IF(+'[1]EXT(T)'!Q84=\"\",\"\",+'[1]EXT(T)'!Q84)","v":202.3},{"$f":"IF(+'[1]EXT(T)'!R84=\"\",\"\",+'[1]EXT(T)'!R84)","v":"n.d."},{"$f":"IF(+'[1]EXT(T)'!S84=\"\",\"\",+'[1]EXT(T)'!S84)","v":413.40000000000003},{"$f":"IF(+'[1]EXT(T)'!U84=\"\",\"\",+'[1]EXT(T)'!U84)","v":806.86081712640384},{"$f":"IF(+'[1]EXT(T)'!V84=\"\",\"\",+'[1]EXT(T)'!V84)","v":1220.2608171264039},{"$f":"IF(+'[1]EXT(T)'!W84=\"\",\"\",+'[1]EXT(T)'!W84)","v":1842.0867797905862},{"$f":"IF(+'[1]EXT(T)'!X84=\"\",\"\",+'[1]EXT(T)'!X84)","v":572.20000000000005},{"$f":"IF(+'[1]EXT(T)'!Y84=\"\",\"\",+'[1]EXT(T)'!Y84)","v":548.75022000000001},{"$f":"IF(+'[1]EXT(T)'!Z84=\"\",\"\",+'[1]EXT(T)'!Z84)","v":"n.d."},{"$f":"IF(+'[1]EXT(T)'!AA84=\"\",\"\",+'[1]EXT(T)'!AA84)","v":456.8},{"$f":"IF(+'[1]EXT(T)'!AB84=\"\",\"\",+'[1]EXT(T)'!AB84)","v":"n.d."},{"$f":"IF(+'[1]EXT(T)'!AC84=\"\",\"\",+'[1]EXT(T)'!AC84)","v":1537.7},{"$f":"IF(+'[1]EXT(T)'!AE84=\"\",\"\",+'[1]EXT(T)'!AE84)","v":3419.8369997905866},{"$f":"IF(+'[1]EXT(T)'!AF84=\"\",\"\",+'[1]EXT(T)'!AF84)","v":4957.5369997905864},{"$f":"IF(+'[1]EXT(T)'!AY84=\"\",\"\",+'[1]EXT(T)'!AY84)","v":11645.350822230001},{"$f":"IF(+'[1]EXT(T)'!AZ84=\"\",\"\",+'[1]EXT(T)'!AZ84)","v":"n.d."},{"$f":"IF(+'[1]EXT(T)'!AQ84=\"\",\"\",+'[1]EXT(T)'!AQ84-'[1]EXT(T)'!AQ83)","v":152.13846619999998},{"$f":"IF(+'[1]EXT(T)'!AR84=\"\",\"\",+'[1]EXT(T)'!AR84-'[1]EXT(T)'!AR83)","v":931.44},{"$f":"IF(+'[1]EXT(T)'!AS84=\"\",\"\",+'[1]EXT(T)'!AS84-'[1]EXT(T)'!AS83)","v":1155.0393000000004},{"$f":"IF(+'[1]EXT(T)'!AT84=\"\",\"\",+'[1]EXT(T)'!AT84-'[1]EXT(T)'!AT83)","v":706.39396020000027},{"$f":"IF(+'[1]EXT(T)'!AU84=\"\",\"\",+'[1]EXT(T)'!AU84-'[1]EXT(T)'!AU83)","v":207.2},{"$f":"IF(+'[1]EXT(T)'!AV84=\"\",\"\",+'[1]EXT(T)'!AV84-'[1]EXT(T)'!AV83)","v":826},"n.d.",3978.2117264000008,"n.d."]
[null,"IV",{"$f":"IF(+'[1]EXT(T)'!M85=\"\",\"\",+'[1]EXT(T)'!M85)","v":477.85439710530824},{"$f":"IF(+'[1]EXT(T)'!N85=\"\",\"\",+'[1]EXT(T)'!N85)","v":330.85},{"$f":"IF(+'[1]EXT(T)'!O85=\"\",\"\",+'[1]EXT(T)'!O85)","v":188.86088999999998},{"$f":"IF(+'[1]EXT(T)'!P85=\"\",\"\",+'[1]EXT(T)'!P85)","v":"n.d."},{"$f":"IF(+'[1]EXT(T)'!Q85=\"\",\"\",+'[1]EXT(T)'!Q85)","v":170.5},{"$f":"IF(+'[1]EXT(T)'!R85=\"\",\"\",+'[1]EXT(T)'!R85)","v":"n.d."},{"$f":"IF(+'[1]EXT(T)'!S85=\"\",\"\",+'[1]EXT(T)'!S85)","v":609},{"$f":"IF(+'[1]EXT(T)'!U85=\"\",\"\",+'[1]EXT(T)'!U85)","v":1168.0652871053082},{"$f":"IF(+'[1]EXT(T)'!V85=\"\",\"\",+'[1]EXT(T)'!V85)","v":1777.0652871053082},{"$f":"IF(+'[1]EXT(T)'!W85=\"\",\"\",+'[1]EXT(T)'!W85)","v":2319.9411768958944},{"$f":"IF(+'[1]EXT(T)'!X85=\"\",\"\",+'[1]EXT(T)'!X85)","v":903.05000000000007},{"$f":"IF(+'[1]EXT(T)'!Y85=\"\",\"\",+'[1]EXT(T)'!Y85)","v":737.61111000000005},{"$f":"IF(+'[1]EXT(T)'!Z85=\"\",\"\",+'[1]EXT(T)'!Z85)","v":"n.d."},{"$f":"IF(+'[1]EXT(T)'!AA85=\"\",\"\",+'[1]EXT(T)'!AA85)","v":627.29999999999995},{"$f":"IF(+'[1]EXT(T)'!AB85=\"\",\"\",+'[1]EXT(T)'!AB85)","v":"n.d."},{"$f":"IF(+'[1]EXT(T)'!AC85=\"\",\"\",+'[1]EXT(T)'!AC85)","v":2146.6999999999998},{"$f":"IF(+'[1]EXT(T)'!AE85=\"\",\"\",+'[1]EXT(T)'!AE85)","v":4587.9022868958946},{"$f":"IF(+'[1]EXT(T)'!AF85=\"\",\"\",+'[1]EXT(T)'!AF85)","v":6734.6022868958944},{"$f":"IF(+'[1]EXT(T)'!AY85=\"\",\"\",+'[1]EXT(T)'!AY85)","v":15387.371437070002},{"$f":"IF(+'[1]EXT(T)'!AZ85=\"\",\"\",+'[1]EXT(T)'!AZ85)","v":"n.d."},{"$f":"IF(+'[1]EXT(T)'!AQ85=\"\",\"\",+'[1]EXT(T)'!AQ85-'[1]EXT(T)'!AQ84)","v":153.76619790000007},{"$f":"IF(+'[1]EXT(T)'!AR85=\"\",\"\",+'[1]EXT(T)'!AR85-'[1]EXT(T)'!AR84)","v":895.02000000000044},{"$f":"IF(+'[1]EXT(T)'!AS85=\"\",\"\",+'[1]EXT(T)'!AS85-'[1]EXT(T)'!AS84)","v":1018.7510000000002},{"$f":"IF(+'[1]EXT(T)'!AT85=\"\",\"\",+'[1]EXT(T)'!AT85-'[1]EXT(T)'!AT84)","v":674.88341693999973},{"$f":"IF(+'[1]EXT(T)'!AU85=\"\",\"\",+'[1]EXT(T)'!AU85-'[1]EXT(T)'!AU84)","v":207.10000000000002},{"$f":"IF(+'[1]EXT(T)'!AV85=\"\",\"\",+'[1]EXT(T)'!AV85-'[1]EXT(T)'!AV84)","v":792.5},"n.d.",3742.0206148400002,"n.d."]
[2009,"I",{"$f":"IF(+'[1]EXT(T)'!M86=\"\",\"\",+'[1]EXT(T)'!M86)","v":561.6165942573067},{"$f":"IF(+'[1]EXT(T)'!N86=\"\",\"\",+'[1]EXT(T)'!N86)","v":-192.7},{"$f":"IF(+'[1]EXT(T)'!O86=\"\",\"\",+'[1]EXT(T)'!O86)","v":130.73408999999998},{"$f":"IF(+'[1]EXT(T)'!P86=\"\",\"\",+'[1]EXT(T)'!P86)","v":131.73761397840568},{"$f":"IF(+'[1]EXT(T)'!Q86=\"\",\"\",+'[1]EXT(T)'!Q86)","v":127.1},{"$f":"IF(+'[1]EXT(T)'!R86=\"\",\"\",+'[1]EXT(T)'!R86)","v":"n.d."},{"$f":"IF(+'[1]EXT(T)'!S86=\"\",\"\",+'[1]EXT(T)'!S86)","v":483.79999999999995},{"$f":"IF(+'[1]EXT(T)'!U86=\"\",\"\",+'[1]EXT(T)'!U86)","v":758.48829823571236},{"$f":"IF(+'[1]EXT(T)'!V86=\"\",\"\",+'[1]EXT(T)'!V86)","v":1242.2882982357123},{"$f":"IF(+'[1]EXT(T)'!W86=\"\",\"\",+'[1]EXT(T)'!W86)","v":561.6165942573067},{"$f":"IF(+'[1]EXT(T)'!X86=\"\",\"\",+'[1]EXT(T)'!X86)","v":-192.7},{"$f":"IF(+'[1]EXT(T)'!Y86=\"\",\"\",+'[1]EXT(T)'!Y86)","v":130.73408999999998},{"$f":"IF(+'[1]EXT(T)'!Z86=\"\",\"\",+'[1]EXT(T)'!Z86)","v":131.73761397840568},{"$f":"IF(+'[1]EXT(T)'!AA86=\"\",\"\",+'[1]EXT(T)'!AA86)","v":127.1},{"$f":"IF(+'[1]EXT(T)'!AB86=\"\",\"\",+'[1]EXT(T)'!AB86)","v":"n.d."},{"$f":"IF(+'[1]EXT(T)'!AC86=\"\",\"\",+'[1]EXT(T)'!AC86)","v":483.79999999999995},{"$f":"IF(+'[1]EXT(T)'!AE86=\"\",\"\",+'[1]EXT(T)'!AE86)","v":758.48829823571236},{"$f":"IF(+'[1]EXT(T)'!AF86=\"\",\"\",+'[1]EXT(T)'!AF86)","v":1242.2882982357123},{"$f":"IF(+'[1]EXT(T)'!AY86=\"\",\"\",+'[1]EXT(T)'!AY86)","v":3416.3621594600008},{"$f":"IF(+'[1]EXT(T)'!AZ86=\"\",\"\",+'[1]EXT(T)'!AZ86)","v":3491.7621594600009},{"$f":"IF(+'[1]EXT(T)'!AQ86=\"\",\"\",+'[1]EXT(T)'!AQ86)","v":123.3475945},{"$f":"IF(+'[1]EXT(T)'!AR86=\"\",\"\",+'[1]EXT(T)'!AR86)","v":828.87000000000012},{"$f":"IF(+'[1]EXT(T)'!AS86=\"\",\"\",+'[1]EXT(T)'!AS86)","v":916.33730000000014},{"$f":"IF(+'[1]EXT(T)'!AT86=\"\",\"\",+'[1]EXT(T)'!AT86)","v":609.60726496000018},{"$f":"IF(+'[1]EXT(T)'!AU86=\"\",\"\",+'[1]EXT(T)'!AU86)","v":195.9},{"$f":"IF(+'[1]EXT(T)'!AV86=\"\",\"\",+'[1]EXT(T)'!AV86)","v":742.3},{"$f":"IF(+'[1]EXT(T)'!AW86=\"\",\"\",+'[1]EXT(T)'!AW86)","v":75.400000000000006},{"$f":"IF(OR(W79=\"\",X79=\"\",Y79=\"\",Z79=\"\",AA79=\"\",AB79=\"\"),\"\",W79+X79+Y79+Z79+AA79+AB79)","v":3416.3621594600008},{"$f":"IF(OR(X79=\"\",Y79=\"\",Z79=\"\",AA79=\"\",AB79=\"\",AC79=\"\",W79=\"\"),\"\",X79+W79+Y79+Z79+AA79+AB79+AC79)","v":3491.7621594600009}]
[null,"II",{"$f":"IF(+'[1]EXT(T)'!M87=\"\",\"\",+'[1]EXT(T)'!M87)","v":243.78942968760867},{"$f":"IF(+'[1]EXT(T)'!N87=\"\",\"\",+'[1]EXT(T)'!N87)","v":65.099999999999994},{"$f":"IF(+'[1]EXT(T)'!O87=\"\",\"\",+'[1]EXT(T)'!O87)","v":125.36618000000001},{"$f":"IF(+'[1]EXT(T)'!P87=\"\",\"\",+'[1]EXT(T)'!P87)","v":134.17853984758472},{"$f":"IF(+'[1]EXT(T)'!Q87=\"\",\"\",+'[1]EXT(T)'!Q87)","v":105.8},{"$f":"IF(+'[1]EXT(T)'!R87=\"\",\"\",+'[1]EXT(T)'!R87)","v":"n.d."},{"$f":"IF(+'[1]EXT(T)'!S87=\"\",\"\",+'[1]EXT(T)'!S87)","v":415},{"$f":"IF(+'[1]EXT(T)'!U87=\"\",\"\",+'[1]EXT(T)'!U87)","v":674.2341495351933},{"$f":"IF(+'[1]EXT(T)'!V87=\"\",\"\",+'[1]EXT(T)'!V87)","v":1089.2341495351934},{"$f":"IF(+'[1]EXT(T)'!W87=\"\",\"\",+'[1]EXT(T)'!W87)","v":805.40602394491543},{"$f":"IF(+'[1]EXT(T)'!X87=\"\",\"\",+'[1]EXT(T)'!X87)","v":-127.6},{"$f":"IF(+'[1]EXT(T)'!Y87=\"\",\"\",+'[1]EXT(T)'!Y87)","v":256.10027000000002},{"$f":"IF(+'[1]EXT(T)'!Z87=\"\",\"\",+'[1]EXT(T)'!Z87)","v":265.91615382599036},{"$f":"IF(+'[1]EXT(T)'!AA87=\"\",\"\",+'[1]EXT(T)'!AA87)","v":232.89999999999998},{"$f":"IF(+'[1]EXT(T)'!AB87=\"\",\"\",+'[1]EXT(T)'!AB87)","v":"n.d."},{"$f":"IF(+'[1]EXT(T)'!AC87=\"\",\"\",+'[1]EXT(T)'!AC87)","v":898.8},{"$f":"IF(+'[1]EXT(T)'!AE87=\"\",\"\",+'[1]EXT(T)'!AE87)","v":1432.7224477709055},{"$f":"IF(+'[1]EXT(T)'!AF87=\"\",\"\",+'[1]EXT(T)'!AF87)","v":2331.5224477709057},{"$f":"IF(+'[1]EXT(T)'!AY87=\"\",\"\",+'[1]EXT(T)'!AY87)","v":6985.7703709900006},{"$f":"IF(+'[1]EXT(T)'!AZ87=\"\",\"\",+'[1]EXT(T)'!AZ87)","v":7139.7683709900002},{"$f":"IF(+'[1]EXT(T)'!AQ87=\"\",\"\",+'[1]EXT(T)'!AQ87-'[1]EXT(T)'!AQ86)","v":130.67727739999998},{"$f":"IF(+'[1]EXT(T)'!AR87=\"\",\"\",+'[1]EXT(T)'!AR87-'[1]EXT(T)'!AR86)","v":865.03},{"$f":"IF(+'[1]EXT(T)'!AS87=\"\",\"\",+'[1]EXT(T)'!AS87-'[1]EXT(T)'!AS86)","v":1020.8684000000001},{"$f":"IF(+'[1]EXT(T)'!AT87=\"\",\"\",+'[1]EXT(T)'!AT87-'[1]EXT(T)'!AT86)","v":607.53253413000027},{"$f":"IF(+'[1]EXT(T)'!AU87=\"\",\"\",+'[1]EXT(T)'!AU87-'[1]EXT(T)'!AU86)","v":190.79999999999998},{"$f":"IF(+'[1]EXT(T)'!AV87=\"\",\"\",+'[1]EXT(T)'!AV87-'[1]EXT(T)'!AV86)","v":754.5},{"$f":"IF(+'[1]EXT(T)'!AW87=\"\",\"\",+'[1]EXT(T)'!AW87-'[1]EXT(T)'!AW86)","v":78.597999999999985},3569.4082115300007,3648.0062115300007]
[null,"III",{"$f":"IF(+'[1]EXT(T)'!M88=\"\",\"\",+'[1]EXT(T)'!M88)","v":244.25435564250077},{"$f":"IF(+'[1]EXT(T)'!N88=\"\",\"\",+'[1]EXT(T)'!N88)","v":143.96},{"$f":"IF(+'[1]EXT(T)'!O88=\"\",\"\",+'[1]EXT(T)'!O88)","v":127.84493999999999},{"$f":"IF(+'[1]EXT(T)'!P88=\"\",\"\",+'[1]EXT(T)'!P88)","v":127.97435825662515},{"$f":"IF(+'[1]EXT(T)'!Q88=\"\",\"\",+'[1]EXT(T)'!Q88)","v":58.9},{"$f":"IF(+'[1]EXT(T)'!R88=\"\",\"\",+'[1]EXT(T)'!R88)","v":"n.d."},{"$f":"IF(+'[1]EXT(T)'!S88=\"\",\"\",+'[1]EXT(T)'!S88)","v":135.39999999999995},{"$f":"IF(+'[1]EXT(T)'!U88=\"\",\"\",+'[1]EXT(T)'!U88)","v":702.93365389912583},{"$f":"IF(+'[1]EXT(T)'!V88=\"\",\"\",+'[1]EXT(T)'!V88)","v":838.33365389912581},{"$f":"IF(+'[1]EXT(T)'!W88=\"\",\"\",+'[1]EXT(T)'!W88)","v":1049.6603795874162},{"$f":"IF(+'[1]EXT(T)'!X88=\"\",\"\",+'[1]EXT(T)'!X88)","v":16.360000000000014},{"$f":"IF(+'[1]EXT(T)'!Y88=\"\",\"\",+'[1]EXT(T)'!Y88)","v":383.94521000000003},{"$f":"IF(+'[1]EXT(T)'!Z88=\"\",\"\",+'[1]EXT(T)'!Z88)","v":393.89051208261549},{"$f":"IF(+'[1]EXT(T)'!AA88=\"\",\"\",+'[1]EXT(T)'!AA88)","v":291.79999999999995},{"$f":"IF(+'[1]EXT(T)'!AB88=\"\",\"\",+'[1]EXT(T)'!AB88)","v":"n.d."},{"$f":"IF(+'[1]EXT(T)'!AC88=\"\",\"\",+'[1]EXT(T)'!AC88)","v":1034.1999999999998},{"$f":"IF(+'[1]EXT(T)'!AE88=\"\",\"\",+'[1]EXT(T)'!AE88)","v":2135.6561016700316},{"$f":"IF(+'[1]EXT(T)'!AF88=\"\",\"\",+'[1]EXT(T)'!AF88)","v":3169.8561016700314},{"$f":"IF(+'[1]EXT(T)'!AY88=\"\",\"\",+'[1]EXT(T)'!AY88)","v":10543.450799509999},{"$f":"IF(+'[1]EXT(T)'!AZ88=\"\",\"\",+'[1]EXT(T)'!AZ88)","v":10779.34479951},{"$f":"IF(+'[1]EXT(T)'!AQ88=\"\",\"\",+'[1]EXT(T)'!AQ88-'[1]EXT(T)'!AQ87)","v":121.57506319999999},{"$f":"IF(+'[1]EXT(T)'!AR88=\"\",\"\",+'[1]EXT(T)'!AR88-'[1]EXT(T)'!AR87)","v":829.98},{"$f":"IF(+'[1]EXT(T)'!AS88=\"\",\"\",+'[1]EXT(T)'!AS88-'[1]EXT(T)'!AS87)","v":1035.1042},{"$f":"IF(+'[1]EXT(T)'!AT88=\"\",\"\",+'[1]EXT(T)'!AT88-'[1]EXT(T)'!AT87)","v":595.82116532000009},{"$f":"IF(+'[1]EXT(T)'!AU88=\"\",\"\",+'[1]EXT(T)'!AU88-'[1]EXT(T)'!AU87)","v":184.2},{"$f":"IF(+'[1]EXT(T)'!AV88=\"\",\"\",+'[1]EXT(T)'!AV88-'[1]EXT(T)'!AV87)","v":790.99999999999977},{"$f":"IF(+'[1]EXT(T)'!AW88=\"\",\"\",+'[1]EXT(T)'!AW88-'[1]EXT(T)'!AW87)","v":81.896000000000015},3557.6804285199996,3639.5764285199998]
[null,"IV",{"$f":"IF(+'[1]EXT(T)'!M89=\"\",\"\",+'[1]EXT(T)'!M89)","v":393.90932196121139},{"$f":"IF(+'[1]EXT(T)'!N89=\"\",\"\",+'[1]EXT(T)'!N89)","v":349.47},{"$f":"IF(+'[1]EXT(T)'!O89=\"\",\"\",+'[1]EXT(T)'!O89)","v":138.37890999999999},{"$f":"IF(+'[1]EXT(T)'!P89=\"\",\"\",+'[1]EXT(T)'!P89)","v":114.95758641209315},{"$f":"IF(+'[1]EXT(T)'!Q89=\"\",\"\",+'[1]EXT(T)'!Q89)","v":142.1},{"$f":"IF(+'[1]EXT(T)'!R89=\"\",\"\",+'[1]EXT(T)'!R89)","v":"n.d."},{"$f":"IF(+'[1]EXT(T)'!S89=\"\",\"\",+'[1]EXT(T)'!S89)","v":225.09999999999997},{"$f":"IF(+'[1]EXT(T)'!U89=\"\",\"\",+'[1]EXT(T)'!U89)","v":1138.8158183733046},{"$f":"IF(+'[1]EXT(T)'!V89=\"\",\"\",+'[1]EXT(T)'!V89)","v":1363.9158183733045},{"$f":"IF(+'[1]EXT(T)'!W89=\"\",\"\",+'[1]EXT(T)'!W89)","v":1443.5697015486276},{"$f":"IF(+'[1]EXT(T)'!X89=\"\",\"\",+'[1]EXT(T)'!X89)","v":365.83000000000004},{"$f":"IF(+'[1]EXT(T)'!Y89=\"\",\"\",+'[1]EXT(T)'!Y89)","v":522.32411999999999},{"$f":"IF(+'[1]EXT(T)'!Z89=\"\",\"\",+'[1]EXT(T)'!Z89)","v":508.84809849470867},{"$f":"IF(+'[1]EXT(T)'!AA89=\"\",\"\",+'[1]EXT(T)'!AA89)","v":433.9},{"$f":"IF(+'[1]EXT(T)'!AB89=\"\",\"\",+'[1]EXT(T)'!AB89)","v":"n.d."},{"$f":"IF(+'[1]EXT(T)'!AC89=\"\",\"\",+'[1]EXT(T)'!AC89)","v":1259.2999999999997},{"$f":"IF(+'[1]EXT(T)'!AE89=\"\",\"\",+'[1]EXT(T)'!AE89)","v":3274.4719200433365},{"$f":"IF(+'[1]EXT(T)'!AF89=\"\",\"\",+'[1]EXT(T)'!AF89)","v":4533.7719200433357},{"$f":"IF(+'[1]EXT(T)'!AY89=\"\",\"\",+'[1]EXT(T)'!AY89)","v":14000.728877810001},{"$f":"IF(+'[1]EXT(T)'!AZ89=\"\",\"\",+'[1]EXT(T)'!AZ89)","v":14328.124877810002},{"$f":"IF(+'[1]EXT(T)'!AQ89=\"\",\"\",+'[1]EXT(T)'!AQ89-'[1]EXT(T)'!AQ88)","v":112.9579382},{"$f":"IF(+'[1]EXT(T)'!AR89=\"\",\"\",+'[1]EXT(T)'!AR89-'[1]EXT(T)'!AR88)","v":863.27000000000044},{"$f":"IF(+'[1]EXT(T)'!AS89=\"\",\"\",+'[1]EXT(T)'!AS89-'[1]EXT(T)'!AS88)","v":939.97690000000011},{"$f":"IF(+'[1]EXT(T)'!AT89=\"\",\"\",+'[1]EXT(T)'!AT89-'[1]EXT(T)'!AT88)","v":589.87324009999975},{"$f":"IF(+'[1]EXT(T)'!AU89=\"\",\"\",+'[1]EXT(T)'!AU89-'[1]EXT(T)'!AU88)","v":197.5},{"$f":"IF(+'[1]EXT(T)'!AV89=\"\",\"\",+'[1]EXT(T)'!AV89-'[1]EXT(T)'!AV88)","v":753.70000000000027},{"$f":"IF(+'[1]EXT(T)'!AW89=\"\",\"\",+'[1]EXT(T)'!AW89-'[1]EXT(T)'!AW88)","v":91.50200000000001},3457.2780783000003,3548.7800783000002]
[2010,"I",{"$f":"IF(+'[1]EXT(T)'!M90=\"\",\"\",+'[1]EXT(T)'!M90)","v":492.70524339345383},{"$f":"IF(+'[1]EXT(T)'!N90=\"\",\"\",+'[1]EXT(T)'!N90)","v":-275.54000000000002},{"$f":"IF(+'[1]EXT(T)'!O90=\"\",\"\",+'[1]EXT(T)'!O90)","v":171.79656},{"$f":"IF(+'[1]EXT(T)'!P90=\"\",\"\",+'[1]EXT(T)'!P90)","v":476.21133493471467},{"$f":"IF(+'[1]EXT(T)'!Q90=\"\",\"\",+'[1]EXT(T)'!Q90)","v":105.8},{"$f":"IF(+'[1]EXT(T)'!R90=\"\",\"\",+'[1]EXT(T)'!R90)","v":683.4},{"$f":"IF(+'[1]EXT(T)'!S90=\"\",\"\",+'[1]EXT(T)'!S90)","v":925.9},{"$f":"IF(+'[1]EXT(T)'!U90=\"\",\"\",+'[1]EXT(T)'!U90)","v":1654.3731383281684},{"$f":"IF(+'[1]EXT(T)'!V90=\"\",\"\",+'[1]EXT(T)'!V90)","v":2580.2731383281684},{"$f":"IF(+'[1]EXT(T)'!W90=\"\",\"\",+'[1]EXT(T)'!W90)","v":492.70524339345383},{"$f":"IF(+'[1]EXT(T)'!X90=\"\",\"\",+'[1]EXT(T)'!X90)","v":-275.54000000000002},{"$f":"IF(+'[1]EXT(T)'!Y90=\"\",\"\",+'[1]EXT(T)'!Y90)","v":171.79656},{"$f":"IF(+'[1]EXT(T)'!Z90=\"\",\"\",+'[1]EXT(T)'!Z90)","v":476.21133493471467},{"$f":"IF(+'[1]EXT(T)'!AA90=\"\",\"\",+'[1]EXT(T)'!AA90)","v":105.8},{"$f":"IF(+'[1]EXT(T)'!AB90=\"\",\"\",+'[1]EXT(T)'!AB90)","v":683.4},{"$f":"IF(+'[1]EXT(T)'!AC90=\"\",\"\",+'[1]EXT(T)'!AC90)","v":925.9},{"$f":"IF(+'[1]EXT(T)'!AE90=\"\",\"\",+'[1]EXT(T)'!AE90)","v":1654.3731383281684},{"$f":"IF(+'[1]EXT(T)'!AF90=\"\",\"\",+'[1]EXT(T)'!AF90)","v":2580.2731383281684},{"$f":"IF(+'[1]EXT(T)'!AY90=\"\",\"\",+'[1]EXT(T)'!AY90)","v":3538.7320745123257},{"$f":"IF(+'[1]EXT(T)'!AZ90=\"\",\"\",+'[1]EXT(T)'!AZ90)","v":3634.7320745123257},{"$f":"IF(+'[1]EXT(T)'!AQ90=\"\",\"\",+'[1]EXT(T)'!AQ90)","v":116.6630777},{"$f":"IF(+'[1]EXT(T)'!AR90=\"\",\"\",+'[1]EXT(T)'!AR90)","v":833.1400000000001},{"$f":"IF(+'[1]EXT(T)'!AS90=\"\",\"\",+'[1]EXT(T)'!AS90)","v":890.59530000000007},{"$f":"IF(+'[1]EXT(T)'!AT90=\"\",\"\",+'[1]EXT(T)'!AT90)","v":572.34156342000017},{"$f":"IF(+'[1]EXT(T)'!AU90=\"\",\"\",+'[1]EXT(T)'!AU90)","v":201.8},{"$f":"IF(+'[1]EXT(T)'!AV90=\"\",\"\",+'[1]EXT(T)'!AV90)","v":924.19213339232522},{"$f":"IF(+'[1]EXT(T)'!AW90=\"\",\"\",+'[1]EXT(T)'!AW90)","v":96},{"$f":"IF(OR(W83=\"\",X83=\"\",Y83=\"\",Z83=\"\",AA83=\"\",AB83=\"\"),\"\",W83+X83+Y83+Z83+AA83+AB83)","v":3538.7320745123257},3634.7320745123257]
[null,"II",{"$f":"IF(+'[1]EXT(T)'!M91=\"\",\"\",+'[1]EXT(T)'!M91)","v":443.00536426466795},{"$f":"IF(+'[1]EXT(T)'!N91=\"\",\"\",+'[1]EXT(T)'!N91)","v":13.32},{"$f":"IF(+'[1]EXT(T)'!O91=\"\",\"\",+'[1]EXT(T)'!O91)","v":148.92963999999998},{"$f":"IF(+'[1]EXT(T)'!P91=\"\",\"\",+'[1]EXT(T)'!P91)","v":59.900779574713582},{"$f":"IF(+'[1]EXT(T)'!Q91=\"\",\"\",+'[1]EXT(T)'!Q91)","v":101.1},{"$f":"IF(+'[1]EXT(T)'!R91=\"\",\"\",+'[1]EXT(T)'!R91)","v":212.3},{"$f":"IF(+'[1]EXT(T)'!S91=\"\",\"\",+'[1]EXT(T)'!S91)","v":771.09999999999991},{"$f":"IF(+'[1]EXT(T)'!U91=\"\",\"\",+'[1]EXT(T)'!U91)","v":978.55578383938155},{"$f":"IF(+'[1]EXT(T)'!V91=\"\",\"\",+'[1]EXT(T)'!V91)","v":1749.6557838393815},{"$f":"IF(+'[1]EXT(T)'!W91=\"\",\"\",+'[1]EXT(T)'!W91)","v":935.71060765812172},{"$f":"IF(+'[1]EXT(T)'!X91=\"\",\"\",+'[1]EXT(T)'!X91)","v":-262.22000000000003},{"$f":"IF(+'[1]EXT(T)'!Y91=\"\",\"\",+'[1]EXT(T)'!Y91)","v":320.72619999999995},{"$f":"IF(+'[1]EXT(T)'!Z91=\"\",\"\",+'[1]EXT(T)'!Z91)","v":536.11211450942824},{"$f":"IF(+'[1]EXT(T)'!AA91=\"\",\"\",+'[1]EXT(T)'!AA91)","v":206.89999999999998},{"$f":"IF(+'[1]EXT(T)'!AB91=\"\",\"\",+'[1]EXT(T)'!AB91)","v":895.7},{"$f":"IF(+'[1]EXT(T)'!AC91=\"\",\"\",+'[1]EXT(T)'!AC91)","v":1697},{"$f":"IF(+'[1]EXT(T)'!AE91=\"\",\"\",+'[1]EXT(T)'!AE91)","v":2632.9289221675499},{"$f":"IF(+'[1]EXT(T)'!AF91=\"\",\"\",+'[1]EXT(T)'!AF91)","v":4329.9289221675499},{"$f":"IF(+'[1]EXT(T)'!AY91=\"\",\"\",+'[1]EXT(T)'!AY91)","v":7420.5132580146983},{"$f":"IF(+'[1]EXT(T)'!AZ91=\"\",\"\",+'[1]EXT(T)'!AZ91)","v":7612.5132580146983},{"$f":"IF(+'[1]EXT(T)'!AQ91=\"\",\"\",+'[1]EXT(T)'!AQ91-'[1]EXT(T)'!AQ90)","v":131.40271490000001},{"$f":"IF(+'[1]EXT(T)'!AR91=\"\",\"\",+'[1]EXT(T)'!AR91-'[1]EXT(T)'!AR90)","v":915.61999999999989},{"$f":"IF(+'[1]EXT(T)'!AS91=\"\",\"\",+'[1]EXT(T)'!AS91-'[1]EXT(T)'!AS90)","v":1095.7157999999999},{"$f":"IF(+'[1]EXT(T)'!AT91=\"\",\"\",+'[1]EXT(T)'!AT91-'[1]EXT(T)'!AT90)","v":666.49505022000028},{"$f":"IF(+'[1]EXT(T)'!AU91=\"\",\"\",+'[1]EXT(T)'!AU91-'[1]EXT(T)'!AU90)","v":197.5},{"$f":"IF(+'[1]EXT(T)'!AV91=\"\",\"\",+'[1]EXT(T)'!AV91-'[1]EXT(T)'!AV90)","v":875.04761838237152},{"$f":"IF(+'[1]EXT(T)'!AW91=\"\",\"\",+'[1]EXT(T)'!AW91-'[1]EXT(T)'!AW90)","v":96},3881.7811835023722,3977.7811835023722]
[null,"III",{"$f":"IF(+'[1]EXT(T)'!M92=\"\",\"\",+'[1]EXT(T)'!M92)","v":317.35703802014143},{"$f":"IF(+'[1]EXT(T)'!N92=\"\",\"\",+'[1]EXT(T)'!N92)","v":-149.94},{"$f":"IF(+'[1]EXT(T)'!O92=\"\",\"\",+'[1]EXT(T)'!O92)","v":176.6019},{"$f":"IF(+'[1]EXT(T)'!P92=\"\",\"\",+'[1]EXT(T)'!P92)","v":167.35125183728988},{"$f":"IF(+'[1]EXT(T)'!Q92=\"\",\"\",+'[1]EXT(T)'!Q92)","v":116},{"$f":"IF(+'[1]EXT(T)'!R92=\"\",\"\",+'[1]EXT(T)'!R92)","v":639.11125217884432},{"$f":"IF(+'[1]EXT(T)'!S92=\"\",\"\",+'[1]EXT(T)'!S92)","v":403.6},{"$f":"IF(+'[1]EXT(T)'!U92=\"\",\"\",+'[1]EXT(T)'!U92)","v":1266.4814420362757},{"$f":"IF(+'[1]EXT(T)'!V92=\"\",\"\",+'[1]EXT(T)'!V92)","v":1670.0814420362758},{"$f":"IF(+'[1]EXT(T)'!W92=\"\",\"\",+'[1]EXT(T)'!W92)","v":1253.067645678263},{"$f":"IF(+'[1]EXT(T)'!X92=\"\",\"\",+'[1]EXT(T)'!X92)","v":-412.16},{"$f":"IF(+'[1]EXT(T)'!Y92=\"\",\"\",+'[1]EXT(T)'!Y92)","v":497.32809999999995},{"$f":"IF(+'[1]EXT(T)'!Z92=\"\",\"\",+'[1]EXT(T)'!Z92)","v":703.46336634671809},{"$f":"IF(+'[1]EXT(T)'!AA92=\"\",\"\",+'[1]EXT(T)'!AA92)","v":322.89999999999998},{"$f":"IF(+'[1]EXT(T)'!AB92=\"\",\"\",+'[1]EXT(T)'!AB92)","v":1534.8112521788444},{"$f":"IF(+'[1]EXT(T)'!AC92=\"\",\"\",+'[1]EXT(T)'!AC92)","v":2100.6},{"$f":"IF(+'[1]EXT(T)'!AE92=\"\",\"\",+'[1]EXT(T)'!AE92)","v":3899.4103642038253},{"$f":"IF(+'[1]EXT(T)'!AF92=\"\",\"\",+'[1]EXT(T)'!AF92)","v":6000.0103642038257},{"$f":"IF(+'[1]EXT(T)'!AY92=\"\",\"\",+'[1]EXT(T)'!AY92)","v":11303.228551891181},{"$f":"IF(+'[1]EXT(T)'!AZ92=\"\",\"\",+'[1]EXT(T)'!AZ92)","v":11587.228551891181},{"$f":"IF(+'[1]EXT(T)'!AQ92=\"\",\"\",+'[1]EXT(T)'!AQ92-'[1]EXT(T)'!AQ91)","v":129.270194},{"$f":"IF(+'[1]EXT(T)'!AR92=\"\",\"\",+'[1]EXT(T)'!AR92-'[1]EXT(T)'!AR91)","v":841.08000000000015},{"$f":"IF(+'[1]EXT(T)'!AS92=\"\",\"\",+'[1]EXT(T)'!AS92-'[1]EXT(T)'!AS91)","v":1121.2812000000001},{"$f":"IF(+'[1]EXT(T)'!AT92=\"\",\"\",+'[1]EXT(T)'!AT92-'[1]EXT(T)'!AT91)","v":644.90607769000007},{"$f":"IF(+'[1]EXT(T)'!AU92=\"\",\"\",+'[1]EXT(T)'!AU92-'[1]EXT(T)'!AU91)","v":200.89999999999992},{"$f":"IF(+'[1]EXT(T)'!AV92=\"\",\"\",+'[1]EXT(T)'!AV92-'[1]EXT(T)'!AV91)","v":945.27782218648463},{"$f":"IF(+'[1]EXT(T)'!AW92=\"\",\"\",+'[1]EXT(T)'!AW92-'[1]EXT(T)'!AW91)","v":92},3882.7152938764848,3974.7152938764848]
[null,"IV",{"$f":"IF(+'[1]EXT(T)'!M93=\"\",\"\",+'[1]EXT(T)'!M93)","v":430.4775988431357},{"$f":"IF(+'[1]EXT(T)'!N93=\"\",\"\",+'[1]EXT(T)'!N93)","v":181.83},{"$f":"IF(+'[1]EXT(T)'!O93=\"\",\"\",+'[1]EXT(T)'!O93)","v":160.97438},{"$f":"IF(+'[1]EXT(T)'!P93=\"\",\"\",+'[1]EXT(T)'!P93)","v":265.72694859350378},{"$f":"IF(+'[1]EXT(T)'!Q93=\"\",\"\",+'[1]EXT(T)'!Q93)","v":167},{"$f":"IF(+'[1]EXT(T)'!R93=\"\",\"\",+'[1]EXT(T)'!R93)","v":488.90055637311099},{"$f":"IF(+'[1]EXT(T)'!S93=\"\",\"\",+'[1]EXT(T)'!S93)","v":622.69999999999993},{"$f":"IF(+'[1]EXT(T)'!U93=\"\",\"\",+'[1]EXT(T)'!U93)","v":1694.9094838097503},{"$f":"IF(+'[1]EXT(T)'!V93=\"\",\"\",+'[1]EXT(T)'!V93)","v":2317.6094838097501},{"$f":"IF(+'[1]EXT(T)'!W93=\"\",\"\",+'[1]EXT(T)'!W93)","v":1683.5452445213987},{"$f":"IF(+'[1]EXT(T)'!X93=\"\",\"\",+'[1]EXT(T)'!X93)","v":-230.33},{"$f":"IF(+'[1]EXT(T)'!Y93=\"\",\"\",+'[1]EXT(T)'!Y93)","v":658.30247999999995},{"$f":"IF(+'[1]EXT(T)'!Z93=\"\",\"\",+'[1]EXT(T)'!Z93)","v":969.19031494022192},{"$f":"IF(+'[1]EXT(T)'!AA93=\"\",\"\",+'[1]EXT(T)'!AA93)","v":489.9},{"$f":"IF(+'[1]EXT(T)'!AB93=\"\",\"\",+'[1]EXT(T)'!AB93)","v":2023.7118085519553},{"$f":"IF(+'[1]EXT(T)'!AC93=\"\",\"\",+'[1]EXT(T)'!AC93)","v":2723.2999999999997},{"$f":"IF(+'[1]EXT(T)'!AE93=\"\",\"\",+'[1]EXT(T)'!AE93)","v":5594.3198480135761},{"$f":"IF(+'[1]EXT(T)'!AF93=\"\",\"\",+'[1]EXT(T)'!AF93)","v":8317.6198480135754},{"$f":"IF(+'[1]EXT(T)'!AY93=\"\",\"\",+'[1]EXT(T)'!AY93)","v":15119.006126444629},{"$f":"IF(+'[1]EXT(T)'!AZ93=\"\",\"\",+'[1]EXT(T)'!AZ93)","v":15519.006126444629},{"$f":"IF(+'[1]EXT(T)'!AQ93=\"\",\"\",+'[1]EXT(T)'!AQ93-'[1]EXT(T)'!AQ92)","v":128.12979949999999},{"$f":"IF(+'[1]EXT(T)'!AR93=\"\",\"\",+'[1]EXT(T)'!AR93-'[1]EXT(T)'!AR92)","v":865.44999999999982},{"$f":"IF(+'[1]EXT(T)'!AS93=\"\",\"\",+'[1]EXT(T)'!AS93-'[1]EXT(T)'!AS92)","v":1019.1917999999996},{"$f":"IF(+'[1]EXT(T)'!AT93=\"\",\"\",+'[1]EXT(T)'!AT93-'[1]EXT(T)'!AT92)","v":641.99106592999988},{"$f":"IF(+'[1]EXT(T)'!AU93=\"\",\"\",+'[1]EXT(T)'!AU93-'[1]EXT(T)'!AU92)","v":222.60000000000002},{"$f":"IF(+'[1]EXT(T)'!AV93=\"\",\"\",+'[1]EXT(T)'!AV93-'[1]EXT(T)'!AV92)","v":938.41490912344807},{"$f":"IF(+'[1]EXT(T)'!AW93=\"\",\"\",+'[1]EXT(T)'!AW93-'[1]EXT(T)'!AW92)","v":116},3815.7775745534473,3931.7775745534473]
[2011,"I",{"$f":"IF(+'[1]EXT(T)'!M94=\"\",\"\",+'[1]EXT(T)'!M94)","v":676.81294711621854},{"$f":"IF(+'[1]EXT(T)'!N94=\"\",\"\",+'[1]EXT(T)'!N94)","v":180.14},{"$f":"IF(+'[1]EXT(T)'!O94=\"\",\"\",+'[1]EXT(T)'!O94)","v":380.09551999999996},{"$f":"IF(+'[1]EXT(T)'!P94=\"\",\"\",+'[1]EXT(T)'!P94)","v":275.99299845906535},{"$f":"IF(+'[1]EXT(T)'!Q94=\"\",\"\",+'[1]EXT(T)'!Q94)","v":163.80000000000001},{"$f":"IF(+'[1]EXT(T)'!R94=\"\",\"\",+'[1]EXT(T)'!R94)","v":546},{"$f":"IF(+'[1]EXT(T)'!S94=\"\",\"\",+'[1]EXT(T)'!S94)","v":727.6},{"$f":"IF(+'[1]EXT(T)'!U94=\"\",\"\",+'[1]EXT(T)'!U94)","v":2222.841465575284},{"$f":"IF(+'[1]EXT(T)'!V94=\"\",\"\",+'[1]EXT(T)'!V94)","v":2950.4414655752839},{"$f":"IF(+'[1]EXT(T)'!W94=\"\",\"\",+'[1]EXT(T)'!W94)","v":676.81294711621854},{"$f":"IF(+'[1]EXT(T)'!X94=\"\",\"\",+'[1]EXT(T)'!X94)","v":180.14},{"$f":"IF(+'[1]EXT(T)'!Y94=\"\",\"\",+'[1]EXT(T)'!Y94)","v":380.09551999999996},{"$f":"IF(+'[1]EXT(T)'!Z94=\"\",\"\",+'[1]EXT(T)'!Z94)","v":275.99299845906535},{"$f":"IF(+'[1]EXT(T)'!AA94=\"\",\"\",+'[1]EXT(T)'!AA94)","v":163.80000000000001},{"$f":"IF(+'[1]EXT(T)'!AB94=\"\",\"\",+'[1]EXT(T)'!AB94)","v":546},{"$f":"IF(+'[1]EXT(T)'!AC94=\"\",\"\",+'[1]EXT(T)'!AC94)","v":727.6},{"$f":"IF(+'[1]EXT(T)'!AE94=\"\",\"\",+'[1]EXT(T)'!AE94)","v":2222.841465575284},{"$f":"IF(+'[1]EXT(T)'!AF94=\"\",\"\",+'[1]EXT(T)'!AF94)","v":2950.4414655752839},{"$f":"IF(+'[1]EXT(T)'!AY94=\"\",\"\",+'[1]EXT(T)'!AY94)","v":3809.1281974800004},{"$f":"IF(+'[1]EXT(T)'!AZ94=\"\",\"\",+'[1]EXT(T)'!AZ94)","v":3858.4801974800002},{"$f":"IF(+'[1]EXT(T)'!AQ94=\"\",\"\",+'[1]EXT(T)'!AQ94)","v":131.5018001},{"$f":"IF(+'[1]EXT(T)'!AR94=\"\",\"\",+'[1]EXT(T)'!AR94)","v":860.02},{"$f":"IF(+'[1]EXT(T)'!AS94=\"\",\"\",+'[1]EXT(T)'!AS94)","v":972.08969999999999},{"$f":"IF(+'[1]EXT(T)'!AT94=\"\",\"\",+'[1]EXT(T)'!AT94)","v":643.27389717000017},{"$f":"IF(+'[1]EXT(T)'!AU94=\"\",\"\",+'[1]EXT(T)'!AU94)","v":214.2},{"$f":"IF(+'[1]EXT(T)'!AV94=\"\",\"\",+'[1]EXT(T)'!AV94)","v":988.04280021000045},{"$f":"IF(+'[1]EXT(T)'!AW94=\"\",\"\",+'[1]EXT(T)'!AW94)","v":49.351999999999997},{"$f":"IF(OR(W87=\"\",X87=\"\",Y87=\"\",Z87=\"\",AA87=\"\",AB87=\"\"),\"\",W87+X87+Y87+Z87+AA87+AB87)","v":3809.1281974800004},3858.4801974800002]
[null,"II",{"$f":"IF(+'[1]EXT(T)'!M95=\"\",\"\",+'[1]EXT(T)'!M95)","v":624.37833529911677},{"$f":"IF(+'[1]EXT(T)'!N95=\"\",\"\",+'[1]EXT(T)'!N95)","v":-30.67},{"$f":"IF(+'[1]EXT(T)'!O95=\"\",\"\",+'[1]EXT(T)'!O95)","v":323.36191999999994},{"$f":"IF(+'[1]EXT(T)'!P95=\"\",\"\",+'[1]EXT(T)'!P95)","v":209.73304848961919},{"$f":"IF(+'[1]EXT(T)'!Q95=\"\",\"\",+'[1]EXT(T)'!Q95)","v":349.4},{"$f":"IF(+'[1]EXT(T)'!R95=\"\",\"\",+'[1]EXT(T)'!R95)","v":545.79999999999995},{"$f":"IF(+'[1]EXT(T)'!S95=\"\",\"\",+'[1]EXT(T)'!S95)","v":1144.3999999999999},{"$f":"IF(+'[1]EXT(T)'!U95=\"\",\"\",+'[1]EXT(T)'!U95)","v":2022.0033037887358},{"$f":"IF(+'[1]EXT(T)'!V95=\"\",\"\",+'[1]EXT(T)'!V95)","v":3166.4033037887357},{"$f":"IF(+'[1]EXT(T)'!W95=\"\",\"\",+'[1]EXT(T)'!W95)","v":1301.1912824153353},{"$f":"IF(+'[1]EXT(T)'!X95=\"\",\"\",+'[1]EXT(T)'!X95)","v":149.46999999999997},{"$f":"IF(+'[1]EXT(T)'!Y95=\"\",\"\",+'[1]EXT(T)'!Y95)","v":703.45743999999991},{"$f":"IF(+'[1]EXT(T)'!Z95=\"\",\"\",+'[1]EXT(T)'!Z95)","v":485.72604694868454},{"$f":"IF(+'[1]EXT(T)'!AA95=\"\",\"\",+'[1]EXT(T)'!AA95)","v":513.20000000000005},{"$f":"IF(+'[1]EXT(T)'!AB95=\"\",\"\",+'[1]EXT(T)'!AB95)","v":1091.8},{"$f":"IF(+'[1]EXT(T)'!AC95=\"\",\"\",+'[1]EXT(T)'!AC95)","v":1872},{"$f":"IF(+'[1]EXT(T)'!AE95=\"\",\"\",+'[1]EXT(T)'!AE95)","v":4244.8447693640201},{"$f":"IF(+'[1]EXT(T)'!AF95=\"\",\"\",+'[1]EXT(T)'!AF95)","v":6116.8447693640192},{"$f":"IF(+'[1]EXT(T)'!AY95=\"\",\"\",+'[1]EXT(T)'!AY95)","v":8076.5868124600001},{"$f":"IF(+'[1]EXT(T)'!AZ95=\"\",\"\",+'[1]EXT(T)'!AZ95)","v":8223.8778124599994},{"$f":"IF(+'[1]EXT(T)'!AQ95=\"\",\"\",+'[1]EXT(T)'!AQ95-'[1]EXT(T)'!AQ94)","v":125.66937820000001},{"$f":"IF(+'[1]EXT(T)'!AR95=\"\",\"\",+'[1]EXT(T)'!AR95-'[1]EXT(T)'!AR94)","v":942.71},{"$f":"IF(+'[1]EXT(T)'!AS95=\"\",\"\",+'[1]EXT(T)'!AS95-'[1]EXT(T)'!AS94)","v":1202.9996999999998},{"$f":"IF(+'[1]EXT(T)'!AT95=\"\",\"\",+'[1]EXT(T)'!AT95-'[1]EXT(T)'!AT94)","v":736.58730960000014},{"$f":"IF(+'[1]EXT(T)'!AU95=\"\",\"\",+'[1]EXT(T)'!AU95-'[1]EXT(T)'!AU94)","v":221.20000000000005},{"$f":"IF(+'[1]EXT(T)'!AV95=\"\",\"\",+'[1]EXT(T)'!AV95-'[1]EXT(T)'!AV94)","v":1038.2922271799996},{"$f":"IF(+'[1]EXT(T)'!AW95=\"\",\"\",+'[1]EXT(T)'!AW95-'[1]EXT(T)'!AW94)","v":97.938999999999993},4267.4586149799998,4365.3976149800001]
[null,"III",{"$f":"IF(+'[1]EXT(T)'!M96=\"\",\"\",+'[1]EXT(T)'!M96)","v":525.2533982067049},{"$f":"IF(+'[1]EXT(T)'!N96=\"\",\"\",+'[1]EXT(T)'!N96)","v":77.92},{"$f":"IF(+'[1]EXT(T)'!O96=\"\",\"\",+'[1]EXT(T)'!O96)","v":233.92459000000002},{"$f":"IF(+'[1]EXT(T)'!P96=\"\",\"\",+'[1]EXT(T)'!P96)","v":233.12648910565784},{"$f":"IF(+'[1]EXT(T)'!Q96=\"\",\"\",+'[1]EXT(T)'!Q96)","v":217.3},{"$f":"IF(+'[1]EXT(T)'!R96=\"\",\"\",+'[1]EXT(T)'!R96)","v":807.9},{"$f":"IF(+'[1]EXT(T)'!S96=\"\",\"\",+'[1]EXT(T)'!S96)","v":797.7},{"$f":"IF(+'[1]EXT(T)'!U96=\"\",\"\",+'[1]EXT(T)'!U96)","v":2095.4244773123628},{"$f":"IF(+'[1]EXT(T)'!V96=\"\",\"\",+'[1]EXT(T)'!V96)","v":2893.1244773123626},{"$f":"IF(+'[1]EXT(T)'!W96=\"\",\"\",+'[1]EXT(T)'!W96)","v":1826.4446806220403},{"$f":"IF(+'[1]EXT(T)'!X96=\"\",\"\",+'[1]EXT(T)'!X96)","v":227.39},{"$f":"IF(+'[1]EXT(T)'!Y96=\"\",\"\",+'[1]EXT(T)'!Y96)","v":937.38202999999999},{"$f":"IF(+'[1]EXT(T)'!Z96=\"\",\"\",+'[1]EXT(T)'!Z96)","v":718.85253605434241},{"$f":"IF(+'[1]EXT(T)'!AA96=\"\",\"\",+'[1]EXT(T)'!AA96)","v":730.5},{"$f":"IF(+'[1]EXT(T)'!AB96=\"\",\"\",+'[1]EXT(T)'!AB96)","v":1899.6999999999998},{"$f":"IF(+'[1]EXT(T)'!AC96=\"\",\"\",+'[1]EXT(T)'!AC96)","v":2669.7},{"$f":"IF(+'[1]EXT(T)'!AE96=\"\",\"\",+'[1]EXT(T)'!AE96)","v":6340.2692466763829},{"$f":"IF(+'[1]EXT(T)'!AF96=\"\",\"\",+'[1]EXT(T)'!AF96)","v":9009.9692466763809},{"$f":"IF(+'[1]EXT(T)'!AY96=\"\",\"\",+'[1]EXT(T)'!AY96)","v":12162.892326809999},{"$f":"IF(+'[1]EXT(T)'!AZ96=\"\",\"\",+'[1]EXT(T)'!AZ96)","v":12420.207326809999},{"$f":"IF(+'[1]EXT(T)'!AQ96=\"\",\"\",+'[1]EXT(T)'!AQ96-'[1]EXT(T)'!AQ95)","v":109.9332814},{"$f":"IF(+'[1]EXT(T)'!AR96=\"\",\"\",+'[1]EXT(T)'!AR96-'[1]EXT(T)'!AR95)","v":889.17999999999984},{"$f":"IF(+'[1]EXT(T)'!AS96=\"\",\"\",+'[1]EXT(T)'!AS96-'[1]EXT(T)'!AS95)","v":1124.1705999999999},{"$f":"IF(+'[1]EXT(T)'!AT96=\"\",\"\",+'[1]EXT(T)'!AT96-'[1]EXT(T)'!AT95)","v":704.86990748000039},{"$f":"IF(+'[1]EXT(T)'!AU96=\"\",\"\",+'[1]EXT(T)'!AU96-'[1]EXT(T)'!AU95)","v":226.59999999999997},{"$f":"IF(+'[1]EXT(T)'!AV96=\"\",\"\",+'[1]EXT(T)'!AV96-'[1]EXT(T)'!AV95)","v":1031.5517254699989},{"$f":"IF(+'[1]EXT(T)'!AW96=\"\",\"\",+'[1]EXT(T)'!AW96-'[1]EXT(T)'!AW95)","v":110.024},4086.3055143499992,4196.329514349999]
[null,"IV",{"$f":"IF(+'[1]EXT(T)'!M97=\"\",\"\",+'[1]EXT(T)'!M97)","v":635.03851976873079},{"$f":"IF(+'[1]EXT(T)'!N97=\"\",\"\",+'[1]EXT(T)'!N97)","v":-8.9},{"$f":"IF(+'[1]EXT(T)'!O97=\"\",\"\",+'[1]EXT(T)'!O97)","v":281.84701999999999},{"$f":"IF(+'[1]EXT(T)'!P97=\"\",\"\",+'[1]EXT(T)'!P97)","v":295.56117170449352},{"$f":"IF(+'[1]EXT(T)'!Q97=\"\",\"\",+'[1]EXT(T)'!Q97)","v":205.8},{"$f":"IF(+'[1]EXT(T)'!R97=\"\",\"\",+'[1]EXT(T)'!R97)","v":377.00000000000006},{"$f":"IF(+'[1]EXT(T)'!S97=\"\",\"\",+'[1]EXT(T)'!S97)","v":483},{"$f":"IF(+'[1]EXT(T)'!U97=\"\",\"\",+'[1]EXT(T)'!U97)","v":1786.3467114732243},{"$f":"IF(+'[1]EXT(T)'!V97=\"\",\"\",+'[1]EXT(T)'!V97)","v":2269.3467114732243},{"$f":"IF(+'[1]EXT(T)'!W97=\"\",\"\",+'[1]EXT(T)'!W97)","v":2461.4832003907713},{"$f":"IF(+'[1]EXT(T)'!X97=\"\",\"\",+'[1]EXT(T)'!X97)","v":218.48999999999998},{"$f":"IF(+'[1]EXT(T)'!Y97=\"\",\"\",+'[1]EXT(T)'!Y97)","v":1219.2290499999999},{"$f":"IF(+'[1]EXT(T)'!Z97=\"\",\"\",+'[1]EXT(T)'!Z97)","v":1014.4137077588359},{"$f":"IF(+'[1]EXT(T)'!AA97=\"\",\"\",+'[1]EXT(T)'!AA97)","v":936.3},{"$f":"IF(+'[1]EXT(T)'!AB97=\"\",\"\",+'[1]EXT(T)'!AB97)","v":2276.6999999999998},{"$f":"IF(+'[1]EXT(T)'!AC97=\"\",\"\",+'[1]EXT(T)'!AC97)","v":3152.7},{"$f":"IF(+'[1]EXT(T)'!AE97=\"\",\"\",+'[1]EXT(T)'!AE97)","v":8126.6159581496067},{"$f":"IF(+'[1]EXT(T)'!AF97=\"\",\"\",+'[1]EXT(T)'!AF97)","v":11279.315958149606},{"$f":"IF(+'[1]EXT(T)'!AY97=\"\",\"\",+'[1]EXT(T)'!AY97)","v":16161.972032559999},{"$f":"IF(+'[1]EXT(T)'!AZ97=\"\",\"\",+'[1]EXT(T)'!AZ97)","v":16530.608032559998},{"$f":"IF(+'[1]EXT(T)'!AQ97=\"\",\"\",+'[1]EXT(T)'!AQ97-'[1]EXT(T)'!AQ96)","v":119.94421360000001},{"$f":"IF(+'[1]EXT(T)'!AR97=\"\",\"\",+'[1]EXT(T)'!AR97-'[1]EXT(T)'!AR96)","v":935.56999999999971},{"$f":"IF(+'[1]EXT(T)'!AS97=\"\",\"\",+'[1]EXT(T)'!AS97-'[1]EXT(T)'!AS96)","v":1078.7719000000002},{"$f":"IF(+'[1]EXT(T)'!AT97=\"\",\"\",+'[1]EXT(T)'!AT97-'[1]EXT(T)'!AT96)","v":664.68982799000059},{"$f":"IF(+'[1]EXT(T)'!AU97=\"\",\"\",+'[1]EXT(T)'!AU97-'[1]EXT(T)'!AU96)","v":249.60000000000002},{"$f":"IF(+'[1]EXT(T)'!AV97=\"\",\"\",+'[1]EXT(T)'!AV97-'[1]EXT(T)'!AV96)","v":950.50376415999972},{"$f":"IF(+'[1]EXT(T)'!AW97=\"\",\"\",+'[1]EXT(T)'!AW97-'[1]EXT(T)'!AW96)","v":111.32099999999997},3999.0797057500004,4110.4007057500003]
[2012,"I",{"$f":"IF(+'[1]EXT(T)'!M98=\"\",\"\",+'[1]EXT(T)'!M98)","v":617.25197709007693},{"$f":"IF(+'[1]EXT(T)'!N98=\"\",\"\",+'[1]EXT(T)'!N98)","v":134.09621670182227},{"$f":"IF(+'[1]EXT(T)'!O98=\"\",\"\",+'[1]EXT(T)'!O98)","v":397.76984000000004},{"$f":"IF(+'[1]EXT(T)'!P98=\"\",\"\",+'[1]EXT(T)'!P98)","v":340.09310324752158},{"$f":"IF(+'[1]EXT(T)'!Q98=\"\",\"\",+'[1]EXT(T)'!Q98)","v":237.4},{"$f":"IF(+'[1]EXT(T)'!R98=\"\",\"\",+'[1]EXT(T)'!R98)","v":676.3},{"$f":"IF(+'[1]EXT(T)'!S98=\"\",\"\",+'[1]EXT(T)'!S98)","v":941.89999999999986},{"$f":"IF(+'[1]EXT(T)'!U98=\"\",\"\",+'[1]EXT(T)'!U98)","v":2402.9111370394212},{"$f":"IF(+'[1]EXT(T)'!V98=\"\",\"\",+'[1]EXT(T)'!V98)","v":3344.8111370394208},{"$f":"IF(+'[1]EXT(T)'!W98=\"\",\"\",+'[1]EXT(T)'!W98)","v":617.25197709007693},{"$f":"IF(+'[1]EXT(T)'!X98=\"\",\"\",+'[1]EXT(T)'!X98)","v":134.09621670182227},{"$f":"IF(+'[1]EXT(T)'!Y98=\"\",\"\",+'[1]EXT(T)'!Y98)","v":397.76984000000004},{"$f":"IF(+'[1]EXT(T)'!Z98=\"\",\"\",+'[1]EXT(T)'!Z98)","v":340.09310324752158},{"$f":"IF(+'[1]EXT(T)'!AA98=\"\",\"\",+'[1]EXT(T)'!AA98)","v":237.4},{"$f":"IF(+'[1]EXT(T)'!AB98=\"\",\"\",+'[1]EXT(T)'!AB98)","v":676.3},{"$f":"IF(+'[1]EXT(T)'!AC98=\"\",\"\",+'[1]EXT(T)'!AC98)","v":941.89999999999986},{"$f":"IF(+'[1]EXT(T)'!AE98=\"\",\"\",+'[1]EXT(T)'!AE98)","v":2402.9111370394212},{"$f":"IF(+'[1]EXT(T)'!AF98=\"\",\"\",+'[1]EXT(T)'!AF98)","v":3344.8111370394208},{"$f":"IF(+'[1]EXT(T)'!AY98=\"\",\"\",+'[1]EXT(T)'!AY98)","v":4126.2643761699983},{"$f":"IF(+'[1]EXT(T)'!AZ98=\"\",\"\",+'[1]EXT(T)'!AZ98)","v":4227.4643761699981},{"$f":"IF(+'[1]EXT(T)'!AQ98=\"\",\"\",+'[1]EXT(T)'!AQ98)","v":122.25946260000001},{"$f":"IF(+'[1]EXT(T)'!AR98=\"\",\"\",+'[1]EXT(T)'!AR98)","v":947.59999999999991},{"$f":"IF(+'[1]EXT(T)'!AS98=\"\",\"\",+'[1]EXT(T)'!AS98)","v":1057.6105},{"$f":"IF(+'[1]EXT(T)'!AT98=\"\",\"\",+'[1]EXT(T)'!AT98)","v":672.56440024000017},{"$f":"IF(+'[1]EXT(T)'!AU98=\"\",\"\",+'[1]EXT(T)'!AU98)","v":250.10000000000002},{"$f":"IF(+'[1]EXT(T)'!AV98=\"\",\"\",+'[1]EXT(T)'!AV98)","v":1076.1300133299983},{"$f":"IF(+'[1]EXT(T)'!AW98=\"\",\"\",+'[1]EXT(T)'!AW98)","v":101.2},{"$f":"IF(OR(W91=\"\",X91=\"\",Y91=\"\",Z91=\"\",AA91=\"\",AB91=\"\"),\"\",W91+X91+Y91+Z91+AA91+AB91)","v":4126.2643761699983},4227.4643761699981]
[null,"II",{"$f":"IF(+'[1]EXT(T)'!M99=\"\",\"\",+'[1]EXT(T)'!M99)","v":556.10253236459585},{"$f":"IF(+'[1]EXT(T)'!N99=\"\",\"\",+'[1]EXT(T)'!N99)","v":128.82268434919649},{"$f":"IF(+'[1]EXT(T)'!O99=\"\",\"\",+'[1]EXT(T)'!O99)","v":338.10209999999995},{"$f":"IF(+'[1]EXT(T)'!P99=\"\",\"\",+'[1]EXT(T)'!P99)","v":127.85782283441692},{"$f":"IF(+'[1]EXT(T)'!Q99=\"\",\"\",+'[1]EXT(T)'!Q99)","v":162.5},{"$f":"IF(+'[1]EXT(T)'!R99=\"\",\"\",+'[1]EXT(T)'!R99)","v":1612},{"$f":"IF(+'[1]EXT(T)'!S99=\"\",\"\",+'[1]EXT(T)'!S99)","v":787.59999999999991},{"$f":"IF(+'[1]EXT(T)'!U99=\"\",\"\",+'[1]EXT(T)'!U99)","v":2925.3851395482093},{"$f":"IF(+'[1]EXT(T)'!V99=\"\",\"\",+'[1]EXT(T)'!V99)","v":3712.9851395482092},{"$f":"IF(+'[1]EXT(T)'!W99=\"\",\"\",+'[1]EXT(T)'!W99)","v":1173.3545094546728},{"$f":"IF(+'[1]EXT(T)'!X99=\"\",\"\",+'[1]EXT(T)'!X99)","v":262.91890105101879},{"$f":"IF(+'[1]EXT(T)'!Y99=\"\",\"\",+'[1]EXT(T)'!Y99)","v":735.87194},{"$f":"IF(+'[1]EXT(T)'!Z99=\"\",\"\",+'[1]EXT(T)'!Z99)","v":467.95092608193852},{"$f":"IF(+'[1]EXT(T)'!AA99=\"\",\"\",+'[1]EXT(T)'!AA99)","v":399.9},{"$f":"IF(+'[1]EXT(T)'!AB99=\"\",\"\",+'[1]EXT(T)'!AB99)","v":2288.3000000000002},{"$f":"IF(+'[1]EXT(T)'!AC99=\"\",\"\",+'[1]EXT(T)'!AC99)","v":1729.4999999999998},{"$f":"IF(+'[1]EXT(T)'!AE99=\"\",\"\",+'[1]EXT(T)'!AE99)","v":5328.2962765876309},{"$f":"IF(+'[1]EXT(T)'!AF99=\"\",\"\",+'[1]EXT(T)'!AF99)","v":7057.79627658763},{"$f":"IF(+'[1]EXT(T)'!AY99=\"\",\"\",+'[1]EXT(T)'!AY99)","v":8542.2227890429913},{"$f":"IF(+'[1]EXT(T)'!AZ99=\"\",\"\",+'[1]EXT(T)'!AZ99)","v":8728.3227890429916},{"$f":"IF(+'[1]EXT(T)'!AQ99=\"\",\"\",+'[1]EXT(T)'!AQ99-'[1]EXT(T)'!AQ98)","v":123.6096144},{"$f":"IF(+'[1]EXT(T)'!AR99=\"\",\"\",+'[1]EXT(T)'!AR99-'[1]EXT(T)'!AR98)","v":1001.6700000000001},{"$f":"IF(+'[1]EXT(T)'!AS99=\"\",\"\",+'[1]EXT(T)'!AS99-'[1]EXT(T)'!AS98)","v":1303.2027999999998},{"$f":"IF(+'[1]EXT(T)'!AT99=\"\",\"\",+'[1]EXT(T)'!AT99-'[1]EXT(T)'!AT98)","v":728.93665197000018},{"$f":"IF(+'[1]EXT(T)'!AU99=\"\",\"\",+'[1]EXT(T)'!AU99-'[1]EXT(T)'!AU98)","v":244.20000000000005},{"$f":"IF(+'[1]EXT(T)'!AV99=\"\",\"\",+'[1]EXT(T)'!AV99-'[1]EXT(T)'!AV98)","v":1014.3393465029935},{"$f":"IF(+'[1]EXT(T)'!AW99=\"\",\"\",+'[1]EXT(T)'!AW99-'[1]EXT(T)'!AW98)","v":84.90000000000002},4415.958412872993,4500.8584128729926]
[null,"III",{"$f":"IF(+'[1]EXT(T)'!M100=\"\",\"\",+'[1]EXT(T)'!M100)","v":584.51341459367154},{"$f":"IF(+'[1]EXT(T)'!N100=\"\",\"\",+'[1]EXT(T)'!N100)","v":216.27237344554084},{"$f":"IF(+'[1]EXT(T)'!O100=\"\",\"\",+'[1]EXT(T)'!O100)","v":240.63722000000001},{"$f":"IF(+'[1]EXT(T)'!P100=\"\",\"\",+'[1]EXT(T)'!P100)","v":247.08133537749271},{"$f":"IF(+'[1]EXT(T)'!Q100=\"\",\"\",+'[1]EXT(T)'!Q100)","v":192.6},{"$f":"IF(+'[1]EXT(T)'!R100=\"\",\"\",+'[1]EXT(T)'!R100)","v":730.59999999999991},{"$f":"IF(+'[1]EXT(T)'!S100=\"\",\"\",+'[1]EXT(T)'!S100)","v":1032.2},{"$f":"IF(+'[1]EXT(T)'!U100=\"\",\"\",+'[1]EXT(T)'!U100)","v":2211.7043434167049},{"$f":"IF(+'[1]EXT(T)'!V100=\"\",\"\",+'[1]EXT(T)'!V100)","v":3243.9043434167052},{"$f":"IF(+'[1]EXT(T)'!W100=\"\",\"\",+'[1]EXT(T)'!W100)","v":1757.8679240483443},{"$f":"IF(+'[1]EXT(T)'!X100=\"\",\"\",+'[1]EXT(T)'!X100)","v":479.19127449655963},{"$f":"IF(+'[1]EXT(T)'!Y100=\"\",\"\",+'[1]EXT(T)'!Y100)","v":976.50916000000007},{"$f":"IF(+'[1]EXT(T)'!Z100=\"\",\"\",+'[1]EXT(T)'!Z100)","v":715.0322614594312},{"$f":"IF(+'[1]EXT(T)'!AA100=\"\",\"\",+'[1]EXT(T)'!AA100)","v":592.5},{"$f":"IF(+'[1]EXT(T)'!AB100=\"\",\"\",+'[1]EXT(T)'!AB100)","v":3018.9},{"$f":"IF(+'[1]EXT(T)'!AC100=\"\",\"\",+'[1]EXT(T)'!AC100)","v":2761.7},{"$f":"IF(+'[1]EXT(T)'!AE100=\"\",\"\",+'[1]EXT(T)'!AE100)","v":7540.0006200043354},{"$f":"IF(+'[1]EXT(T)'!AF100=\"\",\"\",+'[1]EXT(T)'!AF100)","v":10301.700620004336},{"$f":"IF(+'[1]EXT(T)'!AY100=\"\",\"\",+'[1]EXT(T)'!AY100)","v":12878.580724327234},{"$f":"IF(+'[1]EXT(T)'!AZ100=\"\",\"\",+'[1]EXT(T)'!AZ100)","v":13163.880724327233},{"$f":"IF(+'[1]EXT(T)'!AQ100=\"\",\"\",+'[1]EXT(T)'!AQ100-'[1]EXT(T)'!AQ99)","v":140.59726110000003},{"$f":"IF(+'[1]EXT(T)'!AR100=\"\",\"\",+'[1]EXT(T)'!AR100-'[1]EXT(T)'!AR99)","v":949.46},{"$f":"IF(+'[1]EXT(T)'!AS100=\"\",\"\",+'[1]EXT(T)'!AS100-'[1]EXT(T)'!AS99)","v":1229.2888000000003},{"$f":"IF(+'[1]EXT(T)'!AT100=\"\",\"\",+'[1]EXT(T)'!AT100-'[1]EXT(T)'!AT99)","v":717.46550911000008},{"$f":"IF(+'[1]EXT(T)'!AU100=\"\",\"\",+'[1]EXT(T)'!AU100-'[1]EXT(T)'!AU99)","v":246.19999999999993},{"$f":"IF(+'[1]EXT(T)'!AV100=\"\",\"\",+'[1]EXT(T)'!AV100-'[1]EXT(T)'!AV99)","v":1053.3463650742424},{"$f":"IF(+'[1]EXT(T)'!AW100=\"\",\"\",+'[1]EXT(T)'!AW100-'[1]EXT(T)'!AW99)","v":99.199999999999989},4336.3579352842426,4435.5579352842424]
[null,"IV",{"$f":"IF(+'[1]EXT(T)'!M101=\"\",\"\",+'[1]EXT(T)'!M101)","v":500.22210837227851},{"$f":"IF(+'[1]EXT(T)'!N101=\"\",\"\",+'[1]EXT(T)'!N101)","v":-12.363196364135661},{"$f":"IF(+'[1]EXT(T)'!O101=\"\",\"\",+'[1]EXT(T)'!O101)","v":293.63596000000001},{"$f":"IF(+'[1]EXT(T)'!P101=\"\",\"\",+'[1]EXT(T)'!P101)","v":343.48860156963912},{"$f":"IF(+'[1]EXT(T)'!Q101=\"\",\"\",+'[1]EXT(T)'!Q101)","v":175.2},{"$f":"IF(+'[1]EXT(T)'!R101=\"\",\"\",+'[1]EXT(T)'!R101)","v":123.5},{"$f":"IF(+'[1]EXT(T)'!S101=\"\",\"\",+'[1]EXT(T)'!S101)","v":448.8},{"$f":"IF(+'[1]EXT(T)'!U101=\"\",\"\",+'[1]EXT(T)'!U101)","v":1423.683473577782},{"$f":"IF(+'[1]EXT(T)'!V101=\"\",\"\",+'[1]EXT(T)'!V101)","v":1872.483473577782},{"$f":"IF(+'[1]EXT(T)'!W101=\"\",\"\",+'[1]EXT(T)'!W101)","v":2258.0900324206227},{"$f":"IF(+'[1]EXT(T)'!X101=\"\",\"\",+'[1]EXT(T)'!X101)","v":466.82807813242397},{"$f":"IF(+'[1]EXT(T)'!Y101=\"\",\"\",+'[1]EXT(T)'!Y101)","v":1270.1451200000001},{"$f":"IF(+'[1]EXT(T)'!Z101=\"\",\"\",+'[1]EXT(T)'!Z101)","v":1058.5208630290704},{"$f":"IF(+'[1]EXT(T)'!AA101=\"\",\"\",+'[1]EXT(T)'!AA101)","v":767.7},{"$f":"IF(+'[1]EXT(T)'!AB101=\"\",\"\",+'[1]EXT(T)'!AB101)","v":3142.4},{"$f":"IF(+'[1]EXT(T)'!AC101=\"\",\"\",+'[1]EXT(T)'!AC101)","v":3210.5},{"$f":"IF(+'[1]EXT(T)'!AE101=\"\",\"\",+'[1]EXT(T)'!AE101)","v":8963.6840935821165},{"$f":"IF(+'[1]EXT(T)'!AF101=\"\",\"\",+'[1]EXT(T)'!AF101)","v":12174.184093582118},{"$f":"IF(+'[1]EXT(T)'!AY101=\"\",\"\",+'[1]EXT(T)'!AY101)","v":17097.558362629487},{"$f":"IF(+'[1]EXT(T)'!AZ101=\"\",\"\",+'[1]EXT(T)'!AZ101)","v":17478.658362629485},{"$f":"IF(+'[1]EXT(T)'!AQ101=\"\",\"\",+'[1]EXT(T)'!AQ101-'[1]EXT(T)'!AQ100)","v":140.32140700000002},{"$f":"IF(+'[1]EXT(T)'!AR101=\"\",\"\",+'[1]EXT(T)'!AR101-'[1]EXT(T)'!AR100)","v":987.89000000000033},{"$f":"IF(+'[1]EXT(T)'!AS101=\"\",\"\",+'[1]EXT(T)'!AS101-'[1]EXT(T)'!AS100)","v":1192.5900000000001},{"$f":"IF(+'[1]EXT(T)'!AT101=\"\",\"\",+'[1]EXT(T)'!AT101-'[1]EXT(T)'!AT100)","v":722.92037178000055},{"$f":"IF(+'[1]EXT(T)'!AU101=\"\",\"\",+'[1]EXT(T)'!AU101-'[1]EXT(T)'!AU100)","v":273.69999999999993},{"$f":"IF(+'[1]EXT(T)'!AV101=\"\",\"\",+'[1]EXT(T)'!AV101-'[1]EXT(T)'!AV100)","v":901.55585952224919},{"$f":"IF(+'[1]EXT(T)'!AW101=\"\",\"\",+'[1]EXT(T)'!AW101-'[1]EXT(T)'!AW100)","v":95.800000000000011},4218.9776383022499,4314.7776383022501]
[2013,"I",{"$f":"IF(+'[1]EXT(T)'!M102=\"\",\"\",+'[1]EXT(T)'!M102)","v":958.69478643540629},{"$f":"IF(+'[1]EXT(T)'!N102=\"\",\"\",+'[1]EXT(T)'!N102)","v":-22.449906272598618},{"$f":"IF(+'[1]EXT(T)'!O102=\"\",\"\",+'[1]EXT(T)'!O102)","v":408.26391000000001},{"$f":"IF(+'[1]EXT(T)'!P102=\"\",\"\",+'[1]EXT(T)'!P102)","v":300.60000000000002},{"$f":"IF(+'[1]EXT(T)'!Q102=\"\",\"\",+'[1]EXT(T)'!Q102)","v":361.4},{"$f":"IF(+'[1]EXT(T)'!R102=\"\",\"\",+'[1]EXT(T)'!R102)","v":543},{"$f":"IF(+'[1]EXT(T)'!S102=\"\",\"\",+'[1]EXT(T)'!S102)","v":1335.6999999999998},{"$f":"IF(+'[1]EXT(T)'!U102=\"\",\"\",+'[1]EXT(T)'!U102)","v":2549.5087901628076},{"$f":"IF(+'[1]EXT(T)'!V102=\"\",\"\",+'[1]EXT(T)'!V102)","v":3885.2087901628074},{"$f":"IF(+'[1]EXT(T)'!W102=\"\",\"\",+'[1]EXT(T)'!W102)","v":958.69478643540629},{"$f":"IF(+'[1]EXT(T)'!X102=\"\",\"\",+'[1]EXT(T)'!X102)","v":-22.449906272598618},{"$f":"IF(+'[1]EXT(T)'!Y102=\"\",\"\",+'[1]EXT(T)'!Y102)","v":408.26391000000001},{"$f":"IF(+'[1]EXT(T)'!Z102=\"\",\"\",+'[1]EXT(T)'!Z102)","v":300.60000000000002},{"$f":"IF(+'[1]EXT(T)'!AA102=\"\",\"\",+'[1]EXT(T)'!AA102)","v":361.4},{"$f":"IF(+'[1]EXT(T)'!AB102=\"\",\"\",+'[1]EXT(T)'!AB102)","v":543},{"$f":"IF(+'[1]EXT(T)'!AC102=\"\",\"\",+'[1]EXT(T)'!AC102)","v":1335.6999999999998},{"$f":"IF(+'[1]EXT(T)'!AE102=\"\",\"\",+'[1]EXT(T)'!AE102)","v":2549.5087901628076},{"$f":"IF(+'[1]EXT(T)'!AF102=\"\",\"\",+'[1]EXT(T)'!AF102)","v":3885.2087901628074},{"$f":"IF(+'[1]EXT(T)'!AY102=\"\",\"\",+'[1]EXT(T)'!AY102)","v":4247.2318979815363},{"$f":"IF(+'[1]EXT(T)'!AZ102=\"\",\"\",+'[1]EXT(T)'!AZ102)","v":4361.631897981536},{"$f":"IF(+'[1]EXT(T)'!AQ102=\"\",\"\",+'[1]EXT(T)'!AQ102)","v":134.27661689999999},{"$f":"IF(+'[1]EXT(T)'!AR102=\"\",\"\",+'[1]EXT(T)'!AR102)","v":916.44},{"$f":"IF(+'[1]EXT(T)'!AS102=\"\",\"\",+'[1]EXT(T)'!AS102)","v":1133.0899999999999},{"$f":"IF(+'[1]EXT(T)'!AT102=\"\",\"\",+'[1]EXT(T)'!AT102)","v":689.43898598999999},{"$f":"IF(+'[1]EXT(T)'!AU102=\"\",\"\",+'[1]EXT(T)'!AU102)","v":257.3},{"$f":"IF(+'[1]EXT(T)'!AV102=\"\",\"\",+'[1]EXT(T)'!AV102)","v":1116.6862950915365},{"$f":"IF(+'[1]EXT(T)'!AW102=\"\",\"\",+'[1]EXT(T)'!AW102)","v":114.4},{"$f":"IF(OR(W95=\"\",X95=\"\",Y95=\"\",Z95=\"\",AA95=\"\",AB95=\"\"),\"\",W95+X95+Y95+Z95+AA95+AB95)","v":4247.2318979815363},4361.631897981536]
[null,"II",{"$f":"IF(+'[1]EXT(T)'!M103=\"\",\"\",+'[1]EXT(T)'!M103)","v":411.20588742426503},{"$f":"IF(+'[1]EXT(T)'!N103=\"\",\"\",+'[1]EXT(T)'!N103)","v":132.02430364469677},{"$f":"IF(+'[1]EXT(T)'!O103=\"\",\"\",+'[1]EXT(T)'!O103)","v":393.01911000000001},{"$f":"IF(+'[1]EXT(T)'!P103=\"\",\"\",+'[1]EXT(T)'!P103)","v":236.4},{"$f":"IF(+'[1]EXT(T)'!Q103=\"\",\"\",+'[1]EXT(T)'!Q103)","v":92.6},{"$f":"IF(+'[1]EXT(T)'!R103=\"\",\"\",+'[1]EXT(T)'!R103)","v":438.80000000000007},{"$f":"IF(+'[1]EXT(T)'!S103=\"\",\"\",+'[1]EXT(T)'!S103)","v":687.7},{"$f":"IF(+'[1]EXT(T)'!U103=\"\",\"\",+'[1]EXT(T)'!U103)","v":1704.049301068962},{"$f":"IF(+'[1]EXT(T)'!V103=\"\",\"\",+'[1]EXT(T)'!V103)","v":2391.7493010689623},{"$f":"IF(+'[1]EXT(T)'!W103=\"\",\"\",+'[1]EXT(T)'!W103)","v":1369.9006738596713},{"$f":"IF(+'[1]EXT(T)'!X103=\"\",\"\",+'[1]EXT(T)'!X103)","v":109.57439737209816},{"$f":"IF(+'[1]EXT(T)'!Y103=\"\",\"\",+'[1]EXT(T)'!Y103)","v":801.28302000000008},{"$f":"IF(+'[1]EXT(T)'!Z103=\"\",\"\",+'[1]EXT(T)'!Z103)","v":537},{"$f":"IF(+'[1]EXT(T)'!AA103=\"\",\"\",+'[1]EXT(T)'!AA103)","v":454},{"$f":"IF(+'[1]EXT(T)'!AB103=\"\",\"\",+'[1]EXT(T)'!AB103)","v":981.80000000000007},{"$f":"IF(+'[1]EXT(T)'!AC103=\"\",\"\",+'[1]EXT(T)'!AC103)","v":2023.3999999999999},{"$f":"IF(+'[1]EXT(T)'!AE103=\"\",\"\",+'[1]EXT(T)'!AE103)","v":4253.5580912317691},{"$f":"IF(+'[1]EXT(T)'!AF103=\"\",\"\",+'[1]EXT(T)'!AF103)","v":6276.9580912317697},{"$f":"IF(+'[1]EXT(T)'!AY103=\"\",\"\",+'[1]EXT(T)'!AY103)","v":8783.4343644015207},{"$f":"IF(+'[1]EXT(T)'!AZ103=\"\",\"\",+'[1]EXT(T)'!AZ103)","v":8993.1343644015215},{"$f":"IF(+'[1]EXT(T)'!AQ103=\"\",\"\",+'[1]EXT(T)'!AQ103-'[1]EXT(T)'!AQ102)","v":137.3873169},{"$f":"IF(+'[1]EXT(T)'!AR103=\"\",\"\",+'[1]EXT(T)'!AR103-'[1]EXT(T)'!AR102)","v":1032.55},{"$f":"IF(+'[1]EXT(T)'!AS103=\"\",\"\",+'[1]EXT(T)'!AS103-'[1]EXT(T)'!AS102)","v":1345.4299999999996},{"$f":"IF(+'[1]EXT(T)'!AT103=\"\",\"\",+'[1]EXT(T)'!AT103-'[1]EXT(T)'!AT102)","v":822.18495387000007},{"$f":"IF(+'[1]EXT(T)'!AU103=\"\",\"\",+'[1]EXT(T)'!AU103-'[1]EXT(T)'!AU102)","v":264.3},{"$f":"IF(+'[1]EXT(T)'!AV103=\"\",\"\",+'[1]EXT(T)'!AV103-'[1]EXT(T)'!AV102)","v":934.35019564998493},{"$f":"IF(+'[1]EXT(T)'!AW103=\"\",\"\",+'[1]EXT(T)'!AW103-'[1]EXT(T)'!AW102)","v":95.299999999999983},4536.2024664199844,4631.5024664199846]
[null,"III",{"$f":"IF(+'[1]EXT(T)'!M104=\"\",\"\",+'[1]EXT(T)'!M104)","v":458.3588425775157},{"$f":"IF(+'[1]EXT(T)'!N104=\"\",\"\",+'[1]EXT(T)'!N104)","v":151.52552539054261},{"$f":"IF(+'[1]EXT(T)'!O104=\"\",\"\",+'[1]EXT(T)'!O104)","v":360.92783000000003},{"$f":"IF(+'[1]EXT(T)'!P104=\"\",\"\",+'[1]EXT(T)'!P104)","v":199.5},{"$f":"IF(+'[1]EXT(T)'!Q104=\"\",\"\",+'[1]EXT(T)'!Q104)","v":196.8},{"$f":"IF(+'[1]EXT(T)'!R104=\"\",\"\",+'[1]EXT(T)'!R104)","v":527},{"$f":"IF(+'[1]EXT(T)'!S104=\"\",\"\",+'[1]EXT(T)'!S104)","v":877.40000000000009},{"$f":"IF(+'[1]EXT(T)'!U104=\"\",\"\",+'[1]EXT(T)'!U104)","v":1894.1121979680584},{"$f":"IF(+'[1]EXT(T)'!V104=\"\",\"\",+'[1]EXT(T)'!V104)","v":2771.5121979680584},{"$f":"IF(+'[1]EXT(T)'!W104=\"\",\"\",+'[1]EXT(T)'!W104)","v":1828.2595164371869},{"$f":"IF(+'[1]EXT(T)'!X104=\"\",\"\",+'[1]EXT(T)'!X104)","v":261.09992276264074},{"$f":"IF(+'[1]EXT(T)'!Y104=\"\",\"\",+'[1]EXT(T)'!Y104)","v":1162.2108500000002},{"$f":"IF(+'[1]EXT(T)'!Z104=\"\",\"\",+'[1]EXT(T)'!Z104)","v":736.5},{"$f":"IF(+'[1]EXT(T)'!AA104=\"\",\"\",+'[1]EXT(T)'!AA104)","v":650.79999999999995},{"$f":"IF(+'[1]EXT(T)'!AB104=\"\",\"\",+'[1]EXT(T)'!AB104)","v":1508.8000000000002},{"$f":"IF(+'[1]EXT(T)'!AC104=\"\",\"\",+'[1]EXT(T)'!AC104)","v":2900.8},{"$f":"IF(+'[1]EXT(T)'!AE104=\"\",\"\",+'[1]EXT(T)'!AE104)","v":6147.6702891998275},{"$f":"IF(+'[1]EXT(T)'!AF104=\"\",\"\",+'[1]EXT(T)'!AF104)","v":9048.4702891998277},{"$f":"IF(+'[1]EXT(T)'!AY104=\"\",\"\",+'[1]EXT(T)'!AY104)","v":13359.672734172225},{"$f":"IF(+'[1]EXT(T)'!AZ104=\"\",\"\",+'[1]EXT(T)'!AZ104)","v":13679.572734172225},{"$f":"IF(+'[1]EXT(T)'!AQ104=\"\",\"\",+'[1]EXT(T)'!AQ104-'[1]EXT(T)'!AQ103)","v":139.78967369999998},{"$f":"IF(+'[1]EXT(T)'!AR104=\"\",\"\",+'[1]EXT(T)'!AR104-'[1]EXT(T)'!AR103)","v":970.02000000000021},{"$f":"IF(+'[1]EXT(T)'!AS104=\"\",\"\",+'[1]EXT(T)'!AS104-'[1]EXT(T)'!AS103)","v":1322.8000000000002},{"$f":"IF(+'[1]EXT(T)'!AT104=\"\",\"\",+'[1]EXT(T)'!AT104-'[1]EXT(T)'!AT103)","v":802.93862912000031},{"$f":"IF(+'[1]EXT(T)'!AU104=\"\",\"\",+'[1]EXT(T)'!AU104-'[1]EXT(T)'!AU103)","v":265.70000000000005},{"$f":"IF(+'[1]EXT(T)'!AV104=\"\",\"\",+'[1]EXT(T)'!AV104-'[1]EXT(T)'!AV103)","v":1074.990066950706},{"$f":"IF(+'[1]EXT(T)'!AW104=\"\",\"\",+'[1]EXT(T)'!AW104-'[1]EXT(T)'!AW103)","v":110.19999999999999},4576.2383697707064,4686.4383697707062]
[null,"IV",{"$f":"IF(+'[1]EXT(T)'!M105=\"\",\"\",+'[1]EXT(T)'!M105)","v":912.83226069790817},{"$f":"IF(+'[1]EXT(T)'!N105=\"\",\"\",+'[1]EXT(T)'!N105)","v":-81.219539322513171},{"$f":"IF(+'[1]EXT(T)'!O105=\"\",\"\",+'[1]EXT(T)'!O105)","v":317.10185999999999},{"$f":"IF(+'[1]EXT(T)'!P105=\"\",\"\",+'[1]EXT(T)'!P105)","v":323.2},{"$f":"IF(+'[1]EXT(T)'!Q105=\"\",\"\",+'[1]EXT(T)'!Q105)","v":164.7},{"$f":"IF(+'[1]EXT(T)'!R105=\"\",\"\",+'[1]EXT(T)'!R105)","v":481.7000000000001},{"$f":"IF(+'[1]EXT(T)'!S105=\"\",\"\",+'[1]EXT(T)'!S105)","v":666.40000000000009},{"$f":"IF(+'[1]EXT(T)'!U105=\"\",\"\",+'[1]EXT(T)'!U105)","v":2118.3145813753954},{"$f":"IF(+'[1]EXT(T)'!V105=\"\",\"\",+'[1]EXT(T)'!V105)","v":2784.7145813753955},{"$f":"IF(+'[1]EXT(T)'!W105=\"\",\"\",+'[1]EXT(T)'!W105)","v":2741.0917771350951},{"$f":"IF(+'[1]EXT(T)'!X105=\"\",\"\",+'[1]EXT(T)'!X105)","v":179.88038344012756},{"$f":"IF(+'[1]EXT(T)'!Y105=\"\",\"\",+'[1]EXT(T)'!Y105)","v":1479.3127100000002},{"$f":"IF(+'[1]EXT(T)'!Z105=\"\",\"\",+'[1]EXT(T)'!Z105)","v":1059.7},{"$f":"IF(+'[1]EXT(T)'!AA105=\"\",\"\",+'[1]EXT(T)'!AA105)","v":815.5},{"$f":"IF(+'[1]EXT(T)'!AB105=\"\",\"\",+'[1]EXT(T)'!AB105)","v":1990.5000000000002},{"$f":"IF(+'[1]EXT(T)'!AC105=\"\",\"\",+'[1]EXT(T)'!AC105)","v":3567.2000000000003},{"$f":"IF(+'[1]EXT(T)'!AE105=\"\",\"\",+'[1]EXT(T)'!AE105)","v":8265.9848705752229},{"$f":"IF(+'[1]EXT(T)'!AF105=\"\",\"\",+'[1]EXT(T)'!AF105)","v":11833.184870575224},{"$f":"IF(+'[1]EXT(T)'!AY105=\"\",\"\",+'[1]EXT(T)'!AY105)","v":18043.743945403796},{"$f":"IF(+'[1]EXT(T)'!AZ105=\"\",\"\",+'[1]EXT(T)'!AZ105)","v":18467.743945403796},{"$f":"IF(+'[1]EXT(T)'!AQ105=\"\",\"\",+'[1]EXT(T)'!AQ105-'[1]EXT(T)'!AQ104)","v":149.61328620000006},{"$f":"IF(+'[1]EXT(T)'!AR105=\"\",\"\",+'[1]EXT(T)'!AR105-'[1]EXT(T)'!AR104)","v":1025.1900000000005},{"$f":"IF(+'[1]EXT(T)'!AS105=\"\",\"\",+'[1]EXT(T)'!AS105-'[1]EXT(T)'!AS104)","v":1303.8864000000003},{"$f":"IF(+'[1]EXT(T)'!AT105=\"\",\"\",+'[1]EXT(T)'!AT105-'[1]EXT(T)'!AT104)","v":778.71499021},{"$f":"IF(+'[1]EXT(T)'!AU105=\"\",\"\",+'[1]EXT(T)'!AU105-'[1]EXT(T)'!AU104)","v":290.39999999999998},{"$f":"IF(+'[1]EXT(T)'!AV105=\"\",\"\",+'[1]EXT(T)'!AV105-'[1]EXT(T)'!AV104)","v":1136.2665348215642},{"$f":"IF(+'[1]EXT(T)'!AW105=\"\",\"\",+'[1]EXT(T)'!AW105-'[1]EXT(T)'!AW104)","v":104.10000000000002},4684.071211231565,4788.1712112315654]
[2014,"I",{"$f":"IF(+'[1]EXT(T)'!M106=\"\",\"\",+'[1]EXT(T)'!M106)","v":883.36135368174837},{"$f":"IF(+'[1]EXT(T)'!N106=\"\",\"\",+'[1]EXT(T)'!N106)","v":24.747843127200035},{"$f":"IF(+'[1]EXT(T)'!O106=\"\",\"\",+'[1]EXT(T)'!O106)","v":386.49795},{"$f":"IF(+'[1]EXT(T)'!P106=\"\",\"\",+'[1]EXT(T)'!P106)","v":922.2},{"$f":"IF(+'[1]EXT(T)'!Q106=\"\",\"\",+'[1]EXT(T)'!Q106)","v":356.4},{"$f":"IF(+'[1]EXT(T)'!R106=\"\",\"\",+'[1]EXT(T)'!R106)","v":504.50000000000011},{"$f":"IF(+'[1]EXT(T)'!S106=\"\",\"\",+'[1]EXT(T)'!S106)","v":1170.8},{"$f":"IF(+'[1]EXT(T)'!U106=\"\",\"\",+'[1]EXT(T)'!U106)","v":3077.7071468089484},{"$f":"IF(+'[1]EXT(T)'!V106=\"\",\"\",+'[1]EXT(T)'!V106)","v":4248.5071468089482},{"$f":"IF(+'[1]EXT(T)'!W106=\"\",\"\",+'[1]EXT(T)'!W106)","v":883.36135368174837},{"$f":"IF(+'[1]EXT(T)'!X106=\"\",\"\",+'[1]EXT(T)'!X106)","v":24.747843127200035},{"$f":"IF(+'[1]EXT(T)'!Y106=\"\",\"\",+'[1]EXT(T)'!Y106)","v":386.49795},{"$f":"IF(+'[1]EXT(T)'!Z106=\"\",\"\",+'[1]EXT(T)'!Z106)","v":922.2},{"$f":"IF(+'[1]EXT(T)'!AA106=\"\",\"\",+'[1]EXT(T)'!AA106)","v":356.4},{"$f":"IF(+'[1]EXT(T)'!AB106=\"\",\"\",+'[1]EXT(T)'!AB106)","v":504.50000000000011},{"$f":"IF(+'[1]EXT(T)'!AC106=\"\",\"\",+'[1]EXT(T)'!AC106)","v":1170.8},{"$f":"IF(+'[1]EXT(T)'!AE106=\"\",\"\",+'[1]EXT(T)'!AE106)","v":3077.7071468089484},{"$f":"IF(+'[1]EXT(T)'!AF106=\"\",\"\",+'[1]EXT(T)'!AF106)","v":4248.5071468089482},{"$f":"IF(+'[1]EXT(T)'!AY106=\"\",\"\",+'[1]EXT(T)'!AY106)","v":4532.8600254343291},{"$f":"IF(+'[1]EXT(T)'!AZ106=\"\",\"\",+'[1]EXT(T)'!AZ106)","v":4646.6600254343293},{"$f":"IF(+'[1]EXT(T)'!AQ106=\"\",\"\",+'[1]EXT(T)'!AQ106)","v":142.3071721},{"$f":"IF(+'[1]EXT(T)'!AR106=\"\",\"\",+'[1]EXT(T)'!AR106)","v":967.93000000000006},{"$f":"IF(+'[1]EXT(T)'!AS106=\"\",\"\",+'[1]EXT(T)'!AS106)","v":1237.3618999999999},{"$f":"IF(+'[1]EXT(T)'!AT106=\"\",\"\",+'[1]EXT(T)'!AT106)","v":736.05155693000029},{"$f":"IF(+'[1]EXT(T)'!AU106=\"\",\"\",+'[1]EXT(T)'!AU106)","v":277.2},{"$f":"IF(+'[1]EXT(T)'!AV106=\"\",\"\",+'[1]EXT(T)'!AV106)","v":1172.009396404329},{"$f":"IF(+'[1]EXT(T)'!AW106=\"\",\"\",+'[1]EXT(T)'!AW106)","v":113.8},{"$f":"IF(OR(W99=\"\",X99=\"\",Y99=\"\",Z99=\"\",AA99=\"\",AB99=\"\"),\"\",W99+X99+Y99+Z99+AA99+AB99)","v":4532.8600254343291},4646.6600254343293]
[null,"II",{"$f":"IF(+'[1]EXT(T)'!M107=\"\",\"\",+'[1]EXT(T)'!M107)","v":540.25365326792121},{"$f":"IF(+'[1]EXT(T)'!N107=\"\",\"\",+'[1]EXT(T)'!N107)","v":-10.816041675270032},{"$f":"IF(+'[1]EXT(T)'!O107=\"\",\"\",+'[1]EXT(T)'!O107)","v":358.33228000000003},{"$f":"IF(+'[1]EXT(T)'!P107=\"\",\"\",+'[1]EXT(T)'!P107)","v":314.2},{"$f":"IF(+'[1]EXT(T)'!Q107=\"\",\"\",+'[1]EXT(T)'!Q107)","v":93.1},{"$f":"IF(+'[1]EXT(T)'!R107=\"\",\"\",+'[1]EXT(T)'!R107)","v":677.69999999999982},{"$f":"IF(+'[1]EXT(T)'!S107=\"\",\"\",+'[1]EXT(T)'!S107)","v":991.7},{"$f":"IF(+'[1]EXT(T)'!U107=\"\",\"\",+'[1]EXT(T)'!U107)","v":1972.769891592651},{"$f":"IF(+'[1]EXT(T)'!V107=\"\",\"\",+'[1]EXT(T)'!V107)","v":2964.469891592651},{"$f":"IF(+'[1]EXT(T)'!W107=\"\",\"\",+'[1]EXT(T)'!W107)","v":1423.6150069496696},{"$f":"IF(+'[1]EXT(T)'!X107=\"\",\"\",+'[1]EXT(T)'!X107)","v":13.931801451930003},{"$f":"IF(+'[1]EXT(T)'!Y107=\"\",\"\",+'[1]EXT(T)'!Y107)","v":744.83023000000003},{"$f":"IF(+'[1]EXT(T)'!Z107=\"\",\"\",+'[1]EXT(T)'!Z107)","v":1236.4000000000001},{"$f":"IF(+'[1]EXT(T)'!AA107=\"\",\"\",+'[1]EXT(T)'!AA107)","v":449.5},{"$f":"IF(+'[1]EXT(T)'!AB107=\"\",\"\",+'[1]EXT(T)'!AB107)","v":1182.1999999999998},{"$f":"IF(+'[1]EXT(T)'!AC107=\"\",\"\",+'[1]EXT(T)'!AC107)","v":2162.5},{"$f":"IF(+'[1]EXT(T)'!AE107=\"\",\"\",+'[1]EXT(T)'!AE107)","v":5050.4770384015992},{"$f":"IF(+'[1]EXT(T)'!AF107=\"\",\"\",+'[1]EXT(T)'!AF107)","v":7212.9770384015992},{"$f":"IF(+'[1]EXT(T)'!AY107=\"\",\"\",+'[1]EXT(T)'!AY107)","v":9596.3820320896484},{"$f":"IF(+'[1]EXT(T)'!AZ107=\"\",\"\",+'[1]EXT(T)'!AZ107)","v":9858.3820320896484},{"$f":"IF(+'[1]EXT(T)'!AQ107=\"\",\"\",+'[1]EXT(T)'!AQ107-'[1]EXT(T)'!AQ106)","v":137.67937979999999},{"$f":"IF(+'[1]EXT(T)'!AR107=\"\",\"\",+'[1]EXT(T)'!AR107-'[1]EXT(T)'!AR106)","v":1090.9799999999998},{"$f":"IF(+'[1]EXT(T)'!AS107=\"\",\"\",+'[1]EXT(T)'!AS107-'[1]EXT(T)'!AS106)","v":1466.5990000000002},{"$f":"IF(+'[1]EXT(T)'!AT107=\"\",\"\",+'[1]EXT(T)'!AT107-'[1]EXT(T)'!AT106)","v":911.51896292000038},{"$f":"IF(+'[1]EXT(T)'!AU107=\"\",\"\",+'[1]EXT(T)'!AU107-'[1]EXT(T)'!AU106)","v":277.99999999999994},{"$f":"IF(+'[1]EXT(T)'!AV107=\"\",\"\",+'[1]EXT(T)'!AV107-'[1]EXT(T)'!AV106)","v":1178.7446639353193},{"$f":"IF(+'[1]EXT(T)'!AW107=\"\",\"\",+'[1]EXT(T)'!AW107-'[1]EXT(T)'!AW106)","v":148.19999999999999},5063.5220066553193,5211.7220066553191]
[null,"III",{"$f":"IF(+'[1]EXT(T)'!M108=\"\",\"\",+'[1]EXT(T)'!M108)","v":687.69151992790819},{"$f":"IF(+'[1]EXT(T)'!N108=\"\",\"\",+'[1]EXT(T)'!N108)","v":126.85010329655992},{"$f":"IF(+'[1]EXT(T)'!O108=\"\",\"\",+'[1]EXT(T)'!O108)","v":352.96994999999998},{"$f":"IF(+'[1]EXT(T)'!P108=\"\",\"\",+'[1]EXT(T)'!P108)","v":-194.7},{"$f":"IF(+'[1]EXT(T)'!Q108=\"\",\"\",+'[1]EXT(T)'!Q108)","v":226.6},{"$f":"IF(+'[1]EXT(T)'!R108=\"\",\"\",+'[1]EXT(T)'!R108)","v":457.1},{"$f":"IF(+'[1]EXT(T)'!S108=\"\",\"\",+'[1]EXT(T)'!S108)","v":1074.7},{"$f":"IF(+'[1]EXT(T)'!U108=\"\",\"\",+'[1]EXT(T)'!U108)","v":1656.5115732244681},{"$f":"IF(+'[1]EXT(T)'!V108=\"\",\"\",+'[1]EXT(T)'!V108)","v":2731.2115732244683},{"$f":"IF(+'[1]EXT(T)'!W108=\"\",\"\",+'[1]EXT(T)'!W108)","v":2111.3065268775777},{"$f":"IF(+'[1]EXT(T)'!X108=\"\",\"\",+'[1]EXT(T)'!X108)","v":140.78190474848992},{"$f":"IF(+'[1]EXT(T)'!Y108=\"\",\"\",+'[1]EXT(T)'!Y108)","v":1097.80018},{"$f":"IF(+'[1]EXT(T)'!Z108=\"\",\"\",+'[1]EXT(T)'!Z108)","v":1041.7},{"$f":"IF(+'[1]EXT(T)'!AA108=\"\",\"\",+'[1]EXT(T)'!AA108)","v":676.1},{"$f":"IF(+'[1]EXT(T)'!AB108=\"\",\"\",+'[1]EXT(T)'!AB108)","v":1639.2999999999997},{"$f":"IF(+'[1]EXT(T)'!AC108=\"\",\"\",+'[1]EXT(T)'!AC108)","v":3237.2},{"$f":"IF(+'[1]EXT(T)'!AE108=\"\",\"\",+'[1]EXT(T)'!AE108)","v":6706.9886116260677},{"$f":"IF(+'[1]EXT(T)'!AF108=\"\",\"\",+'[1]EXT(T)'!AF108)","v":9944.1886116260685},{"$f":"IF(+'[1]EXT(T)'!AY108=\"\",\"\",+'[1]EXT(T)'!AY108)","v":14486.447433329651},{"$f":"IF(+'[1]EXT(T)'!AZ108=\"\",\"\",+'[1]EXT(T)'!AZ108)","v":14938.347433329651},{"$f":"IF(+'[1]EXT(T)'!AQ108=\"\",\"\",+'[1]EXT(T)'!AQ108-'[1]EXT(T)'!AQ107)","v":138.52207650000003},{"$f":"IF(+'[1]EXT(T)'!AR108=\"\",\"\",+'[1]EXT(T)'!AR108-'[1]EXT(T)'!AR107)","v":1020.8699999999999},{"$f":"IF(+'[1]EXT(T)'!AS108=\"\",\"\",+'[1]EXT(T)'!AS108-'[1]EXT(T)'!AS107)","v":1445.2991999999995},{"$f":"IF(+'[1]EXT(T)'!AT108=\"\",\"\",+'[1]EXT(T)'!AT108-'[1]EXT(T)'!AT107)","v":868.19563705000041},{"$f":"IF(+'[1]EXT(T)'!AU108=\"\",\"\",+'[1]EXT(T)'!AU108-'[1]EXT(T)'!AU107)","v":279.50000000000011},{"$f":"IF(+'[1]EXT(T)'!AV108=\"\",\"\",+'[1]EXT(T)'!AV108-'[1]EXT(T)'!AV107)","v":1137.6784876900015},{"$f":"IF(+'[1]EXT(T)'!AW108=\"\",\"\",+'[1]EXT(T)'!AW108-'[1]EXT(T)'!AW107)","v":189.89999999999998},4890.0654012400009,5079.9654012400006]
[null,"IV",{"$f":"IF(+'[1]EXT(T)'!M109=\"\",\"\",+'[1]EXT(T)'!M109)","v":815.33924265482528},{"$f":"IF(+'[1]EXT(T)'!N109=\"\",\"\",+'[1]EXT(T)'!N109)","v":165.55751455143985},{"$f":"IF(+'[1]EXT(T)'!O109=\"\",\"\",+'[1]EXT(T)'!O109)","v":344.55346999999995},{"$f":"IF(+'[1]EXT(T)'!P109=\"\",\"\",+'[1]EXT(T)'!P109)","v":375.7},{"$f":"IF(+'[1]EXT(T)'!Q109=\"\",\"\",+'[1]EXT(T)'!Q109)","v":208},{"$f":"IF(+'[1]EXT(T)'!R109=\"\",\"\",+'[1]EXT(T)'!R109)","v":569.19999999999982},{"$f":"IF(+'[1]EXT(T)'!S109=\"\",\"\",+'[1]EXT(T)'!S109)","v":1221.5},{"$f":"IF(+'[1]EXT(T)'!U109=\"\",\"\",+'[1]EXT(T)'!U109)","v":2478.3502272062651},{"$f":"IF(+'[1]EXT(T)'!V109=\"\",\"\",+'[1]EXT(T)'!V109)","v":3699.8502272062651},{"$f":"IF(+'[1]EXT(T)'!W109=\"\",\"\",+'[1]EXT(T)'!W109)","v":2926.6457695324029},{"$f":"IF(+'[1]EXT(T)'!X109=\"\",\"\",+'[1]EXT(T)'!X109)","v":306.33941929992977},{"$f":"IF(+'[1]EXT(T)'!Y109=\"\",\"\",+'[1]EXT(T)'!Y109)","v":1442.35365},{"$f":"IF(+'[1]EXT(T)'!Z109=\"\",\"\",+'[1]EXT(T)'!Z109)","v":1417.4},{"$f":"IF(+'[1]EXT(T)'!AA109=\"\",\"\",+'[1]EXT(T)'!AA109)","v":884.1},{"$f":"IF(+'[1]EXT(T)'!AB109=\"\",\"\",+'[1]EXT(T)'!AB109)","v":2208.4999999999995},{"$f":"IF(+'[1]EXT(T)'!AC109=\"\",\"\",+'[1]EXT(T)'!AC109)","v":4458.7},{"$f":"IF(+'[1]EXT(T)'!AE109=\"\",\"\",+'[1]EXT(T)'!AE109)","v":9185.3388388323328},{"$f":"IF(+'[1]EXT(T)'!AF109=\"\",\"\",+'[1]EXT(T)'!AF109)","v":13644.038838832334},{"$f":"IF(+'[1]EXT(T)'!AY109=\"\",\"\",+'[1]EXT(T)'!AY109)","v":19385.990982789648},{"$f":"IF(+'[1]EXT(T)'!AZ109=\"\",\"\",+'[1]EXT(T)'!AZ109)","v":20037.89098278965},{"$f":"IF(+'[1]EXT(T)'!AQ109=\"\",\"\",+'[1]EXT(T)'!AQ109-'[1]EXT(T)'!AQ108)","v":139.996756},{"$f":"IF(+'[1]EXT(T)'!AR109=\"\",\"\",+'[1]EXT(T)'!AR109-'[1]EXT(T)'!AR108)","v":1059.3900000000003},{"$f":"IF(+'[1]EXT(T)'!AS109=\"\",\"\",+'[1]EXT(T)'!AS109-'[1]EXT(T)'!AS108)","v":1394.8374999999996},{"$f":"IF(+'[1]EXT(T)'!AT109=\"\",\"\",+'[1]EXT(T)'!AT109-'[1]EXT(T)'!AT108)","v":921.33069462000003},{"$f":"IF(+'[1]EXT(T)'!AU109=\"\",\"\",+'[1]EXT(T)'!AU109-'[1]EXT(T)'!AU108)","v":301.09999999999991},{"$f":"IF(+'[1]EXT(T)'!AV109=\"\",\"\",+'[1]EXT(T)'!AV109-'[1]EXT(T)'!AV108)","v":1082.8885988400002},{"$f":"IF(+'[1]EXT(T)'!AW109=\"\",\"\",+'[1]EXT(T)'!AW109-'[1]EXT(T)'!AW108)","v":200},4899.5435494600006,5099.5435494600006]
[2015,"I",{"$f":"IF(+'[1]EXT(T)'!M110=\"\",\"\",+'[1]EXT(T)'!M110)","v":731.43639103016108},{"$f":"IF(+'[1]EXT(T)'!N110=\"\",\"\",+'[1]EXT(T)'!N110)","v":17.825847949000057},{"$f":"IF(+'[1]EXT(T)'!O110=\"\",\"\",+'[1]EXT(T)'!O110)","v":307.89872000000003},{"$f":"IF(+'[1]EXT(T)'!P110=\"\",\"\",+'[1]EXT(T)'!P110)","v":317.10000000000002},{"$f":"IF(+'[1]EXT(T)'!Q110=\"\",\"\",+'[1]EXT(T)'!Q110)","v":410.9},{"$f":"IF(+'[1]EXT(T)'!R110=\"\",\"\",+'[1]EXT(T)'!R110)","v":442.9},{"$f":"IF(+'[1]EXT(T)'!S110=\"\",\"\",+'[1]EXT(T)'!S110)","v":1231.8},{"$f":"IF(+'[1]EXT(T)'!U110=\"\",\"\",+'[1]EXT(T)'!U110)","v":2228.0609589791611},{"$f":"IF(+'[1]EXT(T)'!V110=\"\",\"\",+'[1]EXT(T)'!V110)","v":3459.8609589791613},{"$f":"IF(+'[1]EXT(T)'!W110=\"\",\"\",+'[1]EXT(T)'!W110)","v":731.43639103016108},{"$f":"IF(+'[1]EXT(T)'!X110=\"\",\"\",+'[1]EXT(T)'!X110)","v":17.825847949000057},{"$f":"IF(+'[1]EXT(T)'!Y110=\"\",\"\",+'[1]EXT(T)'!Y110)","v":307.89872000000003},{"$f":"IF(+'[1]EXT(T)'!Z110=\"\",\"\",+'[1]EXT(T)'!Z110)","v":317.10000000000002},{"$f":"IF(+'[1]EXT(T)'!AA110=\"\",\"\",+'[1]EXT(T)'!AA110)","v":410.9},{"$f":"IF(+'[1]EXT(T)'!AB110=\"\",\"\",+'[1]EXT(T)'!AB110)","v":442.9},{"$f":"IF(+'[1]EXT(T)'!AC110=\"\",\"\",+'[1]EXT(T)'!AC110)","v":1231.8},{"$f":"IF(+'[1]EXT(T)'!AE110=\"\",\"\",+'[1]EXT(T)'!AE110)","v":2228.0609589791611},{"$f":"IF(+'[1]EXT(T)'!AF110=\"\",\"\",+'[1]EXT(T)'!AF110)","v":3459.8609589791613},{"$f":"IF(+'[1]EXT(T)'!AY110=\"\",\"\",+'[1]EXT(T)'!AY110)","v":4841.908686699916},{"$f":"IF(+'[1]EXT(T)'!AZ110=\"\",\"\",+'[1]EXT(T)'!AZ110)","v":4949.7086866999161},{"$f":"IF(+'[1]EXT(T)'!AQ110=\"\",\"\",+'[1]EXT(T)'!AQ110)","v":120.38707943},{"$f":"IF(+'[1]EXT(T)'!AR110=\"\",\"\",+'[1]EXT(T)'!AR110)","v":980.83},{"$f":"IF(+'[1]EXT(T)'!AS110=\"\",\"\",+'[1]EXT(T)'!AS110)","v":1395.8903422000001},{"$f":"IF(+'[1]EXT(T)'!AT110=\"\",\"\",+'[1]EXT(T)'!AT110)","v":855.52044485000033},{"$f":"IF(+'[1]EXT(T)'!AU110=\"\",\"\",+'[1]EXT(T)'!AU110)","v":289.2},{"$f":"IF(+'[1]EXT(T)'!AV110=\"\",\"\",+'[1]EXT(T)'!AV110)","v":1200.0808202199153},{"$f":"IF(+'[1]EXT(T)'!AW110=\"\",\"\",+'[1]EXT(T)'!AW110)","v":107.8},{"$f":"IF(OR(W103=\"\",X103=\"\",Y103=\"\",Z103=\"\",AA103=\"\",AB103=\"\"),\"\",W103+X103+Y103+Z103+AA103+AB103)","v":4841.908686699916},4949.7086866999161]
[null,"II",{"$f":"IF(+'[1]EXT(T)'!M111=\"\",\"\",+'[1]EXT(T)'!M111)","v":639.16308711595218},{"$f":"IF(+'[1]EXT(T)'!N111=\"\",\"\",+'[1]EXT(T)'!N111)","v":113.77780540599994},{"$f":"IF(+'[1]EXT(T)'!O111=\"\",\"\",+'[1]EXT(T)'!O111)","v":213.69257000000002},{"$f":"IF(+'[1]EXT(T)'!P111=\"\",\"\",+'[1]EXT(T)'!P111)","v":229.7},{"$f":"IF(+'[1]EXT(T)'!Q111=\"\",\"\",+'[1]EXT(T)'!Q111)","v":190.6},{"$f":"IF(+'[1]EXT(T)'!R111=\"\",\"\",+'[1]EXT(T)'!R111)","v":695.50000000000011},{"$f":"IF(+'[1]EXT(T)'!S111=\"\",\"\",+'[1]EXT(T)'!S111)","v":1333.6},{"$f":"IF(+'[1]EXT(T)'!U111=\"\",\"\",+'[1]EXT(T)'!U111)","v":2082.4334625219522},{"$f":"IF(+'[1]EXT(T)'!V111=\"\",\"\",+'[1]EXT(T)'!V111)","v":3416.0334625219521},{"$f":"IF(+'[1]EXT(T)'!W111=\"\",\"\",+'[1]EXT(T)'!W111)","v":1370.5994781461131},{"$f":"IF(+'[1]EXT(T)'!X111=\"\",\"\",+'[1]EXT(T)'!X111)","v":131.60365335500001},{"$f":"IF(+'[1]EXT(T)'!Y111=\"\",\"\",+'[1]EXT(T)'!Y111)","v":521.59129000000007},{"$f":"IF(+'[1]EXT(T)'!Z111=\"\",\"\",+'[1]EXT(T)'!Z111)","v":546.79999999999995},{"$f":"IF(+'[1]EXT(T)'!AA111=\"\",\"\",+'[1]EXT(T)'!AA111)","v":601.5},{"$f":"IF(+'[1]EXT(T)'!AB111=\"\",\"\",+'[1]EXT(T)'!AB111)","v":1138.4000000000001},{"$f":"IF(+'[1]EXT(T)'!AC111=\"\",\"\",+'[1]EXT(T)'!AC111)","v":2565.3999999999996},{"$f":"IF(+'[1]EXT(T)'!AE111=\"\",\"\",+'[1]EXT(T)'!AE111)","v":4310.4944215011128},{"$f":"IF(+'[1]EXT(T)'!AF111=\"\",\"\",+'[1]EXT(T)'!AF111)","v":6875.8944215011134},{"$f":"IF(+'[1]EXT(T)'!AY111=\"\",\"\",+'[1]EXT(T)'!AY111)","v":10150.543213001125},{"$f":"IF(+'[1]EXT(T)'!AZ111=\"\",\"\",+'[1]EXT(T)'!AZ111)","v":10373.743213001126},{"$f":"IF(+'[1]EXT(T)'!AQ111=\"\",\"\",+'[1]EXT(T)'!AQ111-'[1]EXT(T)'!AQ110)","v":129.16809891},{"$f":"IF(+'[1]EXT(T)'!AR111=\"\",\"\",+'[1]EXT(T)'!AR111-'[1]EXT(T)'!AR110)","v":1099.94},{"$f":"IF(+'[1]EXT(T)'!AS111=\"\",\"\",+'[1]EXT(T)'!AS111-'[1]EXT(T)'!AS110)","v":1559.1044000000004},{"$f":"IF(+'[1]EXT(T)'!AT111=\"\",\"\",+'[1]EXT(T)'!AT111-'[1]EXT(T)'!AT110)","v":955.74376939000012},{"$f":"IF(+'[1]EXT(T)'!AU111=\"\",\"\",+'[1]EXT(T)'!AU111-'[1]EXT(T)'!AU110)","v":292.40000000000003},{"$f":"IF(+'[1]EXT(T)'!AV111=\"\",\"\",+'[1]EXT(T)'!AV111-'[1]EXT(T)'!AV110)","v":1272.2782580012079},{"$f":"IF(+'[1]EXT(T)'!AW111=\"\",\"\",+'[1]EXT(T)'!AW111-'[1]EXT(T)'!AW110)","v":115.39999999999999},5308.6345263012081,5424.0345263012077]
[null,"III",{"$f":"IF(+'[1]EXT(T)'!M112=\"\",\"\",+'[1]EXT(T)'!M112)","v":647.33808828210783},{"$f":"IF(+'[1]EXT(T)'!N112=\"\",\"\",+'[1]EXT(T)'!N112)","v":126.09946136900001},{"$f":"IF(+'[1]EXT(T)'!O112=\"\",\"\",+'[1]EXT(T)'!O112)","v":264.93295000000001},{"$f":"IF(+'[1]EXT(T)'!P112=\"\",\"\",+'[1]EXT(T)'!P112)","v":293.60000000000002},{"$f":"IF(+'[1]EXT(T)'!Q112=\"\",\"\",+'[1]EXT(T)'!Q112)","v":118.8},{"$f":"IF(+'[1]EXT(T)'!R112=\"\",\"\",+'[1]EXT(T)'!R112)","v":648.99999999999977},{"$f":"IF(+'[1]EXT(T)'!S112=\"\",\"\",+'[1]EXT(T)'!S112)","v":1089.3},{"$f":"IF(+'[1]EXT(T)'!U112=\"\",\"\",+'[1]EXT(T)'!U112)","v":2099.7704996511075},{"$f":"IF(+'[1]EXT(T)'!V112=\"\",\"\",+'[1]EXT(T)'!V112)","v":3189.0704996511076},{"$f":"IF(+'[1]EXT(T)'!W112=\"\",\"\",+'[1]EXT(T)'!W112)","v":2017.9375664282211},{"$f":"IF(+'[1]EXT(T)'!X112=\"\",\"\",+'[1]EXT(T)'!X112)","v":257.70311472399999},{"$f":"IF(+'[1]EXT(T)'!Y112=\"\",\"\",+'[1]EXT(T)'!Y112)","v":786.52424000000008},{"$f":"IF(+'[1]EXT(T)'!Z112=\"\",\"\",+'[1]EXT(T)'!Z112)","v":840.4},{"$f":"IF(+'[1]EXT(T)'!AA112=\"\",\"\",+'[1]EXT(T)'!AA112)","v":720.3},{"$f":"IF(+'[1]EXT(T)'!AB112=\"\",\"\",+'[1]EXT(T)'!AB112)","v":1787.3999999999999},{"$f":"IF(+'[1]EXT(T)'!AC112=\"\",\"\",+'[1]EXT(T)'!AC112)","v":3654.7},{"$f":"IF(+'[1]EXT(T)'!AE112=\"\",\"\",+'[1]EXT(T)'!AE112)","v":6410.2649211522203},{"$f":"IF(+'[1]EXT(T)'!AF112=\"\",\"\",+'[1]EXT(T)'!AF112)","v":10064.964921152221},{"$f":"IF(+'[1]EXT(T)'!AY112=\"\",\"\",+'[1]EXT(T)'!AY112)","v":15495.075798931057},{"$f":"IF(+'[1]EXT(T)'!AZ112=\"\",\"\",+'[1]EXT(T)'!AZ112)","v":15839.075798931057},{"$f":"IF(+'[1]EXT(T)'!AQ112=\"\",\"\",+'[1]EXT(T)'!AQ112-'[1]EXT(T)'!AQ111)","v":131.50105795000002},{"$f":"IF(+'[1]EXT(T)'!AR112=\"\",\"\",+'[1]EXT(T)'!AR112-'[1]EXT(T)'!AR111)","v":1055.7900000000004},{"$f":"IF(+'[1]EXT(T)'!AS112=\"\",\"\",+'[1]EXT(T)'!AS112-'[1]EXT(T)'!AS111)","v":1639.4076999999997},{"$f":"IF(+'[1]EXT(T)'!AT112=\"\",\"\",+'[1]EXT(T)'!AT112-'[1]EXT(T)'!AT111)","v":963.23550287000035},{"$f":"IF(+'[1]EXT(T)'!AU112=\"\",\"\",+'[1]EXT(T)'!AU112-'[1]EXT(T)'!AU111)","v":292.90000000000009},{"$f":"IF(+'[1]EXT(T)'!AV112=\"\",\"\",+'[1]EXT(T)'!AV112-'[1]EXT(T)'!AV111)","v":1261.6983251099318},{"$f":"IF(+'[1]EXT(T)'!AW112=\"\",\"\",+'[1]EXT(T)'!AW112-'[1]EXT(T)'!AW111)","v":120.80000000000001},5344.5325859299319,5465.3325859299321]
[null,"IV",{"$f":"IF(+'[1]EXT(T)'!M113=\"\",\"\",+'[1]EXT(T)'!M113)","v":733.94091497156751},{"$f":"IF(+'[1]EXT(T)'!N113=\"\",\"\",+'[1]EXT(T)'!N113)","v":140.61117111829813},{"$f":"IF(+'[1]EXT(T)'!O113=\"\",\"\",+'[1]EXT(T)'!O113)","v":444.37046999999995},{"$f":"IF(+'[1]EXT(T)'!P113=\"\",\"\",+'[1]EXT(T)'!P113)","v":363.1},{"$f":"IF(+'[1]EXT(T)'!Q113=\"\",\"\",+'[1]EXT(T)'!Q113)","v":229.6},{"$f":"IF(+'[1]EXT(T)'!R113=\"\",\"\",+'[1]EXT(T)'!R113)","v":417.50000000000006},{"$f":"IF(+'[1]EXT(T)'!S113=\"\",\"\",+'[1]EXT(T)'!S113)","v":901.10000000000014},{"$f":"IF(+'[1]EXT(T)'!U113=\"\",\"\",+'[1]EXT(T)'!U113)","v":2329.1225560898656},{"$f":"IF(+'[1]EXT(T)'!V113=\"\",\"\",+'[1]EXT(T)'!V113)","v":3230.222556089866},{"$f":"IF(+'[1]EXT(T)'!W113=\"\",\"\",+'[1]EXT(T)'!W113)","v":2751.8784813997886},{"$f":"IF(+'[1]EXT(T)'!X113=\"\",\"\",+'[1]EXT(T)'!X113)","v":398.31428584229809},{"$f":"IF(+'[1]EXT(T)'!Y113=\"\",\"\",+'[1]EXT(T)'!Y113)","v":1230.89471},{"$f":"IF(+'[1]EXT(T)'!Z113=\"\",\"\",+'[1]EXT(T)'!Z113)","v":1203.5},{"$f":"IF(+'[1]EXT(T)'!AA113=\"\",\"\",+'[1]EXT(T)'!AA113)","v":949.9},{"$f":"IF(+'[1]EXT(T)'!AB113=\"\",\"\",+'[1]EXT(T)'!AB113)","v":2204.9},{"$f":"IF(+'[1]EXT(T)'!AC113=\"\",\"\",+'[1]EXT(T)'!AC113)","v":4555.8},{"$f":"IF(+'[1]EXT(T)'!AE113=\"\",\"\",+'[1]EXT(T)'!AE113)","v":8739.3874772420859},{"$f":"IF(+'[1]EXT(T)'!AF113=\"\",\"\",+'[1]EXT(T)'!AF113)","v":13295.187477242087},{"$f":"IF(+'[1]EXT(T)'!AY113=\"\",\"\",+'[1]EXT(T)'!AY113)","v":20939.883254297314},{"$f":"IF(+'[1]EXT(T)'!AZ113=\"\",\"\",+'[1]EXT(T)'!AZ113)","v":21412.583254297315},{"$f":"IF(+'[1]EXT(T)'!AQ113=\"\",\"\",+'[1]EXT(T)'!AQ113-'[1]EXT(T)'!AQ112)","v":136.44827134000002},{"$f":"IF(+'[1]EXT(T)'!AR113=\"\",\"\",+'[1]EXT(T)'!AR113-'[1]EXT(T)'!AR112)","v":1120.0100000000002},{"$f":"IF(+'[1]EXT(T)'!AS113=\"\",\"\",+'[1]EXT(T)'!AS113-'[1]EXT(T)'!AS112)","v":1690.5753999999997},{"$f":"IF(+'[1]EXT(T)'!AT113=\"\",\"\",+'[1]EXT(T)'!AT113-'[1]EXT(T)'!AT112)","v":952.17695929000047},{"$f":"IF(+'[1]EXT(T)'!AU113=\"\",\"\",+'[1]EXT(T)'!AU113-'[1]EXT(T)'!AU112)","v":318.89999999999998},{"$f":"IF(+'[1]EXT(T)'!AV113=\"\",\"\",+'[1]EXT(T)'!AV113-'[1]EXT(T)'!AV112)","v":1226.6968247362593},{"$f":"IF(+'[1]EXT(T)'!AW113=\"\",\"\",+'[1]EXT(T)'!AW113-'[1]EXT(T)'!AW112)","v":128.69999999999999},5444.80745536626,{"$f":"IF(OR(X106=\"\",Y106=\"\",Z106=\"\",AA106=\"\",AB106=\"\",AC106=\"\",W106=\"\"),\"\",X106+W106+Y106+Z106+AA106+AB106+AC106)","v":5573.5074553662598}]
[2016,"I",{"$f":"IF(+'[1]EXT(T)'!M114=\"\",\"\",+'[1]EXT(T)'!M114)","v":516.13585379775668},{"$f":"IF(+'[1]EXT(T)'!N114=\"\",\"\",+'[1]EXT(T)'!N114)","v":128.04810531099983},{"$f":"IF(+'[1]EXT(T)'!O114=\"\",\"\",+'[1]EXT(T)'!O114)","v":270.44161000000003},{"$f":"IF(+'[1]EXT(T)'!P114=\"\",\"\",+'[1]EXT(T)'!P114)","v":314.5},{"$f":"IF(+'[1]EXT(T)'!Q114=\"\",\"\",+'[1]EXT(T)'!Q114)","v":445.79999999999995},{"$f":"IF(+'[1]EXT(T)'!R114=\"\",\"\",+'[1]EXT(T)'!R114)","v":157.60000000000008},{"$f":"IF(+'[1]EXT(T)'!S114=\"\",\"\",+'[1]EXT(T)'!S114)","v":1275.1678000000002},{"$f":"IF(+'[1]EXT(T)'!U114=\"\",\"\",+'[1]EXT(T)'!U114)","v":1832.5255691087566},{"$f":"IF(+'[1]EXT(T)'!V114=\"\",\"\",+'[1]EXT(T)'!V114)","v":3107.693369108757},{"$f":"IF(+'[1]EXT(T)'!W114=\"\",\"\",+'[1]EXT(T)'!W114)","v":516.13585379775668},{"$f":"IF(+'[1]EXT(T)'!X114=\"\",\"\",+'[1]EXT(T)'!X114)","v":128.04810531099983},{"$f":"IF(+'[1]EXT(T)'!Y114=\"\",\"\",+'[1]EXT(T)'!Y114)","v":270.44161000000003},{"$f":"IF(+'[1]EXT(T)'!Z114=\"\",\"\",+'[1]EXT(T)'!Z114)","v":314.5},{"$f":"IF(+'[1]EXT(T)'!AA114=\"\",\"\",+'[1]EXT(T)'!AA114)","v":445.79999999999995},{"$f":"IF(+'[1]EXT(T)'!AB114=\"\",\"\",+'[1]EXT(T)'!AB114)","v":157.60000000000008},{"$f":"IF(+'[1]EXT(T)'!AC114=\"\",\"\",+'[1]EXT(T)'!AC114)","v":1275.1678000000002},{"$f":"IF(+'[1]EXT(T)'!AE114=\"\",\"\",+'[1]EXT(T)'!AE114)","v":1832.5255691087566},{"$f":"IF(+'[1]EXT(T)'!AF114=\"\",\"\",+'[1]EXT(T)'!AF114)","v":3107.693369108757},{"$f":"IF(+'[1]EXT(T)'!AY114=\"\",\"\",+'[1]EXT(T)'!AY114)","v":5325.2413836345213},{"$f":"IF(+'[1]EXT(T)'!AZ114=\"\",\"\",+'[1]EXT(T)'!AZ114)","v":5426.6413836345209},{"$f":"IF(+'[1]EXT(T)'!AQ114=\"\",\"\",+'[1]EXT(T)'!AQ114)","v":118.83448905},{"$f":"IF(+'[1]EXT(T)'!AR114=\"\",\"\",+'[1]EXT(T)'!AR114)","v":1038.48},{"$f":"IF(+'[1]EXT(T)'!AS114=\"\",\"\",+'[1]EXT(T)'!AS114)","v":1662.9848},{"$f":"IF(+'[1]EXT(T)'!AT114=\"\",\"\",+'[1]EXT(T)'!AT114)","v":913.30912053000031},{"$f":"IF(+'[1]EXT(T)'!AU114=\"\",\"\",+'[1]EXT(T)'!AU114)","v":302.3},{"$f":"IF(+'[1]EXT(T)'!AV114=\"\",\"\",+'[1]EXT(T)'!AV114)","v":1289.3329740545207},{"$f":"IF(+'[1]EXT(T)'!AW114=\"\",\"\",+'[1]EXT(T)'!AW114)","v":101.4},{"$f":"IF(OR(W107=\"\",X107=\"\",Y107=\"\",Z107=\"\",AA107=\"\",AB107=\"\"),\"\",W107+X107+Y107+Z107+AA107+AB107)","v":5325.2413836345213},{"$f":"IF(OR(X107=\"\",Y107=\"\",Z107=\"\",AA107=\"\",AB107=\"\",AC107=\"\",W107=\"\"),\"\",X107+W107+Y107+Z107+AA107+AB107+AC107)","v":5426.6413836345209}]
[null,"II",{"$f":"IF(+'[1]EXT(T)'!M115=\"\",\"\",+'[1]EXT(T)'!M115)","v":571.6751935094187},{"$f":"IF(+'[1]EXT(T)'!N115=\"\",\"\",+'[1]EXT(T)'!N115)","v":20.604632342999849},{"$f":"IF(+'[1]EXT(T)'!O115=\"\",\"\",+'[1]EXT(T)'!O115)","v":341.21114999999998},{"$f":"IF(+'[1]EXT(T)'!P115=\"\",\"\",+'[1]EXT(T)'!P115)","v":246.3},{"$f":"IF(+'[1]EXT(T)'!Q115=\"\",\"\",+'[1]EXT(T)'!Q115)","v":247.10000000000002},{"$f":"IF(+'[1]EXT(T)'!R115=\"\",\"\",+'[1]EXT(T)'!R115)","v":869.2},{"$f":"IF(+'[1]EXT(T)'!S115=\"\",\"\",+'[1]EXT(T)'!S115)","v":1351.5418},{"$f":"IF(+'[1]EXT(T)'!U115=\"\",\"\",+'[1]EXT(T)'!U115)","v":2296.0909758524185},{"$f":"IF(+'[1]EXT(T)'!V115=\"\",\"\",+'[1]EXT(T)'!V115)","v":3647.6327758524185},{"$f":"IF(+'[1]EXT(T)'!W115=\"\",\"\",+'[1]EXT(T)'!W115)","v":1087.8110473071754},{"$f":"IF(+'[1]EXT(T)'!X115=\"\",\"\",+'[1]EXT(T)'!X115)","v":148.65273765399968},{"$f":"IF(+'[1]EXT(T)'!Y115=\"\",\"\",+'[1]EXT(T)'!Y115)","v":611.65275999999994},{"$f":"IF(+'[1]EXT(T)'!Z115=\"\",\"\",+'[1]EXT(T)'!Z115)","v":560.79999999999995},{"$f":"IF(+'[1]EXT(T)'!AA115=\"\",\"\",+'[1]EXT(T)'!AA115)","v":692.9},{"$f":"IF(+'[1]EXT(T)'!AB115=\"\",\"\",+'[1]EXT(T)'!AB115)","v":1026.8000000000002},{"$f":"IF(+'[1]EXT(T)'!AC115=\"\",\"\",+'[1]EXT(T)'!AC115)","v":2626.7096000000001},{"$f":"IF(+'[1]EXT(T)'!AE115=\"\",\"\",+'[1]EXT(T)'!AE115)","v":4128.6165449611754},{"$f":"IF(+'[1]EXT(T)'!AF115=\"\",\"\",+'[1]EXT(T)'!AF115)","v":6755.3261449611755},{"$f":"IF(+'[1]EXT(T)'!AY115=\"\",\"\",+'[1]EXT(T)'!AY115)","v":11090.190816688204},{"$f":"IF(+'[1]EXT(T)'!AZ115=\"\",\"\",+'[1]EXT(T)'!AZ115)","v":11295.790816688204},{"$f":"IF(+'[1]EXT(T)'!AQ115=\"\",\"\",+'[1]EXT(T)'!AQ115-'[1]EXT(T)'!AQ114)","v":129.78073734},{"$f":"IF(+'[1]EXT(T)'!AR115=\"\",\"\",+'[1]EXT(T)'!AR115-'[1]EXT(T)'!AR114)","v":1167.1300000000001},{"$f":"IF(+'[1]EXT(T)'!AS115=\"\",\"\",+'[1]EXT(T)'!AS115-'[1]EXT(T)'!AS114)","v":1849.2740999999999},{"$f":"IF(+'[1]EXT(T)'!AT115=\"\",\"\",+'[1]EXT(T)'!AT115-'[1]EXT(T)'!AT114)","v":1011.5852947400002},{"$f":"IF(+'[1]EXT(T)'!AU115=\"\",\"\",+'[1]EXT(T)'!AU115-'[1]EXT(T)'!AU114)","v":306.40000000000003},{"$f":"IF(+'[1]EXT(T)'!AV115=\"\",\"\",+'[1]EXT(T)'!AV115-'[1]EXT(T)'!AV114)","v":1300.7793009736818},{"$f":"IF(+'[1]EXT(T)'!AW115=\"\",\"\",+'[1]EXT(T)'!AW115-'[1]EXT(T)'!AW114)","v":104.20000000000002},{"$f":"IF(OR(W108=\"\",X108=\"\",Y108=\"\",Z108=\"\",AA108=\"\",AB108=\"\"),\"\",W108+X108+Y108+Z108+AA108+AB108)","v":5764.9494330536809},5869.1494330536807]
[null,"III",{"$f":"IF(+'[1]EXT(T)'!M116=\"\",\"\",+'[1]EXT(T)'!M116)","v":429.8027601007588},{"$f":"IF(+'[1]EXT(T)'!N116=\"\",\"\",+'[1]EXT(T)'!N116)","v":265.07310696915579},{"$f":"IF(+'[1]EXT(T)'!O116=\"\",\"\",+'[1]EXT(T)'!O116)","v":299.88634999999999},{"$f":"IF(+'[1]EXT(T)'!P116=\"\",\"\",+'[1]EXT(T)'!P116)","v":169.4},{"$f":"IF(+'[1]EXT(T)'!Q116=\"\",\"\",+'[1]EXT(T)'!Q116)","v":77.799999999999983},{"$f":"IF(+'[1]EXT(T)'!R116=\"\",\"\",+'[1]EXT(T)'!R116)","v":667.60000000000014},{"$f":"IF(+'[1]EXT(T)'!S116=\"\",\"\",+'[1]EXT(T)'!S116)","v":1392.0140000000001},{"$f":"IF(+'[1]EXT(T)'!U116=\"\",\"\",+'[1]EXT(T)'!U116)","v":1909.5622170699148},{"$f":"IF(+'[1]EXT(T)'!V116=\"\",\"\",+'[1]EXT(T)'!V116)","v":3301.5762170699149},{"$f":"IF(+'[1]EXT(T)'!W116=\"\",\"\",+'[1]EXT(T)'!W116)","v":1517.6138074079342},{"$f":"IF(+'[1]EXT(T)'!X116=\"\",\"\",+'[1]EXT(T)'!X116)","v":413.72584462315547},{"$f":"IF(+'[1]EXT(T)'!Y116=\"\",\"\",+'[1]EXT(T)'!Y116)","v":911.53910999999994},{"$f":"IF(+'[1]EXT(T)'!Z116=\"\",\"\",+'[1]EXT(T)'!Z116)","v":730.19999999999993},{"$f":"IF(+'[1]EXT(T)'!AA116=\"\",\"\",+'[1]EXT(T)'!AA116)","v":770.69999999999993},{"$f":"IF(+'[1]EXT(T)'!AB116=\"\",\"\",+'[1]EXT(T)'!AB116)","v":1694.4000000000003},{"$f":"IF(+'[1]EXT(T)'!AC116=\"\",\"\",+'[1]EXT(T)'!AC116)","v":4018.7236000000003},{"$f":"IF(+'[1]EXT(T)'!AE116=\"\",\"\",+'[1]EXT(T)'!AE116)","v":6038.1787620310897},{"$f":"IF(+'[1]EXT(T)'!AF116=\"\",\"\",+'[1]EXT(T)'!AF116)","v":10056.902362031091},{"$f":"IF(+'[1]EXT(T)'!AY116=\"\",\"\",+'[1]EXT(T)'!AY116)","v":16728.773070796502},{"$f":"IF(+'[1]EXT(T)'!AZ116=\"\",\"\",+'[1]EXT(T)'!AZ116)","v":17040.373070796501},{"$f":"IF(+'[1]EXT(T)'!AQ116=\"\",\"\",+'[1]EXT(T)'!AQ116-'[1]EXT(T)'!AQ115)","v":133.19531875000004},{"$f":"IF(+'[1]EXT(T)'!AR116=\"\",\"\",+'[1]EXT(T)'!AR116-'[1]EXT(T)'!AR115)","v":1109.4299999999998},{"$f":"IF(+'[1]EXT(T)'!AS116=\"\",\"\",+'[1]EXT(T)'!AS116-'[1]EXT(T)'!AS115)","v":1763.0153},{"$f":"IF(+'[1]EXT(T)'!AT116=\"\",\"\",+'[1]EXT(T)'!AT116-'[1]EXT(T)'!AT115)","v":1002.1497073500004},{"$f":"IF(+'[1]EXT(T)'!AU116=\"\",\"\",+'[1]EXT(T)'!AU116-'[1]EXT(T)'!AU115)","v":312.89999999999998},{"$f":"IF(+'[1]EXT(T)'!AV116=\"\",\"\",+'[1]EXT(T)'!AV116-'[1]EXT(T)'!AV115)","v":1317.8919280082996},{"$f":"IF(+'[1]EXT(T)'!AW116=\"\",\"\",+'[1]EXT(T)'!AW116-'[1]EXT(T)'!AW115)","v":106},5638.5822541082998,5744.5822541082998]
[null,"IV",{"$f":"IF(+'[1]EXT(T)'!M117=\"\",\"\",+'[1]EXT(T)'!M117)","v":686.3345732151713},{"$f":"IF(+'[1]EXT(T)'!N117=\"\",\"\",+'[1]EXT(T)'!N117)","v":-68.671623869334397},{"$f":"IF(+'[1]EXT(T)'!O117=\"\",\"\",+'[1]EXT(T)'!O117)","v":262.83296000000001},{"$f":"IF(+'[1]EXT(T)'!P117=\"\",\"\",+'[1]EXT(T)'!P117)","v":409.2},{"$f":"IF(+'[1]EXT(T)'!Q117=\"\",\"\",+'[1]EXT(T)'!Q117)","v":128.00000000000003},{"$f":"IF(+'[1]EXT(T)'!R117=\"\",\"\",+'[1]EXT(T)'!R117)","v":712.3},{"$f":"IF(+'[1]EXT(T)'!S117=\"\",\"\",+'[1]EXT(T)'!S117)","v":726.69889999999998},{"$f":"IF(+'[1]EXT(T)'!U117=\"\",\"\",+'[1]EXT(T)'!U117)","v":2129.9959093458369},{"$f":"IF(+'[1]EXT(T)'!V117=\"\",\"\",+'[1]EXT(T)'!V117)","v":2856.6948093458368},{"$f":"IF(+'[1]EXT(T)'!W117=\"\",\"\",+'[1]EXT(T)'!W117)","v":2203.9483806231055},{"$f":"IF(+'[1]EXT(T)'!X117=\"\",\"\",+'[1]EXT(T)'!X117)","v":345.05422075382108},{"$f":"IF(+'[1]EXT(T)'!Y117=\"\",\"\",+'[1]EXT(T)'!Y117)","v":1174.3720699999999},{"$f":"IF(+'[1]EXT(T)'!Z117=\"\",\"\",+'[1]EXT(T)'!Z117)","v":1139.3999999999999},{"$f":"IF(+'[1]EXT(T)'!AA117=\"\",\"\",+'[1]EXT(T)'!AA117)","v":898.69999999999993},{"$f":"IF(+'[1]EXT(T)'!AB117=\"\",\"\",+'[1]EXT(T)'!AB117)","v":2406.7000000000003},{"$f":"IF(+'[1]EXT(T)'!AC117=\"\",\"\",+'[1]EXT(T)'!AC117)","v":4745.4225000000006},{"$f":"IF(+'[1]EXT(T)'!AE117=\"\",\"\",+'[1]EXT(T)'!AE117)","v":8168.1746713769262},{"$f":"IF(+'[1]EXT(T)'!AF117=\"\",\"\",+'[1]EXT(T)'!AF117)","v":12913.597171376929},{"$f":"IF(+'[1]EXT(T)'!AY117=\"\",\"\",+'[1]EXT(T)'!AY117)","v":22692.590534253191},{"$f":"IF(+'[1]EXT(T)'!AZ117=\"\",\"\",+'[1]EXT(T)'!AZ117)","v":23118.69053425319},{"$f":"IF(+'[1]EXT(T)'!AQ117=\"\",\"\",+'[1]EXT(T)'!AQ117-'[1]EXT(T)'!AQ116)","v":132.98522796999998},{"$f":"IF(+'[1]EXT(T)'!AR117=\"\",\"\",+'[1]EXT(T)'!AR117-'[1]EXT(T)'!AR116)","v":1228.8099999999995},{"$f":"IF(+'[1]EXT(T)'!AS117=\"\",\"\",+'[1]EXT(T)'!AS117-'[1]EXT(T)'!AS116)","v":1884.6934999999994},{"$f":"IF(+'[1]EXT(T)'!AT117=\"\",\"\",+'[1]EXT(T)'!AT117-'[1]EXT(T)'!AT116)","v":1021.9863861700005},{"$f":"IF(+'[1]EXT(T)'!AU117=\"\",\"\",+'[1]EXT(T)'!AU117-'[1]EXT(T)'!AU116)","v":342.49999999999989},{"$f":"IF(+'[1]EXT(T)'!AV117=\"\",\"\",+'[1]EXT(T)'!AV117-'[1]EXT(T)'!AV116)","v":1352.8423493166893},{"$f":"IF(+'[1]EXT(T)'!AW117=\"\",\"\",+'[1]EXT(T)'!AW117-'[1]EXT(T)'!AW116)","v":114.5},5963.8174634566885,{"$f":"IF(OR(X110=\"\",Y110=\"\",Z110=\"\",AA110=\"\",AB110=\"\",AC110=\"\",W110=\"\"),\"\",X110+W110+Y110+Z110+AA110+AB110+AC110)","v":6078.3174634566885}]
[2017,"I",{"$f":"IF(+'[1]EXT(T)'!M118=\"\",\"\",+'[1]EXT(T)'!M118)","v":943.0862557883388},{"$f":"IF(+'[1]EXT(T)'!N118=\"\",\"\",+'[1]EXT(T)'!N118)","v":137.73629427626753},{"$f":"IF(+'[1]EXT(T)'!O118=\"\",\"\",+'[1]EXT(T)'!O118)","v":288.90566999999999},{"$f":"IF(+'[1]EXT(T)'!P118=\"\",\"\",+'[1]EXT(T)'!P118)","v":321.10000000000002},{"$f":"IF(+'[1]EXT(T)'!Q118=\"\",\"\",+'[1]EXT(T)'!Q118)","v":445.9},{"$f":"IF(+'[1]EXT(T)'!R118=\"\",\"\",+'[1]EXT(T)'!R118)","v":712.29999999999984},{"$f":"IF(+'[1]EXT(T)'!S118=\"\",\"\",+'[1]EXT(T)'!S118)","v":1258.6929},{"$f":"IF(+'[1]EXT(T)'!U118=\"\",\"\",+'[1]EXT(T)'!U118)","v":2849.0282200646061},{"$f":"IF(+'[1]EXT(T)'!V118=\"\",\"\",+'[1]EXT(T)'!V118)","v":4107.7211200646061},{"$f":"IF(+'[1]EXT(T)'!W118=\"\",\"\",+'[1]EXT(T)'!W118)","v":943.0862557883388},{"$f":"IF(+'[1]EXT(T)'!X118=\"\",\"\",+'[1]EXT(T)'!X118)","v":137.73629427626753},{"$f":"IF(+'[1]EXT(T)'!Y118=\"\",\"\",+'[1]EXT(T)'!Y118)","v":288.90566999999999},{"$f":"IF(+'[1]EXT(T)'!Z118=\"\",\"\",+'[1]EXT(T)'!Z118)","v":321.10000000000002},{"$f":"IF(+'[1]EXT(T)'!AA118=\"\",\"\",+'[1]EXT(T)'!AA118)","v":445.9},{"$f":"IF(+'[1]EXT(T)'!AB118=\"\",\"\",+'[1]EXT(T)'!AB118)","v":712.29999999999984},{"$f":"IF(+'[1]EXT(T)'!AC118=\"\",\"\",+'[1]EXT(T)'!AC118)","v":1258.6929},{"$f":"IF(+'[1]EXT(T)'!AE118=\"\",\"\",+'[1]EXT(T)'!AE118)","v":2849.0282200646061},{"$f":"IF(+'[1]EXT(T)'!AF118=\"\",\"\",+'[1]EXT(T)'!AF118)","v":4107.7211200646061},{"$f":"IF(+'[1]EXT(T)'!AY118=\"\",\"\",+'[1]EXT(T)'!AY118)","v":6047.5686435413481},{"$f":"IF(+'[1]EXT(T)'!AZ118=\"\",\"\",+'[1]EXT(T)'!AZ118)","v":6151.268643541348},{"$f":"IF(+'[1]EXT(T)'!AQ118=\"\",\"\",+'[1]EXT(T)'!AQ118)","v":126.76014153},{"$f":"IF(+'[1]EXT(T)'!AR118=\"\",\"\",+'[1]EXT(T)'!AR118)","v":1163.56},{"$f":"IF(+'[1]EXT(T)'!AS118=\"\",\"\",+'[1]EXT(T)'!AS118)","v":1941.35},{"$f":"IF(+'[1]EXT(T)'!AT118=\"\",\"\",+'[1]EXT(T)'!AT118)","v":1037.6895514800001},{"$f":"IF(+'[1]EXT(T)'!AU118=\"\",\"\",+'[1]EXT(T)'!AU118)","v":323.29999999999995},{"$f":"IF(+'[1]EXT(T)'!AV118=\"\",\"\",+'[1]EXT(T)'!AV118)","v":1454.9089505313482},{"$f":"IF(+'[1]EXT(T)'!AW118=\"\",\"\",+'[1]EXT(T)'!AW118)","v":103.7},{"$f":"IF(OR(W111=\"\",X111=\"\",Y111=\"\",Z111=\"\",AA111=\"\",AB111=\"\"),\"\",W111+X111+Y111+Z111+AA111+AB111)","v":6047.5686435413481},{"$f":"IF(OR(X111=\"\",Y111=\"\",Z111=\"\",AA111=\"\",AB111=\"\",AC111=\"\",W111=\"\"),\"\",X111+W111+Y111+Z111+AA111+AB111+AC111)","v":6151.268643541348}]
[null,"II",{"$f":"IF(+'[1]EXT(T)'!M119=\"\",\"\",+'[1]EXT(T)'!M119)","v":639.45308177651418},{"$f":"IF(+'[1]EXT(T)'!N119=\"\",\"\",+'[1]EXT(T)'!N119)","v":196.9727085065},{"$f":"IF(+'[1]EXT(T)'!O119=\"\",\"\",+'[1]EXT(T)'!O119)","v":216.18621000000002},{"$f":"IF(+'[1]EXT(T)'!P119=\"\",\"\",+'[1]EXT(T)'!P119)","v":287.7},{"$f":"IF(+'[1]EXT(T)'!Q119=\"\",\"\",+'[1]EXT(T)'!Q119)","v":111.1},{"$f":"IF(+'[1]EXT(T)'!R119=\"\",\"\",+'[1]EXT(T)'!R119)","v":614.39999999999986},{"$f":"IF(+'[1]EXT(T)'!S119=\"\",\"\",+'[1]EXT(T)'!S119)","v":1297.9016000000001},{"$f":"IF(+'[1]EXT(T)'!U119=\"\",\"\",+'[1]EXT(T)'!U119)","v":2065.8120002830137},{"$f":"IF(+'[1]EXT(T)'!V119=\"\",\"\",+'[1]EXT(T)'!V119)","v":3363.7136002830139},{"$f":"IF(+'[1]EXT(T)'!W119=\"\",\"\",+'[1]EXT(T)'!W119)","v":1582.539337564853},{"$f":"IF(+'[1]EXT(T)'!X119=\"\",\"\",+'[1]EXT(T)'!X119)","v":334.70900278276753},{"$f":"IF(+'[1]EXT(T)'!Y119=\"\",\"\",+'[1]EXT(T)'!Y119)","v":505.09188},{"$f":"IF(+'[1]EXT(T)'!Z119=\"\",\"\",+'[1]EXT(T)'!Z119)","v":608.79999999999995},{"$f":"IF(+'[1]EXT(T)'!AA119=\"\",\"\",+'[1]EXT(T)'!AA119)","v":557},{"$f":"IF(+'[1]EXT(T)'!AB119=\"\",\"\",+'[1]EXT(T)'!AB119)","v":1326.6999999999998},{"$f":"IF(+'[1]EXT(T)'!AC119=\"\",\"\",+'[1]EXT(T)'!AC119)","v":2556.5945000000002},{"$f":"IF(+'[1]EXT(T)'!AE119=\"\",\"\",+'[1]EXT(T)'!AE119)","v":4914.8402203476198},{"$f":"IF(+'[1]EXT(T)'!AF119=\"\",\"\",+'[1]EXT(T)'!AF119)","v":7471.43472034762},{"$f":"IF(+'[1]EXT(T)'!AY119=\"\",\"\",+'[1]EXT(T)'!AY119)","v":12496.05519875736},{"$f":"IF(+'[1]EXT(T)'!AZ119=\"\",\"\",+'[1]EXT(T)'!AZ119)","v":12708.15519875736},{"$f":"IF(+'[1]EXT(T)'!AQ119=\"\",\"\",+'[1]EXT(T)'!AQ119-'[1]EXT(T)'!AQ118)","v":132.32606936999997},{"$f":"IF(+'[1]EXT(T)'!AR119=\"\",\"\",+'[1]EXT(T)'!AR119-'[1]EXT(T)'!AR118)","v":1268.27},{"$f":"IF(+'[1]EXT(T)'!AS119=\"\",\"\",+'[1]EXT(T)'!AS119-'[1]EXT(T)'!AS118)","v":2111.02},{"$f":"IF(+'[1]EXT(T)'!AT119=\"\",\"\",+'[1]EXT(T)'!AT119-'[1]EXT(T)'!AT118)","v":1142.5560377100003},{"$f":"IF(+'[1]EXT(T)'!AU119=\"\",\"\",+'[1]EXT(T)'!AU119-'[1]EXT(T)'!AU118)","v":340.70000000000005},{"$f":"IF(+'[1]EXT(T)'!AV119=\"\",\"\",+'[1]EXT(T)'!AV119-'[1]EXT(T)'!AV118)","v":1453.6144481360111},{"$f":"IF(+'[1]EXT(T)'!AW119=\"\",\"\",+'[1]EXT(T)'!AW119-'[1]EXT(T)'!AW118)","v":108.40000000000002},{"$f":"IF(OR(W112=\"\",X112=\"\",Y112=\"\",Z112=\"\",AA112=\"\",AB112=\"\"),\"\",W112+X112+Y112+Z112+AA112+AB112)","v":6448.4865552160118},6556.8865552160114]
[null,"III",{"$f":"IF(+'[1]EXT(T)'!M120=\"\",\"\",+'[1]EXT(T)'!M120)","v":665.81462318312026},{"$f":"IF(+'[1]EXT(T)'!N120=\"\",\"\",+'[1]EXT(T)'!N120)","v":53.971530844307239},{"$f":"IF(+'[1]EXT(T)'!O120=\"\",\"\",+'[1]EXT(T)'!O120)","v":282.66518999999994},{"$f":"IF(+'[1]EXT(T)'!P120=\"\",\"\",+'[1]EXT(T)'!P120)","v":205.8},{"$f":"IF(+'[1]EXT(T)'!Q120=\"\",\"\",+'[1]EXT(T)'!Q120)","v":96.4},{"$f":"IF(+'[1]EXT(T)'!R120=\"\",\"\",+'[1]EXT(T)'!R120)","v":585.20000000000005},{"$f":"IF(+'[1]EXT(T)'!S120=\"\",\"\",+'[1]EXT(T)'!S120)","v":1171.3191999999999},{"$f":"IF(+'[1]EXT(T)'!U120=\"\",\"\",+'[1]EXT(T)'!U120)","v":1889.8513440274276},{"$f":"IF(+'[1]EXT(T)'!V120=\"\",\"\",+'[1]EXT(T)'!V120)","v":3061.1705440274272},{"$f":"IF(+'[1]EXT(T)'!W120=\"\",\"\",+'[1]EXT(T)'!W120)","v":2248.3539607479734},{"$f":"IF(+'[1]EXT(T)'!X120=\"\",\"\",+'[1]EXT(T)'!X120)","v":388.68053362707474},{"$f":"IF(+'[1]EXT(T)'!Y120=\"\",\"\",+'[1]EXT(T)'!Y120)","v":787.75706999999989},{"$f":"IF(+'[1]EXT(T)'!Z120=\"\",\"\",+'[1]EXT(T)'!Z120)","v":814.59999999999991},{"$f":"IF(+'[1]EXT(T)'!AA120=\"\",\"\",+'[1]EXT(T)'!AA120)","v":653.4},{"$f":"IF(+'[1]EXT(T)'!AB120=\"\",\"\",+'[1]EXT(T)'!AB120)","v":1911.8999999999999},{"$f":"IF(+'[1]EXT(T)'!AC120=\"\",\"\",+'[1]EXT(T)'!AC120)","v":3727.9137000000001},{"$f":"IF(+'[1]EXT(T)'!AE120=\"\",\"\",+'[1]EXT(T)'!AE120)","v":6804.6915643750472},{"$f":"IF(+'[1]EXT(T)'!AF120=\"\",\"\",+'[1]EXT(T)'!AF120)","v":10532.605264375048},{"$f":"IF(+'[1]EXT(T)'!AY120=\"\",\"\",+'[1]EXT(T)'!AY120)","v":18890.731494041458},{"$f":"IF(+'[1]EXT(T)'!AZ120=\"\",\"\",+'[1]EXT(T)'!AZ120)","v":19216.431494041459},{"$f":"IF(+'[1]EXT(T)'!AQ120=\"\",\"\",+'[1]EXT(T)'!AQ120-'[1]EXT(T)'!AQ119)","v":135.60000000000002},{"$f":"IF(+'[1]EXT(T)'!AR120=\"\",\"\",+'[1]EXT(T)'!AR120-'[1]EXT(T)'!AR119)","v":1225.5},{"$f":"IF(+'[1]EXT(T)'!AS120=\"\",\"\",+'[1]EXT(T)'!AS120-'[1]EXT(T)'!AS119)","v":2044.9700000000003},{"$f":"IF(+'[1]EXT(T)'!AT120=\"\",\"\",+'[1]EXT(T)'!AT120-'[1]EXT(T)'!AT119)","v":1126.2230793100002},{"$f":"IF(+'[1]EXT(T)'!AU120=\"\",\"\",+'[1]EXT(T)'!AU120-'[1]EXT(T)'!AU119)","v":355.59999999999991},{"$f":"IF(+'[1]EXT(T)'!AV120=\"\",\"\",+'[1]EXT(T)'!AV120-'[1]EXT(T)'!AV119)","v":1506.7832159741001},{"$f":"IF(+'[1]EXT(T)'!AW120=\"\",\"\",+'[1]EXT(T)'!AW120-'[1]EXT(T)'!AW119)","v":113.60000000000002},6394.6762952841009,6508.2762952841013]
[null,"IV",{"$f":"IF(+'[1]EXT(T)'!M121=\"\",\"\",+'[1]EXT(T)'!M121)","v":493.82058969164081},{"$f":"IF(+'[1]EXT(T)'!N121=\"\",\"\",+'[1]EXT(T)'!N121)","v":500.39238852623618},{"$f":"IF(+'[1]EXT(T)'!O121=\"\",\"\",+'[1]EXT(T)'!O121)","v":324.02722},{"$f":"IF(+'[1]EXT(T)'!P121=\"\",\"\",+'[1]EXT(T)'!P121)","v":361.2},{"$f":"IF(+'[1]EXT(T)'!Q121=\"\",\"\",+'[1]EXT(T)'!Q121)","v":118.5},{"$f":"IF(+'[1]EXT(T)'!R121=\"\",\"\",+'[1]EXT(T)'!R121)","v":1658.8000000000002},{"$f":"IF(+'[1]EXT(T)'!S121=\"\",\"\",+'[1]EXT(T)'!S121)","v":448.73130000000003},{"$f":"IF(+'[1]EXT(T)'!U121=\"\",\"\",+'[1]EXT(T)'!U121)","v":3456.7401982178772},{"$f":"IF(+'[1]EXT(T)'!V121=\"\",\"\",+'[1]EXT(T)'!V121)","v":3905.4714982178771},{"$f":"IF(+'[1]EXT(T)'!W121=\"\",\"\",+'[1]EXT(T)'!W121)","v":2742.174550439614},{"$f":"IF(+'[1]EXT(T)'!X121=\"\",\"\",+'[1]EXT(T)'!X121)","v":889.07292215331086},{"$f":"IF(+'[1]EXT(T)'!Y121=\"\",\"\",+'[1]EXT(T)'!Y121)","v":1111.7842899999998},{"$f":"IF(+'[1]EXT(T)'!Z121=\"\",\"\",+'[1]EXT(T)'!Z121)","v":1175.8},{"$f":"IF(+'[1]EXT(T)'!AA121=\"\",\"\",+'[1]EXT(T)'!AA121)","v":771.9},{"$f":"IF(+'[1]EXT(T)'!AB121=\"\",\"\",+'[1]EXT(T)'!AB121)","v":3570.7},{"$f":"IF(+'[1]EXT(T)'!AC121=\"\",\"\",+'[1]EXT(T)'!AC121)","v":4176.6450000000004},{"$f":"IF(+'[1]EXT(T)'!AE121=\"\",\"\",+'[1]EXT(T)'!AE121)","v":10261.431762592925},{"$f":"IF(+'[1]EXT(T)'!AF121=\"\",\"\",+'[1]EXT(T)'!AF121)","v":14438.076762592926},{"$f":"IF(+'[1]EXT(T)'!AY121=\"\",\"\",+'[1]EXT(T)'!AY121)","v":25449.350853748791},{"$f":"IF(+'[1]EXT(T)'!AZ121=\"\",\"\",+'[1]EXT(T)'!AZ121)","v":25893.050853748791},{"$f":"IF(+'[1]EXT(T)'!AQ121=\"\",\"\",+'[1]EXT(T)'!AQ121-'[1]EXT(T)'!AQ120)","v":136.19999999999993},{"$f":"IF(+'[1]EXT(T)'!AR121=\"\",\"\",+'[1]EXT(T)'!AR121-'[1]EXT(T)'!AR120)","v":1328.04},{"$f":"IF(+'[1]EXT(T)'!AS121=\"\",\"\",+'[1]EXT(T)'!AS121-'[1]EXT(T)'!AS120)","v":2094.8760999999995},{"$f":"IF(+'[1]EXT(T)'!AT121=\"\",\"\",+'[1]EXT(T)'!AT121-'[1]EXT(T)'!AT120)","v":1131.8521937900005},{"$f":"IF(+'[1]EXT(T)'!AU121=\"\",\"\",+'[1]EXT(T)'!AU121-'[1]EXT(T)'!AU120)","v":371.20000000000005},{"$f":"IF(+'[1]EXT(T)'!AV121=\"\",\"\",+'[1]EXT(T)'!AV121-'[1]EXT(T)'!AV120)","v":1496.4510659173284},{"$f":"IF(+'[1]EXT(T)'!AW121=\"\",\"\",+'[1]EXT(T)'!AW121-'[1]EXT(T)'!AW120)","v":118},6558.6193597073279,{"$f":"IF(OR(X114=\"\",Y114=\"\",Z114=\"\",AA114=\"\",AB114=\"\",AC114=\"\",W114=\"\"),\"\",X114+W114+Y114+Z114+AA114+AB114+AC114)","v":6676.6193597073279}]
[2018,"I",{"$f":"IF(+'[1]EXT(T)'!M122=\"\",\"\",+'[1]EXT(T)'!M122)","v":292.14422932656225},{"$f":"IF(+'[1]EXT(T)'!N122=\"\",\"\",+'[1]EXT(T)'!N122)","v":401.40204260121595},{"$f":"IF(+'[1]EXT(T)'!O122=\"\",\"\",+'[1]EXT(T)'!O122)","v":287.09195},{"$f":"IF(+'[1]EXT(T)'!P122=\"\",\"\",+'[1]EXT(T)'!P122)","v":304.7},{"$f":"IF(+'[1]EXT(T)'!Q122=\"\",\"\",+'[1]EXT(T)'!Q122)","v":419.19999999999993},{"$f":"IF(+'[1]EXT(T)'!R122=\"\",\"\",+'[1]EXT(T)'!R122)","v":627.4},{"$f":"IF(+'[1]EXT(T)'!S122=\"\",\"\",+'[1]EXT(T)'!S122)","v":1483.3557999999998},{"$f":"IF(+'[1]EXT(T)'!U122=\"\",\"\",+'[1]EXT(T)'!U122)","v":2331.9382219277782},{"$f":"IF(+'[1]EXT(T)'!V122=\"\",\"\",+'[1]EXT(T)'!V122)","v":3815.294021927778},{"$f":"IF(+'[1]EXT(T)'!W122=\"\",\"\",+'[1]EXT(T)'!W122)","v":292.14422932656225},{"$f":"IF(+'[1]EXT(T)'!X122=\"\",\"\",+'[1]EXT(T)'!X122)","v":401.40204260121595},{"$f":"IF(+'[1]EXT(T)'!Y122=\"\",\"\",+'[1]EXT(T)'!Y122)","v":287.09195},{"$f":"IF(+'[1]EXT(T)'!Z122=\"\",\"\",+'[1]EXT(T)'!Z122)","v":304.7},{"$f":"IF(+'[1]EXT(T)'!AA122=\"\",\"\",+'[1]EXT(T)'!AA122)","v":419.19999999999993},{"$f":"IF(+'[1]EXT(T)'!AB122=\"\",\"\",+'[1]EXT(T)'!AB122)","v":627.4},{"$f":"IF(+'[1]EXT(T)'!AC122=\"\",\"\",+'[1]EXT(T)'!AC122)","v":1483.3557999999998},{"$f":"IF(+'[1]EXT(T)'!AE122=\"\",\"\",+'[1]EXT(T)'!AE122)","v":2331.9382219277782},{"$f":"IF(+'[1]EXT(T)'!AF122=\"\",\"\",+'[1]EXT(T)'!AF122)","v":3815.294021927778},{"$f":"IF(+'[1]EXT(T)'!AY122=\"\",\"\",+'[1]EXT(T)'!AY122)","v":6337.7208984919362},{"$f":"IF(+'[1]EXT(T)'!AZ122=\"\",\"\",+'[1]EXT(T)'!AZ122)","v":6443.2208984919362},{"$f":"IF(+'[1]EXT(T)'!AQ122=\"\",\"\",+'[1]EXT(T)'!AQ122)","v":111.48286081000001},{"$f":"IF(+'[1]EXT(T)'!AR122=\"\",\"\",+'[1]EXT(T)'!AR122)","v":1225.1500000000001},{"$f":"IF(+'[1]EXT(T)'!AS122=\"\",\"\",+'[1]EXT(T)'!AS122)","v":2019.1696000000002},{"$f":"IF(+'[1]EXT(T)'!AT122=\"\",\"\",+'[1]EXT(T)'!AT122)","v":1077.6079530899999},{"$f":"IF(+'[1]EXT(T)'!AU122=\"\",\"\",+'[1]EXT(T)'!AU122)","v":353.4},{"$f":"IF(+'[1]EXT(T)'!AV122=\"\",\"\",+'[1]EXT(T)'!AV122)","v":1550.9104845919367},{"$f":"IF(+'[1]EXT(T)'!AW122=\"\",\"\",+'[1]EXT(T)'!AW122)","v":105.5},{"$f":"IF(OR(W115=\"\",X115=\"\",Y115=\"\",Z115=\"\",AA115=\"\",AB115=\"\"),\"\",W115+X115+Y115+Z115+AA115+AB115)","v":6337.7208984919362},{"$f":"IF(OR(X115=\"\",Y115=\"\",Z115=\"\",AA115=\"\",AB115=\"\",AC115=\"\",W115=\"\"),\"\",X115+W115+Y115+Z115+AA115+AB115+AC115)","v":6443.2208984919362}]
[null,"II",{"$f":"IF(+'[1]EXT(T)'!M123=\"\",\"\",+'[1]EXT(T)'!M123)","v":217.83655638881157},{"$f":"IF(+'[1]EXT(T)'!N123=\"\",\"\",+'[1]EXT(T)'!N123)","v":101.80558055783229},{"$f":"IF(+'[1]EXT(T)'!O123=\"\",\"\",+'[1]EXT(T)'!O123)","v":171.65057999999999},{"$f":"IF(+'[1]EXT(T)'!P123=\"\",\"\",+'[1]EXT(T)'!P123)","v":106.3},{"$f":"IF(+'[1]EXT(T)'!Q123=\"\",\"\",+'[1]EXT(T)'!Q123)","v":63.999999999999972},{"$f":"IF(+'[1]EXT(T)'!R123=\"\",\"\",+'[1]EXT(T)'!R123)","v":618.19999999999993},{"$f":"IF(+'[1]EXT(T)'!S123=\"\",\"\",+'[1]EXT(T)'!S123)","v":1474.6949},{"$f":"IF(+'[1]EXT(T)'!U123=\"\",\"\",+'[1]EXT(T)'!U123)","v":1279.7927169466438},{"$f":"IF(+'[1]EXT(T)'!V123=\"\",\"\",+'[1]EXT(T)'!V123)","v":2754.4876169466438},{"$f":"IF(+'[1]EXT(T)'!W123=\"\",\"\",+'[1]EXT(T)'!W123)","v":509.98078571537383},{"$f":"IF(+'[1]EXT(T)'!X123=\"\",\"\",+'[1]EXT(T)'!X123)","v":503.20762315904824},{"$f":"IF(+'[1]EXT(T)'!Y123=\"\",\"\",+'[1]EXT(T)'!Y123)","v":458.74252999999999},{"$f":"IF(+'[1]EXT(T)'!Z123=\"\",\"\",+'[1]EXT(T)'!Z123)","v":411},{"$f":"IF(+'[1]EXT(T)'!AA123=\"\",\"\",+'[1]EXT(T)'!AA123)","v":483.19999999999993},{"$f":"IF(+'[1]EXT(T)'!AB123=\"\",\"\",+'[1]EXT(T)'!AB123)","v":1245.5999999999999},{"$f":"IF(+'[1]EXT(T)'!AC123=\"\",\"\",+'[1]EXT(T)'!AC123)","v":2958.0506999999998},{"$f":"IF(+'[1]EXT(T)'!AE123=\"\",\"\",+'[1]EXT(T)'!AE123)","v":3611.730938874422},{"$f":"IF(+'[1]EXT(T)'!AF123=\"\",\"\",+'[1]EXT(T)'!AF123)","v":6569.7816388744213},{"$f":"IF(+'[1]EXT(T)'!AY123=\"\",\"\",+'[1]EXT(T)'!AY123)","v":13585.311856894767},{"$f":"IF(+'[1]EXT(T)'!AZ123=\"\",\"\",+'[1]EXT(T)'!AZ123)","v":13816.511856894767},{"$f":"IF(+'[1]EXT(T)'!AQ123=\"\",\"\",+'[1]EXT(T)'!AQ123-'[1]EXT(T)'!AQ122)","v":125.45979474999999},{"$f":"IF(+'[1]EXT(T)'!AR123=\"\",\"\",+'[1]EXT(T)'!AR123-'[1]EXT(T)'!AR122)","v":1426.08},{"$f":"IF(+'[1]EXT(T)'!AS123=\"\",\"\",+'[1]EXT(T)'!AS123-'[1]EXT(T)'!AS122)","v":2379.9129999999996},{"$f":"IF(+'[1]EXT(T)'!AT123=\"\",\"\",+'[1]EXT(T)'!AT123-'[1]EXT(T)'!AT122)","v":1280.0408060800003},{"$f":"IF(+'[1]EXT(T)'!AU123=\"\",\"\",+'[1]EXT(T)'!AU123-'[1]EXT(T)'!AU122)","v":371.20000000000005},{"$f":"IF(+'[1]EXT(T)'!AV123=\"\",\"\",+'[1]EXT(T)'!AV123-'[1]EXT(T)'!AV122)","v":1664.8973575728289},{"$f":"IF(+'[1]EXT(T)'!AW123=\"\",\"\",+'[1]EXT(T)'!AW123-'[1]EXT(T)'!AW122)","v":125.69999999999999},{"$f":"IF(OR(W116=\"\",X116=\"\",Y116=\"\",Z116=\"\",AA116=\"\",AB116=\"\"),\"\",W116+X116+Y116+Z116+AA116+AB116)","v":7247.5909584028277},7373.2909584028275]
[null,"III",{"$f":"IF(+'[1]EXT(T)'!M124=\"\",\"\",+'[1]EXT(T)'!M124)","v":539.23706407264569},{"$f":"IF(+'[1]EXT(T)'!N124=\"\",\"\",+'[1]EXT(T)'!N124)","v":47.807560966097057},{"$f":"IF(+'[1]EXT(T)'!O124=\"\",\"\",+'[1]EXT(T)'!O124)","v":173.48479},{"$f":"IF(+'[1]EXT(T)'!P124=\"\",\"\",+'[1]EXT(T)'!P124)","v":163.30000000000001},{"$f":"IF(+'[1]EXT(T)'!Q124=\"\",\"\",+'[1]EXT(T)'!Q124)","v":-144.20000000000002},{"$f":"IF(+'[1]EXT(T)'!R124=\"\",\"\",+'[1]EXT(T)'!R124)","v":460.59999999999991},{"$f":"IF(+'[1]EXT(T)'!S124=\"\",\"\",+'[1]EXT(T)'!S124)","v":1127.6128000000001},{"$f":"IF(+'[1]EXT(T)'!U124=\"\",\"\",+'[1]EXT(T)'!U124)","v":1240.2294150387427},{"$f":"IF(+'[1]EXT(T)'!V124=\"\",\"\",+'[1]EXT(T)'!V124)","v":2367.8422150387428},{"$f":"IF(+'[1]EXT(T)'!W124=\"\",\"\",+'[1]EXT(T)'!W124)","v":1049.2178497880195},{"$f":"IF(+'[1]EXT(T)'!X124=\"\",\"\",+'[1]EXT(T)'!X124)","v":551.01518412514531},{"$f":"IF(+'[1]EXT(T)'!Y124=\"\",\"\",+'[1]EXT(T)'!Y124)","v":632.22731999999996},{"$f":"IF(+'[1]EXT(T)'!Z124=\"\",\"\",+'[1]EXT(T)'!Z124)","v":574.29999999999995},{"$f":"IF(+'[1]EXT(T)'!AA124=\"\",\"\",+'[1]EXT(T)'!AA124)","v":338.99999999999989},{"$f":"IF(+'[1]EXT(T)'!AB124=\"\",\"\",+'[1]EXT(T)'!AB124)","v":1706.1999999999998},{"$f":"IF(+'[1]EXT(T)'!AC124=\"\",\"\",+'[1]EXT(T)'!AC124)","v":4085.6634999999997},{"$f":"IF(+'[1]EXT(T)'!AE124=\"\",\"\",+'[1]EXT(T)'!AE124)","v":4851.9603539131649},{"$f":"IF(+'[1]EXT(T)'!AF124=\"\",\"\",+'[1]EXT(T)'!AF124)","v":8937.6238539131646},{"$f":"IF(+'[1]EXT(T)'!AY124=\"\",\"\",+'[1]EXT(T)'!AY124)","v":20753.680941800074},{"$f":"IF(+'[1]EXT(T)'!AZ124=\"\",\"\",+'[1]EXT(T)'!AZ124)","v":21088.380941800075},{"$f":"IF(+'[1]EXT(T)'!AQ124=\"\",\"\",+'[1]EXT(T)'!AQ124-'[1]EXT(T)'!AQ123)","v":131.05921014},{"$f":"IF(+'[1]EXT(T)'!AR124=\"\",\"\",+'[1]EXT(T)'!AR124-'[1]EXT(T)'!AR123)","v":1331.85},{"$f":"IF(+'[1]EXT(T)'!AS124=\"\",\"\",+'[1]EXT(T)'!AS124-'[1]EXT(T)'!AS123)","v":2424.7510000000002},{"$f":"IF(+'[1]EXT(T)'!AT124=\"\",\"\",+'[1]EXT(T)'!AT124-'[1]EXT(T)'!AT123)","v":1257.2822278100002},{"$f":"IF(+'[1]EXT(T)'!AU124=\"\",\"\",+'[1]EXT(T)'!AU124-'[1]EXT(T)'!AU123)","v":372.80000000000007},{"$f":"IF(+'[1]EXT(T)'!AV124=\"\",\"\",+'[1]EXT(T)'!AV124-'[1]EXT(T)'!AV123)","v":1650.6266469553079},{"$f":"IF(+'[1]EXT(T)'!AW124=\"\",\"\",+'[1]EXT(T)'!AW124-'[1]EXT(T)'!AW123)","v":103.5},{"$f":"IF(OR(W117=\"\",X117=\"\",Y117=\"\",Z117=\"\",AA117=\"\",AB117=\"\"),\"\",W117+X117+Y117+Z117+AA117+AB117)","v":7168.3690849053091},{"$f":"IF(OR(X117=\"\",Y117=\"\",Z117=\"\",AA117=\"\",AB117=\"\",AC117=\"\",W117=\"\"),\"\",X117+W117+Y117+Z117+AA117+AB117+AC117)","v":7271.8690849053091}]
[null,"IV",{"$f":"IF(+'[1]EXT(T)'!M125=\"\",\"\",+'[1]EXT(T)'!M125)","v":1187.3173780370848},{"$f":"IF(+'[1]EXT(T)'!N125=\"\",\"\",+'[1]EXT(T)'!N125)","v":288.53883715463303},{"$f":"IF(+'[1]EXT(T)'!O125=\"\",\"\",+'[1]EXT(T)'!O125)","v":347.50178},{"$f":"IF(+'[1]EXT(T)'!P125=\"\",\"\",+'[1]EXT(T)'!P125)","v":387.1},{"$f":"IF(+'[1]EXT(T)'!Q125=\"\",\"\",+'[1]EXT(T)'!Q125)","v":20.2},{"$f":"IF(+'[1]EXT(T)'!R125=\"\",\"\",+'[1]EXT(T)'!R125)","v":829.09999999999991},{"$f":"IF(+'[1]EXT(T)'!S125=\"\",\"\",+'[1]EXT(T)'!S125)","v":1211.4953},{"$f":"IF(+'[1]EXT(T)'!U125=\"\",\"\",+'[1]EXT(T)'!U125)","v":3059.7579951917178},{"$f":"IF(+'[1]EXT(T)'!V125=\"\",\"\",+'[1]EXT(T)'!V125)","v":4271.2532951917183},{"$f":"IF(+'[1]EXT(T)'!W125=\"\",\"\",+'[1]EXT(T)'!W125)","v":2236.5352278251044},{"$f":"IF(+'[1]EXT(T)'!X125=\"\",\"\",+'[1]EXT(T)'!X125)","v":839.55402127977834},{"$f":"IF(+'[1]EXT(T)'!Y125=\"\",\"\",+'[1]EXT(T)'!Y125)","v":979.72910000000002},{"$f":"IF(+'[1]EXT(T)'!Z125=\"\",\"\",+'[1]EXT(T)'!Z125)","v":961.4},{"$f":"IF(+'[1]EXT(T)'!AA125=\"\",\"\",+'[1]EXT(T)'!AA125)","v":359.19999999999987},{"$f":"IF(+'[1]EXT(T)'!AB125=\"\",\"\",+'[1]EXT(T)'!AB125)","v":2535.2999999999997},{"$f":"IF(+'[1]EXT(T)'!AC125=\"\",\"\",+'[1]EXT(T)'!AC125)","v":5297.1587999999992},{"$f":"IF(+'[1]EXT(T)'!AE125=\"\",\"\",+'[1]EXT(T)'!AE125)","v":7911.7183491048827},{"$f":"IF(+'[1]EXT(T)'!AF125=\"\",\"\",+'[1]EXT(T)'!AF125)","v":13208.877149104883},{"$f":"IF(+'[1]EXT(T)'!AY125=\"\",\"\",+'[1]EXT(T)'!AY125)","v":28057.100390596035},{"$f":"IF(+'[1]EXT(T)'!AZ125=\"\",\"\",+'[1]EXT(T)'!AZ125)","v":28513.900390596034},{"$f":"IF(+'[1]EXT(T)'!AQ125=\"\",\"\",+'[1]EXT(T)'!AQ125-'[1]EXT(T)'!AQ124)","v":131.03645555999998},{"$f":"IF(+'[1]EXT(T)'!AR125=\"\",\"\",+'[1]EXT(T)'!AR125-'[1]EXT(T)'!AR124)","v":1407.6999999999989},{"$f":"IF(+'[1]EXT(T)'!AS125=\"\",\"\",+'[1]EXT(T)'!AS125-'[1]EXT(T)'!AS124)","v":2463.9363999999987},{"$f":"IF(+'[1]EXT(T)'!AT125=\"\",\"\",+'[1]EXT(T)'!AT125-'[1]EXT(T)'!AT124)","v":1269.3174281100005},{"$f":"IF(+'[1]EXT(T)'!AU125=\"\",\"\",+'[1]EXT(T)'!AU125-'[1]EXT(T)'!AU124)","v":403.80000000000018},{"$f":"IF(+'[1]EXT(T)'!AV125=\"\",\"\",+'[1]EXT(T)'!AV125-'[1]EXT(T)'!AV124)","v":1627.6291651259608},{"$f":"IF(+'[1]EXT(T)'!AW125=\"\",\"\",+'[1]EXT(T)'!AW125-'[1]EXT(T)'!AW124)","v":122.09999999999997},7303.4194487959594,{"$f":"IF(OR(X118=\"\",Y118=\"\",Z118=\"\",AA118=\"\",AB118=\"\",AC118=\"\",W118=\"\"),\"\",X118+W118+Y118+Z118+AA118+AB118+AC118)","v":7425.5194487959598}]
[2019,"I",{"$f":"IF(+'[1]EXT(T)'!M126=\"\",\"\",+'[1]EXT(T)'!M126)","v":650.45907577470234},{"$f":"IF(+'[1]EXT(T)'!N126=\"\",\"\",+'[1]EXT(T)'!N126)","v":258.91425882148525},{"$f":"IF(+'[1]EXT(T)'!O126=\"\",\"\",+'[1]EXT(T)'!O126)","v":318.45821999999998},{"$f":"IF(+'[1]EXT(T)'!P126=\"\",\"\",+'[1]EXT(T)'!P126)","v":302},{"$f":"IF(+'[1]EXT(T)'!Q126=\"\",\"\",+'[1]EXT(T)'!Q126)","v":128.80000000000001},{"$f":"IF(+'[1]EXT(T)'!R126=\"\",\"\",+'[1]EXT(T)'!R126)","v":934.5},{"$f":"IF(+'[1]EXT(T)'!S126=\"\",\"\",+'[1]EXT(T)'!S126)","v":1156.5286060000001},{"$f":"IF(+'[1]EXT(T)'!U126=\"\",\"\",+'[1]EXT(T)'!U126)","v":2593.1315545961875},{"$f":"IF(+'[1]EXT(T)'!V126=\"\",\"\",+'[1]EXT(T)'!V126)","v":3749.6601605961878},{"$f":"IF(+'[1]EXT(T)'!W126=\"\",\"\",+'[1]EXT(T)'!W126)","v":650.45907577470234},{"$f":"IF(+'[1]EXT(T)'!X126=\"\",\"\",+'[1]EXT(T)'!X126)","v":258.91425882148525},{"$f":"IF(+'[1]EXT(T)'!Y126=\"\",\"\",+'[1]EXT(T)'!Y126)","v":318.45821999999998},{"$f":"IF(+'[1]EXT(T)'!Z126=\"\",\"\",+'[1]EXT(T)'!Z126)","v":302},{"$f":"IF(+'[1]EXT(T)'!AA126=\"\",\"\",+'[1]EXT(T)'!AA126)","v":128.80000000000001},{"$f":"IF(+'[1]EXT(T)'!AB126=\"\",\"\",+'[1]EXT(T)'!AB126)","v":934.5},{"$f":"IF(+'[1]EXT(T)'!AC126=\"\",\"\",+'[1]EXT(T)'!AC126)","v":1156.5286060000001},{"$f":"IF(+'[1]EXT(T)'!AE126=\"\",\"\",+'[1]EXT(T)'!AE126)","v":2593.1315545961875},{"$f":"IF(+'[1]EXT(T)'!AF126=\"\",\"\",+'[1]EXT(T)'!AF126)","v":3749.6601605961878},{"$f":"IF(+'[1]EXT(T)'!AY126=\"\",\"\",+'[1]EXT(T)'!AY126)","v":6941.7413000368069},{"$f":"IF(+'[1]EXT(T)'!AZ126=\"\",\"\",+'[1]EXT(T)'!AZ126)","v":7059.1413000368066},{"$f":"IF(+'[1]EXT(T)'!AQ126=\"\",\"\",+'[1]EXT(T)'!AQ126)","v":118.72199291},{"$f":"IF(+'[1]EXT(T)'!AR126=\"\",\"\",+'[1]EXT(T)'!AR126)","v":1297.6500000000001},{"$f":"IF(+'[1]EXT(T)'!AS126=\"\",\"\",+'[1]EXT(T)'!AS126)","v":2205.2896000000001},{"$f":"IF(+'[1]EXT(T)'!AT126=\"\",\"\",+'[1]EXT(T)'!AT126)","v":1193.0780871000004},{"$f":"IF(+'[1]EXT(T)'!AU126=\"\",\"\",+'[1]EXT(T)'!AU126)","v":383.8},{"$f":"IF(+'[1]EXT(T)'!AV126=\"\",\"\",+'[1]EXT(T)'!AV126)","v":1743.2016200268065},{"$f":"IF(+'[1]EXT(T)'!AW126=\"\",\"\",+'[1]EXT(T)'!AW126)","v":117.4},{"$f":"IF(OR(W119=\"\",X119=\"\",Y119=\"\",Z119=\"\",AA119=\"\",AB119=\"\"),\"\",W119+X119+Y119+Z119+AA119+AB119)","v":6941.7413000368069},{"$f":"IF(OR(X119=\"\",Y119=\"\",Z119=\"\",AA119=\"\",AB119=\"\",AC119=\"\",W119=\"\"),\"\",X119+W119+Y119+Z119+AA119+AB119+AC119)","v":7059.1413000368066}]
[null,"II",{"$f":"IF(+'[1]EXT(T)'!M127=\"\",\"\",+'[1]EXT(T)'!M127)","v":451.19188888209266},{"$f":"IF(+'[1]EXT(T)'!N127=\"\",\"\",+'[1]EXT(T)'!N127)","v":158.31886162291417},{"$f":"IF(+'[1]EXT(T)'!O127=\"\",\"\",+'[1]EXT(T)'!O127)","v":136.05573999999999},{"$f":"IF(+'[1]EXT(T)'!P127=\"\",\"\",+'[1]EXT(T)'!P127)","v":-54.1},{"$f":"IF(+'[1]EXT(T)'!Q127=\"\",\"\",+'[1]EXT(T)'!Q127)","v":""},{"$f":"IF(+'[1]EXT(T)'!R127=\"\",\"\",+'[1]EXT(T)'!R127)","v":596},{"$f":"IF(+'[1]EXT(T)'!S127=\"\",\"\",+'[1]EXT(T)'!S127)","v":2106.2979679999999},{"$f":"IF(+'[1]EXT(T)'!U127=\"\",\"\",+'[1]EXT(T)'!U127)","v":""},{"$f":"IF(+'[1]EXT(T)'!V127=\"\",\"\",+'[1]EXT(T)'!V127)","v":""},{"$f":"IF(+'[1]EXT(T)'!W127=\"\",\"\",+'[1]EXT(T)'!W127)","v":1101.6509646567949},{"$f":"IF(+'[1]EXT(T)'!X127=\"\",\"\",+'[1]EXT(T)'!X127)","v":417.23312044439945},{"$f":"IF(+'[1]EXT(T)'!Y127=\"\",\"\",+'[1]EXT(T)'!Y127)","v":454.51396},{"$f":"IF(+'[1]EXT(T)'!Z127=\"\",\"\",+'[1]EXT(T)'!Z127)","v":247.9},{"$f":"IF(+'[1]EXT(T)'!AA127=\"\",\"\",+'[1]EXT(T)'!AA127)","v":""},{"$f":"IF(+'[1]EXT(T)'!AB127=\"\",\"\",+'[1]EXT(T)'!AB127)","v":1530.5},{"$f":"IF(+'[1]EXT(T)'!AC127=\"\",\"\",+'[1]EXT(T)'!AC127)","v":3262.8265739999997},{"$f":"IF(+'[1]EXT(T)'!AE127=\"\",\"\",+'[1]EXT(T)'!AE127)","v":""},{"$f":"IF(+'[1]EXT(T)'!AF127=\"\",\"\",+'[1]EXT(T)'!AF127)","v":""},{"$f":"IF(+'[1]EXT(T)'!AY127=\"\",\"\",+'[1]EXT(T)'!AY127)","v":14745.481776852728},{"$f":"IF(+'[1]EXT(T)'!AZ127=\"\",\"\",+'[1]EXT(T)'!AZ127)","v":14988.581776852729},{"$f":"IF(+'[1]EXT(T)'!AQ127=\"\",\"\",+'[1]EXT(T)'!AQ127-'[1]EXT(T)'!AQ126)","v":129.60714523000001},{"$f":"IF(+'[1]EXT(T)'!AR127=\"\",\"\",+'[1]EXT(T)'!AR127-'[1]EXT(T)'!AR126)","v":1445.8600000000001},{"$f":"IF(+'[1]EXT(T)'!AS127=\"\",\"\",+'[1]EXT(T)'!AS127-'[1]EXT(T)'!AS126)","v":2721.6400999999996},{"$f":"IF(+'[1]EXT(T)'!AT127=\"\",\"\",+'[1]EXT(T)'!AT127-'[1]EXT(T)'!AT126)","v":1379.6807416900003},{"$f":"IF(+'[1]EXT(T)'!AU127=\"\",\"\",+'[1]EXT(T)'!AU127-'[1]EXT(T)'!AU126)","v":412.7999999999999},{"$f":"IF(+'[1]EXT(T)'!AV127=\"\",\"\",+'[1]EXT(T)'!AV127-'[1]EXT(T)'!AV126)","v":1714.1524898959212},{"$f":"IF(+'[1]EXT(T)'!AW127=\"\",\"\",+'[1]EXT(T)'!AW127-'[1]EXT(T)'!AW126)","v":125.70000000000002},{"$f":"IF(OR(W120=\"\",X120=\"\",Y120=\"\",Z120=\"\",AA120=\"\",AB120=\"\"),\"\",W120+X120+Y120+Z120+AA120+AB120)","v":7803.7404768159213},7929.4404768159211]
[null,"III",{"$f":"IF(+'[1]EXT(T)'!M128=\"\",\"\",+'[1]EXT(T)'!M128)","v":593.314304072494},{"$f":"IF(+'[1]EXT(T)'!N128=\"\",\"\",+'[1]EXT(T)'!N128)","v":20.430761731509776},{"$f":"IF(+'[1]EXT(T)'!O128=\"\",\"\",+'[1]EXT(T)'!O128)","v":189.87851000000001},{"$f":"IF(+'[1]EXT(T)'!P128=\"\",\"\",+'[1]EXT(T)'!P128)","v":-64},{"$f":"IF(+'[1]EXT(T)'!Q128=\"\",\"\",+'[1]EXT(T)'!Q128)","v":""},{"$f":"IF(+'[1]EXT(T)'!R128=\"\",\"\",+'[1]EXT(T)'!R128)","v":742.7},{"$f":"IF(+'[1]EXT(T)'!S128=\"\",\"\",+'[1]EXT(T)'!S128)","v":1472.3579920000002},{"$f":"IF(+'[1]EXT(T)'!U128=\"\",\"\",+'[1]EXT(T)'!U128)","v":""},{"$f":"IF(+'[1]EXT(T)'!V128=\"\",\"\",+'[1]EXT(T)'!V128)","v":""},{"$f":"IF(+'[1]EXT(T)'!W128=\"\",\"\",+'[1]EXT(T)'!W128)","v":1694.9652687292889},{"$f":"IF(+'[1]EXT(T)'!X128=\"\",\"\",+'[1]EXT(T)'!X128)","v":437.66388217590924},{"$f":"IF(+'[1]EXT(T)'!Y128=\"\",\"\",+'[1]EXT(T)'!Y128)","v":644.39247},{"$f":"IF(+'[1]EXT(T)'!Z128=\"\",\"\",+'[1]EXT(T)'!Z128)","v":183.9},{"$f":"IF(+'[1]EXT(T)'!AA128=\"\",\"\",+'[1]EXT(T)'!AA128)","v":""},{"$f":"IF(+'[1]EXT(T)'!AB128=\"\",\"\",+'[1]EXT(T)'!AB128)","v":2273.1999999999998},{"$f":"IF(+'[1]EXT(T)'!AC128=\"\",\"\",+'[1]EXT(T)'!AC128)","v":4735.1845659999999},{"$f":"IF(+'[1]EXT(T)'!AE128=\"\",\"\",+'[1]EXT(T)'!AE128)","v":""},{"$f":"IF(+'[1]EXT(T)'!AF128=\"\",\"\",+'[1]EXT(T)'!AF128)","v":""},{"$f":"IF(+'[1]EXT(T)'!AY128=\"\",\"\",+'[1]EXT(T)'!AY128)","v":""},{"$f":"IF(+'[1]EXT(T)'!AZ128=\"\",\"\",+'[1]EXT(T)'!AZ128)","v":""},{"$f":"IF(+'[1]EXT(T)'!AQ128=\"\",\"\",+'[1]EXT(T)'!AQ128-'[1]EXT(T)'!AQ127)","v":135.01263093},{"$f":"IF(+'[1]EXT(T)'!AR128=\"\",\"\",+'[1]EXT(T)'!AR128-'[1]EXT(T)'!AR127)","v":1415.62},{"$f":"IF(+'[1]EXT(T)'!AS128=\"\",\"\",+'[1]EXT(T)'!AS128-'[1]EXT(T)'!AS127)","v":2820.6931999999997},{"$f":"IF(+'[1]EXT(T)'!AT128=\"\",\"\",+'[1]EXT(T)'!AT128-'[1]EXT(T)'!AT127)","v":1489.3564204400004},{"$f":"IF(+'[1]EXT(T)'!AU128=\"\",\"\",+'[1]EXT(T)'!AU128-'[1]EXT(T)'!AU127)","v":""},{"$f":"IF(+'[1]EXT(T)'!AV128=\"\",\"\",+'[1]EXT(T)'!AV128-'[1]EXT(T)'!AV127)","v":1835.5647499430061},{"$f":"IF(+'[1]EXT(T)'!AW128=\"\",\"\",+'[1]EXT(T)'!AW128-'[1]EXT(T)'!AW127)","v":122.28498000000002},{"$f":"IF(OR(W121=\"\",X121=\"\",Y121=\"\",Z121=\"\",AA121=\"\",AB121=\"\"),\"\",W121+X121+Y121+Z121+AA121+AB121)","v":""},{"$f":"IF(OR(X121=\"\",Y121=\"\",Z121=\"\",AA121=\"\",AB121=\"\",AC121=\"\",W121=\"\"),\"\",X121+W121+Y121+Z121+AA121+AB121+AC121)","v":""}]
[null,"IV",{"$f":"IF(+'[1]EXT(T)'!M129=\"\",\"\",+'[1]EXT(T)'!M129)","v":""},{"$f":"IF(+'[1]EXT(T)'!N129=\"\",\"\",+'[1]EXT(T)'!N129)","v":""},{"$f":"IF(+'[1]EXT(T)'!O129=\"\",\"\",+'[1]EXT(T)'!O129)","v":""},{"$f":"IF(+'[1]EXT(T)'!P129=\"\",\"\",+'[1]EXT(T)'!P129)","v":""},{"$f":"IF(+'[1]EXT(T)'!Q129=\"\",\"\",+'[1]EXT(T)'!Q129)","v":""},{"$f":"IF(+'[1]EXT(T)'!R129=\"\",\"\",+'[1]EXT(T)'!R129)","v":""},{"$f":"IF(+'[1]EXT(T)'!S129=\"\",\"\",+'[1]EXT(T)'!S129)","v":""},{"$f":"IF(+'[1]EXT(T)'!U129=\"\",\"\",+'[1]EXT(T)'!U129)","v":""},{"$f":"IF(+'[1]EXT(T)'!V129=\"\",\"\",+'[1]EXT(T)'!V129)","v":""},{"$f":"IF(+'[1]EXT(T)'!W129=\"\",\"\",+'[1]EXT(T)'!W129)","v":""},{"$f":"IF(+'[1]EXT(T)'!X129=\"\",\"\",+'[1]EXT(T)'!X129)","v":""},{"$f":"IF(+'[1]EXT(T)'!Y129=\"\",\"\",+'[1]EXT(T)'!Y129)","v":""},{"$f":"IF(+'[1]EXT(T)'!Z129=\"\",\"\",+'[1]EXT(T)'!Z129)","v":""},{"$f":"IF(+'[1]EXT(T)'!AA129=\"\",\"\",+'[1]EXT(T)'!AA129)","v":""},{"$f":"IF(+'[1]EXT(T)'!AB129=\"\",\"\",+'[1]EXT(T)'!AB129)","v":""},{"$f":"IF(+'[1]EXT(T)'!AC129=\"\",\"\",+'[1]EXT(T)'!AC129)","v":""},{"$f":"IF(+'[1]EXT(T)'!AE129=\"\",\"\",+'[1]EXT(T)'!AE129)","v":""},{"$f":"IF(+'[1]EXT(T)'!AF129=\"\",\"\",+'[1]EXT(T)'!AF129)","v":""},{"$f":"IF(+'[1]EXT(T)'!AY129=\"\",\"\",+'[1]EXT(T)'!AY129)","v":""},{"$f":"IF(+'[1]EXT(T)'!AZ129=\"\",\"\",+'[1]EXT(T)'!AZ129)","v":""},{"$f":"IF(+'[1]EXT(T)'!AQ129=\"\",\"\",+'[1]EXT(T)'!AQ129-'[1]EXT(T)'!AQ128)","v":""},{"$f":"IF(+'[1]EXT(T)'!AR129=\"\",\"\",+'[1]EXT(T)'!AR129-'[1]EXT(T)'!AR128)","v":""},{"$f":"IF(+'[1]EXT(T)'!AS129=\"\",\"\",+'[1]EXT(T)'!AS129-'[1]EXT(T)'!AS128)","v":""},{"$f":"IF(+'[1]EXT(T)'!AT129=\"\",\"\",+'[1]EXT(T)'!AT129-'[1]EXT(T)'!AT128)","v":""},{"$f":"IF(+'[1]EXT(T)'!AU129=\"\",\"\",+'[1]EXT(T)'!AU129-'[1]EXT(T)'!AU128)","v":""},{"$f":"IF(+'[1]EXT(T)'!AV129=\"\",\"\",+'[1]EXT(T)'!AV129-'[1]EXT(T)'!AV128)","v":""},{"$f":"IF(+'[1]EXT(T)'!AW129=\"\",\"\",+'[1]EXT(T)'!AW129-'[1]EXT(T)'!AW128)","v":""},"",{"$f":"IF(OR(X122=\"\",Y122=\"\",Z122=\"\",AA122=\"\",AB122=\"\",AC122=\"\",W122=\"\"),\"\",X122+W122+Y122+Z122+AA122+AB122+AC122)","v":""}]
[2020,"I",{"$f":"IF(+'[1]EXT(T)'!M130=\"\",\"\",+'[1]EXT(T)'!M130)","v":""},{"$f":"IF(+'[1]EXT(T)'!N130=\"\",\"\",+'[1]EXT(T)'!N130)","v":""},{"$f":"IF(+'[1]EXT(T)'!O130=\"\",\"\",+'[1]EXT(T)'!O130)","v":""},{"$f":"IF(+'[1]EXT(T)'!P130=\"\",\"\",+'[1]EXT(T)'!P130)","v":""},{"$f":"IF(+'[1]EXT(T)'!Q130=\"\",\"\",+'[1]EXT(T)'!Q130)","v":""},{"$f":"IF(+'[1]EXT(T)'!R130=\"\",\"\",+'[1]EXT(T)'!R130)","v":""},{"$f":"IF(+'[1]EXT(T)'!S130=\"\",\"\",+'[1]EXT(T)'!S130)","v":""},{"$f":"IF(+'[1]EXT(T)'!U130=\"\",\"\",+'[1]EXT(T)'!U130)","v":""},{"$f":"IF(+'[1]EXT(T)'!V130=\"\",\"\",+'[1]EXT(T)'!V130)","v":""},{"$f":"IF(+'[1]EXT(T)'!W130=\"\",\"\",+'[1]EXT(T)'!W130)","v":""},{"$f":"IF(+'[1]EXT(T)'!X130=\"\",\"\",+'[1]EXT(T)'!X130)","v":""},{"$f":"IF(+'[1]EXT(T)'!Y130=\"\",\"\",+'[1]EXT(T)'!Y130)","v":""},{"$f":"IF(+'[1]EXT(T)'!Z130=\"\",\"\",+'[1]EXT(T)'!Z130)","v":""},{"$f":"IF(+'[1]EXT(T)'!AA130=\"\",\"\",+'[1]EXT(T)'!AA130)","v":""},{"$f":"IF(+'[1]EXT(T)'!AB130=\"\",\"\",+'[1]EXT(T)'!AB130)","v":""},{"$f":"IF(+'[1]EXT(T)'!AC130=\"\",\"\",+'[1]EXT(T)'!AC130)","v":""},{"$f":"IF(+'[1]EXT(T)'!AE130=\"\",\"\",+'[1]EXT(T)'!AE130)","v":""},{"$f":"IF(+'[1]EXT(T)'!AF130=\"\",\"\",+'[1]EXT(T)'!AF130)","v":""},{"$f":"IF(+'[1]EXT(T)'!AY130=\"\",\"\",+'[1]EXT(T)'!AY130)","v":""},{"$f":"IF(+'[1]EXT(T)'!AZ130=\"\",\"\",+'[1]EXT(T)'!AZ130)","v":""},{"$f":"IF(+'[1]EXT(T)'!AQ130=\"\",\"\",+'[1]EXT(T)'!AQ130)","v":""},{"$f":"IF(+'[1]EXT(T)'!AR130=\"\",\"\",+'[1]EXT(T)'!AR130)","v":""},{"$f":"IF(+'[1]EXT(T)'!AS130=\"\",\"\",+'[1]EXT(T)'!AS130)","v":""},{"$f":"IF(+'[1]EXT(T)'!AT130=\"\",\"\",+'[1]EXT(T)'!AT130)","v":""},{"$f":"IF(+'[1]EXT(T)'!AU130=\"\",\"\",+'[1]EXT(T)'!AU130)","v":""},{"$f":"IF(+'[1]EXT(T)'!AV130=\"\",\"\",+'[1]EXT(T)'!AV130)","v":""},{"$f":"IF(+'[1]EXT(T)'!AW130=\"\",\"\",+'[1]EXT(T)'!AW130)","v":""},{"$f":"IF(OR(W123=\"\",X123=\"\",Y123=\"\",Z123=\"\",AA123=\"\",AB123=\"\"),\"\",W123+X123+Y123+Z123+AA123+AB123)","v":""},{"$f":"IF(OR(X123=\"\",Y123=\"\",Z123=\"\",AA123=\"\",AB123=\"\",AC123=\"\",W123=\"\"),\"\",X123+W123+Y123+Z123+AA123+AB123+AC123)","v":""}]
[null,"II",{"$f":"IF(+'[1]EXT(T)'!M131=\"\",\"\",+'[1]EXT(T)'!M131)","v":""},{"$f":"IF(+'[1]EXT(T)'!N131=\"\",\"\",+'[1]EXT(T)'!N131)","v":""},{"$f":"IF(+'[1]EXT(T)'!O131=\"\",\"\",+'[1]EXT(T)'!O131)","v":""},{"$f":"IF(+'[1]EXT(T)'!P131=\"\",\"\",+'[1]EXT(T)'!P131)","v":""},{"$f":"IF(+'[1]EXT(T)'!Q131=\"\",\"\",+'[1]EXT(T)'!Q131)","v":""},{"$f":"IF(+'[1]EXT(T)'!R131=\"\",\"\",+'[1]EXT(T)'!R131)","v":""},{"$f":"IF(+'[1]EXT(T)'!S131=\"\",\"\",+'[1]EXT(T)'!S131)","v":""},{"$f":"IF(+'[1]EXT(T)'!U131=\"\",\"\",+'[1]EXT(T)'!U131)","v":""},{"$f":"IF(+'[1]EXT(T)'!V131=\"\",\"\",+'[1]EXT(T)'!V131)","v":""},{"$f":"IF(+'[1]EXT(T)'!W131=\"\",\"\",+'[1]EXT(T)'!W131)","v":""},{"$f":"IF(+'[1]EXT(T)'!X131=\"\",\"\",+'[1]EXT(T)'!X131)","v":""},{"$f":"IF(+'[1]EXT(T)'!Y131=\"\",\"\",+'[1]EXT(T)'!Y131)","v":""},{"$f":"IF(+'[1]EXT(T)'!Z131=\"\",\"\",+'[1]EXT(T)'!Z131)","v":""},{"$f":"IF(+'[1]EXT(T)'!AA131=\"\",\"\",+'[1]EXT(T)'!AA131)","v":""},{"$f":"IF(+'[1]EXT(T)'!AB131=\"\",\"\",+'[1]EXT(T)'!AB131)","v":""},{"$f":"IF(+'[1]EXT(T)'!AC131=\"\",\"\",+'[1]EXT(T)'!AC131)","v":""},{"$f":"IF(+'[1]EXT(T)'!AE131=\"\",\"\",+'[1]EXT(T)'!AE131)","v":""},{"$f":"IF(+'[1]EXT(T)'!AF131=\"\",\"\",+'[1]EXT(T)'!AF131)","v":""},{"$f":"IF(+'[1]EXT(T)'!AY131=\"\",\"\",+'[1]EXT(T)'!AY131)","v":""},{"$f":"IF(+'[1]EXT(T)'!AZ131=\"\",\"\",+'[1]EXT(T)'!AZ131)","v":""},{"$f":"IF(+'[1]EXT(T)'!AQ131=\"\",\"\",+'[1]EXT(T)'!AQ131-'[1]EXT(T)'!AQ130)","v":""},{"$f":"IF(+'[1]EXT(T)'!AR131=\"\",\"\",+'[1]EXT(T)'!AR131-'[1]EXT(T)'!AR130)","v":""},{"$f":"IF(+'[1]EXT(T)'!AS131=\"\",\"\",+'[1]EXT(T)'!AS131-'[1]EXT(T)'!AS130)","v":""},{"$f":"IF(+'[1]EXT(T)'!AT131=\"\",\"\",+'[1]EXT(T)'!AT131-'[1]EXT(T)'!AT130)","v":""},{"$f":"IF(+'[1]EXT(T)'!AU131=\"\",\"\",+'[1]EXT(T)'!AU131-'[1]EXT(T)'!AU130)","v":""},{"$f":"IF(+'[1]EXT(T)'!AV131=\"\",\"\",+'[1]EXT(T)'!AV131-'[1]EXT(T)'!AV130)","v":""},{"$f":"IF(+'[1]EXT(T)'!AW131=\"\",\"\",+'[1]EXT(T)'!AW131-'[1]EXT(T)'!AW130)","v":""},{"$f":"IF(OR(W124=\"\",X124=\"\",Y124=\"\",Z124=\"\",AA124=\"\",AB124=\"\"),\"\",W124+X124+Y124+Z124+AA124+AB124)","v":""},""]
[null,"III",{"$f":"IF(+'[1]EXT(T)'!M132=\"\",\"\",+'[1]EXT(T)'!M132)","v":""},{"$f":"IF(+'[1]EXT(T)'!N132=\"\",\"\",+'[1]EXT(T)'!N132)","v":""},{"$f":"IF(+'[1]EXT(T)'!O132=\"\",\"\",+'[1]EXT(T)'!O132)","v":""},{"$f":"IF(+'[1]EXT(T)'!P132=\"\",\"\",+'[1]EXT(T)'!P132)","v":""},{"$f":"IF(+'[1]EXT(T)'!Q132=\"\",\"\",+'[1]EXT(T)'!Q132)","v":""},{"$f":"IF(+'[1]EXT(T)'!R132=\"\",\"\",+'[1]EXT(T)'!R132)","v":""},{"$f":"IF(+'[1]EXT(T)'!S132=\"\",\"\",+'[1]EXT(T)'!S132)","v":""},{"$f":"IF(+'[1]EXT(T)'!U132=\"\",\"\",+'[1]EXT(T)'!U132)","v":""},{"$f":"IF(+'[1]EXT(T)'!V132=\"\",\"\",+'[1]EXT(T)'!V132)","v":""},{"$f":"IF(+'[1]EXT(T)'!W132=\"\",\"\",+'[1]EXT(T)'!W132)","v":""},{"$f":"IF(+'[1]EXT(T)'!X132=\"\",\"\",+'[1]EXT(T)'!X132)","v":""},{"$f":"IF(+'[1]EXT(T)'!Y132=\"\",\"\",+'[1]EXT(T)'!Y132)","v":""},{"$f":"IF(+'[1]EXT(T)'!Z132=\"\",\"\",+'[1]EXT(T)'!Z132)","v":""},{"$f":"IF(+'[1]EXT(T)'!AA132=\"\",\"\",+'[1]EXT(T)'!AA132)","v":""},{"$f":"IF(+'[1]EXT(T)'!AB132=\"\",\"\",+'[1]EXT(T)'!AB132)","v":""},{"$f":"IF(+'[1]EXT(T)'!AC132=\"\",\"\",+'[1]EXT(T)'!AC132)","v":""},{"$f":"IF(+'[1]EXT(T)'!AE132=\"\",\"\",+'[1]EXT(T)'!AE132)","v":""},{"$f":"IF(+'[1]EXT(T)'!AF132=\"\",\"\",+'[1]EXT(T)'!AF132)","v":""},{"$f":"IF(+'[1]EXT(T)'!AY132=\"\",\"\",+'[1]EXT(T)'!AY132)","v":""},{"$f":"IF(+'[1]EXT(T)'!AZ132=\"\",\"\",+'[1]EXT(T)'!AZ132)","v":""},{"$f":"IF(+'[1]EXT(T)'!AQ132=\"\",\"\",+'[1]EXT(T)'!AQ132-'[1]EXT(T)'!AQ131)","v":""},{"$f":"IF(+'[1]EXT(T)'!AR132=\"\",\"\",+'[1]EXT(T)'!AR132-'[1]EXT(T)'!AR131)","v":""},{"$f":"IF(+'[1]EXT(T)'!AS132=\"\",\"\",+'[1]EXT(T)'!AS132-'[1]EXT(T)'!AS131)","v":""},{"$f":"IF(+'[1]EXT(T)'!AT132=\"\",\"\",+'[1]EXT(T)'!AT132-'[1]EXT(T)'!AT131)","v":""},{"$f":"IF(+'[1]EXT(T)'!AU132=\"\",\"\",+'[1]EXT(T)'!AU132-'[1]EXT(T)'!AU131)","v":""},{"$f":"IF(+'[1]EXT(T)'!AV132=\"\",\"\",+'[1]EXT(T)'!AV132-'[1]EXT(T)'!AV131)","v":""},{"$f":"IF(+'[1]EXT(T)'!AW132=\"\",\"\",+'[1]EXT(T)'!AW132-'[1]EXT(T)'!AW131)","v":""},"",""]
[null,"IV",{"$f":"IF(+'[1]EXT(T)'!M133=\"\",\"\",+'[1]EXT(T)'!M133)","v":""},{"$f":"IF(+'[1]EXT(T)'!N133=\"\",\"\",+'[1]EXT(T)'!N133)","v":""},{"$f":"IF(+'[1]EXT(T)'!O133=\"\",\"\",+'[1]EXT(T)'!O133)","v":""},{"$f":"IF(+'[1]EXT(T)'!P133=\"\",\"\",+'[1]EXT(T)'!P133)","v":""},{"$f":"IF(+'[1]EXT(T)'!Q133=\"\",\"\",+'[1]EXT(T)'!Q133)","v":""},{"$f":"IF(+'[1]EXT(T)'!R133=\"\",\"\",+'[1]EXT(T)'!R133)","v":""},{"$f":"IF(+'[1]EXT(T)'!S133=\"\",\"\",+'[1]EXT(T)'!S133)","v":""},{"$f":"IF(+'[1]EXT(T)'!U133=\"\",\"\",+'[1]EXT(T)'!U133)","v":""},{"$f":"IF(+'[1]EXT(T)'!V133=\"\",\"\",+'[1]EXT(T)'!V133)","v":""},{"$f":"IF(+'[1]EXT(T)'!W133=\"\",\"\",+'[1]EXT(T)'!W133)","v":""},{"$f":"IF(+'[1]EXT(T)'!X133=\"\",\"\",+'[1]EXT(T)'!X133)","v":""},{"$f":"IF(+'[1]EXT(T)'!Y133=\"\",\"\",+'[1]EXT(T)'!Y133)","v":""},{"$f":"IF(+'[1]EXT(T)'!Z133=\"\",\"\",+'[1]EXT(T)'!Z133)","v":""},{"$f":"IF(+'[1]EXT(T)'!AA133=\"\",\"\",+'[1]EXT(T)'!AA133)","v":""},{"$f":"IF(+'[1]EXT(T)'!AB133=\"\",\"\",+'[1]EXT(T)'!AB133)","v":""},{"$f":"IF(+'[1]EXT(T)'!AC133=\"\",\"\",+'[1]EXT(T)'!AC133)","v":""},{"$f":"IF(+'[1]EXT(T)'!AE133=\"\",\"\",+'[1]EXT(T)'!AE133)","v":""},{"$f":"IF(+'[1]EXT(T)'!AF133=\"\",\"\",+'[1]EXT(T)'!AF133)","v":""},{"$f":"IF(+'[1]EXT(T)'!AY133=\"\",\"\",+'[1]EXT(T)'!AY133)","v":""},{"$f":"IF(+'[1]EXT(T)'!AZ133=\"\",\"\",+'[1]EXT(T)'!AZ133)","v":""},{"$f":"IF(+'[1]EXT(T)'!AQ133=\"\",\"\",+'[1]EXT(T)'!AQ133-'[1]EXT(T)'!AQ132)","v":""},{"$f":"IF(+'[1]EXT(T)'!AR133=\"\",\"\",+'[1]EXT(T)'!AR133-'[1]EXT(T)'!AR132)","v":""},{"$f":"IF(+'[1]EXT(T)'!AS133=\"\",\"\",+'[1]EXT(T)'!AS133-'[1]EXT(T)'!AS132)","v":""},{"$f":"IF(+'[1]EXT(T)'!AT133=\"\",\"\",+'[1]EXT(T)'!AT133-'[1]EXT(T)'!AT132)","v":""},{"$f":"IF(+'[1]EXT(T)'!AU133=\"\",\"\",+'[1]EXT(T)'!AU133-'[1]EXT(T)'!AU132)","v":""},{"$f":"IF(+'[1]EXT(T)'!AV133=\"\",\"\",+'[1]EXT(T)'!AV133-'[1]EXT(T)'!AV132)","v":""},{"$f":"IF(+'[1]EXT(T)'!AW133=\"\",\"\",+'[1]EXT(T)'!AW133-'[1]EXT(T)'!AW132)","v":""},"",{"$f":"IF(OR(X126=\"\",Y126=\"\",Z126=\"\",AA126=\"\",AB126=\"\",AC126=\"\",W126=\"\"),\"\",X126+W126+Y126+Z126+AA126+AB126+AC126)","v":""}]

{"sheet":"Saldo Operacional","index":13,"n_rows":12,"n_cols":8,"rows_kept":12,"cut":false,"hidden":true,"merged":[[3,1,4,1],[3,2,4,2],[1,0,1,2],[0,0,0,2],[3,6,4,6],[0,4,0,6],[1,4,1,6],[3,5,4,5]]}
["CARD",null,null,null,"CAPARD"]
["Saldo operacional del GC / PIB Regional",null,null,null,"Saldo operacional del GC / PIB Regional"]
[]
[null,{"$f":"+COUNTIF('Datos_Regional (M)'!CO:CO,\"n.d.\")+COUNT('Datos_Regional (M)'!CO:CO)+2","v":350},{"$f":"INDEX('Datos_Regional (M)'!B:B,$B$4)","v":"diciembre"},"oct",null,{"$f":"+COUNTIF('Datos_Regional (M)'!CR:CR,\"n.d.\")+COUNT('Datos_Regional (M)'!CR:CR)+2","v":350},{"$f":"INDEX('Datos_Regional (M)'!B:B,$F$4)","v":"diciembre"},"set"]
[]
[{"$f":"B6&\"-\"&$C$4","v":"2012-diciembre"},{"$f":"B7-1","v":2012},{"$f":"VLOOKUP(A6,'Datos_Regional (M)'!C:CR,91,0)/100","v":{"$error":"#VALUE!"}},null,{"$f":"F6&\"-\"&$G$4","v":"2012-diciembre"},{"$f":"F7-1","v":2012},{"$f":"VLOOKUP(E6,'Datos_Regional (M)'!C:CR,94,0)/100","v":{"$error":"#VALUE!"}}]
["2013-diciembre",2013,{"$f":"VLOOKUP(A7,'Datos_Regional (M)'!C:CR,91,0)/100","v":-3.5834234341856265E-2},null,"2013-diciembre",2013,{"$f":"VLOOKUP(E7,'Datos_Regional (M)'!C:CR,94,0)/100","v":-2.9610239384880509E-2}]
["2014-diciembre",2014,{"$f":"VLOOKUP(A8,'Datos_Regional (M)'!C:CR,91,0)/100","v":-3.073591783877537E-2},null,"2014-diciembre",2014,{"$f":"VLOOKUP(E8,'Datos_Regional (M)'!C:CR,94,0)/100","v":-2.5248651775027667E-2}]
["2015-diciembre",2015,{"$f":"VLOOKUP(A9,'Datos_Regional (M)'!C:CR,91,0)/100","v":-2.0374948686508864E-2},null,"2015-diciembre",2015,{"$f":"VLOOKUP(E9,'Datos_Regional (M)'!C:CR,94,0)/100","v":-1.6693111284955882E-2}]
["2016-diciembre",2016,{"$f":"VLOOKUP(A10,'Datos_Regional (M)'!C:CR,91,0)/100","v":-2.5567919068131325E-2},null,"2016-diciembre",2016,{"$f":"VLOOKUP(E10,'Datos_Regional (M)'!C:CR,94,0)/100","v":-2.7850606915808752E-2}]
["2017-diciembre",{"$f":"B12-1","v":2017},{"$f":"VLOOKUP(A11,'Datos_Regional (M)'!C:CR,91,0)/100","v":-2.7921612963739618E-2},null,"2017-diciembre",{"$f":"F12-1","v":2017},{"$f":"VLOOKUP(E11,'Datos_Regional (M)'!C:CR,94,0)/100","v":-2.8537260451640591E-2}]
["2018-diciembre",{"$f":"INDEX('Datos_Regional (M)'!A:A,$B$4)","v":2018},{"$f":"VLOOKUP(A12,'Datos_Regional (M)'!C:CR,91,0)/100","v":-2.6247862954520484E-2},null,"2018-diciembre",{"$f":"INDEX('Datos_Regional (M)'!A:A,$F$4)","v":2018},{"$f":"VLOOKUP(E12,'Datos_Regional (M)'!C:CR,94,0)/100","v":-2.6534393027700928E-2}]

{"sheet":"Datos Gráfico-País","index":14,"n_rows":408,"n_cols":161,"rows_kept":408,"cut":false,"hidden":true,"merged":[[396,1,407,1],[372,1,383,1],[384,1,395,1],[150,1,161,1],[162,1,173,1],[324,1,335,1],[360,1,371,1],[348,1,359,1],[174,1,185,1],[102,1,113,1],[114,1,125,1],[336,1,347,1],[252,1,263,1],[264,1,275,1],[276,1,287,1],[288,1,299,1],[300,1,311,1],[228,1,239,1],[240,1,251,1],[223,1,227,1],[126,1,137,1],[312,1,323,1],[138,1,149,1],[42,1,53,1],[54,1,65,1],[66,1,77,1],[78,1,89,1],[90,1,101,1],[1,159,3,159],[223,159,225,159],[223,133,225,133],[223,2,227,2],[1,84,3,90],[1,93,3,99],[1,102,3,108],[1,134,3,134],[1,111,3,119],[1,122,3,130],[1,137,3,145],[1,133,3,133],[1,2,5,2],[1,57,3,63],[1,48,3,54],[1,66,3,72],[1,160,3,160],[223,3,225,9],[223,12,225,18],[223,21,225,27],[223,30,225,36],[223,39,225,45],[223,48,225,54],[223,57,225,63],[223,66,225,72],[223,75,225,81],[223,84,225,90],[223,93,225,99],[223,102,225,108],[223,134,225,134],[223,160,225,160],[1,39,3,45],[1,148,3,156],[223,111,225,119],[223,122,225,130],[223,137,225,145],[223,148,225,156],[1,1,5,1],[6,1,17,1],[1,75,3,81],[30,1,41,1],[18,1,29,1],[1,3,3,9],[1,12,3,18],[1,21,3,27],[1,30,3,36]]}
[]
[null,"Año","Mes","Inflación",null,null,null,null,null,null,null,null,"T1,12 de la Tendencia Ciclo",null,null,null,null,null,null,null,null,"ITCER con USA",null,null,null,null,null,null,null,null,"Variación Interanual del Tipo de Cambio",null,null,null,null,null,null,null,null,"Reservas Internacionales Netas por país",null,null,null,null,null,null,null,null,"RIN a Base Monetaria Amplia por país",null,null,null,null,null,null,null,null,"Tasa de Interés pasiva Real en MN",null,null,null,null,null,null,null,null,"Tasa de Interés pasiva en ME (180 días)",null,null,null,null,null,null,null,null,"Tasa de Interés Activa Real en MN",null,null,null,null,null,null,null,null,"Tasa de Interés Activa en ME (180 días)",null,null,null,null,null,null,null,null,"Tasa de Interés de Política Monetaria",null,null,null,null,null,null,null,null,"Créditos de las OSD con el sector Privado, Variación Interanual ",null,null,null,null,null,null,null,null,"Promedio de Exportaciones Totales al mes por país y Región",null,null,null,null,null,null,null,null,null,null,"Promedio Móvil de Importaciones Totales al mes por país y Región",null,null,null,null,null,null,null,null,null,null,"CARD","CAPARD",null,null,"Exportaciones Totales al mes por país y Región",null,null,null,null,null,null,null,null,null,null,"Importaciones Totales al mes por país y Región",null,null,null,null,null,null,null,null,null,null,"CARD","CAPARD"]
[]
[]
[null,null,null,"Variación Interanual Costa Rica","Variación Interanual\nEl Salvador","Variación Interanual Guatemala","Variación Interanual Honduras","Variación Interanual Nicaragua","Variación Interanual Dominicana","Variación Interanual Panamá",null,null,"Variación Interanual Costa Rica","Variación Interanual\nEl Salvador","Variación Interanual Guatemala","Variación Interanual Honduras","Variación Interanual Nicaragua","Variación Interanual Dominicana","Variación Interanual Panamá",null,null,"Indice Original\nCosta Rica","Indice Original\nEl Salvador","Indice Original\nGuatemala","Indice Original\nHonduras","Indice Original\nNicaragua","Indice Original\nDominicana","Indice Original\nPanamá",null,null,"Variación Interanual Costa Rica","Variación Interanual\nEl Salvador","Variación Interanual Guatemala","Variación Interanual Honduras","Variación Interanual Nicaragua","Variación Interanual Dominicana","Variación Interanual Panamá",null,null,"RIN del BC Costa Rica","RIN del BC\nEl Salvador","RIN del BC\nGuatemala","RIN del BC\nHonduras","RIN del BC\nNicaragua","RIN del BC\nDominicana","RIN del BC\nPanmaná",null,null,"RIN del BC Costa Rica","RIN del BC\nEl Salvador","RIN del BC\nGuatemala","RIN del BC\nHonduras","RIN del BC\nNicaragua","RIN del BC\nDominicana","RIN del BC\nPanmaná",null,null,"Ti pasiva real MN\nCosta Rica","Ti pasiva real MN\nEl Salvador","Ti pasiva real MN\nGuatemala","Ti pasiva real MN\nHonduras","Ti pasiva real MN\nNicaragua","Ti pasiva real MN\nDominicana","Ti pasiva real MN\nPanamá",null,null,"Ti pasiva ME (prom nominal)\nCosta Rica","Ti pasiva ME (prom nominal)\nEl Salvador","Ti pasiva ME (prom nominal)\nGuatemala","Ti pasiva ME (prom nominal)\nHonduras","Ti pasiva ME (prom nominal)\nNicaragua","Ti pasiva ME (prom nominal)\nDominicana","Ti pasiva ME (prom nominal)\nPanamá",null,null,"Ti activa real MN\nCosta Rica","Ti activa real MN\nEl Salvador","Ti activa real MN\nGuatemala","Ti activa real MN\nHonduras","Ti activa real MN\nNicaragua","Ti activa real MN\nDominicana","Ti activa real MN\nPanamá",null,null,"Ti activa ME (prom nominal)\nCosta Rica","Ti activa ME (prom nominal)\nEl Salvador","Ti activa ME (prom nominal)\nGuatemala","Ti activa ME (prom nominal)\nHonduras","Ti activa ME (prom nominal)\nNicaragua","Ti activa ME (prom nominal)\nDominicana","Ti activa ME (prom nominal)\nPanamá",null,null,"Tasa de Política Monetaria\nCosta Rica","Tasa de Política Monetaria\nEl Salvador","Tasa de Política Monetaria\nGuatemala","Tasa de Política Monetaria\nHonduras","Tasa de Política Monetaria\nNicaragua","Tasa de Política Monetaria\nDominicana","Tasa de Política Monetaria\nPanamá",null,null,"Créditos de las OSD con el sector Privado Costa Rica","Créditos de las OSD con el sector Privado El Salvador","Créditos de las OSD con el sector Privado Guatemala","Créditos de las OSD con el sector Privado Honduras","Créditos de las OSD con el sector Privado Nicaragua","Créditos de las OSD con el sector Privado Dominicana","Créditos de las OSD con el sector Privado Panamá",null,null,"Exp Total FOB\nCosta Rica","Exp Total FOB\nEl Salvador","Exp Total FOB\nGuatemala","Exp Total FOB\nHonduras","Exp Total FOB\nNicaragua","Exp Total FOB\nDominicana","Exp Total FOB\nPanamá","Exp Total FOB\nRegional","Exp Total FOB\nCAPARD",null,null,"Imp Total CIF Costa Rica","Imp Total CIF El Salvador","Imp Total CIF Guatemala","Imp Total CIF Honduras","Imp Total CIF Nicaragua","Imp Total CIF Dominicana","Imp Total CIF  Panamá","Imp Total CIF Regional","Imp Total CIF CAPARD",null,null,"Saldo de Comercio Exterior Promedio Movil Regional al mes","Saldo de Comercio Exterior Promedio Movil Regional al mes",null,null,{"$f":"'[1]EXT Comercio(M)'!C8","v":"Exp Total FOB\nCosta Rica"},{"$f":"'[1]EXT Comercio(M)'!D8","v":"Exp Total FOB\nEl Salvador"},{"$f":"'[1]EXT Comercio(M)'!E8","v":"Exp Total FOB\nGuatemala"},{"$f":"'[1]EXT Comercio(M)'!F8","v":"Exp Total FOB\nHonduras"},{"$f":"'[1]EXT Comercio(M)'!G8","v":"Exp Total FOB\nNicaragua"},{"$f":"'[1]EXT Comercio(M)'!H8","v":"Exp Total FOB\nDominicana"},{"$f":"'[1]EXT Comercio(M)'!I8","v":"Exp Total FOB\nPanamá"},{"$f":"'[1]EXT Comercio(M)'!K8","v":"Exp Total FOB\nRegional"},{"$f":"'[1]EXT Comercio(M)'!L8","v":"Exp Total FOB\nCAPARD"},null,null,"Imp Total CIF\nCosta Rica","Imp Total CIF\nEl Salvador","Imp Total CIF\nGuatemala","Imp Total CIF\nHonduras","Imp Total CIF\nNicaragua","Imp Total CIF\nDominicana","Imp Total CIF\nPanamá","Imp Total CIF\nRegional","Imp Total CIF\nCAPARD",null,null,"Saldo de Comercio Regional al mes","Saldo de Comercio Regional al mes"]
[null,null,null,"%","%","%","%","%","%","%",null,null,"%","%","%","%","%","%","%",null,null,"Nivel","Nivel","Nivel","Nivel","Nivel","Nivel","Nivel",null,null,"%","%","%","%","%","%","%",null,null,"Millones US$","Millones US$","Millones US$","Millones US$","Millones US$","Millones US$","Millones US$",null,null,"Millones US$","Millones US$","Millones US$","Millones US$","Millones US$","Millones US$","Millones US$",null,null,"%","%","%","%","%","%","%",null,null,"%","%","%","%","%","%","%",null,null,"%","%","%","%","%","%","%",null,null,"%","%","%","%","%","%","%",null,null,"%","%","%","%","%","%","%",null,null,"%","%","%","%","%","%","%",null,null,"Millones US$","Millones US$","Millones US$","Millones US$","Millones US$","Millones US$","Millones US$","Millones US$","Millones US$",null,null,"Millones US$","Millones US$","Millones US$","Millones US$","Millones US$","Millones US$","Millones US$","Millones US$","Millones US$",null,null,"Millones US$","Millones US$",null,null,"Millones US$","Millones US$","Millones US$","Millones US$","Millones US$","Millones US$","Millones US$","Millones US$","Millones US$",null,null,"Millones US$","Millones US$","Millones US$","Millones US$","Millones US$","Millones US$","Millones US$","Millones US$","Millones US$",null,null,"Millones US$","Millones US$"]
[null,2006,"Enero",{"$f":"'[1]REAL IPC(M)'!AD202","v":13.195387329549135},{"$f":"'[1]REAL IPC(M)'!AE202","v":3.3321432821611303},{"$f":"'[1]REAL IPC(M)'!AF202","v":8.0834131604155832},{"$f":"'[1]REAL IPC(M)'!AG202","v":7.2930354796320787},{"$f":"'[1]REAL IPC(M)'!AH202","v":10.268771845245265},{"$f":"'[1]REAL IPC(M)'!AI202","v":8.2493088307041695},{"$f":"'[1]REAL IPC(M)'!AJ202","v":3.0481809242871103},null,null,{"$f":"'[1]REAL IMAE(M)'!AG202","v":4.9227114658014344},{"$f":"'[1]REAL IMAE(M)'!AH202","v":5.4403602667535189},{"$f":"'[1]REAL IMAE(M)'!AI202","v":"n.d."},{"$f":"'[1]REAL IMAE(M)'!AJ202","v":6.3967347281270088},{"$f":"'[1]REAL IMAE(M)'!AK202","v":"n.d."},{"$f":"'[1]REAL IMAE(M)'!AL202","v":"n.d."},{"$f":"'[1]REAL IMAE(M)'!AM202","v":5.8222747168762554},null,null,{"$f":"'[1]EXT ITCER(M)'!C202","v":102.37993931645707},{"$f":"'[1]EXT ITCER(M)'!D202","v":96.991859031211774},{"$f":"'[1]EXT ITCER(M)'!E202","v":76.577806016513378},{"$f":"'[1]EXT ITCER(M)'!F202","v":95.98306320482402},{"$f":"'[1]EXT ITCER(M)'!G202","v":107.38657563086096},{"$f":"'[1]EXT ITCER(M)'!H202","v":103.10057299544465},{"$f":"'[1]EXT ITCER(M)'!I202","v":106.9645426201087},null,null,{"$f":"'[1]EXT TC(M)'!J202","v":8.2188905526177418},{"$f":"'[1]EXT TC(M)'!K202","v":0},{"$f":"'[1]EXT TC(M)'!L202","v":-1.8077581502633662},{"$f":"'[1]EXT TC(M)'!M202","v":1.2861736334405061},{"$f":"'[1]EXT TC(M)'!N202","v":5.7161451937718022},{"$f":"'[1]EXT TC(M)'!O202","v":15.851197897813357},{"$f":"'[1]EXT TC(M)'!P202","v":0},null,null,{"$f":"'[1]EXT RIN(M)'!C202","v":2350.1},{"$f":"'[1]EXT RIN(M)'!D202","v":1726.4},{"$f":"'[1]EXT RIN(M)'!E202","v":4087.8},{"$f":"'[1]EXT RIN(M)'!F202","v":2206.3262658537619},{"$f":"'[1]EXT RIN(M)'!G202","v":727.7},{"$f":"'[1]EXT RIN(M)'!H202","v":1476.5},{"$f":"'[1]EXT RIN(M)'!I202","v":1207.5531742798},null,null,{"$f":"'[1]EXT RIN(M)'!P202","v":55.332612936163692},{"$f":"'[1]EXT RIN(M)'!Q202","v":88.770053475935825},{"$f":"'[1]EXT RIN(M)'!R202","v":109.18065979452966},{"$f":"'[1]EXT RIN(M)'!S202","v":106.57212687030275},{"$f":"'[1]EXT RIN(M)'!T202","v":75.781538882375614},{"$f":"'[1]EXT RIN(M)'!U202","v":32.655446523979343},{"$f":"'[1]EXT RIN(M)'!V202","v":153.29313559107652},null,null,{"$f":"+'[1]MONE(M)CAPARD'!AE202","v":1.815102822581639},{"$f":"'[1]MONE(M)CAPARD'!AF202","v":0.72176056513970366},{"$f":"'[1]MONE(M)CAPARD'!AG202","v":-3.2043891464412244},{"$f":"'[1]MONE(M)CAPARD'!AH202","v":3.1940232700550992},{"$f":"'[1]MONE(M)CAPARD'!AI202","v":1.6236165781056027},{"$f":"'[1]MONE(M)CAPARD'!AJ202","v":2.6704015023474281},{"$f":"'[1]MONE(M)CAPARD'!AK202","v":-0.24083969465648031},null,null,{"$f":"'[1]MONE(M)CAPARD'!AL202","v":3.33},{"$f":"'[1]MONE(M)CAPARD'!AM202","v":4.08},{"$f":"'[1]MONE(M)CAPARD'!AN202","v":3.33},{"$f":"'[1]MONE(M)CAPARD'!AO202","v":2.88},{"$f":"'[1]MONE(M)CAPARD'!AP202","v":4.7},{"$f":"'[1]MONE(M)CAPARD'!AQ202","v":3.23},{"$f":"'[1]MONE(M)CAPARD'!AR202","v":2.8},null,null,{"$f":"'[1]MONE(M)CAPARD'!J202","v":9.4214198317133349},{"$f":"'[1]MONE(M)CAPARD'!K202","v":4.314104572152484},{"$f":"'[1]MONE(M)CAPARD'!L202","v":4.2898227433869742},{"$f":"'[1]MONE(M)CAPARD'!M202","v":10.3426699326393},{"$f":"'[1]MONE(M)CAPARD'!N202","v":8.0469961165330179},{"$f":"'[1]MONE(M)CAPARD'!O202","v":11.862146103286396},{"$f":"'[1]MONE(M)CAPARD'!P202","v":4.6403721374045892},null,null,{"$f":"'[1]MONE(M)CAPARD'!Q202","v":10.48},{"$f":"'[1]MONE(M)CAPARD'!R202","v":7.79},{"$f":"'[1]MONE(M)CAPARD'!S202","v":7.31},{"$f":"'[1]MONE(M)CAPARD'!T202","v":8.84},{"$f":"'[1]MONE(M)CAPARD'!U202","v":10.199999999999999},{"$f":"'[1]MONE(M)CAPARD'!V202","v":9.1300000000000008},{"$f":"'[1]MONE(M)CAPARD'!W202","v":7.83},null,null,{"$f":"'[1]MONE(M)CAPARD'!AS202","v":"n.d."},{"$f":"'[1]MONE(M)CAPARD'!AT202","v":"n.a."},{"$f":"'[1]MONE(M)CAPARD'!AU202","v":4.25},{"$f":"'[1]MONE(M)CAPARD'!AV202","v":7},{"$f":"'[1]MONE(M)CAPARD'!AW202","v":"n.a."},{"$f":"'[1]MONE(M)CAPARD'!AX202","v":10},{"$f":"'[1]MONE(M)CAPARD'!AY202","v":"n.a."},null,null,{"$f":"+'Datos_Regional (M)'!CF195","v":28.663359416032286},{"$f":"+'Datos_Regional (M)'!CG195","v":10.056744831538357},{"$f":"+'Datos_Regional (M)'!CH195","v":5.5704972052809554},{"$f":"+'Datos_Regional (M)'!CI195","v":18.897940444016182},{"$f":"+'Datos_Regional (M)'!CJ195","v":33.219639618913476},{"$f":"+'Datos_Regional (M)'!CK195","v":15.191353953505837},{"$f":"+'Datos_Regional (M)'!CL195","v":18.007091781691955},null,null,null,null,null,null,null,null,null,null,null,null,null,null,null,null,null,null,null,null,null,null,null,null,null,null,null,null,{"$f":"'[1]EXT Comercio(M)'!C202","v":538.82476956999994},{"$f":"'[1]EXT Comercio(M)'!D202","v":303.18},{"$f":"'[1]EXT Comercio(M)'!E202","v":460.6},{"$f":"'[1]EXT Comercio(M)'!F202","v":174.29626059859416},{"$f":"'[1]EXT Comercio(M)'!G202","v":129.1},{"$f":"'[1]EXT Comercio(M)'!H202","v":423.68849999999998},{"$f":"'[1]EXT Comercio(M)'!I202","v":617.28600000000006},{"$f":"'[1]EXT Comercio(M)'!K202","v":2029.689530168594},{"$f":"'[1]EXT Comercio(M)'!L202","v":2646.9755301685946},null,null,{"$f":"'[1]EXT Comercio(M)'!AG202","v":923.31914477000009},{"$f":"'[1]EXT Comercio(M)'!AH202","v":545.83000000000004},{"$f":"'[1]EXT Comercio(M)'!AI202","v":927.1},{"$f":"'[1]EXT Comercio(M)'!AJ202","v":418.00248488743978},{"$f":"'[1]EXT Comercio(M)'!AK202","v":282.7},{"$f":"'[1]EXT Comercio(M)'!AL202","v":824.5},{"$f":"'[1]EXT Comercio(M)'!AM202","v":825.89502800000002},{"$f":"'[1]EXT Comercio(M)'!AO202","v":3921.4516296574393},{"$f":"'[1]EXT Comercio(M)'!AP202","v":4747.3466576574392},null,null,{"$f":"'[1]EXT Comercio(M)'!$BS202","v":-1891.7620994888457},{"$f":"'[1]EXT Comercio(M)'!$BT202","v":-2100.3711274888456}]
[null,null,"Febrero",{"$f":"'[1]REAL IPC(M)'!AD203","v":12.962452565609627},{"$f":"'[1]REAL IPC(M)'!AE203","v":3.7450957080014327},{"$f":"'[1]REAL IPC(M)'!AF203","v":7.2635505815229342},{"$f":"'[1]REAL IPC(M)'!AG203","v":6.7812337662337576},{"$f":"'[1]REAL IPC(M)'!AH203","v":10.489343969520185},{"$f":"'[1]REAL IPC(M)'!AI203","v":8.0752661952369387},{"$f":"'[1]REAL IPC(M)'!AJ203","v":2.3483365949119261},null,null,{"$f":"'[1]REAL IMAE(M)'!AG203","v":5.3707325254449385},{"$f":"'[1]REAL IMAE(M)'!AH203","v":4.9405357847907094},{"$f":"'[1]REAL IMAE(M)'!AI203","v":"n.d."},{"$f":"'[1]REAL IMAE(M)'!AJ203","v":6.3634338475307359},{"$f":"'[1]REAL IMAE(M)'!AK203","v":"n.d."},{"$f":"'[1]REAL IMAE(M)'!AL203","v":"n.d."},{"$f":"'[1]REAL IMAE(M)'!AM203","v":6.6288009974371356},null,null,{"$f":"'[1]EXT ITCER(M)'!C203","v":102.28824337722259},{"$f":"'[1]EXT ITCER(M)'!D203","v":96.708584963967652},{"$f":"'[1]EXT ITCER(M)'!E203","v":76.623928651935742},{"$f":"'[1]EXT ITCER(M)'!F203","v":95.508118204332305},{"$f":"'[1]EXT ITCER(M)'!G203","v":106.64365661201944},{"$f":"'[1]EXT ITCER(M)'!H203","v":102.26221905728706},{"$f":"'[1]EXT ITCER(M)'!I203","v":107.38523935434533},null,null,{"$f":"'[1]EXT TC(M)'!J203","v":8.0871055590410599},{"$f":"'[1]EXT TC(M)'!K203","v":0},{"$f":"'[1]EXT TC(M)'!L203","v":-1.3945515557158745},{"$f":"'[1]EXT TC(M)'!M203","v":0.90763481046448546},{"$f":"'[1]EXT TC(M)'!N203","v":5.1752110005894103},{"$f":"'[1]EXT TC(M)'!O203","v":18.46329837940895},{"$f":"'[1]EXT TC(M)'!P203","v":0},null,null,{"$f":"'[1]EXT RIN(M)'!C203","v":2405.1999999999998},{"$f":"'[1]EXT RIN(M)'!D203","v":1855.6},{"$f":"'[1]EXT RIN(M)'!E203","v":4067.1},{"$f":"'[1]EXT RIN(M)'!F203","v":2270.2131867352559},{"$f":"'[1]EXT RIN(M)'!G203","v":703.4},{"$f":"'[1]EXT RIN(M)'!H203","v":1501.8},{"$f":"'[1]EXT RIN(M)'!I203","v":1113.42992807276},null,null,{"$f":"'[1]EXT RIN(M)'!P203","v":55.689856024431819},{"$f":"'[1]EXT RIN(M)'!Q203","v":88.42312725096329},{"$f":"'[1]EXT RIN(M)'!R203","v":110.26084499290828},{"$f":"'[1]EXT RIN(M)'!S203","v":108.74372710957549},{"$f":"'[1]EXT RIN(M)'!T203","v":72.204193537757462},{"$f":"'[1]EXT RIN(M)'!U203","v":32.693547603786485},{"$f":"'[1]EXT RIN(M)'!V203","v":142.26851713515128},null,null,{"$f":"+'[1]MONE(M)CAPARD'!AE203","v":2.0250511408308385},{"$f":"'[1]MONE(M)CAPARD'!AF203","v":0.21955796396696795},{"$f":"'[1]MONE(M)CAPARD'!AG203","v":-2.4365691489361723},{"$f":"'[1]MONE(M)CAPARD'!AH203","v":3.6230769183991387},{"$f":"'[1]MONE(M)CAPARD'!AI203","v":0.61621694331956445},{"$f":"'[1]MONE(M)CAPARD'!AJ203","v":2.7339593126010557},{"$f":"'[1]MONE(M)CAPARD'!AK203","v":0.90051625239006861},null,null,{"$f":"'[1]MONE(M)CAPARD'!AL203","v":3.3600000000000003},{"$f":"'[1]MONE(M)CAPARD'!AM203","v":3.97},{"$f":"'[1]MONE(M)CAPARD'!AN203","v":3.34},{"$f":"'[1]MONE(M)CAPARD'!AO203","v":2.96},{"$f":"'[1]MONE(M)CAPARD'!AP203","v":4.8},{"$f":"'[1]MONE(M)CAPARD'!AQ203","v":2.98},{"$f":"'[1]MONE(M)CAPARD'!AR203","v":3.27},null,null,{"$f":"'[1]MONE(M)CAPARD'!J203","v":9.478855310946205},{"$f":"'[1]MONE(M)CAPARD'!K203","v":3.6517352452853413},{"$f":"'[1]MONE(M)CAPARD'!L203","v":5.1056014729950885},{"$f":"'[1]MONE(M)CAPARD'!M203","v":10.899636409189572},{"$f":"'[1]MONE(M)CAPARD'!N203","v":6.9939714704741958},{"$f":"'[1]MONE(M)CAPARD'!O203","v":12.523433234309776},{"$f":"'[1]MONE(M)CAPARD'!P203","v":4.9064435946462837},null,null,{"$f":"'[1]MONE(M)CAPARD'!Q203","v":10.54},{"$f":"'[1]MONE(M)CAPARD'!R203","v":7.53},{"$f":"'[1]MONE(M)CAPARD'!S203","v":7.39},{"$f":"'[1]MONE(M)CAPARD'!T203","v":8.84},{"$f":"'[1]MONE(M)CAPARD'!U203","v":9.9},{"$f":"'[1]MONE(M)CAPARD'!V203","v":7.96},{"$f":"'[1]MONE(M)CAPARD'!W203","v":7.37},null,null,{"$f":"'[1]MONE(M)CAPARD'!AS203","v":"n.d."},{"$f":"'[1]MONE(M)CAPARD'!AT203","v":"n.a."},{"$f":"'[1]MONE(M)CAPARD'!AU203","v":4.25},{"$f":"'[1]MONE(M)CAPARD'!AV203","v":7},{"$f":"'[1]MONE(M)CAPARD'!AW203","v":"n.a."},{"$f":"'[1]MONE(M)CAPARD'!AX203","v":10},{"$f":"'[1]MONE(M)CAPARD'!AY203","v":"n.a."},null,null,{"$f":"+'Datos_Regional (M)'!CF196","v":28.314985229658095},{"$f":"+'Datos_Regional (M)'!CG196","v":11.127324148385686},{"$f":"+'Datos_Regional (M)'!CH196","v":7.0601135588099773},{"$f":"+'Datos_Regional (M)'!CI196","v":19.072651696269148},{"$f":"+'Datos_Regional (M)'!CJ196","v":35.861908009926658},{"$f":"+'Datos_Regional (M)'!CK196","v":15.161705146044335},{"$f":"+'Datos_Regional (M)'!CL196","v":17.320750903486658},null,null,null,null,null,null,null,null,null,null,null,null,null,null,null,null,null,null,null,null,null,null,null,null,null,null,null,null,{"$f":"'[1]EXT Comercio(M)'!C203","v":634.0564989500001},{"$f":"'[1]EXT Comercio(M)'!D203","v":293.33999999999997},{"$f":"'[1]EXT Comercio(M)'!E203","v":428.30000000000007},{"$f":"'[1]EXT Comercio(M)'!F203","v":179.35100965771059},{"$f":"'[1]EXT Comercio(M)'!G203","v":151.80000000000001},{"$f":"'[1]EXT Comercio(M)'!H203","v":497.19280000000003},{"$f":"'[1]EXT Comercio(M)'!I203","v":682.21600000000001},{"$f":"'[1]EXT Comercio(M)'!K203","v":2184.0403086077108},{"$f":"'[1]EXT Comercio(M)'!L203","v":2866.2563086077107},null,null,{"$f":"'[1]EXT Comercio(M)'!AG203","v":814.71968157999993},{"$f":"'[1]EXT Comercio(M)'!AH203","v":580.4799999999999},{"$f":"'[1]EXT Comercio(M)'!AI203","v":824.9},{"$f":"'[1]EXT Comercio(M)'!AJ203","v":365.87825691667001},{"$f":"'[1]EXT Comercio(M)'!AK203","v":259.90000000000003},{"$f":"'[1]EXT Comercio(M)'!AL203","v":868.8},{"$f":"'[1]EXT Comercio(M)'!AM203","v":768.52662899999996},{"$f":"'[1]EXT Comercio(M)'!AO203","v":3714.6779384966712},{"$f":"'[1]EXT Comercio(M)'!AP203","v":4483.2045674966721},null,null,{"$f":"'[1]EXT Comercio(M)'!$BS203","v":-1530.6376298889591},{"$f":"'[1]EXT Comercio(M)'!$BT203","v":-1616.9482588889591}]
[null,null,"Marzo",{"$f":"'[1]REAL IPC(M)'!AD204","v":12.21660233702355},{"$f":"'[1]REAL IPC(M)'!AE204","v":4.0394439824165271},{"$f":"'[1]REAL IPC(M)'!AF204","v":7.2806698216235848},{"$f":"'[1]REAL IPC(M)'!AG204","v":6.1855670103092928},{"$f":"'[1]REAL IPC(M)'!AH204","v":10.14031364225916},{"$f":"'[1]REAL IPC(M)'!AI204","v":8.256059866601607},{"$f":"'[1]REAL IPC(M)'!AJ204","v":2.0408163265305994},null,null,{"$f":"'[1]REAL IMAE(M)'!AG204","v":5.8833123225919177},{"$f":"'[1]REAL IMAE(M)'!AH204","v":4.0881813803155236},{"$f":"'[1]REAL IMAE(M)'!AI204","v":"n.d."},{"$f":"'[1]REAL IMAE(M)'!AJ204","v":6.9829832030920098},{"$f":"'[1]REAL IMAE(M)'!AK204","v":"n.d."},{"$f":"'[1]REAL IMAE(M)'!AL204","v":"n.d."},{"$f":"'[1]REAL IMAE(M)'!AM204","v":7.4396736500034502},null,null,{"$f":"'[1]EXT ITCER(M)'!C204","v":103.24718516408933},{"$f":"'[1]EXT ITCER(M)'!D204","v":96.89971606388039},{"$f":"'[1]EXT ITCER(M)'!E204","v":76.785349236053037},{"$f":"'[1]EXT ITCER(M)'!F204","v":95.828866892410815},{"$f":"'[1]EXT ITCER(M)'!G204","v":106.860571618649},{"$f":"'[1]EXT ITCER(M)'!H204","v":97.884022383734731},{"$f":"'[1]EXT ITCER(M)'!I204","v":107.56837098692031},null,null,{"$f":"'[1]EXT TC(M)'!J204","v":7.9570237908960726},{"$f":"'[1]EXT TC(M)'!K204","v":0},{"$f":"'[1]EXT TC(M)'!L204","v":7.0228598032013922E-2},{"$f":"'[1]EXT TC(M)'!M204","v":0.69259456579647849},{"$f":"'[1]EXT TC(M)'!N204","v":5.0675579975700797},{"$f":"'[1]EXT TC(M)'!O204","v":15.064615645573381},{"$f":"'[1]EXT TC(M)'!P204","v":0},null,null,{"$f":"'[1]EXT RIN(M)'!C204","v":2765.7},{"$f":"'[1]EXT RIN(M)'!D204","v":1763.7},{"$f":"'[1]EXT RIN(M)'!E204","v":4115.5},{"$f":"'[1]EXT RIN(M)'!F204","v":2386.1356907394475},{"$f":"'[1]EXT RIN(M)'!G204","v":766.5},{"$f":"'[1]EXT RIN(M)'!H204","v":1524.2},{"$f":"'[1]EXT RIN(M)'!I204","v":1137.2237359982},null,null,{"$f":"'[1]EXT RIN(M)'!P204","v":59.589120646112079},{"$f":"'[1]EXT RIN(M)'!Q204","v":86.286017330588408},{"$f":"'[1]EXT RIN(M)'!R204","v":111.36425811817583},{"$f":"'[1]EXT RIN(M)'!S204","v":109.04177308514507},{"$f":"'[1]EXT RIN(M)'!T204","v":79.856837221370455},{"$f":"'[1]EXT RIN(M)'!U204","v":33.358120831968563},{"$f":"'[1]EXT RIN(M)'!V204","v":146.83767313913012},null,null,{"$f":"+'[1]MONE(M)CAPARD'!AE204","v":2.703162989970195},{"$f":"'[1]MONE(M)CAPARD'!AF204","v":7.6459913605915295E-2},{"$f":"'[1]MONE(M)CAPARD'!AG204","v":-2.4521377672208979},{"$f":"'[1]MONE(M)CAPARD'!AH204","v":4.1007766990291108},{"$f":"'[1]MONE(M)CAPARD'!AI204","v":0.92714709573714138},{"$f":"'[1]MONE(M)CAPARD'!AJ204","v":2.7194229468780398},{"$f":"'[1]MONE(M)CAPARD'!AK204","v":1.136000000000013},null,null,{"$f":"'[1]MONE(M)CAPARD'!AL204","v":3.3849999999999998},{"$f":"'[1]MONE(M)CAPARD'!AM204","v":4.12},{"$f":"'[1]MONE(M)CAPARD'!AN204","v":3.43},{"$f":"'[1]MONE(M)CAPARD'!AO204","v":3},{"$f":"'[1]MONE(M)CAPARD'!AP204","v":4.9000000000000004},{"$f":"'[1]MONE(M)CAPARD'!AQ204","v":3},{"$f":"'[1]MONE(M)CAPARD'!AR204","v":3.2},null,null,{"$f":"'[1]MONE(M)CAPARD'!J204","v":10.108484330071299},{"$f":"'[1]MONE(M)CAPARD'!K204","v":3.2611153514555422},{"$f":"'[1]MONE(M)CAPARD'!L204","v":5.1074720054292539},{"$f":"'[1]MONE(M)CAPARD'!M204","v":11.333398058252412},{"$f":"'[1]MONE(M)CAPARD'!N204","v":7.3185637832743771},{"$f":"'[1]MONE(M)CAPARD'!O204","v":12.196952438199702},{"$f":"'[1]MONE(M)CAPARD'!P204","v":5.2422000000000128},null,null,{"$f":"'[1]MONE(M)CAPARD'!Q204","v":10.88},{"$f":"'[1]MONE(M)CAPARD'!R204","v":7.43},{"$f":"'[1]MONE(M)CAPARD'!S204","v":7.4700000000000006},{"$f":"'[1]MONE(M)CAPARD'!T204","v":8.91},{"$f":"'[1]MONE(M)CAPARD'!U204","v":9.8000000000000007},{"$f":"'[1]MONE(M)CAPARD'!V204","v":8.6300000000000008},{"$f":"'[1]MONE(M)CAPARD'!W204","v":7.39},null,null,{"$f":"'[1]MONE(M)CAPARD'!AS204","v":8.51},{"$f":"'[1]MONE(M)CAPARD'!AT204","v":"n.a."},{"$f":"'[1]MONE(M)CAPARD'!AU204","v":4.25},{"$f":"'[1]MONE(M)CAPARD'!AV204","v":6.75},{"$f":"'[1]MONE(M)CAPARD'!AW204","v":"n.a."},{"$f":"'[1]MONE(M)CAPARD'!AX204","v":10},{"$f":"'[1]MONE(M)CAPARD'!AY204","v":"n.a."},null,null,{"$f":"+'Datos_Regional (M)'!CF197","v":28.531391372747095},{"$f":"+'Datos_Regional (M)'!CG197","v":10.922799190821063},{"$f":"+'Datos_Regional (M)'!CH197","v":8.2393467364412878},{"$f":"+'Datos_Regional (M)'!CI197","v":21.229670591680438},{"$f":"+'Datos_Regional (M)'!CJ197","v":34.888310903525891},{"$f":"+'Datos_Regional (M)'!CK197","v":18.195251345727016},{"$f":"+'Datos_Regional (M)'!CL197","v":17.031070937013769},null,null,null,null,null,null,null,null,null,null,null,null,null,null,null,null,null,null,null,null,null,null,null,null,null,null,null,null,{"$f":"'[1]EXT Comercio(M)'!C204","v":815.36940162999986},{"$f":"'[1]EXT Comercio(M)'!D204","v":338.25},{"$f":"'[1]EXT Comercio(M)'!E204","v":495.90000000000009},{"$f":"'[1]EXT Comercio(M)'!F204","v":206.75582121440425},{"$f":"'[1]EXT Comercio(M)'!G204","v":172.59999999999997},{"$f":"'[1]EXT Comercio(M)'!H204","v":596.0009},{"$f":"'[1]EXT Comercio(M)'!I204","v":810.74200000000008},{"$f":"'[1]EXT Comercio(M)'!K204","v":2624.8761228444046},{"$f":"'[1]EXT Comercio(M)'!L204","v":3435.6181228444048},null,null,{"$f":"'[1]EXT Comercio(M)'!AG204","v":976.88234908000004},{"$f":"'[1]EXT Comercio(M)'!AH204","v":672.33000000000015},{"$f":"'[1]EXT Comercio(M)'!AI204","v":983.1999999999997},{"$f":"'[1]EXT Comercio(M)'!AJ204","v":430.41950835667751},{"$f":"'[1]EXT Comercio(M)'!AK204","v":308.8},{"$f":"'[1]EXT Comercio(M)'!AL204","v":1027.9000000000001},{"$f":"'[1]EXT Comercio(M)'!AM204","v":841.15919899999994},{"$f":"'[1]EXT Comercio(M)'!AO204","v":4399.5318574366775},{"$f":"'[1]EXT Comercio(M)'!AP204","v":5240.6910564366772},null,null,{"$f":"'[1]EXT Comercio(M)'!$BS204","v":-1774.6557345922738},{"$f":"'[1]EXT Comercio(M)'!$BT204","v":-1805.0729335922738}]
[null,null,"Abril",{"$f":"'[1]REAL IPC(M)'!AD205","v":11.629027979718872},{"$f":"'[1]REAL IPC(M)'!AE205","v":4.2203570161957593},{"$f":"'[1]REAL IPC(M)'!AF205","v":7.4808276660396675},{"$f":"'[1]REAL IPC(M)'!AG205","v":5.8109833971902907},{"$f":"'[1]REAL IPC(M)'!AH205","v":9.8446196660482492},{"$f":"'[1]REAL IPC(M)'!AI205","v":8.5586863977295735},{"$f":"'[1]REAL IPC(M)'!AJ205","v":2.9069767441860583},null,null,{"$f":"'[1]REAL IMAE(M)'!AG205","v":6.2949265992844508},{"$f":"'[1]REAL IMAE(M)'!AH205","v":3.1658385856921933},{"$f":"'[1]REAL IMAE(M)'!AI205","v":"n.d."},{"$f":"'[1]REAL IMAE(M)'!AJ205","v":8.0354776541874386},{"$f":"'[1]REAL IMAE(M)'!AK205","v":"n.d."},{"$f":"'[1]REAL IMAE(M)'!AL205","v":"n.d."},{"$f":"'[1]REAL IMAE(M)'!AM205","v":8.1433899709904622},null,null,{"$f":"'[1]EXT ITCER(M)'!C205","v":104.2109641076829},{"$f":"'[1]EXT ITCER(M)'!D205","v":97.070180965128657},{"$f":"'[1]EXT ITCER(M)'!E205","v":76.549169095729042},{"$f":"'[1]EXT ITCER(M)'!F205","v":96.119304236936543},{"$f":"'[1]EXT ITCER(M)'!G205","v":106.61759400101026},{"$f":"'[1]EXT ITCER(M)'!H205","v":96.763660033858969},{"$f":"'[1]EXT ITCER(M)'!I205","v":107.2578138004184},null,null,{"$f":"'[1]EXT TC(M)'!J205","v":7.8381253172890961},{"$f":"'[1]EXT TC(M)'!K205","v":0},{"$f":"'[1]EXT TC(M)'!L205","v":-0.14062271636213511},{"$f":"'[1]EXT TC(M)'!M205","v":0.47846889952153038},{"$f":"'[1]EXT TC(M)'!N205","v":5.1287312757251211},{"$f":"'[1]EXT TC(M)'!O205","v":13.662287456057429},{"$f":"'[1]EXT TC(M)'!P205","v":0},null,null,{"$f":"'[1]EXT RIN(M)'!C205","v":2740.9},{"$f":"'[1]EXT RIN(M)'!D205","v":2149.6},{"$f":"'[1]EXT RIN(M)'!E205","v":4141.6000000000004},{"$f":"'[1]EXT RIN(M)'!F205","v":2489.5851170323681},{"$f":"'[1]EXT RIN(M)'!G205","v":801.4},{"$f":"'[1]EXT RIN(M)'!H205","v":1571.7},{"$f":"'[1]EXT RIN(M)'!I205","v":1106.9278590550798},null,null,{"$f":"'[1]EXT RIN(M)'!P205","v":59.687169372967766},{"$f":"'[1]EXT RIN(M)'!Q205","v":106.56947044452201},{"$f":"'[1]EXT RIN(M)'!R205","v":115.17775149034952},{"$f":"'[1]EXT RIN(M)'!S205","v":110.18220226831099},{"$f":"'[1]EXT RIN(M)'!T205","v":79.946625788184761},{"$f":"'[1]EXT RIN(M)'!U205","v":34.152831126417745},{"$f":"'[1]EXT RIN(M)'!V205","v":143.50734827652013},null,null,{"$f":"+'[1]MONE(M)CAPARD'!AE205","v":3.2437548600163373},{"$f":"'[1]MONE(M)CAPARD'!AF205","v":-0.19144861451938872},{"$f":"'[1]MONE(M)CAPARD'!AG205","v":-2.5965818524502069},{"$f":"'[1]MONE(M)CAPARD'!AH205","v":4.1857815328907702},{"$f":"'[1]MONE(M)CAPARD'!AI205","v":0.39639578480145093},{"$f":"'[1]MONE(M)CAPARD'!AJ205","v":2.3962279653421006},{"$f":"'[1]MONE(M)CAPARD'!AK205","v":0.43050847457625974},null,null,{"$f":"'[1]MONE(M)CAPARD'!AL205","v":3.4450000000000003},{"$f":"'[1]MONE(M)CAPARD'!AM205","v":4.0199999999999996},{"$f":"'[1]MONE(M)CAPARD'!AN205","v":3.47},{"$f":"'[1]MONE(M)CAPARD'!AO205","v":3.6},{"$f":"'[1]MONE(M)CAPARD'!AP205","v":5.0999999999999996},{"$f":"'[1]MONE(M)CAPARD'!AQ205","v":2.96},{"$f":"'[1]MONE(M)CAPARD'!AR205","v":3.35},null,null,{"$f":"'[1]MONE(M)CAPARD'!J205","v":10.607430911637458},{"$f":"'[1]MONE(M)CAPARD'!K205","v":3.0047054649063427},{"$f":"'[1]MONE(M)CAPARD'!L205","v":4.8931260096930336},{"$f":"'[1]MONE(M)CAPARD'!M205","v":11.529064574532292},{"$f":"'[1]MONE(M)CAPARD'!N205","v":3.5547190077742474},{"$f":"'[1]MONE(M)CAPARD'!O205","v":10.714309456229465},{"$f":"'[1]MONE(M)CAPARD'!P205","v":4.3175141242937727},null,null,{"$f":"'[1]MONE(M)CAPARD'!Q205","v":11.12},{"$f":"'[1]MONE(M)CAPARD'!R205","v":7.35},{"$f":"'[1]MONE(M)CAPARD'!S205","v":7.5},{"$f":"'[1]MONE(M)CAPARD'!T205","v":8.94},{"$f":"'[1]MONE(M)CAPARD'!U205","v":10.7},{"$f":"'[1]MONE(M)CAPARD'!V205","v":8.34},{"$f":"'[1]MONE(M)CAPARD'!W205","v":7.35},null,null,{"$f":"'[1]MONE(M)CAPARD'!AS205","v":8.51},{"$f":"'[1]MONE(M)CAPARD'!AT205","v":"n.a."},{"$f":"'[1]MONE(M)CAPARD'!AU205","v":4.5},{"$f":"'[1]MONE(M)CAPARD'!AV205","v":6.5},{"$f":"'[1]MONE(M)CAPARD'!AW205","v":"n.a."},{"$f":"'[1]MONE(M)CAPARD'!AX205","v":10},{"$f":"'[1]MONE(M)CAPARD'!AY205","v":"n.a."},null,null,{"$f":"+'Datos_Regional (M)'!CF198","v":28.427447143515483},{"$f":"+'Datos_Regional (M)'!CG198","v":11.40928258867806},{"$f":"+'Datos_Regional (M)'!CH198","v":7.9690601288370688},{"$f":"+'Datos_Regional (M)'!CI198","v":23.180124138490179},{"$f":"+'Datos_Regional (M)'!CJ198","v":35.565596882865776},{"$f":"+'Datos_Regional (M)'!CK198","v":18.35592399818189},{"$f":"+'Datos_Regional (M)'!CL198","v":16.873481818690415},null,null,null,null,null,null,null,null,null,null,null,null,null,null,null,null,null,null,null,null,null,null,null,null,null,null,null,null,{"$f":"'[1]EXT Comercio(M)'!C205","v":560.88800568000011},{"$f":"'[1]EXT Comercio(M)'!D205","v":281.52},{"$f":"'[1]EXT Comercio(M)'!E205","v":394.29999999999995},{"$f":"'[1]EXT Comercio(M)'!F205","v":152.97518801633385},{"$f":"'[1]EXT Comercio(M)'!G205","v":145.29999999999998},{"$f":"'[1]EXT Comercio(M)'!H205","v":514.74340000000018},{"$f":"'[1]EXT Comercio(M)'!I205","v":603.60799999999995},{"$f":"'[1]EXT Comercio(M)'!K205","v":2049.726593696334},{"$f":"'[1]EXT Comercio(M)'!L205","v":2653.3345936963324},null,null,{"$f":"'[1]EXT Comercio(M)'!AG205","v":848.22872828000027},{"$f":"'[1]EXT Comercio(M)'!AH205","v":502.64999999999986},{"$f":"'[1]EXT Comercio(M)'!AI205","v":882.10000000000036},{"$f":"'[1]EXT Comercio(M)'!AJ205","v":420.65743794337754},{"$f":"'[1]EXT Comercio(M)'!AK205","v":270.30000000000007},{"$f":"'[1]EXT Comercio(M)'!AL205","v":936.0999999999998},{"$f":"'[1]EXT Comercio(M)'!AM205","v":783.96233899999993},{"$f":"'[1]EXT Comercio(M)'!AO205","v":3860.0361662233772},{"$f":"'[1]EXT Comercio(M)'!AP205","v":4643.9985052233751},null,null,{"$f":"'[1]EXT Comercio(M)'!$BS205","v":-1810.3095725270432},{"$f":"'[1]EXT Comercio(M)'!$BT205","v":-1990.6639115270427}]
[null,null,"Mayo ",{"$f":"'[1]REAL IPC(M)'!AD206","v":11.864015539277787},{"$f":"'[1]REAL IPC(M)'!AE206","v":3.603286384976518},{"$f":"'[1]REAL IPC(M)'!AF206","v":7.6164423007702933},{"$f":"'[1]REAL IPC(M)'!AG206","v":6.1068702290076482},{"$f":"'[1]REAL IPC(M)'!AH206","v":9.9126034958601714},{"$f":"'[1]REAL IPC(M)'!AI206","v":9.5075434101907277},{"$f":"'[1]REAL IPC(M)'!AJ206","v":3.1098153547132847},null,null,{"$f":"'[1]REAL IMAE(M)'!AG206","v":6.7207124620811811},{"$f":"'[1]REAL IMAE(M)'!AH206","v":2.3900780455279333},{"$f":"'[1]REAL IMAE(M)'!AI206","v":"n.d."},{"$f":"'[1]REAL IMAE(M)'!AJ206","v":8.5906545726462618},{"$f":"'[1]REAL IMAE(M)'!AK206","v":"n.d."},{"$f":"'[1]REAL IMAE(M)'!AL206","v":"n.d."},{"$f":"'[1]REAL IMAE(M)'!AM206","v":8.784156776152372},null,null,{"$f":"'[1]EXT ITCER(M)'!C206","v":103.51597609361066},{"$f":"'[1]EXT ITCER(M)'!D206","v":97.43035192675886},{"$f":"'[1]EXT ITCER(M)'!E206","v":76.358563640412711},{"$f":"'[1]EXT ITCER(M)'!F206","v":95.959297004844586},{"$f":"'[1]EXT ITCER(M)'!G206","v":106.64010405879532},{"$f":"'[1]EXT ITCER(M)'!H206","v":97.854455626594316},{"$f":"'[1]EXT ITCER(M)'!I206","v":107.89170358432861},null,null,{"$f":"'[1]EXT TC(M)'!J206","v":7.5524724054266441},{"$f":"'[1]EXT TC(M)'!K206","v":0},{"$f":"'[1]EXT TC(M)'!L206","v":-9.6936925055224304E-2},{"$f":"'[1]EXT TC(M)'!M206","v":0.2652519893899053},{"$f":"'[1]EXT TC(M)'!N206","v":5.0127871096329617},{"$f":"'[1]EXT TC(M)'!O206","v":13.218230600369344},{"$f":"'[1]EXT TC(M)'!P206","v":0},null,null,{"$f":"'[1]EXT RIN(M)'!C206","v":2503.8000000000002},{"$f":"'[1]EXT RIN(M)'!D206","v":2109.6999999999998},{"$f":"'[1]EXT RIN(M)'!E206","v":4211.6000000000004},{"$f":"'[1]EXT RIN(M)'!F206","v":2497.1465653790383},{"$f":"'[1]EXT RIN(M)'!G206","v":795.9},{"$f":"'[1]EXT RIN(M)'!H206","v":1617.4},{"$f":"'[1]EXT RIN(M)'!I206","v":1168.69120848646},null,null,{"$f":"'[1]EXT RIN(M)'!P206","v":56.116102384432466},{"$f":"'[1]EXT RIN(M)'!Q206","v":105.8140817943805},{"$f":"'[1]EXT RIN(M)'!R206","v":116.04615472941164},{"$f":"'[1]EXT RIN(M)'!S206","v":115.41564344056023},{"$f":"'[1]EXT RIN(M)'!T206","v":83.043793597156039},{"$f":"'[1]EXT RIN(M)'!U206","v":34.657508173285848},{"$f":"'[1]EXT RIN(M)'!V206","v":149.17051518786872},null,null,{"$f":"+'[1]MONE(M)CAPARD'!AE206","v":1.6859617023671072},{"$f":"'[1]MONE(M)CAPARD'!AF206","v":0.50470246755937143},{"$f":"'[1]MONE(M)CAPARD'!AG206","v":-2.7100341159943899},{"$f":"'[1]MONE(M)CAPARD'!AH206","v":3.4805755395683318},{"$f":"'[1]MONE(M)CAPARD'!AI206","v":1.4656885228186862},{"$f":"'[1]MONE(M)CAPARD'!AJ206","v":1.3080894203275204},{"$f":"'[1]MONE(M)CAPARD'!AK206","v":0.17475023562679556},null,null,{"$f":"'[1]MONE(M)CAPARD'!AL206","v":3.59},{"$f":"'[1]MONE(M)CAPARD'!AM206","v":4.13},{"$f":"'[1]MONE(M)CAPARD'!AN206","v":3.48},{"$f":"'[1]MONE(M)CAPARD'!AO206","v":3.2},{"$f":"'[1]MONE(M)CAPARD'!AP206","v":4.8},{"$f":"'[1]MONE(M)CAPARD'!AQ206","v":2.9},{"$f":"'[1]MONE(M)CAPARD'!AR206","v":3.29},null,null,{"$f":"'[1]MONE(M)CAPARD'!J206","v":9.4811404807815336},{"$f":"'[1]MONE(M)CAPARD'!K206","v":3.8830510644138108},{"$f":"'[1]MONE(M)CAPARD'!L206","v":4.7237741654960086},{"$f":"'[1]MONE(M)CAPARD'!M206","v":10.878776978417251},{"$f":"'[1]MONE(M)CAPARD'!N206","v":3.6631563533505322},{"$f":"'[1]MONE(M)CAPARD'!O206","v":9.8828411749415039},{"$f":"'[1]MONE(M)CAPARD'!P206","v":4.1510933081998402},null,null,{"$f":"'[1]MONE(M)CAPARD'!Q206","v":11.15},{"$f":"'[1]MONE(M)CAPARD'!R206","v":7.63},{"$f":"'[1]MONE(M)CAPARD'!S206","v":7.48},{"$f":"'[1]MONE(M)CAPARD'!T206","v":8.9},{"$f":"'[1]MONE(M)CAPARD'!U206","v":10.3},{"$f":"'[1]MONE(M)CAPARD'!V206","v":8.85},{"$f":"'[1]MONE(M)CAPARD'!W206","v":7.39},null,null,{"$f":"'[1]MONE(M)CAPARD'!AS206","v":8.51},{"$f":"'[1]MONE(M)CAPARD'!AT206","v":"n.a."},{"$f":"'[1]MONE(M)CAPARD'!AU206","v":4.5},{"$f":"'[1]MONE(M)CAPARD'!AV206","v":6.5},{"$f":"'[1]MONE(M)CAPARD'!AW206","v":"n.a."},{"$f":"'[1]MONE(M)CAPARD'!AX206","v":10},{"$f":"'[1]MONE(M)CAPARD'!AY206","v":"n.a."},null,null,{"$f":"+'Datos_Regional (M)'!CF199","v":27.945206113279951},{"$f":"+'Datos_Regional (M)'!CG199","v":11.980956643146467},{"$f":"+'Datos_Regional (M)'!CH199","v":8.2071235896640218},{"$f":"+'Datos_Regional (M)'!CI199","v":24.987245255851832},{"$f":"+'Datos_Regional (M)'!CJ199","v":33.524058722373653},{"$f":"+'Datos_Regional (M)'!CK199","v":18.751213604780361},{"$f":"+'Datos_Regional (M)'!CL199","v":16.843773745597513},null,null,null,null,null,null,null,null,null,null,null,null,null,null,null,null,null,null,null,null,null,null,null,null,null,null,null,null,{"$f":"'[1]EXT Comercio(M)'!C206","v":766.52788651999981},{"$f":"'[1]EXT Comercio(M)'!D206","v":338.72},{"$f":"'[1]EXT Comercio(M)'!E206","v":483.79999999999995},{"$f":"'[1]EXT Comercio(M)'!F206","v":226.90800636623408},{"$f":"'[1]EXT Comercio(M)'!G206","v":179.70000000000005},{"$f":"'[1]EXT Comercio(M)'!H206","v":548.99959999999976},{"$f":"'[1]EXT Comercio(M)'!I206","v":730.09500000000003},{"$f":"'[1]EXT Comercio(M)'!K206","v":2544.6554928862333},{"$f":"'[1]EXT Comercio(M)'!L206","v":3274.7504928862345},null,null,{"$f":"'[1]EXT Comercio(M)'!AG206","v":1042.3718409900002},{"$f":"'[1]EXT Comercio(M)'!AH206","v":765.95000000000027},{"$f":"'[1]EXT Comercio(M)'!AI206","v":1100.8999999999996},{"$f":"'[1]EXT Comercio(M)'!AJ206","v":480.31871327763292},{"$f":"'[1]EXT Comercio(M)'!AK206","v":337},{"$f":"'[1]EXT Comercio(M)'!AL206","v":1053.7},{"$f":"'[1]EXT Comercio(M)'!AM206","v":994.184978},{"$f":"'[1]EXT Comercio(M)'!AO206","v":4780.2405542676352},{"$f":"'[1]EXT Comercio(M)'!AP206","v":5774.4255322676363},null,null,{"$f":"'[1]EXT Comercio(M)'!$BS206","v":-2235.5850613814},{"$f":"'[1]EXT Comercio(M)'!$BT206","v":-2499.6750393814}]
[null,null,"Junio",{"$f":"'[1]REAL IPC(M)'!AD207","v":12.41985958737885},{"$f":"'[1]REAL IPC(M)'!AE207","v":4.423325120262831},{"$f":"'[1]REAL IPC(M)'!AF207","v":7.552567586897446},{"$f":"'[1]REAL IPC(M)'!AG207","v":5.6854074542008837},{"$f":"'[1]REAL IPC(M)'!AH207","v":9.4988012330174598},{"$f":"'[1]REAL IPC(M)'!AI207","v":10.27433448486078},{"$f":"'[1]REAL IPC(M)'!AJ207","v":3.2038834951456234},null,null,{"$f":"'[1]REAL IMAE(M)'!AG207","v":7.0127349909029579},{"$f":"'[1]REAL IMAE(M)'!AH207","v":1.9050723902819811},{"$f":"'[1]REAL IMAE(M)'!AI207","v":"n.d."},{"$f":"'[1]REAL IMAE(M)'!AJ207","v":8.9202507761657799},{"$f":"'[1]REAL IMAE(M)'!AK207","v":"n.d."},{"$f":"'[1]REAL IMAE(M)'!AL207","v":"n.d."},{"$f":"'[1]REAL IMAE(M)'!AM207","v":9.3532612438873279},null,null,{"$f":"'[1]EXT ITCER(M)'!C207","v":103.29776624349118},{"$f":"'[1]EXT ITCER(M)'!D207","v":96.822080548884387},{"$f":"'[1]EXT ITCER(M)'!E207","v":76.320189993334409},{"$f":"'[1]EXT ITCER(M)'!F207","v":95.86149164224237},{"$f":"'[1]EXT ITCER(M)'!G207","v":107.08271544574629},{"$f":"'[1]EXT ITCER(M)'!H207","v":98.127273475518436},{"$f":"'[1]EXT ITCER(M)'!I207","v":107.90142728291998},null,null,{"$f":"'[1]EXT TC(M)'!J207","v":7.38813611625425},{"$f":"'[1]EXT TC(M)'!K207","v":0},{"$f":"'[1]EXT TC(M)'!L207","v":-4.4972424802689412E-2},{"$f":"'[1]EXT TC(M)'!M207","v":0.21208907741250871},{"$f":"'[1]EXT TC(M)'!N207","v":5.4509161920953115},{"$f":"'[1]EXT TC(M)'!O207","v":13.379886914937064},{"$f":"'[1]EXT TC(M)'!P207","v":0},null,null,{"$f":"'[1]EXT RIN(M)'!C207","v":2613.6},{"$f":"'[1]EXT RIN(M)'!D207","v":2011},{"$f":"'[1]EXT RIN(M)'!E207","v":4062.4},{"$f":"'[1]EXT RIN(M)'!F207","v":2526.1261082221936},{"$f":"'[1]EXT RIN(M)'!G207","v":813.4},{"$f":"'[1]EXT RIN(M)'!H207","v":1579.8},{"$f":"'[1]EXT RIN(M)'!I207","v":1206.5475861353896},null,null,{"$f":"'[1]EXT RIN(M)'!P207","v":57.5850766914904},{"$f":"'[1]EXT RIN(M)'!Q207","v":104.62928662701401},{"$f":"'[1]EXT RIN(M)'!R207","v":112.563116570863},{"$f":"'[1]EXT RIN(M)'!S207","v":109.94387281875375},{"$f":"'[1]EXT RIN(M)'!T207","v":83.700001166394387},{"$f":"'[1]EXT RIN(M)'!U207","v":35.680205791948282},{"$f":"'[1]EXT RIN(M)'!V207","v":155.48732370098767},null,null,{"$f":"+'[1]MONE(M)CAPARD'!AE207","v":0.96080925255168603},{"$f":"'[1]MONE(M)CAPARD'!AF207","v":-3.6498511277098425E-2},{"$f":"'[1]MONE(M)CAPARD'!AG207","v":-2.6522542891341994},{"$f":"'[1]MONE(M)CAPARD'!AH207","v":3.5147638971906767},{"$f":"'[1]MONE(M)CAPARD'!AI207","v":2.0814565136228373},{"$f":"'[1]MONE(M)CAPARD'!AJ207","v":0.80314745881400895},{"$f":"'[1]MONE(M)CAPARD'!AK207","v":0.51947318908749596},null,null,{"$f":"'[1]MONE(M)CAPARD'!AL207","v":3.6},{"$f":"'[1]MONE(M)CAPARD'!AM207","v":4.3899999999999997},{"$f":"'[1]MONE(M)CAPARD'!AN207","v":3.88},{"$f":"'[1]MONE(M)CAPARD'!AO207","v":3.33},{"$f":"'[1]MONE(M)CAPARD'!AP207","v":5},{"$f":"'[1]MONE(M)CAPARD'!AQ207","v":2.83},{"$f":"'[1]MONE(M)CAPARD'!AR207","v":3.74},null,null,{"$f":"'[1]MONE(M)CAPARD'!J207","v":8.8864551595141137},{"$f":"'[1]MONE(M)CAPARD'!K207","v":2.6122768086460417},{"$f":"'[1]MONE(M)CAPARD'!L207","v":4.8045644367602023},{"$f":"'[1]MONE(M)CAPARD'!M207","v":11.273640167364018},{"$f":"'[1]MONE(M)CAPARD'!N207","v":7.3781358610277801},{"$f":"'[1]MONE(M)CAPARD'!O207","v":8.61094792319318},{"$f":"'[1]MONE(M)CAPARD'!P207","v":4.0755409219191048},null,null,{"$f":"'[1]MONE(M)CAPARD'!Q207","v":11.14},{"$f":"'[1]MONE(M)CAPARD'!R207","v":7.15},{"$f":"'[1]MONE(M)CAPARD'!S207","v":7.57},{"$f":"'[1]MONE(M)CAPARD'!T207","v":8.91},{"$f":"'[1]MONE(M)CAPARD'!U207","v":10.4},{"$f":"'[1]MONE(M)CAPARD'!V207","v":8.35},{"$f":"'[1]MONE(M)CAPARD'!W207","v":7.41},null,null,{"$f":"'[1]MONE(M)CAPARD'!AS207","v":8.51},{"$f":"'[1]MONE(M)CAPARD'!AT207","v":"n.a."},{"$f":"'[1]MONE(M)CAPARD'!AU207","v":4.75},{"$f":"'[1]MONE(M)CAPARD'!AV207","v":6.5},{"$f":"'[1]MONE(M)CAPARD'!AW207","v":"n.a."},{"$f":"'[1]MONE(M)CAPARD'!AX207","v":10},{"$f":"'[1]MONE(M)CAPARD'!AY207","v":"n.a."},null,null,{"$f":"+'Datos_Regional (M)'!CF200","v":28.676773912451424},{"$f":"+'Datos_Regional (M)'!CG200","v":12.648099658012345},{"$f":"+'Datos_Regional (M)'!CH200","v":10.432409150206446},{"$f":"+'Datos_Regional (M)'!CI200","v":24.025631739942121},{"$f":"+'Datos_Regional (M)'!CJ200","v":32.383280222459},{"$f":"+'Datos_Regional (M)'!CK200","v":20.430382278475445},{"$f":"+'Datos_Regional (M)'!CL200","v":14.897359968446832},null,null,null,null,null,null,null,null,null,null,null,null,null,null,null,null,null,null,null,null,null,null,null,null,null,null,null,null,{"$f":"'[1]EXT Comercio(M)'!C207","v":748.31039812000063},{"$f":"'[1]EXT Comercio(M)'!D207","v":330.50000000000023},{"$f":"'[1]EXT Comercio(M)'!E207","v":543.70000000000027},{"$f":"'[1]EXT Comercio(M)'!F207","v":195.32250643696693},{"$f":"'[1]EXT Comercio(M)'!G207","v":174.10000000000002},{"$f":"'[1]EXT Comercio(M)'!H207","v":595.95899999999983},{"$f":"'[1]EXT Comercio(M)'!I207","v":696.54599999999994},{"$f":"'[1]EXT Comercio(M)'!K207","v":2587.8919045569692},{"$f":"'[1]EXT Comercio(M)'!L207","v":3284.4379045569676},null,null,{"$f":"'[1]EXT Comercio(M)'!AG207","v":959.15423295999972},{"$f":"'[1]EXT Comercio(M)'!AH207","v":745.0300000000002},{"$f":"'[1]EXT Comercio(M)'!AI207","v":971.8},{"$f":"'[1]EXT Comercio(M)'!AJ207","v":510.63011593044484},{"$f":"'[1]EXT Comercio(M)'!AK207","v":306.50000000000011},{"$f":"'[1]EXT Comercio(M)'!AL207","v":995.59999999999991},{"$f":"'[1]EXT Comercio(M)'!AM207","v":1006.4809100000002},{"$f":"'[1]EXT Comercio(M)'!AO207","v":4488.7143488904439},{"$f":"'[1]EXT Comercio(M)'!AP207","v":5495.195258890446},null,null,{"$f":"'[1]EXT Comercio(M)'!$BS207","v":-1900.8224443334784},{"$f":"'[1]EXT Comercio(M)'!$BT207","v":-2210.7573543334784}]
[null,null,"Julio",{"$f":"'[1]REAL IPC(M)'!AD208","v":12.026009472159513},{"$f":"'[1]REAL IPC(M)'!AE208","v":5.552301745343807},{"$f":"'[1]REAL IPC(M)'!AF208","v":7.0355675216097628},{"$f":"'[1]REAL IPC(M)'!AG208","v":5.322479649342517},{"$f":"'[1]REAL IPC(M)'!AH208","v":9.1711956521739229},{"$f":"'[1]REAL IPC(M)'!AI208","v":10.60116354234},{"$f":"'[1]REAL IPC(M)'!AJ208","v":2.8046421663442853},null,null,{"$f":"'[1]REAL IMAE(M)'!AG208","v":7.3419609021250762},{"$f":"'[1]REAL IMAE(M)'!AH208","v":1.6167806687780488},{"$f":"'[1]REAL IMAE(M)'!AI208","v":"n.d."},{"$f":"'[1]REAL IMAE(M)'!AJ208","v":9.1876481371991314},{"$f":"'[1]REAL IMAE(M)'!AK208","v":"n.d."},{"$f":"'[1]REAL IMAE(M)'!AL208","v":"n.d."},{"$f":"'[1]REAL IMAE(M)'!AM208","v":9.857123231213075},null,null,{"$f":"'[1]EXT ITCER(M)'!C208","v":103.22923744322732},{"$f":"'[1]EXT ITCER(M)'!D208","v":95.912187052094779},{"$f":"'[1]EXT ITCER(M)'!E208","v":75.931343843754689},{"$f":"'[1]EXT ITCER(M)'!F208","v":95.630515866562263},{"$f":"'[1]EXT ITCER(M)'!G208","v":107.06310021808989},{"$f":"'[1]EXT ITCER(M)'!H208","v":97.5117040969957},{"$f":"'[1]EXT ITCER(M)'!I208","v":108.22050493875906},null,null,{"$f":"'[1]EXT TC(M)'!J208","v":7.2663951639162061},{"$f":"'[1]EXT TC(M)'!K208","v":0},{"$f":"'[1]EXT TC(M)'!L208","v":-7.9681695373191197E-2},{"$f":"'[1]EXT TC(M)'!M208","v":0.1589825119236756},{"$f":"'[1]EXT TC(M)'!N208","v":4.8793715099395145},{"$f":"'[1]EXT TC(M)'!O208","v":13.231237252393949},{"$f":"'[1]EXT TC(M)'!P208","v":0},null,null,{"$f":"'[1]EXT RIN(M)'!C208","v":2588.1},{"$f":"'[1]EXT RIN(M)'!D208","v":2257},{"$f":"'[1]EXT RIN(M)'!E208","v":4038.2},{"$f":"'[1]EXT RIN(M)'!F208","v":2495.5068193657653},{"$f":"'[1]EXT RIN(M)'!G208","v":853.3},{"$f":"'[1]EXT RIN(M)'!H208","v":1603.2},{"$f":"'[1]EXT RIN(M)'!I208","v":1170.0952668014199},null,null,{"$f":"'[1]EXT RIN(M)'!P208","v":56.717919357660548},{"$f":"'[1]EXT RIN(M)'!Q208","v":109.04419406098069},{"$f":"'[1]EXT RIN(M)'!R208","v":110.13940226151702},{"$f":"'[1]EXT RIN(M)'!S208","v":113.87922713777145},{"$f":"'[1]EXT RIN(M)'!T208","v":84.723603846593292},{"$f":"'[1]EXT RIN(M)'!U208","v":35.671129885585025},{"$f":"'[1]EXT RIN(M)'!V208","v":151.56518659495978},null,null,{"$f":"+'[1]MONE(M)CAPARD'!AE208","v":1.5389198775922921},{"$f":"'[1]MONE(M)CAPARD'!AF208","v":-0.96838580778900196},{"$f":"'[1]MONE(M)CAPARD'!AG208","v":-2.1913907460117947},{"$f":"'[1]MONE(M)CAPARD'!AH208","v":3.5771284185493459},{"$f":"'[1]MONE(M)CAPARD'!AI208","v":2.3131880079041438},{"$f":"'[1]MONE(M)CAPARD'!AJ208","v":-0.32654587960255987},{"$f":"'[1]MONE(M)CAPARD'!AK208","v":1.1432925682032071},null,null,{"$f":"'[1]MONE(M)CAPARD'!AL208","v":4},{"$f":"'[1]MONE(M)CAPARD'!AM208","v":4.53},{"$f":"'[1]MONE(M)CAPARD'!AN208","v":3.86},{"$f":"'[1]MONE(M)CAPARD'!AO208","v":3.37},{"$f":"'[1]MONE(M)CAPARD'!AP208","v":4.9000000000000004},{"$f":"'[1]MONE(M)CAPARD'!AQ208","v":2.7},{"$f":"'[1]MONE(M)CAPARD'!AR208","v":3.98},null,null,{"$f":"'[1]MONE(M)CAPARD'!J208","v":9.2246350437115865},{"$f":"'[1]MONE(M)CAPARD'!K208","v":1.7327765869511118},{"$f":"'[1]MONE(M)CAPARD'!L208","v":5.2921029986099022},{"$f":"'[1]MONE(M)CAPARD'!M208","v":11.324762187871581},{"$f":"'[1]MONE(M)CAPARD'!N208","v":7.8851738336867188},{"$f":"'[1]MONE(M)CAPARD'!O208","v":9.1037346580946963},{"$f":"'[1]MONE(M)CAPARD'!P208","v":4.4602634054562644},null,null,{"$f":"'[1]MONE(M)CAPARD'!Q208","v":11.06},{"$f":"'[1]MONE(M)CAPARD'!R208","v":7.38},{"$f":"'[1]MONE(M)CAPARD'!S208","v":7.55},{"$f":"'[1]MONE(M)CAPARD'!T208","v":9.0399999999999991},{"$f":"'[1]MONE(M)CAPARD'!U208","v":10.7},{"$f":"'[1]MONE(M)CAPARD'!V208","v":7.47},{"$f":"'[1]MONE(M)CAPARD'!W208","v":7.39},null,null,{"$f":"'[1]MONE(M)CAPARD'!AS208","v":9.1999999999999993},{"$f":"'[1]MONE(M)CAPARD'!AT208","v":"n.a."},{"$f":"'[1]MONE(M)CAPARD'!AU208","v":5},{"$f":"'[1]MONE(M)CAPARD'!AV208","v":6.5},{"$f":"'[1]MONE(M)CAPARD'!AW208","v":"n.a."},{"$f":"'[1]MONE(M)CAPARD'!AX208","v":10},{"$f":"'[1]MONE(M)CAPARD'!AY208","v":"n.a."},null,null,{"$f":"+'Datos_Regional (M)'!CF201","v":29.88101983577096},{"$f":"+'Datos_Regional (M)'!CG201","v":12.933105287067281},{"$f":"+'Datos_Regional (M)'!CH201","v":9.491381901729401},{"$f":"+'Datos_Regional (M)'!CI201","v":23.684151770169848},{"$f":"+'Datos_Regional (M)'!CJ201","v":34.20576039234917},{"$f":"+'Datos_Regional (M)'!CK201","v":20.631768338058865},{"$f":"+'Datos_Regional (M)'!CL201","v":14.851197703255782},null,null,null,null,null,null,null,null,null,null,null,null,null,null,null,null,null,null,null,null,null,null,null,null,null,null,null,null,{"$f":"'[1]EXT Comercio(M)'!C208","v":628.46014399999967},{"$f":"'[1]EXT Comercio(M)'!D208","v":328.89999999999964},{"$f":"'[1]EXT Comercio(M)'!E208","v":568.19999999999982},{"$f":"'[1]EXT Comercio(M)'!F208","v":179.08528911488315},{"$f":"'[1]EXT Comercio(M)'!G208","v":155.80000000000001},{"$f":"'[1]EXT Comercio(M)'!H208","v":534.09709999999995},{"$f":"'[1]EXT Comercio(M)'!I208","v":633.16300000000001},{"$f":"'[1]EXT Comercio(M)'!K208","v":2394.5425331148799},{"$f":"'[1]EXT Comercio(M)'!L208","v":3027.705533114884},null,null,{"$f":"'[1]EXT Comercio(M)'!AG208","v":970.95297905999996},{"$f":"'[1]EXT Comercio(M)'!AH208","v":710.60000000000036},{"$f":"'[1]EXT Comercio(M)'!AI208","v":1028.8999999999999},{"$f":"'[1]EXT Comercio(M)'!AJ208","v":478.96918852355384},{"$f":"'[1]EXT Comercio(M)'!AK208","v":308.00000000000006},{"$f":"'[1]EXT Comercio(M)'!AL208","v":1071.9999999999998},{"$f":"'[1]EXT Comercio(M)'!AM208","v":1033.4480789999998},{"$f":"'[1]EXT Comercio(M)'!AO208","v":4569.4221675835506},{"$f":"'[1]EXT Comercio(M)'!AP208","v":5602.8702465835522},null,null,{"$f":"'[1]EXT Comercio(M)'!$BS208","v":-2174.8796344686707},{"$f":"'[1]EXT Comercio(M)'!$BT208","v":-2575.16471346867}]
[null,null,"Agosto",{"$f":"'[1]REAL IPC(M)'!AD209","v":11.614065609623104},{"$f":"'[1]REAL IPC(M)'!AE209","v":4.7079439252336419},{"$f":"'[1]REAL IPC(M)'!AF209","v":6.9961171902576735},{"$f":"'[1]REAL IPC(M)'!AG209","v":4.8447204968944169},{"$f":"'[1]REAL IPC(M)'!AH209","v":8.6501687289088824},{"$f":"'[1]REAL IPC(M)'!AI209","v":9.3489614479926431},{"$f":"'[1]REAL IPC(M)'!AJ209","v":2.9013539651837639},null,null,{"$f":"'[1]REAL IMAE(M)'!AG209","v":7.8390285484217364},{"$f":"'[1]REAL IMAE(M)'!AH209","v":1.4191783231861714},{"$f":"'[1]REAL IMAE(M)'!AI209","v":"n.d."},{"$f":"'[1]REAL IMAE(M)'!AJ209","v":9.4197170474911225},{"$f":"'[1]REAL IMAE(M)'!AK209","v":"n.d."},{"$f":"'[1]REAL IMAE(M)'!AL209","v":"n.d."},{"$f":"'[1]REAL IMAE(M)'!AM209","v":10.236759271931032},null,null,{"$f":"'[1]EXT ITCER(M)'!C209","v":103.05472117345064},{"$f":"'[1]EXT ITCER(M)'!D209","v":96.622993952648983},{"$f":"'[1]EXT ITCER(M)'!E209","v":75.825467067443455},{"$f":"'[1]EXT ITCER(M)'!F209","v":95.477900356012114},{"$f":"'[1]EXT ITCER(M)'!G209","v":107.63465736435317},{"$f":"'[1]EXT ITCER(M)'!H209","v":97.16086974700292},{"$f":"'[1]EXT ITCER(M)'!I209","v":108.33131245175956},null,null,{"$f":"'[1]EXT TC(M)'!J209","v":7.1502751059285634},{"$f":"'[1]EXT TC(M)'!K209","v":0},{"$f":"'[1]EXT TC(M)'!L209","v":-7.2170253189606737E-2},{"$f":"'[1]EXT TC(M)'!M209","v":0.1589825119236756},{"$f":"'[1]EXT TC(M)'!N209","v":4.9273131014063685},{"$f":"'[1]EXT TC(M)'!O209","v":12.52853349884486},{"$f":"'[1]EXT TC(M)'!P209","v":0},null,null,{"$f":"'[1]EXT RIN(M)'!C209","v":2675.6},{"$f":"'[1]EXT RIN(M)'!D209","v":2070.3000000000002},{"$f":"'[1]EXT RIN(M)'!E209","v":4031.8},{"$f":"'[1]EXT RIN(M)'!F209","v":2597.6150644142435},{"$f":"'[1]EXT RIN(M)'!G209","v":830.4},{"$f":"'[1]EXT RIN(M)'!H209","v":1645},{"$f":"'[1]EXT RIN(M)'!I209","v":991.54574445036008},null,null,{"$f":"'[1]EXT RIN(M)'!P209","v":58.607651805603957},{"$f":"'[1]EXT RIN(M)'!Q209","v":100.75894069516518},{"$f":"'[1]EXT RIN(M)'!R209","v":113.43398387823622},{"$f":"'[1]EXT RIN(M)'!S209","v":116.38403829621112},{"$f":"'[1]EXT RIN(M)'!T209","v":84.816116199415731},{"$f":"'[1]EXT RIN(M)'!U209","v":35.4173370629034},{"$f":"'[1]EXT RIN(M)'!V209","v":124.83811126517543},null,null,{"$f":"+'[1]MONE(M)CAPARD'!AE209","v":1.9136785123905931},{"$f":"'[1]MONE(M)CAPARD'!AF209","v":-0.11698427048048278},{"$f":"'[1]MONE(M)CAPARD'!AG209","v":-2.1459817893903366},{"$f":"'[1]MONE(M)CAPARD'!AH209","v":3.7057464454976241},{"$f":"'[1]MONE(M)CAPARD'!AI209","v":1.9816572135735517},{"$f":"'[1]MONE(M)CAPARD'!AJ209","v":-0.86782849642698923},{"$f":"'[1]MONE(M)CAPARD'!AK209","v":1.0482330827067556},null,null,{"$f":"'[1]MONE(M)CAPARD'!AL209","v":4},{"$f":"'[1]MONE(M)CAPARD'!AM209","v":4.59},{"$f":"'[1]MONE(M)CAPARD'!AN209","v":3.94},{"$f":"'[1]MONE(M)CAPARD'!AO209","v":3.42},{"$f":"'[1]MONE(M)CAPARD'!AP209","v":5.2},{"$f":"'[1]MONE(M)CAPARD'!AQ209","v":2.5},{"$f":"'[1]MONE(M)CAPARD'!AR209","v":3.98},null,null,{"$f":"'[1]MONE(M)CAPARD'!J209","v":9.7531922441129471},{"$f":"'[1]MONE(M)CAPARD'!K209","v":2.6621329742477826},{"$f":"'[1]MONE(M)CAPARD'!L209","v":5.3215789126418613},{"$f":"'[1]MONE(M)CAPARD'!M209","v":11.660367298578191},{"$f":"'[1]MONE(M)CAPARD'!N209","v":8.1623637113658898},{"$f":"'[1]MONE(M)CAPARD'!O209","v":9.5666556074085083},{"$f":"'[1]MONE(M)CAPARD'!P209","v":4.4106766917293125},null,null,{"$f":"'[1]MONE(M)CAPARD'!Q209","v":11.01},{"$f":"'[1]MONE(M)CAPARD'!R209","v":7.5},{"$f":"'[1]MONE(M)CAPARD'!S209","v":7.7399999999999993},{"$f":"'[1]MONE(M)CAPARD'!T209","v":9.0399999999999991},{"$f":"'[1]MONE(M)CAPARD'!U209","v":10.4},{"$f":"'[1]MONE(M)CAPARD'!V209","v":8.1999999999999993},{"$f":"'[1]MONE(M)CAPARD'!W209","v":7.44},null,null,{"$f":"'[1]MONE(M)CAPARD'!AS209","v":9.1999999999999993},{"$f":"'[1]MONE(M)CAPARD'!AT209","v":"n.a."},{"$f":"'[1]MONE(M)CAPARD'!AU209","v":5},{"$f":"'[1]MONE(M)CAPARD'!AV209","v":6.5},{"$f":"'[1]MONE(M)CAPARD'!AW209","v":"n.a."},{"$f":"'[1]MONE(M)CAPARD'!AX209","v":8},{"$f":"'[1]MONE(M)CAPARD'!AY209","v":"n.a."},null,null,{"$f":"+'Datos_Regional (M)'!CF202","v":29.442459616577409},{"$f":"+'Datos_Regional (M)'!CG202","v":13.180534372214336},{"$f":"+'Datos_Regional (M)'!CH202","v":9.7963922850724536},{"$f":"+'Datos_Regional (M)'!CI202","v":26.41370031961592},{"$f":"+'Datos_Regional (M)'!CJ202","v":34.231942963984707},{"$f":"+'Datos_Regional (M)'!CK202","v":20.392618218128099},{"$f":"+'Datos_Regional (M)'!CL202","v":15.144955284079176},null,null,null,null,null,null,null,null,null,null,null,null,null,null,null,null,null,null,null,null,null,null,null,null,null,null,null,null,{"$f":"'[1]EXT Comercio(M)'!C209","v":718.98630540999966},{"$f":"'[1]EXT Comercio(M)'!D209","v":308.55000000000018},{"$f":"'[1]EXT Comercio(M)'!E209","v":530.90000000000032},{"$f":"'[1]EXT Comercio(M)'!F209","v":162.20858367926917},{"$f":"'[1]EXT Comercio(M)'!G209","v":186.39999999999998},{"$f":"'[1]EXT Comercio(M)'!H209","v":596.3438000000001},{"$f":"'[1]EXT Comercio(M)'!I209","v":757.88799999999992},{"$f":"'[1]EXT Comercio(M)'!K209","v":2503.3886890892682},{"$f":"'[1]EXT Comercio(M)'!L209","v":3261.2766890892708},null,null,{"$f":"'[1]EXT Comercio(M)'!AG209","v":1030.1968674199998},{"$f":"'[1]EXT Comercio(M)'!AH209","v":605.3799999999992},{"$f":"'[1]EXT Comercio(M)'!AI209","v":1060.1000000000008},{"$f":"'[1]EXT Comercio(M)'!AJ209","v":496.83527569275293},{"$f":"'[1]EXT Comercio(M)'!AK209","v":331.2000000000001},{"$f":"'[1]EXT Comercio(M)'!AL209","v":1169.0000000000002},{"$f":"'[1]EXT Comercio(M)'!AM209","v":1157.9029500000001},{"$f":"'[1]EXT Comercio(M)'!AO209","v":4692.7121431127525},{"$f":"'[1]EXT Comercio(M)'!AP209","v":5850.6150931127486},null,null,{"$f":"'[1]EXT Comercio(M)'!$BS209","v":-2189.3234540234826},{"$f":"'[1]EXT Comercio(M)'!$BT209","v":-2589.3384040234814}]
[null,null,"Setiembre",{"$f":"'[1]REAL IPC(M)'!AD210","v":11.239649750827757},{"$f":"'[1]REAL IPC(M)'!AE210","v":4.235020360674806},{"$f":"'[1]REAL IPC(M)'!AF210","v":5.6982849142457317},{"$f":"'[1]REAL IPC(M)'!AG210","v":4.4554455445544665},{"$f":"'[1]REAL IPC(M)'!AH210","v":7.4860335195530761},{"$f":"'[1]REAL IPC(M)'!AI210","v":4.7295471217327423},{"$f":"'[1]REAL IPC(M)'!AJ210","v":1.6299137104506298},null,null,{"$f":"'[1]REAL IMAE(M)'!AG210","v":8.3767081142134803},{"$f":"'[1]REAL IMAE(M)'!AH210","v":1.3867405373505315},{"$f":"'[1]REAL IMAE(M)'!AI210","v":"n.d."},{"$f":"'[1]REAL IMAE(M)'!AJ210","v":9.6853665804825617},{"$f":"'[1]REAL IMAE(M)'!AK210","v":"n.d."},{"$f":"'[1]REAL IMAE(M)'!AL210","v":"n.d."},{"$f":"'[1]REAL IMAE(M)'!AM210","v":10.422765334604128},null,null,{"$f":"'[1]EXT ITCER(M)'!C210","v":103.23917533372064},{"$f":"'[1]EXT ITCER(M)'!D210","v":96.180908785466727},{"$f":"'[1]EXT ITCER(M)'!E210","v":75.979747340067462},{"$f":"'[1]EXT ITCER(M)'!F210","v":95.009641894236665},{"$f":"'[1]EXT ITCER(M)'!G210","v":107.71696899982726},{"$f":"'[1]EXT ITCER(M)'!H210","v":98.704691328742598},{"$f":"'[1]EXT ITCER(M)'!I210","v":108.20680868089049},null,null,{"$f":"'[1]EXT TC(M)'!J210","v":7.0035757378140691},{"$f":"'[1]EXT TC(M)'!K210","v":0},{"$f":"'[1]EXT TC(M)'!L210","v":-0.19428750083744134},{"$f":"'[1]EXT TC(M)'!M210","v":0.10593220338982826},{"$f":"'[1]EXT TC(M)'!N210","v":4.6985060874582079},{"$f":"'[1]EXT TC(M)'!O210","v":8.3052841947486815},{"$f":"'[1]EXT TC(M)'!P210","v":0},null,null,{"$f":"'[1]EXT RIN(M)'!C210","v":2764.6},{"$f":"'[1]EXT RIN(M)'!D210","v":2017.3},{"$f":"'[1]EXT RIN(M)'!E210","v":4031.3},{"$f":"'[1]EXT RIN(M)'!F210","v":2552.4508792756892},{"$f":"'[1]EXT RIN(M)'!G210","v":824.7},{"$f":"'[1]EXT RIN(M)'!H210","v":1582.9},{"$f":"'[1]EXT RIN(M)'!I210","v":906.06812264791006},null,null,{"$f":"'[1]EXT RIN(M)'!P210","v":58.559557009563832},{"$f":"'[1]EXT RIN(M)'!Q210","v":94.516337603193506},{"$f":"'[1]EXT RIN(M)'!R210","v":109.52317551649166},{"$f":"'[1]EXT RIN(M)'!S210","v":117.7459844380077},{"$f":"'[1]EXT RIN(M)'!T210","v":85.182868558149082},{"$f":"'[1]EXT RIN(M)'!U210","v":35.370695825987589},{"$f":"'[1]EXT RIN(M)'!V210","v":113.60851123721952},null,null,{"$f":"+'[1]MONE(M)CAPARD'!AE210","v":2.0319645506214146},{"$f":"'[1]MONE(M)CAPARD'!AF210","v":0.33027052031187254},{"$f":"'[1]MONE(M)CAPARD'!AG210","v":-0.92554473806214177},{"$f":"'[1]MONE(M)CAPARD'!AH210","v":3.8337440758293742},{"$f":"'[1]MONE(M)CAPARD'!AI210","v":2.5107208802128045},{"$f":"'[1]MONE(M)CAPARD'!AJ210","v":2.6166950527169592},{"$f":"'[1]MONE(M)CAPARD'!AK210","v":2.469830188679238},null,null,{"$f":"'[1]MONE(M)CAPARD'!AL210","v":4.01},{"$f":"'[1]MONE(M)CAPARD'!AM210","v":4.58},{"$f":"'[1]MONE(M)CAPARD'!AN210","v":3.95},{"$f":"'[1]MONE(M)CAPARD'!AO210","v":3.5},{"$f":"'[1]MONE(M)CAPARD'!AP210","v":4.95},{"$f":"'[1]MONE(M)CAPARD'!AQ210","v":2.91},{"$f":"'[1]MONE(M)CAPARD'!AR210","v":4.1399999999999997},null,null,{"$f":"'[1]MONE(M)CAPARD'!J210","v":10.050688108256155},{"$f":"'[1]MONE(M)CAPARD'!K210","v":3.2331768286285931},{"$f":"'[1]MONE(M)CAPARD'!L210","v":6.6242466388502343},{"$f":"'[1]MONE(M)CAPARD'!M210","v":11.932890995260655},{"$f":"'[1]MONE(M)CAPARD'!N210","v":9.6798476920558656},{"$f":"'[1]MONE(M)CAPARD'!O210","v":12.251034431910352},{"$f":"'[1]MONE(M)CAPARD'!P210","v":5.726745283018861},null,null,{"$f":"'[1]MONE(M)CAPARD'!Q210","v":11},{"$f":"'[1]MONE(M)CAPARD'!R210","v":7.61},{"$f":"'[1]MONE(M)CAPARD'!S210","v":7.7299999999999995},{"$f":"'[1]MONE(M)CAPARD'!T210","v":9.06},{"$f":"'[1]MONE(M)CAPARD'!U210","v":10.6},{"$f":"'[1]MONE(M)CAPARD'!V210","v":8.15},{"$f":"'[1]MONE(M)CAPARD'!W210","v":7.45},null,null,{"$f":"'[1]MONE(M)CAPARD'!AS210","v":9.1999999999999993},{"$f":"'[1]MONE(M)CAPARD'!AT210","v":"n.a."},{"$f":"'[1]MONE(M)CAPARD'!AU210","v":5},{"$f":"'[1]MONE(M)CAPARD'!AV210","v":6},{"$f":"'[1]MONE(M)CAPARD'!AW210","v":"n.a."},{"$f":"'[1]MONE(M)CAPARD'!AX210","v":8},{"$f":"'[1]MONE(M)CAPARD'!AY210","v":"n.a."},null,null,{"$f":"+'Datos_Regional (M)'!CF203","v":28.76606106737345},{"$f":"+'Datos_Regional (M)'!CG203","v":10.478764499582226},{"$f":"+'Datos_Regional (M)'!CH203","v":10.555102234319214},{"$f":"+'Datos_Regional (M)'!CI203","v":25.766264714812625},{"$f":"+'Datos_Regional (M)'!CJ203","v":34.210318719132204},{"$f":"+'Datos_Regional (M)'!CK203","v":18.301422585889938},{"$f":"+'Datos_Regional (M)'!CL203","v":15.321998372030542},null,null,null,null,null,null,null,null,null,null,null,null,null,null,null,null,null,null,null,null,null,null,null,null,null,null,null,null,{"$f":"'[1]EXT Comercio(M)'!C210","v":713.49606009000036},{"$f":"'[1]EXT Comercio(M)'!D210","v":328.69000000000051},{"$f":"'[1]EXT Comercio(M)'!E210","v":593.89999999999986},{"$f":"'[1]EXT Comercio(M)'!F210","v":141.04834327899357},{"$f":"'[1]EXT Comercio(M)'!G210","v":164.40000000000003},{"$f":"'[1]EXT Comercio(M)'!H210","v":624.10519999999997},{"$f":"'[1]EXT Comercio(M)'!I210","v":805.48099999999988},{"$f":"'[1]EXT Comercio(M)'!K210","v":2565.6396033689962},{"$f":"'[1]EXT Comercio(M)'!L210","v":3371.1206033689923},null,null,{"$f":"'[1]EXT Comercio(M)'!AG210","v":969.2747209299996},{"$f":"'[1]EXT Comercio(M)'!AH210","v":639.75},{"$f":"'[1]EXT Comercio(M)'!AI210","v":1008.7},{"$f":"'[1]EXT Comercio(M)'!AJ210","v":465.54228456237934},{"$f":"'[1]EXT Comercio(M)'!AK210","v":310.4000000000002},{"$f":"'[1]EXT Comercio(M)'!AL210","v":1016.3999999999996},{"$f":"'[1]EXT Comercio(M)'!AM210","v":1109.3948429999998},{"$f":"'[1]EXT Comercio(M)'!AO210","v":4410.0670054923758},{"$f":"'[1]EXT Comercio(M)'!AP210","v":5519.4618484923776},null,null,{"$f":"'[1]EXT Comercio(M)'!$BS210","v":-1844.4274021233832},{"$f":"'[1]EXT Comercio(M)'!$BT210","v":-2148.3412451233853}]
[null,null,"Octubre",{"$f":"'[1]REAL IPC(M)'!AD211","v":10.085398369740354},{"$f":"'[1]REAL IPC(M)'!AE211","v":1.8837766868363959},{"$f":"'[1]REAL IPC(M)'!AF211","v":3.8509180721097915},{"$f":"'[1]REAL IPC(M)'!AG211","v":4.5145330859616646},{"$f":"'[1]REAL IPC(M)'!AH211","v":6.9744271006310168},{"$f":"'[1]REAL IPC(M)'!AI211","v":3.6847531406315905},{"$f":"'[1]REAL IPC(M)'!AJ211","v":1.3346043851286793},null,null,{"$f":"'[1]REAL IMAE(M)'!AG211","v":8.7306589093557445},{"$f":"'[1]REAL IMAE(M)'!AH211","v":1.5154932815640538},{"$f":"'[1]REAL IMAE(M)'!AI211","v":"n.d."},{"$f":"'[1]REAL IMAE(M)'!AJ211","v":11.140159893243453},{"$f":"'[1]REAL IMAE(M)'!AK211","v":"n.d."},{"$f":"'[1]REAL IMAE(M)'!AL211","v":"n.d."},{"$f":"'[1]REAL IMAE(M)'!AM211","v":10.378634212305608},null,null,{"$f":"'[1]EXT ITCER(M)'!C211","v":102.38852413103577},{"$f":"'[1]EXT ITCER(M)'!D211","v":96.04105375334133},{"$f":"'[1]EXT ITCER(M)'!E211","v":75.657082836084072},{"$f":"'[1]EXT ITCER(M)'!F211","v":94.382729707483364},{"$f":"'[1]EXT ITCER(M)'!G211","v":107.14063057507293},{"$f":"'[1]EXT ITCER(M)'!H211","v":99.628534995591494},{"$f":"'[1]EXT ITCER(M)'!I211","v":107.31645158054832},null,null,{"$f":"'[1]EXT TC(M)'!J211","v":6.2123866763761075},{"$f":"'[1]EXT TC(M)'!K211","v":0},{"$f":"'[1]EXT TC(M)'!L211","v":-0.79417258904438459},{"$f":"'[1]EXT TC(M)'!M211","v":5.2938062466903177E-2},{"$f":"'[1]EXT TC(M)'!N211","v":4.8196879372582258},{"$f":"'[1]EXT TC(M)'!O211","v":3.293166494376127},{"$f":"'[1]EXT TC(M)'!P211","v":0},null,null,{"$f":"'[1]EXT RIN(M)'!C211","v":2882.3},{"$f":"'[1]EXT RIN(M)'!D211","v":2020.5},{"$f":"'[1]EXT RIN(M)'!E211","v":4036.3},{"$f":"'[1]EXT RIN(M)'!F211","v":2538.5154229952577},{"$f":"'[1]EXT RIN(M)'!G211","v":804.4},{"$f":"'[1]EXT RIN(M)'!H211","v":1717.2},{"$f":"'[1]EXT RIN(M)'!I211","v":921.9005963797199},null,null,{"$f":"'[1]EXT RIN(M)'!P211","v":59.319298653483735},{"$f":"'[1]EXT RIN(M)'!Q211","v":92.242457278799577},{"$f":"'[1]EXT RIN(M)'!R211","v":104.28778506152831},{"$f":"'[1]EXT RIN(M)'!S211","v":121.41518841790402},{"$f":"'[1]EXT RIN(M)'!T211","v":85.826123378218},{"$f":"'[1]EXT RIN(M)'!U211","v":37.882658799880637},{"$f":"'[1]EXT RIN(M)'!V211","v":114.0051858009642},null,null,{"$f":"+'[1]MONE(M)CAPARD'!AE211","v":2.8746788194659554},{"$f":"'[1]MONE(M)CAPARD'!AF211","v":2.6925386804357494},{"$f":"'[1]MONE(M)CAPARD'!AG211","v":0.92351800609433332},{"$f":"'[1]MONE(M)CAPARD'!AH211","v":3.5262721893491049},{"$f":"'[1]MONE(M)CAPARD'!AI211","v":3.7375068293501239},{"$f":"'[1]MONE(M)CAPARD'!AJ211","v":3.5639250202548149},{"$f":"'[1]MONE(M)CAPARD'!AK211","v":2.8177892756350102},null,null,{"$f":"'[1]MONE(M)CAPARD'!AL211","v":3.835},{"$f":"'[1]MONE(M)CAPARD'!AM211","v":4.63},{"$f":"'[1]MONE(M)CAPARD'!AN211","v":3.95},{"$f":"'[1]MONE(M)CAPARD'!AO211","v":3.57},{"$f":"'[1]MONE(M)CAPARD'!AP211","v":5.0599999999999996},{"$f":"'[1]MONE(M)CAPARD'!AQ211","v":2.73},{"$f":"'[1]MONE(M)CAPARD'!AR211","v":4.1900000000000004},null,null,{"$f":"'[1]MONE(M)CAPARD'!J211","v":10.877556703788207},{"$f":"'[1]MONE(M)CAPARD'!K211","v":5.6380587388865138},{"$f":"'[1]MONE(M)CAPARD'!L211","v":8.7231601762056208},{"$f":"'[1]MONE(M)CAPARD'!M211","v":11.678248520710051},{"$f":"'[1]MONE(M)CAPARD'!N211","v":10.135975891366355},{"$f":"'[1]MONE(M)CAPARD'!O211","v":12.967429108050348},{"$f":"'[1]MONE(M)CAPARD'!P211","v":6.064459078080918},null,null,{"$f":"'[1]MONE(M)CAPARD'!Q211","v":10.99},{"$f":"'[1]MONE(M)CAPARD'!R211","v":7.63},{"$f":"'[1]MONE(M)CAPARD'!S211","v":7.7200000000000006},{"$f":"'[1]MONE(M)CAPARD'!T211","v":9.06},{"$f":"'[1]MONE(M)CAPARD'!U211","v":10.8},{"$f":"'[1]MONE(M)CAPARD'!V211","v":8.06},{"$f":"'[1]MONE(M)CAPARD'!W211","v":7.48},null,null,{"$f":"'[1]MONE(M)CAPARD'!AS211","v":9.1999999999999993},{"$f":"'[1]MONE(M)CAPARD'!AT211","v":"n.a."},{"$f":"'[1]MONE(M)CAPARD'!AU211","v":5},{"$f":"'[1]MONE(M)CAPARD'!AV211","v":6},{"$f":"'[1]MONE(M)CAPARD'!AW211","v":"n.a."},{"$f":"'[1]MONE(M)CAPARD'!AX211","v":8},{"$f":"'[1]MONE(M)CAPARD'!AY211","v":"n.a."},null,null,{"$f":"+'Datos_Regional (M)'!CF204","v":27.87577257438436},{"$f":"+'Datos_Regional (M)'!CG204","v":10.148382736914208},{"$f":"+'Datos_Regional (M)'!CH204","v":11.203495106865979},{"$f":"+'Datos_Regional (M)'!CI204","v":28.150625084411594},{"$f":"+'Datos_Regional (M)'!CJ204","v":33.737539178871415},{"$f":"+'Datos_Regional (M)'!CK204","v":16.1962027309017},{"$f":"+'Datos_Regional (M)'!CL204","v":15.195246216398939},null,null,null,null,null,null,null,null,null,null,null,null,null,null,null,null,null,null,null,null,null,null,null,null,null,null,null,null,{"$f":"'[1]EXT Comercio(M)'!C211","v":705.68679489999977},{"$f":"'[1]EXT Comercio(M)'!D211","v":287},{"$f":"'[1]EXT Comercio(M)'!E211","v":533.19999999999982},{"$f":"'[1]EXT Comercio(M)'!F211","v":153.88775569585482},{"$f":"'[1]EXT Comercio(M)'!G211","v":183.29999999999995},{"$f":"'[1]EXT Comercio(M)'!H211","v":574.88709999999992},{"$f":"'[1]EXT Comercio(M)'!I211","v":957.74},{"$f":"'[1]EXT Comercio(M)'!K211","v":2437.9616505958547},{"$f":"'[1]EXT Comercio(M)'!L211","v":3395.7016505958527},null,null,{"$f":"'[1]EXT Comercio(M)'!AG211","v":1025.6791732399997},{"$f":"'[1]EXT Comercio(M)'!AH211","v":628.09000000000015},{"$f":"'[1]EXT Comercio(M)'!AI211","v":1078.7999999999995},{"$f":"'[1]EXT Comercio(M)'!AJ211","v":523.69304758456519},{"$f":"'[1]EXT Comercio(M)'!AK211","v":327.59999999999991},{"$f":"'[1]EXT Comercio(M)'!AL211","v":1116.2000000000003},{"$f":"'[1]EXT Comercio(M)'!AM211","v":1181.327949},{"$f":"'[1]EXT Comercio(M)'!AO211","v":4700.0622208245768},{"$f":"'[1]EXT Comercio(M)'!AP211","v":5881.3901698245754},null,null,{"$f":"'[1]EXT Comercio(M)'!$BS211","v":-2262.1005702287111},{"$f":"'[1]EXT Comercio(M)'!$BT211","v":-2485.6885192287118}]
[null,null,"Noviembre",{"$f":"'[1]REAL IPC(M)'!AD212","v":9.4247765644360388},{"$f":"'[1]REAL IPC(M)'!AE212","v":3.8510466057592092},{"$f":"'[1]REAL IPC(M)'!AF212","v":4.4010452482464757},{"$f":"'[1]REAL IPC(M)'!AG212","v":4.8765432098765462},{"$f":"'[1]REAL IPC(M)'!AH212","v":8.0937048961918592},{"$f":"'[1]REAL IPC(M)'!AI212","v":5.2331626169663803},{"$f":"'[1]REAL IPC(M)'!AJ212","v":2.0134228187919545},null,null,{"$f":"'[1]REAL IMAE(M)'!AG212","v":8.6718104489813399},{"$f":"'[1]REAL IMAE(M)'!AH212","v":1.039299483720193},{"$f":"'[1]REAL IMAE(M)'!AI212","v":"n.d."},{"$f":"'[1]REAL IMAE(M)'!AJ212","v":11.345060704695351},{"$f":"'[1]REAL IMAE(M)'!AK212","v":"n.d."},{"$f":"'[1]REAL IMAE(M)'!AL212","v":"n.d."},{"$f":"'[1]REAL IMAE(M)'!AM212","v":10.14949386605887},null,null,{"$f":"'[1]EXT ITCER(M)'!C212","v":100.57343660152478},{"$f":"'[1]EXT ITCER(M)'!D212","v":95.295041401397356},{"$f":"'[1]EXT ITCER(M)'!E212","v":75.05799102055694},{"$f":"'[1]EXT ITCER(M)'!F212","v":93.743194302886295},{"$f":"'[1]EXT ITCER(M)'!G212","v":106.69293267898014},{"$f":"'[1]EXT ITCER(M)'!H212","v":99.098912592255715},{"$f":"'[1]EXT ITCER(M)'!I212","v":107.05620136846272},null,null,{"$f":"'[1]EXT TC(M)'!J212","v":4.8579419491384375},{"$f":"'[1]EXT TC(M)'!K212","v":0},{"$f":"'[1]EXT TC(M)'!L212","v":-2.2102907453289161E-2},{"$f":"'[1]EXT TC(M)'!M212","v":0},{"$f":"'[1]EXT TC(M)'!N212","v":4.888392328238286},{"$f":"'[1]EXT TC(M)'!O212","v":0.92446679257537701},{"$f":"'[1]EXT TC(M)'!P212","v":0},null,null,{"$f":"'[1]EXT RIN(M)'!C212","v":3122.5},{"$f":"'[1]EXT RIN(M)'!D212","v":2020.8},{"$f":"'[1]EXT RIN(M)'!E212","v":4053},{"$f":"'[1]EXT RIN(M)'!F212","v":2506.7516600872182},{"$f":"'[1]EXT RIN(M)'!G212","v":832.9},{"$f":"'[1]EXT RIN(M)'!H212","v":1760.9},{"$f":"'[1]EXT RIN(M)'!I212","v":1833.7288151269699},null,null,{"$f":"'[1]EXT RIN(M)'!P212","v":62.053801856516579},{"$f":"'[1]EXT RIN(M)'!Q212","v":93.518840751408703},{"$f":"'[1]EXT RIN(M)'!R212","v":104.21618642679569},{"$f":"'[1]EXT RIN(M)'!S212","v":118.73420027187332},{"$f":"'[1]EXT RIN(M)'!T212","v":87.126842281197199},{"$f":"'[1]EXT RIN(M)'!U212","v":38.124975778018012},{"$f":"'[1]EXT RIN(M)'!V212","v":218.85746297013347},null,null,{"$f":"+'[1]MONE(M)CAPARD'!AE212","v":1.6680165981322863},{"$f":"'[1]MONE(M)CAPARD'!AF212","v":0.85475036244738567},{"$f":"'[1]MONE(M)CAPARD'!AG212","v":0.42045053352652795},{"$f":"'[1]MONE(M)CAPARD'!AH212","v":3.0831077104178894},{"$f":"'[1]MONE(M)CAPARD'!AI212","v":3.6912705967432697},{"$f":"'[1]MONE(M)CAPARD'!AJ212","v":2.3726716188524621},{"$f":"'[1]MONE(M)CAPARD'!AK212","v":2.829605263157887},null,null,{"$f":"'[1]MONE(M)CAPARD'!AL212","v":3.8849999999999998},{"$f":"'[1]MONE(M)CAPARD'!AM212","v":4.74},{"$f":"'[1]MONE(M)CAPARD'!AN212","v":3.97},{"$f":"'[1]MONE(M)CAPARD'!AO212","v":3.68},{"$f":"'[1]MONE(M)CAPARD'!AP212","v":5.63},{"$f":"'[1]MONE(M)CAPARD'!AQ212","v":2.62},{"$f":"'[1]MONE(M)CAPARD'!AR212","v":4.9000000000000004},null,null,{"$f":"'[1]MONE(M)CAPARD'!J212","v":10.422889398223138},{"$f":"'[1]MONE(M)CAPARD'!K212","v":3.6939633771001317},{"$f":"'[1]MONE(M)CAPARD'!L212","v":8.1215228560136836},{"$f":"'[1]MONE(M)CAPARD'!M212","v":10.978104767510299},{"$f":"'[1]MONE(M)CAPARD'!N212","v":8.8729230858562076},{"$f":"'[1]MONE(M)CAPARD'!O212","v":11.789855093676818},{"$f":"'[1]MONE(M)CAPARD'!P212","v":5.3782894736842017},null,null,{"$f":"'[1]MONE(M)CAPARD'!Q212","v":10.97},{"$f":"'[1]MONE(M)CAPARD'!R212","v":7.69},{"$f":"'[1]MONE(M)CAPARD'!S212","v":7.7},{"$f":"'[1]MONE(M)CAPARD'!T212","v":9.0299999999999994},{"$f":"'[1]MONE(M)CAPARD'!U212","v":10.8},{"$f":"'[1]MONE(M)CAPARD'!V212","v":8.08},{"$f":"'[1]MONE(M)CAPARD'!W212","v":7.5},null,null,{"$f":"'[1]MONE(M)CAPARD'!AS212","v":9.1999999999999993},{"$f":"'[1]MONE(M)CAPARD'!AT212","v":"n.a."},{"$f":"'[1]MONE(M)CAPARD'!AU212","v":5},{"$f":"'[1]MONE(M)CAPARD'!AV212","v":6},{"$f":"'[1]MONE(M)CAPARD'!AW212","v":"n.a."},{"$f":"'[1]MONE(M)CAPARD'!AX212","v":8},{"$f":"'[1]MONE(M)CAPARD'!AY212","v":"n.a."},null,null,{"$f":"+'Datos_Regional (M)'!CF205","v":29.131079154238691},{"$f":"+'Datos_Regional (M)'!CG205","v":9.7526554424262724},{"$f":"+'Datos_Regional (M)'!CH205","v":26.868164288951913},{"$f":"+'Datos_Regional (M)'!CI205","v":28.173131882731226},{"$f":"+'Datos_Regional (M)'!CJ205","v":32.451389352511463},{"$f":"+'Datos_Regional (M)'!CK205","v":10.630842132732067},{"$f":"+'Datos_Regional (M)'!CL205","v":14.487487270522292},null,null,null,null,null,null,null,null,null,null,null,null,null,null,null,null,null,null,null,null,null,null,null,null,null,null,null,null,{"$f":"'[1]EXT Comercio(M)'!C212","v":730.81582707000143},{"$f":"'[1]EXT Comercio(M)'!D212","v":308.94999999999982},{"$f":"'[1]EXT Comercio(M)'!E212","v":495.89999999999964},{"$f":"'[1]EXT Comercio(M)'!F212","v":183.09850630385154},{"$f":"'[1]EXT Comercio(M)'!G212","v":169.40000000000003},{"$f":"'[1]EXT Comercio(M)'!H212","v":587.01040000000012},{"$f":"'[1]EXT Comercio(M)'!I212","v":846.86699999999996},{"$f":"'[1]EXT Comercio(M)'!K212","v":2475.1747333738567},{"$f":"'[1]EXT Comercio(M)'!L212","v":3322.0417333738515},null,null,{"$f":"'[1]EXT Comercio(M)'!AG212","v":1102.6326128600012},{"$f":"'[1]EXT Comercio(M)'!AH212","v":695.88000000000011},{"$f":"'[1]EXT Comercio(M)'!AI212","v":1082.2000000000007},{"$f":"'[1]EXT Comercio(M)'!AJ212","v":529.21041873303966},{"$f":"'[1]EXT Comercio(M)'!AK212","v":318.89999999999998},{"$f":"'[1]EXT Comercio(M)'!AL212","v":1083.2999999999997},{"$f":"'[1]EXT Comercio(M)'!AM212","v":958.30848700000024},{"$f":"'[1]EXT Comercio(M)'!AO212","v":4812.123031593037},{"$f":"'[1]EXT Comercio(M)'!AP212","v":5770.4315185930391},null,null,{"$f":"'[1]EXT Comercio(M)'!$BS212","v":-2336.9482982191912},{"$f":"'[1]EXT Comercio(M)'!$BT212","v":-2448.3897852191913}]
[null,null,"Diciembre",{"$f":"'[1]REAL IPC(M)'!AD213","v":9.4337156441160097},{"$f":"'[1]REAL IPC(M)'!AE213","v":4.8859557716799795},{"$f":"'[1]REAL IPC(M)'!AF213","v":5.7925151348376378},{"$f":"'[1]REAL IPC(M)'!AG213","v":5.2858020897357241},{"$f":"'[1]REAL IPC(M)'!AH213","v":9.4479477818342801},{"$f":"'[1]REAL IPC(M)'!AI213","v":5.0001907013997506},{"$f":"'[1]REAL IPC(M)'!AJ213","v":2.1967526265520423},null,null,{"$f":"'[1]REAL IMAE(M)'!AG213","v":8.6132584246829857},{"$f":"'[1]REAL IMAE(M)'!AH213","v":-9.2663203292827401E-2},{"$f":"'[1]REAL IMAE(M)'!AI213","v":"n.d."},{"$f":"'[1]REAL IMAE(M)'!AJ213","v":11.489491211906918},{"$f":"'[1]REAL IMAE(M)'!AK213","v":"n.d."},{"$f":"'[1]REAL IMAE(M)'!AL213","v":"n.d."},{"$f":"'[1]REAL IMAE(M)'!AM213","v":9.8427025950753393},null,null,{"$f":"'[1]EXT ITCER(M)'!C213","v":99.791592288957645},{"$f":"'[1]EXT ITCER(M)'!D213","v":94.607000299067465},{"$f":"'[1]EXT ITCER(M)'!E213","v":74.168783901489434},{"$f":"'[1]EXT ITCER(M)'!F213","v":93.115477644861016},{"$f":"'[1]EXT ITCER(M)'!G213","v":105.56187481250016},{"$f":"'[1]EXT ITCER(M)'!H213","v":97.128491062386743},{"$f":"'[1]EXT ITCER(M)'!I213","v":106.6143813365634},null,null,{"$f":"'[1]EXT TC(M)'!J213","v":4.2586928919512541},{"$f":"'[1]EXT TC(M)'!K213","v":0},{"$f":"'[1]EXT TC(M)'!L213","v":-9.5891528134761678E-2},{"$f":"'[1]EXT TC(M)'!M213","v":0},{"$f":"'[1]EXT TC(M)'!N213","v":5.1374387634603575},{"$f":"'[1]EXT TC(M)'!O213","v":-0.1120077771437786},{"$f":"'[1]EXT TC(M)'!P213","v":0},null,null,{"$f":"'[1]EXT RIN(M)'!C213","v":3114.5},{"$f":"'[1]EXT RIN(M)'!D213","v":1905.8},{"$f":"'[1]EXT RIN(M)'!E213","v":4061.1},{"$f":"'[1]EXT RIN(M)'!F213","v":2613.6789902959476},{"$f":"'[1]EXT RIN(M)'!G213","v":859},{"$f":"'[1]EXT RIN(M)'!H213","v":1817},{"$f":"'[1]EXT RIN(M)'!I213","v":1312.0485185115999},null,null,{"$f":"'[1]EXT RIN(M)'!P213","v":59.27734185079909},{"$f":"'[1]EXT RIN(M)'!Q213","v":89.485941813947363},{"$f":"'[1]EXT RIN(M)'!R213","v":98.45756816100058},{"$f":"'[1]EXT RIN(M)'!S213","v":113.45385516613189},{"$f":"'[1]EXT RIN(M)'!T213","v":85.437807647985395},{"$f":"'[1]EXT RIN(M)'!U213","v":39.38010735930709},{"$f":"'[1]EXT RIN(M)'!V213","v":156.18387412042162},null,null,{"$f":"+'[1]MONE(M)CAPARD'!AE213","v":1.6597118586292354},{"$f":"'[1]MONE(M)CAPARD'!AF213","v":-2.5045661601972025E-2},{"$f":"'[1]MONE(M)CAPARD'!AG213","v":-0.90036155546884555},{"$f":"'[1]MONE(M)CAPARD'!AH213","v":2.6159252772912871},{"$f":"'[1]MONE(M)CAPARD'!AI213","v":2.8819627939659651},{"$f":"'[1]MONE(M)CAPARD'!AJ213","v":2.7426705412277492},{"$f":"'[1]MONE(M)CAPARD'!AK213","v":2.8701962616822545},null,null,{"$f":"'[1]MONE(M)CAPARD'!AL213","v":3.8899999999999997},{"$f":"'[1]MONE(M)CAPARD'!AM213","v":4.8600000000000003},{"$f":"'[1]MONE(M)CAPARD'!AN213","v":3.81},{"$f":"'[1]MONE(M)CAPARD'!AO213","v":3.71},{"$f":"'[1]MONE(M)CAPARD'!AP213","v":5.9},{"$f":"'[1]MONE(M)CAPARD'!AQ213","v":2.73},{"$f":"'[1]MONE(M)CAPARD'!AR213","v":5.13},null,null,{"$f":"'[1]MONE(M)CAPARD'!J213","v":10.29507614684538},{"$f":"'[1]MONE(M)CAPARD'!K213","v":2.5928873978686933},{"$f":"'[1]MONE(M)CAPARD'!L213","v":6.7183248796982777},{"$f":"'[1]MONE(M)CAPARD'!M213","v":10.74617629889082},{"$f":"'[1]MONE(M)CAPARD'!N213","v":7.2047343399309272},{"$f":"'[1]MONE(M)CAPARD'!O213","v":10.895036687250272},{"$f":"'[1]MONE(M)CAPARD'!P213","v":5.1696822429906666},null,null,{"$f":"'[1]MONE(M)CAPARD'!Q213","v":10.81},{"$f":"'[1]MONE(M)CAPARD'!R213","v":7.61},{"$f":"'[1]MONE(M)CAPARD'!S213","v":7.66},{"$f":"'[1]MONE(M)CAPARD'!T213","v":9.19},{"$f":"'[1]MONE(M)CAPARD'!U213","v":10.7},{"$f":"'[1]MONE(M)CAPARD'!V213","v":8.99},{"$f":"'[1]MONE(M)CAPARD'!W213","v":7.48},null,null,{"$f":"'[1]MONE(M)CAPARD'!AS213","v":8.9700000000000006},{"$f":"'[1]MONE(M)CAPARD'!AT213","v":"n.a."},{"$f":"'[1]MONE(M)CAPARD'!AU213","v":5},{"$f":"'[1]MONE(M)CAPARD'!AV213","v":6},{"$f":"'[1]MONE(M)CAPARD'!AW213","v":"n.a."},{"$f":"'[1]MONE(M)CAPARD'!AX213","v":8},{"$f":"'[1]MONE(M)CAPARD'!AY213","v":"n.a."},null,null,{"$f":"+'Datos_Regional (M)'!CF206","v":27.626521905358679},{"$f":"+'Datos_Regional (M)'!CG206","v":8.8660099510984089},{"$f":"+'Datos_Regional (M)'!CH206","v":21.384571284804444},{"$f":"+'Datos_Regional (M)'!CI206","v":29.095485181319724},{"$f":"+'Datos_Regional (M)'!CJ206","v":30.737097637432441},{"$f":"+'Datos_Regional (M)'!CK206","v":11.950283584187593},{"$f":"+'Datos_Regional (M)'!CL206","v":12.439940561628671},null,null,null,null,null,null,null,null,null,null,null,null,null,null,null,null,null,null,null,null,null,null,null,null,null,null,null,null,{"$f":"'[1]EXT Comercio(M)'!C213","v":638.3577506699985},{"$f":"'[1]EXT Comercio(M)'!D213","v":282.39999999999964},{"$f":"'[1]EXT Comercio(M)'!E213","v":484.19999999999982},{"$f":"'[1]EXT Comercio(M)'!F213","v":141.0390037610382},{"$f":"'[1]EXT Comercio(M)'!G213","v":173.90000000000003},{"$f":"'[1]EXT Comercio(M)'!H213","v":517.17219999999907},{"$f":"'[1]EXT Comercio(M)'!I213","v":605.58899999999994},{"$f":"'[1]EXT Comercio(M)'!K213","v":2237.0689544310335},{"$f":"'[1]EXT Comercio(M)'!L213","v":2842.6579544310371},null,null,{"$f":"'[1]EXT Comercio(M)'!AG213","v":905.71290502999909},{"$f":"'[1]EXT Comercio(M)'!AH213","v":670.6899999999996},{"$f":"'[1]EXT Comercio(M)'!AI213","v":965.79999999999927},{"$f":"'[1]EXT Comercio(M)'!AJ213","v":522.94093123000675},{"$f":"'[1]EXT Comercio(M)'!AK213","v":319.00000000000023},{"$f":"'[1]EXT Comercio(M)'!AL213","v":1010.3999999999996},{"$f":"'[1]EXT Comercio(M)'!AM213","v":974.75948100000005},{"$f":"'[1]EXT Comercio(M)'!AO213","v":4394.5438362600034},{"$f":"'[1]EXT Comercio(M)'!AP213","v":5369.3033172599971},null,null,{"$f":"'[1]EXT Comercio(M)'!$BS213","v":-2157.4748818289663},{"$f":"'[1]EXT Comercio(M)'!$BT213","v":-2526.6453628289637}]
[null,2007,"Enero",{"$f":"'[1]REAL IPC(M)'!AD214","v":9.193357683764825},{"$f":"'[1]REAL IPC(M)'!AE214","v":5.5395600598871404},{"$f":"'[1]REAL IPC(M)'!AF214","v":6.2244341423507068},{"$f":"'[1]REAL IPC(M)'!AG214","v":5.5725658297611718},{"$f":"'[1]REAL IPC(M)'!AH214","v":9.0829598863263783},{"$f":"'[1]REAL IPC(M)'!AI214","v":4.3643192488262841},{"$f":"'[1]REAL IPC(M)'!AJ214","v":2.2900763358778722},null,null,{"$f":"'[1]REAL IMAE(M)'!AG214","v":8.7371114215340864},{"$f":"'[1]REAL IMAE(M)'!AH214","v":-1.026005785077881},{"$f":"'[1]REAL IMAE(M)'!AI214","v":"n.d."},{"$f":"'[1]REAL IMAE(M)'!AJ214","v":11.639703973786716},{"$f":"'[1]REAL IMAE(M)'!AK214","v":2.6155308105253439},{"$f":"'[1]REAL IMAE(M)'!AL214","v":"n.d."},{"$f":"'[1]REAL IMAE(M)'!AM214","v":9.0735998949510819},null,null,{"$f":"'[1]EXT ITCER(M)'!C214","v":99.337023053131105},{"$f":"'[1]EXT ITCER(M)'!D214","v":93.808486290671198},{"$f":"'[1]EXT ITCER(M)'!E214","v":74.144467008656505},{"$f":"'[1]EXT ITCER(M)'!F214","v":92.803777320341482},{"$f":"'[1]EXT ITCER(M)'!G214","v":105.40111425455268},{"$f":"'[1]EXT ITCER(M)'!H214","v":98.319852609215118},{"$f":"'[1]EXT ITCER(M)'!I214","v":106.74031004312559},null,null,{"$f":"'[1]EXT TC(M)'!J214","v":3.7935508144188694},{"$f":"'[1]EXT TC(M)'!K214","v":0},{"$f":"'[1]EXT TC(M)'!L214","v":0.75767329789554017},{"$f":"'[1]EXT TC(M)'!M214","v":0},{"$f":"'[1]EXT TC(M)'!N214","v":4.8890127887932486},{"$f":"'[1]EXT TC(M)'!O214","v":-2.4987776617319923},{"$f":"'[1]EXT TC(M)'!P214","v":0},null,null,{"$f":"'[1]EXT RIN(M)'!C214","v":3164.1},{"$f":"'[1]EXT RIN(M)'!D214","v":1920.4},{"$f":"'[1]EXT RIN(M)'!E214","v":4037.2},{"$f":"'[1]EXT RIN(M)'!F214","v":2578.6904217183292},{"$f":"'[1]EXT RIN(M)'!G214","v":845.1},{"$f":"'[1]EXT RIN(M)'!H214","v":1882.4},{"$f":"'[1]EXT RIN(M)'!I214","v":1346.5704241083499},null,null,{"$f":"'[1]EXT RIN(M)'!P214","v":58.589941852934004},{"$f":"'[1]EXT RIN(M)'!Q214","v":86.383722938737918},{"$f":"'[1]EXT RIN(M)'!R214","v":99.99958288541221},{"$f":"'[1]EXT RIN(M)'!S214","v":116.4249349317178},{"$f":"'[1]EXT RIN(M)'!T214","v":87.117223411094315},{"$f":"'[1]EXT RIN(M)'!U214","v":40.886762841375123},{"$f":"'[1]EXT RIN(M)'!V214","v":164.5758907225802},null,null,{"$f":"+'[1]MONE(M)CAPARD'!AE214","v":1.4255833406491363},{"$f":"'[1]MONE(M)CAPARD'!AF214","v":-0.71969227411611059},{"$f":"'[1]MONE(M)CAPARD'!AG214","v":-1.2938964122970396},{"$f":"'[1]MONE(M)CAPARD'!AH214","v":2.2614153132250618},{"$f":"'[1]MONE(M)CAPARD'!AI214","v":3.0784476574154129},{"$f":"'[1]MONE(M)CAPARD'!AJ214","v":3.454897973872681},{"$f":"'[1]MONE(M)CAPARD'!AK214","v":2.7958955223880504},null,null,{"$f":"'[1]MONE(M)CAPARD'!AL214","v":4.1050000000000004},{"$f":"'[1]MONE(M)CAPARD'!AM214","v":4.78},{"$f":"'[1]MONE(M)CAPARD'!AN214","v":3.88},{"$f":"'[1]MONE(M)CAPARD'!AO214","v":3.72},{"$f":"'[1]MONE(M)CAPARD'!AP214","v":6.3},{"$f":"'[1]MONE(M)CAPARD'!AQ214","v":3},{"$f":"'[1]MONE(M)CAPARD'!AR214","v":5.15},null,null,{"$f":"'[1]MONE(M)CAPARD'!J214","v":10.244801106522283},{"$f":"'[1]MONE(M)CAPARD'!K214","v":2.2270700567437753},{"$f":"'[1]MONE(M)CAPARD'!L214","v":6.3408818432706404},{"$f":"'[1]MONE(M)CAPARD'!M214","v":10.975800464037128},{"$f":"'[1]MONE(M)CAPARD'!N214","v":8.0785216109467424},{"$f":"'[1]MONE(M)CAPARD'!O214","v":12.126444020585174},{"$f":"'[1]MONE(M)CAPARD'!P214","v":5.0346268656716324},null,null,{"$f":"'[1]MONE(M)CAPARD'!Q214","v":10.72},{"$f":"'[1]MONE(M)CAPARD'!R214","v":7.89},{"$f":"'[1]MONE(M)CAPARD'!S214","v":7.62},{"$f":"'[1]MONE(M)CAPARD'!T214","v":9.61},{"$f":"'[1]MONE(M)CAPARD'!U214","v":10.8},{"$f":"'[1]MONE(M)CAPARD'!V214","v":7.99},{"$f":"'[1]MONE(M)CAPARD'!W214","v":7.44},null,null,{"$f":"'[1]MONE(M)CAPARD'!AS214","v":5.98},{"$f":"'[1]MONE(M)CAPARD'!AT214","v":"n.a."},{"$f":"'[1]MONE(M)CAPARD'!AU214","v":5},{"$f":"'[1]MONE(M)CAPARD'!AV214","v":6},{"$f":"'[1]MONE(M)CAPARD'!AW214","v":"n.a."},{"$f":"'[1]MONE(M)CAPARD'!AX214","v":8},{"$f":"'[1]MONE(M)CAPARD'!AY214","v":"n.a."},null,null,{"$f":"+'Datos_Regional (M)'!CF207","v":29.358918626217289},{"$f":"+'Datos_Regional (M)'!CG207","v":8.7510340740641457},{"$f":"+'Datos_Regional (M)'!CH207","v":21.412638655662452},{"$f":"+'Datos_Regional (M)'!CI207","v":29.18861974420366},{"$f":"+'Datos_Regional (M)'!CJ207","v":30.725134704000201},{"$f":"+'Datos_Regional (M)'!CK207","v":15.122931317549604},{"$f":"+'Datos_Regional (M)'!CL207","v":12.545041612789687},null,null,{"$f":"+AVERAGE(EH8:EH19)","v":696.52404626333339},{"$f":"+AVERAGE(EI8:EI19)","v":311.51},{"$f":"+AVERAGE(EJ8:EJ19)","v":508.0333333333333},{"$f":"+AVERAGE(EK8:EK19)","v":176.49736159452075},{"$f":"+AVERAGE(EL8:EL19)","v":169.50833333333333},{"$f":"+AVERAGE(EM8:EM19)","v":555.01356666666652},{"$f":"+AVERAGE(EN8:EN19)","v":733.35858333333329},{"$f":"+AVERAGE(EO8:EO19)","v":2417.0866411911875},{"$f":"+AVERAGE(EP8:EP19)","v":3150.4452245245207},null,null,{"$f":"+AVERAGE(ES8:ES19)","v":975.27570417166669},{"$f":"+AVERAGE(ET8:ET19)","v":655.63749999999993},{"$f":"+AVERAGE(EU8:EU19)","v":1006.7166666666667},{"$f":"+AVERAGE(EV8:EV19)","v":474.58373929043495},{"$f":"+AVERAGE(EW8:EW19)","v":308.44166666666666},{"$f":"+AVERAGE(EX8:EX19)","v":1020.7249999999999},{"$f":"+AVERAGE(EY8:EY19)","v":991.42098350000003},{"$f":"+AVERAGE(EZ8:EZ19)","v":4441.3802767954348},{"$f":"+AVERAGE(FA8:FA19)","v":5432.8012602954341},null,null,{"$f":"+AVERAGE(FD8:FD19)","v":-2024.2936356042476},{"$f":"+AVERAGE(FE8:FE19)","v":-2282.3560357709143},null,null,{"$f":"'[1]EXT Comercio(M)'!C214","v":697.33348211999999},{"$f":"'[1]EXT Comercio(M)'!D214","v":311.3},{"$f":"'[1]EXT Comercio(M)'!E214","v":544.09999999999991},{"$f":"'[1]EXT Comercio(M)'!F214","v":196.28832560870899},{"$f":"'[1]EXT Comercio(M)'!G214","v":177.39999999999998},{"$f":"'[1]EXT Comercio(M)'!H214","v":473.65129999999999},{"$f":"'[1]EXT Comercio(M)'!I214","v":670.36800000000005},{"$f":"'[1]EXT Comercio(M)'!K214","v":2400.0731077287091},{"$f":"'[1]EXT Comercio(M)'!L214","v":3070.4411077287091},null,null,{"$f":"'[1]EXT Comercio(M)'!AG214","v":1057.5023586299999},{"$f":"'[1]EXT Comercio(M)'!AH214","v":650.82000000000005},{"$f":"'[1]EXT Comercio(M)'!AI214","v":1093.2},{"$f":"'[1]EXT Comercio(M)'!AJ214","v":469.90969273411918},{"$f":"'[1]EXT Comercio(M)'!AK214","v":303.7},{"$f":"'[1]EXT Comercio(M)'!AL214","v":899.30000000000007},{"$f":"'[1]EXT Comercio(M)'!AM214","v":1087.5959580000001},{"$f":"'[1]EXT Comercio(M)'!AO214","v":4474.4320513641187},{"$f":"'[1]EXT Comercio(M)'!AP214","v":5562.0280093641186},null,null,{"$f":"'[1]EXT Comercio(M)'!$BS214","v":-2074.3589436354105},{"$f":"'[1]EXT Comercio(M)'!$BT214","v":-2491.5869016354104}]
[null,null,"Febrero",{"$f":"'[1]REAL IPC(M)'!AD215","v":8.6173790719836152},{"$f":"'[1]REAL IPC(M)'!AE215","v":4.7902819161127406},{"$f":"'[1]REAL IPC(M)'!AF215","v":6.6216584833606245},{"$f":"'[1]REAL IPC(M)'!AG215","v":5.8000000000000078},{"$f":"'[1]REAL IPC(M)'!AH215","v":8.8146551724138007},{"$f":"'[1]REAL IPC(M)'!AI215","v":4.8095363441507093},{"$f":"'[1]REAL IPC(M)'!AJ215","v":2.7724665391969316},null,null,{"$f":"'[1]REAL IMAE(M)'!AG215","v":8.6353118471118986},{"$f":"'[1]REAL IMAE(M)'!AH215","v":-1.395297599461562},{"$f":"'[1]REAL IMAE(M)'!AI215","v":"n.d."},{"$f":"'[1]REAL IMAE(M)'!AJ215","v":11.618233291697461},{"$f":"'[1]REAL IMAE(M)'!AK215","v":3.1489190691415878},{"$f":"'[1]REAL IMAE(M)'!AL215","v":"n.d."},{"$f":"'[1]REAL IMAE(M)'!AM215","v":8.847602962193065},null,null,{"$f":"'[1]EXT ITCER(M)'!C215","v":99.716548813116503},{"$f":"'[1]EXT ITCER(M)'!D215","v":94.516674379413558},{"$f":"'[1]EXT ITCER(M)'!E215","v":74.446989138681289},{"$f":"'[1]EXT ITCER(M)'!F215","v":92.452579510026041},{"$f":"'[1]EXT ITCER(M)'!G215","v":105.23651305486641},{"$f":"'[1]EXT ITCER(M)'!H215","v":97.55202680578796},{"$f":"'[1]EXT ITCER(M)'!I215","v":107.01193623316648},null,null,{"$f":"'[1]EXT TC(M)'!J215","v":3.3894977331953062},{"$f":"'[1]EXT TC(M)'!K215","v":0},{"$f":"'[1]EXT TC(M)'!L215","v":1.1495009178899693},{"$f":"'[1]EXT TC(M)'!M215","v":0},{"$f":"'[1]EXT TC(M)'!N215","v":4.8466115893465753},{"$f":"'[1]EXT TC(M)'!O215","v":-2.375803615060688},{"$f":"'[1]EXT TC(M)'!P215","v":0},null,null,{"$f":"'[1]EXT RIN(M)'!C215","v":3239.3},{"$f":"'[1]EXT RIN(M)'!D215","v":1912.7},{"$f":"'[1]EXT RIN(M)'!E215","v":4054.6},{"$f":"'[1]EXT RIN(M)'!F215","v":2648.2001819699285},{"$f":"'[1]EXT RIN(M)'!G215","v":819.7},{"$f":"'[1]EXT RIN(M)'!H215","v":1927.4},{"$f":"'[1]EXT RIN(M)'!I215","v":1270.3506655722399},null,null,{"$f":"'[1]EXT RIN(M)'!P215","v":58.581444258236395},{"$f":"'[1]EXT RIN(M)'!Q215","v":85.651848766966239},{"$f":"'[1]EXT RIN(M)'!R215","v":102.20812650892637},{"$f":"'[1]EXT RIN(M)'!S215","v":114.86508389258768},{"$f":"'[1]EXT RIN(M)'!T215","v":82.259905433024528},{"$f":"'[1]EXT RIN(M)'!U215","v":41.809736099415645},{"$f":"'[1]EXT RIN(M)'!V215","v":151.61416203992763},null,null,{"$f":"+'[1]MONE(M)CAPARD'!AE215","v":1.0427621598802959},{"$f":"'[1]MONE(M)CAPARD'!AF215","v":8.5616797900287075E-2},{"$f":"'[1]MONE(M)CAPARD'!AG215","v":-1.5959782539175051},{"$f":"'[1]MONE(M)CAPARD'!AH215","v":1.918714555765588},{"$f":"'[1]MONE(M)CAPARD'!AI215","v":3.3871899489228618},{"$f":"'[1]MONE(M)CAPARD'!AJ215","v":3.1871753013777342},{"$f":"'[1]MONE(M)CAPARD'!AK215","v":2.0604093023255898},null,null,{"$f":"'[1]MONE(M)CAPARD'!AL215","v":4.1400000000000006},{"$f":"'[1]MONE(M)CAPARD'!AM215","v":4.88},{"$f":"'[1]MONE(M)CAPARD'!AN215","v":3.7},{"$f":"'[1]MONE(M)CAPARD'!AO215","v":3.74},{"$f":"'[1]MONE(M)CAPARD'!AP215","v":6.5},{"$f":"'[1]MONE(M)CAPARD'!AQ215","v":2.64},{"$f":"'[1]MONE(M)CAPARD'!AR215","v":4.8899999999999997},null,null,{"$f":"'[1]MONE(M)CAPARD'!J215","v":9.8627135174352212},{"$f":"'[1]MONE(M)CAPARD'!K215","v":2.8816776027996749},{"$f":"'[1]MONE(M)CAPARD'!L215","v":5.9634614646626032},{"$f":"'[1]MONE(M)CAPARD'!M215","v":10.586011342155002},{"$f":"'[1]MONE(M)CAPARD'!N215","v":8.6866265259878901},{"$f":"'[1]MONE(M)CAPARD'!O215","v":12.193989308266367},{"$f":"'[1]MONE(M)CAPARD'!P215","v":4.6752302393357201},null,null,{"$f":"'[1]MONE(M)CAPARD'!Q215","v":10.48},{"$f":"'[1]MONE(M)CAPARD'!R215","v":7.81},{"$f":"'[1]MONE(M)CAPARD'!S215","v":7.68},{"$f":"'[1]MONE(M)CAPARD'!T215","v":9.56},{"$f":"'[1]MONE(M)CAPARD'!U215","v":10.7},{"$f":"'[1]MONE(M)CAPARD'!V215","v":7.97},{"$f":"'[1]MONE(M)CAPARD'!W215","v":7.5773159725486519},null,null,{"$f":"'[1]MONE(M)CAPARD'!AS215","v":5.98},{"$f":"'[1]MONE(M)CAPARD'!AT215","v":"n.a."},{"$f":"'[1]MONE(M)CAPARD'!AU215","v":5},{"$f":"'[1]MONE(M)CAPARD'!AV215","v":6},{"$f":"'[1]MONE(M)CAPARD'!AW215","v":"n.a."},{"$f":"'[1]MONE(M)CAPARD'!AX215","v":8},{"$f":"'[1]MONE(M)CAPARD'!AY215","v":"n.a."},null,null,{"$f":"+'Datos_Regional (M)'!CF208","v":30.88127372572178},{"$f":"+'Datos_Regional (M)'!CG208","v":7.7820471013881898},{"$f":"+'Datos_Regional (M)'!CH208","v":20.819311494565707},{"$f":"+'Datos_Regional (M)'!CI208","v":30.183824428992324},{"$f":"+'Datos_Regional (M)'!CJ208","v":29.263086504986614},{"$f":"+'Datos_Regional (M)'!CK208","v":16.18320684115535},{"$f":"+'Datos_Regional (M)'!CL208","v":13.170981854696183},null,null,701.78841915916655,312.3725,519.22499999999991,177.42515361593192,171.74166666666667,561.09114999999997,735.1246666666666,2443.6438894417656,3178.7685561084322,null,null,986.35672991916647,659.0625,1017.3166666666667,486.8961380093096,311.17500000000001,1027.7749999999999,1003.9579524166667,4488.5820345951433,5492.539987011809,null,null,-2044.9381451533779,-2313.7714309033772,null,null,{"$f":"'[1]EXT Comercio(M)'!C215","v":697.22897369999998},{"$f":"'[1]EXT Comercio(M)'!D215","v":303.69},{"$f":"'[1]EXT Comercio(M)'!E215","v":562.60000000000014},{"$f":"'[1]EXT Comercio(M)'!F215","v":190.48451391464437},{"$f":"'[1]EXT Comercio(M)'!G215","v":178.60000000000002},{"$f":"'[1]EXT Comercio(M)'!H215","v":570.12380000000007},{"$f":"'[1]EXT Comercio(M)'!I215","v":703.40899999999999},{"$f":"'[1]EXT Comercio(M)'!K215","v":2502.7272876146444},{"$f":"'[1]EXT Comercio(M)'!L215","v":3206.1362876146445},null,null,{"$f":"'[1]EXT Comercio(M)'!AG215","v":947.69199055000013},{"$f":"'[1]EXT Comercio(M)'!AH215","v":621.58000000000004},{"$f":"'[1]EXT Comercio(M)'!AI215","v":952.09999999999991},{"$f":"'[1]EXT Comercio(M)'!AJ215","v":513.62704154316509},{"$f":"'[1]EXT Comercio(M)'!AK215","v":292.7},{"$f":"'[1]EXT Comercio(M)'!AL215","v":953.4},{"$f":"'[1]EXT Comercio(M)'!AM215","v":918.97025600000006},{"$f":"'[1]EXT Comercio(M)'!AO215","v":4281.099032093166},{"$f":"'[1]EXT Comercio(M)'!AP215","v":5200.0692880931665},null,null,{"$f":"'[1]EXT Comercio(M)'!$BS215","v":-1778.3717444785202},{"$f":"'[1]EXT Comercio(M)'!$BT215","v":-1993.9330004785202}]
[null,null,"Marzo",{"$f":"'[1]REAL IPC(M)'!AD216","v":9.2185163549038673},{"$f":"'[1]REAL IPC(M)'!AE216","v":5.0588100947813253},{"$f":"'[1]REAL IPC(M)'!AF216","v":7.0240922972514541},{"$f":"'[1]REAL IPC(M)'!AG216","v":6.3106796116504711},{"$f":"'[1]REAL IPC(M)'!AH216","v":9.3137779680976376},{"$f":"'[1]REAL IPC(M)'!AI216","v":5.5376061311894142},{"$f":"'[1]REAL IPC(M)'!AJ216","v":3.238095238095231},null,null,{"$f":"'[1]REAL IMAE(M)'!AG216","v":8.4220132554812039},{"$f":"'[1]REAL IMAE(M)'!AH216","v":-1.1141449649508406},{"$f":"'[1]REAL IMAE(M)'!AI216","v":"n.d."},{"$f":"'[1]REAL IMAE(M)'!AJ216","v":11.210396269486298},{"$f":"'[1]REAL IMAE(M)'!AK216","v":3.8390589135635445},{"$f":"'[1]REAL IMAE(M)'!AL216","v":"n.d."},{"$f":"'[1]REAL IMAE(M)'!AM216","v":8.790784477765639},null,null,{"$f":"'[1]EXT ITCER(M)'!C216","v":99.850068903370754},{"$f":"'[1]EXT ITCER(M)'!D216","v":94.79675690283446},{"$f":"'[1]EXT ITCER(M)'!E216","v":74.458487283496723},{"$f":"'[1]EXT ITCER(M)'!F216","v":92.645197518582762},{"$f":"'[1]EXT ITCER(M)'!G216","v":105.28780241442512},{"$f":"'[1]EXT ITCER(M)'!H216","v":95.999194299285065},{"$f":"'[1]EXT ITCER(M)'!I216","v":107.08978870407013},null,null,{"$f":"'[1]EXT TC(M)'!J216","v":2.7691982094070386},{"$f":"'[1]EXT TC(M)'!K216","v":0},{"$f":"'[1]EXT TC(M)'!L216","v":0.97501931902412176},{"$f":"'[1]EXT TC(M)'!M216","v":0},{"$f":"'[1]EXT TC(M)'!N216","v":4.7929386398813616},{"$f":"'[1]EXT TC(M)'!O216","v":0.70697857259120978},{"$f":"'[1]EXT TC(M)'!P216","v":0},null,null,{"$f":"'[1]EXT RIN(M)'!C216","v":3491.6},{"$f":"'[1]EXT RIN(M)'!D216","v":1907.5},{"$f":"'[1]EXT RIN(M)'!E216","v":4249.5},{"$f":"'[1]EXT RIN(M)'!F216","v":2618.5479259358244},{"$f":"'[1]EXT RIN(M)'!G216","v":830.8},{"$f":"'[1]EXT RIN(M)'!H216","v":2046.5},{"$f":"'[1]EXT RIN(M)'!I216","v":1119.8790553072299},null,null,{"$f":"'[1]EXT RIN(M)'!P216","v":60.593250330847503},{"$f":"'[1]EXT RIN(M)'!Q216","v":83.441928136268203},{"$f":"'[1]EXT RIN(M)'!R216","v":103.83388690429918},{"$f":"'[1]EXT RIN(M)'!S216","v":112.26221755497947},{"$f":"'[1]EXT RIN(M)'!T216","v":84.262000809076341},{"$f":"'[1]EXT RIN(M)'!U216","v":43.857517838258417},{"$f":"'[1]EXT RIN(M)'!V216","v":131.64863007194953},null,null,{"$f":"+'[1]MONE(M)CAPARD'!AE216","v":-1.1156682910288924},{"$f":"'[1]MONE(M)CAPARD'!AF216","v":1.065108695651491E-2},{"$f":"'[1]MONE(M)CAPARD'!AG216","v":-1.9659987317691932},{"$f":"'[1]MONE(M)CAPARD'!AH216","v":1.3256621004566347},{"$f":"'[1]MONE(M)CAPARD'!AI216","v":2.7665792090159038},{"$f":"'[1]MONE(M)CAPARD'!AJ216","v":2.3805674213299231},{"$f":"'[1]MONE(M)CAPARD'!AK216","v":1.4547970479704868},null,null,{"$f":"'[1]MONE(M)CAPARD'!AL216","v":4.0650000000000004},{"$f":"'[1]MONE(M)CAPARD'!AM216","v":5.07},{"$f":"'[1]MONE(M)CAPARD'!AN216","v":3.7},{"$f":"'[1]MONE(M)CAPARD'!AO216","v":3.82},{"$f":"'[1]MONE(M)CAPARD'!AP216","v":6.4},{"$f":"'[1]MONE(M)CAPARD'!AQ216","v":2.92},{"$f":"'[1]MONE(M)CAPARD'!AR216","v":4.74},null,null,{"$f":"'[1]MONE(M)CAPARD'!J216","v":8.1776276982864466},{"$f":"'[1]MONE(M)CAPARD'!K216","v":2.5901586956521667},{"$f":"'[1]MONE(M)CAPARD'!L216","v":5.4809226379200906},{"$f":"'[1]MONE(M)CAPARD'!M216","v":9.9983561643835781},{"$f":"'[1]MONE(M)CAPARD'!N216","v":8.2308469468087146},{"$f":"'[1]MONE(M)CAPARD'!O216","v":10.586173287768769},{"$f":"'[1]MONE(M)CAPARD'!P216","v":4.0308739446710122},null,null,{"$f":"'[1]MONE(M)CAPARD'!Q216","v":10.46},{"$f":"'[1]MONE(M)CAPARD'!R216","v":7.78},{"$f":"'[1]MONE(M)CAPARD'!S216","v":7.66},{"$f":"'[1]MONE(M)CAPARD'!T216","v":9.56},{"$f":"'[1]MONE(M)CAPARD'!U216","v":10.5},{"$f":"'[1]MONE(M)CAPARD'!V216","v":7.38},{"$f":"'[1]MONE(M)CAPARD'!W216","v":7.3994927200222573},null,null,{"$f":"'[1]MONE(M)CAPARD'!AS216","v":5.98},{"$f":"'[1]MONE(M)CAPARD'!AT216","v":"n.a."},{"$f":"'[1]MONE(M)CAPARD'!AU216","v":5.25},{"$f":"'[1]MONE(M)CAPARD'!AV216","v":6},{"$f":"'[1]MONE(M)CAPARD'!AW216","v":"n.a."},{"$f":"'[1]MONE(M)CAPARD'!AX216","v":8},{"$f":"'[1]MONE(M)CAPARD'!AY216","v":"n.a."},null,null,{"$f":"+'Datos_Regional (M)'!CF209","v":30.308267238780708},{"$f":"+'Datos_Regional (M)'!CG209","v":8.5716971889342908},{"$f":"+'Datos_Regional (M)'!CH209","v":18.887427908567211},{"$f":"+'Datos_Regional (M)'!CI209","v":30.625405505892921},{"$f":"+'Datos_Regional (M)'!CJ209","v":28.142359592739673},{"$f":"+'Datos_Regional (M)'!CK209","v":15.998120714222019},{"$f":"+'Datos_Regional (M)'!CL209","v":13.407400263614221},null,null,705.28287478333334,314.68416666666667,528.29999999999995,179.29026528764416,175.58333333333334,567.84875833333319,743.15583333333325,2470.9893984043106,3214.1452317376438,null,null,988.18698235833335,664.70666666666659,1028.6083333333333,500.20413863408641,312.26666666666671,1040.0749999999998,1036.6783065833336,4534.0477876590876,5570.7260942424191,null,null,-2063.0583892547756,-2356.5808625047753,null,null,{"$f":"'[1]EXT Comercio(M)'!C216","v":857.30286911999997},{"$f":"'[1]EXT Comercio(M)'!D216","v":365.99},{"$f":"'[1]EXT Comercio(M)'!E216","v":604.79999999999995},{"$f":"'[1]EXT Comercio(M)'!F216","v":229.13716127495093},{"$f":"'[1]EXT Comercio(M)'!G216","v":218.7},{"$f":"'[1]EXT Comercio(M)'!H216","v":677.09220000000005},{"$f":"'[1]EXT Comercio(M)'!I216","v":907.11599999999999},{"$f":"'[1]EXT Comercio(M)'!K216","v":2953.0222303949504},{"$f":"'[1]EXT Comercio(M)'!L216","v":3860.1382303949513},null,null,{"$f":"'[1]EXT Comercio(M)'!AG216","v":998.84537835000015},{"$f":"'[1]EXT Comercio(M)'!AH216","v":740.06},{"$f":"'[1]EXT Comercio(M)'!AI216","v":1118.6999999999998},{"$f":"'[1]EXT Comercio(M)'!AJ216","v":590.11551585399957},{"$f":"'[1]EXT Comercio(M)'!AK216","v":321.90000000000009},{"$f":"'[1]EXT Comercio(M)'!AL216","v":1175.5},{"$f":"'[1]EXT Comercio(M)'!AM216","v":1233.803449},{"$f":"'[1]EXT Comercio(M)'!AO216","v":4945.1208942039993},{"$f":"'[1]EXT Comercio(M)'!AP216","v":6178.9243432040003},null,null,{"$f":"'[1]EXT Comercio(M)'!$BS216","v":-1992.0986638090494},{"$f":"'[1]EXT Comercio(M)'!$BT216","v":-2318.7861128090499}]
[null,null,"Abril",{"$f":"'[1]REAL IPC(M)'!AD217","v":9.756778981613099},{"$f":"'[1]REAL IPC(M)'!AE217","v":4.4351179673321184},{"$f":"'[1]REAL IPC(M)'!AF217","v":6.4014539579967664},{"$f":"'[1]REAL IPC(M)'!AG217","v":6.3367531683765836},{"$f":"'[1]REAL IPC(M)'!AH217","v":8.8778634012456425},{"$f":"'[1]REAL IPC(M)'!AI217","v":5.7663579324768479},{"$f":"'[1]REAL IPC(M)'!AJ217","v":2.7306967984933999},null,null,{"$f":"'[1]REAL IMAE(M)'!AG217","v":8.2612410581565605},{"$f":"'[1]REAL IMAE(M)'!AH217","v":-0.1145575929309698},{"$f":"'[1]REAL IMAE(M)'!AI217","v":"n.d."},{"$f":"'[1]REAL IMAE(M)'!AJ217","v":10.479037570041159},{"$f":"'[1]REAL IMAE(M)'!AK217","v":4.5972667289672495},{"$f":"'[1]REAL IMAE(M)'!AL217","v":"n.d."},{"$f":"'[1]REAL IMAE(M)'!AM217","v":8.8842051478571875},null,null,{"$f":"'[1]EXT ITCER(M)'!C217","v":99.543056467729301},{"$f":"'[1]EXT ITCER(M)'!D217","v":95.340030730099286},{"$f":"'[1]EXT ITCER(M)'!E217","v":74.461569050147318},{"$f":"'[1]EXT ITCER(M)'!F217","v":92.717824466921272},{"$f":"'[1]EXT ITCER(M)'!G217","v":105.05622348514393},{"$f":"'[1]EXT ITCER(M)'!H217","v":94.198760963703492},{"$f":"'[1]EXT ITCER(M)'!I217","v":107.09389564675922},null,null,{"$f":"'[1]EXT TC(M)'!J217","v":2.2098853750119463},{"$f":"'[1]EXT TC(M)'!K217","v":0},{"$f":"'[1]EXT TC(M)'!L217","v":0.90280863542327938},{"$f":"'[1]EXT TC(M)'!M217","v":0},{"$f":"'[1]EXT TC(M)'!N217","v":4.5915230032669916},{"$f":"'[1]EXT TC(M)'!O217","v":0.37936479756309621},{"$f":"'[1]EXT TC(M)'!P217","v":0},null,null,{"$f":"'[1]EXT RIN(M)'!C217","v":3559.2},{"$f":"'[1]EXT RIN(M)'!D217","v":2042.6},{"$f":"'[1]EXT RIN(M)'!E217","v":4263.2},{"$f":"'[1]EXT RIN(M)'!F217","v":2659.9587131822532},{"$f":"'[1]EXT RIN(M)'!G217","v":883.8},{"$f":"'[1]EXT RIN(M)'!H217","v":2173},{"$f":"'[1]EXT RIN(M)'!I217","v":1648.3656573262797},null,null,{"$f":"'[1]EXT RIN(M)'!P217","v":60.858854254874473},{"$f":"'[1]EXT RIN(M)'!Q217","v":86.484701319541628},{"$f":"'[1]EXT RIN(M)'!R217","v":106.96201453905118},{"$f":"'[1]EXT RIN(M)'!S217","v":114.49762876302418},{"$f":"'[1]EXT RIN(M)'!T217","v":90.835450237115239},{"$f":"'[1]EXT RIN(M)'!U217","v":45.102996971494179},{"$f":"'[1]EXT RIN(M)'!V217","v":191.8748698809533},null,null,{"$f":"+'[1]MONE(M)CAPARD'!AE217","v":-2.0561636397795202},{"$f":"'[1]MONE(M)CAPARD'!AF217","v":0.53131747583360989},{"$f":"'[1]MONE(M)CAPARD'!AG217","v":-1.4017232871512597},{"$f":"'[1]MONE(M)CAPARD'!AH217","v":1.2255845629965949},{"$f":"'[1]MONE(M)CAPARD'!AI217","v":2.8836511272110248},{"$f":"'[1]MONE(M)CAPARD'!AJ217","v":1.9889519774011273},{"$f":"'[1]MONE(M)CAPARD'!AK217","v":2.0240329972502376},null,null,{"$f":"'[1]MONE(M)CAPARD'!AL217","v":4.125},{"$f":"'[1]MONE(M)CAPARD'!AM217","v":4.99},{"$f":"'[1]MONE(M)CAPARD'!AN217","v":3.72},{"$f":"'[1]MONE(M)CAPARD'!AO217","v":3.87},{"$f":"'[1]MONE(M)CAPARD'!AP217","v":6.3},{"$f":"'[1]MONE(M)CAPARD'!AQ217","v":2.52},{"$f":"'[1]MONE(M)CAPARD'!AR217","v":4.8099999999999996},null,null,{"$f":"'[1]MONE(M)CAPARD'!J217","v":7.3008893780759623},{"$f":"'[1]MONE(M)CAPARD'!K217","v":3.221983273596182},{"$f":"'[1]MONE(M)CAPARD'!L217","v":6.0229872841146364},{"$f":"'[1]MONE(M)CAPARD'!M217","v":9.7833030646992043},{"$f":"'[1]MONE(M)CAPARD'!N217","v":8.2439758077884218},{"$f":"'[1]MONE(M)CAPARD'!O217","v":10.384816384180789},{"$f":"'[1]MONE(M)CAPARD'!P217","v":4.5988542638000727},null,null,{"$f":"'[1]MONE(M)CAPARD'!Q217","v":10.47},{"$f":"'[1]MONE(M)CAPARD'!R217","v":7.8},{"$f":"'[1]MONE(M)CAPARD'!S217","v":7.6700000000000008},{"$f":"'[1]MONE(M)CAPARD'!T217","v":9.56},{"$f":"'[1]MONE(M)CAPARD'!U217","v":11.3},{"$f":"'[1]MONE(M)CAPARD'!V217","v":8.77},{"$f":"'[1]MONE(M)CAPARD'!W217","v":7.4551318284424379},null,null,{"$f":"'[1]MONE(M)CAPARD'!AS217","v":5.98},{"$f":"'[1]MONE(M)CAPARD'!AT217","v":"n.a."},{"$f":"'[1]MONE(M)CAPARD'!AU217","v":5.5},{"$f":"'[1]MONE(M)CAPARD'!AV217","v":6},{"$f":"'[1]MONE(M)CAPARD'!AW217","v":"n.a."},{"$f":"'[1]MONE(M)CAPARD'!AX217","v":7},{"$f":"'[1]MONE(M)CAPARD'!AY217","v":"n.a."},null,null,{"$f":"+'Datos_Regional (M)'!CF210","v":30.64422951138188},{"$f":"+'Datos_Regional (M)'!CG210","v":8.0040097431943291},{"$f":"+'Datos_Regional (M)'!CH210","v":16.884218131623019},{"$f":"+'Datos_Regional (M)'!CI210","v":30.364243355315246},{"$f":"+'Datos_Regional (M)'!CJ210","v":27.41491833764147},{"$f":"+'Datos_Regional (M)'!CK210","v":17.072849164885163},{"$f":"+'Datos_Regional (M)'!CL210","v":8.2444632926105257},null,null,719.53647165916664,315.01750000000004,539.75,182.62679142722948,177.89166666666665,573.99677499999996,750.35158333333322,2508.8192047530629,3259.170788086396,null,null,995.0079961908333,680.00166666666667,1033.7666666666667,510.78432791330488,317.60833333333335,1042.958333333333,1054.7682180000002,4580.1273241041381,5634.8955421041383,null,null,-2071.3081193510757,-2375.7247540177418,null,null,{"$f":"'[1]EXT Comercio(M)'!C217","v":731.93116818999988},{"$f":"'[1]EXT Comercio(M)'!D217","v":285.52},{"$f":"'[1]EXT Comercio(M)'!E217","v":531.70000000000005},{"$f":"'[1]EXT Comercio(M)'!F217","v":193.01350169135787},{"$f":"'[1]EXT Comercio(M)'!G217","v":173},{"$f":"'[1]EXT Comercio(M)'!H217","v":588.51959999999985},{"$f":"'[1]EXT Comercio(M)'!I217","v":689.95699999999999},{"$f":"'[1]EXT Comercio(M)'!K217","v":2503.6842698813571},{"$f":"'[1]EXT Comercio(M)'!L217","v":3193.6412698813565},null,null,{"$f":"'[1]EXT Comercio(M)'!AG217","v":930.08089427000004},{"$f":"'[1]EXT Comercio(M)'!AH217","v":686.19},{"$f":"'[1]EXT Comercio(M)'!AI217","v":944.00000000000011},{"$f":"'[1]EXT Comercio(M)'!AJ217","v":547.61970929399968},{"$f":"'[1]EXT Comercio(M)'!AK217","v":334.4},{"$f":"'[1]EXT Comercio(M)'!AL217","v":970.69999999999982},{"$f":"'[1]EXT Comercio(M)'!AM217","v":1001.0412759999999},{"$f":"'[1]EXT Comercio(M)'!AO217","v":4412.9906035640015},{"$f":"'[1]EXT Comercio(M)'!AP217","v":5414.0318795640014},null,null,{"$f":"'[1]EXT Comercio(M)'!$BS217","v":-1909.3063336826408},{"$f":"'[1]EXT Comercio(M)'!$BT217","v":-2220.3906096826413}]
[null,null,"Mayo ",{"$f":"'[1]REAL IPC(M)'!AD218","v":9.1692343720542535},{"$f":"'[1]REAL IPC(M)'!AE218","v":3.8744760394244961},{"$f":"'[1]REAL IPC(M)'!AF218","v":5.4652485116061298},{"$f":"'[1]REAL IPC(M)'!AG218","v":6.0551558752997563},{"$f":"'[1]REAL IPC(M)'!AH218","v":8.7361372672107223},{"$f":"'[1]REAL IPC(M)'!AI218","v":6.283189126963487},{"$f":"'[1]REAL IPC(M)'!AJ218","v":3.3930254476908721},null,null,{"$f":"'[1]REAL IMAE(M)'!AG218","v":8.0083183770121114},{"$f":"'[1]REAL IMAE(M)'!AH218","v":1.4242769015384746},{"$f":"'[1]REAL IMAE(M)'!AI218","v":"n.d."},{"$f":"'[1]REAL IMAE(M)'!AJ218","v":10.024640333443102},{"$f":"'[1]REAL IMAE(M)'!AK218","v":5.2674358616856756},{"$f":"'[1]REAL IMAE(M)'!AL218","v":"n.d."},{"$f":"'[1]REAL IMAE(M)'!AM218","v":8.886774500475731},null,null,{"$f":"'[1]EXT ITCER(M)'!C218","v":99.125813755910215},{"$f":"'[1]EXT ITCER(M)'!D218","v":96.320168533327291},{"$f":"'[1]EXT ITCER(M)'!E218","v":74.934168453632438},{"$f":"'[1]EXT ITCER(M)'!F218","v":92.915267116306765},{"$f":"'[1]EXT ITCER(M)'!G218","v":105.12432715015659},{"$f":"'[1]EXT ITCER(M)'!H218","v":93.520728004226811},{"$f":"'[1]EXT ITCER(M)'!I218","v":107.15899097491769},null,null,{"$f":"'[1]EXT TC(M)'!J218","v":1.8000144885724763},{"$f":"'[1]EXT TC(M)'!K218","v":0},{"$f":"'[1]EXT TC(M)'!L218","v":0.78588496217771375},{"$f":"'[1]EXT TC(M)'!M218","v":0},{"$f":"'[1]EXT TC(M)'!N218","v":4.3817950982119616},{"$f":"'[1]EXT TC(M)'!O218","v":-1.0854812649072823},{"$f":"'[1]EXT TC(M)'!P218","v":0},null,null,{"$f":"'[1]EXT RIN(M)'!C218","v":3588.1},{"$f":"'[1]EXT RIN(M)'!D218","v":2163.8000000000002},{"$f":"'[1]EXT RIN(M)'!E218","v":4253.2},{"$f":"'[1]EXT RIN(M)'!F218","v":2639.7673840725906},{"$f":"'[1]EXT RIN(M)'!G218","v":929.3},{"$f":"'[1]EXT RIN(M)'!H218","v":2217.8000000000002},{"$f":"'[1]EXT RIN(M)'!I218","v":1682.1831294799003},null,null,{"$f":"'[1]EXT RIN(M)'!P218","v":60.459505609416041},{"$f":"'[1]EXT RIN(M)'!Q218","v":94.694516313119465},{"$f":"'[1]EXT RIN(M)'!R218","v":106.56985564801336},{"$f":"'[1]EXT RIN(M)'!S218","v":118.18629043538711},{"$f":"'[1]EXT RIN(M)'!T218","v":93.430251384744082},{"$f":"'[1]EXT RIN(M)'!U218","v":45.261862491371105},{"$f":"'[1]EXT RIN(M)'!V218","v":195.90091428819244},null,null,{"$f":"+'[1]MONE(M)CAPARD'!AE218","v":-1.7580359366755345},{"$f":"'[1]MONE(M)CAPARD'!AF218","v":0.94876431453811483},{"$f":"'[1]MONE(M)CAPARD'!AG218","v":-0.5264753266522918},{"$f":"'[1]MONE(M)CAPARD'!AH218","v":1.4566421707179229},{"$f":"'[1]MONE(M)CAPARD'!AI218","v":3.2911544849814232},{"$f":"'[1]MONE(M)CAPARD'!AJ218","v":1.4930026903322828},{"$f":"'[1]MONE(M)CAPARD'!AK218","v":1.3608021877848535},null,null,{"$f":"'[1]MONE(M)CAPARD'!AL218","v":4.1150000000000002},{"$f":"'[1]MONE(M)CAPARD'!AM218","v":4.8600000000000003},{"$f":"'[1]MONE(M)CAPARD'!AN218","v":3.8},{"$f":"'[1]MONE(M)CAPARD'!AO218","v":3.92},{"$f":"'[1]MONE(M)CAPARD'!AP218","v":6.4},{"$f":"'[1]MONE(M)CAPARD'!AQ218","v":2.4900000000000002},{"$f":"'[1]MONE(M)CAPARD'!AR218","v":4.8},null,null,{"$f":"'[1]MONE(M)CAPARD'!J218","v":6.7058871210878026},{"$f":"'[1]MONE(M)CAPARD'!K218","v":3.7117144726796787},{"$f":"'[1]MONE(M)CAPARD'!L218","v":6.9167347456552051},{"$f":"'[1]MONE(M)CAPARD'!M218","v":10.037083097795366},{"$f":"'[1]MONE(M)CAPARD'!N218","v":8.8588932955101569},{"$f":"'[1]MONE(M)CAPARD'!O218","v":9.048289717340424},{"$f":"'[1]MONE(M)CAPARD'!P218","v":3.8947834586216818},null,null,{"$f":"'[1]MONE(M)CAPARD'!Q218","v":10.06},{"$f":"'[1]MONE(M)CAPARD'!R218","v":7.73},{"$f":"'[1]MONE(M)CAPARD'!S218","v":7.68},{"$f":"'[1]MONE(M)CAPARD'!T218","v":9.59},{"$f":"'[1]MONE(M)CAPARD'!U218","v":11},{"$f":"'[1]MONE(M)CAPARD'!V218","v":8.07},{"$f":"'[1]MONE(M)CAPARD'!W218","v":7.4199599001960426},null,null,{"$f":"'[1]MONE(M)CAPARD'!AS218","v":5.98},{"$f":"'[1]MONE(M)CAPARD'!AT218","v":"n.a."},{"$f":"'[1]MONE(M)CAPARD'!AU218","v":5.5},{"$f":"'[1]MONE(M)CAPARD'!AV218","v":6},{"$f":"'[1]MONE(M)CAPARD'!AW218","v":"n.a."},{"$f":"'[1]MONE(M)CAPARD'!AX218","v":7},{"$f":"'[1]MONE(M)CAPARD'!AY218","v":"n.a."},null,null,{"$f":"+'Datos_Regional (M)'!CF211","v":30.547584691232956},{"$f":"+'Datos_Regional (M)'!CG211","v":8.3651038955635073},{"$f":"+'Datos_Regional (M)'!CH211","v":16.586310051452834},{"$f":"+'Datos_Regional (M)'!CI211","v":29.807444212715239},{"$f":"+'Datos_Regional (M)'!CJ211","v":27.127831939484981},{"$f":"+'Datos_Regional (M)'!CK211","v":18.199274136549469},{"$f":"+'Datos_Regional (M)'!CL211","v":14.547809901707609},null,null,727.72995301333333,315.11333333333334,556.01666666666665,184.70758088836442,179.32500000000002,581.47249999999985,755.72741666666661,2544.3650339016981,3300.0924505683647,null,null,997.4461999350001,688.43916666666667,1039.7916666666667,521.3602789855272,319.81666666666666,1053.383333333333,1071.5232660833333,4620.2373122538602,5691.7605783371937,null,null,-2075.872278352163,-2391.6681277688294,null,null,{"$f":"'[1]EXT Comercio(M)'!C218","v":864.84966277000012},{"$f":"'[1]EXT Comercio(M)'!D218","v":339.86999999999989},{"$f":"'[1]EXT Comercio(M)'!E218","v":679},{"$f":"'[1]EXT Comercio(M)'!F218","v":251.87747989985348},{"$f":"'[1]EXT Comercio(M)'!G218","v":196.89999999999998},{"$f":"'[1]EXT Comercio(M)'!H218","v":638.70829999999978},{"$f":"'[1]EXT Comercio(M)'!I218","v":794.60500000000002},{"$f":"'[1]EXT Comercio(M)'!K218","v":2971.2054426698542},{"$f":"'[1]EXT Comercio(M)'!L218","v":3765.8104426698555},null,null,{"$f":"'[1]EXT Comercio(M)'!AG218","v":1071.63028592},{"$f":"'[1]EXT Comercio(M)'!AH218","v":867.20000000000027},{"$f":"'[1]EXT Comercio(M)'!AI218","v":1173.2000000000005},{"$f":"'[1]EXT Comercio(M)'!AJ218","v":607.23012614430081},{"$f":"'[1]EXT Comercio(M)'!AK218","v":363.50000000000006},{"$f":"'[1]EXT Comercio(M)'!AL218","v":1178.8},{"$f":"'[1]EXT Comercio(M)'!AM218","v":1195.2455549999997},{"$f":"'[1]EXT Comercio(M)'!AO218","v":5261.5604120643002},{"$f":"'[1]EXT Comercio(M)'!AP218","v":6456.8059670642979},null,null,{"$f":"'[1]EXT Comercio(M)'!$BS218","v":-2290.3549693944497},{"$f":"'[1]EXT Comercio(M)'!$BT218","v":-2690.9955243944496}]
[null,null,"Junio",{"$f":"'[1]REAL IPC(M)'!AD219","v":8.7507581924932456},{"$f":"'[1]REAL IPC(M)'!AE219","v":3.7078651685393225},{"$f":"'[1]REAL IPC(M)'!AF219","v":5.3132065434233393},{"$f":"'[1]REAL IPC(M)'!AG219","v":6.1566049013747657},{"$f":"'[1]REAL IPC(M)'!AH219","v":9.4567824001668317},{"$f":"'[1]REAL IPC(M)'!AI219","v":5.907934986916314},{"$f":"'[1]REAL IPC(M)'!AJ219","v":3.668861712135481},null,null,{"$f":"'[1]REAL IMAE(M)'!AG219","v":7.6771343059829187},{"$f":"'[1]REAL IMAE(M)'!AH219","v":2.826865370181801},{"$f":"'[1]REAL IMAE(M)'!AI219","v":"n.d."},{"$f":"'[1]REAL IMAE(M)'!AJ219","v":9.444485759296537},{"$f":"'[1]REAL IMAE(M)'!AK219","v":5.6777660444181572},{"$f":"'[1]REAL IMAE(M)'!AL219","v":"n.d."},{"$f":"'[1]REAL IMAE(M)'!AM219","v":8.7359072872708783},null,null,{"$f":"'[1]EXT ITCER(M)'!C219","v":98.738605272829929},{"$f":"'[1]EXT ITCER(M)'!D219","v":95.869032146571485},{"$f":"'[1]EXT ITCER(M)'!E219","v":75.086460920610847},{"$f":"'[1]EXT ITCER(M)'!F219","v":92.728404787718375},{"$f":"'[1]EXT ITCER(M)'!G219","v":104.46828143762676},{"$f":"'[1]EXT ITCER(M)'!H219","v":94.127260741776581},{"$f":"'[1]EXT ITCER(M)'!I219","v":106.87951787295535},null,null,{"$f":"'[1]EXT TC(M)'!J219","v":1.2308130380235491},{"$f":"'[1]EXT TC(M)'!K219","v":0},{"$f":"'[1]EXT TC(M)'!L219","v":0.89959006688382859},{"$f":"'[1]EXT TC(M)'!M219","v":0},{"$f":"'[1]EXT TC(M)'!N219","v":3.9901310511850419},{"$f":"'[1]EXT TC(M)'!O219","v":-1.0675961080658805},{"$f":"'[1]EXT TC(M)'!P219","v":0},null,null,{"$f":"'[1]EXT RIN(M)'!C219","v":3734.1},{"$f":"'[1]EXT RIN(M)'!D219","v":2142},{"$f":"'[1]EXT RIN(M)'!E219","v":4392.3999999999996},{"$f":"'[1]EXT RIN(M)'!F219","v":2684.0973766622042},{"$f":"'[1]EXT RIN(M)'!G219","v":945.8},{"$f":"'[1]EXT RIN(M)'!H219","v":2240.9},{"$f":"'[1]EXT RIN(M)'!I219","v":1743.0560142500499},null,null,{"$f":"'[1]EXT RIN(M)'!P219","v":61.50905703381747},{"$f":"'[1]EXT RIN(M)'!Q219","v":92.210772646203793},{"$f":"'[1]EXT RIN(M)'!R219","v":110.16852994960024},{"$f":"'[1]EXT RIN(M)'!S219","v":111.8507006936556},{"$f":"'[1]EXT RIN(M)'!T219","v":95.040007782596462},{"$f":"'[1]EXT RIN(M)'!U219","v":46.381768112941764},{"$f":"'[1]EXT RIN(M)'!V219","v":201.15482970564739},null,null,{"$f":"+'[1]MONE(M)CAPARD'!AE219","v":-1.3799979121403851},{"$f":"'[1]MONE(M)CAPARD'!AF219","v":1.2459371614301227},{"$f":"'[1]MONE(M)CAPARD'!AG219","v":-0.37336869356571178},{"$f":"'[1]MONE(M)CAPARD'!AH219","v":1.3220045045045137},{"$f":"'[1]MONE(M)CAPARD'!AI219","v":2.1310771509153388},{"$f":"'[1]MONE(M)CAPARD'!AJ219","v":1.4560429426503221},{"$f":"'[1]MONE(M)CAPARD'!AK219","v":1.0911070780399124},null,null,{"$f":"'[1]MONE(M)CAPARD'!AL219","v":4.1099999999999994},{"$f":"'[1]MONE(M)CAPARD'!AM219","v":5},{"$f":"'[1]MONE(M)CAPARD'!AN219","v":3.84},{"$f":"'[1]MONE(M)CAPARD'!AO219","v":3.93},{"$f":"'[1]MONE(M)CAPARD'!AP219","v":6.4},{"$f":"'[1]MONE(M)CAPARD'!AQ219","v":2.83},{"$f":"'[1]MONE(M)CAPARD'!AR219","v":4.8},null,null,{"$f":"'[1]MONE(M)CAPARD'!J219","v":7.0797132226690174},{"$f":"'[1]MONE(M)CAPARD'!K219","v":3.9169014084507072},{"$f":"'[1]MONE(M)CAPARD'!L219","v":7.0805872324303722},{"$f":"'[1]MONE(M)CAPARD'!M219","v":9.8377252252252347},{"$f":"'[1]MONE(M)CAPARD'!N219","v":7.9264219938975353},{"$f":"'[1]MONE(M)CAPARD'!O219","v":8.7359507238307241},{"$f":"'[1]MONE(M)CAPARD'!P219","v":3.6378059929667423},null,null,{"$f":"'[1]MONE(M)CAPARD'!Q219","v":10.11},{"$f":"'[1]MONE(M)CAPARD'!R219","v":7.77},{"$f":"'[1]MONE(M)CAPARD'!S219","v":7.6700000000000008},{"$f":"'[1]MONE(M)CAPARD'!T219","v":9.52},{"$f":"'[1]MONE(M)CAPARD'!U219","v":11.2},{"$f":"'[1]MONE(M)CAPARD'!V219","v":8.17},{"$f":"'[1]MONE(M)CAPARD'!W219","v":7.44013377633995},null,null,{"$f":"'[1]MONE(M)CAPARD'!AS219","v":5.98},{"$f":"'[1]MONE(M)CAPARD'!AT219","v":"n.a."},{"$f":"'[1]MONE(M)CAPARD'!AU219","v":5.5},{"$f":"'[1]MONE(M)CAPARD'!AV219","v":6},{"$f":"'[1]MONE(M)CAPARD'!AW219","v":"n.a."},{"$f":"'[1]MONE(M)CAPARD'!AX219","v":7},{"$f":"'[1]MONE(M)CAPARD'!AY219","v":"n.a."},null,null,{"$f":"+'Datos_Regional (M)'!CF212","v":31.167661346131158},{"$f":"+'Datos_Regional (M)'!CG212","v":8.6634963409532482},{"$f":"+'Datos_Regional (M)'!CH212","v":12.992649198938079},{"$f":"+'Datos_Regional (M)'!CI212","v":31.75618058342744},{"$f":"+'Datos_Regional (M)'!CJ212","v":29.530484303184188},{"$f":"+'Datos_Regional (M)'!CK212","v":19.55947240448188},{"$f":"+'Datos_Regional (M)'!CL212","v":14.312721944849716},null,null,733.49178569249989,315.95750000000004,562.22499999999991,186.74370797768609,181.94999999999996,586.11114999999995,761.7890000000001,2566.4791436701862,3328.268143670186,null,null,1000.9566693641667,686.72916666666663,1051.9916666666668,526.26208314109851,322.60833333333341,1059.9083333333333,1081.8010054166664,4648.4562525052643,5730.2572579219313,null,null,-2081.9771088350794,-2401.9891142517449,null,null,{"$f":"'[1]EXT Comercio(M)'!C219","v":817.45239027000025},{"$f":"'[1]EXT Comercio(M)'!D219","v":340.63000000000011},{"$f":"'[1]EXT Comercio(M)'!E219","v":618.20000000000027},{"$f":"'[1]EXT Comercio(M)'!F219","v":219.75603150882716},{"$f":"'[1]EXT Comercio(M)'!G219","v":205.6},{"$f":"'[1]EXT Comercio(M)'!H219","v":651.6228000000001},{"$f":"'[1]EXT Comercio(M)'!I219","v":769.28499999999997},{"$f":"'[1]EXT Comercio(M)'!K219","v":2853.2612217788301},{"$f":"'[1]EXT Comercio(M)'!L219","v":3622.5462217788263},null,null,{"$f":"'[1]EXT Comercio(M)'!AG219","v":1001.2798661099996},{"$f":"'[1]EXT Comercio(M)'!AH219","v":724.51000000000022},{"$f":"'[1]EXT Comercio(M)'!AI219","v":1118.1999999999998},{"$f":"'[1]EXT Comercio(M)'!AJ219","v":569.45176579729969},{"$f":"'[1]EXT Comercio(M)'!AK219","v":339.99999999999994},{"$f":"'[1]EXT Comercio(M)'!AL219","v":1073.9000000000001},{"$f":"'[1]EXT Comercio(M)'!AM219","v":1129.8137820000002},{"$f":"'[1]EXT Comercio(M)'!AO219","v":4827.341631907304},{"$f":"'[1]EXT Comercio(M)'!AP219","v":5957.155413907305},null,null,{"$f":"'[1]EXT Comercio(M)'!$BS219","v":-1974.0804101284702},{"$f":"'[1]EXT Comercio(M)'!$BT219","v":-2334.6091921284697}]
[null,null,"Julio",{"$f":"'[1]REAL IPC(M)'!AD220","v":8.7524121024019443},{"$f":"'[1]REAL IPC(M)'!AE220","v":3.1628010209743413},{"$f":"'[1]REAL IPC(M)'!AF220","v":5.5868140597074278},{"$f":"'[1]REAL IPC(M)'!AG220","v":6.3020214030915715},{"$f":"'[1]REAL IPC(M)'!AH220","v":9.7593860194980255},{"$f":"'[1]REAL IPC(M)'!AI220","v":5.2381648158971474},{"$f":"'[1]REAL IPC(M)'!AJ220","v":4.1392285983066959},null,null,{"$f":"'[1]REAL IMAE(M)'!AG220","v":7.2370661509541652},{"$f":"'[1]REAL IMAE(M)'!AH220","v":3.8635269064593318},{"$f":"'[1]REAL IMAE(M)'!AI220","v":"n.d."},{"$f":"'[1]REAL IMAE(M)'!AJ220","v":8.759127075099272},{"$f":"'[1]REAL IMAE(M)'!AK220","v":5.7993357794932647},{"$f":"'[1]REAL IMAE(M)'!AL220","v":"n.d."},{"$f":"'[1]REAL IMAE(M)'!AM220","v":8.5662477333833476},null,null,{"$f":"'[1]EXT ITCER(M)'!C220","v":97.789418232871668},{"$f":"'[1]EXT ITCER(M)'!D220","v":95.164164765081949},{"$f":"'[1]EXT ITCER(M)'!E220","v":74.542824994436245},{"$f":"'[1]EXT ITCER(M)'!F220","v":92.082636816534418},{"$f":"'[1]EXT ITCER(M)'!G220","v":104.01120210417731},{"$f":"'[1]EXT ITCER(M)'!H220","v":95.533229911308595},{"$f":"'[1]EXT ITCER(M)'!I220","v":106.36970897552807},null,null,{"$f":"'[1]EXT TC(M)'!J220","v":0.64802798002691142},{"$f":"'[1]EXT TC(M)'!K220","v":0},{"$f":"'[1]EXT TC(M)'!L220","v":1.2678700627927713},{"$f":"'[1]EXT TC(M)'!M220","v":0},{"$f":"'[1]EXT TC(M)'!N220","v":4.1739659406690048},{"$f":"'[1]EXT TC(M)'!O220","v":0.72753584251276904},{"$f":"'[1]EXT TC(M)'!P220","v":0},null,null,{"$f":"'[1]EXT RIN(M)'!C220","v":3839.3},{"$f":"'[1]EXT RIN(M)'!D220","v":2445},{"$f":"'[1]EXT RIN(M)'!E220","v":4441.3},{"$f":"'[1]EXT RIN(M)'!F220","v":2635.3969294642525},{"$f":"'[1]EXT RIN(M)'!G220","v":963.7},{"$f":"'[1]EXT RIN(M)'!H220","v":2366.1999999999998},{"$f":"'[1]EXT RIN(M)'!I220","v":1882.8632412773002},null,null,{"$f":"'[1]EXT RIN(M)'!P220","v":62.978328120279038},{"$f":"'[1]EXT RIN(M)'!Q220","v":93.384375819977834},{"$f":"'[1]EXT RIN(M)'!R220","v":107.67828979781112},{"$f":"'[1]EXT RIN(M)'!S220","v":115.64135934709093},{"$f":"'[1]EXT RIN(M)'!T220","v":95.742344629020323},{"$f":"'[1]EXT RIN(M)'!U220","v":46.102089988931674},{"$f":"'[1]EXT RIN(M)'!V220","v":199.38214756868945},null,null,{"$f":"+'[1]MONE(M)CAPARD'!AE220","v":-1.3814977280570695},{"$f":"'[1]MONE(M)CAPARD'!AF220","v":1.5870051635112103},{"$f":"'[1]MONE(M)CAPARD'!AG220","v":-0.65047332455646079},{"$f":"'[1]MONE(M)CAPARD'!AH220","v":1.2586577181207919},{"$f":"'[1]MONE(M)CAPARD'!AI220","v":2.0295552366933287},{"$f":"'[1]MONE(M)CAPARD'!AJ220","v":1.9116973273168931},{"$f":"'[1]MONE(M)CAPARD'!AK220","v":0.64411020776872796},null,null,{"$f":"'[1]MONE(M)CAPARD'!AL220","v":4.1099999999999994},{"$f":"'[1]MONE(M)CAPARD'!AM220","v":4.8},{"$f":"'[1]MONE(M)CAPARD'!AN220","v":3.92},{"$f":"'[1]MONE(M)CAPARD'!AO220","v":3.92},{"$f":"'[1]MONE(M)CAPARD'!AP220","v":6.4},{"$f":"'[1]MONE(M)CAPARD'!AQ220","v":2.7},{"$f":"'[1]MONE(M)CAPARD'!AR220","v":4.8099999999999996},null,null,{"$f":"'[1]MONE(M)CAPARD'!J220","v":7.0045231644382184},{"$f":"'[1]MONE(M)CAPARD'!K220","v":4.4756432874354797},{"$f":"'[1]MONE(M)CAPARD'!L220","v":6.8031088959939741},{"$f":"'[1]MONE(M)CAPARD'!M220","v":9.5181431767337674},{"$f":"'[1]MONE(M)CAPARD'!N220","v":7.6293168729397296},{"$f":"'[1]MONE(M)CAPARD'!O220","v":9.5705157931273757},{"$f":"'[1]MONE(M)CAPARD'!P220","v":3.1904644858693381},null,null,{"$f":"'[1]MONE(M)CAPARD'!Q220","v":10.220000000000001},{"$f":"'[1]MONE(M)CAPARD'!R220","v":7.78},{"$f":"'[1]MONE(M)CAPARD'!S220","v":7.68},{"$f":"'[1]MONE(M)CAPARD'!T220","v":9.66},{"$f":"'[1]MONE(M)CAPARD'!U220","v":10.7},{"$f":"'[1]MONE(M)CAPARD'!V220","v":7.84},{"$f":"'[1]MONE(M)CAPARD'!W220","v":7.4617537025939562},null,null,{"$f":"'[1]MONE(M)CAPARD'!AS220","v":5.98},{"$f":"'[1]MONE(M)CAPARD'!AT220","v":"n.a."},{"$f":"'[1]MONE(M)CAPARD'!AU220","v":5.5},{"$f":"'[1]MONE(M)CAPARD'!AV220","v":6},{"$f":"'[1]MONE(M)CAPARD'!AW220","v":"n.a."},{"$f":"'[1]MONE(M)CAPARD'!AX220","v":7},{"$f":"'[1]MONE(M)CAPARD'!AY220","v":"n.a."},null,null,{"$f":"+'Datos_Regional (M)'!CF213","v":31.989280715423106},{"$f":"+'Datos_Regional (M)'!CG213","v":8.4338463788141471},{"$f":"+'Datos_Regional (M)'!CH213","v":14.328907494976928},{"$f":"+'Datos_Regional (M)'!CI213","v":33.483131070674773},{"$f":"+'Datos_Regional (M)'!CJ213","v":28.604722123904658},{"$f":"+'Datos_Regional (M)'!CK213","v":19.252458062975641},{"$f":"+'Datos_Regional (M)'!CL213","v":14.586299845149986},null,null,742.18267684583327,320.70416666666659,563.125,191.12359321196553,186.06666666666663,590.51859166666657,773.26150000000007,2593.7206950577988,3366.9821950577984,null,null,1009.702258223333,694.75416666666672,1066.1666666666667,541.73380737729838,328.50833333333338,1070.8916666666667,1108.6010100000001,4711.7568989339643,5820.3579089339646,null,null,-2118.0362038761655,-2453.3757138761653,null,null,{"$f":"'[1]EXT Comercio(M)'!C220","v":732.7508378399998},{"$f":"'[1]EXT Comercio(M)'!D220","v":385.85999999999967},{"$f":"'[1]EXT Comercio(M)'!E220","v":579},{"$f":"'[1]EXT Comercio(M)'!F220","v":231.6439119262368},{"$f":"'[1]EXT Comercio(M)'!G220","v":205.20000000000002},{"$f":"'[1]EXT Comercio(M)'!H220","v":586.98639999999978},{"$f":"'[1]EXT Comercio(M)'!I220","v":770.83299999999997},{"$f":"'[1]EXT Comercio(M)'!K220","v":2721.4411497662331},{"$f":"'[1]EXT Comercio(M)'!L220","v":3492.2741497662391},null,null,{"$f":"'[1]EXT Comercio(M)'!AG220","v":1075.90004537},{"$f":"'[1]EXT Comercio(M)'!AH220","v":806.89999999999964},{"$f":"'[1]EXT Comercio(M)'!AI220","v":1198.9999999999998},{"$f":"'[1]EXT Comercio(M)'!AJ220","v":664.62987935795172},{"$f":"'[1]EXT Comercio(M)'!AK220","v":378.80000000000007},{"$f":"'[1]EXT Comercio(M)'!AL220","v":1203.7999999999997},{"$f":"'[1]EXT Comercio(M)'!AM220","v":1355.0481339999999},{"$f":"'[1]EXT Comercio(M)'!AO220","v":5329.0299247279472},{"$f":"'[1]EXT Comercio(M)'!AP220","v":6684.0780587279442},null,null,{"$f":"'[1]EXT Comercio(M)'!$BS220","v":-2607.5887749617141},{"$f":"'[1]EXT Comercio(M)'!$BT220","v":-3191.8039089617141}]
[null,null,"Agosto",{"$f":"'[1]REAL IPC(M)'!AD221","v":8.562715900754732},{"$f":"'[1]REAL IPC(M)'!AE221","v":3.5590762021644515},{"$f":"'[1]REAL IPC(M)'!AF221","v":6.2087622063869068},{"$f":"'[1]REAL IPC(M)'!AG221","v":6.6943127962085205},{"$f":"'[1]REAL IPC(M)'!AH221","v":9.8664458018428416},{"$f":"'[1]REAL IPC(M)'!AI221","v":4.364153419862939},{"$f":"'[1]REAL IPC(M)'!AJ221","v":4.2293233082706738},null,null,{"$f":"'[1]REAL IMAE(M)'!AG221","v":6.6667317278905829},{"$f":"'[1]REAL IMAE(M)'!AH221","v":4.5287371400655427},{"$f":"'[1]REAL IMAE(M)'!AI221","v":"n.d."},{"$f":"'[1]REAL IMAE(M)'!AJ221","v":8.1051412268921208},{"$f":"'[1]REAL IMAE(M)'!AK221","v":5.7494761770331122},{"$f":"'[1]REAL IMAE(M)'!AL221","v":"n.d."},{"$f":"'[1]REAL IMAE(M)'!AM221","v":8.5350713842333956},null,null,{"$f":"'[1]EXT ITCER(M)'!C221","v":96.926641909326449},{"$f":"'[1]EXT ITCER(M)'!D221","v":95.140427189430682},{"$f":"'[1]EXT ITCER(M)'!E221","v":73.571962624764026},{"$f":"'[1]EXT ITCER(M)'!F221","v":91.250313203595425},{"$f":"'[1]EXT ITCER(M)'!G221","v":104.35534131739628},{"$f":"'[1]EXT ITCER(M)'!H221","v":95.714840128967779},{"$f":"'[1]EXT ITCER(M)'!I221","v":105.98315917365466},null,null,{"$f":"'[1]EXT TC(M)'!J221","v":0.13437674888306969},{"$f":"'[1]EXT TC(M)'!K221","v":0},{"$f":"'[1]EXT TC(M)'!L221","v":1.0612860336183925},{"$f":"'[1]EXT TC(M)'!M221","v":0},{"$f":"'[1]EXT TC(M)'!N221","v":4.4611616515045576},{"$f":"'[1]EXT TC(M)'!O221","v":0.8245900031868264},{"$f":"'[1]EXT TC(M)'!P221","v":0},null,null,{"$f":"'[1]EXT RIN(M)'!C221","v":3902.8},{"$f":"'[1]EXT RIN(M)'!D221","v":2389},{"$f":"'[1]EXT RIN(M)'!E221","v":4263.1000000000004},{"$f":"'[1]EXT RIN(M)'!F221","v":2566.9299530724898},{"$f":"'[1]EXT RIN(M)'!G221","v":955.7},{"$f":"'[1]EXT RIN(M)'!H221","v":2360.6},{"$f":"'[1]EXT RIN(M)'!I221","v":1839.1799722968501},null,null,{"$f":"'[1]EXT RIN(M)'!P221","v":63.932936191032688},{"$f":"'[1]EXT RIN(M)'!Q221","v":93.351344528982096},{"$f":"'[1]EXT RIN(M)'!R221","v":105.57612904774093},{"$f":"'[1]EXT RIN(M)'!S221","v":116.32406800214838},{"$f":"'[1]EXT RIN(M)'!T221","v":96.077566684615235},{"$f":"'[1]EXT RIN(M)'!U221","v":48.772786526124492},{"$f":"'[1]EXT RIN(M)'!V221","v":194.7584285542319},null,null,{"$f":"+'[1]MONE(M)CAPARD'!AE221","v":-1.2091774693208519},{"$f":"'[1]MONE(M)CAPARD'!AF221","v":0.91824283559577891},{"$f":"'[1]MONE(M)CAPARD'!AG221","v":-1.2228390383301209},{"$f":"'[1]MONE(M)CAPARD'!AH221","v":0.94258745141589007},{"$f":"'[1]MONE(M)CAPARD'!AI221","v":2.2111418602783468},{"$f":"'[1]MONE(M)CAPARD'!AJ221","v":2.401060611353687},{"$f":"'[1]MONE(M)CAPARD'!AK221","v":0.5571145175834108},null,null,{"$f":"'[1]MONE(M)CAPARD'!AL221","v":4.1150000000000002},{"$f":"'[1]MONE(M)CAPARD'!AM221","v":4.51},{"$f":"'[1]MONE(M)CAPARD'!AN221","v":4.03},{"$f":"'[1]MONE(M)CAPARD'!AO221","v":4.04},{"$f":"'[1]MONE(M)CAPARD'!AP221","v":6.52},{"$f":"'[1]MONE(M)CAPARD'!AQ221","v":2.57},{"$f":"'[1]MONE(M)CAPARD'!AR221","v":4.8099999999999996},null,null,{"$f":"'[1]MONE(M)CAPARD'!J221","v":6.7954122536777666},{"$f":"'[1]MONE(M)CAPARD'!K221","v":3.8730780004309446},{"$f":"'[1]MONE(M)CAPARD'!L221","v":6.0176181897247956},{"$f":"'[1]MONE(M)CAPARD'!M221","v":8.9467629094947334},{"$f":"'[1]MONE(M)CAPARD'!N221","v":7.6307093821721743},{"$f":"'[1]MONE(M)CAPARD'!O221","v":10.880983755458489},{"$f":"'[1]MONE(M)CAPARD'!P221","v":3.1012892374299064},null,null,{"$f":"'[1]MONE(M)CAPARD'!Q221","v":10.32},{"$f":"'[1]MONE(M)CAPARD'!R221","v":7.57},{"$f":"'[1]MONE(M)CAPARD'!S221","v":7.59},{"$f":"'[1]MONE(M)CAPARD'!T221","v":9.67},{"$f":"'[1]MONE(M)CAPARD'!U221","v":11},{"$f":"'[1]MONE(M)CAPARD'!V221","v":7.85},{"$f":"'[1]MONE(M)CAPARD'!W221","v":7.4617760942760931},null,null,{"$f":"'[1]MONE(M)CAPARD'!AS221","v":5.52},{"$f":"'[1]MONE(M)CAPARD'!AT221","v":"n.a."},{"$f":"'[1]MONE(M)CAPARD'!AU221","v":5.5},{"$f":"'[1]MONE(M)CAPARD'!AV221","v":6.25},{"$f":"'[1]MONE(M)CAPARD'!AW221","v":"n.a."},{"$f":"'[1]MONE(M)CAPARD'!AX221","v":7},{"$f":"'[1]MONE(M)CAPARD'!AY221","v":"n.a."},null,null,{"$f":"+'Datos_Regional (M)'!CF214","v":31.689265485894545},{"$f":"+'Datos_Regional (M)'!CG214","v":8.4192556350793488},{"$f":"+'Datos_Regional (M)'!CH214","v":13.816194883087164},{"$f":"+'Datos_Regional (M)'!CI214","v":32.463644222153199},{"$f":"+'Datos_Regional (M)'!CJ214","v":29.438814747696206},{"$f":"+'Datos_Regional (M)'!CK214","v":19.491880465378351},{"$f":"+'Datos_Regional (M)'!CL214","v":14.677106039466414},null,null,749.40172186333314,324.09333333333331,567.94166666666661,195.40383427206052,187.85833333333332,593.2041499999998,778.37116666666668,2617.9030394687275,3396.2742061353929,null,null,1018.9361926274996,703.07499999999993,1082.8000000000002,556.85965429701048,333.35833333333341,1071.1249999999998,1120.8687069166667,4766.154180257844,5887.0228871745103,null,null,-2148.2511407891166,-2490.7486810391165,null,null,{"$f":"'[1]EXT Comercio(M)'!C221","v":805.61484561999987},{"$f":"'[1]EXT Comercio(M)'!D221","v":349.22000000000025},{"$f":"'[1]EXT Comercio(M)'!E221","v":588.70000000000027},{"$f":"'[1]EXT Comercio(M)'!F221","v":213.57147640040876},{"$f":"'[1]EXT Comercio(M)'!G221","v":207.9},{"$f":"'[1]EXT Comercio(M)'!H221","v":628.57049999999981},{"$f":"'[1]EXT Comercio(M)'!I221","v":819.20399999999995},{"$f":"'[1]EXT Comercio(M)'!K221","v":2793.5768220204081},{"$f":"'[1]EXT Comercio(M)'!L221","v":3612.7808220204024},null,null,{"$f":"'[1]EXT Comercio(M)'!AG221","v":1141.0040802699996},{"$f":"'[1]EXT Comercio(M)'!AH221","v":705.22999999999956},{"$f":"'[1]EXT Comercio(M)'!AI221","v":1259.7},{"$f":"'[1]EXT Comercio(M)'!AJ221","v":678.34543872930044},{"$f":"'[1]EXT Comercio(M)'!AK221","v":389.40000000000009},{"$f":"'[1]EXT Comercio(M)'!AL221","v":1171.8000000000002},{"$f":"'[1]EXT Comercio(M)'!AM221","v":1305.1153130000002},{"$f":"'[1]EXT Comercio(M)'!AO221","v":5345.4795189993019},{"$f":"'[1]EXT Comercio(M)'!AP221","v":6650.594831999304},null,null,{"$f":"'[1]EXT Comercio(M)'!$BS221","v":-2551.9026969788938},{"$f":"'[1]EXT Comercio(M)'!$BT221","v":-3037.8140099788943}]
[null,null,"Setiembre",{"$f":"'[1]REAL IPC(M)'!AD222","v":9.4300842490597478},{"$f":"'[1]REAL IPC(M)'!AE222","v":4.3085165755106649},{"$f":"'[1]REAL IPC(M)'!AF222","v":7.3316113649910584},{"$f":"'[1]REAL IPC(M)'!AG222","v":7.109004739336493},{"$f":"'[1]REAL IPC(M)'!AH222","v":11.55925155925155},{"$f":"'[1]REAL IPC(M)'!AI222","v":6.8126520681265319},{"$f":"'[1]REAL IPC(M)'!AJ222","v":5.1886792452830202},null,null,{"$f":"'[1]REAL IMAE(M)'!AG222","v":6.0208242834098966},{"$f":"'[1]REAL IMAE(M)'!AH222","v":4.8447264879492371},{"$f":"'[1]REAL IMAE(M)'!AI222","v":"n.d."},{"$f":"'[1]REAL IMAE(M)'!AJ222","v":7.5207558558832961},{"$f":"'[1]REAL IMAE(M)'!AK222","v":5.7825616804331608},{"$f":"'[1]REAL IMAE(M)'!AL222","v":"n.d."},{"$f":"'[1]REAL IMAE(M)'!AM222","v":8.7731196054254124},null,null,{"$f":"'[1]EXT ITCER(M)'!C222","v":96.54316466420461},{"$f":"'[1]EXT ITCER(M)'!D222","v":94.748488273463181},{"$f":"'[1]EXT ITCER(M)'!E222","v":73.626617845140032},{"$f":"'[1]EXT ITCER(M)'!F222","v":91.147524835236524},{"$f":"'[1]EXT ITCER(M)'!G222","v":103.94634806353821},{"$f":"'[1]EXT ITCER(M)'!H222","v":95.983047666339985},{"$f":"'[1]EXT ITCER(M)'!I222","v":105.70335425298018},null,null,{"$f":"'[1]EXT TC(M)'!J222","v":-0.41118717116599374},{"$f":"'[1]EXT TC(M)'!K222","v":0},{"$f":"'[1]EXT TC(M)'!L222","v":1.2188673144508635},{"$f":"'[1]EXT TC(M)'!M222","v":0},{"$f":"'[1]EXT TC(M)'!N222","v":4.7677268430074253},{"$f":"'[1]EXT TC(M)'!O222","v":1.0825657445484649},{"$f":"'[1]EXT TC(M)'!P222","v":0},null,null,{"$f":"'[1]EXT RIN(M)'!C222","v":3885.9},{"$f":"'[1]EXT RIN(M)'!D222","v":2416.6},{"$f":"'[1]EXT RIN(M)'!E222","v":4274.6000000000004},{"$f":"'[1]EXT RIN(M)'!F222","v":2523.4002776074221},{"$f":"'[1]EXT RIN(M)'!G222","v":971.1},{"$f":"'[1]EXT RIN(M)'!H222","v":2357.8000000000002},{"$f":"'[1]EXT RIN(M)'!I222","v":1719.7764627567501},null,null,{"$f":"'[1]EXT RIN(M)'!P222","v":63.592305120123505},{"$f":"'[1]EXT RIN(M)'!Q222","v":93.90944806923325},{"$f":"'[1]EXT RIN(M)'!R222","v":105.50155217724948},{"$f":"'[1]EXT RIN(M)'!S222","v":115.00448000806696},{"$f":"'[1]EXT RIN(M)'!T222","v":99.166704074689278},{"$f":"'[1]EXT RIN(M)'!U222","v":47.017569586709087},{"$f":"'[1]EXT RIN(M)'!V222","v":179.82101142795003},null,null,{"$f":"+'[1]MONE(M)CAPARD'!AE222","v":-1.992216549973532},{"$f":"'[1]MONE(M)CAPARD'!AF222","v":0.20274799357944884},{"$f":"'[1]MONE(M)CAPARD'!AG222","v":-2.2468789337282482},{"$f":"'[1]MONE(M)CAPARD'!AH222","v":0.6357964601769911},{"$f":"'[1]MONE(M)CAPARD'!AI222","v":0.67385860513159712},{"$f":"'[1]MONE(M)CAPARD'!AJ222","v":0.10986332574030812},{"$f":"'[1]MONE(M)CAPARD'!AK222","v":-0.62618834080717589},null,null,{"$f":"'[1]MONE(M)CAPARD'!AL222","v":4.085},{"$f":"'[1]MONE(M)CAPARD'!AM222","v":4.5199999999999996},{"$f":"'[1]MONE(M)CAPARD'!AN222","v":4.03},{"$f":"'[1]MONE(M)CAPARD'!AO222","v":4.03},{"$f":"'[1]MONE(M)CAPARD'!AP222","v":6.6},{"$f":"'[1]MONE(M)CAPARD'!AQ222","v":2.74},{"$f":"'[1]MONE(M)CAPARD'!AR222","v":4.53},null,null,{"$f":"'[1]MONE(M)CAPARD'!J222","v":5.7661618322243671},{"$f":"'[1]MONE(M)CAPARD'!K222","v":3.5581787051899356},{"$f":"'[1]MONE(M)CAPARD'!L222","v":5.0948537578674582},{"$f":"'[1]MONE(M)CAPARD'!M222","v":8.5529646017699115},{"$f":"'[1]MONE(M)CAPARD'!N222","v":6.2146773156752175},{"$f":"'[1]MONE(M)CAPARD'!O222","v":7.3561958997721977},{"$f":"'[1]MONE(M)CAPARD'!P222","v":2.1408382809235991},null,null,{"$f":"'[1]MONE(M)CAPARD'!Q222","v":10.16},{"$f":"'[1]MONE(M)CAPARD'!R222","v":8.02},{"$f":"'[1]MONE(M)CAPARD'!S222","v":7.7},{"$f":"'[1]MONE(M)CAPARD'!T222","v":9.69},{"$f":"'[1]MONE(M)CAPARD'!U222","v":10.9},{"$f":"'[1]MONE(M)CAPARD'!V222","v":7.99},{"$f":"'[1]MONE(M)CAPARD'!W222","v":7.4405987577639756},null,null,{"$f":"'[1]MONE(M)CAPARD'!AS222","v":5.52},{"$f":"'[1]MONE(M)CAPARD'!AT222","v":"n.a."},{"$f":"'[1]MONE(M)CAPARD'!AU222","v":5.75},{"$f":"'[1]MONE(M)CAPARD'!AV222","v":6.25},{"$f":"'[1]MONE(M)CAPARD'!AW222","v":"n.a."},{"$f":"'[1]MONE(M)CAPARD'!AX222","v":7},{"$f":"'[1]MONE(M)CAPARD'!AY222","v":"n.a."},null,null,{"$f":"+'Datos_Regional (M)'!CF215","v":33.981181623606169},{"$f":"+'Datos_Regional (M)'!CG215","v":8.8158710874133739},{"$f":"+'Datos_Regional (M)'!CH215","v":12.266744086755853},{"$f":"+'Datos_Regional (M)'!CI215","v":33.910260447110254},{"$f":"+'Datos_Regional (M)'!CJ215","v":28.645484802856135},{"$f":"+'Datos_Regional (M)'!CK215","v":20.652440909919068},{"$f":"+'Datos_Regional (M)'!CL215","v":13.8769944163476},null,null,752.35653394166673,325.05166666666656,562.5333333333333,200.46630550783888,189.79999999999995,585.63991666666641,782.52441666666664,2615.8477561161721,3398.3721727828383,null,null,1028.7619396524999,710.82499999999993,1087.7166666666665,565.4558648346873,335.82500000000005,1084.1249999999998,1134.8115165000002,4812.7094711538539,5947.5209876538538,null,null,-2196.8617150376822,-2549.1488148710155,null,null,{"$f":"'[1]EXT Comercio(M)'!C222","v":748.95380502999978},{"$f":"'[1]EXT Comercio(M)'!D222","v":340.1899999999996},{"$f":"'[1]EXT Comercio(M)'!E222","v":528.99999999999955},{"$f":"'[1]EXT Comercio(M)'!F222","v":201.79799810833379},{"$f":"'[1]EXT Comercio(M)'!G222","v":187.7},{"$f":"'[1]EXT Comercio(M)'!H222","v":533.33439999999973},{"$f":"'[1]EXT Comercio(M)'!I222","v":855.31999999999994},{"$f":"'[1]EXT Comercio(M)'!K222","v":2540.9762031383361},{"$f":"'[1]EXT Comercio(M)'!L222","v":3396.2962031383358},null,null,{"$f":"'[1]EXT Comercio(M)'!AG222","v":1087.1836852300003},{"$f":"'[1]EXT Comercio(M)'!AH222","v":732.75},{"$f":"'[1]EXT Comercio(M)'!AI222","v":1067.7},{"$f":"'[1]EXT Comercio(M)'!AJ222","v":568.69681101449987},{"$f":"'[1]EXT Comercio(M)'!AK222","v":340.00000000000023},{"$f":"'[1]EXT Comercio(M)'!AL222","v":1172.4000000000001},{"$f":"'[1]EXT Comercio(M)'!AM222","v":1276.7085580000003},{"$f":"'[1]EXT Comercio(M)'!AO222","v":4968.7304962444978},{"$f":"'[1]EXT Comercio(M)'!AP222","v":6245.4390542444962},null,null,{"$f":"'[1]EXT Comercio(M)'!$BS222","v":-2427.7542931061689},{"$f":"'[1]EXT Comercio(M)'!$BT222","v":-2849.1428511061677}]
[null,null,"Octubre",{"$f":"'[1]REAL IPC(M)'!AD223","v":9.8439824974712664},{"$f":"'[1]REAL IPC(M)'!AE223","v":5.4571940833706893},{"$f":"'[1]REAL IPC(M)'!AF223","v":7.7172760996290375},{"$f":"'[1]REAL IPC(M)'!AG223","v":8.2840236686390547},{"$f":"'[1]REAL IPC(M)'!AH223","v":13.349891338093766},{"$f":"'[1]REAL IPC(M)'!AI223","v":7.2107240185607822},{"$f":"'[1]REAL IPC(M)'!AJ223","v":5.45625587958608},null,null,{"$f":"'[1]REAL IMAE(M)'!AG223","v":5.6002882568110479},{"$f":"'[1]REAL IMAE(M)'!AH223","v":5.2093203234461578},{"$f":"'[1]REAL IMAE(M)'!AI223","v":"n.d."},{"$f":"'[1]REAL IMAE(M)'!AJ223","v":5.8706605424630274},{"$f":"'[1]REAL IMAE(M)'!AK223","v":6.0479765064655711},{"$f":"'[1]REAL IMAE(M)'!AL223","v":"n.d."},{"$f":"'[1]REAL IMAE(M)'!AM223","v":9.2679938744257235},null,null,{"$f":"'[1]EXT ITCER(M)'!C223","v":96.241230565318801},{"$f":"'[1]EXT ITCER(M)'!D223","v":94.291559530762555},{"$f":"'[1]EXT ITCER(M)'!E223","v":73.73324603906886},{"$f":"'[1]EXT ITCER(M)'!F223","v":90.244400190458123},{"$f":"'[1]EXT ITCER(M)'!G223","v":102.72282027629517},{"$f":"'[1]EXT ITCER(M)'!H223","v":96.160395803312412},{"$f":"'[1]EXT ITCER(M)'!I223","v":105.362500852991},null,null,{"$f":"'[1]EXT TC(M)'!J223","v":-0.27729724546007056},{"$f":"'[1]EXT TC(M)'!K223","v":0},{"$f":"'[1]EXT TC(M)'!L223","v":1.3927752414213912},{"$f":"'[1]EXT TC(M)'!M223","v":0},{"$f":"'[1]EXT TC(M)'!N223","v":4.9643281807372253},{"$f":"'[1]EXT TC(M)'!O223","v":-5.5566011525464129E-2},{"$f":"'[1]EXT TC(M)'!P223","v":0},null,null,{"$f":"'[1]EXT RIN(M)'!C223","v":3830.9},{"$f":"'[1]EXT RIN(M)'!D223","v":2400.5},{"$f":"'[1]EXT RIN(M)'!E223","v":4288},{"$f":"'[1]EXT RIN(M)'!F223","v":2432.7214627310786},{"$f":"'[1]EXT RIN(M)'!G223","v":937},{"$f":"'[1]EXT RIN(M)'!H223","v":2349.4},{"$f":"'[1]EXT RIN(M)'!I223","v":1778.0790366305998},null,null,{"$f":"'[1]EXT RIN(M)'!P223","v":63.03120920626025},{"$f":"'[1]EXT RIN(M)'!Q223","v":91.211372904997688},{"$f":"'[1]EXT RIN(M)'!R223","v":108.84084445848478},{"$f":"'[1]EXT RIN(M)'!S223","v":114.72045926651218},{"$f":"'[1]EXT RIN(M)'!T223","v":102.35668617667295},{"$f":"'[1]EXT RIN(M)'!U223","v":46.033940308528813},{"$f":"'[1]EXT RIN(M)'!V223","v":181.85096832776759},null,null,{"$f":"+'[1]MONE(M)CAPARD'!AE223","v":-2.5891108759979073},{"$f":"'[1]MONE(M)CAPARD'!AF223","v":-0.9455913292955086},{"$f":"'[1]MONE(M)CAPARD'!AG223","v":-2.6061521431646235},{"$f":"'[1]MONE(M)CAPARD'!AH223","v":-0.38234972677595752},{"$f":"'[1]MONE(M)CAPARD'!AI223","v":-0.82319960390700753},{"$f":"'[1]MONE(M)CAPARD'!AJ223","v":-0.14991412475953161},{"$f":"'[1]MONE(M)CAPARD'!AK223","v":-0.83091882247993143},null,null,{"$f":"'[1]MONE(M)CAPARD'!AL223","v":4.0750000000000002},{"$f":"'[1]MONE(M)CAPARD'!AM223","v":4.46},{"$f":"'[1]MONE(M)CAPARD'!AN223","v":3.92},{"$f":"'[1]MONE(M)CAPARD'!AO223","v":4.01},{"$f":"'[1]MONE(M)CAPARD'!AP223","v":6.2},{"$f":"'[1]MONE(M)CAPARD'!AQ223","v":2.56},{"$f":"'[1]MONE(M)CAPARD'!AR223","v":4.58},null,null,{"$f":"'[1]MONE(M)CAPARD'!J223","v":5.5679131104605863},{"$f":"'[1]MONE(M)CAPARD'!K223","v":2.6672489639783192},{"$f":"'[1]MONE(M)CAPARD'!L223","v":4.755712440809301},{"$f":"'[1]MONE(M)CAPARD'!M223","v":7.3842622950819674},{"$f":"'[1]MONE(M)CAPARD'!N223","v":4.7329236675828037},{"$f":"'[1]MONE(M)CAPARD'!O223","v":6.9482563891179092},{"$f":"'[1]MONE(M)CAPARD'!P223","v":1.9382060910127283},null,null,{"$f":"'[1]MONE(M)CAPARD'!Q223","v":10.210000000000001},{"$f":"'[1]MONE(M)CAPARD'!R223","v":8.27},{"$f":"'[1]MONE(M)CAPARD'!S223","v":7.57},{"$f":"'[1]MONE(M)CAPARD'!T223","v":9.73},{"$f":"'[1]MONE(M)CAPARD'!U223","v":11.3},{"$f":"'[1]MONE(M)CAPARD'!V223","v":8.64},{"$f":"'[1]MONE(M)CAPARD'!W223","v":7.5002154543981856},null,null,{"$f":"'[1]MONE(M)CAPARD'!AS223","v":5.52},{"$f":"'[1]MONE(M)CAPARD'!AT223","v":"n.a."},{"$f":"'[1]MONE(M)CAPARD'!AU223","v":6},{"$f":"'[1]MONE(M)CAPARD'!AV223","v":6.75},{"$f":"'[1]MONE(M)CAPARD'!AW223","v":"n.a."},{"$f":"'[1]MONE(M)CAPARD'!AX223","v":7},{"$f":"'[1]MONE(M)CAPARD'!AY223","v":"n.a."},null,null,{"$f":"+'Datos_Regional (M)'!CF216","v":38.018408149057059},{"$f":"+'Datos_Regional (M)'!CG216","v":8.561781786937317},{"$f":"+'Datos_Regional (M)'!CH216","v":12.239782962650981},{"$f":"+'Datos_Regional (M)'!CI216","v":32.410606467544191},{"$f":"+'Datos_Regional (M)'!CJ216","v":30.522150238013456},{"$f":"+'Datos_Regional (M)'!CK216","v":21.35654644900271},{"$f":"+'Datos_Regional (M)'!CL216","v":14.977994436389652},null,null,764.85920802166675,330.22249999999991,564.58333333333337,203.64756627904345,191.50833333333335,586.69119999999987,793.65674999999999,2641.5121409673766,3435.1688909673762,null,null,1045.2035933408335,727.74249999999995,1103.9750000000001,577.3165859261361,343.80000000000013,1092.9416666666664,1166.6644004166667,4890.9793459336352,6057.6437463503025,null,null,-2249.467204966259,-2622.4748553829259,null,null,{"$f":"'[1]EXT Comercio(M)'!C223","v":855.71888386000046},{"$f":"'[1]EXT Comercio(M)'!D223","v":349.05000000000018},{"$f":"'[1]EXT Comercio(M)'!E223","v":557.80000000000041},{"$f":"'[1]EXT Comercio(M)'!F223","v":192.06288495031004},{"$f":"'[1]EXT Comercio(M)'!G223","v":203.8},{"$f":"'[1]EXT Comercio(M)'!H223","v":587.5024999999996},{"$f":"'[1]EXT Comercio(M)'!I223","v":1091.328},{"$f":"'[1]EXT Comercio(M)'!K223","v":2745.9342688103061},{"$f":"'[1]EXT Comercio(M)'!L223","v":3837.2622688103074},null,null,{"$f":"'[1]EXT Comercio(M)'!AG223","v":1222.9790174999998},{"$f":"'[1]EXT Comercio(M)'!AH223","v":831.09999999999945},{"$f":"'[1]EXT Comercio(M)'!AI223","v":1273.9000000000001},{"$f":"'[1]EXT Comercio(M)'!AJ223","v":666.02170068195028},{"$f":"'[1]EXT Comercio(M)'!AK223","v":423.30000000000007},{"$f":"'[1]EXT Comercio(M)'!AL223","v":1221.9999999999991},{"$f":"'[1]EXT Comercio(M)'!AM223","v":1563.5625559999999},{"$f":"'[1]EXT Comercio(M)'!AO223","v":5639.3007181819485},{"$f":"'[1]EXT Comercio(M)'!AP223","v":7202.8632741819529},null,null,{"$f":"'[1]EXT Comercio(M)'!$BS223","v":-2893.3664493716351},{"$f":"'[1]EXT Comercio(M)'!$BT223","v":-3365.6010053716345}]
[null,null,"Noviembre",{"$f":"'[1]REAL IPC(M)'!AD224","v":10.09065573246583},{"$f":"'[1]REAL IPC(M)'!AE224","v":6.2249443207127042},{"$f":"'[1]REAL IPC(M)'!AF224","v":9.1292319852456831},{"$f":"'[1]REAL IPC(M)'!AG224","v":9.5938787522071696},{"$f":"'[1]REAL IPC(M)'!AH224","v":17.337715694330317},{"$f":"'[1]REAL IPC(M)'!AI224","v":8.4455503512880767},{"$f":"'[1]REAL IPC(M)'!AJ224","v":6.4849624060150237},null,null,{"$f":"'[1]REAL IMAE(M)'!AG224","v":5.5335717789700336},{"$f":"'[1]REAL IMAE(M)'!AH224","v":5.9082649584410305},{"$f":"'[1]REAL IMAE(M)'!AI224","v":"n.d."},{"$f":"'[1]REAL IMAE(M)'!AJ224","v":5.6124370660500391},{"$f":"'[1]REAL IMAE(M)'!AK224","v":6.5823969492687695},{"$f":"'[1]REAL IMAE(M)'!AL224","v":"n.d."},{"$f":"'[1]REAL IMAE(M)'!AM224","v":9.8959284279715121},null,null,{"$f":"'[1]EXT ITCER(M)'!C224","v":94.646456576957391},{"$f":"'[1]EXT ITCER(M)'!D224","v":93.573727357878568},{"$f":"'[1]EXT ITCER(M)'!E224","v":72.030989034932276},{"$f":"'[1]EXT ITCER(M)'!F224","v":89.220281375044721},{"$f":"'[1]EXT ITCER(M)'!G224","v":99.489275229963582},{"$f":"'[1]EXT ITCER(M)'!H224","v":94.887161708075652},{"$f":"'[1]EXT ITCER(M)'!I224","v":104.8657544762938},null,null,{"$f":"'[1]EXT TC(M)'!J224","v":-0.6743560786589059},{"$f":"'[1]EXT TC(M)'!K224","v":0},{"$f":"'[1]EXT TC(M)'!L224","v":0.40455194543369533},{"$f":"'[1]EXT TC(M)'!M224","v":0},{"$f":"'[1]EXT TC(M)'!N224","v":4.8982167227560192},{"$f":"'[1]EXT TC(M)'!O224","v":-0.45025179534550963},{"$f":"'[1]EXT TC(M)'!P224","v":0},null,null,{"$f":"'[1]EXT RIN(M)'!C224","v":3798.9},{"$f":"'[1]EXT RIN(M)'!D224","v":2284.3000000000002},{"$f":"'[1]EXT RIN(M)'!E224","v":4301.8},{"$f":"'[1]EXT RIN(M)'!F224","v":2366.8284898989687},{"$f":"'[1]EXT RIN(M)'!G224","v":1042},{"$f":"'[1]EXT RIN(M)'!H224","v":2296.6999999999998},{"$f":"'[1]EXT RIN(M)'!I224","v":1784.0964512599999},null,null,{"$f":"'[1]EXT RIN(M)'!P224","v":60.098166460126166},{"$f":"'[1]EXT RIN(M)'!Q224","v":88.68843000940349},{"$f":"'[1]EXT RIN(M)'!R224","v":108.37753402131352},{"$f":"'[1]EXT RIN(M)'!S224","v":110.87934538333208},{"$f":"'[1]EXT RIN(M)'!T224","v":110.55186092174083},{"$f":"'[1]EXT RIN(M)'!U224","v":44.947834656126702},{"$f":"'[1]EXT RIN(M)'!V224","v":178.6015501537459},null,null,{"$f":"+'[1]MONE(M)CAPARD'!AE224","v":-2.8073733523547295},{"$f":"'[1]MONE(M)CAPARD'!AF224","v":-1.8027256525841373},{"$f":"'[1]MONE(M)CAPARD'!AG224","v":-3.8387807822308035},{"$f":"'[1]MONE(M)CAPARD'!AH224","v":-1.4817239527389807},{"$f":"'[1]MONE(M)CAPARD'!AI224","v":-3.771400514974895},{"$f":"'[1]MONE(M)CAPARD'!AJ224","v":-1.3606370630314673},{"$f":"'[1]MONE(M)CAPARD'!AK224","v":-1.7889496910856006},null,null,{"$f":"'[1]MONE(M)CAPARD'!AL224","v":3.9649999999999999},{"$f":"'[1]MONE(M)CAPARD'!AM224","v":4.3099999999999996},{"$f":"'[1]MONE(M)CAPARD'!AN224","v":3.67},{"$f":"'[1]MONE(M)CAPARD'!AO224","v":4.13},{"$f":"'[1]MONE(M)CAPARD'!AP224","v":6.94},{"$f":"'[1]MONE(M)CAPARD'!AQ224","v":2.52},{"$f":"'[1]MONE(M)CAPARD'!AR224","v":4.58},null,null,{"$f":"'[1]MONE(M)CAPARD'!J224","v":5.5402924316813467},{"$f":"'[1]MONE(M)CAPARD'!K224","v":1.3792011741272585},{"$f":"'[1]MONE(M)CAPARD'!L224","v":3.446160067600196},{"$f":"'[1]MONE(M)CAPARD'!M224","v":6.1646885069817525},{"$f":"'[1]MONE(M)CAPARD'!N224","v":1.020361778222185},{"$f":"'[1]MONE(M)CAPARD'!O224","v":6.126991496828162},{"$f":"'[1]MONE(M)CAPARD'!P224","v":0.94075450148656758},null,null,{"$f":"'[1]MONE(M)CAPARD'!Q224","v":10.32},{"$f":"'[1]MONE(M)CAPARD'!R224","v":7.69},{"$f":"'[1]MONE(M)CAPARD'!S224","v":7.53},{"$f":"'[1]MONE(M)CAPARD'!T224","v":9.81},{"$f":"'[1]MONE(M)CAPARD'!U224","v":11.4},{"$f":"'[1]MONE(M)CAPARD'!V224","v":7.96},{"$f":"'[1]MONE(M)CAPARD'!W224","v":7.4867244832558892},null,null,{"$f":"'[1]MONE(M)CAPARD'!AS224","v":5.52},{"$f":"'[1]MONE(M)CAPARD'!AT224","v":"n.a."},{"$f":"'[1]MONE(M)CAPARD'!AU224","v":6.25},{"$f":"'[1]MONE(M)CAPARD'!AV224","v":7},{"$f":"'[1]MONE(M)CAPARD'!AW224","v":"n.a."},{"$f":"'[1]MONE(M)CAPARD'!AX224","v":7},{"$f":"'[1]MONE(M)CAPARD'!AY224","v":"n.a."},null,null,{"$f":"+'Datos_Regional (M)'!CF217","v":36.685443095222148},{"$f":"+'Datos_Regional (M)'!CG217","v":8.3508424968524508},{"$f":"+'Datos_Regional (M)'!CH217","v":13.30830496851927},{"$f":"+'Datos_Regional (M)'!CI217","v":31.961848319293829},{"$f":"+'Datos_Regional (M)'!CJ217","v":31.999821293135099},{"$f":"+'Datos_Regional (M)'!CK217","v":29.586241076177778},{"$f":"+'Datos_Regional (M)'!CL217","v":15.398822307000891},null,null,771.72281219833314,330.65916666666658,568.22500000000014,205.51983036221691,193.50000000000003,585.25128333333305,804.41741666666655,2654.8780925605497,3459.2955092272168,null,null,1062.8402213533334,735.71833333333325,1114.675,591.83034734581599,358.05,1114.0499999999997,1190.8146709999999,4977.1639020324819,6167.9785730324811,null,null,-2322.2858094719318,-2708.6830638052656,null,null,{"$f":"'[1]EXT Comercio(M)'!C224","v":813.17907718999959},{"$f":"'[1]EXT Comercio(M)'!D224","v":314.1899999999996},{"$f":"'[1]EXT Comercio(M)'!E224","v":539.60000000000036},{"$f":"'[1]EXT Comercio(M)'!F224","v":205.56567530193252},{"$f":"'[1]EXT Comercio(M)'!G224","v":193.30000000000007},{"$f":"'[1]EXT Comercio(M)'!H224","v":569.73139999999967},{"$f":"'[1]EXT Comercio(M)'!I224","v":975.99499999999989},{"$f":"'[1]EXT Comercio(M)'!K224","v":2635.5661524919342},{"$f":"'[1]EXT Comercio(M)'!L224","v":3611.5611524919368},null,null,{"$f":"'[1]EXT Comercio(M)'!AG224","v":1314.2721490100012},{"$f":"'[1]EXT Comercio(M)'!AH224","v":791.58999999999924},{"$f":"'[1]EXT Comercio(M)'!AI224","v":1210.6000000000004},{"$f":"'[1]EXT Comercio(M)'!AJ224","v":703.37555576919931},{"$f":"'[1]EXT Comercio(M)'!AK224","v":489.9},{"$f":"'[1]EXT Comercio(M)'!AL224","v":1336.6000000000008},{"$f":"'[1]EXT Comercio(M)'!AM224","v":1248.1117340000001},{"$f":"'[1]EXT Comercio(M)'!AO224","v":5846.3377047791946},{"$f":"'[1]EXT Comercio(M)'!AP224","v":7094.4494387791929},null,null,{"$f":"'[1]EXT Comercio(M)'!$BS224","v":-3210.7715522872677},{"$f":"'[1]EXT Comercio(M)'!$BT224","v":-3482.8882862872706}]
[null,null,"Diciembre ",{"$f":"'[1]REAL IPC(M)'!AD225","v":10.805524306129895},{"$f":"'[1]REAL IPC(M)'!AE225","v":4.8570482393200036},{"$f":"'[1]REAL IPC(M)'!AF225","v":8.746260892183626},{"$f":"'[1]REAL IPC(M)'!AG225","v":8.8733216579100915},{"$f":"'[1]REAL IPC(M)'!AH225","v":16.870514505205698},{"$f":"'[1]REAL IPC(M)'!AI225","v":8.8775880857246747},{"$f":"'[1]REAL IPC(M)'!AJ225","v":6.3551401869158948},null,null,{"$f":"'[1]REAL IMAE(M)'!AG225","v":5.5004992992133852},{"$f":"'[1]REAL IMAE(M)'!AH225","v":6.5478301176228353},{"$f":"'[1]REAL IMAE(M)'!AI225","v":"n.d."},{"$f":"'[1]REAL IMAE(M)'!AJ225","v":5.5718630514845389},{"$f":"'[1]REAL IMAE(M)'!AK225","v":7.1231759549683984},{"$f":"'[1]REAL IMAE(M)'!AL225","v":"n.d."},{"$f":"'[1]REAL IMAE(M)'!AM225","v":10.501510574018125},null,null,{"$f":"'[1]EXT ITCER(M)'!C225","v":90.199439227439711},{"$f":"'[1]EXT ITCER(M)'!D225","v":93.907055112425141},{"$f":"'[1]EXT ITCER(M)'!E225","v":71.169064518613752},{"$f":"'[1]EXT ITCER(M)'!F225","v":89.017005179819321},{"$f":"'[1]EXT ITCER(M)'!G225","v":98.484676357381289},{"$f":"'[1]EXT ITCER(M)'!H225","v":94.065738642866251},{"$f":"'[1]EXT ITCER(M)'!I225","v":104.33496715977505},null,null,{"$f":"'[1]EXT TC(M)'!J225","v":-3.7726067127003224},{"$f":"'[1]EXT TC(M)'!K225","v":0},{"$f":"'[1]EXT TC(M)'!L225","v":0.25634214583453679},{"$f":"'[1]EXT TC(M)'!M225","v":0},{"$f":"'[1]EXT TC(M)'!N225","v":4.7596276814607945},{"$f":"'[1]EXT TC(M)'!O225","v":1.3096331938970509},{"$f":"'[1]EXT TC(M)'!P225","v":0},null,null,{"$f":"'[1]EXT RIN(M)'!C225","v":4113.6000000000004},{"$f":"'[1]EXT RIN(M)'!D225","v":2196.1},{"$f":"'[1]EXT RIN(M)'!E225","v":4320.3},{"$f":"'[1]EXT RIN(M)'!F225","v":2514.3013647104272},{"$f":"'[1]EXT RIN(M)'!G225","v":1018.6},{"$f":"'[1]EXT RIN(M)'!H225","v":2394.9},{"$f":"'[1]EXT RIN(M)'!I225","v":2071.6448292949999},null,null,{"$f":"'[1]EXT RIN(M)'!P225","v":62.761004890056249},{"$f":"'[1]EXT RIN(M)'!Q225","v":84.362689264798803},{"$f":"'[1]EXT RIN(M)'!R225","v":104.48929136878658},{"$f":"'[1]EXT RIN(M)'!S225","v":109.25736672958514},{"$f":"'[1]EXT RIN(M)'!T225","v":102.81078639129224},{"$f":"'[1]EXT RIN(M)'!U225","v":46.002647914769852},{"$f":"'[1]EXT RIN(M)'!V225","v":205.64232963566442},null,null,{"$f":"+'[1]MONE(M)CAPARD'!AE225","v":-3.4344174895252664},{"$f":"'[1]MONE(M)CAPARD'!AF225","v":-0.46448784082534078},{"$f":"'[1]MONE(M)CAPARD'!AG225","v":-3.5277175147999644},{"$f":"'[1]MONE(M)CAPARD'!AH225","v":-0.73784986595173541},{"$f":"'[1]MONE(M)CAPARD'!AI225","v":-3.7832725992908696},{"$f":"'[1]MONE(M)CAPARD'!AJ225","v":-1.549986655101097},{"$f":"'[1]MONE(M)CAPARD'!AK225","v":-1.6690685413005335},null,null,{"$f":"'[1]MONE(M)CAPARD'!AL225","v":3.9450000000000003},{"$f":"'[1]MONE(M)CAPARD'!AM225","v":4.37},{"$f":"'[1]MONE(M)CAPARD'!AN225","v":3.63},{"$f":"'[1]MONE(M)CAPARD'!AO225","v":4.21},{"$f":"'[1]MONE(M)CAPARD'!AP225","v":6.58},{"$f":"'[1]MONE(M)CAPARD'!AQ225","v":3.09},{"$f":"'[1]MONE(M)CAPARD'!AR225","v":4.58},null,null,{"$f":"'[1]MONE(M)CAPARD'!J225","v":4.9225665669887171},{"$f":"'[1]MONE(M)CAPARD'!K225","v":2.6635803768817867},{"$f":"'[1]MONE(M)CAPARD'!L225","v":3.8104658255097901},{"$f":"'[1]MONE(M)CAPARD'!M225","v":6.9683538873994726},{"$f":"'[1]MONE(M)CAPARD'!N225","v":1.2005638488919501},{"$f":"'[1]MONE(M)CAPARD'!O225","v":5.935484086208036},{"$f":"'[1]MONE(M)CAPARD'!P225","v":1.0363330015964629},null,null,{"$f":"'[1]MONE(M)CAPARD'!Q225","v":10.1},{"$f":"'[1]MONE(M)CAPARD'!R225","v":7.65},{"$f":"'[1]MONE(M)CAPARD'!S225","v":7.5200000000000005},{"$f":"'[1]MONE(M)CAPARD'!T225","v":9.85},{"$f":"'[1]MONE(M)CAPARD'!U225","v":10.9},{"$f":"'[1]MONE(M)CAPARD'!V225","v":7.99},{"$f":"'[1]MONE(M)CAPARD'!W225","v":7.4573336035670863},null,null,{"$f":"'[1]MONE(M)CAPARD'!AS225","v":5.52},{"$f":"'[1]MONE(M)CAPARD'!AT225","v":"n.a."},{"$f":"'[1]MONE(M)CAPARD'!AU225","v":6.5},{"$f":"'[1]MONE(M)CAPARD'!AV225","v":7.5},{"$f":"'[1]MONE(M)CAPARD'!AW225","v":"n.a."},{"$f":"'[1]MONE(M)CAPARD'!AX225","v":7},{"$f":"'[1]MONE(M)CAPARD'!AY225","v":"n.a."},null,null,{"$f":"+'Datos_Regional (M)'!CF218","v":37.383995581672337},{"$f":"+'Datos_Regional (M)'!CG218","v":7.8059213377459358},{"$f":"+'Datos_Regional (M)'!CH218","v":13.004888400500914},{"$f":"+'Datos_Regional (M)'!CI218","v":32.422324099251384},{"$f":"+'Datos_Regional (M)'!CJ218","v":31.972200044493061},{"$f":"+'Datos_Regional (M)'!CK218","v":28.886715560482411},{"$f":"+'Datos_Regional (M)'!CL218","v":18.616500220957821},null,null,778.03571097583335,334.54583333333329,574.80833333333339,210.74938722034696,194.3666666666667,596.68333333333339,809.64208333333318,2689.1892648628473,3498.83134819618,null,null,1079.4224542308332,735.05083333333323,1131.3166666666666,602.02985110090015,363.62500000000006,1133.0833333333333,1208.6714899166666,5044.5281386650668,6253.1996285817331,null,null,-2355.3388738022195,-2754.3682803855531,null,null,{"$f":"'[1]EXT Comercio(M)'!C225","v":714.11253600000055},{"$f":"'[1]EXT Comercio(M)'!D225","v":329.04000000000042},{"$f":"'[1]EXT Comercio(M)'!E225","v":563.19999999999936},{"$f":"'[1]EXT Comercio(M)'!F225","v":203.79368605859872},{"$f":"'[1]EXT Comercio(M)'!G225","v":184.30000000000004},{"$f":"'[1]EXT Comercio(M)'!H225","v":654.35680000000229},{"$f":"'[1]EXT Comercio(M)'!I225","v":668.28499999999997},{"$f":"'[1]EXT Comercio(M)'!K225","v":2648.8030220586043},{"$f":"'[1]EXT Comercio(M)'!L225","v":3317.0880220585968},null,null,{"$f":"'[1]EXT Comercio(M)'!AG225","v":1104.6996995599984},{"$f":"'[1]EXT Comercio(M)'!AH225","v":662.68000000000029},{"$f":"'[1]EXT Comercio(M)'!AI225","v":1165.4999999999991},{"$f":"'[1]EXT Comercio(M)'!AJ225","v":645.33497629101657},{"$f":"'[1]EXT Comercio(M)'!AK225","v":385.89999999999986},{"$f":"'[1]EXT Comercio(M)'!AL225","v":1238.7999999999997},{"$f":"'[1]EXT Comercio(M)'!AM225","v":1189.0413080000001},{"$f":"'[1]EXT Comercio(M)'!AO225","v":5202.9146758510178},{"$f":"'[1]EXT Comercio(M)'!AP225","v":6391.9559838510177},null,null,{"$f":"'[1]EXT Comercio(M)'!$BS225","v":-2554.1116537924136},{"$f":"'[1]EXT Comercio(M)'!$BT225","v":-3074.8679617924136}]
[null,2008,"Enero",{"$f":"'[1]REAL IPC(M)'!AD226","v":10.562682381513042},{"$f":"'[1]REAL IPC(M)'!AE226","v":4.7468354430379858},{"$f":"'[1]REAL IPC(M)'!AF226","v":8.3884217957769032},{"$f":"'[1]REAL IPC(M)'!AG226","v":8.8747099767981332},{"$f":"'[1]REAL IPC(M)'!AH226","v":17.284569138276552},{"$f":"'[1]REAL IPC(M)'!AI226","v":9.0473962644402057},{"$f":"'[1]REAL IPC(M)'!AJ226","v":7.6492537313432738},null,null,{"$f":"'[1]REAL IMAE(M)'!AG226","v":5.3934961918419946},{"$f":"'[1]REAL IMAE(M)'!AH226","v":6.8584311752311962},{"$f":"'[1]REAL IMAE(M)'!AI226","v":"n.d."},{"$f":"'[1]REAL IMAE(M)'!AJ226","v":5.5641697421002529},{"$f":"'[1]REAL IMAE(M)'!AK226","v":7.4964217391617103},{"$f":"'[1]REAL IMAE(M)'!AL226","v":7.4492982449425833},{"$f":"'[1]REAL IMAE(M)'!AM226","v":12.273520736772417},null,null,{"$f":"'[1]EXT ITCER(M)'!C226","v":89.781830211770327},{"$f":"'[1]EXT ITCER(M)'!D226","v":93.390664197196045},{"$f":"'[1]EXT ITCER(M)'!E226","v":71.574882950816317},{"$f":"'[1]EXT ITCER(M)'!F226","v":88.864495538317556},{"$f":"'[1]EXT ITCER(M)'!G226","v":98.088245618042762},{"$f":"'[1]EXT ITCER(M)'!H226","v":94.177388665527488},{"$f":"'[1]EXT ITCER(M)'!I226","v":103.3997963965486},null,null,{"$f":"'[1]EXT TC(M)'!J226","v":-4.1739397814222139},{"$f":"'[1]EXT TC(M)'!K226","v":0},{"$f":"'[1]EXT TC(M)'!L226","v":0.33733100386910347},{"$f":"'[1]EXT TC(M)'!M226","v":-2.5925925925921897E-2},{"$f":"'[1]EXT TC(M)'!N226","v":4.6671489467424001},{"$f":"'[1]EXT TC(M)'!O226","v":0.16557273924963459},{"$f":"'[1]EXT TC(M)'!P226","v":0},null,null,{"$f":"'[1]EXT RIN(M)'!C226","v":4397.3},{"$f":"'[1]EXT RIN(M)'!D226","v":2221.1999999999998},{"$f":"'[1]EXT RIN(M)'!E226","v":4319.6000000000004},{"$f":"'[1]EXT RIN(M)'!F226","v":2426.456912816021},{"$f":"'[1]EXT RIN(M)'!G226","v":985.7},{"$f":"'[1]EXT RIN(M)'!H226","v":2328.4},{"$f":"'[1]EXT RIN(M)'!I226","v":2103.9093223349996},null,null,{"$f":"'[1]EXT RIN(M)'!P226","v":63.238524256471329},{"$f":"'[1]EXT RIN(M)'!Q226","v":87.258533457943471},{"$f":"'[1]EXT RIN(M)'!R226","v":106.68222235657143},{"$f":"'[1]EXT RIN(M)'!S226","v":112.49310045941637},{"$f":"'[1]EXT RIN(M)'!T226","v":101.03547654863246},{"$f":"'[1]EXT RIN(M)'!U226","v":45.830523410385403},{"$f":"'[1]EXT RIN(M)'!V226","v":197.01581925100388},null,null,{"$f":"+'[1]MONE(M)CAPARD'!AE226","v":-2.9962029774948271},{"$f":"'[1]MONE(M)CAPARD'!AF226","v":-0.59842900302115853},{"$f":"'[1]MONE(M)CAPARD'!AG226","v":-3.181540738986258},{"$f":"'[1]MONE(M)CAPARD'!AH226","v":-0.63808204581778494},{"$f":"'[1]MONE(M)CAPARD'!AI226","v":-4.0558765237270702},{"$f":"'[1]MONE(M)CAPARD'!AJ226","v":-1.7949958747236066},{"$f":"'[1]MONE(M)CAPARD'!AK226","v":-3.3992374350086569},null,null,{"$f":"'[1]MONE(M)CAPARD'!AL226","v":3.855},{"$f":"'[1]MONE(M)CAPARD'!AM226","v":4.12},{"$f":"'[1]MONE(M)CAPARD'!AN226","v":3.57},{"$f":"'[1]MONE(M)CAPARD'!AO226","v":4.3},{"$f":"'[1]MONE(M)CAPARD'!AP226","v":6.88},{"$f":"'[1]MONE(M)CAPARD'!AQ226","v":2.67},{"$f":"'[1]MONE(M)CAPARD'!AR226","v":3.99},null,null,{"$f":"'[1]MONE(M)CAPARD'!J226","v":5.2371002815396039},{"$f":"'[1]MONE(M)CAPARD'!K226","v":2.7334138972809563},{"$f":"'[1]MONE(M)CAPARD'!L226","v":4.0147998578872617},{"$f":"'[1]MONE(M)CAPARD'!M226","v":6.9118806606286718},{"$f":"'[1]MONE(M)CAPARD'!N226","v":2.6283527092492625},{"$f":"'[1]MONE(M)CAPARD'!O226","v":5.7796920893699877},{"$f":"'[1]MONE(M)CAPARD'!P226","v":-0.35422843010624872},null,null,{"$f":"'[1]MONE(M)CAPARD'!Q226","v":9.8310484430300811},{"$f":"'[1]MONE(M)CAPARD'!R226","v":7.61},{"$f":"'[1]MONE(M)CAPARD'!S226","v":7.4499999999999993},{"$f":"'[1]MONE(M)CAPARD'!T226","v":9.77},{"$f":"'[1]MONE(M)CAPARD'!U226","v":11.2},{"$f":"'[1]MONE(M)CAPARD'!V226","v":8.5500000000000007},{"$f":"'[1]MONE(M)CAPARD'!W226","v":7.2679294698296442},null,null,{"$f":"'[1]MONE(M)CAPARD'!AS226","v":5.99},{"$f":"'[1]MONE(M)CAPARD'!AT226","v":"n.a."},{"$f":"'[1]MONE(M)CAPARD'!AU226","v":6.5},{"$f":"'[1]MONE(M)CAPARD'!AV226","v":7.5},{"$f":"'[1]MONE(M)CAPARD'!AW226","v":"n.a."},{"$f":"'[1]MONE(M)CAPARD'!AX226","v":7},{"$f":"'[1]MONE(M)CAPARD'!AY226","v":"n.a."},null,null,{"$f":"+'Datos_Regional (M)'!CF219","v":39.171033006855495},{"$f":"+'Datos_Regional (M)'!CG219","v":8.1961879990541053},{"$f":"+'Datos_Regional (M)'!CH219","v":12.106578238569554},{"$f":"+'Datos_Regional (M)'!CI219","v":31.006310498154164},{"$f":"+'Datos_Regional (M)'!CJ219","v":30.773474301659554},{"$f":"+'Datos_Regional (M)'!CK219","v":29.125838582409958},{"$f":"+'Datos_Regional (M)'!CL219","v":18.228357774085158},null,null,780.13154925499987,336.33416666666659,578.93333333333339,212.3194966754545,197.8416666666667,600.14192500000001,817.44883358333334,2705.7021375971212,3523.1509711804542,null,null,1098.2299104000001,746.9649999999998,1135.8083333333332,617.40508347639025,371.67500000000013,1160.8083333333332,1231.9023992499999,5130.8916605430559,6362.7940597930565,null,null,-2425.1895229459356,-2839.6430886126022,null,null,{"$f":"'[1]EXT Comercio(M)'!C226","v":722.48354146999998},{"$f":"'[1]EXT Comercio(M)'!D226","v":332.76},{"$f":"'[1]EXT Comercio(M)'!E226","v":593.6},{"$f":"'[1]EXT Comercio(M)'!F226","v":215.12963907},{"$f":"'[1]EXT Comercio(M)'!G226","v":219.10000000000002},{"$f":"'[1]EXT Comercio(M)'!H226","v":515.15440000000001},{"$f":"'[1]EXT Comercio(M)'!I226","v":764.04900300000008},{"$f":"'[1]EXT Comercio(M)'!K226","v":2598.2275805399995},{"$f":"'[1]EXT Comercio(M)'!L226","v":3362.27658354},null,null,{"$f":"'[1]EXT Comercio(M)'!AG226","v":1283.19183266},{"$f":"'[1]EXT Comercio(M)'!AH226","v":793.79},{"$f":"'[1]EXT Comercio(M)'!AI226","v":1147.0999999999999},{"$f":"'[1]EXT Comercio(M)'!AJ226","v":654.41248124000003},{"$f":"'[1]EXT Comercio(M)'!AK226","v":400.29999999999995},{"$f":"'[1]EXT Comercio(M)'!AL226","v":1232},{"$f":"'[1]EXT Comercio(M)'!AM226","v":1366.3668700000003},{"$f":"'[1]EXT Comercio(M)'!AO226","v":5510.7943138999999},{"$f":"'[1]EXT Comercio(M)'!AP226","v":6877.1611838999997},null,null,{"$f":"'[1]EXT Comercio(M)'!$BS226","v":-2912.5667333599999},{"$f":"'[1]EXT Comercio(M)'!$BT226","v":-3514.8846003600001}]
[null,null,"Febrero",{"$f":"'[1]REAL IPC(M)'!AD227","v":11.39921902026312},{"$f":"'[1]REAL IPC(M)'!AE227","v":5.8180227471566131},{"$f":"'[1]REAL IPC(M)'!AF227","v":8.762392069075803},{"$f":"'[1]REAL IPC(M)'!AG227","v":9.0350200815664881},{"$f":"'[1]REAL IPC(M)'!AH227","v":18.350168350168349},{"$f":"'[1]REAL IPC(M)'!AI227","v":8.678960964408736},{"$f":"'[1]REAL IPC(M)'!AJ227","v":8.3720930232558288},null,null,{"$f":"'[1]REAL IMAE(M)'!AG227","v":5.2091874381697236},{"$f":"'[1]REAL IMAE(M)'!AH227","v":7.0111253011484003},{"$f":"'[1]REAL IMAE(M)'!AI227","v":"n.d."},{"$f":"'[1]REAL IMAE(M)'!AJ227","v":5.7978270253951179},{"$f":"'[1]REAL IMAE(M)'!AK227","v":7.504016318899839},{"$f":"'[1]REAL IMAE(M)'!AL227","v":7.4039935771924803},{"$f":"'[1]REAL IMAE(M)'!AM227","v":12.497015994270708},null,null,{"$f":"'[1]EXT ITCER(M)'!C227","v":88.853743802017576},{"$f":"'[1]EXT ITCER(M)'!D227","v":92.916535477897511},{"$f":"'[1]EXT ITCER(M)'!E227","v":71.460490479471602},{"$f":"'[1]EXT ITCER(M)'!F227","v":88.182952103804979},{"$f":"'[1]EXT ITCER(M)'!G227","v":96.820323387092103},{"$f":"'[1]EXT ITCER(M)'!H227","v":94.698705492824189},{"$f":"'[1]EXT ITCER(M)'!I227","v":102.72093860942843},null,null,{"$f":"'[1]EXT TC(M)'!J227","v":-4.5784602562767178},{"$f":"'[1]EXT TC(M)'!K227","v":0},{"$f":"'[1]EXT TC(M)'!L227","v":0.35832102230599738},{"$f":"'[1]EXT TC(M)'!M227","v":-2.5925925925884302E-2},{"$f":"'[1]EXT TC(M)'!N227","v":4.6706066414789085},{"$f":"'[1]EXT TC(M)'!O227","v":1.4165902319419212},{"$f":"'[1]EXT TC(M)'!P227","v":0},null,null,{"$f":"'[1]EXT RIN(M)'!C227","v":4554.7},{"$f":"'[1]EXT RIN(M)'!D227","v":2277.1999999999998},{"$f":"'[1]EXT RIN(M)'!E227","v":4348.3999999999996},{"$f":"'[1]EXT RIN(M)'!F227","v":2497.9126125206399},{"$f":"'[1]EXT RIN(M)'!G227","v":950.5},{"$f":"'[1]EXT RIN(M)'!H227","v":2216.9},{"$f":"'[1]EXT RIN(M)'!I227","v":2109.3915369452502},null,null,{"$f":"'[1]EXT RIN(M)'!P227","v":64.162679642461356},{"$f":"'[1]EXT RIN(M)'!Q227","v":89.2565974312663},{"$f":"'[1]EXT RIN(M)'!R227","v":109.76070940953262},{"$f":"'[1]EXT RIN(M)'!S227","v":110.70596808519497},{"$f":"'[1]EXT RIN(M)'!T227","v":94.632141842086185},{"$f":"'[1]EXT RIN(M)'!U227","v":43.621750791868493},{"$f":"'[1]EXT RIN(M)'!V227","v":207.57218016126052},null,null,{"$f":"+'[1]MONE(M)CAPARD'!AE227","v":-5.2955658685453368},{"$f":"'[1]MONE(M)CAPARD'!AF227","v":-1.9826705250103418},{"$f":"'[1]MONE(M)CAPARD'!AG227","v":-3.5144428109379691},{"$f":"'[1]MONE(M)CAPARD'!AH227","v":-0.61908557549814935},{"$f":"'[1]MONE(M)CAPARD'!AI227","v":-4.5716739227645684},{"$f":"'[1]MONE(M)CAPARD'!AJ227","v":-1.4068601234690261},{"$f":"'[1]MONE(M)CAPARD'!AK227","v":-4.0158798283261934},null,null,{"$f":"'[1]MONE(M)CAPARD'!AL227","v":3.36},{"$f":"'[1]MONE(M)CAPARD'!AM227","v":3.72},{"$f":"'[1]MONE(M)CAPARD'!AN227","v":3.54},{"$f":"'[1]MONE(M)CAPARD'!AO227","v":4.34},{"$f":"'[1]MONE(M)CAPARD'!AP227","v":6.71},{"$f":"'[1]MONE(M)CAPARD'!AQ227","v":2.31},{"$f":"'[1]MONE(M)CAPARD'!AR227","v":4.0199999999999996},null,null,{"$f":"'[1]MONE(M)CAPARD'!J227","v":2.8642533030575144},{"$f":"'[1]MONE(M)CAPARD'!K227","v":1.7690533278214069},{"$f":"'[1]MONE(M)CAPARD'!L227","v":3.6939311967068393},{"$f":"'[1]MONE(M)CAPARD'!M227","v":7.0023189913864075},{"$f":"'[1]MONE(M)CAPARD'!N227","v":-6.1159900578281322E-2},{"$f":"'[1]MONE(M)CAPARD'!O227","v":6.3039239378032965},{"$f":"'[1]MONE(M)CAPARD'!P227","v":-1.1120939285162508},null,null,{"$f":"'[1]MONE(M)CAPARD'!Q227","v":9.3830141843115911},{"$f":"'[1]MONE(M)CAPARD'!R227","v":7.69},{"$f":"'[1]MONE(M)CAPARD'!S227","v":7.48},{"$f":"'[1]MONE(M)CAPARD'!T227","v":9.7799999999999994},{"$f":"'[1]MONE(M)CAPARD'!U227","v":10.58},{"$f":"'[1]MONE(M)CAPARD'!V227","v":7.75},{"$f":"'[1]MONE(M)CAPARD'!W227","v":7.1668935565382172},null,null,{"$f":"'[1]MONE(M)CAPARD'!AS227","v":5.99},{"$f":"'[1]MONE(M)CAPARD'!AT227","v":"n.a."},{"$f":"'[1]MONE(M)CAPARD'!AU227","v":6.5},{"$f":"'[1]MONE(M)CAPARD'!AV227","v":7.75},{"$f":"'[1]MONE(M)CAPARD'!AW227","v":"n.a."},{"$f":"'[1]MONE(M)CAPARD'!AX227","v":8},{"$f":"'[1]MONE(M)CAPARD'!AY227","v":"n.a."},null,null,{"$f":"+'Datos_Regional (M)'!CF220","v":39.95423744097446},{"$f":"+'Datos_Regional (M)'!CG220","v":9.157166994826337},{"$f":"+'Datos_Regional (M)'!CH220","v":11.606532767833833},{"$f":"+'Datos_Regional (M)'!CI220","v":30.478026780464894},{"$f":"+'Datos_Regional (M)'!CJ220","v":32.151438223893635},{"$f":"+'Datos_Regional (M)'!CK220","v":29.413301621695442},{"$f":"+'Datos_Regional (M)'!CL220","v":18.784687923443787},null,null,792.71631719583331,343.38583333333327,585.57500000000005,218.26491378173421,202.15,596.76431666666679,825.05607558333338,2738.8563809775678,3563.9124565609004,null,null,1123.0927071266665,761.61,1154.4833333333333,630.06561745862655,379.81666666666678,1184.0333333333331,1261.1831490833333,5233.1016579186262,6494.28480700196,null,null,-2494.2452769410588,-2930.3723504410591,null,null,{"$f":"'[1]EXT Comercio(M)'!C227","v":848.24618898999995},{"$f":"'[1]EXT Comercio(M)'!D227","v":388.30999999999995},{"$f":"'[1]EXT Comercio(M)'!E227","v":642.30000000000007},{"$f":"'[1]EXT Comercio(M)'!F227","v":261.82951918999998},{"$f":"'[1]EXT Comercio(M)'!G227","v":230.3},{"$f":"'[1]EXT Comercio(M)'!H227","v":529.59250000000009},{"$f":"'[1]EXT Comercio(M)'!I227","v":794.69590400000004},{"$f":"'[1]EXT Comercio(M)'!K227","v":2900.5782081800007},{"$f":"'[1]EXT Comercio(M)'!L227","v":3695.2741121799995},null,null,{"$f":"'[1]EXT Comercio(M)'!AG227","v":1246.0455512699998},{"$f":"'[1]EXT Comercio(M)'!AH227","v":797.31999999999994},{"$f":"'[1]EXT Comercio(M)'!AI227","v":1176.2000000000003},{"$f":"'[1]EXT Comercio(M)'!AJ227","v":665.55344933000015},{"$f":"'[1]EXT Comercio(M)'!AK227","v":390.4},{"$f":"'[1]EXT Comercio(M)'!AL227","v":1232.1000000000001},{"$f":"'[1]EXT Comercio(M)'!AM227","v":1270.3392539999998},{"$f":"'[1]EXT Comercio(M)'!AO227","v":5507.6190006000015},{"$f":"'[1]EXT Comercio(M)'!AP227","v":6777.958254600002},null,null,{"$f":"'[1]EXT Comercio(M)'!$BS227","v":-2607.0407924200003},{"$f":"'[1]EXT Comercio(M)'!$BT227","v":-3082.6841424200002}]
[null,null,"Marzo",{"$f":"'[1]REAL IPC(M)'!AD228","v":11.035531669493835},{"$f":"'[1]REAL IPC(M)'!AE228","v":5.9891304347826138},{"$f":"'[1]REAL IPC(M)'!AF228","v":9.0995561192137124},{"$f":"'[1]REAL IPC(M)'!AG228","v":9.2465753424657642},{"$f":"'[1]REAL IPC(M)'!AH228","v":18.910978356674178},{"$f":"'[1]REAL IPC(M)'!AI228","v":9.6717926811903663},{"$f":"'[1]REAL IPC(M)'!AJ228","v":8.7638376383763994},null,null,{"$f":"'[1]REAL IMAE(M)'!AG228","v":4.9040155924869353},{"$f":"'[1]REAL IMAE(M)'!AH228","v":6.6889910907579191},{"$f":"'[1]REAL IMAE(M)'!AI228","v":"n.d."},{"$f":"'[1]REAL IMAE(M)'!AJ228","v":6.0600690717857599},{"$f":"'[1]REAL IMAE(M)'!AK228","v":6.9676334878863004},{"$f":"'[1]REAL IMAE(M)'!AL228","v":7.2402571080763822},{"$f":"'[1]REAL IMAE(M)'!AM228","v":12.398698609878721},null,null,{"$f":"'[1]EXT ITCER(M)'!C228","v":89.064507211850696},{"$f":"'[1]EXT ITCER(M)'!D228","v":93.0010916055395},{"$f":"'[1]EXT ITCER(M)'!E228","v":70.458843606882837},{"$f":"'[1]EXT ITCER(M)'!F228","v":88.166181981255562},{"$f":"'[1]EXT ITCER(M)'!G228","v":96.468822639434407},{"$f":"'[1]EXT ITCER(M)'!H228","v":94.142571626723367},{"$f":"'[1]EXT ITCER(M)'!I228","v":102.3810157744677},null,null,{"$f":"'[1]EXT TC(M)'!J228","v":-4.7505708485627549},{"$f":"'[1]EXT TC(M)'!K228","v":0},{"$f":"'[1]EXT TC(M)'!L228","v":-0.71391395974146266},{"$f":"'[1]EXT TC(M)'!M228","v":-1.5873015873016476E-2},{"$f":"'[1]EXT TC(M)'!N228","v":4.7791748746514084},{"$f":"'[1]EXT TC(M)'!O228","v":3.4326177980134931},{"$f":"'[1]EXT TC(M)'!P228","v":0},null,null,{"$f":"'[1]EXT RIN(M)'!C228","v":4890.5902181000001},{"$f":"'[1]EXT RIN(M)'!D228","v":2271.6999999999998},{"$f":"'[1]EXT RIN(M)'!E228","v":4338.3999999999996},{"$f":"'[1]EXT RIN(M)'!F228","v":2520.6142551523426},{"$f":"'[1]EXT RIN(M)'!G228","v":984.3},{"$f":"'[1]EXT RIN(M)'!H228","v":2245.1999999999998},{"$f":"'[1]EXT RIN(M)'!I228","v":2011.2491596709999},null,null,{"$f":"'[1]EXT RIN(M)'!P228","v":65.066332191708469},{"$f":"'[1]EXT RIN(M)'!Q228","v":89.116259510062605},{"$f":"'[1]EXT RIN(M)'!R228","v":106.82465662529704},{"$f":"'[1]EXT RIN(M)'!S228","v":108.77338660927651},{"$f":"'[1]EXT RIN(M)'!T228","v":97.840598294166227},{"$f":"'[1]EXT RIN(M)'!U228","v":43.823893178006188},{"$f":"'[1]EXT RIN(M)'!V228","v":194.73209627253433},null,null,{"$f":"+'[1]MONE(M)CAPARD'!AE228","v":-5.2105227781634218},{"$f":"'[1]MONE(M)CAPARD'!AF228","v":-2.263562711516772},{"$f":"'[1]MONE(M)CAPARD'!AG228","v":-3.7851264167393337},{"$f":"'[1]MONE(M)CAPARD'!AH228","v":-0.69253918495298772},{"$f":"'[1]MONE(M)CAPARD'!AI228","v":-4.7734230666346384},{"$f":"'[1]MONE(M)CAPARD'!AJ228","v":-2.2264546074199023},{"$f":"'[1]MONE(M)CAPARD'!AK228","v":-4.453536895674314},null,null,{"$f":"'[1]MONE(M)CAPARD'!AL228","v":3.3149999999999999},{"$f":"'[1]MONE(M)CAPARD'!AM228","v":3.59},{"$f":"'[1]MONE(M)CAPARD'!AN228","v":3.52},{"$f":"'[1]MONE(M)CAPARD'!AO228","v":4.38},{"$f":"'[1]MONE(M)CAPARD'!AP228","v":6.7},{"$f":"'[1]MONE(M)CAPARD'!AQ228","v":1.97},{"$f":"'[1]MONE(M)CAPARD'!AR228","v":3.92},null,null,{"$f":"'[1]MONE(M)CAPARD'!J228","v":2.7959233263698549},{"$f":"'[1]MONE(M)CAPARD'!K228","v":1.4726694697979643},{"$f":"'[1]MONE(M)CAPARD'!L228","v":3.6576169718105054},{"$f":"'[1]MONE(M)CAPARD'!M228","v":6.8683385579937202},{"$f":"'[1]MONE(M)CAPARD'!N228","v":-0.65842247184592506},{"$f":"'[1]MONE(M)CAPARD'!O228","v":5.1136278360219496},{"$f":"'[1]MONE(M)CAPARD'!P228","v":-1.5602585340069717},null,null,{"$f":"'[1]MONE(M)CAPARD'!Q228","v":9.34},{"$f":"'[1]MONE(M)CAPARD'!R228","v":7.55},{"$f":"'[1]MONE(M)CAPARD'!S228","v":7.5399999999999991},{"$f":"'[1]MONE(M)CAPARD'!T228","v":9.74},{"$f":"'[1]MONE(M)CAPARD'!U228","v":10.119999999999999},{"$f":"'[1]MONE(M)CAPARD'!V228","v":7.62},{"$f":"'[1]MONE(M)CAPARD'!W228","v":7.0668405797101448},null,null,{"$f":"'[1]MONE(M)CAPARD'!AS228","v":5.99},{"$f":"'[1]MONE(M)CAPARD'!AT228","v":"n.a."},{"$f":"'[1]MONE(M)CAPARD'!AU228","v":6.75},{"$f":"'[1]MONE(M)CAPARD'!AV228","v":7.75},{"$f":"'[1]MONE(M)CAPARD'!AW228","v":"n.a."},{"$f":"'[1]MONE(M)CAPARD'!AX228","v":9},{"$f":"'[1]MONE(M)CAPARD'!AY228","v":"n.a."},null,null,{"$f":"+'Datos_Regional (M)'!CF221","v":40.711522786235534},{"$f":"+'Datos_Regional (M)'!CG221","v":8.6943036641364824},{"$f":"+'Datos_Regional (M)'!CH221","v":11.813534750254595},{"$f":"+'Datos_Regional (M)'!CI221","v":28.717908361377063},{"$f":"+'Datos_Regional (M)'!CJ221","v":31.318681356908495},{"$f":"+'Datos_Regional (M)'!CK221","v":30.917264622434693},{"$f":"+'Datos_Regional (M)'!CL221","v":18.305666513210173},null,null,791.03026995916673,342.565,588.72500000000002,222.65278168715494,204.9666666666667,592.56044166666675,825.06483724999987,2742.5001599796556,3567.5649972296546,null,null,1129.9465517716665,762.41166666666652,1158.5249999999999,637.8106179007932,388.25833333333338,1196.95,1254.7671233333335,5273.9021696724594,6528.6692930057934,null,null,-2531.4020096928048,-2961.1042957761383,null,null,{"$f":"'[1]EXT Comercio(M)'!C228","v":837.07030228000008},{"$f":"'[1]EXT Comercio(M)'!D228","v":356.1400000000001},{"$f":"'[1]EXT Comercio(M)'!E228","v":642.5999999999998},{"$f":"'[1]EXT Comercio(M)'!F228","v":281.79157613999996},{"$f":"'[1]EXT Comercio(M)'!G228","v":252.49999999999997},{"$f":"'[1]EXT Comercio(M)'!H228","v":626.64570000000003},{"$f":"'[1]EXT Comercio(M)'!I228","v":907.22113999999999},{"$f":"'[1]EXT Comercio(M)'!K228","v":2996.7475784199987},{"$f":"'[1]EXT Comercio(M)'!L228","v":3903.9687184200011},null,null,{"$f":"'[1]EXT Comercio(M)'!AG228","v":1081.0915140900001},{"$f":"'[1]EXT Comercio(M)'!AH228","v":749.68000000000006},{"$f":"'[1]EXT Comercio(M)'!AI228","v":1167.1999999999998},{"$f":"'[1]EXT Comercio(M)'!AJ228","v":683.0555211599999},{"$f":"'[1]EXT Comercio(M)'!AK228","v":423.2},{"$f":"'[1]EXT Comercio(M)'!AL228","v":1330.5000000000002},{"$f":"'[1]EXT Comercio(M)'!AM228","v":1156.8111400000009},{"$f":"'[1]EXT Comercio(M)'!AO228","v":5434.7270352499982},{"$f":"'[1]EXT Comercio(M)'!AP228","v":6591.5381752499998},null,null,{"$f":"'[1]EXT Comercio(M)'!$BS228","v":-2437.9794568300003},{"$f":"'[1]EXT Comercio(M)'!$BT228","v":-2687.5694568300005}]
[null,null,"Abril",{"$f":"'[1]REAL IPC(M)'!AD229","v":10.946228459681043},{"$f":"'[1]REAL IPC(M)'!AE229","v":6.7883132399261426},{"$f":"'[1]REAL IPC(M)'!AF229","v":10.368823938761327},{"$f":"'[1]REAL IPC(M)'!AG229","v":9.7048808172531356},{"$f":"'[1]REAL IPC(M)'!AH229","v":19.352336629823537},{"$f":"'[1]REAL IPC(M)'!AI229","v":10.833333333333329},{"$f":"'[1]REAL IPC(M)'!AJ229","v":8.5242896425298049},null,null,{"$f":"'[1]REAL IMAE(M)'!AG229","v":4.515693695412935},{"$f":"'[1]REAL IMAE(M)'!AH229","v":5.4886254984712544},{"$f":"'[1]REAL IMAE(M)'!AI229","v":"n.d."},{"$f":"'[1]REAL IMAE(M)'!AJ229","v":5.9264137196970639},{"$f":"'[1]REAL IMAE(M)'!AK229","v":6.0633090895412307},{"$f":"'[1]REAL IMAE(M)'!AL229","v":6.7710748997279078},{"$f":"'[1]REAL IMAE(M)'!AM229","v":12.153918348193336},null,null,{"$f":"'[1]EXT ITCER(M)'!C229","v":88.659961694210722},{"$f":"'[1]EXT ITCER(M)'!D229","v":92.794295222729318},{"$f":"'[1]EXT ITCER(M)'!E229","v":69.002788195711148},{"$f":"'[1]EXT ITCER(M)'!F229","v":87.85969969036384},{"$f":"'[1]EXT ITCER(M)'!G229","v":96.036174765018572},{"$f":"'[1]EXT ITCER(M)'!H229","v":93.264884049325971},{"$f":"'[1]EXT ITCER(M)'!I229","v":102.56695956323442},null,null,{"$f":"'[1]EXT TC(M)'!J229","v":-4.9265192536198068},{"$f":"'[1]EXT TC(M)'!K229","v":0},{"$f":"'[1]EXT TC(M)'!L229","v":-1.5963620869363464},{"$f":"'[1]EXT TC(M)'!M229","v":1.904761904763105E-2},{"$f":"'[1]EXT TC(M)'!N229","v":4.9721947339884585},{"$f":"'[1]EXT TC(M)'!O229","v":5.5780514519937539},{"$f":"'[1]EXT TC(M)'!P229","v":0},null,null,{"$f":"'[1]EXT RIN(M)'!C229","v":4936.5400497700002},{"$f":"'[1]EXT RIN(M)'!D229","v":2312.3000000000002},{"$f":"'[1]EXT RIN(M)'!E229","v":4468.7},{"$f":"'[1]EXT RIN(M)'!F229","v":2593.063537103832},{"$f":"'[1]EXT RIN(M)'!G229","v":1030.5999999999999},{"$f":"'[1]EXT RIN(M)'!H229","v":2183.9},{"$f":"'[1]EXT RIN(M)'!I229","v":1957.96682021162},null,null,{"$f":"'[1]EXT RIN(M)'!P229","v":66.104659310164109},{"$f":"'[1]EXT RIN(M)'!Q229","v":90.068578791601652},{"$f":"'[1]EXT RIN(M)'!R229","v":110.87539005328935},{"$f":"'[1]EXT RIN(M)'!S229","v":109.3449405463862},{"$f":"'[1]EXT RIN(M)'!T229","v":100.9271208100288},{"$f":"'[1]EXT RIN(M)'!U229","v":44.730661731393361},{"$f":"'[1]EXT RIN(M)'!V229","v":190.52183488807387},null,null,{"$f":"+'[1]MONE(M)CAPARD'!AE229","v":-6.035562048974489},{"$f":"'[1]MONE(M)CAPARD'!AF229","v":-2.8826312042310818},{"$f":"'[1]MONE(M)CAPARD'!AG229","v":-4.8734993694829924},{"$f":"'[1]MONE(M)CAPARD'!AH229","v":-0.93421624418004401},{"$f":"'[1]MONE(M)CAPARD'!AI229","v":-5.4785009944851462},{"$f":"'[1]MONE(M)CAPARD'!AJ229","v":-2.8451127819548829},{"$f":"'[1]MONE(M)CAPARD'!AK229","v":-4.5282854729729873},null,null,{"$f":"'[1]MONE(M)CAPARD'!AL229","v":3.2549999999999999},{"$f":"'[1]MONE(M)CAPARD'!AM229","v":3.71},{"$f":"'[1]MONE(M)CAPARD'!AN229","v":3.52},{"$f":"'[1]MONE(M)CAPARD'!AO229","v":4.38},{"$f":"'[1]MONE(M)CAPARD'!AP229","v":6.69},{"$f":"'[1]MONE(M)CAPARD'!AQ229","v":1.96},{"$f":"'[1]MONE(M)CAPARD'!AR229","v":3.61},null,null,{"$f":"'[1]MONE(M)CAPARD'!J229","v":3.0859737981658282},{"$f":"'[1]MONE(M)CAPARD'!K229","v":0.47915988608624938},{"$f":"'[1]MONE(M)CAPARD'!L229","v":2.5923770491803104},{"$f":"'[1]MONE(M)CAPARD'!M229","v":6.5950750129332514},{"$f":"'[1]MONE(M)CAPARD'!N229","v":-0.8610461719397603},{"$f":"'[1]MONE(M)CAPARD'!O229","v":4.7338345864661679},{"$f":"'[1]MONE(M)CAPARD'!P229","v":-1.2433600239723159},null,null,{"$f":"'[1]MONE(M)CAPARD'!Q229","v":9.36},{"$f":"'[1]MONE(M)CAPARD'!R229","v":7.3},{"$f":"'[1]MONE(M)CAPARD'!S229","v":7.4899999999999993},{"$f":"'[1]MONE(M)CAPARD'!T229","v":9.6999999999999993},{"$f":"'[1]MONE(M)CAPARD'!U229","v":11.11},{"$f":"'[1]MONE(M)CAPARD'!V229","v":9.19},{"$f":"'[1]MONE(M)CAPARD'!W229","v":7.1749420088146607},null,null,{"$f":"'[1]MONE(M)CAPARD'!AS229","v":5.99},{"$f":"'[1]MONE(M)CAPARD'!AT229","v":"n.a."},{"$f":"'[1]MONE(M)CAPARD'!AU229","v":6.75},{"$f":"'[1]MONE(M)CAPARD'!AV229","v":7.75},{"$f":"'[1]MONE(M)CAPARD'!AW229","v":"n.a."},{"$f":"'[1]MONE(M)CAPARD'!AX229","v":9},{"$f":"'[1]MONE(M)CAPARD'!AY229","v":"n.a."},null,null,{"$f":"+'Datos_Regional (M)'!CF222","v":41.541538378595064},{"$f":"+'Datos_Regional (M)'!CG222","v":8.6948252061132436},{"$f":"+'Datos_Regional (M)'!CH222","v":11.647547358662358},{"$f":"+'Datos_Regional (M)'!CI222","v":27.080951548609455},{"$f":"+'Datos_Regional (M)'!CJ222","v":30.12781965697371},{"$f":"+'Datos_Regional (M)'!CK222","v":30.30346700308144},{"$f":"+'Datos_Regional (M)'!CL222","v":23.934773177279279},null,null,803.95209933750004,354.40916666666664,604.7166666666667,227.44328976120846,212.34166666666667,594.61500000000001,844.6427427499998,2797.4778890987091,3642.1206318487079,null,null,1177.5409911258332,782.05833333333328,1195.8416666666665,653.77107082629334,403.35000000000008,1232.1583333333333,1279.2157099166668,5444.7203952854588,6723.9361052021268,null,null,-2647.2425061867507,-3081.8154733534175,null,null,{"$f":"'[1]EXT Comercio(M)'!C229","v":886.9931207300001},{"$f":"'[1]EXT Comercio(M)'!D229","v":427.65000000000009},{"$f":"'[1]EXT Comercio(M)'!E229","v":723.59999999999991},{"$f":"'[1]EXT Comercio(M)'!F229","v":250.49959858},{"$f":"'[1]EXT Comercio(M)'!G229","v":261.49999999999994},{"$f":"'[1]EXT Comercio(M)'!H229","v":613.17429999999968},{"$f":"'[1]EXT Comercio(M)'!I229","v":924.89186600000005},{"$f":"'[1]EXT Comercio(M)'!K229","v":3163.4170193100017},{"$f":"'[1]EXT Comercio(M)'!L229","v":4088.3088853099998},null,null,{"$f":"'[1]EXT Comercio(M)'!AG229","v":1501.2141665200002},{"$f":"'[1]EXT Comercio(M)'!AH229","v":921.95000000000027},{"$f":"'[1]EXT Comercio(M)'!AI229","v":1391.8000000000002},{"$f":"'[1]EXT Comercio(M)'!AJ229","v":739.14514439999994},{"$f":"'[1]EXT Comercio(M)'!AK229","v":515.5},{"$f":"'[1]EXT Comercio(M)'!AL229","v":1393.2},{"$f":"'[1]EXT Comercio(M)'!AM229","v":1294.4243149999998},{"$f":"'[1]EXT Comercio(M)'!AO229","v":6462.8093109200017},{"$f":"'[1]EXT Comercio(M)'!AP229","v":7757.2336259200019},null,null,{"$f":"'[1]EXT Comercio(M)'!$BS229","v":-3299.39229161},{"$f":"'[1]EXT Comercio(M)'!$BT229","v":-3668.9247406100003}]
[null,null,"Mayo ",{"$f":"'[1]REAL IPC(M)'!AD230","v":11.895754252599259},{"$f":"'[1]REAL IPC(M)'!AE230","v":8.3978623623077819},{"$f":"'[1]REAL IPC(M)'!AF230","v":12.241532411518467},{"$f":"'[1]REAL IPC(M)'!AG230","v":11.249293386093841},{"$f":"'[1]REAL IPC(M)'!AH230","v":21.745405561435575},{"$f":"'[1]REAL IPC(M)'!AI230","v":10.034589986373652},{"$f":"'[1]REAL IPC(M)'!AJ230","v":8.8422971741112093},null,null,{"$f":"'[1]REAL IMAE(M)'!AG230","v":4.0190921127802133},{"$f":"'[1]REAL IMAE(M)'!AH230","v":3.4207271254120881},{"$f":"'[1]REAL IMAE(M)'!AI230","v":"n.d."},{"$f":"'[1]REAL IMAE(M)'!AJ230","v":5.7097017590317884},{"$f":"'[1]REAL IMAE(M)'!AK230","v":5.0105611254142843},{"$f":"'[1]REAL IMAE(M)'!AL230","v":5.8087254325647697},{"$f":"'[1]REAL IMAE(M)'!AM230","v":12.052895258068274},null,null,{"$f":"'[1]EXT ITCER(M)'!C230","v":90.641379587039154},{"$f":"'[1]EXT ITCER(M)'!D230","v":92.568300187499929},{"$f":"'[1]EXT ITCER(M)'!E230","v":67.632978839046103},{"$f":"'[1]EXT ITCER(M)'!F230","v":87.062106108392328},{"$f":"'[1]EXT ITCER(M)'!G230","v":94.658080880171468},{"$f":"'[1]EXT ITCER(M)'!H230","v":93.697016328587949},{"$f":"'[1]EXT ITCER(M)'!I230","v":102.56441077099062},null,null,{"$f":"'[1]EXT TC(M)'!J230","v":-1.7827937926815738},{"$f":"'[1]EXT TC(M)'!K230","v":0},{"$f":"'[1]EXT TC(M)'!L230","v":-2.7551886641566181},{"$f":"'[1]EXT TC(M)'!M230","v":6.3013353489417695E-2},{"$f":"'[1]EXT TC(M)'!N230","v":5.2304127548441057},{"$f":"'[1]EXT TC(M)'!O230","v":5.823309416984551},{"$f":"'[1]EXT TC(M)'!P230","v":0},null,null,{"$f":"'[1]EXT RIN(M)'!C230","v":4572.5978635600004},{"$f":"'[1]EXT RIN(M)'!D230","v":2404.9},{"$f":"'[1]EXT RIN(M)'!E230","v":4573.2},{"$f":"'[1]EXT RIN(M)'!F230","v":2512.6440159337553},{"$f":"'[1]EXT RIN(M)'!G230","v":1042.0999999999999},{"$f":"'[1]EXT RIN(M)'!H230","v":2193.1999999999998},{"$f":"'[1]EXT RIN(M)'!I230","v":1954.1300465132897},null,null,{"$f":"'[1]EXT RIN(M)'!P230","v":67.142608765097805},{"$f":"'[1]EXT RIN(M)'!Q230","v":93.582757642488119},{"$f":"'[1]EXT RIN(M)'!R230","v":110.15779183343813},{"$f":"'[1]EXT RIN(M)'!S230","v":109.52443778200514},{"$f":"'[1]EXT RIN(M)'!T230","v":104.74773712305117},{"$f":"'[1]EXT RIN(M)'!U230","v":45.37248757111292},{"$f":"'[1]EXT RIN(M)'!V230","v":201.64764739912582},null,null,{"$f":"+'[1]MONE(M)CAPARD'!AE230","v":-6.1626594312349221},{"$f":"'[1]MONE(M)CAPARD'!AF230","v":-4.2970057349834043},{"$f":"'[1]MONE(M)CAPARD'!AG230","v":-6.4071937160940404},{"$f":"'[1]MONE(M)CAPARD'!AH230","v":-2.1746595528455308},{"$f":"'[1]MONE(M)CAPARD'!AI230","v":-7.0307159131404555},{"$f":"'[1]MONE(M)CAPARD'!AJ230","v":-1.1674419712317112},{"$f":"'[1]MONE(M)CAPARD'!AK230","v":-4.9909798994974848},null,null,{"$f":"'[1]MONE(M)CAPARD'!AL230","v":3.4050000000000002},{"$f":"'[1]MONE(M)CAPARD'!AM230","v":3.74},{"$f":"'[1]MONE(M)CAPARD'!AN230","v":3.54},{"$f":"'[1]MONE(M)CAPARD'!AO230","v":4.3899999999999997},{"$f":"'[1]MONE(M)CAPARD'!AP230","v":6.88},{"$f":"'[1]MONE(M)CAPARD'!AQ230","v":2.27},{"$f":"'[1]MONE(M)CAPARD'!AR230","v":3.41},null,null,{"$f":"'[1]MONE(M)CAPARD'!J230","v":2.6247179927169308},{"$f":"'[1]MONE(M)CAPARD'!K230","v":-0.89287956534863222},{"$f":"'[1]MONE(M)CAPARD'!L230","v":0.96975474683543483},{"$f":"'[1]MONE(M)CAPARD'!M230","v":5.2051626016260126},{"$f":"'[1]MONE(M)CAPARD'!N230","v":-2.7003318179827462},{"$f":"'[1]MONE(M)CAPARD'!O230","v":6.0212066173435268},{"$f":"'[1]MONE(M)CAPARD'!P230","v":-1.5481346741540718},null,null,{"$f":"'[1]MONE(M)CAPARD'!Q230","v":9.329979941885906},{"$f":"'[1]MONE(M)CAPARD'!R230","v":7.43},{"$f":"'[1]MONE(M)CAPARD'!S230","v":7.51},{"$f":"'[1]MONE(M)CAPARD'!T230","v":9.75},{"$f":"'[1]MONE(M)CAPARD'!U230","v":10.5},{"$f":"'[1]MONE(M)CAPARD'!V230","v":7.98},{"$f":"'[1]MONE(M)CAPARD'!W230","v":7.1572718314129764},null,null,{"$f":"'[1]MONE(M)CAPARD'!AS230","v":7.0012000000000008},{"$f":"'[1]MONE(M)CAPARD'!AT230","v":"n.a."},{"$f":"'[1]MONE(M)CAPARD'!AU230","v":6.75},{"$f":"'[1]MONE(M)CAPARD'!AV230","v":8},{"$f":"'[1]MONE(M)CAPARD'!AW230","v":"n.a."},{"$f":"'[1]MONE(M)CAPARD'!AX230","v":9},{"$f":"'[1]MONE(M)CAPARD'!AY230","v":"n.a."},null,null,{"$f":"+'Datos_Regional (M)'!CF223","v":44.099437713414822},{"$f":"+'Datos_Regional (M)'!CG223","v":8.1486344696407809},{"$f":"+'Datos_Regional (M)'!CH223","v":11.904972439564965},{"$f":"+'Datos_Regional (M)'!CI223","v":25.342986887555831},{"$f":"+'Datos_Regional (M)'!CJ223","v":28.99678639715335},{"$f":"+'Datos_Regional (M)'!CK223","v":29.801814651017811},{"$f":"+'Datos_Regional (M)'!CL223","v":17.34116912013026},null,null,802.09680668500005,362.4108333333333,602.39166666666677,229.29545216788733,213.64166666666665,592.25172500000008,845.29144924999991,2802.0881505195539,3647.3795997695538,null,null,1197.8683783583331,783.63666666666643,1208.6249999999998,674.56759208676829,409.77500000000003,1258.8166666666666,1299.1597400000003,5533.2893037784343,6832.4490437784334,null,null,-2731.2011532588804,-3185.0694440088805,null,null,{"$f":"'[1]EXT Comercio(M)'!C230","v":842.58615094000015},{"$f":"'[1]EXT Comercio(M)'!D230","v":435.88999999999987},{"$f":"'[1]EXT Comercio(M)'!E230","v":651.1},{"$f":"'[1]EXT Comercio(M)'!F230","v":274.10342878000006},{"$f":"'[1]EXT Comercio(M)'!G230","v":212.50000000000006},{"$f":"'[1]EXT Comercio(M)'!H230","v":610.34900000000016},{"$f":"'[1]EXT Comercio(M)'!I230","v":802.38947799999994},{"$f":"'[1]EXT Comercio(M)'!K230","v":3026.5285797199977},{"$f":"'[1]EXT Comercio(M)'!L230","v":3828.9180577199986},null,null,{"$f":"'[1]EXT Comercio(M)'!AG230","v":1315.5589327099997},{"$f":"'[1]EXT Comercio(M)'!AH230","v":886.13999999999987},{"$f":"'[1]EXT Comercio(M)'!AI230","v":1326.5999999999995},{"$f":"'[1]EXT Comercio(M)'!AJ230","v":856.78838126999972},{"$f":"'[1]EXT Comercio(M)'!AK230","v":440.59999999999985},{"$f":"'[1]EXT Comercio(M)'!AL230","v":1498.6999999999996},{"$f":"'[1]EXT Comercio(M)'!AM230","v":1434.5739159999998},{"$f":"'[1]EXT Comercio(M)'!AO230","v":6324.387313979998},{"$f":"'[1]EXT Comercio(M)'!AP230","v":7758.9612299799919},null,null,{"$f":"'[1]EXT Comercio(M)'!$BS230","v":-3297.8587342599985},{"$f":"'[1]EXT Comercio(M)'!$BT230","v":-3930.0431722599988}]
[null,null,"Junio",{"$f":"'[1]REAL IPC(M)'!AD231","v":12.817967456086151},{"$f":"'[1]REAL IPC(M)'!AE231","v":9.0249187432286},{"$f":"'[1]REAL IPC(M)'!AF231","v":13.556860516511978},{"$f":"'[1]REAL IPC(M)'!AG231","v":12.162162162162158},{"$f":"'[1]REAL IPC(M)'!AH231","v":23.090112402362347},{"$f":"'[1]REAL IPC(M)'!AI231","v":12.204203786191545},{"$f":"'[1]REAL IPC(M)'!AJ231","v":9.6188747731397459},null,null,{"$f":"'[1]REAL IMAE(M)'!AG231","v":3.4872071174526669},{"$f":"'[1]REAL IMAE(M)'!AH231","v":1.4946438835074225},{"$f":"'[1]REAL IMAE(M)'!AI231","v":"n.d."},{"$f":"'[1]REAL IMAE(M)'!AJ231","v":5.4790248823407488},{"$f":"'[1]REAL IMAE(M)'!AK231","v":4.0010776872248996},{"$f":"'[1]REAL IMAE(M)'!AL231","v":4.3096210758740821},{"$f":"'[1]REAL IMAE(M)'!AM231","v":12.065569972196487},null,null,{"$f":"'[1]EXT ITCER(M)'!C231","v":91.877180042226968},{"$f":"'[1]EXT ITCER(M)'!D231","v":92.348955470240199},{"$f":"'[1]EXT ITCER(M)'!E231","v":67.744863364883628},{"$f":"'[1]EXT ITCER(M)'!F231","v":86.820198429185098},{"$f":"'[1]EXT ITCER(M)'!G231","v":94.049514718680584},{"$f":"'[1]EXT ITCER(M)'!H231","v":92.836035479145622},{"$f":"'[1]EXT ITCER(M)'!I231","v":102.39731350712516},null,null,{"$f":"'[1]EXT TC(M)'!J231","v":-4.1547609754369157E-2},{"$f":"'[1]EXT TC(M)'!K231","v":0},{"$f":"'[1]EXT TC(M)'!L231","v":-2.4451878590017322},{"$f":"'[1]EXT TC(M)'!M231","v":-5.7697152935095811E-3},{"$f":"'[1]EXT TC(M)'!N231","v":5.5154026438938182},{"$f":"'[1]EXT TC(M)'!O231","v":5.3733719158178062},{"$f":"'[1]EXT TC(M)'!P231","v":0},null,null,{"$f":"'[1]EXT RIN(M)'!C231","v":4334.2038455100001},{"$f":"'[1]EXT RIN(M)'!D231","v":2300.4},{"$f":"'[1]EXT RIN(M)'!E231","v":4771.3},{"$f":"'[1]EXT RIN(M)'!F231","v":2547.3266866087911},{"$f":"'[1]EXT RIN(M)'!G231","v":1035.7},{"$f":"'[1]EXT RIN(M)'!H231","v":1975},{"$f":"'[1]EXT RIN(M)'!I231","v":2516.4444039084201},null,null,{"$f":"'[1]EXT RIN(M)'!P231","v":66.558689524327775},{"$f":"'[1]EXT RIN(M)'!Q231","v":91.068342824567566},{"$f":"'[1]EXT RIN(M)'!R231","v":116.54173182293516},{"$f":"'[1]EXT RIN(M)'!S231","v":107.47799049236173},{"$f":"'[1]EXT RIN(M)'!T231","v":105.59940044694187},{"$f":"'[1]EXT RIN(M)'!U231","v":43.044906072348724},{"$f":"'[1]EXT RIN(M)'!V231","v":261.34255074032848},null,null,{"$f":"+'[1]MONE(M)CAPARD'!AE231","v":-6.4865265888916452},{"$f":"'[1]MONE(M)CAPARD'!AF231","v":-4.7282023253502912},{"$f":"'[1]MONE(M)CAPARD'!AG231","v":-7.4208290702847091},{"$f":"'[1]MONE(M)CAPARD'!AH231","v":-2.8460240963855381},{"$f":"'[1]MONE(M)CAPARD'!AI231","v":-8.0030654718505492},{"$f":"'[1]MONE(M)CAPARD'!AJ231","v":-1.5010166547777892},{"$f":"'[1]MONE(M)CAPARD'!AK231","v":-5.7370364238410598},null,null,{"$f":"'[1]MONE(M)CAPARD'!AL231","v":3.4050000000000002},{"$f":"'[1]MONE(M)CAPARD'!AM231","v":3.87},{"$f":"'[1]MONE(M)CAPARD'!AN231","v":3.57},{"$f":"'[1]MONE(M)CAPARD'!AO231","v":4.46},{"$f":"'[1]MONE(M)CAPARD'!AP231","v":6.47},{"$f":"'[1]MONE(M)CAPARD'!AQ231","v":2.06},{"$f":"'[1]MONE(M)CAPARD'!AR231","v":3.33},null,null,{"$f":"'[1]MONE(M)CAPARD'!J231","v":2.2088968628900898},{"$f":"'[1]MONE(M)CAPARD'!K231","v":-1.6738547152936478},{"$f":"'[1]MONE(M)CAPARD'!L231","v":-0.13813389679716395},{"$f":"'[1]MONE(M)CAPARD'!M231","v":4.5807228915662703},{"$f":"'[1]MONE(M)CAPARD'!N231","v":-3.5455173955704762},{"$f":"'[1]MONE(M)CAPARD'!O231","v":6.0209831591353096},{"$f":"'[1]MONE(M)CAPARD'!P231","v":-2.219960176922136},null,null,{"$f":"'[1]MONE(M)CAPARD'!Q231","v":9.6},{"$f":"'[1]MONE(M)CAPARD'!R231","v":7.2},{"$f":"'[1]MONE(M)CAPARD'!S231","v":7.4899999999999993},{"$f":"'[1]MONE(M)CAPARD'!T231","v":9.75},{"$f":"'[1]MONE(M)CAPARD'!U231","v":10.89},{"$f":"'[1]MONE(M)CAPARD'!V231","v":7.51},{"$f":"'[1]MONE(M)CAPARD'!W231","v":7.1853794067858985},null,null,{"$f":"'[1]MONE(M)CAPARD'!AS231","v":8},{"$f":"'[1]MONE(M)CAPARD'!AT231","v":"n.a."},{"$f":"'[1]MONE(M)CAPARD'!AU231","v":6.75},{"$f":"'[1]MONE(M)CAPARD'!AV231","v":8.5},{"$f":"'[1]MONE(M)CAPARD'!AW231","v":"n.a."},{"$f":"'[1]MONE(M)CAPARD'!AX231","v":9},{"$f":"'[1]MONE(M)CAPARD'!AY231","v":"n.a."},null,null,{"$f":"+'Datos_Regional (M)'!CF224","v":42.836680601841024},{"$f":"+'Datos_Regional (M)'!CG224","v":8.0828550962577239},{"$f":"+'Datos_Regional (M)'!CH224","v":12.319732653439619},{"$f":"+'Datos_Regional (M)'!CI224","v":25.046697395257866},{"$f":"+'Datos_Regional (M)'!CJ224","v":26.547056436769356},{"$f":"+'Datos_Regional (M)'!CK224","v":25.976049235231713},{"$f":"+'Datos_Regional (M)'!CL224","v":18.429525070705566},null,null,799.92494641249993,366.76249999999999,612.27499999999998,233.00984341548505,218.70000000000002,589.52339166666673,849.71352583333328,2820.195681494652,3669.9092073279849,null,null,1221.8149682591666,796.65499999999975,1221.9166666666663,692.70684204865984,417.92500000000001,1293.9416666666668,1329.1763065833334,5644.9601436411585,6974.1364502244905,null,null,-2824.7644621465074,-3304.227242896508,null,null,{"$f":"'[1]EXT Comercio(M)'!C231","v":791.39006699999936},{"$f":"'[1]EXT Comercio(M)'!D231","v":392.85000000000036},{"$f":"'[1]EXT Comercio(M)'!E231","v":736.80000000000018},{"$f":"'[1]EXT Comercio(M)'!F231","v":264.32872648000011},{"$f":"'[1]EXT Comercio(M)'!G231","v":266.30000000000007},{"$f":"'[1]EXT Comercio(M)'!H231","v":618.88280000000032},{"$f":"'[1]EXT Comercio(M)'!I231","v":822.349919},{"$f":"'[1]EXT Comercio(M)'!K231","v":3070.5515934800023},{"$f":"'[1]EXT Comercio(M)'!L231","v":3892.9015124800026},null,null,{"$f":"'[1]EXT Comercio(M)'!AG231","v":1288.6389449200005},{"$f":"'[1]EXT Comercio(M)'!AH231","v":880.72999999999956},{"$f":"'[1]EXT Comercio(M)'!AI231","v":1277.6999999999994},{"$f":"'[1]EXT Comercio(M)'!AJ231","v":787.12276534000011},{"$f":"'[1]EXT Comercio(M)'!AK231","v":437.80000000000018},{"$f":"'[1]EXT Comercio(M)'!AL231","v":1495.4000000000008},{"$f":"'[1]EXT Comercio(M)'!AM231","v":1490.012580999999},{"$f":"'[1]EXT Comercio(M)'!AO231","v":6167.3917102599989},{"$f":"'[1]EXT Comercio(M)'!AP231","v":7657.404291259998},null,null,{"$f":"'[1]EXT Comercio(M)'!$BS231","v":-3096.8401167799984},{"$f":"'[1]EXT Comercio(M)'!$BT231","v":-3764.5027787799954}]
[null,null,"Julio",{"$f":"'[1]REAL IPC(M)'!AD232","v":14.169802643782106},{"$f":"'[1]REAL IPC(M)'!AE232","v":9.6385542168674778},{"$f":"'[1]REAL IPC(M)'!AF232","v":14.1558522976616},{"$f":"'[1]REAL IPC(M)'!AG232","v":13.758389261744963},{"$f":"'[1]REAL IPC(M)'!AH232","v":23.632240385523957},{"$f":"'[1]REAL IPC(M)'!AI232","v":13.72787226657409},{"$f":"'[1]REAL IPC(M)'!AJ232","v":9.5754290876242099},null,null,{"$f":"'[1]REAL IMAE(M)'!AG232","v":2.9564062102992179},{"$f":"'[1]REAL IMAE(M)'!AH232","v":0.65388180226692116},{"$f":"'[1]REAL IMAE(M)'!AI232","v":"n.d."},{"$f":"'[1]REAL IMAE(M)'!AJ232","v":4.9229357417509254},{"$f":"'[1]REAL IMAE(M)'!AK232","v":3.1924824964225906},{"$f":"'[1]REAL IMAE(M)'!AL232","v":2.467706493994402},{"$f":"'[1]REAL IMAE(M)'!AM232","v":11.887346656683761},null,null,{"$f":"'[1]EXT ITCER(M)'!C232","v":93.191976637677129},{"$f":"'[1]EXT ITCER(M)'!D232","v":91.65888374462547},{"$f":"'[1]EXT ITCER(M)'!E232","v":66.812883596266374},{"$f":"'[1]EXT ITCER(M)'!F232","v":85.458117559539815},{"$f":"'[1]EXT ITCER(M)'!G232","v":93.730167313338796},{"$f":"'[1]EXT ITCER(M)'!H232","v":92.149681105612657},{"$f":"'[1]EXT ITCER(M)'!I232","v":102.51070366968486},null,null,{"$f":"'[1]EXT TC(M)'!J232","v":3.0323220389572176},{"$f":"'[1]EXT TC(M)'!K232","v":0},{"$f":"'[1]EXT TC(M)'!L232","v":-3.107954202284462},{"$f":"'[1]EXT TC(M)'!M232","v":-2.426961122616467E-2},{"$f":"'[1]EXT TC(M)'!N232","v":5.503433179598038},{"$f":"'[1]EXT TC(M)'!O232","v":3.8823739796985475},{"$f":"'[1]EXT TC(M)'!P232","v":0},null,null,{"$f":"'[1]EXT RIN(M)'!C232","v":4106.6158990900003},{"$f":"'[1]EXT RIN(M)'!D232","v":2262.6},{"$f":"'[1]EXT RIN(M)'!E232","v":4742.3},{"$f":"'[1]EXT RIN(M)'!F232","v":2441.1181316090333},{"$f":"'[1]EXT RIN(M)'!G232","v":1053.8},{"$f":"'[1]EXT RIN(M)'!H232","v":2078.5},{"$f":"'[1]EXT RIN(M)'!I232","v":2430.5744654860796},null,null,{"$f":"'[1]EXT RIN(M)'!P232","v":68.873563841179788},{"$f":"'[1]EXT RIN(M)'!Q232","v":88.358065338731308},{"$f":"'[1]EXT RIN(M)'!R232","v":109.17843992928955},{"$f":"'[1]EXT RIN(M)'!S232","v":109.47353812678482},{"$f":"'[1]EXT RIN(M)'!T232","v":101.46131585599383},{"$f":"'[1]EXT RIN(M)'!U232","v":45.951182117383773},{"$f":"'[1]EXT RIN(M)'!V232","v":247.26361674072871},null,null,{"$f":"+'[1]MONE(M)CAPARD'!AE232","v":-6.2799466038777334},{"$f":"'[1]MONE(M)CAPARD'!AF232","v":-5.079010989010996},{"$f":"'[1]MONE(M)CAPARD'!AG232","v":-7.8277653907408515},{"$f":"'[1]MONE(M)CAPARD'!AH232","v":-4.0070796460176972},{"$f":"'[1]MONE(M)CAPARD'!AI232","v":-8.7923432991855428},{"$f":"'[1]MONE(M)CAPARD'!AJ232","v":-0.85983518998930419},{"$f":"'[1]MONE(M)CAPARD'!AK232","v":-5.5627699917559772},null,null,{"$f":"'[1]MONE(M)CAPARD'!AL232","v":3.87},{"$f":"'[1]MONE(M)CAPARD'!AM232","v":4.07},{"$f":"'[1]MONE(M)CAPARD'!AN232","v":3.68},{"$f":"'[1]MONE(M)CAPARD'!AO232","v":4.42},{"$f":"'[1]MONE(M)CAPARD'!AP232","v":6.28},{"$f":"'[1]MONE(M)CAPARD'!AQ232","v":2.0099999999999998},{"$f":"'[1]MONE(M)CAPARD'!AR232","v":3.48},null,null,{"$f":"'[1]MONE(M)CAPARD'!J232","v":1.7081551435300713},{"$f":"'[1]MONE(M)CAPARD'!K232","v":-2.0873626373626446},{"$f":"'[1]MONE(M)CAPARD'!L232","v":-0.59204349497502162},{"$f":"'[1]MONE(M)CAPARD'!M232","v":3.4561061946902703},{"$f":"'[1]MONE(M)CAPARD'!N232","v":-3.6721529903823424},{"$f":"'[1]MONE(M)CAPARD'!O232","v":6.9746558828017857},{"$f":"'[1]MONE(M)CAPARD'!P232","v":-2.3024625657058033},null,null,{"$f":"'[1]MONE(M)CAPARD'!Q232","v":9.86},{"$f":"'[1]MONE(M)CAPARD'!R232","v":7.35},{"$f":"'[1]MONE(M)CAPARD'!S232","v":7.51},{"$f":"'[1]MONE(M)CAPARD'!T232","v":9.8000000000000007},{"$f":"'[1]MONE(M)CAPARD'!U232","v":10.45},{"$f":"'[1]MONE(M)CAPARD'!V232","v":8.02},{"$f":"'[1]MONE(M)CAPARD'!W232","v":7.0524958516701544},null,null,{"$f":"'[1]MONE(M)CAPARD'!AS232","v":8.9976000000000003},{"$f":"'[1]MONE(M)CAPARD'!AT232","v":"n.a."},{"$f":"'[1]MONE(M)CAPARD'!AU232","v":7.25},{"$f":"'[1]MONE(M)CAPARD'!AV232","v":9},{"$f":"'[1]MONE(M)CAPARD'!AW232","v":"n.a."},{"$f":"'[1]MONE(M)CAPARD'!AX232","v":9},{"$f":"'[1]MONE(M)CAPARD'!AY232","v":"n.a."},null,null,{"$f":"+'Datos_Regional (M)'!CF225","v":44.483159397948711},{"$f":"+'Datos_Regional (M)'!CG225","v":7.4920309007296293},{"$f":"+'Datos_Regional (M)'!CH225","v":10.554711758621483},{"$f":"+'Datos_Regional (M)'!CI225","v":22.460381449836355},{"$f":"+'Datos_Regional (M)'!CJ225","v":26.140099248725267},{"$f":"+'Datos_Regional (M)'!CK225","v":23.636320650778742},{"$f":"+'Datos_Regional (M)'!CL225","v":18.393413784320135},null,null,805.40352346000009,371.95083333333338,626.13333333333333,234.36683907663198,221.70000000000005,595.55388333333337,863.32232133333321,2855.1084125366324,3718.4307338699655,null,null,1244.679815890833,805.89583333333303,1238.55,707.03401275883061,430.05,1334.2583333333334,1365.4783853333336,5760.4679953163295,7125.9463806496633,null,null,-2905.359582779698,-3407.5156467796974,null,null,{"$f":"'[1]EXT Comercio(M)'!C232","v":798.49376241000027},{"$f":"'[1]EXT Comercio(M)'!D232","v":448.11999999999989},{"$f":"'[1]EXT Comercio(M)'!E232","v":745.3},{"$f":"'[1]EXT Comercio(M)'!F232","v":247.9278598599999},{"$f":"'[1]EXT Comercio(M)'!G232","v":241.20000000000002},{"$f":"'[1]EXT Comercio(M)'!H232","v":659.35229999999956},{"$f":"'[1]EXT Comercio(M)'!I232","v":934.13854600000002},{"$f":"'[1]EXT Comercio(M)'!K232","v":3140.3939222699992},{"$f":"'[1]EXT Comercio(M)'!L232","v":4074.5324682699975},null,null,{"$f":"'[1]EXT Comercio(M)'!AG232","v":1350.2782169499997},{"$f":"'[1]EXT Comercio(M)'!AH232","v":917.79},{"$f":"'[1]EXT Comercio(M)'!AI232","v":1398.6000000000001},{"$f":"'[1]EXT Comercio(M)'!AJ232","v":836.55592788000013},{"$f":"'[1]EXT Comercio(M)'!AK232","v":524.29999999999984},{"$f":"'[1]EXT Comercio(M)'!AL232","v":1687.5999999999992},{"$f":"'[1]EXT Comercio(M)'!AM232","v":1790.6730790000001},{"$f":"'[1]EXT Comercio(M)'!AO232","v":6715.1241448299988},{"$f":"'[1]EXT Comercio(M)'!AP232","v":8505.797223829999},null,null,{"$f":"'[1]EXT Comercio(M)'!$BS232","v":-3574.7302225599997},{"$f":"'[1]EXT Comercio(M)'!$BT232","v":-4431.2647555600015}]
[null,null,"Agosto",{"$f":"'[1]REAL IPC(M)'!AD233","v":15.402643291095183},{"$f":"'[1]REAL IPC(M)'!AE233","v":9.8901098901099047},{"$f":"'[1]REAL IPC(M)'!AF233","v":13.68577995899857},{"$f":"'[1]REAL IPC(M)'!AG233","v":13.99222654081067},{"$f":"'[1]REAL IPC(M)'!AH233","v":23.91632114587259},{"$f":"'[1]REAL IPC(M)'!AI233","v":14.567685589519645},{"$f":"'[1]REAL IPC(M)'!AJ233","v":9.8286744815148612},null,null,{"$f":"'[1]REAL IMAE(M)'!AG233","v":2.3457365734813362},{"$f":"'[1]REAL IMAE(M)'!AH233","v":0.8653004846511726},{"$f":"'[1]REAL IMAE(M)'!AI233","v":"n.d."},{"$f":"'[1]REAL IMAE(M)'!AJ233","v":4.4244581435027994},{"$f":"'[1]REAL IMAE(M)'!AK233","v":2.6018452744087246},{"$f":"'[1]REAL IMAE(M)'!AL233","v":0.67405105632109574},{"$f":"'[1]REAL IMAE(M)'!AM233","v":11.301115241635699},null,null,{"$f":"'[1]EXT ITCER(M)'!C233","v":93.740100914654661},{"$f":"'[1]EXT ITCER(M)'!D233","v":91.228622115620595},{"$f":"'[1]EXT ITCER(M)'!E233","v":65.901867727213698},{"$f":"'[1]EXT ITCER(M)'!F233","v":84.32831882058494},{"$f":"'[1]EXT ITCER(M)'!G233","v":93.366808188762619},{"$f":"'[1]EXT ITCER(M)'!H233","v":92.772635558947329},{"$f":"'[1]EXT ITCER(M)'!I233","v":101.68238982965907},null,null,{"$f":"'[1]EXT TC(M)'!J233","v":5.9188801686540771},{"$f":"'[1]EXT TC(M)'!K233","v":0},{"$f":"'[1]EXT TC(M)'!L233","v":-3.3577792241937314},{"$f":"'[1]EXT TC(M)'!M233","v":-2.5396825396822604E-2},{"$f":"'[1]EXT TC(M)'!N233","v":5.2159825068851386},{"$f":"'[1]EXT TC(M)'!O233","v":5.3848374792955127},{"$f":"'[1]EXT TC(M)'!P233","v":0},null,null,{"$f":"'[1]EXT RIN(M)'!C233","v":4004.20506015},{"$f":"'[1]EXT RIN(M)'!D233","v":2304.3000000000002},{"$f":"'[1]EXT RIN(M)'!E233","v":4714.8999999999996},{"$f":"'[1]EXT RIN(M)'!F233","v":2386.9813027731525},{"$f":"'[1]EXT RIN(M)'!G233","v":1020.8},{"$f":"'[1]EXT RIN(M)'!H233","v":2111.1999999999998},{"$f":"'[1]EXT RIN(M)'!I233","v":2405.1473954663206},null,null,{"$f":"'[1]EXT RIN(M)'!P233","v":68.091590818016968},{"$f":"'[1]EXT RIN(M)'!Q233","v":89.869892825384952},{"$f":"'[1]EXT RIN(M)'!R233","v":105.57612904774093},{"$f":"'[1]EXT RIN(M)'!S233","v":108.56704527028094},{"$f":"'[1]EXT RIN(M)'!T233","v":101.52474323814442},{"$f":"'[1]EXT RIN(M)'!U233","v":44.894407981798054},{"$f":"'[1]EXT RIN(M)'!V233","v":243.97711180817691},null,null,{"$f":"+'[1]MONE(M)CAPARD'!AE233","v":-5.9813563140696377},{"$f":"'[1]MONE(M)CAPARD'!AF233","v":-5.2508000000000123},{"$f":"'[1]MONE(M)CAPARD'!AG233","v":-1.2228390383301209},{"$f":"'[1]MONE(M)CAPARD'!AH233","v":-3.8530930345835439},{"$f":"'[1]MONE(M)CAPARD'!AI233","v":-9.0116250936379796},{"$f":"'[1]MONE(M)CAPARD'!AJ233","v":-0.81845555724957486},{"$f":"'[1]MONE(M)CAPARD'!AK233","v":-5.8442610837438282},null,null,{"$f":"'[1]MONE(M)CAPARD'!AL233","v":3.89},{"$f":"'[1]MONE(M)CAPARD'!AM233","v":4.12},{"$f":"'[1]MONE(M)CAPARD'!AN233","v":3.67},{"$f":"'[1]MONE(M)CAPARD'!AO233","v":4.37},{"$f":"'[1]MONE(M)CAPARD'!AP233","v":7.25},{"$f":"'[1]MONE(M)CAPARD'!AQ233","v":2.35},{"$f":"'[1]MONE(M)CAPARD'!AR233","v":3.41},null,null,{"$f":"'[1]MONE(M)CAPARD'!J233","v":1.9127436304356669},{"$f":"'[1]MONE(M)CAPARD'!K233","v":-2.1841000000000128},{"$f":"'[1]MONE(M)CAPARD'!L233","v":6.0176181897247956},{"$f":"'[1]MONE(M)CAPARD'!M233","v":4.0246371164149926},{"$f":"'[1]MONE(M)CAPARD'!N233","v":-3.4585831760604573},{"$f":"'[1]MONE(M)CAPARD'!O233","v":8.0060222594907806},{"$f":"'[1]MONE(M)CAPARD'!P233","v":-2.584529519157921},null,null,{"$f":"'[1]MONE(M)CAPARD'!Q233","v":10.43},{"$f":"'[1]MONE(M)CAPARD'!R233","v":7.49},{"$f":"'[1]MONE(M)CAPARD'!S233","v":7.5600000000000005},{"$f":"'[1]MONE(M)CAPARD'!T233","v":10.09},{"$f":"'[1]MONE(M)CAPARD'!U233","v":10.83},{"$f":"'[1]MONE(M)CAPARD'!V233","v":8.26},{"$f":"'[1]MONE(M)CAPARD'!W233","v":6.9901199690402471},null,null,{"$f":"'[1]MONE(M)CAPARD'!AS233","v":10},{"$f":"'[1]MONE(M)CAPARD'!AT233","v":"n.a."},{"$f":"'[1]MONE(M)CAPARD'!AU233","v":7.25},{"$f":"'[1]MONE(M)CAPARD'!AV233","v":9},{"$f":"'[1]MONE(M)CAPARD'!AW233","v":"n.a."},{"$f":"'[1]MONE(M)CAPARD'!AX233","v":9.5},{"$f":"'[1]MONE(M)CAPARD'!AY233","v":"n.a."},null,null,{"$f":"+'Datos_Regional (M)'!CF226","v":41.990596270935598},{"$f":"+'Datos_Regional (M)'!CG226","v":7.5957732425602664},{"$f":"+'Datos_Regional (M)'!CH226","v":0},{"$f":"+'Datos_Regional (M)'!CI226","v":20.634849799284403},{"$f":"+'Datos_Regional (M)'!CJ226","v":25.761831771668021},{"$f":"+'Datos_Regional (M)'!CK226","v":22.412121148538368},{"$f":"+'Datos_Regional (M)'!CL226","v":19.126106651075169},null,null,804.43549423833338,378.05916666666673,634.1583333333333,236.07527319826457,225.31666666666663,593.14105833333349,872.84756991666654,2871.1859924365986,3744.0335623532651,null,null,1263.8653700091663,811.84583333333319,1236.333333333333,720.44756931555548,434.06666666666661,1351.3416666666665,1394.3817409999999,5817.9004393247205,7212.2821803247207,null,null,-2946.7144468881233,-3468.2486179714565,null,null,{"$f":"'[1]EXT Comercio(M)'!C233","v":793.99849496000024},{"$f":"'[1]EXT Comercio(M)'!D233","v":422.52},{"$f":"'[1]EXT Comercio(M)'!E233","v":685.00000000000045},{"$f":"'[1]EXT Comercio(M)'!F233","v":234.07268586000009},{"$f":"'[1]EXT Comercio(M)'!G233","v":251.2999999999999},{"$f":"'[1]EXT Comercio(M)'!H233","v":599.61660000000029},{"$f":"'[1]EXT Comercio(M)'!I233","v":933.50698299999999},{"$f":"'[1]EXT Comercio(M)'!K233","v":2986.507780820004},{"$f":"'[1]EXT Comercio(M)'!L233","v":3920.0147638200033},null,null,{"$f":"'[1]EXT Comercio(M)'!AG233","v":1371.2307296899999},{"$f":"'[1]EXT Comercio(M)'!AH233","v":776.63000000000011},{"$f":"'[1]EXT Comercio(M)'!AI233","v":1233.0999999999995},{"$f":"'[1]EXT Comercio(M)'!AJ233","v":839.3081174099998},{"$f":"'[1]EXT Comercio(M)'!AK233","v":437.5999999999998},{"$f":"'[1]EXT Comercio(M)'!AL233","v":1376.7999999999993},{"$f":"'[1]EXT Comercio(M)'!AM233","v":1651.9555809999995},{"$f":"'[1]EXT Comercio(M)'!AO233","v":6034.6688471000016},{"$f":"'[1]EXT Comercio(M)'!AP233","v":7686.6244281000036},null,null,{"$f":"'[1]EXT Comercio(M)'!$BS233","v":-3048.1610662800013},{"$f":"'[1]EXT Comercio(M)'!$BT233","v":-3766.6096642800003}]
[null,null,"Setiembre",{"$f":"'[1]REAL IPC(M)'!AD234","v":15.76682087170731},{"$f":"'[1]REAL IPC(M)'!AE234","v":8.6784376672017167},{"$f":"'[1]REAL IPC(M)'!AF234","v":12.748364803159332},{"$f":"'[1]REAL IPC(M)'!AG234","v":13.716814159292026},{"$f":"'[1]REAL IPC(M)'!AH234","v":22.791651136787188},{"$f":"'[1]REAL IPC(M)'!AI234","v":14.578587699316625},{"$f":"'[1]REAL IPC(M)'!AJ234","v":10.044843049327357},null,null,{"$f":"'[1]REAL IMAE(M)'!AG234","v":1.6898729377063888},{"$f":"'[1]REAL IMAE(M)'!AH234","v":1.2082784937306095},{"$f":"'[1]REAL IMAE(M)'!AI234","v":"n.d."},{"$f":"'[1]REAL IMAE(M)'!AJ234","v":3.8433855305341198},{"$f":"'[1]REAL IMAE(M)'!AK234","v":2.0565767354574906},{"$f":"'[1]REAL IMAE(M)'!AL234","v":-0.85386761157065971},{"$f":"'[1]REAL IMAE(M)'!AM234","v":10.174006688204946},null,null,{"$f":"'[1]EXT ITCER(M)'!C234","v":93.037781196699981},{"$f":"'[1]EXT ITCER(M)'!D234","v":91.4865492321061},{"$f":"'[1]EXT ITCER(M)'!E234","v":66.38816486328264},{"$f":"'[1]EXT ITCER(M)'!F234","v":84.088475142358675},{"$f":"'[1]EXT ITCER(M)'!G234","v":92.83595528287357},{"$f":"'[1]EXT ITCER(M)'!H234","v":91.932485136217181},{"$f":"'[1]EXT ITCER(M)'!I234","v":100.79695610489442},null,null,{"$f":"'[1]EXT TC(M)'!J234","v":6.3147634110128772},{"$f":"'[1]EXT TC(M)'!K234","v":0},{"$f":"'[1]EXT TC(M)'!L234","v":-3.1191989579150219},{"$f":"'[1]EXT TC(M)'!M234","v":-2.5799949609446409E-2},{"$f":"'[1]EXT TC(M)'!N234","v":4.5075027282833737},{"$f":"'[1]EXT TC(M)'!O234","v":4.5802283058409579},{"$f":"'[1]EXT TC(M)'!P234","v":0},null,null,{"$f":"'[1]EXT RIN(M)'!C234","v":3814.0297339700001},{"$f":"'[1]EXT RIN(M)'!D234","v":2259},{"$f":"'[1]EXT RIN(M)'!E234","v":4745.0700062100004},{"$f":"'[1]EXT RIN(M)'!F234","v":2358.4707795904228},{"$f":"'[1]EXT RIN(M)'!G234","v":1053},{"$f":"'[1]EXT RIN(M)'!H234","v":2099.1999999999998},{"$f":"'[1]EXT RIN(M)'!I234","v":2224.2239325130799},null,null,{"$f":"'[1]EXT RIN(M)'!P234","v":65.896672714668398},{"$f":"'[1]EXT RIN(M)'!Q234","v":89.602073976646352},{"$f":"'[1]EXT RIN(M)'!R234","v":107.52010803754504},{"$f":"'[1]EXT RIN(M)'!S234","v":109.26377360670192},{"$f":"'[1]EXT RIN(M)'!T234","v":100.20920832464182},{"$f":"'[1]EXT RIN(M)'!U234","v":43.949378141292506},{"$f":"'[1]EXT RIN(M)'!V234","v":223.51695737436086},null,null,{"$f":"+'[1]MONE(M)CAPARD'!AE234","v":-5.6292647777978155},{"$f":"'[1]MONE(M)CAPARD'!AF234","v":-3.8907788499409257},{"$f":"'[1]MONE(M)CAPARD'!AG234","v":-6.5707070928196218},{"$f":"'[1]MONE(M)CAPARD'!AH234","v":-3.2421011673151678},{"$f":"'[1]MONE(M)CAPARD'!AI234","v":-8.8986670634963794},{"$f":"'[1]MONE(M)CAPARD'!AJ234","v":-0.47878727634194551},{"$f":"'[1]MONE(M)CAPARD'!AK234","v":-6.0473920130399366},null,null,{"$f":"'[1]MONE(M)CAPARD'!AL234","v":3.9849999999999999},{"$f":"'[1]MONE(M)CAPARD'!AM234","v":4.45},{"$f":"'[1]MONE(M)CAPARD'!AN234","v":3.73},{"$f":"'[1]MONE(M)CAPARD'!AO234","v":4.43},{"$f":"'[1]MONE(M)CAPARD'!AP234","v":6.53},{"$f":"'[1]MONE(M)CAPARD'!AQ234","v":2.79},{"$f":"'[1]MONE(M)CAPARD'!AR234","v":3.39},null,null,{"$f":"'[1]MONE(M)CAPARD'!J234","v":2.1881737005630981},{"$f":"'[1]MONE(M)CAPARD'!K234","v":-1.038327097282399},{"$f":"'[1]MONE(M)CAPARD'!L234","v":0.81742666374780382},{"$f":"'[1]MONE(M)CAPARD'!M234","v":4.6019455252918364},{"$f":"'[1]MONE(M)CAPARD'!N234","v":-4.1155066458660539},{"$f":"'[1]MONE(M)CAPARD'!O234","v":7.7600994035785327},{"$f":"'[1]MONE(M)CAPARD'!P234","v":-3.0970795979353456},null,null,{"$f":"'[1]MONE(M)CAPARD'!Q234","v":10.59},{"$f":"'[1]MONE(M)CAPARD'!R234","v":7.55},{"$f":"'[1]MONE(M)CAPARD'!S234","v":7.66},{"$f":"'[1]MONE(M)CAPARD'!T234","v":10.14},{"$f":"'[1]MONE(M)CAPARD'!U234","v":10.52},{"$f":"'[1]MONE(M)CAPARD'!V234","v":7.91},{"$f":"'[1]MONE(M)CAPARD'!W234","v":6.6366666666666667},null,null,{"$f":"'[1]MONE(M)CAPARD'!AS234","v":10},{"$f":"'[1]MONE(M)CAPARD'!AT234","v":"n.a."},{"$f":"'[1]MONE(M)CAPARD'!AU234","v":7.25},{"$f":"'[1]MONE(M)CAPARD'!AV234","v":9},{"$f":"'[1]MONE(M)CAPARD'!AW234","v":"n.a."},{"$f":"'[1]MONE(M)CAPARD'!AX234","v":9.5},{"$f":"'[1]MONE(M)CAPARD'!AY234","v":"n.a."},null,null,{"$f":"+'Datos_Regional (M)'!CF227","v":39.166562363655764},{"$f":"+'Datos_Regional (M)'!CG227","v":7.2704308649084171},{"$f":"+'Datos_Regional (M)'!CH227","v":10.835783331133708},{"$f":"+'Datos_Regional (M)'!CI227","v":18.88194961469982},{"$f":"+'Datos_Regional (M)'!CJ227","v":23.757716516697556},{"$f":"+'Datos_Regional (M)'!CK227","v":20.983410613861441},{"$f":"+'Datos_Regional (M)'!CL227","v":20.028507696367058},null,null,809.64569980416672,381.02333333333337,643.25833333333344,239.20898882257009,228.84166666666667,592.01935833333346,887.24102391666656,2893.9973802934037,3781.2384042100698,null,null,1287.043767578333,823.17583333333312,1246.5499999999995,738.16816918268057,440.49999999999994,1361.4416666666666,1441.9641643333334,5896.8794367610126,7338.8436010943478,null,null,-3002.8820564676084,-3557.6051968842753,null,null,{"$f":"'[1]EXT Comercio(M)'!C234","v":811.47627181999997},{"$f":"'[1]EXT Comercio(M)'!D234","v":375.76000000000022},{"$f":"'[1]EXT Comercio(M)'!E234","v":638.19999999999959},{"$f":"'[1]EXT Comercio(M)'!F234","v":239.40258559999984},{"$f":"'[1]EXT Comercio(M)'!G234","v":230.00000000000009},{"$f":"'[1]EXT Comercio(M)'!H234","v":519.8739999999998},{"$f":"'[1]EXT Comercio(M)'!I234","v":1028.0414479999999},{"$f":"'[1]EXT Comercio(M)'!K234","v":2814.712857419996},{"$f":"'[1]EXT Comercio(M)'!L234","v":3842.7543054199959},null,null,{"$f":"'[1]EXT Comercio(M)'!AG234","v":1365.3244560599996},{"$f":"'[1]EXT Comercio(M)'!AH234","v":868.71},{"$f":"'[1]EXT Comercio(M)'!AI234","v":1190.3},{"$f":"'[1]EXT Comercio(M)'!AJ234","v":781.34400941999957},{"$f":"'[1]EXT Comercio(M)'!AK234","v":417.19999999999993},{"$f":"'[1]EXT Comercio(M)'!AL234","v":1293.6000000000008},{"$f":"'[1]EXT Comercio(M)'!AM234","v":1847.6976380000001},{"$f":"'[1]EXT Comercio(M)'!AO234","v":5916.4784654800023},{"$f":"'[1]EXT Comercio(M)'!AP234","v":7764.1761034800074},null,null,{"$f":"'[1]EXT Comercio(M)'!$BS234","v":-3101.7656080599954},{"$f":"'[1]EXT Comercio(M)'!$BT234","v":-3921.4217980599933}]
[null,null,"Octubre",{"$f":"'[1]REAL IPC(M)'!AD235","v":16.303829005605895},{"$f":"'[1]REAL IPC(M)'!AE235","v":7.4062267559239237},{"$f":"'[1]REAL IPC(M)'!AF235","v":12.926634278334644},{"$f":"'[1]REAL IPC(M)'!AG235","v":13.060109289617488},{"$f":"'[1]REAL IPC(M)'!AH235","v":20.286679448552906},{"$f":"'[1]REAL IPC(M)'!AI235","v":12.843500961802684},{"$f":"'[1]REAL IPC(M)'!AJ235","v":9.4558429973238383},null,null,{"$f":"'[1]REAL IMAE(M)'!AG235","v":0.93852140163525088},{"$f":"'[1]REAL IMAE(M)'!AH235","v":0.74132435529214258},{"$f":"'[1]REAL IMAE(M)'!AI235","v":"n.d."},{"$f":"'[1]REAL IMAE(M)'!AJ235","v":0.36751506905276521},{"$f":"'[1]REAL IMAE(M)'!AK235","v":1.3938395756788735},{"$f":"'[1]REAL IMAE(M)'!AL235","v":-1.8675275385241692},{"$f":"'[1]REAL IMAE(M)'!AM235","v":8.5884067720596438},null,null,{"$f":"'[1]EXT ITCER(M)'!C235","v":91.36508936140892},{"$f":"'[1]EXT ITCER(M)'!D235","v":90.998533909338022},{"$f":"'[1]EXT ITCER(M)'!E235","v":65.942341895395302},{"$f":"'[1]EXT ITCER(M)'!F235","v":82.716038480899229},{"$f":"'[1]EXT ITCER(M)'!G235","v":92.931433230124085},{"$f":"'[1]EXT ITCER(M)'!H235","v":92.383058701801957},{"$f":"'[1]EXT ITCER(M)'!I235","v":99.778772457207836},null,null,{"$f":"'[1]EXT TC(M)'!J235","v":6.5177765774429259},{"$f":"'[1]EXT TC(M)'!K235","v":0},{"$f":"'[1]EXT TC(M)'!L235","v":-2.566935811082844},{"$f":"'[1]EXT TC(M)'!M235","v":-2.582514487271895E-2},{"$f":"'[1]EXT TC(M)'!N235","v":4.9837786946512184},{"$f":"'[1]EXT TC(M)'!O235","v":4.5879402542512215},{"$f":"'[1]EXT TC(M)'!P235","v":0},null,null,{"$f":"'[1]EXT RIN(M)'!C235","v":3625.18987436},{"$f":"'[1]EXT RIN(M)'!D235","v":2342.8000000000002},{"$f":"'[1]EXT RIN(M)'!E235","v":4787.33603958},{"$f":"'[1]EXT RIN(M)'!F235","v":2336.5118956681367},{"$f":"'[1]EXT RIN(M)'!G235","v":1017.2},{"$f":"'[1]EXT RIN(M)'!H235","v":2007.7},{"$f":"'[1]EXT RIN(M)'!I235","v":2373.8951024462003},null,null,{"$f":"'[1]EXT RIN(M)'!P235","v":65.366507693882184},{"$f":"'[1]EXT RIN(M)'!Q235","v":91.234011266785103},{"$f":"'[1]EXT RIN(M)'!R235","v":108.75473456555767},{"$f":"'[1]EXT RIN(M)'!S235","v":108.94739978786481},{"$f":"'[1]EXT RIN(M)'!T235","v":100.27315939094007},{"$f":"'[1]EXT RIN(M)'!U235","v":43.65050432148049},{"$f":"'[1]EXT RIN(M)'!V235","v":185.57028394158723},null,null,{"$f":"+'[1]MONE(M)CAPARD'!AE235","v":-4.9902303778202759},{"$f":"'[1]MONE(M)CAPARD'!AF235","v":-2.3706509695290898},{"$f":"'[1]MONE(M)CAPARD'!AG235","v":-6.647355007351722},{"$f":"'[1]MONE(M)CAPARD'!AH235","v":-2.167085548574192},{"$f":"'[1]MONE(M)CAPARD'!AI235","v":-5.9754369259809499},{"$f":"'[1]MONE(M)CAPARD'!AJ235","v":1.4059285866488158},{"$f":"'[1]MONE(M)CAPARD'!AK235","v":-5.6879951100244668},null,null,{"$f":"'[1]MONE(M)CAPARD'!AL235","v":4.1150000000000002},{"$f":"'[1]MONE(M)CAPARD'!AM235","v":4.8600000000000003},{"$f":"'[1]MONE(M)CAPARD'!AN235","v":3.78},{"$f":"'[1]MONE(M)CAPARD'!AO235","v":4.4400000000000004},{"$f":"'[1]MONE(M)CAPARD'!AP235","v":6.52},{"$f":"'[1]MONE(M)CAPARD'!AQ235","v":2.85},{"$f":"'[1]MONE(M)CAPARD'!AR235","v":3.23},null,null,{"$f":"'[1]MONE(M)CAPARD'!J235","v":3.2726102200905576},{"$f":"'[1]MONE(M)CAPARD'!K235","v":1.1021458250890337},{"$f":"'[1]MONE(M)CAPARD'!L235","v":0.73797091978436802},{"$f":"'[1]MONE(M)CAPARD'!M235","v":5.4837119381343644},{"$f":"'[1]MONE(M)CAPARD'!N235","v":-1.3933432089234989},{"$f":"'[1]MONE(M)CAPARD'!O235","v":10.196864631213671},{"$f":"'[1]MONE(M)CAPARD'!P235","v":-2.3959521869057503},null,null,{"$f":"'[1]MONE(M)CAPARD'!Q235","v":11.92},{"$f":"'[1]MONE(M)CAPARD'!R235","v":8.59},{"$f":"'[1]MONE(M)CAPARD'!S235","v":7.84},{"$f":"'[1]MONE(M)CAPARD'!T235","v":10.48},{"$f":"'[1]MONE(M)CAPARD'!U235","v":11.26},{"$f":"'[1]MONE(M)CAPARD'!V235","v":7.69},{"$f":"'[1]MONE(M)CAPARD'!W235","v":6.833333333333333},null,null,{"$f":"'[1]MONE(M)CAPARD'!AS235","v":10},{"$f":"'[1]MONE(M)CAPARD'!AT235","v":"n.a."},{"$f":"'[1]MONE(M)CAPARD'!AU235","v":7.25},{"$f":"'[1]MONE(M)CAPARD'!AV235","v":9},{"$f":"'[1]MONE(M)CAPARD'!AW235","v":"n.a."},{"$f":"'[1]MONE(M)CAPARD'!AX235","v":9.5},{"$f":"'[1]MONE(M)CAPARD'!AY235","v":"n.a."},null,null,{"$f":"+'Datos_Regional (M)'!CF228","v":34.832020144123788},{"$f":"+'Datos_Regional (M)'!CG228","v":7.030582101039573},{"$f":"+'Datos_Regional (M)'!CH228","v":9.6039807750441639},{"$f":"+'Datos_Regional (M)'!CI228","v":15.315869356785949},{"$f":"+'Datos_Regional (M)'!CJ228","v":17.990331566078609},{"$f":"+'Datos_Regional (M)'!CK228","v":18.635269939082487},{"$f":"+'Datos_Regional (M)'!CL228","v":19.276794903484884},null,null,813.74625185083335,385.98250000000007,648.7166666666667,240.53107061837758,230.69166666666663,589.7270583333335,906.69614016666662,2909.3952141358786,3816.091354302544,null,null,1307.0606982074999,823.23333333333323,1248.2916666666663,743.8136945208513,448.70833333333326,1368.0166666666667,1479.60706725,5939.1243927283504,7418.7314599783504,null,null,-3029.7291785924722,-3602.6401056758064,null,null,{"$f":"'[1]EXT Comercio(M)'!C235","v":904.92550842000037},{"$f":"'[1]EXT Comercio(M)'!D235","v":408.55999999999995},{"$f":"'[1]EXT Comercio(M)'!E235","v":623.30000000000018},{"$f":"'[1]EXT Comercio(M)'!F235","v":207.92786650000016},{"$f":"'[1]EXT Comercio(M)'!G235","v":225.99999999999994},{"$f":"'[1]EXT Comercio(M)'!H235","v":559.99489999999969},{"$f":"'[1]EXT Comercio(M)'!I235","v":1324.789395},{"$f":"'[1]EXT Comercio(M)'!K235","v":2930.7082749200017},{"$f":"'[1]EXT Comercio(M)'!L235","v":4255.4976699200051},null,null,{"$f":"'[1]EXT Comercio(M)'!AG235","v":1463.18218505},{"$f":"'[1]EXT Comercio(M)'!AH235","v":831.79000000000087},{"$f":"'[1]EXT Comercio(M)'!AI235","v":1294.7999999999997},{"$f":"'[1]EXT Comercio(M)'!AJ235","v":733.76800473999992},{"$f":"'[1]EXT Comercio(M)'!AK235","v":521.79999999999984},{"$f":"'[1]EXT Comercio(M)'!AL235","v":1300.9000000000001},{"$f":"'[1]EXT Comercio(M)'!AM235","v":2015.277391000001},{"$f":"'[1]EXT Comercio(M)'!AO235","v":6146.2401897899981},{"$f":"'[1]EXT Comercio(M)'!AP235","v":8161.5175807899941},null,null,{"$f":"'[1]EXT Comercio(M)'!$BS235","v":-3215.53191487},{"$f":"'[1]EXT Comercio(M)'!$BT235","v":-3906.0199108700035}]
[null,null,"Noviembre",{"$f":"'[1]REAL IPC(M)'!AD236","v":16.297472981281039},{"$f":"'[1]REAL IPC(M)'!AE236","v":5.294055980710751},{"$f":"'[1]REAL IPC(M)'!AF236","v":10.846209560598744},{"$f":"'[1]REAL IPC(M)'!AG236","v":10.902255639097751},{"$f":"'[1]REAL IPC(M)'!AH236","v":15.423669467787132},{"$f":"'[1]REAL IPC(M)'!AI236","v":7.214198947226345},{"$f":"'[1]REAL IPC(M)'!AJ236","v":7.6787290379523521},null,null,{"$f":"'[1]REAL IMAE(M)'!AG236","v":5.0173943297483453E-2},{"$f":"'[1]REAL IMAE(M)'!AH236","v":-0.27782061797008617},{"$f":"'[1]REAL IMAE(M)'!AI236","v":"n.d."},{"$f":"'[1]REAL IMAE(M)'!AJ236","v":-6.6205818479210421E-2},{"$f":"'[1]REAL IMAE(M)'!AK236","v":0.52255617917537456},{"$f":"'[1]REAL IMAE(M)'!AL236","v":-2.281037049170366},{"$f":"'[1]REAL IMAE(M)'!AM236","v":6.8671429362574106},null,null,{"$f":"'[1]EXT ITCER(M)'!C236","v":88.264102634847958},{"$f":"'[1]EXT ITCER(M)'!D236","v":89.819474977015631},{"$f":"'[1]EXT ITCER(M)'!E236","v":65.600327904010499},{"$f":"'[1]EXT ITCER(M)'!F236","v":81.288925444153776},{"$f":"'[1]EXT ITCER(M)'!G236","v":91.467697561572209},{"$f":"'[1]EXT ITCER(M)'!H236","v":94.231537203212639},{"$f":"'[1]EXT ITCER(M)'!I236","v":98.42925617109475},null,null,{"$f":"'[1]EXT TC(M)'!J236","v":7.3073798760524058},{"$f":"'[1]EXT TC(M)'!K236","v":0},{"$f":"'[1]EXT TC(M)'!L236","v":-0.11804348014108808},{"$f":"'[1]EXT TC(M)'!M236","v":-2.5846560846531627E-2},{"$f":"'[1]EXT TC(M)'!N236","v":4.9943474777764143},{"$f":"'[1]EXT TC(M)'!O236","v":5.3466395672879798},{"$f":"'[1]EXT TC(M)'!P236","v":0},null,null,{"$f":"'[1]EXT RIN(M)'!C236","v":3753.9122622899999},{"$f":"'[1]EXT RIN(M)'!D236","v":2407.6},{"$f":"'[1]EXT RIN(M)'!E236","v":4727.00320663},{"$f":"'[1]EXT RIN(M)'!F236","v":2330.8160575153879},{"$f":"'[1]EXT RIN(M)'!G236","v":1012.8},{"$f":"'[1]EXT RIN(M)'!H236","v":1986.5},{"$f":"'[1]EXT RIN(M)'!I236","v":2352.9313784329697},null,null,{"$f":"'[1]EXT RIN(M)'!P236","v":63.576285808664053},{"$f":"'[1]EXT RIN(M)'!Q236","v":91.620262249491304},{"$f":"'[1]EXT RIN(M)'!R236","v":104.03167619691629},{"$f":"'[1]EXT RIN(M)'!S236","v":106.75175348852422},{"$f":"'[1]EXT RIN(M)'!T236","v":97.152063869333418},{"$f":"'[1]EXT RIN(M)'!U236","v":42.269402515413972},{"$f":"'[1]EXT RIN(M)'!V236","v":235.4018942976428},null,null,{"$f":"+'[1]MONE(M)CAPARD'!AE236","v":-4.5551058380552325},{"$f":"'[1]MONE(M)CAPARD'!AF236","v":-0.39323775388290078},{"$f":"'[1]MONE(M)CAPARD'!AG236","v":-4.8681949360196022},{"$f":"'[1]MONE(M)CAPARD'!AH236","v":0.20535593220338458},{"$f":"'[1]MONE(M)CAPARD'!AI236","v":-2.231556846658644},{"$f":"'[1]MONE(M)CAPARD'!AJ236","v":6.8421917290866761},{"$f":"'[1]MONE(M)CAPARD'!AK236","v":-4.0664754098360776},null,null,{"$f":"'[1]MONE(M)CAPARD'!AL236","v":4.2850000000000001},{"$f":"'[1]MONE(M)CAPARD'!AM236","v":4.88},{"$f":"'[1]MONE(M)CAPARD'!AN236","v":3.77},{"$f":"'[1]MONE(M)CAPARD'!AO236","v":4.58},{"$f":"'[1]MONE(M)CAPARD'!AP236","v":6.96},{"$f":"'[1]MONE(M)CAPARD'!AQ236","v":3.1},{"$f":"'[1]MONE(M)CAPARD'!AR236","v":3.3},null,null,{"$f":"'[1]MONE(M)CAPARD'!J236","v":3.9489482453829097},{"$f":"'[1]MONE(M)CAPARD'!K236","v":3.6620718837116839},{"$f":"'[1]MONE(M)CAPARD'!L236","v":2.6557429893819759},{"$f":"'[1]MONE(M)CAPARD'!M236","v":7.8968135593220277},{"$f":"'[1]MONE(M)CAPARD'!N236","v":3.4446162578896371},{"$f":"'[1]MONE(M)CAPARD'!O236","v":15.954790709385035},{"$f":"'[1]MONE(M)CAPARD'!P236","v":-0.99251639344263476},null,null,{"$f":"'[1]MONE(M)CAPARD'!Q236","v":11.88},{"$f":"'[1]MONE(M)CAPARD'!R236","v":9.15},{"$f":"'[1]MONE(M)CAPARD'!S236","v":8.0500000000000007},{"$f":"'[1]MONE(M)CAPARD'!T236","v":10.72},{"$f":"'[1]MONE(M)CAPARD'!U236","v":11.96},{"$f":"'[1]MONE(M)CAPARD'!V236","v":8.69},{"$f":"'[1]MONE(M)CAPARD'!W236","v":6.61},null,null,{"$f":"'[1]MONE(M)CAPARD'!AS236","v":10},{"$f":"'[1]MONE(M)CAPARD'!AT236","v":"n.a."},{"$f":"'[1]MONE(M)CAPARD'!AU236","v":7.25},{"$f":"'[1]MONE(M)CAPARD'!AV236","v":9},{"$f":"'[1]MONE(M)CAPARD'!AW236","v":"n.a."},{"$f":"'[1]MONE(M)CAPARD'!AX236","v":9.5},{"$f":"'[1]MONE(M)CAPARD'!AY236","v":"n.a."},null,null,{"$f":"+'Datos_Regional (M)'!CF229","v":30.502748713499095},{"$f":"+'Datos_Regional (M)'!CG229","v":6.1315329171933719},{"$f":"+'Datos_Regional (M)'!CH229","v":9.8041638801219975},{"$f":"+'Datos_Regional (M)'!CI229","v":13.224243706789673},{"$f":"+'Datos_Regional (M)'!CJ229","v":15.319832533958945},{"$f":"+'Datos_Regional (M)'!CK229","v":17.005980941688303},{"$f":"+'Datos_Regional (M)'!CL229","v":18.383480606932913},null,null,800.82214952333334,390.36916666666667,646.9083333333333,237.2448977890499,230.07500000000002,579.39918333333355,909.0975698333333,2884.8187306457171,3793.9163004790494,null,null,1286.128622883333,817.22583333333341,1229.3916666666664,740.13419594758454,437.9666666666667,1351.7499999999998,1495.8232435833331,5862.5969854975847,7358.4202290809189,null,null,-2977.7782548518676,-3564.5039286018678,null,null,{"$f":"'[1]EXT Comercio(M)'!C236","v":658.08984925999903},{"$f":"'[1]EXT Comercio(M)'!D236","v":366.82999999999993},{"$f":"'[1]EXT Comercio(M)'!E236","v":517.89999999999964},{"$f":"'[1]EXT Comercio(M)'!F236","v":166.13160134999998},{"$f":"'[1]EXT Comercio(M)'!G236","v":185.89999999999992},{"$f":"'[1]EXT Comercio(M)'!H236","v":445.79690000000028},{"$f":"'[1]EXT Comercio(M)'!I236","v":1004.8121560000001},{"$f":"'[1]EXT Comercio(M)'!K236","v":2340.6483506099976},{"$f":"'[1]EXT Comercio(M)'!L236","v":3345.4605066099975},null,null,{"$f":"'[1]EXT Comercio(M)'!AG236","v":1063.0872451200012},{"$f":"'[1]EXT Comercio(M)'!AH236","v":719.5},{"$f":"'[1]EXT Comercio(M)'!AI236","v":983.79999999999882},{"$f":"'[1]EXT Comercio(M)'!AJ236","v":659.22157288999915},{"$f":"'[1]EXT Comercio(M)'!AK236","v":361},{"$f":"'[1]EXT Comercio(M)'!AL236","v":1141.4000000000001},{"$f":"'[1]EXT Comercio(M)'!AM236","v":1442.7058499999998},{"$f":"'[1]EXT Comercio(M)'!AO236","v":4928.0088180099992},{"$f":"'[1]EXT Comercio(M)'!AP236","v":6370.7146680099977},null,null,{"$f":"'[1]EXT Comercio(M)'!$BS236","v":-2587.3604674000053},{"$f":"'[1]EXT Comercio(M)'!$BT236","v":-3025.2541614000074}]
[null,null,"Diciembre ",{"$f":"'[1]REAL IPC(M)'!AD237","v":13.902332617361093},{"$f":"'[1]REAL IPC(M)'!AE237","v":5.4742604484682627},{"$f":"'[1]REAL IPC(M)'!AF237","v":9.4002272319559861},{"$f":"'[1]REAL IPC(M)'!AG237","v":10.831099195710451},{"$f":"'[1]REAL IPC(M)'!AH237","v":13.777893098079922},{"$f":"'[1]REAL IPC(M)'!AI237","v":4.5172482818442559},{"$f":"'[1]REAL IPC(M)'!AJ237","v":6.7662565905096752},null,null,{"$f":"'[1]REAL IMAE(M)'!AG237","v":-0.96487056925571113},{"$f":"'[1]REAL IMAE(M)'!AH237","v":-1.0959771610544118},{"$f":"'[1]REAL IMAE(M)'!AI237","v":"n.d."},{"$f":"'[1]REAL IMAE(M)'!AJ237","v":0.3220358332547254},{"$f":"'[1]REAL IMAE(M)'!AK237","v":-0.50638206847946365},{"$f":"'[1]REAL IMAE(M)'!AL237","v":-2.3978065230018628},{"$f":"'[1]REAL IMAE(M)'!AM237","v":5.2165354330708613},null,null,{"$f":"'[1]EXT ITCER(M)'!C237","v":87.053265669854682},{"$f":"'[1]EXT ITCER(M)'!D237","v":89.114536452556138},{"$f":"'[1]EXT ITCER(M)'!E237","v":65.752511471485207},{"$f":"'[1]EXT ITCER(M)'!F237","v":80.370292520057021},{"$f":"'[1]EXT ITCER(M)'!G237","v":91.030668251690841},{"$f":"'[1]EXT ITCER(M)'!H237","v":94.753375187734449},{"$f":"'[1]EXT ITCER(M)'!I237","v":97.812123525295632},null,null,{"$f":"'[1]EXT TC(M)'!J237","v":9.8289997657531529},{"$f":"'[1]EXT TC(M)'!K237","v":0},{"$f":"'[1]EXT TC(M)'!L237","v":0.98165698380179278},{"$f":"'[1]EXT TC(M)'!M237","v":-2.5925925925921897E-2},{"$f":"'[1]EXT TC(M)'!N237","v":5.0703396991881178},{"$f":"'[1]EXT TC(M)'!O237","v":5.1851343570343875},{"$f":"'[1]EXT TC(M)'!P237","v":0},null,null,{"$f":"'[1]EXT RIN(M)'!C237","v":3799.0988521700001},{"$f":"'[1]EXT RIN(M)'!D237","v":2539.5},{"$f":"'[1]EXT RIN(M)'!E237","v":4658.8242851999994},{"$f":"'[1]EXT RIN(M)'!F237","v":2460.0103567114747},{"$f":"'[1]EXT RIN(M)'!G237","v":1029.8},{"$f":"'[1]EXT RIN(M)'!H237","v":2165.4},{"$f":"'[1]EXT RIN(M)'!I237","v":2611.5755368652699},null,null,{"$f":"'[1]EXT RIN(M)'!P237","v":65.628342679764373},{"$f":"'[1]EXT RIN(M)'!Q237","v":95.097400408924443},{"$f":"'[1]EXT RIN(M)'!R237","v":96.070211922545042},{"$f":"'[1]EXT RIN(M)'!S237","v":105.70758733369181},{"$f":"'[1]EXT RIN(M)'!T237","v":98.097638346079535},{"$f":"'[1]EXT RIN(M)'!U237","v":42.00070915185217},{"$f":"'[1]EXT RIN(M)'!V237","v":254.90494417062189},null,null,{"$f":"+'[1]MONE(M)CAPARD'!AE237","v":-2.1091162596567647},{"$f":"'[1]MONE(M)CAPARD'!AF237","v":-8.9368200419206303E-2},{"$f":"'[1]MONE(M)CAPARD'!AG237","v":-3.592522000546595},{"$f":"'[1]MONE(M)CAPARD'!AH237","v":0.91932752781809823},{"$f":"'[1]MONE(M)CAPARD'!AI237","v":-1.2442415527485853},{"$f":"'[1]MONE(M)CAPARD'!AJ237","v":9.5512959652706932},{"$f":"'[1]MONE(M)CAPARD'!AK237","v":-3.2653168724279924},null,null,{"$f":"'[1]MONE(M)CAPARD'!AL237","v":4.0999999999999996},{"$f":"'[1]MONE(M)CAPARD'!AM237","v":5.38},{"$f":"'[1]MONE(M)CAPARD'!AN237","v":3.82},{"$f":"'[1]MONE(M)CAPARD'!AO237","v":4.82},{"$f":"'[1]MONE(M)CAPARD'!AP237","v":6.63},{"$f":"'[1]MONE(M)CAPARD'!AQ237","v":2.76},{"$f":"'[1]MONE(M)CAPARD'!AR237","v":3.28},null,null,{"$f":"'[1]MONE(M)CAPARD'!J237","v":5.9943174347232189},{"$f":"'[1]MONE(M)CAPARD'!K237","v":3.8926459726519584},{"$f":"'[1]MONE(M)CAPARD'!L237","v":4.0582847772615489},{"$f":"'[1]MONE(M)CAPARD'!M237","v":8.3089501693275309},{"$f":"'[1]MONE(M)CAPARD'!N237","v":4.887591588169232},{"$f":"'[1]MONE(M)CAPARD'!O237","v":18.583298008171614},{"$f":"'[1]MONE(M)CAPARD'!P237","v":0.14399999999999138},null,null,{"$f":"'[1]MONE(M)CAPARD'!Q237","v":11.52},{"$f":"'[1]MONE(M)CAPARD'!R237","v":9.58},{"$f":"'[1]MONE(M)CAPARD'!S237","v":8.129999999999999},{"$f":"'[1]MONE(M)CAPARD'!T237","v":10.7},{"$f":"'[1]MONE(M)CAPARD'!U237","v":12.63},{"$f":"'[1]MONE(M)CAPARD'!V237","v":8.9700000000000006},{"$f":"'[1]MONE(M)CAPARD'!W237","v":6.92},null,null,{"$f":"'[1]MONE(M)CAPARD'!AS237","v":10},{"$f":"'[1]MONE(M)CAPARD'!AT237","v":"n.a."},{"$f":"'[1]MONE(M)CAPARD'!AU237","v":7.25},{"$f":"'[1]MONE(M)CAPARD'!AV237","v":7.75},{"$f":"'[1]MONE(M)CAPARD'!AW237","v":"n.a."},{"$f":"'[1]MONE(M)CAPARD'!AX237","v":9.5},{"$f":"'[1]MONE(M)CAPARD'!AY237","v":"n.a."},null,null,{"$f":"+'Datos_Regional (M)'!CF230","v":33.873684582043808},{"$f":"+'Datos_Regional (M)'!CG230","v":4.4147711261212752},{"$f":"+'Datos_Regional (M)'!CH230","v":11.221711450122829},{"$f":"+'Datos_Regional (M)'!CI230","v":10.406254330647702},{"$f":"+'Datos_Regional (M)'!CJ230","v":11.58457913730382},{"$f":"+'Datos_Regional (M)'!CK230","v":13.614271082474684},{"$f":"+'Datos_Regional (M)'!CL230","v":16.017035050488349},null,null,791.97305865750002,386.75666666666672,644.78333333333342,236.08202375333335,229.25,562.29166666666663,903.92448191666665,2851.1367490775006,3755.0612309941666,null,null,1281.0406608666667,818.13916666666671,1212.208333333333,734.45614720833328,434.19166666666661,1332.7416666666666,1505.5099901666665,5812.7776414083319,7318.2876315749991,null,null,-2961.6408923308322,-3563.226400580832,null,null,{"$f":"'[1]EXT Comercio(M)'!C237","v":607.92344561000027},{"$f":"'[1]EXT Comercio(M)'!D237","v":285.69000000000051},{"$f":"'[1]EXT Comercio(M)'!E237","v":537.70000000000027},{"$f":"'[1]EXT Comercio(M)'!F237","v":189.83919762999994},{"$f":"'[1]EXT Comercio(M)'!G237","v":174.40000000000009},{"$f":"'[1]EXT Comercio(M)'!H237","v":449.06660000000011},{"$f":"'[1]EXT Comercio(M)'!I237","v":606.20794499999988},{"$f":"'[1]EXT Comercio(M)'!K237","v":2244.6192432400057},{"$f":"'[1]EXT Comercio(M)'!L237","v":2850.8271882400004},null,null,{"$f":"'[1]EXT Comercio(M)'!AG237","v":1043.6441553599998},{"$f":"'[1]EXT Comercio(M)'!AH237","v":673.63999999999942},{"$f":"'[1]EXT Comercio(M)'!AI237","v":959.29999999999973},{"$f":"'[1]EXT Comercio(M)'!AJ237","v":577.19839142000092},{"$f":"'[1]EXT Comercio(M)'!AK237","v":340.60000000000036},{"$f":"'[1]EXT Comercio(M)'!AL237","v":1010.6999999999998},{"$f":"'[1]EXT Comercio(M)'!AM237","v":1305.2822669999994},{"$f":"'[1]EXT Comercio(M)'!AO237","v":4605.0825467799878},{"$f":"'[1]EXT Comercio(M)'!AP237","v":5910.3648137799901},null,null,{"$f":"'[1]EXT Comercio(M)'!$BS237","v":-2360.4633035399893},{"$f":"'[1]EXT Comercio(M)'!$BT237","v":-3059.5376255399824}]
[null,2009,"Enero",{"$f":"'[1]REAL IPC(M)'!AD238","v":13.500969560130388},{"$f":"'[1]REAL IPC(M)'!AE238","v":3.812897176789261},{"$f":"'[1]REAL IPC(M)'!AF238","v":7.8813358597821086},{"$f":"'[1]REAL IPC(M)'!AG238","v":10.069259456579651},{"$f":"'[1]REAL IPC(M)'!AH238","v":12.456215292609993},{"$f":"'[1]REAL IPC(M)'!AI238","v":3.6797465430183993},{"$f":"'[1]REAL IPC(M)'!AJ238","v":4.9393414211438307},null,null,{"$f":"'[1]REAL IMAE(M)'!AG238","v":-1.985283749922804},{"$f":"'[1]REAL IMAE(M)'!AH238","v":-1.9070022353399083},{"$f":"'[1]REAL IMAE(M)'!AI238","v":"n.d."},{"$f":"'[1]REAL IMAE(M)'!AJ238","v":-1.4109345574948178},{"$f":"'[1]REAL IMAE(M)'!AK238","v":-1.5682472758030654},{"$f":"'[1]REAL IMAE(M)'!AL238","v":-2.4968406979958475},{"$f":"'[1]REAL IMAE(M)'!AM238","v":3.1417542354707186},null,null,{"$f":"'[1]EXT ITCER(M)'!C238","v":88.196609796965618},{"$f":"'[1]EXT ITCER(M)'!D238","v":89.987410606746366},{"$f":"'[1]EXT ITCER(M)'!E238","v":67.663825430949615},{"$f":"'[1]EXT ITCER(M)'!F238","v":80.759168292876652},{"$f":"'[1]EXT ITCER(M)'!G238","v":91.925924113287877},{"$f":"'[1]EXT ITCER(M)'!H238","v":95.201751990570912},{"$f":"'[1]EXT ITCER(M)'!I238","v":98.562327740853505},null,null,{"$f":"'[1]EXT TC(M)'!J238","v":11.463687442321563},{"$f":"'[1]EXT TC(M)'!K238","v":0},{"$f":"'[1]EXT TC(M)'!L238","v":1.9559590130220801},{"$f":"'[1]EXT TC(M)'!M238","v":0},{"$f":"'[1]EXT TC(M)'!N238","v":5.3597905029247777},{"$f":"'[1]EXT TC(M)'!O238","v":4.7761945670527739},{"$f":"'[1]EXT TC(M)'!P238","v":0},null,null,{"$f":"'[1]EXT RIN(M)'!C238","v":3844.11383252},{"$f":"'[1]EXT RIN(M)'!D238","v":2370.6999999999998},{"$f":"'[1]EXT RIN(M)'!E238","v":4758.5618823800005},{"$f":"'[1]EXT RIN(M)'!F238","v":2421.723321083191},{"$f":"'[1]EXT RIN(M)'!G238","v":973.1},{"$f":"'[1]EXT RIN(M)'!H238","v":2085.4},{"$f":"'[1]EXT RIN(M)'!I238","v":2569.2381637559597},null,null,{"$f":"'[1]EXT RIN(M)'!P238","v":66.651464268674445},{"$f":"'[1]EXT RIN(M)'!Q238","v":87.59279970707567},{"$f":"'[1]EXT RIN(M)'!R238","v":97.995100378001837},{"$f":"'[1]EXT RIN(M)'!S238","v":103.63297445819109},{"$f":"'[1]EXT RIN(M)'!T238","v":94.678187920274411},{"$f":"'[1]EXT RIN(M)'!U238","v":44.22873124460768},{"$f":"'[1]EXT RIN(M)'!V238","v":249.31663585089194},null,null,{"$f":"+'[1]MONE(M)CAPARD'!AE238","v":-1.9832161512398996},{"$f":"'[1]MONE(M)CAPARD'!AF238","v":1.4324836929252265},{"$f":"'[1]MONE(M)CAPARD'!AG238","v":-2.2073659366595448},{"$f":"'[1]MONE(M)CAPARD'!AH238","v":1.908562439496609},{"$f":"'[1]MONE(M)CAPARD'!AI238","v":1.4002658408947768},{"$f":"'[1]MONE(M)CAPARD'!AJ238","v":9.2113009294626771},{"$f":"'[1]MONE(M)CAPARD'!AK238","v":-1.3334764657307852},null,null,{"$f":"'[1]MONE(M)CAPARD'!AL238","v":4.07},{"$f":"'[1]MONE(M)CAPARD'!AM238","v":5.3},{"$f":"'[1]MONE(M)CAPARD'!AN238","v":3.85},{"$f":"'[1]MONE(M)CAPARD'!AO238","v":4.91},{"$f":"'[1]MONE(M)CAPARD'!AP238","v":6.69},{"$f":"'[1]MONE(M)CAPARD'!AQ238","v":2.92},{"$f":"'[1]MONE(M)CAPARD'!AR238","v":3.54},null,null,{"$f":"'[1]MONE(M)CAPARD'!J238","v":6.4924823712326605},{"$f":"'[1]MONE(M)CAPARD'!K238","v":5.5360200702458489},{"$f":"'[1]MONE(M)CAPARD'!L238","v":5.5882364564465528},{"$f":"'[1]MONE(M)CAPARD'!M238","v":8.6406873184898298},{"$f":"'[1]MONE(M)CAPARD'!N238","v":6.5438254774697704},{"$f":"'[1]MONE(M)CAPARD'!O238","v":20.727532785841593},{"$f":"'[1]MONE(M)CAPARD'!P238","v":2.2114285714285877},null,null,{"$f":"'[1]MONE(M)CAPARD'!Q238","v":11.62},{"$f":"'[1]MONE(M)CAPARD'!R238","v":9.56},{"$f":"'[1]MONE(M)CAPARD'!S238","v":8.17},{"$f":"'[1]MONE(M)CAPARD'!T238","v":10.7},{"$f":"'[1]MONE(M)CAPARD'!U238","v":12.79},{"$f":"'[1]MONE(M)CAPARD'!V238","v":9.01},{"$f":"'[1]MONE(M)CAPARD'!W238","v":7.26},null,null,{"$f":"'[1]MONE(M)CAPARD'!AS238","v":10},{"$f":"'[1]MONE(M)CAPARD'!AT238","v":"n.a."},{"$f":"'[1]MONE(M)CAPARD'!AU238","v":7},{"$f":"'[1]MONE(M)CAPARD'!AV238","v":6.75},{"$f":"'[1]MONE(M)CAPARD'!AW238","v":"n.a."},{"$f":"'[1]MONE(M)CAPARD'!AX238","v":8.5},{"$f":"'[1]MONE(M)CAPARD'!AY238","v":"n.a."},null,null,{"$f":"+'Datos_Regional (M)'!CF231","v":32.017584369039788},{"$f":"+'Datos_Regional (M)'!CG231","v":3.2480113609204775},{"$f":"+'Datos_Regional (M)'!CH231","v":7.8572985171677212},{"$f":"+'Datos_Regional (M)'!CI231","v":9.6690389001451891},{"$f":"+'Datos_Regional (M)'!CJ231","v":8.6436038048413053},{"$f":"+'Datos_Regional (M)'!CK231","v":9.5296777957637033},{"$f":"+'Datos_Regional (M)'!CL231","v":15.920851067399155},null,null,783.35939617500014,385.42750000000007,644.37500000000011,233.00087980916669,226.44166666666669,549.8288,891.69803058333343,2822.4332426508336,3714.1312732341667,null,null,1245.6694817091666,801.00500000000011,1186.7249999999995,721.17134566749985,428.02500000000003,1306.4416666666664,1494.9247555000002,5689.0374940433321,7183.9622495433323,null,null,-2866.604251392499,-3469.8309763091656,null,null,{"$f":"'[1]EXT Comercio(M)'!C238","v":619.11959167999998},{"$f":"'[1]EXT Comercio(M)'!D238","v":316.81},{"$f":"'[1]EXT Comercio(M)'!E238","v":588.70000000000005},{"$f":"'[1]EXT Comercio(M)'!F238","v":178.15591174000002},{"$f":"'[1]EXT Comercio(M)'!G238","v":185.4},{"$f":"'[1]EXT Comercio(M)'!H238","v":365.6},{"$f":"'[1]EXT Comercio(M)'!I238","v":617.33158700000013},{"$f":"'[1]EXT Comercio(M)'!K238","v":2253.7855034200002},{"$f":"'[1]EXT Comercio(M)'!L238","v":2871.1170904199998},null,null,{"$f":"'[1]EXT Comercio(M)'!AG238","v":858.73768276999999},{"$f":"'[1]EXT Comercio(M)'!AH238","v":588.17999999999995},{"$f":"'[1]EXT Comercio(M)'!AI238","v":841.3},{"$f":"'[1]EXT Comercio(M)'!AJ238","v":494.99486274999998},{"$f":"'[1]EXT Comercio(M)'!AK238","v":326.3},{"$f":"'[1]EXT Comercio(M)'!AL238","v":916.39999999999986},{"$f":"'[1]EXT Comercio(M)'!AM238","v":1239.3440539999997},{"$f":"'[1]EXT Comercio(M)'!AO238","v":4025.9125455199992},{"$f":"'[1]EXT Comercio(M)'!AP238","v":5265.2565995199984},null,null,{"$f":"'[1]EXT Comercio(M)'!$BS238","v":-1772.1270420999995},{"$f":"'[1]EXT Comercio(M)'!$BT238","v":-2394.139509099999}]
[null,null,"Febrero",{"$f":"'[1]REAL IPC(M)'!AD239","v":12.748404475091387},{"$f":"'[1]REAL IPC(M)'!AE239","v":2.8627532038032202},{"$f":"'[1]REAL IPC(M)'!AF239","v":6.4980887974125228},{"$f":"'[1]REAL IPC(M)'!AG239","v":9.7522403795466541},{"$f":"'[1]REAL IPC(M)'!AH239","v":10.777340808300545},{"$f":"'[1]REAL IPC(M)'!AI239","v":4.030900267406146},{"$f":"'[1]REAL IPC(M)'!AJ239","v":4.2918454935622314},null,null,{"$f":"'[1]REAL IMAE(M)'!AG239","v":-2.6307994895938513},{"$f":"'[1]REAL IMAE(M)'!AH239","v":-2.9779569758526048},{"$f":"'[1]REAL IMAE(M)'!AI239","v":"n.d."},{"$f":"'[1]REAL IMAE(M)'!AJ239","v":-3.2693742213382575},{"$f":"'[1]REAL IMAE(M)'!AK239","v":-2.5418266117782231},{"$f":"'[1]REAL IMAE(M)'!AL239","v":-2.681778661260287},{"$f":"'[1]REAL IMAE(M)'!AM239","v":1.8355437665782535},null,null,{"$f":"'[1]EXT ITCER(M)'!C239","v":89.281491889059964},{"$f":"'[1]EXT ITCER(M)'!D239","v":90.543946329609113},{"$f":"'[1]EXT ITCER(M)'!E239","v":69.164804742419591},{"$f":"'[1]EXT ITCER(M)'!F239","v":80.537064275104669},{"$f":"'[1]EXT ITCER(M)'!G239","v":92.230380168395428},{"$f":"'[1]EXT ITCER(M)'!H239","v":95.892598465643715},{"$f":"'[1]EXT ITCER(M)'!I239","v":98.726372924648771},null,null,{"$f":"'[1]EXT TC(M)'!J239","v":13.024229957862781},{"$f":"'[1]EXT TC(M)'!K239","v":0},{"$f":"'[1]EXT TC(M)'!L239","v":2.8339270724055421},{"$f":"'[1]EXT TC(M)'!M239","v":0},{"$f":"'[1]EXT TC(M)'!N239","v":5.2770847462501571},{"$f":"'[1]EXT TC(M)'!O239","v":5.094223630388},{"$f":"'[1]EXT TC(M)'!P239","v":0},null,null,{"$f":"'[1]EXT RIN(M)'!C239","v":4077.23960304},{"$f":"'[1]EXT RIN(M)'!D239","v":2411.1999999999998},{"$f":"'[1]EXT RIN(M)'!E239","v":4742.3425540299995},{"$f":"'[1]EXT RIN(M)'!F239","v":2437.42831220364},{"$f":"'[1]EXT RIN(M)'!G239","v":971.4},{"$f":"'[1]EXT RIN(M)'!H239","v":2095.6},{"$f":"'[1]EXT RIN(M)'!I239","v":2527.6139956297602},null,null,{"$f":"'[1]EXT RIN(M)'!P239","v":70.609184475371734},{"$f":"'[1]EXT RIN(M)'!Q239","v":87.957979198988497},{"$f":"'[1]EXT RIN(M)'!R239","v":101.78057197975461},{"$f":"'[1]EXT RIN(M)'!S239","v":102.71484167979953},{"$f":"'[1]EXT RIN(M)'!T239","v":91.297261711037422},{"$f":"'[1]EXT RIN(M)'!U239","v":44.813694700109977},{"$f":"'[1]EXT RIN(M)'!V239","v":240.08142219102305},null,null,{"$f":"+'[1]MONE(M)CAPARD'!AE239","v":-0.6637827635571788},{"$f":"'[1]MONE(M)CAPARD'!AF239","v":2.2527559529790051},{"$f":"'[1]MONE(M)CAPARD'!AG239","v":-0.890240198785199},{"$f":"'[1]MONE(M)CAPARD'!AH239","v":2.2029250720461082},{"$f":"'[1]MONE(M)CAPARD'!AI239","v":1.9819024512420731},{"$f":"'[1]MONE(M)CAPARD'!AJ239","v":7.8333453922315446},{"$f":"'[1]MONE(M)CAPARD'!AK239","v":-0.70172839506172802},null,null,{"$f":"'[1]MONE(M)CAPARD'!AL239","v":4.7650000000000006},{"$f":"'[1]MONE(M)CAPARD'!AM239","v":5.18},{"$f":"'[1]MONE(M)CAPARD'!AN239","v":3.84},{"$f":"'[1]MONE(M)CAPARD'!AO239","v":4.91},{"$f":"'[1]MONE(M)CAPARD'!AP239","v":6.74},{"$f":"'[1]MONE(M)CAPARD'!AQ239","v":2.96},{"$f":"'[1]MONE(M)CAPARD'!AR239","v":3.56},null,null,{"$f":"'[1]MONE(M)CAPARD'!J239","v":7.8684887526444296},{"$f":"'[1]MONE(M)CAPARD'!K239","v":6.5205787199839289},{"$f":"'[1]MONE(M)CAPARD'!L239","v":6.9972252898950886},{"$f":"'[1]MONE(M)CAPARD'!M239","v":9.2825072046109511},{"$f":"'[1]MONE(M)CAPARD'!N239","v":9.1475304866755458},{"$f":"'[1]MONE(M)CAPARD'!O239","v":18.618602437166807},{"$f":"'[1]MONE(M)CAPARD'!P239","v":3.028189300411523},null,null,{"$f":"'[1]MONE(M)CAPARD'!Q239","v":11.7},{"$f":"'[1]MONE(M)CAPARD'!R239","v":9.57},{"$f":"'[1]MONE(M)CAPARD'!S239","v":8.2100000000000009},{"$f":"'[1]MONE(M)CAPARD'!T239","v":10.53},{"$f":"'[1]MONE(M)CAPARD'!U239","v":13.12},{"$f":"'[1]MONE(M)CAPARD'!V239","v":9.4499999999999993},{"$f":"'[1]MONE(M)CAPARD'!W239","v":7.45},null,null,{"$f":"'[1]MONE(M)CAPARD'!AS239","v":10},{"$f":"'[1]MONE(M)CAPARD'!AT239","v":"n.a."},{"$f":"'[1]MONE(M)CAPARD'!AU239","v":6.5},{"$f":"'[1]MONE(M)CAPARD'!AV239","v":6.75},{"$f":"'[1]MONE(M)CAPARD'!AW239","v":"n.a."},{"$f":"'[1]MONE(M)CAPARD'!AX239","v":6},{"$f":"'[1]MONE(M)CAPARD'!AY239","v":"n.a."},null,null,{"$f":"+'Datos_Regional (M)'!CF232","v":30.114857246898019},{"$f":"+'Datos_Regional (M)'!CG232","v":2.0790668190203254},{"$f":"+'Datos_Regional (M)'!CH232","v":7.2574770262722632},{"$f":"+'Datos_Regional (M)'!CI232","v":7.5942103229184488},{"$f":"+'Datos_Regional (M)'!CJ232","v":5.7227148663661298},{"$f":"+'Datos_Regional (M)'!CK232","v":8.1191016349958733},{"$f":"+'Datos_Regional (M)'!CL232","v":14.695887194110057},null,null,769.86674730416678,379.80166666666679,641.05833333333328,227.64976429666669,225.04999999999998,540.90442500000006,883.01920299999995,2784.3309366008339,3667.3501396008337,null,null,1211.1044516741665,783.21583333333353,1162.5666666666664,707.17295374749995,422.05,1270.4999999999998,1479.7207896666666,5556.6099054216647,7036.3306950883316,null,null,-2772.2789688208322,-3368.9805554874988,null,null,{"$f":"'[1]EXT Comercio(M)'!C239","v":686.33440253999993},{"$f":"'[1]EXT Comercio(M)'!D239","v":320.80000000000013},{"$f":"'[1]EXT Comercio(M)'!E239","v":602.5},{"$f":"'[1]EXT Comercio(M)'!F239","v":197.61613303999997},{"$f":"'[1]EXT Comercio(M)'!G239","v":213.6},{"$f":"'[1]EXT Comercio(M)'!H239","v":422.50000000000006},{"$f":"'[1]EXT Comercio(M)'!I239","v":690.54997300000002},{"$f":"'[1]EXT Comercio(M)'!K239","v":2443.3505355800007},{"$f":"'[1]EXT Comercio(M)'!L239","v":3133.90050858},null,null,{"$f":"'[1]EXT Comercio(M)'!AG239","v":831.26519084999995},{"$f":"'[1]EXT Comercio(M)'!AH239","v":583.85},{"$f":"'[1]EXT Comercio(M)'!AI239","v":886.3},{"$f":"'[1]EXT Comercio(M)'!AJ239","v":497.57274629},{"$f":"'[1]EXT Comercio(M)'!AK239","v":318.7},{"$f":"'[1]EXT Comercio(M)'!AL239","v":800.8},{"$f":"'[1]EXT Comercio(M)'!AM239","v":1087.8916639999998},{"$f":"'[1]EXT Comercio(M)'!AO239","v":3918.4879371400002},{"$f":"'[1]EXT Comercio(M)'!AP239","v":5006.3796011400009},null,null,{"$f":"'[1]EXT Comercio(M)'!$BS239","v":-1475.1374015599999},{"$f":"'[1]EXT Comercio(M)'!$BT239","v":-1872.4790925599996}]
[null,null,"Marzo",{"$f":"'[1]REAL IPC(M)'!AD240","v":12.321919553187472},{"$f":"'[1]REAL IPC(M)'!AE240","v":2.5535842477694537},{"$f":"'[1]REAL IPC(M)'!AF240","v":4.998546934030812},{"$f":"'[1]REAL IPC(M)'!AG240","v":8.7774294670846302},{"$f":"'[1]REAL IPC(M)'!AH240","v":8.4582441113490336},{"$f":"'[1]REAL IPC(M)'!AI240","v":2.4408452075692173},{"$f":"'[1]REAL IPC(M)'!AJ240","v":3.7319762510601997},null,null,{"$f":"'[1]REAL IMAE(M)'!AG240","v":-2.8797030690821206},{"$f":"'[1]REAL IMAE(M)'!AH240","v":-3.4852643414674702},{"$f":"'[1]REAL IMAE(M)'!AI240","v":"n.d."},{"$f":"'[1]REAL IMAE(M)'!AJ240","v":-3.6438782884365835},{"$f":"'[1]REAL IMAE(M)'!AK240","v":-3.1919201832507174},{"$f":"'[1]REAL IMAE(M)'!AL240","v":-2.7908342198176763},{"$f":"'[1]REAL IMAE(M)'!AM240","v":0.9473185621809439},null,null,{"$f":"'[1]EXT ITCER(M)'!C240","v":89.955670088756875},{"$f":"'[1]EXT ITCER(M)'!D240","v":90.33753503701648},{"$f":"'[1]EXT ITCER(M)'!E240","v":70.660531884941577},{"$f":"'[1]EXT ITCER(M)'!F240","v":80.73291015675936},{"$f":"'[1]EXT ITCER(M)'!G240","v":93.089133697851153},{"$f":"'[1]EXT ITCER(M)'!H240","v":96.270483103125201},{"$f":"'[1]EXT ITCER(M)'!I240","v":98.319082187132665},null,null,{"$f":"'[1]EXT TC(M)'!J240","v":13.882595586491403},{"$f":"'[1]EXT TC(M)'!K240","v":0},{"$f":"'[1]EXT TC(M)'!L240","v":5.7045414138887862},{"$f":"'[1]EXT TC(M)'!M240","v":-1.0054506006183345E-2},{"$f":"'[1]EXT TC(M)'!N240","v":5.0614876593412648},{"$f":"'[1]EXT TC(M)'!O240","v":5.1596696632062482},{"$f":"'[1]EXT TC(M)'!P240","v":0},null,null,{"$f":"'[1]EXT RIN(M)'!C240","v":4167.2698822599996},{"$f":"'[1]EXT RIN(M)'!D240","v":2516.1999999999998},{"$f":"'[1]EXT RIN(M)'!E240","v":5029.7989562299999},{"$f":"'[1]EXT RIN(M)'!F240","v":2552.9074220040643},{"$f":"'[1]EXT RIN(M)'!G240","v":970.2},{"$f":"'[1]EXT RIN(M)'!H240","v":2103.8000000000002},{"$f":"'[1]EXT RIN(M)'!I240","v":2855.6692107751196},null,null,{"$f":"'[1]EXT RIN(M)'!P240","v":71.139594237171565},{"$f":"'[1]EXT RIN(M)'!Q240","v":91.509229477886066},{"$f":"'[1]EXT RIN(M)'!R240","v":106.08711876102772},{"$f":"'[1]EXT RIN(M)'!S240","v":103.05592734085489},{"$f":"'[1]EXT RIN(M)'!T240","v":89.652756602972303},{"$f":"'[1]EXT RIN(M)'!U240","v":44.545407375055198},{"$f":"'[1]EXT RIN(M)'!V240","v":280.3169105965531},null,null,{"$f":"+'[1]MONE(M)CAPARD'!AE240","v":-0.50917893449697749},{"$f":"'[1]MONE(M)CAPARD'!AF240","v":2.4635080000000058},{"$f":"'[1]MONE(M)CAPARD'!AG240","v":0.57282037088291582},{"$f":"'[1]MONE(M)CAPARD'!AH240","v":2.8797982708933803},{"$f":"'[1]MONE(M)CAPARD'!AI240","v":3.8620235753552814},{"$f":"'[1]MONE(M)CAPARD'!AJ240","v":8.5309280441050639},{"$f":"'[1]MONE(M)CAPARD'!AK240","v":-0.15614881439082229},null,null,{"$f":"'[1]MONE(M)CAPARD'!AL240","v":4.3550000000000004},{"$f":"'[1]MONE(M)CAPARD'!AM240","v":5.08},{"$f":"'[1]MONE(M)CAPARD'!AN240","v":3.91},{"$f":"'[1]MONE(M)CAPARD'!AO240","v":4.93},{"$f":"'[1]MONE(M)CAPARD'!AP240","v":6.73},{"$f":"'[1]MONE(M)CAPARD'!AQ240","v":2.83},{"$f":"'[1]MONE(M)CAPARD'!AR240","v":3.57},null,null,{"$f":"'[1]MONE(M)CAPARD'!J240","v":8.6876012141083567},{"$f":"'[1]MONE(M)CAPARD'!K240","v":6.9392170000000055},{"$f":"'[1]MONE(M)CAPARD'!L240","v":8.4110240797121438},{"$f":"'[1]MONE(M)CAPARD'!M240","v":10.372161383285309},{"$f":"'[1]MONE(M)CAPARD'!N240","v":10.884963986858031},{"$f":"'[1]MONE(M)CAPARD'!O240","v":17.843619657171821},{"$f":"'[1]MONE(M)CAPARD'!P240","v":3.3625347506132663},null,null,{"$f":"'[1]MONE(M)CAPARD'!Q240","v":11.71},{"$f":"'[1]MONE(M)CAPARD'!R240","v":9.67},{"$f":"'[1]MONE(M)CAPARD'!S240","v":8.24},{"$f":"'[1]MONE(M)CAPARD'!T240","v":10.36},{"$f":"'[1]MONE(M)CAPARD'!U240","v":12.56},{"$f":"'[1]MONE(M)CAPARD'!V240","v":8.7799999999999994},{"$f":"'[1]MONE(M)CAPARD'!W240","v":7.22},null,null,{"$f":"'[1]MONE(M)CAPARD'!AS240","v":10},{"$f":"'[1]MONE(M)CAPARD'!AT240","v":"n.a."},{"$f":"'[1]MONE(M)CAPARD'!AU240","v":6.25},{"$f":"'[1]MONE(M)CAPARD'!AV240","v":5.75},{"$f":"'[1]MONE(M)CAPARD'!AW240","v":"n.a."},{"$f":"'[1]MONE(M)CAPARD'!AX240","v":6},{"$f":"'[1]MONE(M)CAPARD'!AY240","v":"n.a."},null,null,{"$f":"+'Datos_Regional (M)'!CF233","v":27.25950451576702},{"$f":"+'Datos_Regional (M)'!CG233","v":0.74743671383639132},{"$f":"+'Datos_Regional (M)'!CH233","v":7.5502774910768844},{"$f":"+'Datos_Regional (M)'!CI233","v":6.3568584289452001},{"$f":"+'Datos_Regional (M)'!CJ233","v":4.3063380781609206},{"$f":"+'Datos_Regional (M)'!CK233","v":5.6221184625666165},{"$f":"+'Datos_Regional (M)'!CL233","v":13.850052149296799},null,null,764.49113144166677,379.08750000000003,641.69999999999993,223.7423315325,224.02499999999998,529.05061666666666,892.42940558333339,2762.0965796408341,3654.525985224167,null,null,1191.0609915091666,771.69333333333327,1140.6666666666663,694.05017595083336,415.38333333333327,1244.0916666666665,1497.9382996666664,5456.9461674599988,6954.8844671266661,null,null,-2694.8495878191661,-3300.3584819024986,null,null,{"$f":"'[1]EXT Comercio(M)'!C240","v":772.56291193000015},{"$f":"'[1]EXT Comercio(M)'!D240","v":347.56999999999994},{"$f":"'[1]EXT Comercio(M)'!E240","v":650.30000000000007},{"$f":"'[1]EXT Comercio(M)'!F240","v":234.90238296999996},{"$f":"'[1]EXT Comercio(M)'!G240","v":240.20000000000002},{"$f":"'[1]EXT Comercio(M)'!H240","v":484.39999999999992},{"$f":"'[1]EXT Comercio(M)'!I240","v":1020.143571},{"$f":"'[1]EXT Comercio(M)'!K240","v":2729.9352948999995},{"$f":"'[1]EXT Comercio(M)'!L240","v":3750.0788659000018},null,null,{"$f":"'[1]EXT Comercio(M)'!AG240","v":840.56999211000016},{"$f":"'[1]EXT Comercio(M)'!AH240","v":611.41000000000008},{"$f":"'[1]EXT Comercio(M)'!AI240","v":904.40000000000009},{"$f":"'[1]EXT Comercio(M)'!AJ240","v":525.5821876},{"$f":"'[1]EXT Comercio(M)'!AK240","v":343.19999999999993},{"$f":"'[1]EXT Comercio(M)'!AL240","v":1013.5999999999998},{"$f":"'[1]EXT Comercio(M)'!AM240","v":1375.4212599999996},{"$f":"'[1]EXT Comercio(M)'!AO240","v":4238.7621797100001},{"$f":"'[1]EXT Comercio(M)'!AP240","v":5614.1834397099992},null,null,{"$f":"'[1]EXT Comercio(M)'!$BS240","v":-1508.8268848100006},{"$f":"'[1]EXT Comercio(M)'!$BT240","v":-1864.1045738100001}]
[null,null,"Abril",{"$f":"'[1]REAL IPC(M)'!AD241","v":11.750730456751167},{"$f":"'[1]REAL IPC(M)'!AE241","v":1.7900732302685161},{"$f":"'[1]REAL IPC(M)'!AF241","v":3.6226069012954087},{"$f":"'[1]REAL IPC(M)'!AG241","v":8.0703569580962196},{"$f":"'[1]REAL IPC(M)'!AH241","v":6.8805848903330622},{"$f":"'[1]REAL IPC(M)'!AI241","v":0.69453294252581921},{"$f":"'[1]REAL IPC(M)'!AJ241","v":3.7162162162161949},null,null,{"$f":"'[1]REAL IMAE(M)'!AG241","v":-2.9962010922731972},{"$f":"'[1]REAL IMAE(M)'!AH241","v":-3.1131063711881426},{"$f":"'[1]REAL IMAE(M)'!AI241","v":"n.d."},{"$f":"'[1]REAL IMAE(M)'!AJ241","v":-3.9196066754295855},{"$f":"'[1]REAL IMAE(M)'!AK241","v":-3.519219245015869},{"$f":"'[1]REAL IMAE(M)'!AL241","v":-2.4581807289953721},{"$f":"'[1]REAL IMAE(M)'!AM241","v":0.40271966527197189},null,null,{"$f":"'[1]EXT ITCER(M)'!C241","v":90.586008226687753},{"$f":"'[1]EXT ITCER(M)'!D241","v":90.490658267162758},{"$f":"'[1]EXT ITCER(M)'!E241","v":70.920008216494196},{"$f":"'[1]EXT ITCER(M)'!F241","v":80.663247152883471},{"$f":"'[1]EXT ITCER(M)'!G241","v":93.303357137565996},{"$f":"'[1]EXT ITCER(M)'!H241","v":96.802213282287511},{"$f":"'[1]EXT ITCER(M)'!I241","v":98.163201477998498},null,null,{"$f":"'[1]EXT TC(M)'!J241","v":15.026010444888142},{"$f":"'[1]EXT TC(M)'!K241","v":0},{"$f":"'[1]EXT TC(M)'!L241","v":7.2923493173073091},{"$f":"'[1]EXT TC(M)'!M241","v":-4.4964980215379084E-2},{"$f":"'[1]EXT TC(M)'!N241","v":4.6100337417267552},{"$f":"'[1]EXT TC(M)'!O241","v":5.289515602866075},{"$f":"'[1]EXT TC(M)'!P241","v":0},null,null,{"$f":"'[1]EXT RIN(M)'!C241","v":4270.68760372},{"$f":"'[1]EXT RIN(M)'!D241","v":2673.8},{"$f":"'[1]EXT RIN(M)'!E241","v":5001.00000507},{"$f":"'[1]EXT RIN(M)'!F241","v":2589.0663725737131},{"$f":"'[1]EXT RIN(M)'!G241","v":1012.8},{"$f":"'[1]EXT RIN(M)'!H241","v":2038.9},{"$f":"'[1]EXT RIN(M)'!I241","v":2843.7327772075},null,null,{"$f":"'[1]EXT RIN(M)'!P241","v":74.44841969993783},{"$f":"'[1]EXT RIN(M)'!Q241","v":92.459780099396525},{"$f":"'[1]EXT RIN(M)'!R241","v":104.57828706650527},{"$f":"'[1]EXT RIN(M)'!S241","v":101.64577796076715},{"$f":"'[1]EXT RIN(M)'!T241","v":91.050189092455327},{"$f":"'[1]EXT RIN(M)'!U241","v":43.989528511517797},{"$f":"'[1]EXT RIN(M)'!V241","v":277.92363104019569},null,null,{"$f":"+'[1]MONE(M)CAPARD'!AE241","v":-0.22436583253315115},{"$f":"'[1]MONE(M)CAPARD'!AF241","v":3.1731254996003142},{"$f":"'[1]MONE(M)CAPARD'!AG241","v":1.9468658037393682},{"$f":"'[1]MONE(M)CAPARD'!AH241","v":2.9699569171852596},{"$f":"'[1]MONE(M)CAPARD'!AI241","v":5.8133313868211136},{"$f":"'[1]MONE(M)CAPARD'!AJ241","v":8.3574220084793875},{"$f":"'[1]MONE(M)CAPARD'!AK241","v":-6.3843648208448622E-2},null,null,{"$f":"'[1]MONE(M)CAPARD'!AL241","v":3.88},{"$f":"'[1]MONE(M)CAPARD'!AM241","v":5.0199999999999996},{"$f":"'[1]MONE(M)CAPARD'!AN241","v":3.94},{"$f":"'[1]MONE(M)CAPARD'!AO241","v":4.8899999999999997},{"$f":"'[1]MONE(M)CAPARD'!AP241","v":6.87},{"$f":"'[1]MONE(M)CAPARD'!AQ241","v":2.86},{"$f":"'[1]MONE(M)CAPARD'!AR241","v":3.65},null,null,{"$f":"'[1]MONE(M)CAPARD'!J241","v":9.2699792662724381},{"$f":"'[1]MONE(M)CAPARD'!K241","v":7.6431095123900832},{"$f":"'[1]MONE(M)CAPARD'!L241","v":9.8698473282442922},{"$f":"'[1]MONE(M)CAPARD'!M241","v":10.983255146002877},{"$f":"'[1]MONE(M)CAPARD'!N241","v":11.93055755616375},{"$f":"'[1]MONE(M)CAPARD'!O241","v":18.099758273745479},{"$f":"'[1]MONE(M)CAPARD'!P241","v":3.1082736156352011},null,null,{"$f":"'[1]MONE(M)CAPARD'!Q241","v":12.37},{"$f":"'[1]MONE(M)CAPARD'!R241","v":9.57},{"$f":"'[1]MONE(M)CAPARD'!S241","v":8.2199999999999989},{"$f":"'[1]MONE(M)CAPARD'!T241","v":10.42},{"$f":"'[1]MONE(M)CAPARD'!U241","v":13.39},{"$f":"'[1]MONE(M)CAPARD'!V241","v":8.86},{"$f":"'[1]MONE(M)CAPARD'!W241","v":6.94},null,null,{"$f":"'[1]MONE(M)CAPARD'!AS241","v":10},{"$f":"'[1]MONE(M)CAPARD'!AT241","v":"n.a."},{"$f":"'[1]MONE(M)CAPARD'!AU241","v":5.75},{"$f":"'[1]MONE(M)CAPARD'!AV241","v":4.5},{"$f":"'[1]MONE(M)CAPARD'!AW241","v":"n.a."},{"$f":"'[1]MONE(M)CAPARD'!AX241","v":5},{"$f":"'[1]MONE(M)CAPARD'!AY241","v":"n.a."},null,null,{"$f":"+'Datos_Regional (M)'!CF234","v":26.034349863958163},{"$f":"+'Datos_Regional (M)'!CG234","v":-0.52989003840799853},{"$f":"+'Datos_Regional (M)'!CH234","v":7.2769292530270757},{"$f":"+'Datos_Regional (M)'!CI234","v":4.9064276594758205},{"$f":"+'Datos_Regional (M)'!CJ234","v":1.2811321421830835},{"$f":"+'Datos_Regional (M)'!CK234","v":4.0878600728111669},{"$f":"+'Datos_Regional (M)'!CL234","v":12.753610935807981},null,null,751.6544517133334,369.19750000000005,634.09166666666658,218.71941284583332,219.2833333333333,516.60275833333333,889.50710041666662,2709.5491228925002,3599.0562233091673,null,null,1135.8620673766666,741.26166666666677,1098.1083333333329,674.91882522083336,399.79999999999995,1210.0999999999997,1482.8013018333331,5260.0508925974991,6742.8521944308313,null,null,-2550.5017697049993,-3143.7959711216649,null,null,{"$f":"'[1]EXT Comercio(M)'!C241","v":732.95296399000017},{"$f":"'[1]EXT Comercio(M)'!D241","v":308.97000000000003},{"$f":"'[1]EXT Comercio(M)'!E241","v":632.30000000000007},{"$f":"'[1]EXT Comercio(M)'!F241","v":190.22457434},{"$f":"'[1]EXT Comercio(M)'!G241","v":204.60000000000002},{"$f":"'[1]EXT Comercio(M)'!H241","v":463.79999999999984},{"$f":"'[1]EXT Comercio(M)'!I241","v":889.8242039999999},{"$f":"'[1]EXT Comercio(M)'!K241","v":2532.8475383300001},{"$f":"'[1]EXT Comercio(M)'!L241","v":3422.6717423299997},null,null,{"$f":"'[1]EXT Comercio(M)'!AG241","v":838.82707692999975},{"$f":"'[1]EXT Comercio(M)'!AH241","v":556.77},{"$f":"'[1]EXT Comercio(M)'!AI241","v":881.09999999999957},{"$f":"'[1]EXT Comercio(M)'!AJ241","v":509.56893564000006},{"$f":"'[1]EXT Comercio(M)'!AK241","v":328.5},{"$f":"'[1]EXT Comercio(M)'!AL241","v":985.30000000000007},{"$f":"'[1]EXT Comercio(M)'!AM241","v":1112.7803410000004},{"$f":"'[1]EXT Comercio(M)'!AO241","v":4100.0660125700015},{"$f":"'[1]EXT Comercio(M)'!AP241","v":5212.846353570003},null,null,{"$f":"'[1]EXT Comercio(M)'!$BS241","v":-1567.2184742399986},{"$f":"'[1]EXT Comercio(M)'!$BT241","v":-1790.1746112399996}]
[null,null,"Mayo ",{"$f":"'[1]REAL IPC(M)'!AD242","v":9.5237291517516844},{"$f":"'[1]REAL IPC(M)'!AE242","v":0.97595331522287265},{"$f":"'[1]REAL IPC(M)'!AF242","v":2.2943037974683538},{"$f":"'[1]REAL IPC(M)'!AG242","v":6.1483739837398339},{"$f":"'[1]REAL IPC(M)'!AH242","v":4.093890776890861},{"$f":"'[1]REAL IPC(M)'!AI242","v":0.4731210110183135},{"$f":"'[1]REAL IPC(M)'!AJ242","v":2.5125628140703617},null,null,{"$f":"'[1]REAL IMAE(M)'!AG242","v":-2.9401200841627428},{"$f":"'[1]REAL IMAE(M)'!AH242","v":-2.260620599280859},{"$f":"'[1]REAL IMAE(M)'!AI242","v":"n.d."},{"$f":"'[1]REAL IMAE(M)'!AJ242","v":-4.3153668507364538},{"$f":"'[1]REAL IMAE(M)'!AK242","v":-3.5963933986567671},{"$f":"'[1]REAL IMAE(M)'!AL242","v":-1.6467224045798499},{"$f":"'[1]REAL IMAE(M)'!AM242","v":0.10917598128412163},null,null,{"$f":"'[1]EXT ITCER(M)'!C242","v":91.708299448893456},{"$f":"'[1]EXT ITCER(M)'!D242","v":90.498870127164523},{"$f":"'[1]EXT ITCER(M)'!E242","v":71.111148448446755},{"$f":"'[1]EXT ITCER(M)'!F242","v":80.896264224005975},{"$f":"'[1]EXT ITCER(M)'!G242","v":94.21314581271227},{"$f":"'[1]EXT ITCER(M)'!H242","v":97.303519029437282},{"$f":"'[1]EXT ITCER(M)'!I242","v":98.76849326069437},null,null,{"$f":"'[1]EXT TC(M)'!J242","v":12.251337850033662},{"$f":"'[1]EXT TC(M)'!K242","v":0},{"$f":"'[1]EXT TC(M)'!L242","v":8.9511446446919702},{"$f":"'[1]EXT TC(M)'!M242","v":-8.8883271085537507E-2},{"$f":"'[1]EXT TC(M)'!N242","v":4.949463199779637},{"$f":"'[1]EXT TC(M)'!O242","v":5.6948552544146995},{"$f":"'[1]EXT TC(M)'!P242","v":0},null,null,{"$f":"'[1]EXT RIN(M)'!C242","v":3900.5751640499998},{"$f":"'[1]EXT RIN(M)'!D242","v":2928.9},{"$f":"'[1]EXT RIN(M)'!E242","v":5007.5742491400006},{"$f":"'[1]EXT RIN(M)'!F242","v":2534.2079799180215},{"$f":"'[1]EXT RIN(M)'!G242","v":1020.3},{"$f":"'[1]EXT RIN(M)'!H242","v":2073},{"$f":"'[1]EXT RIN(M)'!I242","v":2750.9609279830502},null,null,{"$f":"'[1]EXT RIN(M)'!P242","v":68.946206400912146},{"$f":"'[1]EXT RIN(M)'!Q242","v":106.51126425077733},{"$f":"'[1]EXT RIN(M)'!R242","v":103.9715316319803},{"$f":"'[1]EXT RIN(M)'!S242","v":101.00720677011998},{"$f":"'[1]EXT RIN(M)'!T242","v":90.353162156206608},{"$f":"'[1]EXT RIN(M)'!U242","v":46.009365570511704},{"$f":"'[1]EXT RIN(M)'!V242","v":269.27841766847916},null,null,{"$f":"+'[1]MONE(M)CAPARD'!AE242","v":1.5761614963424628},{"$f":"'[1]MONE(M)CAPARD'!AF242","v":3.8465065763252162},{"$f":"'[1]MONE(M)CAPARD'!AG242","v":3.3195359628770311},{"$f":"'[1]MONE(M)CAPARD'!AH242","v":4.1749353757778875},{"$f":"'[1]MONE(M)CAPARD'!AI242","v":8.5045543524609251},{"$f":"'[1]MONE(M)CAPARD'!AJ242","v":7.292377220150442},{"$f":"'[1]MONE(M)CAPARD'!AK242","v":1.0998039215686177},null,null,{"$f":"'[1]MONE(M)CAPARD'!AL242","v":3.0249999999999999},{"$f":"'[1]MONE(M)CAPARD'!AM242","v":4.8600000000000003},{"$f":"'[1]MONE(M)CAPARD'!AN242","v":3.98},{"$f":"'[1]MONE(M)CAPARD'!AO242","v":4.8499999999999996},{"$f":"'[1]MONE(M)CAPARD'!AP242","v":6.67},{"$f":"'[1]MONE(M)CAPARD'!AQ242","v":2.96},{"$f":"'[1]MONE(M)CAPARD'!AR242","v":3.64},null,null,{"$f":"'[1]MONE(M)CAPARD'!J242","v":11.50095138816487},{"$f":"'[1]MONE(M)CAPARD'!K242","v":8.3228198485452243},{"$f":"'[1]MONE(M)CAPARD'!L242","v":11.296519721577726},{"$f":"'[1]MONE(M)CAPARD'!M242","v":12.879731929152708},{"$f":"'[1]MONE(M)CAPARD'!N242","v":14.926910896088271},{"$f":"'[1]MONE(M)CAPARD'!O242","v":17.872321281840602},{"$f":"'[1]MONE(M)CAPARD'!P242","v":3.577549019607833},null,null,{"$f":"'[1]MONE(M)CAPARD'!Q242","v":11.88},{"$f":"'[1]MONE(M)CAPARD'!R242","v":9.3800000000000008},{"$f":"'[1]MONE(M)CAPARD'!S242","v":8.19},{"$f":"'[1]MONE(M)CAPARD'!T242","v":10.39},{"$f":"'[1]MONE(M)CAPARD'!U242","v":12.73},{"$f":"'[1]MONE(M)CAPARD'!V242","v":7.95},{"$f":"'[1]MONE(M)CAPARD'!W242","v":6.18},null,null,{"$f":"'[1]MONE(M)CAPARD'!AS242","v":10},{"$f":"'[1]MONE(M)CAPARD'!AT242","v":"n.a."},{"$f":"'[1]MONE(M)CAPARD'!AU242","v":5.75},{"$f":"'[1]MONE(M)CAPARD'!AV242","v":4.5},{"$f":"'[1]MONE(M)CAPARD'!AW242","v":"n.a."},{"$f":"'[1]MONE(M)CAPARD'!AX242","v":5},{"$f":"'[1]MONE(M)CAPARD'!AY242","v":"n.a."},null,null,{"$f":"+'Datos_Regional (M)'!CF235","v":21.553702912780803},{"$f":"+'Datos_Regional (M)'!CG235","v":-1.7276770595137658},{"$f":"+'Datos_Regional (M)'!CH235","v":6.6666450993285276},{"$f":"+'Datos_Regional (M)'!CI235","v":4.2958599916558038},{"$f":"+'Datos_Regional (M)'!CJ235","v":-0.22263314117164645},{"$f":"+'Datos_Regional (M)'!CK235","v":3.4379300023831494},{"$f":"+'Datos_Regional (M)'!CL235","v":11.16420211061644},null,null,744.73560864916669,360.93333333333345,630.17500000000007,215.18837963166663,218.81666666666663,505.0153416666667,894.82164533333344,2674.8643299475007,3569.6859752808336,null,null,1100.1522380383333,717.75999999999988,1061.5333333333331,644.06632935749997,391.75833333333338,1164.3499999999997,1476.5161136666666,5079.6202340624986,6556.1363477291643,null,null,-2404.7559041149993,-2986.4503724483316,null,null,{"$f":"'[1]EXT Comercio(M)'!C242","v":759.56003417000011},{"$f":"'[1]EXT Comercio(M)'!D242","v":336.72000000000025},{"$f":"'[1]EXT Comercio(M)'!E242","v":604.09999999999991},{"$f":"'[1]EXT Comercio(M)'!F242","v":231.73103021000009},{"$f":"'[1]EXT Comercio(M)'!G242","v":206.90000000000003},{"$f":"'[1]EXT Comercio(M)'!H242","v":471.29999999999984},{"$f":"'[1]EXT Comercio(M)'!I242","v":866.16401700000006},{"$f":"'[1]EXT Comercio(M)'!K242","v":2610.311064380001},{"$f":"'[1]EXT Comercio(M)'!L242","v":3476.4750813799983},null,null,{"$f":"'[1]EXT Comercio(M)'!AG242","v":887.04098064999971},{"$f":"'[1]EXT Comercio(M)'!AH242","v":604.11999999999989},{"$f":"'[1]EXT Comercio(M)'!AI242","v":887.70000000000027},{"$f":"'[1]EXT Comercio(M)'!AJ242","v":486.55843090999997},{"$f":"'[1]EXT Comercio(M)'!AK242","v":344.10000000000014},{"$f":"'[1]EXT Comercio(M)'!AL242","v":949.69999999999993},{"$f":"'[1]EXT Comercio(M)'!AM242","v":1359.151658},{"$f":"'[1]EXT Comercio(M)'!AO242","v":4159.2194115599959},{"$f":"'[1]EXT Comercio(M)'!AP242","v":5518.3710695599948},null,null,{"$f":"'[1]EXT Comercio(M)'!$BS242","v":-1548.9083471800004},{"$f":"'[1]EXT Comercio(M)'!$BT242","v":-2041.8959881800001}]
[null,null,"Junio",{"$f":"'[1]REAL IPC(M)'!AD243","v":8.1960708160521012},{"$f":"'[1]REAL IPC(M)'!AE243","v":-0.22856007154922967},{"$f":"'[1]REAL IPC(M)'!AF243","v":0.61721530249109913},{"$f":"'[1]REAL IPC(M)'!AG243","v":5.4216867469879579},{"$f":"'[1]REAL IPC(M)'!AH243","v":1.9579012536759026},{"$f":"'[1]REAL IPC(M)'!AI243","v":0.25742021524050807},{"$f":"'[1]REAL IPC(M)'!AJ243","v":1.8211920529801224},null,null,{"$f":"'[1]REAL IMAE(M)'!AG243","v":-2.6661015483359698},{"$f":"'[1]REAL IMAE(M)'!AH243","v":-1.5881522833155308},{"$f":"'[1]REAL IMAE(M)'!AI243","v":"n.d."},{"$f":"'[1]REAL IMAE(M)'!AJ243","v":-4.9966645144305151},{"$f":"'[1]REAL IMAE(M)'!AK243","v":-3.4703802972684819},{"$f":"'[1]REAL IMAE(M)'!AL243","v":-0.487469372393808},{"$f":"'[1]REAL IMAE(M)'!AM243","v":-3.1012560086836345E-2},null,null,{"$f":"'[1]EXT ITCER(M)'!C243","v":92.689934715801655},{"$f":"'[1]EXT ITCER(M)'!D243","v":91.239880633450213},{"$f":"'[1]EXT ITCER(M)'!E243","v":72.019069262155355},{"$f":"'[1]EXT ITCER(M)'!F243","v":81.163772180817631},{"$f":"'[1]EXT ITCER(M)'!G243","v":95.505370606716042},{"$f":"'[1]EXT ITCER(M)'!H243","v":95.99569892612476},{"$f":"'[1]EXT ITCER(M)'!I243","v":99.130967859916382},null,null,{"$f":"'[1]EXT TC(M)'!J243","v":10.733097325713075},{"$f":"'[1]EXT TC(M)'!K243","v":0},{"$f":"'[1]EXT TC(M)'!L243","v":8.5136735215632129},{"$f":"'[1]EXT TC(M)'!M243","v":-2.0157373655426494E-2},{"$f":"'[1]EXT TC(M)'!N243","v":5.0347875789289471},{"$f":"'[1]EXT TC(M)'!O243","v":5.1702130151183292},{"$f":"'[1]EXT TC(M)'!P243","v":0},null,null,{"$f":"'[1]EXT RIN(M)'!C243","v":3935.8131411099998},{"$f":"'[1]EXT RIN(M)'!D243","v":2781.5},{"$f":"'[1]EXT RIN(M)'!E243","v":5137.2821378400004},{"$f":"'[1]EXT RIN(M)'!F243","v":2444.222793169075},{"$f":"'[1]EXT RIN(M)'!G243","v":1030.9000000000001},{"$f":"'[1]EXT RIN(M)'!H243","v":2047.1},{"$f":"'[1]EXT RIN(M)'!I243","v":2705.4254256132299},null,null,{"$f":"'[1]EXT RIN(M)'!P243","v":69.162905270247265},{"$f":"'[1]EXT RIN(M)'!Q243","v":99.033272901021547},{"$f":"'[1]EXT RIN(M)'!R243","v":105.71208246632288},{"$f":"'[1]EXT RIN(M)'!S243","v":95.133024266402927},{"$f":"'[1]EXT RIN(M)'!T243","v":89.2348601708687},{"$f":"'[1]EXT RIN(M)'!U243","v":46.865895920709086},{"$f":"'[1]EXT RIN(M)'!V243","v":262.94309314142248},null,null,{"$f":"+'[1]MONE(M)CAPARD'!AE243","v":2.5915258870305524},{"$f":"'[1]MONE(M)CAPARD'!AF243","v":4.9899651394422202},{"$f":"'[1]MONE(M)CAPARD'!AG243","v":5.0814213871235197},{"$f":"'[1]MONE(M)CAPARD'!AH243","v":4.4377142857142795},{"$f":"'[1]MONE(M)CAPARD'!AI243","v":11.197414147055508},{"$f":"'[1]MONE(M)CAPARD'!AJ243","v":6.8748824475654375},{"$f":"'[1]MONE(M)CAPARD'!AK243","v":1.6684227642276523},null,null,{"$f":"'[1]MONE(M)CAPARD'!AL243","v":2.6799999999999997},{"$f":"'[1]MONE(M)CAPARD'!AM243","v":4.75},{"$f":"'[1]MONE(M)CAPARD'!AN243","v":3.98},{"$f":"'[1]MONE(M)CAPARD'!AO243","v":4.8},{"$f":"'[1]MONE(M)CAPARD'!AP243","v":6.64},{"$f":"'[1]MONE(M)CAPARD'!AQ243","v":2.92},{"$f":"'[1]MONE(M)CAPARD'!AR243","v":3.52},null,null,{"$f":"'[1]MONE(M)CAPARD'!J243","v":12.407039444870774},{"$f":"'[1]MONE(M)CAPARD'!K243","v":9.7608695219123405},{"$f":"'[1]MONE(M)CAPARD'!L243","v":13.121794970986466},{"$f":"'[1]MONE(M)CAPARD'!M243","v":13.449142857142851},{"$f":"'[1]MONE(M)CAPARD'!N243","v":17.58451779456103},{"$f":"'[1]MONE(M)CAPARD'!O243","v":17.407768669182712},{"$f":"'[1]MONE(M)CAPARD'!P243","v":4.7915447154471646},null,null,{"$f":"'[1]MONE(M)CAPARD'!Q243","v":11.89},{"$f":"'[1]MONE(M)CAPARD'!R243","v":9.51},{"$f":"'[1]MONE(M)CAPARD'!S243","v":8.19},{"$f":"'[1]MONE(M)CAPARD'!T243","v":10.38},{"$f":"'[1]MONE(M)CAPARD'!U243","v":13.1},{"$f":"'[1]MONE(M)CAPARD'!V243","v":8.3800000000000008},{"$f":"'[1]MONE(M)CAPARD'!W243","v":6.7},null,null,{"$f":"'[1]MONE(M)CAPARD'!AS243","v":10},{"$f":"'[1]MONE(M)CAPARD'!AT243","v":"n.a."},{"$f":"'[1]MONE(M)CAPARD'!AU243","v":5.25},{"$f":"'[1]MONE(M)CAPARD'!AV243","v":3.5},{"$f":"'[1]MONE(M)CAPARD'!AW243","v":"n.a."},{"$f":"'[1]MONE(M)CAPARD'!AX243","v":5},{"$f":"'[1]MONE(M)CAPARD'!AY243","v":"n.a."},null,null,{"$f":"+'Datos_Regional (M)'!CF236","v":19.343395537355423},{"$f":"+'Datos_Regional (M)'!CG236","v":-3.6012317784486214},{"$f":"+'Datos_Regional (M)'!CH236","v":3.6638144214194535},{"$f":"+'Datos_Regional (M)'!CI236","v":2.781974780178853},{"$f":"+'Datos_Regional (M)'!CJ236","v":-2.5010110642093464},{"$f":"+'Datos_Regional (M)'!CK236","v":4.4587341232797062},{"$f":"+'Datos_Regional (M)'!CL236","v":8.6314873635808596},null,null,741.06604578083341,355.69583333333344,620.6,211.23475491333332,214.79999999999998,495.44177500000001,918.17510016666677,2638.8384090274999,3557.0135091941665,null,null,1077.31086048,696.95000000000016,1038.0416666666667,623.23496731666671,388.74999999999994,1124.9416666666666,1485.34047775,4949.2291611299997,6434.5696388799988,null,null,-2310.3907521024998,-2877.5561296858323,null,null,{"$f":"'[1]EXT Comercio(M)'!C243","v":747.35531257999992},{"$f":"'[1]EXT Comercio(M)'!D243","v":330},{"$f":"'[1]EXT Comercio(M)'!E243","v":621.90000000000009},{"$f":"'[1]EXT Comercio(M)'!F243","v":216.88522985999998},{"$f":"'[1]EXT Comercio(M)'!G243","v":218.10000000000002},{"$f":"'[1]EXT Comercio(M)'!H243","v":503.99999999999989},{"$f":"'[1]EXT Comercio(M)'!I243","v":1102.591377},{"$f":"'[1]EXT Comercio(M)'!K243","v":2638.2405424399949},{"$f":"'[1]EXT Comercio(M)'!L243","v":3740.8319194399992},null,null,{"$f":"'[1]EXT Comercio(M)'!AG243","v":1014.5424142200009},{"$f":"'[1]EXT Comercio(M)'!AH243","v":631.01000000000022},{"$f":"'[1]EXT Comercio(M)'!AI243","v":995.80000000000041},{"$f":"'[1]EXT Comercio(M)'!AJ243","v":537.14642085000014},{"$f":"'[1]EXT Comercio(M)'!AK243","v":401.69999999999993},{"$f":"'[1]EXT Comercio(M)'!AL243","v":1022.5000000000003},{"$f":"'[1]EXT Comercio(M)'!AM243","v":1595.9049500000001},{"$f":"'[1]EXT Comercio(M)'!AO243","v":4602.6988350700049},{"$f":"'[1]EXT Comercio(M)'!AP243","v":6198.603785070005},null,null,{"$f":"'[1]EXT Comercio(M)'!$BS243","v":-1964.4582926300027},{"$f":"'[1]EXT Comercio(M)'!$BT243","v":-2457.7718656300021}]
[null,null,"Julio",{"$f":"'[1]REAL IPC(M)'!AD244","v":6.9027168638465444},{"$f":"'[1]REAL IPC(M)'!AE244","v":-1.8936420722135072},{"$f":"'[1]REAL IPC(M)'!AF244","v":-0.30204843758580524},{"$f":"'[1]REAL IPC(M)'!AG244","v":3.9823008849557495},{"$f":"'[1]REAL IPC(M)'!AH244","v":7.642922653622311E-2},{"$f":"'[1]REAL IPC(M)'!AI244","v":-1.2208148939417038},{"$f":"'[1]REAL IPC(M)'!AJ244","v":1.8961253091508559},null,null,{"$f":"'[1]REAL IMAE(M)'!AG244","v":-2.2338130962058802},{"$f":"'[1]REAL IMAE(M)'!AH244","v":-1.9474662109862269},{"$f":"'[1]REAL IMAE(M)'!AI244","v":"n.d."},{"$f":"'[1]REAL IMAE(M)'!AJ244","v":-5.1832013450637682},{"$f":"'[1]REAL IMAE(M)'!AK244","v":-3.279349676551472},{"$f":"'[1]REAL IMAE(M)'!AL244","v":0.95260092042475197},{"$f":"'[1]REAL IMAE(M)'!AM244","v":0.14927677973953365},null,null,{"$f":"'[1]EXT ITCER(M)'!C244","v":92.552109863336042},{"$f":"'[1]EXT ITCER(M)'!D244","v":91.468739593386104},{"$f":"'[1]EXT ITCER(M)'!E244","v":72.084264842166817},{"$f":"'[1]EXT ITCER(M)'!F244","v":80.460363085910018},{"$f":"'[1]EXT ITCER(M)'!G244","v":96.403685339830261},{"$f":"'[1]EXT ITCER(M)'!H244","v":95.879091408108167},{"$f":"'[1]EXT ITCER(M)'!I244","v":98.493331816543446},null,null,{"$f":"'[1]EXT TC(M)'!J244","v":8.4429338784623464},{"$f":"'[1]EXT TC(M)'!K244","v":0},{"$f":"'[1]EXT TC(M)'!L244","v":9.8679974297222461},{"$f":"'[1]EXT TC(M)'!M244","v":-1.6567167784784821E-3},{"$f":"'[1]EXT TC(M)'!N244","v":5.1358332986173059},{"$f":"'[1]EXT TC(M)'!O244","v":4.978467391811769},{"$f":"'[1]EXT TC(M)'!P244","v":0},null,null,{"$f":"'[1]EXT RIN(M)'!C244","v":3884.3575550800001},{"$f":"'[1]EXT RIN(M)'!D244","v":2676.3},{"$f":"'[1]EXT RIN(M)'!E244","v":5035.4762010599998},{"$f":"'[1]EXT RIN(M)'!F244","v":2204.9730131065198},{"$f":"'[1]EXT RIN(M)'!G244","v":1102.3},{"$f":"'[1]EXT RIN(M)'!H244","v":2059.3000000000002},{"$f":"'[1]EXT RIN(M)'!I244","v":2486.8558421243306},null,null,{"$f":"'[1]EXT RIN(M)'!P244","v":70.676061190090877},{"$f":"'[1]EXT RIN(M)'!Q244","v":93.778448371920916},{"$f":"'[1]EXT RIN(M)'!R244","v":102.69189442600724},{"$f":"'[1]EXT RIN(M)'!S244","v":94.431673088392102},{"$f":"'[1]EXT RIN(M)'!T244","v":89.095655740334507},{"$f":"'[1]EXT RIN(M)'!U244","v":45.554744272304319},{"$f":"'[1]EXT RIN(M)'!V244","v":246.30407128266279},null,null,{"$f":"+'[1]MONE(M)CAPARD'!AE244","v":4.7681511618132761},{"$f":"'[1]MONE(M)CAPARD'!AF244","v":6.4864726472647334},{"$f":"'[1]MONE(M)CAPARD'!AG244","v":6.0001718629503094},{"$f":"'[1]MONE(M)CAPARD'!AH244","v":5.6718297872340457},{"$f":"'[1]MONE(M)CAPARD'!AI244","v":13.796161103303087},{"$f":"'[1]MONE(M)CAPARD'!AJ244","v":8.5350115865904499},{"$f":"'[1]MONE(M)CAPARD'!AK244","v":1.5740291262136019},null,null,{"$f":"'[1]MONE(M)CAPARD'!AL244","v":2.4},{"$f":"'[1]MONE(M)CAPARD'!AM244","v":4.47},{"$f":"'[1]MONE(M)CAPARD'!AN244","v":3.97},{"$f":"'[1]MONE(M)CAPARD'!AO244","v":4.72},{"$f":"'[1]MONE(M)CAPARD'!AP244","v":6.85},{"$f":"'[1]MONE(M)CAPARD'!AQ244","v":2.77},{"$f":"'[1]MONE(M)CAPARD'!AR244","v":3.5},null,null,{"$f":"'[1]MONE(M)CAPARD'!J244","v":14.075678876635081},{"$f":"'[1]MONE(M)CAPARD'!K244","v":11.389314931493157},{"$f":"'[1]MONE(M)CAPARD'!L244","v":14.235045169108732},{"$f":"'[1]MONE(M)CAPARD'!M244","v":14.750297872340429},{"$f":"'[1]MONE(M)CAPARD'!N244","v":19.742304676463132},{"$f":"'[1]MONE(M)CAPARD'!O244","v":19.073669086976668},{"$f":"'[1]MONE(M)CAPARD'!P244","v":4.3022977346278415},null,null,{"$f":"'[1]MONE(M)CAPARD'!Q244","v":11.75},{"$f":"'[1]MONE(M)CAPARD'!R244","v":9.2799999999999994},{"$f":"'[1]MONE(M)CAPARD'!S244","v":8.18},{"$f":"'[1]MONE(M)CAPARD'!T244","v":10.27},{"$f":"'[1]MONE(M)CAPARD'!U244","v":13.01},{"$f":"'[1]MONE(M)CAPARD'!V244","v":8.5399999999999991},{"$f":"'[1]MONE(M)CAPARD'!W244","v":6.28},null,null,{"$f":"'[1]MONE(M)CAPARD'!AS244","v":9},{"$f":"'[1]MONE(M)CAPARD'!AT244","v":"n.a."},{"$f":"'[1]MONE(M)CAPARD'!AU244","v":4.75},{"$f":"'[1]MONE(M)CAPARD'!AV244","v":4},{"$f":"'[1]MONE(M)CAPARD'!AW244","v":"n.a."},{"$f":"'[1]MONE(M)CAPARD'!AX244","v":5},{"$f":"'[1]MONE(M)CAPARD'!AY244","v":"n.a."},null,null,{"$f":"+'Datos_Regional (M)'!CF237","v":16.159577350848188},{"$f":"+'Datos_Regional (M)'!CG237","v":-3.8519661001622407},{"$f":"+'Datos_Regional (M)'!CH237","v":3.6861062050727256},{"$f":"+'Datos_Regional (M)'!CI237","v":3.1286260190423576},{"$f":"+'Datos_Regional (M)'!CJ237","v":-4.6859187722143698},{"$f":"+'Datos_Regional (M)'!CK237","v":5.350022954087752},{"$f":"+'Datos_Regional (M)'!CL237","v":6.8282020722149506},null,null,736.17801880250011,349.44250000000011,609.51666666666665,208.16840627666667,213.39166666666668,479.81241666666671,933.98922725,2596.5096750791668,3530.498902329166,null,null,1045.833766275,675.81500000000017,1012.6749999999998,597.48407812833329,375.09166666666664,1076.7416666666668,1446.1744527499998,4783.6411777366666,6229.8156304866652,null,null,-2187.1315026574994,-2699.3167281574988,null,null,{"$f":"'[1]EXT Comercio(M)'!C244","v":739.83743867000067},{"$f":"'[1]EXT Comercio(M)'!D244","v":373.07999999999947},{"$f":"'[1]EXT Comercio(M)'!E244","v":612.30000000000041},{"$f":"'[1]EXT Comercio(M)'!F244","v":211.13167621999992},{"$f":"'[1]EXT Comercio(M)'!G244","v":224.29999999999998},{"$f":"'[1]EXT Comercio(M)'!H244","v":471.79999999999984},{"$f":"'[1]EXT Comercio(M)'!I244","v":1123.9080709999998},{"$f":"'[1]EXT Comercio(M)'!K244","v":2632.4491148900051},{"$f":"'[1]EXT Comercio(M)'!L244","v":3756.3571858899995},null,null,{"$f":"'[1]EXT Comercio(M)'!AG244","v":972.55308648999926},{"$f":"'[1]EXT Comercio(M)'!AH244","v":664.17000000000007},{"$f":"'[1]EXT Comercio(M)'!AI244","v":1094.1999999999996},{"$f":"'[1]EXT Comercio(M)'!AJ244","v":527.54525762000003},{"$f":"'[1]EXT Comercio(M)'!AK244","v":360.4},{"$f":"'[1]EXT Comercio(M)'!AL244","v":1109.2000000000003},{"$f":"'[1]EXT Comercio(M)'!AM244","v":1320.6807789999998},{"$f":"'[1]EXT Comercio(M)'!AO244","v":4728.0683441100009},{"$f":"'[1]EXT Comercio(M)'!AP244","v":6048.7491231099993},null,null,{"$f":"'[1]EXT Comercio(M)'!$BS244","v":-2095.6192292199976},{"$f":"'[1]EXT Comercio(M)'!$BT244","v":-2292.391937219998}]
[null,null,"Agosto",{"$f":"'[1]REAL IPC(M)'!AD245","v":5.711656780118167},{"$f":"'[1]REAL IPC(M)'!AE245","v":-2.1568627450980458},{"$f":"'[1]REAL IPC(M)'!AF245","v":-0.73224043715847198},{"$f":"'[1]REAL IPC(M)'!AG245","v":3.117389186556248},{"$f":"'[1]REAL IPC(M)'!AH245","v":-0.12167300380227877},{"$f":"'[1]REAL IPC(M)'!AI245","v":-0.4695837780149395},{"$f":"'[1]REAL IPC(M)'!AJ245","v":1.8062397372742276},null,null,{"$f":"'[1]REAL IMAE(M)'!AG245","v":-1.6360225757497915},{"$f":"'[1]REAL IMAE(M)'!AH245","v":-3.1059082085541396},{"$f":"'[1]REAL IMAE(M)'!AI245","v":"n.d."},{"$f":"'[1]REAL IMAE(M)'!AJ245","v":-5.2174586367155618},{"$f":"'[1]REAL IMAE(M)'!AK245","v":-3.1158041594838104},{"$f":"'[1]REAL IMAE(M)'!AL245","v":2.4008943054229173},{"$f":"'[1]REAL IMAE(M)'!AM245","v":0.6268948152715681},null,null,{"$f":"'[1]EXT ITCER(M)'!C245","v":92.956348677663811},{"$f":"'[1]EXT ITCER(M)'!D245","v":91.855672100327993},{"$f":"'[1]EXT ITCER(M)'!E245","v":72.937068601290989},{"$f":"'[1]EXT ITCER(M)'!F245","v":80.564639558542595},{"$f":"'[1]EXT ITCER(M)'!G245","v":96.914967013720954},{"$f":"'[1]EXT ITCER(M)'!H245","v":95.406062948507071},{"$f":"'[1]EXT ITCER(M)'!I245","v":98.395804565737123},null,null,{"$f":"'[1]EXT TC(M)'!J245","v":6.4072662613609142},{"$f":"'[1]EXT TC(M)'!K245","v":0},{"$f":"'[1]EXT TC(M)'!L245","v":11.520207399372996},{"$f":"'[1]EXT TC(M)'!M245","v":-5.2923493793482742E-4},{"$f":"'[1]EXT TC(M)'!N245","v":5.2360081125526508},{"$f":"'[1]EXT TC(M)'!O245","v":3.8978754329450584},{"$f":"'[1]EXT TC(M)'!P245","v":0},null,null,{"$f":"'[1]EXT RIN(M)'!C245","v":4052.1901452900001},{"$f":"'[1]EXT RIN(M)'!D245","v":2977.5},{"$f":"'[1]EXT RIN(M)'!E245","v":5169.9563626600002},{"$f":"'[1]EXT RIN(M)'!F245","v":2253.0741964783074},{"$f":"'[1]EXT RIN(M)'!G245","v":1252},{"$f":"'[1]EXT RIN(M)'!H245","v":2272.6999999999998},{"$f":"'[1]EXT RIN(M)'!I245","v":2736.8132973672004},null,null,{"$f":"'[1]EXT RIN(M)'!P245","v":74.771124243712023},{"$f":"'[1]EXT RIN(M)'!Q245","v":100.8485845295731},{"$f":"'[1]EXT RIN(M)'!R245","v":107.42127337101044},{"$f":"'[1]EXT RIN(M)'!S245","v":101.25664797093259},{"$f":"'[1]EXT RIN(M)'!T245","v":101.04319676813836},{"$f":"'[1]EXT RIN(M)'!U245","v":49.68427811180586},{"$f":"'[1]EXT RIN(M)'!V245","v":262.50022358290846},null,null,{"$f":"+'[1]MONE(M)CAPARD'!AE245","v":5.4755959713332976},{"$f":"'[1]MONE(M)CAPARD'!AF245","v":6.4867735470941961},{"$f":"'[1]MONE(M)CAPARD'!AG245","v":6.4393922712760121},{"$f":"'[1]MONE(M)CAPARD'!AH245","v":6.6260510155881081},{"$f":"'[1]MONE(M)CAPARD'!AI245","v":13.666907492497083},{"$f":"'[1]MONE(M)CAPARD'!AJ245","v":7.6957216384301939},{"$f":"'[1]MONE(M)CAPARD'!AK245","v":1.6538870967741861},null,null,{"$f":"'[1]MONE(M)CAPARD'!AL245","v":2.0949999999999998},{"$f":"'[1]MONE(M)CAPARD'!AM245","v":4.1900000000000004},{"$f":"'[1]MONE(M)CAPARD'!AN245","v":3.98},{"$f":"'[1]MONE(M)CAPARD'!AO245","v":4.7},{"$f":"'[1]MONE(M)CAPARD'!AP245","v":6.66},{"$f":"'[1]MONE(M)CAPARD'!AQ245","v":2.73},{"$f":"'[1]MONE(M)CAPARD'!AR245","v":3.49},null,null,{"$f":"'[1]MONE(M)CAPARD'!J245","v":15.796122895523851},{"$f":"'[1]MONE(M)CAPARD'!K245","v":11.862725450901809},{"$f":"'[1]MONE(M)CAPARD'!L245","v":14.790542772211825},{"$f":"'[1]MONE(M)CAPARD'!M245","v":15.470340103920655},{"$f":"'[1]MONE(M)CAPARD'!N245","v":19.472475348296676},{"$f":"'[1]MONE(M)CAPARD'!O245","v":17.632382586317817},{"$f":"'[1]MONE(M)CAPARD'!P245","v":3.8934354838709595},null,null,{"$f":"'[1]MONE(M)CAPARD'!Q245","v":11.13},{"$f":"'[1]MONE(M)CAPARD'!R245","v":9.4499999999999993},{"$f":"'[1]MONE(M)CAPARD'!S245","v":8.14},{"$f":"'[1]MONE(M)CAPARD'!T245","v":10.38},{"$f":"'[1]MONE(M)CAPARD'!U245","v":12.66},{"$f":"'[1]MONE(M)CAPARD'!V245","v":8.3699999999999992},{"$f":"'[1]MONE(M)CAPARD'!W245","v":5.77},null,null,{"$f":"'[1]MONE(M)CAPARD'!AS245","v":9},{"$f":"'[1]MONE(M)CAPARD'!AT245","v":"n.a."},{"$f":"'[1]MONE(M)CAPARD'!AU245","v":4.75},{"$f":"'[1]MONE(M)CAPARD'!AV245","v":4.5},{"$f":"'[1]MONE(M)CAPARD'!AW245","v":"n.a."},{"$f":"'[1]MONE(M)CAPARD'!AX245","v":5},{"$f":"'[1]MONE(M)CAPARD'!AY245","v":"n.a."},null,null,{"$f":"+'Datos_Regional (M)'!CF238","v":15.457909905457591},{"$f":"+'Datos_Regional (M)'!CG238","v":-5.2337645942481359},{"$f":"+'Datos_Regional (M)'!CH238","v":13.962377853539776},{"$f":"+'Datos_Regional (M)'!CI238","v":0.89330562994243135},{"$f":"+'Datos_Regional (M)'!CJ238","v":-7.220567762662955},{"$f":"+'Datos_Regional (M)'!CK238","v":4.2568713411206272},{"$f":"+'Datos_Regional (M)'!CL238","v":4.860769023204381},null,null,731.98027525750001,339.36000000000007,598.76666666666665,204.07553325916669,212.53333333333333,469.3610333333333,939.66850633333343,2556.0768418499997,3495.7453481833327,null,null,1013.4889709183334,657.80000000000007,987.94999999999982,570.47214933499993,368.98333333333329,1049.625,1417.286102916667,4648.319453586666,6065.6055565033339,null,null,-2092.2426117366658,-2569.8602083199989,null,null,{"$f":"'[1]EXT Comercio(M)'!C245","v":743.62557242000003},{"$f":"'[1]EXT Comercio(M)'!D245","v":301.5300000000002},{"$f":"'[1]EXT Comercio(M)'!E245","v":555.99999999999977},{"$f":"'[1]EXT Comercio(M)'!F245","v":184.95820965000007},{"$f":"'[1]EXT Comercio(M)'!G245","v":241.00000000000006},{"$f":"'[1]EXT Comercio(M)'!H245","v":474.20000000000005},{"$f":"'[1]EXT Comercio(M)'!I245","v":1001.6583320000001},{"$f":"'[1]EXT Comercio(M)'!K245","v":2501.3137820699958},{"$f":"'[1]EXT Comercio(M)'!L245","v":3502.9721140700021},null,null,{"$f":"'[1]EXT Comercio(M)'!AG245","v":983.09318540999993},{"$f":"'[1]EXT Comercio(M)'!AH245","v":560.44999999999982},{"$f":"'[1]EXT Comercio(M)'!AI245","v":936.39999999999941},{"$f":"'[1]EXT Comercio(M)'!AJ245","v":515.16497188999983},{"$f":"'[1]EXT Comercio(M)'!AK245","v":364.3},{"$f":"'[1]EXT Comercio(M)'!AL245","v":1051.4000000000003},{"$f":"'[1]EXT Comercio(M)'!AM245","v":1305.2953830000006},{"$f":"'[1]EXT Comercio(M)'!AO245","v":4410.8081573000018},{"$f":"'[1]EXT Comercio(M)'!AP245","v":5716.103540300006},null,null,{"$f":"'[1]EXT Comercio(M)'!$BS245","v":-1909.4943752299987},{"$f":"'[1]EXT Comercio(M)'!$BT245","v":-2213.1314262300002}]
[null,null,"Setiembre",{"$f":"'[1]REAL IPC(M)'!AD246","v":4.8338258966047105},{"$f":"'[1]REAL IPC(M)'!AE246","v":-1.8018905080740413},{"$f":"'[1]REAL IPC(M)'!AF246","v":3.2837127845881657E-2},{"$f":"'[1]REAL IPC(M)'!AG246","v":3.0642023346303562},{"$f":"'[1]REAL IPC(M)'!AH246","v":7.5884049172794841E-3},{"$f":"'[1]REAL IPC(M)'!AI246","v":-1.5693716488945144},{"$f":"'[1]REAL IPC(M)'!AJ246","v":0.48899755501220976},null,null,{"$f":"'[1]REAL IMAE(M)'!AG246","v":-0.99256529702868457},{"$f":"'[1]REAL IMAE(M)'!AH246","v":-4.067052668758361},{"$f":"'[1]REAL IMAE(M)'!AI246","v":"n.d."},{"$f":"'[1]REAL IMAE(M)'!AJ246","v":-4.6236690582679101},{"$f":"'[1]REAL IMAE(M)'!AK246","v":-2.9175223810108877},{"$f":"'[1]REAL IMAE(M)'!AL246","v":3.7426533762204679},{"$f":"'[1]REAL IMAE(M)'!AM246","v":1.3478752958123288},null,null,{"$f":"'[1]EXT ITCER(M)'!C246","v":92.901581267160694},{"$f":"'[1]EXT ITCER(M)'!D246","v":91.966988208294026},{"$f":"'[1]EXT ITCER(M)'!E246","v":73.011242848488308},{"$f":"'[1]EXT ITCER(M)'!F246","v":80.538986002725935},{"$f":"'[1]EXT ITCER(M)'!G246","v":97.034638788851822},{"$f":"'[1]EXT ITCER(M)'!H246","v":95.437324603276011},{"$f":"'[1]EXT ITCER(M)'!I246","v":99.01631229509276},null,null,{"$f":"'[1]EXT TC(M)'!J246","v":6.0443056805362074},{"$f":"'[1]EXT TC(M)'!K246","v":0},{"$f":"'[1]EXT TC(M)'!L246","v":11.445829172969933},{"$f":"'[1]EXT TC(M)'!M246","v":-7.3085119453832712E-5},{"$f":"'[1]EXT TC(M)'!N246","v":5.8926199209406267},{"$f":"'[1]EXT TC(M)'!O246","v":3.5146145608741559},{"$f":"'[1]EXT TC(M)'!P246","v":0},null,null,{"$f":"'[1]EXT RIN(M)'!C246","v":4059.3971229499998},{"$f":"'[1]EXT RIN(M)'!D246","v":2743.5},{"$f":"'[1]EXT RIN(M)'!E246","v":5087.2152935399999},{"$f":"'[1]EXT RIN(M)'!F246","v":2205.5372715607355},{"$f":"'[1]EXT RIN(M)'!G246","v":1280.0999999999999},{"$f":"'[1]EXT RIN(M)'!H246","v":2210.9},{"$f":"'[1]EXT RIN(M)'!I246","v":2717.1761630798001},null,null,{"$f":"'[1]EXT RIN(M)'!P246","v":73.329865259358243},{"$f":"'[1]EXT RIN(M)'!Q246","v":96.976805099421099},{"$f":"'[1]EXT RIN(M)'!R246","v":109.82146155057293},{"$f":"'[1]EXT RIN(M)'!S246","v":97.532801271093874},{"$f":"'[1]EXT RIN(M)'!T246","v":102.70387497543925},{"$f":"'[1]EXT RIN(M)'!U246","v":47.874038797009526},{"$f":"'[1]EXT RIN(M)'!V246","v":260.12001097223407},null,null,{"$f":"+'[1]MONE(M)CAPARD'!AE246","v":6.3588007462114282},{"$f":"'[1]MONE(M)CAPARD'!AF246","v":5.8778020655770549},{"$f":"'[1]MONE(M)CAPARD'!AG246","v":5.6253156800525259},{"$f":"'[1]MONE(M)CAPARD'!AH246","v":6.797508258612547},{"$f":"'[1]MONE(M)CAPARD'!AI246","v":15.234193822729273},{"$f":"'[1]MONE(M)CAPARD'!AJ246","v":8.035478165070236},{"$f":"'[1]MONE(M)CAPARD'!AK246","v":2.9565450121654653},null,null,{"$f":"'[1]MONE(M)CAPARD'!AL246","v":1.89},{"$f":"'[1]MONE(M)CAPARD'!AM246","v":3.97},{"$f":"'[1]MONE(M)CAPARD'!AN246","v":4},{"$f":"'[1]MONE(M)CAPARD'!AO246","v":4.67},{"$f":"'[1]MONE(M)CAPARD'!AP246","v":6.8},{"$f":"'[1]MONE(M)CAPARD'!AQ246","v":3.09},{"$f":"'[1]MONE(M)CAPARD'!AR246","v":3.46},null,null,{"$f":"'[1]MONE(M)CAPARD'!J246","v":16.317418502179567},{"$f":"'[1]MONE(M)CAPARD'!K246","v":11.224137170359969},{"$f":"'[1]MONE(M)CAPARD'!L246","v":13.942584527847689},{"$f":"'[1]MONE(M)CAPARD'!M246","v":15.520226521944306},{"$f":"'[1]MONE(M)CAPARD'!N246","v":20.920196035612253},{"$f":"'[1]MONE(M)CAPARD'!O246","v":17.443119013373323},{"$f":"'[1]MONE(M)CAPARD'!P246","v":4.7975425790754409},null,null,{"$f":"'[1]MONE(M)CAPARD'!Q246","v":11.11},{"$f":"'[1]MONE(M)CAPARD'!R246","v":9.2200000000000006},{"$f":"'[1]MONE(M)CAPARD'!S246","v":8.129999999999999},{"$f":"'[1]MONE(M)CAPARD'!T246","v":10.43},{"$f":"'[1]MONE(M)CAPARD'!U246","v":13.08},{"$f":"'[1]MONE(M)CAPARD'!V246","v":8.14},{"$f":"'[1]MONE(M)CAPARD'!W246","v":5.31},null,null,{"$f":"'[1]MONE(M)CAPARD'!AS246","v":9},{"$f":"'[1]MONE(M)CAPARD'!AT246","v":"n.a."},{"$f":"'[1]MONE(M)CAPARD'!AU246","v":4.5},{"$f":"'[1]MONE(M)CAPARD'!AV246","v":4.5},{"$f":"'[1]MONE(M)CAPARD'!AW246","v":"n.a."},{"$f":"'[1]MONE(M)CAPARD'!AX246","v":4},{"$f":"'[1]MONE(M)CAPARD'!AY246","v":"n.a."},null,null,{"$f":"+'Datos_Regional (M)'!CF239","v":14.29106524772228},{"$f":"+'Datos_Regional (M)'!CG239","v":-5.6510718937310305},{"$f":"+'Datos_Regional (M)'!CH239","v":2.1441244553151773},{"$f":"+'Datos_Regional (M)'!CI239","v":0.47572555459829413},{"$f":"+'Datos_Regional (M)'!CJ239","v":-7.8327441879963438},{"$f":"+'Datos_Regional (M)'!CK239","v":4.7104014368545055},{"$f":"+'Datos_Regional (M)'!CL239","v":2.7135054903900224},null,null,{"$f":"+AVERAGE(EH40:EH51)","v":726.6382226991667},{"$f":"+AVERAGE(EI40:EI51)","v":333.45666666666671},{"$f":"+AVERAGE(EJ40:EJ51)","v":591.40833333333342},{"$f":"+AVERAGE(EK40:EK51)","v":198.45256931000003},{"$f":"+AVERAGE(EL40:EL51)","v":214.85833333333335},{"$f":"+AVERAGE(EM40:EM51)","v":464.32153333333326},{"$f":"+AVERAGE(EN40:EN51)","v":976.90275724999992},{"$f":"+AVERAGE(EO40:EO51)","v":2529.1356586758338},{"$f":"+AVERAGE(EP40:EP51)","v":3506.0384159258333},null,null,{"$f":"+AVERAGE(ES40:ES51)","v":978.05828336916682},{"$f":"+AVERAGE(ET40:ET51)","v":634.87083333333328},{"$f":"+AVERAGE(EU40:EU51)","v":965.30833333333305},{"$f":"+AVERAGE(EV40:EV51)","v":545.48998906000008},{"$f":"+AVERAGE(EW40:EW51)","v":362.99166666666662},{"$f":"+AVERAGE(EX40:EX51)","v":1023.9833333333332},{"$f":"+AVERAGE(EY40:EY51)","v":1389.860042},{"$f":"+AVERAGE(EZ40:EZ51)","v":4510.7024390958322},{"$f":"+AVERAGE(FA40:FA51)","v":5900.5624810958316},null,null,{"$f":"+AVERAGE(FD40:FD51)","v":-1981.5667804199993},{"$f":"+AVERAGE(FE40:FE51)","v":-2394.5240651699992},null,null,{"$f":"'[1]EXT Comercio(M)'!C246","v":747.37164112000028},{"$f":"'[1]EXT Comercio(M)'!D246","v":304.92000000000007},{"$f":"'[1]EXT Comercio(M)'!E246","v":549.89999999999964},{"$f":"'[1]EXT Comercio(M)'!F246","v":171.92701820999991},{"$f":"'[1]EXT Comercio(M)'!G246","v":257.90000000000009},{"$f":"'[1]EXT Comercio(M)'!H246","v":459.40000000000009},{"$f":"'[1]EXT Comercio(M)'!I246","v":1474.8524589999997},{"$f":"'[1]EXT Comercio(M)'!K246","v":2491.4186593300037},{"$f":"'[1]EXT Comercio(M)'!L246","v":3966.2711183300016},null,null,{"$f":"'[1]EXT Comercio(M)'!AG246","v":940.15620547000071},{"$f":"'[1]EXT Comercio(M)'!AH246","v":593.5600000000004},{"$f":"'[1]EXT Comercio(M)'!AI246","v":918.60000000000036},{"$f":"'[1]EXT Comercio(M)'!AJ246","v":481.55808611999964},{"$f":"'[1]EXT Comercio(M)'!AK246","v":345.29999999999984},{"$f":"'[1]EXT Comercio(M)'!AL246","v":985.90000000000009},{"$f":"'[1]EXT Comercio(M)'!AM246","v":1518.5849069999995},{"$f":"'[1]EXT Comercio(M)'!AO246","v":4265.0742915899973},{"$f":"'[1]EXT Comercio(M)'!AP246","v":5783.659198589994},null,null,{"$f":"'[1]EXT Comercio(M)'!$BS246","v":-1773.6556322600009},{"$f":"'[1]EXT Comercio(M)'!$BT246","v":-1817.3880802599997}]
[null,null,"Octubre",{"$f":"'[1]REAL IPC(M)'!AD247","v":4.000146533135247},{"$f":"'[1]REAL IPC(M)'!AE247","v":-2.0280965571824279},{"$f":"'[1]REAL IPC(M)'!AF247","v":-0.65348799215814191},{"$f":"'[1]REAL IPC(M)'!AG247","v":2.6582890285161911},{"$f":"'[1]REAL IPC(M)'!AH247","v":0.4250474383301725},{"$f":"'[1]REAL IPC(M)'!AI247","v":-0.30136068917231806},{"$f":"'[1]REAL IPC(M)'!AJ247","v":0.73349633251832314},null,null,{"$f":"'[1]REAL IMAE(M)'!AG247","v":-0.35285652069066581},{"$f":"'[1]REAL IMAE(M)'!AH247","v":-4.1287420830515895},{"$f":"'[1]REAL IMAE(M)'!AI247","v":"n.d."},{"$f":"'[1]REAL IMAE(M)'!AJ247","v":-1.3458096766079977},{"$f":"'[1]REAL IMAE(M)'!AK247","v":-2.5771627578405636},{"$f":"'[1]REAL IMAE(M)'!AL247","v":4.9862992254528544},{"$f":"'[1]REAL IMAE(M)'!AM247","v":2.2354155911202955},null,null,{"$f":"'[1]EXT ITCER(M)'!C247","v":92.031259373604684},{"$f":"'[1]EXT ITCER(M)'!D247","v":92.71244251221718},{"$f":"'[1]EXT ITCER(M)'!E247","v":73.510074233797809},{"$f":"'[1]EXT ITCER(M)'!F247","v":80.426777882100694},{"$f":"'[1]EXT ITCER(M)'!G247","v":97.121533513052327},{"$f":"'[1]EXT ITCER(M)'!H247","v":95.413577454530994},{"$f":"'[1]EXT ITCER(M)'!I247","v":98.87111270486281},null,null,{"$f":"'[1]EXT TC(M)'!J247","v":4.9503423944808889},{"$f":"'[1]EXT TC(M)'!K247","v":0},{"$f":"'[1]EXT TC(M)'!L247","v":10.950674138348019},{"$f":"'[1]EXT TC(M)'!M247","v":-4.7883366205993903E-5},{"$f":"'[1]EXT TC(M)'!N247","v":5.1452767567756945},{"$f":"'[1]EXT TC(M)'!O247","v":3.1577593598170925},{"$f":"'[1]EXT TC(M)'!P247","v":0},null,null,{"$f":"'[1]EXT RIN(M)'!C247","v":4066.7415792299998},{"$f":"'[1]EXT RIN(M)'!D247","v":2928.6},{"$f":"'[1]EXT RIN(M)'!E247","v":5091.3049877000003},{"$f":"'[1]EXT RIN(M)'!F247","v":2147.3992722455691},{"$f":"'[1]EXT RIN(M)'!G247","v":1287.2},{"$f":"'[1]EXT RIN(M)'!H247","v":2074.6},{"$f":"'[1]EXT RIN(M)'!I247","v":2679.3982361406001},null,null,{"$f":"'[1]EXT RIN(M)'!P247","v":70.697676389270285},{"$f":"'[1]EXT RIN(M)'!Q247","v":102.20312898058607},{"$f":"'[1]EXT RIN(M)'!R247","v":107.31574607692107},{"$f":"'[1]EXT RIN(M)'!S247","v":94.637831456738581},{"$f":"'[1]EXT RIN(M)'!T247","v":106.48783595663673},{"$f":"'[1]EXT RIN(M)'!U247","v":44.505917261988913},{"$f":"'[1]EXT RIN(M)'!V247","v":253.28258737339661},null,null,{"$f":"+'[1]MONE(M)CAPARD'!AE247","v":4.8075446367489114},{"$f":"'[1]MONE(M)CAPARD'!AF247","v":5.8568797334141145},{"$f":"'[1]MONE(M)CAPARD'!AG247","v":6.3550172668968896},{"$f":"'[1]MONE(M)CAPARD'!AH247","v":7.531501883239172},{"$f":"'[1]MONE(M)CAPARD'!AI247","v":11.181196560136426},{"$f":"'[1]MONE(M)CAPARD'!AJ247","v":5.6784733756717092},{"$f":"'[1]MONE(M)CAPARD'!AK247","v":2.5775970873786553},null,null,{"$f":"'[1]MONE(M)CAPARD'!AL247","v":1.7999999999999998},{"$f":"'[1]MONE(M)CAPARD'!AM247","v":3.71},{"$f":"'[1]MONE(M)CAPARD'!AN247","v":3.97},{"$f":"'[1]MONE(M)CAPARD'!AO247","v":4.68},{"$f":"'[1]MONE(M)CAPARD'!AP247","v":6.51},{"$f":"'[1]MONE(M)CAPARD'!AQ247","v":2.66},{"$f":"'[1]MONE(M)CAPARD'!AR247","v":3.33},null,null,{"$f":"'[1]MONE(M)CAPARD'!J247","v":16.432528257467208},{"$f":"'[1]MONE(M)CAPARD'!K247","v":11.287007977380588},{"$f":"'[1]MONE(M)CAPARD'!L247","v":14.679416214438412},{"$f":"'[1]MONE(M)CAPARD'!M247","v":16.035442561205276},{"$f":"'[1]MONE(M)CAPARD'!N247","v":19.075595487186316},{"$f":"'[1]MONE(M)CAPARD'!O247","v":15.006584636052754},{"$f":"'[1]MONE(M)CAPARD'!P247","v":5.2049919093851287},null,null,{"$f":"'[1]MONE(M)CAPARD'!Q247","v":11.05},{"$f":"'[1]MONE(M)CAPARD'!R247","v":9.0299999999999994},{"$f":"'[1]MONE(M)CAPARD'!S247","v":8.09},{"$f":"'[1]MONE(M)CAPARD'!T247","v":10.63},{"$f":"'[1]MONE(M)CAPARD'!U247","v":12.39},{"$f":"'[1]MONE(M)CAPARD'!V247","v":8.3699999999999992},{"$f":"'[1]MONE(M)CAPARD'!W247","v":5.9766666666666666},null,null,{"$f":"'[1]MONE(M)CAPARD'!AS247","v":9},{"$f":"'[1]MONE(M)CAPARD'!AT247","v":"n.a."},{"$f":"'[1]MONE(M)CAPARD'!AU247","v":4.5},{"$f":"'[1]MONE(M)CAPARD'!AV247","v":4.5},{"$f":"'[1]MONE(M)CAPARD'!AW247","v":"n.a."},{"$f":"'[1]MONE(M)CAPARD'!AX247","v":4},{"$f":"'[1]MONE(M)CAPARD'!AY247","v":"n.a."},null,null,{"$f":"+'Datos_Regional (M)'!CF240","v":13.576656802550202},{"$f":"+'Datos_Regional (M)'!CG240","v":-6.2531006899954278},{"$f":"+'Datos_Regional (M)'!CH240","v":1.0204816305484199},{"$f":"+'Datos_Regional (M)'!CI240","v":1.9247812348975213},{"$f":"+'Datos_Regional (M)'!CJ240","v":-7.9257226098780169},{"$f":"+'Datos_Regional (M)'!CK240","v":6.0006077528596879},{"$f":"+'Datos_Regional (M)'!CL240","v":1.9027380954190987},null,null,717.23092837416664,328.03916666666674,590.98333333333323,196.28193630249999,214.69166666666672,457.58862499999992,981.7919886666665,2504.8156563433336,3486.607645009999,null,null,945.0123494825001,618.37249999999995,951.12499999999989,527.91298009499997,352.97500000000008,1008.5083333333332,1359.5736138333334,4403.9061629108319,5763.479776744166,null,null,-1899.090506567499,-2276.8721317341656,null,null,{"$f":"'[1]EXT Comercio(M)'!C247","v":792.03797651999957},{"$f":"'[1]EXT Comercio(M)'!D247","v":343.55000000000018},{"$f":"'[1]EXT Comercio(M)'!E247","v":618.19999999999982},{"$f":"'[1]EXT Comercio(M)'!F247","v":181.88027041000009},{"$f":"'[1]EXT Comercio(M)'!G247","v":223.99999999999991},{"$f":"'[1]EXT Comercio(M)'!H247","v":479.20000000000005},{"$f":"'[1]EXT Comercio(M)'!I247","v":1383.4601720000001},{"$f":"'[1]EXT Comercio(M)'!K247","v":2638.8682469300002},{"$f":"'[1]EXT Comercio(M)'!L247","v":4022.3284189299957},null,null,{"$f":"'[1]EXT Comercio(M)'!AG247","v":1066.6309784099994},{"$f":"'[1]EXT Comercio(M)'!AH247","v":633.80999999999949},{"$f":"'[1]EXT Comercio(M)'!AI247","v":1124.6000000000004},{"$f":"'[1]EXT Comercio(M)'!AJ247","v":522.84389715999987},{"$f":"'[1]EXT Comercio(M)'!AK247","v":401.60000000000019},{"$f":"'[1]EXT Comercio(M)'!AL247","v":1115.1999999999998},{"$f":"'[1]EXT Comercio(M)'!AM247","v":1651.8402530000012},{"$f":"'[1]EXT Comercio(M)'!AO247","v":4864.6848755699975},{"$f":"'[1]EXT Comercio(M)'!AP247","v":6516.5251285699997},null,null,{"$f":"'[1]EXT Comercio(M)'!$BS247","v":-2225.8166286399992},{"$f":"'[1]EXT Comercio(M)'!$BT247","v":-2494.1967096400003}]
[null,null,"Noviembre",{"$f":"'[1]REAL IPC(M)'!AD248","v":2.5665485973429414},{"$f":"'[1]REAL IPC(M)'!AE248","v":-2.9868578255772948E-2},{"$f":"'[1]REAL IPC(M)'!AF248","v":-0.6098557037843747},{"$f":"'[1]REAL IPC(M)'!AG248","v":3.0992736077481866},{"$f":"'[1]REAL IPC(M)'!AH248","v":0.46261186106475438},{"$f":"'[1]REAL IPC(M)'!AI248","v":4.1795178447787418},{"$f":"'[1]REAL IPC(M)'!AJ248","v":1.3934426229508079},null,null,{"$f":"'[1]REAL IMAE(M)'!AG248","v":0.48524390973263104},{"$f":"'[1]REAL IMAE(M)'!AH248","v":-3.0481986769653222},{"$f":"'[1]REAL IMAE(M)'!AI248","v":"n.d."},{"$f":"'[1]REAL IMAE(M)'!AJ248","v":-0.78237204777086866},{"$f":"'[1]REAL IMAE(M)'!AK248","v":-2.0128890492582094},{"$f":"'[1]REAL IMAE(M)'!AL248","v":6.1587317716445495},{"$f":"'[1]REAL IMAE(M)'!AM248","v":3.0833808363994346},null,null,{"$f":"'[1]EXT ITCER(M)'!C248","v":89.830572771703956},{"$f":"'[1]EXT ITCER(M)'!D248","v":91.497951812532136},{"$f":"'[1]EXT ITCER(M)'!E248","v":73.140951853767149},{"$f":"'[1]EXT ITCER(M)'!F248","v":80.294682590700944},{"$f":"'[1]EXT ITCER(M)'!G248","v":97.388719145987963},{"$f":"'[1]EXT ITCER(M)'!H248","v":94.466837624183256},{"$f":"'[1]EXT ITCER(M)'!I248","v":98.861104355691566},null,null,{"$f":"'[1]EXT TC(M)'!J248","v":2.5025517023500123},{"$f":"'[1]EXT TC(M)'!K248","v":0},{"$f":"'[1]EXT TC(M)'!L248","v":8.814506179090781},{"$f":"'[1]EXT TC(M)'!M248","v":-2.6461865926904145E-5},{"$f":"'[1]EXT TC(M)'!N248","v":5.0350504789669301},{"$f":"'[1]EXT TC(M)'!O248","v":2.5544054259094588},{"$f":"'[1]EXT TC(M)'!P248","v":0},null,null,{"$f":"'[1]EXT RIN(M)'!C248","v":4059.79113474},{"$f":"'[1]EXT RIN(M)'!D248","v":2731.1},{"$f":"'[1]EXT RIN(M)'!E248","v":5111.03923614},{"$f":"'[1]EXT RIN(M)'!F248","v":2066.7989592252898},{"$f":"'[1]EXT RIN(M)'!G248","v":1307.7},{"$f":"'[1]EXT RIN(M)'!H248","v":2222.9},{"$f":"'[1]EXT RIN(M)'!I248","v":3026.8883949599999},null,null,{"$f":"'[1]EXT RIN(M)'!P248","v":68.968896821279259},{"$f":"'[1]EXT RIN(M)'!Q248","v":99.163189183438647},{"$f":"'[1]EXT RIN(M)'!R248","v":104.15564099024861},{"$f":"'[1]EXT RIN(M)'!S248","v":90.115674561314222},{"$f":"'[1]EXT RIN(M)'!T248","v":107.24464415491141},{"$f":"'[1]EXT RIN(M)'!U248","v":45.25132867871136},{"$f":"'[1]EXT RIN(M)'!V248","v":279.65670934222254},null,null,{"$f":"+'[1]MONE(M)CAPARD'!AE248","v":6.5162097136514143},{"$f":"'[1]MONE(M)CAPARD'!AF248","v":3.6609620555722557},{"$f":"'[1]MONE(M)CAPARD'!AG248","v":6.2982660384594338},{"$f":"'[1]MONE(M)CAPARD'!AH248","v":7.2752465946453713},{"$f":"'[1]MONE(M)CAPARD'!AI248","v":12.099993258481819},{"$f":"'[1]MONE(M)CAPARD'!AJ248","v":0.70117636396593153},{"$f":"'[1]MONE(M)CAPARD'!AK248","v":1.9000808407437466},null,null,{"$f":"'[1]MONE(M)CAPARD'!AL248","v":1.7949999999999999},{"$f":"'[1]MONE(M)CAPARD'!AM248","v":3.63},{"$f":"'[1]MONE(M)CAPARD'!AN248","v":3.9},{"$f":"'[1]MONE(M)CAPARD'!AO248","v":4.62},{"$f":"'[1]MONE(M)CAPARD'!AP248","v":6.29},{"$f":"'[1]MONE(M)CAPARD'!AQ248","v":2.76},{"$f":"'[1]MONE(M)CAPARD'!AR248","v":3.32},null,null,{"$f":"'[1]MONE(M)CAPARD'!J248","v":17.075207893961206},{"$f":"'[1]MONE(M)CAPARD'!K248","v":9.1526023304452817},{"$f":"'[1]MONE(M)CAPARD'!L248","v":14.377537938968938},{"$f":"'[1]MONE(M)CAPARD'!M248","v":15.393635509628933},{"$f":"'[1]MONE(M)CAPARD'!N248","v":18.603089304627655},{"$f":"'[1]MONE(M)CAPARD'!O248","v":9.9064406984472324},{"$f":"'[1]MONE(M)CAPARD'!P248","v":4.553112368633804},null,null,{"$f":"'[1]MONE(M)CAPARD'!Q248","v":10.58},{"$f":"'[1]MONE(M)CAPARD'!R248","v":9.1199999999999992},{"$f":"'[1]MONE(M)CAPARD'!S248","v":8.09},{"$f":"'[1]MONE(M)CAPARD'!T248","v":10.41},{"$f":"'[1]MONE(M)CAPARD'!U248","v":12.68},{"$f":"'[1]MONE(M)CAPARD'!V248","v":7.92},{"$f":"'[1]MONE(M)CAPARD'!W248","v":6.01},null,null,{"$f":"'[1]MONE(M)CAPARD'!AS248","v":9},{"$f":"'[1]MONE(M)CAPARD'!AT248","v":"n.a."},{"$f":"'[1]MONE(M)CAPARD'!AU248","v":4.5},{"$f":"'[1]MONE(M)CAPARD'!AV248","v":4.5},{"$f":"'[1]MONE(M)CAPARD'!AW248","v":"n.a."},{"$f":"'[1]MONE(M)CAPARD'!AX248","v":4},{"$f":"'[1]MONE(M)CAPARD'!AY248","v":"n.a."},null,null,{"$f":"+'Datos_Regional (M)'!CF241","v":12.47795754911898},{"$f":"+'Datos_Regional (M)'!CG241","v":-6.280643711607981},{"$f":"+'Datos_Regional (M)'!CH241","v":-0.3778745585305221},{"$f":"+'Datos_Regional (M)'!CI241","v":2.1396956222186958},{"$f":"+'Datos_Regional (M)'!CJ241","v":-8.2262893153439265},{"$f":"+'Datos_Regional (M)'!CK241","v":6.3891772772979305},{"$f":"+'Datos_Regional (M)'!CL241","v":1.2092512216758777},null,null,725.03746686916691,321.0266666666667,592.64166666666677,196.02821800416666,216.65000000000006,457.72221666666672,980.36904358333322,2509.106234873334,3489.4752784566667,null,null,948.51602288166669,615.58166666666659,950.20833333333337,518.80922558416671,355.00000000000006,1006.7833333333332,1341.8403479166666,4394.8985817991661,5736.7389297158325,null,null,-1885.7923469258324,-2247.2636512591653,null,null,{"$f":"'[1]EXT Comercio(M)'!C248","v":751.76831120000043},{"$f":"'[1]EXT Comercio(M)'!D248","v":282.67999999999984},{"$f":"'[1]EXT Comercio(M)'!E248","v":537.80000000000064},{"$f":"'[1]EXT Comercio(M)'!F248","v":163.08698176999997},{"$f":"'[1]EXT Comercio(M)'!G248","v":209.40000000000003},{"$f":"'[1]EXT Comercio(M)'!H248","v":447.40000000000009},{"$f":"'[1]EXT Comercio(M)'!I248","v":987.73681499999998},{"$f":"'[1]EXT Comercio(M)'!K248","v":2392.1352929700006},{"$f":"'[1]EXT Comercio(M)'!L248","v":3379.8721079700044},null,null,{"$f":"'[1]EXT Comercio(M)'!AG248","v":1105.1313259100007},{"$f":"'[1]EXT Comercio(M)'!AH248","v":686.00999999999931},{"$f":"'[1]EXT Comercio(M)'!AI248","v":972.79999999999927},{"$f":"'[1]EXT Comercio(M)'!AJ248","v":549.97651875999964},{"$f":"'[1]EXT Comercio(M)'!AK248","v":385.30000000000007},{"$f":"'[1]EXT Comercio(M)'!AL248","v":1120.6999999999998},{"$f":"'[1]EXT Comercio(M)'!AM248","v":1229.9066589999989},{"$f":"'[1]EXT Comercio(M)'!AO248","v":4819.9178446700025},{"$f":"'[1]EXT Comercio(M)'!AP248","v":6049.8245036700027},null,null,{"$f":"'[1]EXT Comercio(M)'!$BS248","v":-2427.7825517000019},{"$f":"'[1]EXT Comercio(M)'!$BT248","v":-2669.9523957000019}]
[null,null,"Diciembre ",{"$f":"'[1]REAL IPC(M)'!AD249","v":4.0470413279510318},{"$f":"'[1]REAL IPC(M)'!AE249","v":-0.18963968459925915},{"$f":"'[1]REAL IPC(M)'!AF249","v":-0.27876468980595154},{"$f":"'[1]REAL IPC(M)'!AG249","v":2.9511369134010756},{"$f":"'[1]REAL IPC(M)'!AH249","v":0.93379779551500885},{"$f":"'[1]REAL IPC(M)'!AI249","v":5.7648110316649532},{"$f":"'[1]REAL IPC(M)'!AJ249","v":1.8930041152263277},null,null,{"$f":"'[1]REAL IMAE(M)'!AG249","v":1.5255772864021768},{"$f":"'[1]REAL IMAE(M)'!AH249","v":-1.5050409218446021},{"$f":"'[1]REAL IMAE(M)'!AI249","v":"n.d."},{"$f":"'[1]REAL IMAE(M)'!AJ249","v":-1.0261203259616567},{"$f":"'[1]REAL IMAE(M)'!AK249","v":-1.238705055023912},{"$f":"'[1]REAL IMAE(M)'!AL249","v":7.3660650629339424},{"$f":"'[1]REAL IMAE(M)'!AM249","v":3.804178359837866},null,null,{"$f":"'[1]EXT ITCER(M)'!C249","v":88.809535258051781},{"$f":"'[1]EXT ITCER(M)'!D249","v":91.713563383348514},{"$f":"'[1]EXT ITCER(M)'!E249","v":73.234761517298608},{"$f":"'[1]EXT ITCER(M)'!F249","v":80.190933751982172},{"$f":"'[1]EXT ITCER(M)'!G249","v":97.255241613191643},{"$f":"'[1]EXT ITCER(M)'!H249","v":94.199993103264404},{"$f":"'[1]EXT ITCER(M)'!I249","v":98.607275504774478},null,null,{"$f":"'[1]EXT TC(M)'!J249","v":3.3340916738945312},{"$f":"'[1]EXT TC(M)'!K249","v":0},{"$f":"'[1]EXT TC(M)'!L249","v":8.1264481505124646},{"$f":"'[1]EXT TC(M)'!M249","v":5.2923773924069472E-5},{"$f":"'[1]EXT TC(M)'!N249","v":4.9787173587837028},{"$f":"'[1]EXT TC(M)'!O249","v":2.3615235599272748},{"$f":"'[1]EXT TC(M)'!P249","v":0},null,null,{"$f":"'[1]EXT RIN(M)'!C249","v":4066.2656085899998},{"$f":"'[1]EXT RIN(M)'!D249","v":2983.4},{"$f":"'[1]EXT RIN(M)'!E249","v":5212.5943903699999},{"$f":"'[1]EXT RIN(M)'!F249","v":2116.3361415778572},{"$f":"'[1]EXT RIN(M)'!G249","v":1422.8},{"$f":"'[1]EXT RIN(M)'!H249","v":2851.9},{"$f":"'[1]EXT RIN(M)'!I249","v":3204.5331848385295},null,null,{"$f":"'[1]EXT RIN(M)'!P249","v":67.864031627670755},{"$f":"'[1]EXT RIN(M)'!Q249","v":109.47232460815593},{"$f":"'[1]EXT RIN(M)'!R249","v":101.40223427143657},{"$f":"'[1]EXT RIN(M)'!S249","v":84.393086823148195},{"$f":"'[1]EXT RIN(M)'!T249","v":107.9785240937761},{"$f":"'[1]EXT RIN(M)'!U249","v":54.90819686292938},{"$f":"'[1]EXT RIN(M)'!V249","v":254.12570304778791},null,null,{"$f":"+'[1]MONE(M)CAPARD'!AE249","v":4.0394792763029699},{"$f":"'[1]MONE(M)CAPARD'!AF249","v":3.8469349999999976},{"$f":"'[1]MONE(M)CAPARD'!AG249","v":5.9052263757947756},{"$f":"'[1]MONE(M)CAPARD'!AH249","v":7.5558787593984844},{"$f":"'[1]MONE(M)CAPARD'!AI249","v":11.267220973842255},{"$f":"'[1]MONE(M)CAPARD'!AJ249","v":-0.82712862920262176},{"$f":"'[1]MONE(M)CAPARD'!AK249","v":1.3710420032310275},null,null,{"$f":"'[1]MONE(M)CAPARD'!AL249","v":1.7850000000000001},{"$f":"'[1]MONE(M)CAPARD'!AM249","v":3.65},{"$f":"'[1]MONE(M)CAPARD'!AN249","v":3.88},{"$f":"'[1]MONE(M)CAPARD'!AO249","v":4.6399999999999997},{"$f":"'[1]MONE(M)CAPARD'!AP249","v":6.46},{"$f":"'[1]MONE(M)CAPARD'!AQ249","v":2.64},{"$f":"'[1]MONE(M)CAPARD'!AR249","v":3.29},null,null,{"$f":"'[1]MONE(M)CAPARD'!J249","v":15.515057868072553},{"$f":"'[1]MONE(M)CAPARD'!K249","v":8.6259979999999974},{"$f":"'[1]MONE(M)CAPARD'!L249","v":13.88747807498355},{"$f":"'[1]MONE(M)CAPARD'!M249","v":15.530535714285703},{"$f":"'[1]MONE(M)CAPARD'!N249","v":18.849367551700816},{"$f":"'[1]MONE(M)CAPARD'!O249","v":7.6161332769964503},{"$f":"'[1]MONE(M)CAPARD'!P249","v":4.1877221324717393},null,null,{"$f":"'[1]MONE(M)CAPARD'!Q249","v":10.56},{"$f":"'[1]MONE(M)CAPARD'!R249","v":8.42},{"$f":"'[1]MONE(M)CAPARD'!S249","v":8.1199999999999992},{"$f":"'[1]MONE(M)CAPARD'!T249","v":10.26},{"$f":"'[1]MONE(M)CAPARD'!U249","v":12.45},{"$f":"'[1]MONE(M)CAPARD'!V249","v":8.09},{"$f":"'[1]MONE(M)CAPARD'!W249","v":6.16},null,null,{"$f":"'[1]MONE(M)CAPARD'!AS249","v":9},{"$f":"'[1]MONE(M)CAPARD'!AT249","v":"n.a."},{"$f":"'[1]MONE(M)CAPARD'!AU249","v":4.5},{"$f":"'[1]MONE(M)CAPARD'!AV249","v":4.5},{"$f":"'[1]MONE(M)CAPARD'!AW249","v":"n.a."},{"$f":"'[1]MONE(M)CAPARD'!AX249","v":4},{"$f":"'[1]MONE(M)CAPARD'!AY249","v":"n.a."},null,null,{"$f":"+'Datos_Regional (M)'!CF242","v":7.3667687370214452},{"$f":"+'Datos_Regional (M)'!CG242","v":-5.1099661640702232},{"$f":"+'Datos_Regional (M)'!CH242","v":-2.6987739204442196},{"$f":"+'Datos_Regional (M)'!CI242","v":2.5058362240420573},{"$f":"+'Datos_Regional (M)'!CJ242","v":-7.3137881303383834},{"$f":"+'Datos_Regional (M)'!CK242","v":7.9854357463250425},{"$f":"+'Datos_Regional (M)'!CL242","v":2.0864406026152249},null,null,731.97497315333351,322.17416666666668,601.14166666666654,196.82933375499999,218.80833333333337,456.90833333333336,988.23281725000004,2527.8368069083335,3516.0696241583341,null,null,949.55567407499996,610.44749999999988,960.94166666666649,518.64481135583321,360.58333333333331,1024.6583333333335,1337.4061076666667,4424.831318764167,5762.2374264308337,null,null,-1896.9945118558328,-2246.1678022724996,null,null,{"$f":"'[1]EXT Comercio(M)'!C249","v":691.17352102000132},{"$f":"'[1]EXT Comercio(M)'!D249","v":299.46000000000004},{"$f":"'[1]EXT Comercio(M)'!E249","v":639.69999999999936},{"$f":"'[1]EXT Comercio(M)'!F249","v":199.45258663999994},{"$f":"'[1]EXT Comercio(M)'!G249","v":200.30000000000004},{"$f":"'[1]EXT Comercio(M)'!H249","v":439.30000000000018},{"$f":"'[1]EXT Comercio(M)'!I249","v":700.5732290000002},{"$f":"'[1]EXT Comercio(M)'!K249","v":2469.3861076600006},{"$f":"'[1]EXT Comercio(M)'!L249","v":3169.9593366600093},null,null,{"$f":"'[1]EXT Comercio(M)'!AG249","v":1056.1199696799995},{"$f":"'[1]EXT Comercio(M)'!AH249","v":612.02999999999975},{"$f":"'[1]EXT Comercio(M)'!AI249","v":1088.099999999999},{"$f":"'[1]EXT Comercio(M)'!AJ249","v":575.22542067999984},{"$f":"'[1]EXT Comercio(M)'!AK249","v":407.59999999999991},{"$f":"'[1]EXT Comercio(M)'!AL249","v":1225.1999999999998},{"$f":"'[1]EXT Comercio(M)'!AM249","v":1252.0713840000003},{"$f":"'[1]EXT Comercio(M)'!AO249","v":4964.2753903600023},{"$f":"'[1]EXT Comercio(M)'!AP249","v":6216.3467743599977},null,null,{"$f":"'[1]EXT Comercio(M)'!$BS249","v":-2494.8892826999945},{"$f":"'[1]EXT Comercio(M)'!$BT249","v":-3046.3874376999956}]
[null,2010,"Enero",{"$f":"'[1]REAL IPC(M)'!AD250","v":5.3430509416811693},{"$f":"'[1]REAL IPC(M)'!AE250","v":0.79277471149022205},{"$f":"'[1]REAL IPC(M)'!AF250","v":1.4325703935452141},{"$f":"'[1]REAL IPC(M)'!AG250","v":3.5818005808325295},{"$f":"'[1]REAL IPC(M)'!AH250","v":1.8504656993086652},{"$f":"'[1]REAL IPC(M)'!AI250","v":6.8531958237840449},{"$f":"'[1]REAL IPC(M)'!AJ250","v":3.0553261767134727},null,null,{"$f":"'[1]REAL IMAE(M)'!AG250","v":2.4676605082275911},{"$f":"'[1]REAL IMAE(M)'!AH250","v":1.9104606909809502E-2},{"$f":"'[1]REAL IMAE(M)'!AI250","v":"n.d."},{"$f":"'[1]REAL IMAE(M)'!AJ250","v":0.80564986347354317},{"$f":"'[1]REAL IMAE(M)'!AK250","v":-0.37247282196453463},{"$f":"'[1]REAL IMAE(M)'!AL250","v":8.6295137821220553},{"$f":"'[1]REAL IMAE(M)'!AM250","v":4.3091797484145919},null,null,{"$f":"'[1]EXT ITCER(M)'!C250","v":87.128195963229544},{"$f":"'[1]EXT ITCER(M)'!D250","v":91.623847134841967},{"$f":"'[1]EXT ITCER(M)'!E250","v":72.917228907383617},{"$f":"'[1]EXT ITCER(M)'!F250","v":80.01377863005456},{"$f":"'[1]EXT ITCER(M)'!G250","v":97.286627108608656},{"$f":"'[1]EXT ITCER(M)'!H250","v":93.350063488491642},{"$f":"'[1]EXT ITCER(M)'!I250","v":98.151440640339629},null,null,{"$f":"'[1]EXT TC(M)'!J250","v":1.4043425142300792},{"$f":"'[1]EXT TC(M)'!K250","v":0},{"$f":"'[1]EXT TC(M)'!L250","v":6.511100117246432},{"$f":"'[1]EXT TC(M)'!M250","v":5.2923773924069472E-5},{"$f":"'[1]EXT TC(M)'!N250","v":5.0320863805486331},{"$f":"'[1]EXT TC(M)'!O250","v":2.0941890283381257},{"$f":"'[1]EXT TC(M)'!P250","v":0},null,null,{"$f":"'[1]EXT RIN(M)'!C250","v":4072.4222186000002},{"$f":"'[1]EXT RIN(M)'!D250","v":3013.5},{"$f":"'[1]EXT RIN(M)'!E250","v":5526.1660629600001},{"$f":"'[1]EXT RIN(M)'!F250","v":2077.2321656241356},{"$f":"'[1]EXT RIN(M)'!G250","v":1348.8},{"$f":"'[1]EXT RIN(M)'!H250","v":2615.7731839341236},{"$f":"'[1]EXT RIN(M)'!I250","v":2740.80962322},null,null,{"$f":"'[1]EXT RIN(M)'!P250","v":67.714424980642264},{"$f":"'[1]EXT RIN(M)'!Q250","v":106.01489872560488},{"$f":"'[1]EXT RIN(M)'!R250","v":107.14559616339592},{"$f":"'[1]EXT RIN(M)'!S250","v":83.231953567140934},{"$f":"'[1]EXT RIN(M)'!T250","v":105.11754664533153},{"$f":"'[1]EXT RIN(M)'!U250","v":51.888946277011719},{"$f":"'[1]EXT RIN(M)'!V250","v":243.37514712891704},null,null,{"$f":"+'[1]MONE(M)CAPARD'!AE250","v":2.5221873057291084},{"$f":"'[1]MONE(M)CAPARD'!AF250","v":2.7752240143369113},{"$f":"'[1]MONE(M)CAPARD'!AG250","v":4.1282889610389466},{"$f":"'[1]MONE(M)CAPARD'!AH250","v":6.9685981308411185},{"$f":"'[1]MONE(M)CAPARD'!AI250","v":7.4447034174301541},{"$f":"'[1]MONE(M)CAPARD'!AJ250","v":-1.9308695522654697},{"$f":"'[1]MONE(M)CAPARD'!AK250","v":0.24712339743588507},null,null,{"$f":"'[1]MONE(M)CAPARD'!AL250","v":1.7850000000000001},{"$f":"'[1]MONE(M)CAPARD'!AM250","v":3.59},{"$f":"'[1]MONE(M)CAPARD'!AN250","v":3.9},{"$f":"'[1]MONE(M)CAPARD'!AO250","v":4.57},{"$f":"'[1]MONE(M)CAPARD'!AP250","v":5.97},{"$f":"'[1]MONE(M)CAPARD'!AQ250","v":2.5},{"$f":"'[1]MONE(M)CAPARD'!AR250","v":3.31},null,null,{"$f":"'[1]MONE(M)CAPARD'!J250","v":13.647743187424895},{"$f":"'[1]MONE(M)CAPARD'!K250","v":7.7458183990441984},{"$f":"'[1]MONE(M)CAPARD'!L250","v":11.916714285714271},{"$f":"'[1]MONE(M)CAPARD'!M250","v":14.952626168224295},{"$f":"'[1]MONE(M)CAPARD'!N250","v":17.519900196279309},{"$f":"'[1]MONE(M)CAPARD'!O250","v":5.9023074860734743},{"$f":"'[1]MONE(M)CAPARD'!P250","v":3.2261057692307564},null,null,{"$f":"'[1]MONE(M)CAPARD'!Q250","v":10.57},{"$f":"'[1]MONE(M)CAPARD'!R250","v":8.6},{"$f":"'[1]MONE(M)CAPARD'!S250","v":8.1100000000000012},{"$f":"'[1]MONE(M)CAPARD'!T250","v":10.32},{"$f":"'[1]MONE(M)CAPARD'!U250","v":12.89},{"$f":"'[1]MONE(M)CAPARD'!V250","v":8.48},{"$f":"'[1]MONE(M)CAPARD'!W250","v":6.38},null,null,{"$f":"'[1]MONE(M)CAPARD'!AS250","v":9},{"$f":"'[1]MONE(M)CAPARD'!AT250","v":"n.a."},{"$f":"'[1]MONE(M)CAPARD'!AU250","v":4.5},{"$f":"'[1]MONE(M)CAPARD'!AV250","v":4.5},{"$f":"'[1]MONE(M)CAPARD'!AW250","v":"n.a."},{"$f":"'[1]MONE(M)CAPARD'!AX250","v":4},{"$f":"'[1]MONE(M)CAPARD'!AY250","v":"n.a."},null,null,{"$f":"+'Datos_Regional (M)'!CF243","v":6.3611273081439101},{"$f":"+'Datos_Regional (M)'!CG243","v":-5.3937263513163192},{"$f":"+'Datos_Regional (M)'!CH243","v":0.68490266692415869},{"$f":"+'Datos_Regional (M)'!CI243","v":1.9444348866115568},{"$f":"+'Datos_Regional (M)'!CJ243","v":-6.6741122536062019},{"$f":"+'Datos_Regional (M)'!CK243","v":10.827182775303257},{"$f":"+'Datos_Regional (M)'!CL243","v":1.5022583036576886},null,null,740.74932155000022,323.26916666666665,608.01666666666665,200.08065294583332,222.625,459.17500000000001,991.57369949999986,2553.9158078291671,3545.4895073291677,null,null,965.88366715333348,614.63166666666666,967.85833333333312,519.74026435916664,360.625,1032.241666666667,1338.2338819166666,4460.9805981791678,5799.214480095834,null,null,-1907.0647903499994,-2253.7249727666667,null,null,{"$f":"'[1]EXT Comercio(M)'!C250","v":724.41177244000005},{"$f":"'[1]EXT Comercio(M)'!D250","v":329.95},{"$f":"'[1]EXT Comercio(M)'!E250","v":671.2},{"$f":"'[1]EXT Comercio(M)'!F250","v":217.17174202999999},{"$f":"'[1]EXT Comercio(M)'!G250","v":231.2},{"$f":"'[1]EXT Comercio(M)'!H250","v":392.79999999999995},{"$f":"'[1]EXT Comercio(M)'!I250","v":657.42217399999993},{"$f":"'[1]EXT Comercio(M)'!K250","v":2566.73351447},{"$f":"'[1]EXT Comercio(M)'!L250","v":3224.1556884700003},null,null,{"$f":"'[1]EXT Comercio(M)'!AG250","v":1054.67359971},{"$f":"'[1]EXT Comercio(M)'!AH250","v":638.39},{"$f":"'[1]EXT Comercio(M)'!AI250","v":924.3},{"$f":"'[1]EXT Comercio(M)'!AJ250","v":508.14029879000003},{"$f":"'[1]EXT Comercio(M)'!AK250","v":326.8},{"$f":"'[1]EXT Comercio(M)'!AL250","v":1007.4},{"$f":"'[1]EXT Comercio(M)'!AM250","v":1249.2773450000004},{"$f":"'[1]EXT Comercio(M)'!AO250","v":4459.7038984999999},{"$f":"'[1]EXT Comercio(M)'!AP250","v":5708.9812435000003},null,null,{"$f":"'[1]EXT Comercio(M)'!$BS250","v":-1892.9703840299999},{"$f":"'[1]EXT Comercio(M)'!$BT250","v":-2484.8255550300005}]
[null,null,"Febrero",{"$f":"'[1]REAL IPC(M)'!AD251","v":5.5994495134335471},{"$f":"'[1]REAL IPC(M)'!AE251","v":1.0449110820857952},{"$f":"'[1]REAL IPC(M)'!AF251","v":2.4848150193263336},{"$f":"'[1]REAL IPC(M)'!AG251","v":3.5062439961575467},{"$f":"'[1]REAL IPC(M)'!AH251","v":2.7426097137246073},{"$f":"'[1]REAL IPC(M)'!AI251","v":6.6768215283066814},{"$f":"'[1]REAL IPC(M)'!AJ251","v":2.9629629629629575},null,null,{"$f":"'[1]REAL IMAE(M)'!AG251","v":3.1811398725132141},{"$f":"'[1]REAL IMAE(M)'!AH251","v":1.4797359232985745},{"$f":"'[1]REAL IMAE(M)'!AI251","v":"n.d."},{"$f":"'[1]REAL IMAE(M)'!AJ251","v":3.8926900854350253},{"$f":"'[1]REAL IMAE(M)'!AK251","v":0.52034856689350417},{"$f":"'[1]REAL IMAE(M)'!AL251","v":9.6295495054994813},{"$f":"'[1]REAL IMAE(M)'!AM251","v":5.1625338612210854},null,null,{"$f":"'[1]EXT ITCER(M)'!C251","v":84.943498596612272},{"$f":"'[1]EXT ITCER(M)'!D251","v":91.528215042266552},{"$f":"'[1]EXT ITCER(M)'!E251","v":70.704359348014478},{"$f":"'[1]EXT ITCER(M)'!F251","v":79.476597344702142},{"$f":"'[1]EXT ITCER(M)'!G251","v":96.464783396545613},{"$f":"'[1]EXT ITCER(M)'!H251","v":93.45451702628857},{"$f":"'[1]EXT ITCER(M)'!I251","v":97.940466889270951},null,null,{"$f":"'[1]EXT TC(M)'!J251","v":-1.6395877820072453},{"$f":"'[1]EXT TC(M)'!K251","v":0},{"$f":"'[1]EXT TC(M)'!L251","v":2.5676813557500902},{"$f":"'[1]EXT TC(M)'!M251","v":6.7190024562947988E-10},{"$f":"'[1]EXT TC(M)'!N251","v":5.2047545986273116},{"$f":"'[1]EXT TC(M)'!O251","v":1.7830024185837234},{"$f":"'[1]EXT TC(M)'!P251","v":0},null,null,{"$f":"'[1]EXT RIN(M)'!C251","v":4113.3952816999999},{"$f":"'[1]EXT RIN(M)'!D251","v":2842.8},{"$f":"'[1]EXT RIN(M)'!E251","v":5565.4613587100002},{"$f":"'[1]EXT RIN(M)'!F251","v":2139.2136788249127},{"$f":"'[1]EXT RIN(M)'!G251","v":1365.3},{"$f":"'[1]EXT RIN(M)'!H251","v":2430.1143302571368},{"$f":"'[1]EXT RIN(M)'!I251","v":2698.6626112100003},null,null,{"$f":"'[1]EXT RIN(M)'!P251","v":67.53921132226634},{"$f":"'[1]EXT RIN(M)'!Q251","v":101.31107825307883},{"$f":"'[1]EXT RIN(M)'!R251","v":109.21978820344793},{"$f":"'[1]EXT RIN(M)'!S251","v":82.212047674641838},{"$f":"'[1]EXT RIN(M)'!T251","v":100.2529709008644},{"$f":"'[1]EXT RIN(M)'!U251","v":48.967696565438928},{"$f":"'[1]EXT RIN(M)'!V251","v":245.38156063317626},null,null,{"$f":"+'[1]MONE(M)CAPARD'!AE251","v":2.2732604171966573},{"$f":"'[1]MONE(M)CAPARD'!AF251","v":2.4989768320572812},{"$f":"'[1]MONE(M)CAPARD'!AG251","v":3.059170258620695},{"$f":"'[1]MONE(M)CAPARD'!AH251","v":6.9983758700695988},{"$f":"'[1]MONE(M)CAPARD'!AI251","v":6.8301854299558782},{"$f":"'[1]MONE(M)CAPARD'!AJ251","v":-1.721856258924326},{"$f":"'[1]MONE(M)CAPARD'!AK251","v":0.34676258992806269},null,null,{"$f":"'[1]MONE(M)CAPARD'!AL251","v":1.7749999999999999},{"$f":"'[1]MONE(M)CAPARD'!AM251","v":3.57},{"$f":"'[1]MONE(M)CAPARD'!AN251","v":3.92},{"$f":"'[1]MONE(M)CAPARD'!AO251","v":4.47},{"$f":"'[1]MONE(M)CAPARD'!AP251","v":4.84},{"$f":"'[1]MONE(M)CAPARD'!AQ251","v":2.52},{"$f":"'[1]MONE(M)CAPARD'!AR251","v":3.32},null,null,{"$f":"'[1]MONE(M)CAPARD'!J251","v":13.939987901825017},{"$f":"'[1]MONE(M)CAPARD'!K251","v":7.6847896987173208},{"$f":"'[1]MONE(M)CAPARD'!L251","v":10.748114224137936},{"$f":"'[1]MONE(M)CAPARD'!M251","v":15.026877030162403},{"$f":"'[1]MONE(M)CAPARD'!N251","v":16.67048143284935},{"$f":"'[1]MONE(M)CAPARD'!O251","v":5.9836601618276966},{"$f":"'[1]MONE(M)CAPARD'!P251","v":2.9496402877697894},null,null,{"$f":"'[1]MONE(M)CAPARD'!Q251","v":10.83},{"$f":"'[1]MONE(M)CAPARD'!R251","v":8.81},{"$f":"'[1]MONE(M)CAPARD'!S251","v":8.09},{"$f":"'[1]MONE(M)CAPARD'!T251","v":10.29},{"$f":"'[1]MONE(M)CAPARD'!U251","v":12.17},{"$f":"'[1]MONE(M)CAPARD'!V251","v":8.0399999999999991},{"$f":"'[1]MONE(M)CAPARD'!W251","v":6},null,null,{"$f":"'[1]MONE(M)CAPARD'!AS251","v":9},{"$f":"'[1]MONE(M)CAPARD'!AT251","v":"n.a."},{"$f":"'[1]MONE(M)CAPARD'!AU251","v":4.5},{"$f":"'[1]MONE(M)CAPARD'!AV251","v":4.5},{"$f":"'[1]MONE(M)CAPARD'!AW251","v":"n.a."},{"$f":"'[1]MONE(M)CAPARD'!AX251","v":4},{"$f":"'[1]MONE(M)CAPARD'!AY251","v":"n.a."},null,null,{"$f":"+'Datos_Regional (M)'!CF244","v":4.8475397809677023},{"$f":"+'Datos_Regional (M)'!CG244","v":-6.3219050633716805},{"$f":"+'Datos_Regional (M)'!CH244","v":-0.4549456724735057},{"$f":"+'Datos_Regional (M)'!CI244","v":1.7579687403344479},{"$f":"+'Datos_Regional (M)'!CJ244","v":-6.9173471035634542},{"$f":"+'Datos_Regional (M)'!CK244","v":12.957411814775433},{"$f":"+'Datos_Regional (M)'!CL244","v":1.7389908128091935},null,null,746.97530377000021,327.1658333333333,609.6583333333333,204.95634860416666,224.875,468.82500000000005,999.02322791666654,2582.4558190408338,3581.4790469575005,null,null,976.07669970333336,616.54,976.49166666666633,522.41650837999998,364.05833333333339,1050.916666666667,1352.3180196666667,4506.4998747500003,5858.8178944166675,null,null,-1924.0440557091661,-2277.3388474591666,null,null,{"$f":"'[1]EXT Comercio(M)'!C251","v":761.04618918000006},{"$f":"'[1]EXT Comercio(M)'!D251","v":367.56},{"$f":"'[1]EXT Comercio(M)'!E251","v":622.20000000000005},{"$f":"'[1]EXT Comercio(M)'!F251","v":256.12448094000001},{"$f":"'[1]EXT Comercio(M)'!G251","v":240.59999999999997},{"$f":"'[1]EXT Comercio(M)'!H251","v":538.29999999999995},{"$f":"'[1]EXT Comercio(M)'!I251","v":779.94431400000008},{"$f":"'[1]EXT Comercio(M)'!K251","v":2785.8306701200008},{"$f":"'[1]EXT Comercio(M)'!L251","v":3565.7749841199993},null,null,{"$f":"'[1]EXT Comercio(M)'!AG251","v":953.58158144999993},{"$f":"'[1]EXT Comercio(M)'!AH251","v":606.74999999999989},{"$f":"'[1]EXT Comercio(M)'!AI251","v":989.89999999999986},{"$f":"'[1]EXT Comercio(M)'!AJ251","v":529.68767453999999},{"$f":"'[1]EXT Comercio(M)'!AK251","v":359.90000000000003},{"$f":"'[1]EXT Comercio(M)'!AL251","v":1024.9000000000001},{"$f":"'[1]EXT Comercio(M)'!AM251","v":1256.9013170000003},{"$f":"'[1]EXT Comercio(M)'!AO251","v":4464.7192559899995},{"$f":"'[1]EXT Comercio(M)'!AP251","v":5721.6205729899993},null,null,{"$f":"'[1]EXT Comercio(M)'!$BS251","v":-1678.8885858699996},{"$f":"'[1]EXT Comercio(M)'!$BT251","v":-2155.8455888699996}]
[null,null,"Marzo",{"$f":"'[1]REAL IPC(M)'!AD252","v":5.8416234404887852},{"$f":"'[1]REAL IPC(M)'!AE252","v":0.88999999999998625},{"$f":"'[1]REAL IPC(M)'!AF252","v":3.9299999999999913},{"$f":"'[1]REAL IPC(M)'!AG252","v":3.9865513928914562},{"$f":"'[1]REAL IPC(M)'!AH252","v":4.4243070848204091},{"$f":"'[1]REAL IPC(M)'!AI252","v":7.4268876144608988},{"$f":"'[1]REAL IPC(M)'!AJ252","v":2.6982829108749091},null,null,{"$f":"'[1]REAL IMAE(M)'!AG252","v":3.6224374815022538},{"$f":"'[1]REAL IMAE(M)'!AH252","v":2.0967558298066247},{"$f":"'[1]REAL IMAE(M)'!AI252","v":"n.d."},{"$f":"'[1]REAL IMAE(M)'!AJ252","v":4.2344293088472904},{"$f":"'[1]REAL IMAE(M)'!AK252","v":1.3043014515652855},{"$f":"'[1]REAL IMAE(M)'!AL252","v":10.120673939844472},{"$f":"'[1]REAL IMAE(M)'!AM252","v":5.9121005161357614},null,null,{"$f":"'[1]EXT ITCER(M)'!C252","v":82.605067891832746},{"$f":"'[1]EXT ITCER(M)'!D252","v":91.612557204026018},{"$f":"'[1]EXT ITCER(M)'!E252","v":69.102381867830942},{"$f":"'[1]EXT ITCER(M)'!F252","v":79.434361100188909},{"$f":"'[1]EXT ITCER(M)'!G252","v":96.18566856407746},{"$f":"'[1]EXT ITCER(M)'!H252","v":93.309101234252793},{"$f":"'[1]EXT ITCER(M)'!I252","v":97.951146821850401},null,null,{"$f":"'[1]EXT TC(M)'!J252","v":-5.0052180236404942},{"$f":"'[1]EXT TC(M)'!K252","v":0},{"$f":"'[1]EXT TC(M)'!L252","v":-0.66045864780634},{"$f":"'[1]EXT TC(M)'!M252","v":1.9092906117310185E-5},{"$f":"'[1]EXT TC(M)'!N252","v":5.4576500843545697},{"$f":"'[1]EXT TC(M)'!O252","v":1.7674650726584078},{"$f":"'[1]EXT TC(M)'!P252","v":0},null,null,{"$f":"'[1]EXT RIN(M)'!C252","v":4155.1881406399998},{"$f":"'[1]EXT RIN(M)'!D252","v":2605.4},{"$f":"'[1]EXT RIN(M)'!E252","v":5547.3303416799999},{"$f":"'[1]EXT RIN(M)'!F252","v":2194.4289586800073},{"$f":"'[1]EXT RIN(M)'!G252","v":1339.6},{"$f":"'[1]EXT RIN(M)'!H252","v":2295.5093843614832},{"$f":"'[1]EXT RIN(M)'!I252","v":2863.5467707600001},null,null,{"$f":"'[1]EXT RIN(M)'!P252","v":64.968712507060246},{"$f":"'[1]EXT RIN(M)'!Q252","v":93.956580332443437},{"$f":"'[1]EXT RIN(M)'!R252","v":103.8636744728084},{"$f":"'[1]EXT RIN(M)'!S252","v":78.436689878235924},{"$f":"'[1]EXT RIN(M)'!T252","v":99.264380680039309},{"$f":"'[1]EXT RIN(M)'!U252","v":46.904040003770156},{"$f":"'[1]EXT RIN(M)'!V252","v":260.47024859669506},null,null,{"$f":"+'[1]MONE(M)CAPARD'!AE252","v":2.0392511843176688},{"$f":"'[1]MONE(M)CAPARD'!AF252","v":2.5572405590246943},{"$f":"'[1]MONE(M)CAPARD'!AG252","v":1.6260944866737315},{"$f":"'[1]MONE(M)CAPARD'!AH252","v":6.4176073903002244},{"$f":"'[1]MONE(M)CAPARD'!AI252","v":3.8172694779370362},{"$f":"'[1]MONE(M)CAPARD'!AJ252","v":-2.3987361746055278},{"$f":"'[1]MONE(M)CAPARD'!AK252","v":0.52748407643311013},null,null,{"$f":"'[1]MONE(M)CAPARD'!AL252","v":1.605},{"$f":"'[1]MONE(M)CAPARD'!AM252","v":3.47},{"$f":"'[1]MONE(M)CAPARD'!AN252","v":3.81},{"$f":"'[1]MONE(M)CAPARD'!AO252","v":4.37},{"$f":"'[1]MONE(M)CAPARD'!AP252","v":4.1500000000000004},{"$f":"'[1]MONE(M)CAPARD'!AQ252","v":2.2599999999999998},{"$f":"'[1]MONE(M)CAPARD'!AR252","v":3.24},null,null,{"$f":"'[1]MONE(M)CAPARD'!J252","v":13.63204388831376},{"$f":"'[1]MONE(M)CAPARD'!K252","v":7.2653384874616069},{"$f":"'[1]MONE(M)CAPARD'!L252","v":9.1888771288367277},{"$f":"'[1]MONE(M)CAPARD'!M252","v":14.332092378752881},{"$f":"'[1]MONE(M)CAPARD'!N252","v":14.855428577099016},{"$f":"'[1]MONE(M)CAPARD'!O252","v":4.4989783217814345},{"$f":"'[1]MONE(M)CAPARD'!P252","v":3.2733917197452111},null,null,{"$f":"'[1]MONE(M)CAPARD'!Q252","v":10.24},{"$f":"'[1]MONE(M)CAPARD'!R252","v":8.2200000000000006},{"$f":"'[1]MONE(M)CAPARD'!S252","v":8},{"$f":"'[1]MONE(M)CAPARD'!T252","v":10.220000000000001},{"$f":"'[1]MONE(M)CAPARD'!U252","v":10.7},{"$f":"'[1]MONE(M)CAPARD'!V252","v":8.1199999999999992},{"$f":"'[1]MONE(M)CAPARD'!W252","v":6.06},null,null,{"$f":"'[1]MONE(M)CAPARD'!AS252","v":9},{"$f":"'[1]MONE(M)CAPARD'!AT252","v":"n.a."},{"$f":"'[1]MONE(M)CAPARD'!AU252","v":4.5},{"$f":"'[1]MONE(M)CAPARD'!AV252","v":4.5},{"$f":"'[1]MONE(M)CAPARD'!AW252","v":"n.a."},{"$f":"'[1]MONE(M)CAPARD'!AX252","v":4},{"$f":"'[1]MONE(M)CAPARD'!AY252","v":"n.a."},null,null,{"$f":"+'Datos_Regional (M)'!CF245","v":1.8847691291064006},{"$f":"+'Datos_Regional (M)'!CG245","v":-5.7089838139304909},{"$f":"+'Datos_Regional (M)'!CH245","v":-1.785619035943975},{"$f":"+'Datos_Regional (M)'!CI245","v":1.9369577592874609},{"$f":"+'Datos_Regional (M)'!CJ245","v":-7.8151813763154498},{"$f":"+'Datos_Regional (M)'!CK245","v":15.459624810257754},{"$f":"+'Datos_Regional (M)'!CL245","v":2.5564165107037518},null,null,759.83754886250028,330.89916666666664,627.34166666666658,208.55448270499997,233.92500000000004,480.2,1013.698034,2640.7578649008337,3654.4558989008342,null,null,1002.8045951283334,624.51666666666654,996.35833333333323,531.81034234166657,370.82500000000005,1072.2833333333335,1367.7006346666667,4598.5982708033343,5966.298905470001,null,null,-1957.8404059024997,-2311.8430065691668,null,null,{"$f":"'[1]EXT Comercio(M)'!C252","v":926.90985303999992},{"$f":"'[1]EXT Comercio(M)'!D252","v":392.36999999999989},{"$f":"'[1]EXT Comercio(M)'!E252","v":862.49999999999989},{"$f":"'[1]EXT Comercio(M)'!F252","v":278.07999217999998},{"$f":"'[1]EXT Comercio(M)'!G252","v":348.80000000000007},{"$f":"'[1]EXT Comercio(M)'!H252","v":620.9},{"$f":"'[1]EXT Comercio(M)'!I252","v":1196.2412440000003},{"$f":"'[1]EXT Comercio(M)'!K252","v":3429.5598452199993},{"$f":"'[1]EXT Comercio(M)'!L252","v":4625.8010892199991},null,null,{"$f":"'[1]EXT Comercio(M)'!AG252","v":1161.3047372100002},{"$f":"'[1]EXT Comercio(M)'!AH252","v":707.13000000000011},{"$f":"'[1]EXT Comercio(M)'!AI252","v":1142.8000000000002},{"$f":"'[1]EXT Comercio(M)'!AJ252","v":638.30819513999995},{"$f":"'[1]EXT Comercio(M)'!AK252","v":424.4},{"$f":"'[1]EXT Comercio(M)'!AL252","v":1270},{"$f":"'[1]EXT Comercio(M)'!AM252","v":1560.0126400000001},{"$f":"'[1]EXT Comercio(M)'!AO252","v":5343.9429323500008},{"$f":"'[1]EXT Comercio(M)'!AP252","v":6903.9555723500034},null,null,{"$f":"'[1]EXT Comercio(M)'!$BS252","v":-1914.3830871300006},{"$f":"'[1]EXT Comercio(M)'!$BT252","v":-2278.1544831300007}]
[null,null,"Abril",{"$f":"'[1]REAL IPC(M)'!AD253","v":5.5560336539428992},{"$f":"'[1]REAL IPC(M)'!AE253","v":0.62949640287767905},{"$f":"'[1]REAL IPC(M)'!AF253","v":3.7504148689014145},{"$f":"'[1]REAL IPC(M)'!AG253","v":4.16467209191},{"$f":"'[1]REAL IPC(M)'!AH253","v":4.8483392870715258},{"$f":"'[1]REAL IPC(M)'!AI253","v":7.6567740302474165},{"$f":"'[1]REAL IPC(M)'!AJ253","v":2.6058631921824214},null,null,{"$f":"'[1]REAL IMAE(M)'!AG253","v":3.7854617336000014},{"$f":"'[1]REAL IMAE(M)'!AH253","v":1.8764325624567992},{"$f":"'[1]REAL IMAE(M)'!AI253","v":"n.d."},{"$f":"'[1]REAL IMAE(M)'!AJ253","v":4.6169596030331146},{"$f":"'[1]REAL IMAE(M)'!AK253","v":2.0011514638880463},{"$f":"'[1]REAL IMAE(M)'!AL253","v":10.033781491458607},{"$f":"'[1]REAL IMAE(M)'!AM253","v":6.4541334583528762},null,null,{"$f":"'[1]EXT ITCER(M)'!C253","v":79.38294418261269},{"$f":"'[1]EXT ITCER(M)'!D253","v":91.935702118505873},{"$f":"'[1]EXT ITCER(M)'!E253","v":69.135050744029016},{"$f":"'[1]EXT ITCER(M)'!F253","v":79.170079616225294},{"$f":"'[1]EXT ITCER(M)'!G253","v":96.335655531779054},{"$f":"'[1]EXT ITCER(M)'!H253","v":93.457728662994441},{"$f":"'[1]EXT ITCER(M)'!I253","v":97.809780574272224},null,null,{"$f":"'[1]EXT TC(M)'!J253","v":-9.5219163222317746},{"$f":"'[1]EXT TC(M)'!K253","v":0},{"$f":"'[1]EXT TC(M)'!L253","v":-1.0732818611348862},{"$f":"'[1]EXT TC(M)'!M253","v":1.9092906136112487E-5},{"$f":"'[1]EXT TC(M)'!N253","v":5.8877191630336512},{"$f":"'[1]EXT TC(M)'!O253","v":1.6636148452503139},{"$f":"'[1]EXT TC(M)'!P253","v":0},null,null,{"$f":"'[1]EXT RIN(M)'!C253","v":4193.8890468099999},{"$f":"'[1]EXT RIN(M)'!D253","v":2734.9},{"$f":"'[1]EXT RIN(M)'!E253","v":5601.6},{"$f":"'[1]EXT RIN(M)'!F253","v":2144.4307483213433},{"$f":"'[1]EXT RIN(M)'!G253","v":1401.4},{"$f":"'[1]EXT RIN(M)'!H253","v":2294.334554135256},{"$f":"'[1]EXT RIN(M)'!I253","v":2722.5123906899998},null,null,{"$f":"'[1]EXT RIN(M)'!P253","v":64.39192553967797},{"$f":"'[1]EXT RIN(M)'!Q253","v":94.214858381450114},{"$f":"'[1]EXT RIN(M)'!R253","v":106.05832560456916},{"$f":"'[1]EXT RIN(M)'!S253","v":78.60838862677663},{"$f":"'[1]EXT RIN(M)'!T253","v":100.79181641529063},{"$f":"'[1]EXT RIN(M)'!U253","v":46.190016049097245},{"$f":"'[1]EXT RIN(M)'!V253","v":256.23249447958756},null,null,{"$f":"+'[1]MONE(M)CAPARD'!AE253","v":2.0784850189140736},{"$f":"'[1]MONE(M)CAPARD'!AF253","v":2.5544235924933165},{"$f":"'[1]MONE(M)CAPARD'!AG253","v":1.7634484964811383},{"$f":"'[1]MONE(M)CAPARD'!AH253","v":6.0532306985294166},{"$f":"'[1]MONE(M)CAPARD'!AI253","v":5.1218623263328755},{"$f":"'[1]MONE(M)CAPARD'!AJ253","v":-2.4306636101804457},{"$f":"'[1]MONE(M)CAPARD'!AK253","v":0.66676190476189412},null,null,{"$f":"'[1]MONE(M)CAPARD'!AL253","v":1.4899999999999998},{"$f":"'[1]MONE(M)CAPARD'!AM253","v":3.2},{"$f":"'[1]MONE(M)CAPARD'!AN253","v":3.69},{"$f":"'[1]MONE(M)CAPARD'!AO253","v":4.4000000000000004},{"$f":"'[1]MONE(M)CAPARD'!AP253","v":3.69},{"$f":"'[1]MONE(M)CAPARD'!AQ253","v":2.29},{"$f":"'[1]MONE(M)CAPARD'!AR253","v":3.29},null,null,{"$f":"'[1]MONE(M)CAPARD'!J253","v":13.996325775646683},{"$f":"'[1]MONE(M)CAPARD'!K253","v":7.55295799821271},{"$f":"'[1]MONE(M)CAPARD'!L253","v":9.3200447856685997},{"$f":"'[1]MONE(M)CAPARD'!M253","v":14.213386948529417},{"$f":"'[1]MONE(M)CAPARD'!N253","v":15.03920969922739},{"$f":"'[1]MONE(M)CAPARD'!O253","v":3.3934009287015861},{"$f":"'[1]MONE(M)CAPARD'!P253","v":2.7816507936507828},null,null,{"$f":"'[1]MONE(M)CAPARD'!Q253","v":9.7799999999999994},{"$f":"'[1]MONE(M)CAPARD'!R253","v":8.23},{"$f":"'[1]MONE(M)CAPARD'!S253","v":7.9},{"$f":"'[1]MONE(M)CAPARD'!T253","v":10.17},{"$f":"'[1]MONE(M)CAPARD'!U253","v":10.55},{"$f":"'[1]MONE(M)CAPARD'!V253","v":7.51},{"$f":"'[1]MONE(M)CAPARD'!W253","v":5.46},null,null,{"$f":"'[1]MONE(M)CAPARD'!AS253","v":9},{"$f":"'[1]MONE(M)CAPARD'!AT253","v":"n.a."},{"$f":"'[1]MONE(M)CAPARD'!AU253","v":4.5},{"$f":"'[1]MONE(M)CAPARD'!AV253","v":4.5},{"$f":"'[1]MONE(M)CAPARD'!AW253","v":"n.a."},{"$f":"'[1]MONE(M)CAPARD'!AX253","v":4},{"$f":"'[1]MONE(M)CAPARD'!AY253","v":"n.a."},null,null,{"$f":"+'Datos_Regional (M)'!CF246","v":-0.70208311149574376},{"$f":"+'Datos_Regional (M)'!CG246","v":-4.9967733355476778},{"$f":"+'Datos_Regional (M)'!CH246","v":-1.5121892429780792},{"$f":"+'Datos_Regional (M)'!CI246","v":2.6701679870077211},{"$f":"+'Datos_Regional (M)'!CJ246","v":-6.6670096316224221},{"$f":"+'Datos_Regional (M)'!CK246","v":16.027784085319663},{"$f":"+'Datos_Regional (M)'!CL246","v":3.1975802509886186},null,null,764.64965827916694,334.53666666666663,633.50833333333333,212.49888553999997,238.6166666666667,490.1583333333333,1018.2844233333334,2673.9685438191668,3692.2529671525008,null,null,1026.8914441525001,637.65333333333331,1020.2749999999997,540.61201921916665,378.37500000000006,1105.4083333333331,1395.08469625,4709.2151300383339,6104.2998262883339,null,null,-2035.2465862191666,-2412.0468591358335,null,null,{"$f":"'[1]EXT Comercio(M)'!C253","v":790.69827699000007},{"$f":"'[1]EXT Comercio(M)'!D253","v":352.62000000000012},{"$f":"'[1]EXT Comercio(M)'!E253","v":706.29999999999984},{"$f":"'[1]EXT Comercio(M)'!F253","v":237.55740835999995},{"$f":"'[1]EXT Comercio(M)'!G253","v":260.89999999999998},{"$f":"'[1]EXT Comercio(M)'!H253","v":583.30000000000007},{"$f":"'[1]EXT Comercio(M)'!I253","v":944.86087599999996},{"$f":"'[1]EXT Comercio(M)'!K253","v":2931.3756853499999},{"$f":"'[1]EXT Comercio(M)'!L253","v":3876.2365613500024},null,null,{"$f":"'[1]EXT Comercio(M)'!AG253","v":1127.8692652200002},{"$f":"'[1]EXT Comercio(M)'!AH253","v":714.40999999999985},{"$f":"'[1]EXT Comercio(M)'!AI253","v":1168.1000000000004},{"$f":"'[1]EXT Comercio(M)'!AJ253","v":615.18905816999995},{"$f":"'[1]EXT Comercio(M)'!AK253","v":419.09999999999997},{"$f":"'[1]EXT Comercio(M)'!AL253","v":1382.8},{"$f":"'[1]EXT Comercio(M)'!AM253","v":1441.3890799999997},{"$f":"'[1]EXT Comercio(M)'!AO253","v":5427.4683233900032},{"$f":"'[1]EXT Comercio(M)'!AP253","v":6868.8574033900004},null,null,{"$f":"'[1]EXT Comercio(M)'!$BS253","v":-2496.0926380400006},{"$f":"'[1]EXT Comercio(M)'!$BT253","v":-2992.6208420399998}]
[null,null,"Mayo ",{"$f":"'[1]REAL IPC(M)'!AD254","v":6.2329852166785473},{"$f":"'[1]REAL IPC(M)'!AE254","v":0.13949780789159083},{"$f":"'[1]REAL IPC(M)'!AF254","v":3.507899679593423},{"$f":"'[1]REAL IPC(M)'!AG254","v":4.3561512685495423},{"$f":"'[1]REAL IPC(M)'!AH254","v":4.6758180851871396},{"$f":"'[1]REAL IPC(M)'!AI254","v":7.9008912205296742},{"$f":"'[1]REAL IPC(M)'!AJ254","v":3.1862745098039174},null,null,{"$f":"'[1]REAL IMAE(M)'!AG254","v":3.885196565104323},{"$f":"'[1]REAL IMAE(M)'!AH254","v":1.4774288830682289},{"$f":"'[1]REAL IMAE(M)'!AI254","v":"n.d."},{"$f":"'[1]REAL IMAE(M)'!AJ254","v":5.013123158902526},{"$f":"'[1]REAL IMAE(M)'!AK254","v":2.7026635856382279},{"$f":"'[1]REAL IMAE(M)'!AL254","v":9.5109525023420005},{"$f":"'[1]REAL IMAE(M)'!AM254","v":6.6213128375571255},null,null,{"$f":"'[1]EXT ITCER(M)'!C254","v":80.753933756035138},{"$f":"'[1]EXT ITCER(M)'!D254","v":92.199223802599121},{"$f":"'[1]EXT ITCER(M)'!E254","v":69.216847692483796},{"$f":"'[1]EXT ITCER(M)'!F254","v":79.086058141546246},{"$f":"'[1]EXT ITCER(M)'!G254","v":96.820950072670016},{"$f":"'[1]EXT ITCER(M)'!H254","v":93.920292821168758},{"$f":"'[1]EXT ITCER(M)'!I254","v":97.653095088134535},null,null,{"$f":"'[1]EXT TC(M)'!J254","v":-8.3093786890954302},{"$f":"'[1]EXT TC(M)'!K254","v":0},{"$f":"'[1]EXT TC(M)'!L254","v":-1.2452251202102969},{"$f":"'[1]EXT TC(M)'!M254","v":0},{"$f":"'[1]EXT TC(M)'!N254","v":5.4422540973620146},{"$f":"'[1]EXT TC(M)'!O254","v":2.0860513570878085},{"$f":"'[1]EXT TC(M)'!P254","v":0},null,null,{"$f":"'[1]EXT RIN(M)'!C254","v":4042.17194599},{"$f":"'[1]EXT RIN(M)'!D254","v":2628.3},{"$f":"'[1]EXT RIN(M)'!E254","v":5675.55},{"$f":"'[1]EXT RIN(M)'!F254","v":2146.6131234051436},{"$f":"'[1]EXT RIN(M)'!G254","v":1383.8},{"$f":"'[1]EXT RIN(M)'!H254","v":2655.5062605782509},{"$f":"'[1]EXT RIN(M)'!I254","v":2751.2950950999998},null,null,{"$f":"'[1]EXT RIN(M)'!P254","v":65.533011765943556},{"$f":"'[1]EXT RIN(M)'!Q254","v":94.034836144754223},{"$f":"'[1]EXT RIN(M)'!R254","v":106.015568928267},{"$f":"'[1]EXT RIN(M)'!S254","v":78.056593525436483},{"$f":"'[1]EXT RIN(M)'!T254","v":99.45435832261596},{"$f":"'[1]EXT RIN(M)'!U254","v":52.949797564043102},{"$f":"'[1]EXT RIN(M)'!V254","v":253.77729633410294},null,null,{"$f":"+'[1]MONE(M)CAPARD'!AE254","v":2.1340027098904608},{"$f":"'[1]MONE(M)CAPARD'!AF254","v":2.9563781094527357},{"$f":"'[1]MONE(M)CAPARD'!AG254","v":1.9535710092330609},{"$f":"'[1]MONE(M)CAPARD'!AH254","v":5.6574036697247738},{"$f":"'[1]MONE(M)CAPARD'!AI254","v":4.9327324137393616},{"$f":"'[1]MONE(M)CAPARD'!AJ254","v":-2.6421387147794491},{"$f":"'[1]MONE(M)CAPARD'!AK254","v":-0.10299287410925952},null,null,{"$f":"'[1]MONE(M)CAPARD'!AL254","v":1.4899999999999998},{"$f":"'[1]MONE(M)CAPARD'!AM254","v":3.1},{"$f":"'[1]MONE(M)CAPARD'!AN254","v":3.58},{"$f":"'[1]MONE(M)CAPARD'!AO254","v":4.33},{"$f":"'[1]MONE(M)CAPARD'!AP254","v":3.78},{"$f":"'[1]MONE(M)CAPARD'!AQ254","v":2.2400000000000002},{"$f":"'[1]MONE(M)CAPARD'!AR254","v":3.08},null,null,{"$f":"'[1]MONE(M)CAPARD'!J254","v":13.100464752012339},{"$f":"'[1]MONE(M)CAPARD'!K254","v":7.7097472636815914},{"$f":"'[1]MONE(M)CAPARD'!L254","v":9.5182110263115671},{"$f":"'[1]MONE(M)CAPARD'!M254","v":13.821752293577987},{"$f":"'[1]MONE(M)CAPARD'!N254","v":13.807239206146415},{"$f":"'[1]MONE(M)CAPARD'!O254","v":3.7248151836447789},{"$f":"'[1]MONE(M)CAPARD'!P254","v":2.1744418052256571},null,null,{"$f":"'[1]MONE(M)CAPARD'!Q254","v":9.57},{"$f":"'[1]MONE(M)CAPARD'!R254","v":7.86},{"$f":"'[1]MONE(M)CAPARD'!S254","v":7.89},{"$f":"'[1]MONE(M)CAPARD'!T254","v":9.83},{"$f":"'[1]MONE(M)CAPARD'!U254","v":9.99},{"$f":"'[1]MONE(M)CAPARD'!V254","v":7.58},{"$f":"'[1]MONE(M)CAPARD'!W254","v":5.43},null,null,{"$f":"'[1]MONE(M)CAPARD'!AS254","v":9},{"$f":"'[1]MONE(M)CAPARD'!AT254","v":"n.a."},{"$f":"'[1]MONE(M)CAPARD'!AU254","v":4.5},{"$f":"'[1]MONE(M)CAPARD'!AV254","v":4.5},{"$f":"'[1]MONE(M)CAPARD'!AW254","v":"n.a."},{"$f":"'[1]MONE(M)CAPARD'!AX254","v":4},{"$f":"'[1]MONE(M)CAPARD'!AY254","v":"n.a."},null,null,{"$f":"+'Datos_Regional (M)'!CF247","v":2.210087298394714},{"$f":"+'Datos_Regional (M)'!CG247","v":-4.5183681188196934},{"$f":"+'Datos_Regional (M)'!CH247","v":-1.9025357703262857},{"$f":"+'Datos_Regional (M)'!CI247","v":2.7376112088785653},{"$f":"+'Datos_Regional (M)'!CJ247","v":-6.4562158384815156},{"$f":"+'Datos_Regional (M)'!CK247","v":15.978112131633093},{"$f":"+'Datos_Regional (M)'!CL247","v":4.4699929453112075},null,null,771.85909534500024,337.34583333333325,645.49166666666656,215.89572839416664,244.06666666666669,499.42500000000001,1028.7927299166668,2714.0839904058334,3742.8767203225011,null,null,1045.4012230116668,644.10500000000002,1040.5416666666667,551.62420898333312,387.18333333333339,1129.5250000000001,1410.2732475833334,4798.3804319950004,6208.6536795783331,null,null,-2084.2964415891661,-2465.7769592558334,null,null,{"$f":"'[1]EXT Comercio(M)'!C254","v":846.0732789599997},{"$f":"'[1]EXT Comercio(M)'!D254","v":370.42999999999984},{"$f":"'[1]EXT Comercio(M)'!E254","v":747.89999999999986},{"$f":"'[1]EXT Comercio(M)'!F254","v":272.49314445999994},{"$f":"'[1]EXT Comercio(M)'!G254","v":272.29999999999995},{"$f":"'[1]EXT Comercio(M)'!H254","v":582.5},{"$f":"'[1]EXT Comercio(M)'!I254","v":992.26369599999998},{"$f":"'[1]EXT Comercio(M)'!K254","v":3091.6964234199986},{"$f":"'[1]EXT Comercio(M)'!L254","v":4083.9601194199986},null,null,{"$f":"'[1]EXT Comercio(M)'!AG254","v":1109.1583269599996},{"$f":"'[1]EXT Comercio(M)'!AH254","v":681.54000000000042},{"$f":"'[1]EXT Comercio(M)'!AI254","v":1130.8999999999996},{"$f":"'[1]EXT Comercio(M)'!AJ254","v":618.70470807999982},{"$f":"'[1]EXT Comercio(M)'!AK254","v":449.80000000000007},{"$f":"'[1]EXT Comercio(M)'!AL254","v":1239.0999999999999},{"$f":"'[1]EXT Comercio(M)'!AM254","v":1541.4142740000002},{"$f":"'[1]EXT Comercio(M)'!AO254","v":5229.2030350399982},{"$f":"'[1]EXT Comercio(M)'!AP254","v":6770.6173090399971},null,null,{"$f":"'[1]EXT Comercio(M)'!$BS254","v":-2137.5066116200005},{"$f":"'[1]EXT Comercio(M)'!$BT254","v":-2686.6571896200003}]
[null,null,"Junio",{"$f":"'[1]REAL IPC(M)'!AD255","v":6.3119042432543431},{"$f":"'[1]REAL IPC(M)'!AE255","v":0.55776892430277691},{"$f":"'[1]REAL IPC(M)'!AF255","v":4.0674219397623776},{"$f":"'[1]REAL IPC(M)'!AG255","v":4.2380952380952408},{"$f":"'[1]REAL IPC(M)'!AH255","v":4.6325738140417316},{"$f":"'[1]REAL IPC(M)'!AI255","v":5.4383468415516862},{"$f":"'[1]REAL IPC(M)'!AJ255","v":2.7642276422764342},null,null,{"$f":"'[1]REAL IMAE(M)'!AG255","v":3.9605869583160751},{"$f":"'[1]REAL IMAE(M)'!AH255","v":1.2255114907345606},{"$f":"'[1]REAL IMAE(M)'!AI255","v":"n.d."},{"$f":"'[1]REAL IMAE(M)'!AJ255","v":5.4185447385295866},{"$f":"'[1]REAL IMAE(M)'!AK255","v":3.4238096242083986},{"$f":"'[1]REAL IMAE(M)'!AL255","v":8.8633294384054224},{"$f":"'[1]REAL IMAE(M)'!AM255","v":6.5611912517449964},null,null,{"$f":"'[1]EXT ITCER(M)'!C255","v":81.63768798667094},{"$f":"'[1]EXT ITCER(M)'!D255","v":91.68953922230979},{"$f":"'[1]EXT ITCER(M)'!E255","v":68.892260734610574},{"$f":"'[1]EXT ITCER(M)'!F255","v":78.684006796233334},{"$f":"'[1]EXT ITCER(M)'!G255","v":97.085763635742524},{"$f":"'[1]EXT ITCER(M)'!H255","v":94.061771584070982},{"$f":"'[1]EXT ITCER(M)'!I255","v":97.480577813859327},null,null,{"$f":"'[1]EXT TC(M)'!J255","v":-7.3406377172459569},{"$f":"'[1]EXT TC(M)'!K255","v":0},{"$f":"'[1]EXT TC(M)'!L255","v":-1.4884806788092335},{"$f":"'[1]EXT TC(M)'!M255","v":-5.640690462819195E-14},{"$f":"'[1]EXT TC(M)'!N255","v":5.2552953769316444},{"$f":"'[1]EXT TC(M)'!O255","v":2.2372728487439848},{"$f":"'[1]EXT TC(M)'!P255","v":0},null,null,{"$f":"'[1]EXT RIN(M)'!C255","v":4064.9799089600001},{"$f":"'[1]EXT RIN(M)'!D255","v":2681.5},{"$f":"'[1]EXT RIN(M)'!E255","v":5847.6420291099994},{"$f":"'[1]EXT RIN(M)'!F255","v":2207.9432334304947},{"$f":"'[1]EXT RIN(M)'!G255","v":1411.5},{"$f":"'[1]EXT RIN(M)'!H255","v":2511.3163564168599},{"$f":"'[1]EXT RIN(M)'!I255","v":2529.4983001400001},null,null,{"$f":"'[1]EXT RIN(M)'!P255","v":65.890207088387427},{"$f":"'[1]EXT RIN(M)'!Q255","v":96.465127757386341},{"$f":"'[1]EXT RIN(M)'!R255","v":113.96696512368504},{"$f":"'[1]EXT RIN(M)'!S255","v":74.274145151234123},{"$f":"'[1]EXT RIN(M)'!T255","v":99.383636437644782},{"$f":"'[1]EXT RIN(M)'!U255","v":50.36689169943768},{"$f":"'[1]EXT RIN(M)'!V255","v":232.88693090531427},null,null,{"$f":"+'[1]MONE(M)CAPARD'!AE255","v":1.8230279765387911},{"$f":"'[1]MONE(M)CAPARD'!AF255","v":2.4087955625990616},{"$f":"'[1]MONE(M)CAPARD'!AG255","v":1.3765864797408409},{"$f":"'[1]MONE(M)CAPARD'!AH255","v":5.5947921425308333},{"$f":"'[1]MONE(M)CAPARD'!AI255","v":5.1621706091279851},{"$f":"'[1]MONE(M)CAPARD'!AJ255","v":-0.51057974416147744},{"$f":"'[1]MONE(M)CAPARD'!AK255","v":0.33647151898733041},null,null,{"$f":"'[1]MONE(M)CAPARD'!AL255","v":1.2749999999999999},{"$f":"'[1]MONE(M)CAPARD'!AM255","v":2.98},{"$f":"'[1]MONE(M)CAPARD'!AN255","v":3.48},{"$f":"'[1]MONE(M)CAPARD'!AO255","v":4.18},{"$f":"'[1]MONE(M)CAPARD'!AP255","v":3.8},{"$f":"'[1]MONE(M)CAPARD'!AQ255","v":2.2999999999999998},{"$f":"'[1]MONE(M)CAPARD'!AR255","v":3.11},null,null,{"$f":"'[1]MONE(M)CAPARD'!J255","v":13.119975468439309},{"$f":"'[1]MONE(M)CAPARD'!K255","v":6.8937797147385238},{"$f":"'[1]MONE(M)CAPARD'!L255","v":8.9293824013594474},{"$f":"'[1]MONE(M)CAPARD'!M255","v":14.056190041114661},{"$f":"'[1]MONE(M)CAPARD'!N255","v":17.68626687929866},{"$f":"'[1]MONE(M)CAPARD'!O255","v":5.9576552047881766},{"$f":"'[1]MONE(M)CAPARD'!P255","v":2.0296677215189756},null,null,{"$f":"'[1]MONE(M)CAPARD'!Q255","v":9.75},{"$f":"'[1]MONE(M)CAPARD'!R255","v":7.49},{"$f":"'[1]MONE(M)CAPARD'!S255","v":7.84},{"$f":"'[1]MONE(M)CAPARD'!T255","v":10.16},{"$f":"'[1]MONE(M)CAPARD'!U255","v":10.75},{"$f":"'[1]MONE(M)CAPARD'!V255","v":8.1199999999999992},{"$f":"'[1]MONE(M)CAPARD'!W255","v":4.8499999999999996},null,null,{"$f":"'[1]MONE(M)CAPARD'!AS255","v":9},{"$f":"'[1]MONE(M)CAPARD'!AT255","v":"n.a."},{"$f":"'[1]MONE(M)CAPARD'!AU255","v":4.5},{"$f":"'[1]MONE(M)CAPARD'!AV255","v":4.5},{"$f":"'[1]MONE(M)CAPARD'!AW255","v":"n.a."},{"$f":"'[1]MONE(M)CAPARD'!AX255","v":4},{"$f":"'[1]MONE(M)CAPARD'!AY255","v":"n.a."},null,null,{"$f":"+'Datos_Regional (M)'!CF248","v":3.6693041549463734},{"$f":"+'Datos_Regional (M)'!CG248","v":-3.3973026866849998},{"$f":"+'Datos_Regional (M)'!CH248","v":-3.144465354728565E-2},{"$f":"+'Datos_Regional (M)'!CI248","v":2.2532038116427344},{"$f":"+'Datos_Regional (M)'!CJ248","v":-4.7213197540997172},{"$f":"+'Datos_Regional (M)'!CK248","v":15.583381978274446},{"$f":"+'Datos_Regional (M)'!CL248","v":8.3730793533143277},null,null,775.37384546999999,342.17833333333328,656.01666666666665,219.98337833333335,253.52499999999998,508.30833333333339,1017.5262684166669,2755.3855571366671,3772.911825553334,null,null,1053.9856390450002,655.83416666666665,1055.1166666666666,556.93771797833324,392.29166666666669,1154.0083333333332,1432.2438571666669,4868.1741903566681,6300.4180475233325,null,null,-2112.7886332199996,-2527.5062219699998,null,null,{"$f":"'[1]EXT Comercio(M)'!C255","v":789.53231408000011},{"$f":"'[1]EXT Comercio(M)'!D255","v":387.99000000000024},{"$f":"'[1]EXT Comercio(M)'!E255","v":748.2000000000005},{"$f":"'[1]EXT Comercio(M)'!F255","v":265.93702912999993},{"$f":"'[1]EXT Comercio(M)'!G255","v":331.59999999999997},{"$f":"'[1]EXT Comercio(M)'!H255","v":610.59999999999991},{"$f":"'[1]EXT Comercio(M)'!I255","v":967.39383899999996},{"$f":"'[1]EXT Comercio(M)'!K255","v":3133.8593432099988},{"$f":"'[1]EXT Comercio(M)'!L255","v":4101.2531822099991},null,null,{"$f":"'[1]EXT Comercio(M)'!AG255","v":1117.5554066200002},{"$f":"'[1]EXT Comercio(M)'!AH255","v":771.75999999999931},{"$f":"'[1]EXT Comercio(M)'!AI255","v":1170.7000000000003},{"$f":"'[1]EXT Comercio(M)'!AJ255","v":600.90852878999976},{"$f":"'[1]EXT Comercio(M)'!AK255","v":462.99999999999989},{"$f":"'[1]EXT Comercio(M)'!AL255","v":1316.2999999999995},{"$f":"'[1]EXT Comercio(M)'!AM255","v":1859.5522649999994},{"$f":"'[1]EXT Comercio(M)'!AO255","v":5440.2239354099984},{"$f":"'[1]EXT Comercio(M)'!AP255","v":7299.7762004100005},null,null,{"$f":"'[1]EXT Comercio(M)'!$BS255","v":-2306.3645921999978},{"$f":"'[1]EXT Comercio(M)'!$BT255","v":-3198.5230181999978}]
[null,null,"Julio",{"$f":"'[1]REAL IPC(M)'!AD256","v":5.6820734914108915},{"$f":"'[1]REAL IPC(M)'!AE256","v":0.99009900990098487},{"$f":"'[1]REAL IPC(M)'!AF256","v":4.1199999999999948},{"$f":"'[1]REAL IPC(M)'!AG256","v":4.1607565011820382},{"$f":"'[1]REAL IPC(M)'!AH256","v":6.1978150297846364},{"$f":"'[1]REAL IPC(M)'!AI256","v":5.6727946856171743},{"$f":"'[1]REAL IPC(M)'!AJ256","v":3.3980582524271816},null,null,{"$f":"'[1]REAL IMAE(M)'!AG256","v":3.9298283954923559},{"$f":"'[1]REAL IMAE(M)'!AH256","v":1.6202248130553414},{"$f":"'[1]REAL IMAE(M)'!AI256","v":"n.d."},{"$f":"'[1]REAL IMAE(M)'!AJ256","v":5.8298948665921762},{"$f":"'[1]REAL IMAE(M)'!AK256","v":4.1275926405465482},{"$f":"'[1]REAL IMAE(M)'!AL256","v":8.3245161337443356},{"$f":"'[1]REAL IMAE(M)'!AM256","v":6.3887746710526354},null,null,{"$f":"'[1]EXT ITCER(M)'!C256","v":79.673003579809119},{"$f":"'[1]EXT ITCER(M)'!D256","v":91.690725890038664},{"$f":"'[1]EXT ITCER(M)'!E256","v":68.608414972257847},{"$f":"'[1]EXT ITCER(M)'!F256","v":78.20047243917432},{"$f":"'[1]EXT ITCER(M)'!G256","v":96.646694301849408},{"$f":"'[1]EXT ITCER(M)'!H256","v":93.936689244893813},{"$f":"'[1]EXT ITCER(M)'!I256","v":96.433062693330882},null,null,{"$f":"'[1]EXT TC(M)'!J256","v":-10.134151821142829},{"$f":"'[1]EXT TC(M)'!K256","v":0},{"$f":"'[1]EXT TC(M)'!L256","v":-2.1097229287426105},{"$f":"'[1]EXT TC(M)'!M256","v":5.6406904628191988E-14},{"$f":"'[1]EXT TC(M)'!N256","v":5.166503424941248},{"$f":"'[1]EXT TC(M)'!O256","v":2.2687667280898451},{"$f":"'[1]EXT TC(M)'!P256","v":0},null,null,{"$f":"'[1]EXT RIN(M)'!C256","v":4097.8259955900003},{"$f":"'[1]EXT RIN(M)'!D256","v":2609.1999999999998},{"$f":"'[1]EXT RIN(M)'!E256","v":5732.0343297200006},{"$f":"'[1]EXT RIN(M)'!F256","v":2129.0175306460383},{"$f":"'[1]EXT RIN(M)'!G256","v":1446.6},{"$f":"'[1]EXT RIN(M)'!H256","v":2470},{"$f":"'[1]EXT RIN(M)'!I256","v":2375.3658111100003},null,null,{"$f":"'[1]EXT RIN(M)'!P256","v":64.334413433338696},{"$f":"'[1]EXT RIN(M)'!Q256","v":92.024723797095575},{"$f":"'[1]EXT RIN(M)'!R256","v":111.75178746240313},{"$f":"'[1]EXT RIN(M)'!S256","v":74.415013576593381},{"$f":"'[1]EXT RIN(M)'!T256","v":97.610695276453441},{"$f":"'[1]EXT RIN(M)'!U256","v":48.053191739798216},{"$f":"'[1]EXT RIN(M)'!V256","v":217.24243320568584},null,null,{"$f":"+'[1]MONE(M)CAPARD'!AE256","v":2.1933015051767444},{"$f":"'[1]MONE(M)CAPARD'!AF256","v":1.9208823529411818},{"$f":"'[1]MONE(M)CAPARD'!AG256","v":1.2677679600461063},{"$f":"'[1]MONE(M)CAPARD'!AH256","v":5.3467771221062144},{"$f":"'[1]MONE(M)CAPARD'!AI256","v":2.9405174480906093},{"$f":"'[1]MONE(M)CAPARD'!AJ256","v":-0.49472968626647862},{"$f":"'[1]MONE(M)CAPARD'!AK256","v":-0.39464788732394074},null,null,{"$f":"'[1]MONE(M)CAPARD'!AL256","v":1.4550000000000001},{"$f":"'[1]MONE(M)CAPARD'!AM256","v":2.93},{"$f":"'[1]MONE(M)CAPARD'!AN256","v":3.38},{"$f":"'[1]MONE(M)CAPARD'!AO256","v":4.13},{"$f":"'[1]MONE(M)CAPARD'!AP256","v":3.22},{"$f":"'[1]MONE(M)CAPARD'!AQ256","v":2.31},{"$f":"'[1]MONE(M)CAPARD'!AR256","v":2.99},null,null,{"$f":"'[1]MONE(M)CAPARD'!J256","v":13.548112783529715},{"$f":"'[1]MONE(M)CAPARD'!K256","v":6.4163725490196128},{"$f":"'[1]MONE(M)CAPARD'!L256","v":8.8071456012293563},{"$f":"'[1]MONE(M)CAPARD'!M256","v":14.131275533363588},{"$f":"'[1]MONE(M)CAPARD'!N256","v":11.645155720035909},{"$f":"'[1]MONE(M)CAPARD'!O256","v":5.4292169819595975},{"$f":"'[1]MONE(M)CAPARD'!P256","v":2.0618779342723035},null,null,{"$f":"'[1]MONE(M)CAPARD'!Q256","v":9.5500000000000007},{"$f":"'[1]MONE(M)CAPARD'!R256","v":7.47},{"$f":"'[1]MONE(M)CAPARD'!S256","v":7.7399999999999993},{"$f":"'[1]MONE(M)CAPARD'!T256","v":10.220000000000001},{"$f":"'[1]MONE(M)CAPARD'!U256","v":10.84},{"$f":"'[1]MONE(M)CAPARD'!V256","v":6.84},{"$f":"'[1]MONE(M)CAPARD'!W256","v":5.53},null,null,{"$f":"'[1]MONE(M)CAPARD'!AS256","v":9},{"$f":"'[1]MONE(M)CAPARD'!AT256","v":"n.a."},{"$f":"'[1]MONE(M)CAPARD'!AU256","v":4.5},{"$f":"'[1]MONE(M)CAPARD'!AV256","v":4.5},{"$f":"'[1]MONE(M)CAPARD'!AW256","v":"n.a."},{"$f":"'[1]MONE(M)CAPARD'!AX256","v":4},{"$f":"'[1]MONE(M)CAPARD'!AY256","v":"n.a."},null,null,{"$f":"+'Datos_Regional (M)'!CF249","v":1.8357025025104168},{"$f":"+'Datos_Regional (M)'!CG249","v":-2.4291612075385216},{"$f":"+'Datos_Regional (M)'!CH249","v":-0.5508553785808723},{"$f":"+'Datos_Regional (M)'!CI249","v":1.0552534649739265},{"$f":"+'Datos_Regional (M)'!CJ249","v":-3.9996526908895658},{"$f":"+'Datos_Regional (M)'!CK249","v":15.699043023716651},{"$f":"+'Datos_Regional (M)'!CL249","v":8.4325793101126081},null,null,779.07588752166669,346.33666666666676,662.11666666666667,219.78872625416662,259.57500000000005,517.86666666666667,993.32786308333345,2784.7596137758337,3778.0874768591675,null,null,1074.6699955983333,659.5374999999998,1067.3,559.44792197416655,402.05833333333339,1176.1166666666666,1448.7628929166667,4939.1304175724999,6387.8933104891648,null,null,-2154.3708037966662,-2609.8058336299996,null,null,{"$f":"'[1]EXT Comercio(M)'!C256","v":784.26194329000009},{"$f":"'[1]EXT Comercio(M)'!D256","v":422.98},{"$f":"'[1]EXT Comercio(M)'!E256","v":685.50000000000023},{"$f":"'[1]EXT Comercio(M)'!F256","v":208.79585126999996},{"$f":"'[1]EXT Comercio(M)'!G256","v":296.89999999999986},{"$f":"'[1]EXT Comercio(M)'!H256","v":586.50000000000023},{"$f":"'[1]EXT Comercio(M)'!I256","v":833.52720699999998},{"$f":"'[1]EXT Comercio(M)'!K256","v":2984.9377945600063},{"$f":"'[1]EXT Comercio(M)'!L256","v":3818.4650015600018},null,null,{"$f":"'[1]EXT Comercio(M)'!AG256","v":1220.7653651299997},{"$f":"'[1]EXT Comercio(M)'!AH256","v":708.61000000000058},{"$f":"'[1]EXT Comercio(M)'!AI256","v":1240.3999999999999},{"$f":"'[1]EXT Comercio(M)'!AJ256","v":557.66770557000018},{"$f":"'[1]EXT Comercio(M)'!AK256","v":477.60000000000008},{"$f":"'[1]EXT Comercio(M)'!AL256","v":1374.5000000000005},{"$f":"'[1]EXT Comercio(M)'!AM256","v":1518.909208},{"$f":"'[1]EXT Comercio(M)'!AO256","v":5579.5430706999978},{"$f":"'[1]EXT Comercio(M)'!AP256","v":7098.4522786999951},null,null,{"$f":"'[1]EXT Comercio(M)'!$BS256","v":-2594.6052761400006},{"$f":"'[1]EXT Comercio(M)'!$BT256","v":-3279.9872771400005}]
[null,null,"Agosto",{"$f":"'[1]REAL IPC(M)'!AD257","v":5.2062429577227443},{"$f":"'[1]REAL IPC(M)'!AE257","v":1.0199999999999991},{"$f":"'[1]REAL IPC(M)'!AF257","v":4.0955631399317429},{"$f":"'[1]REAL IPC(M)'!AG257","v":4.534718941898924},{"$f":"'[1]REAL IPC(M)'!AH257","v":5.34067077813308},{"$f":"'[1]REAL IPC(M)'!AI257","v":5.0090377133053385},{"$f":"'[1]REAL IPC(M)'!AJ257","v":3.6290322580645138},null,null,{"$f":"'[1]REAL IMAE(M)'!AG257","v":3.8306130461509649},{"$f":"'[1]REAL IMAE(M)'!AH257","v":2.3454183806194311},{"$f":"'[1]REAL IMAE(M)'!AI257","v":"n.d."},{"$f":"'[1]REAL IMAE(M)'!AJ257","v":6.045703677811427},{"$f":"'[1]REAL IMAE(M)'!AK257","v":4.7651397130956195},{"$f":"'[1]REAL IMAE(M)'!AL257","v":8.0515325594048761},{"$f":"'[1]REAL IMAE(M)'!AM257","v":6.2707450339580255},null,null,{"$f":"'[1]EXT ITCER(M)'!C257","v":77.802346172249457},{"$f":"'[1]EXT ITCER(M)'!D257","v":91.972155278182456},{"$f":"'[1]EXT ITCER(M)'!E257","v":68.729467417742597},{"$f":"'[1]EXT ITCER(M)'!F257","v":77.954583334205381},{"$f":"'[1]EXT ITCER(M)'!G257","v":97.757389519535522},{"$f":"'[1]EXT ITCER(M)'!H257","v":94.107730392344791},{"$f":"'[1]EXT ITCER(M)'!I257","v":96.040162797978425},null,null,{"$f":"'[1]EXT TC(M)'!J257","v":-12.944262280549134},{"$f":"'[1]EXT TC(M)'!K257","v":0},{"$f":"'[1]EXT TC(M)'!L257","v":-3.0229108944355678},{"$f":"'[1]EXT TC(M)'!M257","v":-1.5582399130525351E-6},{"$f":"'[1]EXT TC(M)'!N257","v":5.0502461033333352},{"$f":"'[1]EXT TC(M)'!O257","v":2.4043145538472621},{"$f":"'[1]EXT TC(M)'!P257","v":0},null,null,{"$f":"'[1]EXT RIN(M)'!C257","v":4048.3305481699999},{"$f":"'[1]EXT RIN(M)'!D257","v":2567.6},{"$f":"'[1]EXT RIN(M)'!E257","v":5681.8764391300001},{"$f":"'[1]EXT RIN(M)'!F257","v":2113.5463745553056},{"$f":"'[1]EXT RIN(M)'!G257","v":1398.3},{"$f":"'[1]EXT RIN(M)'!H257","v":2407},{"$f":"'[1]EXT RIN(M)'!I257","v":2505.8207950399997},null,null,{"$f":"'[1]EXT RIN(M)'!P257","v":62.832929381481748},{"$f":"'[1]EXT RIN(M)'!Q257","v":96.141676795317366},{"$f":"'[1]EXT RIN(M)'!R257","v":113.09414412342311},{"$f":"'[1]EXT RIN(M)'!S257","v":74.802038080503522},{"$f":"'[1]EXT RIN(M)'!T257","v":100.04895865534836},{"$f":"'[1]EXT RIN(M)'!U257","v":46.111874928953505},{"$f":"'[1]EXT RIN(M)'!V257","v":222.75453230764649},null,null,{"$f":"+'[1]MONE(M)CAPARD'!AE257","v":2.8931334840085423},{"$f":"'[1]MONE(M)CAPARD'!AF257","v":1.7422292615323705},{"$f":"'[1]MONE(M)CAPARD'!AG257","v":1.2723278688524569},{"$f":"'[1]MONE(M)CAPARD'!AH257","v":4.7307546317216351},{"$f":"'[1]MONE(M)CAPARD'!AI257","v":2.905504733630317},{"$f":"'[1]MONE(M)CAPARD'!AJ257","v":3.900834403082154E-2},{"$f":"'[1]MONE(M)CAPARD'!AK257","v":-0.59735408560311076},null,null,{"$f":"'[1]MONE(M)CAPARD'!AL257","v":1.21},{"$f":"'[1]MONE(M)CAPARD'!AM257","v":2.78},{"$f":"'[1]MONE(M)CAPARD'!AN257","v":3.31},{"$f":"'[1]MONE(M)CAPARD'!AO257","v":4},{"$f":"'[1]MONE(M)CAPARD'!AP257","v":3.2},{"$f":"'[1]MONE(M)CAPARD'!AQ257","v":2.33},{"$f":"'[1]MONE(M)CAPARD'!AR257","v":3.01},null,null,{"$f":"'[1]MONE(M)CAPARD'!J257","v":13.690971787734521},{"$f":"'[1]MONE(M)CAPARD'!K257","v":6.2462878637893491},{"$f":"'[1]MONE(M)CAPARD'!L257","v":8.8134754098360641},{"$f":"'[1]MONE(M)CAPARD'!M257","v":13.493393583370981},{"$f":"'[1]MONE(M)CAPARD'!N257","v":12.738320671934371},{"$f":"'[1]MONE(M)CAPARD'!O257","v":5.4575895670440095},{"$f":"'[1]MONE(M)CAPARD'!P257","v":1.6221011673151768},null,null,{"$f":"'[1]MONE(M)CAPARD'!Q257","v":9.39},{"$f":"'[1]MONE(M)CAPARD'!R257","v":7.33},{"$f":"'[1]MONE(M)CAPARD'!S257","v":7.6300000000000008},{"$f":"'[1]MONE(M)CAPARD'!T257","v":10.19},{"$f":"'[1]MONE(M)CAPARD'!U257","v":10.93},{"$f":"'[1]MONE(M)CAPARD'!V257","v":7.12},{"$f":"'[1]MONE(M)CAPARD'!W257","v":5.31},null,null,{"$f":"'[1]MONE(M)CAPARD'!AS257","v":7.5},{"$f":"'[1]MONE(M)CAPARD'!AT257","v":"n.a."},{"$f":"'[1]MONE(M)CAPARD'!AU257","v":4.5},{"$f":"'[1]MONE(M)CAPARD'!AV257","v":4.5},{"$f":"'[1]MONE(M)CAPARD'!AW257","v":"n.a."},{"$f":"'[1]MONE(M)CAPARD'!AX257","v":4},{"$f":"'[1]MONE(M)CAPARD'!AY257","v":"n.a."},null,null,{"$f":"+'Datos_Regional (M)'!CF250","v":1.7237543757345763},{"$f":"+'Datos_Regional (M)'!CG250","v":-2.3351739595104948},{"$f":"+'Datos_Regional (M)'!CH250","v":-0.24439180601587562},{"$f":"+'Datos_Regional (M)'!CI250","v":1.7200458566081656},{"$f":"+'Datos_Regional (M)'!CJ250","v":-3.2249351086832245},{"$f":"+'Datos_Regional (M)'!CK250","v":17.855962361618573},{"$f":"+'Datos_Regional (M)'!CL250","v":10.245898363318439},null,null,779.90521572416685,352.96499999999997,667.94166666666661,222.21519018249998,263.96666666666664,527.91666666666674,992.05397658333322,2814.9104059066672,3806.9643824900013,null,null,1086.6425654224997,669.19083333333322,1088.4083333333333,564.76781490416658,411.56666666666678,1197.3333333333333,1490.2968657499998,5017.9095469933336,6508.2064127433332,null,null,-2202.999141086666,-2701.2420302533333,null,null,{"$f":"'[1]EXT Comercio(M)'!C257","v":753.57751085000018},{"$f":"'[1]EXT Comercio(M)'!D257","v":381.07000000000016},{"$f":"'[1]EXT Comercio(M)'!E257","v":625.89999999999918},{"$f":"'[1]EXT Comercio(M)'!F257","v":214.07577678999996},{"$f":"'[1]EXT Comercio(M)'!G257","v":293.69999999999993},{"$f":"'[1]EXT Comercio(M)'!H257","v":594.79999999999995},{"$f":"'[1]EXT Comercio(M)'!I257","v":986.37169399999993},{"$f":"'[1]EXT Comercio(M)'!K257","v":2863.123287639999},{"$f":"'[1]EXT Comercio(M)'!L257","v":3849.4949816400003},null,null,{"$f":"'[1]EXT Comercio(M)'!AG257","v":1126.7640232999993},{"$f":"'[1]EXT Comercio(M)'!AH257","v":676.29},{"$f":"'[1]EXT Comercio(M)'!AI257","v":1189.700000000001},{"$f":"'[1]EXT Comercio(M)'!AJ257","v":579.00368704999983},{"$f":"'[1]EXT Comercio(M)'!AK257","v":478.40000000000009},{"$f":"'[1]EXT Comercio(M)'!AL257","v":1306.0000000000011},{"$f":"'[1]EXT Comercio(M)'!AM257","v":1803.7030569999993},{"$f":"'[1]EXT Comercio(M)'!AO257","v":5356.1577103500022},{"$f":"'[1]EXT Comercio(M)'!AP257","v":7159.8607673500082},null,null,{"$f":"'[1]EXT Comercio(M)'!$BS257","v":-2493.0344227100013},{"$f":"'[1]EXT Comercio(M)'!$BT257","v":-3310.3657857100043}]
[null,null,"Setiembre",{"$f":"'[1]REAL IPC(M)'!AD258","v":5.0007323696099499},{"$f":"'[1]REAL IPC(M)'!AE258","v":1.3800000000000103},{"$f":"'[1]REAL IPC(M)'!AF258","v":3.7566363934785136},{"$f":"'[1]REAL IPC(M)'!AG258","v":5.0495516753185408},{"$f":"'[1]REAL IPC(M)'!AH258","v":5.4260702632976869},{"$f":"'[1]REAL IPC(M)'!AI258","v":5.7012577654007366},{"$f":"'[1]REAL IPC(M)'!AJ258","v":4.2173560421735603},null,null,{"$f":"'[1]REAL IMAE(M)'!AG258","v":3.7312253483536195},{"$f":"'[1]REAL IMAE(M)'!AH258","v":2.8882660292712745},{"$f":"'[1]REAL IMAE(M)'!AI258","v":"n.d."},{"$f":"'[1]REAL IMAE(M)'!AJ258","v":6.0176551563755005},{"$f":"'[1]REAL IMAE(M)'!AK258","v":5.2002274022647752},{"$f":"'[1]REAL IMAE(M)'!AL258","v":7.9963373363790184},{"$f":"'[1]REAL IMAE(M)'!AM258","v":6.3908629441624383},null,null,{"$f":"'[1]EXT ITCER(M)'!C258","v":77.637624533741089},{"$f":"'[1]EXT ITCER(M)'!D258","v":91.75261264910597},{"$f":"'[1]EXT ITCER(M)'!E258","v":69.14235815970072},{"$f":"'[1]EXT ITCER(M)'!F258","v":77.544408336681258},{"$f":"'[1]EXT ITCER(M)'!G258","v":97.803322364874106},{"$f":"'[1]EXT ITCER(M)'!H258","v":93.674767354162142},{"$f":"'[1]EXT ITCER(M)'!I258","v":96.096032840281822},null,null,{"$f":"'[1]EXT TC(M)'!J258","v":-13.243365033521973},{"$f":"'[1]EXT TC(M)'!K258","v":0},{"$f":"'[1]EXT TC(M)'!L258","v":-2.852513625382052},{"$f":"'[1]EXT TC(M)'!M258","v":-5.2923745914825832E-5},{"$f":"'[1]EXT TC(M)'!N258","v":5.0596792793452536},{"$f":"'[1]EXT TC(M)'!O258","v":2.5760000443755264},{"$f":"'[1]EXT TC(M)'!P258","v":0},null,null,{"$f":"'[1]EXT RIN(M)'!C258","v":4571.2699859100003},{"$f":"'[1]EXT RIN(M)'!D258","v":2529.6999999999998},{"$f":"'[1]EXT RIN(M)'!E258","v":5659.2212569399999},{"$f":"'[1]EXT RIN(M)'!F258","v":2069.7490058293315},{"$f":"'[1]EXT RIN(M)'!G258","v":1417.8},{"$f":"'[1]EXT RIN(M)'!H258","v":2274.3000000000002},{"$f":"'[1]EXT RIN(M)'!I258","v":2309.5924205599999},null,null,{"$f":"'[1]EXT RIN(M)'!P258","v":70.60057223441639},{"$f":"'[1]EXT RIN(M)'!Q258","v":93.770943425321306},{"$f":"'[1]EXT RIN(M)'!R258","v":111.84151851842985},{"$f":"'[1]EXT RIN(M)'!S258","v":72.5615084756638},{"$f":"'[1]EXT RIN(M)'!T258","v":100.65945022285901},{"$f":"'[1]EXT RIN(M)'!U258","v":46.982905147778261},{"$f":"'[1]EXT RIN(M)'!V258","v":206.52619924660692},null,null,{"$f":"+'[1]MONE(M)CAPARD'!AE258","v":2.3802382840459178},{"$f":"'[1]MONE(M)CAPARD'!AF258","v":1.173801538765032},{"$f":"'[1]MONE(M)CAPARD'!AG258","v":1.603139485182882},{"$f":"'[1]MONE(M)CAPARD'!AH258","v":3.9128661275831149},{"$f":"'[1]MONE(M)CAPARD'!AI258","v":3.2299899765509292},{"$f":"'[1]MONE(M)CAPARD'!AJ258","v":-0.45529994209611691},{"$f":"'[1]MONE(M)CAPARD'!AK258","v":-1.254451361867704},null,null,{"$f":"'[1]MONE(M)CAPARD'!AL258","v":1.0549999999999999},{"$f":"'[1]MONE(M)CAPARD'!AM258","v":2.57},{"$f":"'[1]MONE(M)CAPARD'!AN258","v":3.23},{"$f":"'[1]MONE(M)CAPARD'!AO258","v":3.91},{"$f":"'[1]MONE(M)CAPARD'!AP258","v":3.49},{"$f":"'[1]MONE(M)CAPARD'!AQ258","v":2.29},{"$f":"'[1]MONE(M)CAPARD'!AR258","v":2.91},null,null,{"$f":"'[1]MONE(M)CAPARD'!J258","v":13.589683908261923},{"$f":"'[1]MONE(M)CAPARD'!K258","v":5.6125468534227556},{"$f":"'[1]MONE(M)CAPARD'!L258","v":9.1689205984316544},{"$f":"'[1]MONE(M)CAPARD'!M258","v":12.93717879604673},{"$f":"'[1]MONE(M)CAPARD'!N258","v":13.035792673425755},{"$f":"'[1]MONE(M)CAPARD'!O258","v":5.0318627678054462},{"$f":"'[1]MONE(M)CAPARD'!P258","v":0.71259143968871597},null,null,{"$f":"'[1]MONE(M)CAPARD'!Q258","v":9.3699999999999992},{"$f":"'[1]MONE(M)CAPARD'!R258","v":7.07},{"$f":"'[1]MONE(M)CAPARD'!S258","v":7.51},{"$f":"'[1]MONE(M)CAPARD'!T258","v":10.130000000000001},{"$f":"'[1]MONE(M)CAPARD'!U258","v":10.49},{"$f":"'[1]MONE(M)CAPARD'!V258","v":7.03},{"$f":"'[1]MONE(M)CAPARD'!W258","v":4.96},null,null,{"$f":"'[1]MONE(M)CAPARD'!AS258","v":7.5},{"$f":"'[1]MONE(M)CAPARD'!AT258","v":"n.a."},{"$f":"'[1]MONE(M)CAPARD'!AU258","v":4.5},{"$f":"'[1]MONE(M)CAPARD'!AV258","v":4.5},{"$f":"'[1]MONE(M)CAPARD'!AW258","v":"n.a."},{"$f":"'[1]MONE(M)CAPARD'!AX258","v":4},{"$f":"'[1]MONE(M)CAPARD'!AY258","v":"n.a."},null,null,{"$f":"+'Datos_Regional (M)'!CF251","v":1.0088766775123492},{"$f":"+'Datos_Regional (M)'!CG251","v":-2.2705091896399354},{"$f":"+'Datos_Regional (M)'!CH251","v":-0.95469893754525081},{"$f":"+'Datos_Regional (M)'!CI251","v":1.6382402935991358},{"$f":"+'Datos_Regional (M)'!CJ251","v":-2.030285639580276},{"$f":"+'Datos_Regional (M)'!CK251","v":17.498784569528336},{"$f":"+'Datos_Regional (M)'!CL251","v":12.381713473520906},null,null,781.19487687083347,358.06083333333328,672.77499999999998,224.2646064208333,266.94166666666666,536.65833333333342,968.61446008333326,2839.8953166250008,3808.5097767083348,null,null,1104.1697302383332,679.36500000000001,1106.2083333333333,572.90629091249991,419.76666666666665,1222.3166666666668,1515.5205973333334,5104.7326878174999,6620.2532851508331,null,null,-2264.8373711924996,-2811.7435084425001,null,null,{"$f":"'[1]EXT Comercio(M)'!C258","v":762.84757488000014},{"$f":"'[1]EXT Comercio(M)'!D258","v":366.06999999999971},{"$f":"'[1]EXT Comercio(M)'!E258","v":607.90000000000032},{"$f":"'[1]EXT Comercio(M)'!F258","v":196.52001306999978},{"$f":"'[1]EXT Comercio(M)'!G258","v":293.60000000000002},{"$f":"'[1]EXT Comercio(M)'!H258","v":564.29999999999995},{"$f":"'[1]EXT Comercio(M)'!I258","v":1193.5782609999999},{"$f":"'[1]EXT Comercio(M)'!K258","v":2791.2375879499996},{"$f":"'[1]EXT Comercio(M)'!L258","v":3984.8158489499983},null,null,{"$f":"'[1]EXT Comercio(M)'!AG258","v":1150.482183260001},{"$f":"'[1]EXT Comercio(M)'!AH258","v":715.65000000000055},{"$f":"'[1]EXT Comercio(M)'!AI258","v":1132.200000000001},{"$f":"'[1]EXT Comercio(M)'!AJ258","v":579.21979822000048},{"$f":"'[1]EXT Comercio(M)'!AK258","v":443.69999999999993},{"$f":"'[1]EXT Comercio(M)'!AL258","v":1285.7},{"$f":"'[1]EXT Comercio(M)'!AM258","v":1821.2696860000001},{"$f":"'[1]EXT Comercio(M)'!AO258","v":5306.9519814800005},{"$f":"'[1]EXT Comercio(M)'!AP258","v":7128.2216674800002},null,null,{"$f":"'[1]EXT Comercio(M)'!$BS258","v":-2515.7143935300046},{"$f":"'[1]EXT Comercio(M)'!$BT258","v":-3143.4058185300019}]
[null,null,"Octubre",{"$f":"'[1]REAL IPC(M)'!AD259","v":5.2529068432567101},{"$f":"'[1]REAL IPC(M)'!AE259","v":2.7800000000000025},{"$f":"'[1]REAL IPC(M)'!AF259","v":4.5057282245244652},{"$f":"'[1]REAL IPC(M)'!AG259","v":5.7909604519773925},{"$f":"'[1]REAL IPC(M)'!AH259","v":7.2600680220693814},{"$f":"'[1]REAL IPC(M)'!AI259","v":6.1706155349291789},{"$f":"'[1]REAL IPC(M)'!AJ259","v":4.1262135922330092},null,null,{"$f":"'[1]REAL IMAE(M)'!AG259","v":3.6411133528837762},{"$f":"'[1]REAL IMAE(M)'!AH259","v":3.1223534451449173},{"$f":"'[1]REAL IMAE(M)'!AI259","v":"n.d."},{"$f":"'[1]REAL IMAE(M)'!AJ259","v":6.4601181545098534},{"$f":"'[1]REAL IMAE(M)'!AK259","v":5.3060033122494143},{"$f":"'[1]REAL IMAE(M)'!AL259","v":7.9271964443682643},{"$f":"'[1]REAL IMAE(M)'!AM259","v":6.7666515174468547},null,null,{"$f":"'[1]EXT ITCER(M)'!C259","v":77.367449176204303},{"$f":"'[1]EXT ITCER(M)'!D259","v":91.262119354083168},{"$f":"'[1]EXT ITCER(M)'!E259","v":68.680202986231421},{"$f":"'[1]EXT ITCER(M)'!F259","v":76.915350037957666},{"$f":"'[1]EXT ITCER(M)'!G259","v":96.319808680283259},{"$f":"'[1]EXT ITCER(M)'!H259","v":93.676568035153622},{"$f":"'[1]EXT ITCER(M)'!I259","v":96.066172179430197},null,null,{"$f":"'[1]EXT TC(M)'!J259","v":-12.542739088929109},{"$f":"'[1]EXT TC(M)'!K259","v":0},{"$f":"'[1]EXT TC(M)'!L259","v":-3.4919225761222563},{"$f":"'[1]EXT TC(M)'!M259","v":-5.2923745877221248E-5},{"$f":"'[1]EXT TC(M)'!N259","v":5.1421873007909307},{"$f":"'[1]EXT TC(M)'!O259","v":3.0300679597394597},{"$f":"'[1]EXT TC(M)'!P259","v":0},null,null,{"$f":"'[1]EXT RIN(M)'!C259","v":4617.2830663300001},{"$f":"'[1]EXT RIN(M)'!D259","v":2781.7},{"$f":"'[1]EXT RIN(M)'!E259","v":5650.5295661},{"$f":"'[1]EXT RIN(M)'!F259","v":2113.1830398339143},{"$f":"'[1]EXT RIN(M)'!G259","v":1407.8},{"$f":"'[1]EXT RIN(M)'!H259","v":2418.1999999999998},{"$f":"'[1]EXT RIN(M)'!I259","v":2317.7089598300004},null,null,{"$f":"'[1]EXT RIN(M)'!P259","v":72.460140169250934},{"$f":"'[1]EXT RIN(M)'!Q259","v":99.754924989259578},{"$f":"'[1]EXT RIN(M)'!R259","v":110.55481808540134},{"$f":"'[1]EXT RIN(M)'!S259","v":73.696931023307926},{"$f":"'[1]EXT RIN(M)'!T259","v":102.55164301180709},{"$f":"'[1]EXT RIN(M)'!U259","v":51.822104767210561},{"$f":"'[1]EXT RIN(M)'!V259","v":197.36368823027291},null,null,{"$f":"+'[1]MONE(M)CAPARD'!AE259","v":1.8974232794514396},{"$f":"'[1]MONE(M)CAPARD'!AF259","v":-0.4475578906402049},{"$f":"'[1]MONE(M)CAPARD'!AG259","v":0.86528441152312696},{"$f":"'[1]MONE(M)CAPARD'!AH259","v":2.986114819759687},{"$f":"'[1]MONE(M)CAPARD'!AI259","v":0.42709544757761403},{"$f":"'[1]MONE(M)CAPARD'!AJ259","v":-0.65989589624135037},{"$f":"'[1]MONE(M)CAPARD'!AK259","v":-1.2256410256410251},null,null,{"$f":"'[1]MONE(M)CAPARD'!AL259","v":1},{"$f":"'[1]MONE(M)CAPARD'!AM259","v":2.3199999999999998},{"$f":"'[1]MONE(M)CAPARD'!AN259","v":3.18},{"$f":"'[1]MONE(M)CAPARD'!AO259","v":3.75},{"$f":"'[1]MONE(M)CAPARD'!AP259","v":2.96},{"$f":"'[1]MONE(M)CAPARD'!AQ259","v":2.48},{"$f":"'[1]MONE(M)CAPARD'!AR259","v":2.85},null,null,{"$f":"'[1]MONE(M)CAPARD'!J259","v":12.728478061602921},{"$f":"'[1]MONE(M)CAPARD'!K259","v":3.9988324576765883},{"$f":"'[1]MONE(M)CAPARD'!L259","v":8.328990116957911},{"$f":"'[1]MONE(M)CAPARD'!M259","v":12.107877169559423},{"$f":"'[1]MONE(M)CAPARD'!N259","v":10.994241264316399},{"$f":"'[1]MONE(M)CAPARD'!O259","v":5.7825646334799856},{"$f":"'[1]MONE(M)CAPARD'!P259","v":0.45501165501165514},null,null,{"$f":"'[1]MONE(M)CAPARD'!Q259","v":9.49},{"$f":"'[1]MONE(M)CAPARD'!R259","v":6.89},{"$f":"'[1]MONE(M)CAPARD'!S259","v":7.41},{"$f":"'[1]MONE(M)CAPARD'!T259","v":10.039999999999999},{"$f":"'[1]MONE(M)CAPARD'!U259","v":10.24},{"$f":"'[1]MONE(M)CAPARD'!V259","v":6.92},{"$f":"'[1]MONE(M)CAPARD'!W259","v":4.5999999999999996},null,null,{"$f":"'[1]MONE(M)CAPARD'!AS259","v":6.5},{"$f":"'[1]MONE(M)CAPARD'!AT259","v":"n.a."},{"$f":"'[1]MONE(M)CAPARD'!AU259","v":4.5},{"$f":"'[1]MONE(M)CAPARD'!AV259","v":4.5},{"$f":"'[1]MONE(M)CAPARD'!AW259","v":"n.a."},{"$f":"'[1]MONE(M)CAPARD'!AX259","v":4.75},{"$f":"'[1]MONE(M)CAPARD'!AY259","v":"n.a."},null,null,{"$f":"+'Datos_Regional (M)'!CF252","v":2.0922076279112911},{"$f":"+'Datos_Regional (M)'!CG252","v":-1.8132764073085395},{"$f":"+'Datos_Regional (M)'!CH252","v":0.35824314205923358},{"$f":"+'Datos_Regional (M)'!CI252","v":1.8195686803927247},{"$f":"+'Datos_Regional (M)'!CJ252","v":-0.44640047530903892},{"$f":"+'Datos_Regional (M)'!CK252","v":19.511237668723513},{"$f":"+'Datos_Regional (M)'!CL252","v":12.884656380812597},null,null,779.99908956000002,361.86999999999995,675.59166666666658,223.83090798333333,271.08333333333331,546.9666666666667,976.71297933333335,2859.3416642100001,3836.0546435433339,null,null,1114.7359447783333,685.38166666666666,1112.4083333333333,579.65933369083325,427.92499999999995,1238.7166666666669,1532.2275756666666,5158.8269451358337,6691.0545208024996,null,null,-2299.4852809258336,-2854.9998772591666,null,null,{"$f":"'[1]EXT Comercio(M)'!C259","v":777.68852878999951},{"$f":"'[1]EXT Comercio(M)'!D259","v":389.25999999999976},{"$f":"'[1]EXT Comercio(M)'!E259","v":651.99999999999955},{"$f":"'[1]EXT Comercio(M)'!F259","v":176.67588916000022},{"$f":"'[1]EXT Comercio(M)'!G259","v":273.69999999999993},{"$f":"'[1]EXT Comercio(M)'!H259","v":602.90000000000009},{"$f":"'[1]EXT Comercio(M)'!I259","v":1480.6424029999998},{"$f":"'[1]EXT Comercio(M)'!K259","v":2872.2244179499976},{"$f":"'[1]EXT Comercio(M)'!L259","v":4352.8668209499956},null,null,{"$f":"'[1]EXT Comercio(M)'!AG259","v":1193.4255528899994},{"$f":"'[1]EXT Comercio(M)'!AH259","v":706.01000000000022},{"$f":"'[1]EXT Comercio(M)'!AI259","v":1198.9999999999998},{"$f":"'[1]EXT Comercio(M)'!AJ259","v":603.88041049999993},{"$f":"'[1]EXT Comercio(M)'!AK259","v":499.5},{"$f":"'[1]EXT Comercio(M)'!AL259","v":1312.0000000000002},{"$f":"'[1]EXT Comercio(M)'!AM259","v":1852.3239929999991},{"$f":"'[1]EXT Comercio(M)'!AO259","v":5513.8159633899922},{"$f":"'[1]EXT Comercio(M)'!AP259","v":7366.1399563899904},null,null,{"$f":"'[1]EXT Comercio(M)'!$BS259","v":-2641.5915454400019},{"$f":"'[1]EXT Comercio(M)'!$BT259","v":-3013.2731354400021}]
[null,null,"Noviembre",{"$f":"'[1]REAL IPC(M)'!AD260","v":6.1128648391969334},{"$f":"'[1]REAL IPC(M)'!AE260","v":1.8200000000001011},{"$f":"'[1]REAL IPC(M)'!AF260","v":5.2580748370130994},{"$f":"'[1]REAL IPC(M)'!AG260","v":6.4349459840300547},{"$f":"'[1]REAL IPC(M)'!AH260","v":8.7899199818826812},{"$f":"'[1]REAL IPC(M)'!AI260","v":5.3742976255211206},{"$f":"'[1]REAL IPC(M)'!AJ260","v":4.284559417946646},null,null,{"$f":"'[1]REAL IMAE(M)'!AG260","v":3.5004109046007161},{"$f":"'[1]REAL IMAE(M)'!AH260","v":2.8989104643213479},{"$f":"'[1]REAL IMAE(M)'!AI260","v":"n.d."},{"$f":"'[1]REAL IMAE(M)'!AJ260","v":6.8223048764189969},{"$f":"'[1]REAL IMAE(M)'!AK260","v":5.1264715142149315},{"$f":"'[1]REAL IMAE(M)'!AL260","v":7.5061122613516478},{"$f":"'[1]REAL IMAE(M)'!AM260","v":7.3597426100945178},null,null,{"$f":"'[1]EXT ITCER(M)'!C260","v":77.25166476342666},{"$f":"'[1]EXT ITCER(M)'!D260","v":90.88972759039514},{"$f":"'[1]EXT ITCER(M)'!E260","v":67.732118246210575},{"$f":"'[1]EXT ITCER(M)'!F260","v":76.302511627706636},{"$f":"'[1]EXT ITCER(M)'!G260","v":94.98190372434874},{"$f":"'[1]EXT ITCER(M)'!H260","v":93.493886524357677},{"$f":"'[1]EXT ITCER(M)'!I260","v":95.883078391972148},null,null,{"$f":"'[1]EXT TC(M)'!J260","v":-9.7774295246839316},{"$f":"'[1]EXT TC(M)'!K260","v":0},{"$f":"'[1]EXT TC(M)'!L260","v":-3.6275387640000405},{"$f":"'[1]EXT TC(M)'!M260","v":-5.292374585841896E-5},{"$f":"'[1]EXT TC(M)'!N260","v":4.9021407950735529},{"$f":"'[1]EXT TC(M)'!O260","v":3.1102897783786885},{"$f":"'[1]EXT TC(M)'!P260","v":0},null,null,{"$f":"'[1]EXT RIN(M)'!C260","v":4603.3299308200003},{"$f":"'[1]EXT RIN(M)'!D260","v":2908.8},{"$f":"'[1]EXT RIN(M)'!E260","v":5594.9317196000002},{"$f":"'[1]EXT RIN(M)'!F260","v":2270.1680266072053},{"$f":"'[1]EXT RIN(M)'!G260","v":1420.2},{"$f":"'[1]EXT RIN(M)'!H260","v":2656.1},{"$f":"'[1]EXT RIN(M)'!I260","v":2425.1758079899996},null,null,{"$f":"'[1]EXT RIN(M)'!P260","v":69.305309974725546},{"$f":"'[1]EXT RIN(M)'!Q260","v":107.12770470937633},{"$f":"'[1]EXT RIN(M)'!R260","v":108.18881507629557},{"$f":"'[1]EXT RIN(M)'!S260","v":75.951719553374488},{"$f":"'[1]EXT RIN(M)'!T260","v":101.3525460505694},{"$f":"'[1]EXT RIN(M)'!U260","v":53.542451708130592},{"$f":"'[1]EXT RIN(M)'!V260","v":204.47800854691752},null,null,{"$f":"+'[1]MONE(M)CAPARD'!AE260","v":0.8360297897407899},{"$f":"'[1]MONE(M)CAPARD'!AF260","v":0.26517383618139706},{"$f":"'[1]MONE(M)CAPARD'!AG260","v":0.13483541591147757},{"$f":"'[1]MONE(M)CAPARD'!AH260","v":2.1844836716681435},{"$f":"'[1]MONE(M)CAPARD'!AI260","v":8.0900831013412278E-2},{"$f":"'[1]MONE(M)CAPARD'!AJ260","v":0.74562999913992911},{"$f":"'[1]MONE(M)CAPARD'!AK260","v":-1.5290465116279077},null,null,{"$f":"'[1]MONE(M)CAPARD'!AL260","v":1},{"$f":"'[1]MONE(M)CAPARD'!AM260","v":2.09},{"$f":"'[1]MONE(M)CAPARD'!AN260","v":3.11},{"$f":"'[1]MONE(M)CAPARD'!AO260","v":3.69},{"$f":"'[1]MONE(M)CAPARD'!AP260","v":3.4},{"$f":"'[1]MONE(M)CAPARD'!AQ260","v":2.99},{"$f":"'[1]MONE(M)CAPARD'!AR260","v":2.69},null,null,{"$f":"'[1]MONE(M)CAPARD'!J260","v":12.125895554984664},{"$f":"'[1]MONE(M)CAPARD'!K260","v":5.0186603810645183},{"$f":"'[1]MONE(M)CAPARD'!L260","v":7.5546937138077643},{"$f":"'[1]MONE(M)CAPARD'!M260","v":11.83357016769639},{"$f":"'[1]MONE(M)CAPARD'!N260","v":7.7178671532181182},{"$f":"'[1]MONE(M)CAPARD'!O260","v":7.3411662509675706},{"$f":"'[1]MONE(M)CAPARD'!P260","v":1.0120775193798439},null,null,{"$f":"'[1]MONE(M)CAPARD'!Q260","v":9.4499999999999993},{"$f":"'[1]MONE(M)CAPARD'!R260","v":6.93},{"$f":"'[1]MONE(M)CAPARD'!S260","v":7.2900000000000009},{"$f":"'[1]MONE(M)CAPARD'!T260","v":9.98},{"$f":"'[1]MONE(M)CAPARD'!U260","v":9.9499999999999993},{"$f":"'[1]MONE(M)CAPARD'!V260","v":7.03},{"$f":"'[1]MONE(M)CAPARD'!W260","v":5.34},null,null,{"$f":"'[1]MONE(M)CAPARD'!AS260","v":6.5},{"$f":"'[1]MONE(M)CAPARD'!AT260","v":"n.a."},{"$f":"'[1]MONE(M)CAPARD'!AU260","v":4.5},{"$f":"'[1]MONE(M)CAPARD'!AV260","v":4.5},{"$f":"'[1]MONE(M)CAPARD'!AW260","v":"n.a."},{"$f":"'[1]MONE(M)CAPARD'!AX260","v":5},{"$f":"'[1]MONE(M)CAPARD'!AY260","v":"n.a."},null,null,{"$f":"+'Datos_Regional (M)'!CF253","v":4.3916362669841558},{"$f":"+'Datos_Regional (M)'!CG253","v":-0.87463135237064726},{"$f":"+'Datos_Regional (M)'!CH253","v":1.5030495807406563},{"$f":"+'Datos_Regional (M)'!CI253","v":2.2584513919664317},{"$f":"+'Datos_Regional (M)'!CJ253","v":1.1142770907059285},{"$f":"+'Datos_Regional (M)'!CK253","v":19.991569162932365},{"$f":"+'Datos_Regional (M)'!CL253","v":14.017632302613414},null,null,783.31214392583354,368.31666666666666,684.33333333333337,227.43964567916666,278.04166666666657,559.04166666666663,998.8660157500002,2900.4851229383335,3899.3511386883342,null,null,1118.1438110149998,689.24750000000006,1137.2,588.36439773500001,436.38333333333338,1259.2583333333334,1579.4352070833331,5228.5973754166671,6808.0325825,null,null,-2328.1122524783332,-2908.6814438116667,null,null,{"$f":"'[1]EXT Comercio(M)'!C260","v":791.52496359000088},{"$f":"'[1]EXT Comercio(M)'!D260","v":360.04000000000042},{"$f":"'[1]EXT Comercio(M)'!E260","v":642.70000000000027},{"$f":"'[1]EXT Comercio(M)'!F260","v":206.39183412000011},{"$f":"'[1]EXT Comercio(M)'!G260","v":292.89999999999992},{"$f":"'[1]EXT Comercio(M)'!H260","v":592.29999999999973},{"$f":"'[1]EXT Comercio(M)'!I260","v":1253.5732519999999},{"$f":"'[1]EXT Comercio(M)'!K260","v":2885.8567977100029},{"$f":"'[1]EXT Comercio(M)'!L260","v":4139.4300497100048},null,null,{"$f":"'[1]EXT Comercio(M)'!AG260","v":1146.0257207499999},{"$f":"'[1]EXT Comercio(M)'!AH260","v":732.39999999999964},{"$f":"'[1]EXT Comercio(M)'!AI260","v":1270.3000000000002},{"$f":"'[1]EXT Comercio(M)'!AJ260","v":654.43728729000031},{"$f":"'[1]EXT Comercio(M)'!AK260","v":486.7999999999999},{"$f":"'[1]EXT Comercio(M)'!AL260","v":1367.2000000000003},{"$f":"'[1]EXT Comercio(M)'!AM260","v":1796.3982360000009},{"$f":"'[1]EXT Comercio(M)'!AO260","v":5657.1630080400137},{"$f":"'[1]EXT Comercio(M)'!AP260","v":7453.5612440400146},null,null,{"$f":"'[1]EXT Comercio(M)'!$BS260","v":-2771.3062103299962},{"$f":"'[1]EXT Comercio(M)'!$BT260","v":-3314.1311943299952}]
[null,null,"Diciembre ",{"$f":"'[1]REAL IPC(M)'!AD261","v":5.8243157590903811},{"$f":"'[1]REAL IPC(M)'!AE261","v":2.1299999999999955},{"$f":"'[1]REAL IPC(M)'!AF261","v":5.3899999999999988},{"$f":"'[1]REAL IPC(M)'!AG261","v":6.4849624060150299},{"$f":"'[1]REAL IPC(M)'!AH261","v":9.2303838460606329},{"$f":"'[1]REAL IPC(M)'!AI261","v":6.2383050642844289},{"$f":"'[1]REAL IPC(M)'!AJ261","v":4.9273021001615538},null,null,{"$f":"'[1]REAL IMAE(M)'!AG261","v":3.3494331206733445},{"$f":"'[1]REAL IMAE(M)'!AH261","v":2.8632419049169089},{"$f":"'[1]REAL IMAE(M)'!AI261","v":"n.d."},{"$f":"'[1]REAL IMAE(M)'!AJ261","v":8.1259130111711499},{"$f":"'[1]REAL IMAE(M)'!AK261","v":4.9094156971836469},{"$f":"'[1]REAL IMAE(M)'!AL261","v":6.7398294809701706},{"$f":"'[1]REAL IMAE(M)'!AM261","v":8.1205567237408633},null,null,{"$f":"'[1]EXT ITCER(M)'!C261","v":75.864239745978367},{"$f":"'[1]EXT ITCER(M)'!D261","v":91.143977997269758},{"$f":"'[1]EXT ITCER(M)'!E261","v":67.524558984740139},{"$f":"'[1]EXT ITCER(M)'!F261","v":76.433632976006351},{"$f":"'[1]EXT ITCER(M)'!G261","v":94.797579100253742},{"$f":"'[1]EXT ITCER(M)'!H261","v":93.037573121297299},{"$f":"'[1]EXT ITCER(M)'!I261","v":95.382389255187888},null,null,{"$f":"'[1]EXT TC(M)'!J261","v":-10.933325383047105},{"$f":"'[1]EXT TC(M)'!K261","v":0},{"$f":"'[1]EXT TC(M)'!L261","v":-4.2593998742885582},{"$f":"'[1]EXT TC(M)'!M261","v":-5.292374585841896E-5},{"$f":"'[1]EXT TC(M)'!N261","v":4.9010766278558293},{"$f":"'[1]EXT TC(M)'!O261","v":3.3810388063009968},{"$f":"'[1]EXT TC(M)'!P261","v":0},null,null,{"$f":"'[1]EXT RIN(M)'!C261","v":4627.2341165400003},{"$f":"'[1]EXT RIN(M)'!D261","v":2880.7},{"$f":"'[1]EXT RIN(M)'!E261","v":5953.8343435200004},{"$f":"'[1]EXT RIN(M)'!F261","v":2719.3488686918827},{"$f":"'[1]EXT RIN(M)'!G261","v":1631.6},{"$f":"'[1]EXT RIN(M)'!H261","v":3342.7},{"$f":"'[1]EXT RIN(M)'!I261","v":2546.6231461599996},null,null,{"$f":"'[1]EXT RIN(M)'!P261","v":68.896302701952195},{"$f":"'[1]EXT RIN(M)'!Q261","v":106.78015231749293},{"$f":"'[1]EXT RIN(M)'!R261","v":106.21055299615728},{"$f":"'[1]EXT RIN(M)'!S261","v":80.728690351560502},{"$f":"'[1]EXT RIN(M)'!T261","v":104.0477837213144},{"$f":"'[1]EXT RIN(M)'!U261","v":59.637861692518257},{"$f":"'[1]EXT RIN(M)'!V261","v":215.98626907143822},null,null,{"$f":"+'[1]MONE(M)CAPARD'!AE261","v":2.0559398143074943},{"$f":"'[1]MONE(M)CAPARD'!AF261","v":-0.32311759522177169},{"$f":"'[1]MONE(M)CAPARD'!AG261","v":-4.7442831388176232E-2},{"$f":"'[1]MONE(M)CAPARD'!AH261","v":2.1177052074139526},{"$f":"'[1]MONE(M)CAPARD'!AI261","v":-0.56377088855290269},{"$f":"'[1]MONE(M)CAPARD'!AJ261","v":-0.12077100082384751},{"$f":"'[1]MONE(M)CAPARD'!AK261","v":-2.1036489607390325},null,null,{"$f":"'[1]MONE(M)CAPARD'!AL261","v":1},{"$f":"'[1]MONE(M)CAPARD'!AM261","v":1.8},{"$f":"'[1]MONE(M)CAPARD'!AN261","v":3.08},{"$f":"'[1]MONE(M)CAPARD'!AO261","v":3.72},{"$f":"'[1]MONE(M)CAPARD'!AP261","v":3.29},{"$f":"'[1]MONE(M)CAPARD'!AQ261","v":2.06},{"$f":"'[1]MONE(M)CAPARD'!AR261","v":2.72},null,null,{"$f":"'[1]MONE(M)CAPARD'!J261","v":12.422177404705208},{"$f":"'[1]MONE(M)CAPARD'!K261","v":4.3669832566337066},{"$f":"'[1]MONE(M)CAPARD'!L261","v":7.4580130942214637},{"$f":"'[1]MONE(M)CAPARD'!M261","v":11.715304501323928},{"$f":"'[1]MONE(M)CAPARD'!N261","v":5.7938477778347552},{"$f":"'[1]MONE(M)CAPARD'!O261","v":6.948242379477847},{"$f":"'[1]MONE(M)CAPARD'!P261","v":0.70782140107774927},null,null,{"$f":"'[1]MONE(M)CAPARD'!Q261","v":9.5399999999999991},{"$f":"'[1]MONE(M)CAPARD'!R261","v":6.59},{"$f":"'[1]MONE(M)CAPARD'!S261","v":7.12},{"$f":"'[1]MONE(M)CAPARD'!T261","v":9.8000000000000007},{"$f":"'[1]MONE(M)CAPARD'!U261","v":9.77},{"$f":"'[1]MONE(M)CAPARD'!V261","v":7.36},{"$f":"'[1]MONE(M)CAPARD'!W261","v":5.67},null,null,{"$f":"'[1]MONE(M)CAPARD'!AS261","v":6.5},{"$f":"'[1]MONE(M)CAPARD'!AT261","v":"n.a."},{"$f":"'[1]MONE(M)CAPARD'!AU261","v":4.5},{"$f":"'[1]MONE(M)CAPARD'!AV261","v":4.5},{"$f":"'[1]MONE(M)CAPARD'!AW261","v":"n.a."},{"$f":"'[1]MONE(M)CAPARD'!AX261","v":5},{"$f":"'[1]MONE(M)CAPARD'!AY261","v":"n.a."},null,null,{"$f":"+'Datos_Regional (M)'!CF254","v":4.8732915685316902},{"$f":"+'Datos_Regional (M)'!CG254","v":-0.57798674325102439},{"$f":"+'Datos_Regional (M)'!CH254","v":2.3312663598876737},{"$f":"+'Datos_Regional (M)'!CI254","v":2.6918617399883882},{"$f":"+'Datos_Regional (M)'!CJ254","v":5.6515140688908838},{"$f":"+'Datos_Regional (M)'!CK254","v":20.403388847884152},{"$f":"+'Datos_Regional (M)'!CL254","v":14.799033755551871},null,null,787.34133073333339,374.93666666666667,705.46666666666658,234.90092942249998,286.2833333333333,567.89166666666677,1017.9884786666667,2956.8205934891662,3974.8090721558328,null,null,1130.7968822041666,701.34749999999997,1153.0250000000003,593.9732953058334,441.18333333333334,1267.491666666667,1613.8191036666667,5287.8176775100001,6901.6367811766659,null,null,-2330.9970840208334,-2926.8277090208335,null,null,{"$f":"'[1]EXT Comercio(M)'!C261","v":739.52376270999957},{"$f":"'[1]EXT Comercio(M)'!D261","v":378.89999999999964},{"$f":"'[1]EXT Comercio(M)'!E261","v":893.29999999999973},{"$f":"'[1]EXT Comercio(M)'!F261","v":288.98799155999995},{"$f":"'[1]EXT Comercio(M)'!G261","v":299.2000000000001},{"$f":"'[1]EXT Comercio(M)'!H261","v":545.49999999999955},{"$f":"'[1]EXT Comercio(M)'!I261","v":930.04278399999987},{"$f":"'[1]EXT Comercio(M)'!K261","v":3145.4117542699896},{"$f":"'[1]EXT Comercio(M)'!L261","v":4075.4545382699944},null,null,{"$f":"'[1]EXT Comercio(M)'!AG261","v":1207.9568239500004},{"$f":"'[1]EXT Comercio(M)'!AH261","v":757.22999999999956},{"$f":"'[1]EXT Comercio(M)'!AI261","v":1277.9999999999995},{"$f":"'[1]EXT Comercio(M)'!AJ261","v":642.53219153000009},{"$f":"'[1]EXT Comercio(M)'!AK261","v":465.19999999999993},{"$f":"'[1]EXT Comercio(M)'!AL261","v":1324},{"$f":"'[1]EXT Comercio(M)'!AM261","v":1664.6781430000001},{"$f":"'[1]EXT Comercio(M)'!AO261","v":5674.9190154799944},{"$f":"'[1]EXT Comercio(M)'!AP261","v":7339.5971584799845},null,null,{"$f":"'[1]EXT Comercio(M)'!$BS261","v":-2529.5072612099975},{"$f":"'[1]EXT Comercio(M)'!$BT261","v":-3264.1426202099974}]
[null,2011,"Enero",{"$f":"'[1]REAL IPC(M)'!AD262","v":4.8352713438787873},{"$f":"'[1]REAL IPC(M)'!AE262","v":2.3197929111907589},{"$f":"'[1]REAL IPC(M)'!AF262","v":4.9006346894183688},{"$f":"'[1]REAL IPC(M)'!AG262","v":6.355140186915885},{"$f":"'[1]REAL IPC(M)'!AH262","v":8.0194207368431236},{"$f":"'[1]REAL IPC(M)'!AI262","v":6.1657923590217187},{"$f":"'[1]REAL IPC(M)'!AJ262","v":4.8076923076923102},null,null,{"$f":"'[1]REAL IMAE(M)'!AG262","v":3.2870128258503959},{"$f":"'[1]REAL IMAE(M)'!AH262","v":3.1366121817529722},{"$f":"'[1]REAL IMAE(M)'!AI262","v":"n.d."},{"$f":"'[1]REAL IMAE(M)'!AJ262","v":8.4750173880924642},{"$f":"'[1]REAL IMAE(M)'!AK262","v":4.9325145471107019},{"$f":"'[1]REAL IMAE(M)'!AL262","v":5.7694987123472847},{"$f":"'[1]REAL IMAE(M)'!AM262","v":6.6078636567498972},null,null,{"$f":"'[1]EXT ITCER(M)'!C262","v":75.826143003296266},{"$f":"'[1]EXT ITCER(M)'!D262","v":91.007815160268038},{"$f":"'[1]EXT ITCER(M)'!E262","v":67.125298719870457},{"$f":"'[1]EXT ITCER(M)'!F262","v":76.460279946905473},{"$f":"'[1]EXT ITCER(M)'!G262","v":96.090275525546915},{"$f":"'[1]EXT ITCER(M)'!H262","v":92.670941081593497},{"$f":"'[1]EXT ITCER(M)'!I262","v":95.177290562906862},null,null,{"$f":"'[1]EXT TC(M)'!J262","v":-10.228630679775661},{"$f":"'[1]EXT TC(M)'!K262","v":0},{"$f":"'[1]EXT TC(M)'!L262","v":-4.982330580214982},{"$f":"'[1]EXT TC(M)'!M262","v":-5.2923745877221248E-5},{"$f":"'[1]EXT TC(M)'!N262","v":4.9780057250899921},{"$f":"'[1]EXT TC(M)'!O262","v":3.7011908058709526},{"$f":"'[1]EXT TC(M)'!P262","v":0},null,null,{"$f":"'[1]EXT RIN(M)'!C262","v":4633.1754411700003},{"$f":"'[1]EXT RIN(M)'!D262","v":2768.1},{"$f":"'[1]EXT RIN(M)'!E262","v":5910.0665015100003},{"$f":"'[1]EXT RIN(M)'!F262","v":2802.6250040996561},{"$f":"'[1]EXT RIN(M)'!G262","v":1510.4},{"$f":"'[1]EXT RIN(M)'!H262","v":2705.3},{"$f":"'[1]EXT RIN(M)'!I262","v":2922.56265231},null,null,{"$f":"'[1]EXT RIN(M)'!P262","v":67.202666594712284},{"$f":"'[1]EXT RIN(M)'!Q262","v":103.97596018405484},{"$f":"'[1]EXT RIN(M)'!R262","v":102.67929698738673},{"$f":"'[1]EXT RIN(M)'!S262","v":80.71669010293742},{"$f":"'[1]EXT RIN(M)'!T262","v":102.67921119674396},{"$f":"'[1]EXT RIN(M)'!U262","v":53.838460701807634},{"$f":"'[1]EXT RIN(M)'!V262","v":247.13696553377241},null,null,{"$f":"+'[1]MONE(M)CAPARD'!AE262","v":2.7802939018113206},{"$f":"'[1]MONE(M)CAPARD'!AF262","v":-0.60574097499270052},{"$f":"'[1]MONE(M)CAPARD'!AG262","v":0.4283723467566013},{"$f":"'[1]MONE(M)CAPARD'!AH262","v":2.2235500878734658},{"$f":"'[1]MONE(M)CAPARD'!AI262","v":0.10963117536113445},{"$f":"'[1]MONE(M)CAPARD'!AJ262","v":-9.964825455638314E-2},{"$f":"'[1]MONE(M)CAPARD'!AK262","v":-2.0491743119266075},null,null,{"$f":"'[1]MONE(M)CAPARD'!AL262","v":1.0349999999999999},{"$f":"'[1]MONE(M)CAPARD'!AM262","v":1.7},{"$f":"'[1]MONE(M)CAPARD'!AN262","v":3.03},{"$f":"'[1]MONE(M)CAPARD'!AO262","v":3.69},{"$f":"'[1]MONE(M)CAPARD'!AP262","v":3.82},{"$f":"'[1]MONE(M)CAPARD'!AQ262","v":2.1},{"$f":"'[1]MONE(M)CAPARD'!AR262","v":2.66},null,null,{"$f":"'[1]MONE(M)CAPARD'!J262","v":13.301562038581428},{"$f":"'[1]MONE(M)CAPARD'!K262","v":4.1733930135253496},{"$f":"'[1]MONE(M)CAPARD'!L262","v":7.987907161277529},{"$f":"'[1]MONE(M)CAPARD'!M262","v":11.861072056239019},{"$f":"'[1]MONE(M)CAPARD'!N262","v":8.0398766893009874},{"$f":"'[1]MONE(M)CAPARD'!O262","v":6.5974241658670012},{"$f":"'[1]MONE(M)CAPARD'!P262","v":0.12623853211008976},null,null,{"$f":"'[1]MONE(M)CAPARD'!Q262","v":9.59},{"$f":"'[1]MONE(M)CAPARD'!R262","v":6.59},{"$f":"'[1]MONE(M)CAPARD'!S262","v":7.04},{"$f":"'[1]MONE(M)CAPARD'!T262","v":9.74},{"$f":"'[1]MONE(M)CAPARD'!U262","v":9.2899999999999991},{"$f":"'[1]MONE(M)CAPARD'!V262","v":6.61},{"$f":"'[1]MONE(M)CAPARD'!W262","v":4.9400000000000004},null,null,{"$f":"'[1]MONE(M)CAPARD'!AS262","v":6.5},{"$f":"'[1]MONE(M)CAPARD'!AT262","v":"n.a."},{"$f":"'[1]MONE(M)CAPARD'!AU262","v":4.5},{"$f":"'[1]MONE(M)CAPARD'!AV262","v":4.5},{"$f":"'[1]MONE(M)CAPARD'!AW262","v":"n.a."},{"$f":"'[1]MONE(M)CAPARD'!AX262","v":5},{"$f":"'[1]MONE(M)CAPARD'!AY262","v":"n.a."},null,null,{"$f":"+'Datos_Regional (M)'!CF255","v":4.7256729771370409},{"$f":"+'Datos_Regional (M)'!CG255","v":-0.49399788482745732},{"$f":"+'Datos_Regional (M)'!CH255","v":2.2014088185220215},{"$f":"+'Datos_Regional (M)'!CI255","v":4.4391401626546978},{"$f":"+'Datos_Regional (M)'!CJ255","v":6.4565561600332888},{"$f":"+'Datos_Regional (M)'!CK255","v":19.788831083214141},{"$f":"+'Datos_Regional (M)'!CL255","v":15.243579209077751},null,null,785.92406170249944,381.49499999999989,713.30000000000007,245.53436185249998,293.07410225333331,576.44999999999993,1035.3383879166665,2995.7775258083325,4031.1159137249983,null,null,1143.0881957225001,705.57,1175.325,605.0369592466667,454.17499999999995,1279.8916666666669,1659.4215199166665,5363.086821635834,7022.5083415524996,null,null,-2367.309295827501,-2991.3924278275008,null,null,{"$f":"'[1]EXT Comercio(M)'!C262","v":707.40454406999424},{"$f":"'[1]EXT Comercio(M)'!D262","v":408.65},{"$f":"'[1]EXT Comercio(M)'!E262","v":765.2},{"$f":"'[1]EXT Comercio(M)'!F262","v":344.77293119000001},{"$f":"'[1]EXT Comercio(M)'!G262","v":312.68922703999999},{"$f":"'[1]EXT Comercio(M)'!H262","v":495.5},{"$f":"'[1]EXT Comercio(M)'!I262","v":865.62108499999999},{"$f":"'[1]EXT Comercio(M)'!K262","v":3034.2167022999943},{"$f":"'[1]EXT Comercio(M)'!L262","v":3899.837787299994},null,null,{"$f":"'[1]EXT Comercio(M)'!AG262","v":1202.1693619300031},{"$f":"'[1]EXT Comercio(M)'!AH262","v":689.06},{"$f":"'[1]EXT Comercio(M)'!AI262","v":1191.9000000000001},{"$f":"'[1]EXT Comercio(M)'!AJ262","v":640.90426608000007},{"$f":"'[1]EXT Comercio(M)'!AK262","v":482.7},{"$f":"'[1]EXT Comercio(M)'!AL262","v":1156.2},{"$f":"'[1]EXT Comercio(M)'!AM262","v":1796.5063399999995},{"$f":"'[1]EXT Comercio(M)'!AO262","v":5362.9336280100033},{"$f":"'[1]EXT Comercio(M)'!AP262","v":7159.4399680100032},null,null,{"$f":"'[1]EXT Comercio(M)'!$BS262","v":-2328.716925710009},{"$f":"'[1]EXT Comercio(M)'!$BT262","v":-3259.6021807100087}]
[null,null,"Febrero",{"$f":"'[1]REAL IPC(M)'!AD263","v":4.5743345779129809},{"$f":"'[1]REAL IPC(M)'!AE263","v":2.3764542109973159},{"$f":"'[1]REAL IPC(M)'!AF263","v":5.2315342380607035},{"$f":"'[1]REAL IPC(M)'!AG263","v":6.3573085846867698},{"$f":"'[1]REAL IPC(M)'!AH263","v":7.2231863180537674},{"$f":"'[1]REAL IPC(M)'!AI263","v":7.2920532187053659},{"$f":"'[1]REAL IPC(M)'!AJ263","v":4.9560351718625135},null,null,{"$f":"'[1]REAL IMAE(M)'!AG263","v":3.1805046948937128},{"$f":"'[1]REAL IMAE(M)'!AH263","v":3.2402646737786389},{"$f":"'[1]REAL IMAE(M)'!AI263","v":"n.d."},{"$f":"'[1]REAL IMAE(M)'!AJ263","v":7.1452445533737512},{"$f":"'[1]REAL IMAE(M)'!AK263","v":5.3277235425902427},{"$f":"'[1]REAL IMAE(M)'!AL263","v":4.8297645362645927},{"$f":"'[1]REAL IMAE(M)'!AM263","v":7.2323772725021023},null,null,{"$f":"'[1]EXT ITCER(M)'!C263","v":75.163318982631964},{"$f":"'[1]EXT ITCER(M)'!D263","v":91.287836010385433},{"$f":"'[1]EXT ITCER(M)'!E263","v":65.717825518729668},{"$f":"'[1]EXT ITCER(M)'!F263","v":76.300947225039621},{"$f":"'[1]EXT ITCER(M)'!G263","v":96.339737743804591},{"$f":"'[1]EXT ITCER(M)'!H263","v":92.46655539940646},{"$f":"'[1]EXT ITCER(M)'!I263","v":95.282415109250792},null,null,{"$f":"'[1]EXT TC(M)'!J263","v":-9.3760659502612889},{"$f":"'[1]EXT TC(M)'!K263","v":0},{"$f":"'[1]EXT TC(M)'!L263","v":-4.2089590281074303},{"$f":"'[1]EXT TC(M)'!M263","v":-6.7190024562496533E-10},{"$f":"'[1]EXT TC(M)'!N263","v":4.8738887719424291},{"$f":"'[1]EXT TC(M)'!O263","v":3.9666224580017708},{"$f":"'[1]EXT TC(M)'!P263","v":0},null,null,{"$f":"'[1]EXT RIN(M)'!C263","v":4427.5760043199998},{"$f":"'[1]EXT RIN(M)'!D263","v":3376.2},{"$f":"'[1]EXT RIN(M)'!E263","v":6042.4738115600003},{"$f":"'[1]EXT RIN(M)'!F263","v":2912.4082053079055},{"$f":"'[1]EXT RIN(M)'!G263","v":1492.7},{"$f":"'[1]EXT RIN(M)'!H263","v":2635},{"$f":"'[1]EXT RIN(M)'!I263","v":2508.7846144300001},null,null,{"$f":"'[1]EXT RIN(M)'!P263","v":64.20024938705555},{"$f":"'[1]EXT RIN(M)'!Q263","v":128.11775206129857},{"$f":"'[1]EXT RIN(M)'!R263","v":105.35357857464851},{"$f":"'[1]EXT RIN(M)'!S263","v":80.072655322949359},{"$f":"'[1]EXT RIN(M)'!T263","v":99.43368460976005},{"$f":"'[1]EXT RIN(M)'!U263","v":52.814734426019925},{"$f":"'[1]EXT RIN(M)'!V263","v":216.14955556797489},null,null,{"$f":"+'[1]MONE(M)CAPARD'!AE263","v":2.7976897332368447},{"$f":"'[1]MONE(M)CAPARD'!AF263","v":-0.6314481351981357},{"$f":"'[1]MONE(M)CAPARD'!AG263","v":9.3570584760782616E-2},{"$f":"'[1]MONE(M)CAPARD'!AH263","v":2.2120636998254857},{"$f":"'[1]MONE(M)CAPARD'!AI263","v":1.3398686309268018},{"$f":"'[1]MONE(M)CAPARD'!AJ263","v":-0.84074560197539561},{"$f":"'[1]MONE(M)CAPARD'!AK263","v":-2.263838537699927},null,null,{"$f":"'[1]MONE(M)CAPARD'!AL263","v":1.03},{"$f":"'[1]MONE(M)CAPARD'!AM263","v":1.73},{"$f":"'[1]MONE(M)CAPARD'!AN263","v":2.93},{"$f":"'[1]MONE(M)CAPARD'!AO263","v":3.68},{"$f":"'[1]MONE(M)CAPARD'!AP263","v":3.45},{"$f":"'[1]MONE(M)CAPARD'!AQ263","v":2.11},{"$f":"'[1]MONE(M)CAPARD'!AR263","v":2.58},null,null,{"$f":"'[1]MONE(M)CAPARD'!J263","v":13.555587496017443},{"$f":"'[1]MONE(M)CAPARD'!K263","v":4.0864335664335654},{"$f":"'[1]MONE(M)CAPARD'!L263","v":7.7338659184878935},{"$f":"'[1]MONE(M)CAPARD'!M263","v":11.868193717277492},{"$f":"'[1]MONE(M)CAPARD'!N263","v":8.5875129370282135},{"$f":"'[1]MONE(M)CAPARD'!O263","v":5.9444726705842355},{"$f":"'[1]MONE(M)CAPARD'!P263","v":0.11811119573495481},null,null,{"$f":"'[1]MONE(M)CAPARD'!Q263","v":9.61},{"$f":"'[1]MONE(M)CAPARD'!R263","v":6.56},{"$f":"'[1]MONE(M)CAPARD'!S263","v":6.9099999999999993},{"$f":"'[1]MONE(M)CAPARD'!T263","v":9.7100000000000009},{"$f":"'[1]MONE(M)CAPARD'!U263","v":10.31},{"$f":"'[1]MONE(M)CAPARD'!V263","v":7.62},{"$f":"'[1]MONE(M)CAPARD'!W263","v":5.08},null,null,{"$f":"'[1]MONE(M)CAPARD'!AS263","v":6.5},{"$f":"'[1]MONE(M)CAPARD'!AT263","v":"n.a."},{"$f":"'[1]MONE(M)CAPARD'!AU263","v":4.5},{"$f":"'[1]MONE(M)CAPARD'!AV263","v":4.5},{"$f":"'[1]MONE(M)CAPARD'!AW263","v":"n.a."},{"$f":"'[1]MONE(M)CAPARD'!AX263","v":5},{"$f":"'[1]MONE(M)CAPARD'!AY263","v":"n.a."},null,null,{"$f":"+'Datos_Regional (M)'!CF256","v":5.9049630909127737},{"$f":"+'Datos_Regional (M)'!CG256","v":0.77093798978258299},{"$f":"+'Datos_Regional (M)'!CH256","v":4.3274836895145441},{"$f":"+'Datos_Regional (M)'!CI256","v":4.7077548899875143},{"$f":"+'Datos_Regional (M)'!CJ256","v":5.4502219293966148},{"$f":"+'Datos_Regional (M)'!CK256","v":18.271011012419436},{"$f":"+'Datos_Regional (M)'!CL256","v":15.544414564792653},null,null,791.72224830416587,388.69666666666654,736.54166666666652,257.86446320833329,300.98335036177224,582.08333333333337,1079.6081506666667,3057.8917285409375,4137.499879207604,null,null,1161.9080174333337,718.24416666666673,1191.2833333333335,613.14115989916661,465.73333333333335,1293.6333333333334,1709.5166319999998,5443.9433439991672,7153.4599759991661,null,null,-2386.0516154582292,-3015.960096791563,null,null,{"$f":"'[1]EXT Comercio(M)'!C263","v":830.6244283999954},{"$f":"'[1]EXT Comercio(M)'!D263","v":453.98},{"$f":"'[1]EXT Comercio(M)'!E263","v":901.10000000000014},{"$f":"'[1]EXT Comercio(M)'!F263","v":404.08569721000003},{"$f":"'[1]EXT Comercio(M)'!G263","v":335.51097730126668},{"$f":"'[1]EXT Comercio(M)'!H263","v":605.90000000000009},{"$f":"'[1]EXT Comercio(M)'!I263","v":1311.1814670000001},{"$f":"'[1]EXT Comercio(M)'!K263","v":3531.2011029112623},{"$f":"'[1]EXT Comercio(M)'!L263","v":4842.382569911264},null,null,{"$f":"'[1]EXT Comercio(M)'!AG263","v":1179.4194419800031},{"$f":"'[1]EXT Comercio(M)'!AH263","v":758.84000000000015},{"$f":"'[1]EXT Comercio(M)'!AI263","v":1181.4000000000001},{"$f":"'[1]EXT Comercio(M)'!AJ263","v":626.93808236999985},{"$f":"'[1]EXT Comercio(M)'!AK263","v":498.6},{"$f":"'[1]EXT Comercio(M)'!AL263","v":1189.8000000000002},{"$f":"'[1]EXT Comercio(M)'!AM263","v":1858.0426620000007},{"$f":"'[1]EXT Comercio(M)'!AO263","v":5434.997524350003},{"$f":"'[1]EXT Comercio(M)'!AP263","v":7293.0401863500028},null,null,{"$f":"'[1]EXT Comercio(M)'!$BS263","v":-1903.7964214387407},{"$f":"'[1]EXT Comercio(M)'!$BT263","v":-2450.6576164387416}]
[null,null,"Marzo",{"$f":"'[1]REAL IPC(M)'!AD264","v":4.5830834090794532},{"$f":"'[1]REAL IPC(M)'!AE264","v":2.7158291208246554},{"$f":"'[1]REAL IPC(M)'!AF264","v":4.9979516591560786},{"$f":"'[1]REAL IPC(M)'!AG264","v":6.605080831408781},{"$f":"'[1]REAL IPC(M)'!AH264","v":6.7409312796723908},{"$f":"'[1]REAL IPC(M)'!AI264","v":7.6067731897949953},{"$f":"'[1]REAL IPC(M)'!AJ264","v":5.4936305732484128},null,null,{"$f":"'[1]REAL IMAE(M)'!AG264","v":3.1075674191057234},{"$f":"'[1]REAL IMAE(M)'!AH264","v":3.670427375946455},{"$f":"'[1]REAL IMAE(M)'!AI264","v":"n.d."},{"$f":"'[1]REAL IMAE(M)'!AJ264","v":6.7938119736011782},{"$f":"'[1]REAL IMAE(M)'!AK264","v":6.0733134652397496},{"$f":"'[1]REAL IMAE(M)'!AL264","v":4.0842119736960054},{"$f":"'[1]REAL IMAE(M)'!AM264","v":7.7873492493231566},null,null,{"$f":"'[1]EXT ITCER(M)'!C264","v":75.389187042723634},{"$f":"'[1]EXT ITCER(M)'!D264","v":91.58203105950696},{"$f":"'[1]EXT ITCER(M)'!E264","v":64.885480366456946},{"$f":"'[1]EXT ITCER(M)'!F264","v":76.510856059801895},{"$f":"'[1]EXT ITCER(M)'!G264","v":96.941694704853631},{"$f":"'[1]EXT ITCER(M)'!H264","v":92.633741705429642},{"$f":"'[1]EXT ITCER(M)'!I264","v":95.340171179862224},null,null,{"$f":"'[1]EXT TC(M)'!J264","v":-7.045339615614048},{"$f":"'[1]EXT TC(M)'!K264","v":0},{"$f":"'[1]EXT TC(M)'!L264","v":-3.9842026796603918},{"$f":"'[1]EXT TC(M)'!M264","v":-1.9092902528327135E-5},{"$f":"'[1]EXT TC(M)'!N264","v":4.7703961665038932},{"$f":"'[1]EXT TC(M)'!O264","v":4.0380413970185058},{"$f":"'[1]EXT TC(M)'!P264","v":0},null,null,{"$f":"'[1]EXT RIN(M)'!C264","v":4641.6707590899996},{"$f":"'[1]EXT RIN(M)'!D264","v":3247.3},{"$f":"'[1]EXT RIN(M)'!E264","v":6191.0129805900006},{"$f":"'[1]EXT RIN(M)'!F264","v":2991.0261667820446},{"$f":"'[1]EXT RIN(M)'!G264","v":1542.2},{"$f":"'[1]EXT RIN(M)'!H264","v":2594.9},{"$f":"'[1]EXT RIN(M)'!I264","v":2176.8393456399999},null,null,{"$f":"'[1]EXT RIN(M)'!P264","v":65.12516901121181},{"$f":"'[1]EXT RIN(M)'!Q264","v":127.33196536984619},{"$f":"'[1]EXT RIN(M)'!R264","v":100.74020615299241},{"$f":"'[1]EXT RIN(M)'!S264","v":81.132322342518449},{"$f":"'[1]EXT RIN(M)'!T264","v":108.02221662533213},{"$f":"'[1]EXT RIN(M)'!U264","v":52.111726470288403},{"$f":"'[1]EXT RIN(M)'!V264","v":185.64508310610927},null,null,{"$f":"+'[1]MONE(M)CAPARD'!AE264","v":2.7890902580400616},{"$f":"'[1]MONE(M)CAPARD'!AF264","v":-0.96949917977419175},{"$f":"'[1]MONE(M)CAPARD'!AG264","v":0.28767069840031667},{"$f":"'[1]MONE(M)CAPARD'!AH264","v":1.8994584055459232},{"$f":"'[1]MONE(M)CAPARD'!AI264","v":1.3439106676747423},{"$f":"'[1]MONE(M)CAPARD'!AJ264","v":-0.74044891987390116},{"$f":"'[1]MONE(M)CAPARD'!AK264","v":-2.6291924528301931},null,null,{"$f":"'[1]MONE(M)CAPARD'!AL264","v":0.98499999999999999},{"$f":"'[1]MONE(M)CAPARD'!AM264","v":1.72},{"$f":"'[1]MONE(M)CAPARD'!AN264","v":2.9},{"$f":"'[1]MONE(M)CAPARD'!AO264","v":3.71},{"$f":"'[1]MONE(M)CAPARD'!AP264","v":3.29},{"$f":"'[1]MONE(M)CAPARD'!AQ264","v":2.69},{"$f":"'[1]MONE(M)CAPARD'!AR264","v":2.72},null,null,{"$f":"'[1]MONE(M)CAPARD'!J264","v":13.421784989848486},{"$f":"'[1]MONE(M)CAPARD'!K264","v":3.5964961883624484},{"$f":"'[1]MONE(M)CAPARD'!L264","v":7.9735349200156111},{"$f":"'[1]MONE(M)CAPARD'!M264","v":11.561286828422871},{"$f":"'[1]MONE(M)CAPARD'!N264","v":9.0980694499956041},{"$f":"'[1]MONE(M)CAPARD'!O264","v":6.4245275694788955},{"$f":"'[1]MONE(M)CAPARD'!P264","v":-0.19934591194969048},null,null,{"$f":"'[1]MONE(M)CAPARD'!Q264","v":9.66},{"$f":"'[1]MONE(M)CAPARD'!R264","v":6.41},{"$f":"'[1]MONE(M)CAPARD'!S264","v":6.8500000000000005},{"$f":"'[1]MONE(M)CAPARD'!T264","v":9.64},{"$f":"'[1]MONE(M)CAPARD'!U264","v":9.36},{"$f":"'[1]MONE(M)CAPARD'!V264","v":7.72},{"$f":"'[1]MONE(M)CAPARD'!W264","v":5.2833333333333332},null,null,{"$f":"'[1]MONE(M)CAPARD'!AS264","v":6.5},{"$f":"'[1]MONE(M)CAPARD'!AT264","v":"n.a."},{"$f":"'[1]MONE(M)CAPARD'!AU264","v":4.75},{"$f":"'[1]MONE(M)CAPARD'!AV264","v":4.5},{"$f":"'[1]MONE(M)CAPARD'!AW264","v":"n.a."},{"$f":"'[1]MONE(M)CAPARD'!AX264","v":6},{"$f":"'[1]MONE(M)CAPARD'!AY264","v":"n.a."},null,null,{"$f":"+'Datos_Regional (M)'!CF257","v":10.486937129435315},{"$f":"+'Datos_Regional (M)'!CG257","v":0.56099838477299269},{"$f":"+'Datos_Regional (M)'!CH257","v":5.1611650946535192},{"$f":"+'Datos_Regional (M)'!CI257","v":4.8176151042000237},{"$f":"+'Datos_Regional (M)'!CJ257","v":6.0429494176976739},{"$f":"+'Datos_Regional (M)'!CK257","v":18.222418199924185},{"$f":"+'Datos_Regional (M)'!CL257","v":16.820923346148664},null,null,795.51277396666501,400.33166666666665,752.31666666666661,268.5351828808333,308.41153072214723,595.81666666666672,1077.5260688333333,3120.9244875696445,4198.4505564029787,null,null,1188.2340622666682,738.24916666666661,1219.5000000000002,624.34861781749987,478.45833333333343,1315.325,1734.1434914999998,5564.1151800841681,7298.2586715841671,null,null,-2443.1906925145227,-3099.8081151811894,null,null,{"$f":"'[1]EXT Comercio(M)'!C264","v":972.39616098999159},{"$f":"'[1]EXT Comercio(M)'!D264","v":531.9899999999999},{"$f":"'[1]EXT Comercio(M)'!E264","v":1051.7999999999997},{"$f":"'[1]EXT Comercio(M)'!F264","v":406.12862825000002},{"$f":"'[1]EXT Comercio(M)'!G264","v":437.93816432450001},{"$f":"'[1]EXT Comercio(M)'!H264","v":785.69999999999993},{"$f":"'[1]EXT Comercio(M)'!I264","v":1171.2562620000001},{"$f":"'[1]EXT Comercio(M)'!K264","v":4185.9529535644906},{"$f":"'[1]EXT Comercio(M)'!L264","v":5357.2092155644896},null,null,{"$f":"'[1]EXT Comercio(M)'!AG264","v":1477.2172752100121},{"$f":"'[1]EXT Comercio(M)'!AH264","v":947.19},{"$f":"'[1]EXT Comercio(M)'!AI264","v":1481.3999999999999},{"$f":"'[1]EXT Comercio(M)'!AJ264","v":772.79769016},{"$f":"'[1]EXT Comercio(M)'!AK264","v":577.1},{"$f":"'[1]EXT Comercio(M)'!AL264","v":1530.3000000000002},{"$f":"'[1]EXT Comercio(M)'!AM264","v":1855.5349539999997},{"$f":"'[1]EXT Comercio(M)'!AO264","v":6786.0049653700098},{"$f":"'[1]EXT Comercio(M)'!AP264","v":8641.5399193700123},null,null,{"$f":"'[1]EXT Comercio(M)'!$BS264","v":-2600.052011805521},{"$f":"'[1]EXT Comercio(M)'!$BT264","v":-3284.3307038055209}]
[null,null,"Abril",{"$f":"'[1]REAL IPC(M)'!AD265","v":4.6819017652125119},{"$f":"'[1]REAL IPC(M)'!AE265","v":5.9577003276735185},{"$f":"'[1]REAL IPC(M)'!AF265","v":5.7611481291645363},{"$f":"'[1]REAL IPC(M)'!AG265","v":7.261029411764711},{"$f":"'[1]REAL IPC(M)'!AH265","v":7.11320404300257},{"$f":"'[1]REAL IPC(M)'!AI265","v":8.1603641333098142},{"$f":"'[1]REAL IPC(M)'!AJ265","v":6.2698412698412778},null,null,{"$f":"'[1]REAL IMAE(M)'!AG265","v":3.2254429860796394},{"$f":"'[1]REAL IMAE(M)'!AH265","v":4.3644476234198644},{"$f":"'[1]REAL IMAE(M)'!AI265","v":"n.d."},{"$f":"'[1]REAL IMAE(M)'!AJ265","v":6.4939987128386365},{"$f":"'[1]REAL IMAE(M)'!AK265","v":6.8991263504787748},{"$f":"'[1]REAL IMAE(M)'!AL265","v":3.5780792369387098},{"$f":"'[1]REAL IMAE(M)'!AM265","v":8.1914268937169599},null,null,{"$f":"'[1]EXT ITCER(M)'!C265","v":75.662634498212824},{"$f":"'[1]EXT ITCER(M)'!D265","v":89.511388099321053},{"$f":"'[1]EXT ITCER(M)'!E265","v":64.150754695793424},{"$f":"'[1]EXT ITCER(M)'!F265","v":76.145747938573606},{"$f":"'[1]EXT ITCER(M)'!G265","v":97.075372519071749},{"$f":"'[1]EXT ITCER(M)'!H265","v":92.600186540039743},{"$f":"'[1]EXT ITCER(M)'!I265","v":94.950853196151755},null,null,{"$f":"'[1]EXT TC(M)'!J265","v":-3.2837961619829779},{"$f":"'[1]EXT TC(M)'!K265","v":0},{"$f":"'[1]EXT TC(M)'!L265","v":-4.8731705600127846},{"$f":"'[1]EXT TC(M)'!M265","v":-1.9092902490722538E-5},{"$f":"'[1]EXT TC(M)'!N265","v":4.6257057323033335},{"$f":"'[1]EXT TC(M)'!O265","v":3.8814879082742073},{"$f":"'[1]EXT TC(M)'!P265","v":0},null,null,{"$f":"'[1]EXT RIN(M)'!C265","v":4810.6397858399996},{"$f":"'[1]EXT RIN(M)'!D265","v":3383.8},{"$f":"'[1]EXT RIN(M)'!E265","v":6393.1173355999999},{"$f":"'[1]EXT RIN(M)'!F265","v":3105.2064007493946},{"$f":"'[1]EXT RIN(M)'!G265","v":1575.8},{"$f":"'[1]EXT RIN(M)'!H265","v":2568.4},{"$f":"'[1]EXT RIN(M)'!I265","v":2392.6901641499999},null,null,{"$f":"'[1]EXT RIN(M)'!P265","v":66.000735033252809},{"$f":"'[1]EXT RIN(M)'!Q265","v":128.30045313514847},{"$f":"'[1]EXT RIN(M)'!R265","v":102.56136852308271},{"$f":"'[1]EXT RIN(M)'!S265","v":81.541562640754194},{"$f":"'[1]EXT RIN(M)'!T265","v":105.71255556016305},{"$f":"'[1]EXT RIN(M)'!U265","v":52.017905072282922},{"$f":"'[1]EXT RIN(M)'!V265","v":198.6044075068861},null,null,{"$f":"+'[1]MONE(M)CAPARD'!AE265","v":2.2144212091089748},{"$f":"'[1]MONE(M)CAPARD'!AF265","v":-4.0371773966825986},{"$f":"'[1]MONE(M)CAPARD'!AG265","v":-0.46439371910439625},{"$f":"'[1]MONE(M)CAPARD'!AH265","v":1.0991602399314429},{"$f":"'[1]MONE(M)CAPARD'!AI265","v":-0.232005204445344},{"$f":"'[1]MONE(M)CAPARD'!AJ265","v":-0.7769612649177553},{"$f":"'[1]MONE(M)CAPARD'!AK265","v":-3.7356235997012774},null,null,{"$f":"'[1]MONE(M)CAPARD'!AL265","v":0.96},{"$f":"'[1]MONE(M)CAPARD'!AM265","v":1.68},{"$f":"'[1]MONE(M)CAPARD'!AN265","v":2.85},{"$f":"'[1]MONE(M)CAPARD'!AO265","v":3.56},{"$f":"'[1]MONE(M)CAPARD'!AP265","v":3.1},{"$f":"'[1]MONE(M)CAPARD'!AQ265","v":2.89},{"$f":"'[1]MONE(M)CAPARD'!AR265","v":2.2999999999999998},null,null,{"$f":"'[1]MONE(M)CAPARD'!J265","v":12.41675783072845},{"$f":"'[1]MONE(M)CAPARD'!K265","v":0.28530222097272917},{"$f":"'[1]MONE(M)CAPARD'!L265","v":7.2605602403799505},{"$f":"'[1]MONE(M)CAPARD'!M265","v":10.841748071979429},{"$f":"'[1]MONE(M)CAPARD'!N265","v":6.8593952480289664},{"$f":"'[1]MONE(M)CAPARD'!O265","v":5.6301917208642047},{"$f":"'[1]MONE(M)CAPARD'!P265","v":-1.1541448842419795},null,null,{"$f":"'[1]MONE(M)CAPARD'!Q265","v":9.49},{"$f":"'[1]MONE(M)CAPARD'!R265","v":6.26},{"$f":"'[1]MONE(M)CAPARD'!S265","v":6.78},{"$f":"'[1]MONE(M)CAPARD'!T265","v":9.3800000000000008},{"$f":"'[1]MONE(M)CAPARD'!U265","v":9.2100000000000009},{"$f":"'[1]MONE(M)CAPARD'!V265","v":7.44},{"$f":"'[1]MONE(M)CAPARD'!W265","v":5.043333333333333},null,null,{"$f":"'[1]MONE(M)CAPARD'!AS265","v":6.5},{"$f":"'[1]MONE(M)CAPARD'!AT265","v":"n.a."},{"$f":"'[1]MONE(M)CAPARD'!AU265","v":4.75},{"$f":"'[1]MONE(M)CAPARD'!AV265","v":4.5},{"$f":"'[1]MONE(M)CAPARD'!AW265","v":"n.a."},{"$f":"'[1]MONE(M)CAPARD'!AX265","v":6.25},{"$f":"'[1]MONE(M)CAPARD'!AY265","v":"n.a."},null,null,{"$f":"+'Datos_Regional (M)'!CF258","v":12.248126368470214},{"$f":"+'Datos_Regional (M)'!CG258","v":1.6407084433277763},{"$f":"+'Datos_Regional (M)'!CH258","v":4.5230361161579191},{"$f":"+'Datos_Regional (M)'!CI258","v":4.1763012771780517},{"$f":"+'Datos_Regional (M)'!CJ258","v":6.6318456087626876},{"$f":"+'Datos_Regional (M)'!CK258","v":17.41064347457959},{"$f":"+'Datos_Regional (M)'!CL258","v":17.205784273167257},null,null,806.45282300499809,406.73499999999996,771.4666666666667,281.9135747366667,316.1171560365222,611.62499999999989,1088.5678403333334,3194.3102204448533,4282.8780607781873,null,null,1198.1343029508348,744.79666666666662,1238.575,630.63674714083334,486.35000000000008,1330.1916666666668,1763.0665634999998,5628.6843834250021,7391.7509469250008,null,null,-2434.374162980148,-3108.8728861468139,null,null,{"$f":"'[1]EXT Comercio(M)'!C265","v":921.97886544999483},{"$f":"'[1]EXT Comercio(M)'!D265","v":429.46000000000004},{"$f":"'[1]EXT Comercio(M)'!E265","v":936.10000000000036},{"$f":"'[1]EXT Comercio(M)'!F265","v":398.09811063000006},{"$f":"'[1]EXT Comercio(M)'!G265","v":353.36750377250002},{"$f":"'[1]EXT Comercio(M)'!H265","v":773},{"$f":"'[1]EXT Comercio(M)'!I265","v":1077.362134},{"$f":"'[1]EXT Comercio(M)'!K265","v":3812.0044798524978},{"$f":"'[1]EXT Comercio(M)'!L265","v":4889.3666138524986},null,null,{"$f":"'[1]EXT Comercio(M)'!AG265","v":1246.6721534300009},{"$f":"'[1]EXT Comercio(M)'!AH265","v":792.98},{"$f":"'[1]EXT Comercio(M)'!AI265","v":1397.0000000000005},{"$f":"'[1]EXT Comercio(M)'!AJ265","v":690.64661004999971},{"$f":"'[1]EXT Comercio(M)'!AK265","v":513.79999999999995},{"$f":"'[1]EXT Comercio(M)'!AL265","v":1561.2000000000003},{"$f":"'[1]EXT Comercio(M)'!AM265","v":1788.465944},{"$f":"'[1]EXT Comercio(M)'!AO265","v":6202.2987634800047},{"$f":"'[1]EXT Comercio(M)'!AP265","v":7990.7647074800043},null,null,{"$f":"'[1]EXT Comercio(M)'!$BS265","v":-2390.2942836275051},{"$f":"'[1]EXT Comercio(M)'!$BT265","v":-3101.3980936275057}]
[null,null,"Mayo ",{"$f":"'[1]REAL IPC(M)'!AD266","v":4.8451392323129268},{"$f":"'[1]REAL IPC(M)'!AE266","v":6.6965174129353269},{"$f":"'[1]REAL IPC(M)'!AF266","v":6.3930220625962066},{"$f":"'[1]REAL IPC(M)'!AG266","v":7.7064220183486283},{"$f":"'[1]REAL IPC(M)'!AH266","v":8.2891165974087677},{"$f":"'[1]REAL IPC(M)'!AI266","v":8.0300152305078747},{"$f":"'[1]REAL IPC(M)'!AJ266","v":6.4133016627078305},null,null,{"$f":"'[1]REAL IMAE(M)'!AG266","v":3.2702076430564553},{"$f":"'[1]REAL IMAE(M)'!AH266","v":4.681279081480592},{"$f":"'[1]REAL IMAE(M)'!AI266","v":"n.d."},{"$f":"'[1]REAL IMAE(M)'!AJ266","v":6.3613749763183733},{"$f":"'[1]REAL IMAE(M)'!AK266","v":7.4675775403591622},{"$f":"'[1]REAL IMAE(M)'!AL266","v":3.2649839039705379},{"$f":"'[1]REAL IMAE(M)'!AM266","v":8.4944717743899467},null,null,{"$f":"'[1]EXT ITCER(M)'!C266","v":76.011724910313646},{"$f":"'[1]EXT ITCER(M)'!D266","v":89.496348926492431},{"$f":"'[1]EXT ITCER(M)'!E266","v":64.52907625444918},{"$f":"'[1]EXT ITCER(M)'!F266","v":76.047795374443339},{"$f":"'[1]EXT ITCER(M)'!G266","v":96.909278332961691},{"$f":"'[1]EXT ITCER(M)'!H266","v":92.968483829544198},{"$f":"'[1]EXT ITCER(M)'!I266","v":95.042618328048576},null,null,{"$f":"'[1]EXT TC(M)'!J266","v":-4.7122869461154782},{"$f":"'[1]EXT TC(M)'!K266","v":0},{"$f":"'[1]EXT TC(M)'!L266","v":-4.2302223726484494},{"$f":"'[1]EXT TC(M)'!M266","v":0},{"$f":"'[1]EXT TC(M)'!N266","v":4.6532049039534495},{"$f":"'[1]EXT TC(M)'!O266","v":3.2505681477565704},{"$f":"'[1]EXT TC(M)'!P266","v":0},null,null,{"$f":"'[1]EXT RIN(M)'!C266","v":4650.3994588400001},{"$f":"'[1]EXT RIN(M)'!D266","v":3319.9},{"$f":"'[1]EXT RIN(M)'!E266","v":6421.0835425200003},{"$f":"'[1]EXT RIN(M)'!F266","v":3056.8442059287977},{"$f":"'[1]EXT RIN(M)'!G266","v":1556.6},{"$f":"'[1]EXT RIN(M)'!H266","v":2599.6999999999998},{"$f":"'[1]EXT RIN(M)'!I266","v":2274.29516298},null,null,{"$f":"'[1]EXT RIN(M)'!P266","v":65.043499402122407},{"$f":"'[1]EXT RIN(M)'!Q266","v":130.87955682531825},{"$f":"'[1]EXT RIN(M)'!R266","v":110.44715444818374},{"$f":"'[1]EXT RIN(M)'!S266","v":81.32993660420307},{"$f":"'[1]EXT RIN(M)'!T266","v":108.65418511495182},{"$f":"'[1]EXT RIN(M)'!U266","v":51.784665227875401},{"$f":"'[1]EXT RIN(M)'!V266","v":182.29563616560074},null,null,{"$f":"+'[1]MONE(M)CAPARD'!AE266","v":2.2937265239912077},{"$f":"'[1]MONE(M)CAPARD'!AF266","v":-4.6735521775622519},{"$f":"'[1]MONE(M)CAPARD'!AG266","v":-1.0461419753086449},{"$f":"'[1]MONE(M)CAPARD'!AH266","v":0.55110732538330143},{"$f":"'[1]MONE(M)CAPARD'!AI266","v":-1.6566902967870984},{"$f":"'[1]MONE(M)CAPARD'!AJ266","v":-0.59244204413213253},{"$f":"'[1]MONE(M)CAPARD'!AK266","v":-3.9217857142857064},null,null,{"$f":"'[1]MONE(M)CAPARD'!AL266","v":0.96499999999999997},{"$f":"'[1]MONE(M)CAPARD'!AM266","v":1.71},{"$f":"'[1]MONE(M)CAPARD'!AN266","v":2.81},{"$f":"'[1]MONE(M)CAPARD'!AO266","v":3.55},{"$f":"'[1]MONE(M)CAPARD'!AP266","v":3.14},{"$f":"'[1]MONE(M)CAPARD'!AQ266","v":2.67},{"$f":"'[1]MONE(M)CAPARD'!AR266","v":2.2400000000000002},null,null,{"$f":"'[1]MONE(M)CAPARD'!J266","v":12.184504557126766},{"$f":"'[1]MONE(M)CAPARD'!K266","v":-0.33414156486058344},{"$f":"'[1]MONE(M)CAPARD'!L266","v":6.5577401620370335},{"$f":"'[1]MONE(M)CAPARD'!M266","v":10.309114139693349},{"$f":"'[1]MONE(M)CAPARD'!N266","v":6.2969795033057006},{"$f":"'[1]MONE(M)CAPARD'!O266","v":5.7854150590984244},{"$f":"'[1]MONE(M)CAPARD'!P266","v":-1.2122247023809443},null,null,{"$f":"'[1]MONE(M)CAPARD'!Q266","v":9.51},{"$f":"'[1]MONE(M)CAPARD'!R266","v":6.34},{"$f":"'[1]MONE(M)CAPARD'!S266","v":6.7299999999999995},{"$f":"'[1]MONE(M)CAPARD'!T266","v":9.35},{"$f":"'[1]MONE(M)CAPARD'!U266","v":9.5500000000000007},{"$f":"'[1]MONE(M)CAPARD'!V266","v":7.27},{"$f":"'[1]MONE(M)CAPARD'!W266","v":5.123333333333334},null,null,{"$f":"'[1]MONE(M)CAPARD'!AS266","v":6.5},{"$f":"'[1]MONE(M)CAPARD'!AT266","v":"n.a."},{"$f":"'[1]MONE(M)CAPARD'!AU266","v":4.75},{"$f":"'[1]MONE(M)CAPARD'!AV266","v":4.5},{"$f":"'[1]MONE(M)CAPARD'!AW266","v":"n.a."},{"$f":"'[1]MONE(M)CAPARD'!AX266","v":6.75},{"$f":"'[1]MONE(M)CAPARD'!AY266","v":"n.a."},null,null,{"$f":"+'Datos_Regional (M)'!CF259","v":9.9189117859887599},{"$f":"+'Datos_Regional (M)'!CG259","v":2.1655979074988396},{"$f":"+'Datos_Regional (M)'!CH259","v":6.9443552921351515},{"$f":"+'Datos_Regional (M)'!CI259","v":4.7168295188808385},{"$f":"+'Datos_Regional (M)'!CJ259","v":7.5702476260840923},{"$f":"+'Datos_Regional (M)'!CK259","v":16.658556288729322},{"$f":"+'Datos_Regional (M)'!CL259","v":10.374920475472749},null,null,813.77440387416402,416.16666666666669,783.30000000000007,293.34380198583335,324.94010787735556,624.18333333333328,1122.2147805,3255.708313737352,4377.9230942373533,null,null,1217.2658349533347,765.42333333333329,1272.3583333333333,649.71770731666663,498.54166666666669,1349.5416666666667,1818.8746549166663,5752.8485422700005,7571.7231971866668,null,null,-2497.1402285326481,-3193.8001029493148,null,null,{"$f":"'[1]EXT Comercio(M)'!C266","v":933.93224938999219},{"$f":"'[1]EXT Comercio(M)'!D266","v":483.61000000000013},{"$f":"'[1]EXT Comercio(M)'!E266","v":889.89999999999986},{"$f":"'[1]EXT Comercio(M)'!F266","v":409.65587144999995},{"$f":"'[1]EXT Comercio(M)'!G266","v":378.17542208999998},{"$f":"'[1]EXT Comercio(M)'!H266","v":733.2},{"$f":"'[1]EXT Comercio(M)'!I266","v":1396.0269780000001},{"$f":"'[1]EXT Comercio(M)'!K266","v":3828.4735429299926},{"$f":"'[1]EXT Comercio(M)'!L266","v":5224.5005209299925},null,null,{"$f":"'[1]EXT Comercio(M)'!AG266","v":1338.7367109899967},{"$f":"'[1]EXT Comercio(M)'!AH266","v":929.06},{"$f":"'[1]EXT Comercio(M)'!AI266","v":1536.3000000000002},{"$f":"'[1]EXT Comercio(M)'!AJ266","v":847.67623018999984},{"$f":"'[1]EXT Comercio(M)'!AK266","v":596.1},{"$f":"'[1]EXT Comercio(M)'!AL266","v":1471.2999999999997},{"$f":"'[1]EXT Comercio(M)'!AM266","v":2211.1113709999981},{"$f":"'[1]EXT Comercio(M)'!AO266","v":6719.1729411799934},{"$f":"'[1]EXT Comercio(M)'!AP266","v":8930.2843121799888},null,null,{"$f":"'[1]EXT Comercio(M)'!$BS266","v":-2890.6993982500026},{"$f":"'[1]EXT Comercio(M)'!$BT266","v":-3705.7837912499999}]
[null,null,"Junio",{"$f":"'[1]REAL IPC(M)'!AD267","v":5.1759635613752888},{"$f":"'[1]REAL IPC(M)'!AE267","v":6.2698098256735477},{"$f":"'[1]REAL IPC(M)'!AF267","v":6.4222993669593693},{"$f":"'[1]REAL IPC(M)'!AG267","v":7.7204202832343558},{"$f":"'[1]REAL IPC(M)'!AH267","v":9.014750131400449},{"$f":"'[1]REAL IPC(M)'!AI267","v":9.318913566482804},{"$f":"'[1]REAL IPC(M)'!AJ267","v":6.4873417721518916},null,null,{"$f":"'[1]REAL IMAE(M)'!AG267","v":3.1899252582076354},{"$f":"'[1]REAL IMAE(M)'!AH267","v":4.8336689199132108},{"$f":"'[1]REAL IMAE(M)'!AI267","v":"n.d."},{"$f":"'[1]REAL IMAE(M)'!AJ267","v":7.812485669769142},{"$f":"'[1]REAL IMAE(M)'!AK267","v":7.6049828824063122},{"$f":"'[1]REAL IMAE(M)'!AL267","v":3.1123465241210657},{"$f":"'[1]REAL IMAE(M)'!AM267","v":8.7093643862202903},null,null,{"$f":"'[1]EXT ITCER(M)'!C267","v":75.877480106422595},{"$f":"'[1]EXT ITCER(M)'!D267","v":89.350505665029203},{"$f":"'[1]EXT ITCER(M)'!E267","v":65.083048189907615},{"$f":"'[1]EXT ITCER(M)'!F267","v":75.644186353751337},{"$f":"'[1]EXT ITCER(M)'!G267","v":96.82295487318865},{"$f":"'[1]EXT ITCER(M)'!H267","v":92.267133395312271},{"$f":"'[1]EXT ITCER(M)'!I267","v":94.799759743789508},null,null,{"$f":"'[1]EXT TC(M)'!J267","v":-5.6044384616352243},{"$f":"'[1]EXT TC(M)'!K267","v":0},{"$f":"'[1]EXT TC(M)'!L267","v":-2.9170512827255362},{"$f":"'[1]EXT TC(M)'!M267","v":0},{"$f":"'[1]EXT TC(M)'!N267","v":4.9834685580174298},{"$f":"'[1]EXT TC(M)'!O267","v":3.5480805622037268},{"$f":"'[1]EXT TC(M)'!P267","v":0},null,null,{"$f":"'[1]EXT RIN(M)'!C267","v":4842.7701523799997},{"$f":"'[1]EXT RIN(M)'!D267","v":3056.3},{"$f":"'[1]EXT RIN(M)'!E267","v":6382.5368342399997},{"$f":"'[1]EXT RIN(M)'!F267","v":3049.1118222188197},{"$f":"'[1]EXT RIN(M)'!G267","v":1603.7},{"$f":"'[1]EXT RIN(M)'!H267","v":2606.5},{"$f":"'[1]EXT RIN(M)'!I267","v":2348.4792351200003},null,null,{"$f":"'[1]EXT RIN(M)'!P267","v":67.626049572486764},{"$f":"'[1]EXT RIN(M)'!Q267","v":128.35076635440234},{"$f":"'[1]EXT RIN(M)'!R267","v":108.80979077670692},{"$f":"'[1]EXT RIN(M)'!S267","v":78.820286530101384},{"$f":"'[1]EXT RIN(M)'!T267","v":109.65738952334358},{"$f":"'[1]EXT RIN(M)'!U267","v":52.163040887208268},{"$f":"'[1]EXT RIN(M)'!V267","v":193.28485455758843},null,null,{"$f":"+'[1]MONE(M)CAPARD'!AE267","v":1.9719680889012348},{"$f":"'[1]MONE(M)CAPARD'!AF267","v":-4.187275608164799},{"$f":"'[1]MONE(M)CAPARD'!AG267","v":-1.0921577281013206},{"$f":"'[1]MONE(M)CAPARD'!AH267","v":0.3616581849024571},{"$f":"'[1]MONE(M)CAPARD'!AI267","v":-0.71255866490376374},{"$f":"'[1]MONE(M)CAPARD'!AJ267","v":-1.0692692859336947},{"$f":"'[1]MONE(M)CAPARD'!AK267","v":-3.9791976225854317},null,null,{"$f":"'[1]MONE(M)CAPARD'!AL267","v":0.94499999999999995},{"$f":"'[1]MONE(M)CAPARD'!AM267","v":1.82},{"$f":"'[1]MONE(M)CAPARD'!AN267","v":2.74},{"$f":"'[1]MONE(M)CAPARD'!AO267","v":3.52},{"$f":"'[1]MONE(M)CAPARD'!AP267","v":3.33},{"$f":"'[1]MONE(M)CAPARD'!AQ267","v":2.57},{"$f":"'[1]MONE(M)CAPARD'!AR267","v":2.25},null,null,{"$f":"'[1]MONE(M)CAPARD'!J267","v":12.002777071072872},{"$f":"'[1]MONE(M)CAPARD'!K267","v":-0.60206170192936315},{"$f":"'[1]MONE(M)CAPARD'!L267","v":6.5472186510601498},{"$f":"'[1]MONE(M)CAPARD'!M267","v":10.174096692111956},{"$f":"'[1]MONE(M)CAPARD'!N267","v":5.7300502830282962},{"$f":"'[1]MONE(M)CAPARD'!O267","v":5.2882765158486515},{"$f":"'[1]MONE(M)CAPARD'!P267","v":-1.4718573551262937},null,null,{"$f":"'[1]MONE(M)CAPARD'!Q267","v":9.5299999999999994},{"$f":"'[1]MONE(M)CAPARD'!R267","v":5.63},{"$f":"'[1]MONE(M)CAPARD'!S267","v":6.64},{"$f":"'[1]MONE(M)CAPARD'!T267","v":9.3000000000000007},{"$f":"'[1]MONE(M)CAPARD'!U267","v":9.4700000000000006},{"$f":"'[1]MONE(M)CAPARD'!V267","v":7.43},{"$f":"'[1]MONE(M)CAPARD'!W267","v":4.92},null,null,{"$f":"'[1]MONE(M)CAPARD'!AS267","v":5},{"$f":"'[1]MONE(M)CAPARD'!AT267","v":"n.a."},{"$f":"'[1]MONE(M)CAPARD'!AU267","v":4.75},{"$f":"'[1]MONE(M)CAPARD'!AV267","v":4.5},{"$f":"'[1]MONE(M)CAPARD'!AW267","v":"n.a."},{"$f":"'[1]MONE(M)CAPARD'!AX267","v":6.75},{"$f":"'[1]MONE(M)CAPARD'!AY267","v":"n.a."},null,null,{"$f":"+'Datos_Regional (M)'!CF260","v":9.0644657584439514},{"$f":"+'Datos_Regional (M)'!CG260","v":2.267862470689086},{"$f":"+'Datos_Regional (M)'!CH260","v":7.9500860240427906},{"$f":"+'Datos_Regional (M)'!CI260","v":5.9140927376796215},{"$f":"+'Datos_Regional (M)'!CJ260","v":6.5484375648153348},{"$f":"+'Datos_Regional (M)'!CK260","v":15.623846410260356},{"$f":"+'Datos_Regional (M)'!CL260","v":14.375454097222097},null,null,820.99454245416348,422.64583333333331,793.9,303.72113218166669,328.50176370485553,639.84166666666658,1154.7923344999999,3309.6049383406848,4464.397272840687,null,null,1232.3014649358338,773.30583333333334,1296.5416666666667,670.21215831833331,506.20000000000005,1361.5250000000001,1852.3270678333331,5840.0861232541674,7692.4131910874994,null,null,-2530.4811849134821,-3228.0159182468155,null,null,{"$f":"'[1]EXT Comercio(M)'!C267","v":876.17397703999359},{"$f":"'[1]EXT Comercio(M)'!D267","v":465.74000000000024},{"$f":"'[1]EXT Comercio(M)'!E267","v":875.39999999999964},{"$f":"'[1]EXT Comercio(M)'!F267","v":390.46499148000021},{"$f":"'[1]EXT Comercio(M)'!G267","v":374.33986992999996},{"$f":"'[1]EXT Comercio(M)'!H267","v":798.5},{"$f":"'[1]EXT Comercio(M)'!I267","v":1358.3244870000001},{"$f":"'[1]EXT Comercio(M)'!K267","v":3780.618838449991},{"$f":"'[1]EXT Comercio(M)'!L267","v":5138.9433254499927},null,null,{"$f":"'[1]EXT Comercio(M)'!AG267","v":1297.9829664099902},{"$f":"'[1]EXT Comercio(M)'!AH267","v":866.35000000000036},{"$f":"'[1]EXT Comercio(M)'!AI267","v":1460.8999999999999},{"$f":"'[1]EXT Comercio(M)'!AJ267","v":846.84194080999987},{"$f":"'[1]EXT Comercio(M)'!AK267","v":554.9000000000002},{"$f":"'[1]EXT Comercio(M)'!AL267","v":1460.1000000000004},{"$f":"'[1]EXT Comercio(M)'!AM267","v":2260.9812200000015},{"$f":"'[1]EXT Comercio(M)'!AO267","v":6487.0749072199978},{"$f":"'[1]EXT Comercio(M)'!AP267","v":8748.0561272199993},null,null,{"$f":"'[1]EXT Comercio(M)'!$BS267","v":-2706.4560687700014},{"$f":"'[1]EXT Comercio(M)'!$BT267","v":-3609.112801770003}]
[null,null,"Julio",{"$f":"'[1]REAL IPC(M)'!AD268","v":5.1938669573744454},{"$f":"'[1]REAL IPC(M)'!AE268","v":6.526044761338869},{"$f":"'[1]REAL IPC(M)'!AF268","v":7.0396744659206529},{"$f":"'[1]REAL IPC(M)'!AG268","v":7.7621425329096656},{"$f":"'[1]REAL IPC(M)'!AH268","v":8.456406866099897},{"$f":"'[1]REAL IPC(M)'!AI268","v":9.8712537645098113},{"$f":"'[1]REAL IPC(M)'!AJ268","v":5.3990610328638553},null,null,{"$f":"'[1]REAL IMAE(M)'!AG268","v":3.1155421616139254},{"$f":"'[1]REAL IMAE(M)'!AH268","v":4.7455381065671522},{"$f":"'[1]REAL IMAE(M)'!AI268","v":"n.d."},{"$f":"'[1]REAL IMAE(M)'!AJ268","v":8.048246412612972},{"$f":"'[1]REAL IMAE(M)'!AK268","v":7.3643281408773618},{"$f":"'[1]REAL IMAE(M)'!AL268","v":3.0063496701995618},{"$f":"'[1]REAL IMAE(M)'!AM268","v":8.8893183245567311},null,null,{"$f":"'[1]EXT ITCER(M)'!C268","v":75.567882018392368},{"$f":"'[1]EXT ITCER(M)'!D268","v":89.196892766931612},{"$f":"'[1]EXT ITCER(M)'!E268","v":64.357705825978499},{"$f":"'[1]EXT ITCER(M)'!F268","v":75.110636905350162},{"$f":"'[1]EXT ITCER(M)'!G268","v":97.045716059573607},{"$f":"'[1]EXT ITCER(M)'!H268","v":91.604973782012934},{"$f":"'[1]EXT ITCER(M)'!I268","v":94.813315860821319},null,null,{"$f":"'[1]EXT TC(M)'!J268","v":-3.7199375118160414},{"$f":"'[1]EXT TC(M)'!K268","v":0},{"$f":"'[1]EXT TC(M)'!L268","v":-3.1080200228453645},{"$f":"'[1]EXT TC(M)'!M268","v":-0.12008404295293887},{"$f":"'[1]EXT TC(M)'!N268","v":5.0907423974236732},{"$f":"'[1]EXT TC(M)'!O268","v":3.3921981074132774},{"$f":"'[1]EXT TC(M)'!P268","v":0},null,null,{"$f":"'[1]EXT RIN(M)'!C268","v":4806.5703396600002},{"$f":"'[1]EXT RIN(M)'!D268","v":2877.2},{"$f":"'[1]EXT RIN(M)'!E268","v":6333.8110733200001},{"$f":"'[1]EXT RIN(M)'!F268","v":3105.83635293826},{"$f":"'[1]EXT RIN(M)'!G268","v":1771.4},{"$f":"'[1]EXT RIN(M)'!H268","v":3239.2},{"$f":"'[1]EXT RIN(M)'!I268","v":2115.7969825499999},null,null,{"$f":"'[1]EXT RIN(M)'!P268","v":65.153271663029017},{"$f":"'[1]EXT RIN(M)'!Q268","v":101.30329584280456},{"$f":"'[1]EXT RIN(M)'!R268","v":107.67193611978567},{"$f":"'[1]EXT RIN(M)'!S268","v":79.630913681096331},{"$f":"'[1]EXT RIN(M)'!T268","v":119.24490585722826},{"$f":"'[1]EXT RIN(M)'!U268","v":66.494955213824852},{"$f":"'[1]EXT RIN(M)'!V268","v":169.05792700871592},null,null,{"$f":"+'[1]MONE(M)CAPARD'!AE268","v":1.9546130417077634},{"$f":"'[1]MONE(M)CAPARD'!AF268","v":-4.4271283815190028},{"$f":"'[1]MONE(M)CAPARD'!AG268","v":-1.6813153392891103},{"$f":"'[1]MONE(M)CAPARD'!AH268","v":0.21144481887110667},{"$f":"'[1]MONE(M)CAPARD'!AI268","v":-0.2471461881621532},{"$f":"'[1]MONE(M)CAPARD'!AJ268","v":-0.84758636367779561},{"$f":"'[1]MONE(M)CAPARD'!AK268","v":-2.8833853006681567},null,null,{"$f":"'[1]MONE(M)CAPARD'!AL268","v":0.92999999999999994},{"$f":"'[1]MONE(M)CAPARD'!AM268","v":1.81},{"$f":"'[1]MONE(M)CAPARD'!AN268","v":2.71},{"$f":"'[1]MONE(M)CAPARD'!AO268","v":3.56},{"$f":"'[1]MONE(M)CAPARD'!AP268","v":3.2063541321037601},{"$f":"'[1]MONE(M)CAPARD'!AQ268","v":2.62},{"$f":"'[1]MONE(M)CAPARD'!AR268","v":2.36},null,null,{"$f":"'[1]MONE(M)CAPARD'!J268","v":11.841120973024877},{"$f":"'[1]MONE(M)CAPARD'!K268","v":-0.66279074091288437},{"$f":"'[1]MONE(M)CAPARD'!L268","v":5.9139992396882706},{"$f":"'[1]MONE(M)CAPARD'!M268","v":9.7231339511373243},{"$f":"'[1]MONE(M)CAPARD'!N268","v":6.6667358360936015},{"$f":"'[1]MONE(M)CAPARD'!O268","v":6.3517489756218994},{"$f":"'[1]MONE(M)CAPARD'!P268","v":-0.12244988864143105},null,null,{"$f":"'[1]MONE(M)CAPARD'!Q268","v":9.51},{"$f":"'[1]MONE(M)CAPARD'!R268","v":5.82},{"$f":"'[1]MONE(M)CAPARD'!S268","v":6.5699999999999994},{"$f":"'[1]MONE(M)CAPARD'!T268","v":9.16},{"$f":"'[1]MONE(M)CAPARD'!U268","v":9.3012276764760706},{"$f":"'[1]MONE(M)CAPARD'!V268","v":7.51},{"$f":"'[1]MONE(M)CAPARD'!W268","v":5.27},null,null,{"$f":"'[1]MONE(M)CAPARD'!AS268","v":5},{"$f":"'[1]MONE(M)CAPARD'!AT268","v":"n.a."},{"$f":"'[1]MONE(M)CAPARD'!AU268","v":5},{"$f":"'[1]MONE(M)CAPARD'!AV268","v":4.5},{"$f":"'[1]MONE(M)CAPARD'!AW268","v":"n.a."},{"$f":"'[1]MONE(M)CAPARD'!AX268","v":6.75},{"$f":"'[1]MONE(M)CAPARD'!AY268","v":"n.a."},null,null,{"$f":"+'Datos_Regional (M)'!CF261","v":11.188723328922091},{"$f":"+'Datos_Regional (M)'!CG261","v":1.7984255621270595},{"$f":"+'Datos_Regional (M)'!CH261","v":8.5819012190139645},{"$f":"+'Datos_Regional (M)'!CI261","v":7.0671663460430523},{"$f":"+'Datos_Regional (M)'!CJ261","v":7.264639259770922},{"$f":"+'Datos_Regional (M)'!CK261","v":16.368136076046035},{"$f":"+'Datos_Regional (M)'!CL261","v":15.733142299677215},null,null,826.35550932832984,426.70833333333331,805.43333333333339,309.26457862833337,333.13081697402225,652.01666666666665,1205.3234183333334,3352.9092382640169,4558.2326565973526,null,null,1249.2608611908347,790.30583333333334,1303.875,688.07998835500018,515.80833333333328,1370.1750000000002,1925.8646934999997,5917.5050162125017,7843.3697097125014,null,null,-2564.5957779484829,-3285.1370531151497,null,null,{"$f":"'[1]EXT Comercio(M)'!C268","v":848.59354577999511},{"$f":"'[1]EXT Comercio(M)'!D268","v":471.72999999999956},{"$f":"'[1]EXT Comercio(M)'!E268","v":823.90000000000077},{"$f":"'[1]EXT Comercio(M)'!F268","v":275.3172086300001},{"$f":"'[1]EXT Comercio(M)'!G268","v":352.44863923000003},{"$f":"'[1]EXT Comercio(M)'!H268","v":732.6},{"$f":"'[1]EXT Comercio(M)'!I268","v":1439.9002130000001},{"$f":"'[1]EXT Comercio(M)'!K268","v":3504.5893936399916},{"$f":"'[1]EXT Comercio(M)'!L268","v":4944.4896066399961},null,null,{"$f":"'[1]EXT Comercio(M)'!AG268","v":1424.2781201900093},{"$f":"'[1]EXT Comercio(M)'!AH268","v":912.61000000000058},{"$f":"'[1]EXT Comercio(M)'!AI268","v":1328.3999999999994},{"$f":"'[1]EXT Comercio(M)'!AJ268","v":772.08166600999994},{"$f":"'[1]EXT Comercio(M)'!AK268","v":592.89999999999986},{"$f":"'[1]EXT Comercio(M)'!AL268","v":1478.3000000000004},{"$f":"'[1]EXT Comercio(M)'!AM268","v":2401.360716000001},{"$f":"'[1]EXT Comercio(M)'!AO268","v":6508.5697862000088},{"$f":"'[1]EXT Comercio(M)'!AP268","v":8909.9305022000117},null,null,{"$f":"'[1]EXT Comercio(M)'!$BS268","v":-3003.9803925600136},{"$f":"'[1]EXT Comercio(M)'!$BT268","v":-3965.4408955600156}]
[null,null,"Agosto",{"$f":"'[1]REAL IPC(M)'!AD269","v":5.2518141350627694},{"$f":"'[1]REAL IPC(M)'!AE269","v":6.824719769864096},{"$f":"'[1]REAL IPC(M)'!AF269","v":7.6258261311642093},{"$f":"'[1]REAL IPC(M)'!AG269","v":7.6818798011748752},{"$f":"'[1]REAL IPC(M)'!AH269","v":9.6949778343574202},{"$f":"'[1]REAL IPC(M)'!AI269","v":10.175145291165839},{"$f":"'[1]REAL IPC(M)'!AJ269","v":5.2918287937743402},null,null,{"$f":"'[1]REAL IMAE(M)'!AG269","v":3.1224421187390408},{"$f":"'[1]REAL IMAE(M)'!AH269","v":4.2405780261853563},{"$f":"'[1]REAL IMAE(M)'!AI269","v":"n.d."},{"$f":"'[1]REAL IMAE(M)'!AJ269","v":8.1804198080442152},{"$f":"'[1]REAL IMAE(M)'!AK269","v":6.9332133997594454},{"$f":"'[1]REAL IMAE(M)'!AL269","v":2.835699115048965},{"$f":"'[1]REAL IMAE(M)'!AM269","v":9.1057613761952751},null,null,{"$f":"'[1]EXT ITCER(M)'!C269","v":75.700711979621801},{"$f":"'[1]EXT ITCER(M)'!D269","v":89.343194090428483},{"$f":"'[1]EXT ITCER(M)'!E269","v":64.734233963565501},{"$f":"'[1]EXT ITCER(M)'!F269","v":74.938294662436078},{"$f":"'[1]EXT ITCER(M)'!G269","v":97.092415882963692},{"$f":"'[1]EXT ITCER(M)'!H269","v":91.446059646378899},{"$f":"'[1]EXT ITCER(M)'!I269","v":94.653154394207391},null,null,{"$f":"'[1]EXT TC(M)'!J269","v":-1.3129907804244254},{"$f":"'[1]EXT TC(M)'!K269","v":0},{"$f":"'[1]EXT TC(M)'!L269","v":-2.3143750000000018},{"$f":"'[1]EXT TC(M)'!M269","v":-0.24655420091285735},{"$f":"'[1]EXT TC(M)'!N269","v":4.989431298042116},{"$f":"'[1]EXT TC(M)'!O269","v":3.1683431319135575},{"$f":"'[1]EXT TC(M)'!P269","v":0},null,null,{"$f":"'[1]EXT RIN(M)'!C269","v":4808.17325514},{"$f":"'[1]EXT RIN(M)'!D269","v":2760.9},{"$f":"'[1]EXT RIN(M)'!E269","v":6398.5615988},{"$f":"'[1]EXT RIN(M)'!F269","v":2709.512438380465},{"$f":"'[1]EXT RIN(M)'!G269","v":1584.1},{"$f":"'[1]EXT RIN(M)'!H269","v":3032.9759568159898},{"$f":"'[1]EXT RIN(M)'!I269","v":1914.01566071},null,null,{"$f":"'[1]EXT RIN(M)'!P269","v":65.038266127030411},{"$f":"'[1]EXT RIN(M)'!Q269","v":101.89319317006704},{"$f":"'[1]EXT RIN(M)'!R269","v":109.5841152908074},{"$f":"'[1]EXT RIN(M)'!S269","v":77.056359900959066},{"$f":"'[1]EXT RIN(M)'!T269","v":107.80874250008634},{"$f":"'[1]EXT RIN(M)'!U269","v":62.302786062016544},{"$f":"'[1]EXT RIN(M)'!V269","v":152.47030115650782},null,null,{"$f":"+'[1]MONE(M)CAPARD'!AE269","v":1.8984811628739142},{"$f":"'[1]MONE(M)CAPARD'!AF269","v":-4.7130662085616075},{"$f":"'[1]MONE(M)CAPARD'!AG269","v":-2.2074870099196975},{"$f":"'[1]MONE(M)CAPARD'!AH269","v":0.18398657154846867},{"$f":"'[1]MONE(M)CAPARD'!AI269","v":-1.2556468776968459},{"$f":"'[1]MONE(M)CAPARD'!AJ269","v":-0.97585103094213699},{"$f":"'[1]MONE(M)CAPARD'!AK269","v":-3.0694013303769596},null,null,{"$f":"'[1]MONE(M)CAPARD'!AL269","v":0.91499999999999992},{"$f":"'[1]MONE(M)CAPARD'!AM269","v":1.79},{"$f":"'[1]MONE(M)CAPARD'!AN269","v":2.69},{"$f":"'[1]MONE(M)CAPARD'!AO269","v":3.53},{"$f":"'[1]MONE(M)CAPARD'!AP269","v":3.11},{"$f":"'[1]MONE(M)CAPARD'!AQ269","v":2.9},{"$f":"'[1]MONE(M)CAPARD'!AR269","v":2.06},null,null,{"$f":"'[1]MONE(M)CAPARD'!J269","v":11.960065456718526},{"$f":"'[1]MONE(M)CAPARD'!K269","v":-1.0060590584083899},{"$f":"'[1]MONE(M)CAPARD'!L269","v":5.4115021256495037},{"$f":"'[1]MONE(M)CAPARD'!M269","v":9.8792110784725136},{"$f":"'[1]MONE(M)CAPARD'!N269","v":5.0899483651147257},{"$f":"'[1]MONE(M)CAPARD'!O269","v":5.8042625602481683},{"$f":"'[1]MONE(M)CAPARD'!P269","v":0.30218033998519817},null,null,{"$f":"'[1]MONE(M)CAPARD'!Q269","v":9.5399999999999991},{"$f":"'[1]MONE(M)CAPARD'!R269","v":5.75},{"$f":"'[1]MONE(M)CAPARD'!S269","v":6.47},{"$f":"'[1]MONE(M)CAPARD'!T269","v":9.16},{"$f":"'[1]MONE(M)CAPARD'!U269","v":9.61},{"$f":"'[1]MONE(M)CAPARD'!V269","v":7.52},{"$f":"'[1]MONE(M)CAPARD'!W269","v":5.61},null,null,{"$f":"'[1]MONE(M)CAPARD'!AS269","v":5},{"$f":"'[1]MONE(M)CAPARD'!AT269","v":"n.a."},{"$f":"'[1]MONE(M)CAPARD'!AU269","v":5},{"$f":"'[1]MONE(M)CAPARD'!AV269","v":4.5},{"$f":"'[1]MONE(M)CAPARD'!AW269","v":"n.a."},{"$f":"'[1]MONE(M)CAPARD'!AX269","v":6.75},{"$f":"'[1]MONE(M)CAPARD'!AY269","v":"n.a."},null,null,{"$f":"+'Datos_Regional (M)'!CF262","v":12.781213977722183},{"$f":"+'Datos_Regional (M)'!CG262","v":1.8123478437119145},{"$f":"+'Datos_Regional (M)'!CH262","v":8.4466687554852093},{"$f":"+'Datos_Regional (M)'!CI262","v":8.130804879939312},{"$f":"+'Datos_Regional (M)'!CJ262","v":9.2512799660430911},{"$f":"+'Datos_Regional (M)'!CK262","v":15.268418555126217},{"$f":"+'Datos_Regional (M)'!CL262","v":16.596655138466907},null,null,832.83760365249611,430.03166666666658,824.25,311.76668287000001,339.16984624568892,660.52499999999998,1248.7678185,3398.5807994348506,4647.348617934852,null,null,1276.9328824716674,805.39,1330.0166666666667,703.30198733583336,522.29166666666663,1385.9083333333335,1980.2181778333331,6023.8415364741677,8004.0597143075001,null,null,-2625.2607370393157,-3356.7110963726482,null,null,{"$f":"'[1]EXT Comercio(M)'!C269","v":831.36264273999768},{"$f":"'[1]EXT Comercio(M)'!D269","v":420.95000000000027},{"$f":"'[1]EXT Comercio(M)'!E269","v":851.69999999999982},{"$f":"'[1]EXT Comercio(M)'!F269","v":244.10102769000014},{"$f":"'[1]EXT Comercio(M)'!G269","v":366.16835126000001},{"$f":"'[1]EXT Comercio(M)'!H269","v":696.9},{"$f":"'[1]EXT Comercio(M)'!I269","v":1507.7044960000001},{"$f":"'[1]EXT Comercio(M)'!K269","v":3411.1820216899978},{"$f":"'[1]EXT Comercio(M)'!L269","v":4918.8865176899926},null,null,{"$f":"'[1]EXT Comercio(M)'!AG269","v":1458.828278669992},{"$f":"'[1]EXT Comercio(M)'!AH269","v":857.29999999999927},{"$f":"'[1]EXT Comercio(M)'!AI269","v":1503.4},{"$f":"'[1]EXT Comercio(M)'!AJ269","v":761.66767481999977},{"$f":"'[1]EXT Comercio(M)'!AK269","v":556.20000000000005},{"$f":"'[1]EXT Comercio(M)'!AL269","v":1494.8000000000004},{"$f":"'[1]EXT Comercio(M)'!AM269","v":2455.9448689999995},{"$f":"'[1]EXT Comercio(M)'!AO269","v":6632.1959534899943},{"$f":"'[1]EXT Comercio(M)'!AP269","v":9088.1408224899933},null,null,{"$f":"'[1]EXT Comercio(M)'!$BS269","v":-3221.0139317999929},{"$f":"'[1]EXT Comercio(M)'!$BT269","v":-4169.2543047999934}]
[null,null,"Setiembre",{"$f":"'[1]REAL IPC(M)'!AD270","v":5.1747094320407028},{"$f":"'[1]REAL IPC(M)'!AE270","v":6.2209474829393789},{"$f":"'[1]REAL IPC(M)'!AF270","v":7.2493156240494834},{"$f":"'[1]REAL IPC(M)'!AG270","v":6.8283917340521194},{"$f":"'[1]REAL IPC(M)'!AH270","v":9.4958588830837414},{"$f":"'[1]REAL IPC(M)'!AI270","v":9.5674438332368332},{"$f":"'[1]REAL IPC(M)'!AJ270","v":6.0700389105058452},null,null,{"$f":"'[1]REAL IMAE(M)'!AG270","v":3.2908038484536171},{"$f":"'[1]REAL IMAE(M)'!AH270","v":3.6373387921424456},{"$f":"'[1]REAL IMAE(M)'!AI270","v":"n.d."},{"$f":"'[1]REAL IMAE(M)'!AJ270","v":7.7705142602636723},{"$f":"'[1]REAL IMAE(M)'!AK270","v":6.5315143607043105},{"$f":"'[1]REAL IMAE(M)'!AL270","v":2.6115828642400301},{"$f":"'[1]REAL IMAE(M)'!AM270","v":9.3659048618731777},null,null,{"$f":"'[1]EXT ITCER(M)'!C270","v":76.739999685893551},{"$f":"'[1]EXT ITCER(M)'!D270","v":89.720467926213672},{"$f":"'[1]EXT ITCER(M)'!E270","v":65.083470477288188},{"$f":"'[1]EXT ITCER(M)'!F270","v":75.51148168916805},{"$f":"'[1]EXT ITCER(M)'!G270","v":97.312214248703881},{"$f":"'[1]EXT ITCER(M)'!H270","v":91.589714390379697},{"$f":"'[1]EXT ITCER(M)'!I270","v":94.101379923922195},null,null,{"$f":"'[1]EXT TC(M)'!J270","v":8.6986594296586284E-2},{"$f":"'[1]EXT TC(M)'!K270","v":0},{"$f":"'[1]EXT TC(M)'!L270","v":-2.8063741898372121},{"$f":"'[1]EXT TC(M)'!M270","v":0.15345468809814744},{"$f":"'[1]EXT TC(M)'!N270","v":4.8885737246379186},{"$f":"'[1]EXT TC(M)'!O270","v":3.1388655308817031},{"$f":"'[1]EXT TC(M)'!P270","v":0},null,null,{"$f":"'[1]EXT RIN(M)'!C270","v":4762.9319688599999},{"$f":"'[1]EXT RIN(M)'!D270","v":2662},{"$f":"'[1]EXT RIN(M)'!E270","v":6303},{"$f":"'[1]EXT RIN(M)'!F270","v":2534.7089758304983},{"$f":"'[1]EXT RIN(M)'!G270","v":1534.4},{"$f":"'[1]EXT RIN(M)'!H270","v":2912.3201727212545},{"$f":"'[1]EXT RIN(M)'!I270","v":1798.1285319399999},null,null,{"$f":"'[1]EXT RIN(M)'!P270","v":65.49881517605229},{"$f":"'[1]EXT RIN(M)'!Q270","v":101.5097574443031},{"$f":"'[1]EXT RIN(M)'!R270","v":108.9735787298425},{"$f":"'[1]EXT RIN(M)'!S270","v":74.856741592929424},{"$f":"'[1]EXT RIN(M)'!T270","v":108.33218624357261},{"$f":"'[1]EXT RIN(M)'!U270","v":57.733585596091885},{"$f":"'[1]EXT RIN(M)'!V270","v":153.46975087639581},null,null,{"$f":"+'[1]MONE(M)CAPARD'!AE270","v":2.4485834872910557},{"$f":"'[1]MONE(M)CAPARD'!AF270","v":-4.1620297951582925},{"$f":"'[1]MONE(M)CAPARD'!AG270","v":-1.8734997163925176},{"$f":"'[1]MONE(M)CAPARD'!AH270","v":0.93758620689654426},{"$f":"'[1]MONE(M)CAPARD'!AI270","v":-3.0390597351799333},{"$f":"'[1]MONE(M)CAPARD'!AJ270","v":-0.46313376992637451},{"$f":"'[1]MONE(M)CAPARD'!AK270","v":-3.7145634629493847},null,null,{"$f":"'[1]MONE(M)CAPARD'!AL270","v":0.93499999999999994},{"$f":"'[1]MONE(M)CAPARD'!AM270","v":1.8},{"$f":"'[1]MONE(M)CAPARD'!AN270","v":2.66},{"$f":"'[1]MONE(M)CAPARD'!AO270","v":3.63},{"$f":"'[1]MONE(M)CAPARD'!AP270","v":3.83},{"$f":"'[1]MONE(M)CAPARD'!AQ270","v":2.81},{"$f":"'[1]MONE(M)CAPARD'!AR270","v":2.13},null,null,{"$f":"'[1]MONE(M)CAPARD'!J270","v":12.108700501034694},{"$f":"'[1]MONE(M)CAPARD'!K270","v":-0.31156517690875823},{"$f":"'[1]MONE(M)CAPARD'!L270","v":5.8375051994705931},{"$f":"'[1]MONE(M)CAPARD'!M270","v":10.700908326324637},{"$f":"'[1]MONE(M)CAPARD'!N270","v":7.3735605046797152},{"$f":"'[1]MONE(M)CAPARD'!O270","v":6.5736280000522385},{"$f":"'[1]MONE(M)CAPARD'!P270","v":-0.54684519442407253},null,null,{"$f":"'[1]MONE(M)CAPARD'!Q270","v":9.5399999999999991},{"$f":"'[1]MONE(M)CAPARD'!R270","v":5.89},{"$f":"'[1]MONE(M)CAPARD'!S270","v":6.419999999999999},{"$f":"'[1]MONE(M)CAPARD'!T270","v":9.17},{"$f":"'[1]MONE(M)CAPARD'!U270","v":9.81},{"$f":"'[1]MONE(M)CAPARD'!V270","v":7.04},{"$f":"'[1]MONE(M)CAPARD'!W270","v":5.49},null,null,{"$f":"'[1]MONE(M)CAPARD'!AS270","v":5},{"$f":"'[1]MONE(M)CAPARD'!AT270","v":"n.a."},{"$f":"'[1]MONE(M)CAPARD'!AU270","v":5.5},{"$f":"'[1]MONE(M)CAPARD'!AV270","v":5},{"$f":"'[1]MONE(M)CAPARD'!AW270","v":"n.a."},{"$f":"'[1]MONE(M)CAPARD'!AX270","v":6.75},{"$f":"'[1]MONE(M)CAPARD'!AY270","v":"n.a."},null,null,{"$f":"+'Datos_Regional (M)'!CF263","v":13.89467928104402},{"$f":"+'Datos_Regional (M)'!CG263","v":2.8594605632814352},{"$f":"+'Datos_Regional (M)'!CH263","v":10.624365865542229},{"$f":"+'Datos_Regional (M)'!CI263","v":8.7335855180680646},{"$f":"+'Datos_Regional (M)'!CJ263","v":11.766833792486974},{"$f":"+'Datos_Regional (M)'!CK263","v":15.697645493323131},{"$f":"+'Datos_Regional (M)'!CL263","v":16.385830525640532},null,null,843.47109693999573,436.09,841.80000000000018,315.9670704483334,344.22964498568894,673.38333333333321,1287.8131789166666,3454.9411457073497,4742.7543246240175,null,null,1293.4136240583346,815.34666666666669,1353.875,716.89055940333321,529.25,1398.9583333333337,2027.1554517499999,6107.7341834616682,8134.8896352116672,null,null,-2652.7930377543166,-3392.1353105876501,null,null,{"$f":"'[1]EXT Comercio(M)'!C270","v":890.4494943299942},{"$f":"'[1]EXT Comercio(M)'!D270","v":438.77},{"$f":"'[1]EXT Comercio(M)'!E270","v":818.49999999999909},{"$f":"'[1]EXT Comercio(M)'!F270","v":246.92466401000001},{"$f":"'[1]EXT Comercio(M)'!G270","v":354.31758488000003},{"$f":"'[1]EXT Comercio(M)'!H270","v":718.59999999999991},{"$f":"'[1]EXT Comercio(M)'!I270","v":1662.122586},{"$f":"'[1]EXT Comercio(M)'!K270","v":3467.5617432199979},{"$f":"'[1]EXT Comercio(M)'!L270","v":5129.6843292199919},null,null,{"$f":"'[1]EXT Comercio(M)'!AG270","v":1348.2510823000073},{"$f":"'[1]EXT Comercio(M)'!AH270","v":835.13000000000011},{"$f":"'[1]EXT Comercio(M)'!AI270","v":1418.5000000000009},{"$f":"'[1]EXT Comercio(M)'!AJ270","v":742.28266302999964},{"$f":"'[1]EXT Comercio(M)'!AK270","v":527.20000000000016},{"$f":"'[1]EXT Comercio(M)'!AL270","v":1442.3000000000011},{"$f":"'[1]EXT Comercio(M)'!AM270","v":2384.5169730000007},{"$f":"'[1]EXT Comercio(M)'!AO270","v":6313.6637453300063},{"$f":"'[1]EXT Comercio(M)'!AP270","v":8698.1807183300116},null,null,{"$f":"'[1]EXT Comercio(M)'!$BS270","v":-2846.1020021100194},{"$f":"'[1]EXT Comercio(M)'!$BT270","v":-3568.4963891100197}]
[null,null,"Octubre",{"$f":"'[1]REAL IPC(M)'!AD271","v":4.9263243526578879},{"$f":"'[1]REAL IPC(M)'!AE271","v":5.4431125957948439},{"$f":"'[1]REAL IPC(M)'!AF271","v":6.646495209278859},{"$f":"'[1]REAL IPC(M)'!AG271","v":5.919003115264803},{"$f":"'[1]REAL IPC(M)'!AH271","v":7.6586118715072331},{"$f":"'[1]REAL IPC(M)'!AI271","v":8.8636453570298706},{"$f":"'[1]REAL IPC(M)'!AJ271","v":6.138306138306131},null,null,{"$f":"'[1]REAL IMAE(M)'!AG271","v":3.5151265369946958},{"$f":"'[1]REAL IMAE(M)'!AH271","v":3.3364556617890506},{"$f":"'[1]REAL IMAE(M)'!AI271","v":"n.d."},{"$f":"'[1]REAL IMAE(M)'!AJ271","v":6.8994253833464612},{"$f":"'[1]REAL IMAE(M)'!AK271","v":6.3673966081162989},{"$f":"'[1]REAL IMAE(M)'!AL271","v":2.349380616550226},{"$f":"'[1]REAL IMAE(M)'!AM271","v":9.6438537577448731},null,null,{"$f":"'[1]EXT ITCER(M)'!C271","v":77.008851659869549},{"$f":"'[1]EXT ITCER(M)'!D271","v":89.60214582811011},{"$f":"'[1]EXT ITCER(M)'!E271","v":64.890979406348549},{"$f":"'[1]EXT ITCER(M)'!F271","v":75.57227356606812},{"$f":"'[1]EXT ITCER(M)'!G271","v":96.903243017243938},{"$f":"'[1]EXT ITCER(M)'!H271","v":91.74539083670183},{"$f":"'[1]EXT ITCER(M)'!I271","v":93.701040108889828},null,null,{"$f":"'[1]EXT TC(M)'!J271","v":0.88364161259004059},{"$f":"'[1]EXT TC(M)'!K271","v":0},{"$f":"'[1]EXT TC(M)'!L271","v":-2.668533118862499},{"$f":"'[1]EXT TC(M)'!M271","v":0.52573888938869717},{"$f":"'[1]EXT TC(M)'!N271","v":4.6225734360283779},{"$f":"'[1]EXT TC(M)'!O271","v":2.9888191542569484},{"$f":"'[1]EXT TC(M)'!P271","v":0},null,null,{"$f":"'[1]EXT RIN(M)'!C271","v":4732.9333521400004},{"$f":"'[1]EXT RIN(M)'!D271","v":2727.9},{"$f":"'[1]EXT RIN(M)'!E271","v":6574},{"$f":"'[1]EXT RIN(M)'!F271","v":2489.0699817320224},{"$f":"'[1]EXT RIN(M)'!G271","v":1572.6},{"$f":"'[1]EXT RIN(M)'!H271","v":2668.8},{"$f":"'[1]EXT RIN(M)'!I271","v":1707.8027485099999},null,null,{"$f":"'[1]EXT RIN(M)'!P271","v":64.075867816760365},{"$f":"'[1]EXT RIN(M)'!Q271","v":103.64082123924467},{"$f":"'[1]EXT RIN(M)'!R271","v":114.55608718729411},{"$f":"'[1]EXT RIN(M)'!S271","v":75.765494034988706},{"$f":"'[1]EXT RIN(M)'!T271","v":110.17350788143985},{"$f":"'[1]EXT RIN(M)'!U271","v":54.682753955892863},{"$f":"'[1]EXT RIN(M)'!V271","v":141.46422205234262},null,null,{"$f":"+'[1]MONE(M)CAPARD'!AE271","v":2.9293655965794372},{"$f":"'[1]MONE(M)CAPARD'!AF271","v":-3.5024692508386064},{"$f":"'[1]MONE(M)CAPARD'!AG271","v":-1.3188386608662648},{"$f":"'[1]MONE(M)CAPARD'!AH271","v":1.8042058823529359},{"$f":"'[1]MONE(M)CAPARD'!AI271","v":-0.46830638957958159},{"$f":"'[1]MONE(M)CAPARD'!AJ271","v":0.64884345977352187},{"$f":"'[1]MONE(M)CAPARD'!AK271","v":-3.5974816983894518},null,null,{"$f":"'[1]MONE(M)CAPARD'!AL271","v":0.99499999999999988},{"$f":"'[1]MONE(M)CAPARD'!AM271","v":1.75},{"$f":"'[1]MONE(M)CAPARD'!AN271","v":2.63},{"$f":"'[1]MONE(M)CAPARD'!AO271","v":3.52},{"$f":"'[1]MONE(M)CAPARD'!AP271","v":2.21},{"$f":"'[1]MONE(M)CAPARD'!AQ271","v":2.63},{"$f":"'[1]MONE(M)CAPARD'!AR271","v":2.3199999999999998},null,null,{"$f":"'[1]MONE(M)CAPARD'!J271","v":12.326435455674558},{"$f":"'[1]MONE(M)CAPARD'!K271","v":0.1867238166231901},{"$f":"'[1]MONE(M)CAPARD'!L271","v":6.4545063362965864},{"$f":"'[1]MONE(M)CAPARD'!M271","v":11.689117647058817},{"$f":"'[1]MONE(M)CAPARD'!N271","v":6.59667518186893},{"$f":"'[1]MONE(M)CAPARD'!O271","v":7.7862123899774112},{"$f":"'[1]MONE(M)CAPARD'!P271","v":-0.65792093704245258},null,null,{"$f":"'[1]MONE(M)CAPARD'!Q271","v":9.44},{"$f":"'[1]MONE(M)CAPARD'!R271","v":5.64},{"$f":"'[1]MONE(M)CAPARD'!S271","v":6.4},{"$f":"'[1]MONE(M)CAPARD'!T271","v":9.27},{"$f":"'[1]MONE(M)CAPARD'!U271","v":9.11},{"$f":"'[1]MONE(M)CAPARD'!V271","v":7.57},{"$f":"'[1]MONE(M)CAPARD'!W271","v":5.44},null,null,{"$f":"'[1]MONE(M)CAPARD'!AS271","v":5},{"$f":"'[1]MONE(M)CAPARD'!AT271","v":"n.a."},{"$f":"'[1]MONE(M)CAPARD'!AU271","v":5.5},{"$f":"'[1]MONE(M)CAPARD'!AV271","v":5},{"$f":"'[1]MONE(M)CAPARD'!AW271","v":"n.a."},{"$f":"'[1]MONE(M)CAPARD'!AX271","v":6.75},{"$f":"'[1]MONE(M)CAPARD'!AY271","v":"n.a."},null,null,{"$f":"+'Datos_Regional (M)'!CF264","v":13.893718866212602},{"$f":"+'Datos_Regional (M)'!CG264","v":3.6017647181054269},{"$f":"+'Datos_Regional (M)'!CH264","v":10.802643260211987},{"$f":"+'Datos_Regional (M)'!CI264","v":8.2261908174947163},{"$f":"+'Datos_Regional (M)'!CJ264","v":14.450218883538479},{"$f":"+'Datos_Regional (M)'!CK264","v":13.013982805232583},{"$f":"+'Datos_Regional (M)'!CL264","v":17.156721049757806},null,null,851.0692777758286,436.05833333333334,848.5,321.05195295000004,351.38399616235557,679.61666666666656,1304.3803661666668,3487.6802268881825,4792.0605930548509,null,null,1310.7421948991675,818.13583333333315,1370.6833333333334,728.23312786416648,536.17499999999984,1411.7500000000002,2064.8027996666665,6175.7194894300019,8240.522289096667,null,null,-2688.0392625418167,-3448.4616960418166,null,null,{"$f":"'[1]EXT Comercio(M)'!C271","v":868.86669881999478},{"$f":"'[1]EXT Comercio(M)'!D271","v":388.88000000000011},{"$f":"'[1]EXT Comercio(M)'!E271","v":732.40000000000055},{"$f":"'[1]EXT Comercio(M)'!F271","v":237.69447918000014},{"$f":"'[1]EXT Comercio(M)'!G271","v":359.55221411999997},{"$f":"'[1]EXT Comercio(M)'!H271","v":677.7},{"$f":"'[1]EXT Comercio(M)'!I271","v":1679.44865},{"$f":"'[1]EXT Comercio(M)'!K271","v":3265.0933921199903},{"$f":"'[1]EXT Comercio(M)'!L271","v":4944.5420421200033},null,null,{"$f":"'[1]EXT Comercio(M)'!AG271","v":1401.3684029799954},{"$f":"'[1]EXT Comercio(M)'!AH271","v":739.47999999999956},{"$f":"'[1]EXT Comercio(M)'!AI271","v":1400.6999999999994},{"$f":"'[1]EXT Comercio(M)'!AJ271","v":739.99123202999999},{"$f":"'[1]EXT Comercio(M)'!AK271","v":582.59999999999968},{"$f":"'[1]EXT Comercio(M)'!AL271","v":1465.4999999999995},{"$f":"'[1]EXT Comercio(M)'!AM271","v":2304.0921679999988},{"$f":"'[1]EXT Comercio(M)'!AO271","v":6329.6396350099894},{"$f":"'[1]EXT Comercio(M)'!AP271","v":8633.731803009985},null,null,{"$f":"'[1]EXT Comercio(M)'!$BS271","v":-3064.5462428899991},{"$f":"'[1]EXT Comercio(M)'!$BT271","v":-3689.1897608899963}]
[null,null,"Noviembre",{"$f":"'[1]REAL IPC(M)'!AD272","v":4.5554336758922034},{"$f":"'[1]REAL IPC(M)'!AE272","v":5.1251956181533744},{"$f":"'[1]REAL IPC(M)'!AF272","v":6.0548438751000768},{"$f":"'[1]REAL IPC(M)'!AG272","v":5.4280670785525205},{"$f":"'[1]REAL IPC(M)'!AH272","v":7.3423765116738595},{"$f":"'[1]REAL IPC(M)'!AI272","v":8.6274946245807129},{"$f":"'[1]REAL IPC(M)'!AJ272","v":6.8217054263566004},null,null,{"$f":"'[1]REAL IMAE(M)'!AG272","v":3.6752113354339437},{"$f":"'[1]REAL IMAE(M)'!AH272","v":3.4813052639858824},{"$f":"'[1]REAL IMAE(M)'!AI272","v":"n.d."},{"$f":"'[1]REAL IMAE(M)'!AJ272","v":5.9240681698829274},{"$f":"'[1]REAL IMAE(M)'!AK272","v":6.3799787360142179},{"$f":"'[1]REAL IMAE(M)'!AL272","v":2.207603684228014},{"$f":"'[1]REAL IMAE(M)'!AM272","v":9.786476868327405},null,null,{"$f":"'[1]EXT ITCER(M)'!C272","v":75.613756125958943},{"$f":"'[1]EXT ITCER(M)'!D272","v":89.393287292809134},{"$f":"'[1]EXT ITCER(M)'!E272","v":64.45567527506077},{"$f":"'[1]EXT ITCER(M)'!F272","v":75.182487613000347},{"$f":"'[1]EXT ITCER(M)'!G272","v":95.776286020047465},{"$f":"'[1]EXT ITCER(M)'!H272","v":91.921189784334842},{"$f":"'[1]EXT ITCER(M)'!I272","v":92.80671163467359},null,null,{"$f":"'[1]EXT TC(M)'!J272","v":-1.0210939363062814},{"$f":"'[1]EXT TC(M)'!K272","v":0},{"$f":"'[1]EXT TC(M)'!L272","v":-2.3887014048166941},{"$f":"'[1]EXT TC(M)'!M272","v":0.47017961847726591},{"$f":"'[1]EXT TC(M)'!N272","v":4.6866747423808697},{"$f":"'[1]EXT TC(M)'!O272","v":3.2940398810179654},{"$f":"'[1]EXT TC(M)'!P272","v":0},null,null,{"$f":"'[1]EXT RIN(M)'!C272","v":4722.8858149099997},{"$f":"'[1]EXT RIN(M)'!D272","v":2681.7},{"$f":"'[1]EXT RIN(M)'!E272","v":6037.6159582700002},{"$f":"'[1]EXT RIN(M)'!F272","v":2471.2306353119156},{"$f":"'[1]EXT RIN(M)'!G272","v":1668},{"$f":"'[1]EXT RIN(M)'!H272","v":3039},{"$f":"'[1]EXT RIN(M)'!I272","v":2212.23838329},null,null,{"$f":"'[1]EXT RIN(M)'!P272","v":62.496292622784253},{"$f":"'[1]EXT RIN(M)'!Q272","v":103.52567121633494},{"$f":"'[1]EXT RIN(M)'!R272","v":111.24747098830916},{"$f":"'[1]EXT RIN(M)'!S272","v":75.076594046062482},{"$f":"'[1]EXT RIN(M)'!T272","v":110.12105579351905},{"$f":"'[1]EXT RIN(M)'!U272","v":58.210991233043096},{"$f":"'[1]EXT RIN(M)'!V272","v":176.93706333432303},null,null,{"$f":"+'[1]MONE(M)CAPARD'!AE272","v":3.2944881035886566},{"$f":"'[1]MONE(M)CAPARD'!AF272","v":-3.2106438407145608},{"$f":"'[1]MONE(M)CAPARD'!AG272","v":-0.75889402661130212},{"$f":"'[1]MONE(M)CAPARD'!AH272","v":2.2592967768940926},{"$f":"'[1]MONE(M)CAPARD'!AI272","v":0.42556883894799524},{"$f":"'[1]MONE(M)CAPARD'!AJ272","v":0.73876818957554435},{"$f":"'[1]MONE(M)CAPARD'!AK272","v":-4.3920899854862219},null,null,{"$f":"'[1]MONE(M)CAPARD'!AL272","v":1},{"$f":"'[1]MONE(M)CAPARD'!AM272","v":1.75},{"$f":"'[1]MONE(M)CAPARD'!AN272","v":2.65},{"$f":"'[1]MONE(M)CAPARD'!AO272","v":3.55},{"$f":"'[1]MONE(M)CAPARD'!AP272","v":2.8258079129184899},{"$f":"'[1]MONE(M)CAPARD'!AQ272","v":2.62},{"$f":"'[1]MONE(M)CAPARD'!AR272","v":2.13},null,null,{"$f":"'[1]MONE(M)CAPARD'!J272","v":12.657942164089887},{"$f":"'[1]MONE(M)CAPARD'!K272","v":0.39458131745440084},{"$f":"'[1]MONE(M)CAPARD'!L272","v":7.0672454468245771},{"$f":"'[1]MONE(M)CAPARD'!M272","v":12.133327752197566},{"$f":"'[1]MONE(M)CAPARD'!N272","v":6.3868409789572977},{"$f":"'[1]MONE(M)CAPARD'!O272","v":7.5786571382052275},{"$f":"'[1]MONE(M)CAPARD'!P272","v":-1.4151669085631455},null,null,{"$f":"'[1]MONE(M)CAPARD'!Q272","v":10.27},{"$f":"'[1]MONE(M)CAPARD'!R272","v":5.54},{"$f":"'[1]MONE(M)CAPARD'!S272","v":6.36},{"$f":"'[1]MONE(M)CAPARD'!T272","v":9.18},{"$f":"'[1]MONE(M)CAPARD'!U272","v":9.4621816751736798},{"$f":"'[1]MONE(M)CAPARD'!V272","v":6.72},{"$f":"'[1]MONE(M)CAPARD'!W272","v":5.31},null,null,{"$f":"'[1]MONE(M)CAPARD'!AS272","v":5},{"$f":"'[1]MONE(M)CAPARD'!AT272","v":"n.a."},{"$f":"'[1]MONE(M)CAPARD'!AU272","v":5.5},{"$f":"'[1]MONE(M)CAPARD'!AV272","v":5.5},{"$f":"'[1]MONE(M)CAPARD'!AW272","v":"n.a."},{"$f":"'[1]MONE(M)CAPARD'!AX272","v":6.75},{"$f":"'[1]MONE(M)CAPARD'!AY272","v":"n.a."},null,null,{"$f":"+'Datos_Regional (M)'!CF265","v":13.839861215734906},{"$f":"+'Datos_Regional (M)'!CG265","v":3.6167541177863027},{"$f":"+'Datos_Regional (M)'!CH265","v":11.960756174166033},{"$f":"+'Datos_Regional (M)'!CI265","v":9.3952886367667521},{"$f":"+'Datos_Regional (M)'!CJ265","v":17.048666835840699},{"$f":"+'Datos_Regional (M)'!CK265","v":12.902369114453194},{"$f":"+'Datos_Regional (M)'!CL265","v":17.212504679816565},null,null,860.38952883332843,438.45333333333332,860.77499999999998,325.97087066833336,355.43129956818888,686.98333333333323,1323.5688861666667,3528.0033657365152,4851.5722519031842,null,null,1339.5907155408338,822.05916666666656,1382.5083333333332,740.19850260833334,544.28333333333319,1424.5916666666669,2094.8864274166667,6253.2317181491671,8348.1181455658316,null,null,-2725.2283524126501,-3496.5458936626505,null,null,{"$f":"'[1]EXT Comercio(M)'!C272","v":903.3679762799984},{"$f":"'[1]EXT Comercio(M)'!D272","v":388.77999999999975},{"$f":"'[1]EXT Comercio(M)'!E272","v":790},{"$f":"'[1]EXT Comercio(M)'!F272","v":265.41884673999994},{"$f":"'[1]EXT Comercio(M)'!G272","v":341.46764086999997},{"$f":"'[1]EXT Comercio(M)'!H272","v":680.7},{"$f":"'[1]EXT Comercio(M)'!I272","v":1483.8354919999999},{"$f":"'[1]EXT Comercio(M)'!K272","v":3369.7344638899958},{"$f":"'[1]EXT Comercio(M)'!L272","v":4853.5699558899942},null,null,{"$f":"'[1]EXT Comercio(M)'!AG272","v":1492.2079684499956},{"$f":"'[1]EXT Comercio(M)'!AH272","v":779.47999999999956},{"$f":"'[1]EXT Comercio(M)'!AI272","v":1412.2000000000003},{"$f":"'[1]EXT Comercio(M)'!AJ272","v":798.02178421999997},{"$f":"'[1]EXT Comercio(M)'!AK272","v":584.10000000000014},{"$f":"'[1]EXT Comercio(M)'!AL272","v":1521.2999999999993},{"$f":"'[1]EXT Comercio(M)'!AM272","v":2157.4017689999996},{"$f":"'[1]EXT Comercio(M)'!AO272","v":6587.309752669993},{"$f":"'[1]EXT Comercio(M)'!AP272","v":8744.7115216699895},null,null,{"$f":"'[1]EXT Comercio(M)'!$BS272","v":-3217.5752887799972},{"$f":"'[1]EXT Comercio(M)'!$BT272","v":-3891.1415657800026}]
[null,null,"Diciembre ",{"$f":"'[1]REAL IPC(M)'!AD273","v":4.7357486588112954},{"$f":"'[1]REAL IPC(M)'!AE273","v":5.0523842161950565},{"$f":"'[1]REAL IPC(M)'!AF273","v":6.2000000000000028},{"$f":"'[1]REAL IPC(M)'!AG273","v":5.6045895851721168},{"$f":"'[1]REAL IPC(M)'!AH273","v":7.9504211029485123},{"$f":"'[1]REAL IPC(M)'!AI273","v":7.760000000000006},{"$f":"'[1]REAL IPC(M)'!AJ273","v":6.3125481139337882},null,null,{"$f":"'[1]REAL IMAE(M)'!AG273","v":3.8273368126410197},{"$f":"'[1]REAL IMAE(M)'!AH273","v":3.5164298374477938},{"$f":"'[1]REAL IMAE(M)'!AI273","v":"n.d."},{"$f":"'[1]REAL IMAE(M)'!AJ273","v":4.1530048717206665},{"$f":"'[1]REAL IMAE(M)'!AK273","v":6.3728836242532934},{"$f":"'[1]REAL IMAE(M)'!AL273","v":2.2233886385964636},{"$f":"'[1]REAL IMAE(M)'!AM273","v":9.645304686052965},null,null,{"$f":"'[1]EXT ITCER(M)'!C273","v":74.3839690556959},{"$f":"'[1]EXT ITCER(M)'!D273","v":89.330713507936622},{"$f":"'[1]EXT ITCER(M)'!E273","v":64.031757591298572},{"$f":"'[1]EXT ITCER(M)'!F273","v":74.974568171395461},{"$f":"'[1]EXT ITCER(M)'!G273","v":94.702781786350997},{"$f":"'[1]EXT ITCER(M)'!H273","v":91.844199681807623},{"$f":"'[1]EXT ITCER(M)'!I273","v":92.376692000575147},null,null,{"$f":"'[1]EXT TC(M)'!J273","v":-0.26250807865708492},{"$f":"'[1]EXT TC(M)'!K273","v":0},{"$f":"'[1]EXT TC(M)'!L273","v":-2.1908586153016985},{"$f":"'[1]EXT TC(M)'!M273","v":0.60823425045015989},{"$f":"'[1]EXT TC(M)'!N273","v":4.7396440310127197},{"$f":"'[1]EXT TC(M)'!O273","v":3.3170998426682621},{"$f":"'[1]EXT TC(M)'!P273","v":0},null,null,{"$f":"'[1]EXT RIN(M)'!C273","v":4755.8138503999999},{"$f":"'[1]EXT RIN(M)'!D273","v":2502},{"$f":"'[1]EXT RIN(M)'!E273","v":6187.94},{"$f":"'[1]EXT RIN(M)'!F273","v":2820.6863589035297},{"$f":"'[1]EXT RIN(M)'!G273","v":1710.5},{"$f":"'[1]EXT RIN(M)'!H273","v":3637.9},{"$f":"'[1]EXT RIN(M)'!I273","v":2216.8830439200001},null,null,{"$f":"'[1]EXT RIN(M)'!P273","v":61.384967788271346},{"$f":"'[1]EXT RIN(M)'!Q273","v":99.094799503337811},{"$f":"'[1]EXT RIN(M)'!R273","v":101.20645566057867},{"$f":"'[1]EXT RIN(M)'!S273","v":77.83158027029944},{"$f":"'[1]EXT RIN(M)'!T273","v":107.69346015674539},{"$f":"'[1]EXT RIN(M)'!U273","v":62.353859680592464},{"$f":"'[1]EXT RIN(M)'!V273","v":181.20210990236697},null,null,{"$f":"+'[1]MONE(M)CAPARD'!AE273","v":3.116654421235272},{"$f":"'[1]MONE(M)CAPARD'!AF273","v":-2.9912545437599132},{"$f":"'[1]MONE(M)CAPARD'!AG273","v":-0.96045197740113286},{"$f":"'[1]MONE(M)CAPARD'!AH273","v":2.1925282072712005},{"$f":"'[1]MONE(M)CAPARD'!AI273","v":-1.1546142526802705},{"$f":"'[1]MONE(M)CAPARD'!AJ273","v":1.6982182628062301},{"$f":"'[1]MONE(M)CAPARD'!AK273","v":-3.9812309920347513},null,null,{"$f":"'[1]MONE(M)CAPARD'!AL273","v":1.335},{"$f":"'[1]MONE(M)CAPARD'!AM273","v":1.91},{"$f":"'[1]MONE(M)CAPARD'!AN273","v":2.67},{"$f":"'[1]MONE(M)CAPARD'!AO273","v":3.63},{"$f":"'[1]MONE(M)CAPARD'!AP273","v":3.0499790356984802},{"$f":"'[1]MONE(M)CAPARD'!AQ273","v":3.51},{"$f":"'[1]MONE(M)CAPARD'!AR273","v":2.08},null,null,{"$f":"'[1]MONE(M)CAPARD'!J273","v":12.54991873310383},{"$f":"'[1]MONE(M)CAPARD'!K273","v":0.35945474881162132},{"$f":"'[1]MONE(M)CAPARD'!L273","v":6.9397363465160051},{"$f":"'[1]MONE(M)CAPARD'!M273","v":11.832260760551602},{"$f":"'[1]MONE(M)CAPARD'!N273","v":9.8229053396360655},{"$f":"'[1]MONE(M)CAPARD'!O273","v":8.778767631774306},{"$f":"'[1]MONE(M)CAPARD'!P273","v":-0.35983345401882066},null,null,{"$f":"'[1]MONE(M)CAPARD'!Q273","v":10.33},{"$f":"'[1]MONE(M)CAPARD'!R273","v":5.43},{"$f":"'[1]MONE(M)CAPARD'!S273","v":6.29},{"$f":"'[1]MONE(M)CAPARD'!T273","v":8.93},{"$f":"'[1]MONE(M)CAPARD'!U273","v":8.4326140388319502},{"$f":"'[1]MONE(M)CAPARD'!V273","v":7.19},{"$f":"'[1]MONE(M)CAPARD'!W273","v":5.93},null,null,{"$f":"'[1]MONE(M)CAPARD'!AS273","v":5},{"$f":"'[1]MONE(M)CAPARD'!AT273","v":"n.a."},{"$f":"'[1]MONE(M)CAPARD'!AU273","v":5.5},{"$f":"'[1]MONE(M)CAPARD'!AV273","v":5.5},{"$f":"'[1]MONE(M)CAPARD'!AW273","v":"n.a."},{"$f":"'[1]MONE(M)CAPARD'!AX273","v":6.75},{"$f":"'[1]MONE(M)CAPARD'!AY273","v":"n.a."},null,null,{"$f":"+'Datos_Regional (M)'!CF266","v":13.035915987640134},{"$f":"+'Datos_Regional (M)'!CG266","v":4.6816072351016258},{"$f":"+'Datos_Regional (M)'!CH266","v":10.767210602795153},{"$f":"+'Datos_Regional (M)'!CI266","v":10.924792310914899},{"$f":"+'Datos_Regional (M)'!CJ266","v":15.700619726814047},{"$f":"+'Datos_Regional (M)'!CK266","v":12.568603972673609},{"$f":"+'Datos_Regional (M)'!CL266","v":16.510572406124837},null,null,868.8049639698279,442.34750000000003,866.75833333333333,329.98389427250004,358.62568957985553,696.82499999999993,1335.9675567500001,3563.3453811555169,4899.3129379055172,null,null,1352.4292401933344,830.37583333333339,1384.3916666666667,751.34773024833328,550.13333333333321,1441.8000000000002,2115.211804,6310.4778037750011,8425.6896077750007,null,null,-2747.1324226194847,-3526.3766698694849,null,null,{"$f":"'[1]EXT Comercio(M)'!C273","v":840.50898434799274},{"$f":"'[1]EXT Comercio(M)'!D273","v":425.63000000000011},{"$f":"'[1]EXT Comercio(M)'!E273","v":965.10000000000036},{"$f":"'[1]EXT Comercio(M)'!F273","v":337.14427480999984},{"$f":"'[1]EXT Comercio(M)'!G273","v":337.53268014000002},{"$f":"'[1]EXT Comercio(M)'!H273","v":663.6},{"$f":"'[1]EXT Comercio(M)'!I273","v":1078.8268310000001},{"$f":"'[1]EXT Comercio(M)'!K273","v":3569.5159392979986},{"$f":"'[1]EXT Comercio(M)'!L273","v":4648.342770297997},null,null,{"$f":"'[1]EXT Comercio(M)'!AG273","v":1362.0191197800073},{"$f":"'[1]EXT Comercio(M)'!AH273","v":857.03000000000065},{"$f":"'[1]EXT Comercio(M)'!AI273","v":1300.6000000000004},{"$f":"'[1]EXT Comercio(M)'!AJ273","v":776.32292321000023},{"$f":"'[1]EXT Comercio(M)'!AK273","v":535.39999999999964},{"$f":"'[1]EXT Comercio(M)'!AL273","v":1530.5000000000005},{"$f":"'[1]EXT Comercio(M)'!AM273","v":1908.5826620000007},{"$f":"'[1]EXT Comercio(M)'!AO273","v":6361.8720429900131},{"$f":"'[1]EXT Comercio(M)'!AP273","v":8270.4547049900139},null,null,{"$f":"'[1]EXT Comercio(M)'!$BS273","v":-2792.3561036920146},{"$f":"'[1]EXT Comercio(M)'!$BT273","v":-3622.1119346920095}]
[null,2012,"Enero",{"$f":"'[1]REAL IPC(M)'!AD274","v":4.2138538737067872},{"$f":"'[1]REAL IPC(M)'!AE274","v":4.7484674515909413},{"$f":"'[1]REAL IPC(M)'!AF274","v":5.4354294782781238},{"$f":"'[1]REAL IPC(M)'!AG274","v":5.3602811950790938},{"$f":"'[1]REAL IPC(M)'!AH274","v":8.2541404339734434},{"$f":"'[1]REAL IPC(M)'!AI274","v":6.9004787458380124},{"$f":"'[1]REAL IPC(M)'!AJ274","v":6.1162079510703444},null,null,{"$f":"'[1]REAL IMAE(M)'!AG274","v":4.0167724142955086},{"$f":"'[1]REAL IMAE(M)'!AH274","v":3.4257973946962563},{"$f":"'[1]REAL IMAE(M)'!AI274","v":"n.d."},{"$f":"'[1]REAL IMAE(M)'!AJ274","v":3.6167269818971866},{"$f":"'[1]REAL IMAE(M)'!AK274","v":6.1755736854530525},{"$f":"'[1]REAL IMAE(M)'!AL274","v":2.3028717715851044},{"$f":"'[1]REAL IMAE(M)'!AM274","v":11.354181274248582},null,null,{"$f":"'[1]EXT ITCER(M)'!C274","v":75.221288870797835},{"$f":"'[1]EXT ITCER(M)'!D274","v":89.423734072280112},{"$f":"'[1]EXT ITCER(M)'!E274","v":64.339763904469081},{"$f":"'[1]EXT ITCER(M)'!F274","v":75.454547660019671},{"$f":"'[1]EXT ITCER(M)'!G274","v":95.746169281699892},{"$f":"'[1]EXT ITCER(M)'!H274","v":92.58900049699281},{"$f":"'[1]EXT ITCER(M)'!I274","v":92.315240493511524},null,null,{"$f":"'[1]EXT TC(M)'!J274","v":0.4443404600495347},{"$f":"'[1]EXT TC(M)'!K274","v":0},{"$f":"'[1]EXT TC(M)'!L274","v":-1.8120906801007586},{"$f":"'[1]EXT TC(M)'!M274","v":1.019372637232101},{"$f":"'[1]EXT TC(M)'!N274","v":4.8008233099919071},{"$f":"'[1]EXT TC(M)'!O274","v":3.7704458360594524},{"$f":"'[1]EXT TC(M)'!P274","v":0},null,null,{"$f":"'[1]EXT RIN(M)'!C274","v":4646.3623359599997},{"$f":"'[1]EXT RIN(M)'!D274","v":2578.6999999999998},{"$f":"'[1]EXT RIN(M)'!E274","v":6185.7},{"$f":"'[1]EXT RIN(M)'!F274","v":2880.4390615127977},{"$f":"'[1]EXT RIN(M)'!G274","v":1624.8},{"$f":"'[1]EXT RIN(M)'!H274","v":3046.8},{"$f":"'[1]EXT RIN(M)'!I274","v":2082.7013444499999},null,null,{"$f":"'[1]EXT RIN(M)'!P274","v":59.756291335107846},{"$f":"'[1]EXT RIN(M)'!Q274","v":98.958417279328529},{"$f":"'[1]EXT RIN(M)'!R274","v":99.820789789363687},{"$f":"'[1]EXT RIN(M)'!S274","v":77.886682281179944},{"$f":"'[1]EXT RIN(M)'!T274","v":106.0529268895631},{"$f":"'[1]EXT RIN(M)'!U274","v":57.466687929524255},{"$f":"'[1]EXT RIN(M)'!V274","v":181.80623674379575},null,null,{"$f":"+'[1]MONE(M)CAPARD'!AE274","v":4.352728507469279},{"$f":"'[1]MONE(M)CAPARD'!AF274","v":-2.5665935903390711},{"$f":"'[1]MONE(M)CAPARD'!AG274","v":-0.22329256820320248},{"$f":"'[1]MONE(M)CAPARD'!AH274","v":2.4864386989157561},{"$f":"'[1]MONE(M)CAPARD'!AI274","v":-0.23517230035137776},{"$f":"'[1]MONE(M)CAPARD'!AJ274","v":3.1800804767624511},{"$f":"'[1]MONE(M)CAPARD'!AK274","v":-4.0580115273775288},null,null,{"$f":"'[1]MONE(M)CAPARD'!AL274","v":1.3484834265379795},{"$f":"'[1]MONE(M)CAPARD'!AM274","v":2.06},{"$f":"'[1]MONE(M)CAPARD'!AN274","v":2.64},{"$f":"'[1]MONE(M)CAPARD'!AO274","v":3.57},{"$f":"'[1]MONE(M)CAPARD'!AP274","v":2.7315146174798404},{"$f":"'[1]MONE(M)CAPARD'!AQ274","v":2.74},{"$f":"'[1]MONE(M)CAPARD'!AR274","v":1.81},null,null,{"$f":"'[1]MONE(M)CAPARD'!J274","v":13.468599043753953},{"$f":"'[1]MONE(M)CAPARD'!K274","v":0.80338411518809971},{"$f":"'[1]MONE(M)CAPARD'!L274","v":7.7057309501411053},{"$f":"'[1]MONE(M)CAPARD'!M274","v":12.120050041701409},{"$f":"'[1]MONE(M)CAPARD'!N274","v":6.6778725039674738},{"$f":"'[1]MONE(M)CAPARD'!O274","v":9.6159730758569726},{"$f":"'[1]MONE(M)CAPARD'!P274","v":0.33340057636886822},null,null,{"$f":"'[1]MONE(M)CAPARD'!Q274","v":10.89},{"$f":"'[1]MONE(M)CAPARD'!R274","v":5.59},{"$f":"'[1]MONE(M)CAPARD'!S274","v":6.2},{"$f":"'[1]MONE(M)CAPARD'!T274","v":8.91},{"$f":"'[1]MONE(M)CAPARD'!U274","v":9.8081726268401095},{"$f":"'[1]MONE(M)CAPARD'!V274","v":7.59},{"$f":"'[1]MONE(M)CAPARD'!W274","v":6.47},null,null,{"$f":"'[1]MONE(M)CAPARD'!AS274","v":5},{"$f":"'[1]MONE(M)CAPARD'!AT274","v":"n.a."},{"$f":"'[1]MONE(M)CAPARD'!AU274","v":5.5},{"$f":"'[1]MONE(M)CAPARD'!AV274","v":6},{"$f":"'[1]MONE(M)CAPARD'!AW274","v":"n.a."},{"$f":"'[1]MONE(M)CAPARD'!AX274","v":6.75},{"$f":"'[1]MONE(M)CAPARD'!AY274","v":"n.a."},null,null,{"$f":"+'Datos_Regional (M)'!CF267","v":14.173766041645086},{"$f":"+'Datos_Regional (M)'!CG267","v":4.9747994344418567},{"$f":"+'Datos_Regional (M)'!CH267","v":10.637370396312651},{"$f":"+'Datos_Regional (M)'!CI267","v":11.062361108234553},{"$f":"+'Datos_Regional (M)'!CJ267","v":17.660522635394017},{"$f":"+'Datos_Regional (M)'!CK267","v":13.253731988072248},{"$f":"+'Datos_Regional (M)'!CL267","v":12.955649532005697},null,null,883.16433071399467,445.68416666666661,865.00833333333333,329.80009541333334,365.22324316068881,704.30000000000007,1350.240045,3593.1801692880167,4943.4202142880176,null,null,1374.9807937641679,841.34416666666664,1396.7833333333331,759.62250331833332,552.09166666666658,1456.0833333333337,2121.8704113333333,6380.9057970825015,8502.7762084158348,null,null,-2787.7256277944848,-3559.3559941278186,null,null,{"$f":"'[1]EXT Comercio(M)'!C274","v":879.71694499999444},{"$f":"'[1]EXT Comercio(M)'!D274","v":448.69},{"$f":"'[1]EXT Comercio(M)'!E274","v":744.19999999999993},{"$f":"'[1]EXT Comercio(M)'!F274","v":342.56734488000001},{"$f":"'[1]EXT Comercio(M)'!G274","v":391.85987001000001},{"$f":"'[1]EXT Comercio(M)'!H274","v":585.20000000000005},{"$f":"'[1]EXT Comercio(M)'!I274","v":1036.890944},{"$f":"'[1]EXT Comercio(M)'!K274","v":3392.2341598899948},{"$f":"'[1]EXT Comercio(M)'!L274","v":4429.1251038899945},null,null,{"$f":"'[1]EXT Comercio(M)'!AG274","v":1472.7880047800049},{"$f":"'[1]EXT Comercio(M)'!AH274","v":820.68},{"$f":"'[1]EXT Comercio(M)'!AI274","v":1340.6000000000001},{"$f":"'[1]EXT Comercio(M)'!AJ274","v":740.20154291999995},{"$f":"'[1]EXT Comercio(M)'!AK274","v":506.20000000000005},{"$f":"'[1]EXT Comercio(M)'!AL274","v":1327.5999999999997},{"$f":"'[1]EXT Comercio(M)'!AM274","v":1876.4096279999999},{"$f":"'[1]EXT Comercio(M)'!AO274","v":6208.0695477000045},{"$f":"'[1]EXT Comercio(M)'!AP274","v":8084.4791757000039},null,null,{"$f":"'[1]EXT Comercio(M)'!$BS274","v":-2815.8353878100102},{"$f":"'[1]EXT Comercio(M)'!$BT274","v":-3655.3540718100103}]
[null,null,"Febrero",{"$f":"'[1]REAL IPC(M)'!AD275","v":4.0533296465354844},{"$f":"'[1]REAL IPC(M)'!AE275","v":4.8951048951049012},{"$f":"'[1]REAL IPC(M)'!AF275","v":5.1683402244536323},{"$f":"'[1]REAL IPC(M)'!AG275","v":5.6282722513089034},{"$f":"'[1]REAL IPC(M)'!AH275","v":8.8085488426911773},{"$f":"'[1]REAL IPC(M)'!AI275","v":6.0013078146807084},{"$f":"'[1]REAL IPC(M)'!AJ275","v":6.3975628332063907},null,null,{"$f":"'[1]REAL IMAE(M)'!AG275","v":4.133116318385647},{"$f":"'[1]REAL IMAE(M)'!AH275","v":3.5475777106545565},{"$f":"'[1]REAL IMAE(M)'!AI275","v":"n.d."},{"$f":"'[1]REAL IMAE(M)'!AJ275","v":3.840149938883076},{"$f":"'[1]REAL IMAE(M)'!AK275","v":5.7153598996052306},{"$f":"'[1]REAL IMAE(M)'!AL275","v":2.5354619399018055},{"$f":"'[1]REAL IMAE(M)'!AM275","v":10.763616205478826},null,null,{"$f":"'[1]EXT ITCER(M)'!C275","v":75.482778810163367},{"$f":"'[1]EXT ITCER(M)'!D275","v":89.52638929211885},{"$f":"'[1]EXT ITCER(M)'!E275","v":64.101193979942096},{"$f":"'[1]EXT ITCER(M)'!F275","v":75.362533321626742},{"$f":"'[1]EXT ITCER(M)'!G275","v":95.475163930391872},{"$f":"'[1]EXT ITCER(M)'!H275","v":92.871860211800481},{"$f":"'[1]EXT ITCER(M)'!I275","v":92.124353939462011},null,null,{"$f":"'[1]EXT TC(M)'!J275","v":1.5791405954741329},{"$f":"'[1]EXT TC(M)'!K275","v":0},{"$f":"'[1]EXT TC(M)'!L275","v":-0.28176676486589108},{"$f":"'[1]EXT TC(M)'!M275","v":1.4173730171731007},{"$f":"'[1]EXT TC(M)'!N275","v":4.8225191312483089},{"$f":"'[1]EXT TC(M)'!O275","v":3.4945093495200372},{"$f":"'[1]EXT TC(M)'!P275","v":0},null,null,{"$f":"'[1]EXT RIN(M)'!C275","v":4708.1602812800002},{"$f":"'[1]EXT RIN(M)'!D275","v":2616.6999999999998},{"$f":"'[1]EXT RIN(M)'!E275","v":6126.9},{"$f":"'[1]EXT RIN(M)'!F275","v":3016.4715980587525},{"$f":"'[1]EXT RIN(M)'!G275","v":1595.7},{"$f":"'[1]EXT RIN(M)'!H275","v":2980.1},{"$f":"'[1]EXT RIN(M)'!I275","v":2008.5231295799999},null,null,{"$f":"'[1]EXT RIN(M)'!P275","v":61.974589235185007},{"$f":"'[1]EXT RIN(M)'!Q275","v":99.720544673028115},{"$f":"'[1]EXT RIN(M)'!R275","v":102.00323386867431},{"$f":"'[1]EXT RIN(M)'!S275","v":79.428699703726892},{"$f":"'[1]EXT RIN(M)'!T275","v":105.91510693618056},{"$f":"'[1]EXT RIN(M)'!U275","v":56.099179484576652},{"$f":"'[1]EXT RIN(M)'!V275","v":169.85415332145735},null,null,{"$f":"+'[1]MONE(M)CAPARD'!AE275","v":4.7539760335090993},{"$f":"'[1]MONE(M)CAPARD'!AF275","v":-2.6265333333333389},{"$f":"'[1]MONE(M)CAPARD'!AG275","v":3.0103903397922412E-2},{"$f":"'[1]MONE(M)CAPARD'!AH275","v":2.3305576208178409},{"$f":"'[1]MONE(M)CAPARD'!AI275","v":-0.86017822107624065},{"$f":"'[1]MONE(M)CAPARD'!AJ275","v":4.1496584108277315},{"$f":"'[1]MONE(M)CAPARD'!AK275","v":-3.8981746599856777},null,null,{"$f":"'[1]MONE(M)CAPARD'!AL275","v":1.7514468120655697},{"$f":"'[1]MONE(M)CAPARD'!AM275","v":2.14},{"$f":"'[1]MONE(M)CAPARD'!AN275","v":2.62},{"$f":"'[1]MONE(M)CAPARD'!AO275","v":3.58},{"$f":"'[1]MONE(M)CAPARD'!AP275","v":3.0049386295903551},{"$f":"'[1]MONE(M)CAPARD'!AQ275","v":3.1},{"$f":"'[1]MONE(M)CAPARD'!AR275","v":2.25},null,null,{"$f":"'[1]MONE(M)CAPARD'!J275","v":14.056897941806055},{"$f":"'[1]MONE(M)CAPARD'!K275","v":0.68153333333332777},{"$f":"'[1]MONE(M)CAPARD'!L275","v":7.9127042965459156},{"$f":"'[1]MONE(M)CAPARD'!M275","v":11.892391573729862},{"$f":"'[1]MONE(M)CAPARD'!N275","v":6.2691301232623333},{"$f":"'[1]MONE(M)CAPARD'!O275","v":11.42315357701869},{"$f":"'[1]MONE(M)CAPARD'!P275","v":-3.5304223335712689E-2},null,null,{"$f":"'[1]MONE(M)CAPARD'!Q275","v":10.97},{"$f":"'[1]MONE(M)CAPARD'!R275","v":5.61},{"$f":"'[1]MONE(M)CAPARD'!S275","v":6.2},{"$f":"'[1]MONE(M)CAPARD'!T275","v":8.85},{"$f":"'[1]MONE(M)CAPARD'!U275","v":9.1959083486448154},{"$f":"'[1]MONE(M)CAPARD'!V275","v":6.98},{"$f":"'[1]MONE(M)CAPARD'!W275","v":6.36},null,null,{"$f":"'[1]MONE(M)CAPARD'!AS275","v":5},{"$f":"'[1]MONE(M)CAPARD'!AT275","v":"n.a."},{"$f":"'[1]MONE(M)CAPARD'!AU275","v":5.5},{"$f":"'[1]MONE(M)CAPARD'!AV275","v":6},{"$f":"'[1]MONE(M)CAPARD'!AW275","v":"n.a."},{"$f":"'[1]MONE(M)CAPARD'!AX275","v":6.75},{"$f":"'[1]MONE(M)CAPARD'!AY275","v":"n.a."},null,null,{"$f":"+'Datos_Regional (M)'!CF268","v":15.566298696552462},{"$f":"+'Datos_Regional (M)'!CG268","v":3.5048993770651959},{"$f":"+'Datos_Regional (M)'!CH268","v":12.715636419225396},{"$f":"+'Datos_Regional (M)'!CI268","v":11.942699378676714},{"$f":"+'Datos_Regional (M)'!CJ268","v":21.597833032270831},{"$f":"+'Datos_Regional (M)'!CK268","v":13.059626560899829},{"$f":"+'Datos_Regional (M)'!CL268","v":12.700918936018812},null,null,893.12500576732816,445.36833333333328,861.57499999999993,332.16625053083334,369.03033763474997,710.6,1358.3092338333333,3611.8649272662446,4970.1741610995787,null,null,1387.112337162501,846.39833333333343,1407.625,771.17335797833323,557.16666666666663,1470.5500000000002,2144.7053688333331,6440.0256951408346,8584.7310639741681,null,null,-2828.1607678745909,-3614.5569028745908,null,null,{"$f":"'[1]EXT Comercio(M)'!C275","v":950.15252903999612},{"$f":"'[1]EXT Comercio(M)'!D275","v":450.18999999999988},{"$f":"'[1]EXT Comercio(M)'!E275","v":859.9},{"$f":"'[1]EXT Comercio(M)'!F275","v":432.47955861999998},{"$f":"'[1]EXT Comercio(M)'!G275","v":381.19611099000002},{"$f":"'[1]EXT Comercio(M)'!H275","v":681.5},{"$f":"'[1]EXT Comercio(M)'!I275","v":1408.011733},{"$f":"'[1]EXT Comercio(M)'!K275","v":3755.4181986499962},{"$f":"'[1]EXT Comercio(M)'!L275","v":5163.4299316499955},null,null,{"$f":"'[1]EXT Comercio(M)'!AG275","v":1324.9979627600053},{"$f":"'[1]EXT Comercio(M)'!AH275","v":819.4899999999999},{"$f":"'[1]EXT Comercio(M)'!AI275","v":1311.4999999999998},{"$f":"'[1]EXT Comercio(M)'!AJ275","v":765.54833828999983},{"$f":"'[1]EXT Comercio(M)'!AK275","v":559.5},{"$f":"'[1]EXT Comercio(M)'!AL275","v":1363.4},{"$f":"'[1]EXT Comercio(M)'!AM275","v":2132.062152},{"$f":"'[1]EXT Comercio(M)'!AO275","v":6144.4363010500074},{"$f":"'[1]EXT Comercio(M)'!AP275","v":8276.4984530500078},null,null,{"$f":"'[1]EXT Comercio(M)'!$BS275","v":-2389.0181024000099},{"$f":"'[1]EXT Comercio(M)'!$BT275","v":-3113.0685214000096}]
[null,null,"Marzo",{"$f":"'[1]REAL IPC(M)'!AD276","v":4.2080604356511433},{"$f":"'[1]REAL IPC(M)'!AE276","v":4.3713210460291432},{"$f":"'[1]REAL IPC(M)'!AF276","v":4.5454545454545556},{"$f":"'[1]REAL IPC(M)'!AG276","v":5.6759098786828392},{"$f":"'[1]REAL IPC(M)'!AH276","v":8.5485341154628731},{"$f":"'[1]REAL IPC(M)'!AI276","v":4.9447633749819095},{"$f":"'[1]REAL IPC(M)'!AJ276","v":6.3396226415094281},null,null,{"$f":"'[1]REAL IMAE(M)'!AG276","v":4.0437337954978743},{"$f":"'[1]REAL IMAE(M)'!AH276","v":3.3590332327876804},{"$f":"'[1]REAL IMAE(M)'!AI276","v":"n.d."},{"$f":"'[1]REAL IMAE(M)'!AJ276","v":4.4203729633383553},{"$f":"'[1]REAL IMAE(M)'!AK276","v":5.0891742737078998},{"$f":"'[1]REAL IMAE(M)'!AL276","v":2.9518024275660579},{"$f":"'[1]REAL IMAE(M)'!AM276","v":10.188610311914875},null,null,{"$f":"'[1]EXT ITCER(M)'!C276","v":75.483456065901109},{"$f":"'[1]EXT ITCER(M)'!D276","v":90.072861427797378},{"$f":"'[1]EXT ITCER(M)'!E276","v":63.877521530055631},{"$f":"'[1]EXT ITCER(M)'!F276","v":75.679074171587828},{"$f":"'[1]EXT ITCER(M)'!G276","v":95.952557152770197},{"$f":"'[1]EXT ITCER(M)'!H276","v":93.564059594711765},{"$f":"'[1]EXT ITCER(M)'!I276","v":92.033445600686591},null,null,{"$f":"'[1]EXT TC(M)'!J276","v":1.643394367738829},{"$f":"'[1]EXT TC(M)'!K276","v":0},{"$f":"'[1]EXT TC(M)'!L276","v":0.26302855998689079},{"$f":"'[1]EXT TC(M)'!M276","v":1.8272173497602258},{"$f":"'[1]EXT TC(M)'!N276","v":4.665858342337045},{"$f":"'[1]EXT TC(M)'!O276","v":3.2608638084897938},{"$f":"'[1]EXT TC(M)'!P276","v":0},null,null,{"$f":"'[1]EXT RIN(M)'!C276","v":4745.4197414500004},{"$f":"'[1]EXT RIN(M)'!D276","v":2648.9},{"$f":"'[1]EXT RIN(M)'!E276","v":6140.8},{"$f":"'[1]EXT RIN(M)'!F276","v":3068.3124150705976},{"$f":"'[1]EXT RIN(M)'!G276","v":1753.1},{"$f":"'[1]EXT RIN(M)'!H276","v":3031},{"$f":"'[1]EXT RIN(M)'!I276","v":1712.1733605899999},null,null,{"$f":"'[1]EXT RIN(M)'!P276","v":61.054566378998906},{"$f":"'[1]EXT RIN(M)'!Q276","v":101.60756212813931},{"$f":"'[1]EXT RIN(M)'!R276","v":99.696896744376204},{"$f":"'[1]EXT RIN(M)'!S276","v":78.151439955030199},{"$f":"'[1]EXT RIN(M)'!T276","v":107.31794538751274},{"$f":"'[1]EXT RIN(M)'!U276","v":57.607903083224741},{"$f":"'[1]EXT RIN(M)'!V276","v":149.17989274003111},null,null,{"$f":"+'[1]MONE(M)CAPARD'!AE276","v":4.8383393216134873},{"$f":"'[1]MONE(M)CAPARD'!AF276","v":-2.128286797337279},{"$f":"'[1]MONE(M)CAPARD'!AG276","v":0.63565217391303364},{"$f":"'[1]MONE(M)CAPARD'!AH276","v":2.3601312013120159},{"$f":"'[1]MONE(M)CAPARD'!AI276","v":-2.0541730664836448},{"$f":"'[1]MONE(M)CAPARD'!AJ276","v":4.693170451411234},{"$f":"'[1]MONE(M)CAPARD'!AK276","v":-3.6765436479772835},null,null,{"$f":"'[1]MONE(M)CAPARD'!AL276","v":1.9718244942589092},{"$f":"'[1]MONE(M)CAPARD'!AM276","v":2.15},{"$f":"'[1]MONE(M)CAPARD'!AN276","v":2.61},{"$f":"'[1]MONE(M)CAPARD'!AO276","v":3.67},{"$f":"'[1]MONE(M)CAPARD'!AP276","v":2.9713866785694685},{"$f":"'[1]MONE(M)CAPARD'!AQ276","v":2.89},{"$f":"'[1]MONE(M)CAPARD'!AR276","v":2.4300000000000002},null,null,{"$f":"'[1]MONE(M)CAPARD'!J276","v":13.973909027258891},{"$f":"'[1]MONE(M)CAPARD'!K276","v":1.1101507026627211},{"$f":"'[1]MONE(M)CAPARD'!L276","v":8.4599999999999902},{"$f":"'[1]MONE(M)CAPARD'!M276","v":11.794637146371466},{"$f":"'[1]MONE(M)CAPARD'!N276","v":6.6033612757000046},{"$f":"'[1]MONE(M)CAPARD'!O276","v":11.658739542153166},{"$f":"'[1]MONE(M)CAPARD'!P276","v":1.9162526614626099E-2},null,null,{"$f":"'[1]MONE(M)CAPARD'!Q276","v":10.86},{"$f":"'[1]MONE(M)CAPARD'!R276","v":5.53},{"$f":"'[1]MONE(M)CAPARD'!S276","v":6.29},{"$f":"'[1]MONE(M)CAPARD'!T276","v":8.7899999999999991},{"$f":"'[1]MONE(M)CAPARD'!U276","v":8.3274279489590253},{"$f":"'[1]MONE(M)CAPARD'!V276","v":7.53},{"$f":"'[1]MONE(M)CAPARD'!W276","v":6.36},null,null,{"$f":"'[1]MONE(M)CAPARD'!AS276","v":5},{"$f":"'[1]MONE(M)CAPARD'!AT276","v":"n.a."},{"$f":"'[1]MONE(M)CAPARD'!AU276","v":5.5},{"$f":"'[1]MONE(M)CAPARD'!AV276","v":6},{"$f":"'[1]MONE(M)CAPARD'!AW276","v":"n.a."},{"$f":"'[1]MONE(M)CAPARD'!AX276","v":6.75},{"$f":"'[1]MONE(M)CAPARD'!AY276","v":"n.a."},null,null,{"$f":"+'Datos_Regional (M)'!CF269","v":14.179958530408964},{"$f":"+'Datos_Regional (M)'!CG269","v":3.4548781363048509},{"$f":"+'Datos_Regional (M)'!CH269","v":14.809406924471169},{"$f":"+'Datos_Regional (M)'!CI269","v":12.928872439948336},{"$f":"+'Datos_Regional (M)'!CJ269","v":21.900516367140121},{"$f":"+'Datos_Regional (M)'!CK269","v":11.495022723145087},{"$f":"+'Datos_Regional (M)'!CL269","v":11.176262533197523},null,null,904.69025696816163,443.00333333333327,860.05000000000007,340.31394517749999,370.75222430854166,711.47499999999991,1406.4982486666668,3630.2847597875357,5036.7830084542038,null,null,1395.8355493500001,842.20166666666671,1407.125,780.27792660499983,563.56666666666661,1465.9333333333334,2179.3231988333332,6454.9401426216673,8634.263341455,null,null,-2824.6553828341307,-3597.4803330007976,null,null,{"$f":"'[1]EXT Comercio(M)'!C276","v":1111.1791753999951},{"$f":"'[1]EXT Comercio(M)'!D276","v":503.61000000000013},{"$f":"'[1]EXT Comercio(M)'!E276","v":1033.5},{"$f":"'[1]EXT Comercio(M)'!F276","v":503.90096400999994},{"$f":"'[1]EXT Comercio(M)'!G276","v":458.60080440999997},{"$f":"'[1]EXT Comercio(M)'!H276","v":796.2},{"$f":"'[1]EXT Comercio(M)'!I276","v":1749.5244400000001},{"$f":"'[1]EXT Comercio(M)'!K276","v":4406.9909438199929},{"$f":"'[1]EXT Comercio(M)'!L276","v":6156.5153838199949},null,null,{"$f":"'[1]EXT Comercio(M)'!AG276","v":1581.8958214599961},{"$f":"'[1]EXT Comercio(M)'!AH276","v":896.83000000000015},{"$f":"'[1]EXT Comercio(M)'!AI276","v":1475.4},{"$f":"'[1]EXT Comercio(M)'!AJ276","v":882.05251368000017},{"$f":"'[1]EXT Comercio(M)'!AK276","v":653.90000000000009},{"$f":"'[1]EXT Comercio(M)'!AL276","v":1474.9000000000003},{"$f":"'[1]EXT Comercio(M)'!AM276","v":2270.9489140000001},{"$f":"'[1]EXT Comercio(M)'!AO276","v":6964.9783351399947},{"$f":"'[1]EXT Comercio(M)'!AP276","v":9235.9272491399952},null,null,{"$f":"'[1]EXT Comercio(M)'!$BS276","v":-2557.9873913200008},{"$f":"'[1]EXT Comercio(M)'!$BT276","v":-3079.4118653200021}]
[null,null,"Abril",{"$f":"'[1]REAL IPC(M)'!AD277","v":4.7073967156076337},{"$f":"'[1]REAL IPC(M)'!AE277","v":1.9866929060069389},{"$f":"'[1]REAL IPC(M)'!AF277","v":4.2744984006978735},{"$f":"'[1]REAL IPC(M)'!AG277","v":5.6555269922879123},{"$f":"'[1]REAL IPC(M)'!AH277","v":8.9766105663035489},{"$f":"'[1]REAL IPC(M)'!AI277","v":4.045911047345772},{"$f":"'[1]REAL IPC(M)'!AJ277","v":5.9746079163554811},null,null,{"$f":"'[1]REAL IMAE(M)'!AG277","v":3.843514918851461},{"$f":"'[1]REAL IMAE(M)'!AH277","v":3.0300180889720649},{"$f":"'[1]REAL IMAE(M)'!AI277","v":"n.d."},{"$f":"'[1]REAL IMAE(M)'!AJ277","v":5.0902901194968173},{"$f":"'[1]REAL IMAE(M)'!AK277","v":4.5424004236666713},{"$f":"'[1]REAL IMAE(M)'!AL277","v":3.3968250160375435},{"$f":"'[1]REAL IMAE(M)'!AM277","v":9.8733604703754008},null,null,{"$f":"'[1]EXT ITCER(M)'!C277","v":74.692860244653147},{"$f":"'[1]EXT ITCER(M)'!D277","v":89.788775240634223},{"$f":"'[1]EXT ITCER(M)'!E277","v":64.037227196489724},{"$f":"'[1]EXT ITCER(M)'!F277","v":75.327633993147131},{"$f":"'[1]EXT ITCER(M)'!G277","v":95.453315880502203},{"$f":"'[1]EXT ITCER(M)'!H277","v":93.893921826681151},{"$f":"'[1]EXT ITCER(M)'!I277","v":91.660942374551581},null,null,{"$f":"'[1]EXT TC(M)'!J277","v":1.0386950824269232},{"$f":"'[1]EXT TC(M)'!K277","v":0},{"$f":"'[1]EXT TC(M)'!L277","v":1.7469953993902709},{"$f":"'[1]EXT TC(M)'!M277","v":2.1677020692359568},{"$f":"'[1]EXT TC(M)'!N277","v":4.743717878119674},{"$f":"'[1]EXT TC(M)'!O277","v":3.1248595887967192},{"$f":"'[1]EXT TC(M)'!P277","v":0},null,null,{"$f":"'[1]EXT RIN(M)'!C277","v":4765.5887301000002},{"$f":"'[1]EXT RIN(M)'!D277","v":2709.9},{"$f":"'[1]EXT RIN(M)'!E277","v":6183.3},{"$f":"'[1]EXT RIN(M)'!F277","v":2978.3443822345153},{"$f":"'[1]EXT RIN(M)'!G277","v":1707.9},{"$f":"'[1]EXT RIN(M)'!H277","v":3125.5},{"$f":"'[1]EXT RIN(M)'!I277","v":2019.5000679399998},null,null,{"$f":"'[1]EXT RIN(M)'!P277","v":60.687214854315584},{"$f":"'[1]EXT RIN(M)'!Q277","v":100.68823505588405},{"$f":"'[1]EXT RIN(M)'!R277","v":105.68021433962545},{"$f":"'[1]EXT RIN(M)'!S277","v":77.87613214642316},{"$f":"'[1]EXT RIN(M)'!T277","v":114.28850341724331},{"$f":"'[1]EXT RIN(M)'!U277","v":59.61942828969368},{"$f":"'[1]EXT RIN(M)'!V277","v":168.51779670928505},null,null,{"$f":"+'[1]MONE(M)CAPARD'!AE277","v":4.5771391847410756},{"$f":"'[1]MONE(M)CAPARD'!AF277","v":0.18954148672240706},{"$f":"'[1]MONE(M)CAPARD'!AG277","v":0.91633296151701471},{"$f":"'[1]MONE(M)CAPARD'!AH277","v":2.4272019464720254},{"$f":"'[1]MONE(M)CAPARD'!AI277","v":-2.3727289960094979},{"$f":"'[1]MONE(M)CAPARD'!AJ277","v":5.8955598455598404},{"$f":"'[1]MONE(M)CAPARD'!AK277","v":-3.5334954193093653},null,null,{"$f":"'[1]MONE(M)CAPARD'!AL277","v":1.9749292888336507},{"$f":"'[1]MONE(M)CAPARD'!AM277","v":2.1800000000000002},{"$f":"'[1]MONE(M)CAPARD'!AN277","v":2.63},{"$f":"'[1]MONE(M)CAPARD'!AO277","v":3.67},{"$f":"'[1]MONE(M)CAPARD'!AP277","v":1.936089779043209},{"$f":"'[1]MONE(M)CAPARD'!AQ277","v":3.19},{"$f":"'[1]MONE(M)CAPARD'!AR277","v":2.23},null,null,{"$f":"'[1]MONE(M)CAPARD'!J277","v":13.821949297145585},{"$f":"'[1]MONE(M)CAPARD'!K277","v":3.2291537259946663},{"$f":"'[1]MONE(M)CAPARD'!L277","v":8.7610122699386555},{"$f":"'[1]MONE(M)CAPARD'!M277","v":11.806739659367402},{"$f":"'[1]MONE(M)CAPARD'!N277","v":8.0056000665259415},{"$f":"'[1]MONE(M)CAPARD'!O277","v":12.565692222835075},{"$f":"'[1]MONE(M)CAPARD'!P277","v":0.25986610288936635},null,null,{"$f":"'[1]MONE(M)CAPARD'!Q277","v":10.84},{"$f":"'[1]MONE(M)CAPARD'!R277","v":5.28},{"$f":"'[1]MONE(M)CAPARD'!S277","v":6.2},{"$f":"'[1]MONE(M)CAPARD'!T277","v":8.74},{"$f":"'[1]MONE(M)CAPARD'!U277","v":8.5998449167314739},{"$f":"'[1]MONE(M)CAPARD'!V277","v":6.59},{"$f":"'[1]MONE(M)CAPARD'!W277","v":6.25},null,null,{"$f":"'[1]MONE(M)CAPARD'!AS277","v":5},{"$f":"'[1]MONE(M)CAPARD'!AT277","v":"n.a."},{"$f":"'[1]MONE(M)CAPARD'!AU277","v":5.5},{"$f":"'[1]MONE(M)CAPARD'!AV277","v":6},{"$f":"'[1]MONE(M)CAPARD'!AW277","v":"n.a."},{"$f":"'[1]MONE(M)CAPARD'!AX277","v":6.75},{"$f":"'[1]MONE(M)CAPARD'!AY277","v":"n.a."},null,null,{"$f":"+'Datos_Regional (M)'!CF270","v":14.403474022616102},{"$f":"+'Datos_Regional (M)'!CG270","v":3.4503712247465623},{"$f":"+'Datos_Regional (M)'!CH270","v":18.548804053184842},{"$f":"+'Datos_Regional (M)'!CI270","v":14.760343788421416},{"$f":"+'Datos_Regional (M)'!CJ270","v":22.739708313613495},{"$f":"+'Datos_Regional (M)'!CK270","v":10.327808254772064},{"$f":"+'Datos_Regional (M)'!CL270","v":12.236350982984856},null,null,907.46980457149505,441.85083333333336,854.97500000000002,339.92202612416662,376.46063612999995,710.91666666666663,1418.617505416667,3631.5949668256612,5050.2124722423287,null,null,1401.7478577933327,844.16333333333341,1400.9750000000001,785.22175332916675,569.25833333333333,1451.3916666666667,2196.4460036666665,6452.7579444558332,8649.2039481224983,null,null,-2821.162977630172,-3598.9914758801719,null,null,{"$f":"'[1]EXT Comercio(M)'!C277","v":955.33343668999578},{"$f":"'[1]EXT Comercio(M)'!D277","v":415.62999999999988},{"$f":"'[1]EXT Comercio(M)'!E277","v":875.2},{"$f":"'[1]EXT Comercio(M)'!F277","v":393.39508199000011},{"$f":"'[1]EXT Comercio(M)'!G277","v":421.86844563},{"$f":"'[1]EXT Comercio(M)'!H277","v":766.3},{"$f":"'[1]EXT Comercio(M)'!I277","v":1222.7932149999999},{"$f":"'[1]EXT Comercio(M)'!K277","v":3827.7269643099953},{"$f":"'[1]EXT Comercio(M)'!L277","v":5050.5201793099986},null,null,{"$f":"'[1]EXT Comercio(M)'!AG277","v":1317.6198547499937},{"$f":"'[1]EXT Comercio(M)'!AH277","v":816.52000000000044},{"$f":"'[1]EXT Comercio(M)'!AI277","v":1323.2000000000003},{"$f":"'[1]EXT Comercio(M)'!AJ277","v":749.97253073999991},{"$f":"'[1]EXT Comercio(M)'!AK277","v":582.1},{"$f":"'[1]EXT Comercio(M)'!AL277","v":1386.7000000000007},{"$f":"'[1]EXT Comercio(M)'!AM277","v":1993.9396020000001},{"$f":"'[1]EXT Comercio(M)'!AO277","v":6176.1123854899961},{"$f":"'[1]EXT Comercio(M)'!AP277","v":8170.0519874899946},null,null,{"$f":"'[1]EXT Comercio(M)'!$BS277","v":-2348.385421179999},{"$f":"'[1]EXT Comercio(M)'!$BT277","v":-3119.5318081799996}]
[null,null,"Mayo ",{"$f":"'[1]REAL IPC(M)'!AD278","v":5.0352968119617234},{"$f":"'[1]REAL IPC(M)'!AE278","v":1.2123472908700896},{"$f":"'[1]REAL IPC(M)'!AF278","v":3.8966049382715973},{"$f":"'[1]REAL IPC(M)'!AG278","v":5.1533219761499121},{"$f":"'[1]REAL IPC(M)'!AH278","v":7.5269721128235769},{"$f":"'[1]REAL IPC(M)'!AI278","v":3.5407520519182993},{"$f":"'[1]REAL IPC(M)'!AJ278","v":6.0267857142857233},null,null,{"$f":"'[1]REAL IMAE(M)'!AG278","v":3.6957510275839849},{"$f":"'[1]REAL IMAE(M)'!AH278","v":3.269859693495242},{"$f":"'[1]REAL IMAE(M)'!AI278","v":"n.d."},{"$f":"'[1]REAL IMAE(M)'!AJ278","v":5.6782207271740823},{"$f":"'[1]REAL IMAE(M)'!AK278","v":4.3197758052203632},{"$f":"'[1]REAL IMAE(M)'!AL278","v":3.6370108005451538},{"$f":"'[1]REAL IMAE(M)'!AM278","v":9.849607182940515},null,null,{"$f":"'[1]EXT ITCER(M)'!C278","v":73.829874990225832},{"$f":"'[1]EXT ITCER(M)'!D278","v":89.931313982789305},{"$f":"'[1]EXT ITCER(M)'!E278","v":64.169686825559324},{"$f":"'[1]EXT ITCER(M)'!F278","v":75.432363845310803},{"$f":"'[1]EXT ITCER(M)'!G278","v":95.946714930268072},{"$f":"'[1]EXT ITCER(M)'!H278","v":94.045514804572065},{"$f":"'[1]EXT ITCER(M)'!I278","v":91.167892233556515},null,null,{"$f":"'[1]EXT TC(M)'!J278","v":0.31080010938923325},{"$f":"'[1]EXT TC(M)'!K278","v":0},{"$f":"'[1]EXT TC(M)'!L278","v":1.5866666666666585},{"$f":"'[1]EXT TC(M)'!M278","v":2.554558396813821},{"$f":"'[1]EXT TC(M)'!N278","v":4.6750191864769679},{"$f":"'[1]EXT TC(M)'!O278","v":2.9851337121381971},{"$f":"'[1]EXT TC(M)'!P278","v":0},null,null,{"$f":"'[1]EXT RIN(M)'!C278","v":4858.1739648499997},{"$f":"'[1]EXT RIN(M)'!D278","v":2651.4},{"$f":"'[1]EXT RIN(M)'!E278","v":6112.7},{"$f":"'[1]EXT RIN(M)'!F278","v":2860.6851934678953},{"$f":"'[1]EXT RIN(M)'!G278","v":1690.3},{"$f":"'[1]EXT RIN(M)'!H278","v":3012.3},{"$f":"'[1]EXT RIN(M)'!I278","v":2041.8728008699998},null,null,{"$f":"'[1]EXT RIN(M)'!P278","v":61.558086662579861},{"$f":"'[1]EXT RIN(M)'!Q278","v":100.09264062008059},{"$f":"'[1]EXT RIN(M)'!R278","v":107.02095929874027},{"$f":"'[1]EXT RIN(M)'!S278","v":77.898803330209176},{"$f":"'[1]EXT RIN(M)'!T278","v":116.46177781206566},{"$f":"'[1]EXT RIN(M)'!U278","v":56.868564999604018},{"$f":"'[1]EXT RIN(M)'!V278","v":175.77998498341466},null,null,{"$f":"+'[1]MONE(M)CAPARD'!AE278","v":4.7266998225618204},{"$f":"'[1]MONE(M)CAPARD'!AF278","v":1.1042651801345278},{"$f":"'[1]MONE(M)CAPARD'!AG278","v":1.302636464909031},{"$f":"'[1]MONE(M)CAPARD'!AH278","v":3.0590360469825861},{"$f":"'[1]MONE(M)CAPARD'!AI278","v":-0.97652652578999422},{"$f":"'[1]MONE(M)CAPARD'!AJ278","v":6.0258862567978664},{"$f":"'[1]MONE(M)CAPARD'!AK278","v":-3.7696000000000085},null,null,{"$f":"'[1]MONE(M)CAPARD'!AL278","v":1.9867261475528928},{"$f":"'[1]MONE(M)CAPARD'!AM278","v":2.33},{"$f":"'[1]MONE(M)CAPARD'!AN278","v":2.67},{"$f":"'[1]MONE(M)CAPARD'!AO278","v":3.65},{"$f":"'[1]MONE(M)CAPARD'!AP278","v":2.3004809037473035},{"$f":"'[1]MONE(M)CAPARD'!AQ278","v":2.6},{"$f":"'[1]MONE(M)CAPARD'!AR278","v":2.0299999999999998},null,null,{"$f":"'[1]MONE(M)CAPARD'!J278","v":13.961690625096816},{"$f":"'[1]MONE(M)CAPARD'!K278","v":4.3943775914493708},{"$f":"'[1]MONE(M)CAPARD'!L278","v":9.1758484961010112},{"$f":"'[1]MONE(M)CAPARD'!M278","v":12.255131632239777},{"$f":"'[1]MONE(M)CAPARD'!N278","v":10.985431745393202},{"$f":"'[1]MONE(M)CAPARD'!O278","v":12.361555903769936},{"$f":"'[1]MONE(M)CAPARD'!P278","v":0.37086315789472823},null,null,{"$f":"'[1]MONE(M)CAPARD'!Q278","v":10.97},{"$f":"'[1]MONE(M)CAPARD'!R278","v":5.66},{"$f":"'[1]MONE(M)CAPARD'!S278","v":6.3},{"$f":"'[1]MONE(M)CAPARD'!T278","v":8.69},{"$f":"'[1]MONE(M)CAPARD'!U278","v":8.3744368675031939},{"$f":"'[1]MONE(M)CAPARD'!V278","v":7.3},{"$f":"'[1]MONE(M)CAPARD'!W278","v":6.42},null,null,{"$f":"'[1]MONE(M)CAPARD'!AS278","v":5},{"$f":"'[1]MONE(M)CAPARD'!AT278","v":"n.a."},{"$f":"'[1]MONE(M)CAPARD'!AU278","v":5.5},{"$f":"'[1]MONE(M)CAPARD'!AV278","v":7},{"$f":"'[1]MONE(M)CAPARD'!AW278","v":"n.a."},{"$f":"'[1]MONE(M)CAPARD'!AX278","v":6.75},{"$f":"'[1]MONE(M)CAPARD'!AY278","v":"n.a."},null,null,{"$f":"+'Datos_Regional (M)'!CF271","v":13.662202182965434},{"$f":"+'Datos_Regional (M)'!CG271","v":3.400751566016913},{"$f":"+'Datos_Regional (M)'!CH271","v":18.574452561475873},{"$f":"+'Datos_Regional (M)'!CI271","v":15.469787368446974},{"$f":"+'Datos_Regional (M)'!CJ271","v":25.502765266920413},{"$f":"+'Datos_Regional (M)'!CK271","v":9.0826943553058204},{"$f":"+'Datos_Regional (M)'!CL271","v":21.792552773050232},null,null,{"$f":"+AVERAGE(EH72:EH83)","v":919.30583368149519},{"$f":"+AVERAGE(EI72:EI83)","v":439.98166666666674},{"$f":"+AVERAGE(EJ72:EJ83)","v":853.43333333333328},{"$f":"+AVERAGE(EK72:EK83)","v":340.41978561916665},{"$f":"+AVERAGE(EL72:EL83)","v":377.62913543833332},{"$f":"+AVERAGE(EM72:EM83)","v":716.5333333333333},{"$f":"+AVERAGE(EN72:EN83)","v":1429.1767017499999},{"$f":"+AVERAGE(EO72:EO83)","v":3647.3030880723286},{"$f":"+AVERAGE(EP72:EP83)","v":5076.4797898223287},null,null,{"$f":"+AVERAGE(ES72:ES83)","v":1416.6842692683324},{"$f":"+AVERAGE(ET72:ET83)","v":849.22000000000014},{"$f":"+AVERAGE(EU72:EU83)","v":1404.1333333333334},{"$f":"+AVERAGE(EV72:EV83)","v":782.69490482916672},{"$f":"+AVERAGE(EW72:EW83)","v":576.81666666666672},{"$f":"+AVERAGE(EX72:EX83)","v":1454.8416666666669},{"$f":"+AVERAGE(EY72:EY83)","v":2219.9356451666667},{"$f":"+AVERAGE(EZ72:EZ83)","v":6484.3908407641675},{"$f":"+AVERAGE(FA72:FA83)","v":8704.3264859308329},null,null,{"$f":"+AVERAGE(FD72:FD83)","v":-2837.087752691838},{"$f":"+AVERAGE(FE72:FE83)","v":-3627.8466961085055},null,null,{"$f":"'[1]EXT Comercio(M)'!C278","v":1075.9645987099934},{"$f":"'[1]EXT Comercio(M)'!D278","v":461.18000000000029},{"$f":"'[1]EXT Comercio(M)'!E278","v":871.40000000000032},{"$f":"'[1]EXT Comercio(M)'!F278","v":415.6289853899998},{"$f":"'[1]EXT Comercio(M)'!G278","v":392.19741379000004},{"$f":"'[1]EXT Comercio(M)'!H278","v":800.59999999999991},{"$f":"'[1]EXT Comercio(M)'!I278","v":1522.7373339999999},{"$f":"'[1]EXT Comercio(M)'!K278","v":4016.9709978899955},{"$f":"'[1]EXT Comercio(M)'!L278","v":5539.7083318899931},null,null,{"$f":"'[1]EXT Comercio(M)'!AG278","v":1517.973648689996},{"$f":"'[1]EXT Comercio(M)'!AH278","v":989.73999999999978},{"$f":"'[1]EXT Comercio(M)'!AI278","v":1574.1999999999998},{"$f":"'[1]EXT Comercio(M)'!AJ278","v":817.35404818999996},{"$f":"'[1]EXT Comercio(M)'!AK278","v":686.80000000000007},{"$f":"'[1]EXT Comercio(M)'!AL278","v":1512.6999999999998},{"$f":"'[1]EXT Comercio(M)'!AM278","v":2492.9870689999998},{"$f":"'[1]EXT Comercio(M)'!AO278","v":7098.7676968799933},{"$f":"'[1]EXT Comercio(M)'!AP278","v":9591.7547658799958},null,null,{"$f":"'[1]EXT Comercio(M)'!$BS278","v":-3081.7966989900033},{"$f":"'[1]EXT Comercio(M)'!$BT278","v":-4052.0464339900027}]
[null,null,"Junio",{"$f":"'[1]REAL IPC(M)'!AD279","v":4.6149100406147516},{"$f":"'[1]REAL IPC(M)'!AE279","v":0.60583465374218604},{"$f":"'[1]REAL IPC(M)'!AF279","v":3.4730883622757265},{"$f":"'[1]REAL IPC(M)'!AG279","v":4.7073791348600489},{"$f":"'[1]REAL IPC(M)'!AH279","v":6.4643678423417246},{"$f":"'[1]REAL IPC(M)'!AI279","v":2.7113840340103965},{"$f":"'[1]REAL IPC(M)'!AJ279","v":5.7949479940564714},null,null,{"$f":"'[1]REAL IMAE(M)'!AG279","v":3.6129582261996167},{"$f":"'[1]REAL IMAE(M)'!AH279","v":3.419542217629274},{"$f":"'[1]REAL IMAE(M)'!AI279","v":"n.d."},{"$f":"'[1]REAL IMAE(M)'!AJ279","v":4.9336691031662712},{"$f":"'[1]REAL IMAE(M)'!AK279","v":4.4736055419121774},{"$f":"'[1]REAL IMAE(M)'!AL279","v":3.5160704227946695},{"$f":"'[1]REAL IMAE(M)'!AM279","v":9.9442088819459951},null,null,{"$f":"'[1]EXT ITCER(M)'!C279","v":72.935747689599594},{"$f":"'[1]EXT ITCER(M)'!D279","v":90.290282684360207},{"$f":"'[1]EXT ITCER(M)'!E279","v":64.536189883852501},{"$f":"'[1]EXT ITCER(M)'!F279","v":75.626211885376094},{"$f":"'[1]EXT ITCER(M)'!G279","v":96.676010861522343},{"$f":"'[1]EXT ITCER(M)'!H279","v":93.812684381641432},{"$f":"'[1]EXT ITCER(M)'!I279","v":91.098132434412378},null,null,{"$f":"'[1]EXT TC(M)'!J279","v":-1.0868667052279113},{"$f":"'[1]EXT TC(M)'!K279","v":0},{"$f":"'[1]EXT TC(M)'!L279","v":0.92428511819825432},{"$f":"'[1]EXT TC(M)'!M279","v":2.969099320534351},{"$f":"'[1]EXT TC(M)'!N279","v":4.562871810592962},{"$f":"'[1]EXT TC(M)'!O279","v":2.7225874309755338},{"$f":"'[1]EXT TC(M)'!P279","v":0},null,null,{"$f":"'[1]EXT RIN(M)'!C279","v":4869.4577913100002},{"$f":"'[1]EXT RIN(M)'!D279","v":2601.4},{"$f":"'[1]EXT RIN(M)'!E279","v":6811.6},{"$f":"'[1]EXT RIN(M)'!F279","v":2784.4624407518713},{"$f":"'[1]EXT RIN(M)'!G279","v":1689.1},{"$f":"'[1]EXT RIN(M)'!H279","v":3219.2},{"$f":"'[1]EXT RIN(M)'!I279","v":2209.4662591199999},null,null,{"$f":"'[1]EXT RIN(M)'!P279","v":60.556086704608894},{"$f":"'[1]EXT RIN(M)'!Q279","v":98.510415278164885},{"$f":"'[1]EXT RIN(M)'!R279","v":116.64650235092971},{"$f":"'[1]EXT RIN(M)'!S279","v":75.001706335630075},{"$f":"'[1]EXT RIN(M)'!T279","v":116.77518976257666},{"$f":"'[1]EXT RIN(M)'!U279","v":58.371261440626988},{"$f":"'[1]EXT RIN(M)'!V279","v":192.18532799622844},null,null,{"$f":"+'[1]MONE(M)CAPARD'!AE279","v":4.9085641400366802},{"$f":"'[1]MONE(M)CAPARD'!AF279","v":1.8728191587919301},{"$f":"'[1]MONE(M)CAPARD'!AG279","v":1.6689476124246736},{"$f":"'[1]MONE(M)CAPARD'!AH279","v":3.6412150668286767},{"$f":"'[1]MONE(M)CAPARD'!AI279","v":0.53748070481872801},{"$f":"'[1]MONE(M)CAPARD'!AJ279","v":6.2394407652685748},{"$f":"'[1]MONE(M)CAPARD'!AK279","v":-3.5492696629213558},null,null,{"$f":"'[1]MONE(M)CAPARD'!AL279","v":2.0056829169914554},{"$f":"'[1]MONE(M)CAPARD'!AM279","v":2.4900000000000002},{"$f":"'[1]MONE(M)CAPARD'!AN279","v":2.66},{"$f":"'[1]MONE(M)CAPARD'!AO279","v":3.75},{"$f":"'[1]MONE(M)CAPARD'!AP279","v":1.9469250399295202},{"$f":"'[1]MONE(M)CAPARD'!AQ279","v":3.26},{"$f":"'[1]MONE(M)CAPARD'!AR279","v":2.04},null,null,{"$f":"'[1]MONE(M)CAPARD'!J279","v":14.314489161794864},{"$f":"'[1]MONE(M)CAPARD'!K279","v":4.8050546599963031},{"$f":"'[1]MONE(M)CAPARD'!L279","v":9.6516995827538334},{"$f":"'[1]MONE(M)CAPARD'!M279","v":12.857375455650065},{"$f":"'[1]MONE(M)CAPARD'!N279","v":10.578465748162245},{"$f":"'[1]MONE(M)CAPARD'!O279","v":13.132542310522437},{"$f":"'[1]MONE(M)CAPARD'!P279","v":0.67588483146066658},null,null,{"$f":"'[1]MONE(M)CAPARD'!Q279","v":10.74},{"$f":"'[1]MONE(M)CAPARD'!R279","v":5.44},{"$f":"'[1]MONE(M)CAPARD'!S279","v":6.3},{"$f":"'[1]MONE(M)CAPARD'!T279","v":8.66},{"$f":"'[1]MONE(M)CAPARD'!U279","v":8.3744368675031939},{"$f":"'[1]MONE(M)CAPARD'!V279","v":7.38},{"$f":"'[1]MONE(M)CAPARD'!W279","v":6.51},null,null,{"$f":"'[1]MONE(M)CAPARD'!AS279","v":5},{"$f":"'[1]MONE(M)CAPARD'!AT279","v":"n.a."},{"$f":"'[1]MONE(M)CAPARD'!AU279","v":5},{"$f":"'[1]MONE(M)CAPARD'!AV279","v":7},{"$f":"'[1]MONE(M)CAPARD'!AW279","v":"n.a."},{"$f":"'[1]MONE(M)CAPARD'!AX279","v":6},{"$f":"'[1]MONE(M)CAPARD'!AY279","v":"n.a."},null,null,{"$f":"+'Datos_Regional (M)'!CF272","v":14.267983672314323},{"$f":"+'Datos_Regional (M)'!CG272","v":3.8019477577549754},{"$f":"+'Datos_Regional (M)'!CH272","v":18.305870092304776},{"$f":"+'Datos_Regional (M)'!CI272","v":15.339436523678639},{"$f":"+'Datos_Regional (M)'!CJ272","v":28.228214455755428},{"$f":"+'Datos_Regional (M)'!CK272","v":8.9512391513454581},{"$f":"+'Datos_Regional (M)'!CL272","v":15.880989384963694},null,null,925.8977621631617,433.86333333333329,849.76666666666654,339.94844490916665,378.87721709166658,710.7833333333333,1421.3003142500002,3639.1367574973278,5060.4370717473284,null,null,1425.9916067241672,834.2258333333333,1403.2250000000001,773.92988520666677,579.38333333333333,1462.45,2208.5943003333332,6479.2056585975006,8687.7999589308329,null,null,-2840.0689011001723,-3627.3628871835076,null,null,{"$f":"'[1]EXT Comercio(M)'!C279","v":955.27711881999221},{"$f":"'[1]EXT Comercio(M)'!D279","v":392.31999999999971},{"$f":"'[1]EXT Comercio(M)'!E279","v":831.40000000000009},{"$f":"'[1]EXT Comercio(M)'!F279","v":384.80890296000007},{"$f":"'[1]EXT Comercio(M)'!G279","v":389.31684976999998},{"$f":"'[1]EXT Comercio(M)'!H279","v":729.5},{"$f":"'[1]EXT Comercio(M)'!I279","v":1263.8078369999998},{"$f":"'[1]EXT Comercio(M)'!K279","v":3682.6228715499929},{"$f":"'[1]EXT Comercio(M)'!L279","v":4946.4307085499895},null,null,{"$f":"'[1]EXT Comercio(M)'!AG279","v":1409.6710158800024},{"$f":"'[1]EXT Comercio(M)'!AH279","v":686.42000000000007},{"$f":"'[1]EXT Comercio(M)'!AI279","v":1450.0000000000002},{"$f":"'[1]EXT Comercio(M)'!AJ279","v":741.66170534000003},{"$f":"'[1]EXT Comercio(M)'!AK279","v":585.69999999999982},{"$f":"'[1]EXT Comercio(M)'!AL279","v":1551.4},{"$f":"'[1]EXT Comercio(M)'!AM279","v":2124.8850820000011},{"$f":"'[1]EXT Comercio(M)'!AO279","v":6424.8527212200061},{"$f":"'[1]EXT Comercio(M)'!AP279","v":8549.7378032200068},null,null,{"$f":"'[1]EXT Comercio(M)'!$BS279","v":-2742.2298496700114},{"$f":"'[1]EXT Comercio(M)'!$BT279","v":-3603.3070946700136}]
[null,null,"Julio",{"$f":"'[1]REAL IPC(M)'!AD280","v":3.9486456703517669},{"$f":"'[1]REAL IPC(M)'!AE280","v":3.7185088779405275E-2},{"$f":"'[1]REAL IPC(M)'!AF280","v":2.8606728758791151},{"$f":"'[1]REAL IPC(M)'!AG280","v":4.0859309182813766},{"$f":"'[1]REAL IPC(M)'!AH280","v":6.369628450408217},{"$f":"'[1]REAL IPC(M)'!AI280","v":1.639344262295082},{"$f":"'[1]REAL IPC(M)'!AJ280","v":6.013363028953238},null,null,{"$f":"'[1]REAL IMAE(M)'!AG280","v":3.5969226865946404},{"$f":"'[1]REAL IMAE(M)'!AH280","v":3.1681978483540596},{"$f":"'[1]REAL IMAE(M)'!AI280","v":"n.d."},{"$f":"'[1]REAL IMAE(M)'!AJ280","v":5.0491663861124882},{"$f":"'[1]REAL IMAE(M)'!AK280","v":4.9518763440123603},{"$f":"'[1]REAL IMAE(M)'!AL280","v":3.0133371361005654},{"$f":"'[1]REAL IMAE(M)'!AM280","v":9.8939615777097529},null,null,{"$f":"'[1]EXT ITCER(M)'!C280","v":73.106999010568231},{"$f":"'[1]EXT ITCER(M)'!D280","v":90.419564435945176},{"$f":"'[1]EXT ITCER(M)'!E280","v":63.999395143146806},{"$f":"'[1]EXT ITCER(M)'!F280","v":75.746371409858199},{"$f":"'[1]EXT ITCER(M)'!G280","v":97.002620959407011},{"$f":"'[1]EXT ITCER(M)'!H280","v":93.886455367506656},{"$f":"'[1]EXT ITCER(M)'!I280","v":90.694901028187701},null,null,{"$f":"'[1]EXT TC(M)'!J280","v":-0.8331783113977117},{"$f":"'[1]EXT TC(M)'!K280","v":0},{"$f":"'[1]EXT TC(M)'!L280","v":0.86733079818450587},{"$f":"'[1]EXT TC(M)'!M280","v":3.5090377964445958},{"$f":"'[1]EXT TC(M)'!N280","v":4.8456929784925364},{"$f":"'[1]EXT TC(M)'!O280","v":2.7239225746758975},{"$f":"'[1]EXT TC(M)'!P280","v":0},null,null,{"$f":"'[1]EXT RIN(M)'!C280","v":4911.8982414900001},{"$f":"'[1]EXT RIN(M)'!D280","v":2526},{"$f":"'[1]EXT RIN(M)'!E280","v":6778.1},{"$f":"'[1]EXT RIN(M)'!F280","v":2690.4639516236912},{"$f":"'[1]EXT RIN(M)'!G280","v":1618.7},{"$f":"'[1]EXT RIN(M)'!H280","v":3127.7},{"$f":"'[1]EXT RIN(M)'!I280","v":2134.6191387399999},null,null,{"$f":"'[1]EXT RIN(M)'!P280","v":61.184830226206479},{"$f":"'[1]EXT RIN(M)'!Q280","v":97.340065186244757},{"$f":"'[1]EXT RIN(M)'!R280","v":113.90566873835175},{"$f":"'[1]EXT RIN(M)'!S280","v":74.620126488487699},{"$f":"'[1]EXT RIN(M)'!T280","v":112.60141166161904},{"$f":"'[1]EXT RIN(M)'!U280","v":54.960668911353054},{"$f":"'[1]EXT RIN(M)'!V280","v":179.70200221824973},null,null,{"$f":"+'[1]MONE(M)CAPARD'!AE280","v":6.0619879066356184},{"$f":"'[1]MONE(M)CAPARD'!AF280","v":2.3719329058637615},{"$f":"'[1]MONE(M)CAPARD'!AG280","v":2.4103742030860156},{"$f":"'[1]MONE(M)CAPARD'!AH280","v":4.5578389316066419},{"$f":"'[1]MONE(M)CAPARD'!AI280","v":1.0609812312789346},{"$f":"'[1]MONE(M)CAPARD'!AJ280","v":6.7303225806451614},{"$f":"'[1]MONE(M)CAPARD'!AK280","v":-3.7479831932773191},null,null,{"$f":"'[1]MONE(M)CAPARD'!AL280","v":2.1150000000000002},{"$f":"'[1]MONE(M)CAPARD'!AM280","v":2.41},{"$f":"'[1]MONE(M)CAPARD'!AN280","v":2.68},{"$f":"'[1]MONE(M)CAPARD'!AO280","v":3.8},{"$f":"'[1]MONE(M)CAPARD'!AP280","v":2.7407337275071901},{"$f":"'[1]MONE(M)CAPARD'!AQ280","v":2.42},{"$f":"'[1]MONE(M)CAPARD'!AR280","v":2.04},null,null,{"$f":"'[1]MONE(M)CAPARD'!J280","v":15.383898680470534},{"$f":"'[1]MONE(M)CAPARD'!K280","v":5.450788030852145},{"$f":"'[1]MONE(M)CAPARD'!L280","v":10.353157165296121},{"$f":"'[1]MONE(M)CAPARD'!M280","v":13.608053419668154},{"$f":"'[1]MONE(M)CAPARD'!N280","v":11.029255101179551},{"$f":"'[1]MONE(M)CAPARD'!O280","v":14.089677419354839},{"$f":"'[1]MONE(M)CAPARD'!P280","v":0.3709943977590951},null,null,{"$f":"'[1]MONE(M)CAPARD'!Q280","v":10.79},{"$f":"'[1]MONE(M)CAPARD'!R280","v":5.49},{"$f":"'[1]MONE(M)CAPARD'!S280","v":6.22},{"$f":"'[1]MONE(M)CAPARD'!T280","v":8.75},{"$f":"'[1]MONE(M)CAPARD'!U280","v":8.3394512614496801},{"$f":"'[1]MONE(M)CAPARD'!V280","v":6.78},{"$f":"'[1]MONE(M)CAPARD'!W280","v":6.4066666666666663},null,null,{"$f":"'[1]MONE(M)CAPARD'!AS280","v":5},{"$f":"'[1]MONE(M)CAPARD'!AT280","v":"n.a."},{"$f":"'[1]MONE(M)CAPARD'!AU280","v":5},{"$f":"'[1]MONE(M)CAPARD'!AV280","v":7},{"$f":"'[1]MONE(M)CAPARD'!AW280","v":"n.a."},{"$f":"'[1]MONE(M)CAPARD'!AX280","v":6},{"$f":"'[1]MONE(M)CAPARD'!AY280","v":"n.a."},null,null,{"$f":"+'Datos_Regional (M)'!CF273","v":14.259429526557454},{"$f":"+'Datos_Regional (M)'!CG273","v":3.8331801588582293},{"$f":"+'Datos_Regional (M)'!CH273","v":20.251560921546897},{"$f":"+'Datos_Regional (M)'!CI273","v":14.972457705732968},{"$f":"+'Datos_Regional (M)'!CJ273","v":29.593259490418909},{"$f":"+'Datos_Regional (M)'!CK273","v":7.1548996286515232},{"$f":"+'Datos_Regional (M)'!CL273","v":15.934564067532264},null,null,931.11966015649466,438.28500000000003,846.4,348.95651216750002,384.08868137250005,715.19999999999993,1410.8370857500001,3664.0498536964951,5074.8869394464955,null,null,1426.3020568758336,843.76333333333332,1411.3416666666669,772.12470664416662,578.65833333333342,1469.2833333333335,2219.6929264999999,6501.4734301866665,8721.1663566866646,null,null,-2837.4235764901714,-3646.2794172401723,null,null,{"$f":"'[1]EXT Comercio(M)'!C280","v":911.25632169999244},{"$f":"'[1]EXT Comercio(M)'!D280","v":524.79},{"$f":"'[1]EXT Comercio(M)'!E280","v":783.50000000000023},{"$f":"'[1]EXT Comercio(M)'!F280","v":383.41401572999985},{"$f":"'[1]EXT Comercio(M)'!G280","v":414.98621059999999},{"$f":"'[1]EXT Comercio(M)'!H280","v":785.6},{"$f":"'[1]EXT Comercio(M)'!I280","v":1314.341471},{"$f":"'[1]EXT Comercio(M)'!K280","v":3803.5465480299936},{"$f":"'[1]EXT Comercio(M)'!L280","v":5117.8880190299969},null,null,{"$f":"'[1]EXT Comercio(M)'!AG280","v":1428.0035220100031},{"$f":"'[1]EXT Comercio(M)'!AH280","v":1027.0599999999995},{"$f":"'[1]EXT Comercio(M)'!AI280","v":1425.7999999999997},{"$f":"'[1]EXT Comercio(M)'!AJ280","v":750.41952325999955},{"$f":"'[1]EXT Comercio(M)'!AK280","v":584.20000000000016},{"$f":"'[1]EXT Comercio(M)'!AL280","v":1560.2999999999997},{"$f":"'[1]EXT Comercio(M)'!AM280","v":2534.5442300000004},{"$f":"'[1]EXT Comercio(M)'!AO280","v":6775.78304527},{"$f":"'[1]EXT Comercio(M)'!AP280","v":9310.3272752699995},null,null,{"$f":"'[1]EXT Comercio(M)'!$BS280","v":-2972.2364972400064},{"$f":"'[1]EXT Comercio(M)'!$BT280","v":-4192.4392562400026}]
[null,null,"Agosto",{"$f":"'[1]REAL IPC(M)'!AD281","v":4.2308691073061242},{"$f":"'[1]REAL IPC(M)'!AE281","v":0.10214504596527017},{"$f":"'[1]REAL IPC(M)'!AF281","v":2.7113840340103965},{"$f":"'[1]REAL IPC(M)'!AG281","v":4.3222828367603787},{"$f":"'[1]REAL IPC(M)'!AH281","v":5.9664513046565943},{"$f":"'[1]REAL IPC(M)'!AI281","v":2.1625652498135657},{"$f":"'[1]REAL IPC(M)'!AJ281","v":6.0606060606060375},null,null,{"$f":"'[1]REAL IMAE(M)'!AG281","v":3.5878290961798842},{"$f":"'[1]REAL IMAE(M)'!AH281","v":3.1574563222359084},{"$f":"'[1]REAL IMAE(M)'!AI281","v":"n.d."},{"$f":"'[1]REAL IMAE(M)'!AJ281","v":5.1278063824105704},{"$f":"'[1]REAL IMAE(M)'!AK281","v":5.6438642193242465},{"$f":"'[1]REAL IMAE(M)'!AL281","v":2.4063889378613621},{"$f":"'[1]REAL IMAE(M)'!AM281","v":9.5877741566105907},null,null,{"$f":"'[1]EXT ITCER(M)'!C281","v":72.943439165716754},{"$f":"'[1]EXT ITCER(M)'!D281","v":90.762510135258452},{"$f":"'[1]EXT ITCER(M)'!E281","v":64.569072391708048},{"$f":"'[1]EXT ITCER(M)'!F281","v":76.028412585310349},{"$f":"'[1]EXT ITCER(M)'!G281","v":97.830438263508597},{"$f":"'[1]EXT ITCER(M)'!H281","v":93.53363651481979},{"$f":"'[1]EXT ITCER(M)'!I281","v":90.754756242568348},null,null,{"$f":"'[1]EXT TC(M)'!J281","v":-1.2370114124154099},{"$f":"'[1]EXT TC(M)'!K281","v":0},{"$f":"'[1]EXT TC(M)'!L281","v":0.74435209888866072},{"$f":"'[1]EXT TC(M)'!M281","v":4.0784441997269445},{"$f":"'[1]EXT TC(M)'!N281","v":4.9950137625653879},{"$f":"'[1]EXT TC(M)'!O281","v":2.75576690662604},{"$f":"'[1]EXT TC(M)'!P281","v":0},null,null,{"$f":"'[1]EXT RIN(M)'!C281","v":4898.2062223599996},{"$f":"'[1]EXT RIN(M)'!D281","v":2499.4},{"$f":"'[1]EXT RIN(M)'!E281","v":6765.7},{"$f":"'[1]EXT RIN(M)'!F281","v":2505.9990309376426},{"$f":"'[1]EXT RIN(M)'!G281","v":1615.4},{"$f":"'[1]EXT RIN(M)'!H281","v":3245.1544858921702},{"$f":"'[1]EXT RIN(M)'!I281","v":2187.0237964900002},null,null,{"$f":"'[1]EXT RIN(M)'!P281","v":59.813244739086443},{"$f":"'[1]EXT RIN(M)'!Q281","v":96.754837935452912},{"$f":"'[1]EXT RIN(M)'!R281","v":111.5901711639949},{"$f":"'[1]EXT RIN(M)'!S281","v":72.855633576028382},{"$f":"'[1]EXT RIN(M)'!T281","v":113.35455967272412},{"$f":"'[1]EXT RIN(M)'!U281","v":55.305006944136935},{"$f":"'[1]EXT RIN(M)'!V281","v":188.81015051763254},null,null,{"$f":"+'[1]MONE(M)CAPARD'!AE281","v":6.0146585616970905},{"$f":"'[1]MONE(M)CAPARD'!AF281","v":2.4953061224489805},{"$f":"'[1]MONE(M)CAPARD'!AG281","v":2.5592255334804959},{"$f":"'[1]MONE(M)CAPARD'!AH281","v":4.6276950925181097},{"$f":"'[1]MONE(M)CAPARD'!AI281","v":1.6488672342539528},{"$f":"'[1]MONE(M)CAPARD'!AJ281","v":4.2926828512594897},{"$f":"'[1]MONE(M)CAPARD'!AK281","v":-3.6399999999999788},null,null,{"$f":"'[1]MONE(M)CAPARD'!AL281","v":2.1150000000000002},{"$f":"'[1]MONE(M)CAPARD'!AM281","v":2.6},{"$f":"'[1]MONE(M)CAPARD'!AN281","v":2.69},{"$f":"'[1]MONE(M)CAPARD'!AO281","v":3.84},{"$f":"'[1]MONE(M)CAPARD'!AP281","v":2.53039119923453},{"$f":"'[1]MONE(M)CAPARD'!AQ281","v":2.4025630982605106},{"$f":"'[1]MONE(M)CAPARD'!AR281","v":2.2000000000000002},null,null,{"$f":"'[1]MONE(M)CAPARD'!J281","v":15.292140446689046},{"$f":"'[1]MONE(M)CAPARD'!K281","v":5.6021326530612257},{"$f":"'[1]MONE(M)CAPARD'!L281","v":10.49408112582781},{"$f":"'[1]MONE(M)CAPARD'!M281","v":13.532791633145624},{"$f":"'[1]MONE(M)CAPARD'!N281","v":12.955103011143606},{"$f":"'[1]MONE(M)CAPARD'!O281","v":12.344084317190624},{"$f":"'[1]MONE(M)CAPARD'!P281","v":0.13142857142859346},null,null,{"$f":"'[1]MONE(M)CAPARD'!Q281","v":10.88},{"$f":"'[1]MONE(M)CAPARD'!R281","v":5.71},{"$f":"'[1]MONE(M)CAPARD'!S281","v":6.2},{"$f":"'[1]MONE(M)CAPARD'!T281","v":8.76},{"$f":"'[1]MONE(M)CAPARD'!U281","v":8.7967658973220306},{"$f":"'[1]MONE(M)CAPARD'!V281","v":7.011313887152685},{"$f":"'[1]MONE(M)CAPARD'!W281","v":6.2},null,null,{"$f":"'[1]MONE(M)CAPARD'!AS281","v":5},{"$f":"'[1]MONE(M)CAPARD'!AT281","v":"n.a."},{"$f":"'[1]MONE(M)CAPARD'!AU281","v":5},{"$f":"'[1]MONE(M)CAPARD'!AV281","v":7},{"$f":"'[1]MONE(M)CAPARD'!AW281","v":"n.a."},{"$f":"'[1]MONE(M)CAPARD'!AX281","v":5.5},{"$f":"'[1]MONE(M)CAPARD'!AY281","v":"n.a."},null,null,{"$f":"+'Datos_Regional (M)'!CF274","v":13.290052753979031},{"$f":"+'Datos_Regional (M)'!CG274","v":4.3220336990323904},{"$f":"+'Datos_Regional (M)'!CH274","v":39.60211478227167},{"$f":"+'Datos_Regional (M)'!CI274","v":15.560903968359764},{"$f":"+'Datos_Regional (M)'!CJ274","v":29.494513297546888},{"$f":"+'Datos_Regional (M)'!CK274","v":6.81634788108052},{"$f":"+'Datos_Regional (M)'!CL274","v":14.898321025679785},null,null,938.08962028066105,440.93833333333333,844.58333333333337,362.49490264333326,387.33890973249999,718.25,1416.8282256666664,3691.6950993231603,5108.5233249898292,null,null,1437.4036852841675,843.22833333333335,1406.0333333333335,778.82234853833336,581.80833333333328,1475.6833333333334,2228.7361237499999,6522.9793671558336,8751.7154909058336,null,null,-2831.2842678326729,-3643.1921659160071,null,null,{"$f":"'[1]EXT Comercio(M)'!C281","v":915.00216422999438},{"$f":"'[1]EXT Comercio(M)'!D281","v":452.78999999999996},{"$f":"'[1]EXT Comercio(M)'!E281","v":829.90000000000032},{"$f":"'[1]EXT Comercio(M)'!F281","v":406.56171339999992},{"$f":"'[1]EXT Comercio(M)'!G281","v":405.17109158},{"$f":"'[1]EXT Comercio(M)'!H281","v":733.5},{"$f":"'[1]EXT Comercio(M)'!I281","v":1579.5981750000001},{"$f":"'[1]EXT Comercio(M)'!K281","v":3742.9249692099911},{"$f":"'[1]EXT Comercio(M)'!L281","v":5322.5231442099903},null,null,{"$f":"'[1]EXT Comercio(M)'!AG281","v":1592.0478195700027},{"$f":"'[1]EXT Comercio(M)'!AH281","v":850.88000000000102},{"$f":"'[1]EXT Comercio(M)'!AI281","v":1439.6999999999996},{"$f":"'[1]EXT Comercio(M)'!AJ281","v":842.0393775499997},{"$f":"'[1]EXT Comercio(M)'!AK281","v":594.00000000000023},{"$f":"'[1]EXT Comercio(M)'!AL281","v":1571.5999999999992},{"$f":"'[1]EXT Comercio(M)'!AM281","v":2564.4632359999987},{"$f":"'[1]EXT Comercio(M)'!AO281","v":6890.2671971200034},{"$f":"'[1]EXT Comercio(M)'!AP281","v":9454.7304331199994},null,null,{"$f":"'[1]EXT Comercio(M)'!$BS281","v":-3147.3422279100087},{"$f":"'[1]EXT Comercio(M)'!$BT281","v":-4132.2072889100091}]
[null,null,"Setiembre",{"$f":"'[1]REAL IPC(M)'!AD282","v":4.4663053122658232},{"$f":"'[1]REAL IPC(M)'!AE282","v":0.78212290502792292},{"$f":"'[1]REAL IPC(M)'!AF282","v":3.2803932690489686},{"$f":"'[1]REAL IPC(M)'!AG282","v":5.2985702270815782},{"$f":"'[1]REAL IPC(M)'!AH282","v":6.4054942745756058},{"$f":"'[1]REAL IPC(M)'!AI282","v":2.604408892196072},{"$f":"'[1]REAL IPC(M)'!AJ282","v":5.3558327219368946},null,null,{"$f":"'[1]REAL IMAE(M)'!AG282","v":3.4270336806241684},{"$f":"'[1]REAL IMAE(M)'!AH282","v":3.2643974823901476},{"$f":"'[1]REAL IMAE(M)'!AI282","v":"n.d."},{"$f":"'[1]REAL IMAE(M)'!AJ282","v":5.2237215386701914},{"$f":"'[1]REAL IMAE(M)'!AK282","v":6.4250093853122063},{"$f":"'[1]REAL IMAE(M)'!AL282","v":1.9495779677088063},{"$f":"'[1]REAL IMAE(M)'!AM282","v":9.0480760841113383},null,null,{"$f":"'[1]EXT ITCER(M)'!C282","v":73.012824627254119},{"$f":"'[1]EXT ITCER(M)'!D282","v":90.796912080279228},{"$f":"'[1]EXT ITCER(M)'!E282","v":65.256267035749985},{"$f":"'[1]EXT ITCER(M)'!F282","v":76.125020427439651},{"$f":"'[1]EXT ITCER(M)'!G282","v":97.954702376911882},{"$f":"'[1]EXT ITCER(M)'!H282","v":93.569931143115269},{"$f":"'[1]EXT ITCER(M)'!I282","v":91.096241527804921},null,null,{"$f":"'[1]EXT TC(M)'!J282","v":-2.5480483272600942},{"$f":"'[1]EXT TC(M)'!K282","v":0},{"$f":"'[1]EXT TC(M)'!L282","v":1.5327982081426943},{"$f":"'[1]EXT TC(M)'!M282","v":4.081574454208762},{"$f":"'[1]EXT TC(M)'!N282","v":5.0168378373397919},{"$f":"'[1]EXT TC(M)'!O282","v":2.7762048571788029},{"$f":"'[1]EXT TC(M)'!P282","v":0},null,null,{"$f":"'[1]EXT RIN(M)'!C282","v":5139.7594487200004},{"$f":"'[1]EXT RIN(M)'!D282","v":2485.6},{"$f":"'[1]EXT RIN(M)'!E282","v":6753.7},{"$f":"'[1]EXT RIN(M)'!F282","v":2466.3195746445567},{"$f":"'[1]EXT RIN(M)'!G282","v":1643.1},{"$f":"'[1]EXT RIN(M)'!H282","v":3002.4},{"$f":"'[1]EXT RIN(M)'!I282","v":1942.56059026},null,null,{"$f":"'[1]EXT RIN(M)'!P282","v":61.101273502184185},{"$f":"'[1]EXT RIN(M)'!Q282","v":99.197353885841622},{"$f":"'[1]EXT RIN(M)'!R282","v":110.4928029358711},{"$f":"'[1]EXT RIN(M)'!S282","v":72.588809234040625},{"$f":"'[1]EXT RIN(M)'!T282","v":115.17870493531042},{"$f":"'[1]EXT RIN(M)'!U282","v":52.922873145032625},{"$f":"'[1]EXT RIN(M)'!V282","v":165.20887193305981},null,null,{"$f":"+'[1]MONE(M)CAPARD'!AE282","v":5.7757328257169025},{"$f":"'[1]MONE(M)CAPARD'!AF282","v":1.9426829268292785},{"$f":"'[1]MONE(M)CAPARD'!AG282","v":2.0329189931350125},{"$f":"'[1]MONE(M)CAPARD'!AH282","v":3.9140415335463286},{"$f":"'[1]MONE(M)CAPARD'!AI282","v":1.5945715899414072},{"$f":"'[1]MONE(M)CAPARD'!AJ282","v":2.6944158760965764},{"$f":"'[1]MONE(M)CAPARD'!AK282","v":-3.0048955431754791},null,null,{"$f":"'[1]MONE(M)CAPARD'!AL282","v":2.12},{"$f":"'[1]MONE(M)CAPARD'!AM282","v":2.74},{"$f":"'[1]MONE(M)CAPARD'!AN282","v":2.72},{"$f":"'[1]MONE(M)CAPARD'!AO282","v":3.95},{"$f":"'[1]MONE(M)CAPARD'!AP282","v":3.0989768766090302},{"$f":"'[1]MONE(M)CAPARD'!AQ282","v":2.4109215332598599},{"$f":"'[1]MONE(M)CAPARD'!AR282","v":2.19},null,null,{"$f":"'[1]MONE(M)CAPARD'!J282","v":15.271617618758638},{"$f":"'[1]MONE(M)CAPARD'!K282","v":4.7804878048780584},{"$f":"'[1]MONE(M)CAPARD'!L282","v":9.914376201372999},{"$f":"'[1]MONE(M)CAPARD'!M282","v":12.831541533546329},{"$f":"'[1]MONE(M)CAPARD'!N282","v":11.315480548550408},{"$f":"'[1]MONE(M)CAPARD'!O282","v":10.589491483077538},{"$f":"'[1]MONE(M)CAPARD'!P282","v":0.469045961002794},null,null,{"$f":"'[1]MONE(M)CAPARD'!Q282","v":10.88},{"$f":"'[1]MONE(M)CAPARD'!R282","v":5.6},{"$f":"'[1]MONE(M)CAPARD'!S282","v":6.18},{"$f":"'[1]MONE(M)CAPARD'!T282","v":8.81},{"$f":"'[1]MONE(M)CAPARD'!U282","v":8.1959132044136194},{"$f":"'[1]MONE(M)CAPARD'!V282","v":6.1213131312324967},{"$f":"'[1]MONE(M)CAPARD'!W282","v":5.85},null,null,{"$f":"'[1]MONE(M)CAPARD'!AS282","v":5},{"$f":"'[1]MONE(M)CAPARD'!AT282","v":"n.a."},{"$f":"'[1]MONE(M)CAPARD'!AU282","v":5},{"$f":"'[1]MONE(M)CAPARD'!AV282","v":7},{"$f":"'[1]MONE(M)CAPARD'!AW282","v":"n.a."},{"$f":"'[1]MONE(M)CAPARD'!AX282","v":5},{"$f":"'[1]MONE(M)CAPARD'!AY282","v":"n.a."},null,null,{"$f":"+'Datos_Regional (M)'!CF275","v":13.495197438190299},{"$f":"+'Datos_Regional (M)'!CG275","v":3.803816987852926},{"$f":"+'Datos_Regional (M)'!CH275","v":39.396273288941309},{"$f":"+'Datos_Regional (M)'!CI275","v":16.341551847862835},{"$f":"+'Datos_Regional (M)'!CJ275","v":28.037376534173418},{"$f":"+'Datos_Regional (M)'!CK275","v":5.7105424077370515},{"$f":"+'Datos_Regional (M)'!CL275","v":15.210448060397642},null,null,939.48917512566106,438.53583333333336,841.80833333333339,367.70980691416662,389.99462972500004,719.94999999999993,1384.8525230000002,3697.4877784314954,5082.3403014314963,null,null,1433.7883305200005,839.47166666666669,1394.6000000000001,781.6071125366667,586.53333333333319,1476.4083333333331,2235.4235635833334,6512.4087763899997,8747.8323399733345,null,null,-2814.9209979585053,-3665.4920385418391,null,null,{"$f":"'[1]EXT Comercio(M)'!C282","v":907.24415246999524},{"$f":"'[1]EXT Comercio(M)'!D282","v":409.94000000000005},{"$f":"'[1]EXT Comercio(M)'!E282","v":785.19999999999982},{"$f":"'[1]EXT Comercio(M)'!F282","v":309.50351525999986},{"$f":"'[1]EXT Comercio(M)'!G282","v":386.18622478999998},{"$f":"'[1]EXT Comercio(M)'!H282","v":739},{"$f":"'[1]EXT Comercio(M)'!I282","v":1278.4141540000001},{"$f":"'[1]EXT Comercio(M)'!K282","v":3537.0738925199985},{"$f":"'[1]EXT Comercio(M)'!L282","v":4815.4880465199967},null,null,{"$f":"'[1]EXT Comercio(M)'!AG282","v":1304.8668251300016},{"$f":"'[1]EXT Comercio(M)'!AH282","v":790.05000000000018},{"$f":"'[1]EXT Comercio(M)'!AI282","v":1281.3},{"$f":"'[1]EXT Comercio(M)'!AJ282","v":775.6998310099998},{"$f":"'[1]EXT Comercio(M)'!AK282","v":583.89999999999975},{"$f":"'[1]EXT Comercio(M)'!AL282","v":1451.0000000000007},{"$f":"'[1]EXT Comercio(M)'!AM282","v":2464.766251},{"$f":"'[1]EXT Comercio(M)'!AO282","v":6186.8166561400067},{"$f":"'[1]EXT Comercio(M)'!AP282","v":8651.5829071400076},null,null,{"$f":"'[1]EXT Comercio(M)'!$BS282","v":-2649.7427636200082},{"$f":"'[1]EXT Comercio(M)'!$BT282","v":-3836.0948606200109}]
[null,null,"Octubre",{"$f":"'[1]REAL IPC(M)'!AD283","v":4.6840231214709824},{"$f":"'[1]REAL IPC(M)'!AE283","v":0.94111069698099625},{"$f":"'[1]REAL IPC(M)'!AF283","v":3.3478343105731097},{"$f":"'[1]REAL IPC(M)'!AG283","v":5.6722689075630255},{"$f":"'[1]REAL IPC(M)'!AH283","v":6.4684304258566057},{"$f":"'[1]REAL IPC(M)'!AI283","v":2.817556258136495},{"$f":"'[1]REAL IPC(M)'!AJ283","v":5.2708638360175915},null,null,{"$f":"'[1]REAL IMAE(M)'!AG283","v":3.2011747282316518},{"$f":"'[1]REAL IMAE(M)'!AH283","v":3.1904612372434706},{"$f":"'[1]REAL IMAE(M)'!AI283","v":"n.d."},{"$f":"'[1]REAL IMAE(M)'!AJ283","v":5.2476683146672309},{"$f":"'[1]REAL IMAE(M)'!AK283","v":7.0851731723306237},{"$f":"'[1]REAL IMAE(M)'!AL283","v":1.7395494387583577},{"$f":"'[1]REAL IMAE(M)'!AM283","v":8.3901302734880581},null,null,{"$f":"'[1]EXT ITCER(M)'!C283","v":72.629165867077333},{"$f":"'[1]EXT ITCER(M)'!D283","v":90.68619461467172},{"$f":"'[1]EXT ITCER(M)'!E283","v":64.3859465943505},{"$f":"'[1]EXT ITCER(M)'!F283","v":76.046509435323102},{"$f":"'[1]EXT ITCER(M)'!G283","v":97.637683430138424},{"$f":"'[1]EXT ITCER(M)'!H283","v":93.846043811646723},{"$f":"'[1]EXT ITCER(M)'!I283","v":90.934162657652479},null,null,{"$f":"'[1]EXT TC(M)'!J283","v":-3.3593223236246583},{"$f":"'[1]EXT TC(M)'!K283","v":0},{"$f":"'[1]EXT TC(M)'!L283","v":0.373088842984313},{"$f":"'[1]EXT TC(M)'!M283","v":4.0847208559403327},{"$f":"'[1]EXT TC(M)'!N283","v":5.0048018425171215},{"$f":"'[1]EXT TC(M)'!O283","v":2.9456842149237201},{"$f":"'[1]EXT TC(M)'!P283","v":0},null,null,{"$f":"'[1]EXT RIN(M)'!C283","v":5365.96608913},{"$f":"'[1]EXT RIN(M)'!D283","v":2548.6999999999998},{"$f":"'[1]EXT RIN(M)'!E283","v":6804.2},{"$f":"'[1]EXT RIN(M)'!F283","v":2398.500381807964},{"$f":"'[1]EXT RIN(M)'!G283","v":1684.1},{"$f":"'[1]EXT RIN(M)'!H283","v":2994.8},{"$f":"'[1]EXT RIN(M)'!I283","v":1908.7486163199999},null,null,{"$f":"'[1]EXT RIN(M)'!P283","v":63.146759894356663},{"$f":"'[1]EXT RIN(M)'!Q283","v":98.830107760375668},{"$f":"'[1]EXT RIN(M)'!R283","v":108.03640676924063},{"$f":"'[1]EXT RIN(M)'!S283","v":75.208677183355505},{"$f":"'[1]EXT RIN(M)'!T283","v":111.13950072473887},{"$f":"'[1]EXT RIN(M)'!U283","v":55.33834199794849},{"$f":"'[1]EXT RIN(M)'!V283","v":159.43826343268881},null,null,{"$f":"+'[1]MONE(M)CAPARD'!AE283","v":5.316930618983271},{"$f":"'[1]MONE(M)CAPARD'!AF283","v":1.8217446690667356},{"$f":"'[1]MONE(M)CAPARD'!AG283","v":1.9856881405563636},{"$f":"'[1]MONE(M)CAPARD'!AH283","v":3.9156262425447319},{"$f":"'[1]MONE(M)CAPARD'!AI283","v":1.4249399453782414},{"$f":"'[1]MONE(M)CAPARD'!AJ283","v":2.0499697059669968},{"$f":"'[1]MONE(M)CAPARD'!AK283","v":-2.9931015299026629},null,null,{"$f":"'[1]MONE(M)CAPARD'!AL283","v":2.15},{"$f":"'[1]MONE(M)CAPARD'!AM283","v":2.78},{"$f":"'[1]MONE(M)CAPARD'!AN283","v":2.73},{"$f":"'[1]MONE(M)CAPARD'!AO283","v":3.92},{"$f":"'[1]MONE(M)CAPARD'!AP283","v":3.4381887188681901},{"$f":"'[1]MONE(M)CAPARD'!AQ283","v":2.5531292063992899},{"$f":"'[1]MONE(M)CAPARD'!AR283","v":2.12},null,null,{"$f":"'[1]MONE(M)CAPARD'!J283","v":15.280246595001371},{"$f":"'[1]MONE(M)CAPARD'!K283","v":4.7937745776793079},{"$f":"'[1]MONE(M)CAPARD'!L283","v":9.9103825036603173},{"$f":"'[1]MONE(M)CAPARD'!M283","v":12.508230616302185},{"$f":"'[1]MONE(M)CAPARD'!N283","v":9.5723076974709684},{"$f":"'[1]MONE(M)CAPARD'!O283","v":9.9323505788186779},{"$f":"'[1]MONE(M)CAPARD'!P283","v":0.89528048215111544},null,null,{"$f":"'[1]MONE(M)CAPARD'!Q283","v":10.8},{"$f":"'[1]MONE(M)CAPARD'!R283","v":5.78},{"$f":"'[1]MONE(M)CAPARD'!S283","v":6.17},{"$f":"'[1]MONE(M)CAPARD'!T283","v":8.85},{"$f":"'[1]MONE(M)CAPARD'!U283","v":8.9289823895589606},{"$f":"'[1]MONE(M)CAPARD'!V283","v":6.3022872373723722},{"$f":"'[1]MONE(M)CAPARD'!W283","v":6.2133333333333338},null,null,{"$f":"'[1]MONE(M)CAPARD'!AS283","v":5},{"$f":"'[1]MONE(M)CAPARD'!AT283","v":"n.a."},{"$f":"'[1]MONE(M)CAPARD'!AU283","v":5},{"$f":"'[1]MONE(M)CAPARD'!AV283","v":7},{"$f":"'[1]MONE(M)CAPARD'!AW283","v":"n.a."},{"$f":"'[1]MONE(M)CAPARD'!AX283","v":5},{"$f":"'[1]MONE(M)CAPARD'!AY283","v":"n.a."},null,null,{"$f":"+'Datos_Regional (M)'!CF276","v":13.513257349732054},{"$f":"+'Datos_Regional (M)'!CG276","v":4.2968949259419853},{"$f":"+'Datos_Regional (M)'!CH276","v":38.730837846143771},{"$f":"+'Datos_Regional (M)'!CI276","v":17.602361812441501},{"$f":"+'Datos_Regional (M)'!CJ276","v":27.270744586671157},{"$f":"+'Datos_Regional (M)'!CK276","v":5.8773749637774486},{"$f":"+'Datos_Regional (M)'!CL276","v":14.256218205175596},null,null,943.71777948899444,443.21166666666659,841.81666666666661,370.89283751083332,396.36646916166666,726.55833333333339,1381.2353620833335,3722.5637528281623,5103.7991149114941,null,null,1451.6897303433332,849.81083333333333,1405.5166666666664,787.5454540574998,592.75833333333333,1480.8916666666667,2267.1862459166673,6568.2126844008335,8835.3989303175003,null,null,-2845.6489315726722,-3731.5998154060057,null,null,{"$f":"'[1]EXT Comercio(M)'!C283","v":919.609951179993},{"$f":"'[1]EXT Comercio(M)'!D283","v":444.99000000000024},{"$f":"'[1]EXT Comercio(M)'!E283","v":732.5},{"$f":"'[1]EXT Comercio(M)'!F283","v":275.89084633999983},{"$f":"'[1]EXT Comercio(M)'!G283","v":436.01428736000003},{"$f":"'[1]EXT Comercio(M)'!H283","v":757},{"$f":"'[1]EXT Comercio(M)'!I283","v":1636.042719},{"$f":"'[1]EXT Comercio(M)'!K283","v":3566.0050848799947},{"$f":"'[1]EXT Comercio(M)'!L283","v":5202.047803879992},null,null,{"$f":"'[1]EXT Comercio(M)'!AG283","v":1616.1852008599869},{"$f":"'[1]EXT Comercio(M)'!AH283","v":863.55000000000018},{"$f":"'[1]EXT Comercio(M)'!AI283","v":1531.7000000000003},{"$f":"'[1]EXT Comercio(M)'!AJ283","v":811.25133027999982},{"$f":"'[1]EXT Comercio(M)'!AK283","v":657.3},{"$f":"'[1]EXT Comercio(M)'!AL283","v":1519.3000000000002},{"$f":"'[1]EXT Comercio(M)'!AM283","v":2685.244356000002},{"$f":"'[1]EXT Comercio(M)'!AO283","v":6999.2865311399873},{"$f":"'[1]EXT Comercio(M)'!AP283","v":9684.5308871399902},null,null,{"$f":"'[1]EXT Comercio(M)'!$BS283","v":-3433.2814462599963},{"$f":"'[1]EXT Comercio(M)'!$BT283","v":-4482.4830832599982}]
[null,null,"Noviembre",{"$f":"'[1]REAL IPC(M)'!AD284","v":5.2163663153646356},{"$f":"'[1]REAL IPC(M)'!AE284","v":0.65128395980647824},{"$f":"'[1]REAL IPC(M)'!AF284","v":3.1140888930829456},{"$f":"'[1]REAL IPC(M)'!AG284","v":5.4416073670992047},{"$f":"'[1]REAL IPC(M)'!AH284","v":6.1635032457332173},{"$f":"'[1]REAL IPC(M)'!AI284","v":3.3723522853957593},{"$f":"'[1]REAL IPC(M)'!AJ284","v":4.4992743105950526},null,null,{"$f":"'[1]REAL IMAE(M)'!AG284","v":3.0701337703035292},{"$f":"'[1]REAL IMAE(M)'!AH284","v":2.8519615765230224},{"$f":"'[1]REAL IMAE(M)'!AI284","v":"n.d."},{"$f":"'[1]REAL IMAE(M)'!AJ284","v":5.073744901811823},{"$f":"'[1]REAL IMAE(M)'!AK284","v":7.5597437384009449},{"$f":"'[1]REAL IMAE(M)'!AL284","v":1.7912913345984309},{"$f":"'[1]REAL IMAE(M)'!AM284","v":7.8478205237567193},null,null,{"$f":"'[1]EXT ITCER(M)'!C284","v":71.999495086972928},{"$f":"'[1]EXT ITCER(M)'!D284","v":90.381663254686259},{"$f":"'[1]EXT ITCER(M)'!E284","v":64.075573278197524},{"$f":"'[1]EXT ITCER(M)'!F284","v":75.864942017017583},{"$f":"'[1]EXT ITCER(M)'!G284","v":96.705614745606042},{"$f":"'[1]EXT ITCER(M)'!H284","v":94.007748074474605},{"$f":"'[1]EXT ITCER(M)'!I284","v":90.409462713865736},null,null,{"$f":"'[1]EXT TC(M)'!J284","v":-1.5496652170911633},{"$f":"'[1]EXT TC(M)'!K284","v":0},{"$f":"'[1]EXT TC(M)'!L284","v":0.72901938112189735},{"$f":"'[1]EXT TC(M)'!M284","v":4.5542560254875797},{"$f":"'[1]EXT TC(M)'!N284","v":5.3353635780372368},{"$f":"'[1]EXT TC(M)'!O284","v":3.8861545825355774},{"$f":"'[1]EXT TC(M)'!P284","v":0},null,null,{"$f":"'[1]EXT RIN(M)'!C284","v":6530.7613680000004},{"$f":"'[1]EXT RIN(M)'!D284","v":2514.6},{"$f":"'[1]EXT RIN(M)'!E284","v":6711.2},{"$f":"'[1]EXT RIN(M)'!F284","v":2376.1123724889212},{"$f":"'[1]EXT RIN(M)'!G284","v":1702.5},{"$f":"'[1]EXT RIN(M)'!H284","v":3119.3},{"$f":"'[1]EXT RIN(M)'!I284","v":2106.1048792199999},null,null,{"$f":"'[1]EXT RIN(M)'!P284","v":75.365066629609785},{"$f":"'[1]EXT RIN(M)'!Q284","v":99.663191837970615},{"$f":"'[1]EXT RIN(M)'!R284","v":105.71411976243461},{"$f":"'[1]EXT RIN(M)'!S284","v":73.883324366367262},{"$f":"'[1]EXT RIN(M)'!T284","v":111.49331023499469},{"$f":"'[1]EXT RIN(M)'!U284","v":56.11320788733051},{"$f":"'[1]EXT RIN(M)'!V284","v":136.91898306608931},null,null,{"$f":"+'[1]MONE(M)CAPARD'!AE284","v":4.0712617576965586},{"$f":"'[1]MONE(M)CAPARD'!AF284","v":2.4229358476613028},{"$f":"'[1]MONE(M)CAPARD'!AG284","v":2.2265736249656838},{"$f":"'[1]MONE(M)CAPARD'!AH284","v":4.5033386264390627},{"$f":"'[1]MONE(M)CAPARD'!AI284","v":2.1724784172249403},{"$f":"'[1]MONE(M)CAPARD'!AJ284","v":1.4998954035247378},{"$f":"'[1]MONE(M)CAPARD'!AK284","v":-2.2768333333333213},null,null,{"$f":"'[1]MONE(M)CAPARD'!AL284","v":2.15},{"$f":"'[1]MONE(M)CAPARD'!AM284","v":3.09},{"$f":"'[1]MONE(M)CAPARD'!AN284","v":2.76},{"$f":"'[1]MONE(M)CAPARD'!AO284","v":3.98},{"$f":"'[1]MONE(M)CAPARD'!AP284","v":1.92275526041191},{"$f":"'[1]MONE(M)CAPARD'!AQ284","v":2.4133867878690398},{"$f":"'[1]MONE(M)CAPARD'!AR284","v":2.12},null,null,{"$f":"'[1]MONE(M)CAPARD'!J284","v":14.706489329099524},{"$f":"'[1]MONE(M)CAPARD'!K284","v":5.1551414309484169},{"$f":"'[1]MONE(M)CAPARD'!L284","v":10.120742198224583},{"$f":"'[1]MONE(M)CAPARD'!M284","v":12.820738388249305},{"$f":"'[1]MONE(M)CAPARD'!N284","v":10.431999812145555},{"$f":"'[1]MONE(M)CAPARD'!O284","v":9.8645490666499054},{"$f":"'[1]MONE(M)CAPARD'!P284","v":1.6530185185185309},null,null,{"$f":"'[1]MONE(M)CAPARD'!Q284","v":11.1},{"$f":"'[1]MONE(M)CAPARD'!R284","v":5.84},{"$f":"'[1]MONE(M)CAPARD'!S284","v":6.2},{"$f":"'[1]MONE(M)CAPARD'!T284","v":8.74},{"$f":"'[1]MONE(M)CAPARD'!U284","v":8.4761685189420692},{"$f":"'[1]MONE(M)CAPARD'!V284","v":5.8745883164269106},{"$f":"'[1]MONE(M)CAPARD'!W284","v":6.2266666666666666},null,null,{"$f":"'[1]MONE(M)CAPARD'!AS284","v":5},{"$f":"'[1]MONE(M)CAPARD'!AT284","v":"n.a."},{"$f":"'[1]MONE(M)CAPARD'!AU284","v":5},{"$f":"'[1]MONE(M)CAPARD'!AV284","v":7},{"$f":"'[1]MONE(M)CAPARD'!AW284","v":"n.a."},{"$f":"'[1]MONE(M)CAPARD'!AX284","v":5},{"$f":"'[1]MONE(M)CAPARD'!AY284","v":"n.a."},null,null,{"$f":"+'Datos_Regional (M)'!CF277","v":13.685649982366188},{"$f":"+'Datos_Regional (M)'!CG277","v":4.4200988006592778},{"$f":"+'Datos_Regional (M)'!CH277","v":37.898275065483247},{"$f":"+'Datos_Regional (M)'!CI277","v":17.171558684633293},{"$f":"+'Datos_Regional (M)'!CJ277","v":25.636888853021354},{"$f":"+'Datos_Regional (M)'!CK277","v":5.9303229719078088},{"$f":"+'Datos_Regional (M)'!CL277","v":14.616660632069657},null,null,950.36903455066067,445.54333333333335,843.3416666666667,369.58294994333323,401.10716126083327,742.85833333333323,1400.0135364166665,3752.8024790881609,5152.8160155048281,null,null,1456.6213977450009,856.59333333333336,1407.0916666666665,784.54099858583322,593.07499999999993,1477.1083333333329,2275.3033097500006,6575.0307296641695,8850.3340394141705,null,null,-2822.2282505760068,-3697.5180239093402,null,null,{"$f":"'[1]EXT Comercio(M)'!C284","v":983.18303701999321},{"$f":"'[1]EXT Comercio(M)'!D284","v":416.76000000000022},{"$f":"'[1]EXT Comercio(M)'!E284","v":808.29999999999973},{"$f":"'[1]EXT Comercio(M)'!F284","v":249.70019592999961},{"$f":"'[1]EXT Comercio(M)'!G284","v":398.35594606000001},{"$f":"'[1]EXT Comercio(M)'!H284","v":876.3},{"$f":"'[1]EXT Comercio(M)'!I284","v":1709.1735840000001},{"$f":"'[1]EXT Comercio(M)'!K284","v":3732.599179009987},{"$f":"'[1]EXT Comercio(M)'!L284","v":5441.772763009998},null,null,{"$f":"'[1]EXT Comercio(M)'!AG284","v":1551.3879772700107},{"$f":"'[1]EXT Comercio(M)'!AH284","v":860.8700000000008},{"$f":"'[1]EXT Comercio(M)'!AI284","v":1431.0999999999997},{"$f":"'[1]EXT Comercio(M)'!AJ284","v":761.96831855999972},{"$f":"'[1]EXT Comercio(M)'!AK284","v":587.89999999999986},{"$f":"'[1]EXT Comercio(M)'!AL284","v":1475.8999999999996},{"$f":"'[1]EXT Comercio(M)'!AM284","v":2254.8065350000006},{"$f":"'[1]EXT Comercio(M)'!AO284","v":6669.1262958300067},{"$f":"'[1]EXT Comercio(M)'!AP284","v":8923.9328308300173},null,null,{"$f":"'[1]EXT Comercio(M)'!$BS284","v":-2936.5271168200125},{"$f":"'[1]EXT Comercio(M)'!$BT284","v":-3482.160067820012}]
[null,null,"Diciembre ",{"$f":"'[1]REAL IPC(M)'!AD285","v":4.5505304799921396},{"$f":"'[1]REAL IPC(M)'!AE285","v":0.78292478329759441},{"$f":"'[1]REAL IPC(M)'!AF285","v":3.4463276836158157},{"$f":"'[1]REAL IPC(M)'!AG285","v":5.3907229419139053},{"$f":"'[1]REAL IPC(M)'!AH285","v":6.6186108228091536},{"$f":"'[1]REAL IPC(M)'!AI285","v":3.9068299925760894},{"$f":"'[1]REAL IPC(M)'!AJ285","v":4.6343229543808873},null,null,{"$f":"'[1]REAL IMAE(M)'!AG285","v":2.7582462709211164},{"$f":"'[1]REAL IMAE(M)'!AH285","v":2.3324249216762825},{"$f":"'[1]REAL IMAE(M)'!AI285","v":"n.d."},{"$f":"'[1]REAL IMAE(M)'!AJ285","v":4.6850894183085137},{"$f":"'[1]REAL IMAE(M)'!AK285","v":7.8407625325509862},{"$f":"'[1]REAL IMAE(M)'!AL285","v":2.0200660410061198},{"$f":"'[1]REAL IMAE(M)'!AM285","v":7.5341019468727577},null,null,{"$f":"'[1]EXT ITCER(M)'!C285","v":71.592249581698383},{"$f":"'[1]EXT ITCER(M)'!D285","v":90.179940111575149},{"$f":"'[1]EXT ITCER(M)'!E285","v":63.708172847251689},{"$f":"'[1]EXT ITCER(M)'!F285","v":75.86856381933633},{"$f":"'[1]EXT ITCER(M)'!G285","v":95.266917314358352},{"$f":"'[1]EXT ITCER(M)'!H285","v":93.716471462321152},{"$f":"'[1]EXT ITCER(M)'!I285","v":89.786117128644818},null,null,{"$f":"'[1]EXT TC(M)'!J285","v":-1.0953286373159281},{"$f":"'[1]EXT TC(M)'!K285","v":0},{"$f":"'[1]EXT TC(M)'!L285","v":1.1623029286473625},{"$f":"'[1]EXT TC(M)'!M285","v":4.8224186163205651},{"$f":"'[1]EXT TC(M)'!N285","v":5.4183704095367222},{"$f":"'[1]EXT TC(M)'!O285","v":4.2106710457022949},{"$f":"'[1]EXT TC(M)'!P285","v":0},null,null,{"$f":"'[1]EXT RIN(M)'!C285","v":6856.6761120399997},{"$f":"'[1]EXT RIN(M)'!D285","v":3172.9},{"$f":"'[1]EXT RIN(M)'!E285","v":6693.8},{"$f":"'[1]EXT RIN(M)'!F285","v":2570.9308349226294},{"$f":"'[1]EXT RIN(M)'!G285","v":1718.1},{"$f":"'[1]EXT RIN(M)'!H285","v":3209.8098136290778},{"$f":"'[1]EXT RIN(M)'!I285","v":2418.5563101600001},null,null,{"$f":"'[1]EXT RIN(M)'!P285","v":75.528614572263805},{"$f":"'[1]EXT RIN(M)'!Q285","v":131.27881511859943},{"$f":"'[1]EXT RIN(M)'!R285","v":101.67566131039575},{"$f":"'[1]EXT RIN(M)'!S285","v":74.670903759849566},{"$f":"'[1]EXT RIN(M)'!T285","v":115.30061075949349},{"$f":"'[1]EXT RIN(M)'!U285","v":56.259014451288678},{"$f":"'[1]EXT RIN(M)'!V285","v":193.37093950180434},null,null,{"$f":"+'[1]MONE(M)CAPARD'!AE285","v":4.4471027537231196},{"$f":"'[1]MONE(M)CAPARD'!AF285","v":2.5173661333580051},{"$f":"'[1]MONE(M)CAPARD'!AG285","v":1.8692517749863498},{"$f":"'[1]MONE(M)CAPARD'!AH285","v":4.8479381443299072},{"$f":"'[1]MONE(M)CAPARD'!AI285","v":1.5425221116799057},{"$f":"'[1]MONE(M)CAPARD'!AJ285","v":1.2926676788425524},{"$f":"'[1]MONE(M)CAPARD'!AK285","v":-2.3934048442906612},null,null,{"$f":"'[1]MONE(M)CAPARD'!AL285","v":2.15},{"$f":"'[1]MONE(M)CAPARD'!AM285","v":3.32},{"$f":"'[1]MONE(M)CAPARD'!AN285","v":2.77},{"$f":"'[1]MONE(M)CAPARD'!AO285","v":4.1100000000000003},{"$f":"'[1]MONE(M)CAPARD'!AP285","v":2.9963724161366301},{"$f":"'[1]MONE(M)CAPARD'!AQ285","v":2.46},{"$f":"'[1]MONE(M)CAPARD'!AR285","v":2.13},null,null,{"$f":"'[1]MONE(M)CAPARD'!J285","v":15.236144137074739},{"$f":"'[1]MONE(M)CAPARD'!K285","v":4.8689549616202825},{"$f":"'[1]MONE(M)CAPARD'!L285","v":9.6897323866739544},{"$f":"'[1]MONE(M)CAPARD'!M285","v":13.140888183980978},{"$f":"'[1]MONE(M)CAPARD'!N285","v":10.809478337601952},{"$f":"'[1]MONE(M)CAPARD'!O285","v":8.6165365722961553},{"$f":"'[1]MONE(M)CAPARD'!P285","v":1.5536747404844251},null,null,{"$f":"'[1]MONE(M)CAPARD'!Q285","v":11.1},{"$f":"'[1]MONE(M)CAPARD'!R285","v":5.69},{"$f":"'[1]MONE(M)CAPARD'!S285","v":6.1899999999999995},{"$f":"'[1]MONE(M)CAPARD'!T285","v":8.75},{"$f":"'[1]MONE(M)CAPARD'!U285","v":8.3290553009836703},{"$f":"'[1]MONE(M)CAPARD'!V285","v":6.82},{"$f":"'[1]MONE(M)CAPARD'!W285","v":6.26},null,null,{"$f":"'[1]MONE(M)CAPARD'!AS285","v":5},{"$f":"'[1]MONE(M)CAPARD'!AT285","v":"n.a."},{"$f":"'[1]MONE(M)CAPARD'!AU285","v":5},{"$f":"'[1]MONE(M)CAPARD'!AV285","v":7},{"$f":"'[1]MONE(M)CAPARD'!AW285","v":"n.a."},{"$f":"'[1]MONE(M)CAPARD'!AX285","v":5},{"$f":"'[1]MONE(M)CAPARD'!AY285","v":"n.a."},null,null,{"$f":"+'Datos_Regional (M)'!CF278","v":14.049232257194166},{"$f":"+'Datos_Regional (M)'!CG278","v":3.4139141305052245},{"$f":"+'Datos_Regional (M)'!CH278","v":41.109297639245867},{"$f":"+'Datos_Regional (M)'!CI278","v":16.879082829856749},{"$f":"+'Datos_Regional (M)'!CJ278","v":26.286194155104383},{"$f":"+'Datos_Regional (M)'!CK278","v":5.8899808902095563},{"$f":"+'Datos_Regional (M)'!CL278","v":15.211570560887466},null,null,953.71615834832721,444.92333333333335,831.55833333333339,365.92236845999992,402.35546811916669,744.62499999999989,1409.7487818333332,3743.1006615941606,5152.8494434274935,null,null,1465.8858827616671,854.78416666666681,1416.1666666666667,782.10712010499992,601.35833333333323,1472.7749999999999,2268.2019118333337,6593.0771695333342,8861.279081366667,null,null,-2849.9765079391732,-3708.429637939174,null,null,{"$f":"'[1]EXT Comercio(M)'!C285","v":880.67446991999168},{"$f":"'[1]EXT Comercio(M)'!D285","v":418.1899999999996},{"$f":"'[1]EXT Comercio(M)'!E285","v":823.69999999999982},{"$f":"'[1]EXT Comercio(M)'!F285","v":293.21729701000004},{"$f":"'[1]EXT Comercio(M)'!G285","v":352.51236244},{"$f":"'[1]EXT Comercio(M)'!H285","v":684.8},{"$f":"'[1]EXT Comercio(M)'!I285","v":1195.649776},{"$f":"'[1]EXT Comercio(M)'!K285","v":3453.0941293699943},{"$f":"'[1]EXT Comercio(M)'!L285","v":4648.7439053699854},null,null,{"$f":"'[1]EXT Comercio(M)'!AG285","v":1473.1929399800003},{"$f":"'[1]EXT Comercio(M)'!AH285","v":835.31999999999971},{"$f":"'[1]EXT Comercio(M)'!AI285","v":1409.4999999999993},{"$f":"'[1]EXT Comercio(M)'!AJ285","v":747.11638144000062},{"$f":"'[1]EXT Comercio(M)'!AK285","v":634.79999999999961},{"$f":"'[1]EXT Comercio(M)'!AL285","v":1478.5000000000005},{"$f":"'[1]EXT Comercio(M)'!AM285","v":1823.3658869999999},{"$f":"'[1]EXT Comercio(M)'!AO285","v":6578.4293214200006},{"$f":"'[1]EXT Comercio(M)'!AP285","v":8401.7952084199933},null,null,{"$f":"'[1]EXT Comercio(M)'!$BS285","v":-3125.3351920500136},{"$f":"'[1]EXT Comercio(M)'!$BT285","v":-3753.0513030500151}]
[null,2013,"Enero",{"$f":"'[1]REAL IPC(M)'!AD286","v":5.7367026454113565},{"$f":"'[1]REAL IPC(M)'!AE286","v":0.87320018578727132},{"$f":"'[1]REAL IPC(M)'!AF286","v":3.857008466603959},{"$f":"'[1]REAL IPC(M)'!AG286","v":5.6713928273561276},{"$f":"'[1]REAL IPC(M)'!AH286","v":7.7431221581462317},{"$f":"'[1]REAL IPC(M)'!AI286","v":4.7583849210015625},{"$f":"'[1]REAL IPC(M)'!AJ286","v":4.6829971181556225},null,null,{"$f":"'[1]REAL IMAE(M)'!AG286","v":2.1748934619704841},{"$f":"'[1]REAL IMAE(M)'!AH286","v":1.7395626231643473},{"$f":"'[1]REAL IMAE(M)'!AI286","v":"n.d."},{"$f":"'[1]REAL IMAE(M)'!AJ286","v":4.0796469637382984},{"$f":"'[1]REAL IMAE(M)'!AK286","v":7.8546465838587531},{"$f":"'[1]REAL IMAE(M)'!AL286","v":2.3155378929812671},{"$f":"'[1]REAL IMAE(M)'!AM286","v":8.08496347913694},null,null,{"$f":"'[1]EXT ITCER(M)'!C286","v":71.019648352615619},{"$f":"'[1]EXT ITCER(M)'!D286","v":90.063487075445494},{"$f":"'[1]EXT ITCER(M)'!E286","v":63.515580341414449},{"$f":"'[1]EXT ITCER(M)'!F286","v":76.01711299636824},{"$f":"'[1]EXT ITCER(M)'!G286","v":95.038086014268714},{"$f":"'[1]EXT ITCER(M)'!H286","v":93.76103524610555},{"$f":"'[1]EXT ITCER(M)'!I286","v":89.591954977728605},null,null,{"$f":"'[1]EXT TC(M)'!J286","v":-1.7366074913835243},{"$f":"'[1]EXT TC(M)'!K286","v":0},{"$f":"'[1]EXT TC(M)'!L286","v":0.91712287650779423},{"$f":"'[1]EXT TC(M)'!M286","v":4.7880183605774009},{"$f":"'[1]EXT TC(M)'!N286","v":5.2674431116844094},{"$f":"'[1]EXT TC(M)'!O286","v":4.4191217342968265},{"$f":"'[1]EXT TC(M)'!P286","v":0},null,null,{"$f":"'[1]EXT RIN(M)'!C286","v":6748.7871541100003},{"$f":"'[1]EXT RIN(M)'!D286","v":3116},{"$f":"'[1]EXT RIN(M)'!E286","v":6649.7},{"$f":"'[1]EXT RIN(M)'!F286","v":2535.3638062192508},{"$f":"'[1]EXT RIN(M)'!G286","v":1717.9},{"$f":"'[1]EXT RIN(M)'!H286","v":3017.8},{"$f":"'[1]EXT RIN(M)'!I286","v":2590.8353731500001},null,null,{"$f":"'[1]EXT RIN(M)'!P286","v":71.343228895754351},{"$f":"'[1]EXT RIN(M)'!Q286","v":115.52537164801244},{"$f":"'[1]EXT RIN(M)'!R286","v":103.08884859816045},{"$f":"'[1]EXT RIN(M)'!S286","v":73.937711462219013},{"$f":"'[1]EXT RIN(M)'!T286","v":114.21335335326681},{"$f":"'[1]EXT RIN(M)'!U286","v":56.588836462159783},{"$f":"'[1]EXT RIN(M)'!V286","v":217.3229183104186},null,null,{"$f":"+'[1]MONE(M)CAPARD'!AE286","v":2.4242266785873556},{"$f":"'[1]MONE(M)CAPARD'!AF286","v":2.3760521226632312},{"$f":"'[1]MONE(M)CAPARD'!AG286","v":1.5049456521739053},{"$f":"'[1]MONE(M)CAPARD'!AH286","v":5.1183267561168133},{"$f":"'[1]MONE(M)CAPARD'!AI286","v":0.6527348585987377},{"$f":"'[1]MONE(M)CAPARD'!AJ286","v":1.0897600987828624},{"$f":"'[1]MONE(M)CAPARD'!AK286","v":-2.4292360633172772},null,null,{"$f":"'[1]MONE(M)CAPARD'!AL286","v":2.1550000000000002},{"$f":"'[1]MONE(M)CAPARD'!AM286","v":3.27},{"$f":"'[1]MONE(M)CAPARD'!AN286","v":2.78},{"$f":"'[1]MONE(M)CAPARD'!AO286","v":4.17},{"$f":"'[1]MONE(M)CAPARD'!AP286","v":3.2650459696615299},{"$f":"'[1]MONE(M)CAPARD'!AQ286","v":2.11},{"$f":"'[1]MONE(M)CAPARD'!AR286","v":2.14},null,null,{"$f":"'[1]MONE(M)CAPARD'!J286","v":13.621852199127286},{"$f":"'[1]MONE(M)CAPARD'!K286","v":4.7255364214016042},{"$f":"'[1]MONE(M)CAPARD'!L286","v":9.3041304347825999},{"$f":"'[1]MONE(M)CAPARD'!M286","v":13.08642462509866},{"$f":"'[1]MONE(M)CAPARD'!N286","v":12.606536286991251},{"$f":"'[1]MONE(M)CAPARD'!O286","v":7.9149894161227827},{"$f":"'[1]MONE(M)CAPARD'!P286","v":1.5160082587749451},null,null,{"$f":"'[1]MONE(M)CAPARD'!Q286","v":11.21},{"$f":"'[1]MONE(M)CAPARD'!R286","v":5.64},{"$f":"'[1]MONE(M)CAPARD'!S286","v":6.18},{"$f":"'[1]MONE(M)CAPARD'!T286","v":8.75},{"$f":"'[1]MONE(M)CAPARD'!U286","v":8.7767559505213004},{"$f":"'[1]MONE(M)CAPARD'!V286","v":7.02},{"$f":"'[1]MONE(M)CAPARD'!W286","v":6.27},null,null,{"$f":"'[1]MONE(M)CAPARD'!AS286","v":5},{"$f":"'[1]MONE(M)CAPARD'!AT286","v":"n.a."},{"$f":"'[1]MONE(M)CAPARD'!AU286","v":5},{"$f":"'[1]MONE(M)CAPARD'!AV286","v":7},{"$f":"'[1]MONE(M)CAPARD'!AW286","v":"n.a."},{"$f":"'[1]MONE(M)CAPARD'!AX286","v":5},{"$f":"'[1]MONE(M)CAPARD'!AY286","v":"n.a."},null,null,{"$f":"+'Datos_Regional (M)'!CF279","v":14.398525332226786},{"$f":"+'Datos_Regional (M)'!CG279","v":3.8633469805749998},{"$f":"+'Datos_Regional (M)'!CH279","v":40.64299583443762},{"$f":"+'Datos_Regional (M)'!CI279","v":15.448290728615998},{"$f":"+'Datos_Regional (M)'!CJ279","v":25.747361922451905},{"$f":"+'Datos_Regional (M)'!CK279","v":6.6944211394347031},{"$f":"+'Datos_Regional (M)'!CL279","v":19.130349014659508},null,null,956.36932721666028,447.435,838.55833333333339,369.00561891104627,402.62106464583331,752.26666666666654,1414.722404833333,3766.2560107735403,5180.9784156068736,null,null,1473.3947740641661,860.16333333333341,1426.5833333333333,787.70891689485882,605.27499999999998,1466.5916666666665,2294.8526542500003,6619.7170242923594,8914.5696785423588,null,null,-2853.4610135188182,-3733.5912629354857,null,null,{"$f":"'[1]EXT Comercio(M)'!C286","v":911.55497141999081},{"$f":"'[1]EXT Comercio(M)'!D286","v":478.83},{"$f":"'[1]EXT Comercio(M)'!E286","v":828.19999999999993},{"$f":"'[1]EXT Comercio(M)'!F286","v":379.56635029255699},{"$f":"'[1]EXT Comercio(M)'!G286","v":395.04702832999999},{"$f":"'[1]EXT Comercio(M)'!H286","v":676.9},{"$f":"'[1]EXT Comercio(M)'!I286","v":1096.5744199999999},{"$f":"'[1]EXT Comercio(M)'!K286","v":3670.0983500425477},{"$f":"'[1]EXT Comercio(M)'!L286","v":4766.6727700425481},null,null,{"$f":"'[1]EXT Comercio(M)'!AG286","v":1562.8947004099925},{"$f":"'[1]EXT Comercio(M)'!AH286","v":885.23},{"$f":"'[1]EXT Comercio(M)'!AI286","v":1465.6},{"$f":"'[1]EXT Comercio(M)'!AJ286","v":807.42310439830715},{"$f":"'[1]EXT Comercio(M)'!AK286","v":553.20000000000005},{"$f":"'[1]EXT Comercio(M)'!AL286","v":1253.4000000000001},{"$f":"'[1]EXT Comercio(M)'!AM286","v":2196.2185369999997},{"$f":"'[1]EXT Comercio(M)'!AO286","v":6527.7478048082994},{"$f":"'[1]EXT Comercio(M)'!AP286","v":8723.9663418083001},null,null,{"$f":"'[1]EXT Comercio(M)'!$BS286","v":-2857.6494547657521},{"$f":"'[1]EXT Comercio(M)'!$BT286","v":-3957.2935717657519}]
[null,null,"Febrero",{"$f":"'[1]REAL IPC(M)'!AD287","v":6.5157852975185353},{"$f":"'[1]REAL IPC(M)'!AE287","v":0.97222222222221966},{"$f":"'[1]REAL IPC(M)'!AF287","v":4.1842179163156406},{"$f":"'[1]REAL IPC(M)'!AG287","v":5.7827344072697349},{"$f":"'[1]REAL IPC(M)'!AH287","v":7.0810337818385873},{"$f":"'[1]REAL IPC(M)'!AI287","v":4.7325292330356321},{"$f":"'[1]REAL IPC(M)'!AJ287","v":4.581245526127419},null,null,{"$f":"'[1]REAL IMAE(M)'!AG287","v":1.7827843881938299},{"$f":"'[1]REAL IMAE(M)'!AH287","v":1.2111689344137249},{"$f":"'[1]REAL IMAE(M)'!AI287","v":"n.d."},{"$f":"'[1]REAL IMAE(M)'!AJ287","v":3.4223826238605497},{"$f":"'[1]REAL IMAE(M)'!AK287","v":7.648440101829487},{"$f":"'[1]REAL IMAE(M)'!AL287","v":2.485247577944214},{"$f":"'[1]REAL IMAE(M)'!AM287","v":8.1619885723818513},null,null,{"$f":"'[1]EXT ITCER(M)'!C287","v":71.003425678579305},{"$f":"'[1]EXT ITCER(M)'!D287","v":90.418088048441717},{"$f":"'[1]EXT ITCER(M)'!E287","v":63.088302205405185},{"$f":"'[1]EXT ITCER(M)'!F287","v":76.130645263897094},{"$f":"'[1]EXT ITCER(M)'!G287","v":95.75572781027445},{"$f":"'[1]EXT ITCER(M)'!H287","v":94.644845949175334},{"$f":"'[1]EXT ITCER(M)'!I287","v":89.831119070736733},null,null,{"$f":"'[1]EXT TC(M)'!J287","v":-1.7484904415029727},{"$f":"'[1]EXT TC(M)'!K287","v":0},{"$f":"'[1]EXT TC(M)'!L287","v":0.54917058257373952},{"$f":"'[1]EXT TC(M)'!M287","v":4.7882641892950648},{"$f":"'[1]EXT TC(M)'!N287","v":5.3126981243704279},{"$f":"'[1]EXT TC(M)'!O287","v":4.6618124562867456},{"$f":"'[1]EXT TC(M)'!P287","v":0},null,null,{"$f":"'[1]EXT RIN(M)'!C287","v":6816.2660269300004},{"$f":"'[1]EXT RIN(M)'!D287","v":3070.5},{"$f":"'[1]EXT RIN(M)'!E287","v":7276.7},{"$f":"'[1]EXT RIN(M)'!F287","v":2465.0716619624882},{"$f":"'[1]EXT RIN(M)'!G287","v":1700.5},{"$f":"'[1]EXT RIN(M)'!H287","v":3035.2},{"$f":"'[1]EXT RIN(M)'!I287","v":2557.8234821000001},null,null,{"$f":"'[1]EXT RIN(M)'!P287","v":71.131019357072205},{"$f":"'[1]EXT RIN(M)'!Q287","v":115.57018955317753},{"$f":"'[1]EXT RIN(M)'!R287","v":116.62432027240175},{"$f":"'[1]EXT RIN(M)'!S287","v":73.209400009069768},{"$f":"'[1]EXT RIN(M)'!T287","v":109.10278853943447},{"$f":"'[1]EXT RIN(M)'!U287","v":55.760209931013073},{"$f":"'[1]EXT RIN(M)'!V287","v":214.10694252294218},null,null,{"$f":"+'[1]MONE(M)CAPARD'!AE287","v":0.78318410754926748},{"$f":"'[1]MONE(M)CAPARD'!AF287","v":2.2558459422283383},{"$f":"'[1]MONE(M)CAPARD'!AG287","v":1.2149460916442061},{"$f":"'[1]MONE(M)CAPARD'!AH287","v":5.3858180398281812},{"$f":"'[1]MONE(M)CAPARD'!AI287","v":1.7390651926532481},{"$f":"'[1]MONE(M)CAPARD'!AJ287","v":1.6685081318681321},{"$f":"'[1]MONE(M)CAPARD'!AK287","v":-2.3343052703627678},null,null,{"$f":"'[1]MONE(M)CAPARD'!AL287","v":2.17},{"$f":"'[1]MONE(M)CAPARD'!AM287","v":3.25},{"$f":"'[1]MONE(M)CAPARD'!AN287","v":2.8},{"$f":"'[1]MONE(M)CAPARD'!AO287","v":4.2300000000000004},{"$f":"'[1]MONE(M)CAPARD'!AP287","v":3.0114232713399698},{"$f":"'[1]MONE(M)CAPARD'!AQ287","v":1.79},{"$f":"'[1]MONE(M)CAPARD'!AR287","v":2.14},null,null,{"$f":"'[1]MONE(M)CAPARD'!J287","v":11.861354321513696},{"$f":"'[1]MONE(M)CAPARD'!K287","v":4.6723521320495216},{"$f":"'[1]MONE(M)CAPARD'!L287","v":8.9416442048517535},{"$f":"'[1]MONE(M)CAPARD'!M287","v":13.128102303787571},{"$f":"'[1]MONE(M)CAPARD'!N287","v":13.099070437694637},{"$f":"'[1]MONE(M)CAPARD'!O287","v":8.2758153846153828},{"$f":"'[1]MONE(M)CAPARD'!P287","v":1.6721492128678959},null,null,{"$f":"'[1]MONE(M)CAPARD'!Q287","v":11.13},{"$f":"'[1]MONE(M)CAPARD'!R287","v":5.69},{"$f":"'[1]MONE(M)CAPARD'!S287","v":6.16},{"$f":"'[1]MONE(M)CAPARD'!T287","v":8.7799999999999994},{"$f":"'[1]MONE(M)CAPARD'!U287","v":8.9046228229723798},{"$f":"'[1]MONE(M)CAPARD'!V287","v":6.12},{"$f":"'[1]MONE(M)CAPARD'!W287","v":6.33},null,null,{"$f":"'[1]MONE(M)CAPARD'!AS287","v":5},{"$f":"'[1]MONE(M)CAPARD'!AT287","v":"n.a."},{"$f":"'[1]MONE(M)CAPARD'!AU287","v":5},{"$f":"'[1]MONE(M)CAPARD'!AV287","v":7},{"$f":"'[1]MONE(M)CAPARD'!AW287","v":"n.a."},{"$f":"'[1]MONE(M)CAPARD'!AX287","v":5},{"$f":"'[1]MONE(M)CAPARD'!AY287","v":"n.a."},null,null,{"$f":"+'Datos_Regional (M)'!CF280","v":12.952589264620773},{"$f":"+'Datos_Regional (M)'!CG280","v":5.6724203638708115},{"$f":"+'Datos_Regional (M)'!CH280","v":37.611295613252253},{"$f":"+'Datos_Regional (M)'!CI280","v":14.870383243426044},{"$f":"+'Datos_Regional (M)'!CJ280","v":23.811493728583777},{"$f":"+'Datos_Regional (M)'!CK280","v":7.0563942613386388},{"$f":"+'Datos_Regional (M)'!CL280","v":19.166181768040214},null,null,955.21577805749337,446.11999999999995,833.23333333333358,362.83588986221451,400.48202006249988,755.42500000000007,1402.3911987499998,3753.3120213155412,5155.7032200655412,null,null,1475.8170084324984,861.47916666666686,1428.75,784.4048618713349,606.23333333333323,1469.1999999999998,2288.7330466666672,6625.8843703038337,8914.6174169705009,null,null,-2872.5723489882926,-3758.9141969049597,null,null,{"$f":"'[1]EXT Comercio(M)'!C287","v":936.30993912999338},{"$f":"'[1]EXT Comercio(M)'!D287","v":434.41},{"$f":"'[1]EXT Comercio(M)'!E287","v":796.00000000000011},{"$f":"'[1]EXT Comercio(M)'!F287","v":358.44281003401807},{"$f":"'[1]EXT Comercio(M)'!G287","v":355.52757599},{"$f":"'[1]EXT Comercio(M)'!H287","v":719.40000000000009},{"$f":"'[1]EXT Comercio(M)'!I287","v":1260.0372600000001},{"$f":"'[1]EXT Comercio(M)'!K287","v":3600.0903251540108},{"$f":"'[1]EXT Comercio(M)'!L287","v":4860.1275851540113},null,null,{"$f":"'[1]EXT Comercio(M)'!AG287","v":1354.0647751799925},{"$f":"'[1]EXT Comercio(M)'!AH287","v":835.28},{"$f":"'[1]EXT Comercio(M)'!AI287","v":1337.5000000000002},{"$f":"'[1]EXT Comercio(M)'!AJ287","v":725.89967800771285},{"$f":"'[1]EXT Comercio(M)'!AK287","v":571.00000000000011},{"$f":"'[1]EXT Comercio(M)'!AL287","v":1394.6999999999998},{"$f":"'[1]EXT Comercio(M)'!AM287","v":2058.6268610000002},{"$f":"'[1]EXT Comercio(M)'!AO287","v":6218.444453187707},{"$f":"'[1]EXT Comercio(M)'!AP287","v":8277.0713141877059},null,null,{"$f":"'[1]EXT Comercio(M)'!$BS287","v":-2618.3541280336931},{"$f":"'[1]EXT Comercio(M)'!$BT287","v":-3416.9437290336928}]
[null,null,"Marzo",{"$f":"'[1]REAL IPC(M)'!AD288","v":6.2058775143773612},{"$f":"'[1]REAL IPC(M)'!AE288","v":1.2758875739645059},{"$f":"'[1]REAL IPC(M)'!AF288","v":4.3384959880574652},{"$f":"'[1]REAL IPC(M)'!AG288","v":5.5760557605576029},{"$f":"'[1]REAL IPC(M)'!AH288","v":6.7943130672651559},{"$f":"'[1]REAL IPC(M)'!AI288","v":4.9737979222212108},{"$f":"'[1]REAL IPC(M)'!AJ288","v":4.1163946061036061},null,null,{"$f":"'[1]REAL IMAE(M)'!AG288","v":1.6974191450694873},{"$f":"'[1]REAL IMAE(M)'!AH288","v":1.0469069224965974},{"$f":"'[1]REAL IMAE(M)'!AI288","v":"n.d."},{"$f":"'[1]REAL IMAE(M)'!AJ288","v":2.8207227584204442},{"$f":"'[1]REAL IMAE(M)'!AK288","v":7.2698228470659609},{"$f":"'[1]REAL IMAE(M)'!AL288","v":2.4931009483833857},{"$f":"'[1]REAL IMAE(M)'!AM288","v":8.1482095490716162},null,null,{"$f":"'[1]EXT ITCER(M)'!C288","v":70.722367645415758},{"$f":"'[1]EXT ITCER(M)'!D288","v":90.248966570850371},{"$f":"'[1]EXT ITCER(M)'!E288","v":62.80886196944865},{"$f":"'[1]EXT ITCER(M)'!F288","v":76.184931053859387},{"$f":"'[1]EXT ITCER(M)'!G288","v":96.081441554364972},{"$f":"'[1]EXT ITCER(M)'!H288","v":95.075993586640479},{"$f":"'[1]EXT ITCER(M)'!I288","v":89.720689655172393},null,null,{"$f":"'[1]EXT TC(M)'!J288","v":-1.9383422558612331},{"$f":"'[1]EXT TC(M)'!K288","v":0},{"$f":"'[1]EXT TC(M)'!L288","v":1.1027814627934478},{"$f":"'[1]EXT TC(M)'!M288","v":4.7380214281315514},{"$f":"'[1]EXT TC(M)'!N288","v":5.3845020359552853},{"$f":"'[1]EXT TC(M)'!O288","v":5.1207352850665746},{"$f":"'[1]EXT TC(M)'!P288","v":0},null,null,{"$f":"'[1]EXT RIN(M)'!C288","v":6936.8452548100004},{"$f":"'[1]EXT RIN(M)'!D288","v":3027.5},{"$f":"'[1]EXT RIN(M)'!E288","v":7279.8},{"$f":"'[1]EXT RIN(M)'!F288","v":3051.1054984985508},{"$f":"'[1]EXT RIN(M)'!G288","v":1698.7},{"$f":"'[1]EXT RIN(M)'!H288","v":3500.5},{"$f":"'[1]EXT RIN(M)'!I288","v":2097.7660981199997},null,null,{"$f":"'[1]EXT RIN(M)'!P288","v":69.99884117194199},{"$f":"'[1]EXT RIN(M)'!Q288","v":116.83185204823315},{"$f":"'[1]EXT RIN(M)'!R288","v":112.65838593079258},{"$f":"'[1]EXT RIN(M)'!S288","v":85.098560824183551},{"$f":"'[1]EXT RIN(M)'!T288","v":112.25490608233638},{"$f":"'[1]EXT RIN(M)'!U288","v":63.152142661460388},{"$f":"'[1]EXT RIN(M)'!V288","v":170.63246904014437},null,null,{"$f":"+'[1]MONE(M)CAPARD'!AE288","v":0.70064153042933541},{"$f":"'[1]MONE(M)CAPARD'!AF288","v":1.9986123790396109},{"$f":"'[1]MONE(M)CAPARD'!AG288","v":1.0748707860144942},{"$f":"'[1]MONE(M)CAPARD'!AH288","v":5.8194485436893242},{"$f":"'[1]MONE(M)CAPARD'!AI288","v":1.9954996092299531},{"$f":"'[1]MONE(M)CAPARD'!AJ288","v":1.3395743562795488},{"$f":"'[1]MONE(M)CAPARD'!AK288","v":-1.9750920245398647},null,null,{"$f":"'[1]MONE(M)CAPARD'!AL288","v":2.3250000000000002},{"$f":"'[1]MONE(M)CAPARD'!AM288","v":3.3},{"$f":"'[1]MONE(M)CAPARD'!AN288","v":2.79},{"$f":"'[1]MONE(M)CAPARD'!AO288","v":4.25},{"$f":"'[1]MONE(M)CAPARD'!AP288","v":3.6305639918334198},{"$f":"'[1]MONE(M)CAPARD'!AQ288","v":2.0299999999999998},{"$f":"'[1]MONE(M)CAPARD'!AR288","v":2.06},null,null,{"$f":"'[1]MONE(M)CAPARD'!J288","v":11.839384768437556},{"$f":"'[1]MONE(M)CAPARD'!K288","v":4.3091327368997527},{"$f":"'[1]MONE(M)CAPARD'!L288","v":8.7805597782348297},{"$f":"'[1]MONE(M)CAPARD'!M288","v":13.444283495145635},{"$f":"'[1]MONE(M)CAPARD'!N288","v":15.184176702172985},{"$f":"'[1]MONE(M)CAPARD'!O288","v":8.2841644771413456},{"$f":"'[1]MONE(M)CAPARD'!P288","v":2.1549011588275531},null,null,{"$f":"'[1]MONE(M)CAPARD'!Q288","v":11.16},{"$f":"'[1]MONE(M)CAPARD'!R288","v":5.64},{"$f":"'[1]MONE(M)CAPARD'!S288","v":6.15},{"$f":"'[1]MONE(M)CAPARD'!T288","v":8.65},{"$f":"'[1]MONE(M)CAPARD'!U288","v":8.3938901801492793},{"$f":"'[1]MONE(M)CAPARD'!V288","v":7.7},{"$f":"'[1]MONE(M)CAPARD'!W288","v":6.36},null,null,{"$f":"'[1]MONE(M)CAPARD'!AS288","v":5},{"$f":"'[1]MONE(M)CAPARD'!AT288","v":"n.a."},{"$f":"'[1]MONE(M)CAPARD'!AU288","v":5},{"$f":"'[1]MONE(M)CAPARD'!AV288","v":7},{"$f":"'[1]MONE(M)CAPARD'!AW288","v":"n.a."},{"$f":"'[1]MONE(M)CAPARD'!AX288","v":5},{"$f":"'[1]MONE(M)CAPARD'!AY288","v":"n.a."},null,null,{"$f":"+'Datos_Regional (M)'!CF281","v":12.605328866407461},{"$f":"+'Datos_Regional (M)'!CG281","v":6.0890309776690854},{"$f":"+'Datos_Regional (M)'!CH281","v":35.670934207936014},{"$f":"+'Datos_Regional (M)'!CI281","v":14.789850088540767},{"$f":"+'Datos_Regional (M)'!CJ281","v":27.521735274220195},{"$f":"+'Datos_Regional (M)'!CK281","v":7.1208658884623466},{"$f":"+'Datos_Regional (M)'!CL281","v":19.592131336681362},null,null,947.54609697082651,441.565,828.95000000000016,352.62224571764091,395.05512342083335,756.94166666666661,1367.6868590833335,3722.6801327759676,5090.3669918593014,null,null,1467.3662931749984,855.48250000000019,1417.9666666666669,767.52394132586824,593.06666666666649,1456.9083333333335,2260.1270238333341,6558.3144011675349,8818.4414250008685,null,null,-2835.6342683915664,-3728.0744331415667,null,null,{"$f":"'[1]EXT Comercio(M)'!C288","v":1019.1430023599917},{"$f":"'[1]EXT Comercio(M)'!D288","v":448.95000000000005},{"$f":"'[1]EXT Comercio(M)'!E288","v":982.1},{"$f":"'[1]EXT Comercio(M)'!F288","v":381.33723427511586},{"$f":"'[1]EXT Comercio(M)'!G288","v":393.47804471000001},{"$f":"'[1]EXT Comercio(M)'!H288","v":814.40000000000009},{"$f":"'[1]EXT Comercio(M)'!I288","v":1333.0723640000001},{"$f":"'[1]EXT Comercio(M)'!K288","v":4039.4082813451087},{"$f":"'[1]EXT Comercio(M)'!L288","v":5372.4806453451074},null,null,{"$f":"'[1]EXT Comercio(M)'!AG288","v":1480.4872383699999},{"$f":"'[1]EXT Comercio(M)'!AH288","v":824.87000000000012},{"$f":"'[1]EXT Comercio(M)'!AI288","v":1346},{"$f":"'[1]EXT Comercio(M)'!AJ288","v":679.48146713439883},{"$f":"'[1]EXT Comercio(M)'!AK288","v":495.9},{"$f":"'[1]EXT Comercio(M)'!AL288","v":1327.4},{"$f":"'[1]EXT Comercio(M)'!AM288","v":1927.6766400000001},{"$f":"'[1]EXT Comercio(M)'!AO288","v":6154.1387055043979},{"$f":"'[1]EXT Comercio(M)'!AP288","v":8081.8153455043976},null,null,{"$f":"'[1]EXT Comercio(M)'!$BS288","v":-2114.7304241592919},{"$f":"'[1]EXT Comercio(M)'!$BT288","v":-2709.334700159292}]
[null,null,"Abril",{"$f":"'[1]REAL IPC(M)'!AD289","v":6.307269244210671},{"$f":"'[1]REAL IPC(M)'!AE289","v":1.8377285674902159E-2},{"$f":"'[1]REAL IPC(M)'!AF289","v":4.1271611823759038},{"$f":"'[1]REAL IPC(M)'!AG289","v":4.6634225466342372},{"$f":"'[1]REAL IPC(M)'!AH289","v":6.343806475904783},{"$f":"'[1]REAL IPC(M)'!AI289","v":4.8997977569406128},{"$f":"'[1]REAL IPC(M)'!AJ289","v":3.735024665257209},null,null,{"$f":"'[1]REAL IMAE(M)'!AG289","v":1.6804457757778359},{"$f":"'[1]REAL IMAE(M)'!AH289","v":1.0050820608749604},{"$f":"'[1]REAL IMAE(M)'!AI289","v":"n.d."},{"$f":"'[1]REAL IMAE(M)'!AJ289","v":2.404472532476726},{"$f":"'[1]REAL IMAE(M)'!AK289","v":6.7951618857600637},{"$f":"'[1]REAL IMAE(M)'!AL289","v":2.5189768058520881},{"$f":"'[1]REAL IMAE(M)'!AM289","v":7.9899559543901404},null,null,{"$f":"'[1]EXT ITCER(M)'!C289","v":70.135374008692779},{"$f":"'[1]EXT ITCER(M)'!D289","v":90.726633491815818},{"$f":"'[1]EXT ITCER(M)'!E289","v":62.531655227206592},{"$f":"'[1]EXT ITCER(M)'!F289","v":76.178736178248499},{"$f":"'[1]EXT ITCER(M)'!G289","v":95.385168923735378},{"$f":"'[1]EXT ITCER(M)'!H289","v":95.177995634739105},{"$f":"'[1]EXT ITCER(M)'!I289","v":89.29999944801304},null,null,{"$f":"'[1]EXT TC(M)'!J289","v":-1.2292306717236545},{"$f":"'[1]EXT TC(M)'!K289","v":0},{"$f":"'[1]EXT TC(M)'!L289","v":0.60947471423196953},{"$f":"'[1]EXT TC(M)'!M289","v":4.7325833837483176},{"$f":"'[1]EXT TC(M)'!N289","v":5.150049667852568},{"$f":"'[1]EXT TC(M)'!O289","v":5.2158513081276139},{"$f":"'[1]EXT TC(M)'!P289","v":0},null,null,{"$f":"'[1]EXT RIN(M)'!C289","v":7960.4042082599999},{"$f":"'[1]EXT RIN(M)'!D289","v":3093.3},{"$f":"'[1]EXT RIN(M)'!E289","v":7220.8},{"$f":"'[1]EXT RIN(M)'!F289","v":2954.9363294765917},{"$f":"'[1]EXT RIN(M)'!G289","v":1730.5},{"$f":"'[1]EXT RIN(M)'!H289","v":4099.6000000000004},{"$f":"'[1]EXT RIN(M)'!I289","v":2863.0006039399996},null,null,{"$f":"'[1]EXT RIN(M)'!P289","v":80.78236878194889},{"$f":"'[1]EXT RIN(M)'!Q289","v":114.55745964120663},{"$f":"'[1]EXT RIN(M)'!R289","v":113.11595109632979},{"$f":"'[1]EXT RIN(M)'!S289","v":80.928500852674077},{"$f":"'[1]EXT RIN(M)'!T289","v":114.68911016069991},{"$f":"'[1]EXT RIN(M)'!U289","v":66.448025951827788},{"$f":"'[1]EXT RIN(M)'!V289","v":233.95434328169796},null,null,{"$f":"+'[1]MONE(M)CAPARD'!AE289","v":0.41646329450179098},{"$f":"'[1]MONE(M)CAPARD'!AF289","v":3.201034451079471},{"$f":"'[1]MONE(M)CAPARD'!AG289","v":1.2704070701660444},{"$f":"'[1]MONE(M)CAPARD'!AH289","v":7.0192406044168809},{"$f":"'[1]MONE(M)CAPARD'!AI289","v":2.5033450150208014},{"$f":"'[1]MONE(M)CAPARD'!AJ289","v":2.2499588116729483},{"$f":"'[1]MONE(M)CAPARD'!AK289","v":-1.5183152173912904},null,null,{"$f":"'[1]MONE(M)CAPARD'!AL289","v":2.2850000000000001},{"$f":"'[1]MONE(M)CAPARD'!AM289","v":3.22},{"$f":"'[1]MONE(M)CAPARD'!AN289","v":2.79},{"$f":"'[1]MONE(M)CAPARD'!AO289","v":4.28},{"$f":"'[1]MONE(M)CAPARD'!AP289","v":3.8423504726768072},{"$f":"'[1]MONE(M)CAPARD'!AQ289","v":2.4},{"$f":"'[1]MONE(M)CAPARD'!AR289","v":2.16},null,null,{"$f":"'[1]MONE(M)CAPARD'!J289","v":10.425186193363608},{"$f":"'[1]MONE(M)CAPARD'!K289","v":5.6905769407441467},{"$f":"'[1]MONE(M)CAPARD'!L289","v":9.0301499732190695},{"$f":"'[1]MONE(M)CAPARD'!M289","v":14.82521503293296},{"$f":"'[1]MONE(M)CAPARD'!N289","v":12.955078709454712},{"$f":"'[1]MONE(M)CAPARD'!O289","v":8.9706581368854632},{"$f":"'[1]MONE(M)CAPARD'!P289","v":2.5111820652174051},null,null,{"$f":"'[1]MONE(M)CAPARD'!Q289","v":11.02},{"$f":"'[1]MONE(M)CAPARD'!R289","v":5.71},{"$f":"'[1]MONE(M)CAPARD'!S289","v":6.1400000000000006},{"$f":"'[1]MONE(M)CAPARD'!T289","v":8.6},{"$f":"'[1]MONE(M)CAPARD'!U289","v":9.3830128967005439},{"$f":"'[1]MONE(M)CAPARD'!V289","v":6.12},{"$f":"'[1]MONE(M)CAPARD'!W289","v":6.34},null,null,{"$f":"'[1]MONE(M)CAPARD'!AS289","v":5},{"$f":"'[1]MONE(M)CAPARD'!AT289","v":"n.a."},{"$f":"'[1]MONE(M)CAPARD'!AU289","v":5.25},{"$f":"'[1]MONE(M)CAPARD'!AV289","v":7},{"$f":"'[1]MONE(M)CAPARD'!AW289","v":"n.a."},{"$f":"'[1]MONE(M)CAPARD'!AX289","v":5},{"$f":"'[1]MONE(M)CAPARD'!AY289","v":"n.a."},null,null,{"$f":"+'Datos_Regional (M)'!CF282","v":12.822594625943996},{"$f":"+'Datos_Regional (M)'!CG282","v":5.2257461935270255},{"$f":"+'Datos_Regional (M)'!CH282","v":34.108020768899962},{"$f":"+'Datos_Regional (M)'!CI282","v":13.49322823449759},{"$f":"+'Datos_Regional (M)'!CJ282","v":28.070876081166098},{"$f":"+'Datos_Regional (M)'!CK282","v":8.5420112477957666},{"$f":"+'Datos_Regional (M)'!CL282","v":18.851597996525136},null,null,951.36211507915971,448.30666666666662,830.08333333333337,349.39458764483078,395.49666405083332,762.44999999999993,1371.09383,3737.0933667748236,5108.1871967748239,null,null,1491.3797618716662,867.38166666666677,1441.875,771.29572128585949,596.15833333333319,1455.3999999999999,2276.343409666667,6623.4904831575259,8899.8338928241919,null,null,-2886.3971163827023,-3791.646696049369,null,null,{"$f":"'[1]EXT Comercio(M)'!C289","v":1001.125653989995},{"$f":"'[1]EXT Comercio(M)'!D289","v":496.52999999999975},{"$f":"'[1]EXT Comercio(M)'!E289","v":888.79999999999984},{"$f":"'[1]EXT Comercio(M)'!F289","v":354.66318511627901},{"$f":"'[1]EXT Comercio(M)'!G289","v":427.16693319000001},{"$f":"'[1]EXT Comercio(M)'!H289","v":832.40000000000009},{"$f":"'[1]EXT Comercio(M)'!I289","v":1263.676866},{"$f":"'[1]EXT Comercio(M)'!K289","v":4000.6857722962723},{"$f":"'[1]EXT Comercio(M)'!L289","v":5264.3626382962739},null,null,{"$f":"'[1]EXT Comercio(M)'!AG289","v":1605.781479110005},{"$f":"'[1]EXT Comercio(M)'!AH289","v":959.30999999999949},{"$f":"'[1]EXT Comercio(M)'!AI289","v":1610.1},{"$f":"'[1]EXT Comercio(M)'!AJ289","v":795.23389025989491},{"$f":"'[1]EXT Comercio(M)'!AK289","v":619.20000000000005},{"$f":"'[1]EXT Comercio(M)'!AL289","v":1368.6},{"$f":"'[1]EXT Comercio(M)'!AM289","v":2188.5362319999995},{"$f":"'[1]EXT Comercio(M)'!AO289","v":6958.2253693698985},{"$f":"'[1]EXT Comercio(M)'!AP289","v":9146.7616013698971},null,null,{"$f":"'[1]EXT Comercio(M)'!$BS289","v":-2957.5395970736245},{"$f":"'[1]EXT Comercio(M)'!$BT289","v":-3882.3989630736232}]
[null,null,"Mayo ",{"$f":"'[1]REAL IPC(M)'!AD290","v":5.2840368776231115},{"$f":"'[1]REAL IPC(M)'!AE290","v":0.14742467520500929},{"$f":"'[1]REAL IPC(M)'!AF290","v":4.2703304864463369},{"$f":"'[1]REAL IPC(M)'!AG290","v":4.8197650870797917},{"$f":"'[1]REAL IPC(M)'!AH290","v":7.7284868220783665},{"$f":"'[1]REAL IPC(M)'!AI290","v":4.9866347128767732},{"$f":"'[1]REAL IPC(M)'!AJ290","v":3.7192982456140355},null,null,{"$f":"'[1]REAL IMAE(M)'!AG290","v":1.7700227873286956},{"$f":"'[1]REAL IMAE(M)'!AH290","v":0.81920315772465657},{"$f":"'[1]REAL IMAE(M)'!AI290","v":"n.d."},{"$f":"'[1]REAL IMAE(M)'!AJ290","v":2.1687667058345599},{"$f":"'[1]REAL IMAE(M)'!AK290","v":6.2588190983824727},{"$f":"'[1]REAL IMAE(M)'!AL290","v":2.9292335509250442},{"$f":"'[1]REAL IMAE(M)'!AM290","v":7.7935346765294833},null,null,{"$f":"'[1]EXT ITCER(M)'!C290","v":70.263733674011618},{"$f":"'[1]EXT ITCER(M)'!D290","v":91.021958229915398},{"$f":"'[1]EXT ITCER(M)'!E290","v":62.416192320109523},{"$f":"'[1]EXT ITCER(M)'!F290","v":76.416624385788822},{"$f":"'[1]EXT ITCER(M)'!G290","v":95.102200979226964},{"$f":"'[1]EXT ITCER(M)'!H290","v":95.621438359467035},{"$f":"'[1]EXT ITCER(M)'!I290","v":89.095827520773682},null,null,{"$f":"'[1]EXT TC(M)'!J290","v":-1.1477411477411512},{"$f":"'[1]EXT TC(M)'!K290","v":0},{"$f":"'[1]EXT TC(M)'!L290","v":5.8290805494003929E-2},{"$f":"'[1]EXT TC(M)'!M290","v":4.7606760599589801},{"$f":"'[1]EXT TC(M)'!N290","v":5.3455018972351782},{"$f":"'[1]EXT TC(M)'!O290","v":5.3115918630933283},{"$f":"'[1]EXT TC(M)'!P290","v":0},null,null,{"$f":"'[1]EXT RIN(M)'!C290","v":7885.1966123700004},{"$f":"'[1]EXT RIN(M)'!D290","v":3058.7},{"$f":"'[1]EXT RIN(M)'!E290","v":7252.9},{"$f":"'[1]EXT RIN(M)'!F290","v":2839.7668864127813},{"$f":"'[1]EXT RIN(M)'!G290","v":1727},{"$f":"'[1]EXT RIN(M)'!H290","v":4067.4},{"$f":"'[1]EXT RIN(M)'!I290","v":2770.37502614},null,null,{"$f":"'[1]EXT RIN(M)'!P290","v":77.691798084357998},{"$f":"'[1]EXT RIN(M)'!Q290","v":116.41023962538031},{"$f":"'[1]EXT RIN(M)'!R290","v":110.8384576929452},{"$f":"'[1]EXT RIN(M)'!S290","v":80.424071827956197},{"$f":"'[1]EXT RIN(M)'!T290","v":116.54574083664251},{"$f":"'[1]EXT RIN(M)'!U290","v":66.75890985335559},{"$f":"'[1]EXT RIN(M)'!V290","v":231.38414623298104},null,null,{"$f":"+'[1]MONE(M)CAPARD'!AE290","v":1.2974076250178515},{"$f":"'[1]MONE(M)CAPARD'!AF290","v":3.1778903302971786},{"$f":"'[1]MONE(M)CAPARD'!AG290","v":1.1217663817663874},{"$f":"'[1]MONE(M)CAPARD'!AH290","v":6.9740996908809869},{"$f":"'[1]MONE(M)CAPARD'!AI290","v":1.1432051024636158},{"$f":"'[1]MONE(M)CAPARD'!AJ290","v":0.72710711150130702},{"$f":"'[1]MONE(M)CAPARD'!AK290","v":-1.5130243572395135},null,null,{"$f":"'[1]MONE(M)CAPARD'!AL290","v":2.0499999999999998},{"$f":"'[1]MONE(M)CAPARD'!AM290","v":3.33},{"$f":"'[1]MONE(M)CAPARD'!AN290","v":2.89},{"$f":"'[1]MONE(M)CAPARD'!AO290","v":4.32},{"$f":"'[1]MONE(M)CAPARD'!AP290","v":3.4490119720693002},{"$f":"'[1]MONE(M)CAPARD'!AQ290","v":1.9221571562034878},{"$f":"'[1]MONE(M)CAPARD'!AR290","v":2.15},null,null,{"$f":"'[1]MONE(M)CAPARD'!J290","v":10.928497295132065},{"$f":"'[1]MONE(M)CAPARD'!K290","v":5.5843426258165456},{"$f":"'[1]MONE(M)CAPARD'!L290","v":8.9379878917378974},{"$f":"'[1]MONE(M)CAPARD'!M290","v":14.692109737248837},{"$f":"'[1]MONE(M)CAPARD'!N290","v":12.086720439459887},{"$f":"'[1]MONE(M)CAPARD'!O290","v":7.7440064153845327},{"$f":"'[1]MONE(M)CAPARD'!P290","v":2.50744248985115},null,null,{"$f":"'[1]MONE(M)CAPARD'!Q290","v":10.84},{"$f":"'[1]MONE(M)CAPARD'!R290","v":5.74},{"$f":"'[1]MONE(M)CAPARD'!S290","v":6.09},{"$f":"'[1]MONE(M)CAPARD'!T290","v":8.59},{"$f":"'[1]MONE(M)CAPARD'!U290","v":8.41823119777027},{"$f":"'[1]MONE(M)CAPARD'!V290","v":6.7064413023315241},{"$f":"'[1]MONE(M)CAPARD'!W290","v":6.32},null,null,{"$f":"'[1]MONE(M)CAPARD'!AS290","v":5},{"$f":"'[1]MONE(M)CAPARD'!AT290","v":"n.a."},{"$f":"'[1]MONE(M)CAPARD'!AU290","v":5.25},{"$f":"'[1]MONE(M)CAPARD'!AV290","v":7},{"$f":"'[1]MONE(M)CAPARD'!AW290","v":"n.a."},{"$f":"'[1]MONE(M)CAPARD'!AX290","v":4.25},{"$f":"'[1]MONE(M)CAPARD'!AY290","v":"n.a."},null,null,{"$f":"+'Datos_Regional (M)'!CF283","v":13.616453016724407},{"$f":"+'Datos_Regional (M)'!CG283","v":5.684515599356188},{"$f":"+'Datos_Regional (M)'!CH283","v":32.168513704561086},{"$f":"+'Datos_Regional (M)'!CI283","v":12.863888297372149},{"$f":"+'Datos_Regional (M)'!CJ283","v":26.018404833293161},{"$f":"+'Datos_Regional (M)'!CK283","v":11.010717208040631},{"$f":"+'Datos_Regional (M)'!CL283","v":15.66496267460391},null,null,947.7950062466598,453.46083333333326,837.90833333333319,344.18697943114171,395.61720850833336,771.76666666666654,1362.1340636666669,3750.7350275194681,5112.8690911861349,null,null,1488.8459558483337,862.80333333333328,1443.7083333333333,768.55949454657332,588.62499999999989,1446.8666666666666,2250.3972938333336,6599.4087837282414,8849.8060775615741,null,null,-2848.6737562087724,-3736.9369863754387,null,null,{"$f":"'[1]EXT Comercio(M)'!C290","v":1033.1592927199954},{"$f":"'[1]EXT Comercio(M)'!D290","v":523.0300000000002},{"$f":"'[1]EXT Comercio(M)'!E290","v":965.29999999999973},{"$f":"'[1]EXT Comercio(M)'!F290","v":353.13768682573095},{"$f":"'[1]EXT Comercio(M)'!G290","v":393.64394728000002},{"$f":"'[1]EXT Comercio(M)'!H290","v":912.4},{"$f":"'[1]EXT Comercio(M)'!I290","v":1415.2201380000001},{"$f":"'[1]EXT Comercio(M)'!K290","v":4180.6709268257273},{"$f":"'[1]EXT Comercio(M)'!L290","v":5595.8910648257297},null,null,{"$f":"'[1]EXT Comercio(M)'!AG290","v":1487.5679764100048},{"$f":"'[1]EXT Comercio(M)'!AH290","v":934.80000000000018},{"$f":"'[1]EXT Comercio(M)'!AI290","v":1596.1999999999998},{"$f":"'[1]EXT Comercio(M)'!AJ290","v":784.51932731856641},{"$f":"'[1]EXT Comercio(M)'!AK290","v":596.39999999999986},{"$f":"'[1]EXT Comercio(M)'!AL290","v":1410.3},{"$f":"'[1]EXT Comercio(M)'!AM290","v":2181.6336790000005},{"$f":"'[1]EXT Comercio(M)'!AO290","v":6809.7873037285717},{"$f":"'[1]EXT Comercio(M)'!AP290","v":8991.420982728574},null,null,{"$f":"'[1]EXT Comercio(M)'!$BS290","v":-2629.1163769028462},{"$f":"'[1]EXT Comercio(M)'!$BT290","v":-3395.529917902848}]
[null,null,"Junio",{"$f":"'[1]REAL IPC(M)'!AD291","v":5.1379035906493709},{"$f":"'[1]REAL IPC(M)'!AE291","v":0.89864739670187033},{"$f":"'[1]REAL IPC(M)'!AF291","v":4.7936949466852123},{"$f":"'[1]REAL IPC(M)'!AG291","v":5.2652895909274893},{"$f":"'[1]REAL IPC(M)'!AH291","v":8.2852699778671468},{"$f":"'[1]REAL IPC(M)'!AI291","v":4.8013245033112568},{"$f":"'[1]REAL IPC(M)'!AJ291","v":4.1432584269662938},null,null,{"$f":"'[1]REAL IMAE(M)'!AG291","v":1.9158507047438544},{"$f":"'[1]REAL IMAE(M)'!AH291","v":0.88818491239249908},{"$f":"'[1]REAL IMAE(M)'!AI291","v":"n.d."},{"$f":"'[1]REAL IMAE(M)'!AJ291","v":2.0279274920519015},{"$f":"'[1]REAL IMAE(M)'!AK291","v":5.7231833617166643},{"$f":"'[1]REAL IMAE(M)'!AL291","v":3.7942917668087932},{"$f":"'[1]REAL IMAE(M)'!AM291","v":7.6929322453618969},null,null,{"$f":"'[1]EXT ITCER(M)'!C291","v":70.381989705240557},{"$f":"'[1]EXT ITCER(M)'!D291","v":91.056077274674507},{"$f":"'[1]EXT ITCER(M)'!E291","v":62.411716627770872},{"$f":"'[1]EXT ITCER(M)'!F291","v":76.57539449385628},{"$f":"'[1]EXT ITCER(M)'!G291","v":95.724542186929156},{"$f":"'[1]EXT ITCER(M)'!H291","v":96.67458504350634},{"$f":"'[1]EXT ITCER(M)'!I291","v":89.008520131312451},null,null,{"$f":"'[1]EXT TC(M)'!J291","v":-0.29265650453334202},{"$f":"'[1]EXT TC(M)'!K291","v":0},{"$f":"'[1]EXT TC(M)'!L291","v":-0.40335907124053261},{"$f":"'[1]EXT TC(M)'!M291","v":4.7487422242585495},{"$f":"'[1]EXT TC(M)'!N291","v":5.3709004596895884},{"$f":"'[1]EXT TC(M)'!O291","v":6.1363764354134487},{"$f":"'[1]EXT TC(M)'!P291","v":0},null,null,{"$f":"'[1]EXT RIN(M)'!C291","v":7877.81888385},{"$f":"'[1]EXT RIN(M)'!D291","v":2887.6},{"$f":"'[1]EXT RIN(M)'!E291","v":7070.9},{"$f":"'[1]EXT RIN(M)'!F291","v":2915.737988576333},{"$f":"'[1]EXT RIN(M)'!G291","v":1705},{"$f":"'[1]EXT RIN(M)'!H291","v":3841.4},{"$f":"'[1]EXT RIN(M)'!I291","v":2790.4651858599996},null,null,{"$f":"'[1]EXT RIN(M)'!P291","v":77.427497617368275},{"$f":"'[1]EXT RIN(M)'!Q291","v":111.86251710807733},{"$f":"'[1]EXT RIN(M)'!R291","v":108.52804007925457},{"$f":"'[1]EXT RIN(M)'!S291","v":78.795258896750354},{"$f":"'[1]EXT RIN(M)'!T291","v":115.82504135130822},{"$f":"'[1]EXT RIN(M)'!U291","v":65.408033753520229},{"$f":"'[1]EXT RIN(M)'!V291","v":228.66128058846354},null,null,{"$f":"+'[1]MONE(M)CAPARD'!AE291","v":1.3906463410600696},{"$f":"'[1]MONE(M)CAPARD'!AF291","v":2.5187182076944277},{"$f":"'[1]MONE(M)CAPARD'!AG291","v":0.63582551760750161},{"$f":"'[1]MONE(M)CAPARD'!AH291","v":6.3408464794151707},{"$f":"'[1]MONE(M)CAPARD'!AI291","v":-7.4077558146578171E-3},{"$f":"'[1]MONE(M)CAPARD'!AJ291","v":-0.12530805687203658},{"$f":"'[1]MONE(M)CAPARD'!AK291","v":-1.9043560350640607},null,null,{"$f":"'[1]MONE(M)CAPARD'!AL291","v":1.97},{"$f":"'[1]MONE(M)CAPARD'!AM291","v":3.44},{"$f":"'[1]MONE(M)CAPARD'!AN291","v":2.89},{"$f":"'[1]MONE(M)CAPARD'!AO291","v":4.28},{"$f":"'[1]MONE(M)CAPARD'!AP291","v":3.3319376986991398},{"$f":"'[1]MONE(M)CAPARD'!AQ291","v":1.98},{"$f":"'[1]MONE(M)CAPARD'!AR291","v":2.16},null,null,{"$f":"'[1]MONE(M)CAPARD'!J291","v":11.149258268445401},{"$f":"'[1]MONE(M)CAPARD'!K291","v":4.56037094848958},{"$f":"'[1]MONE(M)CAPARD'!L291","v":8.4225535303486083},{"$f":"'[1]MONE(M)CAPARD'!M291","v":14.159188149288202},{"$f":"'[1]MONE(M)CAPARD'!N291","v":10.025850105218534},{"$f":"'[1]MONE(M)CAPARD'!O291","v":7.1742180094786745},{"$f":"'[1]MONE(M)CAPARD'!P291","v":2.0613351314902206},null,null,{"$f":"'[1]MONE(M)CAPARD'!Q291","v":10.72},{"$f":"'[1]MONE(M)CAPARD'!R291","v":5.5},{"$f":"'[1]MONE(M)CAPARD'!S291","v":6.09},{"$f":"'[1]MONE(M)CAPARD'!T291","v":8.5299999999999994},{"$f":"'[1]MONE(M)CAPARD'!U291","v":8.2373225753929091},{"$f":"'[1]MONE(M)CAPARD'!V291","v":6.73},{"$f":"'[1]MONE(M)CAPARD'!W291","v":6.29},null,null,{"$f":"'[1]MONE(M)CAPARD'!AS291","v":4},{"$f":"'[1]MONE(M)CAPARD'!AT291","v":"n.a."},{"$f":"'[1]MONE(M)CAPARD'!AU291","v":5.25},{"$f":"'[1]MONE(M)CAPARD'!AV291","v":7},{"$f":"'[1]MONE(M)CAPARD'!AW291","v":"n.a."},{"$f":"'[1]MONE(M)CAPARD'!AX291","v":4.25},{"$f":"'[1]MONE(M)CAPARD'!AY291","v":"n.a."},null,null,{"$f":"+'Datos_Regional (M)'!CF284","v":13.053926246137259},{"$f":"+'Datos_Regional (M)'!CG284","v":6.7438367798653864},{"$f":"+'Datos_Regional (M)'!CH284","v":31.548010640737758},{"$f":"+'Datos_Regional (M)'!CI284","v":12.842162374245625},{"$f":"+'Datos_Regional (M)'!CJ284","v":24.664378549513199},{"$f":"+'Datos_Regional (M)'!CK284","v":12.819155045584573},{"$f":"+'Datos_Regional (M)'!CL284","v":14.387020860572042},null,null,948.39523927999323,458.75333333333327,835.95833333333337,338.78549366637873,395.74273578666674,775.54999999999984,1351.2846897500001,3753.1851353997049,5104.4698251497057,null,null,1487.1181843149996,885.3183333333335,1438.0833333333333,764.05027446213535,590.36666666666656,1434.4833333333333,2246.613388416667,6599.4201254438012,8846.033513860466,null,null,-2846.2349900440963,-3741.563688710763,null,null,{"$f":"'[1]EXT Comercio(M)'!C291","v":962.47991521999302},{"$f":"'[1]EXT Comercio(M)'!D291","v":455.82999999999993},{"$f":"'[1]EXT Comercio(M)'!E291","v":807.99999999999977},{"$f":"'[1]EXT Comercio(M)'!F291","v":319.99107378284498},{"$f":"'[1]EXT Comercio(M)'!G291","v":390.82317710999996},{"$f":"'[1]EXT Comercio(M)'!H291","v":774.90000000000009},{"$f":"'[1]EXT Comercio(M)'!I291","v":1133.61535},{"$f":"'[1]EXT Comercio(M)'!K291","v":3712.0241661128384},{"$f":"'[1]EXT Comercio(M)'!L291","v":4845.6395161128348},null,null,{"$f":"'[1]EXT Comercio(M)'!AG291","v":1388.9377574799896},{"$f":"'[1]EXT Comercio(M)'!AH291","v":956.60000000000036},{"$f":"'[1]EXT Comercio(M)'!AI291","v":1382.5000000000002},{"$f":"'[1]EXT Comercio(M)'!AJ291","v":687.55106432674484},{"$f":"'[1]EXT Comercio(M)'!AK291","v":606.60000000000014},{"$f":"'[1]EXT Comercio(M)'!AL291","v":1402.7999999999997},{"$f":"'[1]EXT Comercio(M)'!AM291","v":2079.4782169999999},{"$f":"'[1]EXT Comercio(M)'!AO291","v":6424.9888218067354},{"$f":"'[1]EXT Comercio(M)'!AP291","v":8504.4670388067316},null,null,{"$f":"'[1]EXT Comercio(M)'!$BS291","v":-2712.9646556938969},{"$f":"'[1]EXT Comercio(M)'!$BT291","v":-3658.8275226938931}]
[null,null,"Julio",{"$f":"'[1]REAL IPC(M)'!AD292","v":5.8141562804685316},{"$f":"'[1]REAL IPC(M)'!AE292","v":1.0872595483691123},{"$f":"'[1]REAL IPC(M)'!AF292","v":4.7399057562598133},{"$f":"'[1]REAL IPC(M)'!AG292","v":5.6252529340348065},{"$f":"'[1]REAL IPC(M)'!AH292","v":7.6558827286991598},{"$f":"'[1]REAL IPC(M)'!AI292","v":5.6682027649769635},{"$f":"'[1]REAL IPC(M)'!AJ292","v":4.1316526610644129},null,null,{"$f":"'[1]REAL IMAE(M)'!AG292","v":1.9545722303979778},{"$f":"'[1]REAL IMAE(M)'!AH292","v":1.3729774617405079},{"$f":"'[1]REAL IMAE(M)'!AI292","v":"n.d."},{"$f":"'[1]REAL IMAE(M)'!AJ292","v":1.9080858578383166},{"$f":"'[1]REAL IMAE(M)'!AK292","v":5.2054912673209097},{"$f":"'[1]REAL IMAE(M)'!AL292","v":4.8964600826528049},{"$f":"'[1]REAL IMAE(M)'!AM292","v":7.8404457184383771},null,null,{"$f":"'[1]EXT ITCER(M)'!C292","v":70.134364266660583},{"$f":"'[1]EXT ITCER(M)'!D292","v":91.200814643943829},{"$f":"'[1]EXT ITCER(M)'!E292","v":62.289477374664187},{"$f":"'[1]EXT ITCER(M)'!F292","v":76.568329822451403},{"$f":"'[1]EXT ITCER(M)'!G292","v":96.623847239226848},{"$f":"'[1]EXT ITCER(M)'!H292","v":97.145534981884254},{"$f":"'[1]EXT ITCER(M)'!I292","v":88.804063809989103},null,null,{"$f":"'[1]EXT TC(M)'!J292","v":-0.44044398734029599},{"$f":"'[1]EXT TC(M)'!K292","v":0},{"$f":"'[1]EXT TC(M)'!L292","v":-1.8818119672992493E-2},{"$f":"'[1]EXT TC(M)'!M292","v":4.7182492558651949},{"$f":"'[1]EXT TC(M)'!N292","v":5.173394968447969},{"$f":"'[1]EXT TC(M)'!O292","v":7.2337496513624329},{"$f":"'[1]EXT TC(M)'!P292","v":0},null,null,{"$f":"'[1]EXT RIN(M)'!C292","v":7723.7136800400003},{"$f":"'[1]EXT RIN(M)'!D292","v":2864.6},{"$f":"'[1]EXT RIN(M)'!E292","v":6727.1},{"$f":"'[1]EXT RIN(M)'!F292","v":2779.6456492389716},{"$f":"'[1]EXT RIN(M)'!G292","v":1711.1},{"$f":"'[1]EXT RIN(M)'!H292","v":3453.8},{"$f":"'[1]EXT RIN(M)'!I292","v":2734.8101442900002},null,null,{"$f":"'[1]EXT RIN(M)'!P292","v":75.732017445787662},{"$f":"'[1]EXT RIN(M)'!Q292","v":107.52248246838528},{"$f":"'[1]EXT RIN(M)'!R292","v":100.81528564746709},{"$f":"'[1]EXT RIN(M)'!S292","v":78.072214170492956},{"$f":"'[1]EXT RIN(M)'!T292","v":110.75783759433936},{"$f":"'[1]EXT RIN(M)'!U292","v":62.665455584936048},{"$f":"'[1]EXT RIN(M)'!V292","v":231.42975789090184},null,null,{"$f":"+'[1]MONE(M)CAPARD'!AE292","v":0.69541141317713484},{"$f":"'[1]MONE(M)CAPARD'!AF292","v":2.2285107556536112},{"$f":"'[1]MONE(M)CAPARD'!AG292","v":0.67795959774171166},{"$f":"'[1]MONE(M)CAPARD'!AH292","v":5.9405747126436763},{"$f":"'[1]MONE(M)CAPARD'!AI292","v":1.6018149633610581},{"$f":"'[1]MONE(M)CAPARD'!AJ292","v":-0.98251199302224634},{"$f":"'[1]MONE(M)CAPARD'!AK292","v":-1.9798520511096047},null,null,{"$f":"'[1]MONE(M)CAPARD'!AL292","v":1.95},{"$f":"'[1]MONE(M)CAPARD'!AM292","v":3.34},{"$f":"'[1]MONE(M)CAPARD'!AN292","v":2.9},{"$f":"'[1]MONE(M)CAPARD'!AO292","v":4.26},{"$f":"'[1]MONE(M)CAPARD'!AP292","v":3.53},{"$f":"'[1]MONE(M)CAPARD'!AQ292","v":1.8},{"$f":"'[1]MONE(M)CAPARD'!AR292","v":2.0699999999999998},null,null,{"$f":"'[1]MONE(M)CAPARD'!J292","v":10.28770072189368},{"$f":"'[1]MONE(M)CAPARD'!K292","v":4.6917291781577486},{"$f":"'[1]MONE(M)CAPARD'!L292","v":8.4782339449541304},{"$f":"'[1]MONE(M)CAPARD'!M292","v":13.760674329501914},{"$f":"'[1]MONE(M)CAPARD'!N292","v":12.651012340626561},{"$f":"'[1]MONE(M)CAPARD'!O292","v":6.7965547317924058},{"$f":"'[1]MONE(M)CAPARD'!P292","v":2.0727101546738527},null,null,{"$f":"'[1]MONE(M)CAPARD'!Q292","v":10.65},{"$f":"'[1]MONE(M)CAPARD'!R292","v":5.83},{"$f":"'[1]MONE(M)CAPARD'!S292","v":6.08},{"$f":"'[1]MONE(M)CAPARD'!T292","v":8.5},{"$f":"'[1]MONE(M)CAPARD'!U292","v":8.57},{"$f":"'[1]MONE(M)CAPARD'!V292","v":6.3},{"$f":"'[1]MONE(M)CAPARD'!W292","v":6.29},null,null,{"$f":"'[1]MONE(M)CAPARD'!AS292","v":4},{"$f":"'[1]MONE(M)CAPARD'!AT292","v":"n.a."},{"$f":"'[1]MONE(M)CAPARD'!AU292","v":5.25},{"$f":"'[1]MONE(M)CAPARD'!AV292","v":7},{"$f":"'[1]MONE(M)CAPARD'!AW292","v":"n.a."},{"$f":"'[1]MONE(M)CAPARD'!AX292","v":4.25},{"$f":"'[1]MONE(M)CAPARD'!AY292","v":"n.a."},null,null,{"$f":"+'Datos_Regional (M)'!CF285","v":12.393023105225831},{"$f":"+'Datos_Regional (M)'!CG285","v":6.6146405531721575},{"$f":"+'Datos_Regional (M)'!CH285","v":30.741721841220084},{"$f":"+'Datos_Regional (M)'!CI285","v":13.483389296978142},{"$f":"+'Datos_Regional (M)'!CJ285","v":23.05294918698193},{"$f":"+'Datos_Regional (M)'!CK285","v":13.846244309921673},{"$f":"+'Datos_Regional (M)'!CL285","v":14.568723072189972},null,null,951.57139153332639,455.96083333333337,839.65,332.53107450996066,395.39421414750001,781.14999999999975,1369.0313333333336,3756.2575135241204,5125.2888468574538,null,null,1496.1863176566656,880.15083333333348,1446.958333333333,768.55643913010954,593.52499999999998,1425.2833333333331,2240.1511520833337,6610.6602567867749,8850.8114088701095,null,null,-2854.4027432626553,-3725.5225620126562,null,null,{"$f":"'[1]EXT Comercio(M)'!C292","v":949.37014873999033},{"$f":"'[1]EXT Comercio(M)'!D292","v":491.2800000000002},{"$f":"'[1]EXT Comercio(M)'!E292","v":827.79999999999973},{"$f":"'[1]EXT Comercio(M)'!F292","v":308.36098585298305},{"$f":"'[1]EXT Comercio(M)'!G292","v":410.80395093000004},{"$f":"'[1]EXT Comercio(M)'!H292","v":852.80000000000007},{"$f":"'[1]EXT Comercio(M)'!I292","v":1527.3011940000001},{"$f":"'[1]EXT Comercio(M)'!K292","v":3840.4150855229709},{"$f":"'[1]EXT Comercio(M)'!L292","v":5367.7162795229742},null,null,{"$f":"'[1]EXT Comercio(M)'!AG292","v":1536.8211221100003},{"$f":"'[1]EXT Comercio(M)'!AH292","v":965.05000000000018},{"$f":"'[1]EXT Comercio(M)'!AI292","v":1532.2999999999997},{"$f":"'[1]EXT Comercio(M)'!AJ292","v":804.49349927568892},{"$f":"'[1]EXT Comercio(M)'!AK292","v":622.10000000000014},{"$f":"'[1]EXT Comercio(M)'!AL292","v":1449.9},{"$f":"'[1]EXT Comercio(M)'!AM292","v":2456.997394},{"$f":"'[1]EXT Comercio(M)'!AO292","v":6910.6646213856875},{"$f":"'[1]EXT Comercio(M)'!AP292","v":9367.6620153856929},null,null,{"$f":"'[1]EXT Comercio(M)'!$BS292","v":-3070.2495358627202},{"$f":"'[1]EXT Comercio(M)'!$BT292","v":-3999.9457358627224}]
[null,null,"Agosto",{"$f":"'[1]REAL IPC(M)'!AD293","v":5.3070005440292176},{"$f":"'[1]REAL IPC(M)'!AE293","v":0.99257884972171373},{"$f":"'[1]REAL IPC(M)'!AF293","v":4.4150110375275915},{"$f":"'[1]REAL IPC(M)'!AG293","v":5.3901850362027375},{"$f":"'[1]REAL IPC(M)'!AH293","v":7.9357436536217438},{"$f":"'[1]REAL IPC(M)'!AI293","v":5.3010948905109512},{"$f":"'[1]REAL IPC(M)'!AJ293","v":3.9024390243902451},null,null,{"$f":"'[1]REAL IMAE(M)'!AG293","v":1.9090267651123964},{"$f":"'[1]REAL IMAE(M)'!AH293","v":1.9473364311660828},{"$f":"'[1]REAL IMAE(M)'!AI293","v":"n.d."},{"$f":"'[1]REAL IMAE(M)'!AJ293","v":1.7739643240135197},{"$f":"'[1]REAL IMAE(M)'!AK293","v":4.6625952383249736},{"$f":"'[1]REAL IMAE(M)'!AL293","v":5.9325902245848301},{"$f":"'[1]REAL IMAE(M)'!AM293","v":8.2023871719647943},null,null,{"$f":"'[1]EXT ITCER(M)'!C293","v":70.196687965204333},{"$f":"'[1]EXT ITCER(M)'!D293","v":91.235038945273203},{"$f":"'[1]EXT ITCER(M)'!E293","v":62.891413643378812},{"$f":"'[1]EXT ITCER(M)'!F293","v":76.378605009812176},{"$f":"'[1]EXT ITCER(M)'!G293","v":96.642912911905654},{"$f":"'[1]EXT ITCER(M)'!H293","v":97.687773793096795},{"$f":"'[1]EXT ITCER(M)'!I293","v":88.672362155493389},null,null,{"$f":"'[1]EXT TC(M)'!J293","v":-0.17415311761504193},{"$f":"'[1]EXT TC(M)'!K293","v":0},{"$f":"'[1]EXT TC(M)'!L293","v":0.18094465168568796},{"$f":"'[1]EXT TC(M)'!M293","v":4.292082778285609},{"$f":"'[1]EXT TC(M)'!N293","v":5.0308003598337763},{"$f":"'[1]EXT TC(M)'!O293","v":8.3329711154690802},{"$f":"'[1]EXT TC(M)'!P293","v":0},null,null,{"$f":"'[1]EXT RIN(M)'!C293","v":7719.44312145},{"$f":"'[1]EXT RIN(M)'!D293","v":2855.7},{"$f":"'[1]EXT RIN(M)'!E293","v":6745.8},{"$f":"'[1]EXT RIN(M)'!F293","v":2655.8394964333825},{"$f":"'[1]EXT RIN(M)'!G293","v":1746.8},{"$f":"'[1]EXT RIN(M)'!H293","v":3392.6},{"$f":"'[1]EXT RIN(M)'!I293","v":2892.9286542099999},null,null,{"$f":"'[1]EXT RIN(M)'!P293","v":74.734311830849038},{"$f":"'[1]EXT RIN(M)'!Q293","v":106.5124113422272},{"$f":"'[1]EXT RIN(M)'!R293","v":101.98904422521086},{"$f":"'[1]EXT RIN(M)'!S293","v":74.773042463771461},{"$f":"'[1]EXT RIN(M)'!T293","v":112.64170145244994},{"$f":"'[1]EXT RIN(M)'!U293","v":67.590781539782824},{"$f":"'[1]EXT RIN(M)'!V293","v":235.00448915984103},null,null,{"$f":"+'[1]MONE(M)CAPARD'!AE293","v":1.1803578580239591},{"$f":"'[1]MONE(M)CAPARD'!AF293","v":2.3045467070818337},{"$f":"'[1]MONE(M)CAPARD'!AG293","v":1.0103805496828773},{"$f":"'[1]MONE(M)CAPARD'!AH293","v":6.0345419847328223},{"$f":"'[1]MONE(M)CAPARD'!AI293","v":0.79705031659961978},{"$f":"'[1]MONE(M)CAPARD'!AJ293","v":-5.8019235768132955E-2},{"$f":"'[1]MONE(M)CAPARD'!AK293","v":-1.7636150234741796},null,null,{"$f":"'[1]MONE(M)CAPARD'!AL293","v":1.95},{"$f":"'[1]MONE(M)CAPARD'!AM293","v":3.32},{"$f":"'[1]MONE(M)CAPARD'!AN293","v":2.89},{"$f":"'[1]MONE(M)CAPARD'!AO293","v":4.26},{"$f":"'[1]MONE(M)CAPARD'!AP293","v":3.3927653005273783},{"$f":"'[1]MONE(M)CAPARD'!AQ293","v":2.06},{"$f":"'[1]MONE(M)CAPARD'!AR293","v":2.0699999999999998},null,null,{"$f":"'[1]MONE(M)CAPARD'!J293","v":9.9072230735588285},{"$f":"'[1]MONE(M)CAPARD'!K293","v":4.9780104712041817},{"$f":"'[1]MONE(M)CAPARD'!L293","v":8.8157716701902764},{"$f":"'[1]MONE(M)CAPARD'!M293","v":14.128274809160303},{"$f":"'[1]MONE(M)CAPARD'!N293","v":12.002240520174732},{"$f":"'[1]MONE(M)CAPARD'!O293","v":7.2163590676717764},{"$f":"'[1]MONE(M)CAPARD'!P293","v":2.3363849765258204},null,null,{"$f":"'[1]MONE(M)CAPARD'!Q293","v":10.28},{"$f":"'[1]MONE(M)CAPARD'!R293","v":6.02},{"$f":"'[1]MONE(M)CAPARD'!S293","v":6.0699999999999994},{"$f":"'[1]MONE(M)CAPARD'!T293","v":8.5299999999999994},{"$f":"'[1]MONE(M)CAPARD'!U293","v":9},{"$f":"'[1]MONE(M)CAPARD'!V293","v":6.54},{"$f":"'[1]MONE(M)CAPARD'!W293","v":6.33},null,null,{"$f":"'[1]MONE(M)CAPARD'!AS293","v":4},{"$f":"'[1]MONE(M)CAPARD'!AT293","v":"n.a."},{"$f":"'[1]MONE(M)CAPARD'!AU293","v":5.25},{"$f":"'[1]MONE(M)CAPARD'!AV293","v":7},{"$f":"'[1]MONE(M)CAPARD'!AW293","v":"n.a."},{"$f":"'[1]MONE(M)CAPARD'!AX293","v":6.25},{"$f":"'[1]MONE(M)CAPARD'!AY293","v":"n.a."},null,null,{"$f":"+'Datos_Regional (M)'!CF286","v":12.790948493496757},{"$f":"+'Datos_Regional (M)'!CG286","v":7.3547539969954556},{"$f":"+'Datos_Regional (M)'!CH286","v":13.803025521758228},{"$f":"+'Datos_Regional (M)'!CI286","v":13.433317439676596},{"$f":"+'Datos_Regional (M)'!CJ286","v":22.13501016312518},{"$f":"+'Datos_Regional (M)'!CK286","v":14.967281049158165},{"$f":"+'Datos_Regional (M)'!CL286","v":13.765231685726764},null,null,{"$f":"IF(EH98=\"\",\"\",+AVERAGE(EH87:EH98))","v":954.57556837499305},{"$f":"IF(EI98=\"\",\"\",+AVERAGE(EI87:EI98))","v":458.34416666666658},{"$f":"IF(EJ98=\"\",\"\",+AVERAGE(EJ87:EJ98))","v":837.52499999999998},{"$f":"IF(EK98=\"\",\"\",+AVERAGE(EK87:EK98))","v":322.58531189050899},{"$f":"IF(EL98=\"\",\"\",+AVERAGE(EL87:EL98))","v":398.03842013500002},{"$f":"IF(EM98=\"\",\"\",+AVERAGE(EM87:EM98))","v":786.21666666666658},{"$f":"IF(EN98=\"\",\"\",+AVERAGE(EN87:EN98))","v":1343.8384170833335},{"$f":"IF(EO98=\"\",\"\",+AVERAGE(EO87:EO98))","v":3757.2851337338348},{"$f":"IF(EP98=\"\",\"\",+AVERAGE(EP87:EP98))","v":5101.1235508171685},null,null,{"$f":"IF(ES98=\"\",\"\",+AVERAGE(ES87:ES98))","v":1490.6308708083316},{"$f":"IF(ET98=\"\",\"\",+AVERAGE(ET87:ET98))","v":884.71500000000003},{"$f":"IF(EU98=\"\",\"\",+AVERAGE(EU87:EU98))","v":1442.5833333333333},{"$f":"IF(EV98=\"\",\"\",+AVERAGE(EV87:EV98))","v":762.30741861478145},{"$f":"IF(EW98=\"\",\"\",+AVERAGE(EW87:EW98))","v":597.76666666666677},{"$f":"IF(EX98=\"\",\"\",+AVERAGE(EX87:EX98))","v":1412.9999999999998},{"$f":"IF(EY98=\"\",\"\",+AVERAGE(EY87:EY98))","v":2211.2395205000007},{"$f":"IF(EZ98=\"\",\"\",+AVERAGE(EZ87:EZ98))","v":6591.0032894231144},{"$f":"IF(FA98=\"\",\"\",+AVERAGE(FA87:FA98))","v":8802.2428099231165},null,null,{"$f":"IF(FD98=\"\",\"\",+AVERAGE(FD87:FD98))","v":-2833.7181556892792},{"$f":"IF(FE98=\"\",\"\",+AVERAGE(FE87:FE98))","v":-3701.1192591059457},null,null,{"$f":"'[1]EXT Comercio(M)'!C293","v":951.05228632999388},{"$f":"'[1]EXT Comercio(M)'!D293","v":481.38999999999987},{"$f":"'[1]EXT Comercio(M)'!E293","v":804.39999999999964},{"$f":"'[1]EXT Comercio(M)'!F293","v":287.21256196657896},{"$f":"'[1]EXT Comercio(M)'!G293","v":436.90156343000001},{"$f":"'[1]EXT Comercio(M)'!H293","v":794.30000000000007},{"$f":"'[1]EXT Comercio(M)'!I293","v":1277.2831799999999},{"$f":"'[1]EXT Comercio(M)'!K293","v":3755.256411726572},{"$f":"'[1]EXT Comercio(M)'!L293","v":5032.5395917265705},null,null,{"$f":"'[1]EXT Comercio(M)'!AG293","v":1525.3824573899974},{"$f":"'[1]EXT Comercio(M)'!AH293","v":905.64999999999964},{"$f":"'[1]EXT Comercio(M)'!AI293","v":1387.1999999999994},{"$f":"'[1]EXT Comercio(M)'!AJ293","v":767.05113136606542},{"$f":"'[1]EXT Comercio(M)'!AK293","v":644.90000000000009},{"$f":"'[1]EXT Comercio(M)'!AL293","v":1424.2000000000003},{"$f":"'[1]EXT Comercio(M)'!AM293","v":2217.5236569999988},{"$f":"'[1]EXT Comercio(M)'!AO293","v":6654.3835887560708},{"$f":"'[1]EXT Comercio(M)'!AP293","v":8871.9072457560687},null,null,{"$f":"'[1]EXT Comercio(M)'!$BS293","v":-2899.1271770294879},{"$f":"'[1]EXT Comercio(M)'!$BT293","v":-3839.3676540294873}]
[null,null,"Setiembre",{"$f":"'[1]REAL IPC(M)'!AD294","v":5.3718385446357813},{"$f":"'[1]REAL IPC(M)'!AE294","v":0.75757575757576445},{"$f":"'[1]REAL IPC(M)'!AF294","v":4.210526315789469},{"$f":"'[1]REAL IPC(M)'!AG294","v":4.9520766773162954},{"$f":"'[1]REAL IPC(M)'!AH294","v":7.3518468085529021},{"$f":"'[1]REAL IPC(M)'!AI294","v":5.1309944701296315},{"$f":"'[1]REAL IPC(M)'!AJ294","v":3.8997214484679681},null,null,{"$f":"'[1]REAL IMAE(M)'!AG294","v":1.8469291587771521},{"$f":"'[1]REAL IMAE(M)'!AH294","v":2.4375578995728766},{"$f":"'[1]REAL IMAE(M)'!AI294","v":"n.d."},{"$f":"'[1]REAL IMAE(M)'!AJ294","v":1.7466061126379848},{"$f":"'[1]REAL IMAE(M)'!AK294","v":4.1183476702163979},{"$f":"'[1]REAL IMAE(M)'!AL294","v":6.5865415634925526},{"$f":"'[1]REAL IMAE(M)'!AM294","v":8.5253640582493091},null,null,{"$f":"'[1]EXT ITCER(M)'!C294","v":70.467971772172206},{"$f":"'[1]EXT ITCER(M)'!D294","v":91.182014788917769},{"$f":"'[1]EXT ITCER(M)'!E294","v":63.112420962465237},{"$f":"'[1]EXT ITCER(M)'!F294","v":76.481866012557646},{"$f":"'[1]EXT ITCER(M)'!G294","v":97.07992773887257},{"$f":"'[1]EXT ITCER(M)'!H294","v":97.888927328432459},{"$f":"'[1]EXT ITCER(M)'!I294","v":88.71598751273801},null,null,{"$f":"'[1]EXT TC(M)'!J294","v":0.50816962174181002},{"$f":"'[1]EXT TC(M)'!K294","v":0},{"$f":"'[1]EXT TC(M)'!L294","v":-0.39333775539943705},{"$f":"'[1]EXT TC(M)'!M294","v":4.2092509661377484},{"$f":"'[1]EXT TC(M)'!N294","v":5.1472357570324849},{"$f":"'[1]EXT TC(M)'!O294","v":8.6956632640047395},{"$f":"'[1]EXT TC(M)'!P294","v":0},null,null,{"$f":"'[1]EXT RIN(M)'!C294","v":7617.35809264},{"$f":"'[1]EXT RIN(M)'!D294","v":2889},{"$f":"'[1]EXT RIN(M)'!E294","v":6583.6},{"$f":"'[1]EXT RIN(M)'!F294","v":2561.1840444518798},{"$f":"'[1]EXT RIN(M)'!G294","v":1731.7},{"$f":"'[1]EXT RIN(M)'!H294","v":3343.8},{"$f":"'[1]EXT RIN(M)'!I294","v":2425.49320433},null,null,{"$f":"'[1]EXT RIN(M)'!P294","v":72.076200277111312},{"$f":"'[1]EXT RIN(M)'!Q294","v":106.20507468359968},{"$f":"'[1]EXT RIN(M)'!R294","v":101.48287811173591},{"$f":"'[1]EXT RIN(M)'!S294","v":73.398923906610648},{"$f":"'[1]EXT RIN(M)'!T294","v":111.98363388794186},{"$f":"'[1]EXT RIN(M)'!U294","v":65.34049423502222},{"$f":"'[1]EXT RIN(M)'!V294","v":192.60210367374592},null,null,{"$f":"+'[1]MONE(M)CAPARD'!AE294","v":1.1180989832166079},{"$f":"'[1]MONE(M)CAPARD'!AF294","v":2.6821052631578879},{"$f":"'[1]MONE(M)CAPARD'!AG294","v":1.2373737373737419},{"$f":"'[1]MONE(M)CAPARD'!AH294","v":6.3151902587519011},{"$f":"'[1]MONE(M)CAPARD'!AI294","v":1.9995593821264486},{"$f":"'[1]MONE(M)CAPARD'!AJ294","v":1.7302276450806275},{"$f":"'[1]MONE(M)CAPARD'!AK294","v":-1.7802949061662214},null,null,{"$f":"'[1]MONE(M)CAPARD'!AL294","v":1.9650000000000001},{"$f":"'[1]MONE(M)CAPARD'!AM294","v":3.46},{"$f":"'[1]MONE(M)CAPARD'!AN294","v":2.92},{"$f":"'[1]MONE(M)CAPARD'!AO294","v":4.22},{"$f":"'[1]MONE(M)CAPARD'!AP294","v":3.7918328285247744},{"$f":"'[1]MONE(M)CAPARD'!AQ294","v":1.61},{"$f":"'[1]MONE(M)CAPARD'!AR294","v":2.0499999999999998},null,null,{"$f":"'[1]MONE(M)CAPARD'!J294","v":9.9724571579084067},{"$f":"'[1]MONE(M)CAPARD'!K294","v":5.0938345864661585},{"$f":"'[1]MONE(M)CAPARD'!L294","v":9.038888888888895},{"$f":"'[1]MONE(M)CAPARD'!M294","v":14.461765601217653},{"$f":"'[1]MONE(M)CAPARD'!N294","v":13.472204834616125},{"$f":"'[1]MONE(M)CAPARD'!O294","v":8.4837069931878961},{"$f":"'[1]MONE(M)CAPARD'!P294","v":2.3101876675603199},null,null,{"$f":"'[1]MONE(M)CAPARD'!Q294","v":10.31},{"$f":"'[1]MONE(M)CAPARD'!R294","v":5.89},{"$f":"'[1]MONE(M)CAPARD'!S294","v":6.09},{"$f":"'[1]MONE(M)CAPARD'!T294","v":8.5500000000000007},{"$f":"'[1]MONE(M)CAPARD'!U294","v":8.4371588097991239},{"$f":"'[1]MONE(M)CAPARD'!V294","v":6.33},{"$f":"'[1]MONE(M)CAPARD'!W294","v":6.3},null,null,{"$f":"'[1]MONE(M)CAPARD'!AS294","v":4},{"$f":"'[1]MONE(M)CAPARD'!AT294","v":"n.a."},{"$f":"'[1]MONE(M)CAPARD'!AU294","v":5.25},{"$f":"'[1]MONE(M)CAPARD'!AV294","v":7},{"$f":"'[1]MONE(M)CAPARD'!AW294","v":"n.a."},{"$f":"'[1]MONE(M)CAPARD'!AX294","v":6.25},{"$f":"'[1]MONE(M)CAPARD'!AY294","v":"n.a."},null,null,{"$f":"+'Datos_Regional (M)'!CF287","v":12.396638561788809},{"$f":"+'Datos_Regional (M)'!CG287","v":7.0611122144784932},{"$f":"+'Datos_Regional (M)'!CH287","v":12.948007650078486},{"$f":"+'Datos_Regional (M)'!CI287","v":12.966578355250192},{"$f":"+'Datos_Regional (M)'!CJ287","v":21.916701226877432},{"$f":"+'Datos_Regional (M)'!CK287","v":16.022003524533758},{"$f":"+'Datos_Regional (M)'!CL287","v":12.231295282375655},null,null,960.17756597916002,459.73166666666674,833.07499999999982,320.95641491749387,399.18699330833334,785.50833333333333,1373.5021268333333,3758.6359742049863,5132.1381010383202,null,null,1506.943693496665,889.60083333333341,1458.625,758.77058631297348,595.80833333333351,1406.7,2192.1532306666672,6616.4484464763054,8808.6016771429713,null,null,-2857.8124722713196,-3676.463576104652,null,null,{"$f":"'[1]EXT Comercio(M)'!C294","v":974.4681237199984},{"$f":"'[1]EXT Comercio(M)'!D294","v":426.59000000000015},{"$f":"'[1]EXT Comercio(M)'!E294","v":731.7999999999995},{"$f":"'[1]EXT Comercio(M)'!F294","v":289.95675158381891},{"$f":"'[1]EXT Comercio(M)'!G294","v":399.96910287000003},{"$f":"'[1]EXT Comercio(M)'!H294","v":730.5},{"$f":"'[1]EXT Comercio(M)'!I294","v":1634.3786709999999},{"$f":"'[1]EXT Comercio(M)'!K294","v":3553.2839781738185},{"$f":"'[1]EXT Comercio(M)'!L294","v":5187.6626491738134},null,null,{"$f":"'[1]EXT Comercio(M)'!AG294","v":1500.6206973900016},{"$f":"'[1]EXT Comercio(M)'!AH294","v":848.68000000000029},{"$f":"'[1]EXT Comercio(M)'!AI294","v":1473.8000000000006},{"$f":"'[1]EXT Comercio(M)'!AJ294","v":733.25784338830363},{"$f":"'[1]EXT Comercio(M)'!AK294","v":560.40000000000032},{"$f":"'[1]EXT Comercio(M)'!AL294","v":1375.4},{"$f":"'[1]EXT Comercio(M)'!AM294","v":2235.7307730000002},{"$f":"'[1]EXT Comercio(M)'!AO294","v":6492.1585407782986},{"$f":"'[1]EXT Comercio(M)'!AP294","v":8727.889313778287},null,null,{"$f":"'[1]EXT Comercio(M)'!$BS294","v":-2938.8745626044911},{"$f":"'[1]EXT Comercio(M)'!$BT294","v":-3540.2266646044882}]
[null,null,"Octubre",{"$f":"'[1]REAL IPC(M)'!AD295","v":4.1061599239971871},{"$f":"'[1]REAL IPC(M)'!AE295","v":0.53540108926428354},{"$f":"'[1]REAL IPC(M)'!AF295","v":4.1544655929721745},{"$f":"'[1]REAL IPC(M)'!AG295","v":4.6123260437375837},{"$f":"'[1]REAL IPC(M)'!AH295","v":6.8305985700632972},{"$f":"'[1]REAL IPC(M)'!AI295","v":4.739079316270244},{"$f":"'[1]REAL IPC(M)'!AJ295","v":3.8942976356050076},null,null,{"$f":"'[1]REAL IMAE(M)'!AG295","v":1.7967580259377507},{"$f":"'[1]REAL IMAE(M)'!AH295","v":2.6918872120744801},{"$f":"'[1]REAL IMAE(M)'!AI295","v":"n.d."},{"$f":"'[1]REAL IMAE(M)'!AJ295","v":1.8945977725918415},{"$f":"'[1]REAL IMAE(M)'!AK295","v":3.7041721397225049},{"$f":"'[1]REAL IMAE(M)'!AL295","v":6.8575341289035707},{"$f":"'[1]REAL IMAE(M)'!AM295","v":8.5445934651967992},null,null,{"$f":"'[1]EXT ITCER(M)'!C295","v":70.659750881014659},{"$f":"'[1]EXT ITCER(M)'!D295","v":91.072455389163053},{"$f":"'[1]EXT ITCER(M)'!E295","v":63.097436213722652},{"$f":"'[1]EXT ITCER(M)'!F295","v":76.21883247092893},{"$f":"'[1]EXT ITCER(M)'!G295","v":97.341656729771216},{"$f":"'[1]EXT ITCER(M)'!H295","v":97.370901069466953},{"$f":"'[1]EXT ITCER(M)'!I295","v":88.369061528184304},null,null,{"$f":"'[1]EXT TC(M)'!J295","v":0.31655064613806655},{"$f":"'[1]EXT TC(M)'!K295","v":0},{"$f":"'[1]EXT TC(M)'!L295","v":1.0959228311530642},{"$f":"'[1]EXT TC(M)'!M295","v":3.8486807564108596},{"$f":"'[1]EXT TC(M)'!N295","v":5.4901831566368777},{"$f":"'[1]EXT TC(M)'!O295","v":7.6358858992145233},{"$f":"'[1]EXT TC(M)'!P295","v":0},null,null,{"$f":"'[1]EXT RIN(M)'!C295","v":7441.1258433399998},{"$f":"'[1]EXT RIN(M)'!D295","v":2847.7},{"$f":"'[1]EXT RIN(M)'!E295","v":6657.8},{"$f":"'[1]EXT RIN(M)'!F295","v":2499.9386394088324},{"$f":"'[1]EXT RIN(M)'!G295","v":1749.2},{"$f":"'[1]EXT RIN(M)'!H295","v":3648.2},{"$f":"'[1]EXT RIN(M)'!I295","v":2677.7236857100006},null,null,{"$f":"'[1]EXT RIN(M)'!P295","v":70.565282784660454},{"$f":"'[1]EXT RIN(M)'!Q295","v":105.58393175474659},{"$f":"'[1]EXT RIN(M)'!R295","v":103.06835281079569},{"$f":"'[1]EXT RIN(M)'!S295","v":73.8593629860585},{"$f":"'[1]EXT RIN(M)'!T295","v":110.85737377179802},{"$f":"'[1]EXT RIN(M)'!U295","v":65.732115796516183},{"$f":"'[1]EXT RIN(M)'!V295","v":215.9522940385815},null,null,{"$f":"+'[1]MONE(M)CAPARD'!AE295","v":2.3474500238861378},{"$f":"'[1]MONE(M)CAPARD'!AF295","v":2.9289174547791768},{"$f":"'[1]MONE(M)CAPARD'!AG295","v":1.2630609734668843},{"$f":"'[1]MONE(M)CAPARD'!AH295","v":6.5457620676548762},{"$f":"'[1]MONE(M)CAPARD'!AI295","v":2.6160016062897684},{"$f":"'[1]MONE(M)CAPARD'!AJ295","v":2.7505690354891557},{"$f":"'[1]MONE(M)CAPARD'!AK295","v":-1.7077911646586352},null,null,{"$f":"'[1]MONE(M)CAPARD'!AL295","v":1.9550000000000001},{"$f":"'[1]MONE(M)CAPARD'!AM295","v":3.48},{"$f":"'[1]MONE(M)CAPARD'!AN295","v":2.92},{"$f":"'[1]MONE(M)CAPARD'!AO295","v":4.18},{"$f":"'[1]MONE(M)CAPARD'!AP295","v":3.79075888533814},{"$f":"'[1]MONE(M)CAPARD'!AQ295","v":1.57},{"$f":"'[1]MONE(M)CAPARD'!AR295","v":2.12},null,null,{"$f":"'[1]MONE(M)CAPARD'!J295","v":11.520778486843556},{"$f":"'[1]MONE(M)CAPARD'!K295","v":5.226615554127263},{"$f":"'[1]MONE(M)CAPARD'!L295","v":9.1263820066772183},{"$f":"'[1]MONE(M)CAPARD'!M295","v":14.948213606993528},{"$f":"'[1]MONE(M)CAPARD'!N295","v":15.235752108097826},{"$f":"'[1]MONE(M)CAPARD'!O295","v":9.5388662464381238},{"$f":"'[1]MONE(M)CAPARD'!P295","v":2.286653279785809},null,null,{"$f":"'[1]MONE(M)CAPARD'!Q295","v":10.56},{"$f":"'[1]MONE(M)CAPARD'!R295","v":5.79},{"$f":"'[1]MONE(M)CAPARD'!S295","v":6.07},{"$f":"'[1]MONE(M)CAPARD'!T295","v":8.6},{"$f":"'[1]MONE(M)CAPARD'!U295","v":8.8000000000000007},{"$f":"'[1]MONE(M)CAPARD'!V295","v":7.06},{"$f":"'[1]MONE(M)CAPARD'!W295","v":6.27},null,null,{"$f":"'[1]MONE(M)CAPARD'!AS295","v":4},{"$f":"'[1]MONE(M)CAPARD'!AT295","v":"n.a."},{"$f":"'[1]MONE(M)CAPARD'!AU295","v":5},{"$f":"'[1]MONE(M)CAPARD'!AV295","v":7},{"$f":"'[1]MONE(M)CAPARD'!AW295","v":"n.a."},{"$f":"'[1]MONE(M)CAPARD'!AX295","v":6.25},{"$f":"'[1]MONE(M)CAPARD'!AY295","v":"n.a."},null,null,{"$f":"+'Datos_Regional (M)'!CF288","v":12.248832748387661},{"$f":"+'Datos_Regional (M)'!CG288","v":7.4624841907608763},{"$f":"+'Datos_Regional (M)'!CH288","v":12.901375372748024},{"$f":"+'Datos_Regional (M)'!CI288","v":14.253800763250467},{"$f":"+'Datos_Regional (M)'!CJ288","v":22.480960046968335},{"$f":"+'Datos_Regional (M)'!CK288","v":15.121675909007969},{"$f":"+'Datos_Regional (M)'!CL288","v":11.883545944689832},null,null,968.23796949249379,460.36166666666662,835.95833333333303,320.4087637134383,399.72029064499998,791.58333333333337,1370.0661808333334,3776.2703571842653,5146.3365380175992,null,null,1506.4297822583333,893.8950000000001,1464.7250000000001,757.63866712968229,594.14166666666665,1412.6666666666667,2169.5671064166663,6629.4967827213486,8799.0638891380149,null,null,-2853.2264255370847,-3652.7273511204171,null,null,{"$f":"'[1]EXT Comercio(M)'!C295","v":1016.3347933399982},{"$f":"'[1]EXT Comercio(M)'!D295","v":452.55000000000018},{"$f":"'[1]EXT Comercio(M)'!E295","v":767.09999999999945},{"$f":"'[1]EXT Comercio(M)'!F295","v":269.319031891333},{"$f":"'[1]EXT Comercio(M)'!G295","v":442.41385540000005},{"$f":"'[1]EXT Comercio(M)'!H295","v":829.9},{"$f":"'[1]EXT Comercio(M)'!I295","v":1594.8113669999998},{"$f":"'[1]EXT Comercio(M)'!K295","v":3777.6176806313379},{"$f":"'[1]EXT Comercio(M)'!L295","v":5372.4290476313399},null,null,{"$f":"'[1]EXT Comercio(M)'!AG295","v":1610.0182660000046},{"$f":"'[1]EXT Comercio(M)'!AH295","v":915.08000000000084},{"$f":"'[1]EXT Comercio(M)'!AI295","v":1604.9000000000003},{"$f":"'[1]EXT Comercio(M)'!AJ295","v":797.66830008050692},{"$f":"'[1]EXT Comercio(M)'!AK295","v":637.29999999999961},{"$f":"'[1]EXT Comercio(M)'!AL295","v":1590.9},{"$f":"'[1]EXT Comercio(M)'!AM295","v":2414.210865},{"$f":"'[1]EXT Comercio(M)'!AO295","v":7155.8665660805127},{"$f":"'[1]EXT Comercio(M)'!AP295","v":9570.0774310805136},null,null,{"$f":"'[1]EXT Comercio(M)'!$BS295","v":-3378.2488854491821},{"$f":"'[1]EXT Comercio(M)'!$BT295","v":-4197.648383449181}]
[null,null,"Noviembre",{"$f":"'[1]REAL IPC(M)'!AD296","v":3.4431410701870986},{"$f":"'[1]REAL IPC(M)'!AE296","v":0.75799593270474497},{"$f":"'[1]REAL IPC(M)'!AF296","v":4.6307312162533201},{"$f":"'[1]REAL IPC(M)'!AG296","v":4.7240968638348573},{"$f":"'[1]REAL IPC(M)'!AH296","v":6.2944611064371863},{"$f":"'[1]REAL IPC(M)'!AI296","v":4.1430754021748895},{"$f":"'[1]REAL IPC(M)'!AJ296","v":3.8194444444444455},null,null,{"$f":"'[1]REAL IMAE(M)'!AG296","v":1.7737673225580244},{"$f":"'[1]REAL IMAE(M)'!AH296","v":2.7666612190929945},{"$f":"'[1]REAL IMAE(M)'!AI296","v":"n.d."},{"$f":"'[1]REAL IMAE(M)'!AJ296","v":2.1980028145259576},{"$f":"'[1]REAL IMAE(M)'!AK296","v":3.5336251206255769},{"$f":"'[1]REAL IMAE(M)'!AL296","v":6.8239524610797728},{"$f":"'[1]REAL IMAE(M)'!AM296","v":8.174483904136661},null,null,{"$f":"'[1]EXT ITCER(M)'!C296","v":70.343580807669994},{"$f":"'[1]EXT ITCER(M)'!D296","v":90.811402948027236},{"$f":"'[1]EXT ITCER(M)'!E296","v":62.178932360339786},{"$f":"'[1]EXT ITCER(M)'!F296","v":75.932039639599765},{"$f":"'[1]EXT ITCER(M)'!G296","v":96.954174364708663},{"$f":"'[1]EXT ITCER(M)'!H296","v":97.163672055439761},{"$f":"'[1]EXT ITCER(M)'!I296","v":88.128362423854355},null,null,{"$f":"'[1]EXT TC(M)'!J296","v":-0.17090271691501532},{"$f":"'[1]EXT TC(M)'!K296","v":0},{"$f":"'[1]EXT TC(M)'!L296","v":0.29295880759910992},{"$f":"'[1]EXT TC(M)'!M296","v":3.5359046398111702},{"$f":"'[1]EXT TC(M)'!N296","v":5.2654569485915896},{"$f":"'[1]EXT TC(M)'!O296","v":6.3239473651262683},{"$f":"'[1]EXT TC(M)'!P296","v":0},null,null,{"$f":"'[1]EXT RIN(M)'!C296","v":7398.0345456100004},{"$f":"'[1]EXT RIN(M)'!D296","v":2747.7},{"$f":"'[1]EXT RIN(M)'!E296","v":6957.6},{"$f":"'[1]EXT RIN(M)'!F296","v":2383.4106976996054},{"$f":"'[1]EXT RIN(M)'!G296","v":1754.9},{"$f":"'[1]EXT RIN(M)'!H296","v":3542},{"$f":"'[1]EXT RIN(M)'!I296","v":3148.2979409499999},null,null,{"$f":"'[1]EXT RIN(M)'!P296","v":68.239359648146078},{"$f":"'[1]EXT RIN(M)'!Q296","v":104.22988917347446},{"$f":"'[1]EXT RIN(M)'!R296","v":107.94972485796843},{"$f":"'[1]EXT RIN(M)'!S296","v":69.536208082678669},{"$f":"'[1]EXT RIN(M)'!T296","v":110.44094342326775},{"$f":"'[1]EXT RIN(M)'!U296","v":64.374015176560718},{"$f":"'[1]EXT RIN(M)'!V296","v":266.77768268683968},null,null,{"$f":"+'[1]MONE(M)CAPARD'!AE296","v":3.003446045499401},{"$f":"'[1]MONE(M)CAPARD'!AF296","v":2.9099467889908324},{"$f":"'[1]MONE(M)CAPARD'!AG296","v":0.83079681623370694},{"$f":"'[1]MONE(M)CAPARD'!AH296","v":6.3747536012130386},{"$f":"'[1]MONE(M)CAPARD'!AI296","v":2.8671441521711718},{"$f":"'[1]MONE(M)CAPARD'!AJ296","v":2.9065058681394551},{"$f":"'[1]MONE(M)CAPARD'!AK296","v":-1.608026755852844},null,null,{"$f":"'[1]MONE(M)CAPARD'!AL296","v":1.855},{"$f":"'[1]MONE(M)CAPARD'!AM296","v":3.69},{"$f":"'[1]MONE(M)CAPARD'!AN296","v":2.93},{"$f":"'[1]MONE(M)CAPARD'!AO296","v":4.16},{"$f":"'[1]MONE(M)CAPARD'!AP296","v":3.4646361978997793},{"$f":"'[1]MONE(M)CAPARD'!AQ296","v":1.69},{"$f":"'[1]MONE(M)CAPARD'!AR296","v":2.15},null,null,{"$f":"'[1]MONE(M)CAPARD'!J296","v":12.245238107394981},{"$f":"'[1]MONE(M)CAPARD'!K296","v":4.7956532110091814},{"$f":"'[1]MONE(M)CAPARD'!L296","v":8.6487676025540061},{"$f":"'[1]MONE(M)CAPARD'!M296","v":14.815981804397266},{"$f":"'[1]MONE(M)CAPARD'!N296","v":13.391560530559151},{"$f":"'[1]MONE(M)CAPARD'!O296","v":10.079330341732827},{"$f":"'[1]MONE(M)CAPARD'!P296","v":2.4374581939799316},null,null,{"$f":"'[1]MONE(M)CAPARD'!Q296","v":10.47},{"$f":"'[1]MONE(M)CAPARD'!R296","v":5.59},{"$f":"'[1]MONE(M)CAPARD'!S296","v":6.07},{"$f":"'[1]MONE(M)CAPARD'!T296","v":8.5299999999999994},{"$f":"'[1]MONE(M)CAPARD'!U296","v":8.5},{"$f":"'[1]MONE(M)CAPARD'!V296","v":5.68},{"$f":"'[1]MONE(M)CAPARD'!W296","v":6.35},null,null,{"$f":"'[1]MONE(M)CAPARD'!AS296","v":4},{"$f":"'[1]MONE(M)CAPARD'!AT296","v":"n.a."},{"$f":"'[1]MONE(M)CAPARD'!AU296","v":5},{"$f":"'[1]MONE(M)CAPARD'!AV296","v":7},{"$f":"'[1]MONE(M)CAPARD'!AW296","v":"n.a."},{"$f":"'[1]MONE(M)CAPARD'!AX296","v":6.25},{"$f":"'[1]MONE(M)CAPARD'!AY296","v":"n.a."},null,null,{"$f":"+'Datos_Regional (M)'!CF289","v":13.208663820386501},{"$f":"+'Datos_Regional (M)'!CG289","v":8.0714250519637645},{"$f":"+'Datos_Regional (M)'!CH289","v":11.953187365533546},{"$f":"+'Datos_Regional (M)'!CI289","v":13.735545684195017},{"$f":"+'Datos_Regional (M)'!CJ289","v":21.874068722022024},{"$f":"+'Datos_Regional (M)'!CK289","v":15.238444749241165},{"$f":"+'Datos_Regional (M)'!CL289","v":-4.3446684991081614},null,null,968.96319880832743,459.26499999999993,835.51666666666642,323.67159110031918,400.17910077833335,781.54166666666663,1341.7389346666666,3769.1372240203127,5110.8761586869796,null,null,1503.403291557499,899.43916666666689,1465.7583333333332,761.39202402219507,595.9,1407.6333333333332,2149.2692059999995,6633.526148913028,8782.795354913027,null,null,-2864.3889248927153,-3671.9191962260484,null,null,{"$f":"'[1]EXT Comercio(M)'!C296","v":991.88578880999739},{"$f":"'[1]EXT Comercio(M)'!D296","v":403.59999999999945},{"$f":"'[1]EXT Comercio(M)'!E296","v":803},{"$f":"'[1]EXT Comercio(M)'!F296","v":288.85412457257007},{"$f":"'[1]EXT Comercio(M)'!G296","v":403.86166766000002},{"$f":"'[1]EXT Comercio(M)'!H296","v":755.8},{"$f":"'[1]EXT Comercio(M)'!I296","v":1369.2466300000001},{"$f":"'[1]EXT Comercio(M)'!K296","v":3647.0015810425612},{"$f":"'[1]EXT Comercio(M)'!L296","v":5016.2482110425626},null,null,{"$f":"'[1]EXT Comercio(M)'!AG296","v":1515.0700888600047},{"$f":"'[1]EXT Comercio(M)'!AH296","v":927.39999999999964},{"$f":"'[1]EXT Comercio(M)'!AI296","v":1443.5000000000009},{"$f":"'[1]EXT Comercio(M)'!AJ296","v":807.00860127015039},{"$f":"'[1]EXT Comercio(M)'!AK296","v":608.99999999999977},{"$f":"'[1]EXT Comercio(M)'!AL296","v":1415.5},{"$f":"'[1]EXT Comercio(M)'!AM296","v":2011.2317300000004},{"$f":"'[1]EXT Comercio(M)'!AO296","v":6717.4786901301559},{"$f":"'[1]EXT Comercio(M)'!AP296","v":8728.71042013017},null,null,{"$f":"'[1]EXT Comercio(M)'!$BS296","v":-3070.4771090875838},{"$f":"'[1]EXT Comercio(M)'!$BT296","v":-3712.4622090875855}]
[null,null,"Diciembre ",{"$f":"'[1]REAL IPC(M)'!AD297","v":3.6795406734904486},{"$f":"'[1]REAL IPC(M)'!AE297","v":0.78609081660964453},{"$f":"'[1]REAL IPC(M)'!AF297","v":4.3874021481886105},{"$f":"'[1]REAL IPC(M)'!AG297","v":4.9167327517843118},{"$f":"'[1]REAL IPC(M)'!AH297","v":5.6748063186391358},{"$f":"'[1]REAL IPC(M)'!AI297","v":3.8760382245244291},{"$f":"'[1]REAL IPC(M)'!AJ297","v":3.7370242214532876},null,null,{"$f":"'[1]REAL IMAE(M)'!AG297","v":1.9502602058176444},{"$f":"'[1]REAL IMAE(M)'!AH297","v":2.8942492532740349},{"$f":"'[1]REAL IMAE(M)'!AI297","v":"n.d."},{"$f":"'[1]REAL IMAE(M)'!AJ297","v":2.5761594973749662},{"$f":"'[1]REAL IMAE(M)'!AK297","v":3.6077908300767265},{"$f":"'[1]REAL IMAE(M)'!AL297","v":6.5969424030168309},{"$f":"'[1]REAL IMAE(M)'!AM297","v":7.4892981973844375},null,null,{"$f":"'[1]EXT ITCER(M)'!C297","v":69.971448161180689},{"$f":"'[1]EXT ITCER(M)'!D297","v":90.820274556076228},{"$f":"'[1]EXT ITCER(M)'!E297","v":61.703765224472185},{"$f":"'[1]EXT ITCER(M)'!F297","v":75.856373240073424},{"$f":"'[1]EXT ITCER(M)'!G297","v":96.00082720387006},{"$f":"'[1]EXT ITCER(M)'!H297","v":97.123886859393721},{"$f":"'[1]EXT ITCER(M)'!I297","v":87.849935516781244},null,null,{"$f":"'[1]EXT TC(M)'!J297","v":-0.16692475400134169},{"$f":"'[1]EXT TC(M)'!K297","v":0},{"$f":"'[1]EXT TC(M)'!L297","v":-0.39270705044374349},{"$f":"'[1]EXT TC(M)'!M297","v":3.3478630343798441},{"$f":"'[1]EXT TC(M)'!N297","v":4.9133741864135017},{"$f":"'[1]EXT TC(M)'!O297","v":6.0601006379489926},{"$f":"'[1]EXT TC(M)'!P297","v":0},null,null,{"$f":"'[1]EXT RIN(M)'!C297","v":7330.8633171600004},{"$f":"'[1]EXT RIN(M)'!D297","v":2720.7},{"$f":"'[1]EXT RIN(M)'!E297","v":7272.6},{"$f":"'[1]EXT RIN(M)'!F297","v":3055.9363093790512},{"$f":"'[1]EXT RIN(M)'!G297","v":1840},{"$f":"'[1]EXT RIN(M)'!H297","v":4386.5041908662597},{"$f":"'[1]EXT RIN(M)'!I297","v":2748.6520483199997},null,null,{"$f":"'[1]EXT RIN(M)'!P297","v":67.018715700381037},{"$f":"'[1]EXT RIN(M)'!Q297","v":102.02968074801515},{"$f":"'[1]EXT RIN(M)'!R297","v":99.520485668955246},{"$f":"'[1]EXT RIN(M)'!S297","v":82.706719369155394},{"$f":"'[1]EXT RIN(M)'!T297","v":112.84486146522967},{"$f":"'[1]EXT RIN(M)'!U297","v":73.433376910943338},{"$f":"'[1]EXT RIN(M)'!V297","v":232.01845812774121},null,null,{"$f":"+'[1]MONE(M)CAPARD'!AE297","v":2.720362482499604},{"$f":"'[1]MONE(M)CAPARD'!AF297","v":2.8316498440080666},{"$f":"'[1]MONE(M)CAPARD'!AG297","v":1.0275165678409421},{"$f":"'[1]MONE(M)CAPARD'!AH297","v":6.1222524565381571},{"$f":"'[1]MONE(M)CAPARD'!AI297","v":2.8634456795500021},{"$f":"'[1]MONE(M)CAPARD'!AJ297","v":3.3250803886166254},{"$f":"'[1]MONE(M)CAPARD'!AK297","v":-1.5684122748499005},null,null,{"$f":"'[1]MONE(M)CAPARD'!AL297","v":1.8599999999999999},{"$f":"'[1]MONE(M)CAPARD'!AM297","v":3.64},{"$f":"'[1]MONE(M)CAPARD'!AN297","v":2.94},{"$f":"'[1]MONE(M)CAPARD'!AO297","v":4.18},{"$f":"'[1]MONE(M)CAPARD'!AP297","v":3.08},{"$f":"'[1]MONE(M)CAPARD'!AQ297","v":1.79},{"$f":"'[1]MONE(M)CAPARD'!AR297","v":2.11},null,null,{"$f":"'[1]MONE(M)CAPARD'!J297","v":12.018243180446047},{"$f":"'[1]MONE(M)CAPARD'!K297","v":5.0045687282070022},{"$f":"'[1]MONE(M)CAPARD'!L297","v":8.9211893965817861},{"$f":"'[1]MONE(M)CAPARD'!M297","v":14.643295540438384},{"$f":"'[1]MONE(M)CAPARD'!N297","v":12.652400166572139},{"$f":"'[1]MONE(M)CAPARD'!O297","v":9.8039566675264354},{"$f":"'[1]MONE(M)CAPARD'!P297","v":2.4802868579052695},null,null,{"$f":"'[1]MONE(M)CAPARD'!Q297","v":10.53},{"$f":"'[1]MONE(M)CAPARD'!R297","v":5.83},{"$f":"'[1]MONE(M)CAPARD'!S297","v":6.06},{"$f":"'[1]MONE(M)CAPARD'!T297","v":8.48},{"$f":"'[1]MONE(M)CAPARD'!U297","v":8.0299999999999994},{"$f":"'[1]MONE(M)CAPARD'!V297","v":7.17},{"$f":"'[1]MONE(M)CAPARD'!W297","v":6.31},null,null,{"$f":"'[1]MONE(M)CAPARD'!AS297","v":3.75},{"$f":"'[1]MONE(M)CAPARD'!AT297","v":"n.a."},{"$f":"'[1]MONE(M)CAPARD'!AU297","v":5},{"$f":"'[1]MONE(M)CAPARD'!AV297","v":7},{"$f":"'[1]MONE(M)CAPARD'!AW297","v":"n.a."},{"$f":"'[1]MONE(M)CAPARD'!AX297","v":6.25},{"$f":"'[1]MONE(M)CAPARD'!AY297","v":"n.a."},null,null,{"$f":"+'Datos_Regional (M)'!CF290","v":13.086229132800087},{"$f":"+'Datos_Regional (M)'!CG290","v":7.946945203386746},{"$f":"+'Datos_Regional (M)'!CH290","v":10.166199221924632},{"$f":"+'Datos_Regional (M)'!CI290","v":13.599401069967175},{"$f":"+'Datos_Regional (M)'!CJ290","v":20.247758493291013},{"$f":"+'Datos_Regional (M)'!CK290","v":15.238610543426368},{"$f":"+'Datos_Regional (M)'!CL290","v":-8.6862357311441318},null,null,969.59492761499439,459.94166666666666,835.68333333333305,327.44879043828752,399.5332200758333,785.36666666666679,1313.669114,3777.568604795782,5091.2377187957809,null,null,1496.8095505191657,895.62833333333344,1459.6250000000002,762.68996295340912,593.22500000000002,1400.1000000000001,2143.3555729999994,6608.0778468059079,8751.4334198059078,null,null,-2830.5092420101269,-3660.1957010101264,null,null,{"$f":"'[1]EXT Comercio(M)'!C297","v":888.2552155999947},{"$f":"'[1]EXT Comercio(M)'!D297","v":426.3100000000004},{"$f":"'[1]EXT Comercio(M)'!E297","v":825.70000000000027},{"$f":"'[1]EXT Comercio(M)'!F297","v":338.54368906562013},{"$f":"'[1]EXT Comercio(M)'!G297","v":344.76179401000002},{"$f":"'[1]EXT Comercio(M)'!H297","v":730.7},{"$f":"'[1]EXT Comercio(M)'!I297","v":858.81192800000008},{"$f":"'[1]EXT Comercio(M)'!K297","v":3554.2706986756166},{"$f":"'[1]EXT Comercio(M)'!L297","v":4413.0826266756048},null,null,{"$f":"'[1]EXT Comercio(M)'!AG297","v":1394.0680475199924},{"$f":"'[1]EXT Comercio(M)'!AH297","v":789.59000000000015},{"$f":"'[1]EXT Comercio(M)'!AI297","v":1335.9000000000005},{"$f":"'[1]EXT Comercio(M)'!AJ297","v":762.6916486145692},{"$f":"'[1]EXT Comercio(M)'!AK297","v":602.69999999999982},{"$f":"'[1]EXT Comercio(M)'!AL297","v":1388.1},{"$f":"'[1]EXT Comercio(M)'!AM297","v":1752.4022910000003},{"$f":"'[1]EXT Comercio(M)'!AO297","v":6273.0496961345634},{"$f":"'[1]EXT Comercio(M)'!AP297","v":8025.4519871345547},null,null,{"$f":"'[1]EXT Comercio(M)'!$BS297","v":-2718.7789974589541},{"$f":"'[1]EXT Comercio(M)'!$BT297","v":-3612.3693604589498}]
[null,2014,"Enero",{"$f":"'[1]REAL IPC(M)'!AD298","v":3.1040330968614209},{"$f":"'[1]REAL IPC(M)'!AE298","v":0.84722350124320989},{"$f":"'[1]REAL IPC(M)'!AF298","v":4.1394927536231823},{"$f":"'[1]REAL IPC(M)'!AG298","v":5.9984214680347341},{"$f":"'[1]REAL IPC(M)'!AH298","v":5.1922326714335245},{"$f":"'[1]REAL IPC(M)'!AI298","v":2.8223672605397803},{"$f":"'[1]REAL IPC(M)'!AJ298","v":3.3723331039228013},null,null,{"$f":"'[1]REAL IMAE(M)'!AG298","v":2.3840752186140368},{"$f":"'[1]REAL IMAE(M)'!AH298","v":3.0652979043457642},{"$f":"'[1]REAL IMAE(M)'!AI298","v":3.4486710557017961},{"$f":"'[1]REAL IMAE(M)'!AJ298","v":2.8987687506801234},{"$f":"'[1]REAL IMAE(M)'!AK298","v":3.7192270837112109},{"$f":"'[1]REAL IMAE(M)'!AL298","v":6.4330023925353945},{"$f":"'[1]REAL IMAE(M)'!AM298","v":5.7596706540313747},null,null,{"$f":"'[1]EXT ITCER(M)'!C298","v":70.120651941798499},{"$f":"'[1]EXT ITCER(M)'!D298","v":90.716966673260643},{"$f":"'[1]EXT ITCER(M)'!E298","v":61.674020370437383},{"$f":"'[1]EXT ITCER(M)'!F298","v":75.123337236668647},{"$f":"'[1]EXT ITCER(M)'!G298","v":96.301763796641467},{"$f":"'[1]EXT ITCER(M)'!H298","v":97.850764460556277},{"$f":"'[1]EXT ITCER(M)'!I298","v":88.055888383463412},null,null,{"$f":"'[1]EXT TC(M)'!J298","v":0.21653281790923695},{"$f":"'[1]EXT TC(M)'!K298","v":0},{"$f":"'[1]EXT TC(M)'!L298","v":-0.45172491808195159},{"$f":"'[1]EXT TC(M)'!M298","v":3.1238670923439034},{"$f":"'[1]EXT TC(M)'!N298","v":4.9340717145808313},{"$f":"'[1]EXT TC(M)'!O298","v":5.6393497569968067},{"$f":"'[1]EXT TC(M)'!P298","v":0},null,null,{"$f":"'[1]EXT RIN(M)'!C298","v":7258.3436738500004},{"$f":"'[1]EXT RIN(M)'!D298","v":2751.3},{"$f":"'[1]EXT RIN(M)'!E298","v":7164.6},{"$f":"'[1]EXT RIN(M)'!F298","v":2925.7112050424298},{"$f":"'[1]EXT RIN(M)'!G298","v":1874.4},{"$f":"'[1]EXT RIN(M)'!H298","v":3753.8264529553708},{"$f":"'[1]EXT RIN(M)'!I298","v":2346.1767065199997},null,null,{"$f":"'[1]EXT RIN(M)'!P298","v":68.699381693964042},{"$f":"'[1]EXT RIN(M)'!Q298","v":102.76889195016234},{"$f":"'[1]EXT RIN(M)'!R298","v":99.602853777760842},{"$f":"'[1]EXT RIN(M)'!S298","v":79.974841100943195},{"$f":"'[1]EXT RIN(M)'!T298","v":112.12883509730503},{"$f":"'[1]EXT RIN(M)'!U298","v":69.099456168666521},{"$f":"'[1]EXT RIN(M)'!V298","v":194.38421274223074},null,null,{"$f":"+'[1]MONE(M)CAPARD'!AE298","v":3.3422231891755909},{"$f":"'[1]MONE(M)CAPARD'!AF298","v":2.6205743767692438},{"$f":"'[1]MONE(M)CAPARD'!AG298","v":1.8441680438375285},{"$f":"'[1]MONE(M)CAPARD'!AH298","v":4.8506180193596373},{"$f":"'[1]MONE(M)CAPARD'!AI298","v":3.8243172150106512},{"$f":"'[1]MONE(M)CAPARD'!AJ298","v":4.0435100360267615},{"$f":"'[1]MONE(M)CAPARD'!AK298","v":-1.1534354194406338},null,null,{"$f":"'[1]MONE(M)CAPARD'!AL298","v":1.875},{"$f":"'[1]MONE(M)CAPARD'!AM298","v":3.49},{"$f":"'[1]MONE(M)CAPARD'!AN298","v":2.94},{"$f":"'[1]MONE(M)CAPARD'!AO298","v":4.17},{"$f":"'[1]MONE(M)CAPARD'!AP298","v":3.6302273824629938},{"$f":"'[1]MONE(M)CAPARD'!AQ298","v":1.46},{"$f":"'[1]MONE(M)CAPARD'!AR298","v":2.1800000000000002},null,null,{"$f":"'[1]MONE(M)CAPARD'!J298","v":12.944175414167034},{"$f":"'[1]MONE(M)CAPARD'!K298","v":4.9508318874988575},{"$f":"'[1]MONE(M)CAPARD'!L298","v":9.2573019048447485},{"$f":"'[1]MONE(M)CAPARD'!M298","v":13.728108711839159},{"$f":"'[1]MONE(M)CAPARD'!N298","v":14.917278153774664},{"$f":"'[1]MONE(M)CAPARD'!O298","v":11.561329559101045},{"$f":"'[1]MONE(M)CAPARD'!P298","v":2.8224833555260815},null,null,{"$f":"'[1]MONE(M)CAPARD'!Q298","v":10.07},{"$f":"'[1]MONE(M)CAPARD'!R298","v":5.84},{"$f":"'[1]MONE(M)CAPARD'!S298","v":6.06},{"$f":"'[1]MONE(M)CAPARD'!T298","v":8.51},{"$f":"'[1]MONE(M)CAPARD'!U298","v":8.8520728691260526},{"$f":"'[1]MONE(M)CAPARD'!V298","v":8.09},{"$f":"'[1]MONE(M)CAPARD'!W298","v":6.29},null,null,{"$f":"'[1]MONE(M)CAPARD'!AS298","v":3.75},{"$f":"'[1]MONE(M)CAPARD'!AT298","v":"n.a."},{"$f":"'[1]MONE(M)CAPARD'!AU298","v":5},{"$f":"'[1]MONE(M)CAPARD'!AV298","v":7},{"$f":"'[1]MONE(M)CAPARD'!AW298","v":"n.a."},{"$f":"'[1]MONE(M)CAPARD'!AX298","v":6.25},{"$f":"'[1]MONE(M)CAPARD'!AY298","v":"n.a."},null,null,{"$f":"+'Datos_Regional (M)'!CF291","v":13.560347534824114},{"$f":"+'Datos_Regional (M)'!CG291","v":7.6264986567358362},{"$f":"+'Datos_Regional (M)'!CH291","v":10.817445566034278},{"$f":"+'Datos_Regional (M)'!CI291","v":13.5271897275816},{"$f":"+'Datos_Regional (M)'!CJ291","v":19.762868220964357},{"$f":"+'Datos_Regional (M)'!CK291","v":12.104848584044836},{"$f":"+'Datos_Regional (M)'!CL291","v":10.917251818061136},null,null,964.87548666416126,453.76416666666665,836.2833333333333,324.24326124724104,402.77096771499993,790.0916666666667,1299.0811794166668,3772.0288822930688,5071.1100617097336,null,null,1493.0538260341661,896.51250000000016,1466.4833333333336,752.09333278555414,597.4666666666667,1404.7916666666667,2124.3110816666663,6610.4013254863867,8734.7124071530543,null,null,-2838.3724431933188,-3663.602345443318,null,null,{"$f":"'[1]EXT Comercio(M)'!C298","v":854.92168000999231},{"$f":"'[1]EXT Comercio(M)'!D298","v":404.7},{"$f":"'[1]EXT Comercio(M)'!E298","v":835.4},{"$f":"'[1]EXT Comercio(M)'!F298","v":341.1},{"$f":"'[1]EXT Comercio(M)'!G298","v":433.9},{"$f":"'[1]EXT Comercio(M)'!H298","v":733.60000000000014},{"$f":"'[1]EXT Comercio(M)'!I298","v":921.51920499999994},{"$f":"'[1]EXT Comercio(M)'!K298","v":3603.6216800099928},{"$f":"'[1]EXT Comercio(M)'!L298","v":4525.1408850099924},null,null,{"$f":"'[1]EXT Comercio(M)'!AG298","v":1517.826006589999},{"$f":"'[1]EXT Comercio(M)'!AH298","v":895.84},{"$f":"'[1]EXT Comercio(M)'!AI298","v":1547.8999999999999},{"$f":"'[1]EXT Comercio(M)'!AJ298","v":680.2635423840469},{"$f":"'[1]EXT Comercio(M)'!AK298","v":604.09999999999991},{"$f":"'[1]EXT Comercio(M)'!AL298","v":1309.7},{"$f":"'[1]EXT Comercio(M)'!AM298","v":1967.6846409999971},{"$f":"'[1]EXT Comercio(M)'!AO298","v":6555.6295489740451},{"$f":"'[1]EXT Comercio(M)'!AP298","v":8523.3141899740422},null,null,{"$f":"'[1]EXT Comercio(M)'!$BS298","v":-2952.0078689640536},{"$f":"'[1]EXT Comercio(M)'!$BT298","v":-3998.1733049640507}]
[null,null,"Febrero",{"$f":"'[1]REAL IPC(M)'!AD299","v":2.7396626648014526},{"$f":"'[1]REAL IPC(M)'!AE299","v":0.61439706556625562},{"$f":"'[1]REAL IPC(M)'!AF299","v":3.5040431266846408},{"$f":"'[1]REAL IPC(M)'!AG299","v":5.7399453338539583},{"$f":"'[1]REAL IPC(M)'!AH299","v":5.2528405814158781},{"$f":"'[1]REAL IPC(M)'!AI299","v":2.8395604395604428},{"$f":"'[1]REAL IPC(M)'!AJ299","v":3.3538672142368378},null,null,{"$f":"'[1]REAL IMAE(M)'!AG299","v":2.7212726158661869},{"$f":"'[1]REAL IMAE(M)'!AH299","v":3.0678979760288652},{"$f":"'[1]REAL IMAE(M)'!AI299","v":3.9170581442262731},{"$f":"'[1]REAL IMAE(M)'!AJ299","v":3.113517745730078},{"$f":"'[1]REAL IMAE(M)'!AK299","v":4.1274327321941247},{"$f":"'[1]REAL IMAE(M)'!AL299","v":6.5202758048591036},{"$f":"'[1]REAL IMAE(M)'!AM299","v":5.0936993907611781},null,null,{"$f":"'[1]EXT ITCER(M)'!C299","v":73.063799447257608},{"$f":"'[1]EXT ITCER(M)'!D299","v":90.878158764445686},{"$f":"'[1]EXT ITCER(M)'!E299","v":61.093749292061254},{"$f":"'[1]EXT ITCER(M)'!F299","v":74.959516131627268},{"$f":"'[1]EXT ITCER(M)'!G299","v":96.613114771926632},{"$f":"'[1]EXT ITCER(M)'!H299","v":98.385302031330085},{"$f":"'[1]EXT ITCER(M)'!I299","v":87.872146276113995},null,null,{"$f":"'[1]EXT TC(M)'!J299","v":4.543432761484679},{"$f":"'[1]EXT TC(M)'!K299","v":0},{"$f":"'[1]EXT TC(M)'!L299","v":-0.88464885339885801},{"$f":"'[1]EXT TC(M)'!M299","v":2.953713518373644},{"$f":"'[1]EXT TC(M)'!N299","v":5.012456697821956},{"$f":"'[1]EXT TC(M)'!O299","v":5.713179974292391},{"$f":"'[1]EXT TC(M)'!P299","v":0},null,null,{"$f":"'[1]EXT RIN(M)'!C299","v":7275.1072810599999},{"$f":"'[1]EXT RIN(M)'!D299","v":2824.6},{"$f":"'[1]EXT RIN(M)'!E299","v":7163.9},{"$f":"'[1]EXT RIN(M)'!F299","v":3006.1140247603885},{"$f":"'[1]EXT RIN(M)'!G299","v":1816.2},{"$f":"'[1]EXT RIN(M)'!H299","v":3449.5470622487833},{"$f":"'[1]EXT RIN(M)'!I299","v":2140.5441688699998},null,null,{"$f":"'[1]EXT RIN(M)'!P299","v":72.235924194068375},{"$f":"'[1]EXT RIN(M)'!Q299","v":102.44079352990244},{"$f":"'[1]EXT RIN(M)'!R299","v":101.45375757065314},{"$f":"'[1]EXT RIN(M)'!S299","v":79.247365042204592},{"$f":"'[1]EXT RIN(M)'!T299","v":106.56142995792506},{"$f":"'[1]EXT RIN(M)'!U299","v":67.032893930253607},{"$f":"'[1]EXT RIN(M)'!V299","v":173.62127295780755},null,null,{"$f":"+'[1]MONE(M)CAPARD'!AE299","v":3.6600639301951268},{"$f":"'[1]MONE(M)CAPARD'!AF299","v":2.858043200874953},{"$f":"'[1]MONE(M)CAPARD'!AG299","v":2.4790885416666621},{"$f":"'[1]MONE(M)CAPARD'!AH299","v":5.2014918759231961},{"$f":"'[1]MONE(M)CAPARD'!AI299","v":4.0954227280460387},{"$f":"'[1]MONE(M)CAPARD'!AJ299","v":4.035839459736704},{"$f":"'[1]MONE(M)CAPARD'!AK299","v":-1.1164238410596157},null,null,{"$f":"'[1]MONE(M)CAPARD'!AL299","v":1.9650000000000001},{"$f":"'[1]MONE(M)CAPARD'!AM299","v":3.49},{"$f":"'[1]MONE(M)CAPARD'!AN299","v":2.95},{"$f":"'[1]MONE(M)CAPARD'!AO299","v":4.1100000000000003},{"$f":"'[1]MONE(M)CAPARD'!AP299","v":3.3233665434587873},{"$f":"'[1]MONE(M)CAPARD'!AQ299","v":1.66},{"$f":"'[1]MONE(M)CAPARD'!AR299","v":2.2000000000000002},null,null,{"$f":"'[1]MONE(M)CAPARD'!J299","v":13.237669836984987},{"$f":"'[1]MONE(M)CAPARD'!K299","v":5.5514947138169868},{"$f":"'[1]MONE(M)CAPARD'!L299","v":9.9570572916666613},{"$f":"'[1]MONE(M)CAPARD'!M299","v":13.826425406203846},{"$f":"'[1]MONE(M)CAPARD'!N299","v":13.540095509043965},{"$f":"'[1]MONE(M)CAPARD'!O299","v":12.023325624641254},{"$f":"'[1]MONE(M)CAPARD'!P299","v":2.6376688741721721},null,null,{"$f":"'[1]MONE(M)CAPARD'!Q299","v":10.15},{"$f":"'[1]MONE(M)CAPARD'!R299","v":6.2},{"$f":"'[1]MONE(M)CAPARD'!S299","v":6.07},{"$f":"'[1]MONE(M)CAPARD'!T299","v":8.4700000000000006},{"$f":"'[1]MONE(M)CAPARD'!U299","v":8.6497021245682202},{"$f":"'[1]MONE(M)CAPARD'!V299","v":7.34},{"$f":"'[1]MONE(M)CAPARD'!W299","v":6.08},null,null,{"$f":"'[1]MONE(M)CAPARD'!AS299","v":3.75},{"$f":"'[1]MONE(M)CAPARD'!AT299","v":"n.a."},{"$f":"'[1]MONE(M)CAPARD'!AU299","v":5},{"$f":"'[1]MONE(M)CAPARD'!AV299","v":7},{"$f":"'[1]MONE(M)CAPARD'!AW299","v":"n.a."},{"$f":"'[1]MONE(M)CAPARD'!AX299","v":6.25},{"$f":"'[1]MONE(M)CAPARD'!AY299","v":"n.a."},null,null,{"$f":"+'Datos_Regional (M)'!CF292","v":16.916526704494128},{"$f":"+'Datos_Regional (M)'!CG292","v":7.5105083306802989},{"$f":"+'Datos_Regional (M)'!CH292","v":10.418699503741834},{"$f":"+'Datos_Regional (M)'!CI292","v":13.774664959385397},{"$f":"+'Datos_Regional (M)'!CJ292","v":21.50804531009738},{"$f":"+'Datos_Regional (M)'!CK292","v":12.232219145772749},{"$f":"+'Datos_Regional (M)'!CL292","v":11.149579926724385},null,null,967.5681033316614,452.17750000000001,837.09166666666658,321.7313604110729,406.5603363825,795.7166666666667,1272.0191094166669,3780.8456334585676,5052.8647428752329,null,null,1495.5699071691668,896.47583333333341,1468.0500000000002,749.84001069507678,595.22499999999991,1387.4916666666668,2100.9521643333323,6592.652417864243,8693.6045821975749,null,null,-2811.8067844056764,-3640.7398393223425,null,null,{"$f":"'[1]EXT Comercio(M)'!C299","v":968.62133913999537},{"$f":"'[1]EXT Comercio(M)'!D299","v":415.36999999999995},{"$f":"'[1]EXT Comercio(M)'!E299","v":805.69999999999993},{"$f":"'[1]EXT Comercio(M)'!F299","v":328.3},{"$f":"'[1]EXT Comercio(M)'!G299","v":401},{"$f":"'[1]EXT Comercio(M)'!H299","v":786.90000000000009},{"$f":"'[1]EXT Comercio(M)'!I299","v":935.29241999999988},{"$f":"'[1]EXT Comercio(M)'!K299","v":3705.8913391399938},{"$f":"'[1]EXT Comercio(M)'!L299","v":4641.1837591399944},null,null,{"$f":"'[1]EXT Comercio(M)'!AG299","v":1384.2577487999972},{"$f":"'[1]EXT Comercio(M)'!AH299","v":834.84},{"$f":"'[1]EXT Comercio(M)'!AI299","v":1356.3000000000002},{"$f":"'[1]EXT Comercio(M)'!AJ299","v":698.8598129219846},{"$f":"'[1]EXT Comercio(M)'!AK299","v":544.09999999999991},{"$f":"'[1]EXT Comercio(M)'!AL299","v":1187.0999999999999},{"$f":"'[1]EXT Comercio(M)'!AM299","v":1778.3198529999988},{"$f":"'[1]EXT Comercio(M)'!AO299","v":6005.4575617219807},{"$f":"'[1]EXT Comercio(M)'!AP299","v":7783.7774147219807},null,null,{"$f":"'[1]EXT Comercio(M)'!$BS299","v":-2299.5662225819865},{"$f":"'[1]EXT Comercio(M)'!$BT299","v":-3142.5936555819853}]
[null,null,"Marzo",{"$f":"'[1]REAL IPC(M)'!AD300","v":3.2591887882225481},{"$f":"'[1]REAL IPC(M)'!AE300","v":0.4108088369545268},{"$f":"'[1]REAL IPC(M)'!AF300","v":3.2459983904140168},{"$f":"'[1]REAL IPC(M)'!AG300","v":5.7864077669902825},{"$f":"'[1]REAL IPC(M)'!AH300","v":5.1012817348377988},{"$f":"'[1]REAL IPC(M)'!AI300","v":2.9865125240847754},{"$f":"'[1]REAL IPC(M)'!AJ300","v":3.3772324471711217},null,null,{"$f":"'[1]REAL IMAE(M)'!AG300","v":2.8063134886031054},{"$f":"'[1]REAL IMAE(M)'!AH300","v":2.8771149662704745},{"$f":"'[1]REAL IMAE(M)'!AI300","v":4.3362356416995063},{"$f":"'[1]REAL IMAE(M)'!AJ300","v":3.137963659465151},{"$f":"'[1]REAL IMAE(M)'!AK300","v":4.4414636416304099},{"$f":"'[1]REAL IMAE(M)'!AL300","v":6.714246301721098},{"$f":"'[1]REAL IMAE(M)'!AM300","v":4.7022303977925883},null,null,{"$f":"'[1]EXT ITCER(M)'!C300","v":76.358253391973321},{"$f":"'[1]EXT ITCER(M)'!D300","v":91.238896588754812},{"$f":"'[1]EXT ITCER(M)'!E300","v":61.118318972984447},{"$f":"'[1]EXT ITCER(M)'!F300","v":75.204221586282259},{"$f":"'[1]EXT ITCER(M)'!G300","v":97.550726318980182},{"$f":"'[1]EXT ITCER(M)'!H300","v":98.570860087453042},{"$f":"'[1]EXT ITCER(M)'!I300","v":88.079379796708338},null,null,{"$f":"'[1]EXT TC(M)'!J300","v":9.8271340570615955},{"$f":"'[1]EXT TC(M)'!K300","v":0},{"$f":"'[1]EXT TC(M)'!L300","v":-1.0295711509725645},{"$f":"'[1]EXT TC(M)'!M300","v":2.8690570907294251},{"$f":"'[1]EXT TC(M)'!N300","v":5.1188877430416317},{"$f":"'[1]EXT TC(M)'!O300","v":5.181599953160684},{"$f":"'[1]EXT TC(M)'!P300","v":0},null,null,{"$f":"'[1]EXT RIN(M)'!C300","v":6785.6091915899997},{"$f":"'[1]EXT RIN(M)'!D300","v":2801.1},{"$f":"'[1]EXT RIN(M)'!E300","v":7110.7},{"$f":"'[1]EXT RIN(M)'!F300","v":3069.0782040609893},{"$f":"'[1]EXT RIN(M)'!G300","v":1858.9},{"$f":"'[1]EXT RIN(M)'!H300","v":3584.8739572163063},{"$f":"'[1]EXT RIN(M)'!I300","v":2070.0241558499997},null,null,{"$f":"'[1]EXT RIN(M)'!P300","v":68.381360111903277},{"$f":"'[1]EXT RIN(M)'!Q300","v":102.6564382822647},{"$f":"'[1]EXT RIN(M)'!R300","v":100.60894711659618},{"$f":"'[1]EXT RIN(M)'!S300","v":77.295660290568208},{"$f":"'[1]EXT RIN(M)'!T300","v":108.53483621494691},{"$f":"'[1]EXT RIN(M)'!U300","v":68.206550413915195},{"$f":"'[1]EXT RIN(M)'!V300","v":170.8864051814931},null,null,{"$f":"+'[1]MONE(M)CAPARD'!AE300","v":3.2353645723764344},{"$f":"'[1]MONE(M)CAPARD'!AF300","v":3.1163887626147937},{"$f":"'[1]MONE(M)CAPARD'!AG300","v":2.1831370171488005},{"$f":"'[1]MONE(M)CAPARD'!AH300","v":5.0796622613803315},{"$f":"'[1]MONE(M)CAPARD'!AI300","v":3.7135799714422419},{"$f":"'[1]MONE(M)CAPARD'!AJ300","v":4.3146304957904613},{"$f":"'[1]MONE(M)CAPARD'!AK300","v":-1.1387734216745673},null,null,{"$f":"'[1]MONE(M)CAPARD'!AL300","v":1.9750000000000001},{"$f":"'[1]MONE(M)CAPARD'!AM300","v":3.54},{"$f":"'[1]MONE(M)CAPARD'!AN300","v":2.92},{"$f":"'[1]MONE(M)CAPARD'!AO300","v":4.1100000000000003},{"$f":"'[1]MONE(M)CAPARD'!AP300","v":3.2777717216382856},{"$f":"'[1]MONE(M)CAPARD'!AQ300","v":1.41},{"$f":"'[1]MONE(M)CAPARD'!AR300","v":2.2000000000000002},null,null,{"$f":"'[1]MONE(M)CAPARD'!J300","v":12.968154571929745},{"$f":"'[1]MONE(M)CAPARD'!K300","v":5.5364469497227136},{"$f":"'[1]MONE(M)CAPARD'!L300","v":10.222189502858139},{"$f":"'[1]MONE(M)CAPARD'!M300","v":14.022209985315721},{"$f":"'[1]MONE(M)CAPARD'!N300","v":14.919247437416834},{"$f":"'[1]MONE(M)CAPARD'!O300","v":10.735708414176427},{"$f":"'[1]MONE(M)CAPARD'!P300","v":2.5854508672349521},null,null,{"$f":"'[1]MONE(M)CAPARD'!Q300","v":10.35},{"$f":"'[1]MONE(M)CAPARD'!R300","v":5.97},{"$f":"'[1]MONE(M)CAPARD'!S300","v":6.08},{"$f":"'[1]MONE(M)CAPARD'!T300","v":8.42},{"$f":"'[1]MONE(M)CAPARD'!U300","v":7.8324688408574854},{"$f":"'[1]MONE(M)CAPARD'!V300","v":5.94},{"$f":"'[1]MONE(M)CAPARD'!W300","v":6.05},null,null,{"$f":"'[1]MONE(M)CAPARD'!AS300","v":4.75},{"$f":"'[1]MONE(M)CAPARD'!AT300","v":"n.a."},{"$f":"'[1]MONE(M)CAPARD'!AU300","v":4.75},{"$f":"'[1]MONE(M)CAPARD'!AV300","v":7},{"$f":"'[1]MONE(M)CAPARD'!AW300","v":"n.a."},{"$f":"'[1]MONE(M)CAPARD'!AX300","v":6.25},{"$f":"'[1]MONE(M)CAPARD'!AY300","v":"n.a."},null,null,{"$f":"+'Datos_Regional (M)'!CF293","v":18.457448266827448},{"$f":"+'Datos_Regional (M)'!CG293","v":8.2395672172887338},{"$f":"+'Datos_Regional (M)'!CH293","v":10.536280308526313},{"$f":"+'Datos_Regional (M)'!CI293","v":13.426222144065637},{"$f":"+'Datos_Regional (M)'!CJ293","v":19.868610788388153},{"$f":"+'Datos_Regional (M)'!CK293","v":13.535265897415361},{"$f":"+'Datos_Regional (M)'!CL293","v":11.335766930985635},null,null,970.09537779332834,454.4883333333334,841.60833333333312,319.8532575548133,413.1788326566666,799.44166666666672,1241.7298379166668,3798.6658013381416,5040.3956392548071,null,null,1507.5623495675,902.32333333333338,1478.8416666666669,759.12323612288571,601.44999999999993,1400.1333333333332,2085.7839469166661,6649.4339190237197,8735.2178659403853,null,null,-2850.7681176855785,-3694.8222266855778,null,null,{"$f":"'[1]EXT Comercio(M)'!C300","v":1049.4702958999947},{"$f":"'[1]EXT Comercio(M)'!D300","v":476.68000000000006},{"$f":"'[1]EXT Comercio(M)'!E300","v":1036.3},{"$f":"'[1]EXT Comercio(M)'!F300","v":358.8},{"$f":"'[1]EXT Comercio(M)'!G300","v":472.9},{"$f":"'[1]EXT Comercio(M)'!H300","v":859.09999999999991},{"$f":"'[1]EXT Comercio(M)'!I300","v":969.60110599999985},{"$f":"'[1]EXT Comercio(M)'!K300","v":4253.2502958999958},{"$f":"'[1]EXT Comercio(M)'!L300","v":5222.8514018999958},null,null,{"$f":"'[1]EXT Comercio(M)'!AG300","v":1624.3965471500019},{"$f":"'[1]EXT Comercio(M)'!AH300","v":895.04000000000019},{"$f":"'[1]EXT Comercio(M)'!AI300","v":1475.4999999999998},{"$f":"'[1]EXT Comercio(M)'!AJ300","v":790.88017226810598},{"$f":"'[1]EXT Comercio(M)'!AK300","v":570.59999999999991},{"$f":"'[1]EXT Comercio(M)'!AL300","v":1479.1000000000001},{"$f":"'[1]EXT Comercio(M)'!AM300","v":1745.6580310000031},{"$f":"'[1]EXT Comercio(M)'!AO300","v":6835.5167194181086},{"$f":"'[1]EXT Comercio(M)'!AP300","v":8581.1747504181112},null,null,{"$f":"'[1]EXT Comercio(M)'!$BS300","v":-2582.2664235181137},{"$f":"'[1]EXT Comercio(M)'!$BT300","v":-3358.323348518119}]
[null,null,"Abril",{"$f":"'[1]REAL IPC(M)'!AD301","v":3.6792927914641194},{"$f":"'[1]REAL IPC(M)'!AE301","v":0.56959118052366065},{"$f":"'[1]REAL IPC(M)'!AF301","v":3.2672737011248087},{"$f":"'[1]REAL IPC(M)'!AG301","v":5.9666795815575258},{"$f":"'[1]REAL IPC(M)'!AH301","v":4.9007181576330803},{"$f":"'[1]REAL IPC(M)'!AI301","v":3.4878625887301764},{"$f":"'[1]REAL IPC(M)'!AJ301","v":3.5291440217391536},null,null,{"$f":"'[1]REAL IMAE(M)'!AG301","v":2.8431234448366727},{"$f":"'[1]REAL IMAE(M)'!AH301","v":2.6281494711503943},{"$f":"'[1]REAL IMAE(M)'!AI301","v":4.6414324592437852},{"$f":"'[1]REAL IMAE(M)'!AJ301","v":2.9737065035738874},{"$f":"'[1]REAL IMAE(M)'!AK301","v":4.5831418614099295},{"$f":"'[1]REAL IMAE(M)'!AL301","v":6.8409896238412022},{"$f":"'[1]REAL IMAE(M)'!AM301","v":4.5856522070595522},null,null,{"$f":"'[1]EXT ITCER(M)'!C301","v":75.483796002150925},{"$f":"'[1]EXT ITCER(M)'!D301","v":91.974516982954938},{"$f":"'[1]EXT ITCER(M)'!E301","v":61.359528934706937},{"$f":"'[1]EXT ITCER(M)'!F301","v":75.309221673635363},{"$f":"'[1]EXT ITCER(M)'!G301","v":97.438289941124808},{"$f":"'[1]EXT ITCER(M)'!H301","v":98.46521624018223},{"$f":"'[1]EXT ITCER(M)'!I301","v":87.940359597188859},null,null,{"$f":"'[1]EXT TC(M)'!J301","v":9.4483545877012833},{"$f":"'[1]EXT TC(M)'!K301","v":0},{"$f":"'[1]EXT TC(M)'!L301","v":-0.60938005889516833},{"$f":"'[1]EXT TC(M)'!M301","v":2.7505884383069859},{"$f":"'[1]EXT TC(M)'!N301","v":5.1060844369380973},{"$f":"'[1]EXT TC(M)'!O301","v":5.0113634425993858},{"$f":"'[1]EXT TC(M)'!P301","v":0},null,null,{"$f":"'[1]EXT RIN(M)'!C301","v":7775.8436125999997},{"$f":"'[1]EXT RIN(M)'!D301","v":2841.1},{"$f":"'[1]EXT RIN(M)'!E301","v":7214.9},{"$f":"'[1]EXT RIN(M)'!F301","v":3161.2609550678944},{"$f":"'[1]EXT RIN(M)'!G301","v":1916},{"$f":"'[1]EXT RIN(M)'!H301","v":5161.981456020425},{"$f":"'[1]EXT RIN(M)'!I301","v":2258.3106731999997},null,null,{"$f":"'[1]EXT RIN(M)'!P301","v":78.503087337660361},{"$f":"'[1]EXT RIN(M)'!Q301","v":101.69179700726671},{"$f":"'[1]EXT RIN(M)'!R301","v":103.56388966180276},{"$f":"'[1]EXT RIN(M)'!S301","v":78.73674893022816},{"$f":"'[1]EXT RIN(M)'!T301","v":112.58873414912513},{"$f":"'[1]EXT RIN(M)'!U301","v":96.154288753213351},{"$f":"'[1]EXT RIN(M)'!V301","v":178.74878048472891},null,null,{"$f":"+'[1]MONE(M)CAPARD'!AE301","v":2.9135106222335021},{"$f":"'[1]MONE(M)CAPARD'!AF301","v":3.0629624554672468},{"$f":"'[1]MONE(M)CAPARD'!AG301","v":2.1620850622406547},{"$f":"'[1]MONE(M)CAPARD'!AH301","v":4.7876563071298079},{"$f":"'[1]MONE(M)CAPARD'!AI301","v":4.4220102821174825},{"$f":"'[1]MONE(M)CAPARD'!AJ301","v":3.7802862223727631},{"$f":"'[1]MONE(M)CAPARD'!AK301","v":-1.3224720774776804},null,null,{"$f":"'[1]MONE(M)CAPARD'!AL301","v":1.97},{"$f":"'[1]MONE(M)CAPARD'!AM301","v":3.65},{"$f":"'[1]MONE(M)CAPARD'!AN301","v":2.88},{"$f":"'[1]MONE(M)CAPARD'!AO301","v":4.0599999999999996},{"$f":"'[1]MONE(M)CAPARD'!AP301","v":3.987221648857421},{"$f":"'[1]MONE(M)CAPARD'!AQ301","v":1.53},{"$f":"'[1]MONE(M)CAPARD'!AR301","v":2.16},null,null,{"$f":"'[1]MONE(M)CAPARD'!J301","v":12.770830946125034},{"$f":"'[1]MONE(M)CAPARD'!K301","v":5.3897095094546401},{"$f":"'[1]MONE(M)CAPARD'!L301","v":10.209164937759326},{"$f":"'[1]MONE(M)CAPARD'!M301","v":13.799923217550287},{"$f":"'[1]MONE(M)CAPARD'!N301","v":15.76619501875331},{"$f":"'[1]MONE(M)CAPARD'!O301","v":11.153131509865354},{"$f":"'[1]MONE(M)CAPARD'!P301","v":2.4252648874732454},null,null,{"$f":"'[1]MONE(M)CAPARD'!Q301","v":10.29},{"$f":"'[1]MONE(M)CAPARD'!R301","v":5.99},{"$f":"'[1]MONE(M)CAPARD'!S301","v":6.06},{"$f":"'[1]MONE(M)CAPARD'!T301","v":8.4499999999999993},{"$f":"'[1]MONE(M)CAPARD'!U301","v":8.6483290360719263},{"$f":"'[1]MONE(M)CAPARD'!V301","v":5.94},{"$f":"'[1]MONE(M)CAPARD'!W301","v":6.04},null,null,{"$f":"'[1]MONE(M)CAPARD'!AS301","v":4.75},{"$f":"'[1]MONE(M)CAPARD'!AT301","v":"n.a."},{"$f":"'[1]MONE(M)CAPARD'!AU301","v":4.75},{"$f":"'[1]MONE(M)CAPARD'!AV301","v":7},{"$f":"'[1]MONE(M)CAPARD'!AW301","v":"n.a."},{"$f":"'[1]MONE(M)CAPARD'!AX301","v":6.25},{"$f":"'[1]MONE(M)CAPARD'!AY301","v":"n.a."},null,null,{"$f":"+'Datos_Regional (M)'!CF294","v":18.532813296251582},{"$f":"+'Datos_Regional (M)'!CG294","v":8.7584087997966584},{"$f":"+'Datos_Regional (M)'!CH294","v":10.753875706339301},{"$f":"+'Datos_Regional (M)'!CI294","v":13.897785791389673},{"$f":"+'Datos_Regional (M)'!CJ294","v":21.170150134620492},{"$f":"+'Datos_Regional (M)'!CK294","v":14.077410651755006},{"$f":"+'Datos_Regional (M)'!CL294","v":11.085122456640949},null,null,968.9786256258285,448.44666666666672,845.84166666666658,320.4979921284567,412.43158822416666,795.97500000000002,1247.68283675,3792.1715393117847,5039.8543760617831,null,null,1498.0023230216657,899.27916666666681,1471.4416666666668,757.13215062150221,597.45833333333337,1414.4250000000002,2091.4320843333326,6637.7386403098353,8729.170724643167,null,null,-2845.5671009980506,-3689.3163485813834,null,null,{"$f":"'[1]EXT Comercio(M)'!C301","v":987.72462797999742},{"$f":"'[1]EXT Comercio(M)'!D301","v":424.03},{"$f":"'[1]EXT Comercio(M)'!E301","v":939.6},{"$f":"'[1]EXT Comercio(M)'!F301","v":362.4},{"$f":"'[1]EXT Comercio(M)'!G301","v":418.20000000000005},{"$f":"'[1]EXT Comercio(M)'!H301","v":790.8},{"$f":"'[1]EXT Comercio(M)'!I301","v":1335.112852},{"$f":"'[1]EXT Comercio(M)'!K301","v":3922.7546279799972},{"$f":"'[1]EXT Comercio(M)'!L301","v":5257.8674799799956},null,null,{"$f":"'[1]EXT Comercio(M)'!AG301","v":1491.0611605599952},{"$f":"'[1]EXT Comercio(M)'!AH301","v":922.77999999999975},{"$f":"'[1]EXT Comercio(M)'!AI301","v":1521.2999999999997},{"$f":"'[1]EXT Comercio(M)'!AJ301","v":771.34086424329325},{"$f":"'[1]EXT Comercio(M)'!AK301","v":571.29999999999995},{"$f":"'[1]EXT Comercio(M)'!AL301","v":1540.1},{"$f":"'[1]EXT Comercio(M)'!AM301","v":2256.3138809999946},{"$f":"'[1]EXT Comercio(M)'!AO301","v":6817.8820248032862},{"$f":"'[1]EXT Comercio(M)'!AP301","v":9074.1959058032771},null,null,{"$f":"'[1]EXT Comercio(M)'!$BS301","v":-2895.1273968232908},{"$f":"'[1]EXT Comercio(M)'!$BT301","v":-3816.3284258232852}]
[null,null,"Mayo ",{"$f":"'[1]REAL IPC(M)'!AD302","v":4.2102988352734361},{"$f":"'[1]REAL IPC(M)'!AE302","v":0.94764927776244468},{"$f":"'[1]REAL IPC(M)'!AF302","v":3.2229344729344773},{"$f":"'[1]REAL IPC(M)'!AG302","v":6.2210200927356896},{"$f":"'[1]REAL IPC(M)'!AH302","v":4.8473220695518888},{"$f":"'[1]REAL IPC(M)'!AI302","v":3.6962247585601347},{"$f":"'[1]REAL IPC(M)'!AJ302","v":3.2476319350473597},null,null,{"$f":"'[1]REAL IMAE(M)'!AG302","v":2.8482543319250881},{"$f":"'[1]REAL IMAE(M)'!AH302","v":2.2895764279790574},{"$f":"'[1]REAL IMAE(M)'!AI302","v":4.7728645537080245},{"$f":"'[1]REAL IMAE(M)'!AJ302","v":2.653090131400508},{"$f":"'[1]REAL IMAE(M)'!AK302","v":4.5108375982702702},{"$f":"'[1]REAL IMAE(M)'!AL302","v":6.7934110996682504},{"$f":"'[1]REAL IMAE(M)'!AM302","v":4.6329996966939753},null,null,{"$f":"'[1]EXT ITCER(M)'!C302","v":76.131967416796272},{"$f":"'[1]EXT ITCER(M)'!D302","v":92.085449717232805},{"$f":"'[1]EXT ITCER(M)'!E302","v":61.340055174817735},{"$f":"'[1]EXT ITCER(M)'!F302","v":75.356244602545857},{"$f":"'[1]EXT ITCER(M)'!G302","v":97.397081044019174},{"$f":"'[1]EXT ITCER(M)'!H302","v":98.937827547799841},{"$f":"'[1]EXT ITCER(M)'!I302","v":88.105497621424149},null,null,{"$f":"'[1]EXT TC(M)'!J302","v":10.561881757533905},{"$f":"'[1]EXT TC(M)'!K302","v":0},{"$f":"'[1]EXT TC(M)'!L302","v":-0.66963223596980437},{"$f":"'[1]EXT TC(M)'!M302","v":2.5653854986426459},{"$f":"'[1]EXT TC(M)'!N302","v":5.1408943522645183},{"$f":"'[1]EXT TC(M)'!O302","v":5.0579674525711456},{"$f":"'[1]EXT TC(M)'!P302","v":0},null,null,{"$f":"'[1]EXT RIN(M)'!C302","v":7704.4670957600001},{"$f":"'[1]EXT RIN(M)'!D302","v":2816.4},{"$f":"'[1]EXT RIN(M)'!E302","v":7174.4},{"$f":"'[1]EXT RIN(M)'!F302","v":3211.5809867864473},{"$f":"'[1]EXT RIN(M)'!G302","v":1931.6},{"$f":"'[1]EXT RIN(M)'!H302","v":4598.0900066988679},{"$f":"'[1]EXT RIN(M)'!I302","v":2247.5061663799997},null,null,{"$f":"'[1]EXT RIN(M)'!P302","v":77.674198193046337},{"$f":"'[1]EXT RIN(M)'!Q302","v":104.27291632805613},{"$f":"'[1]EXT RIN(M)'!R302","v":106.8620823697711},{"$f":"'[1]EXT RIN(M)'!S302","v":82.447734470870998},{"$f":"'[1]EXT RIN(M)'!T302","v":114.09286313854292},{"$f":"'[1]EXT RIN(M)'!U302","v":84.341376832753795},{"$f":"'[1]EXT RIN(M)'!V302","v":179.37036534540061},null,null,{"$f":"+'[1]MONE(M)CAPARD'!AE302","v":2.5330521015961898},{"$f":"'[1]MONE(M)CAPARD'!AF302","v":2.7562313160772862},{"$f":"'[1]MONE(M)CAPARD'!AG302","v":2.2156563739865405},{"$f":"'[1]MONE(M)CAPARD'!AH302","v":4.4426045834849166},{"$f":"'[1]MONE(M)CAPARD'!AI302","v":3.886932626571888},{"$f":"'[1]MONE(M)CAPARD'!AJ302","v":3.417458301583276},{"$f":"'[1]MONE(M)CAPARD'!AK302","v":-1.082477064220182},null,null,{"$f":"'[1]MONE(M)CAPARD'!AL302","v":2.0750000000000002},{"$f":"'[1]MONE(M)CAPARD'!AM302","v":3.73},{"$f":"'[1]MONE(M)CAPARD'!AN302","v":2.88},{"$f":"'[1]MONE(M)CAPARD'!AO302","v":4.0599999999999996},{"$f":"'[1]MONE(M)CAPARD'!AP302","v":3.582997096907107},{"$f":"'[1]MONE(M)CAPARD'!AQ302","v":1.41},{"$f":"'[1]MONE(M)CAPARD'!AR302","v":2.13},null,null,{"$f":"'[1]MONE(M)CAPARD'!J302","v":11.956304994789216},{"$f":"'[1]MONE(M)CAPARD'!K302","v":4.8662358731316067},{"$f":"'[1]MONE(M)CAPARD'!L302","v":10.275880627910984},{"$f":"'[1]MONE(M)CAPARD'!M302","v":13.621578755911258},{"$f":"'[1]MONE(M)CAPARD'!N302","v":13.869573363027602},{"$f":"'[1]MONE(M)CAPARD'!O302","v":9.5218271103208938},{"$f":"'[1]MONE(M)CAPARD'!P302","v":2.7142201834862401},null,null,{"$f":"'[1]MONE(M)CAPARD'!Q302","v":9.93},{"$f":"'[1]MONE(M)CAPARD'!R302","v":5.86},{"$f":"'[1]MONE(M)CAPARD'!S302","v":6.06},{"$f":"'[1]MONE(M)CAPARD'!T302","v":8.48},{"$f":"'[1]MONE(M)CAPARD'!U302","v":8.7371739596041031},{"$f":"'[1]MONE(M)CAPARD'!V302","v":6.2},{"$f":"'[1]MONE(M)CAPARD'!W302","v":6.05},null,null,{"$f":"'[1]MONE(M)CAPARD'!AS302","v":5.25},{"$f":"'[1]MONE(M)CAPARD'!AT302","v":"n.a."},{"$f":"'[1]MONE(M)CAPARD'!AU302","v":4.75},{"$f":"'[1]MONE(M)CAPARD'!AV302","v":7},{"$f":"'[1]MONE(M)CAPARD'!AW302","v":"n.a."},{"$f":"'[1]MONE(M)CAPARD'!AX302","v":6.25},{"$f":"'[1]MONE(M)CAPARD'!AY302","v":"n.a."},null,null,{"$f":"+'Datos_Regional (M)'!CF295","v":18.440227565709844},{"$f":"+'Datos_Regional (M)'!CG295","v":8.5660539130192106},{"$f":"+'Datos_Regional (M)'!CH295","v":11.171519390356387},{"$f":"+'Datos_Regional (M)'!CI295","v":13.791374612960695},{"$f":"+'Datos_Regional (M)'!CJ295","v":22.453124904006149},{"$f":"+'Datos_Regional (M)'!CK295","v":13.485198834043665},{"$f":"+'Datos_Regional (M)'!CL295","v":11.262447187065284},null,null,970.7326444158283,445.71499999999997,844.27499999999975,325.43651822631244,416.51125928416667,794.23333333333346,1221.998947,3796.9037552596405,5018.9027022596383,null,null,1503.3453885066654,902.4725000000002,1477.4416666666668,764.43722849958738,600.87500000000011,1428.1083333333336,2075.2130077499992,6676.6801170062536,8751.8931247562523,null,null,-2879.776361746613,-3732.9904224966117,null,null,{"$f":"'[1]EXT Comercio(M)'!C302","v":1054.2075181999944},{"$f":"'[1]EXT Comercio(M)'!D302","v":490.24999999999977},{"$f":"'[1]EXT Comercio(M)'!E302","v":946.5},{"$f":"'[1]EXT Comercio(M)'!F302","v":412.4},{"$f":"'[1]EXT Comercio(M)'!G302","v":442.6},{"$f":"'[1]EXT Comercio(M)'!H302","v":891.50000000000011},{"$f":"'[1]EXT Comercio(M)'!I302","v":1107.013461},{"$f":"'[1]EXT Comercio(M)'!K302","v":4237.4575181999935},{"$f":"'[1]EXT Comercio(M)'!L302","v":5344.4709791999921},null,null,{"$f":"'[1]EXT Comercio(M)'!AG302","v":1551.6847622299961},{"$f":"'[1]EXT Comercio(M)'!AH302","v":973.11999999999989},{"$f":"'[1]EXT Comercio(M)'!AI302","v":1668.1999999999998},{"$f":"'[1]EXT Comercio(M)'!AJ302","v":872.18026185558938},{"$f":"'[1]EXT Comercio(M)'!AK302","v":637.40000000000009},{"$f":"'[1]EXT Comercio(M)'!AL302","v":1574.5},{"$f":"'[1]EXT Comercio(M)'!AM302","v":1987.00476},{"$f":"'[1]EXT Comercio(M)'!AO302","v":7277.0850240855907},{"$f":"'[1]EXT Comercio(M)'!AP302","v":9264.0897840855905},null,null,{"$f":"'[1]EXT Comercio(M)'!$BS302","v":-3039.6275058855899},{"$f":"'[1]EXT Comercio(M)'!$BT302","v":-3919.6188048855911}]
[null,null,"Junio",{"$f":"'[1]REAL IPC(M)'!AD303","v":4.5891347754078504},{"$f":"'[1]REAL IPC(M)'!AE303","v":1.138554769993581},{"$f":"'[1]REAL IPC(M)'!AF303","v":3.1321889930985725},{"$f":"'[1]REAL IPC(M)'!AG303","v":6.2331666025394563},{"$f":"'[1]REAL IPC(M)'!AH303","v":6.0528388698858784},{"$f":"'[1]REAL IPC(M)'!AI303","v":3.677374056520974},{"$f":"'[1]REAL IPC(M)'!AJ303","v":3.3604180714767362},null,null,{"$f":"'[1]REAL IMAE(M)'!AG303","v":2.8621089202242462},{"$f":"'[1]REAL IMAE(M)'!AH303","v":1.9117062337388981},{"$f":"'[1]REAL IMAE(M)'!AI303","v":4.7308134042684769},{"$f":"'[1]REAL IMAE(M)'!AJ303","v":2.2496128075876589},{"$f":"'[1]REAL IMAE(M)'!AK303","v":4.3698030899086735},{"$f":"'[1]REAL IMAE(M)'!AL303","v":6.5577085489738574},{"$f":"'[1]REAL IMAE(M)'!AM303","v":4.7383896260555076},null,null,{"$f":"'[1]EXT ITCER(M)'!C303","v":75.849523659172362},{"$f":"'[1]EXT ITCER(M)'!D303","v":91.89677492247047},{"$f":"'[1]EXT ITCER(M)'!E303","v":61.683123165816191},{"$f":"'[1]EXT ITCER(M)'!F303","v":75.525300937271453},{"$f":"'[1]EXT ITCER(M)'!G303","v":96.964738317247935},{"$f":"'[1]EXT ITCER(M)'!H303","v":99.538749968583232},{"$f":"'[1]EXT ITCER(M)'!I303","v":87.899296669649502},null,null,{"$f":"'[1]EXT TC(M)'!J303","v":10.425610983858007},{"$f":"'[1]EXT TC(M)'!K303","v":0},{"$f":"'[1]EXT TC(M)'!L303","v":-0.14119009670625096},{"$f":"'[1]EXT TC(M)'!M303","v":2.6491297558054452},{"$f":"'[1]EXT TC(M)'!N303","v":5.2457950663664006},{"$f":"'[1]EXT TC(M)'!O303","v":4.5817194290758314},{"$f":"'[1]EXT TC(M)'!P303","v":0},null,null,{"$f":"'[1]EXT RIN(M)'!C303","v":7494.0057608999996},{"$f":"'[1]EXT RIN(M)'!D303","v":2660.2},{"$f":"'[1]EXT RIN(M)'!E303","v":7096.4},{"$f":"'[1]EXT RIN(M)'!F303","v":3172.9837429338422},{"$f":"'[1]EXT RIN(M)'!G303","v":1944.4},{"$f":"'[1]EXT RIN(M)'!H303","v":4666.5868257044622},{"$f":"'[1]EXT RIN(M)'!I303","v":2342.8661294499998},null,null,{"$f":"'[1]EXT RIN(M)'!P303","v":75.033481572145192},{"$f":"'[1]EXT RIN(M)'!Q303","v":103.96397332938349},{"$f":"'[1]EXT RIN(M)'!R303","v":101.6258509039103},{"$f":"'[1]EXT RIN(M)'!S303","v":79.877551713247001},{"$f":"'[1]EXT RIN(M)'!T303","v":113.44811748732486},{"$f":"'[1]EXT RIN(M)'!U303","v":80.146515619513281},{"$f":"'[1]EXT RIN(M)'!V303","v":189.30646638883479},null,null,{"$f":"+'[1]MONE(M)CAPARD'!AE303","v":2.2572757960583707},{"$f":"'[1]MONE(M)CAPARD'!AF303","v":2.6908088969586843},{"$f":"'[1]MONE(M)CAPARD'!AG303","v":2.2958991077556568},{"$f":"'[1]MONE(M)CAPARD'!AH303","v":4.3647700108656098},{"$f":"'[1]MONE(M)CAPARD'!AI303","v":2.8899220337058344},{"$f":"'[1]MONE(M)CAPARD'!AJ303","v":2.7900262422754611},{"$f":"'[1]MONE(M)CAPARD'!AK303","v":-1.1807402623243857},null,null,{"$f":"'[1]MONE(M)CAPARD'!AL303","v":2.1550000000000002},{"$f":"'[1]MONE(M)CAPARD'!AM303","v":3.86},{"$f":"'[1]MONE(M)CAPARD'!AN303","v":2.87},{"$f":"'[1]MONE(M)CAPARD'!AO303","v":4.08},{"$f":"'[1]MONE(M)CAPARD'!AP303","v":3.2976456399744682},{"$f":"'[1]MONE(M)CAPARD'!AQ303","v":1.67},{"$f":"'[1]MONE(M)CAPARD'!AR303","v":2.14},null,null,{"$f":"'[1]MONE(M)CAPARD'!J303","v":11.512539280919006},{"$f":"'[1]MONE(M)CAPARD'!K303","v":4.6979564230594555},{"$f":"'[1]MONE(M)CAPARD'!L303","v":10.382608098833211},{"$f":"'[1]MONE(M)CAPARD'!M303","v":13.505041651575496},{"$f":"'[1]MONE(M)CAPARD'!N303","v":13.651876945653461},{"$f":"'[1]MONE(M)CAPARD'!O303","v":8.8376331160585799},{"$f":"'[1]MONE(M)CAPARD'!P303","v":2.6214889404273785},null,null,{"$f":"'[1]MONE(M)CAPARD'!Q303","v":9.86},{"$f":"'[1]MONE(M)CAPARD'!R303","v":5.89},{"$f":"'[1]MONE(M)CAPARD'!S303","v":6.05},{"$f":"'[1]MONE(M)CAPARD'!T303","v":8.4700000000000006},{"$f":"'[1]MONE(M)CAPARD'!U303","v":8.7552409420964779},{"$f":"'[1]MONE(M)CAPARD'!V303","v":6.09},{"$f":"'[1]MONE(M)CAPARD'!W303","v":6.07},null,null,{"$f":"'[1]MONE(M)CAPARD'!AS303","v":5.25},{"$f":"'[1]MONE(M)CAPARD'!AT303","v":"n.a."},{"$f":"'[1]MONE(M)CAPARD'!AU303","v":4.5},{"$f":"'[1]MONE(M)CAPARD'!AV303","v":7},{"$f":"'[1]MONE(M)CAPARD'!AW303","v":"n.a."},{"$f":"'[1]MONE(M)CAPARD'!AX303","v":6.25},{"$f":"'[1]MONE(M)CAPARD'!AY303","v":"n.a."},null,null,{"$f":"+'Datos_Regional (M)'!CF296","v":18.019801212731366},{"$f":"+'Datos_Regional (M)'!CG296","v":7.7314307931637627},{"$f":"+'Datos_Regional (M)'!CH296","v":10.413653099562614},{"$f":"+'Datos_Regional (M)'!CI296","v":14.479832233971578},{"$f":"+'Datos_Regional (M)'!CJ296","v":22.307323844993654},{"$f":"+'Datos_Regional (M)'!CK296","v":12.775932108073151},{"$f":"+'Datos_Regional (M)'!CL296","v":10.304364312773039},null,null,972.6613579541621,447.03666666666669,851.21666666666658,331.22892874440873,422.40099452500004,800.96666666666681,1236.8452528333335,3825.5112812235707,5062.356534056903,null,null,1500.8286418591661,894.81,1482.4583333333337,772.76285969051276,603.29166666666674,1424.5500000000002,2080.9570379999991,6678.70150154968,8759.6585395496786,null,null,-2853.1902203261093,-3697.3020054927752,null,null,{"$f":"'[1]EXT Comercio(M)'!C303","v":985.62447767999765},{"$f":"'[1]EXT Comercio(M)'!D303","v":471.69000000000005},{"$f":"'[1]EXT Comercio(M)'!E303","v":891.3},{"$f":"'[1]EXT Comercio(M)'!F303","v":389.5},{"$f":"'[1]EXT Comercio(M)'!G303","v":461.5},{"$f":"'[1]EXT Comercio(M)'!H303","v":855.7},{"$f":"'[1]EXT Comercio(M)'!I303","v":1311.7710199999999},{"$f":"'[1]EXT Comercio(M)'!K303","v":4055.3144776799963},{"$f":"'[1]EXT Comercio(M)'!L303","v":5367.0854976800001},null,null,{"$f":"'[1]EXT Comercio(M)'!AG303","v":1358.736797710003},{"$f":"'[1]EXT Comercio(M)'!AH303","v":864.64999999999964},{"$f":"'[1]EXT Comercio(M)'!AI303","v":1442.7},{"$f":"'[1]EXT Comercio(M)'!AJ303","v":787.45863861784983},{"$f":"'[1]EXT Comercio(M)'!AK303","v":635.5999999999998},{"$f":"'[1]EXT Comercio(M)'!AL303","v":1360.1},{"$f":"'[1]EXT Comercio(M)'!AM303","v":2148.4065799999989},{"$f":"'[1]EXT Comercio(M)'!AO303","v":6449.2454363278448},{"$f":"'[1]EXT Comercio(M)'!AP303","v":8597.6520163278474},null,null,{"$f":"'[1]EXT Comercio(M)'!$BS303","v":-2393.9309586478539},{"$f":"'[1]EXT Comercio(M)'!$BT303","v":-3230.5665186478509}]
[null,null,"Julio",{"$f":"'[1]REAL IPC(M)'!AD304","v":5.1860001456912812},{"$f":"'[1]REAL IPC(M)'!AE304","v":1.8293804008089676},{"$f":"'[1]REAL IPC(M)'!AF304","v":3.4139026111503221},{"$f":"'[1]REAL IPC(M)'!AG304","v":6.5900383141762413},{"$f":"'[1]REAL IPC(M)'!AH304","v":6.9365963772630739},{"$f":"'[1]REAL IPC(M)'!AI304","v":3.4103794156127312},{"$f":"'[1]REAL IPC(M)'!AJ304","v":2.1860121049092203},null,null,{"$f":"'[1]REAL IMAE(M)'!AG304","v":3.0141962360555845},{"$f":"'[1]REAL IMAE(M)'!AH304","v":1.4141325119172847},{"$f":"'[1]REAL IMAE(M)'!AI304","v":4.5968699696021682},{"$f":"'[1]REAL IMAE(M)'!AJ304","v":1.900800882785562},{"$f":"'[1]REAL IMAE(M)'!AK304","v":4.1894262381560594},{"$f":"'[1]REAL IMAE(M)'!AL304","v":6.3916504775940739},{"$f":"'[1]REAL IMAE(M)'!AM304","v":4.8070083486204087},null,null,{"$f":"'[1]EXT ITCER(M)'!C304","v":73.515779032303783},{"$f":"'[1]EXT ITCER(M)'!D304","v":91.346754958165789},{"$f":"'[1]EXT ITCER(M)'!E304","v":61.045512060455778},{"$f":"'[1]EXT ITCER(M)'!F304","v":75.087157108904009},{"$f":"'[1]EXT ITCER(M)'!G304","v":96.927896323720702},{"$f":"'[1]EXT ITCER(M)'!H304","v":99.38458689629995},{"$f":"'[1]EXT ITCER(M)'!I304","v":88.635744498973963},null,null,{"$f":"'[1]EXT TC(M)'!J304","v":8.1035938991446805},{"$f":"'[1]EXT TC(M)'!K304","v":0},{"$f":"'[1]EXT TC(M)'!L304","v":-0.63110183543209863},{"$f":"'[1]EXT TC(M)'!M304","v":2.486249083148226},{"$f":"'[1]EXT TC(M)'!N304","v":5.1776131850202454},{"$f":"'[1]EXT TC(M)'!O304","v":3.7272386697432802},{"$f":"'[1]EXT TC(M)'!P304","v":0},null,null,{"$f":"'[1]EXT RIN(M)'!C304","v":7338.8224336200001},{"$f":"'[1]EXT RIN(M)'!D304","v":2697.5},{"$f":"'[1]EXT RIN(M)'!E304","v":7132.7},{"$f":"'[1]EXT RIN(M)'!F304","v":3148.2774924910527},{"$f":"'[1]EXT RIN(M)'!G304","v":1893.3},{"$f":"'[1]EXT RIN(M)'!H304","v":4538.0680927097028},{"$f":"'[1]EXT RIN(M)'!I304","v":2241.9406929100001},null,null,{"$f":"'[1]EXT RIN(M)'!P304","v":73.146186100125064},{"$f":"'[1]EXT RIN(M)'!Q304","v":102.52552971206956},{"$f":"'[1]EXT RIN(M)'!R304","v":99.02878079806581},{"$f":"'[1]EXT RIN(M)'!S304","v":82.695540457170907},{"$f":"'[1]EXT RIN(M)'!T304","v":115.2226013469021},{"$f":"'[1]EXT RIN(M)'!U304","v":79.006215103559313},{"$f":"'[1]EXT RIN(M)'!V304","v":178.42977724168071},null,null,{"$f":"+'[1]MONE(M)CAPARD'!AE304","v":1.7245639645924167},{"$f":"'[1]MONE(M)CAPARD'!AF304","v":1.9155764196082015},{"$f":"'[1]MONE(M)CAPARD'!AG304","v":1.9785515652989802},{"$f":"'[1]MONE(M)CAPARD'!AH304","v":3.8840043134435702},{"$f":"'[1]MONE(M)CAPARD'!AI304","v":2.0332755574637527},{"$f":"'[1]MONE(M)CAPARD'!AJ304","v":2.1367493252361709},{"$f":"'[1]MONE(M)CAPARD'!AK304","v":-4.5027791927119962E-2},null,null,{"$f":"'[1]MONE(M)CAPARD'!AL304","v":2.0300000000000002},{"$f":"'[1]MONE(M)CAPARD'!AM304","v":3.78},{"$f":"'[1]MONE(M)CAPARD'!AN304","v":2.89},{"$f":"'[1]MONE(M)CAPARD'!AO304","v":4.07},{"$f":"'[1]MONE(M)CAPARD'!AP304","v":3.1511898271855556},{"$f":"'[1]MONE(M)CAPARD'!AQ304","v":1.59},{"$f":"'[1]MONE(M)CAPARD'!AR304","v":2.14},null,null,{"$f":"'[1]MONE(M)CAPARD'!J304","v":10.917802595785023},{"$f":"'[1]MONE(M)CAPARD'!K304","v":4.2037176130721363},{"$f":"'[1]MONE(M)CAPARD'!L304","v":10.110920412863596},{"$f":"'[1]MONE(M)CAPARD'!M304","v":13.031200575125814},{"$f":"'[1]MONE(M)CAPARD'!N304","v":11.239635954553693},{"$f":"'[1]MONE(M)CAPARD'!O304","v":9.5441295546558731},{"$f":"'[1]MONE(M)CAPARD'!P304","v":3.8008997661081882},null,null,{"$f":"'[1]MONE(M)CAPARD'!Q304","v":10.27},{"$f":"'[1]MONE(M)CAPARD'!R304","v":6.11},{"$f":"'[1]MONE(M)CAPARD'!S304","v":6.06},{"$f":"'[1]MONE(M)CAPARD'!T304","v":8.5500000000000007},{"$f":"'[1]MONE(M)CAPARD'!U304","v":8.8135420345241116},{"$f":"'[1]MONE(M)CAPARD'!V304","v":6.11},{"$f":"'[1]MONE(M)CAPARD'!W304","v":6.07},null,null,{"$f":"'[1]MONE(M)CAPARD'!AS304","v":5.25},{"$f":"'[1]MONE(M)CAPARD'!AT304","v":"n.a."},{"$f":"'[1]MONE(M)CAPARD'!AU304","v":4.5},{"$f":"'[1]MONE(M)CAPARD'!AV304","v":7},{"$f":"'[1]MONE(M)CAPARD'!AW304","v":"n.a."},{"$f":"'[1]MONE(M)CAPARD'!AX304","v":6.25},{"$f":"'[1]MONE(M)CAPARD'!AY304","v":"n.a."},null,null,{"$f":"+'Datos_Regional (M)'!CF297","v":18.675937949737719},{"$f":"+'Datos_Regional (M)'!CG297","v":7.0339911733140914},{"$f":"+'Datos_Regional (M)'!CH297","v":10.286092499283539},{"$f":"+'Datos_Regional (M)'!CI297","v":13.393094543110928},{"$f":"+'Datos_Regional (M)'!CJ297","v":22.748009145778546},{"$f":"+'Datos_Regional (M)'!CK297","v":14.300843755879233},{"$f":"+'Datos_Regional (M)'!CL297","v":10.228862725009581},null,null,972.78184377499565,446.88083333333333,861.2833333333333,335.68636640853407,426.70066528083339,801.94166666666672,1226.9944818333333,3845.2747087976968,5072.2691906310292,null,null,1489.3766956983329,892.2700000000001,1489.791666666667,771.80269728644146,603.07499999999993,1430.4583333333337,2058.8183471666657,6676.7743929847757,8735.5927401514418,null,null,-2831.4996841870793,-3663.3235495204112,null,null,{"$f":"'[1]EXT Comercio(M)'!C304","v":950.81597858999521},{"$f":"'[1]EXT Comercio(M)'!D304","v":489.41000000000031},{"$f":"'[1]EXT Comercio(M)'!E304","v":948.6},{"$f":"'[1]EXT Comercio(M)'!F304","v":361.85023782248754},{"$f":"'[1]EXT Comercio(M)'!G304","v":462.4},{"$f":"'[1]EXT Comercio(M)'!H304","v":864.5},{"$f":"'[1]EXT Comercio(M)'!I304","v":1409.091942},{"$f":"'[1]EXT Comercio(M)'!K304","v":4077.5762164124826},{"$f":"'[1]EXT Comercio(M)'!L304","v":5486.6681584124854},null,null,{"$f":"'[1]EXT Comercio(M)'!AG304","v":1399.3977681800038},{"$f":"'[1]EXT Comercio(M)'!AH304","v":934.57000000000062},{"$f":"'[1]EXT Comercio(M)'!AI304","v":1620.3},{"$f":"'[1]EXT Comercio(M)'!AJ304","v":792.97155042683426},{"$f":"'[1]EXT Comercio(M)'!AK304","v":619.50000000000023},{"$f":"'[1]EXT Comercio(M)'!AL304","v":1520.8000000000002},{"$f":"'[1]EXT Comercio(M)'!AM304","v":2191.3331039999994},{"$f":"'[1]EXT Comercio(M)'!AO304","v":6887.5393186068468},{"$f":"'[1]EXT Comercio(M)'!AP304","v":9078.8724226068443},null,null,{"$f":"'[1]EXT Comercio(M)'!$BS304","v":-2809.9631021943587},{"$f":"'[1]EXT Comercio(M)'!$BT304","v":-3592.204264194359}]
[null,null,"Agosto",{"$f":"'[1]REAL IPC(M)'!AD305","v":5.485747062491857},{"$f":"'[1]REAL IPC(M)'!AE305","v":1.9932029025443203},{"$f":"'[1]REAL IPC(M)'!AF305","v":3.6997885835095161},{"$f":"'[1]REAL IPC(M)'!AG305","v":6.335877862595428},{"$f":"'[1]REAL IPC(M)'!AH305","v":6.7292712327953934},{"$f":"'[1]REAL IPC(M)'!AI305","v":3.1279785113941596},{"$f":"'[1]REAL IPC(M)'!AJ305","v":2.0791415157612425},null,null,{"$f":"'[1]REAL IMAE(M)'!AG305","v":3.2305012474657739},{"$f":"'[1]REAL IMAE(M)'!AH305","v":0.80843042194465808},{"$f":"'[1]REAL IMAE(M)'!AI305","v":4.4809274494515812},{"$f":"'[1]REAL IMAE(M)'!AJ305","v":1.7078410382561335},{"$f":"'[1]REAL IMAE(M)'!AK305","v":4.050396029897767},{"$f":"'[1]REAL IMAE(M)'!AL305","v":6.4628154473110389},{"$f":"'[1]REAL IMAE(M)'!AM305","v":4.7986926162531622},null,null,{"$f":"'[1]EXT ITCER(M)'!C305","v":73.307745772971543},{"$f":"'[1]EXT ITCER(M)'!D305","v":90.972415187875512},{"$f":"'[1]EXT ITCER(M)'!E305","v":60.933063870119057},{"$f":"'[1]EXT ITCER(M)'!F305","v":75.154052569014013},{"$f":"'[1]EXT ITCER(M)'!G305","v":96.734516450207792},{"$f":"'[1]EXT ITCER(M)'!H305","v":98.887842834020176},{"$f":"'[1]EXT ITCER(M)'!I305","v":88.342678370815023},null,null,{"$f":"'[1]EXT TC(M)'!J305","v":8.3197710015542121},{"$f":"'[1]EXT TC(M)'!K305","v":0},{"$f":"'[1]EXT TC(M)'!L305","v":-1.208350408477818},{"$f":"'[1]EXT TC(M)'!M305","v":2.8824291328873706},{"$f":"'[1]EXT TC(M)'!N305","v":5.0450771464176727},{"$f":"'[1]EXT TC(M)'!O305","v":2.6502242152466398},{"$f":"'[1]EXT TC(M)'!P305","v":0},null,null,{"$f":"'[1]EXT RIN(M)'!C305","v":7342.8691060199999},{"$f":"'[1]EXT RIN(M)'!D305","v":2567.3000000000002},{"$f":"'[1]EXT RIN(M)'!E305","v":7248.1},{"$f":"'[1]EXT RIN(M)'!F305","v":3153.0439987387831},{"$f":"'[1]EXT RIN(M)'!G305","v":2018.6},{"$f":"'[1]EXT RIN(M)'!H305","v":4249.4965935608752},{"$f":"'[1]EXT RIN(M)'!I305","v":2458.3312767800003},null,null,{"$f":"'[1]EXT RIN(M)'!P305","v":72.746918649949279},{"$f":"'[1]EXT RIN(M)'!Q305","v":101.77948584173733},{"$f":"'[1]EXT RIN(M)'!R305","v":98.096372322605291},{"$f":"'[1]EXT RIN(M)'!S305","v":83.498866388261007},{"$f":"'[1]EXT RIN(M)'!T305","v":118.94837465577169},{"$f":"'[1]EXT RIN(M)'!U305","v":76.484728394753589},{"$f":"'[1]EXT RIN(M)'!V305","v":191.58180734447603},null,null,{"$f":"+'[1]MONE(M)CAPARD'!AE305","v":1.5303043135788073},{"$f":"'[1]MONE(M)CAPARD'!AF305","v":1.6342237031700275},{"$f":"'[1]MONE(M)CAPARD'!AG305","v":1.6974108053007111},{"$f":"'[1]MONE(M)CAPARD'!AH305","v":4.0570710696338761},{"$f":"'[1]MONE(M)CAPARD'!AI305","v":2.4753059049991029},{"$f":"'[1]MONE(M)CAPARD'!AJ305","v":2.0867484456393885},{"$f":"'[1]MONE(M)CAPARD'!AK305","v":0.23968088116621777},null,null,{"$f":"'[1]MONE(M)CAPARD'!AL305","v":1.9950000000000001},{"$f":"'[1]MONE(M)CAPARD'!AM305","v":3.66},{"$f":"'[1]MONE(M)CAPARD'!AN305","v":2.9},{"$f":"'[1]MONE(M)CAPARD'!AO305","v":4.08},{"$f":"'[1]MONE(M)CAPARD'!AP305","v":3.259807114781601},{"$f":"'[1]MONE(M)CAPARD'!AQ305","v":1.25},{"$f":"'[1]MONE(M)CAPARD'!AR305","v":2.3238057016331295},null,null,{"$f":"'[1]MONE(M)CAPARD'!J305","v":10.223421872453855},{"$f":"'[1]MONE(M)CAPARD'!K305","v":3.7422073126801134},{"$f":"'[1]MONE(M)CAPARD'!L305","v":9.6819979612640132},{"$f":"'[1]MONE(M)CAPARD'!M305","v":13.357788944723611},{"$f":"'[1]MONE(M)CAPARD'!N305","v":11.807719486553735},{"$f":"'[1]MONE(M)CAPARD'!O305","v":9.8828869097630641},{"$f":"'[1]MONE(M)CAPARD'!P305","v":3.9095729303547877},null,null,{"$f":"'[1]MONE(M)CAPARD'!Q305","v":9.7899999999999991},{"$f":"'[1]MONE(M)CAPARD'!R305","v":5.81},{"$f":"'[1]MONE(M)CAPARD'!S305","v":6.06},{"$f":"'[1]MONE(M)CAPARD'!T305","v":8.59},{"$f":"'[1]MONE(M)CAPARD'!U305","v":8.937041737786096},{"$f":"'[1]MONE(M)CAPARD'!V305","v":5.88},{"$f":"'[1]MONE(M)CAPARD'!W305","v":6.07},null,null,{"$f":"'[1]MONE(M)CAPARD'!AS305","v":5.25},{"$f":"'[1]MONE(M)CAPARD'!AT305","v":"n.a."},{"$f":"'[1]MONE(M)CAPARD'!AU305","v":4.5},{"$f":"'[1]MONE(M)CAPARD'!AV305","v":7},{"$f":"'[1]MONE(M)CAPARD'!AW305","v":"n.a."},{"$f":"'[1]MONE(M)CAPARD'!AX305","v":6.25},{"$f":"'[1]MONE(M)CAPARD'!AY305","v":"n.a."},null,null,{"$f":"+'Datos_Regional (M)'!CF298","v":18.91234955752925},{"$f":"+'Datos_Regional (M)'!CG298","v":6.8640168248656819},{"$f":"+'Datos_Regional (M)'!CH298","v":8.3244703010580743},{"$f":"+'Datos_Regional (M)'!CI298","v":13.542185943796348},{"$f":"+'Datos_Regional (M)'!CJ298","v":22.724680010827527},{"$f":"+'Datos_Regional (M)'!CK298","v":13.9890171952622},{"$f":"+'Datos_Regional (M)'!CL298","v":11.102064261542388},null,null,973.15959110582924,443.07499999999999,867.08333333333337,336.99825188762412,427.52553499500004,805.98333333333323,1217.3039364166668,3853.8250446551206,5071.1289810717863,null,null,1481.8615655233334,880.7791666666667,1496.0833333333337,775.58095279830195,601.32499999999993,1435.6499999999999,2045.4064366666653,6671.280018321635,8716.6864549883012,null,null,-2817.4549736665163,-3645.5574739165154,null,null,{"$f":"'[1]EXT Comercio(M)'!C305","v":955.58525429999463},{"$f":"'[1]EXT Comercio(M)'!D305","v":435.7199999999998},{"$f":"'[1]EXT Comercio(M)'!E305","v":874},{"$f":"'[1]EXT Comercio(M)'!F305","v":302.95518771565958},{"$f":"'[1]EXT Comercio(M)'!G305","v":446.8},{"$f":"'[1]EXT Comercio(M)'!H305","v":842.8},{"$f":"'[1]EXT Comercio(M)'!I305","v":1160.9966349999997},{"$f":"'[1]EXT Comercio(M)'!K305","v":3857.8604420156553},{"$f":"'[1]EXT Comercio(M)'!L305","v":5018.8570770156512},null,null,{"$f":"'[1]EXT Comercio(M)'!AG305","v":1435.2008952900021},{"$f":"'[1]EXT Comercio(M)'!AH305","v":767.76000000000022},{"$f":"'[1]EXT Comercio(M)'!AI305","v":1462.6999999999998},{"$f":"'[1]EXT Comercio(M)'!AJ305","v":812.39019750839088},{"$f":"'[1]EXT Comercio(M)'!AK305","v":623.9000000000002},{"$f":"'[1]EXT Comercio(M)'!AL305","v":1486.5},{"$f":"'[1]EXT Comercio(M)'!AM305","v":2056.5807309999905},{"$f":"'[1]EXT Comercio(M)'!AO305","v":6588.4510927983938},{"$f":"'[1]EXT Comercio(M)'!AP305","v":8645.0318237983884},null,null,{"$f":"'[1]EXT Comercio(M)'!$BS305","v":-2730.5906507827422},{"$f":"'[1]EXT Comercio(M)'!$BT305","v":-3626.1747467827336}]
[null,null,"Setiembre",{"$f":"'[1]REAL IPC(M)'!AD306","v":5.2030039865729458},{"$f":"'[1]REAL IPC(M)'!AE306","v":1.696313955620754},{"$f":"'[1]REAL IPC(M)'!AF306","v":3.4519104084321537},{"$f":"'[1]REAL IPC(M)'!AG306","v":6.1263318112633049},{"$f":"'[1]REAL IPC(M)'!AH306","v":6.4946284249925217},{"$f":"'[1]REAL IPC(M)'!AI306","v":2.8283176683625086},{"$f":"'[1]REAL IPC(M)'!AJ306","v":2.3458445040212177},null,null,{"$f":"'[1]REAL IMAE(M)'!AG306","v":3.4882224880477786},{"$f":"'[1]REAL IMAE(M)'!AH306","v":0.38640677748701718},{"$f":"'[1]REAL IMAE(M)'!AI306","v":4.4580338864279225},{"$f":"'[1]REAL IMAE(M)'!AJ306","v":1.6576063258908615},{"$f":"'[1]REAL IMAE(M)'!AK306","v":4.0092126702157485},{"$f":"'[1]REAL IMAE(M)'!AL306","v":6.8085816793153509},{"$f":"'[1]REAL IMAE(M)'!AM306","v":4.8217642938769645},null,null,{"$f":"'[1]EXT ITCER(M)'!C306","v":73.475560204808289},{"$f":"'[1]EXT ITCER(M)'!D306","v":91.147589165765737},{"$f":"'[1]EXT ITCER(M)'!E306","v":60.286515225874204},{"$f":"'[1]EXT ITCER(M)'!F306","v":75.544213918925536},{"$f":"'[1]EXT ITCER(M)'!G306","v":97.118343773585764},{"$f":"'[1]EXT ITCER(M)'!H306","v":99.129903759262447},{"$f":"'[1]EXT ITCER(M)'!I306","v":88.119675864820522},null,null,{"$f":"'[1]EXT TC(M)'!J306","v":7.904128485764085},{"$f":"'[1]EXT TC(M)'!K306","v":0},{"$f":"'[1]EXT TC(M)'!L306","v":-2.7918580057184124},{"$f":"'[1]EXT TC(M)'!M306","v":3.1156706459651695},{"$f":"'[1]EXT TC(M)'!N306","v":4.7992831161460252},{"$f":"'[1]EXT TC(M)'!O306","v":2.4336461435328394},{"$f":"'[1]EXT TC(M)'!P306","v":0},null,null,{"$f":"'[1]EXT RIN(M)'!C306","v":7195.0737996799999},{"$f":"'[1]EXT RIN(M)'!D306","v":3026.5},{"$f":"'[1]EXT RIN(M)'!E306","v":7149.2},{"$f":"'[1]EXT RIN(M)'!F306","v":3028.3087496503927},{"$f":"'[1]EXT RIN(M)'!G306","v":2001.9},{"$f":"'[1]EXT RIN(M)'!H306","v":4023.3482828687684},{"$f":"'[1]EXT RIN(M)'!I306","v":3393.0334561599998},null,null,{"$f":"'[1]EXT RIN(M)'!P306","v":71.098251798859152},{"$f":"'[1]EXT RIN(M)'!Q306","v":102.43189877907541},{"$f":"'[1]EXT RIN(M)'!R306","v":96.370820502866295},{"$f":"'[1]EXT RIN(M)'!S306","v":82.205914054414038},{"$f":"'[1]EXT RIN(M)'!T306","v":120.46892847759236},{"$f":"'[1]EXT RIN(M)'!U306","v":75.373227874928801},{"$f":"'[1]EXT RIN(M)'!V306","v":272.85669528352116},null,null,{"$f":"+'[1]MONE(M)CAPARD'!AE306","v":1.8507038198980987},{"$f":"'[1]MONE(M)CAPARD'!AF306","v":2.216094130375986},{"$f":"'[1]MONE(M)CAPARD'!AG306","v":1.9604177279673911},{"$f":"'[1]MONE(M)CAPARD'!AH306","v":4.1965722481176178},{"$f":"'[1]MONE(M)CAPARD'!AI306","v":1.8973781389538968},{"$f":"'[1]MONE(M)CAPARD'!AJ306","v":2.8024209643605857},{"$f":"'[1]MONE(M)CAPARD'!AK306","v":-0.50165283063914934},null,null,{"$f":"'[1]MONE(M)CAPARD'!AL306","v":1.9950000000000001},{"$f":"'[1]MONE(M)CAPARD'!AM306","v":3.95},{"$f":"'[1]MONE(M)CAPARD'!AN306","v":2.91},{"$f":"'[1]MONE(M)CAPARD'!AO306","v":4.07},{"$f":"'[1]MONE(M)CAPARD'!AP306","v":3.1332034575731758},{"$f":"'[1]MONE(M)CAPARD'!AQ306","v":1.1200000000000001},{"$f":"'[1]MONE(M)CAPARD'!AR306","v":1.832423678025253},null,null,{"$f":"'[1]MONE(M)CAPARD'!J306","v":10.899875078558203},{"$f":"'[1]MONE(M)CAPARD'!K306","v":4.5072292850058657},{"$f":"'[1]MONE(M)CAPARD'!L306","v":9.9351375445746246},{"$f":"'[1]MONE(M)CAPARD'!M306","v":13.741799928289725},{"$f":"'[1]MONE(M)CAPARD'!N306","v":11.072734102998506},{"$f":"'[1]MONE(M)CAPARD'!O306","v":9.6001593291404586},{"$f":"'[1]MONE(M)CAPARD'!P306","v":3.6485658153243978},null,null,{"$f":"'[1]MONE(M)CAPARD'!Q306","v":9.98},{"$f":"'[1]MONE(M)CAPARD'!R306","v":6.28},{"$f":"'[1]MONE(M)CAPARD'!S306","v":6.04},{"$f":"'[1]MONE(M)CAPARD'!T306","v":8.6999999999999993},{"$f":"'[1]MONE(M)CAPARD'!U306","v":8.6048569535009278},{"$f":"'[1]MONE(M)CAPARD'!V306","v":6.2},{"$f":"'[1]MONE(M)CAPARD'!W306","v":6.08},null,null,{"$f":"'[1]MONE(M)CAPARD'!AS306","v":5.25},{"$f":"'[1]MONE(M)CAPARD'!AT306","v":"n.a."},{"$f":"'[1]MONE(M)CAPARD'!AU306","v":4.5},{"$f":"'[1]MONE(M)CAPARD'!AV306","v":7},{"$f":"'[1]MONE(M)CAPARD'!AW306","v":"n.a."},{"$f":"'[1]MONE(M)CAPARD'!AX306","v":6.25},{"$f":"'[1]MONE(M)CAPARD'!AY306","v":"n.a."},null,null,{"$f":"+'Datos_Regional (M)'!CF299","v":18.363441277265569},{"$f":"+'Datos_Regional (M)'!CG299","v":7.4671974961522336},{"$f":"+'Datos_Regional (M)'!CH299","v":7.9394048259235239},{"$f":"+'Datos_Regional (M)'!CI299","v":13.327309509104124},{"$f":"+'Datos_Regional (M)'!CJ299","v":21.880076677301563},{"$f":"+'Datos_Regional (M)'!CK299","v":13.584334016463263},{"$f":"+'Datos_Regional (M)'!CL299","v":11.852208644893135},null,null,968.16115743582884,443.7949999999999,879.72500000000002,336.5738594669661,430.4531097558334,815,1195.8912709166666,3873.7081266586283,5069.5993975752945,null,null,1473.7290117908333,880.31916666666666,1501.8000000000002,779.77788766146466,601.54166666666652,1439.4416666666668,2063.7909170833314,6676.6093994522989,8740.4003165356316,null,null,-2802.9012727936702,-3670.8009189603358,null,null,{"$f":"'[1]EXT Comercio(M)'!C306","v":914.48691967999366},{"$f":"'[1]EXT Comercio(M)'!D306","v":435.23},{"$f":"'[1]EXT Comercio(M)'!E306","v":883.49999999999989},{"$f":"'[1]EXT Comercio(M)'!F306","v":284.86404253592264},{"$f":"'[1]EXT Comercio(M)'!G306","v":435.1},{"$f":"'[1]EXT Comercio(M)'!H306","v":838.7},{"$f":"'[1]EXT Comercio(M)'!I306","v":1377.4266849999999},{"$f":"'[1]EXT Comercio(M)'!K306","v":3791.880962215917},{"$f":"'[1]EXT Comercio(M)'!L306","v":5169.3076472159155},null,null,{"$f":"'[1]EXT Comercio(M)'!AG306","v":1403.0300525999992},{"$f":"'[1]EXT Comercio(M)'!AH306","v":843.15999999999985},{"$f":"'[1]EXT Comercio(M)'!AI306","v":1542.4},{"$f":"'[1]EXT Comercio(M)'!AJ306","v":783.62106174625478},{"$f":"'[1]EXT Comercio(M)'!AK306","v":563.00000000000023},{"$f":"'[1]EXT Comercio(M)'!AL306","v":1420.9},{"$f":"'[1]EXT Comercio(M)'!AM306","v":2456.3445379999989},{"$f":"'[1]EXT Comercio(M)'!AO306","v":6556.1111143462476},{"$f":"'[1]EXT Comercio(M)'!AP306","v":9012.4556523462525},null,null,{"$f":"'[1]EXT Comercio(M)'!$BS306","v":-2764.2301521303343},{"$f":"'[1]EXT Comercio(M)'!$BT306","v":-3843.1480051303297}]
[null,null,"Octubre",{"$f":"'[1]REAL IPC(M)'!AD307","v":5.7025699088052768},{"$f":"'[1]REAL IPC(M)'!AE307","v":1.8914700211183566},{"$f":"'[1]REAL IPC(M)'!AF307","v":3.6373220875065901},{"$f":"'[1]REAL IPC(M)'!AG307","v":6.3093880653743692},{"$f":"'[1]REAL IPC(M)'!AH307","v":6.6820460918601778},{"$f":"'[1]REAL IPC(M)'!AI307","v":2.8840341939383505},{"$f":"'[1]REAL IPC(M)'!AJ307","v":2.1037483266398893},null,null,{"$f":"'[1]REAL IMAE(M)'!AG307","v":3.7702416531352165},{"$f":"'[1]REAL IMAE(M)'!AH307","v":0.18607252374225222},{"$f":"'[1]REAL IMAE(M)'!AI307","v":4.5459602847709712},{"$f":"'[1]REAL IMAE(M)'!AJ307","v":1.7202543749642141},{"$f":"'[1]REAL IMAE(M)'!AK307","v":4.0112392172422862},{"$f":"'[1]REAL IMAE(M)'!AL307","v":7.249926535546841},{"$f":"'[1]REAL IMAE(M)'!AM307","v":4.9497690107794972},null,null,{"$f":"'[1]EXT ITCER(M)'!C307","v":73.445934236115193},{"$f":"'[1]EXT ITCER(M)'!D307","v":90.869442623978529},{"$f":"'[1]EXT ITCER(M)'!E307","v":59.411655939831867},{"$f":"'[1]EXT ITCER(M)'!F307","v":75.578223561252074},{"$f":"'[1]EXT ITCER(M)'!G307","v":97.157060274028254},{"$f":"'[1]EXT ITCER(M)'!H307","v":99.310803534763025},{"$f":"'[1]EXT ITCER(M)'!I307","v":87.988761264638498},null,null,{"$f":"'[1]EXT TC(M)'!J307","v":8.0718428823876742},{"$f":"'[1]EXT TC(M)'!K307","v":0},{"$f":"'[1]EXT TC(M)'!L307","v":-4.0140914205450784},{"$f":"'[1]EXT TC(M)'!M307","v":3.6901158352918073},{"$f":"'[1]EXT TC(M)'!N307","v":4.7365639839323164},{"$f":"'[1]EXT TC(M)'!O307","v":3.2159098942010944},{"$f":"'[1]EXT TC(M)'!P307","v":0},null,null,{"$f":"'[1]EXT RIN(M)'!C307","v":7081.9497149600002},{"$f":"'[1]EXT RIN(M)'!D307","v":2902.3},{"$f":"'[1]EXT RIN(M)'!E307","v":7097.5},{"$f":"'[1]EXT RIN(M)'!F307","v":3018.38467049055},{"$f":"'[1]EXT RIN(M)'!G307","v":2042.1},{"$f":"'[1]EXT RIN(M)'!H307","v":4214.4045314446339},{"$f":"'[1]EXT RIN(M)'!I307","v":3416.7129762899995},null,null,{"$f":"'[1]EXT RIN(M)'!P307","v":69.160187865646989},{"$f":"'[1]EXT RIN(M)'!Q307","v":100.56211251466955},{"$f":"'[1]EXT RIN(M)'!R307","v":95.225415763414716},{"$f":"'[1]EXT RIN(M)'!S307","v":83.246838429204644},{"$f":"'[1]EXT RIN(M)'!T307","v":122.59127385256951},{"$f":"'[1]EXT RIN(M)'!U307","v":74.256989443886923},{"$f":"'[1]EXT RIN(M)'!V307","v":264.21301258489774},null,null,{"$f":"+'[1]MONE(M)CAPARD'!AE307","v":1.4166449240417038},{"$f":"'[1]MONE(M)CAPARD'!AF307","v":2.0693881229161013},{"$f":"'[1]MONE(M)CAPARD'!AG307","v":1.7876551373346889},{"$f":"'[1]MONE(M)CAPARD'!AH307","v":3.9701215588130259},{"$f":"'[1]MONE(M)CAPARD'!AI307","v":1.0499921270427357},{"$f":"'[1]MONE(M)CAPARD'!AJ307","v":3.9811481326059561},{"$f":"'[1]MONE(M)CAPARD'!AK307","v":9.4268501340609295E-2},null,null,{"$f":"'[1]MONE(M)CAPARD'!AL307","v":2.0049999999999999},{"$f":"'[1]MONE(M)CAPARD'!AM307","v":4},{"$f":"'[1]MONE(M)CAPARD'!AN307","v":2.88},{"$f":"'[1]MONE(M)CAPARD'!AO307","v":4.07},{"$f":"'[1]MONE(M)CAPARD'!AP307","v":1.6764860763201166},{"$f":"'[1]MONE(M)CAPARD'!AQ307","v":1.47},{"$f":"'[1]MONE(M)CAPARD'!AR307","v":2.2000000000000002},null,null,{"$f":"'[1]MONE(M)CAPARD'!J307","v":10.385206434115542},{"$f":"'[1]MONE(M)CAPARD'!K307","v":4.012632242948543},{"$f":"'[1]MONE(M)CAPARD'!L307","v":9.7384587995930811},{"$f":"'[1]MONE(M)CAPARD'!M307","v":13.687043260636409},{"$f":"'[1]MONE(M)CAPARD'!N307","v":8.9532797952461962},{"$f":"'[1]MONE(M)CAPARD'!O307","v":10.308660511959713},{"$f":"'[1]MONE(M)CAPARD'!P307","v":3.8943248788866129},null,null,{"$f":"'[1]MONE(M)CAPARD'!Q307","v":9.77},{"$f":"'[1]MONE(M)CAPARD'!R307","v":5.98},{"$f":"'[1]MONE(M)CAPARD'!S307","v":6.01},{"$f":"'[1]MONE(M)CAPARD'!T307","v":8.73},{"$f":"'[1]MONE(M)CAPARD'!U307","v":9.1931244131397474},{"$f":"'[1]MONE(M)CAPARD'!V307","v":6.38},{"$f":"'[1]MONE(M)CAPARD'!W307","v":6.08},null,null,{"$f":"'[1]MONE(M)CAPARD'!AS307","v":5.25},{"$f":"'[1]MONE(M)CAPARD'!AT307","v":"n.a."},{"$f":"'[1]MONE(M)CAPARD'!AU307","v":4.5},{"$f":"'[1]MONE(M)CAPARD'!AV307","v":7},{"$f":"'[1]MONE(M)CAPARD'!AW307","v":"n.a."},{"$f":"'[1]MONE(M)CAPARD'!AX307","v":6.25},{"$f":"'[1]MONE(M)CAPARD'!AY307","v":"n.a."},null,null,{"$f":"+'Datos_Regional (M)'!CF300","v":18.657382714563163},{"$f":"+'Datos_Regional (M)'!CG300","v":6.1754974081871694},{"$f":"+'Datos_Regional (M)'!CH300","v":7.80548995407917},{"$f":"+'Datos_Regional (M)'!CI300","v":11.65081502951546},{"$f":"+'Datos_Regional (M)'!CJ300","v":19.675782213652294},{"$f":"+'Datos_Regional (M)'!CK300","v":15.714664485400176},{"$f":"+'Datos_Regional (M)'!CL300","v":12.409416808922646},null,null,964.15950445166175,441.67499999999995,889.40833333333342,339.15580486887416,430.09362180583344,818.36666666666667,1191.3496108333334,3882.858931126369,5074.2085419597015,null,null,1456.0698582624993,878.39583333333337,1499.3250000000005,779.03927281914582,607.22499999999991,1438.3666666666668,2066.731110499999,6658.4216310816455,8725.1527415816454,null,null,-2775.5626999552769,-3650.9441996219425,null,null,{"$f":"'[1]EXT Comercio(M)'!C307","v":968.31495752999399},{"$f":"'[1]EXT Comercio(M)'!D307","v":427.10999999999967},{"$f":"'[1]EXT Comercio(M)'!E307","v":883.30000000000007},{"$f":"'[1]EXT Comercio(M)'!F307","v":300.30237671422998},{"$f":"'[1]EXT Comercio(M)'!G307","v":438.1},{"$f":"'[1]EXT Comercio(M)'!H307","v":870.3},{"$f":"'[1]EXT Comercio(M)'!I307","v":1540.3114459999999},{"$f":"'[1]EXT Comercio(M)'!K307","v":3887.4273342442248},{"$f":"'[1]EXT Comercio(M)'!L307","v":5427.7387802442245},null,null,{"$f":"'[1]EXT Comercio(M)'!AG307","v":1398.1084236600004},{"$f":"'[1]EXT Comercio(M)'!AH307","v":892},{"$f":"'[1]EXT Comercio(M)'!AI307","v":1575.2},{"$f":"'[1]EXT Comercio(M)'!AJ307","v":788.80492197267995},{"$f":"'[1]EXT Comercio(M)'!AK307","v":705.50000000000023},{"$f":"'[1]EXT Comercio(M)'!AL307","v":1578},{"$f":"'[1]EXT Comercio(M)'!AM307","v":2449.4931860000079},{"$f":"'[1]EXT Comercio(M)'!AO307","v":6937.6133456326861},{"$f":"'[1]EXT Comercio(M)'!AP307","v":9387.1065316326858},null,null,{"$f":"'[1]EXT Comercio(M)'!$BS307","v":-3050.1860113884577},{"$f":"'[1]EXT Comercio(M)'!$BT307","v":-3959.3677513884686}]
[null,null,"Noviembre",{"$f":"'[1]REAL IPC(M)'!AD308","v":5.8861964796024635},{"$f":"'[1]REAL IPC(M)'!AE308","v":1.2844036697247758},{"$f":"'[1]REAL IPC(M)'!AF308","v":3.3761917257062879},{"$f":"'[1]REAL IPC(M)'!AG308","v":6.4063684609552602},{"$f":"'[1]REAL IPC(M)'!AH308","v":7.6707930200482384},{"$f":"'[1]REAL IPC(M)'!AI308","v":2.6751812219537525},{"$f":"'[1]REAL IPC(M)'!AJ308","v":1.6391973244147207},null,null,{"$f":"'[1]REAL IMAE(M)'!AG308","v":3.9522559224034177},{"$f":"'[1]REAL IMAE(M)'!AH308","v":2.6114370001181695E-2},{"$f":"'[1]REAL IMAE(M)'!AI308","v":4.6761007937237249},{"$f":"'[1]REAL IMAE(M)'!AJ308","v":1.9256436516636035},{"$f":"'[1]REAL IMAE(M)'!AK308","v":4.0189732301803192},{"$f":"'[1]REAL IMAE(M)'!AL308","v":7.5721274087443762},{"$f":"'[1]REAL IMAE(M)'!AM308","v":5.1731071546082825},null,null,{"$f":"'[1]EXT ITCER(M)'!C308","v":72.467358772709687},{"$f":"'[1]EXT ITCER(M)'!D308","v":90.845430201804945},{"$f":"'[1]EXT ITCER(M)'!E308","v":58.794377599832686},{"$f":"'[1]EXT ITCER(M)'!F308","v":75.133683796417344},{"$f":"'[1]EXT ITCER(M)'!G308","v":95.581380185639901},{"$f":"'[1]EXT ITCER(M)'!H308","v":99.411829635939995},{"$f":"'[1]EXT ITCER(M)'!I308","v":87.854857079442596},null,null,{"$f":"'[1]EXT TC(M)'!J308","v":7.6594192866525042},{"$f":"'[1]EXT TC(M)'!K308","v":0},{"$f":"'[1]EXT TC(M)'!L308","v":-3.5265544781100342},{"$f":"'[1]EXT TC(M)'!M308","v":3.913497445993293},{"$f":"'[1]EXT TC(M)'!N308","v":4.7609481965252307},{"$f":"'[1]EXT TC(M)'!O308","v":3.6798473893690682},{"$f":"'[1]EXT TC(M)'!P308","v":0},null,null,{"$f":"'[1]EXT RIN(M)'!C308","v":7252.1965410499997},{"$f":"'[1]EXT RIN(M)'!D308","v":2766.3},{"$f":"'[1]EXT RIN(M)'!E308","v":7053.5},{"$f":"'[1]EXT RIN(M)'!F308","v":3066.9136443693001},{"$f":"'[1]EXT RIN(M)'!G308","v":1999.9},{"$f":"'[1]EXT RIN(M)'!H308","v":4208.1044533984232},{"$f":"'[1]EXT RIN(M)'!I308","v":3929.1359555600002},null,null,{"$f":"'[1]EXT RIN(M)'!P308","v":68.420754326800733},{"$f":"'[1]EXT RIN(M)'!Q308","v":99.526204465673132},{"$f":"'[1]EXT RIN(M)'!R308","v":95.275108695118305},{"$f":"'[1]EXT RIN(M)'!S308","v":83.941997023633391},{"$f":"'[1]EXT RIN(M)'!T308","v":120.52416540746822},{"$f":"'[1]EXT RIN(M)'!U308","v":72.018701868038917},{"$f":"'[1]EXT RIN(M)'!V308","v":298.53350137229751},null,null,{"$f":"+'[1]MONE(M)CAPARD'!AE308","v":1.2407693958963035},{"$f":"'[1]MONE(M)CAPARD'!AF308","v":2.740398550724632},{"$f":"'[1]MONE(M)CAPARD'!AG308","v":2.0447728234199181},{"$f":"'[1]MONE(M)CAPARD'!AH308","v":3.8377698610616404},{"$f":"'[1]MONE(M)CAPARD'!AI308","v":0.89294637744071947},{"$f":"'[1]MONE(M)CAPARD'!AJ308","v":4.7478063540090689},{"$f":"'[1]MONE(M)CAPARD'!AK308","v":0.57143571660789294},null,null,{"$f":"'[1]MONE(M)CAPARD'!AL308","v":1.99},{"$f":"'[1]MONE(M)CAPARD'!AM308","v":4.0599999999999996},{"$f":"'[1]MONE(M)CAPARD'!AN308","v":2.91},{"$f":"'[1]MONE(M)CAPARD'!AO308","v":4.03},{"$f":"'[1]MONE(M)CAPARD'!AP308","v":1.4779276643903798},{"$f":"'[1]MONE(M)CAPARD'!AQ308","v":1.51},{"$f":"'[1]MONE(M)CAPARD'!AR308","v":2.2200000000000002},null,null,{"$f":"'[1]MONE(M)CAPARD'!J308","v":10.023783905055216},{"$f":"'[1]MONE(M)CAPARD'!K308","v":4.5768115942028924},{"$f":"'[1]MONE(M)CAPARD'!L308","v":9.9866401556815294},{"$f":"'[1]MONE(M)CAPARD'!M308","v":13.451856074100471},{"$f":"'[1]MONE(M)CAPARD'!N308","v":9.2056576024198637},{"$f":"'[1]MONE(M)CAPARD'!O308","v":11.42907043200537},{"$f":"'[1]MONE(M)CAPARD'!P308","v":4.3691831424160181},null,null,{"$f":"'[1]MONE(M)CAPARD'!Q308","v":9.8699999999999992},{"$f":"'[1]MONE(M)CAPARD'!R308","v":5.92},{"$f":"'[1]MONE(M)CAPARD'!S308","v":6.02},{"$f":"'[1]MONE(M)CAPARD'!T308","v":8.7200000000000006},{"$f":"'[1]MONE(M)CAPARD'!U308","v":8.8734313551955513},{"$f":"'[1]MONE(M)CAPARD'!V308","v":7.02},{"$f":"'[1]MONE(M)CAPARD'!W308","v":6.08},null,null,{"$f":"'[1]MONE(M)CAPARD'!AS308","v":5.25},{"$f":"'[1]MONE(M)CAPARD'!AT308","v":"n.a."},{"$f":"'[1]MONE(M)CAPARD'!AU308","v":4},{"$f":"'[1]MONE(M)CAPARD'!AV308","v":7},{"$f":"'[1]MONE(M)CAPARD'!AW308","v":"n.a."},{"$f":"'[1]MONE(M)CAPARD'!AX308","v":6.25},{"$f":"'[1]MONE(M)CAPARD'!AY308","v":"n.a."},null,null,{"$f":"+'Datos_Regional (M)'!CF301","v":18.191490178279125},{"$f":"+'Datos_Regional (M)'!CG301","v":5.351480200029135},{"$f":"+'Datos_Regional (M)'!CH301","v":8.2248070651267611},{"$f":"+'Datos_Regional (M)'!CI301","v":11.781050769067036},{"$f":"+'Datos_Regional (M)'!CJ301","v":20.967918216604264},{"$f":"+'Datos_Regional (M)'!CK301","v":16.456437494943433},{"$f":"+'Datos_Regional (M)'!CL301","v":31.137047482721659},null,null,949.76055213916152,443.56333333333333,892.42500000000007,337.36793866457577,428.8801495008334,816.52500000000009,1166.542095,3868.521973637904,5035.0640686379029,null,null,1440.0730863341653,873.5383333333333,1508.708333333333,775.23611185568723,611.70833333333337,1438.5916666666665,2055.744708249998,6647.8558648565186,8703.6005731065161,null,null,-2779.3338912186168,-3668.5365044686137,null,null,{"$f":"'[1]EXT Comercio(M)'!C308","v":819.0983610599942},{"$f":"'[1]EXT Comercio(M)'!D308","v":426.26000000000022},{"$f":"'[1]EXT Comercio(M)'!E308","v":839.19999999999993},{"$f":"'[1]EXT Comercio(M)'!F308","v":267.39973012098972},{"$f":"'[1]EXT Comercio(M)'!G308","v":389.29999999999995},{"$f":"'[1]EXT Comercio(M)'!H308","v":733.7},{"$f":"'[1]EXT Comercio(M)'!I308","v":1071.5564400000001},{"$f":"'[1]EXT Comercio(M)'!K308","v":3474.9580911809826},{"$f":"'[1]EXT Comercio(M)'!L308","v":4546.5145311809829},null,null,{"$f":"'[1]EXT Comercio(M)'!AG308","v":1323.1088257199947},{"$f":"'[1]EXT Comercio(M)'!AH308","v":869.10999999999876},{"$f":"'[1]EXT Comercio(M)'!AI308","v":1556.1},{"$f":"'[1]EXT Comercio(M)'!AJ308","v":761.37066970864726},{"$f":"'[1]EXT Comercio(M)'!AK308","v":662.79999999999984},{"$f":"'[1]EXT Comercio(M)'!AL308","v":1418.2000000000003},{"$f":"'[1]EXT Comercio(M)'!AM308","v":1879.3949029999876},{"$f":"'[1]EXT Comercio(M)'!AO308","v":6590.6894954286399},{"$f":"'[1]EXT Comercio(M)'!AP308","v":8470.0843984286184},null,null,{"$f":"'[1]EXT Comercio(M)'!$BS308","v":-3115.7314042476573},{"$f":"'[1]EXT Comercio(M)'!$BT308","v":-3923.5698672476428}]
[null,null,"Diciembre ",{"$f":"'[1]REAL IPC(M)'!AD309","v":5.1271852691126307},{"$f":"'[1]REAL IPC(M)'!AE309","v":0.47715177096714623},{"$f":"'[1]REAL IPC(M)'!AF309","v":2.9473317056156221},{"$f":"'[1]REAL IPC(M)'!AG309","v":5.8201058201058107},{"$f":"'[1]REAL IPC(M)'!AH309","v":6.4796923391486985},{"$f":"'[1]REAL IPC(M)'!AI309","v":1.5819791935345229},{"$f":"'[1]REAL IPC(M)'!AJ309","v":1.007019726376557},null,null,{"$f":"'[1]REAL IMAE(M)'!AG309","v":3.9967908792939024},{"$f":"'[1]REAL IMAE(M)'!AH309","v":1.1189399728856601E-2},{"$f":"'[1]REAL IMAE(M)'!AI309","v":4.7561053845695316},{"$f":"'[1]REAL IMAE(M)'!AJ309","v":2.2379856391658217},{"$f":"'[1]REAL IMAE(M)'!AK309","v":3.9769216401620797},{"$f":"'[1]REAL IMAE(M)'!AL309","v":7.7360630961770944},{"$f":"'[1]REAL IMAE(M)'!AM309","v":5.4658385093167841},null,null,{"$f":"'[1]EXT ITCER(M)'!C309","v":71.927389848505086},{"$f":"'[1]EXT ITCER(M)'!D309","v":91.072768492843366},{"$f":"'[1]EXT ITCER(M)'!E309","v":58.566256385960855},{"$f":"'[1]EXT ITCER(M)'!F309","v":75.31771303631416},{"$f":"'[1]EXT ITCER(M)'!G309","v":95.296769677992387},{"$f":"'[1]EXT ITCER(M)'!H309","v":99.813894469226696},{"$f":"'[1]EXT ITCER(M)'!I309","v":87.668889325301166},null,null,{"$f":"'[1]EXT TC(M)'!J309","v":7.2544773441386061},{"$f":"'[1]EXT TC(M)'!K309","v":0},{"$f":"'[1]EXT TC(M)'!L309","v":-3.0209670408671845},{"$f":"'[1]EXT TC(M)'!M309","v":4.279801850197841},{"$f":"'[1]EXT TC(M)'!N309","v":4.9051835323080777},{"$f":"'[1]EXT TC(M)'!O309","v":3.6116459582378662},{"$f":"'[1]EXT TC(M)'!P309","v":0},null,null,{"$f":"'[1]EXT RIN(M)'!C309","v":7211.4158651300004},{"$f":"'[1]EXT RIN(M)'!D309","v":2661.2},{"$f":"'[1]EXT RIN(M)'!E309","v":7333.4},{"$f":"'[1]EXT RIN(M)'!F309","v":3516.4834622255066},{"$f":"'[1]EXT RIN(M)'!G309","v":2153.1999999999998},{"$f":"'[1]EXT RIN(M)'!H309","v":4650.4486369269598},{"$f":"'[1]EXT RIN(M)'!I309","v":3969.8091757400002},null,null,{"$f":"'[1]EXT RIN(M)'!P309","v":67.562552295822115},{"$f":"'[1]EXT RIN(M)'!Q309","v":99.133863870117182},{"$f":"'[1]EXT RIN(M)'!R309","v":93.108592957703152},{"$f":"'[1]EXT RIN(M)'!S309","v":85.486224566856862},{"$f":"'[1]EXT RIN(M)'!T309","v":117.84863909039451},{"$f":"'[1]EXT RIN(M)'!U309","v":69.917130498146236},{"$f":"'[1]EXT RIN(M)'!V309","v":295.60101374910232},null,null,{"$f":"+'[1]MONE(M)CAPARD'!AE309","v":1.9717209450450133},{"$f":"'[1]MONE(M)CAPARD'!AF309","v":3.5956913242009172},{"$f":"'[1]MONE(M)CAPARD'!AG309","v":2.4407318312722381},{"$f":"'[1]MONE(M)CAPARD'!AH309","v":4.4319500000000094},{"$f":"'[1]MONE(M)CAPARD'!AI309","v":1.7307145351728779},{"$f":"'[1]MONE(M)CAPARD'!AJ309","v":6.8595048666948761},{"$f":"'[1]MONE(M)CAPARD'!AK309","v":1.1711861975812008},null,null,{"$f":"'[1]MONE(M)CAPARD'!AL309","v":1.9750000000000001},{"$f":"'[1]MONE(M)CAPARD'!AM309","v":4.09},{"$f":"'[1]MONE(M)CAPARD'!AN309","v":2.93},{"$f":"'[1]MONE(M)CAPARD'!AO309","v":4.07},{"$f":"'[1]MONE(M)CAPARD'!AP309","v":2.3846510474335099},{"$f":"'[1]MONE(M)CAPARD'!AQ309","v":1.53},{"$f":"'[1]MONE(M)CAPARD'!AR309","v":2.19},null,null,{"$f":"'[1]MONE(M)CAPARD'!J309","v":11.303274886004825},{"$f":"'[1]MONE(M)CAPARD'!K309","v":5.5662885844748899},{"$f":"'[1]MONE(M)CAPARD'!L309","v":10.386542436049471},{"$f":"'[1]MONE(M)CAPARD'!M309","v":14.014250000000008},{"$f":"'[1]MONE(M)CAPARD'!N309","v":10.574557395533191},{"$f":"'[1]MONE(M)CAPARD'!O309","v":12.460892086330931},{"$f":"'[1]MONE(M)CAPARD'!P309","v":5.0224036778492396},null,null,{"$f":"'[1]MONE(M)CAPARD'!Q309","v":9.85},{"$f":"'[1]MONE(M)CAPARD'!R309","v":6.07},{"$f":"'[1]MONE(M)CAPARD'!S309","v":5.98},{"$f":"'[1]MONE(M)CAPARD'!T309","v":8.65},{"$f":"'[1]MONE(M)CAPARD'!U309","v":8.7287822913177706},{"$f":"'[1]MONE(M)CAPARD'!V309","v":7.04},{"$f":"'[1]MONE(M)CAPARD'!W309","v":6.08},null,null,{"$f":"'[1]MONE(M)CAPARD'!AS309","v":5.25},{"$f":"'[1]MONE(M)CAPARD'!AT309","v":"n.a."},{"$f":"'[1]MONE(M)CAPARD'!AU309","v":4},{"$f":"'[1]MONE(M)CAPARD'!AV309","v":7},{"$f":"'[1]MONE(M)CAPARD'!AW309","v":"n.a."},{"$f":"'[1]MONE(M)CAPARD'!AX309","v":6.25},{"$f":"'[1]MONE(M)CAPARD'!AY309","v":"n.a."},null,null,{"$f":"+'Datos_Regional (M)'!CF302","v":17.71606774605068},{"$f":"+'Datos_Regional (M)'!CG302","v":4.5892834973283669},{"$f":"+'Datos_Regional (M)'!CH302","v":8.5450118224117855},{"$f":"+'Datos_Regional (M)'!CI302","v":11.461296669765119},{"$f":"+'Datos_Regional (M)'!CJ302","v":20.597010544536044},{"$f":"+'Datos_Regional (M)'!CK302","v":19.50387132761271},{"$f":"+'Datos_Regional (M)'!CL302","v":38.904317287157419},null,null,941.67862765582856,441.79416666666657,900.29166666666686,339.38115969107946,432.97499999999997,824.9083333333333,1165.4758718333335,3881.0289540135745,5046.5048258469078,null,null,1432.3780676283329,876.18249999999989,1523.4833333333333,775.90356321831939,614.10833333333335,1439.4250000000002,2064.5656675833316,6661.480797513319,8726.0464650966514,null,null,-2780.4518434997444,-3679.5416392497427,null,null,{"$f":"'[1]EXT Comercio(M)'!C309","v":791.27212179999879},{"$f":"'[1]EXT Comercio(M)'!D309","v":405.07999999999902},{"$f":"'[1]EXT Comercio(M)'!E309","v":920.1},{"$f":"'[1]EXT Comercio(M)'!F309","v":362.70234138366413},{"$f":"'[1]EXT Comercio(M)'!G309","v":393.9},{"$f":"'[1]EXT Comercio(M)'!H309","v":831.3},{"$f":"'[1]EXT Comercio(M)'!I309","v":846.0172500000001},{"$f":"'[1]EXT Comercio(M)'!K309","v":3704.354463183663},{"$f":"'[1]EXT Comercio(M)'!L309","v":4550.3717131836675},null,null,{"$f":"'[1]EXT Comercio(M)'!AG309","v":1301.7278230500024},{"$f":"'[1]EXT Comercio(M)'!AH309","v":821.31999999999971},{"$f":"'[1]EXT Comercio(M)'!AI309","v":1513.2},{"$f":"'[1]EXT Comercio(M)'!AJ309","v":770.70106496615517},{"$f":"'[1]EXT Comercio(M)'!AK309","v":631.49999999999966},{"$f":"'[1]EXT Comercio(M)'!AL309","v":1398.1},{"$f":"'[1]EXT Comercio(M)'!AM309","v":1858.2538030000048},{"$f":"'[1]EXT Comercio(M)'!AO309","v":6436.5488880161574},{"$f":"'[1]EXT Comercio(M)'!AP309","v":8294.8026910161716},null,null,{"$f":"'[1]EXT Comercio(M)'!$BS309","v":-2732.1944248324944},{"$f":"'[1]EXT Comercio(M)'!$BT309","v":-3744.4309778324969}]
[null,2015,"Enero",{"$f":"'[1]REAL IPC(M)'!AD310","v":4.3859265741741709},{"$f":"'[1]REAL IPC(M)'!AE310","v":-0.74879006483426835},{"$f":"'[1]REAL IPC(M)'!AF310","v":2.3223449595546679},{"$f":"'[1]REAL IPC(M)'!AG310","v":3.8346984363365428},{"$f":"'[1]REAL IPC(M)'!AH310","v":5.4492658379268457},{"$f":"'[1]REAL IPC(M)'!AI310","v":1.1580030880082419},{"$f":"'[1]REAL IPC(M)'!AJ310","v":0.86970705725709541},null,null,{"$f":"'[1]REAL IMAE(M)'!AG310","v":3.9520010667629308},{"$f":"'[1]REAL IMAE(M)'!AH310","v":0.27257907133785791},{"$f":"'[1]REAL IMAE(M)'!AI310","v":4.6865272074372948},{"$f":"'[1]REAL IMAE(M)'!AJ310","v":2.6346898078082512},{"$f":"'[1]REAL IMAE(M)'!AK310","v":3.4563970138750739},{"$f":"'[1]REAL IMAE(M)'!AL310","v":7.6347126811424664},{"$f":"'[1]REAL IMAE(M)'!AM310","v":5.3688810546803296},null,null,{"$f":"'[1]EXT ITCER(M)'!C310","v":71.85706923142169},{"$f":"'[1]EXT ITCER(M)'!D310","v":91.319705475708133},{"$f":"'[1]EXT ITCER(M)'!E310","v":58.637468464718182},{"$f":"'[1]EXT ITCER(M)'!F310","v":75.717395869408307},{"$f":"'[1]EXT ITCER(M)'!G310","v":95.708582940875672},{"$f":"'[1]EXT ITCER(M)'!H310","v":100.24830121922479},{"$f":"'[1]EXT ITCER(M)'!I310","v":87.200592385836643},null,null,{"$f":"'[1]EXT TC(M)'!J310","v":7.0665265655937812},{"$f":"'[1]EXT TC(M)'!K310","v":0},{"$f":"'[1]EXT TC(M)'!L310","v":-2.6285482272908345},{"$f":"'[1]EXT TC(M)'!M310","v":4.7493919385957337},{"$f":"'[1]EXT TC(M)'!N310","v":4.8934605174955434},{"$f":"'[1]EXT TC(M)'!O310","v":3.7292540558699918},{"$f":"'[1]EXT TC(M)'!P310","v":0},null,null,{"$f":"'[1]EXT RIN(M)'!C310","v":7323.6687877000004},{"$f":"'[1]EXT RIN(M)'!D310","v":2672.6},{"$f":"'[1]EXT RIN(M)'!E310","v":7656},{"$f":"'[1]EXT RIN(M)'!F310","v":3407.6230623486281},{"$f":"'[1]EXT RIN(M)'!G310","v":2157.6},{"$f":"'[1]EXT RIN(M)'!H310","v":4369.8},{"$f":"'[1]EXT RIN(M)'!I310","v":3957.7766050899995},null,null,{"$f":"'[1]EXT RIN(M)'!P310","v":68.803001206105165},{"$f":"'[1]EXT RIN(M)'!Q310","v":98.506806943465648},{"$f":"'[1]EXT RIN(M)'!R310","v":101.11261165666197},{"$f":"'[1]EXT RIN(M)'!S310","v":84.995025802949101},{"$f":"'[1]EXT RIN(M)'!T310","v":118.42733582466975},{"$f":"'[1]EXT RIN(M)'!U310","v":73.67405473804196},{"$f":"'[1]EXT RIN(M)'!V310","v":312.54423122365955},null,null,{"$f":"+'[1]MONE(M)CAPARD'!AE310","v":2.6958360366962064},{"$f":"'[1]MONE(M)CAPARD'!AF310","v":4.915597571073703},{"$f":"'[1]MONE(M)CAPARD'!AG310","v":3.0566686501190055},{"$f":"'[1]MONE(M)CAPARD'!AH310","v":6.3324704195052162},{"$f":"'[1]MONE(M)CAPARD'!AI310","v":2.9146797647675968},{"$f":"'[1]MONE(M)CAPARD'!AJ310","v":5.7948918850165274},{"$f":"'[1]MONE(M)CAPARD'!AK310","v":1.289081708153285},null,null,{"$f":"'[1]MONE(M)CAPARD'!AL310","v":1.95},{"$f":"'[1]MONE(M)CAPARD'!AM310","v":4.13},{"$f":"'[1]MONE(M)CAPARD'!AN310","v":2.94},{"$f":"'[1]MONE(M)CAPARD'!AO310","v":4.0999999999999996},{"$f":"'[1]MONE(M)CAPARD'!AP310","v":3.28},{"$f":"'[1]MONE(M)CAPARD'!AQ310","v":1.79},{"$f":"'[1]MONE(M)CAPARD'!AR310","v":2.17},null,null,{"$f":"'[1]MONE(M)CAPARD'!J310","v":11.873318398930811},{"$f":"'[1]MONE(M)CAPARD'!K310","v":6.6586493697672351},{"$f":"'[1]MONE(M)CAPARD'!L310","v":11.021693301598093},{"$f":"'[1]MONE(M)CAPARD'!M310","v":16.319498027967033},{"$f":"'[1]MONE(M)CAPARD'!N310","v":11.37982498802463},{"$f":"'[1]MONE(M)CAPARD'!O310","v":12.823500381582289},{"$f":"'[1]MONE(M)CAPARD'!P310","v":5.3041622691596553},null,null,{"$f":"'[1]MONE(M)CAPARD'!Q310","v":9.5500000000000007},{"$f":"'[1]MONE(M)CAPARD'!R310","v":5.86},{"$f":"'[1]MONE(M)CAPARD'!S310","v":5.96},{"$f":"'[1]MONE(M)CAPARD'!T310","v":8.68},{"$f":"'[1]MONE(M)CAPARD'!U310","v":9.08},{"$f":"'[1]MONE(M)CAPARD'!V310","v":7.17},{"$f":"'[1]MONE(M)CAPARD'!W310","v":6.22},null,null,{"$f":"'[1]MONE(M)CAPARD'!AS310","v":5.25},{"$f":"'[1]MONE(M)CAPARD'!AT310","v":"n.a."},{"$f":"'[1]MONE(M)CAPARD'!AU310","v":4},{"$f":"'[1]MONE(M)CAPARD'!AV310","v":7},{"$f":"'[1]MONE(M)CAPARD'!AW310","v":"n.a."},{"$f":"'[1]MONE(M)CAPARD'!AX310","v":6.25},{"$f":"'[1]MONE(M)CAPARD'!AY310","v":"n.a."},null,null,{"$f":"+'Datos_Regional (M)'!CF303","v":16.69701817561662},{"$f":"+'Datos_Regional (M)'!CG303","v":5.1274362055206302},{"$f":"+'Datos_Regional (M)'!CH303","v":8.7780408035045276},{"$f":"+'Datos_Regional (M)'!CI303","v":10.884113643042426},{"$f":"+'Datos_Regional (M)'!CJ303","v":20.518058031041299},{"$f":"+'Datos_Regional (M)'!CK303","v":18.393849061736823},{"$f":"+'Datos_Regional (M)'!CL303","v":14.077215555055588},null,null,931.39071035166182,443.54083333333324,903.94166666666672,338.51159638696373,429.51560779874995,821.41666666666663,1180.1143381666668,3868.3170812040421,5048.4314193707096,null,null,1406.2399529108327,872.9649999999998,1507.7333333333336,780.25084998680552,609.16666666666674,1435.125,2076.4710520833319,6611.4808028976395,8687.9518549809709,null,null,-2743.163721693596,-3639.5204356102618,null,null,{"$f":"'[1]EXT Comercio(M)'!C310","v":731.46667235999394},{"$f":"'[1]EXT Comercio(M)'!D310","v":425.66000000000008},{"$f":"'[1]EXT Comercio(M)'!E310","v":879.2},{"$f":"'[1]EXT Comercio(M)'!F310","v":330.6652403506111},{"$f":"'[1]EXT Comercio(M)'!G310","v":392.38729358500007},{"$f":"'[1]EXT Comercio(M)'!H310","v":691.7},{"$f":"'[1]EXT Comercio(M)'!I310","v":1097.180801},{"$f":"'[1]EXT Comercio(M)'!K310","v":3451.0792062956052},{"$f":"'[1]EXT Comercio(M)'!L310","v":4548.2600072956047},null,null,{"$f":"'[1]EXT Comercio(M)'!AG310","v":1204.1686299800003},{"$f":"'[1]EXT Comercio(M)'!AH310","v":857.23},{"$f":"'[1]EXT Comercio(M)'!AI310","v":1358.9},{"$f":"'[1]EXT Comercio(M)'!AJ310","v":732.4309836058801},{"$f":"'[1]EXT Comercio(M)'!AK310","v":544.79999999999995},{"$f":"'[1]EXT Comercio(M)'!AL310","v":1258.0999999999999},{"$f":"'[1]EXT Comercio(M)'!AM310","v":2110.5492549999999},{"$f":"'[1]EXT Comercio(M)'!AO310","v":5955.6296135858811},{"$f":"'[1]EXT Comercio(M)'!AP310","v":8066.178868585881},null,null,{"$f":"'[1]EXT Comercio(M)'!$BS310","v":-2504.550407290275},{"$f":"'[1]EXT Comercio(M)'!$BT310","v":-3517.9188612902749}]
[null,null,"Febrero",{"$f":"'[1]REAL IPC(M)'!AD311","v":3.5270960067377164},{"$f":"'[1]REAL IPC(M)'!AE311","v":-1.0572366022602959},{"$f":"'[1]REAL IPC(M)'!AF311","v":2.4392361111111129},{"$f":"'[1]REAL IPC(M)'!AG311","v":3.6558345642540533},{"$f":"'[1]REAL IPC(M)'!AH311","v":5.5092102810453287},{"$f":"'[1]REAL IPC(M)'!AI311","v":1.0172679090442791},{"$f":"'[1]REAL IPC(M)'!AJ311","v":-0.44933774834437845},null,null,{"$f":"'[1]REAL IMAE(M)'!AG311","v":3.9896403257864748},{"$f":"'[1]REAL IMAE(M)'!AH311","v":0.63362788397820047},{"$f":"'[1]REAL IMAE(M)'!AI311","v":4.4624798613879797},{"$f":"'[1]REAL IMAE(M)'!AJ311","v":3.0277036541773867},{"$f":"'[1]REAL IMAE(M)'!AK311","v":3.3296684493823356},{"$f":"'[1]REAL IMAE(M)'!AL311","v":7.3671183534817652},{"$f":"'[1]REAL IMAE(M)'!AM311","v":5.1843698403962559},null,null,{"$f":"'[1]EXT ITCER(M)'!C311","v":72.204101026653603},{"$f":"'[1]EXT ITCER(M)'!D311","v":91.826140834601304},{"$f":"'[1]EXT ITCER(M)'!E311","v":58.72080524689251},{"$f":"'[1]EXT ITCER(M)'!F311","v":76.150926954456821},{"$f":"'[1]EXT ITCER(M)'!G311","v":95.688979956759113},{"$f":"'[1]EXT ITCER(M)'!H311","v":101.12665223622402},{"$f":"'[1]EXT ITCER(M)'!I311","v":88.269588739797712},null,null,{"$f":"'[1]EXT TC(M)'!J311","v":2.3346705320820891},{"$f":"'[1]EXT TC(M)'!K311","v":0},{"$f":"'[1]EXT TC(M)'!L311","v":-1.5148600371581615},{"$f":"'[1]EXT TC(M)'!M311","v":5.3298154821087271},{"$f":"'[1]EXT TC(M)'!N311","v":4.5262487548145725},{"$f":"'[1]EXT TC(M)'!O311","v":3.8580529864342705},{"$f":"'[1]EXT TC(M)'!P311","v":0},null,null,{"$f":"'[1]EXT RIN(M)'!C311","v":7255.1285616499999},{"$f":"'[1]EXT RIN(M)'!D311","v":2666.7},{"$f":"'[1]EXT RIN(M)'!E311","v":7625.4},{"$f":"'[1]EXT RIN(M)'!F311","v":3477.8266616433898},{"$f":"'[1]EXT RIN(M)'!G311","v":2169.4},{"$f":"'[1]EXT RIN(M)'!H311","v":4575.7},{"$f":"'[1]EXT RIN(M)'!I311","v":4053.25072907},null,null,{"$f":"'[1]EXT RIN(M)'!P311","v":68.418103079881348},{"$f":"'[1]EXT RIN(M)'!Q311","v":99.5268304808056},{"$f":"'[1]EXT RIN(M)'!R311","v":97.485743074460871},{"$f":"'[1]EXT RIN(M)'!S311","v":82.879555371271636},{"$f":"'[1]EXT RIN(M)'!T311","v":114.07312522972923},{"$f":"'[1]EXT RIN(M)'!U311","v":77.510893599556766},{"$f":"'[1]EXT RIN(M)'!V311","v":310.08063107940063},null,null,{"$f":"+'[1]MONE(M)CAPARD'!AE311","v":3.4994741792298507},{"$f":"'[1]MONE(M)CAPARD'!AF311","v":5.2325571112748674},{"$f":"'[1]MONE(M)CAPARD'!AG311","v":2.9390729599186489},{"$f":"'[1]MONE(M)CAPARD'!AH311","v":6.4677164232276541},{"$f":"'[1]MONE(M)CAPARD'!AI311","v":3.4106070133024069},{"$f":"'[1]MONE(M)CAPARD'!AJ311","v":6.3184564610307206},{"$f":"'[1]MONE(M)CAPARD'!AK311","v":2.6612959556683586},null,null,{"$f":"'[1]MONE(M)CAPARD'!AL311","v":1.92},{"$f":"'[1]MONE(M)CAPARD'!AM311","v":4.12},{"$f":"'[1]MONE(M)CAPARD'!AN311","v":2.9},{"$f":"'[1]MONE(M)CAPARD'!AO311","v":4.08},{"$f":"'[1]MONE(M)CAPARD'!AP311","v":3.32043},{"$f":"'[1]MONE(M)CAPARD'!AQ311","v":1.57},{"$f":"'[1]MONE(M)CAPARD'!AR311","v":2.2000000000000002},null,null,{"$f":"'[1]MONE(M)CAPARD'!J311","v":12.762749563073193},{"$f":"'[1]MONE(M)CAPARD'!K311","v":7.1629661016949111},{"$f":"'[1]MONE(M)CAPARD'!L311","v":10.777866282518429},{"$f":"'[1]MONE(M)CAPARD'!M311","v":16.578097613110092},{"$f":"'[1]MONE(M)CAPARD'!N311","v":10.708897045445708},{"$f":"'[1]MONE(M)CAPARD'!O311","v":14.326988237285269},{"$f":"'[1]MONE(M)CAPARD'!P311","v":6.6994408650791879},null,null,{"$f":"'[1]MONE(M)CAPARD'!Q311","v":9.91},{"$f":"'[1]MONE(M)CAPARD'!R311","v":6.03},{"$f":"'[1]MONE(M)CAPARD'!S311","v":5.94},{"$f":"'[1]MONE(M)CAPARD'!T311","v":8.6},{"$f":"'[1]MONE(M)CAPARD'!U311","v":8.9786240588999995},{"$f":"'[1]MONE(M)CAPARD'!V311","v":5.14},{"$f":"'[1]MONE(M)CAPARD'!W311","v":6.22},null,null,{"$f":"'[1]MONE(M)CAPARD'!AS311","v":4.75},{"$f":"'[1]MONE(M)CAPARD'!AT311","v":"n.a."},{"$f":"'[1]MONE(M)CAPARD'!AU311","v":3.5},{"$f":"'[1]MONE(M)CAPARD'!AV311","v":6.75},{"$f":"'[1]MONE(M)CAPARD'!AW311","v":"n.a."},{"$f":"'[1]MONE(M)CAPARD'!AX311","v":6.25},{"$f":"'[1]MONE(M)CAPARD'!AY311","v":"n.a."},null,null,{"$f":"+'Datos_Regional (M)'!CF304","v":12.931486659970215},{"$f":"+'Datos_Regional (M)'!CG304","v":5.1661374272873095},{"$f":"+'Datos_Regional (M)'!CH304","v":9.1821265877380718},{"$f":"+'Datos_Regional (M)'!CI304","v":11.243903785476238},{"$f":"+'Datos_Regional (M)'!CJ304","v":20.051230403604549},{"$f":"+'Datos_Regional (M)'!CK304","v":17.670310205801918},{"$f":"+'Datos_Regional (M)'!CL304","v":14.027674707531013},null,null,915.38878358749525,448.96083333333326,910.55833333333351,342.87362405160678,428.48122252874992,818.33333333333337,1172.24486475,3864.5961301678522,5036.8409949178522,null,null,1390.3407266833337,870.64333333333309,1502.5249999999999,788.70994940279843,614.30000000000007,1437.4833333333333,2061.6044126666657,6604.0023427527994,8665.6067554194651,null,null,-2739.4062125849468,-3628.7657605016116,null,null,{"$f":"'[1]EXT Comercio(M)'!C311","v":776.59821796999529},{"$f":"'[1]EXT Comercio(M)'!D311","v":480.41000000000008},{"$f":"'[1]EXT Comercio(M)'!E311","v":885.1},{"$f":"'[1]EXT Comercio(M)'!F311","v":380.64433197571651},{"$f":"'[1]EXT Comercio(M)'!G311","v":388.58737675999998},{"$f":"'[1]EXT Comercio(M)'!H311","v":749.9},{"$f":"'[1]EXT Comercio(M)'!I311","v":840.85873900000013},{"$f":"'[1]EXT Comercio(M)'!K311","v":3661.2399267057126},{"$f":"'[1]EXT Comercio(M)'!L311","v":4502.0986657057128},null,null,{"$f":"'[1]EXT Comercio(M)'!AG311","v":1193.4670340700052},{"$f":"'[1]EXT Comercio(M)'!AH311","v":806.98},{"$f":"'[1]EXT Comercio(M)'!AI311","v":1293.8},{"$f":"'[1]EXT Comercio(M)'!AJ311","v":800.36900591390008},{"$f":"'[1]EXT Comercio(M)'!AK311","v":605.70000000000005},{"$f":"'[1]EXT Comercio(M)'!AL311","v":1215.4000000000001},{"$f":"'[1]EXT Comercio(M)'!AM311","v":1599.9201800000001},{"$f":"'[1]EXT Comercio(M)'!AO311","v":5915.7160399839049},{"$f":"'[1]EXT Comercio(M)'!AP311","v":7515.6362199839059},null,null,{"$f":"'[1]EXT Comercio(M)'!$BS311","v":-2254.4761132781932},{"$f":"'[1]EXT Comercio(M)'!$BT311","v":-3013.5375542781926}]
[null,null,"Marzo",{"$f":"'[1]REAL IPC(M)'!AD312","v":3.0463139363443643},{"$f":"'[1]REAL IPC(M)'!AE312","v":-0.80916446949722765},{"$f":"'[1]REAL IPC(M)'!AF312","v":2.425082279577353},{"$f":"'[1]REAL IPC(M)'!AG312","v":3.7444933920705017},{"$f":"'[1]REAL IPC(M)'!AH312","v":5.9242221154388943},{"$f":"'[1]REAL IPC(M)'!AI312","v":0.63780933752870139},{"$f":"'[1]REAL IPC(M)'!AJ312","v":0},null,null,{"$f":"'[1]REAL IMAE(M)'!AG312","v":4.1962759170058028},{"$f":"'[1]REAL IMAE(M)'!AH312","v":0.98229853306362136},{"$f":"'[1]REAL IMAE(M)'!AI312","v":4.1787642759946664},{"$f":"'[1]REAL IMAE(M)'!AJ312","v":3.3283859069385509},{"$f":"'[1]REAL IMAE(M)'!AK312","v":3.2959027857529035},{"$f":"'[1]REAL IMAE(M)'!AL312","v":7.1801663423493185},{"$f":"'[1]REAL IMAE(M)'!AM312","v":4.9449141685882836},null,null,{"$f":"'[1]EXT ITCER(M)'!C312","v":72.05084995658207},{"$f":"'[1]EXT ITCER(M)'!D312","v":91.915457872935036},{"$f":"'[1]EXT ITCER(M)'!E312","v":58.822243921579755},{"$f":"'[1]EXT ITCER(M)'!F312","v":76.300020572429702},{"$f":"'[1]EXT ITCER(M)'!G312","v":96.176344298427253},{"$f":"'[1]EXT ITCER(M)'!H312","v":101.3735475586512},{"$f":"'[1]EXT ITCER(M)'!I312","v":88.014520439534735},null,null,{"$f":"'[1]EXT TC(M)'!J312","v":-2.6949220835413348},{"$f":"'[1]EXT TC(M)'!K312","v":0},{"$f":"'[1]EXT TC(M)'!L312","v":-1.3501499446617302},{"$f":"'[1]EXT TC(M)'!M312","v":5.3337170243737706},{"$f":"'[1]EXT TC(M)'!N312","v":4.5088243564176915},{"$f":"'[1]EXT TC(M)'!O312","v":3.5755371655471748},{"$f":"'[1]EXT TC(M)'!P312","v":0},null,null,{"$f":"'[1]EXT RIN(M)'!C312","v":8341.9202438100001},{"$f":"'[1]EXT RIN(M)'!D312","v":2617.5},{"$f":"'[1]EXT RIN(M)'!E312","v":7770.3},{"$f":"'[1]EXT RIN(M)'!F312","v":3583.9203274996353},{"$f":"'[1]EXT RIN(M)'!G312","v":2222.1999999999998},{"$f":"'[1]EXT RIN(M)'!H312","v":4797.8},{"$f":"'[1]EXT RIN(M)'!I312","v":4741.4129657599997},null,null,{"$f":"'[1]EXT RIN(M)'!P312","v":77.704080610033898},{"$f":"'[1]EXT RIN(M)'!Q312","v":97.369081829087961},{"$f":"'[1]EXT RIN(M)'!R312","v":99.138944402531536},{"$f":"'[1]EXT RIN(M)'!S312","v":82.341474316300094},{"$f":"'[1]EXT RIN(M)'!T312","v":115.13209560214779},{"$f":"'[1]EXT RIN(M)'!U312","v":79.411575902641701},{"$f":"'[1]EXT RIN(M)'!V312","v":368.67019090437026},null,null,{"$f":"+'[1]MONE(M)CAPARD'!AE312","v":3.9338486829909822},{"$f":"'[1]MONE(M)CAPARD'!AF312","v":5.130680109990835},{"$f":"'[1]MONE(M)CAPARD'!AG312","v":2.953297818366301},{"$f":"'[1]MONE(M)CAPARD'!AH312","v":6.0779193205944626},{"$f":"'[1]MONE(M)CAPARD'!AI312","v":2.4129868650223774},{"$f":"'[1]MONE(M)CAPARD'!AJ312","v":6.460981916511745},{"$f":"'[1]MONE(M)CAPARD'!AK312","v":2.12},null,null,{"$f":"'[1]MONE(M)CAPARD'!AL312","v":1.74},{"$f":"'[1]MONE(M)CAPARD'!AM312","v":4.28},{"$f":"'[1]MONE(M)CAPARD'!AN312","v":2.92},{"$f":"'[1]MONE(M)CAPARD'!AO312","v":4.05},{"$f":"'[1]MONE(M)CAPARD'!AP312","v":3.96},{"$f":"'[1]MONE(M)CAPARD'!AQ312","v":1.56},{"$f":"'[1]MONE(M)CAPARD'!AR312","v":2.12},null,null,{"$f":"'[1]MONE(M)CAPARD'!J312","v":12.852168658683672},{"$f":"'[1]MONE(M)CAPARD'!K312","v":7.0562612282309818},{"$f":"'[1]MONE(M)CAPARD'!L312","v":10.685778792491108},{"$f":"'[1]MONE(M)CAPARD'!M312","v":16.314607218683634},{"$f":"'[1]MONE(M)CAPARD'!N312","v":9.3391830865296708},{"$f":"'[1]MONE(M)CAPARD'!O312","v":15.016414568193341},{"$f":"'[1]MONE(M)CAPARD'!P312","v":6.16},null,null,{"$f":"'[1]MONE(M)CAPARD'!Q312","v":9.64},{"$f":"'[1]MONE(M)CAPARD'!R312","v":6.19},{"$f":"'[1]MONE(M)CAPARD'!S312","v":5.94},{"$f":"'[1]MONE(M)CAPARD'!T312","v":8.5},{"$f":"'[1]MONE(M)CAPARD'!U312","v":8.0500000000000007},{"$f":"'[1]MONE(M)CAPARD'!V312","v":6.34},{"$f":"'[1]MONE(M)CAPARD'!W312","v":6.16},null,null,{"$f":"'[1]MONE(M)CAPARD'!AS312","v":4.5},{"$f":"'[1]MONE(M)CAPARD'!AT312","v":"n.a."},{"$f":"'[1]MONE(M)CAPARD'!AU312","v":3.5},{"$f":"'[1]MONE(M)CAPARD'!AV312","v":6.5},{"$f":"'[1]MONE(M)CAPARD'!AW312","v":"n.a."},{"$f":"'[1]MONE(M)CAPARD'!AX312","v":6.25},{"$f":"'[1]MONE(M)CAPARD'!AY312","v":"n.a."},null,null,{"$f":"+'Datos_Regional (M)'!CF305","v":12.058696882003694},{"$f":"+'Datos_Regional (M)'!CG305","v":4.211575700329151},{"$f":"+'Datos_Regional (M)'!CH305","v":9.7802627751741866},{"$f":"+'Datos_Regional (M)'!CI305","v":11.136680269175603},{"$f":"+'Datos_Regional (M)'!CJ305","v":19.978461103056677},{"$f":"+'Datos_Regional (M)'!CK305","v":16.428780290331812},{"$f":"+'Datos_Regional (M)'!CL305","v":13.835193778527977},null,null,901.65993863666188,453.33999999999986,907.95000000000016,349.78940505727115,428.31691562624997,815.42500000000007,1185.2906303333334,3856.4812593201823,5041.7718896535171,null,null,1362.7557677400005,868.55583333333323,1507.2416666666668,795.9207733015146,618.6,1436,2082.9344223333319,6589.0740410415156,8672.0084633748465,null,null,-2732.5927817213319,-3630.2365737213299,null,null,{"$f":"'[1]EXT Comercio(M)'!C312","v":884.72415648999436},{"$f":"'[1]EXT Comercio(M)'!D312","v":529.22999999999979},{"$f":"'[1]EXT Comercio(M)'!E312","v":1005},{"$f":"'[1]EXT Comercio(M)'!F312","v":441.78937206797332},{"$f":"'[1]EXT Comercio(M)'!G312","v":470.92831717000001},{"$f":"'[1]EXT Comercio(M)'!H312","v":824.19999999999993},{"$f":"'[1]EXT Comercio(M)'!I312","v":1126.1502929999999},{"$f":"'[1]EXT Comercio(M)'!K312","v":4155.8718457279647},{"$f":"'[1]EXT Comercio(M)'!L312","v":5282.0221387279689},null,null,{"$f":"'[1]EXT Comercio(M)'!AG312","v":1293.3770398300014},{"$f":"'[1]EXT Comercio(M)'!AH312","v":869.99000000000024},{"$f":"'[1]EXT Comercio(M)'!AI312","v":1532.1},{"$f":"'[1]EXT Comercio(M)'!AJ312","v":877.41005905269992},{"$f":"'[1]EXT Comercio(M)'!AK312","v":622.20000000000005},{"$f":"'[1]EXT Comercio(M)'!AL312","v":1461.3},{"$f":"'[1]EXT Comercio(M)'!AM312","v":2001.6181469999999},{"$f":"'[1]EXT Comercio(M)'!AO312","v":6656.3770988827},{"$f":"'[1]EXT Comercio(M)'!AP312","v":8657.9952458826992},null,null,{"$f":"'[1]EXT Comercio(M)'!$BS312","v":-2500.5052531547335},{"$f":"'[1]EXT Comercio(M)'!$BT312","v":-3375.973107154734}]
[null,null,"Abril",{"$f":"'[1]REAL IPC(M)'!AD313","v":1.8050494960438515},{"$f":"'[1]REAL IPC(M)'!AE313","v":-0.32885722115648069},{"$f":"'[1]REAL IPC(M)'!AF313","v":2.5760719225449424},{"$f":"'[1]REAL IPC(M)'!AG313","v":3.5831809872029297},{"$f":"'[1]REAL IPC(M)'!AH313","v":5.6685386031132463},{"$f":"'[1]REAL IPC(M)'!AI313","v":-4.2340587687354693E-2},{"$f":"'[1]REAL IPC(M)'!AJ313","v":0},null,null,{"$f":"'[1]REAL IMAE(M)'!AG313","v":4.5080216333787817},{"$f":"'[1]REAL IMAE(M)'!AH313","v":1.2909393820089055},{"$f":"'[1]REAL IMAE(M)'!AI313","v":3.9769484545473937},{"$f":"'[1]REAL IMAE(M)'!AJ313","v":3.5294554025912834},{"$f":"'[1]REAL IMAE(M)'!AK313","v":3.4012558688520453},{"$f":"'[1]REAL IMAE(M)'!AL313","v":7.2130055876373707},{"$f":"'[1]REAL IMAE(M)'!AM313","v":4.7162590662244401},null,null,{"$f":"'[1]EXT ITCER(M)'!C313","v":72.08573123670422},{"$f":"'[1]EXT ITCER(M)'!D313","v":92.093869114362178},{"$f":"'[1]EXT ITCER(M)'!E313","v":59.354099314228911},{"$f":"'[1]EXT ITCER(M)'!F313","v":76.631137820932736},{"$f":"'[1]EXT ITCER(M)'!G313","v":96.487477392807122},{"$f":"'[1]EXT ITCER(M)'!H313","v":101.9280988991564},{"$f":"'[1]EXT ITCER(M)'!I313","v":87.764903237561981},null,null,{"$f":"'[1]EXT TC(M)'!J313","v":-2.5835600832160268},{"$f":"'[1]EXT TC(M)'!K313","v":0},{"$f":"'[1]EXT TC(M)'!L313","v":-0.57808474525879705},{"$f":"'[1]EXT TC(M)'!M313","v":5.6121095492427298},{"$f":"'[1]EXT TC(M)'!N313","v":4.846601729930569},{"$f":"'[1]EXT TC(M)'!O313","v":3.6798886569241422},{"$f":"'[1]EXT TC(M)'!P313","v":0},null,null,{"$f":"'[1]EXT RIN(M)'!C313","v":8444.1724583100004},{"$f":"'[1]EXT RIN(M)'!D313","v":2739.6},{"$f":"'[1]EXT RIN(M)'!E313","v":7721.3},{"$f":"'[1]EXT RIN(M)'!F313","v":3649.1838767120794},{"$f":"'[1]EXT RIN(M)'!G313","v":2264.4},{"$f":"'[1]EXT RIN(M)'!H313","v":4623.8},{"$f":"'[1]EXT RIN(M)'!I313","v":4231.2672330100004},null,null,{"$f":"'[1]EXT RIN(M)'!P313","v":78.118463224647769},{"$f":"'[1]EXT RIN(M)'!Q313","v":98.429390852275091},{"$f":"'[1]EXT RIN(M)'!R313","v":102.44089972858576},{"$f":"'[1]EXT RIN(M)'!S313","v":84.636655173603501},{"$f":"'[1]EXT RIN(M)'!T313","v":119.82029020613498},{"$f":"'[1]EXT RIN(M)'!U313","v":77.790152227284921},{"$f":"'[1]EXT RIN(M)'!V313","v":329.60079964358448},null,null,{"$f":"+'[1]MONE(M)CAPARD'!AE313","v":5.2010686406688595},{"$f":"'[1]MONE(M)CAPARD'!AF313","v":4.6942947484190256},{"$f":"'[1]MONE(M)CAPARD'!AG313","v":2.7822551828754514},{"$f":"'[1]MONE(M)CAPARD'!AH313","v":6.3203494528768047},{"$f":"'[1]MONE(M)CAPARD'!AI313","v":3.1017418219135195},{"$f":"'[1]MONE(M)CAPARD'!AJ313","v":6.9352770247373741},{"$f":"'[1]MONE(M)CAPARD'!AK313","v":2.19},null,null,{"$f":"'[1]MONE(M)CAPARD'!AL313","v":1.7349999999999999},{"$f":"'[1]MONE(M)CAPARD'!AM313","v":4.3499999999999996},{"$f":"'[1]MONE(M)CAPARD'!AN313","v":2.93},{"$f":"'[1]MONE(M)CAPARD'!AO313","v":4.09},{"$f":"'[1]MONE(M)CAPARD'!AP313","v":3.19},{"$f":"'[1]MONE(M)CAPARD'!AQ313","v":1.33},{"$f":"'[1]MONE(M)CAPARD'!AR313","v":2.19},null,null,{"$f":"'[1]MONE(M)CAPARD'!J313","v":14.002203794920893},{"$f":"'[1]MONE(M)CAPARD'!K313","v":6.3999037668408016},{"$f":"'[1]MONE(M)CAPARD'!L313","v":10.444860947244237},{"$f":"'[1]MONE(M)CAPARD'!M313","v":16.505400635368861},{"$f":"'[1]MONE(M)CAPARD'!N313","v":11.535625042838035},{"$f":"'[1]MONE(M)CAPARD'!O313","v":15.718996103015924},{"$f":"'[1]MONE(M)CAPARD'!P313","v":6.22},null,null,{"$f":"'[1]MONE(M)CAPARD'!Q313","v":9.48},{"$f":"'[1]MONE(M)CAPARD'!R313","v":6.05},{"$f":"'[1]MONE(M)CAPARD'!S313","v":5.93},{"$f":"'[1]MONE(M)CAPARD'!T313","v":8.52},{"$f":"'[1]MONE(M)CAPARD'!U313","v":8.8699999999999992},{"$f":"'[1]MONE(M)CAPARD'!V313","v":6.79},{"$f":"'[1]MONE(M)CAPARD'!W313","v":6.22},null,null,{"$f":"'[1]MONE(M)CAPARD'!AS313","v":4},{"$f":"'[1]MONE(M)CAPARD'!AT313","v":"n.a."},{"$f":"'[1]MONE(M)CAPARD'!AU313","v":3.5},{"$f":"'[1]MONE(M)CAPARD'!AV313","v":6.5},{"$f":"'[1]MONE(M)CAPARD'!AW313","v":"n.a."},{"$f":"'[1]MONE(M)CAPARD'!AX313","v":5.75},{"$f":"'[1]MONE(M)CAPARD'!AY313","v":"n.a."},null,null,{"$f":"+'Datos_Regional (M)'!CF306","v":12.056158189717259},{"$f":"+'Datos_Regional (M)'!CG306","v":3.4435486229064338},{"$f":"+'Datos_Regional (M)'!CH306","v":9.7132518642700774},{"$f":"+'Datos_Regional (M)'!CI306","v":10.910652658718734},{"$f":"+'Datos_Regional (M)'!CJ306","v":19.432255953703393},{"$f":"+'Datos_Regional (M)'!CK306","v":16.096374841323268},{"$f":"+'Datos_Regional (M)'!CL306","v":13.320524239285092},null,null,887.28054768999516,453.6749999999999,905.86666666666667,353.00349379529763,426.45670497588327,819.45833333333337,1160.2945385,3845.7407464611765,5006.0352849611763,null,null,1347.512769547501,859.98166666666646,1499.675,797.75746751435815,617.05833333333339,1418.7083333333333,2040.5149770833323,6540.6935703951931,8581.2085474785254,null,null,-2694.9528239340161,-3575.1732625173481,null,null,{"$f":"'[1]EXT Comercio(M)'!C313","v":815.17193661999522},{"$f":"'[1]EXT Comercio(M)'!D313","v":428.04999999999995},{"$f":"'[1]EXT Comercio(M)'!E313","v":914.59999999999991},{"$f":"'[1]EXT Comercio(M)'!F313","v":400.96906485631712},{"$f":"'[1]EXT Comercio(M)'!G313","v":395.87747219559998},{"$f":"'[1]EXT Comercio(M)'!H313","v":839.2},{"$f":"'[1]EXT Comercio(M)'!I313","v":1035.15975},{"$f":"'[1]EXT Comercio(M)'!K313","v":3793.8684736719133},{"$f":"'[1]EXT Comercio(M)'!L313","v":4829.0282236719104},null,null,{"$f":"'[1]EXT Comercio(M)'!AG313","v":1308.1451822500019},{"$f":"'[1]EXT Comercio(M)'!AH313","v":819.88999999999987},{"$f":"'[1]EXT Comercio(M)'!AI313","v":1430.5},{"$f":"'[1]EXT Comercio(M)'!AJ313","v":793.38119479741533},{"$f":"'[1]EXT Comercio(M)'!AK313","v":552.79999999999995},{"$f":"'[1]EXT Comercio(M)'!AL313","v":1332.6},{"$f":"'[1]EXT Comercio(M)'!AM313","v":1747.280538},{"$f":"'[1]EXT Comercio(M)'!AO313","v":6237.3163770474202},{"$f":"'[1]EXT Comercio(M)'!AP313","v":7984.5969150474193},null,null,{"$f":"'[1]EXT Comercio(M)'!$BS313","v":-2443.4479033755069},{"$f":"'[1]EXT Comercio(M)'!$BT313","v":-3155.5686913755071}]
[null,null,"Mayo ",{"$f":"'[1]REAL IPC(M)'!AD314","v":0.97250322826712299},{"$f":"'[1]REAL IPC(M)'!AE314","v":-0.35545023696682515},{"$f":"'[1]REAL IPC(M)'!AF314","v":2.5530446782818772},{"$f":"'[1]REAL IPC(M)'!AG314","v":3.4921789741724352},{"$f":"'[1]REAL IPC(M)'!AH314","v":5.2210601157111061},{"$f":"'[1]REAL IPC(M)'!AI314","v":0.22860045720091104},{"$f":"'[1]REAL IPC(M)'!AJ314","v":0.35085190039319236},null,null,{"$f":"'[1]REAL IMAE(M)'!AG314","v":4.8330458609073847},{"$f":"'[1]REAL IMAE(M)'!AH314","v":1.5006607921030859},{"$f":"'[1]REAL IMAE(M)'!AI314","v":3.9867745552511935},{"$f":"'[1]REAL IMAE(M)'!AJ314","v":3.7030061231596245},{"$f":"'[1]REAL IMAE(M)'!AK314","v":3.6492724679755186},{"$f":"'[1]REAL IMAE(M)'!AL314","v":7.3547582607079542},{"$f":"'[1]REAL IMAE(M)'!AM314","v":4.540184071309505},null,null,{"$f":"'[1]EXT ITCER(M)'!C314","v":72.770462151684285},{"$f":"'[1]EXT ITCER(M)'!D314","v":92.377031848159731},{"$f":"'[1]EXT ITCER(M)'!E314","v":59.32745299321406},{"$f":"'[1]EXT ITCER(M)'!F314","v":76.688078833362837},{"$f":"'[1]EXT ITCER(M)'!G314","v":96.946202906543164},{"$f":"'[1]EXT ITCER(M)'!H314","v":102.29990972427078},{"$f":"'[1]EXT ITCER(M)'!I314","v":87.785702989494808},null,null,{"$f":"'[1]EXT TC(M)'!J314","v":-3.4472465296413595},{"$f":"'[1]EXT TC(M)'!K314","v":0},{"$f":"'[1]EXT TC(M)'!L314","v":-0.77215478311306174},{"$f":"'[1]EXT TC(M)'!M314","v":5.3633576958517493},{"$f":"'[1]EXT TC(M)'!N314","v":4.7758024600819589},{"$f":"'[1]EXT TC(M)'!O314","v":3.6759460285792924},{"$f":"'[1]EXT TC(M)'!P314","v":0},null,null,{"$f":"'[1]EXT RIN(M)'!C314","v":8309.7627848400007},{"$f":"'[1]EXT RIN(M)'!D314","v":2798.2},{"$f":"'[1]EXT RIN(M)'!E314","v":7649.8},{"$f":"'[1]EXT RIN(M)'!F314","v":3754.532509567844},{"$f":"'[1]EXT RIN(M)'!G314","v":2340.5},{"$f":"'[1]EXT RIN(M)'!H314","v":4925.9654378229834},{"$f":"'[1]EXT RIN(M)'!I314","v":4143.3153343599997},null,null,{"$f":"'[1]EXT RIN(M)'!P314","v":76.304912098592609},{"$f":"'[1]EXT RIN(M)'!Q314","v":101.25635023363648},{"$f":"'[1]EXT RIN(M)'!R314","v":97.987587610573243},{"$f":"'[1]EXT RIN(M)'!S314","v":88.713528243128394},{"$f":"'[1]EXT RIN(M)'!T314","v":121.24863455208626},{"$f":"'[1]EXT RIN(M)'!U314","v":78.385439146867171},{"$f":"'[1]EXT RIN(M)'!V314","v":315.28332358909262},null,null,{"$f":"+'[1]MONE(M)CAPARD'!AE314","v":5.8704068753576095},{"$f":"'[1]MONE(M)CAPARD'!AF314","v":4.6720570749108203},{"$f":"'[1]MONE(M)CAPARD'!AG314","v":2.8638402018502873},{"$f":"'[1]MONE(M)CAPARD'!AH314","v":6.2495746924428737},{"$f":"'[1]MONE(M)CAPARD'!AI314","v":3.1616020873344888},{"$f":"'[1]MONE(M)CAPARD'!AJ314","v":5.8979168778509923},{"$f":"'[1]MONE(M)CAPARD'!AK314","v":1.8327179737669983},null,null,{"$f":"'[1]MONE(M)CAPARD'!AL314","v":1.635},{"$f":"'[1]MONE(M)CAPARD'!AM314","v":4.3},{"$f":"'[1]MONE(M)CAPARD'!AN314","v":3},{"$f":"'[1]MONE(M)CAPARD'!AO314","v":4.0599999999999996},{"$f":"'[1]MONE(M)CAPARD'!AP314","v":3.63},{"$f":"'[1]MONE(M)CAPARD'!AQ314","v":1.7},{"$f":"'[1]MONE(M)CAPARD'!AR314","v":2.19},null,null,{"$f":"'[1]MONE(M)CAPARD'!J314","v":14.744109827679445},{"$f":"'[1]MONE(M)CAPARD'!K314","v":6.4584066587395963},{"$f":"'[1]MONE(M)CAPARD'!L314","v":10.391651808242214},{"$f":"'[1]MONE(M)CAPARD'!M314","v":17.158611599297},{"$f":"'[1]MONE(M)CAPARD'!N314","v":11.75508303341266},{"$f":"'[1]MONE(M)CAPARD'!O314","v":14.248826659908774},{"$f":"'[1]MONE(M)CAPARD'!P314","v":5.8286980018989656},null,null,{"$f":"'[1]MONE(M)CAPARD'!Q314","v":9.39},{"$f":"'[1]MONE(M)CAPARD'!R314","v":6.08},{"$f":"'[1]MONE(M)CAPARD'!S314","v":5.92},{"$f":"'[1]MONE(M)CAPARD'!T314","v":8.57},{"$f":"'[1]MONE(M)CAPARD'!U314","v":8.49},{"$f":"'[1]MONE(M)CAPARD'!V314","v":7.18},{"$f":"'[1]MONE(M)CAPARD'!W314","v":6.2},null,null,{"$f":"'[1]MONE(M)CAPARD'!AS314","v":3.75},{"$f":"'[1]MONE(M)CAPARD'!AT314","v":"n.a."},{"$f":"'[1]MONE(M)CAPARD'!AU314","v":3.5},{"$f":"'[1]MONE(M)CAPARD'!AV314","v":6.5},{"$f":"'[1]MONE(M)CAPARD'!AW314","v":"n.a."},{"$f":"'[1]MONE(M)CAPARD'!AX314","v":5.25},{"$f":"'[1]MONE(M)CAPARD'!AY314","v":"n.a."},null,null,{"$f":"+'Datos_Regional (M)'!CF307","v":11.971831771473251},{"$f":"+'Datos_Regional (M)'!CG307","v":3.3893603511183867},{"$f":"+'Datos_Regional (M)'!CH307","v":9.9093286823153548},{"$f":"+'Datos_Regional (M)'!CI307","v":10.454985662112804},{"$f":"+'Datos_Regional (M)'!CJ307","v":18.83540023820278},{"$f":"+'Datos_Regional (M)'!CK307","v":17.192363549562661},{"$f":"+'Datos_Regional (M)'!CL307","v":12.864878066929819},null,null,873.1065198074956,454.42083333333329,910.14166666666654,349.95090461803733,423.73795372421665,813.4,1146.7640900833333,3824.7578781497491,4971.5219682330826,null,null,1322.9926869350013,852.44833333333315,1489.3416666666665,795.17777963534593,619.31666666666661,1409.2583333333332,2013.7485544999993,6488.5354665703462,8502.2840210703471,null,null,-2663.777588420598,-3530.7620528372631,null,null,{"$f":"'[1]EXT Comercio(M)'!C314","v":884.11918360999812},{"$f":"'[1]EXT Comercio(M)'!D314","v":499.20000000000027},{"$f":"'[1]EXT Comercio(M)'!E314","v":997.8},{"$f":"'[1]EXT Comercio(M)'!F314","v":375.76892987287624},{"$f":"'[1]EXT Comercio(M)'!G314","v":409.97498497999999},{"$f":"'[1]EXT Comercio(M)'!H314","v":818.8},{"$f":"'[1]EXT Comercio(M)'!I314","v":944.64807999999994},{"$f":"'[1]EXT Comercio(M)'!K314","v":3985.6630984628737},{"$f":"'[1]EXT Comercio(M)'!L314","v":4930.3111784628745},null,null,{"$f":"'[1]EXT Comercio(M)'!AG314","v":1257.4437708800001},{"$f":"'[1]EXT Comercio(M)'!AH314","v":882.72000000000025},{"$f":"'[1]EXT Comercio(M)'!AI314","v":1544.2000000000003},{"$f":"'[1]EXT Comercio(M)'!AJ314","v":841.22400730744403},{"$f":"'[1]EXT Comercio(M)'!AK314","v":664.5},{"$f":"'[1]EXT Comercio(M)'!AL314","v":1461.1},{"$f":"'[1]EXT Comercio(M)'!AM314","v":1665.8076890000002},{"$f":"'[1]EXT Comercio(M)'!AO314","v":6651.1877781874427},{"$f":"'[1]EXT Comercio(M)'!AP314","v":8316.9954671874439},null,null,{"$f":"'[1]EXT Comercio(M)'!$BS314","v":-2665.5246797245709},{"$f":"'[1]EXT Comercio(M)'!$BT314","v":-3386.6842887245693}]
[null,null,"Junio",{"$f":"'[1]REAL IPC(M)'!AD315","v":1.0205076632081596},{"$f":"'[1]REAL IPC(M)'!AE315","v":-0.82614616432138965},{"$f":"'[1]REAL IPC(M)'!AF315","v":2.3850377487989025},{"$f":"'[1]REAL IPC(M)'!AG315","v":3.6218761318362906},{"$f":"'[1]REAL IPC(M)'!AH315","v":3.8222189581524764},{"$f":"'[1]REAL IPC(M)'!AI315","v":0.61796326081436048},{"$f":"'[1]REAL IPC(M)'!AJ315","v":0},null,null,{"$f":"'[1]REAL IMAE(M)'!AG315","v":5.0682184624842144},{"$f":"'[1]REAL IMAE(M)'!AH315","v":1.7548532598801185},{"$f":"'[1]REAL IMAE(M)'!AI315","v":4.2058761789317787},{"$f":"'[1]REAL IMAE(M)'!AJ315","v":3.9324546226420281},{"$f":"'[1]REAL IMAE(M)'!AK315","v":4.056110854734821},{"$f":"'[1]REAL IMAE(M)'!AL315","v":7.6284415004513555},{"$f":"'[1]REAL IMAE(M)'!AM315","v":4.4340471477415839},null,null,{"$f":"'[1]EXT ITCER(M)'!C315","v":73.093556754424142},{"$f":"'[1]EXT ITCER(M)'!D315","v":92.776990212957315},{"$f":"'[1]EXT ITCER(M)'!E315","v":59.068494528112559},{"$f":"'[1]EXT ITCER(M)'!F315","v":76.480684220785122},{"$f":"'[1]EXT ITCER(M)'!G315","v":97.787284035549177},{"$f":"'[1]EXT ITCER(M)'!H315","v":102.36269042217884},{"$f":"'[1]EXT ITCER(M)'!I315","v":88.00809068716859},null,null,{"$f":"'[1]EXT TC(M)'!J315","v":-2.7703807407262753},{"$f":"'[1]EXT TC(M)'!K315","v":0},{"$f":"'[1]EXT TC(M)'!L315","v":-2.0760681852590306},{"$f":"'[1]EXT TC(M)'!M315","v":4.8029608255845266},{"$f":"'[1]EXT TC(M)'!N315","v":4.573504364222317},{"$f":"'[1]EXT TC(M)'!O315","v":3.3446104104256595},{"$f":"'[1]EXT TC(M)'!P315","v":0},null,null,{"$f":"'[1]EXT RIN(M)'!C315","v":8270.9554906800004},{"$f":"'[1]EXT RIN(M)'!D315","v":2773.4},{"$f":"'[1]EXT RIN(M)'!E315","v":7717.7},{"$f":"'[1]EXT RIN(M)'!F315","v":3872.492136512335},{"$f":"'[1]EXT RIN(M)'!G315","v":2240.3000000000002},{"$f":"'[1]EXT RIN(M)'!H315","v":4923.9753367940812},{"$f":"'[1]EXT RIN(M)'!I315","v":4344.7100744299996},null,null,{"$f":"'[1]EXT RIN(M)'!P315","v":74.862004719832569},{"$f":"'[1]EXT RIN(M)'!Q315","v":100.3662677565313},{"$f":"'[1]EXT RIN(M)'!R315","v":97.955110481408255},{"$f":"'[1]EXT RIN(M)'!S315","v":86.947330530246376},{"$f":"'[1]EXT RIN(M)'!T315","v":120.9037243308001},{"$f":"'[1]EXT RIN(M)'!U315","v":78.658493115873895},{"$f":"'[1]EXT RIN(M)'!V315","v":331.66118811947547},null,null,{"$f":"+'[1]MONE(M)CAPARD'!AE315","v":5.7211079913200047},{"$f":"'[1]MONE(M)CAPARD'!AF315","v":5.1587651043573892},{"$f":"'[1]MONE(M)CAPARD'!AG315","v":3.032632813809284},{"$f":"'[1]MONE(M)CAPARD'!AH315","v":5.9718315274379599},{"$f":"'[1]MONE(M)CAPARD'!AI315","v":4.1885195672343354},{"$f":"'[1]MONE(M)CAPARD'!AJ315","v":5.4781835773178491},{"$f":"'[1]MONE(M)CAPARD'!AK315","v":2.13},null,null,{"$f":"'[1]MONE(M)CAPARD'!AL315","v":1.55},{"$f":"'[1]MONE(M)CAPARD'!AM315","v":4.29},{"$f":"'[1]MONE(M)CAPARD'!AN315","v":2.99},{"$f":"'[1]MONE(M)CAPARD'!AO315","v":4},{"$f":"'[1]MONE(M)CAPARD'!AP315","v":3.21},{"$f":"'[1]MONE(M)CAPARD'!AQ315","v":1.32},{"$f":"'[1]MONE(M)CAPARD'!AR315","v":2.13},null,null,{"$f":"'[1]MONE(M)CAPARD'!J315","v":14.798472787953008},{"$f":"'[1]MONE(M)CAPARD'!K315","v":7.1149258513365181},{"$f":"'[1]MONE(M)CAPARD'!L315","v":10.51419473772415},{"$f":"'[1]MONE(M)CAPARD'!M315","v":16.654903879762319},{"$f":"'[1]MONE(M)CAPARD'!N315","v":12.296771525047921},{"$f":"'[1]MONE(M)CAPARD'!O315","v":12.802919400975934},{"$f":"'[1]MONE(M)CAPARD'!P315","v":6.18},null,null,{"$f":"'[1]MONE(M)CAPARD'!Q315","v":9.4700000000000006},{"$f":"'[1]MONE(M)CAPARD'!R315","v":6.23},{"$f":"'[1]MONE(M)CAPARD'!S315","v":5.93},{"$f":"'[1]MONE(M)CAPARD'!T315","v":8.5500000000000007},{"$f":"'[1]MONE(M)CAPARD'!U315","v":8.39},{"$f":"'[1]MONE(M)CAPARD'!V315","v":5.74},{"$f":"'[1]MONE(M)CAPARD'!W315","v":6.18},null,null,{"$f":"'[1]MONE(M)CAPARD'!AS315","v":3.5},{"$f":"'[1]MONE(M)CAPARD'!AT315","v":"n.a."},{"$f":"'[1]MONE(M)CAPARD'!AU315","v":3.25},{"$f":"'[1]MONE(M)CAPARD'!AV315","v":6.5},{"$f":"'[1]MONE(M)CAPARD'!AW315","v":"n.a."},{"$f":"'[1]MONE(M)CAPARD'!AX315","v":5},{"$f":"'[1]MONE(M)CAPARD'!AY315","v":"n.a."},null,null,{"$f":"+'Datos_Regional (M)'!CF308","v":13.277985493728405},{"$f":"+'Datos_Regional (M)'!CG308","v":2.8970260345655197},{"$f":"+'Datos_Regional (M)'!CH308","v":10.232592662504004},{"$f":"+'Datos_Regional (M)'!CI308","v":10.018574725837425},{"$f":"+'Datos_Regional (M)'!CJ308","v":19.511477965660461},{"$f":"+'Datos_Regional (M)'!CK308","v":16.079326713944852},{"$f":"+'Datos_Regional (M)'!CL308","v":13.147884218789629},null,null,861.80213313582851,454.96749999999992,911.73333333333323,348.73110304593973,421.59960134088334,812.73333333333323,1120.1775725833334,3811.5670041893186,4931.7445767726504,null,null,1313.9695340500014,855.06916666666655,1489.9499999999998,795.45895443951815,621.27499999999998,1419.9000000000003,1990.0453114166658,6495.6226551561876,8485.6679665728516,null,null,-2684.0556509668691,-3553.9233898002003,null,null,{"$f":"'[1]EXT Comercio(M)'!C315","v":849.9718376199944},{"$f":"'[1]EXT Comercio(M)'!D315","v":478.24999999999955},{"$f":"'[1]EXT Comercio(M)'!E315","v":910.4},{"$f":"'[1]EXT Comercio(M)'!F315","v":374.86238113482904},{"$f":"'[1]EXT Comercio(M)'!G315","v":435.83977140000002},{"$f":"'[1]EXT Comercio(M)'!H315","v":847.7},{"$f":"'[1]EXT Comercio(M)'!I315","v":992.73280999999997},{"$f":"'[1]EXT Comercio(M)'!K315","v":3897.0239901548266},{"$f":"'[1]EXT Comercio(M)'!L315","v":4889.7568001548207},null,null,{"$f":"'[1]EXT Comercio(M)'!AG315","v":1250.4589630900059},{"$f":"'[1]EXT Comercio(M)'!AH315","v":896.09999999999945},{"$f":"'[1]EXT Comercio(M)'!AI315","v":1449.9999999999998},{"$f":"'[1]EXT Comercio(M)'!AJ315","v":790.83273626791777},{"$f":"'[1]EXT Comercio(M)'!AK315","v":659.1},{"$f":"'[1]EXT Comercio(M)'!AL315","v":1487.8000000000002},{"$f":"'[1]EXT Comercio(M)'!AM315","v":1863.9676629999999},{"$f":"'[1]EXT Comercio(M)'!AO315","v":6534.2916993579202},{"$f":"'[1]EXT Comercio(M)'!AP315","v":8398.2593623579232},null,null,{"$f":"'[1]EXT Comercio(M)'!$BS315","v":-2637.2677092031008},{"$f":"'[1]EXT Comercio(M)'!$BT315","v":-3508.5025622031026}]
[null,null,"Julio",{"$f":"'[1]REAL IPC(M)'!AD316","v":-0.3217001270018694},{"$f":"'[1]REAL IPC(M)'!AE316","v":-1.4534621287352167},{"$f":"'[1]REAL IPC(M)'!AF316","v":2.3202251983280719},{"$f":"'[1]REAL IPC(M)'!AG316","v":3.1991373112868566},{"$f":"'[1]REAL IPC(M)'!AH316","v":3.0784704090957198},{"$f":"'[1]REAL IPC(M)'!AI316","v":0.4976383265856979},{"$f":"'[1]REAL IPC(M)'!AJ316","v":0.97465886939571167},null,null,{"$f":"'[1]REAL IMAE(M)'!AG316","v":5.1991829614756169},{"$f":"'[1]REAL IMAE(M)'!AH316","v":2.2354962737869029},{"$f":"'[1]REAL IMAE(M)'!AI316","v":4.5013496096660788},{"$f":"'[1]REAL IMAE(M)'!AJ316","v":4.1435769673659184},{"$f":"'[1]REAL IMAE(M)'!AK316","v":4.6188983503504355},{"$f":"'[1]REAL IMAE(M)'!AL316","v":7.8797745746064791},{"$f":"'[1]REAL IMAE(M)'!AM316","v":4.3364886586890474},null,null,{"$f":"'[1]EXT ITCER(M)'!C316","v":73.229000500914722},{"$f":"'[1]EXT ITCER(M)'!D316","v":92.851208602367919},{"$f":"'[1]EXT ITCER(M)'!E316","v":58.769965621298383},{"$f":"'[1]EXT ITCER(M)'!F316","v":76.200010726410937},{"$f":"'[1]EXT ITCER(M)'!G316","v":98.732435680048951},{"$f":"'[1]EXT ITCER(M)'!H316","v":102.40616115035826},{"$f":"'[1]EXT ITCER(M)'!I316","v":87.929035789509399},null,null,{"$f":"'[1]EXT TC(M)'!J316","v":-0.87861624296239704},{"$f":"'[1]EXT TC(M)'!K316","v":0},{"$f":"'[1]EXT TC(M)'!L316","v":-1.6606407021902168},{"$f":"'[1]EXT TC(M)'!M316","v":4.551346181284857},{"$f":"'[1]EXT TC(M)'!N316","v":4.8197744183154629},{"$f":"'[1]EXT TC(M)'!O316","v":3.3777550799752456},{"$f":"'[1]EXT TC(M)'!P316","v":0},null,null,{"$f":"'[1]EXT RIN(M)'!C316","v":8349.2951866599997},{"$f":"'[1]EXT RIN(M)'!D316","v":2783.6},{"$f":"'[1]EXT RIN(M)'!E316","v":7584.5},{"$f":"'[1]EXT RIN(M)'!F316","v":3795.8601752106215},{"$f":"'[1]EXT RIN(M)'!G316","v":2266.4},{"$f":"'[1]EXT RIN(M)'!H316","v":4736.3999999999996},{"$f":"'[1]EXT RIN(M)'!I316","v":4015.1678141299999},null,null,{"$f":"'[1]EXT RIN(M)'!P316","v":74.489506736513349},{"$f":"'[1]EXT RIN(M)'!Q316","v":98.923202672447488},{"$f":"'[1]EXT RIN(M)'!R316","v":95.286277206793159},{"$f":"'[1]EXT RIN(M)'!S316","v":87.499333982752759},{"$f":"'[1]EXT RIN(M)'!T316","v":118.1033003320489},{"$f":"'[1]EXT RIN(M)'!U316","v":78.505651779746913},{"$f":"'[1]EXT RIN(M)'!V316","v":305.43682196253422},null,null,{"$f":"+'[1]MONE(M)CAPARD'!AE316","v":7.0945232172017842},{"$f":"'[1]MONE(M)CAPARD'!AF316","v":5.7368449981678271},{"$f":"'[1]MONE(M)CAPARD'!AG316","v":3.0881233847436449},{"$f":"'[1]MONE(M)CAPARD'!AH316","v":6.2702681992337039},{"$f":"'[1]MONE(M)CAPARD'!AI316","v":5.7975471230822153},{"$f":"'[1]MONE(M)CAPARD'!AJ316","v":5.6144221569450234},{"$f":"'[1]MONE(M)CAPARD'!AK316","v":1.1937065637065636},null,null,{"$f":"'[1]MONE(M)CAPARD'!AL316","v":1.5699999999999998},{"$f":"'[1]MONE(M)CAPARD'!AM316","v":4.2},{"$f":"'[1]MONE(M)CAPARD'!AN316","v":2.97},{"$f":"'[1]MONE(M)CAPARD'!AO316","v":4.01},{"$f":"'[1]MONE(M)CAPARD'!AP316","v":3.1},{"$f":"'[1]MONE(M)CAPARD'!AQ316","v":1.47},{"$f":"'[1]MONE(M)CAPARD'!AR316","v":2.1800000000000002},null,null,{"$f":"'[1]MONE(M)CAPARD'!J316","v":16.344279695539964},{"$f":"'[1]MONE(M)CAPARD'!K316","v":7.9084078417002557},{"$f":"'[1]MONE(M)CAPARD'!L316","v":10.554877865777408},{"$f":"'[1]MONE(M)CAPARD'!M316","v":17.045552072448608},{"$f":"'[1]MONE(M)CAPARD'!N316","v":14.380123994658691},{"$f":"'[1]MONE(M)CAPARD'!O316","v":13.186739404112462},{"$f":"'[1]MONE(M)CAPARD'!P316","v":5.2046138996139},null,null,{"$f":"'[1]MONE(M)CAPARD'!Q316","v":9.4700000000000006},{"$f":"'[1]MONE(M)CAPARD'!R316","v":6.34},{"$f":"'[1]MONE(M)CAPARD'!S316","v":5.93},{"$f":"'[1]MONE(M)CAPARD'!T316","v":8.6},{"$f":"'[1]MONE(M)CAPARD'!U316","v":8.6999999999999993},{"$f":"'[1]MONE(M)CAPARD'!V316","v":7.09},{"$f":"'[1]MONE(M)CAPARD'!W316","v":6.23},null,null,{"$f":"'[1]MONE(M)CAPARD'!AS316","v":3},{"$f":"'[1]MONE(M)CAPARD'!AT316","v":"n.a."},{"$f":"'[1]MONE(M)CAPARD'!AU316","v":3.25},{"$f":"'[1]MONE(M)CAPARD'!AV316","v":6.25},{"$f":"'[1]MONE(M)CAPARD'!AW316","v":"n.a."},{"$f":"'[1]MONE(M)CAPARD'!AX316","v":5},{"$f":"'[1]MONE(M)CAPARD'!AY316","v":"n.a."},null,null,{"$f":"+'Datos_Regional (M)'!CF309","v":13.269189166411422},{"$f":"+'Datos_Regional (M)'!CG309","v":3.4857918235244645},{"$f":"+'Datos_Regional (M)'!CH309","v":9.5409063367297264},{"$f":"+'Datos_Regional (M)'!CI309","v":10.329499961005828},{"$f":"+'Datos_Regional (M)'!CJ309","v":20.734270259444809},{"$f":"+'Datos_Regional (M)'!CK309","v":15.501000713633983},{"$f":"+'Datos_Regional (M)'!CL309","v":13.002543342728345},null,null,848.61282133416182,459.27916666666653,913.11666666666667,344.34872026264389,420.45317006505002,814.2833333333333,1091.1438900833334,3800.0938783285224,4891.2377684118555,null,null,1317.2128800150003,855.79833333333283,1491.6499999999999,798.9031783554201,622.60833333333335,1419.7916666666667,1978.1309818333327,6505.9643917037538,8484.0953735370858,null,null,-2705.8705133752314,-3592.8576051252298,null,null,{"$f":"'[1]EXT Comercio(M)'!C316","v":792.54423696999515},{"$f":"'[1]EXT Comercio(M)'!D316","v":541.15000000000009},{"$f":"'[1]EXT Comercio(M)'!E316","v":965.19999999999993},{"$f":"'[1]EXT Comercio(M)'!F316","v":309.26164442293742},{"$f":"'[1]EXT Comercio(M)'!G316","v":448.64282469},{"$f":"'[1]EXT Comercio(M)'!H316","v":883.10000000000014},{"$f":"'[1]EXT Comercio(M)'!I316","v":1060.687752},{"$f":"'[1]EXT Comercio(M)'!K316","v":3939.8987060829313},{"$f":"'[1]EXT Comercio(M)'!L316","v":5000.5864580829366},null,null,{"$f":"'[1]EXT Comercio(M)'!AG316","v":1438.3179197599895},{"$f":"'[1]EXT Comercio(M)'!AH316","v":943.32000000000062},{"$f":"'[1]EXT Comercio(M)'!AI316","v":1640.7},{"$f":"'[1]EXT Comercio(M)'!AJ316","v":834.30223741765587},{"$f":"'[1]EXT Comercio(M)'!AK316","v":635.5},{"$f":"'[1]EXT Comercio(M)'!AL316","v":1519.5},{"$f":"'[1]EXT Comercio(M)'!AM316","v":2048.3611490000003},{"$f":"'[1]EXT Comercio(M)'!AO316","v":7011.6401571776514},{"$f":"'[1]EXT Comercio(M)'!AP316","v":9060.0013061776481},null,null,{"$f":"'[1]EXT Comercio(M)'!$BS316","v":-3071.7414510947128},{"$f":"'[1]EXT Comercio(M)'!$BT316","v":-4059.4148480947115}]
[null,null,"Agosto",{"$f":"'[1]REAL IPC(M)'!AD317","v":-0.73828535247684435},{"$f":"'[1]REAL IPC(M)'!AE317","v":-1.9992795389049109},{"$f":"'[1]REAL IPC(M)'!AF317","v":1.9622833843017349},{"$f":"'[1]REAL IPC(M)'!AG317","v":3.086862885857848},{"$f":"'[1]REAL IPC(M)'!AH317","v":2.7469084290107375},{"$f":"'[1]REAL IPC(M)'!AI317","v":0.42849941186355667},{"$f":"'[1]REAL IPC(M)'!AJ317","v":0.41997371879107026},null,null,{"$f":"'[1]REAL IMAE(M)'!AG317","v":5.1592316086125738},{"$f":"'[1]REAL IMAE(M)'!AH317","v":2.6696458840965542},{"$f":"'[1]REAL IMAE(M)'!AI317","v":4.6980881217993185},{"$f":"'[1]REAL IMAE(M)'!AJ317","v":4.2871957769060538},{"$f":"'[1]REAL IMAE(M)'!AK317","v":5.1986037006158119},{"$f":"'[1]REAL IMAE(M)'!AL317","v":7.782475529339294},{"$f":"'[1]REAL IMAE(M)'!AM317","v":4.21037709101219},null,null,{"$f":"'[1]EXT ITCER(M)'!C317","v":73.144766416033391},{"$f":"'[1]EXT ITCER(M)'!D317","v":93.009401465001986},{"$f":"'[1]EXT ITCER(M)'!E317","v":58.651458632240008},{"$f":"'[1]EXT ITCER(M)'!F317","v":76.279423699394499},{"$f":"'[1]EXT ITCER(M)'!G317","v":99.001719336760857},{"$f":"'[1]EXT ITCER(M)'!H317","v":102.11522678123686},{"$f":"'[1]EXT ITCER(M)'!I317","v":88.144831516361762},null,null,{"$f":"'[1]EXT TC(M)'!J317","v":-1.1517985038032916},{"$f":"'[1]EXT TC(M)'!K317","v":0},{"$f":"'[1]EXT TC(M)'!L317","v":-2.0467250858577337},{"$f":"'[1]EXT TC(M)'!M317","v":4.4267902063658857},{"$f":"'[1]EXT TC(M)'!N317","v":4.9502897022629186},{"$f":"'[1]EXT TC(M)'!O317","v":3.5042501189849471},{"$f":"'[1]EXT TC(M)'!P317","v":0},null,null,{"$f":"'[1]EXT RIN(M)'!C317","v":8190.3024225500003},{"$f":"'[1]EXT RIN(M)'!D317","v":2827.3},{"$f":"'[1]EXT RIN(M)'!E317","v":7572.6},{"$f":"'[1]EXT RIN(M)'!F317","v":3743.6341744258889},{"$f":"'[1]EXT RIN(M)'!G317","v":2281.1999999999998},{"$f":"'[1]EXT RIN(M)'!H317","v":4884},{"$f":"'[1]EXT RIN(M)'!I317","v":4454.2348364999998},null,null,{"$f":"'[1]EXT RIN(M)'!P317","v":73.031993275050823},{"$f":"'[1]EXT RIN(M)'!Q317","v":98.527197346773718},{"$f":"'[1]EXT RIN(M)'!R317","v":97.548251547874685},{"$f":"'[1]EXT RIN(M)'!S317","v":87.006340542526161},{"$f":"'[1]EXT RIN(M)'!T317","v":122.24291556191167},{"$f":"'[1]EXT RIN(M)'!U317","v":78.203554780631094},{"$f":"'[1]EXT RIN(M)'!V317","v":337.44335898795111},null,null,{"$f":"+'[1]MONE(M)CAPARD'!AE317","v":7.342493909517315},{"$f":"'[1]MONE(M)CAPARD'!AF317","v":6.2135048704282427},{"$f":"'[1]MONE(M)CAPARD'!AG317","v":3.4500174956260921},{"$f":"'[1]MONE(M)CAPARD'!AH317","v":6.1143941504178416},{"$f":"'[1]MONE(M)CAPARD'!AI317","v":5.893176736805426},{"$f":"'[1]MONE(M)CAPARD'!AJ317","v":6.6231205555090726},{"$f":"'[1]MONE(M)CAPARD'!AK317","v":1.6630419421195546},null,null,{"$f":"'[1]MONE(M)CAPARD'!AL317","v":1.63},{"$f":"'[1]MONE(M)CAPARD'!AM317","v":4.09},{"$f":"'[1]MONE(M)CAPARD'!AN317","v":2.99},{"$f":"'[1]MONE(M)CAPARD'!AO317","v":3.95},{"$f":"'[1]MONE(M)CAPARD'!AP317","v":3.41},{"$f":"'[1]MONE(M)CAPARD'!AQ317","v":1.41},{"$f":"'[1]MONE(M)CAPARD'!AR317","v":2.09},null,null,{"$f":"'[1]MONE(M)CAPARD'!J317","v":16.792260149510486},{"$f":"'[1]MONE(M)CAPARD'!K317","v":8.0910420878515108},{"$f":"'[1]MONE(M)CAPARD'!L317","v":10.913561609597599},{"$f":"'[1]MONE(M)CAPARD'!M317","v":17.231232590529263},{"$f":"'[1]MONE(M)CAPARD'!N317","v":15.831834107781754},{"$f":"'[1]MONE(M)CAPARD'!O317","v":14.041333556429342},{"$f":"'[1]MONE(M)CAPARD'!P317","v":5.775769566969724},null,null,{"$f":"'[1]MONE(M)CAPARD'!Q317","v":9.49},{"$f":"'[1]MONE(M)CAPARD'!R317","v":5.93},{"$f":"'[1]MONE(M)CAPARD'!S317","v":5.92},{"$f":"'[1]MONE(M)CAPARD'!T317","v":8.57},{"$f":"'[1]MONE(M)CAPARD'!U317","v":8.32},{"$f":"'[1]MONE(M)CAPARD'!V317","v":6.92},{"$f":"'[1]MONE(M)CAPARD'!W317","v":6.22},null,null,{"$f":"'[1]MONE(M)CAPARD'!AS317","v":3},{"$f":"'[1]MONE(M)CAPARD'!AT317","v":"n.a."},{"$f":"'[1]MONE(M)CAPARD'!AU317","v":3.25},{"$f":"'[1]MONE(M)CAPARD'!AV317","v":6.25},{"$f":"'[1]MONE(M)CAPARD'!AW317","v":"n.a."},{"$f":"'[1]MONE(M)CAPARD'!AX317","v":5},{"$f":"'[1]MONE(M)CAPARD'!AY317","v":"n.a."},null,null,{"$f":"+'Datos_Regional (M)'!CF310","v":12.603983293749987},{"$f":"+'Datos_Regional (M)'!CG310","v":3.2451821955328919},{"$f":"+'Datos_Regional (M)'!CH310","v":11.152523179917594},{"$f":"+'Datos_Regional (M)'!CI310","v":10.363492187425805},{"$f":"+'Datos_Regional (M)'!CJ310","v":20.187694790074783},{"$f":"+'Datos_Regional (M)'!CK310","v":17.568226435785238},{"$f":"+'Datos_Regional (M)'!CL310","v":12.684926235070337},null,null,831.41866992666212,457.85416666666657,913.47499999999991,340.97385064046188,417.54524979855006,808.14166666666654,1067.1306165833334,3769.408603699007,4836.5392202823414,null,null,1304.7068460491666,858.99249999999972,1490.9666666666669,790.68555090288316,622.75,1412.2416666666668,1961.0816888333336,6480.3432302853835,8441.4249191187137,null,null,-2710.9346265863765,-3604.8856988363755,null,null,{"$f":"'[1]EXT Comercio(M)'!C317","v":749.25543740999797},{"$f":"'[1]EXT Comercio(M)'!D317","v":418.61999999999989},{"$f":"'[1]EXT Comercio(M)'!E317","v":878.30000000000007},{"$f":"'[1]EXT Comercio(M)'!F317","v":262.45675224947496},{"$f":"'[1]EXT Comercio(M)'!G317","v":411.90495680200002},{"$f":"'[1]EXT Comercio(M)'!H317","v":769.09999999999991},{"$f":"'[1]EXT Comercio(M)'!I317","v":872.83735300000001},{"$f":"'[1]EXT Comercio(M)'!K317","v":3489.6371464614713},{"$f":"'[1]EXT Comercio(M)'!L317","v":4362.4744994614739},null,null,{"$f":"'[1]EXT Comercio(M)'!AG317","v":1285.1284877000001},{"$f":"'[1]EXT Comercio(M)'!AH317","v":806.09000000000015},{"$f":"'[1]EXT Comercio(M)'!AI317","v":1454.5},{"$f":"'[1]EXT Comercio(M)'!AJ317","v":713.77866807794851},{"$f":"'[1]EXT Comercio(M)'!AK317","v":625.59999999999991},{"$f":"'[1]EXT Comercio(M)'!AL317","v":1395.9},{"$f":"'[1]EXT Comercio(M)'!AM317","v":1851.9892150000001},{"$f":"'[1]EXT Comercio(M)'!AO317","v":6280.9971557779427},{"$f":"'[1]EXT Comercio(M)'!AP317","v":8132.9863707779368},null,null,{"$f":"'[1]EXT Comercio(M)'!$BS317","v":-2791.3600093164787},{"$f":"'[1]EXT Comercio(M)'!$BT317","v":-3770.5118713164811}]
[null,null,"Setiembre",{"$f":"'[1]REAL IPC(M)'!AD318","v":-0.86419234054089833},{"$f":"'[1]REAL IPC(M)'!AE318","v":-2.2540798845911101},{"$f":"'[1]REAL IPC(M)'!AF318","v":1.8763796909492221},{"$f":"'[1]REAL IPC(M)'!AG318","v":2.7608461814270511},{"$f":"'[1]REAL IPC(M)'!AH318","v":2.7703850726177008},{"$f":"'[1]REAL IPC(M)'!AI318","v":0.3941299790356384},{"$f":"'[1]REAL IPC(M)'!AJ318","v":-0.3937786509493364},null,null,{"$f":"'[1]REAL IMAE(M)'!AG318","v":4.9056467306410738},{"$f":"'[1]REAL IMAE(M)'!AH318","v":2.9872783299859402},{"$f":"'[1]REAL IMAE(M)'!AI318","v":4.6572255168536101},{"$f":"'[1]REAL IMAE(M)'!AJ318","v":4.3535558376300507},{"$f":"'[1]REAL IMAE(M)'!AK318","v":5.650160816668846},{"$f":"'[1]REAL IMAE(M)'!AL318","v":7.3244822457471699},{"$f":"'[1]REAL IMAE(M)'!AM318","v":4.0407947951468088},null,null,{"$f":"'[1]EXT ITCER(M)'!C318","v":73.330490552730438},{"$f":"'[1]EXT ITCER(M)'!D318","v":93.215816746202364},{"$f":"'[1]EXT ITCER(M)'!E318","v":58.891511593536563},{"$f":"'[1]EXT ITCER(M)'!F318","v":76.206463779344048},{"$f":"'[1]EXT ITCER(M)'!G318","v":99.227567923418533},{"$f":"'[1]EXT ITCER(M)'!H318","v":101.99321333943078},{"$f":"'[1]EXT ITCER(M)'!I318","v":88.436080854303668},null,null,{"$f":"'[1]EXT TC(M)'!J318","v":-1.0241656933505086},{"$f":"'[1]EXT TC(M)'!K318","v":0},{"$f":"'[1]EXT TC(M)'!L318","v":-0.44502627990466309},{"$f":"'[1]EXT TC(M)'!M318","v":3.6991538322783248},{"$f":"'[1]EXT TC(M)'!N318","v":5.0403115182667264},{"$f":"'[1]EXT TC(M)'!O318","v":3.3312893320697978},{"$f":"'[1]EXT TC(M)'!P318","v":0},null,null,{"$f":"'[1]EXT RIN(M)'!C318","v":8051.9971898699996},{"$f":"'[1]EXT RIN(M)'!D318","v":2791.8},{"$f":"'[1]EXT RIN(M)'!E318","v":7536.1},{"$f":"'[1]EXT RIN(M)'!F318","v":3672.5778311813669},{"$f":"'[1]EXT RIN(M)'!G318","v":2320.5},{"$f":"'[1]EXT RIN(M)'!H318","v":4720.2},{"$f":"'[1]EXT RIN(M)'!I318","v":4062.3142484099999},null,null,{"$f":"'[1]EXT RIN(M)'!P318","v":70.359329536643799},{"$f":"'[1]EXT RIN(M)'!Q318","v":98.470042611096247},{"$f":"'[1]EXT RIN(M)'!R318","v":97.847257024983961},{"$f":"'[1]EXT RIN(M)'!S318","v":85.242838078869525},{"$f":"'[1]EXT RIN(M)'!T318","v":125.56366276835651},{"$f":"'[1]EXT RIN(M)'!U318","v":78.929606058065616},{"$f":"'[1]EXT RIN(M)'!V318","v":305.30526109029284},null,null,{"$f":"+'[1]MONE(M)CAPARD'!AE318","v":7.4788237626603626},{"$f":"'[1]MONE(M)CAPARD'!AF318","v":6.6949903145466285},{"$f":"'[1]MONE(M)CAPARD'!AG318","v":3.5470639219935047},{"$f":"'[1]MONE(M)CAPARD'!AH318","v":6.2661549197487618},{"$f":"'[1]MONE(M)CAPARD'!AI318","v":6.3175271398425696},{"$f":"'[1]MONE(M)CAPARD'!AJ318","v":6.669583194119614},{"$f":"'[1]MONE(M)CAPARD'!AK318","v":2.5939932425455492},null,null,{"$f":"'[1]MONE(M)CAPARD'!AL318","v":1.6949999999999998},{"$f":"'[1]MONE(M)CAPARD'!AM318","v":4.29},{"$f":"'[1]MONE(M)CAPARD'!AN318","v":3.01},{"$f":"'[1]MONE(M)CAPARD'!AO318","v":3.9},{"$f":"'[1]MONE(M)CAPARD'!AP318","v":3.42},{"$f":"'[1]MONE(M)CAPARD'!AQ318","v":1.6},{"$f":"'[1]MONE(M)CAPARD'!AR318","v":2.19},null,null,{"$f":"'[1]MONE(M)CAPARD'!J318","v":16.789284047309401},{"$f":"'[1]MONE(M)CAPARD'!K318","v":8.9354930356978155},{"$f":"'[1]MONE(M)CAPARD'!L318","v":11.046348862405207},{"$f":"'[1]MONE(M)CAPARD'!M318","v":17.46691905094206},{"$f":"'[1]MONE(M)CAPARD'!N318","v":15.271012409454363},{"$f":"'[1]MONE(M)CAPARD'!O318","v":14.02061059137989},{"$f":"'[1]MONE(M)CAPARD'!P318","v":6.6399252590585007},null,null,{"$f":"'[1]MONE(M)CAPARD'!Q318","v":9.4600000000000009},{"$f":"'[1]MONE(M)CAPARD'!R318","v":6.48},{"$f":"'[1]MONE(M)CAPARD'!S318","v":5.93},{"$f":"'[1]MONE(M)CAPARD'!T318","v":8.5500000000000007},{"$f":"'[1]MONE(M)CAPARD'!U318","v":8.11},{"$f":"'[1]MONE(M)CAPARD'!V318","v":6},{"$f":"'[1]MONE(M)CAPARD'!W318","v":6.22},null,null,{"$f":"'[1]MONE(M)CAPARD'!AS318","v":3},{"$f":"'[1]MONE(M)CAPARD'!AT318","v":"n.a."},{"$f":"'[1]MONE(M)CAPARD'!AU318","v":3.25},{"$f":"'[1]MONE(M)CAPARD'!AV318","v":6.25},{"$f":"'[1]MONE(M)CAPARD'!AW318","v":"n.a."},{"$f":"'[1]MONE(M)CAPARD'!AX318","v":5},{"$f":"'[1]MONE(M)CAPARD'!AY318","v":"n.a."},null,null,{"$f":"+'Datos_Regional (M)'!CF311","v":12.999306736163053},{"$f":"+'Datos_Regional (M)'!CG311","v":3.2418392926455875},{"$f":"+'Datos_Regional (M)'!CH311","v":11.753423583547162},{"$f":"+'Datos_Regional (M)'!CI311","v":10.138723727026422},{"$f":"+'Datos_Regional (M)'!CJ311","v":23.893225825321053},{"$f":"+'Datos_Regional (M)'!CK311","v":20.036367592556314},{"$f":"+'Datos_Regional (M)'!CL311","v":12.407627974956515},null,null,816.82576017582903,458.45749999999998,907.73333333333346,337.68495576615959,414.01466945154999,806.60833333333323,1048.3221635833333,3741.324552060205,4789.6467156435392,null,null,1290.8221605975007,861.04583333333323,1490.4666666666669,788.09699850864524,627.125,1416.1166666666666,1936.5842287500006,6473.6733257728147,8410.2575545228137,null,null,-2732.3487737126075,-3620.6108388792745,null,null,{"$f":"'[1]EXT Comercio(M)'!C318","v":739.37200266999548},{"$f":"'[1]EXT Comercio(M)'!D318","v":442.47000000000025},{"$f":"'[1]EXT Comercio(M)'!E318","v":814.6},{"$f":"'[1]EXT Comercio(M)'!F318","v":245.39730404429517},{"$f":"'[1]EXT Comercio(M)'!G318","v":392.733035836},{"$f":"'[1]EXT Comercio(M)'!H318","v":820.3},{"$f":"'[1]EXT Comercio(M)'!I318","v":1151.7252490000001},{"$f":"'[1]EXT Comercio(M)'!K318","v":3454.8723425502903},{"$f":"'[1]EXT Comercio(M)'!L318","v":4606.5975915502931},null,null,{"$f":"'[1]EXT Comercio(M)'!AG318","v":1236.4138271800052},{"$f":"'[1]EXT Comercio(M)'!AH318","v":867.80000000000018},{"$f":"'[1]EXT Comercio(M)'!AI318","v":1536.3999999999999},{"$f":"'[1]EXT Comercio(M)'!AJ318","v":752.55843301540017},{"$f":"'[1]EXT Comercio(M)'!AK318","v":615.5},{"$f":"'[1]EXT Comercio(M)'!AL318","v":1467.4},{"$f":"'[1]EXT Comercio(M)'!AM318","v":2162.3750170000003},{"$f":"'[1]EXT Comercio(M)'!AO318","v":6476.0722601954185},{"$f":"'[1]EXT Comercio(M)'!AP318","v":8638.447277195417},null,null,{"$f":"'[1]EXT Comercio(M)'!$BS318","v":-3021.1999176451136},{"$f":"'[1]EXT Comercio(M)'!$BT318","v":-4031.8496856451129}]
[null,null,"Octubre",{"$f":"'[1]REAL IPC(M)'!AD319","v":-0.85644267495964543},{"$f":"'[1]REAL IPC(M)'!AE319","v":-0.18924033522573105},{"$f":"'[1]REAL IPC(M)'!AF319","v":2.2295693455408694},{"$f":"'[1]REAL IPC(M)'!AG319","v":2.5384340364676521},{"$f":"'[1]REAL IPC(M)'!AH319","v":3.0303933883283189},{"$f":"'[1]REAL IPC(M)'!AI319","v":1.2253462022660457},{"$f":"'[1]REAL IPC(M)'!AJ319","v":-0.38834951456311234},null,null,{"$f":"'[1]REAL IMAE(M)'!AG319","v":4.633989285279287},{"$f":"'[1]REAL IMAE(M)'!AH319","v":3.2053543723547899},{"$f":"'[1]REAL IMAE(M)'!AI319","v":4.304813585122667},{"$f":"'[1]REAL IMAE(M)'!AJ319","v":4.3661928455510637},{"$f":"'[1]REAL IMAE(M)'!AK319","v":5.7981602347201839},{"$f":"'[1]REAL IMAE(M)'!AL319","v":6.7268233362813694},{"$f":"'[1]REAL IMAE(M)'!AM319","v":3.8708775852431465},null,null,{"$f":"'[1]EXT ITCER(M)'!C319","v":73.445219101405456},{"$f":"'[1]EXT ITCER(M)'!D319","v":91.197024217335198},{"$f":"'[1]EXT ITCER(M)'!E319","v":58.495809616500992},{"$f":"'[1]EXT ITCER(M)'!F319","v":76.592561876941971},{"$f":"'[1]EXT ITCER(M)'!G319","v":99.323900812281309},{"$f":"'[1]EXT ITCER(M)'!H319","v":101.46877626860883},{"$f":"'[1]EXT ITCER(M)'!I319","v":88.482468835873945},null,null,{"$f":"'[1]EXT TC(M)'!J319","v":-1.026231970845136},{"$f":"'[1]EXT TC(M)'!K319","v":0},{"$f":"'[1]EXT TC(M)'!L319","v":0.48227653406028015},{"$f":"'[1]EXT TC(M)'!M319","v":3.7376564768159608},{"$f":"'[1]EXT TC(M)'!N319","v":5.1488665624626},{"$f":"'[1]EXT TC(M)'!O319","v":3.2488048982051736},{"$f":"'[1]EXT TC(M)'!P319","v":0},null,null,{"$f":"'[1]EXT RIN(M)'!C319","v":7909.9839506099997},{"$f":"'[1]EXT RIN(M)'!D319","v":2689.1},{"$f":"'[1]EXT RIN(M)'!E319","v":7564.4},{"$f":"'[1]EXT RIN(M)'!F319","v":3581.5278330797746},{"$f":"'[1]EXT RIN(M)'!G319","v":2349.6999999999998},{"$f":"'[1]EXT RIN(M)'!H319","v":4621.3132722143491},{"$f":"'[1]EXT RIN(M)'!I319","v":3904.0534608100002},null,null,{"$f":"'[1]EXT RIN(M)'!P319","v":69.023524972719898},{"$f":"'[1]EXT RIN(M)'!Q319","v":94.619886045159006},{"$f":"'[1]EXT RIN(M)'!R319","v":97.775116178283554},{"$f":"'[1]EXT RIN(M)'!S319","v":87.420115230058727},{"$f":"'[1]EXT RIN(M)'!T319","v":126.93019465507354},{"$f":"'[1]EXT RIN(M)'!U319","v":78.541471735727399},{"$f":"'[1]EXT RIN(M)'!V319","v":285.30970433785706},null,null,{"$f":"+'[1]MONE(M)CAPARD'!AE319","v":7.1678310388453195},{"$f":"'[1]MONE(M)CAPARD'!AF319","v":4.4476570964246962},{"$f":"'[1]MONE(M)CAPARD'!AG319","v":3.1893224977195378},{"$f":"'[1]MONE(M)CAPARD'!AH319","v":6.3796234309623339},{"$f":"'[1]MONE(M)CAPARD'!AI319","v":6.3833446617973877},{"$f":"'[1]MONE(M)CAPARD'!AJ319","v":6.3172456678550759},{"$f":"'[1]MONE(M)CAPARD'!AK319","v":2.417738791423008},null,null,{"$f":"'[1]MONE(M)CAPARD'!AL319","v":1.7949999999999999},{"$f":"'[1]MONE(M)CAPARD'!AM319","v":4.25},{"$f":"'[1]MONE(M)CAPARD'!AN319","v":2.98},{"$f":"'[1]MONE(M)CAPARD'!AO319","v":3.86},{"$f":"'[1]MONE(M)CAPARD'!AP319","v":3.19},{"$f":"'[1]MONE(M)CAPARD'!AQ319","v":2.21},{"$f":"'[1]MONE(M)CAPARD'!AR319","v":2.02},null,null,{"$f":"'[1]MONE(M)CAPARD'!J319","v":16.739809547632539},{"$f":"'[1]MONE(M)CAPARD'!K319","v":6.4013542795232876},{"$f":"'[1]MONE(M)CAPARD'!L319","v":10.652916493904959},{"$f":"'[1]MONE(M)CAPARD'!M319","v":17.302357043235695},{"$f":"'[1]MONE(M)CAPARD'!N319","v":14.404959100033444},{"$f":"'[1]MONE(M)CAPARD'!O319","v":12.906504435784766},{"$f":"'[1]MONE(M)CAPARD'!P319","v":6.5738791423002008},null,null,{"$f":"'[1]MONE(M)CAPARD'!Q319","v":9.5399999999999991},{"$f":"'[1]MONE(M)CAPARD'!R319","v":6.2},{"$f":"'[1]MONE(M)CAPARD'!S319","v":5.91},{"$f":"'[1]MONE(M)CAPARD'!T319","v":8.6999999999999993},{"$f":"'[1]MONE(M)CAPARD'!U319","v":8.5500000000000007},{"$f":"'[1]MONE(M)CAPARD'!V319","v":5.87},{"$f":"'[1]MONE(M)CAPARD'!W319","v":6.16},null,null,{"$f":"'[1]MONE(M)CAPARD'!AS319","v":2.25},{"$f":"'[1]MONE(M)CAPARD'!AT319","v":"n.a."},{"$f":"'[1]MONE(M)CAPARD'!AU319","v":3},{"$f":"'[1]MONE(M)CAPARD'!AV319","v":6.25},{"$f":"'[1]MONE(M)CAPARD'!AW319","v":"n.a."},{"$f":"'[1]MONE(M)CAPARD'!AX319","v":5},{"$f":"'[1]MONE(M)CAPARD'!AY319","v":"n.a."},null,null,{"$f":"+'Datos_Regional (M)'!CF312","v":12.259401981045471},{"$f":"+'Datos_Regional (M)'!CG312","v":3.6999330699529542},{"$f":"+'Datos_Regional (M)'!CH312","v":12.087738621359833},{"$f":"+'Datos_Regional (M)'!CI312","v":9.5896360826378313},{"$f":"+'Datos_Regional (M)'!CJ312","v":24.631302521017929},{"$f":"+'Datos_Regional (M)'!CK312","v":19.389373922632135},{"$f":"+'Datos_Regional (M)'!CL312","v":11.992599280711879},null,null,803.92479219832887,462.37499999999994,902.875,334.80157746786125,413.86884262904999,799.51666666666677,1023.0752578333335,3717.3618789619068,4740.4371367952408,null,null,1287.835189924167,860.57499999999982,1488.2250000000001,786.36320152870758,624.19166666666672,1406.0166666666667,1907.1251086666662,6453.2067247862078,8360.3318334528758,null,null,-2735.8448458243015,-3619.8946966576332,null,null,{"$f":"'[1]EXT Comercio(M)'!C319","v":813.50334179999447},{"$f":"'[1]EXT Comercio(M)'!D319","v":474.11999999999989},{"$f":"'[1]EXT Comercio(M)'!E319","v":825},{"$f":"'[1]EXT Comercio(M)'!F319","v":265.70183713465093},{"$f":"'[1]EXT Comercio(M)'!G319","v":436.35007813000004},{"$f":"'[1]EXT Comercio(M)'!H319","v":785.19999999999993},{"$f":"'[1]EXT Comercio(M)'!I319","v":1237.348577},{"$f":"'[1]EXT Comercio(M)'!K319","v":3599.8752570646466},{"$f":"'[1]EXT Comercio(M)'!L319","v":4837.2238340646436},null,null,{"$f":"'[1]EXT Comercio(M)'!AG319","v":1362.2647755799967},{"$f":"'[1]EXT Comercio(M)'!AH319","v":886.34999999999854},{"$f":"'[1]EXT Comercio(M)'!AI319","v":1548.3},{"$f":"'[1]EXT Comercio(M)'!AJ319","v":767.99935821342888},{"$f":"'[1]EXT Comercio(M)'!AK319","v":670.3},{"$f":"'[1]EXT Comercio(M)'!AL319","v":1456.8},{"$f":"'[1]EXT Comercio(M)'!AM319","v":2095.983745},{"$f":"'[1]EXT Comercio(M)'!AO319","v":6692.0141337934183},{"$f":"'[1]EXT Comercio(M)'!AP319","v":8787.9978787934233},null,null,{"$f":"'[1]EXT Comercio(M)'!$BS319","v":-3092.138876728779},{"$f":"'[1]EXT Comercio(M)'!$BT319","v":-3950.7740447287797}]
[null,null,"Noviembre",{"$f":"'[1]REAL IPC(M)'!AD320","v":-1.203773680354179},{"$f":"'[1]REAL IPC(M)'!AE320","v":0.26268115942028264},{"$f":"'[1]REAL IPC(M)'!AF320","v":2.5129029528724924},{"$f":"'[1]REAL IPC(M)'!AG320","v":2.1018881368008673},{"$f":"'[1]REAL IPC(M)'!AH320","v":1.9860749754835074},{"$f":"'[1]REAL IPC(M)'!AI320","v":1.5380736258194641},{"$f":"'[1]REAL IPC(M)'!AJ320","v":0},null,null,{"$f":"'[1]REAL IMAE(M)'!AG320","v":4.4441757003880884},{"$f":"'[1]REAL IMAE(M)'!AH320","v":3.0018634587657136},{"$f":"'[1]REAL IMAE(M)'!AI320","v":3.7260787739765981},{"$f":"'[1]REAL IMAE(M)'!AJ320","v":4.2638375948887646},{"$f":"'[1]REAL IMAE(M)'!AK320","v":5.5983082631573398},{"$f":"'[1]REAL IMAE(M)'!AL320","v":6.2393276519933556},{"$f":"'[1]REAL IMAE(M)'!AM320","v":3.7367908787541713},null,null,{"$f":"'[1]EXT ITCER(M)'!C320","v":73.142963996194979},{"$f":"'[1]EXT ITCER(M)'!D320","v":91.062087423850741},{"$f":"'[1]EXT ITCER(M)'!E320","v":57.811377058093122},{"$f":"'[1]EXT ITCER(M)'!F320","v":76.693927221526025},{"$f":"'[1]EXT ITCER(M)'!G320","v":99.06969747132031},{"$f":"'[1]EXT ITCER(M)'!H320","v":101.31630393627147},{"$f":"'[1]EXT ITCER(M)'!I320","v":88.295710625009363},null,null,{"$f":"'[1]EXT TC(M)'!J320","v":-0.78058792497471963},{"$f":"'[1]EXT TC(M)'!K320","v":0},{"$f":"'[1]EXT TC(M)'!L320","v":0.29567820530694811},{"$f":"'[1]EXT TC(M)'!M320","v":3.7017864663268569},{"$f":"'[1]EXT TC(M)'!N320","v":5.1803441903773892},{"$f":"'[1]EXT TC(M)'!O320","v":2.9665973854873071},{"$f":"'[1]EXT TC(M)'!P320","v":0},null,null,{"$f":"'[1]EXT RIN(M)'!C320","v":7895.1279943199997},{"$f":"'[1]EXT RIN(M)'!D320","v":2714.4},{"$f":"'[1]EXT RIN(M)'!E320","v":7421.7},{"$f":"'[1]EXT RIN(M)'!F320","v":3543.4519604293264},{"$f":"'[1]EXT RIN(M)'!G320","v":2328.6999999999998},{"$f":"'[1]EXT RIN(M)'!H320","v":4875.8326268282563},{"$f":"'[1]EXT RIN(M)'!I320","v":3603.1309214500002},null,null,{"$f":"'[1]EXT RIN(M)'!P320","v":67.900323711987767},{"$f":"'[1]EXT RIN(M)'!Q320","v":95.527212093356539},{"$f":"'[1]EXT RIN(M)'!R320","v":97.57769355080282},{"$f":"'[1]EXT RIN(M)'!S320","v":85.947248947707749},{"$f":"'[1]EXT RIN(M)'!T320","v":125.58313735891318},{"$f":"'[1]EXT RIN(M)'!U320","v":78.783908521375324},{"$f":"'[1]EXT RIN(M)'!V320","v":254.64428777005352},null,null,{"$f":"+'[1]MONE(M)CAPARD'!AE320","v":7.2915474089537113},{"$f":"'[1]MONE(M)CAPARD'!AF320","v":3.9768723461920761},{"$f":"'[1]MONE(M)CAPARD'!AG320","v":2.9138742159128435},{"$f":"'[1]MONE(M)CAPARD'!AH320","v":7.1478715980460441},{"$f":"'[1]MONE(M)CAPARD'!AI320","v":6.8963844128067571},{"$f":"'[1]MONE(M)CAPARD'!AJ320","v":6.984499627514281},{"$f":"'[1]MONE(M)CAPARD'!AK320","v":2.04},null,null,{"$f":"'[1]MONE(M)CAPARD'!AL320","v":1.855},{"$f":"'[1]MONE(M)CAPARD'!AM320","v":4.25},{"$f":"'[1]MONE(M)CAPARD'!AN320","v":2.98},{"$f":"'[1]MONE(M)CAPARD'!AO320","v":3.9},{"$f":"'[1]MONE(M)CAPARD'!AP320","v":3.43},{"$f":"'[1]MONE(M)CAPARD'!AQ320","v":1.64},{"$f":"'[1]MONE(M)CAPARD'!AR320","v":2.04},null,null,{"$f":"'[1]MONE(M)CAPARD'!J320","v":16.664375041094384},{"$f":"'[1]MONE(M)CAPARD'!K320","v":6.0414490920589117},{"$f":"'[1]MONE(M)CAPARD'!L320","v":10.347084846483988},{"$f":"'[1]MONE(M)CAPARD'!M320","v":17.656981856245622},{"$f":"'[1]MONE(M)CAPARD'!N320","v":14.837553346512596},{"$f":"'[1]MONE(M)CAPARD'!O320","v":13.996647628507576},{"$f":"'[1]MONE(M)CAPARD'!P320","v":6.1},null,null,{"$f":"'[1]MONE(M)CAPARD'!Q320","v":9.74},{"$f":"'[1]MONE(M)CAPARD'!R320","v":6.32},{"$f":"'[1]MONE(M)CAPARD'!S320","v":5.91},{"$f":"'[1]MONE(M)CAPARD'!T320","v":8.51},{"$f":"'[1]MONE(M)CAPARD'!U320","v":8.6},{"$f":"'[1]MONE(M)CAPARD'!V320","v":5.94},{"$f":"'[1]MONE(M)CAPARD'!W320","v":6.1},null,null,{"$f":"'[1]MONE(M)CAPARD'!AS320","v":2.25},{"$f":"'[1]MONE(M)CAPARD'!AT320","v":"n.a."},{"$f":"'[1]MONE(M)CAPARD'!AU320","v":3},{"$f":"'[1]MONE(M)CAPARD'!AV320","v":6.25},{"$f":"'[1]MONE(M)CAPARD'!AW320","v":"n.a."},{"$f":"'[1]MONE(M)CAPARD'!AX320","v":5},{"$f":"'[1]MONE(M)CAPARD'!AY320","v":"n.a."},null,null,{"$f":"+'Datos_Regional (M)'!CF313","v":11.559122575520586},{"$f":"+'Datos_Regional (M)'!CG313","v":4.0234191604699099},{"$f":"+'Datos_Regional (M)'!CH313","v":11.858566848849094},{"$f":"+'Datos_Regional (M)'!CI313","v":9.5772788759358463},{"$f":"+'Datos_Regional (M)'!CJ313","v":23.165517232638532},{"$f":"+'Datos_Regional (M)'!CK313","v":17.894825689489615},{"$f":"+'Datos_Regional (M)'!CL313","v":12.369504045443591},null,null,803.1661574983292,460.91583333333324,898.47499999999991,334.07336990891679,412.26127555404997,800.69166666666661,1017.5868812500001,3709.5833029612963,4727.1701842112961,null,null,1292.2420072083339,859.18083333333334,1480.3916666666667,784.80800315262616,630.55833333333339,1407.1666666666667,1891.1332082500005,6454.3475103609599,8345.4807186109629,null,null,-2744.7642073996644,-3618.3105343996644,null,null,{"$f":"'[1]EXT Comercio(M)'!C320","v":809.99474465999822},{"$f":"'[1]EXT Comercio(M)'!D320","v":408.75},{"$f":"'[1]EXT Comercio(M)'!E320","v":786.4},{"$f":"'[1]EXT Comercio(M)'!F320","v":258.66123941365538},{"$f":"'[1]EXT Comercio(M)'!G320","v":370.0091951},{"$f":"'[1]EXT Comercio(M)'!H320","v":747.8},{"$f":"'[1]EXT Comercio(M)'!I320","v":1005.695921},{"$f":"'[1]EXT Comercio(M)'!K320","v":3381.6151791736556},{"$f":"'[1]EXT Comercio(M)'!L320","v":4387.311100173647},null,null,{"$f":"'[1]EXT Comercio(M)'!AG320","v":1375.9906331299981},{"$f":"'[1]EXT Comercio(M)'!AH320","v":852.38000000000102},{"$f":"'[1]EXT Comercio(M)'!AI320","v":1462.1000000000001},{"$f":"'[1]EXT Comercio(M)'!AJ320","v":742.70828919566816},{"$f":"'[1]EXT Comercio(M)'!AK320","v":739.2},{"$f":"'[1]EXT Comercio(M)'!AL320","v":1432},{"$f":"'[1]EXT Comercio(M)'!AM320","v":1687.4920979999999},{"$f":"'[1]EXT Comercio(M)'!AO320","v":6604.3789223256608},{"$f":"'[1]EXT Comercio(M)'!AP320","v":8291.8710203256633},null,null,{"$f":"'[1]EXT Comercio(M)'!$BS320","v":-3222.7637431520125},{"$f":"'[1]EXT Comercio(M)'!$BT320","v":-3904.559920152009}]
[null,null,"Diciembre ",{"$f":"'[1]REAL IPC(M)'!AD321","v":-0.80758133900739537},{"$f":"'[1]REAL IPC(M)'!AE321","v":1.0136986301369859},{"$f":"'[1]REAL IPC(M)'!AF321","v":3.0662375063527056},{"$f":"'[1]REAL IPC(M)'!AG321","v":2.3571428571428652},{"$f":"'[1]REAL IPC(M)'!AH321","v":3.0522004919302783},{"$f":"'[1]REAL IPC(M)'!AI321","v":2.3444773592890362},{"$f":"'[1]REAL IPC(M)'!AJ321","v":0.25954604670277082},null,null,{"$f":"'[1]REAL IMAE(M)'!AG321","v":4.4137875720363002},{"$f":"'[1]REAL IMAE(M)'!AH321","v":2.4897264447914331},{"$f":"'[1]REAL IMAE(M)'!AI321","v":3.0944654244338667},{"$f":"'[1]REAL IMAE(M)'!AJ321","v":3.9902641188724703},{"$f":"'[1]REAL IMAE(M)'!AK321","v":5.1814492905193683},{"$f":"'[1]REAL IMAE(M)'!AL321","v":5.9291804082279995},{"$f":"'[1]REAL IMAE(M)'!AM321","v":3.6201759855885771},null,null,{"$f":"'[1]EXT ITCER(M)'!C321","v":72.869849722570052},{"$f":"'[1]EXT ITCER(M)'!D321","v":90.816556172832932},{"$f":"'[1]EXT ITCER(M)'!E321","v":57.167949036528654},{"$f":"'[1]EXT ITCER(M)'!F321","v":76.933758106435548},{"$f":"'[1]EXT ITCER(M)'!G321","v":98.030674946344305},{"$f":"'[1]EXT ITCER(M)'!H321","v":101.12193070166587},{"$f":"'[1]EXT ITCER(M)'!I321","v":88.07984346747034},null,null,{"$f":"'[1]EXT TC(M)'!J321","v":-0.2356701057315925},{"$f":"'[1]EXT TC(M)'!K321","v":0},{"$f":"'[1]EXT TC(M)'!L321","v":-0.12315707982340751},{"$f":"'[1]EXT TC(M)'!M321","v":3.7961426664371767},{"$f":"'[1]EXT TC(M)'!N321","v":5.2408433510006649},{"$f":"'[1]EXT TC(M)'!O321","v":2.9347469049803414},{"$f":"'[1]EXT TC(M)'!P321","v":0},null,null,{"$f":"'[1]EXT RIN(M)'!C321","v":7834.0881326400004},{"$f":"'[1]EXT RIN(M)'!D321","v":2670.2},{"$f":"'[1]EXT RIN(M)'!E321","v":7751.2},{"$f":"'[1]EXT RIN(M)'!F321","v":3822.2649997223657},{"$f":"'[1]EXT RIN(M)'!G321","v":2401.1999999999998},{"$f":"'[1]EXT RIN(M)'!H321","v":5195.054100524937},{"$f":"'[1]EXT RIN(M)'!I321","v":3896.1141070399995},null,null,{"$f":"'[1]EXT RIN(M)'!P321","v":67.059877439721845},{"$f":"'[1]EXT RIN(M)'!Q321","v":94.548065769365323},{"$f":"'[1]EXT RIN(M)'!R321","v":94.657959325991925},{"$f":"'[1]EXT RIN(M)'!S321","v":87.398820775023395},{"$f":"'[1]EXT RIN(M)'!T321","v":119.70372807580168},{"$f":"'[1]EXT RIN(M)'!U321","v":76.938277147091355},{"$f":"'[1]EXT RIN(M)'!V321","v":256.18303271039099},null,null,{"$f":"+'[1]MONE(M)CAPARD'!AE321","v":6.8125986141164763},{"$f":"'[1]MONE(M)CAPARD'!AF321","v":3.2830214266341202},{"$f":"'[1]MONE(M)CAPARD'!AG321","v":2.2934401709401668},{"$f":"'[1]MONE(M)CAPARD'!AH321","v":6.4312630844382337},{"$f":"'[1]MONE(M)CAPARD'!AI321","v":5.218171360665691},{"$f":"'[1]MONE(M)CAPARD'!AJ321","v":5.8874917300694696},{"$f":"'[1]MONE(M)CAPARD'!AK321","v":1.8356894937863686},null,null,{"$f":"'[1]MONE(M)CAPARD'!AL321","v":1.885},{"$f":"'[1]MONE(M)CAPARD'!AM321","v":4.33},{"$f":"'[1]MONE(M)CAPARD'!AN321","v":2.98},{"$f":"'[1]MONE(M)CAPARD'!AO321","v":3.95},{"$f":"'[1]MONE(M)CAPARD'!AP321","v":3.38},{"$f":"'[1]MONE(M)CAPARD'!AQ321","v":1.38},{"$f":"'[1]MONE(M)CAPARD'!AR321","v":2.1},null,null,{"$f":"'[1]MONE(M)CAPARD'!J321","v":16.400024879527027},{"$f":"'[1]MONE(M)CAPARD'!K321","v":5.2134526715486853},{"$f":"'[1]MONE(M)CAPARD'!L321","v":9.69644641683103},{"$f":"'[1]MONE(M)CAPARD'!M321","v":17.256106071179335},{"$f":"'[1]MONE(M)CAPARD'!N321","v":13.939545556725903},{"$f":"'[1]MONE(M)CAPARD'!O321","v":14.007128680119088},{"$f":"'[1]MONE(M)CAPARD'!P321","v":5.8452827529932359},null,null,{"$f":"'[1]MONE(M)CAPARD'!Q321","v":9.61},{"$f":"'[1]MONE(M)CAPARD'!R321","v":6.28},{"$f":"'[1]MONE(M)CAPARD'!S321","v":5.91},{"$f":"'[1]MONE(M)CAPARD'!T321","v":8.32},{"$f":"'[1]MONE(M)CAPARD'!U321","v":10.4},{"$f":"'[1]MONE(M)CAPARD'!V321","v":6.19},{"$f":"'[1]MONE(M)CAPARD'!W321","v":6.12},null,null,{"$f":"'[1]MONE(M)CAPARD'!AS321","v":2.25},{"$f":"'[1]MONE(M)CAPARD'!AT321","v":"n.a."},{"$f":"'[1]MONE(M)CAPARD'!AU321","v":3},{"$f":"'[1]MONE(M)CAPARD'!AV321","v":6.25},{"$f":"'[1]MONE(M)CAPARD'!AW321","v":"n.a."},{"$f":"'[1]MONE(M)CAPARD'!AX321","v":5},{"$f":"'[1]MONE(M)CAPARD'!AY321","v":"n.a."},null,null,{"$f":"+'Datos_Regional (M)'!CF314","v":11.974506538780805},{"$f":"+'Datos_Regional (M)'!CG314","v":4.5035009389866598},{"$f":"+'Datos_Regional (M)'!CH314","v":11.741019128034402},{"$f":"+'Datos_Regional (M)'!CI314","v":9.4791371905555089},{"$f":"+'Datos_Regional (M)'!CJ314","v":23.59842699712118},{"$f":"+'Datos_Regional (M)'!CK314","v":14.817842982799112},{"$f":"+'Datos_Regional (M)'!CL314","v":11.347416905052254},null,null,803.70322583749612,459.08666666666659,889.56666666666661,329.92671436931442,409.64514451738336,786.81666666666661,1023.3885624999999,3675.6570964091929,4699.0456589091928,null,null,1290.0730219541672,857.78249999999991,1470.075,785.35728008840499,628.95833333333337,1408.8749999999998,1875.7976124166669,6441.018135949239,8316.815748365907,null,null,-2765.3610395400451,-3617.770089456712,null,null,{"$f":"'[1]EXT Comercio(M)'!C321","v":797.71694187000003},{"$f":"'[1]EXT Comercio(M)'!D321","v":383.1299999999992},{"$f":"'[1]EXT Comercio(M)'!E321","v":813.19999999999993},{"$f":"'[1]EXT Comercio(M)'!F321","v":312.94247490843611},{"$f":"'[1]EXT Comercio(M)'!G321","v":362.50642756000002},{"$f":"'[1]EXT Comercio(M)'!H321","v":664.8},{"$f":"'[1]EXT Comercio(M)'!I321","v":915.63742499999989},{"$f":"'[1]EXT Comercio(M)'!K321","v":3297.2399845584223},{"$f":"'[1]EXT Comercio(M)'!L321","v":4212.8774095584304},null,null,{"$f":"'[1]EXT Comercio(M)'!AG321","v":1275.7},{"$f":"'[1]EXT Comercio(M)'!AH321","v":804.53999999999905},{"$f":"'[1]EXT Comercio(M)'!AI321","v":1389.4},{"$f":"'[1]EXT Comercio(M)'!AJ321","v":777.29238819550039},{"$f":"'[1]EXT Comercio(M)'!AK321","v":612.29999999999995},{"$f":"'[1]EXT Comercio(M)'!AL321","v":1418.6},{"$f":"'[1]EXT Comercio(M)'!AM321","v":1674.2266529999999},{"$f":"'[1]EXT Comercio(M)'!AO321","v":6276.5963950755104},{"$f":"'[1]EXT Comercio(M)'!AP321","v":7950.8230480755155},null,null,{"$f":"'[1]EXT Comercio(M)'!$BS321","v":-2979.3564105170663},{"$f":"'[1]EXT Comercio(M)'!$BT321","v":-3737.9456385170706}]
[null,2016,"Enero",{"$f":"'[1]REAL IPC(M)'!AD322","v":-0.172700167950878},{"$f":"'[1]REAL IPC(M)'!AE322","v":1.8216947281258662},{"$f":"'[1]REAL IPC(M)'!AF322","v":4.37776266575995},{"$f":"'[1]REAL IPC(M)'!AG322","v":3.0835424883470863},{"$f":"'[1]REAL IPC(M)'!AH322","v":3.191793097632492},{"$f":"'[1]REAL IPC(M)'!AI322","v":2.5269227507843546},{"$f":"'[1]REAL IPC(M)'!AJ322","v":0.29325513196480663},null,null,{"$f":"'[1]REAL IMAE(M)'!AG322","v":4.5442370672630554},{"$f":"'[1]REAL IMAE(M)'!AH322","v":2.1583573437450538},{"$f":"'[1]REAL IMAE(M)'!AI322","v":2.5900911759845457},{"$f":"'[1]REAL IMAE(M)'!AJ322","v":3.6733346824511988},{"$f":"'[1]REAL IMAE(M)'!AK322","v":4.7034379685264449},{"$f":"'[1]REAL IMAE(M)'!AL322","v":5.9543023320431443},{"$f":"'[1]REAL IMAE(M)'!AM322","v":4.34600773707872},null,null,{"$f":"'[1]EXT ITCER(M)'!C322","v":72.773244109508425},{"$f":"'[1]EXT ITCER(M)'!D322","v":90.917367420769423},{"$f":"'[1]EXT ITCER(M)'!E322","v":56.999978939246233},{"$f":"'[1]EXT ITCER(M)'!F322","v":77.38599890300938},{"$f":"'[1]EXT ITCER(M)'!G322","v":98.989986841208534},{"$f":"'[1]EXT ITCER(M)'!H322","v":101.490084929004},{"$f":"'[1]EXT ITCER(M)'!I322","v":88.13945873544138},null,null,{"$f":"'[1]EXT TC(M)'!J322","v":-0.26929508052452106},{"$f":"'[1]EXT TC(M)'!K322","v":0},{"$f":"'[1]EXT TC(M)'!L322","v":8.8641671288882382E-2},{"$f":"'[1]EXT TC(M)'!M322","v":3.9281957314064089},{"$f":"'[1]EXT TC(M)'!N322","v":5.2841192468076876},{"$f":"'[1]EXT TC(M)'!O322","v":2.3910144099607953},{"$f":"'[1]EXT TC(M)'!P322","v":0},null,null,{"$f":"'[1]EXT RIN(M)'!C322","v":7786.8334580000001},{"$f":"'[1]EXT RIN(M)'!D322","v":2788.3},{"$f":"'[1]EXT RIN(M)'!E322","v":7680.4},{"$f":"'[1]EXT RIN(M)'!F322","v":3737.2183544755526},{"$f":"'[1]EXT RIN(M)'!G322","v":2351.8000000000002},{"$f":"'[1]EXT RIN(M)'!H322","v":5637.939475887707},{"$f":"'[1]EXT RIN(M)'!I322","v":3806.0830365599995},null,null,{"$f":"'[1]EXT RIN(M)'!P322","v":67.663062410310687},{"$f":"'[1]EXT RIN(M)'!Q322","v":97.058348486915918},{"$f":"'[1]EXT RIN(M)'!R322","v":97.294785672873616},{"$f":"'[1]EXT RIN(M)'!S322","v":88.262895877801526},{"$f":"'[1]EXT RIN(M)'!T322","v":118.80350245759277},{"$f":"'[1]EXT RIN(M)'!U322","v":83.359723661614098},{"$f":"'[1]EXT RIN(M)'!V322","v":242.69706475062924},null,null,{"$f":"+'[1]MONE(M)CAPARD'!AE322","v":6.1332923741820089},{"$f":"'[1]MONE(M)CAPARD'!AF322","v":2.3946814854974212},{"$f":"'[1]MONE(M)CAPARD'!AG322","v":1.0751689877025774},{"$f":"'[1]MONE(M)CAPARD'!AH322","v":5.9043930434782519},{"$f":"'[1]MONE(M)CAPARD'!AI322","v":5.996483055606471},{"$f":"'[1]MONE(M)CAPARD'!AJ322","v":4.6164237862873305},{"$f":"'[1]MONE(M)CAPARD'!AK322","v":1.7017543859649149},null,null,{"$f":"'[1]MONE(M)CAPARD'!AL322","v":2.9331135399999999},{"$f":"'[1]MONE(M)CAPARD'!AM322","v":4.26},{"$f":"'[1]MONE(M)CAPARD'!AN322","v":2.95},{"$f":"'[1]MONE(M)CAPARD'!AO322","v":3.94},{"$f":"'[1]MONE(M)CAPARD'!AP322","v":3.25},{"$f":"'[1]MONE(M)CAPARD'!AQ322","v":1.65},{"$f":"'[1]MONE(M)CAPARD'!AR322","v":2},null,null,{"$f":"'[1]MONE(M)CAPARD'!J322","v":15.830038671322944},{"$f":"'[1]MONE(M)CAPARD'!K322","v":4.3294361615613957},{"$f":"'[1]MONE(M)CAPARD'!L322","v":8.3372522192360883},{"$f":"'[1]MONE(M)CAPARD'!M322","v":16.420135652173908},{"$f":"'[1]MONE(M)CAPARD'!N322","v":15.995188743785734},{"$f":"'[1]MONE(M)CAPARD'!O322","v":12.448512943511714},{"$f":"'[1]MONE(M)CAPARD'!P322","v":5.7598538011695934},null,null,{"$f":"'[1]MONE(M)CAPARD'!Q322","v":9.68},{"$f":"'[1]MONE(M)CAPARD'!R322","v":6.23},{"$f":"'[1]MONE(M)CAPARD'!S322","v":5.94},{"$f":"'[1]MONE(M)CAPARD'!T322","v":8.3800000000000008},{"$f":"'[1]MONE(M)CAPARD'!U322","v":8.8699999999999992},{"$f":"'[1]MONE(M)CAPARD'!V322","v":6.81},{"$f":"'[1]MONE(M)CAPARD'!W322","v":6.07},null,null,{"$f":"'[1]MONE(M)CAPARD'!AS322","v":1.75},{"$f":"'[1]MONE(M)CAPARD'!AT322","v":"n.a."},{"$f":"'[1]MONE(M)CAPARD'!AU322","v":3},{"$f":"'[1]MONE(M)CAPARD'!AV322","v":6.25},{"$f":"'[1]MONE(M)CAPARD'!AW322","v":"n.a."},{"$f":"'[1]MONE(M)CAPARD'!AX322","v":5},{"$f":"'[1]MONE(M)CAPARD'!AY322","v":"n.a."},null,null,{"$f":"+'Datos_Regional (M)'!CF315","v":11.910244898431976},{"$f":"+'Datos_Regional (M)'!CG315","v":4.6768395839986043},{"$f":"+'Datos_Regional (M)'!CH315","v":11.348238137245549},{"$f":"+'Datos_Regional (M)'!CI315","v":9.8897684470909084},{"$f":"+'Datos_Regional (M)'!CJ315","v":22.583773193591085},{"$f":"+'Datos_Regional (M)'!CK315","v":17.883311252565726},{"$f":"+'Datos_Regional (M)'!CL315","v":11.300782488327087},null,null,804.22258594082962,457.83333333333326,885.77500000000009,329.39525245620536,407.87120338530002,781.1,988.52802933333339,3663.1093868006678,4651.6374161340009,null,null,1291.0012362850009,851.68833333333339,1463.05,778.2604887125309,630.11813517250005,1398.3083333333334,1816.6452306666667,6412.3235274100325,8228.9687580767004,null,null,-2749.2141406093633,-3577.3313419426972,null,null,{"$f":"'[1]EXT Comercio(M)'!C322","v":737.69899359999806},{"$f":"'[1]EXT Comercio(M)'!D322","v":410.62},{"$f":"'[1]EXT Comercio(M)'!E322","v":833.7},{"$f":"'[1]EXT Comercio(M)'!F322","v":324.28769739330204},{"$f":"'[1]EXT Comercio(M)'!G322","v":371.1},{"$f":"'[1]EXT Comercio(M)'!H322","v":623.09999999999991},{"$f":"'[1]EXT Comercio(M)'!I322","v":678.85440300000005},{"$f":"'[1]EXT Comercio(M)'!K322","v":3300.5066909932998},{"$f":"'[1]EXT Comercio(M)'!L322","v":3979.3610939932996},null,null,{"$f":"'[1]EXT Comercio(M)'!AG322","v":1215.3072019500044},{"$f":"'[1]EXT Comercio(M)'!AH322","v":784.10000000000014},{"$f":"'[1]EXT Comercio(M)'!AI322","v":1274.5999999999999},{"$f":"'[1]EXT Comercio(M)'!AJ322","v":647.26948709539215},{"$f":"'[1]EXT Comercio(M)'!AK322","v":558.71762207000006},{"$f":"'[1]EXT Comercio(M)'!AL322","v":1131.3},{"$f":"'[1]EXT Comercio(M)'!AM322","v":1400.7206740000001},{"$f":"'[1]EXT Comercio(M)'!AO322","v":5611.2943111153972},{"$f":"'[1]EXT Comercio(M)'!AP322","v":7012.0149851153974},null,null,{"$f":"'[1]EXT Comercio(M)'!$BS322","v":-2310.7876201220961},{"$f":"'[1]EXT Comercio(M)'!$BT322","v":-3032.653891122096}]
[null,null,"Febrero",{"$f":"'[1]REAL IPC(M)'!AD323","v":-3.2337181058415321E-2},{"$f":"'[1]REAL IPC(M)'!AE323","v":1.6672807663964648},{"$f":"'[1]REAL IPC(M)'!AF323","v":4.2708245063977559},{"$f":"'[1]REAL IPC(M)'!AG323","v":2.921268257926608},{"$f":"'[1]REAL IPC(M)'!AH323","v":3.4037852986557207},{"$f":"'[1]REAL IPC(M)'!AI323","v":1.743251248201745},{"$f":"'[1]REAL IPC(M)'!AJ323","v":1.1822660098522195},null,null,{"$f":"'[1]REAL IMAE(M)'!AG323","v":4.5028395361050553},{"$f":"'[1]REAL IMAE(M)'!AH323","v":2.1262286168802187},{"$f":"'[1]REAL IMAE(M)'!AI323","v":2.3174745991401879},{"$f":"'[1]REAL IMAE(M)'!AJ323","v":3.2822541160327621},{"$f":"'[1]REAL IMAE(M)'!AK323","v":4.4038540065594587},{"$f":"'[1]REAL IMAE(M)'!AL323","v":6.2403683309475078},{"$f":"'[1]REAL IMAE(M)'!AM323","v":4.3358448444258428},null,null,{"$f":"'[1]EXT ITCER(M)'!C323","v":72.895075936015985},{"$f":"'[1]EXT ITCER(M)'!D323","v":91.239527992579113},{"$f":"'[1]EXT ITCER(M)'!E323","v":57.037554480226035},{"$f":"'[1]EXT ITCER(M)'!F323","v":77.529788302727979},{"$f":"'[1]EXT ITCER(M)'!G323","v":98.614361516940875},{"$f":"'[1]EXT ITCER(M)'!H323","v":102.45572137275001},{"$f":"'[1]EXT ITCER(M)'!I323","v":88.126111359536011},null,null,{"$f":"'[1]EXT TC(M)'!J323","v":-9.2530045935107913E-2},{"$f":"'[1]EXT TC(M)'!K323","v":0},{"$f":"'[1]EXT TC(M)'!L323","v":0.26140740488257735},{"$f":"'[1]EXT TC(M)'!M323","v":3.7291043545787996},{"$f":"'[1]EXT TC(M)'!N323","v":5.4913315783649903},{"$f":"'[1]EXT TC(M)'!O323","v":2.0418424628146421},{"$f":"'[1]EXT TC(M)'!P323","v":0},null,null,{"$f":"'[1]EXT RIN(M)'!C323","v":7784.1073550000001},{"$f":"'[1]EXT RIN(M)'!D323","v":2740.1},{"$f":"'[1]EXT RIN(M)'!E323","v":7636},{"$f":"'[1]EXT RIN(M)'!F323","v":3775.0887417362956},{"$f":"'[1]EXT RIN(M)'!G323","v":2315.13},{"$f":"'[1]EXT RIN(M)'!H323","v":5065.1244855519062},{"$f":"'[1]EXT RIN(M)'!I323","v":3578.4801332400002},null,null,{"$f":"'[1]EXT RIN(M)'!P323","v":66.481469159834887},{"$f":"'[1]EXT RIN(M)'!Q323","v":97.177452674711773},{"$f":"'[1]EXT RIN(M)'!R323","v":96.438745441925988},{"$f":"'[1]EXT RIN(M)'!S323","v":87.982659207650954},{"$f":"'[1]EXT RIN(M)'!T323","v":114.08762107074031},{"$f":"'[1]EXT RIN(M)'!U323","v":78.594292287887285},{"$f":"'[1]EXT RIN(M)'!V323","v":226.39144267049446},null,null,{"$f":"+'[1]MONE(M)CAPARD'!AE323","v":5.7341914569320798},{"$f":"'[1]MONE(M)CAPARD'!AF323","v":2.5305282232490693},{"$f":"'[1]MONE(M)CAPARD'!AG323","v":1.1788297440065083},{"$f":"'[1]MONE(M)CAPARD'!AH323","v":5.7993181031498846},{"$f":"'[1]MONE(M)CAPARD'!AI323","v":6.5178600404706755},{"$f":"'[1]MONE(M)CAPARD'!AJ323","v":5.3927397488147708},{"$f":"'[1]MONE(M)CAPARD'!AK323","v":0.87736124634858514},null,null,{"$f":"'[1]MONE(M)CAPARD'!AL323","v":3.0647932500000001},{"$f":"'[1]MONE(M)CAPARD'!AM323","v":4.24},{"$f":"'[1]MONE(M)CAPARD'!AN323","v":2.95},{"$f":"'[1]MONE(M)CAPARD'!AO323","v":3.91},{"$f":"'[1]MONE(M)CAPARD'!AP323","v":3.82},{"$f":"'[1]MONE(M)CAPARD'!AQ323","v":1.69},{"$f":"'[1]MONE(M)CAPARD'!AR323","v":2.0699999999999998},null,null,{"$f":"'[1]MONE(M)CAPARD'!J323","v":15.377309769560512},{"$f":"'[1]MONE(M)CAPARD'!K323","v":4.5665814985956299},{"$f":"'[1]MONE(M)CAPARD'!L323","v":8.438770418529062},{"$f":"'[1]MONE(M)CAPARD'!M323","v":16.35107303565248},{"$f":"'[1]MONE(M)CAPARD'!N323","v":13.965234605123817},{"$f":"'[1]MONE(M)CAPARD'!O323","v":13.835560176328704},{"$f":"'[1]MONE(M)CAPARD'!P323","v":4.8800389483933753},null,null,{"$f":"'[1]MONE(M)CAPARD'!Q323","v":9.67},{"$f":"'[1]MONE(M)CAPARD'!R323","v":6.31},{"$f":"'[1]MONE(M)CAPARD'!S323","v":5.94},{"$f":"'[1]MONE(M)CAPARD'!T323","v":8.35},{"$f":"'[1]MONE(M)CAPARD'!U323","v":7.82},{"$f":"'[1]MONE(M)CAPARD'!V323","v":6.01},{"$f":"'[1]MONE(M)CAPARD'!W323","v":6.12},null,null,{"$f":"'[1]MONE(M)CAPARD'!AS323","v":1.75},{"$f":"'[1]MONE(M)CAPARD'!AT323","v":"n.a."},{"$f":"'[1]MONE(M)CAPARD'!AU323","v":3},{"$f":"'[1]MONE(M)CAPARD'!AV323","v":6.25},{"$f":"'[1]MONE(M)CAPARD'!AW323","v":"n.a."},{"$f":"'[1]MONE(M)CAPARD'!AX323","v":5},{"$f":"'[1]MONE(M)CAPARD'!AY323","v":"n.a."},null,null,{"$f":"+'Datos_Regional (M)'!CF316","v":11.996380040430488},{"$f":"+'Datos_Regional (M)'!CG316","v":4.3100876546931399},{"$f":"+'Datos_Regional (M)'!CH316","v":11.160108428929227},{"$f":"+'Datos_Regional (M)'!CI316","v":10.304538167991995},{"$f":"+'Datos_Regional (M)'!CJ316","v":22.27745390254201},{"$f":"+'Datos_Regional (M)'!CK316","v":18.55973594840663},{"$f":"+'Datos_Regional (M)'!CL316","v":10.853095309305449},null,null,812.34701445916289,452.55666666666662,882.20833333333337,327.24494926270171,409.60558865529998,785.81666666666672,979.18988725000008,3666.6912307288308,4645.8811179788308,null,null,1290.7427763775004,847.51166666666677,1460.9833333333333,766.73939155898631,629.27679114083332,1402.6333333333332,1805.5514471666668,6397.7842929839871,8203.3357401506546,null,null,-2731.0930622551555,-3557.4546221718224,null,null,{"$f":"'[1]EXT Comercio(M)'!C323","v":874.09136018999402},{"$f":"'[1]EXT Comercio(M)'!D323","v":417.09000000000003},{"$f":"'[1]EXT Comercio(M)'!E323","v":842.30000000000007},{"$f":"'[1]EXT Comercio(M)'!F323","v":354.84069365367316},{"$f":"'[1]EXT Comercio(M)'!G323","v":409.4},{"$f":"'[1]EXT Comercio(M)'!H323","v":806.5},{"$f":"'[1]EXT Comercio(M)'!I323","v":728.80103399999996},{"$f":"'[1]EXT Comercio(M)'!K323","v":3704.2220538436682},{"$f":"'[1]EXT Comercio(M)'!L323","v":4433.0230878436678},null,null,{"$f":"'[1]EXT Comercio(M)'!AG323","v":1190.3655151800001},{"$f":"'[1]EXT Comercio(M)'!AH323","v":756.8599999999999},{"$f":"'[1]EXT Comercio(M)'!AI323","v":1269},{"$f":"'[1]EXT Comercio(M)'!AJ323","v":662.1158400713648},{"$f":"'[1]EXT Comercio(M)'!AK323","v":595.60387162000006},{"$f":"'[1]EXT Comercio(M)'!AL323","v":1267.2999999999997},{"$f":"'[1]EXT Comercio(M)'!AM323","v":1466.794778},{"$f":"'[1]EXT Comercio(M)'!AO323","v":5741.245226871365},{"$f":"'[1]EXT Comercio(M)'!AP323","v":7208.0400048713645},null,null,{"$f":"'[1]EXT Comercio(M)'!$BS323","v":-2037.0231730276982},{"$f":"'[1]EXT Comercio(M)'!$BT323","v":-2775.0169170276986}]
[null,null,"Marzo",{"$f":"'[1]REAL IPC(M)'!AD324","v":-1.0860925928487777},{"$f":"'[1]REAL IPC(M)'!AE324","v":1.1182401466544445},{"$f":"'[1]REAL IPC(M)'!AF324","v":4.2617960426179531},{"$f":"'[1]REAL IPC(M)'!AG324","v":2.4769992922859161},{"$f":"'[1]REAL IPC(M)'!AH324","v":3.6579044731442725},{"$f":"'[1]REAL IPC(M)'!AI324","v":1.5886428933581169},{"$f":"'[1]REAL IPC(M)'!AJ324","v":0.58593749999999445},null,null,{"$f":"'[1]REAL IMAE(M)'!AG324","v":4.3041436210822317},{"$f":"'[1]REAL IMAE(M)'!AH324","v":2.2052111632930389},{"$f":"'[1]REAL IMAE(M)'!AI324","v":2.2556687514926859},{"$f":"'[1]REAL IMAE(M)'!AJ324","v":2.9962733116699267},{"$f":"'[1]REAL IMAE(M)'!AK324","v":4.4097667041026334},{"$f":"'[1]REAL IMAE(M)'!AL324","v":6.619280108920071},{"$f":"'[1]REAL IMAE(M)'!AM324","v":4.1643415178571415},null,null,{"$f":"'[1]EXT ITCER(M)'!C324","v":73.700325771986513},{"$f":"'[1]EXT ITCER(M)'!D324","v":91.673935691213686},{"$f":"'[1]EXT ITCER(M)'!E324","v":57.560116422510482},{"$f":"'[1]EXT ITCER(M)'!F324","v":77.808146480776287},{"$f":"'[1]EXT ITCER(M)'!G324","v":98.571460604153984},{"$f":"'[1]EXT ITCER(M)'!H324","v":103.02422000671351},{"$f":"'[1]EXT ITCER(M)'!I324","v":88.247799157955725},null,null,{"$f":"'[1]EXT TC(M)'!J324","v":0.32307450469961324},{"$f":"'[1]EXT TC(M)'!K324","v":0},{"$f":"'[1]EXT TC(M)'!L324","v":1.1622438255386238},{"$f":"'[1]EXT TC(M)'!M324","v":3.6191416831946612},{"$f":"'[1]EXT TC(M)'!N324","v":5.3412644991944234},{"$f":"'[1]EXT TC(M)'!O324","v":2.3700757779330495},{"$f":"'[1]EXT TC(M)'!P324","v":0},null,null,{"$f":"'[1]EXT RIN(M)'!C324","v":7811.9661759999999},{"$f":"'[1]EXT RIN(M)'!D324","v":2807.3},{"$f":"'[1]EXT RIN(M)'!E324","v":7586.1},{"$f":"'[1]EXT RIN(M)'!F324","v":3825.1130705644573},{"$f":"'[1]EXT RIN(M)'!G324","v":2394.5},{"$f":"'[1]EXT RIN(M)'!H324","v":5134.0711943492624},{"$f":"'[1]EXT RIN(M)'!I324","v":4699.0868548400003},null,null,{"$f":"'[1]EXT RIN(M)'!P324","v":67.362700721068052},{"$f":"'[1]EXT RIN(M)'!Q324","v":98.460642749167889},{"$f":"'[1]EXT RIN(M)'!R324","v":96.106674588550689},{"$f":"'[1]EXT RIN(M)'!S324","v":85.715528448975675},{"$f":"'[1]EXT RIN(M)'!T324","v":119.20628844150671},{"$f":"'[1]EXT RIN(M)'!U324","v":76.601861936329215},{"$f":"'[1]EXT RIN(M)'!V324","v":293.82672584836001},null,null,{"$f":"+'[1]MONE(M)CAPARD'!AE324","v":6.860605116847462},{"$f":"'[1]MONE(M)CAPARD'!AF324","v":3.1564630166787535},{"$f":"'[1]MONE(M)CAPARD'!AG324","v":1.1780000000000073},{"$f":"'[1]MONE(M)CAPARD'!AH324","v":6.1994406077348083},{"$f":"'[1]MONE(M)CAPARD'!AI324","v":5.9531377998429313},{"$f":"'[1]MONE(M)CAPARD'!AJ324","v":5.6909482615205489},{"$f":"'[1]MONE(M)CAPARD'!AK324","v":1.5052427184466075},null,null,{"$f":"'[1]MONE(M)CAPARD'!AL324","v":3.3883974100000001},{"$f":"'[1]MONE(M)CAPARD'!AM324","v":4.3099999999999996},{"$f":"'[1]MONE(M)CAPARD'!AN324","v":2.93},{"$f":"'[1]MONE(M)CAPARD'!AO324","v":3.85},{"$f":"'[1]MONE(M)CAPARD'!AP324","v":3.35},{"$f":"'[1]MONE(M)CAPARD'!AQ324","v":1.87},{"$f":"'[1]MONE(M)CAPARD'!AR324","v":2.1},null,null,{"$f":"'[1]MONE(M)CAPARD'!J324","v":16.717661880227432},{"$f":"'[1]MONE(M)CAPARD'!K324","v":4.9464467005076154},{"$f":"'[1]MONE(M)CAPARD'!L324","v":8.4865255474452628},{"$f":"'[1]MONE(M)CAPARD'!M324","v":16.757907458563533},{"$f":"'[1]MONE(M)CAPARD'!N324","v":11.816840131562628},{"$f":"'[1]MONE(M)CAPARD'!O324","v":13.664280485776082},{"$f":"'[1]MONE(M)CAPARD'!P324","v":5.2731650485436941},null,null,{"$f":"'[1]MONE(M)CAPARD'!Q324","v":9.82},{"$f":"'[1]MONE(M)CAPARD'!R324","v":6.12},{"$f":"'[1]MONE(M)CAPARD'!S324","v":5.97},{"$f":"'[1]MONE(M)CAPARD'!T324","v":8.33},{"$f":"'[1]MONE(M)CAPARD'!U324","v":7.95},{"$f":"'[1]MONE(M)CAPARD'!V324","v":5.67},{"$f":"'[1]MONE(M)CAPARD'!W324","v":5.89},null,null,{"$f":"'[1]MONE(M)CAPARD'!AS324","v":1.75},{"$f":"'[1]MONE(M)CAPARD'!AT324","v":"n.a."},{"$f":"'[1]MONE(M)CAPARD'!AU324","v":3},{"$f":"'[1]MONE(M)CAPARD'!AV324","v":5.75},{"$f":"'[1]MONE(M)CAPARD'!AW324","v":"n.a."},{"$f":"'[1]MONE(M)CAPARD'!AX324","v":5},{"$f":"'[1]MONE(M)CAPARD'!AY324","v":"n.a."},null,null,{"$f":"+'Datos_Regional (M)'!CF317","v":12.297744471992299},{"$f":"+'Datos_Regional (M)'!CG317","v":4.5120868784322088},{"$f":"+'Datos_Regional (M)'!CH317","v":10.444046086403347},{"$f":"+'Datos_Regional (M)'!CI317","v":9.5173379638472824},{"$f":"+'Datos_Regional (M)'!CJ317","v":22.413415233720578},{"$f":"+'Datos_Regional (M)'!CK317","v":18.608193753472801},{"$f":"+'Datos_Regional (M)'!CL317","v":10.62798109255656},null,null,811.47882009332989,447.73916666666656,876.68333333333328,319.90104044782225,404.81156222446663,785.86666666666667,963.26785291666658,3643.3926011172844,4606.6604540339513,null,null,1287.769098766667,840.38333333333321,1448.9916666666666,753.60322797995298,631.37626426583336,1403.5083333333332,1788.4069420833337,6365.5289249191201,8153.9358670024549,null,null,-2722.1363238018348,-3547.2754129685018,null,null,{"$f":"'[1]EXT Comercio(M)'!C324","v":874.30582409999647},{"$f":"'[1]EXT Comercio(M)'!D324","v":471.41999999999985},{"$f":"'[1]EXT Comercio(M)'!E324","v":938.69999999999993},{"$f":"'[1]EXT Comercio(M)'!F324","v":353.66246628941906},{"$f":"'[1]EXT Comercio(M)'!G324","v":413.4},{"$f":"'[1]EXT Comercio(M)'!H324","v":824.8},{"$f":"'[1]EXT Comercio(M)'!I324","v":935.08588100000009},{"$f":"'[1]EXT Comercio(M)'!K324","v":3876.2882903894151},{"$f":"'[1]EXT Comercio(M)'!L324","v":4811.374171389416},null,null,{"$f":"'[1]EXT Comercio(M)'!AG324","v":1257.6929084999997},{"$f":"'[1]EXT Comercio(M)'!AH324","v":784.44999999999982},{"$f":"'[1]EXT Comercio(M)'!AI324","v":1388.2},{"$f":"'[1]EXT Comercio(M)'!AJ324","v":719.77609610429965},{"$f":"'[1]EXT Comercio(M)'!AK324","v":647.39367749999997},{"$f":"'[1]EXT Comercio(M)'!AL324","v":1471.8000000000002},{"$f":"'[1]EXT Comercio(M)'!AM324","v":1795.884086},{"$f":"'[1]EXT Comercio(M)'!AO324","v":6269.312682104297},{"$f":"'[1]EXT Comercio(M)'!AP324","v":8065.1967681042952},null,null,{"$f":"'[1]EXT Comercio(M)'!$BS324","v":-2393.0243917148828},{"$f":"'[1]EXT Comercio(M)'!$BT324","v":-3253.822596714881}]
[null,null,"Abril",{"$f":"'[1]REAL IPC(M)'!AD325","v":-0.91805692132097294},{"$f":"'[1]REAL IPC(M)'!AE325","v":0.86151590138392242},{"$f":"'[1]REAL IPC(M)'!AF325","v":4.0873082757458361},{"$f":"'[1]REAL IPC(M)'!AG325","v":2.4355806565478209},{"$f":"'[1]REAL IPC(M)'!AH325","v":3.5963791107405827},{"$f":"'[1]REAL IPC(M)'!AI325","v":1.7536428329379812},{"$f":"'[1]REAL IPC(M)'!AJ325","v":0.58309037900874083},null,null,{"$f":"'[1]REAL IMAE(M)'!AG325","v":4.1159363631659067},{"$f":"'[1]REAL IMAE(M)'!AH325","v":2.3978395755145225},{"$f":"'[1]REAL IMAE(M)'!AI325","v":2.3080386810570506},{"$f":"'[1]REAL IMAE(M)'!AJ325","v":2.8070202217457787},{"$f":"'[1]REAL IMAE(M)'!AK325","v":4.6855010602989724},{"$f":"'[1]REAL IMAE(M)'!AL325","v":6.9456402827922652},{"$f":"'[1]REAL IMAE(M)'!AM325","v":4.6221850962375042},null,null,{"$f":"'[1]EXT ITCER(M)'!C325","v":74.080900679991785},{"$f":"'[1]EXT ITCER(M)'!D325","v":92.334550000207742},{"$f":"'[1]EXT ITCER(M)'!E325","v":57.842121206640861},{"$f":"'[1]EXT ITCER(M)'!F325","v":77.891796177515687},{"$f":"'[1]EXT ITCER(M)'!G325","v":99.017520744426676},{"$f":"'[1]EXT ITCER(M)'!H325","v":103.72758204881882},{"$f":"'[1]EXT ITCER(M)'!I325","v":88.237848900437655},null,null,{"$f":"'[1]EXT TC(M)'!J325","v":0.69141677721473671},{"$f":"'[1]EXT TC(M)'!K325","v":0},{"$f":"'[1]EXT TC(M)'!L325","v":0.3072354401216032},{"$f":"'[1]EXT TC(M)'!M325","v":2.9623080808911944},{"$f":"'[1]EXT TC(M)'!N325","v":5.129999724725633},{"$f":"'[1]EXT TC(M)'!O325","v":2.397955987506831},{"$f":"'[1]EXT TC(M)'!P325","v":0},null,null,{"$f":"'[1]EXT RIN(M)'!C325","v":7898.7532970000002},{"$f":"'[1]EXT RIN(M)'!D325","v":2804.3},{"$f":"'[1]EXT RIN(M)'!E325","v":7675.3},{"$f":"'[1]EXT RIN(M)'!F325","v":3899.5999396380557},{"$f":"'[1]EXT RIN(M)'!G325","v":2435.5},{"$f":"'[1]EXT RIN(M)'!H325","v":5015.4147240342054},{"$f":"'[1]EXT RIN(M)'!I325","v":4491.66916855},null,null,{"$f":"'[1]EXT RIN(M)'!P325","v":67.96310848389308},{"$f":"'[1]EXT RIN(M)'!Q325","v":97.927641170606009},{"$f":"'[1]EXT RIN(M)'!R325","v":97.182208374588001},{"$f":"'[1]EXT RIN(M)'!S325","v":86.899856491430128},{"$f":"'[1]EXT RIN(M)'!T325","v":120.66240092444293},{"$f":"'[1]EXT RIN(M)'!U325","v":76.537075795545505},{"$f":"'[1]EXT RIN(M)'!V325","v":320.48777060381815},null,null,{"$f":"+'[1]MONE(M)CAPARD'!AE325","v":6.5279875629657527},{"$f":"'[1]MONE(M)CAPARD'!AF325","v":3.4388577919127692},{"$f":"'[1]MONE(M)CAPARD'!AG325","v":1.3380034005343626},{"$f":"'[1]MONE(M)CAPARD'!AH325","v":6.515723638869753},{"$f":"'[1]MONE(M)CAPARD'!AI325","v":4.6770125045920459},{"$f":"'[1]MONE(M)CAPARD'!AJ325","v":5.2836999417200969},{"$f":"'[1]MONE(M)CAPARD'!AK325","v":1.5280000000000058},null,null,{"$f":"'[1]MONE(M)CAPARD'!AL325","v":3.2568826099999999},{"$f":"'[1]MONE(M)CAPARD'!AM325","v":4.33},{"$f":"'[1]MONE(M)CAPARD'!AN325","v":2.92},{"$f":"'[1]MONE(M)CAPARD'!AO325","v":3.8},{"$f":"'[1]MONE(M)CAPARD'!AP325","v":3.27},{"$f":"'[1]MONE(M)CAPARD'!AQ325","v":2.56},{"$f":"'[1]MONE(M)CAPARD'!AR325","v":2.12},null,null,{"$f":"'[1]MONE(M)CAPARD'!J325","v":15.95452857516945},{"$f":"'[1]MONE(M)CAPARD'!K325","v":5.3622871422080882},{"$f":"'[1]MONE(M)CAPARD'!L325","v":8.6876026232693651},{"$f":"'[1]MONE(M)CAPARD'!M325","v":16.795354927636122},{"$f":"'[1]MONE(M)CAPARD'!N325","v":13.576841876044025},{"$f":"'[1]MONE(M)CAPARD'!O325","v":14.000832570144043},{"$f":"'[1]MONE(M)CAPARD'!P325","v":5.2562608695652226},null,null,{"$f":"'[1]MONE(M)CAPARD'!Q325","v":9.81},{"$f":"'[1]MONE(M)CAPARD'!R325","v":6.27},{"$f":"'[1]MONE(M)CAPARD'!S325","v":5.97},{"$f":"'[1]MONE(M)CAPARD'!T325","v":8.33},{"$f":"'[1]MONE(M)CAPARD'!U325","v":8.01},{"$f":"'[1]MONE(M)CAPARD'!V325","v":5.43},{"$f":"'[1]MONE(M)CAPARD'!W325","v":5.87},null,null,{"$f":"'[1]MONE(M)CAPARD'!AS325","v":1.75},{"$f":"'[1]MONE(M)CAPARD'!AT325","v":"n.a."},{"$f":"'[1]MONE(M)CAPARD'!AU325","v":3},{"$f":"'[1]MONE(M)CAPARD'!AV325","v":5.75},{"$f":"'[1]MONE(M)CAPARD'!AW325","v":"n.a."},{"$f":"'[1]MONE(M)CAPARD'!AX325","v":5},{"$f":"'[1]MONE(M)CAPARD'!AY325","v":"n.a."},null,null,{"$f":"+'Datos_Regional (M)'!CF318","v":12.243287827190507},{"$f":"+'Datos_Regional (M)'!CG318","v":4.9990551845708886},{"$f":"+'Datos_Regional (M)'!CH318","v":9.6205024588773114},{"$f":"+'Datos_Regional (M)'!CI318","v":9.1332581893116114},{"$f":"+'Datos_Regional (M)'!CJ318","v":22.622316882683123},{"$f":"+'Datos_Regional (M)'!CK318","v":19.223334708062122},{"$f":"+'Datos_Regional (M)'!CL318","v":10.292258349446183},null,null,820.84047646666329,454.87916666666661,876.65000000000009,318.73349332233403,409.18843954149997,785.37499999999989,944.7212459166667,3662.5785876821628,4607.2998335988304,null,null,1293.2233257750001,844.36583333333328,1450.0083333333332,748.68477013985091,638.85127898583335,1411.8083333333332,1782.3828809166671,6386.8388754740181,8169.2217563906861,null,null,-2724.2602877918539,-3561.9219227918543,null,null,{"$f":"'[1]EXT Comercio(M)'!C325","v":927.51181309999686},{"$f":"'[1]EXT Comercio(M)'!D325","v":513.73},{"$f":"'[1]EXT Comercio(M)'!E325","v":914.19999999999993},{"$f":"'[1]EXT Comercio(M)'!F325","v":386.95849935045851},{"$f":"'[1]EXT Comercio(M)'!G325","v":448.4},{"$f":"'[1]EXT Comercio(M)'!H325","v":833.3},{"$f":"'[1]EXT Comercio(M)'!I325","v":812.60046599999998},{"$f":"'[1]EXT Comercio(M)'!K325","v":4024.100312450455},{"$f":"'[1]EXT Comercio(M)'!L325","v":4836.7007784504549},null,null,{"$f":"'[1]EXT Comercio(M)'!AG325","v":1373.5959063499995},{"$f":"'[1]EXT Comercio(M)'!AH325","v":867.68000000000029},{"$f":"'[1]EXT Comercio(M)'!AI325","v":1442.6999999999998},{"$f":"'[1]EXT Comercio(M)'!AJ325","v":734.35970071618988},{"$f":"'[1]EXT Comercio(M)'!AK325","v":642.50017663999995},{"$f":"'[1]EXT Comercio(M)'!AL325","v":1432.2},{"$f":"'[1]EXT Comercio(M)'!AM325","v":1674.991804},{"$f":"'[1]EXT Comercio(M)'!AO325","v":6493.0357837061892},{"$f":"'[1]EXT Comercio(M)'!AP325","v":8168.0275877061904},null,null,{"$f":"'[1]EXT Comercio(M)'!$BS325","v":-2468.9354712557333},{"$f":"'[1]EXT Comercio(M)'!$BT325","v":-3331.3268092557337}]
[null,null,"Mayo ",{"$f":"'[1]REAL IPC(M)'!AD326","v":-0.43272307180821673},{"$f":"'[1]REAL IPC(M)'!AE326","v":0.73172962590322621},{"$f":"'[1]REAL IPC(M)'!AF326","v":4.3566021867115161},{"$f":"'[1]REAL IPC(M)'!AG326","v":2.3550087873462173},{"$f":"'[1]REAL IPC(M)'!AH326","v":3.6513019423440927},{"$f":"'[1]REAL IPC(M)'!AI326","v":1.7148166920087864},{"$f":"'[1]REAL IPC(M)'!AJ326","v":0.2901353965183725},null,null,{"$f":"'[1]REAL IMAE(M)'!AG326","v":3.8762276205179114},{"$f":"'[1]REAL IMAE(M)'!AH326","v":2.7876507221662652},{"$f":"'[1]REAL IMAE(M)'!AI326","v":2.3504464872929343},{"$f":"'[1]REAL IMAE(M)'!AJ326","v":2.6973745842170422},{"$f":"'[1]REAL IMAE(M)'!AK326","v":5.0743695678280716},{"$f":"'[1]REAL IMAE(M)'!AL326","v":7.0832478569486668},{"$f":"'[1]REAL IMAE(M)'!AM326","v":4.3430037087102802},null,null,{"$f":"'[1]EXT ITCER(M)'!C326","v":74.43956733242068},{"$f":"'[1]EXT ITCER(M)'!D326","v":92.64077179578743},{"$f":"'[1]EXT ITCER(M)'!E326","v":57.172866262639801},{"$f":"'[1]EXT ITCER(M)'!F326","v":77.999618686193173},{"$f":"'[1]EXT ITCER(M)'!G326","v":99.382555724845986},{"$f":"'[1]EXT ITCER(M)'!H326","v":103.98604589612331},{"$f":"'[1]EXT ITCER(M)'!I326","v":88.426549788192972},null,null,{"$f":"'[1]EXT TC(M)'!J326","v":0.82329468476595391},{"$f":"'[1]EXT TC(M)'!K326","v":0},{"$f":"'[1]EXT TC(M)'!L326","v":-0.44805720101250307},{"$f":"'[1]EXT TC(M)'!M326","v":3.0550479332694902},{"$f":"'[1]EXT TC(M)'!N326","v":5.183996254650963},{"$f":"'[1]EXT TC(M)'!O326","v":2.3480524122831556},{"$f":"'[1]EXT TC(M)'!P326","v":0},null,null,{"$f":"'[1]EXT RIN(M)'!C326","v":7760.4476640000003},{"$f":"'[1]EXT RIN(M)'!D326","v":2840.4},{"$f":"'[1]EXT RIN(M)'!E326","v":8549.2000000000007},{"$f":"'[1]EXT RIN(M)'!F326","v":3892.589118566304},{"$f":"'[1]EXT RIN(M)'!G326","v":2441.4},{"$f":"'[1]EXT RIN(M)'!H326","v":5011.0678018557619},{"$f":"'[1]EXT RIN(M)'!I326","v":5021.5927543999996},null,null,{"$f":"'[1]EXT RIN(M)'!P326","v":67.034211186976918},{"$f":"'[1]EXT RIN(M)'!Q326","v":103.53013560173339},{"$f":"'[1]EXT RIN(M)'!R326","v":105.28060620819579},{"$f":"'[1]EXT RIN(M)'!S326","v":91.92504833199861},{"$f":"'[1]EXT RIN(M)'!T326","v":126.31202685787271},{"$f":"'[1]EXT RIN(M)'!U326","v":75.380001902674564},{"$f":"'[1]EXT RIN(M)'!V326","v":350.54168404890009},null,null,{"$f":"+'[1]MONE(M)CAPARD'!AE326","v":5.8580723022231433},{"$f":"'[1]MONE(M)CAPARD'!AF326","v":3.6118414600926205},{"$f":"'[1]MONE(M)CAPARD'!AG326","v":1.0764990328820179},{"$f":"'[1]MONE(M)CAPARD'!AH326","v":6.1403846153846198},{"$f":"'[1]MONE(M)CAPARD'!AI326","v":5.1826750604538931},{"$f":"'[1]MONE(M)CAPARD'!AJ326","v":4.4193987210364574},{"$f":"'[1]MONE(M)CAPARD'!AK326","v":1.7647444551591156},null,null,{"$f":"'[1]MONE(M)CAPARD'!AL326","v":3.11314906},{"$f":"'[1]MONE(M)CAPARD'!AM326","v":4.37},{"$f":"'[1]MONE(M)CAPARD'!AN326","v":2.88},{"$f":"'[1]MONE(M)CAPARD'!AO326","v":3.79},{"$f":"'[1]MONE(M)CAPARD'!AP326","v":3.1},{"$f":"'[1]MONE(M)CAPARD'!AQ326","v":1.67},{"$f":"'[1]MONE(M)CAPARD'!AR326","v":2.06},null,null,{"$f":"'[1]MONE(M)CAPARD'!J326","v":14.776665110987294},{"$f":"'[1]MONE(M)CAPARD'!K326","v":5.6370226096431528},{"$f":"'[1]MONE(M)CAPARD'!L326","v":8.426297549967769},{"$f":"'[1]MONE(M)CAPARD'!M326","v":16.799364697802201},{"$f":"'[1]MONE(M)CAPARD'!N326","v":13.767773285359235},{"$f":"'[1]MONE(M)CAPARD'!O326","v":12.717108213603519},{"$f":"'[1]MONE(M)CAPARD'!P326","v":5.6634329797492802},null,null,{"$f":"'[1]MONE(M)CAPARD'!Q326","v":9.5500000000000007},{"$f":"'[1]MONE(M)CAPARD'!R326","v":6.41},{"$f":"'[1]MONE(M)CAPARD'!S326","v":5.98},{"$f":"'[1]MONE(M)CAPARD'!T326","v":8.06},{"$f":"'[1]MONE(M)CAPARD'!U326","v":8.17},{"$f":"'[1]MONE(M)CAPARD'!V326","v":5.0199999999999996},{"$f":"'[1]MONE(M)CAPARD'!W326","v":5.97},null,null,{"$f":"'[1]MONE(M)CAPARD'!AS326","v":1.75},{"$f":"'[1]MONE(M)CAPARD'!AT326","v":"n.a."},{"$f":"'[1]MONE(M)CAPARD'!AU326","v":3},{"$f":"'[1]MONE(M)CAPARD'!AV326","v":5.75},{"$f":"'[1]MONE(M)CAPARD'!AW326","v":"n.a."},{"$f":"'[1]MONE(M)CAPARD'!AX326","v":5},{"$f":"'[1]MONE(M)CAPARD'!AY326","v":"n.a."},null,null,{"$f":"+'Datos_Regional (M)'!CF319","v":12.230434864104867},{"$f":"+'Datos_Regional (M)'!CG319","v":5.3653602288718183},{"$f":"+'Datos_Regional (M)'!CH319","v":8.7988874531036423},{"$f":"+'Datos_Regional (M)'!CI319","v":9.6720181409224679},{"$f":"+'Datos_Regional (M)'!CJ319","v":23.334681245786214},{"$f":"+'Datos_Regional (M)'!CK319","v":16.232109884652601},{"$f":"+'Datos_Regional (M)'!CL319","v":10.423968063468436},null,null,828.9287615891634,454.21666666666653,869.9,317.986307390668,410.44885745983339,782.36666666666679,965.28606016666674,3660.7592714579973,4626.045331624664,null,null,1302.7293300916656,839.83749999999998,1440,739.53827990695675,635.17466605250002,1411.8916666666667,1792.6231995833339,6369.0684432911221,8161.6916428744562,null,null,-2708.3091718331248,-3535.6463112497913,null,null,{"$f":"'[1]EXT Comercio(M)'!C326","v":981.17860507999853},{"$f":"'[1]EXT Comercio(M)'!D326","v":491.25000000000023},{"$f":"'[1]EXT Comercio(M)'!E326","v":916.8},{"$f":"'[1]EXT Comercio(M)'!F326","v":366.80269869288384},{"$f":"'[1]EXT Comercio(M)'!G326","v":425.1},{"$f":"'[1]EXT Comercio(M)'!H326","v":782.7},{"$f":"'[1]EXT Comercio(M)'!I326","v":1191.425851},{"$f":"'[1]EXT Comercio(M)'!K326","v":3963.831303772884},{"$f":"'[1]EXT Comercio(M)'!L326","v":5155.257154772884},null,null,{"$f":"'[1]EXT Comercio(M)'!AG326","v":1371.5158226799886},{"$f":"'[1]EXT Comercio(M)'!AH326","v":828.38000000000011},{"$f":"'[1]EXT Comercio(M)'!AI326","v":1424.1},{"$f":"'[1]EXT Comercio(M)'!AJ326","v":731.46612451271517},{"$f":"'[1]EXT Comercio(M)'!AK326","v":620.38064480000003},{"$f":"'[1]EXT Comercio(M)'!AL326","v":1462.1},{"$f":"'[1]EXT Comercio(M)'!AM326","v":1788.6915129999998},{"$f":"'[1]EXT Comercio(M)'!AO326","v":6437.9425919927053},{"$f":"'[1]EXT Comercio(M)'!AP326","v":8226.6341049927032},null,null,{"$f":"'[1]EXT Comercio(M)'!$BS326","v":-2474.1112882198213},{"$f":"'[1]EXT Comercio(M)'!$BT326","v":-3071.3769502198229}]
[null,null,"Junio",{"$f":"'[1]REAL IPC(M)'!AD327","v":-0.87839427000000125},{"$f":"'[1]REAL IPC(M)'!AE327","v":0.91541559868180156},{"$f":"'[1]REAL IPC(M)'!AF327","v":4.4327132562426614},{"$f":"'[1]REAL IPC(M)'!AG327","v":2.4466969591052079},{"$f":"'[1]REAL IPC(M)'!AH327","v":3.5641154287860957},{"$f":"'[1]REAL IPC(M)'!AI327","v":1.9098098603398923},{"$f":"'[1]REAL IPC(M)'!AJ327","v":9.6618357487917222E-2},null,null,{"$f":"'[1]REAL IMAE(M)'!AG327","v":3.6890156829416139},{"$f":"'[1]REAL IMAE(M)'!AH327","v":3.1726024250760059},{"$f":"'[1]REAL IMAE(M)'!AI327","v":2.3304495588007996},{"$f":"'[1]REAL IMAE(M)'!AJ327","v":2.709056807962297},{"$f":"'[1]REAL IMAE(M)'!AK327","v":5.3280392892235415},{"$f":"'[1]REAL IMAE(M)'!AL327","v":6.8836749266458055},{"$f":"'[1]REAL IMAE(M)'!AM327","v":3.9769790123031195},null,null,{"$f":"'[1]EXT ITCER(M)'!C327","v":75.5259189162757},{"$f":"'[1]EXT ITCER(M)'!D327","v":92.852295322060002},{"$f":"'[1]EXT ITCER(M)'!E327","v":57.06656525915772},{"$f":"'[1]EXT ITCER(M)'!F327","v":78.208333512512397},{"$f":"'[1]EXT ITCER(M)'!G327","v":100.20951095934531},{"$f":"'[1]EXT ITCER(M)'!H327","v":103.82901354820255},{"$f":"'[1]EXT ITCER(M)'!I327","v":88.807390316658299},null,null,{"$f":"'[1]EXT TC(M)'!J327","v":1.4087370013568035},{"$f":"'[1]EXT TC(M)'!K327","v":0},{"$f":"'[1]EXT TC(M)'!L327","v":-0.10298404795440373},{"$f":"'[1]EXT TC(M)'!M327","v":3.7264107425517579},{"$f":"'[1]EXT TC(M)'!N327","v":5.0814316284438066},{"$f":"'[1]EXT TC(M)'!O327","v":2.3488929452877052},{"$f":"'[1]EXT TC(M)'!P327","v":0},null,null,{"$f":"'[1]EXT RIN(M)'!C327","v":7787.4259480000001},{"$f":"'[1]EXT RIN(M)'!D327","v":2970.08},{"$f":"'[1]EXT RIN(M)'!E327","v":8696.4},{"$f":"'[1]EXT RIN(M)'!F327","v":3955.6458092543835},{"$f":"'[1]EXT RIN(M)'!G327","v":2382.1999999999998},{"$f":"'[1]EXT RIN(M)'!H327","v":5301.0212852378345},{"$f":"'[1]EXT RIN(M)'!I327","v":4770.54989002},null,null,{"$f":"'[1]EXT RIN(M)'!P327","v":68.72626109259491},{"$f":"'[1]EXT RIN(M)'!Q327","v":99.720153168715584},{"$f":"'[1]EXT RIN(M)'!R327","v":106.79361906071185},{"$f":"'[1]EXT RIN(M)'!S327","v":90.58843803446517},{"$f":"'[1]EXT RIN(M)'!T327","v":126.022275832064},{"$f":"'[1]EXT RIN(M)'!U327","v":78.787287560026158},{"$f":"'[1]EXT RIN(M)'!V327","v":324.22250605679881},null,null,{"$f":"+'[1]MONE(M)CAPARD'!AE327","v":6.1827027769236294},{"$f":"'[1]MONE(M)CAPARD'!AF327","v":3.532249637155298},{"$f":"'[1]MONE(M)CAPARD'!AG327","v":0.98368290138811509},{"$f":"'[1]MONE(M)CAPARD'!AH327","v":5.9477789150460589},{"$f":"'[1]MONE(M)CAPARD'!AI327","v":4.9757908061748601},{"$f":"'[1]MONE(M)CAPARD'!AJ327","v":4.7396714273920617},{"$f":"'[1]MONE(M)CAPARD'!AK327","v":2.0547349016576852},null,null,{"$f":"'[1]MONE(M)CAPARD'!AL327","v":3.1144005199999998},{"$f":"'[1]MONE(M)CAPARD'!AM327","v":4.4800000000000004},{"$f":"'[1]MONE(M)CAPARD'!AN327","v":2.84},{"$f":"'[1]MONE(M)CAPARD'!AO327","v":3.73},{"$f":"'[1]MONE(M)CAPARD'!AP327","v":3.03},{"$f":"'[1]MONE(M)CAPARD'!AQ327","v":2.2400000000000002},{"$f":"'[1]MONE(M)CAPARD'!AR327","v":2.1533385102583149},null,null,{"$f":"'[1]MONE(M)CAPARD'!J327","v":15.262458833857718},{"$f":"'[1]MONE(M)CAPARD'!K327","v":5.6132002902757625},{"$f":"'[1]MONE(M)CAPARD'!L327","v":8.3377003931637734},{"$f":"'[1]MONE(M)CAPARD'!M327","v":16.538652337086322},{"$f":"'[1]MONE(M)CAPARD'!N327","v":13.478566052219199},{"$f":"'[1]MONE(M)CAPARD'!O327","v":12.108932551803852},{"$f":"'[1]MONE(M)CAPARD'!P327","v":5.8876930501930573},null,null,{"$f":"'[1]MONE(M)CAPARD'!Q327","v":9.77},{"$f":"'[1]MONE(M)CAPARD'!R327","v":6.58},{"$f":"'[1]MONE(M)CAPARD'!S327","v":5.98},{"$f":"'[1]MONE(M)CAPARD'!T327","v":8.3800000000000008},{"$f":"'[1]MONE(M)CAPARD'!U327","v":8.17},{"$f":"'[1]MONE(M)CAPARD'!V327","v":5.18},{"$f":"'[1]MONE(M)CAPARD'!W327","v":5.99},null,null,{"$f":"'[1]MONE(M)CAPARD'!AS327","v":1.75},{"$f":"'[1]MONE(M)CAPARD'!AT327","v":"n.a."},{"$f":"'[1]MONE(M)CAPARD'!AU327","v":3},{"$f":"'[1]MONE(M)CAPARD'!AV327","v":5.5},{"$f":"'[1]MONE(M)CAPARD'!AW327","v":"n.a."},{"$f":"'[1]MONE(M)CAPARD'!AX327","v":5},{"$f":"'[1]MONE(M)CAPARD'!AY327","v":"n.a."},null,null,{"$f":"+'Datos_Regional (M)'!CF320","v":12.131325169193774},{"$f":"+'Datos_Regional (M)'!CG320","v":5.3417264456903979},{"$f":"+'Datos_Regional (M)'!CH320","v":8.7904226725698855},{"$f":"+'Datos_Regional (M)'!CI320","v":9.4736608567739466},{"$f":"+'Datos_Regional (M)'!CJ320","v":23.515469848430648},{"$f":"+'Datos_Regional (M)'!CK320","v":16.956286155232149},{"$f":"+'Datos_Regional (M)'!CL320","v":10.516036606610403},null,null,831.56442050583018,452.90916666666652,868.83333333333337,316.78251526769128,407.72887650983336,784.52500000000009,965.88300041666673,3659.2553239683534,4625.1383243850205,null,null,1314.6546131758307,837.22833333333335,1442.1083333333336,736.9084424111802,633.12553822416669,1410.05,1789.0043524166667,6373.9722610511781,8162.9766134678457,null,null,-2714.7169370828233,-3537.8382890828238,null,null,{"$f":"'[1]EXT Comercio(M)'!C327","v":881.59974461999673},{"$f":"'[1]EXT Comercio(M)'!D327","v":462.55999999999995},{"$f":"'[1]EXT Comercio(M)'!E327","v":897.60000000000014},{"$f":"'[1]EXT Comercio(M)'!F327","v":360.41687565910883},{"$f":"'[1]EXT Comercio(M)'!G327","v":403.20000000000005},{"$f":"'[1]EXT Comercio(M)'!H327","v":873.59999999999991},{"$f":"'[1]EXT Comercio(M)'!I327","v":999.89609299999995},{"$f":"'[1]EXT Comercio(M)'!K327","v":3878.9766202791034},{"$f":"'[1]EXT Comercio(M)'!L327","v":4878.8727132791028},null,null,{"$f":"'[1]EXT Comercio(M)'!AG327","v":1393.5623600999884},{"$f":"'[1]EXT Comercio(M)'!AH327","v":864.78999999999905},{"$f":"'[1]EXT Comercio(M)'!AI327","v":1475.3},{"$f":"'[1]EXT Comercio(M)'!AJ327","v":759.27468631859995},{"$f":"'[1]EXT Comercio(M)'!AK327","v":634.51046606},{"$f":"'[1]EXT Comercio(M)'!AL327","v":1465.7},{"$f":"'[1]EXT Comercio(M)'!AM327","v":1820.5414970000002},{"$f":"'[1]EXT Comercio(M)'!AO327","v":6593.1375124785882},{"$f":"'[1]EXT Comercio(M)'!AP327","v":8413.6790094785902},null,null,{"$f":"'[1]EXT Comercio(M)'!$BS327","v":-2714.160892199483},{"$f":"'[1]EXT Comercio(M)'!$BT327","v":-3534.8062961994838}]
[null,null,"Julio",{"$f":"'[1]REAL IPC(M)'!AD328","v":0.47552711099003658},{"$f":"'[1]REAL IPC(M)'!AE328","v":0.87944301942104075},{"$f":"'[1]REAL IPC(M)'!AF328","v":4.6185910796164995},{"$f":"'[1]REAL IPC(M)'!AG328","v":2.4033437826541193},{"$f":"'[1]REAL IPC(M)'!AH328","v":4.114878333974656},{"$f":"'[1]REAL IPC(M)'!AI328","v":1.8548048678136748},{"$f":"'[1]REAL IPC(M)'!AJ328","v":9.6525096525104756E-2},null,null,{"$f":"'[1]REAL IMAE(M)'!AG328","v":3.6035626151951163},{"$f":"'[1]REAL IMAE(M)'!AH328","v":3.2586654380927489},{"$f":"'[1]REAL IMAE(M)'!AI328","v":2.2882516763043061},{"$f":"'[1]REAL IMAE(M)'!AJ328","v":2.8713828287550083},{"$f":"'[1]REAL IMAE(M)'!AK328","v":5.286365508023259},{"$f":"'[1]REAL IMAE(M)'!AL328","v":6.4073894653690244},{"$f":"'[1]REAL IMAE(M)'!AM328","v":4.440412201718658},null,null,{"$f":"'[1]EXT ITCER(M)'!C328","v":75.367516713175874},{"$f":"'[1]EXT ITCER(M)'!D328","v":92.803066946377442},{"$f":"'[1]EXT ITCER(M)'!E328","v":56.249362669750681},{"$f":"'[1]EXT ITCER(M)'!F328","v":78.177273194220888},{"$f":"'[1]EXT ITCER(M)'!G328","v":100.38827709178945},{"$f":"'[1]EXT ITCER(M)'!H328","v":103.60057410834607},{"$f":"'[1]EXT ITCER(M)'!I328","v":88.577831494360836},null,null,{"$f":"'[1]EXT TC(M)'!J328","v":2.5614020305851786},{"$f":"'[1]EXT TC(M)'!K328","v":0},{"$f":"'[1]EXT TC(M)'!L328","v":-0.68986029837605378},{"$f":"'[1]EXT TC(M)'!M328","v":4.198671081276486},{"$f":"'[1]EXT TC(M)'!N328","v":4.9925544479373727},{"$f":"'[1]EXT TC(M)'!O328","v":2.1974720726333996},{"$f":"'[1]EXT TC(M)'!P328","v":0},null,null,{"$f":"'[1]EXT RIN(M)'!C328","v":7960.5164569999997},{"$f":"'[1]EXT RIN(M)'!D328","v":3019.77},{"$f":"'[1]EXT RIN(M)'!E328","v":8861},{"$f":"'[1]EXT RIN(M)'!F328","v":3845.271290093568},{"$f":"'[1]EXT RIN(M)'!G328","v":2383.8000000000002},{"$f":"'[1]EXT RIN(M)'!H328","v":5333.600631131173},{"$f":"'[1]EXT RIN(M)'!I328","v":4216.3467571700003},null,null,{"$f":"'[1]EXT RIN(M)'!P328","v":69.735893469870035},{"$f":"'[1]EXT RIN(M)'!Q328","v":103.66572055909602},{"$f":"'[1]EXT RIN(M)'!R328","v":104.17503963750221},{"$f":"'[1]EXT RIN(M)'!S328","v":90.908139273731805},{"$f":"'[1]EXT RIN(M)'!T328","v":121.73599660270365},{"$f":"'[1]EXT RIN(M)'!U328","v":76.688338064451813},{"$f":"'[1]EXT RIN(M)'!V328","v":281.65423714249533},null,null,{"$f":"+'[1]MONE(M)CAPARD'!AE328","v":4.7021130665889288},{"$f":"'[1]MONE(M)CAPARD'!AF328","v":3.5493425354159021},{"$f":"'[1]MONE(M)CAPARD'!AG328","v":0.80426328791139434},{"$f":"'[1]MONE(M)CAPARD'!AH328","v":5.9340408163265401},{"$f":"'[1]MONE(M)CAPARD'!AI328","v":5.1086465759954915},{"$f":"'[1]MONE(M)CAPARD'!AJ328","v":5.4049439683586087},{"$f":"'[1]MONE(M)CAPARD'!AK328","v":1.971571841851486},null,null,{"$f":"'[1]MONE(M)CAPARD'!AL328","v":3.1656468100000001},{"$f":"'[1]MONE(M)CAPARD'!AM328","v":4.46},{"$f":"'[1]MONE(M)CAPARD'!AN328","v":2.87},{"$f":"'[1]MONE(M)CAPARD'!AO328","v":3.75},{"$f":"'[1]MONE(M)CAPARD'!AP328","v":3.57},{"$f":"'[1]MONE(M)CAPARD'!AQ328","v":1.85},{"$f":"'[1]MONE(M)CAPARD'!AR328","v":2.0699999999999998},null,null,{"$f":"'[1]MONE(M)CAPARD'!J328","v":13.729186883261566},{"$f":"'[1]MONE(M)CAPARD'!K328","v":5.5715583000363162},{"$f":"'[1]MONE(M)CAPARD'!L328","v":8.1165391664674527},{"$f":"'[1]MONE(M)CAPARD'!M328","v":16.431744897959195},{"$f":"'[1]MONE(M)CAPARD'!N328","v":12.046644162514236},{"$f":"'[1]MONE(M)CAPARD'!O328","v":12.522919413315762},{"$f":"'[1]MONE(M)CAPARD'!P328","v":5.8678109932497495},null,null,{"$f":"'[1]MONE(M)CAPARD'!Q328","v":9.89},{"$f":"'[1]MONE(M)CAPARD'!R328","v":6.5},{"$f":"'[1]MONE(M)CAPARD'!S328","v":5.99},{"$f":"'[1]MONE(M)CAPARD'!T328","v":8.43},{"$f":"'[1]MONE(M)CAPARD'!U328","v":8.35},{"$f":"'[1]MONE(M)CAPARD'!V328","v":6.03},{"$f":"'[1]MONE(M)CAPARD'!W328","v":5.97},null,null,{"$f":"'[1]MONE(M)CAPARD'!AS328","v":1.75},{"$f":"'[1]MONE(M)CAPARD'!AT328","v":"n.a."},{"$f":"'[1]MONE(M)CAPARD'!AU328","v":3},{"$f":"'[1]MONE(M)CAPARD'!AV328","v":5.5},{"$f":"'[1]MONE(M)CAPARD'!AW328","v":"n.a."},{"$f":"'[1]MONE(M)CAPARD'!AX328","v":5},{"$f":"'[1]MONE(M)CAPARD'!AY328","v":"n.a."},null,null,{"$f":"+'Datos_Regional (M)'!CF321","v":11.583843245403136},{"$f":"+'Datos_Regional (M)'!CG321","v":5.5381489790039762},{"$f":"+'Datos_Regional (M)'!CH321","v":8.1364561924818002},{"$f":"+'Datos_Regional (M)'!CI321","v":9.6974517119586157},{"$f":"+'Datos_Regional (M)'!CJ321","v":21.838007749425081},{"$f":"+'Datos_Regional (M)'!CK321","v":16.360435014070383},{"$f":"+'Datos_Regional (M)'!CL321","v":7.9867247620767801},null,null,833.22847053749717,448.74166666666662,858.7833333333333,315.34740590534778,404.80864111900001,781.77499999999998,954.17664424999987,3639.5965292468445,4593.7731734968438,null,null,1300.1308058499983,827.14583333333337,1414.675,728.94621576179941,632.93094940333333,1400.9916666666668,1766.7739977499998,6304.7174715884639,8071.4914693384662,null,null,-2665.1209423416203,-3477.7182958416201,null,null,{"$f":"'[1]EXT Comercio(M)'!C328","v":812.51283734999879},{"$f":"'[1]EXT Comercio(M)'!D328","v":491.13999999999987},{"$f":"'[1]EXT Comercio(M)'!E328","v":844.59999999999991},{"$f":"'[1]EXT Comercio(M)'!F328","v":292.04033207481513},{"$f":"'[1]EXT Comercio(M)'!G328","v":413.6},{"$f":"'[1]EXT Comercio(M)'!H328","v":850.10000000000014},{"$f":"'[1]EXT Comercio(M)'!I328","v":920.21147799999994},{"$f":"'[1]EXT Comercio(M)'!K328","v":3703.9931694248153},{"$f":"'[1]EXT Comercio(M)'!L328","v":4624.2046474248164},null,null,{"$f":"'[1]EXT Comercio(M)'!AG328","v":1264.032231850003},{"$f":"'[1]EXT Comercio(M)'!AH328","v":822.33000000000084},{"$f":"'[1]EXT Comercio(M)'!AI328","v":1311.4999999999998},{"$f":"'[1]EXT Comercio(M)'!AJ328","v":738.75551762508485},{"$f":"'[1]EXT Comercio(M)'!AK328","v":633.16493414999991},{"$f":"'[1]EXT Comercio(M)'!AL328","v":1410.7999999999997},{"$f":"'[1]EXT Comercio(M)'!AM328","v":1781.5968929999999},{"$f":"'[1]EXT Comercio(M)'!AO328","v":6180.5826836250853},{"$f":"'[1]EXT Comercio(M)'!AP328","v":7962.1795766250871},null,null,{"$f":"'[1]EXT Comercio(M)'!$BS328","v":-2476.5895142002755},{"$f":"'[1]EXT Comercio(M)'!$BT328","v":-3337.9749292002743}]
[null,null,"Agosto",{"$f":"'[1]REAL IPC(M)'!AD329","v":0.59586674170462017},{"$f":"'[1]REAL IPC(M)'!AE329","v":0.94651718434111476},{"$f":"'[1]REAL IPC(M)'!AF329","v":4.7404815462800949},{"$f":"'[1]REAL IPC(M)'!AG329","v":2.506963788300832},{"$f":"'[1]REAL IPC(M)'!AH329","v":3.7504713807529804},{"$f":"'[1]REAL IPC(M)'!AI329","v":1.472433698653062},{"$f":"'[1]REAL IPC(M)'!AJ329","v":0.48449612403100772},null,null,{"$f":"'[1]REAL IMAE(M)'!AG329","v":3.6638140017029683},{"$f":"'[1]REAL IMAE(M)'!AH329","v":3.2129647645149833},{"$f":"'[1]REAL IMAE(M)'!AI329","v":2.3109375770916709},{"$f":"'[1]REAL IMAE(M)'!AJ329","v":3.1475808330186696},{"$f":"'[1]REAL IMAE(M)'!AK329","v":5.0448235387873606},{"$f":"'[1]REAL IMAE(M)'!AL329","v":5.942292026959012},{"$f":"'[1]REAL IMAE(M)'!AM329","v":4.2273160114270185},null,null,{"$f":"'[1]EXT ITCER(M)'!C329","v":75.75091796733355},{"$f":"'[1]EXT ITCER(M)'!D329","v":93.116609963563093},{"$f":"'[1]EXT ITCER(M)'!E329","v":55.739649971495773},{"$f":"'[1]EXT ITCER(M)'!F329","v":78.312327770934942},{"$f":"'[1]EXT ITCER(M)'!G329","v":101.31244581668653},{"$f":"'[1]EXT ITCER(M)'!H329","v":103.79307279033321},{"$f":"'[1]EXT ITCER(M)'!I329","v":88.652184060409311},null,null,{"$f":"'[1]EXT TC(M)'!J329","v":3.0844440480212776},{"$f":"'[1]EXT TC(M)'!K329","v":0},{"$f":"'[1]EXT TC(M)'!L329","v":-1.5063255979707835},{"$f":"'[1]EXT TC(M)'!M329","v":4.1320584511637417},{"$f":"'[1]EXT TC(M)'!N329","v":5.0554276431424929},{"$f":"'[1]EXT TC(M)'!O329","v":2.0550014438989725},{"$f":"'[1]EXT TC(M)'!P329","v":0},null,null,{"$f":"'[1]EXT RIN(M)'!C329","v":8007.6259069999996},{"$f":"'[1]EXT RIN(M)'!D329","v":3050.86},{"$f":"'[1]EXT RIN(M)'!E329","v":8919.2999999999993},{"$f":"'[1]EXT RIN(M)'!F329","v":3776.6892372229431},{"$f":"'[1]EXT RIN(M)'!G329","v":2405.1},{"$f":"'[1]EXT RIN(M)'!H329","v":5131.3255729987877},{"$f":"'[1]EXT RIN(M)'!I329","v":4330.4001211100003},null,null,{"$f":"'[1]EXT RIN(M)'!P329","v":70.63051576081412},{"$f":"'[1]EXT RIN(M)'!Q329","v":104.74602643799788},{"$f":"'[1]EXT RIN(M)'!R329","v":106.09211314551894},{"$f":"'[1]EXT RIN(M)'!S329","v":88.89905841332299},{"$f":"'[1]EXT RIN(M)'!T329","v":123.47622793899752},{"$f":"'[1]EXT RIN(M)'!U329","v":74.481682733863437},{"$f":"'[1]EXT RIN(M)'!V329","v":288.39965592214151},null,null,{"$f":"+'[1]MONE(M)CAPARD'!AE329","v":4.3780459386106489},{"$f":"'[1]MONE(M)CAPARD'!AF329","v":3.4706326809285382},{"$f":"'[1]MONE(M)CAPARD'!AG329","v":0.69650095450206961},{"$f":"'[1]MONE(M)CAPARD'!AH329","v":5.8269565217391346},{"$f":"'[1]MONE(M)CAPARD'!AI329","v":4.7511769830786319},{"$f":"'[1]MONE(M)CAPARD'!AJ329","v":6.0386511666254385},{"$f":"'[1]MONE(M)CAPARD'!AK329","v":1.6873288331726135},null,null,{"$f":"'[1]MONE(M)CAPARD'!AL329","v":3.4059610600000001},{"$f":"'[1]MONE(M)CAPARD'!AM329","v":4.45},{"$f":"'[1]MONE(M)CAPARD'!AN329","v":2.84},{"$f":"'[1]MONE(M)CAPARD'!AO329","v":3.75},{"$f":"'[1]MONE(M)CAPARD'!AP329","v":4.33},{"$f":"'[1]MONE(M)CAPARD'!AQ329","v":2.02},{"$f":"'[1]MONE(M)CAPARD'!AR329","v":2.1800000000000002},null,null,{"$f":"'[1]MONE(M)CAPARD'!J329","v":13.50366938352918},{"$f":"'[1]MONE(M)CAPARD'!K329","v":5.3429112426035488},{"$f":"'[1]MONE(M)CAPARD'!L329","v":7.9811724467069691},{"$f":"'[1]MONE(M)CAPARD'!M329","v":16.22625},{"$f":"'[1]MONE(M)CAPARD'!N329","v":12.81129654601056},{"$f":"'[1]MONE(M)CAPARD'!O329","v":12.956786214856949},{"$f":"'[1]MONE(M)CAPARD'!P329","v":5.4889103182256509},null,null,{"$f":"'[1]MONE(M)CAPARD'!Q329","v":9.94},{"$f":"'[1]MONE(M)CAPARD'!R329","v":6.34},{"$f":"'[1]MONE(M)CAPARD'!S329","v":5.97},{"$f":"'[1]MONE(M)CAPARD'!T329","v":8.3800000000000008},{"$f":"'[1]MONE(M)CAPARD'!U329","v":8.18},{"$f":"'[1]MONE(M)CAPARD'!V329","v":7.03},{"$f":"'[1]MONE(M)CAPARD'!W329","v":6},null,null,{"$f":"'[1]MONE(M)CAPARD'!AS329","v":1.75},{"$f":"'[1]MONE(M)CAPARD'!AT329","v":"n.a."},{"$f":"'[1]MONE(M)CAPARD'!AU329","v":3},{"$f":"'[1]MONE(M)CAPARD'!AV329","v":5.5},{"$f":"'[1]MONE(M)CAPARD'!AW329","v":"n.a."},{"$f":"'[1]MONE(M)CAPARD'!AX329","v":5},{"$f":"'[1]MONE(M)CAPARD'!AY329","v":"n.a."},null,null,{"$f":"+'Datos_Regional (M)'!CF322","v":11.699321846372568},{"$f":"+'Datos_Regional (M)'!CG322","v":5.5876810877295124},{"$f":"+'Datos_Regional (M)'!CH322","v":7.4626387632189539},{"$f":"+'Datos_Regional (M)'!CI322","v":8.8964008875957123},{"$f":"+'Datos_Regional (M)'!CJ322","v":22.318886308054964},{"$f":"+'Datos_Regional (M)'!CK322","v":14.283533363334012},{"$f":"+'Datos_Regional (M)'!CL322","v":9.2935808171376699},null,null,837.88542906749683,450.46499999999986,859.63333333333333,319.92029475558013,407.86656138550006,791.8416666666667,962.50015733333328,3664.5242968935759,4627.0244542269093,null,null,1307.6705566558317,829.11916666666673,1419.8333333333333,735.94462979874527,634.64665656500006,1416.5333333333335,1780.6143695833332,6343.6446769262429,8124.2590465095782,null,null,-2679.1203800326666,-3497.2345922826667,null,null,{"$f":"'[1]EXT Comercio(M)'!C329","v":805.13893976999589},{"$f":"'[1]EXT Comercio(M)'!D329","v":439.29999999999973},{"$f":"'[1]EXT Comercio(M)'!E329","v":888.5},{"$f":"'[1]EXT Comercio(M)'!F329","v":317.33141845226311},{"$f":"'[1]EXT Comercio(M)'!G329","v":448.6},{"$f":"'[1]EXT Comercio(M)'!H329","v":889.9},{"$f":"'[1]EXT Comercio(M)'!I329","v":972.71951000000001},{"$f":"'[1]EXT Comercio(M)'!K329","v":3788.7703582222566},{"$f":"'[1]EXT Comercio(M)'!L329","v":4761.489868222252},null,null,{"$f":"'[1]EXT Comercio(M)'!AG329","v":1375.6054973699952},{"$f":"'[1]EXT Comercio(M)'!AH329","v":829.76999999999953},{"$f":"'[1]EXT Comercio(M)'!AI329","v":1516.4},{"$f":"'[1]EXT Comercio(M)'!AJ329","v":797.75963652129997},{"$f":"'[1]EXT Comercio(M)'!AK329","v":646.18848593999996},{"$f":"'[1]EXT Comercio(M)'!AL329","v":1582.4},{"$f":"'[1]EXT Comercio(M)'!AM329","v":2018.0736769999999},{"$f":"'[1]EXT Comercio(M)'!AO329","v":6748.1236198312909},{"$f":"'[1]EXT Comercio(M)'!AP329","v":8766.1972968312912},null,null,{"$f":"'[1]EXT Comercio(M)'!$BS329","v":-2959.3532616090342},{"$f":"'[1]EXT Comercio(M)'!$BT329","v":-4004.7074286090356}]
[null,null,"Setiembre",{"$f":"'[1]REAL IPC(M)'!AD330","v":0.38575471872420264},{"$f":"'[1]REAL IPC(M)'!AE330","v":1.0146665436767903},{"$f":"'[1]REAL IPC(M)'!AF330","v":4.5587132261021743},{"$f":"'[1]REAL IPC(M)'!AG330","v":2.8960223307745827},{"$f":"'[1]REAL IPC(M)'!AH330","v":3.5228490136803452},{"$f":"'[1]REAL IPC(M)'!AI330","v":1.353157367190114},{"$f":"'[1]REAL IPC(M)'!AJ330","v":1.1684518013631966},null,null,{"$f":"'[1]REAL IMAE(M)'!AG330","v":3.9358244973591758},{"$f":"'[1]REAL IMAE(M)'!AH330","v":3.1231798707518195},{"$f":"'[1]REAL IMAE(M)'!AI330","v":2.4886563959322943},{"$f":"'[1]REAL IMAE(M)'!AJ330","v":3.5167351814703527},{"$f":"'[1]REAL IMAE(M)'!AK330","v":4.8079739930172547},{"$f":"'[1]REAL IMAE(M)'!AL330","v":5.5772585853330208},{"$f":"'[1]REAL IMAE(M)'!AM330","v":4.0494862087614987},null,null,{"$f":"'[1]EXT ITCER(M)'!C330","v":76.515388627438213},{"$f":"'[1]EXT ITCER(M)'!D330","v":93.630259708579018},{"$f":"'[1]EXT ITCER(M)'!E330","v":55.909076416123554},{"$f":"'[1]EXT ITCER(M)'!F330","v":78.629822065025735},{"$f":"'[1]EXT ITCER(M)'!G330","v":102.36090610518956},{"$f":"'[1]EXT ITCER(M)'!H330","v":104.31256367483788},{"$f":"'[1]EXT ITCER(M)'!I330","v":88.694244249681645},null,null,{"$f":"'[1]EXT TC(M)'!J330","v":3.2345890227459129},{"$f":"'[1]EXT TC(M)'!K330","v":0},{"$f":"'[1]EXT TC(M)'!L330","v":-2.1684818802284953},{"$f":"'[1]EXT TC(M)'!M330","v":4.6364547213523144},{"$f":"'[1]EXT TC(M)'!N330","v":5.2511711217672623},{"$f":"'[1]EXT TC(M)'!O330","v":2.1625144939906762},{"$f":"'[1]EXT TC(M)'!P330","v":0},null,null,{"$f":"'[1]EXT RIN(M)'!C330","v":7699.1623669999999},{"$f":"'[1]EXT RIN(M)'!D330","v":2979.43},{"$f":"'[1]EXT RIN(M)'!E330","v":9014.7999999999993},{"$f":"'[1]EXT RIN(M)'!F330","v":3706.3937006078863},{"$f":"'[1]EXT RIN(M)'!G330","v":2417.1999999999998},{"$f":"'[1]EXT RIN(M)'!H330","v":4938.5580471256781},{"$f":"'[1]EXT RIN(M)'!I330","v":4100.1830274599997},null,null,{"$f":"'[1]EXT RIN(M)'!P330","v":68.158936024871679},{"$f":"'[1]EXT RIN(M)'!Q330","v":104.24410663203328},{"$f":"'[1]EXT RIN(M)'!R330","v":104.58897923210624},{"$f":"'[1]EXT RIN(M)'!S330","v":88.168551258689192},{"$f":"'[1]EXT RIN(M)'!T330","v":124.77100287125577},{"$f":"'[1]EXT RIN(M)'!U330","v":77.332252652090133},{"$f":"'[1]EXT RIN(M)'!V330","v":270.69471597254017},null,null,{"$f":"+'[1]MONE(M)CAPARD'!AE330","v":4.2976668286890849},{"$f":"'[1]MONE(M)CAPARD'!AF330","v":3.4602237238608264},{"$f":"'[1]MONE(M)CAPARD'!AG330","v":0.88111908177905429},{"$f":"'[1]MONE(M)CAPARD'!AH330","v":5.4559715157680735},{"$f":"'[1]MONE(M)CAPARD'!AI330","v":6.0412967049394428},{"$f":"'[1]MONE(M)CAPARD'!AJ330","v":5.6306510631283953},{"$f":"'[1]MONE(M)CAPARD'!AK330","v":0.98998075072184499},null,null,{"$f":"'[1]MONE(M)CAPARD'!AL330","v":3.5606965700000002},{"$f":"'[1]MONE(M)CAPARD'!AM330","v":4.51},{"$f":"'[1]MONE(M)CAPARD'!AN330","v":2.85},{"$f":"'[1]MONE(M)CAPARD'!AO330","v":3.74},{"$f":"'[1]MONE(M)CAPARD'!AP330","v":3.04},{"$f":"'[1]MONE(M)CAPARD'!AQ330","v":2.0099999999999998},{"$f":"'[1]MONE(M)CAPARD'!AR330","v":2.17},null,null,{"$f":"'[1]MONE(M)CAPARD'!J330","v":13.691429944205209},{"$f":"'[1]MONE(M)CAPARD'!K330","v":5.2025449730618121},{"$f":"'[1]MONE(M)CAPARD'!L330","v":8.1880184919496255},{"$f":"'[1]MONE(M)CAPARD'!M330","v":15.650729060698563},{"$f":"'[1]MONE(M)CAPARD'!N330","v":13.259831763473224},{"$f":"'[1]MONE(M)CAPARD'!O330","v":13.141863881221676},{"$f":"'[1]MONE(M)CAPARD'!P330","v":4.7658614051973025},null,null,{"$f":"'[1]MONE(M)CAPARD'!Q330","v":9.89},{"$f":"'[1]MONE(M)CAPARD'!R330","v":6.27},{"$f":"'[1]MONE(M)CAPARD'!S330","v":5.99},{"$f":"'[1]MONE(M)CAPARD'!T330","v":8.36},{"$f":"'[1]MONE(M)CAPARD'!U330","v":8.49},{"$f":"'[1]MONE(M)CAPARD'!V330","v":5},{"$f":"'[1]MONE(M)CAPARD'!W330","v":5.99},null,null,{"$f":"'[1]MONE(M)CAPARD'!AS330","v":1.75},{"$f":"'[1]MONE(M)CAPARD'!AT330","v":"n.a."},{"$f":"'[1]MONE(M)CAPARD'!AU330","v":3},{"$f":"'[1]MONE(M)CAPARD'!AV330","v":5.5},{"$f":"'[1]MONE(M)CAPARD'!AW330","v":"n.a."},{"$f":"'[1]MONE(M)CAPARD'!AX330","v":5},{"$f":"'[1]MONE(M)CAPARD'!AY330","v":"n.a."},null,null,{"$f":"+'Datos_Regional (M)'!CF323","v":12.251632969940761},{"$f":"+'Datos_Regional (M)'!CG323","v":5.4830646166862618},{"$f":"+'Datos_Regional (M)'!CH323","v":6.4731928323540133},{"$f":"+'Datos_Regional (M)'!CI323","v":9.5376192107700764},{"$f":"+'Datos_Regional (M)'!CJ323","v":19.239615368862715},{"$f":"+'Datos_Regional (M)'!CK323","v":12.062924875579117},{"$f":"+'Datos_Regional (M)'!CL323","v":8.9725716416110934},null,null,848.56720226416383,450.67083333333329,861.38333333333333,320.21694741843072,408.22214173250001,796.72499999999991,960.08295825000005,3682.6974697667611,4642.7804280167602,null,null,1314.2579081422846,822.92083333333312,1413.6333333333332,739.95558574822041,633.64020881499994,1421.7333333333333,1750.6745240833334,6346.0382032788375,8096.7127273621709,null,null,-2663.3407335120773,-3453.9322993454102,null,null,{"$f":"'[1]EXT Comercio(M)'!C330","v":867.55328102999965},{"$f":"'[1]EXT Comercio(M)'!D330","v":444.94000000000051},{"$f":"'[1]EXT Comercio(M)'!E330","v":835.6},{"$f":"'[1]EXT Comercio(M)'!F330","v":248.95713599850268},{"$f":"'[1]EXT Comercio(M)'!G330","v":397},{"$f":"'[1]EXT Comercio(M)'!H330","v":878.9},{"$f":"'[1]EXT Comercio(M)'!I330","v":1122.7188599999999},{"$f":"'[1]EXT Comercio(M)'!K330","v":3672.9504170285036},{"$f":"'[1]EXT Comercio(M)'!L330","v":4795.6692770285081},null,null,{"$f":"'[1]EXT Comercio(M)'!AG330","v":1315.4620450174421},{"$f":"'[1]EXT Comercio(M)'!AH330","v":793.42000000000007},{"$f":"'[1]EXT Comercio(M)'!AI330","v":1461.9999999999998},{"$f":"'[1]EXT Comercio(M)'!AJ330","v":800.68990440909977},{"$f":"'[1]EXT Comercio(M)'!AK330","v":603.42262700000003},{"$f":"'[1]EXT Comercio(M)'!AL330","v":1529.8000000000002},{"$f":"'[1]EXT Comercio(M)'!AM330","v":1803.096871},{"$f":"'[1]EXT Comercio(M)'!AO330","v":6504.794576426546},{"$f":"'[1]EXT Comercio(M)'!AP330","v":8307.8914474265475},null,null,{"$f":"'[1]EXT Comercio(M)'!$BS330","v":-2831.8441593980424},{"$f":"'[1]EXT Comercio(M)'!$BT330","v":-3512.2221703980395}]
[null,null,"Octubre",{"$f":"'[1]REAL IPC(M)'!AD331","v":0.55180098827521751},{"$f":"'[1]REAL IPC(M)'!AE331","v":-0.8757674250631986},{"$f":"'[1]REAL IPC(M)'!AF331","v":4.7599303424827886},{"$f":"'[1]REAL IPC(M)'!AG331","v":2.8242677824267663},{"$f":"'[1]REAL IPC(M)'!AH331","v":3.3961025778788416},{"$f":"'[1]REAL IPC(M)'!AI331","v":0.91203051156620052},{"$f":"'[1]REAL IPC(M)'!AJ331","v":1.3645224171540018},null,null,{"$f":"'[1]REAL IMAE(M)'!AG331","v":4.2026160407815247},{"$f":"'[1]REAL IMAE(M)'!AH331","v":2.9054770072584293},{"$f":"'[1]REAL IMAE(M)'!AI331","v":2.8566532387838675},{"$f":"'[1]REAL IMAE(M)'!AJ331","v":3.9570936768872418},{"$f":"'[1]REAL IMAE(M)'!AK331","v":4.7539488126175389},{"$f":"'[1]REAL IMAE(M)'!AL331","v":5.3482679045391066},{"$f":"'[1]REAL IMAE(M)'!AM331","v":4.2008610251580825},null,null,{"$f":"'[1]EXT ITCER(M)'!C331","v":76.876917111498415},{"$f":"'[1]EXT ITCER(M)'!D331","v":93.507907950669036},{"$f":"'[1]EXT ITCER(M)'!E331","v":55.388722281051074},{"$f":"'[1]EXT ITCER(M)'!F331","v":79.125045085335387},{"$f":"'[1]EXT ITCER(M)'!G331","v":102.57218379252109},{"$f":"'[1]EXT ITCER(M)'!H331","v":104.72255835894069},{"$f":"'[1]EXT ITCER(M)'!I331","v":88.719434413287104},null,null,{"$f":"'[1]EXT TC(M)'!J331","v":3.5558817172658195},{"$f":"'[1]EXT TC(M)'!K331","v":0},{"$f":"'[1]EXT TC(M)'!L331","v":-2.4012444033819138},{"$f":"'[1]EXT TC(M)'!M331","v":4.5142452636535895},{"$f":"'[1]EXT TC(M)'!N331","v":5.058813525022984},{"$f":"'[1]EXT TC(M)'!O331","v":2.4715379563932141},{"$f":"'[1]EXT TC(M)'!P331","v":0},null,null,{"$f":"'[1]EXT RIN(M)'!C331","v":7715.316143},{"$f":"'[1]EXT RIN(M)'!D331","v":2954.13},{"$f":"'[1]EXT RIN(M)'!E331","v":9063.2000000000007},{"$f":"'[1]EXT RIN(M)'!F331","v":3732.618613722248},{"$f":"'[1]EXT RIN(M)'!G331","v":2332.6},{"$f":"'[1]EXT RIN(M)'!H331","v":5450.2544242431322},{"$f":"'[1]EXT RIN(M)'!I331","v":3941.5233068399998},null,null,{"$f":"'[1]EXT RIN(M)'!P331","v":67.855403608305309},{"$f":"'[1]EXT RIN(M)'!Q331","v":103.20050724625027},{"$f":"'[1]EXT RIN(M)'!R331","v":102.26249400013347},{"$f":"'[1]EXT RIN(M)'!S331","v":89.351963366313655},{"$f":"'[1]EXT RIN(M)'!T331","v":123.00939567947663},{"$f":"'[1]EXT RIN(M)'!U331","v":77.55257980344949},{"$f":"'[1]EXT RIN(M)'!V331","v":255.91515338072378},null,null,{"$f":"+'[1]MONE(M)CAPARD'!AE331","v":4.0757092080356188},{"$f":"'[1]MONE(M)CAPARD'!AF331","v":5.3829091902723372},{"$f":"'[1]MONE(M)CAPARD'!AG331","v":0.69689780733001316},{"$f":"'[1]MONE(M)CAPARD'!AH331","v":5.519837232960338},{"$f":"'[1]MONE(M)CAPARD'!AI331","v":6.078854604322248},{"$f":"'[1]MONE(M)CAPARD'!AJ331","v":6.3599646701174963},{"$f":"'[1]MONE(M)CAPARD'!AK331","v":0.78476923076922511},null,null,{"$f":"'[1]MONE(M)CAPARD'!AL331","v":3.3040258599999999},{"$f":"'[1]MONE(M)CAPARD'!AM331","v":4.46},{"$f":"'[1]MONE(M)CAPARD'!AN331","v":2.85},{"$f":"'[1]MONE(M)CAPARD'!AO331","v":3.74},{"$f":"'[1]MONE(M)CAPARD'!AP331","v":3.15},{"$f":"'[1]MONE(M)CAPARD'!AQ331","v":2.06},{"$f":"'[1]MONE(M)CAPARD'!AR331","v":2.16},null,null,{"$f":"'[1]MONE(M)CAPARD'!J331","v":13.851764836463618},{"$f":"'[1]MONE(M)CAPARD'!K331","v":7.3299608343200644},{"$f":"'[1]MONE(M)CAPARD'!L331","v":7.9611256233673764},{"$f":"'[1]MONE(M)CAPARD'!M331","v":15.643906408952201},{"$f":"'[1]MONE(M)CAPARD'!N331","v":11.281189236258351},{"$f":"'[1]MONE(M)CAPARD'!O331","v":14.287661654753105},{"$f":"'[1]MONE(M)CAPARD'!P331","v":4.651999999999993},null,null,{"$f":"'[1]MONE(M)CAPARD'!Q331","v":9.9700000000000006},{"$f":"'[1]MONE(M)CAPARD'!R331","v":6.39},{"$f":"'[1]MONE(M)CAPARD'!S331","v":6.01},{"$f":"'[1]MONE(M)CAPARD'!T331","v":8.42},{"$f":"'[1]MONE(M)CAPARD'!U331","v":7.95},{"$f":"'[1]MONE(M)CAPARD'!V331","v":6.29},{"$f":"'[1]MONE(M)CAPARD'!W331","v":6.08},null,null,{"$f":"'[1]MONE(M)CAPARD'!AS331","v":1.75},{"$f":"'[1]MONE(M)CAPARD'!AT331","v":"n.a."},{"$f":"'[1]MONE(M)CAPARD'!AU331","v":3},{"$f":"'[1]MONE(M)CAPARD'!AV331","v":5.5},{"$f":"'[1]MONE(M)CAPARD'!AW331","v":"n.a."},{"$f":"'[1]MONE(M)CAPARD'!AX331","v":5},{"$f":"'[1]MONE(M)CAPARD'!AY331","v":"n.a."},null,null,{"$f":"+'Datos_Regional (M)'!CF324","v":12.362781787589538},{"$f":"+'Datos_Regional (M)'!CG324","v":5.7951004644006376},{"$f":"+'Datos_Regional (M)'!CH324","v":5.9676497113355431},{"$f":"+'Datos_Regional (M)'!CI324","v":9.2122935495182254},{"$f":"+'Datos_Regional (M)'!CJ324","v":19.647657652296679},{"$f":"+'Datos_Regional (M)'!CK324","v":11.610170275434207},{"$f":"+'Datos_Regional (M)'!CL324","v":9.0785374290003329},null,null,851.91175380999766,447.98833333333329,851.7166666666667,319.90138994473091,405.3346352216667,803.43333333333339,946.25308499999994,3677.1981239947277,4623.4512089947266,null,null,1310.5441087997854,817.01249999999982,1401.3833333333332,737.73860502834248,631.28066265583323,1426.1916666666666,1746.0984532499999,6324.0478770572945,8070.1463303072933,null,null,-2646.8497530625659,-3446.6951213125653,null,null,{"$f":"'[1]EXT Comercio(M)'!C331","v":853.63796034999746},{"$f":"'[1]EXT Comercio(M)'!D331","v":441.92999999999938},{"$f":"'[1]EXT Comercio(M)'!E331","v":709},{"$f":"'[1]EXT Comercio(M)'!F331","v":261.91514745025268},{"$f":"'[1]EXT Comercio(M)'!G331","v":401.7},{"$f":"'[1]EXT Comercio(M)'!H331","v":865.69999999999993},{"$f":"'[1]EXT Comercio(M)'!I331","v":1071.3900980000001},{"$f":"'[1]EXT Comercio(M)'!K331","v":3533.8831078002477},{"$f":"'[1]EXT Comercio(M)'!L331","v":4605.2732058002439},null,null,{"$f":"'[1]EXT Comercio(M)'!AG331","v":1317.6991834700036},{"$f":"'[1]EXT Comercio(M)'!AH331","v":815.44999999999982},{"$f":"'[1]EXT Comercio(M)'!AI331","v":1401.3},{"$f":"'[1]EXT Comercio(M)'!AJ331","v":741.39558957489282},{"$f":"'[1]EXT Comercio(M)'!AK331","v":641.98544608999998},{"$f":"'[1]EXT Comercio(M)'!AL331","v":1510.3000000000002},{"$f":"'[1]EXT Comercio(M)'!AM331","v":2041.0708949999998},{"$f":"'[1]EXT Comercio(M)'!AO331","v":6428.130219134895},{"$f":"'[1]EXT Comercio(M)'!AP331","v":8469.2011141348921},null,null,{"$f":"'[1]EXT Comercio(M)'!$BS331","v":-2894.2471113346437},{"$f":"'[1]EXT Comercio(M)'!$BT331","v":-3863.927908334641}]
[null,null,"Noviembre",{"$f":"'[1]REAL IPC(M)'!AD332","v":0.56037234029009209},{"$f":"'[1]REAL IPC(M)'!AE332","v":-0.82211581895383201},{"$f":"'[1]REAL IPC(M)'!AF332","v":4.6715087487619646},{"$f":"'[1]REAL IPC(M)'!AG332","v":3.0355896720167439},{"$f":"'[1]REAL IPC(M)'!AH332","v":3.3063565881557109},{"$f":"'[1]REAL IPC(M)'!AI332","v":0.87741081036338231},{"$f":"'[1]REAL IPC(M)'!AJ332","v":1.2670565302144361},null,null,{"$f":"'[1]REAL IMAE(M)'!AG332","v":4.3382749428185257},{"$f":"'[1]REAL IMAE(M)'!AH332","v":2.9469643470341857},{"$f":"'[1]REAL IMAE(M)'!AI332","v":3.330201074480768},{"$f":"'[1]REAL IMAE(M)'!AJ332","v":4.4086281047997495},{"$f":"'[1]REAL IMAE(M)'!AK332","v":4.9924578207451811},{"$f":"'[1]REAL IMAE(M)'!AL332","v":5.3082477765815197},{"$f":"'[1]REAL IMAE(M)'!AM332","v":4.1584291123546455},null,null,{"$f":"'[1]EXT ITCER(M)'!C332","v":76.884677065320545},{"$f":"'[1]EXT ITCER(M)'!D332","v":93.370964564445202},{"$f":"'[1]EXT ITCER(M)'!E332","v":55.148333625852644},{"$f":"'[1]EXT ITCER(M)'!F332","v":79.233266317094817},{"$f":"'[1]EXT ITCER(M)'!G332","v":102.47774570315411},{"$f":"'[1]EXT ITCER(M)'!H332","v":104.74910216384681},{"$f":"'[1]EXT ITCER(M)'!I332","v":88.666691238768578},null,null,{"$f":"'[1]EXT TC(M)'!J332","v":3.9453411719632756},{"$f":"'[1]EXT TC(M)'!K332","v":0},{"$f":"'[1]EXT TC(M)'!L332","v":-1.8119847770722313},{"$f":"'[1]EXT TC(M)'!M332","v":4.6754317166622306},{"$f":"'[1]EXT TC(M)'!N332","v":5.0816028794594548},{"$f":"'[1]EXT TC(M)'!O332","v":2.5594811325957623},{"$f":"'[1]EXT TC(M)'!P332","v":0},null,null,{"$f":"'[1]EXT RIN(M)'!C332","v":7583.0048699999998},{"$f":"'[1]EXT RIN(M)'!D332","v":3028.36},{"$f":"'[1]EXT RIN(M)'!E332","v":9003.6},{"$f":"'[1]EXT RIN(M)'!F332","v":3679.9548910651647},{"$f":"'[1]EXT RIN(M)'!G332","v":2296.1},{"$f":"'[1]EXT RIN(M)'!H332","v":5709.3339168861885},{"$f":"'[1]EXT RIN(M)'!I332","v":4146.9411949899995},null,null,{"$f":"'[1]EXT RIN(M)'!P332","v":64.424380479162167},{"$f":"'[1]EXT RIN(M)'!Q332","v":103.67264972977451},{"$f":"'[1]EXT RIN(M)'!R332","v":105.96905138072084},{"$f":"'[1]EXT RIN(M)'!S332","v":87.809876410777093},{"$f":"'[1]EXT RIN(M)'!T332","v":122.70843659922288},{"$f":"'[1]EXT RIN(M)'!U332","v":80.223642450946016},{"$f":"'[1]EXT RIN(M)'!V332","v":256.95672039036259},null,null,{"$f":"+'[1]MONE(M)CAPARD'!AE332","v":4.0171168480164896},{"$f":"'[1]MONE(M)CAPARD'!AF332","v":5.3359837857533208},{"$f":"'[1]MONE(M)CAPARD'!AG332","v":0.78196183567260991},{"$f":"'[1]MONE(M)CAPARD'!AH332","v":5.2160717913985817},{"$f":"'[1]MONE(M)CAPARD'!AI332","v":5.5430418308140634},{"$f":"'[1]MONE(M)CAPARD'!AJ332","v":7.9230713054894535},{"$f":"'[1]MONE(M)CAPARD'!AK332","v":0.9015206929740025},null,null,{"$f":"'[1]MONE(M)CAPARD'!AL332","v":3.2359271600000001},{"$f":"'[1]MONE(M)CAPARD'!AM332","v":4.47},{"$f":"'[1]MONE(M)CAPARD'!AN332","v":2.86},{"$f":"'[1]MONE(M)CAPARD'!AO332","v":3.63},{"$f":"'[1]MONE(M)CAPARD'!AP332","v":3.49},{"$f":"'[1]MONE(M)CAPARD'!AQ332","v":2.39},{"$f":"'[1]MONE(M)CAPARD'!AR332","v":2.1800000000000002},null,null,{"$f":"'[1]MONE(M)CAPARD'!J332","v":13.613342255123174},{"$f":"'[1]MONE(M)CAPARD'!K332","v":7.4634742211696086},{"$f":"'[1]MONE(M)CAPARD'!L332","v":8.0332187352152697},{"$f":"'[1]MONE(M)CAPARD'!M332","v":15.43584151710126},{"$f":"'[1]MONE(M)CAPARD'!N332","v":13.283814270410184},{"$f":"'[1]MONE(M)CAPARD'!O332","v":14.832447690161644},{"$f":"'[1]MONE(M)CAPARD'!P332","v":4.7625986525505173},null,null,{"$f":"'[1]MONE(M)CAPARD'!Q332","v":9.7899999999999991},{"$f":"'[1]MONE(M)CAPARD'!R332","v":6.58},{"$f":"'[1]MONE(M)CAPARD'!S332","v":6},{"$f":"'[1]MONE(M)CAPARD'!T332","v":8.35},{"$f":"'[1]MONE(M)CAPARD'!U332","v":8.6199999999999992},{"$f":"'[1]MONE(M)CAPARD'!V332","v":6.74},{"$f":"'[1]MONE(M)CAPARD'!W332","v":6.09},null,null,{"$f":"'[1]MONE(M)CAPARD'!AS332","v":1.75},{"$f":"'[1]MONE(M)CAPARD'!AT332","v":"n.a."},{"$f":"'[1]MONE(M)CAPARD'!AU332","v":3},{"$f":"'[1]MONE(M)CAPARD'!AV332","v":5.5},{"$f":"'[1]MONE(M)CAPARD'!AW332","v":"n.a."},{"$f":"'[1]MONE(M)CAPARD'!AX332","v":5.5},{"$f":"'[1]MONE(M)CAPARD'!AY332","v":"n.a."},null,null,{"$f":"+'Datos_Regional (M)'!CF325","v":12.897264885701487},{"$f":"+'Datos_Regional (M)'!CG325","v":5.5483739156772183},{"$f":"+'Datos_Regional (M)'!CH325","v":6.0260948660573632},{"$f":"+'Datos_Regional (M)'!CI325","v":9.7560538598383104},{"$f":"+'Datos_Regional (M)'!CJ325","v":18.703604357627569},{"$f":"+'Datos_Regional (M)'!CK325","v":11.696356462873014},{"$f":"+'Datos_Regional (M)'!CL325","v":8.0382702238769976},null,null,861.01585181249766,450.10083333333318,857.33333333333337,324.0637743232852,405.35053562999997,812.44166666666661,943.26246524999988,3707.218006784115,4650.4804720341153,null,null,1319.2694454372847,818.13249999999982,1409.0999999999997,742.36272558065957,625.21605775749993,1440.5249999999999,1745.9876356666666,6354.5027293487774,8100.4903650154438,null,null,-2647.2847225646615,-3450.0098929813284,null,null,{"$f":"'[1]EXT Comercio(M)'!C332","v":919.24392068999737},{"$f":"'[1]EXT Comercio(M)'!D332","v":434.10000000000036},{"$f":"'[1]EXT Comercio(M)'!E332","v":853.80000000000007},{"$f":"'[1]EXT Comercio(M)'!F332","v":308.6098519563069},{"$f":"'[1]EXT Comercio(M)'!G332","v":370.2},{"$f":"'[1]EXT Comercio(M)'!H332","v":855.90000000000009},{"$f":"'[1]EXT Comercio(M)'!I332","v":969.80848400000002},{"$f":"'[1]EXT Comercio(M)'!K332","v":3741.853772646311},{"$f":"'[1]EXT Comercio(M)'!L332","v":4711.662256646312},null,null,{"$f":"'[1]EXT Comercio(M)'!AG332","v":1480.6946727799905},{"$f":"'[1]EXT Comercio(M)'!AH332","v":865.81999999999971},{"$f":"'[1]EXT Comercio(M)'!AI332","v":1554.7},{"$f":"'[1]EXT Comercio(M)'!AJ332","v":798.19773582347398},{"$f":"'[1]EXT Comercio(M)'!AK332","v":666.42474121999999},{"$f":"'[1]EXT Comercio(M)'!AL332","v":1603.9999999999998},{"$f":"'[1]EXT Comercio(M)'!AM332","v":1686.1622870000001},{"$f":"'[1]EXT Comercio(M)'!AO332","v":6969.8371498234628},{"$f":"'[1]EXT Comercio(M)'!AP332","v":8655.999436823462},null,null,{"$f":"'[1]EXT Comercio(M)'!$BS332","v":-3227.9833771771591},{"$f":"'[1]EXT Comercio(M)'!$BT332","v":-3944.3371801771646}]
[null,null,"Diciembre ",{"$f":"'[1]REAL IPC(M)'!AD333","v":0.76519110290053316},{"$f":"'[1]REAL IPC(M)'!AE333","v":-0.93119971069523655},{"$f":"'[1]REAL IPC(M)'!AF333","v":4.2324128862590324},{"$f":"'[1]REAL IPC(M)'!AG333","v":3.3147243545010467},{"$f":"'[1]REAL IPC(M)'!AH333","v":3.1296532012614322},{"$f":"'[1]REAL IPC(M)'!AI333","v":1.6953357591796205},{"$f":"'[1]REAL IPC(M)'!AJ333","v":1.4634146341463417},null,null,{"$f":"'[1]REAL IMAE(M)'!AG333","v":4.2746755231143858},{"$f":"'[1]REAL IMAE(M)'!AH333","v":3.145275102610086},{"$f":"'[1]REAL IMAE(M)'!AI333","v":3.7556675333465357},{"$f":"'[1]REAL IMAE(M)'!AJ333","v":4.838927816954449},{"$f":"'[1]REAL IMAE(M)'!AK333","v":5.4016418555342112},{"$f":"'[1]REAL IMAE(M)'!AL333","v":5.468041398939941},{"$f":"'[1]REAL IMAE(M)'!AM333","v":4.0854535120858442},null,null,{"$f":"'[1]EXT ITCER(M)'!C333","v":76.349573901842035},{"$f":"'[1]EXT ITCER(M)'!D333","v":93.571998729049511},{"$f":"'[1]EXT ITCER(M)'!E333","v":55.160561714738186},{"$f":"'[1]EXT ITCER(M)'!F333","v":79.984747637435945},{"$f":"'[1]EXT ITCER(M)'!G333","v":102.04611107501998},{"$f":"'[1]EXT ITCER(M)'!H333","v":104.06073572180829},{"$f":"'[1]EXT ITCER(M)'!I333","v":88.610429403458966},null,null,{"$f":"'[1]EXT TC(M)'!J333","v":3.4311838952807183},{"$f":"'[1]EXT TC(M)'!K333","v":0},{"$f":"'[1]EXT TC(M)'!L333","v":-1.4716797389061356},{"$f":"'[1]EXT TC(M)'!M333","v":5.2288130433529458},{"$f":"'[1]EXT TC(M)'!N333","v":5.1720265242132593},{"$f":"'[1]EXT TC(M)'!O333","v":2.5238231475164485},{"$f":"'[1]EXT TC(M)'!P333","v":0},null,null,{"$f":"'[1]EXT RIN(M)'!C333","v":7573.8},{"$f":"'[1]EXT RIN(M)'!D333","v":2922.99},{"$f":"'[1]EXT RIN(M)'!E333","v":9160.4},{"$f":"'[1]EXT RIN(M)'!F333","v":3887.6050145088475},{"$f":"'[1]EXT RIN(M)'!G333","v":2387.5},{"$f":"'[1]EXT RIN(M)'!H333","v":6046.699976951857},{"$f":"'[1]EXT RIN(M)'!I333","v":4502.1774745299999},null,null,{"$f":"'[1]EXT RIN(M)'!P333","v":65.431752834127167},{"$f":"'[1]EXT RIN(M)'!Q333","v":101.17474561715942},{"$f":"'[1]EXT RIN(M)'!R333","v":100.23957162416191},{"$f":"'[1]EXT RIN(M)'!S333","v":81.977400691635239},{"$f":"'[1]EXT RIN(M)'!T333","v":122.32108072957088},{"$f":"'[1]EXT RIN(M)'!U333","v":80.01081823949751},{"$f":"'[1]EXT RIN(M)'!V333","v":275.42153380223914},null,null,{"$f":"+'[1]MONE(M)CAPARD'!AE333","v":3.6568271808630541},{"$f":"'[1]MONE(M)CAPARD'!AF333","v":5.5428143821865312},{"$f":"'[1]MONE(M)CAPARD'!AG333","v":1.1585523929669714},{"$f":"'[1]MONE(M)CAPARD'!AH333","v":4.6995001688618707},{"$f":"'[1]MONE(M)CAPARD'!AI333","v":6.5389174686972371},{"$f":"'[1]MONE(M)CAPARD'!AJ333","v":5.0490656257623838},{"$f":"'[1]MONE(M)CAPARD'!AK333","v":0.71610576923076896},null,null,{"$f":"'[1]MONE(M)CAPARD'!AL333","v":3.2935811799999999},{"$f":"'[1]MONE(M)CAPARD'!AM333","v":4.5599999999999996},{"$f":"'[1]MONE(M)CAPARD'!AN333","v":2.88},{"$f":"'[1]MONE(M)CAPARD'!AO333","v":3.55},{"$f":"'[1]MONE(M)CAPARD'!AP333","v":3.54},{"$f":"'[1]MONE(M)CAPARD'!AQ333","v":2.0699999999999998},{"$f":"'[1]MONE(M)CAPARD'!AR333","v":2.19},null,null,{"$f":"'[1]MONE(M)CAPARD'!J333","v":13.382407902475862},{"$f":"'[1]MONE(M)CAPARD'!K333","v":7.390015513779888},{"$f":"'[1]MONE(M)CAPARD'!L333","v":8.4403563825593384},{"$f":"'[1]MONE(M)CAPARD'!M333","v":14.978770685579196},{"$f":"'[1]MONE(M)CAPARD'!N333","v":13.351207778746993},{"$f":"'[1]MONE(M)CAPARD'!O333","v":12.551867935268769},{"$f":"'[1]MONE(M)CAPARD'!P333","v":4.5697115384615374},null,null,{"$f":"'[1]MONE(M)CAPARD'!Q333","v":9.82},{"$f":"'[1]MONE(M)CAPARD'!R333","v":6.39},{"$f":"'[1]MONE(M)CAPARD'!S333","v":5.93},{"$f":"'[1]MONE(M)CAPARD'!T333","v":8.18},{"$f":"'[1]MONE(M)CAPARD'!U333","v":7.64},{"$f":"'[1]MONE(M)CAPARD'!V333","v":6.98},{"$f":"'[1]MONE(M)CAPARD'!W333","v":6.1},null,null,{"$f":"'[1]MONE(M)CAPARD'!AS333","v":1.75},{"$f":"'[1]MONE(M)CAPARD'!AT333","v":"n.a."},{"$f":"'[1]MONE(M)CAPARD'!AU333","v":3},{"$f":"'[1]MONE(M)CAPARD'!AV333","v":5.5},{"$f":"'[1]MONE(M)CAPARD'!AW333","v":"n.a."},{"$f":"'[1]MONE(M)CAPARD'!AX333","v":5.5},{"$f":"'[1]MONE(M)CAPARD'!AY333","v":"n.a."},null,null,{"$f":"+'Datos_Regional (M)'!CF326","v":12.149654232111873},{"$f":"+'Datos_Regional (M)'!CG326","v":5.0584468647588254},{"$f":"+'Datos_Regional (M)'!CH326","v":6.6840962486078404},{"$f":"+'Datos_Regional (M)'!CI326","v":11.727420063249427},{"$f":"+'Datos_Regional (M)'!CJ326","v":17.512010337992635},{"$f":"+'Datos_Regional (M)'!CK326","v":11.407213499098457},{"$f":"+'Datos_Regional (M)'!CL326","v":8.5815479642203698},null,null,864.91980560166382,451.67916666666662,870.77499999999998,325.59544521185927,403.26666666666665,819.9666666666667,{"$f":"IF(EN138=\"\",\"\",+AVERAGE(EN127:EN138))","v":932.91222266666671},3736.2027508135229,4669.1149734801893,null,null,1328.6999549697844,818.8158333333331,1416.8999999999999,742.72923263123448,624.62623514416657,1449.8833333333332,1744.5847155833333,6381.6545894118508,8126.2393049951834,null,null,-2645.4518385983292,-3457.1243315149964,null,null,{"$f":"'[1]EXT Comercio(M)'!C333","v":844.56438733999425},{"$f":"'[1]EXT Comercio(M)'!D333","v":402.06999999999971},{"$f":"'[1]EXT Comercio(M)'!E333","v":974.50000000000023},{"$f":"'[1]EXT Comercio(M)'!F333","v":331.32252557132506},{"$f":"'[1]EXT Comercio(M)'!G333","v":337.5},{"$f":"'[1]EXT Comercio(M)'!H333","v":755.09999999999991},{"$f":"'[1]EXT Comercio(M)'!I333","v":791.43451399999992},{"$f":"'[1]EXT Comercio(M)'!K333","v":3645.0569129113137},{"$f":"'[1]EXT Comercio(M)'!L333","v":4436.4914269113142},null,null,{"$f":"'[1]EXT Comercio(M)'!AG333","v":1388.8661143899972},{"$f":"'[1]EXT Comercio(M)'!AH333","v":812.73999999999796},{"$f":"'[1]EXT Comercio(M)'!AI333","v":1483},{"$f":"'[1]EXT Comercio(M)'!AJ333","v":781.69047280240011},{"$f":"'[1]EXT Comercio(M)'!AK333","v":605.22212863999994},{"$f":"'[1]EXT Comercio(M)'!AL333","v":1530.9},{"$f":"'[1]EXT Comercio(M)'!AM333","v":1657.3916119999999},{"$f":"'[1]EXT Comercio(M)'!AO333","v":6602.4187158323912},{"$f":"'[1]EXT Comercio(M)'!AP333","v":8259.8103278323833},null,null,{"$f":"'[1]EXT Comercio(M)'!$BS333","v":-2957.3618029210811},{"$f":"'[1]EXT Comercio(M)'!$BT333","v":-3823.3189009210837}]
[null,2017,"Enero",{"$f":"'[1]REAL IPC(M)'!AD334","v":0.65571454315688038},{"$f":"'[1]REAL IPC(M)'!AE334","v":-0.25300442757748359},{"$f":"'[1]REAL IPC(M)'!AF334","v":3.827673263295047},{"$f":"'[1]REAL IPC(M)'!AG334","v":3.4434782608695569},{"$f":"'[1]REAL IPC(M)'!AH334","v":3.8815156361188228},{"$f":"'[1]REAL IPC(M)'!AI334","v":2.3323132908775182},{"$f":"'[1]REAL IPC(M)'!AJ334","v":1.6569200779727127},null,null,{"$f":"'[1]REAL IMAE(M)'!AG334","v":4.0534464857898707},{"$f":"'[1]REAL IMAE(M)'!AH334","v":2.9283634840856836},{"$f":"'[1]REAL IMAE(M)'!AI334","v":4.0034609014228391},{"$f":"'[1]REAL IMAE(M)'!AJ334","v":5.1107632380035204},{"$f":"'[1]REAL IMAE(M)'!AK334","v":5.8112000545521427},{"$f":"'[1]REAL IMAE(M)'!AL334","v":5.6659277944860129},{"$f":"'[1]REAL IMAE(M)'!AM334","v":4.7962591850367451},null,null,{"$f":"'[1]EXT ITCER(M)'!C334","v":76.677143428891341},{"$f":"'[1]EXT ITCER(M)'!D334","v":93.426713703859335},{"$f":"'[1]EXT ITCER(M)'!E334","v":55.282895640233235},{"$f":"'[1]EXT ITCER(M)'!F334","v":80.547792105669103},{"$f":"'[1]EXT ITCER(M)'!G334","v":102.47206612500642},{"$f":"'[1]EXT ITCER(M)'!H334","v":104.25068723520192},{"$f":"'[1]EXT ITCER(M)'!I334","v":88.870469749982163},null,null,{"$f":"'[1]EXT TC(M)'!J334","v":3.4686020796032864},{"$f":"'[1]EXT TC(M)'!K334","v":0},{"$f":"'[1]EXT TC(M)'!L334","v":-1.7561971290336555},{"$f":"'[1]EXT TC(M)'!M334","v":5.0437744599621999},{"$f":"'[1]EXT TC(M)'!N334","v":4.9127955366307328},{"$f":"'[1]EXT TC(M)'!O334","v":2.5519819705043769},{"$f":"'[1]EXT TC(M)'!P334","v":0},null,null,{"$f":"'[1]EXT RIN(M)'!C334","v":7523.8},{"$f":"'[1]EXT RIN(M)'!D334","v":2903.89},{"$f":"'[1]EXT RIN(M)'!E334","v":9065.2000000000007},{"$f":"'[1]EXT RIN(M)'!F334","v":4445.9861856149864},{"$f":"'[1]EXT RIN(M)'!G334","v":2398.9},{"$f":"'[1]EXT RIN(M)'!H334","v":6707},{"$f":"'[1]EXT RIN(M)'!I334","v":4320.8750235799998},null,null,{"$f":"'[1]EXT RIN(M)'!P334","v":66.425655942158599},{"$f":"'[1]EXT RIN(M)'!Q334","v":101.29999609296512},{"$f":"'[1]EXT RIN(M)'!R334","v":100.19886947647763},{"$f":"'[1]EXT RIN(M)'!S334","v":100.60671451113909},{"$f":"'[1]EXT RIN(M)'!T334","v":123.58945069165821},{"$f":"'[1]EXT RIN(M)'!U334","v":94.445259274215715},{"$f":"'[1]EXT RIN(M)'!V334","v":282.00464541856991},null,null,{"$f":"+'[1]MONE(M)CAPARD'!AE334","v":3.8689164092848558},{"$f":"'[1]MONE(M)CAPARD'!AF334","v":4.7349841471147753},{"$f":"'[1]MONE(M)CAPARD'!AG334","v":1.5625186289120812},{"$f":"'[1]MONE(M)CAPARD'!AH334","v":4.8978648285137947},{"$f":"'[1]MONE(M)CAPARD'!AI334","v":5.0627539735370517},{"$f":"'[1]MONE(M)CAPARD'!AJ334","v":3.6427269053584359},{"$f":"'[1]MONE(M)CAPARD'!AK334","v":0.52439117929050505},null,null,{"$f":"'[1]MONE(M)CAPARD'!AL334","v":3.2719320500000002},{"$f":"'[1]MONE(M)CAPARD'!AM334","v":4.47},{"$f":"'[1]MONE(M)CAPARD'!AN334","v":2.91},{"$f":"'[1]MONE(M)CAPARD'!AO334","v":3.65},{"$f":"'[1]MONE(M)CAPARD'!AP334","v":3.79},{"$f":"'[1]MONE(M)CAPARD'!AQ334","v":1.77},{"$f":"'[1]MONE(M)CAPARD'!AR334","v":2.19},null,null,{"$f":"'[1]MONE(M)CAPARD'!J334","v":13.505726444388282},{"$f":"'[1]MONE(M)CAPARD'!K334","v":6.5495751426759679},{"$f":"'[1]MONE(M)CAPARD'!L334","v":8.8823397913561948},{"$f":"'[1]MONE(M)CAPARD'!M334","v":15.792703429724288},{"$f":"'[1]MONE(M)CAPARD'!N334","v":12.516018650310142},{"$f":"'[1]MONE(M)CAPARD'!O334","v":14.030452598399737},{"$f":"'[1]MONE(M)CAPARD'!P334","v":4.2837679769894512},null,null,{"$f":"'[1]MONE(M)CAPARD'!Q334","v":9.84},{"$f":"'[1]MONE(M)CAPARD'!R334","v":6.28},{"$f":"'[1]MONE(M)CAPARD'!S334","v":6},{"$f":"'[1]MONE(M)CAPARD'!T334","v":8.43},{"$f":"'[1]MONE(M)CAPARD'!U334","v":7.87},{"$f":"'[1]MONE(M)CAPARD'!V334","v":6.94},{"$f":"'[1]MONE(M)CAPARD'!W334","v":6.0116666666666667},null,null,{"$f":"'[1]MONE(M)CAPARD'!AS334","v":1.75},{"$f":"'[1]MONE(M)CAPARD'!AT334","v":"n.a."},{"$f":"'[1]MONE(M)CAPARD'!AU334","v":3},{"$f":"'[1]MONE(M)CAPARD'!AV334","v":5.5},{"$f":"'[1]MONE(M)CAPARD'!AW334","v":"n.a."},{"$f":"'[1]MONE(M)CAPARD'!AX334","v":5.5},{"$f":"'[1]MONE(M)CAPARD'!AY334","v":"n.a."},null,null,{"$f":"+'Datos_Regional (M)'!CF327","v":12.552297027231463},{"$f":"+'Datos_Regional (M)'!CG327","v":5.3623662092741053},{"$f":"+'Datos_Regional (M)'!CH327","v":6.1780908224726483},{"$f":"+'Datos_Regional (M)'!CI327","v":11.708501814766903},{"$f":"+'Datos_Regional (M)'!CJ327","v":18.663532732878551},{"$f":"+'Datos_Regional (M)'!CK327","v":11.321829171175658},{"$f":"+'Datos_Regional (M)'!CL327","v":8.2779128203285488},null,null,{"$f":"IF(EH139=\"\",\"\",+AVERAGE(EH128:EH139))","v":870.68665473166402},{"$f":"IF(EI139=\"\",\"\",+AVERAGE(EI128:EI139))","v":452.97499999999997},{"$f":"IF(EJ139=\"\",\"\",+AVERAGE(EJ128:EJ139))","v":874.55000000000007},{"$f":"IF(EK139=\"\",\"\",+AVERAGE(EK128:EK139))","v":331.28842354017934},{"$f":"IF(EL139=\"\",\"\",+AVERAGE(EL128:EL139))","v":406.89999999999992},{"$f":"IF(EM139=\"\",\"\",+AVERAGE(EM128:EM139))","v":824},{"$f":"IF(EN139=\"\",\"\",+AVERAGE(EN128:EN139))","v":937.85479633333341},{"$f":"IF(EO139=\"\",\"\",+AVERAGE(EO128:EO139))","v":3760.4000782718431},{"$f":"IF(EP139=\"\",\"\",+AVERAGE(EP128:EP139))","v":4698.2548746051762},null,null,{"$f":"IF(ES139=\"\",\"\",+AVERAGE(ES128:ES139))","v":1339.3102291372841},{"$f":"IF(ET139=\"\",\"\",+AVERAGE(ET128:ET139))","v":824.04999999999973},{"$f":"IF(EU139=\"\",\"\",+AVERAGE(EU128:EU139))","v":1429.9916666666666},{"$f":"IF(EV139=\"\",\"\",+AVERAGE(EV128:EV139))","v":747.80940352131518},{"$f":"IF(EW139=\"\",\"\",+AVERAGE(EW128:EW139))","v":626.92476663833327},{"$f":"IF(EX139=\"\",\"\",+AVERAGE(EX128:EX139))","v":1466.0083333333332},{"$f":"IF(EY139=\"\",\"\",+AVERAGE(EY128:EY139))","v":1764.7853749166663},{"$f":"IF(EZ139=\"\",\"\",+AVERAGE(EZ128:EZ139))","v":6434.0943992969305},{"$f":"IF(FA139=\"\",\"\",+AVERAGE(FA128:FA139))","v":8198.8797742135976},null,null,{"$f":"IF(FD139=\"\",\"\",+AVERAGE(FD128:FD139))","v":-2673.6943210250893},{"$f":"IF(FE139=\"\",\"\",+AVERAGE(FE128:FE139))","v":-3500.6248996084232},null,null,{"$f":"'[1]EXT Comercio(M)'!C334","v":806.90118316000007},{"$f":"'[1]EXT Comercio(M)'!D334","v":426.17},{"$f":"'[1]EXT Comercio(M)'!E334","v":879},{"$f":"'[1]EXT Comercio(M)'!F334","v":392.60343733314249},{"$f":"'[1]EXT Comercio(M)'!G334","v":414.70000000000005},{"$f":"'[1]EXT Comercio(M)'!H334","v":671.5},{"$f":"'[1]EXT Comercio(M)'!I334","v":738.16528700000003},{"$f":"'[1]EXT Comercio(M)'!K334","v":3590.8746204931431},{"$f":"'[1]EXT Comercio(M)'!L334","v":4329.0399074931429},null,null,{"$f":"'[1]EXT Comercio(M)'!AG334","v":1342.6304919600002},{"$f":"'[1]EXT Comercio(M)'!AH334","v":846.91},{"$f":"'[1]EXT Comercio(M)'!AI334","v":1431.7},{"$f":"'[1]EXT Comercio(M)'!AJ334","v":708.23153777636014},{"$f":"'[1]EXT Comercio(M)'!AK334","v":586.29999999999995},{"$f":"'[1]EXT Comercio(M)'!AL334","v":1324.8},{"$f":"'[1]EXT Comercio(M)'!AM334","v":1643.1285859999998},{"$f":"'[1]EXT Comercio(M)'!AO334","v":6240.5720297363605},{"$f":"'[1]EXT Comercio(M)'!AP334","v":7883.7006157363603},null,null,{"$f":"'[1]EXT Comercio(M)'!$BS334","v":-2649.6974092432174},{"$f":"'[1]EXT Comercio(M)'!$BT334","v":-3554.6607082432174}]
[null,null,"Febrero",{"$f":"'[1]REAL IPC(M)'!AD335","v":1.085465384105168},{"$f":"'[1]REAL IPC(M)'!AE335","v":0.28993385883844625},{"$f":"'[1]REAL IPC(M)'!AF335","v":3.9577407557903328},{"$f":"'[1]REAL IPC(M)'!AG335","v":3.8421599169262799},{"$f":"'[1]REAL IPC(M)'!AH335","v":3.6910327222805419},{"$f":"'[1]REAL IPC(M)'!AI335","v":3.3435914497213641},{"$f":"'[1]REAL IPC(M)'!AJ335","v":1.8500486854917151},null,null,{"$f":"'[1]REAL IMAE(M)'!AG335","v":3.9424435738157659},{"$f":"'[1]REAL IMAE(M)'!AH335","v":2.6235204257176763},{"$f":"'[1]REAL IMAE(M)'!AI335","v":4.0036233257329972},{"$f":"'[1]REAL IMAE(M)'!AJ335","v":5.310318964277652},{"$f":"'[1]REAL IMAE(M)'!AK335","v":6.0019132904318564},{"$f":"'[1]REAL IMAE(M)'!AL335","v":5.6639844116341855},{"$f":"'[1]REAL IMAE(M)'!AM335","v":5.6634682892581312},null,null,{"$f":"'[1]EXT ITCER(M)'!C335","v":77.384511618550874},{"$f":"'[1]EXT ITCER(M)'!D335","v":93.466636678431925},{"$f":"'[1]EXT ITCER(M)'!E335","v":54.438945026508286},{"$f":"'[1]EXT ITCER(M)'!F335","v":80.032702124390525},{"$f":"'[1]EXT ITCER(M)'!G335","v":102.47909517046922},{"$f":"'[1]EXT ITCER(M)'!H335","v":104.88803056429457},{"$f":"'[1]EXT ITCER(M)'!I335","v":88.894378152238673},null,null,{"$f":"'[1]EXT TC(M)'!J335","v":4.4512491086021555},{"$f":"'[1]EXT TC(M)'!K335","v":0},{"$f":"'[1]EXT TC(M)'!L335","v":-3.4227786000826295},{"$f":"'[1]EXT TC(M)'!M335","v":4.337797454344221},{"$f":"'[1]EXT TC(M)'!N335","v":4.8830684723851592},{"$f":"'[1]EXT TC(M)'!O335","v":2.9774979468929654},{"$f":"'[1]EXT TC(M)'!P335","v":0},null,null,{"$f":"'[1]EXT RIN(M)'!C335","v":7454.1},{"$f":"'[1]EXT RIN(M)'!D335","v":3510.89},{"$f":"'[1]EXT RIN(M)'!E335","v":9267.5},{"$f":"'[1]EXT RIN(M)'!F335","v":4508.2249684299941},{"$f":"'[1]EXT RIN(M)'!G335","v":2372.5},{"$f":"'[1]EXT RIN(M)'!H335","v":6299.1},{"$f":"'[1]EXT RIN(M)'!I335","v":4222.02254558},null,null,{"$f":"'[1]EXT RIN(M)'!P335","v":66.498184998381603},{"$f":"'[1]EXT RIN(M)'!Q335","v":121.61061699837859},{"$f":"'[1]EXT RIN(M)'!R335","v":102.56628821147807},{"$f":"'[1]EXT RIN(M)'!S335","v":89.503656251236862},{"$f":"'[1]EXT RIN(M)'!T335","v":120.10964311875291},{"$f":"'[1]EXT RIN(M)'!U335","v":86.510814808614697},{"$f":"'[1]EXT RIN(M)'!V335","v":255.90067428885615},null,null,{"$f":"+'[1]MONE(M)CAPARD'!AE335","v":3.4767952074418229},{"$f":"'[1]MONE(M)CAPARD'!AF335","v":4.1978950221338938},{"$f":"'[1]MONE(M)CAPARD'!AG335","v":1.4354479362101278},{"$f":"'[1]MONE(M)CAPARD'!AH335","v":4.504759999999993},{"$f":"'[1]MONE(M)CAPARD'!AI335","v":5.6406459042062744},{"$f":"'[1]MONE(M)CAPARD'!AJ335","v":3.615520321931593},{"$f":"'[1]MONE(M)CAPARD'!AK335","v":0.20613766730402358},null,null,{"$f":"'[1]MONE(M)CAPARD'!AL335","v":3.4650554699999998},{"$f":"'[1]MONE(M)CAPARD'!AM335","v":4.5},{"$f":"'[1]MONE(M)CAPARD'!AN335","v":2.95},{"$f":"'[1]MONE(M)CAPARD'!AO335","v":3.62},{"$f":"'[1]MONE(M)CAPARD'!AP335","v":3.94},{"$f":"'[1]MONE(M)CAPARD'!AQ335","v":2.2400000000000002},{"$f":"'[1]MONE(M)CAPARD'!AR335","v":2.06},null,null,{"$f":"'[1]MONE(M)CAPARD'!J335","v":13.112206156968433},{"$f":"'[1]MONE(M)CAPARD'!K335","v":6.1322865660854715},{"$f":"'[1]MONE(M)CAPARD'!L335","v":8.7461108505315792},{"$f":"'[1]MONE(M)CAPARD'!M335","v":15.319249999999993},{"$f":"'[1]MONE(M)CAPARD'!N335","v":13.317900810496269},{"$f":"'[1]MONE(M)CAPARD'!O335","v":11.937274849094571},{"$f":"'[1]MONE(M)CAPARD'!P335","v":4.3396653919694153},null,null,{"$f":"'[1]MONE(M)CAPARD'!Q335","v":9.9},{"$f":"'[1]MONE(M)CAPARD'!R335","v":6.44},{"$f":"'[1]MONE(M)CAPARD'!S335","v":5.98},{"$f":"'[1]MONE(M)CAPARD'!T335","v":8.42},{"$f":"'[1]MONE(M)CAPARD'!U335","v":8.1300000000000008},{"$f":"'[1]MONE(M)CAPARD'!V335","v":5.82},{"$f":"'[1]MONE(M)CAPARD'!W335","v":6.27},null,null,{"$f":"'[1]MONE(M)CAPARD'!AS335","v":1.75},{"$f":"'[1]MONE(M)CAPARD'!AT335","v":"n.a."},{"$f":"'[1]MONE(M)CAPARD'!AU335","v":3},{"$f":"'[1]MONE(M)CAPARD'!AV335","v":5.5},{"$f":"'[1]MONE(M)CAPARD'!AW335","v":"n.a."},{"$f":"'[1]MONE(M)CAPARD'!AX335","v":5.5},{"$f":"'[1]MONE(M)CAPARD'!AY335","v":"n.a."},null,null,{"$f":"+'Datos_Regional (M)'!CF328","v":13.288628839563966},{"$f":"+'Datos_Regional (M)'!CG328","v":5.9313727421131501},{"$f":"+'Datos_Regional (M)'!CH328","v":6.1751688690227402},{"$f":"+'Datos_Regional (M)'!CI328","v":9.8541488446404415},{"$f":"+'Datos_Regional (M)'!CJ328","v":17.390242563248549},{"$f":"+'Datos_Regional (M)'!CK328","v":11.829734286162896},{"$f":"+'Datos_Regional (M)'!CL328","v":8.6213152908029667},null,null,871.49856134666425,455.83083333333326,882.85833333333346,336.90705540455326,410.0333333333333,821.76666666666677,958.9518519999998,3778.8947834178839,4737.8466354178836,null,null,1344.8442732639498,824.33916666666653,1436.9416666666668,754.48362281060975,624.72444400333325,1471.6833333333332,1773.6419804999998,6457.0165067445587,8230.6584872445583,null,null,-2678.1217233266752,-3492.811851826676,null,null,{"$f":"'[1]EXT Comercio(M)'!C335","v":883.83423957000002},{"$f":"'[1]EXT Comercio(M)'!D335","v":451.35999999999996},{"$f":"'[1]EXT Comercio(M)'!E335","v":942},{"$f":"'[1]EXT Comercio(M)'!F335","v":422.26427602616059},{"$f":"'[1]EXT Comercio(M)'!G335","v":447},{"$f":"'[1]EXT Comercio(M)'!H335","v":779.7},{"$f":"'[1]EXT Comercio(M)'!I335","v":981.96570200000008},{"$f":"'[1]EXT Comercio(M)'!K335","v":3926.1585155961593},{"$f":"'[1]EXT Comercio(M)'!L335","v":4908.1242175961597},null,null,{"$f":"'[1]EXT Comercio(M)'!AG335","v":1256.7740446999896},{"$f":"'[1]EXT Comercio(M)'!AH335","v":760.33},{"$f":"'[1]EXT Comercio(M)'!AI335","v":1352.3999999999999},{"$f":"'[1]EXT Comercio(M)'!AJ335","v":742.20647154290009},{"$f":"'[1]EXT Comercio(M)'!AK335","v":569.20000000000005},{"$f":"'[1]EXT Comercio(M)'!AL335","v":1335.4},{"$f":"'[1]EXT Comercio(M)'!AM335","v":1573.0740449999998},{"$f":"'[1]EXT Comercio(M)'!AO335","v":6016.3105162428892},{"$f":"'[1]EXT Comercio(M)'!AP335","v":7589.3845612428895},null,null,{"$f":"'[1]EXT Comercio(M)'!$BS335","v":-2090.1520006467299},{"$f":"'[1]EXT Comercio(M)'!$BT335","v":-2681.2603436467298}]
[null,null,"Marzo",{"$f":"'[1]REAL IPC(M)'!AD336","v":1.5816604181210558},{"$f":"'[1]REAL IPC(M)'!AE336","v":0.5438723712835466},{"$f":"'[1]REAL IPC(M)'!AF336","v":3.9983779399837736},{"$f":"'[1]REAL IPC(M)'!AG336","v":3.9364640883977819},{"$f":"'[1]REAL IPC(M)'!AH336","v":3.1655557282095037},{"$f":"'[1]REAL IPC(M)'!AI336","v":3.1442355681251049},{"$f":"'[1]REAL IPC(M)'!AJ336","v":1.4563106796116505},null,null,{"$f":"'[1]REAL IMAE(M)'!AG336","v":3.9721130862521319},{"$f":"'[1]REAL IMAE(M)'!AH336","v":2.5642536580708772},{"$f":"'[1]REAL IMAE(M)'!AI336","v":3.8085316265431364},{"$f":"'[1]REAL IMAE(M)'!AJ336","v":5.4244659827203581},{"$f":"'[1]REAL IMAE(M)'!AK336","v":5.8180831527598826},{"$f":"'[1]REAL IMAE(M)'!AL336","v":5.4305328845961389},{"$f":"'[1]REAL IMAE(M)'!AM336","v":6.5927810888635889},null,null,{"$f":"'[1]EXT ITCER(M)'!C336","v":77.718326310962908},{"$f":"'[1]EXT ITCER(M)'!D336","v":93.348639344140835},{"$f":"'[1]EXT ITCER(M)'!E336","v":54.016808647541872},{"$f":"'[1]EXT ITCER(M)'!F336","v":79.583351323945109},{"$f":"'[1]EXT ITCER(M)'!G336","v":102.66991308611894},{"$f":"'[1]EXT ITCER(M)'!H336","v":105.61530743546152},{"$f":"'[1]EXT ITCER(M)'!I336","v":89.051766845986421},null,null,{"$f":"'[1]EXT TC(M)'!J336","v":4.6288895432810078},{"$f":"'[1]EXT TC(M)'!K336","v":0},{"$f":"'[1]EXT TC(M)'!L336","v":-4.672961520530567},{"$f":"'[1]EXT TC(M)'!M336","v":3.8358611013782928},{"$f":"'[1]EXT TC(M)'!N336","v":4.9564182065029012},{"$f":"'[1]EXT TC(M)'!O336","v":3.279653156936857},{"$f":"'[1]EXT TC(M)'!P336","v":0},null,null,{"$f":"'[1]EXT RIN(M)'!C336","v":7273.8},{"$f":"'[1]EXT RIN(M)'!D336","v":3136.38},{"$f":"'[1]EXT RIN(M)'!E336","v":9424.5},{"$f":"'[1]EXT RIN(M)'!F336","v":4480.3941721141564},{"$f":"'[1]EXT RIN(M)'!G336","v":2404.1},{"$f":"'[1]EXT RIN(M)'!H336","v":6456.4},{"$f":"'[1]EXT RIN(M)'!I336","v":3757.08828541},null,null,{"$f":"'[1]EXT RIN(M)'!P336","v":65.006597998694716},{"$f":"'[1]EXT RIN(M)'!Q336","v":100.28345187792864},{"$f":"'[1]EXT RIN(M)'!R336","v":102.76811868983131},{"$f":"'[1]EXT RIN(M)'!S336","v":86.445024245278319},{"$f":"'[1]EXT RIN(M)'!T336","v":124.43636064152248},{"$f":"'[1]EXT RIN(M)'!U336","v":86.015874936279275},{"$f":"'[1]EXT RIN(M)'!V336","v":228.79233267044364},null,null,{"$f":"+'[1]MONE(M)CAPARD'!AE336","v":2.8729000587967795},{"$f":"'[1]MONE(M)CAPARD'!AF336","v":3.9745113595383978},{"$f":"'[1]MONE(M)CAPARD'!AG336","v":1.3861966778445043},{"$f":"'[1]MONE(M)CAPARD'!AH336","v":3.9673621262458552},{"$f":"'[1]MONE(M)CAPARD'!AI336","v":6.3750687931510486},{"$f":"'[1]MONE(M)CAPARD'!AJ336","v":2.778404838709676},{"$f":"'[1]MONE(M)CAPARD'!AK336","v":0.63444976076555026},null,null,{"$f":"'[1]MONE(M)CAPARD'!AL336","v":3.54703882},{"$f":"'[1]MONE(M)CAPARD'!AM336","v":4.54},{"$f":"'[1]MONE(M)CAPARD'!AN336","v":2.97},{"$f":"'[1]MONE(M)CAPARD'!AO336","v":3.54},{"$f":"'[1]MONE(M)CAPARD'!AP336","v":4.1100000000000003},{"$f":"'[1]MONE(M)CAPARD'!AQ336","v":2.11},{"$f":"'[1]MONE(M)CAPARD'!AR336","v":2.1},null,null,{"$f":"'[1]MONE(M)CAPARD'!J336","v":12.323424848887202},{"$f":"'[1]MONE(M)CAPARD'!K336","v":5.6255319148936094},{"$f":"'[1]MONE(M)CAPARD'!L336","v":8.7324651017702628},{"$f":"'[1]MONE(M)CAPARD'!M336","v":15.166511627906985},{"$f":"'[1]MONE(M)CAPARD'!N336","v":11.787419271149922},{"$f":"'[1]MONE(M)CAPARD'!O336","v":12.289358064516128},{"$f":"'[1]MONE(M)CAPARD'!P336","v":4.764306220095694},null,null,{"$f":"'[1]MONE(M)CAPARD'!Q336","v":9.89},{"$f":"'[1]MONE(M)CAPARD'!R336","v":6.2},{"$f":"'[1]MONE(M)CAPARD'!S336","v":5.98},{"$f":"'[1]MONE(M)CAPARD'!T336","v":8.36},{"$f":"'[1]MONE(M)CAPARD'!U336","v":8.0500000000000007},{"$f":"'[1]MONE(M)CAPARD'!V336","v":5.82},{"$f":"'[1]MONE(M)CAPARD'!W336","v":6.29},null,null,{"$f":"'[1]MONE(M)CAPARD'!AS336","v":1.75},{"$f":"'[1]MONE(M)CAPARD'!AT336","v":"n.a."},{"$f":"'[1]MONE(M)CAPARD'!AU336","v":3},{"$f":"'[1]MONE(M)CAPARD'!AV336","v":5.5},{"$f":"'[1]MONE(M)CAPARD'!AW336","v":"n.a."},{"$f":"'[1]MONE(M)CAPARD'!AX336","v":5.5},{"$f":"'[1]MONE(M)CAPARD'!AY336","v":"n.a."},null,null,{"$f":"+'Datos_Regional (M)'!CF329","v":12.723655259126442},{"$f":"+'Datos_Regional (M)'!CG329","v":5.399506780663188},{"$f":"+'Datos_Regional (M)'!CH329","v":6.230662575921353},{"$f":"+'Datos_Regional (M)'!CI329","v":10.048236759155294},{"$f":"+'Datos_Regional (M)'!CJ329","v":18.23098364465876},{"$f":"+'Datos_Regional (M)'!CK329","v":11.093472922634962},{"$f":"+'Datos_Regional (M)'!CL329","v":8.423458768856861},null,null,881.04120809833114,463.21833333333325,895.20833333333348,343.37676423487187,420.45833333333331,833.22499999999991,964.43337866666661,3836.5279723332028,4800.961350999869,null,null,1362.4855997322829,832.60583333333307,1454.8916666666667,762.27259766323459,626.18330421166672,1475.7333333333333,1786.5760871666664,6514.1723349405174,8300.7484221071809,null,null,-2677.6443626073146,-3499.7870711073151,null,null,{"$f":"'[1]EXT Comercio(M)'!C336","v":988.81758511999999},{"$f":"'[1]EXT Comercio(M)'!D336","v":560.07000000000016},{"$f":"'[1]EXT Comercio(M)'!E336","v":1086.8999999999999},{"$f":"'[1]EXT Comercio(M)'!F336","v":431.29897225324214},{"$f":"'[1]EXT Comercio(M)'!G336","v":538.5},{"$f":"'[1]EXT Comercio(M)'!H336","v":962.30000000000007},{"$f":"'[1]EXT Comercio(M)'!I336","v":1000.864201},{"$f":"'[1]EXT Comercio(M)'!K336","v":4567.8865573732428},{"$f":"'[1]EXT Comercio(M)'!L336","v":5568.7507583732422},null,null,{"$f":"'[1]EXT Comercio(M)'!AG336","v":1469.3888261199968},{"$f":"'[1]EXT Comercio(M)'!AH336","v":883.65000000000032},{"$f":"'[1]EXT Comercio(M)'!AI336","v":1603.6},{"$f":"'[1]EXT Comercio(M)'!AJ336","v":813.24379433579895},{"$f":"'[1]EXT Comercio(M)'!AK336","v":664.90000000000009},{"$f":"'[1]EXT Comercio(M)'!AL336","v":1520.4},{"$f":"'[1]EXT Comercio(M)'!AM336","v":1951.0933660000001},{"$f":"'[1]EXT Comercio(M)'!AO336","v":6955.1826204557947},{"$f":"'[1]EXT Comercio(M)'!AP336","v":8906.2759864557956},null,null,{"$f":"'[1]EXT Comercio(M)'!$BS336","v":-2387.2960630825546},{"$f":"'[1]EXT Comercio(M)'!$BT336","v":-3337.5252280825534}]
[null,null,"Abril",{"$f":"'[1]REAL IPC(M)'!AD337","v":1.6438548100293875},{"$f":"'[1]REAL IPC(M)'!AE337","v":0.86324398000908931},{"$f":"'[1]REAL IPC(M)'!AF337","v":4.0887377540280117},{"$f":"'[1]REAL IPC(M)'!AG337","v":4.1006202618883654},{"$f":"'[1]REAL IPC(M)'!AH337","v":3.3548896941638962},{"$f":"'[1]REAL IPC(M)'!AI337","v":3.5134460078261585},{"$f":"'[1]REAL IPC(M)'!AJ337","v":0.96618357487922701},null,null,{"$f":"'[1]REAL IMAE(M)'!AG337","v":3.9867855678829014},{"$f":"'[1]REAL IMAE(M)'!AH337","v":2.5525817410804454},{"$f":"'[1]REAL IMAE(M)'!AI337","v":3.520755169717475},{"$f":"'[1]REAL IMAE(M)'!AJ337","v":5.5572098901988261},{"$f":"'[1]REAL IMAE(M)'!AK337","v":5.2934054243316018},{"$f":"'[1]REAL IMAE(M)'!AL337","v":4.9917066566806234},{"$f":"'[1]REAL IMAE(M)'!AM337","v":6.5271632456169559},null,null,{"$f":"'[1]EXT ITCER(M)'!C337","v":78.128784958535746},{"$f":"'[1]EXT ITCER(M)'!D337","v":93.55799003405798},{"$f":"'[1]EXT ITCER(M)'!E337","v":53.892835790764693},{"$f":"'[1]EXT ITCER(M)'!F337","v":79.42150558393493},{"$f":"'[1]EXT ITCER(M)'!G337","v":102.76379320869201},{"$f":"'[1]EXT ITCER(M)'!H337","v":105.80309211002533},{"$f":"'[1]EXT ITCER(M)'!I337","v":89.315852831809494},null,null,{"$f":"'[1]EXT TC(M)'!J337","v":4.8905507193855637},{"$f":"'[1]EXT TC(M)'!K337","v":0},{"$f":"'[1]EXT TC(M)'!L337","v":-5.1055114844195604},{"$f":"'[1]EXT TC(M)'!M337","v":3.8604347436987352},{"$f":"'[1]EXT TC(M)'!N337","v":4.9565455747047462},{"$f":"'[1]EXT TC(M)'!O337","v":3.3121250125633126},{"$f":"'[1]EXT TC(M)'!P337","v":0},null,null,{"$f":"'[1]EXT RIN(M)'!C337","v":7300.6},{"$f":"'[1]EXT RIN(M)'!D337","v":3256.02},{"$f":"'[1]EXT RIN(M)'!E337","v":9792.7000000000007},{"$f":"'[1]EXT RIN(M)'!F337","v":4440.4420675162419},{"$f":"'[1]EXT RIN(M)'!G337","v":2444.3000000000002},{"$f":"'[1]EXT RIN(M)'!H337","v":6316.5},{"$f":"'[1]EXT RIN(M)'!I337","v":3797.1627938300003},null,null,{"$f":"'[1]EXT RIN(M)'!P337","v":65.190337602843911},{"$f":"'[1]EXT RIN(M)'!Q337","v":101.30355972797548},{"$f":"'[1]EXT RIN(M)'!R337","v":103.57412897941394},{"$f":"'[1]EXT RIN(M)'!S337","v":86.228945105611388},{"$f":"'[1]EXT RIN(M)'!T337","v":124.49684043751294},{"$f":"'[1]EXT RIN(M)'!U337","v":85.668890292996394},{"$f":"'[1]EXT RIN(M)'!V337","v":226.73573962664238},null,null,{"$f":"+'[1]MONE(M)CAPARD'!AE337","v":2.9083363627792322},{"$f":"'[1]MONE(M)CAPARD'!AF337","v":3.4668288288288265},{"$f":"'[1]MONE(M)CAPARD'!AG337","v":1.2789685749844453},{"$f":"'[1]MONE(M)CAPARD'!AH337","v":4.0723866269447084},{"$f":"'[1]MONE(M)CAPARD'!AI337","v":6.2818807349457355},{"$f":"'[1]MONE(M)CAPARD'!AJ337","v":3.107377945789433},{"$f":"'[1]MONE(M)CAPARD'!AK337","v":1.1229665071770336},null,null,{"$f":"'[1]MONE(M)CAPARD'!AL337","v":3.48208114},{"$f":"'[1]MONE(M)CAPARD'!AM337","v":4.3600000000000003},{"$f":"'[1]MONE(M)CAPARD'!AN337","v":2.97},{"$f":"'[1]MONE(M)CAPARD'!AO337","v":3.65},{"$f":"'[1]MONE(M)CAPARD'!AP337","v":3.88},{"$f":"'[1]MONE(M)CAPARD'!AQ337","v":1.6},{"$f":"'[1]MONE(M)CAPARD'!AR337","v":2.1},null,null,{"$f":"'[1]MONE(M)CAPARD'!J337","v":12.34324024154647},{"$f":"'[1]MONE(M)CAPARD'!K337","v":5.5091981981981943},{"$f":"'[1]MONE(M)CAPARD'!L337","v":8.6380740510267611},{"$f":"'[1]MONE(M)CAPARD'!M337","v":14.994511751075791},{"$f":"'[1]MONE(M)CAPARD'!N337","v":14.812052702971187},{"$f":"'[1]MONE(M)CAPARD'!O337","v":11.009732968712301},{"$f":"'[1]MONE(M)CAPARD'!P337","v":5.3223923444976071},null,null,{"$f":"'[1]MONE(M)CAPARD'!Q337","v":9.86},{"$f":"'[1]MONE(M)CAPARD'!R337","v":6.42},{"$f":"'[1]MONE(M)CAPARD'!S337","v":5.99},{"$f":"'[1]MONE(M)CAPARD'!T337","v":8.4700000000000006},{"$f":"'[1]MONE(M)CAPARD'!U337","v":8.2899999999999991},{"$f":"'[1]MONE(M)CAPARD'!V337","v":6.13},{"$f":"'[1]MONE(M)CAPARD'!W337","v":6.34},null,null,{"$f":"'[1]MONE(M)CAPARD'!AS337","v":2.5},{"$f":"'[1]MONE(M)CAPARD'!AT337","v":"n.a."},{"$f":"'[1]MONE(M)CAPARD'!AU337","v":3},{"$f":"'[1]MONE(M)CAPARD'!AV337","v":5.5},{"$f":"'[1]MONE(M)CAPARD'!AW337","v":"n.a."},{"$f":"'[1]MONE(M)CAPARD'!AX337","v":5.75},{"$f":"'[1]MONE(M)CAPARD'!AY337","v":"n.a."},null,null,{"$f":"+'Datos_Regional (M)'!CF330","v":12.971705320361337},{"$f":"+'Datos_Regional (M)'!CG330","v":5.7564733684709379},{"$f":"+'Datos_Regional (M)'!CH330","v":6.2906006484853672},{"$f":"+'Datos_Regional (M)'!CI330","v":9.5478796180644476},{"$f":"+'Datos_Regional (M)'!CJ330","v":19.849578871134167},{"$f":"+'Datos_Regional (M)'!CK330","v":10.089263224518884},{"$f":"+'Datos_Regional (M)'!CL330","v":8.6913598363513866},null,null,880.88199635583157,457.60499999999996,897.95000000000016,345.89262938911543,418.38333333333327,830.3416666666667,973.56182999999999,3831.0546257449464,4804.6164557449474,null,null,1348.3576153089502,829.07333333333293,1446.9083333333335,761.12546236819787,618.33328949166673,1472.925,1778.8343538333331,6476.7230338354811,8255.557387668814,null,null,-2645.6684080905347,-3450.940931923868,null,null,{"$f":"'[1]EXT Comercio(M)'!C337","v":925.60127219000003},{"$f":"'[1]EXT Comercio(M)'!D337","v":446.36999999999989},{"$f":"'[1]EXT Comercio(M)'!E337","v":947.09999999999991},{"$f":"'[1]EXT Comercio(M)'!F337","v":417.14888120138204},{"$f":"'[1]EXT Comercio(M)'!G337","v":423.5},{"$f":"'[1]EXT Comercio(M)'!H337","v":798.69999999999993},{"$f":"'[1]EXT Comercio(M)'!I337","v":922.14188200000001},{"$f":"'[1]EXT Comercio(M)'!K337","v":3958.420153391382},{"$f":"'[1]EXT Comercio(M)'!L337","v":4880.5620353913837},null,null,{"$f":"'[1]EXT Comercio(M)'!AG337","v":1204.0600932700058},{"$f":"'[1]EXT Comercio(M)'!AH337","v":825.28999999999951},{"$f":"'[1]EXT Comercio(M)'!AI337","v":1346.8999999999999},{"$f":"'[1]EXT Comercio(M)'!AJ337","v":720.59407717574993},{"$f":"'[1]EXT Comercio(M)'!AK337","v":548.29999999999995},{"$f":"'[1]EXT Comercio(M)'!AL337","v":1398.5},{"$f":"'[1]EXT Comercio(M)'!AM337","v":1582.0910039999999},{"$f":"'[1]EXT Comercio(M)'!AO337","v":6043.6441704457611},{"$f":"'[1]EXT Comercio(M)'!AP337","v":7625.7351744457592},null,null,{"$f":"'[1]EXT Comercio(M)'!$BS337","v":-2085.2240170543728},{"$f":"'[1]EXT Comercio(M)'!$BT337","v":-2745.1731390543737}]
[null,null,"Mayo ",{"$f":"'[1]REAL IPC(M)'!AD338","v":1.6711599497399903},{"$f":"'[1]REAL IPC(M)'!AE338","v":0.96249886497775572},{"$f":"'[1]REAL IPC(M)'!AF338","v":3.932946486137983},{"$f":"'[1]REAL IPC(M)'!AG338","v":4.0521978021978065},{"$f":"'[1]REAL IPC(M)'!AH338","v":2.9072008795424518},{"$f":"'[1]REAL IPC(M)'!AI338","v":3.10605431442572},{"$f":"'[1]REAL IPC(M)'!AJ338","v":0.77145612343297698},null,null,{"$f":"'[1]REAL IMAE(M)'!AG338","v":3.9702308893309954},{"$f":"'[1]REAL IMAE(M)'!AH338","v":2.5403381438458399},{"$f":"'[1]REAL IMAE(M)'!AI338","v":3.2622346654785481},{"$f":"'[1]REAL IMAE(M)'!AJ338","v":5.7275183957464106},{"$f":"'[1]REAL IMAE(M)'!AK338","v":4.6019853774367148},{"$f":"'[1]REAL IMAE(M)'!AL338","v":4.5161968556329679},{"$f":"'[1]REAL IMAE(M)'!AM338","v":7.0223226149348879},null,null,{"$f":"'[1]EXT ITCER(M)'!C338","v":79.722658766268637},{"$f":"'[1]EXT ITCER(M)'!D338","v":93.477948790489194},{"$f":"'[1]EXT ITCER(M)'!E338","v":53.785329902312178},{"$f":"'[1]EXT ITCER(M)'!F338","v":79.28077784993296},{"$f":"'[1]EXT ITCER(M)'!G338","v":103.38313571259542},{"$f":"'[1]EXT ITCER(M)'!H338","v":106.16861278917743},{"$f":"'[1]EXT ITCER(M)'!I338","v":89.392193040712698},null,null,{"$f":"'[1]EXT TC(M)'!J338","v":6.8829942588583322},{"$f":"'[1]EXT TC(M)'!K338","v":0},{"$f":"'[1]EXT TC(M)'!L338","v":-4.0245823645518994},{"$f":"'[1]EXT TC(M)'!M338","v":3.8148737909884547},{"$f":"'[1]EXT TC(M)'!N338","v":5.0795500863547716},{"$f":"'[1]EXT TC(M)'!O338","v":3.3327876188293208},{"$f":"'[1]EXT TC(M)'!P338","v":0},null,null,{"$f":"'[1]EXT RIN(M)'!C338","v":6832.9},{"$f":"'[1]EXT RIN(M)'!D338","v":3367.89},{"$f":"'[1]EXT RIN(M)'!E338","v":9916},{"$f":"'[1]EXT RIN(M)'!F338","v":4412.9522977873821},{"$f":"'[1]EXT RIN(M)'!G338","v":2501.1},{"$f":"'[1]EXT RIN(M)'!H338","v":6087.2},{"$f":"'[1]EXT RIN(M)'!I338","v":4573.9156307900003},null,null,{"$f":"'[1]EXT RIN(M)'!P338","v":61.971745547247927},{"$f":"'[1]EXT RIN(M)'!Q338","v":107.82903417184244},{"$f":"'[1]EXT RIN(M)'!R338","v":107.39545028922142},{"$f":"'[1]EXT RIN(M)'!S338","v":87.754098600852416},{"$f":"'[1]EXT RIN(M)'!T338","v":130.63606781407998},{"$f":"'[1]EXT RIN(M)'!U338","v":86.21737619120762},{"$f":"'[1]EXT RIN(M)'!V338","v":274.77050770350326},null,null,{"$f":"+'[1]MONE(M)CAPARD'!AE338","v":2.8315208085391497},{"$f":"'[1]MONE(M)CAPARD'!AF338","v":3.3948259735587709},{"$f":"'[1]MONE(M)CAPARD'!AG338","v":1.4211600496277843},{"$f":"'[1]MONE(M)CAPARD'!AH338","v":4.1112079207920749},{"$f":"'[1]MONE(M)CAPARD'!AI338","v":5.7767629515751784},{"$f":"'[1]MONE(M)CAPARD'!AJ338","v":3.9027249295207325},{"$f":"'[1]MONE(M)CAPARD'!AK338","v":1.3580669856459362},null,null,{"$f":"'[1]MONE(M)CAPARD'!AL338","v":3.3898038700000002},{"$f":"'[1]MONE(M)CAPARD'!AM338","v":4.3899999999999997},{"$f":"'[1]MONE(M)CAPARD'!AN338","v":2.95},{"$f":"'[1]MONE(M)CAPARD'!AO338","v":3.54},{"$f":"'[1]MONE(M)CAPARD'!AP338","v":3.72},{"$f":"'[1]MONE(M)CAPARD'!AQ338","v":2.2799999999999998},{"$f":"'[1]MONE(M)CAPARD'!AR338","v":2.14},null,null,{"$f":"'[1]MONE(M)CAPARD'!J338","v":12.273726449495399},{"$f":"'[1]MONE(M)CAPARD'!K338","v":5.4946155229786839},{"$f":"'[1]MONE(M)CAPARD'!L338","v":8.7624317617865923},{"$f":"'[1]MONE(M)CAPARD'!M338","v":14.89425742574257},{"$f":"'[1]MONE(M)CAPARD'!N338","v":14.507251640019687},{"$f":"'[1]MONE(M)CAPARD'!O338","v":11.167089810712838},{"$f":"'[1]MONE(M)CAPARD'!P338","v":5.5358373205741653},null,null,{"$f":"'[1]MONE(M)CAPARD'!Q338","v":9.3800000000000008},{"$f":"'[1]MONE(M)CAPARD'!R338","v":6.51},{"$f":"'[1]MONE(M)CAPARD'!S338","v":5.99},{"$f":"'[1]MONE(M)CAPARD'!T338","v":8.44},{"$f":"'[1]MONE(M)CAPARD'!U338","v":8.19},{"$f":"'[1]MONE(M)CAPARD'!V338","v":5.97},{"$f":"'[1]MONE(M)CAPARD'!W338","v":6.35},null,null,{"$f":"'[1]MONE(M)CAPARD'!AS338","v":4},{"$f":"'[1]MONE(M)CAPARD'!AT338","v":"n.a."},{"$f":"'[1]MONE(M)CAPARD'!AU338","v":3},{"$f":"'[1]MONE(M)CAPARD'!AV338","v":5.5},{"$f":"'[1]MONE(M)CAPARD'!AW338","v":"n.a."},{"$f":"'[1]MONE(M)CAPARD'!AX338","v":5.75},{"$f":"'[1]MONE(M)CAPARD'!AY338","v":"n.a."},null,null,{"$f":"+'Datos_Regional (M)'!CF331","v":12.553817061241258},{"$f":"+'Datos_Regional (M)'!CG331","v":5.7792225449945667},{"$f":"+'Datos_Regional (M)'!CH331","v":5.7952308775477634},{"$f":"+'Datos_Regional (M)'!CI331","v":10.11102726550963},{"$f":"+'Datos_Regional (M)'!CJ331","v":19.460248583226083},{"$f":"+'Datos_Regional (M)'!CK331","v":11.976229907956881},{"$f":"+'Datos_Regional (M)'!CL331","v":8.4323679717247515},null,null,885.24054067999839,458.99916666666655,903.05000000000007,353.96037766418357,421.2833333333333,843.75833333333355,969.99499733333323,3866.2917516775142,4836.2867490108483,null,null,1358.3473298389508,836.48166666666646,1457.8916666666667,770.69350158764746,622.65156909166672,1476.1666666666667,1805.467686916666,6522.2324005182645,8327.7000874349287,null,null,-2655.9406488407499,-3491.4133384240831,null,null,{"$f":"'[1]EXT Comercio(M)'!C338","v":1033.4811369700001},{"$f":"'[1]EXT Comercio(M)'!D338","v":507.97999999999979},{"$f":"'[1]EXT Comercio(M)'!E338","v":978},{"$f":"'[1]EXT Comercio(M)'!F338","v":463.61567799370096},{"$f":"'[1]EXT Comercio(M)'!G338","v":459.9},{"$f":"'[1]EXT Comercio(M)'!H338","v":943.69999999999993},{"$f":"'[1]EXT Comercio(M)'!I338","v":1148.6238589999998},{"$f":"'[1]EXT Comercio(M)'!K338","v":4386.6768149636991},{"$f":"'[1]EXT Comercio(M)'!L338","v":5535.3006739636985},null,null,{"$f":"'[1]EXT Comercio(M)'!AG338","v":1491.3923970399983},{"$f":"'[1]EXT Comercio(M)'!AH338","v":917.2800000000002},{"$f":"'[1]EXT Comercio(M)'!AI338","v":1555.9},{"$f":"'[1]EXT Comercio(M)'!AJ338","v":846.28259514611079},{"$f":"'[1]EXT Comercio(M)'!AK338","v":672.2},{"$f":"'[1]EXT Comercio(M)'!AL338","v":1501},{"$f":"'[1]EXT Comercio(M)'!AM338","v":2108.29151},{"$f":"'[1]EXT Comercio(M)'!AO338","v":6984.054992186102},{"$f":"'[1]EXT Comercio(M)'!AP338","v":9092.3465021861011},null,null,{"$f":"'[1]EXT Comercio(M)'!$BS338","v":-2597.3781772224065},{"$f":"'[1]EXT Comercio(M)'!$BT338","v":-3557.0458282224081}]
[null,null,"Junio",{"$f":"'[1]REAL IPC(M)'!AD339","v":1.7743170392040011},{"$f":"'[1]REAL IPC(M)'!AE339","v":0.92525399129173636},{"$f":"'[1]REAL IPC(M)'!AF339","v":4.3649201636845048},{"$f":"'[1]REAL IPC(M)'!AG339","v":3.6506311838962766},{"$f":"'[1]REAL IPC(M)'!AH339","v":3.06106757003983},{"$f":"'[1]REAL IPC(M)'!AI339","v":2.5509782877899805},{"$f":"'[1]REAL IPC(M)'!AJ339","v":0.67567567567567854},null,null,{"$f":"'[1]REAL IMAE(M)'!AG339","v":3.8800354967507946},{"$f":"'[1]REAL IMAE(M)'!AH339","v":2.4086999883069038},{"$f":"'[1]REAL IMAE(M)'!AI339","v":3.0798918237046906},{"$f":"'[1]REAL IMAE(M)'!AJ339","v":5.8363842541720725},{"$f":"'[1]REAL IMAE(M)'!AK339","v":4.0207091668799908},{"$f":"'[1]REAL IMAE(M)'!AL339","v":4.1896114303655851},{"$f":"'[1]REAL IMAE(M)'!AM339","v":5.1042391700639804},null,null,{"$f":"'[1]EXT ITCER(M)'!C339","v":79.217294962882264},{"$f":"'[1]EXT ITCER(M)'!D339","v":93.503878018942174},{"$f":"'[1]EXT ITCER(M)'!E339","v":53.389137907644717},{"$f":"'[1]EXT ITCER(M)'!F339","v":79.053429274708805},{"$f":"'[1]EXT ITCER(M)'!G339","v":104.0340512518973},{"$f":"'[1]EXT ITCER(M)'!H339","v":106.36903974973008},{"$f":"'[1]EXT ITCER(M)'!I339","v":89.644850776056884},null,null,{"$f":"'[1]EXT TC(M)'!J339","v":5.0329000240165085},{"$f":"'[1]EXT TC(M)'!K339","v":0},{"$f":"'[1]EXT TC(M)'!L339","v":-3.9297570035111007},{"$f":"'[1]EXT TC(M)'!M339","v":3.0867393031945807},{"$f":"'[1]EXT TC(M)'!N339","v":5.2747878027508825},{"$f":"'[1]EXT TC(M)'!O339","v":3.3711833808639207},{"$f":"'[1]EXT TC(M)'!P339","v":0},null,null,{"$f":"'[1]EXT RIN(M)'!C339","v":6812.6},{"$f":"'[1]EXT RIN(M)'!D339","v":3282.88},{"$f":"'[1]EXT RIN(M)'!E339","v":10793.9},{"$f":"'[1]EXT RIN(M)'!F339","v":4522.4190168291079},{"$f":"'[1]EXT RIN(M)'!G339","v":2521.6},{"$f":"'[1]EXT RIN(M)'!H339","v":6512.7857449028688},{"$f":"'[1]EXT RIN(M)'!I339","v":4337.6371392700003},null,null,{"$f":"'[1]EXT RIN(M)'!P339","v":61.267789064762056},{"$f":"'[1]EXT RIN(M)'!Q339","v":105.92737433772803},{"$f":"'[1]EXT RIN(M)'!R339","v":112.25872668115838},{"$f":"'[1]EXT RIN(M)'!S339","v":88.11569946313719},{"$f":"'[1]EXT RIN(M)'!T339","v":132.6322195101616},{"$f":"'[1]EXT RIN(M)'!U339","v":93.608941854442449},{"$f":"'[1]EXT RIN(M)'!V339","v":250.72276883254472},null,null,{"$f":"+'[1]MONE(M)CAPARD'!AE339","v":3.8572432368018794},{"$f":"'[1]MONE(M)CAPARD'!AF339","v":3.5221571094732971},{"$f":"'[1]MONE(M)CAPARD'!AG339","v":0.99178903667256257},{"$f":"'[1]MONE(M)CAPARD'!AH339","v":4.2444206714944093},{"$f":"'[1]MONE(M)CAPARD'!AI339","v":6.2849621990578468},{"$f":"'[1]MONE(M)CAPARD'!AJ339","v":4.4846200289808378},{"$f":"'[1]MONE(M)CAPARD'!AK339","v":1.4842953020134197},null,null,{"$f":"'[1]MONE(M)CAPARD'!AL339","v":3.2026009200000001},{"$f":"'[1]MONE(M)CAPARD'!AM339","v":4.4800000000000004},{"$f":"'[1]MONE(M)CAPARD'!AN339","v":2.97},{"$f":"'[1]MONE(M)CAPARD'!AO339","v":3.55},{"$f":"'[1]MONE(M)CAPARD'!AP339","v":3.46},{"$f":"'[1]MONE(M)CAPARD'!AQ339","v":1.82},{"$f":"'[1]MONE(M)CAPARD'!AR339","v":2.17},null,null,{"$f":"'[1]MONE(M)CAPARD'!J339","v":12.739641333875568},{"$f":"'[1]MONE(M)CAPARD'!K339","v":5.583088261729273},{"$f":"'[1]MONE(M)CAPARD'!L339","v":8.3218382409471836},{"$f":"'[1]MONE(M)CAPARD'!M339","v":15.185019749835423},{"$f":"'[1]MONE(M)CAPARD'!N339","v":14.681525286768133},{"$f":"'[1]MONE(M)CAPARD'!O339","v":10.335368700692317},{"$f":"'[1]MONE(M)CAPARD'!P339","v":5.6362416107382511},null,null,{"$f":"'[1]MONE(M)CAPARD'!Q339","v":9.67},{"$f":"'[1]MONE(M)CAPARD'!R339","v":6.56},{"$f":"'[1]MONE(M)CAPARD'!S339","v":6},{"$f":"'[1]MONE(M)CAPARD'!T339","v":8.42},{"$f":"'[1]MONE(M)CAPARD'!U339","v":7.98},{"$f":"'[1]MONE(M)CAPARD'!V339","v":5.6},{"$f":"'[1]MONE(M)CAPARD'!W339","v":6.35},null,null,{"$f":"'[1]MONE(M)CAPARD'!AS339","v":4.5},{"$f":"'[1]MONE(M)CAPARD'!AT339","v":"n.a."},{"$f":"'[1]MONE(M)CAPARD'!AU339","v":3},{"$f":"'[1]MONE(M)CAPARD'!AV339","v":5.5},{"$f":"'[1]MONE(M)CAPARD'!AW339","v":"n.a."},{"$f":"'[1]MONE(M)CAPARD'!AX339","v":5.75},{"$f":"'[1]MONE(M)CAPARD'!AY339","v":"n.a."},null,null,{"$f":"+'Datos_Regional (M)'!CF332","v":11.80300586813221},{"$f":"+'Datos_Regional (M)'!CG332","v":5.9178331908187554},{"$f":"+'Datos_Regional (M)'!CH332","v":5.423674761916164},{"$f":"+'Datos_Regional (M)'!CI332","v":10.130169843907799},{"$f":"+'Datos_Regional (M)'!CJ332","v":17.842685530252389},{"$f":"+'Datos_Regional (M)'!CK332","v":12.204381557498213},{"$f":"+'Datos_Regional (M)'!CL332","v":8.1733224238083935},null,null,894.91594539499874,461.565,903.3416666666667,359.00591067787701,426.43333333333334,843.15000000000009,962.47588683333333,3888.4118560728753,4850.8877429062086,null,null,1358.9310719647849,837.16999999999973,1460.7833333333335,777.68526942187384,626.55903025333328,1474.5666666666666,1805.3282388333328,6535.6953716399912,8341.0236104733249,null,null,-2647.2835155671169,-3490.1358675671167,null,null,{"$f":"'[1]EXT Comercio(M)'!C339","v":997.70460120000098},{"$f":"'[1]EXT Comercio(M)'!D339","v":493.35000000000036},{"$f":"'[1]EXT Comercio(M)'!E339","v":901.10000000000014},{"$f":"'[1]EXT Comercio(M)'!F339","v":420.96327182343003},{"$f":"'[1]EXT Comercio(M)'!G339","v":465},{"$f":"'[1]EXT Comercio(M)'!H339","v":866.3},{"$f":"'[1]EXT Comercio(M)'!I339","v":909.66676700000005},{"$f":"'[1]EXT Comercio(M)'!K339","v":4144.4178730234344},{"$f":"'[1]EXT Comercio(M)'!L339","v":5054.0846400234332},null,null,{"$f":"'[1]EXT Comercio(M)'!AG339","v":1400.5672656099996},{"$f":"'[1]EXT Comercio(M)'!AH339","v":873.05000000000018},{"$f":"'[1]EXT Comercio(M)'!AI339","v":1510},{"$f":"'[1]EXT Comercio(M)'!AJ339","v":843.17590032931503},{"$f":"'[1]EXT Comercio(M)'!AK339","v":681.40000000000009},{"$f":"'[1]EXT Comercio(M)'!AL339","v":1446.5},{"$f":"'[1]EXT Comercio(M)'!AM339","v":1818.8681200000001},{"$f":"'[1]EXT Comercio(M)'!AO339","v":6754.6931659393158},{"$f":"'[1]EXT Comercio(M)'!AP339","v":8573.5612859393223},null,null,{"$f":"'[1]EXT Comercio(M)'!$BS339","v":-2610.2752929158833},{"$f":"'[1]EXT Comercio(M)'!$BT339","v":-3519.4766459158818}]
[null,null,"Julio",{"$f":"'[1]REAL IPC(M)'!AD340","v":1.1631081249349151},{"$f":"'[1]REAL IPC(M)'!AE340","v":1.0170722847802309},{"$f":"'[1]REAL IPC(M)'!AF340","v":5.2195394055303188},{"$f":"'[1]REAL IPC(M)'!AG340","v":3.639455782312921},{"$f":"'[1]REAL IPC(M)'!AH340","v":3.1288235822280464},{"$f":"'[1]REAL IPC(M)'!AI340","v":2.5379037574159513},{"$f":"'[1]REAL IPC(M)'!AJ340","v":0.38572806171648166},null,null,{"$f":"'[1]REAL IMAE(M)'!AG340","v":3.618078896044985},{"$f":"'[1]REAL IMAE(M)'!AH340","v":2.1642078393694257},{"$f":"'[1]REAL IMAE(M)'!AI340","v":2.9570549228352987},{"$f":"'[1]REAL IMAE(M)'!AJ340","v":5.8379757739520199},{"$f":"'[1]REAL IMAE(M)'!AK340","v":3.7813530296077853},{"$f":"'[1]REAL IMAE(M)'!AL340","v":4.1621273981324585},{"$f":"'[1]REAL IMAE(M)'!AM340","v":5.0055726742280147},null,null,{"$f":"'[1]EXT ITCER(M)'!C340","v":79.539858381720009},{"$f":"'[1]EXT ITCER(M)'!D340","v":93.45616717530585},{"$f":"'[1]EXT ITCER(M)'!E340","v":52.25071251961144},{"$f":"'[1]EXT ITCER(M)'!F340","v":78.736235301831954},{"$f":"'[1]EXT ITCER(M)'!G340","v":103.92953870696807},{"$f":"'[1]EXT ITCER(M)'!H340","v":106.17218611793332},{"$f":"'[1]EXT ITCER(M)'!I340","v":89.755112279446806},null,null,{"$f":"'[1]EXT TC(M)'!J340","v":4.9499793130750174},{"$f":"'[1]EXT TC(M)'!K340","v":0},{"$f":"'[1]EXT TC(M)'!L340","v":-3.9205312342911496},{"$f":"'[1]EXT TC(M)'!M340","v":2.6074363434010017},{"$f":"'[1]EXT TC(M)'!N340","v":4.9531912196147294},{"$f":"'[1]EXT TC(M)'!O340","v":3.298167684619651},{"$f":"'[1]EXT TC(M)'!P340","v":0},null,null,{"$f":"'[1]EXT RIN(M)'!C340","v":6865.4},{"$f":"'[1]EXT RIN(M)'!D340","v":3323.66},{"$f":"'[1]EXT RIN(M)'!E340","v":11024.9},{"$f":"'[1]EXT RIN(M)'!F340","v":4472.8121381178662},{"$f":"'[1]EXT RIN(M)'!G340","v":2572},{"$f":"'[1]EXT RIN(M)'!H340","v":6248.7458037199667},{"$f":"'[1]EXT RIN(M)'!I340","v":3909.6115338700001},null,null,{"$f":"'[1]EXT RIN(M)'!P340","v":63.026444678724978},{"$f":"'[1]EXT RIN(M)'!Q340","v":104.12788362549978},{"$f":"'[1]EXT RIN(M)'!R340","v":111.13590273592003},{"$f":"'[1]EXT RIN(M)'!S340","v":87.125828833093848},{"$f":"'[1]EXT RIN(M)'!T340","v":129.74927490291466},{"$f":"'[1]EXT RIN(M)'!U340","v":83.773793607274456},{"$f":"'[1]EXT RIN(M)'!V340","v":222.47815299021622},null,null,{"$f":"+'[1]MONE(M)CAPARD'!AE340","v":4.7318552818220505},{"$f":"'[1]MONE(M)CAPARD'!AF340","v":3.3686659475009075},{"$f":"'[1]MONE(M)CAPARD'!AG340","v":0.14299681914571574},{"$f":"'[1]MONE(M)CAPARD'!AH340","v":4.4486380045946872},{"$f":"'[1]MONE(M)CAPARD'!AI340","v":5.3716414229665483},{"$f":"'[1]MONE(M)CAPARD'!AJ340","v":3.2398714239794293},{"$f":"'[1]MONE(M)CAPARD'!AK340","v":1.7276080691642737},null,null,{"$f":"'[1]MONE(M)CAPARD'!AL340","v":3.0788937600000001},{"$f":"'[1]MONE(M)CAPARD'!AM340","v":4.42},{"$f":"'[1]MONE(M)CAPARD'!AN340","v":2.95},{"$f":"'[1]MONE(M)CAPARD'!AO340","v":3.57},{"$f":"'[1]MONE(M)CAPARD'!AP340","v":3.69},{"$f":"'[1]MONE(M)CAPARD'!AQ340","v":1.62},{"$f":"'[1]MONE(M)CAPARD'!AR340","v":2.12},null,null,{"$f":"'[1]MONE(M)CAPARD'!J340","v":13.974355016461374},{"$f":"'[1]MONE(M)CAPARD'!K340","v":5.3485293060050427},{"$f":"'[1]MONE(M)CAPARD'!L340","v":7.4515252953650428},{"$f":"'[1]MONE(M)CAPARD'!M340","v":15.158844765342964},{"$f":"'[1]MONE(M)CAPARD'!N340","v":12.149458033715607},{"$f":"'[1]MONE(M)CAPARD'!O340","v":10.837062037929925},{"$f":"'[1]MONE(M)CAPARD'!P340","v":5.9513160422670595},null,null,{"$f":"'[1]MONE(M)CAPARD'!Q340","v":9.6300000000000008},{"$f":"'[1]MONE(M)CAPARD'!R340","v":6.42},{"$f":"'[1]MONE(M)CAPARD'!S340","v":6.04},{"$f":"'[1]MONE(M)CAPARD'!T340","v":8.41},{"$f":"'[1]MONE(M)CAPARD'!U340","v":8.25},{"$f":"'[1]MONE(M)CAPARD'!V340","v":5.34},{"$f":"'[1]MONE(M)CAPARD'!W340","v":6.36},null,null,{"$f":"'[1]MONE(M)CAPARD'!AS340","v":4.5},{"$f":"'[1]MONE(M)CAPARD'!AT340","v":"n.a."},{"$f":"'[1]MONE(M)CAPARD'!AU340","v":3},{"$f":"'[1]MONE(M)CAPARD'!AV340","v":5.5},{"$f":"'[1]MONE(M)CAPARD'!AW340","v":"n.a."},{"$f":"'[1]MONE(M)CAPARD'!AX340","v":5.75},{"$f":"'[1]MONE(M)CAPARD'!AY340","v":"n.a."},null,null,{"$f":"+'Datos_Regional (M)'!CF333","v":10.863297801081684},{"$f":"+'Datos_Regional (M)'!CG333","v":6.1640981322889088},{"$f":"+'Datos_Regional (M)'!CH333","v":5.2448250545585662},{"$f":"+'Datos_Regional (M)'!CI333","v":10.287112272270127},{"$f":"+'Datos_Regional (M)'!CJ333","v":18.20912093683782},{"$f":"+'Datos_Regional (M)'!CK333","v":10.360419246699237},{"$f":"+'Datos_Regional (M)'!CL333","v":10.396929639907704},null,null,901.74499135666565,466.45416666666671,908.47500000000002,366.78220409742613,428.58333333333326,840.62499999999989,963.07587041666682,3912.664695454092,4875.7405658707585,null,null,1354.9262477839518,841.9991666666665,1477.9916666666668,781.42324381221795,626.98695240749998,1479.0083333333332,1809.9783749999999,6562.335610670335,8372.3139856703347,null,null,-2649.6709152162452,-3496.5734197995785,null,null,{"$f":"'[1]EXT Comercio(M)'!C340","v":894.46138889000201},{"$f":"'[1]EXT Comercio(M)'!D340","v":549.80999999999995},{"$f":"'[1]EXT Comercio(M)'!E340","v":906.2},{"$f":"'[1]EXT Comercio(M)'!F340","v":385.35585310940513},{"$f":"'[1]EXT Comercio(M)'!G340","v":439.4},{"$f":"'[1]EXT Comercio(M)'!H340","v":819.8},{"$f":"'[1]EXT Comercio(M)'!I340","v":927.41128100000003},{"$f":"'[1]EXT Comercio(M)'!K340","v":3995.0272419994071},{"$f":"'[1]EXT Comercio(M)'!L340","v":4922.4385229994041},null,null,{"$f":"'[1]EXT Comercio(M)'!AG340","v":1215.9743416800029},{"$f":"'[1]EXT Comercio(M)'!AH340","v":880.27999999999975},{"$f":"'[1]EXT Comercio(M)'!AI340","v":1518},{"$f":"'[1]EXT Comercio(M)'!AJ340","v":783.61121030921311},{"$f":"'[1]EXT Comercio(M)'!AK340","v":638.29999999999995},{"$f":"'[1]EXT Comercio(M)'!AL340","v":1464.1},{"$f":"'[1]EXT Comercio(M)'!AM340","v":1837.3985269999998},{"$f":"'[1]EXT Comercio(M)'!AO340","v":6500.2655519892141},{"$f":"'[1]EXT Comercio(M)'!AP340","v":8337.6640789892117},null,null,{"$f":"'[1]EXT Comercio(M)'!$BS340","v":-2505.2383099898125},{"$f":"'[1]EXT Comercio(M)'!$BT340","v":-3415.2255559898149}]
[null,null,"Agosto",{"$f":"'[1]REAL IPC(M)'!AD341","v":0.90944212659281376},{"$f":"'[1]REAL IPC(M)'!AE341","v":1.1379153390987711},{"$f":"'[1]REAL IPC(M)'!AF341","v":4.7168310531339541},{"$f":"'[1]REAL IPC(M)'!AG341","v":3.8383152173913082},{"$f":"'[1]REAL IPC(M)'!AH341","v":3.4704581014840974},{"$f":"'[1]REAL IPC(M)'!AI341","v":3.1824552724874264},{"$f":"'[1]REAL IPC(M)'!AJ341","v":0.67502410800386003},null,null,{"$f":"'[1]REAL IMAE(M)'!AG341","v":3.3404220233225805},{"$f":"'[1]REAL IMAE(M)'!AH341","v":2.0539696826375589},{"$f":"'[1]REAL IMAE(M)'!AI341","v":2.8368170471841312},{"$f":"'[1]REAL IMAE(M)'!AJ341","v":5.7255461524514457},{"$f":"'[1]REAL IMAE(M)'!AK341","v":3.8625234523281136},{"$f":"'[1]REAL IMAE(M)'!AL341","v":4.4687881907199465},{"$f":"'[1]REAL IMAE(M)'!AM341","v":5.2435801220347811},null,null,{"$f":"'[1]EXT ITCER(M)'!C341","v":80.386540616026636},{"$f":"'[1]EXT ITCER(M)'!D341","v":93.85413640338659},{"$f":"'[1]EXT ITCER(M)'!E341","v":52.379234194068481},{"$f":"'[1]EXT ITCER(M)'!F341","v":78.503293426540935},{"$f":"'[1]EXT ITCER(M)'!G341","v":104.67473509103107},{"$f":"'[1]EXT ITCER(M)'!H341","v":105.96766556001415},{"$f":"'[1]EXT ITCER(M)'!I341","v":89.765190372159381},null,null,{"$f":"'[1]EXT TC(M)'!J341","v":5.047805815875436},{"$f":"'[1]EXT TC(M)'!K341","v":0},{"$f":"'[1]EXT TC(M)'!L341","v":-3.4680366238288949},{"$f":"'[1]EXT TC(M)'!M341","v":2.1116085759820318},{"$f":"'[1]EXT TC(M)'!N341","v":4.8709454471570037},{"$f":"'[1]EXT TC(M)'!O341","v":3.3405090320207256},{"$f":"'[1]EXT TC(M)'!P341","v":0},null,null,{"$f":"'[1]EXT RIN(M)'!C341","v":6868.5},{"$f":"'[1]EXT RIN(M)'!D341","v":3262.97},{"$f":"'[1]EXT RIN(M)'!E341","v":11277.9},{"$f":"'[1]EXT RIN(M)'!F341","v":4470.4148977895729},{"$f":"'[1]EXT RIN(M)'!G341","v":2518.4},{"$f":"'[1]EXT RIN(M)'!H341","v":6279.1282342772065},{"$f":"'[1]EXT RIN(M)'!I341","v":3571.3758189099999},null,null,{"$f":"'[1]EXT RIN(M)'!P341","v":62.775593092606684},{"$f":"'[1]EXT RIN(M)'!Q341","v":102.96070764917053},{"$f":"'[1]EXT RIN(M)'!R341","v":112.83118126912206},{"$f":"'[1]EXT RIN(M)'!S341","v":86.938338320046597},{"$f":"'[1]EXT RIN(M)'!T341","v":129.57379318287451},{"$f":"'[1]EXT RIN(M)'!U341","v":82.653808032321834},{"$f":"'[1]EXT RIN(M)'!V341","v":198.50845450805906},null,null,{"$f":"+'[1]MONE(M)CAPARD'!AE341","v":4.9951300563962198},{"$f":"'[1]MONE(M)CAPARD'!AF341","v":3.2550450045004498},{"$f":"'[1]MONE(M)CAPARD'!AG341","v":0.60464868970755203},{"$f":"'[1]MONE(M)CAPARD'!AH341","v":4.2100883218841973},{"$f":"'[1]MONE(M)CAPARD'!AI341","v":6.3299717497185393},{"$f":"'[1]MONE(M)CAPARD'!AJ341","v":2.9244746304434686},{"$f":"'[1]MONE(M)CAPARD'!AK341","v":1.3955555555555528},null,null,{"$f":"'[1]MONE(M)CAPARD'!AL341","v":3.01623361},{"$f":"'[1]MONE(M)CAPARD'!AM341","v":4.43},{"$f":"'[1]MONE(M)CAPARD'!AN341","v":2.95},{"$f":"'[1]MONE(M)CAPARD'!AO341","v":3.5},{"$f":"'[1]MONE(M)CAPARD'!AP341","v":3.42},{"$f":"'[1]MONE(M)CAPARD'!AQ341","v":1.84},{"$f":"'[1]MONE(M)CAPARD'!AR341","v":2.08},null,null,{"$f":"'[1]MONE(M)CAPARD'!J341","v":13.725730299877586},{"$f":"'[1]MONE(M)CAPARD'!K341","v":5.3709675967596766},{"$f":"'[1]MONE(M)CAPARD'!L341","v":7.9673619445499382},{"$f":"'[1]MONE(M)CAPARD'!M341","v":14.957566241413147},{"$f":"'[1]MONE(M)CAPARD'!N341","v":12.178069519195974},{"$f":"'[1]MONE(M)CAPARD'!O341","v":9.9702461046743931},{"$f":"'[1]MONE(M)CAPARD'!P341","v":5.6369252873563189},null,null,{"$f":"'[1]MONE(M)CAPARD'!Q341","v":9.39},{"$f":"'[1]MONE(M)CAPARD'!R341","v":6.57},{"$f":"'[1]MONE(M)CAPARD'!S341","v":6.03},{"$f":"'[1]MONE(M)CAPARD'!T341","v":8.36},{"$f":"'[1]MONE(M)CAPARD'!U341","v":7.92},{"$f":"'[1]MONE(M)CAPARD'!V341","v":5.78},{"$f":"'[1]MONE(M)CAPARD'!W341","v":6.35},null,null,{"$f":"'[1]MONE(M)CAPARD'!AS341","v":4.5},{"$f":"'[1]MONE(M)CAPARD'!AT341","v":"n.a."},{"$f":"'[1]MONE(M)CAPARD'!AU341","v":3},{"$f":"'[1]MONE(M)CAPARD'!AV341","v":5.5},{"$f":"'[1]MONE(M)CAPARD'!AW341","v":"n.a."},{"$f":"'[1]MONE(M)CAPARD'!AX341","v":5.25},{"$f":"'[1]MONE(M)CAPARD'!AY341","v":"n.a."},null,null,{"$f":"+'Datos_Regional (M)'!CF334","v":10.714731445290315},{"$f":"+'Datos_Regional (M)'!CG334","v":5.4822008819452872},{"$f":"+'Datos_Regional (M)'!CH334","v":4.7731888380598608},{"$f":"+'Datos_Regional (M)'!CI334","v":10.496947308193505},{"$f":"+'Datos_Regional (M)'!CJ334","v":17.967551796968607},{"$f":"+'Datos_Regional (M)'!CK334","v":10.374183581692753},{"$f":"+'Datos_Regional (M)'!CL334","v":8.122368683310599},null,null,909.26810702749947,469.74166666666662,908.63333333333333,368.62800536641083,427.29999999999995,839.30833333333328,954.17760550000014,3922.8794457272438,4877.0570512272443,null,null,1359.9144899272849,850.89666666666653,1484.9583333333333,785.72353040875942,629.6545785791667,1479.1000000000001,1797.1376067499998,6590.2475989152108,8387.3852056652086,null,null,-2667.3681531879679,-3510.3281544379679,null,null,{"$f":"'[1]EXT Comercio(M)'!C341","v":895.41632782000102},{"$f":"'[1]EXT Comercio(M)'!D341","v":478.75},{"$f":"'[1]EXT Comercio(M)'!E341","v":890.40000000000009},{"$f":"'[1]EXT Comercio(M)'!F341","v":339.48103368007844},{"$f":"'[1]EXT Comercio(M)'!G341","v":433.2},{"$f":"'[1]EXT Comercio(M)'!H341","v":874.10000000000014},{"$f":"'[1]EXT Comercio(M)'!I341","v":865.94033100000001},{"$f":"'[1]EXT Comercio(M)'!K341","v":3911.3473615000803},{"$f":"'[1]EXT Comercio(M)'!L341","v":4777.2876925000819},null,null,{"$f":"'[1]EXT Comercio(M)'!AG341","v":1435.4644030899933},{"$f":"'[1]EXT Comercio(M)'!AH341","v":936.54000000000087},{"$f":"'[1]EXT Comercio(M)'!AI341","v":1599.9999999999998},{"$f":"'[1]EXT Comercio(M)'!AJ341","v":849.36307567980009},{"$f":"'[1]EXT Comercio(M)'!AK341","v":678.19999999999993},{"$f":"'[1]EXT Comercio(M)'!AL341","v":1583.5},{"$f":"'[1]EXT Comercio(M)'!AM341","v":1863.9844579999999},{"$f":"'[1]EXT Comercio(M)'!AO341","v":7083.0674787697935},{"$f":"'[1]EXT Comercio(M)'!AP341","v":8947.0519367697852},null,null,{"$f":"'[1]EXT Comercio(M)'!$BS341","v":-3171.7201172697132},{"$f":"'[1]EXT Comercio(M)'!$BT341","v":-4169.7642442697143}]
[null,null,"Setiembre",{"$f":"'[1]REAL IPC(M)'!AD342","v":1.6412002688320344},{"$f":"'[1]REAL IPC(M)'!AE342","v":1.5615012327641253},{"$f":"'[1]REAL IPC(M)'!AF342","v":4.3599553642595357},{"$f":"'[1]REAL IPC(M)'!AG342","v":3.6622583926754873},{"$f":"'[1]REAL IPC(M)'!AH342","v":4.1228479442557164},{"$f":"'[1]REAL IPC(M)'!AI342","v":3.7992417999011034},{"$f":"'[1]REAL IPC(M)'!AJ342","v":0.76997112608276908},null,null,{"$f":"'[1]REAL IMAE(M)'!AG342","v":3.1808307000600666},{"$f":"'[1]REAL IMAE(M)'!AH342","v":2.0971864471418722},{"$f":"'[1]REAL IMAE(M)'!AI342","v":2.6512043466057342},{"$f":"'[1]REAL IMAE(M)'!AJ342","v":5.4500862645133274},{"$f":"'[1]REAL IMAE(M)'!AK342","v":4.0856983611636668},{"$f":"'[1]REAL IMAE(M)'!AL342","v":5.0895922429956855},{"$f":"'[1]REAL IMAE(M)'!AM342","v":4.5123773633941866},null,null,{"$f":"'[1]EXT ITCER(M)'!C342","v":80.78098467839115},{"$f":"'[1]EXT ITCER(M)'!D342","v":94.249285814712152},{"$f":"'[1]EXT ITCER(M)'!E342","v":53.163711130717502},{"$f":"'[1]EXT ITCER(M)'!F342","v":78.954580421398916},{"$f":"'[1]EXT ITCER(M)'!G342","v":105.40360684422113},{"$f":"'[1]EXT ITCER(M)'!H342","v":106.17539822636758},{"$f":"'[1]EXT ITCER(M)'!I342","v":89.981919872402315},null,null,{"$f":"'[1]EXT TC(M)'!J342","v":4.9637135800056491},{"$f":"'[1]EXT TC(M)'!K342","v":0},{"$f":"'[1]EXT TC(M)'!L342","v":-2.9320395592215975},{"$f":"'[1]EXT TC(M)'!M342","v":1.8168722189277169},{"$f":"'[1]EXT TC(M)'!N342","v":4.8760778750159774},{"$f":"'[1]EXT TC(M)'!O342","v":3.3452473182683256},{"$f":"'[1]EXT TC(M)'!P342","v":0},null,null,{"$f":"'[1]EXT RIN(M)'!C342","v":6898.1},{"$f":"'[1]EXT RIN(M)'!D342","v":3320.04},{"$f":"'[1]EXT RIN(M)'!E342","v":11268.4},{"$f":"'[1]EXT RIN(M)'!F342","v":4516.842434066446},{"$f":"'[1]EXT RIN(M)'!G342","v":2492.9},{"$f":"'[1]EXT RIN(M)'!H342","v":6169.144841569394},{"$f":"'[1]EXT RIN(M)'!I342","v":3571.3758189099999},null,null,{"$f":"'[1]EXT RIN(M)'!P342","v":63.173052271464705},{"$f":"'[1]EXT RIN(M)'!Q342","v":103.41724461777353},{"$f":"'[1]EXT RIN(M)'!R342","v":111.23655207106931},{"$f":"'[1]EXT RIN(M)'!S342","v":87.341399988178551},{"$f":"'[1]EXT RIN(M)'!T342","v":132.42813668508035},{"$f":"'[1]EXT RIN(M)'!U342","v":81.028453650831338},{"$f":"'[1]EXT RIN(M)'!V342","v":198.50841451299249},null,null,{"$f":"+'[1]MONE(M)CAPARD'!AE342","v":4.1408402498554331},{"$f":"'[1]MONE(M)CAPARD'!AF342","v":2.8243957921237244},{"$f":"'[1]MONE(M)CAPARD'!AG342","v":0.94868250210034832},{"$f":"'[1]MONE(M)CAPARD'!AH342","v":4.3291952894995056},{"$f":"'[1]MONE(M)CAPARD'!AI342","v":5.497694439841565},{"$f":"'[1]MONE(M)CAPARD'!AJ342","v":2.3706899563318786},{"$f":"'[1]MONE(M)CAPARD'!AK342","v":1.5282617000955139},null,null,{"$f":"'[1]MONE(M)CAPARD'!AL342","v":3.3526696999999999},{"$f":"'[1]MONE(M)CAPARD'!AM342","v":4.43},{"$f":"'[1]MONE(M)CAPARD'!AN342","v":2.96},{"$f":"'[1]MONE(M)CAPARD'!AO342","v":3.38},{"$f":"'[1]MONE(M)CAPARD'!AP342","v":4.24},{"$f":"'[1]MONE(M)CAPARD'!AQ342","v":1.65},{"$f":"'[1]MONE(M)CAPARD'!AR342","v":2.31},null,null,{"$f":"'[1]MONE(M)CAPARD'!J342","v":12.906970496678408},{"$f":"'[1]MONE(M)CAPARD'!K342","v":4.7739534256428762},{"$f":"'[1]MONE(M)CAPARD'!L342","v":8.3269915221874182},{"$f":"'[1]MONE(M)CAPARD'!M342","v":15.094926398429829},{"$f":"'[1]MONE(M)CAPARD'!N342","v":8.7208434011504252},{"$f":"'[1]MONE(M)CAPARD'!O342","v":8.7387518856689166},{"$f":"'[1]MONE(M)CAPARD'!P342","v":5.5473161413562595},null,null,{"$f":"'[1]MONE(M)CAPARD'!Q342","v":9.6300000000000008},{"$f":"'[1]MONE(M)CAPARD'!R342","v":6.41},{"$f":"'[1]MONE(M)CAPARD'!S342","v":6.04},{"$f":"'[1]MONE(M)CAPARD'!T342","v":8.32},{"$f":"'[1]MONE(M)CAPARD'!U342","v":7.42},{"$f":"'[1]MONE(M)CAPARD'!V342","v":5.86},{"$f":"'[1]MONE(M)CAPARD'!W342","v":6.36},null,null,{"$f":"'[1]MONE(M)CAPARD'!AS342","v":4.5},{"$f":"'[1]MONE(M)CAPARD'!AT342","v":"n.a."},{"$f":"'[1]MONE(M)CAPARD'!AU342","v":3},{"$f":"'[1]MONE(M)CAPARD'!AV342","v":5.5},{"$f":"'[1]MONE(M)CAPARD'!AW342","v":"n.a."},{"$f":"'[1]MONE(M)CAPARD'!AX342","v":5.25},{"$f":"'[1]MONE(M)CAPARD'!AY342","v":"n.a."},null,null,{"$f":"+'Datos_Regional (M)'!CF335","v":9.183086615612023},{"$f":"+'Datos_Regional (M)'!CG335","v":5.4722573353432225},{"$f":"+'Datos_Regional (M)'!CH335","v":5.2859230382994227},{"$f":"+'Datos_Regional (M)'!CI335","v":9.9842419782303118},{"$f":"+'Datos_Regional (M)'!CJ335","v":17.764304661113961},{"$f":"+'Datos_Regional (M)'!CK335","v":10.063119300118096},{"$f":"+'Datos_Regional (M)'!CL335","v":7.1067564670950656},null,null,914.45189929749949,472.11666666666662,908.76666666666677,374.0074061095101,427.43333333333339,831.14166666666654,928.50165941666683,3927.9176387403422,4856.4192981570086,null,null,1363.9600842408306,853.67666666666662,1485.1583333333331,791.53843657730749,629.6276929958334,1462.1166666666668,1792.6907245833333,6586.0778804806387,8378.7686050639713,null,null,-2658.160241740296,-3522.3493069069627,null,null,{"$f":"'[1]EXT Comercio(M)'!C342","v":929.75878826999906},{"$f":"'[1]EXT Comercio(M)'!D342","v":473.44000000000005},{"$f":"'[1]EXT Comercio(M)'!E342","v":837.2},{"$f":"'[1]EXT Comercio(M)'!F342","v":313.50994491569429},{"$f":"'[1]EXT Comercio(M)'!G342","v":398.6},{"$f":"'[1]EXT Comercio(M)'!H342","v":780.90000000000009},{"$f":"'[1]EXT Comercio(M)'!I342","v":814.60750700000006},{"$f":"'[1]EXT Comercio(M)'!K342","v":3733.4087331856863},{"$f":"'[1]EXT Comercio(M)'!L342","v":4548.0162401856869},null,null,{"$f":"'[1]EXT Comercio(M)'!AG342","v":1364.0091767799913},{"$f":"'[1]EXT Comercio(M)'!AH342","v":826.77999999999975},{"$f":"'[1]EXT Comercio(M)'!AI342","v":1464.4000000000003},{"$f":"'[1]EXT Comercio(M)'!AJ342","v":870.46877843167613},{"$f":"'[1]EXT Comercio(M)'!AK342","v":603.1},{"$f":"'[1]EXT Comercio(M)'!AL342","v":1326},{"$f":"'[1]EXT Comercio(M)'!AM342","v":1749.7342849999998},{"$f":"'[1]EXT Comercio(M)'!AO342","v":6454.7579552116804},{"$f":"'[1]EXT Comercio(M)'!AP342","v":8204.4922402116936},null,null,{"$f":"'[1]EXT Comercio(M)'!$BS342","v":-2721.3492220259759},{"$f":"'[1]EXT Comercio(M)'!$BT342","v":-3656.4760000259739}]
[null,null,"Octubre",{"$f":"'[1]REAL IPC(M)'!AD343","v":2.3254316097570302},{"$f":"'[1]REAL IPC(M)'!AE343","v":1.4300027324892914},{"$f":"'[1]REAL IPC(M)'!AF343","v":4.2032771313227171},{"$f":"'[1]REAL IPC(M)'!AG343","v":3.967446592065123},{"$f":"'[1]REAL IPC(M)'!AH343","v":4.3733083811180258},{"$f":"'[1]REAL IPC(M)'!AI343","v":3.48369074028429},{"$f":"'[1]REAL IPC(M)'!AJ343","v":0.48076923076923078},null,null,{"$f":"'[1]REAL IMAE(M)'!AG343","v":3.1026673005187186},{"$f":"'[1]REAL IMAE(M)'!AH343","v":2.334792470026652},{"$f":"'[1]REAL IMAE(M)'!AI343","v":2.403403586650513},{"$f":"'[1]REAL IMAE(M)'!AJ343","v":5.0016583921635309},{"$f":"'[1]REAL IMAE(M)'!AK343","v":4.2971590670269491},{"$f":"'[1]REAL IMAE(M)'!AL343","v":5.8148530481007423},{"$f":"'[1]REAL IMAE(M)'!AM343","v":4.4252929214679906},null,null,{"$f":"'[1]EXT ITCER(M)'!C343","v":79.644884132567569},{"$f":"'[1]EXT ITCER(M)'!D343","v":94.071302502197923},{"$f":"'[1]EXT ITCER(M)'!E343","v":53.115289819354011},{"$f":"'[1]EXT ITCER(M)'!F343","v":78.953292492602799},{"$f":"'[1]EXT ITCER(M)'!G343","v":105.02654544489265},{"$f":"'[1]EXT ITCER(M)'!H343","v":106.35962569665158},{"$f":"'[1]EXT ITCER(M)'!I343","v":90.097152864555724},null,null,{"$f":"'[1]EXT TC(M)'!J343","v":3.8891653322705078},{"$f":"'[1]EXT TC(M)'!K343","v":0},{"$f":"'[1]EXT TC(M)'!L343","v":-2.0725755772753387},{"$f":"'[1]EXT TC(M)'!M343","v":1.6666232711026865},{"$f":"'[1]EXT TC(M)'!N343","v":4.7330316271886606},{"$f":"'[1]EXT TC(M)'!O343","v":2.9990484348803577},{"$f":"'[1]EXT TC(M)'!P343","v":0},null,null,{"$f":"'[1]EXT RIN(M)'!C343","v":6847.5},{"$f":"'[1]EXT RIN(M)'!D343","v":3332.08},{"$f":"'[1]EXT RIN(M)'!E343","v":11494.4},{"$f":"'[1]EXT RIN(M)'!F343","v":4521.7909723722523},{"$f":"'[1]EXT RIN(M)'!G343","v":2551.9},{"$f":"'[1]EXT RIN(M)'!H343","v":5821.8289709762084},{"$f":"'[1]EXT RIN(M)'!I343","v":3451.9862829700005},null,null,{"$f":"'[1]EXT RIN(M)'!P343","v":62.124047873877053},{"$f":"'[1]EXT RIN(M)'!Q343","v":102.7671519409171},{"$f":"'[1]EXT RIN(M)'!R343","v":110.5630881242804},{"$f":"'[1]EXT RIN(M)'!S343","v":91.203760973212468},{"$f":"'[1]EXT RIN(M)'!T343","v":126.85641139901469},{"$f":"'[1]EXT RIN(M)'!U343","v":80.550955006448902},{"$f":"'[1]EXT RIN(M)'!V343","v":203.41585082909353},null,null,{"$f":"+'[1]MONE(M)CAPARD'!AE343","v":3.4933333131449258},{"$f":"'[1]MONE(M)CAPARD'!AF343","v":2.9084069683908105},{"$f":"'[1]MONE(M)CAPARD'!AG343","v":1.0812739288970008},{"$f":"'[1]MONE(M)CAPARD'!AH343","v":4.1576027397260109},{"$f":"'[1]MONE(M)CAPARD'!AI343","v":4.9404356100000033},{"$f":"'[1]MONE(M)CAPARD'!AJ343","v":2.1803525208415961},{"$f":"'[1]MONE(M)CAPARD'!AK343","v":1.8503349282296648},null,null,{"$f":"'[1]MONE(M)CAPARD'!AL343","v":3.3498133299999999},{"$f":"'[1]MONE(M)CAPARD'!AM343","v":4.38},{"$f":"'[1]MONE(M)CAPARD'!AN343","v":2.95},{"$f":"'[1]MONE(M)CAPARD'!AO343","v":3.44},{"$f":"'[1]MONE(M)CAPARD'!AP343","v":4.05},{"$f":"'[1]MONE(M)CAPARD'!AQ343","v":1.74},{"$f":"'[1]MONE(M)CAPARD'!AR343","v":2.34},null,null,{"$f":"'[1]MONE(M)CAPARD'!J343","v":12.210618800899908},{"$f":"'[1]MONE(M)CAPARD'!K343","v":5.0083773347701213},{"$f":"'[1]MONE(M)CAPARD'!L343","v":8.5186599817684705},{"$f":"'[1]MONE(M)CAPARD'!M343","v":13.977984344422683},{"$f":"'[1]MONE(M)CAPARD'!N343","v":8.6331187525205646},{"$f":"'[1]MONE(M)CAPARD'!O343","v":8.9060500198491379},{"$f":"'[1]MONE(M)CAPARD'!P343","v":5.9307177033492824},null,null,{"$f":"'[1]MONE(M)CAPARD'!Q343","v":9.56},{"$f":"'[1]MONE(M)CAPARD'!R343","v":6.51},{"$f":"'[1]MONE(M)CAPARD'!S343","v":6.04},{"$f":"'[1]MONE(M)CAPARD'!T343","v":8.3699999999999992},{"$f":"'[1]MONE(M)CAPARD'!U343","v":7.98},{"$f":"'[1]MONE(M)CAPARD'!V343","v":5.55},{"$f":"'[1]MONE(M)CAPARD'!W343","v":6.44},null,null,{"$f":"'[1]MONE(M)CAPARD'!AS343","v":4.5},{"$f":"'[1]MONE(M)CAPARD'!AT343","v":"n.a."},{"$f":"'[1]MONE(M)CAPARD'!AU343","v":3},{"$f":"'[1]MONE(M)CAPARD'!AV343","v":5.5},{"$f":"'[1]MONE(M)CAPARD'!AW343","v":"n.a."},{"$f":"'[1]MONE(M)CAPARD'!AX343","v":5.25},{"$f":"'[1]MONE(M)CAPARD'!AY343","v":"n.a."},null,null,{"$f":"+'Datos_Regional (M)'!CF336","v":8.1024380830316609},{"$f":"+'Datos_Regional (M)'!CG336","v":4.9628763274241816},{"$f":"+'Datos_Regional (M)'!CH336","v":5.3522033390909662},{"$f":"+'Datos_Regional (M)'!CI336","v":10.107532482149661},{"$f":"+'Datos_Regional (M)'!CJ336","v":16.596870790368822},{"$f":"+'Datos_Regional (M)'!CK336","v":11.022547400676963},{"$f":"+'Datos_Regional (M)'!CL336","v":7.3732784910300886},null,null,920.19595552166629,474.41500000000013,920.66666666666663,376.30032428492041,428.21666666666675,835.47500000000002,926.34705616666668,3955.2696131399211,4881.616669306587,null,null,1373.7030464016636,864.78833333333307,1509.5249999999999,798.44268293256653,637.81223915499993,1474.9333333333334,1791.8475345833331,6659.2046351558956,8451.0521697392287,null,null,-2703.9350220159772,-3569.4355004326439,null,null,{"$f":"'[1]EXT Comercio(M)'!C343","v":922.56663504000107},{"$f":"'[1]EXT Comercio(M)'!D343","v":469.51000000000022},{"$f":"'[1]EXT Comercio(M)'!E343","v":851.80000000000018},{"$f":"'[1]EXT Comercio(M)'!F343","v":289.43016555517636},{"$f":"'[1]EXT Comercio(M)'!G343","v":411.1},{"$f":"'[1]EXT Comercio(M)'!H343","v":917.69999999999993},{"$f":"'[1]EXT Comercio(M)'!I343","v":1045.5348590000001},{"$f":"'[1]EXT Comercio(M)'!K343","v":3862.1068005951893},{"$f":"'[1]EXT Comercio(M)'!L343","v":4907.6416595951887},null,null,{"$f":"'[1]EXT Comercio(M)'!AG343","v":1434.6147294000011},{"$f":"'[1]EXT Comercio(M)'!AH343","v":948.78999999999905},{"$f":"'[1]EXT Comercio(M)'!AI343","v":1693.6999999999998},{"$f":"'[1]EXT Comercio(M)'!AJ343","v":824.24654583799997},{"$f":"'[1]EXT Comercio(M)'!AK343","v":740.2},{"$f":"'[1]EXT Comercio(M)'!AL343","v":1664.1},{"$f":"'[1]EXT Comercio(M)'!AM343","v":2030.9526149999997},{"$f":"'[1]EXT Comercio(M)'!AO343","v":7305.6512752379786},{"$f":"'[1]EXT Comercio(M)'!AP343","v":9336.6038902379805},null,null,{"$f":"'[1]EXT Comercio(M)'!$BS343","v":-3443.544474642822},{"$f":"'[1]EXT Comercio(M)'!$BT343","v":-4428.9622306428246}]
[null,null,"Noviembre",{"$f":"'[1]REAL IPC(M)'!AD344","v":2.491316787336201},{"$f":"'[1]REAL IPC(M)'!AE344","v":1.6760794315904568},{"$f":"'[1]REAL IPC(M)'!AF344","v":4.6916890080429088},{"$f":"'[1]REAL IPC(M)'!AG344","v":4.3345750084659702},{"$f":"'[1]REAL IPC(M)'!AH344","v":5.3467286613125937},{"$f":"'[1]REAL IPC(M)'!AI344","v":4.1355542791499067},{"$f":"'[1]REAL IPC(M)'!AJ344","v":0.38498556304137771},null,null,{"$f":"'[1]REAL IMAE(M)'!AG344","v":3.0943815687503036},{"$f":"'[1]REAL IMAE(M)'!AH344","v":2.7417787396253623},{"$f":"'[1]REAL IMAE(M)'!AI344","v":2.1612434092644275},{"$f":"'[1]REAL IMAE(M)'!AJ344","v":4.4822466016000311},{"$f":"'[1]REAL IMAE(M)'!AK344","v":4.3100237277767501},{"$f":"'[1]REAL IMAE(M)'!AL344","v":6.4185996184318332},{"$f":"'[1]REAL IMAE(M)'!AM344","v":4.7226869128812279},null,null,{"$f":"'[1]EXT ITCER(M)'!C344","v":79.034277971684446},{"$f":"'[1]EXT ITCER(M)'!D344","v":93.854462163670462},{"$f":"'[1]EXT ITCER(M)'!E344","v":52.576855532865871},{"$f":"'[1]EXT ITCER(M)'!F344","v":78.912663615211855},{"$f":"'[1]EXT ITCER(M)'!G344","v":104.0099171399993},{"$f":"'[1]EXT ITCER(M)'!H344","v":105.87077124563928},{"$f":"'[1]EXT ITCER(M)'!I344","v":90.272114045760134},null,null,{"$f":"'[1]EXT TC(M)'!J344","v":3.0862868459210064},{"$f":"'[1]EXT TC(M)'!K344","v":0},{"$f":"'[1]EXT TC(M)'!L344","v":-2.3409378977637783},{"$f":"'[1]EXT TC(M)'!M344","v":1.6729729654271448},{"$f":"'[1]EXT TC(M)'!N344","v":4.6175076347281001},{"$f":"'[1]EXT TC(M)'!O344","v":2.9823810435429743},{"$f":"'[1]EXT TC(M)'!P344","v":0},null,null,{"$f":"'[1]EXT RIN(M)'!C344","v":6837.1},{"$f":"'[1]EXT RIN(M)'!D344","v":3416.98},{"$f":"'[1]EXT RIN(M)'!E344","v":11572.6},{"$f":"'[1]EXT RIN(M)'!F344","v":4481.3185652269458},{"$f":"'[1]EXT RIN(M)'!G344","v":2660.2},{"$f":"'[1]EXT RIN(M)'!H344","v":6344.5116152361661},{"$f":"'[1]EXT RIN(M)'!I344","v":3264.9391592700003},null,null,{"$f":"'[1]EXT RIN(M)'!P344","v":60.328603634311008},{"$f":"'[1]EXT RIN(M)'!Q344","v":102.73263802242272},{"$f":"'[1]EXT RIN(M)'!R344","v":112.65175616516969},{"$f":"'[1]EXT RIN(M)'!S344","v":88.669732404204765},{"$f":"'[1]EXT RIN(M)'!T344","v":129.05275410591128},{"$f":"'[1]EXT RIN(M)'!U344","v":83.28483304639181},{"$f":"'[1]EXT RIN(M)'!V344","v":189.69245143211131},null,null,{"$f":"+'[1]MONE(M)CAPARD'!AE344","v":3.3258263426711823},{"$f":"'[1]MONE(M)CAPARD'!AF344","v":2.5905017022039027},{"$f":"'[1]MONE(M)CAPARD'!AG344","v":0.60015364916772107},{"$f":"'[1]MONE(M)CAPARD'!AH344","v":3.8486043492372568},{"$f":"'[1]MONE(M)CAPARD'!AI344","v":3.4092012959190336},{"$f":"'[1]MONE(M)CAPARD'!AJ344","v":1.0509817981246625},{"$f":"'[1]MONE(M)CAPARD'!AK344","v":1.818015340364342},null,null,{"$f":"'[1]MONE(M)CAPARD'!AL344","v":3.0968837100000002},{"$f":"'[1]MONE(M)CAPARD'!AM344","v":4.3099999999999996},{"$f":"'[1]MONE(M)CAPARD'!AN344","v":2.95},{"$f":"'[1]MONE(M)CAPARD'!AO344","v":3.45},{"$f":"'[1]MONE(M)CAPARD'!AP344","v":4.03},{"$f":"'[1]MONE(M)CAPARD'!AQ344","v":1.63},{"$f":"'[1]MONE(M)CAPARD'!AR344","v":2.21},null,null,{"$f":"'[1]MONE(M)CAPARD'!J344","v":12.05827342262309},{"$f":"'[1]MONE(M)CAPARD'!K344","v":4.90176312488801},{"$f":"'[1]MONE(M)CAPARD'!L344","v":7.9837387964148396},{"$f":"'[1]MONE(M)CAPARD'!M344","v":13.529000324569941},{"$f":"'[1]MONE(M)CAPARD'!N344","v":9.7450382715068873},{"$f":"'[1]MONE(M)CAPARD'!O344","v":7.7537837837837911},{"$f":"'[1]MONE(M)CAPARD'!P344","v":6.0517162032598364},null,null,{"$f":"'[1]MONE(M)CAPARD'!Q344","v":9.49},{"$f":"'[1]MONE(M)CAPARD'!R344","v":6.66},{"$f":"'[1]MONE(M)CAPARD'!S344","v":6.03},{"$f":"'[1]MONE(M)CAPARD'!T344","v":8.31},{"$f":"'[1]MONE(M)CAPARD'!U344","v":8.56},{"$f":"'[1]MONE(M)CAPARD'!V344","v":5.58},{"$f":"'[1]MONE(M)CAPARD'!W344","v":6.46},null,null,{"$f":"'[1]MONE(M)CAPARD'!AS344","v":4.75},{"$f":"'[1]MONE(M)CAPARD'!AT344","v":"n.a."},{"$f":"'[1]MONE(M)CAPARD'!AU344","v":2.75},{"$f":"'[1]MONE(M)CAPARD'!AV344","v":5.5},{"$f":"'[1]MONE(M)CAPARD'!AW344","v":"n.a."},{"$f":"'[1]MONE(M)CAPARD'!AX344","v":5.25},{"$f":"'[1]MONE(M)CAPARD'!AY344","v":"n.a."},null,null,{"$f":"+'Datos_Regional (M)'!CF337","v":7.2439861679320705},{"$f":"+'Datos_Regional (M)'!CG337","v":4.9248088397938483},{"$f":"+'Datos_Regional (M)'!CH337","v":4.9051265662446664},{"$f":"+'Datos_Regional (M)'!CI337","v":9.9119260985230042},{"$f":"+'Datos_Regional (M)'!CJ337","v":17.089521292033226},{"$f":"+'Datos_Regional (M)'!CK337","v":11.30639171952954},{"$f":"+'Datos_Regional (M)'!CL337","v":7.5171565150213171},null,null,922.98753905583271,478.42083333333335,922.4666666666667,377.06848006973604,430.65833333333336,839.50000000000011,924.27726574999986,3971.1018524589022,4895.3791182089026,null,null,1383.5891485933314,878.30999999999983,1510.7249999999997,806.21833461196036,644.31851071999995,1475.1666666666667,1801.2156299999995,6698.3276605919573,8499.543290591957,null,null,-2727.2258081330569,-3604.1641723830567,null,null,{"$f":"'[1]EXT Comercio(M)'!C344","v":952.74292309999544},{"$f":"'[1]EXT Comercio(M)'!D344","v":482.16999999999916},{"$f":"'[1]EXT Comercio(M)'!E344","v":875.4},{"$f":"'[1]EXT Comercio(M)'!F344","v":317.82772137409438},{"$f":"'[1]EXT Comercio(M)'!G344","v":399.5},{"$f":"'[1]EXT Comercio(M)'!H344","v":904.2},{"$f":"'[1]EXT Comercio(M)'!I344","v":944.97099900000001},{"$f":"'[1]EXT Comercio(M)'!K344","v":3931.8406444740831},{"$f":"'[1]EXT Comercio(M)'!L344","v":4876.8116434740878},null,null,{"$f":"'[1]EXT Comercio(M)'!AG344","v":1599.3278990800002},{"$f":"'[1]EXT Comercio(M)'!AH344","v":1028.08},{"$f":"'[1]EXT Comercio(M)'!AI344","v":1569.1},{"$f":"'[1]EXT Comercio(M)'!AJ344","v":891.50555597619996},{"$f":"'[1]EXT Comercio(M)'!AK344","v":744.5},{"$f":"'[1]EXT Comercio(M)'!AL344","v":1606.8000000000002},{"$f":"'[1]EXT Comercio(M)'!AM344","v":1798.579432},{"$f":"'[1]EXT Comercio(M)'!AO344","v":7439.3134550562099},{"$f":"'[1]EXT Comercio(M)'!AP344","v":9237.892887056194},null,null,{"$f":"'[1]EXT Comercio(M)'!$BS344","v":-3507.4728105821123},{"$f":"'[1]EXT Comercio(M)'!$BT344","v":-4361.0812435821135}]
[null,null,"Diciembre ",{"$f":"'[1]REAL IPC(M)'!AD345","v":2.5741099382925241},{"$f":"'[1]REAL IPC(M)'!AE345","v":2.0350428910385143},{"$f":"'[1]REAL IPC(M)'!AF345","v":5.6768903256327397},{"$f":"'[1]REAL IPC(M)'!AG345","v":4.7281323877068555},{"$f":"'[1]REAL IPC(M)'!AH345","v":5.6784984336508488},{"$f":"'[1]REAL IPC(M)'!AI345","v":4.2042774660486195},{"$f":"'[1]REAL IPC(M)'!AJ345","v":0.48076923076923078},null,null,{"$f":"'[1]REAL IMAE(M)'!AG345","v":3.1268596594975864},{"$f":"'[1]REAL IMAE(M)'!AH345","v":3.00737229849969},{"$f":"'[1]REAL IMAE(M)'!AI345","v":2.0307566831185926},{"$f":"'[1]REAL IMAE(M)'!AJ345","v":3.9654196672599671},{"$f":"'[1]REAL IMAE(M)'!AK345","v":4.062744008380986},{"$f":"'[1]REAL IMAE(M)'!AL345","v":6.7874240887713047},{"$f":"'[1]REAL IMAE(M)'!AM345","v":4.6831336523945781},null,null,{"$f":"'[1]EXT ITCER(M)'!C345","v":78.431600374047136},{"$f":"'[1]EXT ITCER(M)'!D345","v":93.639897282523521},{"$f":"'[1]EXT ITCER(M)'!E345","v":52.130135426505952},{"$f":"'[1]EXT ITCER(M)'!F345","v":78.323350261025581},{"$f":"'[1]EXT ITCER(M)'!G345","v":103.17469486110949},{"$f":"'[1]EXT ITCER(M)'!H345","v":105.31230345165079},{"$f":"'[1]EXT ITCER(M)'!I345","v":90.046381146672744},null,null,{"$f":"'[1]EXT TC(M)'!J345","v":3.1948068515917925},{"$f":"'[1]EXT TC(M)'!K345","v":0},{"$f":"'[1]EXT TC(M)'!L345","v":-2.1916743355456307},{"$f":"'[1]EXT TC(M)'!M345","v":0.43453246929667944},{"$f":"'[1]EXT TC(M)'!N345","v":4.6403044566958052},{"$f":"'[1]EXT TC(M)'!O345","v":3.2793254596894394},{"$f":"'[1]EXT TC(M)'!P345","v":0},null,null,{"$f":"'[1]EXT RIN(M)'!C345","v":7149.8},{"$f":"'[1]EXT RIN(M)'!D345","v":3273.16},{"$f":"'[1]EXT RIN(M)'!E345","v":11769.5},{"$f":"'[1]EXT RIN(M)'!F345","v":4785.6407855964271},{"$f":"'[1]EXT RIN(M)'!G345","v":2716.2},{"$f":"'[1]EXT RIN(M)'!H345","v":6780.4030804810109},{"$f":"'[1]EXT RIN(M)'!I345","v":3510.3838357999998},null,null,{"$f":"'[1]EXT RIN(M)'!P345","v":63.251838212023173},{"$f":"'[1]EXT RIN(M)'!Q345","v":99.497158101250491},{"$f":"'[1]EXT RIN(M)'!R345","v":105.92515915287497},{"$f":"'[1]EXT RIN(M)'!S345","v":85.606543162928986},{"$f":"'[1]EXT RIN(M)'!T345","v":130.52511384000408},{"$f":"'[1]EXT RIN(M)'!U345","v":82.61753779113198},{"$f":"'[1]EXT RIN(M)'!V345","v":196.45468000134809},null,null,{"$f":"+'[1]MONE(M)CAPARD'!AE345","v":3.2911716842957497},{"$f":"'[1]MONE(M)CAPARD'!AF345","v":2.3079885520078665},{"$f":"'[1]MONE(M)CAPARD'!AG345","v":-0.37556964858613995},{"$f":"'[1]MONE(M)CAPARD'!AH345","v":3.1146049661399551},{"$f":"'[1]MONE(M)CAPARD'!AI345","v":3.8298470167812364},{"$f":"'[1]MONE(M)CAPARD'!AJ345","v":0.96514515373810894},{"$f":"'[1]MONE(M)CAPARD'!AK345","v":1.7010526315789474},null,null,{"$f":"'[1]MONE(M)CAPARD'!AL345","v":3.0154855299999999},{"$f":"'[1]MONE(M)CAPARD'!AM345","v":4.3899999999999997},{"$f":"'[1]MONE(M)CAPARD'!AN345","v":2.96},{"$f":"'[1]MONE(M)CAPARD'!AO345","v":3.43},{"$f":"'[1]MONE(M)CAPARD'!AP345","v":4.05},{"$f":"'[1]MONE(M)CAPARD'!AQ345","v":2},{"$f":"'[1]MONE(M)CAPARD'!AR345","v":2.19},null,null,{"$f":"'[1]MONE(M)CAPARD'!J345","v":11.987323184285536},{"$f":"'[1]MONE(M)CAPARD'!K345","v":4.5229138717467094},{"$f":"'[1]MONE(M)CAPARD'!L345","v":6.9297172274863801},{"$f":"'[1]MONE(M)CAPARD'!M345","v":12.901851015801352},{"$f":"'[1]MONE(M)CAPARD'!N345","v":10.711569663802315},{"$f":"'[1]MONE(M)CAPARD'!O345","v":6.6654869673794401},{"$f":"'[1]MONE(M)CAPARD'!P345","v":5.9406698564593308},null,null,{"$f":"'[1]MONE(M)CAPARD'!Q345","v":9.7899999999999991},{"$f":"'[1]MONE(M)CAPARD'!R345","v":6.65},{"$f":"'[1]MONE(M)CAPARD'!S345","v":6.03},{"$f":"'[1]MONE(M)CAPARD'!T345","v":8.17},{"$f":"'[1]MONE(M)CAPARD'!U345","v":8.5},{"$f":"'[1]MONE(M)CAPARD'!V345","v":6.39},{"$f":"'[1]MONE(M)CAPARD'!W345","v":6.45},null,null,{"$f":"'[1]MONE(M)CAPARD'!AS345","v":4.75},{"$f":"'[1]MONE(M)CAPARD'!AT345","v":"n.a."},{"$f":"'[1]MONE(M)CAPARD'!AU345","v":2.75},{"$f":"'[1]MONE(M)CAPARD'!AV345","v":5.5},{"$f":"'[1]MONE(M)CAPARD'!AW345","v":"n.a."},{"$f":"'[1]MONE(M)CAPARD'!AX345","v":5.25},{"$f":"'[1]MONE(M)CAPARD'!AY345","v":"n.a."},null,null,{"$f":"+'Datos_Regional (M)'!CF338","v":6.9356325967461885},{"$f":"+'Datos_Regional (M)'!CG338","v":5.1303314397344479},{"$f":"+'Datos_Regional (M)'!CH338","v":3.727708387403772},{"$f":"+'Datos_Regional (M)'!CI338","v":7.8237270051769059},{"$f":"+'Datos_Regional (M)'!CJ338","v":16.194870193215682},{"$f":"+'Datos_Regional (M)'!CK338","v":11.819029018974248},{"$f":"+'Datos_Regional (M)'!CL338","v":7.786854983765279},null,null,922.02983838166608,480.00083333333333,915.19999999999993,378.73585466346748,432.2,844.55000000000018,{"$f":"IF(EN150=\"\",\"\",+AVERAGE(EN139:EN150))","v":938.40921274999982},3972.7165263784664,4911.1257391284671,null,null,1382.569244979165,880.95833333333337,1532.5166666666664,806.91537956338982,644.68333333333328,1475.0250000000003,1828.2458631666666,6722.6679578758885,8550.9138210425554,null,null,-2749.9514314974217,-3639.7880819140883,null,null,{"$f":"'[1]EXT Comercio(M)'!C345","v":833.07197924999286},{"$f":"'[1]EXT Comercio(M)'!D345","v":421.03000000000065},{"$f":"'[1]EXT Comercio(M)'!E345","v":887.3},{"$f":"'[1]EXT Comercio(M)'!F345","v":351.33102069610322},{"$f":"'[1]EXT Comercio(M)'!G345","v":356},{"$f":"'[1]EXT Comercio(M)'!H345","v":815.7},{"$f":"'[1]EXT Comercio(M)'!I345","v":961.01787800000011},{"$f":"'[1]EXT Comercio(M)'!K345","v":3664.4329999460897},{"$f":"'[1]EXT Comercio(M)'!L345","v":4625.4508779460957},null,null,{"$f":"'[1]EXT Comercio(M)'!AG345","v":1376.6272710200001},{"$f":"'[1]EXT Comercio(M)'!AH345","v":844.52000000000044},{"$f":"'[1]EXT Comercio(M)'!AI345","v":1744.4999999999998},{"$f":"'[1]EXT Comercio(M)'!AJ345","v":790.05501221955546},{"$f":"'[1]EXT Comercio(M)'!AK345","v":609.6},{"$f":"'[1]EXT Comercio(M)'!AL345","v":1529.1999999999998},{"$f":"'[1]EXT Comercio(M)'!AM345","v":1981.75441},{"$f":"'[1]EXT Comercio(M)'!AO345","v":6894.5022832395625},{"$f":"'[1]EXT Comercio(M)'!AP345","v":8876.2566932395712},null,null,{"$f":"'[1]EXT Comercio(M)'!$BS345","v":-3230.0692832934583},{"$f":"'[1]EXT Comercio(M)'!$BT345","v":-4250.8058152934536}]
[null,2018,"Enero",{"$f":"'[1]REAL IPC(M)'!AD346","v":2.407825173415207},{"$f":"'[1]REAL IPC(M)'!AE346","v":1.422230274481378},{"$f":"'[1]REAL IPC(M)'!AF346","v":4.7140952231547617},{"$f":"'[1]REAL IPC(M)'!AG346","v":4.5729657027572372},{"$f":"'[1]REAL IPC(M)'!AH346","v":5.3590959201744264},{"$f":"'[1]REAL IPC(M)'!AI346","v":3.8632506263638464},{"$f":"'[1]REAL IPC(M)'!AJ346","v":0.38350910834132856},null,null,{"$f":"'[1]REAL IMAE(M)'!AG346","v":3.0988297132726395},{"$f":"'[1]REAL IMAE(M)'!AH346","v":3.1611382010335114},{"$f":"'[1]REAL IMAE(M)'!AI346","v":2.0893671822756104},{"$f":"'[1]REAL IMAE(M)'!AJ346","v":3.5671021738605675},{"$f":"'[1]REAL IMAE(M)'!AK346","v":3.6324124221628598},{"$f":"'[1]REAL IMAE(M)'!AL346","v":6.9140759862060728},{"$f":"'[1]REAL IMAE(M)'!AM346","v":4.2389087200407998},null,null,{"$f":"'[1]EXT ITCER(M)'!C346","v":78.891642796671704},{"$f":"'[1]EXT ITCER(M)'!D346","v":94.023884775943458},{"$f":"'[1]EXT ITCER(M)'!E346","v":52.638094241775349},{"$f":"'[1]EXT ITCER(M)'!F346","v":78.628960562514209},{"$f":"'[1]EXT ITCER(M)'!G346","v":104.03140002563175},{"$f":"'[1]EXT ITCER(M)'!H346","v":106.0663419249684},{"$f":"'[1]EXT ITCER(M)'!I346","v":90.363985483341011},null,null,{"$f":"'[1]EXT TC(M)'!J346","v":3.2281022048072447},{"$f":"'[1]EXT TC(M)'!K346","v":0},{"$f":"'[1]EXT TC(M)'!L346","v":-2.3180671350007698},{"$f":"'[1]EXT TC(M)'!M346","v":1.1063215374145426E-2},{"$f":"'[1]EXT TC(M)'!N346","v":4.7926229730830858},{"$f":"'[1]EXT TC(M)'!O346","v":3.5285902774208018},{"$f":"'[1]EXT TC(M)'!P346","v":0},null,null,{"$f":"'[1]EXT RIN(M)'!C346","v":7120.0502999999999},{"$f":"'[1]EXT RIN(M)'!D346","v":3441.87},{"$f":"'[1]EXT RIN(M)'!E346","v":11345.9},{"$f":"'[1]EXT RIN(M)'!F346","v":4674.0289756200364},{"$f":"'[1]EXT RIN(M)'!G346","v":2739.8},{"$f":"'[1]EXT RIN(M)'!H346","v":6803.9781630356683},{"$f":"'[1]EXT RIN(M)'!I346","v":3219.9777227200002},null,null,{"$f":"'[1]EXT RIN(M)'!P346","v":62.809300808576538},{"$f":"'[1]EXT RIN(M)'!Q346","v":103.02149944147187},{"$f":"'[1]EXT RIN(M)'!R346","v":105.48346903062252},{"$f":"'[1]EXT RIN(M)'!S346","v":87.959663681286344},{"$f":"'[1]EXT RIN(M)'!T346","v":135.84042485887485},{"$f":"'[1]EXT RIN(M)'!U346","v":87.794403967967739},{"$f":"'[1]EXT RIN(M)'!V346","v":197.2166538553343},null,null,{"$f":"+'[1]MONE(M)CAPARD'!AE346","v":3.6053639654318834},{"$f":"'[1]MONE(M)CAPARD'!AF346","v":2.8472749196141538},{"$f":"'[1]MONE(M)CAPARD'!AG346","v":0.53087865168538861},{"$f":"'[1]MONE(M)CAPARD'!AH346","v":3.5927395498392203},{"$f":"'[1]MONE(M)CAPARD'!AI346","v":3.0131462929911548},{"$f":"'[1]MONE(M)CAPARD'!AJ346","v":1.7588024278266385},{"$f":"'[1]MONE(M)CAPARD'!AK346","v":1.42602196752626},null,null,{"$f":"'[1]MONE(M)CAPARD'!AL346","v":3.2402171000000002},{"$f":"'[1]MONE(M)CAPARD'!AM346","v":4.3099999999999996},{"$f":"'[1]MONE(M)CAPARD'!AN346","v":2.96},{"$f":"'[1]MONE(M)CAPARD'!AO346","v":3.5},{"$f":"'[1]MONE(M)CAPARD'!AP346","v":4.03},{"$f":"'[1]MONE(M)CAPARD'!AQ346","v":1.69},{"$f":"'[1]MONE(M)CAPARD'!AR346","v":1.8149999999999999},null,null,{"$f":"'[1]MONE(M)CAPARD'!J346","v":12.374225119150813},{"$f":"'[1]MONE(M)CAPARD'!K346","v":5.0361441586280877},{"$f":"'[1]MONE(M)CAPARD'!L346","v":7.9797325842696596},{"$f":"'[1]MONE(M)CAPARD'!M346","v":12.925935691318317},{"$f":"'[1]MONE(M)CAPARD'!N346","v":12.292982683003792},{"$f":"'[1]MONE(M)CAPARD'!O346","v":7.862982647264813},{"$f":"'[1]MONE(M)CAPARD'!P346","v":5.9935052531041011},null,null,{"$f":"'[1]MONE(M)CAPARD'!Q346","v":10.130000000000001},{"$f":"'[1]MONE(M)CAPARD'!R346","v":6.53},{"$f":"'[1]MONE(M)CAPARD'!S346","v":6.08},{"$f":"'[1]MONE(M)CAPARD'!T346","v":8.18},{"$f":"'[1]MONE(M)CAPARD'!U346","v":8.76},{"$f":"'[1]MONE(M)CAPARD'!V346","v":6.62},{"$f":"'[1]MONE(M)CAPARD'!W346","v":6.4},null,null,{"$f":"'[1]MONE(M)CAPARD'!AS346","v":4.75},{"$f":"'[1]MONE(M)CAPARD'!AT346","v":"n.a."},{"$f":"'[1]MONE(M)CAPARD'!AU346","v":2.75},{"$f":"'[1]MONE(M)CAPARD'!AV346","v":5.5},{"$f":"'[1]MONE(M)CAPARD'!AW346","v":"n.a."},{"$f":"'[1]MONE(M)CAPARD'!AX346","v":5.25},{"$f":"'[1]MONE(M)CAPARD'!AY346","v":"n.a."},null,null,{"$f":"+'Datos_Regional (M)'!CF339","v":5.9862615151528242},{"$f":"+'Datos_Regional (M)'!CG339","v":4.4523170132593659},{"$f":"+'Datos_Regional (M)'!CH339","v":4.0845463747357869},{"$f":"+'Datos_Regional (M)'!CI339","v":8.4341938211144765},{"$f":"+'Datos_Regional (M)'!CJ339","v":16.158911427150024},{"$f":"+'Datos_Regional (M)'!CK339","v":11.781437367081281},{"$f":"+'Datos_Regional (M)'!CL339","v":7.3081624939931311},null,null,{"$f":"IF(EH151=\"\",\"\",+AVERAGE(EH140:EH151))","v":923.43033296666579},{"$f":"IF(EI151=\"\",\"\",+AVERAGE(EI140:EI151))","v":486.15500000000003},{"$f":"IF(EJ151=\"\",\"\",+AVERAGE(EJ140:EJ151))","v":915.23333333333323},{"$f":"IF(EK151=\"\",\"\",+AVERAGE(EK140:EK151))","v":379.36137763593075},{"$f":"IF(EL151=\"\",\"\",+AVERAGE(EL140:EL151))","v":436.41666666666669},{"$f":"IF(EM151=\"\",\"\",+AVERAGE(EM140:EM151))","v":854.45000000000016},{"$f":"IF(EN151=\"\",\"\",+AVERAGE(EN140:EN151))","v":955.9954388333332},{"$f":"IF(EO151=\"\",\"\",+AVERAGE(EO140:EO151))","v":3995.0467106025967},{"$f":"IF(EP151=\"\",\"\",+AVERAGE(EP140:EP151))","v":4951.0421494359298},null,null,{"$f":"IF(ES151=\"\",\"\",+AVERAGE(ES140:ES151))","v":1385.7700677483326},{"$f":"IF(ET151=\"\",\"\",+AVERAGE(ET140:ET151))","v":887.84},{"$f":"IF(EU151=\"\",\"\",+AVERAGE(EU140:EU151))","v":1543.7416666666666},{"$f":"IF(EV151=\"\",\"\",+AVERAGE(EV140:EV151))","v":817.79485039203576},{"$f":"IF(EW151=\"\",\"\",+AVERAGE(EW140:EW151))","v":651.56666666666672},{"$f":"IF(EX151=\"\",\"\",+AVERAGE(EX140:EX151))","v":1495.7166666666665},{"$f":"IF(EY151=\"\",\"\",+AVERAGE(EY140:EY151))","v":1860.2551476666667},{"$f":"IF(EZ151=\"\",\"\",+AVERAGE(EZ140:EZ151))","v":6782.4299181403685},{"$f":"IF(FA151=\"\",\"\",+AVERAGE(FA140:FA151))","v":8642.6850658070343},null,null,{"$f":"IF(FD151=\"\",\"\",+AVERAGE(FD140:FD151))","v":-2787.3832075377723},{"$f":"IF(FE151=\"\",\"\",+AVERAGE(FE140:FE151))","v":-3691.6429163711055},null,null,{"$f":"'[1]EXT Comercio(M)'!C346","v":823.70711817999563},{"$f":"'[1]EXT Comercio(M)'!D346","v":500.02},{"$f":"'[1]EXT Comercio(M)'!E346","v":879.40000000000009},{"$f":"'[1]EXT Comercio(M)'!F346","v":400.10971300270171},{"$f":"'[1]EXT Comercio(M)'!G346","v":465.3},{"$f":"'[1]EXT Comercio(M)'!H346","v":790.30000000000018},{"$f":"'[1]EXT Comercio(M)'!I346","v":949.2},{"$f":"'[1]EXT Comercio(M)'!K346","v":3858.836831182698},{"$f":"'[1]EXT Comercio(M)'!L346","v":4808.0368311826978},null,null,{"$f":"'[1]EXT Comercio(M)'!AG346","v":1381.0403651900108},{"$f":"'[1]EXT Comercio(M)'!AH346","v":929.49},{"$f":"'[1]EXT Comercio(M)'!AI346","v":1566.4},{"$f":"'[1]EXT Comercio(M)'!AJ346","v":838.78518772010989},{"$f":"'[1]EXT Comercio(M)'!AK346","v":668.9},{"$f":"'[1]EXT Comercio(M)'!AL346","v":1573.1},{"$f":"'[1]EXT Comercio(M)'!AM346","v":2027.24},{"$f":"'[1]EXT Comercio(M)'!AO346","v":6957.7155529101201},{"$f":"'[1]EXT Comercio(M)'!AP346","v":8984.9555529101199},null,null,{"$f":"'[1]EXT Comercio(M)'!$BS346","v":-3098.878721727423},{"$f":"'[1]EXT Comercio(M)'!$BT346","v":-4176.918721727423}]
[null,null,"Febrero",{"$f":"'[1]REAL IPC(M)'!AD347","v":2.2124881422793723},{"$f":"'[1]REAL IPC(M)'!AE347","v":1.2286566085463904},{"$f":"'[1]REAL IPC(M)'!AF347","v":4.1510318949343246},{"$f":"'[1]REAL IPC(M)'!AG347","v":4.3333333333333339},{"$f":"'[1]REAL IPC(M)'!AH347","v":4.8161039269698067},{"$f":"'[1]REAL IPC(M)'!AI347","v":3.3158953722334039},{"$f":"'[1]REAL IPC(M)'!AJ347","v":0.38240917782027312},null,null,{"$f":"'[1]REAL IMAE(M)'!AG347","v":3.1065427480489469},{"$f":"'[1]REAL IMAE(M)'!AH347","v":3.2348379113591177},{"$f":"'[1]REAL IMAE(M)'!AI347","v":2.3479514732986604},{"$f":"'[1]REAL IMAE(M)'!AJ347","v":3.365990038512265},{"$f":"'[1]REAL IMAE(M)'!AK347","v":3.1226481779160635},{"$f":"'[1]REAL IMAE(M)'!AL347","v":6.9570105703295706},{"$f":"'[1]REAL IMAE(M)'!AM347","v":3.4488213890207176},null,null,{"$f":"'[1]EXT ITCER(M)'!C347","v":79.282443584507021},{"$f":"'[1]EXT ITCER(M)'!D347","v":94.374390285848804},{"$f":"'[1]EXT ITCER(M)'!E347","v":53.118560360599744},{"$f":"'[1]EXT ITCER(M)'!F347","v":78.39367141270013},{"$f":"'[1]EXT ITCER(M)'!G347","v":104.58070416614399},{"$f":"'[1]EXT ITCER(M)'!H347","v":107.5671939389791},{"$f":"'[1]EXT ITCER(M)'!I347","v":90.514404547708665},null,null,{"$f":"'[1]EXT TC(M)'!J347","v":2.4532936216300127},{"$f":"'[1]EXT TC(M)'!K347","v":0},{"$f":"'[1]EXT TC(M)'!L347","v":-0.57418587050558789},{"$f":"'[1]EXT TC(M)'!M347","v":-1.4829870201496826E-2},{"$f":"'[1]EXT TC(M)'!N347","v":4.6509741082928571},{"$f":"'[1]EXT TC(M)'!O347","v":3.6621078173879966},{"$f":"'[1]EXT TC(M)'!P347","v":0},null,null,{"$f":"'[1]EXT RIN(M)'!C347","v":7015.9},{"$f":"'[1]EXT RIN(M)'!D347","v":3370.66},{"$f":"'[1]EXT RIN(M)'!E347","v":11475.2},{"$f":"'[1]EXT RIN(M)'!F347","v":4764.165179075585},{"$f":"'[1]EXT RIN(M)'!G347","v":2770.9},{"$f":"'[1]EXT RIN(M)'!H347","v":8050.147613639987},{"$f":"'[1]EXT RIN(M)'!I347","v":2824.90965276},null,null,{"$f":"'[1]EXT RIN(M)'!P347","v":62.202851221090647},{"$f":"'[1]EXT RIN(M)'!Q347","v":101.56120531052058},{"$f":"'[1]EXT RIN(M)'!R347","v":106.915234733948},{"$f":"'[1]EXT RIN(M)'!S347","v":86.815176685527689},{"$f":"'[1]EXT RIN(M)'!T347","v":129.08715280548532},{"$f":"'[1]EXT RIN(M)'!U347","v":106.38407819138267},{"$f":"'[1]EXT RIN(M)'!V347","v":169.35715355580464},null,null,{"$f":"+'[1]MONE(M)CAPARD'!AE347","v":3.7055275011488091},{"$f":"'[1]MONE(M)CAPARD'!AF347","v":3.0241865238732717},{"$f":"'[1]MONE(M)CAPARD'!AG347","v":1.0743706372438726},{"$f":"'[1]MONE(M)CAPARD'!AH347","v":3.8498402555910531},{"$f":"'[1]MONE(M)CAPARD'!AI347","v":4.914454433083443},{"$f":"'[1]MONE(M)CAPARD'!AJ347","v":2.4978071369838317},{"$f":"'[1]MONE(M)CAPARD'!AK347","v":1.4121904761904709},null,null,{"$f":"'[1]MONE(M)CAPARD'!AL347","v":3.5092119400000001},{"$f":"'[1]MONE(M)CAPARD'!AM347","v":4.29},{"$f":"'[1]MONE(M)CAPARD'!AN347","v":2.94},{"$f":"'[1]MONE(M)CAPARD'!AO347","v":3.46},{"$f":"'[1]MONE(M)CAPARD'!AP347","v":4.51},{"$f":"'[1]MONE(M)CAPARD'!AQ347","v":1.7456538739512792},{"$f":"'[1]MONE(M)CAPARD'!AR347","v":1.8},null,null,{"$f":"'[1]MONE(M)CAPARD'!J347","v":12.57919858072824},{"$f":"'[1]MONE(M)CAPARD'!K347","v":5.2468772869254803},{"$f":"'[1]MONE(M)CAPARD'!L347","v":8.5442918261652885},{"$f":"'[1]MONE(M)CAPARD'!M347","v":13.252396166134183},{"$f":"'[1]MONE(M)CAPARD'!N347","v":8.309097991062929},{"$f":"'[1]MONE(M)CAPARD'!O347","v":8.7819058191166111},{"$f":"'[1]MONE(M)CAPARD'!P347","v":5.6758857142857089},null,null,{"$f":"'[1]MONE(M)CAPARD'!Q347","v":9.81},{"$f":"'[1]MONE(M)CAPARD'!R347","v":6.54},{"$f":"'[1]MONE(M)CAPARD'!S347","v":6.08},{"$f":"'[1]MONE(M)CAPARD'!T347","v":8.1999999999999993},{"$f":"'[1]MONE(M)CAPARD'!U347","v":8.35},{"$f":"'[1]MONE(M)CAPARD'!V347","v":5.5015999999999998},{"$f":"'[1]MONE(M)CAPARD'!W347","v":6.08},null,null,{"$f":"'[1]MONE(M)CAPARD'!AS347","v":5},{"$f":"'[1]MONE(M)CAPARD'!AT347","v":"n.a."},{"$f":"'[1]MONE(M)CAPARD'!AU347","v":2.75},{"$f":"'[1]MONE(M)CAPARD'!AV347","v":5.5},{"$f":"'[1]MONE(M)CAPARD'!AW347","v":"n.a."},{"$f":"'[1]MONE(M)CAPARD'!AX347","v":5.25},{"$f":"'[1]MONE(M)CAPARD'!AY347","v":"n.a."},null,null,{"$f":"+'Datos_Regional (M)'!CF340","v":4.7471509909337684},{"$f":"+'Datos_Regional (M)'!CG340","v":4.6847038440199995},{"$f":"+'Datos_Regional (M)'!CH340","v":3.5488823410208203},{"$f":"+'Datos_Regional (M)'!CI340","v":9.192148496870022},{"$f":"+'Datos_Regional (M)'!CJ340","v":16.674414537975824},{"$f":"+'Datos_Regional (M)'!CK340","v":11.593720364612704},{"$f":"+'Datos_Regional (M)'!CL340","v":7.1498270035061262},null,null,925.75611620749851,489.27250000000004,914.07499999999993,379.89555100845467,437.33333333333331,859.45833333333337,951.34236591666684,4005.7908338826196,4957.1331997992866,null,null,1388.5321310616666,896.27833333333331,1549.8416666666665,818.10985855220315,654.66666666666663,1499.9416666666666,1868.8690682500003,6807.3703229472039,8676.2393911972031,null,null,-2801.5794890645834,-3719.106191397917,null,null,{"$f":"'[1]EXT Comercio(M)'!C347","v":911.74363845999505},{"$f":"'[1]EXT Comercio(M)'!D347","v":488.77},{"$f":"'[1]EXT Comercio(M)'!E347","v":928.1},{"$f":"'[1]EXT Comercio(M)'!F347","v":428.67435649644756},{"$f":"'[1]EXT Comercio(M)'!G347","v":458},{"$f":"'[1]EXT Comercio(M)'!H347","v":839.8},{"$f":"'[1]EXT Comercio(M)'!I347","v":926.128827},{"$f":"'[1]EXT Comercio(M)'!K347","v":4055.0879949564423},{"$f":"'[1]EXT Comercio(M)'!L347","v":4981.2168219564419},null,null,{"$f":"'[1]EXT Comercio(M)'!AG347","v":1289.9188044600012},{"$f":"'[1]EXT Comercio(M)'!AH347","v":861.59000000000015},{"$f":"'[1]EXT Comercio(M)'!AI347","v":1425.6},{"$f":"'[1]EXT Comercio(M)'!AJ347","v":745.98656946490928},{"$f":"'[1]EXT Comercio(M)'!AK347","v":606.40000000000009},{"$f":"'[1]EXT Comercio(M)'!AL347","v":1386.1000000000001},{"$f":"'[1]EXT Comercio(M)'!AM347","v":1676.441092},{"$f":"'[1]EXT Comercio(M)'!AO347","v":6315.5953739249107},{"$f":"'[1]EXT Comercio(M)'!AP347","v":7992.0364659249099},null,null,{"$f":"'[1]EXT Comercio(M)'!$BS347","v":-2260.5073789684684},{"$f":"'[1]EXT Comercio(M)'!$BT347","v":-3010.819643968468}]
[null,null,"Marzo",{"$f":"'[1]REAL IPC(M)'!AD348","v":2.6129676959632318},{"$f":"'[1]REAL IPC(M)'!AE348","v":0.9105661738189732},{"$f":"'[1]REAL IPC(M)'!AF348","v":4.1409966466505521},{"$f":"'[1]REAL IPC(M)'!AG348","v":4.3521594684385452},{"$f":"'[1]REAL IPC(M)'!AH348","v":4.8384299879093637},{"$f":"'[1]REAL IPC(M)'!AI348","v":3.9112903225806406},{"$f":"'[1]REAL IPC(M)'!AJ348","v":0.57416267942583188},null,null,{"$f":"'[1]REAL IMAE(M)'!AG348","v":3.1539625717444153},{"$f":"'[1]REAL IMAE(M)'!AH348","v":3.0276406899930901},{"$f":"'[1]REAL IMAE(M)'!AI348","v":2.7244821069448388},{"$f":"'[1]REAL IMAE(M)'!AJ348","v":3.3489204394089827},{"$f":"'[1]REAL IMAE(M)'!AK348","v":2.7249737396518618},{"$f":"'[1]REAL IMAE(M)'!AL348","v":7.0167319289440533},{"$f":"'[1]REAL IMAE(M)'!AM348","v":4.7275011779487839},null,null,{"$f":"'[1]EXT ITCER(M)'!C348","v":79.0216822945128},{"$f":"'[1]EXT ITCER(M)'!D348","v":94.689190096912441},{"$f":"'[1]EXT ITCER(M)'!E348","v":53.348697304925501},{"$f":"'[1]EXT ITCER(M)'!F348","v":78.470229337176491},{"$f":"'[1]EXT ITCER(M)'!G348","v":104.94119343541875},{"$f":"'[1]EXT ITCER(M)'!H348","v":108.20801302529057},{"$f":"'[1]EXT ITCER(M)'!I348","v":90.632752105762705},null,null,{"$f":"'[1]EXT TC(M)'!J348","v":1.9285924893451545},{"$f":"'[1]EXT TC(M)'!K348","v":0},{"$f":"'[1]EXT TC(M)'!L348","v":0.48183875225968809},{"$f":"'[1]EXT TC(M)'!M348","v":0.5206032447254485},{"$f":"'[1]EXT TC(M)'!N348","v":4.6873629746557972},{"$f":"'[1]EXT TC(M)'!O348","v":4.0078789354965085},{"$f":"'[1]EXT TC(M)'!P348","v":0},null,null,{"$f":"'[1]EXT RIN(M)'!C348","v":8473.9},{"$f":"'[1]EXT RIN(M)'!D348","v":3400.37},{"$f":"'[1]EXT RIN(M)'!E348","v":11740.8},{"$f":"'[1]EXT RIN(M)'!F348","v":4832.1434372273143},{"$f":"'[1]EXT RIN(M)'!G348","v":2852.1},{"$f":"'[1]EXT RIN(M)'!H348","v":7576.7978562124863},{"$f":"'[1]EXT RIN(M)'!I348","v":2787.7063490299997},null,null,{"$f":"'[1]EXT RIN(M)'!P348","v":75.606783334985423},{"$f":"'[1]EXT RIN(M)'!Q348","v":100.99064007733851},{"$f":"'[1]EXT RIN(M)'!R348","v":108.05976691663111},{"$f":"'[1]EXT RIN(M)'!S348","v":87.586873199233423},{"$f":"'[1]EXT RIN(M)'!T348","v":127.26086931481539},{"$f":"'[1]EXT RIN(M)'!U348","v":104.28371667786256},{"$f":"'[1]EXT RIN(M)'!V348","v":165.12133991951404},null,null,{"$f":"+'[1]MONE(M)CAPARD'!AE348","v":3.3007838873468356},{"$f":"'[1]MONE(M)CAPARD'!AF348","v":3.3489395157687794},{"$f":"'[1]MONE(M)CAPARD'!AG348","v":1.0649056462483129},{"$f":"'[1]MONE(M)CAPARD'!AH348","v":3.6586119070359691},{"$f":"'[1]MONE(M)CAPARD'!AI348","v":4.8786569437957805},{"$f":"'[1]MONE(M)CAPARD'!AJ348","v":1.8162700814901096},{"$f":"'[1]MONE(M)CAPARD'!AK348","v":1.1740960989533831},null,null,{"$f":"'[1]MONE(M)CAPARD'!AL348","v":3.0393050599999998},{"$f":"'[1]MONE(M)CAPARD'!AM348","v":4.29},{"$f":"'[1]MONE(M)CAPARD'!AN348","v":3.03},{"$f":"'[1]MONE(M)CAPARD'!AO348","v":3.36},{"$f":"'[1]MONE(M)CAPARD'!AP348","v":4.38},{"$f":"'[1]MONE(M)CAPARD'!AQ348","v":1.8187},{"$f":"'[1]MONE(M)CAPARD'!AR348","v":1.7549999999999999},null,null,{"$f":"'[1]MONE(M)CAPARD'!J348","v":12.061859803830307},{"$f":"'[1]MONE(M)CAPARD'!K348","v":5.5885464129366511},{"$f":"'[1]MONE(M)CAPARD'!L348","v":8.5163419200239616},{"$f":"'[1]MONE(M)CAPARD'!M348","v":13.260713148678759},{"$f":"'[1]MONE(M)CAPARD'!N348","v":7.8943052725614962},{"$f":"'[1]MONE(M)CAPARD'!O348","v":7.8218734963135468},{"$f":"'[1]MONE(M)CAPARD'!P348","v":5.5241198858230316},null,null,{"$f":"'[1]MONE(M)CAPARD'!Q348","v":10.33},{"$f":"'[1]MONE(M)CAPARD'!R348","v":6.55},{"$f":"'[1]MONE(M)CAPARD'!S348","v":6.11},{"$f":"'[1]MONE(M)CAPARD'!T348","v":8.23},{"$f":"'[1]MONE(M)CAPARD'!U348","v":7.61},{"$f":"'[1]MONE(M)CAPARD'!V348","v":5.6927000000000003},{"$f":"'[1]MONE(M)CAPARD'!W348","v":6.13},null,null,{"$f":"'[1]MONE(M)CAPARD'!AS348","v":5},{"$f":"'[1]MONE(M)CAPARD'!AT348","v":"n.a."},{"$f":"'[1]MONE(M)CAPARD'!AU348","v":2.75},{"$f":"'[1]MONE(M)CAPARD'!AV348","v":5.5},{"$f":"'[1]MONE(M)CAPARD'!AW348","v":"n.a."},{"$f":"'[1]MONE(M)CAPARD'!AX348","v":5.25},{"$f":"'[1]MONE(M)CAPARD'!AY348","v":"n.a."},null,null,{"$f":"+'Datos_Regional (M)'!CF341","v":3.7268000672844526},{"$f":"+'Datos_Regional (M)'!CG341","v":5.1063929196923707},{"$f":"+'Datos_Regional (M)'!CH341","v":3.7553130105482335},{"$f":"+'Datos_Regional (M)'!CI341","v":9.8898926695136566},{"$f":"+'Datos_Regional (M)'!CJ341","v":15.894782285555277},{"$f":"+'Datos_Regional (M)'!CK341","v":12.788396678576275},{"$f":"+'Datos_Regional (M)'!CL341","v":6.8240801937131002},null,null,936.05638832249781,483.73916666666673,912.2833333333333,378.41049499292666,434.88333333333338,858.97499999999991,959.82118627500006,4004.3477166487569,4964.1689029237577,null,null,1384.7116176499997,897.82083333333333,1540.1000000000001,818.35888691455887,651.49166666666667,1509.8666666666668,1871.5825422500002,6802.3496712312262,8673.9322134812264,null,null,-2798.0019545824675,-3709.7633105574678,null,null,{"$f":"'[1]EXT Comercio(M)'!C348","v":1112.420850499992},{"$f":"'[1]EXT Comercio(M)'!D348","v":493.67000000000007},{"$f":"'[1]EXT Comercio(M)'!E348","v":1065.3999999999999},{"$f":"'[1]EXT Comercio(M)'!F348","v":413.47830006690617},{"$f":"'[1]EXT Comercio(M)'!G348","v":509.1},{"$f":"'[1]EXT Comercio(M)'!H348","v":956.5},{"$f":"'[1]EXT Comercio(M)'!I348","v":1102.6100452999999},{"$f":"'[1]EXT Comercio(M)'!K348","v":4550.5691505668965},{"$f":"'[1]EXT Comercio(M)'!L348","v":5653.1791958668964},null,null,{"$f":"'[1]EXT Comercio(M)'!AG348","v":1423.5426651799933},{"$f":"'[1]EXT Comercio(M)'!AH348","v":902.16000000000008},{"$f":"'[1]EXT Comercio(M)'!AI348","v":1486.7},{"$f":"'[1]EXT Comercio(M)'!AJ348","v":816.23213468406789},{"$f":"'[1]EXT Comercio(M)'!AK348","v":626.79999999999995},{"$f":"'[1]EXT Comercio(M)'!AL348","v":1639.5},{"$f":"'[1]EXT Comercio(M)'!AM348","v":1983.6550540000001},{"$f":"'[1]EXT Comercio(M)'!AO348","v":6894.934799864066},{"$f":"'[1]EXT Comercio(M)'!AP348","v":8878.5898538640686},null,null,{"$f":"'[1]EXT Comercio(M)'!$BS348","v":-2344.3656492971631},{"$f":"'[1]EXT Comercio(M)'!$BT348","v":-3225.410657997164}]
[null,null,"Abril",{"$f":"'[1]REAL IPC(M)'!AD349","v":2.3754301900147747},{"$f":"'[1]REAL IPC(M)'!AE349","v":0.87387387387387294},{"$f":"'[1]REAL IPC(M)'!AF349","v":3.9203484754200311},{"$f":"'[1]REAL IPC(M)'!AG349","v":4.2039059913935741},{"$f":"'[1]REAL IPC(M)'!AH349","v":4.8240941781801796},{"$f":"'[1]REAL IPC(M)'!AI349","v":4.0456848709080795},{"$f":"'[1]REAL IPC(M)'!AJ349","v":0.76555023923444698},null,null,{"$f":"'[1]REAL IMAE(M)'!AG349","v":3.1267086102175234},{"$f":"'[1]REAL IMAE(M)'!AH349","v":2.604758817576565},{"$f":"'[1]REAL IMAE(M)'!AI349","v":3.0981016874870497},{"$f":"'[1]REAL IMAE(M)'!AJ349","v":3.4475725589771944},{"$f":"'[1]REAL IMAE(M)'!AK349","v":2.5718611632759694},{"$f":"'[1]REAL IMAE(M)'!AL349","v":7.1216470382788915},{"$f":"'[1]REAL IMAE(M)'!AM349","v":4.3221635801505363},null,null,{"$f":"'[1]EXT ITCER(M)'!C349","v":79.103337037008984},{"$f":"'[1]EXT ITCER(M)'!D349","v":95.031627205065249},{"$f":"'[1]EXT ITCER(M)'!E349","v":53.665034543798079},{"$f":"'[1]EXT ITCER(M)'!F349","v":78.723831836773726},{"$f":"'[1]EXT ITCER(M)'!G349","v":105.35297545690941},{"$f":"'[1]EXT ITCER(M)'!H349","v":108.59150221299072},{"$f":"'[1]EXT ITCER(M)'!I349","v":90.820199334583606},null,null,{"$f":"'[1]EXT TC(M)'!J349","v":1.161088161003597},{"$f":"'[1]EXT TC(M)'!K349","v":0},{"$f":"'[1]EXT TC(M)'!L349","v":0.99386415914939263},{"$f":"'[1]EXT TC(M)'!M349","v":0.80594044929493069},{"$f":"'[1]EXT TC(M)'!N349","v":4.88220649321336},{"$f":"'[1]EXT TC(M)'!O349","v":4.2210806592490897},{"$f":"'[1]EXT TC(M)'!P349","v":0},null,null,{"$f":"'[1]EXT RIN(M)'!C349","v":8128.2201999999997},{"$f":"'[1]EXT RIN(M)'!D349","v":3401.03},{"$f":"'[1]EXT RIN(M)'!E349","v":11845.9},{"$f":"'[1]EXT RIN(M)'!F349","v":4873.4576251489889},{"$f":"'[1]EXT RIN(M)'!G349","v":2932.5},{"$f":"'[1]EXT RIN(M)'!H349","v":7202.1803552235524},{"$f":"'[1]EXT RIN(M)'!I349","v":3344.6422300300001},null,null,{"$f":"'[1]EXT RIN(M)'!P349","v":71.758541917123722},{"$f":"'[1]EXT RIN(M)'!Q349","v":101.44636603888395},{"$f":"'[1]EXT RIN(M)'!R349","v":108.63128769400574},{"$f":"'[1]EXT RIN(M)'!S349","v":91.373148050940685},{"$f":"'[1]EXT RIN(M)'!T349","v":131.89225865730467},{"$f":"'[1]EXT RIN(M)'!U349","v":100.22814653691236},{"$f":"'[1]EXT RIN(M)'!V349","v":204.86484645578491},null,null,{"$f":"+'[1]MONE(M)CAPARD'!AE349","v":3.6869879843038542},{"$f":"'[1]MONE(M)CAPARD'!AF349","v":3.2774850406358853},{"$f":"'[1]MONE(M)CAPARD'!AG349","v":1.2794910179640782},{"$f":"'[1]MONE(M)CAPARD'!AH349","v":3.9404415501906018},{"$f":"'[1]MONE(M)CAPARD'!AI349","v":4.6880047132254345},{"$f":"'[1]MONE(M)CAPARD'!AJ349","v":2.0847718305503902},{"$f":"'[1]MONE(M)CAPARD'!AK349","v":1.0067426400759765},null,null,{"$f":"'[1]MONE(M)CAPARD'!AL349","v":3.2740408799999998},{"$f":"'[1]MONE(M)CAPARD'!AM349","v":4.18},{"$f":"'[1]MONE(M)CAPARD'!AN349","v":3.05},{"$f":"'[1]MONE(M)CAPARD'!AO349","v":3.52},{"$f":"'[1]MONE(M)CAPARD'!AP349","v":4.21},{"$f":"'[1]MONE(M)CAPARD'!AQ349","v":1.9897},{"$f":"'[1]MONE(M)CAPARD'!AR349","v":1.78},null,null,{"$f":"'[1]MONE(M)CAPARD'!J349","v":12.243728584798452},{"$f":"'[1]MONE(M)CAPARD'!K349","v":5.4980798428150406},{"$f":"'[1]MONE(M)CAPARD'!L349","v":8.7563712574850374},{"$f":"'[1]MONE(M)CAPARD'!M349","v":13.258710292249051},{"$f":"'[1]MONE(M)CAPARD'!N349","v":10.491220113557171},{"$f":"'[1]MONE(M)CAPARD'!O349","v":7.8291715213357937},{"$f":"'[1]MONE(M)CAPARD'!P349","v":5.3236942070275441},null,null,{"$f":"'[1]MONE(M)CAPARD'!Q349","v":10.48},{"$f":"'[1]MONE(M)CAPARD'!R349","v":6.42},{"$f":"'[1]MONE(M)CAPARD'!S349","v":6.2},{"$f":"'[1]MONE(M)CAPARD'!T349","v":8.27},{"$f":"'[1]MONE(M)CAPARD'!U349","v":7.21},{"$f":"'[1]MONE(M)CAPARD'!V349","v":5.7499000000000002},{"$f":"'[1]MONE(M)CAPARD'!W349","v":6.13},null,null,{"$f":"'[1]MONE(M)CAPARD'!AS349","v":5},{"$f":"'[1]MONE(M)CAPARD'!AT349","v":"n.a."},{"$f":"'[1]MONE(M)CAPARD'!AU349","v":2.75},{"$f":"'[1]MONE(M)CAPARD'!AV349","v":5.5},{"$f":"'[1]MONE(M)CAPARD'!AW349","v":"n.a."},{"$f":"'[1]MONE(M)CAPARD'!AX349","v":5.25},{"$f":"'[1]MONE(M)CAPARD'!AY349","v":"n.a."},null,null,{"$f":"+'Datos_Regional (M)'!CF342","v":2.8347287622116912},{"$f":"+'Datos_Regional (M)'!CG342","v":4.7883520142616653},{"$f":"+'Datos_Regional (M)'!CH342","v":3.4486803286323697},{"$f":"+'Datos_Regional (M)'!CI342","v":11.183276296954968},{"$f":"+'Datos_Regional (M)'!CJ342","v":13.812784202251937},{"$f":"+'Datos_Regional (M)'!CK342","v":13.532892362416082},{"$f":"+'Datos_Regional (M)'!CL342","v":6.4633307822110631},null,null,939.73862931833082,489.86083333333335,912.01666666666677,376.02471824126951,441.30833333333339,867.74166666666667,975.34309619166686,4026.6908475595997,5002.0339437512675,null,null,1410.4154892008326,914.6633333333333,1565.9916666666666,830.80939076401557,664.0333333333333,1527.2750000000003,1899.7166955833334,6913.18821329818,8812.9049088815154,null,null,-2886.4973657385813,-3810.870965130247,null,null,{"$f":"'[1]EXT Comercio(M)'!C349","v":969.78816413999698},{"$f":"'[1]EXT Comercio(M)'!D349","v":519.82999999999993},{"$f":"'[1]EXT Comercio(M)'!E349","v":943.9},{"$f":"'[1]EXT Comercio(M)'!F349","v":388.51956018149588},{"$f":"'[1]EXT Comercio(M)'!G349","v":500.6},{"$f":"'[1]EXT Comercio(M)'!H349","v":903.90000000000009},{"$f":"'[1]EXT Comercio(M)'!I349","v":1108.4048010000001},{"$f":"'[1]EXT Comercio(M)'!K349","v":4226.5377243214953},{"$f":"'[1]EXT Comercio(M)'!L349","v":5334.9425253214977},null,null,{"$f":"'[1]EXT Comercio(M)'!AG349","v":1512.5065518799952},{"$f":"'[1]EXT Comercio(M)'!AH349","v":1027.4000000000001},{"$f":"'[1]EXT Comercio(M)'!AI349","v":1657.6000000000001},{"$f":"'[1]EXT Comercio(M)'!AJ349","v":870.00012336922964},{"$f":"'[1]EXT Comercio(M)'!AK349","v":698.8},{"$f":"'[1]EXT Comercio(M)'!AL349","v":1607.4},{"$f":"'[1]EXT Comercio(M)'!AM349","v":1919.700844},{"$f":"'[1]EXT Comercio(M)'!AO349","v":7373.7066752492174},{"$f":"'[1]EXT Comercio(M)'!AP349","v":9293.4075192492164},null,null,{"$f":"'[1]EXT Comercio(M)'!$BS349","v":-3147.168950927733},{"$f":"'[1]EXT Comercio(M)'!$BT349","v":-3958.4649939277315}]
[null,null,"Mayo ",{"$f":"'[1]REAL IPC(M)'!AD350","v":2.035903124047965},{"$f":"'[1]REAL IPC(M)'!AE350","v":0.82741253709866147},{"$f":"'[1]REAL IPC(M)'!AF350","v":4.0865384615384475},{"$f":"'[1]REAL IPC(M)'!AG350","v":3.9933993399340006},{"$f":"'[1]REAL IPC(M)'!AH350","v":5.2647100235690694},{"$f":"'[1]REAL IPC(M)'!AI350","v":4.4703987112363937},{"$f":"'[1]REAL IPC(M)'!AJ350","v":0.76555023923444698},null,null,{"$f":"'[1]REAL IMAE(M)'!AG350","v":3.100738655944494},{"$f":"'[1]REAL IMAE(M)'!AH350","v":2.197946577539533},{"$f":"'[1]REAL IMAE(M)'!AI350","v":3.3576266908379226},{"$f":"'[1]REAL IMAE(M)'!AJ350","v":3.5898202280737221},{"$f":"'[1]REAL IMAE(M)'!AK350","v":-4.6401267309019172},{"$f":"'[1]REAL IMAE(M)'!AL350","v":7.2684082978559701},{"$f":"'[1]REAL IMAE(M)'!AM350","v":1.2260227202185079},null,null,{"$f":"'[1]EXT ITCER(M)'!C350","v":79.511608713568393},{"$f":"'[1]EXT ITCER(M)'!D350","v":95.307689316647611},{"$f":"'[1]EXT ITCER(M)'!E350","v":53.885427139887142},{"$f":"'[1]EXT ITCER(M)'!F350","v":79.477408057777893},{"$f":"'[1]EXT ITCER(M)'!G350","v":106.08532031595921},{"$f":"'[1]EXT ITCER(M)'!H350","v":108.82524918236004},{"$f":"'[1]EXT ITCER(M)'!I350","v":91.197912998767578},null,null,{"$f":"'[1]EXT TC(M)'!J350","v":-1.0070217697586545},{"$f":"'[1]EXT TC(M)'!K350","v":0},{"$f":"'[1]EXT TC(M)'!L350","v":1.4389324287600729},{"$f":"'[1]EXT TC(M)'!M350","v":1.410792983677474},{"$f":"'[1]EXT TC(M)'!N350","v":5.0729682688445541},{"$f":"'[1]EXT TC(M)'!O350","v":4.1668162988531563},{"$f":"'[1]EXT TC(M)'!P350","v":0},null,null,{"$f":"'[1]EXT RIN(M)'!C350","v":8010.7},{"$f":"'[1]EXT RIN(M)'!D350","v":3532.18},{"$f":"'[1]EXT RIN(M)'!E350","v":11849.5},{"$f":"'[1]EXT RIN(M)'!F350","v":4890.554671413397},{"$f":"'[1]EXT RIN(M)'!G350","v":2868.5},{"$f":"'[1]EXT RIN(M)'!H350","v":6911.1900791018998},{"$f":"'[1]EXT RIN(M)'!I350","v":3307.9993902700003},null,null,{"$f":"'[1]EXT RIN(M)'!P350","v":71.680043227924685},{"$f":"'[1]EXT RIN(M)'!Q350","v":105.58798630176298},{"$f":"'[1]EXT RIN(M)'!R350","v":111.62097914797744},{"$f":"'[1]EXT RIN(M)'!S350","v":93.903400898586213},{"$f":"'[1]EXT RIN(M)'!T350","v":131.38920877546411},{"$f":"'[1]EXT RIN(M)'!U350","v":97.528749036899157},{"$f":"'[1]EXT RIN(M)'!V350","v":203.31132245574528},null,null,{"$f":"+'[1]MONE(M)CAPARD'!AE350","v":3.8359996394539242},{"$f":"'[1]MONE(M)CAPARD'!AF350","v":3.2854036214432236},{"$f":"'[1]MONE(M)CAPARD'!AG350","v":1.0889607390300364},{"$f":"'[1]MONE(M)CAPARD'!AH350","v":4.1412250079339818},{"$f":"'[1]MONE(M)CAPARD'!AI350","v":3.8405072940444644},{"$f":"'[1]MONE(M)CAPARD'!AJ350","v":1.50214922898999},{"$f":"'[1]MONE(M)CAPARD'!AK350","v":0.94223646723647003},null,null,{"$f":"'[1]MONE(M)CAPARD'!AL350","v":3.2326563899999998},{"$f":"'[1]MONE(M)CAPARD'!AM350","v":4.1399999999999997},{"$f":"'[1]MONE(M)CAPARD'!AN350","v":3.01},{"$f":"'[1]MONE(M)CAPARD'!AO350","v":3.47},{"$f":"'[1]MONE(M)CAPARD'!AP350","v":3.88},{"$f":"'[1]MONE(M)CAPARD'!AQ350","v":1.9204000000000001},{"$f":"'[1]MONE(M)CAPARD'!AR350","v":1.7149999999999999},null,null,{"$f":"'[1]MONE(M)CAPARD'!J350","v":13.779482429433383},{"$f":"'[1]MONE(M)CAPARD'!K350","v":5.6557907412362844},{"$f":"'[1]MONE(M)CAPARD'!L350","v":8.5442956120092521},{"$f":"'[1]MONE(M)CAPARD'!M350","v":13.487972072357971},{"$f":"'[1]MONE(M)CAPARD'!N350","v":9.3704160742906009},{"$f":"'[1]MONE(M)CAPARD'!O350","v":7.6717437548188254},{"$f":"'[1]MONE(M)CAPARD'!P350","v":5.3137701804368511},null,null,{"$f":"'[1]MONE(M)CAPARD'!Q350","v":10.539722330577412},{"$f":"'[1]MONE(M)CAPARD'!R350","v":6.53},{"$f":"'[1]MONE(M)CAPARD'!S350","v":6.22},{"$f":"'[1]MONE(M)CAPARD'!T350","v":8.1999999999999993},{"$f":"'[1]MONE(M)CAPARD'!U350","v":8.34},{"$f":"'[1]MONE(M)CAPARD'!V350","v":5.3033000000000001},{"$f":"'[1]MONE(M)CAPARD'!W350","v":6.12},null,null,{"$f":"'[1]MONE(M)CAPARD'!AS350","v":5},{"$f":"'[1]MONE(M)CAPARD'!AT350","v":"n.a."},{"$f":"'[1]MONE(M)CAPARD'!AU350","v":2.75},{"$f":"'[1]MONE(M)CAPARD'!AV350","v":5.5},{"$f":"'[1]MONE(M)CAPARD'!AW350","v":"n.a."},{"$f":"'[1]MONE(M)CAPARD'!AX350","v":5.25},{"$f":"'[1]MONE(M)CAPARD'!AY350","v":"n.a."},null,null,{"$f":"+'Datos_Regional (M)'!CF343","v":1.9292642646786762},{"$f":"+'Datos_Regional (M)'!CG343","v":4.9436951401582441},{"$f":"+'Datos_Regional (M)'!CH343","v":3.8430112397368932},{"$f":"+'Datos_Regional (M)'!CI343","v":11.698600382974433},{"$f":"+'Datos_Regional (M)'!CJ343","v":10.911333039210724},{"$f":"+'Datos_Regional (M)'!CK343","v":12.869139797450369},{"$f":"+'Datos_Regional (M)'!CL343","v":6.1317849013327264},null,null,945.14442625082995,490.25583333333333,910.25,370.8357859927101,441.77500000000003,871.68333333333328,955.43864960833344,4029.9443789102061,4985.3830285185404,null,null,1416.2296428874981,921.55583333333334,1593.0916666666665,839.41644092215347,662.64166666666677,1544.6000000000004,1884.6697071666665,6977.5352504763187,8862.2049576429854,null,null,-2947.5908715661117,-3876.8219291244445,null,null,{"$f":"'[1]EXT Comercio(M)'!C350","v":1098.3507001599889},{"$f":"'[1]EXT Comercio(M)'!D350","v":512.7199999999998},{"$f":"'[1]EXT Comercio(M)'!E350","v":956.8},{"$f":"'[1]EXT Comercio(M)'!F350","v":401.34849101098814},{"$f":"'[1]EXT Comercio(M)'!G350","v":465.5},{"$f":"'[1]EXT Comercio(M)'!H350","v":991.00000000000011},{"$f":"'[1]EXT Comercio(M)'!I350","v":909.77050000000008},{"$f":"'[1]EXT Comercio(M)'!K350","v":4425.7191911709742},{"$f":"'[1]EXT Comercio(M)'!L350","v":5335.4896911709729},null,null,{"$f":"'[1]EXT Comercio(M)'!AG350","v":1561.1622412799893},{"$f":"'[1]EXT Comercio(M)'!AH350","v":999.98999999999978},{"$f":"'[1]EXT Comercio(M)'!AI350","v":1881.1},{"$f":"'[1]EXT Comercio(M)'!AJ350","v":949.56719704376587},{"$f":"'[1]EXT Comercio(M)'!AK350","v":655.5},{"$f":"'[1]EXT Comercio(M)'!AL350","v":1708.9},{"$f":"'[1]EXT Comercio(M)'!AM350","v":1927.7276489999999},{"$f":"'[1]EXT Comercio(M)'!AO350","v":7756.2194383237584},{"$f":"'[1]EXT Comercio(M)'!AP350","v":9683.9470873237588},null,null,{"$f":"'[1]EXT Comercio(M)'!$BS350","v":-3330.5002471527769},{"$f":"'[1]EXT Comercio(M)'!$BT350","v":-4348.4573961527767}]
[null,null,"Junio",{"$f":"'[1]REAL IPC(M)'!AD351","v":2.1341316140110127},{"$f":"'[1]REAL IPC(M)'!AE351","v":0.89879561387740425},{"$f":"'[1]REAL IPC(M)'!AF351","v":3.7902667794264682},{"$f":"'[1]REAL IPC(M)'!AG351","v":4.1474654377880071},{"$f":"'[1]REAL IPC(M)'!AH351","v":5.6707510633995986},{"$f":"'[1]REAL IPC(M)'!AI351","v":4.6288842376428923},{"$f":"'[1]REAL IPC(M)'!AJ351","v":1.1663470757430454},null,null,{"$f":"'[1]REAL IMAE(M)'!AG351","v":2.9999856843780184},{"$f":"'[1]REAL IMAE(M)'!AH351","v":2.0225998333311939},{"$f":"'[1]REAL IMAE(M)'!AI351","v":3.4534671711305345},{"$f":"'[1]REAL IMAE(M)'!AJ351","v":3.7346442481733253},{"$f":"'[1]REAL IMAE(M)'!AK351","v":-4.5464800932567648},{"$f":"'[1]REAL IMAE(M)'!AL351","v":7.4075896986355607},{"$f":"'[1]REAL IMAE(M)'!AM351","v":3.1440194254359595},null,null,{"$f":"'[1]EXT ITCER(M)'!C351","v":79.794577025318802},{"$f":"'[1]EXT ITCER(M)'!D351","v":95.332046352892888},{"$f":"'[1]EXT ITCER(M)'!E351","v":53.965526658102284},{"$f":"'[1]EXT ITCER(M)'!F351","v":79.780001930393681},{"$f":"'[1]EXT ITCER(M)'!G351","v":106.55515708000723},{"$f":"'[1]EXT ITCER(M)'!H351","v":108.79388626497484},{"$f":"'[1]EXT ITCER(M)'!I351","v":91.155851934581975},null,null,{"$f":"'[1]EXT TC(M)'!J351","v":6.6765258668008845E-3},{"$f":"'[1]EXT TC(M)'!K351","v":0},{"$f":"'[1]EXT TC(M)'!L351","v":1.9823148030586626},{"$f":"'[1]EXT TC(M)'!M351","v":2.1707918646831055},{"$f":"'[1]EXT TC(M)'!N351","v":5.2103541563372433},{"$f":"'[1]EXT TC(M)'!O351","v":4.0268796112327383},{"$f":"'[1]EXT TC(M)'!P351","v":0},null,null,{"$f":"'[1]EXT RIN(M)'!C351","v":8070.9},{"$f":"'[1]EXT RIN(M)'!D351","v":3457.39},{"$f":"'[1]EXT RIN(M)'!E351","v":11979.2},{"$f":"'[1]EXT RIN(M)'!F351","v":4884.7412109127436},{"$f":"'[1]EXT RIN(M)'!G351","v":2961},{"$f":"'[1]EXT RIN(M)'!H351","v":6597.9586467956469},{"$f":"'[1]EXT RIN(M)'!I351","v":2895.9110779099997},null,null,{"$f":"'[1]EXT RIN(M)'!P351","v":71.560793235375797},{"$f":"'[1]EXT RIN(M)'!Q351","v":104.44513925706404},{"$f":"'[1]EXT RIN(M)'!R351","v":111.18345185041005},{"$f":"'[1]EXT RIN(M)'!S351","v":92.358597644868311},{"$f":"'[1]EXT RIN(M)'!T351","v":134.76846905551},{"$f":"'[1]EXT RIN(M)'!U351","v":96.050877547897571},{"$f":"'[1]EXT RIN(M)'!V351","v":174.56980874737422},null,null,{"$f":"+'[1]MONE(M)CAPARD'!AE351","v":3.7361343614395768},{"$f":"'[1]MONE(M)CAPARD'!AF351","v":3.2916194548369853},{"$f":"'[1]MONE(M)CAPARD'!AG351","v":1.3678866666666614},{"$f":"'[1]MONE(M)CAPARD'!AH351","v":3.862345132743374},{"$f":"'[1]MONE(M)CAPARD'!AI351","v":4.2338761273548542},{"$f":"'[1]MONE(M)CAPARD'!AJ351","v":1.8193979379856882},{"$f":"'[1]MONE(M)CAPARD'!AK351","v":0.6115204731013667},null,null,{"$f":"'[1]MONE(M)CAPARD'!AL351","v":3.3636932900000001},{"$f":"'[1]MONE(M)CAPARD'!AM351","v":4.22},{"$f":"'[1]MONE(M)CAPARD'!AN351","v":3.07},{"$f":"'[1]MONE(M)CAPARD'!AO351","v":3.4},{"$f":"'[1]MONE(M)CAPARD'!AP351","v":4.1100000000000003},{"$f":"'[1]MONE(M)CAPARD'!AQ351","v":1.8028},{"$f":"'[1]MONE(M)CAPARD'!AR351","v":1.7849999999999999},null,null,{"$f":"'[1]MONE(M)CAPARD'!J351","v":13.659904430679656},{"$f":"'[1]MONE(M)CAPARD'!K351","v":5.6206859077142362},{"$f":"'[1]MONE(M)CAPARD'!L351","v":8.8155985185185113},{"$f":"'[1]MONE(M)CAPARD'!M351","v":13.022433628318597},{"$f":"'[1]MONE(M)CAPARD'!N351","v":9.8692160727252656},{"$f":"'[1]MONE(M)CAPARD'!O351","v":7.1497615757482489},{"$f":"'[1]MONE(M)CAPARD'!P351","v":4.9163116668957025},null,null,{"$f":"'[1]MONE(M)CAPARD'!Q351","v":10.541406350781061},{"$f":"'[1]MONE(M)CAPARD'!R351","v":6.57},{"$f":"'[1]MONE(M)CAPARD'!S351","v":6.29},{"$f":"'[1]MONE(M)CAPARD'!T351","v":8.1999999999999993},{"$f":"'[1]MONE(M)CAPARD'!U351","v":9.08},{"$f":"'[1]MONE(M)CAPARD'!V351","v":5.3677000000000001},{"$f":"'[1]MONE(M)CAPARD'!W351","v":6.14},null,null,{"$f":"'[1]MONE(M)CAPARD'!AS351","v":5},{"$f":"'[1]MONE(M)CAPARD'!AT351","v":"n.a."},{"$f":"'[1]MONE(M)CAPARD'!AU351","v":2.75},{"$f":"'[1]MONE(M)CAPARD'!AV351","v":5.5},{"$f":"'[1]MONE(M)CAPARD'!AW351","v":"n.a."},{"$f":"'[1]MONE(M)CAPARD'!AX351","v":5.25},{"$f":"'[1]MONE(M)CAPARD'!AY351","v":"n.a."},null,null,{"$f":"+'Datos_Regional (M)'!CF344","v":1.5050040876780635},{"$f":"+'Datos_Regional (M)'!CG344","v":5.3505460603983979},{"$f":"+'Datos_Regional (M)'!CH344","v":3.9884091510973274},{"$f":"+'Datos_Regional (M)'!CI344","v":11.921956323036408},{"$f":"+'Datos_Regional (M)'!CJ344","v":8.7437002681588716},{"$f":"+'Datos_Regional (M)'!CK344","v":11.932454382697632},{"$f":"+'Datos_Regional (M)'!CL344","v":6.021679486258269},null,null,945.96864793749592,493.50999999999993,910.74166666666667,366.8590231669678,434.56666666666666,877.68333333333339,971.08744077500012,4029.3293377711293,5000.4167785461304,null,null,1419.0991880883312,934.44749999999988,1601.0250000000003,843.70940330634619,644.35,1569.8666666666668,1891.228930333333,7012.497758061344,8903.7266883946795,null,null,-2983.1684202902138,-3903.3099098485472,null,null,{"$f":"'[1]EXT Comercio(M)'!C351","v":1007.595261439993},{"$f":"'[1]EXT Comercio(M)'!D351","v":532.40000000000009},{"$f":"'[1]EXT Comercio(M)'!E351","v":907},{"$f":"'[1]EXT Comercio(M)'!F351","v":373.24211791452223},{"$f":"'[1]EXT Comercio(M)'!G351","v":378.5},{"$f":"'[1]EXT Comercio(M)'!H351","v":938.30000000000018},{"$f":"'[1]EXT Comercio(M)'!I351","v":1097.4522610000001},{"$f":"'[1]EXT Comercio(M)'!K351","v":4137.037379354515},{"$f":"'[1]EXT Comercio(M)'!L351","v":5234.4896403545135},null,null,{"$f":"'[1]EXT Comercio(M)'!AG351","v":1435.0018080199939},{"$f":"'[1]EXT Comercio(M)'!AH351","v":1027.75},{"$f":"'[1]EXT Comercio(M)'!AI351","v":1605.2},{"$f":"'[1]EXT Comercio(M)'!AJ351","v":894.69144893962516},{"$f":"'[1]EXT Comercio(M)'!AK351","v":461.90000000000003},{"$f":"'[1]EXT Comercio(M)'!AL351","v":1749.6999999999998},{"$f":"'[1]EXT Comercio(M)'!AM351","v":1897.578798},{"$f":"'[1]EXT Comercio(M)'!AO351","v":7174.2432569596276},{"$f":"'[1]EXT Comercio(M)'!AP351","v":9071.8220549596299},null,null,{"$f":"'[1]EXT Comercio(M)'!$BS351","v":-3037.2058776051072},{"$f":"'[1]EXT Comercio(M)'!$BT351","v":-3837.3324146051091}]
[null,null,"Julio",{"$f":"'[1]REAL IPC(M)'!AD352","v":2.0843401885879453},{"$f":"'[1]REAL IPC(M)'!AE352","v":1.0607695073714551},{"$f":"'[1]REAL IPC(M)'!AF352","v":2.6052711299606166},{"$f":"'[1]REAL IPC(M)'!AG352","v":4.2336724647194073},{"$f":"'[1]REAL IPC(M)'!AH352","v":5.171925852311821},{"$f":"'[1]REAL IPC(M)'!AI352","v":4.4278367084538663},{"$f":"'[1]REAL IPC(M)'!AJ352","v":1.3046109510086528},null,null,{"$f":"'[1]REAL IMAE(M)'!AG352","v":2.8351681802634801},{"$f":"'[1]REAL IMAE(M)'!AH352","v":2.109411201863022},{"$f":"'[1]REAL IMAE(M)'!AI352","v":3.410988043853481},{"$f":"'[1]REAL IMAE(M)'!AJ352","v":3.8531288381239119},{"$f":"'[1]REAL IMAE(M)'!AK352","v":-4.6637457655090966},{"$f":"'[1]REAL IMAE(M)'!AL352","v":7.4157555724879893},{"$f":"'[1]REAL IMAE(M)'!AM352","v":2.0291574313988701},null,null,{"$f":"'[1]EXT ITCER(M)'!C352","v":79.535474672973976},{"$f":"'[1]EXT ITCER(M)'!D352","v":95.202788772082144},{"$f":"'[1]EXT ITCER(M)'!E352","v":53.747144174126028},{"$f":"'[1]EXT ITCER(M)'!F352","v":79.595320160467764},{"$f":"'[1]EXT ITCER(M)'!G352","v":107.17275953462463},{"$f":"'[1]EXT ITCER(M)'!H352","v":109.19084226326648},{"$f":"'[1]EXT ITCER(M)'!I352","v":91.212484791884137},null,null,{"$f":"'[1]EXT TC(M)'!J352","v":-0.84585256004833831},{"$f":"'[1]EXT TC(M)'!K352","v":0},{"$f":"'[1]EXT TC(M)'!L352","v":2.5199871467060695},{"$f":"'[1]EXT TC(M)'!M352","v":2.3520681590878554},{"$f":"'[1]EXT TC(M)'!N352","v":5.3466997584779303},{"$f":"'[1]EXT TC(M)'!O352","v":4.3199649242625568},{"$f":"'[1]EXT TC(M)'!P352","v":0},null,null,{"$f":"'[1]EXT RIN(M)'!C352","v":7900.4038},{"$f":"'[1]EXT RIN(M)'!D352","v":3752.4},{"$f":"'[1]EXT RIN(M)'!E352","v":12127.1},{"$f":"'[1]EXT RIN(M)'!F352","v":4813.8329813645632},{"$f":"'[1]EXT RIN(M)'!G352","v":2416},{"$f":"'[1]EXT RIN(M)'!H352","v":7391},{"$f":"'[1]EXT RIN(M)'!I352","v":2526.4067045899997},null,null,{"$f":"'[1]EXT RIN(M)'!P352","v":69.752972077510279},{"$f":"'[1]EXT RIN(M)'!Q352","v":108.84367948721297},{"$f":"'[1]EXT RIN(M)'!R352","v":110.753957818901},{"$f":"'[1]EXT RIN(M)'!S352","v":93.070858152858904},{"$f":"'[1]EXT RIN(M)'!T352","v":108.35579808472917},{"$f":"'[1]EXT RIN(M)'!U352","v":113.48047206625857},{"$f":"'[1]EXT RIN(M)'!V352","v":154.00965066020674},null,null,{"$f":"+'[1]MONE(M)CAPARD'!AE352","v":3.8357105548004395},{"$f":"'[1]MONE(M)CAPARD'!AF352","v":3.1458601672300239},{"$f":"'[1]MONE(M)CAPARD'!AG352","v":2.4996073221139667},{"$f":"'[1]MONE(M)CAPARD'!AH352","v":3.9683217884130859},{"$f":"'[1]MONE(M)CAPARD'!AI352","v":3.6219124228862332},{"$f":"'[1]MONE(M)CAPARD'!AJ352","v":1.7213449480569516},{"$f":"'[1]MONE(M)CAPARD'!AK352","v":0.47913816008442456},null,null,{"$f":"'[1]MONE(M)CAPARD'!AL352","v":3.21},{"$f":"'[1]MONE(M)CAPARD'!AM352","v":4.24},{"$f":"'[1]MONE(M)CAPARD'!AN352","v":3.08},{"$f":"'[1]MONE(M)CAPARD'!AO352","v":3.57},{"$f":"'[1]MONE(M)CAPARD'!AP352","v":4.78},{"$f":"'[1]MONE(M)CAPARD'!AQ352","v":1.7159},{"$f":"'[1]MONE(M)CAPARD'!AR352","v":1.79},null,null,{"$f":"'[1]MONE(M)CAPARD'!J352","v":13.730393832892929},{"$f":"'[1]MONE(M)CAPARD'!K352","v":5.4711937377690729},{"$f":"'[1]MONE(M)CAPARD'!L352","v":10.091809861234134},{"$f":"'[1]MONE(M)CAPARD'!M352","v":12.775456549118374},{"$f":"'[1]MONE(M)CAPARD'!N352","v":11.35474146014753},{"$f":"'[1]MONE(M)CAPARD'!O352","v":8.492815298191621},{"$f":"'[1]MONE(M)CAPARD'!P352","v":4.7632472043399154},null,null,{"$f":"'[1]MONE(M)CAPARD'!Q352","v":10.489836757804584},{"$f":"'[1]MONE(M)CAPARD'!R352","v":6.59},{"$f":"'[1]MONE(M)CAPARD'!S352","v":6.36},{"$f":"'[1]MONE(M)CAPARD'!T352","v":8.17},{"$f":"'[1]MONE(M)CAPARD'!U352","v":9.7899999999999991},{"$f":"'[1]MONE(M)CAPARD'!V352","v":5.7885999999999997},{"$f":"'[1]MONE(M)CAPARD'!W352","v":6.13},null,null,{"$f":"'[1]MONE(M)CAPARD'!AS352","v":5},{"$f":"'[1]MONE(M)CAPARD'!AT352","v":"n.a."},{"$f":"'[1]MONE(M)CAPARD'!AU352","v":2.75},{"$f":"'[1]MONE(M)CAPARD'!AV352","v":5.5},{"$f":"'[1]MONE(M)CAPARD'!AW352","v":"n.a."},{"$f":"'[1]MONE(M)CAPARD'!AX352","v":5.5},{"$f":"'[1]MONE(M)CAPARD'!AY352","v":"n.a."},null,null,{"$f":"+'Datos_Regional (M)'!CF345","v":2.0127896820443691},{"$f":"+'Datos_Regional (M)'!CG345","v":5.3688751873853802},{"$f":"+'Datos_Regional (M)'!CH345","v":3.9036428331589157},{"$f":"+'Datos_Regional (M)'!CI345","v":12.222810748180768},{"$f":"+'Datos_Regional (M)'!CJ345","v":5.806133328415819},{"$f":"+'Datos_Regional (M)'!CK345","v":13.631563392972179},{"$f":"+'Datos_Regional (M)'!CL345","v":5.1581917390429277},null,null,951.30342668666219,490.32999999999993,910.13333333333321,364.30808588012923,438.29999999999995,888.55000000000018,979.36236702500003,4042.9248459001233,5022.2872129251255,null,null,1441.904807293331,942.89333333333343,1612.7250000000004,853.07921217043793,633.65,1597.0916666666665,1914.6629169999999,7081.3440194637697,8996.0069364637693,null,null,-3038.4191735636437,-3973.7197235386443,null,null,{"$f":"'[1]EXT Comercio(M)'!C352","v":958.47873387999823},{"$f":"'[1]EXT Comercio(M)'!D352","v":511.65000000000009},{"$f":"'[1]EXT Comercio(M)'!E352","v":898.89999999999986},{"$f":"'[1]EXT Comercio(M)'!F352","v":354.74460566734228},{"$f":"'[1]EXT Comercio(M)'!G352","v":484.2},{"$f":"'[1]EXT Comercio(M)'!H352","v":950.2},{"$f":"'[1]EXT Comercio(M)'!I352","v":1026.7103959999999},{"$f":"'[1]EXT Comercio(M)'!K352","v":4158.1733395473384},{"$f":"'[1]EXT Comercio(M)'!L352","v":5184.8837355473406},null,null,{"$f":"'[1]EXT Comercio(M)'!AG352","v":1489.6417721400026},{"$f":"'[1]EXT Comercio(M)'!AH352","v":981.63000000000011},{"$f":"'[1]EXT Comercio(M)'!AI352","v":1658.4},{"$f":"'[1]EXT Comercio(M)'!AJ352","v":896.04891667831623},{"$f":"'[1]EXT Comercio(M)'!AK352","v":509.9},{"$f":"'[1]EXT Comercio(M)'!AL352","v":1790.8},{"$f":"'[1]EXT Comercio(M)'!AM352","v":2118.6063669999999},{"$f":"'[1]EXT Comercio(M)'!AO352","v":7326.4206888183107},{"$f":"'[1]EXT Comercio(M)'!AP352","v":9445.0270558183038},null,null,{"$f":"'[1]EXT Comercio(M)'!$BS352","v":-3168.247349270976},{"$f":"'[1]EXT Comercio(M)'!$BT352","v":-4260.1433202709741}]
[null,null,"Agosto",{"$f":"'[1]REAL IPC(M)'!AD353","v":2.2403361633208165},{"$f":"'[1]REAL IPC(M)'!AE353","v":1.4491449144914488},{"$f":"'[1]REAL IPC(M)'!AF353","v":3.3649829092290218},{"$f":"'[1]REAL IPC(M)'!AG353","v":4.3506705920837465},{"$f":"'[1]REAL IPC(M)'!AH353","v":4.9511530243974669},{"$f":"'[1]REAL IPC(M)'!AI353","v":3.867359168997206},{"$f":"'[1]REAL IPC(M)'!AJ353","v":1.0795019157088077},null,null,{"$f":"'[1]REAL IMAE(M)'!AG353","v":2.6040197819801141},{"$f":"'[1]REAL IMAE(M)'!AH353","v":2.1532327118631138},{"$f":"'[1]REAL IMAE(M)'!AI353","v":3.2862804540516004},{"$f":"'[1]REAL IMAE(M)'!AJ353","v":3.9201547817170064},{"$f":"'[1]REAL IMAE(M)'!AK353","v":-5.0440981924837924},{"$f":"'[1]REAL IMAE(M)'!AL353","v":7.2397878680159886},{"$f":"'[1]REAL IMAE(M)'!AM353","v":2.5392199417126551},null,null,{"$f":"'[1]EXT ITCER(M)'!C353","v":79.741177870833056},{"$f":"'[1]EXT ITCER(M)'!D353","v":95.010587483399632},{"$f":"'[1]EXT ITCER(M)'!E353","v":53.721328898526131},{"$f":"'[1]EXT ITCER(M)'!F353","v":79.327885034721106},{"$f":"'[1]EXT ITCER(M)'!G353","v":107.89256733125093},{"$f":"'[1]EXT ITCER(M)'!H353","v":109.55597883397832},{"$f":"'[1]EXT ITCER(M)'!I353","v":91.203570243200502},null,null,{"$f":"'[1]EXT TC(M)'!J353","v":-1.2460219089082725},{"$f":"'[1]EXT TC(M)'!K353","v":0},{"$f":"'[1]EXT TC(M)'!L353","v":3.227180024253113},{"$f":"'[1]EXT TC(M)'!M353","v":2.6753676542399076},{"$f":"'[1]EXT TC(M)'!N353","v":5.3343196973648572},{"$f":"'[1]EXT TC(M)'!O353","v":4.562228288342947},{"$f":"'[1]EXT TC(M)'!P353","v":0},null,null,{"$f":"'[1]EXT RIN(M)'!C353","v":7799.9912000000004},{"$f":"'[1]EXT RIN(M)'!D353","v":3655.86},{"$f":"'[1]EXT RIN(M)'!E353","v":12535.8},{"$f":"'[1]EXT RIN(M)'!F353","v":4726.7085381577817},{"$f":"'[1]EXT RIN(M)'!G353","v":2315},{"$f":"'[1]EXT RIN(M)'!H353","v":7430.6821161792477},{"$f":"'[1]EXT RIN(M)'!I353","v":2787.9804913400003},null,null,{"$f":"'[1]EXT RIN(M)'!P353","v":68.527826125852584},{"$f":"'[1]EXT RIN(M)'!Q353","v":109.7611942090947},{"$f":"'[1]EXT RIN(M)'!R353","v":114.4307880831048},{"$f":"'[1]EXT RIN(M)'!S353","v":92.550887982708105},{"$f":"'[1]EXT RIN(M)'!T353","v":102.31537836703026},{"$f":"'[1]EXT RIN(M)'!U353","v":108.89523874930094},{"$f":"'[1]EXT RIN(M)'!V353","v":170.04835559024571},null,null,{"$f":"+'[1]MONE(M)CAPARD'!AE353","v":3.6283760166372008},{"$f":"'[1]MONE(M)CAPARD'!AF353","v":2.7214177978883867},{"$f":"'[1]MONE(M)CAPARD'!AG353","v":1.726906966490295},{"$f":"'[1]MONE(M)CAPARD'!AH353","v":3.7463385579937261},{"$f":"'[1]MONE(M)CAPARD'!AI353","v":5.493746608160075},{"$f":"'[1]MONE(M)CAPARD'!AJ353","v":2.461544080313868},{"$f":"'[1]MONE(M)CAPARD'!AK353","v":0.71280335838221964},null,null,{"$f":"'[1]MONE(M)CAPARD'!AL353","v":3.33},{"$f":"'[1]MONE(M)CAPARD'!AM353","v":4.21},{"$f":"'[1]MONE(M)CAPARD'!AN353","v":3.07},{"$f":"'[1]MONE(M)CAPARD'!AO353","v":3.57},{"$f":"'[1]MONE(M)CAPARD'!AP353","v":4.8499999999999996},{"$f":"'[1]MONE(M)CAPARD'!AQ353","v":2.0482999999999998},{"$f":"'[1]MONE(M)CAPARD'!AR353","v":1.8},null,null,{"$f":"'[1]MONE(M)CAPARD'!J353","v":13.571387325325484},{"$f":"'[1]MONE(M)CAPARD'!K353","v":5.156135214266703},{"$f":"'[1]MONE(M)CAPARD'!L353","v":9.2439594356260955},{"$f":"'[1]MONE(M)CAPARD'!M353","v":12.639429467084636},{"$f":"'[1]MONE(M)CAPARD'!N353","v":10.572220186671069},{"$f":"'[1]MONE(M)CAPARD'!O353","v":8.2099332256327386},{"$f":"'[1]MONE(M)CAPARD'!P353","v":5.4417542429899504},null,null,{"$f":"'[1]MONE(M)CAPARD'!Q353","v":10.49066799339545},{"$f":"'[1]MONE(M)CAPARD'!R353","v":6.68},{"$f":"'[1]MONE(M)CAPARD'!S353","v":6.37},{"$f":"'[1]MONE(M)CAPARD'!T353","v":8.17},{"$f":"'[1]MONE(M)CAPARD'!U353","v":9.89},{"$f":"'[1]MONE(M)CAPARD'!V353","v":5.4657},{"$f":"'[1]MONE(M)CAPARD'!W353","v":6.58},null,null,{"$f":"'[1]MONE(M)CAPARD'!AS353","v":5},{"$f":"'[1]MONE(M)CAPARD'!AT353","v":"n.a."},{"$f":"'[1]MONE(M)CAPARD'!AU353","v":2.75},{"$f":"'[1]MONE(M)CAPARD'!AV353","v":5.5},{"$f":"'[1]MONE(M)CAPARD'!AW353","v":"n.a."},{"$f":"'[1]MONE(M)CAPARD'!AX353","v":5.5},{"$f":"'[1]MONE(M)CAPARD'!AY353","v":"n.a."},null,null,{"$f":"+'Datos_Regional (M)'!CF346","v":1.9799180488575097},{"$f":"+'Datos_Regional (M)'!CG346","v":6.2295983843598357},{"$f":"+'Datos_Regional (M)'!CH346","v":4.2231822997498947},{"$f":"+'Datos_Regional (M)'!CI346","v":13.21552426994419},{"$f":"+'Datos_Regional (M)'!CJ346","v":3.2725355370075482},{"$f":"+'Datos_Regional (M)'!CK346","v":13.281287320221491},{"$f":"+'Datos_Regional (M)'!CL346","v":5.1667387600109915},null,null,958.29494695249502,491.65166666666664,913.89166666666654,365.42437649544576,443.06666666666661,891.875,992.64215377500022,4064.2043234479402,5056.8464772229418,null,null,1444.365989516665,951.94,1625.3833333333339,861.28116888565557,625.49999999999989,1614.875,1928.1255158333333,7123.3454917356548,9051.4710075689873,null,null,-3059.1411682877133,-3994.624530346046,null,null,{"$f":"'[1]EXT Comercio(M)'!C353","v":979.31457100999285},{"$f":"'[1]EXT Comercio(M)'!D353","v":494.61000000000013},{"$f":"'[1]EXT Comercio(M)'!E353","v":935.5},{"$f":"'[1]EXT Comercio(M)'!F353","v":352.87652106387702},{"$f":"'[1]EXT Comercio(M)'!G353","v":490.4},{"$f":"'[1]EXT Comercio(M)'!H353","v":914},{"$f":"'[1]EXT Comercio(M)'!I353","v":1025.2977719999999},{"$f":"'[1]EXT Comercio(M)'!K353","v":4166.7010920738721},{"$f":"'[1]EXT Comercio(M)'!L353","v":5191.9988640738738},null,null,{"$f":"'[1]EXT Comercio(M)'!AG353","v":1464.9985897700026},{"$f":"'[1]EXT Comercio(M)'!AH353","v":1045.1000000000004},{"$f":"'[1]EXT Comercio(M)'!AI353","v":1751.9},{"$f":"'[1]EXT Comercio(M)'!AJ353","v":947.78655626241164},{"$f":"'[1]EXT Comercio(M)'!AK353","v":580.4},{"$f":"'[1]EXT Comercio(M)'!AL353","v":1796.9},{"$f":"'[1]EXT Comercio(M)'!AM353","v":2025.535644},{"$f":"'[1]EXT Comercio(M)'!AO353","v":7587.085146032412},{"$f":"'[1]EXT Comercio(M)'!AP353","v":9612.6207900324152},null,null,{"$f":"'[1]EXT Comercio(M)'!$BS353","v":-3420.3840539585435},{"$f":"'[1]EXT Comercio(M)'!$BT353","v":-4420.6219259585414}]
[null,null,"Setiembre",{"$f":"'[1]REAL IPC(M)'!AD354","v":2.211752848695312},{"$f":"'[1]REAL IPC(M)'!AE354","v":1.3846430498111908},{"$f":"'[1]REAL IPC(M)'!AF354","v":4.5520507141220339},{"$f":"'[1]REAL IPC(M)'!AG354","v":4.3833824010467888},{"$f":"'[1]REAL IPC(M)'!AH354","v":5.1374086584802514},{"$f":"'[1]REAL IPC(M)'!AI354","v":3.2870186581976975},{"$f":"'[1]REAL IPC(M)'!AJ354","v":0.75377268385863794},null,null,{"$f":"'[1]REAL IMAE(M)'!AG354","v":2.2637782801255479},{"$f":"'[1]REAL IMAE(M)'!AH354","v":2.0528702527422276},{"$f":"'[1]REAL IMAE(M)'!AI354","v":3.1804555000952743},{"$f":"'[1]REAL IMAE(M)'!AJ354","v":3.9180900175464295},{"$f":"'[1]REAL IMAE(M)'!AK354","v":-5.6029178018612278},{"$f":"'[1]REAL IMAE(M)'!AL354","v":6.9155236176275547},{"$f":"'[1]REAL IMAE(M)'!AM354","v":3.3197600323272534},null,null,{"$f":"'[1]EXT ITCER(M)'!C354","v":81.239759504022018},{"$f":"'[1]EXT ITCER(M)'!D354","v":95.078813660747812},{"$f":"'[1]EXT ITCER(M)'!E354","v":54.585493833413949},{"$f":"'[1]EXT ITCER(M)'!F354","v":79.533068132739828},{"$f":"'[1]EXT ITCER(M)'!G354","v":107.96417821209106},{"$f":"'[1]EXT ITCER(M)'!H354","v":109.83498090063479},{"$f":"'[1]EXT ITCER(M)'!I354","v":91.342270086971368},null,null,{"$f":"'[1]EXT TC(M)'!J354","v":0.50379474959777826},{"$f":"'[1]EXT TC(M)'!K354","v":0},{"$f":"'[1]EXT TC(M)'!L354","v":4.9582659724261777},{"$f":"'[1]EXT TC(M)'!M354","v":2.8072895227810735},{"$f":"'[1]EXT TC(M)'!N354","v":5.2939982085484658},{"$f":"'[1]EXT TC(M)'!O354","v":4.4683317304259749},{"$f":"'[1]EXT TC(M)'!P354","v":0},null,null,{"$f":"'[1]EXT RIN(M)'!C354","v":7468.7727000000004},{"$f":"'[1]EXT RIN(M)'!D354","v":3558.55},{"$f":"'[1]EXT RIN(M)'!E354","v":12309.2},{"$f":"'[1]EXT RIN(M)'!F354","v":4629.7832003720378},{"$f":"'[1]EXT RIN(M)'!G354","v":2122.6},{"$f":"'[1]EXT RIN(M)'!H354","v":7328.6},{"$f":"'[1]EXT RIN(M)'!I354","v":2200.1805097499996},null,null,{"$f":"'[1]EXT RIN(M)'!P354","v":67.422867663872623},{"$f":"'[1]EXT RIN(M)'!Q354","v":108.30103521370017},{"$f":"'[1]EXT RIN(M)'!R354","v":118.99380288220995},{"$f":"'[1]EXT RIN(M)'!S354","v":92.277565662114597},{"$f":"'[1]EXT RIN(M)'!T354","v":106.58821011884758},{"$f":"'[1]EXT RIN(M)'!U354","v":106.60068076099671},{"$f":"'[1]EXT RIN(M)'!V354","v":133.04346936665473},null,null,{"$f":"+'[1]MONE(M)CAPARD'!AE354","v":3.6084374335742226},{"$f":"'[1]MONE(M)CAPARD'!AF354","v":2.8360872649875786},{"$f":"'[1]MONE(M)CAPARD'!AG354","v":0.55278617868362989},{"$f":"'[1]MONE(M)CAPARD'!AH354","v":3.7904669382638563},{"$f":"'[1]MONE(M)CAPARD'!AI354","v":5.5669955421510142},{"$f":"'[1]MONE(M)CAPARD'!AJ354","v":4.381171419786301},{"$f":"'[1]MONE(M)CAPARD'!AK354","v":1.1277268194279662},null,null,{"$f":"'[1]MONE(M)CAPARD'!AL354","v":3.8127447000000001},{"$f":"'[1]MONE(M)CAPARD'!AM354","v":4.26},{"$f":"'[1]MONE(M)CAPARD'!AN354","v":3.13},{"$f":"'[1]MONE(M)CAPARD'!AO354","v":3.59},{"$f":"'[1]MONE(M)CAPARD'!AP354","v":5.27},{"$f":"'[1]MONE(M)CAPARD'!AQ354","v":2.1789875477662557},{"$f":"'[1]MONE(M)CAPARD'!AR354","v":1.89},null,null,{"$f":"'[1]MONE(M)CAPARD'!J354","v":13.266695229317845},{"$f":"'[1]MONE(M)CAPARD'!K354","v":4.9863142958495867},{"$f":"'[1]MONE(M)CAPARD'!L354","v":7.9557973555409607},{"$f":"'[1]MONE(M)CAPARD'!M354","v":12.699931056095258},{"$f":"'[1]MONE(M)CAPARD'!N354","v":12.226899918920809},{"$f":"'[1]MONE(M)CAPARD'!O354","v":9.7170107917938253},{"$f":"'[1]MONE(M)CAPARD'!P354","v":5.8024897335461887},null,null,{"$f":"'[1]MONE(M)CAPARD'!Q354","v":10.523450251057346},{"$f":"'[1]MONE(M)CAPARD'!R354","v":6.44},{"$f":"'[1]MONE(M)CAPARD'!S354","v":6.36},{"$f":"'[1]MONE(M)CAPARD'!T354","v":8.17},{"$f":"'[1]MONE(M)CAPARD'!U354","v":10.52},{"$f":"'[1]MONE(M)CAPARD'!V354","v":5.8731681699515201},{"$f":"'[1]MONE(M)CAPARD'!W354","v":6.6},null,null,{"$f":"'[1]MONE(M)CAPARD'!AS354","v":5},{"$f":"'[1]MONE(M)CAPARD'!AT354","v":"n.a."},{"$f":"'[1]MONE(M)CAPARD'!AU354","v":2.75},{"$f":"'[1]MONE(M)CAPARD'!AV354","v":5.5},{"$f":"'[1]MONE(M)CAPARD'!AW354","v":"n.a."},{"$f":"'[1]MONE(M)CAPARD'!AX354","v":5.5},{"$f":"'[1]MONE(M)CAPARD'!AY354","v":"n.a."},null,null,{"$f":"+'Datos_Regional (M)'!CF347","v":3.623764531758189},{"$f":"+'Datos_Regional (M)'!CG347","v":6.4968107083312798},{"$f":"+'Datos_Regional (M)'!CH347","v":4.970978007023108},{"$f":"+'Datos_Regional (M)'!CI347","v":13.168760750385955},{"$f":"+'Datos_Regional (M)'!CJ347","v":4.9589351650070057E-2},{"$f":"+'Datos_Regional (M)'!CK347","v":13.075175046679499},{"$f":"+'Datos_Regional (M)'!CL347","v":5.0925835021585542},null,null,958.86072742249462,490.82500000000005,913.87499999999989,362.5737556974147,443.77499999999992,902.66666666666663,999.91716777500017,4072.5761497865756,5072.493317561577,null,null,1428.9877817699987,970.29833333333306,1634.9416666666666,862.1915792018234,617.69999999999993,1638.4666666666665,1929.6463110000002,7152.5860276384883,9082.2323386384869,null,null,-3080.0098778519118,-4009.7390210769122,null,null,{"$f":"'[1]EXT Comercio(M)'!C354","v":936.54815390999465},{"$f":"'[1]EXT Comercio(M)'!D354","v":463.51999999999953},{"$f":"'[1]EXT Comercio(M)'!E354","v":837.00000000000011},{"$f":"'[1]EXT Comercio(M)'!F354","v":279.30249533932147},{"$f":"'[1]EXT Comercio(M)'!G354","v":407.1},{"$f":"'[1]EXT Comercio(M)'!H354","v":910.4},{"$f":"'[1]EXT Comercio(M)'!I354","v":901.90767500000004},{"$f":"'[1]EXT Comercio(M)'!K354","v":3833.8706492493147},{"$f":"'[1]EXT Comercio(M)'!L354","v":4735.7783242493169},null,null,{"$f":"'[1]EXT Comercio(M)'!AG354","v":1179.4706838199954},{"$f":"'[1]EXT Comercio(M)'!AH354","v":1047.0799999999981},{"$f":"'[1]EXT Comercio(M)'!AI354","v":1579.1},{"$f":"'[1]EXT Comercio(M)'!AJ354","v":881.39370222569073},{"$f":"'[1]EXT Comercio(M)'!AK354","v":509.5},{"$f":"'[1]EXT Comercio(M)'!AL354","v":1609.1},{"$f":"'[1]EXT Comercio(M)'!AM354","v":1767.983827},{"$f":"'[1]EXT Comercio(M)'!AO354","v":6805.6443860456784},{"$f":"'[1]EXT Comercio(M)'!AP354","v":8573.6282130456821},null,null,{"$f":"'[1]EXT Comercio(M)'!$BS354","v":-2971.7737367963637},{"$f":"'[1]EXT Comercio(M)'!$BT354","v":-3837.8498887963651}]
[null,null,"Octubre",{"$f":"'[1]REAL IPC(M)'!AD355","v":2.0269004008633567},{"$f":"'[1]REAL IPC(M)'!AE355","v":1.4906609195402269},{"$f":"'[1]REAL IPC(M)'!AF355","v":4.337587359465215},{"$f":"'[1]REAL IPC(M)'!AG355","v":4.6640574037834153},{"$f":"'[1]REAL IPC(M)'!AH355","v":5.1042985286963898},{"$f":"'[1]REAL IPC(M)'!AI355","v":3.5172687574434236},{"$f":"'[1]REAL IPC(M)'!AJ355","v":1.0280382775119559},null,null,{"$f":"'[1]REAL IMAE(M)'!AG355","v":1.9656839262375145},{"$f":"'[1]REAL IMAE(M)'!AH355","v":2.0295532710486057},{"$f":"'[1]REAL IMAE(M)'!AI355","v":3.1445866355835745},{"$f":"'[1]REAL IMAE(M)'!AJ355","v":3.8467886130556259},{"$f":"'[1]REAL IMAE(M)'!AK355","v":-6.2366950404933643},{"$f":"'[1]REAL IMAE(M)'!AL355","v":6.5799625702195499},{"$f":"'[1]REAL IMAE(M)'!AM355","v":3.273367952522265},null,null,{"$f":"'[1]EXT ITCER(M)'!C355","v":82.925275743470806},{"$f":"'[1]EXT ITCER(M)'!D355","v":95.027682296525683},{"$f":"'[1]EXT ITCER(M)'!E355","v":54.932056921220394},{"$f":"'[1]EXT ITCER(M)'!F355","v":79.341185045981433},{"$f":"'[1]EXT ITCER(M)'!G355","v":108.088436979831},{"$f":"'[1]EXT ITCER(M)'!H355","v":110.11398521929793},{"$f":"'[1]EXT ITCER(M)'!I355","v":91.42989216356591},null,null,{"$f":"'[1]EXT TC(M)'!J355","v":3.6154868527235227},{"$f":"'[1]EXT TC(M)'!K355","v":0},{"$f":"'[1]EXT TC(M)'!L355","v":5.2514373799338889},{"$f":"'[1]EXT TC(M)'!M355","v":2.5904520239291897},{"$f":"'[1]EXT TC(M)'!N355","v":5.5070726579191795},{"$f":"'[1]EXT TC(M)'!O355","v":4.5344467116096014},{"$f":"'[1]EXT TC(M)'!P355","v":0},null,null,{"$f":"'[1]EXT RIN(M)'!C355","v":6866.1754000000001},{"$f":"'[1]EXT RIN(M)'!D355","v":3499.76},{"$f":"'[1]EXT RIN(M)'!E355","v":12357.4},{"$f":"'[1]EXT RIN(M)'!F355","v":4612.6674062992843},{"$f":"'[1]EXT RIN(M)'!G355","v":2032.9},{"$f":"'[1]EXT RIN(M)'!H355","v":6984.5},{"$f":"'[1]EXT RIN(M)'!I355","v":2374.0483965200001},null,null,{"$f":"'[1]EXT RIN(M)'!P355","v":63.768238947704582},{"$f":"'[1]EXT RIN(M)'!Q355","v":103.87007870627178},{"$f":"'[1]EXT RIN(M)'!R355","v":120.78836757538858},{"$f":"'[1]EXT RIN(M)'!S355","v":94.160096359125916},{"$f":"'[1]EXT RIN(M)'!T355","v":109.61898653263071},{"$f":"'[1]EXT RIN(M)'!U355","v":102.19483109125488},{"$f":"'[1]EXT RIN(M)'!V355","v":143.82099059361624},null,null,{"$f":"+'[1]MONE(M)CAPARD'!AE355","v":3.698141945224394},{"$f":"'[1]MONE(M)CAPARD'!AF355","v":2.6793983365776},{"$f":"'[1]MONE(M)CAPARD'!AG355","v":0.74030141973060892},{"$f":"'[1]MONE(M)CAPARD'!AH355","v":3.5216889996883918},{"$f":"'[1]MONE(M)CAPARD'!AI355","v":6.2355551170822006},{"$f":"'[1]MONE(M)CAPARD'!AJ355","v":4.5652588203712297},{"$f":"'[1]MONE(M)CAPARD'!AK355","v":0.91258005025844924},null,null,{"$f":"'[1]MONE(M)CAPARD'!AL355","v":3.5949810599999998},{"$f":"'[1]MONE(M)CAPARD'!AM355","v":4.21},{"$f":"'[1]MONE(M)CAPARD'!AN355","v":3.14},{"$f":"'[1]MONE(M)CAPARD'!AO355","v":3.64},{"$f":"'[1]MONE(M)CAPARD'!AP355","v":5.0599999999999996},{"$f":"'[1]MONE(M)CAPARD'!AQ355","v":1.7476},{"$f":"'[1]MONE(M)CAPARD'!AR355","v":1.95},null,null,{"$f":"'[1]MONE(M)CAPARD'!J355","v":13.40081977314564},{"$f":"'[1]MONE(M)CAPARD'!K355","v":4.96532295168997},{"$f":"'[1]MONE(M)CAPARD'!L355","v":8.1585293046960246},{"$f":"'[1]MONE(M)CAPARD'!M355","v":12.407260828918682},{"$f":"'[1]MONE(M)CAPARD'!N355","v":12.529582619530535},{"$f":"'[1]MONE(M)CAPARD'!O355","v":9.8943213683080309},{"$f":"'[1]MONE(M)CAPARD'!P355","v":5.4261785301915388},null,null,{"$f":"'[1]MONE(M)CAPARD'!Q355","v":10.660239715476584},{"$f":"'[1]MONE(M)CAPARD'!R355","v":6.53},{"$f":"'[1]MONE(M)CAPARD'!S355","v":6.39},{"$f":"'[1]MONE(M)CAPARD'!T355","v":8.24},{"$f":"'[1]MONE(M)CAPARD'!U355","v":10.87},{"$f":"'[1]MONE(M)CAPARD'!V355","v":5.9096000000000002},{"$f":"'[1]MONE(M)CAPARD'!W355","v":6.51},null,null,{"$f":"'[1]MONE(M)CAPARD'!AS355","v":5},{"$f":"'[1]MONE(M)CAPARD'!AT355","v":"n.a."},{"$f":"'[1]MONE(M)CAPARD'!AU355","v":2.75},{"$f":"'[1]MONE(M)CAPARD'!AV355","v":5.5},{"$f":"'[1]MONE(M)CAPARD'!AW355","v":"n.a."},{"$f":"'[1]MONE(M)CAPARD'!AX355","v":5.5},{"$f":"'[1]MONE(M)CAPARD'!AY355","v":"n.a."},null,null,{"$f":"+'Datos_Regional (M)'!CF348","v":5.0667508121089222},{"$f":"+'Datos_Regional (M)'!CG348","v":6.5168906724835773},{"$f":"+'Datos_Regional (M)'!CH348","v":5.1742681505719368},{"$f":"+'Datos_Regional (M)'!CI348","v":13.494537527751627},{"$f":"+'Datos_Regional (M)'!CJ348","v":-3.2672906060357221},{"$f":"+'Datos_Regional (M)'!CK348","v":11.398195575390812},{"$f":"+'Datos_Regional (M)'!CL348","v":4.4595692859063396},null,null,967.59276480916105,492.5841666666667,914.4083333333333,362.33112053489003,446.14166666666665,902.84166666666658,994.97627152500024,4085.8997186773827,5080.8759902023839,null,null,1444.9277461224983,981.63166666666666,1647.6416666666664,864.60629376568056,605.29999999999984,1660.3666666666668,1941.3903399999999,7204.4740398881795,9145.8643798881785,null,null,-3118.574321210795,-4064.9883896857941,null,null,{"$f":"'[1]EXT Comercio(M)'!C355","v":1027.3510836799951},{"$f":"'[1]EXT Comercio(M)'!D355","v":490.61999999999989},{"$f":"'[1]EXT Comercio(M)'!E355","v":858.2},{"$f":"'[1]EXT Comercio(M)'!F355","v":286.51854360487994},{"$f":"'[1]EXT Comercio(M)'!G355","v":439.5},{"$f":"'[1]EXT Comercio(M)'!H355","v":919.8},{"$f":"'[1]EXT Comercio(M)'!I355","v":986.24410399999999},{"$f":"'[1]EXT Comercio(M)'!K355","v":4021.9896272848782},{"$f":"'[1]EXT Comercio(M)'!L355","v":5008.2337312848758},null,null,{"$f":"'[1]EXT Comercio(M)'!AG355","v":1625.8943016299975},{"$f":"'[1]EXT Comercio(M)'!AH355","v":1084.7900000000009},{"$f":"'[1]EXT Comercio(M)'!AI355","v":1846.1000000000001},{"$f":"'[1]EXT Comercio(M)'!AJ355","v":853.22312060428453},{"$f":"'[1]EXT Comercio(M)'!AK355","v":591.4},{"$f":"'[1]EXT Comercio(M)'!AL355","v":1926.9},{"$f":"'[1]EXT Comercio(M)'!AM355","v":2171.8809630000001},{"$f":"'[1]EXT Comercio(M)'!AO355","v":7928.3074222342912},{"$f":"'[1]EXT Comercio(M)'!AP355","v":10100.188385234287},null,null,{"$f":"'[1]EXT Comercio(M)'!$BS355","v":-3906.3177949494129},{"$f":"'[1]EXT Comercio(M)'!$BT355","v":-5091.9546539494113}]
[null,null,"Noviembre",{"$f":"'[1]REAL IPC(M)'!AD356","v":2.2924130422144415},{"$f":"'[1]REAL IPC(M)'!AE356","v":1.0750761512273685},{"$f":"'[1]REAL IPC(M)'!AF356","v":3.1483015741507705},{"$f":"'[1]REAL IPC(M)'!AG356","v":4.7062641999350854},{"$f":"'[1]REAL IPC(M)'!AH356","v":4.3957333820349653},{"$f":"'[1]REAL IPC(M)'!AI356","v":2.3717595146166506},{"$f":"'[1]REAL IPC(M)'!AJ356","v":0.77996164908917043},null,null,{"$f":"'[1]REAL IMAE(M)'!AG356","v":1.7482616311572046},{"$f":"'[1]REAL IMAE(M)'!AH356","v":2.1147116986765537},{"$f":"'[1]REAL IMAE(M)'!AI356","v":3.1882953833370045},{"$f":"'[1]REAL IMAE(M)'!AJ356","v":3.7209181058447989},{"$f":"'[1]REAL IMAE(M)'!AK356","v":-6.7826230195748183},{"$f":"'[1]REAL IMAE(M)'!AL356","v":6.2556448700171785},{"$f":"'[1]REAL IMAE(M)'!AM356","v":3.2993364463013055},null,null,{"$f":"'[1]EXT ITCER(M)'!C356","v":84.920595719169654},{"$f":"'[1]EXT ITCER(M)'!D356","v":94.877296171773892},{"$f":"'[1]EXT ITCER(M)'!E356","v":54.699420040643105},{"$f":"'[1]EXT ITCER(M)'!F356","v":79.143502946044407},{"$f":"'[1]EXT ITCER(M)'!G356","v":107.86609904945547},{"$f":"'[1]EXT ITCER(M)'!H356","v":110.50332177734158},{"$f":"'[1]EXT ITCER(M)'!I356","v":91.523132478449},null,null,{"$f":"'[1]EXT TC(M)'!J356","v":7.5695901850684155},{"$f":"'[1]EXT TC(M)'!K356","v":0},{"$f":"'[1]EXT TC(M)'!L356","v":5.0264637098428642},{"$f":"'[1]EXT TC(M)'!M356","v":2.7755427565705055},{"$f":"'[1]EXT TC(M)'!N356","v":5.9598953065452589},{"$f":"'[1]EXT TC(M)'!O356","v":4.5750239556347712},{"$f":"'[1]EXT TC(M)'!P356","v":0},null,null,{"$f":"'[1]EXT RIN(M)'!C356","v":6537.8323},{"$f":"'[1]EXT RIN(M)'!D356","v":3503.95},{"$f":"'[1]EXT RIN(M)'!E356","v":12472.4},{"$f":"'[1]EXT RIN(M)'!F356","v":4462.9558556984221},{"$f":"'[1]EXT RIN(M)'!G356","v":2026.7},{"$f":"'[1]EXT RIN(M)'!H356","v":6687.3247431731197},{"$f":"'[1]EXT RIN(M)'!I356","v":2579.2710548099999},null,null,{"$f":"'[1]EXT RIN(M)'!P356","v":58.564255756974227},{"$f":"'[1]EXT RIN(M)'!Q356","v":102.34984458900722},{"$f":"'[1]EXT RIN(M)'!R356","v":121.24234876853002},{"$f":"'[1]EXT RIN(M)'!S356","v":93.379420255402025},{"$f":"'[1]EXT RIN(M)'!T356","v":105.31579113571074},{"$f":"'[1]EXT RIN(M)'!U356","v":96.365383402432116},{"$f":"'[1]EXT RIN(M)'!V356","v":150.17160703671473},null,null,{"$f":"+'[1]MONE(M)CAPARD'!AE356","v":3.4778600406243219},{"$f":"'[1]MONE(M)CAPARD'!AF356","v":3.1312604148200776},{"$f":"'[1]MONE(M)CAPARD'!AG356","v":1.8824337349397751},{"$f":"'[1]MONE(M)CAPARD'!AH356","v":3.479959702417855},{"$f":"'[1]MONE(M)CAPARD'!AI356","v":6.8269614065763911},{"$f":"'[1]MONE(M)CAPARD'!AJ356","v":5.6173113685344891},{"$f":"'[1]MONE(M)CAPARD'!AK356","v":1.1709057352290571},null,null,{"$f":"'[1]MONE(M)CAPARD'!AL356","v":3.8058163700000001},{"$f":"'[1]MONE(M)CAPARD'!AM356","v":4.24},{"$f":"'[1]MONE(M)CAPARD'!AN356","v":3.15},{"$f":"'[1]MONE(M)CAPARD'!AO356","v":3.64},{"$f":"'[1]MONE(M)CAPARD'!AP356","v":5.58},{"$f":"'[1]MONE(M)CAPARD'!AQ356","v":1.9041999999999999},{"$f":"'[1]MONE(M)CAPARD'!AR356","v":1.96},null,null,{"$f":"'[1]MONE(M)CAPARD'!J356","v":13.241182048424918},{"$f":"'[1]MONE(M)CAPARD'!K356","v":5.5354139336997088},{"$f":"'[1]MONE(M)CAPARD'!L356","v":9.3668032128514245},{"$f":"'[1]MONE(M)CAPARD'!M356","v":12.352399256044638},{"$f":"'[1]MONE(M)CAPARD'!N356","v":13.779594999308458},{"$f":"'[1]MONE(M)CAPARD'!O356","v":9.7198099676724219},{"$f":"'[1]MONE(M)CAPARD'!P356","v":5.7253825626584547},null,null,{"$f":"'[1]MONE(M)CAPARD'!Q356","v":10.732079455605849},{"$f":"'[1]MONE(M)CAPARD'!R356","v":6.67},{"$f":"'[1]MONE(M)CAPARD'!S356","v":6.42},{"$f":"'[1]MONE(M)CAPARD'!T356","v":8.2799999999999994},{"$f":"'[1]MONE(M)CAPARD'!U356","v":11.02},{"$f":"'[1]MONE(M)CAPARD'!V356","v":5.9271000000000003},{"$f":"'[1]MONE(M)CAPARD'!W356","v":6.55},null,null,{"$f":"'[1]MONE(M)CAPARD'!AS356","v":5.25},{"$f":"'[1]MONE(M)CAPARD'!AT356","v":"n.a."},{"$f":"'[1]MONE(M)CAPARD'!AU356","v":2.75},{"$f":"'[1]MONE(M)CAPARD'!AV356","v":5.5},{"$f":"'[1]MONE(M)CAPARD'!AW356","v":"n.a."},{"$f":"'[1]MONE(M)CAPARD'!AX356","v":5.5},{"$f":"'[1]MONE(M)CAPARD'!AY356","v":"n.a."},null,null,{"$f":"+'Datos_Regional (M)'!CF349","v":4.6023312101472369},{"$f":"+'Datos_Regional (M)'!CG349","v":6.6302719752374673},{"$f":"+'Datos_Regional (M)'!CH349","v":4.9312294650942112},{"$f":"+'Datos_Regional (M)'!CI349","v":13.535494603377373},{"$f":"+'Datos_Regional (M)'!CJ349","v":-6.343971991981789},{"$f":"+'Datos_Regional (M)'!CK349","v":11.101611878450313},{"$f":"+'Datos_Regional (M)'!CL349","v":4.4649620890699238},null,null,969.74392856832753,492.30333333333334,913.11666666666667,360.25048645816105,448.29999999999995,906.35833333333323,988.03861360833343,4090.0727483598207,5078.1113619681546,null,null,1443.411815844999,980.49333333333323,1658,869.08847738051645,591.47499999999991,1677.3333333333333,1934.6553272499998,7219.8019598921819,9154.4572871421824,null,null,-3129.7292115323594,-4076.3459251740255,null,null,{"$f":"'[1]EXT Comercio(M)'!C356","v":978.5568882099958},{"$f":"'[1]EXT Comercio(M)'!D356","v":478.80000000000018},{"$f":"'[1]EXT Comercio(M)'!E356","v":859.90000000000009},{"$f":"'[1]EXT Comercio(M)'!F356","v":292.86011245334748},{"$f":"'[1]EXT Comercio(M)'!G356","v":425.4},{"$f":"'[1]EXT Comercio(M)'!H356","v":946.40000000000009},{"$f":"'[1]EXT Comercio(M)'!I356","v":861.7191039999999},{"$f":"'[1]EXT Comercio(M)'!K356","v":3981.9170006633431},{"$f":"'[1]EXT Comercio(M)'!L356","v":4843.6361046633392},null,null,{"$f":"'[1]EXT Comercio(M)'!AG356","v":1581.1367357500037},{"$f":"'[1]EXT Comercio(M)'!AH356","v":1014.4199999999983},{"$f":"'[1]EXT Comercio(M)'!AI356","v":1693.4},{"$f":"'[1]EXT Comercio(M)'!AJ356","v":945.29175935422961},{"$f":"'[1]EXT Comercio(M)'!AK356","v":578.6},{"$f":"'[1]EXT Comercio(M)'!AL356","v":1810.4},{"$f":"'[1]EXT Comercio(M)'!AM356","v":1717.7592789999999},{"$f":"'[1]EXT Comercio(M)'!AO356","v":7623.2484951042279},{"$f":"'[1]EXT Comercio(M)'!AP356","v":9341.0077741042332},null,null,{"$f":"'[1]EXT Comercio(M)'!$BS356","v":-3641.3314944408849},{"$f":"'[1]EXT Comercio(M)'!$BT356","v":-4497.3716694408868}]
[null,null,"Diciembre ",{"$f":"'[1]REAL IPC(M)'!AD357","v":2.0272621606389034},{"$f":"'[1]REAL IPC(M)'!AE357","v":0.43824344870762438},{"$f":"'[1]REAL IPC(M)'!AF357","v":2.3129150190255872},{"$f":"'[1]REAL IPC(M)'!AG357","v":4.2244437278297209},{"$f":"'[1]REAL IPC(M)'!AH357","v":3.8850547509849016},{"$f":"'[1]REAL IPC(M)'!AI357","v":1.1705946620883412},{"$f":"'[1]REAL IPC(M)'!AJ357","v":0.15837320574162145},null,null,{"$f":"'[1]REAL IMAE(M)'!AG357","v":1.6169673219735503},{"$f":"'[1]REAL IMAE(M)'!AH357","v":2.2829286353941942},{"$f":"'[1]REAL IMAE(M)'!AI357","v":3.2766675475732479},{"$f":"'[1]REAL IMAE(M)'!AJ357","v":3.617542495314388},{"$f":"'[1]REAL IMAE(M)'!AK357","v":-7.0754903733432375},{"$f":"'[1]REAL IMAE(M)'!AL357","v":5.9432705490900153},{"$f":"'[1]REAL IMAE(M)'!AM357","v":3.6819980976343163},null,null,{"$f":"'[1]EXT ITCER(M)'!C357","v":83.108351476257781},{"$f":"'[1]EXT ITCER(M)'!D357","v":95.012183397103072},{"$f":"'[1]EXT ITCER(M)'!E357","v":54.693519144073065},{"$f":"'[1]EXT ITCER(M)'!F357","v":79.089668634106815},{"$f":"'[1]EXT ITCER(M)'!G357","v":107.01941999772788},{"$f":"'[1]EXT ITCER(M)'!H357","v":110.56605382279739},{"$f":"'[1]EXT ITCER(M)'!I357","v":91.6213064638291},null,null,{"$f":"'[1]EXT TC(M)'!J357","v":6.0846005172708146},{"$f":"'[1]EXT TC(M)'!K357","v":0},{"$f":"'[1]EXT TC(M)'!L357","v":5.3319185894074517},{"$f":"'[1]EXT TC(M)'!M357","v":3.2715290467338232},{"$f":"'[1]EXT TC(M)'!N357","v":5.7365154921040622},{"$f":"'[1]EXT TC(M)'!O357","v":4.2268282290833037},{"$f":"'[1]EXT TC(M)'!P357","v":0},null,null,{"$f":"'[1]EXT RIN(M)'!C357","v":7494.9984000000004},{"$f":"'[1]EXT RIN(M)'!D357","v":3353.55},{"$f":"'[1]EXT RIN(M)'!E357","v":12755.6},{"$f":"'[1]EXT RIN(M)'!F357","v":4853.1386447195428},{"$f":"'[1]EXT RIN(M)'!G357","v":2038.9},{"$f":"'[1]EXT RIN(M)'!H357","v":7627.1078836426968},{"$f":"'[1]EXT RIN(M)'!I357","v":2907.0582651700001},null,null,{"$f":"'[1]EXT RIN(M)'!P357","v":68.517783645481785},{"$f":"'[1]EXT RIN(M)'!Q357","v":99.118893904611426},{"$f":"'[1]EXT RIN(M)'!R357","v":113.55932336120256},{"$f":"'[1]EXT RIN(M)'!S357","v":91.23046266398174},{"$f":"'[1]EXT RIN(M)'!T357","v":107.34241795445925},{"$f":"'[1]EXT RIN(M)'!U357","v":98.937327768798227},{"$f":"'[1]EXT RIN(M)'!V357","v":160.07850169838505},null,null,{"$f":"+'[1]MONE(M)CAPARD'!AE357","v":3.8938002992828897},{"$f":"'[1]MONE(M)CAPARD'!AF357","v":3.7951246660730238},{"$f":"'[1]MONE(M)CAPARD'!AG357","v":2.6752096550718334},{"$f":"'[1]MONE(M)CAPARD'!AH357","v":3.8911757425742679},{"$f":"'[1]MONE(M)CAPARD'!AI357","v":8.6321639385310416},{"$f":"'[1]MONE(M)CAPARD'!AJ357","v":6.9632933970996618},{"$f":"'[1]MONE(M)CAPARD'!AK357","v":1.818746387300501},null,null,{"$f":"'[1]MONE(M)CAPARD'!AL357","v":3.54401082},{"$f":"'[1]MONE(M)CAPARD'!AM357","v":4.25},{"$f":"'[1]MONE(M)CAPARD'!AN357","v":3.14},{"$f":"'[1]MONE(M)CAPARD'!AO357","v":3.65},{"$f":"'[1]MONE(M)CAPARD'!AP357","v":5.24},{"$f":"'[1]MONE(M)CAPARD'!AQ357","v":2.1215999999999999},{"$f":"'[1]MONE(M)CAPARD'!AR357","v":1.98},null,null,{"$f":"'[1]MONE(M)CAPARD'!J357","v":13.585275854450815},{"$f":"'[1]MONE(M)CAPARD'!K357","v":6.0353072128228007},{"$f":"'[1]MONE(M)CAPARD'!L357","v":10.171819441405969},{"$f":"'[1]MONE(M)CAPARD'!M357","v":12.670306311881198},{"$f":"'[1]MONE(M)CAPARD'!N357","v":15.380325157611544},{"$f":"'[1]MONE(M)CAPARD'!O357","v":10.766721714193446},{"$f":"'[1]MONE(M)CAPARD'!P357","v":6.3915043639021514},null,null,{"$f":"'[1]MONE(M)CAPARD'!Q357","v":10.812962593964714},{"$f":"'[1]MONE(M)CAPARD'!R357","v":6.5},{"$f":"'[1]MONE(M)CAPARD'!S357","v":6.45},{"$f":"'[1]MONE(M)CAPARD'!T357","v":8.1199999999999992},{"$f":"'[1]MONE(M)CAPARD'!U357","v":11.03},{"$f":"'[1]MONE(M)CAPARD'!V357","v":6.0841000000000003},{"$f":"'[1]MONE(M)CAPARD'!W357","v":6.56},null,null,{"$f":"'[1]MONE(M)CAPARD'!AS357","v":5.25},{"$f":"'[1]MONE(M)CAPARD'!AT357","v":"n.a."},{"$f":"'[1]MONE(M)CAPARD'!AU357","v":2.75},{"$f":"'[1]MONE(M)CAPARD'!AV357","v":5.5},{"$f":"'[1]MONE(M)CAPARD'!AW357","v":"n.a."},{"$f":"'[1]MONE(M)CAPARD'!AX357","v":5.5},{"$f":"'[1]MONE(M)CAPARD'!AY357","v":"n.a."},null,null,{"$f":"+'Datos_Regional (M)'!CF350","v":4.3934820107736305},{"$f":"+'Datos_Regional (M)'!CG350","v":6.6890723763313398},{"$f":"+'Datos_Regional (M)'!CH350","v":4.5397688442660122},{"$f":"+'Datos_Regional (M)'!CI350","v":14.179029325619963},{"$f":"+'Datos_Regional (M)'!CJ350","v":-8.828082165925677},{"$f":"+'Datos_Regional (M)'!CK350","v":10.372298125428436},{"$f":"+'Datos_Regional (M)'!CL350","v":3.3541087512918955},null,null,971.77817671749438,492.04999999999995,914.11666666666667,356.03207735389316,448.93333333333334,908.9666666666667,{"$f":"IF(EN162=\"\",\"\",+AVERAGE(EN151:EN162))","v":968.88348602500002},4091.8769207380551,5060.7604067630555,null,null,1438.8386851849984,985.81499999999994,1639.5333333333335,875.44909359152837,583.23333333333323,1684.075,1917.1636025833332,7206.9444454431941,9124.1080480265282,null,null,-3115.067524705139,-4063.3476412634723,null,null,{"$f":"'[1]EXT Comercio(M)'!C357","v":857.48295703999338},{"$f":"'[1]EXT Comercio(M)'!D357","v":417.98999999999978},{"$f":"'[1]EXT Comercio(M)'!E357","v":899.3},{"$f":"'[1]EXT Comercio(M)'!F357","v":300.7101114448887},{"$f":"'[1]EXT Comercio(M)'!G357","v":363.6},{"$f":"'[1]EXT Comercio(M)'!H357","v":847},{"$f":"'[1]EXT Comercio(M)'!I357","v":731.15634699999998},{"$f":"'[1]EXT Comercio(M)'!K357","v":3686.0830684848916},{"$f":"'[1]EXT Comercio(M)'!L357","v":4417.2394154848953},null,null,{"$f":"'[1]EXT Comercio(M)'!AG357","v":1321.749703099993},{"$f":"'[1]EXT Comercio(M)'!AH357","v":908.38000000000102},{"$f":"'[1]EXT Comercio(M)'!AI357","v":1522.8999999999999},{"$f":"'[1]EXT Comercio(M)'!AJ357","v":866.38240675170005},{"$f":"'[1]EXT Comercio(M)'!AK357","v":510.7},{"$f":"'[1]EXT Comercio(M)'!AL357","v":1610.1000000000001},{"$f":"'[1]EXT Comercio(M)'!AM357","v":1771.8537139999999},{"$f":"'[1]EXT Comercio(M)'!AO357","v":6740.2121098517091},{"$f":"'[1]EXT Comercio(M)'!AP357","v":8512.0658238517062},null,null,{"$f":"'[1]EXT Comercio(M)'!$BS357","v":-3054.1290413668175},{"$f":"'[1]EXT Comercio(M)'!$BT357","v":-4094.8264083668182}]
[null,2019,"Enero",{"$f":"'[1]REAL IPC(M)'!AD358","v":1.6663756352090169},{"$f":"'[1]REAL IPC(M)'!AE358","v":0.25008931761343439},{"$f":"'[1]REAL IPC(M)'!AF358","v":4.1048689138576702},{"$f":"'[1]REAL IPC(M)'!AG358","v":3.9549839228295856},{"$f":"'[1]REAL IPC(M)'!AH358","v":3.3048488318587941},{"$f":"'[1]REAL IPC(M)'!AI358","v":0.70811609991440094},{"$f":"'[1]REAL IPC(M)'!AJ358","v":-0.30477554918817584},null,null,{"$f":"'[1]REAL IMAE(M)'!AG358","v":1.5882352308544325},{"$f":"'[1]REAL IMAE(M)'!AH358","v":2.4438514312555495},{"$f":"'[1]REAL IMAE(M)'!AI358","v":3.3403080743984974},{"$f":"'[1]REAL IMAE(M)'!AJ358","v":3.5037046107926968},{"$f":"'[1]REAL IMAE(M)'!AK358","v":-7.1066252744598071},{"$f":"'[1]REAL IMAE(M)'!AL358","v":5.6444899483385758},{"$f":"'[1]REAL IMAE(M)'!AM358","v":3.3143765669907586},null,null,{"$f":"'[1]EXT ITCER(M)'!C358","v":83.879676591266175},{"$f":"'[1]EXT ITCER(M)'!D358","v":95.244220693289662},{"$f":"'[1]EXT ITCER(M)'!E358","v":54.067107714183088},{"$f":"'[1]EXT ITCER(M)'!F358","v":79.243808988874946},{"$f":"'[1]EXT ITCER(M)'!G358","v":108.32846103179138},{"$f":"'[1]EXT ITCER(M)'!H358","v":111.28119856345926},{"$f":"'[1]EXT ITCER(M)'!I358","v":92.046277927496561},null,null,{"$f":"'[1]EXT TC(M)'!J358","v":6.4431894195015449},{"$f":"'[1]EXT TC(M)'!K358","v":0},{"$f":"'[1]EXT TC(M)'!L358","v":5.2976823492953589},{"$f":"'[1]EXT TC(M)'!M358","v":3.1675016378280603},{"$f":"'[1]EXT TC(M)'!N358","v":5.9286961769362607},{"$f":"'[1]EXT TC(M)'!O358","v":4.0455392991671291},{"$f":"'[1]EXT TC(M)'!P358","v":0},null,null,{"$f":"'[1]EXT RIN(M)'!C358","v":7571.5874999999996},{"$f":"'[1]EXT RIN(M)'!D358","v":3493.55},{"$f":"'[1]EXT RIN(M)'!E358","v":12452.4},{"$f":"'[1]EXT RIN(M)'!F358","v":4788.8999999999996},{"$f":"'[1]EXT RIN(M)'!G358","v":1961.6000000000001},{"$f":"'[1]EXT RIN(M)'!H358","v":7046.5049646461903},{"$f":"'[1]EXT RIN(M)'!I358","v":2845.6931911500001},null,null,{"$f":"'[1]EXT RIN(M)'!P358","v":71.081034112191006},{"$f":"'[1]EXT RIN(M)'!Q358","v":99.927461738641441},{"$f":"'[1]EXT RIN(M)'!R358","v":116.29543082487007},{"$f":"'[1]EXT RIN(M)'!S358","v":94.433264908578437},{"$f":"'[1]EXT RIN(M)'!T358","v":109.80240371966769},{"$f":"'[1]EXT RIN(M)'!U358","v":95.72633541805429},{"$f":"'[1]EXT RIN(M)'!V358","v":168.50907327033198},null,null,{"$f":"+'[1]MONE(M)CAPARD'!AE358","v":4.5084958878022467},{"$f":"'[1]MONE(M)CAPARD'!AF358","v":4.0697327156094074},{"$f":"'[1]MONE(M)CAPARD'!AG358","v":0.90786444092675944},{"$f":"'[1]MONE(M)CAPARD'!AH358","v":4.2181874420043268},{"$f":"'[1]MONE(M)CAPARD'!AI358","v":9.9212425899130565},{"$f":"'[1]MONE(M)CAPARD'!AJ358","v":7.111526039252051},{"$f":"'[1]MONE(M)CAPARD'!AK358","v":2.3419131277848919},null,null,{"$f":"'[1]MONE(M)CAPARD'!AL358","v":4.1723419000000002},{"$f":"'[1]MONE(M)CAPARD'!AM358","v":4.33},{"$f":"'[1]MONE(M)CAPARD'!AN358","v":3.16},{"$f":"'[1]MONE(M)CAPARD'!AO358","v":3.69},{"$f":"'[1]MONE(M)CAPARD'!AP358","v":5.1583060550661974},{"$f":"'[1]MONE(M)CAPARD'!AQ358","v":2.2852999999999999},{"$f":"'[1]MONE(M)CAPARD'!AR358","v":2.0299999999999998},null,null,{"$f":"'[1]MONE(M)CAPARD'!J358","v":11.877665510689233},{"$f":"'[1]MONE(M)CAPARD'!K358","v":6.2841945830363493},{"$f":"'[1]MONE(M)CAPARD'!L358","v":8.2946467117570961},{"$f":"'[1]MONE(M)CAPARD'!M358","v":12.933498298793685},{"$f":"'[1]MONE(M)CAPARD'!N358","v":15.714175368554594},{"$f":"'[1]MONE(M)CAPARD'!O358","v":11.830311559264414},{"$f":"'[1]MONE(M)CAPARD'!P358","v":6.8682081683526599},null,null,{"$f":"'[1]MONE(M)CAPARD'!Q358","v":13.741967669999999},{"$f":"'[1]MONE(M)CAPARD'!R358","v":6.55},{"$f":"'[1]MONE(M)CAPARD'!S358","v":6.55},{"$f":"'[1]MONE(M)CAPARD'!T358","v":8.18},{"$f":"'[1]MONE(M)CAPARD'!U358","v":11.072876283627158},{"$f":"'[1]MONE(M)CAPARD'!V358","v":6.1733000000000002},{"$f":"'[1]MONE(M)CAPARD'!W358","v":6.5424999999999995},null,null,{"$f":"'[1]MONE(M)CAPARD'!AS358","v":5.25},{"$f":"'[1]MONE(M)CAPARD'!AT358","v":"n.a."},{"$f":"'[1]MONE(M)CAPARD'!AU358","v":2.75},{"$f":"'[1]MONE(M)CAPARD'!AV358","v":5.75},{"$f":"'[1]MONE(M)CAPARD'!AW358","v":"n.a."},{"$f":"'[1]MONE(M)CAPARD'!AX358","v":5.5},{"$f":"'[1]MONE(M)CAPARD'!AY358","v":"n.a."},null,null,{"$f":"+'Datos_Regional (M)'!CF351","v":4.5917777873482946},{"$f":"+'Datos_Regional (M)'!CG351","v":7.1194042382511924},{"$f":"+'Datos_Regional (M)'!CH351","v":4.6742866691968699},{"$f":"+'Datos_Regional (M)'!CI351","v":13.699272900107795},{"$f":"+'Datos_Regional (M)'!CJ351","v":-11.911048796065293},{"$f":"+'Datos_Regional (M)'!CK351","v":9.9487446696527648},{"$f":"+'Datos_Regional (M)'!CL351","v":2.9884078096588329},null,null,974.80280721082715,490.66166666666658,912.14999999999975,352.46074600981427,446.32422372416664,913.06666666666661,{"$f":"IF(EN163=\"\",\"\",+AVERAGE(EN152:EN163))","v":957.67222952500003},4089.4661102781424,5047.1383398031421,null,null,1442.4188867733308,988.97916666666663,1649.4666666666669,874.1962499048276,572.02670152083329,1688.7916666666667,1900.4697945833334,7215.8793381989926,9116.3491327823267,null,null,-3126.4132279208502,-4069.2107929791832,null,null,{"$f":"'[1]EXT Comercio(M)'!C358","v":860.00268409999148},{"$f":"'[1]EXT Comercio(M)'!D358","v":483.36},{"$f":"'[1]EXT Comercio(M)'!E358","v":855.80000000000007},{"$f":"'[1]EXT Comercio(M)'!F358","v":357.25373687375395},{"$f":"'[1]EXT Comercio(M)'!G358","v":433.99068468999997},{"$f":"'[1]EXT Comercio(M)'!H358","v":839.5},{"$f":"'[1]EXT Comercio(M)'!I358","v":814.66492199999993},{"$f":"'[1]EXT Comercio(M)'!K358","v":3829.9071056637454},{"$f":"'[1]EXT Comercio(M)'!L358","v":4644.5720276637458},null,null,{"$f":"'[1]EXT Comercio(M)'!AG358","v":1424.002784249999},{"$f":"'[1]EXT Comercio(M)'!AH358","v":967.46},{"$f":"'[1]EXT Comercio(M)'!AI358","v":1685.6000000000001},{"$f":"'[1]EXT Comercio(M)'!AJ358","v":823.75106347970063},{"$f":"'[1]EXT Comercio(M)'!AK358","v":534.4204182499999},{"$f":"'[1]EXT Comercio(M)'!AL358","v":1629.7},{"$f":"'[1]EXT Comercio(M)'!AM358","v":1826.9143039999999},{"$f":"'[1]EXT Comercio(M)'!AO358","v":7064.9342659796994},{"$f":"'[1]EXT Comercio(M)'!AP358","v":8891.8485699796984},null,null,{"$f":"'[1]EXT Comercio(M)'!$BS358","v":-3235.0271603159545},{"$f":"'[1]EXT Comercio(M)'!$BT358","v":-4247.2765423159544}]
[null,null,"Febrero",{"$f":"'[1]REAL IPC(M)'!AD359","v":1.535477042184819},{"$f":"'[1]REAL IPC(M)'!AE359","v":0.34805890227577024},{"$f":"'[1]REAL IPC(M)'!AF359","v":4.4584553028597149},{"$f":"'[1]REAL IPC(M)'!AG359","v":4.089456869009588},{"$f":"'[1]REAL IPC(M)'!AH359","v":3.3579926806237168},{"$f":"'[1]REAL IPC(M)'!AI359","v":1.1918672587053059},{"$f":"'[1]REAL IPC(M)'!AJ359","v":-0.50047619047618463},null,null,{"$f":"'[1]REAL IMAE(M)'!AG359","v":1.5217127134650879},{"$f":"'[1]REAL IMAE(M)'!AH359","v":2.4430327596612806},{"$f":"'[1]REAL IMAE(M)'!AI359","v":3.356102836020832},{"$f":"'[1]REAL IMAE(M)'!AJ359","v":3.3919155248095829},{"$f":"'[1]REAL IMAE(M)'!AK359","v":-6.9237290199789623},{"$f":"'[1]REAL IMAE(M)'!AL359","v":5.3296968314262747},{"$f":"'[1]REAL IMAE(M)'!AM359","v":3.4194831013916525},null,null,{"$f":"'[1]EXT ITCER(M)'!C359","v":84.749941783659793},{"$f":"'[1]EXT ITCER(M)'!D359","v":95.476693543118145},{"$f":"'[1]EXT ITCER(M)'!E359","v":54.228344689926601},{"$f":"'[1]EXT ITCER(M)'!F359","v":79.118420408482635},{"$f":"'[1]EXT ITCER(M)'!G359","v":108.86660538812899},{"$f":"'[1]EXT ITCER(M)'!H359","v":111.57617008503556},{"$f":"'[1]EXT ITCER(M)'!I359","v":92.352548448269474},null,null,{"$f":"'[1]EXT TC(M)'!J359","v":6.9123823726509661},{"$f":"'[1]EXT TC(M)'!K359","v":0},{"$f":"'[1]EXT TC(M)'!L359","v":5.0440513637539688},{"$f":"'[1]EXT TC(M)'!M359","v":3.4787463230153115},{"$f":"'[1]EXT TC(M)'!N359","v":5.9827045671758574},{"$f":"'[1]EXT TC(M)'!O359","v":3.3915467664156624},{"$f":"'[1]EXT TC(M)'!P359","v":0},null,null,{"$f":"'[1]EXT RIN(M)'!C359","v":7525.2952999999998},{"$f":"'[1]EXT RIN(M)'!D359","v":3615.3},{"$f":"'[1]EXT RIN(M)'!E359","v":12557.2},{"$f":"'[1]EXT RIN(M)'!F359","v":4838.3999999999996},{"$f":"'[1]EXT RIN(M)'!G359","v":1937.4},{"$f":"'[1]EXT RIN(M)'!H359","v":7133.8695190563603},{"$f":"'[1]EXT RIN(M)'!I359","v":2481.4440872700002},null,null,{"$f":"'[1]EXT RIN(M)'!P359","v":70.603425737943297},{"$f":"'[1]EXT RIN(M)'!Q359","v":100.41713399117069},{"$f":"'[1]EXT RIN(M)'!R359","v":116.13530442341171},{"$f":"'[1]EXT RIN(M)'!S359","v":95.019913805810859},{"$f":"'[1]EXT RIN(M)'!T359","v":109.09972242715233},{"$f":"'[1]EXT RIN(M)'!U359","v":97.141760608923676},{"$f":"'[1]EXT RIN(M)'!V359","v":147.8899717033884},null,null,{"$f":"+'[1]MONE(M)CAPARD'!AE359","v":4.6432272690819616},{"$f":"'[1]MONE(M)CAPARD'!AF359","v":3.9780949839914621},{"$f":"'[1]MONE(M)CAPARD'!AG359","v":0.5471502478982555},{"$f":"'[1]MONE(M)CAPARD'!AH359","v":4.1027624309392223},{"$f":"'[1]MONE(M)CAPARD'!AI359","v":10.391810478580974},{"$f":"'[1]MONE(M)CAPARD'!AJ359","v":5.9860865357967654},{"$f":"'[1]MONE(M)CAPARD'!AK359","v":2.5934558193626134},null,null,{"$f":"'[1]MONE(M)CAPARD'!AL359","v":4.21},{"$f":"'[1]MONE(M)CAPARD'!AM359","v":4.34},{"$f":"'[1]MONE(M)CAPARD'!AN359","v":3.15},{"$f":"'[1]MONE(M)CAPARD'!AO359","v":3.69},{"$f":"'[1]MONE(M)CAPARD'!AP359","v":5.3094594696521398},{"$f":"'[1]MONE(M)CAPARD'!AQ359","v":2.3952},{"$f":"'[1]MONE(M)CAPARD'!AR359","v":2.08},null,null,{"$f":"'[1]MONE(M)CAPARD'!J359","v":11.118102880557727},{"$f":"'[1]MONE(M)CAPARD'!K359","v":6.2302561366061893},{"$f":"'[1]MONE(M)CAPARD'!L359","v":7.9567945677947849},{"$f":"'[1]MONE(M)CAPARD'!M359","v":12.816421117249842},{"$f":"'[1]MONE(M)CAPARD'!N359","v":14.667742021612719},{"$f":"'[1]MONE(M)CAPARD'!O359","v":12.066911177829098},{"$f":"'[1]MONE(M)CAPARD'!P359","v":7.1311659783009187},null,null,{"$f":"'[1]MONE(M)CAPARD'!Q359","v":12.82429584},{"$f":"'[1]MONE(M)CAPARD'!R359","v":6.6},{"$f":"'[1]MONE(M)CAPARD'!S359","v":6.56},{"$f":"'[1]MONE(M)CAPARD'!T359","v":8.1999999999999993},{"$f":"'[1]MONE(M)CAPARD'!U359","v":12.604218208320511},{"$f":"'[1]MONE(M)CAPARD'!V359","v":6.3169000000000004},{"$f":"'[1]MONE(M)CAPARD'!W359","v":6.5949999999999998},null,null,{"$f":"'[1]MONE(M)CAPARD'!AS359","v":5.25},{"$f":"'[1]MONE(M)CAPARD'!AT359","v":"n.a."},{"$f":"'[1]MONE(M)CAPARD'!AU359","v":2.75},{"$f":"'[1]MONE(M)CAPARD'!AV359","v":5.75},{"$f":"'[1]MONE(M)CAPARD'!AW359","v":"n.a."},{"$f":"'[1]MONE(M)CAPARD'!AX359","v":5.5},{"$f":"'[1]MONE(M)CAPARD'!AY359","v":"n.a."},null,null,{"$f":"+'Datos_Regional (M)'!CF352","v":4.3286548044634277},{"$f":"+'Datos_Regional (M)'!CG352","v":6.8384027944926373},{"$f":"+'Datos_Regional (M)'!CH352","v":4.2161525947022271},{"$f":"+'Datos_Regional (M)'!CI352","v":14.162024269611461},{"$f":"+'Datos_Regional (M)'!CJ352","v":-14.099994703577302},{"$f":"+'Datos_Regional (M)'!CK352","v":9.634218830756879},{"$f":"+'Datos_Regional (M)'!CL352","v":3.2442669240535515},null,null,976.31050225332729,488.92916666666662,909.33333333333303,347.42817322627866,444.77168254666668,912.24166666666667,944.82376285833345,4079.0145246929405,5023.8382875512734,null,null,1441.1228891649971,992.19916666666666,1652.2916666666667,878.75996137974334,564.29100459416668,1695.3083333333332,1902.8768451666667,7223.9730218055747,9126.849866972243,null,null,-3144.9584971126351,-4103.0115794209678,null,null,{"$f":"'[1]EXT Comercio(M)'!C359","v":929.83597896999458},{"$f":"'[1]EXT Comercio(M)'!D359","v":467.98},{"$f":"'[1]EXT Comercio(M)'!E359","v":894.30000000000007},{"$f":"'[1]EXT Comercio(M)'!F359","v":368.28348309402065},{"$f":"'[1]EXT Comercio(M)'!G359","v":439.36950587000001},{"$f":"'[1]EXT Comercio(M)'!H359","v":829.90000000000009},{"$f":"'[1]EXT Comercio(M)'!I359","v":771.94722699999988},{"$f":"'[1]EXT Comercio(M)'!K359","v":3929.6689679340166},{"$f":"'[1]EXT Comercio(M)'!L359","v":4701.6161949340167},null,null,{"$f":"'[1]EXT Comercio(M)'!AG359","v":1274.3668331600018},{"$f":"'[1]EXT Comercio(M)'!AH359","v":900.23},{"$f":"'[1]EXT Comercio(M)'!AI359","v":1459.5},{"$f":"'[1]EXT Comercio(M)'!AJ359","v":800.75110716389861},{"$f":"'[1]EXT Comercio(M)'!AK359","v":513.57163688000003},{"$f":"'[1]EXT Comercio(M)'!AL359","v":1464.3},{"$f":"'[1]EXT Comercio(M)'!AM359","v":1705.325699},{"$f":"'[1]EXT Comercio(M)'!AO359","v":6412.7195772039004},{"$f":"'[1]EXT Comercio(M)'!AP359","v":8118.0452762039022},null,null,{"$f":"'[1]EXT Comercio(M)'!$BS359","v":-2483.0506092698834},{"$f":"'[1]EXT Comercio(M)'!$BT359","v":-3416.4290812698837}]
[null,null,"Marzo",{"$f":"'[1]REAL IPC(M)'!AD360","v":1.4201372285843985},{"$f":"'[1]REAL IPC(M)'!AE360","v":0.67899580094701228},{"$f":"'[1]REAL IPC(M)'!AF360","v":4.1710348959113537},{"$f":"'[1]REAL IPC(M)'!AG360","v":4.1388092964024192},{"$f":"'[1]REAL IPC(M)'!AH360","v":5.0875154396655624},{"$f":"'[1]REAL IPC(M)'!AI360","v":1.4745828482731904},{"$f":"'[1]REAL IPC(M)'!AJ360","v":-0.18401522359658529},null,null,{"$f":"'[1]REAL IMAE(M)'!AG360","v":1.3843843807307183},{"$f":"'[1]REAL IMAE(M)'!AH360","v":2.4244705871182437},{"$f":"'[1]REAL IMAE(M)'!AI360","v":3.3373319736826073},{"$f":"'[1]REAL IMAE(M)'!AJ360","v":3.2453962037320587},{"$f":"'[1]REAL IMAE(M)'!AK360","v":""},{"$f":"'[1]REAL IMAE(M)'!AL360","v":5.0184125624575016},{"$f":"'[1]REAL IMAE(M)'!AM360","v":3.011397720455915},null,null,{"$f":"'[1]EXT ITCER(M)'!C360","v":84.475594853773984},{"$f":"'[1]EXT ITCER(M)'!D360","v":95.801550423371268},{"$f":"'[1]EXT ITCER(M)'!E360","v":54.242212088279139},{"$f":"'[1]EXT ITCER(M)'!F360","v":79.375948693432306},{"$f":"'[1]EXT ITCER(M)'!G360","v":107.58496616506336},{"$f":"'[1]EXT ITCER(M)'!H360","v":111.56533098175177},{"$f":"'[1]EXT ITCER(M)'!I360","v":92.490277557349259},null,null,{"$f":"'[1]EXT TC(M)'!J360","v":6.4383590619585362},{"$f":"'[1]EXT TC(M)'!K360","v":0},{"$f":"'[1]EXT TC(M)'!L360","v":3.9799349240780826},{"$f":"'[1]EXT TC(M)'!M360","v":3.4154923662152821},{"$f":"'[1]EXT TC(M)'!N360","v":5.7659079958260344},{"$f":"'[1]EXT TC(M)'!O360","v":2.7107971081107372},{"$f":"'[1]EXT TC(M)'!P360","v":0},null,null,{"$f":"'[1]EXT RIN(M)'!C360","v":8336.4212000000007},{"$f":"'[1]EXT RIN(M)'!D360","v":3594.41},{"$f":"'[1]EXT RIN(M)'!E360","v":12759.2},{"$f":"'[1]EXT RIN(M)'!F360","v":4830.8999999999996},{"$f":"'[1]EXT RIN(M)'!G360","v":1913.1000000000001},{"$f":"'[1]EXT RIN(M)'!H360","v":7353.5459141715801},{"$f":"'[1]EXT RIN(M)'!I360","v":2698.0524484800003},null,null,{"$f":"'[1]EXT RIN(M)'!P360","v":77.483024719104648},{"$f":"'[1]EXT RIN(M)'!Q360","v":103.75867227142066},{"$f":"'[1]EXT RIN(M)'!R360","v":114.000060682773},{"$f":"'[1]EXT RIN(M)'!S360","v":96.794360473132485},{"$f":"'[1]EXT RIN(M)'!T360","v":112.13094091830868},{"$f":"'[1]EXT RIN(M)'!U360","v":97.992932795370365},{"$f":"'[1]EXT RIN(M)'!V360","v":162.33451435688465},null,null,{"$f":"+'[1]MONE(M)CAPARD'!AE360","v":4.7129326601506882},{"$f":"'[1]MONE(M)CAPARD'!AF360","v":3.606516106131874},{"$f":"'[1]MONE(M)CAPARD'!AG360","v":0.81497232406008024},{"$f":"'[1]MONE(M)CAPARD'!AH360","v":4.0726322225619089},{"$f":"'[1]MONE(M)CAPARD'!AI360","v":6.6573165560866041},{"$f":"'[1]MONE(M)CAPARD'!AJ360","v":5.5968864244741825},{"$f":"'[1]MONE(M)CAPARD'!AK360","v":2.2882259076168818},null,null,{"$f":"'[1]MONE(M)CAPARD'!AL360","v":4.26},{"$f":"'[1]MONE(M)CAPARD'!AM360","v":4.3099999999999996},{"$f":"'[1]MONE(M)CAPARD'!AN360","v":3.12},{"$f":"'[1]MONE(M)CAPARD'!AO360","v":3.74},{"$f":"'[1]MONE(M)CAPARD'!AP360","v":5.8845742684087234},{"$f":"'[1]MONE(M)CAPARD'!AQ360","v":2.0144000000000002},{"$f":"'[1]MONE(M)CAPARD'!AR360","v":2.1},null,null,{"$f":"'[1]MONE(M)CAPARD'!J360","v":11.266758805168591},{"$f":"'[1]MONE(M)CAPARD'!K360","v":5.751948708847288},{"$f":"'[1]MONE(M)CAPARD'!L360","v":8.273859535619275},{"$f":"'[1]MONE(M)CAPARD'!M360","v":12.734148578416384},{"$f":"'[1]MONE(M)CAPARD'!N360","v":13.605009069912398},{"$f":"'[1]MONE(M)CAPARD'!O360","v":11.109991128107069},{"$f":"'[1]MONE(M)CAPARD'!P360","v":6.8315863825536356},null,null,{"$f":"'[1]MONE(M)CAPARD'!Q360","v":12.84689947},{"$f":"'[1]MONE(M)CAPARD'!R360","v":6.47},{"$f":"'[1]MONE(M)CAPARD'!S360","v":6.59},{"$f":"'[1]MONE(M)CAPARD'!T360","v":8.19},{"$f":"'[1]MONE(M)CAPARD'!U360","v":11.419850272378261},{"$f":"'[1]MONE(M)CAPARD'!V360","v":5.8235000000000001},{"$f":"'[1]MONE(M)CAPARD'!W360","v":6.6349999999999998},null,null,{"$f":"'[1]MONE(M)CAPARD'!AS360","v":5},{"$f":"'[1]MONE(M)CAPARD'!AT360","v":"n.a."},{"$f":"'[1]MONE(M)CAPARD'!AU360","v":2.75},{"$f":"'[1]MONE(M)CAPARD'!AV360","v":5.75},{"$f":"'[1]MONE(M)CAPARD'!AW360","v":"n.a."},{"$f":"'[1]MONE(M)CAPARD'!AX360","v":5.5},{"$f":"'[1]MONE(M)CAPARD'!AY360","v":"n.a."},null,null,{"$f":"+'Datos_Regional (M)'!CF353","v":4.3791892484985828},{"$f":"+'Datos_Regional (M)'!CG353","v":6.7543002096446481},{"$f":"+'Datos_Regional (M)'!CH353","v":4.2748883929449644},{"$f":"+'Datos_Regional (M)'!CI353","v":13.944396721821484},{"$f":"+'Datos_Regional (M)'!CJ353","v":-16.815600545838837},{"$f":"+'Datos_Regional (M)'!CK353","v":11.87279628564788},{"$f":"+'Datos_Regional (M)'!CL353","v":3.4579045014985654},null,null,974.33922555332776,490.70249999999993,909.24999999999989,346.24307798262879,442.25448513916666,914.69999999999993,928.35969225000008,4077.489288675124,5005.8489809251241,null,null,1448.5622575894956,1003.4549999999999,1663.9499999999998,881.31835523753364,556.44939392499998,1700.0916666666669,1886.4526835833333,7253.8266734186955,9140.2793570020312,null,null,-3176.3373847435737,-4134.4303760769062,null,null,{"$f":"'[1]EXT Comercio(M)'!C360","v":1088.7655300999984},{"$f":"'[1]EXT Comercio(M)'!D360","v":514.94999999999993},{"$f":"'[1]EXT Comercio(M)'!E360","v":1064.4000000000001},{"$f":"'[1]EXT Comercio(M)'!F360","v":399.25715714310809},{"$f":"'[1]EXT Comercio(M)'!G360","v":478.89363111},{"$f":"'[1]EXT Comercio(M)'!H360","v":985.99999999999989},{"$f":"'[1]EXT Comercio(M)'!I360","v":905.04119799999989},{"$f":"'[1]EXT Comercio(M)'!K360","v":4532.266318353104},{"$f":"'[1]EXT Comercio(M)'!L360","v":5437.307516353103},null,null,{"$f":"'[1]EXT Comercio(M)'!AG360","v":1512.8150862739735},{"$f":"'[1]EXT Comercio(M)'!AH360","v":1037.23},{"$f":"'[1]EXT Comercio(M)'!AI360","v":1626.6},{"$f":"'[1]EXT Comercio(M)'!AJ360","v":846.9328609775531},{"$f":"'[1]EXT Comercio(M)'!AK360","v":532.70067197000003},{"$f":"'[1]EXT Comercio(M)'!AL360","v":1696.9},{"$f":"'[1]EXT Comercio(M)'!AM360","v":1786.5651149999999},{"$f":"'[1]EXT Comercio(M)'!AO360","v":7253.1786192215277},{"$f":"'[1]EXT Comercio(M)'!AP360","v":9039.7437342215271},null,null,{"$f":"'[1]EXT Comercio(M)'!$BS360","v":-2720.9123008684219},{"$f":"'[1]EXT Comercio(M)'!$BT360","v":-3602.4362178684223}]
[null,null,"Abril",{"$f":"'[1]REAL IPC(M)'!AD361","v":2.0700723226680178},{"$f":"'[1]REAL IPC(M)'!AE361","v":0.80378672858801969},{"$f":"'[1]REAL IPC(M)'!AF361","v":4.7529940119760434},{"$f":"'[1]REAL IPC(M)'!AG361","v":4.8602287166454925},{"$f":"'[1]REAL IPC(M)'!AH361","v":5.7699592597319818},{"$f":"'[1]REAL IPC(M)'!AI361","v":1.6079158936301667},{"$f":"'[1]REAL IPC(M)'!AJ361","v":-9.3922127255461008E-2},null,null,{"$f":"'[1]REAL IMAE(M)'!AG361","v":1.2724714955256859},{"$f":"'[1]REAL IMAE(M)'!AH361","v":2.4974531154037063},{"$f":"'[1]REAL IMAE(M)'!AI361","v":3.3198102193337862},{"$f":"'[1]REAL IMAE(M)'!AJ361","v":3.0422420687202365},{"$f":"'[1]REAL IMAE(M)'!AK361","v":""},{"$f":"'[1]REAL IMAE(M)'!AL361","v":4.775969425213983},{"$f":"'[1]REAL IMAE(M)'!AM361","v":2.9875767100733306},null,null,{"$f":"'[1]EXT ITCER(M)'!C361","v":83.901630627678003},{"$f":"'[1]EXT ITCER(M)'!D361","v":96.155987344899714},{"$f":"'[1]EXT ITCER(M)'!E361","v":53.884602947734656},{"$f":"'[1]EXT ITCER(M)'!F361","v":79.104574288204319},{"$f":"'[1]EXT ITCER(M)'!G361","v":106.9035935226367},{"$f":"'[1]EXT ITCER(M)'!H361","v":111.60700208287339},{"$f":"'[1]EXT ITCER(M)'!I361","v":92.720454941997531},null,null,{"$f":"'[1]EXT TC(M)'!J361","v":6.1424251408241499},{"$f":"'[1]EXT TC(M)'!K361","v":0},{"$f":"'[1]EXT TC(M)'!L361","v":3.1228021769944125},{"$f":"'[1]EXT TC(M)'!M361","v":3.3049568235262421},{"$f":"'[1]EXT TC(M)'!N361","v":5.225942062071522},{"$f":"'[1]EXT TC(M)'!O361","v":2.3854237867395689},{"$f":"'[1]EXT TC(M)'!P361","v":0},null,null,{"$f":"'[1]EXT RIN(M)'!C361","v":8138.8918999999996},{"$f":"'[1]EXT RIN(M)'!D361","v":3712.89},{"$f":"'[1]EXT RIN(M)'!E361","v":12845.9},{"$f":"'[1]EXT RIN(M)'!F361","v":4950.8},{"$f":"'[1]EXT RIN(M)'!G361","v":1968.8000000000002},{"$f":"'[1]EXT RIN(M)'!H361","v":7275.4016782442932},{"$f":"'[1]EXT RIN(M)'!I361","v":2980.7113331100004},null,null,{"$f":"'[1]EXT RIN(M)'!P361","v":75.55809632803637},{"$f":"'[1]EXT RIN(M)'!Q361","v":100.92463074299364},{"$f":"'[1]EXT RIN(M)'!R361","v":114.27460359814248},{"$f":"'[1]EXT RIN(M)'!S361","v":97.992487804463451},{"$f":"'[1]EXT RIN(M)'!T361","v":115.51148400704282},{"$f":"'[1]EXT RIN(M)'!U361","v":94.491658896647124},{"$f":"'[1]EXT RIN(M)'!V361","v":181.85747597009194},null,null,{"$f":"+'[1]MONE(M)CAPARD'!AE361","v":3.9971830963677095},{"$f":"'[1]MONE(M)CAPARD'!AF361","v":3.4088136794542341},{"$f":"'[1]MONE(M)CAPARD'!AG361","v":0.24534476598785687},{"$f":"'[1]MONE(M)CAPARD'!AH361","v":3.356631323841258},{"$f":"'[1]MONE(M)CAPARD'!AI361","v":7.6158335572850691},{"$f":"'[1]MONE(M)CAPARD'!AJ361","v":5.2871708460134039},{"$f":"'[1]MONE(M)CAPARD'!AK361","v":2.2260128458732851},null,null,{"$f":"'[1]MONE(M)CAPARD'!AL361","v":3.98},{"$f":"'[1]MONE(M)CAPARD'!AM361","v":4.24},{"$f":"'[1]MONE(M)CAPARD'!AN361","v":3.14},{"$f":"'[1]MONE(M)CAPARD'!AO361","v":3.74},{"$f":"'[1]MONE(M)CAPARD'!AP361","v":6.1803796302169323},{"$f":"'[1]MONE(M)CAPARD'!AQ361","v":1.9298999999999999},{"$f":"'[1]MONE(M)CAPARD'!AR361","v":2.13},null,null,{"$f":"'[1]MONE(M)CAPARD'!J361","v":11.935020991090791},{"$f":"'[1]MONE(M)CAPARD'!K361","v":5.7202347833791034},{"$f":"'[1]MONE(M)CAPARD'!L361","v":7.6341550553769251},{"$f":"'[1]MONE(M)CAPARD'!M361","v":11.872729475916385},{"$f":"'[1]MONE(M)CAPARD'!N361","v":12.374495538853806},{"$f":"'[1]MONE(M)CAPARD'!O361","v":11.591699330493013},{"$f":"'[1]MONE(M)CAPARD'!P361","v":6.6501681066072509},null,null,{"$f":"'[1]MONE(M)CAPARD'!Q361","v":14.252156879999999},{"$f":"'[1]MONE(M)CAPARD'!R361","v":6.57},{"$f":"'[1]MONE(M)CAPARD'!S361","v":6.6},{"$f":"'[1]MONE(M)CAPARD'!T361","v":8.17},{"$f":"'[1]MONE(M)CAPARD'!U361","v":11.494728606171783},{"$f":"'[1]MONE(M)CAPARD'!V361","v":5.4684999999999997},{"$f":"'[1]MONE(M)CAPARD'!W361","v":6.55},null,null,{"$f":"'[1]MONE(M)CAPARD'!AS361","v":5},{"$f":"'[1]MONE(M)CAPARD'!AT361","v":"n.a."},{"$f":"'[1]MONE(M)CAPARD'!AU361","v":2.75},{"$f":"'[1]MONE(M)CAPARD'!AV361","v":5.75},{"$f":"'[1]MONE(M)CAPARD'!AW361","v":"n.a."},{"$f":"'[1]MONE(M)CAPARD'!AX361","v":5.5},{"$f":"'[1]MONE(M)CAPARD'!AY361","v":"n.a."},null,null,{"$f":"+'Datos_Regional (M)'!CF354","v":4.2463673358349663},{"$f":"+'Datos_Regional (M)'!CG354","v":6.7516422890905536},{"$f":"+'Datos_Regional (M)'!CH354","v":4.6301586152399654},{"$f":"+'Datos_Regional (M)'!CI354","v":13.248434073411586},{"$f":"+'Datos_Regional (M)'!CJ354","v":-19.648706478528645},{"$f":"+'Datos_Regional (M)'!CK354","v":10.926092435861223},{"$f":"+'Datos_Regional (M)'!CL354","v":3.1895898407427126},null,null,976.54889646166146,486.22583333333324,907.12499999999989,345.6219738133629,438.85899992749995,910.75833333333333,906.10583616666679,4065.1390368691918,4971.2448730358583,null,null,1438.4503316561631,999.75666666666655,1661.0166666666667,878.30375993109226,546.22664475666681,1699.5500000000002,1888.2019389166669,7223.3040696772559,9111.506008593924,null,null,-3158.165032808065,-4140.2611355580648,null,null,{"$f":"'[1]EXT Comercio(M)'!C361","v":996.30421503999946},{"$f":"'[1]EXT Comercio(M)'!D361","v":466.11000000000013},{"$f":"'[1]EXT Comercio(M)'!E361","v":918.4},{"$f":"'[1]EXT Comercio(M)'!F361","v":381.06631015030484},{"$f":"'[1]EXT Comercio(M)'!G361","v":459.85417745999996},{"$f":"'[1]EXT Comercio(M)'!H361","v":856.59999999999991},{"$f":"'[1]EXT Comercio(M)'!I361","v":841.35852799999998},{"$f":"'[1]EXT Comercio(M)'!K361","v":4078.3347026503052},{"$f":"'[1]EXT Comercio(M)'!L361","v":4919.6932306503058},null,null,{"$f":"'[1]EXT Comercio(M)'!AG361","v":1391.1634406800067},{"$f":"'[1]EXT Comercio(M)'!AH361","v":983.02000000000044},{"$f":"'[1]EXT Comercio(M)'!AI361","v":1622.4},{"$f":"'[1]EXT Comercio(M)'!AJ361","v":833.82497969192912},{"$f":"'[1]EXT Comercio(M)'!AK361","v":576.12700998000014},{"$f":"'[1]EXT Comercio(M)'!AL361","v":1600.9},{"$f":"'[1]EXT Comercio(M)'!AM361","v":1940.691908},{"$f":"'[1]EXT Comercio(M)'!AO361","v":7007.4354303519394},{"$f":"'[1]EXT Comercio(M)'!AP361","v":8948.1273383519365},null,null,{"$f":"'[1]EXT Comercio(M)'!$BS361","v":-2929.1007277016324},{"$f":"'[1]EXT Comercio(M)'!$BT361","v":-4028.4341077016306}]
[null,null,"Mayo ",{"$f":"'[1]REAL IPC(M)'!AD362","v":2.3219000568675732},{"$f":"'[1]REAL IPC(M)'!AE362","v":0.8027829810008078},{"$f":"'[1]REAL IPC(M)'!AF362","v":4.5369887506518696},{"$f":"'[1]REAL IPC(M)'!AG362","v":5.1412250079339854},{"$f":"'[1]REAL IPC(M)'!AH362","v":5.9949961396103735},{"$f":"'[1]REAL IPC(M)'!AI362","v":1.3107170393215244},{"$f":"'[1]REAL IPC(M)'!AJ362","v":-4.5584045584074308E-3},null,null,{"$f":"'[1]REAL IMAE(M)'!AG362","v":1.2269049364473994},{"$f":"'[1]REAL IMAE(M)'!AH362","v":2.4368199595183762},{"$f":"'[1]REAL IMAE(M)'!AI362","v":3.3361019673828296},{"$f":"'[1]REAL IMAE(M)'!AJ362","v":2.8087270213924365},{"$f":"'[1]REAL IMAE(M)'!AK362","v":""},{"$f":"'[1]REAL IMAE(M)'!AL362","v":4.6428097960565333},{"$f":"'[1]REAL IMAE(M)'!AM362","v":2.8669548952871624},null,null,{"$f":"'[1]EXT ITCER(M)'!C362","v":82.851352045860381},{"$f":"'[1]EXT ITCER(M)'!D362","v":96.241305879424729},{"$f":"'[1]EXT ITCER(M)'!E362","v":54.053362006946855},{"$f":"'[1]EXT ITCER(M)'!F362","v":79.064722136367592},{"$f":"'[1]EXT ITCER(M)'!G362","v":106.77407407653536},{"$f":"'[1]EXT ITCER(M)'!H362","v":111.90232588401236},{"$f":"'[1]EXT ITCER(M)'!I362","v":92.834795785755205},null,null,{"$f":"'[1]EXT TC(M)'!J362","v":4.7445816791141917},{"$f":"'[1]EXT TC(M)'!K362","v":0},{"$f":"'[1]EXT TC(M)'!L362","v":3.018513333046136},{"$f":"'[1]EXT TC(M)'!M362","v":2.7557177720583468},{"$f":"'[1]EXT TC(M)'!N362","v":4.8068808565630867},{"$f":"'[1]EXT TC(M)'!O362","v":2.343141338470339},{"$f":"'[1]EXT TC(M)'!P362","v":0},null,null,{"$f":"'[1]EXT RIN(M)'!C362","v":7739.3371999999999},{"$f":"'[1]EXT RIN(M)'!D362","v":3765.82},{"$f":"'[1]EXT RIN(M)'!E362","v":14070.1},{"$f":"'[1]EXT RIN(M)'!F362","v":5028.6000000000004},{"$f":"'[1]EXT RIN(M)'!G362","v":1947.8000000000002},{"$f":"'[1]EXT RIN(M)'!H362","v":6980.5},{"$f":"'[1]EXT RIN(M)'!I362","v":2798.80935404},null,null,{"$f":"'[1]EXT RIN(M)'!P362","v":72.003811441648466},{"$f":"'[1]EXT RIN(M)'!Q362","v":106.36945067975476},{"$f":"'[1]EXT RIN(M)'!R362","v":127.64470902345639},{"$f":"'[1]EXT RIN(M)'!S362","v":99.891590463079055},{"$f":"'[1]EXT RIN(M)'!T362","v":114.93785840199678},{"$f":"'[1]EXT RIN(M)'!U362","v":101.07868122683858},{"$f":"'[1]EXT RIN(M)'!V362","v":173.63673215107659},null,null,{"$f":"+'[1]MONE(M)CAPARD'!AE362","v":3.8878284520923803},{"$f":"'[1]MONE(M)CAPARD'!AF362","v":3.4098433766923231},{"$f":"'[1]MONE(M)CAPARD'!AG362","v":0.5385761117445802},{"$f":"'[1]MONE(M)CAPARD'!AH362","v":3.1089375188650807},{"$f":"'[1]MONE(M)CAPARD'!AI362","v":5.241411760583035},{"$f":"'[1]MONE(M)CAPARD'!AJ362","v":5.3019888888888751},{"$f":"'[1]MONE(M)CAPARD'!AK362","v":2.1946584459690501},null,null,{"$f":"'[1]MONE(M)CAPARD'!AL362","v":3.95407215},{"$f":"'[1]MONE(M)CAPARD'!AM362","v":4.24},{"$f":"'[1]MONE(M)CAPARD'!AN362","v":3.17},{"$f":"'[1]MONE(M)CAPARD'!AO362","v":3.75},{"$f":"'[1]MONE(M)CAPARD'!AP362","v":6.1536541328112122},{"$f":"'[1]MONE(M)CAPARD'!AQ362","v":1.5387},{"$f":"'[1]MONE(M)CAPARD'!AR362","v":2.19},null,null,{"$f":"'[1]MONE(M)CAPARD'!J362","v":10.758302901934426},{"$f":"'[1]MONE(M)CAPARD'!K362","v":5.8800132731616621},{"$f":"'[1]MONE(M)CAPARD'!L362","v":7.8469940136830063},{"$f":"'[1]MONE(M)CAPARD'!M362","v":11.573742831270753},{"$f":"'[1]MONE(M)CAPARD'!N362","v":11.997769591071775},{"$f":"'[1]MONE(M)CAPARD'!O362","v":10.938411339421599},{"$f":"'[1]MONE(M)CAPARD'!P362","v":6.6248603924965277},null,null,{"$f":"'[1]MONE(M)CAPARD'!Q362","v":9.01},{"$f":"'[1]MONE(M)CAPARD'!R362","v":6.73},{"$f":"'[1]MONE(M)CAPARD'!S362","v":6.59},{"$f":"'[1]MONE(M)CAPARD'!T362","v":8.2100000000000009},{"$f":"'[1]MONE(M)CAPARD'!U362","v":12.406844829981461},{"$f":"'[1]MONE(M)CAPARD'!V362","v":5.7721},{"$f":"'[1]MONE(M)CAPARD'!W362","v":6.62},null,null,{"$f":"'[1]MONE(M)CAPARD'!AS362","v":4.75},{"$f":"'[1]MONE(M)CAPARD'!AT362","v":"n.a."},{"$f":"'[1]MONE(M)CAPARD'!AU362","v":2.75},{"$f":"'[1]MONE(M)CAPARD'!AV362","v":5.75},{"$f":"'[1]MONE(M)CAPARD'!AW362","v":"n.a."},{"$f":"'[1]MONE(M)CAPARD'!AX362","v":5.5},{"$f":"'[1]MONE(M)CAPARD'!AY362","v":"n.a."},null,null,{"$f":"+'Datos_Regional (M)'!CF355","v":3.674092434454268},{"$f":"+'Datos_Regional (M)'!CG355","v":6.3246876223030046},{"$f":"+'Datos_Regional (M)'!CH355","v":4.6913092802999712},{"$f":"+'Datos_Regional (M)'!CI355","v":13.062812153871196},{"$f":"+'Datos_Regional (M)'!CJ355","v":-21.287370857682063},{"$f":"+'Datos_Regional (M)'!CK355","v":10.507622752360945},{"$f":"+'Datos_Regional (M)'!CL355","v":2.1178469732963334},null,null,977.42142356249542,490.03666666666663,906.40833333333342,346.2141833378717,"",912.8416666666667,913.51489266666658,"","",null,null,1433.0682045844978,1010.0558333333332,1652.2,872.72907626007827,"",1716.5,1882.0056321666668,"","",null,null,"","",null,null,{"$f":"'[1]EXT Comercio(M)'!C362","v":1108.8210253699976},{"$f":"'[1]EXT Comercio(M)'!D362","v":558.44999999999982},{"$f":"'[1]EXT Comercio(M)'!E362","v":948.19999999999993},{"$f":"'[1]EXT Comercio(M)'!F362","v":408.45500530509429},{"$f":"'[1]EXT Comercio(M)'!G362","v":""},{"$f":"'[1]EXT Comercio(M)'!H362","v":1015.9999999999999},{"$f":"'[1]EXT Comercio(M)'!I362","v":998.67917799999998},{"$f":"'[1]EXT Comercio(M)'!K362","v":""},{"$f":"'[1]EXT Comercio(M)'!L362","v":""},null,null,{"$f":"'[1]EXT Comercio(M)'!AG362","v":1496.5767164200049},{"$f":"'[1]EXT Comercio(M)'!AH362","v":1123.58},{"$f":"'[1]EXT Comercio(M)'!AI362","v":1775.3},{"$f":"'[1]EXT Comercio(M)'!AJ362","v":882.6709929916002},{"$f":"'[1]EXT Comercio(M)'!AK362","v":""},{"$f":"'[1]EXT Comercio(M)'!AL362","v":1912.3000000000002},{"$f":"'[1]EXT Comercio(M)'!AM362","v":1853.3719679999999},{"$f":"'[1]EXT Comercio(M)'!AO362","v":""},{"$f":"'[1]EXT Comercio(M)'!AP362","v":""},null,null,{"$f":"'[1]EXT Comercio(M)'!$BS362","v":""},{"$f":"'[1]EXT Comercio(M)'!$BT362","v":""}]
[null,null,"Junio",{"$f":"'[1]REAL IPC(M)'!AD363","v":2.4213709303197826},{"$f":"'[1]REAL IPC(M)'!AE363","v":0.52955460760091955},{"$f":"'[1]REAL IPC(M)'!AF363","v":4.7999999999999927},{"$f":"'[1]REAL IPC(M)'!AG363","v":4.8040455120101289},{"$f":"'[1]REAL IPC(M)'!AH363","v":5.625585579852407},{"$f":"'[1]REAL IPC(M)'!AI363","v":0.9155959067477093},{"$f":"'[1]REAL IPC(M)'!AJ363","v":-0.54019987395336977},null,null,{"$f":"'[1]REAL IMAE(M)'!AG363","v":1.3454778794167583},{"$f":"'[1]REAL IMAE(M)'!AH363","v":2.2542690090804198},{"$f":"'[1]REAL IMAE(M)'!AI363","v":3.415321527266066},{"$f":"'[1]REAL IMAE(M)'!AJ363","v":2.5588850058099868},{"$f":"'[1]REAL IMAE(M)'!AK363","v":""},{"$f":"'[1]REAL IMAE(M)'!AL363","v":4.5975676528225362},{"$f":"'[1]REAL IMAE(M)'!AM363","v":2.9870368105662339},null,null,{"$f":"'[1]EXT ITCER(M)'!C363","v":81.834741322926817},{"$f":"'[1]EXT ITCER(M)'!D363","v":96.393126267782208},{"$f":"'[1]EXT ITCER(M)'!E363","v":53.841225436686265},{"$f":"'[1]EXT ITCER(M)'!F363","v":79.163433121168964},{"$f":"'[1]EXT ITCER(M)'!G363","v":107.24616171214774},{"$f":"'[1]EXT ITCER(M)'!H363","v":112.45647132299707},{"$f":"'[1]EXT ITCER(M)'!I363","v":93.161802104379674},null,null,{"$f":"'[1]EXT TC(M)'!J363","v":3.3365630594170601},{"$f":"'[1]EXT TC(M)'!K363","v":0},{"$f":"'[1]EXT TC(M)'!L363","v":2.8629298377369707},{"$f":"'[1]EXT TC(M)'!M363","v":2.3075574259162024},{"$f":"'[1]EXT TC(M)'!N363","v":4.586470077768527},{"$f":"'[1]EXT TC(M)'!O363","v":2.621259783197246},{"$f":"'[1]EXT TC(M)'!P363","v":0},null,null,{"$f":"'[1]EXT RIN(M)'!C363","v":7793.1674999999996},{"$f":"'[1]EXT RIN(M)'!D363","v":3757},{"$f":"'[1]EXT RIN(M)'!E363","v":14279.8},{"$f":"'[1]EXT RIN(M)'!F363","v":5062.8999999999996},{"$f":"'[1]EXT RIN(M)'!G363","v":1978.8000000000002},{"$f":"'[1]EXT RIN(M)'!H363","v":8711.6},{"$f":"'[1]EXT RIN(M)'!I363","v":2924.7763551100002},null,null,{"$f":"'[1]EXT RIN(M)'!P363","v":71.455351000241137},{"$f":"'[1]EXT RIN(M)'!Q363","v":106.29698591317374},{"$f":"'[1]EXT RIN(M)'!R363","v":125.13672073527692},{"$f":"'[1]EXT RIN(M)'!S363","v":97.467565845873111},{"$f":"'[1]EXT RIN(M)'!T363","v":120.11027861031521},{"$f":"'[1]EXT RIN(M)'!U363","v":123.55040261874409},{"$f":"'[1]EXT RIN(M)'!V363","v":172.33732333511045},null,null,{"$f":"+'[1]MONE(M)CAPARD'!AE363","v":4.031023049368323},{"$f":"'[1]MONE(M)CAPARD'!AF363","v":3.7704786489847733},{"$f":"'[1]MONE(M)CAPARD'!AG363","v":0.26717557251909102},{"$f":"'[1]MONE(M)CAPARD'!AH363","v":3.4406634499396715},{"$f":"'[1]MONE(M)CAPARD'!AI363","v":5.8953142759041057},{"$f":"'[1]MONE(M)CAPARD'!AJ363","v":5.0052759911558429},{"$f":"'[1]MONE(M)CAPARD'!AK363","v":2.7751914546935899},null,null,{"$f":"'[1]MONE(M)CAPARD'!AL363","v":3.65},{"$f":"'[1]MONE(M)CAPARD'!AM363","v":4.32},{"$f":"'[1]MONE(M)CAPARD'!AN363","v":3.19},{"$f":"'[1]MONE(M)CAPARD'!AO363","v":3.76},{"$f":"'[1]MONE(M)CAPARD'!AP363","v":5.9114598359687873},{"$f":"'[1]MONE(M)CAPARD'!AQ363","v":1.7053},{"$f":"'[1]MONE(M)CAPARD'!AR363","v":2.2200000000000002},null,null,{"$f":"'[1]MONE(M)CAPARD'!J363","v":9.7817759894037923},{"$f":"'[1]MONE(M)CAPARD'!K363","v":5.958889816812289},{"$f":"'[1]MONE(M)CAPARD'!L363","v":7.585877862595428},{"$f":"'[1]MONE(M)CAPARD'!M363","v":11.989951749095281},{"$f":"'[1]MONE(M)CAPARD'!N363","v":12.586404845838635},{"$f":"'[1]MONE(M)CAPARD'!O363","v":10.80705513876182},{"$f":"'[1]MONE(M)CAPARD'!P363","v":7.2795238526296808},null,null,{"$f":"'[1]MONE(M)CAPARD'!Q363","v":7.87},{"$f":"'[1]MONE(M)CAPARD'!R363","v":6.52},{"$f":"'[1]MONE(M)CAPARD'!S363","v":6.57},{"$f":"'[1]MONE(M)CAPARD'!T363","v":8.2100000000000009},{"$f":"'[1]MONE(M)CAPARD'!U363","v":11.697538437867497},{"$f":"'[1]MONE(M)CAPARD'!V363","v":5.5815000000000001},{"$f":"'[1]MONE(M)CAPARD'!W363","v":6.7},null,null,{"$f":"'[1]MONE(M)CAPARD'!AS363","v":4.5},{"$f":"'[1]MONE(M)CAPARD'!AT363","v":"n.a."},{"$f":"'[1]MONE(M)CAPARD'!AU363","v":2.75},{"$f":"'[1]MONE(M)CAPARD'!AV363","v":5.75},{"$f":"'[1]MONE(M)CAPARD'!AW363","v":"n.a."},{"$f":"'[1]MONE(M)CAPARD'!AX363","v":5.5},{"$f":"'[1]MONE(M)CAPARD'!AY363","v":"n.a."},null,null,{"$f":"+'Datos_Regional (M)'!CF356","v":2.9698988941816218},{"$f":"+'Datos_Regional (M)'!CG356","v":6.3283358160112435},{"$f":"+'Datos_Regional (M)'!CH356","v":4.8964310664277644},{"$f":"+'Datos_Regional (M)'!CI356","v":12.768091832154305},{"$f":"+'Datos_Regional (M)'!CJ356","v":-20.463949156029415},{"$f":"+'Datos_Regional (M)'!CK356","v":11.566818064585217},{"$f":"+'Datos_Regional (M)'!CL356","v":2.3063344060075819},null,null,978.37566391249527,490.92083333333335,910.18333333333339,345.32829216296165,"",913.24166666666667,895.54612025000006,"","",null,null,1422.0860908836655,1004.7608333333332,1645.5416666666667,863.57799248012623,"",1705.6499999999999,1879.8798141666666,"","",null,null,"","",null,null,{"$f":"'[1]EXT Comercio(M)'!C363","v":1019.0461456399908},{"$f":"'[1]EXT Comercio(M)'!D363","v":543.01000000000022},{"$f":"'[1]EXT Comercio(M)'!E363","v":952.30000000000007},{"$f":"'[1]EXT Comercio(M)'!F363","v":362.6114238156012},{"$f":"'[1]EXT Comercio(M)'!G363","v":""},{"$f":"'[1]EXT Comercio(M)'!H363","v":943.1},{"$f":"'[1]EXT Comercio(M)'!I363","v":881.82699200000002},{"$f":"'[1]EXT Comercio(M)'!K363","v":""},{"$f":"'[1]EXT Comercio(M)'!L363","v":""},null,null,{"$f":"'[1]EXT Comercio(M)'!AG363","v":1303.2164436100059},{"$f":"'[1]EXT Comercio(M)'!AH363","v":964.20999999999913},{"$f":"'[1]EXT Comercio(M)'!AI363","v":1525.3000000000002},{"$f":"'[1]EXT Comercio(M)'!AJ363","v":784.87844358020004},{"$f":"'[1]EXT Comercio(M)'!AK363","v":""},{"$f":"'[1]EXT Comercio(M)'!AL363","v":1619.5},{"$f":"'[1]EXT Comercio(M)'!AM363","v":1872.068982},{"$f":"'[1]EXT Comercio(M)'!AO363","v":""},{"$f":"'[1]EXT Comercio(M)'!AP363","v":""},null,null,{"$f":"'[1]EXT Comercio(M)'!$BS363","v":""},{"$f":"'[1]EXT Comercio(M)'!$BT363","v":""}]
[null,null,"Julio",{"$f":"'[1]REAL IPC(M)'!AD364","v":2.8892280184692054},{"$f":"'[1]REAL IPC(M)'!AE364","v":0.12787884760535664},{"$f":"'[1]REAL IPC(M)'!AF364","v":4.3696486566282964},{"$f":"'[1]REAL IPC(M)'!AG364","v":4.6914357682619574},{"$f":"'[1]REAL IPC(M)'!AH364","v":6.0848492114204475},{"$f":"'[1]REAL IPC(M)'!AI364","v":1.4005386687187549},{"$f":"'[1]REAL IPC(M)'!AJ364","v":-0.26550829191878211},null,null,{"$f":"'[1]REAL IMAE(M)'!AG364","v":1.6109538157728371},{"$f":"'[1]REAL IMAE(M)'!AH364","v":2.205679911670738},{"$f":"'[1]REAL IMAE(M)'!AI364","v":3.5558961186223379},{"$f":"'[1]REAL IMAE(M)'!AJ364","v":2.3317261211591385},{"$f":"'[1]REAL IMAE(M)'!AK364","v":""},{"$f":"'[1]REAL IMAE(M)'!AL364","v":4.6678805884950076},{"$f":"'[1]REAL IMAE(M)'!AM364","v":3.7083499066793149},null,null,{"$f":"'[1]EXT ITCER(M)'!C364","v":80.066677163449171},{"$f":"'[1]EXT ITCER(M)'!D364","v":96.803562505220953},{"$f":"'[1]EXT ITCER(M)'!E364","v":53.760009974243864},{"$f":"'[1]EXT ITCER(M)'!F364","v":79.062237755086485},{"$f":"'[1]EXT ITCER(M)'!G364","v":107.29778629632501},{"$f":"'[1]EXT ITCER(M)'!H364","v":112.56729446955188},{"$f":"'[1]EXT ITCER(M)'!I364","v":93.111986898913074},null,null,{"$f":"'[1]EXT TC(M)'!J364","v":1.733538591441989},{"$f":"'[1]EXT TC(M)'!K364","v":0},{"$f":"'[1]EXT TC(M)'!L364","v":2.5372068757207873},{"$f":"'[1]EXT TC(M)'!M364","v":2.1400434741659877},{"$f":"'[1]EXT TC(M)'!N364","v":4.3189065483436249},{"$f":"'[1]EXT TC(M)'!O364","v":2.6761529519420986},{"$f":"'[1]EXT TC(M)'!P364","v":0},null,null,{"$f":"'[1]EXT RIN(M)'!C364","v":7877.6172999999999},{"$f":"'[1]EXT RIN(M)'!D364","v":3693.67},{"$f":"'[1]EXT RIN(M)'!E364","v":14386.4},{"$f":"'[1]EXT RIN(M)'!F364","v":5068.3},{"$f":"'[1]EXT RIN(M)'!G364","v":1973.4},{"$f":"'[1]EXT RIN(M)'!H364","v":8214.9557832058163},{"$f":"'[1]EXT RIN(M)'!I364","v":3900.8993976000002},null,null,{"$f":"'[1]EXT RIN(M)'!P364","v":71.433442487750398},{"$f":"'[1]EXT RIN(M)'!Q364","v":100.99991742095243},{"$f":"'[1]EXT RIN(M)'!R364","v":124.69034724443659},{"$f":"'[1]EXT RIN(M)'!S364","v":97.307472153331545},{"$f":"'[1]EXT RIN(M)'!T364","v":124.27914436960737},{"$f":"'[1]EXT RIN(M)'!U364","v":111.36410420412291},{"$f":"'[1]EXT RIN(M)'!V364","v":235.18470428801029},null,null,{"$f":"+'[1]MONE(M)CAPARD'!AE364","v":3.1206104306219911},{"$f":"'[1]MONE(M)CAPARD'!AF364","v":4.1767799343475875},{"$f":"'[1]MONE(M)CAPARD'!AG364","v":0.63270438472417556},{"$f":"'[1]MONE(M)CAPARD'!AH364","v":3.5805834586466232},{"$f":"'[1]MONE(M)CAPARD'!AI364","v":6.3847326167977307},{"$f":"'[1]MONE(M)CAPARD'!AJ364","v":4.4158161189952008},{"$f":"'[1]MONE(M)CAPARD'!AK364","v":2.4520186046334755},null,null,{"$f":"'[1]MONE(M)CAPARD'!AL364","v":3.1518295099999998},{"$f":"'[1]MONE(M)CAPARD'!AM364","v":4.3099999999999996},{"$f":"'[1]MONE(M)CAPARD'!AN364","v":3.19},{"$f":"'[1]MONE(M)CAPARD'!AO364","v":3.75},{"$f":"'[1]MONE(M)CAPARD'!AP364","v":5.7018070665093505},{"$f":"'[1]MONE(M)CAPARD'!AQ364","v":1.7402},{"$f":"'[1]MONE(M)CAPARD'!AR364","v":2.1800000000000002},null,null,{"$f":"'[1]MONE(M)CAPARD'!J364","v":9.7243172236988613},{"$f":"'[1]MONE(M)CAPARD'!K364","v":6.4938169341336707},{"$f":"'[1]MONE(M)CAPARD'!L364","v":8.048653465346522},{"$f":"'[1]MONE(M)CAPARD'!M364","v":12.033996992481208},{"$f":"'[1]MONE(M)CAPARD'!N364","v":9.4126448938304534},{"$f":"'[1]MONE(M)CAPARD'!O364","v":11.081855657585168},{"$f":"'[1]MONE(M)CAPARD'!P364","v":8.0869798941034308},null,null,{"$f":"'[1]MONE(M)CAPARD'!Q364","v":8.4341756399999994},{"$f":"'[1]MONE(M)CAPARD'!R364","v":6.63},{"$f":"'[1]MONE(M)CAPARD'!S364","v":6.53},{"$f":"'[1]MONE(M)CAPARD'!T364","v":8.24},{"$f":"'[1]MONE(M)CAPARD'!U364","v":11.577063060639652},{"$f":"'[1]MONE(M)CAPARD'!V364","v":5.4332000000000003},{"$f":"'[1]MONE(M)CAPARD'!W364","v":7.8},null,null,{"$f":"'[1]MONE(M)CAPARD'!AS364","v":4},{"$f":"'[1]MONE(M)CAPARD'!AT364","v":"n.a."},{"$f":"'[1]MONE(M)CAPARD'!AU364","v":2.75},{"$f":"'[1]MONE(M)CAPARD'!AV364","v":5.75},{"$f":"'[1]MONE(M)CAPARD'!AW364","v":"n.a."},{"$f":"'[1]MONE(M)CAPARD'!AX364","v":5},{"$f":"'[1]MONE(M)CAPARD'!AY364","v":"n.a."},null,null,{"$f":"+'Datos_Regional (M)'!CF357","v":2.0628879331394456},{"$f":"+'Datos_Regional (M)'!CG357","v":5.8274132617423868},{"$f":"+'Datos_Regional (M)'!CH357","v":4.996561155758239},{"$f":"+'Datos_Regional (M)'!CI357","v":12.031426252513256},{"$f":"+'Datos_Regional (M)'!CJ357","v":-21.173511787386467},{"$f":"+'Datos_Regional (M)'!CK357","v":11.493495778088336},{"$f":"+'Datos_Regional (M)'!CL357","v":1.9793777796590195},null,null,980.90297706916181,494.73666666666668,911.7833333333333,345.08313531153129,"",916.17500000000007,881.1931399166665,"","",null,null,1417.0868420519982,1012.5516666666666,1649.3333333333333,861.03821593052146,"",1707.6916666666666,1865.4391249166665,"","",null,null,"","",null,null,{"$f":"'[1]EXT Comercio(M)'!C364","v":988.80649175999633},{"$f":"'[1]EXT Comercio(M)'!D364","v":557.44000000000005},{"$f":"'[1]EXT Comercio(M)'!E364","v":918.1},{"$f":"'[1]EXT Comercio(M)'!F364","v":351.8027234501771},{"$f":"'[1]EXT Comercio(M)'!G364","v":""},{"$f":"'[1]EXT Comercio(M)'!H364","v":985.4},{"$f":"'[1]EXT Comercio(M)'!I364","v":854.47463200000004},{"$f":"'[1]EXT Comercio(M)'!K364","v":""},{"$f":"'[1]EXT Comercio(M)'!L364","v":""},null,null,{"$f":"'[1]EXT Comercio(M)'!AG364","v":1429.6507861599969},{"$f":"'[1]EXT Comercio(M)'!AH364","v":1075.1200000000008},{"$f":"'[1]EXT Comercio(M)'!AI364","v":1703.9},{"$f":"'[1]EXT Comercio(M)'!AJ364","v":865.57159808305926},{"$f":"'[1]EXT Comercio(M)'!AK364","v":""},{"$f":"'[1]EXT Comercio(M)'!AL364","v":1815.3000000000002},{"$f":"'[1]EXT Comercio(M)'!AM364","v":1945.318096},{"$f":"'[1]EXT Comercio(M)'!AO364","v":""},{"$f":"'[1]EXT Comercio(M)'!AP364","v":""},null,null,{"$f":"'[1]EXT Comercio(M)'!$BS364","v":""},{"$f":"'[1]EXT Comercio(M)'!$BT364","v":""}]
[null,null,"Agosto",{"$f":"'[1]REAL IPC(M)'!AD365","v":2.8558096427309088},{"$f":"'[1]REAL IPC(M)'!AE365","v":-0.48797799662851316},{"$f":"'[1]REAL IPC(M)'!AF365","v":3.0129335684891196},{"$f":"'[1]REAL IPC(M)'!AG365","v":4.2946708463949808},{"$f":"'[1]REAL IPC(M)'!AH365","v":6.3016169456871536},{"$f":"'[1]REAL IPC(M)'!AI365","v":1.7155165781983148},{"$f":"'[1]REAL IPC(M)'!AJ365","v":-0.60515318354545367},null,null,{"$f":"'[1]REAL IMAE(M)'!AG365","v":1.9599511707779762},{"$f":"'[1]REAL IMAE(M)'!AH365","v":2.3173515170684102},{"$f":"'[1]REAL IMAE(M)'!AI365","v":3.7203107228254444},{"$f":"'[1]REAL IMAE(M)'!AJ365","v":2.1581579930140866},{"$f":"'[1]REAL IMAE(M)'!AK365","v":""},{"$f":"'[1]REAL IMAE(M)'!AL365","v":4.8725447578876038},{"$f":"'[1]REAL IMAE(M)'!AM365","v":3.889817502333679},null,null,{"$f":"'[1]EXT ITCER(M)'!C365","v":78.951662847059339},{"$f":"'[1]EXT ITCER(M)'!D365","v":97.147120206980944},{"$f":"'[1]EXT ITCER(M)'!E365","v":54.209486287753357},{"$f":"'[1]EXT ITCER(M)'!F365","v":79.143412564835486},{"$f":"'[1]EXT ITCER(M)'!G365","v":107.587912260172},{"$f":"'[1]EXT ITCER(M)'!H365","v":112.71910661770359},{"$f":"'[1]EXT ITCER(M)'!I365","v":93.364429792948528},null,null,{"$f":"'[1]EXT TC(M)'!J365","v":8.6150014139244002E-2},{"$f":"'[1]EXT TC(M)'!K365","v":0},{"$f":"'[1]EXT TC(M)'!L365","v":2.1613965577313516},{"$f":"'[1]EXT TC(M)'!M365","v":2.2627662230626711},{"$f":"'[1]EXT TC(M)'!N365","v":4.1785587537698152},{"$f":"'[1]EXT TC(M)'!O365","v":2.8525788231123146},{"$f":"'[1]EXT TC(M)'!P365","v":0},null,null,{"$f":"'[1]EXT RIN(M)'!C365","v":7707.7112999999999},{"$f":"'[1]EXT RIN(M)'!D365","v":4575.57},{"$f":"'[1]EXT RIN(M)'!E365","v":14700.1},{"$f":"'[1]EXT RIN(M)'!F365","v":5063.6000000000004},{"$f":"'[1]EXT RIN(M)'!G365","v":1995.7},{"$f":"'[1]EXT RIN(M)'!H365","v":7899.7222149838335},{"$f":"'[1]EXT RIN(M)'!I365","v":3933.1099999999997},null,null,{"$f":"'[1]EXT RIN(M)'!P365","v":69.7087590764895},{"$f":"'[1]EXT RIN(M)'!Q365","v":125.44947127235977},{"$f":"'[1]EXT RIN(M)'!R365","v":125.61745432092557},{"$f":"'[1]EXT RIN(M)'!S365","v":97.761454315972045},{"$f":"'[1]EXT RIN(M)'!T365","v":126.39621095205766},{"$f":"'[1]EXT RIN(M)'!U365","v":107.68050490078073},{"$f":"'[1]EXT RIN(M)'!V365","v":231.80392988908142},null,null,{"$f":"+'[1]MONE(M)CAPARD'!AE365","v":2.9110561354476667},{"$f":"'[1]MONE(M)CAPARD'!AF365","v":4.901898181169754},{"$f":"'[1]MONE(M)CAPARD'!AG365","v":1.928948494792414},{"$f":"'[1]MONE(M)CAPARD'!AH365","v":3.936278929966941},{"$f":"'[1]MONE(M)CAPARD'!AI365","v":5.377538908549802},{"$f":"'[1]MONE(M)CAPARD'!AJ365","v":4.2615753895023536},{"$f":"'[1]MONE(M)CAPARD'!AK365","v":2.8423537779201618},null,null,{"$f":"'[1]MONE(M)CAPARD'!AL365","v":2.98},{"$f":"'[1]MONE(M)CAPARD'!AM365","v":4.3899999999999997},{"$f":"'[1]MONE(M)CAPARD'!AN365","v":3.19},{"$f":"'[1]MONE(M)CAPARD'!AO365","v":3.74},{"$f":"'[1]MONE(M)CAPARD'!AP365","v":5.9390031513538801},{"$f":"'[1]MONE(M)CAPARD'!AQ365","v":1.7349000000000001},{"$f":"'[1]MONE(M)CAPARD'!AR365","v":2.2200000000000002},null,null,{"$f":"'[1]MONE(M)CAPARD'!J365","v":8.4041680847144988},{"$f":"'[1]MONE(M)CAPARD'!K365","v":7.1528824893009952},{"$f":"'[1]MONE(M)CAPARD'!L365","v":9.4911057212155843},{"$f":"'[1]MONE(M)CAPARD'!M365","v":12.412263300270515},{"$f":"'[1]MONE(M)CAPARD'!N365","v":10.714148561672269},{"$f":"'[1]MONE(M)CAPARD'!O365","v":10.144551951293309},{"$f":"'[1]MONE(M)CAPARD'!P365","v":9.2410758482348978},null,null,{"$f":"'[1]MONE(M)CAPARD'!Q365","v":6.62},{"$f":"'[1]MONE(M)CAPARD'!R365","v":6.63},{"$f":"'[1]MONE(M)CAPARD'!S365","v":6.52},{"$f":"'[1]MONE(M)CAPARD'!T365","v":8.23},{"$f":"'[1]MONE(M)CAPARD'!U365","v":11.90008179653824},{"$f":"'[1]MONE(M)CAPARD'!V365","v":5.5617000000000001},{"$f":"'[1]MONE(M)CAPARD'!W365","v":8.58},null,null,{"$f":"'[1]MONE(M)CAPARD'!AS365","v":4},{"$f":"'[1]MONE(M)CAPARD'!AT365","v":"n.a."},{"$f":"'[1]MONE(M)CAPARD'!AU365","v":2.75},{"$f":"'[1]MONE(M)CAPARD'!AV365","v":5.75},{"$f":"'[1]MONE(M)CAPARD'!AW365","v":"n.a."},{"$f":"'[1]MONE(M)CAPARD'!AX365","v":4.75},{"$f":"'[1]MONE(M)CAPARD'!AY365","v":"n.a."},null,null,{"$f":"+'Datos_Regional (M)'!CF358","v":1.4694272732932001},{"$f":"+'Datos_Regional (M)'!CG358","v":5.3915697876274038},{"$f":"+'Datos_Regional (M)'!CH358","v":4.9134014922360469},{"$f":"+'Datos_Regional (M)'!CI358","v":10.795985499771454},{"$f":"+'Datos_Regional (M)'!CJ358","v":-20.784645675963354},{"$f":"+'Datos_Regional (M)'!CK358","v":11.316231234616181},{"$f":"+'Datos_Regional (M)'!CL358","v":1.9732741997083414},null,null,984.45843969666169,494.07166666666666,913.64166666666677,342.40307871353269,"",916.58333333333337,865.64273533333323,"","",null,null,1409.0628664778317,1010.3533333333331,1648.1083333333336,853.617252931385,"",1705.9999999999998,1843.0804953333336,"","",null,null,"","",null,null,{"$f":"'[1]EXT Comercio(M)'!C365","v":1021.9801225399915},{"$f":"'[1]EXT Comercio(M)'!D365","v":486.63000000000011},{"$f":"'[1]EXT Comercio(M)'!E365","v":957.8},{"$f":"'[1]EXT Comercio(M)'!F365","v":320.71584188789495},{"$f":"'[1]EXT Comercio(M)'!G365","v":""},{"$f":"'[1]EXT Comercio(M)'!H365","v":918.90000000000009},{"$f":"'[1]EXT Comercio(M)'!I365","v":838.69291699999997},{"$f":"'[1]EXT Comercio(M)'!K365","v":""},{"$f":"'[1]EXT Comercio(M)'!L365","v":""},null,null,{"$f":"'[1]EXT Comercio(M)'!AG365","v":1368.7108828800042},{"$f":"'[1]EXT Comercio(M)'!AH365","v":1018.7199999999993},{"$f":"'[1]EXT Comercio(M)'!AI365","v":1737.2},{"$f":"'[1]EXT Comercio(M)'!AJ365","v":858.73500027277532},{"$f":"'[1]EXT Comercio(M)'!AK365","v":""},{"$f":"'[1]EXT Comercio(M)'!AL365","v":1776.6},{"$f":"'[1]EXT Comercio(M)'!AM365","v":1757.2320890000001},{"$f":"'[1]EXT Comercio(M)'!AO365","v":""},{"$f":"'[1]EXT Comercio(M)'!AP365","v":""},null,null,{"$f":"'[1]EXT Comercio(M)'!$BS365","v":""},{"$f":"'[1]EXT Comercio(M)'!$BT365","v":""}]
[null,null,"Setiembre",{"$f":"'[1]REAL IPC(M)'!AD366","v":2.5290714162969512},{"$f":"'[1]REAL IPC(M)'!AE366","v":-0.6828662646328576},{"$f":"'[1]REAL IPC(M)'!AF366","v":1.8043684710351577},{"$f":"'[1]REAL IPC(M)'!AG366","v":4.4186775305546737},{"$f":"'[1]REAL IPC(M)'!AH366","v":5.6241457216649771},{"$f":"'[1]REAL IPC(M)'!AI366","v":2.0216773003305368},{"$f":"'[1]REAL IPC(M)'!AJ366","v":-0.61674560049748905},null,null,{"$f":"'[1]REAL IMAE(M)'!AG366","v":2.3452114996184639},{"$f":"'[1]REAL IMAE(M)'!AH366","v":2.3880143603283899},{"$f":"'[1]REAL IMAE(M)'!AI366","v":3.8568172234898923},{"$f":"'[1]REAL IMAE(M)'!AJ366","v":2.1198603409360883},{"$f":"'[1]REAL IMAE(M)'!AK366","v":""},{"$f":"'[1]REAL IMAE(M)'!AL366","v":5.1623968101288282},{"$f":"'[1]REAL IMAE(M)'!AM366","v":4.1739728070113493},null,null,{"$f":"'[1]EXT ITCER(M)'!C366","v":80.406877728281344},{"$f":"'[1]EXT ITCER(M)'!D366","v":97.370814131293187},{"$f":"'[1]EXT ITCER(M)'!E366","v":54.84849358017226},{"$f":"'[1]EXT ITCER(M)'!F366","v":79.295899317447081},{"$f":"'[1]EXT ITCER(M)'!G366","v":108.12438965351031},{"$f":"'[1]EXT ITCER(M)'!H366","v":113.42659357886437},{"$f":"'[1]EXT ITCER(M)'!I366","v":93.481960355150406},null,null,{"$f":"'[1]EXT TC(M)'!J366","v":-0.22944940247074655},{"$f":"'[1]EXT TC(M)'!K366","v":0},{"$f":"'[1]EXT TC(M)'!L366","v":0.57375152165754684},{"$f":"'[1]EXT TC(M)'!M366","v":2.3556820443365973},{"$f":"'[1]EXT TC(M)'!N366","v":4.0011090424467888},{"$f":"'[1]EXT TC(M)'!O366","v":3.5851371968072421},{"$f":"'[1]EXT TC(M)'!P366","v":0},null,null,{"$f":"'[1]EXT RIN(M)'!C366","v":7462.5070999999998},{"$f":"'[1]EXT RIN(M)'!D366","v":4466.62},{"$f":"'[1]EXT RIN(M)'!E366","v":14516},{"$f":"'[1]EXT RIN(M)'!F366","v":5055.5},{"$f":"'[1]EXT RIN(M)'!G366","v":2051.1},{"$f":"'[1]EXT RIN(M)'!H366","v":7587.8028349934102},{"$f":"'[1]EXT RIN(M)'!I366","v":3288.77},null,null,{"$f":"'[1]EXT RIN(M)'!P366","v":67.902159182623436},{"$f":"'[1]EXT RIN(M)'!Q366","v":123.11915154949827},{"$f":"'[1]EXT RIN(M)'!R366","v":125.24900268815647},{"$f":"'[1]EXT RIN(M)'!S366","v":96.420951541849604},{"$f":"'[1]EXT RIN(M)'!T366","v":129.01587201867699},{"$f":"'[1]EXT RIN(M)'!U366","v":106.7064983106772},{"$f":"'[1]EXT RIN(M)'!V366","v":188.7732610866845},null,null,{"$f":"+'[1]MONE(M)CAPARD'!AE366","v":3.0927116962058347},{"$f":"'[1]MONE(M)CAPARD'!AF366","v":5.0775390659880442},{"$f":"'[1]MONE(M)CAPARD'!AG366","v":3.1291697761193831},{"$f":"'[1]MONE(M)CAPARD'!AH366","v":3.8607292917166975},{"$f":"'[1]MONE(M)CAPARD'!AI366","v":4.1950019391965201},{"$f":"'[1]MONE(M)CAPARD'!AJ366","v":3.2028709840265255},{"$f":"'[1]MONE(M)CAPARD'!AK366","v":2.864411733846119},null,null,{"$f":"'[1]MONE(M)CAPARD'!AL366","v":3.95},{"$f":"'[1]MONE(M)CAPARD'!AM366","v":4.3600000000000003},{"$f":"'[1]MONE(M)CAPARD'!AN366","v":3.16},{"$f":"'[1]MONE(M)CAPARD'!AO366","v":3.71},{"$f":"'[1]MONE(M)CAPARD'!AP366","v":5.8458874799401324},{"$f":"'[1]MONE(M)CAPARD'!AQ366","v":1.7259},{"$f":"'[1]MONE(M)CAPARD'!AR366","v":2.23},null,null,{"$f":"'[1]MONE(M)CAPARD'!J366","v":10.165718805141102},{"$f":"'[1]MONE(M)CAPARD'!K366","v":7.5242468077507016},{"$f":"'[1]MONE(M)CAPARD'!L366","v":10.781100746268635},{"$f":"'[1]MONE(M)CAPARD'!M366","v":12.336224489795931},{"$f":"'[1]MONE(M)CAPARD'!N366","v":10.165412516564942},{"$f":"'[1]MONE(M)CAPARD'!O366","v":9.9172283453887928},{"$f":"'[1]MONE(M)CAPARD'!P366","v":8.921770225851926},null,null,{"$f":"'[1]MONE(M)CAPARD'!Q366","v":7.24},{"$f":"'[1]MONE(M)CAPARD'!R366","v":6.79},{"$f":"'[1]MONE(M)CAPARD'!S366","v":6.51},{"$f":"'[1]MONE(M)CAPARD'!T366","v":8.23},{"$f":"'[1]MONE(M)CAPARD'!U366","v":12.82178287773236},{"$f":"'[1]MONE(M)CAPARD'!V366","v":5.4379999999999997},{"$f":"'[1]MONE(M)CAPARD'!W366","v":8.25},null,null,{"$f":"'[1]MONE(M)CAPARD'!AS366","v":3.75},{"$f":"'[1]MONE(M)CAPARD'!AT366","v":"n.a."},{"$f":"'[1]MONE(M)CAPARD'!AU366","v":2.75},{"$f":"'[1]MONE(M)CAPARD'!AV366","v":5.75},{"$f":"'[1]MONE(M)CAPARD'!AW366","v":"n.a."},{"$f":"'[1]MONE(M)CAPARD'!AX366","v":4.5},{"$f":"'[1]MONE(M)CAPARD'!AY366","v":"n.a."},null,null,{"$f":"+'Datos_Regional (M)'!CF359","v":0.54990434246708908},{"$f":"+'Datos_Regional (M)'!CG359","v":4.9219318580954852},{"$f":"+'Datos_Regional (M)'!CH359","v":4.4104310948471559},{"$f":"+'Datos_Regional (M)'!CI359","v":10.340104726581668},{"$f":"+'Datos_Regional (M)'!CJ359","v":-19.790415911164306},{"$f":"+'Datos_Regional (M)'!CK359","v":12.174145655490175},{"$f":"+'Datos_Regional (M)'!CL359","v":2.1931830327122537},null,null,988.56040778832823,493.96333333333337,916.97499999999991,343.95745761074636,"",915.80000000000007,865.68435683333337,"","",null,null,1421.7306322778329,1001.8216666666667,1648.0666666666666,847.47542385581926,"",1710.7249999999997,1835.2776821666666,"","",null,null,"","",null,null,{"$f":"'[1]EXT Comercio(M)'!C366","v":985.7717710099954},{"$f":"'[1]EXT Comercio(M)'!D366","v":462.21999999999935},{"$f":"'[1]EXT Comercio(M)'!E366","v":877},{"$f":"'[1]EXT Comercio(M)'!F366","v":297.95504210588587},{"$f":"'[1]EXT Comercio(M)'!G366","v":""},{"$f":"'[1]EXT Comercio(M)'!H366","v":901},{"$f":"'[1]EXT Comercio(M)'!I366","v":902.40713299999993},{"$f":"'[1]EXT Comercio(M)'!K366","v":""},{"$f":"'[1]EXT Comercio(M)'!L366","v":""},null,null,{"$f":"'[1]EXT Comercio(M)'!AG366","v":1331.4838734200046},{"$f":"'[1]EXT Comercio(M)'!AH366","v":944.70000000000073},{"$f":"'[1]EXT Comercio(M)'!AI366","v":1578.6000000000001},{"$f":"'[1]EXT Comercio(M)'!AJ366","v":807.69175331890006},{"$f":"'[1]EXT Comercio(M)'!AK366","v":""},{"$f":"'[1]EXT Comercio(M)'!AL366","v":1665.8},{"$f":"'[1]EXT Comercio(M)'!AM366","v":1674.3500690000001},{"$f":"'[1]EXT Comercio(M)'!AO366","v":""},{"$f":"'[1]EXT Comercio(M)'!AP366","v":""},null,null,{"$f":"'[1]EXT Comercio(M)'!$BS366","v":""},{"$f":"'[1]EXT Comercio(M)'!$BT366","v":""}]
[null,null,"Octubre",{"$f":"'[1]REAL IPC(M)'!AD367","v":2.0724346013538129},{"$f":"'[1]REAL IPC(M)'!AE367","v":-0.86710316758095018},{"$f":"'[1]REAL IPC(M)'!AF367","v":2.1696396068438428},{"$f":"'[1]REAL IPC(M)'!AG367","v":4.0822686195076425},{"$f":"'[1]REAL IPC(M)'!AH367","v":5.4396854509802495},{"$f":"'[1]REAL IPC(M)'!AI367","v":2.4773738303420911},{"$f":"'[1]REAL IPC(M)'!AJ367","v":-0.74885649253653375},null,null,{"$f":"'[1]REAL IMAE(M)'!AG367","v":2.6158162896634267},{"$f":"'[1]REAL IMAE(M)'!AH367","v":2.317575731571444},{"$f":"'[1]REAL IMAE(M)'!AI367","v":3.9327690147454559},{"$f":"'[1]REAL IMAE(M)'!AJ367","v":2.2542927585807062},{"$f":"'[1]REAL IMAE(M)'!AK367","v":""},{"$f":"'[1]REAL IMAE(M)'!AL367","v":5.4504289199104177},{"$f":"'[1]REAL IMAE(M)'!AM367","v":3.214699985150367},null,null,{"$f":"'[1]EXT ITCER(M)'!C367","v":81.104168749627803},{"$f":"'[1]EXT ITCER(M)'!D367","v":97.549869429115631},{"$f":"'[1]EXT ITCER(M)'!E367","v":54.930394069020778},{"$f":"'[1]EXT ITCER(M)'!F367","v":79.381505354182266},{"$f":"'[1]EXT ITCER(M)'!G367","v":108.43576891165534},{"$f":"'[1]EXT ITCER(M)'!H367","v":115.30430378772635},{"$f":"'[1]EXT ITCER(M)'!I367","v":93.744768510775657},null,null,{"$f":"'[1]EXT TC(M)'!J367","v":-1.8996912625155788},{"$f":"'[1]EXT TC(M)'!K367","v":0},{"$f":"'[1]EXT TC(M)'!L367","v":0.39552661859118254},{"$f":"'[1]EXT TC(M)'!M367","v":2.3300166328949672},{"$f":"'[1]EXT TC(M)'!N367","v":3.9448736612924273},{"$f":"'[1]EXT TC(M)'!O367","v":5.4475932431647198},{"$f":"'[1]EXT TC(M)'!P367","v":0},null,null,{"$f":"'[1]EXT RIN(M)'!C367","v":7692.7},{"$f":"'[1]EXT RIN(M)'!D367","v":4861.3500000000004},{"$f":"'[1]EXT RIN(M)'!E367","v":14631},{"$f":"'[1]EXT RIN(M)'!F367","v":5137.6000000000004},{"$f":"'[1]EXT RIN(M)'!G367","v":2118.1999999999998},{"$f":"'[1]EXT RIN(M)'!H367","v":7491.6},{"$f":"'[1]EXT RIN(M)'!I367","v":3389.5703558499995},null,null,{"$f":"'[1]EXT RIN(M)'!P367","v":70.412471695428664},{"$f":"'[1]EXT RIN(M)'!Q367","v":122.69697870662819},{"$f":"'[1]EXT RIN(M)'!R367","v":124.67590346082112},{"$f":"'[1]EXT RIN(M)'!S367","v":100.71408433876239},{"$f":"'[1]EXT RIN(M)'!T367","v":131.56971834227414},{"$f":"'[1]EXT RIN(M)'!U367","v":109.23754628842136},{"$f":"'[1]EXT RIN(M)'!V367","v":175.14199434339341},null,null,{"$f":"+'[1]MONE(M)CAPARD'!AE367","v":3.5049280568436023},{"$f":"'[1]MONE(M)CAPARD'!AF367","v":5.171949303820055},{"$f":"'[1]MONE(M)CAPARD'!AG367","v":2.7311052519062078},{"$f":"'[1]MONE(M)CAPARD'!AH367","v":4.2156377245508914},{"$f":"'[1]MONE(M)CAPARD'!AI367","v":5.5967529262535196},{"$f":"'[1]MONE(M)CAPARD'!AJ367","v":4.0769254846194007},{"$f":"'[1]MONE(M)CAPARD'!AK367","v":3.0114076139704915},null,null,{"$f":"'[1]MONE(M)CAPARD'!AL367","v":3.32},{"$f":"'[1]MONE(M)CAPARD'!AM367","v":4.26},{"$f":"'[1]MONE(M)CAPARD'!AN367","v":3.16},{"$f":"'[1]MONE(M)CAPARD'!AO367","v":3.71},{"$f":"'[1]MONE(M)CAPARD'!AP367","v":6.0909202590264462},{"$f":"'[1]MONE(M)CAPARD'!AQ367","v":1.4930000000000001},{"$f":"'[1]MONE(M)CAPARD'!AR367","v":2.2400000000000002},null,null,{"$f":"'[1]MONE(M)CAPARD'!J367","v":8.9471464595839656},{"$f":"'[1]MONE(M)CAPARD'!K367","v":7.6232042127811406},{"$f":"'[1]MONE(M)CAPARD'!L367","v":10.306741252761332},{"$f":"'[1]MONE(M)CAPARD'!M367","v":12.670488023952087},{"$f":"'[1]MONE(M)CAPARD'!N367","v":10.436365719573363},{"$f":"'[1]MONE(M)CAPARD'!O367","v":9.5991200808322557},{"$f":"'[1]MONE(M)CAPARD'!P367","v":9.1372816191831348},null,null,{"$f":"'[1]MONE(M)CAPARD'!Q367","v":7.4},{"$f":"'[1]MONE(M)CAPARD'!R367","v":6.69},{"$f":"'[1]MONE(M)CAPARD'!S367","v":6.47},{"$f":"'[1]MONE(M)CAPARD'!T367","v":8.31},{"$f":"'[1]MONE(M)CAPARD'!U367","v":10.341874284685677},{"$f":"'[1]MONE(M)CAPARD'!V367","v":4.9420000000000002},{"$f":"'[1]MONE(M)CAPARD'!W367","v":8.32},null,null,{"$f":"'[1]MONE(M)CAPARD'!AS367","v":3.25},{"$f":"'[1]MONE(M)CAPARD'!AT367","v":"n.a."},{"$f":"'[1]MONE(M)CAPARD'!AU367","v":2.75},{"$f":"'[1]MONE(M)CAPARD'!AV367","v":5.75},{"$f":"'[1]MONE(M)CAPARD'!AW367","v":"n.a."},{"$f":"'[1]MONE(M)CAPARD'!AX367","v":4.5},{"$f":"'[1]MONE(M)CAPARD'!AY367","v":"n.a."},null,null,{"$f":"+'Datos_Regional (M)'!CF360","v":-0.44931980123553705},{"$f":"+'Datos_Regional (M)'!CG360","v":5.0528734986357682},{"$f":"+'Datos_Regional (M)'!CH360","v":4.110745002232008},{"$f":"+'Datos_Regional (M)'!CI360","v":9.6923527817464503},{"$f":"+'Datos_Regional (M)'!CJ360","v":-17.884464829592073},{"$f":"+'Datos_Regional (M)'!CK360","v":12.460034917443451},{"$f":"+'Datos_Regional (M)'!CL360","v":2.4077771400677461},null,null,989.27746589582841,494.15583333333331,918.44999999999993,341.30092397651748,"",919.15,873.43051916666673,"","",null,null,1413.4696467028323,1001.7583333333332,1649.95,851.02202140166662,"",1694.3083333333332,1817.9090005833332,"","",null,null,"","",null,null,{"$f":"'[1]EXT Comercio(M)'!C367","v":1035.9557809699957},{"$f":"'[1]EXT Comercio(M)'!D367","v":492.93000000000029},{"$f":"'[1]EXT Comercio(M)'!E367","v":875.90000000000009},{"$f":"'[1]EXT Comercio(M)'!F367","v":254.64013999413314},{"$f":"'[1]EXT Comercio(M)'!G367","v":""},{"$f":"'[1]EXT Comercio(M)'!H367","v":959.99999999999989},{"$f":"'[1]EXT Comercio(M)'!I367","v":1079.198052},{"$f":"'[1]EXT Comercio(M)'!K367","v":""},{"$f":"'[1]EXT Comercio(M)'!L367","v":""},null,null,{"$f":"'[1]EXT Comercio(M)'!AG367","v":1526.7624747299942},{"$f":"'[1]EXT Comercio(M)'!AH367","v":1084.0299999999988},{"$f":"'[1]EXT Comercio(M)'!AI367","v":1868.7},{"$f":"'[1]EXT Comercio(M)'!AJ367","v":895.78229115445208},{"$f":"'[1]EXT Comercio(M)'!AK367","v":""},{"$f":"'[1]EXT Comercio(M)'!AL367","v":1729.8999999999999},{"$f":"'[1]EXT Comercio(M)'!AM367","v":1963.456784},{"$f":"'[1]EXT Comercio(M)'!AO367","v":""},{"$f":"'[1]EXT Comercio(M)'!AP367","v":""},null,null,{"$f":"'[1]EXT Comercio(M)'!$BS367","v":""},{"$f":"'[1]EXT Comercio(M)'!$BT367","v":""}]
[null,null,"Noviembre",{"$f":"'[1]REAL IPC(M)'!AD368","v":1.8573771923603606},{"$f":"'[1]REAL IPC(M)'!AE368","v":-0.5761389824499128},{"$f":"'[1]REAL IPC(M)'!AF368","v":2.9207740051113547},{"$f":"'[1]REAL IPC(M)'!AG368","v":3.8437693738375627},{"$f":"'[1]REAL IPC(M)'!AH368","v":5.7188934302477552},{"$f":"'[1]REAL IPC(M)'!AI368","v":3.2250615763547001},{"$f":"'[1]REAL IPC(M)'!AJ368","v":-0.32859718304499225},null,null,{"$f":"'[1]REAL IMAE(M)'!AG368","v":2.738808380066001},{"$f":"'[1]REAL IMAE(M)'!AH368","v":2.0548403290748656},{"$f":"'[1]REAL IMAE(M)'!AI368","v":3.9437858235524237},{"$f":"'[1]REAL IMAE(M)'!AJ368","v":2.5297003589765428},{"$f":"'[1]REAL IMAE(M)'!AK368","v":""},{"$f":"'[1]REAL IMAE(M)'!AL368","v":5.7201569425073169},{"$f":"'[1]REAL IMAE(M)'!AM368","v":3.8629346551567636},null,null,{"$f":"'[1]EXT ITCER(M)'!C368","v":80.240939766023018},{"$f":"'[1]EXT ITCER(M)'!D368","v":97.384563692279599},{"$f":"'[1]EXT ITCER(M)'!E368","v":54.275799578286367},{"$f":"'[1]EXT ITCER(M)'!F368","v":79.108137359943825},{"$f":"'[1]EXT ITCER(M)'!G368","v":107.90496389989747},{"$f":"'[1]EXT ITCER(M)'!H368","v":115.13313833629735},{"$f":"'[1]EXT ITCER(M)'!I368","v":93.708449669205052},null,null,{"$f":"'[1]EXT TC(M)'!J368","v":-5.690158365890853},{"$f":"'[1]EXT TC(M)'!K368","v":0},{"$f":"'[1]EXT TC(M)'!L368","v":7.0968808882947473E-2},{"$f":"'[1]EXT TC(M)'!M368","v":1.7109912085451606},{"$f":"'[1]EXT TC(M)'!N368","v":3.631220225813494},{"$f":"'[1]EXT TC(M)'!O368","v":5.3881334129099816},{"$f":"'[1]EXT TC(M)'!P368","v":0},null,null,{"$f":"'[1]EXT RIN(M)'!C368","v":9150.2999999999993},{"$f":"'[1]EXT RIN(M)'!D368","v":4062.36},{"$f":"'[1]EXT RIN(M)'!E368","v":14604.1},{"$f":"'[1]EXT RIN(M)'!F368","v":5124.0364783089844},{"$f":"'[1]EXT RIN(M)'!G368","v":2161.5},{"$f":"'[1]EXT RIN(M)'!H368","v":7145.6},{"$f":"'[1]EXT RIN(M)'!I368","v":4570.8718668299989},null,null,{"$f":"'[1]EXT RIN(M)'!P368","v":79.409872052348121},{"$f":"'[1]EXT RIN(M)'!Q368","v":101.61804008128723},{"$f":"'[1]EXT RIN(M)'!R368","v":123.32886156918912},{"$f":"'[1]EXT RIN(M)'!S368","v":96.956944408187013},{"$f":"'[1]EXT RIN(M)'!T368","v":127.21999056266353},{"$f":"'[1]EXT RIN(M)'!U368","v":98.850700519679194},{"$f":"'[1]EXT RIN(M)'!V368","v":228.01704080363129},null,null,{"$f":"+'[1]MONE(M)CAPARD'!AE368","v":4.7052289581231257},{"$f":"'[1]MONE(M)CAPARD'!AF368","v":4.8440474280110468},{"$f":"'[1]MONE(M)CAPARD'!AG368","v":1.9716388790351189},{"$f":"'[1]MONE(M)CAPARD'!AH368","v":4.4646208955223949},{"$f":"'[1]MONE(M)CAPARD'!AI368","v":3.7312308829135605},{"$f":"'[1]MONE(M)CAPARD'!AJ368","v":3.2791827604205306},{"$f":"'[1]MONE(M)CAPARD'!AK368","v":2.5569994110802794},null,null,{"$f":"'[1]MONE(M)CAPARD'!AL368","v":3.11},{"$f":"'[1]MONE(M)CAPARD'!AM368","v":4.24},{"$f":"'[1]MONE(M)CAPARD'!AN368","v":3.21},{"$f":"'[1]MONE(M)CAPARD'!AO368","v":3.7},{"$f":"'[1]MONE(M)CAPARD'!AP368","v":5.826547800697413},{"$f":"'[1]MONE(M)CAPARD'!AQ368","v":1.8753},{"$f":"'[1]MONE(M)CAPARD'!AR368","v":2.2200000000000002},null,null,{"$f":"'[1]MONE(M)CAPARD'!J368","v":10.091035427142884},{"$f":"'[1]MONE(M)CAPARD'!K368","v":7.2780707854149878},{"$f":"'[1]MONE(M)CAPARD'!L368","v":9.4725540971975875},{"$f":"'[1]MONE(M)CAPARD'!M368","v":13.01592835820896},{"$f":"'[1]MONE(M)CAPARD'!N368","v":10.229082673031778},{"$f":"'[1]MONE(M)CAPARD'!O368","v":8.4153385728133401},{"$f":"'[1]MONE(M)CAPARD'!P368","v":8.9981648994302645},null,null,{"$f":"'[1]MONE(M)CAPARD'!Q368","v":7.84},{"$f":"'[1]MONE(M)CAPARD'!R368","v":6.66},{"$f":"'[1]MONE(M)CAPARD'!S368","v":6.44},{"$f":"'[1]MONE(M)CAPARD'!T368","v":8.2899999999999991},{"$f":"'[1]MONE(M)CAPARD'!U368","v":9.6679047855137057},{"$f":"'[1]MONE(M)CAPARD'!V368","v":5.9779},{"$f":"'[1]MONE(M)CAPARD'!W368","v":8.64},null,null,{"$f":"'[1]MONE(M)CAPARD'!AS368","v":3.25},{"$f":"'[1]MONE(M)CAPARD'!AT368","v":"n.a."},{"$f":"'[1]MONE(M)CAPARD'!AU368","v":2.75},{"$f":"'[1]MONE(M)CAPARD'!AV368","v":5.75},{"$f":"'[1]MONE(M)CAPARD'!AW368","v":"n.a."},{"$f":"'[1]MONE(M)CAPARD'!AX368","v":4.5},{"$f":"'[1]MONE(M)CAPARD'!AY368","v":"n.a."},null,null,{"$f":"+'Datos_Regional (M)'!CF361","v":-1.6049084940683245},{"$f":"+'Datos_Regional (M)'!CG361","v":4.5970950373659836},{"$f":"+'Datos_Regional (M)'!CH361","v":4.4345334877448961},{"$f":"+'Datos_Regional (M)'!CI361","v":8.9129389394190675},{"$f":"+'Datos_Regional (M)'!CJ361","v":-16.662603036635005},{"$f":"+'Datos_Regional (M)'!CK361","v":12.619671531389232},{"$f":"+'Datos_Regional (M)'!CL361","v":1.951645104805011},null,null,992.97566022166154,492.73166666666657,923.76666666666677,341.29077631937429,"",924.19166666666661,880.82735891666687,"","",null,null,1402.9131374286651,1002.0583333333335,1654.95,840.73308440977542,"",1689.5166666666671,1803.6508866666666,"","",null,null,"","",null,null,{"$f":"'[1]EXT Comercio(M)'!C368","v":1022.9352201199933},{"$f":"'[1]EXT Comercio(M)'!D368","v":461.70999999999913},{"$f":"'[1]EXT Comercio(M)'!E368","v":923.7},{"$f":"'[1]EXT Comercio(M)'!F368","v":292.73834056762905},{"$f":"'[1]EXT Comercio(M)'!G368","v":""},{"$f":"'[1]EXT Comercio(M)'!H368","v":1006.9},{"$f":"'[1]EXT Comercio(M)'!I368","v":950.48118100000011},{"$f":"'[1]EXT Comercio(M)'!K368","v":""},{"$f":"'[1]EXT Comercio(M)'!L368","v":""},null,null,{"$f":"'[1]EXT Comercio(M)'!AG368","v":1454.4586244599971},{"$f":"'[1]EXT Comercio(M)'!AH368","v":1018.0200000000023},{"$f":"'[1]EXT Comercio(M)'!AI368","v":1753.4},{"$f":"'[1]EXT Comercio(M)'!AJ368","v":821.82451545153538},{"$f":"'[1]EXT Comercio(M)'!AK368","v":""},{"$f":"'[1]EXT Comercio(M)'!AL368","v":1752.8999999999999},{"$f":"'[1]EXT Comercio(M)'!AM368","v":1546.661912},{"$f":"'[1]EXT Comercio(M)'!AO368","v":""},{"$f":"'[1]EXT Comercio(M)'!AP368","v":""},null,null,{"$f":"'[1]EXT Comercio(M)'!$BS368","v":""},{"$f":"'[1]EXT Comercio(M)'!$BT368","v":""}]
[null,null,"Diciembre ",{"$f":"'[1]REAL IPC(M)'!AD369","v":1.5224291162047174},{"$f":"'[1]REAL IPC(M)'!AE369","v":-8.9047195013276098E-3},{"$f":"'[1]REAL IPC(M)'!AF369","v":3.4055276015459901},{"$f":"'[1]REAL IPC(M)'!AG369","v":4.0841584158415811},{"$f":"'[1]REAL IPC(M)'!AH369","v":6.1297243704681899},{"$f":"'[1]REAL IPC(M)'!AI369","v":3.6599999999999957},{"$f":"'[1]REAL IPC(M)'!AJ369","v":-6.2580315385681165E-2},null,null,{"$f":"'[1]REAL IMAE(M)'!AG369","v":2.8030302815744572},{"$f":"'[1]REAL IMAE(M)'!AH369","v":1.6651425253016687},{"$f":"'[1]REAL IMAE(M)'!AI369","v":3.9065370408410858},{"$f":"'[1]REAL IMAE(M)'!AJ369","v":""},{"$f":"'[1]REAL IMAE(M)'!AK369","v":""},{"$f":"'[1]REAL IMAE(M)'!AL369","v":5.9652872560425969},{"$f":"'[1]REAL IMAE(M)'!AM369","v":""},null,null,{"$f":"'[1]EXT ITCER(M)'!C369","v":79.135085195240478},{"$f":"'[1]EXT ITCER(M)'!D369","v":97.191989730712578},{"$f":"'[1]EXT ITCER(M)'!E369","v":53.795878698389082},{"$f":"'[1]EXT ITCER(M)'!F369","v":78.734594081027396},{"$f":"'[1]EXT ITCER(M)'!G369","v":106.98722771304773},{"$f":"'[1]EXT ITCER(M)'!H369","v":114.96263292569174},{"$f":"'[1]EXT ITCER(M)'!I369","v":93.77365603581805},null,null,{"$f":"'[1]EXT TC(M)'!J369","v":-5.4908392498758856},{"$f":"'[1]EXT TC(M)'!K369","v":0},{"$f":"'[1]EXT TC(M)'!L369","v":-0.56382911142139969},{"$f":"'[1]EXT TC(M)'!M369","v":1.3019887588865635},null,{"$f":"'[1]EXT TC(M)'!O369","v":5.3740315381674142},{"$f":"'[1]EXT TC(M)'!P369","v":0},null,null,{"$f":"'[1]EXT RIN(M)'!C369","v":8912.2999999999993},{"$f":"'[1]EXT RIN(M)'!D369","v":3936.49},{"$f":"'[1]EXT RIN(M)'!E369","v":14789},{"$f":"'[1]EXT RIN(M)'!F369","v":5808.8569290984369},{"$f":"'[1]EXT RIN(M)'!G369","v":2208.4},{"$f":"'[1]EXT RIN(M)'!H369","v":8781.4},{"$f":"'[1]EXT RIN(M)'!I369","v":4143.34042013},null,null,{"$f":"'[1]EXT RIN(M)'!P369","v":74.257073164983126},{"$f":"'[1]EXT RIN(M)'!Q369","v":99.466947780793632},{"$f":"'[1]EXT RIN(M)'!R369","v":116.063651270137},{"$f":"'[1]EXT RIN(M)'!S369","v":100.07267971769384},{"$f":"'[1]EXT RIN(M)'!T369","v":""},{"$f":"'[1]EXT RIN(M)'!U369","v":98.925752495713681},{"$f":"'[1]EXT RIN(M)'!V369","v":0},null,null,{"$f":"+'[1]MONE(M)CAPARD'!AE369","v":4.1641742820754564},{"$f":"'[1]MONE(M)CAPARD'!AF369","v":4.2592839967940064},{"$f":"'[1]MONE(M)CAPARD'!AG369","v":1.4549245416078869},{"$f":"'[1]MONE(M)CAPARD'!AH369","v":4.2425683709869233},{"$f":"'[1]MONE(M)CAPARD'!AI369","v":3.4233928809168725},{"$f":"'[1]MONE(M)CAPARD'!AJ369","v":2.8301176924561107},{"$f":"'[1]MONE(M)CAPARD'!AK369","v":2.2339783460803062},null,null,{"$f":"'[1]MONE(M)CAPARD'!AL369","v":3.29},{"$f":"'[1]MONE(M)CAPARD'!AM369","v":4.25},{"$f":"'[1]MONE(M)CAPARD'!AN369","v":3.2},{"$f":"'[1]MONE(M)CAPARD'!AO369","v":3.72},{"$f":"'[1]MONE(M)CAPARD'!AP369","v":5.2920828330410599},{"$f":"'[1]MONE(M)CAPARD'!AQ369","v":1.6742999999999999},{"$f":"'[1]MONE(M)CAPARD'!AR369","v":2.17},null,null,{"$f":"'[1]MONE(M)CAPARD'!J369","v":8.8724934600264778},{"$f":"'[1]MONE(M)CAPARD'!K369","v":6.4594799180692757},{"$f":"'[1]MONE(M)CAPARD'!L369","v":8.9303469675599292},{"$f":"'[1]MONE(M)CAPARD'!M369","v":12.783733650416174},{"$f":"'[1]MONE(M)CAPARD'!N369","v":8.7475349671168079},{"$f":"'[1]MONE(M)CAPARD'!O369","v":8.4610264325680156},{"$f":"'[1]MONE(M)CAPARD'!P369","v":8.5279171128107087},null,null,{"$f":"'[1]MONE(M)CAPARD'!Q369","v":6.95},{"$f":"'[1]MONE(M)CAPARD'!R369","v":6.45},{"$f":"'[1]MONE(M)CAPARD'!S369","v":6.41},{"$f":"'[1]MONE(M)CAPARD'!T369","v":8.19},{"$f":"'[1]MONE(M)CAPARD'!U369","v":9.43580101742306},{"$f":"'[1]MONE(M)CAPARD'!V369","v":6.0696000000000003},{"$f":"'[1]MONE(M)CAPARD'!W369","v":8.4600000000000009},null,null,{"$f":"'[1]MONE(M)CAPARD'!AS369","v":2.75},{"$f":"'[1]MONE(M)CAPARD'!AT369","v":"n.a."},{"$f":"'[1]MONE(M)CAPARD'!AU369","v":2.75},{"$f":"'[1]MONE(M)CAPARD'!AV369","v":5.5},{"$f":"'[1]MONE(M)CAPARD'!AW369","v":"n.a."},{"$f":"'[1]MONE(M)CAPARD'!AX369","v":4.5},{"$f":"'[1]MONE(M)CAPARD'!AY369","v":"n.a."},null,null,{"$f":"+'Datos_Regional (M)'!CF362","v":-1.1082830129658494},{"$f":"+'Datos_Regional (M)'!CG362","v":0},{"$f":"+'Datos_Regional (M)'!CH362","v":0},{"$f":"+'Datos_Regional (M)'!CI362","v":0},{"$f":"+'Datos_Regional (M)'!CJ362","v":0},{"$f":"+'Datos_Regional (M)'!CK362","v":12.669752680717883},null,null,null,997.67632499916169,495.27583333333331,931.99166666666679,346.66536618278434,"",934.88333333333321,{"$f":"IF(EN174=\"\",\"\",+AVERAGE(EN163:EN174))","v":""},"","",null,null,1402.6711818978329,1001.4633333333335,1656.7833333333338,838.28194744160862,"",1690.6666666666667,1790.9813210000002,"","",null,null,"","",null,null,{"$f":"'[1]EXT Comercio(M)'!C369","v":913.89093436999542},{"$f":"'[1]EXT Comercio(M)'!D369","v":448.52000000000044},{"$f":"'[1]EXT Comercio(M)'!E369","v":998},{"$f":"'[1]EXT Comercio(M)'!F369","v":365.20518980580954},{"$f":"'[1]EXT Comercio(M)'!G369","v":""},{"$f":"'[1]EXT Comercio(M)'!H369","v":975.30000000000007},null,{"$f":"'[1]EXT Comercio(M)'!K369","v":""},{"$f":"'[1]EXT Comercio(M)'!L369","v":""},null,null,{"$f":"'[1]EXT Comercio(M)'!AG369","v":1318.8462367300044},{"$f":"'[1]EXT Comercio(M)'!AH369","v":901.23999999999978},{"$f":"'[1]EXT Comercio(M)'!AI369","v":1544.9},{"$f":"'[1]EXT Comercio(M)'!AJ369","v":836.96876313369989},{"$f":"'[1]EXT Comercio(M)'!AK369","v":""},{"$f":"'[1]EXT Comercio(M)'!AL369","v":1623.9},{"$f":"'[1]EXT Comercio(M)'!AM369","v":1619.8189259999999},{"$f":"'[1]EXT Comercio(M)'!AO369","v":""},{"$f":"'[1]EXT Comercio(M)'!AP369","v":""},null,null,{"$f":"'[1]EXT Comercio(M)'!$BS369","v":""},{"$f":"'[1]EXT Comercio(M)'!$BT369","v":""}]
[null,2020,"Enero",{"$f":"'[1]REAL IPC(M)'!AD370","v":1.5827643365524711},{"$f":"'[1]REAL IPC(M)'!AE370","v":-8.0185317177467214E-2},{"$f":"'[1]REAL IPC(M)'!AF370","v":1.7844294143042296},{"$f":"'[1]REAL IPC(M)'!AG370","v":4.2994123105474724},{"$f":"'[1]REAL IPC(M)'!AH370","v":""},{"$f":"'[1]REAL IPC(M)'!AI370","v":4.1740071086385537},{"$f":"'[1]REAL IPC(M)'!AJ370","v":0.3558122223510457},null,null,null,null,null,null,null,null,null,null,null,null,null,null,null,null,null,null,null,null,{"$f":"'[1]EXT TC(M)'!J370","v":-5.9604605812882241},{"$f":"'[1]EXT TC(M)'!K370","v":0},{"$f":"'[1]EXT TC(M)'!L370","v":-0.53039290043625931},{"$f":"'[1]EXT TC(M)'!M370","v":1.283238706455323},null,{"$f":"'[1]EXT TC(M)'!O370","v":5.4716743337854092},{"$f":"'[1]EXT TC(M)'!P370","v":0},null,null,{"$f":"'[1]EXT RIN(M)'!C370","v":8211.4246999999996},{"$f":"'[1]EXT RIN(M)'!D370","v":3948.04},{"$f":"'[1]EXT RIN(M)'!E370","v":14895.4},{"$f":"'[1]EXT RIN(M)'!F370","v":5763.9581638405589},null,{"$f":"'[1]EXT RIN(M)'!H370","v":10408.299999999999},null,null,null,null,null,null,null,null,null,null,null,null,null,null,null,null,null,null,null,null,null,null,null,null,null,null,null,null,null,null,null,null,null,null,null,null,null,null,null,null,null,null,null,null,null,null,null,null,{"$f":"'[1]MONE(M)CAPARD'!AS370","v":2.25},{"$f":"'[1]MONE(M)CAPARD'!AT370","v":"n.a."},{"$f":"'[1]MONE(M)CAPARD'!AU370","v":2.75},{"$f":"'[1]MONE(M)CAPARD'!AV370","v":5.5},{"$f":"'[1]MONE(M)CAPARD'!AW370","v":"n.a."},{"$f":"'[1]MONE(M)CAPARD'!AX370","v":4.5},{"$f":"'[1]MONE(M)CAPARD'!AY370","v":"n.a."}]
[null,null,"Febrero"]
[null,null,"Marzo"]
[null,null,"Abril"]
[null,null,"Mayo "]
[null,null,"Junio"]
[null,null,"Julio"]
[null,null,"Agosto"]
[null,null,"Setiembre"]
[null,null,"Octubre"]
[null,null,"Noviembre"]
[null,null,"Diciembre "]
[]
[]
[]
[]
[]
[]
[]
[]
[]
[]
[]
[]
[]
[]
[]
[]
[]
[]
[]
[]
[]
[]
[]
[]
[]
[]
[]
[]
[]
[]
[]
[]
[]
[]
[]
[]
[]
[null,"Año","Mes","Inflación",null,null,null,null,null,null,null,null,"T1,12 de la Tendencia Ciclo",null,null,null,null,null,null,null,null,"ITCER con USA",null,null,null,null,null,null,null,null,"Variación Interanual del Tipo de Cambio",null,null,null,null,null,null,null,null,"Reservas Internacionales Netas por país",null,null,null,null,null,null,null,null,"RIN a Base Monetaria Amplia por país",null,null,null,null,null,null,null,null,"Tasa de Interés pasiva Real en MN",null,null,null,null,null,null,null,null,"Tasa de Interés pasiva en ME (180 días)",null,null,null,null,null,null,null,null,"Tasa de Interés Activa Real en MN",null,null,null,null,null,null,null,null,"Tasa de Interés Activa en ME (180 días)",null,null,null,null,null,null,null,null,"Tasa de Interés de Política Monetaria",null,null,null,null,null,null,null,null,"Créditos de las OSD con el sector Privado, Variación Interanual ",null,null,null,null,null,null,null,null,"Promedio de Exportaciones Totales al mes por país y Región",null,null,null,null,null,null,null,null,null,null,"Promedio Móvil de Importaciones Totales al mes por país y Región",null,null,null,null,null,null,null,null,null,null,"CARD","CAPARD",null,null,"Exportaciones Totales al mes por país y Región",null,null,null,null,null,null,null,null,null,null,"Importaciones Totales al mes por país y Región",null,null,null,null,null,null,null,null,null,null,"CARD","CAPARD"]
[]
[]
[null,null,null,"Variación Interanual Costa Rica","Variación Interanual\nEl Salvador","Variación Interanual Guatemala","Variación Interanual Honduras","Variación Interanual Nicaragua","Variación Interanual Dominicana","Variación Interanual Panamá",null,null,"Variación Interanual Costa Rica","Variación Interanual\nEl Salvador","Variación Interanual Guatemala","Variación Interanual Honduras","Variación Interanual Nicaragua","Variación Interanual Dominicana","Variación Interanual Panamá",null,null,"Indice Original\nCosta Rica","Indice Original\nEl Salvador","Indice Original\nGuatemala","Indice Original\nHonduras","Indice Original\nNicaragua","Indice Original\nDominicana","Indice Original\nPanamá",null,null,"Variación Interanual Costa Rica","Variación Interanual\nEl Salvador","Variación Interanual Guatemala","Variación Interanual Honduras","Variación Interanual Nicaragua","Variación Interanual Dominicana","Variación Interanual Panamá",null,null,"RIN del BC Costa Rica","RIN del BC\nEl Salvador","RIN del BC\nGuatemala","RIN del BC\nHonduras","RIN del BC\nNicaragua","RIN del BC\nDominicana","RIN del BC\nPanmaná",null,null,"RIN del BC Costa Rica","RIN del BC\nEl Salvador","RIN del BC\nGuatemala","RIN del BC\nHonduras","RIN del BC\nNicaragua","RIN del BC\nDominicana","RIN del BC\nPanmaná",null,null,"Ti pasiva real MN\nCosta Rica","Ti pasiva real MN\nEl Salvador","Ti pasiva real MN\nGuatemala","Ti pasiva real MN\nHonduras","Ti pasiva real MN\nNicaragua","Ti pasiva real MN\nDominicana","Ti pasiva real MN\nPanamá",null,null,"Ti pasiva ME (prom nominal)\nCosta Rica","Ti pasiva ME (prom nominal)\nEl Salvador","Ti pasiva ME (prom nominal)\nGuatemala","Ti pasiva ME (prom nominal)\nHonduras","Ti pasiva ME (prom nominal)\nNicaragua","Ti pasiva ME (prom nominal)\nDominicana","Ti pasiva ME (prom nominal)\nPanamá",null,null,"Ti activa real MN\nCosta Rica","Ti activa real MN\nEl Salvador","Ti activa real MN\nGuatemala","Ti activa real MN\nHonduras","Ti activa real MN\nNicaragua","Ti activa real MN\nDominicana","Ti activa real MN\nPanamá",null,null,"Ti activa ME (prom nominal)\nCosta Rica","Ti activa ME (prom nominal)\nEl Salvador","Ti activa ME (prom nominal)\nGuatemala","Ti activa ME (prom nominal)\nHonduras","Ti activa ME (prom nominal)\nNicaragua","Ti activa ME (prom nominal)\nDominicana","Ti activa ME (prom nominal)\nPanamá",null,null,"Tasa de Política Monetaria\nCosta Rica","Tasa de Política Monetaria\nEl Salvador","Tasa de Política Monetaria\nGuatemala","Tasa de Política Monetaria\nHonduras","Tasa de Política Monetaria\nNicaragua","Tasa de Política Monetaria\nDominicana","Tasa de Política Monetaria\nPanamá",null,null,"Créditos de las OSD con el sector Privado Costa Rica","Créditos de las OSD con el sector Privado El Salvador","Créditos de las OSD con el sector Privado Guatemala","Créditos de las OSD con el sector Privado Honduras","Créditos de las OSD con el sector Privado Nicaragua","Créditos de las OSD con el sector Privado Dominicana","Créditos de las OSD con el sector Privado Panamá",null,null,"Exp Total FOB\nCosta Rica","Exp Total FOB\nEl Salvador","Exp Total FOB\nGuatemala","Exp Total FOB\nHonduras","Exp Total FOB\nNicaragua","Exp Total FOB\nDominicana","Exp Total FOB\nPanamá","Exp Total FOB\nRegional","Exp Total FOB\nCAPARD",null,null,"Imp Total CIF Costa Rica","Imp Total CIF El Salvador","Imp Total CIF Guatemala","Imp Total CIF Honduras","Imp Total CIF Nicaragua","Imp Total CIF Dominicana","Imp Total CIF  Panamá","Imp Total CIF Regional","Imp Total CIF CAPARD",null,null,"Saldo de Comercio Exterior Promedio Movil Regional al mes","Saldo de Comercio Exterior Promedio Movil Regional al mes",null,null,"Exp Total FOB\nCosta Rica","Exp Total FOB\nEl Salvador","Exp Total FOB\nGuatemala","Exp Total FOB\nHonduras","Exp Total FOB\nNicaragua","Exp Total FOB\nDominicana","Exp Total FOB\nPanamá","Exp Total FOB\nRegional","Exp Total FOB\nCAPARD",null,null,"Imp Total CIF\nCosta Rica","Imp Total CIF\nEl Salvador","Imp Total CIF\nGuatemala","Imp Total CIF\nHonduras","Imp Total CIF\nNicaragua","Imp Total CIF\nDominicana","Imp Total CIF\nPanamá","Imp Total CIF\nRegional","Imp Total CIF\nCAPARD",null,null,"Saldo de Comercio Regional al mes","Saldo de Comercio Regional al mes"]
[null,null,null,"%","%","%","%","%","%","%",null,null,"%","%","%","%","%","%","%",null,null,"Nivel","Nivel","Nivel","Nivel","Nivel","Nivel","Nivel",null,null,"%","%","%","%","%","%","%",null,null,"Millones US$","Millones US$","Millones US$","Millones US$","Millones US$","Millones US$","Millones US$",null,null,"Millones US$","Millones US$","Millones US$","Millones US$","Millones US$","Millones US$","Millones US$",null,null,"%","%","%","%","%","%","%",null,null,"%","%","%","%","%","%","%",null,null,"%","%","%","%","%","%","%",null,null,"%","%","%","%","%","%","%",null,null,"%","%","%","%","%","%","%",null,null,"%","%","%","%","%","%","%",null,null,"Millones US$","Millones US$","Millones US$","Millones US$","Millones US$","Millones US$","Millones US$","Millones US$","Millones US$",null,null,"Millones US$","Millones US$","Millones US$","Millones US$","Millones US$","Millones US$","Millones US$","Millones US$","Millones US$",null,null,"Millones US$","Millones US$",null,null,"Millones US$","Millones US$","Millones US$","Millones US$","Millones US$","Millones US$","Millones US$","Millones US$","Millones US$",null,null,"Millones US$","Millones US$","Millones US$","Millones US$","Millones US$","Millones US$","Millones US$","Millones US$","Millones US$",null,null,"Millones US$","Millones US$"]
[null,2006,"Enero",13.195387329549135,3.3321432821611303,8.0834131604155832,7.2930354796320787,10.268771845245265,8.2493088307041695,3.0481809242871103,null,null,4.9238185621355077,5.4208243898154675,"n.d.",6.3967347281270088,"n.d.","n.d.",5.8222747168762554,null,null,102.37993931645707,96.991859031211774,76.577806016513378,95.98306320482402,107.38657563086096,103.10057299544465,106.9645426201087,null,null,8.2188905526177418,0,-1.8077581502633662,1.2861736334405061,5.7161451937718022,15.851197897813357,0,null,null,2350.1,1726.4,4087.8,2206.3262658537619,727.7,1476.5,1207.5531742798,null,null,55.332612936163692,88.770053475935825,109.18065979452966,106.57212687030275,75.781538882375614,32.655446523979343,153.29313559107652,null,null,1.815102822581639,0.72176056513970366,-3.2043891464412244,3.1940232700550992,1.6236165781056027,2.6704015023474281,-0.24083969465648031,null,null,3.33,4.08,3.33,2.88,4.7,3.23,2.8,null,null,9.4214198317133349,4.314104572152484,4.2898227433869742,10.3426699326393,8.0469961165330179,11.862146103286396,4.6403721374045892,null,null,10.48,7.79,7.31,8.84,10.199999999999999,9.1300000000000008,7.83,null,null,"n.d.","n.a.",4.25,7,"n.a.",10,"n.a.",null,null,28.663359416032286,10.056744831538357,5.5704972052809554,18.897940444016182,33.219639618913476,15.191353953505837,18.007091781691955,null,null,null,null,null,null,null,null,null,null,null,null,null,null,null,null,null,null,null,null,null,null,null,null,null,null,null,null,538.82476956999994,303.18,460.6,174.29626059859416,129.1,423.68849999999998,617.28600000000006,2029.689530168594,2646.9755301685946,null,null,923.31914477000009,545.83000000000004,927.1,418.00248488743978,282.7,824.5,825.89502800000002,3921.4516296574393,4747.3466576574392,null,null,-1891.7620994888457,-2100.3711274888456]
[null,null,"Febrero",12.962452565609627,3.7450957080014327,7.2635505815229342,6.7812337662337576,10.489343969520185,8.0752661952369387,2.3483365949119261,null,null,5.372269908877044,4.8652246538637014,"n.d.",6.3634338475307359,"n.d.","n.d.",6.6288009974371356,null,null,102.28824337722259,96.708584963967652,76.623928651935742,95.508118204332305,106.64365661201944,102.26221905728706,107.38523935434533,null,null,8.0871055590410599,0,-1.3945515557158745,0.90763481046448546,5.1752110005894103,18.46329837940895,0,null,null,2405.1999999999998,1855.6,4067.1,2270.2131867352559,703.4,1501.8,1113.42992807276,null,null,55.689856024431819,88.42312725096329,110.26084499290828,108.74372710957549,72.204193537757462,32.693547603786485,142.26851713515128,null,null,2.0250511408308385,0.21955796396696795,-2.4365691489361723,3.6230769183991387,0.61621694331956445,2.7339593126010557,0.90051625239006861,null,null,3.3600000000000003,3.97,3.34,2.96,4.8,2.98,3.27,null,null,9.478855310946205,3.6517352452853413,5.1056014729950885,10.899636409189572,6.9939714704741958,12.523433234309776,4.9064435946462837,null,null,10.54,7.53,7.39,8.84,9.9,7.96,7.37,null,null,"n.d.","n.a.",4.25,7,"n.a.",10,"n.a.",null,null,28.314985229658095,11.127324148385686,7.0601135588099773,19.072651696269148,35.861908009926658,15.161705146044335,17.320750903486658,null,null,null,null,null,null,null,null,null,null,null,null,null,null,null,null,null,null,null,null,null,null,null,null,null,null,null,null,634.0564989500001,293.33999999999997,428.30000000000007,179.35100965771059,151.80000000000001,497.19280000000003,682.21600000000001,2184.0403086077108,2866.2563086077107,null,null,814.71968157999993,580.4799999999999,824.9,365.87825691667001,259.90000000000003,868.8,768.52662899999996,3714.6779384966712,4483.2045674966721,null,null,-1530.6376298889591,-1616.9482588889591]
[null,null,"Marzo",12.21660233702355,4.0394439824165271,7.2806698216235848,6.1855670103092928,10.14031364225916,8.256059866601607,2.0408163265305994,null,null,5.8842923056318828,4.0359794981051138,"n.d.",6.9829832030920098,"n.d.","n.d.",7.4396736500034502,null,null,103.24718516408933,96.89971606388039,76.785349236053037,95.828866892410815,106.860571618649,97.884022383734731,107.56837098692031,null,null,7.9570237908960726,0,7.0228598032013922E-2,0.69259456579647849,5.0675579975700797,15.064615645573381,0,null,null,2765.7,1763.7,4115.5,2386.1356907394475,766.5,1524.2,1137.2237359982,null,null,59.589120646112079,86.286017330588408,111.36425811817583,109.04177308514507,79.856837221370455,33.358120831968563,146.83767313913012,null,null,2.703162989970195,7.6459913605915295E-2,-2.4521377672208979,4.1007766990291108,0.92714709573714138,2.7194229468780398,1.136000000000013,null,null,3.3849999999999998,4.12,3.43,3,4.9000000000000004,3,3.2,null,null,10.108484330071299,3.2611153514555422,5.1074720054292539,11.333398058252412,7.3185637832743771,12.196952438199702,5.2422000000000128,null,null,10.88,7.43,7.4700000000000006,8.91,9.8000000000000007,8.6300000000000008,7.39,null,null,8.51,"n.a.",4.25,6.75,"n.a.",10,"n.a.",null,null,28.531391372747095,10.922799190821063,8.2393467364412878,21.229670591680438,34.888310903525891,18.195251345727016,17.031070937013769,null,null,null,null,null,null,null,null,null,null,null,null,null,null,null,null,null,null,null,null,null,null,null,null,null,null,null,null,815.36940162999986,338.25,495.90000000000009,206.75582121440425,172.59999999999997,596.0009,810.74200000000008,2624.8761228444046,3435.6181228444048,null,null,976.88234908000004,672.33000000000015,983.1999999999997,430.41950835667751,308.8,1027.9000000000001,841.15919899999994,4399.5318574366775,5240.6910564366772,null,null,-1774.6557345922738,-1805.0729335922738]
[null,null,"Abril",11.629027979718872,4.2203570161957593,7.4808276660396675,5.8109833971902907,9.8446196660482492,8.5586863977295735,2.9069767441860583,null,null,6.2940377578611262,3.1777648534508289,"n.d.",8.0354776541874386,"n.d.","n.d.",8.1433899709904622,null,null,104.2109641076829,97.070180965128657,76.549169095729042,96.119304236936543,106.61759400101026,96.763660033858969,107.2578138004184,null,null,7.8381253172890961,0,-0.14062271636213511,0.47846889952153038,5.1287312757251211,13.662287456057429,0,null,null,2740.9,2149.6,4141.6000000000004,2489.5851170323681,801.4,1571.7,1106.9278590550798,null,null,59.687169372967766,106.56947044452201,115.17775149034952,110.18220226831099,79.946625788184761,34.152831126417745,143.50734827652013,null,null,3.2437548600163373,-0.19144861451938872,-2.5965818524502069,4.1857815328907702,0.39639578480145093,2.3962279653421006,0.43050847457625974,null,null,3.4450000000000003,4.0199999999999996,3.47,3.6,5.0999999999999996,2.96,3.35,null,null,10.607430911637458,3.0047054649063427,4.8931260096930336,11.529064574532292,3.5547190077742474,10.714309456229465,4.3175141242937727,null,null,11.12,7.35,7.5,8.94,10.7,8.34,7.35,null,null,8.51,"n.a.",4.5,6.5,"n.a.",10,"n.a.",null,null,28.427447143515483,11.40928258867806,7.9690601288370688,23.180124138490179,35.565596882865776,18.35592399818189,16.873481818690415,null,null,null,null,null,null,null,null,null,null,null,null,null,null,null,null,null,null,null,null,null,null,null,null,null,null,null,null,560.88800568000011,281.52,394.29999999999995,152.97518801633385,145.29999999999998,514.74340000000018,603.60799999999995,2049.726593696334,2653.3345936963324,null,null,848.22872828000027,502.64999999999986,882.10000000000036,420.65743794337754,270.30000000000007,936.0999999999998,783.96233899999993,3860.0361662233772,4643.9985052233751,null,null,-1810.3095725270432,-1990.6639115270427]
[null,null,"Mayo ",11.864015539277787,3.603286384976518,7.6164423007702933,6.1068702290076482,9.9126034958601714,9.5075434101907277,3.1098153547132847,null,null,6.7200555542465832,2.5410230567185157,"n.d.",8.5906545726462618,"n.d.","n.d.",8.784156776152372,null,null,103.51597609361066,97.43035192675886,76.358563640412711,95.959297004844586,106.64010405879532,97.854455626594316,107.89170358432861,null,null,7.5524724054266441,0,-9.6936925055224304E-2,0.2652519893899053,5.0127871096329617,13.218230600369344,0,null,null,2503.8000000000002,2109.6999999999998,4211.6000000000004,2497.1465653790383,795.9,1617.4,1168.69120848646,null,null,56.116102384432466,105.8140817943805,116.04615472941164,115.41564344056023,83.043793597156039,34.657508173285848,149.17051518786872,null,null,1.6859617023671072,0.50470246755937143,-2.7100341159943899,3.4805755395683318,1.4656885228186862,1.3080894203275204,0.17475023562679556,null,null,3.59,4.13,3.48,3.2,4.8,2.9,3.29,null,null,9.4811404807815336,3.8830510644138108,4.7237741654960086,10.878776978417251,3.6631563533505322,9.8828411749415039,4.1510933081998402,null,null,11.15,7.63,7.48,8.9,10.3,8.85,7.39,null,null,8.51,"n.a.",4.5,6.5,"n.a.",10,"n.a.",null,null,27.945206113279951,11.980956643146467,8.2071235896640218,24.987245255851832,33.524058722373653,18.751213604780361,16.843773745597513,null,null,null,null,null,null,null,null,null,null,null,null,null,null,null,null,null,null,null,null,null,null,null,null,null,null,null,null,766.52788651999981,338.72,483.79999999999995,226.90800636623408,179.70000000000005,548.99959999999976,730.09500000000003,2544.6554928862333,3274.7504928862345,null,null,1042.3718409900002,765.95000000000027,1100.8999999999996,480.31871327763292,337,1053.7,994.184978,4780.2405542676352,5774.4255322676363,null,null,-2235.5850613814,-2499.6750393814]
[null,null,"Junio",12.41985958737885,4.423325120262831,7.552567586897446,5.6854074542008837,9.4988012330174598,10.27433448486078,3.2038834951456234,null,null,7.0120282380197576,2.2173409706830185,"n.d.",8.9202507761657799,"n.d.","n.d.",9.3532612438873279,null,null,103.29776624349118,96.822080548884387,76.320189993334409,95.86149164224237,107.08271544574629,98.127273475518436,107.90142728291998,null,null,7.38813611625425,0,-4.4972424802689412E-2,0.21208907741250871,5.4509161920953115,13.379886914937064,0,null,null,2613.6,2011,4062.4,2526.1261082221936,813.4,1579.8,1206.5475861353896,null,null,57.5850766914904,104.62928662701401,112.563116570863,109.94387281875375,83.700001166394387,35.680205791948282,155.48732370098767,null,null,0.96080925255168603,-3.6498511277098425E-2,-2.6522542891341994,3.5147638971906767,2.0814565136228373,0.80314745881400895,0.51947318908749596,null,null,3.6,4.3899999999999997,3.88,3.33,5,2.83,3.74,null,null,8.8864551595141137,2.6122768086460417,4.8045644367602023,11.273640167364018,7.3781358610277801,8.61094792319318,4.0755409219191048,null,null,11.14,7.15,7.57,8.91,10.4,8.35,7.41,null,null,8.51,"n.a.",4.75,6.5,"n.a.",10,"n.a.",null,null,28.676773912451424,12.648099658012345,10.432409150206446,24.025631739942121,32.383280222459,20.430382278475445,14.897359968446832,null,null,null,null,null,null,null,null,null,null,null,null,null,null,null,null,null,null,null,null,null,null,null,null,null,null,null,null,748.31039812000063,330.50000000000023,543.70000000000027,195.32250643696693,174.10000000000002,595.95899999999983,696.54599999999994,2587.8919045569692,3284.4379045569676,null,null,959.15423295999972,745.0300000000002,971.8,510.63011593044484,306.50000000000011,995.59999999999991,1006.4809100000002,4488.7143488904439,5495.195258890446,null,null,-1900.8224443334784,-2210.7573543334784]
[null,null,"Julio",12.026009472159513,5.552301745343807,7.0355675216097628,5.322479649342517,9.1711956521739229,10.60116354234,2.8046421663442853,null,null,7.340993776931966,2.1081984668272775,"n.d.",9.1876481371991314,"n.d.","n.d.",9.857123231213075,null,null,103.22923744322732,95.912187052094779,75.931343843754689,95.630515866562263,107.06310021808989,97.5117040969957,108.22050493875906,null,null,7.2663951639162061,0,-7.9681695373191197E-2,0.1589825119236756,4.8793715099395145,13.231237252393949,0,null,null,2588.1,2257,4038.2,2495.5068193657653,853.3,1603.2,1170.0952668014199,null,null,56.717919357660548,109.04419406098069,110.13940226151702,113.87922713777145,84.723603846593292,35.671129885585025,151.56518659495978,null,null,1.5389198775922921,-0.96838580778900196,-2.1913907460117947,3.5771284185493459,2.3131880079041438,-0.32654587960255987,1.1432925682032071,null,null,4,4.53,3.86,3.37,4.9000000000000004,2.7,3.98,null,null,9.2246350437115865,1.7327765869511118,5.2921029986099022,11.324762187871581,7.8851738336867188,9.1037346580946963,4.4602634054562644,null,null,11.06,7.38,7.55,9.0399999999999991,10.7,7.47,7.39,null,null,9.1999999999999993,"n.a.",5,6.5,"n.a.",10,"n.a.",null,null,29.88101983577096,12.933105287067281,9.491381901729401,23.684151770169848,34.20576039234917,20.631768338058865,14.851197703255782,null,null,null,null,null,null,null,null,null,null,null,null,null,null,null,null,null,null,null,null,null,null,null,null,null,null,null,null,628.46014399999967,328.89999999999964,568.19999999999982,179.08528911488315,155.80000000000001,534.09709999999995,633.16300000000001,2394.5425331148799,3027.705533114884,null,null,970.95297905999996,710.60000000000036,1028.8999999999999,478.96918852355384,308.00000000000006,1071.9999999999998,1033.4480789999998,4569.4221675835506,5602.8702465835522,null,null,-2174.8796344686707,-2575.16471346867]
[null,null,"Agosto",11.614065609623104,4.7079439252336419,6.9961171902576735,4.8447204968944169,8.6501687289088824,9.3489614479926431,2.9013539651837639,null,null,7.8378771338849216,2.2301458607177049,"n.d.",9.4197170474911225,"n.d.","n.d.",10.236759271931032,null,null,103.05472117345064,96.622993952648983,75.825467067443455,95.477900356012114,107.63465736435317,97.16086974700292,108.33131245175956,null,null,7.1502751059285634,0,-7.2170253189606737E-2,0.1589825119236756,4.9273131014063685,12.52853349884486,0,null,null,2675.6,2070.3000000000002,4031.8,2597.6150644142435,830.4,1645,991.54574445036008,null,null,58.607651805603957,100.75894069516518,113.43398387823622,116.38403829621112,84.816116199415731,35.4173370629034,124.83811126517543,null,null,1.9136785123905931,-0.11698427048048278,-2.1459817893903366,3.7057464454976241,1.9816572135735517,-0.86782849642698923,1.0482330827067556,null,null,4,4.59,3.94,3.42,5.2,2.5,3.98,null,null,9.7531922441129471,2.6621329742477826,5.3215789126418613,11.660367298578191,8.1623637113658898,9.5666556074085083,4.4106766917293125,null,null,11.01,7.5,7.7399999999999993,9.0399999999999991,10.4,8.1999999999999993,7.44,null,null,9.1999999999999993,"n.a.",5,6.5,"n.a.",8,"n.a.",null,null,29.442459616577409,13.180534372214336,9.7963922850724536,26.41370031961592,34.231942963984707,20.392618218128099,15.144955284079176,null,null,null,null,null,null,null,null,null,null,null,null,null,null,null,null,null,null,null,null,null,null,null,null,null,null,null,null,718.98630540999966,308.55000000000018,530.90000000000032,162.20858367926917,186.39999999999998,596.3438000000001,757.88799999999992,2503.3886890892682,3261.2766890892708,null,null,1030.1968674199998,605.3799999999992,1060.1000000000008,496.83527569275293,331.2000000000001,1169.0000000000002,1157.9029500000001,4692.7121431127525,5850.6150931127486,null,null,-2189.3234540234826,-2589.3384040234814]
[null,null,"Setiembre",11.239649750827757,4.235020360674806,5.6982849142457317,4.4554455445544665,7.4860335195530761,4.7295471217327423,1.6299137104506298,null,null,8.3749486405334288,2.6429141363375837,"n.d.",9.6853665804825617,"n.d.","n.d.",10.422765334604128,null,null,103.23917533372064,96.180908785466727,75.979747340067462,95.009641894236665,107.71696899982726,98.704691328742598,108.20680868089049,null,null,7.0035757378140691,0,-0.19428750083744134,0.10593220338982826,4.6985060874582079,8.3052841947486815,0,null,null,2764.6,2017.3,4031.3,2552.4508792756892,824.7,1582.9,906.06812264791006,null,null,58.559557009563832,94.516337603193506,109.52317551649166,117.7459844380077,85.182868558149082,35.370695825987589,113.60851123721952,null,null,2.0319645506214146,0.33027052031187254,-0.92554473806214177,3.8337440758293742,2.5107208802128045,2.6166950527169592,2.469830188679238,null,null,4.01,4.58,3.95,3.5,4.95,2.91,4.1399999999999997,null,null,10.050688108256155,3.2331768286285931,6.6242466388502343,11.932890995260655,9.6798476920558656,12.251034431910352,5.726745283018861,null,null,11,7.61,7.7299999999999995,9.06,10.6,8.15,7.45,null,null,9.1999999999999993,"n.a.",5,6,"n.a.",8,"n.a.",null,null,28.76606106737345,10.478764499582226,10.555102234319214,25.766264714812625,34.210318719132204,18.301422585889938,15.321998372030542,null,null,null,null,null,null,null,null,null,null,null,null,null,null,null,null,null,null,null,null,null,null,null,null,null,null,null,null,713.49606009000036,328.69000000000051,593.89999999999986,141.04834327899357,164.40000000000003,624.10519999999997,805.48099999999988,2565.6396033689962,3371.1206033689923,null,null,969.2747209299996,639.75,1008.7,465.54228456237934,310.4000000000002,1016.3999999999996,1109.3948429999998,4410.0670054923758,5519.4618484923776,null,null,-1844.4274021233832,-2148.3412451233853]
[null,null,"Octubre",10.085398369740354,1.8837766868363959,3.8509180721097915,4.5145330859616646,6.9744271006310168,3.6847531406315905,1.3346043851286793,null,null,8.7291395397101077,3.272562614700973,"n.d.",11.140159893243453,"n.d.","n.d.",10.378634212305608,null,null,102.38852413103577,96.04105375334133,75.657082836084072,94.382729707483364,107.14063057507293,99.628534995591494,107.31645158054832,null,null,6.2123866763761075,0,-0.79417258904438459,5.2938062466903177E-2,4.8196879372582258,3.293166494376127,0,null,null,2882.3,2020.5,4036.3,2538.5154229952577,804.4,1717.2,921.9005963797199,null,null,59.319298653483735,92.242457278799577,104.28778506152831,121.41518841790402,85.826123378218,37.882658799880637,114.0051858009642,null,null,2.8746788194659554,2.6925386804357494,0.92351800609433332,3.5262721893491049,3.7375068293501239,3.5639250202548149,2.8177892756350102,null,null,3.835,4.63,3.95,3.57,5.0599999999999996,2.73,4.1900000000000004,null,null,10.877556703788207,5.6380587388865138,8.7231601762056208,11.678248520710051,10.135975891366355,12.967429108050348,6.064459078080918,null,null,10.99,7.63,7.7200000000000006,9.06,10.8,8.06,7.48,null,null,9.1999999999999993,"n.a.",5,6,"n.a.",8,"n.a.",null,null,27.87577257438436,10.148382736914208,11.203495106865979,28.150625084411594,33.737539178871415,16.1962027309017,15.195246216398939,null,null,null,null,null,null,null,null,null,null,null,null,null,null,null,null,null,null,null,null,null,null,null,null,null,null,null,null,705.68679489999977,287,533.19999999999982,153.88775569585482,183.29999999999995,574.88709999999992,957.74,2437.9616505958547,3395.7016505958527,null,null,1025.6791732399997,628.09000000000015,1078.7999999999995,523.69304758456519,327.59999999999991,1116.2000000000003,1181.327949,4700.0622208245768,5881.3901698245754,null,null,-2262.1005702287111,-2485.6885192287118]
[null,null,"Noviembre",9.4247765644360388,3.8510466057592092,4.4010452482464757,4.8765432098765462,8.0937048961918592,5.2331626169663803,2.0134228187919545,null,null,8.6696607232763512,3.7720273991944948,"n.d.",11.345060704695351,"n.d.","n.d.",10.14949386605887,null,null,100.57343660152478,95.295041401397356,75.05799102055694,93.743194302886295,106.69293267898014,99.098912592255715,107.05620136846272,null,null,4.8579419491384375,0,-2.2102907453289161E-2,0,4.888392328238286,0.92446679257537701,0,null,null,3122.5,2020.8,4053,2506.7516600872182,832.9,1760.9,1833.7288151269699,null,null,62.053801856516579,93.518840751408703,104.21618642679569,118.73420027187332,87.126842281197199,38.124975778018012,218.85746297013347,null,null,1.6680165981322863,0.85475036244738567,0.42045053352652795,3.0831077104178894,3.6912705967432697,2.3726716188524621,2.829605263157887,null,null,3.8849999999999998,4.74,3.97,3.68,5.63,2.62,4.9000000000000004,null,null,10.422889398223138,3.6939633771001317,8.1215228560136836,10.978104767510299,8.8729230858562076,11.789855093676818,5.3782894736842017,null,null,10.97,7.69,7.7,9.0299999999999994,10.8,8.08,7.5,null,null,9.1999999999999993,"n.a.",5,6,"n.a.",8,"n.a.",null,null,29.131079154238691,9.7526554424262724,26.868164288951913,28.173131882731226,32.451389352511463,10.630842132732067,14.487487270522292,null,null,null,null,null,null,null,null,null,null,null,null,null,null,null,null,null,null,null,null,null,null,null,null,null,null,null,null,730.81582707000143,308.94999999999982,495.89999999999964,183.09850630385154,169.40000000000003,587.01040000000012,846.86699999999996,2475.1747333738567,3322.0417333738515,null,null,1102.6326128600012,695.88000000000011,1082.2000000000007,529.21041873303966,318.89999999999998,1083.2999999999997,958.30848700000024,4812.123031593037,5770.4315185930391,null,null,-2336.9482982191912,-2448.3897852191913]
[null,null,"Diciembre",9.4337156441160097,4.8859557716799795,5.7925151348376378,5.2858020897357241,9.4479477818342801,5.0001907013997506,2.1967526265520423,null,null,8.6107297445378101,4.0258919765565544,"n.d.",11.489491211906918,"n.d.","n.d.",9.8427025950753393,null,null,99.791592288957645,94.607000299067465,74.168783901489434,93.115477644861016,105.56187481250016,97.128491062386743,106.6143813365634,null,null,4.2586928919512541,0,-9.5891528134761678E-2,0,5.1374387634603575,-0.1120077771437786,0,null,null,3114.5,1905.8,4061.1,2613.6789902959476,859,1817,1312.0485185115999,null,null,59.27734185079909,89.485941813947363,98.45756816100058,113.45385516613189,85.437807647985395,39.38010735930709,156.18387412042162,null,null,1.6597118586292354,-2.5045661601972025E-2,-0.90036155546884555,2.6159252772912871,2.8819627939659651,2.7426705412277492,2.8701962616822545,null,null,3.8899999999999997,4.8600000000000003,3.81,3.71,5.9,2.73,5.13,null,null,10.29507614684538,2.5928873978686933,6.7183248796982777,10.74617629889082,7.2047343399309272,10.895036687250272,5.1696822429906666,null,null,10.81,7.61,7.66,9.19,10.7,8.99,7.48,null,null,8.9700000000000006,"n.a.",5,6,"n.a.",8,"n.a.",null,null,27.626521905358679,8.8660099510984089,21.384571284804444,29.095485181319724,30.737097637432441,11.950283584187593,12.439940561628671,null,null,null,null,null,null,null,null,null,null,null,null,null,null,null,null,null,null,null,null,null,null,null,null,null,null,null,null,638.3577506699985,282.39999999999964,484.19999999999982,141.0390037610382,173.90000000000003,517.17219999999907,605.58899999999994,2237.0689544310335,2842.6579544310371,null,null,905.71290502999909,670.6899999999996,965.79999999999927,522.94093123000675,319.00000000000023,1010.3999999999996,974.75948100000005,4394.5438362600034,5369.3033172599971,null,null,-2157.4748818289663,-2526.6453628289637]
[null,2007,"Enero",9.193357683764825,5.5395600598871404,6.2244341423507068,5.5725658297611718,9.0829598863263783,4.3643192488262841,2.2900763358778722,null,null,8.7352765981824696,4.246053471589283,"n.d.",11.639703973786716,2.6155308105253439,"n.d.",9.0735998949510819,null,null,99.337023053131105,93.808486290671198,74.144467008656505,92.803777320341482,105.40111425455268,98.319852609215118,106.74031004312559,null,null,3.7935508144188694,0,0.75767329789554017,0,4.8890127887932486,-2.4987776617319923,0,null,null,3164.1,1920.4,4037.2,2578.6904217183292,845.1,1882.4,1346.5704241083499,null,null,58.589941852934004,86.383722938737918,99.99958288541221,116.4249349317178,87.117223411094315,40.886762841375123,164.5758907225802,null,null,1.4255833406491363,-0.71969227411611059,-1.2938964122970396,2.2614153132250618,3.0784476574154129,3.454897973872681,2.7958955223880504,null,null,4.1050000000000004,4.78,3.88,3.72,6.3,3,5.15,null,null,10.244801106522283,2.2270700567437753,6.3408818432706404,10.975800464037128,8.0785216109467424,12.126444020585174,5.0346268656716324,null,null,10.72,7.89,7.62,9.61,10.8,7.99,7.44,null,null,5.98,"n.a.",5,6,"n.a.",8,"n.a.",null,null,29.358918626217289,8.7510340740641457,21.412638655662452,29.18861974420366,30.725134704000201,15.122931317549604,12.545041612789687,null,null,696.52404626333339,311.51,508.0333333333333,176.49736159452075,169.50833333333333,555.01356666666652,733.35858333333329,2417.0866411911875,3150.4452245245207,null,null,975.27570417166669,655.63749999999993,1006.7166666666667,474.58373929043495,308.44166666666666,1020.7249999999999,991.42098350000003,4441.3802767954348,5432.8012602954341,null,null,-2024.2936356042476,-2282.3560357709143,null,null,697.33348211999999,311.3,544.09999999999991,196.28832560870899,177.39999999999998,473.65129999999999,670.36800000000005,2400.0731077287091,3070.4411077287091,null,null,1057.5023586299999,650.82000000000005,1093.2,469.90969273411918,303.7,899.30000000000007,1087.5959580000001,4474.4320513641187,5562.0280093641186,null,null,-2074.3589436354105,-2491.5869016354104]
[null,null,"Febrero",8.6173790719836152,4.7902819161127406,6.6216584833606245,5.8000000000000078,8.8146551724138007,4.8095363441507093,2.7724665391969316,null,null,8.6331085451572775,4.5900249434660259,"n.d.",11.618233291697461,3.1489190691415878,"n.d.",8.847602962193065,null,null,99.716548813116503,94.516674379413558,74.446989138681289,92.452579510026041,105.23651305486641,97.55202680578796,107.01193623316648,null,null,3.3894977331953062,0,1.1495009178899693,0,4.8466115893465753,-2.375803615060688,0,null,null,3239.3,1912.7,4054.6,2648.2001819699285,819.7,1927.4,1270.3506655722399,null,null,58.581444258236395,85.651848766966239,102.20812650892637,114.86508389258768,82.259905433024528,41.809736099415645,151.61416203992763,null,null,1.0427621598802959,8.5616797900287075E-2,-1.5959782539175051,1.918714555765588,3.3871899489228618,3.1871753013777342,2.0604093023255898,null,null,4.1400000000000006,4.88,3.7,3.74,6.5,2.64,4.8899999999999997,null,null,9.8627135174352212,2.8816776027996749,5.9634614646626032,10.586011342155002,8.6866265259878901,12.193989308266367,4.6752302393357201,null,null,10.48,7.81,7.68,9.56,10.7,7.97,7.5773159725486519,null,null,5.98,"n.a.",5,6,"n.a.",8,"n.a.",null,null,30.88127372572178,7.7820471013881898,20.819311494565707,30.183824428992324,29.263086504986614,16.18320684115535,13.170981854696183,null,null,701.78841915916655,312.3725,519.22499999999991,177.42515361593192,171.74166666666667,561.09114999999997,735.1246666666666,2443.6438894417656,3178.7685561084322,null,null,986.35672991916647,659.0625,1017.3166666666667,486.8961380093096,311.17500000000001,1027.7749999999999,1003.9579524166667,4488.5820345951433,5492.539987011809,null,null,-2044.9381451533779,-2313.7714309033772,null,null,697.22897369999998,303.69,562.60000000000014,190.48451391464437,178.60000000000002,570.12380000000007,703.40899999999999,2502.7272876146444,3206.1362876146445,null,null,947.69199055000013,621.58000000000004,952.09999999999991,513.62704154316509,292.7,953.4,918.97025600000006,4281.099032093166,5200.0692880931665,null,null,-1778.3717444785202,-1993.9330004785202]
[null,null,"Marzo",9.2185163549038673,5.0588100947813253,7.0240922972514541,6.3106796116504711,9.3137779680976376,5.5376061311894142,3.238095238095231,null,null,8.4197795336016519,5.0696833271014343,"n.d.",11.210396269486298,3.8390589135635445,"n.d.",8.790784477765639,null,null,99.850068903370754,94.79675690283446,74.458487283496723,92.645197518582762,105.28780241442512,95.999194299285065,107.08978870407013,null,null,2.7691982094070386,0,0.97501931902412176,0,4.7929386398813616,0.70697857259120978,0,null,null,3491.6,1907.5,4249.5,2618.5479259358244,830.8,2046.5,1119.8790553072299,null,null,60.593250330847503,83.441928136268203,103.83388690429918,112.26221755497947,84.262000809076341,43.857517838258417,131.64863007194953,null,null,-1.1156682910288924,1.065108695651491E-2,-1.9659987317691932,1.3256621004566347,2.7665792090159038,2.3805674213299231,1.4547970479704868,null,null,4.0650000000000004,5.07,3.7,3.82,6.4,2.92,4.74,null,null,8.1776276982864466,2.5901586956521667,5.4809226379200906,9.9983561643835781,8.2308469468087146,10.586173287768769,4.0308739446710122,null,null,10.46,7.78,7.66,9.56,10.5,7.38,7.3994927200222573,null,null,5.98,"n.a.",5.25,6,"n.a.",8,"n.a.",null,null,30.308267238780708,8.5716971889342908,18.887427908567211,30.625405505892921,28.142359592739673,15.998120714222019,13.407400263614221,null,null,705.28287478333334,314.68416666666667,528.29999999999995,179.29026528764416,175.58333333333334,567.84875833333319,743.15583333333325,2470.9893984043106,3214.1452317376438,null,null,988.18698235833335,664.70666666666659,1028.6083333333333,500.20413863408641,312.26666666666671,1040.0749999999998,1036.6783065833336,4534.0477876590876,5570.7260942424191,null,null,-2063.0583892547756,-2356.5808625047753,null,null,857.30286911999997,365.99,604.79999999999995,229.13716127495093,218.7,677.09220000000005,907.11599999999999,2953.0222303949504,3860.1382303949513,null,null,998.84537835000015,740.06,1118.6999999999998,590.11551585399957,321.90000000000009,1175.5,1233.803449,4945.1208942039993,6178.9243432040003,null,null,-1992.0986638090494,-2318.7861128090499]
[null,null,"Abril",9.756778981613099,4.4351179673321184,6.4014539579967664,6.3367531683765836,8.8778634012456425,5.7663579324768479,2.7306967984933999,null,null,8.2595904776626163,5.5052527787583987,"n.d.",10.479037570041159,4.5972667289672495,"n.d.",8.8842051478571875,null,null,99.543056467729301,95.340030730099286,74.461569050147318,92.717824466921272,105.05622348514393,94.198760963703492,107.09389564675922,null,null,2.2098853750119463,0,0.90280863542327938,0,4.5915230032669916,0.37936479756309621,0,null,null,3559.2,2042.6,4263.2,2659.9587131822532,883.8,2173,1648.3656573262797,null,null,60.858854254874473,86.484701319541628,106.96201453905118,114.49762876302418,90.835450237115239,45.102996971494179,191.8748698809533,null,null,-2.0561636397795202,0.53131747583360989,-1.4017232871512597,1.2255845629965949,2.8836511272110248,1.9889519774011273,2.0240329972502376,null,null,4.125,4.99,3.72,3.87,6.3,2.52,4.8099999999999996,null,null,7.3008893780759623,3.221983273596182,6.0229872841146364,9.7833030646992043,8.2439758077884218,10.384816384180789,4.5988542638000727,null,null,10.47,7.8,7.6700000000000008,9.56,11.3,8.77,7.4551318284424379,null,null,5.98,"n.a.",5.5,6,"n.a.",7,"n.a.",null,null,30.64422951138188,8.0040097431943291,16.884218131623019,30.364243355315246,27.41491833764147,17.072849164885163,8.2444632926105257,null,null,719.53647165916664,315.01750000000004,539.75,182.62679142722948,177.89166666666665,573.99677499999996,750.35158333333322,2508.8192047530629,3259.170788086396,null,null,995.0079961908333,680.00166666666667,1033.7666666666667,510.78432791330488,317.60833333333335,1042.958333333333,1054.7682180000002,4580.1273241041381,5634.8955421041383,null,null,-2071.3081193510757,-2375.7247540177418,null,null,731.93116818999988,285.52,531.70000000000005,193.01350169135787,173,588.51959999999985,689.95699999999999,2503.6842698813571,3193.6412698813565,null,null,930.08089427000004,686.19,944.00000000000011,547.61970929399968,334.4,970.69999999999982,1001.0412759999999,4412.9906035640015,5414.0318795640014,null,null,-1909.3063336826408,-2220.3906096826413]
[null,null,"Mayo ",9.1692343720542535,3.8744760394244961,5.4652485116061298,6.0551558752997563,8.7361372672107223,6.283189126963487,3.3930254476908721,null,null,8.0066249570152443,5.6565563315731167,"n.d.",10.024640333443102,5.2674358616856756,"n.d.",8.886774500475731,null,null,99.125813755910215,96.320168533327291,74.934168453632438,92.915267116306765,105.12432715015659,93.520728004226811,107.15899097491769,null,null,1.8000144885724763,0,0.78588496217771375,0,4.3817950982119616,-1.0854812649072823,0,null,null,3588.1,2163.8000000000002,4253.2,2639.7673840725906,929.3,2217.8000000000002,1682.1831294799003,null,null,60.459505609416041,94.694516313119465,106.56985564801336,118.18629043538711,93.430251384744082,45.261862491371105,195.90091428819244,null,null,-1.7580359366755345,0.94876431453811483,-0.5264753266522918,1.4566421707179229,3.2911544849814232,1.4930026903322828,1.3608021877848535,null,null,4.1150000000000002,4.8600000000000003,3.8,3.92,6.4,2.4900000000000002,4.8,null,null,6.7058871210878026,3.7117144726796787,6.9167347456552051,10.037083097795366,8.8588932955101569,9.048289717340424,3.8947834586216818,null,null,10.06,7.73,7.68,9.59,11,8.07,7.4199599001960426,null,null,5.98,"n.a.",5.5,6,"n.a.",7,"n.a.",null,null,30.547584691232956,8.3651038955635073,16.586310051452834,29.807444212715239,27.127831939484981,18.199274136549469,14.547809901707609,null,null,727.72995301333333,315.11333333333334,556.01666666666665,184.70758088836442,179.32500000000002,581.47249999999985,755.72741666666661,2544.3650339016981,3300.0924505683647,null,null,997.4461999350001,688.43916666666667,1039.7916666666667,521.3602789855272,319.81666666666666,1053.383333333333,1071.5232660833333,4620.2373122538602,5691.7605783371937,null,null,-2075.872278352163,-2391.6681277688294,null,null,864.84966277000012,339.86999999999989,679,251.87747989985348,196.89999999999998,638.70829999999978,794.60500000000002,2971.2054426698542,3765.8104426698555,null,null,1071.63028592,867.20000000000027,1173.2000000000005,607.23012614430081,363.50000000000006,1178.8,1195.2455549999997,5261.5604120643002,6456.8059670642979,null,null,-2290.3549693944497,-2690.9955243944496]
[null,null,"Junio",8.7507581924932456,3.7078651685393225,5.3132065434233393,6.1566049013747657,9.4567824001668317,5.907934986916314,3.668861712135481,null,null,7.6757433982614796,5.5985829915640508,"n.d.",9.444485759296537,5.6777660444181572,"n.d.",8.7359072872708783,null,null,98.738605272829929,95.869032146571485,75.086460920610847,92.728404787718375,104.46828143762676,94.127260741776581,106.87951787295535,null,null,1.2308130380235491,0,0.89959006688382859,0,3.9901310511850419,-1.0675961080658805,0,null,null,3734.1,2142,4392.3999999999996,2684.0973766622042,945.8,2240.9,1743.0560142500499,null,null,61.50905703381747,92.210772646203793,110.16852994960024,111.8507006936556,95.040007782596462,46.381768112941764,201.15482970564739,null,null,-1.3799979121403851,1.2459371614301227,-0.37336869356571178,1.3220045045045137,2.1310771509153388,1.4560429426503221,1.0911070780399124,null,null,4.1099999999999994,5,3.84,3.93,6.4,2.83,4.8,null,null,7.0797132226690174,3.9169014084507072,7.0805872324303722,9.8377252252252347,7.9264219938975353,8.7359507238307241,3.6378059929667423,null,null,10.11,7.77,7.6700000000000008,9.52,11.2,8.17,7.44013377633995,null,null,5.98,"n.a.",5.5,6,"n.a.",7,"n.a.",null,null,31.167661346131158,8.6634963409532482,12.992649198938079,31.75618058342744,29.530484303184188,19.55947240448188,14.312721944849716,null,null,733.49178569249989,315.95750000000004,562.22499999999991,186.74370797768609,181.94999999999996,586.11114999999995,761.7890000000001,2566.4791436701862,3328.268143670186,null,null,1000.9566693641667,686.72916666666663,1051.9916666666668,526.26208314109851,322.60833333333341,1059.9083333333333,1081.8010054166664,4648.4562525052643,5730.2572579219313,null,null,-2081.9771088350794,-2401.9891142517449,null,null,817.45239027000025,340.63000000000011,618.20000000000027,219.75603150882716,205.6,651.6228000000001,769.28499999999997,2853.2612217788301,3622.5462217788263,null,null,1001.2798661099996,724.51000000000022,1118.1999999999998,569.45176579729969,339.99999999999994,1073.9000000000001,1129.8137820000002,4827.341631907304,5957.155413907305,null,null,-1974.0804101284702,-2334.6091921284697]
[null,null,"Julio",8.7524121024019443,3.1628010209743413,5.5868140597074278,6.3020214030915715,9.7593860194980255,5.2381648158971474,4.1392285983066959,null,null,7.2362329712029672,5.5469713762803821,"n.d.",8.759127075099272,5.7993357794932647,"n.d.",8.5662477333833476,null,null,97.789418232871668,95.164164765081949,74.542824994436245,92.082636816534418,104.01120210417731,95.533229911308595,106.36970897552807,null,null,0.64802798002691142,0,1.2678700627927713,0,4.1739659406690048,0.72753584251276904,0,null,null,3839.3,2445,4441.3,2635.3969294642525,963.7,2366.1999999999998,1882.8632412773002,null,null,62.978328120279038,93.384375819977834,107.67828979781112,115.64135934709093,95.742344629020323,46.102089988931674,199.38214756868945,null,null,-1.3814977280570695,1.5870051635112103,-0.65047332455646079,1.2586577181207919,2.0295552366933287,1.9116973273168931,0.64411020776872796,null,null,4.1099999999999994,4.8,3.92,3.92,6.4,2.7,4.8099999999999996,null,null,7.0045231644382184,4.4756432874354797,6.8031088959939741,9.5181431767337674,7.6293168729397296,9.5705157931273757,3.1904644858693381,null,null,10.220000000000001,7.78,7.68,9.66,10.7,7.84,7.4617537025939562,null,null,5.98,"n.a.",5.5,6,"n.a.",7,"n.a.",null,null,31.989280715423106,8.4338463788141471,14.328907494976928,33.483131070674773,28.604722123904658,19.252458062975641,14.586299845149986,null,null,742.18267684583327,320.70416666666659,563.125,191.12359321196553,186.06666666666663,590.51859166666657,773.26150000000007,2593.7206950577988,3366.9821950577984,null,null,1009.702258223333,694.75416666666672,1066.1666666666667,541.73380737729838,328.50833333333338,1070.8916666666667,1108.6010100000001,4711.7568989339643,5820.3579089339646,null,null,-2118.0362038761655,-2453.3757138761653,null,null,732.7508378399998,385.85999999999967,579,231.6439119262368,205.20000000000002,586.98639999999978,770.83299999999997,2721.4411497662331,3492.2741497662391,null,null,1075.90004537,806.89999999999964,1198.9999999999998,664.62987935795172,378.80000000000007,1203.7999999999997,1355.0481339999999,5329.0299247279472,6684.0780587279442,null,null,-2607.5887749617141,-3191.8039089617141]
[null,null,"Agosto",8.562715900754732,3.5590762021644515,6.2087622063869068,6.6943127962085205,9.8664458018428416,4.364153419862939,4.2293233082706738,null,null,6.6668781245558195,5.2442191817396289,"n.d.",8.1051412268921208,5.7494761770331122,"n.d.",8.5350713842333956,null,null,96.926641909326449,95.140427189430682,73.571962624764026,91.250313203595425,104.35534131739628,95.714840128967779,105.98315917365466,null,null,0.13437674888306969,0,1.0612860336183925,0,4.4611616515045576,0.8245900031868264,0,null,null,3902.8,2389,4263.1000000000004,2566.9299530724898,955.7,2360.6,1839.1799722968501,null,null,63.932936191032688,93.351344528982096,105.57612904774093,116.32406800214838,96.077566684615235,48.772786526124492,194.7584285542319,null,null,-1.2091774693208519,0.91824283559577891,-1.2228390383301209,0.94258745141589007,2.2111418602783468,2.401060611353687,0.5571145175834108,null,null,4.1150000000000002,4.51,4.03,4.04,6.52,2.57,4.8099999999999996,null,null,6.7954122536777666,3.8730780004309446,6.0176181897247956,8.9467629094947334,7.6307093821721743,10.880983755458489,3.1012892374299064,null,null,10.32,7.57,7.59,9.67,11,7.85,7.4617760942760931,null,null,5.52,"n.a.",5.5,6.25,"n.a.",7,"n.a.",null,null,31.689265485894545,8.4192556350793488,13.816194883087164,32.463644222153199,29.438814747696206,19.491880465378351,14.677106039466414,null,null,749.40172186333314,324.09333333333331,567.94166666666661,195.40383427206052,187.85833333333332,593.2041499999998,778.37116666666668,2617.9030394687275,3396.2742061353929,null,null,1018.9361926274996,703.07499999999993,1082.8000000000002,556.85965429701048,333.35833333333341,1071.1249999999998,1120.8687069166667,4766.154180257844,5887.0228871745103,null,null,-2148.2511407891166,-2490.7486810391165,null,null,805.61484561999987,349.22000000000025,588.70000000000027,213.57147640040876,207.9,628.57049999999981,819.20399999999995,2793.5768220204081,3612.7808220204024,null,null,1141.0040802699996,705.22999999999956,1259.7,678.34543872930044,389.40000000000009,1171.8000000000002,1305.1153130000002,5345.4795189993019,6650.594831999304,null,null,-2551.9026969788938,-3037.8140099788943]
[null,null,"Setiembre",9.4300842490597478,4.3085165755106649,7.3316113649910584,7.109004739336493,11.55925155925155,6.8126520681265319,5.1886792452830202,null,null,6.0215250049844373,4.6581730811532571,"n.d.",7.5207558558832961,5.7825616804331608,"n.d.",8.7731196054254124,null,null,96.54316466420461,94.748488273463181,73.626617845140032,91.147524835236524,103.94634806353821,95.983047666339985,105.70335425298018,null,null,-0.41118717116599374,0,1.2188673144508635,0,4.7677268430074253,1.0825657445484649,0,null,null,3885.9,2416.6,4274.6000000000004,2523.4002776074221,971.1,2357.8000000000002,1719.7764627567501,null,null,63.592305120123505,93.90944806923325,105.50155217724948,115.00448000806696,99.166704074689278,47.017569586709087,179.82101142795003,null,null,-1.992216549973532,0.20274799357944884,-2.2468789337282482,0.6357964601769911,0.67385860513159712,0.10986332574030812,-0.62618834080717589,null,null,4.085,4.5199999999999996,4.03,4.03,6.6,2.74,4.53,null,null,5.7661618322243671,3.5581787051899356,5.0948537578674582,8.5529646017699115,6.2146773156752175,7.3561958997721977,2.1408382809235991,null,null,10.16,8.02,7.7,9.69,10.9,7.99,7.4405987577639756,null,null,5.52,"n.a.",5.75,6.25,"n.a.",7,"n.a.",null,null,33.981181623606169,8.8158710874133739,12.266744086755853,33.910260447110254,28.645484802856135,20.652440909919068,13.8769944163476,null,null,752.35653394166673,325.05166666666656,562.5333333333333,200.46630550783888,189.79999999999995,585.63991666666641,782.52441666666664,2615.8477561161721,3398.3721727828383,null,null,1028.7619396524999,710.82499999999993,1087.7166666666665,565.4558648346873,335.82500000000005,1084.1249999999998,1134.8115165000002,4812.7094711538539,5947.5209876538538,null,null,-2196.8617150376822,-2549.1488148710155,null,null,748.95380502999978,340.1899999999996,528.99999999999955,201.79799810833379,187.7,533.33439999999973,855.31999999999994,2540.9762031383361,3396.2962031383358,null,null,1087.1836852300003,732.75,1067.7,568.69681101449987,340.00000000000023,1172.4000000000001,1276.7085580000003,4968.7304962444978,6245.4390542444962,null,null,-2427.7542931061689,-2849.1428511061677]
[null,null,"Octubre",9.8439824974712664,5.4571940833706893,7.7172760996290375,8.2840236686390547,13.349891338093766,7.2107240185607822,5.45625587958608,null,null,5.6011768760771661,4.1369902938752405,"n.d.",5.8706605424630274,6.0479765064655711,"n.d.",9.2679938744257235,null,null,96.241230565318801,94.291559530762555,73.73324603906886,90.244400190458123,102.72282027629517,96.160395803312412,105.362500852991,null,null,-0.27729724546007056,0,1.3927752414213912,0,4.9643281807372253,-5.5566011525464129E-2,0,null,null,3830.9,2400.5,4288,2432.7214627310786,937,2349.4,1778.0790366305998,null,null,63.03120920626025,91.211372904997688,108.84084445848478,114.72045926651218,102.35668617667295,46.033940308528813,181.85096832776759,null,null,-2.5891108759979073,-0.9455913292955086,-2.6061521431646235,-0.38234972677595752,-0.82319960390700753,-0.14991412475953161,-0.83091882247993143,null,null,4.0750000000000002,4.46,3.92,4.01,6.2,2.56,4.58,null,null,5.5679131104605863,2.6672489639783192,4.755712440809301,7.3842622950819674,4.7329236675828037,6.9482563891179092,1.9382060910127283,null,null,10.210000000000001,8.27,7.57,9.73,11.3,8.64,7.5002154543981856,null,null,5.52,"n.a.",6,6.75,"n.a.",7,"n.a.",null,null,38.018408149057059,8.561781786937317,12.239782962650981,32.410606467544191,30.522150238013456,21.35654644900271,14.977994436389652,null,null,764.85920802166675,330.22249999999991,564.58333333333337,203.64756627904345,191.50833333333335,586.69119999999987,793.65674999999999,2641.5121409673766,3435.1688909673762,null,null,1045.2035933408335,727.74249999999995,1103.9750000000001,577.3165859261361,343.80000000000013,1092.9416666666664,1166.6644004166667,4890.9793459336352,6057.6437463503025,null,null,-2249.467204966259,-2622.4748553829259,null,null,855.71888386000046,349.05000000000018,557.80000000000041,192.06288495031004,203.8,587.5024999999996,1091.328,2745.9342688103061,3837.2622688103074,null,null,1222.9790174999998,831.09999999999945,1273.9000000000001,666.02170068195028,423.30000000000007,1221.9999999999991,1563.5625559999999,5639.3007181819485,7202.8632741819529,null,null,-2893.3664493716351,-3365.6010053716345]
[null,null,"Noviembre",10.09065573246583,6.2249443207127042,9.1292319852456831,9.5938787522071696,17.337715694330317,8.4455503512880767,6.4849624060150237,null,null,5.5346728279775164,3.5727031985535023,"n.d.",5.6124370660500391,6.5823969492687695,"n.d.",9.8959284279715121,null,null,94.646456576957391,93.573727357878568,72.030989034932276,89.220281375044721,99.489275229963582,94.887161708075652,104.8657544762938,null,null,-0.6743560786589059,0,0.40455194543369533,0,4.8982167227560192,-0.45025179534550963,0,null,null,3798.9,2284.3000000000002,4301.8,2366.8284898989687,1042,2296.6999999999998,1784.0964512599999,null,null,60.098166460126166,88.68843000940349,108.37753402131352,110.87934538333208,110.55186092174083,44.947834656126702,178.6015501537459,null,null,-2.8073733523547295,-1.8027256525841373,-3.8387807822308035,-1.4817239527389807,-3.771400514974895,-1.3606370630314673,-1.7889496910856006,null,null,3.9649999999999999,4.3099999999999996,3.67,4.13,6.94,2.52,4.58,null,null,5.5402924316813467,1.3792011741272585,3.446160067600196,6.1646885069817525,1.020361778222185,6.126991496828162,0.94075450148656758,null,null,10.32,7.69,7.53,9.81,11.4,7.96,7.4867244832558892,null,null,5.52,"n.a.",6.25,7,"n.a.",7,"n.a.",null,null,36.685443095222148,8.3508424968524508,13.30830496851927,31.961848319293829,31.999821293135099,29.586241076177778,15.398822307000891,null,null,771.72281219833314,330.65916666666658,568.22500000000014,205.51983036221691,193.50000000000003,585.25128333333305,804.41741666666655,2654.8780925605497,3459.2955092272168,null,null,1062.8402213533334,735.71833333333325,1114.675,591.83034734581599,358.05,1114.0499999999997,1190.8146709999999,4977.1639020324819,6167.9785730324811,null,null,-2322.2858094719318,-2708.6830638052656,null,null,813.17907718999959,314.1899999999996,539.60000000000036,205.56567530193252,193.30000000000007,569.73139999999967,975.99499999999989,2635.5661524919342,3611.5611524919368,null,null,1314.2721490100012,791.58999999999924,1210.6000000000004,703.37555576919931,489.9,1336.6000000000008,1248.1117340000001,5846.3377047791946,7094.4494387791929,null,null,-3210.7715522872677,-3482.8882862872706]
[null,null,"Diciembre ",10.805524306129895,4.8570482393200036,8.746260892183626,8.8733216579100915,16.870514505205698,8.8775880857246747,6.3551401869158948,null,null,5.5008339065587037,2.6873822008064505,"n.d.",5.5718630514845389,7.1231759549683984,"n.d.",10.501510574018125,null,null,90.199439227439711,93.907055112425141,71.169064518613752,89.017005179819321,98.484676357381289,94.065738642866251,104.33496715977505,null,null,-3.7726067127003224,0,0.25634214583453679,0,4.7596276814607945,1.3096331938970509,0,null,null,4113.6000000000004,2196.1,4320.3,2514.3013647104272,1018.6,2394.9,2071.6448292949999,null,null,62.761004890056249,84.362689264798803,104.48929136878658,109.25736672958514,102.81078639129224,46.002647914769852,205.64232963566442,null,null,-3.4344174895252664,-0.46448784082534078,-3.5277175147999644,-0.73784986595173541,-3.7832725992908696,-1.549986655101097,-1.6690685413005335,null,null,3.9450000000000003,4.37,3.63,4.21,6.58,3.09,4.58,null,null,4.9225665669887171,2.6635803768817867,3.8104658255097901,6.9683538873994726,1.2005638488919501,5.935484086208036,1.0363330015964629,null,null,10.1,7.65,7.5200000000000005,9.85,10.9,7.99,7.4573336035670863,null,null,5.52,"n.a.",6.5,7.5,"n.a.",7,"n.a.",null,null,37.383995581672337,7.8059213377459358,13.004888400500914,32.422324099251384,31.972200044493061,28.886715560482411,18.616500220957821,null,null,778.03571097583335,334.54583333333329,574.80833333333339,210.74938722034696,194.3666666666667,596.68333333333339,809.64208333333318,2689.1892648628473,3498.83134819618,null,null,1079.4224542308332,735.05083333333323,1131.3166666666666,602.02985110090015,363.62500000000006,1133.0833333333333,1208.6714899166666,5044.5281386650668,6253.1996285817331,null,null,-2355.3388738022195,-2754.3682803855531,null,null,714.11253600000055,329.04000000000042,563.19999999999936,203.79368605859872,184.30000000000004,654.35680000000229,668.28499999999997,2648.8030220586043,3317.0880220585968,null,null,1104.6996995599984,662.68000000000029,1165.4999999999991,645.33497629101657,385.89999999999986,1238.7999999999997,1189.0413080000001,5202.9146758510178,6391.9559838510177,null,null,-2554.1116537924136,-3074.8679617924136]
[null,2008,"Enero",10.562682381513042,4.7468354430379858,8.3884217957769032,8.8747099767981332,17.284569138276552,9.0473962644402057,7.6492537313432738,null,null,5.393216027594832,1.7264949891659129,"n.d.",5.5641697421002529,7.4964217391617103,7.4492982449425833,12.273520736772417,null,null,89.781830211770327,93.390664197196045,71.574882950816317,88.864495538317556,98.088245618042762,94.177388665527488,103.3997963965486,null,null,-4.1739397814222139,0,0.33733100386910347,-2.5925925925921897E-2,4.6671489467424001,0.16557273924963459,0,null,null,4397.3,2221.1999999999998,4319.6000000000004,2426.456912816021,985.7,2328.4,2103.9093223349996,null,null,63.238524256471329,87.258533457943471,106.68222235657143,112.49310045941637,101.03547654863246,45.830523410385403,197.01581925100388,null,null,-2.9962029774948271,-0.59842900302115853,-3.181540738986258,-0.63808204581778494,-4.0558765237270702,-1.7949958747236066,-3.3992374350086569,null,null,3.855,4.12,3.57,4.3,6.88,2.67,3.99,null,null,5.2371002815396039,2.7334138972809563,4.0147998578872617,6.9118806606286718,2.6283527092492625,5.7796920893699877,-0.35422843010624872,null,null,9.8310484430300811,7.61,7.4499999999999993,9.77,11.2,8.5500000000000007,7.2679294698296442,null,null,5.99,"n.a.",6.5,7.5,"n.a.",7,"n.a.",null,null,39.171033006855495,8.1961879990541053,12.106578238569554,31.006310498154164,30.773474301659554,29.125838582409958,18.228357774085158,null,null,780.13154925499987,336.33416666666659,578.93333333333339,212.3194966754545,197.8416666666667,600.14192500000001,817.44883358333334,2705.7021375971212,3523.1509711804542,null,null,1098.2299104000001,746.9649999999998,1135.8083333333332,617.40508347639025,371.67500000000013,1160.8083333333332,1231.9023992499999,5130.8916605430559,6362.7940597930565,null,null,-2425.1895229459356,-2839.6430886126022,null,null,722.48354146999998,332.76,593.6,215.12963907,219.10000000000002,515.15440000000001,764.04900300000008,2598.2275805399995,3362.27658354,null,null,1283.19183266,793.79,1147.0999999999999,654.41248124000003,400.29999999999995,1232,1366.3668700000003,5510.7943138999999,6877.1611838999997,null,null,-2912.5667333599999,-3514.8846003600001]
[null,null,"Febrero",11.39921902026312,5.8180227471566131,8.762392069075803,9.0350200815664881,18.350168350168349,8.678960964408736,8.3720930232558288,null,null,5.2084399571700946,0.98935835462786348,"n.d.",5.7978270253951179,7.504016318899839,7.4039935771924803,12.497015994270708,null,null,88.853743802017576,92.916535477897511,71.460490479471602,88.182952103804979,96.820323387092103,94.698705492824189,102.72093860942843,null,null,-4.5784602562767178,0,0.35832102230599738,-2.5925925925884302E-2,4.6706066414789085,1.4165902319419212,0,null,null,4554.7,2277.1999999999998,4348.3999999999996,2497.9126125206399,950.5,2216.9,2109.3915369452502,null,null,64.162679642461356,89.2565974312663,109.76070940953262,110.70596808519497,94.632141842086185,43.621750791868493,207.57218016126052,null,null,-5.2955658685453368,-1.9826705250103418,-3.5144428109379691,-0.61908557549814935,-4.5716739227645684,-1.4068601234690261,-4.0158798283261934,null,null,3.36,3.72,3.54,4.34,6.71,2.31,4.0199999999999996,null,null,2.8642533030575144,1.7690533278214069,3.6939311967068393,7.0023189913864075,-6.1159900578281322E-2,6.3039239378032965,-1.1120939285162508,null,null,9.3830141843115911,7.69,7.48,9.7799999999999994,10.58,7.75,7.1668935565382172,null,null,5.99,"n.a.",6.5,7.75,"n.a.",8,"n.a.",null,null,39.95423744097446,9.157166994826337,11.606532767833833,30.478026780464894,32.151438223893635,29.413301621695442,18.784687923443787,null,null,792.71631719583331,343.38583333333327,585.57500000000005,218.26491378173421,202.15,596.76431666666679,825.05607558333338,2738.8563809775678,3563.9124565609004,null,null,1123.0927071266665,761.61,1154.4833333333333,630.06561745862655,379.81666666666678,1184.0333333333331,1261.1831490833333,5233.1016579186262,6494.28480700196,null,null,-2494.2452769410588,-2930.3723504410591,null,null,848.24618898999995,388.30999999999995,642.30000000000007,261.82951918999998,230.3,529.59250000000009,794.69590400000004,2900.5782081800007,3695.2741121799995,null,null,1246.0455512699998,797.31999999999994,1176.2000000000003,665.55344933000015,390.4,1232.1000000000001,1270.3392539999998,5507.6190006000015,6777.958254600002,null,null,-2607.0407924200003,-3082.6841424200002]
[null,null,"Marzo",11.035531669493835,5.9891304347826138,9.0995561192137124,9.2465753424657642,18.910978356674178,9.6717926811903663,8.7638376383763994,null,null,4.9032715608534199,0.39791620822179602,"n.d.",6.0600690717857599,6.9676334878863004,7.2402571080763822,12.398698609878721,null,null,89.064507211850696,93.0010916055395,70.458843606882837,88.166181981255562,96.468822639434407,94.142571626723367,102.3810157744677,null,null,-4.7505708485627549,0,-0.71391395974146266,-1.5873015873016476E-2,4.7791748746514084,3.4326177980134931,0,null,null,4890.5902181000001,2271.6999999999998,4338.3999999999996,2520.6142551523426,984.3,2245.1999999999998,2011.2491596709999,null,null,65.066332191708469,89.116259510062605,106.82465662529704,108.77338660927651,97.840598294166227,43.823893178006188,194.73209627253433,null,null,-5.2105227781634218,-2.263562711516772,-3.7851264167393337,-0.69253918495298772,-4.7734230666346384,-2.2264546074199023,-4.453536895674314,null,null,3.3149999999999999,3.59,3.52,4.38,6.7,1.97,3.92,null,null,2.7959233263698549,1.4726694697979643,3.6576169718105054,6.8683385579937202,-0.65842247184592506,5.1136278360219496,-1.5602585340069717,null,null,9.34,7.55,7.5399999999999991,9.74,10.119999999999999,7.62,7.0668405797101448,null,null,5.99,"n.a.",6.75,7.75,"n.a.",9,"n.a.",null,null,40.711522786235534,8.6943036641364824,11.813534750254595,28.717908361377063,31.318681356908495,30.917264622434693,18.305666513210173,null,null,791.03026995916673,342.565,588.72500000000002,222.65278168715494,204.9666666666667,592.56044166666675,825.06483724999987,2742.5001599796556,3567.5649972296546,null,null,1129.9465517716665,762.41166666666652,1158.5249999999999,637.8106179007932,388.25833333333338,1196.95,1254.7671233333335,5273.9021696724594,6528.6692930057934,null,null,-2531.4020096928048,-2961.1042957761383,null,null,837.07030228000008,356.1400000000001,642.5999999999998,281.79157613999996,252.49999999999997,626.64570000000003,907.22113999999999,2996.7475784199987,3903.9687184200011,null,null,1081.0915140900001,749.68000000000006,1167.1999999999998,683.0555211599999,423.2,1330.5000000000002,1156.8111400000009,5434.7270352499982,6591.5381752499998,null,null,-2437.9794568300003,-2687.5694568300005]
[null,null,"Abril",10.946228459681043,6.7883132399261426,10.368823938761327,9.7048808172531356,19.352336629823537,10.833333333333329,8.5242896425298049,null,null,4.5161004344897044,-0.15537474430164439,"n.d.",5.9264137196970639,6.0633090895412307,6.7710748997279078,12.153918348193336,null,null,88.659961694210722,92.794295222729318,69.002788195711148,87.85969969036384,96.036174765018572,93.264884049325971,102.56695956323442,null,null,-4.9265192536198068,0,-1.5963620869363464,1.904761904763105E-2,4.9721947339884585,5.5780514519937539,0,null,null,4936.5400497700002,2312.3000000000002,4468.7,2593.063537103832,1030.5999999999999,2183.9,1957.96682021162,null,null,66.104659310164109,90.068578791601652,110.87539005328935,109.3449405463862,100.9271208100288,44.730661731393361,190.52183488807387,null,null,-6.035562048974489,-2.8826312042310818,-4.8734993694829924,-0.93421624418004401,-5.4785009944851462,-2.8451127819548829,-4.5282854729729873,null,null,3.2549999999999999,3.71,3.52,4.38,6.69,1.96,3.61,null,null,3.0859737981658282,0.47915988608624938,2.5923770491803104,6.5950750129332514,-0.8610461719397603,4.7338345864661679,-1.2433600239723159,null,null,9.36,7.3,7.4899999999999993,9.6999999999999993,11.11,9.19,7.1749420088146607,null,null,5.99,"n.a.",6.75,7.75,"n.a.",9,"n.a.",null,null,41.541538378595064,8.6948252061132436,11.647547358662358,27.080951548609455,30.12781965697371,30.30346700308144,23.934773177279279,null,null,803.95209933750004,354.40916666666664,604.7166666666667,227.44328976120846,212.34166666666667,594.61500000000001,844.6427427499998,2797.4778890987091,3642.1206318487079,null,null,1177.5409911258332,782.05833333333328,1195.8416666666665,653.77107082629334,403.35000000000008,1232.1583333333333,1279.2157099166668,5444.7203952854588,6723.9361052021268,null,null,-2647.2425061867507,-3081.8154733534175,null,null,886.9931207300001,427.65000000000009,723.59999999999991,250.49959858,261.49999999999994,613.17429999999968,924.89186600000005,3163.4170193100017,4088.3088853099998,null,null,1501.2141665200002,921.95000000000027,1391.8000000000002,739.14514439999994,515.5,1393.2,1294.4243149999998,6462.8093109200017,7757.2336259200019,null,null,-3299.39229161,-3668.9247406100003]
[null,null,"Mayo ",11.895754252599259,8.3978623623077819,12.241532411518467,11.249293386093841,21.745405561435575,10.034589986373652,8.8422971741112093,null,null,4.0196017270709508,-0.74144847151336046,"n.d.",5.7097017590317884,5.0105611254142843,5.8087254325647697,12.052895258068274,null,null,90.641379587039154,92.568300187499929,67.632978839046103,87.062106108392328,94.658080880171468,93.697016328587949,102.56441077099062,null,null,-1.7827937926815738,0,-2.7551886641566181,6.3013353489417695E-2,5.2304127548441057,5.823309416984551,0,null,null,4572.5978635600004,2404.9,4573.2,2512.6440159337553,1042.0999999999999,2193.1999999999998,1954.1300465132897,null,null,67.142608765097805,93.582757642488119,110.15779183343813,109.52443778200514,104.74773712305117,45.37248757111292,201.64764739912582,null,null,-6.1626594312349221,-4.2970057349834043,-6.4071937160940404,-2.1746595528455308,-7.0307159131404555,-1.1674419712317112,-4.9909798994974848,null,null,3.4050000000000002,3.74,3.54,4.3899999999999997,6.88,2.27,3.41,null,null,2.6247179927169308,-0.89287956534863222,0.96975474683543483,5.2051626016260126,-2.7003318179827462,6.0212066173435268,-1.5481346741540718,null,null,9.329979941885906,7.43,7.51,9.75,10.5,7.98,7.1572718314129764,null,null,7.0012000000000008,"n.a.",6.75,8,"n.a.",9,"n.a.",null,null,44.099437713414822,8.1486344696407809,11.904972439564965,25.342986887555831,28.99678639715335,29.801814651017811,17.34116912013026,null,null,802.09680668500005,362.4108333333333,602.39166666666677,229.29545216788733,213.64166666666665,592.25172500000008,845.29144924999991,2802.0881505195539,3647.3795997695538,null,null,1197.8683783583331,783.63666666666643,1208.6249999999998,674.56759208676829,409.77500000000003,1258.8166666666666,1299.1597400000003,5533.2893037784343,6832.4490437784334,null,null,-2731.2011532588804,-3185.0694440088805,null,null,842.58615094000015,435.88999999999987,651.1,274.10342878000006,212.50000000000006,610.34900000000016,802.38947799999994,3026.5285797199977,3828.9180577199986,null,null,1315.5589327099997,886.13999999999987,1326.5999999999995,856.78838126999972,440.59999999999985,1498.6999999999996,1434.5739159999998,6324.387313979998,7758.9612299799919,null,null,-3297.8587342599985,-3930.0431722599988]
[null,null,"Junio",12.817967456086151,9.0249187432286,13.556860516511978,12.162162162162158,23.090112402362347,12.204203786191545,9.6188747731397459,null,null,3.4873472665035274,-1.2102911597250756,"n.d.",5.4790248823407488,4.0010776872248996,4.3096210758740821,12.065569972196487,null,null,91.877180042226968,92.348955470240199,67.744863364883628,86.820198429185098,94.049514718680584,92.836035479145622,102.39731350712516,null,null,-4.1547609754369157E-2,0,-2.4451878590017322,-5.7697152935095811E-3,5.5154026438938182,5.3733719158178062,0,null,null,4334.2038455100001,2300.4,4771.3,2547.3266866087911,1035.7,1975,2516.4444039084201,null,null,66.558689524327775,91.068342824567566,116.54173182293516,107.47799049236173,105.59940044694187,43.044906072348724,261.34255074032848,null,null,-6.4865265888916452,-4.7282023253502912,-7.4208290702847091,-2.8460240963855381,-8.0030654718505492,-1.5010166547777892,-5.7370364238410598,null,null,3.4050000000000002,3.87,3.57,4.46,6.47,2.06,3.33,null,null,2.2088968628900898,-1.6738547152936478,-0.13813389679716395,4.5807228915662703,-3.5455173955704762,6.0209831591353096,-2.219960176922136,null,null,9.6,7.2,7.4899999999999993,9.75,10.89,7.51,7.1853794067858985,null,null,8,"n.a.",6.75,8.5,"n.a.",9,"n.a.",null,null,42.836680601841024,8.0828550962577239,12.319732653439619,25.046697395257866,26.547056436769356,25.976049235231713,18.429525070705566,null,null,799.92494641249993,366.76249999999999,612.27499999999998,233.00984341548505,218.70000000000002,589.52339166666673,849.71352583333328,2820.195681494652,3669.9092073279849,null,null,1221.8149682591666,796.65499999999975,1221.9166666666663,692.70684204865984,417.92500000000001,1293.9416666666668,1329.1763065833334,5644.9601436411585,6974.1364502244905,null,null,-2824.7644621465074,-3304.227242896508,null,null,791.39006699999936,392.85000000000036,736.80000000000018,264.32872648000011,266.30000000000007,618.88280000000032,822.349919,3070.5515934800023,3892.9015124800026,null,null,1288.6389449200005,880.72999999999956,1277.6999999999994,787.12276534000011,437.80000000000018,1495.4000000000008,1490.012580999999,6167.3917102599989,7657.404291259998,null,null,-3096.8401167799984,-3764.5027787799954]
[null,null,"Julio",14.169802643782106,9.6385542168674778,14.1558522976616,13.758389261744963,23.632240385523957,13.72787226657409,9.5754290876242099,null,null,2.9565128180604701,-1.1690186086144396,"n.d.",4.9229357417509254,3.1924824964225906,2.467706493994402,11.887346656683761,null,null,93.191976637677129,91.65888374462547,66.812883596266374,85.458117559539815,93.730167313338796,92.149681105612657,102.51070366968486,null,null,3.0323220389572176,0,-3.107954202284462,-2.426961122616467E-2,5.503433179598038,3.8823739796985475,0,null,null,4106.6158990900003,2262.6,4742.3,2441.1181316090333,1053.8,2078.5,2430.5744654860796,null,null,68.873563841179788,88.358065338731308,109.17843992928955,109.47353812678482,101.46131585599383,45.951182117383773,247.26361674072871,null,null,-6.2799466038777334,-5.079010989010996,-7.8277653907408515,-4.0070796460176972,-8.7923432991855428,-0.85983518998930419,-5.5627699917559772,null,null,3.87,4.07,3.68,4.42,6.28,2.0099999999999998,3.48,null,null,1.7081551435300713,-2.0873626373626446,-0.59204349497502162,3.4561061946902703,-3.6721529903823424,6.9746558828017857,-2.3024625657058033,null,null,9.86,7.35,7.51,9.8000000000000007,10.45,8.02,7.0524958516701544,null,null,8.9976000000000003,"n.a.",7.25,9,"n.a.",9,"n.a.",null,null,44.483159397948711,7.4920309007296293,10.554711758621483,22.460381449836355,26.140099248725267,23.636320650778742,18.393413784320135,null,null,805.40352346000009,371.95083333333338,626.13333333333333,234.36683907663198,221.70000000000005,595.55388333333337,863.32232133333321,2855.1084125366324,3718.4307338699655,null,null,1244.679815890833,805.89583333333303,1238.55,707.03401275883061,430.05,1334.2583333333334,1365.4783853333336,5760.4679953163295,7125.9463806496633,null,null,-2905.359582779698,-3407.5156467796974,null,null,798.49376241000027,448.11999999999989,745.3,247.9278598599999,241.20000000000002,659.35229999999956,934.13854600000002,3140.3939222699992,4074.5324682699975,null,null,1350.2782169499997,917.79,1398.6000000000001,836.55592788000013,524.29999999999984,1687.5999999999992,1790.6730790000001,6715.1241448299988,8505.797223829999,null,null,-3574.7302225599997,-4431.2647555600015]
[null,null,"Agosto",15.402643291095183,9.8901098901099047,13.68577995899857,13.99222654081067,23.91632114587259,14.567685589519645,9.8286744815148612,null,null,2.3453141592796869,-0.45836808819381186,"n.d.",4.4244581435027994,2.6018452744087246,0.67405105632109574,11.301115241635699,null,null,93.740100914654661,91.228622115620595,65.901867727213698,84.32831882058494,93.366808188762619,92.772635558947329,101.68238982965907,null,null,5.9188801686540771,0,-3.3577792241937314,-2.5396825396822604E-2,5.2159825068851386,5.3848374792955127,0,null,null,4004.20506015,2304.3000000000002,4714.8999999999996,2386.9813027731525,1020.8,2111.1999999999998,2405.1473954663206,null,null,68.091590818016968,89.869892825384952,105.57612904774093,108.56704527028094,101.52474323814442,44.894407981798054,243.97711180817691,null,null,-5.9813563140696377,-5.2508000000000123,-1.2228390383301209,-3.8530930345835439,-9.0116250936379796,-0.81845555724957486,-5.8442610837438282,null,null,3.89,4.12,3.67,4.37,7.25,2.35,3.41,null,null,1.9127436304356669,-2.1841000000000128,6.0176181897247956,4.0246371164149926,-3.4585831760604573,8.0060222594907806,-2.584529519157921,null,null,10.43,7.49,7.5600000000000005,10.09,10.83,8.26,6.9901199690402471,null,null,10,"n.a.",7.25,9,"n.a.",9.5,"n.a.",null,null,41.990596270935598,7.5957732425602664,0,20.634849799284403,25.761831771668021,22.412121148538368,19.126106651075169,null,null,804.43549423833338,378.05916666666673,634.1583333333333,236.07527319826457,225.31666666666663,593.14105833333349,872.84756991666654,2871.1859924365986,3744.0335623532651,null,null,1263.8653700091663,811.84583333333319,1236.333333333333,720.44756931555548,434.06666666666661,1351.3416666666665,1394.3817409999999,5817.9004393247205,7212.2821803247207,null,null,-2946.7144468881233,-3468.2486179714565,null,null,793.99849496000024,422.52,685.00000000000045,234.07268586000009,251.2999999999999,599.61660000000029,933.50698299999999,2986.507780820004,3920.0147638200033,null,null,1371.2307296899999,776.63000000000011,1233.0999999999995,839.3081174099998,437.5999999999998,1376.7999999999993,1651.9555809999995,6034.6688471000016,7686.6244281000036,null,null,-3048.1610662800013,-3766.6096642800003]
[null,null,"Setiembre",15.76682087170731,8.6784376672017167,12.748364803159332,13.716814159292026,22.791651136787188,14.578587699316625,10.044843049327357,null,null,1.6891821344895621,0.26463623957598736,"n.d.",3.8433855305341198,2.0565767354574906,-0.85386761157065971,10.174006688204946,null,null,93.037781196699981,91.4865492321061,66.38816486328264,84.088475142358675,92.83595528287357,91.932485136217181,100.79695610489442,null,null,6.3147634110128772,0,-3.1191989579150219,-2.5799949609446409E-2,4.5075027282833737,4.5802283058409579,0,null,null,3814.0297339700001,2259,4745.0700062100004,2358.4707795904228,1053,2099.1999999999998,2224.2239325130799,null,null,65.896672714668398,89.602073976646352,107.52010803754504,109.26377360670192,100.20920832464182,43.949378141292506,223.51695737436086,null,null,-5.6292647777978155,-3.8907788499409257,-6.5707070928196218,-3.2421011673151678,-8.8986670634963794,-0.47878727634194551,-6.0473920130399366,null,null,3.9849999999999999,4.45,3.73,4.43,6.53,2.79,3.39,null,null,2.1881737005630981,-1.038327097282399,0.81742666374780382,4.6019455252918364,-4.1155066458660539,7.7600994035785327,-3.0970795979353456,null,null,10.59,7.55,7.66,10.14,10.52,7.91,6.6366666666666667,null,null,10,"n.a.",7.25,9,"n.a.",9.5,"n.a.",null,null,39.166562363655764,7.2704308649084171,10.835783331133708,18.88194961469982,23.757716516697556,20.983410613861441,20.028507696367058,null,null,809.64569980416672,381.02333333333337,643.25833333333344,239.20898882257009,228.84166666666667,592.01935833333346,887.24102391666656,2893.9973802934037,3781.2384042100698,null,null,1287.043767578333,823.17583333333312,1246.5499999999995,738.16816918268057,440.49999999999994,1361.4416666666666,1441.9641643333334,5896.8794367610126,7338.8436010943478,null,null,-3002.8820564676084,-3557.6051968842753,null,null,811.47627181999997,375.76000000000022,638.19999999999959,239.40258559999984,230.00000000000009,519.8739999999998,1028.0414479999999,2814.712857419996,3842.7543054199959,null,null,1365.3244560599996,868.71,1190.3,781.34400941999957,417.19999999999993,1293.6000000000008,1847.6976380000001,5916.4784654800023,7764.1761034800074,null,null,-3101.7656080599954,-3921.4217980599933]
[null,null,"Octubre",16.303829005605895,7.4062267559239237,12.926634278334644,13.060109289617488,20.286679448552906,12.843500961802684,9.4558429973238383,null,null,0.93752115621720133,0.2723120174281175,"n.d.",0.36751506905276521,1.3938395756788735,-1.8675275385241692,8.5884067720596438,null,null,91.36508936140892,90.998533909338022,65.942341895395302,82.716038480899229,92.931433230124085,92.383058701801957,99.778772457207836,null,null,6.5177765774429259,0,-2.566935811082844,-2.582514487271895E-2,4.9837786946512184,4.5879402542512215,0,null,null,3625.18987436,2342.8000000000002,4787.33603958,2336.5118956681367,1017.2,2007.7,2373.8951024462003,null,null,65.366507693882184,91.234011266785103,108.75473456555767,108.94739978786481,100.27315939094007,43.65050432148049,185.57028394158723,null,null,-4.9902303778202759,-2.3706509695290898,-6.647355007351722,-2.167085548574192,-5.9754369259809499,1.4059285866488158,-5.6879951100244668,null,null,4.1150000000000002,4.8600000000000003,3.78,4.4400000000000004,6.52,2.85,3.23,null,null,3.2726102200905576,1.1021458250890337,0.73797091978436802,5.4837119381343644,-1.3933432089234989,10.196864631213671,-2.3959521869057503,null,null,11.92,8.59,7.84,10.48,11.26,7.69,6.833333333333333,null,null,10,"n.a.",7.25,9,"n.a.",9.5,"n.a.",null,null,34.832020144123788,7.030582101039573,9.6039807750441639,15.315869356785949,17.990331566078609,18.635269939082487,19.276794903484884,null,null,813.74625185083335,385.98250000000007,648.7166666666667,240.53107061837758,230.69166666666663,589.7270583333335,906.69614016666662,2909.3952141358786,3816.091354302544,null,null,1307.0606982074999,823.23333333333323,1248.2916666666663,743.8136945208513,448.70833333333326,1368.0166666666667,1479.60706725,5939.1243927283504,7418.7314599783504,null,null,-3029.7291785924722,-3602.6401056758064,null,null,904.92550842000037,408.55999999999995,623.30000000000018,207.92786650000016,225.99999999999994,559.99489999999969,1324.789395,2930.7082749200017,4255.4976699200051,null,null,1463.18218505,831.79000000000087,1294.7999999999997,733.76800473999992,521.79999999999984,1300.9000000000001,2015.277391000001,6146.2401897899981,8161.5175807899941,null,null,-3215.53191487,-3906.0199108700035]
[null,null,"Noviembre",16.297472981281039,5.294055980710751,10.846209560598744,10.902255639097751,15.423669467787132,7.214198947226345,7.6787290379523521,null,null,4.9429688203682626E-2,-9.9402785039743827E-2,"n.d.",-6.6205818479210421E-2,0.52255617917537456,-2.281037049170366,6.8671429362574106,null,null,88.264102634847958,89.819474977015631,65.600327904010499,81.288925444153776,91.467697561572209,94.231537203212639,98.42925617109475,null,null,7.3073798760524058,0,-0.11804348014108808,-2.5846560846531627E-2,4.9943474777764143,5.3466395672879798,0,null,null,3753.9122622899999,2407.6,4727.00320663,2330.8160575153879,1012.8,1986.5,2352.9313784329697,null,null,63.576285808664053,91.620262249491304,104.03167619691629,106.75175348852422,97.152063869333418,42.269402515413972,235.4018942976428,null,null,-4.5551058380552325,-0.39323775388290078,-4.8681949360196022,0.20535593220338458,-2.231556846658644,6.8421917290866761,-4.0664754098360776,null,null,4.2850000000000001,4.88,3.77,4.58,6.96,3.1,3.3,null,null,3.9489482453829097,3.6620718837116839,2.6557429893819759,7.8968135593220277,3.4446162578896371,15.954790709385035,-0.99251639344263476,null,null,11.88,9.15,8.0500000000000007,10.72,11.96,8.69,6.61,null,null,10,"n.a.",7.25,9,"n.a.",9.5,"n.a.",null,null,30.502748713499095,6.1315329171933719,9.8041638801219975,13.224243706789673,15.319832533958945,17.005980941688303,18.383480606932913,null,null,800.82214952333334,390.36916666666667,646.9083333333333,237.2448977890499,230.07500000000002,579.39918333333355,909.0975698333333,2884.8187306457171,3793.9163004790494,null,null,1286.128622883333,817.22583333333341,1229.3916666666664,740.13419594758454,437.9666666666667,1351.7499999999998,1495.8232435833331,5862.5969854975847,7358.4202290809189,null,null,-2977.7782548518676,-3564.5039286018678,null,null,658.08984925999903,366.82999999999993,517.89999999999964,166.13160134999998,185.89999999999992,445.79690000000028,1004.8121560000001,2340.6483506099976,3345.4605066099975,null,null,1063.0872451200012,719.5,983.79999999999882,659.22157288999915,361,1141.4000000000001,1442.7058499999998,4928.0088180099992,6370.7146680099977,null,null,-2587.3604674000053,-3025.2541614000074]
[null,null,"Diciembre ",13.902332617361093,5.4742604484682627,9.4002272319559861,10.831099195710451,13.777893098079922,4.5172482818442559,6.7662565905096752,null,null,-0.96437401340203366,-0.20746612435615844,"n.d.",0.3220358332547254,-0.50638206847946365,-2.3978065230018628,5.2165354330708613,null,null,87.053265669854682,89.114536452556138,65.752511471485207,80.370292520057021,91.030668251690841,94.753375187734449,97.812123525295632,null,null,9.8289997657531529,0,0.98165698380179278,-2.5925925925921897E-2,5.0703396991881178,5.1851343570343875,0,null,null,3799.0988521700001,2539.5,4658.8242851999994,2460.0103567114747,1029.8,2165.4,2611.5755368652699,null,null,65.628342679764373,95.097400408924443,96.070211922545042,105.70758733369181,98.097638346079535,42.00070915185217,254.90494417062189,null,null,-2.1091162596567647,-8.9368200419206303E-2,-3.592522000546595,0.91932752781809823,-1.2442415527485853,9.5512959652706932,-3.2653168724279924,null,null,4.0999999999999996,5.38,3.82,4.82,6.63,2.76,3.28,null,null,5.9943174347232189,3.8926459726519584,4.0582847772615489,8.3089501693275309,4.887591588169232,18.583298008171614,0.14399999999999138,null,null,11.52,9.58,8.129999999999999,10.7,12.63,8.9700000000000006,6.92,null,null,10,"n.a.",7.25,7.75,"n.a.",9.5,"n.a.",null,null,33.873684582043808,4.4147711261212752,11.221711450122829,10.406254330647702,11.58457913730382,13.614271082474684,16.017035050488349,null,null,791.97305865750002,386.75666666666672,644.78333333333342,236.08202375333335,229.25,562.29166666666663,903.92448191666665,2851.1367490775006,3755.0612309941666,null,null,1281.0406608666667,818.13916666666671,1212.208333333333,734.45614720833328,434.19166666666661,1332.7416666666666,1505.5099901666665,5812.7776414083319,7318.2876315749991,null,null,-2961.6408923308322,-3563.226400580832,null,null,607.92344561000027,285.69000000000051,537.70000000000027,189.83919762999994,174.40000000000009,449.06660000000011,606.20794499999988,2244.6192432400057,2850.8271882400004,null,null,1043.6441553599998,673.63999999999942,959.29999999999973,577.19839142000092,340.60000000000036,1010.6999999999998,1305.2822669999994,4605.0825467799878,5910.3648137799901,null,null,-2360.4633035399893,-3059.5376255399824]
[null,2009,"Enero",13.500969560130388,3.812897176789261,7.8813358597821086,10.069259456579651,12.456215292609993,3.6797465430183993,4.9393414211438307,null,null,-1.9839744807559974,-0.13156714561076269,"n.d.",-1.4109345574948178,-1.5682472758030654,-2.4968406979958475,3.1417542354707186,null,null,88.196609796965618,89.987410606746366,67.663825430949615,80.759168292876652,91.925924113287877,95.201751990570912,98.562327740853505,null,null,11.463687442321563,0,1.9559590130220801,0,5.3597905029247777,4.7761945670527739,0,null,null,3844.11383252,2370.6999999999998,4758.5618823800005,2421.723321083191,973.1,2085.4,2569.2381637559597,null,null,66.651464268674445,87.59279970707567,97.995100378001837,103.63297445819109,94.678187920274411,44.22873124460768,249.31663585089194,null,null,-1.9832161512398996,1.4324836929252265,-2.2073659366595448,1.908562439496609,1.4002658408947768,9.2113009294626771,-1.3334764657307852,null,null,4.07,5.3,3.85,4.91,6.69,2.92,3.54,null,null,6.4924823712326605,5.5360200702458489,5.5882364564465528,8.6406873184898298,6.5438254774697704,20.727532785841593,2.2114285714285877,null,null,11.62,9.56,8.17,10.7,12.79,9.01,7.26,null,null,10,"n.a.",7,6.75,"n.a.",8.5,"n.a.",null,null,32.017584369039788,3.2480113609204775,7.8572985171677212,9.6690389001451891,8.6436038048413053,9.5296777957637033,15.920851067399155,null,null,783.35939617500014,385.42750000000007,644.37500000000011,233.00087980916669,226.44166666666669,549.8288,891.69803058333343,2822.4332426508336,3714.1312732341667,null,null,1245.6694817091666,801.00500000000011,1186.7249999999995,721.17134566749985,428.02500000000003,1306.4416666666664,1494.9247555000002,5689.0374940433321,7183.9622495433323,null,null,-2866.604251392499,-3469.8309763091656,null,null,619.11959167999998,316.81,588.70000000000005,178.15591174000002,185.4,365.6,617.33158700000013,2253.7855034200002,2871.1170904199998,null,null,858.73768276999999,588.17999999999995,841.3,494.99486274999998,326.3,916.39999999999986,1239.3440539999997,4025.9125455199992,5265.2565995199984,null,null,-1772.1270420999995,-2394.139509099999]
[null,null,"Febrero",12.748404475091387,2.8627532038032202,6.4980887974125228,9.7522403795466541,10.777340808300545,4.030900267406146,4.2918454935622314,null,null,-2.6283340257227206,-0.21647570697032578,"n.d.",-3.2693742213382575,-2.5418266117782231,-2.681778661260287,1.8355437665782535,null,null,89.281491889059964,90.543946329609113,69.164804742419591,80.537064275104669,92.230380168395428,95.892598465643715,98.726372924648771,null,null,13.024229957862781,0,2.8339270724055421,0,5.2770847462501571,5.094223630388,0,null,null,4077.23960304,2411.1999999999998,4742.3425540299995,2437.42831220364,971.4,2095.6,2527.6139956297602,null,null,70.609184475371734,87.957979198988497,101.78057197975461,102.71484167979953,91.297261711037422,44.813694700109977,240.08142219102305,null,null,-0.6637827635571788,2.2527559529790051,-0.890240198785199,2.2029250720461082,1.9819024512420731,7.8333453922315446,-0.70172839506172802,null,null,4.7650000000000006,5.18,3.84,4.91,6.74,2.96,3.56,null,null,7.8684887526444296,6.5205787199839289,6.9972252898950886,9.2825072046109511,9.1475304866755458,18.618602437166807,3.028189300411523,null,null,11.7,9.57,8.2100000000000009,10.53,13.12,9.4499999999999993,7.45,null,null,10,"n.a.",6.5,6.75,"n.a.",6,"n.a.",null,null,30.114857246898019,2.0790668190203254,7.2574770262722632,7.5942103229184488,5.7227148663661298,8.1191016349958733,14.695887194110057,null,null,769.86674730416678,379.80166666666679,641.05833333333328,227.64976429666669,225.04999999999998,540.90442500000006,883.01920299999995,2784.3309366008339,3667.3501396008337,null,null,1211.1044516741665,783.21583333333353,1162.5666666666664,707.17295374749995,422.05,1270.4999999999998,1479.7207896666666,5556.6099054216647,7036.3306950883316,null,null,-2772.2789688208322,-3368.9805554874988,null,null,686.33440253999993,320.80000000000013,602.5,197.61613303999997,213.6,422.50000000000006,690.54997300000002,2443.3505355800007,3133.90050858,null,null,831.26519084999995,583.85,886.3,497.57274629,318.7,800.8,1087.8916639999998,3918.4879371400002,5006.3796011400009,null,null,-1475.1374015599999,-1872.4790925599996]
[null,null,"Marzo",12.321919553187472,2.5535842477694537,4.998546934030812,8.7774294670846302,8.4582441113490336,2.4408452075692173,3.7319762510601997,null,null,-2.8767162896419025,-0.42785360266989869,"n.d.",-3.6438782884365835,-3.1919201832507174,-2.7908342198176763,0.9473185621809439,null,null,89.955670088756875,90.33753503701648,70.660531884941577,80.73291015675936,93.089133697851153,96.270483103125201,98.319082187132665,null,null,13.882595586491403,0,5.7045414138887862,-1.0054506006183345E-2,5.0614876593412648,5.1596696632062482,0,null,null,4167.2698822599996,2516.1999999999998,5029.7989562299999,2552.9074220040643,970.2,2103.8000000000002,2855.6692107751196,null,null,71.139594237171565,91.509229477886066,106.08711876102772,103.05592734085489,89.652756602972303,44.545407375055198,280.3169105965531,null,null,-0.50917893449697749,2.4635080000000058,0.57282037088291582,2.8797982708933803,3.8620235753552814,8.5309280441050639,-0.15614881439082229,null,null,4.3550000000000004,5.08,3.91,4.93,6.73,2.83,3.57,null,null,8.6876012141083567,6.9392170000000055,8.4110240797121438,10.372161383285309,10.884963986858031,17.843619657171821,3.3625347506132663,null,null,11.71,9.67,8.24,10.36,12.56,8.7799999999999994,7.22,null,null,10,"n.a.",6.25,5.75,"n.a.",6,"n.a.",null,null,27.25950451576702,0.74743671383639132,7.5502774910768844,6.3568584289452001,4.3063380781609206,5.6221184625666165,13.850052149296799,null,null,764.49113144166677,379.08750000000003,641.69999999999993,223.7423315325,224.02499999999998,529.05061666666666,892.42940558333339,2762.0965796408341,3654.525985224167,null,null,1191.0609915091666,771.69333333333327,1140.6666666666663,694.05017595083336,415.38333333333327,1244.0916666666665,1497.9382996666664,5456.9461674599988,6954.8844671266661,null,null,-2694.8495878191661,-3300.3584819024986,null,null,772.56291193000015,347.56999999999994,650.30000000000007,234.90238296999996,240.20000000000002,484.39999999999992,1020.143571,2729.9352948999995,3750.0788659000018,null,null,840.56999211000016,611.41000000000008,904.40000000000009,525.5821876,343.19999999999993,1013.5999999999998,1375.4212599999996,4238.7621797100001,5614.1834397099992,null,null,-1508.8268848100006,-1864.1045738100001]
[null,null,"Abril",11.750730456751167,1.7900732302685161,3.6226069012954087,8.0703569580962196,6.8805848903330622,0.69453294252581921,3.7162162162161949,null,null,-2.9945906332680408,-0.53049798068444842,"n.d.",-3.9196066754295855,-3.519219245015869,-2.4581807289953721,0.40271966527197189,null,null,90.586008226687753,90.490658267162758,70.920008216494196,80.663247152883471,93.303357137565996,96.802213282287511,98.163201477998498,null,null,15.026010444888142,0,7.2923493173073091,-4.4964980215379084E-2,4.6100337417267552,5.289515602866075,0,null,null,4270.68760372,2673.8,5001.00000507,2589.0663725737131,1012.8,2038.9,2843.7327772075,null,null,74.44841969993783,92.459780099396525,104.57828706650527,101.64577796076715,91.050189092455327,43.989528511517797,277.92363104019569,null,null,-0.22436583253315115,3.1731254996003142,1.9468658037393682,2.9699569171852596,5.8133313868211136,8.3574220084793875,-6.3843648208448622E-2,null,null,3.88,5.0199999999999996,3.94,4.8899999999999997,6.87,2.86,3.65,null,null,9.2699792662724381,7.6431095123900832,9.8698473282442922,10.983255146002877,11.93055755616375,18.099758273745479,3.1082736156352011,null,null,12.37,9.57,8.2199999999999989,10.42,13.39,8.86,6.94,null,null,10,"n.a.",5.75,4.5,"n.a.",5,"n.a.",null,null,26.034349863958163,-0.52989003840799853,7.2769292530270757,4.9064276594758205,1.2811321421830835,4.0878600728111669,12.753610935807981,null,null,751.6544517133334,369.19750000000005,634.09166666666658,218.71941284583332,219.2833333333333,516.60275833333333,889.50710041666662,2709.5491228925002,3599.0562233091673,null,null,1135.8620673766666,741.26166666666677,1098.1083333333329,674.91882522083336,399.79999999999995,1210.0999999999997,1482.8013018333331,5260.0508925974991,6742.8521944308313,null,null,-2550.5017697049993,-3143.7959711216649,null,null,732.95296399000017,308.97000000000003,632.30000000000007,190.22457434,204.60000000000002,463.79999999999984,889.8242039999999,2532.8475383300001,3422.6717423299997,null,null,838.82707692999975,556.77,881.09999999999957,509.56893564000006,328.5,985.30000000000007,1112.7803410000004,4100.0660125700015,5212.846353570003,null,null,-1567.2184742399986,-1790.1746112399996]
[null,null,"Mayo ",9.5237291517516844,0.97595331522287265,2.2943037974683538,6.1483739837398339,4.093890776890861,0.4731210110183135,2.5125628140703617,null,null,-2.9390108921120919,-0.36778075492722839,"n.d.",-4.3153668507364538,-3.5963933986567671,-1.6467224045798499,0.10917598128412163,null,null,91.708299448893456,90.498870127164523,71.111148448446755,80.896264224005975,94.21314581271227,97.303519029437282,98.76849326069437,null,null,12.251337850033662,0,8.9511446446919702,-8.8883271085537507E-2,4.949463199779637,5.6948552544146995,0,null,null,3900.5751640499998,2928.9,5007.5742491400006,2534.2079799180215,1020.3,2073,2750.9609279830502,null,null,68.946206400912146,106.51126425077733,103.9715316319803,101.00720677011998,90.353162156206608,46.009365570511704,269.27841766847916,null,null,1.5761614963424628,3.8465065763252162,3.3195359628770311,4.1749353757778875,8.5045543524609251,7.292377220150442,1.0998039215686177,null,null,3.0249999999999999,4.8600000000000003,3.98,4.8499999999999996,6.67,2.96,3.64,null,null,11.50095138816487,8.3228198485452243,11.296519721577726,12.879731929152708,14.926910896088271,17.872321281840602,3.577549019607833,null,null,11.88,9.3800000000000008,8.19,10.39,12.73,7.95,6.18,null,null,10,"n.a.",5.75,4.5,"n.a.",5,"n.a.",null,null,21.553702912780803,-1.7276770595137658,6.6666450993285276,4.2958599916558038,-0.22263314117164645,3.4379300023831494,11.16420211061644,null,null,744.73560864916669,360.93333333333345,630.17500000000007,215.18837963166663,218.81666666666663,505.0153416666667,894.82164533333344,2674.8643299475007,3569.6859752808336,null,null,1100.1522380383333,717.75999999999988,1061.5333333333331,644.06632935749997,391.75833333333338,1164.3499999999997,1476.5161136666666,5079.6202340624986,6556.1363477291643,null,null,-2404.7559041149993,-2986.4503724483316,null,null,759.56003417000011,336.72000000000025,604.09999999999991,231.73103021000009,206.90000000000003,471.29999999999984,866.16401700000006,2610.311064380001,3476.4750813799983,null,null,887.04098064999971,604.11999999999989,887.70000000000027,486.55843090999997,344.10000000000014,949.69999999999993,1359.151658,4159.2194115599959,5518.3710695599948,null,null,-1548.9083471800004,-2041.8959881800001]
[null,null,"Junio",8.1960708160521012,-0.22856007154922967,0.61721530249109913,5.4216867469879579,1.9579012536759026,0.25742021524050807,1.8211920529801224,null,null,-2.6646595166421738,-0.31864525233457491,"n.d.",-4.9966645144305151,-3.4703802972684819,-0.487469372393808,-3.1012560086836345E-2,null,null,92.689934715801655,91.239880633450213,72.019069262155355,81.163772180817631,95.505370606716042,95.99569892612476,99.130967859916382,null,null,10.733097325713075,0,8.5136735215632129,-2.0157373655426494E-2,5.0347875789289471,5.1702130151183292,0,null,null,3935.8131411099998,2781.5,5137.2821378400004,2444.222793169075,1030.9000000000001,2047.1,2705.4254256132299,null,null,69.162905270247265,99.033272901021547,105.71208246632288,95.133024266402927,89.2348601708687,46.865895920709086,262.94309314142248,null,null,2.5915258870305524,4.9899651394422202,5.0814213871235197,4.4377142857142795,11.197414147055508,6.8748824475654375,1.6684227642276523,null,null,2.6799999999999997,4.75,3.98,4.8,6.64,2.92,3.52,null,null,12.407039444870774,9.7608695219123405,13.121794970986466,13.449142857142851,17.58451779456103,17.407768669182712,4.7915447154471646,null,null,11.89,9.51,8.19,10.38,13.1,8.3800000000000008,6.7,null,null,10,"n.a.",5.25,3.5,"n.a.",5,"n.a.",null,null,19.343395537355423,-3.6012317784486214,3.6638144214194535,2.781974780178853,-2.5010110642093464,4.4587341232797062,8.6314873635808596,null,null,741.06604578083341,355.69583333333344,620.6,211.23475491333332,214.79999999999998,495.44177500000001,918.17510016666677,2638.8384090274999,3557.0135091941665,null,null,1077.31086048,696.95000000000016,1038.0416666666667,623.23496731666671,388.74999999999994,1124.9416666666666,1485.34047775,4949.2291611299997,6434.5696388799988,null,null,-2310.3907521024998,-2877.5561296858323,null,null,747.35531257999992,330,621.90000000000009,216.88522985999998,218.10000000000002,503.99999999999989,1102.591377,2638.2405424399949,3740.8319194399992,null,null,1014.5424142200009,631.01000000000022,995.80000000000041,537.14642085000014,401.69999999999993,1022.5000000000003,1595.9049500000001,4602.6988350700049,6198.603785070005,null,null,-1964.4582926300027,-2457.7718656300021]
[null,null,"Julio",6.9027168638465444,-1.8936420722135072,-0.30204843758580524,3.9823008849557495,7.642922653622311E-2,-1.2208148939417038,1.8961253091508559,null,null,-2.2325536203432224,-1.0740424227950895,"n.d.",-5.1832013450637682,-3.279349676551472,0.95260092042475197,0.14927677973953365,null,null,92.552109863336042,91.468739593386104,72.084264842166817,80.460363085910018,96.403685339830261,95.879091408108167,98.493331816543446,null,null,8.4429338784623464,0,9.8679974297222461,-1.6567167784784821E-3,5.1358332986173059,4.978467391811769,0,null,null,3884.3575550800001,2676.3,5035.4762010599998,2204.9730131065198,1102.3,2059.3000000000002,2486.8558421243306,null,null,70.676061190090877,93.778448371920916,102.69189442600724,94.431673088392102,89.095655740334507,45.554744272304319,246.30407128266279,null,null,4.7681511618132761,6.4864726472647334,6.0001718629503094,5.6718297872340457,13.796161103303087,8.5350115865904499,1.5740291262136019,null,null,2.4,4.47,3.97,4.72,6.85,2.77,3.5,null,null,14.075678876635081,11.389314931493157,14.235045169108732,14.750297872340429,19.742304676463132,19.073669086976668,4.3022977346278415,null,null,11.75,9.2799999999999994,8.18,10.27,13.01,8.5399999999999991,6.28,null,null,9,"n.a.",4.75,4,"n.a.",5,"n.a.",null,null,16.159577350848188,-3.8519661001622407,3.6861062050727256,3.1286260190423576,-4.6859187722143698,5.350022954087752,6.8282020722149506,null,null,736.17801880250011,349.44250000000011,609.51666666666665,208.16840627666667,213.39166666666668,479.81241666666671,933.98922725,2596.5096750791668,3530.498902329166,null,null,1045.833766275,675.81500000000017,1012.6749999999998,597.48407812833329,375.09166666666664,1076.7416666666668,1446.1744527499998,4783.6411777366666,6229.8156304866652,null,null,-2187.1315026574994,-2699.3167281574988,null,null,739.83743867000067,373.07999999999947,612.30000000000041,211.13167621999992,224.29999999999998,471.79999999999984,1123.9080709999998,2632.4491148900051,3756.3571858899995,null,null,972.55308648999926,664.17000000000007,1094.1999999999996,527.54525762000003,360.4,1109.2000000000003,1320.6807789999998,4728.0683441100009,6048.7491231099993,null,null,-2095.6192292199976,-2292.391937219998]
[null,null,"Agosto",5.711656780118167,-2.1568627450980458,-0.73224043715847198,3.117389186556248,-0.12167300380227877,-0.4695837780149395,1.8062397372742276,null,null,-1.6345403938590555,-2.4281068598721376,"n.d.",-5.2174586367155618,-3.1158041594838104,2.4008943054229173,0.6268948152715681,null,null,92.956348677663811,91.855672100327993,72.937068601290989,80.564639558542595,96.914967013720954,95.406062948507071,98.395804565737123,null,null,6.4072662613609142,0,11.520207399372996,-5.2923493793482742E-4,5.2360081125526508,3.8978754329450584,0,null,null,4052.1901452900001,2977.5,5169.9563626600002,2253.0741964783074,1252,2272.6999999999998,2736.8132973672004,null,null,74.771124243712023,100.8485845295731,107.42127337101044,101.25664797093259,101.04319676813836,49.68427811180586,262.50022358290846,null,null,5.4755959713332976,6.4867735470941961,6.4393922712760121,6.6260510155881081,13.666907492497083,7.6957216384301939,1.6538870967741861,null,null,2.0949999999999998,4.1900000000000004,3.98,4.7,6.66,2.73,3.49,null,null,15.796122895523851,11.862725450901809,14.790542772211825,15.470340103920655,19.472475348296676,17.632382586317817,3.8934354838709595,null,null,11.13,9.4499999999999993,8.14,10.38,12.66,8.3699999999999992,5.77,null,null,9,"n.a.",4.75,4.5,"n.a.",5,"n.a.",null,null,15.457909905457591,-5.2337645942481359,13.962377853539776,0.89330562994243135,-7.220567762662955,4.2568713411206272,4.860769023204381,null,null,731.98027525750001,339.36000000000007,598.76666666666665,204.07553325916669,212.53333333333333,469.3610333333333,939.66850633333343,2556.0768418499997,3495.7453481833327,null,null,1013.4889709183334,657.80000000000007,987.94999999999982,570.47214933499993,368.98333333333329,1049.625,1417.286102916667,4648.319453586666,6065.6055565033339,null,null,-2092.2426117366658,-2569.8602083199989,null,null,743.62557242000003,301.5300000000002,555.99999999999977,184.95820965000007,241.00000000000006,474.20000000000005,1001.6583320000001,2501.3137820699958,3502.9721140700021,null,null,983.09318540999993,560.44999999999982,936.39999999999941,515.16497188999983,364.3,1051.4000000000003,1305.2953830000006,4410.8081573000018,5716.103540300006,null,null,-1909.4943752299987,-2213.1314262300002]
[null,null,"Setiembre",4.8338258966047105,-1.8018905080740413,3.2837127845881657E-2,3.0642023346303562,7.5884049172794841E-3,-1.5693716488945144,0.48899755501220976,null,null,-0.99076553017781799,-3.5391023696371873,"n.d.",-4.6236690582679101,-2.9175223810108877,3.7426533762204679,1.3478752958123288,null,null,92.901581267160694,91.966988208294026,73.011242848488308,80.538986002725935,97.034638788851822,95.437324603276011,99.01631229509276,null,null,6.0443056805362074,0,11.445829172969933,-7.3085119453832712E-5,5.8926199209406267,3.5146145608741559,0,null,null,4059.3971229499998,2743.5,5087.2152935399999,2205.5372715607355,1280.0999999999999,2210.9,2717.1761630798001,null,null,73.329865259358243,96.976805099421099,109.82146155057293,97.532801271093874,102.70387497543925,47.874038797009526,260.12001097223407,null,null,6.3588007462114282,5.8778020655770549,5.6253156800525259,6.797508258612547,15.234193822729273,8.035478165070236,2.9565450121654653,null,null,1.89,3.97,4,4.67,6.8,3.09,3.46,null,null,16.317418502179567,11.224137170359969,13.942584527847689,15.520226521944306,20.920196035612253,17.443119013373323,4.7975425790754409,null,null,11.11,9.2200000000000006,8.129999999999999,10.43,13.08,8.14,5.31,null,null,9,"n.a.",4.5,4.5,"n.a.",4,"n.a.",null,null,14.29106524772228,-5.6510718937310305,2.1441244553151773,0.47572555459829413,-7.8327441879963438,4.7104014368545055,2.7135054903900224,null,null,726.6382226991667,333.45666666666671,591.40833333333342,198.45256931000003,214.85833333333335,464.32153333333326,976.90275724999992,2529.1356586758338,3506.0384159258333,null,null,978.05828336916682,634.87083333333328,965.30833333333305,545.48998906000008,362.99166666666662,1023.9833333333332,1389.860042,4510.7024390958322,5900.5624810958316,null,null,-1981.5667804199993,-2394.5240651699992,null,null,747.37164112000028,304.92000000000007,549.89999999999964,171.92701820999991,257.90000000000009,459.40000000000009,1474.8524589999997,2491.4186593300037,3966.2711183300016,null,null,940.15620547000071,593.5600000000004,918.60000000000036,481.55808611999964,345.29999999999984,985.90000000000009,1518.5849069999995,4265.0742915899973,5783.659198589994,null,null,-1773.6556322600009,-1817.3880802599997]
[null,null,"Octubre",4.000146533135247,-2.0280965571824279,-0.65348799215814191,2.6582890285161911,0.4250474383301725,-0.30136068917231806,0.73349633251832314,null,null,-0.35131415433167179,-3.8493612334277163,"n.d.",-1.3458096766079977,-2.5771627578405636,4.9862992254528544,2.2354155911202955,null,null,92.031259373604684,92.71244251221718,73.510074233797809,80.426777882100694,97.121533513052327,95.413577454530994,98.87111270486281,null,null,4.9503423944808889,0,10.950674138348019,-4.7883366205993903E-5,5.1452767567756945,3.1577593598170925,0,null,null,4066.7415792299998,2928.6,5091.3049877000003,2147.3992722455691,1287.2,2074.6,2679.3982361406001,null,null,70.697676389270285,102.20312898058607,107.31574607692107,94.637831456738581,106.48783595663673,44.505917261988913,253.28258737339661,null,null,4.8075446367489114,5.8568797334141145,6.3550172668968896,7.531501883239172,11.181196560136426,5.6784733756717092,2.5775970873786553,null,null,1.7999999999999998,3.71,3.97,4.68,6.51,2.66,3.33,null,null,16.432528257467208,11.287007977380588,14.679416214438412,16.035442561205276,19.075595487186316,15.006584636052754,5.2049919093851287,null,null,11.05,9.0299999999999994,8.09,10.63,12.39,8.3699999999999992,5.9766666666666666,null,null,9,"n.a.",4.5,4.5,"n.a.",4,"n.a.",null,null,13.576656802550202,-6.2531006899954278,1.0204816305484199,1.9247812348975213,-7.9257226098780169,6.0006077528596879,1.9027380954190987,null,null,717.23092837416664,328.03916666666674,590.98333333333323,196.28193630249999,214.69166666666672,457.58862499999992,981.7919886666665,2504.8156563433336,3486.607645009999,null,null,945.0123494825001,618.37249999999995,951.12499999999989,527.91298009499997,352.97500000000008,1008.5083333333332,1359.5736138333334,4403.9061629108319,5763.479776744166,null,null,-1899.090506567499,-2276.8721317341656,null,null,792.03797651999957,343.55000000000018,618.19999999999982,181.88027041000009,223.99999999999991,479.20000000000005,1383.4601720000001,2638.8682469300002,4022.3284189299957,null,null,1066.6309784099994,633.80999999999949,1124.6000000000004,522.84389715999987,401.60000000000019,1115.1999999999998,1651.8402530000012,4864.6848755699975,6516.5251285699997,null,null,-2225.8166286399992,-2494.1967096400003]
[null,null,"Noviembre",2.5665485973429414,-2.9868578255772948E-2,-0.6098557037843747,3.0992736077481866,0.46261186106475438,4.1795178447787418,1.3934426229508079,null,null,0.48640151663239339,-3.2620936812589716,"n.d.",-0.78237204777086866,-2.0128890492582094,6.1587317716445495,3.0833808363994346,null,null,89.830572771703956,91.497951812532136,73.140951853767149,80.294682590700944,97.388719145987963,94.466837624183256,98.861104355691566,null,null,2.5025517023500123,0,8.814506179090781,-2.6461865926904145E-5,5.0350504789669301,2.5544054259094588,0,null,null,4059.79113474,2731.1,5111.03923614,2066.7989592252898,1307.7,2222.9,3026.8883949599999,null,null,68.968896821279259,99.163189183438647,104.15564099024861,90.115674561314222,107.24464415491141,45.25132867871136,279.65670934222254,null,null,6.5162097136514143,3.6609620555722557,6.2982660384594338,7.2752465946453713,12.099993258481819,0.70117636396593153,1.9000808407437466,null,null,1.7949999999999999,3.63,3.9,4.62,6.29,2.76,3.32,null,null,17.075207893961206,9.1526023304452817,14.377537938968938,15.393635509628933,18.603089304627655,9.9064406984472324,4.553112368633804,null,null,10.58,9.1199999999999992,8.09,10.41,12.68,7.92,6.01,null,null,9,"n.a.",4.5,4.5,"n.a.",4,"n.a.",null,null,12.47795754911898,-6.280643711607981,-0.3778745585305221,2.1396956222186958,-8.2262893153439265,6.3891772772979305,1.2092512216758777,null,null,725.03746686916691,321.0266666666667,592.64166666666677,196.02821800416666,216.65000000000006,457.72221666666672,980.36904358333322,2509.106234873334,3489.4752784566667,null,null,948.51602288166669,615.58166666666659,950.20833333333337,518.80922558416671,355.00000000000006,1006.7833333333332,1341.8403479166666,4394.8985817991661,5736.7389297158325,null,null,-1885.7923469258324,-2247.2636512591653,null,null,751.76831120000043,282.67999999999984,537.80000000000064,163.08698176999997,209.40000000000003,447.40000000000009,987.73681499999998,2392.1352929700006,3379.8721079700044,null,null,1105.1313259100007,686.00999999999931,972.79999999999927,549.97651875999964,385.30000000000007,1120.6999999999998,1229.9066589999989,4819.9178446700025,6049.8245036700027,null,null,-2427.7825517000019,-2669.9523957000019]
[null,null,"Diciembre ",4.0470413279510318,-0.18963968459925915,-0.27876468980595154,2.9511369134010756,0.93379779551500885,5.7648110316649532,1.8930041152263277,null,null,1.5260734770044693,-2.3845143627165619,"n.d.",-1.0261203259616567,-1.238705055023912,7.3660650629339424,3.804178359837866,null,null,88.809535258051781,91.713563383348514,73.234761517298608,80.190933751982172,97.255241613191643,94.199993103264404,98.607275504774478,null,null,3.3340916738945312,0,8.1264481505124646,5.2923773924069472E-5,4.9787173587837028,2.3615235599272748,0,null,null,4066.2656085899998,2983.4,5212.5943903699999,2116.3361415778572,1422.8,2851.9,3204.5331848385295,null,null,67.864031627670755,109.47232460815593,101.40223427143657,84.393086823148195,107.9785240937761,54.90819686292938,254.12570304778791,null,null,4.0394792763029699,3.8469349999999976,5.9052263757947756,7.5558787593984844,11.267220973842255,-0.82712862920262176,1.3710420032310275,null,null,1.7850000000000001,3.65,3.88,4.6399999999999997,6.46,2.64,3.29,null,null,15.515057868072553,8.6259979999999974,13.88747807498355,15.530535714285703,18.849367551700816,7.6161332769964503,4.1877221324717393,null,null,10.56,8.42,8.1199999999999992,10.26,12.45,8.09,6.16,null,null,9,"n.a.",4.5,4.5,"n.a.",4,"n.a.",null,null,7.3667687370214452,-5.1099661640702232,-2.6987739204442196,2.5058362240420573,-7.3137881303383834,7.9854357463250425,2.0864406026152249,null,null,731.97497315333351,322.17416666666668,601.14166666666654,196.82933375499999,218.80833333333337,456.90833333333336,988.23281725000004,2527.8368069083335,3516.0696241583341,null,null,949.55567407499996,610.44749999999988,960.94166666666649,518.64481135583321,360.58333333333331,1024.6583333333335,1337.4061076666667,4424.831318764167,5762.2374264308337,null,null,-1896.9945118558328,-2246.1678022724996,null,null,691.17352102000132,299.46000000000004,639.69999999999936,199.45258663999994,200.30000000000004,439.30000000000018,700.5732290000002,2469.3861076600006,3169.9593366600093,null,null,1056.1199696799995,612.02999999999975,1088.099999999999,575.22542067999984,407.59999999999991,1225.1999999999998,1252.0713840000003,4964.2753903600023,6216.3467743599977,null,null,-2494.8892826999945,-3046.3874376999956]
[null,2010,"Enero",5.3430509416811693,0.79277471149022205,1.4325703935452141,3.5818005808325295,1.8504656993086652,6.8531958237840449,3.0553261767134727,null,null,2.4665533960938686,-1.7360015959636457,"n.d.",0.80564986347354317,-0.37247282196453463,8.6295137821220553,4.3091797484145919,null,null,87.128195963229544,91.623847134841967,72.917228907383617,80.01377863005456,97.286627108608656,93.350063488491642,98.151440640339629,null,null,1.4043425142300792,0,6.511100117246432,5.2923773924069472E-5,5.0320863805486331,2.0941890283381257,0,null,null,4072.4222186000002,3013.5,5526.1660629600001,2077.2321656241356,1348.8,2615.7731839341236,2740.80962322,null,null,67.714424980642264,106.01489872560488,107.14559616339592,83.231953567140934,105.11754664533153,51.888946277011719,243.37514712891704,null,null,2.5221873057291084,2.7752240143369113,4.1282889610389466,6.9685981308411185,7.4447034174301541,-1.9308695522654697,0.24712339743588507,null,null,1.7850000000000001,3.59,3.9,4.57,5.97,2.5,3.31,null,null,13.647743187424895,7.7458183990441984,11.916714285714271,14.952626168224295,17.519900196279309,5.9023074860734743,3.2261057692307564,null,null,10.57,8.6,8.1100000000000012,10.32,12.89,8.48,6.38,null,null,9,"n.a.",4.5,4.5,"n.a.",4,"n.a.",null,null,6.3611273081439101,-5.3937263513163192,0.68490266692415869,1.9444348866115568,-6.6741122536062019,10.827182775303257,1.5022583036576886,null,null,740.74932155000022,323.26916666666665,608.01666666666665,200.08065294583332,222.625,459.17500000000001,991.57369949999986,2553.9158078291671,3545.4895073291677,null,null,965.88366715333348,614.63166666666666,967.85833333333312,519.74026435916664,360.625,1032.241666666667,1338.2338819166666,4460.9805981791678,5799.214480095834,null,null,-1907.0647903499994,-2253.7249727666667,null,null,724.41177244000005,329.95,671.2,217.17174202999999,231.2,392.79999999999995,657.42217399999993,2566.73351447,3224.1556884700003,null,null,1054.67359971,638.39,924.3,508.14029879000003,326.8,1007.4,1249.2773450000004,4459.7038984999999,5708.9812435000003,null,null,-1892.9703840299999,-2484.8255550300005]
[null,null,"Febrero",5.5994495134335471,1.0449110820857952,2.4848150193263336,3.5062439961575467,2.7426097137246073,6.6768215283066814,2.9629629629629575,null,null,3.1788527400639679,-1.2314815635812568,"n.d.",3.8926900854350253,0.52034856689350417,9.6295495054994813,5.1625338612210854,null,null,84.943498596612272,91.528215042266552,70.704359348014478,79.476597344702142,96.464783396545613,93.45451702628857,97.940466889270951,null,null,-1.6395877820072453,0,2.5676813557500902,6.7190024562947988E-10,5.2047545986273116,1.7830024185837234,0,null,null,4113.3952816999999,2842.8,5565.4613587100002,2139.2136788249127,1365.3,2430.1143302571368,2698.6626112100003,null,null,67.53921132226634,101.31107825307883,109.21978820344793,82.212047674641838,100.2529709008644,48.967696565438928,245.38156063317626,null,null,2.2732604171966573,2.4989768320572812,3.059170258620695,6.9983758700695988,6.8301854299558782,-1.721856258924326,0.34676258992806269,null,null,1.7749999999999999,3.57,3.92,4.47,4.84,2.52,3.32,null,null,13.939987901825017,7.6847896987173208,10.748114224137936,15.026877030162403,16.67048143284935,5.9836601618276966,2.9496402877697894,null,null,10.83,8.81,8.09,10.29,12.17,8.0399999999999991,6,null,null,9,"n.a.",4.5,4.5,"n.a.",4,"n.a.",null,null,4.8475397809677023,-6.3219050633716805,-0.4549456724735057,1.7579687403344479,-6.9173471035634542,12.957411814775433,1.7389908128091935,null,null,746.97530377000021,327.1658333333333,609.6583333333333,204.95634860416666,224.875,468.82500000000005,999.02322791666654,2582.4558190408338,3581.4790469575005,null,null,976.07669970333336,616.54,976.49166666666633,522.41650837999998,364.05833333333339,1050.916666666667,1352.3180196666667,4506.4998747500003,5858.8178944166675,null,null,-1924.0440557091661,-2277.3388474591666,null,null,761.04618918000006,367.56,622.20000000000005,256.12448094000001,240.59999999999997,538.29999999999995,779.94431400000008,2785.8306701200008,3565.7749841199993,null,null,953.58158144999993,606.74999999999989,989.89999999999986,529.68767453999999,359.90000000000003,1024.9000000000001,1256.9013170000003,4464.7192559899995,5721.6205729899993,null,null,-1678.8885858699996,-2155.8455888699996]
[null,null,"Marzo",5.8416234404887852,0.88999999999998625,3.9299999999999913,3.9865513928914562,4.4243070848204091,7.4268876144608988,2.6982829108749091,null,null,3.6202815659984289,-0.88287324490913943,"n.d.",4.2344293088472904,1.3043014515652855,10.120673939844472,5.9121005161357614,null,null,82.605067891832746,91.612557204026018,69.102381867830942,79.434361100188909,96.18566856407746,93.309101234252793,97.951146821850401,null,null,-5.0052180236404942,0,-0.66045864780634,1.9092906117310185E-5,5.4576500843545697,1.7674650726584078,0,null,null,4155.1881406399998,2605.4,5547.3303416799999,2194.4289586800073,1339.6,2295.5093843614832,2863.5467707600001,null,null,64.968712507060246,93.956580332443437,103.8636744728084,78.436689878235924,99.264380680039309,46.904040003770156,260.47024859669506,null,null,2.0392511843176688,2.5572405590246943,1.6260944866737315,6.4176073903002244,3.8172694779370362,-2.3987361746055278,0.52748407643311013,null,null,1.605,3.47,3.81,4.37,4.1500000000000004,2.2599999999999998,3.24,null,null,13.63204388831376,7.2653384874616069,9.1888771288367277,14.332092378752881,14.855428577099016,4.4989783217814345,3.2733917197452111,null,null,10.24,8.2200000000000006,8,10.220000000000001,10.7,8.1199999999999992,6.06,null,null,9,"n.a.",4.5,4.5,"n.a.",4,"n.a.",null,null,1.8847691291064006,-5.7089838139304909,-1.785619035943975,1.9369577592874609,-7.8151813763154498,15.459624810257754,2.5564165107037518,null,null,759.83754886250028,330.89916666666664,627.34166666666658,208.55448270499997,233.92500000000004,480.2,1013.698034,2640.7578649008337,3654.4558989008342,null,null,1002.8045951283334,624.51666666666654,996.35833333333323,531.81034234166657,370.82500000000005,1072.2833333333335,1367.7006346666667,4598.5982708033343,5966.298905470001,null,null,-1957.8404059024997,-2311.8430065691668,null,null,926.90985303999992,392.36999999999989,862.49999999999989,278.07999217999998,348.80000000000007,620.9,1196.2412440000003,3429.5598452199993,4625.8010892199991,null,null,1161.3047372100002,707.13000000000011,1142.8000000000002,638.30819513999995,424.4,1270,1560.0126400000001,5343.9429323500008,6903.9555723500034,null,null,-1914.3830871300006,-2278.1544831300007]
[null,null,"Abril",5.5560336539428992,0.62949640287767905,3.7504148689014145,4.16467209191,4.8483392870715258,7.6567740302474165,2.6058631921824214,null,null,3.7838268329073186,-0.68465001965783123,"n.d.",4.6169596030331146,2.0011514638880463,10.033781491458607,6.4541334583528762,null,null,79.38294418261269,91.935702118505873,69.135050744029016,79.170079616225294,96.335655531779054,93.457728662994441,97.809780574272224,null,null,-9.5219163222317746,0,-1.0732818611348862,1.9092906136112487E-5,5.8877191630336512,1.6636148452503139,0,null,null,4193.8890468099999,2734.9,5601.6,2144.4307483213433,1401.4,2294.334554135256,2722.5123906899998,null,null,64.39192553967797,94.214858381450114,106.05832560456916,78.60838862677663,100.79181641529063,46.190016049097245,256.23249447958756,null,null,2.0784850189140736,2.5544235924933165,1.7634484964811383,6.0532306985294166,5.1218623263328755,-2.4306636101804457,0.66676190476189412,null,null,1.4899999999999998,3.2,3.69,4.4000000000000004,3.69,2.29,3.29,null,null,13.996325775646683,7.55295799821271,9.3200447856685997,14.213386948529417,15.03920969922739,3.3934009287015861,2.7816507936507828,null,null,9.7799999999999994,8.23,7.9,10.17,10.55,7.51,5.46,null,null,9,"n.a.",4.5,4.5,"n.a.",4,"n.a.",null,null,-0.70208311149574376,-4.9967733355476778,-1.5121892429780792,2.6701679870077211,-6.6670096316224221,16.027784085319663,3.1975802509886186,null,null,764.64965827916694,334.53666666666663,633.50833333333333,212.49888553999997,238.6166666666667,490.1583333333333,1018.2844233333334,2673.9685438191668,3692.2529671525008,null,null,1026.8914441525001,637.65333333333331,1020.2749999999997,540.61201921916665,378.37500000000006,1105.4083333333331,1395.08469625,4709.2151300383339,6104.2998262883339,null,null,-2035.2465862191666,-2412.0468591358335,null,null,790.69827699000007,352.62000000000012,706.29999999999984,237.55740835999995,260.89999999999998,583.30000000000007,944.86087599999996,2931.3756853499999,3876.2365613500024,null,null,1127.8692652200002,714.40999999999985,1168.1000000000004,615.18905816999995,419.09999999999997,1382.8,1441.3890799999997,5427.4683233900032,6868.8574033900004,null,null,-2496.0926380400006,-2992.6208420399998]
[null,null,"Mayo ",6.2329852166785473,0.13949780789159083,3.507899679593423,4.3561512685495423,4.6758180851871396,7.9008912205296742,3.1862745098039174,null,null,3.884237743788304,-0.55718407903923584,"n.d.",5.013123158902526,2.7026635856382279,9.5109525023420005,6.6213128375571255,null,null,80.753933756035138,92.199223802599121,69.216847692483796,79.086058141546246,96.820950072670016,93.920292821168758,97.653095088134535,null,null,-8.3093786890954302,0,-1.2452251202102969,0,5.4422540973620146,2.0860513570878085,0,null,null,4042.17194599,2628.3,5675.55,2146.6131234051436,1383.8,2655.5062605782509,2751.2950950999998,null,null,65.533011765943556,94.034836144754223,106.015568928267,78.056593525436483,99.45435832261596,52.949797564043102,253.77729633410294,null,null,2.1340027098904608,2.9563781094527357,1.9535710092330609,5.6574036697247738,4.9327324137393616,-2.6421387147794491,-0.10299287410925952,null,null,1.4899999999999998,3.1,3.58,4.33,3.78,2.2400000000000002,3.08,null,null,13.100464752012339,7.7097472636815914,9.5182110263115671,13.821752293577987,13.807239206146415,3.7248151836447789,2.1744418052256571,null,null,9.57,7.86,7.89,9.83,9.99,7.58,5.43,null,null,9,"n.a.",4.5,4.5,"n.a.",4,"n.a.",null,null,2.210087298394714,-4.5183681188196934,-1.9025357703262857,2.7376112088785653,-6.4562158384815156,15.978112131633093,4.4699929453112075,null,null,771.85909534500024,337.34583333333325,645.49166666666656,215.89572839416664,244.06666666666669,499.42500000000001,1028.7927299166668,2714.0839904058334,3742.8767203225011,null,null,1045.4012230116668,644.10500000000002,1040.5416666666667,551.62420898333312,387.18333333333339,1129.5250000000001,1410.2732475833334,4798.3804319950004,6208.6536795783331,null,null,-2084.2964415891661,-2465.7769592558334,null,null,846.0732789599997,370.42999999999984,747.89999999999986,272.49314445999994,272.29999999999995,582.5,992.26369599999998,3091.6964234199986,4083.9601194199986,null,null,1109.1583269599996,681.54000000000042,1130.8999999999996,618.70470807999982,449.80000000000007,1239.0999999999999,1541.4142740000002,5229.2030350399982,6770.6173090399971,null,null,-2137.5066116200005,-2686.6571896200003]
[null,null,"Junio",6.3119042432543431,0.55776892430277691,4.0674219397623776,4.2380952380952408,4.6325738140417316,5.4383468415516862,2.7642276422764342,null,null,3.9601197664737393,-0.33770814358454004,"n.d.",5.4185447385295866,3.4238096242083986,8.8633294384054224,6.5611912517449964,null,null,81.63768798667094,91.68953922230979,68.892260734610574,78.684006796233334,97.085763635742524,94.061771584070982,97.480577813859327,null,null,-7.3406377172459569,0,-1.4884806788092335,-5.640690462819195E-14,5.2552953769316444,2.2372728487439848,0,null,null,4064.9799089600001,2681.5,5847.6420291099994,2207.9432334304947,1411.5,2511.3163564168599,2529.4983001400001,null,null,65.890207088387427,96.465127757386341,113.96696512368504,74.274145151234123,99.383636437644782,50.36689169943768,232.88693090531427,null,null,1.8230279765387911,2.4087955625990616,1.3765864797408409,5.5947921425308333,5.1621706091279851,-0.51057974416147744,0.33647151898733041,null,null,1.2749999999999999,2.98,3.48,4.18,3.8,2.2999999999999998,3.11,null,null,13.119975468439309,6.8937797147385238,8.9293824013594474,14.056190041114661,17.68626687929866,5.9576552047881766,2.0296677215189756,null,null,9.75,7.49,7.84,10.16,10.75,8.1199999999999992,4.8499999999999996,null,null,9,"n.a.",4.5,4.5,"n.a.",4,"n.a.",null,null,3.6693041549463734,-3.3973026866849998,-3.144465354728565E-2,2.2532038116427344,-4.7213197540997172,15.583381978274446,8.3730793533143277,null,null,775.37384546999999,342.17833333333328,656.01666666666665,219.98337833333335,253.52499999999998,508.30833333333339,1017.5262684166669,2755.3855571366671,3772.911825553334,null,null,1053.9856390450002,655.83416666666665,1055.1166666666666,556.93771797833324,392.29166666666669,1154.0083333333332,1432.2438571666669,4868.1741903566681,6300.4180475233325,null,null,-2112.7886332199996,-2527.5062219699998,null,null,789.53231408000011,387.99000000000024,748.2000000000005,265.93702912999993,331.59999999999997,610.59999999999991,967.39383899999996,3133.8593432099988,4101.2531822099991,null,null,1117.5554066200002,771.75999999999931,1170.7000000000003,600.90852878999976,462.99999999999989,1316.2999999999995,1859.5522649999994,5440.2239354099984,7299.7762004100005,null,null,-2306.3645921999978,-3198.5230181999978]
[null,null,"Julio",5.6820734914108915,0.99009900990098487,4.1199999999999948,4.1607565011820382,6.1978150297846364,5.6727946856171743,3.3980582524271816,null,null,3.9296299780962594,0.39062417725076704,"n.d.",5.8298948665921762,4.1275926405465482,8.3245161337443356,6.3887746710526354,null,null,79.673003579809119,91.690725890038664,68.608414972257847,78.20047243917432,96.646694301849408,93.936689244893813,96.433062693330882,null,null,-10.134151821142829,0,-2.1097229287426105,5.6406904628191988E-14,5.166503424941248,2.2687667280898451,0,null,null,4097.8259955900003,2609.1999999999998,5732.0343297200006,2129.0175306460383,1446.6,2470,2375.3658111100003,null,null,64.334413433338696,92.024723797095575,111.75178746240313,74.415013576593381,97.610695276453441,48.053191739798216,217.24243320568584,null,null,2.1933015051767444,1.9208823529411818,1.2677679600461063,5.3467771221062144,2.9405174480906093,-0.49472968626647862,-0.39464788732394074,null,null,1.4550000000000001,2.93,3.38,4.13,3.22,2.31,2.99,null,null,13.548112783529715,6.4163725490196128,8.8071456012293563,14.131275533363588,11.645155720035909,5.4292169819595975,2.0618779342723035,null,null,9.5500000000000007,7.47,7.7399999999999993,10.220000000000001,10.84,6.84,5.53,null,null,9,"n.a.",4.5,4.5,"n.a.",4,"n.a.",null,null,1.8357025025104168,-2.4291612075385216,-0.5508553785808723,1.0552534649739265,-3.9996526908895658,15.699043023716651,8.4325793101126081,null,null,779.07588752166669,346.33666666666676,662.11666666666667,219.78872625416662,259.57500000000005,517.86666666666667,993.32786308333345,2784.7596137758337,3778.0874768591675,null,null,1074.6699955983333,659.5374999999998,1067.3,559.44792197416655,402.05833333333339,1176.1166666666666,1448.7628929166667,4939.1304175724999,6387.8933104891648,null,null,-2154.3708037966662,-2609.8058336299996,null,null,784.26194329000009,422.98,685.50000000000023,208.79585126999996,296.89999999999986,586.50000000000023,833.52720699999998,2984.9377945600063,3818.4650015600018,null,null,1220.7653651299997,708.61000000000058,1240.3999999999999,557.66770557000018,477.60000000000008,1374.5000000000005,1518.909208,5579.5430706999978,7098.4522786999951,null,null,-2594.6052761400006,-3279.9872771400005]
[null,null,"Agosto",5.2062429577227443,1.0199999999999991,4.0955631399317429,4.534718941898924,5.34067077813308,5.0090377133053385,3.6290322580645138,null,null,3.8306678853178142,1.3636542507090894,"n.d.",6.045703677811427,4.7651397130956195,8.0515325594048761,6.2707450339580255,null,null,77.802346172249457,91.972155278182456,68.729467417742597,77.954583334205381,97.757389519535522,94.107730392344791,96.040162797978425,null,null,-12.944262280549134,0,-3.0229108944355678,-1.5582399130525351E-6,5.0502461033333352,2.4043145538472621,0,null,null,4048.3305481699999,2567.6,5681.8764391300001,2113.5463745553056,1398.3,2407,2505.8207950399997,null,null,62.832929381481748,96.141676795317366,113.09414412342311,74.802038080503522,100.04895865534836,46.111874928953505,222.75453230764649,null,null,2.8931334840085423,1.7422292615323705,1.2723278688524569,4.7307546317216351,2.905504733630317,3.900834403082154E-2,-0.59735408560311076,null,null,1.21,2.78,3.31,4,3.2,2.33,3.01,null,null,13.690971787734521,6.2462878637893491,8.8134754098360641,13.493393583370981,12.738320671934371,5.4575895670440095,1.6221011673151768,null,null,9.39,7.33,7.6300000000000008,10.19,10.93,7.12,5.31,null,null,7.5,"n.a.",4.5,4.5,"n.a.",4,"n.a.",null,null,1.7237543757345763,-2.3351739595104948,-0.24439180601587562,1.7200458566081656,-3.2249351086832245,17.855962361618573,10.245898363318439,null,null,779.90521572416685,352.96499999999997,667.94166666666661,222.21519018249998,263.96666666666664,527.91666666666674,992.05397658333322,2814.9104059066672,3806.9643824900013,null,null,1086.6425654224997,669.19083333333322,1088.4083333333333,564.76781490416658,411.56666666666678,1197.3333333333333,1490.2968657499998,5017.9095469933336,6508.2064127433332,null,null,-2202.999141086666,-2701.2420302533333,null,null,753.57751085000018,381.07000000000016,625.89999999999918,214.07577678999996,293.69999999999993,594.79999999999995,986.37169399999993,2863.123287639999,3849.4949816400003,null,null,1126.7640232999993,676.29,1189.700000000001,579.00368704999983,478.40000000000009,1306.0000000000011,1803.7030569999993,5356.1577103500022,7159.8607673500082,null,null,-2493.0344227100013,-3310.3657857100043]
[null,null,"Setiembre",5.0007323696099499,1.3800000000000103,3.7566363934785136,5.0495516753185408,5.4260702632976869,5.7012577654007366,4.2173560421735603,null,null,3.731385908486772,2.1334801007610116,"n.d.",6.0176551563755005,5.2002274022647752,7.9963373363790184,6.3908629441624383,null,null,77.637624533741089,91.75261264910597,69.14235815970072,77.544408336681258,97.803322364874106,93.674767354162142,96.096032840281822,null,null,-13.243365033521973,0,-2.852513625382052,-5.2923745914825832E-5,5.0596792793452536,2.5760000443755264,0,null,null,4571.2699859100003,2529.6999999999998,5659.2212569399999,2069.7490058293315,1417.8,2274.3000000000002,2309.5924205599999,null,null,70.60057223441639,93.770943425321306,111.84151851842985,72.5615084756638,100.65945022285901,46.982905147778261,206.52619924660692,null,null,2.3802382840459178,1.173801538765032,1.603139485182882,3.9128661275831149,3.2299899765509292,-0.45529994209611691,-1.254451361867704,null,null,1.0549999999999999,2.57,3.23,3.91,3.49,2.29,2.91,null,null,13.589683908261923,5.6125468534227556,9.1689205984316544,12.93717879604673,13.035792673425755,5.0318627678054462,0.71259143968871597,null,null,9.3699999999999992,7.07,7.51,10.130000000000001,10.49,7.03,4.96,null,null,7.5,"n.a.",4.5,4.5,"n.a.",4,"n.a.",null,null,1.0088766775123492,-2.2705091896399354,-0.95469893754525081,1.6382402935991358,-2.030285639580276,17.498784569528336,12.381713473520906,null,null,781.19487687083347,358.06083333333328,672.77499999999998,224.2646064208333,266.94166666666666,536.65833333333342,968.61446008333326,2839.8953166250008,3808.5097767083348,null,null,1104.1697302383332,679.36500000000001,1106.2083333333333,572.90629091249991,419.76666666666665,1222.3166666666668,1515.5205973333334,5104.7326878174999,6620.2532851508331,null,null,-2264.8373711924996,-2811.7435084425001,null,null,762.84757488000014,366.06999999999971,607.90000000000032,196.52001306999978,293.60000000000002,564.29999999999995,1193.5782609999999,2791.2375879499996,3984.8158489499983,null,null,1150.482183260001,715.65000000000055,1132.200000000001,579.21979822000048,443.69999999999993,1285.7,1821.2696860000001,5306.9519814800005,7128.2216674800002,null,null,-2515.7143935300046,-3143.4058185300019]
[null,null,"Octubre",5.2529068432567101,2.7800000000000025,4.5057282245244652,5.7909604519773925,7.2600680220693814,6.1706155349291789,4.1262135922330092,null,null,3.6413596502400067,2.573516544005257,"n.d.",6.4601181545098534,5.3060033122494143,7.9271964443682643,6.7666515174468547,null,null,77.367449176204303,91.262119354083168,68.680202986231421,76.915350037957666,96.319808680283259,93.676568035153622,96.066172179430197,null,null,-12.542739088929109,0,-3.4919225761222563,-5.2923745877221248E-5,5.1421873007909307,3.0300679597394597,0,null,null,4617.2830663300001,2781.7,5650.5295661,2113.1830398339143,1407.8,2418.1999999999998,2317.7089598300004,null,null,72.460140169250934,99.754924989259578,110.55481808540134,73.696931023307926,102.55164301180709,51.822104767210561,197.36368823027291,null,null,1.8974232794514396,-0.4475578906402049,0.86528441152312696,2.986114819759687,0.42709544757761403,-0.65989589624135037,-1.2256410256410251,null,null,1,2.3199999999999998,3.18,3.75,2.96,2.48,2.85,null,null,12.728478061602921,3.9988324576765883,8.328990116957911,12.107877169559423,10.994241264316399,5.7825646334799856,0.45501165501165514,null,null,9.49,6.89,7.41,10.039999999999999,10.24,6.92,4.5999999999999996,null,null,6.5,"n.a.",4.5,4.5,"n.a.",4.75,"n.a.",null,null,2.0922076279112911,-1.8132764073085395,0.35824314205923358,1.8195686803927247,-0.44640047530903892,19.511237668723513,12.884656380812597,null,null,779.99908956000002,361.86999999999995,675.59166666666658,223.83090798333333,271.08333333333331,546.9666666666667,976.71297933333335,2859.3416642100001,3836.0546435433339,null,null,1114.7359447783333,685.38166666666666,1112.4083333333333,579.65933369083325,427.92499999999995,1238.7166666666669,1532.2275756666666,5158.8269451358337,6691.0545208024996,null,null,-2299.4852809258336,-2854.9998772591666,null,null,777.68852878999951,389.25999999999976,651.99999999999955,176.67588916000022,273.69999999999993,602.90000000000009,1480.6424029999998,2872.2244179499976,4352.8668209499956,null,null,1193.4255528899994,706.01000000000022,1198.9999999999998,603.88041049999993,499.5,1312.0000000000002,1852.3239929999991,5513.8159633899922,7366.1399563899904,null,null,-2641.5915454400019,-3013.2731354400021]
[null,null,"Noviembre",6.1128648391969334,1.8200000000001011,5.2580748370130994,6.4349459840300547,8.7899199818826812,5.3742976255211206,4.284559417946646,null,null,3.5009426928689318,2.5786376585529345,"n.d.",6.8223048764189969,5.1264715142149315,7.5061122613516478,7.3597426100945178,null,null,77.25166476342666,90.88972759039514,67.732118246210575,76.302511627706636,94.98190372434874,93.493886524357677,95.883078391972148,null,null,-9.7774295246839316,0,-3.6275387640000405,-5.292374585841896E-5,4.9021407950735529,3.1102897783786885,0,null,null,4603.3299308200003,2908.8,5594.9317196000002,2270.1680266072053,1420.2,2656.1,2425.1758079899996,null,null,69.305309974725546,107.12770470937633,108.18881507629557,75.951719553374488,101.3525460505694,53.542451708130592,204.47800854691752,null,null,0.8360297897407899,0.26517383618139706,0.13483541591147757,2.1844836716681435,8.0900831013412278E-2,0.74562999913992911,-1.5290465116279077,null,null,1,2.09,3.11,3.69,3.4,2.99,2.69,null,null,12.125895554984664,5.0186603810645183,7.5546937138077643,11.83357016769639,7.7178671532181182,7.3411662509675706,1.0120775193798439,null,null,9.4499999999999993,6.93,7.2900000000000009,9.98,9.9499999999999993,7.03,5.34,null,null,6.5,"n.a.",4.5,4.5,"n.a.",5,"n.a.",null,null,4.3916362669841558,-0.87463135237064726,1.5030495807406563,2.2584513919664317,1.1142770907059285,19.991569162932365,14.017632302613414,null,null,783.31214392583354,368.31666666666666,684.33333333333337,227.43964567916666,278.04166666666657,559.04166666666663,998.8660157500002,2900.4851229383335,3899.3511386883342,null,null,1118.1438110149998,689.24750000000006,1137.2,588.36439773500001,436.38333333333338,1259.2583333333334,1579.4352070833331,5228.5973754166671,6808.0325825,null,null,-2328.1122524783332,-2908.6814438116667,null,null,791.52496359000088,360.04000000000042,642.70000000000027,206.39183412000011,292.89999999999992,592.29999999999973,1253.5732519999999,2885.8567977100029,4139.4300497100048,null,null,1146.0257207499999,732.39999999999964,1270.3000000000002,654.43728729000031,486.7999999999999,1367.2000000000003,1796.3982360000009,5657.1630080400137,7453.5612440400146,null,null,-2771.3062103299962,-3314.1311943299952]
[null,null,"Diciembre ",5.8243157590903811,2.1299999999999955,5.3899999999999988,6.4849624060150299,9.2303838460606329,6.2383050642844289,4.9273021001615538,null,null,3.3503011547521124,2.6990187153376204,"n.d.",8.1259130111711499,4.9094156971836469,6.7398294809701706,8.1205567237408633,null,null,75.864239745978367,91.143977997269758,67.524558984740139,76.433632976006351,94.797579100253742,93.037573121297299,95.382389255187888,null,null,-10.933325383047105,0,-4.2593998742885582,-5.292374585841896E-5,4.9010766278558293,3.3810388063009968,0,null,null,4627.2341165400003,2880.7,5953.8343435200004,2719.3488686918827,1631.6,3342.7,2546.6231461599996,null,null,68.896302701952195,106.78015231749293,106.21055299615728,80.728690351560502,104.0477837213144,59.637861692518257,215.98626907143822,null,null,2.0559398143074943,-0.32311759522177169,-4.7442831388176232E-2,2.1177052074139526,-0.56377088855290269,-0.12077100082384751,-2.1036489607390325,null,null,1,1.8,3.08,3.72,3.29,2.06,2.72,null,null,12.422177404705208,4.3669832566337066,7.4580130942214637,11.715304501323928,5.7938477778347552,6.948242379477847,0.70782140107774927,null,null,9.5399999999999991,6.59,7.12,9.8000000000000007,9.77,7.36,5.67,null,null,6.5,"n.a.",4.5,4.5,"n.a.",5,"n.a.",null,null,4.8732915685316902,-0.57798674325102439,2.3312663598876737,2.6918617399883882,5.6515140688908838,20.403388847884152,14.799033755551871,null,null,787.34133073333339,374.93666666666667,705.46666666666658,234.90092942249998,286.2833333333333,567.89166666666677,1017.9884786666667,2956.8205934891662,3974.8090721558328,null,null,1130.7968822041666,701.34749999999997,1153.0250000000003,593.9732953058334,441.18333333333334,1267.491666666667,1613.8191036666667,5287.8176775100001,6901.6367811766659,null,null,-2330.9970840208334,-2926.8277090208335,null,null,739.52376270999957,378.89999999999964,893.29999999999973,288.98799155999995,299.2000000000001,545.49999999999955,930.04278399999987,3145.4117542699896,4075.4545382699944,null,null,1207.9568239500004,757.22999999999956,1277.9999999999995,642.53219153000009,465.19999999999993,1324,1664.6781430000001,5674.9190154799944,7339.5971584799845,null,null,-2529.5072612099975,-3264.1426202099974]
[null,2011,"Enero",4.8352713438787873,2.3197929111907589,4.9006346894183688,6.355140186915885,8.0194207368431236,6.1657923590217187,4.8076923076923102,null,null,3.2886619402295945,3.0657232217633434,"n.d.",8.4750173880924642,4.9325145471107019,5.7694987123472847,6.6078636567498972,null,null,75.826143003296266,91.007815160268038,67.125298719870457,76.460279946905473,96.090275525546915,92.670941081593497,95.177290562906862,null,null,-10.228630679775661,0,-4.982330580214982,-5.2923745877221248E-5,4.9780057250899921,3.7011908058709526,0,null,null,4633.1754411700003,2768.1,5910.0665015100003,2802.6250040996561,1510.4,2705.3,2922.56265231,null,null,67.202666594712284,103.97596018405484,102.67929698738673,80.71669010293742,102.67921119674396,53.838460701807634,247.13696553377241,null,null,2.7802939018113206,-0.60574097499270052,0.4283723467566013,2.2235500878734658,0.10963117536113445,-9.964825455638314E-2,-2.0491743119266075,null,null,1.0349999999999999,1.7,3.03,3.69,3.82,2.1,2.66,null,null,13.301562038581428,4.1733930135253496,7.987907161277529,11.861072056239019,8.0398766893009874,6.5974241658670012,0.12623853211008976,null,null,9.59,6.59,7.04,9.74,9.2899999999999991,6.61,4.9400000000000004,null,null,6.5,"n.a.",4.5,4.5,"n.a.",5,"n.a.",null,null,4.7256729771370409,-0.49399788482745732,2.2014088185220215,4.4391401626546978,6.4565561600332888,19.788831083214141,15.243579209077751,null,null,785.92406170249944,381.49499999999989,713.30000000000007,245.53436185249998,293.07410225333331,576.44999999999993,1035.3383879166665,2995.7775258083325,4031.1159137249983,null,null,1143.0881957225001,705.57,1175.325,605.0369592466667,454.17499999999995,1279.8916666666669,1659.4215199166665,5363.086821635834,7022.5083415524996,null,null,-2367.309295827501,-2991.3924278275008,null,null,707.40454406999424,408.65,765.2,344.77293119000001,312.68922703999999,495.5,865.62108499999999,3034.2167022999943,3899.837787299994,null,null,1202.1693619300031,689.06,1191.9000000000001,640.90426608000007,482.7,1156.2,1796.5063399999995,5362.9336280100033,7159.4399680100032,null,null,-2328.716925710009,-3259.6021807100087]
[null,null,"Febrero",4.5743345779129809,2.3764542109973159,5.2315342380607035,6.3573085846867698,7.2231863180537674,7.2920532187053659,4.9560351718625135,null,null,3.1824107610551149,3.2975093994017075,"n.d.",7.1452445533737512,5.3277235425902427,4.8297645362645927,7.2323772725021023,null,null,75.163318982631964,91.287836010385433,65.717825518729668,76.300947225039621,96.339737743804591,92.46655539940646,95.282415109250792,null,null,-9.3760659502612889,0,-4.2089590281074303,-6.7190024562496533E-10,4.8738887719424291,3.9666224580017708,0,null,null,4427.5760043199998,3376.2,6042.4738115600003,2912.4082053079055,1492.7,2635,2508.7846144300001,null,null,64.20024938705555,128.11775206129857,105.35357857464851,80.072655322949359,99.43368460976005,52.814734426019925,216.14955556797489,null,null,2.7976897332368447,-0.6314481351981357,9.3570584760782616E-2,2.2120636998254857,1.3398686309268018,-0.84074560197539561,-2.263838537699927,null,null,1.03,1.73,2.93,3.68,3.45,2.11,2.58,null,null,13.555587496017443,4.0864335664335654,7.7338659184878935,11.868193717277492,8.5875129370282135,5.9444726705842355,0.11811119573495481,null,null,9.61,6.56,6.9099999999999993,9.7100000000000009,10.31,7.62,5.08,null,null,6.5,"n.a.",4.5,4.5,"n.a.",5,"n.a.",null,null,5.9049630909127737,0.77093798978258299,4.3274836895145441,4.7077548899875143,5.4502219293966148,18.271011012419436,15.544414564792653,null,null,791.72224830416587,388.69666666666654,736.54166666666652,257.86446320833329,300.98335036177224,582.08333333333337,1079.6081506666667,3057.8917285409375,4137.499879207604,null,null,1161.9080174333337,718.24416666666673,1191.2833333333335,613.14115989916661,465.73333333333335,1293.6333333333334,1709.5166319999998,5443.9433439991672,7153.4599759991661,null,null,-2386.0516154582292,-3015.960096791563,null,null,830.6244283999954,453.98,901.10000000000014,404.08569721000003,335.51097730126668,605.90000000000009,1311.1814670000001,3531.2011029112623,4842.382569911264,null,null,1179.4194419800031,758.84000000000015,1181.4000000000001,626.93808236999985,498.6,1189.8000000000002,1858.0426620000007,5434.997524350003,7293.0401863500028,null,null,-1903.7964214387407,-2450.6576164387416]
[null,null,"Marzo",4.5830834090794532,2.7158291208246554,4.9979516591560786,6.605080831408781,6.7409312796723908,7.6067731897949953,5.4936305732484128,null,null,3.1086707689965891,3.7459231650639024,"n.d.",6.7938119736011782,6.0733134652397496,4.0842119736960054,7.7873492493231566,null,null,75.389187042723634,91.58203105950696,64.885480366456946,76.510856059801895,96.941694704853631,92.633741705429642,95.340171179862224,null,null,-7.045339615614048,0,-3.9842026796603918,-1.9092902528327135E-5,4.7703961665038932,4.0380413970185058,0,null,null,4641.6707590899996,3247.3,6191.0129805900006,2991.0261667820446,1542.2,2594.9,2176.8393456399999,null,null,65.12516901121181,127.33196536984619,100.74020615299241,81.132322342518449,108.02221662533213,52.111726470288403,185.64508310610927,null,null,2.7890902580400616,-0.96949917977419175,0.28767069840031667,1.8994584055459232,1.3439106676747423,-0.74044891987390116,-2.6291924528301931,null,null,0.98499999999999999,1.72,2.9,3.71,3.29,2.69,2.72,null,null,13.421784989848486,3.5964961883624484,7.9735349200156111,11.561286828422871,9.0980694499956041,6.4245275694788955,-0.19934591194969048,null,null,9.66,6.41,6.8500000000000005,9.64,9.36,7.72,5.2833333333333332,null,null,6.5,"n.a.",4.75,4.5,"n.a.",6,"n.a.",null,null,10.486937129435315,0.56099838477299269,5.1611650946535192,4.8176151042000237,6.0429494176976739,18.222418199924185,16.820923346148664,null,null,795.51277396666501,400.33166666666665,752.31666666666661,268.5351828808333,308.41153072214723,595.81666666666672,1077.5260688333333,3120.9244875696445,4198.4505564029787,null,null,1188.2340622666682,738.24916666666661,1219.5000000000002,624.34861781749987,478.45833333333343,1315.325,1734.1434914999998,5564.1151800841681,7298.2586715841671,null,null,-2443.1906925145227,-3099.8081151811894,null,null,972.39616098999159,531.9899999999999,1051.7999999999997,406.12862825000002,437.93816432450001,785.69999999999993,1171.2562620000001,4185.9529535644906,5357.2092155644896,null,null,1477.2172752100121,947.19,1481.3999999999999,772.79769016,577.1,1530.3000000000002,1855.5349539999997,6786.0049653700098,8641.5399193700123,null,null,-2600.052011805521,-3284.3307038055209]
[null,null,"Abril",4.6819017652125119,5.9577003276735185,5.7611481291645363,7.261029411764711,7.11320404300257,8.1603641333098142,6.2698412698412778,null,null,3.2258480541998908,4.3405908136104525,"n.d.",6.4939987128386365,6.8991263504787748,3.5780792369387098,8.1914268937169599,null,null,75.662634498212824,89.511388099321053,64.150754695793424,76.145747938573606,97.075372519071749,92.600186540039743,94.950853196151755,null,null,-3.2837961619829779,0,-4.8731705600127846,-1.9092902490722538E-5,4.6257057323033335,3.8814879082742073,0,null,null,4810.6397858399996,3383.8,6393.1173355999999,3105.2064007493946,1575.8,2568.4,2392.6901641499999,null,null,66.000735033252809,128.30045313514847,102.56136852308271,81.541562640754194,105.71255556016305,52.017905072282922,198.6044075068861,null,null,2.2144212091089748,-4.0371773966825986,-0.46439371910439625,1.0991602399314429,-0.232005204445344,-0.7769612649177553,-3.7356235997012774,null,null,0.96,1.68,2.85,3.56,3.1,2.89,2.2999999999999998,null,null,12.41675783072845,0.28530222097272917,7.2605602403799505,10.841748071979429,6.8593952480289664,5.6301917208642047,-1.1541448842419795,null,null,9.49,6.26,6.78,9.3800000000000008,9.2100000000000009,7.44,5.043333333333333,null,null,6.5,"n.a.",4.75,4.5,"n.a.",6.25,"n.a.",null,null,12.248126368470214,1.6407084433277763,4.5230361161579191,4.1763012771780517,6.6318456087626876,17.41064347457959,17.205784273167257,null,null,806.45282300499809,406.73499999999996,771.4666666666667,281.9135747366667,316.1171560365222,611.62499999999989,1088.5678403333334,3194.3102204448533,4282.8780607781873,null,null,1198.1343029508348,744.79666666666662,1238.575,630.63674714083334,486.35000000000008,1330.1916666666668,1763.0665634999998,5628.6843834250021,7391.7509469250008,null,null,-2434.374162980148,-3108.8728861468139,null,null,921.97886544999483,429.46000000000004,936.10000000000036,398.09811063000006,353.36750377250002,773,1077.362134,3812.0044798524978,4889.3666138524986,null,null,1246.6721534300009,792.98,1397.0000000000005,690.64661004999971,513.79999999999995,1561.2000000000003,1788.465944,6202.2987634800047,7990.7647074800043,null,null,-2390.2942836275051,-3101.3980936275057]
[null,null,"Mayo ",4.8451392323129268,6.6965174129353269,6.3930220625962066,7.7064220183486283,8.2891165974087677,8.0300152305078747,6.4133016627078305,null,null,3.2700390862996538,4.5887734953084287,"n.d.",6.3613749763183733,7.4675775403591622,3.2649839039705379,8.4944717743899467,null,null,76.011724910313646,89.496348926492431,64.52907625444918,76.047795374443339,96.909278332961691,92.968483829544198,95.042618328048576,null,null,-4.7122869461154782,0,-4.2302223726484494,0,4.6532049039534495,3.2505681477565704,0,null,null,4650.3994588400001,3319.9,6421.0835425200003,3056.8442059287977,1556.6,2599.6999999999998,2274.29516298,null,null,65.043499402122407,130.87955682531825,110.44715444818374,81.32993660420307,108.65418511495182,51.784665227875401,182.29563616560074,null,null,2.2937265239912077,-4.6735521775622519,-1.0461419753086449,0.55110732538330143,-1.6566902967870984,-0.59244204413213253,-3.9217857142857064,null,null,0.96499999999999997,1.71,2.81,3.55,3.14,2.67,2.2400000000000002,null,null,12.184504557126766,-0.33414156486058344,6.5577401620370335,10.309114139693349,6.2969795033057006,5.7854150590984244,-1.2122247023809443,null,null,9.51,6.34,6.7299999999999995,9.35,9.5500000000000007,7.27,5.123333333333334,null,null,6.5,"n.a.",4.75,4.5,"n.a.",6.75,"n.a.",null,null,9.9189117859887599,2.1655979074988396,6.9443552921351515,4.7168295188808385,7.5702476260840923,16.658556288729322,10.374920475472749,null,null,813.77440387416402,416.16666666666669,783.30000000000007,293.34380198583335,324.94010787735556,624.18333333333328,1122.2147805,3255.708313737352,4377.9230942373533,null,null,1217.2658349533347,765.42333333333329,1272.3583333333333,649.71770731666663,498.54166666666669,1349.5416666666667,1818.8746549166663,5752.8485422700005,7571.7231971866668,null,null,-2497.1402285326481,-3193.8001029493148,null,null,933.93224938999219,483.61000000000013,889.89999999999986,409.65587144999995,378.17542208999998,733.2,1396.0269780000001,3828.4735429299926,5224.5005209299925,null,null,1338.7367109899967,929.06,1536.3000000000002,847.67623018999984,596.1,1471.2999999999997,2211.1113709999981,6719.1729411799934,8930.2843121799888,null,null,-2890.6993982500026,-3705.7837912499999]
[null,null,"Junio",5.1759635613752888,6.2698098256735477,6.4222993669593693,7.7204202832343558,9.014750131400449,9.318913566482804,6.4873417721518916,null,null,3.1897007268510151,4.6844523032683156,"n.d.",7.812485669769142,7.6049828824063122,3.1123465241210657,8.7093643862202903,null,null,75.877480106422595,89.350505665029203,65.083048189907615,75.644186353751337,96.82295487318865,92.267133395312271,94.799759743789508,null,null,-5.6044384616352243,0,-2.9170512827255362,0,4.9834685580174298,3.5480805622037268,0,null,null,4842.7701523799997,3056.3,6382.5368342399997,3049.1118222188197,1603.7,2606.5,2348.4792351200003,null,null,67.626049572486764,128.35076635440234,108.80979077670692,78.820286530101384,109.65738952334358,52.163040887208268,193.28485455758843,null,null,1.9719680889012348,-4.187275608164799,-1.0921577281013206,0.3616581849024571,-0.71255866490376374,-1.0692692859336947,-3.9791976225854317,null,null,0.94499999999999995,1.82,2.74,3.52,3.33,2.57,2.25,null,null,12.002777071072872,-0.60206170192936315,6.5472186510601498,10.174096692111956,5.7300502830282962,5.2882765158486515,-1.4718573551262937,null,null,9.5299999999999994,5.63,6.64,9.3000000000000007,9.4700000000000006,7.43,4.92,null,null,5,"n.a.",4.75,4.5,"n.a.",6.75,"n.a.",null,null,9.0644657584439514,2.267862470689086,7.9500860240427906,5.9140927376796215,6.5484375648153348,15.623846410260356,14.375454097222097,null,null,820.99454245416348,422.64583333333331,793.9,303.72113218166669,328.50176370485553,639.84166666666658,1154.7923344999999,3309.6049383406848,4464.397272840687,null,null,1232.3014649358338,773.30583333333334,1296.5416666666667,670.21215831833331,506.20000000000005,1361.5250000000001,1852.3270678333331,5840.0861232541674,7692.4131910874994,null,null,-2530.4811849134821,-3228.0159182468155,null,null,876.17397703999359,465.74000000000024,875.39999999999964,390.46499148000021,374.33986992999996,798.5,1358.3244870000001,3780.618838449991,5138.9433254499927,null,null,1297.9829664099902,866.35000000000036,1460.8999999999999,846.84194080999987,554.9000000000002,1460.1000000000004,2260.9812200000015,6487.0749072199978,8748.0561272199993,null,null,-2706.4560687700014,-3609.112801770003]
[null,null,"Julio",5.1938669573744454,6.526044761338869,7.0396744659206529,7.7621425329096656,8.456406866099897,9.8712537645098113,5.3990610328638553,null,null,3.1154593146544585,4.5755355247309994,"n.d.",8.048246412612972,7.3643281408773618,3.0063496701995618,8.8893183245567311,null,null,75.567882018392368,89.196892766931612,64.357705825978499,75.110636905350162,97.045716059573607,91.604973782012934,94.813315860821319,null,null,-3.7199375118160414,0,-3.1080200228453645,-0.12008404295293887,5.0907423974236732,3.3921981074132774,0,null,null,4806.5703396600002,2877.2,6333.8110733200001,3105.83635293826,1771.4,3239.2,2115.7969825499999,null,null,65.153271663029017,101.30329584280456,107.67193611978567,79.630913681096331,119.24490585722826,66.494955213824852,169.05792700871592,null,null,1.9546130417077634,-4.4271283815190028,-1.6813153392891103,0.21144481887110667,-0.2471461881621532,-0.84758636367779561,-2.8833853006681567,null,null,0.92999999999999994,1.81,2.71,3.56,3.2063541321037601,2.62,2.36,null,null,11.841120973024877,-0.66279074091288437,5.9139992396882706,9.7231339511373243,6.6667358360936015,6.3517489756218994,-0.12244988864143105,null,null,9.51,5.82,6.5699999999999994,9.16,9.3012276764760706,7.51,5.27,null,null,5,"n.a.",5,4.5,"n.a.",6.75,"n.a.",null,null,11.188723328922091,1.7984255621270595,8.5819012190139645,7.0671663460430523,7.264639259770922,16.368136076046035,15.733142299677215,null,null,826.35550932832984,426.70833333333331,805.43333333333339,309.26457862833337,333.13081697402225,652.01666666666665,1205.3234183333334,3352.9092382640169,4558.2326565973526,null,null,1249.2608611908347,790.30583333333334,1303.875,688.07998835500018,515.80833333333328,1370.1750000000002,1925.8646934999997,5917.5050162125017,7843.3697097125014,null,null,-2564.5957779484829,-3285.1370531151497,null,null,848.59354577999511,471.72999999999956,823.90000000000077,275.3172086300001,352.44863923000003,732.6,1439.9002130000001,3504.5893936399916,4944.4896066399961,null,null,1424.2781201900093,912.61000000000058,1328.3999999999994,772.08166600999994,592.89999999999986,1478.3000000000004,2401.360716000001,6508.5697862000088,8909.9305022000117,null,null,-3003.9803925600136,-3965.4408955600156]
[null,null,"Agosto",5.2518141350627694,6.824719769864096,7.6258261311642093,7.6818798011748752,9.6949778343574202,10.175145291165839,5.2918287937743402,null,null,3.1222580099158481,4.124497653846543,"n.d.",8.1804198080442152,6.9332133997594454,2.835699115048965,9.1057613761952751,null,null,75.700711979621801,89.343194090428483,64.734233963565501,74.938294662436078,97.092415882963692,91.446059646378899,94.653154394207391,null,null,-1.3129907804244254,0,-2.3143750000000018,-0.24655420091285735,4.989431298042116,3.1683431319135575,0,null,null,4808.17325514,2760.9,6398.5615988,2709.512438380465,1584.1,3032.9759568159898,1914.01566071,null,null,65.038266127030411,101.89319317006704,109.5841152908074,77.056359900959066,107.80874250008634,62.302786062016544,152.47030115650782,null,null,1.8984811628739142,-4.7130662085616075,-2.2074870099196975,0.18398657154846867,-1.2556468776968459,-0.97585103094213699,-3.0694013303769596,null,null,0.91499999999999992,1.79,2.69,3.53,3.11,2.9,2.06,null,null,11.960065456718526,-1.0060590584083899,5.4115021256495037,9.8792110784725136,5.0899483651147257,5.8042625602481683,0.30218033998519817,null,null,9.5399999999999991,5.75,6.47,9.16,9.61,7.52,5.61,null,null,5,"n.a.",5,4.5,"n.a.",6.75,"n.a.",null,null,12.781213977722183,1.8123478437119145,8.4466687554852093,8.130804879939312,9.2512799660430911,15.268418555126217,16.596655138466907,null,null,832.83760365249611,430.03166666666658,824.25,311.76668287000001,339.16984624568892,660.52499999999998,1248.7678185,3398.5807994348506,4647.348617934852,null,null,1276.9328824716674,805.39,1330.0166666666667,703.30198733583336,522.29166666666663,1385.9083333333335,1980.2181778333331,6023.8415364741677,8004.0597143075001,null,null,-2625.2607370393157,-3356.7110963726482,null,null,831.36264273999768,420.95000000000027,851.69999999999982,244.10102769000014,366.16835126000001,696.9,1507.7044960000001,3411.1820216899978,4918.8865176899926,null,null,1458.828278669992,857.29999999999927,1503.4,761.66767481999977,556.20000000000005,1494.8000000000004,2455.9448689999995,6632.1959534899943,9088.1408224899933,null,null,-3221.0139317999929,-4169.2543047999934]
[null,null,"Setiembre",5.1747094320407028,6.2209474829393789,7.2493156240494834,6.8283917340521194,9.4958588830837414,9.5674438332368332,6.0700389105058452,null,null,3.2905732778060615,3.6000687506203826,"n.d.",7.7705142602636723,6.5315143607043105,2.6115828642400301,9.3659048618731777,null,null,76.739999685893551,89.720467926213672,65.083470477288188,75.51148168916805,97.312214248703881,91.589714390379697,94.101379923922195,null,null,8.6986594296586284E-2,0,-2.8063741898372121,0.15345468809814744,4.8885737246379186,3.1388655308817031,0,null,null,4762.9319688599999,2662,6303,2534.7089758304983,1534.4,2912.3201727212545,1798.1285319399999,null,null,65.49881517605229,101.5097574443031,108.9735787298425,74.856741592929424,108.33218624357261,57.733585596091885,153.46975087639581,null,null,2.4485834872910557,-4.1620297951582925,-1.8734997163925176,0.93758620689654426,-3.0390597351799333,-0.46313376992637451,-3.7145634629493847,null,null,0.93499999999999994,1.8,2.66,3.63,3.83,2.81,2.13,null,null,12.108700501034694,-0.31156517690875823,5.8375051994705931,10.700908326324637,7.3735605046797152,6.5736280000522385,-0.54684519442407253,null,null,9.5399999999999991,5.89,6.419999999999999,9.17,9.81,7.04,5.49,null,null,5,"n.a.",5.5,5,"n.a.",6.75,"n.a.",null,null,13.89467928104402,2.8594605632814352,10.624365865542229,8.7335855180680646,11.766833792486974,15.697645493323131,16.385830525640532,null,null,843.47109693999573,436.09,841.80000000000018,315.9670704483334,344.22964498568894,673.38333333333321,1287.8131789166666,3454.9411457073497,4742.7543246240175,null,null,1293.4136240583346,815.34666666666669,1353.875,716.89055940333321,529.25,1398.9583333333337,2027.1554517499999,6107.7341834616682,8134.8896352116672,null,null,-2652.7930377543166,-3392.1353105876501,null,null,890.4494943299942,438.77,818.49999999999909,246.92466401000001,354.31758488000003,718.59999999999991,1662.122586,3467.5617432199979,5129.6843292199919,null,null,1348.2510823000073,835.13000000000011,1418.5000000000009,742.28266302999964,527.20000000000016,1442.3000000000011,2384.5169730000007,6313.6637453300063,8698.1807183300116,null,null,-2846.1020021100194,-3568.4963891100197]
[null,null,"Octubre",4.9263243526578879,5.4431125957948439,6.646495209278859,5.919003115264803,7.6586118715072331,8.8636453570298706,6.138306138306131,null,null,3.5146258012297045,3.3397231350044883,"n.d.",6.8994253833464612,6.3673966081162989,2.349380616550226,9.6438537577448731,null,null,77.008851659869549,89.60214582811011,64.890979406348549,75.57227356606812,96.903243017243938,91.74539083670183,93.701040108889828,null,null,0.88364161259004059,0,-2.668533118862499,0.52573888938869717,4.6225734360283779,2.9888191542569484,0,null,null,4732.9333521400004,2727.9,6574,2489.0699817320224,1572.6,2668.8,1707.8027485099999,null,null,64.075867816760365,103.64082123924467,114.55608718729411,75.765494034988706,110.17350788143985,54.682753955892863,141.46422205234262,null,null,2.9293655965794372,-3.5024692508386064,-1.3188386608662648,1.8042058823529359,-0.46830638957958159,0.64884345977352187,-3.5974816983894518,null,null,0.99499999999999988,1.75,2.63,3.52,2.21,2.63,2.3199999999999998,null,null,12.326435455674558,0.1867238166231901,6.4545063362965864,11.689117647058817,6.59667518186893,7.7862123899774112,-0.65792093704245258,null,null,9.44,5.64,6.4,9.27,9.11,7.57,5.44,null,null,5,"n.a.",5.5,5,"n.a.",6.75,"n.a.",null,null,13.893718866212602,3.6017647181054269,10.802643260211987,8.2261908174947163,14.450218883538479,13.013982805232583,17.156721049757806,null,null,851.0692777758286,436.05833333333334,848.5,321.05195295000004,351.38399616235557,679.61666666666656,1304.3803661666668,3487.6802268881825,4792.0605930548509,null,null,1310.7421948991675,818.13583333333315,1370.6833333333334,728.23312786416648,536.17499999999984,1411.7500000000002,2064.8027996666665,6175.7194894300019,8240.522289096667,null,null,-2688.0392625418167,-3448.4616960418166,null,null,868.86669881999478,388.88000000000011,732.40000000000055,237.69447918000014,359.55221411999997,677.7,1679.44865,3265.0933921199903,4944.5420421200033,null,null,1401.3684029799954,739.47999999999956,1400.6999999999994,739.99123202999999,582.59999999999968,1465.4999999999995,2304.0921679999988,6329.6396350099894,8633.731803009985,null,null,-3064.5462428899991,-3689.1897608899963]
[null,null,"Noviembre",4.5554336758922034,5.1251956181533744,6.0548438751000768,5.4280670785525205,7.3423765116738595,8.6274946245807129,6.8217054263566004,null,null,3.6742200819724222,3.4718682308621607,"n.d.",5.9240681698829274,6.3799787360142179,2.207603684228014,9.786476868327405,null,null,75.613756125958943,89.393287292809134,64.45567527506077,75.182487613000347,95.776286020047465,91.921189784334842,92.80671163467359,null,null,-1.0210939363062814,0,-2.3887014048166941,0.47017961847726591,4.6866747423808697,3.2940398810179654,0,null,null,4722.8858149099997,2681.7,6037.6159582700002,2471.2306353119156,1668,3039,2212.23838329,null,null,62.496292622784253,103.52567121633494,111.24747098830916,75.076594046062482,110.12105579351905,58.210991233043096,176.93706333432303,null,null,3.2944881035886566,-3.2106438407145608,-0.75889402661130212,2.2592967768940926,0.42556883894799524,0.73876818957554435,-4.3920899854862219,null,null,1,1.75,2.65,3.55,2.8258079129184899,2.62,2.13,null,null,12.657942164089887,0.39458131745440084,7.0672454468245771,12.133327752197566,6.3868409789572977,7.5786571382052275,-1.4151669085631455,null,null,10.27,5.54,6.36,9.18,9.4621816751736798,6.72,5.31,null,null,5,"n.a.",5.5,5.5,"n.a.",6.75,"n.a.",null,null,13.839861215734906,3.6167541177863027,11.960756174166033,9.3952886367667521,17.048666835840699,12.902369114453194,17.212504679816565,null,null,860.38952883332843,438.45333333333332,860.77499999999998,325.97087066833336,355.43129956818888,686.98333333333323,1323.5688861666667,3528.0033657365152,4851.5722519031842,null,null,1339.5907155408338,822.05916666666656,1382.5083333333332,740.19850260833334,544.28333333333319,1424.5916666666669,2094.8864274166667,6253.2317181491671,8348.1181455658316,null,null,-2725.2283524126501,-3496.5458936626505,null,null,903.3679762799984,388.77999999999975,790,265.41884673999994,341.46764086999997,680.7,1483.8354919999999,3369.7344638899958,4853.5699558899942,null,null,1492.2079684499956,779.47999999999956,1412.2000000000003,798.02178421999997,584.10000000000014,1521.2999999999993,2157.4017689999996,6587.309752669993,8744.7115216699895,null,null,-3217.5752887799972,-3891.1415657800026]
[null,null,"Diciembre ",4.7357486588112954,5.0523842161950565,6.2000000000000028,5.6045895851721168,7.9504211029485123,7.760000000000006,6.3125481139337882,null,null,3.8259612074712313,3.5314187517449747,"n.d.",4.1530048717206665,6.3728836242532934,2.2233886385964636,9.645304686052965,null,null,74.3839690556959,89.330713507936622,64.031757591298572,74.974568171395461,94.702781786350997,91.844199681807623,92.376692000575147,null,null,-0.26250807865708492,0,-2.1908586153016985,0.60823425045015989,4.7396440310127197,3.3170998426682621,0,null,null,4755.8138503999999,2502,6187.94,2820.6863589035297,1710.5,3637.9,2216.8830439200001,null,null,61.384967788271346,99.094799503337811,101.20645566057867,77.83158027029944,107.69346015674539,62.353859680592464,181.20210990236697,null,null,3.116654421235272,-2.9912545437599132,-0.96045197740113286,2.1925282072712005,-1.1546142526802705,1.6982182628062301,-3.9812309920347513,null,null,1.335,1.91,2.67,3.63,3.0499790356984802,3.51,2.08,null,null,12.54991873310383,0.35945474881162132,6.9397363465160051,11.832260760551602,9.8229053396360655,8.778767631774306,-0.35983345401882066,null,null,10.33,5.43,6.29,8.93,8.4326140388319502,7.19,5.93,null,null,5,"n.a.",5.5,5.5,"n.a.",6.75,"n.a.",null,null,13.035915987640134,4.6816072351016258,10.767210602795153,10.924792310914899,15.700619726814047,12.568603972673609,16.510572406124837,null,null,868.8049639698279,442.34750000000003,866.75833333333333,329.98389427250004,358.62568957985553,696.82499999999993,1335.9675567500001,3563.3453811555169,4899.3129379055172,null,null,1352.4292401933344,830.37583333333339,1384.3916666666667,751.34773024833328,550.13333333333321,1441.8000000000002,2115.211804,6310.4778037750011,8425.6896077750007,null,null,-2747.1324226194847,-3526.3766698694849,null,null,840.50898434799274,425.63000000000011,965.10000000000036,337.14427480999984,337.53268014000002,663.6,1078.8268310000001,3569.5159392979986,4648.342770297997,null,null,1362.0191197800073,857.03000000000065,1300.6000000000004,776.32292321000023,535.39999999999964,1530.5000000000005,1908.5826620000007,6361.8720429900131,8270.4547049900139,null,null,-2792.3561036920146,-3622.1119346920095]
[null,2012,"E",4.2138538737067872,4.7484674515909413,5.4354294782781238,5.3602811950790938,8.2541404339734434,6.9004787458380124,6.1162079510703444,null,null,4.0150962393603917,3.4922833142319551,"n.d.",3.6167269818971866,6.1755736854530525,2.3028717715851044,11.354181274248582,null,null,75.221288870797835,89.423734072280112,64.339763904469081,75.454547660019671,95.746169281699892,92.58900049699281,92.315240493511524,null,null,0.4443404600495347,0,-1.8120906801007586,1.019372637232101,4.8008233099919071,3.7704458360594524,0,null,null,4646.3623359599997,2578.6999999999998,6185.7,2880.4390615127977,1624.8,3046.8,2082.7013444499999,null,null,59.756291335107846,98.958417279328529,99.820789789363687,77.886682281179944,106.0529268895631,57.466687929524255,181.80623674379575,null,null,4.352728507469279,-2.5665935903390711,-0.22329256820320248,2.4864386989157561,-0.23517230035137776,3.1800804767624511,-4.0580115273775288,null,null,1.3484834265379795,2.06,2.64,3.57,2.7315146174798404,2.74,1.81,null,null,13.468599043753953,0.80338411518809971,7.7057309501411053,12.120050041701409,6.6778725039674738,9.6159730758569726,0.33340057636886822,null,null,10.89,5.59,6.2,8.91,9.8081726268401095,7.59,6.47,null,null,5,"n.a.",5.5,6,"n.a.",6.75,"n.a.",null,null,14.173766041645086,4.9747994344418567,10.637370396312651,11.062361108234553,17.660522635394017,13.253731988072248,12.955649532005697,null,null,883.16433071399467,445.68416666666661,865.00833333333333,329.80009541333334,365.22324316068881,704.30000000000007,1350.240045,3593.1801692880167,4943.4202142880176,null,null,1374.9807937641679,841.34416666666664,1396.7833333333331,759.62250331833332,552.09166666666658,1456.0833333333337,2121.8704113333333,6380.9057970825015,8502.7762084158348,null,null,-2787.7256277944848,-3559.3559941278186,null,null,879.71694499999444,448.69,744.19999999999993,342.56734488000001,391.85987001000001,585.20000000000005,1036.890944,3392.2341598899948,4429.1251038899945,null,null,1472.7880047800049,820.68,1340.6000000000001,740.20154291999995,506.20000000000005,1327.5999999999997,1876.4096279999999,6208.0695477000045,8084.4791757000039,null,null,-2815.8353878100102,-3655.3540718100103]
[null,null,"F",4.0533296465354844,4.8951048951049012,5.1683402244536323,5.6282722513089034,8.8085488426911773,6.0013078146807084,6.3975628332063907,null,null,4.1313760384933822,3.6186213841763606,"n.d.",3.840149938883076,5.7153598996052306,2.5354619399018055,10.763616205478826,null,null,75.482778810163367,89.52638929211885,64.101193979942096,75.362533321626742,95.475163930391872,92.871860211800481,92.124353939462011,null,null,1.5791405954741329,0,-0.28176676486589108,1.4173730171731007,4.8225191312483089,3.4945093495200372,0,null,null,4708.1602812800002,2616.6999999999998,6126.9,3016.4715980587525,1595.7,2980.1,2008.5231295799999,null,null,61.974589235185007,99.720544673028115,102.00323386867431,79.428699703726892,105.91510693618056,56.099179484576652,169.85415332145735,null,null,4.7539760335090993,-2.6265333333333389,3.0103903397922412E-2,2.3305576208178409,-0.86017822107624065,4.1496584108277315,-3.8981746599856777,null,null,1.7514468120655697,2.14,2.62,3.58,3.0049386295903551,3.1,2.25,null,null,14.056897941806055,0.68153333333332777,7.9127042965459156,11.892391573729862,6.2691301232623333,11.42315357701869,-3.5304223335712689E-2,null,null,10.97,5.61,6.2,8.85,9.1959083486448154,6.98,6.36,null,null,5,"n.a.",5.5,6,"n.a.",6.75,"n.a.",null,null,15.566298696552462,3.5048993770651959,12.715636419225396,11.942699378676714,21.597833032270831,13.059626560899829,12.700918936018812,null,null,893.12500576732816,445.36833333333328,861.57499999999993,332.16625053083334,369.03033763474997,710.6,1358.3092338333333,3611.8649272662446,4970.1741610995787,null,null,1387.112337162501,846.39833333333343,1407.625,771.17335797833323,557.16666666666663,1470.5500000000002,2144.7053688333331,6440.0256951408346,8584.7310639741681,null,null,-2828.1607678745909,-3614.5569028745908,null,null,950.15252903999612,450.18999999999988,859.9,432.47955861999998,381.19611099000002,681.5,1408.011733,3755.4181986499962,5163.4299316499955,null,null,1324.9979627600053,819.4899999999999,1311.4999999999998,765.54833828999983,559.5,1363.4,2132.062152,6144.4363010500074,8276.4984530500078,null,null,-2389.0181024000099,-3113.0685214000096]
[null,null,"M",4.2080604356511433,4.3713210460291432,4.5454545454545556,5.6759098786828392,8.5485341154628731,4.9447633749819095,6.3396226415094281,null,null,4.0420015863200502,3.4536027522928956,"n.d.",4.4203729633383553,5.0891742737078998,2.9518024275660579,10.188610311914875,null,null,75.483456065901109,90.072861427797378,63.877521530055631,75.679074171587828,95.952557152770197,93.564059594711765,92.033445600686591,null,null,1.643394367738829,0,0.26302855998689079,1.8272173497602258,4.665858342337045,3.2608638084897938,0,null,null,4745.4197414500004,2648.9,6140.8,3068.3124150705976,1753.1,3031,1712.1733605899999,null,null,61.054566378998906,101.60756212813931,99.696896744376204,78.151439955030199,107.31794538751274,57.607903083224741,149.17989274003111,null,null,4.8383393216134873,-2.128286797337279,0.63565217391303364,2.3601312013120159,-2.0541730664836448,4.693170451411234,-3.6765436479772835,null,null,1.9718244942589092,2.15,2.61,3.67,2.9713866785694685,2.89,2.4300000000000002,null,null,13.973909027258891,1.1101507026627211,8.4599999999999902,11.794637146371466,6.6033612757000046,11.658739542153166,1.9162526614626099E-2,null,null,10.86,5.53,6.29,8.7899999999999991,8.3274279489590253,7.53,6.36,null,null,5,"n.a.",5.5,6,"n.a.",6.75,"n.a.",null,null,14.179958530408964,3.4548781363048509,14.809406924471169,12.928872439948336,21.900516367140121,11.495022723145087,11.176262533197523,null,null,904.69025696816163,443.00333333333327,860.05000000000007,340.31394517749999,370.75222430854166,711.47499999999991,1406.4982486666668,3630.2847597875357,5036.7830084542038,null,null,1395.8355493500001,842.20166666666671,1407.125,780.27792660499983,563.56666666666661,1465.9333333333334,2179.3231988333332,6454.9401426216673,8634.263341455,null,null,-2824.6553828341307,-3597.4803330007976,null,null,1111.1791753999951,503.61000000000013,1033.5,503.90096400999994,458.60080440999997,796.2,1749.5244400000001,4406.9909438199929,6156.5153838199949,null,null,1581.8958214599961,896.83000000000015,1475.4,882.05251368000017,653.90000000000009,1474.9000000000003,2270.9489140000001,6964.9783351399947,9235.9272491399952,null,null,-2557.9873913200008,-3079.4118653200021]
[null,null,"A",4.7073967156076337,1.9866929060069389,4.2744984006978735,5.6555269922879123,8.9766105663035489,4.045911047345772,5.9746079163554811,null,null,3.8421635014116751,3.1445712665898027,"n.d.",5.0902901194968173,4.5424004236666713,3.3968250160375435,9.8733604703754008,null,null,74.692860244653147,89.788775240634223,64.037227196489724,75.327633993147131,95.453315880502203,93.893921826681151,91.660942374551581,null,null,1.0386950824269232,0,1.7469953993902709,2.1677020692359568,4.743717878119674,3.1248595887967192,0,null,null,4765.5887301000002,2709.9,6183.3,2978.3443822345153,1707.9,3125.5,2019.5000679399998,null,null,60.687214854315584,100.68823505588405,105.68021433962545,77.87613214642316,114.28850341724331,59.61942828969368,168.51779670928505,null,null,4.5771391847410756,0.18954148672240706,0.91633296151701471,2.4272019464720254,-2.3727289960094979,5.8955598455598404,-3.5334954193093653,null,null,1.9749292888336507,2.1800000000000002,2.63,3.67,1.936089779043209,3.19,2.23,null,null,13.821949297145585,3.2291537259946663,8.7610122699386555,11.806739659367402,8.0056000665259415,12.565692222835075,0.25986610288936635,null,null,10.84,5.28,6.2,8.74,8.5998449167314739,6.59,6.25,null,null,5,"n.a.",5.5,6,"n.a.",6.75,"n.a.",null,null,14.403474022616102,3.4503712247465623,18.548804053184842,14.760343788421416,22.739708313613495,10.327808254772064,12.236350982984856,null,null,907.46980457149505,441.85083333333336,854.97500000000002,339.92202612416662,376.46063612999995,710.91666666666663,1418.617505416667,3631.5949668256612,5050.2124722423287,null,null,1401.7478577933327,844.16333333333341,1400.9750000000001,785.22175332916675,569.25833333333333,1451.3916666666667,2196.4460036666665,6452.7579444558332,8649.2039481224983,null,null,-2821.162977630172,-3598.9914758801719,null,null,955.33343668999578,415.62999999999988,875.2,393.39508199000011,421.86844563,766.3,1222.7932149999999,3827.7269643099953,5050.5201793099986,null,null,1317.6198547499937,816.52000000000044,1323.2000000000003,749.97253073999991,582.1,1386.7000000000007,1993.9396020000001,6176.1123854899961,8170.0519874899946,null,null,-2348.385421179999,-3119.5318081799996]
[null,null,"M",5.0352968119617234,1.2123472908700896,3.8966049382715973,5.1533219761499121,7.5269721128235769,3.5407520519182993,6.0267857142857233,null,null,3.6953786158388935,3.2924078749479029,"n.d.",5.6782207271740823,4.3197758052203632,3.6370108005451538,9.849607182940515,null,null,73.829874990225832,89.931313982789305,64.169686825559324,75.432363845310803,95.946714930268072,94.045514804572065,91.167892233556515,null,null,0.31080010938923325,0,1.5866666666666585,2.554558396813821,4.6750191864769679,2.9851337121381971,0,null,null,4858.1739648499997,2651.4,6112.7,2860.6851934678953,1690.3,3012.3,2041.8728008699998,null,null,61.558086662579861,100.09264062008059,107.02095929874027,77.898803330209176,116.46177781206566,56.868564999604018,175.77998498341466,null,null,4.7266998225618204,1.1042651801345278,1.302636464909031,3.0590360469825861,-0.97652652578999422,6.0258862567978664,-3.7696000000000085,null,null,1.9867261475528928,2.33,2.67,3.65,2.3004809037473035,2.6,2.0299999999999998,null,null,13.961690625096816,4.3943775914493708,9.1758484961010112,12.255131632239777,10.985431745393202,12.361555903769936,0.37086315789472823,null,null,10.97,5.66,6.3,8.69,8.3744368675031939,7.3,6.42,null,null,5,"n.a.",5.5,7,"n.a.",6.75,"n.a.",null,null,13.662202182965434,3.400751566016913,18.574452561475873,15.469787368446974,25.502765266920413,9.0826943553058204,21.792552773050232,null,null,919.30583368149519,439.98166666666674,853.43333333333328,340.41978561916665,377.62913543833332,716.5333333333333,1429.1767017499999,3647.3030880723286,5076.4797898223287,null,null,1416.6842692683324,849.22000000000014,1404.1333333333334,782.69490482916672,576.81666666666672,1454.8416666666669,2219.9356451666667,6484.3908407641675,8704.3264859308329,null,null,-2837.087752691838,-3627.8466961085055,null,null,1075.9645987099934,461.18000000000029,871.40000000000032,415.6289853899998,392.19741379000004,800.59999999999991,1522.7373339999999,4016.9709978899955,5539.7083318899931,null,null,1517.973648689996,989.73999999999978,1574.1999999999998,817.35404818999996,686.80000000000007,1512.6999999999998,2492.9870689999998,7098.7676968799933,9591.7547658799958,null,null,-3081.7966989900033,-4052.0464339900027]
[null,null,"J",4.6149100406147516,0.60583465374218604,3.4730883622757265,4.7073791348600489,6.4643678423417246,2.7113840340103965,5.7949479940564714,null,null,3.613356061438123,3.3661141304075741,"n.d.",4.9336691031662712,4.4736055419121774,3.5160704227946695,9.9442088819459951,null,null,72.935747689599594,90.290282684360207,64.536189883852501,75.626211885376094,96.676010861522343,93.812684381641432,91.098132434412378,null,null,-1.0868667052279113,0,0.92428511819825432,2.969099320534351,4.562871810592962,2.7225874309755338,0,null,null,4869.4577913100002,2601.4,6811.6,2784.4624407518713,1689.1,3219.2,2209.4662591199999,null,null,60.556086704608894,98.510415278164885,116.64650235092971,75.001706335630075,116.77518976257666,58.371261440626988,192.18532799622844,null,null,4.9085641400366802,1.8728191587919301,1.6689476124246736,3.6412150668286767,0.53748070481872801,6.2394407652685748,-3.5492696629213558,null,null,2.0056829169914554,2.4900000000000002,2.66,3.75,1.9469250399295202,3.26,2.04,null,null,14.314489161794864,4.8050546599963031,9.6516995827538334,12.857375455650065,10.578465748162245,13.132542310522437,0.67588483146066658,null,null,10.74,5.44,6.3,8.66,8.3744368675031939,7.38,6.51,null,null,5,"n.a.",5,7,"n.a.",6,"n.a.",null,null,14.267983672314323,3.8019477577549754,18.305870092304776,15.339436523678639,28.228214455755428,8.9512391513454581,15.880989384963694,null,null,925.8977621631617,433.86333333333329,849.76666666666654,339.94844490916665,378.87721709166658,710.7833333333333,1421.3003142500002,3639.1367574973278,5060.4370717473284,null,null,1425.9916067241672,834.2258333333333,1403.2250000000001,773.92988520666677,579.38333333333333,1462.45,2208.5943003333332,6479.2056585975006,8687.7999589308329,null,null,-2840.0689011001723,-3627.3628871835076,null,null,955.27711881999221,392.31999999999971,831.40000000000009,384.80890296000007,389.31684976999998,729.5,1263.8078369999998,3682.6228715499929,4946.4307085499895,null,null,1409.6710158800024,686.42000000000007,1450.0000000000002,741.66170534000003,585.69999999999982,1551.4,2124.8850820000011,6424.8527212200061,8549.7378032200068,null,null,-2742.2298496700114,-3603.3070946700136]
[null,null,"J",3.9486456703517669,3.7185088779405275E-2,2.8606728758791151,4.0859309182813766,6.369628450408217,1.639344262295082,6.013363028953238,null,null,3.5977096849846442,3.1229528843484271,"n.d.",5.0491663861124882,4.9518763440123603,3.0133371361005654,9.8939615777097529,null,null,73.106999010568231,90.419564435945176,63.999395143146806,75.746371409858199,97.002620959407011,93.886455367506656,90.694901028187701,null,null,-0.8331783113977117,0,0.86733079818450587,3.5090377964445958,4.8456929784925364,2.7239225746758975,0,null,null,4911.8982414900001,2526,6778.1,2690.4639516236912,1618.7,3127.7,2134.6191387399999,null,null,61.184830226206479,97.340065186244757,113.90566873835175,74.620126488487699,112.60141166161904,54.960668911353054,179.70200221824973,null,null,6.0619879066356184,2.3719329058637615,2.4103742030860156,4.5578389316066419,1.0609812312789346,6.7303225806451614,-3.7479831932773191,null,null,2.1150000000000002,2.41,2.68,3.8,2.7407337275071901,2.42,2.04,null,null,15.383898680470534,5.450788030852145,10.353157165296121,13.608053419668154,11.029255101179551,14.089677419354839,0.3709943977590951,null,null,10.79,5.49,6.22,8.75,8.3394512614496801,6.78,6.4066666666666663,null,null,5,"n.a.",5,7,"n.a.",6,"n.a.",null,null,14.259429526557454,3.8331801588582293,20.251560921546897,14.972457705732968,29.593259490418909,7.1548996286515232,15.934564067532264,null,null,931.11966015649466,438.28500000000003,846.4,348.95651216750002,384.08868137250005,715.19999999999993,1410.8370857500001,3664.0498536964951,5074.8869394464955,null,null,1426.3020568758336,843.76333333333332,1411.3416666666669,772.12470664416662,578.65833333333342,1469.2833333333335,2219.6929264999999,6501.4734301866665,8721.1663566866646,null,null,-2837.4235764901714,-3646.2794172401723,null,null,911.25632169999244,524.79,783.50000000000023,383.41401572999985,414.98621059999999,785.6,1314.341471,3803.5465480299936,5117.8880190299969,null,null,1428.0035220100031,1027.0599999999995,1425.7999999999997,750.41952325999955,584.20000000000016,1560.2999999999997,2534.5442300000004,6775.78304527,9310.3272752699995,null,null,-2972.2364972400064,-4192.4392562400026]
[null,null,"A",4.2308691073061242,0.10214504596527017,2.7113840340103965,4.3222828367603787,5.9664513046565943,2.1625652498135657,6.0606060606060375,null,null,3.5889131985837754,3.0835870537963812,"n.d.",5.1278063824105704,5.6438642193242465,2.4063889378613621,9.5877741566105907,null,null,72.943439165716754,90.762510135258452,64.569072391708048,76.028412585310349,97.830438263508597,93.53363651481979,90.754756242568348,null,null,-1.2370114124154099,0,0.74435209888866072,4.0784441997269445,4.9950137625653879,2.75576690662604,0,null,null,4898.2062223599996,2499.4,6765.7,2505.9990309376426,1615.4,3245.1544858921702,2187.0237964900002,null,null,59.813244739086443,96.754837935452912,111.5901711639949,72.855633576028382,113.35455967272412,55.305006944136935,188.81015051763254,null,null,6.0146585616970905,2.4953061224489805,2.5592255334804959,4.6276950925181097,1.6488672342539528,4.2926828512594897,-3.6399999999999788,null,null,2.1150000000000002,2.6,2.69,3.84,2.53039119923453,2.4025630982605106,2.2000000000000002,null,null,15.292140446689046,5.6021326530612257,10.49408112582781,13.532791633145624,12.955103011143606,12.344084317190624,0.13142857142859346,null,null,10.88,5.71,6.2,8.76,8.7967658973220306,7.011313887152685,6.2,null,null,5,"n.a.",5,7,"n.a.",5.5,"n.a.",null,null,13.290052753979031,4.3220336990323904,39.60211478227167,15.560903968359764,29.494513297546888,6.81634788108052,14.898321025679785,null,null,938.08962028066105,440.93833333333333,844.58333333333337,362.49490264333326,387.33890973249999,718.25,1416.8282256666664,3691.6950993231603,5108.5233249898292,null,null,1437.4036852841675,843.22833333333335,1406.0333333333335,778.82234853833336,581.80833333333328,1475.6833333333334,2228.7361237499999,6522.9793671558336,8751.7154909058336,null,null,-2831.2842678326729,-3643.1921659160071,null,null,915.00216422999438,452.78999999999996,829.90000000000032,406.56171339999992,405.17109158,733.5,1579.5981750000001,3742.9249692099911,5322.5231442099903,null,null,1592.0478195700027,850.88000000000102,1439.6999999999996,842.0393775499997,594.00000000000023,1571.5999999999992,2564.4632359999987,6890.2671971200034,9454.7304331199994,null,null,-3147.3422279100087,-4132.2072889100091]
[null,null,"S",4.4663053122658232,0.78212290502792292,3.2803932690489686,5.2985702270815782,6.4054942745756058,2.604408892196072,5.3558327219368946,null,null,3.4280887955075245,3.1500402056422883,"n.d.",5.2237215386701914,6.4250093853122063,1.9495779677088063,9.0480760841113383,null,null,73.012824627254119,90.796912080279228,65.256267035749985,76.125020427439651,97.954702376911882,93.569931143115269,91.096241527804921,null,null,-2.5480483272600942,0,1.5327982081426943,4.081574454208762,5.0168378373397919,2.7762048571788029,0,null,null,5139.7594487200004,2485.6,6753.7,2466.3195746445567,1643.1,3002.4,1942.56059026,null,null,61.101273502184185,99.197353885841622,110.4928029358711,72.588809234040625,115.17870493531042,52.922873145032625,165.20887193305981,null,null,5.7757328257169025,1.9426829268292785,2.0329189931350125,3.9140415335463286,1.5945715899414072,2.6944158760965764,-3.0048955431754791,null,null,2.12,2.74,2.72,3.95,3.0989768766090302,2.4109215332598599,2.19,null,null,15.271617618758638,4.7804878048780584,9.914376201372999,12.831541533546329,11.315480548550408,10.589491483077538,0.469045961002794,null,null,10.88,5.6,6.18,8.81,8.1959132044136194,6.1213131312324967,5.85,null,null,5,"n.a.",5,7,"n.a.",5,"n.a.",null,null,13.495197438190299,3.803816987852926,39.396273288941309,16.341551847862835,28.037376534173418,5.7105424077370515,15.210448060397642,null,null,939.48917512566106,438.53583333333336,841.80833333333339,367.70980691416662,389.99462972500004,719.94999999999993,1384.8525230000002,3697.4877784314954,5082.3403014314963,null,null,1433.7883305200005,839.47166666666669,1394.6000000000001,781.6071125366667,586.53333333333319,1476.4083333333331,2235.4235635833334,6512.4087763899997,8747.8323399733345,null,null,-2814.9209979585053,-3665.4920385418391,null,null,907.24415246999524,409.94000000000005,785.19999999999982,309.50351525999986,386.18622478999998,739,1278.4141540000001,3537.0738925199985,4815.4880465199967,null,null,1304.8668251300016,790.05000000000018,1281.3,775.6998310099998,583.89999999999975,1451.0000000000007,2464.766251,6186.8166561400067,8651.5829071400076,null,null,-2649.7427636200082,-3836.0948606200109]
[null,null,"O",4.6840231214709824,0.94111069698099625,3.3478343105731097,5.6722689075630255,6.4684304258566057,2.817556258136495,5.2708638360175915,null,null,3.2018589989470101,3.0733984105685863,"n.d.",5.2476683146672309,7.0851731723306237,1.7395494387583577,8.3901302734880581,null,null,72.629165867077333,90.68619461467172,64.3859465943505,76.046509435323102,97.637683430138424,93.846043811646723,90.934162657652479,null,null,-3.3593223236246583,0,0.373088842984313,4.0847208559403327,5.0048018425171215,2.9456842149237201,0,null,null,5365.96608913,2548.6999999999998,6804.2,2398.500381807964,1684.1,2994.8,1908.7486163199999,null,null,63.146759894356663,98.830107760375668,108.03640676924063,75.208677183355505,111.13950072473887,55.33834199794849,159.43826343268881,null,null,5.316930618983271,1.8217446690667356,1.9856881405563636,3.9156262425447319,1.4249399453782414,2.0499697059669968,-2.9931015299026629,null,null,2.15,2.78,2.73,3.92,3.4381887188681901,2.5531292063992899,2.12,null,null,15.280246595001371,4.7937745776793079,9.9103825036603173,12.508230616302185,9.5723076974709684,9.9323505788186779,0.89528048215111544,null,null,10.8,5.78,6.17,8.85,8.9289823895589606,6.3022872373723722,6.2133333333333338,null,null,5,"n.a.",5,7,"n.a.",5,"n.a.",null,null,13.513257349732054,4.2968949259419853,38.730837846143771,17.602361812441501,27.270744586671157,5.8773749637774486,14.256218205175596,null,null,943.71777948899444,443.21166666666659,841.81666666666661,370.89283751083332,396.36646916166666,726.55833333333339,1381.2353620833335,3722.5637528281623,5103.7991149114941,null,null,1451.6897303433332,849.81083333333333,1405.5166666666664,787.5454540574998,592.75833333333333,1480.8916666666667,2267.1862459166673,6568.2126844008335,8835.3989303175003,null,null,-2845.6489315726722,-3731.5998154060057,null,null,919.609951179993,444.99000000000024,732.5,275.89084633999983,436.01428736000003,757,1636.042719,3566.0050848799947,5202.047803879992,null,null,1616.1852008599869,863.55000000000018,1531.7000000000003,811.25133027999982,657.3,1519.3000000000002,2685.244356000002,6999.2865311399873,9684.5308871399902,null,null,-3433.2814462599963,-4482.4830832599982]
[null,null,"N",5.2163663153646356,0.65128395980647824,3.1140888930829456,5.4416073670992047,6.1635032457332173,3.3723522853957593,4.4992743105950526,null,null,3.0710763463792228,2.7692832682743291,"n.d.",5.073744901811823,7.5597437384009449,1.7912913345984309,7.8478205237567193,null,null,71.999495086972928,90.381663254686259,64.075573278197524,75.864942017017583,96.705614745606042,94.007748074474605,90.409462713865736,null,null,-1.5496652170911633,0,0.72901938112189735,4.5542560254875797,5.3353635780372368,3.8861545825355774,0,null,null,6530.7613680000004,2514.6,6711.2,2376.1123724889212,1702.5,3119.3,2106.1048792199999,null,null,75.365066629609785,99.663191837970615,105.71411976243461,73.883324366367262,111.49331023499469,56.11320788733051,136.91898306608931,null,null,4.0712617576965586,2.4229358476613028,2.2265736249656838,4.5033386264390627,2.1724784172249403,1.4998954035247378,-2.2768333333333213,null,null,2.15,3.09,2.76,3.98,1.92275526041191,2.4133867878690398,2.12,null,null,14.706489329099524,5.1551414309484169,10.120742198224583,12.820738388249305,10.431999812145555,9.8645490666499054,1.6530185185185309,null,null,11.1,5.84,6.2,8.74,8.4761685189420692,5.8745883164269106,6.2266666666666666,null,null,5,"n.a.",5,7,"n.a.",5,"n.a.",null,null,13.685649982366188,4.4200988006592778,37.898275065483247,17.171558684633293,25.636888853021354,5.9303229719078088,14.616660632069657,null,null,950.36903455066067,445.54333333333335,843.3416666666667,369.58294994333323,401.10716126083327,742.85833333333323,1400.0135364166665,3752.8024790881609,5152.8160155048281,null,null,1456.6213977450009,856.59333333333336,1407.0916666666665,784.54099858583322,593.07499999999993,1477.1083333333329,2275.3033097500006,6575.0307296641695,8850.3340394141705,null,null,-2822.2282505760068,-3697.5180239093402,null,null,983.18303701999321,416.76000000000022,808.29999999999973,249.70019592999961,398.35594606000001,876.3,1709.1735840000001,3732.599179009987,5441.772763009998,null,null,1551.3879772700107,860.8700000000008,1431.0999999999997,761.96831855999972,587.89999999999986,1475.8999999999996,2254.8065350000006,6669.1262958300067,8923.9328308300173,null,null,-2936.5271168200125,-3482.160067820012]
[null,null,"D",4.5505304799921396,0.78292478329759441,3.4463276836158157,5.3907229419139053,6.6186108228091536,3.9068299925760894,4.6343229543808873,null,null,2.7598345394593458,2.3075792851994925,"n.d.",4.6850894183085137,7.8407625325509862,2.0200660410061198,7.5341019468727577,null,null,71.592249581698383,90.179940111575149,63.708172847251689,75.86856381933633,95.266917314358352,93.716471462321152,89.786117128644818,null,null,-1.0953286373159281,0,1.1623029286473625,4.8224186163205651,5.4183704095367222,4.2106710457022949,0,null,null,6856.6761120399997,3172.9,6693.8,2570.9308349226294,1718.1,3209.8098136290778,2418.5563101600001,null,null,75.528614572263805,131.27881511859943,101.67566131039575,74.670903759849566,115.30061075949349,56.259014451288678,193.37093950180434,null,null,4.4471027537231196,2.5173661333580051,1.8692517749863498,4.8479381443299072,1.5425221116799057,1.2926676788425524,-2.3934048442906612,null,null,2.15,3.32,2.77,4.1100000000000003,2.9963724161366301,2.46,2.13,null,null,15.236144137074739,4.8689549616202825,9.6897323866739544,13.140888183980978,10.809478337601952,8.6165365722961553,1.5536747404844251,null,null,11.1,5.69,6.1899999999999995,8.75,8.3290553009836703,6.82,6.26,null,null,5,"n.a.",5,7,"n.a.",5,"n.a.",null,null,14.049232257194166,3.4139141305052245,41.109297639245867,16.879082829856749,26.286194155104383,5.8899808902095563,15.211570560887466,null,null,953.71615834832721,444.92333333333335,831.55833333333339,365.92236845999992,402.35546811916669,744.62499999999989,1409.7487818333332,3743.1006615941606,5152.8494434274935,null,null,1465.8858827616671,854.78416666666681,1416.1666666666667,782.10712010499992,601.35833333333323,1472.7749999999999,2268.2019118333337,6593.0771695333342,8861.279081366667,null,null,-2849.9765079391732,-3708.429637939174,null,null,880.67446991999168,418.1899999999996,823.69999999999982,293.21729701000004,352.51236244,684.8,1195.649776,3453.0941293699943,4648.7439053699854,null,null,1473.1929399800003,835.31999999999971,1409.4999999999993,747.11638144000062,634.79999999999961,1478.5000000000005,1823.3658869999999,6578.4293214200006,8401.7952084199933,null,null,-3125.3351920500136,-3753.0513030500151]
[null,2013,"E",5.7367026454113565,0.87320018578727132,3.857008466603959,5.6713928273561276,7.7431221581462317,4.7583849210015625,4.6829971181556225,null,null,2.1766626779097136,1.7766473284522348,null,4.0796469637382984,7.8546465838587531,2.3155378929812671,8.08496347913694,null,null,71.019648352615619,90.063487075445494,63.515580341414449,76.01711299636824,95.038086014268714,93.76103524610555,89.591954977728605,null,null,-1.7366074913835243,0,0.91712287650779423,4.7880183605774009,5.2674431116844094,4.4191217342968265,0,null,null,6748.7871541100003,3116,6649.7,2535.3638062192508,1717.9,3017.8,2590.8353731500001,null,null,71.343228895754351,115.52537164801244,103.08884859816045,73.937711462219013,114.21335335326681,56.588836462159783,217.3229183104186,null,null,2.4242266785873556,2.3760521226632312,1.5049456521739053,5.1183267561168133,0.6527348585987377,1.0897600987828624,-2.4292360633172772,null,null,2.1550000000000002,3.27,2.78,4.17,3.2650459696615299,2.11,2.14,null,null,13.621852199127286,4.7255364214016042,9.3041304347825999,13.08642462509866,12.606536286991251,7.9149894161227827,1.5160082587749451,null,null,11.21,5.64,6.18,8.75,8.7767559505213004,7.02,6.27,null,null,5,"n.a.",5,7,"n.a.",5,"n.a.",null,null,14.398525332226786,3.8633469805749998,40.64299583443762,15.448290728615998,25.747361922451905,6.6944211394347031,19.130349014659508,null,null,956.36932721666028,447.435,838.55833333333339,369.00561891104627,402.62106464583331,752.26666666666654,1414.722404833333,3766.2560107735403,5180.9784156068736,null,null,1473.3947740641661,860.16333333333341,1426.5833333333333,787.70891689485882,605.27499999999998,1466.5916666666665,2294.8526542500003,6619.7170242923594,8914.5696785423588,null,null,-2853.4610135188182,-3733.5912629354857,null,null,911.55497141999081,478.83,828.19999999999993,379.56635029255699,395.04702832999999,676.9,1096.5744199999999,3670.0983500425477,4766.6727700425481,null,null,1562.8947004099925,885.23,1465.6,807.42310439830715,553.20000000000005,1253.4000000000001,2196.2185369999997,6527.7478048082994,8723.9663418083001,null,null,-2857.6494547657521,-3957.2935717657519]
[null,null,"F",6.5157852975185353,0.97222222222221966,4.1842179163156406,5.7827344072697349,7.0810337818385873,4.7325292330356321,4.581245526127419,null,null,1.7847273908705206,1.2884947603265393,null,3.4223826238605497,7.648440101829487,2.485247577944214,8.1619885723818513,null,null,71.003425678579305,90.418088048441717,63.088302205405185,76.130645263897094,95.75572781027445,94.644845949175334,89.831119070736733,null,null,-1.7484904415029727,0,0.54917058257373952,4.7882641892950648,5.3126981243704279,4.6618124562867456,0,null,null,6816.2660269300004,3070.5,7276.7,2465.0716619624882,1700.5,3035.2,2557.8234821000001,null,null,71.131019357072205,115.57018955317753,116.62432027240175,73.209400009069768,109.10278853943447,55.760209931013073,214.10694252294218,null,null,0.78318410754926748,2.2558459422283383,1.2149460916442061,5.3858180398281812,1.7390651926532481,1.6685081318681321,-2.3343052703627678,null,null,2.17,3.25,2.8,4.2300000000000004,3.0114232713399698,1.79,2.14,null,null,11.861354321513696,4.6723521320495216,8.9416442048517535,13.128102303787571,13.099070437694637,8.2758153846153828,1.6721492128678959,null,null,11.13,5.69,6.16,8.7799999999999994,8.9046228229723798,6.12,6.33,null,null,5,"n.a.",5,7,"n.a.",5,"n.a.",null,null,12.952589264620773,5.6724203638708115,37.611295613252253,14.870383243426044,23.811493728583777,7.0563942613386388,19.166181768040214,null,null,955.21577805749337,446.11999999999995,833.23333333333358,362.83588986221451,400.48202006249988,755.42500000000007,1402.3911987499998,3753.3120213155412,5155.7032200655412,null,null,1475.8170084324984,861.47916666666686,1428.75,784.4048618713349,606.23333333333323,1469.1999999999998,2288.7330466666672,6625.8843703038337,8914.6174169705009,null,null,-2872.5723489882926,-3758.9141969049597,null,null,936.30993912999338,434.41,796.00000000000011,358.44281003401807,355.52757599,719.40000000000009,1260.0372600000001,3600.0903251540108,4860.1275851540113,null,null,1354.0647751799925,835.28,1337.5000000000002,725.89967800771285,571.00000000000011,1394.6999999999998,2058.6268610000002,6218.444453187707,8277.0713141877059,null,null,-2618.3541280336931,-3416.9437290336928]
[null,null,"M",6.2058775143773612,1.2758875739645059,4.3384959880574652,5.5760557605576029,6.7943130672651559,4.9737979222212108,4.1163946061036061,null,null,1.6997558155800951,1.1334242276372268,null,2.8207227584204442,7.2698228470659609,2.4931009483833857,8.1482095490716162,null,null,70.722367645415758,90.248966570850371,62.80886196944865,76.184931053859387,96.081441554364972,95.075993586640479,89.720689655172393,null,null,-1.9383422558612331,0,1.1027814627934478,4.7380214281315514,5.3845020359552853,5.1207352850665746,0,null,null,6936.8452548100004,3027.5,7279.8,3051.1054984985508,1698.7,3500.5,2097.7660981199997,null,null,69.99884117194199,116.83185204823315,112.65838593079258,85.098560824183551,112.25490608233638,63.152142661460388,170.63246904014437,null,null,0.70064153042933541,1.9986123790396109,1.0748707860144942,5.8194485436893242,1.9954996092299531,1.3395743562795488,-1.9750920245398647,null,null,2.3250000000000002,3.3,2.79,4.25,3.6305639918334198,2.0299999999999998,2.06,null,null,11.839384768437556,4.3091327368997527,8.7805597782348297,13.444283495145635,15.184176702172985,8.2841644771413456,2.1549011588275531,null,null,11.16,5.64,6.15,8.65,8.3938901801492793,7.7,6.36,null,null,5,"n.a.",5,7,"n.a.",5,"n.a.",null,null,12.605328866407461,6.0890309776690854,35.670934207936014,14.789850088540767,27.521735274220195,7.1208658884623466,19.592131336681362,null,null,947.54609697082651,441.565,828.95000000000016,352.62224571764091,395.05512342083335,756.94166666666661,1367.6868590833335,3722.6801327759676,5090.3669918593014,null,null,1467.3662931749984,855.48250000000019,1417.9666666666669,767.52394132586824,593.06666666666649,1456.9083333333335,2260.1270238333341,6558.3144011675349,8818.4414250008685,null,null,-2835.6342683915664,-3728.0744331415667,null,null,1019.1430023599917,448.95000000000005,982.1,381.33723427511586,393.47804471000001,814.40000000000009,1333.0723640000001,4039.4082813451087,5372.4806453451074,null,null,1480.4872383699999,824.87000000000012,1346,679.48146713439883,495.9,1327.4,1927.6766400000001,6154.1387055043979,8081.8153455043976,null,null,-2114.7304241592919,-2709.334700159292]
[null,null,"A",6.307269244210671,1.8377285674902159E-2,4.1271611823759038,4.6634225466342372,6.343806475904783,4.8997977569406128,3.735024665257209,null,null,1.6828596531007451,1.1160361836982966,null,2.404472532476726,6.7951618857600637,2.5189768058520881,7.9899559543901404,null,null,70.135374008692779,90.726633491815818,62.531655227206592,76.178736178248499,95.385168923735378,95.177995634739105,89.29999944801304,null,null,-1.2292306717236545,0,0.60947471423196953,4.7325833837483176,5.150049667852568,5.2158513081276139,0,null,null,7960.4042082599999,3093.3,7220.8,2954.9363294765917,1730.5,4099.6000000000004,2863.0006039399996,null,null,80.78236878194889,114.55745964120663,113.11595109632979,80.928500852674077,114.68911016069991,66.448025951827788,233.95434328169796,null,null,0.41646329450179098,3.201034451079471,1.2704070701660444,7.0192406044168809,2.5033450150208014,2.2499588116729483,-1.5183152173912904,null,null,2.2850000000000001,3.22,2.79,4.28,3.8423504726768072,2.4,2.16,null,null,10.425186193363608,5.6905769407441467,9.0301499732190695,14.82521503293296,12.955078709454712,8.9706581368854632,2.5111820652174051,null,null,11.02,5.71,6.1400000000000006,8.6,9.3830128967005439,6.12,6.34,null,null,5,"n.a.",5.25,7,"n.a.",5,"n.a.",null,null,12.822594625943996,5.2257461935270255,34.108020768899962,13.49322823449759,28.070876081166098,8.5420112477957666,18.851597996525136,null,null,951.36211507915971,448.30666666666662,830.08333333333337,349.39458764483078,395.49666405083332,762.44999999999993,1371.09383,3737.0933667748236,5108.1871967748239,null,null,1491.3797618716662,867.38166666666677,1441.875,771.29572128585949,596.15833333333319,1455.3999999999999,2276.343409666667,6623.4904831575259,8899.8338928241919,null,null,-2886.3971163827023,-3791.646696049369,null,null,1001.125653989995,496.52999999999975,888.79999999999984,354.66318511627901,427.16693319000001,832.40000000000009,1263.676866,4000.6857722962723,5264.3626382962739,null,null,1605.781479110005,959.30999999999949,1610.1,795.23389025989491,619.20000000000005,1368.6,2188.5362319999995,6958.2253693698985,9146.7616013698971,null,null,-2957.5395970736245,-3882.3989630736232]
[null,null,"M",5.2840368776231115,0.14742467520500929,4.2703304864463369,4.8197650870797917,7.7284868220783665,4.9866347128767732,3.7192982456140355,null,null,1.7723931364417369,0.94828268221534939,null,2.1687667058345599,6.2588190983824727,2.9292335509250442,7.7935346765294833,null,null,70.263733674011618,91.021958229915398,62.416192320109523,76.416624385788822,95.102200979226964,95.621438359467035,89.095827520773682,null,null,-1.1477411477411512,0,5.8290805494003929E-2,4.7606760599589801,5.3455018972351782,5.3115918630933283,0,null,null,7885.1966123700004,3058.7,7252.9,2839.7668864127813,1727,4067.4,2770.37502614,null,null,77.691798084357998,116.41023962538031,110.8384576929452,80.424071827956197,116.54574083664251,66.75890985335559,231.38414623298104,null,null,1.2974076250178515,3.1778903302971786,1.1217663817663874,6.9740996908809869,1.1432051024636158,0.72710711150130702,-1.5130243572395135,null,null,2.0499999999999998,3.33,2.89,4.32,3.4490119720693002,1.9221571562034878,2.15,null,null,10.928497295132065,5.5843426258165456,8.9379878917378974,14.692109737248837,12.086720439459887,7.7440064153845327,2.50744248985115,null,null,10.84,5.74,6.09,8.59,8.41823119777027,6.7064413023315241,6.32,null,null,5,"n.a.",5.25,7,"n.a.",4.25,"n.a.",null,null,13.616453016724407,5.684515599356188,32.168513704561086,12.863888297372149,26.018404833293161,11.010717208040631,15.66496267460391,null,null,947.7950062466598,453.46083333333326,837.90833333333319,344.18697943114171,395.61720850833336,771.76666666666654,1362.1340636666669,3750.7350275194681,5112.8690911861349,null,null,1488.8459558483337,862.80333333333328,1443.7083333333333,768.55949454657332,588.62499999999989,1446.8666666666666,2250.3972938333336,6599.4087837282414,8849.8060775615741,null,null,-2848.6737562087724,-3736.9369863754387,null,null,1033.1592927199954,523.0300000000002,965.29999999999973,353.13768682573095,393.64394728000002,912.4,1415.2201380000001,4180.6709268257273,5595.8910648257297,null,null,1487.5679764100048,934.80000000000018,1596.1999999999998,784.51932731856641,596.39999999999986,1410.3,2181.6336790000005,6809.7873037285717,8991.420982728574,null,null,-2629.1163769028462,-3395.529917902848]
[null,null,"J",5.1379035906493709,0.89864739670187033,4.7936949466852123,5.2652895909274893,8.2852699778671468,4.8013245033112568,4.1432584269662938,null,null,1.9181612125348195,0.98273592431002521,null,2.0279274920519015,5.7231833617166643,3.7942917668087932,7.6929322453618969,null,null,70.381989705240557,91.056077274674507,62.411716627770872,76.57539449385628,95.724542186929156,96.67458504350634,89.008520131312451,null,null,-0.29265650453334202,0,-0.40335907124053261,4.7487422242585495,5.3709004596895884,6.1363764354134487,0,null,null,7877.81888385,2887.6,7070.9,2915.737988576333,1705,3841.4,2790.4651858599996,null,null,77.427497617368275,111.86251710807733,108.52804007925457,78.795258896750354,115.82504135130822,65.408033753520229,228.66128058846354,null,null,1.3906463410600696,2.5187182076944277,0.63582551760750161,6.3408464794151707,-7.4077558146578171E-3,-0.12530805687203658,-1.9043560350640607,null,null,1.97,3.44,2.89,4.28,3.3319376986991398,1.98,2.16,null,null,11.149258268445401,4.56037094848958,8.4225535303486083,14.159188149288202,10.025850105218534,7.1742180094786745,2.0613351314902206,null,null,10.72,5.5,6.09,8.5299999999999994,8.2373225753929091,6.73,6.29,null,null,4,"n.a.",5.25,7,"n.a.",4.25,"n.a.",null,null,13.053926246137259,6.7438367798653864,31.548010640737758,12.842162374245625,24.664378549513199,12.819155045584573,14.387020860572042,null,null,948.39523927999323,458.75333333333327,835.95833333333337,338.78549366637873,395.74273578666674,775.54999999999984,1351.2846897500001,3753.1851353997049,5104.4698251497057,null,null,1487.1181843149996,885.3183333333335,1438.0833333333333,764.05027446213535,590.36666666666656,1434.4833333333333,2246.613388416667,6599.4201254438012,8846.033513860466,null,null,-2846.2349900440963,-3741.563688710763,null,null,962.47991521999302,455.82999999999993,807.99999999999977,319.99107378284498,390.82317710999996,774.90000000000009,1133.61535,3712.0241661128384,4845.6395161128348,null,null,1388.9377574799896,956.60000000000036,1382.5000000000002,687.55106432674484,606.60000000000014,1402.7999999999997,2079.4782169999999,6424.9888218067354,8504.4670388067316,null,null,-2712.9646556938969,-3658.8275226938931]
[null,null,"J",5.8141562804685316,1.0872595483691123,4.7399057562598133,5.6252529340348065,7.6558827286991598,5.6682027649769635,4.1316526610644129,null,null,1.9565978001177604,1.4007128351217213,null,1.9080858578383166,5.2054912673209097,4.8964600826528049,7.8404457184383771,null,null,70.134364266660583,91.200814643943829,62.289477374664187,76.568329822451403,96.623847239226848,97.145534981884254,88.804063809989103,null,null,-0.44044398734029599,0,-1.8818119672992493E-2,4.7182492558651949,5.173394968447969,7.2337496513624329,0,null,null,7723.7136800400003,2864.6,6727.1,2779.6456492389716,1711.1,3453.8,2734.8101442900002,null,null,75.732017445787662,107.52248246838528,100.81528564746709,78.072214170492956,110.75783759433936,62.665455584936048,231.42975789090184,null,null,0.69541141317713484,2.2285107556536112,0.67795959774171166,5.9405747126436763,1.6018149633610581,-0.98251199302224634,-1.9798520511096047,null,null,1.95,3.34,2.9,4.26,3.53,1.8,2.0699999999999998,null,null,10.28770072189368,4.6917291781577486,8.4782339449541304,13.760674329501914,12.651012340626561,6.7965547317924058,2.0727101546738527,null,null,10.65,5.83,6.08,8.5,8.57,6.3,6.29,null,null,4,"n.a.",5.25,7,"n.a.",4.25,"n.a.",null,null,12.393023105225831,6.6146405531721575,30.741721841220084,13.483389296978142,23.05294918698193,13.846244309921673,14.568723072189972,null,null,951.57139153332639,455.96083333333337,839.65,332.53107450996066,395.39421414750001,781.14999999999975,1369.0313333333336,3756.2575135241204,5125.2888468574538,null,null,1496.1863176566656,880.15083333333348,1446.958333333333,768.55643913010954,593.52499999999998,1425.2833333333331,2240.1511520833337,6610.6602567867749,8850.8114088701095,null,null,-2854.4027432626553,-3725.5225620126562,null,null,949.37014873999033,491.2800000000002,827.79999999999973,308.36098585298305,410.80395093000004,852.80000000000007,1527.3011940000001,3840.4150855229709,5367.7162795229742,null,null,1536.8211221100003,965.05000000000018,1532.2999999999997,804.49349927568892,622.10000000000014,1449.9,2456.997394,6910.6646213856875,9367.6620153856929,null,null,-3070.2495358627202,-3999.9457358627224]
[null,null,"A",5.3070005440292176,0.99257884972171373,4.4150110375275915,5.3901850362027375,7.9357436536217438,5.3010948905109512,3.9024390243902451,null,null,1.9105956588255739,1.9132328493670845,null,1.7739643240135197,4.6625952383249736,5.9325902245848301,8.2023871719647943,null,null,70.196687965204333,91.235038945273203,62.891413643378812,76.378605009812176,96.642912911905654,97.687773793096795,88.672362155493389,null,null,-0.17415311761504193,0,0.18094465168568796,4.292082778285609,5.0308003598337763,8.3329711154690802,0,null,null,7719.44312145,2855.7,6745.8,2655.8394964333825,1746.8,3392.6,2892.9286542099999,null,null,74.734311830849038,106.5124113422272,101.98904422521086,74.773042463771461,112.64170145244994,67.590781539782824,235.00448915984103,null,null,1.1803578580239591,2.3045467070818337,1.0103805496828773,6.0345419847328223,0.79705031659961978,-5.8019235768132955E-2,-1.7636150234741796,null,null,1.95,3.32,2.89,4.26,3.3927653005273783,2.06,2.0699999999999998,null,null,9.9072230735588285,4.9780104712041817,8.8157716701902764,14.128274809160303,12.002240520174732,7.2163590676717764,2.3363849765258204,null,null,10.28,6.02,6.0699999999999994,8.5299999999999994,9,6.54,6.33,null,null,4,"n.a.",5.25,7,"n.a.",6.25,"n.a.",null,null,12.790948493496757,7.3547539969954556,13.803025521758228,13.433317439676596,22.13501016312518,14.967281049158165,13.765231685726764,null,null,954.57556837499305,458.34416666666658,837.52499999999998,322.58531189050899,398.03842013500002,786.21666666666658,1343.8384170833335,3757.2851337338348,5101.1235508171685,null,null,1490.6308708083316,884.71500000000003,1442.5833333333333,762.30741861478145,597.76666666666677,1412.9999999999998,2211.2395205000007,6591.0032894231144,8802.2428099231165,null,null,-2833.7181556892792,-3701.1192591059457,null,null,951.05228632999388,481.38999999999987,804.39999999999964,287.21256196657896,436.90156343000001,794.30000000000007,1277.2831799999999,3755.256411726572,5032.5395917265705,null,null,1525.3824573899974,905.64999999999964,1387.1999999999994,767.05113136606542,644.90000000000009,1424.2000000000003,2217.5236569999988,6654.3835887560708,8871.9072457560687,null,null,-2899.1271770294879,-3839.3676540294873]
[null,null,"S",5.3718385446357813,0.75757575757576445,4.210526315789469,4.9520766773162954,7.3518468085529021,5.1309944701296315,3.8997214484679681,null,null,1.8480332817791738,2.3570127892298598,null,1.7466061126379848,4.1183476702163979,6.5865415634925526,8.5253640582493091,null,null,70.467971772172206,91.182014788917769,63.112420962465237,76.481866012557646,97.07992773887257,97.888927328432459,88.71598751273801,null,null,0.50816962174181002,0,-0.39333775539943705,4.2092509661377484,5.1472357570324849,8.6956632640047395,0,null,null,7617.35809264,2889,6583.6,2561.1840444518798,1731.7,3343.8,2425.49320433,null,null,72.076200277111312,106.20507468359968,101.48287811173591,73.398923906610648,111.98363388794186,65.34049423502222,192.60210367374592,null,null,1.1180989832166079,2.6821052631578879,1.2373737373737419,6.3151902587519011,1.9995593821264486,1.7302276450806275,-1.7802949061662214,null,null,1.9650000000000001,3.46,2.92,4.22,3.7918328285247744,1.61,2.0499999999999998,null,null,9.9724571579084067,5.0938345864661585,9.038888888888895,14.461765601217653,13.472204834616125,8.4837069931878961,2.3101876675603199,null,null,10.31,5.89,6.09,8.5500000000000007,8.4371588097991239,6.33,6.3,null,null,4,"n.a.",5.25,7,"n.a.",6.25,"n.a.",null,null,12.396638561788809,7.0611122144784932,12.948007650078486,12.966578355250192,21.916701226877432,16.022003524533758,12.231295282375655,null,null,960.17756597916002,459.73166666666674,833.07499999999982,320.95641491749387,399.18699330833334,785.50833333333333,1373.5021268333333,3758.6359742049863,5132.1381010383202,null,null,1506.943693496665,889.60083333333341,1458.625,758.77058631297348,595.80833333333351,1406.7,2192.1532306666672,6616.4484464763054,8808.6016771429713,null,null,-2857.8124722713196,-3676.463576104652,null,null,974.4681237199984,426.59000000000015,731.7999999999995,289.95675158381891,399.96910287000003,730.5,1634.3786709999999,3553.2839781738185,5187.6626491738134,null,null,1500.6206973900016,848.68000000000029,1473.8000000000006,733.25784338830363,560.40000000000032,1375.4,2235.7307730000002,6492.1585407782986,8727.889313778287,null,null,-2938.8745626044911,-3540.2266646044882]
[null,null,"O",4.1061599239971871,0.53540108926428354,4.1544655929721745,4.6123260437375837,6.8305985700632972,4.739079316270244,3.8942976356050076,null,null,1.7971879935963375,2.6054089275519119,null,1.8945977725918415,3.7041721397225049,6.8575341289035707,8.5445934651967992,null,null,70.659750881014659,91.072455389163053,63.097436213722652,76.21883247092893,97.341656729771216,97.370901069466953,88.369061528184304,null,null,0.31655064613806655,0,1.0959228311530642,3.8486807564108596,5.4901831566368777,7.6358858992145233,0,null,null,7441.1258433399998,2847.7,6657.8,2499.9386394088324,1749.2,3648.2,2677.7236857100006,null,null,70.565282784660454,105.58393175474659,103.06835281079569,73.8593629860585,110.85737377179802,65.732115796516183,215.9522940385815,null,null,2.3474500238861378,2.9289174547791768,1.2630609734668843,6.5457620676548762,2.6160016062897684,2.7505690354891557,-1.7077911646586352,null,null,1.9550000000000001,3.48,2.92,4.18,3.79075888533814,1.57,2.12,null,null,11.520778486843556,5.226615554127263,9.1263820066772183,14.948213606993528,15.235752108097826,9.5388662464381238,2.286653279785809,null,null,10.56,5.79,6.07,8.6,8.8000000000000007,7.06,6.27,null,null,4,"n.a.",5,7,"n.a.",6.25,"n.a.",null,null,12.248832748387661,7.4624841907608763,12.901375372748024,14.253800763250467,22.480960046968335,15.121675909007969,11.883545944689832,null,null,968.23796949249379,460.36166666666662,835.95833333333303,320.4087637134383,399.72029064499998,791.58333333333337,1370.0661808333334,3776.2703571842653,5146.3365380175992,null,null,1506.4297822583333,893.8950000000001,1464.7250000000001,757.63866712968229,594.14166666666665,1412.6666666666667,2169.5671064166663,6629.4967827213486,8799.0638891380149,null,null,-2853.2264255370847,-3652.7273511204171,null,null,1016.3347933399982,452.55000000000018,767.09999999999945,269.319031891333,442.41385540000005,829.9,1594.8113669999998,3777.6176806313379,5372.4290476313399,null,null,1610.0182660000046,915.08000000000084,1604.9000000000003,797.66830008050692,637.29999999999961,1590.9,2414.210865,7155.8665660805127,9570.0774310805136,null,null,-3378.2488854491821,-4197.648383449181]
[null,null,"N",3.4431410701870986,0.75799593270474497,4.6307312162533201,4.7240968638348573,6.2944611064371863,4.1430754021748895,3.8194444444444455,null,null,1.7727618045016955,2.7208412668042143,null,2.1980028145259576,3.5336251206255769,6.8239524610797728,8.174483904136661,null,null,70.343580807669994,90.811402948027236,62.178932360339786,75.932039639599765,96.954174364708663,97.163672055439761,88.128362423854355,null,null,-0.17090271691501532,0,0.29295880759910992,3.5359046398111702,5.2654569485915896,6.3239473651262683,0,null,null,7398.0345456100004,2747.7,6957.6,2383.4106976996054,1754.9,3542,3148.2979409499999,null,null,68.239359648146078,104.22988917347446,107.94972485796843,69.536208082678669,110.44094342326775,64.374015176560718,266.77768268683968,null,null,3.003446045499401,2.9099467889908324,0.83079681623370694,6.3747536012130386,2.8671441521711718,2.9065058681394551,-1.608026755852844,null,null,1.855,3.69,2.93,4.16,3.4646361978997793,1.69,2.15,null,null,12.245238107394981,4.7956532110091814,8.6487676025540061,14.815981804397266,13.391560530559151,10.079330341732827,2.4374581939799316,null,null,10.47,5.59,6.07,8.5299999999999994,8.5,5.68,6.35,null,null,4,"n.a.",5,7,"n.a.",6.25,"n.a.",null,null,13.208663820386501,8.0714250519637645,11.953187365533546,13.735545684195017,21.874068722022024,15.238444749241165,-4.3446684991081614,null,null,968.96319880832743,459.26499999999993,835.51666666666642,323.67159110031918,400.17910077833335,781.54166666666663,1341.7389346666666,3769.1372240203127,5110.8761586869796,null,null,1503.403291557499,899.43916666666689,1465.7583333333332,761.39202402219507,595.9,1407.6333333333332,2149.2692059999995,6633.526148913028,8782.795354913027,null,null,-2864.3889248927153,-3671.9191962260484,null,null,991.88578880999739,403.59999999999945,803,288.85412457257007,403.86166766000002,755.8,1369.2466300000001,3647.0015810425612,5016.2482110425626,null,null,1515.0700888600047,927.39999999999964,1443.5000000000009,807.00860127015039,608.99999999999977,1415.5,2011.2317300000004,6717.4786901301559,8728.71042013017,null,null,-3070.4771090875838,-3712.4622090875855]
[null,null,"D",3.6795406734904486,0.78609081660964453,4.3874021481886105,4.9167327517843118,5.6748063186391358,3.8760382245244291,3.7370242214532876,null,null,1.9475237483300873,2.8859220225567785,null,2.5761594973749662,3.6077908300767265,6.5969424030168309,7.4892981973844375,null,null,69.971448161180689,90.820274556076228,61.703765224472185,75.856373240073424,96.00082720387006,97.123886859393721,87.849935516781244,null,null,-0.16692475400134169,0,-0.39270705044374349,3.3478630343798441,4.9133741864135017,6.0601006379489926,0,null,null,7330.8633171600004,2720.7,7272.6,3055.9363093790512,1840,4386.5041908662597,2748.6520483199997,null,null,67.018715700381037,102.02968074801515,99.520485668955246,82.706719369155394,112.84486146522967,73.433376910943338,232.01845812774121,null,null,2.720362482499604,2.8316498440080666,1.0275165678409421,6.1222524565381571,2.8634456795500021,3.3250803886166254,-1.5684122748499005,null,null,1.8599999999999999,3.64,2.94,4.18,3.08,1.79,2.11,null,null,12.018243180446047,5.0045687282070022,8.9211893965817861,14.643295540438384,12.652400166572139,9.8039566675264354,2.4802868579052695,null,null,10.53,5.83,6.06,8.48,8.0299999999999994,7.17,6.31,null,null,3.75,"n.a.",5,7,"n.a.",6.25,"n.a.",null,null,13.086229132800087,7.946945203386746,10.166199221924632,13.599401069967175,20.247758493291013,15.238610543426368,-8.6862357311441318,null,null,969.59492761499439,459.94166666666666,835.68333333333305,327.44879043828752,399.5332200758333,785.36666666666679,1313.669114,3777.568604795782,5091.2377187957809,null,null,1496.8095505191657,895.62833333333344,1459.6250000000002,762.68996295340912,593.22500000000002,1400.1000000000001,2143.3555729999994,6608.0778468059079,8751.4334198059078,null,null,-2830.5092420101269,-3660.1957010101264,null,null,888.2552155999947,426.3100000000004,825.70000000000027,338.54368906562013,344.76179401000002,730.7,858.81192800000008,3554.2706986756166,4413.0826266756048,null,null,1394.0680475199924,789.59000000000015,1335.9000000000005,762.6916486145692,602.69999999999982,1388.1,1752.4022910000003,6273.0496961345634,8025.4519871345547,null,null,-2718.7789974589541,-3612.3693604589498]
[null,2014,"E",3.1040330968614209,0.84722350124320989,4.1394927536231823,5.9984214680347341,5.1922326714335245,2.8223672605397803,3.3723331039228013,null,null,2.3797982089408682,3.0594264342933055,3.461988935105059,2.8987687506801234,3.7192270837112109,6.4330023925353945,5.7596706540313747,null,null,70.120651941798499,90.716966673260643,61.674020370437383,75.123337236668647,96.301763796641467,97.850764460556277,88.055888383463412,null,null,0.21653281790923695,0,-0.45172491808195159,3.1238670923439034,4.9340717145808313,5.6393497569968067,0,null,null,7258.3436738500004,2751.3,7164.6,2925.7112050424298,1874.4,3753.8264529553708,2346.1767065199997,null,null,68.699381693964042,102.76889195016234,99.602853777760842,79.974841100943195,112.12883509730503,69.099456168666521,194.38421274223074,null,null,3.3422231891755909,2.6205743767692438,1.8441680438375285,4.8506180193596373,3.8243172150106512,4.0435100360267615,-1.1534354194406338,null,null,1.875,3.49,2.94,4.17,3.6302273824629938,1.46,2.1800000000000002,null,null,12.944175414167034,4.9508318874988575,9.2573019048447485,13.728108711839159,14.917278153774664,11.561329559101045,2.8224833555260815,null,null,10.07,5.84,6.06,8.51,8.8520728691260526,8.09,6.29,null,null,3.75,"n.a.",5,7,"n.a.",6.25,"n.a.",null,null,13.560347534824114,7.6264986567358362,10.817445566034278,13.5271897275816,19.762868220964357,12.104848584044836,10.917251818061136,null,null,964.87548666416126,453.76416666666665,836.2833333333333,324.24326124724104,402.77096771499993,790.0916666666667,1299.0811794166668,3772.0288822930688,5071.1100617097336,null,null,1493.0538260341661,896.51250000000016,1466.4833333333336,752.09333278555414,597.4666666666667,1404.7916666666667,2124.3110816666663,6610.4013254863867,8734.7124071530543,null,null,-2838.3724431933188,-3663.602345443318,null,null,854.92168000999231,404.7,835.4,341.1,433.9,733.60000000000014,921.51920499999994,3603.6216800099928,4525.1408850099924,null,null,1517.826006589999,895.84,1547.8999999999999,680.2635423840469,604.09999999999991,1309.7,1967.6846409999971,6555.6295489740451,8523.3141899740422,null,null,-2952.0078689640536,-3998.1733049640507]
[null,null,"F",2.7396626648014526,0.61439706556625562,3.5040431266846408,5.7399453338539583,5.2528405814158781,2.8395604395604428,3.3538672142368378,null,null,2.7158576189769819,3.0701251863089989,3.9485207161445568,3.113517745730078,4.1274327321941247,6.5202758048591036,5.0936993907611781,null,null,73.063799447257608,90.878158764445686,61.093749292061254,74.959516131627268,96.613114771926632,98.385302031330085,87.872146276113995,null,null,4.543432761484679,0,-0.88464885339885801,2.953713518373644,5.012456697821956,5.713179974292391,0,null,null,7275.1072810599999,2824.6,7163.9,3006.1140247603885,1816.2,3449.5470622487833,2140.5441688699998,null,null,72.235924194068375,102.44079352990244,101.45375757065314,79.247365042204592,106.56142995792506,67.032893930253607,173.62127295780755,null,null,3.6600639301951268,2.858043200874953,2.4790885416666621,5.2014918759231961,4.0954227280460387,4.035839459736704,-1.1164238410596157,null,null,1.9650000000000001,3.49,2.95,4.1100000000000003,3.3233665434587873,1.66,2.2000000000000002,null,null,13.237669836984987,5.5514947138169868,9.9570572916666613,13.826425406203846,13.540095509043965,12.023325624641254,2.6376688741721721,null,null,10.15,6.2,6.07,8.4700000000000006,8.6497021245682202,7.34,6.08,null,null,3.75,"n.a.",5,7,"n.a.",6.25,"n.a.",null,null,16.916526704494128,7.5105083306802989,10.418699503741834,13.774664959385397,21.50804531009738,12.232219145772749,11.149579926724385,null,null,967.5681033316614,452.17750000000001,837.09166666666658,321.7313604110729,406.5603363825,795.7166666666667,1272.0191094166669,3780.8456334585676,5052.8647428752329,null,null,1495.5699071691668,896.47583333333341,1468.0500000000002,749.84001069507678,595.22499999999991,1387.4916666666668,2100.9521643333323,6592.652417864243,8693.6045821975749,null,null,-2811.8067844056764,-3640.7398393223425,null,null,968.62133913999537,415.36999999999995,805.69999999999993,328.3,401,786.90000000000009,935.29241999999988,3705.8913391399938,4641.1837591399944,null,null,1384.2577487999972,834.84,1356.3000000000002,698.8598129219846,544.09999999999991,1187.0999999999999,1778.3198529999988,6005.4575617219807,7783.7774147219807,null,null,-2299.5662225819865,-3142.5936555819853]
[null,null,"M",3.2591887882225481,0.4108088369545268,3.2459983904140168,5.7864077669902825,5.1012817348377988,2.9865125240847754,3.3772324471711217,null,null,2.8000891569270006,2.8782393162752715,4.3778982034635519,3.137963659465151,4.4414636416304099,6.714246301721098,4.7022303977925883,null,null,76.358253391973321,91.238896588754812,61.118318972984447,75.204221586282259,97.550726318980182,98.570860087453042,88.079379796708338,null,null,9.8271340570615955,0,-1.0295711509725645,2.8690570907294251,5.1188877430416317,5.181599953160684,0,null,null,6785.6091915899997,2801.1,7110.7,3069.0782040609893,1858.9,3584.8739572163063,2070.0241558499997,null,null,68.381360111903277,102.6564382822647,100.60894711659618,77.295660290568208,108.53483621494691,68.206550413915195,170.8864051814931,null,null,3.2353645723764344,3.1163887626147937,2.1831370171488005,5.0796622613803315,3.7135799714422419,4.3146304957904613,-1.1387734216745673,null,null,1.9750000000000001,3.54,2.92,4.1100000000000003,3.2777717216382856,1.41,2.2000000000000002,null,null,12.968154571929745,5.5364469497227136,10.222189502858139,14.022209985315721,14.919247437416834,10.735708414176427,2.5854508672349521,null,null,10.35,5.97,6.08,8.42,7.8324688408574854,5.94,6.05,null,null,4.75,"n.a.",4.75,7,"n.a.",6.25,"n.a.",null,null,18.457448266827448,8.2395672172887338,10.536280308526313,13.426222144065637,19.868610788388153,13.535265897415361,11.335766930985635,null,null,970.09537779332834,454.4883333333334,841.60833333333312,319.8532575548133,413.1788326566666,799.44166666666672,1241.7298379166668,3798.6658013381416,5040.3956392548071,null,null,1507.5623495675,902.32333333333338,1478.8416666666669,759.12323612288571,601.44999999999993,1400.1333333333332,2085.7839469166661,6649.4339190237197,8735.2178659403853,null,null,-2850.7681176855785,-3694.8222266855778,null,null,1049.4702958999947,476.68000000000006,1036.3,358.8,472.9,859.09999999999991,969.60110599999985,4253.2502958999958,5222.8514018999958,null,null,1624.3965471500019,895.04000000000019,1475.4999999999998,790.88017226810598,570.59999999999991,1479.1000000000001,1745.6580310000031,6835.5167194181086,8581.1747504181112,null,null,-2582.2664235181137,-3358.323348518119]
[null,null,"A",3.6792927914641194,0.56959118052366065,3.2672737011248087,5.9666795815575258,4.9007181576330803,3.4878625887301764,3.5291440217391536,null,null,2.8368972910671419,2.5887580921777968,4.6745438364098311,2.9737065035738874,4.5831418614099295,6.8409896238412022,4.5856522070595522,null,null,75.483796002150925,91.974516982954938,61.359528934706937,75.309221673635363,97.438289941124808,98.46521624018223,87.940359597188859,null,null,9.4483545877012833,0,-0.60938005889516833,2.7505884383069859,5.1060844369380973,5.0113634425993858,0,null,null,7775.8436125999997,2841.1,7214.9,3161.2609550678944,1916,5161.981456020425,2258.3106731999997,null,null,78.503087337660361,101.69179700726671,103.56388966180276,78.73674893022816,112.58873414912513,96.154288753213351,178.74878048472891,null,null,2.9135106222335021,3.0629624554672468,2.1620850622406547,4.7876563071298079,4.4220102821174825,3.7802862223727631,-1.3224720774776804,null,null,1.97,3.65,2.88,4.0599999999999996,3.987221648857421,1.53,2.16,null,null,12.770830946125034,5.3897095094546401,10.209164937759326,13.799923217550287,15.76619501875331,11.153131509865354,2.4252648874732454,null,null,10.29,5.99,6.06,8.4499999999999993,8.6483290360719263,5.94,6.04,null,null,4.75,"n.a.",4.75,7,"n.a.",6.25,"n.a.",null,null,18.532813296251582,8.7584087997966584,10.753875706339301,13.897785791389673,21.170150134620492,14.077410651755006,11.085122456640949,null,null,968.9786256258285,448.44666666666672,845.84166666666658,320.4979921284567,412.43158822416666,795.97500000000002,1247.68283675,3792.1715393117847,5039.8543760617831,null,null,1498.0023230216657,899.27916666666681,1471.4416666666668,757.13215062150221,597.45833333333337,1414.4250000000002,2091.4320843333326,6637.7386403098353,8729.170724643167,null,null,-2845.5671009980506,-3689.3163485813834,null,null,987.72462797999742,424.03,939.6,362.4,418.20000000000005,790.8,1335.112852,3922.7546279799972,5257.8674799799956,null,null,1491.0611605599952,922.77999999999975,1521.2999999999997,771.34086424329325,571.29999999999995,1540.1,2256.3138809999946,6817.8820248032862,9074.1959058032771,null,null,-2895.1273968232908,-3816.3284258232852]
[null,null,"M",4.2102988352734361,0.94764927776244468,3.2229344729344773,6.2210200927356896,4.8473220695518888,3.6962247585601347,3.2476319350473597,null,null,2.8434171392232925,2.2426752714566294,4.7772989582392249,2.653090131400508,4.5108375982702702,6.7934110996682504,4.6329996966939753,null,null,76.131967416796272,92.085449717232805,61.340055174817735,75.356244602545857,97.397081044019174,98.937827547799841,88.105497621424149,null,null,10.561881757533905,0,-0.66963223596980437,2.5653854986426459,5.1408943522645183,5.0579674525711456,0,null,null,7704.4670957600001,2816.4,7174.4,3211.5809867864473,1931.6,4598.0900066988679,2247.5061663799997,null,null,77.674198193046337,104.27291632805613,106.8620823697711,82.447734470870998,114.09286313854292,84.341376832753795,179.37036534540061,null,null,2.5330521015961898,2.7562313160772862,2.2156563739865405,4.4426045834849166,3.886932626571888,3.417458301583276,-1.082477064220182,null,null,2.0750000000000002,3.73,2.88,4.0599999999999996,3.582997096907107,1.41,2.13,null,null,11.956304994789216,4.8662358731316067,10.275880627910984,13.621578755911258,13.869573363027602,9.5218271103208938,2.7142201834862401,null,null,9.93,5.86,6.06,8.48,8.7371739596041031,6.2,6.05,null,null,5.25,"n.a.",4.75,7,"n.a.",6.25,"n.a.",null,null,18.440227565709844,8.5660539130192106,11.171519390356387,13.791374612960695,22.453124904006149,13.485198834043665,11.262447187065284,null,null,970.7326444158283,445.71499999999997,844.27499999999975,325.43651822631244,416.51125928416667,794.23333333333346,1221.998947,3796.9037552596405,5018.9027022596383,null,null,1503.3453885066654,902.4725000000002,1477.4416666666668,764.43722849958738,600.87500000000011,1428.1083333333336,2075.2130077499992,6676.6801170062536,8751.8931247562523,null,null,-2879.776361746613,-3732.9904224966117,null,null,1054.2075181999944,490.24999999999977,946.5,412.4,442.6,891.50000000000011,1107.013461,4237.4575181999935,5344.4709791999921,null,null,1551.6847622299961,973.11999999999989,1668.1999999999998,872.18026185558938,637.40000000000009,1574.5,1987.00476,7277.0850240855907,9264.0897840855905,null,null,-3039.6275058855899,-3919.6188048855911]
[null,null,"J",4.5891347754078504,1.138554769993581,3.1321889930985725,6.2331666025394563,6.0528388698858784,3.677374056520974,3.3604180714767362,null,null,2.8589973254225258,1.8727646278622667,4.7030159552889108,2.2496128075876589,4.3698030899086735,6.5577085489738574,4.7383896260555076,null,null,75.849523659172362,91.89677492247047,61.683123165816191,75.525300937271453,96.964738317247935,99.538749968583232,87.899296669649502,null,null,10.425610983858007,0,-0.14119009670625096,2.6491297558054452,5.2457950663664006,4.5817194290758314,0,null,null,7494.0057608999996,2660.2,7096.4,3172.9837429338422,1944.4,4666.5868257044622,2342.8661294499998,null,null,75.033481572145192,103.96397332938349,101.6258509039103,79.877551713247001,113.44811748732486,80.146515619513281,189.30646638883479,null,null,2.2572757960583707,2.6908088969586843,2.2958991077556568,4.3647700108656098,2.8899220337058344,2.7900262422754611,-1.1807402623243857,null,null,2.1550000000000002,3.86,2.87,4.08,3.2976456399744682,1.67,2.14,null,null,11.512539280919006,4.6979564230594555,10.382608098833211,13.505041651575496,13.651876945653461,8.8376331160585799,2.6214889404273785,null,null,9.86,5.89,6.05,8.4700000000000006,8.7552409420964779,6.09,6.07,null,null,5.25,"n.a.",4.5,7,"n.a.",6.25,"n.a.",null,null,18.019801212731366,7.7314307931637627,10.413653099562614,14.479832233971578,22.307323844993654,12.775932108073151,10.304364312773039,null,null,972.6613579541621,447.03666666666669,851.21666666666658,331.22892874440873,422.40099452500004,800.96666666666681,1236.8452528333335,3825.5112812235707,5062.356534056903,null,null,1500.8286418591661,894.81,1482.4583333333337,772.76285969051276,603.29166666666674,1424.5500000000002,2080.9570379999991,6678.70150154968,8759.6585395496786,null,null,-2853.1902203261093,-3697.3020054927752,null,null,985.62447767999765,471.69000000000005,891.3,389.5,461.5,855.7,1311.7710199999999,4055.3144776799963,5367.0854976800001,null,null,1358.736797710003,864.64999999999964,1442.7,787.45863861784983,635.5999999999998,1360.1,2148.4065799999989,6449.2454363278448,8597.6520163278474,null,null,-2393.9309586478539,-3230.5665186478509]
[null,null,"J",5.1860001456912812,1.8293804008089676,3.4139026111503221,6.5900383141762413,6.9365963772630739,3.4103794156127312,2.1860121049092203,null,null,3.0121682288616514,1.3807654806622998,4.5392514851630699,1.900800882785562,4.1894262381560594,6.3916504775940739,4.8070083486204087,null,null,73.515779032303783,91.346754958165789,61.045512060455778,75.087157108904009,96.927896323720702,99.38458689629995,88.635744498973963,null,null,8.1035938991446805,0,-0.63110183543209863,2.486249083148226,5.1776131850202454,3.7272386697432802,0,null,null,7338.8224336200001,2697.5,7132.7,3148.2774924910527,1893.3,4538.0680927097028,2241.9406929100001,null,null,73.146186100125064,102.52552971206956,99.02878079806581,82.695540457170907,115.2226013469021,79.006215103559313,178.42977724168071,null,null,1.7245639645924167,1.9155764196082015,1.9785515652989802,3.8840043134435702,2.0332755574637527,2.1367493252361709,-4.5027791927119962E-2,null,null,2.0300000000000002,3.78,2.89,4.07,3.1511898271855556,1.59,2.14,null,null,10.917802595785023,4.2037176130721363,10.110920412863596,13.031200575125814,11.239635954553693,9.5441295546558731,3.8008997661081882,null,null,10.27,6.11,6.06,8.5500000000000007,8.8135420345241116,6.11,6.07,null,null,5.25,"n.a.",4.5,7,"n.a.",6.25,"n.a.",null,null,18.675937949737719,7.0339911733140914,10.286092499283539,13.393094543110928,22.748009145778546,14.300843755879233,10.228862725009581,null,null,972.78184377499565,446.88083333333333,861.2833333333333,335.68636640853407,426.70066528083339,801.94166666666672,1226.9944818333333,3845.2747087976968,5072.2691906310292,null,null,1489.3766956983329,892.2700000000001,1489.791666666667,771.80269728644146,603.07499999999993,1430.4583333333337,2058.8183471666657,6676.7743929847757,8735.5927401514418,null,null,-2831.4996841870793,-3663.3235495204112,null,null,950.81597858999521,489.41000000000031,948.6,361.85023782248754,462.4,864.5,1409.091942,4077.5762164124826,5486.6681584124854,null,null,1399.3977681800038,934.57000000000062,1620.3,792.97155042683426,619.50000000000023,1520.8000000000002,2191.3331039999994,6887.5393186068468,9078.8724226068443,null,null,-2809.9631021943587,-3592.204264194359]
[null,null,"A",5.485747062491857,1.9932029025443203,3.6997885835095161,6.335877862595428,6.7292712327953934,3.1279785113941596,2.0791415157612425,null,null,3.2283978588228504,0.80458485411737335,4.412521428169434,1.7078410382561335,4.050396029897767,6.4628154473110389,4.7986926162531622,null,null,73.307745772971543,90.972415187875512,60.933063870119057,75.154052569014013,96.734516450207792,98.887842834020176,88.342678370815023,null,null,8.3197710015542121,0,-1.208350408477818,2.8824291328873706,5.0450771464176727,2.6502242152466398,0,null,null,7342.8691060199999,2567.3000000000002,7248.1,3153.0439987387831,2018.6,4249.4965935608752,2458.3312767800003,null,null,72.746918649949279,101.77948584173733,98.096372322605291,83.498866388261007,118.94837465577169,76.484728394753589,191.58180734447603,null,null,1.5303043135788073,1.6342237031700275,1.6974108053007111,4.0570710696338761,2.4753059049991029,2.0867484456393885,0.23968088116621777,null,null,1.9950000000000001,3.66,2.9,4.08,3.259807114781601,1.25,2.3238057016331295,null,null,10.223421872453855,3.7422073126801134,9.6819979612640132,13.357788944723611,11.807719486553735,9.8828869097630641,3.9095729303547877,null,null,9.7899999999999991,5.81,6.06,8.59,8.937041737786096,5.88,6.07,null,null,5.25,"n.a.",4.5,7,"n.a.",6.25,"n.a.",null,null,18.91234955752925,6.8640168248656819,8.3244703010580743,13.542185943796348,22.724680010827527,13.9890171952622,11.102064261542388,null,null,973.15959110582924,443.07499999999999,867.08333333333337,336.99825188762412,427.52553499500004,805.98333333333323,1217.3039364166668,3853.8250446551206,5071.1289810717863,null,null,1481.8615655233334,880.7791666666667,1496.0833333333337,775.58095279830195,601.32499999999993,1435.6499999999999,2045.4064366666653,6671.280018321635,8716.6864549883012,null,null,-2817.4549736665163,-3645.5574739165154,null,null,955.58525429999463,435.7199999999998,874,302.95518771565958,446.8,842.8,1160.9966349999997,3857.8604420156553,5018.8570770156512,null,null,1435.2008952900021,767.76000000000022,1462.6999999999998,812.39019750839088,623.9000000000002,1486.5,2056.5807309999905,6588.4510927983938,8645.0318237983884,null,null,-2730.5906507827422,-3626.1747467827336]
[null,null,"S",5.2030039865729458,1.696313955620754,3.4519104084321537,6.1263318112633049,6.4946284249925217,2.8283176683625086,2.3458445040212177,null,null,3.4856238660096772,0.39142207508799054,4.412036508737847,1.6576063258908615,4.0092126702157485,6.8085816793153509,4.8217642938769645,null,null,73.475560204808289,91.147589165765737,60.286515225874204,75.544213918925536,97.118343773585764,99.129903759262447,88.119675864820522,null,null,7.904128485764085,0,-2.7918580057184124,3.1156706459651695,4.7992831161460252,2.4336461435328394,0,null,null,7195.0737996799999,3026.5,7149.2,3028.3087496503927,2001.9,4023.3482828687684,3393.0334561599998,null,null,71.098251798859152,102.43189877907541,96.370820502866295,82.205914054414038,120.46892847759236,75.373227874928801,272.85669528352116,null,null,1.8507038198980987,2.216094130375986,1.9604177279673911,4.1965722481176178,1.8973781389538968,2.8024209643605857,-0.50165283063914934,null,null,1.9950000000000001,3.95,2.91,4.07,3.1332034575731758,1.1200000000000001,1.832423678025253,null,null,10.899875078558203,4.5072292850058657,9.9351375445746246,13.741799928289725,11.072734102998506,9.6001593291404586,3.6485658153243978,null,null,9.98,6.28,6.04,8.6999999999999993,8.6048569535009278,6.2,6.08,null,null,5.25,"n.a.",4.5,7,"n.a.",6.25,"n.a.",null,null,18.363441277265569,7.4671974961522336,7.9394048259235239,13.327309509104124,21.880076677301563,13.584334016463263,11.852208644893135,null,null,968.16115743582884,443.7949999999999,879.72500000000002,336.5738594669661,430.4531097558334,815,1195.8912709166666,3873.7081266586283,5069.5993975752945,null,null,1473.7290117908333,880.31916666666666,1501.8000000000002,779.77788766146466,601.54166666666652,1439.4416666666668,2063.7909170833314,6676.6093994522989,8740.4003165356316,null,null,-2802.9012727936702,-3670.8009189603358,null,null,914.48691967999366,435.23,883.49999999999989,284.86404253592264,435.1,838.7,1377.4266849999999,3791.880962215917,5169.3076472159155,null,null,1403.0300525999992,843.15999999999985,1542.4,783.62106174625478,563.00000000000023,1420.9,2456.3445379999989,6556.1111143462476,9012.4556523462525,null,null,-2764.2301521303343,-3843.1480051303297]
[null,null,"O",5.7025699088052768,1.8914700211183566,3.6373220875065901,6.3093880653743692,6.6820460918601778,2.8840341939383505,2.1037483266398893,null,null,3.7666239242035928,0.17336804685122109,4.5334193450940532,1.7202543749642141,4.0112392172422862,7.249926535546841,4.9497690107794972,null,null,73.445934236115193,90.869442623978529,59.411655939831867,75.578223561252074,97.157060274028254,99.310803534763025,87.988761264638498,null,null,8.0718428823876742,0,-4.0140914205450784,3.6901158352918073,4.7365639839323164,3.2159098942010944,0,null,null,7081.9497149600002,2902.3,7097.5,3018.38467049055,2042.1,4214.4045314446339,3416.7129762899995,null,null,69.160187865646989,100.56211251466955,95.225415763414716,83.246838429204644,122.59127385256951,74.256989443886923,264.21301258489774,null,null,1.4166449240417038,2.0693881229161013,1.7876551373346889,3.9701215588130259,1.0499921270427357,3.9811481326059561,9.4268501340609295E-2,null,null,2.0049999999999999,4,2.88,4.07,1.6764860763201166,1.47,2.2000000000000002,null,null,10.385206434115542,4.012632242948543,9.7384587995930811,13.687043260636409,8.9532797952461962,10.308660511959713,3.8943248788866129,null,null,9.77,5.98,6.01,8.73,9.1931244131397474,6.38,6.08,null,null,5.25,"n.a.",4.5,7,"n.a.",6.25,"n.a.",null,null,18.657382714563163,6.1754974081871694,7.80548995407917,11.65081502951546,19.675782213652294,15.714664485400176,12.409416808922646,null,null,964.15950445166175,441.67499999999995,889.40833333333342,339.15580486887416,430.09362180583344,818.36666666666667,1191.3496108333334,3882.858931126369,5074.2085419597015,null,null,1456.0698582624993,878.39583333333337,1499.3250000000005,779.03927281914582,607.22499999999991,1438.3666666666668,2066.731110499999,6658.4216310816455,8725.1527415816454,null,null,-2775.5626999552769,-3650.9441996219425,null,null,968.31495752999399,427.10999999999967,883.30000000000007,300.30237671422998,438.1,870.3,1540.3114459999999,3887.4273342442248,5427.7387802442245,null,null,1398.1084236600004,892,1575.2,788.80492197267995,705.50000000000023,1578,2449.4931860000079,6937.6133456326861,9387.1065316326858,null,null,-3050.1860113884577,-3959.3677513884686]
[null,null,"N",5.8861964796024635,1.2844036697247758,3.3761917257062879,6.4063684609552602,7.6707930200482384,2.6751812219537525,1.6391973244147207,null,null,3.9469528652007395,1.4072801370940882E-2,4.691071717908506,1.9256436516636035,4.0189732301803192,7.5721274087443762,5.1731071546082825,null,null,72.467358772709687,90.845430201804945,58.794377599832686,75.133683796417344,95.581380185639901,99.411829635939995,87.854857079442596,null,null,7.6594192866525042,0,-3.5265544781100342,3.913497445993293,4.7609481965252307,3.6798473893690682,0,null,null,7252.1965410499997,2766.3,7053.5,3066.9136443693001,1999.9,4208.1044533984232,3929.1359555600002,null,null,68.420754326800733,99.526204465673132,95.275108695118305,83.941997023633391,120.52416540746822,72.018701868038917,298.53350137229751,null,null,1.2407693958963035,2.740398550724632,2.0447728234199181,3.8377698610616404,0.89294637744071947,4.7478063540090689,0.57143571660789294,null,null,1.99,4.0599999999999996,2.91,4.03,1.4779276643903798,1.51,2.2200000000000002,null,null,10.023783905055216,4.5768115942028924,9.9866401556815294,13.451856074100471,9.2056576024198637,11.42907043200537,4.3691831424160181,null,null,9.8699999999999992,5.92,6.02,8.7200000000000006,8.8734313551955513,7.02,6.08,null,null,5.25,"n.a.",4,7,"n.a.",6.25,"n.a.",null,null,18.191490178279125,5.351480200029135,8.2248070651267611,11.781050769067036,20.967918216604264,16.456437494943433,31.137047482721659,null,null,949.76055213916152,443.56333333333333,892.42500000000007,337.36793866457577,428.8801495008334,816.52500000000009,1166.542095,3868.521973637904,5035.0640686379029,null,null,1440.0730863341653,873.5383333333333,1508.708333333333,775.23611185568723,611.70833333333337,1438.5916666666665,2055.744708249998,6647.8558648565186,8703.6005731065161,null,null,-2779.3338912186168,-3668.5365044686137,null,null,819.0983610599942,426.26000000000022,839.19999999999993,267.39973012098972,389.29999999999995,733.7,1071.5564400000001,3474.9580911809826,4546.5145311809829,null,null,1323.1088257199947,869.10999999999876,1556.1,761.37066970864726,662.79999999999984,1418.2000000000003,1879.3949029999876,6590.6894954286399,8470.0843984286184,null,null,-3115.7314042476573,-3923.5698672476428]
[null,null,"D",5.1271852691126307,0.47715177096714623,2.9473317056156221,5.8201058201058107,6.4796923391486985,1.5819791935345229,1.007019726376557,null,null,3.9909611347767604,-2.7464420474373492E-2,4.7873765040603864,2.2379856391658217,3.9769216401620797,7.7360630961770944,5.4658385093167841,null,null,71.927389848505086,91.072768492843366,58.566256385960855,75.31771303631416,95.296769677992387,99.813894469226696,87.668889325301166,null,null,7.2544773441386061,0,-3.0209670408671845,4.279801850197841,4.9051835323080777,3.6116459582378662,0,null,null,7211.4158651300004,2661.2,7333.4,3516.4834622255066,2153.1999999999998,4650.4486369269598,3969.8091757400002,null,null,67.562552295822115,99.133863870117182,93.108592957703152,85.486224566856862,117.84863909039451,69.917130498146236,295.60101374910232,null,null,1.9717209450450133,3.5956913242009172,2.4407318312722381,4.4319500000000094,1.7307145351728779,6.8595048666948761,1.1711861975812008,null,null,1.9750000000000001,4.09,2.93,4.07,2.3846510474335099,1.53,2.19,null,null,11.303274886004825,5.5662885844748899,10.386542436049471,14.014250000000008,10.574557395533191,12.460892086330931,5.0224036778492396,null,null,9.85,6.07,5.98,8.65,8.7287822913177706,7.04,6.08,null,null,5.25,"n.a.",4,7,"n.a.",6.25,"n.a.",null,null,17.71606774605068,4.5892834973283669,8.5450118224117855,11.461296669765119,20.597010544536044,19.50387132761271,38.904317287157419,null,null,941.67862765582856,441.79416666666657,900.29166666666686,339.38115969107946,432.97499999999997,824.9083333333333,1165.4758718333335,3881.0289540135745,5046.5048258469078,null,null,1432.3780676283329,876.18249999999989,1523.4833333333333,775.90356321831939,614.10833333333335,1439.4250000000002,2064.5656675833316,6661.480797513319,8726.0464650966514,null,null,-2780.4518434997444,-3679.5416392497427,null,null,791.27212179999879,405.07999999999902,920.1,362.70234138366413,393.9,831.3,846.0172500000001,3704.354463183663,4550.3717131836675,null,null,1301.7278230500024,821.31999999999971,1513.2,770.70106496615517,631.49999999999966,1398.1,1858.2538030000048,6436.5488880161574,8294.8026910161716,null,null,-2732.1944248324944,-3744.4309778324969]
[null,2015,"E",4.3859265741741709,-0.74879006483426835,2.3223449595546679,3.8346984363365428,5.4492658379268457,1.1580030880082419,0.86970705725709541,null,null,3.9465266437690167,0.2703540523519572,4.7082607893751982,2.6346898078082512,3.4563970138750739,7.6347126811424664,5.3688810546803296,null,null,71.85706923142169,91.319705475708133,58.637468464718182,75.717395869408307,95.708582940875672,100.24830121922479,87.200592385836643,null,null,7.0665265655937812,0,-2.6285482272908345,4.7493919385957337,4.8934605174955434,3.7292540558699918,0,null,null,7323.6687877000004,2672.6,7656,3407.6230623486281,2157.6,4369.8,3957.7766050899995,null,null,68.803001206105165,98.506806943465648,101.11261165666197,84.995025802949101,118.42733582466975,73.67405473804196,312.54423122365955,null,null,2.6958360366962064,4.915597571073703,3.0566686501190055,6.3324704195052162,2.9146797647675968,5.7948918850165274,1.289081708153285,null,null,1.95,4.13,2.94,4.0999999999999996,3.28,1.79,2.17,null,null,11.873318398930811,6.6586493697672351,11.021693301598093,16.319498027967033,11.37982498802463,12.823500381582289,5.3041622691596553,null,null,9.5500000000000007,5.86,5.96,8.68,9.08,7.17,6.22,null,null,5.25,"n.a.",4,7,"n.a.",6.25,"n.a.",null,null,16.69701817561662,5.1274362055206302,8.7780408035045276,10.884113643042426,20.518058031041299,18.393849061736823,14.077215555055588,null,null,931.39071035166182,443.54083333333324,903.94166666666672,338.51159638696373,429.51560779874995,821.41666666666663,1180.1143381666668,3868.3170812040421,5048.4314193707096,null,null,1406.2399529108327,872.9649999999998,1507.7333333333336,780.25084998680552,609.16666666666674,1435.125,2076.4710520833319,6611.4808028976395,8687.9518549809709,null,null,-2743.163721693596,-3639.5204356102618,null,null,731.46667235999394,425.66000000000008,879.2,330.6652403506111,392.38729358500007,691.7,1097.180801,3451.0792062956052,4548.2600072956047,null,null,1204.1686299800003,857.23,1358.9,732.4309836058801,544.79999999999995,1258.0999999999999,2110.5492549999999,5955.6296135858811,8066.178868585881,null,null,-2504.550407290275,-3517.9188612902749]
[null,null,"F",3.5270960067377164,-1.0572366022602959,2.4392361111111129,3.6558345642540533,5.5092102810453287,1.0172679090442791,-0.44933774834437845,null,null,3.9858516343631822,0.77814570410740402,4.4443365505695338,3.0277036541773867,3.3296684493823356,7.3671183534817652,5.1843698403962559,null,null,72.204101026653603,91.826140834601304,58.72080524689251,76.150926954456821,95.688979956759113,101.12665223622402,88.269588739797712,null,null,2.3346705320820891,0,-1.5148600371581615,5.3298154821087271,4.5262487548145725,3.8580529864342705,0,null,null,7255.1285616499999,2666.7,7625.4,3477.8266616433898,2169.4,4575.7,4053.25072907,null,null,68.418103079881348,99.5268304808056,97.485743074460871,82.879555371271636,114.07312522972923,77.510893599556766,310.08063107940063,null,null,3.4994741792298507,5.2325571112748674,2.9390729599186489,6.4677164232276541,3.4106070133024069,6.3184564610307206,2.6612959556683586,null,null,1.92,4.12,2.9,4.08,3.32043,1.57,2.2000000000000002,null,null,12.762749563073193,7.1629661016949111,10.777866282518429,16.578097613110092,10.708897045445708,14.326988237285269,6.6994408650791879,null,null,9.91,6.03,5.94,8.6,8.9786240588999995,5.14,6.22,null,null,4.75,"n.a.",3.5,6.75,"n.a.",6.25,"n.a.",null,null,12.931486659970215,5.1661374272873095,9.1821265877380718,11.243903785476238,20.051230403604549,17.670310205801918,14.027674707531013,null,null,915.38878358749525,448.96083333333326,910.55833333333351,342.87362405160678,428.48122252874992,818.33333333333337,1172.24486475,3864.5961301678522,5036.8409949178522,null,null,1390.3407266833337,870.64333333333309,1502.5249999999999,788.70994940279843,614.30000000000007,1437.4833333333333,2061.6044126666657,6604.0023427527994,8665.6067554194651,null,null,-2739.4062125849468,-3628.7657605016116,null,null,776.59821796999529,480.41000000000008,885.1,380.64433197571651,388.58737675999998,749.9,840.85873900000013,3661.2399267057126,4502.0986657057128,null,null,1193.4670340700052,806.98,1293.8,800.36900591390008,605.70000000000005,1215.4000000000001,1599.9201800000001,5915.7160399839049,7515.6362199839059,null,null,-2254.4761132781932,-3013.5375542781926]
[null,null,"M",3.0463139363443643,-0.80916446949722765,2.425082279577353,3.7444933920705017,5.9242221154388943,0.63780933752870139,0,null,null,4.1958858180246414,1.1445902311524183,4.1194633072924809,3.3283859069385509,3.2959027857529035,7.1801663423493185,4.9449141685882836,null,null,72.05084995658207,91.915457872935036,58.822243921579755,76.300020572429702,96.176344298427253,101.3735475586512,88.014520439534735,null,null,-2.6949220835413348,0,-1.3501499446617302,5.3337170243737706,4.5088243564176915,3.5755371655471748,0,null,null,8341.9202438100001,2617.5,7770.3,3583.9203274996353,2222.1999999999998,4797.8,4741.4129657599997,null,null,77.704080610033898,97.369081829087961,99.138944402531536,82.341474316300094,115.13209560214779,79.411575902641701,368.67019090437026,null,null,3.9338486829909822,5.130680109990835,2.953297818366301,6.0779193205944626,2.4129868650223774,6.460981916511745,2.12,null,null,1.74,4.28,2.92,4.05,3.96,1.56,2.12,null,null,12.852168658683672,7.0562612282309818,10.685778792491108,16.314607218683634,9.3391830865296708,15.016414568193341,6.16,null,null,9.64,6.19,5.94,8.5,8.0500000000000007,6.34,6.16,null,null,4.5,"n.a.",3.5,6.5,"n.a.",6.25,"n.a.",null,null,12.058696882003694,4.211575700329151,9.7802627751741866,11.136680269175603,19.978461103056677,16.428780290331812,13.835193778527977,null,null,901.65993863666188,453.33999999999986,907.95000000000016,349.78940505727115,428.31691562624997,815.42500000000007,1185.2906303333334,3856.4812593201823,5041.7718896535171,null,null,1362.7557677400005,868.55583333333323,1507.2416666666668,795.9207733015146,618.6,1436,2082.9344223333319,6589.0740410415156,8672.0084633748465,null,null,-2732.5927817213319,-3630.2365737213299,null,null,884.72415648999436,529.22999999999979,1005,441.78937206797332,470.92831717000001,824.19999999999993,1126.1502929999999,4155.8718457279647,5282.0221387279689,null,null,1293.3770398300014,869.99000000000024,1532.1,877.41005905269992,622.20000000000005,1461.3,2001.6181469999999,6656.3770988827,8657.9952458826992,null,null,-2500.5052531547335,-3375.973107154734]
[null,null,"A",1.8050494960438515,-0.32885722115648069,2.5760719225449424,3.5831809872029297,5.6685386031132463,-4.2340587687354693E-2,0,null,null,4.5120555354323448,1.3684292118979804,3.8978472765843755,3.5294554025912834,3.4012558688520453,7.2130055876373707,4.7162590662244401,null,null,72.08573123670422,92.093869114362178,59.354099314228911,76.631137820932736,96.487477392807122,101.9280988991564,87.764903237561981,null,null,-2.5835600832160268,0,-0.57808474525879705,5.6121095492427298,4.846601729930569,3.6798886569241422,0,null,null,8444.1724583100004,2739.6,7721.3,3649.1838767120794,2264.4,4623.8,4231.2672330100004,null,null,78.118463224647769,98.429390852275091,102.44089972858576,84.636655173603501,119.82029020613498,77.790152227284921,329.60079964358448,null,null,5.2010686406688595,4.6942947484190256,2.7822551828754514,6.3203494528768047,3.1017418219135195,6.9352770247373741,2.19,null,null,1.7349999999999999,4.3499999999999996,2.93,4.09,3.19,1.33,2.19,null,null,14.002203794920893,6.3999037668408016,10.444860947244237,16.505400635368861,11.535625042838035,15.718996103015924,6.22,null,null,9.48,6.05,5.93,8.52,8.8699999999999992,6.79,6.22,null,null,4,"n.a.",3.5,6.5,"n.a.",5.75,"n.a.",null,null,12.056158189717259,3.4435486229064338,9.7132518642700774,10.910652658718734,19.432255953703393,16.096374841323268,13.320524239285092,null,null,887.28054768999516,453.6749999999999,905.86666666666667,353.00349379529763,426.45670497588327,819.45833333333337,1160.2945385,3845.7407464611765,5006.0352849611763,null,null,1347.512769547501,859.98166666666646,1499.675,797.75746751435815,617.05833333333339,1418.7083333333333,2040.5149770833323,6540.6935703951931,8581.2085474785254,null,null,-2694.9528239340161,-3575.1732625173481,null,null,815.17193661999522,428.04999999999995,914.59999999999991,400.96906485631712,395.87747219559998,839.2,1035.15975,3793.8684736719133,4829.0282236719104,null,null,1308.1451822500019,819.88999999999987,1430.5,793.38119479741533,552.79999999999995,1332.6,1747.280538,6237.3163770474202,7984.5969150474193,null,null,-2443.4479033755069,-3155.5686913755071]
[null,null,"M",0.97250322826712299,-0.35545023696682515,2.5530446782818772,3.4921789741724352,5.2210601157111061,0.22860045720091104,0.35085190039319236,null,null,4.8427489829686383,1.5407617580743334,3.9186113049554621,3.7030061231596245,3.6492724679755186,7.3547582607079542,4.540184071309505,null,null,72.770462151684285,92.377031848159731,59.32745299321406,76.688078833362837,96.946202906543164,102.29990972427078,87.785702989494808,null,null,-3.4472465296413595,0,-0.77215478311306174,5.3633576958517493,4.7758024600819589,3.6759460285792924,0,null,null,8309.7627848400007,2798.2,7649.8,3754.532509567844,2340.5,4925.9654378229834,4143.3153343599997,null,null,76.304912098592609,101.25635023363648,97.987587610573243,88.713528243128394,121.24863455208626,78.385439146867171,315.28332358909262,null,null,5.8704068753576095,4.6720570749108203,2.8638402018502873,6.2495746924428737,3.1616020873344888,5.8979168778509923,1.8327179737669983,null,null,1.635,4.3,3,4.0599999999999996,3.63,1.7,2.19,null,null,14.744109827679445,6.4584066587395963,10.391651808242214,17.158611599297,11.75508303341266,14.248826659908774,5.8286980018989656,null,null,9.39,6.08,5.92,8.57,8.49,7.18,6.2,null,null,3.75,"n.a.",3.5,6.5,"n.a.",5.25,"n.a.",null,null,11.971831771473251,3.3893603511183867,9.9093286823153548,10.454985662112804,18.83540023820278,17.192363549562661,12.864878066929819,null,null,873.1065198074956,454.42083333333329,910.14166666666654,349.95090461803733,423.73795372421665,813.4,1146.7640900833333,3824.7578781497491,4971.5219682330826,null,null,1322.9926869350013,852.44833333333315,1489.3416666666665,795.17777963534593,619.31666666666661,1409.2583333333332,2013.7485544999993,6488.5354665703462,8502.2840210703471,null,null,-2663.777588420598,-3530.7620528372631,null,null,884.11918360999812,499.20000000000027,997.8,375.76892987287624,409.97498497999999,818.8,944.64807999999994,3985.6630984628737,4930.3111784628745,null,null,1257.4437708800001,882.72000000000025,1544.2000000000003,841.22400730744403,664.5,1461.1,1665.8076890000002,6651.1877781874427,8316.9954671874439,null,null,-2665.5246797245709,-3386.6842887245693]
[null,null,"J",1.0205076632081596,-0.82614616432138965,2.3850377487989025,3.6218761318362906,3.8222189581524764,0.61796326081436048,0,null,null,5.0838877602700583,1.7691794263241367,4.1785814404545611,3.9324546226420281,4.056110854734821,7.6284415004513555,4.4340471477415839,null,null,73.093556754424142,92.776990212957315,59.068494528112559,76.480684220785122,97.787284035549177,102.36269042217884,88.00809068716859,null,null,-2.7703807407262753,0,-2.0760681852590306,4.8029608255845266,4.573504364222317,3.3446104104256595,0,null,null,8270.9554906800004,2773.4,7717.7,3872.492136512335,2240.3000000000002,4923.9753367940812,4344.7100744299996,null,null,74.862004719832569,100.3662677565313,97.955110481408255,86.947330530246376,120.9037243308001,78.658493115873895,331.66118811947547,null,null,5.7211079913200047,5.1587651043573892,3.032632813809284,5.9718315274379599,4.1885195672343354,5.4781835773178491,2.13,null,null,1.55,4.29,2.99,4,3.21,1.32,2.13,null,null,14.798472787953008,7.1149258513365181,10.51419473772415,16.654903879762319,12.296771525047921,12.802919400975934,6.18,null,null,9.4700000000000006,6.23,5.93,8.5500000000000007,8.39,5.74,6.18,null,null,3.5,"n.a.",3.25,6.5,"n.a.",5,"n.a.",null,null,13.277985493728405,2.8970260345655197,10.232592662504004,10.018574725837425,19.511477965660461,16.079326713944852,13.147884218789629,null,null,861.80213313582851,454.96749999999992,911.73333333333323,348.73110304593973,421.59960134088334,812.73333333333323,1120.1775725833334,3811.5670041893186,4931.7445767726504,null,null,1313.9695340500014,855.06916666666655,1489.9499999999998,795.45895443951815,621.27499999999998,1419.9000000000003,1990.0453114166658,6495.6226551561876,8485.6679665728516,null,null,-2684.0556509668691,-3553.9233898002003,null,null,849.9718376199944,478.24999999999955,910.4,374.86238113482904,435.83977140000002,847.7,992.73280999999997,3897.0239901548266,4889.7568001548207,null,null,1250.4589630900059,896.09999999999945,1449.9999999999998,790.83273626791777,659.1,1487.8000000000002,1863.9676629999999,6534.2916993579202,8398.2593623579232,null,null,-2637.2677092031008,-3508.5025622031026]
[null,null,"J",-0.3217001270018694,-1.4534621287352167,2.3202251983280719,3.1991373112868566,3.0784704090957198,0.4976383265856979,0.97465886939571167,null,null,5.2206828849631535,2.2029924422203142,4.5287508517482387,4.1435769673659184,4.6188983503504355,7.8797745746064791,4.3364886586890474,null,null,73.229000500914722,92.851208602367919,58.769965621298383,76.200010726410937,98.732435680048951,102.40616115035826,87.929035789509399,null,null,-0.87861624296239704,0,-1.6606407021902168,4.551346181284857,4.8197744183154629,3.3777550799752456,0,null,null,8349.2951866599997,2783.6,7584.5,3795.8601752106215,2266.4,4736.3999999999996,4015.1678141299999,null,null,74.489506736513349,98.923202672447488,95.286277206793159,87.499333982752759,118.1033003320489,78.505651779746913,305.43682196253422,null,null,7.0945232172017842,5.7368449981678271,3.0881233847436449,6.2702681992337039,5.7975471230822153,5.6144221569450234,1.1937065637065636,null,null,1.5699999999999998,4.2,2.97,4.01,3.1,1.47,2.1800000000000002,null,null,16.344279695539964,7.9084078417002557,10.554877865777408,17.045552072448608,14.380123994658691,13.186739404112462,5.2046138996139,null,null,9.4700000000000006,6.34,5.93,8.6,8.6999999999999993,7.09,6.23,null,null,3,"n.a.",3.25,6.25,"n.a.",5,"n.a.",null,null,13.269189166411422,3.4857918235244645,9.5409063367297264,10.329499961005828,20.734270259444809,15.501000713633983,13.002543342728345,null,null,848.61282133416182,459.27916666666653,913.11666666666667,344.34872026264389,420.45317006505002,814.2833333333333,1091.1438900833334,3800.0938783285224,4891.2377684118555,null,null,1317.2128800150003,855.79833333333283,1491.6499999999999,798.9031783554201,622.60833333333335,1419.7916666666667,1978.1309818333327,6505.9643917037538,8484.0953735370858,null,null,-2705.8705133752314,-3592.8576051252298,null,null,792.54423696999515,541.15000000000009,965.19999999999993,309.26164442293742,448.64282469,883.10000000000014,1060.687752,3939.8987060829313,5000.5864580829366,null,null,1438.3179197599895,943.32000000000062,1640.7,834.30223741765587,635.5,1519.5,2048.3611490000003,7011.6401571776514,9060.0013061776481,null,null,-3071.7414510947128,-4059.4148480947115]
[null,null,"A",-0.73828535247684435,-1.9992795389049109,1.9622833843017349,3.086862885857848,2.7469084290107375,0.42849941186355667,0.41997371879107026,null,null,5.1866842623792166,2.6133418091755947,4.7728816841493353,4.2871957769060538,5.1986037006158119,7.782475529339294,4.21037709101219,null,null,73.144766416033391,93.009401465001986,58.651458632240008,76.279423699394499,99.001719336760857,102.11522678123686,88.144831516361762,null,null,-1.1517985038032916,0,-2.0467250858577337,4.4267902063658857,4.9502897022629186,3.5042501189849471,0,null,null,8190.3024225500003,2827.3,7572.6,3743.6341744258889,2281.1999999999998,4884,4454.2348364999998,null,null,73.031993275050823,98.527197346773718,97.548251547874685,87.006340542526161,122.24291556191167,78.203554780631094,337.44335898795111,null,null,7.342493909517315,6.2135048704282427,3.4500174956260921,6.1143941504178416,5.893176736805426,6.6231205555090726,1.6630419421195546,null,null,1.63,4.09,2.99,3.95,3.41,1.41,2.09,null,null,16.792260149510486,8.0910420878515108,10.913561609597599,17.231232590529263,15.831834107781754,14.041333556429342,5.775769566969724,null,null,9.49,5.93,5.92,8.57,8.32,6.92,6.22,null,null,3,"n.a.",3.25,6.25,"n.a.",5,"n.a.",null,null,12.603983293749987,3.2451821955328919,11.152523179917594,10.363492187425805,20.187694790074783,17.568226435785238,12.684926235070337,null,null,831.41866992666212,457.85416666666657,913.47499999999991,340.97385064046188,417.54524979855006,808.14166666666654,1067.1306165833334,3769.408603699007,4836.5392202823414,null,null,1304.7068460491666,858.99249999999972,1490.9666666666669,790.68555090288316,622.75,1412.2416666666668,1961.0816888333336,6480.3432302853835,8441.4249191187137,null,null,-2710.9346265863765,-3604.8856988363755,null,null,749.25543740999797,418.61999999999989,878.30000000000007,262.45675224947496,411.90495680200002,769.09999999999991,872.83735300000001,3489.6371464614713,4362.4744994614739,null,null,1285.1284877000001,806.09000000000015,1454.5,713.77866807794851,625.59999999999991,1395.9,1851.9892150000001,6280.9971557779427,8132.9863707779368,null,null,-2791.3600093164787,-3770.5118713164811]
[null,null,"S",-0.86419234054089833,-2.2540798845911101,1.8763796909492221,2.7608461814270511,2.7703850726177008,0.3941299790356384,-0.3937786509493364,null,null,4.9390346244591798,2.928278953437478,4.7500790994712538,4.3535558376300507,5.650160816668846,7.3244822457471699,4.0407947951468088,null,null,73.330490552730438,93.215816746202364,58.891511593536563,76.206463779344048,99.227567923418533,101.99321333943078,88.436080854303668,null,null,-1.0241656933505086,0,-0.44502627990466309,3.6991538322783248,5.0403115182667264,3.3312893320697978,0,null,null,8051.9971898699996,2791.8,7536.1,3672.5778311813669,2320.5,4720.2,4062.3142484099999,null,null,70.359329536643799,98.470042611096247,97.847257024983961,85.242838078869525,125.56366276835651,78.929606058065616,305.30526109029284,null,null,7.4788237626603626,6.6949903145466285,3.5470639219935047,6.2661549197487618,6.3175271398425696,6.669583194119614,2.5939932425455492,null,null,1.6949999999999998,4.29,3.01,3.9,3.42,1.6,2.19,null,null,16.789284047309401,8.9354930356978155,11.046348862405207,17.46691905094206,15.271012409454363,14.02061059137989,6.6399252590585007,null,null,9.4600000000000009,6.48,5.93,8.5500000000000007,8.11,6,6.22,null,null,3,"n.a.",3.25,6.25,"n.a.",5,"n.a.",null,null,12.999306736163053,3.2418392926455875,11.753423583547162,10.138723727026422,23.893225825321053,20.036367592556314,12.407627974956515,null,null,816.82576017582903,458.45749999999998,907.73333333333346,337.68495576615959,414.01466945154999,806.60833333333323,1048.3221635833333,3741.324552060205,4789.6467156435392,null,null,1290.8221605975007,861.04583333333323,1490.4666666666669,788.09699850864524,627.125,1416.1166666666666,1936.5842287500006,6473.6733257728147,8410.2575545228137,null,null,-2732.3487737126075,-3620.6108388792745,null,null,739.37200266999548,442.47000000000025,814.6,245.39730404429517,392.733035836,820.3,1151.7252490000001,3454.8723425502903,4606.5975915502931,null,null,1236.4138271800052,867.80000000000018,1536.3999999999999,752.55843301540017,615.5,1467.4,2162.3750170000003,6476.0722601954185,8638.447277195417,null,null,-3021.1999176451136,-4031.8496856451129]
[null,null,"O",-0.85644267495964543,-0.18924033522573105,2.2295693455408694,2.5384340364676521,3.0303933883283189,1.2253462022660457,-0.38834951456311234,null,null,4.6733086797011634,3.1443027966264587,4.3876568474465643,4.3661928455510637,5.7981602347201839,6.7268233362813694,3.8708775852431465,null,null,73.445219101405456,91.197024217335198,58.495809616500992,76.592561876941971,99.323900812281309,101.46877626860883,88.482468835873945,null,null,-1.026231970845136,0,0.48227653406028015,3.7376564768159608,5.1488665624626,3.2488048982051736,0,null,null,7909.9839506099997,2689.1,7564.4,3581.5278330797746,2349.6999999999998,4621.3132722143491,3904.0534608100002,null,null,69.023524972719898,94.619886045159006,97.775116178283554,87.420115230058727,126.93019465507354,78.541471735727399,285.30970433785706,null,null,7.1678310388453195,4.4476570964246962,3.1893224977195378,6.3796234309623339,6.3833446617973877,6.3172456678550759,2.417738791423008,null,null,1.7949999999999999,4.25,2.98,3.86,3.19,2.21,2.02,null,null,16.739809547632539,6.4013542795232876,10.652916493904959,17.302357043235695,14.404959100033444,12.906504435784766,6.5738791423002008,null,null,9.5399999999999991,6.2,5.91,8.6999999999999993,8.5500000000000007,5.87,6.16,null,null,2.25,"n.a.",3,6.25,"n.a.",5,"n.a.",null,null,12.259401981045471,3.6999330699529542,12.087738621359833,9.5896360826378313,24.631302521017929,19.389373922632135,11.992599280711879,null,null,803.92479219832887,462.37499999999994,902.875,334.80157746786125,413.86884262904999,799.51666666666677,1023.0752578333335,3717.3618789619068,4740.4371367952408,null,null,1287.835189924167,860.57499999999982,1488.2250000000001,786.36320152870758,624.19166666666672,1406.0166666666667,1907.1251086666662,6453.2067247862078,8360.3318334528758,null,null,-2735.8448458243015,-3619.8946966576332,null,null,813.50334179999447,474.11999999999989,825,265.70183713465093,436.35007813000004,785.19999999999993,1237.348577,3599.8752570646466,4837.2238340646436,null,null,1362.2647755799967,886.34999999999854,1548.3,767.99935821342888,670.3,1456.8,2095.983745,6692.0141337934183,8787.9978787934233,null,null,-3092.138876728779,-3950.7740447287797]
[null,null,"N",-1.203773680354179,0.26268115942028264,2.5129029528724924,2.1018881368008673,1.9860749754835074,1.5380736258194641,0,null,null,4.4888154297280538,2.9873456293070575,3.7758052820689705,4.2638375948887646,5.5983082631573398,6.2393276519933556,3.7367908787541713,null,null,73.142963996194979,91.062087423850741,57.811377058093122,76.693927221526025,99.06969747132031,101.31630393627147,88.295710625009363,null,null,-0.78058792497471963,0,0.29567820530694811,3.7017864663268569,5.1803441903773892,2.9665973854873071,0,null,null,7895.1279943199997,2714.4,7421.7,3543.4519604293264,2328.6999999999998,4875.8326268282563,3603.1309214500002,null,null,67.900323711987767,95.527212093356539,97.57769355080282,85.947248947707749,125.58313735891318,78.783908521375324,254.64428777005352,null,null,7.2915474089537113,3.9768723461920761,2.9138742159128435,7.1478715980460441,6.8963844128067571,6.984499627514281,2.04,null,null,1.855,4.25,2.98,3.9,3.43,1.64,2.04,null,null,16.664375041094384,6.0414490920589117,10.347084846483988,17.656981856245622,14.837553346512596,13.996647628507576,6.1,null,null,9.74,6.32,5.91,8.51,8.6,5.94,6.1,null,null,2.25,"n.a.",3,6.25,"n.a.",5,"n.a.",null,null,11.559122575520586,4.0234191604699099,11.858566848849094,9.5772788759358463,23.165517232638532,17.894825689489615,12.369504045443591,null,null,803.1661574983292,460.91583333333324,898.47499999999991,334.07336990891679,412.26127555404997,800.69166666666661,1017.5868812500001,3709.5833029612963,4727.1701842112961,null,null,1292.2420072083339,859.18083333333334,1480.3916666666667,784.80800315262616,630.55833333333339,1407.1666666666667,1891.1332082500005,6454.3475103609599,8345.4807186109629,null,null,-2744.7642073996644,-3618.3105343996644,null,null,809.99474465999822,408.75,786.4,258.66123941365538,370.0091951,747.8,1005.695921,3381.6151791736556,4387.311100173647,null,null,1375.9906331299981,852.38000000000102,1462.1000000000001,742.70828919566816,739.2,1432,1687.4920979999999,6604.3789223256608,8291.8710203256633,null,null,-3222.7637431520125,-3904.559920152009]
[null,null,"D",-0.80758133900739537,1.0136986301369859,3.0662375063527056,2.3571428571428652,3.0522004919302783,2.3444773592890362,0.25954604670277082,null,null,4.4634400678120443,2.5845871645991108,3.0962093483646358,3.9902641188724703,5.1814492905193683,5.9291804082279995,3.6201759855885771,null,null,72.869849722570052,90.816556172832932,57.167949036528654,76.933758106435548,98.030674946344305,101.12193070166587,88.07984346747034,null,null,-0.2356701057315925,0,-0.12315707982340751,3.7961426664371767,5.2408433510006649,2.9347469049803414,0,null,null,7834.0881326400004,2670.2,7751.2,3822.2649997223657,2401.1999999999998,5195.054100524937,3896.1141070399995,null,null,67.059877439721845,94.548065769365323,94.657959325991925,87.398820775023395,119.70372807580168,76.938277147091355,256.18303271039099,null,null,6.8125986141164763,3.2830214266341202,2.2934401709401668,6.4312630844382337,5.218171360665691,5.8874917300694696,1.8356894937863686,null,null,1.885,4.33,2.98,3.95,3.38,1.38,2.1,null,null,16.400024879527027,5.2134526715486853,9.69644641683103,17.256106071179335,13.939545556725903,14.007128680119088,5.8452827529932359,null,null,9.61,6.28,5.91,8.32,10.4,6.19,6.12,null,null,2.25,"n.a.",3,6.25,"n.a.",5,"n.a.",null,null,11.974506538780805,4.5035009389866598,11.741019128034402,9.4791371905555089,23.59842699712118,14.817842982799112,11.347416905052254,null,null,803.70322583749612,459.08666666666659,889.56666666666661,329.92671436931442,409.64514451738336,786.81666666666661,1023.3885624999999,3675.6570964091929,4699.0456589091928,null,null,1290.0730219541672,857.78249999999991,1470.075,785.35728008840499,628.95833333333337,1408.8749999999998,1875.7976124166669,6441.018135949239,8316.815748365907,null,null,-2765.3610395400451,-3617.770089456712,null,null,797.71694187000003,383.1299999999992,813.19999999999993,312.94247490843611,362.50642756000002,664.8,915.63742499999989,3297.2399845584223,4212.8774095584304,null,null,1275.7,804.53999999999905,1389.4,777.29238819550039,612.29999999999995,1418.6,1674.2266529999999,6276.5963950755104,7950.8230480755155,null,null,-2979.3564105170663,-3737.9456385170706]
[null,2016,"E",-0.172700167950878,1.8216947281258662,4.37776266575995,3.0835424883470863,3.191793097632492,2.5269227507843546,0.29325513196480663,null,null,4.5977728464394154,2.2383593152442205,2.5603381605574556,3.6733346824511988,4.7034379685264449,5.9543023320431443,4.34600773707872,null,null,72.773244109508425,90.917367420769423,56.999978939246233,77.38599890300938,98.989986841208534,101.490084929004,88.13945873544138,null,null,-0.26929508052452106,0,8.8641671288882382E-2,3.9281957314064089,5.2841192468076876,2.3910144099607953,0,null,null,7786.8334580000001,2788.3,7680.4,3737.2183544755526,2351.8000000000002,5637.939475887707,3806.0830365599995,null,null,67.663062410310687,97.058348486915918,97.294785672873616,88.262895877801526,118.80350245759277,83.359723661614098,242.69706475062924,null,null,6.1332923741820089,2.3946814854974212,1.0751689877025774,5.9043930434782519,5.996483055606471,4.6164237862873305,1.7017543859649149,null,null,2.9331135399999999,4.26,2.95,3.94,3.25,1.65,2,null,null,15.830038671322944,4.3294361615613957,8.3372522192360883,16.420135652173908,15.995188743785734,12.448512943511714,5.7598538011695934,null,null,9.68,6.23,5.94,8.3800000000000008,8.8699999999999992,6.81,6.07,null,null,1.75,"n.a.",3,6.25,"n.a.",5,"n.a.",null,null,11.910244898431976,4.6768395839986043,11.348238137245549,9.8897684470909084,22.583773193591085,17.883311252565726,11.300782488327087,null,null,804.22258594082962,457.83333333333326,885.77500000000009,329.39525245620536,407.87120338530002,781.1,988.52802933333339,3663.1093868006678,4651.6374161340009,null,null,1291.0012362850009,851.68833333333339,1463.05,778.2604887125309,630.11813517250005,1398.3083333333334,1816.6452306666667,6412.3235274100325,8228.9687580767004,null,null,-2749.2141406093633,-3577.3313419426972,null,null,737.69899359999806,410.62,833.7,324.28769739330204,371.1,623.09999999999991,678.85440300000005,3300.5066909932998,3979.3610939932996,null,null,1215.3072019500044,784.10000000000014,1274.5999999999999,647.26948709539215,558.71762207000006,1131.3,1400.7206740000001,5611.2943111153972,7012.0149851153974,null,null,-2310.7876201220961,-3032.653891122096]
[null,null,"F",-3.2337181058415321E-2,1.6672807663964648,4.2708245063977559,2.921268257926608,3.4037852986557207,1.743251248201745,1.1822660098522195,null,null,4.5551936299204909,2.0646085308104563,2.2942118105642706,3.2822541160327621,4.4038540065594587,6.2403683309475078,4.3358448444258428,null,null,72.895075936015985,91.239527992579113,57.037554480226035,77.529788302727979,98.614361516940875,102.45572137275001,88.126111359536011,null,null,-9.2530045935107913E-2,0,0.26140740488257735,3.7291043545787996,5.4913315783649903,2.0418424628146421,0,null,null,7784.1073550000001,2740.1,7636,3775.0887417362956,2315.13,5065.1244855519062,3578.4801332400002,null,null,66.481469159834887,97.177452674711773,96.438745441925988,87.982659207650954,114.08762107074031,78.594292287887285,226.39144267049446,null,null,5.7341914569320798,2.5305282232490693,1.1788297440065083,5.7993181031498846,6.5178600404706755,5.3927397488147708,0.87736124634858514,null,null,3.0647932500000001,4.24,2.95,3.91,3.82,1.69,2.0699999999999998,null,null,15.377309769560512,4.5665814985956299,8.438770418529062,16.35107303565248,13.965234605123817,13.835560176328704,4.8800389483933753,null,null,9.67,6.31,5.94,8.35,7.82,6.01,6.12,null,null,1.75,"n.a.",3,6.25,"n.a.",5,"n.a.",null,null,11.996380040430488,4.3100876546931399,11.160108428929227,10.304538167991995,22.27745390254201,18.55973594840663,10.853095309305449,null,null,812.34701445916289,452.55666666666662,882.20833333333337,327.24494926270171,409.60558865529998,785.81666666666672,979.18988725000008,3666.6912307288308,4645.8811179788308,null,null,1290.7427763775004,847.51166666666677,1460.9833333333333,766.73939155898631,629.27679114083332,1402.6333333333332,1805.5514471666668,6397.7842929839871,8203.3357401506546,null,null,-2731.0930622551555,-3557.4546221718224,null,null,874.09136018999402,417.09000000000003,842.30000000000007,354.84069365367316,409.4,806.5,728.80103399999996,3704.2220538436682,4433.0230878436678,null,null,1190.3655151800001,756.8599999999999,1269,662.1158400713648,595.60387162000006,1267.2999999999997,1466.794778,5741.245226871365,7208.0400048713645,null,null,-2037.0231730276982,-2775.0169170276986]
[null,null,"M",-1.0860925928487777,1.1182401466544445,4.2617960426179531,2.4769992922859161,3.6579044731442725,1.5886428933581169,0.58593749999999445,null,null,4.3495889175843274,2.1789861040026577,2.255744558775659,2.9962733116699267,4.4097667041026334,6.619280108920071,4.1643415178571415,null,null,73.700325771986513,91.673935691213686,57.560116422510482,77.808146480776287,98.571460604153984,103.02422000671351,88.247799157955725,null,null,0.32307450469961324,0,1.1622438255386238,3.6191416831946612,5.3412644991944234,2.3700757779330495,0,null,null,7811.9661759999999,2807.3,7586.1,3825.1130705644573,2394.5,5134.0711943492624,4699.0868548400003,null,null,67.362700721068052,98.460642749167889,96.106674588550689,85.715528448975675,119.20628844150671,76.601861936329215,293.82672584836001,null,null,6.860605116847462,3.1564630166787535,1.1780000000000073,6.1994406077348083,5.9531377998429313,5.6909482615205489,1.5052427184466075,null,null,3.3883974100000001,4.3099999999999996,2.93,3.85,3.35,1.87,2.1,null,null,16.717661880227432,4.9464467005076154,8.4865255474452628,16.757907458563533,11.816840131562628,13.664280485776082,5.2731650485436941,null,null,9.82,6.12,5.97,8.33,7.95,5.67,5.89,null,null,1.75,"n.a.",3,5.75,"n.a.",5,"n.a.",null,null,12.297744471992299,4.5120868784322088,10.444046086403347,9.5173379638472824,22.413415233720578,18.608193753472801,10.62798109255656,null,null,811.47882009332989,447.73916666666656,876.68333333333328,319.90104044782225,404.81156222446663,785.86666666666667,963.26785291666658,3643.3926011172844,4606.6604540339513,null,null,1287.769098766667,840.38333333333321,1448.9916666666666,753.60322797995298,631.37626426583336,1403.5083333333332,1788.4069420833337,6365.5289249191201,8153.9358670024549,null,null,-2722.1363238018348,-3547.2754129685018,null,null,874.30582409999647,471.41999999999985,938.69999999999993,353.66246628941906,413.4,824.8,935.08588100000009,3876.2882903894151,4811.374171389416,null,null,1257.6929084999997,784.44999999999982,1388.2,719.77609610429965,647.39367749999997,1471.8000000000002,1795.884086,6269.312682104297,8065.1967681042952,null,null,-2393.0243917148828,-3253.822596714881]
[null,null,"A",-0.91805692132097294,0.86151590138392242,4.0873082757458361,2.4355806565478209,3.5963791107405827,1.7536428329379812,0.58309037900874083,null,null,4.1493572179763909,2.4841540850998003,2.3376691065250927,2.8070202217457787,4.6855010602989724,6.9456402827922652,4.6221850962375042,null,null,74.080900679991785,92.334550000207742,57.842121206640861,77.891796177515687,99.017520744426676,103.72758204881882,88.237848900437655,null,null,0.69141677721473671,0,0.3072354401216032,2.9623080808911944,5.129999724725633,2.397955987506831,0,null,null,7898.7532970000002,2804.3,7675.3,3899.5999396380557,2435.5,5015.4147240342054,4491.66916855,null,null,67.96310848389308,97.927641170606009,97.182208374588001,86.899856491430128,120.66240092444293,76.537075795545505,320.48777060381815,null,null,6.5279875629657527,3.4388577919127692,1.3380034005343626,6.515723638869753,4.6770125045920459,5.2836999417200969,1.5280000000000058,null,null,3.2568826099999999,4.33,2.92,3.8,3.27,2.56,2.12,null,null,15.95452857516945,5.3622871422080882,8.6876026232693651,16.795354927636122,13.576841876044025,14.000832570144043,5.2562608695652226,null,null,9.81,6.27,5.97,8.33,8.01,5.43,5.87,null,null,1.75,"n.a.",3,5.75,"n.a.",5,"n.a.",null,null,12.243287827190507,4.9990551845708886,9.6205024588773114,9.1332581893116114,22.622316882683123,19.223334708062122,10.292258349446183,null,null,820.84047646666329,454.87916666666661,876.65000000000009,318.73349332233403,409.18843954149997,785.37499999999989,944.7212459166667,3662.5785876821628,4607.2998335988304,null,null,1293.2233257750001,844.36583333333328,1450.0083333333332,748.68477013985091,638.85127898583335,1411.8083333333332,1782.3828809166671,6386.8388754740181,8169.2217563906861,null,null,-2724.2602877918539,-3561.9219227918543,null,null,927.51181309999686,513.73,914.19999999999993,386.95849935045851,448.4,833.3,812.60046599999998,4024.100312450455,4836.7007784504549,null,null,1373.5959063499995,867.68000000000029,1442.6999999999998,734.35970071618988,642.50017663999995,1432.2,1674.991804,6493.0357837061892,8168.0275877061904,null,null,-2468.9354712557333,-3331.3268092557337]
[null,null,"M",-0.43272307180821673,0.73172962590322621,4.3566021867115161,2.3550087873462173,3.6513019423440927,1.7148166920087864,0.2901353965183725,null,null,3.891763721864884,2.8426673930010438,2.39898620999708,2.6973745842170422,5.0743695678280716,7.0832478569486668,4.3430037087102802,null,null,74.43956733242068,92.64077179578743,57.172866262639801,77.999618686193173,99.382555724845986,103.98604589612331,88.426549788192972,null,null,0.82329468476595391,0,-0.44805720101250307,3.0550479332694902,5.183996254650963,2.3480524122831556,0,null,null,7760.4476640000003,2840.4,8549.2000000000007,3892.589118566304,2441.4,5011.0678018557619,5021.5927543999996,null,null,67.034211186976918,103.53013560173339,105.28060620819579,91.92504833199861,126.31202685787271,75.380001902674564,350.54168404890009,null,null,5.8580723022231433,3.6118414600926205,1.0764990328820179,6.1403846153846198,5.1826750604538931,4.4193987210364574,1.7647444551591156,null,null,3.11314906,4.37,2.88,3.79,3.1,1.67,2.06,null,null,14.776665110987294,5.6370226096431528,8.426297549967769,16.799364697802201,13.767773285359235,12.717108213603519,5.6634329797492802,null,null,9.5500000000000007,6.41,5.98,8.06,8.17,5.0199999999999996,5.97,null,null,1.75,"n.a.",3,5.75,"n.a.",5,"n.a.",null,null,12.230434864104867,5.3653602288718183,8.7988874531036423,9.6720181409224679,23.334681245786214,16.232109884652601,10.423968063468436,null,null,828.9287615891634,454.21666666666653,869.9,317.986307390668,410.44885745983339,782.36666666666679,965.28606016666674,3660.7592714579973,4626.045331624664,null,null,1302.7293300916656,839.83749999999998,1440,739.53827990695675,635.17466605250002,1411.8916666666667,1792.6231995833339,6369.0684432911221,8161.6916428744562,null,null,-2708.3091718331248,-3535.6463112497913,null,null,981.17860507999853,491.25000000000023,916.8,366.80269869288384,425.1,782.7,1191.425851,3963.831303772884,5155.257154772884,null,null,1371.5158226799886,828.38000000000011,1424.1,731.46612451271517,620.38064480000003,1462.1,1788.6915129999998,6437.9425919927053,8226.6341049927032,null,null,-2474.1112882198213,-3071.3769502198229]
[null,null,"J",-0.87839427000000125,0.91541559868180156,4.4327132562426614,2.4466969591052079,3.5641154287860957,1.9098098603398923,9.6618357487917222E-2,null,null,3.6813461732634232,3.1470754818464481,2.3657292317133338,2.709056807962297,5.3280392892235415,6.8836749266458055,3.9769790123031195,null,null,75.5259189162757,92.852295322060002,57.06656525915772,78.208333512512397,100.20951095934531,103.82901354820255,88.807390316658299,null,null,1.4087370013568035,0,-0.10298404795440373,3.7264107425517579,5.0814316284438066,2.3488929452877052,0,null,null,7787.4259480000001,2970.08,8696.4,3955.6458092543835,2382.1999999999998,5301.0212852378345,4770.54989002,null,null,68.72626109259491,99.720153168715584,106.79361906071185,90.58843803446517,126.022275832064,78.787287560026158,324.22250605679881,null,null,6.1827027769236294,3.532249637155298,0.98368290138811509,5.9477789150460589,4.9757908061748601,4.7396714273920617,2.0547349016576852,null,null,3.1144005199999998,4.4800000000000004,2.84,3.73,3.03,2.2400000000000002,2.1533385102583149,null,null,15.262458833857718,5.6132002902757625,8.3377003931637734,16.538652337086322,13.478566052219199,12.108932551803852,5.8876930501930573,null,null,9.77,6.58,5.98,8.3800000000000008,8.17,5.18,5.99,null,null,1.75,"n.a.",3,5.5,"n.a.",5,"n.a.",null,null,12.131325169193774,5.3417264456903979,8.7904226725698855,9.4736608567739466,23.515469848430648,16.956286155232149,10.516036606610403,null,null,831.56442050583018,452.90916666666652,868.83333333333337,316.78251526769128,407.72887650983336,784.52500000000009,965.88300041666673,3659.2553239683534,4625.1383243850205,null,null,1314.6546131758307,837.22833333333335,1442.1083333333336,736.9084424111802,633.12553822416669,1410.05,1789.0043524166667,6373.9722610511781,8162.9766134678457,null,null,-2714.7169370828233,-3537.8382890828238,null,null,881.59974461999673,462.55999999999995,897.60000000000014,360.41687565910883,403.20000000000005,873.59999999999991,999.89609299999995,3878.9766202791034,4878.8727132791028,null,null,1393.5623600999884,864.78999999999905,1475.3,759.27468631859995,634.51046606,1465.7,1820.5414970000002,6593.1375124785882,8413.6790094785902,null,null,-2714.160892199483,-3534.8062961994838]
[null,null,"J",0.47552711099003658,0.87944301942104075,4.6185910796164995,2.4033437826541193,4.114878333974656,1.8548048678136748,9.6525096525104756E-2,null,null,3.5659933644238486,3.2255431065058673,2.2877803824948315,2.8713828287550083,5.286365508023259,6.4073894653690244,4.440412201718658,null,null,75.367516713175874,92.803066946377442,56.249362669750681,78.177273194220888,100.38827709178945,103.60057410834607,88.577831494360836,null,null,2.5614020305851786,0,-0.68986029837605378,4.198671081276486,4.9925544479373727,2.1974720726333996,0,null,null,7960.5164569999997,3019.77,8861,3845.271290093568,2383.8000000000002,5333.600631131173,4216.3467571700003,null,null,69.735893469870035,103.66572055909602,104.17503963750221,90.908139273731805,121.73599660270365,76.688338064451813,281.65423714249533,null,null,4.7021130665889288,3.5493425354159021,0.80426328791139434,5.9340408163265401,5.1086465759954915,5.4049439683586087,1.971571841851486,null,null,3.1656468100000001,4.46,2.87,3.75,3.57,1.85,2.0699999999999998,null,null,13.729186883261566,5.5715583000363162,8.1165391664674527,16.431744897959195,12.046644162514236,12.522919413315762,5.8678109932497495,null,null,9.89,6.5,5.99,8.43,8.35,6.03,5.97,null,null,1.75,"n.a.",3,5.5,"n.a.",5,"n.a.",null,null,11.583843245403136,5.5381489790039762,8.1364561924818002,9.6974517119586157,21.838007749425081,16.360435014070383,7.9867247620767801,null,null,833.22847053749717,448.74166666666662,858.7833333333333,315.34740590534778,404.80864111900001,781.77499999999998,954.17664424999987,3639.5965292468445,4593.7731734968438,null,null,1300.1308058499983,827.14583333333337,1414.675,728.94621576179941,632.93094940333333,1400.9916666666668,1766.7739977499998,6304.7174715884639,8071.4914693384662,null,null,-2665.1209423416203,-3477.7182958416201,null,null,812.51283734999879,491.13999999999987,844.59999999999991,292.04033207481513,413.6,850.10000000000014,920.21147799999994,3703.9931694248153,4624.2046474248164,null,null,1264.032231850003,822.33000000000084,1311.4999999999998,738.75551762508485,633.16493414999991,1410.7999999999997,1781.5968929999999,6180.5826836250853,7962.1795766250871,null,null,-2476.5895142002755,-3337.9749292002743]
[null,null,"A",0.59586674170462017,0.94651718434111476,4.7404815462800949,2.506963788300832,3.7504713807529804,1.472433698653062,0.48449612403100772,null,null,3.5893861363988635,3.1630975603489686,2.2612248126392793,3.1475808330186696,5.0448235387873606,5.942292026959012,4.2273160114270185,null,null,75.75091796733355,93.116609963563093,55.739649971495773,78.312327770934942,101.31244581668653,103.79307279033321,88.652184060409311,null,null,3.0844440480212776,0,-1.5063255979707835,4.1320584511637417,5.0554276431424929,2.0550014438989725,0,null,null,8007.6259069999996,3050.86,8919.2999999999993,3776.6892372229431,2405.1,5131.3255729987877,4330.4001211100003,null,null,70.63051576081412,104.74602643799788,106.09211314551894,88.89905841332299,123.47622793899752,74.481682733863437,288.39965592214151,null,null,4.3780459386106489,3.4706326809285382,0.69650095450206961,5.8269565217391346,4.7511769830786319,6.0386511666254385,1.6873288331726135,null,null,3.4059610600000001,4.45,2.84,3.75,4.33,2.02,2.1800000000000002,null,null,13.50366938352918,5.3429112426035488,7.9811724467069691,16.22625,12.81129654601056,12.956786214856949,5.4889103182256509,null,null,9.94,6.34,5.97,8.3800000000000008,8.18,7.03,6,null,null,1.75,"n.a.",3,5.5,"n.a.",5,"n.a.",null,null,11.699321846372568,5.5876810877295124,7.4626387632189539,8.8964008875957123,22.318886308054964,14.283533363334012,9.2935808171376699,null,null,837.88542906749683,450.46499999999986,859.63333333333333,319.92029475558013,407.86656138550006,791.8416666666667,962.50015733333328,3664.5242968935759,4627.0244542269093,null,null,1307.6705566558317,829.11916666666673,1419.8333333333333,735.94462979874527,634.64665656500006,1416.5333333333335,1780.6143695833332,6343.6446769262429,8124.2590465095782,null,null,-2679.1203800326666,-3497.2345922826667,null,null,805.13893976999589,439.29999999999973,888.5,317.33141845226311,448.6,889.9,972.71951000000001,3788.7703582222566,4761.489868222252,null,null,1375.6054973699952,829.76999999999953,1516.4,797.75963652129997,646.18848593999996,1582.4,2018.0736769999999,6748.1236198312909,8766.1972968312912,null,null,-2959.3532616090342,-4004.7074286090356]
[null,null,"S",0.38575471872420264,1.0146665436767903,4.5587132261021743,2.8960223307745827,3.5228490136803452,1.353157367190114,1.1684518013631966,null,null,3.8200181644026698,3.0031813899062483,2.3932689340544195,3.5167351814703527,4.8079739930172547,5.5772585853330208,4.0494862087614987,null,null,76.515388627438213,93.630259708579018,55.909076416123554,78.629822065025735,102.36090610518956,104.31256367483788,88.694244249681645,null,null,3.2345890227459129,0,-2.1684818802284953,4.6364547213523144,5.2511711217672623,2.1625144939906762,0,null,null,7699.1623669999999,2979.43,9014.7999999999993,3706.3937006078863,2417.1999999999998,4938.5580471256781,4100.1830274599997,null,null,68.158936024871679,104.24410663203328,104.58897923210624,88.168551258689192,124.77100287125577,77.332252652090133,270.69471597254017,null,null,4.2976668286890849,3.4602237238608264,0.88111908177905429,5.4559715157680735,6.0412967049394428,5.6306510631283953,0.98998075072184499,null,null,3.5606965700000002,4.51,2.85,3.74,3.04,2.0099999999999998,2.17,null,null,13.691429944205209,5.2025449730618121,8.1880184919496255,15.650729060698563,13.259831763473224,13.141863881221676,4.7658614051973025,null,null,9.89,6.27,5.99,8.36,8.49,5,5.99,null,null,1.75,"n.a.",3,5.5,"n.a.",5,"n.a.",null,null,12.251632969940761,5.4830646166862618,6.4731928323540133,9.5376192107700764,19.239615368862715,12.062924875579117,8.9725716416110934,null,null,848.56720226416383,450.67083333333329,861.38333333333333,320.21694741843072,408.22214173250001,796.72499999999991,960.08295825000005,3682.6974697667611,4642.7804280167602,null,null,1314.2579081422846,822.92083333333312,1413.6333333333332,739.95558574822041,633.64020881499994,1421.7333333333333,1750.6745240833334,6346.0382032788375,8096.7127273621709,null,null,-2663.3407335120773,-3453.9322993454102,null,null,867.55328102999965,444.94000000000051,835.6,248.95713599850268,397,878.9,1122.7188599999999,3672.9504170285036,4795.6692770285081,null,null,1315.4620450174421,793.42000000000007,1461.9999999999998,800.68990440909977,603.42262700000003,1529.8000000000002,1803.096871,6504.794576426546,8307.8914474265475,null,null,-2831.8441593980424,-3512.2221703980395]
[null,null,"O",0.55180098827521751,-0.8757674250631986,4.7599303424827886,2.8242677824267663,3.3961025778788416,0.91203051156620052,1.3645224171540018,null,null,4.039945350432542,2.7911576011534347,2.7417941424789354,3.9570936768872418,4.7539488126175389,5.3482679045391066,4.2008610251580825,null,null,76.876917111498415,93.507907950669036,55.388722281051074,79.125045085335387,102.57218379252109,104.72255835894069,88.719434413287104,null,null,3.5558817172658195,0,-2.4012444033819138,4.5142452636535895,5.058813525022984,2.4715379563932141,0,null,null,7715.316143,2954.13,9063.2000000000007,3732.618613722248,2332.6,5450.2544242431322,3941.5233068399998,null,null,67.855403608305309,103.20050724625027,102.26249400013347,89.351963366313655,123.00939567947663,77.55257980344949,255.91515338072378,null,null,4.0757092080356188,5.3829091902723372,0.69689780733001316,5.519837232960338,6.078854604322248,6.3599646701174963,0.78476923076922511,null,null,3.3040258599999999,4.46,2.85,3.74,3.15,2.06,2.16,null,null,13.851764836463618,7.3299608343200644,7.9611256233673764,15.643906408952201,11.281189236258351,14.287661654753105,4.651999999999993,null,null,9.9700000000000006,6.39,6.01,8.42,7.95,6.29,6.08,null,null,1.75,"n.a.",3,5.5,"n.a.",5,"n.a.",null,null,12.362781787589538,5.7951004644006376,5.9676497113355431,9.2122935495182254,19.647657652296679,11.610170275434207,9.0785374290003329,null,null,851.91175380999766,447.98833333333329,851.7166666666667,319.90138994473091,405.3346352216667,803.43333333333339,946.25308499999994,3677.1981239947277,4623.4512089947266,null,null,1310.5441087997854,817.01249999999982,1401.3833333333332,737.73860502834248,631.28066265583323,1426.1916666666666,1746.0984532499999,6324.0478770572945,8070.1463303072933,null,null,-2646.8497530625659,-3446.6951213125653,null,null,853.63796034999746,441.92999999999938,709,261.91514745025268,401.7,865.69999999999993,1071.3900980000001,3533.8831078002477,4605.2732058002439,null,null,1317.6991834700036,815.44999999999982,1401.3,741.39558957489282,641.98544608999998,1510.3000000000002,2041.0708949999998,6428.130219134895,8469.2011141348921,null,null,-2894.2471113346437,-3863.927908334641]
[null,null,"N",0.56037234029009209,-0.82211581895383201,4.6715087487619646,3.0355896720167439,3.3063565881557109,0.87741081036338231,1.2670565302144361,null,null,4.1244626444677079,2.8968765152069094,3.2331092065205791,4.4086281047997495,4.9924578207451811,5.3082477765815197,4.1584291123546455,null,null,76.884677065320545,93.370964564445202,55.148333625852644,79.233266317094817,102.47774570315411,104.74910216384681,88.666691238768578,null,null,3.9453411719632756,0,-1.8119847770722313,4.6754317166622306,5.0816028794594548,2.5594811325957623,0,null,null,7583.0048699999998,3028.36,9003.6,3679.9548910651647,2296.1,5709.3339168861885,4146.9411949899995,null,null,64.424380479162167,103.67264972977451,105.96905138072084,87.809876410777093,122.70843659922288,80.223642450946016,256.95672039036259,null,null,4.0171168480164896,5.3359837857533208,0.78196183567260991,5.2160717913985817,5.5430418308140634,7.9230713054894535,0.9015206929740025,null,null,3.2359271600000001,4.47,2.86,3.63,3.49,2.39,2.1800000000000002,null,null,13.613342255123174,7.4634742211696086,8.0332187352152697,15.43584151710126,13.283814270410184,14.832447690161644,4.7625986525505173,null,null,9.7899999999999991,6.58,6,8.35,8.6199999999999992,6.74,6.09,null,null,1.75,"n.a.",3,5.5,"n.a.",5.5,"n.a.",null,null,12.897264885701487,5.5483739156772183,6.0260948660573632,9.7560538598383104,18.703604357627569,11.696356462873014,8.0382702238769976,null,null,861.01585181249766,450.10083333333318,857.33333333333337,324.0637743232852,405.35053562999997,812.44166666666661,943.26246524999988,3707.218006784115,4650.4804720341153,null,null,1319.2694454372847,818.13249999999982,1409.0999999999997,742.36272558065957,625.21605775749993,1440.5249999999999,1745.9876356666666,6354.5027293487774,8100.4903650154438,null,null,-2647.2847225646615,-3450.0098929813284,null,null,919.24392068999737,434.10000000000036,853.80000000000007,308.6098519563069,370.2,855.90000000000009,969.80848400000002,3741.853772646311,4711.662256646312,null,null,1480.6946727799905,865.81999999999971,1554.7,798.19773582347398,666.42474121999999,1603.9999999999998,1686.1622870000001,6969.8371498234628,8655.999436823462,null,null,-3227.9833771771591,-3944.3371801771646]
[null,null,"D",0.76519110290053316,-0.93119971069523655,4.2324128862590324,3.3147243545010467,3.1296532012614322,1.6953357591796205,1.4634146341463417,null,null,4.0113105380336282,3.1584625708961847,3.7062848829275152,4.838927816954449,5.4016418555342112,5.468041398939941,4.0854535120858442,null,null,76.349573901842035,93.571998729049511,55.160561714738186,79.984747637435945,102.04611107501998,104.06073572180829,88.610429403458966,null,null,3.4311838952807183,0,-1.4716797389061356,5.2288130433529458,5.1720265242132593,2.5238231475164485,0,null,null,7573.8,2922.99,9160.4,3887.6050145088475,2387.5,6046.699976951857,4502.1774745299999,null,null,65.431752834127167,101.17474561715942,100.23957162416191,81.977400691635239,122.32108072957088,80.01081823949751,275.42153380223914,null,null,3.6568271808630541,5.5428143821865312,1.1585523929669714,4.6995001688618707,6.5389174686972371,5.0490656257623838,0.71610576923076896,null,null,3.2935811799999999,4.5599999999999996,2.88,3.55,3.54,2.0699999999999998,2.19,null,null,13.382407902475862,7.390015513779888,8.4403563825593384,14.978770685579196,13.351207778746993,12.551867935268769,4.5697115384615374,null,null,9.82,6.39,5.93,8.18,7.64,6.98,6.1,null,null,1.75,"n.a.",3,5.5,"n.a.",5.5,"n.a.",null,null,12.149654232111873,5.0584468647588254,6.6840962486078404,11.727420063249427,17.512010337992635,11.407213499098457,8.5815479642203698,null,null,864.91980560166382,451.67916666666662,870.77499999999998,325.59544521185927,403.26666666666665,819.9666666666667,932.91222266666671,3736.2027508135229,4669.1149734801893,null,null,1328.6999549697844,818.8158333333331,1416.8999999999999,742.72923263123448,624.62623514416657,1449.8833333333332,1744.5847155833333,6381.6545894118508,8126.2393049951834,null,null,-2645.4518385983292,-3457.1243315149964,null,null,844.56438733999425,402.06999999999971,974.50000000000023,331.32252557132506,337.5,755.09999999999991,791.43451399999992,3645.0569129113137,4436.4914269113142,null,null,1388.8661143899972,812.73999999999796,1483,781.69047280240011,605.22212863999994,1530.9,1657.3916119999999,6602.4187158323912,8259.8103278323833,null,null,-2957.3618029210811,-3823.3189009210837]
[null,2017,"E",0.65571454315688038,-0.25300442757748359,3.827673263295047,3.4434782608695569,3.8815156361188228,2.3323132908775182,1.6569200779727127,null,null,3.7443321455187668,3.031768406214725,4.0029756373353091,5.1107632380035204,5.8112000545521427,5.6659277944860129,4.7962591850367451,null,null,76.677143428891341,93.426713703859335,55.282895640233235,80.547792105669103,102.47206612500642,104.25068723520192,88.870469749982163,null,null,3.4686020796032864,0,-1.7561971290336555,5.0437744599621999,4.9127955366307328,2.5519819705043769,0,null,null,7523.8,2903.89,9065.2000000000007,4445.9861856149864,2398.9,6707,4320.8750235799998,null,null,66.425655942158599,101.29999609296512,100.19886947647763,100.60671451113909,123.58945069165821,94.445259274215715,282.00464541856991,null,null,3.8689164092848558,4.7349841471147753,1.5625186289120812,4.8978648285137947,5.0627539735370517,3.6427269053584359,0.52439117929050505,null,null,3.2719320500000002,4.47,2.91,3.65,3.79,1.77,2.19,null,null,13.505726444388282,6.5495751426759679,8.8823397913561948,15.792703429724288,12.516018650310142,14.030452598399737,4.2837679769894512,null,null,9.84,6.28,6,8.43,7.87,6.94,6.0116666666666667,null,null,1.75,"n.a.",3,5.5,"n.a.",5.5,"n.a.",null,null,12.552297027231463,5.3623662092741053,6.1780908224726483,11.708501814766903,18.663532732878551,11.321829171175658,8.2779128203285488,null,null,870.68665473166402,452.97499999999997,874.55000000000007,331.28842354017934,406.89999999999992,824,937.85479633333341,3760.4000782718431,4698.2548746051762,null,null,1339.3102291372841,824.04999999999973,1429.9916666666666,747.80940352131518,626.92476663833327,1466.0083333333332,1764.7853749166663,6434.0943992969305,8198.8797742135976,null,null,-2673.6943210250893,-3500.6248996084232,null,null,806.90118316000007,426.17,879,392.60343733314249,414.70000000000005,671.5,738.16528700000003,3590.8746204931431,4329.0399074931429,null,null,1342.6304919600002,846.91,1431.7,708.23153777636014,586.29999999999995,1324.8,1643.1285859999998,6240.5720297363605,7883.7006157363603,null,null,-2649.6974092432174,-3554.6607082432174]
[null,null,"F",1.085465384105168,0.28993385883844625,3.9577407557903328,3.8421599169262799,3.6910327222805419,3.3435914497213641,1.8500486854917151,null,null,3.5923191542417459,2.7537980103041479,4.0312480119860306,5.310318964277652,6.0019132904318564,5.6639844116341855,5.6634682892581312,null,null,77.384511618550874,93.466636678431925,54.438945026508286,80.032702124390525,102.47909517046922,104.88803056429457,88.894378152238673,null,null,4.4512491086021555,0,-3.4227786000826295,4.337797454344221,4.8830684723851592,2.9774979468929654,0,null,null,7454.1,3510.89,9267.5,4508.2249684299941,2372.5,6299.1,4222.02254558,null,null,66.498184998381603,121.61061699837859,102.56628821147807,89.503656251236862,120.10964311875291,86.510814808614697,255.90067428885615,null,null,3.4767952074418229,4.1978950221338938,1.4354479362101278,4.504759999999993,5.6406459042062744,3.615520321931593,0.20613766730402358,null,null,3.4650554699999998,4.5,2.95,3.62,3.94,2.2400000000000002,2.06,null,null,13.112206156968433,6.1322865660854715,8.7461108505315792,15.319249999999993,13.317900810496269,11.937274849094571,4.3396653919694153,null,null,9.9,6.44,5.98,8.42,8.1300000000000008,5.82,6.27,null,null,1.75,"n.a.",3,5.5,"n.a.",5.5,"n.a.",null,null,13.288628839563966,5.9313727421131501,6.1751688690227402,9.8541488446404415,17.390242563248549,11.829734286162896,8.6213152908029667,null,null,871.49856134666425,455.83083333333326,882.85833333333346,336.90705540455326,410.0333333333333,821.76666666666677,958.9518519999998,3778.8947834178839,4737.8466354178836,null,null,1344.8442732639498,824.33916666666653,1436.9416666666668,754.48362281060975,624.72444400333325,1471.6833333333332,1773.6419804999998,6457.0165067445587,8230.6584872445583,null,null,-2678.1217233266752,-3492.811851826676,null,null,883.83423957000002,451.35999999999996,942,422.26427602616059,447,779.7,981.96570200000008,3926.1585155961593,4908.1242175961597,null,null,1256.7740446999896,760.33,1352.3999999999999,742.20647154290009,569.20000000000005,1335.4,1573.0740449999998,6016.3105162428892,7589.3845612428895,null,null,-2090.1520006467299,-2681.2603436467298]
[null,null,"M",1.5816604181210558,0.5438723712835466,3.9983779399837736,3.9364640883977819,3.1655557282095037,3.1442355681251049,1.4563106796116505,null,null,3.5883935550571811,2.6121622563421534,3.8429732021639378,5.4244659827203581,5.8180831527598826,5.4305328845961389,6.5927810888635889,null,null,77.718326310962908,93.348639344140835,54.016808647541872,79.583351323945109,102.66991308611894,105.61530743546152,89.051766845986421,null,null,4.6288895432810078,0,-4.672961520530567,3.8358611013782928,4.9564182065029012,3.279653156936857,0,null,null,7273.8,3136.38,9424.5,4480.3941721141564,2404.1,6456.4,3757.08828541,null,null,65.006597998694716,100.28345187792864,102.76811868983131,86.445024245278319,124.43636064152248,86.015874936279275,228.79233267044364,null,null,2.8729000587967795,3.9745113595383978,1.3861966778445043,3.9673621262458552,6.3750687931510486,2.778404838709676,0.63444976076555026,null,null,3.54703882,4.54,2.97,3.54,4.1100000000000003,2.11,2.1,null,null,12.323424848887202,5.6255319148936094,8.7324651017702628,15.166511627906985,11.787419271149922,12.289358064516128,4.764306220095694,null,null,9.89,6.2,5.98,8.36,8.0500000000000007,5.82,6.29,null,null,1.75,"n.a.",3,5.5,"n.a.",5.5,"n.a.",null,null,12.723655259126442,5.399506780663188,6.230662575921353,10.048236759155294,18.23098364465876,11.093472922634962,8.423458768856861,null,null,881.04120809833114,463.21833333333325,895.20833333333348,343.37676423487187,420.45833333333331,833.22499999999991,964.43337866666661,3836.5279723332028,4800.961350999869,null,null,1362.4855997322829,832.60583333333307,1454.8916666666667,762.27259766323459,626.18330421166672,1475.7333333333333,1786.5760871666664,6514.1723349405174,8300.7484221071809,null,null,-2677.6443626073146,-3499.7870711073151,null,null,988.81758511999999,560.07000000000016,1086.8999999999999,431.29897225324214,538.5,962.30000000000007,1000.864201,4567.8865573732428,5568.7507583732422,null,null,1469.3888261199968,883.65000000000032,1603.6,813.24379433579895,664.90000000000009,1520.4,1951.0933660000001,6955.1826204557947,8906.2759864557956,null,null,-2387.2960630825546,-3337.5252280825534]
[null,null,"A",1.6438548100293875,0.86324398000908931,4.0887377540280117,4.1006202618883654,3.3548896941638962,3.5134460078261585,0.96618357487922701,null,null,3.5791628580458172,2.5275136651025685,3.5363511840981166,5.5572098901988261,5.2934054243316018,4.9917066566806234,6.5271632456169559,null,null,78.128784958535746,93.55799003405798,53.892835790764693,79.42150558393493,102.76379320869201,105.80309211002533,89.315852831809494,null,null,4.8905507193855637,0,-5.1055114844195604,3.8604347436987352,4.9565455747047462,3.3121250125633126,0,null,null,7300.6,3256.02,9792.7000000000007,4440.4420675162419,2444.3000000000002,6316.5,3797.1627938300003,null,null,65.190337602843911,101.30355972797548,103.57412897941394,86.228945105611388,124.49684043751294,85.668890292996394,226.73573962664238,null,null,2.9083363627792322,3.4668288288288265,1.2789685749844453,4.0723866269447084,6.2818807349457355,3.107377945789433,1.1229665071770336,null,null,3.48208114,4.3600000000000003,2.97,3.65,3.88,1.6,2.1,null,null,12.34324024154647,5.5091981981981943,8.6380740510267611,14.994511751075791,14.812052702971187,11.009732968712301,5.3223923444976071,null,null,9.86,6.42,5.99,8.4700000000000006,8.2899999999999991,6.13,6.34,null,null,2.5,"n.a.",3,5.5,"n.a.",5.75,"n.a.",null,null,12.971705320361337,5.7564733684709379,6.2906006484853672,9.5478796180644476,19.849578871134167,10.089263224518884,8.6913598363513866,null,null,880.88199635583157,457.60499999999996,897.95000000000016,345.89262938911543,418.38333333333327,830.3416666666667,973.56182999999999,3831.0546257449464,4804.6164557449474,null,null,1348.3576153089502,829.07333333333293,1446.9083333333335,761.12546236819787,618.33328949166673,1472.925,1778.8343538333331,6476.7230338354811,8255.557387668814,null,null,-2645.6684080905347,-3450.940931923868,null,null,925.60127219000003,446.36999999999989,947.09999999999991,417.14888120138204,423.5,798.69999999999993,922.14188200000001,3958.420153391382,4880.5620353913837,null,null,1204.0600932700058,825.28999999999951,1346.8999999999999,720.59407717574993,548.29999999999995,1398.5,1582.0910039999999,6043.6441704457611,7625.7351744457592,null,null,-2085.2240170543728,-2745.1731390543737]
[null,null,"M",1.6711599497399903,0.96249886497775572,3.932946486137983,4.0521978021978065,2.9072008795424518,3.10605431442572,0.77145612343297698,null,null,3.5513550466052637,2.4859078107289938,3.2497749461640959,5.7275183957464106,4.6019853774367148,4.5161968556329679,7.0223226149348879,null,null,79.722658766268637,93.477948790489194,53.785329902312178,79.28077784993296,103.38313571259542,106.16861278917743,89.392193040712698,null,null,6.8829942588583322,0,-4.0245823645518994,3.8148737909884547,5.0795500863547716,3.3327876188293208,0,null,null,6832.9,3367.89,9916,4412.9522977873821,2501.1,6087.2,4573.9156307900003,null,null,61.971745547247927,107.82903417184244,107.39545028922142,87.754098600852416,130.63606781407998,86.21737619120762,274.77050770350326,null,null,2.8315208085391497,3.3948259735587709,1.4211600496277843,4.1112079207920749,5.7767629515751784,3.9027249295207325,1.3580669856459362,null,null,3.3898038700000002,4.3899999999999997,2.95,3.54,3.72,2.2799999999999998,2.14,null,null,12.273726449495399,5.4946155229786839,8.7624317617865923,14.89425742574257,14.507251640019687,11.167089810712838,5.5358373205741653,null,null,9.3800000000000008,6.51,5.99,8.44,8.19,5.97,6.35,null,null,4,"n.a.",3,5.5,"n.a.",5.75,"n.a.",null,null,12.553817061241258,5.7792225449945667,5.7952308775477634,10.11102726550963,19.460248583226083,11.976229907956881,8.4323679717247515,null,null,885.24054067999839,458.99916666666655,903.05000000000007,353.96037766418357,421.2833333333333,843.75833333333355,969.99499733333323,3866.2917516775142,4836.2867490108483,null,null,1358.3473298389508,836.48166666666646,1457.8916666666667,770.69350158764746,622.65156909166672,1476.1666666666667,1805.467686916666,6522.2324005182645,8327.7000874349287,null,null,-2655.9406488407499,-3491.4133384240831,null,null,1033.4811369700001,507.97999999999979,978,463.61567799370096,459.9,943.69999999999993,1148.6238589999998,4386.6768149636991,5535.3006739636985,null,null,1491.3923970399983,917.2800000000002,1555.9,846.28259514611079,672.2,1501,2108.29151,6984.054992186102,9092.3465021861011,null,null,-2597.3781772224065,-3557.0458282224081]
[null,null,"J",1.7743170392040011,0.92525399129173636,4.3649201636845048,3.6506311838962766,3.06106757003983,2.5509782877899805,0.67567567567567854,null,null,3.4614325054617625,2.3584587853958934,3.060941240635342,5.8363842541720725,4.0207091668799908,4.1896114303655851,5.1042391700639804,null,null,79.217294962882264,93.503878018942174,53.389137907644717,79.053429274708805,104.0340512518973,106.36903974973008,89.644850776056884,null,null,5.0329000240165085,0,-3.9297570035111007,3.0867393031945807,5.2747878027508825,3.3711833808639207,0,null,null,6812.6,3282.88,10793.9,4522.4190168291079,2521.6,6512.7857449028688,4337.6371392700003,null,null,61.267789064762056,105.92737433772803,112.25872668115838,88.11569946313719,132.6322195101616,93.608941854442449,250.72276883254472,null,null,3.8572432368018794,3.5221571094732971,0.99178903667256257,4.2444206714944093,6.2849621990578468,4.4846200289808378,1.4842953020134197,null,null,3.2026009200000001,4.4800000000000004,2.97,3.55,3.46,1.82,2.17,null,null,12.739641333875568,5.583088261729273,8.3218382409471836,15.185019749835423,14.681525286768133,10.335368700692317,5.6362416107382511,null,null,9.67,6.56,6,8.42,7.98,5.6,6.35,null,null,4.5,"n.a.",3,5.5,"n.a.",5.75,"n.a.",null,null,11.80300586813221,5.9178331908187554,5.423674761916164,10.130169843907799,17.842685530252389,12.204381557498213,8.1733224238083935,null,null,894.91594539499874,461.565,903.3416666666667,359.00591067787701,426.43333333333334,843.15000000000009,962.47588683333333,3888.4118560728753,4850.8877429062086,null,null,1358.9310719647849,837.16999999999973,1460.7833333333335,777.68526942187384,626.55903025333328,1474.5666666666666,1805.3282388333328,6535.6953716399912,8341.0236104733249,null,null,-2647.2835155671169,-3490.1358675671167,null,null,997.70460120000098,493.35000000000036,901.10000000000014,420.96327182343003,465,866.3,909.66676700000005,4144.4178730234344,5054.0846400234332,null,null,1400.5672656099996,873.05000000000018,1510,843.17590032931503,681.40000000000009,1446.5,1818.8681200000001,6754.6931659393158,8573.5612859393223,null,null,-2610.2752929158833,-3519.4766459158818]
[null,null,"J",1.1631081249349151,1.0170722847802309,5.2195394055303188,3.639455782312921,3.1288235822280464,2.5379037574159513,0.38572806171648166,null,null,3.2076704625842356,2.1562112902843449,2.9570095605507212,5.8379757739520199,3.7813530296077853,4.1621273981324585,5.0055726742280147,null,null,79.539858381720009,93.45616717530585,52.25071251961144,78.736235301831954,103.92953870696807,106.17218611793332,89.755112279446806,null,null,4.9499793130750174,0,-3.9205312342911496,2.6074363434010017,4.9531912196147294,3.298167684619651,0,null,null,6865.4,3323.66,11024.9,4472.8121381178662,2572,6248.7458037199667,3909.6115338700001,null,null,63.026444678724978,104.12788362549978,111.13590273592003,87.125828833093848,129.74927490291466,83.773793607274456,222.47815299021622,null,null,4.7318552818220505,3.3686659475009075,0.14299681914571574,4.4486380045946872,5.3716414229665483,3.2398714239794293,1.7276080691642737,null,null,3.0788937600000001,4.42,2.95,3.57,3.69,1.62,2.12,null,null,13.974355016461374,5.3485293060050427,7.4515252953650428,15.158844765342964,12.149458033715607,10.837062037929925,5.9513160422670595,null,null,9.6300000000000008,6.42,6.04,8.41,8.25,5.34,6.36,null,null,4.5,"n.a.",3,5.5,"n.a.",5.75,"n.a.",null,null,10.863297801081684,6.1640981322889088,5.2448250545585662,10.287112272270127,18.20912093683782,10.360419246699237,10.396929639907704,null,null,901.74499135666565,466.45416666666671,908.47500000000002,366.78220409742613,428.58333333333326,840.62499999999989,963.07587041666682,3912.664695454092,4875.7405658707585,null,null,1354.9262477839518,841.9991666666665,1477.9916666666668,781.42324381221795,626.98695240749998,1479.0083333333332,1809.9783749999999,6562.335610670335,8372.3139856703347,null,null,-2649.6709152162452,-3496.5734197995785,null,null,894.46138889000201,549.80999999999995,906.2,385.35585310940513,439.4,819.8,927.41128100000003,3995.0272419994071,4922.4385229994041,null,null,1215.9743416800029,880.27999999999975,1518,783.61121030921311,638.29999999999995,1464.1,1837.3985269999998,6500.2655519892141,8337.6640789892117,null,null,-2505.2383099898125,-3415.2255559898149]
[null,null,"A",0.90944212659281376,1.1379153390987711,4.7168310531339541,3.8383152173913082,3.4704581014840974,3.1824552724874264,0.67502410800386003,null,null,2.946584662048354,2.1137478204358704,2.8751024665296936,5.7255461524514457,3.8625234523281136,4.4687881907199465,5.2435801220347811,null,null,80.386540616026636,93.85413640338659,52.379234194068481,78.503293426540935,104.67473509103107,105.96766556001415,89.765190372159381,null,null,5.047805815875436,0,-3.4680366238288949,2.1116085759820318,4.8709454471570037,3.3405090320207256,0,null,null,6868.5,3262.97,11277.9,4470.4148977895729,2518.4,6279.1282342772065,3571.3758189099999,null,null,62.775593092606684,102.96070764917053,112.83118126912206,86.938338320046597,129.57379318287451,82.653808032321834,198.50845450805906,null,null,4.9951300563962198,3.2550450045004498,0.60464868970755203,4.2100883218841973,6.3299717497185393,2.9244746304434686,1.3955555555555528,null,null,3.01623361,4.43,2.95,3.5,3.42,1.84,2.08,null,null,13.725730299877586,5.3709675967596766,7.9673619445499382,14.957566241413147,12.178069519195974,9.9702461046743931,5.6369252873563189,null,null,9.39,6.57,6.03,8.36,7.92,5.78,6.35,null,null,4.5,"n.a.",3,5.5,"n.a.",5.25,"n.a.",null,null,10.714731445290315,5.4822008819452872,4.7731888380598608,10.496947308193505,17.967551796968607,10.374183581692753,8.122368683310599,null,null,909.26810702749947,469.74166666666662,908.63333333333333,368.62800536641083,427.29999999999995,839.30833333333328,954.17760550000014,3922.8794457272438,4877.0570512272443,null,null,1359.9144899272849,850.89666666666653,1484.9583333333333,785.72353040875942,629.6545785791667,1479.1000000000001,1797.1376067499998,6590.2475989152108,8387.3852056652086,null,null,-2667.3681531879679,-3510.3281544379679,null,null,895.41632782000102,478.75,890.40000000000009,339.48103368007844,433.2,874.10000000000014,865.94033100000001,3911.3473615000803,4777.2876925000819,null,null,1435.4644030899933,936.54000000000087,1599.9999999999998,849.36307567980009,678.19999999999993,1583.5,1863.9844579999999,7083.0674787697935,8947.0519367697852,null,null,-3171.7201172697132,-4169.7642442697143]
[null,null,"S",1.6412002688320344,1.5615012327641253,4.3599553642595357,3.6622583926754873,4.1228479442557164,3.7992417999011034,0.76997112608276908,null,null,2.8135215766482471,2.241252272407023,2.7364453037763705,5.4500862645133274,4.0856983611636668,5.0895922429956855,4.5123773633941866,null,null,80.78098467839115,94.249285814712152,53.163711130717502,78.954580421398916,105.40360684422113,106.17539822636758,89.981919872402315,null,null,4.9637135800056491,0,-2.9320395592215975,1.8168722189277169,4.8760778750159774,3.3452473182683256,0,null,null,6898.1,3320.04,11268.4,4516.842434066446,2492.9,6169.144841569394,3571.3758189099999,null,null,63.173052271464705,103.41724461777353,111.23655207106931,87.341399988178551,132.42813668508035,81.028453650831338,198.50841451299249,null,null,4.1408402498554331,2.8243957921237244,0.94868250210034832,4.3291952894995056,5.497694439841565,2.3706899563318786,1.5282617000955139,null,null,3.3526696999999999,4.43,2.96,3.38,4.24,1.65,2.31,null,null,12.906970496678408,4.7739534256428762,8.3269915221874182,15.094926398429829,8.7208434011504252,8.7387518856689166,5.5473161413562595,null,null,9.6300000000000008,6.41,6.04,8.32,7.42,5.86,6.36,null,null,4.5,"n.a.",3,5.5,"n.a.",5.25,"n.a.",null,null,9.183086615612023,5.4722573353432225,5.2859230382994227,9.9842419782303118,17.764304661113961,10.063119300118096,7.1067564670950656,null,null,914.45189929749949,472.11666666666662,908.76666666666677,374.0074061095101,427.43333333333339,831.14166666666654,928.50165941666683,3927.9176387403422,4856.4192981570086,null,null,1363.9600842408306,853.67666666666662,1485.1583333333331,791.53843657730749,629.6276929958334,1462.1166666666668,1792.6907245833333,6586.0778804806387,8378.7686050639713,null,null,-2658.160241740296,-3522.3493069069627,null,null,929.75878826999906,473.44000000000005,837.2,313.50994491569429,398.6,780.90000000000009,814.60750700000006,3733.4087331856863,4548.0162401856869,null,null,1364.0091767799913,826.77999999999975,1464.4000000000003,870.46877843167613,603.1,1326,1749.7342849999998,6454.7579552116804,8204.4922402116936,null,null,-2721.3492220259759,-3656.4760000259739]
[null,null,"O",2.3254316097570302,1.4300027324892914,4.2032771313227171,3.967446592065123,4.3733083811180258,3.48369074028429,0.48076923076923078,null,null,2.7699423911297862,2.4867978390163392,2.5216117405488401,5.0016583921635309,4.2971590670269491,5.8148530481007423,4.4252929214679906,null,null,79.644884132567569,94.071302502197923,53.115289819354011,78.953292492602799,105.02654544489265,106.35962569665158,90.097152864555724,null,null,3.8891653322705078,0,-2.0725755772753387,1.6666232711026865,4.7330316271886606,2.9990484348803577,0,null,null,6847.5,3332.08,11494.4,4521.7909723722523,2551.9,5821.8289709762084,3451.9862829700005,null,null,62.124047873877053,102.7671519409171,110.5630881242804,91.203760973212468,126.85641139901469,80.550955006448902,203.41585082909353,null,null,3.4933333131449258,2.9084069683908105,1.0812739288970008,4.1576027397260109,4.9404356100000033,2.1803525208415961,1.8503349282296648,null,null,3.3498133299999999,4.38,2.95,3.44,4.05,1.74,2.34,null,null,12.210618800899908,5.0083773347701213,8.5186599817684705,13.977984344422683,8.6331187525205646,8.9060500198491379,5.9307177033492824,null,null,9.56,6.51,6.04,8.3699999999999992,7.98,5.55,6.44,null,null,4.5,"n.a.",3,5.5,"n.a.",5.25,"n.a.",null,null,8.1024380830316609,4.9628763274241816,5.3522033390909662,10.107532482149661,16.596870790368822,11.022547400676963,7.3732784910300886,null,null,920.19595552166629,474.41500000000013,920.66666666666663,376.30032428492041,428.21666666666675,835.47500000000002,926.34705616666668,3955.2696131399211,4881.616669306587,null,null,1373.7030464016636,864.78833333333307,1509.5249999999999,798.44268293256653,637.81223915499993,1474.9333333333334,1791.8475345833331,6659.2046351558956,8451.0521697392287,null,null,-2703.9350220159772,-3569.4355004326439,null,null,922.56663504000107,469.51000000000022,851.80000000000018,289.43016555517636,411.1,917.69999999999993,1045.5348590000001,3862.1068005951893,4907.6416595951887,null,null,1434.6147294000011,948.78999999999905,1693.6999999999998,824.24654583799997,740.2,1664.1,2030.9526149999997,7305.6512752379786,9336.6038902379805,null,null,-3443.544474642822,-4428.9622306428246]
[null,null,"N",2.491316787336201,1.6760794315904568,4.6916890080429088,4.3345750084659702,5.3467286613125937,4.1355542791499067,0.38498556304137771,null,null,2.8048743773669846,2.7523704622034288,2.2920458362535756,4.4822466016000311,4.3100237277767501,6.4185996184318332,4.7226869128812279,null,null,79.034277971684446,93.854462163670462,52.576855532865871,78.912663615211855,104.0099171399993,105.87077124563928,90.272114045760134,null,null,3.0862868459210064,0,-2.3409378977637783,1.6729729654271448,4.6175076347281001,2.9823810435429743,0,null,null,6837.1,3416.98,11572.6,4481.3185652269458,2660.2,6344.5116152361661,3264.9391592700003,null,null,60.328603634311008,102.73263802242272,112.65175616516969,88.669732404204765,129.05275410591128,83.28483304639181,189.69245143211131,null,null,3.3258263426711823,2.5905017022039027,0.60015364916772107,3.8486043492372568,3.4092012959190336,1.0509817981246625,1.818015340364342,null,null,3.0968837100000002,4.3099999999999996,2.95,3.45,4.03,1.63,2.21,null,null,12.05827342262309,4.90176312488801,7.9837387964148396,13.529000324569941,9.7450382715068873,7.7537837837837911,6.0517162032598364,null,null,9.49,6.66,6.03,8.31,8.56,5.58,6.46,null,null,4.75,"n.a.",2.75,5.5,"n.a.",5.25,"n.a.",null,null,7.2439861679320705,4.9248088397938483,4.9051265662446664,9.9119260985230042,17.089521292033226,11.30639171952954,7.5171565150213171,null,null,922.98753905583271,478.42083333333335,922.4666666666667,377.06848006973604,430.65833333333336,839.50000000000011,924.27726574999986,3971.1018524589022,4895.3791182089026,null,null,1383.5891485933314,878.30999999999983,1510.7249999999997,806.21833461196036,644.31851071999995,1475.1666666666667,1801.2156299999995,6698.3276605919573,8499.543290591957,null,null,-2727.2258081330569,-3604.1641723830567,null,null,952.74292309999544,482.16999999999916,875.4,317.82772137409438,399.5,904.2,944.97099900000001,3931.8406444740831,4876.8116434740878,null,null,1599.3278990800002,1028.08,1569.1,891.50555597619996,744.5,1606.8000000000002,1798.579432,7439.3134550562099,9237.892887056194,null,null,-3507.4728105821123,-4361.0812435821135]
[null,null,"D",2.5741099382925241,2.0350428910385143,5.6768903256327397,4.7281323877068555,5.6784984336508488,4.2042774660486195,0.48076923076923078,null,null,2.8926512193748586,2.8703662339978395,2.1411054699564702,3.9654196672599671,4.062744008380986,6.7874240887713047,4.6831336523945781,null,null,78.431600374047136,93.639897282523521,52.130135426505952,78.323350261025581,103.17469486110949,105.31230345165079,90.046381146672744,null,null,3.1948068515917925,0,-2.1916743355456307,0.43453246929667944,4.6403044566958052,3.2793254596894394,0,null,null,7149.8,3273.16,11769.5,4785.6407855964271,2716.2,6780.4030804810109,3510.3838357999998,null,null,63.251838212023173,99.497158101250491,105.92515915287497,85.606543162928986,130.52511384000408,82.61753779113198,196.45468000134809,null,null,3.2911716842957497,2.3079885520078665,-0.37556964858613995,3.1146049661399551,3.8298470167812364,0.96514515373810894,1.7010526315789474,null,null,3.0154855299999999,4.3899999999999997,2.96,3.43,4.05,2,2.19,null,null,11.987323184285536,4.5229138717467094,6.9297172274863801,12.901851015801352,10.711569663802315,6.6654869673794401,5.9406698564593308,null,null,9.7899999999999991,6.65,6.03,8.17,8.5,6.39,6.45,null,null,4.75,"n.a.",2.75,5.5,"n.a.",5.25,"n.a.",null,null,6.9356325967461885,5.1303314397344479,3.727708387403772,7.8237270051769059,16.194870193215682,11.819029018974248,7.786854983765279,null,null,922.02983838166608,480.00083333333333,915.19999999999993,378.73585466346748,432.2,844.55000000000018,938.40921274999982,3972.7165263784664,4911.1257391284671,null,null,1382.569244979165,880.95833333333337,1532.5166666666664,806.91537956338982,644.68333333333328,1475.0250000000003,1828.2458631666666,6722.6679578758885,8550.9138210425554,null,null,-2749.9514314974217,-3639.7880819140883,null,null,833.07197924999286,421.03000000000065,887.3,351.33102069610322,356,815.7,961.01787800000011,3664.4329999460897,4625.4508779460957,null,null,1376.6272710200001,844.52000000000044,1744.4999999999998,790.05501221955546,609.6,1529.1999999999998,1981.75441,6894.5022832395625,8876.2566932395712,null,null,-3230.0692832934583,-4250.8058152934536]
[null,2018,"E",2.407825173415207,1.422230274481378,4.7140952231547617,4.5729657027572372,5.3590959201744264,3.8632506263638464,0.38350910834132856,null,null,2.9251015625769781,2.9773246659066213,2.1523729764671296,3.5671021738605675,3.6324124221628598,6.9140759862060728,4.2389087200407998,null,null,78.891642796671704,94.023884775943458,52.638094241775349,78.628960562514209,104.03140002563175,106.0663419249684,90.363985483341011,null,null,3.2281022048072447,0,-2.3180671350007698,1.1063215374145426E-2,4.7926229730830858,3.5285902774208018,0,null,null,7120.0502999999999,3441.87,11345.9,4674.0289756200364,2739.8,6803.9781630356683,3219.9777227200002,null,null,62.809300808576538,103.02149944147187,105.48346903062252,87.959663681286344,135.84042485887485,87.794403967967739,197.2166538553343,null,null,3.6053639654318834,2.8472749196141538,0.53087865168538861,3.5927395498392203,3.0131462929911548,1.7588024278266385,1.42602196752626,null,null,3.2402171000000002,4.3099999999999996,2.96,3.5,4.03,1.69,1.8149999999999999,null,null,12.374225119150813,5.0361441586280877,7.9797325842696596,12.925935691318317,12.292982683003792,7.862982647264813,5.9935052531041011,null,null,10.130000000000001,6.53,6.08,8.18,8.76,6.62,6.4,null,null,4.75,"n.a.",2.75,5.5,"n.a.",5.25,"n.a.",null,null,5.9862615151528242,4.4523170132593659,4.0845463747357869,8.4341938211144765,16.158911427150024,11.781437367081281,7.3081624939931311,null,null,923.43033296666579,486.15500000000003,915.23333333333323,379.36137763593075,436.41666666666669,854.45000000000016,955.9954388333332,3995.0467106025967,4951.0421494359298,null,null,1385.7700677483326,887.84,1543.7416666666666,817.79485039203576,651.56666666666672,1495.7166666666665,1860.2551476666667,6782.4299181403685,8642.6850658070343,null,null,-2787.3832075377723,-3691.6429163711055,null,null,823.70711817999563,500.02,879.40000000000009,400.10971300270171,465.3,790.30000000000018,949.2,3858.836831182698,4808.0368311826978,null,null,1381.0403651900108,929.49,1566.4,838.78518772010989,668.9,1573.1,2027.24,6957.7155529101201,8984.9555529101199,null,null,-3098.878721727423,-4176.918721727423]
[null,null,"F",2.2124881422793723,1.2286566085463904,4.1510318949343246,4.3333333333333339,4.8161039269698067,3.3158953722334039,0.38240917782027312,null,null,2.9912156863124766,3.0306821819282672,2.3443508723158355,3.365990038512265,3.1226481779160635,6.9570105703295706,3.4488213890207176,null,null,79.282443584507021,94.374390285848804,53.118560360599744,78.39367141270013,104.58070416614399,107.5671939389791,90.514404547708665,null,null,2.4532936216300127,0,-0.57418587050558789,-1.4829870201496826E-2,4.6509741082928571,3.6621078173879966,0,null,null,7015.9,3370.66,11475.2,4764.165179075585,2770.9,8050.147613639987,2824.90965276,null,null,62.202851221090647,101.56120531052058,106.915234733948,86.815176685527689,129.08715280548532,106.38407819138267,169.35715355580464,null,null,3.7055275011488091,3.0241865238732717,1.0743706372438726,3.8498402555910531,4.914454433083443,2.4978071369838317,1.4121904761904709,null,null,3.5092119400000001,4.29,2.94,3.46,4.51,1.7456538739512792,1.8,null,null,12.57919858072824,5.2468772869254803,8.5442918261652885,13.252396166134183,8.309097991062929,8.7819058191166111,5.6758857142857089,null,null,9.81,6.54,6.08,8.1999999999999993,8.35,5.5015999999999998,6.08,null,null,5,"n.a.",2.75,5.5,"n.a.",5.25,"n.a.",null,null,4.7471509909337684,4.6847038440199995,3.5488823410208203,9.192148496870022,16.674414537975824,11.593720364612704,7.1498270035061262,null,null,925.75611620749851,489.27250000000004,914.07499999999993,379.89555100845467,437.33333333333331,859.45833333333337,951.34236591666684,4005.7908338826196,4957.1331997992866,null,null,1388.5321310616666,896.27833333333331,1549.8416666666665,818.10985855220315,654.66666666666663,1499.9416666666666,1868.8690682500003,6807.3703229472039,8676.2393911972031,null,null,-2801.5794890645834,-3719.106191397917,null,null,911.74363845999505,488.77,928.1,428.67435649644756,458,839.8,926.128827,4055.0879949564423,4981.2168219564419,null,null,1289.9188044600012,861.59000000000015,1425.6,745.98656946490928,606.40000000000009,1386.1000000000001,1676.441092,6315.5953739249107,7992.0364659249099,null,null,-2260.5073789684684,-3010.819643968468]
[null,null,"M",2.6129676959632318,0.9105661738189732,4.1409966466505521,4.3521594684385452,4.8384299879093637,3.9112903225806406,0.57416267942583188,null,null,3.0942006307040475,2.8323278293288126,2.647713486501436,3.3489204394089827,2.7249737396518618,7.0167319289440533,4.7275011779487839,null,null,79.0216822945128,94.689190096912441,53.348697304925501,78.470229337176491,104.94119343541875,108.20801302529057,90.632752105762705,null,null,1.9285924893451545,0,0.48183875225968809,0.5206032447254485,4.6873629746557972,4.0078789354965085,0,null,null,8473.9,3400.37,11740.8,4832.1434372273143,2852.1,7576.7978562124863,2787.7063490299997,null,null,75.606783334985423,100.99064007733851,108.05976691663111,87.586873199233423,127.26086931481539,104.28371667786256,165.12133991951404,null,null,3.3007838873468356,3.3489395157687794,1.0649056462483129,3.6586119070359691,4.8786569437957805,1.8162700814901096,1.1740960989533831,null,null,3.0393050599999998,4.29,3.03,3.36,4.38,1.8187,1.7549999999999999,null,null,12.061859803830307,5.5885464129366511,8.5163419200239616,13.260713148678759,7.8943052725614962,7.8218734963135468,5.5241198858230316,null,null,10.33,6.55,6.11,8.23,7.61,5.6927000000000003,6.13,null,null,5,"n.a.",2.75,5.5,"n.a.",5.25,"n.a.",null,null,3.7268000672844526,5.1063929196923707,3.7553130105482335,9.8898926695136566,15.894782285555277,12.788396678576275,6.8240801937131002,null,null,936.05638832249781,483.73916666666673,912.2833333333333,378.41049499292666,434.88333333333338,858.97499999999991,959.82118627500006,4004.3477166487569,4964.1689029237577,null,null,1384.7116176499997,897.82083333333333,1540.1000000000001,818.35888691455887,651.49166666666667,1509.8666666666668,1871.5825422500002,6802.3496712312262,8673.9322134812264,null,null,-2798.0019545824675,-3709.7633105574678,null,null,1112.420850499992,493.67000000000007,1065.3999999999999,413.47830006690617,509.1,956.5,1102.6100452999999,4550.5691505668965,5653.1791958668964,null,null,1423.5426651799933,902.16000000000008,1486.7,816.23213468406789,626.79999999999995,1639.5,1983.6550540000001,6894.934799864066,8878.5898538640686,null,null,-2344.3656492971631,-3225.410657997164]
[null,null,"A",2.3754301900147747,0.87387387387387294,3.9203484754200311,4.2039059913935741,4.8240941781801796,4.0456848709080795,0.76555023923444698,null,null,3.1182983332373961,2.4863986344831503,2.973559274896763,3.4475725589771944,2.5718611632759694,7.1216470382788915,4.3221635801505363,null,null,79.103337037008984,95.031627205065249,53.665034543798079,78.723831836773726,105.35297545690941,108.59150221299072,90.820199334583606,null,null,1.161088161003597,0,0.99386415914939263,0.80594044929493069,4.88220649321336,4.2210806592490897,0,null,null,8128.2201999999997,3401.03,11845.9,4873.4576251489889,2932.5,7202.1803552235524,3344.6422300300001,null,null,71.758541917123722,101.44636603888395,108.63128769400574,91.373148050940685,131.89225865730467,100.22814653691236,204.86484645578491,null,null,3.6869879843038542,3.2774850406358853,1.2794910179640782,3.9404415501906018,4.6880047132254345,2.0847718305503902,1.0067426400759765,null,null,3.2740408799999998,4.18,3.05,3.52,4.21,1.9897,1.78,null,null,12.243728584798452,5.4980798428150406,8.7563712574850374,13.258710292249051,10.491220113557171,7.8291715213357937,5.3236942070275441,null,null,10.48,6.42,6.2,8.27,7.21,5.7499000000000002,6.13,null,null,5,"n.a.",2.75,5.5,"n.a.",5.25,"n.a.",null,null,2.8347287622116912,4.7883520142616653,3.4486803286323697,11.183276296954968,13.812784202251937,13.532892362416082,6.4633307822110631,null,null,939.73862931833082,489.86083333333335,912.01666666666677,376.02471824126951,441.30833333333339,867.74166666666667,975.34309619166686,4026.6908475595997,5002.0339437512675,null,null,1410.4154892008326,914.6633333333333,1565.9916666666666,830.80939076401557,664.0333333333333,1527.2750000000003,1899.7166955833334,6913.18821329818,8812.9049088815154,null,null,-2886.4973657385813,-3810.870965130247,null,null,969.78816413999698,519.82999999999993,943.9,388.51956018149588,500.6,903.90000000000009,1108.4048010000001,4226.5377243214953,5334.9425253214977,null,null,1512.5065518799952,1027.4000000000001,1657.6000000000001,870.00012336922964,698.8,1607.4,1919.700844,7373.7066752492174,9293.4075192492164,null,null,-3147.168950927733,-3958.4649939277315]
[null,null,"M",2.035903124047965,0.82741253709866147,4.0865384615384475,3.9933993399340006,5.2647100235690694,4.4703987112363937,0.76555023923444698,null,null,3.1396095536349455,2.2181417081294934,3.2211984977221606,3.5898202280737221,-4.6401267309019172,7.2684082978559701,1.2260227202185079,null,null,79.511608713568393,95.307689316647611,53.885427139887142,79.477408057777893,106.08532031595921,108.82524918236004,91.197912998767578,null,null,-1.0070217697586545,0,1.4389324287600729,1.410792983677474,5.0729682688445541,4.1668162988531563,0,null,null,8010.7,3532.18,11849.5,4890.554671413397,2868.5,6911.1900791018998,3307.9993902700003,null,null,71.680043227924685,105.58798630176298,111.62097914797744,93.903400898586213,131.38920877546411,97.528749036899157,203.31132245574528,null,null,3.8359996394539242,3.2854036214432236,1.0889607390300364,4.1412250079339818,3.8405072940444644,1.50214922898999,0.94223646723647003,null,null,3.2326563899999998,4.1399999999999997,3.01,3.47,3.88,1.9204000000000001,1.7149999999999999,null,null,13.779482429433383,5.6557907412362844,8.5442956120092521,13.487972072357971,9.3704160742906009,7.6717437548188254,5.3137701804368511,null,null,10.539722330577412,6.53,6.22,8.1999999999999993,8.34,5.3033000000000001,6.12,null,null,5,"n.a.",2.75,5.5,"n.a.",5.25,"n.a.",null,null,1.9292642646786762,4.9436951401582441,3.8430112397368932,11.698600382974433,10.911333039210724,12.869139797450369,6.1317849013327264,null,null,945.14442625082995,490.25583333333333,910.25,370.8357859927101,441.77500000000003,871.68333333333328,955.43864960833344,4029.9443789102061,4985.3830285185404,null,null,1416.2296428874981,921.55583333333334,1593.0916666666665,839.41644092215347,662.64166666666677,1544.6000000000004,1884.6697071666665,6977.5352504763187,8862.2049576429854,null,null,-2947.5908715661117,-3876.8219291244445,null,null,1098.3507001599889,512.7199999999998,956.8,401.34849101098814,465.5,991.00000000000011,909.77050000000008,4425.7191911709742,5335.4896911709729,null,null,1561.1622412799893,999.98999999999978,1881.1,949.56719704376587,655.5,1708.9,1927.7276489999999,7756.2194383237584,9683.9470873237588,null,null,-3330.5002471527769,-4348.4573961527767]
[null,null,"J",2.1341316140110127,0.89879561387740425,3.7902667794264682,4.1474654377880071,5.6707510633995986,4.6288842376428923,1.1663470757430454,null,null,3.0798669987143419,2.1367226160930182,3.3380983554097527,3.7346442481733253,-4.5464800932567648,7.4075896986355607,3.1440194254359595,null,null,79.794577025318802,95.332046352892888,53.965526658102284,79.780001930393681,106.55515708000723,108.79388626497484,91.155851934581975,null,null,6.6765258668008845E-3,0,1.9823148030586626,2.1707918646831055,5.2103541563372433,4.0268796112327383,0,null,null,8070.9,3457.39,11979.2,4884.7412109127436,2961,6597.9586467956469,2895.9110779099997,null,null,71.560793235375797,104.44513925706404,111.18345185041005,92.358597644868311,134.76846905551,96.050877547897571,174.56980874737422,null,null,3.7361343614395768,3.2916194548369853,1.3678866666666614,3.862345132743374,4.2338761273548542,1.8193979379856882,0.6115204731013667,null,null,3.3636932900000001,4.22,3.07,3.4,4.1100000000000003,1.8028,1.7849999999999999,null,null,13.659904430679656,5.6206859077142362,8.8155985185185113,13.022433628318597,9.8692160727252656,7.1497615757482489,4.9163116668957025,null,null,10.541406350781061,6.57,6.29,8.1999999999999993,9.08,5.3677000000000001,6.14,null,null,5,"n.a.",2.75,5.5,"n.a.",5.25,"n.a.",null,null,1.5050040876780635,5.3505460603983979,3.9884091510973274,11.921956323036408,8.7437002681588716,11.932454382697632,6.021679486258269,null,null,945.96864793749592,493.50999999999993,910.74166666666667,366.8590231669678,434.56666666666666,877.68333333333339,971.08744077500012,4029.3293377711293,5000.4167785461304,null,null,1419.0991880883312,934.44749999999988,1601.0250000000003,843.70940330634619,644.35,1569.8666666666668,1891.228930333333,7012.497758061344,8903.7266883946795,null,null,-2983.1684202902138,-3903.3099098485472,null,null,1007.595261439993,532.40000000000009,907,373.24211791452223,378.5,938.30000000000018,1097.4522610000001,4137.037379354515,5234.4896403545135,null,null,1435.0018080199939,1027.75,1605.2,894.69144893962516,461.90000000000003,1749.6999999999998,1897.578798,7174.2432569596276,9071.8220549596299,null,null,-3037.2058776051072,-3837.3324146051091]
[null,null,"J",2.0843401885879453,1.0607695073714551,2.6052711299606166,4.2336724647194073,5.171925852311821,4.4278367084538663,1.3046109510086528,null,null,2.9461876254008987,2.1747785926621011,3.3393287089801849,3.8531288381239119,-4.6637457655090966,7.4157555724879893,2.0291574313988701,null,null,79.535474672973976,95.202788772082144,53.747144174126028,79.595320160467764,107.17275953462463,109.19084226326648,91.212484791884137,null,null,-0.84585256004833831,0,2.5199871467060695,2.3520681590878554,5.3466997584779303,4.3199649242625568,0,null,null,7900.4038,3752.4,12127.1,4813.8329813645632,2416,7391,2526.4067045899997,null,null,69.752972077510279,108.84367948721297,110.753957818901,93.070858152858904,108.35579808472917,113.48047206625857,154.00965066020674,null,null,3.8357105548004395,3.1458601672300239,2.4996073221139667,3.9683217884130859,3.6219124228862332,1.7213449480569516,0.47913816008442456,null,null,3.21,4.24,3.08,3.57,4.78,1.7159,1.79,null,null,13.730393832892929,5.4711937377690729,10.091809861234134,12.775456549118374,11.35474146014753,8.492815298191621,4.7632472043399154,null,null,10.489836757804584,6.59,6.36,8.17,9.7899999999999991,5.7885999999999997,6.13,null,null,5,"n.a.",2.75,5.5,"n.a.",5.5,"n.a.",null,null,2.0127896820443691,5.3688751873853802,3.9036428331589157,12.222810748180768,5.806133328415819,13.631563392972179,5.1581917390429277,null,null,951.30342668666219,490.32999999999993,910.13333333333321,364.30808588012923,438.29999999999995,888.55000000000018,979.36236702500003,4042.9248459001233,5022.2872129251255,null,null,1441.904807293331,942.89333333333343,1612.7250000000004,853.07921217043793,633.65,1597.0916666666665,1914.6629169999999,7081.3440194637697,8996.0069364637693,null,null,-3038.4191735636437,-3973.7197235386443,null,null,958.47873387999823,511.65000000000009,898.89999999999986,354.74460566734228,484.2,950.2,1026.7103959999999,4158.1733395473384,5184.8837355473406,null,null,1489.6417721400026,981.63000000000011,1658.4,896.04891667831623,509.9,1790.8,2118.6063669999999,7326.4206888183107,9445.0270558183038,null,null,-3168.247349270976,-4260.1433202709741]
[null,null,"A",2.2403361633208165,1.4491449144914488,3.3649829092290218,4.3506705920837465,4.9511530243974669,3.867359168997206,1.0795019157088077,null,null,2.7329524162402428,2.1933494985788609,3.2550531056015282,3.9201547817170064,-5.0440981924837924,7.2397878680159886,2.5392199417126551,null,null,79.741177870833056,95.010587483399632,53.721328898526131,79.327885034721106,107.89256733125093,109.55597883397832,91.203570243200502,null,null,-1.2460219089082725,0,3.227180024253113,2.6753676542399076,5.3343196973648572,4.562228288342947,0,null,null,7799.9912000000004,3655.86,12535.8,4726.7085381577817,2315,7430.6821161792477,2787.9804913400003,null,null,68.527826125852584,109.7611942090947,114.4307880831048,92.550887982708105,102.31537836703026,108.89523874930094,170.04835559024571,null,null,3.6283760166372008,2.7214177978883867,1.726906966490295,3.7463385579937261,5.493746608160075,2.461544080313868,0.71280335838221964,null,null,3.33,4.21,3.07,3.57,4.8499999999999996,2.0482999999999998,1.8,null,null,13.571387325325484,5.156135214266703,9.2439594356260955,12.639429467084636,10.572220186671069,8.2099332256327386,5.4417542429899504,null,null,10.49066799339545,6.68,6.37,8.17,9.89,5.4657,6.58,null,null,5,"n.a.",2.75,5.5,"n.a.",5.5,"n.a.",null,null,1.9799180488575097,6.2295983843598357,4.2231822997498947,13.21552426994419,3.2725355370075482,13.281287320221491,5.1667387600109915,null,null,958.29494695249502,491.65166666666664,913.89166666666654,365.42437649544576,443.06666666666661,891.875,992.64215377500022,4064.2043234479402,5056.8464772229418,null,null,1444.365989516665,951.94,1625.3833333333339,861.28116888565557,625.49999999999989,1614.875,1928.1255158333333,7123.3454917356548,9051.4710075689873,null,null,-3059.1411682877133,-3994.624530346046,null,null,979.31457100999285,494.61000000000013,935.5,352.87652106387702,490.4,914,1025.2977719999999,4166.7010920738721,5191.9988640738738,null,null,1464.9985897700026,1045.1000000000004,1751.9,947.78655626241164,580.4,1796.9,2025.535644,7587.085146032412,9612.6207900324152,null,null,-3420.3840539585435,-4420.6219259585414]
[null,null,"S",2.211752848695312,1.3846430498111908,4.5520507141220339,4.3833824010467888,5.1374086584802514,3.2870186581976975,0.75377268385863794,null,null,2.3972561472298053,2.1395940736337442,3.1684228188093919,3.9180900175464295,-5.6029178018612278,6.9155236176275547,3.3197600323272534,null,null,81.239759504022018,95.078813660747812,54.585493833413949,79.533068132739828,107.96417821209106,109.83498090063479,91.342270086971368,null,null,0.50379474959777826,0,4.9582659724261777,2.8072895227810735,5.2939982085484658,4.4683317304259749,0,null,null,7468.7727000000004,3558.55,12309.2,4629.7832003720378,2122.6,7328.6,2200.1805097499996,null,null,67.422867663872623,108.30103521370017,118.99380288220995,92.277565662114597,106.58821011884758,106.60068076099671,133.04346936665473,null,null,3.6084374335742226,2.8360872649875786,0.55278617868362989,3.7904669382638563,5.5669955421510142,4.381171419786301,1.1277268194279662,null,null,3.8127447000000001,4.26,3.13,3.59,5.27,2.1789875477662557,1.89,null,null,13.266695229317845,4.9863142958495867,7.9557973555409607,12.699931056095258,12.226899918920809,9.7170107917938253,5.8024897335461887,null,null,10.523450251057346,6.44,6.36,8.17,10.52,5.8731681699515201,6.6,null,null,5,"n.a.",2.75,5.5,"n.a.",5.5,"n.a.",null,null,3.623764531758189,6.4968107083312798,4.970978007023108,13.168760750385955,4.9589351650070057E-2,13.075175046679499,5.0925835021585542,null,null,958.86072742249462,490.82500000000005,913.87499999999989,362.5737556974147,443.77499999999992,902.66666666666663,999.91716777500017,4072.5761497865756,5072.493317561577,null,null,1428.9877817699987,970.29833333333306,1634.9416666666666,862.1915792018234,617.69999999999993,1638.4666666666665,1929.6463110000002,7152.5860276384883,9082.2323386384869,null,null,-3080.0098778519118,-4009.7390210769122,null,null,936.54815390999465,463.51999999999953,837.00000000000011,279.30249533932147,407.1,910.4,901.90767500000004,3833.8706492493147,4735.7783242493169,null,null,1179.4706838199954,1047.0799999999981,1579.1,881.39370222569073,509.5,1609.1,1767.983827,6805.6443860456784,8573.6282130456821,null,null,-2971.7737367963637,-3837.8498887963651]
[null,null,"O",2.0269004008633567,1.4906609195402269,4.337587359465215,4.6640574037834153,5.1042985286963898,3.5172687574434236,1.0280382775119559,null,null,2.0928123432217434,2.1112810884227731,3.1300439379176863,3.8467886130556259,-6.2366950404933643,6.5799625702195499,3.273367952522265,null,null,82.925275743470806,95.027682296525683,54.932056921220394,79.341185045981433,108.088436979831,110.11398521929793,91.42989216356591,null,null,3.6154868527235227,0,5.2514373799338889,2.5904520239291897,5.5070726579191795,4.5344467116096014,0,null,null,6866.1754000000001,3499.76,12357.4,4612.6674062992843,2032.9,6984.5,2374.0483965200001,null,null,63.768238947704582,103.87007870627178,120.78836757538858,94.160096359125916,109.61898653263071,102.19483109125488,143.82099059361624,null,null,3.698141945224394,2.6793983365776,0.74030141973060892,3.5216889996883918,6.2355551170822006,4.5652588203712297,0.91258005025844924,null,null,3.5949810599999998,4.21,3.14,3.64,5.0599999999999996,1.7476,1.95,null,null,13.40081977314564,4.96532295168997,8.1585293046960246,12.407260828918682,12.529582619530535,9.8943213683080309,5.4261785301915388,null,null,10.660239715476584,6.53,6.39,8.24,10.87,5.9096000000000002,6.51,null,null,5,"n.a.",2.75,5.5,"n.a.",5.5,"n.a.",null,null,5.0667508121089222,6.5168906724835773,5.1742681505719368,13.494537527751627,-3.2672906060357221,11.398195575390812,4.4595692859063396,null,null,967.59276480916105,492.5841666666667,914.4083333333333,362.33112053489003,446.14166666666665,902.84166666666658,994.97627152500024,4085.8997186773827,5080.8759902023839,null,null,1444.9277461224983,981.63166666666666,1647.6416666666664,864.60629376568056,605.29999999999984,1660.3666666666668,1941.3903399999999,7204.4740398881795,9145.8643798881785,null,null,-3118.574321210795,-4064.9883896857941,null,null,1027.3510836799951,490.61999999999989,858.2,286.51854360487994,439.5,919.8,986.24410399999999,4021.9896272848782,5008.2337312848758,null,null,1625.8943016299975,1084.7900000000009,1846.1000000000001,853.22312060428453,591.4,1926.9,2171.8809630000001,7928.3074222342912,10100.188385234287,null,null,-3906.3177949494129,-5091.9546539494113]
[null,null,"N",2.2924130422144415,1.0750761512273685,3.1483015741507705,4.7062641999350854,4.3957333820349653,2.3717595146166506,0.77996164908917043,null,null,1.86141724859753,2.1680880606154491,3.1615159932619687,3.7209181058447989,-6.7826230195748183,6.2556448700171785,3.2993364463013055,null,null,84.920595719169654,94.877296171773892,54.699420040643105,79.143502946044407,107.86609904945547,110.50332177734158,91.523132478449,null,null,7.5695901850684155,0,5.0264637098428642,2.7755427565705055,5.9598953065452589,4.5750239556347712,0,null,null,6537.8323,3503.95,12472.4,4462.9558556984221,2026.7,6687.3247431731197,2579.2710548099999,null,null,58.564255756974227,102.34984458900722,121.24234876853002,93.379420255402025,105.31579113571074,96.365383402432116,150.17160703671473,null,null,3.4778600406243219,3.1312604148200776,1.8824337349397751,3.479959702417855,6.8269614065763911,5.6173113685344891,1.1709057352290571,null,null,3.8058163700000001,4.24,3.15,3.64,5.58,1.9041999999999999,1.96,null,null,13.241182048424918,5.5354139336997088,9.3668032128514245,12.352399256044638,13.779594999308458,9.7198099676724219,5.7253825626584547,null,null,10.732079455605849,6.67,6.42,8.2799999999999994,11.02,5.9271000000000003,6.55,null,null,5.25,"n.a.",2.75,5.5,"n.a.",5.5,"n.a.",null,null,4.6023312101472369,6.6302719752374673,4.9312294650942112,13.535494603377373,-6.343971991981789,11.101611878450313,4.4649620890699238,null,null,969.74392856832753,492.30333333333334,913.11666666666667,360.25048645816105,448.29999999999995,906.35833333333323,988.03861360833343,4090.0727483598207,5078.1113619681546,null,null,1443.411815844999,980.49333333333323,1658,869.08847738051645,591.47499999999991,1677.3333333333333,1934.6553272499998,7219.8019598921819,9154.4572871421824,null,null,-3129.7292115323594,-4076.3459251740255,null,null,978.5568882099958,478.80000000000018,859.90000000000009,292.86011245334748,425.4,946.40000000000009,861.7191039999999,3981.9170006633431,4843.6361046633392,null,null,1581.1367357500037,1014.4199999999983,1693.4,945.29175935422961,578.6,1810.4,1717.7592789999999,7623.2484951042279,9341.0077741042332,null,null,-3641.3314944408849,-4497.3716694408868]
[null,null,"D",2.0272621606389034,0.43824344870762438,2.3129150190255872,4.2244437278297209,3.8850547509849016,1.1705946620883412,0.15837320574162145,null,null,1.7188735326264983,2.290306227734654,3.2589208711815885,3.617542495314388,-7.0754903733432375,5.9432705490900153,3.6819980976343163,null,null,83.108351476257781,95.012183397103072,54.693519144073065,79.089668634106815,107.01941999772788,110.56605382279739,91.6213064638291,null,null,6.0846005172708146,0,5.3319185894074517,3.2715290467338232,5.7365154921040622,4.2268282290833037,0,null,null,7494.9984000000004,3353.55,12755.6,4853.1386447195428,2038.9,7627.1078836426968,2907.0582651700001,null,null,68.517783645481785,99.118893904611426,113.55932336120256,91.23046266398174,107.34241795445925,98.937327768798227,160.07850169838505,null,null,3.8938002992828897,3.7951246660730238,2.6752096550718334,3.8911757425742679,8.6321639385310416,6.9632933970996618,1.818746387300501,null,null,3.54401082,4.25,3.14,3.65,5.24,2.1215999999999999,1.98,null,null,13.585275854450815,6.0353072128228007,10.171819441405969,12.670306311881198,15.380325157611544,10.766721714193446,6.3915043639021514,null,null,10.812962593964714,6.5,6.45,8.1199999999999992,11.03,6.0841000000000003,6.56,null,null,5.25,"n.a.",2.75,5.5,"n.a.",5.5,"n.a.",null,null,4.3934820107736305,6.6890723763313398,4.5397688442660122,14.179029325619963,-8.828082165925677,10.372298125428436,3.3541087512918955,null,null,971.77817671749438,492.04999999999995,914.11666666666667,356.03207735389316,448.93333333333334,908.9666666666667,968.88348602500002,4091.8769207380551,5060.7604067630555,null,null,1438.8386851849984,985.81499999999994,1639.5333333333335,875.44909359152837,583.23333333333323,1684.075,1917.1636025833332,7206.9444454431941,9124.1080480265282,null,null,-3115.067524705139,-4063.3476412634723,null,null,857.48295703999338,417.98999999999978,899.3,300.7101114448887,363.6,847,731.15634699999998,3686.0830684848916,4417.2394154848953,null,null,1321.749703099993,908.38000000000102,1522.8999999999999,866.38240675170005,510.7,1610.1000000000001,1771.8537139999999,6740.2121098517091,8512.0658238517062,null,null,-3054.1290413668175,-4094.8264083668182]
[null,2019,"E",1.6663756352090169,0.25008931761343439,4.1048689138576702,3.9549839228295856,3.3048488318587941,0.70811609991440094,-0.30477554918817584,null,null,1.5882352308544325,2.4438514312555495,3.3403080743984974,3.5037046107926968,-7.1066252744598071,5.6444899483385758,3.3143765669907586,null,null,83.879676591266175,95.244220693289662,54.067107714183088,79.243808988874946,108.32846103179138,111.28119856345926,92.046277927496561,null,null,6.4431894195015449,0,5.2976823492953589,3.1675016378280603,5.9286961769362607,4.0455392991671291,0,null,null,7571.5874999999996,3493.55,12452.4,4788.8999999999996,1961.6000000000001,7046.5049646461903,2845.6931911500001,null,null,71.081034112191006,99.927461738641441,116.29543082487007,94.433264908578437,109.80240371966769,95.72633541805429,168.50907327033198,null,null,4.5084958878022467,4.0697327156094074,0.90786444092675944,4.2181874420043268,9.9212425899130565,7.111526039252051,2.3419131277848919,null,null,4.1723419000000002,4.33,3.16,3.69,5.1583060550661974,2.2852999999999999,2.0299999999999998,null,null,11.877665510689233,6.2841945830363493,8.2946467117570961,12.933498298793685,15.714175368554594,11.830311559264414,6.8682081683526599,null,null,13.741967669999999,6.55,6.55,8.18,11.072876283627158,6.1733000000000002,6.5424999999999995,null,null,5.25,"n.a.",2.75,5.75,"n.a.",5.5,"n.a.",null,null,4.5917777873482946,7.1194042382511924,4.6742866691968699,13.699272900107795,-11.911048796065293,9.9487446696527648,2.9884078096588329,null,null,974.80280721082715,490.66166666666658,912.14999999999975,352.46074600981427,446.32422372416664,913.06666666666661,957.67222952500003,4089.4661102781424,5047.1383398031421,null,null,1442.4188867733308,988.97916666666663,1649.4666666666669,874.1962499048276,572.02670152083329,1688.7916666666667,1900.4697945833334,7215.8793381989926,9116.3491327823267,null,null,-3126.4132279208502,-4069.2107929791832,null,null,860.00268409999148,483.36,855.80000000000007,357.25373687375395,433.99068468999997,839.5,814.66492199999993,3829.9071056637454,4644.5720276637458,null,null,1424.002784249999,967.46,1685.6000000000001,823.75106347970063,534.4204182499999,1629.7,1826.9143039999999,7064.9342659796994,8891.8485699796984,null,null,-3210.2520443459489,-4222.5014263459489]
[null,null,"F",1.535477042184819,0.34805890227577024,4.4584553028597149,4.089456869009588,3.3579926806237168,1.1918672587053059,-0.50047619047618463,null,null,1.5217127134650879,2.4430327596612806,3.356102836020832,3.3919155248095829,-6.9237290199789623,5.3296968314262747,3.4194831013916525,null,null,84.749941783659793,95.476693543118145,54.228344689926601,79.118420408482635,108.86660538812899,111.57617008503556,92.352548448269474,null,null,6.9123823726509661,0,5.0440513637539688,3.4787463230153115,5.9827045671758574,3.3915467664156624,0,null,null,7525.2952999999998,3615.3,12557.2,4838.3999999999996,1937.4,7133.8695190563603,2481.4440872700002,null,null,70.603425737943297,100.41713399117069,116.13530442341171,95.019913805810859,109.09972242715233,97.141760608923676,147.8899717033884,null,null,4.6432272690819616,3.9780949839914621,0.5471502478982555,4.1027624309392223,10.391810478580974,5.9860865357967654,2.5934558193626134,null,null,4.21,4.34,3.15,3.69,5.3094594696521398,2.3952,2.08,null,null,11.118102880557727,6.2302561366061893,7.9567945677947849,12.816421117249842,14.667742021612719,12.066911177829098,7.1311659783009187,null,null,12.82429584,6.6,6.56,8.1999999999999993,12.604218208320511,6.3169000000000004,6.5949999999999998,null,null,5.25,"n.a.",2.75,5.75,"n.a.",5.5,"n.a.",null,null,4.3286548044634277,6.8384027944926373,4.2161525947022271,14.162024269611461,-14.099994703577302,9.634218830756879,3.2442669240535515,null,null,976.31050225332729,488.92916666666662,909.33333333333303,347.42817322627866,444.77168254666668,912.24166666666667,944.82376285833345,4079.0145246929405,5023.8382875512734,null,null,1441.1228891649971,992.19916666666666,1652.2916666666667,878.75996137974334,564.29100459416668,1695.3083333333332,1902.8768451666667,7223.9730218055747,9126.849866972243,null,null,-3144.9584971126351,-4103.0115794209678,null,null,929.83597896999458,467.98,894.30000000000007,368.28348309402065,439.36950587000001,829.90000000000009,771.94722699999988,3929.6689679340166,4701.6161949340167,null,null,1274.3668331600018,900.23,1459.5,800.75110716389861,513.57163688000003,1464.3,1705.325699,6412.7195772039004,8118.0452762039022,null,null,-2459.3032045598848,-3392.6816765598851]
[null,null,"M",1.4201372285843985,0.67899580094701228,4.1710348959113537,4.1388092964024192,5.0875154396655624,1.4745828482731904,-0.18401522359658529,null,null,1.3843843807307183,2.4244705871182437,3.3373319736826073,3.2453962037320587,null,5.0184125624575016,3.011397720455915,null,null,84.475594853773984,95.801550423371268,54.242212088279139,79.375948693432306,107.58496616506336,111.56533098175177,92.490277557349259,null,null,6.4383590619585362,0,3.9799349240780826,3.4154923662152821,5.7659079958260344,2.7107971081107372,0,null,null,8336.4212000000007,3594.41,12759.2,4830.8999999999996,1913.1000000000001,7353.5459141715801,2698.0524484800003,null,null,77.483024719104648,103.75867227142066,114.000060682773,96.794360473132485,112.13094091830868,97.992932795370365,162.33451435688465,null,null,4.7129326601506882,3.606516106131874,0.81497232406008024,4.0726322225619089,6.6573165560866041,5.5968864244741825,2.2882259076168818,null,null,4.26,4.3099999999999996,3.12,3.74,5.8845742684087234,2.0144000000000002,2.1,null,null,11.266758805168591,5.751948708847288,8.273859535619275,12.734148578416384,13.605009069912398,11.109991128107069,6.8315863825536356,null,null,12.84689947,6.47,6.59,8.19,11.419850272378261,5.8235000000000001,6.6349999999999998,null,null,5,"n.a.",2.75,5.75,"n.a.",5.5,"n.a.",null,null,4.3791892484985828,6.7543002096446481,4.2748883929449644,13.944396721821484,-16.815600545838837,11.87279628564788,3.4579045014985654,null,null,974.33922555332776,490.70249999999993,909.24999999999989,346.24307798262879,442.25448513916666,914.69999999999993,928.35969225000008,4077.489288675124,5005.8489809251241,null,null,1448.5622575894956,1003.4549999999999,1663.9499999999998,881.31835523753364,556.44939392499998,1700.0916666666669,1886.4526835833333,7253.8266734186955,9140.2793570020312,null,null,-3176.3373847435737,-4134.4303760769062,null,null,1088.7655300999984,514.94999999999993,1064.4000000000001,399.25715714310809,478.89363111,985.99999999999989,905.04119799999989,4532.266318353104,5437.307516353103,null,null,1512.8150862739735,1037.23,1626.6,846.9328609775531,532.70067197000003,1696.9,1786.5651149999999,7253.1786192215277,9039.7437342215271,null,null,-2709.7397312044468,-3591.2636482044472]
[null,null,"A",2.0700723226680178,0.80378672858801969,4.7529940119760434,4.8602287166454925,5.7699592597319818,1.6079158936301667,-9.3922127255461008E-2,null,null,1.2724714955256859,2.4974531154037063,3.3198102193337862,3.0422420687202365,null,4.775969425213983,2.9875767100733306,null,null,83.901630627678003,96.155987344899714,53.884602947734656,79.104574288204319,106.9035935226367,111.60700208287339,92.720454941997531,null,null,6.1424251408241499,0,3.1228021769944125,3.3049568235262421,5.225942062071522,2.3854237867395689,0,null,null,8138.8918999999996,3712.89,12845.9,4950.8,1968.8000000000002,7275.4016782442932,2980.7113331100004,null,null,75.55809632803637,100.92463074299364,114.27460359814248,97.992487804463451,115.51148400704282,94.491658896647124,181.85747597009194,null,null,3.9971830963677095,3.4088136794542341,0.24534476598785687,3.356631323841258,7.6158335572850691,5.2871708460134039,2.2260128458732851,null,null,3.98,4.24,3.14,3.74,6.1803796302169323,1.9298999999999999,2.13,null,null,11.935020991090791,5.7202347833791034,7.6341550553769251,11.872729475916385,12.374495538853806,11.591699330493013,6.6501681066072509,null,null,14.252156879999999,6.57,6.6,8.17,11.494728606171783,5.4684999999999997,6.55,null,null,5,"n.a.",2.75,5.75,"n.a.",5.5,"n.a.",null,null,4.2463673358349663,6.7516422890905536,4.6301586152399654,13.248434073411586,-19.648706478528645,10.926092435861223,3.1895898407427126,null,null,976.54889646166146,486.22583333333324,907.12499999999989,345.6219738133629,438.85899992749995,910.75833333333333,906.10583616666679,4065.1390368691918,4971.2448730358583,null,null,1438.4503316561631,999.75666666666655,1661.0166666666667,878.30375993109226,546.22664475666681,1699.5500000000002,1888.2019389166669,7223.3040696772559,9111.506008593924,null,null,-3158.165032808065,-4140.2611355580648,null,null,996.30421503999946,466.11000000000013,918.4,381.06631015030484,459.85417745999996,856.59999999999991,841.35852799999998,4078.3347026503052,4919.6932306503058,null,null,1391.1634406800067,983.02000000000044,1622.4,833.82497969192912,576.12700998000014,1600.9,1940.691908,7007.4354303519394,8948.1273383519365,null,null,-2905.059198991632,-4004.3925789916302]
[null,null,"M",2.3219000568675732,0.8027829810008078,4.5369887506518696,5.1412250079339854,5.9949961396103735,1.3107170393215244,-4.5584045584074308E-3,null,null,1.2269049364473994,2.4368199595183762,3.3361019673828296,2.8087270213924365,null,4.6428097960565333,2.8669548952871624,null,null,82.851352045860381,96.241305879424729,54.053362006946855,79.064722136367592,106.77407407653536,111.90232588401236,92.834795785755205,null,null,4.7445816791141917,0,3.018513333046136,2.7557177720583468,4.8068808565630867,2.343141338470339,0,null,null,7739.3371999999999,3765.82,14070.1,5028.6000000000004,1947.8000000000002,6980.5,2798.80935404,null,null,72.003811441648466,106.36945067975476,127.64470902345639,99.891590463079055,114.93785840199678,101.07868122683858,173.63673215107659,null,null,3.8878284520923803,3.4098433766923231,0.5385761117445802,3.1089375188650807,5.241411760583035,5.3019888888888751,2.1946584459690501,null,null,3.95407215,4.24,3.17,3.75,6.1536541328112122,1.5387,2.19,null,null,10.758302901934426,5.8800132731616621,7.8469940136830063,11.573742831270753,11.997769591071775,10.938411339421599,6.6248603924965277,null,null,9.01,6.73,6.59,8.2100000000000009,12.406844829981461,5.7721,6.62,null,null,4.75,"n.a.",2.75,5.75,"n.a.",5.5,"n.a.",null,null,3.674092434454268,6.3246876223030046,4.6913092802999712,13.062812153871196,-21.287370857682063,10.507622752360945,2.1178469732963334,null,null,977.42142356249542,490.03666666666663,906.40833333333342,346.2141833378717,null,912.8416666666667,913.51489266666658,null,null,null,null,1433.0682045844978,1010.0558333333332,1652.2,872.72907626007827,null,1716.5,1882.0056321666668,null,null,null,null,null,null,null,null,1108.8210253699976,558.44999999999982,948.19999999999993,408.45500530509429,null,1015.9999999999999,998.67917799999998,null,null,null,null,1496.5767164200049,1123.58,1775.3,882.6709929916002,null,1912.3000000000002,1853.3719679999999]
[null,null,"J",2.4213709303197826,0.52955460760091955,4.7999999999999927,4.8040455120101289,5.625585579852407,0.9155959067477093,-0.54019987395336977,null,null,1.3454778794167583,2.2542690090804198,3.415321527266066,2.5588850058099868,null,4.5975676528225362,2.9870368105662339,null,null,81.834741322926817,96.393126267782208,53.841225436686265,79.163433121168964,107.24616171214774,112.45647132299707,93.161802104379674,null,null,3.3365630594170601,0,2.8629298377369707,2.3075574259162024,4.586470077768527,2.621259783197246,0,null,null,7793.1674999999996,3757,14279.8,5062.8999999999996,1978.8000000000002,8711.6,2924.7763551100002,null,null,71.455351000241137,106.29698591317374,125.13672073527692,97.467565845873111,120.11027861031521,123.55040261874409,172.33732333511045,null,null,4.031023049368323,3.7704786489847733,0.26717557251909102,3.4406634499396715,5.8953142759041057,5.0052759911558429,2.7751914546935899,null,null,3.65,4.32,3.19,3.76,5.9114598359687873,1.7053,2.2200000000000002,null,null,9.7817759894037923,5.958889816812289,7.585877862595428,11.989951749095281,12.586404845838635,10.80705513876182,7.2795238526296808,null,null,7.87,6.52,6.57,8.2100000000000009,11.697538437867497,5.5815000000000001,6.7,null,null,4.5,"n.a.",2.75,5.75,"n.a.",5.5,"n.a.",null,null,2.9698988941816218,6.3283358160112435,4.8964310664277644,12.768091832154305,-20.463949156029415,11.566818064585217,2.3063344060075819,null,null,978.37566391249527,490.92083333333335,910.18333333333339,345.32829216296165,null,913.24166666666667,895.54612025000006,null,null,null,null,1422.0860908836655,1004.7608333333332,1645.5416666666667,863.57799248012623,null,1705.6499999999999,1879.8798141666666,null,null,null,null,null,null,null,null,1019.0461456399908,543.01000000000022,952.30000000000007,362.6114238156012,null,943.1,881.82699200000002,null,null,null,null,1303.2164436100059,964.20999999999913,1525.3000000000002,784.87844358020004,null,1619.5,1872.068982]
[null,null,"J",2.8892280184692054,0.12787884760535664,4.3696486566282964,4.6914357682619574,6.0848492114204475,1.4005386687187549,-0.26550829191878211,null,null,1.6109538157728371,2.205679911670738,3.5558961186223379,2.3317261211591385,null,4.6678805884950076,3.7083499066793149,null,null,80.066677163449171,96.803562505220953,53.760009974243864,79.062237755086485,107.29778629632501,112.56729446955188,93.111986898913074,null,null,1.733538591441989,0,2.5372068757207873,2.1400434741659877,4.3189065483436249,2.6761529519420986,0,null,null,7877.6172999999999,3693.67,14386.4,5068.3,1973.4,8214.9557832058163,3900.8993976000002,null,null,71.433442487750398,100.99991742095243,124.69034724443659,97.307472153331545,124.27914436960737,111.36410420412291,235.18470428801029,null,null,3.1206104306219911,4.1767799343475875,0.63270438472417556,3.5805834586466232,6.3847326167977307,4.4158161189952008,2.4520186046334755,null,null,3.1518295099999998,4.3099999999999996,3.19,3.75,5.7018070665093505,1.7402,2.1800000000000002,null,null,9.7243172236988613,6.4938169341336707,8.048653465346522,12.033996992481208,9.4126448938304534,11.081855657585168,8.0869798941034308,null,null,8.4341756399999994,6.63,6.53,8.24,11.577063060639652,5.4332000000000003,7.8,null,null,4,"n.a.",2.75,5.75,"n.a.",5,"n.a.",null,null,2.0628879331394456,5.8274132617423868,4.996561155758239,12.031426252513256,-21.173511787386467,11.493495778088336,1.9793777796590195,null,null,980.90297706916181,494.73666666666668,911.7833333333333,345.08313531153129,null,916.17500000000007,881.1931399166665,null,null,null,null,1417.0868420519982,1012.5516666666666,1649.3333333333333,861.03821593052146,null,1707.6916666666666,1865.4391249166665,null,null,null,null,null,null,null,null,988.80649175999633,557.44000000000005,918.1,351.8027234501771,null,985.4,854.47463200000004,null,null,null,null,1429.6507861599969,1075.1200000000008,1703.9,865.57159808305926,null,1815.3000000000002,1945.318096]
[null,null,"A",2.8558096427309088,-0.48797799662851316,3.0129335684891196,4.2946708463949808,6.3016169456871536,1.7155165781983148,-0.60515318354545367,null,null,1.9599511707779762,2.3173515170684102,3.7203107228254444,2.1581579930140866,null,4.8725447578876038,3.889817502333679,null,null,78.951662847059339,97.147120206980944,54.209486287753357,79.143412564835486,107.587912260172,112.71910661770359,93.364429792948528,null,null,8.6150014139244002E-2,0,2.1613965577313516,2.2627662230626711,4.1785587537698152,2.8525788231123146,0,null,null,7707.7112999999999,4575.57,14700.1,5063.6000000000004,1995.7,7899.7222149838335,3933.1099999999997,null,null,69.7087590764895,125.44947127235977,125.61745432092557,97.761454315972045,126.39621095205766,107.68050490078073,231.80392988908142,null,null,2.9110561354476667,4.901898181169754,1.928948494792414,3.936278929966941,5.377538908549802,4.2615753895023536,2.8423537779201618,null,null,2.98,4.3899999999999997,3.19,3.74,5.9390031513538801,1.7349000000000001,2.2200000000000002,null,null,8.4041680847144988,7.1528824893009952,9.4911057212155843,12.412263300270515,10.714148561672269,10.144551951293309,9.2410758482348978,null,null,6.62,6.63,6.52,8.23,11.90008179653824,5.5617000000000001,8.58,null,null,4,"n.a.",2.75,5.75,"n.a.",4.75,"n.a.",null,null,1.4694272732932001,5.3915697876274038,4.9134014922360469,10.795985499771454,-20.784645675963354,11.316231234616181,1.9732741997083414,null,null,984.45843969666169,494.07166666666666,913.64166666666677,342.40307871353269,null,916.58333333333337,865.64273533333323,null,null,null,null,1409.0628664778317,1010.3533333333331,1648.1083333333336,853.617252931385,null,1705.9999999999998,1843.0804953333336,null,null,null,null,null,null,null,null,1021.9801225399915,486.63000000000011,957.8,320.71584188789495,null,918.90000000000009,838.69291699999997,null,null,null,null,1368.7108828800042,1018.7199999999993,1737.2,858.73500027277532,null,1776.6,1757.2320890000001]
[null,null,"S",2.5290714162969512,-0.6828662646328576,1.8043684710351577,4.4186775305546737,5.6241457216649771,2.0216773003305368,-0.61674560049748905,null,null,2.3452114996184639,2.3880143603283899,3.8568172234898923,2.1198603409360883,null,5.1623968101288282,4.1739728070113493,null,null,80.406877728281344,97.370814131293187,54.84849358017226,79.295899317447081,108.12438965351031,113.42659357886437,93.481960355150406,null,null,-0.22944940247074655,0,0.57375152165754684,2.3556820443365973,4.0011090424467888,3.5851371968072421,0,null,null,7462.5070999999998,4466.62,14516,5055.5,2051.1,7587.8028349934102,3288.77,null,null,67.902159182623436,123.11915154949827,125.24900268815647,96.420951541849604,129.01587201867699,106.7064983106772,188.7732610866845,null,null,3.0927116962058347,5.0775390659880442,3.1291697761193831,3.8607292917166975,4.1950019391965201,3.2028709840265255,2.864411733846119,null,null,3.95,4.3600000000000003,3.16,3.71,5.8458874799401324,1.7259,2.23,null,null,10.165718805141102,7.5242468077507016,10.781100746268635,12.336224489795931,10.165412516564942,9.9172283453887928,8.921770225851926,null,null,7.24,6.79,6.51,8.23,12.82178287773236,5.4379999999999997,8.25,null,null,3.75,"n.a.",2.75,5.75,"n.a.",4.5,"n.a.",null,null,0.54990434246708908,4.9219318580954852,4.4104310948471559,10.340104726581668,-19.790415911164306,12.174145655490175,2.1931830327122537,null,null,988.56040778832823,493.96333333333337,916.97499999999991,343.95745761074636,null,915.80000000000007,865.68435683333337,null,null,null,null,1421.7306322778329,1001.8216666666667,1648.0666666666666,847.47542385581926,null,1710.7249999999997,1835.2776821666666,null,null,null,null,null,null,null,null,985.7717710099954,462.21999999999935,877,297.95504210588587,null,901,902.40713299999993,null,null,null,null,1331.4838734200046,944.70000000000073,1578.6000000000001,807.69175331890006,null,1665.8,1674.3500690000001]
[null,null,"O",2.0724346013538129,-0.86710316758095018,2.1696396068438428,4.0822686195076425,5.4396854509802495,2.4773738303420911,-0.74885649253653375,null,null,2.6158162896634267,2.317575731571444,3.9327690147454559,2.2542927585807062,null,5.4504289199104177,3.214699985150367,null,null,81.104168749627803,97.549869429115631,54.930394069020778,79.381505354182266,108.43576891165534,115.30430378772635,93.744768510775657,null,null,-1.8996912625155788,0,0.39552661859118254,2.3300166328949672,3.9448736612924273,5.4475932431647198,0,null,null,7692.7,4861.3500000000004,14631,5137.6000000000004,2118.1999999999998,7491.6,3389.5703558499995,null,null,70.412471695428664,122.69697870662819,124.67590346082112,100.71408433876239,131.56971834227414,109.23754628842136,175.14199434339341,null,null,3.5049280568436023,5.171949303820055,2.7311052519062078,4.2156377245508914,5.5967529262535196,4.0769254846194007,3.0114076139704915,null,null,3.32,4.26,3.16,3.71,6.0909202590264462,1.4930000000000001,2.2400000000000002,null,null,8.9471464595839656,7.6232042127811406,10.306741252761332,12.670488023952087,10.436365719573363,9.5991200808322557,9.1372816191831348,null,null,7.4,6.69,6.47,8.31,10.341874284685677,4.9420000000000002,8.32,null,null,3.25,"n.a.",2.75,5.75,"n.a.",4.5,"n.a.",null,null,-0.44931980123553705,5.0528734986357682,4.110745002232008,9.6923527817464503,-17.884464829592073,12.460034917443451,2.4077771400677461,null,null,989.27746589582841,494.15583333333331,918.44999999999993,341.30092397651748,null,919.15,873.43051916666673,null,null,null,null,1413.4696467028323,1001.7583333333332,1649.95,851.02202140166662,null,1694.3083333333332,1817.9090005833332,null,null,null,null,null,null,null,null,1035.9557809699957,492.93000000000029,875.90000000000009,254.64013999413314,null,959.99999999999989,1079.198052,null,null,null,null,1526.7624747299942,1084.0299999999988,1868.7,895.78229115445208,null,1729.8999999999999,1963.456784]
[null,null,"N",1.8573771923603606,-0.5761389824499128,2.9207740051113547,3.8437693738375627,5.7188934302477552,3.2250615763547001,-0.32859718304499225,null,null,2.738808380066001,2.0548403290748656,3.9437858235524237,2.5297003589765428,null,5.7201569425073169,3.8629346551567636,null,null,80.240939766023018,97.384563692279599,54.275799578286367,79.108137359943825,107.90496389989747,115.13313833629735,93.708449669205052,null,null,-5.690158365890853,0,7.0968808882947473E-2,1.7109912085451606,3.631220225813494,5.3881334129099816,0,null,null,9150.2999999999993,4062.36,14604.1,5124.0364783089844,2161.5,7145.6,4570.8718668299989,null,null,79.409872052348121,101.61804008128723,123.32886156918912,96.956944408187013,127.21999056266353,98.850700519679194,228.01704080363129,null,null,4.7052289581231257,4.8440474280110468,1.9716388790351189,4.4646208955223949,3.7312308829135605,3.2791827604205306,2.5569994110802794,null,null,3.11,4.24,3.21,3.7,5.826547800697413,1.8753,2.2200000000000002,null,null,10.091035427142884,7.2780707854149878,9.4725540971975875,13.01592835820896,10.229082673031778,8.4153385728133401,8.9981648994302645,null,null,7.84,6.66,6.44,8.2899999999999991,9.6679047855137057,5.9779,8.64,null,null,3.25,"n.a.",2.75,5.75,"n.a.",4.5,"n.a.",null,null,-1.6049084940683245,4.5970950373659836,4.4345334877448961,8.9129389394190675,-16.662603036635005,12.619671531389232,1.951645104805011,null,null,992.97566022166154,492.73166666666657,923.76666666666677,341.29077631937429,null,924.19166666666661,880.82735891666687,null,null,null,null,1402.9131374286651,1002.0583333333335,1654.95,840.73308440977542,null,1689.5166666666671,1803.6508866666666,null,null,null,null,null,null,null,null,1022.9352201199933,461.70999999999913,923.7,292.73834056762905,null,1006.9,950.48118100000011,null,null,null,null,1454.4586244599971,1018.0200000000023,1753.4,821.82451545153538,null,1752.8999999999999,1546.661912]
[null,null,"D",1.5224291162047174,-8.9047195013276098E-3,3.4055276015459901,4.0841584158415811,6.1297243704681899,3.6599999999999957,-6.2580315385681165E-2,null,null,2.8030302815744572,1.6651425253016687,3.9065370408410858,null,null,5.9652872560425969,null,null,null,79.135085195240478,97.191989730712578,53.795878698389082,78.734594081027396,106.98722771304773,114.96263292569174,93.77365603581805,null,null,-5.4908392498758856,0,-0.56382911142139969,1.3019887588865635,null,5.3740315381674142,0,null,null,8912.2999999999993,3936.49,14789,5808.8569290984369,2208.4,8781.4,4143.34042013,null,null,74.257073164983126,99.466947780793632,116.063651270137,100.07267971769384,null,98.925752495713681,null,null,null,4.1641742820754564,4.2592839967940064,1.4549245416078869,4.2425683709869233,3.4233928809168725,2.8301176924561107,2.2339783460803062,null,null,3.29,4.25,3.2,3.72,5.2920828330410599,1.6742999999999999,2.17,null,null,8.8724934600264778,6.4594799180692757,8.9303469675599292,12.783733650416174,8.7475349671168079,8.4610264325680156,8.5279171128107087,null,null,6.95,6.45,6.41,8.19,9.43580101742306,6.0696000000000003,8.4600000000000009,null,null,2.75,"n.a.",2.75,5.5,"n.a.",4.5,"n.a.",null,null,-1.1082830129658494,null,null,null,null,12.669752680717883,null,null,null,997.67632499916169,495.27583333333331,931.99166666666679,346.66536618278434,null,934.88333333333321,null,null,null,null,null,1402.6711818978329,1001.4633333333335,1656.7833333333338,838.28194744160862,null,1690.6666666666667,1790.9813210000002,null,null,null,null,null,null,null,null,913.89093436999542,448.52000000000044,998,365.20518980580954,null,975.30000000000007,null,null,null,null,null,1318.8462367300044,901.23999999999978,1544.9,836.96876313369989,null,1623.9,1619.8189259999999]
[null,2020,"E",1.5827643365524711,-8.0185317177467214E-2,1.7844294143042296,4.2994123105474724,null,4.1740071086385537,0.3558122223510457,null,null,null,null,null,null,null,null,null,null,null,null,null,null,null,null,null,null,null,null,-5.9604605812882241,0,-0.53039290043625931,1.283238706455323,null,5.4716743337854092,0,null,null,8211.4246999999996,3948.04,14895.4,5763.9581638405589,null,10408.299999999999,null,null,null,null,null,null,null,null,null,null,null,null,null,null,null,null,null,null,null,null,null,null,null,null,null,null,null,null,null,null,null,null,null,null,null,null,null,null,null,null,null,null,null,null,null,null,null,null,2.25,"n.a.",2.75,5.5,"n.a.",4.5,"n.a."]
[null,null,"F"]
[null,null,"M"]
[null,null,"A"]
[null,null,"M"]
[null,null,"J"]
[null,null,"J"]
[null,null,"A"]
[null,null,"S"]
[null,null,"O"]
[null,null,"N"]
[null,null,"D"]